{"text_format":"1","workbook":"xlsx","n_sheets":34,"sheets":["Cover","Updates","Acronyms","Overview & Instructions","Technology Decision Tree","Key Inputs ==>","Country Input","Labor and Maintenance ","Comparisons ==>","TCO Comparison","Detailed TCO Comparison","Cost per Liter Comparison","ROI","Solution costs = =>","Total Solution Costs","Cash Flows Comparison","Data and Assumptions ==>","WICR FR","ILR","SDD","Freezer","LT Passive","Solar w battery","Gas","Kerosene","PQS","List","vaccines","Technology template","Parts","Calculations","Comparison data","Cash Flow data","Notes"],"not_rendered":{"charts":5,"images":14,"macros":1,"external_links":5,"defined_names":2290,"comments":6,"pivot_tables":5},"unopened":[],"bounds":{"document_bytes":16777216,"sheet_cells":100000,"rows_first":2000,"rows_last":500,"rows_between":2000,"halvings":0,"cell_chars":16384,"cell_head_chars":4096},"cells_cut":0,"cells_raw":0,"read":"whole","date_system":"1900"}

{"sheet":"Cover","index":0,"n_rows":38,"n_cols":9,"rows_kept":38,"cut":false,"hidden":false,"merged":[[1,8,1,10],[3,3,3,4],[4,1,4,8],[7,1,7,8],[9,1,11,2],[9,4,9,5],[11,3,11,4],[11,5,11,6],[11,7,11,8],[9,6,9,7],[13,1,13,2],[13,3,13,5],[13,6,13,8],[15,1,19,2],[15,7,15,8],[15,3,15,4],[15,5,15,6],[17,3,17,5],[17,6,17,8],[19,5,19,6],[19,7,19,8],[19,3,19,4],[35,3,35,9],[39,0,41,10],[5,1,5,5],[30,3,30,9],[31,3,31,9],[32,3,32,9],[33,3,33,9],[34,3,34,9],[37,3,37,4],[37,8,37,10],[22,2,22,8],[23,1,23,9],[24,1,24,9],[25,5,25,6],[28,3,28,9],[29,3,29,9]]}
[]
[null,null,null,null,null,null,null,null,"version 1.4"]
[]
[]
[null,"Instructions for use are located in the Overview & Instructions worksheet as well as in each of the black-colored worksheets."]
[null,"Please be sure to enable macros before using or the tool will not function properly.   ",null,null,null,null,null,null,"Click for Google instructions"]
[null,"To check for the latest update of the Total Cost of Ownership (TCO) tool, click the link to compare versions.",null,null,null,null,null,null,"TCO tool website"]
[]
[]
[null,"Quick links",null,"Overview","Instructions",null,"Acronyms",null,"FAQ"]
[]
[null,null,null,"CCE decision tree",null,"Comparison tools",null,"Total solution cost"]
[]
[null,"Country/local assumptions",null,"Country and segment input and assumptions",null,null,"Labor, maintenance, and installation assumptions"]
[]
[null,"Technology/model assumption worksheets",null,"Cold room/freezer room",null,"Ice-lined refrigerator",null,"Freezer"]
[]
[null,null,null,"Solar direct drive refrigerator",null,null,"Long-term passive storage device"]
[]
[null,null,null,"Solar w/battery",null,"Gas refrigerator",null,"Kerosene refrigerator"]
[]
[]
[null,null,"© 2016 PATH    This work is licensed under the Creative Commons Attribution-NonCommercial-ShareAlike 4.0 International License. To view a copy of this license, visit http://creativecommons.org/licenses/by-nc-sa/4.0/. "]
[]
[null,"\n"]
[null,"Please send any feedback, suggestions, or comments to Matt Morio ",null,null,null,"mmorio@path.org"]
[]
[null,"Versioning"]
[null,"v.0.1.0",2013,"Original version of the Total Life Cost model developed by PATH and shared in 2013"]
[null,"v.0.5.1","2014-10-01","Revision of templates and costing data "]
[null,"v.0.5.2","2015-04-01","addition of total solution cost approach"]
[null,"v0.5.3","2015-07-15","general modifications and enhancements"]
[null,"v0.5.4","2015-08-01","incorporate feedback and release for review and comments prior to country sharing"]
[null,"v0.6","2015-08-20","Updated version with feedback incorporated"]
[null,"v1.x","2016-01-01","Version 1.0 release "]
[null,"v1.4","2017-04-26","Updated version with CCEOP eligibility"]
[]
[null,null,null,null,null,null,null,null,"2017-04-26"]

{"sheet":"Updates","index":1,"n_rows":36,"n_cols":4,"rows_kept":36,"cut":false,"hidden":true,"merged":[]}
["Notes:"]
[]
["version",null,"Comments"]
["1.0.0",null,"Release for review - frozen version until 1.1 release"]
["1.0.1",null,"added freezer capcity to Walk in Freezer Rooms and Cold room/ Freezer room combos"]
[null,null,"Add column in solution costs to show the Annualized Opex costs for each unit"]
[null,null,"adjusted installation delivery costs and hours based on McK Archetypes 3 and 4 for installation and delivery costs."]
[null,null,"edit Country input transport to \"first mile\""]
[null,null,"Explain tab colors"]
[null,null,"Add gross weight to PQS table"]
[]
["1.0.2",null,"Add 5 new PQS models E003/055 - E003/059"]
[null,null,null,"PQS, SDD and Parts tabs are done"]
[null,null,null,"Calculations, Comparison data, Cash flow data are left (invalid password)"]
[]
["1.0.3",null,"Added more lines for immunization schedule in Country Input"]
[null,null,"formatting changes to tables in Total Solution Costs for better readability"]
[null,null,"Changed holdover and autonomy in Total Soulution Costs to look at all temperature ranges, not just 43.  Holdover default is 43 if both are listed as indicated in operating range column"]
[null,null,"Reflected consolidated operating range to one column in PQS vs 32 and 43 to align with PQS database"]
[null,null,"Added new PQS models and parts"]
[null,null,"edits to instructions and guidance pop-ups"]
[null,null,"repaired links between L&M and tech worksheets "]
[null,null,"Updated pricing for PQS items and parts per latest UNICEF and PQS catalogs on Dec 11"]
[]
["1.0.5",null,"sort vaccines for better presentation"]
[null,null,"minor formula edits"]
[null,null,"Minor text edits"]
[null,null,"vaccine table update (price & volume)"]
[]
["next release",null,"Create reference table for general values.  Eg  freight rates, training costs, installation,etc.  The Organge cells generally"]
[null,null,"SML sizing for solar arrays etc."]
[null,null,"Add CCEOP pricing and approved equip if available"]
[]
["2.0.1",null,"Update CCE list with latest PQS catalogue(20170410)"]
[null,null,"Add CCEOP marks and slicer"]
[null,null,"Fix lookup ranges problem"]

{"sheet":"Acronyms","index":2,"n_rows":27,"n_cols":2,"rows_kept":27,"cut":false,"hidden":false,"merged":[]}
["Acronyms"]
["BCG","bacillus Calmette-Guerin"]
["CAPEX","capital expense"]
["CCE","cold chain equipment"]
["CCEOP","Cold chain equipment optimization platform"]
["DTP","diphtheria, tetanus toxoids, and pertussis"]
["FAQ","frequently asked question"]
["HepB","hepatitis B"]
["Hib","Haemophilus influenzae type B"]
["ILR","ice-lined refrigerator"]
["LP","liquefied petroleum"]
["LT","long term"]
["MMR","measles, mumps, and rubella"]
["MR","measles and rubella"]
["OPEX","operating expenses"]
["OPV","oral polio virus"]
["PCV","pneumococcal conjugate vaccine"]
["PQS","Performance, Quality and Safety"]
["Rota","rotavirus"]
["SDD","solar direct drive "]
["TCO","total cost of ownership"]
["TT","tetanus toxoid"]
["UNICEF","United Nations Children’s Fund"]
["WHO","World Health Organization"]
["WICR","walk-in cold room"]
["WIFR","walk-in freezer room"]
["YF","yellow fever"]

{"sheet":"Overview & Instructions","index":3,"n_rows":100,"n_cols":5,"rows_kept":100,"cut":false,"hidden":false,"merged":[[1,0,1,13],[88,1,88,13],[90,1,90,13],[57,3,57,13],[67,1,67,13],[68,1,68,13],[69,1,69,13],[86,1,86,13],[84,1,84,13],[53,3,53,13],[54,3,54,13],[55,3,55,13],[56,3,56,13],[4,0,4,3],[4,4,4,6],[6,0,6,13],[9,0,9,13],[43,0,43,13],[23,1,23,13],[26,1,26,13],[10,0,10,13],[11,0,11,13],[12,0,12,13],[13,0,13,13],[20,1,20,13],[31,0,31,13],[42,0,42,13],[8,0,8,13],[2,0,2,13],[92,1,92,13],[100,1,100,13],[94,3,94,13],[97,3,97,13],[99,3,99,13],[45,1,45,13],[39,2,39,13],[38,2,38,13],[41,0,41,13],[33,1,33,13],[35,2,35,13],[36,2,36,13],[37,2,37,13],[48,3,48,13],[49,3,49,13],[64,1,64,13],[46,3,46,13],[47,3,47,13],[46,1,46,2],[47,1,47,2],[48,1,48,2],[49,1,49,2],[50,1,50,2],[50,3,50,13]]}
["Getting started"]
["Before using the tool, please ensure that macros are enabled.  Typically there will be a pop-up notification or alert in the top of the workbook to confirm the use of macros.  Click \"Enable Content\" to affirm the use of macros before proceeding.  It is also safe to save this file as a \"trusted document\" if asked.  Example: "]
["Mac compatibility: Unfortunately, the TCO tool is not compatible with Mac computers due to a limitation of Microsoft Office for Mac.  We have inquired with Microsoft when an update will be available but do not have a timeline."]
["Overview of the tool"]
["Click here to skip to instructions",null,null,null,"Click here to skip to FAQ"]
["What is total cost of ownership?"]
["The concept of total cost of ownership (TCO) is to evaluate a purchasing decision based on the comprehensive costs of owning and operating a piece of equipment over its useful life or a set period of time. TCO includes not only the purchase price but also the costs of installation, spare parts (capital expenses, commonly referred to as capex), and recurring operating costs such as electricity, routine maintenance, and repairs over time (operating expenses, commonly referred to as opex). The term \"useful life\" refers to the expected longevity of a piece of equipment before needing to be replaced. Useful life is applied in calculating the total recurring opex during the use and operation of a device."]
["What is total solution cost?"]
["Total solution cost is a comprehensive comparison of equipment options. The total solution cost refers to the total costs for equipment (capex and opex) plus training costs over a defined time horizon, multiplied by the number of units needed to provide adequate storage. The quantity of units needed is based on the values entered in the Country Input worksheet, primarily the number of facilities to equip and the storage volume needed per facility per delivery. This quantity of units needed may differ as equipment models may have varying capacity or useful life. This is captured in the Total Solution Costs worksheet."]
["What is this tool for? How does it work?"]
["The TCO tool is designed to assist decision-makers in evaluating available cold chain equipment (CCE) options from a cost perspective. The tool allows users to explore the capital and operating costs associated across various CCE technology categories, as well as to compare costs for specific models within a technology category or across multiple technologies. "]
["This tool is designed to allow for localized inputs, such as energy costs and discount rates as well as immunization-specific needs, to provide a consistent platform for comparing equipment once a facility segmentation has been completed to identify needs."]
["Users may filter the available equipment for comparison by storage capacity, technology (ice-lined refrigerator [ILR], solar direct-drive refrigerator [SDD], walk-in cold room [WICR], etc.), or even specific models for evaluation by using the filters at the top of each comparison worksheet. "]
["The general workflow for the tool is illustrated below. Users may skip steps if they already have technologies or models in mind for comparison, but it is important to complete the Country Input worksheet to produce an appropriate total cost analysis scenario."]
[]
[]
[]
[]
[]
[null,"Compare technologies"]
[null,"The tool also incorporates assumptions for each technology category such as installation costs, maintenance and repairs, and useful life of equipment. This approach allows users to evaluate broad comparisons of one technology versus another (example: kerosene and SDD refrigerators)."]
[]
[null,"Compare models"]
[null,"For a more granular analysis, the tool also has model-specific fields that users can modify based on expert opinions or experience for a more accurate model-to-model comparison (example: useful life may vary between models, or the frequency of repairs may differ)."]
[]
[null,"Evaluate country total solution costs"]
[null,"Based on the country inputs, specifically the number of facilities to equip and volume per facility*, the tool will calculate the TCO for equipment over a defined time period. These comparisons are total solution costs matching the country needs with appropriate quantities of equipment needed in the cold chain, not just a model-to-model comparison. These worksheets allow users to see the recurring operating expenses, initial capital costs, and replacement costs for equipment and installation over time presented in several views. This is helpful for projecting budget estimates and comparisons over a set (user-defined) period of time."]
[]
[null,"* Driven by programmatic needs, installed-base inventory assessment, and facility segmentation. "]
["Instructions"]
["How do I use the tool?"]
["The tool is designed to be a stand-alone tool or to work with other tools and analysis to help guide CCE procurement decisions. The key inputs are the primary drivers for the tool; the yellow and green cells should be updated before beginning an analysis. Users can enter data based on their needs and experiences in multiple locations using the color-coding guide described below. However, primary attention should be on the Country Input and Labor and Maintenance worksheets. "]
["Color-coding—data entry"]
[null,"The tool uses simple color-coding of cells in the workbook to identify when and where a user should review or update values. The number of inputs are kept to a minimum for ease of use."]
[]
[null,null,"Yellow cells are key questions that should always be reviewed and updated for each comparison."]
[null,null,"Green cells are important assumptions that should be reviewed after addressing the key questions. These can be updated for each comparison, but are generally applicable across multiple comparison scenarios once initially entered."]
[null,null,"Orange cells are default assumptions that have been compiled for general use in the tool. The default assumption values that are in the Country Input and Labor and Maintenance worksheets can be overwritten as desired based on local costs or experiences with a technology. "]
[null,null,"For individual model variances, please refer to the appropriate technology worksheet and locate the specific model to update if it differs from the default assumption (e.g., ILR—Vestfrost MK204 useful life equals XX years instead of default 10 years). "]
[null,null,"Grey cells are calculated values; to avoid corruption of the formulas and data flow, they should not be changed."]
[]
["In general, once the green and orange cells are updated for a country or segmentation, they should not need further updating for each scenario or comparison completed."]
["When conducting a total solutions cost comparison, it is important to enter the appropriate data in the Country Input worksheet; these data should focus the analysis on a particular segment of facilities to equip. These data should be available once the following have been completed: an inventory of CCE and a facility segmentation analysis to identify the number and type of facilities to equip and equipment to procure. Resources for calculating the values for the key inputs can be found in the TechNet21 website country technical assistance package. This package provides technical assistance resources for analysis and planning of CCE procurement."]
["The tool is designed to be a stand-alone tool or to work with other tools and analysis to help guide CCE procurement decisions. Users can enter data based on their needs in the Key Inputs worksheet using the color-coding guide described below. Resources for calculating the values for the key inputs can be found in the TechNet21 website country technical assistance package if assistance is desired."]
["Workflow"]
[null,"The tool is structured such that data and decisions flow across the worksheets from left to right, and the worksheets are color coded (see below)."]
[null,"<Section name>",null,"At the beginning of each section, a black colored worksheet contains detailed instructions to clarify individual cells or steps. "]
[null,"Key Inputs",null,"These two tabs allow the user to enter country-specific values into the assumptions and drivers for the tool.  Such values including facility segmentation data, energy and labor costs, and general assumptions around equipment. "]
[null,"Key Outputs",null,"The dark green worksheets are the total solution cost comparisons, which take the assumptions from the Country Input and Labor and Maintenance worksheets to calculate the total costs over a selected time planning horizon (1 to 20 years). The yellow-highlighted cell is a dropdown for the number of years to calculate and a key driver for the forecast horizon."]
[null,"Comparisons",null,"These are general Total Cost of Ownership comparisons for technology categories and/or specific equipment models. These worksheets include: TCO over a unit's useful life, TCO per liter over a unit's useful life, and operating expenses per unit over the useful life."]
[null,"Data and Assumptions",null,"These worksheets provide the inputs for model-specific values based on local experiences or feedback from users for useful life, parts, and maintenance and repair."]
[]
["Tips for using the tool"]
["Filters"]
[null,null,null,"Within each comparison are a set of three filters to help refine the equipment for comparison. These filters are broken into three categories: vaccine storage capacity, equipment technology, and a list of models."]
[null,null,null,"Available items for selection/filtering are in blue. If a selection is not applicable or has already been filtered out, it will appear as white or light blue."]
[null,null,null,"To select a filter criteria, simply click on the button to filter. For example, if you only want to look at ILRs with 60–90 liters of capacity, you could click on the 60–89 button under the Capacity filter and on the ILR button under the Technology filter. "]
[null,null,null,"To select multiple options in a filter, hold the Ctrl key down and then click on any buttons you would like to include in your selection. For example, if we want to compare kerosene, gas, and SDD refrigerators we would hold down the Ctrl key and then click on Kerosene, Gas, and SDD under the Technology filter. When we release the Ctrl key, the options will refresh to reflect our filter choices."]
[]
[null,null,null,"To clear the filters, click on the funnel icon at the top right of a filter."]
[]
[]
[]
[]
[null,"Note: When selecting a capacity segment, it may be useful to select the next larger segment, in addition to the segment with the needed capacity, to compare costs for larger equipment capacity models."]
[]
["Expanding selections"]
[null,"As technology options are narrowed down or filters are applied, it is a good opportunity to look at individual models in the comparisons to help refine the equipment options. To do this, click on the + button to the left of a technology in the filtered lists."]
[null,"This will expand the selection to show individual models and the associated capital and operating costs rather than a technology average."]
[null,"To consolidate an expanded list, click on the - button."]
[]
[]
[]
[]
[null,"Expanded selection"]
[]
[]
[]
[]
[]
[]
["Frequently asked questions (FAQs)"]
[]
["What is capex?"]
[null,"Capex is short for capital expenses, which are one-time costs incurred at the time of purchase. Capex includes the costs of the equipment, recommended spare parts, in-country transport, installation kit, and installation labor. Because of the high variability, training is not included in the capex or TCO. Training costs are reflected in the total solution costs as a one time, year 1 cost."]
["What is opex?"]
[null,"Opex is short for operating expenses, which are recurring expenses over the useful life. This includes cost of energy (electricity, gas, kerosene), maintenance, and repairs."]
["Where do prices come from?"]
[null,"Pricing is derived from the latest United Nations Children’s Fund (UNICEF) Supply Division catalog pricing when available. If UNICEF pricing is not available, the pricing is the default PQS (World Health Organization Performance, Quality and Safety) price provided by the manufacturer."]
["Can I view in my local currency?"]
[null,"Currently the tool does not accommodate currencies other than US$. There are plans to incorporate local currencies in future versions of the tool."]
["What is the difference between TCO and total solution cost?"]
[null,"The TCO includes the capital and operating expenses (capex and opex) for one unit of equipment over its useful life; the total solution cost also includes training costs and looks at the total number of units needed versus a single unit. The total solution cost comparison applies the TCO to the total number of units required to meet the specific needs and requirements for the country’s segmentation over a user-defined period of time. This allows variances in refrigerator capacity or useful life to be considered in the comparisons; for example, multiple units of some equipment may be needed to meet capacity needs or a unit with a shorter useful life than others would need replacement within the time period. These variances are visually indicated in the total solutions cost comparison:"]
[null,"Solution cost colors"]
[null,null,null,"The color of the solution costs is a visual indicator of the range of solution costs. The range is from green to light yellow, with green indicating the lowest total cost models of the selected equipment."]
[]
[null,"Useful life icons"]
[null,null,null,"Useful life is shown in number of years. When the useful life is the same as the forecast horizon, a grey circle will appear next to the number of years. For useful life variances from the forecast, a green or red arrow will show up next to the equipment useful life. A green, up arrow indicates that the units have a greater useful life than the forecast. A red, down arrow indicates that the units have a shorter useful life than the forecast; therefore, the units will need replacement during the horizon. This will be reflected in the number of units needed."]
[null,"Storage capacity bars"]
[null,null,null,"Capacity for 2°C–8°C and freezer storage is shown with bars, which provide a visual comparison of the available capacity for each unit in relation to other selected equipment. As equipment is filtered by size, technology, or model(s), the capacity bars will compare the equipment selected."]

{"sheet":"Technology Decision Tree","index":4,"n_rows":32,"n_cols":1,"rows_kept":32,"cut":false,"hidden":false,"merged":[[28,0,30,7]]}
["Technology decision tree"]
[]
["`"]
[]
[]
[]
[]
[]
[]
[]
[]
[]
[]
[]
[]
[]
[]
[]
[]
[]
[]
[]
[]
[]
[]
[]
[]
[]
["Source: World Health Organization (WHO), United Nations Children’s Fund.  Introducing Solar-Powered Vaccine Refrigerator and Freezer Systems: A Guide for Managers in National Immunization Programmes. Geneva: WHO; 2015"]
[]
[]
["Available at: http://www.who.int/immunization/documents/9789241509862/en/"]

{"sheet":"Key Inputs ==>","index":5,"n_rows":35,"n_cols":3,"rows_kept":35,"cut":false,"hidden":false,"merged":[[1,1,1,13],[3,1,3,13],[5,0,5,13],[19,2,21,13],[8,2,8,4],[9,2,9,4],[10,2,10,4],[11,2,11,4],[15,2,15,13],[16,2,16,13]]}
["Key inputs"]
[null,"Two worksheets in the Key Inputs section allow for localization of assumptions and costs to increase the accuracy of the analysis and comparisons."]
[null,"The first worksheet is the Country Input where users can enter key inputs that will drive the costing scenarios."]
[null,"The second worksheet is Labor and Maintenance, which allows for localized costing of labor rates, installation costs, and assumptions for routine and preventive maintenance as well as repair labor by technology. (These values can also be entered model by model in the Technology worksheets.)"]
[]
["In general, once the green and orange cells are updated for a country or segmentation, they should not need further updating for each scenario or comparison completed."]
[]
[null,"Input cell legend"]
[null,null,"Key question"]
[null,null,"Input value needed"]
[null,null,"General assumption may be overwritten as appropriate"]
[null,null,"Calculated value; do not change"]
[null,null,"Linked data; do not change"]
[]
[null,"Country Input"]
[null,1,"Select the Country Input worksheet."]
[null,2,"Name the facility segment to evaluate—this is typically started from a cold chain equipment inventory, capacity gap analysis, or facility segmentation exercise."]
[null,3,"Answer the key questions—number of facilities to equip, number of deliveries per year, and volume need (annual) if known."]
[null,4,"Review and complete the green cells with appropriate information for the segment in the comparison."]
[null,null,"If needed volume is known, enter data in cell “D14.” If volume is unknown, take the following steps: Enter the population covered by the facilities in the segmentation and annual birth rate. Select vaccine from the drop-down list, enter coverage target, and repeat, adding vaccines as needed."]
[]
[]
[null,5,"Scroll down to the Financial Assumptions section. "]
[null,6,"Update values for Discount rate (if applicable), euro to USD exchange rate, and freight costs (to country port)."]
[null,7,"Scroll down to the Energy Costs section."]
[null,8,"Update any values for energy (electricity, fuel, solar panel needs)."]
[]
[null,"Labor and Maintenance"]
[null,1,"Select the Labor and Maintenance worksheet."]
[null,2,"Update values as appropriate for labor rates."]
[null,3,"Review installation per unit values in orange and update as needed for local market. "]
[null,4,"Review general maintenance per unit values in orange and update as needed for local market."]
[]
[null,"Note: frequency of maintenance or repairs are expressed in years. "]
[null,"Example: if an activity occurs every 3 months, enter 0.25; if an activity occurs every 2 years, enter 2."]

{"sheet":"Country Input","index":6,"n_rows":61,"n_cols":7,"rows_kept":61,"cut":false,"hidden":false,"merged":[[7,6,7,8],[9,6,9,8],[6,6,6,8]]}
["Country input"]
[]
["Vaccine selection and volume demand inputs"]
[]
["Annual vaccine capacity drivers ",null,null,null,null,"Input cell color legend"]
[null,"Cold chain segmentation being evaluated",null,"User-defined field"]
[null,"Number of vaccine storage facilities to equip",null,10,null,null,"Key questions"]
[null,"Vaccine deliveries per year",null,4,null,null,"Input value needed"]
[null,"Safety stock (%)",null,0,null,null,"General assumption may be overwritten as appropriate"]
[null,"Refrigerator utilization (% filled)",null,1,null,null,"Calculated value; do not change"]
[null,null,null,null,null,null,"Linked data from model; do not change"]
["Is needed storage volume known from other forecasting tool?",null,null,"YES","(select)"]
["If Yes, what is the annual storage volume needed in liters?",null,null,500,null,"To clear yellow and green assumptions, click here ---> "]
["If No, complete the following tables in section below.",null,null,null,null,"***Once cleared, assumptions cannot be restored***"]
[]
[null,"Population of facilities to equip",null,5000000]
[null,"Annual birth rate",null,2.5000000000000001E-2]
[]
["Vaccines Included in Schedule (select all vaccines used)"]
[]
[null,"Vaccines (select from dropdown)","National coverage target","Annual vaccine volume demand (cm3)"]
[null,"BCG-lyophilized-20",0.9,{"$f":"IF(B22=\"--\",\"\",VLOOKUP(B22,vaccines!$B:$O,14,FALSE)*Population*BirthRate*NationalCoverage)","v":365625}]
[null,"TT-liquid-20",0.8,{"$f":"IF(B23=\"--\",\"\",VLOOKUP(B23,vaccines!$B:$O,14,FALSE)*Population*BirthRate*NationalCoverage)","v":535150}]
[null,"Measles-lyophilized-5",0.9,{"$f":"IF(B24=\"--\",\"\",VLOOKUP(B24,vaccines!$B:$O,14,FALSE)*Population*BirthRate*NationalCoverage)","v":3234705.8823529407}]
[null,"OPV-liquid-20",0.9,{"$f":"IF(B25=\"--\",\"\",VLOOKUP(B25,vaccines!$B:$O,14,FALSE)*Population*BirthRate*NationalCoverage)","v":388125}]
[null,"DTP-HepB-Hib-liquid-10",0.9,{"$f":"IF(B26=\"--\",\"\",VLOOKUP(B26,vaccines!$B:$O,14,FALSE)*Population*BirthRate*NationalCoverage)","v":1091911.7647058824}]
[null,"PCV-13-liquid-1",0.9,{"$f":"IF(B27=\"--\",\"\",VLOOKUP(B27,vaccines!$B:$O,14,FALSE)*Population*BirthRate*NationalCoverage)","v":4094318.1818181826}]
[null,"Rota_RV1-liquid-1",0.9,{"$f":"IF(B28=\"--\",\"\",VLOOKUP(B28,vaccines!$B:$O,14,FALSE)*Population*BirthRate*NationalCoverage)","v":3938636.3636363642}]
[null,"--",null,{"$f":"IF(B29=\"--\",\"\",VLOOKUP(B29,vaccines!$B:$O,14,FALSE)*Population*BirthRate*NationalCoverage)","v":""}]
[null,"--",null,{"$f":"IF(B30=\"--\",\"\",VLOOKUP(B30,vaccines!$B:$O,14,FALSE)*Population*BirthRate*NationalCoverage)","v":""}]
[null,"--",null,{"$f":"IF(B31=\"--\",\"\",VLOOKUP(B31,vaccines!$B:$O,14,FALSE)*Population*BirthRate*NationalCoverage)","v":""}]
[null,"--",null,{"$f":"IF(B32=\"--\",\"\",VLOOKUP(B32,vaccines!$B:$O,14,FALSE)*Population*BirthRate*NationalCoverage)","v":""}]
[null,"--",null,{"$f":"IF(B33=\"--\",\"\",VLOOKUP(B33,vaccines!$B:$O,14,FALSE)*Population*BirthRate*NationalCoverage)","v":""}]
[null,"--",null,{"$f":"IF(B34=\"--\",\"\",VLOOKUP(B34,vaccines!$B:$O,14,FALSE)*Population*BirthRate*NationalCoverage)","v":""}]
[null,"--",null,{"$f":"IF(B35=\"--\",\"\",VLOOKUP(B35,vaccines!$B:$O,14,FALSE)*Population*BirthRate*NationalCoverage)","v":""}]
[null,"--",null,""]
[]
[null,"Estimated vaccine volume (liters) per delivery",null,{"$f":"(1+D9)*IF(D12=\"NO\",(SUM(D22:D36)*0.001)*(1+(1-RefrigeratorUtilization))/DeliveryFrequency,(D13)*(1+(1-RefrigeratorUtilization))/DeliveryFrequency)","v":125}]
[null,"Estimated vaccine volume per facility per delivery",null,{"$f":"LitersPerDelivery/D7","v":12.5}]
[]
[]
["Financial parameters"]
[null,null,null,null,"Visit:"]
[null,"Discount Rate",0]
[null,"Inflation Rate",0,null,"Average inflation rate of countries included in World Bank 2014 \"Inflation, consumer prices (annual %)\" http://data.worldbank.org/indicator/FP.CPI.TOTL.ZG/countries?display=default"]
[null,"Exchange rate: 1 € =",1.0900000000000001,null,"www.xe.com"]
[null,"Freight costs (% of value)",7.0000000000000007E-2,null,"for estimating “first-mile” freight costs to port of entry."]
[]
[]
["Energy costs"]
[null,null,"Local costs"]
[null,"Kerosene (US$/liter)",1.17]
[null,"LP gas (US$/kg)",1.83]
[null,"Electricity (US$/kWh)",0.2]
[]
[null,"Absorption fridge fuel percentage"]
[null,"Kerosene or gas use",1,null,"Note: This is the mix of power sources if electricity is available."]
[null,"Electricity use",{"$f":"1-C57","v":0}]
[]
[null,"Solar system panels (if applicable)"]
[null,"Solar array size","Small",null,"Source: Based on data from UNICEF Supply Division catalog estimates "]

{"sheet":"Labor and Maintenance ","index":7,"n_rows":81,"n_cols":10,"rows_kept":81,"cut":false,"hidden":false,"merged":[[35,6,35,7],[30,6,30,7],[31,6,31,7],[32,6,32,7],[33,6,33,7],[34,6,34,7],[47,6,47,7],[36,6,36,7],[37,6,37,7],[38,6,38,7],[39,6,39,7],[40,6,40,7],[41,6,41,7],[42,6,42,7],[43,6,43,7],[44,6,44,7],[45,6,45,7],[46,6,46,7],[59,6,59,7],[48,6,48,7],[49,6,49,7],[50,6,50,7],[51,6,51,7],[52,6,52,7],[53,6,53,7],[54,6,54,7],[55,6,55,7],[56,6,56,7],[57,6,57,7],[58,6,58,7],[71,6,71,7],[60,6,60,7],[61,6,61,7],[62,6,62,7],[63,6,63,7],[64,6,64,7],[65,6,65,7],[66,6,66,7],[67,6,67,7],[68,6,68,7],[69,6,69,7],[70,6,70,7],[78,6,78,7],[79,6,79,7],[80,6,80,7],[72,6,72,7],[73,6,73,7],[74,6,74,7],[75,6,75,7],[76,6,76,7],[77,6,77,7]]}
["Labor, maintenance, and installation assumptions"]
["Labor rates"]
[null,"Rates in US$"]
["Hourly wage of a cold chain technician",2]
["Average travel costs for onsite repairs",40,null,"Travel costs for cold chain technician should not be different by technology."]
["Average travel costs to obtain fuel annually",4,null,"NOT USED IN CALCULATIONS For kerosene or gas absorption CCE"]
["Average travel cost for installation technician",150,null,"Average travel costs for a technician to CCE site, variable based on facility segment that is being modeled."]
["Average equipment transport cost",150,null,"Equipment transport cost should be similar to installation but not bulk transport, this is for moving CCE to a workshop and back"]
["Average cost to obtain ice (per trip)",null,null,"TBD with passive studies starting in 2015."]
[]
["Training costs (total)"]
["Total budgeted training for segmented facilities",0,null,"Training costs are highly variable so a simple line item to calculate with capex total solution costs (not included in TCO)."]
[]
["Installation per unit"]
[]
[null,null,"Number of technicians needed per unit installed","Number of hours of installation for each technician","Travel of refrigeration unit to installation site in-country","Installation hardware","Travel of installation technicians","Installation labor","Total installation cost per unit","Installation cost without hardware"]
["Cold room / freezer room",null,4,16,1000,3000,{"$f":"InstallationTechnicianTravelCost*TechniciansPerUnit","v":600},{"$f":"TechniciansPerUnit*HoursPerTechnician*TechnicianHourlyWage","v":128},{"$f":"SUM(E17:H17)","v":4728},{"$f":"I17-E17-F17","v":728}]
["Solar direct drive",null,2,48,550,120,{"$f":"InstallationTechnicianTravelCost*TechniciansPerUnit","v":300},192,{"$f":"SUM(E18:H18)","v":1162},{"$f":"I18-E18-F18","v":492}]
["Solar with batteries",null,2,48,550,{"$f":"F18*1.2","v":144},300,192,1186,492]
["Electric with kerosene",null,1,8,{"$f":"E18/2","v":275},0,150,16,441,166]
["Electric with gas",null,1,8,{"$f":"E18/2","v":275},0,150,16,441,166]
["Ice-lined refrigerator (ILR)",null,1,24,550,50,150,48,798,198]
["Freezer",null,1,8,{"$f":"E22","v":550},50,150,16,766,166]
["Long-term passive storage device",null,1,8,150,100,150,16,416,166]
[]
[]
[]
[]
["General maintenance per unit"]
[]
["Type of refrigerator","Duration of equipment (years)","Number of labor hours required","Cost per unit or activity","Frequency (in years)","Repair performed ","Description/comments"]
[]
["Kerosene",10]
["Maintenance costs—wick replacement",null,1,{"$f":"(C34*TechnicianHourlyWage)","v":2},{"$f":"1/12","v":8.3333333333333329E-2},"Monthly","Cleaning and check / adjust thermostat"]
["Onsite repairs 1—Change of one or more of the following: gas jet, thermocouple, flame-failure device, or thermostat",null,3,{"$f":"(C35*TechnicianHourlyWage)+IF(C35=0,0,RemoteTravelCostPerDay)","v":46},5,"Every 5 years"]
["Onsite repairs 2—Electric heater replacement ",null,3,{"$f":"(C36*TechnicianHourlyWage)+IF(C36=0,0,RemoteTravelCostPerDay)","v":46},2,"Every 2 years"]
["Major repairs in a workshop by a technician",null,16,{"$f":"(C37*TechnicianHourlyWage)+IF(C37>0,EquipTransportRate,0)","v":182},5,"Every 5 years","Major breakdown estimate "]
[]
["Gas",10]
["Routine maintenance",null,1,{"$f":"(C40*TechnicianHourlyWage)","v":2},{"$f":"1/12","v":8.3333333333333329E-2},"Monthly","Cleaning and check / adjust thermostat"]
["Onsite repairs 1",null,0,{"$f":"(C41*TechnicianHourlyWage)+IF(C41=0,0,RemoteTravelCostPerDay)","v":0},0]
["Onsite repairs 2",null,0,{"$f":"(C42*TechnicianHourlyWage)+IF(C42=0,0,RemoteTravelCostPerDay)","v":0},0]
["Major repairs in a workshop by a technician",null,10,{"$f":"(C43*TechnicianHourlyWage)+IF(C43>0,EquipTransportRate,0)","v":170},5,"Every 5 years","Major breakdown estimate"]
[]
["Ice-lined refrigerator",10]
["Routine maintenance",null,3,{"$f":"(C46*TechnicianHourlyWage)","v":6},0.25,"Quarterly","Defrosting/cleaning"]
["Onsite repairs 1",null,1,{"$f":"(C47*TechnicianHourlyWage)+IF(C47=0,0,RemoteTravelCostPerDay)","v":42},1]
["Onsite repairs 2",null,0,{"$f":"(C48*TechnicianHourlyWage)+IF(C48=0,0,RemoteTravelCostPerDay)","v":0},0]
["Major repairs in a workshop by a technician",null,4,{"$f":"(C49*TechnicianHourlyWage)+IF(C49>0,EquipTransportRate,0)","v":158},3,"Every 3 years","Periodic repair estimate [needs country data to substantiate]"]
[]
["Solar with battery",10]
["Routine maintenance",null,2,{"$f":"(C52*TechnicianHourlyWage)","v":4},0.25,"Quarterly"]
["Routine maintenance—Battery disposal cost",null,0,{"$f":"Parts!$E$92*0.08","v":21.4664},3,"Every 3 years","Assume battery disposal is 8% of the purchase price of the battery. Two additional batteries need to be disposed over a 10-year period."]
["Onsite repairs 1",null,0,{"$f":"(C54*TechnicianHourlyWage)+IF(C54=0,0,RemoteTravelCostPerDay)","v":0},0]
["Onsite repairs 2",null,0,{"$f":"(C55*TechnicianHourlyWage)+IF(C55=0,0,RemoteTravelCostPerDay)","v":0},0]
["Major repairs in a workshop by a technician",null,4,{"$f":"(C56*TechnicianHourlyWage)+IF(C56>0,EquipTransportRate,0)","v":158},1,null,"Checking electrolyte levels in batteries and maintenance."]
[]
["Solar direct drive",10]
["Cleaning panels + general maintenance",null,1,{"$f":"(C59*TechnicianHourlyWage)","v":2},{"$f":"1/12","v":8.3333333333333329E-2},"Monthly"]
["Onsite repairs 1",null,2,{"$f":"(C60*TechnicianHourlyWage)+IF(C60=0,0,RemoteTravelCostPerDay)","v":44},1]
["Onsite repairs 2",null,0,{"$f":"(C61*TechnicianHourlyWage)+IF(C61=0,0,RemoteTravelCostPerDay)","v":0},0]
["Major repairs in a workshop by a technician",null,4,{"$f":"(C62*TechnicianHourlyWage)+IF(C62>0,EquipTransportRate,0)","v":158},4]
[]
["Freezer",10]
["Routine maintenance",null,3,{"$f":"(C65*TechnicianHourlyWage)","v":6},0.25,"Quarterly","Defrosting/cleaning"]
["Onsite repairs 1",null,1,{"$f":"(C66*TechnicianHourlyWage)+IF(C66=0,0,RemoteTravelCostPerDay)","v":42},1]
["Onsite repairs 2",null,0,{"$f":"(C67*TechnicianHourlyWage)+IF(C67=0,0,RemoteTravelCostPerDay)","v":0},0]
["Major repairs in a workshop by a technician",null,4,{"$f":"(C68*TechnicianHourlyWage)+IF(C68>0,EquipTransportRate,0)","v":158},3,"Every 3 years","Periodic repair estimate [needs country data to substantiate]"]
[]
["Cold room/freezer room",15]
["Cleaning and general maintenance",null,4,{"$f":"(C71*TechnicianHourlyWage)","v":8},0.25,"Quarterly"]
["Onsite repairs 1",null,16,{"$f":"(C72*TechnicianHourlyWage)+IF(C72=0,0,RemoteTravelCostPerDay)","v":72},3]
["Onsite repairs 2",null,0,{"$f":"(C73*TechnicianHourlyWage)+IF(C73=0,0,RemoteTravelCostPerDay)","v":0},0]
["Major repairs by a technician",null,0,{"$f":"(C74*TechnicianHourlyWage)+IF(C74>0,EquipTransportRate,0)","v":0},0]
[]
["Long-term passive ",8]
["Routine maintenance",null,1,{"$f":"(C77*TechnicianHourlyWage)","v":2},{"$f":"1/12","v":8.3333333333333329E-2},"Monthly","Equipment cleaning and battery check "]
["Onsite repairs 1",null,1,{"$f":"(C78*TechnicianHourlyWage)+IF(C78=0,0,RemoteTravelCostPerDay)","v":42},1]
["Onsite repairs 2",null,0,{"$f":"(C79*TechnicianHourlyWage)+IF(C79=0,0,RemoteTravelCostPerDay)","v":0},0]
["Major repairs in a workshop by a technician",null,0,{"$f":"(C80*TechnicianHourlyWage)+IF(C80>0,EquipTransportRate,0)","v":0}]
["Ice delivery",null,null,{"$f":"AvgIceDelivery","v":0},{"$f":"1/12","v":8.3333333333333329E-2},"Monthly","Ice delivery assumption"]

{"sheet":"Comparisons ==>","index":8,"n_rows":27,"n_cols":3,"rows_kept":27,"cut":false,"hidden":false,"merged":[[14,2,14,14],[4,2,4,13],[3,2,3,13],[26,2,26,13],[15,2,15,14],[17,2,17,14],[23,2,23,13],[24,2,24,13],[13,1,13,3],[16,1,16,2],[22,1,22,3],[25,1,25,3],[2,2,2,13],[8,2,8,14],[9,2,9,14],[11,2,11,14],[12,2,12,14],[7,1,7,3],[10,1,10,4]]}
["Comparisons"]
[null,"Use these worksheets to compare different cold chain equipment (CCE) technologies."]
[null,null,"The summary data are displayed as the average costs for a technology. "]
[null,null,"The filters allow for analysis by storage capacity, technology, or specific model. To select multiple filters, hold down the Ctrl key while clicking on a selection."]
[null,null,"To analyze the models within a technology, click on the + in the left side of the data tables, and the table will expand to display individual equipment models in that technology category."]
[]
[]
[null,"Technology Decision Tree"]
[null,null,"This graphic was developed through the World Health Organization (WHO) CCE working group to help users visualize the decision matrices for selecting CCE."]
[]
[null,"TCO Comparison"]
[null,null,"This worksheet displays the total cost of ownership by technology broken down by capital costs and total operating expenses over the useful life of a unit of equipment."]
[]
[null,"Cost per Liter Comparison"]
[null,null,"This worksheet displays the average total costs divided by the storage capacity of a unit to compare capital and operating expenses per liter of storage over the useful life of a piece of equipment."]
[]
[null,"Detailed TCO Comparison"]
[null,null,"This worksheet breaks down the annual expenses for purchasing and operating a piece of equipment by equipment cost, spare parts, installation labor, energy, maintenance and major repairs over the useful life of a piece of equipment."]
[]
["Calculations for comparisons are driven by the assumptions in the Country Input, Labor and Maintenance, and Technology worksheets."]
[]
[]
[null,"Total Solution Cost"]
[null,null,"Provides the total costs for a solution that meets the CCE scenario needs. This incorporates the number of facilities to equip and storage needs per re-supply period as well as the useful life of equipment compared to the forecast horizon."]
[]
[null,"Cash Flows Comparison"]
[null,null,"Graphical representation of the solution costs by year for selected equipment. Allows visualization for cash flow planning based on equipment useful life (hardware, solar panels, batteries). Parts are not included in the chart."]

{"sheet":"TCO Comparison","index":9,"n_rows":200,"n_cols":6,"rows_kept":200,"cut":false,"hidden":false,"merged":[[16,1,16,5],[17,1,17,3]]}
["Total cost comparison over useful life (per unit)"]
[]
[]
[]
[]
[]
[]
[]
[]
[]
[]
[]
[]
[]
[]
[]
[null,"To expand a technology to look at models, click on the plus (+) button below"]
[null,"* after name indicates CCEOP eligible product"]
[null,"Row Labels","Average capex","Average opex over useful life",null,"Total cost of ownership"]
[null,"Freezer",2725.1639274333334,3113.1366666666672,null,{"$f":"IF(C20=\"\",\"\",C20+D20)","v":5838.300594100001}]
[null,"Gas",2367.9594333333334,4676.76,null,{"$f":"IF(C21=\"\",\"\",C21+D21)","v":7044.7194333333337}]
[null,"ILR",2539.7786349062499,2222.0119791666662,null,4761.7906140729156]
[null,"Kerosene",2561.5165305000005,4769.45,null,7330.9665304999999]
[null,"LT passive",1276.5033333333333,528,null,1804.5033333333333]
[null,"SDD",6759.6776544374998,1075,null,7834.6776544374998]
[null,"Solar w/battery",7383.7553618000002,1811.5546666666664,null,9195.3100284666671]
[null,"WICR FR",29744.666000000005,36474.949999999997,null,66219.616000000009]
[null,null,null,null,null,""]
[null,null,null,null,null,""]
[null,null,null,null,null,""]
[null,null,null,null,null,""]
[null,null,null,null,null,""]
[null,null,null,null,null,""]
[null,null,null,null,null,""]
[null,null,null,null,null,""]
[null,null,null,null,null,""]
[null,null,null,null,null,""]
[null,null,null,null,null,""]
[null,null,null,null,null,""]
[null,null,null,null,null,""]
[null,null,null,null,null,""]
[null,null,null,null,null,""]
[null,null,null,null,null,""]
[null,null,null,null,null,""]
[null,null,null,null,null,""]
[null,null,null,null,null,""]
[null,null,null,null,null,""]
[null,null,null,null,null,""]
[null,null,null,null,null,""]
[null,null,null,null,null,""]
[null,null,null,null,null,""]
[null,null,null,null,null,""]
[null,null,null,null,null,""]
[null,null,null,null,null,""]
[null,null,null,null,null,""]
[null,null,null,null,null,""]
[null,null,null,null,null,""]
[null,null,null,null,null,""]
[null,null,null,null,null,""]
[null,null,null,null,null,""]
[null,null,null,null,null,""]
[null,null,null,null,null,""]
[null,null,null,null,null,""]
[null,null,null,null,null,""]
[null,null,null,null,null,""]
[null,null,null,null,null,""]
[null,null,null,null,null,""]
[null,null,null,null,null,""]
[null,null,null,null,null,""]
[null,null,null,null,null,""]
[null,null,null,null,null,""]
[null,null,null,null,null,""]
[null,null,null,null,null,""]
[null,null,null,null,null,""]
[null,null,null,null,null,""]
[null,null,null,null,null,""]
[null,null,null,null,null,""]
[null,null,null,null,null,""]
[null,null,null,null,null,""]
[null,null,null,null,null,""]
[null,null,null,null,null,""]
[null,null,null,null,null,""]
[null,null,null,null,null,""]
[null,null,null,null,null,""]
[null,null,null,null,null,{"$f":"IF(C85=\"\",\"\",C85+D85)","v":""}]
[null,null,null,null,null,""]
[null,null,null,null,null,""]
[null,null,null,null,null,""]
[null,null,null,null,null,""]
[null,null,null,null,null,""]
[null,null,null,null,null,""]
[null,null,null,null,null,""]
[null,null,null,null,null,""]
[null,null,null,null,null,""]
[null,null,null,null,null,""]
[null,null,null,null,null,""]
[null,null,null,null,null,""]
[null,null,null,null,null,""]
[null,null,null,null,null,""]
[null,null,null,null,null,""]
[null,null,null,null,null,""]
[null,null,null,null,null,""]
[null,null,null,null,null,""]
[null,null,null,null,null,""]
[null,null,null,null,null,""]
[null,null,null,null,null,""]
[null,null,null,null,null,""]
[null,null,null,null,null,""]
[null,null,null,null,null,""]
[null,null,null,null,null,""]
[null,null,null,null,null,""]
[null,null,null,null,null,""]
[null,null,null,null,null,""]
[null,null,null,null,null,""]
[null,null,null,null,null,""]
[null,null,null,null,null,""]
[null,null,null,null,null,""]
[null,null,null,null,null,""]
[null,null,null,null,null,""]
[null,null,null,null,null,""]
[null,null,null,null,null,""]
[null,null,null,null,null,""]
[null,null,null,null,null,""]
[null,null,null,null,null,""]
[null,null,null,null,null,""]
[null,null,null,null,null,""]
[null,null,null,null,null,""]
[null,null,null,null,null,""]
[null,null,null,null,null,""]
[null,null,null,null,null,""]
[null,null,null,null,null,""]
[null,null,null,null,null,""]
[null,null,null,null,null,""]
[null,null,null,null,null,""]
[null,null,null,null,null,""]
[null,null,null,null,null,""]
[null,null,null,null,null,""]
[null,null,null,null,null,""]
[null,null,null,null,null,""]
[null,null,null,null,null,""]
[null,null,null,null,null,""]
[null,null,null,null,null,""]
[null,null,null,null,null,""]
[null,null,null,null,null,""]
[null,null,null,null,null,""]
[null,null,null,null,null,""]
[null,null,null,null,null,""]
[null,null,null,null,null,""]
[null,null,null,null,null,{"$f":"IF(C149=\"\",\"\",C149+D149)","v":""}]
[null,null,null,null,null,""]
[null,null,null,null,null,""]
[null,null,null,null,null,""]
[null,null,null,null,null,""]
[null,null,null,null,null,""]
[null,null,null,null,null,""]
[null,null,null,null,null,""]
[null,null,null,null,null,""]
[null,null,null,null,null,""]
[null,null,null,null,null,""]
[null,null,null,null,null,""]
[null,null,null,null,null,""]
[null,null,null,null,null,""]
[null,null,null,null,null,""]
[null,null,null,null,null,""]
[null,null,null,null,null,""]
[null,null,null,null,null,""]
[null,null,null,null,null,""]
[null,null,null,null,null,""]
[null,null,null,null,null,""]
[null,null,null,null,null,""]
[null,null,null,null,null,""]
[null,null,null,null,null,""]
[null,null,null,null,null,""]
[null,null,null,null,null,""]
[null,null,null,null,null,""]
[null,null,null,null,null,""]
[null,null,null,null,null,""]
[null,null,null,null,null,""]
[null,null,null,null,null,""]
[null,null,null,null,null,""]
[null,null,null,null,null,""]
[null,null,null,null,null,""]
[null,null,null,null,null,""]
[null,null,null,null,null,""]
[null,null,null,null,null,""]
[null,null,null,null,null,""]
[null,null,null,null,null,""]
[null,null,null,null,null,""]
[null,null,null,null,null,""]
[null,null,null,null,null,""]
[null,null,null,null,null,""]
[null,null,null,null,null,""]
[null,null,null,null,null,""]
[null,null,null,null,null,""]
[null,null,null,null,null,""]
[null,null,null,null,null,""]
[null,null,null,null,null,""]
[null,null,null,null,null,""]
[null,null,null,null,null,""]
[null,null,null,null,null,""]

{"sheet":"Detailed TCO Comparison","index":10,"n_rows":27,"n_cols":7,"rows_kept":27,"cut":false,"hidden":false,"merged":[[16,1,16,5],[17,1,17,3]]}
["Detailed TCO  over useful life comparison (per unit)"]
[]
[]
[]
[]
[]
[]
[]
[]
[]
[]
[]
[]
[]
[]
[]
[null,"To expand a technology to look at models, click on the plus (+) button below"]
[null,"* after name indicates CCEOP eligible product"]
[null,null,"Average of Unit cost ","Average of Spare parts","Average of Installation costs","Average of energy costs","Average of Maintenance & Repairs"]
[null,"WICR FR",28016.666000000005,0,1728,35634.949999999997,840]
[null,"ILR",1436.278721875,355.49991303125006,748,1035.3453124999999,1186.6666666666667]
[null,"SDD",4977.8065187500006,552.37113568749987,1042,0,1075]
[null,"Freezer",1646.7952700000001,362.3686574333334,716,1926.4700000000005,1186.6666666666663]
[null,"LT passive",960.50333333333344,0,316,0,528]
[null,"Solar w battery",3907.000140000001,429.76522180000001,1042,0,1811.5546666666664]
[null,"Gas",1823.5474999999999,103.41193333333335,441,4096.76,580]
[null,"Kerosene",1976.5931666666668,143.92336383333335,441,3843.4499999999994,926]

{"sheet":"Cost per Liter Comparison","index":11,"n_rows":26,"n_cols":5,"rows_kept":26,"cut":false,"hidden":false,"merged":[[15,1,15,5],[16,1,16,3]]}
["Cost per liter of storage comparison"]
[]
[]
[]
[]
[]
[]
[]
[]
[]
[]
[]
[]
[]
[]
[null,"To expand a technology to look at models, click on the plus (+) button below"]
[null,"* after name indicates CCEOP eligible product"]
[null,"","Average of Capex per liter","Average of Opex over useful life per liter","Average of Total cost per liter"]
[null,"WICR FR",5.0766798799999995,5.8709101000000015,10.947589979999998]
[null,"ILR",33.075612315415341,33.359757075586764,66.435369391002084]
[null,"SDD",147.48606224277319,26.443402665298297,173.92946490807142]
[null,"Freezer",21.854870480379677,18.589861880224568,40.444732360604235]
[null,"LT passive",215.89228395061727,72.19259259259259,288.08487654320987]
[null,"Solar w/battery",97.355470283852526,24.814685538098903,122.17015582195143]
[null,"Gas",92.842334983660137,170.91025475341652,263.75258973707668]
[null,"Kerosene",110.02028150280751,162.18228758169934,272.20256908450688]

{"sheet":"ROI","index":12,"n_rows":38,"n_cols":9,"rows_kept":38,"cut":false,"hidden":true,"merged":[[18,1,19,8]]}
[null,"Return on investment and impact analysis"]
[null,"Immunization Schedule"]
[null,"Vaccines (select from dropdown)","National coverage","Annual vaccine volume demand (cm3)","# of vaccinated children per year","# of doses (children x schedule)","Value of vaccines per year","Cost over forecast horizon","present value of vaccines over forecast"]
[null,"BCG-lyophilized-20",0.9,{"$f":"IF(B4=\"--\",\"\",VLOOKUP(B4,vaccines!$B:$O,14,FALSE)*Population*BirthRate*ROI!C4)","v":365625},{"$f":"IF(B4=\"--\",\"\",D4/VLOOKUP(ROI!B4,vaccines!$B:$O,14,FALSE))","v":112500},{"$f":"IF(B4=\"--\",\"\",VLOOKUP(B4,vaccines!$B:$W,7,FALSE)*E4)","v":112500},{"$f":"IF(B4=\"--\",\"\",F4*VLOOKUP(B4,vaccines!$B:$W,22,FALSE))","v":15412.500000000002},{"$f":"IF(B4=\"--\",\"\",G4*'Total Solution Costs'!$B$2)","v":154125.00000000003},{"$f":"IF(B4=\"--\",\"\",PV(DiscountRate,'Total Solution Costs'!$B$2,-G4,,1))","v":154125.00000000003}]
[null,"TT-liquid-20",0.9,{"$f":"IF(B5=\"--\",\"\",VLOOKUP(B5,vaccines!$B:$O,14,FALSE)*Population*BirthRate*ROI!C5)","v":602043.75},{"$f":"IF(B5=\"--\",\"\",D5/VLOOKUP(ROI!B5,vaccines!$B:$O,14,FALSE))","v":112500},{"$f":"IF(B5=\"--\",\"\",VLOOKUP(B5,vaccines!$B:$W,7,FALSE)*E5)","v":225000},{"$f":"IF(B5=\"--\",\"\",F5*VLOOKUP(B5,vaccines!$B:$W,22,FALSE))","v":11250},{"$f":"IF(B5=\"--\",\"\",G5*'Total Solution Costs'!$B$2)","v":112500},{"$f":"IF(B5=\"--\",\"\",PV(DiscountRate,'Total Solution Costs'!$B$2,-G5,,1))","v":112500}]
[null,"Measles-lyophilized-5",0.9,{"$f":"IF(B6=\"--\",\"\",VLOOKUP(B6,vaccines!$B:$O,14,FALSE)*Population*BirthRate*ROI!C6)","v":3234705.8823529407},{"$f":"IF(B6=\"--\",\"\",D6/VLOOKUP(ROI!B6,vaccines!$B:$O,14,FALSE))","v":112500},{"$f":"IF(B6=\"--\",\"\",VLOOKUP(B6,vaccines!$B:$W,7,FALSE)*E6)","v":225000},{"$f":"IF(B6=\"--\",\"\",F6*VLOOKUP(B6,vaccines!$B:$W,22,FALSE))","v":145934.99999999997},{"$f":"IF(B6=\"--\",\"\",G6*'Total Solution Costs'!$B$2)","v":1459349.9999999998},{"$f":"IF(B6=\"--\",\"\",PV(DiscountRate,'Total Solution Costs'!$B$2,-G6,,1))","v":1459349.9999999998}]
[null,"OPV-liquid-20",0.9,{"$f":"IF(B7=\"--\",\"\",VLOOKUP(B7,vaccines!$B:$O,14,FALSE)*Population*BirthRate*ROI!C7)","v":388125},{"$f":"IF(B7=\"--\",\"\",D7/VLOOKUP(ROI!B7,vaccines!$B:$O,14,FALSE))","v":112500.00000000001},{"$f":"IF(B7=\"--\",\"\",VLOOKUP(B7,vaccines!$B:$W,7,FALSE)*E7)","v":450000.00000000006},{"$f":"IF(B7=\"--\",\"\",F7*VLOOKUP(B7,vaccines!$B:$W,22,FALSE))","v":59265},{"$f":"IF(B7=\"--\",\"\",G7*'Total Solution Costs'!$B$2)","v":592650},{"$f":"IF(B7=\"--\",\"\",PV(DiscountRate,'Total Solution Costs'!$B$2,-G7,,1))","v":592650}]
[null,"DTP-HepB-Hib-liquid-10",0.9,{"$f":"IF(B8=\"--\",\"\",VLOOKUP(B8,vaccines!$B:$O,14,FALSE)*Population*BirthRate*ROI!C8)","v":1091911.7647058824},{"$f":"IF(B8=\"--\",\"\",D8/VLOOKUP(ROI!B8,vaccines!$B:$O,14,FALSE))","v":112500.00000000001},{"$f":"IF(B8=\"--\",\"\",VLOOKUP(B8,vaccines!$B:$W,7,FALSE)*E8)","v":337500.00000000006},{"$f":"IF(B8=\"--\",\"\",F8*VLOOKUP(B8,vaccines!$B:$W,22,FALSE))","v":513000.00000000012},{"$f":"IF(B8=\"--\",\"\",G8*'Total Solution Costs'!$B$2)","v":5130000.0000000009},{"$f":"IF(B8=\"--\",\"\",PV(DiscountRate,'Total Solution Costs'!$B$2,-G8,,1))","v":5130000.0000000009}]
[null,"PCV-13-liquid-1",0.9,{"$f":"IF(B9=\"--\",\"\",VLOOKUP(B9,vaccines!$B:$O,14,FALSE)*Population*BirthRate*ROI!C9)","v":4094318.1818181826},{"$f":"IF(B9=\"--\",\"\",D9/VLOOKUP(ROI!B9,vaccines!$B:$O,14,FALSE))","v":112500.00000000003},{"$f":"IF(B9=\"--\",\"\",VLOOKUP(B9,vaccines!$B:$W,7,FALSE)*E9)","v":337500.00000000012},{"$f":"IF(B9=\"--\",\"\",F9*VLOOKUP(B9,vaccines!$B:$W,22,FALSE))","v":1113750.0000000002},{"$f":"IF(B9=\"--\",\"\",G9*'Total Solution Costs'!$B$2)","v":11137500.000000002},{"$f":"IF(B9=\"--\",\"\",PV(DiscountRate,'Total Solution Costs'!$B$2,-G9,,1))","v":11137500.000000002}]
[null,"Rota_liq-liquid-1",0.9,{"$f":"IF(B10=\"--\",\"\",VLOOKUP(B10,vaccines!$B:$O,14,FALSE)*Population*BirthRate*ROI!C10)","v":{"$error":"#N/A"}},{"$f":"IF(B10=\"--\",\"\",D10/VLOOKUP(ROI!B10,vaccines!$B:$O,14,FALSE))","v":{"$error":"#N/A"}},{"$f":"IF(B10=\"--\",\"\",VLOOKUP(B10,vaccines!$B:$W,7,FALSE)*E10)","v":{"$error":"#N/A"}},{"$f":"IF(B10=\"--\",\"\",F10*VLOOKUP(B10,vaccines!$B:$W,22,FALSE))","v":{"$error":"#N/A"}},{"$f":"IF(B10=\"--\",\"\",G10*'Total Solution Costs'!$B$2)","v":{"$error":"#N/A"}},{"$f":"IF(B10=\"--\",\"\",PV(DiscountRate,'Total Solution Costs'!$B$2,-G10,,1))","v":{"$error":"#N/A"}}]
[null,"--",null,{"$f":"IF(B11=\"--\",\"\",VLOOKUP(B11,vaccines!$B:$O,14,FALSE)*Population*BirthRate*ROI!C11)","v":""},{"$f":"IF(B11=\"--\",\"\",D11/VLOOKUP(ROI!B11,vaccines!$B:$O,14,FALSE))","v":""},{"$f":"IF(B11=\"--\",\"\",VLOOKUP(B11,vaccines!$B:$W,7,FALSE)*E11)","v":""},{"$f":"IF(B11=\"--\",\"\",F11*VLOOKUP(B11,vaccines!$B:$W,22,FALSE))","v":""},{"$f":"IF(B11=\"--\",\"\",G11*'Total Solution Costs'!$B$2)","v":""},{"$f":"IF(B11=\"--\",\"\",PV(DiscountRate,'Total Solution Costs'!$B$2,-G11,,1))","v":""}]
[null,"--",null,{"$f":"IF(B12=\"--\",\"\",VLOOKUP(B12,vaccines!$B:$O,14,FALSE)*Population*BirthRate*ROI!C12)","v":""},{"$f":"IF(B12=\"--\",\"\",D12/VLOOKUP(ROI!B12,vaccines!$B:$O,14,FALSE))","v":""},{"$f":"IF(B12=\"--\",\"\",VLOOKUP(B12,vaccines!$B:$W,7,FALSE)*E12)","v":""},{"$f":"IF(B12=\"--\",\"\",F12*VLOOKUP(B12,vaccines!$B:$W,22,FALSE))","v":""},{"$f":"IF(B12=\"--\",\"\",G12*'Total Solution Costs'!$B$2)","v":""},{"$f":"IF(B12=\"--\",\"\",PV(DiscountRate,'Total Solution Costs'!$B$2,-G12,,1))","v":""}]
[null,"--",null,{"$f":"IF(B13=\"--\",\"\",VLOOKUP(B13,vaccines!$B:$O,14,FALSE)*Population*BirthRate*ROI!C13)","v":""},{"$f":"IF(B13=\"--\",\"\",D13/VLOOKUP(ROI!B13,vaccines!$B:$O,14,FALSE))","v":""},{"$f":"IF(B13=\"--\",\"\",VLOOKUP(B13,vaccines!$B:$W,7,FALSE)*E13)","v":""},{"$f":"IF(B13=\"--\",\"\",F13*VLOOKUP(B13,vaccines!$B:$W,22,FALSE))","v":""},{"$f":"IF(B13=\"--\",\"\",G13*'Total Solution Costs'!$B$2)","v":""},{"$f":"IF(B13=\"--\",\"\",PV(DiscountRate,'Total Solution Costs'!$B$2,-G13,,1))","v":""}]
[null,"--",null,{"$f":"IF(B14=\"--\",\"\",VLOOKUP(B14,vaccines!$B:$O,14,FALSE)*Population*BirthRate*ROI!C14)","v":""},{"$f":"IF(B14=\"--\",\"\",D14/VLOOKUP(ROI!B14,vaccines!$B:$O,14,FALSE))","v":""},{"$f":"IF(B14=\"--\",\"\",VLOOKUP(B14,vaccines!$B:$W,7,FALSE)*E14)","v":""},{"$f":"IF(B14=\"--\",\"\",F14*VLOOKUP(B14,vaccines!$B:$W,22,FALSE))","v":""},{"$f":"IF(B14=\"--\",\"\",G14*'Total Solution Costs'!$B$2)","v":""},{"$f":"IF(B14=\"--\",\"\",PV(DiscountRate,'Total Solution Costs'!$B$2,-G14,,1))","v":""}]
[]
[null,"Financial metrics"]
[null,"Values are calculated in # of years in the forecast horizon in \"Forecasted NPV Costs\" worksheet"]
[null,"CCE solution cost (NPV)"," ------>",{"$f":"GETPIVOTDATA(\"Average of Net Present Value (Driven by years of planning)\",'Total Solution Costs'!$A$24)","v":{"$error":"#REF!"}},null,null,null,"Net Present Value of vaccines",{"$f":"SUM(I4:I14)","v":{"$error":"#N/A"}}]
[null,"Note: The default value above ^ is the average solution cost of ALL CCE. For proper analysis enter the solution cost for a specific model found in the \"Forecasted NPV Costs\" worksheet."]
[]
[]
[null,"Total investment",null,{"$f":"D18+I18","v":{"$error":"#REF!"}},null,"Total net present value of the vaccines procured and CCE for the target population"]
[null,"Number of vaccinations ",null,{"$f":"SUM(E4:E14)*'Total Solution Costs'!B2","v":{"$error":"#N/A"}},null,"Total # of full vaccine schedules completed over forecast (not including a wastage factor yet)"]
[null,"Number of doses",null,{"$f":"SUM(F4:F14)*'Total Solution Costs'!B2","v":{"$error":"#N/A"}}]
[null,"Total cost per fully vaccinated  child",null,{"$f":"D22/D23","v":{"$error":"#REF!"}},null,"Based on the immunization schedule and coverage targets above"]
[null,"Total Cost per dose",null,{"$f":"D22/D24","v":{"$error":"#REF!"}}]
[null,"Total storage cost per vaccinated child",null,{"$f":"D18/D23","v":{"$error":"#REF!"}},null,"Cost of storage solution divided by # of vaccinated children"]
[null,"Total storage cost per dose",null,{"$f":"D18/D24","v":{"$error":"#REF!"}},null,"Cost of storage solution divided by # of doses"]
[null,"Breakeven (years)",null,{"$f":"(D18/I18)*'Total Solution Costs'!B2","v":{"$error":"#REF!"}},null,"Years it will take for value of vaccines protected to equal the cost of CCE solution"]
[null,"Storage as a % of total solution",null,{"$f":"D18/D22","v":{"$error":"#REF!"}}]
[]
[null,"Energy savings of new equipment?",null,"NPV of fuel costs over forecast",null,null,"Current absorption equipment (drop down)"]
[]
[null,"Health impact metrics"]
[null,"Wastage reduction",null,0.02,null,null,{"$f":"D23*D35*D25","v":{"$error":"#N/A"}},null,"how much impact freezing?  Heat?"]
[null,"Incremental vaccinations",null,0.01,null,null,{"$f":"D23*D36*D25","v":{"$error":"#N/A"}}]
[]
[null,"Add screen scrape macro to pull findings per solution."]

{"sheet":"Solution costs = =>","index":13,"n_rows":6,"n_cols":3,"rows_kept":6,"cut":false,"hidden":false,"merged":[[1,1,1,3],[2,2,2,13],[3,2,3,13],[4,1,4,3],[5,2,5,13]]}
[]
[null,"Total Solution Cost"]
[null,null,"Provides the total costs for a solution that meets the CCE scenario needs. This incorporates the number of facilities to equip and storage needs per re-supply period as well as the useful life of equipment compared to the forecast horizon."]
[]
[null,"Cash Flows Comparison"]
[null,null,"Graphical representation of the solution costs by year for selected equipment. Allows visualization for cash flow planning based on equipment useful life (hardware, solar panels, batteries). Parts are not included in the chart."]

{"sheet":"Total Solution Costs","index":14,"n_rows":212,"n_cols":14,"rows_kept":212,"cut":false,"hidden":false,"merged":[]}
["Total solution costs over forecasted years"]
["Forecast horizon",10,"<-- Select number of years to calculate (up to 20)"]
[]
[]
[]
[]
[]
[]
[]
[]
[]
[]
[]
[]
[]
[]
[]
[]
["Cold chain level (segmentation) evaluated",null,{"$f":"facilitysegment","v":"User-defined field"}]
["Number of facilities to equip",null,{"$f":"NumberFacilitiestoEquip","v":10}]
["Needed storage volume per facility",null,{"$f":"LitersPerFacility","v":12.5}]
["When selecting a capacity segment, it may be useful to select the next larger segment as well to compare costs for larger equipment."]
["* after name indicates CCEOP eligible product"]
["Technology/Model","Solution Cost","Number of Units required","Useful life (years)","Unit price","Opex per year","TCO per unit","Net vaccine capacity (liters)","Gross freezer capacity (liters)","Operating range (°C)","Holdover (hours)","Shipping weight (kg)","Dimensions","TechNet review"]
["WICR FR",540612.9933333334,10,15,{"$f":"IFERROR(VLOOKUP($A25,PQS!$D$5:$AU$107,MATCH(PQS!$Q$3,PQS!$D$3:$AU$3,0),FALSE),\"\")","v":""},{"$f":"IFERROR(VLOOKUP($A25,PQS!$D$5:$AU$107,MATCH(PQS!$AL$3,PQS!$D$3:$AU$3,0),FALSE),\"\")","v":""},{"$f":"IF(E25=\"\",\"\",(B25/C25))","v":""},{"$f":"IFERROR(VLOOKUP($A25,PQS!$D$5:$AU$107,MATCH(PQS!$I$3,PQS!$D$3:$AU$3,0),FALSE),\"\")","v":""},{"$f":"IFERROR(VLOOKUP($A25,PQS!$D$5:$AU$107,MATCH(PQS!$J$3,PQS!$D$3:$AU$3,0),FALSE),\"\")","v":""},{"$f":"IFERROR(VLOOKUP($A25,PQS!$D$5:$AU$107,MATCH(PQS!$AK$3,PQS!$D$3:$AU$3,0),FALSE),\"\")","v":""},{"$f":"IFERROR(VLOOKUP($A25,PQS!$D$5:$AU$107,COLUMN(PQS!$AA$5)-3,FALSE),\"\")","v":""},{"$f":"IFERROR(VLOOKUP($A25,PQS!$D$5:$AU$107,MATCH(PQS!$H$3,PQS!$D$3:$AU$3,0),FALSE),\"\")","v":""},{"$f":"IFERROR(VLOOKUP($A25,PQS!$D$5:$AU$107,MATCH(PQS!$AF$3,PQS!$D$3:$AU$3,0),FALSE),\"\")","v":""},{"$f":"IFERROR(HYPERLINK(VLOOKUP($A25,PQS!$D$5:$AU$107,MATCH(PQS!$AJ$3,PQS!$D$3:$AU$3,0),FALSE),VLOOKUP($A25,PQS!$D$5:$AU$107,MATCH(PQS!$AI$3,PQS!$D$3:$AU$3,0),FALSE)),\"\")","v":""}]
["ILR",47617.906140729174,10,10,{"$f":"IFERROR(VLOOKUP($A26,PQS!$D$5:$AU$107,MATCH(PQS!$Q$3,PQS!$D$3:$AU$3,0),FALSE),\"\")","v":""},{"$f":"IFERROR(VLOOKUP($A26,PQS!$D$5:$AU$107,MATCH(PQS!$AL$3,PQS!$D$3:$AU$3,0),FALSE),\"\")","v":""},{"$f":"IF(E26=\"\",\"\",(B26/C26))","v":""},{"$f":"IFERROR(VLOOKUP($A26,PQS!$D$5:$AU$107,MATCH(PQS!$I$3,PQS!$D$3:$AU$3,0),FALSE),\"\")","v":""},{"$f":"IFERROR(VLOOKUP($A26,PQS!$D$5:$AU$107,MATCH(PQS!$J$3,PQS!$D$3:$AU$3,0),FALSE),\"\")","v":""},{"$f":"IFERROR(VLOOKUP($A26,PQS!$D$5:$AU$107,MATCH(PQS!$AK$3,PQS!$D$3:$AU$3,0),FALSE),\"\")","v":""},{"$f":"IFERROR(VLOOKUP($A26,PQS!$D$5:$AU$107,COLUMN(PQS!$AA$5)-3,FALSE),\"\")","v":""},{"$f":"IFERROR(VLOOKUP($A26,PQS!$D$5:$AU$107,MATCH(PQS!$H$3,PQS!$D$3:$AU$3,0),FALSE),\"\")","v":""},{"$f":"IFERROR(VLOOKUP($A26,PQS!$D$5:$AU$107,MATCH(PQS!$AF$3,PQS!$D$3:$AU$3,0),FALSE),\"\")","v":""},{"$f":"IFERROR(HYPERLINK(VLOOKUP($A26,PQS!$D$5:$AU$107,MATCH(PQS!$AJ$3,PQS!$D$3:$AU$3,0),FALSE),VLOOKUP($A26,PQS!$D$5:$AU$107,MATCH(PQS!$AI$3,PQS!$D$3:$AU$3,0),FALSE)),\"\")","v":""}]
["SDD",78346.77654437501,10,10,{"$f":"IFERROR(VLOOKUP($A27,PQS!$D$5:$AU$107,MATCH(PQS!$Q$3,PQS!$D$3:$AU$3,0),FALSE),\"\")","v":""},{"$f":"IFERROR(VLOOKUP($A27,PQS!$D$5:$AU$107,MATCH(PQS!$AL$3,PQS!$D$3:$AU$3,0),FALSE),\"\")","v":""},"",{"$f":"IFERROR(VLOOKUP($A27,PQS!$D$5:$AU$107,MATCH(PQS!$I$3,PQS!$D$3:$AU$3,0),FALSE),\"\")","v":""},{"$f":"IFERROR(VLOOKUP($A27,PQS!$D$5:$AU$107,MATCH(PQS!$J$3,PQS!$D$3:$AU$3,0),FALSE),\"\")","v":""},{"$f":"IFERROR(VLOOKUP($A27,PQS!$D$5:$AU$107,MATCH(PQS!$AK$3,PQS!$D$3:$AU$3,0),FALSE),\"\")","v":""},{"$f":"IFERROR(VLOOKUP($A27,PQS!$D$5:$AU$107,COLUMN(PQS!$AA$5)-3,FALSE),\"\")","v":""},{"$f":"IFERROR(VLOOKUP($A27,PQS!$D$5:$AU$107,MATCH(PQS!$H$3,PQS!$D$3:$AU$3,0),FALSE),\"\")","v":""},{"$f":"IFERROR(VLOOKUP($A27,PQS!$D$5:$AU$107,MATCH(PQS!$AF$3,PQS!$D$3:$AU$3,0),FALSE),\"\")","v":""},{"$f":"IFERROR(HYPERLINK(VLOOKUP($A27,PQS!$D$5:$AU$107,MATCH(PQS!$AJ$3,PQS!$D$3:$AU$3,0),FALSE),VLOOKUP($A27,PQS!$D$5:$AU$107,MATCH(PQS!$AI$3,PQS!$D$3:$AU$3,0),FALSE)),\"\")","v":""}]
["Freezer",58383.005940999996,10,10,{"$f":"IFERROR(VLOOKUP($A28,PQS!$D$5:$AU$107,MATCH(PQS!$Q$3,PQS!$D$3:$AU$3,0),FALSE),\"\")","v":""},{"$f":"IFERROR(VLOOKUP($A28,PQS!$D$5:$AU$107,MATCH(PQS!$AL$3,PQS!$D$3:$AU$3,0),FALSE),\"\")","v":""},"",{"$f":"IFERROR(VLOOKUP($A28,PQS!$D$5:$AU$107,MATCH(PQS!$I$3,PQS!$D$3:$AU$3,0),FALSE),\"\")","v":""},{"$f":"IFERROR(VLOOKUP($A28,PQS!$D$5:$AU$107,MATCH(PQS!$J$3,PQS!$D$3:$AU$3,0),FALSE),\"\")","v":""},{"$f":"IFERROR(VLOOKUP($A28,PQS!$D$5:$AU$107,MATCH(PQS!$AK$3,PQS!$D$3:$AU$3,0),FALSE),\"\")","v":""},{"$f":"IFERROR(VLOOKUP($A28,PQS!$D$5:$AU$107,COLUMN(PQS!$AA$5)-3,FALSE),\"\")","v":""},{"$f":"IFERROR(VLOOKUP($A28,PQS!$D$5:$AU$107,MATCH(PQS!$H$3,PQS!$D$3:$AU$3,0),FALSE),\"\")","v":""},{"$f":"IFERROR(VLOOKUP($A28,PQS!$D$5:$AU$107,MATCH(PQS!$AF$3,PQS!$D$3:$AU$3,0),FALSE),\"\")","v":""},{"$f":"IFERROR(HYPERLINK(VLOOKUP($A28,PQS!$D$5:$AU$107,MATCH(PQS!$AJ$3,PQS!$D$3:$AU$3,0),FALSE),VLOOKUP($A28,PQS!$D$5:$AU$107,MATCH(PQS!$AI$3,PQS!$D$3:$AU$3,0),FALSE)),\"\")","v":""}]
["LT passive",86350.2,46.666666666666664,8,{"$f":"IFERROR(VLOOKUP($A29,PQS!$D$5:$AU$107,MATCH(PQS!$Q$3,PQS!$D$3:$AU$3,0),FALSE),\"\")","v":""},{"$f":"IFERROR(VLOOKUP($A29,PQS!$D$5:$AU$107,MATCH(PQS!$AL$3,PQS!$D$3:$AU$3,0),FALSE),\"\")","v":""},"",{"$f":"IFERROR(VLOOKUP($A29,PQS!$D$5:$AU$107,MATCH(PQS!$I$3,PQS!$D$3:$AU$3,0),FALSE),\"\")","v":""},{"$f":"IFERROR(VLOOKUP($A29,PQS!$D$5:$AU$107,MATCH(PQS!$J$3,PQS!$D$3:$AU$3,0),FALSE),\"\")","v":""},{"$f":"IFERROR(VLOOKUP($A29,PQS!$D$5:$AU$107,MATCH(PQS!$AK$3,PQS!$D$3:$AU$3,0),FALSE),\"\")","v":""},{"$f":"IFERROR(VLOOKUP($A29,PQS!$D$5:$AU$107,COLUMN(PQS!$AA$5)-3,FALSE),\"\")","v":""},{"$f":"IFERROR(VLOOKUP($A29,PQS!$D$5:$AU$107,MATCH(PQS!$H$3,PQS!$D$3:$AU$3,0),FALSE),\"\")","v":""},{"$f":"IFERROR(VLOOKUP($A29,PQS!$D$5:$AU$107,MATCH(PQS!$AF$3,PQS!$D$3:$AU$3,0),FALSE),\"\")","v":""},{"$f":"IFERROR(HYPERLINK(VLOOKUP($A29,PQS!$D$5:$AU$107,MATCH(PQS!$AJ$3,PQS!$D$3:$AU$3,0),FALSE),VLOOKUP($A29,PQS!$D$5:$AU$107,MATCH(PQS!$AI$3,PQS!$D$3:$AU$3,0),FALSE)),\"\")","v":""}]
["Solar w/battery",91953.100284666667,10,10,{"$f":"IFERROR(VLOOKUP($A30,PQS!$D$5:$AU$107,MATCH(PQS!$Q$3,PQS!$D$3:$AU$3,0),FALSE),\"\")","v":""},{"$f":"IFERROR(VLOOKUP($A30,PQS!$D$5:$AU$107,MATCH(PQS!$AL$3,PQS!$D$3:$AU$3,0),FALSE),\"\")","v":""},"",{"$f":"IFERROR(VLOOKUP($A30,PQS!$D$5:$AU$107,MATCH(PQS!$I$3,PQS!$D$3:$AU$3,0),FALSE),\"\")","v":""},{"$f":"IFERROR(VLOOKUP($A30,PQS!$D$5:$AU$107,MATCH(PQS!$J$3,PQS!$D$3:$AU$3,0),FALSE),\"\")","v":""},{"$f":"IFERROR(VLOOKUP($A30,PQS!$D$5:$AU$107,MATCH(PQS!$AK$3,PQS!$D$3:$AU$3,0),FALSE),\"\")","v":""},{"$f":"IFERROR(VLOOKUP($A30,PQS!$D$5:$AU$107,COLUMN(PQS!$AA$5)-3,FALSE),\"\")","v":""},{"$f":"IFERROR(VLOOKUP($A30,PQS!$D$5:$AU$107,MATCH(PQS!$H$3,PQS!$D$3:$AU$3,0),FALSE),\"\")","v":""},{"$f":"IFERROR(VLOOKUP($A30,PQS!$D$5:$AU$107,MATCH(PQS!$AF$3,PQS!$D$3:$AU$3,0),FALSE),\"\")","v":""},{"$f":"IFERROR(HYPERLINK(VLOOKUP($A30,PQS!$D$5:$AU$107,MATCH(PQS!$AJ$3,PQS!$D$3:$AU$3,0),FALSE),VLOOKUP($A30,PQS!$D$5:$AU$107,MATCH(PQS!$AI$3,PQS!$D$3:$AU$3,0),FALSE)),\"\")","v":""}]
["Gas",70447.194333333333,10,10,{"$f":"IFERROR(VLOOKUP($A31,PQS!$D$5:$AU$107,MATCH(PQS!$Q$3,PQS!$D$3:$AU$3,0),FALSE),\"\")","v":""},{"$f":"IFERROR(VLOOKUP($A31,PQS!$D$5:$AU$107,MATCH(PQS!$AL$3,PQS!$D$3:$AU$3,0),FALSE),\"\")","v":""},"",{"$f":"IFERROR(VLOOKUP($A31,PQS!$D$5:$AU$107,MATCH(PQS!$I$3,PQS!$D$3:$AU$3,0),FALSE),\"\")","v":""},{"$f":"IFERROR(VLOOKUP($A31,PQS!$D$5:$AU$107,MATCH(PQS!$J$3,PQS!$D$3:$AU$3,0),FALSE),\"\")","v":""},{"$f":"IFERROR(VLOOKUP($A31,PQS!$D$5:$AU$107,MATCH(PQS!$AK$3,PQS!$D$3:$AU$3,0),FALSE),\"\")","v":""},{"$f":"IFERROR(VLOOKUP($A31,PQS!$D$5:$AU$107,COLUMN(PQS!$AA$5)-3,FALSE),\"\")","v":""},{"$f":"IFERROR(VLOOKUP($A31,PQS!$D$5:$AU$107,MATCH(PQS!$H$3,PQS!$D$3:$AU$3,0),FALSE),\"\")","v":""},{"$f":"IFERROR(VLOOKUP($A31,PQS!$D$5:$AU$107,MATCH(PQS!$AF$3,PQS!$D$3:$AU$3,0),FALSE),\"\")","v":""},{"$f":"IFERROR(HYPERLINK(VLOOKUP($A31,PQS!$D$5:$AU$107,MATCH(PQS!$AJ$3,PQS!$D$3:$AU$3,0),FALSE),VLOOKUP($A31,PQS!$D$5:$AU$107,MATCH(PQS!$AI$3,PQS!$D$3:$AU$3,0),FALSE)),\"\")","v":""}]
["Kerosene",73309.665304999988,10,10,{"$f":"IFERROR(VLOOKUP($A32,PQS!$D$5:$AU$107,MATCH(PQS!$Q$3,PQS!$D$3:$AU$3,0),FALSE),\"\")","v":""},{"$f":"IFERROR(VLOOKUP($A32,PQS!$D$5:$AU$107,MATCH(PQS!$AL$3,PQS!$D$3:$AU$3,0),FALSE),\"\")","v":""},"",{"$f":"IFERROR(VLOOKUP($A32,PQS!$D$5:$AU$107,MATCH(PQS!$I$3,PQS!$D$3:$AU$3,0),FALSE),\"\")","v":""},{"$f":"IFERROR(VLOOKUP($A32,PQS!$D$5:$AU$107,MATCH(PQS!$J$3,PQS!$D$3:$AU$3,0),FALSE),\"\")","v":""},{"$f":"IFERROR(VLOOKUP($A32,PQS!$D$5:$AU$107,MATCH(PQS!$AK$3,PQS!$D$3:$AU$3,0),FALSE),\"\")","v":""},{"$f":"IFERROR(VLOOKUP($A32,PQS!$D$5:$AU$107,COLUMN(PQS!$AA$5)-3,FALSE),\"\")","v":""},{"$f":"IFERROR(VLOOKUP($A32,PQS!$D$5:$AU$107,MATCH(PQS!$H$3,PQS!$D$3:$AU$3,0),FALSE),\"\")","v":""},{"$f":"IFERROR(VLOOKUP($A32,PQS!$D$5:$AU$107,MATCH(PQS!$AF$3,PQS!$D$3:$AU$3,0),FALSE),\"\")","v":""},{"$f":"IFERROR(HYPERLINK(VLOOKUP($A32,PQS!$D$5:$AU$107,MATCH(PQS!$AJ$3,PQS!$D$3:$AU$3,0),FALSE),VLOOKUP($A32,PQS!$D$5:$AU$107,MATCH(PQS!$AI$3,PQS!$D$3:$AU$3,0),FALSE)),\"\")","v":""}]
[null,null,null,null,{"$f":"IFERROR(VLOOKUP($A33,PQS!$D$5:$AU$107,MATCH(PQS!$Q$3,PQS!$D$3:$AU$3,0),FALSE),\"\")","v":""},{"$f":"IFERROR(VLOOKUP($A33,PQS!$D$5:$AU$107,MATCH(PQS!$AL$3,PQS!$D$3:$AU$3,0),FALSE),\"\")","v":""},"",{"$f":"IFERROR(VLOOKUP($A33,PQS!$D$5:$AU$107,MATCH(PQS!$I$3,PQS!$D$3:$AU$3,0),FALSE),\"\")","v":""},{"$f":"IFERROR(VLOOKUP($A33,PQS!$D$5:$AU$107,MATCH(PQS!$J$3,PQS!$D$3:$AU$3,0),FALSE),\"\")","v":""},{"$f":"IFERROR(VLOOKUP($A33,PQS!$D$5:$AU$107,MATCH(PQS!$AK$3,PQS!$D$3:$AU$3,0),FALSE),\"\")","v":""},{"$f":"IFERROR(VLOOKUP($A33,PQS!$D$5:$AU$107,COLUMN(PQS!$AA$5)-3,FALSE),\"\")","v":""},{"$f":"IFERROR(VLOOKUP($A33,PQS!$D$5:$AU$107,MATCH(PQS!$H$3,PQS!$D$3:$AU$3,0),FALSE),\"\")","v":""},{"$f":"IFERROR(VLOOKUP($A33,PQS!$D$5:$AU$107,MATCH(PQS!$AF$3,PQS!$D$3:$AU$3,0),FALSE),\"\")","v":""},{"$f":"IFERROR(HYPERLINK(VLOOKUP($A33,PQS!$D$5:$AU$107,MATCH(PQS!$AJ$3,PQS!$D$3:$AU$3,0),FALSE),VLOOKUP($A33,PQS!$D$5:$AU$107,MATCH(PQS!$AI$3,PQS!$D$3:$AU$3,0),FALSE)),\"\")","v":""}]
[null,null,null,null,{"$f":"IFERROR(VLOOKUP($A34,PQS!$D$5:$AU$107,MATCH(PQS!$Q$3,PQS!$D$3:$AU$3,0),FALSE),\"\")","v":""},{"$f":"IFERROR(VLOOKUP($A34,PQS!$D$5:$AU$107,MATCH(PQS!$AL$3,PQS!$D$3:$AU$3,0),FALSE),\"\")","v":""},"",{"$f":"IFERROR(VLOOKUP($A34,PQS!$D$5:$AU$107,MATCH(PQS!$I$3,PQS!$D$3:$AU$3,0),FALSE),\"\")","v":""},{"$f":"IFERROR(VLOOKUP($A34,PQS!$D$5:$AU$107,MATCH(PQS!$J$3,PQS!$D$3:$AU$3,0),FALSE),\"\")","v":""},{"$f":"IFERROR(VLOOKUP($A34,PQS!$D$5:$AU$107,MATCH(PQS!$AK$3,PQS!$D$3:$AU$3,0),FALSE),\"\")","v":""},{"$f":"IFERROR(VLOOKUP($A34,PQS!$D$5:$AU$107,COLUMN(PQS!$AA$5)-3,FALSE),\"\")","v":""},{"$f":"IFERROR(VLOOKUP($A34,PQS!$D$5:$AU$107,MATCH(PQS!$H$3,PQS!$D$3:$AU$3,0),FALSE),\"\")","v":""},{"$f":"IFERROR(VLOOKUP($A34,PQS!$D$5:$AU$107,MATCH(PQS!$AF$3,PQS!$D$3:$AU$3,0),FALSE),\"\")","v":""},{"$f":"IFERROR(HYPERLINK(VLOOKUP($A34,PQS!$D$5:$AU$107,MATCH(PQS!$AJ$3,PQS!$D$3:$AU$3,0),FALSE),VLOOKUP($A34,PQS!$D$5:$AU$107,MATCH(PQS!$AI$3,PQS!$D$3:$AU$3,0),FALSE)),\"\")","v":""}]
[null,null,null,null,{"$f":"IFERROR(VLOOKUP($A35,PQS!$D$5:$AU$107,MATCH(PQS!$Q$3,PQS!$D$3:$AU$3,0),FALSE),\"\")","v":""},{"$f":"IFERROR(VLOOKUP($A35,PQS!$D$5:$AU$107,MATCH(PQS!$AL$3,PQS!$D$3:$AU$3,0),FALSE),\"\")","v":""},"",{"$f":"IFERROR(VLOOKUP($A35,PQS!$D$5:$AU$107,MATCH(PQS!$I$3,PQS!$D$3:$AU$3,0),FALSE),\"\")","v":""},{"$f":"IFERROR(VLOOKUP($A35,PQS!$D$5:$AU$107,MATCH(PQS!$J$3,PQS!$D$3:$AU$3,0),FALSE),\"\")","v":""},{"$f":"IFERROR(VLOOKUP($A35,PQS!$D$5:$AU$107,MATCH(PQS!$AK$3,PQS!$D$3:$AU$3,0),FALSE),\"\")","v":""},{"$f":"IFERROR(VLOOKUP($A35,PQS!$D$5:$AU$107,COLUMN(PQS!$AA$5)-3,FALSE),\"\")","v":""},{"$f":"IFERROR(VLOOKUP($A35,PQS!$D$5:$AU$107,MATCH(PQS!$H$3,PQS!$D$3:$AU$3,0),FALSE),\"\")","v":""},{"$f":"IFERROR(VLOOKUP($A35,PQS!$D$5:$AU$107,MATCH(PQS!$AF$3,PQS!$D$3:$AU$3,0),FALSE),\"\")","v":""},{"$f":"IFERROR(HYPERLINK(VLOOKUP($A35,PQS!$D$5:$AU$107,MATCH(PQS!$AJ$3,PQS!$D$3:$AU$3,0),FALSE),VLOOKUP($A35,PQS!$D$5:$AU$107,MATCH(PQS!$AI$3,PQS!$D$3:$AU$3,0),FALSE)),\"\")","v":""}]
[null,null,null,null,{"$f":"IFERROR(VLOOKUP($A36,PQS!$D$5:$AU$107,MATCH(PQS!$Q$3,PQS!$D$3:$AU$3,0),FALSE),\"\")","v":""},{"$f":"IFERROR(VLOOKUP($A36,PQS!$D$5:$AU$107,MATCH(PQS!$AL$3,PQS!$D$3:$AU$3,0),FALSE),\"\")","v":""},"",{"$f":"IFERROR(VLOOKUP($A36,PQS!$D$5:$AU$107,MATCH(PQS!$I$3,PQS!$D$3:$AU$3,0),FALSE),\"\")","v":""},{"$f":"IFERROR(VLOOKUP($A36,PQS!$D$5:$AU$107,MATCH(PQS!$J$3,PQS!$D$3:$AU$3,0),FALSE),\"\")","v":""},{"$f":"IFERROR(VLOOKUP($A36,PQS!$D$5:$AU$107,MATCH(PQS!$AK$3,PQS!$D$3:$AU$3,0),FALSE),\"\")","v":""},{"$f":"IFERROR(VLOOKUP($A36,PQS!$D$5:$AU$107,COLUMN(PQS!$AA$5)-3,FALSE),\"\")","v":""},{"$f":"IFERROR(VLOOKUP($A36,PQS!$D$5:$AU$107,MATCH(PQS!$H$3,PQS!$D$3:$AU$3,0),FALSE),\"\")","v":""},{"$f":"IFERROR(VLOOKUP($A36,PQS!$D$5:$AU$107,MATCH(PQS!$AF$3,PQS!$D$3:$AU$3,0),FALSE),\"\")","v":""},{"$f":"IFERROR(HYPERLINK(VLOOKUP($A36,PQS!$D$5:$AU$107,MATCH(PQS!$AJ$3,PQS!$D$3:$AU$3,0),FALSE),VLOOKUP($A36,PQS!$D$5:$AU$107,MATCH(PQS!$AI$3,PQS!$D$3:$AU$3,0),FALSE)),\"\")","v":""}]
[null,null,null,null,{"$f":"IFERROR(VLOOKUP($A37,PQS!$D$5:$AU$107,MATCH(PQS!$Q$3,PQS!$D$3:$AU$3,0),FALSE),\"\")","v":""},{"$f":"IFERROR(VLOOKUP($A37,PQS!$D$5:$AU$107,MATCH(PQS!$AL$3,PQS!$D$3:$AU$3,0),FALSE),\"\")","v":""},"",{"$f":"IFERROR(VLOOKUP($A37,PQS!$D$5:$AU$107,MATCH(PQS!$I$3,PQS!$D$3:$AU$3,0),FALSE),\"\")","v":""},{"$f":"IFERROR(VLOOKUP($A37,PQS!$D$5:$AU$107,MATCH(PQS!$J$3,PQS!$D$3:$AU$3,0),FALSE),\"\")","v":""},{"$f":"IFERROR(VLOOKUP($A37,PQS!$D$5:$AU$107,MATCH(PQS!$AK$3,PQS!$D$3:$AU$3,0),FALSE),\"\")","v":""},{"$f":"IFERROR(VLOOKUP($A37,PQS!$D$5:$AU$107,COLUMN(PQS!$AA$5)-3,FALSE),\"\")","v":""},{"$f":"IFERROR(VLOOKUP($A37,PQS!$D$5:$AU$107,MATCH(PQS!$H$3,PQS!$D$3:$AU$3,0),FALSE),\"\")","v":""},{"$f":"IFERROR(VLOOKUP($A37,PQS!$D$5:$AU$107,MATCH(PQS!$AF$3,PQS!$D$3:$AU$3,0),FALSE),\"\")","v":""},{"$f":"IFERROR(HYPERLINK(VLOOKUP($A37,PQS!$D$5:$AU$107,MATCH(PQS!$AJ$3,PQS!$D$3:$AU$3,0),FALSE),VLOOKUP($A37,PQS!$D$5:$AU$107,MATCH(PQS!$AI$3,PQS!$D$3:$AU$3,0),FALSE)),\"\")","v":""}]
[null,null,null,null,{"$f":"IFERROR(VLOOKUP($A38,PQS!$D$5:$AU$107,MATCH(PQS!$Q$3,PQS!$D$3:$AU$3,0),FALSE),\"\")","v":""},{"$f":"IFERROR(VLOOKUP($A38,PQS!$D$5:$AU$107,MATCH(PQS!$AL$3,PQS!$D$3:$AU$3,0),FALSE),\"\")","v":""},"",{"$f":"IFERROR(VLOOKUP($A38,PQS!$D$5:$AU$107,MATCH(PQS!$I$3,PQS!$D$3:$AU$3,0),FALSE),\"\")","v":""},{"$f":"IFERROR(VLOOKUP($A38,PQS!$D$5:$AU$107,MATCH(PQS!$J$3,PQS!$D$3:$AU$3,0),FALSE),\"\")","v":""},{"$f":"IFERROR(VLOOKUP($A38,PQS!$D$5:$AU$107,MATCH(PQS!$AK$3,PQS!$D$3:$AU$3,0),FALSE),\"\")","v":""},{"$f":"IFERROR(VLOOKUP($A38,PQS!$D$5:$AU$107,COLUMN(PQS!$AA$5)-3,FALSE),\"\")","v":""},{"$f":"IFERROR(VLOOKUP($A38,PQS!$D$5:$AU$107,MATCH(PQS!$H$3,PQS!$D$3:$AU$3,0),FALSE),\"\")","v":""},{"$f":"IFERROR(VLOOKUP($A38,PQS!$D$5:$AU$107,MATCH(PQS!$AF$3,PQS!$D$3:$AU$3,0),FALSE),\"\")","v":""},{"$f":"IFERROR(HYPERLINK(VLOOKUP($A38,PQS!$D$5:$AU$107,MATCH(PQS!$AJ$3,PQS!$D$3:$AU$3,0),FALSE),VLOOKUP($A38,PQS!$D$5:$AU$107,MATCH(PQS!$AI$3,PQS!$D$3:$AU$3,0),FALSE)),\"\")","v":""}]
[null,null,null,null,{"$f":"IFERROR(VLOOKUP($A39,PQS!$D$5:$AU$107,MATCH(PQS!$Q$3,PQS!$D$3:$AU$3,0),FALSE),\"\")","v":""},{"$f":"IFERROR(VLOOKUP($A39,PQS!$D$5:$AU$107,MATCH(PQS!$AL$3,PQS!$D$3:$AU$3,0),FALSE),\"\")","v":""},"",{"$f":"IFERROR(VLOOKUP($A39,PQS!$D$5:$AU$107,MATCH(PQS!$I$3,PQS!$D$3:$AU$3,0),FALSE),\"\")","v":""},{"$f":"IFERROR(VLOOKUP($A39,PQS!$D$5:$AU$107,MATCH(PQS!$J$3,PQS!$D$3:$AU$3,0),FALSE),\"\")","v":""},{"$f":"IFERROR(VLOOKUP($A39,PQS!$D$5:$AU$107,MATCH(PQS!$AK$3,PQS!$D$3:$AU$3,0),FALSE),\"\")","v":""},{"$f":"IFERROR(VLOOKUP($A39,PQS!$D$5:$AU$107,COLUMN(PQS!$AA$5)-3,FALSE),\"\")","v":""},{"$f":"IFERROR(VLOOKUP($A39,PQS!$D$5:$AU$107,MATCH(PQS!$H$3,PQS!$D$3:$AU$3,0),FALSE),\"\")","v":""},{"$f":"IFERROR(VLOOKUP($A39,PQS!$D$5:$AU$107,MATCH(PQS!$AF$3,PQS!$D$3:$AU$3,0),FALSE),\"\")","v":""},{"$f":"IFERROR(HYPERLINK(VLOOKUP($A39,PQS!$D$5:$AU$107,MATCH(PQS!$AJ$3,PQS!$D$3:$AU$3,0),FALSE),VLOOKUP($A39,PQS!$D$5:$AU$107,MATCH(PQS!$AI$3,PQS!$D$3:$AU$3,0),FALSE)),\"\")","v":""}]
[null,null,null,null,{"$f":"IFERROR(VLOOKUP($A40,PQS!$D$5:$AU$107,MATCH(PQS!$Q$3,PQS!$D$3:$AU$3,0),FALSE),\"\")","v":""},{"$f":"IFERROR(VLOOKUP($A40,PQS!$D$5:$AU$107,MATCH(PQS!$AL$3,PQS!$D$3:$AU$3,0),FALSE),\"\")","v":""},"",{"$f":"IFERROR(VLOOKUP($A40,PQS!$D$5:$AU$107,MATCH(PQS!$I$3,PQS!$D$3:$AU$3,0),FALSE),\"\")","v":""},{"$f":"IFERROR(VLOOKUP($A40,PQS!$D$5:$AU$107,MATCH(PQS!$J$3,PQS!$D$3:$AU$3,0),FALSE),\"\")","v":""},{"$f":"IFERROR(VLOOKUP($A40,PQS!$D$5:$AU$107,MATCH(PQS!$AK$3,PQS!$D$3:$AU$3,0),FALSE),\"\")","v":""},{"$f":"IFERROR(VLOOKUP($A40,PQS!$D$5:$AU$107,COLUMN(PQS!$AA$5)-3,FALSE),\"\")","v":""},{"$f":"IFERROR(VLOOKUP($A40,PQS!$D$5:$AU$107,MATCH(PQS!$H$3,PQS!$D$3:$AU$3,0),FALSE),\"\")","v":""},{"$f":"IFERROR(VLOOKUP($A40,PQS!$D$5:$AU$107,MATCH(PQS!$AF$3,PQS!$D$3:$AU$3,0),FALSE),\"\")","v":""},{"$f":"IFERROR(HYPERLINK(VLOOKUP($A40,PQS!$D$5:$AU$107,MATCH(PQS!$AJ$3,PQS!$D$3:$AU$3,0),FALSE),VLOOKUP($A40,PQS!$D$5:$AU$107,MATCH(PQS!$AI$3,PQS!$D$3:$AU$3,0),FALSE)),\"\")","v":""}]
[null,null,null,null,{"$f":"IFERROR(VLOOKUP($A41,PQS!$D$5:$AU$107,MATCH(PQS!$Q$3,PQS!$D$3:$AU$3,0),FALSE),\"\")","v":""},{"$f":"IFERROR(VLOOKUP($A41,PQS!$D$5:$AU$107,MATCH(PQS!$AL$3,PQS!$D$3:$AU$3,0),FALSE),\"\")","v":""},"",{"$f":"IFERROR(VLOOKUP($A41,PQS!$D$5:$AU$107,MATCH(PQS!$I$3,PQS!$D$3:$AU$3,0),FALSE),\"\")","v":""},{"$f":"IFERROR(VLOOKUP($A41,PQS!$D$5:$AU$107,MATCH(PQS!$J$3,PQS!$D$3:$AU$3,0),FALSE),\"\")","v":""},{"$f":"IFERROR(VLOOKUP($A41,PQS!$D$5:$AU$107,MATCH(PQS!$AK$3,PQS!$D$3:$AU$3,0),FALSE),\"\")","v":""},{"$f":"IFERROR(VLOOKUP($A41,PQS!$D$5:$AU$107,COLUMN(PQS!$AA$5)-3,FALSE),\"\")","v":""},{"$f":"IFERROR(VLOOKUP($A41,PQS!$D$5:$AU$107,MATCH(PQS!$H$3,PQS!$D$3:$AU$3,0),FALSE),\"\")","v":""},{"$f":"IFERROR(VLOOKUP($A41,PQS!$D$5:$AU$107,MATCH(PQS!$AF$3,PQS!$D$3:$AU$3,0),FALSE),\"\")","v":""},{"$f":"IFERROR(HYPERLINK(VLOOKUP($A41,PQS!$D$5:$AU$107,MATCH(PQS!$AJ$3,PQS!$D$3:$AU$3,0),FALSE),VLOOKUP($A41,PQS!$D$5:$AU$107,MATCH(PQS!$AI$3,PQS!$D$3:$AU$3,0),FALSE)),\"\")","v":""}]
[null,null,null,null,{"$f":"IFERROR(VLOOKUP($A42,PQS!$D$5:$AU$107,MATCH(PQS!$Q$3,PQS!$D$3:$AU$3,0),FALSE),\"\")","v":""},{"$f":"IFERROR(VLOOKUP($A42,PQS!$D$5:$AU$107,MATCH(PQS!$AL$3,PQS!$D$3:$AU$3,0),FALSE),\"\")","v":""},"",{"$f":"IFERROR(VLOOKUP($A42,PQS!$D$5:$AU$107,MATCH(PQS!$I$3,PQS!$D$3:$AU$3,0),FALSE),\"\")","v":""},{"$f":"IFERROR(VLOOKUP($A42,PQS!$D$5:$AU$107,MATCH(PQS!$J$3,PQS!$D$3:$AU$3,0),FALSE),\"\")","v":""},{"$f":"IFERROR(VLOOKUP($A42,PQS!$D$5:$AU$107,MATCH(PQS!$AK$3,PQS!$D$3:$AU$3,0),FALSE),\"\")","v":""},{"$f":"IFERROR(VLOOKUP($A42,PQS!$D$5:$AU$107,COLUMN(PQS!$AA$5)-3,FALSE),\"\")","v":""},{"$f":"IFERROR(VLOOKUP($A42,PQS!$D$5:$AU$107,MATCH(PQS!$H$3,PQS!$D$3:$AU$3,0),FALSE),\"\")","v":""},{"$f":"IFERROR(VLOOKUP($A42,PQS!$D$5:$AU$107,MATCH(PQS!$AF$3,PQS!$D$3:$AU$3,0),FALSE),\"\")","v":""},{"$f":"IFERROR(HYPERLINK(VLOOKUP($A42,PQS!$D$5:$AU$107,MATCH(PQS!$AJ$3,PQS!$D$3:$AU$3,0),FALSE),VLOOKUP($A42,PQS!$D$5:$AU$107,MATCH(PQS!$AI$3,PQS!$D$3:$AU$3,0),FALSE)),\"\")","v":""}]
[null,null,null,null,{"$f":"IFERROR(VLOOKUP($A43,PQS!$D$5:$AU$107,MATCH(PQS!$Q$3,PQS!$D$3:$AU$3,0),FALSE),\"\")","v":""},{"$f":"IFERROR(VLOOKUP($A43,PQS!$D$5:$AU$107,MATCH(PQS!$AL$3,PQS!$D$3:$AU$3,0),FALSE),\"\")","v":""},"",{"$f":"IFERROR(VLOOKUP($A43,PQS!$D$5:$AU$107,MATCH(PQS!$I$3,PQS!$D$3:$AU$3,0),FALSE),\"\")","v":""},{"$f":"IFERROR(VLOOKUP($A43,PQS!$D$5:$AU$107,MATCH(PQS!$J$3,PQS!$D$3:$AU$3,0),FALSE),\"\")","v":""},{"$f":"IFERROR(VLOOKUP($A43,PQS!$D$5:$AU$107,MATCH(PQS!$AK$3,PQS!$D$3:$AU$3,0),FALSE),\"\")","v":""},{"$f":"IFERROR(VLOOKUP($A43,PQS!$D$5:$AU$107,COLUMN(PQS!$AA$5)-3,FALSE),\"\")","v":""},{"$f":"IFERROR(VLOOKUP($A43,PQS!$D$5:$AU$107,MATCH(PQS!$H$3,PQS!$D$3:$AU$3,0),FALSE),\"\")","v":""},{"$f":"IFERROR(VLOOKUP($A43,PQS!$D$5:$AU$107,MATCH(PQS!$AF$3,PQS!$D$3:$AU$3,0),FALSE),\"\")","v":""},{"$f":"IFERROR(HYPERLINK(VLOOKUP($A43,PQS!$D$5:$AU$107,MATCH(PQS!$AJ$3,PQS!$D$3:$AU$3,0),FALSE),VLOOKUP($A43,PQS!$D$5:$AU$107,MATCH(PQS!$AI$3,PQS!$D$3:$AU$3,0),FALSE)),\"\")","v":""}]
[null,null,null,null,{"$f":"IFERROR(VLOOKUP($A44,PQS!$D$5:$AU$107,MATCH(PQS!$Q$3,PQS!$D$3:$AU$3,0),FALSE),\"\")","v":""},{"$f":"IFERROR(VLOOKUP($A44,PQS!$D$5:$AU$107,MATCH(PQS!$AL$3,PQS!$D$3:$AU$3,0),FALSE),\"\")","v":""},"",{"$f":"IFERROR(VLOOKUP($A44,PQS!$D$5:$AU$107,MATCH(PQS!$I$3,PQS!$D$3:$AU$3,0),FALSE),\"\")","v":""},{"$f":"IFERROR(VLOOKUP($A44,PQS!$D$5:$AU$107,MATCH(PQS!$J$3,PQS!$D$3:$AU$3,0),FALSE),\"\")","v":""},{"$f":"IFERROR(VLOOKUP($A44,PQS!$D$5:$AU$107,MATCH(PQS!$AK$3,PQS!$D$3:$AU$3,0),FALSE),\"\")","v":""},{"$f":"IFERROR(VLOOKUP($A44,PQS!$D$5:$AU$107,COLUMN(PQS!$AA$5)-3,FALSE),\"\")","v":""},{"$f":"IFERROR(VLOOKUP($A44,PQS!$D$5:$AU$107,MATCH(PQS!$H$3,PQS!$D$3:$AU$3,0),FALSE),\"\")","v":""},{"$f":"IFERROR(VLOOKUP($A44,PQS!$D$5:$AU$107,MATCH(PQS!$AF$3,PQS!$D$3:$AU$3,0),FALSE),\"\")","v":""},{"$f":"IFERROR(HYPERLINK(VLOOKUP($A44,PQS!$D$5:$AU$107,MATCH(PQS!$AJ$3,PQS!$D$3:$AU$3,0),FALSE),VLOOKUP($A44,PQS!$D$5:$AU$107,MATCH(PQS!$AI$3,PQS!$D$3:$AU$3,0),FALSE)),\"\")","v":""}]
[null,null,null,null,{"$f":"IFERROR(VLOOKUP($A45,PQS!$D$5:$AU$107,MATCH(PQS!$Q$3,PQS!$D$3:$AU$3,0),FALSE),\"\")","v":""},{"$f":"IFERROR(VLOOKUP($A45,PQS!$D$5:$AU$107,MATCH(PQS!$AL$3,PQS!$D$3:$AU$3,0),FALSE),\"\")","v":""},"",{"$f":"IFERROR(VLOOKUP($A45,PQS!$D$5:$AU$107,MATCH(PQS!$I$3,PQS!$D$3:$AU$3,0),FALSE),\"\")","v":""},{"$f":"IFERROR(VLOOKUP($A45,PQS!$D$5:$AU$107,MATCH(PQS!$J$3,PQS!$D$3:$AU$3,0),FALSE),\"\")","v":""},{"$f":"IFERROR(VLOOKUP($A45,PQS!$D$5:$AU$107,MATCH(PQS!$AK$3,PQS!$D$3:$AU$3,0),FALSE),\"\")","v":""},{"$f":"IFERROR(VLOOKUP($A45,PQS!$D$5:$AU$107,COLUMN(PQS!$AA$5)-3,FALSE),\"\")","v":""},{"$f":"IFERROR(VLOOKUP($A45,PQS!$D$5:$AU$107,MATCH(PQS!$H$3,PQS!$D$3:$AU$3,0),FALSE),\"\")","v":""},{"$f":"IFERROR(VLOOKUP($A45,PQS!$D$5:$AU$107,MATCH(PQS!$AF$3,PQS!$D$3:$AU$3,0),FALSE),\"\")","v":""},{"$f":"IFERROR(HYPERLINK(VLOOKUP($A45,PQS!$D$5:$AU$107,MATCH(PQS!$AJ$3,PQS!$D$3:$AU$3,0),FALSE),VLOOKUP($A45,PQS!$D$5:$AU$107,MATCH(PQS!$AI$3,PQS!$D$3:$AU$3,0),FALSE)),\"\")","v":""}]
[null,null,null,null,{"$f":"IFERROR(VLOOKUP($A46,PQS!$D$5:$AU$107,MATCH(PQS!$Q$3,PQS!$D$3:$AU$3,0),FALSE),\"\")","v":""},{"$f":"IFERROR(VLOOKUP($A46,PQS!$D$5:$AU$107,MATCH(PQS!$AL$3,PQS!$D$3:$AU$3,0),FALSE),\"\")","v":""},"",{"$f":"IFERROR(VLOOKUP($A46,PQS!$D$5:$AU$107,MATCH(PQS!$I$3,PQS!$D$3:$AU$3,0),FALSE),\"\")","v":""},{"$f":"IFERROR(VLOOKUP($A46,PQS!$D$5:$AU$107,MATCH(PQS!$J$3,PQS!$D$3:$AU$3,0),FALSE),\"\")","v":""},{"$f":"IFERROR(VLOOKUP($A46,PQS!$D$5:$AU$107,MATCH(PQS!$AK$3,PQS!$D$3:$AU$3,0),FALSE),\"\")","v":""},{"$f":"IFERROR(VLOOKUP($A46,PQS!$D$5:$AU$107,COLUMN(PQS!$AA$5)-3,FALSE),\"\")","v":""},{"$f":"IFERROR(VLOOKUP($A46,PQS!$D$5:$AU$107,MATCH(PQS!$H$3,PQS!$D$3:$AU$3,0),FALSE),\"\")","v":""},{"$f":"IFERROR(VLOOKUP($A46,PQS!$D$5:$AU$107,MATCH(PQS!$AF$3,PQS!$D$3:$AU$3,0),FALSE),\"\")","v":""},{"$f":"IFERROR(HYPERLINK(VLOOKUP($A46,PQS!$D$5:$AU$107,MATCH(PQS!$AJ$3,PQS!$D$3:$AU$3,0),FALSE),VLOOKUP($A46,PQS!$D$5:$AU$107,MATCH(PQS!$AI$3,PQS!$D$3:$AU$3,0),FALSE)),\"\")","v":""}]
[null,null,null,null,{"$f":"IFERROR(VLOOKUP($A47,PQS!$D$5:$AU$107,MATCH(PQS!$Q$3,PQS!$D$3:$AU$3,0),FALSE),\"\")","v":""},{"$f":"IFERROR(VLOOKUP($A47,PQS!$D$5:$AU$107,MATCH(PQS!$AL$3,PQS!$D$3:$AU$3,0),FALSE),\"\")","v":""},"",{"$f":"IFERROR(VLOOKUP($A47,PQS!$D$5:$AU$107,MATCH(PQS!$I$3,PQS!$D$3:$AU$3,0),FALSE),\"\")","v":""},{"$f":"IFERROR(VLOOKUP($A47,PQS!$D$5:$AU$107,MATCH(PQS!$J$3,PQS!$D$3:$AU$3,0),FALSE),\"\")","v":""},{"$f":"IFERROR(VLOOKUP($A47,PQS!$D$5:$AU$107,MATCH(PQS!$AK$3,PQS!$D$3:$AU$3,0),FALSE),\"\")","v":""},{"$f":"IFERROR(VLOOKUP($A47,PQS!$D$5:$AU$107,COLUMN(PQS!$AA$5)-3,FALSE),\"\")","v":""},{"$f":"IFERROR(VLOOKUP($A47,PQS!$D$5:$AU$107,MATCH(PQS!$H$3,PQS!$D$3:$AU$3,0),FALSE),\"\")","v":""},{"$f":"IFERROR(VLOOKUP($A47,PQS!$D$5:$AU$107,MATCH(PQS!$AF$3,PQS!$D$3:$AU$3,0),FALSE),\"\")","v":""},{"$f":"IFERROR(HYPERLINK(VLOOKUP($A47,PQS!$D$5:$AU$107,MATCH(PQS!$AJ$3,PQS!$D$3:$AU$3,0),FALSE),VLOOKUP($A47,PQS!$D$5:$AU$107,MATCH(PQS!$AI$3,PQS!$D$3:$AU$3,0),FALSE)),\"\")","v":""}]
[null,null,null,null,{"$f":"IFERROR(VLOOKUP($A48,PQS!$D$5:$AU$107,MATCH(PQS!$Q$3,PQS!$D$3:$AU$3,0),FALSE),\"\")","v":""},{"$f":"IFERROR(VLOOKUP($A48,PQS!$D$5:$AU$107,MATCH(PQS!$AL$3,PQS!$D$3:$AU$3,0),FALSE),\"\")","v":""},"",{"$f":"IFERROR(VLOOKUP($A48,PQS!$D$5:$AU$107,MATCH(PQS!$I$3,PQS!$D$3:$AU$3,0),FALSE),\"\")","v":""},{"$f":"IFERROR(VLOOKUP($A48,PQS!$D$5:$AU$107,MATCH(PQS!$J$3,PQS!$D$3:$AU$3,0),FALSE),\"\")","v":""},{"$f":"IFERROR(VLOOKUP($A48,PQS!$D$5:$AU$107,MATCH(PQS!$AK$3,PQS!$D$3:$AU$3,0),FALSE),\"\")","v":""},{"$f":"IFERROR(VLOOKUP($A48,PQS!$D$5:$AU$107,COLUMN(PQS!$AA$5)-3,FALSE),\"\")","v":""},{"$f":"IFERROR(VLOOKUP($A48,PQS!$D$5:$AU$107,MATCH(PQS!$H$3,PQS!$D$3:$AU$3,0),FALSE),\"\")","v":""},{"$f":"IFERROR(VLOOKUP($A48,PQS!$D$5:$AU$107,MATCH(PQS!$AF$3,PQS!$D$3:$AU$3,0),FALSE),\"\")","v":""},{"$f":"IFERROR(HYPERLINK(VLOOKUP($A48,PQS!$D$5:$AU$107,MATCH(PQS!$AJ$3,PQS!$D$3:$AU$3,0),FALSE),VLOOKUP($A48,PQS!$D$5:$AU$107,MATCH(PQS!$AI$3,PQS!$D$3:$AU$3,0),FALSE)),\"\")","v":""}]
[null,null,null,null,{"$f":"IFERROR(VLOOKUP($A49,PQS!$D$5:$AU$107,MATCH(PQS!$Q$3,PQS!$D$3:$AU$3,0),FALSE),\"\")","v":""},{"$f":"IFERROR(VLOOKUP($A49,PQS!$D$5:$AU$107,MATCH(PQS!$AL$3,PQS!$D$3:$AU$3,0),FALSE),\"\")","v":""},"",{"$f":"IFERROR(VLOOKUP($A49,PQS!$D$5:$AU$107,MATCH(PQS!$I$3,PQS!$D$3:$AU$3,0),FALSE),\"\")","v":""},{"$f":"IFERROR(VLOOKUP($A49,PQS!$D$5:$AU$107,MATCH(PQS!$J$3,PQS!$D$3:$AU$3,0),FALSE),\"\")","v":""},{"$f":"IFERROR(VLOOKUP($A49,PQS!$D$5:$AU$107,MATCH(PQS!$AK$3,PQS!$D$3:$AU$3,0),FALSE),\"\")","v":""},{"$f":"IFERROR(VLOOKUP($A49,PQS!$D$5:$AU$107,COLUMN(PQS!$AA$5)-3,FALSE),\"\")","v":""},{"$f":"IFERROR(VLOOKUP($A49,PQS!$D$5:$AU$107,MATCH(PQS!$H$3,PQS!$D$3:$AU$3,0),FALSE),\"\")","v":""},{"$f":"IFERROR(VLOOKUP($A49,PQS!$D$5:$AU$107,MATCH(PQS!$AF$3,PQS!$D$3:$AU$3,0),FALSE),\"\")","v":""},{"$f":"IFERROR(HYPERLINK(VLOOKUP($A49,PQS!$D$5:$AU$107,MATCH(PQS!$AJ$3,PQS!$D$3:$AU$3,0),FALSE),VLOOKUP($A49,PQS!$D$5:$AU$107,MATCH(PQS!$AI$3,PQS!$D$3:$AU$3,0),FALSE)),\"\")","v":""}]
[null,null,null,null,{"$f":"IFERROR(VLOOKUP($A50,PQS!$D$5:$AU$107,MATCH(PQS!$Q$3,PQS!$D$3:$AU$3,0),FALSE),\"\")","v":""},{"$f":"IFERROR(VLOOKUP($A50,PQS!$D$5:$AU$107,MATCH(PQS!$AL$3,PQS!$D$3:$AU$3,0),FALSE),\"\")","v":""},"",{"$f":"IFERROR(VLOOKUP($A50,PQS!$D$5:$AU$107,MATCH(PQS!$I$3,PQS!$D$3:$AU$3,0),FALSE),\"\")","v":""},{"$f":"IFERROR(VLOOKUP($A50,PQS!$D$5:$AU$107,MATCH(PQS!$J$3,PQS!$D$3:$AU$3,0),FALSE),\"\")","v":""},{"$f":"IFERROR(VLOOKUP($A50,PQS!$D$5:$AU$107,MATCH(PQS!$AK$3,PQS!$D$3:$AU$3,0),FALSE),\"\")","v":""},{"$f":"IFERROR(VLOOKUP($A50,PQS!$D$5:$AU$107,COLUMN(PQS!$AA$5)-3,FALSE),\"\")","v":""},{"$f":"IFERROR(VLOOKUP($A50,PQS!$D$5:$AU$107,MATCH(PQS!$H$3,PQS!$D$3:$AU$3,0),FALSE),\"\")","v":""},{"$f":"IFERROR(VLOOKUP($A50,PQS!$D$5:$AU$107,MATCH(PQS!$AF$3,PQS!$D$3:$AU$3,0),FALSE),\"\")","v":""},{"$f":"IFERROR(HYPERLINK(VLOOKUP($A50,PQS!$D$5:$AU$107,MATCH(PQS!$AJ$3,PQS!$D$3:$AU$3,0),FALSE),VLOOKUP($A50,PQS!$D$5:$AU$107,MATCH(PQS!$AI$3,PQS!$D$3:$AU$3,0),FALSE)),\"\")","v":""}]
[null,null,null,null,{"$f":"IFERROR(VLOOKUP($A51,PQS!$D$5:$AU$107,MATCH(PQS!$Q$3,PQS!$D$3:$AU$3,0),FALSE),\"\")","v":""},{"$f":"IFERROR(VLOOKUP($A51,PQS!$D$5:$AU$107,MATCH(PQS!$AL$3,PQS!$D$3:$AU$3,0),FALSE),\"\")","v":""},"",{"$f":"IFERROR(VLOOKUP($A51,PQS!$D$5:$AU$107,MATCH(PQS!$I$3,PQS!$D$3:$AU$3,0),FALSE),\"\")","v":""},{"$f":"IFERROR(VLOOKUP($A51,PQS!$D$5:$AU$107,MATCH(PQS!$J$3,PQS!$D$3:$AU$3,0),FALSE),\"\")","v":""},{"$f":"IFERROR(VLOOKUP($A51,PQS!$D$5:$AU$107,MATCH(PQS!$AK$3,PQS!$D$3:$AU$3,0),FALSE),\"\")","v":""},{"$f":"IFERROR(VLOOKUP($A51,PQS!$D$5:$AU$107,COLUMN(PQS!$AA$5)-3,FALSE),\"\")","v":""},{"$f":"IFERROR(VLOOKUP($A51,PQS!$D$5:$AU$107,MATCH(PQS!$H$3,PQS!$D$3:$AU$3,0),FALSE),\"\")","v":""},{"$f":"IFERROR(VLOOKUP($A51,PQS!$D$5:$AU$107,MATCH(PQS!$AF$3,PQS!$D$3:$AU$3,0),FALSE),\"\")","v":""},{"$f":"IFERROR(HYPERLINK(VLOOKUP($A51,PQS!$D$5:$AU$107,MATCH(PQS!$AJ$3,PQS!$D$3:$AU$3,0),FALSE),VLOOKUP($A51,PQS!$D$5:$AU$107,MATCH(PQS!$AI$3,PQS!$D$3:$AU$3,0),FALSE)),\"\")","v":""}]
[null,null,null,null,{"$f":"IFERROR(VLOOKUP($A52,PQS!$D$5:$AU$107,MATCH(PQS!$Q$3,PQS!$D$3:$AU$3,0),FALSE),\"\")","v":""},{"$f":"IFERROR(VLOOKUP($A52,PQS!$D$5:$AU$107,MATCH(PQS!$AL$3,PQS!$D$3:$AU$3,0),FALSE),\"\")","v":""},"",{"$f":"IFERROR(VLOOKUP($A52,PQS!$D$5:$AU$107,MATCH(PQS!$I$3,PQS!$D$3:$AU$3,0),FALSE),\"\")","v":""},{"$f":"IFERROR(VLOOKUP($A52,PQS!$D$5:$AU$107,MATCH(PQS!$J$3,PQS!$D$3:$AU$3,0),FALSE),\"\")","v":""},{"$f":"IFERROR(VLOOKUP($A52,PQS!$D$5:$AU$107,MATCH(PQS!$AK$3,PQS!$D$3:$AU$3,0),FALSE),\"\")","v":""},{"$f":"IFERROR(VLOOKUP($A52,PQS!$D$5:$AU$107,COLUMN(PQS!$AA$5)-3,FALSE),\"\")","v":""},{"$f":"IFERROR(VLOOKUP($A52,PQS!$D$5:$AU$107,MATCH(PQS!$H$3,PQS!$D$3:$AU$3,0),FALSE),\"\")","v":""},{"$f":"IFERROR(VLOOKUP($A52,PQS!$D$5:$AU$107,MATCH(PQS!$AF$3,PQS!$D$3:$AU$3,0),FALSE),\"\")","v":""},{"$f":"IFERROR(HYPERLINK(VLOOKUP($A52,PQS!$D$5:$AU$107,MATCH(PQS!$AJ$3,PQS!$D$3:$AU$3,0),FALSE),VLOOKUP($A52,PQS!$D$5:$AU$107,MATCH(PQS!$AI$3,PQS!$D$3:$AU$3,0),FALSE)),\"\")","v":""}]
[null,null,null,null,{"$f":"IFERROR(VLOOKUP($A53,PQS!$D$5:$AU$107,MATCH(PQS!$Q$3,PQS!$D$3:$AU$3,0),FALSE),\"\")","v":""},{"$f":"IFERROR(VLOOKUP($A53,PQS!$D$5:$AU$107,MATCH(PQS!$AL$3,PQS!$D$3:$AU$3,0),FALSE),\"\")","v":""},"",{"$f":"IFERROR(VLOOKUP($A53,PQS!$D$5:$AU$107,MATCH(PQS!$I$3,PQS!$D$3:$AU$3,0),FALSE),\"\")","v":""},{"$f":"IFERROR(VLOOKUP($A53,PQS!$D$5:$AU$107,MATCH(PQS!$J$3,PQS!$D$3:$AU$3,0),FALSE),\"\")","v":""},{"$f":"IFERROR(VLOOKUP($A53,PQS!$D$5:$AU$107,MATCH(PQS!$AK$3,PQS!$D$3:$AU$3,0),FALSE),\"\")","v":""},{"$f":"IFERROR(VLOOKUP($A53,PQS!$D$5:$AU$107,COLUMN(PQS!$AA$5)-3,FALSE),\"\")","v":""},{"$f":"IFERROR(VLOOKUP($A53,PQS!$D$5:$AU$107,MATCH(PQS!$H$3,PQS!$D$3:$AU$3,0),FALSE),\"\")","v":""},{"$f":"IFERROR(VLOOKUP($A53,PQS!$D$5:$AU$107,MATCH(PQS!$AF$3,PQS!$D$3:$AU$3,0),FALSE),\"\")","v":""},{"$f":"IFERROR(HYPERLINK(VLOOKUP($A53,PQS!$D$5:$AU$107,MATCH(PQS!$AJ$3,PQS!$D$3:$AU$3,0),FALSE),VLOOKUP($A53,PQS!$D$5:$AU$107,MATCH(PQS!$AI$3,PQS!$D$3:$AU$3,0),FALSE)),\"\")","v":""}]
[null,null,null,null,{"$f":"IFERROR(VLOOKUP($A54,PQS!$D$5:$AU$107,MATCH(PQS!$Q$3,PQS!$D$3:$AU$3,0),FALSE),\"\")","v":""},{"$f":"IFERROR(VLOOKUP($A54,PQS!$D$5:$AU$107,MATCH(PQS!$AL$3,PQS!$D$3:$AU$3,0),FALSE),\"\")","v":""},"",{"$f":"IFERROR(VLOOKUP($A54,PQS!$D$5:$AU$107,MATCH(PQS!$I$3,PQS!$D$3:$AU$3,0),FALSE),\"\")","v":""},{"$f":"IFERROR(VLOOKUP($A54,PQS!$D$5:$AU$107,MATCH(PQS!$J$3,PQS!$D$3:$AU$3,0),FALSE),\"\")","v":""},{"$f":"IFERROR(VLOOKUP($A54,PQS!$D$5:$AU$107,MATCH(PQS!$AK$3,PQS!$D$3:$AU$3,0),FALSE),\"\")","v":""},{"$f":"IFERROR(VLOOKUP($A54,PQS!$D$5:$AU$107,COLUMN(PQS!$AA$5)-3,FALSE),\"\")","v":""},{"$f":"IFERROR(VLOOKUP($A54,PQS!$D$5:$AU$107,MATCH(PQS!$H$3,PQS!$D$3:$AU$3,0),FALSE),\"\")","v":""},{"$f":"IFERROR(VLOOKUP($A54,PQS!$D$5:$AU$107,MATCH(PQS!$AF$3,PQS!$D$3:$AU$3,0),FALSE),\"\")","v":""},{"$f":"IFERROR(HYPERLINK(VLOOKUP($A54,PQS!$D$5:$AU$107,MATCH(PQS!$AJ$3,PQS!$D$3:$AU$3,0),FALSE),VLOOKUP($A54,PQS!$D$5:$AU$107,MATCH(PQS!$AI$3,PQS!$D$3:$AU$3,0),FALSE)),\"\")","v":""}]
[null,null,null,null,{"$f":"IFERROR(VLOOKUP($A55,PQS!$D$5:$AU$107,MATCH(PQS!$Q$3,PQS!$D$3:$AU$3,0),FALSE),\"\")","v":""},{"$f":"IFERROR(VLOOKUP($A55,PQS!$D$5:$AU$107,MATCH(PQS!$AL$3,PQS!$D$3:$AU$3,0),FALSE),\"\")","v":""},"",{"$f":"IFERROR(VLOOKUP($A55,PQS!$D$5:$AU$107,MATCH(PQS!$I$3,PQS!$D$3:$AU$3,0),FALSE),\"\")","v":""},{"$f":"IFERROR(VLOOKUP($A55,PQS!$D$5:$AU$107,MATCH(PQS!$J$3,PQS!$D$3:$AU$3,0),FALSE),\"\")","v":""},{"$f":"IFERROR(VLOOKUP($A55,PQS!$D$5:$AU$107,MATCH(PQS!$AK$3,PQS!$D$3:$AU$3,0),FALSE),\"\")","v":""},{"$f":"IFERROR(VLOOKUP($A55,PQS!$D$5:$AU$107,COLUMN(PQS!$AA$5)-3,FALSE),\"\")","v":""},{"$f":"IFERROR(VLOOKUP($A55,PQS!$D$5:$AU$107,MATCH(PQS!$H$3,PQS!$D$3:$AU$3,0),FALSE),\"\")","v":""},{"$f":"IFERROR(VLOOKUP($A55,PQS!$D$5:$AU$107,MATCH(PQS!$AF$3,PQS!$D$3:$AU$3,0),FALSE),\"\")","v":""},{"$f":"IFERROR(HYPERLINK(VLOOKUP($A55,PQS!$D$5:$AU$107,MATCH(PQS!$AJ$3,PQS!$D$3:$AU$3,0),FALSE),VLOOKUP($A55,PQS!$D$5:$AU$107,MATCH(PQS!$AI$3,PQS!$D$3:$AU$3,0),FALSE)),\"\")","v":""}]
[null,null,null,null,{"$f":"IFERROR(VLOOKUP($A56,PQS!$D$5:$AU$107,MATCH(PQS!$Q$3,PQS!$D$3:$AU$3,0),FALSE),\"\")","v":""},{"$f":"IFERROR(VLOOKUP($A56,PQS!$D$5:$AU$107,MATCH(PQS!$AL$3,PQS!$D$3:$AU$3,0),FALSE),\"\")","v":""},"",{"$f":"IFERROR(VLOOKUP($A56,PQS!$D$5:$AU$107,MATCH(PQS!$I$3,PQS!$D$3:$AU$3,0),FALSE),\"\")","v":""},{"$f":"IFERROR(VLOOKUP($A56,PQS!$D$5:$AU$107,MATCH(PQS!$J$3,PQS!$D$3:$AU$3,0),FALSE),\"\")","v":""},{"$f":"IFERROR(VLOOKUP($A56,PQS!$D$5:$AU$107,MATCH(PQS!$AK$3,PQS!$D$3:$AU$3,0),FALSE),\"\")","v":""},{"$f":"IFERROR(VLOOKUP($A56,PQS!$D$5:$AU$107,COLUMN(PQS!$AA$5)-3,FALSE),\"\")","v":""},{"$f":"IFERROR(VLOOKUP($A56,PQS!$D$5:$AU$107,MATCH(PQS!$H$3,PQS!$D$3:$AU$3,0),FALSE),\"\")","v":""},{"$f":"IFERROR(VLOOKUP($A56,PQS!$D$5:$AU$107,MATCH(PQS!$AF$3,PQS!$D$3:$AU$3,0),FALSE),\"\")","v":""},{"$f":"IFERROR(HYPERLINK(VLOOKUP($A56,PQS!$D$5:$AU$107,MATCH(PQS!$AJ$3,PQS!$D$3:$AU$3,0),FALSE),VLOOKUP($A56,PQS!$D$5:$AU$107,MATCH(PQS!$AI$3,PQS!$D$3:$AU$3,0),FALSE)),\"\")","v":""}]
[null,null,null,null,{"$f":"IFERROR(VLOOKUP($A57,PQS!$D$5:$AU$107,MATCH(PQS!$Q$3,PQS!$D$3:$AU$3,0),FALSE),\"\")","v":""},{"$f":"IFERROR(VLOOKUP($A57,PQS!$D$5:$AU$107,MATCH(PQS!$AL$3,PQS!$D$3:$AU$3,0),FALSE),\"\")","v":""},"",{"$f":"IFERROR(VLOOKUP($A57,PQS!$D$5:$AU$107,MATCH(PQS!$I$3,PQS!$D$3:$AU$3,0),FALSE),\"\")","v":""},{"$f":"IFERROR(VLOOKUP($A57,PQS!$D$5:$AU$107,MATCH(PQS!$J$3,PQS!$D$3:$AU$3,0),FALSE),\"\")","v":""},{"$f":"IFERROR(VLOOKUP($A57,PQS!$D$5:$AU$107,MATCH(PQS!$AK$3,PQS!$D$3:$AU$3,0),FALSE),\"\")","v":""},{"$f":"IFERROR(VLOOKUP($A57,PQS!$D$5:$AU$107,COLUMN(PQS!$AA$5)-3,FALSE),\"\")","v":""},{"$f":"IFERROR(VLOOKUP($A57,PQS!$D$5:$AU$107,MATCH(PQS!$H$3,PQS!$D$3:$AU$3,0),FALSE),\"\")","v":""},{"$f":"IFERROR(VLOOKUP($A57,PQS!$D$5:$AU$107,MATCH(PQS!$AF$3,PQS!$D$3:$AU$3,0),FALSE),\"\")","v":""},{"$f":"IFERROR(HYPERLINK(VLOOKUP($A57,PQS!$D$5:$AU$107,MATCH(PQS!$AJ$3,PQS!$D$3:$AU$3,0),FALSE),VLOOKUP($A57,PQS!$D$5:$AU$107,MATCH(PQS!$AI$3,PQS!$D$3:$AU$3,0),FALSE)),\"\")","v":""}]
[null,null,null,null,{"$f":"IFERROR(VLOOKUP($A58,PQS!$D$5:$AU$107,MATCH(PQS!$Q$3,PQS!$D$3:$AU$3,0),FALSE),\"\")","v":""},{"$f":"IFERROR(VLOOKUP($A58,PQS!$D$5:$AU$107,MATCH(PQS!$AL$3,PQS!$D$3:$AU$3,0),FALSE),\"\")","v":""},"",{"$f":"IFERROR(VLOOKUP($A58,PQS!$D$5:$AU$107,MATCH(PQS!$I$3,PQS!$D$3:$AU$3,0),FALSE),\"\")","v":""},{"$f":"IFERROR(VLOOKUP($A58,PQS!$D$5:$AU$107,MATCH(PQS!$J$3,PQS!$D$3:$AU$3,0),FALSE),\"\")","v":""},{"$f":"IFERROR(VLOOKUP($A58,PQS!$D$5:$AU$107,MATCH(PQS!$AK$3,PQS!$D$3:$AU$3,0),FALSE),\"\")","v":""},{"$f":"IFERROR(VLOOKUP($A58,PQS!$D$5:$AU$107,COLUMN(PQS!$AA$5)-3,FALSE),\"\")","v":""},{"$f":"IFERROR(VLOOKUP($A58,PQS!$D$5:$AU$107,MATCH(PQS!$H$3,PQS!$D$3:$AU$3,0),FALSE),\"\")","v":""},{"$f":"IFERROR(VLOOKUP($A58,PQS!$D$5:$AU$107,MATCH(PQS!$AF$3,PQS!$D$3:$AU$3,0),FALSE),\"\")","v":""},{"$f":"IFERROR(HYPERLINK(VLOOKUP($A58,PQS!$D$5:$AU$107,MATCH(PQS!$AJ$3,PQS!$D$3:$AU$3,0),FALSE),VLOOKUP($A58,PQS!$D$5:$AU$107,MATCH(PQS!$AI$3,PQS!$D$3:$AU$3,0),FALSE)),\"\")","v":""}]
[null,null,null,null,{"$f":"IFERROR(VLOOKUP($A59,PQS!$D$5:$AU$107,MATCH(PQS!$Q$3,PQS!$D$3:$AU$3,0),FALSE),\"\")","v":""},{"$f":"IFERROR(VLOOKUP($A59,PQS!$D$5:$AU$107,MATCH(PQS!$AL$3,PQS!$D$3:$AU$3,0),FALSE),\"\")","v":""},"",{"$f":"IFERROR(VLOOKUP($A59,PQS!$D$5:$AU$107,MATCH(PQS!$I$3,PQS!$D$3:$AU$3,0),FALSE),\"\")","v":""},{"$f":"IFERROR(VLOOKUP($A59,PQS!$D$5:$AU$107,MATCH(PQS!$J$3,PQS!$D$3:$AU$3,0),FALSE),\"\")","v":""},{"$f":"IFERROR(VLOOKUP($A59,PQS!$D$5:$AU$107,MATCH(PQS!$AK$3,PQS!$D$3:$AU$3,0),FALSE),\"\")","v":""},{"$f":"IFERROR(VLOOKUP($A59,PQS!$D$5:$AU$107,COLUMN(PQS!$AA$5)-3,FALSE),\"\")","v":""},{"$f":"IFERROR(VLOOKUP($A59,PQS!$D$5:$AU$107,MATCH(PQS!$H$3,PQS!$D$3:$AU$3,0),FALSE),\"\")","v":""},{"$f":"IFERROR(VLOOKUP($A59,PQS!$D$5:$AU$107,MATCH(PQS!$AF$3,PQS!$D$3:$AU$3,0),FALSE),\"\")","v":""},{"$f":"IFERROR(HYPERLINK(VLOOKUP($A59,PQS!$D$5:$AU$107,MATCH(PQS!$AJ$3,PQS!$D$3:$AU$3,0),FALSE),VLOOKUP($A59,PQS!$D$5:$AU$107,MATCH(PQS!$AI$3,PQS!$D$3:$AU$3,0),FALSE)),\"\")","v":""}]
[null,null,null,null,{"$f":"IFERROR(VLOOKUP($A60,PQS!$D$5:$AU$107,MATCH(PQS!$Q$3,PQS!$D$3:$AU$3,0),FALSE),\"\")","v":""},{"$f":"IFERROR(VLOOKUP($A60,PQS!$D$5:$AU$107,MATCH(PQS!$AL$3,PQS!$D$3:$AU$3,0),FALSE),\"\")","v":""},"",{"$f":"IFERROR(VLOOKUP($A60,PQS!$D$5:$AU$107,MATCH(PQS!$I$3,PQS!$D$3:$AU$3,0),FALSE),\"\")","v":""},{"$f":"IFERROR(VLOOKUP($A60,PQS!$D$5:$AU$107,MATCH(PQS!$J$3,PQS!$D$3:$AU$3,0),FALSE),\"\")","v":""},{"$f":"IFERROR(VLOOKUP($A60,PQS!$D$5:$AU$107,MATCH(PQS!$AK$3,PQS!$D$3:$AU$3,0),FALSE),\"\")","v":""},{"$f":"IFERROR(VLOOKUP($A60,PQS!$D$5:$AU$107,COLUMN(PQS!$AA$5)-3,FALSE),\"\")","v":""},{"$f":"IFERROR(VLOOKUP($A60,PQS!$D$5:$AU$107,MATCH(PQS!$H$3,PQS!$D$3:$AU$3,0),FALSE),\"\")","v":""},{"$f":"IFERROR(VLOOKUP($A60,PQS!$D$5:$AU$107,MATCH(PQS!$AF$3,PQS!$D$3:$AU$3,0),FALSE),\"\")","v":""},{"$f":"IFERROR(HYPERLINK(VLOOKUP($A60,PQS!$D$5:$AU$107,MATCH(PQS!$AJ$3,PQS!$D$3:$AU$3,0),FALSE),VLOOKUP($A60,PQS!$D$5:$AU$107,MATCH(PQS!$AI$3,PQS!$D$3:$AU$3,0),FALSE)),\"\")","v":""}]
[null,null,null,null,{"$f":"IFERROR(VLOOKUP($A61,PQS!$D$5:$AU$107,MATCH(PQS!$Q$3,PQS!$D$3:$AU$3,0),FALSE),\"\")","v":""},{"$f":"IFERROR(VLOOKUP($A61,PQS!$D$5:$AU$107,MATCH(PQS!$AL$3,PQS!$D$3:$AU$3,0),FALSE),\"\")","v":""},"",{"$f":"IFERROR(VLOOKUP($A61,PQS!$D$5:$AU$107,MATCH(PQS!$I$3,PQS!$D$3:$AU$3,0),FALSE),\"\")","v":""},{"$f":"IFERROR(VLOOKUP($A61,PQS!$D$5:$AU$107,MATCH(PQS!$J$3,PQS!$D$3:$AU$3,0),FALSE),\"\")","v":""},{"$f":"IFERROR(VLOOKUP($A61,PQS!$D$5:$AU$107,MATCH(PQS!$AK$3,PQS!$D$3:$AU$3,0),FALSE),\"\")","v":""},{"$f":"IFERROR(VLOOKUP($A61,PQS!$D$5:$AU$107,COLUMN(PQS!$AA$5)-3,FALSE),\"\")","v":""},{"$f":"IFERROR(VLOOKUP($A61,PQS!$D$5:$AU$107,MATCH(PQS!$H$3,PQS!$D$3:$AU$3,0),FALSE),\"\")","v":""},{"$f":"IFERROR(VLOOKUP($A61,PQS!$D$5:$AU$107,MATCH(PQS!$AF$3,PQS!$D$3:$AU$3,0),FALSE),\"\")","v":""},{"$f":"IFERROR(HYPERLINK(VLOOKUP($A61,PQS!$D$5:$AU$107,MATCH(PQS!$AJ$3,PQS!$D$3:$AU$3,0),FALSE),VLOOKUP($A61,PQS!$D$5:$AU$107,MATCH(PQS!$AI$3,PQS!$D$3:$AU$3,0),FALSE)),\"\")","v":""}]
[null,null,null,null,{"$f":"IFERROR(VLOOKUP($A62,PQS!$D$5:$AU$107,MATCH(PQS!$Q$3,PQS!$D$3:$AU$3,0),FALSE),\"\")","v":""},{"$f":"IFERROR(VLOOKUP($A62,PQS!$D$5:$AU$107,MATCH(PQS!$AL$3,PQS!$D$3:$AU$3,0),FALSE),\"\")","v":""},"",{"$f":"IFERROR(VLOOKUP($A62,PQS!$D$5:$AU$107,MATCH(PQS!$I$3,PQS!$D$3:$AU$3,0),FALSE),\"\")","v":""},{"$f":"IFERROR(VLOOKUP($A62,PQS!$D$5:$AU$107,MATCH(PQS!$J$3,PQS!$D$3:$AU$3,0),FALSE),\"\")","v":""},{"$f":"IFERROR(VLOOKUP($A62,PQS!$D$5:$AU$107,MATCH(PQS!$AK$3,PQS!$D$3:$AU$3,0),FALSE),\"\")","v":""},{"$f":"IFERROR(VLOOKUP($A62,PQS!$D$5:$AU$107,COLUMN(PQS!$AA$5)-3,FALSE),\"\")","v":""},{"$f":"IFERROR(VLOOKUP($A62,PQS!$D$5:$AU$107,MATCH(PQS!$H$3,PQS!$D$3:$AU$3,0),FALSE),\"\")","v":""},{"$f":"IFERROR(VLOOKUP($A62,PQS!$D$5:$AU$107,MATCH(PQS!$AF$3,PQS!$D$3:$AU$3,0),FALSE),\"\")","v":""},{"$f":"IFERROR(HYPERLINK(VLOOKUP($A62,PQS!$D$5:$AU$107,MATCH(PQS!$AJ$3,PQS!$D$3:$AU$3,0),FALSE),VLOOKUP($A62,PQS!$D$5:$AU$107,MATCH(PQS!$AI$3,PQS!$D$3:$AU$3,0),FALSE)),\"\")","v":""}]
[null,null,null,null,{"$f":"IFERROR(VLOOKUP($A63,PQS!$D$5:$AU$107,MATCH(PQS!$Q$3,PQS!$D$3:$AU$3,0),FALSE),\"\")","v":""},{"$f":"IFERROR(VLOOKUP($A63,PQS!$D$5:$AU$107,MATCH(PQS!$AL$3,PQS!$D$3:$AU$3,0),FALSE),\"\")","v":""},"",{"$f":"IFERROR(VLOOKUP($A63,PQS!$D$5:$AU$107,MATCH(PQS!$I$3,PQS!$D$3:$AU$3,0),FALSE),\"\")","v":""},{"$f":"IFERROR(VLOOKUP($A63,PQS!$D$5:$AU$107,MATCH(PQS!$J$3,PQS!$D$3:$AU$3,0),FALSE),\"\")","v":""},{"$f":"IFERROR(VLOOKUP($A63,PQS!$D$5:$AU$107,MATCH(PQS!$AK$3,PQS!$D$3:$AU$3,0),FALSE),\"\")","v":""},{"$f":"IFERROR(VLOOKUP($A63,PQS!$D$5:$AU$107,COLUMN(PQS!$AA$5)-3,FALSE),\"\")","v":""},{"$f":"IFERROR(VLOOKUP($A63,PQS!$D$5:$AU$107,MATCH(PQS!$H$3,PQS!$D$3:$AU$3,0),FALSE),\"\")","v":""},{"$f":"IFERROR(VLOOKUP($A63,PQS!$D$5:$AU$107,MATCH(PQS!$AF$3,PQS!$D$3:$AU$3,0),FALSE),\"\")","v":""},{"$f":"IFERROR(HYPERLINK(VLOOKUP($A63,PQS!$D$5:$AU$107,MATCH(PQS!$AJ$3,PQS!$D$3:$AU$3,0),FALSE),VLOOKUP($A63,PQS!$D$5:$AU$107,MATCH(PQS!$AI$3,PQS!$D$3:$AU$3,0),FALSE)),\"\")","v":""}]
[null,null,null,null,{"$f":"IFERROR(VLOOKUP($A64,PQS!$D$5:$AU$107,MATCH(PQS!$Q$3,PQS!$D$3:$AU$3,0),FALSE),\"\")","v":""},{"$f":"IFERROR(VLOOKUP($A64,PQS!$D$5:$AU$107,MATCH(PQS!$AL$3,PQS!$D$3:$AU$3,0),FALSE),\"\")","v":""},"",{"$f":"IFERROR(VLOOKUP($A64,PQS!$D$5:$AU$107,MATCH(PQS!$I$3,PQS!$D$3:$AU$3,0),FALSE),\"\")","v":""},{"$f":"IFERROR(VLOOKUP($A64,PQS!$D$5:$AU$107,MATCH(PQS!$J$3,PQS!$D$3:$AU$3,0),FALSE),\"\")","v":""},{"$f":"IFERROR(VLOOKUP($A64,PQS!$D$5:$AU$107,MATCH(PQS!$AK$3,PQS!$D$3:$AU$3,0),FALSE),\"\")","v":""},{"$f":"IFERROR(VLOOKUP($A64,PQS!$D$5:$AU$107,COLUMN(PQS!$AA$5)-3,FALSE),\"\")","v":""},{"$f":"IFERROR(VLOOKUP($A64,PQS!$D$5:$AU$107,MATCH(PQS!$H$3,PQS!$D$3:$AU$3,0),FALSE),\"\")","v":""},{"$f":"IFERROR(VLOOKUP($A64,PQS!$D$5:$AU$107,MATCH(PQS!$AF$3,PQS!$D$3:$AU$3,0),FALSE),\"\")","v":""},{"$f":"IFERROR(HYPERLINK(VLOOKUP($A64,PQS!$D$5:$AU$107,MATCH(PQS!$AJ$3,PQS!$D$3:$AU$3,0),FALSE),VLOOKUP($A64,PQS!$D$5:$AU$107,MATCH(PQS!$AI$3,PQS!$D$3:$AU$3,0),FALSE)),\"\")","v":""}]
[null,null,null,null,{"$f":"IFERROR(VLOOKUP($A65,PQS!$D$5:$AU$107,MATCH(PQS!$Q$3,PQS!$D$3:$AU$3,0),FALSE),\"\")","v":""},{"$f":"IFERROR(VLOOKUP($A65,PQS!$D$5:$AU$107,MATCH(PQS!$AL$3,PQS!$D$3:$AU$3,0),FALSE),\"\")","v":""},"",{"$f":"IFERROR(VLOOKUP($A65,PQS!$D$5:$AU$107,MATCH(PQS!$I$3,PQS!$D$3:$AU$3,0),FALSE),\"\")","v":""},{"$f":"IFERROR(VLOOKUP($A65,PQS!$D$5:$AU$107,MATCH(PQS!$J$3,PQS!$D$3:$AU$3,0),FALSE),\"\")","v":""},{"$f":"IFERROR(VLOOKUP($A65,PQS!$D$5:$AU$107,MATCH(PQS!$AK$3,PQS!$D$3:$AU$3,0),FALSE),\"\")","v":""},{"$f":"IFERROR(VLOOKUP($A65,PQS!$D$5:$AU$107,COLUMN(PQS!$AA$5)-3,FALSE),\"\")","v":""},{"$f":"IFERROR(VLOOKUP($A65,PQS!$D$5:$AU$107,MATCH(PQS!$H$3,PQS!$D$3:$AU$3,0),FALSE),\"\")","v":""},{"$f":"IFERROR(VLOOKUP($A65,PQS!$D$5:$AU$107,MATCH(PQS!$AF$3,PQS!$D$3:$AU$3,0),FALSE),\"\")","v":""},{"$f":"IFERROR(HYPERLINK(VLOOKUP($A65,PQS!$D$5:$AU$107,MATCH(PQS!$AJ$3,PQS!$D$3:$AU$3,0),FALSE),VLOOKUP($A65,PQS!$D$5:$AU$107,MATCH(PQS!$AI$3,PQS!$D$3:$AU$3,0),FALSE)),\"\")","v":""}]
[null,null,null,null,{"$f":"IFERROR(VLOOKUP($A66,PQS!$D$5:$AU$107,MATCH(PQS!$Q$3,PQS!$D$3:$AU$3,0),FALSE),\"\")","v":""},{"$f":"IFERROR(VLOOKUP($A66,PQS!$D$5:$AU$107,MATCH(PQS!$AL$3,PQS!$D$3:$AU$3,0),FALSE),\"\")","v":""},"",{"$f":"IFERROR(VLOOKUP($A66,PQS!$D$5:$AU$107,MATCH(PQS!$I$3,PQS!$D$3:$AU$3,0),FALSE),\"\")","v":""},{"$f":"IFERROR(VLOOKUP($A66,PQS!$D$5:$AU$107,MATCH(PQS!$J$3,PQS!$D$3:$AU$3,0),FALSE),\"\")","v":""},{"$f":"IFERROR(VLOOKUP($A66,PQS!$D$5:$AU$107,MATCH(PQS!$AK$3,PQS!$D$3:$AU$3,0),FALSE),\"\")","v":""},{"$f":"IFERROR(VLOOKUP($A66,PQS!$D$5:$AU$107,COLUMN(PQS!$AA$5)-3,FALSE),\"\")","v":""},{"$f":"IFERROR(VLOOKUP($A66,PQS!$D$5:$AU$107,MATCH(PQS!$H$3,PQS!$D$3:$AU$3,0),FALSE),\"\")","v":""},{"$f":"IFERROR(VLOOKUP($A66,PQS!$D$5:$AU$107,MATCH(PQS!$AF$3,PQS!$D$3:$AU$3,0),FALSE),\"\")","v":""},{"$f":"IFERROR(HYPERLINK(VLOOKUP($A66,PQS!$D$5:$AU$107,MATCH(PQS!$AJ$3,PQS!$D$3:$AU$3,0),FALSE),VLOOKUP($A66,PQS!$D$5:$AU$107,MATCH(PQS!$AI$3,PQS!$D$3:$AU$3,0),FALSE)),\"\")","v":""}]
[null,null,null,null,{"$f":"IFERROR(VLOOKUP($A67,PQS!$D$5:$AU$107,MATCH(PQS!$Q$3,PQS!$D$3:$AU$3,0),FALSE),\"\")","v":""},{"$f":"IFERROR(VLOOKUP($A67,PQS!$D$5:$AU$107,MATCH(PQS!$AL$3,PQS!$D$3:$AU$3,0),FALSE),\"\")","v":""},"",{"$f":"IFERROR(VLOOKUP($A67,PQS!$D$5:$AU$107,MATCH(PQS!$I$3,PQS!$D$3:$AU$3,0),FALSE),\"\")","v":""},{"$f":"IFERROR(VLOOKUP($A67,PQS!$D$5:$AU$107,MATCH(PQS!$J$3,PQS!$D$3:$AU$3,0),FALSE),\"\")","v":""},{"$f":"IFERROR(VLOOKUP($A67,PQS!$D$5:$AU$107,MATCH(PQS!$AK$3,PQS!$D$3:$AU$3,0),FALSE),\"\")","v":""},{"$f":"IFERROR(VLOOKUP($A67,PQS!$D$5:$AU$107,COLUMN(PQS!$AA$5)-3,FALSE),\"\")","v":""},{"$f":"IFERROR(VLOOKUP($A67,PQS!$D$5:$AU$107,MATCH(PQS!$H$3,PQS!$D$3:$AU$3,0),FALSE),\"\")","v":""},{"$f":"IFERROR(VLOOKUP($A67,PQS!$D$5:$AU$107,MATCH(PQS!$AF$3,PQS!$D$3:$AU$3,0),FALSE),\"\")","v":""},{"$f":"IFERROR(HYPERLINK(VLOOKUP($A67,PQS!$D$5:$AU$107,MATCH(PQS!$AJ$3,PQS!$D$3:$AU$3,0),FALSE),VLOOKUP($A67,PQS!$D$5:$AU$107,MATCH(PQS!$AI$3,PQS!$D$3:$AU$3,0),FALSE)),\"\")","v":""}]
[null,null,null,null,{"$f":"IFERROR(VLOOKUP($A68,PQS!$D$5:$AU$107,MATCH(PQS!$Q$3,PQS!$D$3:$AU$3,0),FALSE),\"\")","v":""},{"$f":"IFERROR(VLOOKUP($A68,PQS!$D$5:$AU$107,MATCH(PQS!$AL$3,PQS!$D$3:$AU$3,0),FALSE),\"\")","v":""},"",{"$f":"IFERROR(VLOOKUP($A68,PQS!$D$5:$AU$107,MATCH(PQS!$I$3,PQS!$D$3:$AU$3,0),FALSE),\"\")","v":""},{"$f":"IFERROR(VLOOKUP($A68,PQS!$D$5:$AU$107,MATCH(PQS!$J$3,PQS!$D$3:$AU$3,0),FALSE),\"\")","v":""},{"$f":"IFERROR(VLOOKUP($A68,PQS!$D$5:$AU$107,MATCH(PQS!$AK$3,PQS!$D$3:$AU$3,0),FALSE),\"\")","v":""},{"$f":"IFERROR(VLOOKUP($A68,PQS!$D$5:$AU$107,COLUMN(PQS!$AA$5)-3,FALSE),\"\")","v":""},{"$f":"IFERROR(VLOOKUP($A68,PQS!$D$5:$AU$107,MATCH(PQS!$H$3,PQS!$D$3:$AU$3,0),FALSE),\"\")","v":""},{"$f":"IFERROR(VLOOKUP($A68,PQS!$D$5:$AU$107,MATCH(PQS!$AF$3,PQS!$D$3:$AU$3,0),FALSE),\"\")","v":""},{"$f":"IFERROR(HYPERLINK(VLOOKUP($A68,PQS!$D$5:$AU$107,MATCH(PQS!$AJ$3,PQS!$D$3:$AU$3,0),FALSE),VLOOKUP($A68,PQS!$D$5:$AU$107,MATCH(PQS!$AI$3,PQS!$D$3:$AU$3,0),FALSE)),\"\")","v":""}]
[null,null,null,null,{"$f":"IFERROR(VLOOKUP($A69,PQS!$D$5:$AU$107,MATCH(PQS!$Q$3,PQS!$D$3:$AU$3,0),FALSE),\"\")","v":""},{"$f":"IFERROR(VLOOKUP($A69,PQS!$D$5:$AU$107,MATCH(PQS!$AL$3,PQS!$D$3:$AU$3,0),FALSE),\"\")","v":""},"",{"$f":"IFERROR(VLOOKUP($A69,PQS!$D$5:$AU$107,MATCH(PQS!$I$3,PQS!$D$3:$AU$3,0),FALSE),\"\")","v":""},{"$f":"IFERROR(VLOOKUP($A69,PQS!$D$5:$AU$107,MATCH(PQS!$J$3,PQS!$D$3:$AU$3,0),FALSE),\"\")","v":""},{"$f":"IFERROR(VLOOKUP($A69,PQS!$D$5:$AU$107,MATCH(PQS!$AK$3,PQS!$D$3:$AU$3,0),FALSE),\"\")","v":""},{"$f":"IFERROR(VLOOKUP($A69,PQS!$D$5:$AU$107,COLUMN(PQS!$AA$5)-3,FALSE),\"\")","v":""},{"$f":"IFERROR(VLOOKUP($A69,PQS!$D$5:$AU$107,MATCH(PQS!$H$3,PQS!$D$3:$AU$3,0),FALSE),\"\")","v":""},{"$f":"IFERROR(VLOOKUP($A69,PQS!$D$5:$AU$107,MATCH(PQS!$AF$3,PQS!$D$3:$AU$3,0),FALSE),\"\")","v":""},{"$f":"IFERROR(HYPERLINK(VLOOKUP($A69,PQS!$D$5:$AU$107,MATCH(PQS!$AJ$3,PQS!$D$3:$AU$3,0),FALSE),VLOOKUP($A69,PQS!$D$5:$AU$107,MATCH(PQS!$AI$3,PQS!$D$3:$AU$3,0),FALSE)),\"\")","v":""}]
[null,null,null,null,{"$f":"IFERROR(VLOOKUP($A70,PQS!$D$5:$AU$107,MATCH(PQS!$Q$3,PQS!$D$3:$AU$3,0),FALSE),\"\")","v":""},{"$f":"IFERROR(VLOOKUP($A70,PQS!$D$5:$AU$107,MATCH(PQS!$AL$3,PQS!$D$3:$AU$3,0),FALSE),\"\")","v":""},"",{"$f":"IFERROR(VLOOKUP($A70,PQS!$D$5:$AU$107,MATCH(PQS!$I$3,PQS!$D$3:$AU$3,0),FALSE),\"\")","v":""},{"$f":"IFERROR(VLOOKUP($A70,PQS!$D$5:$AU$107,MATCH(PQS!$J$3,PQS!$D$3:$AU$3,0),FALSE),\"\")","v":""},{"$f":"IFERROR(VLOOKUP($A70,PQS!$D$5:$AU$107,MATCH(PQS!$AK$3,PQS!$D$3:$AU$3,0),FALSE),\"\")","v":""},{"$f":"IFERROR(VLOOKUP($A70,PQS!$D$5:$AU$107,COLUMN(PQS!$AA$5)-3,FALSE),\"\")","v":""},{"$f":"IFERROR(VLOOKUP($A70,PQS!$D$5:$AU$107,MATCH(PQS!$H$3,PQS!$D$3:$AU$3,0),FALSE),\"\")","v":""},{"$f":"IFERROR(VLOOKUP($A70,PQS!$D$5:$AU$107,MATCH(PQS!$AF$3,PQS!$D$3:$AU$3,0),FALSE),\"\")","v":""},{"$f":"IFERROR(HYPERLINK(VLOOKUP($A70,PQS!$D$5:$AU$107,MATCH(PQS!$AJ$3,PQS!$D$3:$AU$3,0),FALSE),VLOOKUP($A70,PQS!$D$5:$AU$107,MATCH(PQS!$AI$3,PQS!$D$3:$AU$3,0),FALSE)),\"\")","v":""}]
[null,null,null,null,{"$f":"IFERROR(VLOOKUP($A71,PQS!$D$5:$AU$107,MATCH(PQS!$Q$3,PQS!$D$3:$AU$3,0),FALSE),\"\")","v":""},{"$f":"IFERROR(VLOOKUP($A71,PQS!$D$5:$AU$107,MATCH(PQS!$AL$3,PQS!$D$3:$AU$3,0),FALSE),\"\")","v":""},"",{"$f":"IFERROR(VLOOKUP($A71,PQS!$D$5:$AU$107,MATCH(PQS!$I$3,PQS!$D$3:$AU$3,0),FALSE),\"\")","v":""},{"$f":"IFERROR(VLOOKUP($A71,PQS!$D$5:$AU$107,MATCH(PQS!$J$3,PQS!$D$3:$AU$3,0),FALSE),\"\")","v":""},{"$f":"IFERROR(VLOOKUP($A71,PQS!$D$5:$AU$107,MATCH(PQS!$AK$3,PQS!$D$3:$AU$3,0),FALSE),\"\")","v":""},{"$f":"IFERROR(VLOOKUP($A71,PQS!$D$5:$AU$107,COLUMN(PQS!$AA$5)-3,FALSE),\"\")","v":""},{"$f":"IFERROR(VLOOKUP($A71,PQS!$D$5:$AU$107,MATCH(PQS!$H$3,PQS!$D$3:$AU$3,0),FALSE),\"\")","v":""},{"$f":"IFERROR(VLOOKUP($A71,PQS!$D$5:$AU$107,MATCH(PQS!$AF$3,PQS!$D$3:$AU$3,0),FALSE),\"\")","v":""},{"$f":"IFERROR(HYPERLINK(VLOOKUP($A71,PQS!$D$5:$AU$107,MATCH(PQS!$AJ$3,PQS!$D$3:$AU$3,0),FALSE),VLOOKUP($A71,PQS!$D$5:$AU$107,MATCH(PQS!$AI$3,PQS!$D$3:$AU$3,0),FALSE)),\"\")","v":""}]
[null,null,null,null,{"$f":"IFERROR(VLOOKUP($A72,PQS!$D$5:$AU$107,MATCH(PQS!$Q$3,PQS!$D$3:$AU$3,0),FALSE),\"\")","v":""},{"$f":"IFERROR(VLOOKUP($A72,PQS!$D$5:$AU$107,MATCH(PQS!$AL$3,PQS!$D$3:$AU$3,0),FALSE),\"\")","v":""},"",{"$f":"IFERROR(VLOOKUP($A72,PQS!$D$5:$AU$107,MATCH(PQS!$I$3,PQS!$D$3:$AU$3,0),FALSE),\"\")","v":""},{"$f":"IFERROR(VLOOKUP($A72,PQS!$D$5:$AU$107,MATCH(PQS!$J$3,PQS!$D$3:$AU$3,0),FALSE),\"\")","v":""},{"$f":"IFERROR(VLOOKUP($A72,PQS!$D$5:$AU$107,MATCH(PQS!$AK$3,PQS!$D$3:$AU$3,0),FALSE),\"\")","v":""},{"$f":"IFERROR(VLOOKUP($A72,PQS!$D$5:$AU$107,COLUMN(PQS!$AA$5)-3,FALSE),\"\")","v":""},{"$f":"IFERROR(VLOOKUP($A72,PQS!$D$5:$AU$107,MATCH(PQS!$H$3,PQS!$D$3:$AU$3,0),FALSE),\"\")","v":""},{"$f":"IFERROR(VLOOKUP($A72,PQS!$D$5:$AU$107,MATCH(PQS!$AF$3,PQS!$D$3:$AU$3,0),FALSE),\"\")","v":""},{"$f":"IFERROR(HYPERLINK(VLOOKUP($A72,PQS!$D$5:$AU$107,MATCH(PQS!$AJ$3,PQS!$D$3:$AU$3,0),FALSE),VLOOKUP($A72,PQS!$D$5:$AU$107,MATCH(PQS!$AI$3,PQS!$D$3:$AU$3,0),FALSE)),\"\")","v":""}]
[null,null,null,null,{"$f":"IFERROR(VLOOKUP($A73,PQS!$D$5:$AU$107,MATCH(PQS!$Q$3,PQS!$D$3:$AU$3,0),FALSE),\"\")","v":""},{"$f":"IFERROR(VLOOKUP($A73,PQS!$D$5:$AU$107,MATCH(PQS!$AL$3,PQS!$D$3:$AU$3,0),FALSE),\"\")","v":""},"",{"$f":"IFERROR(VLOOKUP($A73,PQS!$D$5:$AU$107,MATCH(PQS!$I$3,PQS!$D$3:$AU$3,0),FALSE),\"\")","v":""},{"$f":"IFERROR(VLOOKUP($A73,PQS!$D$5:$AU$107,MATCH(PQS!$J$3,PQS!$D$3:$AU$3,0),FALSE),\"\")","v":""},{"$f":"IFERROR(VLOOKUP($A73,PQS!$D$5:$AU$107,MATCH(PQS!$AK$3,PQS!$D$3:$AU$3,0),FALSE),\"\")","v":""},{"$f":"IFERROR(VLOOKUP($A73,PQS!$D$5:$AU$107,COLUMN(PQS!$AA$5)-3,FALSE),\"\")","v":""},{"$f":"IFERROR(VLOOKUP($A73,PQS!$D$5:$AU$107,MATCH(PQS!$H$3,PQS!$D$3:$AU$3,0),FALSE),\"\")","v":""},{"$f":"IFERROR(VLOOKUP($A73,PQS!$D$5:$AU$107,MATCH(PQS!$AF$3,PQS!$D$3:$AU$3,0),FALSE),\"\")","v":""},{"$f":"IFERROR(HYPERLINK(VLOOKUP($A73,PQS!$D$5:$AU$107,MATCH(PQS!$AJ$3,PQS!$D$3:$AU$3,0),FALSE),VLOOKUP($A73,PQS!$D$5:$AU$107,MATCH(PQS!$AI$3,PQS!$D$3:$AU$3,0),FALSE)),\"\")","v":""}]
[null,null,null,null,{"$f":"IFERROR(VLOOKUP($A74,PQS!$D$5:$AU$107,MATCH(PQS!$Q$3,PQS!$D$3:$AU$3,0),FALSE),\"\")","v":""},{"$f":"IFERROR(VLOOKUP($A74,PQS!$D$5:$AU$107,MATCH(PQS!$AL$3,PQS!$D$3:$AU$3,0),FALSE),\"\")","v":""},"",{"$f":"IFERROR(VLOOKUP($A74,PQS!$D$5:$AU$107,MATCH(PQS!$I$3,PQS!$D$3:$AU$3,0),FALSE),\"\")","v":""},{"$f":"IFERROR(VLOOKUP($A74,PQS!$D$5:$AU$107,MATCH(PQS!$J$3,PQS!$D$3:$AU$3,0),FALSE),\"\")","v":""},{"$f":"IFERROR(VLOOKUP($A74,PQS!$D$5:$AU$107,MATCH(PQS!$AK$3,PQS!$D$3:$AU$3,0),FALSE),\"\")","v":""},{"$f":"IFERROR(VLOOKUP($A74,PQS!$D$5:$AU$107,COLUMN(PQS!$AA$5)-3,FALSE),\"\")","v":""},{"$f":"IFERROR(VLOOKUP($A74,PQS!$D$5:$AU$107,MATCH(PQS!$H$3,PQS!$D$3:$AU$3,0),FALSE),\"\")","v":""},{"$f":"IFERROR(VLOOKUP($A74,PQS!$D$5:$AU$107,MATCH(PQS!$AF$3,PQS!$D$3:$AU$3,0),FALSE),\"\")","v":""},{"$f":"IFERROR(HYPERLINK(VLOOKUP($A74,PQS!$D$5:$AU$107,MATCH(PQS!$AJ$3,PQS!$D$3:$AU$3,0),FALSE),VLOOKUP($A74,PQS!$D$5:$AU$107,MATCH(PQS!$AI$3,PQS!$D$3:$AU$3,0),FALSE)),\"\")","v":""}]
[null,null,null,null,{"$f":"IFERROR(VLOOKUP($A75,PQS!$D$5:$AU$107,MATCH(PQS!$Q$3,PQS!$D$3:$AU$3,0),FALSE),\"\")","v":""},{"$f":"IFERROR(VLOOKUP($A75,PQS!$D$5:$AU$107,MATCH(PQS!$AL$3,PQS!$D$3:$AU$3,0),FALSE),\"\")","v":""},"",{"$f":"IFERROR(VLOOKUP($A75,PQS!$D$5:$AU$107,MATCH(PQS!$I$3,PQS!$D$3:$AU$3,0),FALSE),\"\")","v":""},{"$f":"IFERROR(VLOOKUP($A75,PQS!$D$5:$AU$107,MATCH(PQS!$J$3,PQS!$D$3:$AU$3,0),FALSE),\"\")","v":""},{"$f":"IFERROR(VLOOKUP($A75,PQS!$D$5:$AU$107,MATCH(PQS!$AK$3,PQS!$D$3:$AU$3,0),FALSE),\"\")","v":""},{"$f":"IFERROR(VLOOKUP($A75,PQS!$D$5:$AU$107,COLUMN(PQS!$AA$5)-3,FALSE),\"\")","v":""},{"$f":"IFERROR(VLOOKUP($A75,PQS!$D$5:$AU$107,MATCH(PQS!$H$3,PQS!$D$3:$AU$3,0),FALSE),\"\")","v":""},{"$f":"IFERROR(VLOOKUP($A75,PQS!$D$5:$AU$107,MATCH(PQS!$AF$3,PQS!$D$3:$AU$3,0),FALSE),\"\")","v":""},{"$f":"IFERROR(HYPERLINK(VLOOKUP($A75,PQS!$D$5:$AU$107,MATCH(PQS!$AJ$3,PQS!$D$3:$AU$3,0),FALSE),VLOOKUP($A75,PQS!$D$5:$AU$107,MATCH(PQS!$AI$3,PQS!$D$3:$AU$3,0),FALSE)),\"\")","v":""}]
[null,null,null,null,{"$f":"IFERROR(VLOOKUP($A76,PQS!$D$5:$AU$107,MATCH(PQS!$Q$3,PQS!$D$3:$AU$3,0),FALSE),\"\")","v":""},{"$f":"IFERROR(VLOOKUP($A76,PQS!$D$5:$AU$107,MATCH(PQS!$AL$3,PQS!$D$3:$AU$3,0),FALSE),\"\")","v":""},"",{"$f":"IFERROR(VLOOKUP($A76,PQS!$D$5:$AU$107,MATCH(PQS!$I$3,PQS!$D$3:$AU$3,0),FALSE),\"\")","v":""},{"$f":"IFERROR(VLOOKUP($A76,PQS!$D$5:$AU$107,MATCH(PQS!$J$3,PQS!$D$3:$AU$3,0),FALSE),\"\")","v":""},{"$f":"IFERROR(VLOOKUP($A76,PQS!$D$5:$AU$107,MATCH(PQS!$AK$3,PQS!$D$3:$AU$3,0),FALSE),\"\")","v":""},{"$f":"IFERROR(VLOOKUP($A76,PQS!$D$5:$AU$107,COLUMN(PQS!$AA$5)-3,FALSE),\"\")","v":""},{"$f":"IFERROR(VLOOKUP($A76,PQS!$D$5:$AU$107,MATCH(PQS!$H$3,PQS!$D$3:$AU$3,0),FALSE),\"\")","v":""},{"$f":"IFERROR(VLOOKUP($A76,PQS!$D$5:$AU$107,MATCH(PQS!$AF$3,PQS!$D$3:$AU$3,0),FALSE),\"\")","v":""},{"$f":"IFERROR(HYPERLINK(VLOOKUP($A76,PQS!$D$5:$AU$107,MATCH(PQS!$AJ$3,PQS!$D$3:$AU$3,0),FALSE),VLOOKUP($A76,PQS!$D$5:$AU$107,MATCH(PQS!$AI$3,PQS!$D$3:$AU$3,0),FALSE)),\"\")","v":""}]
[null,null,null,null,{"$f":"IFERROR(VLOOKUP($A77,PQS!$D$5:$AU$107,MATCH(PQS!$Q$3,PQS!$D$3:$AU$3,0),FALSE),\"\")","v":""},{"$f":"IFERROR(VLOOKUP($A77,PQS!$D$5:$AU$107,MATCH(PQS!$AL$3,PQS!$D$3:$AU$3,0),FALSE),\"\")","v":""},"",{"$f":"IFERROR(VLOOKUP($A77,PQS!$D$5:$AU$107,MATCH(PQS!$I$3,PQS!$D$3:$AU$3,0),FALSE),\"\")","v":""},{"$f":"IFERROR(VLOOKUP($A77,PQS!$D$5:$AU$107,MATCH(PQS!$J$3,PQS!$D$3:$AU$3,0),FALSE),\"\")","v":""},{"$f":"IFERROR(VLOOKUP($A77,PQS!$D$5:$AU$107,MATCH(PQS!$AK$3,PQS!$D$3:$AU$3,0),FALSE),\"\")","v":""},{"$f":"IFERROR(VLOOKUP($A77,PQS!$D$5:$AU$107,COLUMN(PQS!$AA$5)-3,FALSE),\"\")","v":""},{"$f":"IFERROR(VLOOKUP($A77,PQS!$D$5:$AU$107,MATCH(PQS!$H$3,PQS!$D$3:$AU$3,0),FALSE),\"\")","v":""},{"$f":"IFERROR(VLOOKUP($A77,PQS!$D$5:$AU$107,MATCH(PQS!$AF$3,PQS!$D$3:$AU$3,0),FALSE),\"\")","v":""},{"$f":"IFERROR(HYPERLINK(VLOOKUP($A77,PQS!$D$5:$AU$107,MATCH(PQS!$AJ$3,PQS!$D$3:$AU$3,0),FALSE),VLOOKUP($A77,PQS!$D$5:$AU$107,MATCH(PQS!$AI$3,PQS!$D$3:$AU$3,0),FALSE)),\"\")","v":""}]
[null,null,null,null,{"$f":"IFERROR(VLOOKUP($A78,PQS!$D$5:$AU$107,MATCH(PQS!$Q$3,PQS!$D$3:$AU$3,0),FALSE),\"\")","v":""},{"$f":"IFERROR(VLOOKUP($A78,PQS!$D$5:$AU$107,MATCH(PQS!$AL$3,PQS!$D$3:$AU$3,0),FALSE),\"\")","v":""},"",{"$f":"IFERROR(VLOOKUP($A78,PQS!$D$5:$AU$107,MATCH(PQS!$I$3,PQS!$D$3:$AU$3,0),FALSE),\"\")","v":""},{"$f":"IFERROR(VLOOKUP($A78,PQS!$D$5:$AU$107,MATCH(PQS!$J$3,PQS!$D$3:$AU$3,0),FALSE),\"\")","v":""},{"$f":"IFERROR(VLOOKUP($A78,PQS!$D$5:$AU$107,MATCH(PQS!$AK$3,PQS!$D$3:$AU$3,0),FALSE),\"\")","v":""},{"$f":"IFERROR(VLOOKUP($A78,PQS!$D$5:$AU$107,COLUMN(PQS!$AA$5)-3,FALSE),\"\")","v":""},{"$f":"IFERROR(VLOOKUP($A78,PQS!$D$5:$AU$107,MATCH(PQS!$H$3,PQS!$D$3:$AU$3,0),FALSE),\"\")","v":""},{"$f":"IFERROR(VLOOKUP($A78,PQS!$D$5:$AU$107,MATCH(PQS!$AF$3,PQS!$D$3:$AU$3,0),FALSE),\"\")","v":""},{"$f":"IFERROR(HYPERLINK(VLOOKUP($A78,PQS!$D$5:$AU$107,MATCH(PQS!$AJ$3,PQS!$D$3:$AU$3,0),FALSE),VLOOKUP($A78,PQS!$D$5:$AU$107,MATCH(PQS!$AI$3,PQS!$D$3:$AU$3,0),FALSE)),\"\")","v":""}]
[null,null,null,null,{"$f":"IFERROR(VLOOKUP($A79,PQS!$D$5:$AU$107,MATCH(PQS!$Q$3,PQS!$D$3:$AU$3,0),FALSE),\"\")","v":""},{"$f":"IFERROR(VLOOKUP($A79,PQS!$D$5:$AU$107,MATCH(PQS!$AL$3,PQS!$D$3:$AU$3,0),FALSE),\"\")","v":""},"",{"$f":"IFERROR(VLOOKUP($A79,PQS!$D$5:$AU$107,MATCH(PQS!$I$3,PQS!$D$3:$AU$3,0),FALSE),\"\")","v":""},{"$f":"IFERROR(VLOOKUP($A79,PQS!$D$5:$AU$107,MATCH(PQS!$J$3,PQS!$D$3:$AU$3,0),FALSE),\"\")","v":""},{"$f":"IFERROR(VLOOKUP($A79,PQS!$D$5:$AU$107,MATCH(PQS!$AK$3,PQS!$D$3:$AU$3,0),FALSE),\"\")","v":""},{"$f":"IFERROR(VLOOKUP($A79,PQS!$D$5:$AU$107,COLUMN(PQS!$AA$5)-3,FALSE),\"\")","v":""},{"$f":"IFERROR(VLOOKUP($A79,PQS!$D$5:$AU$107,MATCH(PQS!$H$3,PQS!$D$3:$AU$3,0),FALSE),\"\")","v":""},{"$f":"IFERROR(VLOOKUP($A79,PQS!$D$5:$AU$107,MATCH(PQS!$AF$3,PQS!$D$3:$AU$3,0),FALSE),\"\")","v":""},{"$f":"IFERROR(HYPERLINK(VLOOKUP($A79,PQS!$D$5:$AU$107,MATCH(PQS!$AJ$3,PQS!$D$3:$AU$3,0),FALSE),VLOOKUP($A79,PQS!$D$5:$AU$107,MATCH(PQS!$AI$3,PQS!$D$3:$AU$3,0),FALSE)),\"\")","v":""}]
[null,null,null,null,{"$f":"IFERROR(VLOOKUP($A80,PQS!$D$5:$AU$107,MATCH(PQS!$Q$3,PQS!$D$3:$AU$3,0),FALSE),\"\")","v":""},{"$f":"IFERROR(VLOOKUP($A80,PQS!$D$5:$AU$107,MATCH(PQS!$AL$3,PQS!$D$3:$AU$3,0),FALSE),\"\")","v":""},"",{"$f":"IFERROR(VLOOKUP($A80,PQS!$D$5:$AU$107,MATCH(PQS!$I$3,PQS!$D$3:$AU$3,0),FALSE),\"\")","v":""},{"$f":"IFERROR(VLOOKUP($A80,PQS!$D$5:$AU$107,MATCH(PQS!$J$3,PQS!$D$3:$AU$3,0),FALSE),\"\")","v":""},{"$f":"IFERROR(VLOOKUP($A80,PQS!$D$5:$AU$107,MATCH(PQS!$AK$3,PQS!$D$3:$AU$3,0),FALSE),\"\")","v":""},{"$f":"IFERROR(VLOOKUP($A80,PQS!$D$5:$AU$107,COLUMN(PQS!$AA$5)-3,FALSE),\"\")","v":""},{"$f":"IFERROR(VLOOKUP($A80,PQS!$D$5:$AU$107,MATCH(PQS!$H$3,PQS!$D$3:$AU$3,0),FALSE),\"\")","v":""},{"$f":"IFERROR(VLOOKUP($A80,PQS!$D$5:$AU$107,MATCH(PQS!$AF$3,PQS!$D$3:$AU$3,0),FALSE),\"\")","v":""},{"$f":"IFERROR(HYPERLINK(VLOOKUP($A80,PQS!$D$5:$AU$107,MATCH(PQS!$AJ$3,PQS!$D$3:$AU$3,0),FALSE),VLOOKUP($A80,PQS!$D$5:$AU$107,MATCH(PQS!$AI$3,PQS!$D$3:$AU$3,0),FALSE)),\"\")","v":""}]
[null,null,null,null,{"$f":"IFERROR(VLOOKUP($A81,PQS!$D$5:$AU$107,MATCH(PQS!$Q$3,PQS!$D$3:$AU$3,0),FALSE),\"\")","v":""},{"$f":"IFERROR(VLOOKUP($A81,PQS!$D$5:$AU$107,MATCH(PQS!$AL$3,PQS!$D$3:$AU$3,0),FALSE),\"\")","v":""},"",{"$f":"IFERROR(VLOOKUP($A81,PQS!$D$5:$AU$107,MATCH(PQS!$I$3,PQS!$D$3:$AU$3,0),FALSE),\"\")","v":""},{"$f":"IFERROR(VLOOKUP($A81,PQS!$D$5:$AU$107,MATCH(PQS!$J$3,PQS!$D$3:$AU$3,0),FALSE),\"\")","v":""},{"$f":"IFERROR(VLOOKUP($A81,PQS!$D$5:$AU$107,MATCH(PQS!$AK$3,PQS!$D$3:$AU$3,0),FALSE),\"\")","v":""},{"$f":"IFERROR(VLOOKUP($A81,PQS!$D$5:$AU$107,COLUMN(PQS!$AA$5)-3,FALSE),\"\")","v":""},{"$f":"IFERROR(VLOOKUP($A81,PQS!$D$5:$AU$107,MATCH(PQS!$H$3,PQS!$D$3:$AU$3,0),FALSE),\"\")","v":""},{"$f":"IFERROR(VLOOKUP($A81,PQS!$D$5:$AU$107,MATCH(PQS!$AF$3,PQS!$D$3:$AU$3,0),FALSE),\"\")","v":""},{"$f":"IFERROR(HYPERLINK(VLOOKUP($A81,PQS!$D$5:$AU$107,MATCH(PQS!$AJ$3,PQS!$D$3:$AU$3,0),FALSE),VLOOKUP($A81,PQS!$D$5:$AU$107,MATCH(PQS!$AI$3,PQS!$D$3:$AU$3,0),FALSE)),\"\")","v":""}]
[null,null,null,null,{"$f":"IFERROR(VLOOKUP($A82,PQS!$D$5:$AU$107,MATCH(PQS!$Q$3,PQS!$D$3:$AU$3,0),FALSE),\"\")","v":""},{"$f":"IFERROR(VLOOKUP($A82,PQS!$D$5:$AU$107,MATCH(PQS!$AL$3,PQS!$D$3:$AU$3,0),FALSE),\"\")","v":""},"",{"$f":"IFERROR(VLOOKUP($A82,PQS!$D$5:$AU$107,MATCH(PQS!$I$3,PQS!$D$3:$AU$3,0),FALSE),\"\")","v":""},{"$f":"IFERROR(VLOOKUP($A82,PQS!$D$5:$AU$107,MATCH(PQS!$J$3,PQS!$D$3:$AU$3,0),FALSE),\"\")","v":""},{"$f":"IFERROR(VLOOKUP($A82,PQS!$D$5:$AU$107,MATCH(PQS!$AK$3,PQS!$D$3:$AU$3,0),FALSE),\"\")","v":""},{"$f":"IFERROR(VLOOKUP($A82,PQS!$D$5:$AU$107,COLUMN(PQS!$AA$5)-3,FALSE),\"\")","v":""},{"$f":"IFERROR(VLOOKUP($A82,PQS!$D$5:$AU$107,MATCH(PQS!$H$3,PQS!$D$3:$AU$3,0),FALSE),\"\")","v":""},{"$f":"IFERROR(VLOOKUP($A82,PQS!$D$5:$AU$107,MATCH(PQS!$AF$3,PQS!$D$3:$AU$3,0),FALSE),\"\")","v":""},{"$f":"IFERROR(HYPERLINK(VLOOKUP($A82,PQS!$D$5:$AU$107,MATCH(PQS!$AJ$3,PQS!$D$3:$AU$3,0),FALSE),VLOOKUP($A82,PQS!$D$5:$AU$107,MATCH(PQS!$AI$3,PQS!$D$3:$AU$3,0),FALSE)),\"\")","v":""}]
[null,null,null,null,{"$f":"IFERROR(VLOOKUP($A83,PQS!$D$5:$AU$107,MATCH(PQS!$Q$3,PQS!$D$3:$AU$3,0),FALSE),\"\")","v":""},{"$f":"IFERROR(VLOOKUP($A83,PQS!$D$5:$AU$107,MATCH(PQS!$AL$3,PQS!$D$3:$AU$3,0),FALSE),\"\")","v":""},"",{"$f":"IFERROR(VLOOKUP($A83,PQS!$D$5:$AU$107,MATCH(PQS!$I$3,PQS!$D$3:$AU$3,0),FALSE),\"\")","v":""},{"$f":"IFERROR(VLOOKUP($A83,PQS!$D$5:$AU$107,MATCH(PQS!$J$3,PQS!$D$3:$AU$3,0),FALSE),\"\")","v":""},{"$f":"IFERROR(VLOOKUP($A83,PQS!$D$5:$AU$107,MATCH(PQS!$AK$3,PQS!$D$3:$AU$3,0),FALSE),\"\")","v":""},{"$f":"IFERROR(VLOOKUP($A83,PQS!$D$5:$AU$107,COLUMN(PQS!$AA$5)-3,FALSE),\"\")","v":""},{"$f":"IFERROR(VLOOKUP($A83,PQS!$D$5:$AU$107,MATCH(PQS!$H$3,PQS!$D$3:$AU$3,0),FALSE),\"\")","v":""},{"$f":"IFERROR(VLOOKUP($A83,PQS!$D$5:$AU$107,MATCH(PQS!$AF$3,PQS!$D$3:$AU$3,0),FALSE),\"\")","v":""},{"$f":"IFERROR(HYPERLINK(VLOOKUP($A83,PQS!$D$5:$AU$107,MATCH(PQS!$AJ$3,PQS!$D$3:$AU$3,0),FALSE),VLOOKUP($A83,PQS!$D$5:$AU$107,MATCH(PQS!$AI$3,PQS!$D$3:$AU$3,0),FALSE)),\"\")","v":""}]
[null,null,null,null,{"$f":"IFERROR(VLOOKUP($A84,PQS!$D$5:$AU$107,MATCH(PQS!$Q$3,PQS!$D$3:$AU$3,0),FALSE),\"\")","v":""},{"$f":"IFERROR(VLOOKUP($A84,PQS!$D$5:$AU$107,MATCH(PQS!$AL$3,PQS!$D$3:$AU$3,0),FALSE),\"\")","v":""},"",{"$f":"IFERROR(VLOOKUP($A84,PQS!$D$5:$AU$107,MATCH(PQS!$I$3,PQS!$D$3:$AU$3,0),FALSE),\"\")","v":""},{"$f":"IFERROR(VLOOKUP($A84,PQS!$D$5:$AU$107,MATCH(PQS!$J$3,PQS!$D$3:$AU$3,0),FALSE),\"\")","v":""},{"$f":"IFERROR(VLOOKUP($A84,PQS!$D$5:$AU$107,MATCH(PQS!$AK$3,PQS!$D$3:$AU$3,0),FALSE),\"\")","v":""},{"$f":"IFERROR(VLOOKUP($A84,PQS!$D$5:$AU$107,COLUMN(PQS!$AA$5)-3,FALSE),\"\")","v":""},{"$f":"IFERROR(VLOOKUP($A84,PQS!$D$5:$AU$107,MATCH(PQS!$H$3,PQS!$D$3:$AU$3,0),FALSE),\"\")","v":""},{"$f":"IFERROR(VLOOKUP($A84,PQS!$D$5:$AU$107,MATCH(PQS!$AF$3,PQS!$D$3:$AU$3,0),FALSE),\"\")","v":""},{"$f":"IFERROR(HYPERLINK(VLOOKUP($A84,PQS!$D$5:$AU$107,MATCH(PQS!$AJ$3,PQS!$D$3:$AU$3,0),FALSE),VLOOKUP($A84,PQS!$D$5:$AU$107,MATCH(PQS!$AI$3,PQS!$D$3:$AU$3,0),FALSE)),\"\")","v":""}]
[null,null,null,null,{"$f":"IFERROR(VLOOKUP($A85,PQS!$D$5:$AU$107,MATCH(PQS!$Q$3,PQS!$D$3:$AU$3,0),FALSE),\"\")","v":""},{"$f":"IFERROR(VLOOKUP($A85,PQS!$D$5:$AU$107,MATCH(PQS!$AL$3,PQS!$D$3:$AU$3,0),FALSE),\"\")","v":""},"",{"$f":"IFERROR(VLOOKUP($A85,PQS!$D$5:$AU$107,MATCH(PQS!$I$3,PQS!$D$3:$AU$3,0),FALSE),\"\")","v":""},{"$f":"IFERROR(VLOOKUP($A85,PQS!$D$5:$AU$107,MATCH(PQS!$J$3,PQS!$D$3:$AU$3,0),FALSE),\"\")","v":""},{"$f":"IFERROR(VLOOKUP($A85,PQS!$D$5:$AU$107,MATCH(PQS!$AK$3,PQS!$D$3:$AU$3,0),FALSE),\"\")","v":""},{"$f":"IFERROR(VLOOKUP($A85,PQS!$D$5:$AU$107,COLUMN(PQS!$AA$5)-3,FALSE),\"\")","v":""},{"$f":"IFERROR(VLOOKUP($A85,PQS!$D$5:$AU$107,MATCH(PQS!$H$3,PQS!$D$3:$AU$3,0),FALSE),\"\")","v":""},{"$f":"IFERROR(VLOOKUP($A85,PQS!$D$5:$AU$107,MATCH(PQS!$AF$3,PQS!$D$3:$AU$3,0),FALSE),\"\")","v":""},{"$f":"IFERROR(HYPERLINK(VLOOKUP($A85,PQS!$D$5:$AU$107,MATCH(PQS!$AJ$3,PQS!$D$3:$AU$3,0),FALSE),VLOOKUP($A85,PQS!$D$5:$AU$107,MATCH(PQS!$AI$3,PQS!$D$3:$AU$3,0),FALSE)),\"\")","v":""}]
[null,null,null,null,{"$f":"IFERROR(VLOOKUP($A86,PQS!$D$5:$AU$107,MATCH(PQS!$Q$3,PQS!$D$3:$AU$3,0),FALSE),\"\")","v":""},{"$f":"IFERROR(VLOOKUP($A86,PQS!$D$5:$AU$107,MATCH(PQS!$AL$3,PQS!$D$3:$AU$3,0),FALSE),\"\")","v":""},"",{"$f":"IFERROR(VLOOKUP($A86,PQS!$D$5:$AU$107,MATCH(PQS!$I$3,PQS!$D$3:$AU$3,0),FALSE),\"\")","v":""},{"$f":"IFERROR(VLOOKUP($A86,PQS!$D$5:$AU$107,MATCH(PQS!$J$3,PQS!$D$3:$AU$3,0),FALSE),\"\")","v":""},{"$f":"IFERROR(VLOOKUP($A86,PQS!$D$5:$AU$107,MATCH(PQS!$AK$3,PQS!$D$3:$AU$3,0),FALSE),\"\")","v":""},{"$f":"IFERROR(VLOOKUP($A86,PQS!$D$5:$AU$107,COLUMN(PQS!$AA$5)-3,FALSE),\"\")","v":""},{"$f":"IFERROR(VLOOKUP($A86,PQS!$D$5:$AU$107,MATCH(PQS!$H$3,PQS!$D$3:$AU$3,0),FALSE),\"\")","v":""},{"$f":"IFERROR(VLOOKUP($A86,PQS!$D$5:$AU$107,MATCH(PQS!$AF$3,PQS!$D$3:$AU$3,0),FALSE),\"\")","v":""},{"$f":"IFERROR(HYPERLINK(VLOOKUP($A86,PQS!$D$5:$AU$107,MATCH(PQS!$AJ$3,PQS!$D$3:$AU$3,0),FALSE),VLOOKUP($A86,PQS!$D$5:$AU$107,MATCH(PQS!$AI$3,PQS!$D$3:$AU$3,0),FALSE)),\"\")","v":""}]
[null,null,null,null,{"$f":"IFERROR(VLOOKUP($A87,PQS!$D$5:$AU$107,MATCH(PQS!$Q$3,PQS!$D$3:$AU$3,0),FALSE),\"\")","v":""},{"$f":"IFERROR(VLOOKUP($A87,PQS!$D$5:$AU$107,MATCH(PQS!$AL$3,PQS!$D$3:$AU$3,0),FALSE),\"\")","v":""},"",{"$f":"IFERROR(VLOOKUP($A87,PQS!$D$5:$AU$107,MATCH(PQS!$I$3,PQS!$D$3:$AU$3,0),FALSE),\"\")","v":""},{"$f":"IFERROR(VLOOKUP($A87,PQS!$D$5:$AU$107,MATCH(PQS!$J$3,PQS!$D$3:$AU$3,0),FALSE),\"\")","v":""},{"$f":"IFERROR(VLOOKUP($A87,PQS!$D$5:$AU$107,MATCH(PQS!$AK$3,PQS!$D$3:$AU$3,0),FALSE),\"\")","v":""},{"$f":"IFERROR(VLOOKUP($A87,PQS!$D$5:$AU$107,COLUMN(PQS!$AA$5)-3,FALSE),\"\")","v":""},{"$f":"IFERROR(VLOOKUP($A87,PQS!$D$5:$AU$107,MATCH(PQS!$H$3,PQS!$D$3:$AU$3,0),FALSE),\"\")","v":""},{"$f":"IFERROR(VLOOKUP($A87,PQS!$D$5:$AU$107,MATCH(PQS!$AF$3,PQS!$D$3:$AU$3,0),FALSE),\"\")","v":""},{"$f":"IFERROR(HYPERLINK(VLOOKUP($A87,PQS!$D$5:$AU$107,MATCH(PQS!$AJ$3,PQS!$D$3:$AU$3,0),FALSE),VLOOKUP($A87,PQS!$D$5:$AU$107,MATCH(PQS!$AI$3,PQS!$D$3:$AU$3,0),FALSE)),\"\")","v":""}]
[null,null,null,null,{"$f":"IFERROR(VLOOKUP($A88,PQS!$D$5:$AU$107,MATCH(PQS!$Q$3,PQS!$D$3:$AU$3,0),FALSE),\"\")","v":""},{"$f":"IFERROR(VLOOKUP($A88,PQS!$D$5:$AU$107,MATCH(PQS!$AL$3,PQS!$D$3:$AU$3,0),FALSE),\"\")","v":""},"",{"$f":"IFERROR(VLOOKUP($A88,PQS!$D$5:$AU$107,MATCH(PQS!$I$3,PQS!$D$3:$AU$3,0),FALSE),\"\")","v":""},{"$f":"IFERROR(VLOOKUP($A88,PQS!$D$5:$AU$107,MATCH(PQS!$J$3,PQS!$D$3:$AU$3,0),FALSE),\"\")","v":""},{"$f":"IFERROR(VLOOKUP($A88,PQS!$D$5:$AU$107,MATCH(PQS!$AK$3,PQS!$D$3:$AU$3,0),FALSE),\"\")","v":""},{"$f":"IFERROR(VLOOKUP($A88,PQS!$D$5:$AU$107,COLUMN(PQS!$AA$5)-3,FALSE),\"\")","v":""},{"$f":"IFERROR(VLOOKUP($A88,PQS!$D$5:$AU$107,MATCH(PQS!$H$3,PQS!$D$3:$AU$3,0),FALSE),\"\")","v":""},{"$f":"IFERROR(VLOOKUP($A88,PQS!$D$5:$AU$107,MATCH(PQS!$AF$3,PQS!$D$3:$AU$3,0),FALSE),\"\")","v":""},{"$f":"IFERROR(HYPERLINK(VLOOKUP($A88,PQS!$D$5:$AU$107,MATCH(PQS!$AJ$3,PQS!$D$3:$AU$3,0),FALSE),VLOOKUP($A88,PQS!$D$5:$AU$107,MATCH(PQS!$AI$3,PQS!$D$3:$AU$3,0),FALSE)),\"\")","v":""}]
[null,null,null,null,{"$f":"IFERROR(VLOOKUP($A89,PQS!$D$5:$AU$107,MATCH(PQS!$Q$3,PQS!$D$3:$AU$3,0),FALSE),\"\")","v":""},{"$f":"IFERROR(VLOOKUP($A89,PQS!$D$5:$AU$107,MATCH(PQS!$AL$3,PQS!$D$3:$AU$3,0),FALSE),\"\")","v":""},"",{"$f":"IFERROR(VLOOKUP($A89,PQS!$D$5:$AU$107,MATCH(PQS!$I$3,PQS!$D$3:$AU$3,0),FALSE),\"\")","v":""},{"$f":"IFERROR(VLOOKUP($A89,PQS!$D$5:$AU$107,MATCH(PQS!$J$3,PQS!$D$3:$AU$3,0),FALSE),\"\")","v":""},{"$f":"IFERROR(VLOOKUP($A89,PQS!$D$5:$AU$107,MATCH(PQS!$AK$3,PQS!$D$3:$AU$3,0),FALSE),\"\")","v":""},{"$f":"IFERROR(VLOOKUP($A89,PQS!$D$5:$AU$107,COLUMN(PQS!$AA$5)-3,FALSE),\"\")","v":""},{"$f":"IFERROR(VLOOKUP($A89,PQS!$D$5:$AU$107,MATCH(PQS!$H$3,PQS!$D$3:$AU$3,0),FALSE),\"\")","v":""},{"$f":"IFERROR(VLOOKUP($A89,PQS!$D$5:$AU$107,MATCH(PQS!$AF$3,PQS!$D$3:$AU$3,0),FALSE),\"\")","v":""},{"$f":"IFERROR(HYPERLINK(VLOOKUP($A89,PQS!$D$5:$AU$107,MATCH(PQS!$AJ$3,PQS!$D$3:$AU$3,0),FALSE),VLOOKUP($A89,PQS!$D$5:$AU$107,MATCH(PQS!$AI$3,PQS!$D$3:$AU$3,0),FALSE)),\"\")","v":""}]
[null,null,null,null,{"$f":"IFERROR(VLOOKUP($A90,PQS!$D$5:$AU$107,MATCH(PQS!$Q$3,PQS!$D$3:$AU$3,0),FALSE),\"\")","v":""},{"$f":"IFERROR(VLOOKUP($A90,PQS!$D$5:$AU$107,MATCH(PQS!$AL$3,PQS!$D$3:$AU$3,0),FALSE),\"\")","v":""},{"$f":"IF(E90=\"\",\"\",(B90/C90))","v":""},{"$f":"IFERROR(VLOOKUP($A90,PQS!$D$5:$AU$107,MATCH(PQS!$I$3,PQS!$D$3:$AU$3,0),FALSE),\"\")","v":""},{"$f":"IFERROR(VLOOKUP($A90,PQS!$D$5:$AU$107,MATCH(PQS!$J$3,PQS!$D$3:$AU$3,0),FALSE),\"\")","v":""},{"$f":"IFERROR(VLOOKUP($A90,PQS!$D$5:$AU$107,MATCH(PQS!$AK$3,PQS!$D$3:$AU$3,0),FALSE),\"\")","v":""},{"$f":"IFERROR(VLOOKUP($A90,PQS!$D$5:$AU$107,COLUMN(PQS!$AA$5)-3,FALSE),\"\")","v":""},{"$f":"IFERROR(VLOOKUP($A90,PQS!$D$5:$AU$107,MATCH(PQS!$H$3,PQS!$D$3:$AU$3,0),FALSE),\"\")","v":""},{"$f":"IFERROR(VLOOKUP($A90,PQS!$D$5:$AU$107,MATCH(PQS!$AF$3,PQS!$D$3:$AU$3,0),FALSE),\"\")","v":""},{"$f":"IFERROR(HYPERLINK(VLOOKUP($A90,PQS!$D$5:$AU$107,MATCH(PQS!$AJ$3,PQS!$D$3:$AU$3,0),FALSE),VLOOKUP($A90,PQS!$D$5:$AU$107,MATCH(PQS!$AI$3,PQS!$D$3:$AU$3,0),FALSE)),\"\")","v":""}]
[null,null,null,null,{"$f":"IFERROR(VLOOKUP($A91,PQS!$D$5:$AU$107,MATCH(PQS!$Q$3,PQS!$D$3:$AU$3,0),FALSE),\"\")","v":""},{"$f":"IFERROR(VLOOKUP($A91,PQS!$D$5:$AU$107,MATCH(PQS!$AL$3,PQS!$D$3:$AU$3,0),FALSE),\"\")","v":""},"",{"$f":"IFERROR(VLOOKUP($A91,PQS!$D$5:$AU$107,MATCH(PQS!$I$3,PQS!$D$3:$AU$3,0),FALSE),\"\")","v":""},{"$f":"IFERROR(VLOOKUP($A91,PQS!$D$5:$AU$107,MATCH(PQS!$J$3,PQS!$D$3:$AU$3,0),FALSE),\"\")","v":""},{"$f":"IFERROR(VLOOKUP($A91,PQS!$D$5:$AU$107,MATCH(PQS!$AK$3,PQS!$D$3:$AU$3,0),FALSE),\"\")","v":""},{"$f":"IFERROR(VLOOKUP($A91,PQS!$D$5:$AU$107,COLUMN(PQS!$AA$5)-3,FALSE),\"\")","v":""},{"$f":"IFERROR(VLOOKUP($A91,PQS!$D$5:$AU$107,MATCH(PQS!$H$3,PQS!$D$3:$AU$3,0),FALSE),\"\")","v":""},{"$f":"IFERROR(VLOOKUP($A91,PQS!$D$5:$AU$107,MATCH(PQS!$AF$3,PQS!$D$3:$AU$3,0),FALSE),\"\")","v":""},{"$f":"IFERROR(HYPERLINK(VLOOKUP($A91,PQS!$D$5:$AU$107,MATCH(PQS!$AJ$3,PQS!$D$3:$AU$3,0),FALSE),VLOOKUP($A91,PQS!$D$5:$AU$107,MATCH(PQS!$AI$3,PQS!$D$3:$AU$3,0),FALSE)),\"\")","v":""}]
[null,null,null,null,{"$f":"IFERROR(VLOOKUP($A92,PQS!$D$5:$AU$107,MATCH(PQS!$Q$3,PQS!$D$3:$AU$3,0),FALSE),\"\")","v":""},{"$f":"IFERROR(VLOOKUP($A92,PQS!$D$5:$AU$107,MATCH(PQS!$AL$3,PQS!$D$3:$AU$3,0),FALSE),\"\")","v":""},"",{"$f":"IFERROR(VLOOKUP($A92,PQS!$D$5:$AU$107,MATCH(PQS!$I$3,PQS!$D$3:$AU$3,0),FALSE),\"\")","v":""},{"$f":"IFERROR(VLOOKUP($A92,PQS!$D$5:$AU$107,MATCH(PQS!$J$3,PQS!$D$3:$AU$3,0),FALSE),\"\")","v":""},{"$f":"IFERROR(VLOOKUP($A92,PQS!$D$5:$AU$107,MATCH(PQS!$AK$3,PQS!$D$3:$AU$3,0),FALSE),\"\")","v":""},{"$f":"IFERROR(VLOOKUP($A92,PQS!$D$5:$AU$107,COLUMN(PQS!$AA$5)-3,FALSE),\"\")","v":""},{"$f":"IFERROR(VLOOKUP($A92,PQS!$D$5:$AU$107,MATCH(PQS!$H$3,PQS!$D$3:$AU$3,0),FALSE),\"\")","v":""},{"$f":"IFERROR(VLOOKUP($A92,PQS!$D$5:$AU$107,MATCH(PQS!$AF$3,PQS!$D$3:$AU$3,0),FALSE),\"\")","v":""},{"$f":"IFERROR(HYPERLINK(VLOOKUP($A92,PQS!$D$5:$AU$107,MATCH(PQS!$AJ$3,PQS!$D$3:$AU$3,0),FALSE),VLOOKUP($A92,PQS!$D$5:$AU$107,MATCH(PQS!$AI$3,PQS!$D$3:$AU$3,0),FALSE)),\"\")","v":""}]
[null,null,null,null,{"$f":"IFERROR(VLOOKUP($A93,PQS!$D$5:$AU$107,MATCH(PQS!$Q$3,PQS!$D$3:$AU$3,0),FALSE),\"\")","v":""},{"$f":"IFERROR(VLOOKUP($A93,PQS!$D$5:$AU$107,MATCH(PQS!$AL$3,PQS!$D$3:$AU$3,0),FALSE),\"\")","v":""},"",{"$f":"IFERROR(VLOOKUP($A93,PQS!$D$5:$AU$107,MATCH(PQS!$I$3,PQS!$D$3:$AU$3,0),FALSE),\"\")","v":""},{"$f":"IFERROR(VLOOKUP($A93,PQS!$D$5:$AU$107,MATCH(PQS!$J$3,PQS!$D$3:$AU$3,0),FALSE),\"\")","v":""},{"$f":"IFERROR(VLOOKUP($A93,PQS!$D$5:$AU$107,MATCH(PQS!$AK$3,PQS!$D$3:$AU$3,0),FALSE),\"\")","v":""},{"$f":"IFERROR(VLOOKUP($A93,PQS!$D$5:$AU$107,COLUMN(PQS!$AA$5)-3,FALSE),\"\")","v":""},{"$f":"IFERROR(VLOOKUP($A93,PQS!$D$5:$AU$107,MATCH(PQS!$H$3,PQS!$D$3:$AU$3,0),FALSE),\"\")","v":""},{"$f":"IFERROR(VLOOKUP($A93,PQS!$D$5:$AU$107,MATCH(PQS!$AF$3,PQS!$D$3:$AU$3,0),FALSE),\"\")","v":""},{"$f":"IFERROR(HYPERLINK(VLOOKUP($A93,PQS!$D$5:$AU$107,MATCH(PQS!$AJ$3,PQS!$D$3:$AU$3,0),FALSE),VLOOKUP($A93,PQS!$D$5:$AU$107,MATCH(PQS!$AI$3,PQS!$D$3:$AU$3,0),FALSE)),\"\")","v":""}]
[null,null,null,null,{"$f":"IFERROR(VLOOKUP($A94,PQS!$D$5:$AU$107,MATCH(PQS!$Q$3,PQS!$D$3:$AU$3,0),FALSE),\"\")","v":""},{"$f":"IFERROR(VLOOKUP($A94,PQS!$D$5:$AU$107,MATCH(PQS!$AL$3,PQS!$D$3:$AU$3,0),FALSE),\"\")","v":""},"",{"$f":"IFERROR(VLOOKUP($A94,PQS!$D$5:$AU$107,MATCH(PQS!$I$3,PQS!$D$3:$AU$3,0),FALSE),\"\")","v":""},{"$f":"IFERROR(VLOOKUP($A94,PQS!$D$5:$AU$107,MATCH(PQS!$J$3,PQS!$D$3:$AU$3,0),FALSE),\"\")","v":""},{"$f":"IFERROR(VLOOKUP($A94,PQS!$D$5:$AU$107,MATCH(PQS!$AK$3,PQS!$D$3:$AU$3,0),FALSE),\"\")","v":""},{"$f":"IFERROR(VLOOKUP($A94,PQS!$D$5:$AU$107,COLUMN(PQS!$AA$5)-3,FALSE),\"\")","v":""},{"$f":"IFERROR(VLOOKUP($A94,PQS!$D$5:$AU$107,MATCH(PQS!$H$3,PQS!$D$3:$AU$3,0),FALSE),\"\")","v":""},{"$f":"IFERROR(VLOOKUP($A94,PQS!$D$5:$AU$107,MATCH(PQS!$AF$3,PQS!$D$3:$AU$3,0),FALSE),\"\")","v":""},{"$f":"IFERROR(HYPERLINK(VLOOKUP($A94,PQS!$D$5:$AU$107,MATCH(PQS!$AJ$3,PQS!$D$3:$AU$3,0),FALSE),VLOOKUP($A94,PQS!$D$5:$AU$107,MATCH(PQS!$AI$3,PQS!$D$3:$AU$3,0),FALSE)),\"\")","v":""}]
[null,null,null,null,{"$f":"IFERROR(VLOOKUP($A95,PQS!$D$5:$AU$107,MATCH(PQS!$Q$3,PQS!$D$3:$AU$3,0),FALSE),\"\")","v":""},{"$f":"IFERROR(VLOOKUP($A95,PQS!$D$5:$AU$107,MATCH(PQS!$AL$3,PQS!$D$3:$AU$3,0),FALSE),\"\")","v":""},"",{"$f":"IFERROR(VLOOKUP($A95,PQS!$D$5:$AU$107,MATCH(PQS!$I$3,PQS!$D$3:$AU$3,0),FALSE),\"\")","v":""},{"$f":"IFERROR(VLOOKUP($A95,PQS!$D$5:$AU$107,MATCH(PQS!$J$3,PQS!$D$3:$AU$3,0),FALSE),\"\")","v":""},{"$f":"IFERROR(VLOOKUP($A95,PQS!$D$5:$AU$107,MATCH(PQS!$AK$3,PQS!$D$3:$AU$3,0),FALSE),\"\")","v":""},{"$f":"IFERROR(VLOOKUP($A95,PQS!$D$5:$AU$107,COLUMN(PQS!$AA$5)-3,FALSE),\"\")","v":""},{"$f":"IFERROR(VLOOKUP($A95,PQS!$D$5:$AU$107,MATCH(PQS!$H$3,PQS!$D$3:$AU$3,0),FALSE),\"\")","v":""},{"$f":"IFERROR(VLOOKUP($A95,PQS!$D$5:$AU$107,MATCH(PQS!$AF$3,PQS!$D$3:$AU$3,0),FALSE),\"\")","v":""},{"$f":"IFERROR(HYPERLINK(VLOOKUP($A95,PQS!$D$5:$AU$107,MATCH(PQS!$AJ$3,PQS!$D$3:$AU$3,0),FALSE),VLOOKUP($A95,PQS!$D$5:$AU$107,MATCH(PQS!$AI$3,PQS!$D$3:$AU$3,0),FALSE)),\"\")","v":""}]
[null,null,null,null,{"$f":"IFERROR(VLOOKUP($A96,PQS!$D$5:$AU$107,MATCH(PQS!$Q$3,PQS!$D$3:$AU$3,0),FALSE),\"\")","v":""},{"$f":"IFERROR(VLOOKUP($A96,PQS!$D$5:$AU$107,MATCH(PQS!$AL$3,PQS!$D$3:$AU$3,0),FALSE),\"\")","v":""},"",{"$f":"IFERROR(VLOOKUP($A96,PQS!$D$5:$AU$107,MATCH(PQS!$I$3,PQS!$D$3:$AU$3,0),FALSE),\"\")","v":""},{"$f":"IFERROR(VLOOKUP($A96,PQS!$D$5:$AU$107,MATCH(PQS!$J$3,PQS!$D$3:$AU$3,0),FALSE),\"\")","v":""},{"$f":"IFERROR(VLOOKUP($A96,PQS!$D$5:$AU$107,MATCH(PQS!$AK$3,PQS!$D$3:$AU$3,0),FALSE),\"\")","v":""},{"$f":"IFERROR(VLOOKUP($A96,PQS!$D$5:$AU$107,COLUMN(PQS!$AA$5)-3,FALSE),\"\")","v":""},{"$f":"IFERROR(VLOOKUP($A96,PQS!$D$5:$AU$107,MATCH(PQS!$H$3,PQS!$D$3:$AU$3,0),FALSE),\"\")","v":""},{"$f":"IFERROR(VLOOKUP($A96,PQS!$D$5:$AU$107,MATCH(PQS!$AF$3,PQS!$D$3:$AU$3,0),FALSE),\"\")","v":""},{"$f":"IFERROR(HYPERLINK(VLOOKUP($A96,PQS!$D$5:$AU$107,MATCH(PQS!$AJ$3,PQS!$D$3:$AU$3,0),FALSE),VLOOKUP($A96,PQS!$D$5:$AU$107,MATCH(PQS!$AI$3,PQS!$D$3:$AU$3,0),FALSE)),\"\")","v":""}]
[null,null,null,null,{"$f":"IFERROR(VLOOKUP($A97,PQS!$D$5:$AU$107,MATCH(PQS!$Q$3,PQS!$D$3:$AU$3,0),FALSE),\"\")","v":""},{"$f":"IFERROR(VLOOKUP($A97,PQS!$D$5:$AU$107,MATCH(PQS!$AL$3,PQS!$D$3:$AU$3,0),FALSE),\"\")","v":""},"",{"$f":"IFERROR(VLOOKUP($A97,PQS!$D$5:$AU$107,MATCH(PQS!$I$3,PQS!$D$3:$AU$3,0),FALSE),\"\")","v":""},{"$f":"IFERROR(VLOOKUP($A97,PQS!$D$5:$AU$107,MATCH(PQS!$J$3,PQS!$D$3:$AU$3,0),FALSE),\"\")","v":""},{"$f":"IFERROR(VLOOKUP($A97,PQS!$D$5:$AU$107,MATCH(PQS!$AK$3,PQS!$D$3:$AU$3,0),FALSE),\"\")","v":""},{"$f":"IFERROR(VLOOKUP($A97,PQS!$D$5:$AU$107,COLUMN(PQS!$AA$5)-3,FALSE),\"\")","v":""},{"$f":"IFERROR(VLOOKUP($A97,PQS!$D$5:$AU$107,MATCH(PQS!$H$3,PQS!$D$3:$AU$3,0),FALSE),\"\")","v":""},{"$f":"IFERROR(VLOOKUP($A97,PQS!$D$5:$AU$107,MATCH(PQS!$AF$3,PQS!$D$3:$AU$3,0),FALSE),\"\")","v":""},{"$f":"IFERROR(HYPERLINK(VLOOKUP($A97,PQS!$D$5:$AU$107,MATCH(PQS!$AJ$3,PQS!$D$3:$AU$3,0),FALSE),VLOOKUP($A97,PQS!$D$5:$AU$107,MATCH(PQS!$AI$3,PQS!$D$3:$AU$3,0),FALSE)),\"\")","v":""}]
[null,null,null,null,{"$f":"IFERROR(VLOOKUP($A98,PQS!$D$5:$AU$107,MATCH(PQS!$Q$3,PQS!$D$3:$AU$3,0),FALSE),\"\")","v":""},{"$f":"IFERROR(VLOOKUP($A98,PQS!$D$5:$AU$107,MATCH(PQS!$AL$3,PQS!$D$3:$AU$3,0),FALSE),\"\")","v":""},"",{"$f":"IFERROR(VLOOKUP($A98,PQS!$D$5:$AU$107,MATCH(PQS!$I$3,PQS!$D$3:$AU$3,0),FALSE),\"\")","v":""},{"$f":"IFERROR(VLOOKUP($A98,PQS!$D$5:$AU$107,MATCH(PQS!$J$3,PQS!$D$3:$AU$3,0),FALSE),\"\")","v":""},{"$f":"IFERROR(VLOOKUP($A98,PQS!$D$5:$AU$107,MATCH(PQS!$AK$3,PQS!$D$3:$AU$3,0),FALSE),\"\")","v":""},{"$f":"IFERROR(VLOOKUP($A98,PQS!$D$5:$AU$107,COLUMN(PQS!$AA$5)-3,FALSE),\"\")","v":""},{"$f":"IFERROR(VLOOKUP($A98,PQS!$D$5:$AU$107,MATCH(PQS!$H$3,PQS!$D$3:$AU$3,0),FALSE),\"\")","v":""},{"$f":"IFERROR(VLOOKUP($A98,PQS!$D$5:$AU$107,MATCH(PQS!$AF$3,PQS!$D$3:$AU$3,0),FALSE),\"\")","v":""},{"$f":"IFERROR(HYPERLINK(VLOOKUP($A98,PQS!$D$5:$AU$107,MATCH(PQS!$AJ$3,PQS!$D$3:$AU$3,0),FALSE),VLOOKUP($A98,PQS!$D$5:$AU$107,MATCH(PQS!$AI$3,PQS!$D$3:$AU$3,0),FALSE)),\"\")","v":""}]
[null,null,null,null,{"$f":"IFERROR(VLOOKUP($A99,PQS!$D$5:$AU$107,MATCH(PQS!$Q$3,PQS!$D$3:$AU$3,0),FALSE),\"\")","v":""},{"$f":"IFERROR(VLOOKUP($A99,PQS!$D$5:$AU$107,MATCH(PQS!$AL$3,PQS!$D$3:$AU$3,0),FALSE),\"\")","v":""},"",{"$f":"IFERROR(VLOOKUP($A99,PQS!$D$5:$AU$107,MATCH(PQS!$I$3,PQS!$D$3:$AU$3,0),FALSE),\"\")","v":""},{"$f":"IFERROR(VLOOKUP($A99,PQS!$D$5:$AU$107,MATCH(PQS!$J$3,PQS!$D$3:$AU$3,0),FALSE),\"\")","v":""},{"$f":"IFERROR(VLOOKUP($A99,PQS!$D$5:$AU$107,MATCH(PQS!$AK$3,PQS!$D$3:$AU$3,0),FALSE),\"\")","v":""},{"$f":"IFERROR(VLOOKUP($A99,PQS!$D$5:$AU$107,COLUMN(PQS!$AA$5)-3,FALSE),\"\")","v":""},{"$f":"IFERROR(VLOOKUP($A99,PQS!$D$5:$AU$107,MATCH(PQS!$H$3,PQS!$D$3:$AU$3,0),FALSE),\"\")","v":""},{"$f":"IFERROR(VLOOKUP($A99,PQS!$D$5:$AU$107,MATCH(PQS!$AF$3,PQS!$D$3:$AU$3,0),FALSE),\"\")","v":""},{"$f":"IFERROR(HYPERLINK(VLOOKUP($A99,PQS!$D$5:$AU$107,MATCH(PQS!$AJ$3,PQS!$D$3:$AU$3,0),FALSE),VLOOKUP($A99,PQS!$D$5:$AU$107,MATCH(PQS!$AI$3,PQS!$D$3:$AU$3,0),FALSE)),\"\")","v":""}]
[null,null,null,null,{"$f":"IFERROR(VLOOKUP($A100,PQS!$D$5:$AU$107,MATCH(PQS!$Q$3,PQS!$D$3:$AU$3,0),FALSE),\"\")","v":""},{"$f":"IFERROR(VLOOKUP($A100,PQS!$D$5:$AU$107,MATCH(PQS!$AL$3,PQS!$D$3:$AU$3,0),FALSE),\"\")","v":""},"",{"$f":"IFERROR(VLOOKUP($A100,PQS!$D$5:$AU$107,MATCH(PQS!$I$3,PQS!$D$3:$AU$3,0),FALSE),\"\")","v":""},{"$f":"IFERROR(VLOOKUP($A100,PQS!$D$5:$AU$107,MATCH(PQS!$J$3,PQS!$D$3:$AU$3,0),FALSE),\"\")","v":""},{"$f":"IFERROR(VLOOKUP($A100,PQS!$D$5:$AU$107,MATCH(PQS!$AK$3,PQS!$D$3:$AU$3,0),FALSE),\"\")","v":""},{"$f":"IFERROR(VLOOKUP($A100,PQS!$D$5:$AU$107,COLUMN(PQS!$AA$5)-3,FALSE),\"\")","v":""},{"$f":"IFERROR(VLOOKUP($A100,PQS!$D$5:$AU$107,MATCH(PQS!$H$3,PQS!$D$3:$AU$3,0),FALSE),\"\")","v":""},{"$f":"IFERROR(VLOOKUP($A100,PQS!$D$5:$AU$107,MATCH(PQS!$AF$3,PQS!$D$3:$AU$3,0),FALSE),\"\")","v":""},{"$f":"IFERROR(HYPERLINK(VLOOKUP($A100,PQS!$D$5:$AU$107,MATCH(PQS!$AJ$3,PQS!$D$3:$AU$3,0),FALSE),VLOOKUP($A100,PQS!$D$5:$AU$107,MATCH(PQS!$AI$3,PQS!$D$3:$AU$3,0),FALSE)),\"\")","v":""}]
[null,null,null,null,{"$f":"IFERROR(VLOOKUP($A101,PQS!$D$5:$AU$107,MATCH(PQS!$Q$3,PQS!$D$3:$AU$3,0),FALSE),\"\")","v":""},{"$f":"IFERROR(VLOOKUP($A101,PQS!$D$5:$AU$107,MATCH(PQS!$AL$3,PQS!$D$3:$AU$3,0),FALSE),\"\")","v":""},"",{"$f":"IFERROR(VLOOKUP($A101,PQS!$D$5:$AU$107,MATCH(PQS!$I$3,PQS!$D$3:$AU$3,0),FALSE),\"\")","v":""},{"$f":"IFERROR(VLOOKUP($A101,PQS!$D$5:$AU$107,MATCH(PQS!$J$3,PQS!$D$3:$AU$3,0),FALSE),\"\")","v":""},{"$f":"IFERROR(VLOOKUP($A101,PQS!$D$5:$AU$107,MATCH(PQS!$AK$3,PQS!$D$3:$AU$3,0),FALSE),\"\")","v":""},{"$f":"IFERROR(VLOOKUP($A101,PQS!$D$5:$AU$107,COLUMN(PQS!$AA$5)-3,FALSE),\"\")","v":""},{"$f":"IFERROR(VLOOKUP($A101,PQS!$D$5:$AU$107,MATCH(PQS!$H$3,PQS!$D$3:$AU$3,0),FALSE),\"\")","v":""},{"$f":"IFERROR(VLOOKUP($A101,PQS!$D$5:$AU$107,MATCH(PQS!$AF$3,PQS!$D$3:$AU$3,0),FALSE),\"\")","v":""},{"$f":"IFERROR(HYPERLINK(VLOOKUP($A101,PQS!$D$5:$AU$107,MATCH(PQS!$AJ$3,PQS!$D$3:$AU$3,0),FALSE),VLOOKUP($A101,PQS!$D$5:$AU$107,MATCH(PQS!$AI$3,PQS!$D$3:$AU$3,0),FALSE)),\"\")","v":""}]
[null,null,null,null,{"$f":"IFERROR(VLOOKUP($A102,PQS!$D$5:$AU$107,MATCH(PQS!$Q$3,PQS!$D$3:$AU$3,0),FALSE),\"\")","v":""},{"$f":"IFERROR(VLOOKUP($A102,PQS!$D$5:$AU$107,MATCH(PQS!$AL$3,PQS!$D$3:$AU$3,0),FALSE),\"\")","v":""},"",{"$f":"IFERROR(VLOOKUP($A102,PQS!$D$5:$AU$107,MATCH(PQS!$I$3,PQS!$D$3:$AU$3,0),FALSE),\"\")","v":""},{"$f":"IFERROR(VLOOKUP($A102,PQS!$D$5:$AU$107,MATCH(PQS!$J$3,PQS!$D$3:$AU$3,0),FALSE),\"\")","v":""},{"$f":"IFERROR(VLOOKUP($A102,PQS!$D$5:$AU$107,MATCH(PQS!$AK$3,PQS!$D$3:$AU$3,0),FALSE),\"\")","v":""},{"$f":"IFERROR(VLOOKUP($A102,PQS!$D$5:$AU$107,COLUMN(PQS!$AA$5)-3,FALSE),\"\")","v":""},{"$f":"IFERROR(VLOOKUP($A102,PQS!$D$5:$AU$107,MATCH(PQS!$H$3,PQS!$D$3:$AU$3,0),FALSE),\"\")","v":""},{"$f":"IFERROR(VLOOKUP($A102,PQS!$D$5:$AU$107,MATCH(PQS!$AF$3,PQS!$D$3:$AU$3,0),FALSE),\"\")","v":""},{"$f":"IFERROR(HYPERLINK(VLOOKUP($A102,PQS!$D$5:$AU$107,MATCH(PQS!$AJ$3,PQS!$D$3:$AU$3,0),FALSE),VLOOKUP($A102,PQS!$D$5:$AU$107,MATCH(PQS!$AI$3,PQS!$D$3:$AU$3,0),FALSE)),\"\")","v":""}]
[null,null,null,null,{"$f":"IFERROR(VLOOKUP($A103,PQS!$D$5:$AU$107,MATCH(PQS!$Q$3,PQS!$D$3:$AU$3,0),FALSE),\"\")","v":""},{"$f":"IFERROR(VLOOKUP($A103,PQS!$D$5:$AU$107,MATCH(PQS!$AL$3,PQS!$D$3:$AU$3,0),FALSE),\"\")","v":""},"",{"$f":"IFERROR(VLOOKUP($A103,PQS!$D$5:$AU$107,MATCH(PQS!$I$3,PQS!$D$3:$AU$3,0),FALSE),\"\")","v":""},{"$f":"IFERROR(VLOOKUP($A103,PQS!$D$5:$AU$107,MATCH(PQS!$J$3,PQS!$D$3:$AU$3,0),FALSE),\"\")","v":""},{"$f":"IFERROR(VLOOKUP($A103,PQS!$D$5:$AU$107,MATCH(PQS!$AK$3,PQS!$D$3:$AU$3,0),FALSE),\"\")","v":""},{"$f":"IFERROR(VLOOKUP($A103,PQS!$D$5:$AU$107,COLUMN(PQS!$AA$5)-3,FALSE),\"\")","v":""},{"$f":"IFERROR(VLOOKUP($A103,PQS!$D$5:$AU$107,MATCH(PQS!$H$3,PQS!$D$3:$AU$3,0),FALSE),\"\")","v":""},{"$f":"IFERROR(VLOOKUP($A103,PQS!$D$5:$AU$107,MATCH(PQS!$AF$3,PQS!$D$3:$AU$3,0),FALSE),\"\")","v":""},{"$f":"IFERROR(HYPERLINK(VLOOKUP($A103,PQS!$D$5:$AU$107,MATCH(PQS!$AJ$3,PQS!$D$3:$AU$3,0),FALSE),VLOOKUP($A103,PQS!$D$5:$AU$107,MATCH(PQS!$AI$3,PQS!$D$3:$AU$3,0),FALSE)),\"\")","v":""}]
[null,null,null,null,{"$f":"IFERROR(VLOOKUP($A104,PQS!$D$5:$AU$107,MATCH(PQS!$Q$3,PQS!$D$3:$AU$3,0),FALSE),\"\")","v":""},{"$f":"IFERROR(VLOOKUP($A104,PQS!$D$5:$AU$107,MATCH(PQS!$AL$3,PQS!$D$3:$AU$3,0),FALSE),\"\")","v":""},"",{"$f":"IFERROR(VLOOKUP($A104,PQS!$D$5:$AU$107,MATCH(PQS!$I$3,PQS!$D$3:$AU$3,0),FALSE),\"\")","v":""},{"$f":"IFERROR(VLOOKUP($A104,PQS!$D$5:$AU$107,MATCH(PQS!$J$3,PQS!$D$3:$AU$3,0),FALSE),\"\")","v":""},{"$f":"IFERROR(VLOOKUP($A104,PQS!$D$5:$AU$107,MATCH(PQS!$AK$3,PQS!$D$3:$AU$3,0),FALSE),\"\")","v":""},{"$f":"IFERROR(VLOOKUP($A104,PQS!$D$5:$AU$107,COLUMN(PQS!$AA$5)-3,FALSE),\"\")","v":""},{"$f":"IFERROR(VLOOKUP($A104,PQS!$D$5:$AU$107,MATCH(PQS!$H$3,PQS!$D$3:$AU$3,0),FALSE),\"\")","v":""},{"$f":"IFERROR(VLOOKUP($A104,PQS!$D$5:$AU$107,MATCH(PQS!$AF$3,PQS!$D$3:$AU$3,0),FALSE),\"\")","v":""},{"$f":"IFERROR(HYPERLINK(VLOOKUP($A104,PQS!$D$5:$AU$107,MATCH(PQS!$AJ$3,PQS!$D$3:$AU$3,0),FALSE),VLOOKUP($A104,PQS!$D$5:$AU$107,MATCH(PQS!$AI$3,PQS!$D$3:$AU$3,0),FALSE)),\"\")","v":""}]
[null,null,null,null,{"$f":"IFERROR(VLOOKUP($A105,PQS!$D$5:$AU$107,MATCH(PQS!$Q$3,PQS!$D$3:$AU$3,0),FALSE),\"\")","v":""},{"$f":"IFERROR(VLOOKUP($A105,PQS!$D$5:$AU$107,MATCH(PQS!$AL$3,PQS!$D$3:$AU$3,0),FALSE),\"\")","v":""},"",{"$f":"IFERROR(VLOOKUP($A105,PQS!$D$5:$AU$107,MATCH(PQS!$I$3,PQS!$D$3:$AU$3,0),FALSE),\"\")","v":""},{"$f":"IFERROR(VLOOKUP($A105,PQS!$D$5:$AU$107,MATCH(PQS!$J$3,PQS!$D$3:$AU$3,0),FALSE),\"\")","v":""},{"$f":"IFERROR(VLOOKUP($A105,PQS!$D$5:$AU$107,MATCH(PQS!$AK$3,PQS!$D$3:$AU$3,0),FALSE),\"\")","v":""},{"$f":"IFERROR(VLOOKUP($A105,PQS!$D$5:$AU$107,COLUMN(PQS!$AA$5)-3,FALSE),\"\")","v":""},{"$f":"IFERROR(VLOOKUP($A105,PQS!$D$5:$AU$107,MATCH(PQS!$H$3,PQS!$D$3:$AU$3,0),FALSE),\"\")","v":""},{"$f":"IFERROR(VLOOKUP($A105,PQS!$D$5:$AU$107,MATCH(PQS!$AF$3,PQS!$D$3:$AU$3,0),FALSE),\"\")","v":""},{"$f":"IFERROR(HYPERLINK(VLOOKUP($A105,PQS!$D$5:$AU$107,MATCH(PQS!$AJ$3,PQS!$D$3:$AU$3,0),FALSE),VLOOKUP($A105,PQS!$D$5:$AU$107,MATCH(PQS!$AI$3,PQS!$D$3:$AU$3,0),FALSE)),\"\")","v":""}]
[null,null,null,null,{"$f":"IFERROR(VLOOKUP($A106,PQS!$D$5:$AU$107,MATCH(PQS!$Q$3,PQS!$D$3:$AU$3,0),FALSE),\"\")","v":""},{"$f":"IFERROR(VLOOKUP($A106,PQS!$D$5:$AU$107,MATCH(PQS!$AL$3,PQS!$D$3:$AU$3,0),FALSE),\"\")","v":""},"",{"$f":"IFERROR(VLOOKUP($A106,PQS!$D$5:$AU$107,MATCH(PQS!$I$3,PQS!$D$3:$AU$3,0),FALSE),\"\")","v":""},{"$f":"IFERROR(VLOOKUP($A106,PQS!$D$5:$AU$107,MATCH(PQS!$J$3,PQS!$D$3:$AU$3,0),FALSE),\"\")","v":""},{"$f":"IFERROR(VLOOKUP($A106,PQS!$D$5:$AU$107,MATCH(PQS!$AK$3,PQS!$D$3:$AU$3,0),FALSE),\"\")","v":""},{"$f":"IFERROR(VLOOKUP($A106,PQS!$D$5:$AU$107,COLUMN(PQS!$AA$5)-3,FALSE),\"\")","v":""},{"$f":"IFERROR(VLOOKUP($A106,PQS!$D$5:$AU$107,MATCH(PQS!$H$3,PQS!$D$3:$AU$3,0),FALSE),\"\")","v":""},{"$f":"IFERROR(VLOOKUP($A106,PQS!$D$5:$AU$107,MATCH(PQS!$AF$3,PQS!$D$3:$AU$3,0),FALSE),\"\")","v":""},{"$f":"IFERROR(HYPERLINK(VLOOKUP($A106,PQS!$D$5:$AU$107,MATCH(PQS!$AJ$3,PQS!$D$3:$AU$3,0),FALSE),VLOOKUP($A106,PQS!$D$5:$AU$107,MATCH(PQS!$AI$3,PQS!$D$3:$AU$3,0),FALSE)),\"\")","v":""}]
[null,null,null,null,{"$f":"IFERROR(VLOOKUP($A107,PQS!$D$5:$AU$107,MATCH(PQS!$Q$3,PQS!$D$3:$AU$3,0),FALSE),\"\")","v":""},{"$f":"IFERROR(VLOOKUP($A107,PQS!$D$5:$AU$107,MATCH(PQS!$AL$3,PQS!$D$3:$AU$3,0),FALSE),\"\")","v":""},"",{"$f":"IFERROR(VLOOKUP($A107,PQS!$D$5:$AU$107,MATCH(PQS!$I$3,PQS!$D$3:$AU$3,0),FALSE),\"\")","v":""},{"$f":"IFERROR(VLOOKUP($A107,PQS!$D$5:$AU$107,MATCH(PQS!$J$3,PQS!$D$3:$AU$3,0),FALSE),\"\")","v":""},{"$f":"IFERROR(VLOOKUP($A107,PQS!$D$5:$AU$107,MATCH(PQS!$AK$3,PQS!$D$3:$AU$3,0),FALSE),\"\")","v":""},{"$f":"IFERROR(VLOOKUP($A107,PQS!$D$5:$AU$107,COLUMN(PQS!$AA$5)-3,FALSE),\"\")","v":""},{"$f":"IFERROR(VLOOKUP($A107,PQS!$D$5:$AU$107,MATCH(PQS!$H$3,PQS!$D$3:$AU$3,0),FALSE),\"\")","v":""},{"$f":"IFERROR(VLOOKUP($A107,PQS!$D$5:$AU$107,MATCH(PQS!$AF$3,PQS!$D$3:$AU$3,0),FALSE),\"\")","v":""},{"$f":"IFERROR(HYPERLINK(VLOOKUP($A107,PQS!$D$5:$AU$107,MATCH(PQS!$AJ$3,PQS!$D$3:$AU$3,0),FALSE),VLOOKUP($A107,PQS!$D$5:$AU$107,MATCH(PQS!$AI$3,PQS!$D$3:$AU$3,0),FALSE)),\"\")","v":""}]
[null,null,null,null,{"$f":"IFERROR(VLOOKUP($A108,PQS!$D$5:$AU$107,MATCH(PQS!$Q$3,PQS!$D$3:$AU$3,0),FALSE),\"\")","v":""},{"$f":"IFERROR(VLOOKUP($A108,PQS!$D$5:$AU$107,MATCH(PQS!$AL$3,PQS!$D$3:$AU$3,0),FALSE),\"\")","v":""},"",{"$f":"IFERROR(VLOOKUP($A108,PQS!$D$5:$AU$107,MATCH(PQS!$I$3,PQS!$D$3:$AU$3,0),FALSE),\"\")","v":""},{"$f":"IFERROR(VLOOKUP($A108,PQS!$D$5:$AU$107,MATCH(PQS!$J$3,PQS!$D$3:$AU$3,0),FALSE),\"\")","v":""},{"$f":"IFERROR(VLOOKUP($A108,PQS!$D$5:$AU$107,MATCH(PQS!$AK$3,PQS!$D$3:$AU$3,0),FALSE),\"\")","v":""},{"$f":"IFERROR(VLOOKUP($A108,PQS!$D$5:$AU$107,COLUMN(PQS!$AA$5)-3,FALSE),\"\")","v":""},{"$f":"IFERROR(VLOOKUP($A108,PQS!$D$5:$AU$107,MATCH(PQS!$H$3,PQS!$D$3:$AU$3,0),FALSE),\"\")","v":""},{"$f":"IFERROR(VLOOKUP($A108,PQS!$D$5:$AU$107,MATCH(PQS!$AF$3,PQS!$D$3:$AU$3,0),FALSE),\"\")","v":""},{"$f":"IFERROR(HYPERLINK(VLOOKUP($A108,PQS!$D$5:$AU$107,MATCH(PQS!$AJ$3,PQS!$D$3:$AU$3,0),FALSE),VLOOKUP($A108,PQS!$D$5:$AU$107,MATCH(PQS!$AI$3,PQS!$D$3:$AU$3,0),FALSE)),\"\")","v":""}]
[null,null,null,null,{"$f":"IFERROR(VLOOKUP($A109,PQS!$D$5:$AU$107,MATCH(PQS!$Q$3,PQS!$D$3:$AU$3,0),FALSE),\"\")","v":""},{"$f":"IFERROR(VLOOKUP($A109,PQS!$D$5:$AU$107,MATCH(PQS!$AL$3,PQS!$D$3:$AU$3,0),FALSE),\"\")","v":""},"",{"$f":"IFERROR(VLOOKUP($A109,PQS!$D$5:$AU$107,MATCH(PQS!$I$3,PQS!$D$3:$AU$3,0),FALSE),\"\")","v":""},{"$f":"IFERROR(VLOOKUP($A109,PQS!$D$5:$AU$107,MATCH(PQS!$J$3,PQS!$D$3:$AU$3,0),FALSE),\"\")","v":""},{"$f":"IFERROR(VLOOKUP($A109,PQS!$D$5:$AU$107,MATCH(PQS!$AK$3,PQS!$D$3:$AU$3,0),FALSE),\"\")","v":""},{"$f":"IFERROR(VLOOKUP($A109,PQS!$D$5:$AU$107,COLUMN(PQS!$AA$5)-3,FALSE),\"\")","v":""},{"$f":"IFERROR(VLOOKUP($A109,PQS!$D$5:$AU$107,MATCH(PQS!$H$3,PQS!$D$3:$AU$3,0),FALSE),\"\")","v":""},{"$f":"IFERROR(VLOOKUP($A109,PQS!$D$5:$AU$107,MATCH(PQS!$AF$3,PQS!$D$3:$AU$3,0),FALSE),\"\")","v":""},{"$f":"IFERROR(HYPERLINK(VLOOKUP($A109,PQS!$D$5:$AU$107,MATCH(PQS!$AJ$3,PQS!$D$3:$AU$3,0),FALSE),VLOOKUP($A109,PQS!$D$5:$AU$107,MATCH(PQS!$AI$3,PQS!$D$3:$AU$3,0),FALSE)),\"\")","v":""}]
[null,null,null,null,{"$f":"IFERROR(VLOOKUP($A110,PQS!$D$5:$AU$107,MATCH(PQS!$Q$3,PQS!$D$3:$AU$3,0),FALSE),\"\")","v":""},{"$f":"IFERROR(VLOOKUP($A110,PQS!$D$5:$AU$107,MATCH(PQS!$AL$3,PQS!$D$3:$AU$3,0),FALSE),\"\")","v":""},"",{"$f":"IFERROR(VLOOKUP($A110,PQS!$D$5:$AU$107,MATCH(PQS!$I$3,PQS!$D$3:$AU$3,0),FALSE),\"\")","v":""},{"$f":"IFERROR(VLOOKUP($A110,PQS!$D$5:$AU$107,MATCH(PQS!$J$3,PQS!$D$3:$AU$3,0),FALSE),\"\")","v":""},{"$f":"IFERROR(VLOOKUP($A110,PQS!$D$5:$AU$107,MATCH(PQS!$AK$3,PQS!$D$3:$AU$3,0),FALSE),\"\")","v":""},{"$f":"IFERROR(VLOOKUP($A110,PQS!$D$5:$AU$107,COLUMN(PQS!$AA$5)-3,FALSE),\"\")","v":""},{"$f":"IFERROR(VLOOKUP($A110,PQS!$D$5:$AU$107,MATCH(PQS!$H$3,PQS!$D$3:$AU$3,0),FALSE),\"\")","v":""},{"$f":"IFERROR(VLOOKUP($A110,PQS!$D$5:$AU$107,MATCH(PQS!$AF$3,PQS!$D$3:$AU$3,0),FALSE),\"\")","v":""},{"$f":"IFERROR(HYPERLINK(VLOOKUP($A110,PQS!$D$5:$AU$107,MATCH(PQS!$AJ$3,PQS!$D$3:$AU$3,0),FALSE),VLOOKUP($A110,PQS!$D$5:$AU$107,MATCH(PQS!$AI$3,PQS!$D$3:$AU$3,0),FALSE)),\"\")","v":""}]
[null,null,null,null,{"$f":"IFERROR(VLOOKUP($A111,PQS!$D$5:$AU$107,MATCH(PQS!$Q$3,PQS!$D$3:$AU$3,0),FALSE),\"\")","v":""},{"$f":"IFERROR(VLOOKUP($A111,PQS!$D$5:$AU$107,MATCH(PQS!$AL$3,PQS!$D$3:$AU$3,0),FALSE),\"\")","v":""},"",{"$f":"IFERROR(VLOOKUP($A111,PQS!$D$5:$AU$107,MATCH(PQS!$I$3,PQS!$D$3:$AU$3,0),FALSE),\"\")","v":""},{"$f":"IFERROR(VLOOKUP($A111,PQS!$D$5:$AU$107,MATCH(PQS!$J$3,PQS!$D$3:$AU$3,0),FALSE),\"\")","v":""},{"$f":"IFERROR(VLOOKUP($A111,PQS!$D$5:$AU$107,MATCH(PQS!$AK$3,PQS!$D$3:$AU$3,0),FALSE),\"\")","v":""},{"$f":"IFERROR(VLOOKUP($A111,PQS!$D$5:$AU$107,COLUMN(PQS!$AA$5)-3,FALSE),\"\")","v":""},{"$f":"IFERROR(VLOOKUP($A111,PQS!$D$5:$AU$107,MATCH(PQS!$H$3,PQS!$D$3:$AU$3,0),FALSE),\"\")","v":""},{"$f":"IFERROR(VLOOKUP($A111,PQS!$D$5:$AU$107,MATCH(PQS!$AF$3,PQS!$D$3:$AU$3,0),FALSE),\"\")","v":""},{"$f":"IFERROR(HYPERLINK(VLOOKUP($A111,PQS!$D$5:$AU$107,MATCH(PQS!$AJ$3,PQS!$D$3:$AU$3,0),FALSE),VLOOKUP($A111,PQS!$D$5:$AU$107,MATCH(PQS!$AI$3,PQS!$D$3:$AU$3,0),FALSE)),\"\")","v":""}]
[null,null,null,null,{"$f":"IFERROR(VLOOKUP($A112,PQS!$D$5:$AU$107,MATCH(PQS!$Q$3,PQS!$D$3:$AU$3,0),FALSE),\"\")","v":""},{"$f":"IFERROR(VLOOKUP($A112,PQS!$D$5:$AU$107,MATCH(PQS!$AL$3,PQS!$D$3:$AU$3,0),FALSE),\"\")","v":""},"",{"$f":"IFERROR(VLOOKUP($A112,PQS!$D$5:$AU$107,MATCH(PQS!$I$3,PQS!$D$3:$AU$3,0),FALSE),\"\")","v":""},{"$f":"IFERROR(VLOOKUP($A112,PQS!$D$5:$AU$107,MATCH(PQS!$J$3,PQS!$D$3:$AU$3,0),FALSE),\"\")","v":""},{"$f":"IFERROR(VLOOKUP($A112,PQS!$D$5:$AU$107,MATCH(PQS!$AK$3,PQS!$D$3:$AU$3,0),FALSE),\"\")","v":""},{"$f":"IFERROR(VLOOKUP($A112,PQS!$D$5:$AU$107,COLUMN(PQS!$AA$5)-3,FALSE),\"\")","v":""},{"$f":"IFERROR(VLOOKUP($A112,PQS!$D$5:$AU$107,MATCH(PQS!$H$3,PQS!$D$3:$AU$3,0),FALSE),\"\")","v":""},{"$f":"IFERROR(VLOOKUP($A112,PQS!$D$5:$AU$107,MATCH(PQS!$AF$3,PQS!$D$3:$AU$3,0),FALSE),\"\")","v":""},{"$f":"IFERROR(HYPERLINK(VLOOKUP($A112,PQS!$D$5:$AU$107,MATCH(PQS!$AJ$3,PQS!$D$3:$AU$3,0),FALSE),VLOOKUP($A112,PQS!$D$5:$AU$107,MATCH(PQS!$AI$3,PQS!$D$3:$AU$3,0),FALSE)),\"\")","v":""}]
[null,null,null,null,{"$f":"IFERROR(VLOOKUP($A113,PQS!$D$5:$AU$107,MATCH(PQS!$Q$3,PQS!$D$3:$AU$3,0),FALSE),\"\")","v":""},{"$f":"IFERROR(VLOOKUP($A113,PQS!$D$5:$AU$107,MATCH(PQS!$AL$3,PQS!$D$3:$AU$3,0),FALSE),\"\")","v":""},"",{"$f":"IFERROR(VLOOKUP($A113,PQS!$D$5:$AU$107,MATCH(PQS!$I$3,PQS!$D$3:$AU$3,0),FALSE),\"\")","v":""},{"$f":"IFERROR(VLOOKUP($A113,PQS!$D$5:$AU$107,MATCH(PQS!$J$3,PQS!$D$3:$AU$3,0),FALSE),\"\")","v":""},{"$f":"IFERROR(VLOOKUP($A113,PQS!$D$5:$AU$107,MATCH(PQS!$AK$3,PQS!$D$3:$AU$3,0),FALSE),\"\")","v":""},{"$f":"IFERROR(VLOOKUP($A113,PQS!$D$5:$AU$107,COLUMN(PQS!$AA$5)-3,FALSE),\"\")","v":""},{"$f":"IFERROR(VLOOKUP($A113,PQS!$D$5:$AU$107,MATCH(PQS!$H$3,PQS!$D$3:$AU$3,0),FALSE),\"\")","v":""},{"$f":"IFERROR(VLOOKUP($A113,PQS!$D$5:$AU$107,MATCH(PQS!$AF$3,PQS!$D$3:$AU$3,0),FALSE),\"\")","v":""},{"$f":"IFERROR(HYPERLINK(VLOOKUP($A113,PQS!$D$5:$AU$107,MATCH(PQS!$AJ$3,PQS!$D$3:$AU$3,0),FALSE),VLOOKUP($A113,PQS!$D$5:$AU$107,MATCH(PQS!$AI$3,PQS!$D$3:$AU$3,0),FALSE)),\"\")","v":""}]
[null,null,null,null,{"$f":"IFERROR(VLOOKUP($A114,PQS!$D$5:$AU$107,MATCH(PQS!$Q$3,PQS!$D$3:$AU$3,0),FALSE),\"\")","v":""},{"$f":"IFERROR(VLOOKUP($A114,PQS!$D$5:$AU$107,MATCH(PQS!$AL$3,PQS!$D$3:$AU$3,0),FALSE),\"\")","v":""},"",{"$f":"IFERROR(VLOOKUP($A114,PQS!$D$5:$AU$107,MATCH(PQS!$I$3,PQS!$D$3:$AU$3,0),FALSE),\"\")","v":""},{"$f":"IFERROR(VLOOKUP($A114,PQS!$D$5:$AU$107,MATCH(PQS!$J$3,PQS!$D$3:$AU$3,0),FALSE),\"\")","v":""},{"$f":"IFERROR(VLOOKUP($A114,PQS!$D$5:$AU$107,MATCH(PQS!$AK$3,PQS!$D$3:$AU$3,0),FALSE),\"\")","v":""},{"$f":"IFERROR(VLOOKUP($A114,PQS!$D$5:$AU$107,COLUMN(PQS!$AA$5)-3,FALSE),\"\")","v":""},{"$f":"IFERROR(VLOOKUP($A114,PQS!$D$5:$AU$107,MATCH(PQS!$H$3,PQS!$D$3:$AU$3,0),FALSE),\"\")","v":""},{"$f":"IFERROR(VLOOKUP($A114,PQS!$D$5:$AU$107,MATCH(PQS!$AF$3,PQS!$D$3:$AU$3,0),FALSE),\"\")","v":""},{"$f":"IFERROR(HYPERLINK(VLOOKUP($A114,PQS!$D$5:$AU$107,MATCH(PQS!$AJ$3,PQS!$D$3:$AU$3,0),FALSE),VLOOKUP($A114,PQS!$D$5:$AU$107,MATCH(PQS!$AI$3,PQS!$D$3:$AU$3,0),FALSE)),\"\")","v":""}]
[null,null,null,null,{"$f":"IFERROR(VLOOKUP($A115,PQS!$D$5:$AU$107,MATCH(PQS!$Q$3,PQS!$D$3:$AU$3,0),FALSE),\"\")","v":""},{"$f":"IFERROR(VLOOKUP($A115,PQS!$D$5:$AU$107,MATCH(PQS!$AL$3,PQS!$D$3:$AU$3,0),FALSE),\"\")","v":""},"",{"$f":"IFERROR(VLOOKUP($A115,PQS!$D$5:$AU$107,MATCH(PQS!$I$3,PQS!$D$3:$AU$3,0),FALSE),\"\")","v":""},{"$f":"IFERROR(VLOOKUP($A115,PQS!$D$5:$AU$107,MATCH(PQS!$J$3,PQS!$D$3:$AU$3,0),FALSE),\"\")","v":""},{"$f":"IFERROR(VLOOKUP($A115,PQS!$D$5:$AU$107,MATCH(PQS!$AK$3,PQS!$D$3:$AU$3,0),FALSE),\"\")","v":""},{"$f":"IFERROR(VLOOKUP($A115,PQS!$D$5:$AU$107,COLUMN(PQS!$AA$5)-3,FALSE),\"\")","v":""},{"$f":"IFERROR(VLOOKUP($A115,PQS!$D$5:$AU$107,MATCH(PQS!$H$3,PQS!$D$3:$AU$3,0),FALSE),\"\")","v":""},{"$f":"IFERROR(VLOOKUP($A115,PQS!$D$5:$AU$107,MATCH(PQS!$AF$3,PQS!$D$3:$AU$3,0),FALSE),\"\")","v":""},{"$f":"IFERROR(HYPERLINK(VLOOKUP($A115,PQS!$D$5:$AU$107,MATCH(PQS!$AJ$3,PQS!$D$3:$AU$3,0),FALSE),VLOOKUP($A115,PQS!$D$5:$AU$107,MATCH(PQS!$AI$3,PQS!$D$3:$AU$3,0),FALSE)),\"\")","v":""}]
[null,null,null,null,{"$f":"IFERROR(VLOOKUP($A116,PQS!$D$5:$AU$107,MATCH(PQS!$Q$3,PQS!$D$3:$AU$3,0),FALSE),\"\")","v":""},{"$f":"IFERROR(VLOOKUP($A116,PQS!$D$5:$AU$107,MATCH(PQS!$AL$3,PQS!$D$3:$AU$3,0),FALSE),\"\")","v":""},"",{"$f":"IFERROR(VLOOKUP($A116,PQS!$D$5:$AU$107,MATCH(PQS!$I$3,PQS!$D$3:$AU$3,0),FALSE),\"\")","v":""},{"$f":"IFERROR(VLOOKUP($A116,PQS!$D$5:$AU$107,MATCH(PQS!$J$3,PQS!$D$3:$AU$3,0),FALSE),\"\")","v":""},{"$f":"IFERROR(VLOOKUP($A116,PQS!$D$5:$AU$107,MATCH(PQS!$AK$3,PQS!$D$3:$AU$3,0),FALSE),\"\")","v":""},{"$f":"IFERROR(VLOOKUP($A116,PQS!$D$5:$AU$107,COLUMN(PQS!$AA$5)-3,FALSE),\"\")","v":""},{"$f":"IFERROR(VLOOKUP($A116,PQS!$D$5:$AU$107,MATCH(PQS!$H$3,PQS!$D$3:$AU$3,0),FALSE),\"\")","v":""},{"$f":"IFERROR(VLOOKUP($A116,PQS!$D$5:$AU$107,MATCH(PQS!$AF$3,PQS!$D$3:$AU$3,0),FALSE),\"\")","v":""},{"$f":"IFERROR(HYPERLINK(VLOOKUP($A116,PQS!$D$5:$AU$107,MATCH(PQS!$AJ$3,PQS!$D$3:$AU$3,0),FALSE),VLOOKUP($A116,PQS!$D$5:$AU$107,MATCH(PQS!$AI$3,PQS!$D$3:$AU$3,0),FALSE)),\"\")","v":""}]
[null,null,null,null,{"$f":"IFERROR(VLOOKUP($A117,PQS!$D$5:$AU$107,MATCH(PQS!$Q$3,PQS!$D$3:$AU$3,0),FALSE),\"\")","v":""},{"$f":"IFERROR(VLOOKUP($A117,PQS!$D$5:$AU$107,MATCH(PQS!$AL$3,PQS!$D$3:$AU$3,0),FALSE),\"\")","v":""},"",{"$f":"IFERROR(VLOOKUP($A117,PQS!$D$5:$AU$107,MATCH(PQS!$I$3,PQS!$D$3:$AU$3,0),FALSE),\"\")","v":""},{"$f":"IFERROR(VLOOKUP($A117,PQS!$D$5:$AU$107,MATCH(PQS!$J$3,PQS!$D$3:$AU$3,0),FALSE),\"\")","v":""},{"$f":"IFERROR(VLOOKUP($A117,PQS!$D$5:$AU$107,MATCH(PQS!$AK$3,PQS!$D$3:$AU$3,0),FALSE),\"\")","v":""},{"$f":"IFERROR(VLOOKUP($A117,PQS!$D$5:$AU$107,COLUMN(PQS!$AA$5)-3,FALSE),\"\")","v":""},{"$f":"IFERROR(VLOOKUP($A117,PQS!$D$5:$AU$107,MATCH(PQS!$H$3,PQS!$D$3:$AU$3,0),FALSE),\"\")","v":""},{"$f":"IFERROR(VLOOKUP($A117,PQS!$D$5:$AU$107,MATCH(PQS!$AF$3,PQS!$D$3:$AU$3,0),FALSE),\"\")","v":""},{"$f":"IFERROR(HYPERLINK(VLOOKUP($A117,PQS!$D$5:$AU$107,MATCH(PQS!$AJ$3,PQS!$D$3:$AU$3,0),FALSE),VLOOKUP($A117,PQS!$D$5:$AU$107,MATCH(PQS!$AI$3,PQS!$D$3:$AU$3,0),FALSE)),\"\")","v":""}]
[null,null,null,null,{"$f":"IFERROR(VLOOKUP($A118,PQS!$D$5:$AU$107,MATCH(PQS!$Q$3,PQS!$D$3:$AU$3,0),FALSE),\"\")","v":""},{"$f":"IFERROR(VLOOKUP($A118,PQS!$D$5:$AU$107,MATCH(PQS!$AL$3,PQS!$D$3:$AU$3,0),FALSE),\"\")","v":""},"",{"$f":"IFERROR(VLOOKUP($A118,PQS!$D$5:$AU$107,MATCH(PQS!$I$3,PQS!$D$3:$AU$3,0),FALSE),\"\")","v":""},{"$f":"IFERROR(VLOOKUP($A118,PQS!$D$5:$AU$107,MATCH(PQS!$J$3,PQS!$D$3:$AU$3,0),FALSE),\"\")","v":""},{"$f":"IFERROR(VLOOKUP($A118,PQS!$D$5:$AU$107,MATCH(PQS!$AK$3,PQS!$D$3:$AU$3,0),FALSE),\"\")","v":""},{"$f":"IFERROR(VLOOKUP($A118,PQS!$D$5:$AU$107,COLUMN(PQS!$AA$5)-3,FALSE),\"\")","v":""},{"$f":"IFERROR(VLOOKUP($A118,PQS!$D$5:$AU$107,MATCH(PQS!$H$3,PQS!$D$3:$AU$3,0),FALSE),\"\")","v":""},{"$f":"IFERROR(VLOOKUP($A118,PQS!$D$5:$AU$107,MATCH(PQS!$AF$3,PQS!$D$3:$AU$3,0),FALSE),\"\")","v":""},{"$f":"IFERROR(HYPERLINK(VLOOKUP($A118,PQS!$D$5:$AU$107,MATCH(PQS!$AJ$3,PQS!$D$3:$AU$3,0),FALSE),VLOOKUP($A118,PQS!$D$5:$AU$107,MATCH(PQS!$AI$3,PQS!$D$3:$AU$3,0),FALSE)),\"\")","v":""}]
[null,null,null,null,{"$f":"IFERROR(VLOOKUP($A119,PQS!$D$5:$AU$107,MATCH(PQS!$Q$3,PQS!$D$3:$AU$3,0),FALSE),\"\")","v":""},{"$f":"IFERROR(VLOOKUP($A119,PQS!$D$5:$AU$107,MATCH(PQS!$AL$3,PQS!$D$3:$AU$3,0),FALSE),\"\")","v":""},"",{"$f":"IFERROR(VLOOKUP($A119,PQS!$D$5:$AU$107,MATCH(PQS!$I$3,PQS!$D$3:$AU$3,0),FALSE),\"\")","v":""},{"$f":"IFERROR(VLOOKUP($A119,PQS!$D$5:$AU$107,MATCH(PQS!$J$3,PQS!$D$3:$AU$3,0),FALSE),\"\")","v":""},{"$f":"IFERROR(VLOOKUP($A119,PQS!$D$5:$AU$107,MATCH(PQS!$AK$3,PQS!$D$3:$AU$3,0),FALSE),\"\")","v":""},{"$f":"IFERROR(VLOOKUP($A119,PQS!$D$5:$AU$107,COLUMN(PQS!$AA$5)-3,FALSE),\"\")","v":""},{"$f":"IFERROR(VLOOKUP($A119,PQS!$D$5:$AU$107,MATCH(PQS!$H$3,PQS!$D$3:$AU$3,0),FALSE),\"\")","v":""},{"$f":"IFERROR(VLOOKUP($A119,PQS!$D$5:$AU$107,MATCH(PQS!$AF$3,PQS!$D$3:$AU$3,0),FALSE),\"\")","v":""},{"$f":"IFERROR(HYPERLINK(VLOOKUP($A119,PQS!$D$5:$AU$107,MATCH(PQS!$AJ$3,PQS!$D$3:$AU$3,0),FALSE),VLOOKUP($A119,PQS!$D$5:$AU$107,MATCH(PQS!$AI$3,PQS!$D$3:$AU$3,0),FALSE)),\"\")","v":""}]
[null,null,null,null,{"$f":"IFERROR(VLOOKUP($A120,PQS!$D$5:$AU$107,MATCH(PQS!$Q$3,PQS!$D$3:$AU$3,0),FALSE),\"\")","v":""},{"$f":"IFERROR(VLOOKUP($A120,PQS!$D$5:$AU$107,MATCH(PQS!$AL$3,PQS!$D$3:$AU$3,0),FALSE),\"\")","v":""},"",{"$f":"IFERROR(VLOOKUP($A120,PQS!$D$5:$AU$107,MATCH(PQS!$I$3,PQS!$D$3:$AU$3,0),FALSE),\"\")","v":""},{"$f":"IFERROR(VLOOKUP($A120,PQS!$D$5:$AU$107,MATCH(PQS!$J$3,PQS!$D$3:$AU$3,0),FALSE),\"\")","v":""},{"$f":"IFERROR(VLOOKUP($A120,PQS!$D$5:$AU$107,MATCH(PQS!$AK$3,PQS!$D$3:$AU$3,0),FALSE),\"\")","v":""},{"$f":"IFERROR(VLOOKUP($A120,PQS!$D$5:$AU$107,COLUMN(PQS!$AA$5)-3,FALSE),\"\")","v":""},{"$f":"IFERROR(VLOOKUP($A120,PQS!$D$5:$AU$107,MATCH(PQS!$H$3,PQS!$D$3:$AU$3,0),FALSE),\"\")","v":""},{"$f":"IFERROR(VLOOKUP($A120,PQS!$D$5:$AU$107,MATCH(PQS!$AF$3,PQS!$D$3:$AU$3,0),FALSE),\"\")","v":""},{"$f":"IFERROR(HYPERLINK(VLOOKUP($A120,PQS!$D$5:$AU$107,MATCH(PQS!$AJ$3,PQS!$D$3:$AU$3,0),FALSE),VLOOKUP($A120,PQS!$D$5:$AU$107,MATCH(PQS!$AI$3,PQS!$D$3:$AU$3,0),FALSE)),\"\")","v":""}]
[null,null,null,null,{"$f":"IFERROR(VLOOKUP($A121,PQS!$D$5:$AU$107,MATCH(PQS!$Q$3,PQS!$D$3:$AU$3,0),FALSE),\"\")","v":""},{"$f":"IFERROR(VLOOKUP($A121,PQS!$D$5:$AU$107,MATCH(PQS!$AL$3,PQS!$D$3:$AU$3,0),FALSE),\"\")","v":""},"",{"$f":"IFERROR(VLOOKUP($A121,PQS!$D$5:$AU$107,MATCH(PQS!$I$3,PQS!$D$3:$AU$3,0),FALSE),\"\")","v":""},{"$f":"IFERROR(VLOOKUP($A121,PQS!$D$5:$AU$107,MATCH(PQS!$J$3,PQS!$D$3:$AU$3,0),FALSE),\"\")","v":""},{"$f":"IFERROR(VLOOKUP($A121,PQS!$D$5:$AU$107,MATCH(PQS!$AK$3,PQS!$D$3:$AU$3,0),FALSE),\"\")","v":""},{"$f":"IFERROR(VLOOKUP($A121,PQS!$D$5:$AU$107,COLUMN(PQS!$AA$5)-3,FALSE),\"\")","v":""},{"$f":"IFERROR(VLOOKUP($A121,PQS!$D$5:$AU$107,MATCH(PQS!$H$3,PQS!$D$3:$AU$3,0),FALSE),\"\")","v":""},{"$f":"IFERROR(VLOOKUP($A121,PQS!$D$5:$AU$107,MATCH(PQS!$AF$3,PQS!$D$3:$AU$3,0),FALSE),\"\")","v":""},{"$f":"IFERROR(HYPERLINK(VLOOKUP($A121,PQS!$D$5:$AU$107,MATCH(PQS!$AJ$3,PQS!$D$3:$AU$3,0),FALSE),VLOOKUP($A121,PQS!$D$5:$AU$107,MATCH(PQS!$AI$3,PQS!$D$3:$AU$3,0),FALSE)),\"\")","v":""}]
[null,null,null,null,{"$f":"IFERROR(VLOOKUP($A122,PQS!$D$5:$AU$107,MATCH(PQS!$Q$3,PQS!$D$3:$AU$3,0),FALSE),\"\")","v":""},{"$f":"IFERROR(VLOOKUP($A122,PQS!$D$5:$AU$107,MATCH(PQS!$AL$3,PQS!$D$3:$AU$3,0),FALSE),\"\")","v":""},"",{"$f":"IFERROR(VLOOKUP($A122,PQS!$D$5:$AU$107,MATCH(PQS!$I$3,PQS!$D$3:$AU$3,0),FALSE),\"\")","v":""},{"$f":"IFERROR(VLOOKUP($A122,PQS!$D$5:$AU$107,MATCH(PQS!$J$3,PQS!$D$3:$AU$3,0),FALSE),\"\")","v":""},{"$f":"IFERROR(VLOOKUP($A122,PQS!$D$5:$AU$107,MATCH(PQS!$AK$3,PQS!$D$3:$AU$3,0),FALSE),\"\")","v":""},{"$f":"IFERROR(VLOOKUP($A122,PQS!$D$5:$AU$107,COLUMN(PQS!$AA$5)-3,FALSE),\"\")","v":""},{"$f":"IFERROR(VLOOKUP($A122,PQS!$D$5:$AU$107,MATCH(PQS!$H$3,PQS!$D$3:$AU$3,0),FALSE),\"\")","v":""},{"$f":"IFERROR(VLOOKUP($A122,PQS!$D$5:$AU$107,MATCH(PQS!$AF$3,PQS!$D$3:$AU$3,0),FALSE),\"\")","v":""},{"$f":"IFERROR(HYPERLINK(VLOOKUP($A122,PQS!$D$5:$AU$107,MATCH(PQS!$AJ$3,PQS!$D$3:$AU$3,0),FALSE),VLOOKUP($A122,PQS!$D$5:$AU$107,MATCH(PQS!$AI$3,PQS!$D$3:$AU$3,0),FALSE)),\"\")","v":""}]
[null,null,null,null,{"$f":"IFERROR(VLOOKUP($A123,PQS!$D$5:$AU$107,MATCH(PQS!$Q$3,PQS!$D$3:$AU$3,0),FALSE),\"\")","v":""},{"$f":"IFERROR(VLOOKUP($A123,PQS!$D$5:$AU$107,MATCH(PQS!$AL$3,PQS!$D$3:$AU$3,0),FALSE),\"\")","v":""},"",{"$f":"IFERROR(VLOOKUP($A123,PQS!$D$5:$AU$107,MATCH(PQS!$I$3,PQS!$D$3:$AU$3,0),FALSE),\"\")","v":""},{"$f":"IFERROR(VLOOKUP($A123,PQS!$D$5:$AU$107,MATCH(PQS!$J$3,PQS!$D$3:$AU$3,0),FALSE),\"\")","v":""},{"$f":"IFERROR(VLOOKUP($A123,PQS!$D$5:$AU$107,MATCH(PQS!$AK$3,PQS!$D$3:$AU$3,0),FALSE),\"\")","v":""},{"$f":"IFERROR(VLOOKUP($A123,PQS!$D$5:$AU$107,COLUMN(PQS!$AA$5)-3,FALSE),\"\")","v":""},{"$f":"IFERROR(VLOOKUP($A123,PQS!$D$5:$AU$107,MATCH(PQS!$H$3,PQS!$D$3:$AU$3,0),FALSE),\"\")","v":""},{"$f":"IFERROR(VLOOKUP($A123,PQS!$D$5:$AU$107,MATCH(PQS!$AF$3,PQS!$D$3:$AU$3,0),FALSE),\"\")","v":""},{"$f":"IFERROR(HYPERLINK(VLOOKUP($A123,PQS!$D$5:$AU$107,MATCH(PQS!$AJ$3,PQS!$D$3:$AU$3,0),FALSE),VLOOKUP($A123,PQS!$D$5:$AU$107,MATCH(PQS!$AI$3,PQS!$D$3:$AU$3,0),FALSE)),\"\")","v":""}]
[null,null,null,null,{"$f":"IFERROR(VLOOKUP($A124,PQS!$D$5:$AU$107,MATCH(PQS!$Q$3,PQS!$D$3:$AU$3,0),FALSE),\"\")","v":""},{"$f":"IFERROR(VLOOKUP($A124,PQS!$D$5:$AU$107,MATCH(PQS!$AL$3,PQS!$D$3:$AU$3,0),FALSE),\"\")","v":""},"",{"$f":"IFERROR(VLOOKUP($A124,PQS!$D$5:$AU$107,MATCH(PQS!$I$3,PQS!$D$3:$AU$3,0),FALSE),\"\")","v":""},{"$f":"IFERROR(VLOOKUP($A124,PQS!$D$5:$AU$107,MATCH(PQS!$J$3,PQS!$D$3:$AU$3,0),FALSE),\"\")","v":""},{"$f":"IFERROR(VLOOKUP($A124,PQS!$D$5:$AU$107,MATCH(PQS!$AK$3,PQS!$D$3:$AU$3,0),FALSE),\"\")","v":""},{"$f":"IFERROR(VLOOKUP($A124,PQS!$D$5:$AU$107,COLUMN(PQS!$AA$5)-3,FALSE),\"\")","v":""},{"$f":"IFERROR(VLOOKUP($A124,PQS!$D$5:$AU$107,MATCH(PQS!$H$3,PQS!$D$3:$AU$3,0),FALSE),\"\")","v":""},{"$f":"IFERROR(VLOOKUP($A124,PQS!$D$5:$AU$107,MATCH(PQS!$AF$3,PQS!$D$3:$AU$3,0),FALSE),\"\")","v":""},{"$f":"IFERROR(HYPERLINK(VLOOKUP($A124,PQS!$D$5:$AU$107,MATCH(PQS!$AJ$3,PQS!$D$3:$AU$3,0),FALSE),VLOOKUP($A124,PQS!$D$5:$AU$107,MATCH(PQS!$AI$3,PQS!$D$3:$AU$3,0),FALSE)),\"\")","v":""}]
[null,null,null,null,{"$f":"IFERROR(VLOOKUP($A125,PQS!$D$5:$AU$107,MATCH(PQS!$Q$3,PQS!$D$3:$AU$3,0),FALSE),\"\")","v":""},{"$f":"IFERROR(VLOOKUP($A125,PQS!$D$5:$AU$107,MATCH(PQS!$AL$3,PQS!$D$3:$AU$3,0),FALSE),\"\")","v":""},"",{"$f":"IFERROR(VLOOKUP($A125,PQS!$D$5:$AU$107,MATCH(PQS!$I$3,PQS!$D$3:$AU$3,0),FALSE),\"\")","v":""},{"$f":"IFERROR(VLOOKUP($A125,PQS!$D$5:$AU$107,MATCH(PQS!$J$3,PQS!$D$3:$AU$3,0),FALSE),\"\")","v":""},{"$f":"IFERROR(VLOOKUP($A125,PQS!$D$5:$AU$107,MATCH(PQS!$AK$3,PQS!$D$3:$AU$3,0),FALSE),\"\")","v":""},{"$f":"IFERROR(VLOOKUP($A125,PQS!$D$5:$AU$107,COLUMN(PQS!$AA$5)-3,FALSE),\"\")","v":""},{"$f":"IFERROR(VLOOKUP($A125,PQS!$D$5:$AU$107,MATCH(PQS!$H$3,PQS!$D$3:$AU$3,0),FALSE),\"\")","v":""},{"$f":"IFERROR(VLOOKUP($A125,PQS!$D$5:$AU$107,MATCH(PQS!$AF$3,PQS!$D$3:$AU$3,0),FALSE),\"\")","v":""},{"$f":"IFERROR(HYPERLINK(VLOOKUP($A125,PQS!$D$5:$AU$107,MATCH(PQS!$AJ$3,PQS!$D$3:$AU$3,0),FALSE),VLOOKUP($A125,PQS!$D$5:$AU$107,MATCH(PQS!$AI$3,PQS!$D$3:$AU$3,0),FALSE)),\"\")","v":""}]
[null,null,null,null,{"$f":"IFERROR(VLOOKUP($A126,PQS!$D$5:$AU$107,MATCH(PQS!$Q$3,PQS!$D$3:$AU$3,0),FALSE),\"\")","v":""},{"$f":"IFERROR(VLOOKUP($A126,PQS!$D$5:$AU$107,MATCH(PQS!$AL$3,PQS!$D$3:$AU$3,0),FALSE),\"\")","v":""},"",{"$f":"IFERROR(VLOOKUP($A126,PQS!$D$5:$AU$107,MATCH(PQS!$I$3,PQS!$D$3:$AU$3,0),FALSE),\"\")","v":""},{"$f":"IFERROR(VLOOKUP($A126,PQS!$D$5:$AU$107,MATCH(PQS!$J$3,PQS!$D$3:$AU$3,0),FALSE),\"\")","v":""},{"$f":"IFERROR(VLOOKUP($A126,PQS!$D$5:$AU$107,MATCH(PQS!$AK$3,PQS!$D$3:$AU$3,0),FALSE),\"\")","v":""},{"$f":"IFERROR(VLOOKUP($A126,PQS!$D$5:$AU$107,COLUMN(PQS!$AA$5)-3,FALSE),\"\")","v":""},{"$f":"IFERROR(VLOOKUP($A126,PQS!$D$5:$AU$107,MATCH(PQS!$H$3,PQS!$D$3:$AU$3,0),FALSE),\"\")","v":""},{"$f":"IFERROR(VLOOKUP($A126,PQS!$D$5:$AU$107,MATCH(PQS!$AF$3,PQS!$D$3:$AU$3,0),FALSE),\"\")","v":""},{"$f":"IFERROR(HYPERLINK(VLOOKUP($A126,PQS!$D$5:$AU$107,MATCH(PQS!$AJ$3,PQS!$D$3:$AU$3,0),FALSE),VLOOKUP($A126,PQS!$D$5:$AU$107,MATCH(PQS!$AI$3,PQS!$D$3:$AU$3,0),FALSE)),\"\")","v":""}]
[null,null,null,null,{"$f":"IFERROR(VLOOKUP($A127,PQS!$D$5:$AU$107,MATCH(PQS!$Q$3,PQS!$D$3:$AU$3,0),FALSE),\"\")","v":""},{"$f":"IFERROR(VLOOKUP($A127,PQS!$D$5:$AU$107,MATCH(PQS!$AL$3,PQS!$D$3:$AU$3,0),FALSE),\"\")","v":""},"",{"$f":"IFERROR(VLOOKUP($A127,PQS!$D$5:$AU$107,MATCH(PQS!$I$3,PQS!$D$3:$AU$3,0),FALSE),\"\")","v":""},{"$f":"IFERROR(VLOOKUP($A127,PQS!$D$5:$AU$107,MATCH(PQS!$J$3,PQS!$D$3:$AU$3,0),FALSE),\"\")","v":""},{"$f":"IFERROR(VLOOKUP($A127,PQS!$D$5:$AU$107,MATCH(PQS!$AK$3,PQS!$D$3:$AU$3,0),FALSE),\"\")","v":""},{"$f":"IFERROR(VLOOKUP($A127,PQS!$D$5:$AU$107,COLUMN(PQS!$AA$5)-3,FALSE),\"\")","v":""},{"$f":"IFERROR(VLOOKUP($A127,PQS!$D$5:$AU$107,MATCH(PQS!$H$3,PQS!$D$3:$AU$3,0),FALSE),\"\")","v":""},{"$f":"IFERROR(VLOOKUP($A127,PQS!$D$5:$AU$107,MATCH(PQS!$AF$3,PQS!$D$3:$AU$3,0),FALSE),\"\")","v":""},{"$f":"IFERROR(HYPERLINK(VLOOKUP($A127,PQS!$D$5:$AU$107,MATCH(PQS!$AJ$3,PQS!$D$3:$AU$3,0),FALSE),VLOOKUP($A127,PQS!$D$5:$AU$107,MATCH(PQS!$AI$3,PQS!$D$3:$AU$3,0),FALSE)),\"\")","v":""}]
[null,null,null,null,{"$f":"IFERROR(VLOOKUP($A128,PQS!$D$5:$AU$107,MATCH(PQS!$Q$3,PQS!$D$3:$AU$3,0),FALSE),\"\")","v":""},{"$f":"IFERROR(VLOOKUP($A128,PQS!$D$5:$AU$107,MATCH(PQS!$AL$3,PQS!$D$3:$AU$3,0),FALSE),\"\")","v":""},"",{"$f":"IFERROR(VLOOKUP($A128,PQS!$D$5:$AU$107,MATCH(PQS!$I$3,PQS!$D$3:$AU$3,0),FALSE),\"\")","v":""},{"$f":"IFERROR(VLOOKUP($A128,PQS!$D$5:$AU$107,MATCH(PQS!$J$3,PQS!$D$3:$AU$3,0),FALSE),\"\")","v":""},{"$f":"IFERROR(VLOOKUP($A128,PQS!$D$5:$AU$107,MATCH(PQS!$AK$3,PQS!$D$3:$AU$3,0),FALSE),\"\")","v":""},{"$f":"IFERROR(VLOOKUP($A128,PQS!$D$5:$AU$107,COLUMN(PQS!$AA$5)-3,FALSE),\"\")","v":""},{"$f":"IFERROR(VLOOKUP($A128,PQS!$D$5:$AU$107,MATCH(PQS!$H$3,PQS!$D$3:$AU$3,0),FALSE),\"\")","v":""},{"$f":"IFERROR(VLOOKUP($A128,PQS!$D$5:$AU$107,MATCH(PQS!$AF$3,PQS!$D$3:$AU$3,0),FALSE),\"\")","v":""},{"$f":"IFERROR(HYPERLINK(VLOOKUP($A128,PQS!$D$5:$AU$107,MATCH(PQS!$AJ$3,PQS!$D$3:$AU$3,0),FALSE),VLOOKUP($A128,PQS!$D$5:$AU$107,MATCH(PQS!$AI$3,PQS!$D$3:$AU$3,0),FALSE)),\"\")","v":""}]
[null,null,null,null,{"$f":"IFERROR(VLOOKUP($A129,PQS!$D$5:$AU$107,MATCH(PQS!$Q$3,PQS!$D$3:$AU$3,0),FALSE),\"\")","v":""},{"$f":"IFERROR(VLOOKUP($A129,PQS!$D$5:$AU$107,MATCH(PQS!$AL$3,PQS!$D$3:$AU$3,0),FALSE),\"\")","v":""},"",{"$f":"IFERROR(VLOOKUP($A129,PQS!$D$5:$AU$107,MATCH(PQS!$I$3,PQS!$D$3:$AU$3,0),FALSE),\"\")","v":""},{"$f":"IFERROR(VLOOKUP($A129,PQS!$D$5:$AU$107,MATCH(PQS!$J$3,PQS!$D$3:$AU$3,0),FALSE),\"\")","v":""},{"$f":"IFERROR(VLOOKUP($A129,PQS!$D$5:$AU$107,MATCH(PQS!$AK$3,PQS!$D$3:$AU$3,0),FALSE),\"\")","v":""},{"$f":"IFERROR(VLOOKUP($A129,PQS!$D$5:$AU$107,COLUMN(PQS!$AA$5)-3,FALSE),\"\")","v":""},{"$f":"IFERROR(VLOOKUP($A129,PQS!$D$5:$AU$107,MATCH(PQS!$H$3,PQS!$D$3:$AU$3,0),FALSE),\"\")","v":""},{"$f":"IFERROR(VLOOKUP($A129,PQS!$D$5:$AU$107,MATCH(PQS!$AF$3,PQS!$D$3:$AU$3,0),FALSE),\"\")","v":""},{"$f":"IFERROR(HYPERLINK(VLOOKUP($A129,PQS!$D$5:$AU$107,MATCH(PQS!$AJ$3,PQS!$D$3:$AU$3,0),FALSE),VLOOKUP($A129,PQS!$D$5:$AU$107,MATCH(PQS!$AI$3,PQS!$D$3:$AU$3,0),FALSE)),\"\")","v":""}]
[null,null,null,null,{"$f":"IFERROR(VLOOKUP($A130,PQS!$D$5:$AU$107,MATCH(PQS!$Q$3,PQS!$D$3:$AU$3,0),FALSE),\"\")","v":""},{"$f":"IFERROR(VLOOKUP($A130,PQS!$D$5:$AU$107,MATCH(PQS!$AL$3,PQS!$D$3:$AU$3,0),FALSE),\"\")","v":""},"",{"$f":"IFERROR(VLOOKUP($A130,PQS!$D$5:$AU$107,MATCH(PQS!$I$3,PQS!$D$3:$AU$3,0),FALSE),\"\")","v":""},{"$f":"IFERROR(VLOOKUP($A130,PQS!$D$5:$AU$107,MATCH(PQS!$J$3,PQS!$D$3:$AU$3,0),FALSE),\"\")","v":""},{"$f":"IFERROR(VLOOKUP($A130,PQS!$D$5:$AU$107,MATCH(PQS!$AK$3,PQS!$D$3:$AU$3,0),FALSE),\"\")","v":""},{"$f":"IFERROR(VLOOKUP($A130,PQS!$D$5:$AU$107,COLUMN(PQS!$AA$5)-3,FALSE),\"\")","v":""},{"$f":"IFERROR(VLOOKUP($A130,PQS!$D$5:$AU$107,MATCH(PQS!$H$3,PQS!$D$3:$AU$3,0),FALSE),\"\")","v":""},{"$f":"IFERROR(VLOOKUP($A130,PQS!$D$5:$AU$107,MATCH(PQS!$AF$3,PQS!$D$3:$AU$3,0),FALSE),\"\")","v":""},{"$f":"IFERROR(HYPERLINK(VLOOKUP($A130,PQS!$D$5:$AU$107,MATCH(PQS!$AJ$3,PQS!$D$3:$AU$3,0),FALSE),VLOOKUP($A130,PQS!$D$5:$AU$107,MATCH(PQS!$AI$3,PQS!$D$3:$AU$3,0),FALSE)),\"\")","v":""}]
[null,null,null,null,{"$f":"IFERROR(VLOOKUP($A131,PQS!$D$5:$AU$107,MATCH(PQS!$Q$3,PQS!$D$3:$AU$3,0),FALSE),\"\")","v":""},{"$f":"IFERROR(VLOOKUP($A131,PQS!$D$5:$AU$107,MATCH(PQS!$AL$3,PQS!$D$3:$AU$3,0),FALSE),\"\")","v":""},"",{"$f":"IFERROR(VLOOKUP($A131,PQS!$D$5:$AU$107,MATCH(PQS!$I$3,PQS!$D$3:$AU$3,0),FALSE),\"\")","v":""},{"$f":"IFERROR(VLOOKUP($A131,PQS!$D$5:$AU$107,MATCH(PQS!$J$3,PQS!$D$3:$AU$3,0),FALSE),\"\")","v":""},{"$f":"IFERROR(VLOOKUP($A131,PQS!$D$5:$AU$107,MATCH(PQS!$AK$3,PQS!$D$3:$AU$3,0),FALSE),\"\")","v":""},{"$f":"IFERROR(VLOOKUP($A131,PQS!$D$5:$AU$107,COLUMN(PQS!$AA$5)-3,FALSE),\"\")","v":""},{"$f":"IFERROR(VLOOKUP($A131,PQS!$D$5:$AU$107,MATCH(PQS!$H$3,PQS!$D$3:$AU$3,0),FALSE),\"\")","v":""},{"$f":"IFERROR(VLOOKUP($A131,PQS!$D$5:$AU$107,MATCH(PQS!$AF$3,PQS!$D$3:$AU$3,0),FALSE),\"\")","v":""},{"$f":"IFERROR(HYPERLINK(VLOOKUP($A131,PQS!$D$5:$AU$107,MATCH(PQS!$AJ$3,PQS!$D$3:$AU$3,0),FALSE),VLOOKUP($A131,PQS!$D$5:$AU$107,MATCH(PQS!$AI$3,PQS!$D$3:$AU$3,0),FALSE)),\"\")","v":""}]
[null,null,null,null,{"$f":"IFERROR(VLOOKUP($A132,PQS!$D$5:$AU$107,MATCH(PQS!$Q$3,PQS!$D$3:$AU$3,0),FALSE),\"\")","v":""},{"$f":"IFERROR(VLOOKUP($A132,PQS!$D$5:$AU$107,MATCH(PQS!$AL$3,PQS!$D$3:$AU$3,0),FALSE),\"\")","v":""},"",{"$f":"IFERROR(VLOOKUP($A132,PQS!$D$5:$AU$107,MATCH(PQS!$I$3,PQS!$D$3:$AU$3,0),FALSE),\"\")","v":""},{"$f":"IFERROR(VLOOKUP($A132,PQS!$D$5:$AU$107,MATCH(PQS!$J$3,PQS!$D$3:$AU$3,0),FALSE),\"\")","v":""},{"$f":"IFERROR(VLOOKUP($A132,PQS!$D$5:$AU$107,MATCH(PQS!$AK$3,PQS!$D$3:$AU$3,0),FALSE),\"\")","v":""},{"$f":"IFERROR(VLOOKUP($A132,PQS!$D$5:$AU$107,COLUMN(PQS!$AA$5)-3,FALSE),\"\")","v":""},{"$f":"IFERROR(VLOOKUP($A132,PQS!$D$5:$AU$107,MATCH(PQS!$H$3,PQS!$D$3:$AU$3,0),FALSE),\"\")","v":""},{"$f":"IFERROR(VLOOKUP($A132,PQS!$D$5:$AU$107,MATCH(PQS!$AF$3,PQS!$D$3:$AU$3,0),FALSE),\"\")","v":""},{"$f":"IFERROR(HYPERLINK(VLOOKUP($A132,PQS!$D$5:$AU$107,MATCH(PQS!$AJ$3,PQS!$D$3:$AU$3,0),FALSE),VLOOKUP($A132,PQS!$D$5:$AU$107,MATCH(PQS!$AI$3,PQS!$D$3:$AU$3,0),FALSE)),\"\")","v":""}]
[null,null,null,null,{"$f":"IFERROR(VLOOKUP($A133,PQS!$D$5:$AU$107,MATCH(PQS!$Q$3,PQS!$D$3:$AU$3,0),FALSE),\"\")","v":""},{"$f":"IFERROR(VLOOKUP($A133,PQS!$D$5:$AU$107,MATCH(PQS!$AL$3,PQS!$D$3:$AU$3,0),FALSE),\"\")","v":""},"",{"$f":"IFERROR(VLOOKUP($A133,PQS!$D$5:$AU$107,MATCH(PQS!$I$3,PQS!$D$3:$AU$3,0),FALSE),\"\")","v":""},{"$f":"IFERROR(VLOOKUP($A133,PQS!$D$5:$AU$107,MATCH(PQS!$J$3,PQS!$D$3:$AU$3,0),FALSE),\"\")","v":""},{"$f":"IFERROR(VLOOKUP($A133,PQS!$D$5:$AU$107,MATCH(PQS!$AK$3,PQS!$D$3:$AU$3,0),FALSE),\"\")","v":""},{"$f":"IFERROR(VLOOKUP($A133,PQS!$D$5:$AU$107,COLUMN(PQS!$AA$5)-3,FALSE),\"\")","v":""},{"$f":"IFERROR(VLOOKUP($A133,PQS!$D$5:$AU$107,MATCH(PQS!$H$3,PQS!$D$3:$AU$3,0),FALSE),\"\")","v":""},{"$f":"IFERROR(VLOOKUP($A133,PQS!$D$5:$AU$107,MATCH(PQS!$AF$3,PQS!$D$3:$AU$3,0),FALSE),\"\")","v":""},{"$f":"IFERROR(HYPERLINK(VLOOKUP($A133,PQS!$D$5:$AU$107,MATCH(PQS!$AJ$3,PQS!$D$3:$AU$3,0),FALSE),VLOOKUP($A133,PQS!$D$5:$AU$107,MATCH(PQS!$AI$3,PQS!$D$3:$AU$3,0),FALSE)),\"\")","v":""}]
[null,null,null,null,{"$f":"IFERROR(VLOOKUP($A134,PQS!$D$5:$AU$107,MATCH(PQS!$Q$3,PQS!$D$3:$AU$3,0),FALSE),\"\")","v":""},{"$f":"IFERROR(VLOOKUP($A134,PQS!$D$5:$AU$107,MATCH(PQS!$AL$3,PQS!$D$3:$AU$3,0),FALSE),\"\")","v":""},"",{"$f":"IFERROR(VLOOKUP($A134,PQS!$D$5:$AU$107,MATCH(PQS!$I$3,PQS!$D$3:$AU$3,0),FALSE),\"\")","v":""},{"$f":"IFERROR(VLOOKUP($A134,PQS!$D$5:$AU$107,MATCH(PQS!$J$3,PQS!$D$3:$AU$3,0),FALSE),\"\")","v":""},{"$f":"IFERROR(VLOOKUP($A134,PQS!$D$5:$AU$107,MATCH(PQS!$AK$3,PQS!$D$3:$AU$3,0),FALSE),\"\")","v":""},{"$f":"IFERROR(VLOOKUP($A134,PQS!$D$5:$AU$107,COLUMN(PQS!$AA$5)-3,FALSE),\"\")","v":""},{"$f":"IFERROR(VLOOKUP($A134,PQS!$D$5:$AU$107,MATCH(PQS!$H$3,PQS!$D$3:$AU$3,0),FALSE),\"\")","v":""},{"$f":"IFERROR(VLOOKUP($A134,PQS!$D$5:$AU$107,MATCH(PQS!$AF$3,PQS!$D$3:$AU$3,0),FALSE),\"\")","v":""},{"$f":"IFERROR(HYPERLINK(VLOOKUP($A134,PQS!$D$5:$AU$107,MATCH(PQS!$AJ$3,PQS!$D$3:$AU$3,0),FALSE),VLOOKUP($A134,PQS!$D$5:$AU$107,MATCH(PQS!$AI$3,PQS!$D$3:$AU$3,0),FALSE)),\"\")","v":""}]
[null,null,null,null,{"$f":"IFERROR(VLOOKUP($A135,PQS!$D$5:$AU$107,MATCH(PQS!$Q$3,PQS!$D$3:$AU$3,0),FALSE),\"\")","v":""},{"$f":"IFERROR(VLOOKUP($A135,PQS!$D$5:$AU$107,MATCH(PQS!$AL$3,PQS!$D$3:$AU$3,0),FALSE),\"\")","v":""},"",{"$f":"IFERROR(VLOOKUP($A135,PQS!$D$5:$AU$107,MATCH(PQS!$I$3,PQS!$D$3:$AU$3,0),FALSE),\"\")","v":""},{"$f":"IFERROR(VLOOKUP($A135,PQS!$D$5:$AU$107,MATCH(PQS!$J$3,PQS!$D$3:$AU$3,0),FALSE),\"\")","v":""},{"$f":"IFERROR(VLOOKUP($A135,PQS!$D$5:$AU$107,MATCH(PQS!$AK$3,PQS!$D$3:$AU$3,0),FALSE),\"\")","v":""},{"$f":"IFERROR(VLOOKUP($A135,PQS!$D$5:$AU$107,COLUMN(PQS!$AA$5)-3,FALSE),\"\")","v":""},{"$f":"IFERROR(VLOOKUP($A135,PQS!$D$5:$AU$107,MATCH(PQS!$H$3,PQS!$D$3:$AU$3,0),FALSE),\"\")","v":""},{"$f":"IFERROR(VLOOKUP($A135,PQS!$D$5:$AU$107,MATCH(PQS!$AF$3,PQS!$D$3:$AU$3,0),FALSE),\"\")","v":""},{"$f":"IFERROR(HYPERLINK(VLOOKUP($A135,PQS!$D$5:$AU$107,MATCH(PQS!$AJ$3,PQS!$D$3:$AU$3,0),FALSE),VLOOKUP($A135,PQS!$D$5:$AU$107,MATCH(PQS!$AI$3,PQS!$D$3:$AU$3,0),FALSE)),\"\")","v":""}]
[null,null,null,null,{"$f":"IFERROR(VLOOKUP($A136,PQS!$D$5:$AU$107,MATCH(PQS!$Q$3,PQS!$D$3:$AU$3,0),FALSE),\"\")","v":""},{"$f":"IFERROR(VLOOKUP($A136,PQS!$D$5:$AU$107,MATCH(PQS!$AL$3,PQS!$D$3:$AU$3,0),FALSE),\"\")","v":""},"",{"$f":"IFERROR(VLOOKUP($A136,PQS!$D$5:$AU$107,MATCH(PQS!$I$3,PQS!$D$3:$AU$3,0),FALSE),\"\")","v":""},{"$f":"IFERROR(VLOOKUP($A136,PQS!$D$5:$AU$107,MATCH(PQS!$J$3,PQS!$D$3:$AU$3,0),FALSE),\"\")","v":""},{"$f":"IFERROR(VLOOKUP($A136,PQS!$D$5:$AU$107,MATCH(PQS!$AK$3,PQS!$D$3:$AU$3,0),FALSE),\"\")","v":""},{"$f":"IFERROR(VLOOKUP($A136,PQS!$D$5:$AU$107,COLUMN(PQS!$AA$5)-3,FALSE),\"\")","v":""},{"$f":"IFERROR(VLOOKUP($A136,PQS!$D$5:$AU$107,MATCH(PQS!$H$3,PQS!$D$3:$AU$3,0),FALSE),\"\")","v":""},{"$f":"IFERROR(VLOOKUP($A136,PQS!$D$5:$AU$107,MATCH(PQS!$AF$3,PQS!$D$3:$AU$3,0),FALSE),\"\")","v":""},{"$f":"IFERROR(HYPERLINK(VLOOKUP($A136,PQS!$D$5:$AU$107,MATCH(PQS!$AJ$3,PQS!$D$3:$AU$3,0),FALSE),VLOOKUP($A136,PQS!$D$5:$AU$107,MATCH(PQS!$AI$3,PQS!$D$3:$AU$3,0),FALSE)),\"\")","v":""}]
[null,null,null,null,{"$f":"IFERROR(VLOOKUP($A137,PQS!$D$5:$AU$107,MATCH(PQS!$Q$3,PQS!$D$3:$AU$3,0),FALSE),\"\")","v":""},{"$f":"IFERROR(VLOOKUP($A137,PQS!$D$5:$AU$107,MATCH(PQS!$AL$3,PQS!$D$3:$AU$3,0),FALSE),\"\")","v":""},"",{"$f":"IFERROR(VLOOKUP($A137,PQS!$D$5:$AU$107,MATCH(PQS!$I$3,PQS!$D$3:$AU$3,0),FALSE),\"\")","v":""},{"$f":"IFERROR(VLOOKUP($A137,PQS!$D$5:$AU$107,MATCH(PQS!$J$3,PQS!$D$3:$AU$3,0),FALSE),\"\")","v":""},{"$f":"IFERROR(VLOOKUP($A137,PQS!$D$5:$AU$107,MATCH(PQS!$AK$3,PQS!$D$3:$AU$3,0),FALSE),\"\")","v":""},{"$f":"IFERROR(VLOOKUP($A137,PQS!$D$5:$AU$107,COLUMN(PQS!$AA$5)-3,FALSE),\"\")","v":""},{"$f":"IFERROR(VLOOKUP($A137,PQS!$D$5:$AU$107,MATCH(PQS!$H$3,PQS!$D$3:$AU$3,0),FALSE),\"\")","v":""},{"$f":"IFERROR(VLOOKUP($A137,PQS!$D$5:$AU$107,MATCH(PQS!$AF$3,PQS!$D$3:$AU$3,0),FALSE),\"\")","v":""},{"$f":"IFERROR(HYPERLINK(VLOOKUP($A137,PQS!$D$5:$AU$107,MATCH(PQS!$AJ$3,PQS!$D$3:$AU$3,0),FALSE),VLOOKUP($A137,PQS!$D$5:$AU$107,MATCH(PQS!$AI$3,PQS!$D$3:$AU$3,0),FALSE)),\"\")","v":""}]
[null,null,null,null,{"$f":"IFERROR(VLOOKUP($A138,PQS!$D$5:$AU$107,MATCH(PQS!$Q$3,PQS!$D$3:$AU$3,0),FALSE),\"\")","v":""},{"$f":"IFERROR(VLOOKUP($A138,PQS!$D$5:$AU$107,MATCH(PQS!$AL$3,PQS!$D$3:$AU$3,0),FALSE),\"\")","v":""},"",{"$f":"IFERROR(VLOOKUP($A138,PQS!$D$5:$AU$107,MATCH(PQS!$I$3,PQS!$D$3:$AU$3,0),FALSE),\"\")","v":""},{"$f":"IFERROR(VLOOKUP($A138,PQS!$D$5:$AU$107,MATCH(PQS!$J$3,PQS!$D$3:$AU$3,0),FALSE),\"\")","v":""},{"$f":"IFERROR(VLOOKUP($A138,PQS!$D$5:$AU$107,MATCH(PQS!$AK$3,PQS!$D$3:$AU$3,0),FALSE),\"\")","v":""},{"$f":"IFERROR(VLOOKUP($A138,PQS!$D$5:$AU$107,COLUMN(PQS!$AA$5)-3,FALSE),\"\")","v":""},{"$f":"IFERROR(VLOOKUP($A138,PQS!$D$5:$AU$107,MATCH(PQS!$H$3,PQS!$D$3:$AU$3,0),FALSE),\"\")","v":""},{"$f":"IFERROR(VLOOKUP($A138,PQS!$D$5:$AU$107,MATCH(PQS!$AF$3,PQS!$D$3:$AU$3,0),FALSE),\"\")","v":""},{"$f":"IFERROR(HYPERLINK(VLOOKUP($A138,PQS!$D$5:$AU$107,MATCH(PQS!$AJ$3,PQS!$D$3:$AU$3,0),FALSE),VLOOKUP($A138,PQS!$D$5:$AU$107,MATCH(PQS!$AI$3,PQS!$D$3:$AU$3,0),FALSE)),\"\")","v":""}]
[null,null,null,null,{"$f":"IFERROR(VLOOKUP($A139,PQS!$D$5:$AU$107,MATCH(PQS!$Q$3,PQS!$D$3:$AU$3,0),FALSE),\"\")","v":""},{"$f":"IFERROR(VLOOKUP($A139,PQS!$D$5:$AU$107,MATCH(PQS!$AL$3,PQS!$D$3:$AU$3,0),FALSE),\"\")","v":""},"",{"$f":"IFERROR(VLOOKUP($A139,PQS!$D$5:$AU$107,MATCH(PQS!$I$3,PQS!$D$3:$AU$3,0),FALSE),\"\")","v":""},{"$f":"IFERROR(VLOOKUP($A139,PQS!$D$5:$AU$107,MATCH(PQS!$J$3,PQS!$D$3:$AU$3,0),FALSE),\"\")","v":""},{"$f":"IFERROR(VLOOKUP($A139,PQS!$D$5:$AU$107,MATCH(PQS!$AK$3,PQS!$D$3:$AU$3,0),FALSE),\"\")","v":""},{"$f":"IFERROR(VLOOKUP($A139,PQS!$D$5:$AU$107,COLUMN(PQS!$AA$5)-3,FALSE),\"\")","v":""},{"$f":"IFERROR(VLOOKUP($A139,PQS!$D$5:$AU$107,MATCH(PQS!$H$3,PQS!$D$3:$AU$3,0),FALSE),\"\")","v":""},{"$f":"IFERROR(VLOOKUP($A139,PQS!$D$5:$AU$107,MATCH(PQS!$AF$3,PQS!$D$3:$AU$3,0),FALSE),\"\")","v":""},{"$f":"IFERROR(HYPERLINK(VLOOKUP($A139,PQS!$D$5:$AU$107,MATCH(PQS!$AJ$3,PQS!$D$3:$AU$3,0),FALSE),VLOOKUP($A139,PQS!$D$5:$AU$107,MATCH(PQS!$AI$3,PQS!$D$3:$AU$3,0),FALSE)),\"\")","v":""}]
[null,null,null,null,{"$f":"IFERROR(VLOOKUP($A140,PQS!$D$5:$AU$107,MATCH(PQS!$Q$3,PQS!$D$3:$AU$3,0),FALSE),\"\")","v":""},{"$f":"IFERROR(VLOOKUP($A140,PQS!$D$5:$AU$107,MATCH(PQS!$AL$3,PQS!$D$3:$AU$3,0),FALSE),\"\")","v":""},"",{"$f":"IFERROR(VLOOKUP($A140,PQS!$D$5:$AU$107,MATCH(PQS!$I$3,PQS!$D$3:$AU$3,0),FALSE),\"\")","v":""},{"$f":"IFERROR(VLOOKUP($A140,PQS!$D$5:$AU$107,MATCH(PQS!$J$3,PQS!$D$3:$AU$3,0),FALSE),\"\")","v":""},{"$f":"IFERROR(VLOOKUP($A140,PQS!$D$5:$AU$107,MATCH(PQS!$AK$3,PQS!$D$3:$AU$3,0),FALSE),\"\")","v":""},{"$f":"IFERROR(VLOOKUP($A140,PQS!$D$5:$AU$107,COLUMN(PQS!$AA$5)-3,FALSE),\"\")","v":""},{"$f":"IFERROR(VLOOKUP($A140,PQS!$D$5:$AU$107,MATCH(PQS!$H$3,PQS!$D$3:$AU$3,0),FALSE),\"\")","v":""},{"$f":"IFERROR(VLOOKUP($A140,PQS!$D$5:$AU$107,MATCH(PQS!$AF$3,PQS!$D$3:$AU$3,0),FALSE),\"\")","v":""},{"$f":"IFERROR(HYPERLINK(VLOOKUP($A140,PQS!$D$5:$AU$107,MATCH(PQS!$AJ$3,PQS!$D$3:$AU$3,0),FALSE),VLOOKUP($A140,PQS!$D$5:$AU$107,MATCH(PQS!$AI$3,PQS!$D$3:$AU$3,0),FALSE)),\"\")","v":""}]
[null,null,null,null,{"$f":"IFERROR(VLOOKUP($A141,PQS!$D$5:$AU$107,MATCH(PQS!$Q$3,PQS!$D$3:$AU$3,0),FALSE),\"\")","v":""},{"$f":"IFERROR(VLOOKUP($A141,PQS!$D$5:$AU$107,MATCH(PQS!$AL$3,PQS!$D$3:$AU$3,0),FALSE),\"\")","v":""},"",{"$f":"IFERROR(VLOOKUP($A141,PQS!$D$5:$AU$107,MATCH(PQS!$I$3,PQS!$D$3:$AU$3,0),FALSE),\"\")","v":""},{"$f":"IFERROR(VLOOKUP($A141,PQS!$D$5:$AU$107,MATCH(PQS!$J$3,PQS!$D$3:$AU$3,0),FALSE),\"\")","v":""},{"$f":"IFERROR(VLOOKUP($A141,PQS!$D$5:$AU$107,MATCH(PQS!$AK$3,PQS!$D$3:$AU$3,0),FALSE),\"\")","v":""},{"$f":"IFERROR(VLOOKUP($A141,PQS!$D$5:$AU$107,COLUMN(PQS!$AA$5)-3,FALSE),\"\")","v":""},{"$f":"IFERROR(VLOOKUP($A141,PQS!$D$5:$AU$107,MATCH(PQS!$H$3,PQS!$D$3:$AU$3,0),FALSE),\"\")","v":""},{"$f":"IFERROR(VLOOKUP($A141,PQS!$D$5:$AU$107,MATCH(PQS!$AF$3,PQS!$D$3:$AU$3,0),FALSE),\"\")","v":""},{"$f":"IFERROR(HYPERLINK(VLOOKUP($A141,PQS!$D$5:$AU$107,MATCH(PQS!$AJ$3,PQS!$D$3:$AU$3,0),FALSE),VLOOKUP($A141,PQS!$D$5:$AU$107,MATCH(PQS!$AI$3,PQS!$D$3:$AU$3,0),FALSE)),\"\")","v":""}]
[null,null,null,null,{"$f":"IFERROR(VLOOKUP($A142,PQS!$D$5:$AU$107,MATCH(PQS!$Q$3,PQS!$D$3:$AU$3,0),FALSE),\"\")","v":""},{"$f":"IFERROR(VLOOKUP($A142,PQS!$D$5:$AU$107,MATCH(PQS!$AL$3,PQS!$D$3:$AU$3,0),FALSE),\"\")","v":""},"",{"$f":"IFERROR(VLOOKUP($A142,PQS!$D$5:$AU$107,MATCH(PQS!$I$3,PQS!$D$3:$AU$3,0),FALSE),\"\")","v":""},{"$f":"IFERROR(VLOOKUP($A142,PQS!$D$5:$AU$107,MATCH(PQS!$J$3,PQS!$D$3:$AU$3,0),FALSE),\"\")","v":""},{"$f":"IFERROR(VLOOKUP($A142,PQS!$D$5:$AU$107,MATCH(PQS!$AK$3,PQS!$D$3:$AU$3,0),FALSE),\"\")","v":""},{"$f":"IFERROR(VLOOKUP($A142,PQS!$D$5:$AU$107,COLUMN(PQS!$AA$5)-3,FALSE),\"\")","v":""},{"$f":"IFERROR(VLOOKUP($A142,PQS!$D$5:$AU$107,MATCH(PQS!$H$3,PQS!$D$3:$AU$3,0),FALSE),\"\")","v":""},{"$f":"IFERROR(VLOOKUP($A142,PQS!$D$5:$AU$107,MATCH(PQS!$AF$3,PQS!$D$3:$AU$3,0),FALSE),\"\")","v":""},{"$f":"IFERROR(HYPERLINK(VLOOKUP($A142,PQS!$D$5:$AU$107,MATCH(PQS!$AJ$3,PQS!$D$3:$AU$3,0),FALSE),VLOOKUP($A142,PQS!$D$5:$AU$107,MATCH(PQS!$AI$3,PQS!$D$3:$AU$3,0),FALSE)),\"\")","v":""}]
[null,null,null,null,{"$f":"IFERROR(VLOOKUP($A143,PQS!$D$5:$AU$107,MATCH(PQS!$Q$3,PQS!$D$3:$AU$3,0),FALSE),\"\")","v":""},{"$f":"IFERROR(VLOOKUP($A143,PQS!$D$5:$AU$107,MATCH(PQS!$AL$3,PQS!$D$3:$AU$3,0),FALSE),\"\")","v":""},"",{"$f":"IFERROR(VLOOKUP($A143,PQS!$D$5:$AU$107,MATCH(PQS!$I$3,PQS!$D$3:$AU$3,0),FALSE),\"\")","v":""},{"$f":"IFERROR(VLOOKUP($A143,PQS!$D$5:$AU$107,MATCH(PQS!$J$3,PQS!$D$3:$AU$3,0),FALSE),\"\")","v":""},{"$f":"IFERROR(VLOOKUP($A143,PQS!$D$5:$AU$107,MATCH(PQS!$AK$3,PQS!$D$3:$AU$3,0),FALSE),\"\")","v":""},{"$f":"IFERROR(VLOOKUP($A143,PQS!$D$5:$AU$107,COLUMN(PQS!$AA$5)-3,FALSE),\"\")","v":""},{"$f":"IFERROR(VLOOKUP($A143,PQS!$D$5:$AU$107,MATCH(PQS!$H$3,PQS!$D$3:$AU$3,0),FALSE),\"\")","v":""},{"$f":"IFERROR(VLOOKUP($A143,PQS!$D$5:$AU$107,MATCH(PQS!$AF$3,PQS!$D$3:$AU$3,0),FALSE),\"\")","v":""},{"$f":"IFERROR(HYPERLINK(VLOOKUP($A143,PQS!$D$5:$AU$107,MATCH(PQS!$AJ$3,PQS!$D$3:$AU$3,0),FALSE),VLOOKUP($A143,PQS!$D$5:$AU$107,MATCH(PQS!$AI$3,PQS!$D$3:$AU$3,0),FALSE)),\"\")","v":""}]
[null,null,null,null,{"$f":"IFERROR(VLOOKUP($A144,PQS!$D$5:$AU$107,MATCH(PQS!$Q$3,PQS!$D$3:$AU$3,0),FALSE),\"\")","v":""},{"$f":"IFERROR(VLOOKUP($A144,PQS!$D$5:$AU$107,MATCH(PQS!$AL$3,PQS!$D$3:$AU$3,0),FALSE),\"\")","v":""},"",{"$f":"IFERROR(VLOOKUP($A144,PQS!$D$5:$AU$107,MATCH(PQS!$I$3,PQS!$D$3:$AU$3,0),FALSE),\"\")","v":""},{"$f":"IFERROR(VLOOKUP($A144,PQS!$D$5:$AU$107,MATCH(PQS!$J$3,PQS!$D$3:$AU$3,0),FALSE),\"\")","v":""},{"$f":"IFERROR(VLOOKUP($A144,PQS!$D$5:$AU$107,MATCH(PQS!$AK$3,PQS!$D$3:$AU$3,0),FALSE),\"\")","v":""},{"$f":"IFERROR(VLOOKUP($A144,PQS!$D$5:$AU$107,COLUMN(PQS!$AA$5)-3,FALSE),\"\")","v":""},{"$f":"IFERROR(VLOOKUP($A144,PQS!$D$5:$AU$107,MATCH(PQS!$H$3,PQS!$D$3:$AU$3,0),FALSE),\"\")","v":""},{"$f":"IFERROR(VLOOKUP($A144,PQS!$D$5:$AU$107,MATCH(PQS!$AF$3,PQS!$D$3:$AU$3,0),FALSE),\"\")","v":""},{"$f":"IFERROR(HYPERLINK(VLOOKUP($A144,PQS!$D$5:$AU$107,MATCH(PQS!$AJ$3,PQS!$D$3:$AU$3,0),FALSE),VLOOKUP($A144,PQS!$D$5:$AU$107,MATCH(PQS!$AI$3,PQS!$D$3:$AU$3,0),FALSE)),\"\")","v":""}]
[null,null,null,null,{"$f":"IFERROR(VLOOKUP($A145,PQS!$D$5:$AU$107,MATCH(PQS!$Q$3,PQS!$D$3:$AU$3,0),FALSE),\"\")","v":""},{"$f":"IFERROR(VLOOKUP($A145,PQS!$D$5:$AU$107,MATCH(PQS!$AL$3,PQS!$D$3:$AU$3,0),FALSE),\"\")","v":""},"",{"$f":"IFERROR(VLOOKUP($A145,PQS!$D$5:$AU$107,MATCH(PQS!$I$3,PQS!$D$3:$AU$3,0),FALSE),\"\")","v":""},{"$f":"IFERROR(VLOOKUP($A145,PQS!$D$5:$AU$107,MATCH(PQS!$J$3,PQS!$D$3:$AU$3,0),FALSE),\"\")","v":""},{"$f":"IFERROR(VLOOKUP($A145,PQS!$D$5:$AU$107,MATCH(PQS!$AK$3,PQS!$D$3:$AU$3,0),FALSE),\"\")","v":""},{"$f":"IFERROR(VLOOKUP($A145,PQS!$D$5:$AU$107,COLUMN(PQS!$AA$5)-3,FALSE),\"\")","v":""},{"$f":"IFERROR(VLOOKUP($A145,PQS!$D$5:$AU$107,MATCH(PQS!$H$3,PQS!$D$3:$AU$3,0),FALSE),\"\")","v":""},{"$f":"IFERROR(VLOOKUP($A145,PQS!$D$5:$AU$107,MATCH(PQS!$AF$3,PQS!$D$3:$AU$3,0),FALSE),\"\")","v":""},{"$f":"IFERROR(HYPERLINK(VLOOKUP($A145,PQS!$D$5:$AU$107,MATCH(PQS!$AJ$3,PQS!$D$3:$AU$3,0),FALSE),VLOOKUP($A145,PQS!$D$5:$AU$107,MATCH(PQS!$AI$3,PQS!$D$3:$AU$3,0),FALSE)),\"\")","v":""}]
[null,null,null,null,{"$f":"IFERROR(VLOOKUP($A146,PQS!$D$5:$AU$107,MATCH(PQS!$Q$3,PQS!$D$3:$AU$3,0),FALSE),\"\")","v":""},{"$f":"IFERROR(VLOOKUP($A146,PQS!$D$5:$AU$107,MATCH(PQS!$AL$3,PQS!$D$3:$AU$3,0),FALSE),\"\")","v":""},"",{"$f":"IFERROR(VLOOKUP($A146,PQS!$D$5:$AU$107,MATCH(PQS!$I$3,PQS!$D$3:$AU$3,0),FALSE),\"\")","v":""},{"$f":"IFERROR(VLOOKUP($A146,PQS!$D$5:$AU$107,MATCH(PQS!$J$3,PQS!$D$3:$AU$3,0),FALSE),\"\")","v":""},{"$f":"IFERROR(VLOOKUP($A146,PQS!$D$5:$AU$107,MATCH(PQS!$AK$3,PQS!$D$3:$AU$3,0),FALSE),\"\")","v":""},{"$f":"IFERROR(VLOOKUP($A146,PQS!$D$5:$AU$107,COLUMN(PQS!$AA$5)-3,FALSE),\"\")","v":""},{"$f":"IFERROR(VLOOKUP($A146,PQS!$D$5:$AU$107,MATCH(PQS!$H$3,PQS!$D$3:$AU$3,0),FALSE),\"\")","v":""},{"$f":"IFERROR(VLOOKUP($A146,PQS!$D$5:$AU$107,MATCH(PQS!$AF$3,PQS!$D$3:$AU$3,0),FALSE),\"\")","v":""},{"$f":"IFERROR(HYPERLINK(VLOOKUP($A146,PQS!$D$5:$AU$107,MATCH(PQS!$AJ$3,PQS!$D$3:$AU$3,0),FALSE),VLOOKUP($A146,PQS!$D$5:$AU$107,MATCH(PQS!$AI$3,PQS!$D$3:$AU$3,0),FALSE)),\"\")","v":""}]
[null,null,null,null,{"$f":"IFERROR(VLOOKUP($A147,PQS!$D$5:$AU$107,MATCH(PQS!$Q$3,PQS!$D$3:$AU$3,0),FALSE),\"\")","v":""},{"$f":"IFERROR(VLOOKUP($A147,PQS!$D$5:$AU$107,MATCH(PQS!$AL$3,PQS!$D$3:$AU$3,0),FALSE),\"\")","v":""},"",{"$f":"IFERROR(VLOOKUP($A147,PQS!$D$5:$AU$107,MATCH(PQS!$I$3,PQS!$D$3:$AU$3,0),FALSE),\"\")","v":""},{"$f":"IFERROR(VLOOKUP($A147,PQS!$D$5:$AU$107,MATCH(PQS!$J$3,PQS!$D$3:$AU$3,0),FALSE),\"\")","v":""},{"$f":"IFERROR(VLOOKUP($A147,PQS!$D$5:$AU$107,MATCH(PQS!$AK$3,PQS!$D$3:$AU$3,0),FALSE),\"\")","v":""},{"$f":"IFERROR(VLOOKUP($A147,PQS!$D$5:$AU$107,COLUMN(PQS!$AA$5)-3,FALSE),\"\")","v":""},{"$f":"IFERROR(VLOOKUP($A147,PQS!$D$5:$AU$107,MATCH(PQS!$H$3,PQS!$D$3:$AU$3,0),FALSE),\"\")","v":""},{"$f":"IFERROR(VLOOKUP($A147,PQS!$D$5:$AU$107,MATCH(PQS!$AF$3,PQS!$D$3:$AU$3,0),FALSE),\"\")","v":""},{"$f":"IFERROR(HYPERLINK(VLOOKUP($A147,PQS!$D$5:$AU$107,MATCH(PQS!$AJ$3,PQS!$D$3:$AU$3,0),FALSE),VLOOKUP($A147,PQS!$D$5:$AU$107,MATCH(PQS!$AI$3,PQS!$D$3:$AU$3,0),FALSE)),\"\")","v":""}]
[null,null,null,null,{"$f":"IFERROR(VLOOKUP($A148,PQS!$D$5:$AU$107,MATCH(PQS!$Q$3,PQS!$D$3:$AU$3,0),FALSE),\"\")","v":""},{"$f":"IFERROR(VLOOKUP($A148,PQS!$D$5:$AU$107,MATCH(PQS!$AL$3,PQS!$D$3:$AU$3,0),FALSE),\"\")","v":""},"",{"$f":"IFERROR(VLOOKUP($A148,PQS!$D$5:$AU$107,MATCH(PQS!$I$3,PQS!$D$3:$AU$3,0),FALSE),\"\")","v":""},{"$f":"IFERROR(VLOOKUP($A148,PQS!$D$5:$AU$107,MATCH(PQS!$J$3,PQS!$D$3:$AU$3,0),FALSE),\"\")","v":""},{"$f":"IFERROR(VLOOKUP($A148,PQS!$D$5:$AU$107,MATCH(PQS!$AK$3,PQS!$D$3:$AU$3,0),FALSE),\"\")","v":""},{"$f":"IFERROR(VLOOKUP($A148,PQS!$D$5:$AU$107,COLUMN(PQS!$AA$5)-3,FALSE),\"\")","v":""},{"$f":"IFERROR(VLOOKUP($A148,PQS!$D$5:$AU$107,MATCH(PQS!$H$3,PQS!$D$3:$AU$3,0),FALSE),\"\")","v":""},{"$f":"IFERROR(VLOOKUP($A148,PQS!$D$5:$AU$107,MATCH(PQS!$AF$3,PQS!$D$3:$AU$3,0),FALSE),\"\")","v":""},{"$f":"IFERROR(HYPERLINK(VLOOKUP($A148,PQS!$D$5:$AU$107,MATCH(PQS!$AJ$3,PQS!$D$3:$AU$3,0),FALSE),VLOOKUP($A148,PQS!$D$5:$AU$107,MATCH(PQS!$AI$3,PQS!$D$3:$AU$3,0),FALSE)),\"\")","v":""}]
[null,null,null,null,{"$f":"IFERROR(VLOOKUP($A149,PQS!$D$5:$AU$107,MATCH(PQS!$Q$3,PQS!$D$3:$AU$3,0),FALSE),\"\")","v":""},{"$f":"IFERROR(VLOOKUP($A149,PQS!$D$5:$AU$107,MATCH(PQS!$AL$3,PQS!$D$3:$AU$3,0),FALSE),\"\")","v":""},"",{"$f":"IFERROR(VLOOKUP($A149,PQS!$D$5:$AU$107,MATCH(PQS!$I$3,PQS!$D$3:$AU$3,0),FALSE),\"\")","v":""},{"$f":"IFERROR(VLOOKUP($A149,PQS!$D$5:$AU$107,MATCH(PQS!$J$3,PQS!$D$3:$AU$3,0),FALSE),\"\")","v":""},{"$f":"IFERROR(VLOOKUP($A149,PQS!$D$5:$AU$107,MATCH(PQS!$AK$3,PQS!$D$3:$AU$3,0),FALSE),\"\")","v":""},{"$f":"IFERROR(VLOOKUP($A149,PQS!$D$5:$AU$107,COLUMN(PQS!$AA$5)-3,FALSE),\"\")","v":""},{"$f":"IFERROR(VLOOKUP($A149,PQS!$D$5:$AU$107,MATCH(PQS!$H$3,PQS!$D$3:$AU$3,0),FALSE),\"\")","v":""},{"$f":"IFERROR(VLOOKUP($A149,PQS!$D$5:$AU$107,MATCH(PQS!$AF$3,PQS!$D$3:$AU$3,0),FALSE),\"\")","v":""},{"$f":"IFERROR(HYPERLINK(VLOOKUP($A149,PQS!$D$5:$AU$107,MATCH(PQS!$AJ$3,PQS!$D$3:$AU$3,0),FALSE),VLOOKUP($A149,PQS!$D$5:$AU$107,MATCH(PQS!$AI$3,PQS!$D$3:$AU$3,0),FALSE)),\"\")","v":""}]
[null,null,null,null,{"$f":"IFERROR(VLOOKUP($A150,PQS!$D$5:$AU$107,MATCH(PQS!$Q$3,PQS!$D$3:$AU$3,0),FALSE),\"\")","v":""},{"$f":"IFERROR(VLOOKUP($A150,PQS!$D$5:$AU$107,MATCH(PQS!$AL$3,PQS!$D$3:$AU$3,0),FALSE),\"\")","v":""},"",{"$f":"IFERROR(VLOOKUP($A150,PQS!$D$5:$AU$107,MATCH(PQS!$I$3,PQS!$D$3:$AU$3,0),FALSE),\"\")","v":""},{"$f":"IFERROR(VLOOKUP($A150,PQS!$D$5:$AU$107,MATCH(PQS!$J$3,PQS!$D$3:$AU$3,0),FALSE),\"\")","v":""},{"$f":"IFERROR(VLOOKUP($A150,PQS!$D$5:$AU$107,MATCH(PQS!$AK$3,PQS!$D$3:$AU$3,0),FALSE),\"\")","v":""},{"$f":"IFERROR(VLOOKUP($A150,PQS!$D$5:$AU$107,COLUMN(PQS!$AA$5)-3,FALSE),\"\")","v":""},{"$f":"IFERROR(VLOOKUP($A150,PQS!$D$5:$AU$107,MATCH(PQS!$H$3,PQS!$D$3:$AU$3,0),FALSE),\"\")","v":""},{"$f":"IFERROR(VLOOKUP($A150,PQS!$D$5:$AU$107,MATCH(PQS!$AF$3,PQS!$D$3:$AU$3,0),FALSE),\"\")","v":""},{"$f":"IFERROR(HYPERLINK(VLOOKUP($A150,PQS!$D$5:$AU$107,MATCH(PQS!$AJ$3,PQS!$D$3:$AU$3,0),FALSE),VLOOKUP($A150,PQS!$D$5:$AU$107,MATCH(PQS!$AI$3,PQS!$D$3:$AU$3,0),FALSE)),\"\")","v":""}]
[null,null,null,null,{"$f":"IFERROR(VLOOKUP($A151,PQS!$D$5:$AU$107,MATCH(PQS!$Q$3,PQS!$D$3:$AU$3,0),FALSE),\"\")","v":""},{"$f":"IFERROR(VLOOKUP($A151,PQS!$D$5:$AU$107,MATCH(PQS!$AL$3,PQS!$D$3:$AU$3,0),FALSE),\"\")","v":""},"",{"$f":"IFERROR(VLOOKUP($A151,PQS!$D$5:$AU$107,MATCH(PQS!$I$3,PQS!$D$3:$AU$3,0),FALSE),\"\")","v":""},{"$f":"IFERROR(VLOOKUP($A151,PQS!$D$5:$AU$107,MATCH(PQS!$J$3,PQS!$D$3:$AU$3,0),FALSE),\"\")","v":""},{"$f":"IFERROR(VLOOKUP($A151,PQS!$D$5:$AU$107,MATCH(PQS!$AK$3,PQS!$D$3:$AU$3,0),FALSE),\"\")","v":""},{"$f":"IFERROR(VLOOKUP($A151,PQS!$D$5:$AU$107,COLUMN(PQS!$AA$5)-3,FALSE),\"\")","v":""},{"$f":"IFERROR(VLOOKUP($A151,PQS!$D$5:$AU$107,MATCH(PQS!$H$3,PQS!$D$3:$AU$3,0),FALSE),\"\")","v":""},{"$f":"IFERROR(VLOOKUP($A151,PQS!$D$5:$AU$107,MATCH(PQS!$AF$3,PQS!$D$3:$AU$3,0),FALSE),\"\")","v":""},{"$f":"IFERROR(HYPERLINK(VLOOKUP($A151,PQS!$D$5:$AU$107,MATCH(PQS!$AJ$3,PQS!$D$3:$AU$3,0),FALSE),VLOOKUP($A151,PQS!$D$5:$AU$107,MATCH(PQS!$AI$3,PQS!$D$3:$AU$3,0),FALSE)),\"\")","v":""}]
[null,null,null,null,{"$f":"IFERROR(VLOOKUP($A152,PQS!$D$5:$AU$107,MATCH(PQS!$Q$3,PQS!$D$3:$AU$3,0),FALSE),\"\")","v":""},{"$f":"IFERROR(VLOOKUP($A152,PQS!$D$5:$AU$107,MATCH(PQS!$AL$3,PQS!$D$3:$AU$3,0),FALSE),\"\")","v":""},"",{"$f":"IFERROR(VLOOKUP($A152,PQS!$D$5:$AU$107,MATCH(PQS!$I$3,PQS!$D$3:$AU$3,0),FALSE),\"\")","v":""},{"$f":"IFERROR(VLOOKUP($A152,PQS!$D$5:$AU$107,MATCH(PQS!$J$3,PQS!$D$3:$AU$3,0),FALSE),\"\")","v":""},{"$f":"IFERROR(VLOOKUP($A152,PQS!$D$5:$AU$107,MATCH(PQS!$AK$3,PQS!$D$3:$AU$3,0),FALSE),\"\")","v":""},{"$f":"IFERROR(VLOOKUP($A152,PQS!$D$5:$AU$107,COLUMN(PQS!$AA$5)-3,FALSE),\"\")","v":""},{"$f":"IFERROR(VLOOKUP($A152,PQS!$D$5:$AU$107,MATCH(PQS!$H$3,PQS!$D$3:$AU$3,0),FALSE),\"\")","v":""},{"$f":"IFERROR(VLOOKUP($A152,PQS!$D$5:$AU$107,MATCH(PQS!$AF$3,PQS!$D$3:$AU$3,0),FALSE),\"\")","v":""},{"$f":"IFERROR(HYPERLINK(VLOOKUP($A152,PQS!$D$5:$AU$107,MATCH(PQS!$AJ$3,PQS!$D$3:$AU$3,0),FALSE),VLOOKUP($A152,PQS!$D$5:$AU$107,MATCH(PQS!$AI$3,PQS!$D$3:$AU$3,0),FALSE)),\"\")","v":""}]
[null,null,null,null,{"$f":"IFERROR(VLOOKUP($A153,PQS!$D$5:$AU$107,MATCH(PQS!$Q$3,PQS!$D$3:$AU$3,0),FALSE),\"\")","v":""},{"$f":"IFERROR(VLOOKUP($A153,PQS!$D$5:$AU$107,MATCH(PQS!$AL$3,PQS!$D$3:$AU$3,0),FALSE),\"\")","v":""},"",{"$f":"IFERROR(VLOOKUP($A153,PQS!$D$5:$AU$107,MATCH(PQS!$I$3,PQS!$D$3:$AU$3,0),FALSE),\"\")","v":""},{"$f":"IFERROR(VLOOKUP($A153,PQS!$D$5:$AU$107,MATCH(PQS!$J$3,PQS!$D$3:$AU$3,0),FALSE),\"\")","v":""},{"$f":"IFERROR(VLOOKUP($A153,PQS!$D$5:$AU$107,MATCH(PQS!$AK$3,PQS!$D$3:$AU$3,0),FALSE),\"\")","v":""},{"$f":"IFERROR(VLOOKUP($A153,PQS!$D$5:$AU$107,COLUMN(PQS!$AA$5)-3,FALSE),\"\")","v":""},{"$f":"IFERROR(VLOOKUP($A153,PQS!$D$5:$AU$107,MATCH(PQS!$H$3,PQS!$D$3:$AU$3,0),FALSE),\"\")","v":""},{"$f":"IFERROR(VLOOKUP($A153,PQS!$D$5:$AU$107,MATCH(PQS!$AF$3,PQS!$D$3:$AU$3,0),FALSE),\"\")","v":""},{"$f":"IFERROR(HYPERLINK(VLOOKUP($A153,PQS!$D$5:$AU$107,MATCH(PQS!$AJ$3,PQS!$D$3:$AU$3,0),FALSE),VLOOKUP($A153,PQS!$D$5:$AU$107,MATCH(PQS!$AI$3,PQS!$D$3:$AU$3,0),FALSE)),\"\")","v":""}]
[null,null,null,null,{"$f":"IFERROR(VLOOKUP($A154,PQS!$D$5:$AU$107,MATCH(PQS!$Q$3,PQS!$D$3:$AU$3,0),FALSE),\"\")","v":""},{"$f":"IFERROR(VLOOKUP($A154,PQS!$D$5:$AU$107,MATCH(PQS!$AL$3,PQS!$D$3:$AU$3,0),FALSE),\"\")","v":""},{"$f":"IF(E154=\"\",\"\",(B154/C154))","v":""},{"$f":"IFERROR(VLOOKUP($A154,PQS!$D$5:$AU$107,MATCH(PQS!$I$3,PQS!$D$3:$AU$3,0),FALSE),\"\")","v":""},{"$f":"IFERROR(VLOOKUP($A154,PQS!$D$5:$AU$107,MATCH(PQS!$J$3,PQS!$D$3:$AU$3,0),FALSE),\"\")","v":""},{"$f":"IFERROR(VLOOKUP($A154,PQS!$D$5:$AU$107,MATCH(PQS!$AK$3,PQS!$D$3:$AU$3,0),FALSE),\"\")","v":""},{"$f":"IFERROR(VLOOKUP($A154,PQS!$D$5:$AU$107,COLUMN(PQS!$AA$5)-3,FALSE),\"\")","v":""},{"$f":"IFERROR(VLOOKUP($A154,PQS!$D$5:$AU$107,MATCH(PQS!$H$3,PQS!$D$3:$AU$3,0),FALSE),\"\")","v":""},{"$f":"IFERROR(VLOOKUP($A154,PQS!$D$5:$AU$107,MATCH(PQS!$AF$3,PQS!$D$3:$AU$3,0),FALSE),\"\")","v":""},{"$f":"IFERROR(HYPERLINK(VLOOKUP($A154,PQS!$D$5:$AU$107,MATCH(PQS!$AJ$3,PQS!$D$3:$AU$3,0),FALSE),VLOOKUP($A154,PQS!$D$5:$AU$107,MATCH(PQS!$AI$3,PQS!$D$3:$AU$3,0),FALSE)),\"\")","v":""}]
[null,null,null,null,{"$f":"IFERROR(VLOOKUP($A155,PQS!$D$5:$AU$107,MATCH(PQS!$Q$3,PQS!$D$3:$AU$3,0),FALSE),\"\")","v":""},{"$f":"IFERROR(VLOOKUP($A155,PQS!$D$5:$AU$107,MATCH(PQS!$AL$3,PQS!$D$3:$AU$3,0),FALSE),\"\")","v":""},"",{"$f":"IFERROR(VLOOKUP($A155,PQS!$D$5:$AU$107,MATCH(PQS!$I$3,PQS!$D$3:$AU$3,0),FALSE),\"\")","v":""},{"$f":"IFERROR(VLOOKUP($A155,PQS!$D$5:$AU$107,MATCH(PQS!$J$3,PQS!$D$3:$AU$3,0),FALSE),\"\")","v":""},{"$f":"IFERROR(VLOOKUP($A155,PQS!$D$5:$AU$107,MATCH(PQS!$AK$3,PQS!$D$3:$AU$3,0),FALSE),\"\")","v":""},{"$f":"IFERROR(VLOOKUP($A155,PQS!$D$5:$AU$107,COLUMN(PQS!$AA$5)-3,FALSE),\"\")","v":""},{"$f":"IFERROR(VLOOKUP($A155,PQS!$D$5:$AU$107,MATCH(PQS!$H$3,PQS!$D$3:$AU$3,0),FALSE),\"\")","v":""},{"$f":"IFERROR(VLOOKUP($A155,PQS!$D$5:$AU$107,MATCH(PQS!$AF$3,PQS!$D$3:$AU$3,0),FALSE),\"\")","v":""},{"$f":"IFERROR(HYPERLINK(VLOOKUP($A155,PQS!$D$5:$AU$107,MATCH(PQS!$AJ$3,PQS!$D$3:$AU$3,0),FALSE),VLOOKUP($A155,PQS!$D$5:$AU$107,MATCH(PQS!$AI$3,PQS!$D$3:$AU$3,0),FALSE)),\"\")","v":""}]
[null,null,null,null,{"$f":"IFERROR(VLOOKUP($A156,PQS!$D$5:$AU$107,MATCH(PQS!$Q$3,PQS!$D$3:$AU$3,0),FALSE),\"\")","v":""},{"$f":"IFERROR(VLOOKUP($A156,PQS!$D$5:$AU$107,MATCH(PQS!$AL$3,PQS!$D$3:$AU$3,0),FALSE),\"\")","v":""},"",{"$f":"IFERROR(VLOOKUP($A156,PQS!$D$5:$AU$107,MATCH(PQS!$I$3,PQS!$D$3:$AU$3,0),FALSE),\"\")","v":""},{"$f":"IFERROR(VLOOKUP($A156,PQS!$D$5:$AU$107,MATCH(PQS!$J$3,PQS!$D$3:$AU$3,0),FALSE),\"\")","v":""},{"$f":"IFERROR(VLOOKUP($A156,PQS!$D$5:$AU$107,MATCH(PQS!$AK$3,PQS!$D$3:$AU$3,0),FALSE),\"\")","v":""},{"$f":"IFERROR(VLOOKUP($A156,PQS!$D$5:$AU$107,COLUMN(PQS!$AA$5)-3,FALSE),\"\")","v":""},{"$f":"IFERROR(VLOOKUP($A156,PQS!$D$5:$AU$107,MATCH(PQS!$H$3,PQS!$D$3:$AU$3,0),FALSE),\"\")","v":""},{"$f":"IFERROR(VLOOKUP($A156,PQS!$D$5:$AU$107,MATCH(PQS!$AF$3,PQS!$D$3:$AU$3,0),FALSE),\"\")","v":""},{"$f":"IFERROR(HYPERLINK(VLOOKUP($A156,PQS!$D$5:$AU$107,MATCH(PQS!$AJ$3,PQS!$D$3:$AU$3,0),FALSE),VLOOKUP($A156,PQS!$D$5:$AU$107,MATCH(PQS!$AI$3,PQS!$D$3:$AU$3,0),FALSE)),\"\")","v":""}]
[null,null,null,null,{"$f":"IFERROR(VLOOKUP($A157,PQS!$D$5:$AU$107,MATCH(PQS!$Q$3,PQS!$D$3:$AU$3,0),FALSE),\"\")","v":""},{"$f":"IFERROR(VLOOKUP($A157,PQS!$D$5:$AU$107,MATCH(PQS!$AL$3,PQS!$D$3:$AU$3,0),FALSE),\"\")","v":""},"",{"$f":"IFERROR(VLOOKUP($A157,PQS!$D$5:$AU$107,MATCH(PQS!$I$3,PQS!$D$3:$AU$3,0),FALSE),\"\")","v":""},{"$f":"IFERROR(VLOOKUP($A157,PQS!$D$5:$AU$107,MATCH(PQS!$J$3,PQS!$D$3:$AU$3,0),FALSE),\"\")","v":""},{"$f":"IFERROR(VLOOKUP($A157,PQS!$D$5:$AU$107,MATCH(PQS!$AK$3,PQS!$D$3:$AU$3,0),FALSE),\"\")","v":""},{"$f":"IFERROR(VLOOKUP($A157,PQS!$D$5:$AU$107,COLUMN(PQS!$AA$5)-3,FALSE),\"\")","v":""},{"$f":"IFERROR(VLOOKUP($A157,PQS!$D$5:$AU$107,MATCH(PQS!$H$3,PQS!$D$3:$AU$3,0),FALSE),\"\")","v":""},{"$f":"IFERROR(VLOOKUP($A157,PQS!$D$5:$AU$107,MATCH(PQS!$AF$3,PQS!$D$3:$AU$3,0),FALSE),\"\")","v":""},{"$f":"IFERROR(HYPERLINK(VLOOKUP($A157,PQS!$D$5:$AU$107,MATCH(PQS!$AJ$3,PQS!$D$3:$AU$3,0),FALSE),VLOOKUP($A157,PQS!$D$5:$AU$107,MATCH(PQS!$AI$3,PQS!$D$3:$AU$3,0),FALSE)),\"\")","v":""}]
[null,null,null,null,{"$f":"IFERROR(VLOOKUP($A158,PQS!$D$5:$AU$107,MATCH(PQS!$Q$3,PQS!$D$3:$AU$3,0),FALSE),\"\")","v":""},{"$f":"IFERROR(VLOOKUP($A158,PQS!$D$5:$AU$107,MATCH(PQS!$AL$3,PQS!$D$3:$AU$3,0),FALSE),\"\")","v":""},"",{"$f":"IFERROR(VLOOKUP($A158,PQS!$D$5:$AU$107,MATCH(PQS!$I$3,PQS!$D$3:$AU$3,0),FALSE),\"\")","v":""},{"$f":"IFERROR(VLOOKUP($A158,PQS!$D$5:$AU$107,MATCH(PQS!$J$3,PQS!$D$3:$AU$3,0),FALSE),\"\")","v":""},{"$f":"IFERROR(VLOOKUP($A158,PQS!$D$5:$AU$107,MATCH(PQS!$AK$3,PQS!$D$3:$AU$3,0),FALSE),\"\")","v":""},{"$f":"IFERROR(VLOOKUP($A158,PQS!$D$5:$AU$107,COLUMN(PQS!$AA$5)-3,FALSE),\"\")","v":""},{"$f":"IFERROR(VLOOKUP($A158,PQS!$D$5:$AU$107,MATCH(PQS!$H$3,PQS!$D$3:$AU$3,0),FALSE),\"\")","v":""},{"$f":"IFERROR(VLOOKUP($A158,PQS!$D$5:$AU$107,MATCH(PQS!$AF$3,PQS!$D$3:$AU$3,0),FALSE),\"\")","v":""},{"$f":"IFERROR(HYPERLINK(VLOOKUP($A158,PQS!$D$5:$AU$107,MATCH(PQS!$AJ$3,PQS!$D$3:$AU$3,0),FALSE),VLOOKUP($A158,PQS!$D$5:$AU$107,MATCH(PQS!$AI$3,PQS!$D$3:$AU$3,0),FALSE)),\"\")","v":""}]
[null,null,null,null,{"$f":"IFERROR(VLOOKUP($A159,PQS!$D$5:$AU$107,MATCH(PQS!$Q$3,PQS!$D$3:$AU$3,0),FALSE),\"\")","v":""},{"$f":"IFERROR(VLOOKUP($A159,PQS!$D$5:$AU$107,MATCH(PQS!$AL$3,PQS!$D$3:$AU$3,0),FALSE),\"\")","v":""},"",{"$f":"IFERROR(VLOOKUP($A159,PQS!$D$5:$AU$107,MATCH(PQS!$I$3,PQS!$D$3:$AU$3,0),FALSE),\"\")","v":""},{"$f":"IFERROR(VLOOKUP($A159,PQS!$D$5:$AU$107,MATCH(PQS!$J$3,PQS!$D$3:$AU$3,0),FALSE),\"\")","v":""},{"$f":"IFERROR(VLOOKUP($A159,PQS!$D$5:$AU$107,MATCH(PQS!$AK$3,PQS!$D$3:$AU$3,0),FALSE),\"\")","v":""},{"$f":"IFERROR(VLOOKUP($A159,PQS!$D$5:$AU$107,COLUMN(PQS!$AA$5)-3,FALSE),\"\")","v":""},{"$f":"IFERROR(VLOOKUP($A159,PQS!$D$5:$AU$107,MATCH(PQS!$H$3,PQS!$D$3:$AU$3,0),FALSE),\"\")","v":""},{"$f":"IFERROR(VLOOKUP($A159,PQS!$D$5:$AU$107,MATCH(PQS!$AF$3,PQS!$D$3:$AU$3,0),FALSE),\"\")","v":""},{"$f":"IFERROR(HYPERLINK(VLOOKUP($A159,PQS!$D$5:$AU$107,MATCH(PQS!$AJ$3,PQS!$D$3:$AU$3,0),FALSE),VLOOKUP($A159,PQS!$D$5:$AU$107,MATCH(PQS!$AI$3,PQS!$D$3:$AU$3,0),FALSE)),\"\")","v":""}]
[null,null,null,null,{"$f":"IFERROR(VLOOKUP($A160,PQS!$D$5:$AU$107,MATCH(PQS!$Q$3,PQS!$D$3:$AU$3,0),FALSE),\"\")","v":""},{"$f":"IFERROR(VLOOKUP($A160,PQS!$D$5:$AU$107,MATCH(PQS!$AL$3,PQS!$D$3:$AU$3,0),FALSE),\"\")","v":""},"",{"$f":"IFERROR(VLOOKUP($A160,PQS!$D$5:$AU$107,MATCH(PQS!$I$3,PQS!$D$3:$AU$3,0),FALSE),\"\")","v":""},{"$f":"IFERROR(VLOOKUP($A160,PQS!$D$5:$AU$107,MATCH(PQS!$J$3,PQS!$D$3:$AU$3,0),FALSE),\"\")","v":""},{"$f":"IFERROR(VLOOKUP($A160,PQS!$D$5:$AU$107,MATCH(PQS!$AK$3,PQS!$D$3:$AU$3,0),FALSE),\"\")","v":""},{"$f":"IFERROR(VLOOKUP($A160,PQS!$D$5:$AU$107,COLUMN(PQS!$AA$5)-3,FALSE),\"\")","v":""},{"$f":"IFERROR(VLOOKUP($A160,PQS!$D$5:$AU$107,MATCH(PQS!$H$3,PQS!$D$3:$AU$3,0),FALSE),\"\")","v":""},{"$f":"IFERROR(VLOOKUP($A160,PQS!$D$5:$AU$107,MATCH(PQS!$AF$3,PQS!$D$3:$AU$3,0),FALSE),\"\")","v":""},{"$f":"IFERROR(HYPERLINK(VLOOKUP($A160,PQS!$D$5:$AU$107,MATCH(PQS!$AJ$3,PQS!$D$3:$AU$3,0),FALSE),VLOOKUP($A160,PQS!$D$5:$AU$107,MATCH(PQS!$AI$3,PQS!$D$3:$AU$3,0),FALSE)),\"\")","v":""}]
[null,null,null,null,{"$f":"IFERROR(VLOOKUP($A161,PQS!$D$5:$AU$107,MATCH(PQS!$Q$3,PQS!$D$3:$AU$3,0),FALSE),\"\")","v":""},{"$f":"IFERROR(VLOOKUP($A161,PQS!$D$5:$AU$107,MATCH(PQS!$AL$3,PQS!$D$3:$AU$3,0),FALSE),\"\")","v":""},"",{"$f":"IFERROR(VLOOKUP($A161,PQS!$D$5:$AU$107,MATCH(PQS!$I$3,PQS!$D$3:$AU$3,0),FALSE),\"\")","v":""},{"$f":"IFERROR(VLOOKUP($A161,PQS!$D$5:$AU$107,MATCH(PQS!$J$3,PQS!$D$3:$AU$3,0),FALSE),\"\")","v":""},{"$f":"IFERROR(VLOOKUP($A161,PQS!$D$5:$AU$107,MATCH(PQS!$AK$3,PQS!$D$3:$AU$3,0),FALSE),\"\")","v":""},{"$f":"IFERROR(VLOOKUP($A161,PQS!$D$5:$AU$107,COLUMN(PQS!$AA$5)-3,FALSE),\"\")","v":""},{"$f":"IFERROR(VLOOKUP($A161,PQS!$D$5:$AU$107,MATCH(PQS!$H$3,PQS!$D$3:$AU$3,0),FALSE),\"\")","v":""},{"$f":"IFERROR(VLOOKUP($A161,PQS!$D$5:$AU$107,MATCH(PQS!$AF$3,PQS!$D$3:$AU$3,0),FALSE),\"\")","v":""},{"$f":"IFERROR(HYPERLINK(VLOOKUP($A161,PQS!$D$5:$AU$107,MATCH(PQS!$AJ$3,PQS!$D$3:$AU$3,0),FALSE),VLOOKUP($A161,PQS!$D$5:$AU$107,MATCH(PQS!$AI$3,PQS!$D$3:$AU$3,0),FALSE)),\"\")","v":""}]
[null,null,null,null,{"$f":"IFERROR(VLOOKUP($A162,PQS!$D$5:$AU$107,MATCH(PQS!$Q$3,PQS!$D$3:$AU$3,0),FALSE),\"\")","v":""},{"$f":"IFERROR(VLOOKUP($A162,PQS!$D$5:$AU$107,MATCH(PQS!$AL$3,PQS!$D$3:$AU$3,0),FALSE),\"\")","v":""},"",{"$f":"IFERROR(VLOOKUP($A162,PQS!$D$5:$AU$107,MATCH(PQS!$I$3,PQS!$D$3:$AU$3,0),FALSE),\"\")","v":""},{"$f":"IFERROR(VLOOKUP($A162,PQS!$D$5:$AU$107,MATCH(PQS!$J$3,PQS!$D$3:$AU$3,0),FALSE),\"\")","v":""},{"$f":"IFERROR(VLOOKUP($A162,PQS!$D$5:$AU$107,MATCH(PQS!$AK$3,PQS!$D$3:$AU$3,0),FALSE),\"\")","v":""},{"$f":"IFERROR(VLOOKUP($A162,PQS!$D$5:$AU$107,COLUMN(PQS!$AA$5)-3,FALSE),\"\")","v":""},{"$f":"IFERROR(VLOOKUP($A162,PQS!$D$5:$AU$107,MATCH(PQS!$H$3,PQS!$D$3:$AU$3,0),FALSE),\"\")","v":""},{"$f":"IFERROR(VLOOKUP($A162,PQS!$D$5:$AU$107,MATCH(PQS!$AF$3,PQS!$D$3:$AU$3,0),FALSE),\"\")","v":""},{"$f":"IFERROR(HYPERLINK(VLOOKUP($A162,PQS!$D$5:$AU$107,MATCH(PQS!$AJ$3,PQS!$D$3:$AU$3,0),FALSE),VLOOKUP($A162,PQS!$D$5:$AU$107,MATCH(PQS!$AI$3,PQS!$D$3:$AU$3,0),FALSE)),\"\")","v":""}]
[null,null,null,null,{"$f":"IFERROR(VLOOKUP($A163,PQS!$D$5:$AU$107,MATCH(PQS!$Q$3,PQS!$D$3:$AU$3,0),FALSE),\"\")","v":""},{"$f":"IFERROR(VLOOKUP($A163,PQS!$D$5:$AU$107,MATCH(PQS!$AL$3,PQS!$D$3:$AU$3,0),FALSE),\"\")","v":""},"",{"$f":"IFERROR(VLOOKUP($A163,PQS!$D$5:$AU$107,MATCH(PQS!$I$3,PQS!$D$3:$AU$3,0),FALSE),\"\")","v":""},{"$f":"IFERROR(VLOOKUP($A163,PQS!$D$5:$AU$107,MATCH(PQS!$J$3,PQS!$D$3:$AU$3,0),FALSE),\"\")","v":""},{"$f":"IFERROR(VLOOKUP($A163,PQS!$D$5:$AU$107,MATCH(PQS!$AK$3,PQS!$D$3:$AU$3,0),FALSE),\"\")","v":""},{"$f":"IFERROR(VLOOKUP($A163,PQS!$D$5:$AU$107,COLUMN(PQS!$AA$5)-3,FALSE),\"\")","v":""},{"$f":"IFERROR(VLOOKUP($A163,PQS!$D$5:$AU$107,MATCH(PQS!$H$3,PQS!$D$3:$AU$3,0),FALSE),\"\")","v":""},{"$f":"IFERROR(VLOOKUP($A163,PQS!$D$5:$AU$107,MATCH(PQS!$AF$3,PQS!$D$3:$AU$3,0),FALSE),\"\")","v":""},{"$f":"IFERROR(HYPERLINK(VLOOKUP($A163,PQS!$D$5:$AU$107,MATCH(PQS!$AJ$3,PQS!$D$3:$AU$3,0),FALSE),VLOOKUP($A163,PQS!$D$5:$AU$107,MATCH(PQS!$AI$3,PQS!$D$3:$AU$3,0),FALSE)),\"\")","v":""}]
[null,null,null,null,{"$f":"IFERROR(VLOOKUP($A164,PQS!$D$5:$AU$107,MATCH(PQS!$Q$3,PQS!$D$3:$AU$3,0),FALSE),\"\")","v":""},{"$f":"IFERROR(VLOOKUP($A164,PQS!$D$5:$AU$107,MATCH(PQS!$AL$3,PQS!$D$3:$AU$3,0),FALSE),\"\")","v":""},"",{"$f":"IFERROR(VLOOKUP($A164,PQS!$D$5:$AU$107,MATCH(PQS!$I$3,PQS!$D$3:$AU$3,0),FALSE),\"\")","v":""},{"$f":"IFERROR(VLOOKUP($A164,PQS!$D$5:$AU$107,MATCH(PQS!$J$3,PQS!$D$3:$AU$3,0),FALSE),\"\")","v":""},{"$f":"IFERROR(VLOOKUP($A164,PQS!$D$5:$AU$107,MATCH(PQS!$AK$3,PQS!$D$3:$AU$3,0),FALSE),\"\")","v":""},{"$f":"IFERROR(VLOOKUP($A164,PQS!$D$5:$AU$107,COLUMN(PQS!$AA$5)-3,FALSE),\"\")","v":""},{"$f":"IFERROR(VLOOKUP($A164,PQS!$D$5:$AU$107,MATCH(PQS!$H$3,PQS!$D$3:$AU$3,0),FALSE),\"\")","v":""},{"$f":"IFERROR(VLOOKUP($A164,PQS!$D$5:$AU$107,MATCH(PQS!$AF$3,PQS!$D$3:$AU$3,0),FALSE),\"\")","v":""},{"$f":"IFERROR(HYPERLINK(VLOOKUP($A164,PQS!$D$5:$AU$107,MATCH(PQS!$AJ$3,PQS!$D$3:$AU$3,0),FALSE),VLOOKUP($A164,PQS!$D$5:$AU$107,MATCH(PQS!$AI$3,PQS!$D$3:$AU$3,0),FALSE)),\"\")","v":""}]
[null,null,null,null,{"$f":"IFERROR(VLOOKUP($A165,PQS!$D$5:$AU$107,MATCH(PQS!$Q$3,PQS!$D$3:$AU$3,0),FALSE),\"\")","v":""},{"$f":"IFERROR(VLOOKUP($A165,PQS!$D$5:$AU$107,MATCH(PQS!$AL$3,PQS!$D$3:$AU$3,0),FALSE),\"\")","v":""},"",{"$f":"IFERROR(VLOOKUP($A165,PQS!$D$5:$AU$107,MATCH(PQS!$I$3,PQS!$D$3:$AU$3,0),FALSE),\"\")","v":""},{"$f":"IFERROR(VLOOKUP($A165,PQS!$D$5:$AU$107,MATCH(PQS!$J$3,PQS!$D$3:$AU$3,0),FALSE),\"\")","v":""},{"$f":"IFERROR(VLOOKUP($A165,PQS!$D$5:$AU$107,MATCH(PQS!$AK$3,PQS!$D$3:$AU$3,0),FALSE),\"\")","v":""},{"$f":"IFERROR(VLOOKUP($A165,PQS!$D$5:$AU$107,COLUMN(PQS!$AA$5)-3,FALSE),\"\")","v":""},{"$f":"IFERROR(VLOOKUP($A165,PQS!$D$5:$AU$107,MATCH(PQS!$H$3,PQS!$D$3:$AU$3,0),FALSE),\"\")","v":""},{"$f":"IFERROR(VLOOKUP($A165,PQS!$D$5:$AU$107,MATCH(PQS!$AF$3,PQS!$D$3:$AU$3,0),FALSE),\"\")","v":""},{"$f":"IFERROR(HYPERLINK(VLOOKUP($A165,PQS!$D$5:$AU$107,MATCH(PQS!$AJ$3,PQS!$D$3:$AU$3,0),FALSE),VLOOKUP($A165,PQS!$D$5:$AU$107,MATCH(PQS!$AI$3,PQS!$D$3:$AU$3,0),FALSE)),\"\")","v":""}]
[null,null,null,null,{"$f":"IFERROR(VLOOKUP($A166,PQS!$D$5:$AU$107,MATCH(PQS!$Q$3,PQS!$D$3:$AU$3,0),FALSE),\"\")","v":""},{"$f":"IFERROR(VLOOKUP($A166,PQS!$D$5:$AU$107,MATCH(PQS!$AL$3,PQS!$D$3:$AU$3,0),FALSE),\"\")","v":""},"",{"$f":"IFERROR(VLOOKUP($A166,PQS!$D$5:$AU$107,MATCH(PQS!$I$3,PQS!$D$3:$AU$3,0),FALSE),\"\")","v":""},{"$f":"IFERROR(VLOOKUP($A166,PQS!$D$5:$AU$107,MATCH(PQS!$J$3,PQS!$D$3:$AU$3,0),FALSE),\"\")","v":""},{"$f":"IFERROR(VLOOKUP($A166,PQS!$D$5:$AU$107,MATCH(PQS!$AK$3,PQS!$D$3:$AU$3,0),FALSE),\"\")","v":""},{"$f":"IFERROR(VLOOKUP($A166,PQS!$D$5:$AU$107,COLUMN(PQS!$AA$5)-3,FALSE),\"\")","v":""},{"$f":"IFERROR(VLOOKUP($A166,PQS!$D$5:$AU$107,MATCH(PQS!$H$3,PQS!$D$3:$AU$3,0),FALSE),\"\")","v":""},{"$f":"IFERROR(VLOOKUP($A166,PQS!$D$5:$AU$107,MATCH(PQS!$AF$3,PQS!$D$3:$AU$3,0),FALSE),\"\")","v":""},{"$f":"IFERROR(HYPERLINK(VLOOKUP($A166,PQS!$D$5:$AU$107,MATCH(PQS!$AJ$3,PQS!$D$3:$AU$3,0),FALSE),VLOOKUP($A166,PQS!$D$5:$AU$107,MATCH(PQS!$AI$3,PQS!$D$3:$AU$3,0),FALSE)),\"\")","v":""}]
[null,null,null,null,{"$f":"IFERROR(VLOOKUP($A167,PQS!$D$5:$AU$107,MATCH(PQS!$Q$3,PQS!$D$3:$AU$3,0),FALSE),\"\")","v":""},{"$f":"IFERROR(VLOOKUP($A167,PQS!$D$5:$AU$107,MATCH(PQS!$AL$3,PQS!$D$3:$AU$3,0),FALSE),\"\")","v":""},"",{"$f":"IFERROR(VLOOKUP($A167,PQS!$D$5:$AU$107,MATCH(PQS!$I$3,PQS!$D$3:$AU$3,0),FALSE),\"\")","v":""},{"$f":"IFERROR(VLOOKUP($A167,PQS!$D$5:$AU$107,MATCH(PQS!$J$3,PQS!$D$3:$AU$3,0),FALSE),\"\")","v":""},{"$f":"IFERROR(VLOOKUP($A167,PQS!$D$5:$AU$107,MATCH(PQS!$AK$3,PQS!$D$3:$AU$3,0),FALSE),\"\")","v":""},{"$f":"IFERROR(VLOOKUP($A167,PQS!$D$5:$AU$107,COLUMN(PQS!$AA$5)-3,FALSE),\"\")","v":""},{"$f":"IFERROR(VLOOKUP($A167,PQS!$D$5:$AU$107,MATCH(PQS!$H$3,PQS!$D$3:$AU$3,0),FALSE),\"\")","v":""},{"$f":"IFERROR(VLOOKUP($A167,PQS!$D$5:$AU$107,MATCH(PQS!$AF$3,PQS!$D$3:$AU$3,0),FALSE),\"\")","v":""},{"$f":"IFERROR(HYPERLINK(VLOOKUP($A167,PQS!$D$5:$AU$107,MATCH(PQS!$AJ$3,PQS!$D$3:$AU$3,0),FALSE),VLOOKUP($A167,PQS!$D$5:$AU$107,MATCH(PQS!$AI$3,PQS!$D$3:$AU$3,0),FALSE)),\"\")","v":""}]
[null,null,null,null,{"$f":"IFERROR(VLOOKUP($A168,PQS!$D$5:$AU$107,MATCH(PQS!$Q$3,PQS!$D$3:$AU$3,0),FALSE),\"\")","v":""},{"$f":"IFERROR(VLOOKUP($A168,PQS!$D$5:$AU$107,MATCH(PQS!$AL$3,PQS!$D$3:$AU$3,0),FALSE),\"\")","v":""},"",{"$f":"IFERROR(VLOOKUP($A168,PQS!$D$5:$AU$107,MATCH(PQS!$I$3,PQS!$D$3:$AU$3,0),FALSE),\"\")","v":""},{"$f":"IFERROR(VLOOKUP($A168,PQS!$D$5:$AU$107,MATCH(PQS!$J$3,PQS!$D$3:$AU$3,0),FALSE),\"\")","v":""},{"$f":"IFERROR(VLOOKUP($A168,PQS!$D$5:$AU$107,MATCH(PQS!$AK$3,PQS!$D$3:$AU$3,0),FALSE),\"\")","v":""},{"$f":"IFERROR(VLOOKUP($A168,PQS!$D$5:$AU$107,COLUMN(PQS!$AA$5)-3,FALSE),\"\")","v":""},{"$f":"IFERROR(VLOOKUP($A168,PQS!$D$5:$AU$107,MATCH(PQS!$H$3,PQS!$D$3:$AU$3,0),FALSE),\"\")","v":""},{"$f":"IFERROR(VLOOKUP($A168,PQS!$D$5:$AU$107,MATCH(PQS!$AF$3,PQS!$D$3:$AU$3,0),FALSE),\"\")","v":""},{"$f":"IFERROR(HYPERLINK(VLOOKUP($A168,PQS!$D$5:$AU$107,MATCH(PQS!$AJ$3,PQS!$D$3:$AU$3,0),FALSE),VLOOKUP($A168,PQS!$D$5:$AU$107,MATCH(PQS!$AI$3,PQS!$D$3:$AU$3,0),FALSE)),\"\")","v":""}]
[null,null,null,null,{"$f":"IFERROR(VLOOKUP($A169,PQS!$D$5:$AU$107,MATCH(PQS!$Q$3,PQS!$D$3:$AU$3,0),FALSE),\"\")","v":""},{"$f":"IFERROR(VLOOKUP($A169,PQS!$D$5:$AU$107,MATCH(PQS!$AL$3,PQS!$D$3:$AU$3,0),FALSE),\"\")","v":""},"",{"$f":"IFERROR(VLOOKUP($A169,PQS!$D$5:$AU$107,MATCH(PQS!$I$3,PQS!$D$3:$AU$3,0),FALSE),\"\")","v":""},{"$f":"IFERROR(VLOOKUP($A169,PQS!$D$5:$AU$107,MATCH(PQS!$J$3,PQS!$D$3:$AU$3,0),FALSE),\"\")","v":""},{"$f":"IFERROR(VLOOKUP($A169,PQS!$D$5:$AU$107,MATCH(PQS!$AK$3,PQS!$D$3:$AU$3,0),FALSE),\"\")","v":""},{"$f":"IFERROR(VLOOKUP($A169,PQS!$D$5:$AU$107,COLUMN(PQS!$AA$5)-3,FALSE),\"\")","v":""},{"$f":"IFERROR(VLOOKUP($A169,PQS!$D$5:$AU$107,MATCH(PQS!$H$3,PQS!$D$3:$AU$3,0),FALSE),\"\")","v":""},{"$f":"IFERROR(VLOOKUP($A169,PQS!$D$5:$AU$107,MATCH(PQS!$AF$3,PQS!$D$3:$AU$3,0),FALSE),\"\")","v":""},{"$f":"IFERROR(HYPERLINK(VLOOKUP($A169,PQS!$D$5:$AU$107,MATCH(PQS!$AJ$3,PQS!$D$3:$AU$3,0),FALSE),VLOOKUP($A169,PQS!$D$5:$AU$107,MATCH(PQS!$AI$3,PQS!$D$3:$AU$3,0),FALSE)),\"\")","v":""}]
[null,null,null,null,{"$f":"IFERROR(VLOOKUP($A170,PQS!$D$5:$AU$107,MATCH(PQS!$Q$3,PQS!$D$3:$AU$3,0),FALSE),\"\")","v":""},{"$f":"IFERROR(VLOOKUP($A170,PQS!$D$5:$AU$107,MATCH(PQS!$AL$3,PQS!$D$3:$AU$3,0),FALSE),\"\")","v":""},"",{"$f":"IFERROR(VLOOKUP($A170,PQS!$D$5:$AU$107,MATCH(PQS!$I$3,PQS!$D$3:$AU$3,0),FALSE),\"\")","v":""},{"$f":"IFERROR(VLOOKUP($A170,PQS!$D$5:$AU$107,MATCH(PQS!$J$3,PQS!$D$3:$AU$3,0),FALSE),\"\")","v":""},{"$f":"IFERROR(VLOOKUP($A170,PQS!$D$5:$AU$107,MATCH(PQS!$AK$3,PQS!$D$3:$AU$3,0),FALSE),\"\")","v":""},{"$f":"IFERROR(VLOOKUP($A170,PQS!$D$5:$AU$107,COLUMN(PQS!$AA$5)-3,FALSE),\"\")","v":""},{"$f":"IFERROR(VLOOKUP($A170,PQS!$D$5:$AU$107,MATCH(PQS!$H$3,PQS!$D$3:$AU$3,0),FALSE),\"\")","v":""},{"$f":"IFERROR(VLOOKUP($A170,PQS!$D$5:$AU$107,MATCH(PQS!$AF$3,PQS!$D$3:$AU$3,0),FALSE),\"\")","v":""},{"$f":"IFERROR(HYPERLINK(VLOOKUP($A170,PQS!$D$5:$AU$107,MATCH(PQS!$AJ$3,PQS!$D$3:$AU$3,0),FALSE),VLOOKUP($A170,PQS!$D$5:$AU$107,MATCH(PQS!$AI$3,PQS!$D$3:$AU$3,0),FALSE)),\"\")","v":""}]
[null,null,null,null,{"$f":"IFERROR(VLOOKUP($A171,PQS!$D$5:$AU$107,MATCH(PQS!$Q$3,PQS!$D$3:$AU$3,0),FALSE),\"\")","v":""},{"$f":"IFERROR(VLOOKUP($A171,PQS!$D$5:$AU$107,MATCH(PQS!$AL$3,PQS!$D$3:$AU$3,0),FALSE),\"\")","v":""},"",{"$f":"IFERROR(VLOOKUP($A171,PQS!$D$5:$AU$107,MATCH(PQS!$I$3,PQS!$D$3:$AU$3,0),FALSE),\"\")","v":""},{"$f":"IFERROR(VLOOKUP($A171,PQS!$D$5:$AU$107,MATCH(PQS!$J$3,PQS!$D$3:$AU$3,0),FALSE),\"\")","v":""},{"$f":"IFERROR(VLOOKUP($A171,PQS!$D$5:$AU$107,MATCH(PQS!$AK$3,PQS!$D$3:$AU$3,0),FALSE),\"\")","v":""},{"$f":"IFERROR(VLOOKUP($A171,PQS!$D$5:$AU$107,COLUMN(PQS!$AA$5)-3,FALSE),\"\")","v":""},{"$f":"IFERROR(VLOOKUP($A171,PQS!$D$5:$AU$107,MATCH(PQS!$H$3,PQS!$D$3:$AU$3,0),FALSE),\"\")","v":""},{"$f":"IFERROR(VLOOKUP($A171,PQS!$D$5:$AU$107,MATCH(PQS!$AF$3,PQS!$D$3:$AU$3,0),FALSE),\"\")","v":""},{"$f":"IFERROR(HYPERLINK(VLOOKUP($A171,PQS!$D$5:$AU$107,MATCH(PQS!$AJ$3,PQS!$D$3:$AU$3,0),FALSE),VLOOKUP($A171,PQS!$D$5:$AU$107,MATCH(PQS!$AI$3,PQS!$D$3:$AU$3,0),FALSE)),\"\")","v":""}]
[null,null,null,null,{"$f":"IFERROR(VLOOKUP($A172,PQS!$D$5:$AU$107,MATCH(PQS!$Q$3,PQS!$D$3:$AU$3,0),FALSE),\"\")","v":""},{"$f":"IFERROR(VLOOKUP($A172,PQS!$D$5:$AU$107,MATCH(PQS!$AL$3,PQS!$D$3:$AU$3,0),FALSE),\"\")","v":""},"",{"$f":"IFERROR(VLOOKUP($A172,PQS!$D$5:$AU$107,MATCH(PQS!$I$3,PQS!$D$3:$AU$3,0),FALSE),\"\")","v":""},{"$f":"IFERROR(VLOOKUP($A172,PQS!$D$5:$AU$107,MATCH(PQS!$J$3,PQS!$D$3:$AU$3,0),FALSE),\"\")","v":""},{"$f":"IFERROR(VLOOKUP($A172,PQS!$D$5:$AU$107,MATCH(PQS!$AK$3,PQS!$D$3:$AU$3,0),FALSE),\"\")","v":""},{"$f":"IFERROR(VLOOKUP($A172,PQS!$D$5:$AU$107,COLUMN(PQS!$AA$5)-3,FALSE),\"\")","v":""},{"$f":"IFERROR(VLOOKUP($A172,PQS!$D$5:$AU$107,MATCH(PQS!$H$3,PQS!$D$3:$AU$3,0),FALSE),\"\")","v":""},{"$f":"IFERROR(VLOOKUP($A172,PQS!$D$5:$AU$107,MATCH(PQS!$AF$3,PQS!$D$3:$AU$3,0),FALSE),\"\")","v":""},{"$f":"IFERROR(HYPERLINK(VLOOKUP($A172,PQS!$D$5:$AU$107,MATCH(PQS!$AJ$3,PQS!$D$3:$AU$3,0),FALSE),VLOOKUP($A172,PQS!$D$5:$AU$107,MATCH(PQS!$AI$3,PQS!$D$3:$AU$3,0),FALSE)),\"\")","v":""}]
[null,null,null,null,{"$f":"IFERROR(VLOOKUP($A173,PQS!$D$5:$AU$107,MATCH(PQS!$Q$3,PQS!$D$3:$AU$3,0),FALSE),\"\")","v":""},{"$f":"IFERROR(VLOOKUP($A173,PQS!$D$5:$AU$107,MATCH(PQS!$AL$3,PQS!$D$3:$AU$3,0),FALSE),\"\")","v":""},"",{"$f":"IFERROR(VLOOKUP($A173,PQS!$D$5:$AU$107,MATCH(PQS!$I$3,PQS!$D$3:$AU$3,0),FALSE),\"\")","v":""},{"$f":"IFERROR(VLOOKUP($A173,PQS!$D$5:$AU$107,MATCH(PQS!$J$3,PQS!$D$3:$AU$3,0),FALSE),\"\")","v":""},{"$f":"IFERROR(VLOOKUP($A173,PQS!$D$5:$AU$107,MATCH(PQS!$AK$3,PQS!$D$3:$AU$3,0),FALSE),\"\")","v":""},{"$f":"IFERROR(VLOOKUP($A173,PQS!$D$5:$AU$107,COLUMN(PQS!$AA$5)-3,FALSE),\"\")","v":""},{"$f":"IFERROR(VLOOKUP($A173,PQS!$D$5:$AU$107,MATCH(PQS!$H$3,PQS!$D$3:$AU$3,0),FALSE),\"\")","v":""},{"$f":"IFERROR(VLOOKUP($A173,PQS!$D$5:$AU$107,MATCH(PQS!$AF$3,PQS!$D$3:$AU$3,0),FALSE),\"\")","v":""},{"$f":"IFERROR(HYPERLINK(VLOOKUP($A173,PQS!$D$5:$AU$107,MATCH(PQS!$AJ$3,PQS!$D$3:$AU$3,0),FALSE),VLOOKUP($A173,PQS!$D$5:$AU$107,MATCH(PQS!$AI$3,PQS!$D$3:$AU$3,0),FALSE)),\"\")","v":""}]
[null,null,null,null,{"$f":"IFERROR(VLOOKUP($A174,PQS!$D$5:$AU$107,MATCH(PQS!$Q$3,PQS!$D$3:$AU$3,0),FALSE),\"\")","v":""},{"$f":"IFERROR(VLOOKUP($A174,PQS!$D$5:$AU$107,MATCH(PQS!$AL$3,PQS!$D$3:$AU$3,0),FALSE),\"\")","v":""},"",{"$f":"IFERROR(VLOOKUP($A174,PQS!$D$5:$AU$107,MATCH(PQS!$I$3,PQS!$D$3:$AU$3,0),FALSE),\"\")","v":""},{"$f":"IFERROR(VLOOKUP($A174,PQS!$D$5:$AU$107,MATCH(PQS!$J$3,PQS!$D$3:$AU$3,0),FALSE),\"\")","v":""},{"$f":"IFERROR(VLOOKUP($A174,PQS!$D$5:$AU$107,MATCH(PQS!$AK$3,PQS!$D$3:$AU$3,0),FALSE),\"\")","v":""},{"$f":"IFERROR(VLOOKUP($A174,PQS!$D$5:$AU$107,COLUMN(PQS!$AA$5)-3,FALSE),\"\")","v":""},{"$f":"IFERROR(VLOOKUP($A174,PQS!$D$5:$AU$107,MATCH(PQS!$H$3,PQS!$D$3:$AU$3,0),FALSE),\"\")","v":""},{"$f":"IFERROR(VLOOKUP($A174,PQS!$D$5:$AU$107,MATCH(PQS!$AF$3,PQS!$D$3:$AU$3,0),FALSE),\"\")","v":""},{"$f":"IFERROR(HYPERLINK(VLOOKUP($A174,PQS!$D$5:$AU$107,MATCH(PQS!$AJ$3,PQS!$D$3:$AU$3,0),FALSE),VLOOKUP($A174,PQS!$D$5:$AU$107,MATCH(PQS!$AI$3,PQS!$D$3:$AU$3,0),FALSE)),\"\")","v":""}]
[null,null,null,null,{"$f":"IFERROR(VLOOKUP($A175,PQS!$D$5:$AU$107,MATCH(PQS!$Q$3,PQS!$D$3:$AU$3,0),FALSE),\"\")","v":""},{"$f":"IFERROR(VLOOKUP($A175,PQS!$D$5:$AU$107,MATCH(PQS!$AL$3,PQS!$D$3:$AU$3,0),FALSE),\"\")","v":""},"",{"$f":"IFERROR(VLOOKUP($A175,PQS!$D$5:$AU$107,MATCH(PQS!$I$3,PQS!$D$3:$AU$3,0),FALSE),\"\")","v":""},{"$f":"IFERROR(VLOOKUP($A175,PQS!$D$5:$AU$107,MATCH(PQS!$J$3,PQS!$D$3:$AU$3,0),FALSE),\"\")","v":""},{"$f":"IFERROR(VLOOKUP($A175,PQS!$D$5:$AU$107,MATCH(PQS!$AK$3,PQS!$D$3:$AU$3,0),FALSE),\"\")","v":""},{"$f":"IFERROR(VLOOKUP($A175,PQS!$D$5:$AU$107,COLUMN(PQS!$AA$5)-3,FALSE),\"\")","v":""},{"$f":"IFERROR(VLOOKUP($A175,PQS!$D$5:$AU$107,MATCH(PQS!$H$3,PQS!$D$3:$AU$3,0),FALSE),\"\")","v":""},{"$f":"IFERROR(VLOOKUP($A175,PQS!$D$5:$AU$107,MATCH(PQS!$AF$3,PQS!$D$3:$AU$3,0),FALSE),\"\")","v":""},{"$f":"IFERROR(HYPERLINK(VLOOKUP($A175,PQS!$D$5:$AU$107,MATCH(PQS!$AJ$3,PQS!$D$3:$AU$3,0),FALSE),VLOOKUP($A175,PQS!$D$5:$AU$107,MATCH(PQS!$AI$3,PQS!$D$3:$AU$3,0),FALSE)),\"\")","v":""}]
[null,null,null,null,{"$f":"IFERROR(VLOOKUP($A176,PQS!$D$5:$AU$107,MATCH(PQS!$Q$3,PQS!$D$3:$AU$3,0),FALSE),\"\")","v":""},{"$f":"IFERROR(VLOOKUP($A176,PQS!$D$5:$AU$107,MATCH(PQS!$AL$3,PQS!$D$3:$AU$3,0),FALSE),\"\")","v":""},"",{"$f":"IFERROR(VLOOKUP($A176,PQS!$D$5:$AU$107,MATCH(PQS!$I$3,PQS!$D$3:$AU$3,0),FALSE),\"\")","v":""},{"$f":"IFERROR(VLOOKUP($A176,PQS!$D$5:$AU$107,MATCH(PQS!$J$3,PQS!$D$3:$AU$3,0),FALSE),\"\")","v":""},{"$f":"IFERROR(VLOOKUP($A176,PQS!$D$5:$AU$107,MATCH(PQS!$AK$3,PQS!$D$3:$AU$3,0),FALSE),\"\")","v":""},{"$f":"IFERROR(VLOOKUP($A176,PQS!$D$5:$AU$107,COLUMN(PQS!$AA$5)-3,FALSE),\"\")","v":""},{"$f":"IFERROR(VLOOKUP($A176,PQS!$D$5:$AU$107,MATCH(PQS!$H$3,PQS!$D$3:$AU$3,0),FALSE),\"\")","v":""},{"$f":"IFERROR(VLOOKUP($A176,PQS!$D$5:$AU$107,MATCH(PQS!$AF$3,PQS!$D$3:$AU$3,0),FALSE),\"\")","v":""},{"$f":"IFERROR(HYPERLINK(VLOOKUP($A176,PQS!$D$5:$AU$107,MATCH(PQS!$AJ$3,PQS!$D$3:$AU$3,0),FALSE),VLOOKUP($A176,PQS!$D$5:$AU$107,MATCH(PQS!$AI$3,PQS!$D$3:$AU$3,0),FALSE)),\"\")","v":""}]
[null,null,null,null,{"$f":"IFERROR(VLOOKUP($A177,PQS!$D$5:$AU$107,MATCH(PQS!$Q$3,PQS!$D$3:$AU$3,0),FALSE),\"\")","v":""},{"$f":"IFERROR(VLOOKUP($A177,PQS!$D$5:$AU$107,MATCH(PQS!$AL$3,PQS!$D$3:$AU$3,0),FALSE),\"\")","v":""},"",{"$f":"IFERROR(VLOOKUP($A177,PQS!$D$5:$AU$107,MATCH(PQS!$I$3,PQS!$D$3:$AU$3,0),FALSE),\"\")","v":""},{"$f":"IFERROR(VLOOKUP($A177,PQS!$D$5:$AU$107,MATCH(PQS!$J$3,PQS!$D$3:$AU$3,0),FALSE),\"\")","v":""},{"$f":"IFERROR(VLOOKUP($A177,PQS!$D$5:$AU$107,MATCH(PQS!$AK$3,PQS!$D$3:$AU$3,0),FALSE),\"\")","v":""},{"$f":"IFERROR(VLOOKUP($A177,PQS!$D$5:$AU$107,COLUMN(PQS!$AA$5)-3,FALSE),\"\")","v":""},{"$f":"IFERROR(VLOOKUP($A177,PQS!$D$5:$AU$107,MATCH(PQS!$H$3,PQS!$D$3:$AU$3,0),FALSE),\"\")","v":""},{"$f":"IFERROR(VLOOKUP($A177,PQS!$D$5:$AU$107,MATCH(PQS!$AF$3,PQS!$D$3:$AU$3,0),FALSE),\"\")","v":""},{"$f":"IFERROR(HYPERLINK(VLOOKUP($A177,PQS!$D$5:$AU$107,MATCH(PQS!$AJ$3,PQS!$D$3:$AU$3,0),FALSE),VLOOKUP($A177,PQS!$D$5:$AU$107,MATCH(PQS!$AI$3,PQS!$D$3:$AU$3,0),FALSE)),\"\")","v":""}]
[null,null,null,null,{"$f":"IFERROR(VLOOKUP($A178,PQS!$D$5:$AU$107,MATCH(PQS!$Q$3,PQS!$D$3:$AU$3,0),FALSE),\"\")","v":""},{"$f":"IFERROR(VLOOKUP($A178,PQS!$D$5:$AU$107,MATCH(PQS!$AL$3,PQS!$D$3:$AU$3,0),FALSE),\"\")","v":""},"",{"$f":"IFERROR(VLOOKUP($A178,PQS!$D$5:$AU$107,MATCH(PQS!$I$3,PQS!$D$3:$AU$3,0),FALSE),\"\")","v":""},{"$f":"IFERROR(VLOOKUP($A178,PQS!$D$5:$AU$107,MATCH(PQS!$J$3,PQS!$D$3:$AU$3,0),FALSE),\"\")","v":""},{"$f":"IFERROR(VLOOKUP($A178,PQS!$D$5:$AU$107,MATCH(PQS!$AK$3,PQS!$D$3:$AU$3,0),FALSE),\"\")","v":""},{"$f":"IFERROR(VLOOKUP($A178,PQS!$D$5:$AU$107,COLUMN(PQS!$AA$5)-3,FALSE),\"\")","v":""},{"$f":"IFERROR(VLOOKUP($A178,PQS!$D$5:$AU$107,MATCH(PQS!$H$3,PQS!$D$3:$AU$3,0),FALSE),\"\")","v":""},{"$f":"IFERROR(VLOOKUP($A178,PQS!$D$5:$AU$107,MATCH(PQS!$AF$3,PQS!$D$3:$AU$3,0),FALSE),\"\")","v":""},{"$f":"IFERROR(HYPERLINK(VLOOKUP($A178,PQS!$D$5:$AU$107,MATCH(PQS!$AJ$3,PQS!$D$3:$AU$3,0),FALSE),VLOOKUP($A178,PQS!$D$5:$AU$107,MATCH(PQS!$AI$3,PQS!$D$3:$AU$3,0),FALSE)),\"\")","v":""}]
[null,null,null,null,{"$f":"IFERROR(VLOOKUP($A179,PQS!$D$5:$AU$107,MATCH(PQS!$Q$3,PQS!$D$3:$AU$3,0),FALSE),\"\")","v":""},{"$f":"IFERROR(VLOOKUP($A179,PQS!$D$5:$AU$107,MATCH(PQS!$AL$3,PQS!$D$3:$AU$3,0),FALSE),\"\")","v":""},"",{"$f":"IFERROR(VLOOKUP($A179,PQS!$D$5:$AU$107,MATCH(PQS!$I$3,PQS!$D$3:$AU$3,0),FALSE),\"\")","v":""},{"$f":"IFERROR(VLOOKUP($A179,PQS!$D$5:$AU$107,MATCH(PQS!$J$3,PQS!$D$3:$AU$3,0),FALSE),\"\")","v":""},{"$f":"IFERROR(VLOOKUP($A179,PQS!$D$5:$AU$107,MATCH(PQS!$AK$3,PQS!$D$3:$AU$3,0),FALSE),\"\")","v":""},{"$f":"IFERROR(VLOOKUP($A179,PQS!$D$5:$AU$107,COLUMN(PQS!$AA$5)-3,FALSE),\"\")","v":""},{"$f":"IFERROR(VLOOKUP($A179,PQS!$D$5:$AU$107,MATCH(PQS!$H$3,PQS!$D$3:$AU$3,0),FALSE),\"\")","v":""},{"$f":"IFERROR(VLOOKUP($A179,PQS!$D$5:$AU$107,MATCH(PQS!$AF$3,PQS!$D$3:$AU$3,0),FALSE),\"\")","v":""},{"$f":"IFERROR(HYPERLINK(VLOOKUP($A179,PQS!$D$5:$AU$107,MATCH(PQS!$AJ$3,PQS!$D$3:$AU$3,0),FALSE),VLOOKUP($A179,PQS!$D$5:$AU$107,MATCH(PQS!$AI$3,PQS!$D$3:$AU$3,0),FALSE)),\"\")","v":""}]
[null,null,null,null,{"$f":"IFERROR(VLOOKUP($A180,PQS!$D$5:$AU$107,MATCH(PQS!$Q$3,PQS!$D$3:$AU$3,0),FALSE),\"\")","v":""},{"$f":"IFERROR(VLOOKUP($A180,PQS!$D$5:$AU$107,MATCH(PQS!$AL$3,PQS!$D$3:$AU$3,0),FALSE),\"\")","v":""},"",{"$f":"IFERROR(VLOOKUP($A180,PQS!$D$5:$AU$107,MATCH(PQS!$I$3,PQS!$D$3:$AU$3,0),FALSE),\"\")","v":""},{"$f":"IFERROR(VLOOKUP($A180,PQS!$D$5:$AU$107,MATCH(PQS!$J$3,PQS!$D$3:$AU$3,0),FALSE),\"\")","v":""},{"$f":"IFERROR(VLOOKUP($A180,PQS!$D$5:$AU$107,MATCH(PQS!$AK$3,PQS!$D$3:$AU$3,0),FALSE),\"\")","v":""},{"$f":"IFERROR(VLOOKUP($A180,PQS!$D$5:$AU$107,COLUMN(PQS!$AA$5)-3,FALSE),\"\")","v":""},{"$f":"IFERROR(VLOOKUP($A180,PQS!$D$5:$AU$107,MATCH(PQS!$H$3,PQS!$D$3:$AU$3,0),FALSE),\"\")","v":""},{"$f":"IFERROR(VLOOKUP($A180,PQS!$D$5:$AU$107,MATCH(PQS!$AF$3,PQS!$D$3:$AU$3,0),FALSE),\"\")","v":""},{"$f":"IFERROR(HYPERLINK(VLOOKUP($A180,PQS!$D$5:$AU$107,MATCH(PQS!$AJ$3,PQS!$D$3:$AU$3,0),FALSE),VLOOKUP($A180,PQS!$D$5:$AU$107,MATCH(PQS!$AI$3,PQS!$D$3:$AU$3,0),FALSE)),\"\")","v":""}]
[null,null,null,null,{"$f":"IFERROR(VLOOKUP($A181,PQS!$D$5:$AU$107,MATCH(PQS!$Q$3,PQS!$D$3:$AU$3,0),FALSE),\"\")","v":""},{"$f":"IFERROR(VLOOKUP($A181,PQS!$D$5:$AU$107,MATCH(PQS!$AL$3,PQS!$D$3:$AU$3,0),FALSE),\"\")","v":""},"",{"$f":"IFERROR(VLOOKUP($A181,PQS!$D$5:$AU$107,MATCH(PQS!$I$3,PQS!$D$3:$AU$3,0),FALSE),\"\")","v":""},{"$f":"IFERROR(VLOOKUP($A181,PQS!$D$5:$AU$107,MATCH(PQS!$J$3,PQS!$D$3:$AU$3,0),FALSE),\"\")","v":""},{"$f":"IFERROR(VLOOKUP($A181,PQS!$D$5:$AU$107,MATCH(PQS!$AK$3,PQS!$D$3:$AU$3,0),FALSE),\"\")","v":""},{"$f":"IFERROR(VLOOKUP($A181,PQS!$D$5:$AU$107,COLUMN(PQS!$AA$5)-3,FALSE),\"\")","v":""},{"$f":"IFERROR(VLOOKUP($A181,PQS!$D$5:$AU$107,MATCH(PQS!$H$3,PQS!$D$3:$AU$3,0),FALSE),\"\")","v":""},{"$f":"IFERROR(VLOOKUP($A181,PQS!$D$5:$AU$107,MATCH(PQS!$AF$3,PQS!$D$3:$AU$3,0),FALSE),\"\")","v":""},{"$f":"IFERROR(HYPERLINK(VLOOKUP($A181,PQS!$D$5:$AU$107,MATCH(PQS!$AJ$3,PQS!$D$3:$AU$3,0),FALSE),VLOOKUP($A181,PQS!$D$5:$AU$107,MATCH(PQS!$AI$3,PQS!$D$3:$AU$3,0),FALSE)),\"\")","v":""}]
[null,null,null,null,{"$f":"IFERROR(VLOOKUP($A182,PQS!$D$5:$AU$107,MATCH(PQS!$Q$3,PQS!$D$3:$AU$3,0),FALSE),\"\")","v":""},{"$f":"IFERROR(VLOOKUP($A182,PQS!$D$5:$AU$107,MATCH(PQS!$AL$3,PQS!$D$3:$AU$3,0),FALSE),\"\")","v":""},"",{"$f":"IFERROR(VLOOKUP($A182,PQS!$D$5:$AU$107,MATCH(PQS!$I$3,PQS!$D$3:$AU$3,0),FALSE),\"\")","v":""},{"$f":"IFERROR(VLOOKUP($A182,PQS!$D$5:$AU$107,MATCH(PQS!$J$3,PQS!$D$3:$AU$3,0),FALSE),\"\")","v":""},{"$f":"IFERROR(VLOOKUP($A182,PQS!$D$5:$AU$107,MATCH(PQS!$AK$3,PQS!$D$3:$AU$3,0),FALSE),\"\")","v":""},{"$f":"IFERROR(VLOOKUP($A182,PQS!$D$5:$AU$107,COLUMN(PQS!$AA$5)-3,FALSE),\"\")","v":""},{"$f":"IFERROR(VLOOKUP($A182,PQS!$D$5:$AU$107,MATCH(PQS!$H$3,PQS!$D$3:$AU$3,0),FALSE),\"\")","v":""},{"$f":"IFERROR(VLOOKUP($A182,PQS!$D$5:$AU$107,MATCH(PQS!$AF$3,PQS!$D$3:$AU$3,0),FALSE),\"\")","v":""},{"$f":"IFERROR(HYPERLINK(VLOOKUP($A182,PQS!$D$5:$AU$107,MATCH(PQS!$AJ$3,PQS!$D$3:$AU$3,0),FALSE),VLOOKUP($A182,PQS!$D$5:$AU$107,MATCH(PQS!$AI$3,PQS!$D$3:$AU$3,0),FALSE)),\"\")","v":""}]
[null,null,null,null,{"$f":"IFERROR(VLOOKUP($A183,PQS!$D$5:$AU$107,MATCH(PQS!$Q$3,PQS!$D$3:$AU$3,0),FALSE),\"\")","v":""},{"$f":"IFERROR(VLOOKUP($A183,PQS!$D$5:$AU$107,MATCH(PQS!$AL$3,PQS!$D$3:$AU$3,0),FALSE),\"\")","v":""},"",{"$f":"IFERROR(VLOOKUP($A183,PQS!$D$5:$AU$107,MATCH(PQS!$I$3,PQS!$D$3:$AU$3,0),FALSE),\"\")","v":""},{"$f":"IFERROR(VLOOKUP($A183,PQS!$D$5:$AU$107,MATCH(PQS!$J$3,PQS!$D$3:$AU$3,0),FALSE),\"\")","v":""},{"$f":"IFERROR(VLOOKUP($A183,PQS!$D$5:$AU$107,MATCH(PQS!$AK$3,PQS!$D$3:$AU$3,0),FALSE),\"\")","v":""},{"$f":"IFERROR(VLOOKUP($A183,PQS!$D$5:$AU$107,COLUMN(PQS!$AA$5)-3,FALSE),\"\")","v":""},{"$f":"IFERROR(VLOOKUP($A183,PQS!$D$5:$AU$107,MATCH(PQS!$H$3,PQS!$D$3:$AU$3,0),FALSE),\"\")","v":""},{"$f":"IFERROR(VLOOKUP($A183,PQS!$D$5:$AU$107,MATCH(PQS!$AF$3,PQS!$D$3:$AU$3,0),FALSE),\"\")","v":""},{"$f":"IFERROR(HYPERLINK(VLOOKUP($A183,PQS!$D$5:$AU$107,MATCH(PQS!$AJ$3,PQS!$D$3:$AU$3,0),FALSE),VLOOKUP($A183,PQS!$D$5:$AU$107,MATCH(PQS!$AI$3,PQS!$D$3:$AU$3,0),FALSE)),\"\")","v":""}]
[null,null,null,null,{"$f":"IFERROR(VLOOKUP($A184,PQS!$D$5:$AU$107,MATCH(PQS!$Q$3,PQS!$D$3:$AU$3,0),FALSE),\"\")","v":""},{"$f":"IFERROR(VLOOKUP($A184,PQS!$D$5:$AU$107,MATCH(PQS!$AL$3,PQS!$D$3:$AU$3,0),FALSE),\"\")","v":""},"",{"$f":"IFERROR(VLOOKUP($A184,PQS!$D$5:$AU$107,MATCH(PQS!$I$3,PQS!$D$3:$AU$3,0),FALSE),\"\")","v":""},{"$f":"IFERROR(VLOOKUP($A184,PQS!$D$5:$AU$107,MATCH(PQS!$J$3,PQS!$D$3:$AU$3,0),FALSE),\"\")","v":""},{"$f":"IFERROR(VLOOKUP($A184,PQS!$D$5:$AU$107,MATCH(PQS!$AK$3,PQS!$D$3:$AU$3,0),FALSE),\"\")","v":""},{"$f":"IFERROR(VLOOKUP($A184,PQS!$D$5:$AU$107,COLUMN(PQS!$AA$5)-3,FALSE),\"\")","v":""},{"$f":"IFERROR(VLOOKUP($A184,PQS!$D$5:$AU$107,MATCH(PQS!$H$3,PQS!$D$3:$AU$3,0),FALSE),\"\")","v":""},{"$f":"IFERROR(VLOOKUP($A184,PQS!$D$5:$AU$107,MATCH(PQS!$AF$3,PQS!$D$3:$AU$3,0),FALSE),\"\")","v":""},{"$f":"IFERROR(HYPERLINK(VLOOKUP($A184,PQS!$D$5:$AU$107,MATCH(PQS!$AJ$3,PQS!$D$3:$AU$3,0),FALSE),VLOOKUP($A184,PQS!$D$5:$AU$107,MATCH(PQS!$AI$3,PQS!$D$3:$AU$3,0),FALSE)),\"\")","v":""}]
[null,null,null,null,{"$f":"IFERROR(VLOOKUP($A185,PQS!$D$5:$AU$107,MATCH(PQS!$Q$3,PQS!$D$3:$AU$3,0),FALSE),\"\")","v":""},{"$f":"IFERROR(VLOOKUP($A185,PQS!$D$5:$AU$107,MATCH(PQS!$AL$3,PQS!$D$3:$AU$3,0),FALSE),\"\")","v":""},"",{"$f":"IFERROR(VLOOKUP($A185,PQS!$D$5:$AU$107,MATCH(PQS!$I$3,PQS!$D$3:$AU$3,0),FALSE),\"\")","v":""},{"$f":"IFERROR(VLOOKUP($A185,PQS!$D$5:$AU$107,MATCH(PQS!$J$3,PQS!$D$3:$AU$3,0),FALSE),\"\")","v":""},{"$f":"IFERROR(VLOOKUP($A185,PQS!$D$5:$AU$107,MATCH(PQS!$AK$3,PQS!$D$3:$AU$3,0),FALSE),\"\")","v":""},{"$f":"IFERROR(VLOOKUP($A185,PQS!$D$5:$AU$107,COLUMN(PQS!$AA$5)-3,FALSE),\"\")","v":""},{"$f":"IFERROR(VLOOKUP($A185,PQS!$D$5:$AU$107,MATCH(PQS!$H$3,PQS!$D$3:$AU$3,0),FALSE),\"\")","v":""},{"$f":"IFERROR(VLOOKUP($A185,PQS!$D$5:$AU$107,MATCH(PQS!$AF$3,PQS!$D$3:$AU$3,0),FALSE),\"\")","v":""},{"$f":"IFERROR(HYPERLINK(VLOOKUP($A185,PQS!$D$5:$AU$107,MATCH(PQS!$AJ$3,PQS!$D$3:$AU$3,0),FALSE),VLOOKUP($A185,PQS!$D$5:$AU$107,MATCH(PQS!$AI$3,PQS!$D$3:$AU$3,0),FALSE)),\"\")","v":""}]
[null,null,null,null,{"$f":"IFERROR(VLOOKUP($A186,PQS!$D$5:$AU$107,MATCH(PQS!$Q$3,PQS!$D$3:$AU$3,0),FALSE),\"\")","v":""},{"$f":"IFERROR(VLOOKUP($A186,PQS!$D$5:$AU$107,MATCH(PQS!$AL$3,PQS!$D$3:$AU$3,0),FALSE),\"\")","v":""},"",{"$f":"IFERROR(VLOOKUP($A186,PQS!$D$5:$AU$107,MATCH(PQS!$I$3,PQS!$D$3:$AU$3,0),FALSE),\"\")","v":""},{"$f":"IFERROR(VLOOKUP($A186,PQS!$D$5:$AU$107,MATCH(PQS!$J$3,PQS!$D$3:$AU$3,0),FALSE),\"\")","v":""},{"$f":"IFERROR(VLOOKUP($A186,PQS!$D$5:$AU$107,MATCH(PQS!$AK$3,PQS!$D$3:$AU$3,0),FALSE),\"\")","v":""},{"$f":"IFERROR(VLOOKUP($A186,PQS!$D$5:$AU$107,COLUMN(PQS!$AA$5)-3,FALSE),\"\")","v":""},{"$f":"IFERROR(VLOOKUP($A186,PQS!$D$5:$AU$107,MATCH(PQS!$H$3,PQS!$D$3:$AU$3,0),FALSE),\"\")","v":""},{"$f":"IFERROR(VLOOKUP($A186,PQS!$D$5:$AU$107,MATCH(PQS!$AF$3,PQS!$D$3:$AU$3,0),FALSE),\"\")","v":""},{"$f":"IFERROR(HYPERLINK(VLOOKUP($A186,PQS!$D$5:$AU$107,MATCH(PQS!$AJ$3,PQS!$D$3:$AU$3,0),FALSE),VLOOKUP($A186,PQS!$D$5:$AU$107,MATCH(PQS!$AI$3,PQS!$D$3:$AU$3,0),FALSE)),\"\")","v":""}]
[null,null,null,null,{"$f":"IFERROR(VLOOKUP($A187,PQS!$D$5:$AU$107,MATCH(PQS!$Q$3,PQS!$D$3:$AU$3,0),FALSE),\"\")","v":""},{"$f":"IFERROR(VLOOKUP($A187,PQS!$D$5:$AU$107,MATCH(PQS!$AL$3,PQS!$D$3:$AU$3,0),FALSE),\"\")","v":""},"",{"$f":"IFERROR(VLOOKUP($A187,PQS!$D$5:$AU$107,MATCH(PQS!$I$3,PQS!$D$3:$AU$3,0),FALSE),\"\")","v":""},{"$f":"IFERROR(VLOOKUP($A187,PQS!$D$5:$AU$107,MATCH(PQS!$J$3,PQS!$D$3:$AU$3,0),FALSE),\"\")","v":""},{"$f":"IFERROR(VLOOKUP($A187,PQS!$D$5:$AU$107,MATCH(PQS!$AK$3,PQS!$D$3:$AU$3,0),FALSE),\"\")","v":""},{"$f":"IFERROR(VLOOKUP($A187,PQS!$D$5:$AU$107,COLUMN(PQS!$AA$5)-3,FALSE),\"\")","v":""},{"$f":"IFERROR(VLOOKUP($A187,PQS!$D$5:$AU$107,MATCH(PQS!$H$3,PQS!$D$3:$AU$3,0),FALSE),\"\")","v":""},{"$f":"IFERROR(VLOOKUP($A187,PQS!$D$5:$AU$107,MATCH(PQS!$AF$3,PQS!$D$3:$AU$3,0),FALSE),\"\")","v":""},{"$f":"IFERROR(HYPERLINK(VLOOKUP($A187,PQS!$D$5:$AU$107,MATCH(PQS!$AJ$3,PQS!$D$3:$AU$3,0),FALSE),VLOOKUP($A187,PQS!$D$5:$AU$107,MATCH(PQS!$AI$3,PQS!$D$3:$AU$3,0),FALSE)),\"\")","v":""}]
[null,null,null,null,{"$f":"IFERROR(VLOOKUP($A188,PQS!$D$5:$AU$107,MATCH(PQS!$Q$3,PQS!$D$3:$AU$3,0),FALSE),\"\")","v":""},{"$f":"IFERROR(VLOOKUP($A188,PQS!$D$5:$AU$107,MATCH(PQS!$AL$3,PQS!$D$3:$AU$3,0),FALSE),\"\")","v":""},"",{"$f":"IFERROR(VLOOKUP($A188,PQS!$D$5:$AU$107,MATCH(PQS!$I$3,PQS!$D$3:$AU$3,0),FALSE),\"\")","v":""},{"$f":"IFERROR(VLOOKUP($A188,PQS!$D$5:$AU$107,MATCH(PQS!$J$3,PQS!$D$3:$AU$3,0),FALSE),\"\")","v":""},{"$f":"IFERROR(VLOOKUP($A188,PQS!$D$5:$AU$107,MATCH(PQS!$AK$3,PQS!$D$3:$AU$3,0),FALSE),\"\")","v":""},{"$f":"IFERROR(VLOOKUP($A188,PQS!$D$5:$AU$107,COLUMN(PQS!$AA$5)-3,FALSE),\"\")","v":""},{"$f":"IFERROR(VLOOKUP($A188,PQS!$D$5:$AU$107,MATCH(PQS!$H$3,PQS!$D$3:$AU$3,0),FALSE),\"\")","v":""},{"$f":"IFERROR(VLOOKUP($A188,PQS!$D$5:$AU$107,MATCH(PQS!$AF$3,PQS!$D$3:$AU$3,0),FALSE),\"\")","v":""},{"$f":"IFERROR(HYPERLINK(VLOOKUP($A188,PQS!$D$5:$AU$107,MATCH(PQS!$AJ$3,PQS!$D$3:$AU$3,0),FALSE),VLOOKUP($A188,PQS!$D$5:$AU$107,MATCH(PQS!$AI$3,PQS!$D$3:$AU$3,0),FALSE)),\"\")","v":""}]
[null,null,null,null,{"$f":"IFERROR(VLOOKUP($A189,PQS!$D$5:$AU$107,MATCH(PQS!$Q$3,PQS!$D$3:$AU$3,0),FALSE),\"\")","v":""},{"$f":"IFERROR(VLOOKUP($A189,PQS!$D$5:$AU$107,MATCH(PQS!$AL$3,PQS!$D$3:$AU$3,0),FALSE),\"\")","v":""},"",{"$f":"IFERROR(VLOOKUP($A189,PQS!$D$5:$AU$107,MATCH(PQS!$I$3,PQS!$D$3:$AU$3,0),FALSE),\"\")","v":""},{"$f":"IFERROR(VLOOKUP($A189,PQS!$D$5:$AU$107,MATCH(PQS!$J$3,PQS!$D$3:$AU$3,0),FALSE),\"\")","v":""},{"$f":"IFERROR(VLOOKUP($A189,PQS!$D$5:$AU$107,MATCH(PQS!$AK$3,PQS!$D$3:$AU$3,0),FALSE),\"\")","v":""},{"$f":"IFERROR(VLOOKUP($A189,PQS!$D$5:$AU$107,COLUMN(PQS!$AA$5)-3,FALSE),\"\")","v":""},{"$f":"IFERROR(VLOOKUP($A189,PQS!$D$5:$AU$107,MATCH(PQS!$H$3,PQS!$D$3:$AU$3,0),FALSE),\"\")","v":""},{"$f":"IFERROR(VLOOKUP($A189,PQS!$D$5:$AU$107,MATCH(PQS!$AF$3,PQS!$D$3:$AU$3,0),FALSE),\"\")","v":""},{"$f":"IFERROR(HYPERLINK(VLOOKUP($A189,PQS!$D$5:$AU$107,MATCH(PQS!$AJ$3,PQS!$D$3:$AU$3,0),FALSE),VLOOKUP($A189,PQS!$D$5:$AU$107,MATCH(PQS!$AI$3,PQS!$D$3:$AU$3,0),FALSE)),\"\")","v":""}]
[null,null,null,null,{"$f":"IFERROR(VLOOKUP($A190,PQS!$D$5:$AU$107,MATCH(PQS!$Q$3,PQS!$D$3:$AU$3,0),FALSE),\"\")","v":""},{"$f":"IFERROR(VLOOKUP($A190,PQS!$D$5:$AU$107,MATCH(PQS!$AL$3,PQS!$D$3:$AU$3,0),FALSE),\"\")","v":""},"",{"$f":"IFERROR(VLOOKUP($A190,PQS!$D$5:$AU$107,MATCH(PQS!$I$3,PQS!$D$3:$AU$3,0),FALSE),\"\")","v":""},{"$f":"IFERROR(VLOOKUP($A190,PQS!$D$5:$AU$107,MATCH(PQS!$J$3,PQS!$D$3:$AU$3,0),FALSE),\"\")","v":""},{"$f":"IFERROR(VLOOKUP($A190,PQS!$D$5:$AU$107,MATCH(PQS!$AK$3,PQS!$D$3:$AU$3,0),FALSE),\"\")","v":""},{"$f":"IFERROR(VLOOKUP($A190,PQS!$D$5:$AU$107,COLUMN(PQS!$AA$5)-3,FALSE),\"\")","v":""},{"$f":"IFERROR(VLOOKUP($A190,PQS!$D$5:$AU$107,MATCH(PQS!$H$3,PQS!$D$3:$AU$3,0),FALSE),\"\")","v":""},{"$f":"IFERROR(VLOOKUP($A190,PQS!$D$5:$AU$107,MATCH(PQS!$AF$3,PQS!$D$3:$AU$3,0),FALSE),\"\")","v":""},{"$f":"IFERROR(HYPERLINK(VLOOKUP($A190,PQS!$D$5:$AU$107,MATCH(PQS!$AJ$3,PQS!$D$3:$AU$3,0),FALSE),VLOOKUP($A190,PQS!$D$5:$AU$107,MATCH(PQS!$AI$3,PQS!$D$3:$AU$3,0),FALSE)),\"\")","v":""}]
[null,null,null,null,{"$f":"IFERROR(VLOOKUP($A191,PQS!$D$5:$AU$107,MATCH(PQS!$Q$3,PQS!$D$3:$AU$3,0),FALSE),\"\")","v":""},{"$f":"IFERROR(VLOOKUP($A191,PQS!$D$5:$AU$107,MATCH(PQS!$AL$3,PQS!$D$3:$AU$3,0),FALSE),\"\")","v":""},"",{"$f":"IFERROR(VLOOKUP($A191,PQS!$D$5:$AU$107,MATCH(PQS!$I$3,PQS!$D$3:$AU$3,0),FALSE),\"\")","v":""},{"$f":"IFERROR(VLOOKUP($A191,PQS!$D$5:$AU$107,MATCH(PQS!$J$3,PQS!$D$3:$AU$3,0),FALSE),\"\")","v":""},{"$f":"IFERROR(VLOOKUP($A191,PQS!$D$5:$AU$107,MATCH(PQS!$AK$3,PQS!$D$3:$AU$3,0),FALSE),\"\")","v":""},{"$f":"IFERROR(VLOOKUP($A191,PQS!$D$5:$AU$107,COLUMN(PQS!$AA$5)-3,FALSE),\"\")","v":""},{"$f":"IFERROR(VLOOKUP($A191,PQS!$D$5:$AU$107,MATCH(PQS!$H$3,PQS!$D$3:$AU$3,0),FALSE),\"\")","v":""},{"$f":"IFERROR(VLOOKUP($A191,PQS!$D$5:$AU$107,MATCH(PQS!$AF$3,PQS!$D$3:$AU$3,0),FALSE),\"\")","v":""},{"$f":"IFERROR(HYPERLINK(VLOOKUP($A191,PQS!$D$5:$AU$107,MATCH(PQS!$AJ$3,PQS!$D$3:$AU$3,0),FALSE),VLOOKUP($A191,PQS!$D$5:$AU$107,MATCH(PQS!$AI$3,PQS!$D$3:$AU$3,0),FALSE)),\"\")","v":""}]
[null,null,null,null,{"$f":"IFERROR(VLOOKUP($A192,PQS!$D$5:$AU$107,MATCH(PQS!$Q$3,PQS!$D$3:$AU$3,0),FALSE),\"\")","v":""},{"$f":"IFERROR(VLOOKUP($A192,PQS!$D$5:$AU$107,MATCH(PQS!$AL$3,PQS!$D$3:$AU$3,0),FALSE),\"\")","v":""},"",{"$f":"IFERROR(VLOOKUP($A192,PQS!$D$5:$AU$107,MATCH(PQS!$I$3,PQS!$D$3:$AU$3,0),FALSE),\"\")","v":""},{"$f":"IFERROR(VLOOKUP($A192,PQS!$D$5:$AU$107,MATCH(PQS!$J$3,PQS!$D$3:$AU$3,0),FALSE),\"\")","v":""},{"$f":"IFERROR(VLOOKUP($A192,PQS!$D$5:$AU$107,MATCH(PQS!$AK$3,PQS!$D$3:$AU$3,0),FALSE),\"\")","v":""},{"$f":"IFERROR(VLOOKUP($A192,PQS!$D$5:$AU$107,COLUMN(PQS!$AA$5)-3,FALSE),\"\")","v":""},{"$f":"IFERROR(VLOOKUP($A192,PQS!$D$5:$AU$107,MATCH(PQS!$H$3,PQS!$D$3:$AU$3,0),FALSE),\"\")","v":""},{"$f":"IFERROR(VLOOKUP($A192,PQS!$D$5:$AU$107,MATCH(PQS!$AF$3,PQS!$D$3:$AU$3,0),FALSE),\"\")","v":""},{"$f":"IFERROR(HYPERLINK(VLOOKUP($A192,PQS!$D$5:$AU$107,MATCH(PQS!$AJ$3,PQS!$D$3:$AU$3,0),FALSE),VLOOKUP($A192,PQS!$D$5:$AU$107,MATCH(PQS!$AI$3,PQS!$D$3:$AU$3,0),FALSE)),\"\")","v":""}]
[null,null,null,null,{"$f":"IFERROR(VLOOKUP($A193,PQS!$D$5:$AU$107,MATCH(PQS!$Q$3,PQS!$D$3:$AU$3,0),FALSE),\"\")","v":""},{"$f":"IFERROR(VLOOKUP($A193,PQS!$D$5:$AU$107,MATCH(PQS!$AL$3,PQS!$D$3:$AU$3,0),FALSE),\"\")","v":""},"",{"$f":"IFERROR(VLOOKUP($A193,PQS!$D$5:$AU$107,MATCH(PQS!$I$3,PQS!$D$3:$AU$3,0),FALSE),\"\")","v":""},{"$f":"IFERROR(VLOOKUP($A193,PQS!$D$5:$AU$107,MATCH(PQS!$J$3,PQS!$D$3:$AU$3,0),FALSE),\"\")","v":""},{"$f":"IFERROR(VLOOKUP($A193,PQS!$D$5:$AU$107,MATCH(PQS!$AK$3,PQS!$D$3:$AU$3,0),FALSE),\"\")","v":""},{"$f":"IFERROR(VLOOKUP($A193,PQS!$D$5:$AU$107,COLUMN(PQS!$AA$5)-3,FALSE),\"\")","v":""},{"$f":"IFERROR(VLOOKUP($A193,PQS!$D$5:$AU$107,MATCH(PQS!$H$3,PQS!$D$3:$AU$3,0),FALSE),\"\")","v":""},{"$f":"IFERROR(VLOOKUP($A193,PQS!$D$5:$AU$107,MATCH(PQS!$AF$3,PQS!$D$3:$AU$3,0),FALSE),\"\")","v":""},{"$f":"IFERROR(HYPERLINK(VLOOKUP($A193,PQS!$D$5:$AU$107,MATCH(PQS!$AJ$3,PQS!$D$3:$AU$3,0),FALSE),VLOOKUP($A193,PQS!$D$5:$AU$107,MATCH(PQS!$AI$3,PQS!$D$3:$AU$3,0),FALSE)),\"\")","v":""}]
[null,null,null,null,{"$f":"IFERROR(VLOOKUP($A194,PQS!$D$5:$AU$107,MATCH(PQS!$Q$3,PQS!$D$3:$AU$3,0),FALSE),\"\")","v":""},{"$f":"IFERROR(VLOOKUP($A194,PQS!$D$5:$AU$107,MATCH(PQS!$AL$3,PQS!$D$3:$AU$3,0),FALSE),\"\")","v":""},"",{"$f":"IFERROR(VLOOKUP($A194,PQS!$D$5:$AU$107,MATCH(PQS!$I$3,PQS!$D$3:$AU$3,0),FALSE),\"\")","v":""},{"$f":"IFERROR(VLOOKUP($A194,PQS!$D$5:$AU$107,MATCH(PQS!$J$3,PQS!$D$3:$AU$3,0),FALSE),\"\")","v":""},{"$f":"IFERROR(VLOOKUP($A194,PQS!$D$5:$AU$107,MATCH(PQS!$AK$3,PQS!$D$3:$AU$3,0),FALSE),\"\")","v":""},{"$f":"IFERROR(VLOOKUP($A194,PQS!$D$5:$AU$107,COLUMN(PQS!$AA$5)-3,FALSE),\"\")","v":""},{"$f":"IFERROR(VLOOKUP($A194,PQS!$D$5:$AU$107,MATCH(PQS!$H$3,PQS!$D$3:$AU$3,0),FALSE),\"\")","v":""},{"$f":"IFERROR(VLOOKUP($A194,PQS!$D$5:$AU$107,MATCH(PQS!$AF$3,PQS!$D$3:$AU$3,0),FALSE),\"\")","v":""},{"$f":"IFERROR(HYPERLINK(VLOOKUP($A194,PQS!$D$5:$AU$107,MATCH(PQS!$AJ$3,PQS!$D$3:$AU$3,0),FALSE),VLOOKUP($A194,PQS!$D$5:$AU$107,MATCH(PQS!$AI$3,PQS!$D$3:$AU$3,0),FALSE)),\"\")","v":""}]
[null,null,null,null,{"$f":"IFERROR(VLOOKUP($A195,PQS!$D$5:$AU$107,MATCH(PQS!$Q$3,PQS!$D$3:$AU$3,0),FALSE),\"\")","v":""},{"$f":"IFERROR(VLOOKUP($A195,PQS!$D$5:$AU$107,MATCH(PQS!$AL$3,PQS!$D$3:$AU$3,0),FALSE),\"\")","v":""},"",{"$f":"IFERROR(VLOOKUP($A195,PQS!$D$5:$AU$107,MATCH(PQS!$I$3,PQS!$D$3:$AU$3,0),FALSE),\"\")","v":""},{"$f":"IFERROR(VLOOKUP($A195,PQS!$D$5:$AU$107,MATCH(PQS!$J$3,PQS!$D$3:$AU$3,0),FALSE),\"\")","v":""},{"$f":"IFERROR(VLOOKUP($A195,PQS!$D$5:$AU$107,MATCH(PQS!$AK$3,PQS!$D$3:$AU$3,0),FALSE),\"\")","v":""},{"$f":"IFERROR(VLOOKUP($A195,PQS!$D$5:$AU$107,COLUMN(PQS!$AA$5)-3,FALSE),\"\")","v":""},{"$f":"IFERROR(VLOOKUP($A195,PQS!$D$5:$AU$107,MATCH(PQS!$H$3,PQS!$D$3:$AU$3,0),FALSE),\"\")","v":""},{"$f":"IFERROR(VLOOKUP($A195,PQS!$D$5:$AU$107,MATCH(PQS!$AF$3,PQS!$D$3:$AU$3,0),FALSE),\"\")","v":""},{"$f":"IFERROR(HYPERLINK(VLOOKUP($A195,PQS!$D$5:$AU$107,MATCH(PQS!$AJ$3,PQS!$D$3:$AU$3,0),FALSE),VLOOKUP($A195,PQS!$D$5:$AU$107,MATCH(PQS!$AI$3,PQS!$D$3:$AU$3,0),FALSE)),\"\")","v":""}]
[null,null,null,null,{"$f":"IFERROR(VLOOKUP($A196,PQS!$D$5:$AU$107,MATCH(PQS!$Q$3,PQS!$D$3:$AU$3,0),FALSE),\"\")","v":""},{"$f":"IFERROR(VLOOKUP($A196,PQS!$D$5:$AU$107,MATCH(PQS!$AL$3,PQS!$D$3:$AU$3,0),FALSE),\"\")","v":""},"",{"$f":"IFERROR(VLOOKUP($A196,PQS!$D$5:$AU$107,MATCH(PQS!$I$3,PQS!$D$3:$AU$3,0),FALSE),\"\")","v":""},{"$f":"IFERROR(VLOOKUP($A196,PQS!$D$5:$AU$107,MATCH(PQS!$J$3,PQS!$D$3:$AU$3,0),FALSE),\"\")","v":""},{"$f":"IFERROR(VLOOKUP($A196,PQS!$D$5:$AU$107,MATCH(PQS!$AK$3,PQS!$D$3:$AU$3,0),FALSE),\"\")","v":""},{"$f":"IFERROR(VLOOKUP($A196,PQS!$D$5:$AU$107,COLUMN(PQS!$AA$5)-3,FALSE),\"\")","v":""},{"$f":"IFERROR(VLOOKUP($A196,PQS!$D$5:$AU$107,MATCH(PQS!$H$3,PQS!$D$3:$AU$3,0),FALSE),\"\")","v":""},{"$f":"IFERROR(VLOOKUP($A196,PQS!$D$5:$AU$107,MATCH(PQS!$AF$3,PQS!$D$3:$AU$3,0),FALSE),\"\")","v":""},{"$f":"IFERROR(HYPERLINK(VLOOKUP($A196,PQS!$D$5:$AU$107,MATCH(PQS!$AJ$3,PQS!$D$3:$AU$3,0),FALSE),VLOOKUP($A196,PQS!$D$5:$AU$107,MATCH(PQS!$AI$3,PQS!$D$3:$AU$3,0),FALSE)),\"\")","v":""}]
[null,null,null,null,{"$f":"IFERROR(VLOOKUP($A197,PQS!$D$5:$AU$107,MATCH(PQS!$Q$3,PQS!$D$3:$AU$3,0),FALSE),\"\")","v":""},{"$f":"IFERROR(VLOOKUP($A197,PQS!$D$5:$AU$107,MATCH(PQS!$AL$3,PQS!$D$3:$AU$3,0),FALSE),\"\")","v":""},"",{"$f":"IFERROR(VLOOKUP($A197,PQS!$D$5:$AU$107,MATCH(PQS!$I$3,PQS!$D$3:$AU$3,0),FALSE),\"\")","v":""},{"$f":"IFERROR(VLOOKUP($A197,PQS!$D$5:$AU$107,MATCH(PQS!$J$3,PQS!$D$3:$AU$3,0),FALSE),\"\")","v":""},{"$f":"IFERROR(VLOOKUP($A197,PQS!$D$5:$AU$107,MATCH(PQS!$AK$3,PQS!$D$3:$AU$3,0),FALSE),\"\")","v":""},{"$f":"IFERROR(VLOOKUP($A197,PQS!$D$5:$AU$107,COLUMN(PQS!$AA$5)-3,FALSE),\"\")","v":""},{"$f":"IFERROR(VLOOKUP($A197,PQS!$D$5:$AU$107,MATCH(PQS!$H$3,PQS!$D$3:$AU$3,0),FALSE),\"\")","v":""},{"$f":"IFERROR(VLOOKUP($A197,PQS!$D$5:$AU$107,MATCH(PQS!$AF$3,PQS!$D$3:$AU$3,0),FALSE),\"\")","v":""},{"$f":"IFERROR(HYPERLINK(VLOOKUP($A197,PQS!$D$5:$AU$107,MATCH(PQS!$AJ$3,PQS!$D$3:$AU$3,0),FALSE),VLOOKUP($A197,PQS!$D$5:$AU$107,MATCH(PQS!$AI$3,PQS!$D$3:$AU$3,0),FALSE)),\"\")","v":""}]
[null,null,null,null,{"$f":"IFERROR(VLOOKUP($A198,PQS!$D$5:$AU$107,MATCH(PQS!$Q$3,PQS!$D$3:$AU$3,0),FALSE),\"\")","v":""},{"$f":"IFERROR(VLOOKUP($A198,PQS!$D$5:$AU$107,MATCH(PQS!$AL$3,PQS!$D$3:$AU$3,0),FALSE),\"\")","v":""},"",{"$f":"IFERROR(VLOOKUP($A198,PQS!$D$5:$AU$107,MATCH(PQS!$I$3,PQS!$D$3:$AU$3,0),FALSE),\"\")","v":""},{"$f":"IFERROR(VLOOKUP($A198,PQS!$D$5:$AU$107,MATCH(PQS!$J$3,PQS!$D$3:$AU$3,0),FALSE),\"\")","v":""},{"$f":"IFERROR(VLOOKUP($A198,PQS!$D$5:$AU$107,MATCH(PQS!$AK$3,PQS!$D$3:$AU$3,0),FALSE),\"\")","v":""},{"$f":"IFERROR(VLOOKUP($A198,PQS!$D$5:$AU$107,COLUMN(PQS!$AA$5)-3,FALSE),\"\")","v":""},{"$f":"IFERROR(VLOOKUP($A198,PQS!$D$5:$AU$107,MATCH(PQS!$H$3,PQS!$D$3:$AU$3,0),FALSE),\"\")","v":""},{"$f":"IFERROR(VLOOKUP($A198,PQS!$D$5:$AU$107,MATCH(PQS!$AF$3,PQS!$D$3:$AU$3,0),FALSE),\"\")","v":""},{"$f":"IFERROR(HYPERLINK(VLOOKUP($A198,PQS!$D$5:$AU$107,MATCH(PQS!$AJ$3,PQS!$D$3:$AU$3,0),FALSE),VLOOKUP($A198,PQS!$D$5:$AU$107,MATCH(PQS!$AI$3,PQS!$D$3:$AU$3,0),FALSE)),\"\")","v":""}]
[null,null,null,null,{"$f":"IFERROR(VLOOKUP($A199,PQS!$D$5:$AU$107,MATCH(PQS!$Q$3,PQS!$D$3:$AU$3,0),FALSE),\"\")","v":""},{"$f":"IFERROR(VLOOKUP($A199,PQS!$D$5:$AU$107,MATCH(PQS!$AL$3,PQS!$D$3:$AU$3,0),FALSE),\"\")","v":""},"",{"$f":"IFERROR(VLOOKUP($A199,PQS!$D$5:$AU$107,MATCH(PQS!$I$3,PQS!$D$3:$AU$3,0),FALSE),\"\")","v":""},{"$f":"IFERROR(VLOOKUP($A199,PQS!$D$5:$AU$107,MATCH(PQS!$J$3,PQS!$D$3:$AU$3,0),FALSE),\"\")","v":""},{"$f":"IFERROR(VLOOKUP($A199,PQS!$D$5:$AU$107,MATCH(PQS!$AK$3,PQS!$D$3:$AU$3,0),FALSE),\"\")","v":""},{"$f":"IFERROR(VLOOKUP($A199,PQS!$D$5:$AU$107,COLUMN(PQS!$AA$5)-3,FALSE),\"\")","v":""},{"$f":"IFERROR(VLOOKUP($A199,PQS!$D$5:$AU$107,MATCH(PQS!$H$3,PQS!$D$3:$AU$3,0),FALSE),\"\")","v":""},{"$f":"IFERROR(VLOOKUP($A199,PQS!$D$5:$AU$107,MATCH(PQS!$AF$3,PQS!$D$3:$AU$3,0),FALSE),\"\")","v":""},{"$f":"IFERROR(HYPERLINK(VLOOKUP($A199,PQS!$D$5:$AU$107,MATCH(PQS!$AJ$3,PQS!$D$3:$AU$3,0),FALSE),VLOOKUP($A199,PQS!$D$5:$AU$107,MATCH(PQS!$AI$3,PQS!$D$3:$AU$3,0),FALSE)),\"\")","v":""}]
[null,null,null,null,{"$f":"IFERROR(VLOOKUP($A200,PQS!$D$5:$AU$107,MATCH(PQS!$Q$3,PQS!$D$3:$AU$3,0),FALSE),\"\")","v":""},{"$f":"IFERROR(VLOOKUP($A200,PQS!$D$5:$AU$107,MATCH(PQS!$AL$3,PQS!$D$3:$AU$3,0),FALSE),\"\")","v":""},"",{"$f":"IFERROR(VLOOKUP($A200,PQS!$D$5:$AU$107,MATCH(PQS!$I$3,PQS!$D$3:$AU$3,0),FALSE),\"\")","v":""},{"$f":"IFERROR(VLOOKUP($A200,PQS!$D$5:$AU$107,MATCH(PQS!$J$3,PQS!$D$3:$AU$3,0),FALSE),\"\")","v":""},{"$f":"IFERROR(VLOOKUP($A200,PQS!$D$5:$AU$107,MATCH(PQS!$AK$3,PQS!$D$3:$AU$3,0),FALSE),\"\")","v":""},{"$f":"IFERROR(VLOOKUP($A200,PQS!$D$5:$AU$107,COLUMN(PQS!$AA$5)-3,FALSE),\"\")","v":""},{"$f":"IFERROR(VLOOKUP($A200,PQS!$D$5:$AU$107,MATCH(PQS!$H$3,PQS!$D$3:$AU$3,0),FALSE),\"\")","v":""},{"$f":"IFERROR(VLOOKUP($A200,PQS!$D$5:$AU$107,MATCH(PQS!$AF$3,PQS!$D$3:$AU$3,0),FALSE),\"\")","v":""},{"$f":"IFERROR(HYPERLINK(VLOOKUP($A200,PQS!$D$5:$AU$107,MATCH(PQS!$AJ$3,PQS!$D$3:$AU$3,0),FALSE),VLOOKUP($A200,PQS!$D$5:$AU$107,MATCH(PQS!$AI$3,PQS!$D$3:$AU$3,0),FALSE)),\"\")","v":""}]
[null,null,null,null,{"$f":"IFERROR(VLOOKUP($A201,PQS!$D$5:$AU$107,MATCH(PQS!$Q$3,PQS!$D$3:$AU$3,0),FALSE),\"\")","v":""},null,null,{"$f":"IFERROR(VLOOKUP($A201,PQS!$D$5:$AU$107,MATCH(PQS!$I$3,PQS!$D$3:$AU$3,0),FALSE),\"\")","v":""},{"$f":"IFERROR(VLOOKUP($A201,PQS!$D$5:$AU$107,MATCH(PQS!$J$3,PQS!$D$3:$AU$3,0),FALSE),\"\")","v":""},{"$f":"IFERROR(VLOOKUP($A201,PQS!$D$5:$AU$107,MATCH(PQS!$AK$3,PQS!$D$3:$AU$3,0),FALSE),\"\")","v":""},{"$f":"IFERROR(VLOOKUP($A201,PQS!$D$5:$AU$107,COLUMN(PQS!$AA$5)-3,FALSE),\"\")","v":""},{"$f":"IFERROR(VLOOKUP($A201,PQS!$D$5:$AU$107,MATCH(PQS!$AF$3,PQS!$D$3:$AU$3,0),FALSE),\"\")","v":""},{"$f":"IFERROR(HYPERLINK(VLOOKUP($A201,PQS!$D:$AU,MATCH(PQS!$AJ$3,PQS!$D$3:$AU$3,0),FALSE),VLOOKUP($A201,PQS!$D:$AU,MATCH(PQS!$AI$3,PQS!$D$3:$AU$3,0),FALSE)),\"\")","v":""},{"$f":"IFERROR(HYPERLINK(VLOOKUP($A201,PQS!$D$5:$AU$107,MATCH(PQS!$AJ$3,PQS!$D$3:$AU$3,0),FALSE),VLOOKUP($A201,PQS!$D$5:$AU$107,MATCH(PQS!$AI$3,PQS!$D$3:$AU$3,0),FALSE)),\"\")","v":""}]
[null,null,null,null,{"$f":"IFERROR(VLOOKUP($A202,PQS!$D$5:$AU$107,MATCH(PQS!$Q$3,PQS!$D$3:$AU$3,0),FALSE),\"\")","v":""},null,null,{"$f":"IFERROR(VLOOKUP($A202,PQS!$D$5:$AU$107,MATCH(PQS!$I$3,PQS!$D$3:$AU$3,0),FALSE),\"\")","v":""},{"$f":"IFERROR(VLOOKUP($A202,PQS!$D$5:$AU$107,MATCH(PQS!$J$3,PQS!$D$3:$AU$3,0),FALSE),\"\")","v":""},{"$f":"IFERROR(VLOOKUP($A202,PQS!$D$5:$AU$107,MATCH(PQS!$AK$3,PQS!$D$3:$AU$3,0),FALSE),\"\")","v":""},{"$f":"IFERROR(VLOOKUP($A202,PQS!$D$5:$AU$107,COLUMN(PQS!$AA$5)-3,FALSE),\"\")","v":""},{"$f":"IFERROR(VLOOKUP($A202,PQS!$D$5:$AU$107,MATCH(PQS!$AF$3,PQS!$D$3:$AU$3,0),FALSE),\"\")","v":""},{"$f":"IFERROR(HYPERLINK(VLOOKUP($A202,PQS!$D:$AU,MATCH(PQS!$AJ$3,PQS!$D$3:$AU$3,0),FALSE),VLOOKUP($A202,PQS!$D:$AU,MATCH(PQS!$AI$3,PQS!$D$3:$AU$3,0),FALSE)),\"\")","v":""},{"$f":"IFERROR(HYPERLINK(VLOOKUP($A202,PQS!$D$5:$AU$107,MATCH(PQS!$AJ$3,PQS!$D$3:$AU$3,0),FALSE),VLOOKUP($A202,PQS!$D$5:$AU$107,MATCH(PQS!$AI$3,PQS!$D$3:$AU$3,0),FALSE)),\"\")","v":""}]
[null,null,null,null,{"$f":"IFERROR(VLOOKUP($A203,PQS!$D$5:$AI$107,5,FALSE),\"\")","v":""},null,null,{"$f":"IFERROR(VLOOKUP($A203,PQS!$D$5:$AI$107,13,FALSE),\"\")","v":""},null,{"$f":"IFERROR(VLOOKUP($A203,PQS!$D$5:$AI$107,6,FALSE),\"\")","v":""}]
[null,null,null,null,{"$f":"IFERROR(VLOOKUP($A204,PQS!$D$5:$AI$107,5,FALSE),\"\")","v":""}]
[null,null,null,null,{"$f":"IFERROR(VLOOKUP($A205,PQS!$D$5:$AI$107,5,FALSE),\"\")","v":""}]
[null,null,null,null,{"$f":"IFERROR(VLOOKUP($A206,PQS!$D$5:$AI$107,5,FALSE),\"\")","v":""}]
[null,null,null,null,{"$f":"IFERROR(VLOOKUP($A207,PQS!$D$5:$AI$107,5,FALSE),\"\")","v":""}]
[null,null,null,null,{"$f":"IFERROR(VLOOKUP($A208,PQS!$D$5:$AI$107,5,FALSE),\"\")","v":""}]
[null,null,null,null,{"$f":"IFERROR(VLOOKUP($A209,PQS!$D$5:$AI$107,5,FALSE),\"\")","v":""}]
[null,null,null,null,{"$f":"IFERROR(VLOOKUP($A210,PQS!$D$5:$AI$107,5,FALSE),\"\")","v":""}]
[null,null,null,null,{"$f":"IFERROR(VLOOKUP($A211,PQS!$D$5:$AI$107,5,FALSE),\"\")","v":""}]
[null,null,null,null,{"$f":"IFERROR(VLOOKUP($A212,PQS!$D$5:$AI$107,5,FALSE),\"\")","v":""}]

{"sheet":"Cash Flows Comparison","index":15,"n_rows":67,"n_cols":104,"rows_kept":67,"cut":false,"hidden":false,"merged":[]}
["Cumulative cash flow comparison over forecasted years"]
[]
[]
[null,null,null,null,"Forecast horizon years",null,{"$f":"'Total Solution Costs'!B2","v":10}]
[null,null,null,null,"Cold chain level evaluated",null,{"$f":"facilitysegment","v":"User-defined field"}]
[null,null,null,null,"Number of facilities to equip",null,{"$f":"NumberFacilitiestoEquip","v":10}]
[null,null,null,null,"Needed storage volume per facility",null,{"$f":"LitersPerFacility","v":12.5}]
[null,null,null,null,"* after name indicates CCEOP eligible product"]
[]
[]
[]
[]
[]
[]
[]
[]
[]
[]
[]
[]
[]
[]
[]
[]
[]
[]
[]
[]
[]
[]
[]
[]
[]
[]
[]
[]
[]
[]
[]
[]
[]
[]
[]
[]
[]
[]
[]
[]
[]
[]
[]
[]
[]
["Is it cumulative?","YES"]
[]
[null,"Freezer",null,null,null,null,null,null,null,null,null,"Gas",null,null,"ILR",null,null,null,null,null,null,null,null,null,null,null,null,null,null,null,null,null,null,null,null,null,null,null,null,null,null,null,null,null,null,null,"Kerosene",null,null,"LT passive",null,null,"SDD",null,null,null,null,null,null,null,null,null,null,null,null,null,null,null,null,null,null,null,null,null,null,null,null,null,null,null,null,null,null,null,"Solar w battery",null,null,null,null,"WICR FR"]
[null,"Haier HBD 116*","Haier HBD 286*","Vestfrost MF 314*","Vestfrost MF 114*","Vestfrost MF 214*","B Medical TFW 800*","Aucma DW-25W147*","Aucma DW-25W300*","B Medical TFW 3000 AC*","B Medical TFW 40 SDD*","Sibir V 110 GE ","B Medical RCW 50 EG","Sibir V 170 GE","Vestfrost MK 144","Vestfrost MK 204","Vestfrost MK 404","Vestfrost VLS 300","Vestfrost VLS 350","Vestfrost VLS 400","Haier HBC-70","Haier HBC-200","Haier HBC-110","Haier HBC-340","Vestfrost VLS 064 RF","Vestfrost MK 304","Vestfrost MKF 074","B Medical TCW 3000 AC","Vestfrost VLS 200","Aucma CFD-50","B Medical TCW 4000 AC*","B Medical TCW 2000 AC*","Zero ZLF 100 AC*","Zero ZLF 150 AC*","Godrej & Boyce  GVR 50 AC*","Godrej & Boyce  GVR 100 AC*","Zero ZLF 30 AC*","Vestfrost VLS 200A*","Vestfrost VLS 300A*","Vestfrost VLS 350A*","Vestfrost VLS 400A*","Dulas Solar VC 225 ILR*","Godrej & Boyce  GVR 51 LITE AC*","Godrej & Boyce  GVR 75 Lite*","Godrej & Boyce  GVR 99 Lite*","Godrej & Boyce  GVR 225 AC*","Sibir V 110 KE ","Sibir V 170 KE ","B Medical RCW 50 EK","SureChill tbd","Aucma tbd","Aucma ARKTEK-YBC-5*","Vestfrost MKS 044","Haier HTC-60","Haier HTC-60H","B Medical TCW 3000 SDD","B Medical TCW 2000 SDD","SunDanzer BFRV 55*","Zero ZLF 100 DC*","SunDanzer BFRV 15 SDD*","Dulas Solar VC 200 SDD*","Vestfrost VLS 054 SDD*","B Medical TCW 40 SDD*","B Medical TCW 2043 SDD*","B Medical TCW 3043 SDD*","Dulas Solar VC 150 SDD*","Godrej & Boyce  GVR 50DC SDD*","Godrej & Boyce  GVR 100DC (SureChill)*","Zero ZLF 150DC*","Vestfrost VLS 094 SDD*","Vestfrost VLS 154 SDD*","Zero ZLF 30DC SDD*","Haier HTCD-160*","Dulas Solar VC 110 SDD*","Dulas Solar VC 88 SDD*","B Medical TCW 15R SDD*","B Medical TCW 40R SDD*","Vestfrost VLS 024 SDD*","Haier HTCD 90 SDD*","Haier HTC 40 SDD*","Haier HTC 110 SDD*","Dulas Solar VC 50 SDD*","Dulas Solar VC 60 SDD*","B Medical TCW 15 SDD*","Dulas Solar VC 150-2","Dulas Solar VC 200-1","Dulas Solar VC 65-2","B Medical TCW 2000 DC","B Medical TCW 3000 DC","Zhendre WICR10","Zhendre WICR30","Zhendre WICR40","Huurre WICR10","Huurre WICR30","Huurre WICR40","Haier WICR10","Haier WICR30","Haier WICR40","Zhendre WIFR20","Huurre WIFR20","Haier WIFR20","Zhendre CRFR40","Huurre CRFR40","Haier CRFR40"]
[" Year 1",15522.499333333335,19450.391333333333,20790.372746666668,17827.046746666667,19063.213116666666,49048.417016666659,18455.838666666667,21264.41166666667,50095.453116666678,72130.115666666665,25194.127000000004,30971.379000000001,28903.557000000001,20241.074816666667,21010.938076666673,25776.023816666668,19888.708296666668,20883.540636666665,21820.615636666666,17149.486333333334,19147.786333333333,18055.836333333333,23222.754666666664,23302.894376666667,24723.135426666668,22711.652246666668,38732.00484666667,19109.189916666666,37218.016666666663,54330.157376666677,41309.099306666671,37339.666666666672,41784.066666666666,27329.666666666668,36028.366666666669,28330.626666666667,20343.761246666665,22336.978816666669,23522.856596666672,24477.11806666667,43482.156666666669,32165.766666666663,22890.066666666662,23549.466666666664,31620.066666666666,27688.902675000005,20693.184730000001,42771.75851,9780,9780,91485.3,42701.349910000004,42197.044999999998,44013.690999999999,88721.805949999994,119392.77280000001,49854.500000000007,74710.599999999991,42418,66037.822,49766.849880000002,84696.590070000006,117238.54072999998,92334.945570000011,90729.677000000011,53257.1,67215.25,79397.2,53531.387010000006,76854.538230000006,51930.299999999996,83649.80799999999,80879.354999999996,65582.536999999997,69789.376820000005,92472.261440000002,48395.00288,79363.48599999999,45103.486000000004,48313.48599999999,52594.732550000008,75357.293019999997,68996.059560000009,81780.689666666673,67493.51466666667,55117.689666666673,66101.768876666669,67502.378546666674,239775,319431,274384,239775,313591,274384,232788.9,301035.00000000006,259930,266843.30000000005,266843.30000000005,236154.10000000003,547280,542900,511334.80000000005]
[" Year 2",16986.566000000003,23819.858,25064.939413333334,20648.913413333335,22439.879783333334,52680.583683333323,22058.805333333334,24911.178333333337,52851.619783333343,73316.782333333336,29113.877000000004,35158.309000000001,34827.156999999999,23106.741483333331,23577.304743333341,29211.090483333333,21557.174963333335,22515.507303333332,23605.882303333332,18803.352999999999,21312.652999999998,20118.503000000001,25913.221333333331,25584.561043333335,28245.802093333336,26424.118913333336,40918.77151333334,20814.156583333333,38959.48333333333,56137.324043333341,43860.865973333341,39957.133333333339,44416.133333333331,28925.133333333335,37762.533333333333,30745.153333333335,21946.527913333332,24027.345483333334,25162.123263333338,26152.884733333336,45255.013333333336,34841.633333333331,25149.833333333328,25634.033333333329,34295.933333333334,30750.152675000005,27597.884730000002,47114.158510000001,11100,11100,93465.3,43776.349910000004,43272.044999999998,45088.690999999999,89796.805949999994,120467.77280000001,50929.500000000007,75785.599999999991,43493,67112.822,50841.849880000002,85771.590070000006,118313.54072999998,93409.945570000011,91804.677000000011,54332.1,68290.25,80472.2,54606.387010000006,77929.538230000006,53005.299999999996,84724.80799999999,81954.354999999996,66657.536999999997,70864.376820000005,93547.261440000002,49470.00288,80438.48599999999,46178.486000000004,49388.48599999999,53669.732550000008,76432.293019999997,70071.059560000009,83592.244333333336,69305.069333333333,56929.244333333336,67913.323543333332,69313.933213333337,252015,346271,301224,252015,334591,301224,238042.8,309479.00000000006,272316,307553.30000000005,307553.30000000005,246174.90000000002,601130,592370,529239.60000000009]
[" Year 3",18450.632666666668,28189.324666666667,29339.506079999999,23470.780080000004,25816.546450000002,56312.750349999988,25661.772000000001,28557.945000000003,55607.786450000007,74503.449000000008,33033.627000000008,39345.239000000001,40750.756999999998,25972.408149999996,26143.67141000001,32646.157149999999,23225.641630000002,24147.473969999999,25391.148969999998,20457.219666666664,23477.519666666667,22181.169666666668,28603.687999999998,27866.227710000003,31768.468760000003,30136.585580000003,43105.53818000001,22519.123250000001,40700.949999999997,57944.490710000005,46412.632640000011,42574.600000000006,47048.2,30520.600000000002,39496.699999999997,33159.68,23549.294579999998,25717.712149999999,26801.389930000005,27828.651400000002,47027.87,37517.5,27409.599999999995,27718.599999999995,36971.800000000003,33811.402675000005,34502.584730000002,51456.558510000003,12420,12420,95445.3,44851.349910000004,44347.044999999998,46163.690999999999,90871.805949999994,121542.77280000001,52004.500000000007,76860.599999999991,44568,68187.822,51916.849880000002,86846.590070000006,119388.54072999998,94484.945570000011,92879.677000000011,55407.1,69365.25,81547.199999999997,55681.387010000006,79004.538230000006,54080.299999999996,85799.80799999999,83029.354999999996,67732.536999999997,71939.376820000005,94622.261440000002,50545.00288,81513.48599999999,47253.486000000004,50463.48599999999,54744.732550000008,77507.293019999997,71146.059560000009,85403.798999999999,71116.623999999996,58740.798999999999,69724.878209999995,71125.487880000001,264255,373111,328064,264255,355591,328064,243296.69999999998,317923.00000000006,284702,348263.30000000005,348263.30000000005,256195.7,654980,641840,547144.40000000014]
[" Year 4",19914.699333333334,32558.791333333334,33614.072746666665,26292.646746666673,29193.21311666667,59944.917016666652,29264.738666666668,32204.71166666667,58363.953116666671,75690.115666666679,36953.377000000008,43532.169000000002,46674.356999999996,28838.07481666666,28710.038076666679,36081.223816666665,24894.108296666669,25779.440636666666,27176.415636666665,22111.086333333329,25642.386333333336,24243.836333333336,31294.154666666665,30147.894376666671,35291.135426666668,33849.052246666666,45292.304846666681,24224.089916666668,42442.416666666664,59751.65737666667,48964.399306666681,45192.066666666673,49680.266666666663,32116.066666666669,41230.866666666661,35574.206666666665,25152.061246666664,27408.078816666664,28440.656596666671,29504.418066666669,48800.726666666669,40193.366666666669,29669.366666666661,29803.166666666661,39647.666666666672,36872.652675000005,41407.284729999999,55798.958510000004,13740,13740,97425.3,45926.349910000004,45422.044999999998,47238.690999999999,91946.805949999994,122617.77280000001,53079.500000000007,77935.599999999991,45643,69262.822,52991.849880000002,87921.590070000006,120463.54072999998,95559.945570000011,93954.677000000011,56482.1,70440.25,82622.2,56756.387010000006,80079.538230000006,55155.299999999996,86874.80799999999,84104.354999999996,68807.536999999997,73014.376820000005,95697.261440000002,51620.00288,82588.48599999999,48328.486000000004,51538.48599999999,55819.732550000008,78582.293019999997,72221.059560000009,89898.653666666665,75611.478666666662,63235.653666666665,74219.732876666661,75620.342546666667,276495,399951,354904,276495,376591,354904,248550.59999999998,326367.00000000006,297088,388973.30000000005,388973.30000000005,266216.5,708830,691310,565049.20000000019]
[" Year 5",21378.766,36928.258000000002,37888.639413333331,29114.513413333341,32569.879783333337,63577.083683333316,32867.705333333332,35851.478333333333,61120.119783333335,76876.782333333351,40873.127000000008,47719.099000000002,52597.956999999995,31703.741483333324,31276.404743333347,39516.29048333333,26562.574963333336,27411.407303333333,28961.682303333331,23764.952999999994,27807.253000000004,26306.503000000004,33984.621333333329,32429.561043333339,38813.802093333332,37561.518913333333,47479.071513333351,25929.056583333335,44183.883333333331,61558.824043333334,51516.165973333351,47809.53333333334,52312.333333333328,33711.533333333333,42965.033333333326,37988.73333333333,26754.827913333331,29098.445483333329,30079.923263333338,31180.184733333335,50573.583333333336,42869.233333333337,31929.133333333328,31887.733333333326,42323.53333333334,39933.902675000005,48311.984729999996,60141.358510000005,15060,15060,99405.3,47001.349910000004,46497.044999999998,48313.690999999999,93021.805949999994,123692.77280000001,54154.500000000007,79010.599999999991,46718,70337.822,54066.849880000002,88996.590070000006,121538.54072999998,96634.945570000011,95029.677000000011,57557.1,71515.25,83697.2,57831.387010000006,81154.538230000006,56230.299999999996,87949.80799999999,85179.354999999996,69882.536999999997,74089.376820000005,96772.261440000002,52695.00288,83663.48599999999,49403.486000000004,52613.48599999999,56894.732550000008,79657.293019999997,73296.059560000009,91710.208333333328,77423.033333333326,65047.208333333328,76031.287543333325,77431.89721333333,288735,426791,381744,288735,397591,381744,253804.49999999997,334811.00000000006,309474,429683.30000000005,429683.30000000005,276237.3,762680,740780,582954.00000000023]
[" Year 6",22842.832666666665,41297.724666666669,42163.206079999996,31936.38008000001,35946.546450000002,67209.250349999988,36470.671999999999,39498.244999999995,63876.28645,78063.449000000022,44792.877000000008,51906.029000000002,58521.556999999993,34569.408149999988,33842.771410000016,42951.357149999996,28231.041630000003,29043.373970000001,30746.948969999998,25418.819666666659,29972.119666666673,28369.169666666672,36675.087999999996,34711.227710000006,42336.468759999996,41273.98558,49665.838180000021,27634.023250000002,45925.35,63365.990709999998,54067.932640000021,50427.000000000007,54944.399999999994,35307,44699.19999999999,40403.259999999995,28357.594579999997,30788.812149999994,31719.189930000004,32855.951400000005,52346.44,45545.100000000006,34188.899999999994,33972.299999999996,44999.400000000009,42995.152675000005,55216.684729999994,64483.758510000007,16380,16380,101385.3,48076.349910000004,47572.044999999998,49388.690999999999,94096.805949999994,124767.77280000001,55229.500000000007,80085.599999999991,47793,71412.822,55141.849880000002,90071.590070000006,122613.54072999998,97709.945570000011,96104.677000000011,58632.1,72590.25,84772.2,58906.387010000006,82229.538230000006,57305.299999999996,89024.80799999999,86254.354999999996,70957.536999999997,75164.376820000005,97847.261440000002,53770.00288,84738.48599999999,50478.486000000004,53688.48599999999,57969.732550000008,80732.293019999997,74371.059560000009,93521.762999999992,79234.587999999989,66858.762999999992,77842.842209999988,79243.451879999993,300975,453631,408584,300975,418591,408584,259058.39999999997,343255.00000000006,321860,470393.30000000005,470393.30000000005,286258.09999999998,816530,790250,600858.80000000028]
[" Year 7",24306.899333333331,45667.191333333336,46437.772746666662,34758.246746666679,39323.213116666666,70841.417016666659,40073.638666666666,43145.011666666658,66632.453116666671,79250.115666666694,48712.627000000008,56092.959000000003,64445.156999999992,37435.074816666653,36409.138076666684,46386.423816666662,29899.508296666671,30675.340636666668,32532.215636666664,27072.686333333324,32136.986333333341,30431.83633333334,39365.554666666663,36992.894376666671,45859.13542666666,44986.452246666668,51852.604846666691,29338.989916666669,47666.816666666666,65173.157376666662,56619.699306666691,53044.466666666674,57576.46666666666,36902.466666666667,46433.366666666654,42817.78666666666,29960.361246666664,32479.178816666659,33358.456596666671,34531.718066666668,54119.296666666669,48220.966666666674,36448.666666666657,36056.866666666661,47675.266666666677,46056.402675000005,62121.384729999991,68826.158510000008,17700,17700,103365.3,49151.349910000004,48647.044999999998,50463.690999999999,95171.805949999994,125842.77280000001,56304.500000000007,81160.599999999991,48868,72487.822,56216.849880000002,91146.590070000006,123688.54072999998,98784.945570000011,97179.677000000011,59707.1,73665.25,85847.2,59981.387010000006,83304.538230000006,58380.299999999996,90099.80799999999,87329.354999999996,72032.536999999997,76239.376820000005,98922.261440000002,54845.00288,85813.48599999999,51553.486000000004,54763.48599999999,59044.732550000008,81807.293019999997,75446.059560000009,98016.617666666658,83729.442666666655,71353.617666666658,82337.696876666654,83738.306546666659,313215,480471,435424,313215,439591,435424,264312.3,351699.00000000006,334246,511103.30000000005,511103.30000000005,296278.89999999997,870380,839720,618763.60000000033]
[" Year 8",25770.965999999997,50036.658000000003,50712.339413333328,37580.113413333347,42699.87978333333,74473.583683333331,43676.605333333333,46791.778333333321,69388.619783333343,80436.782333333365,52632.377000000008,60279.889000000003,70368.756999999998,40300.741483333317,38975.504743333353,49821.490483333328,31567.974963333338,32307.307303333335,34317.48230333333,28726.552999999989,34301.85300000001,32494.503000000008,42056.02133333333,39274.561043333335,49381.802093333325,48698.918913333335,54039.371513333361,31043.956583333336,49408.283333333333,66980.324043333327,59171.465973333361,55661.933333333342,60208.533333333326,38497.933333333334,48167.533333333318,45232.313333333324,31563.12791333333,34169.545483333328,34997.723263333333,36207.484733333331,55892.153333333335,50896.833333333343,38708.43333333332,38141.433333333327,50351.133333333346,49117.652675000005,69026.084729999988,73168.558510000003,19020,19020,105345.3,50226.349910000004,49722.044999999998,51538.690999999999,96246.805949999994,126917.77280000001,57379.500000000007,82235.599999999991,49943,73562.822,57291.849880000002,92221.590070000006,124763.54072999998,99859.945570000011,98254.677000000011,60782.1,74740.25,86922.2,61056.387010000006,84379.538230000006,59455.299999999996,91174.80799999999,88404.354999999996,73107.536999999997,77314.376820000005,99997.261440000002,55920.00288,86888.48599999999,52628.486000000004,55838.48599999999,60119.732550000008,82882.293019999997,76521.059560000009,99828.172333333321,85540.997333333318,73165.172333333321,84149.251543333317,85549.861213333323,325455,507311,462264,325455,460591,462264,269566.2,360143.00000000006,346632,551813.30000000005,551813.30000000005,306299.69999999995,924230,889190,636668.40000000037]
[" Year 9",27235.032666666662,54406.12466666667,54986.906079999993,40401.980080000016,46076.546449999994,78105.750350000002,47279.572,50438.544999999984,72144.786450000014,81623.449000000037,56552.127000000008,64466.819000000003,76292.357000000004,43166.408149999981,41541.871410000022,53256.557149999993,33236.441630000001,33939.273970000002,36102.748970000001,30380.419666666654,36466.719666666679,34557.169666666676,44746.487999999998,41556.227709999999,52904.468759999989,52411.385580000002,56226.138180000031,32748.923250000003,51149.75,68787.490709999998,61723.232640000031,58279.400000000009,62840.599999999991,40093.4,49901.699999999983,47646.839999999989,33165.894579999993,35859.912149999996,36636.989929999996,37883.251399999994,57665.01,53572.700000000012,40968.199999999983,40225.999999999993,53027.000000000015,52178.902675000005,75930.784729999985,77510.958509999997,28800,28800,196830.6,51301.349910000004,50797.044999999998,52613.690999999999,97321.805949999994,127992.77280000001,58454.500000000007,83310.599999999991,51018,74637.822,58366.849880000002,93296.590070000006,125838.54072999998,100934.94557000001,99329.677000000011,61857.1,75815.25,87997.2,62131.387010000006,85454.538230000006,60530.299999999996,92249.80799999999,89479.354999999996,74182.536999999997,78389.376820000005,101072.26144,56995.00288,87963.48599999999,53703.486000000004,56913.48599999999,61194.732550000008,83957.293019999997,77596.059560000009,101639.72699999998,87352.551999999981,74976.726999999984,85960.806209999981,87361.415879999986,337695,534151,489104,337695,481591,489104,274820.10000000003,368587.00000000006,359018,592523.30000000005,592523.30000000005,316320.49999999994,978080,938660,654573.20000000042]
[" Year 10",28699.099333333328,58775.591333333337,59261.472746666659,43223.846746666684,49453.213116666659,81737.917016666674,50882.538666666667,54085.311666666646,74900.953116666686,82810.115666666708,60471.877000000008,68653.749000000011,82215.957000000009,46032.074816666645,44108.23807666669,56691.623816666659,34904.908296666668,35571.240636666669,37888.015636666663,32034.286333333319,38631.586333333347,36619.83633333334,47436.954666666665,43837.894376666663,56427.135426666653,56123.852246666669,58412.904846666701,34453.889916666667,52891.216666666667,70594.65737666667,64274.999306666701,60896.866666666676,65472.666666666657,41688.866666666669,51635.866666666647,50061.366666666654,34768.661246666656,37550.278816666665,38276.256596666659,39559.018066666657,59437.866666666669,56248.56666666668,43227.966666666645,42310.566666666658,55702.866666666683,55240.152675000005,82835.484729999982,81853.358509999991,30120,30120,198810.6,52376.349910000004,51872.044999999998,53688.690999999999,98396.805949999994,129067.77280000001,59529.500000000007,84385.599999999991,52093,75712.822,59441.849880000002,94371.590070000006,126913.54072999998,102009.94557000001,100404.67700000001,62932.1,76890.25,89072.2,63206.387010000006,86529.538230000006,61605.299999999996,93324.80799999999,90554.354999999996,75257.536999999997,79464.376820000005,102147.26144,58070.00288,89038.48599999999,54778.486000000004,57988.48599999999,62269.732550000008,85032.293019999997,78671.059560000009,106134.58166666665,91847.406666666648,79471.581666666651,90455.660876666647,91856.270546666652,349935,560991,515944,349935,502591,515944,280074.00000000006,377031.00000000006,371404,633233.30000000005,633233.30000000005,326341.29999999993,1031930,988130,672478.00000000047]

{"sheet":"Data and Assumptions ==>","index":16,"n_rows":9,"n_cols":3,"rows_kept":9,"cut":false,"hidden":false,"merged":[[8,2,8,9],[7,2,7,9],[2,1,2,9],[3,1,3,9],[5,2,5,9],[6,2,6,9]]}
["Data and assumptions"]
[null,"The following worksheets contain the data and assumptions for equipment in the model."]
[null,"Individual technology worksheets contain labor assumptions for each model, with the default values driven from the Labor and Maintenance worksheet."]
[null,"Individual technology worksheets contain parts assumptions for number of parts needed over the useful life, by model, with default values input from manufacturer guidance, or PQS (World Health Organization Performance, Quality and Safety) data sheets.  The default parts assumptions are parts needed per unit over the useful life of the equipment. Users may adjust these values based on one's own experiences with equipment in country.  "]
[]
[null,null,"Light orange cells are assumption cells with no value. If an applicable assumption or data exists for a particular model, it can be entered in these cells and they will turn orange."]
[null,null,"Orange cells are default assumptions, which have been compiled for general use in the tool. The default assumption values that are in the Country Input and Labor and Maintenance worksheets can be overwritten as desired based on local costs or experiences with a technology. "]
[null,null,"For individual model variances, please refer to the appropriate technology worksheet and locate the specific model to update if it differs from the default assumption (e.g., ice-lined refrigerator—Vestfrost MK204 useful life equals XX years instead of default 10 years). "]
[null,null,"Grey cells are calculated values and should not be changed to avoid corruption of the formulas and data flow."]

{"sheet":"WICR FR","index":17,"n_rows":45,"n_cols":19,"rows_kept":45,"cut":false,"hidden":false,"merged":[]}
["Technology Assumptions - Walk in cold room / freezer room"]
["Technology",null,{"$f":"PQS!$A$90","v":"WICR FR"},{"$f":"PQS!$A$91","v":"WICR FR"},{"$f":"PQS!$A$92","v":"WICR FR"},{"$f":"PQS!$A$93","v":"WICR FR"},{"$f":"PQS!$A$94","v":"WICR FR"},{"$f":"PQS!$A$95","v":"WICR FR"},{"$f":"PQS!$A$96","v":"WICR FR"},{"$f":"PQS!$A$97","v":"WICR FR"},{"$f":"PQS!$A$98","v":"WICR FR"},{"$f":"PQS!$A$99","v":"WICR FR"},{"$f":"PQS!$A$100","v":"WICR FR"},{"$f":"PQS!$A$101","v":"WICR FR"},{"$f":"PQS!$A$102","v":"WICR FR"},{"$f":"PQS!$A$103","v":"WICR FR"},{"$f":"PQS!$A$104","v":"WICR FR"},null,"AVERAGES"]
["Manufacturer",null,{"$f":"PQS!$F$90","v":"Zhendre"},{"$f":"PQS!$F$91","v":"Zhendre"},{"$f":"PQS!$F$92","v":"Zhendre"},{"$f":"PQS!$F$93","v":"Huurre"},{"$f":"PQS!$F$94","v":"Huurre"},{"$f":"PQS!$F$95","v":"Huurre"},{"$f":"PQS!$F$96","v":"Haier"},{"$f":"PQS!$F$97","v":"Haier"},{"$f":"PQS!$F$98","v":"Haier"},{"$f":"PQS!$F$99","v":"Zhendre"},{"$f":"PQS!$F$100","v":"Huurre"},{"$f":"PQS!$F$101","v":"Haier"},{"$f":"PQS!$F$102","v":"Zhendre"},{"$f":"PQS!$F$103","v":"Huurre"},{"$f":"PQS!$F$104","v":"Haier"}]
["Model",null,{"$f":"PQS!$B$90","v":"E001/WICR10-Zhendre"},{"$f":"PQS!$B$91","v":"E001/WICR30-Zhendre"},{"$f":"PQS!$B$92","v":"E001/WICR40-Zhendre"},{"$f":"PQS!$B$93","v":"E001/WICR10-Huurre"},{"$f":"PQS!$B$94","v":"E001/WICR30-Huurre"},{"$f":"PQS!$B$95","v":"E001/WICR40-Huurre"},{"$f":"PQS!$B$96","v":"E001/WICR10-Haier"},{"$f":"PQS!$B$97","v":"E001/WICR30-Haier"},{"$f":"PQS!$B$98","v":"E001/WICR40-Haier"},{"$f":"PQS!$B$99","v":"E001/WIFR20-Zhendre"},{"$f":"PQS!$B$100","v":"E001/WIFR20-Huurre"},{"$f":"PQS!$B$101","v":"E001/WIFR20-Haier"},{"$f":"PQS!$B$102","v":"E001/CRFR40-Zhendre"},{"$f":"PQS!$B$103","v":"E001/CRFR40-Huurre"},{"$f":"PQS!$B$104","v":"E001/CRFR40-Haier"}]
["CCEOP",null,{"$f":"VLOOKUP(C4,PQS!$B:$G,COLUMN(PQS!$G$3)-COLUMN(PQS!$B$3)+1,FALSE)","v":"No"},{"$f":"VLOOKUP(D4,PQS!$B:$G,COLUMN(PQS!$G$3)-COLUMN(PQS!$B$3)+1,FALSE)","v":"No"},{"$f":"VLOOKUP(E4,PQS!$B:$G,COLUMN(PQS!$G$3)-COLUMN(PQS!$B$3)+1,FALSE)","v":"No"},{"$f":"VLOOKUP(F4,PQS!$B:$G,COLUMN(PQS!$G$3)-COLUMN(PQS!$B$3)+1,FALSE)","v":"No"},{"$f":"VLOOKUP(G4,PQS!$B:$G,COLUMN(PQS!$G$3)-COLUMN(PQS!$B$3)+1,FALSE)","v":"No"},{"$f":"VLOOKUP(H4,PQS!$B:$G,COLUMN(PQS!$G$3)-COLUMN(PQS!$B$3)+1,FALSE)","v":"No"},{"$f":"VLOOKUP(I4,PQS!$B:$G,COLUMN(PQS!$G$3)-COLUMN(PQS!$B$3)+1,FALSE)","v":"No"},{"$f":"VLOOKUP(J4,PQS!$B:$G,COLUMN(PQS!$G$3)-COLUMN(PQS!$B$3)+1,FALSE)","v":"No"},{"$f":"VLOOKUP(K4,PQS!$B:$G,COLUMN(PQS!$G$3)-COLUMN(PQS!$B$3)+1,FALSE)","v":"No"},{"$f":"VLOOKUP(L4,PQS!$B:$G,COLUMN(PQS!$G$3)-COLUMN(PQS!$B$3)+1,FALSE)","v":"No"},{"$f":"VLOOKUP(M4,PQS!$B:$G,COLUMN(PQS!$G$3)-COLUMN(PQS!$B$3)+1,FALSE)","v":"No"},{"$f":"VLOOKUP(N4,PQS!$B:$G,COLUMN(PQS!$G$3)-COLUMN(PQS!$B$3)+1,FALSE)","v":"No"},{"$f":"VLOOKUP(O4,PQS!$B:$G,COLUMN(PQS!$G$3)-COLUMN(PQS!$B$3)+1,FALSE)","v":"No"},{"$f":"VLOOKUP(P4,PQS!$B:$G,COLUMN(PQS!$G$3)-COLUMN(PQS!$B$3)+1,FALSE)","v":"No"},{"$f":"VLOOKUP(Q4,PQS!$B:$G,COLUMN(PQS!$G$3)-COLUMN(PQS!$B$3)+1,FALSE)","v":"No"},null,"Capacity"]
["Net vaccine storage capacity",null,{"$f":"PQS!$I$90","v":3030.3030303030305},{"$f":"PQS!$I$91","v":7692.3076923076924},{"$f":"PQS!$I$92","v":9523.8095238095229},{"$f":"PQS!$I$93","v":3030.3030303030305},{"$f":"PQS!$I$94","v":7692.3076923076924},{"$f":"PQS!$I$95","v":9523.8095238095229},{"$f":"PQS!$I$96","v":3030.3030303030305},{"$f":"PQS!$I$97","v":7692.3076923076924},{"$f":"PQS!$I$98","v":9523.8095238095229},{"$f":"PQS!$I$99","v":5555.5555555555557},{"$f":"PQS!$I$100","v":5555.5555555555557},{"$f":"PQS!$I$101","v":5555.5555555555557},{"$f":"PQS!$I$102","v":6666.666666666667},{"$f":"PQS!$I$103","v":6666.666666666667},{"$f":"PQS!$I$104","v":6666.666666666667},null,{"$f":"AVERAGE(C6:Q6)","v":6493.7284937284967}]
["Waterpack freezing capacity",null,{"$f":"PQS!$K$90","v":0},{"$f":"PQS!$K$91","v":0},{"$f":"PQS!$K$92","v":0},{"$f":"PQS!$K$93","v":0},{"$f":"PQS!$K$94","v":0},{"$f":"PQS!$K$95","v":0},{"$f":"PQS!$K$96","v":0},{"$f":"PQS!$K$97","v":0},{"$f":"PQS!$K$98","v":0},{"$f":"PQS!$K$99","v":0},{"$f":"PQS!$K$100","v":0},{"$f":"PQS!$K$101","v":0},{"$f":"PQS!$K$102","v":4411.7647058823532},{"$f":"PQS!$K$103","v":4411.7647058823532},{"$f":"PQS!$K$104","v":4411.7647058823532},null,{"$f":"AVERAGE(C7:Q7)","v":882.35294117647061}]
[]
["HARDWARE"]
["[Unit]",null,{"$f":"C4","v":"E001/WICR10-Zhendre"},{"$f":"D4","v":"E001/WICR30-Zhendre"},"E001/WICR40-Zhendre","E001/WICR10-Huurre","E001/WICR30-Huurre","E001/WICR40-Huurre","E001/WICR10-Haier","E001/WICR30-Haier","E001/WICR40-Haier","E001/WIFR20-Zhendre","E001/WIFR20-Huurre","E001/WIFR20-Haier","E001/CRFR40-Zhendre","E001/CRFR40-Huurre","E001/CRFR40-Haier",null,"Useful life"]
["[unit] Expected useful life",null,{"$f":"Cold_room_freezer_roomUL","v":15},15,15,15,15,15,15,15,15,15,15,15,15,15,15,null,{"$f":"AVERAGE(C11:Q11)","v":15}]
["Solar panel expected useful life (where applicable)"]
["Battery expected useful life"]
["Installation kit price",null,{"$f":"WICRHW","v":3000},3000,3000,3000,3000,3000,3000,3000,3000,3000,3000,3000,3000,3000,3000,null,{"$f":"AVERAGE(C14:Q14)","v":3000}]
[]
[]
["[unit] PARTS"]
["Expressed as expected useful life of part in years",null,null,null,null,null,null,null,null,null,null,null,null,null,null,null,null,null,"Useful life"]
["Part 1"]
["Part 2"]
["Part 3"]
["Part 4"]
[]
[]
["LABOR"]
[null,null,null,null,null,null,null,null,null,null,null,null,null,null,null,null,null,null,"Installation cost"]
["Installation labor cost (one time)",null,{"$f":"'Labor and Maintenance '!$J$17","v":728},{"$f":"'Labor and Maintenance '!$J$17","v":728},{"$f":"'Labor and Maintenance '!$J$17","v":728},{"$f":"'Labor and Maintenance '!$J$17","v":728},{"$f":"'Labor and Maintenance '!$J$17","v":728},{"$f":"'Labor and Maintenance '!$J$17","v":728},{"$f":"'Labor and Maintenance '!$J$17","v":728},{"$f":"'Labor and Maintenance '!$J$17","v":728},{"$f":"'Labor and Maintenance '!$J$17","v":728},{"$f":"'Labor and Maintenance '!$J$17","v":728},{"$f":"'Labor and Maintenance '!$J$17","v":728},{"$f":"'Labor and Maintenance '!$J$17","v":728},{"$f":"'Labor and Maintenance '!$J$17","v":728},{"$f":"'Labor and Maintenance '!$J$17","v":728},{"$f":"'Labor and Maintenance '!$J$17","v":728},null,{"$f":"AVERAGE(C27:Q27)","v":728}]
[]
["Maintenance and repairs - FREQUENCY"]
["Expressed in frequency of occurrence (in years: quarterly = 0.25, annual = 1, every 5 years = 5, etc.)",null,null,null,null,null,null,null,null,null,null,null,null,null,null,null,null,null,"Routine maintenance frequency"]
["Frequency - Routine maintenance ",null,{"$f":"'Labor and Maintenance '!$E$71","v":0.25},{"$f":"'Labor and Maintenance '!$E$71","v":0.25},{"$f":"'Labor and Maintenance '!$E$71","v":0.25},{"$f":"'Labor and Maintenance '!$E$71","v":0.25},{"$f":"'Labor and Maintenance '!$E$71","v":0.25},{"$f":"'Labor and Maintenance '!$E$71","v":0.25},{"$f":"'Labor and Maintenance '!$E$71","v":0.25},{"$f":"'Labor and Maintenance '!$E$71","v":0.25},{"$f":"'Labor and Maintenance '!$E$71","v":0.25},{"$f":"'Labor and Maintenance '!$E$71","v":0.25},{"$f":"'Labor and Maintenance '!$E$71","v":0.25},{"$f":"'Labor and Maintenance '!$E$71","v":0.25},{"$f":"'Labor and Maintenance '!$E$71","v":0.25},{"$f":"'Labor and Maintenance '!$E$71","v":0.25},{"$f":"'Labor and Maintenance '!$E$71","v":0.25},null,{"$f":"AVERAGE(C31:Q31)","v":0.25}]
[]
["Major repairs (by a technician with tools)",null,null,null,null,null,null,null,null,null,null,null,null,null,null,null,null,null,"Major repair frequency"]
["Frequency - Onsite repairs 1",null,{"$f":"'Labor and Maintenance '!$E$72","v":3},{"$f":"'Labor and Maintenance '!$E$72","v":3},{"$f":"'Labor and Maintenance '!$E$72","v":3},{"$f":"'Labor and Maintenance '!$E$72","v":3},{"$f":"'Labor and Maintenance '!$E$72","v":3},{"$f":"'Labor and Maintenance '!$E$72","v":3},{"$f":"'Labor and Maintenance '!$E$72","v":3},{"$f":"'Labor and Maintenance '!$E$72","v":3},{"$f":"'Labor and Maintenance '!$E$72","v":3},{"$f":"'Labor and Maintenance '!$E$72","v":3},{"$f":"'Labor and Maintenance '!$E$72","v":3},{"$f":"'Labor and Maintenance '!$E$72","v":3},{"$f":"'Labor and Maintenance '!$E$72","v":3},{"$f":"'Labor and Maintenance '!$E$72","v":3},{"$f":"'Labor and Maintenance '!$E$72","v":3},null,{"$f":"AVERAGE(C34:Q34)","v":3}]
["Frequency - Onsite repairs 2",null,{"$f":"'Labor and Maintenance '!$E$73","v":0},{"$f":"'Labor and Maintenance '!$E$73","v":0},{"$f":"'Labor and Maintenance '!$E$73","v":0},{"$f":"'Labor and Maintenance '!$E$73","v":0},{"$f":"'Labor and Maintenance '!$E$73","v":0},{"$f":"'Labor and Maintenance '!$E$73","v":0},{"$f":"'Labor and Maintenance '!$E$73","v":0},{"$f":"'Labor and Maintenance '!$E$73","v":0},{"$f":"'Labor and Maintenance '!$E$73","v":0},{"$f":"'Labor and Maintenance '!$E$73","v":0},{"$f":"'Labor and Maintenance '!$E$73","v":0},{"$f":"'Labor and Maintenance '!$E$73","v":0},{"$f":"'Labor and Maintenance '!$E$73","v":0},{"$f":"'Labor and Maintenance '!$E$73","v":0},{"$f":"'Labor and Maintenance '!$E$73","v":0},null,{"$f":"AVERAGE(C35:Q35)","v":0}]
["Frequency - Major repairs in a workshop by a technician",null,{"$f":"'Labor and Maintenance '!$E$74","v":0},{"$f":"'Labor and Maintenance '!$E$74","v":0},{"$f":"'Labor and Maintenance '!$E$74","v":0},{"$f":"'Labor and Maintenance '!$E$74","v":0},{"$f":"'Labor and Maintenance '!$E$74","v":0},{"$f":"'Labor and Maintenance '!$E$74","v":0},{"$f":"'Labor and Maintenance '!$E$74","v":0},{"$f":"'Labor and Maintenance '!$E$74","v":0},{"$f":"'Labor and Maintenance '!$E$74","v":0},{"$f":"'Labor and Maintenance '!$E$74","v":0},{"$f":"'Labor and Maintenance '!$E$74","v":0},{"$f":"'Labor and Maintenance '!$E$74","v":0},{"$f":"'Labor and Maintenance '!$E$74","v":0},{"$f":"'Labor and Maintenance '!$E$74","v":0},{"$f":"'Labor and Maintenance '!$E$74","v":0},null,0]
[]
["Maintenance and repairs - HOURS"]
["Expressed in number of hours needed to complete"]
["Hours - Routine maintenance",null,{"$f":"'Labor and Maintenance '!$C$71","v":4},{"$f":"'Labor and Maintenance '!$C$71","v":4},{"$f":"'Labor and Maintenance '!$C$71","v":4},{"$f":"'Labor and Maintenance '!$C$71","v":4},{"$f":"'Labor and Maintenance '!$C$71","v":4},{"$f":"'Labor and Maintenance '!$C$71","v":4},{"$f":"'Labor and Maintenance '!$C$71","v":4},{"$f":"'Labor and Maintenance '!$C$71","v":4},{"$f":"'Labor and Maintenance '!$C$71","v":4},{"$f":"'Labor and Maintenance '!$C$71","v":4},{"$f":"'Labor and Maintenance '!$C$71","v":4},{"$f":"'Labor and Maintenance '!$C$71","v":4},{"$f":"'Labor and Maintenance '!$C$71","v":4},{"$f":"'Labor and Maintenance '!$C$71","v":4},{"$f":"'Labor and Maintenance '!$C$71","v":4},null,{"$f":"AVERAGE(C40:Q40)","v":4}]
[]
["Major repairs (by a technician with tools)"]
["Hours - Onsite repairs 1",null,{"$f":"'Labor and Maintenance '!$C$72","v":16},{"$f":"'Labor and Maintenance '!$C$72","v":16},{"$f":"'Labor and Maintenance '!$C$72","v":16},{"$f":"'Labor and Maintenance '!$C$72","v":16},{"$f":"'Labor and Maintenance '!$C$72","v":16},{"$f":"'Labor and Maintenance '!$C$72","v":16},{"$f":"'Labor and Maintenance '!$C$72","v":16},{"$f":"'Labor and Maintenance '!$C$72","v":16},{"$f":"'Labor and Maintenance '!$C$72","v":16},{"$f":"'Labor and Maintenance '!$C$72","v":16},{"$f":"'Labor and Maintenance '!$C$72","v":16},{"$f":"'Labor and Maintenance '!$C$72","v":16},{"$f":"'Labor and Maintenance '!$C$72","v":16},{"$f":"'Labor and Maintenance '!$C$72","v":16},{"$f":"'Labor and Maintenance '!$C$72","v":16},null,{"$f":"AVERAGE(C43:Q43)","v":16}]
["Hours - Onsite repairs 2",null,{"$f":"'Labor and Maintenance '!$C$73","v":0},{"$f":"'Labor and Maintenance '!$C$73","v":0},{"$f":"'Labor and Maintenance '!$C$73","v":0},{"$f":"'Labor and Maintenance '!$C$73","v":0},{"$f":"'Labor and Maintenance '!$C$73","v":0},{"$f":"'Labor and Maintenance '!$C$73","v":0},{"$f":"'Labor and Maintenance '!$C$73","v":0},{"$f":"'Labor and Maintenance '!$C$73","v":0},{"$f":"'Labor and Maintenance '!$C$73","v":0},{"$f":"'Labor and Maintenance '!$C$73","v":0},{"$f":"'Labor and Maintenance '!$C$73","v":0},{"$f":"'Labor and Maintenance '!$C$73","v":0},{"$f":"'Labor and Maintenance '!$C$73","v":0},{"$f":"'Labor and Maintenance '!$C$73","v":0},{"$f":"'Labor and Maintenance '!$C$73","v":0},null,{"$f":"AVERAGE(C44:Q44)","v":0}]
["Hours - Major repairs in a workshop by a technician",null,{"$f":"'Labor and Maintenance '!$C$74","v":0},{"$f":"'Labor and Maintenance '!$C$74","v":0},{"$f":"'Labor and Maintenance '!$C$74","v":0},{"$f":"'Labor and Maintenance '!$C$74","v":0},{"$f":"'Labor and Maintenance '!$C$74","v":0},{"$f":"'Labor and Maintenance '!$C$74","v":0},{"$f":"'Labor and Maintenance '!$C$74","v":0},{"$f":"'Labor and Maintenance '!$C$74","v":0},{"$f":"'Labor and Maintenance '!$C$74","v":0},{"$f":"'Labor and Maintenance '!$C$74","v":0},{"$f":"'Labor and Maintenance '!$C$74","v":0},{"$f":"'Labor and Maintenance '!$C$74","v":0},{"$f":"'Labor and Maintenance '!$C$74","v":0},{"$f":"'Labor and Maintenance '!$C$74","v":0},{"$f":"'Labor and Maintenance '!$C$74","v":0},null,0]

{"sheet":"ILR","index":18,"n_rows":68,"n_cols":36,"rows_kept":68,"cut":false,"hidden":false,"merged":[]}
["Technology Assumptions - Ice-lined refrigerator"]
["Technology",null,{"$f":"PQS!A18","v":"ILR"},{"$f":"PQS!A19","v":"ILR"},{"$f":"PQS!A20","v":"ILR"},{"$f":"PQS!A21","v":"ILR"},{"$f":"PQS!A22","v":"ILR"},{"$f":"PQS!A33","v":"ILR"},{"$f":"PQS!A24","v":"ILR"},{"$f":"PQS!A25","v":"ILR"},{"$f":"PQS!A26","v":"ILR"},{"$f":"PQS!A27","v":"ILR"},{"$f":"PQS!A28","v":"ILR"},{"$f":"PQS!A29","v":"ILR"},{"$f":"PQS!A30","v":"ILR"},{"$f":"PQS!A31","v":"ILR"},{"$f":"PQS!A32","v":"ILR"},{"$f":"PQS!A33","v":"ILR"},{"$f":"PQS!A34","v":"ILR"},{"$f":"PQS!A35","v":"ILR"},{"$f":"PQS!A36","v":"ILR"},{"$f":"PQS!A37","v":"ILR"},{"$f":"PQS!A38","v":"ILR"},{"$f":"PQS!A39","v":"ILR"},{"$f":"PQS!A40","v":"ILR"},{"$f":"PQS!A41","v":"ILR"},{"$f":"PQS!A42","v":"ILR"},{"$f":"PQS!A43","v":"ILR"},{"$f":"PQS!A44","v":"ILR"},{"$f":"PQS!A45","v":"ILR"},{"$f":"PQS!A46","v":"ILR"},{"$f":"PQS!A47","v":"ILR"},{"$f":"PQS!A48","v":"ILR"},{"$f":"PQS!A49","v":"ILR"},null,"AVERAGES"]
["Manufacturer",null,{"$f":"PQS!F18","v":"Haier"},{"$f":"PQS!F19","v":"Haier"},{"$f":"PQS!F20","v":"Vestfrost"},{"$f":"PQS!F21","v":"Vestfrost"},{"$f":"PQS!F22","v":"Vestfrost"},{"$f":"PQS!F23","v":"Vestfrost"},{"$f":"PQS!F24","v":"B Medical"},{"$f":"PQS!F25","v":"B Medical"},{"$f":"PQS!F26","v":"Vestfrost"},{"$f":"PQS!F27","v":"Vestfrost"},{"$f":"PQS!F28","v":"Vestfrost"},{"$f":"PQS!F29","v":"Vestfrost"},{"$f":"PQS!F30","v":"Vestfrost"},{"$f":"PQS!F31","v":"Haier"},{"$f":"PQS!F32","v":"Zero"},{"$f":"PQS!F33","v":"Haier"},{"$f":"PQS!F34","v":"Zero"},{"$f":"PQS!F35","v":"Godrej & Boyce "},{"$f":"PQS!F36","v":"Godrej & Boyce "},{"$f":"PQS!F37","v":"Zero"},{"$f":"PQS!F38","v":"Vestfrost"},{"$f":"PQS!F39","v":"Vestfrost"},{"$f":"PQS!F40","v":"Vestfrost"},{"$f":"PQS!F41","v":"Vestfrost"},{"$f":"PQS!F42","v":"B Medical"},{"$f":"PQS!F43","v":"Vestfrost"},{"$f":"PQS!F44","v":"Dulas Solar"},{"$f":"PQS!F45","v":"Aucma"},{"$f":"PQS!F46","v":"Godrej & Boyce "},{"$f":"PQS!F47","v":"Godrej & Boyce "},{"$f":"PQS!F48","v":"Godrej & Boyce "},{"$f":"PQS!F49","v":"Godrej & Boyce "}]
["Model",null,{"$f":"PQS!E18","v":"HBC-70"},{"$f":"PQS!E19","v":"HBC-200"},{"$f":"PQS!E20","v":"MK 304"},{"$f":"PQS!E21","v":"MKF 074"},{"$f":"PQS!E22","v":"MK 204"},{"$f":"PQS!E23","v":"MK 404"},{"$f":"PQS!E24","v":"TCW 2000 AC*"},{"$f":"PQS!E25","v":"TCW 3000 AC"},{"$f":"PQS!E26","v":"VLS 400"},{"$f":"PQS!E27","v":"MK 144"},{"$f":"PQS!E28","v":"VLS 200"},{"$f":"PQS!E29","v":"VLS 300"},{"$f":"PQS!E30","v":"VLS 350"},{"$f":"PQS!E31","v":"HBC-110"},{"$f":"PQS!E32","v":"ZLF 100 AC*"},{"$f":"PQS!E33","v":"HBC-340"},{"$f":"PQS!E34","v":"ZLF 150 AC*"},{"$f":"PQS!E35","v":"GVR 50 AC*"},{"$f":"PQS!E36","v":"GVR 100 AC*"},{"$f":"PQS!E37","v":"ZLF 30 AC*"},{"$f":"PQS!E38","v":"VLS 200A*"},{"$f":"PQS!E39","v":"VLS 300A*"},{"$f":"PQS!E40","v":"VLS 350A*"},{"$f":"PQS!E41","v":"VLS 400A*"},{"$f":"PQS!E42","v":"TCW 4000 AC*"},{"$f":"PQS!E43","v":"VLS 064 RF"},{"$f":"PQS!E44","v":"VC 225 ILR*"},{"$f":"PQS!E45","v":"CFD-50"},{"$f":"PQS!E46","v":"GVR 51 LITE AC*"},{"$f":"PQS!E47","v":"GVR 75 Lite*"},{"$f":"PQS!E48","v":"GVR 99 Lite*"},{"$f":"PQS!E49","v":"GVR 225 AC*"},null,"Capacity"]
["CCEOP",null,{"$f":"VLOOKUP(C4,PQS!$E:$G,COLUMN(PQS!$G$3)-COLUMN(PQS!$E$3)+1,FALSE)","v":"No"},{"$f":"VLOOKUP(D4,PQS!$E:$G,COLUMN(PQS!$G$3)-COLUMN(PQS!$E$3)+1,FALSE)","v":"No"},{"$f":"VLOOKUP(E4,PQS!$E:$G,COLUMN(PQS!$G$3)-COLUMN(PQS!$E$3)+1,FALSE)","v":"No"},{"$f":"VLOOKUP(F4,PQS!$E:$G,COLUMN(PQS!$G$3)-COLUMN(PQS!$E$3)+1,FALSE)","v":"No"},{"$f":"VLOOKUP(G4,PQS!$E:$G,COLUMN(PQS!$G$3)-COLUMN(PQS!$E$3)+1,FALSE)","v":"No"},{"$f":"VLOOKUP(H4,PQS!$E:$G,COLUMN(PQS!$G$3)-COLUMN(PQS!$E$3)+1,FALSE)","v":"No"},{"$f":"VLOOKUP(I4,PQS!$E:$G,COLUMN(PQS!$G$3)-COLUMN(PQS!$E$3)+1,FALSE)","v":"Yes"},{"$f":"VLOOKUP(J4,PQS!$E:$G,COLUMN(PQS!$G$3)-COLUMN(PQS!$E$3)+1,FALSE)","v":"No"},{"$f":"VLOOKUP(K4,PQS!$E:$G,COLUMN(PQS!$G$3)-COLUMN(PQS!$E$3)+1,FALSE)","v":"No"},{"$f":"VLOOKUP(L4,PQS!$E:$G,COLUMN(PQS!$G$3)-COLUMN(PQS!$E$3)+1,FALSE)","v":"No"},{"$f":"VLOOKUP(M4,PQS!$E:$G,COLUMN(PQS!$G$3)-COLUMN(PQS!$E$3)+1,FALSE)","v":"No"},{"$f":"VLOOKUP(N4,PQS!$E:$G,COLUMN(PQS!$G$3)-COLUMN(PQS!$E$3)+1,FALSE)","v":"No"},{"$f":"VLOOKUP(O4,PQS!$E:$G,COLUMN(PQS!$G$3)-COLUMN(PQS!$E$3)+1,FALSE)","v":"No"},{"$f":"VLOOKUP(P4,PQS!$E:$G,COLUMN(PQS!$G$3)-COLUMN(PQS!$E$3)+1,FALSE)","v":"No"},{"$f":"VLOOKUP(Q4,PQS!$E:$G,COLUMN(PQS!$G$3)-COLUMN(PQS!$E$3)+1,FALSE)","v":"Yes"},{"$f":"VLOOKUP(R4,PQS!$E:$G,COLUMN(PQS!$G$3)-COLUMN(PQS!$E$3)+1,FALSE)","v":"No"},{"$f":"VLOOKUP(S4,PQS!$E:$G,COLUMN(PQS!$G$3)-COLUMN(PQS!$E$3)+1,FALSE)","v":"Yes"},{"$f":"VLOOKUP(T4,PQS!$E:$G,COLUMN(PQS!$G$3)-COLUMN(PQS!$E$3)+1,FALSE)","v":"Yes"},{"$f":"VLOOKUP(U4,PQS!$E:$G,COLUMN(PQS!$G$3)-COLUMN(PQS!$E$3)+1,FALSE)","v":"Yes"},{"$f":"VLOOKUP(V4,PQS!$E:$G,COLUMN(PQS!$G$3)-COLUMN(PQS!$E$3)+1,FALSE)","v":"Yes"},{"$f":"VLOOKUP(W4,PQS!$E:$G,COLUMN(PQS!$G$3)-COLUMN(PQS!$E$3)+1,FALSE)","v":"Yes"},{"$f":"VLOOKUP(X4,PQS!$E:$G,COLUMN(PQS!$G$3)-COLUMN(PQS!$E$3)+1,FALSE)","v":"Yes"},{"$f":"VLOOKUP(Y4,PQS!$E:$G,COLUMN(PQS!$G$3)-COLUMN(PQS!$E$3)+1,FALSE)","v":"Yes"},{"$f":"VLOOKUP(Z4,PQS!$E:$G,COLUMN(PQS!$G$3)-COLUMN(PQS!$E$3)+1,FALSE)","v":"Yes"},{"$f":"VLOOKUP(AA4,PQS!$E:$G,COLUMN(PQS!$G$3)-COLUMN(PQS!$E$3)+1,FALSE)","v":"Yes"},{"$f":"VLOOKUP(AB4,PQS!$E:$G,COLUMN(PQS!$G$3)-COLUMN(PQS!$E$3)+1,FALSE)","v":"No"},{"$f":"VLOOKUP(AC4,PQS!$E:$G,COLUMN(PQS!$G$3)-COLUMN(PQS!$E$3)+1,FALSE)","v":"Yes"},{"$f":"VLOOKUP(AD4,PQS!$E:$G,COLUMN(PQS!$G$3)-COLUMN(PQS!$E$3)+1,FALSE)","v":"No"},{"$f":"VLOOKUP(AE4,PQS!$E:$G,COLUMN(PQS!$G$3)-COLUMN(PQS!$E$3)+1,FALSE)","v":"Yes"},{"$f":"VLOOKUP(AF4,PQS!$E:$G,COLUMN(PQS!$G$3)-COLUMN(PQS!$E$3)+1,FALSE)","v":"Yes"},{"$f":"VLOOKUP(AG4,PQS!$E:$G,COLUMN(PQS!$G$3)-COLUMN(PQS!$E$3)+1,FALSE)","v":"Yes"},{"$f":"VLOOKUP(AH4,PQS!$E:$G,COLUMN(PQS!$G$3)-COLUMN(PQS!$E$3)+1,FALSE)","v":"Yes"}]
["Net vaccine storage capacity",null,{"$f":"PQS!I18","v":45},{"$f":"PQS!I19","v":90},{"$f":"PQS!I20","v":105},{"$f":"PQS!I21","v":16},{"$f":"PQS!I22","v":75},{"$f":"PQS!I23","v":135},{"$f":"PQS!I24","v":60},{"$f":"PQS!I25","v":150},{"$f":"PQS!I26","v":216},{"$f":"PQS!I27","v":48},{"$f":"PQS!I28","v":100},{"$f":"PQS!I29","v":148},{"$f":"PQS!I30","v":196},{"$f":"PQS!I31","v":52.5},{"$f":"PQS!I32","v":99},{"$f":"PQS!I33","v":211},{"$f":"PQS!I34","v":128},{"$f":"PQS!I35","v":46.8},{"$f":"PQS!I36","v":99},{"$f":"PQS!I37","v":27},{"$f":"PQS!I38","v":60},{"$f":"PQS!I39","v":98},{"$f":"PQS!I40","v":127},{"$f":"PQS!I41","v":145},{"$f":"PQS!I42","v":240},{"$f":"PQS!I43","v":52.5},{"$f":"PQS!I44","v":203.2},{"$f":"PQS!I45","v":50},{"$f":"PQS!I46","v":51},{"$f":"PQS!I47","v":72.5},{"$f":"PQS!I48","v":98.5},{"$f":"PQS!I49","v":225},null,{"$f":"AVERAGE(C6:AH6)","v":108.4375}]
["Waterpack freezing capacity",null,{"$f":"PQS!K18","v":0},{"$f":"PQS!K19","v":0},{"$f":"PQS!K20","v":0},{"$f":"PQS!K21","v":1.6},{"$f":"PQS!K22","v":0},{"$f":"PQS!K23","v":0},{"$f":"PQS!K24","v":10},{"$f":"PQS!K25","v":0},{"$f":"PQS!K26","v":0},{"$f":"PQS!K27","v":0},{"$f":"PQS!K28","v":3},{"$f":"PQS!K29","v":0},{"$f":"PQS!K30","v":0},{"$f":"PQS!K31","v":0},{"$f":"PQS!K32","v":0},{"$f":"PQS!K33","v":0},{"$f":"PQS!K34","v":0},{"$f":"PQS!K35","v":0},{"$f":"PQS!K36","v":0},{"$f":"PQS!K37","v":0},{"$f":"PQS!K38","v":0},{"$f":"PQS!K39","v":0},{"$f":"PQS!K40","v":0},{"$f":"PQS!K41","v":0},{"$f":"PQS!K42","v":0},{"$f":"PQS!K43","v":1.6},{"$f":"PQS!K44","v":0},{"$f":"PQS!K45","v":0},{"$f":"PQS!K46","v":0},{"$f":"PQS!K47","v":0},{"$f":"PQS!K48","v":0},{"$f":"PQS!K49","v":0},null,{"$f":"AVERAGE(C7:AH7)","v":0.50624999999999998}]
[]
["HARDWARE"]
["[Unit]",null,{"$f":"PQS!B18","v":"E003/005"},{"$f":"PQS!B19","v":"E003/006"},{"$f":"PQS!B20","v":"E003/007"},{"$f":"PQS!B21","v":"E003/010"},{"$f":"PQS!B22","v":"E003/011"},{"$f":"PQS!B23","v":"E003/012"},{"$f":"PQS!B24","v":"E003/014"},{"$f":"PQS!B25","v":"E003/017"},{"$f":"PQS!B26","v":"E003/021"},{"$f":"PQS!B27","v":"E003/022"},{"$f":"PQS!B28","v":"E003/031"},{"$f":"PQS!B29","v":"E003/032"},{"$f":"PQS!B30","v":"E003/033"},{"$f":"PQS!B31","v":"E003/034"},{"$f":"PQS!B32","v":"E003/036"},{"$f":"PQS!B33","v":"E003/038"},{"$f":"PQS!B34","v":"E003/044"},{"$f":"PQS!B35","v":"E003/046"},{"$f":"PQS!B36","v":"E003/047"},{"$f":"PQS!B37","v":"E003/051"},{"$f":"PQS!B38","v":"E003/062"},{"$f":"PQS!B39","v":"E003/063"},{"$f":"PQS!B40","v":"E003/064"},{"$f":"PQS!B41","v":"E003/065"},{"$f":"PQS!B42","v":"E003/066"},{"$f":"PQS!B43","v":"E003/070"},{"$f":"PQS!B44","v":"E003/072"},{"$f":"PQS!B45","v":"E003/079"},{"$f":"PQS!B46","v":"E003/080"},{"$f":"PQS!B47","v":"E003/081"},{"$f":"PQS!B48","v":"E003/082"},{"$f":"PQS!B49","v":"E003/083"},null,"Useful life"]
["[unit] Expected useful life",null,{"$f":"ILRUL","v":10},10,10,10,10,10,10,10,10,10,10,10,10,10,10,10,10,10,10,10,10,10,10,10,10,10,10,10,10,10,10,10,null,{"$f":"AVERAGE(C11:AH11)","v":10}]
["Solar panel expected useful life (where applicable)"]
["Battery expected useful life"]
["Installation kit price",null,{"$f":"IlrHardware","v":50},50,50,50,50,50,50,50,50,50,50,50,50,50,50,50,50,50,50,50,50,50,50,50,50,50,50,50,50,50,50,50,null,{"$f":"AVERAGE(C14:AH14)","v":50}]
[]
[]
["[unit] PARTS"]
["Number of parts needed for useful life per unit",null,null,null,null,null,null,null,null,null,null,null,null,null,null,null,null,null,null,null,null,null,null,null,null,null,null,null,null,null,null,null,null,null,null,"Average"]
["Compressor",null,1,1,1,1,1,1,1,1,1,1,1,1,1,1,1,1,1,1,1,1,1,1,1,1,1,1,1,1,1,1,1,1,null,{"$f":"AVERAGE(C19:AH19)","v":1}]
["Compressor controller",null,0,0,0,0,0,0,0,0,0,0,0,0,0,0,0,0,0,0,0,0,0,0,0,0,0,0,1,1,0,0,0,0,null,{"$f":"AVERAGE(C20:AH20)","v":6.25E-2}]
["Thermostat",null,1,1,1,1,1,1,1,1,1,1,1,1,1,1,1,1,1,0,0,1,1,1,1,1,0,1,1,1,0,0,0,0,null,0.78125]
["Control panel",null,1,1,0,0,0,0,1,0,0,0,0,0,0,1,0,1,0,1,1,0,0,0,0,0,1,0,1,1,1,1,1,1,null,0.4375]
["Sensor for e-thermostat",null,0,0,0,0,0,0,1,1,0,0,0,0,0,0,0,0,0,0,0,0,0,0,0,0,0,0,0,1,0,0,0,0,null,9.375E-2]
["Condensor + fan",null,1,1,1,0,0,1,1,1,0,0,0,0,0,1,1,1,1,1,1,1,0,0,0,0,1,0,0,1,0,0,0,1,null,0.5]
["Fan for compressor",null,0,0,1,0,0,1,0,0,0,0,0,0,0,0,0,0,0,0,0,0,0,0,0,0,0,0,0,0,0,0,0,0,null,6.25E-2]
["Switch",null,1,1,0,0,0,0,1,1,0,0,0,0,0,1,0,1,0,0,0,0,0,0,0,0,1,0,0,1,0,0,0,0,null,0.25]
["Voltage stabilizer",null,1,1,0,0,0,0,1,0,0,0,0,0,0,1,0,1,0,1,1,0,0,0,0,0,0,0,0,0,1,1,1,1,null,0.34375]
["Baskets",null,1,1,2,2,2,2,1,1,2,2,2,2,2,1,0,1,0,0,0,0,2,2,2,2,1,0,0,0,0,0,0,0,null,1.03125]
["Starter relay",null,0,0,1,1,1,1,1,1,1,1,1,1,1,0,0,0,0,1,1,0,1,1,1,1,1,0,0,0,1,1,1,1,null,0.6875]
["Starting capacitor",null,0,0,1,0,1,1,1,1,0,1,0,0,0,0,0,0,0,1,1,0,1,1,1,1,1,0,0,0,1,1,1,1,null,0.53125]
["Drier",null,1,1,1,1,1,1,1,1,1,1,1,1,1,1,0,1,0,0,0,0,1,1,1,1,1,0,0,1,0,0,0,0,null,0.65625]
["Fuse",null,0,0,0,0,0,0,0,0,0,0,0,0,0,0,0,0,0,0,0,0,0,0,0,0,1,0,0,0,0,0,0,0,null,3.125E-2]
["Hinge",null,1,1,1,2,1,1,2,2,1,1,1,1,1,1,0,1,0,0,0,0,0,0,1,1,2,0,0,0,0,0,0,0,null,0.6875]
["Hinge cover",null,1,1,0,0,0,0,1,1,0,0,0,0,0,1,0,1,0,1,1,0,2,2,0,0,1,0,0,0,1,1,1,1,null,0.53125]
["Thermometer",null,1,1,1,0,1,1,0,1,1,1,1,1,1,1,1,1,1,1,1,1,1,1,1,1,0,0,1,0,1,1,1,1,null,0.84375]
["Ice pack",null,0,0,0,0,0,0,1,1,0,0,0,0,0,1,0,0,0,0,0,0,0,0,0,0,0,0,0,0,0,0,0,0,null,9.375E-2]
["Handle",null,1,1,1,1,1,1,0,0,1,1,1,1,1,1,0,1,0,1,1,0,1,1,1,1,0,0,0,0,1,1,1,1,null,0.71875]
["Electrical wiring",null,1,1,0,0,0,0,0,0,0,0,0,0,0,1,0,1,0,0,0,0,0,0,0,0,0,0,0,1,0,0,0,0,null,0.15625]
["Evaporator",null,0,0,0,0,0,0,0,0,0,0,0,0,0,0,0,0,0,0,0,0,0,0,0,0,0,0,0,1,0,0,0,0,null,3.125E-2]
["Sensor cooler",null,0,0,0,0,0,0,0,0,0,0,0,0,0,0,0,0,0,0,0,0,0,0,0,0,1,0,0,0,0,0,0,0,null,3.125E-2]
["Display board",null,0,0,0,0,0,0,0,0,0,0,0,0,0,0,0,0,0,0,0,0,0,0,0,0,1,0,0,0,0,0,0,0,null,3.125E-2]
["Rechargeable battery",null,0,0,0,0,0,0,0,0,0,0,0,0,0,0,0,1,0,0,0,0,0,0,0,0,0,0,0,0,0,0,0,0,null,3.125E-2]
["Surge Protector",null,0,0,0,0,0,0,0,0,0,0,0,0,0,0,0,0,0,0,0,0,0,0,0,0,0,0,0,0,0,0,0,0,null,0]
["Transformer",null,0,0,1,0,0,1,0,0,0,0,0,0,0,0,0,0,0,0,0,0,0,0,0,0,0,0,0,1,0,0,0,0,null,9.375E-2]
["Lid",null,0,0,0,0,0,0,0,0,0,0,0,0,0,0,0,0,0,0,0,0,1,1,1,1,0,0,0,0,0,0,0,0,null,0.125]
["Refrigerant",null,0,0,1,1,1,1,0,0,1,1,1,0,1,0,0,0,0,0,0,0,0,0,0,0,0,0,0,0,0,0,0,0,null,0.25]
[]
["LABOR"]
[null,null,null,null,null,null,null,null,null,null,null,null,null,null,null,null,null,null,null,null,null,null,null,null,null,null,null,null,null,null,null,null,null,null,null,"Installation cost"]
["Installation labor cost (one time)",null,{"$f":"'Labor and Maintenance '!$J$22","v":198},{"$f":"'Labor and Maintenance '!$J$22","v":198},{"$f":"'Labor and Maintenance '!$J$22","v":198},{"$f":"'Labor and Maintenance '!$J$22","v":198},{"$f":"'Labor and Maintenance '!$J$22","v":198},{"$f":"'Labor and Maintenance '!$J$22","v":198},{"$f":"'Labor and Maintenance '!$J$22","v":198},{"$f":"'Labor and Maintenance '!$J$22","v":198},{"$f":"'Labor and Maintenance '!$J$22","v":198},{"$f":"'Labor and Maintenance '!$J$22","v":198},{"$f":"'Labor and Maintenance '!$J$22","v":198},{"$f":"'Labor and Maintenance '!$J$22","v":198},{"$f":"'Labor and Maintenance '!$J$22","v":198},{"$f":"'Labor and Maintenance '!$J$22","v":198},{"$f":"'Labor and Maintenance '!$J$22","v":198},{"$f":"'Labor and Maintenance '!$J$22","v":198},{"$f":"'Labor and Maintenance '!$J$22","v":198},{"$f":"'Labor and Maintenance '!$J$22","v":198},{"$f":"'Labor and Maintenance '!$J$22","v":198},{"$f":"'Labor and Maintenance '!$J$22","v":198},{"$f":"'Labor and Maintenance '!$J$22","v":198},{"$f":"'Labor and Maintenance '!$J$22","v":198},{"$f":"'Labor and Maintenance '!$J$22","v":198},{"$f":"'Labor and Maintenance '!$J$22","v":198},{"$f":"'Labor and Maintenance '!$J$22","v":198},{"$f":"'Labor and Maintenance '!$J$22","v":198},{"$f":"'Labor and Maintenance '!$J$22","v":198},{"$f":"'Labor and Maintenance '!$J$22","v":198},{"$f":"'Labor and Maintenance '!$J$22","v":198},{"$f":"'Labor and Maintenance '!$J$22","v":198},{"$f":"'Labor and Maintenance '!$J$22","v":198},{"$f":"'Labor and Maintenance '!$J$22","v":198},null,{"$f":"AVERAGE(C50:AH50)","v":198}]
[]
["Maintenance and repairs - FREQUENCY"]
["Expressed in frequency of occurrence (in years: quarterly = 0.25, annual = 1, every 5 years = 5, etc.)",null,null,null,null,null,null,null,null,null,null,null,null,null,null,null,null,null,null,null,null,null,null,null,null,null,null,null,null,null,null,null,null,null,null,"Routine maintenance frequency"]
["Frequency - Routine maintenance ",null,{"$f":"'Labor and Maintenance '!$E$46","v":0.25},{"$f":"'Labor and Maintenance '!$E$46","v":0.25},{"$f":"'Labor and Maintenance '!$E$46","v":0.25},{"$f":"'Labor and Maintenance '!$E$46","v":0.25},{"$f":"'Labor and Maintenance '!$E$46","v":0.25},{"$f":"'Labor and Maintenance '!$E$46","v":0.25},{"$f":"'Labor and Maintenance '!$E$46","v":0.25},{"$f":"'Labor and Maintenance '!$E$46","v":0.25},{"$f":"'Labor and Maintenance '!$E$46","v":0.25},{"$f":"'Labor and Maintenance '!$E$46","v":0.25},{"$f":"'Labor and Maintenance '!$E$46","v":0.25},{"$f":"'Labor and Maintenance '!$E$46","v":0.25},{"$f":"'Labor and Maintenance '!$E$46","v":0.25},{"$f":"'Labor and Maintenance '!$E$46","v":0.25},{"$f":"'Labor and Maintenance '!$E$46","v":0.25},{"$f":"'Labor and Maintenance '!$E$46","v":0.25},{"$f":"'Labor and Maintenance '!$E$46","v":0.25},{"$f":"'Labor and Maintenance '!$E$46","v":0.25},{"$f":"'Labor and Maintenance '!$E$46","v":0.25},{"$f":"'Labor and Maintenance '!$E$46","v":0.25},{"$f":"'Labor and Maintenance '!$E$46","v":0.25},{"$f":"'Labor and Maintenance '!$E$46","v":0.25},{"$f":"'Labor and Maintenance '!$E$46","v":0.25},{"$f":"'Labor and Maintenance '!$E$46","v":0.25},{"$f":"'Labor and Maintenance '!$E$46","v":0.25},{"$f":"'Labor and Maintenance '!$E$46","v":0.25},{"$f":"'Labor and Maintenance '!$E$46","v":0.25},{"$f":"'Labor and Maintenance '!$E$46","v":0.25},{"$f":"'Labor and Maintenance '!$E$46","v":0.25},{"$f":"'Labor and Maintenance '!$E$46","v":0.25},{"$f":"'Labor and Maintenance '!$E$46","v":0.25},{"$f":"'Labor and Maintenance '!$E$46","v":0.25},null,{"$f":"AVERAGE(C54:AH54)","v":0.25}]
[]
["Major Repairs (by a technician with tools)",null,null,null,null,null,null,null,null,null,null,null,null,null,null,null,null,null,null,null,null,null,null,null,null,null,null,null,null,null,null,null,null,null,null,"Major repair frequency"]
["Frequency - Onsite repairs 1",null,{"$f":"'Labor and Maintenance '!$E$47","v":1},{"$f":"'Labor and Maintenance '!$E$47","v":1},{"$f":"'Labor and Maintenance '!$E$47","v":1},{"$f":"'Labor and Maintenance '!$E$47","v":1},{"$f":"'Labor and Maintenance '!$E$47","v":1},{"$f":"'Labor and Maintenance '!$E$47","v":1},{"$f":"'Labor and Maintenance '!$E$47","v":1},{"$f":"'Labor and Maintenance '!$E$47","v":1},{"$f":"'Labor and Maintenance '!$E$47","v":1},{"$f":"'Labor and Maintenance '!$E$47","v":1},{"$f":"'Labor and Maintenance '!$E$47","v":1},{"$f":"'Labor and Maintenance '!$E$47","v":1},{"$f":"'Labor and Maintenance '!$E$47","v":1},{"$f":"'Labor and Maintenance '!$E$47","v":1},{"$f":"'Labor and Maintenance '!$E$47","v":1},{"$f":"'Labor and Maintenance '!$E$47","v":1},{"$f":"'Labor and Maintenance '!$E$47","v":1},{"$f":"'Labor and Maintenance '!$E$47","v":1},{"$f":"'Labor and Maintenance '!$E$47","v":1},{"$f":"'Labor and Maintenance '!$E$47","v":1},{"$f":"'Labor and Maintenance '!$E$47","v":1},{"$f":"'Labor and Maintenance '!$E$47","v":1},{"$f":"'Labor and Maintenance '!$E$47","v":1},{"$f":"'Labor and Maintenance '!$E$47","v":1},{"$f":"'Labor and Maintenance '!$E$47","v":1},{"$f":"'Labor and Maintenance '!$E$47","v":1},{"$f":"'Labor and Maintenance '!$E$47","v":1},{"$f":"'Labor and Maintenance '!$E$47","v":1},{"$f":"'Labor and Maintenance '!$E$47","v":1},{"$f":"'Labor and Maintenance '!$E$47","v":1},{"$f":"'Labor and Maintenance '!$E$47","v":1},{"$f":"'Labor and Maintenance '!$E$47","v":1},null,{"$f":"AVERAGE(C57:AH57)","v":1}]
["Frequency - Onsite repairs 2",null,{"$f":"'Labor and Maintenance '!$E$48","v":0},{"$f":"'Labor and Maintenance '!$E$48","v":0},{"$f":"'Labor and Maintenance '!$E$48","v":0},{"$f":"'Labor and Maintenance '!$E$48","v":0},{"$f":"'Labor and Maintenance '!$E$48","v":0},{"$f":"'Labor and Maintenance '!$E$48","v":0},{"$f":"'Labor and Maintenance '!$E$48","v":0},{"$f":"'Labor and Maintenance '!$E$48","v":0},{"$f":"'Labor and Maintenance '!$E$48","v":0},{"$f":"'Labor and Maintenance '!$E$48","v":0},{"$f":"'Labor and Maintenance '!$E$48","v":0},{"$f":"'Labor and Maintenance '!$E$48","v":0},{"$f":"'Labor and Maintenance '!$E$48","v":0},{"$f":"'Labor and Maintenance '!$E$48","v":0},{"$f":"'Labor and Maintenance '!$E$48","v":0},{"$f":"'Labor and Maintenance '!$E$48","v":0},{"$f":"'Labor and Maintenance '!$E$48","v":0},{"$f":"'Labor and Maintenance '!$E$48","v":0},{"$f":"'Labor and Maintenance '!$E$48","v":0},{"$f":"'Labor and Maintenance '!$E$48","v":0},{"$f":"'Labor and Maintenance '!$E$48","v":0},{"$f":"'Labor and Maintenance '!$E$48","v":0},{"$f":"'Labor and Maintenance '!$E$48","v":0},{"$f":"'Labor and Maintenance '!$E$48","v":0},{"$f":"'Labor and Maintenance '!$E$48","v":0},{"$f":"'Labor and Maintenance '!$E$48","v":0},{"$f":"'Labor and Maintenance '!$E$48","v":0},{"$f":"'Labor and Maintenance '!$E$48","v":0},{"$f":"'Labor and Maintenance '!$E$48","v":0},{"$f":"'Labor and Maintenance '!$E$48","v":0},{"$f":"'Labor and Maintenance '!$E$48","v":0},{"$f":"'Labor and Maintenance '!$E$48","v":0},null,{"$f":"AVERAGE(C58:AA58)","v":0}]
["Frequency - Major repairs in a workshop by a technician",null,{"$f":"'Labor and Maintenance '!$E$49","v":3},{"$f":"'Labor and Maintenance '!$E$49","v":3},{"$f":"'Labor and Maintenance '!$E$49","v":3},{"$f":"'Labor and Maintenance '!$E$49","v":3},{"$f":"'Labor and Maintenance '!$E$49","v":3},{"$f":"'Labor and Maintenance '!$E$49","v":3},{"$f":"'Labor and Maintenance '!$E$49","v":3},{"$f":"'Labor and Maintenance '!$E$49","v":3},{"$f":"'Labor and Maintenance '!$E$49","v":3},{"$f":"'Labor and Maintenance '!$E$49","v":3},{"$f":"'Labor and Maintenance '!$E$49","v":3},{"$f":"'Labor and Maintenance '!$E$49","v":3},{"$f":"'Labor and Maintenance '!$E$49","v":3},{"$f":"'Labor and Maintenance '!$E$49","v":3},{"$f":"'Labor and Maintenance '!$E$49","v":3},{"$f":"'Labor and Maintenance '!$E$49","v":3},{"$f":"'Labor and Maintenance '!$E$49","v":3},{"$f":"'Labor and Maintenance '!$E$49","v":3},{"$f":"'Labor and Maintenance '!$E$49","v":3},{"$f":"'Labor and Maintenance '!$E$49","v":3},{"$f":"'Labor and Maintenance '!$E$49","v":3},{"$f":"'Labor and Maintenance '!$E$49","v":3},{"$f":"'Labor and Maintenance '!$E$49","v":3},{"$f":"'Labor and Maintenance '!$E$49","v":3},{"$f":"'Labor and Maintenance '!$E$49","v":3},{"$f":"'Labor and Maintenance '!$E$49","v":3},{"$f":"'Labor and Maintenance '!$E$49","v":3},{"$f":"'Labor and Maintenance '!$E$49","v":3},{"$f":"'Labor and Maintenance '!$E$49","v":3},{"$f":"'Labor and Maintenance '!$E$49","v":3},{"$f":"'Labor and Maintenance '!$E$49","v":3},{"$f":"'Labor and Maintenance '!$E$49","v":3},null,{"$f":"AVERAGE(C59:AH59)","v":3}]
[]
["Maintenance and repairs - HOURS"]
["Expressed in number of hours needed to complete"]
["Hours - Routine maintenance",null,{"$f":"IlrMaintHrs1","v":3},3,3,3,3,3,3,3,3,3,3,3,3,3,3,3,3,3,3,3,3,3,3,3,3,3,3,3,3,3,3,3,null,{"$f":"AVERAGE(C63:AA63)","v":3}]
[]
["Major repairs (by a technician with tools)"]
["Hours - Onsite repairs 1",null,{"$f":"'Labor and Maintenance '!$C$47","v":1},{"$f":"'Labor and Maintenance '!$C$47","v":1},{"$f":"'Labor and Maintenance '!$C$47","v":1},{"$f":"'Labor and Maintenance '!$C$47","v":1},{"$f":"'Labor and Maintenance '!$C$47","v":1},{"$f":"'Labor and Maintenance '!$C$47","v":1},{"$f":"'Labor and Maintenance '!$C$47","v":1},{"$f":"'Labor and Maintenance '!$C$47","v":1},{"$f":"'Labor and Maintenance '!$C$47","v":1},{"$f":"'Labor and Maintenance '!$C$47","v":1},{"$f":"'Labor and Maintenance '!$C$47","v":1},{"$f":"'Labor and Maintenance '!$C$47","v":1},{"$f":"'Labor and Maintenance '!$C$47","v":1},{"$f":"'Labor and Maintenance '!$C$47","v":1},{"$f":"'Labor and Maintenance '!$C$47","v":1},{"$f":"'Labor and Maintenance '!$C$47","v":1},{"$f":"'Labor and Maintenance '!$C$47","v":1},{"$f":"'Labor and Maintenance '!$C$47","v":1},{"$f":"'Labor and Maintenance '!$C$47","v":1},{"$f":"'Labor and Maintenance '!$C$47","v":1},{"$f":"'Labor and Maintenance '!$C$47","v":1},{"$f":"'Labor and Maintenance '!$C$47","v":1},{"$f":"'Labor and Maintenance '!$C$47","v":1},{"$f":"'Labor and Maintenance '!$C$47","v":1},{"$f":"'Labor and Maintenance '!$C$47","v":1},{"$f":"'Labor and Maintenance '!$C$47","v":1},{"$f":"'Labor and Maintenance '!$C$47","v":1},{"$f":"'Labor and Maintenance '!$C$47","v":1},{"$f":"'Labor and Maintenance '!$C$47","v":1},{"$f":"'Labor and Maintenance '!$C$47","v":1},{"$f":"'Labor and Maintenance '!$C$47","v":1},{"$f":"'Labor and Maintenance '!$C$47","v":1},null,{"$f":"AVERAGE(C66:AA66)","v":1}]
["Hours - Onsite repairs 2",null,{"$f":"'Labor and Maintenance '!$C$48","v":0},{"$f":"'Labor and Maintenance '!$C$48","v":0},{"$f":"'Labor and Maintenance '!$C$48","v":0},{"$f":"'Labor and Maintenance '!$C$48","v":0},{"$f":"'Labor and Maintenance '!$C$48","v":0},{"$f":"'Labor and Maintenance '!$C$48","v":0},{"$f":"'Labor and Maintenance '!$C$48","v":0},{"$f":"'Labor and Maintenance '!$C$48","v":0},{"$f":"'Labor and Maintenance '!$C$48","v":0},{"$f":"'Labor and Maintenance '!$C$48","v":0},{"$f":"'Labor and Maintenance '!$C$48","v":0},{"$f":"'Labor and Maintenance '!$C$48","v":0},{"$f":"'Labor and Maintenance '!$C$48","v":0},{"$f":"'Labor and Maintenance '!$C$48","v":0},{"$f":"'Labor and Maintenance '!$C$48","v":0},{"$f":"'Labor and Maintenance '!$C$48","v":0},{"$f":"'Labor and Maintenance '!$C$48","v":0},{"$f":"'Labor and Maintenance '!$C$48","v":0},{"$f":"'Labor and Maintenance '!$C$48","v":0},{"$f":"'Labor and Maintenance '!$C$48","v":0},{"$f":"'Labor and Maintenance '!$C$48","v":0},{"$f":"'Labor and Maintenance '!$C$48","v":0},{"$f":"'Labor and Maintenance '!$C$48","v":0},{"$f":"'Labor and Maintenance '!$C$48","v":0},{"$f":"'Labor and Maintenance '!$C$48","v":0},{"$f":"'Labor and Maintenance '!$C$48","v":0},{"$f":"'Labor and Maintenance '!$C$48","v":0},{"$f":"'Labor and Maintenance '!$C$48","v":0},{"$f":"'Labor and Maintenance '!$C$48","v":0},{"$f":"'Labor and Maintenance '!$C$48","v":0},{"$f":"'Labor and Maintenance '!$C$48","v":0},{"$f":"'Labor and Maintenance '!$C$48","v":0},null,{"$f":"AVERAGE(C67:AA67)","v":0}]
["Hours - Major repairs in a workshop by a technician",null,{"$f":"IlrMaintHrs2","v":4},4,4,4,4,4,4,4,4,4,4,4,4,4,4,4,4,4,4,4,4,4,4,4,4,4,4,4,4,4,4,4,null,4]

{"sheet":"SDD","index":19,"n_rows":67,"n_cols":36,"rows_kept":67,"cut":false,"hidden":false,"merged":[]}
["Technology Assumptions - Solar direct-drive"]
["Technology",null,{"$f":"PQS!A53","v":"SDD"},{"$f":"PQS!A54","v":"SDD"},{"$f":"PQS!A55","v":"SDD"},{"$f":"PQS!A56","v":"SDD"},{"$f":"PQS!A57","v":"SDD"},{"$f":"PQS!A58","v":"SDD"},{"$f":"PQS!A59","v":"SDD"},{"$f":"PQS!A60","v":"SDD"},{"$f":"PQS!A61","v":"SDD"},{"$f":"PQS!A62","v":"SDD"},{"$f":"PQS!A63","v":"SDD"},{"$f":"PQS!A64","v":"SDD"},{"$f":"PQS!A65","v":"SDD"},{"$f":"PQS!A66","v":"SDD"},{"$f":"PQS!A67","v":"SDD"},{"$f":"PQS!A68","v":"SDD"},{"$f":"PQS!A69","v":"SDD"},{"$f":"PQS!A70","v":"SDD"},{"$f":"PQS!A71","v":"SDD"},{"$f":"PQS!A72","v":"SDD"},{"$f":"PQS!A73","v":"SDD"},{"$f":"PQS!A74","v":"SDD"},{"$f":"PQS!A75","v":"SDD"},{"$f":"PQS!A76","v":"SDD"},{"$f":"PQS!A77","v":"SDD"},{"$f":"PQS!A78","v":"SDD"},{"$f":"PQS!A79","v":"SDD"},{"$f":"PQS!A80","v":"SDD"},{"$f":"PQS!A81","v":"SDD"},{"$f":"PQS!A82","v":"SDD"},{"$f":"PQS!A83","v":"SDD"},{"$f":"PQS!A84","v":"SDD"},null,"AVERAGES"]
["Manufacturer",null,{"$f":"PQS!F53","v":"Vestfrost"},{"$f":"PQS!F54","v":"Haier"},{"$f":"PQS!F55","v":"SunDanzer"},{"$f":"PQS!F56","v":"B Medical"},{"$f":"PQS!F57","v":"B Medical"},{"$f":"PQS!F58","v":"Zero"},{"$f":"PQS!F59","v":"SunDanzer"},{"$f":"PQS!F60","v":"Dulas Solar"},{"$f":"PQS!F61","v":"Vestfrost"},{"$f":"PQS!F62","v":"B Medical"},{"$f":"PQS!F63","v":"B Medical"},{"$f":"PQS!F64","v":"B Medical"},{"$f":"PQS!F65","v":"Dulas Solar"},{"$f":"PQS!F66","v":"Godrej & Boyce "},{"$f":"PQS!F67","v":"Godrej & Boyce "},{"$f":"PQS!F68","v":"Zero"},{"$f":"PQS!F69","v":"Vestfrost"},{"$f":"PQS!F70","v":"Vestfrost"},{"$f":"PQS!F71","v":"Zero"},{"$f":"PQS!F72","v":"Haier"},{"$f":"PQS!F73","v":"Haier"},{"$f":"PQS!F74","v":"Dulas Solar"},{"$f":"PQS!F75","v":"Dulas Solar"},{"$f":"PQS!F76","v":"B Medical"},{"$f":"PQS!F77","v":"B Medical"},{"$f":"PQS!F78","v":"Vestfrost"},{"$f":"PQS!F79","v":"Haier"},{"$f":"PQS!F80","v":"Haier"},{"$f":"PQS!F81","v":"Haier"},{"$f":"PQS!F82","v":"B Medical"},{"$f":"PQS!F83","v":"Dulas Solar"},{"$f":"PQS!F84","v":"Dulas Solar"}]
["Model",null,{"$f":"PQS!E53","v":"MKS 044"},{"$f":"PQS!E54","v":"HTC-60"},{"$f":"PQS!E55","v":"BFRV 55*"},{"$f":"PQS!E56","v":"TCW 3000 SDD"},{"$f":"PQS!E57","v":"TCW 2000 SDD"},{"$f":"PQS!E58","v":"ZLF 100 DC*"},{"$f":"PQS!E59","v":"BFRV 15 SDD*"},{"$f":"PQS!E60","v":"VC 200 SDD*"},{"$f":"PQS!E61","v":"VLS 054 SDD*"},{"$f":"PQS!E62","v":"TCW 40 SDD*"},{"$f":"PQS!E63","v":"TCW 2043 SDD*"},{"$f":"PQS!E64","v":"TCW 3043 SDD*"},{"$f":"PQS!E65","v":"VC 150 SDD*"},{"$f":"PQS!E66","v":"GVR 50DC SDD*"},{"$f":"PQS!E67","v":"GVR 100DC (SureChill)*"},{"$f":"PQS!E68","v":"ZLF 150DC*"},{"$f":"PQS!E69","v":"VLS 094 SDD*"},{"$f":"PQS!E70","v":"VLS 154 SDD*"},{"$f":"PQS!E71","v":"ZLF 30DC SDD*"},{"$f":"PQS!E72","v":"HTC-60H"},{"$f":"PQS!E73","v":"HTCD-160*"},{"$f":"PQS!E74","v":"VC 110 SDD*"},{"$f":"PQS!E75","v":"VC 88 SDD*"},{"$f":"PQS!E76","v":"TCW 15R SDD*"},{"$f":"PQS!E77","v":"TCW 40R SDD*"},{"$f":"PQS!E78","v":"VLS 024 SDD*"},{"$f":"PQS!E79","v":"HTCD 90 SDD*"},{"$f":"PQS!E80","v":"HTC 40 SDD*"},{"$f":"PQS!E81","v":"HTC 110 SDD*"},{"$f":"PQS!E82","v":"TCW 15 SDD*"},{"$f":"PQS!E83","v":"VC 50 SDD*"},{"$f":"PQS!E84","v":"VC 60 SDD*"},null,"Capacity"]
["CCEOP",null,{"$f":"VLOOKUP(C4,PQS!$E:$G,COLUMN(PQS!$G$3)-COLUMN(PQS!$E$3)+1,FALSE)","v":"No"},{"$f":"VLOOKUP(D4,PQS!$E:$G,COLUMN(PQS!$G$3)-COLUMN(PQS!$E$3)+1,FALSE)","v":"No"},{"$f":"VLOOKUP(E4,PQS!$E:$G,COLUMN(PQS!$G$3)-COLUMN(PQS!$E$3)+1,FALSE)","v":"Yes"},{"$f":"VLOOKUP(F4,PQS!$E:$G,COLUMN(PQS!$G$3)-COLUMN(PQS!$E$3)+1,FALSE)","v":"No"},{"$f":"VLOOKUP(G4,PQS!$E:$G,COLUMN(PQS!$G$3)-COLUMN(PQS!$E$3)+1,FALSE)","v":"No"},{"$f":"VLOOKUP(H4,PQS!$E:$G,COLUMN(PQS!$G$3)-COLUMN(PQS!$E$3)+1,FALSE)","v":"Yes"},{"$f":"VLOOKUP(I4,PQS!$E:$G,COLUMN(PQS!$G$3)-COLUMN(PQS!$E$3)+1,FALSE)","v":"Yes"},{"$f":"VLOOKUP(J4,PQS!$E:$G,COLUMN(PQS!$G$3)-COLUMN(PQS!$E$3)+1,FALSE)","v":"Yes"},{"$f":"VLOOKUP(K4,PQS!$E:$G,COLUMN(PQS!$G$3)-COLUMN(PQS!$E$3)+1,FALSE)","v":"Yes"},{"$f":"VLOOKUP(L4,PQS!$E:$G,COLUMN(PQS!$G$3)-COLUMN(PQS!$E$3)+1,FALSE)","v":"Yes"},{"$f":"VLOOKUP(M4,PQS!$E:$G,COLUMN(PQS!$G$3)-COLUMN(PQS!$E$3)+1,FALSE)","v":"Yes"},{"$f":"VLOOKUP(N4,PQS!$E:$G,COLUMN(PQS!$G$3)-COLUMN(PQS!$E$3)+1,FALSE)","v":"Yes"},{"$f":"VLOOKUP(O4,PQS!$E:$G,COLUMN(PQS!$G$3)-COLUMN(PQS!$E$3)+1,FALSE)","v":"Yes"},{"$f":"VLOOKUP(P4,PQS!$E:$G,COLUMN(PQS!$G$3)-COLUMN(PQS!$E$3)+1,FALSE)","v":"Yes"},{"$f":"VLOOKUP(Q4,PQS!$E:$G,COLUMN(PQS!$G$3)-COLUMN(PQS!$E$3)+1,FALSE)","v":"Yes"},{"$f":"VLOOKUP(R4,PQS!$E:$G,COLUMN(PQS!$G$3)-COLUMN(PQS!$E$3)+1,FALSE)","v":"Yes"},{"$f":"VLOOKUP(S4,PQS!$E:$G,COLUMN(PQS!$G$3)-COLUMN(PQS!$E$3)+1,FALSE)","v":"Yes"},{"$f":"VLOOKUP(T4,PQS!$E:$G,COLUMN(PQS!$G$3)-COLUMN(PQS!$E$3)+1,FALSE)","v":"Yes"},{"$f":"VLOOKUP(U4,PQS!$E:$G,COLUMN(PQS!$G$3)-COLUMN(PQS!$E$3)+1,FALSE)","v":"Yes"},{"$f":"VLOOKUP(V4,PQS!$E:$G,COLUMN(PQS!$G$3)-COLUMN(PQS!$E$3)+1,FALSE)","v":"No"},{"$f":"VLOOKUP(W4,PQS!$E:$G,COLUMN(PQS!$G$3)-COLUMN(PQS!$E$3)+1,FALSE)","v":"Yes"},{"$f":"VLOOKUP(X4,PQS!$E:$G,COLUMN(PQS!$G$3)-COLUMN(PQS!$E$3)+1,FALSE)","v":"Yes"},{"$f":"VLOOKUP(Y4,PQS!$E:$G,COLUMN(PQS!$G$3)-COLUMN(PQS!$E$3)+1,FALSE)","v":"Yes"},{"$f":"VLOOKUP(Z4,PQS!$E:$G,COLUMN(PQS!$G$3)-COLUMN(PQS!$E$3)+1,FALSE)","v":"Yes"},{"$f":"VLOOKUP(AA4,PQS!$E:$G,COLUMN(PQS!$G$3)-COLUMN(PQS!$E$3)+1,FALSE)","v":"Yes"},{"$f":"VLOOKUP(AB4,PQS!$E:$G,COLUMN(PQS!$G$3)-COLUMN(PQS!$E$3)+1,FALSE)","v":"Yes"},{"$f":"VLOOKUP(AC4,PQS!$E:$G,COLUMN(PQS!$G$3)-COLUMN(PQS!$E$3)+1,FALSE)","v":"Yes"},{"$f":"VLOOKUP(AD4,PQS!$E:$G,COLUMN(PQS!$G$3)-COLUMN(PQS!$E$3)+1,FALSE)","v":"Yes"},{"$f":"VLOOKUP(AE4,PQS!$E:$G,COLUMN(PQS!$G$3)-COLUMN(PQS!$E$3)+1,FALSE)","v":"Yes"},{"$f":"VLOOKUP(AF4,PQS!$E:$G,COLUMN(PQS!$G$3)-COLUMN(PQS!$E$3)+1,FALSE)","v":"Yes"},{"$f":"VLOOKUP(AG4,PQS!$E:$G,COLUMN(PQS!$G$3)-COLUMN(PQS!$E$3)+1,FALSE)","v":"Yes"},{"$f":"VLOOKUP(AH4,PQS!$E:$G,COLUMN(PQS!$G$3)-COLUMN(PQS!$E$3)+1,FALSE)","v":"Yes"}]
["Net vaccine storage capacity",null,{"$f":"PQS!I53","v":19.5},{"$f":"PQS!I54","v":21},{"$f":"PQS!I55","v":54.5},{"$f":"PQS!I56","v":156},{"$f":"PQS!I57","v":99},{"$f":"PQS!I58","v":99},{"$f":"PQS!I59","v":15},{"$f":"PQS!I60","v":132},{"$f":"PQS!I61","v":55.5},{"$f":"PQS!I62","v":36},{"$f":"PQS!I63","v":70},{"$f":"PQS!I64","v":89},{"$f":"PQS!I65","v":102},{"$f":"PQS!I66","v":46.5},{"$f":"PQS!I67","v":99},{"$f":"PQS!I68","v":128},{"$f":"PQS!I69","v":92},{"$f":"PQS!I70","v":170},{"$f":"PQS!I71","v":27},{"$f":"PQS!I72","v":21},{"$f":"PQS!I73","v":100},{"$f":"PQS!I74","v":110},{"$f":"PQS!I75","v":88},{"$f":"PQS!I76","v":16},{"$f":"PQS!I77","v":36},{"$f":"PQS!I78","v":25.5},{"$f":"PQS!I79","v":37.5},{"$f":"PQS!I80","v":22.5},{"$f":"PQS!I81","v":59},{"$f":"PQS!I82","v":16},{"$f":"PQS!I83","v":52.5},{"$f":"PQS!I84","v":57},null,{"$f":"AVERAGE(C6:AH6)","v":67.25}]
["Waterpack freezing capacity",null,{"$f":"PQS!K53","v":0},{"$f":"PQS!K54","v":0},{"$f":"PQS!K55","v":0},{"$f":"PQS!K56","v":0},{"$f":"PQS!K57","v":2.4},{"$f":"PQS!K58","v":0},{"$f":"PQS!K59","v":0},{"$f":"PQS!K60","v":0},{"$f":"PQS!K61","v":0},{"$f":"PQS!K62","v":1.8},{"$f":"PQS!K63","v":2.5},{"$f":"PQS!K64","v":0},{"$f":"PQS!K65","v":2.04},{"$f":"PQS!K66","v":0},{"$f":"PQS!K67","v":0},{"$f":"PQS!K68","v":0},{"$f":"PQS!K69","v":0},{"$f":"PQS!K70","v":0},{"$f":"PQS!K71","v":0},{"$f":"PQS!K72","v":0},{"$f":"PQS!K73","v":2.08},{"$f":"PQS!K74","v":0},{"$f":"PQS!K75","v":0},{"$f":"PQS!K76","v":0},{"$f":"PQS!K77","v":0},{"$f":"PQS!K78","v":0},{"$f":"PQS!K79","v":2.08},{"$f":"PQS!K80","v":0},{"$f":"PQS!K81","v":0},{"$f":"PQS!K82","v":1.97},{"$f":"PQS!K83","v":0},{"$f":"PQS!K84","v":2.4},null,{"$f":"AVERAGE(C7:AH7)","v":0.53968749999999999}]
[]
["HARDWARE"]
["[Unit]",null,{"$f":"PQS!B53","v":"E003/009"},{"$f":"PQS!B54","v":"E003/029"},{"$f":"PQS!B55","v":"E003/020"},{"$f":"PQS!B56","v":"E003/030"},{"$f":"PQS!B57","v":"E003/035"},{"$f":"PQS!B58","v":"E003/037"},{"$f":"PQS!B59","v":"E003/039"},{"$f":"PQS!B60","v":"E003/040"},{"$f":"PQS!B61","v":"E003/041"},{"$f":"PQS!B62","v":"E003/042"},{"$f":"PQS!B63","v":"E003/043"},{"$f":"PQS!B64","v":"E003/045"},{"$f":"PQS!B65","v":"E003/048"},{"$f":"PQS!B66","v":"E003/049"},{"$f":"PQS!B67","v":"E003/050"},{"$f":"PQS!B68","v":"E003/052"},{"$f":"PQS!B69","v":"E003/053"},{"$f":"PQS!B70","v":"E003/054"},{"$f":"PQS!B71","v":"E003/055"},{"$f":"PQS!B72","v":"E003/056"},{"$f":"PQS!B73","v":"E003/057"},{"$f":"PQS!B74","v":"E003/058"},{"$f":"PQS!B75","v":"E003/059"},{"$f":"PQS!B76","v":"E003/067"},{"$f":"PQS!B77","v":"E003/068"},{"$f":"PQS!B78","v":"E003/069"},{"$f":"PQS!B79","v":"E003/074"},{"$f":"PQS!B80","v":"E003/075"},{"$f":"PQS!B81","v":"E003/076"},{"$f":"PQS!B82","v":"E003/077"},{"$f":"PQS!B83","v":"E003/078"},{"$f":"PQS!B84","v":"E003/084"},null,"Useful life"]
["[unit] Expected useful life",null,{"$f":"SlrChlEquipYrs","v":10},10,10,10,10,10,10,10,10,10,10,10,10,10,10,10,10,10,10,10,10,10,10,10,10,10,10,10,10,10,10,10,null,{"$f":"AVERAGE(C11:AH11)","v":10}]
["Solar panel expected useful life (where applicable)",null,10,10,10,10,10,10,10,10,10,10,10,10,10,10,10,10,10,10,10,10,10,10,10,10,10,10,10,10,10,10,10,10,null,{"$f":"AVERAGE(C12:AH12)","v":10}]
["Battery expected useful life"]
["Installation kit price",null,{"$f":"SlrChlHardware","v":120},120,120,120,120,120,120,120,120,120,120,120,120,120,120,120,120,120,120,120,120,120,120,120,120,120,120,120,120,120,120,120,null,{"$f":"AVERAGE(C14:AH14)","v":120}]
[]
[]
["[unit] PARTS"]
["Number of parts needed for useful life per unit",null,null,null,null,null,null,null,null,null,null,null,null,null,null,null,null,null,null,null,null,null,null,null,null,null,null,null,null,null,null,null,null,null,null,"Average"]
["Compressor",null,1,1,1,1,1,1,1,0,1,1,1,1,0,1,1,1,1,1,1,1,1,0,0,1,1,1,1,1,1,1,1,1,null,{"$f":"AVERAGE(C19:AH19)","v":0.875}]
["Thermostat",null,2,1,1,1,1,1,1,0,1,1,1,1,0,1,1,1,1,1,1,1,1,0,0,0,0,1,1,1,1,0,0,0,null,0.75]
["Compressor controller",null,1,0,1,0,0,1,1,1,1,1,0,0,1,0,0,1,1,1,1,0,0,1,1,0,0,1,0,0,0,0,1,1,null,0.53125]
["Control panel",null,0,1,0,1,1,0,0,0,0,1,1,1,0,0,0,0,0,0,0,1,0,0,0,1,1,0,0,0,0,1,0,0,null,0.3125]
["Sensor for e-thermostat",null,0,1,0,1,1,0,0,0,0,1,1,1,0,0,0,0,0,0,0,1,1,0,0,0,0,0,1,1,1,0,0,0,null,0.34375]
["Condensor + fan",null,1,1,0,1,1,1,0,0,1,1,1,1,1,1,1,1,1,1,1,1,1,0,0,1,1,1,1,1,1,1,0,1,null,0.8125]
["E Box",null,0,0,0,1,1,0,0,0,0,1,1,1,0,0,0,0,0,0,0,0,0,0,0,1,1,0,0,0,0,1,0,0,null,0.25]
["Switch",null,0,1,1,1,1,0,1,0,0,1,1,1,0,0,0,0,0,0,0,1,1,0,0,1,1,0,1,1,1,1,1,1,null,0.5625]
["Baskets",null,1,1,0,1,1,0,0,0,1,1,1,1,0,0,0,0,1,1,0,1,1,0,0,1,1,1,1,1,1,0,0,0,null,{"$f":"AVERAGE(C27:AH27)","v":0.5625}]
["Drier",null,1,1,1,1,1,0,1,0,1,1,1,1,0,0,0,0,1,1,0,1,1,0,0,1,1,1,1,1,1,0,0,0,null,0.625]
["Fuse",null,0,0,0,1,1,0,0,0,0,1,1,1,0,0,0,0,0,0,0,0,0,0,0,1,1,0,0,0,0,0,0,0,null,0.21875]
["Hinge",null,1,1,1,2,2,0,1,0,1,1,2,2,0,0,0,0,1,1,0,1,1,0,0,1,1,1,1,1,1,0,0,0,null,0.75]
["Hinge cover",null,0,1,1,1,1,0,1,0,0,1,1,1,0,0,0,0,0,0,0,1,0,0,0,1,1,0,1,1,1,0,1,0,null,0.46875]
["Ice pack",null,0,1,0,1,1,0,0,0,0,1,1,1,0,0,0,0,0,0,0,1,0,0,0,1,1,0,1,0,0,0,0,0,null,0.3125]
["Thermometer",null,1,1,1,0,0,0,1,1,1,0,0,0,1,0,0,0,1,1,0,1,1,1,1,0,0,1,1,1,1,0,2,0,null,0.59375]
["Handle",null,1,1,1,0,0,0,1,0,1,0,0,0,0,0,0,0,1,1,0,1,1,0,0,0,0,1,1,1,1,0,0,0,null,0.40625]
["Rechargeable battery",null,0,0,0,0,0,0,0,0,0,0,0,0,0,0,0,0,0,0,0,1,0,0,0,0,0,0,0,0,0,0,0,0,null,3.125E-2]
["Temperature probe",null,0,0,0,0,0,0,0,1,0,0,0,0,1,0,0,0,0,0,0,0,0,1,1,0,0,0,0,0,0,0,2,1,null,0.21875]
["Electrical heater",null,0,0,0,0,0,0,0,0,0,1,0,0,0,0,0,0,0,0,0,0,0,0,0,0,1,0,0,0,0,0,0,0,null,6.25E-2]
["Thermocouple",null,0,0,0,0,0,0,0,0,0,0,0,0,0,0,0,0,0,0,0,0,0,0,0,1,1,0,0,0,0,0,0,0,null,6.25E-2]
["SDD controller",null,0,0,0,1,1,0,0,1,0,0,1,1,1,0,0,0,0,0,0,0,0,1,1,0,0,0,0,0,0,0,1,1,null,0.3125]
["Sensor cooler",null,0,0,0,0,0,0,0,0,0,1,0,0,0,0,0,0,0,0,0,0,0,0,0,1,1,0,0,0,0,1,0,0,null,0.125]
["Sensor heater",null,0,0,0,0,0,0,0,0,0,1,0,0,0,0,0,0,0,0,0,0,0,0,0,1,1,0,0,0,0,1,0,0,null,0.125]
["Electrical wiring",null,0,1,0,0,0,0,0,0,0,0,0,0,0,0,0,0,0,0,0,1,1,0,0,0,0,0,1,1,1,0,0,0,null,0.1875]
["Display board",null,0,0,0,0,0,0,0,0,0,1,0,0,0,0,0,0,0,0,0,0,1,0,0,1,1,0,1,1,1,1,0,0,null,0.25]
["Freezer foam lid",null,0,0,0,0,0,0,0,0,0,0,0,0,0,0,0,0,0,0,0,0,0,0,0,0,0,0,0,0,0,0,0,1,null,3.125E-2]
["Surge protector",null,0,0,0,0,0,1,0,0,0,0,0,0,0,0,0,1,0,0,1,0,0,0,0,0,0,0,0,0,0,0,0,0,null,9.375E-2]
[]
["LABOR"]
[null,null,null,null,null,null,null,null,null,null,null,null,null,null,null,null,null,null,null,null,null,null,null,null,null,null,null,null,null,null,null,null,null,null,null,"Installation cost"]
["Installation labor cost (one time)",null,{"$f":"'Labor and Maintenance '!$J$18","v":492},{"$f":"'Labor and Maintenance '!$J$18","v":492},{"$f":"'Labor and Maintenance '!$J$18","v":492},{"$f":"'Labor and Maintenance '!$J$18","v":492},{"$f":"'Labor and Maintenance '!$J$18","v":492},{"$f":"'Labor and Maintenance '!$J$18","v":492},{"$f":"'Labor and Maintenance '!$J$18","v":492},{"$f":"'Labor and Maintenance '!$J$18","v":492},{"$f":"'Labor and Maintenance '!$J$18","v":492},{"$f":"'Labor and Maintenance '!$J$18","v":492},{"$f":"'Labor and Maintenance '!$J$18","v":492},{"$f":"'Labor and Maintenance '!$J$18","v":492},{"$f":"'Labor and Maintenance '!$J$18","v":492},{"$f":"'Labor and Maintenance '!$J$18","v":492},{"$f":"'Labor and Maintenance '!$J$18","v":492},{"$f":"'Labor and Maintenance '!$J$18","v":492},{"$f":"'Labor and Maintenance '!$J$18","v":492},{"$f":"'Labor and Maintenance '!$J$18","v":492},{"$f":"'Labor and Maintenance '!$J$18","v":492},{"$f":"'Labor and Maintenance '!$J$18","v":492},{"$f":"'Labor and Maintenance '!$J$18","v":492},{"$f":"'Labor and Maintenance '!$J$18","v":492},{"$f":"'Labor and Maintenance '!$J$18","v":492},{"$f":"'Labor and Maintenance '!$J$18","v":492},{"$f":"'Labor and Maintenance '!$J$18","v":492},{"$f":"'Labor and Maintenance '!$J$18","v":492},{"$f":"'Labor and Maintenance '!$J$18","v":492},{"$f":"'Labor and Maintenance '!$J$18","v":492},{"$f":"'Labor and Maintenance '!$J$18","v":492},{"$f":"'Labor and Maintenance '!$J$18","v":492},{"$f":"'Labor and Maintenance '!$J$18","v":492},{"$f":"'Labor and Maintenance '!$J$18","v":492},null,{"$f":"AVERAGE(C49:AH49)","v":492}]
[]
["Maintenance and repairs - FREQUENCY"]
["Expressed in frequency of occurrence (in years: quarterly = 0.25, annual = 1, every 5 years = 5, etc.)",null,null,null,null,null,null,null,null,null,null,null,null,null,null,null,null,null,null,null,null,null,null,null,null,null,null,null,null,null,null,null,null,null,null,"Routine maintenance frequency"]
["Frequency - Routine maintenance ",null,{"$f":"'Labor and Maintenance '!$E$59","v":8.3333333333333329E-2},{"$f":"'Labor and Maintenance '!$E$59","v":8.3333333333333329E-2},{"$f":"'Labor and Maintenance '!$E$59","v":8.3333333333333329E-2},{"$f":"'Labor and Maintenance '!$E$59","v":8.3333333333333329E-2},{"$f":"'Labor and Maintenance '!$E$59","v":8.3333333333333329E-2},{"$f":"'Labor and Maintenance '!$E$59","v":8.3333333333333329E-2},{"$f":"'Labor and Maintenance '!$E$59","v":8.3333333333333329E-2},{"$f":"'Labor and Maintenance '!$E$59","v":8.3333333333333329E-2},{"$f":"'Labor and Maintenance '!$E$59","v":8.3333333333333329E-2},{"$f":"'Labor and Maintenance '!$E$59","v":8.3333333333333329E-2},{"$f":"'Labor and Maintenance '!$E$59","v":8.3333333333333329E-2},{"$f":"'Labor and Maintenance '!$E$59","v":8.3333333333333329E-2},{"$f":"'Labor and Maintenance '!$E$59","v":8.3333333333333329E-2},{"$f":"'Labor and Maintenance '!$E$59","v":8.3333333333333329E-2},{"$f":"'Labor and Maintenance '!$E$59","v":8.3333333333333329E-2},{"$f":"'Labor and Maintenance '!$E$59","v":8.3333333333333329E-2},{"$f":"'Labor and Maintenance '!$E$59","v":8.3333333333333329E-2},{"$f":"'Labor and Maintenance '!$E$59","v":8.3333333333333329E-2},{"$f":"'Labor and Maintenance '!$E$59","v":8.3333333333333329E-2},{"$f":"'Labor and Maintenance '!$E$59","v":8.3333333333333329E-2},{"$f":"'Labor and Maintenance '!$E$59","v":8.3333333333333329E-2},{"$f":"'Labor and Maintenance '!$E$59","v":8.3333333333333329E-2},{"$f":"'Labor and Maintenance '!$E$59","v":8.3333333333333329E-2},{"$f":"'Labor and Maintenance '!$E$59","v":8.3333333333333329E-2},{"$f":"'Labor and Maintenance '!$E$59","v":8.3333333333333329E-2},{"$f":"'Labor and Maintenance '!$E$59","v":8.3333333333333329E-2},{"$f":"'Labor and Maintenance '!$E$59","v":8.3333333333333329E-2},{"$f":"'Labor and Maintenance '!$E$59","v":8.3333333333333329E-2},{"$f":"'Labor and Maintenance '!$E$59","v":8.3333333333333329E-2},{"$f":"'Labor and Maintenance '!$E$59","v":8.3333333333333329E-2},{"$f":"'Labor and Maintenance '!$E$59","v":8.3333333333333329E-2},{"$f":"'Labor and Maintenance '!$E$59","v":8.3333333333333329E-2},null,{"$f":"AVERAGE(C53:AH53)","v":8.3333333333333343E-2}]
[]
["Major Repairs (by a technician with tools)",null,null,null,null,null,null,null,null,null,null,null,null,null,null,null,null,null,null,null,null,null,null,null,null,null,null,null,null,null,null,null,null,null,null,"Major repair frequency"]
["Frequency - Onsite repairs 1",null,{"$f":"'Labor and Maintenance '!$E$60","v":1},{"$f":"'Labor and Maintenance '!$E$60","v":1},{"$f":"'Labor and Maintenance '!$E$60","v":1},{"$f":"'Labor and Maintenance '!$E$60","v":1},{"$f":"'Labor and Maintenance '!$E$60","v":1},{"$f":"'Labor and Maintenance '!$E$60","v":1},{"$f":"'Labor and Maintenance '!$E$60","v":1},{"$f":"'Labor and Maintenance '!$E$60","v":1},{"$f":"'Labor and Maintenance '!$E$60","v":1},{"$f":"'Labor and Maintenance '!$E$60","v":1},{"$f":"'Labor and Maintenance '!$E$60","v":1},{"$f":"'Labor and Maintenance '!$E$60","v":1},{"$f":"'Labor and Maintenance '!$E$60","v":1},{"$f":"'Labor and Maintenance '!$E$60","v":1},{"$f":"'Labor and Maintenance '!$E$60","v":1},{"$f":"'Labor and Maintenance '!$E$60","v":1},{"$f":"'Labor and Maintenance '!$E$60","v":1},{"$f":"'Labor and Maintenance '!$E$60","v":1},{"$f":"'Labor and Maintenance '!$E$60","v":1},{"$f":"'Labor and Maintenance '!$E$60","v":1},{"$f":"'Labor and Maintenance '!$E$60","v":1},{"$f":"'Labor and Maintenance '!$E$60","v":1},{"$f":"'Labor and Maintenance '!$E$60","v":1},{"$f":"'Labor and Maintenance '!$E$60","v":1},{"$f":"'Labor and Maintenance '!$E$60","v":1},{"$f":"'Labor and Maintenance '!$E$60","v":1},{"$f":"'Labor and Maintenance '!$E$60","v":1},{"$f":"'Labor and Maintenance '!$E$60","v":1},{"$f":"'Labor and Maintenance '!$E$60","v":1},{"$f":"'Labor and Maintenance '!$E$60","v":1},{"$f":"'Labor and Maintenance '!$E$60","v":1},{"$f":"'Labor and Maintenance '!$E$60","v":1},null,{"$f":"AVERAGE(C56:AH56)","v":1}]
["Frequency - Onsite repairs 2",null,{"$f":"'Labor and Maintenance '!$E$61","v":0},{"$f":"'Labor and Maintenance '!$E$61","v":0},{"$f":"'Labor and Maintenance '!$E$61","v":0},{"$f":"'Labor and Maintenance '!$E$61","v":0},{"$f":"'Labor and Maintenance '!$E$61","v":0},{"$f":"'Labor and Maintenance '!$E$61","v":0},{"$f":"'Labor and Maintenance '!$E$61","v":0},{"$f":"'Labor and Maintenance '!$E$61","v":0},{"$f":"'Labor and Maintenance '!$E$61","v":0},{"$f":"'Labor and Maintenance '!$E$61","v":0},{"$f":"'Labor and Maintenance '!$E$61","v":0},{"$f":"'Labor and Maintenance '!$E$61","v":0},{"$f":"'Labor and Maintenance '!$E$61","v":0},{"$f":"'Labor and Maintenance '!$E$61","v":0},{"$f":"'Labor and Maintenance '!$E$61","v":0},{"$f":"'Labor and Maintenance '!$E$61","v":0},{"$f":"'Labor and Maintenance '!$E$61","v":0},{"$f":"'Labor and Maintenance '!$E$61","v":0},{"$f":"'Labor and Maintenance '!$E$61","v":0},{"$f":"'Labor and Maintenance '!$E$61","v":0},{"$f":"'Labor and Maintenance '!$E$61","v":0},{"$f":"'Labor and Maintenance '!$E$61","v":0},{"$f":"'Labor and Maintenance '!$E$61","v":0},{"$f":"'Labor and Maintenance '!$E$61","v":0},{"$f":"'Labor and Maintenance '!$E$61","v":0},{"$f":"'Labor and Maintenance '!$E$61","v":0},{"$f":"'Labor and Maintenance '!$E$61","v":0},{"$f":"'Labor and Maintenance '!$E$61","v":0},{"$f":"'Labor and Maintenance '!$E$61","v":0},{"$f":"'Labor and Maintenance '!$E$61","v":0},{"$f":"'Labor and Maintenance '!$E$61","v":0},{"$f":"'Labor and Maintenance '!$E$61","v":0},null,{"$f":"AVERAGE(C57:AH57)","v":0}]
["Frequency - Major repairs in a workshop by a technician",null,{"$f":"'Labor and Maintenance '!$E$62","v":4},{"$f":"'Labor and Maintenance '!$E$62","v":4},{"$f":"'Labor and Maintenance '!$E$62","v":4},{"$f":"'Labor and Maintenance '!$E$62","v":4},{"$f":"'Labor and Maintenance '!$E$62","v":4},{"$f":"'Labor and Maintenance '!$E$62","v":4},{"$f":"'Labor and Maintenance '!$E$62","v":4},{"$f":"'Labor and Maintenance '!$E$62","v":4},{"$f":"'Labor and Maintenance '!$E$62","v":4},{"$f":"'Labor and Maintenance '!$E$62","v":4},{"$f":"'Labor and Maintenance '!$E$62","v":4},{"$f":"'Labor and Maintenance '!$E$62","v":4},{"$f":"'Labor and Maintenance '!$E$62","v":4},{"$f":"'Labor and Maintenance '!$E$62","v":4},{"$f":"'Labor and Maintenance '!$E$62","v":4},{"$f":"'Labor and Maintenance '!$E$62","v":4},{"$f":"'Labor and Maintenance '!$E$62","v":4},{"$f":"'Labor and Maintenance '!$E$62","v":4},{"$f":"'Labor and Maintenance '!$E$62","v":4},{"$f":"'Labor and Maintenance '!$E$62","v":4},{"$f":"'Labor and Maintenance '!$E$62","v":4},{"$f":"'Labor and Maintenance '!$E$62","v":4},{"$f":"'Labor and Maintenance '!$E$62","v":4},{"$f":"'Labor and Maintenance '!$E$62","v":4},{"$f":"'Labor and Maintenance '!$E$62","v":4},{"$f":"'Labor and Maintenance '!$E$62","v":4},{"$f":"'Labor and Maintenance '!$E$62","v":4},{"$f":"'Labor and Maintenance '!$E$62","v":4},{"$f":"'Labor and Maintenance '!$E$62","v":4},{"$f":"'Labor and Maintenance '!$E$62","v":4},{"$f":"'Labor and Maintenance '!$E$62","v":4},{"$f":"'Labor and Maintenance '!$E$62","v":4},null,4]
[]
["Maintenance and repairs - HOURS"]
["Expressed in number of hours needed to complete"]
["Hours - Routine maintenance",null,{"$f":"SlrChlMaintHrs1","v":1},1,1,1,1,1,1,1,1,1,1,1,1,1,1,1,1,1,1,1,1,1,1,1,1,1,1,1,1,1,1,1,null,{"$f":"AVERAGE(C62:AH62)","v":1}]
[]
["Major repairs (by a technician with tools)"]
["Hours - Onsite repairs 1",null,{"$f":"'Labor and Maintenance '!$C$60","v":2},{"$f":"'Labor and Maintenance '!$C$60","v":2},{"$f":"'Labor and Maintenance '!$C$60","v":2},{"$f":"'Labor and Maintenance '!$C$60","v":2},{"$f":"'Labor and Maintenance '!$C$60","v":2},{"$f":"'Labor and Maintenance '!$C$60","v":2},{"$f":"'Labor and Maintenance '!$C$60","v":2},{"$f":"'Labor and Maintenance '!$C$60","v":2},{"$f":"'Labor and Maintenance '!$C$60","v":2},{"$f":"'Labor and Maintenance '!$C$60","v":2},{"$f":"'Labor and Maintenance '!$C$60","v":2},{"$f":"'Labor and Maintenance '!$C$60","v":2},{"$f":"'Labor and Maintenance '!$C$60","v":2},{"$f":"'Labor and Maintenance '!$C$60","v":2},{"$f":"'Labor and Maintenance '!$C$60","v":2},{"$f":"'Labor and Maintenance '!$C$60","v":2},{"$f":"'Labor and Maintenance '!$C$60","v":2},{"$f":"'Labor and Maintenance '!$C$60","v":2},{"$f":"'Labor and Maintenance '!$C$60","v":2},{"$f":"'Labor and Maintenance '!$C$60","v":2},{"$f":"'Labor and Maintenance '!$C$60","v":2},{"$f":"'Labor and Maintenance '!$C$60","v":2},{"$f":"'Labor and Maintenance '!$C$60","v":2},{"$f":"'Labor and Maintenance '!$C$60","v":2},{"$f":"'Labor and Maintenance '!$C$60","v":2},{"$f":"'Labor and Maintenance '!$C$60","v":2},{"$f":"'Labor and Maintenance '!$C$60","v":2},{"$f":"'Labor and Maintenance '!$C$60","v":2},{"$f":"'Labor and Maintenance '!$C$60","v":2},{"$f":"'Labor and Maintenance '!$C$60","v":2},{"$f":"'Labor and Maintenance '!$C$60","v":2},{"$f":"'Labor and Maintenance '!$C$60","v":2},null,{"$f":"AVERAGE(C65:AH65)","v":2}]
["Hours - Onsite repairs 2",null,{"$f":"'Labor and Maintenance '!$C$61","v":0},{"$f":"'Labor and Maintenance '!$C$61","v":0},{"$f":"'Labor and Maintenance '!$C$61","v":0},{"$f":"'Labor and Maintenance '!$C$61","v":0},{"$f":"'Labor and Maintenance '!$C$61","v":0},{"$f":"'Labor and Maintenance '!$C$61","v":0},{"$f":"'Labor and Maintenance '!$C$61","v":0},{"$f":"'Labor and Maintenance '!$C$61","v":0},{"$f":"'Labor and Maintenance '!$C$61","v":0},{"$f":"'Labor and Maintenance '!$C$61","v":0},{"$f":"'Labor and Maintenance '!$C$61","v":0},{"$f":"'Labor and Maintenance '!$C$61","v":0},{"$f":"'Labor and Maintenance '!$C$61","v":0},{"$f":"'Labor and Maintenance '!$C$61","v":0},{"$f":"'Labor and Maintenance '!$C$61","v":0},{"$f":"'Labor and Maintenance '!$C$61","v":0},{"$f":"'Labor and Maintenance '!$C$61","v":0},{"$f":"'Labor and Maintenance '!$C$61","v":0},{"$f":"'Labor and Maintenance '!$C$61","v":0},{"$f":"'Labor and Maintenance '!$C$61","v":0},{"$f":"'Labor and Maintenance '!$C$61","v":0},{"$f":"'Labor and Maintenance '!$C$61","v":0},{"$f":"'Labor and Maintenance '!$C$61","v":0},{"$f":"'Labor and Maintenance '!$C$61","v":0},{"$f":"'Labor and Maintenance '!$C$61","v":0},{"$f":"'Labor and Maintenance '!$C$61","v":0},{"$f":"'Labor and Maintenance '!$C$61","v":0},{"$f":"'Labor and Maintenance '!$C$61","v":0},{"$f":"'Labor and Maintenance '!$C$61","v":0},{"$f":"'Labor and Maintenance '!$C$61","v":0},{"$f":"'Labor and Maintenance '!$C$61","v":0},{"$f":"'Labor and Maintenance '!$C$61","v":0},null,0]
["Hours - Major repairs in a workshop by a technician",null,{"$f":"'Labor and Maintenance '!$C$62","v":4},{"$f":"'Labor and Maintenance '!$C$62","v":4},{"$f":"'Labor and Maintenance '!$C$62","v":4},{"$f":"'Labor and Maintenance '!$C$62","v":4},{"$f":"'Labor and Maintenance '!$C$62","v":4},{"$f":"'Labor and Maintenance '!$C$62","v":4},{"$f":"'Labor and Maintenance '!$C$62","v":4},{"$f":"'Labor and Maintenance '!$C$62","v":4},{"$f":"'Labor and Maintenance '!$C$62","v":4},{"$f":"'Labor and Maintenance '!$C$62","v":4},{"$f":"'Labor and Maintenance '!$C$62","v":4},{"$f":"'Labor and Maintenance '!$C$62","v":4},{"$f":"'Labor and Maintenance '!$C$62","v":4},{"$f":"'Labor and Maintenance '!$C$62","v":4},{"$f":"'Labor and Maintenance '!$C$62","v":4},{"$f":"'Labor and Maintenance '!$C$62","v":4},{"$f":"'Labor and Maintenance '!$C$62","v":4},{"$f":"'Labor and Maintenance '!$C$62","v":4},{"$f":"'Labor and Maintenance '!$C$62","v":4},{"$f":"'Labor and Maintenance '!$C$62","v":4},{"$f":"'Labor and Maintenance '!$C$62","v":4},{"$f":"'Labor and Maintenance '!$C$62","v":4},{"$f":"'Labor and Maintenance '!$C$62","v":4},{"$f":"'Labor and Maintenance '!$C$62","v":4},{"$f":"'Labor and Maintenance '!$C$62","v":4},{"$f":"'Labor and Maintenance '!$C$62","v":4},{"$f":"'Labor and Maintenance '!$C$62","v":4},{"$f":"'Labor and Maintenance '!$C$62","v":4},{"$f":"'Labor and Maintenance '!$C$62","v":4},{"$f":"'Labor and Maintenance '!$C$62","v":4},{"$f":"'Labor and Maintenance '!$C$62","v":4},{"$f":"'Labor and Maintenance '!$C$62","v":4},null,4]

{"sheet":"Freezer","index":20,"n_rows":68,"n_cols":14,"rows_kept":68,"cut":false,"hidden":false,"merged":[]}
["Technology Assumptions - Freezer (ice pack or deep)"]
["Technology",null,{"$f":"PQS!A8","v":"Freezer"},{"$f":"PQS!A9","v":"Freezer"},{"$f":"PQS!A10","v":"Freezer"},{"$f":"PQS!A11","v":"Freezer"},{"$f":"PQS!A12","v":"Freezer"},{"$f":"PQS!A13","v":"Freezer"},{"$f":"PQS!A14","v":"Freezer"},{"$f":"PQS!A15","v":"Freezer"},{"$f":"PQS!A16","v":"Freezer"},{"$f":"PQS!A17","v":"Freezer"},null,"AVERAGES"]
["Manufacturer",null,{"$f":"PQS!F8","v":"Haier"},{"$f":"PQS!F9","v":"Haier"},{"$f":"PQS!F10","v":"Vestfrost"},{"$f":"PQS!F11","v":"Vestfrost"},{"$f":"PQS!F12","v":"Vestfrost"},{"$f":"PQS!F13","v":"B Medical"},{"$f":"PQS!F14","v":"Aucma"},{"$f":"PQS!F15","v":"Aucma"},{"$f":"PQS!F16","v":"B Medical"},{"$f":"PQS!F17","v":"B Medical"}]
["Model",null,{"$f":"PQS!E8","v":"HBD 116*"},{"$f":"PQS!E9","v":"HBD 286*"},{"$f":"PQS!E10","v":"MF 314*"},{"$f":"PQS!E11","v":"MF 114*"},{"$f":"PQS!E12","v":"MF 214*"},{"$f":"PQS!E13","v":"TFW 800*"},{"$f":"PQS!E14","v":"DW-25W147*"},{"$f":"PQS!E15","v":"DW-25W300*"},{"$f":"PQS!E16","v":"TFW 3000 AC*"},{"$f":"PQS!E17","v":"TFW 40 SDD*"},null,"Capacity"]
["CCEOP",null,{"$f":"VLOOKUP(C4,PQS!$E:$G,COLUMN(PQS!$G$3)-COLUMN(PQS!$E$3)+1,FALSE)","v":"Yes"},{"$f":"VLOOKUP(D4,PQS!$E:$G,COLUMN(PQS!$G$3)-COLUMN(PQS!$E$3)+1,FALSE)","v":"Yes"},{"$f":"VLOOKUP(E4,PQS!$E:$G,COLUMN(PQS!$G$3)-COLUMN(PQS!$E$3)+1,FALSE)","v":"Yes"},{"$f":"VLOOKUP(F4,PQS!$E:$G,COLUMN(PQS!$G$3)-COLUMN(PQS!$E$3)+1,FALSE)","v":"Yes"},{"$f":"VLOOKUP(G4,PQS!$E:$G,COLUMN(PQS!$G$3)-COLUMN(PQS!$E$3)+1,FALSE)","v":"Yes"},{"$f":"VLOOKUP(H4,PQS!$E:$G,COLUMN(PQS!$G$3)-COLUMN(PQS!$E$3)+1,FALSE)","v":"Yes"},{"$f":"VLOOKUP(I4,PQS!$E:$G,COLUMN(PQS!$G$3)-COLUMN(PQS!$E$3)+1,FALSE)","v":"Yes"},{"$f":"VLOOKUP(J4,PQS!$E:$G,COLUMN(PQS!$G$3)-COLUMN(PQS!$E$3)+1,FALSE)","v":"Yes"},{"$f":"VLOOKUP(K4,PQS!$E:$G,COLUMN(PQS!$G$3)-COLUMN(PQS!$E$3)+1,FALSE)","v":"Yes"},{"$f":"VLOOKUP(L4,PQS!$E:$G,COLUMN(PQS!$G$3)-COLUMN(PQS!$E$3)+1,FALSE)","v":"Yes"}]
["Net vaccine storage capacity",null,{"$f":"PQS!H8","v":79},{"$f":"PQS!I9","v":0},{"$f":"PQS!H10","v":108.5},{"$f":"PQS!H11","v":70},{"$f":"PQS!I12","v":0},{"$f":"PQS!I13","v":0},{"$f":"PQS!I14","v":0},{"$f":"PQS!I15","v":0},{"$f":"PQS!I16","v":0},{"$f":"PQS!I17","v":0},null,{"$f":"AVERAGE(C6:L6)","v":25.75}]
["Waterpack freezing capacity",null,{"$f":"PQS!K8","v":12},{"$f":"PQS!K9","v":16.8},{"$f":"PQS!K10","v":7.2},{"$f":"PQS!K11","v":7.2},{"$f":"PQS!K12","v":7.2},{"$f":"PQS!K13","v":36},{"$f":"PQS!K14","v":14.5},{"$f":"PQS!K15","v":38.299999999999997},{"$f":"PQS!K16","v":32},{"$f":"PQS!K17","v":2.16},null,{"$f":"AVERAGE(C7:L7)","v":17.335999999999999}]
[]
["HARDWARE"]
["[Unit]",null,{"$f":"PQS!B8","v":"E003/002"},{"$f":"PQS!B9","v":"E003/003"},{"$f":"PQS!B10","v":"E003/023"},{"$f":"PQS!B11","v":"E003/024"},{"$f":"PQS!B12","v":"E003/025"},{"$f":"PQS!B13","v":"E003/004"},{"$f":"PQS!B14","v":"E003/060"},{"$f":"PQS!B15","v":"E003/061"},{"$f":"PQS!B16","v":"E003/071"},{"$f":"PQS!B17","v":"E003/073"},null,"Useful life"]
["[unit] Expected useful life",null,{"$f":"FrzEquipYrs","v":10},10,10,10,10,10,10,10,10,10,null,{"$f":"AVERAGE(C11:L11)","v":10}]
["Solar panel expected useful life (where applicable)"]
["Battery expected useful life"]
["Installation kit price",null,{"$f":"FrzHardware","v":50},50,50,50,50,50,50,50,50,50,null,{"$f":"AVERAGE(C14:L14)","v":50}]
[]
[]
["[unit] PARTS"]
["Number of parts needed for useful life per unit",null,null,null,null,null,null,null,null,null,null,null,null,"Average"]
["Compressor",null,1,1,1,1,1,1,1,1,1,1,null,{"$f":"AVERAGE(C19:L19)","v":1}]
["Thermostat",null,1,1,1,1,1,2,1,1,0,0,null,{"$f":"AVERAGE(C20:L20)","v":0.9}]
["Control panel",null,1,1,0,0,0,0,0,0,0,1,null,0.3]
["Baskets",null,1,1,1,1,1,0,0,0,1,1,null,0.7]
["Starter",null,0,0,0,0,0,0,0,0,0,0,null,0]
["Starter relay",null,0,0,1,1,1,1,0,0,1,0,null,0.5]
["Starting capacitor",null,0,0,0,0,0,1,0,0,1,0,null,0.2]
["Compressor controller",null,0,0,0,0,0,0,0,0,1,0,null,0.1]
["Sensor for e-thermostat",null,0,0,0,0,0,1,0,0,0,1,null,0.2]
["E Box",null,0,0,0,0,0,0,0,0,1,1,null,0.2]
["Switch",null,0,0,0,0,0,1,1,1,1,1,null,0.5]
["Drier",null,1,1,1,1,1,1,1,1,1,1,null,1]
["Voltage stabilizer",null,0,0,0,0,0,0,0,0,1,0,null,0.1]
["Condensor + Fan",null,1,1,0,0,0,1,1,1,1,1,null,0.7]
["Hinge",null,1,1,1,1,1,2,0,0,2,1,null,1]
["Hinge cover",null,1,1,0,0,0,1,0,0,1,1,null,0.5]
["Thermometer",null,1,1,1,1,1,0,0,0,0,0,null,0.5]
["Ice pack",null,0,0,0,0,0,1,0,0,1,1,null,0.3]
["Handle",null,1,1,1,1,1,1,0,0,0,0,null,0.6]
["Sensor cooler",null,0,0,0,0,0,0,0,0,1,0,null,0.1]
["Display board",null,0,0,0,0,0,0,0,0,1,1,null,0.2]
["E Box",null,0,0,0,0,0,0,0,0,1,1,null,0.2]
["Evaporator",null,0,0,0,0,0,0,1,1,0,0,null,0.2]
["Shelving",null,0,0,0,0,0,0,1,1,0,0,null,0.2]
["Condenser",null,0,0,0,0,0,0,1,1,0,0,null,0.2]
["Fuse",null,0,0,0,0,0,0,0,0,0,1,null,0.1]
["SDD controller",null,0,0,0,0,0,0,0,0,0,1,null,0.1]
["Refrigerant",null,0,0,1,1,1,0,0,0,0,0,null,0.3]
[]
["LABOR"]
[null,null,null,null,null,null,null,null,null,null,null,null,null,"Installation cost"]
["Installation labor cost (one time)",null,{"$f":"'Labor and Maintenance '!$J$23","v":166},{"$f":"'Labor and Maintenance '!$J$23","v":166},{"$f":"'Labor and Maintenance '!$J$23","v":166},{"$f":"'Labor and Maintenance '!$J$23","v":166},{"$f":"'Labor and Maintenance '!$J$23","v":166},{"$f":"'Labor and Maintenance '!$J$23","v":166},{"$f":"'Labor and Maintenance '!$J$23","v":166},{"$f":"'Labor and Maintenance '!$J$23","v":166},{"$f":"'Labor and Maintenance '!$J$23","v":166},{"$f":"'Labor and Maintenance '!$J$23","v":166},null,{"$f":"AVERAGE(C50:L50)","v":166}]
[]
["Maintenance and repairs - FREQUENCY"]
["Expressed in frequency of occurrence (in years: quarterly = 0.25, annual = 1, every 5 years = 5, etc.)",null,null,null,null,null,null,null,null,null,null,null,null,"Routine maintenance frequency"]
["Frequency - Routine maintenance ",null,{"$f":"'Labor and Maintenance '!$E$65","v":0.25},{"$f":"'Labor and Maintenance '!$E$65","v":0.25},{"$f":"'Labor and Maintenance '!$E$65","v":0.25},{"$f":"'Labor and Maintenance '!$E$65","v":0.25},{"$f":"'Labor and Maintenance '!$E$65","v":0.25},{"$f":"'Labor and Maintenance '!$E$65","v":0.25},{"$f":"'Labor and Maintenance '!$E$65","v":0.25},{"$f":"'Labor and Maintenance '!$E$65","v":0.25},{"$f":"'Labor and Maintenance '!$E$65","v":0.25},{"$f":"'Labor and Maintenance '!$E$65","v":0.25},null,{"$f":"AVERAGE(C54:L54)","v":0.25}]
[]
["Major repairs (by a technician with tools)",null,null,null,null,null,null,null,null,null,null,null,null,"Major repair frequency"]
["Frequency - Onsite repairs 1",null,{"$f":"'Labor and Maintenance '!$E$66","v":1},{"$f":"'Labor and Maintenance '!$E$66","v":1},{"$f":"'Labor and Maintenance '!$E$66","v":1},{"$f":"'Labor and Maintenance '!$E$66","v":1},{"$f":"'Labor and Maintenance '!$E$66","v":1},{"$f":"'Labor and Maintenance '!$E$66","v":1},{"$f":"'Labor and Maintenance '!$E$66","v":1},{"$f":"'Labor and Maintenance '!$E$66","v":1},{"$f":"'Labor and Maintenance '!$E$66","v":1},{"$f":"'Labor and Maintenance '!$E$66","v":1},null,{"$f":"AVERAGE(C57:L57)","v":1}]
["Frequency - Onsite repairs 2",null,{"$f":"'Labor and Maintenance '!$E$67","v":0},{"$f":"'Labor and Maintenance '!$E$67","v":0},{"$f":"'Labor and Maintenance '!$E$67","v":0},{"$f":"'Labor and Maintenance '!$E$67","v":0},{"$f":"'Labor and Maintenance '!$E$67","v":0},{"$f":"'Labor and Maintenance '!$E$67","v":0},{"$f":"'Labor and Maintenance '!$E$67","v":0},{"$f":"'Labor and Maintenance '!$E$67","v":0},{"$f":"'Labor and Maintenance '!$E$67","v":0},{"$f":"'Labor and Maintenance '!$E$67","v":0},null,{"$f":"AVERAGE(C58:L58)","v":0}]
["Frequency - Major repairs in a workshop by a technician",null,{"$f":"'Labor and Maintenance '!$E$68","v":3},{"$f":"'Labor and Maintenance '!$E$68","v":3},{"$f":"'Labor and Maintenance '!$E$68","v":3},{"$f":"'Labor and Maintenance '!$E$68","v":3},{"$f":"'Labor and Maintenance '!$E$68","v":3},{"$f":"'Labor and Maintenance '!$E$68","v":3},{"$f":"'Labor and Maintenance '!$E$68","v":3},{"$f":"'Labor and Maintenance '!$E$68","v":3},{"$f":"'Labor and Maintenance '!$E$68","v":3},{"$f":"'Labor and Maintenance '!$E$68","v":3},null,3]
[]
["Maintenance and repairs - HOURS"]
["Expressed in number of hours needed to complete"]
["Hours - Routine maintenance",null,{"$f":"FrzMaintHrs1","v":3},3,3,3,3,3,3,3,3,3,null,{"$f":"AVERAGE(C63:L63)","v":3}]
[]
["Major repairs (by a technician with tools)"]
["Hours - Onsite repairs 1",null,{"$f":"'Labor and Maintenance '!$C$66","v":1},{"$f":"'Labor and Maintenance '!$C$66","v":1},{"$f":"'Labor and Maintenance '!$C$66","v":1},{"$f":"'Labor and Maintenance '!$C$66","v":1},{"$f":"'Labor and Maintenance '!$C$66","v":1},{"$f":"'Labor and Maintenance '!$C$66","v":1},{"$f":"'Labor and Maintenance '!$C$66","v":1},{"$f":"'Labor and Maintenance '!$C$66","v":1},{"$f":"'Labor and Maintenance '!$C$66","v":1},{"$f":"'Labor and Maintenance '!$C$66","v":1},null,{"$f":"AVERAGE(C66:L66)","v":1}]
["Hours - Onsite repairs 2",null,{"$f":"'Labor and Maintenance '!$C$67","v":0},{"$f":"'Labor and Maintenance '!$C$67","v":0},{"$f":"'Labor and Maintenance '!$C$67","v":0},{"$f":"'Labor and Maintenance '!$C$67","v":0},{"$f":"'Labor and Maintenance '!$C$67","v":0},{"$f":"'Labor and Maintenance '!$C$67","v":0},{"$f":"'Labor and Maintenance '!$C$67","v":0},{"$f":"'Labor and Maintenance '!$C$67","v":0},{"$f":"'Labor and Maintenance '!$C$67","v":0},{"$f":"'Labor and Maintenance '!$C$67","v":0},null,{"$f":"AVERAGE(C67:L67)","v":0}]
["Hours - Major repairs in a workshop by a technician",null,{"$f":"FrzMaintHrs2","v":4},4,4,4,4,4,4,4,4,4,null,4]

{"sheet":"LT Passive","index":21,"n_rows":47,"n_cols":8,"rows_kept":47,"cut":false,"hidden":false,"merged":[]}
["Technology Assumptions - Long Term Passive Storage Device"]
["Technology",null,{"$f":"PQS!A105","v":"LT passive"},{"$f":"PQS!A106","v":"LT passive"},{"$f":"PQS!A107","v":"LT passive"},null,null,"AVERAGES"]
["Manufacturer",null,{"$f":"PQS!F105","v":"Aucma"},{"$f":"PQS!F106","v":"Aucma"},{"$f":"PQS!F107","v":"SureChill"}]
["Model",null,{"$f":"PQS!E105","v":"ARKTEK-YBC-5*"},{"$f":"PQS!E106","v":"tbd"},{"$f":"PQS!E107","v":"tbd"},null,null,"Capacity"]
["CCEOP",null,{"$f":"VLOOKUP(C4,PQS!$E:$G,COLUMN(PQS!$G$3)-COLUMN(PQS!$E$3)+1,FALSE)","v":"Yes"},{"$f":"VLOOKUP(D4,PQS!$E:$G,COLUMN(PQS!$G$3)-COLUMN(PQS!$E$3)+1,FALSE)","v":"No"},{"$f":"VLOOKUP(E4,PQS!$E:$G,COLUMN(PQS!$G$3)-COLUMN(PQS!$E$3)+1,FALSE)","v":"No"}]
["Net vaccine storage capacity",null,{"$f":"PQS!I105","v":5.4},{"$f":"PQS!I106","v":10},{"$f":"PQS!I107","v":8},null,null,{"$f":"AVERAGE(C6:F6)","v":7.8}]
["Waterpack freezing capacity"]
[]
["HARDWARE"]
["[Unit]",null,{"$f":"PQS!B105","v":"E004/041"},{"$f":"PQS!B106","v":"acuma"},{"$f":"PQS!B107","v":"surechill"},null,null,"Useful life"]
["[unit] Expected useful life",null,{"$f":"LTPassiveUL","v":8},{"$f":"LTPassiveUL","v":8},{"$f":"LTPassiveUL","v":8},null,null,{"$f":"AVERAGE(C11:F11)","v":8}]
["Solar panel expected useful life (where applicable)"]
["Battery expected useful life"]
["Installation kit price",null,{"$f":"'Labor and Maintenance '!$F$24","v":100},{"$f":"'Labor and Maintenance '!$F$24","v":100},{"$f":"'Labor and Maintenance '!$F$24","v":100},null,null,{"$f":"AVERAGE(C14:F14)","v":100}]
[]
[]
["[unit] PARTS"]
["Number of parts needed for useful life per unit",null,null,null,null,null,null,"Useful life"]
["Part 1"]
["Part 2"]
["Part 3"]
["Part 4"]
[]
[]
["LABOR"]
[null,null,null,null,null,null,null,"Installation cost"]
["Installation labor cost (one time)",null,{"$f":"'Labor and Maintenance '!$J$24","v":166},{"$f":"'Labor and Maintenance '!$J$24","v":166},{"$f":"'Labor and Maintenance '!$J$24","v":166},null,null,{"$f":"AVERAGE(C27:F27)","v":166}]
[]
["Maintenance and repairs - FREQUENCY"]
["Expressed in frequency of occurrence (in years: quarterly = 0.25, annual = 1, every 5 years = 5, etc.)",null,null,null,null,null,null,"Routine maintenance frequency"]
["Frequency - Routine maintenance ",null,{"$f":"'Labor and Maintenance '!$E$77","v":8.3333333333333329E-2},{"$f":"'Labor and Maintenance '!$E$77","v":8.3333333333333329E-2},{"$f":"'Labor and Maintenance '!$E$77","v":8.3333333333333329E-2},null,null,{"$f":"AVERAGE(C31:F31)","v":8.3333333333333329E-2}]
[]
["Major repairs (by a technician with tools)",null,null,null,null,null,null,"Major repair frequency"]
["Frequency - Onsite repairs 1",null,{"$f":"'Labor and Maintenance '!$E$78","v":1},{"$f":"'Labor and Maintenance '!$E$78","v":1},{"$f":"'Labor and Maintenance '!$E$78","v":1},null,null,{"$f":"AVERAGE(C34:E34)","v":1}]
["Frequency - Onsite repairs 2",null,{"$f":"'Labor and Maintenance '!E79","v":0},{"$f":"'Labor and Maintenance '!F79","v":0},{"$f":"'Labor and Maintenance '!G79","v":0},null,null,{"$f":"AVERAGE(C35:E35)","v":0}]
["Frequency - Major repairs in a workshop by a technician",null,{"$f":"'Labor and Maintenance '!$E$80","v":0},{"$f":"'Labor and Maintenance '!$E$80","v":0},{"$f":"'Labor and Maintenance '!$E$80","v":0},null,null,{"$f":"AVERAGE(C36:F36)","v":0}]
["Ice delivery",null,{"$f":"'Labor and Maintenance '!$E$81","v":8.3333333333333329E-2},{"$f":"'Labor and Maintenance '!$E$81","v":8.3333333333333329E-2},{"$f":"'Labor and Maintenance '!$E$81","v":8.3333333333333329E-2},null,null,{"$f":"AVERAGE(C37:F37)","v":8.3333333333333329E-2}]
[]
["Maintenance and repairs - HOURS"]
["Expressed in number of hours needed to complete"]
["Hours - Routine maintenance",null,{"$f":"'Labor and Maintenance '!$C$77","v":1},{"$f":"'Labor and Maintenance '!$C$77","v":1},{"$f":"'Labor and Maintenance '!$C$77","v":1},null,null,{"$f":"AVERAGE(C41:F41)","v":1}]
[]
["Major repairs (by a technician with tools)"]
["Hours - Onsite repairs 1",null,{"$f":"'Labor and Maintenance '!$C$78","v":1},{"$f":"'Labor and Maintenance '!$C$78","v":1},{"$f":"'Labor and Maintenance '!$C$78","v":1},null,null,{"$f":"AVERAGE(C44:E44)","v":1}]
["Hours - Onsite repairs 2",null,{"$f":"'Labor and Maintenance '!C79","v":0},{"$f":"'Labor and Maintenance '!D79","v":0},{"$f":"'Labor and Maintenance '!E79","v":0},null,null,{"$f":"AVERAGE(C45:E45)","v":0}]
["Hours - Major repairs in a workshop by a technician",null,{"$f":"'Labor and Maintenance '!$C$80","v":0},{"$f":"'Labor and Maintenance '!$C$80","v":0},{"$f":"'Labor and Maintenance '!$C$80","v":0},null,null,{"$f":"AVERAGE(C46:F46)","v":0}]
["Ice delivery",null,{"$f":"'Labor and Maintenance '!$C$81","v":0},{"$f":"'Labor and Maintenance '!$C$81","v":0},{"$f":"'Labor and Maintenance '!$C$81","v":0},null,null,{"$f":"AVERAGE(C47:F47)","v":0}]

{"sheet":"Solar w battery","index":22,"n_rows":50,"n_cols":9,"rows_kept":50,"cut":false,"hidden":false,"merged":[]}
["Technology Assumptions - Solar with battery"]
["Technology",null,{"$f":"PQS!A85","v":"Solar w battery"},{"$f":"PQS!A86","v":"Solar w battery"},{"$f":"PQS!A87","v":"Solar w battery"},{"$f":"PQS!A88","v":"Solar w battery"},{"$f":"PQS!A89","v":"Solar w battery"},null,"AVERAGES"]
["Manufacturer",null,{"$f":"PQS!F85","v":"B Medical"},{"$f":"PQS!F86","v":"B Medical"},{"$f":"PQS!F87","v":"Dulas Solar"},{"$f":"PQS!F88","v":"Dulas Solar"},{"$f":"PQS!F89","v":"Dulas Solar"}]
["Model",null,{"$f":"PQS!E85","v":"TCW 2000 DC"},{"$f":"PQS!E86","v":"TCW 3000 DC"},{"$f":"PQS!E87","v":"VC 65-2"},{"$f":"PQS!E88","v":"VC 150-2"},{"$f":"PQS!E89","v":"VC 200-1"},null,"Capacity"]
["CCEOP",null,{"$f":"VLOOKUP(C4,PQS!$E:$G,COLUMN(PQS!$G$3)-COLUMN(PQS!$E$3)+1,FALSE)","v":"No"},{"$f":"VLOOKUP(D4,PQS!$E:$G,COLUMN(PQS!$G$3)-COLUMN(PQS!$E$3)+1,FALSE)","v":"No"},{"$f":"VLOOKUP(E4,PQS!$E:$G,COLUMN(PQS!$G$3)-COLUMN(PQS!$E$3)+1,FALSE)","v":"No"},{"$f":"VLOOKUP(F4,PQS!$E:$G,COLUMN(PQS!$G$3)-COLUMN(PQS!$E$3)+1,FALSE)","v":"No"},{"$f":"VLOOKUP(G4,PQS!$E:$G,COLUMN(PQS!$G$3)-COLUMN(PQS!$E$3)+1,FALSE)","v":"No"}]
["Net vaccine storage capacity",null,{"$f":"PQS!I85","v":76},{"$f":"PQS!I86","v":109.5},{"$f":"PQS!I87","v":37.5},{"$f":"PQS!I88","v":86},{"$f":"PQS!I89","v":126.5},null,{"$f":"AVERAGE(C6:G6)","v":87.1}]
["Waterpack freezing capacity",null,{"$f":"PQS!K85","v":3.4},{"$f":"PQS!K86","v":17},{"$f":"PQS!K87","v":2.4},{"$f":"PQS!K88","v":2.4},{"$f":"PQS!K89","v":0},null,{"$f":"AVERAGE(C7:G7)","v":5.0399999999999991}]
[]
["HARDWARE"]
["[Unit]",null,{"$f":"PQS!B85","v":"E003/001"},{"$f":"PQS!B86","v":"E003/008"},{"$f":"PQS!B87","v":"E003/026"},{"$f":"PQS!B88","v":"E003/027"},{"$f":"PQS!B89","v":"E003/028"},null,"Useful life"]
["[unit] Expected useful life",null,{"$f":"SlrBatEquipYrs","v":10},{"$f":"SlrBatEquipYrs","v":10},{"$f":"SlrBatEquipYrs","v":10},{"$f":"SlrBatEquipYrs","v":10},{"$f":"SlrBatEquipYrs","v":10},null,{"$f":"AVERAGE(C11:G11)","v":10}]
["Solar panel expected useful life (where applicable)",null,10,10,10,10,10,null,{"$f":"AVERAGE(C12:G12)","v":10}]
["Battery expected useful life",null,{"$f":"'Labor and Maintenance '!$E$53","v":3},{"$f":"'Labor and Maintenance '!$E$53","v":3},{"$f":"'Labor and Maintenance '!$E$53","v":3},{"$f":"'Labor and Maintenance '!$E$53","v":3},{"$f":"'Labor and Maintenance '!$E$53","v":3},null,{"$f":"AVERAGE(C13:G13)","v":3}]
["Installation kit price",null,{"$f":"SlrBatHardware","v":144},{"$f":"SlrBatHardware","v":144},{"$f":"SlrBatHardware","v":144},{"$f":"SlrBatHardware","v":144},{"$f":"SlrBatHardware","v":144},null,{"$f":"AVERAGE(C14:G14)","v":144}]
[]
[]
["[unit] PARTS"]
["Number of parts needed for useful life per unit",null,null,null,null,null,null,null,"Average"]
["Compressor",null,1,1,1,1,1,null,{"$f":"AVERAGE(C19:G19)","v":1}]
["Thermostat",null,1,1,1,1,1,null,{"$f":"AVERAGE(C20:G20)","v":1}]
["Compressor controller",null,0,0,1,1,1,null,0.6]
["Control panel",null,1,1,0,0,0,null,0.4]
["Sensor for e-thermostat",null,1,1,0,0,0,null,0.4]
["Condensor + fan",null,1,1,0,0,0,null,0.4]
["E Box",null,1,1,0,0,0,null,0.4]
["Switch",null,1,1,0,0,0,null,0.4]
["Voltage stabilizer",null,1,1,0,0,0,null,0.4]
["Fuse",null,1,1,0,0,0,null,0.4]
[]
["LABOR"]
[null,null,null,null,null,null,null,null,"Installation cost"]
["Installation labor cost (one time)",null,{"$f":"'Labor and Maintenance '!$J$19","v":492},{"$f":"'Labor and Maintenance '!$J$19","v":492},{"$f":"'Labor and Maintenance '!$J$19","v":492},{"$f":"'Labor and Maintenance '!$J$19","v":492},{"$f":"'Labor and Maintenance '!$J$19","v":492},null,{"$f":"AVERAGE(C32:G32)","v":492}]
[]
["Maintenance and repairs - FREQUENCY"]
["Expressed in frequency of occurrence (in years: quarterly = 0.25, annual = 1, every 5 years = 5, etc.)",null,null,null,null,null,null,null,"Routine maintenance frequency"]
["Frequency - Routine maintenance ",null,{"$f":"'Labor and Maintenance '!$E$52","v":0.25},{"$f":"'Labor and Maintenance '!$E$52","v":0.25},{"$f":"'Labor and Maintenance '!$E$52","v":0.25},{"$f":"'Labor and Maintenance '!$E$52","v":0.25},{"$f":"'Labor and Maintenance '!$E$52","v":0.25},null,{"$f":"AVERAGE(C36:G36)","v":0.25}]
[]
["Major repairs (by a technician with tools)",null,null,null,null,null,null,null,"Major repair frequency"]
["Frequency - Onsite repairs 1",null,{"$f":"'Labor and Maintenance '!$E$54","v":0},{"$f":"'Labor and Maintenance '!$E$54","v":0},{"$f":"'Labor and Maintenance '!$E$54","v":0},{"$f":"'Labor and Maintenance '!$E$54","v":0},{"$f":"'Labor and Maintenance '!$E$54","v":0},null,{"$f":"AVERAGE(C39:G39)","v":0}]
["Frequency - Onsite repairs 2",null,{"$f":"'Labor and Maintenance '!$E$55","v":0},{"$f":"'Labor and Maintenance '!$E$55","v":0},{"$f":"'Labor and Maintenance '!$E$55","v":0},{"$f":"'Labor and Maintenance '!$E$55","v":0},{"$f":"'Labor and Maintenance '!$E$55","v":0},null,{"$f":"AVERAGE(C40:G40)","v":0}]
["Frequency - Major repairs in a workshop by a technician",null,{"$f":"'Labor and Maintenance '!$E$56","v":1},{"$f":"'Labor and Maintenance '!$E$56","v":1},{"$f":"'Labor and Maintenance '!$E$56","v":1},{"$f":"'Labor and Maintenance '!$E$56","v":1},{"$f":"'Labor and Maintenance '!$E$56","v":1},null,{"$f":"AVERAGE(C41:G41)","v":1}]
[]
["Maintenance and repairs - HOURS"]
["Expressed in number of hours needed to complete"]
["Hours - Routine maintenance",null,{"$f":"SlrBatMaintHrs1","v":2},{"$f":"SlrBatMaintHrs1","v":2},{"$f":"SlrBatMaintHrs1","v":2},{"$f":"SlrBatMaintHrs1","v":2},{"$f":"SlrBatMaintHrs1","v":2},null,{"$f":"AVERAGE(C45:G45)","v":2}]
[]
["Major repairs (by a technician with tools)"]
["Hours - Onsite repairs 1",null,{"$f":"'Labor and Maintenance '!$C$54","v":0},{"$f":"'Labor and Maintenance '!$C$54","v":0},{"$f":"'Labor and Maintenance '!$C$54","v":0},{"$f":"'Labor and Maintenance '!$C$54","v":0},{"$f":"'Labor and Maintenance '!$C$54","v":0},null,{"$f":"AVERAGE(C48:G48)","v":0}]
["Hours - Onsite repairs 2",null,{"$f":"'Labor and Maintenance '!$C$55","v":0},{"$f":"'Labor and Maintenance '!$C$55","v":0},{"$f":"'Labor and Maintenance '!$C$55","v":0},{"$f":"'Labor and Maintenance '!$C$55","v":0},{"$f":"'Labor and Maintenance '!$C$55","v":0},null,{"$f":"AVERAGE(C49:G49)","v":0}]
["Hours - Major repairs in a workshop by a technician",null,{"$f":"'Labor and Maintenance '!$C$56","v":4},{"$f":"'Labor and Maintenance '!$C$56","v":4},{"$f":"'Labor and Maintenance '!$C$56","v":4},{"$f":"'Labor and Maintenance '!$C$56","v":4},{"$f":"'Labor and Maintenance '!$C$56","v":4},null,{"$f":"AVERAGE(C50:G50)","v":4}]

{"sheet":"Gas","index":23,"n_rows":45,"n_cols":7,"rows_kept":45,"cut":false,"hidden":false,"merged":[]}
["Technology Assumptions - Gas Refrigerators"]
["Technology",null,{"$f":"PQS!A5","v":"Gas"},{"$f":"PQS!A6","v":"Gas"},{"$f":"PQS!A7","v":"Gas"},null,"AVERAGES"]
["Manufacturer",null,{"$f":"PQS!F5","v":"B Medical"},{"$f":"PQS!F6","v":"Sibir"},{"$f":"PQS!F7","v":"Sibir"}]
["Model",null,{"$f":"PQS!E5","v":"RCW 50 EG"},{"$f":"PQS!E6","v":"V 170 GE"},{"$f":"PQS!E7","v":"V 110 GE "},null,"Capacity"]
["CCEOP",null,{"$f":"VLOOKUP(C4,PQS!$E:$G,COLUMN(PQS!$G$3)-COLUMN(PQS!$E$3)+1,FALSE)","v":"No"},{"$f":"VLOOKUP(D4,PQS!$E:$G,COLUMN(PQS!$G$3)-COLUMN(PQS!$E$3)+1,FALSE)","v":"No"},{"$f":"VLOOKUP(E4,PQS!$E:$G,COLUMN(PQS!$G$3)-COLUMN(PQS!$E$3)+1,FALSE)","v":"No"}]
["Net vaccine storage capacity",null,{"$f":"PQS!I5","v":24},{"$f":"PQS!I6","v":55},{"$f":"PQS!I7","v":17},null,{"$f":"AVERAGE(C6:E6)","v":32}]
["Waterpack freezing capacity",null,{"$f":"PQS!K5","v":0},{"$f":"PQS!K6","v":0},{"$f":"PQS!K52","v":0},null,{"$f":"AVERAGE(C7:E7)","v":0}]
[]
["HARDWARE"]
["[Unit]",null,{"$f":"PQS!B5","v":"E3/88-M"},{"$f":"PQS!B6","v":"E3/84-M"},{"$f":"PQS!B7","v":"E3/86-M"},null,"Useful life"]
["[unit] Expected useful life",null,{"$f":"GasEquipYrs","v":10},{"$f":"GasEquipYrs","v":10},{"$f":"GasEquipYrs","v":10},null,{"$f":"AVERAGE(C11:E11)","v":10}]
["Solar panel expected useful life (where applicable)"]
["Battery expected useful life"]
["Installation kit price",null,{"$f":"GasHardware","v":0},{"$f":"GasHardware","v":0},{"$f":"GasHardware","v":0},null,{"$f":"AVERAGE(C14:E14)","v":0}]
[]
[]
["[unit] PARTS"]
["Number of parts needed for useful life per unit",null,null,null,null,null,"Average"]
["Thermostat",null,0,2,2,null,{"$f":"AVERAGE(C19:E19)","v":1.3333333333333333}]
["Electrical heater",null,2,2,2,null,{"$f":"AVERAGE(C20:E20)","v":2}]
["Thermocouple",null,2,2,2,null,{"$f":"AVERAGE(C21:E21)","v":2}]
["Burner",null,2,2,2,null,{"$f":"AVERAGE(C22:E22)","v":2}]
["Safety valve",null,2,2,2,null,{"$f":"AVERAGE(C23:E23)","v":2}]
[]
["LABOR"]
[null,null,null,null,null,null,"Installation cost"]
["Installation labor cost (one time)",null,{"$f":"'Labor and Maintenance '!$J$21","v":166},{"$f":"'Labor and Maintenance '!$J$21","v":166},{"$f":"'Labor and Maintenance '!$J$21","v":166},null,{"$f":"AVERAGE(C27:E27)","v":166}]
[]
["Maintenance and repairs - FREQUENCY"]
["Expressed in frequency of occurrence (in years: quarterly = 0.25, annual = 1, every 5 years = 5, etc.)",null,null,null,null,null,"Routine maintenance frequency"]
["Frequency - Routine maintenance ",null,{"$f":"'Labor and Maintenance '!$E$40","v":8.3333333333333329E-2},{"$f":"'Labor and Maintenance '!$E$40","v":8.3333333333333329E-2},{"$f":"'Labor and Maintenance '!$E$40","v":8.3333333333333329E-2},null,{"$f":"AVERAGE(C31:E31)","v":8.3333333333333329E-2}]
[]
["Major repairs (by a technician with tools)",null,null,null,null,null,"Major repair frequency"]
["Frequency - Onsite repairs 1",null,{"$f":"'Labor and Maintenance '!$E$41","v":0},{"$f":"'Labor and Maintenance '!$E$41","v":0},{"$f":"'Labor and Maintenance '!$E$41","v":0},null,{"$f":"AVERAGE(C34:E34)","v":0}]
["Frequency - Onsite repairs 2",null,{"$f":"'Labor and Maintenance '!$E$42","v":0},{"$f":"'Labor and Maintenance '!$E$42","v":0},{"$f":"'Labor and Maintenance '!$E$42","v":0},null,{"$f":"AVERAGE(C35:E35)","v":0}]
["Frequency - Major repairs in a workshop by a technician",null,{"$f":"'Labor and Maintenance '!$E$43","v":5},{"$f":"'Labor and Maintenance '!$E$43","v":5},{"$f":"'Labor and Maintenance '!$E$43","v":5},null,{"$f":"AVERAGE(C36:E36)","v":5}]
[]
["Maintenance and repairs - HOURS"]
["Expressed in number of hours needed to complete"]
["Hours - Routine maintenance",null,{"$f":"GasMaintHrs1","v":1},{"$f":"GasMaintHrs1","v":1},{"$f":"GasMaintHrs1","v":1},null,{"$f":"AVERAGE(C40:E40)","v":1}]
[]
["Major repairs (by a technician with tools)"]
["Hours - Onsite repairs 1",null,{"$f":"'Labor and Maintenance '!$C$41","v":0},{"$f":"'Labor and Maintenance '!$C$41","v":0},{"$f":"'Labor and Maintenance '!$C$41","v":0},null,{"$f":"AVERAGE(C43:E43)","v":0}]
["Hours - Onsite repairs 2",null,{"$f":"'Labor and Maintenance '!$C$42","v":0},{"$f":"'Labor and Maintenance '!$C$42","v":0},{"$f":"'Labor and Maintenance '!$C$42","v":0},null,{"$f":"AVERAGE(C44:E44)","v":0}]
["Hours - Major repairs in a workshop by a technician",null,{"$f":"GasMaintHrs2","v":10},{"$f":"GasMaintHrs2","v":10},{"$f":"GasMaintHrs2","v":10},null,{"$f":"AVERAGE(C45:E45)","v":10}]

{"sheet":"Kerosene","index":24,"n_rows":48,"n_cols":7,"rows_kept":48,"cut":false,"hidden":false,"merged":[]}
["Technology Assumptions - Kerosene Refrigerators"]
["Technology",null,{"$f":"PQS!A50","v":"Kerosene"},{"$f":"PQS!A51","v":"Kerosene"},{"$f":"PQS!A52","v":"Kerosene"},null,"AVERAGES"]
["Manufacturer",null,{"$f":"PQS!F50","v":"Sibir"},{"$f":"PQS!F51","v":"Sibir"},{"$f":"PQS!F52","v":"B Medical"}]
["Model",null,{"$f":"PQS!E50","v":"V 170 KE "},{"$f":"PQS!E51","v":"V 110 KE "},{"$f":"PQS!E52","v":"RCW 50 EK"},null,"Capacity"]
["CCEOP",null,{"$f":"VLOOKUP(C4,PQS!$E:$G,COLUMN(PQS!$G$3)-COLUMN(PQS!$E$3)+1,FALSE)","v":"No"},{"$f":"VLOOKUP(D4,PQS!$E:$G,COLUMN(PQS!$G$3)-COLUMN(PQS!$E$3)+1,FALSE)","v":"No"},{"$f":"VLOOKUP(E4,PQS!$E:$G,COLUMN(PQS!$G$3)-COLUMN(PQS!$E$3)+1,FALSE)","v":"No"}]
["Net vaccine storage capacity",null,{"$f":"PQS!I50","v":55},{"$f":"PQS!I51","v":17},{"$f":"PQS!I52","v":24},null,{"$f":"AVERAGE(C6:E6)","v":32}]
["Waterpack freezing capacity",null,{"$f":"PQS!K50","v":0},{"$f":"PQS!K51","v":0},{"$f":"PQS!K52","v":0},null,{"$f":"AVERAGE(C7:E7)","v":0}]
[]
["HARDWARE"]
["[Unit]",null,{"$f":"PQS!B50","v":"E3/85-M"},{"$f":"PQS!B51","v":"E3/87-M "},{"$f":"PQS!B52","v":"E3/91-M "},null,"Useful life"]
["[unit] Expected useful life",null,{"$f":"KerEquipYrs","v":10},{"$f":"KerEquipYrs","v":10},{"$f":"KerEquipYrs","v":10},null,{"$f":"AVERAGE(C11:E11)","v":10}]
["Solar panel expected useful life (where applicable)"]
["Battery expected useful life"]
["Installation kit price",null,{"$f":"KerHardware","v":0},{"$f":"KerHardware","v":0},{"$f":"KerHardware","v":0},null,{"$f":"AVERAGE(C14:E14)","v":0}]
[]
[]
["[unit] PARTS"]
["Number of parts needed for useful life per unit",null,null,null,null,null,"Average"]
["Wicks",null,5,5,10,null,{"$f":"AVERAGE(C19:E19)","v":6.666666666666667}]
["Thermostat",null,0,0,1,null,{"$f":"AVERAGE(C20:E20)","v":0.33333333333333331}]
["Lamp",null,2,2,0,null,1.3333333333333333]
["Electrical heater",null,1,1,1,null,1]
["Burner",null,1,0,1,null,0.66666666666666663]
["Flue baffle",null,1,1,1,null,1]
["Wick cleaner",null,1,1,1,null,1]
["Flue brush",null,1,1,0,null,0.66666666666666663]
[]
["LABOR"]
[null,null,null,null,null,null,"Installation cost"]
["Installation labor cost (one time)",null,{"$f":"'Labor and Maintenance '!$J$20","v":166},{"$f":"'Labor and Maintenance '!$J$20","v":166},{"$f":"'Labor and Maintenance '!$J$20","v":166},null,{"$f":"AVERAGE(C30:E30)","v":166}]
[]
["Maintenance and repairs - FREQUENCY"]
["Expressed in frequency of occurrence (in years: quarterly = 0.25, annual = 1, every 5 years = 5, etc.)",null,null,null,null,null,"Routine maintenance frequency"]
["Frequency - Routine maintenance ",null,{"$f":"'Labor and Maintenance '!$E$34","v":8.3333333333333329E-2},{"$f":"'Labor and Maintenance '!$E$34","v":8.3333333333333329E-2},{"$f":"'Labor and Maintenance '!$E$34","v":8.3333333333333329E-2},null,{"$f":"AVERAGE(C34:E34)","v":8.3333333333333329E-2}]
[]
["Major repairs (by a technician with tools)",null,null,null,null,null,"Major repair frequency"]
["Frequency - Onsite repairs 1",null,{"$f":"'Labor and Maintenance '!$E$37","v":5},{"$f":"'Labor and Maintenance '!$E$37","v":5},{"$f":"'Labor and Maintenance '!$E$37","v":5},null,{"$f":"AVERAGE(C37:E37)","v":5}]
["Frequency - Onsite repairs 2",null,{"$f":"'Labor and Maintenance '!$E$36","v":2},{"$f":"'Labor and Maintenance '!$E$36","v":2},{"$f":"'Labor and Maintenance '!$E$36","v":2},null,{"$f":"AVERAGE(C38:E38)","v":2}]
["Frequency - Major repairs in a workshop by a technician",null,{"$f":"'Labor and Maintenance '!$E$37","v":5},{"$f":"'Labor and Maintenance '!$E$37","v":5},{"$f":"'Labor and Maintenance '!$E$37","v":5},null,{"$f":"AVERAGE(C39:E39)","v":5}]
[]
["Maintenance and repairs - HOURS"]
["Expressed in number of hours needed to complete"]
["Hours - Routine maintenance",null,{"$f":"KerMaintHrs1","v":1},{"$f":"KerMaintHrs1","v":1},{"$f":"KerMaintHrs1","v":1},null,{"$f":"AVERAGE(C43:E43)","v":1}]
[]
["Major repairs (by a technician with tools)"]
["Hours - Onsite repairs 1",null,{"$f":"KerMaintHrs2","v":3},{"$f":"KerMaintHrs2","v":3},{"$f":"KerMaintHrs2","v":3},null,{"$f":"AVERAGE(C46:E46)","v":3}]
["Hours - Onsite repairs 2",null,{"$f":"KerMaintHrs3","v":3},{"$f":"KerMaintHrs3","v":3},{"$f":"KerMaintHrs3","v":3},null,{"$f":"AVERAGE(C47:E47)","v":3}]
["Hours - Major repairs in a workshop by a technician",null,{"$f":"KerMaintHrs4","v":16},{"$f":"KerMaintHrs4","v":16},{"$f":"KerMaintHrs4","v":16},null,{"$f":"AVERAGE(C48:E48)","v":16}]

{"sheet":"PQS","index":25,"n_rows":129,"n_cols":38,"rows_kept":129,"cut":false,"hidden":true,"merged":[[2,24,2,25]]}
["Equipment data tables"]
[]
["Equipment Type","PQS Equipment Code","Date of prequal","Refrigerator/ Freezer Type","Model Number","Supplier","CCEOP","Shipping Weight (kg)","Vaccine Storage Capacity (liters)","Freezer's gross volume","Waterpack freezing capacity (kg/24hr)","Waterpack storage capacity","Price in UNICEF Catalogue March 2015","Price in $ or €","Price in PQS (2016)","Price in $ or €","2015 Price ($)*","Is solar panel cost included in the price?","Spare parts over lifetime","2015 Parts Price ($)","Price per liter vaccine storage","Max operating temp (Celsius)","Min operating temp (Celsius)","Energy Consumption (kW/24 hour)** or Solar radiation ref period (kWh/m2/24hr)","Fuel Consumption",null,"Holdover time during power cut (hrs)","Autonomy (hrs)","Operating cost (Energy cost/day)","Energy costs/year","Operating costs/year/liter","External dimension HxLxD (cm)","Platform approved","Freeze prevention","TechNet Review","URLs","Operating range","OPEX per year"]
["extract from PQS choices?","Green: 2014 pre-qualified equip.\nOrange: from UNICEF catalogue",null,null,null,null,null,null,null,null,null,null,"Yellow: Prices from PQS when not available in UNICEF catalogue",null,null,null,null,null,null,null,null,null,null,null,"kerosene (liters/day)","LP gas (kg/day)",null,null,null,null,null,null,"Y / N","Y / N","label","link","range C"]
["Gas","E3/88-M",2007,{"$f":"CONCATENATE(F5,\" \",E5)","v":"B Medical RCW 50 EG"},"RCW 50 EG","B Medical","No",59,24,null,null,null,2029.61,"$",null,{"$f":"N5","v":"$"},{"$f":"IF(N5=\"$\",M5, (M5*EuroExchangeRate))","v":2029.61},null,{"$f":"IFERROR(VLOOKUP(B5,Parts!$B:$E,4,FALSE),0)","v":61.46},{"$f":"IF(N5=\"$\",S5, (S5*EuroExchangeRate))","v":61.46},{"$f":"Q5/I5","v":84.567083333333329},43,null,3.5,null,0.54,4.4000000000000004,null,{"$f":"IF(A5=\"Gas\",(Z5*LPGasCost*'Country Input'!$C$57)+(X5*ElectricityCost*'Country Input'!$C$58),IF(A5=\"Freezer\",(X5*ElectricityCost),IF(A5=\"Kerosene\",(Y5*KeroseneCost*'Country Input'!$C$57)+(X5*ElectricityCost*'Country Input'!$C$58),IF(A5=\"ILR\",(X5*ElectricityCost),IF(A5=\"WICR FR\",(X5*ElectricityCost),0)))))","v":0.98820000000000008},{"$f":"IF(AC5=\"\",\"\",(AC5*365))","v":360.69300000000004},{"$f":"IF(AD5=\"\",\"\",AD5/I5)","v":15.028875000000001},"83 x 72 x 98",null,null,{"$f":"IF(AJ5=\"\",\"N/A\",(E5&\" Review\"))","v":"N/A"},null,{"$f":"IF(W5=\"\",IF(V5=\"\",\"\",V5),(W5&\" to \"&V5))","v":43},{"$f":"Calculations!U5","v":418.69300000000004}]
["Gas","E3/84-M",2007,{"$f":"CONCATENATE(F6,\" \",E6)","v":"Sibir V 170 GE"},"V 170 GE","Sibir","No",86,55,null,null,null,1621.71,"$",null,{"$f":"N6","v":"$"},1621.71,null,{"$f":"IFERROR(VLOOKUP(B6,Parts!$B:$E,4,FALSE),0)","v":113.8},{"$f":"IF(N6=\"$\",S6, (S6*EuroExchangeRate))","v":113.8},{"$f":"Q6/I6","v":29.485636363636363},43,null,8.3000000000000007,null,0.8,1.5,null,{"$f":"IF(A6=\"Gas\",(Z6*LPGasCost*'Country Input'!$C$57)+(X6*ElectricityCost*'Country Input'!$C$58),IF(A6=\"Freezer\",(X6*ElectricityCost),IF(A6=\"Kerosene\",(Y6*KeroseneCost*'Country Input'!$C$57)+(X6*ElectricityCost*'Country Input'!$C$58),IF(A6=\"ILR\",(X6*ElectricityCost),IF(A6=\"WICR FR\",(X6*ElectricityCost),0)))))","v":1.4640000000000002},534.36,9.7156363636363636,"145 x 62 x 59",null,null,"N/A",null,43,{"$f":"Calculations!U6","v":592.36}]
["Gas","E3/86-M",2007,"Sibir V 110 GE ","V 110 GE ","Sibir","No",70,17,null,null,null,1461.43,"$",null,"$",1461.43,null,{"$f":"IFERROR(VLOOKUP(B7,Parts!$B:$E,4,FALSE),0)","v":114.68},{"$f":"IF(N7=\"$\",S7, (S7*EuroExchangeRate))","v":114.68},{"$f":"Q7/I7","v":85.966470588235296},null,null,null,null,0.5,1.4,null,{"$f":"IF(A7=\"Gas\",(Z7*LPGasCost*'Country Input'!$C$57)+(X7*ElectricityCost*'Country Input'!$C$58),IF(A7=\"Freezer\",(X7*ElectricityCost),IF(A7=\"Kerosene\",(Y7*KeroseneCost*'Country Input'!$C$57)+(X7*ElectricityCost*'Country Input'!$C$58),IF(A7=\"ILR\",(X7*ElectricityCost),IF(A7=\"WICR FR\",(X7*ElectricityCost),0)))))","v":0.91500000000000004},333.97500000000002,19.64558823529412,null,null,null,"N/A",null,"",{"$f":"Calculations!U7","v":391.97500000000002}]
["Freezer","E003/002",2009,"Haier HBD 116*","HBD 116*","Haier","Yes",79,0,121,12,"136 x 0.6 L",474.64,"$",410,"$",474.64,null,{"$f":"IFERROR(VLOOKUP(B8,Parts!$B:$E,4,FALSE),0)","v":120.07333333333334},{"$f":"IF(P8=\"$\",S8, (S8*EuroExchangeRate))","v":120.07333333333334},null,43,null,0.38,null,null,2.5,null,{"$f":"IF(A8=\"Gas\",(Z8*LPGasCost*'Country Input'!$C$57)+(X8*ElectricityCost*'Country Input'!$C$58),IF(A8=\"Freezer\",(X8*ElectricityCost),IF(A8=\"Kerosene\",(Y8*KeroseneCost*'Country Input'!$C$57)+(X8*ElectricityCost*'Country Input'!$C$58),IF(A8=\"ILR\",(X8*ElectricityCost),IF(A8=\"WICR FR\",(X8*ElectricityCost),0)))))","v":7.6000000000000012E-2},27.740000000000006,{"$f":"IF(AD8=\"\",\"\",AD8/J8)","v":0.22925619834710748},"82 x 67 x 63",null,null,"HBD 116* Review","http://www.technet-21.org/en/refrigerators-and-freezers/waterpack-freezers/haier-hbd-116-e003-002",43,{"$f":"Calculations!U8","v":146.40666666666667}]
["Freezer","E003/003",2009,"Haier HBD 286*","HBD 286*","Haier","Yes",79,0,298,16.8,"310 x 0.6 L",560,"$",521,"$",560,null,{"$f":"IFERROR(VLOOKUP(B9,Parts!$B:$E,4,FALSE),0)","v":130.27333333333334},130.27333333333334,null,43,null,4.3600000000000003,null,null,4.0999999999999996,null,{"$f":"IF(A9=\"Gas\",(Z9*LPGasCost*'Country Input'!$C$57)+(X9*ElectricityCost*'Country Input'!$C$58),IF(A9=\"Freezer\",(X9*ElectricityCost),IF(A9=\"Kerosene\",(Y9*KeroseneCost*'Country Input'!$C$57)+(X9*ElectricityCost*'Country Input'!$C$58),IF(A9=\"ILR\",(X9*ElectricityCost),IF(A9=\"WICR FR\",(X9*ElectricityCost),0)))))","v":0.87200000000000011},318.28000000000003,{"$f":"IF(AD9=\"\",\"\",AD9/J9)","v":1.0680536912751679},"80 x 124 x 63",null,null,"HBD 286* Review","http://www.technet-21.org/en/refrigerators-and-freezers/waterpack-freezers/haier-hbd-286-e003-003",43,{"$f":"Calculations!U9","v":436.94666666666672}]
["Freezer","E003/023",2011,"Vestfrost MF 314*","MF 314*","Vestfrost","Yes",108.5,0,281,7.2,"256 x 0.6 L",563.69000000000005,"$",573,"€",563.69000000000005,null,{"$f":"IFERROR(VLOOKUP(B10,Parts!$B:$E,4,FALSE),0)","v":239.15999999999997},260.68439999999998,null,43,null,4.2300000000000004,null,null,4,null,{"$f":"IF(A10=\"Gas\",(Z10*LPGasCost*'Country Input'!$C$57)+(X10*ElectricityCost*'Country Input'!$C$58),IF(A10=\"Freezer\",(X10*ElectricityCost),IF(A10=\"Kerosene\",(Y10*KeroseneCost*'Country Input'!$C$57)+(X10*ElectricityCost*'Country Input'!$C$58),IF(A10=\"ILR\",(X10*ElectricityCost),IF(A10=\"WICR FR\",(X10*ElectricityCost),0)))))","v":0.84600000000000009},308.79000000000002,1.098896797153025,"84 x 156 x 70",null,null,"MF 314* Review","http://www.technet-21.org/en/refrigerators-and-freezers/waterpack-freezers/vestfrost-mf-314-e003-023",43,{"$f":"Calculations!U10","v":427.45666666666671}]
["Freezer","E003/024",2011,"Vestfrost MF 114*","MF 114*","Vestfrost","Yes",70,0,105,7.2,"64 x 0.6 L",422.51,"$",421,"€",422.51,null,{"$f":"IFERROR(VLOOKUP(B11,Parts!$B:$E,4,FALSE),0)","v":239.15999999999997},260.68439999999998,null,43,null,2.2400000000000002,null,null,2.8,null,{"$f":"IF(A11=\"Gas\",(Z11*LPGasCost*'Country Input'!$C$57)+(X11*ElectricityCost*'Country Input'!$C$58),IF(A11=\"Freezer\",(X11*ElectricityCost),IF(A11=\"Kerosene\",(Y11*KeroseneCost*'Country Input'!$C$57)+(X11*ElectricityCost*'Country Input'!$C$58),IF(A11=\"ILR\",(X11*ElectricityCost),IF(A11=\"WICR FR\",(X11*ElectricityCost),0)))))","v":0.44800000000000006},163.52000000000001,1.5573333333333335,"84 x 72 x 70",null,null,"MF 114* Review","http://www.technet-21.org/en/refrigerators-and-freezers/waterpack-freezers/vestfrost-mf-114",43,{"$f":"Calculations!U11","v":282.18666666666667}]
["Freezer","E003/025",2011,"Vestfrost MF 214*","MF 214*","Vestfrost","Yes",96.3,0,171,7.2,"160 x 0.6 L",486.2,"$",490,"€",486.2,null,{"$f":"IFERROR(VLOOKUP(B12,Parts!$B:$E,4,FALSE),0)","v":239.14999999999998},260.67349999999999,null,43,null,3,null,null,2.9,null,{"$f":"IF(A12=\"Gas\",(Z12*LPGasCost*'Country Input'!$C$57)+(X12*ElectricityCost*'Country Input'!$C$58),IF(A12=\"Freezer\",(X12*ElectricityCost),IF(A12=\"Kerosene\",(Y12*KeroseneCost*'Country Input'!$C$57)+(X12*ElectricityCost*'Country Input'!$C$58),IF(A12=\"ILR\",(X12*ElectricityCost),IF(A12=\"WICR FR\",(X12*ElectricityCost),0)))))","v":0.60000000000000009},219.00000000000003,1.2807017543859651,"84 x 113 x 70",null,null,"MF 214* Review","http://www.technet-21.org/en/refrigerators-and-freezers/waterpack-freezers/vestfrost-mf-214-e003-025",43,{"$f":"Calculations!U12","v":337.66666666666669}]
["Freezer","E003/004",2009,"B Medical TFW 800*","TFW 800*","B Medical","Yes",109,0,290,36,"187 x 0.6 L",3133.55,"$",2579,"€",3133.55,null,{"$f":"IFERROR(VLOOKUP(B13,Parts!$B:$E,4,FALSE),0)","v":359.45},391.8005,null,43,null,3.35,null,null,"N/A",null,{"$f":"IF(A13=\"Gas\",(Z13*LPGasCost*'Country Input'!$C$57)+(X13*ElectricityCost*'Country Input'!$C$58),IF(A13=\"Freezer\",(X13*ElectricityCost),IF(A13=\"Kerosene\",(Y13*KeroseneCost*'Country Input'!$C$57)+(X13*ElectricityCost*'Country Input'!$C$58),IF(A13=\"ILR\",(X13*ElectricityCost),IF(A13=\"WICR FR\",(X13*ElectricityCost),0)))))","v":0.67},244.55,0.84327586206896554,"183 x 59.5 x 72.5",null,null,"TFW 800* Review","http://www.technet-21.org/en/refrigerators-and-freezers/waterpack-freezers/dometic-tfw-800-e003-004",43,{"$f":"Calculations!U13","v":363.2166666666667}]
["Freezer","E003/060",2015,"Aucma DW-25W147*","DW-25W147*","Aucma","Yes",45,0,96,14.5,19.399999999999999,{"$f":"O14","v":450},"$",450,"$",450,null,{"$f":"IFERROR(VLOOKUP(B14,Parts!$B:$E,4,FALSE),0)","v":218.96000000000004},218.96000000000004,null,43,5,3.31,null,null,{"$f":"6+44/60","v":6.7333333333333334},null,{"$f":"IF(A14=\"Gas\",(Z14*LPGasCost*'Country Input'!$C$57)+(X14*ElectricityCost*'Country Input'!$C$58),IF(A14=\"Freezer\",(X14*ElectricityCost),IF(A14=\"Kerosene\",(Y14*KeroseneCost*'Country Input'!$C$57)+(X14*ElectricityCost*'Country Input'!$C$58),IF(A14=\"ILR\",(X14*ElectricityCost),IF(A14=\"WICR FR\",(X14*ElectricityCost),0)))))","v":0.66200000000000003},241.63000000000002,2.5169791666666668,"79 x 59.5 x 88",null,null,"N/A",null,"5 to 43",{"$f":"Calculations!U14","v":360.29666666666662}]
["Freezer","E003/061",2015,"Aucma DW-25W300*","DW-25W300*","Aucma","Yes",75,0,240,38.299999999999997,44.3,540,"$",540,"$",540,null,{"$f":"IFERROR(VLOOKUP(B15,Parts!$B:$E,4,FALSE),0)","v":387.34999999999997},387.34999999999997,null,43,5,3.37,null,null,{"$f":"58+36/60","v":58.6},null,{"$f":"IF(A15=\"Gas\",(Z15*LPGasCost*'Country Input'!$C$57)+(X15*ElectricityCost*'Country Input'!$C$58),IF(A15=\"Freezer\",(X15*ElectricityCost),IF(A15=\"Kerosene\",(Y15*KeroseneCost*'Country Input'!$C$57)+(X15*ElectricityCost*'Country Input'!$C$58),IF(A15=\"ILR\",(X15*ElectricityCost),IF(A15=\"WICR FR\",(X15*ElectricityCost),0)))))","v":0.67400000000000004},246.01000000000002,1.0250416666666669,"122.6 x 79 x 94.5",null,null,"N/A",null,"5 to 43",{"$f":"Calculations!U15","v":364.67666666666662}]
["Freezer","E003/071",2016,"B Medical TFW 3000 AC*","TFW 3000 AC*","B Medical","Yes",126,0,204,32,"162 x 0.6 L",2789,"€",2789,"€",3040.01,null,{"$f":"IFERROR(VLOOKUP(B16,Parts!$B:$E,4,FALSE),0)","v":610.15000000000009},{"$f":"IF(P16=\"$\",S16, (S16*EuroExchangeRate))","v":665.0635000000002},null,43,null,2.15,null,null,null,null,{"$f":"IF(A16=\"Gas\",(Z16*LPGasCost*'Country Input'!$C$57)+(X16*ElectricityCost*'Country Input'!$C$58),IF(A16=\"Freezer\",(X16*ElectricityCost),IF(A16=\"Kerosene\",(Y16*KeroseneCost*'Country Input'!$C$57)+(X16*ElectricityCost*'Country Input'!$C$58),IF(A16=\"ILR\",(X16*ElectricityCost),IF(A16=\"WICR FR\",(X16*ElectricityCost),0)))))","v":0.43},{"$f":"IF(AC16=\"\",\"\",(AC16*365))","v":156.94999999999999},0.76936274509803915,"91 x 127 x 78",null,null,"N/A",null,43,{"$f":"Calculations!U16","v":275.61666666666667}]
["Freezer","E003/073",2016,"B Medical TFW 40 SDD*","TFW 40 SDD*","B Medical","Yes",119,0,64,2.16,11.24,4789,"€",4789,"€",5220.01,"YES",{"$f":"IFERROR(VLOOKUP(B17,Parts!$B:$E,4,FALSE),0)","v":633.99999999999989},{"$f":"IF(P17=\"$\",S17, (S17*EuroExchangeRate))","v":691.06},null,43,null,3.5,null,null,null,{"$f":"24*5","v":120},0,0,0,"90 x 78 x 103",null,null,"N/A",null,43,{"$f":"Calculations!U17","v":118.66666666666666}]
["ILR","E003/005",2009,"Haier HBC-70","HBC-70","Haier","No",64,45,null,null,null,515,"$",510,"$",515,null,{"$f":"IFERROR(VLOOKUP(B18,Parts!$B:$E,4,FALSE),0)","v":184.12333333333333},184.12333333333333,{"$f":"Q18/I18","v":11.444444444444445},43,5,0.64,null,null,27.3,null,{"$f":"IF(A18=\"Gas\",(Z18*LPGasCost*'Country Input'!$C$57)+(X18*ElectricityCost*'Country Input'!$C$58),IF(A18=\"Freezer\",(X18*ElectricityCost),IF(A18=\"Kerosene\",(Y18*KeroseneCost*'Country Input'!$C$57)+(X18*ElectricityCost*'Country Input'!$C$58),IF(A18=\"ILR\",(X18*ElectricityCost),IF(A18=\"WICR FR\",(X18*ElectricityCost),0)))))","v":0.128},46.72,1.0382222222222222,"81.8 x 67.3 x 66.3",null,null,"HBC-70 Review","http://www.technet-21.org/en/refrigerators-and-freezers/ice-lined-refrigerators-and-refrigerator-freezers/haier-hbc-70-e003-005","5 to 43",{"$f":"Calculations!U18","v":165.38666666666666}]
["ILR","E003/006",2009,"Haier HBC-200","HBC-200","Haier","No",108,90,null,null,null,650,"$",688,"$",650,null,{"$f":"IFERROR(VLOOKUP(B19,Parts!$B:$E,4,FALSE),0)","v":188.12333333333336},188.12333333333336,7.2222222222222223,43,5,1.34,null,null,31.38,null,{"$f":"IF(A19=\"Gas\",(Z19*LPGasCost*'Country Input'!$C$57)+(X19*ElectricityCost*'Country Input'!$C$58),IF(A19=\"Freezer\",(X19*ElectricityCost),IF(A19=\"Kerosene\",(Y19*KeroseneCost*'Country Input'!$C$57)+(X19*ElectricityCost*'Country Input'!$C$58),IF(A19=\"ILR\",(X19*ElectricityCost),IF(A19=\"WICR FR\",(X19*ElectricityCost),0)))))","v":0.26800000000000002},97.820000000000007,1.086888888888889,"81.8 x 124.3 x 63",null,null,"HBC-200 Review","http://www.technet-21.org/en/refrigerators-and-freezers/ice-lined-refrigerators-and-refrigerator-freezers/haier-hbc-200-e003-006","5 to 43",{"$f":"Calculations!U19","v":216.48666666666668}]
["ILR","E003/007",2009,"Vestfrost MK 304","MK 304","Vestfrost","No",126,105,null,null,null,813.16,"$",793,"€",813.16,null,{"$f":"IFERROR(VLOOKUP(B20,Parts!$B:$E,4,FALSE),0)","v":384.52},419.1268,7.7443809523809524,43,5,3.2,null,null,25.1,null,{"$f":"IF(A20=\"Gas\",(Z20*LPGasCost*'Country Input'!$C$57)+(X20*ElectricityCost*'Country Input'!$C$58),IF(A20=\"Freezer\",(X20*ElectricityCost),IF(A20=\"Kerosene\",(Y20*KeroseneCost*'Country Input'!$C$57)+(X20*ElectricityCost*'Country Input'!$C$58),IF(A20=\"ILR\",(X20*ElectricityCost),IF(A20=\"WICR FR\",(X20*ElectricityCost),0)))))","v":0.64000000000000012},233.60000000000005,2.2247619047619054,"84 x 69 x 126",null,null,"MK 304 Review","http://www.technet-21.org/en/refrigerators-and-freezers/ice-lined-refrigerators-and-refrigerator-freezers/vestfrost-mk-304-e003-007","5 to 43",{"$f":"Calculations!U20","v":352.26666666666665}]
["ILR","E003/010",2010,"Vestfrost MKF 074","MKF 074","Vestfrost","No",90,16,10,1.6,"9 x 0.6 L",788.22,"$",725,"€",788.22,null,{"$f":"IFERROR(VLOOKUP(B21,Parts!$B:$E,4,FALSE),0)","v":218.66},238.33940000000001,49.263750000000002,32,5,3.46,null,null,52.9,null,{"$f":"IF(A21=\"Gas\",(Z21*LPGasCost*'Country Input'!$C$57)+(X21*ElectricityCost*'Country Input'!$C$58),IF(A21=\"Freezer\",(X21*ElectricityCost),IF(A21=\"Kerosene\",(Y21*KeroseneCost*'Country Input'!$C$57)+(X21*ElectricityCost*'Country Input'!$C$58),IF(A21=\"ILR\",(X21*ElectricityCost),IF(A21=\"WICR FR\",(X21*ElectricityCost),0)))))","v":0.69200000000000006},252.58,15.786250000000001,"84 x 70 x 72",null,null,"MKF 074 Review","http://www.technet-21.org/en/refrigerators-and-freezers/ice-lined-refrigerators-and-refrigerator-freezers/vestfrost-mkf-074-e003-010","5 to 32",{"$f":"Calculations!U21","v":371.24666666666667}]
["ILR","E003/011",2010,"Vestfrost MK 204","MK 204","Vestfrost","No",102,75,null,null,null,684.71,"$",674,"€",684.71,null,{"$f":"IFERROR(VLOOKUP(B22,Parts!$B:$E,4,FALSE),0)","v":266.07},290.0163,9.1294666666666675,43,10,1.89,null,null,20.100000000000001,null,{"$f":"IF(A22=\"Gas\",(Z22*LPGasCost*'Country Input'!$C$57)+(X22*ElectricityCost*'Country Input'!$C$58),IF(A22=\"Freezer\",(X22*ElectricityCost),IF(A22=\"Kerosene\",(Y22*KeroseneCost*'Country Input'!$C$57)+(X22*ElectricityCost*'Country Input'!$C$58),IF(A22=\"ILR\",(X22*ElectricityCost),IF(A22=\"WICR FR\",(X22*ElectricityCost),0)))))","v":0.378},137.97,1.8395999999999999,"84 x 70 x 92",null,null,"MK 204 Review","http://www.technet-21.org/en/refrigerators-and-freezers/ice-lined-refrigerators-and-refrigerator-freezers/vestfrost-mk-204-e003-011","10 to 43",{"$f":"Calculations!U22","v":256.63666666666666}]
["ILR","E003/012",2010,"Vestfrost MK 404","MK 404","Vestfrost","No",null,135,null,null,null,995.47,"$",900,"€",995.47,null,{"$f":"IFERROR(VLOOKUP(B23,Parts!$B:$E,4,FALSE),0)","v":315.05},343.40450000000004,7.3738518518518523,43,25,3.08,null,null,23.38,null,{"$f":"IF(A23=\"Gas\",(Z23*LPGasCost*'Country Input'!$C$57)+(X23*ElectricityCost*'Country Input'!$C$58),IF(A23=\"Freezer\",(X23*ElectricityCost),IF(A23=\"Kerosene\",(Y23*KeroseneCost*'Country Input'!$C$57)+(X23*ElectricityCost*'Country Input'!$C$58),IF(A23=\"ILR\",(X23*ElectricityCost),IF(A23=\"WICR FR\",(X23*ElectricityCost),0)))))","v":0.6160000000000001},224.84000000000003,1.6654814814814818,"84 x 70 x 156",null,null,"MK 404 Review","http://www.technet-21.org/en/refrigerators-and-freezers/ice-lined-refrigerators-and-refrigerator-freezers/vestfrost-mk-404","25 to 43",{"$f":"Calculations!U23","v":343.50666666666666}]
["ILR","E003/014",2010,"B Medical TCW 2000 AC*","TCW 2000 AC*","B Medical","Yes",125,60,42,10,"12 kg",2254.7800000000002,"$",2509,"€",2254.7800000000002,null,{"$f":"IFERROR(VLOOKUP(B24,Parts!$B:$E,4,FALSE),0)","v":567.28},618.33519999999999,37.579666666666668,43,15,1.87,null,null,39.4,null,{"$f":"IF(A24=\"Gas\",(Z24*LPGasCost*'Country Input'!$C$57)+(X24*ElectricityCost*'Country Input'!$C$58),IF(A24=\"Freezer\",(X24*ElectricityCost),IF(A24=\"Kerosene\",(Y24*KeroseneCost*'Country Input'!$C$57)+(X24*ElectricityCost*'Country Input'!$C$58),IF(A24=\"ILR\",(X24*ElectricityCost),IF(A24=\"WICR FR\",(X24*ElectricityCost),0)))))","v":0.37400000000000005},136.51000000000002,2.2751666666666668,"90 x 127 x 78",null,null,"TCW 2000 AC* Review","http://www.technet-21.org/en/refrigerators-and-freezers/ice-lined-refrigerators-and-refrigerator-freezers/dometic-tcw2000-ac-e003-014","15 to 43",{"$f":"Calculations!U24","v":255.17666666666668}]
["ILR","E003/017",2011,"B Medical TCW 3000 AC","TCW 3000 AC","B Medical","No",125,150,204,null,"112.2 kg",2223.9899999999998,"$",2615,"€",2223.9899999999998,null,{"$f":"IFERROR(VLOOKUP(B25,Parts!$B:$E,4,FALSE),0)","v":405.86},442.38740000000007,14.826599999999999,43,15,1.37,null,null,53.16,null,{"$f":"IF(A25=\"Gas\",(Z25*LPGasCost*'Country Input'!$C$57)+(X25*ElectricityCost*'Country Input'!$C$58),IF(A25=\"Freezer\",(X25*ElectricityCost),IF(A25=\"Kerosene\",(Y25*KeroseneCost*'Country Input'!$C$57)+(X25*ElectricityCost*'Country Input'!$C$58),IF(A25=\"ILR\",(X25*ElectricityCost),IF(A25=\"WICR FR\",(X25*ElectricityCost),0)))))","v":0.27400000000000002},100.01,0.6667333333333334,"91 x 127 x 78",null,null,"TCW 3000 AC Review","http://www.technet-21.org/en/refrigerators-and-freezers/ice-lined-refrigerators-and-refrigerator-freezers/dometic-tcw3000-ac-e003-017","15 to 43",{"$f":"Calculations!U25","v":218.67666666666668}]
["ILR","E003/021",2011,"Vestfrost VLS 400","VLS 400","Vestfrost","No",126,216,null,null,null,836.52,"$",826,"€",836.52,null,{"$f":"IFERROR(VLOOKUP(B26,Parts!$B:$E,4,FALSE),0)","v":263.19},286.87710000000004,3.8727777777777779,43,5,0.82,null,null,30,null,{"$f":"IF(A26=\"Gas\",(Z26*LPGasCost*'Country Input'!$C$57)+(X26*ElectricityCost*'Country Input'!$C$58),IF(A26=\"Freezer\",(X26*ElectricityCost),IF(A26=\"Kerosene\",(Y26*KeroseneCost*'Country Input'!$C$57)+(X26*ElectricityCost*'Country Input'!$C$58),IF(A26=\"ILR\",(X26*ElectricityCost),IF(A26=\"WICR FR\",(X26*ElectricityCost),0)))))","v":0.16400000000000001},59.86,0.27712962962962961,"86 x 127 x 70",null,null,"VLS 400 Review","http://www.technet-21.org/en/refrigerators-and-freezers/ice-lined-refrigerators-and-refrigerator-freezers/vestfrost-vls-400-e003-021","5 to 43",{"$f":"Calculations!U26","v":178.52666666666664}]
["ILR","E003/022",2011,"Vestfrost MK 144","MK 144","Vestfrost","No",70,48,null,null,null,589.16999999999996,"$",614,"€",589.16999999999996,null,{"$f":"IFERROR(VLOOKUP(B27,Parts!$B:$E,4,FALSE),0)","v":262.04999999999995},285.63449999999995,12.274374999999999,43,25,2.2999999999999998,null,null,43.13,null,{"$f":"IF(A27=\"Gas\",(Z27*LPGasCost*'Country Input'!$C$57)+(X27*ElectricityCost*'Country Input'!$C$58),IF(A27=\"Freezer\",(X27*ElectricityCost),IF(A27=\"Kerosene\",(Y27*KeroseneCost*'Country Input'!$C$57)+(X27*ElectricityCost*'Country Input'!$C$58),IF(A27=\"ILR\",(X27*ElectricityCost),IF(A27=\"WICR FR\",(X27*ElectricityCost),0)))))","v":0.45999999999999996},167.89999999999998,3.4979166666666663,"88 x 96.5 x 71",null,null,"MK 144 Review","http://www.technet-21.org/en/refrigerators-and-freezers/ice-lined-refrigerators-and-refrigerator-freezers/vestfrost-mk-144-e003-022","25 to 43",{"$f":"Calculations!U27","v":286.56666666666661}]
["ILR","E003/031",2012,"Vestfrost VLS 200","VLS 200","Vestfrost","No",70,100,39,3,"64 x 0.6L",598.73,"$",582,"€",598.73,null,{"$f":"IFERROR(VLOOKUP(B28,Parts!$B:$E,4,FALSE),0)","v":255.75},278.76750000000004,5.9873000000000003,43,5,0.71,null,null,24.4,null,{"$f":"IF(A28=\"Gas\",(Z28*LPGasCost*'Country Input'!$C$57)+(X28*ElectricityCost*'Country Input'!$C$58),IF(A28=\"Freezer\",(X28*ElectricityCost),IF(A28=\"Kerosene\",(Y28*KeroseneCost*'Country Input'!$C$57)+(X28*ElectricityCost*'Country Input'!$C$58),IF(A28=\"ILR\",(X28*ElectricityCost),IF(A28=\"WICR FR\",(X28*ElectricityCost),0)))))","v":0.14199999999999999},51.83,0.51829999999999998,"85 x 73 x 70",null,null,"VLS 200 Review","http://www.technet-21.org/en/refrigerators-and-freezers/ice-lined-refrigerators-and-refrigerator-freezers/vestfrost-vls-200-e003-031","5 to 43",{"$f":"Calculations!U28","v":170.49666666666667}]
["ILR","E003/032",2012,"Vestfrost VLS 300","VLS 300","Vestfrost","No",93,148,null,null,null,{"$f":"O29","v":698},{"$f":"P29","v":"€"},698,"€",760.82,null,{"$f":"IFERROR(VLOOKUP(B29,Parts!$B:$E,4,FALSE),0)","v":177.01},192.9409,5.1406756756756762,43,5,0.66,null,null,23.5,null,{"$f":"IF(A29=\"Gas\",(Z29*LPGasCost*'Country Input'!$C$57)+(X29*ElectricityCost*'Country Input'!$C$58),IF(A29=\"Freezer\",(X29*ElectricityCost),IF(A29=\"Kerosene\",(Y29*KeroseneCost*'Country Input'!$C$57)+(X29*ElectricityCost*'Country Input'!$C$58),IF(A29=\"ILR\",(X29*ElectricityCost),IF(A29=\"WICR FR\",(X29*ElectricityCost),0)))))","v":0.13200000000000001},48.18,0.32554054054054055,"85 x 92 x 70",null,null,"VLS 300 Review","http://www.technet-21.org/en/refrigerators-and-freezers/ice-lined-refrigerators-and-refrigerator-freezers/vestfrost-vls-300-e003-032","5 to 43",{"$f":"Calculations!U29","v":166.84666666666666}]
["ILR","E003/033",2012,"Vestfrost VLS 350","VLS 350","Vestfrost","No",110,196,null,null,null,763.27,"$",780,"€",763.27,null,{"$f":"IFERROR(VLOOKUP(B30,Parts!$B:$E,4,FALSE),0)","v":263.19},286.87710000000004,3.8942346938775509,43,5,0.61,null,null,31.5,null,{"$f":"IF(A30=\"Gas\",(Z30*LPGasCost*'Country Input'!$C$57)+(X30*ElectricityCost*'Country Input'!$C$58),IF(A30=\"Freezer\",(X30*ElectricityCost),IF(A30=\"Kerosene\",(Y30*KeroseneCost*'Country Input'!$C$57)+(X30*ElectricityCost*'Country Input'!$C$58),IF(A30=\"ILR\",(X30*ElectricityCost),IF(A30=\"WICR FR\",(X30*ElectricityCost),0)))))","v":0.122},44.53,0.22719387755102041,"85 x 113 x 70",null,null,"VLS 350 Review","http://www.technet-21.org/en/refrigerators-and-freezers/ice-lined-refrigerators-and-refrigerator-freezers/vestfrost-vls-350-e003-033","5 to 43",{"$f":"Calculations!U30","v":163.19666666666666}]
["ILR","E003/034",2012,"Haier HBC-110","HBC-110","Haier","No",93,52.5,null,null,null,550,"$",590,"$",550,null,{"$f":"IFERROR(VLOOKUP(B31,Parts!$B:$E,4,FALSE),0)","v":195.62333333333333},195.62333333333333,10.476190476190476,43,5,1.2,null,null,36.28,null,{"$f":"IF(A31=\"Gas\",(Z31*LPGasCost*'Country Input'!$C$57)+(X31*ElectricityCost*'Country Input'!$C$58),IF(A31=\"Freezer\",(X31*ElectricityCost),IF(A31=\"Kerosene\",(Y31*KeroseneCost*'Country Input'!$C$57)+(X31*ElectricityCost*'Country Input'!$C$58),IF(A31=\"ILR\",(X31*ElectricityCost),IF(A31=\"WICR FR\",(X31*ElectricityCost),0)))))","v":0.24},87.6,1.6685714285714284,"86 x 63 x 81.8",null,null,"HBC-110 Review","http://www.technet-21.org/en/refrigerators-and-freezers/ice-lined-refrigerators-and-refrigerator-freezers/haier-hbc-110-e003-034","5 to 43",{"$f":"Calculations!U31","v":206.26666666666665}]
["ILR","E003/036",2013,"Zero ZLF 100 AC*","ZLF 100 AC*","Zero","Yes",100,99,null,null,null,{"$f":"O32","v":2015},{"$f":"P32","v":"$"},2015,"$",2015,null,{"$f":"IFERROR(VLOOKUP(B32,Parts!$B:$E,4,FALSE),0)","v":481},481,20.353535353535353,43,5,1.96,null,null,113.7,null,{"$f":"IF(A32=\"Gas\",(Z32*LPGasCost*'Country Input'!$C$57)+(X32*ElectricityCost*'Country Input'!$C$58),IF(A32=\"Freezer\",(X32*ElectricityCost),IF(A32=\"Kerosene\",(Y32*KeroseneCost*'Country Input'!$C$57)+(X32*ElectricityCost*'Country Input'!$C$58),IF(A32=\"ILR\",(X32*ElectricityCost),IF(A32=\"WICR FR\",(X32*ElectricityCost),0)))))","v":0.39200000000000002},143.08000000000001,1.4452525252525255,"178 x 85 x 71",null,null,"ZLF 100 AC* Review","http://www.technet-21.org/en/refrigerators-and-freezers/ice-lined-refrigerators-and-refrigerator-freezers/zero-appliances-zlf-100ac-e003-036","5 to 43",{"$f":"Calculations!U32","v":261.74666666666667}]
["ILR","E003/038",2014,"Haier HBC-340","HBC-340","Haier","No",165,211,null,null,null,900,"$",1180,"$",900,null,{"$f":"IFERROR(VLOOKUP(B33,Parts!$B:$E,4,FALSE),0)","v":269.84000000000003},269.84000000000003,4.2654028436018958,43,5,2.06,null,null,45.63,null,{"$f":"IF(A33=\"Gas\",(Z33*LPGasCost*'Country Input'!$C$57)+(X33*ElectricityCost*'Country Input'!$C$58),IF(A33=\"Freezer\",(X33*ElectricityCost),IF(A33=\"Kerosene\",(Y33*KeroseneCost*'Country Input'!$C$57)+(X33*ElectricityCost*'Country Input'!$C$58),IF(A33=\"ILR\",(X33*ElectricityCost),IF(A33=\"WICR FR\",(X33*ElectricityCost),0)))))","v":0.41200000000000003},150.38000000000002,0.71270142180094798,"165 x 65 x 85.5",null,null,"HBC-340 Review","http://www.technet-21.org/en/refrigerators-and-freezers/ice-lined-refrigerators-and-refrigerator-freezers/haier-hbc-340-e003-038","5 to 43",{"$f":"Calculations!U33","v":269.04666666666668}]
["ILR","E003/044",2014,"Zero ZLF 150 AC*","ZLF 150 AC*","Zero","Yes",116,128,null,null,null,{"$f":"O34","v":2429},"$",2429,"$",2429,null,{"$f":"IFERROR(VLOOKUP(B34,Parts!$B:$E,4,FALSE),0)","v":481},481,18.9765625,43,5,1.98,null,null,128.19999999999999,null,{"$f":"IF(A34=\"Gas\",(Z34*LPGasCost*'Country Input'!$C$57)+(X34*ElectricityCost*'Country Input'!$C$58),IF(A34=\"Freezer\",(X34*ElectricityCost),IF(A34=\"Kerosene\",(Y34*KeroseneCost*'Country Input'!$C$57)+(X34*ElectricityCost*'Country Input'!$C$58),IF(A34=\"ILR\",(X34*ElectricityCost),IF(A34=\"WICR FR\",(X34*ElectricityCost),0)))))","v":0.39600000000000002},144.54000000000002,1.1292187500000002,"190 x 85 x 72",null,null,"ZLF 150 AC* Review","http://www.technet-21.org/en/refrigerators-and-freezers/ice-lined-refrigerators-and-refrigerator-freezers/zero-zlf150ac","5 to 43",{"$f":"Calculations!U34","v":263.20666666666671}]
["ILR","E003/046",2014,"Godrej & Boyce  GVR 50 AC*","GVR 50 AC*","Godrej & Boyce ","Yes",125,46.8,null,null,null,1500,"$",1500,"$",1500,null,{"$f":"IFERROR(VLOOKUP(B35,Parts!$B:$E,4,FALSE),0)","v":156},156,32.051282051282051,43,10,0.56000000000000005,null,null,182,null,{"$f":"IF(A35=\"Gas\",(Z35*LPGasCost*'Country Input'!$C$57)+(X35*ElectricityCost*'Country Input'!$C$58),IF(A35=\"Freezer\",(X35*ElectricityCost),IF(A35=\"Kerosene\",(Y35*KeroseneCost*'Country Input'!$C$57)+(X35*ElectricityCost*'Country Input'!$C$58),IF(A35=\"ILR\",(X35*ElectricityCost),IF(A35=\"WICR FR\",(X35*ElectricityCost),0)))))","v":0.11200000000000002},40.880000000000003,0.87350427350427362,"122 x 79.5 x 75",null,null,"GVR 50 AC* Review","http://www.technet-21.org/en/refrigerators-and-freezers/ice-lined-refrigerators-and-refrigerator-freezers/godrej-gvr-50-ac-sure-chill","10 to 43",{"$f":"Calculations!U35","v":159.54666666666665}]
["ILR","E003/047",2014,"Godrej & Boyce  GVR 100 AC*","GVR 100 AC*","Godrej & Boyce ","Yes",160,99,null,null,null,2300,"$",2300,"$",2300,null,{"$f":"IFERROR(VLOOKUP(B36,Parts!$B:$E,4,FALSE),0)","v":156},156,23.232323232323232,43,10,0.75,null,null,300.3,null,{"$f":"IF(A36=\"Gas\",(Z36*LPGasCost*'Country Input'!$C$57)+(X36*ElectricityCost*'Country Input'!$C$58),IF(A36=\"Freezer\",(X36*ElectricityCost),IF(A36=\"Kerosene\",(Y36*KeroseneCost*'Country Input'!$C$57)+(X36*ElectricityCost*'Country Input'!$C$58),IF(A36=\"ILR\",(X36*ElectricityCost),IF(A36=\"WICR FR\",(X36*ElectricityCost),0)))))","v":0.15000000000000002},54.750000000000007,0.55303030303030309,"182 x 79.5 x 75",null,null,"GVR 100 AC* Review","http://www.technet-21.org/en/refrigerators-and-freezers/ice-lined-refrigerators-and-refrigerator-freezers/godrej-gvr-100-ac-sure-chill","10 to 43",{"$f":"Calculations!U36","v":173.41666666666666}]
["ILR","E003/051",2015,"Zero ZLF 30 AC*","ZLF 30 AC*","Zero","Yes",65,27,null,null,null,1192,"$",1192,"$",1192,null,{"$f":"IFERROR(VLOOKUP(B37,Parts!$B:$E,4,FALSE),0)","v":481},481,44.148148148148145,43,10,1.6819999999999999,null,null,77.2,null,{"$f":"IF(A37=\"Gas\",(Z37*LPGasCost*'Country Input'!$C$57)+(X37*ElectricityCost*'Country Input'!$C$58),IF(A37=\"Freezer\",(X37*ElectricityCost),IF(A37=\"Kerosene\",(Y37*KeroseneCost*'Country Input'!$C$57)+(X37*ElectricityCost*'Country Input'!$C$58),IF(A37=\"ILR\",(X37*ElectricityCost),IF(A37=\"WICR FR\",(X37*ElectricityCost),0)))))","v":0.33640000000000003},122.78600000000002,4.5476296296296299,"102.8 x 61.9 x 56.3",null,null,"ZLF 30 AC* Review","http://www.technet-21.org/en/refrigerators-and-freezers/ice-lined-refrigerators-and-refrigerator-freezers/zero-appliances-zlf30ac","10 to 43",{"$f":"Calculations!U37","v":241.45266666666666}]
["ILR","E003/062",2016,"Vestfrost VLS 200A*","VLS 200A*","Vestfrost","Yes",70,60,null,null,null,{"$f":"O38","v":669},{"$f":"P38","v":"€"},669,"€",729.21,null,{"$f":"IFERROR(VLOOKUP(B38,Parts!$B:$E,4,FALSE),0)","v":250.65999999999997},{"$f":"IF(P38=\"$\",S38, (S38*EuroExchangeRate))","v":273.21940000000001},12.153500000000001,43,5,0.56999999999999995,null,null,54,null,{"$f":"IF(A38=\"Gas\",(Z38*LPGasCost*'Country Input'!$C$57)+(X38*ElectricityCost*'Country Input'!$C$58),IF(A38=\"Freezer\",(X38*ElectricityCost),IF(A38=\"Kerosene\",(Y38*KeroseneCost*'Country Input'!$C$57)+(X38*ElectricityCost*'Country Input'!$C$58),IF(A38=\"ILR\",(X38*ElectricityCost),IF(A38=\"WICR FR\",(X38*ElectricityCost),0)))))","v":0.11399999999999999},{"$f":"IF(AC38=\"\",\"\",(AC38*365))","v":41.61},{"$f":"IF(AD38=\"\",\"\",AD38/I38)","v":0.69350000000000001},"85 x 73 x 70",null,null,"N/A",null,"5 to 43",{"$f":"Calculations!U38","v":160.27666666666664}]
["ILR","E003/063",2016,"Vestfrost VLS 300A*","VLS 300A*","Vestfrost","Yes",93,98,null,null,null,822,"€",822,"€",895.98,null,{"$f":"IFERROR(VLOOKUP(B39,Parts!$B:$E,4,FALSE),0)","v":261.04999999999995},284.54449999999997,9.1426530612244896,43,5,0.69,null,null,55.5,null,{"$f":"IF(A39=\"Gas\",(Z39*LPGasCost*'Country Input'!$C$57)+(X39*ElectricityCost*'Country Input'!$C$58),IF(A39=\"Freezer\",(X39*ElectricityCost),IF(A39=\"Kerosene\",(Y39*KeroseneCost*'Country Input'!$C$57)+(X39*ElectricityCost*'Country Input'!$C$58),IF(A39=\"ILR\",(X39*ElectricityCost),IF(A39=\"WICR FR\",(X39*ElectricityCost),0)))))","v":0.13799999999999998},50.37,0.51397959183673469,"85 x 92 x 70",null,null,"N/A",null,"5 to 43",{"$f":"Calculations!U39","v":169.03666666666666}]
["ILR","E003/064",2016,"Vestfrost VLS 350A*","VLS 350A*","Vestfrost","Yes",110,127,null,null,null,924,"€",924,"€",1007.1600000000001,null,{"$f":"IFERROR(VLOOKUP(B40,Parts!$B:$E,4,FALSE),0)","v":265.10999999999996},288.9699,7.9303937007874019,43,5,0.62,null,null,54.7,null,{"$f":"IF(A40=\"Gas\",(Z40*LPGasCost*'Country Input'!$C$57)+(X40*ElectricityCost*'Country Input'!$C$58),IF(A40=\"Freezer\",(X40*ElectricityCost),IF(A40=\"Kerosene\",(Y40*KeroseneCost*'Country Input'!$C$57)+(X40*ElectricityCost*'Country Input'!$C$58),IF(A40=\"ILR\",(X40*ElectricityCost),IF(A40=\"WICR FR\",(X40*ElectricityCost),0)))))","v":0.124},45.26,0.3563779527559055,"85 x 113 x 70",null,null,"N/A",null,"5 to 43",{"$f":"Calculations!U40","v":163.92666666666665}]
["ILR","E003/065",2016,"Vestfrost VLS 400A*","VLS 400A*","Vestfrost","Yes",126,145,null,null,null,1005,"€",1005,"€",1095.45,null,{"$f":"IFERROR(VLOOKUP(B41,Parts!$B:$E,4,FALSE),0)","v":262.79999999999995},286.452,7.5548275862068968,43,5,0.67,null,null,55,null,{"$f":"IF(A41=\"Gas\",(Z41*LPGasCost*'Country Input'!$C$57)+(X41*ElectricityCost*'Country Input'!$C$58),IF(A41=\"Freezer\",(X41*ElectricityCost),IF(A41=\"Kerosene\",(Y41*KeroseneCost*'Country Input'!$C$57)+(X41*ElectricityCost*'Country Input'!$C$58),IF(A41=\"ILR\",(X41*ElectricityCost),IF(A41=\"WICR FR\",(X41*ElectricityCost),0)))))","v":0.13400000000000001},48.910000000000004,0.33731034482758621,"86 x 127 x 70",null,null,"N/A",null,"5 to 43",{"$f":"Calculations!U41","v":167.57666666666665}]
["ILR","E003/066",2016,"B Medical TCW 4000 AC*","TCW 4000 AC*","B Medical","Yes",174,240,null,null,null,{"$f":"O42","v":3307},{"$f":"P42","v":"€"},3307,"€",3604.63,null,{"$f":"IFERROR(VLOOKUP(B42,Parts!$B:$E,4,FALSE),0)","v":509.17},{"$f":"IF(P42=\"$\",S42, (S42*EuroExchangeRate))","v":554.99530000000004},15.019291666666668,43,5,0.85,null,null,77.3,null,{"$f":"IF(A42=\"Gas\",(Z42*LPGasCost*'Country Input'!$C$57)+(X42*ElectricityCost*'Country Input'!$C$58),IF(A42=\"Freezer\",(X42*ElectricityCost),IF(A42=\"Kerosene\",(Y42*KeroseneCost*'Country Input'!$C$57)+(X42*ElectricityCost*'Country Input'!$C$58),IF(A42=\"ILR\",(X42*ElectricityCost),IF(A42=\"WICR FR\",(X42*ElectricityCost),0)))))","v":0.17},{"$f":"IF(AC42=\"\",\"\",(AC42*365))","v":62.050000000000004},{"$f":"IF(AD42=\"\",\"\",AD42/I42)","v":0.25854166666666667},"162.5 x 78 x 91.5",null,null,"N/A",null,"5 to 43",{"$f":"Calculations!U42","v":180.71666666666667}]
["ILR","E003/070",2016,"Vestfrost VLS 064 RF","VLS 064 RF","Vestfrost","No",98,52.5,5.0999999999999996,1.6,"6 x 0.6L",954,"€",954,"€",1039.8600000000001,null,{"$f":"IFERROR(VLOOKUP(B43,Parts!$B:$E,4,FALSE),0)","v":161.17000000000002},{"$f":"IF(P43=\"$\",S43, (S43*EuroExchangeRate))","v":175.67530000000002},19.806857142857144,43,10,1.5,null,null,20.2,null,{"$f":"IF(A43=\"Gas\",(Z43*LPGasCost*'Country Input'!$C$57)+(X43*ElectricityCost*'Country Input'!$C$58),IF(A43=\"Freezer\",(X43*ElectricityCost),IF(A43=\"Kerosene\",(Y43*KeroseneCost*'Country Input'!$C$57)+(X43*ElectricityCost*'Country Input'!$C$58),IF(A43=\"ILR\",(X43*ElectricityCost),IF(A43=\"WICR FR\",(X43*ElectricityCost),0)))))","v":0.30000000000000004},{"$f":"IF(AC43=\"\",\"\",(AC43*365))","v":109.50000000000001},{"$f":"IF(AD43=\"\",\"\",AD43/I43)","v":2.0857142857142859},"84.5 x 72.5 x71",null,null,"N/A",null,"10 to 43",{"$f":"Calculations!U43","v":228.16666666666666}]
["ILR","E003/072",2016,"Dulas Solar VC 225 ILR*","VC 225 ILR*","Dulas Solar","Yes",172,203.2,null,null,null,2600,"$",2600,"$",2600,null,{"$f":"IFERROR(VLOOKUP(B44,Parts!$B:$E,4,FALSE),0)","v":549},549,{"$f":"Q44/I44","v":12.795275590551181},43,5,0.80300000000000005,null,null,94,null,{"$f":"IF(A44=\"Gas\",(Z44*LPGasCost*'Country Input'!$C$57)+(X44*ElectricityCost*'Country Input'!$C$58),IF(A44=\"Freezer\",(X44*ElectricityCost),IF(A44=\"Kerosene\",(Y44*KeroseneCost*'Country Input'!$C$57)+(X44*ElectricityCost*'Country Input'!$C$58),IF(A44=\"ILR\",(X44*ElectricityCost),IF(A44=\"WICR FR\",(X44*ElectricityCost),0)))))","v":0.16060000000000002},{"$f":"IF(AC44=\"\",\"\",(AC44*365))","v":58.619000000000007},{"$f":"IF(AD44=\"\",\"\",AD44/I44)","v":0.28847933070866144},"98.6 x 128.7 x 78",null,null,"N/A",null,"5 to 43",{"$f":"Calculations!U44","v":177.28566666666666}]
["ILR","E003/079",2016,"Aucma CFD-50","CFD-50","Aucma","No",100,50,null,null,null,1400,"$",1400,"$",1400,null,{"$f":"IFERROR(VLOOKUP(B45,Parts!$B:$E,4,FALSE),0)","v":1166.5},1166.5,28,43,10,0.76,null,null,135,null,{"$f":"IF(A45=\"Gas\",(Z45*LPGasCost*'Country Input'!$C$57)+(X45*ElectricityCost*'Country Input'!$C$58),IF(A45=\"Freezer\",(X45*ElectricityCost),IF(A45=\"Kerosene\",(Y45*KeroseneCost*'Country Input'!$C$57)+(X45*ElectricityCost*'Country Input'!$C$58),IF(A45=\"ILR\",(X45*ElectricityCost),IF(A45=\"WICR FR\",(X45*ElectricityCost),0)))))","v":0.15200000000000002},{"$f":"IF(AC45=\"\",\"\",(AC45*365))","v":55.480000000000011},{"$f":"IF(AD45=\"\",\"\",AD45/I45)","v":1.1096000000000001},"158.8 x 54.5 x 65.5",null,null,"N/A",null,"10 to 43",{"$f":"Calculations!U45","v":174.14666666666668}]
["ILR","E003/080",2016,"Godrej & Boyce  GVR 51 LITE AC*","GVR 51 LITE AC*","Godrej & Boyce ","Yes",160,51,null,null,null,1800,"$",1800,"$",1800,null,{"$f":"IFERROR(VLOOKUP(B46,Parts!$B:$E,4,FALSE),0)","v":207},207,35.294117647058826,43,10,2.04,null,null,55,null,{"$f":"IF(A46=\"Gas\",(Z46*LPGasCost*'Country Input'!$C$57)+(X46*ElectricityCost*'Country Input'!$C$58),IF(A46=\"Freezer\",(X46*ElectricityCost),IF(A46=\"Kerosene\",(Y46*KeroseneCost*'Country Input'!$C$57)+(X46*ElectricityCost*'Country Input'!$C$58),IF(A46=\"ILR\",(X46*ElectricityCost),IF(A46=\"WICR FR\",(X46*ElectricityCost),0)))))","v":0.40800000000000003},148.92000000000002,2.9200000000000004,"62 x 73.5 x 151.5",null,null,"N/A",null,"10 to 43",{"$f":"Calculations!U46","v":267.5866666666667}]
["ILR","E003/081",2016,"Godrej & Boyce  GVR 75 Lite*","GVR 75 Lite*","Godrej & Boyce ","Yes",115,72.5,null,null,null,972,"$",972,"$",972,null,{"$f":"IFERROR(VLOOKUP(B47,Parts!$B:$E,4,FALSE),0)","v":207},207,13.406896551724138,43,10,1.47,null,null,81,null,{"$f":"IF(A47=\"Gas\",(Z47*LPGasCost*'Country Input'!$C$57)+(X47*ElectricityCost*'Country Input'!$C$58),IF(A47=\"Freezer\",(X47*ElectricityCost),IF(A47=\"Kerosene\",(Y47*KeroseneCost*'Country Input'!$C$57)+(X47*ElectricityCost*'Country Input'!$C$58),IF(A47=\"ILR\",(X47*ElectricityCost),IF(A47=\"WICR FR\",(X47*ElectricityCost),0)))))","v":0.29399999999999998},107.30999999999999,1.4801379310344827,"151.5 x 62 x 73.5",null,null,"N/A",null,"10 to 43",{"$f":"Calculations!U47","v":225.97666666666666}]
["ILR","E003/082",2016,"Godrej & Boyce  GVR 99 Lite*","GVR 99 Lite*","Godrej & Boyce ","Yes",125,98.5,null,null,null,1050,"$",1050,"$",1050,null,{"$f":"IFERROR(VLOOKUP(B48,Parts!$B:$E,4,FALSE),0)","v":207},207,10.659898477157361,43,10,1.23,null,null,{"$f":"59+34/60","v":59.56666666666667},null,{"$f":"IF(A48=\"Gas\",(Z48*LPGasCost*'Country Input'!$C$57)+(X48*ElectricityCost*'Country Input'!$C$58),IF(A48=\"Freezer\",(X48*ElectricityCost),IF(A48=\"Kerosene\",(Y48*KeroseneCost*'Country Input'!$C$57)+(X48*ElectricityCost*'Country Input'!$C$58),IF(A48=\"ILR\",(X48*ElectricityCost),IF(A48=\"WICR FR\",(X48*ElectricityCost),0)))))","v":0.246},89.789999999999992,0.91157360406091359,"62 x 73.5 x 170",null,null,"N/A",null,"10 to 43",{"$f":"Calculations!U48","v":208.45666666666665}]
["ILR","E003/083",2016,"Godrej & Boyce  GVR 225 AC*","GVR 225 AC*","Godrej & Boyce ","Yes",160,225,null,null,null,1800,"$",1800,"$",1800,null,{"$f":"IFERROR(VLOOKUP(B49,Parts!$B:$E,4,FALSE),0)","v":156},156,8,43,10,2.04,null,null,55,null,{"$f":"IF(A49=\"Gas\",(Z49*LPGasCost*'Country Input'!$C$57)+(X49*ElectricityCost*'Country Input'!$C$58),IF(A49=\"Freezer\",(X49*ElectricityCost),IF(A49=\"Kerosene\",(Y49*KeroseneCost*'Country Input'!$C$57)+(X49*ElectricityCost*'Country Input'!$C$58),IF(A49=\"ILR\",(X49*ElectricityCost),IF(A49=\"WICR FR\",(X49*ElectricityCost),0)))))","v":0.40800000000000003},148.92000000000002,0.66186666666666671,"79.5 x 75 x 182",null,null,"N/A",null,"10 to 43",{"$f":"Calculations!U49","v":267.5866666666667}]
["Kerosene","E3/85-M",2007,"Sibir V 170 KE ","V 170 KE ","Sibir","No",118,55,null,null,null,694.78,"$",null,"€",694.78,null,{"$f":"IFERROR(VLOOKUP(B50,Parts!$B:$E,4,FALSE),0)","v":166.71},181.71390000000002,{"$f":"Q50/I50","v":12.632363636363635},null,null,null,1.4,null,2.4,null,{"$f":"IF(A50=\"Gas\",(Z50*LPGasCost*'Country Input'!$C$57)+(X50*ElectricityCost*'Country Input'!$C$58),IF(A50=\"Freezer\",(X50*ElectricityCost),IF(A50=\"Kerosene\",(Y50*KeroseneCost*'Country Input'!$C$57)+(X50*ElectricityCost*'Country Input'!$C$58),IF(A50=\"ILR\",(X50*ElectricityCost),IF(A50=\"WICR FR\",(X50*ElectricityCost),0)))))","v":1.6379999999999999},597.87,10.870363636363637,null,null,null,"N/A",null,"",{"$f":"Calculations!U50","v":690.47}]
["Kerosene","E3/87-M ",2007,"Sibir V 110 KE ","V 110 KE ","Sibir","No",70,17,null,null,null,1816.77,"$",null,"€",1816.77,null,{"$f":"IFERROR(VLOOKUP(B51,Parts!$B:$E,4,FALSE),0)","v":66.724999999999994},72.730249999999998,106.86882352941177,null,null,null,0.5,null,null,null,{"$f":"IF(A51=\"Gas\",(Z51*LPGasCost*'Country Input'!$C$57)+(X51*ElectricityCost*'Country Input'!$C$58),IF(A51=\"Freezer\",(X51*ElectricityCost),IF(A51=\"Kerosene\",(Y51*KeroseneCost*'Country Input'!$C$57)+(X51*ElectricityCost*'Country Input'!$C$58),IF(A51=\"ILR\",(X51*ElectricityCost),IF(A51=\"WICR FR\",(X51*ElectricityCost),0)))))","v":0.58499999999999996},213.52499999999998,12.560294117647057,null,null,null,"N/A",null,"",{"$f":"Calculations!U51","v":306.125}]
["Kerosene","E3/91-M ",2007,"B Medical RCW 50 EK","RCW 50 EK","B Medical","No",76,24,null,null,null,3030.3,"$",null,"€",3030.3,null,{"$f":"IFERROR(VLOOKUP(B52,Parts!$B:$E,4,FALSE),0)","v":136.77000000000001},149.07930000000002,126.2625,32,null,1.75,0.8,null,0.5,null,{"$f":"IF(A52=\"Gas\",(Z52*LPGasCost*'Country Input'!$C$57)+(X52*ElectricityCost*'Country Input'!$C$58),IF(A52=\"Freezer\",(X52*ElectricityCost),IF(A52=\"Kerosene\",(Y52*KeroseneCost*'Country Input'!$C$57)+(X52*ElectricityCost*'Country Input'!$C$58),IF(A52=\"ILR\",(X52*ElectricityCost),IF(A52=\"WICR FR\",(X52*ElectricityCost),0)))))","v":0.93599999999999994},{"$f":"IF(AC52=\"\",\"\",(AC52*365))","v":341.64},{"$f":"IF(AD52=\"\",\"\",AD52/I52)","v":14.234999999999999},"83 x 72 x 98",null,null,{"$f":"IF(AJ52=\"\",\"N/A\",(E52&\" Review\"))","v":"N/A"},null,{"$f":"IF(W52=\"\",IF(V52=\"\",\"\",V52),(W52&\" to \"&V52))","v":32},{"$f":"Calculations!U52","v":434.24}]
["SDD","E003/009",2010,"Vestfrost MKS 044","MKS 044","Vestfrost","No",88,19.5,null,null,null,2319.5300000000002,"$",2318,"€",{"$f":"IF(N53=\"$\",M53, (M53*EuroExchangeRate))","v":2319.5300000000002},"YES",{"$f":"IFERROR(VLOOKUP(B53,Parts!$B:$E,4,FALSE),0)","v":437.57000000000011},476.95130000000017,118.95025641025642,32,20,6,null,null,114,147,{"$f":"IF(A53=\"Gas\",(Z53*LPGasCost*'Country Input'!$C$57)+(X53*ElectricityCost*'Country Input'!$C$58),IF(A53=\"Freezer\",(X53*ElectricityCost),IF(A53=\"Kerosene\",(Y53*KeroseneCost*'Country Input'!$C$57)+(X53*ElectricityCost*'Country Input'!$C$58),IF(A53=\"ILR\",(X53*ElectricityCost),IF(A53=\"WICR FR\",(X53*ElectricityCost),0)))))","v":0},0,0,"87.6 x 72.7 x 69.7",null,null,"MKS 044 Review","http://www.technet-21.org/en/refrigerators-and-freezers/solar-direct-drive-refrigerators-with-without-ancillary-battery/vestfrost-mks-044-e003-009","20 to 32",{"$f":"Calculations!U53","v":107.5}]
["SDD","E003/029",2012,"Haier HTC-60","HTC-60","Haier","No",98,21,null,null,null,2500,{"$f":"P54","v":"$"},2500,"$",2500,"YES",{"$f":"IFERROR(VLOOKUP(B54,Parts!$B:$E,4,FALSE),0)","v":249.35000000000002},249.35000000000002,119.04761904761905,32,10,3.5,null,null,119.42,135.5,{"$f":"IF(A54=\"Gas\",(Z54*LPGasCost*'Country Input'!$C$57)+(X54*ElectricityCost*'Country Input'!$C$58),IF(A54=\"Freezer\",(X54*ElectricityCost),IF(A54=\"Kerosene\",(Y54*KeroseneCost*'Country Input'!$C$57)+(X54*ElectricityCost*'Country Input'!$C$58),IF(A54=\"ILR\",(X54*ElectricityCost),IF(A54=\"WICR FR\",(X54*ElectricityCost),0)))))","v":0},0,0,"78.8 x 65.4 x 87.5",null,null,"HTC-60 Review","http://www.technet-21.org/en/refrigerators-and-freezers/solar-direct-drive-refrigerators-with-without-ancillary-battery/haier-htc-60-e003-029","10 to 32",{"$f":"Calculations!U54","v":107.5}]
["SDD","E003/020",2011,"SunDanzer BFRV 55*","BFRV 55*","SunDanzer","Yes",218,54.5,null,null,null,3035,{"$f":"P55","v":"$"},3399,"$",3035,"YES",{"$f":"IFERROR(VLOOKUP(B55,Parts!$B:$E,4,FALSE),0)","v":430},430,55.688073394495412,43,5,3.5,null,null,65.16,{"$f":"83+29/60","v":83.483333333333334},{"$f":"IF(A55=\"Gas\",(Z55*LPGasCost*'Country Input'!$C$57)+(X55*ElectricityCost*'Country Input'!$C$58),IF(A55=\"Freezer\",(X55*ElectricityCost),IF(A55=\"Kerosene\",(Y55*KeroseneCost*'Country Input'!$C$57)+(X55*ElectricityCost*'Country Input'!$C$58),IF(A55=\"ILR\",(X55*ElectricityCost),IF(A55=\"WICR FR\",(X55*ElectricityCost),0)))))","v":0},0,0,"88 x 96.5 x 71",null,null,"BFRV 55* Review","http://www.technet-21.org/en/refrigerators-and-freezers/solar-direct-drive-refrigerators-with-without-ancillary-battery/sundanzer-bfrv-55-e003-020","5 to 43",{"$f":"Calculations!U55","v":107.5}]
["SDD","E003/030",2012,"B Medical TCW 3000 SDD","TCW 3000 SDD","B Medical","No",114,156,null,null,null,6399.15,"$",5749,"€",6399.15,"YES",{"$f":"IFERROR(VLOOKUP(B56,Parts!$B:$E,4,FALSE),0)","v":640.65000000000009},698.30850000000009,{"$f":"Q56/I56","v":41.020192307692305},32,5,3.5,null,null,94.08,86.93,{"$f":"IF(A56=\"Gas\",(Z56*LPGasCost*'Country Input'!$C$57)+(X56*ElectricityCost*'Country Input'!$C$58),IF(A56=\"Freezer\",(X56*ElectricityCost),IF(A56=\"Kerosene\",(Y56*KeroseneCost*'Country Input'!$C$57)+(X56*ElectricityCost*'Country Input'!$C$58),IF(A56=\"ILR\",(X56*ElectricityCost),IF(A56=\"WICR FR\",(X56*ElectricityCost),0)))))","v":0},0,0,"91 x 127 x 78",null,null,"TCW 3000 SDD Review","http://www.technet-21.org/en/refrigerators-and-freezers/solar-direct-drive-refrigerators-with-without-ancillary-battery/dometic-tcw3000-sdd-e003-030","5 to 32",{"$f":"Calculations!U56","v":107.5}]
["SDD","E003/035",2012,"B Medical TCW 2000 SDD","TCW 2000 SDD","B Medical","No",125,99,42,2.4,"14.4 kg",9255.84,"$",8580,"€",9255.84,"YES",{"$f":"IFERROR(VLOOKUP(B57,Parts!$B:$E,4,FALSE),0)","v":649.60000000000014},708.06400000000019,{"$f":"Q57/I57","v":93.493333333333339},32,5,3.5,null,null,94,{"$f":"85+24/60","v":85.4},{"$f":"IF(A57=\"Gas\",(Z57*LPGasCost*'Country Input'!$C$57)+(X57*ElectricityCost*'Country Input'!$C$58),IF(A57=\"Freezer\",(X57*ElectricityCost),IF(A57=\"Kerosene\",(Y57*KeroseneCost*'Country Input'!$C$57)+(X57*ElectricityCost*'Country Input'!$C$58),IF(A57=\"ILR\",(X57*ElectricityCost),IF(A57=\"WICR FR\",(X57*ElectricityCost),0)))))","v":0},0,0,"127 x 78 x 91",null,null,"TCW 2000 SDD Review","http://www.technet-21.org/en/refrigerators-and-freezers/solar-direct-drive-refrigerator-freezers/dometic-tcw2000-sdd-e003-035","5 to 32",{"$f":"Calculations!U57","v":107.5}]
["SDD","E003/037",2013,"Zero ZLF 100 DC*","ZLF 100 DC*","Zero","Yes",115,99,null,null,null,5122,{"$f":"P58","v":"$"},3933,"$",5122,"YES",{"$f":"IFERROR(VLOOKUP(B58,Parts!$B:$E,4,FALSE),0)","v":666},666,51.737373737373737,43,5,3.5,null,null,125,170.1,{"$f":"IF(A58=\"Gas\",(Z58*LPGasCost*'Country Input'!$C$57)+(X58*ElectricityCost*'Country Input'!$C$58),IF(A58=\"Freezer\",(X58*ElectricityCost),IF(A58=\"Kerosene\",(Y58*KeroseneCost*'Country Input'!$C$57)+(X58*ElectricityCost*'Country Input'!$C$58),IF(A58=\"ILR\",(X58*ElectricityCost),IF(A58=\"WICR FR\",(X58*ElectricityCost),0)))))","v":0},0,0,"180 x 85 x 73",null,null,"ZLF 100 DC* Review","http://www.technet-21.org/en/refrigerators-and-freezers/solar-direct-drive-refrigerators-with-without-ancillary-battery/zero-appliances-zlf100dc-e003-037","5 to 43",{"$f":"Calculations!U58","v":107.5}]
["SDD","E003/039",2014,"SunDanzer BFRV 15 SDD*","BFRV 15 SDD*","SunDanzer","Yes",147,15,null,null,null,2440,"$",2295,"$",2440,"YES",{"$f":"IFERROR(VLOOKUP(B59,Parts!$B:$E,4,FALSE),0)","v":330},330,162.66666666666666,43,5,3.5,null,null,107.48,101.31,{"$f":"IF(A59=\"Gas\",(Z59*LPGasCost*'Country Input'!$C$57)+(X59*ElectricityCost*'Country Input'!$C$58),IF(A59=\"Freezer\",(X59*ElectricityCost),IF(A59=\"Kerosene\",(Y59*KeroseneCost*'Country Input'!$C$57)+(X59*ElectricityCost*'Country Input'!$C$58),IF(A59=\"ILR\",(X59*ElectricityCost),IF(A59=\"WICR FR\",(X59*ElectricityCost),0)))))","v":0},0,0,"77 x 69 x 59.5",null,null,"BFRV 15 SDD* Review","http://www.technet-21.org/en/refrigerators-and-freezers/solar-direct-drive-refrigerators-with-without-ancillary-battery/sundanzer-bfrv-15-sdd-e003-039","5 to 43",{"$f":"Calculations!U59","v":107.5}]
["SDD","E003/040",2014,"Dulas Solar VC 200 SDD*","VC 200 SDD*","Dulas Solar","Yes",129,132,null,null,null,4606.46,"$",4050,"$",4606.46,"YES",{"$f":"IFERROR(VLOOKUP(B60,Parts!$B:$E,4,FALSE),0)","v":371},371,34.897424242424243,43,5,3.5,null,null,90.5,{"$f":"79+29/60","v":79.483333333333334},{"$f":"IF(A60=\"Gas\",(Z60*LPGasCost*'Country Input'!$C$57)+(X60*ElectricityCost*'Country Input'!$C$58),IF(A60=\"Freezer\",(X60*ElectricityCost),IF(A60=\"Kerosene\",(Y60*KeroseneCost*'Country Input'!$C$57)+(X60*ElectricityCost*'Country Input'!$C$58),IF(A60=\"ILR\",(X60*ElectricityCost),IF(A60=\"WICR FR\",(X60*ElectricityCost),0)))))","v":0},0,0,"73.1 x 94.5 x 128.5",null,null,"VC 200 SDD* Review","http://www.technet-21.org/en/refrigerators-and-freezers/solar-battery-powered-refrigerators-and-or-refrigerator-freezers/dulas-solar-vc-200-1-e003-028","5 to 43",{"$f":"Calculations!U60","v":107.5}]
["SDD","E003/041",2014,"Vestfrost VLS 054 SDD*","VLS 054 SDD*","Vestfrost","Yes",85,55.5,null,null,null,2945.86,"$",2874,"€",2945.86,"YES",{"$f":"IFERROR(VLOOKUP(B61,Parts!$B:$E,4,FALSE),0)","v":468.76000000000005},510.94840000000011,53.078558558558562,43,5,3.5,null,null,79.400000000000006,72.400000000000006,{"$f":"IF(A61=\"Gas\",(Z61*LPGasCost*'Country Input'!$C$57)+(X61*ElectricityCost*'Country Input'!$C$58),IF(A61=\"Freezer\",(X61*ElectricityCost),IF(A61=\"Kerosene\",(Y61*KeroseneCost*'Country Input'!$C$57)+(X61*ElectricityCost*'Country Input'!$C$58),IF(A61=\"ILR\",(X61*ElectricityCost),IF(A61=\"WICR FR\",(X61*ElectricityCost),0)))))","v":0},0,0,"85 x 72 x 60",null,null,"VLS 054 SDD* Review","http://www.technet-21.org/en/refrigerators-and-freezers/solar-battery-powered-refrigerators-and-or-refrigerator-freezers/vestfrost-vls-054-green-line-sdd","5 to 43",{"$f":"Calculations!U61","v":107.5}]
["SDD","E003/042",2014,"B Medical TCW 40 SDD*","TCW 40 SDD*","B Medical","Yes",120,36,4.8,1.8,"5.2kg",5925.69,"$",5279,"€",5925.69,"YES",{"$f":"IFERROR(VLOOKUP(B62,Parts!$B:$E,4,FALSE),0)","v":729.89000000000021},795.58010000000024,164.60249999999999,43,5,3.5,null,null,93.4,{"$f":"81+54/60","v":81.900000000000006},{"$f":"IF(A62=\"Gas\",(Z62*LPGasCost*'Country Input'!$C$57)+(X62*ElectricityCost*'Country Input'!$C$58),IF(A62=\"Freezer\",(X62*ElectricityCost),IF(A62=\"Kerosene\",(Y62*KeroseneCost*'Country Input'!$C$57)+(X62*ElectricityCost*'Country Input'!$C$58),IF(A62=\"ILR\",(X62*ElectricityCost),IF(A62=\"WICR FR\",(X62*ElectricityCost),0)))))","v":0},0,0,"78 x 103 x 90",null,null,"TCW 40 SDD* Review","http://www.technet-21.org/en/refrigerators-and-freezers/solar-direct-drive-refrigerator-freezers/dometic-tcw40sdd-e003-042","5 to 43",{"$f":"Calculations!U62","v":107.5}]
["SDD","E003/043",2014,"B Medical TCW 2043 SDD*","TCW 2043 SDD*","B Medical","Yes",160,70,42,2.5,"10.5 kg",9166.66,"$",8158,"€",9166.66,"YES",{"$f":"IFERROR(VLOOKUP(B63,Parts!$B:$E,4,FALSE),0)","v":546.71},595.91390000000013,130.95228571428572,43,5,3.5,null,null,79,{"$f":"73+54/60","v":73.900000000000006},{"$f":"IF(A63=\"Gas\",(Z63*LPGasCost*'Country Input'!$C$57)+(X63*ElectricityCost*'Country Input'!$C$58),IF(A63=\"Freezer\",(X63*ElectricityCost),IF(A63=\"Kerosene\",(Y63*KeroseneCost*'Country Input'!$C$57)+(X63*ElectricityCost*'Country Input'!$C$58),IF(A63=\"ILR\",(X63*ElectricityCost),IF(A63=\"WICR FR\",(X63*ElectricityCost),0)))))","v":0},0,0,"91 x 127 x 78",null,null,"TCW 2043 SDD* Review","http://www.technet-21.org/en/refrigerators-and-freezers/solar-direct-drive-refrigerator-freezers/dometic-tcw-2043-sdd-e003-043","5 to 43",{"$f":"Calculations!U63","v":107.5}]
["SDD","E003/045",2014,"B Medical TCW 3043 SDD*","TCW 3043 SDD*","B Medical","Yes",169,89,null,null,null,6763.27,"$",6110,"€",6763.27,"YES",{"$f":"IFERROR(VLOOKUP(B64,Parts!$B:$E,4,FALSE),0)","v":616.3900000000001},671.86510000000021,75.991797752808992,43,5,3.5,null,null,124.8,116.68,{"$f":"IF(A64=\"Gas\",(Z64*LPGasCost*'Country Input'!$C$57)+(X64*ElectricityCost*'Country Input'!$C$58),IF(A64=\"Freezer\",(X64*ElectricityCost),IF(A64=\"Kerosene\",(Y64*KeroseneCost*'Country Input'!$C$57)+(X64*ElectricityCost*'Country Input'!$C$58),IF(A64=\"ILR\",(X64*ElectricityCost),IF(A64=\"WICR FR\",(X64*ElectricityCost),0)))))","v":0},0,0,"91 x 127 x 78",null,null,"TCW 3043 SDD* Review","http://www.technet-21.org/en/refrigerators-and-freezers/solar-direct-drive-refrigerators-with-without-ancillary-battery/dometic-tcw3043sdd","5 to 43",{"$f":"Calculations!U64","v":107.5}]
["SDD","E003/048",2015,"Dulas Solar VC 150 SDD*","VC 150 SDD*","Dulas Solar","Yes",171,102,42.9,2.04,"8.1 kg",6854.56,"$",6800,"€",6854.56,"YES",{"$f":"IFERROR(VLOOKUP(B65,Parts!$B:$E,4,FALSE),0)","v":395},430.55,67.201568627450982,43,5,3.5,null,null,122.5,77.989999999999995,{"$f":"IF(A65=\"Gas\",(Z65*LPGasCost*'Country Input'!$C$57)+(X65*ElectricityCost*'Country Input'!$C$58),IF(A65=\"Freezer\",(X65*ElectricityCost),IF(A65=\"Kerosene\",(Y65*KeroseneCost*'Country Input'!$C$57)+(X65*ElectricityCost*'Country Input'!$C$58),IF(A65=\"ILR\",(X65*ElectricityCost),IF(A65=\"WICR FR\",(X65*ElectricityCost),0)))))","v":0},0,0,"735 x 992 x 1283",null,null,"VC 150 SDD* Review","http://www.technet-21.org/en/refrigerators-and-freezers/solar-direct-drive-refrigerator-freezers/dulas-vc150sdd","5 to 43",{"$f":"Calculations!U65","v":107.5}]
["SDD","E003/049",2015,"Godrej & Boyce  GVR 50DC SDD*","GVR 50DC SDD*","Godrej & Boyce ","Yes",{"$f":"125+115","v":240},46.5,null,null,null,3395,"$",3450,"$",3395,"YES",{"$f":"IFERROR(VLOOKUP(B66,Parts!$B:$E,4,FALSE),0)","v":388},388,73.010752688172047,43,10,3.5,null,null,83,77,{"$f":"IF(A66=\"Gas\",(Z66*LPGasCost*'Country Input'!$C$57)+(X66*ElectricityCost*'Country Input'!$C$58),IF(A66=\"Freezer\",(X66*ElectricityCost),IF(A66=\"Kerosene\",(Y66*KeroseneCost*'Country Input'!$C$57)+(X66*ElectricityCost*'Country Input'!$C$58),IF(A66=\"ILR\",(X66*ElectricityCost),IF(A66=\"WICR FR\",(X66*ElectricityCost),0)))))","v":0},0,0,"121.5 x 79.5 x 75",null,null,"GVR 50DC SDD* Review","http://www.technet-21.org/en/refrigerators-and-freezers/solar-direct-drive-refrigerators-with-without-ancillary-battery/godrej-and-boyce-gvr50dc-sdd","10 to 43",{"$f":"Calculations!U66","v":107.5}]
["SDD","E003/050",2015,"Godrej & Boyce  GVR 100DC (SureChill)*","GVR 100DC (SureChill)*","Godrej & Boyce ","Yes",{"$f":"160+115","v":275},99,null,null,null,4699.5,"$",4815,"$",4699.5,"YES",{"$f":"IFERROR(VLOOKUP(B67,Parts!$B:$E,4,FALSE),0)","v":388},388,47.469696969696969,43,10,3.5,null,null,119.2,null,{"$f":"IF(A67=\"Gas\",(Z67*LPGasCost*'Country Input'!$C$57)+(X67*ElectricityCost*'Country Input'!$C$58),IF(A67=\"Freezer\",(X67*ElectricityCost),IF(A67=\"Kerosene\",(Y67*KeroseneCost*'Country Input'!$C$57)+(X67*ElectricityCost*'Country Input'!$C$58),IF(A67=\"ILR\",(X67*ElectricityCost),IF(A67=\"WICR FR\",(X67*ElectricityCost),0)))))","v":0},0,0,"182 x 79.5 x 75",null,null,"GVR 100DC (SureChill)* Review","http://www.technet-21.org/en/refrigerators-and-freezers/solar-direct-drive-refrigerators-with-without-ancillary-battery/godrej-gvr-100-dc-surechill","10 to 43",{"$f":"Calculations!U67","v":107.5}]
["SDD","E003/052",2015,"Zero ZLF 150DC*","ZLF 150DC*","Zero","Yes",120,128,null,null,null,5517,"$",4355,"$",5517,"YES",{"$f":"IFERROR(VLOOKUP(B68,Parts!$B:$E,4,FALSE),0)","v":709},709,43.1015625,43,5,3.5,null,null,167.9,107.9,{"$f":"IF(A68=\"Gas\",(Z68*LPGasCost*'Country Input'!$C$57)+(X68*ElectricityCost*'Country Input'!$C$58),IF(A68=\"Freezer\",(X68*ElectricityCost),IF(A68=\"Kerosene\",(Y68*KeroseneCost*'Country Input'!$C$57)+(X68*ElectricityCost*'Country Input'!$C$58),IF(A68=\"ILR\",(X68*ElectricityCost),IF(A68=\"WICR FR\",(X68*ElectricityCost),0)))))","v":0},0,0,"189 x 83 x 71",null,null,"ZLF 150DC* Review","http://www.technet-21.org/en/refrigerators-and-freezers/solar-direct-drive-refrigerators-with-without-ancillary-battery/zero-appliances-zlf150dc","5 to 43",{"$f":"Calculations!U68","v":107.5}]
["SDD","E003/053",2015,"Vestfrost VLS 094 SDD*","VLS 094 SDD*","Vestfrost","Yes",108,92,null,null,null,3301.49,"$",3214,"€",3301.49,"YES",{"$f":"IFERROR(VLOOKUP(B69,Parts!$B:$E,4,FALSE),0)","v":465.27000000000004},507.1443000000001,35.885760869565217,43,5,3.5,null,null,73.5,72.5,{"$f":"IF(A69=\"Gas\",(Z69*LPGasCost*'Country Input'!$C$57)+(X69*ElectricityCost*'Country Input'!$C$58),IF(A69=\"Freezer\",(X69*ElectricityCost),IF(A69=\"Kerosene\",(Y69*KeroseneCost*'Country Input'!$C$57)+(X69*ElectricityCost*'Country Input'!$C$58),IF(A69=\"ILR\",(X69*ElectricityCost),IF(A69=\"WICR FR\",(X69*ElectricityCost),0)))))","v":0},0,0,"86 x 93 x 70",null,null,"VLS 094 SDD* Review","http://www.technet-21.org/en/refrigerators-and-freezers/solar-direct-drive-refrigerators-with-without-ancillary-battery/solar-direct-drive-refrigerator","5 to 43",{"$f":"Calculations!U69","v":107.5}]
["SDD","E003/054",2015,"Vestfrost VLS 154 SDD*","VLS 154 SDD*","Vestfrost","Yes",108,170,null,null,null,4087.05,"$",4053,"€",4087.05,"NO",{"$f":"IFERROR(VLOOKUP(B70,Parts!$B:$E,4,FALSE),0)","v":458.21000000000004},499.44890000000009,24.041470588235295,43,5,3.5,null,null,77.75,73.400000000000006,{"$f":"IF(A70=\"Gas\",(Z70*LPGasCost*'Country Input'!$C$57)+(X70*ElectricityCost*'Country Input'!$C$58),IF(A70=\"Freezer\",(X70*ElectricityCost),IF(A70=\"Kerosene\",(Y70*KeroseneCost*'Country Input'!$C$57)+(X70*ElectricityCost*'Country Input'!$C$58),IF(A70=\"ILR\",(X70*ElectricityCost),IF(A70=\"WICR FR\",(X70*ElectricityCost),0)))))","v":0},0,0,"86 x 127 x 70",null,null,"VLS 154 SDD* Review","http://www.technet-21.org/en/refrigerators-and-freezers/solar-direct-drive-refrigerators-with-without-ancillary-battery/vestfrost-vls154-greenline-sdd","5 to 43",{"$f":"Calculations!U70","v":107.5}]
["SDD","E003/055",2015,"Zero ZLF 30DC SDD*","ZLF 30DC SDD*","Zero","Yes",65,27,null,null,null,2950,"$",2064,"$",2950,"YES",{"$f":"IFERROR(VLOOKUP(B71,Parts!$B:$E,4,FALSE),0)","v":709},709,109.25925925925925,32,5,3.5,null,null,{"$f":"87+16/60","v":87.266666666666666},{"$f":"77+5/60","v":77.083333333333329},{"$f":"IF(A71=\"Gas\",(Z71*LPGasCost*'Country Input'!$C$57)+(X71*ElectricityCost*'Country Input'!$C$58),IF(A71=\"Freezer\",(X71*ElectricityCost),IF(A71=\"Kerosene\",(Y71*KeroseneCost*'Country Input'!$C$57)+(X71*ElectricityCost*'Country Input'!$C$58),IF(A71=\"ILR\",(X71*ElectricityCost),IF(A71=\"WICR FR\",(X71*ElectricityCost),0)))))","v":0},0,0,"102.5 x 56 x 60",null,null,"N/A",null,"5 to 32",{"$f":"Calculations!U71","v":107.5}]
["SDD","E003/056",2015,"Haier HTC-60H","HTC-60H","Haier","No",110,21,null,null,null,{"$f":"O72","v":2600},"$",2600,"$",2600,"YES",{"$f":"IFERROR(VLOOKUP(B72,Parts!$B:$E,4,FALSE),0)","v":319.13},319.13,123.80952380952381,43,5,0.77600000000000002,null,null,{"$f":"109+21/60","v":109.35},{"$f":"110+37/60","v":110.61666666666666},{"$f":"IF(A72=\"Gas\",(Z72*LPGasCost*'Country Input'!$C$57)+(X72*ElectricityCost*'Country Input'!$C$58),IF(A72=\"Freezer\",(X72*ElectricityCost),IF(A72=\"Kerosene\",(Y72*KeroseneCost*'Country Input'!$C$57)+(X72*ElectricityCost*'Country Input'!$C$58),IF(A72=\"ILR\",(X72*ElectricityCost),IF(A72=\"WICR FR\",(X72*ElectricityCost),0)))))","v":0},0,0,"78.8 x 65.4 x 87.5",null,null,"N/A",null,"5 to 43",{"$f":"Calculations!U72","v":107.5}]
["SDD","E003/057",2015,"Haier HTCD-160*","HTCD-160*","Haier","Yes",186,100,40,2.08,"10.68 kg",6300,"$",6300,"$",6300,"YES",{"$f":"IFERROR(VLOOKUP(B73,Parts!$B:$E,4,FALSE),0)","v":323.44},323.44,63,43,5,3.5,null,null,null,{"$f":"121+27/60","v":121.45},{"$f":"IF(A73=\"Gas\",(Z73*LPGasCost*'Country Input'!$C$57)+(X73*ElectricityCost*'Country Input'!$C$58),IF(A73=\"Freezer\",(X73*ElectricityCost),IF(A73=\"Kerosene\",(Y73*KeroseneCost*'Country Input'!$C$57)+(X73*ElectricityCost*'Country Input'!$C$58),IF(A73=\"ILR\",(X73*ElectricityCost),IF(A73=\"WICR FR\",(X73*ElectricityCost),0)))))","v":0},0,0,"169.5 x 86.5 x 82.5",null,null,"N/A",null,"5 to 43",{"$f":"Calculations!U73","v":107.5}]
["SDD","E003/058",2015,"Dulas Solar VC 110 SDD*","VC 110 SDD*","Dulas Solar","Yes",129,110,null,null,null,4558.26,"$",3400,"€",4558.26,"NO",{"$f":"IFERROR(VLOOKUP(B74,Parts!$B:$E,4,FALSE),0)","v":371},404.39000000000004,41.438727272727277,43,5,3.5,null,null,{"$f":"91+39/60","v":91.65},{"$f":"78+9/60","v":78.150000000000006},{"$f":"IF(A74=\"Gas\",(Z74*LPGasCost*'Country Input'!$C$57)+(X74*ElectricityCost*'Country Input'!$C$58),IF(A74=\"Freezer\",(X74*ElectricityCost),IF(A74=\"Kerosene\",(Y74*KeroseneCost*'Country Input'!$C$57)+(X74*ElectricityCost*'Country Input'!$C$58),IF(A74=\"ILR\",(X74*ElectricityCost),IF(A74=\"WICR FR\",(X74*ElectricityCost),0)))))","v":0},0,0,"74 x 95.9 x 128.2",null,null,"N/A",null,"5 to 43",{"$f":"Calculations!U74","v":107.5}]
["SDD","E003/059",2015,"Dulas Solar VC 88 SDD*","VC 88 SDD*","Dulas Solar","Yes",129,88,null,null,null,4530.5200000000004,"$",4280,"€",4530.5200000000004,"YES",{"$f":"IFERROR(VLOOKUP(B75,Parts!$B:$E,4,FALSE),0)","v":371},404.39000000000004,51.483181818181826,43,5,3.5,null,null,{"$f":"91+39/60","v":91.65},{"$f":"78+9/60","v":78.150000000000006},{"$f":"IF(A75=\"Gas\",(Z75*LPGasCost*'Country Input'!$C$57)+(X75*ElectricityCost*'Country Input'!$C$58),IF(A75=\"Freezer\",(X75*ElectricityCost),IF(A75=\"Kerosene\",(Y75*KeroseneCost*'Country Input'!$C$57)+(X75*ElectricityCost*'Country Input'!$C$58),IF(A75=\"ILR\",(X75*ElectricityCost),IF(A75=\"WICR FR\",(X75*ElectricityCost),0)))))","v":0},0,0,"74 x 95.9 x 128.2",null,null,"N/A",null,"5 to 43",{"$f":"Calculations!U75","v":107.5}]
["SDD","E003/067",2016,"B Medical TCW 15R SDD*","TCW 15R SDD*","B Medical","Yes",85,16,null,null,null,{"$f":"O76","v":4244},"€",4244,"€",4625.96,"YES",{"$f":"IFERROR(VLOOKUP(B76,Parts!$B:$E,4,FALSE),0)","v":644.14},702.11260000000004,289.1225,43,10,3.5,null,null,null,81.8,{"$f":"IF(A76=\"Gas\",(Z76*LPGasCost*'Country Input'!$C$57)+(X76*ElectricityCost*'Country Input'!$C$58),IF(A76=\"Freezer\",(X76*ElectricityCost),IF(A76=\"Kerosene\",(Y76*KeroseneCost*'Country Input'!$C$57)+(X76*ElectricityCost*'Country Input'!$C$58),IF(A76=\"ILR\",(X76*ElectricityCost),IF(A76=\"WICR FR\",(X76*ElectricityCost),0)))))","v":0},{"$f":"IF(AC76=\"\",\"\",(AC76*365))","v":0},{"$f":"IF(AD76=\"\",\"\",AD76/I76)","v":0},"95 x 73 x 73",null,null,"N/A",null,"10 to 43",{"$f":"Calculations!U76","v":107.5}]
["SDD","E003/068",2016,"B Medical TCW 40R SDD*","TCW 40R SDD*","B Medical","Yes",120,36,null,null,null,4840,"€",4840,"€",5275.6,"NO",{"$f":"IFERROR(VLOOKUP(B77,Parts!$B:$E,4,FALSE),0)","v":706.87999999999988},{"$f":"IF(P77=\"$\",S77, (S77*EuroExchangeRate))","v":770.49919999999997},{"$f":"Q77/I77","v":146.54444444444445},43,5,3.5,null,null,null,{"$f":"81+54/60","v":81.900000000000006},{"$f":"IF(A77=\"Gas\",(Z77*LPGasCost*'Country Input'!$C$57)+(X77*ElectricityCost*'Country Input'!$C$58),IF(A77=\"Freezer\",(X77*ElectricityCost),IF(A77=\"Kerosene\",(Y77*KeroseneCost*'Country Input'!$C$57)+(X77*ElectricityCost*'Country Input'!$C$58),IF(A77=\"ILR\",(X77*ElectricityCost),IF(A77=\"WICR FR\",(X77*ElectricityCost),0)))))","v":0},{"$f":"IF(AC77=\"\",\"\",(AC77*365))","v":0},{"$f":"IF(AD77=\"\",\"\",AD77/I77)","v":0},"90 x 78 x 103",null,null,"N/A",null,"5 to 43",{"$f":"Calculations!U77","v":107.5}]
["SDD","E003/069",2016,"Vestfrost VLS 024 SDD*","VLS 024 SDD*","Vestfrost","Yes",75,25.5,null,null,null,2585,"€",2585,"€",2817.65,"YES",{"$f":"IFERROR(VLOOKUP(B78,Parts!$B:$E,4,FALSE),0)","v":468.76000000000005},{"$f":"IF(P78=\"$\",S78, (S78*EuroExchangeRate))","v":510.94840000000011},110.49607843137255,43,5,3.5,null,null,null,81.7,{"$f":"IF(A78=\"Gas\",(Z78*LPGasCost*'Country Input'!$C$57)+(X78*ElectricityCost*'Country Input'!$C$58),IF(A78=\"Freezer\",(X78*ElectricityCost),IF(A78=\"Kerosene\",(Y78*KeroseneCost*'Country Input'!$C$57)+(X78*ElectricityCost*'Country Input'!$C$58),IF(A78=\"ILR\",(X78*ElectricityCost),IF(A78=\"WICR FR\",(X78*ElectricityCost),0)))))","v":0},{"$f":"IF(AC78=\"\",\"\",(AC78*365))","v":0},{"$f":"IF(AD78=\"\",\"\",AD78/I78)","v":0},"83 x 55.5 x 64.5",null,null,"N/A",null,"5 to 43",{"$f":"Calculations!U78","v":107.5}]
["SDD","E003/074",2016,"Haier HTCD 90 SDD*","HTCD 90 SDD*","Haier","Yes",108,37.5,32,2.08,12,4500,"$",4500,"$",4500,"NO",{"$f":"IFERROR(VLOOKUP(B79,Parts!$B:$E,4,FALSE),0)","v":320.98},{"$f":"IF(P79=\"$\",S79, (S79*EuroExchangeRate))","v":320.98},{"$f":"Q79/I79","v":120},43,5,3.5,null,null,null,114.9,{"$f":"IF(A79=\"Gas\",(Z79*LPGasCost*'Country Input'!$C$57)+(X79*ElectricityCost*'Country Input'!$C$58),IF(A79=\"Freezer\",(X79*ElectricityCost),IF(A79=\"Kerosene\",(Y79*KeroseneCost*'Country Input'!$C$57)+(X79*ElectricityCost*'Country Input'!$C$58),IF(A79=\"ILR\",(X79*ElectricityCost),IF(A79=\"WICR FR\",(X79*ElectricityCost),0)))))","v":0},{"$f":"IF(AC79=\"\",\"\",(AC79*365))","v":0},{"$f":"IF(AD79=\"\",\"\",AD79/I79)","v":0},"112 x 65.4 x 87.5",null,null,"N/A",null,"5 to 43",{"$f":"Calculations!U79","v":107.5}]
["SDD","E003/075",2016,"Haier HTC 40 SDD*","HTC 40 SDD*","Haier","Yes",75,22.5,null,null,null,2700,"$",2700,"$",2700,"YES",{"$f":"IFERROR(VLOOKUP(B80,Parts!$B:$E,4,FALSE),0)","v":320.98},{"$f":"IF(P80=\"$\",S80, (S80*EuroExchangeRate))","v":320.98},120,43,5,3.5,null,null,null,117,{"$f":"IF(A80=\"Gas\",(Z80*LPGasCost*'Country Input'!$C$57)+(X80*ElectricityCost*'Country Input'!$C$58),IF(A80=\"Freezer\",(X80*ElectricityCost),IF(A80=\"Kerosene\",(Y80*KeroseneCost*'Country Input'!$C$57)+(X80*ElectricityCost*'Country Input'!$C$58),IF(A80=\"ILR\",(X80*ElectricityCost),IF(A80=\"WICR FR\",(X80*ElectricityCost),0)))))","v":0},{"$f":"IF(AC80=\"\",\"\",(AC80*365))","v":0},{"$f":"IF(AD80=\"\",\"\",AD80/I80)","v":0},"78.8 x 65.4 x 87.5",null,null,"N/A",null,"5 to 43",{"$f":"Calculations!U80","v":107.5}]
["SDD","E003/076",2016,"Haier HTC 110 SDD*","HTC 110 SDD*","Haier","Yes",94,59,null,null,null,3000,"$",3000,"$",{"$f":"IF(N81=\"$\",M81, (M81*EuroExchangeRate))","v":3000},"YES",{"$f":"IFERROR(VLOOKUP(B81,Parts!$B:$E,4,FALSE),0)","v":320.98},{"$f":"IF(P81=\"$\",S81, (S81*EuroExchangeRate))","v":320.98},{"$f":"Q81/I81","v":50.847457627118644},43,5,3.5,null,null,null,96,{"$f":"IF(A81=\"Gas\",(Z81*LPGasCost*'Country Input'!$C$57)+(X81*ElectricityCost*'Country Input'!$C$58),IF(A81=\"Freezer\",(X81*ElectricityCost),IF(A81=\"Kerosene\",(Y81*KeroseneCost*'Country Input'!$C$57)+(X81*ElectricityCost*'Country Input'!$C$58),IF(A81=\"ILR\",(X81*ElectricityCost),IF(A81=\"WICR FR\",(X81*ElectricityCost),0)))))","v":0},{"$f":"IF(AC81=\"\",\"\",(AC81*365))","v":0},{"$f":"IF(AD81=\"\",\"\",AD81/I81)","v":0},"78.8 x 65.4 x 112.8",null,null,"N/A",null,"5 to 43",{"$f":"Calculations!U81","v":107.5}]
["SDD","E003/077",2016,"B Medical TCW 15 SDD*","TCW 15 SDD*","B Medical","Yes",87,16,2.4,1.97,"4 x 0.6 L",{"$f":"O82","v":4277},{"$f":"P82","v":"€"},4277,"€",4661.93,"YES",{"$f":"IFERROR(VLOOKUP(B82,Parts!$B:$E,4,FALSE),0)","v":543.12},592.00080000000003,291.37062500000002,43,5,3.5,null,null,null,84,{"$f":"IF(A82=\"Gas\",(Z82*LPGasCost*'Country Input'!$C$57)+(X82*ElectricityCost*'Country Input'!$C$58),IF(A82=\"Freezer\",(X82*ElectricityCost),IF(A82=\"Kerosene\",(Y82*KeroseneCost*'Country Input'!$C$57)+(X82*ElectricityCost*'Country Input'!$C$58),IF(A82=\"ILR\",(X82*ElectricityCost),IF(A82=\"WICR FR\",(X82*ElectricityCost),0)))))","v":0},{"$f":"IF(AC82=\"\",\"\",(AC82*365))","v":0},{"$f":"IF(AD82=\"\",\"\",AD82/I82)","v":0},"95 x 73 x 73",null,null,"N/A",null,"5 to 43",{"$f":"Calculations!U82","v":107.5}]
["SDD","E003/078",2016,"Dulas Solar VC 50 SDD*","VC 50 SDD*","Dulas Solar","Yes",129,52.5,null,null,null,2750,"€",2750,"€",2997.5,"YES",{"$f":"IFERROR(VLOOKUP(B83,Parts!$B:$E,4,FALSE),0)","v":663.84999999999991},723.59649999999999,57.095238095238095,43,5,3.5,null,null,null,{"$f":"74+15/60","v":74.25},{"$f":"IF(A83=\"Gas\",(Z83*LPGasCost*'Country Input'!$C$57)+(X83*ElectricityCost*'Country Input'!$C$58),IF(A83=\"Freezer\",(X83*ElectricityCost),IF(A83=\"Kerosene\",(Y83*KeroseneCost*'Country Input'!$C$57)+(X83*ElectricityCost*'Country Input'!$C$58),IF(A83=\"ILR\",(X83*ElectricityCost),IF(A83=\"WICR FR\",(X83*ElectricityCost),0)))))","v":0},0,0,"96 x 100 x 74",null,null,"N/A",null,"5 to 43",{"$f":"Calculations!U83","v":107.5}]
["SDD","E003/084",2017,"Dulas Solar VC 60 SDD*","VC 60 SDD*","Dulas Solar","Yes",170,57,24,2.4,"4 x 0.6 L",4750,"€",4750,"€",5177.5,"YES",{"$f":"IFERROR(VLOOKUP(B84,Parts!$B:$E,4,FALSE),0)","v":615.54000000000008},670.93860000000018,90.833333333333329,43,5,3.5,null,null,null,{"$f":"82+48/60","v":82.8},{"$f":"IF(A84=\"Gas\",(Z84*LPGasCost*'Country Input'!$C$57)+(X84*ElectricityCost*'Country Input'!$C$58),IF(A84=\"Freezer\",(X84*ElectricityCost),IF(A84=\"Kerosene\",(Y84*KeroseneCost*'Country Input'!$C$57)+(X84*ElectricityCost*'Country Input'!$C$58),IF(A84=\"ILR\",(X84*ElectricityCost),IF(A84=\"WICR FR\",(X84*ElectricityCost),0)))))","v":0},{"$f":"IF(AC84=\"\",\"\",(AC84*365))","v":0},{"$f":"IF(AD84=\"\",\"\",AD84/I84)","v":0},"95.9 x 128.2 x 74",null,null,"N/A",null,"5 to 43",{"$f":"Calculations!U84","v":107.5}]
["Solar w battery","E003/001",2009,"B Medical TCW 2000 DC","TCW 2000 DC","B Medical","No",125,76,42,3.4,"15.6kg",2770,"€",2770,"€",3019.3,"NO",{"$f":"IFERROR(VLOOKUP(B85,Parts!$B:$E,4,FALSE),0)","v":430.66999999999996},469.43029999999999,{"$f":"Q85/I85","v":39.727631578947374},43,5,0.57999999999999996,null,null,13.5,null,{"$f":"IF(A85=\"Gas\",(Z85*LPGasCost*'Country Input'!$C$57)+(X85*ElectricityCost*'Country Input'!$C$58),IF(A85=\"Freezer\",(X85*ElectricityCost),IF(A85=\"Kerosene\",(Y85*KeroseneCost*'Country Input'!$C$57)+(X85*ElectricityCost*'Country Input'!$C$58),IF(A85=\"ILR\",(X85*ElectricityCost),IF(A85=\"WICR FR\",(X85*ElectricityCost),0)))))","v":0},0,0,"91 x 127 x 78",null,null,"TCW 2000 DC Review","http://www.technet-21.org/en/refrigerators-and-freezers/solar-battery-powered-refrigerators-and-or-refrigerator-freezers/dometic-tcw2000dc-e003-001","5 to 43",{"$f":"Calculations!U85","v":181.15546666666665}]
["Solar w battery","E003/008",2009,"B Medical TCW 3000 DC","TCW 3000 DC","B Medical","No",125,109.5,204,17,"48kg",2719,"€",2719,"€",2963.71,"NO",{"$f":"IFERROR(VLOOKUP(B86,Parts!$B:$E,4,FALSE),0)","v":601.76},655.91840000000002,27.065844748858449,43,10,1.01,null,null,23.4,null,{"$f":"IF(A86=\"Gas\",(Z86*LPGasCost*'Country Input'!$C$57)+(X86*ElectricityCost*'Country Input'!$C$58),IF(A86=\"Freezer\",(X86*ElectricityCost),IF(A86=\"Kerosene\",(Y86*KeroseneCost*'Country Input'!$C$57)+(X86*ElectricityCost*'Country Input'!$C$58),IF(A86=\"ILR\",(X86*ElectricityCost),IF(A86=\"WICR FR\",(X86*ElectricityCost),0)))))","v":0},0,0,"90.5 x 126 x 82.5",null,null,"TCW 3000 DC Review","http://www.technet-21.org/en/refrigerators-and-freezers/solar-battery-powered-refrigerators-and-or-refrigerator-freezers/dometic-tcw3000-dc-e003-008","10 to 43",{"$f":"Calculations!U86","v":181.15546666666665}]
["Solar w battery","E003/026",2012,"Dulas Solar VC 65-2","VC 65-2","Dulas Solar","No",92,37.5,24.3,2.4,"18 x 0.6 L",{"$f":"O87","v":3275},"€",3275,"€",3569.7500000000005,"YES",{"$f":"IFERROR(VLOOKUP(B87,Parts!$B:$E,4,FALSE),0)","v":270},294.3,95.193333333333342,43,10,0.55000000000000004,null,null,3.13,null,{"$f":"IF(A87=\"Gas\",(Z87*LPGasCost*'Country Input'!$C$57)+(X87*ElectricityCost*'Country Input'!$C$58),IF(A87=\"Freezer\",(X87*ElectricityCost),IF(A87=\"Kerosene\",(Y87*KeroseneCost*'Country Input'!$C$57)+(X87*ElectricityCost*'Country Input'!$C$58),IF(A87=\"ILR\",(X87*ElectricityCost),IF(A87=\"WICR FR\",(X87*ElectricityCost),0)))))","v":0},0,0,"93.6 x 92.9 x 77.7",null,null,"VC 65-2 Review","http://www.technet-21.org/en/refrigerators-and-freezers/solar-battery-powered-refrigerators-and-or-refrigerator-freezers/dulas-solar-vc-65-2-e003-026","10 to 43",{"$f":"Calculations!U87","v":181.15546666666665}]
["Solar w battery","E003/027",2012,"Dulas Solar VC 150-2","VC 150-2","Dulas Solar","No",111,86,33.1,2.4,"26 x 0.6 L",4275,"€",4275,"€",4659.75,"NO",{"$f":"IFERROR(VLOOKUP(B88,Parts!$B:$E,4,FALSE),0)","v":270},294.3,54.183139534883722,43,10,0.68,null,null,3.36,null,{"$f":"IF(A88=\"Gas\",(Z88*LPGasCost*'Country Input'!$C$57)+(X88*ElectricityCost*'Country Input'!$C$58),IF(A88=\"Freezer\",(X88*ElectricityCost),IF(A88=\"Kerosene\",(Y88*KeroseneCost*'Country Input'!$C$57)+(X88*ElectricityCost*'Country Input'!$C$58),IF(A88=\"ILR\",(X88*ElectricityCost),IF(A88=\"WICR FR\",(X88*ElectricityCost),0)))))","v":0},0,0,"92.9 x 128.5 x 78.1",null,null,"VC 150-2 Review","http://www.technet-21.org/en/refrigerators-and-freezers/solar-battery-powered-refrigerators-and-or-refrigerator-freezers/dulas-solar-vc-150-2-e003-027","10 to 43",{"$f":"Calculations!U88","v":181.15546666666665}]
["Solar w battery","E003/028",2012,"Dulas Solar VC 200-1","VC 200-1","Dulas Solar","No",95,126.5,null,null,null,3050,"€",3050,"€",3324.5000000000005,"NO",{"$f":"IFERROR(VLOOKUP(B89,Parts!$B:$E,4,FALSE),0)","v":270},294.3,26.280632411067199,43,20,0.63,null,null,3,null,{"$f":"IF(A89=\"Gas\",(Z89*LPGasCost*'Country Input'!$C$57)+(X89*ElectricityCost*'Country Input'!$C$58),IF(A89=\"Freezer\",(X89*ElectricityCost),IF(A89=\"Kerosene\",(Y89*KeroseneCost*'Country Input'!$C$57)+(X89*ElectricityCost*'Country Input'!$C$58),IF(A89=\"ILR\",(X89*ElectricityCost),IF(A89=\"WICR FR\",(X89*ElectricityCost),0)))))","v":0},0,0,"93.3 x 128.5 x 78.1",null,null,"VC 200-1 Review","http://www.technet-21.org/en/refrigerators-and-freezers/solar-battery-powered-refrigerators-and-or-refrigerator-freezers/dulas-solar-vc-200-1-e003-028","20 to 43",{"$f":"Calculations!U89","v":181.15546666666665}]
["WICR FR","E001/WICR10-Zhendre",null,"Zhendre WICR10","WICR10","Zhendre","No",2000,{"$f":"10000/3.3","v":3030.3030303030305},null,null,null,16650,"$",null,null,{"$f":"IF(N90=\"$\",M90, (M90*EuroExchangeRate))","v":16650},null,{"$f":"IFERROR(VLOOKUP(B90,Parts!$B:$E,4,FALSE),0)","v":0},{"$f":"IF(N90=\"$\",S90, (S90*EuroExchangeRate))","v":0},5.4944999999999995,null,null,16,null,null,3,null,{"$f":"IF(A90=\"Gas\",(Z90*LPGasCost*'Country Input'!$C$57)+(X90*ElectricityCost*'Country Input'!$C$58),IF(A90=\"Freezer\",(X90*ElectricityCost),IF(A90=\"Kerosene\",(Y90*KeroseneCost*'Country Input'!$C$57)+(X90*ElectricityCost*'Country Input'!$C$58),IF(A90=\"ILR\",(X90*ElectricityCost),IF(A90=\"WICR FR\",(X90*ElectricityCost),0)))))","v":3.2},1168,0.38544,null,null,null,"WICR10 Review","http://www.technet-21.org/en/reviews/e001/zhendre-cold-room-and-freezer-room","",{"$f":"Calculations!U90","v":1224}]
["WICR FR","E001/WICR30-Zhendre",null,"Zhendre WICR30","WICR30","Zhendre","No",null,{"$f":"30000/3.9","v":7692.3076923076924},null,null,null,22730,"$",null,null,22730,null,{"$f":"IFERROR(VLOOKUP(B91,Parts!$B:$E,4,FALSE),0)","v":0},0,2.9548999999999999,null,null,36,null,null,null,null,{"$f":"IF(A91=\"Gas\",(Z91*LPGasCost*'Country Input'!$C$57)+(X91*ElectricityCost*'Country Input'!$C$58),IF(A91=\"Freezer\",(X91*ElectricityCost),IF(A91=\"Kerosene\",(Y91*KeroseneCost*'Country Input'!$C$57)+(X91*ElectricityCost*'Country Input'!$C$58),IF(A91=\"ILR\",(X91*ElectricityCost),IF(A91=\"WICR FR\",(X91*ElectricityCost),0)))))","v":7.2},2628,0.34164,null,null,null,"WICR30 Review","http://www.technet-21.org/en/reviews/e001/zhendre-cold-room-and-freezer-room","",{"$f":"Calculations!U91","v":2684}]
["WICR FR","E001/WICR40-Zhendre",null,"Zhendre WICR40","WICR40","Zhendre","No",null,{"$f":"40000/4.2","v":9523.8095238095229},null,null,null,18520,"$",null,null,18520,null,{"$f":"IFERROR(VLOOKUP(B92,Parts!$B:$E,4,FALSE),0)","v":0},0,1.9446000000000001,null,null,36,null,null,null,null,{"$f":"IF(A92=\"Gas\",(Z92*LPGasCost*'Country Input'!$C$57)+(X92*ElectricityCost*'Country Input'!$C$58),IF(A92=\"Freezer\",(X92*ElectricityCost),IF(A92=\"Kerosene\",(Y92*KeroseneCost*'Country Input'!$C$57)+(X92*ElectricityCost*'Country Input'!$C$58),IF(A92=\"ILR\",(X92*ElectricityCost),IF(A92=\"WICR FR\",(X92*ElectricityCost),0)))))","v":7.2},{"$f":"IF(AC92=\"\",\"\",(AC92*365))","v":2628},{"$f":"IF(AD92=\"\",\"\",AD92/I92)","v":0.27594000000000002},null,null,null,{"$f":"IF(AJ92=\"\",\"N/A\",(E92&\" Review\"))","v":"WICR40 Review"},"http://www.technet-21.org/en/reviews/e001/zhendre-cold-room-and-freezer-room",{"$f":"IF(W92=\"\",IF(V92=\"\",\"\",V92),(W92&\" to \"&V92))","v":""},{"$f":"Calculations!U92","v":2684}]
["WICR FR","E001/WICR10-Huurre",null,"Huurre WICR10","WICR10","Huurre","No",null,{"$f":"10000/3.3","v":3030.3030303030305},null,null,null,16650,"$",null,null,16650,null,{"$f":"IFERROR(VLOOKUP(B93,Parts!$B:$E,4,FALSE),0)","v":0},0,5.4944999999999995,null,null,16,null,null,null,null,{"$f":"IF(A93=\"Gas\",(Z93*LPGasCost*'Country Input'!$C$57)+(X93*ElectricityCost*'Country Input'!$C$58),IF(A93=\"Freezer\",(X93*ElectricityCost),IF(A93=\"Kerosene\",(Y93*KeroseneCost*'Country Input'!$C$57)+(X93*ElectricityCost*'Country Input'!$C$58),IF(A93=\"ILR\",(X93*ElectricityCost),IF(A93=\"WICR FR\",(X93*ElectricityCost),0)))))","v":3.2},1168,0.38544,null,null,null,"WICR10 Review","http://www.technet-21.org/en/reviews/e001/porkka-cold-room-and-freezer-room","",{"$f":"Calculations!U93","v":1224}]
["WICR FR","E001/WICR30-Huurre",null,"Huurre WICR30","WICR30","Huurre","No",null,{"$f":"30000/3.9","v":7692.3076923076924},null,null,null,22730,"$",null,null,22730,null,{"$f":"IFERROR(VLOOKUP(B94,Parts!$B:$E,4,FALSE),0)","v":0},0,2.9548999999999999,null,null,28,null,null,null,null,{"$f":"IF(A94=\"Gas\",(Z94*LPGasCost*'Country Input'!$C$57)+(X94*ElectricityCost*'Country Input'!$C$58),IF(A94=\"Freezer\",(X94*ElectricityCost),IF(A94=\"Kerosene\",(Y94*KeroseneCost*'Country Input'!$C$57)+(X94*ElectricityCost*'Country Input'!$C$58),IF(A94=\"ILR\",(X94*ElectricityCost),IF(A94=\"WICR FR\",(X94*ElectricityCost),0)))))","v":5.6000000000000005},2044.0000000000002,0.26572000000000001,null,null,null,"WICR30 Review","http://www.technet-21.org/en/reviews/e001/porkka-cold-room-and-freezer-room","",{"$f":"Calculations!U94","v":2100}]
["WICR FR","E001/WICR40-Huurre",null,"Huurre WICR40","WICR40","Huurre","No",null,{"$f":"40000/4.2","v":9523.8095238095229},null,null,null,18520,"$",null,null,18520,null,{"$f":"IFERROR(VLOOKUP(B95,Parts!$B:$E,4,FALSE),0)","v":0},0,1.9446000000000001,null,null,36,null,null,null,null,{"$f":"IF(A95=\"Gas\",(Z95*LPGasCost*'Country Input'!$C$57)+(X95*ElectricityCost*'Country Input'!$C$58),IF(A95=\"Freezer\",(X95*ElectricityCost),IF(A95=\"Kerosene\",(Y95*KeroseneCost*'Country Input'!$C$57)+(X95*ElectricityCost*'Country Input'!$C$58),IF(A95=\"ILR\",(X95*ElectricityCost),IF(A95=\"WICR FR\",(X95*ElectricityCost),0)))))","v":7.2},2628,0.27594000000000002,null,null,null,"WICR40 Review","http://www.technet-21.org/en/reviews/e001/porkka-cold-room-and-freezer-room","",{"$f":"Calculations!U95","v":2684}]
["WICR FR","E001/WICR10-Haier",null,"Haier WICR10","WICR10","Haier","No",null,{"$f":"10000/3.3","v":3030.3030303030305},null,null,null,16650,"$",null,null,16650,null,{"$f":"IFERROR(VLOOKUP(B96,Parts!$B:$E,4,FALSE),0)","v":0},0,5.4944999999999995,null,null,6.43,null,null,null,null,{"$f":"IF(A96=\"Gas\",(Z96*LPGasCost*'Country Input'!$C$57)+(X96*ElectricityCost*'Country Input'!$C$58),IF(A96=\"Freezer\",(X96*ElectricityCost),IF(A96=\"Kerosene\",(Y96*KeroseneCost*'Country Input'!$C$57)+(X96*ElectricityCost*'Country Input'!$C$58),IF(A96=\"ILR\",(X96*ElectricityCost),IF(A96=\"WICR FR\",(X96*ElectricityCost),0)))))","v":1.286},469.39,0.15489869999999997,null,null,null,"WICR10 Review","http://www.technet-21.org/en/reviews/e001/haier-cold-room-and-freezer-room","",{"$f":"Calculations!U96","v":525.39}]
["WICR FR","E001/WICR30-Haier",null,"Haier WICR30","WICR30","Haier","No",null,{"$f":"30000/3.9","v":7692.3076923076924},null,null,null,22730,"$",null,null,22730,null,{"$f":"IFERROR(VLOOKUP(B97,Parts!$B:$E,4,FALSE),0)","v":0},0,2.9548999999999999,null,null,10.8,null,null,null,null,{"$f":"IF(A97=\"Gas\",(Z97*LPGasCost*'Country Input'!$C$57)+(X97*ElectricityCost*'Country Input'!$C$58),IF(A97=\"Freezer\",(X97*ElectricityCost),IF(A97=\"Kerosene\",(Y97*KeroseneCost*'Country Input'!$C$57)+(X97*ElectricityCost*'Country Input'!$C$58),IF(A97=\"ILR\",(X97*ElectricityCost),IF(A97=\"WICR FR\",(X97*ElectricityCost),0)))))","v":2.16},788.40000000000009,0.10249200000000001,null,null,null,"WICR30 Review","http://www.technet-21.org/en/reviews/e001/haier-cold-room-and-freezer-room","",{"$f":"Calculations!U97","v":844.40000000000009}]
["WICR FR","E001/WICR40-Haier",null,"Haier WICR40","WICR40","Haier","No",null,{"$f":"40000/4.2","v":9523.8095238095229},null,null,null,18520,"$",null,null,18520,null,{"$f":"IFERROR(VLOOKUP(B98,Parts!$B:$E,4,FALSE),0)","v":0},0,1.9446000000000001,null,null,16.2,null,null,null,null,{"$f":"IF(A98=\"Gas\",(Z98*LPGasCost*'Country Input'!$C$57)+(X98*ElectricityCost*'Country Input'!$C$58),IF(A98=\"Freezer\",(X98*ElectricityCost),IF(A98=\"Kerosene\",(Y98*KeroseneCost*'Country Input'!$C$57)+(X98*ElectricityCost*'Country Input'!$C$58),IF(A98=\"ILR\",(X98*ElectricityCost),IF(A98=\"WICR FR\",(X98*ElectricityCost),0)))))","v":3.24},1182.6000000000001,0.12417300000000002,null,null,null,"WICR40 Review","http://www.technet-21.org/en/reviews/e001/haier-cold-room-and-freezer-room","",{"$f":"Calculations!U98","v":1238.6000000000001}]
["WICR FR","E001/WIFR20-Zhendre",null,"Zhendre WIFR20","WIFR20","Zhendre","No",null,{"$f":"20000/3.6","v":5555.5555555555557},20000,null,null,16519,"$",null,null,{"$f":"IF(N99=\"$\",M99, (M99*EuroExchangeRate))","v":16519},null,{"$f":"IFERROR(VLOOKUP(B99,Parts!$B:$E,4,FALSE),0)","v":0},{"$f":"IF(N99=\"$\",S99, (S99*EuroExchangeRate))","v":0},{"$f":"Q99/I99","v":2.97342},null,null,55,null,null,null,null,{"$f":"IF(A99=\"Gas\",(Z99*LPGasCost*'Country Input'!$C$57)+(X99*ElectricityCost*'Country Input'!$C$58),IF(A99=\"Freezer\",(X99*ElectricityCost),IF(A99=\"Kerosene\",(Y99*KeroseneCost*'Country Input'!$C$57)+(X99*ElectricityCost*'Country Input'!$C$58),IF(A99=\"ILR\",(X99*ElectricityCost),IF(A99=\"WICR FR\",(X99*ElectricityCost),0)))))","v":11},4015,0.72270000000000001,null,null,null,"WIFR20 Review","http://www.technet-21.org/en/reviews/e001/zhendre-cold-room-and-freezer-room","",{"$f":"Calculations!U99","v":4071}]
["WICR FR","E001/WIFR20-Huurre",null,"Huurre WIFR20","WIFR20","Huurre","No",null,{"$f":"20000/3.6","v":5555.5555555555557},20000,null,null,16519,"$",null,null,16519,null,{"$f":"IFERROR(VLOOKUP(B100,Parts!$B:$E,4,FALSE),0)","v":0},0,2.97342,null,null,55,null,null,null,null,{"$f":"IF(A100=\"Gas\",(Z100*LPGasCost*'Country Input'!$C$57)+(X100*ElectricityCost*'Country Input'!$C$58),IF(A100=\"Freezer\",(X100*ElectricityCost),IF(A100=\"Kerosene\",(Y100*KeroseneCost*'Country Input'!$C$57)+(X100*ElectricityCost*'Country Input'!$C$58),IF(A100=\"ILR\",(X100*ElectricityCost),IF(A100=\"WICR FR\",(X100*ElectricityCost),0)))))","v":11},4015,0.72270000000000001,null,null,null,"WIFR20 Review","http://www.technet-21.org/en/reviews/e001/porkka-cold-room-and-freezer-room","",{"$f":"Calculations!U100","v":4071}]
["WICR FR","E001/WIFR20-Haier",null,"Haier WIFR20","WIFR20","Haier","No",null,{"$f":"20000/3.6","v":5555.5555555555557},20000,null,null,16519,"$",null,null,16519,null,{"$f":"IFERROR(VLOOKUP(B101,Parts!$B:$E,4,FALSE),0)","v":0},0,2.97342,null,null,12.96,null,null,null,null,{"$f":"IF(A101=\"Gas\",(Z101*LPGasCost*'Country Input'!$C$57)+(X101*ElectricityCost*'Country Input'!$C$58),IF(A101=\"Freezer\",(X101*ElectricityCost),IF(A101=\"Kerosene\",(Y101*KeroseneCost*'Country Input'!$C$57)+(X101*ElectricityCost*'Country Input'!$C$58),IF(A101=\"ILR\",(X101*ElectricityCost),IF(A101=\"WICR FR\",(X101*ElectricityCost),0)))))","v":2.5920000000000005},946.08000000000015,0.17029440000000001,null,null,null,"WIFR20 Review","http://www.technet-21.org/en/reviews/e001/haier-cold-room-and-freezer-room","",{"$f":"Calculations!U101","v":1002.0800000000002}]
["WICR FR","E001/CRFR40-Zhendre",null,"Zhendre CRFR40","CRFR40","Zhendre","No",null,{"$f":"25000/3.75","v":6666.666666666667},15000,{"$f":"15000/3.4","v":4411.7647058823532},null,41500,"$",null,null,41500,null,{"$f":"IFERROR(VLOOKUP(B102,Parts!$B:$E,4,FALSE),0)","v":0},0,6.2249999999999996,null,null,{"$f":"28+45","v":73},null,null,null,null,{"$f":"IF(A102=\"Gas\",(Z102*LPGasCost*'Country Input'!$C$57)+(X102*ElectricityCost*'Country Input'!$C$58),IF(A102=\"Freezer\",(X102*ElectricityCost),IF(A102=\"Kerosene\",(Y102*KeroseneCost*'Country Input'!$C$57)+(X102*ElectricityCost*'Country Input'!$C$58),IF(A102=\"ILR\",(X102*ElectricityCost),IF(A102=\"WICR FR\",(X102*ElectricityCost),0)))))","v":14.600000000000001},5329.0000000000009,0.79935000000000012,null,null,null,"CRFR40 Review","http://www.technet-21.org/en/reviews/e001/zhendre-cold-room-and-freezer-room","",{"$f":"Calculations!U102","v":5385.0000000000009}]
["WICR FR","E001/CRFR40-Huurre",null,"Huurre CRFR40","CRFR40","Huurre","No",null,{"$f":"25000/3.75","v":6666.666666666667},15000,{"$f":"15000/3.4","v":4411.7647058823532},null,41500,"$",null,null,41500,null,{"$f":"IFERROR(VLOOKUP(B103,Parts!$B:$E,4,FALSE),0)","v":0},0,6.2249999999999996,null,null,{"$f":"22+45","v":67},null,null,null,null,{"$f":"IF(A103=\"Gas\",(Z103*LPGasCost*'Country Input'!$C$57)+(X103*ElectricityCost*'Country Input'!$C$58),IF(A103=\"Freezer\",(X103*ElectricityCost),IF(A103=\"Kerosene\",(Y103*KeroseneCost*'Country Input'!$C$57)+(X103*ElectricityCost*'Country Input'!$C$58),IF(A103=\"ILR\",(X103*ElectricityCost),IF(A103=\"WICR FR\",(X103*ElectricityCost),0)))))","v":13.4},4891,0.73364999999999991,null,null,null,"CRFR40 Review","http://www.technet-21.org/en/reviews/e001/porkka-cold-room-and-freezer-room","",{"$f":"Calculations!U103","v":4947}]
["WICR FR","E001/CRFR40-Haier",null,"Haier CRFR40","CRFR40","Haier","No",null,{"$f":"25000/3.75","v":6666.666666666667},15000,{"$f":"15000/3.4","v":4411.7647058823532},null,41500,"$",null,null,41500,null,{"$f":"IFERROR(VLOOKUP(B104,Parts!$B:$E,4,FALSE),0)","v":0},0,6.2249999999999996,null,null,{"$f":"10.8+12.96","v":23.76},null,null,null,null,{"$f":"IF(A104=\"Gas\",(Z104*LPGasCost*'Country Input'!$C$57)+(X104*ElectricityCost*'Country Input'!$C$58),IF(A104=\"Freezer\",(X104*ElectricityCost),IF(A104=\"Kerosene\",(Y104*KeroseneCost*'Country Input'!$C$57)+(X104*ElectricityCost*'Country Input'!$C$58),IF(A104=\"ILR\",(X104*ElectricityCost),IF(A104=\"WICR FR\",(X104*ElectricityCost),0)))))","v":4.7520000000000007},1734.4800000000002,0.26017200000000001,null,null,null,"CRFR40 Review","http://www.technet-21.org/en/reviews/e001/haier-cold-room-and-freezer-room","",{"$f":"Calculations!U104","v":1790.4800000000002}]
["LT passive","E004/041",2015,"Aucma ARKTEK-YBC-5*","ARKTEK-YBC-5*","Aucma","Yes",22,5.4,null,null,null,2393,"$",2393,"$",2393,null,{"$f":"IFERROR(VLOOKUP(B105,Parts!$B:$E,4,FALSE),0)","v":0},0,{"$f":"M105/I105","v":443.1481481481481},null,null,null,null,null,{"$f":"35*24","v":840},null,{"$f":"IF(A105=\"Gas\",(Z105*LPGasCost*'Country Input'!$C$57)+(X105*ElectricityCost*'Country Input'!$C$58),IF(A105=\"Freezer\",(X105*ElectricityCost),IF(A105=\"Kerosene\",(Y105*KeroseneCost*'Country Input'!$C$57)+(X105*ElectricityCost*'Country Input'!$C$58),IF(A105=\"ILR\",(X105*ElectricityCost),IF(A105=\"WICR FR\",(X105*ElectricityCost),0)))))","v":0},0,0,null,null,null,"ARKTEK-YBC-5* Review","http://www.technet-21.org/en/insulated-containers-and-accessories/cold-boxes/arktek-ybc-5","",{"$f":"Calculations!U105","v":66}]
["LT passive","acuma","tbd","Aucma tbd","tbd","Aucma","No",null,10,null,null,null,0,"$",null,null,0,null,{"$f":"IFERROR(VLOOKUP(B106,Parts!$B:$E,4,FALSE),0)","v":0},0,{"$f":"M106/I106","v":0},null,null,null,null,null,null,null,{"$f":"IF(A106=\"Gas\",(Z106*LPGasCost*'Country Input'!$C$57)+(X106*ElectricityCost*'Country Input'!$C$58),IF(A106=\"Freezer\",(X106*ElectricityCost),IF(A106=\"Kerosene\",(Y106*KeroseneCost*'Country Input'!$C$57)+(X106*ElectricityCost*'Country Input'!$C$58),IF(A106=\"ILR\",(X106*ElectricityCost),IF(A106=\"WICR FR\",(X106*ElectricityCost),0)))))","v":0},0,0,null,null,null,"N/A",null,"",{"$f":"Calculations!U106","v":66}]
["LT passive","surechill","tbd","SureChill tbd","tbd","SureChill","No",null,8,null,null,null,0,null,null,null,0,null,{"$f":"IFERROR(VLOOKUP(B107,Parts!$B:$E,4,FALSE),0)","v":0},0,{"$f":"M107/I107","v":0},null,null,null,null,null,null,null,{"$f":"IF(A107=\"Gas\",(Z107*LPGasCost*'Country Input'!$C$57)+(X107*ElectricityCost*'Country Input'!$C$58),IF(A107=\"Freezer\",(X107*ElectricityCost),IF(A107=\"Kerosene\",(Y107*KeroseneCost*'Country Input'!$C$57)+(X107*ElectricityCost*'Country Input'!$C$58),IF(A107=\"ILR\",(X107*ElectricityCost),IF(A107=\"WICR FR\",(X107*ElectricityCost),0)))))","v":0},0,0,null,null,null,"N/A",null,"",{"$f":"Calculations!U107","v":66}]
[]
["*Converts Euro to USD according to exchange rate at \"Country Input\" tab"]
["**Assumes continuous energy supply"]
["***Power consumption stable running is 3.46; intermittent power is 1.04"]
["**** WICR FR grossing factors:  10m3  - 3.3, 20m3 - 3.6, 30m3 - 3.9, 40m3 - 4.2"]
[]
[]
[]
[]
[]
[]
[]
[]
[]
[]
[]
[]
[]
[]
[]
["Source: US Energy Information Administration; www.eia.doe.gov/neic/experts/heatcalc.xls, October 2010."]
["http://www.cleanerandgreener.org/resources/pollutioncalculator.html"]

{"sheet":"List","index":26,"n_rows":22,"n_cols":10,"rows_kept":22,"cut":false,"hidden":true,"merged":[]}
["Lists"]
["Yes No","Solar sizing",null,null,"Capacity",null,null,"Horizon",null,"CCEOP"]
[null,null,null,null,0," 1-29",null,1,null,"CCEOP only"]
["YES","None",null,null,30," 30-59",null,2,null,"All"]
["NO","Small",null,null,60," 60-89",null,3]
[null,"Med",null,null,90," 90-120",null,4]
[null,"Large",null,null,120,"120 +",null,5]
[null,null,null,null,3000,"WICR 10m3",null,6]
[null,null,null,null,5000,"WIFR",null,7]
[null,null,null,null,6000,"WICR FR",null,8]
[null,null,null,null,7500,"WICR 30m3",null,9]
[null,null,null,null,9000,"WICR 40m3",null,10]
[null,null,null,null,null,null,null,11]
[null,null,null,null,null,null,null,12]
[null,null,null,null,null,null,null,13]
[null,null,null,null,null,null,null,14]
[null,null,null,null,null,null,null,15]
[null,null,null,null,null,null,null,16]
[null,null,null,null,null,null,null,17]
[null,null,null,null,null,null,null,18]
[null,null,null,null,null,null,null,19]
[null,null,null,null,null,null,null,20]

{"sheet":"vaccines","index":27,"n_rows":105,"n_cols":25,"rows_kept":105,"cut":false,"hidden":true,"merged":[]}
[]
[null,null,null,"Vaccines data"]
[null,null,null,null,null,null,null,null,null,null,null,null,null,null,null,null,"Vaccine wastage rates (percentages)*"]
[null,"Vaccine product","Vaccine vial size and formulation","Vaccine product","Designation","Vaccine formulation","Admin route","No. Of doses in the schedule","Presentation (doses/vial, prefilled)","Packed volume vaccine (cm3/dose)","Packed volume diluents (cm3/dose)","VVM type","Cost per vial ($/vial)","Wastage factor","Doses per FIC x wastage factor x volume per dose (cm3)",null,"Vial size","Formulation","Wastage rate (%)","Vial size and formulation","Wastage factor",null,"cost per dose","Source for price data","Source for volume data"]
[null,{"$f":"CONCATENATE(E5,\"-\",F5,\"-\",I5)","v":"BCG-lyophilized-20"},{"$f":"CONCATENATE(I5,F5)","v":"20lyophilized"},"BCG","BCG","lyophilized","ID",1,20,1.125,0.5,"VVM-30",2.3112000000000004,{"$f":"VLOOKUP(CONCATENATE(I5,F5),$T:$U,2,FALSE)","v":2},{"$f":"H5*N5*(J5+K5)","v":3.25},{"$f":"H5*N5*J5","v":2.25},1,"Liquid",1,"1liquid",{"$f":"1/(1-(S5/100))","v":1.0101010101010102},null,{"$f":"2.74/20","v":0.13700000000000001},"UNICEF/Gavi 2015 price","WHO prequalified vaccines 2015/8/25"]
[null,{"$f":"CONCATENATE(E6,\"-\",F6,\"-\",I6)","v":"bOPV1+3-liquid-10"},{"$f":"CONCATENATE(I6,F6)","v":"10liquid"},"VPO bivalent 1+3","bOPV1+3","liquid","Oral",null,10,1.3599999999999999,null,"VVM-2",3.08,{"$f":"VLOOKUP(CONCATENATE(I6,F6),$T:$U,2,FALSE)","v":1.1764705882352942},{"$f":"H6*N6*(J6+K6)","v":0},0,"PFS","Liquid",1,"PFSliquid",1.0101010101010102,null,{"$f":"AVERAGE(0.135,0,12,0.14)","v":3.0687500000000001},"No UNICEF/Gavi price data. Data from WHO SMT "]
[null,"bOPV1+3-liquid-20","20liquid","VPO bivalent 1+3","bOPV1+3","liquid","Oral",null,20,0.67400000000000004,null,"VVM-2",2.8930000000000002,1.25,0,0,"Uniject","Liquid",1,"Unijectliquid",1.0101010101010102,null,{"$f":"AVERAGE(0.135,0.12,0.14)","v":0.13166666666666668},"UNICEF/Gavi 2015 price"]
[null,"DT-liquid-10","10liquid","Diphtheria-Tetanus","DT","liquid","IM",3,10,4.1100000000000003,null,null,1.3650000000000002,1.1764705882352942,14.505882352941176,14.505882352941176,2,"Liquid",5,"2liquid",1.0526315789473684,null,{"$f":"1.23/10","v":0.123},"UNICEF/Gavi 2015 price","WHO prequalified vaccines 2015/8/25"]
[null,"DT-liquid-20","20liquid","Diphtheria-Tetanus","DT","liquid","IM",3,20,1.5,null,null,2.4699999999999998,1.25,5.625,5.625,5,"Liquid",10,"5liquid",1.1111111111111112,null,{"$f":"M9/I9","v":0.12349999999999998}]
[null,"DTP+Hib-liquid+lyop.-1","1liquid+lyop.","DTP liquid + Hib freeze-dried","DTP+Hib","liquid+lyop.","IM",3,1,44.72,null,null,3.6865000000000001,1.0526315789473684,141.22105263157894,141.22105263157894,6,"Liquid",10,"6liquid",1.1111111111111112,null,3.9,"UNICEF/Gavi 2015 price","WHO prequalified vaccines 2015/8/25"]
[null,"DTP+Hib-liquid+lyop.-10","10liquid+lyop.","DTP-Hib combined liquid","DTP+Hib","liquid+lyop.","IM",3,10,12.39,null,null,32.32,1.4285714285714286,53.1,53.1,10,"Liquid",15,"10liquid",1.1764705882352942,null,{"$f":"34/10","v":3.4},"UNICEF/Gavi 2015 price","WHO prequalified vaccines 2015/8/25"]
[null,"DTP-HepB+Hib-liquid+lyop.-1","1liquid+lyop.","DTP-HepB liquid + Hib freeze-dried","DTP-HepB+Hib","liquid+lyop.","IM",3,1,22,null,"VVM-14",2.83,1.0526315789473684,69.473684210526315,69.473684210526315,10,"Liquid",15,"10liquid+liquid",1.1764705882352942,null,{"$f":"M12/I12","v":2.83},"No data"]
[null,"DTP-HepB+Hib-liquid+lyop.-10","10liquid+lyop.","DTP-HepB liquid + Hib freeze-dried","DTP-HepB+Hib","liquid+lyop.","IM",3,10,6.4499999999999993,null,"VVM-7",18.36,1.4285714285714286,27.642857142857139,27.642857142857139,20,"Liquid",20,"20liquid",1.25,null,1.8,"UNICEF 2015 price","WHO prequalified vaccines 2015/8/25"]
[null,"DTP-HepB+Hib-liquid+lyop.-2","2liquid+lyop.","DTP-HepB liquid + Hib freeze-dried","DTP-HepB+Hib","liquid+lyop.","IM",3,2,12.05,null,"VVM-7",5.96,1.1111111111111112,40.166666666666671,40.166666666666671,1,"Lyophilized",5,"1lyophilized",1.0526315789473684,null,1.94,"UNICEF/Gavi 2016 price","UNICEF/Gavi storage volume"]
[null,"DTP-HepB-Hib-liquid-1","1liquid","DTP-HepB-Hib liquid","DTP-HepB-Hib","liquid","IM",3,1,18.200000000000003,null,"VVM-7",2.8279999999999998,1.0101010101010102,55.151515151515163,55.151515151515163,1,"Lyophilized",5,"1liquid+lyop.",1.0526315789473684,null,2.4300000000000002,"UNICEF/Gavi 2016 price","UNICEF/Gavi storage volume"]
[null,"DTP-HepB-Hib-liquid-10","10liquid","DTP-HepB-Hib liquid","DTP-HepB-Hib","liquid","IM",3,10,2.75,null,"VVM-7",18.36,1.1764705882352942,9.7058823529411757,9.7058823529411757,2,"Lyophilized",10,"2lyophilized",1.1111111111111112,null,1.52,"UNICEF/Gavi 2016 price","UNICEF/Gavi storage volume"]
[null,"DTP-HepB-Hib-liquid-2","2liquid","DTP-HepB-Hib liquid","DTP-HepB-Hib","liquid","IM",3,2,13.1,null,"VVM-7",5.7119999999999997,1.0526315789473684,41.368421052631575,41.368421052631575,2,"Lyophilized",10,"2liquid+lyop.",1.1111111111111112,null,1.95,"UNICEF/Gavi 2015 price"]
[null,"DTP-HepB-Hib-liquid-Uniject","Unijectliquid","DTP-HepB-Hib liquid","DTP-HepB-Hib","liquid","IM",3,"Uniject",12,null,"VVM-14",3.6360000000000001,1.0101010101010102,36.36363636363636,36.36363636363636,5,"Lyophilized",15,"5lyophilized",1.1764705882352942,null,{"$f":"M18/1","v":3.6360000000000001}]
[null,"DTP-HepB-liquid-1","1liquid","DTP-HepB combined","DTP-HepB","liquid","IM",3,1,9.6999999999999993,null,null,null,1.0101010101010102,29.393939393939391,29.393939393939391,10,"Lyophilized",30,"10lyophilized",1.4285714285714286,null,{"$f":"M19/I19","v":0},"No UNICEF/Gavi price data. Data from WHO SMT "]
[null,"DTP-HepB-liquid-10","10liquid","DTP-HepB combined","DTP-HepB","liquid","IM",3,10,2.3555000000000001,null,null,7.245000000000001,1.1764705882352942,8.3135294117647067,8.3135294117647067,10,"Lyophilized",30,"10liquid+lyop.",1.4285714285714286,null,{"$f":"7.2/10","v":0.72},"UNICEF/Gavi 2015 price","WHO prequalified vaccines 2015/8/25"]
[null,"DTP-HepB-liquid-2","2liquid","DTP-HepB combined","DTP-HepB","liquid","IM",3,2,6,null,null,3.6539999999999999,1.0526315789473684,18.94736842105263,18.94736842105263,20,"Lyophilized",50,"20lyophilized",2,null,1.827,"No UNICEF/Gavi price data. Data from WHO SMT "]
[null,"DTP-Hib-liquid-1","1liquid","DTP-Hib combined liquid","DTP-Hib","liquid","IM",3,1,32.299999999999997,null,null,2.8620000000000005,1.0101010101010102,97.878787878787875,97.878787878787875,50,"Lyophilized",50,"50lyophilized",2,null,2.8620000000000005,"No UNICEF/Gavi price data. Data from WHO SMT "]
[null,"DTP-Hib-liquid-10","10liquid","DTP-Hib combined liquid","DTP-Hib","liquid","IM",3,10,2.4,null,null,34.340000000000003,1.1764705882352942,8.4705882352941178,8.4705882352941178,null,null,null,null,null,null,{"$f":"34/10","v":3.4},"UNICEF 2015 Price","WHO prequalified vaccines 2015/8/25"]
[null,"DTP-liquid-10","10liquid","Diphtheria-Tetanus-Pertussis","DTP","liquid","IM",3,10,2.2327500000000002,null,null,1.9936000000000003,1.1764705882352942,7.8802941176470593,7.8802941176470593,"*Data are estimations based on selected countries monitoring data and WHO indicative wastage rates.",null,null,null,null,null,0.19700000000000001,"UNICEF/Gavi 2015 price","WHO prequalified vaccines 2015/8/25"]
[null,"DTP-liquid-20","20liquid","Diphtheria-Tetanus-Pertussis","DTP","liquid","IM",3,20,2.4329999999999998,null,null,3.1302000000000003,1.25,9.1237499999999994,9.1237499999999994,"Source:  Garnett A, WHO and VPPAG Estimated global wastage rate rates, March 2013, unpublished data.",null,null,null,null,null,0.14099999999999999,"UNICEF/Gavi 2012 price - no 2015 price","WHO prequalified vaccines 2015/8/25"]
[null,"H1N1-liquid+liquid-10","10liquid+liquid","Influenza A vaccine","H1N1","liquid+liquid","IM",null,10,5.6997200000000001,null,null,44,1.1764705882352942,0,0,null,null,null,null,null,null,4.9500000000000011,"No UNICEF/Gavi price data. Data from WHO SMT "]
[null,"H1N1-liquid-10","10liquid","Influenza A vaccine","H1N1","liquid","IM",null,10,3.3566400000000001,null,null,44,1.1764705882352942,0,0,null,null,null,null,null,null,4.9500000000000011,"No UNICEF/Gavi price data. Data from WHO SMT "]
[null,"H1N1-liquid-10*","10*liquid","Influenza A vaccine","H1N1","liquid","IM",null,"10*",9.4039000000000001,null,null,44,1.1764705882352942,0,0,null,null,null,null,null,null,49.500000000000007,"No UNICEF/Gavi price data. Data from WHO SMT "]
[null,"H1N1-liquid-10*","10*liquid","Influenza A vaccine","H1N1","liquid","IM",null,"10*",5.1940459999999993,null,null,44,1.1764705882352942,0,0,null,null,null,null,null,null,49.500000000000007,"No UNICEF/Gavi price data. Data from WHO SMT "]
[null,"H1N1-liquid-PFS","PFSliquid","Influenza A vaccine","H1N1","liquid","Nasal",null,"PFS",79.579679550000009,null,null,6.0500000000000007,1.0101010101010102,0,0,null,null,null,null,null,null,6.0500000000000007,"No UNICEF/Gavi price data. Data from WHO SMT "]
[null,"HepB-liquid-1","1liquid","Hepatitis B","HepB","liquid","IM",3,1,9.64,null,null,0.44000000000000006,1.0101010101010102,29.212121212121215,29.212121212121215,null,null,null,null,null,null,0.38,"UNICEF/Gavi 2015 price","WHO prequalified vaccines 2015/8/25"]
[null,"HepB-liquid-10","10liquid","Hepatitis B","HepB","liquid","IM",3,10,3.66,null,null,2.3100000000000005,1.1764705882352942,12.91764705882353,12.91764705882353,null,null,null,null,null,null,{"$f":"AVERAGE(0.16,0.173)","v":0.16649999999999998},"UNICEF/Gavi 2015 price","WHO prequalified vaccines 2015/8/25"]
[null,"HepB-liquid-2","2liquid","Hepatitis B","HepB","liquid","IM",3,2,13,null,null,0.63800000000000001,1.0526315789473684,41.05263157894737,41.05263157894737,null,null,null,null,null,null,0.28999999999999998,"UNICEF/Gavi 2012 price - no 2015 price"]
[null,"HepB-liquid-20","20liquid","Hepatitis B","HepB","liquid","IM",3,20,2.6,null,null,null,1.25,9.75,9.75,null,null,null,null,null,null,{"$f":"M34/I34","v":0}]
[null,"HepB-liquid-6","6liquid","Hepatitis B","HepB","liquid","IM",3,6,4.5,null,null,2.2440000000000002,1.1111111111111112,15,15,null,null,null,null,null,null,0.34,"UNICEF/Gavi 2012 price - no 2015 price"]
[null,"HepB-liquid-Uniject","Unijectliquid","Hepatitis B UniJect","HepB","liquid","IM",3,"Uniject",12,null,null,0.91999999999999993,1.0101010101010102,36.36363636363636,36.36363636363636,null,null,null,null,null,null,0.91999999999999993,"No UNICEF/Gavi price data. Data from WHO SMT "]
[null,"Hib_liq-liquid-1","1liquid","Hib liquid","Hib_liq","liquid","IM",3,1,5,null,null,3.6360000000000001,1.0101010101010102,15.151515151515152,{"$f":"H37*N37*J37","v":15.151515151515152},null,null,null,null,null,null,3.95,"UNICEF 2015 Price","WHO prequalified vaccines 2015/8/25"]
[null,"Hib_liq-liquid-10","10liquid","Hib liquid","Hib_liq","liquid","IM",3,10,2.5,null,null,30.3,1.1764705882352942,8.8235294117647065,8.8235294117647065,null,null,null,null,null,null,{"$f":"22.25/10","v":2.2250000000000001},"UNICEF 2015 Price"]
[null,"Hib_lyo-lyophilized-1","1lyophilized","Hib freeze-dried","Hib_lyo","lyophilized","IM",3,1,13,35,null,3.4339999999999997,1.0526315789473684,151.57894736842104,41.05263157894737,null,null,null,null,null,null,3.4,"UNICEF 2015 Price","WHO SMT"]
[null,"Hib_lyo-lyophilized-10","10lyophilized","Hib freeze-dried","Hib_lyo","lyophilized","IM",3,10,2.5,3,null,30.3,1.4285714285714286,23.571428571428569,10.714285714285714,null,null,null,null,null,null,{"$f":"22.5/10","v":2.25},"UNICEF 2015 Price","WHO SMT"]
[null,"Hib_lyo-lyophilized-2","2lyophilized","Hib freeze-dried","Hib_lyo","lyophilized","IM",3,2,6,null,null,3.6539999999999999,1.1111111111111112,20,20,null,null,null,null,null,null,1.827,"No UNICEF/Gavi price data. Data from WHO SMT "]
[null,"HPV-2dose-liquid-1","1liquid","Human Papilomavirus vaccine","HPV-2dose","liquid","IM",2,1,15,null,null,4.5,1.0101010101010102,30.303030303030305,30.303030303030305,null,null,null,null,null,null,4.5,"UNICEF/Gavi 2016 price","UNICEF/Gavi storage volume"]
[null,"HPV-2dose-liquid-2","2liquid","Human Papilomavirus vaccine","HPV-2dose","liquid","IM",2,2,4.8,null,null,9.1999999999999993,1.0526315789473684,10.105263157894736,10.105263157894736,null,null,null,null,null,null,4.5999999999999996,"UNICEF/Gavi 2016 price","UNICEF/Gavi storage volume"]
[null,"HPV-liquid-1","1liquid","Human Papilomavirus vaccine","HPV","liquid","IM",3,1,15,null,null,4.5,1.0101010101010102,45.454545454545453,45.454545454545453,null,null,null,null,null,null,4.5,"UNICEF/Gavi 2016 price","UNICEF/Gavi storage volume"]
[null,"HPV-liquid-2","2liquid","Human Papilomavirus vaccine","HPV","liquid","IM",3,2,4.8,null,null,9.1999999999999993,1.0526315789473684,15.157894736842104,15.157894736842104,null,null,null,null,null,null,4.5999999999999996,"UNICEF/Gavi 2016 price","UNICEF/Gavi storage volume"]
[null,"IPV-liquid-1","1liquid","Polio inactivated","IPV","liquid","IM",3,1,15.7,null,null,3.4339999999999997,1.0101010101010102,47.575757575757571,47.575757575757571,null,null,null,null,null,null,2.8,"UNICEF/Gavi 2016 price","UNICEF/Gavi storage volume"]
[null,"IPV-liquid-10","10liquid","Polio inactivated","IPV","liquid","IM",3,10,2.46,null,null,35.35,1.1764705882352942,8.6823529411764699,8.6823529411764699,null,null,null,null,null,null,{"$f":"0.75*1.13","v":0.84749999999999992},"UNICEF/Gavi 2016 price","UNICEF/Gavi storage volume"]
[null,"IPV-liquid-2","2liquid","Polio inactivated","IPV","liquid","IM",3,2,5.7,null,null,9.4939999999999998,1.0526315789473684,18,18,null,null,null,null,null,null,{"$f":"M48/I48","v":4.7469999999999999}]
[null,"IPV-liquid-5","5liquid","Polio inactivated","IPV","liquid","IM",3,5,4.4000000000000004,null,null,20.603999999999999,1.1111111111111112,14.666666666666668,14.666666666666668,null,null,null,null,null,null,{"$f":"M49/I49","v":4.1208}]
[null,"IPV-liquid-PFS","PFSliquid","Polio inactivated","IPV","liquid","IM",3,"PFS",107.40599999999999,null,null,null,1.0101010101010102,325.47272727272724,325.47272727272724,null,null,null,null,null,null,{"$f":"M50/1","v":0}]
[null,"JE_liq-liquid-10","10liquid","Japanese Encephalitis","JE_liq","liquid","SC",3,10,3.4,null,null,2.2000000000000002,1.1764705882352942,12,12,null,null,null,null,null,null,0.22000000000000003,"No UNICEF/Gavi price data. Data from WHO SMT "]
[null,"JE_lyo-lyophilized-1","1lyophilized","Japanese Encephalitis","JE_lyo","lyophilized","SC",3,1,12.619320000000002,11.479999999999999,"VVM-14",null,1.0526315789473684,76.103115789473677,39.850484210526325,null,null,null,null,null,null,{"$f":"M52/I52","v":0}]
[null,"JE_lyo-lyophilized-10","10lyophilized","Japanese Encephalitis","JE_lyo","lyophilized","SC",3,10,15,null,null,2.2000000000000002,1.4285714285714286,64.285714285714278,64.285714285714278,null,null,null,null,null,null,0.22000000000000003,"UNICEF 2015 Price"]
[null,"JE_lyo-lyophilized-10","10lyophilized","Japanese Encephalitis","JE_lyo","lyophilized","SC",3,10,8.1,8.1,null,2.2000000000000002,1.4285714285714286,69.428571428571416,34.714285714285708,null,null,null,null,null,null,0.22000000000000003,"No UNICEF / Gavi data. Data indicative (CMYP VietNam)"]
[null,"JE_lyo-lyophilized-5","5lyophilized","Japanese Encephalitis","JE_lyo","lyophilized","SC",3,5,2.5238640000000006,2.9273999999999996,"VVM-14",null,1.1764705882352942,19.239755294117646,8.9077552941176492,null,null,null,null,null,null,{"$f":"M55/I55","v":0}]
[null,"Measles-lyophilized-1","1lyophilized","Measles","Measles","lyophilized","SC",2,1,26.11,20,"VVM-14",0.94299999999999984,1.0526315789473684,97.073684210526309,54.968421052631577,null,null,null,null,null,null,{"$f":"AVERAGE(0.972,0.77)","v":0.871},"UNICEF/Gavi 2003 price - no 2015 price"]
[null,"Measles-lyophilized-10","10lyophilized","Measles","Measles","lyophilized","SC",2,10,2.6110000000000002,null,"VVM-14",2.6730000000000005,1.4285714285714286,7.4600000000000009,7.4600000000000009,null,null,null,null,null,null,0.32,"UNICEF/Gavi 2016 price","UNICEF/Gavi storage volume"]
[null,"Measles-lyophilized-2","2lyophilized","Measles","Measles","lyophilized","SC",2,2,13.1,13.1,"VVM-14",1.7249999999999999,1.1111111111111112,58.222222222222221,29.111111111111111,null,null,null,null,null,null,0.86249999999999993,"No UNICEF/Gavi price data. Data from WHO SMT ","WHO prequalified vaccines 2015/8/25"]
[null,"Measles-lyophilized-5","5lyophilized","Measles","Measles","lyophilized","SC",2,5,5.22,7,"VVM-14",3.2429999999999994,1.1764705882352942,28.752941176470586,12.28235294117647,null,null,null,null,null,null,0.64859999999999984,"No UNICEF/Gavi price data. Data from WHO SMT ","WHO prequalified vaccines 2015/8/25"]
[null,"Men_A-lyophilized-10","10lyophilized","Meningitis A conjugate","Men_A","lyophilized","SC",2,10,2.6,3.11,"VVM-30",5.9849999999999994,1.4285714285714286,16.314285714285713,7.4285714285714288,null,null,null,null,null,null,0.64,"UNICEF/Gavi 2016 price","UNICEF/Gavi storage volume"]
[null,"MMR-lyophilized-1","1lyophilized","Measles-Mumps-Rubella freeze dried","MMR","lyophilized","SC",2,1,17.923333333333332,null,"VVM-14",2.1059999999999999,1.0526315789473684,37.733333333333327,37.733333333333327,null,null,null,null,null,null,2.25,"UNICEF/Gavi 2015 price","WHO prequalified vaccines 2015/8/25"]
[null,"MMR-lyophilized-10","10lyophilized","Measles-Mumps-Rubella freeze dried","MMR","lyophilized","SC",2,10,2.46,4,"VVM-14",12.852000000000002,1.4285714285714286,18.457142857142859,7.0285714285714285,null,null,null,null,null,null,{"$f":"AVERAGE(1.985,1.077)","v":1.5310000000000001},"UNICEF/Gavi 2015 price","WHO prequalified vaccines 2015/8/25(vaccine packed volume only)"]
[null,"MMR-lyophilized-2","2lyophilized","Measles-Mumps-Rubella freeze dried","MMR","lyophilized","SC",2,2,4.8,12.8,"VVM-14",4.95,1.1111111111111112,39.111111111111114,10.666666666666666,null,null,null,null,null,null,3.25,"UNICEF/Gavi 2015 price","WHO prequalified vaccines 2015/8/25"]
[null,"MMR-lyophilized-5","5lyophilized","Measles-Mumps-Rubella freeze dried","MMR","lyophilized","SC",2,5,5.22,7,"VVM-14",9.9,1.1764705882352942,28.752941176470586,12.28235294117647,null,null,null,null,null,null,1.0900000000000001,"UNICEF/Gavi 2015 price"]
[null,"mOPV1-liquid-20","20liquid","Monovalent OPV-1","mOPV1","liquid","Oral",null,20,0.62750000000000006,null,"VVM-2",2.1560000000000001,1.25,0,0,null,null,null,null,null,null,{"$f":"1.95/20","v":9.7500000000000003E-2},"UNICEF/Gavi 2015 price","WHO prequalified vaccine 2015/8/25"]
[null,"mOPV3-liquid-20","20liquid","Monovalent OPV-3","mOPV3","liquid","Oral",null,20,0.48,null,"VVM-2",2.75,1.25,0,0,null,null,null,null,null,null,{"$f":"3.1/20","v":0.155},"UNICEF/Gavi 2015 price","WHO prequalified vaccine 2015/8/25"]
[null,"MR-lyophilized-1","1lyophilized","Measles-Rubella freeze dried","MR","lyophilized","SC",2,1,26.11,26.11,"VVM-14",5.7456000000000005,1.0526315789473684,109.93684210526315,54.968421052631577,null,null,null,null,null,null,5.7456000000000005,"No UNICEF/Gavi price data. Data from WHO SMT "]
[null,"MR-lyophilized-10","10lyophilized","Measles-Rubella freeze dried","MR","lyophilized","SC",2,10,2.6110000000000002,null,"VVM-14",5.7888000000000011,1.4285714285714286,7.4600000000000009,7.4600000000000009,null,null,null,null,null,null,0.61,"UNICEF/Gavi 2016 price","UNICEF/Gavi storage volume"]
[null,"MR-lyophilized-2","2lyophilized","Measles-Rubella freeze dried","MR","lyophilized","SC",2,2,13.1,13.1,"VVM-14",4.6656000000000004,1.1111111111111112,58.222222222222221,{"$f":"H69*N69*J69","v":29.111111111111111},null,null,null,null,null,null,2.3328000000000002,"No UNICEF/Gavi price data. Data from WHO SMT "]
[null,{"$f":"CONCATENATE(E70,\"-\",F70,\"-\",I70)","v":"MR-lyophilized-5"},{"$f":"CONCATENATE(I70,F70)","v":"5lyophilized"},"Measles-Rubella freeze dried","MR","lyophilized","SC",2,5,5.22,7,"VVM-14",2.5055999999999998,{"$f":"VLOOKUP(CONCATENATE(I70,F70),$T:$U,2,FALSE)","v":1.1764705882352942},{"$f":"H70*N70*(J70+K70)","v":28.752941176470586},12.28235294117647,null,null,null,null,null,null,0.50112000000000001,"No UNICEF/Gavi price data. Data from WHO SMT "]
[null,"MV_A/C/W/Y-lyophilized-10","10lyophilized","Meningococcal A/C/W/Y","MV_A/C/W/Y","lyophilized","SC",1,10,2.5,4,null,42,1.4285714285714286,9.2857142857142865,3.5714285714285716,null,null,null,null,null,null,{"$f":"60/10","v":6},"UNICEF 2015 Price","No current data"]
[null,"MV_A/C/W-lyophilized-50","50lyophilized","Meningococcal A/C/W/","MV_A/C/W","lyophilized","SC",1,50,1.5,3,null,66.150000000000006,2,9,3,null,null,null,null,null,null,{"$f":"61.27/50","v":1.2254},"UNICEF 2015 Price","No current data"]
[null,"MV_A/C-lyophilized-10","10lyophilized","Meningitis A/C","MV_A/C","lyophilized","SC",1,10,2.5,4,null,13.42,1.4285714285714286,9.2857142857142865,3.5714285714285716,null,null,null,null,null,null,{"$f":"13/10","v":1.3},"UNICEF 2015 Price","No current data"]
[null,"MV_A/C-lyophilized-50","50lyophilized","Meningitis A/C","MV_A/C","lyophilized","SC",1,50,1.5,3,null,22.605000000000004,2,9,3,null,null,null,null,null,null,0.4521,"No UNICEF/Gavi price data. Data from WHO SMT "]
[null,"MV_ACYW-135-lyophilized-10","10lyophilized","Meningitis A/C/Y/W135","MV_ACYW-135","lyophilized","SC",1,10,12.2568837523125,null,"VVM-30",null,1.4285714285714286,17.509833931875001,17.509833931875001,null,null,null,null,null,null,{"$f":"M75/I75","v":0}]
[null,"MV_W135-lyophilized-10","10lyophilized","Meningitis W135","MV_W135","lyophilized","SC",1,10,2.5,4,null,null,1.4285714285714286,9.2857142857142865,3.5714285714285716,null,null,null,null,null,null,{"$f":"M76/I76","v":0}]
[null,"OCV-liquid-1","1liquid","Cholera vaccine Shanchol","OCV","liquid","Oral",null,1,16.8,null,"VVM-14",2.0350000000000001,1.0101010101010102,0,0,null,null,null,null,null,null,{"$f":"M77/I77","v":2.0350000000000001}]
[null,"OCV-liquid-2","2liquid","Cholera vaccine Dukoral","OCV","liquid","Oral",null,2,136,null,null,4.07,1.0526315789473684,0,0,null,null,null,null,null,null,{"$f":"M78/I78","v":2.0350000000000001}]
[null,"OPV-liquid-10","10liquid","Polio","OPV","liquid","Oral",4,10,2.6440000000000001,null,"VVM-2",1.87,1.1764705882352942,12.442352941176472,12.442352941176472,null,null,null,null,null,null,{"$f":"AVERAGE(0.18,0.205)","v":0.1925},"UNICEF/Gavi 2015 price","WHO prequalified vaccine 2015/8/25"]
[null,"OPV-liquid-20","20liquid","Polio","OPV","liquid","Oral",4,20,0.69,null,"VVM-2",2.915,1.25,3.4499999999999997,3.4499999999999997,null,null,null,null,null,null,{"$f":"AVERAGE(0.1235,0.14,0.135,0.12,0.14)","v":0.13169999999999998},"UNICEF/Gavi 2015 price","WHO prequalified vaccine 2015/8/25"]
[null,"PCV-10-liquid-1","1liquid","Pneumo. conjugate vaccine 10-valent ","PCV-10","liquid","IM",3,1,11.950493999999999,null,"VVM-30",3.5350000000000001,1.0101010101010102,36.213618181818177,36.213618181818177,null,null,null,null,null,null,3.5350000000000001,"No UNICEF/Gavi price data. Data from WHO SMT "]
[null,"PCV-10-liquid-2","2liquid","Pneumo. conjugate vaccine 10-valent ","PCV-10","liquid","IM",3,2,4.8,null,"VVM-30",7.07,1.0526315789473684,15.157894736842104,15.157894736842104,null,null,null,null,null,null,3.47,"UNICEF/Gavi 2016 price","UNICEF/Gavi storage volume"]
[null,"PCV-13-liquid-1","1liquid","Pneumo. conjugate vaccine 13-valent ","PCV-13","liquid","IM",3,1,12.01,null,"VVM-30",3.5350000000000001,1.0101010101010102,36.393939393939391,36.393939393939391,null,null,null,null,null,null,3.3,"UNICEF/Gavi 2016 price","UNICEF/Gavi storage volume"]
[null,"PCV-7-liquid-1","1liquid","Pneumo. conjugate vaccine 7-valent ","PCV-7","liquid","IM",3,1,21,null,"VVM-30",3.5350000000000001,1.0101010101010102,63.636363636363633,63.636363636363633,null,null,null,null,null,null,3.5350000000000001,"No UNICEF/Gavi price data. Data from WHO SMT "]
[null,"PCV-7-liquid-PFS","PFSliquid","Pneumo. conjugate vaccine 7-valent ","PCV-7","liquid","IM",3,"PFS",55.948799999999991,null,null,null,1.0101010101010102,169.54181818181814,169.54181818181814,null,null,null,null,null,null,{"$f":"M85/1","v":0}]
[null,"PCV-xx-liquid-1","1liquid","Pneumo. conjugate vaccine xx-valent ","PCV-xx","liquid","IM",3,1,12.9,null,null,3.5350000000000001,1.0101010101010102,39.090909090909093,39.090909090909093,null,null,null,null,null,null,3.5350000000000001,"No UNICEF/Gavi price data. Data from WHO SMT "]
[null,"PCV-xx-liquid-2","2liquid","Pneumo. conjugate vaccine xx-valent ","PCV-xx","liquid","IM",3,2,4.8,null,null,7.07,1.0526315789473684,15.157894736842104,15.157894736842104,null,null,null,null,null,null,3.5350000000000001,"No UNICEF/Gavi price data. Data from WHO SMT "]
[null,"PCV-xx-liquid-Uniject","Unijectliquid","Pneumo. conjugate vaccine xx-valent ","PCV-xx","liquid","IM",3,"Uniject",12,null,null,3.6360000000000001,1.0101010101010102,36.36363636363636,36.36363636363636,null,null,null,null,null,null,{"$f":"M88/1","v":3.6360000000000001}]
[null,"Rabies-lyophilized-1","1lyophilized","Rabies vaccine","Rabies","lyophilized","IM",3,1,71.099999999999994,null,null,null,1.0526315789473684,224.52631578947367,224.52631578947367,null,null,null,null,null,null,7,"UNICEF/Gavi 2015 price"]
[null,"Rota_lyo-lyophilized-1","1lyophilized","Rota vaccine","Rota_lyo","lyophilized","Oral",2,1,156,null,"VVM-14",2.6319999999999997,1.0526315789473684,328.4210526315789,328.4210526315789,null,null,null,null,null,null,{"$f":"M90/I90","v":2.6319999999999997}]
[null,"Rota_lyo-lyophilized-1","1lyophilized","Rota vaccine","Rota_lyo","lyophilized","Oral",2,1,110.6,null,"VVM-14",2.6319999999999997,1.0526315789473684,232.84210526315786,232.84210526315786,null,null,null,null,null,null,{"$f":"M91/I91","v":2.6319999999999997}]
[null,"Rota_lyo-lyophilized-1","1lyophilized","Rota vaccine","Rota_lyo","lyophilized","Oral",2,1,11,88.5,"VVM-14",2.6319999999999997,1.0526315789473684,209.4736842105263,23.157894736842103,null,null,null,null,null,null,{"$f":"M92/I92","v":2.6319999999999997}]
[null,"Rota_RV1-liquid-1","1liquid","Rota vaccine","Rota_RV1","liquid","Oral",2,1,17.329999999999998,null,"VVM-14",2.6319999999999997,1.0101010101010102,35.01010101010101,35.01010101010101,null,null,null,null,null,null,{"$f":"1.88*1.13","v":2.1243999999999996},"UNICEF/Gavi 2016 price"]
[null,"Rota_RV5-liquid-1","1liquid","Rota vaccine","Rota_RV5","liquid","Oral",3,1,46.25,null,"None",2.6319999999999997,1.0101010101010102,140.15151515151516,140.15151515151516,null,null,null,null,null,null,5,"UNICEF 2015 Price"]
[null,"Td-liquid-1","1liquid","Tetanus-Diphtheria","Td","liquid","IM",2,1,12.9,null,null,2.6,1.0101010101010102,26.060606060606062,26.060606060606062,null,null,null,null,null,null,{"$f":"M95/I95","v":2.6}]
[null,"Td-liquid-10","10liquid","Tetanus-Diphtheria","Td","liquid","IM",2,10,2.8652000000000002,null,null,1.3779999999999999,1.1764705882352942,6.7416470588235304,6.7416470588235304,null,null,null,null,null,null,{"$f":"AVERAGE(0.105,0.12,0.11)","v":0.11166666666666665},"UNICEF/Gavi 2015 price","WHO prequalified vaccines 2015/8/25"]
[null,"Td-liquid-20","20liquid","Tetanus-Diphtheria","Td","liquid","IM",2,20,2.5,null,null,2.1840000000000002,1.25,6.25,6.25,null,null,null,null,null,null,{"$f":"M97/I97","v":0.10920000000000001}]
[null,"TT-liquid-10","10liquid","Tetanus Toxoid","TT","liquid","IM",2,10,3.2593333333333336,null,null,0.88549999999999995,1.1764705882352942,7.6690196078431381,7.6690196078431381,null,null,null,null,null,null,{"$f":"1/10","v":0.1},"UNICEF/Gavi 2015 price","WHO prequalified vaccines 2015/8/25"]
[null,"TT-liquid-20","20liquid","Tetanus Toxoid","TT","liquid","IM",2,20,2.1406000000000001,null,null,1.1279999999999999,1.25,5.3514999999999997,5.3514999999999997,null,null,null,null,null,null,0.05,"UNICEF/Gavi 2015 price","WHO prequalified vaccines 2015/8/25"]
[null,"TT-liquid-Uniject","Unijectliquid","Tetanus Toxoid UniJect","TT","liquid","IM",2,"Uniject",12,null,"VVM-30",0.53,1.0101010101010102,24.242424242424242,24.242424242424242,null,null,null,null,null,null,0.53,"No UNICEF/Gavi price data. Data from WHO SMT ","WHO prequalified vaccines 2015/8/25"]
[null,"Typhim-liquid-20","20liquid","Typhoid","Typhim","liquid","IM",1,20,1.58,null,30,null,1.25,1.9750000000000001,1.9750000000000001,null,null,null,null,null,null,{"$f":"M101/I101","v":0}]
[null,"YF-lyophilized-10","10lyophilized","Yellow fever","YF","lyophilized","SC",1,10,2.1799999999999997,2.1799999999999997,"VVM-14",10.290000000000001,1.4285714285714286,6.2285714285714278,3.1142857142857139,null,null,null,null,null,null,1.2,"UNICEF/Gavi 2016 price","UNICEF/Gavi storage volume"]
[null,"YF-lyophilized-20","20lyophilized","Yellow fever","YF","lyophilized","SC",1,20,0.7,0.7,"VVM-14",12.584,2,2.8,1.4,null,null,null,null,null,null,0.77,"UNICEF/Gavi 2016 price","UNICEF/Gavi storage volume"]
[null,"YF-lyophilized-5","5lyophilized","Yellow fever","YF","lyophilized","SC",1,5,6.5,7,"VVM-14",3.63,1.1764705882352942,15.882352941176471,7.6470588235294121,null,null,null,null,null,null,{"$f":"4.2/5","v":0.84000000000000008},"UNICEF/Gavi 2015 price"]
[null,"YF-lyophilized-50","50lyophilized","Yellow fever","YF","lyophilized","SC",1,50,0.7,1,"VVM-14",25.48,2,3.4,1.4,null,null,null,null,null,null,0.49,"UNICEF/Gavi 2007 price - no 2015 price"]

{"sheet":"Technology template","index":28,"n_rows":46,"n_cols":12,"rows_kept":46,"cut":false,"hidden":true,"merged":[]}
["Technology Assumptions - separate tab for SDD, ILR, etc."]
["Technology",null,null,null,null,null,null,null,null,null,null,"AVERAGES"]
["Manufacturer"]
["Model"]
["CCEOP",null,null,null,null,null,null,null,null,null,null,"Capacity"]
["Net Vaccine Storage capacity"]
["Waterpack Freezing capacity"]
[]
["HARDWARE"]
["[Unit]",null,null,null,null,null,null,null,null,null,null,"Useful life"]
["[unit] Expected useful life"]
["Solar Panel expected useful life (where applicable)"]
["Battery expected useful life"]
["Installation Kit price"]
[]
[]
["[unit] PARTS"]
["Number of parts needed for useful life per unit",null,null,null,null,null,null,null,null,null,null,"Useful life"]
["Wicks"]
["Thermostat"]
["Compressor "]
["etc."]
["add rows as needed"]
[]
["LABOR"]
[null,null,null,null,null,null,null,null,null,null,null,"Installation cost"]
["Installation labor cost (one time)"]
[]
["Maintenance and repairs - FREQUENCY"]
["Expressed in frequency of occurrence (in years : quarterly = 0.25, annual = 1, every 5 years = 5, etc.)",null,null,null,null,null,null,null,null,null,null,"Routine maintenance frequency"]
["Frequency - Routine maintenance "]
[]
["Major Repairs (by a technician with tools)",null,null,null,null,null,null,null,null,null,null,"Major repair frequency"]
["Frequency - Onsite repairs 1","Specify 1"]
["Frequency - Onsite repairs 2","Specify 2"]
["etc."]
["Frequency - Major repairs in a workshop by a technician"]
[]
["Maintenance and repairs - HOURS"]
["Expressed in number of hours needed to complete"]
["Hours - Routine maintenance"]
[]
["Major Repairs (by a technician with tools)"]
["Hours - Onsite repairs 1","Specify 1"]
["Hours - Onsite repairs 2","Specify 2"]
["Hours - Major repairs in a workshop by a technician"]

{"sheet":"Parts","index":29,"n_rows":92,"n_cols":143,"rows_kept":92,"cut":false,"hidden":true,"merged":[[90,0,90,2]]}
["Equipment \ntypes\nYellow: spare needed per 10 units","PIS/PQS \nCode","Model number","Price in $ or €","Total","Compressor","Unit","Price","Thermostat","Unit","Price","Compressor controller","Unit","Price","Fan for compressor","Unit","Price","Control panel","Unit","Price","Sensor for e-thermostat","Unit","Price","Condensor + fan","Unit","Price","Condenser","Unit","Price","Shelving","Unit","Price","Evaporator","Unit","Price","E Box","Unit","Price","Switch","Unit","Price","Voltage stabilizer","Unit","Price","Baskets","Unit","Price","Starter","Unit","Price","Starter relay","Unit","Price","Starting capacitor","Unit","Price","Refrigerant","Unit","Price","Drier","Unit","Price","Fuse","Unit","Price","Lid","Unit","Price","Hinge","Unit","Price","Hinge cover","Unit","Price","Transformer","Unit","Price","Thermometer","Unit","Price","Ice pack","Unit","Price","Handle","Unit","Price","Electrical wiring","Unit","Price","Lamp","Unit","Price","Electrical heater","Unit","Price","Thermocouple","Unit","Price","Burner","Unit","Price","Safety valve","Unit","Price","Wicks","Unit","Price","Flue baffle","Unit","Price","Wick cleaner","Unit","Price","Flue brush","Unit","Price","Rechargeable battery","Unit","Price","Temperature probe","Unit","Price","SDD controller","Unit","Price","Sensor cooler","Unit","Price","Sensor heater","Unit","Price","Fuse protection pack","Unit","Price","Display board","Unit","Price","Freezer foam lid","Unit","Price","Surge Protector","Unit","Price"]
["AVERAGE Price",null,null,null,{"$f":"AVERAGE(E3:E87)","v":370.49766666666648},null,null,{"$f":"AVERAGE(H3:H87)","v":142.10594936708864},null,null,{"$f":"AVERAGE(K3:K87)","v":45.65203125},null,null,{"$f":"AVERAGE(N3:N87)","v":133.23333333333332},null,null,{"$f":"AVERAGE(Q3:Q87)","v":22.43},null,null,{"$f":"AVERAGE(T3:T87)","v":54.782758620689648},null,null,{"$f":"AVERAGE(W3:W87)","v":18.130000000000003},null,null,{"$f":"AVERAGE(Z3:Z87)","v":47.042830188679261},null,null,{"$f":"AVERAGE(AC3:AC87)","v":9.25},null,null,{"$f":"AVERAGE(AF3:AF87)","v":4.0333333333333332},null,null,{"$f":"AVERAGE(AI3:AI87)","v":68.066666666666663},null,null,{"$f":"AVERAGE(AL3:AL87)","v":128.65571428571425},null,null,{"$f":"AVERAGE(AO3:AO87)","v":8.5397368421052651},null,null,{"$f":"AVERAGE(AR3:AR87)","v":57.755999999999993},null,null,{"$f":"AVERAGE(AU3:AU87)","v":9.25},null,null,{"$f":"AVERAGE(AX3:AX87)","v":7.4},null,null,{"$f":"AVERAGE(BA3:BA87)","v":7.0151724137931026},null,null,{"$f":"AVERAGE(BD3:BD87)","v":7.7100000000000009},null,null,{"$f":"AVERAGE(BG3:BG87)","v":68.769090909090906},null,null,{"$f":"AVERAGE(BJ3:BJ87)","v":3.0635294117647063},null,null,{"$f":"AVERAGE(BM3:BM87)","v":1.3127272727272727},null,null,{"$f":"AVERAGE(BP3:BP87)","v":72.804999999999993},null,null,{"$f":"AVERAGE(BS3:BS87)","v":8.974024390243903},null,null,{"$f":"AVERAGE(BV3:BV87)","v":7.0761904761904741},null,null,{"$f":"AVERAGE(BY3:BY87)","v":64.956666666666663},null,null,{"$f":"AVERAGE(CB3:CB87)","v":22.51285714285714},null,null,{"$f":"AVERAGE(CE3:CE87)","v":25.930625000000006},null,null,{"$f":"AVERAGE(CH3:CH87)","v":6.4180952380952352},null,null,{"$f":"AVERAGE(CK3:CK87)","v":5.7153846153846137},null,null,{"$f":"AVERAGE(CN3:CN87)","v":12.866666666666667},null,null,{"$f":"AVERAGE(CQ3:CQ87)","v":12.379999999999999},null,null,{"$f":"AVERAGE(CT3:CT87)","v":15.532},null,null,{"$f":"AVERAGE(CW3:CW87)","v":26.189999999999998},null,null,{"$f":"AVERAGE(CZ3:CZ87)","v":10.226666666666667},null,null,{"$f":"AVERAGE(DC3:DC87)","v":4.578333333333334},null,null,{"$f":"AVERAGE(DF3:DF87)","v":10.573333333333332},null,null,{"$f":"AVERAGE(DI3:DI87)","v":2.2533333333333334},null,null,{"$f":"AVERAGE(DL3:DL87)","v":8.06},null,null,{"$f":"AVERAGE(DO3:DO87)","v":85},null,null,{"$f":"AVERAGE(DR3:DR87)","v":6.9249999999999998},null,null,{"$f":"AVERAGE(DU3:DU87)","v":139.62272727272727},null,null,{"$f":"AVERAGE(DX3:DX87)","v":29.819999999999997},null,null,{"$f":"AVERAGE(EA3:EA87)","v":30.72},null,null,{"$f":"AVERAGE(ED3:ED87)","v":12},null,null,{"$f":"AVERAGE(EG3:EG87)","v":27.738181818181818},null,null,{"$f":"AVERAGE(EJ3:EJ87)","v":38.1},null,null,{"$f":"AVERAGE(EM3:EM87)","v":85.5}]
[{"$f":"PQS!A5","v":"Gas"},"E3/88-M",{"$f":"PQS!E5","v":"RCW 50 EG"},{"$f":"PQS!P5","v":"$"},{"$f":"SUM(G3*H3,J3*K3,M3*N3,P3*Q3,S3*T3,V3*W3,Y3*Z3,AB3*AC3,AE3*AF3,AH3*AI3,AK3*AL3,AN3*AO3,AQ3*AR3,AT3*AU3,AW3*AX3,AZ3*BA3,BC3*BD3,BF3*BG3,BI3*BJ3,BL3*BM3,BO3*BP3, BR3*BS3,BU3*BV3, BX3*BY3, CA3*CB3,CD3*CE3,CG3*CH3,CJ3*CK3,CM3*CN3,CP3*CQ3,CS3*CT3,CV3*CW3,CY3*CZ3,DB3*DC3,DE3*DF3,DH3*DI3,DK3*DL3,DN3*DO3,DQ3*DR3,DT3*DU3,DW3*DX3,DZ3*EA3,EC3*ED3,EF3*EG3,EI3*EJ3,EL3*EM3)","v":61.46},null,{"$f":"IFERROR(INDEX(INDIRECT(\"'\"&A3&\"'!$18:$50\"),MATCH(Parts!F$1,INDIRECT(\"'\"&A3&\"'!$A$18:$A$50\"),0),MATCH(Parts!$B3,INDIRECT(\"'\"&A3&\"'!$10:$10\"),0)),0)","v":0},null,null,{"$f":"IFERROR(INDEX(INDIRECT(\"'\"&A3&\"'!$18:$50\"),MATCH($I$1,INDIRECT(\"'\"&A3&\"'!$A$18:$A$50\"),0),MATCH(Parts!$B3,INDIRECT(\"'\"&A3&\"'!$10:$10\"),0)),0)","v":0},null,null,{"$f":"IFERROR(INDEX(INDIRECT(\"'\"&A3&\"'!$18:$50\"),MATCH($L$1,INDIRECT(\"'\"&A3&\"'!$A$18:$A$50\"),0),MATCH(Parts!$B3,INDIRECT(\"'\"&A3&\"'!$10:$10\"),0)),0)","v":0},null,null,{"$f":"IFERROR(INDEX(INDIRECT(\"'\"&A3&\"'!$18:$50\"),MATCH($O$1,INDIRECT(\"'\"&A3&\"'!$A$18:$A$50\"),0),MATCH(Parts!$B3,INDIRECT(\"'\"&A3&\"'!$10:$10\"),0)),0)","v":0},null,null,{"$f":"IFERROR(INDEX(INDIRECT(\"'\"&A3&\"'!$18:$50\"),MATCH($R$1,INDIRECT(\"'\"&A3&\"'!$A$18:$A$50\"),0),MATCH(Parts!$B3,INDIRECT(\"'\"&A3&\"'!$10:$10\"),0)),0)","v":0},null,null,{"$f":"IFERROR(INDEX(INDIRECT(\"'\"&A3&\"'!$18:$50\"),MATCH($U$1,INDIRECT(\"'\"&A3&\"'!$A$18:$A$50\"),0),MATCH(Parts!$B3,INDIRECT(\"'\"&A3&\"'!$10:$10\"),0)),0)","v":0},null,null,{"$f":"IFERROR(INDEX(INDIRECT(\"'\"&A3&\"'!$18:$50\"),MATCH($X$1,INDIRECT(\"'\"&A3&\"'!$A$18:$A$50\"),0),MATCH(Parts!$B3,INDIRECT(\"'\"&A3&\"'!$10:$10\"),0)),0)","v":0},null,null,{"$f":"IFERROR(INDEX(INDIRECT(\"'\"&A3&\"'!$18:$50\"),MATCH($AA$1,INDIRECT(\"'\"&A3&\"'!$A$18:$A$50\"),0),MATCH(Parts!$B3,INDIRECT(\"'\"&A3&\"'!$10:$10\"),0)),0)","v":0},null,null,{"$f":"IFERROR(INDEX(INDIRECT(\"'\"&A3&\"'!$18:$50\"),MATCH($AD$1,INDIRECT(\"'\"&A3&\"'!$A$18:$A$50\"),0),MATCH(Parts!$B3,INDIRECT(\"'\"&A3&\"'!$10:$10\"),0)),0)","v":0},null,null,{"$f":"IFERROR(INDEX(INDIRECT(\"'\"&A3&\"'!$18:$50\"),MATCH($AG$1,INDIRECT(\"'\"&A3&\"'!$A$18:$A$50\"),0),MATCH(Parts!$B3,INDIRECT(\"'\"&A3&\"'!$10:$10\"),0)),0)","v":0},null,null,{"$f":"IFERROR(INDEX(INDIRECT(\"'\"&A3&\"'!$18:$50\"),MATCH($AJ$1,INDIRECT(\"'\"&A3&\"'!$A$18:$A$50\"),0),MATCH(Parts!$B3,INDIRECT(\"'\"&A3&\"'!$10:$10\"),0)),0)","v":0},null,null,{"$f":"IFERROR(INDEX(INDIRECT(\"'\"&A3&\"'!$18:$50\"),MATCH($AM$1,INDIRECT(\"'\"&A3&\"'!$A$18:$A$50\"),0),MATCH(Parts!$B3,INDIRECT(\"'\"&A3&\"'!$10:$10\"),0)),0)","v":0},null,null,{"$f":"IFERROR(INDEX(INDIRECT(\"'\"&A3&\"'!$18:$50\"),MATCH($AP$1,INDIRECT(\"'\"&A3&\"'!$A$18:$A$50\"),0),MATCH(Parts!$B3,INDIRECT(\"'\"&A3&\"'!$10:$10\"),0)),0)","v":0},null,null,{"$f":"IFERROR(INDEX(INDIRECT(\"'\"&A3&\"'!$18:$50\"),MATCH($AS$1,INDIRECT(\"'\"&A3&\"'!$A$18:$A$50\"),0),MATCH(Parts!$B3,INDIRECT(\"'\"&A3&\"'!$10:$10\"),0)),0)","v":0},null,null,{"$f":"IFERROR(INDEX(INDIRECT(\"'\"&A3&\"'!$18:$50\"),MATCH($AV$1,INDIRECT(\"'\"&A3&\"'!$A$18:$A$50\"),0),MATCH(Parts!$B3,INDIRECT(\"'\"&A3&\"'!$10:$10\"),0)),0)","v":0},null,null,{"$f":"IFERROR(INDEX(INDIRECT(\"'\"&A3&\"'!$18:$50\"),MATCH($AY$1,INDIRECT(\"'\"&A3&\"'!$A$18:$A$50\"),0),MATCH(Parts!$B3,INDIRECT(\"'\"&A3&\"'!$10:$10\"),0)),0)","v":0},null,null,{"$f":"IFERROR(INDEX(INDIRECT(\"'\"&A3&\"'!$18:$50\"),MATCH($BB$1,INDIRECT(\"'\"&A3&\"'!$A$18:$A$50\"),0),MATCH(Parts!$B3,INDIRECT(\"'\"&A3&\"'!$10:$10\"),0)),0)","v":0},null,null,{"$f":"IFERROR(INDEX(INDIRECT(\"'\"&A3&\"'!$18:$50\"),MATCH($BE$1,INDIRECT(\"'\"&A3&\"'!$A$18:$A$50\"),0),MATCH(Parts!$B3,INDIRECT(\"'\"&A3&\"'!$10:$10\"),0)),0)","v":0},null,null,{"$f":"IFERROR(INDEX(INDIRECT(\"'\"&A3&\"'!$18:$50\"),MATCH($BH$1,INDIRECT(\"'\"&A3&\"'!$A$18:$A$50\"),0),MATCH(Parts!$B3,INDIRECT(\"'\"&A3&\"'!$10:$10\"),0)),0)","v":0},null,null,{"$f":"IFERROR(INDEX(INDIRECT(\"'\"&A3&\"'!$18:$50\"),MATCH($BK$1,INDIRECT(\"'\"&A3&\"'!$A$18:$A$50\"),0),MATCH(Parts!$B3,INDIRECT(\"'\"&A3&\"'!$10:$10\"),0)),0)","v":0},null,null,{"$f":"IFERROR(INDEX(INDIRECT(\"'\"&A3&\"'!$18:$50\"),MATCH($BN$1,INDIRECT(\"'\"&A3&\"'!$A$18:$A$50\"),0),MATCH(Parts!$B3,INDIRECT(\"'\"&A3&\"'!$10:$10\"),0)),0)","v":0},null,null,{"$f":"IFERROR(INDEX(INDIRECT(\"'\"&A3&\"'!$18:$50\"),MATCH($BQ$1,INDIRECT(\"'\"&A3&\"'!$A$18:$A$50\"),0),MATCH(Parts!$B3,INDIRECT(\"'\"&A3&\"'!$10:$10\"),0)),0)","v":0},null,null,{"$f":"IFERROR(INDEX(INDIRECT(\"'\"&A3&\"'!$18:$50\"),MATCH($BT$1,INDIRECT(\"'\"&A3&\"'!$A$18:$A$50\"),0),MATCH(Parts!$B3,INDIRECT(\"'\"&A3&\"'!$10:$10\"),0)),0)","v":0},null,null,{"$f":"IFERROR(INDEX(INDIRECT(\"'\"&A3&\"'!$18:$50\"),MATCH($BW$1,INDIRECT(\"'\"&A3&\"'!$A$18:$A$50\"),0),MATCH(Parts!$B3,INDIRECT(\"'\"&A3&\"'!$10:$10\"),0)),0)","v":0},null,null,{"$f":"IFERROR(INDEX(INDIRECT(\"'\"&A3&\"'!$18:$50\"),MATCH($BZ$1,INDIRECT(\"'\"&A3&\"'!$A$18:$A$50\"),0),MATCH(Parts!$B3,INDIRECT(\"'\"&A3&\"'!$10:$10\"),0)),0)","v":0},null,null,{"$f":"IFERROR(INDEX(INDIRECT(\"'\"&A3&\"'!$18:$50\"),MATCH($CC$1,INDIRECT(\"'\"&A3&\"'!$A$18:$A$50\"),0),MATCH(Parts!$B3,INDIRECT(\"'\"&A3&\"'!$10:$10\"),0)),0)","v":0},null,null,{"$f":"IFERROR(INDEX(INDIRECT(\"'\"&A3&\"'!$18:$50\"),MATCH($CF$1,INDIRECT(\"'\"&A3&\"'!$A$18:$A$50\"),0),MATCH(Parts!$B3,INDIRECT(\"'\"&A3&\"'!$10:$10\"),0)),0)","v":0},null,null,{"$f":"IFERROR(INDEX(INDIRECT(\"'\"&A3&\"'!$18:$50\"),MATCH($CI$1,INDIRECT(\"'\"&A3&\"'!$A$18:$A$50\"),0),MATCH(Parts!$B3,INDIRECT(\"'\"&A3&\"'!$10:$10\"),0)),0)","v":0},null,null,{"$f":"IFERROR(INDEX(INDIRECT(\"'\"&A3&\"'!$18:$50\"),MATCH($CL$1,INDIRECT(\"'\"&A3&\"'!$A$18:$A$50\"),0),MATCH(Parts!$B3,INDIRECT(\"'\"&A3&\"'!$10:$10\"),0)),0)","v":0},null,"Electrical heater (2), 230 VAC, 296.9730.02, US$ 6.68)",{"$f":"IFERROR(INDEX(INDIRECT(\"'\"&A3&\"'!$18:$50\"),MATCH($CO$1,INDIRECT(\"'\"&A3&\"'!$A$18:$A$50\"),0),MATCH(Parts!$B3,INDIRECT(\"'\"&A3&\"'!$10:$10\"),0)),0)","v":2},6.68,"Thermocouple (2), 292.8742.02, US$ 2.13",{"$f":"IFERROR(INDEX(INDIRECT(\"'\"&A3&\"'!$18:$50\"),MATCH($CR$1,INDIRECT(\"'\"&A3&\"'!$A$18:$A$50\"),0),MATCH(Parts!$B3,INDIRECT(\"'\"&A3&\"'!$10:$10\"),0)),0)","v":2},2.12,"Burner (2), 296.0626.10, US$ 10.95",{"$f":"IFERROR(INDEX(INDIRECT(\"'\"&A3&\"'!$18:$50\"),MATCH($CU$1,INDIRECT(\"'\"&A3&\"'!$A$18:$A$50\"),0),MATCH(Parts!$B3,INDIRECT(\"'\"&A3&\"'!$10:$10\"),0)),0)","v":2},10.95,"Flame failure device (2), 292.2006.01, US$ 5.49",{"$f":"IFERROR(INDEX(INDIRECT(\"'\"&A3&\"'!$18:$50\"),MATCH($CX$1,INDIRECT(\"'\"&A3&\"'!$A$18:$A$50\"),0),MATCH(Parts!$B3,INDIRECT(\"'\"&A3&\"'!$10:$10\"),0)),0)","v":2},{"$f":"5.49*2","v":10.98},null,{"$f":"IFERROR(INDEX(INDIRECT(\"'\"&A3&\"'!$18:$50\"),MATCH($DA$1,INDIRECT(\"'\"&A3&\"'!$A$18:$A$50\"),0),MATCH(Parts!$B3,INDIRECT(\"'\"&A3&\"'!$10:$10\"),0)),0)","v":0},null,null,{"$f":"IFERROR(INDEX(INDIRECT(\"'\"&A3&\"'!$18:$50\"),MATCH($DD$1,INDIRECT(\"'\"&A3&\"'!$A$18:$A$50\"),0),MATCH(Parts!$B3,INDIRECT(\"'\"&A3&\"'!$10:$10\"),0)),0)","v":0},null,null,{"$f":"IFERROR(INDEX(INDIRECT(\"'\"&A3&\"'!$18:$50\"),MATCH($DG$1,INDIRECT(\"'\"&A3&\"'!$A$18:$A$50\"),0),MATCH(Parts!$B3,INDIRECT(\"'\"&A3&\"'!$10:$10\"),0)),0)","v":0},null,null,{"$f":"IFERROR(INDEX(INDIRECT(\"'\"&A3&\"'!$18:$50\"),MATCH($DJ$1,INDIRECT(\"'\"&A3&\"'!$A$18:$A$50\"),0),MATCH(Parts!$B3,INDIRECT(\"'\"&A3&\"'!$10:$10\"),0)),0)","v":0},null,null,{"$f":"IFERROR(INDEX(INDIRECT(\"'\"&A3&\"'!$18:$50\"),MATCH($DM$1,INDIRECT(\"'\"&A3&\"'!$A$18:$A$50\"),0),MATCH(Parts!$B3,INDIRECT(\"'\"&A3&\"'!$10:$10\"),0)),0)","v":0},null,null,{"$f":"IFERROR(INDEX(INDIRECT(\"'\"&A3&\"'!$18:$50\"),MATCH($DP$1,INDIRECT(\"'\"&A3&\"'!$A$18:$A$50\"),0),MATCH(Parts!$B3,INDIRECT(\"'\"&A3&\"'!$10:$10\"),0)),0)","v":0},null,null,{"$f":"IFERROR(INDEX(INDIRECT(\"'\"&A3&\"'!$18:$50\"),MATCH($DS$1,INDIRECT(\"'\"&A3&\"'!$A$18:$A$50\"),0),MATCH(Parts!$B3,INDIRECT(\"'\"&A3&\"'!$10:$10\"),0)),0)","v":0},null,null,{"$f":"IFERROR(INDEX(INDIRECT(\"'\"&A3&\"'!$18:$50\"),MATCH($DV$1,INDIRECT(\"'\"&A3&\"'!$A$18:$A$50\"),0),MATCH(Parts!$B3,INDIRECT(\"'\"&A3&\"'!$10:$10\"),0)),0)","v":0},null,null,{"$f":"IFERROR(INDEX(INDIRECT(\"'\"&A3&\"'!$18:$50\"),MATCH($DY$1,INDIRECT(\"'\"&A3&\"'!$A$18:$A$50\"),0),MATCH(Parts!$B3,INDIRECT(\"'\"&A3&\"'!$10:$10\"),0)),0)","v":0},null,null,{"$f":"IFERROR(INDEX(INDIRECT(\"'\"&A3&\"'!$18:$50\"),MATCH($EB$1,INDIRECT(\"'\"&A3&\"'!$A$18:$A$50\"),0),MATCH(Parts!$B3,INDIRECT(\"'\"&A3&\"'!$10:$10\"),0)),0)","v":0},null,null,{"$f":"IFERROR(INDEX(INDIRECT(\"'\"&A3&\"'!$18:$50\"),MATCH($EE$1,INDIRECT(\"'\"&A3&\"'!$A$18:$A$50\"),0),MATCH(Parts!$B3,INDIRECT(\"'\"&A3&\"'!$10:$10\"),0)),0)","v":0},null,null,{"$f":"IFERROR(INDEX(INDIRECT(\"'\"&A3&\"'!$18:$50\"),MATCH($EH$1,INDIRECT(\"'\"&A3&\"'!$A$18:$A$50\"),0),MATCH(Parts!$B3,INDIRECT(\"'\"&A3&\"'!$10:$10\"),0)),0)","v":0},null,null,{"$f":"IFERROR(INDEX(INDIRECT(\"'\"&A3&\"'!$18:$50\"),MATCH($EK$1,INDIRECT(\"'\"&A3&\"'!$A$18:$A$50\"),0),MATCH(Parts!$B3,INDIRECT(\"'\"&A3&\"'!$10:$10\"),0)),0)","v":0}]
[{"$f":"PQS!A6","v":"Gas"},"E3/84-M",{"$f":"PQS!E6","v":"V 170 GE"},{"$f":"PQS!P6","v":"$"},{"$f":"SUM(G4*H4,J4*K4,M4*N4,P4*Q4,S4*T4,V4*W4,Y4*Z4,AB4*AC4,AE4*AF4,AH4*AI4,AK4*AL4,AN4*AO4,AQ4*AR4,AT4*AU4,AW4*AX4,AZ4*BA4,BC4*BD4,BF4*BG4,BI4*BJ4,BL4*BM4,BO4*BP4, BR4*BS4,BU4*BV4, BX4*BY4, CA4*CB4,CD4*CE4,CG4*CH4,CJ4*CK4,CM4*CN4,CP4*CQ4,CS4*CT4,CV4*CW4,CY4*CZ4,DB4*DC4,DE4*DF4,DH4*DI4,DK4*DL4,DN4*DO4,DQ4*DR4,DT4*DU4,DW4*DX4,DZ4*EA4,EC4*ED4,EF4*EG4,EI4*EJ4,EL4*EM4)","v":113.8},null,{"$f":"IFERROR(INDEX(INDIRECT(\"'\"&A4&\"'!$18:$50\"),MATCH(Parts!F$1,INDIRECT(\"'\"&A4&\"'!$A$18:$A$50\"),0),MATCH(Parts!$B4,INDIRECT(\"'\"&A4&\"'!$10:$10\"),0)),0)","v":0},null,"Thermostat (gas/electric) (2), 200 71 99-04/1, US$ 24.08",{"$f":"IFERROR(INDEX(INDIRECT(\"'\"&A4&\"'!$18:$50\"),MATCH($I$1,INDIRECT(\"'\"&A4&\"'!$A$18:$A$50\"),0),MATCH(Parts!$B4,INDIRECT(\"'\"&A4&\"'!$10:$10\"),0)),0)","v":2},24.08,null,{"$f":"IFERROR(INDEX(INDIRECT(\"'\"&A4&\"'!$18:$50\"),MATCH($L$1,INDIRECT(\"'\"&A4&\"'!$A$18:$A$50\"),0),MATCH(Parts!$B4,INDIRECT(\"'\"&A4&\"'!$10:$10\"),0)),0)","v":0},null,null,{"$f":"IFERROR(INDEX(INDIRECT(\"'\"&A4&\"'!$18:$50\"),MATCH($O$1,INDIRECT(\"'\"&A4&\"'!$A$18:$A$50\"),0),MATCH(Parts!$B4,INDIRECT(\"'\"&A4&\"'!$10:$10\"),0)),0)","v":0},null,null,{"$f":"IFERROR(INDEX(INDIRECT(\"'\"&A4&\"'!$18:$50\"),MATCH($R$1,INDIRECT(\"'\"&A4&\"'!$A$18:$A$50\"),0),MATCH(Parts!$B4,INDIRECT(\"'\"&A4&\"'!$10:$10\"),0)),0)","v":0},null,null,{"$f":"IFERROR(INDEX(INDIRECT(\"'\"&A4&\"'!$18:$50\"),MATCH($U$1,INDIRECT(\"'\"&A4&\"'!$A$18:$A$50\"),0),MATCH(Parts!$B4,INDIRECT(\"'\"&A4&\"'!$10:$10\"),0)),0)","v":0},null,null,{"$f":"IFERROR(INDEX(INDIRECT(\"'\"&A4&\"'!$18:$50\"),MATCH($X$1,INDIRECT(\"'\"&A4&\"'!$A$18:$A$50\"),0),MATCH(Parts!$B4,INDIRECT(\"'\"&A4&\"'!$10:$10\"),0)),0)","v":0},null,null,{"$f":"IFERROR(INDEX(INDIRECT(\"'\"&A4&\"'!$18:$50\"),MATCH($AA$1,INDIRECT(\"'\"&A4&\"'!$A$18:$A$50\"),0),MATCH(Parts!$B4,INDIRECT(\"'\"&A4&\"'!$10:$10\"),0)),0)","v":0},null,null,{"$f":"IFERROR(INDEX(INDIRECT(\"'\"&A4&\"'!$18:$50\"),MATCH($AD$1,INDIRECT(\"'\"&A4&\"'!$A$18:$A$50\"),0),MATCH(Parts!$B4,INDIRECT(\"'\"&A4&\"'!$10:$10\"),0)),0)","v":0},null,null,{"$f":"IFERROR(INDEX(INDIRECT(\"'\"&A4&\"'!$18:$50\"),MATCH($AG$1,INDIRECT(\"'\"&A4&\"'!$A$18:$A$50\"),0),MATCH(Parts!$B4,INDIRECT(\"'\"&A4&\"'!$10:$10\"),0)),0)","v":0},null,null,{"$f":"IFERROR(INDEX(INDIRECT(\"'\"&A4&\"'!$18:$50\"),MATCH($AJ$1,INDIRECT(\"'\"&A4&\"'!$A$18:$A$50\"),0),MATCH(Parts!$B4,INDIRECT(\"'\"&A4&\"'!$10:$10\"),0)),0)","v":0},null,null,{"$f":"IFERROR(INDEX(INDIRECT(\"'\"&A4&\"'!$18:$50\"),MATCH($AM$1,INDIRECT(\"'\"&A4&\"'!$A$18:$A$50\"),0),MATCH(Parts!$B4,INDIRECT(\"'\"&A4&\"'!$10:$10\"),0)),0)","v":0},null,null,{"$f":"IFERROR(INDEX(INDIRECT(\"'\"&A4&\"'!$18:$50\"),MATCH($AP$1,INDIRECT(\"'\"&A4&\"'!$A$18:$A$50\"),0),MATCH(Parts!$B4,INDIRECT(\"'\"&A4&\"'!$10:$10\"),0)),0)","v":0},null,null,{"$f":"IFERROR(INDEX(INDIRECT(\"'\"&A4&\"'!$18:$50\"),MATCH($AS$1,INDIRECT(\"'\"&A4&\"'!$A$18:$A$50\"),0),MATCH(Parts!$B4,INDIRECT(\"'\"&A4&\"'!$10:$10\"),0)),0)","v":0},null,null,{"$f":"IFERROR(INDEX(INDIRECT(\"'\"&A4&\"'!$18:$50\"),MATCH($AV$1,INDIRECT(\"'\"&A4&\"'!$A$18:$A$50\"),0),MATCH(Parts!$B4,INDIRECT(\"'\"&A4&\"'!$10:$10\"),0)),0)","v":0},null,null,{"$f":"IFERROR(INDEX(INDIRECT(\"'\"&A4&\"'!$18:$50\"),MATCH($AY$1,INDIRECT(\"'\"&A4&\"'!$A$18:$A$50\"),0),MATCH(Parts!$B4,INDIRECT(\"'\"&A4&\"'!$10:$10\"),0)),0)","v":0},null,null,{"$f":"IFERROR(INDEX(INDIRECT(\"'\"&A4&\"'!$18:$50\"),MATCH($BB$1,INDIRECT(\"'\"&A4&\"'!$A$18:$A$50\"),0),MATCH(Parts!$B4,INDIRECT(\"'\"&A4&\"'!$10:$10\"),0)),0)","v":0},null,null,{"$f":"IFERROR(INDEX(INDIRECT(\"'\"&A4&\"'!$18:$50\"),MATCH($BE$1,INDIRECT(\"'\"&A4&\"'!$A$18:$A$50\"),0),MATCH(Parts!$B4,INDIRECT(\"'\"&A4&\"'!$10:$10\"),0)),0)","v":0},null,null,{"$f":"IFERROR(INDEX(INDIRECT(\"'\"&A4&\"'!$18:$50\"),MATCH($BH$1,INDIRECT(\"'\"&A4&\"'!$A$18:$A$50\"),0),MATCH(Parts!$B4,INDIRECT(\"'\"&A4&\"'!$10:$10\"),0)),0)","v":0},null,null,{"$f":"IFERROR(INDEX(INDIRECT(\"'\"&A4&\"'!$18:$50\"),MATCH($BK$1,INDIRECT(\"'\"&A4&\"'!$A$18:$A$50\"),0),MATCH(Parts!$B4,INDIRECT(\"'\"&A4&\"'!$10:$10\"),0)),0)","v":0},null,null,{"$f":"IFERROR(INDEX(INDIRECT(\"'\"&A4&\"'!$18:$50\"),MATCH($BN$1,INDIRECT(\"'\"&A4&\"'!$A$18:$A$50\"),0),MATCH(Parts!$B4,INDIRECT(\"'\"&A4&\"'!$10:$10\"),0)),0)","v":0},null,null,{"$f":"IFERROR(INDEX(INDIRECT(\"'\"&A4&\"'!$18:$50\"),MATCH($BQ$1,INDIRECT(\"'\"&A4&\"'!$A$18:$A$50\"),0),MATCH(Parts!$B4,INDIRECT(\"'\"&A4&\"'!$10:$10\"),0)),0)","v":0},null,null,{"$f":"IFERROR(INDEX(INDIRECT(\"'\"&A4&\"'!$18:$50\"),MATCH($BT$1,INDIRECT(\"'\"&A4&\"'!$A$18:$A$50\"),0),MATCH(Parts!$B4,INDIRECT(\"'\"&A4&\"'!$10:$10\"),0)),0)","v":0},null,null,{"$f":"IFERROR(INDEX(INDIRECT(\"'\"&A4&\"'!$18:$50\"),MATCH($BW$1,INDIRECT(\"'\"&A4&\"'!$A$18:$A$50\"),0),MATCH(Parts!$B4,INDIRECT(\"'\"&A4&\"'!$10:$10\"),0)),0)","v":0},null,null,{"$f":"IFERROR(INDEX(INDIRECT(\"'\"&A4&\"'!$18:$50\"),MATCH($BZ$1,INDIRECT(\"'\"&A4&\"'!$A$18:$A$50\"),0),MATCH(Parts!$B4,INDIRECT(\"'\"&A4&\"'!$10:$10\"),0)),0)","v":0},null,null,{"$f":"IFERROR(INDEX(INDIRECT(\"'\"&A4&\"'!$18:$50\"),MATCH($CC$1,INDIRECT(\"'\"&A4&\"'!$A$18:$A$50\"),0),MATCH(Parts!$B4,INDIRECT(\"'\"&A4&\"'!$10:$10\"),0)),0)","v":0},null,null,{"$f":"IFERROR(INDEX(INDIRECT(\"'\"&A4&\"'!$18:$50\"),MATCH($CF$1,INDIRECT(\"'\"&A4&\"'!$A$18:$A$50\"),0),MATCH(Parts!$B4,INDIRECT(\"'\"&A4&\"'!$10:$10\"),0)),0)","v":0},null,null,{"$f":"IFERROR(INDEX(INDIRECT(\"'\"&A4&\"'!$18:$50\"),MATCH($CI$1,INDIRECT(\"'\"&A4&\"'!$A$18:$A$50\"),0),MATCH(Parts!$B4,INDIRECT(\"'\"&A4&\"'!$10:$10\"),0)),0)","v":0},null,null,{"$f":"IFERROR(INDEX(INDIRECT(\"'\"&A4&\"'!$18:$50\"),MATCH($CL$1,INDIRECT(\"'\"&A4&\"'!$A$18:$A$50\"),0),MATCH(Parts!$B4,INDIRECT(\"'\"&A4&\"'!$10:$10\"),0)),0)","v":0},null,"Electric heater, 230VAC (2), 17 37 42-24/8, US$ 12.77",{"$f":"IFERROR(INDEX(INDIRECT(\"'\"&A4&\"'!$18:$50\"),MATCH($CO$1,INDIRECT(\"'\"&A4&\"'!$A$18:$A$50\"),0),MATCH(Parts!$B4,INDIRECT(\"'\"&A4&\"'!$10:$10\"),0)),0)","v":2},12.77,"Thermocouple (2), 293 14 96-04/2, US$ 5.38",{"$f":"IFERROR(INDEX(INDIRECT(\"'\"&A4&\"'!$18:$50\"),MATCH($CR$1,INDIRECT(\"'\"&A4&\"'!$A$18:$A$50\"),0),MATCH(Parts!$B4,INDIRECT(\"'\"&A4&\"'!$10:$10\"),0)),0)","v":2},5.38,"Burner jet No. 58 (2), 200 74 19-21/7, US$ 4.82",{"$f":"IFERROR(INDEX(INDIRECT(\"'\"&A4&\"'!$18:$50\"),MATCH($CU$1,INDIRECT(\"'\"&A4&\"'!$A$18:$A$50\"),0),MATCH(Parts!$B4,INDIRECT(\"'\"&A4&\"'!$10:$10\"),0)),0)","v":2},4.82,"Safety valve (2), 293 16 57-01/5, US$ 9.85",{"$f":"IFERROR(INDEX(INDIRECT(\"'\"&A4&\"'!$18:$50\"),MATCH($CX$1,INDIRECT(\"'\"&A4&\"'!$A$18:$A$50\"),0),MATCH(Parts!$B4,INDIRECT(\"'\"&A4&\"'!$10:$10\"),0)),0)","v":2},9.85,null,{"$f":"IFERROR(INDEX(INDIRECT(\"'\"&A4&\"'!$18:$50\"),MATCH($DA$1,INDIRECT(\"'\"&A4&\"'!$A$18:$A$50\"),0),MATCH(Parts!$B4,INDIRECT(\"'\"&A4&\"'!$10:$10\"),0)),0)","v":0},null,null,{"$f":"IFERROR(INDEX(INDIRECT(\"'\"&A4&\"'!$18:$50\"),MATCH($DD$1,INDIRECT(\"'\"&A4&\"'!$A$18:$A$50\"),0),MATCH(Parts!$B4,INDIRECT(\"'\"&A4&\"'!$10:$10\"),0)),0)","v":0},null,null,{"$f":"IFERROR(INDEX(INDIRECT(\"'\"&A4&\"'!$18:$50\"),MATCH($DG$1,INDIRECT(\"'\"&A4&\"'!$A$18:$A$50\"),0),MATCH(Parts!$B4,INDIRECT(\"'\"&A4&\"'!$10:$10\"),0)),0)","v":0},null,null,{"$f":"IFERROR(INDEX(INDIRECT(\"'\"&A4&\"'!$18:$50\"),MATCH($DJ$1,INDIRECT(\"'\"&A4&\"'!$A$18:$A$50\"),0),MATCH(Parts!$B4,INDIRECT(\"'\"&A4&\"'!$10:$10\"),0)),0)","v":0},null,null,{"$f":"IFERROR(INDEX(INDIRECT(\"'\"&A4&\"'!$18:$50\"),MATCH($DM$1,INDIRECT(\"'\"&A4&\"'!$A$18:$A$50\"),0),MATCH(Parts!$B4,INDIRECT(\"'\"&A4&\"'!$10:$10\"),0)),0)","v":0},null,null,{"$f":"IFERROR(INDEX(INDIRECT(\"'\"&A4&\"'!$18:$50\"),MATCH($DP$1,INDIRECT(\"'\"&A4&\"'!$A$18:$A$50\"),0),MATCH(Parts!$B4,INDIRECT(\"'\"&A4&\"'!$10:$10\"),0)),0)","v":0},null,null,{"$f":"IFERROR(INDEX(INDIRECT(\"'\"&A4&\"'!$18:$50\"),MATCH($DS$1,INDIRECT(\"'\"&A4&\"'!$A$18:$A$50\"),0),MATCH(Parts!$B4,INDIRECT(\"'\"&A4&\"'!$10:$10\"),0)),0)","v":0},null,null,{"$f":"IFERROR(INDEX(INDIRECT(\"'\"&A4&\"'!$18:$50\"),MATCH($DV$1,INDIRECT(\"'\"&A4&\"'!$A$18:$A$50\"),0),MATCH(Parts!$B4,INDIRECT(\"'\"&A4&\"'!$10:$10\"),0)),0)","v":0},null,null,{"$f":"IFERROR(INDEX(INDIRECT(\"'\"&A4&\"'!$18:$50\"),MATCH($DY$1,INDIRECT(\"'\"&A4&\"'!$A$18:$A$50\"),0),MATCH(Parts!$B4,INDIRECT(\"'\"&A4&\"'!$10:$10\"),0)),0)","v":0},null,null,{"$f":"IFERROR(INDEX(INDIRECT(\"'\"&A4&\"'!$18:$50\"),MATCH($EB$1,INDIRECT(\"'\"&A4&\"'!$A$18:$A$50\"),0),MATCH(Parts!$B4,INDIRECT(\"'\"&A4&\"'!$10:$10\"),0)),0)","v":0},null,null,{"$f":"IFERROR(INDEX(INDIRECT(\"'\"&A4&\"'!$18:$50\"),MATCH($EE$1,INDIRECT(\"'\"&A4&\"'!$A$18:$A$50\"),0),MATCH(Parts!$B4,INDIRECT(\"'\"&A4&\"'!$10:$10\"),0)),0)","v":0},null,null,{"$f":"IFERROR(INDEX(INDIRECT(\"'\"&A4&\"'!$18:$50\"),MATCH($EH$1,INDIRECT(\"'\"&A4&\"'!$A$18:$A$50\"),0),MATCH(Parts!$B4,INDIRECT(\"'\"&A4&\"'!$10:$10\"),0)),0)","v":0},null,null,{"$f":"IFERROR(INDEX(INDIRECT(\"'\"&A4&\"'!$18:$50\"),MATCH($EK$1,INDIRECT(\"'\"&A4&\"'!$A$18:$A$50\"),0),MATCH(Parts!$B4,INDIRECT(\"'\"&A4&\"'!$10:$10\"),0)),0)","v":0}]
[{"$f":"PQS!A7","v":"Gas"},"E3/86-M",{"$f":"PQS!E7","v":"V 110 GE "},{"$f":"PQS!P7","v":"$"},114.68,null,{"$f":"IFERROR(INDEX(INDIRECT(\"'\"&A5&\"'!$18:$50\"),MATCH(Parts!F$1,INDIRECT(\"'\"&A5&\"'!$A$18:$A$50\"),0),MATCH(Parts!$B5,INDIRECT(\"'\"&A5&\"'!$10:$10\"),0)),0)","v":0},null,"Thermostat (gas/electric) (2), 200 71 99-04/1, US$ 24.08",{"$f":"IFERROR(INDEX(INDIRECT(\"'\"&A5&\"'!$18:$50\"),MATCH($I$1,INDIRECT(\"'\"&A5&\"'!$A$18:$A$50\"),0),MATCH(Parts!$B5,INDIRECT(\"'\"&A5&\"'!$10:$10\"),0)),0)","v":2},24.08,null,{"$f":"IFERROR(INDEX(INDIRECT(\"'\"&A5&\"'!$18:$50\"),MATCH($L$1,INDIRECT(\"'\"&A5&\"'!$A$18:$A$50\"),0),MATCH(Parts!$B5,INDIRECT(\"'\"&A5&\"'!$10:$10\"),0)),0)","v":0},null,null,{"$f":"IFERROR(INDEX(INDIRECT(\"'\"&A5&\"'!$18:$50\"),MATCH($O$1,INDIRECT(\"'\"&A5&\"'!$A$18:$A$50\"),0),MATCH(Parts!$B5,INDIRECT(\"'\"&A5&\"'!$10:$10\"),0)),0)","v":0},null,null,{"$f":"IFERROR(INDEX(INDIRECT(\"'\"&A5&\"'!$18:$50\"),MATCH($R$1,INDIRECT(\"'\"&A5&\"'!$A$18:$A$50\"),0),MATCH(Parts!$B5,INDIRECT(\"'\"&A5&\"'!$10:$10\"),0)),0)","v":0},null,null,{"$f":"IFERROR(INDEX(INDIRECT(\"'\"&A5&\"'!$18:$50\"),MATCH($U$1,INDIRECT(\"'\"&A5&\"'!$A$18:$A$50\"),0),MATCH(Parts!$B5,INDIRECT(\"'\"&A5&\"'!$10:$10\"),0)),0)","v":0},null,null,{"$f":"IFERROR(INDEX(INDIRECT(\"'\"&A5&\"'!$18:$50\"),MATCH($X$1,INDIRECT(\"'\"&A5&\"'!$A$18:$A$50\"),0),MATCH(Parts!$B5,INDIRECT(\"'\"&A5&\"'!$10:$10\"),0)),0)","v":0},null,null,{"$f":"IFERROR(INDEX(INDIRECT(\"'\"&A5&\"'!$18:$50\"),MATCH($AA$1,INDIRECT(\"'\"&A5&\"'!$A$18:$A$50\"),0),MATCH(Parts!$B5,INDIRECT(\"'\"&A5&\"'!$10:$10\"),0)),0)","v":0},null,null,{"$f":"IFERROR(INDEX(INDIRECT(\"'\"&A5&\"'!$18:$50\"),MATCH($AD$1,INDIRECT(\"'\"&A5&\"'!$A$18:$A$50\"),0),MATCH(Parts!$B5,INDIRECT(\"'\"&A5&\"'!$10:$10\"),0)),0)","v":0},null,null,{"$f":"IFERROR(INDEX(INDIRECT(\"'\"&A5&\"'!$18:$50\"),MATCH($AG$1,INDIRECT(\"'\"&A5&\"'!$A$18:$A$50\"),0),MATCH(Parts!$B5,INDIRECT(\"'\"&A5&\"'!$10:$10\"),0)),0)","v":0},null,null,{"$f":"IFERROR(INDEX(INDIRECT(\"'\"&A5&\"'!$18:$50\"),MATCH($AJ$1,INDIRECT(\"'\"&A5&\"'!$A$18:$A$50\"),0),MATCH(Parts!$B5,INDIRECT(\"'\"&A5&\"'!$10:$10\"),0)),0)","v":0},null,null,{"$f":"IFERROR(INDEX(INDIRECT(\"'\"&A5&\"'!$18:$50\"),MATCH($AM$1,INDIRECT(\"'\"&A5&\"'!$A$18:$A$50\"),0),MATCH(Parts!$B5,INDIRECT(\"'\"&A5&\"'!$10:$10\"),0)),0)","v":0},null,null,{"$f":"IFERROR(INDEX(INDIRECT(\"'\"&A5&\"'!$18:$50\"),MATCH($AP$1,INDIRECT(\"'\"&A5&\"'!$A$18:$A$50\"),0),MATCH(Parts!$B5,INDIRECT(\"'\"&A5&\"'!$10:$10\"),0)),0)","v":0},null,null,{"$f":"IFERROR(INDEX(INDIRECT(\"'\"&A5&\"'!$18:$50\"),MATCH($AS$1,INDIRECT(\"'\"&A5&\"'!$A$18:$A$50\"),0),MATCH(Parts!$B5,INDIRECT(\"'\"&A5&\"'!$10:$10\"),0)),0)","v":0},null,null,{"$f":"IFERROR(INDEX(INDIRECT(\"'\"&A5&\"'!$18:$50\"),MATCH($AV$1,INDIRECT(\"'\"&A5&\"'!$A$18:$A$50\"),0),MATCH(Parts!$B5,INDIRECT(\"'\"&A5&\"'!$10:$10\"),0)),0)","v":0},null,null,{"$f":"IFERROR(INDEX(INDIRECT(\"'\"&A5&\"'!$18:$50\"),MATCH($AY$1,INDIRECT(\"'\"&A5&\"'!$A$18:$A$50\"),0),MATCH(Parts!$B5,INDIRECT(\"'\"&A5&\"'!$10:$10\"),0)),0)","v":0},null,null,{"$f":"IFERROR(INDEX(INDIRECT(\"'\"&A5&\"'!$18:$50\"),MATCH($BB$1,INDIRECT(\"'\"&A5&\"'!$A$18:$A$50\"),0),MATCH(Parts!$B5,INDIRECT(\"'\"&A5&\"'!$10:$10\"),0)),0)","v":0},null,null,{"$f":"IFERROR(INDEX(INDIRECT(\"'\"&A5&\"'!$18:$50\"),MATCH($BE$1,INDIRECT(\"'\"&A5&\"'!$A$18:$A$50\"),0),MATCH(Parts!$B5,INDIRECT(\"'\"&A5&\"'!$10:$10\"),0)),0)","v":0},null,null,{"$f":"IFERROR(INDEX(INDIRECT(\"'\"&A5&\"'!$18:$50\"),MATCH($BH$1,INDIRECT(\"'\"&A5&\"'!$A$18:$A$50\"),0),MATCH(Parts!$B5,INDIRECT(\"'\"&A5&\"'!$10:$10\"),0)),0)","v":0},null,null,{"$f":"IFERROR(INDEX(INDIRECT(\"'\"&A5&\"'!$18:$50\"),MATCH($BK$1,INDIRECT(\"'\"&A5&\"'!$A$18:$A$50\"),0),MATCH(Parts!$B5,INDIRECT(\"'\"&A5&\"'!$10:$10\"),0)),0)","v":0},null,null,{"$f":"IFERROR(INDEX(INDIRECT(\"'\"&A5&\"'!$18:$50\"),MATCH($BN$1,INDIRECT(\"'\"&A5&\"'!$A$18:$A$50\"),0),MATCH(Parts!$B5,INDIRECT(\"'\"&A5&\"'!$10:$10\"),0)),0)","v":0},null,null,{"$f":"IFERROR(INDEX(INDIRECT(\"'\"&A5&\"'!$18:$50\"),MATCH($BQ$1,INDIRECT(\"'\"&A5&\"'!$A$18:$A$50\"),0),MATCH(Parts!$B5,INDIRECT(\"'\"&A5&\"'!$10:$10\"),0)),0)","v":0},null,null,{"$f":"IFERROR(INDEX(INDIRECT(\"'\"&A5&\"'!$18:$50\"),MATCH($BT$1,INDIRECT(\"'\"&A5&\"'!$A$18:$A$50\"),0),MATCH(Parts!$B5,INDIRECT(\"'\"&A5&\"'!$10:$10\"),0)),0)","v":0},null,null,{"$f":"IFERROR(INDEX(INDIRECT(\"'\"&A5&\"'!$18:$50\"),MATCH($BW$1,INDIRECT(\"'\"&A5&\"'!$A$18:$A$50\"),0),MATCH(Parts!$B5,INDIRECT(\"'\"&A5&\"'!$10:$10\"),0)),0)","v":0},null,null,{"$f":"IFERROR(INDEX(INDIRECT(\"'\"&A5&\"'!$18:$50\"),MATCH($BZ$1,INDIRECT(\"'\"&A5&\"'!$A$18:$A$50\"),0),MATCH(Parts!$B5,INDIRECT(\"'\"&A5&\"'!$10:$10\"),0)),0)","v":0},null,null,{"$f":"IFERROR(INDEX(INDIRECT(\"'\"&A5&\"'!$18:$50\"),MATCH($CC$1,INDIRECT(\"'\"&A5&\"'!$A$18:$A$50\"),0),MATCH(Parts!$B5,INDIRECT(\"'\"&A5&\"'!$10:$10\"),0)),0)","v":0},null,null,{"$f":"IFERROR(INDEX(INDIRECT(\"'\"&A5&\"'!$18:$50\"),MATCH($CF$1,INDIRECT(\"'\"&A5&\"'!$A$18:$A$50\"),0),MATCH(Parts!$B5,INDIRECT(\"'\"&A5&\"'!$10:$10\"),0)),0)","v":0},null,null,{"$f":"IFERROR(INDEX(INDIRECT(\"'\"&A5&\"'!$18:$50\"),MATCH($CI$1,INDIRECT(\"'\"&A5&\"'!$A$18:$A$50\"),0),MATCH(Parts!$B5,INDIRECT(\"'\"&A5&\"'!$10:$10\"),0)),0)","v":0},null,null,{"$f":"IFERROR(INDEX(INDIRECT(\"'\"&A5&\"'!$18:$50\"),MATCH($CL$1,INDIRECT(\"'\"&A5&\"'!$A$18:$A$50\"),0),MATCH(Parts!$B5,INDIRECT(\"'\"&A5&\"'!$10:$10\"),0)),0)","v":0},null,"Electric heater, 230VAC (2), 173 738-26/1, US$ 14.11",{"$f":"IFERROR(INDEX(INDIRECT(\"'\"&A5&\"'!$18:$50\"),MATCH($CO$1,INDIRECT(\"'\"&A5&\"'!$A$18:$A$50\"),0),MATCH(Parts!$B5,INDIRECT(\"'\"&A5&\"'!$10:$10\"),0)),0)","v":2},14.11,"Thermocouple (2), 293 14 96-04/2, US$ 5.38",{"$f":"IFERROR(INDEX(INDIRECT(\"'\"&A5&\"'!$18:$50\"),MATCH($CR$1,INDIRECT(\"'\"&A5&\"'!$A$18:$A$50\"),0),MATCH(Parts!$B5,INDIRECT(\"'\"&A5&\"'!$10:$10\"),0)),0)","v":2},5.38,"Burner jet No. 14 (2), 172819-02/1, US$ 3.92",{"$f":"IFERROR(INDEX(INDIRECT(\"'\"&A5&\"'!$18:$50\"),MATCH($CU$1,INDIRECT(\"'\"&A5&\"'!$A$18:$A$50\"),0),MATCH(Parts!$B5,INDIRECT(\"'\"&A5&\"'!$10:$10\"),0)),0)","v":2},3.92,"Safety valve (2), 293 16 57-01/5, US$ 9.85",{"$f":"IFERROR(INDEX(INDIRECT(\"'\"&A5&\"'!$18:$50\"),MATCH($CX$1,INDIRECT(\"'\"&A5&\"'!$A$18:$A$50\"),0),MATCH(Parts!$B5,INDIRECT(\"'\"&A5&\"'!$10:$10\"),0)),0)","v":2},9.85,null,{"$f":"IFERROR(INDEX(INDIRECT(\"'\"&A5&\"'!$18:$50\"),MATCH($DA$1,INDIRECT(\"'\"&A5&\"'!$A$18:$A$50\"),0),MATCH(Parts!$B5,INDIRECT(\"'\"&A5&\"'!$10:$10\"),0)),0)","v":0},null,null,{"$f":"IFERROR(INDEX(INDIRECT(\"'\"&A5&\"'!$18:$50\"),MATCH($DD$1,INDIRECT(\"'\"&A5&\"'!$A$18:$A$50\"),0),MATCH(Parts!$B5,INDIRECT(\"'\"&A5&\"'!$10:$10\"),0)),0)","v":0},null,null,{"$f":"IFERROR(INDEX(INDIRECT(\"'\"&A5&\"'!$18:$50\"),MATCH($DG$1,INDIRECT(\"'\"&A5&\"'!$A$18:$A$50\"),0),MATCH(Parts!$B5,INDIRECT(\"'\"&A5&\"'!$10:$10\"),0)),0)","v":0},null,null,{"$f":"IFERROR(INDEX(INDIRECT(\"'\"&A5&\"'!$18:$50\"),MATCH($DJ$1,INDIRECT(\"'\"&A5&\"'!$A$18:$A$50\"),0),MATCH(Parts!$B5,INDIRECT(\"'\"&A5&\"'!$10:$10\"),0)),0)","v":0},null,null,{"$f":"IFERROR(INDEX(INDIRECT(\"'\"&A5&\"'!$18:$50\"),MATCH($DM$1,INDIRECT(\"'\"&A5&\"'!$A$18:$A$50\"),0),MATCH(Parts!$B5,INDIRECT(\"'\"&A5&\"'!$10:$10\"),0)),0)","v":0},null,null,{"$f":"IFERROR(INDEX(INDIRECT(\"'\"&A5&\"'!$18:$50\"),MATCH($DP$1,INDIRECT(\"'\"&A5&\"'!$A$18:$A$50\"),0),MATCH(Parts!$B5,INDIRECT(\"'\"&A5&\"'!$10:$10\"),0)),0)","v":0},null,null,{"$f":"IFERROR(INDEX(INDIRECT(\"'\"&A5&\"'!$18:$50\"),MATCH($DS$1,INDIRECT(\"'\"&A5&\"'!$A$18:$A$50\"),0),MATCH(Parts!$B5,INDIRECT(\"'\"&A5&\"'!$10:$10\"),0)),0)","v":0},null,null,{"$f":"IFERROR(INDEX(INDIRECT(\"'\"&A5&\"'!$18:$50\"),MATCH($DV$1,INDIRECT(\"'\"&A5&\"'!$A$18:$A$50\"),0),MATCH(Parts!$B5,INDIRECT(\"'\"&A5&\"'!$10:$10\"),0)),0)","v":0},null,null,{"$f":"IFERROR(INDEX(INDIRECT(\"'\"&A5&\"'!$18:$50\"),MATCH($DY$1,INDIRECT(\"'\"&A5&\"'!$A$18:$A$50\"),0),MATCH(Parts!$B5,INDIRECT(\"'\"&A5&\"'!$10:$10\"),0)),0)","v":0},null,null,{"$f":"IFERROR(INDEX(INDIRECT(\"'\"&A5&\"'!$18:$50\"),MATCH($EB$1,INDIRECT(\"'\"&A5&\"'!$A$18:$A$50\"),0),MATCH(Parts!$B5,INDIRECT(\"'\"&A5&\"'!$10:$10\"),0)),0)","v":0},null,null,{"$f":"IFERROR(INDEX(INDIRECT(\"'\"&A5&\"'!$18:$50\"),MATCH($EE$1,INDIRECT(\"'\"&A5&\"'!$A$18:$A$50\"),0),MATCH(Parts!$B5,INDIRECT(\"'\"&A5&\"'!$10:$10\"),0)),0)","v":0},null,null,{"$f":"IFERROR(INDEX(INDIRECT(\"'\"&A5&\"'!$18:$50\"),MATCH($EH$1,INDIRECT(\"'\"&A5&\"'!$A$18:$A$50\"),0),MATCH(Parts!$B5,INDIRECT(\"'\"&A5&\"'!$10:$10\"),0)),0)","v":0},null,null,{"$f":"IFERROR(INDEX(INDIRECT(\"'\"&A5&\"'!$18:$50\"),MATCH($EK$1,INDIRECT(\"'\"&A5&\"'!$A$18:$A$50\"),0),MATCH(Parts!$B5,INDIRECT(\"'\"&A5&\"'!$10:$10\"),0)),0)","v":0}]
[{"$f":"PQS!A8","v":"Freezer"},"E003/002",{"$f":"PQS!E8","v":"HBD 116*"},{"$f":"PQS!P8","v":"$"},120.07333333333334,"Compressor Danfoss, 0070701332, 60 USD",{"$f":"IFERROR(INDEX(INDIRECT(\"'\"&A6&\"'!$18:$50\"),MATCH(Parts!F$1,INDIRECT(\"'\"&A6&\"'!$A$18:$A$50\"),0),MATCH(Parts!$B6,INDIRECT(\"'\"&A6&\"'!$10:$10\"),0)),0)","v":1},60,"Thermostat, 0074090880, 6.8 USD",{"$f":"IFERROR(INDEX(INDIRECT(\"'\"&A6&\"'!$18:$50\"),MATCH($I$1,INDIRECT(\"'\"&A6&\"'!$A$18:$A$50\"),0),MATCH(Parts!$B6,INDIRECT(\"'\"&A6&\"'!$10:$10\"),0)),0)","v":1},6.8,null,{"$f":"IFERROR(INDEX(INDIRECT(\"'\"&A6&\"'!$18:$50\"),MATCH($L$1,INDIRECT(\"'\"&A6&\"'!$A$18:$A$50\"),0),MATCH(Parts!$B6,INDIRECT(\"'\"&A6&\"'!$10:$10\"),0)),0)","v":0},null,null,{"$f":"IFERROR(INDEX(INDIRECT(\"'\"&A6&\"'!$18:$50\"),MATCH($O$1,INDIRECT(\"'\"&A6&\"'!$A$18:$A$50\"),0),MATCH(Parts!$B6,INDIRECT(\"'\"&A6&\"'!$10:$10\"),0)),0)","v":0},null,"Control panel, 0070202720",{"$f":"IFERROR(INDEX(INDIRECT(\"'\"&A6&\"'!$18:$50\"),MATCH($R$1,INDIRECT(\"'\"&A6&\"'!$A$18:$A$50\"),0),MATCH(Parts!$B6,INDIRECT(\"'\"&A6&\"'!$10:$10\"),0)),0)","v":1},1.55,null,{"$f":"IFERROR(INDEX(INDIRECT(\"'\"&A6&\"'!$18:$50\"),MATCH($U$1,INDIRECT(\"'\"&A6&\"'!$A$18:$A$50\"),0),MATCH(Parts!$B6,INDIRECT(\"'\"&A6&\"'!$10:$10\"),0)),0)","v":0},null,"Condensor，0070701369；fan0075030020",{"$f":"IFERROR(INDEX(INDIRECT(\"'\"&A6&\"'!$18:$50\"),MATCH($X$1,INDIRECT(\"'\"&A6&\"'!$A$18:$A$50\"),0),MATCH(Parts!$B6,INDIRECT(\"'\"&A6&\"'!$10:$10\"),0)),0)","v":1},38.61,null,{"$f":"IFERROR(INDEX(INDIRECT(\"'\"&A6&\"'!$18:$50\"),MATCH($AA$1,INDIRECT(\"'\"&A6&\"'!$A$18:$A$50\"),0),MATCH(Parts!$B6,INDIRECT(\"'\"&A6&\"'!$10:$10\"),0)),0)","v":0},null,null,{"$f":"IFERROR(INDEX(INDIRECT(\"'\"&A6&\"'!$18:$50\"),MATCH($AD$1,INDIRECT(\"'\"&A6&\"'!$A$18:$A$50\"),0),MATCH(Parts!$B6,INDIRECT(\"'\"&A6&\"'!$10:$10\"),0)),0)","v":0},null,null,{"$f":"IFERROR(INDEX(INDIRECT(\"'\"&A6&\"'!$18:$50\"),MATCH($AG$1,INDIRECT(\"'\"&A6&\"'!$A$18:$A$50\"),0),MATCH(Parts!$B6,INDIRECT(\"'\"&A6&\"'!$10:$10\"),0)),0)","v":0},null,null,{"$f":"IFERROR(INDEX(INDIRECT(\"'\"&A6&\"'!$18:$50\"),MATCH($AJ$1,INDIRECT(\"'\"&A6&\"'!$A$18:$A$50\"),0),MATCH(Parts!$B6,INDIRECT(\"'\"&A6&\"'!$10:$10\"),0)),0)","v":0},null,"Switch - 0075050003",{"$f":"IFERROR(INDEX(INDIRECT(\"'\"&A6&\"'!$18:$50\"),MATCH($AM$1,INDIRECT(\"'\"&A6&\"'!$A$18:$A$50\"),0),MATCH(Parts!$B6,INDIRECT(\"'\"&A6&\"'!$10:$10\"),0)),0)","v":0},null,"BE0GL0Z1T",{"$f":"IFERROR(INDEX(INDIRECT(\"'\"&A6&\"'!$18:$50\"),MATCH($AP$1,INDIRECT(\"'\"&A6&\"'!$A$18:$A$50\"),0),MATCH(Parts!$B6,INDIRECT(\"'\"&A6&\"'!$10:$10\"),0)),0)","v":0},null,"Baskets (2), 0071090001, 7.2 USD",{"$f":"IFERROR(INDEX(INDIRECT(\"'\"&A6&\"'!$18:$50\"),MATCH($AS$1,INDIRECT(\"'\"&A6&\"'!$A$18:$A$50\"),0),MATCH(Parts!$B6,INDIRECT(\"'\"&A6&\"'!$10:$10\"),0)),0)","v":1},7.2,"Starter, 0070701332D, 7.4 USD",{"$f":"IFERROR(INDEX(INDIRECT(\"'\"&A6&\"'!$18:$50\"),MATCH($AV$1,INDIRECT(\"'\"&A6&\"'!$A$18:$A$50\"),0),MATCH(Parts!$B6,INDIRECT(\"'\"&A6&\"'!$10:$10\"),0)),0)","v":0},7.4,"Starter relay, 0070701331F, 7.4 USD",{"$f":"IFERROR(INDEX(INDIRECT(\"'\"&A6&\"'!$18:$50\"),MATCH($AY$1,INDIRECT(\"'\"&A6&\"'!$A$18:$A$50\"),0),MATCH(Parts!$B6,INDIRECT(\"'\"&A6&\"'!$10:$10\"),0)),0)","v":0},7.4,null,{"$f":"IFERROR(INDEX(INDIRECT(\"'\"&A6&\"'!$18:$50\"),MATCH($BB$1,INDIRECT(\"'\"&A6&\"'!$A$18:$A$50\"),0),MATCH(Parts!$B6,INDIRECT(\"'\"&A6&\"'!$10:$10\"),0)),0)","v":0},null,null,{"$f":"IFERROR(INDEX(INDIRECT(\"'\"&A6&\"'!$18:$50\"),MATCH($BE$1,INDIRECT(\"'\"&A6&\"'!$A$18:$A$50\"),0),MATCH(Parts!$B6,INDIRECT(\"'\"&A6&\"'!$10:$10\"),0)),0)","v":0},null,"Dry filter, 0074180002A: 2.00USD",{"$f":"IFERROR(INDEX(INDIRECT(\"'\"&A6&\"'!$18:$50\"),MATCH($BH$1,INDIRECT(\"'\"&A6&\"'!$A$18:$A$50\"),0),MATCH(Parts!$B6,INDIRECT(\"'\"&A6&\"'!$10:$10\"),0)),0)","v":1},2,null,{"$f":"IFERROR(INDEX(INDIRECT(\"'\"&A6&\"'!$18:$50\"),MATCH($BK$1,INDIRECT(\"'\"&A6&\"'!$A$18:$A$50\"),0),MATCH(Parts!$B6,INDIRECT(\"'\"&A6&\"'!$10:$10\"),0)),0)","v":0},null,null,{"$f":"IFERROR(INDEX(INDIRECT(\"'\"&A6&\"'!$18:$50\"),MATCH($BN$1,INDIRECT(\"'\"&A6&\"'!$A$18:$A$50\"),0),MATCH(Parts!$B6,INDIRECT(\"'\"&A6&\"'!$10:$10\"),0)),0)","v":0},null,"Hinge，0078090012A",{"$f":"IFERROR(INDEX(INDIRECT(\"'\"&A6&\"'!$18:$50\"),MATCH($BQ$1,INDIRECT(\"'\"&A6&\"'!$A$18:$A$50\"),0),MATCH(Parts!$B6,INDIRECT(\"'\"&A6&\"'!$10:$10\"),0)),0)","v":1},null,"Hinge covers Up, 0072040003\nHinge covers Down, 0072040011 ",{"$f":"IFERROR(INDEX(INDIRECT(\"'\"&A6&\"'!$18:$50\"),MATCH($BT$1,INDIRECT(\"'\"&A6&\"'!$A$18:$A$50\"),0),MATCH(Parts!$B6,INDIRECT(\"'\"&A6&\"'!$10:$10\"),0)),0)","v":1},0.21333333333333335,null,{"$f":"IFERROR(INDEX(INDIRECT(\"'\"&A6&\"'!$18:$50\"),MATCH($BW$1,INDIRECT(\"'\"&A6&\"'!$A$18:$A$50\"),0),MATCH(Parts!$B6,INDIRECT(\"'\"&A6&\"'!$10:$10\"),0)),0)","v":0},null,"Thermometer：0271400001",{"$f":"IFERROR(INDEX(INDIRECT(\"'\"&A6&\"'!$18:$50\"),MATCH($BZ$1,INDIRECT(\"'\"&A6&\"'!$A$18:$A$50\"),0),MATCH(Parts!$B6,INDIRECT(\"'\"&A6&\"'!$10:$10\"),0)),0)","v":1},null,null,{"$f":"IFERROR(INDEX(INDIRECT(\"'\"&A6&\"'!$18:$50\"),MATCH($CC$1,INDIRECT(\"'\"&A6&\"'!$A$18:$A$50\"),0),MATCH(Parts!$B6,INDIRECT(\"'\"&A6&\"'!$10:$10\"),0)),0)","v":0},null,"Handle, 0070814623: 3.70USD",{"$f":"IFERROR(INDEX(INDIRECT(\"'\"&A6&\"'!$18:$50\"),MATCH($CF$1,INDIRECT(\"'\"&A6&\"'!$A$18:$A$50\"),0),MATCH(Parts!$B6,INDIRECT(\"'\"&A6&\"'!$10:$10\"),0)),0)","v":1},3.7,"Electrical wiring 0070400252B",{"$f":"IFERROR(INDEX(INDIRECT(\"'\"&A6&\"'!$18:$50\"),MATCH($CI$1,INDIRECT(\"'\"&A6&\"'!$A$18:$A$50\"),0),MATCH(Parts!$B6,INDIRECT(\"'\"&A6&\"'!$10:$10\"),0)),0)","v":0},6.5,null,{"$f":"IFERROR(INDEX(INDIRECT(\"'\"&A6&\"'!$18:$50\"),MATCH($CL$1,INDIRECT(\"'\"&A6&\"'!$A$18:$A$50\"),0),MATCH(Parts!$B6,INDIRECT(\"'\"&A6&\"'!$10:$10\"),0)),0)","v":0},null,null,{"$f":"IFERROR(INDEX(INDIRECT(\"'\"&A6&\"'!$18:$50\"),MATCH($CO$1,INDIRECT(\"'\"&A6&\"'!$A$18:$A$50\"),0),MATCH(Parts!$B6,INDIRECT(\"'\"&A6&\"'!$10:$10\"),0)),0)","v":0},null,null,{"$f":"IFERROR(INDEX(INDIRECT(\"'\"&A6&\"'!$18:$50\"),MATCH($CR$1,INDIRECT(\"'\"&A6&\"'!$A$18:$A$50\"),0),MATCH(Parts!$B6,INDIRECT(\"'\"&A6&\"'!$10:$10\"),0)),0)","v":0},null,null,{"$f":"IFERROR(INDEX(INDIRECT(\"'\"&A6&\"'!$18:$50\"),MATCH($CU$1,INDIRECT(\"'\"&A6&\"'!$A$18:$A$50\"),0),MATCH(Parts!$B6,INDIRECT(\"'\"&A6&\"'!$10:$10\"),0)),0)","v":0},null,null,{"$f":"IFERROR(INDEX(INDIRECT(\"'\"&A6&\"'!$18:$50\"),MATCH($CX$1,INDIRECT(\"'\"&A6&\"'!$A$18:$A$50\"),0),MATCH(Parts!$B6,INDIRECT(\"'\"&A6&\"'!$10:$10\"),0)),0)","v":0},null,null,{"$f":"IFERROR(INDEX(INDIRECT(\"'\"&A6&\"'!$18:$50\"),MATCH($DA$1,INDIRECT(\"'\"&A6&\"'!$A$18:$A$50\"),0),MATCH(Parts!$B6,INDIRECT(\"'\"&A6&\"'!$10:$10\"),0)),0)","v":0},null,null,{"$f":"IFERROR(INDEX(INDIRECT(\"'\"&A6&\"'!$18:$50\"),MATCH($DD$1,INDIRECT(\"'\"&A6&\"'!$A$18:$A$50\"),0),MATCH(Parts!$B6,INDIRECT(\"'\"&A6&\"'!$10:$10\"),0)),0)","v":0},null,null,{"$f":"IFERROR(INDEX(INDIRECT(\"'\"&A6&\"'!$18:$50\"),MATCH($DG$1,INDIRECT(\"'\"&A6&\"'!$A$18:$A$50\"),0),MATCH(Parts!$B6,INDIRECT(\"'\"&A6&\"'!$10:$10\"),0)),0)","v":0},null,null,{"$f":"IFERROR(INDEX(INDIRECT(\"'\"&A6&\"'!$18:$50\"),MATCH($DJ$1,INDIRECT(\"'\"&A6&\"'!$A$18:$A$50\"),0),MATCH(Parts!$B6,INDIRECT(\"'\"&A6&\"'!$10:$10\"),0)),0)","v":0},null,null,{"$f":"IFERROR(INDEX(INDIRECT(\"'\"&A6&\"'!$18:$50\"),MATCH($DM$1,INDIRECT(\"'\"&A6&\"'!$A$18:$A$50\"),0),MATCH(Parts!$B6,INDIRECT(\"'\"&A6&\"'!$10:$10\"),0)),0)","v":0},null,null,{"$f":"IFERROR(INDEX(INDIRECT(\"'\"&A6&\"'!$18:$50\"),MATCH($DP$1,INDIRECT(\"'\"&A6&\"'!$A$18:$A$50\"),0),MATCH(Parts!$B6,INDIRECT(\"'\"&A6&\"'!$10:$10\"),0)),0)","v":0},null,null,{"$f":"IFERROR(INDEX(INDIRECT(\"'\"&A6&\"'!$18:$50\"),MATCH($DS$1,INDIRECT(\"'\"&A6&\"'!$A$18:$A$50\"),0),MATCH(Parts!$B6,INDIRECT(\"'\"&A6&\"'!$10:$10\"),0)),0)","v":0},null,null,{"$f":"IFERROR(INDEX(INDIRECT(\"'\"&A6&\"'!$18:$50\"),MATCH($DV$1,INDIRECT(\"'\"&A6&\"'!$A$18:$A$50\"),0),MATCH(Parts!$B6,INDIRECT(\"'\"&A6&\"'!$10:$10\"),0)),0)","v":0},null,null,{"$f":"IFERROR(INDEX(INDIRECT(\"'\"&A6&\"'!$18:$50\"),MATCH($DY$1,INDIRECT(\"'\"&A6&\"'!$A$18:$A$50\"),0),MATCH(Parts!$B6,INDIRECT(\"'\"&A6&\"'!$10:$10\"),0)),0)","v":0},null,null,{"$f":"IFERROR(INDEX(INDIRECT(\"'\"&A6&\"'!$18:$50\"),MATCH($EB$1,INDIRECT(\"'\"&A6&\"'!$A$18:$A$50\"),0),MATCH(Parts!$B6,INDIRECT(\"'\"&A6&\"'!$10:$10\"),0)),0)","v":0},null,null,{"$f":"IFERROR(INDEX(INDIRECT(\"'\"&A6&\"'!$18:$50\"),MATCH($EE$1,INDIRECT(\"'\"&A6&\"'!$A$18:$A$50\"),0),MATCH(Parts!$B6,INDIRECT(\"'\"&A6&\"'!$10:$10\"),0)),0)","v":0},null,null,{"$f":"IFERROR(INDEX(INDIRECT(\"'\"&A6&\"'!$18:$50\"),MATCH($EH$1,INDIRECT(\"'\"&A6&\"'!$A$18:$A$50\"),0),MATCH(Parts!$B6,INDIRECT(\"'\"&A6&\"'!$10:$10\"),0)),0)","v":0},null,null,{"$f":"IFERROR(INDEX(INDIRECT(\"'\"&A6&\"'!$18:$50\"),MATCH($EK$1,INDIRECT(\"'\"&A6&\"'!$A$18:$A$50\"),0),MATCH(Parts!$B6,INDIRECT(\"'\"&A6&\"'!$10:$10\"),0)),0)","v":0}]
[{"$f":"PQS!A9","v":"Freezer"},"E003/003",{"$f":"PQS!E9","v":"HBD 286*"},{"$f":"PQS!P9","v":"$"},130.27333333333334,"Compressor danfoss, 0070701332, 70.2 USD",{"$f":"IFERROR(INDEX(INDIRECT(\"'\"&A7&\"'!$18:$50\"),MATCH(Parts!F$1,INDIRECT(\"'\"&A7&\"'!$A$18:$A$50\"),0),MATCH(Parts!$B7,INDIRECT(\"'\"&A7&\"'!$10:$10\"),0)),0)","v":1},70.2,"Thermostat, 0074090880, 6.8 USD",{"$f":"IFERROR(INDEX(INDIRECT(\"'\"&A7&\"'!$18:$50\"),MATCH($I$1,INDIRECT(\"'\"&A7&\"'!$A$18:$A$50\"),0),MATCH(Parts!$B7,INDIRECT(\"'\"&A7&\"'!$10:$10\"),0)),0)","v":1},6.8,null,{"$f":"IFERROR(INDEX(INDIRECT(\"'\"&A7&\"'!$18:$50\"),MATCH($L$1,INDIRECT(\"'\"&A7&\"'!$A$18:$A$50\"),0),MATCH(Parts!$B7,INDIRECT(\"'\"&A7&\"'!$10:$10\"),0)),0)","v":0},null,null,{"$f":"IFERROR(INDEX(INDIRECT(\"'\"&A7&\"'!$18:$50\"),MATCH($O$1,INDIRECT(\"'\"&A7&\"'!$A$18:$A$50\"),0),MATCH(Parts!$B7,INDIRECT(\"'\"&A7&\"'!$10:$10\"),0)),0)","v":0},null,"Control panel, 0070202720",{"$f":"IFERROR(INDEX(INDIRECT(\"'\"&A7&\"'!$18:$50\"),MATCH($R$1,INDIRECT(\"'\"&A7&\"'!$A$18:$A$50\"),0),MATCH(Parts!$B7,INDIRECT(\"'\"&A7&\"'!$10:$10\"),0)),0)","v":1},1.55,null,{"$f":"IFERROR(INDEX(INDIRECT(\"'\"&A7&\"'!$18:$50\"),MATCH($U$1,INDIRECT(\"'\"&A7&\"'!$A$18:$A$50\"),0),MATCH(Parts!$B7,INDIRECT(\"'\"&A7&\"'!$10:$10\"),0)),0)","v":0},null,"Condensor，0070701369；fan0075030020",{"$f":"IFERROR(INDEX(INDIRECT(\"'\"&A7&\"'!$18:$50\"),MATCH($X$1,INDIRECT(\"'\"&A7&\"'!$A$18:$A$50\"),0),MATCH(Parts!$B7,INDIRECT(\"'\"&A7&\"'!$10:$10\"),0)),0)","v":1},38.61,null,{"$f":"IFERROR(INDEX(INDIRECT(\"'\"&A7&\"'!$18:$50\"),MATCH($AA$1,INDIRECT(\"'\"&A7&\"'!$A$18:$A$50\"),0),MATCH(Parts!$B7,INDIRECT(\"'\"&A7&\"'!$10:$10\"),0)),0)","v":0},null,null,{"$f":"IFERROR(INDEX(INDIRECT(\"'\"&A7&\"'!$18:$50\"),MATCH($AD$1,INDIRECT(\"'\"&A7&\"'!$A$18:$A$50\"),0),MATCH(Parts!$B7,INDIRECT(\"'\"&A7&\"'!$10:$10\"),0)),0)","v":0},null,null,{"$f":"IFERROR(INDEX(INDIRECT(\"'\"&A7&\"'!$18:$50\"),MATCH($AG$1,INDIRECT(\"'\"&A7&\"'!$A$18:$A$50\"),0),MATCH(Parts!$B7,INDIRECT(\"'\"&A7&\"'!$10:$10\"),0)),0)","v":0},null,null,{"$f":"IFERROR(INDEX(INDIRECT(\"'\"&A7&\"'!$18:$50\"),MATCH($AJ$1,INDIRECT(\"'\"&A7&\"'!$A$18:$A$50\"),0),MATCH(Parts!$B7,INDIRECT(\"'\"&A7&\"'!$10:$10\"),0)),0)","v":0},null,"Switch - 0075050003",{"$f":"IFERROR(INDEX(INDIRECT(\"'\"&A7&\"'!$18:$50\"),MATCH($AM$1,INDIRECT(\"'\"&A7&\"'!$A$18:$A$50\"),0),MATCH(Parts!$B7,INDIRECT(\"'\"&A7&\"'!$10:$10\"),0)),0)","v":0},null,"BE0GL0Z1T",{"$f":"IFERROR(INDEX(INDIRECT(\"'\"&A7&\"'!$18:$50\"),MATCH($AP$1,INDIRECT(\"'\"&A7&\"'!$A$18:$A$50\"),0),MATCH(Parts!$B7,INDIRECT(\"'\"&A7&\"'!$10:$10\"),0)),0)","v":0},null,"Baskets (3), 0071090001, 7.2 USD",{"$f":"IFERROR(INDEX(INDIRECT(\"'\"&A7&\"'!$18:$50\"),MATCH($AS$1,INDIRECT(\"'\"&A7&\"'!$A$18:$A$50\"),0),MATCH(Parts!$B7,INDIRECT(\"'\"&A7&\"'!$10:$10\"),0)),0)","v":1},7.2,"Starter, 0070701332D, 7.4 USD",{"$f":"IFERROR(INDEX(INDIRECT(\"'\"&A7&\"'!$18:$50\"),MATCH($AV$1,INDIRECT(\"'\"&A7&\"'!$A$18:$A$50\"),0),MATCH(Parts!$B7,INDIRECT(\"'\"&A7&\"'!$10:$10\"),0)),0)","v":0},7.4,"Starter relay, 0070701331G, 7.4 USD",{"$f":"IFERROR(INDEX(INDIRECT(\"'\"&A7&\"'!$18:$50\"),MATCH($AY$1,INDIRECT(\"'\"&A7&\"'!$A$18:$A$50\"),0),MATCH(Parts!$B7,INDIRECT(\"'\"&A7&\"'!$10:$10\"),0)),0)","v":0},7.4,null,{"$f":"IFERROR(INDEX(INDIRECT(\"'\"&A7&\"'!$18:$50\"),MATCH($BB$1,INDIRECT(\"'\"&A7&\"'!$A$18:$A$50\"),0),MATCH(Parts!$B7,INDIRECT(\"'\"&A7&\"'!$10:$10\"),0)),0)","v":0},null,null,{"$f":"IFERROR(INDEX(INDIRECT(\"'\"&A7&\"'!$18:$50\"),MATCH($BE$1,INDIRECT(\"'\"&A7&\"'!$A$18:$A$50\"),0),MATCH(Parts!$B7,INDIRECT(\"'\"&A7&\"'!$10:$10\"),0)),0)","v":0},null,"Dry filter, 0074180002A: 2.00USD",{"$f":"IFERROR(INDEX(INDIRECT(\"'\"&A7&\"'!$18:$50\"),MATCH($BH$1,INDIRECT(\"'\"&A7&\"'!$A$18:$A$50\"),0),MATCH(Parts!$B7,INDIRECT(\"'\"&A7&\"'!$10:$10\"),0)),0)","v":1},2,null,{"$f":"IFERROR(INDEX(INDIRECT(\"'\"&A7&\"'!$18:$50\"),MATCH($BK$1,INDIRECT(\"'\"&A7&\"'!$A$18:$A$50\"),0),MATCH(Parts!$B7,INDIRECT(\"'\"&A7&\"'!$10:$10\"),0)),0)","v":0},null,null,{"$f":"IFERROR(INDEX(INDIRECT(\"'\"&A7&\"'!$18:$50\"),MATCH($BN$1,INDIRECT(\"'\"&A7&\"'!$A$18:$A$50\"),0),MATCH(Parts!$B7,INDIRECT(\"'\"&A7&\"'!$10:$10\"),0)),0)","v":0},null,"Hinge，0078090002",{"$f":"IFERROR(INDEX(INDIRECT(\"'\"&A7&\"'!$18:$50\"),MATCH($BQ$1,INDIRECT(\"'\"&A7&\"'!$A$18:$A$50\"),0),MATCH(Parts!$B7,INDIRECT(\"'\"&A7&\"'!$10:$10\"),0)),0)","v":1},null,"Hinge covers Up, 0072040003\nHinge covers Down, 0072040011 ",{"$f":"IFERROR(INDEX(INDIRECT(\"'\"&A7&\"'!$18:$50\"),MATCH($BT$1,INDIRECT(\"'\"&A7&\"'!$A$18:$A$50\"),0),MATCH(Parts!$B7,INDIRECT(\"'\"&A7&\"'!$10:$10\"),0)),0)","v":1},0.21333333333333335,null,{"$f":"IFERROR(INDEX(INDIRECT(\"'\"&A7&\"'!$18:$50\"),MATCH($BW$1,INDIRECT(\"'\"&A7&\"'!$A$18:$A$50\"),0),MATCH(Parts!$B7,INDIRECT(\"'\"&A7&\"'!$10:$10\"),0)),0)","v":0},null,"Thermometer：0271400001",{"$f":"IFERROR(INDEX(INDIRECT(\"'\"&A7&\"'!$18:$50\"),MATCH($BZ$1,INDIRECT(\"'\"&A7&\"'!$A$18:$A$50\"),0),MATCH(Parts!$B7,INDIRECT(\"'\"&A7&\"'!$10:$10\"),0)),0)","v":1},null,null,{"$f":"IFERROR(INDEX(INDIRECT(\"'\"&A7&\"'!$18:$50\"),MATCH($CC$1,INDIRECT(\"'\"&A7&\"'!$A$18:$A$50\"),0),MATCH(Parts!$B7,INDIRECT(\"'\"&A7&\"'!$10:$10\"),0)),0)","v":0},null,"Handle, 0070814623: 3.70USD",{"$f":"IFERROR(INDEX(INDIRECT(\"'\"&A7&\"'!$18:$50\"),MATCH($CF$1,INDIRECT(\"'\"&A7&\"'!$A$18:$A$50\"),0),MATCH(Parts!$B7,INDIRECT(\"'\"&A7&\"'!$10:$10\"),0)),0)","v":1},3.7,"Electrical wiring 0070400252B",{"$f":"IFERROR(INDEX(INDIRECT(\"'\"&A7&\"'!$18:$50\"),MATCH($CI$1,INDIRECT(\"'\"&A7&\"'!$A$18:$A$50\"),0),MATCH(Parts!$B7,INDIRECT(\"'\"&A7&\"'!$10:$10\"),0)),0)","v":0},6.5,null,{"$f":"IFERROR(INDEX(INDIRECT(\"'\"&A7&\"'!$18:$50\"),MATCH($CL$1,INDIRECT(\"'\"&A7&\"'!$A$18:$A$50\"),0),MATCH(Parts!$B7,INDIRECT(\"'\"&A7&\"'!$10:$10\"),0)),0)","v":0},null,null,{"$f":"IFERROR(INDEX(INDIRECT(\"'\"&A7&\"'!$18:$50\"),MATCH($CO$1,INDIRECT(\"'\"&A7&\"'!$A$18:$A$50\"),0),MATCH(Parts!$B7,INDIRECT(\"'\"&A7&\"'!$10:$10\"),0)),0)","v":0},null,null,{"$f":"IFERROR(INDEX(INDIRECT(\"'\"&A7&\"'!$18:$50\"),MATCH($CR$1,INDIRECT(\"'\"&A7&\"'!$A$18:$A$50\"),0),MATCH(Parts!$B7,INDIRECT(\"'\"&A7&\"'!$10:$10\"),0)),0)","v":0},null,null,{"$f":"IFERROR(INDEX(INDIRECT(\"'\"&A7&\"'!$18:$50\"),MATCH($CU$1,INDIRECT(\"'\"&A7&\"'!$A$18:$A$50\"),0),MATCH(Parts!$B7,INDIRECT(\"'\"&A7&\"'!$10:$10\"),0)),0)","v":0},null,null,{"$f":"IFERROR(INDEX(INDIRECT(\"'\"&A7&\"'!$18:$50\"),MATCH($CX$1,INDIRECT(\"'\"&A7&\"'!$A$18:$A$50\"),0),MATCH(Parts!$B7,INDIRECT(\"'\"&A7&\"'!$10:$10\"),0)),0)","v":0},null,null,{"$f":"IFERROR(INDEX(INDIRECT(\"'\"&A7&\"'!$18:$50\"),MATCH($DA$1,INDIRECT(\"'\"&A7&\"'!$A$18:$A$50\"),0),MATCH(Parts!$B7,INDIRECT(\"'\"&A7&\"'!$10:$10\"),0)),0)","v":0},null,null,{"$f":"IFERROR(INDEX(INDIRECT(\"'\"&A7&\"'!$18:$50\"),MATCH($DD$1,INDIRECT(\"'\"&A7&\"'!$A$18:$A$50\"),0),MATCH(Parts!$B7,INDIRECT(\"'\"&A7&\"'!$10:$10\"),0)),0)","v":0},null,null,{"$f":"IFERROR(INDEX(INDIRECT(\"'\"&A7&\"'!$18:$50\"),MATCH($DG$1,INDIRECT(\"'\"&A7&\"'!$A$18:$A$50\"),0),MATCH(Parts!$B7,INDIRECT(\"'\"&A7&\"'!$10:$10\"),0)),0)","v":0},null,null,{"$f":"IFERROR(INDEX(INDIRECT(\"'\"&A7&\"'!$18:$50\"),MATCH($DJ$1,INDIRECT(\"'\"&A7&\"'!$A$18:$A$50\"),0),MATCH(Parts!$B7,INDIRECT(\"'\"&A7&\"'!$10:$10\"),0)),0)","v":0},null,null,{"$f":"IFERROR(INDEX(INDIRECT(\"'\"&A7&\"'!$18:$50\"),MATCH($DM$1,INDIRECT(\"'\"&A7&\"'!$A$18:$A$50\"),0),MATCH(Parts!$B7,INDIRECT(\"'\"&A7&\"'!$10:$10\"),0)),0)","v":0},null,null,{"$f":"IFERROR(INDEX(INDIRECT(\"'\"&A7&\"'!$18:$50\"),MATCH($DP$1,INDIRECT(\"'\"&A7&\"'!$A$18:$A$50\"),0),MATCH(Parts!$B7,INDIRECT(\"'\"&A7&\"'!$10:$10\"),0)),0)","v":0},null,null,{"$f":"IFERROR(INDEX(INDIRECT(\"'\"&A7&\"'!$18:$50\"),MATCH($DS$1,INDIRECT(\"'\"&A7&\"'!$A$18:$A$50\"),0),MATCH(Parts!$B7,INDIRECT(\"'\"&A7&\"'!$10:$10\"),0)),0)","v":0},null,null,{"$f":"IFERROR(INDEX(INDIRECT(\"'\"&A7&\"'!$18:$50\"),MATCH($DV$1,INDIRECT(\"'\"&A7&\"'!$A$18:$A$50\"),0),MATCH(Parts!$B7,INDIRECT(\"'\"&A7&\"'!$10:$10\"),0)),0)","v":0},null,null,{"$f":"IFERROR(INDEX(INDIRECT(\"'\"&A7&\"'!$18:$50\"),MATCH($DY$1,INDIRECT(\"'\"&A7&\"'!$A$18:$A$50\"),0),MATCH(Parts!$B7,INDIRECT(\"'\"&A7&\"'!$10:$10\"),0)),0)","v":0},null,null,{"$f":"IFERROR(INDEX(INDIRECT(\"'\"&A7&\"'!$18:$50\"),MATCH($EB$1,INDIRECT(\"'\"&A7&\"'!$A$18:$A$50\"),0),MATCH(Parts!$B7,INDIRECT(\"'\"&A7&\"'!$10:$10\"),0)),0)","v":0},null,null,{"$f":"IFERROR(INDEX(INDIRECT(\"'\"&A7&\"'!$18:$50\"),MATCH($EE$1,INDIRECT(\"'\"&A7&\"'!$A$18:$A$50\"),0),MATCH(Parts!$B7,INDIRECT(\"'\"&A7&\"'!$10:$10\"),0)),0)","v":0},null,null,{"$f":"IFERROR(INDEX(INDIRECT(\"'\"&A7&\"'!$18:$50\"),MATCH($EH$1,INDIRECT(\"'\"&A7&\"'!$A$18:$A$50\"),0),MATCH(Parts!$B7,INDIRECT(\"'\"&A7&\"'!$10:$10\"),0)),0)","v":0},null,null,{"$f":"IFERROR(INDEX(INDIRECT(\"'\"&A7&\"'!$18:$50\"),MATCH($EK$1,INDIRECT(\"'\"&A7&\"'!$A$18:$A$50\"),0),MATCH(Parts!$B7,INDIRECT(\"'\"&A7&\"'!$10:$10\"),0)),0)","v":0}]
[{"$f":"PQS!A10","v":"Freezer"},"E003/023",{"$f":"PQS!E10","v":"MF 314*"},{"$f":"PQS!P10","v":"€"},239.15999999999997,"COMPRESSOR SECOP FR10G OK 03.6038858",{"$f":"IFERROR(INDEX(INDIRECT(\"'\"&A8&\"'!$18:$50\"),MATCH(Parts!F$1,INDIRECT(\"'\"&A8&\"'!$A$18:$A$50\"),0),MATCH(Parts!$B8,INDIRECT(\"'\"&A8&\"'!$10:$10\"),0)),0)","v":1},111.04,"THERMOSTAT 7020239",{"$f":"IFERROR(INDEX(INDIRECT(\"'\"&A8&\"'!$18:$50\"),MATCH($I$1,INDIRECT(\"'\"&A8&\"'!$A$18:$A$50\"),0),MATCH(Parts!$B8,INDIRECT(\"'\"&A8&\"'!$10:$10\"),0)),0)","v":1},17.47,null,{"$f":"IFERROR(INDEX(INDIRECT(\"'\"&A8&\"'!$18:$50\"),MATCH($L$1,INDIRECT(\"'\"&A8&\"'!$A$18:$A$50\"),0),MATCH(Parts!$B8,INDIRECT(\"'\"&A8&\"'!$10:$10\"),0)),0)","v":0},null,null,{"$f":"IFERROR(INDEX(INDIRECT(\"'\"&A8&\"'!$18:$50\"),MATCH($O$1,INDIRECT(\"'\"&A8&\"'!$A$18:$A$50\"),0),MATCH(Parts!$B8,INDIRECT(\"'\"&A8&\"'!$10:$10\"),0)),0)","v":0},null,null,{"$f":"IFERROR(INDEX(INDIRECT(\"'\"&A8&\"'!$18:$50\"),MATCH($R$1,INDIRECT(\"'\"&A8&\"'!$A$18:$A$50\"),0),MATCH(Parts!$B8,INDIRECT(\"'\"&A8&\"'!$10:$10\"),0)),0)","v":0},null,null,{"$f":"IFERROR(INDEX(INDIRECT(\"'\"&A8&\"'!$18:$50\"),MATCH($U$1,INDIRECT(\"'\"&A8&\"'!$A$18:$A$50\"),0),MATCH(Parts!$B8,INDIRECT(\"'\"&A8&\"'!$10:$10\"),0)),0)","v":0},null,null,{"$f":"IFERROR(INDEX(INDIRECT(\"'\"&A8&\"'!$18:$50\"),MATCH($X$1,INDIRECT(\"'\"&A8&\"'!$A$18:$A$50\"),0),MATCH(Parts!$B8,INDIRECT(\"'\"&A8&\"'!$10:$10\"),0)),0)","v":0},null,null,{"$f":"IFERROR(INDEX(INDIRECT(\"'\"&A8&\"'!$18:$50\"),MATCH($AA$1,INDIRECT(\"'\"&A8&\"'!$A$18:$A$50\"),0),MATCH(Parts!$B8,INDIRECT(\"'\"&A8&\"'!$10:$10\"),0)),0)","v":0},null,null,{"$f":"IFERROR(INDEX(INDIRECT(\"'\"&A8&\"'!$18:$50\"),MATCH($AD$1,INDIRECT(\"'\"&A8&\"'!$A$18:$A$50\"),0),MATCH(Parts!$B8,INDIRECT(\"'\"&A8&\"'!$10:$10\"),0)),0)","v":0},null,null,{"$f":"IFERROR(INDEX(INDIRECT(\"'\"&A8&\"'!$18:$50\"),MATCH($AG$1,INDIRECT(\"'\"&A8&\"'!$A$18:$A$50\"),0),MATCH(Parts!$B8,INDIRECT(\"'\"&A8&\"'!$10:$10\"),0)),0)","v":0},null,null,{"$f":"IFERROR(INDEX(INDIRECT(\"'\"&A8&\"'!$18:$50\"),MATCH($AJ$1,INDIRECT(\"'\"&A8&\"'!$A$18:$A$50\"),0),MATCH(Parts!$B8,INDIRECT(\"'\"&A8&\"'!$10:$10\"),0)),0)","v":0},null,null,{"$f":"IFERROR(INDEX(INDIRECT(\"'\"&A8&\"'!$18:$50\"),MATCH($AM$1,INDIRECT(\"'\"&A8&\"'!$A$18:$A$50\"),0),MATCH(Parts!$B8,INDIRECT(\"'\"&A8&\"'!$10:$10\"),0)),0)","v":0},null,null,{"$f":"IFERROR(INDEX(INDIRECT(\"'\"&A8&\"'!$18:$50\"),MATCH($AP$1,INDIRECT(\"'\"&A8&\"'!$A$18:$A$50\"),0),MATCH(Parts!$B8,INDIRECT(\"'\"&A8&\"'!$10:$10\"),0)),0)","v":0},null,"BASKET 353090001",{"$f":"IFERROR(INDEX(INDIRECT(\"'\"&A8&\"'!$18:$50\"),MATCH($AS$1,INDIRECT(\"'\"&A8&\"'!$A$18:$A$50\"),0),MATCH(Parts!$B8,INDIRECT(\"'\"&A8&\"'!$10:$10\"),0)),0)","v":1},5.92,null,{"$f":"IFERROR(INDEX(INDIRECT(\"'\"&A8&\"'!$18:$50\"),MATCH($AV$1,INDIRECT(\"'\"&A8&\"'!$A$18:$A$50\"),0),MATCH(Parts!$B8,INDIRECT(\"'\"&A8&\"'!$10:$10\"),0)),0)","v":0},null,"STARTING DEVICE (RELAY) A921115 9,26",{"$f":"IFERROR(INDEX(INDIRECT(\"'\"&A8&\"'!$18:$50\"),MATCH($AY$1,INDIRECT(\"'\"&A8&\"'!$A$18:$A$50\"),0),MATCH(Parts!$B8,INDIRECT(\"'\"&A8&\"'!$10:$10\"),0)),0)","v":1},9.26,null,{"$f":"IFERROR(INDEX(INDIRECT(\"'\"&A8&\"'!$18:$50\"),MATCH($BB$1,INDIRECT(\"'\"&A8&\"'!$A$18:$A$50\"),0),MATCH(Parts!$B8,INDIRECT(\"'\"&A8&\"'!$10:$10\"),0)),0)","v":0},null,"ALU-CYLINDER WITH R134A (1000 GRS) 04.9954073",{"$f":"IFERROR(INDEX(INDIRECT(\"'\"&A8&\"'!$18:$50\"),MATCH($BE$1,INDIRECT(\"'\"&A8&\"'!$A$18:$A$50\"),0),MATCH(Parts!$B8,INDIRECT(\"'\"&A8&\"'!$10:$10\"),0)),0)","v":1},65.03,"FILTER/DRIER TYPE XH 9 (20 GRS) 0-6538001",{"$f":"IFERROR(INDEX(INDIRECT(\"'\"&A8&\"'!$18:$50\"),MATCH($BH$1,INDIRECT(\"'\"&A8&\"'!$A$18:$A$50\"),0),MATCH(Parts!$B8,INDIRECT(\"'\"&A8&\"'!$10:$10\"),0)),0)","v":1},3.84,null,{"$f":"IFERROR(INDEX(INDIRECT(\"'\"&A8&\"'!$18:$50\"),MATCH($BK$1,INDIRECT(\"'\"&A8&\"'!$A$18:$A$50\"),0),MATCH(Parts!$B8,INDIRECT(\"'\"&A8&\"'!$10:$10\"),0)),0)","v":0},null,null,{"$f":"IFERROR(INDEX(INDIRECT(\"'\"&A8&\"'!$18:$50\"),MATCH($BN$1,INDIRECT(\"'\"&A8&\"'!$A$18:$A$50\"),0),MATCH(Parts!$B8,INDIRECT(\"'\"&A8&\"'!$10:$10\"),0)),0)","v":0},null,"HINGE WITH SPRING 1510029",{"$f":"IFERROR(INDEX(INDIRECT(\"'\"&A8&\"'!$18:$50\"),MATCH($BQ$1,INDIRECT(\"'\"&A8&\"'!$A$18:$A$50\"),0),MATCH(Parts!$B8,INDIRECT(\"'\"&A8&\"'!$10:$10\"),0)),0)","v":1},8.85,null,{"$f":"IFERROR(INDEX(INDIRECT(\"'\"&A8&\"'!$18:$50\"),MATCH($BT$1,INDIRECT(\"'\"&A8&\"'!$A$18:$A$50\"),0),MATCH(Parts!$B8,INDIRECT(\"'\"&A8&\"'!$10:$10\"),0)),0)","v":0},null,null,{"$f":"IFERROR(INDEX(INDIRECT(\"'\"&A8&\"'!$18:$50\"),MATCH($BW$1,INDIRECT(\"'\"&A8&\"'!$A$18:$A$50\"),0),MATCH(Parts!$B8,INDIRECT(\"'\"&A8&\"'!$10:$10\"),0)),0)","v":0},null,"THERMOMETER 7020164",{"$f":"IFERROR(INDEX(INDIRECT(\"'\"&A8&\"'!$18:$50\"),MATCH($BZ$1,INDIRECT(\"'\"&A8&\"'!$A$18:$A$50\"),0),MATCH(Parts!$B8,INDIRECT(\"'\"&A8&\"'!$10:$10\"),0)),0)","v":1},10.61,null,{"$f":"IFERROR(INDEX(INDIRECT(\"'\"&A8&\"'!$18:$50\"),MATCH($CC$1,INDIRECT(\"'\"&A8&\"'!$A$18:$A$50\"),0),MATCH(Parts!$B8,INDIRECT(\"'\"&A8&\"'!$10:$10\"),0)),0)","v":0},null,"HANDLE WITH LOCK AND KEY 304090501",{"$f":"IFERROR(INDEX(INDIRECT(\"'\"&A8&\"'!$18:$50\"),MATCH($CF$1,INDIRECT(\"'\"&A8&\"'!$A$18:$A$50\"),0),MATCH(Parts!$B8,INDIRECT(\"'\"&A8&\"'!$10:$10\"),0)),0)","v":1},7.14,null,{"$f":"IFERROR(INDEX(INDIRECT(\"'\"&A8&\"'!$18:$50\"),MATCH($CI$1,INDIRECT(\"'\"&A8&\"'!$A$18:$A$50\"),0),MATCH(Parts!$B8,INDIRECT(\"'\"&A8&\"'!$10:$10\"),0)),0)","v":0},null,null,{"$f":"IFERROR(INDEX(INDIRECT(\"'\"&A8&\"'!$18:$50\"),MATCH($CL$1,INDIRECT(\"'\"&A8&\"'!$A$18:$A$50\"),0),MATCH(Parts!$B8,INDIRECT(\"'\"&A8&\"'!$10:$10\"),0)),0)","v":0},null,null,{"$f":"IFERROR(INDEX(INDIRECT(\"'\"&A8&\"'!$18:$50\"),MATCH($CO$1,INDIRECT(\"'\"&A8&\"'!$A$18:$A$50\"),0),MATCH(Parts!$B8,INDIRECT(\"'\"&A8&\"'!$10:$10\"),0)),0)","v":0},null,null,{"$f":"IFERROR(INDEX(INDIRECT(\"'\"&A8&\"'!$18:$50\"),MATCH($CR$1,INDIRECT(\"'\"&A8&\"'!$A$18:$A$50\"),0),MATCH(Parts!$B8,INDIRECT(\"'\"&A8&\"'!$10:$10\"),0)),0)","v":0},null,null,{"$f":"IFERROR(INDEX(INDIRECT(\"'\"&A8&\"'!$18:$50\"),MATCH($CU$1,INDIRECT(\"'\"&A8&\"'!$A$18:$A$50\"),0),MATCH(Parts!$B8,INDIRECT(\"'\"&A8&\"'!$10:$10\"),0)),0)","v":0},null,null,{"$f":"IFERROR(INDEX(INDIRECT(\"'\"&A8&\"'!$18:$50\"),MATCH($CX$1,INDIRECT(\"'\"&A8&\"'!$A$18:$A$50\"),0),MATCH(Parts!$B8,INDIRECT(\"'\"&A8&\"'!$10:$10\"),0)),0)","v":0},null,null,{"$f":"IFERROR(INDEX(INDIRECT(\"'\"&A8&\"'!$18:$50\"),MATCH($DA$1,INDIRECT(\"'\"&A8&\"'!$A$18:$A$50\"),0),MATCH(Parts!$B8,INDIRECT(\"'\"&A8&\"'!$10:$10\"),0)),0)","v":0},null,null,{"$f":"IFERROR(INDEX(INDIRECT(\"'\"&A8&\"'!$18:$50\"),MATCH($DD$1,INDIRECT(\"'\"&A8&\"'!$A$18:$A$50\"),0),MATCH(Parts!$B8,INDIRECT(\"'\"&A8&\"'!$10:$10\"),0)),0)","v":0},null,null,{"$f":"IFERROR(INDEX(INDIRECT(\"'\"&A8&\"'!$18:$50\"),MATCH($DG$1,INDIRECT(\"'\"&A8&\"'!$A$18:$A$50\"),0),MATCH(Parts!$B8,INDIRECT(\"'\"&A8&\"'!$10:$10\"),0)),0)","v":0},null,null,{"$f":"IFERROR(INDEX(INDIRECT(\"'\"&A8&\"'!$18:$50\"),MATCH($DJ$1,INDIRECT(\"'\"&A8&\"'!$A$18:$A$50\"),0),MATCH(Parts!$B8,INDIRECT(\"'\"&A8&\"'!$10:$10\"),0)),0)","v":0},null,null,{"$f":"IFERROR(INDEX(INDIRECT(\"'\"&A8&\"'!$18:$50\"),MATCH($DM$1,INDIRECT(\"'\"&A8&\"'!$A$18:$A$50\"),0),MATCH(Parts!$B8,INDIRECT(\"'\"&A8&\"'!$10:$10\"),0)),0)","v":0},null,null,{"$f":"IFERROR(INDEX(INDIRECT(\"'\"&A8&\"'!$18:$50\"),MATCH($DP$1,INDIRECT(\"'\"&A8&\"'!$A$18:$A$50\"),0),MATCH(Parts!$B8,INDIRECT(\"'\"&A8&\"'!$10:$10\"),0)),0)","v":0},null,null,{"$f":"IFERROR(INDEX(INDIRECT(\"'\"&A8&\"'!$18:$50\"),MATCH($DS$1,INDIRECT(\"'\"&A8&\"'!$A$18:$A$50\"),0),MATCH(Parts!$B8,INDIRECT(\"'\"&A8&\"'!$10:$10\"),0)),0)","v":0},null,null,{"$f":"IFERROR(INDEX(INDIRECT(\"'\"&A8&\"'!$18:$50\"),MATCH($DV$1,INDIRECT(\"'\"&A8&\"'!$A$18:$A$50\"),0),MATCH(Parts!$B8,INDIRECT(\"'\"&A8&\"'!$10:$10\"),0)),0)","v":0},null,null,{"$f":"IFERROR(INDEX(INDIRECT(\"'\"&A8&\"'!$18:$50\"),MATCH($DY$1,INDIRECT(\"'\"&A8&\"'!$A$18:$A$50\"),0),MATCH(Parts!$B8,INDIRECT(\"'\"&A8&\"'!$10:$10\"),0)),0)","v":0},null,null,{"$f":"IFERROR(INDEX(INDIRECT(\"'\"&A8&\"'!$18:$50\"),MATCH($EB$1,INDIRECT(\"'\"&A8&\"'!$A$18:$A$50\"),0),MATCH(Parts!$B8,INDIRECT(\"'\"&A8&\"'!$10:$10\"),0)),0)","v":0},null,null,{"$f":"IFERROR(INDEX(INDIRECT(\"'\"&A8&\"'!$18:$50\"),MATCH($EE$1,INDIRECT(\"'\"&A8&\"'!$A$18:$A$50\"),0),MATCH(Parts!$B8,INDIRECT(\"'\"&A8&\"'!$10:$10\"),0)),0)","v":0},null,null,{"$f":"IFERROR(INDEX(INDIRECT(\"'\"&A8&\"'!$18:$50\"),MATCH($EH$1,INDIRECT(\"'\"&A8&\"'!$A$18:$A$50\"),0),MATCH(Parts!$B8,INDIRECT(\"'\"&A8&\"'!$10:$10\"),0)),0)","v":0},null,null,{"$f":"IFERROR(INDEX(INDIRECT(\"'\"&A8&\"'!$18:$50\"),MATCH($EK$1,INDIRECT(\"'\"&A8&\"'!$A$18:$A$50\"),0),MATCH(Parts!$B8,INDIRECT(\"'\"&A8&\"'!$10:$10\"),0)),0)","v":0}]
[{"$f":"PQS!A11","v":"Freezer"},"E003/024",{"$f":"PQS!E11","v":"MF 114*"},{"$f":"PQS!P11","v":"€"},239.15999999999997,"COMPRESSOR, SECOP FR8.5G OC, LST, COMP 03.6038325",{"$f":"IFERROR(INDEX(INDIRECT(\"'\"&A9&\"'!$18:$50\"),MATCH(Parts!F$1,INDIRECT(\"'\"&A9&\"'!$A$18:$A$50\"),0),MATCH(Parts!$B9,INDIRECT(\"'\"&A9&\"'!$10:$10\"),0)),0)","v":1},111.04,"THERMOSTAT 7020239",{"$f":"IFERROR(INDEX(INDIRECT(\"'\"&A9&\"'!$18:$50\"),MATCH($I$1,INDIRECT(\"'\"&A9&\"'!$A$18:$A$50\"),0),MATCH(Parts!$B9,INDIRECT(\"'\"&A9&\"'!$10:$10\"),0)),0)","v":1},17.47,null,{"$f":"IFERROR(INDEX(INDIRECT(\"'\"&A9&\"'!$18:$50\"),MATCH($L$1,INDIRECT(\"'\"&A9&\"'!$A$18:$A$50\"),0),MATCH(Parts!$B9,INDIRECT(\"'\"&A9&\"'!$10:$10\"),0)),0)","v":0},null,null,{"$f":"IFERROR(INDEX(INDIRECT(\"'\"&A9&\"'!$18:$50\"),MATCH($O$1,INDIRECT(\"'\"&A9&\"'!$A$18:$A$50\"),0),MATCH(Parts!$B9,INDIRECT(\"'\"&A9&\"'!$10:$10\"),0)),0)","v":0},null,null,{"$f":"IFERROR(INDEX(INDIRECT(\"'\"&A9&\"'!$18:$50\"),MATCH($R$1,INDIRECT(\"'\"&A9&\"'!$A$18:$A$50\"),0),MATCH(Parts!$B9,INDIRECT(\"'\"&A9&\"'!$10:$10\"),0)),0)","v":0},null,null,{"$f":"IFERROR(INDEX(INDIRECT(\"'\"&A9&\"'!$18:$50\"),MATCH($U$1,INDIRECT(\"'\"&A9&\"'!$A$18:$A$50\"),0),MATCH(Parts!$B9,INDIRECT(\"'\"&A9&\"'!$10:$10\"),0)),0)","v":0},null,null,{"$f":"IFERROR(INDEX(INDIRECT(\"'\"&A9&\"'!$18:$50\"),MATCH($X$1,INDIRECT(\"'\"&A9&\"'!$A$18:$A$50\"),0),MATCH(Parts!$B9,INDIRECT(\"'\"&A9&\"'!$10:$10\"),0)),0)","v":0},null,null,{"$f":"IFERROR(INDEX(INDIRECT(\"'\"&A9&\"'!$18:$50\"),MATCH($AA$1,INDIRECT(\"'\"&A9&\"'!$A$18:$A$50\"),0),MATCH(Parts!$B9,INDIRECT(\"'\"&A9&\"'!$10:$10\"),0)),0)","v":0},null,null,{"$f":"IFERROR(INDEX(INDIRECT(\"'\"&A9&\"'!$18:$50\"),MATCH($AD$1,INDIRECT(\"'\"&A9&\"'!$A$18:$A$50\"),0),MATCH(Parts!$B9,INDIRECT(\"'\"&A9&\"'!$10:$10\"),0)),0)","v":0},null,null,{"$f":"IFERROR(INDEX(INDIRECT(\"'\"&A9&\"'!$18:$50\"),MATCH($AG$1,INDIRECT(\"'\"&A9&\"'!$A$18:$A$50\"),0),MATCH(Parts!$B9,INDIRECT(\"'\"&A9&\"'!$10:$10\"),0)),0)","v":0},null,null,{"$f":"IFERROR(INDEX(INDIRECT(\"'\"&A9&\"'!$18:$50\"),MATCH($AJ$1,INDIRECT(\"'\"&A9&\"'!$A$18:$A$50\"),0),MATCH(Parts!$B9,INDIRECT(\"'\"&A9&\"'!$10:$10\"),0)),0)","v":0},null,null,{"$f":"IFERROR(INDEX(INDIRECT(\"'\"&A9&\"'!$18:$50\"),MATCH($AM$1,INDIRECT(\"'\"&A9&\"'!$A$18:$A$50\"),0),MATCH(Parts!$B9,INDIRECT(\"'\"&A9&\"'!$10:$10\"),0)),0)","v":0},null,null,{"$f":"IFERROR(INDEX(INDIRECT(\"'\"&A9&\"'!$18:$50\"),MATCH($AP$1,INDIRECT(\"'\"&A9&\"'!$A$18:$A$50\"),0),MATCH(Parts!$B9,INDIRECT(\"'\"&A9&\"'!$10:$10\"),0)),0)","v":0},null,"BASKET 353090001",{"$f":"IFERROR(INDEX(INDIRECT(\"'\"&A9&\"'!$18:$50\"),MATCH($AS$1,INDIRECT(\"'\"&A9&\"'!$A$18:$A$50\"),0),MATCH(Parts!$B9,INDIRECT(\"'\"&A9&\"'!$10:$10\"),0)),0)","v":1},5.92,null,{"$f":"IFERROR(INDEX(INDIRECT(\"'\"&A9&\"'!$18:$50\"),MATCH($AV$1,INDIRECT(\"'\"&A9&\"'!$A$18:$A$50\"),0),MATCH(Parts!$B9,INDIRECT(\"'\"&A9&\"'!$10:$10\"),0)),0)","v":0},null,"STARTING DEVICE (RELAY) A921115",{"$f":"IFERROR(INDEX(INDIRECT(\"'\"&A9&\"'!$18:$50\"),MATCH($AY$1,INDIRECT(\"'\"&A9&\"'!$A$18:$A$50\"),0),MATCH(Parts!$B9,INDIRECT(\"'\"&A9&\"'!$10:$10\"),0)),0)","v":1},9.26,null,{"$f":"IFERROR(INDEX(INDIRECT(\"'\"&A9&\"'!$18:$50\"),MATCH($BB$1,INDIRECT(\"'\"&A9&\"'!$A$18:$A$50\"),0),MATCH(Parts!$B9,INDIRECT(\"'\"&A9&\"'!$10:$10\"),0)),0)","v":0},null,"ALU-CYLINDER WITH R134A (1000 GRS) 04.9954073",{"$f":"IFERROR(INDEX(INDIRECT(\"'\"&A9&\"'!$18:$50\"),MATCH($BE$1,INDIRECT(\"'\"&A9&\"'!$A$18:$A$50\"),0),MATCH(Parts!$B9,INDIRECT(\"'\"&A9&\"'!$10:$10\"),0)),0)","v":1},65.03,"FILTER/DRIER TYPE XH 9 (20 GRS) 0-6538001",{"$f":"IFERROR(INDEX(INDIRECT(\"'\"&A9&\"'!$18:$50\"),MATCH($BH$1,INDIRECT(\"'\"&A9&\"'!$A$18:$A$50\"),0),MATCH(Parts!$B9,INDIRECT(\"'\"&A9&\"'!$10:$10\"),0)),0)","v":1},3.84,null,{"$f":"IFERROR(INDEX(INDIRECT(\"'\"&A9&\"'!$18:$50\"),MATCH($BK$1,INDIRECT(\"'\"&A9&\"'!$A$18:$A$50\"),0),MATCH(Parts!$B9,INDIRECT(\"'\"&A9&\"'!$10:$10\"),0)),0)","v":0},null,null,{"$f":"IFERROR(INDEX(INDIRECT(\"'\"&A9&\"'!$18:$50\"),MATCH($BN$1,INDIRECT(\"'\"&A9&\"'!$A$18:$A$50\"),0),MATCH(Parts!$B9,INDIRECT(\"'\"&A9&\"'!$10:$10\"),0)),0)","v":0},null,"HINGE WITH SPRING 1510029",{"$f":"IFERROR(INDEX(INDIRECT(\"'\"&A9&\"'!$18:$50\"),MATCH($BQ$1,INDIRECT(\"'\"&A9&\"'!$A$18:$A$50\"),0),MATCH(Parts!$B9,INDIRECT(\"'\"&A9&\"'!$10:$10\"),0)),0)","v":1},8.85,null,{"$f":"IFERROR(INDEX(INDIRECT(\"'\"&A9&\"'!$18:$50\"),MATCH($BT$1,INDIRECT(\"'\"&A9&\"'!$A$18:$A$50\"),0),MATCH(Parts!$B9,INDIRECT(\"'\"&A9&\"'!$10:$10\"),0)),0)","v":0},null,null,{"$f":"IFERROR(INDEX(INDIRECT(\"'\"&A9&\"'!$18:$50\"),MATCH($BW$1,INDIRECT(\"'\"&A9&\"'!$A$18:$A$50\"),0),MATCH(Parts!$B9,INDIRECT(\"'\"&A9&\"'!$10:$10\"),0)),0)","v":0},null,"THERMOMETER 7020164",{"$f":"IFERROR(INDEX(INDIRECT(\"'\"&A9&\"'!$18:$50\"),MATCH($BZ$1,INDIRECT(\"'\"&A9&\"'!$A$18:$A$50\"),0),MATCH(Parts!$B9,INDIRECT(\"'\"&A9&\"'!$10:$10\"),0)),0)","v":1},10.61,null,{"$f":"IFERROR(INDEX(INDIRECT(\"'\"&A9&\"'!$18:$50\"),MATCH($CC$1,INDIRECT(\"'\"&A9&\"'!$A$18:$A$50\"),0),MATCH(Parts!$B9,INDIRECT(\"'\"&A9&\"'!$10:$10\"),0)),0)","v":0},null,"HANDLE WITH LOCK AND KEY 304090501",{"$f":"IFERROR(INDEX(INDIRECT(\"'\"&A9&\"'!$18:$50\"),MATCH($CF$1,INDIRECT(\"'\"&A9&\"'!$A$18:$A$50\"),0),MATCH(Parts!$B9,INDIRECT(\"'\"&A9&\"'!$10:$10\"),0)),0)","v":1},7.14,null,{"$f":"IFERROR(INDEX(INDIRECT(\"'\"&A9&\"'!$18:$50\"),MATCH($CI$1,INDIRECT(\"'\"&A9&\"'!$A$18:$A$50\"),0),MATCH(Parts!$B9,INDIRECT(\"'\"&A9&\"'!$10:$10\"),0)),0)","v":0},null,null,{"$f":"IFERROR(INDEX(INDIRECT(\"'\"&A9&\"'!$18:$50\"),MATCH($CL$1,INDIRECT(\"'\"&A9&\"'!$A$18:$A$50\"),0),MATCH(Parts!$B9,INDIRECT(\"'\"&A9&\"'!$10:$10\"),0)),0)","v":0},null,null,{"$f":"IFERROR(INDEX(INDIRECT(\"'\"&A9&\"'!$18:$50\"),MATCH($CO$1,INDIRECT(\"'\"&A9&\"'!$A$18:$A$50\"),0),MATCH(Parts!$B9,INDIRECT(\"'\"&A9&\"'!$10:$10\"),0)),0)","v":0},null,null,{"$f":"IFERROR(INDEX(INDIRECT(\"'\"&A9&\"'!$18:$50\"),MATCH($CR$1,INDIRECT(\"'\"&A9&\"'!$A$18:$A$50\"),0),MATCH(Parts!$B9,INDIRECT(\"'\"&A9&\"'!$10:$10\"),0)),0)","v":0},null,null,{"$f":"IFERROR(INDEX(INDIRECT(\"'\"&A9&\"'!$18:$50\"),MATCH($CU$1,INDIRECT(\"'\"&A9&\"'!$A$18:$A$50\"),0),MATCH(Parts!$B9,INDIRECT(\"'\"&A9&\"'!$10:$10\"),0)),0)","v":0},null,null,{"$f":"IFERROR(INDEX(INDIRECT(\"'\"&A9&\"'!$18:$50\"),MATCH($CX$1,INDIRECT(\"'\"&A9&\"'!$A$18:$A$50\"),0),MATCH(Parts!$B9,INDIRECT(\"'\"&A9&\"'!$10:$10\"),0)),0)","v":0},null,null,{"$f":"IFERROR(INDEX(INDIRECT(\"'\"&A9&\"'!$18:$50\"),MATCH($DA$1,INDIRECT(\"'\"&A9&\"'!$A$18:$A$50\"),0),MATCH(Parts!$B9,INDIRECT(\"'\"&A9&\"'!$10:$10\"),0)),0)","v":0},null,null,{"$f":"IFERROR(INDEX(INDIRECT(\"'\"&A9&\"'!$18:$50\"),MATCH($DD$1,INDIRECT(\"'\"&A9&\"'!$A$18:$A$50\"),0),MATCH(Parts!$B9,INDIRECT(\"'\"&A9&\"'!$10:$10\"),0)),0)","v":0},null,null,{"$f":"IFERROR(INDEX(INDIRECT(\"'\"&A9&\"'!$18:$50\"),MATCH($DG$1,INDIRECT(\"'\"&A9&\"'!$A$18:$A$50\"),0),MATCH(Parts!$B9,INDIRECT(\"'\"&A9&\"'!$10:$10\"),0)),0)","v":0},null,null,{"$f":"IFERROR(INDEX(INDIRECT(\"'\"&A9&\"'!$18:$50\"),MATCH($DJ$1,INDIRECT(\"'\"&A9&\"'!$A$18:$A$50\"),0),MATCH(Parts!$B9,INDIRECT(\"'\"&A9&\"'!$10:$10\"),0)),0)","v":0},null,null,{"$f":"IFERROR(INDEX(INDIRECT(\"'\"&A9&\"'!$18:$50\"),MATCH($DM$1,INDIRECT(\"'\"&A9&\"'!$A$18:$A$50\"),0),MATCH(Parts!$B9,INDIRECT(\"'\"&A9&\"'!$10:$10\"),0)),0)","v":0},null,null,{"$f":"IFERROR(INDEX(INDIRECT(\"'\"&A9&\"'!$18:$50\"),MATCH($DP$1,INDIRECT(\"'\"&A9&\"'!$A$18:$A$50\"),0),MATCH(Parts!$B9,INDIRECT(\"'\"&A9&\"'!$10:$10\"),0)),0)","v":0},null,null,{"$f":"IFERROR(INDEX(INDIRECT(\"'\"&A9&\"'!$18:$50\"),MATCH($DS$1,INDIRECT(\"'\"&A9&\"'!$A$18:$A$50\"),0),MATCH(Parts!$B9,INDIRECT(\"'\"&A9&\"'!$10:$10\"),0)),0)","v":0},null,null,{"$f":"IFERROR(INDEX(INDIRECT(\"'\"&A9&\"'!$18:$50\"),MATCH($DV$1,INDIRECT(\"'\"&A9&\"'!$A$18:$A$50\"),0),MATCH(Parts!$B9,INDIRECT(\"'\"&A9&\"'!$10:$10\"),0)),0)","v":0},null,null,{"$f":"IFERROR(INDEX(INDIRECT(\"'\"&A9&\"'!$18:$50\"),MATCH($DY$1,INDIRECT(\"'\"&A9&\"'!$A$18:$A$50\"),0),MATCH(Parts!$B9,INDIRECT(\"'\"&A9&\"'!$10:$10\"),0)),0)","v":0},null,null,{"$f":"IFERROR(INDEX(INDIRECT(\"'\"&A9&\"'!$18:$50\"),MATCH($EB$1,INDIRECT(\"'\"&A9&\"'!$A$18:$A$50\"),0),MATCH(Parts!$B9,INDIRECT(\"'\"&A9&\"'!$10:$10\"),0)),0)","v":0},null,null,{"$f":"IFERROR(INDEX(INDIRECT(\"'\"&A9&\"'!$18:$50\"),MATCH($EE$1,INDIRECT(\"'\"&A9&\"'!$A$18:$A$50\"),0),MATCH(Parts!$B9,INDIRECT(\"'\"&A9&\"'!$10:$10\"),0)),0)","v":0},null,null,{"$f":"IFERROR(INDEX(INDIRECT(\"'\"&A9&\"'!$18:$50\"),MATCH($EH$1,INDIRECT(\"'\"&A9&\"'!$A$18:$A$50\"),0),MATCH(Parts!$B9,INDIRECT(\"'\"&A9&\"'!$10:$10\"),0)),0)","v":0},null,null,{"$f":"IFERROR(INDEX(INDIRECT(\"'\"&A9&\"'!$18:$50\"),MATCH($EK$1,INDIRECT(\"'\"&A9&\"'!$A$18:$A$50\"),0),MATCH(Parts!$B9,INDIRECT(\"'\"&A9&\"'!$10:$10\"),0)),0)","v":0}]
[{"$f":"PQS!A12","v":"Freezer"},"E003/025",{"$f":"PQS!E12","v":"MF 214*"},{"$f":"PQS!P12","v":"€"},239.14999999999998,"COMPRESSOR, SECOP FR8.5G OC, LST, COMP 03.6038325",{"$f":"IFERROR(INDEX(INDIRECT(\"'\"&A10&\"'!$18:$50\"),MATCH(Parts!F$1,INDIRECT(\"'\"&A10&\"'!$A$18:$A$50\"),0),MATCH(Parts!$B10,INDIRECT(\"'\"&A10&\"'!$10:$10\"),0)),0)","v":1},111.03,"THERMOSTAT 7020239",{"$f":"IFERROR(INDEX(INDIRECT(\"'\"&A10&\"'!$18:$50\"),MATCH($I$1,INDIRECT(\"'\"&A10&\"'!$A$18:$A$50\"),0),MATCH(Parts!$B10,INDIRECT(\"'\"&A10&\"'!$10:$10\"),0)),0)","v":1},17.47,null,{"$f":"IFERROR(INDEX(INDIRECT(\"'\"&A10&\"'!$18:$50\"),MATCH($L$1,INDIRECT(\"'\"&A10&\"'!$A$18:$A$50\"),0),MATCH(Parts!$B10,INDIRECT(\"'\"&A10&\"'!$10:$10\"),0)),0)","v":0},null,null,{"$f":"IFERROR(INDEX(INDIRECT(\"'\"&A10&\"'!$18:$50\"),MATCH($O$1,INDIRECT(\"'\"&A10&\"'!$A$18:$A$50\"),0),MATCH(Parts!$B10,INDIRECT(\"'\"&A10&\"'!$10:$10\"),0)),0)","v":0},null,null,{"$f":"IFERROR(INDEX(INDIRECT(\"'\"&A10&\"'!$18:$50\"),MATCH($R$1,INDIRECT(\"'\"&A10&\"'!$A$18:$A$50\"),0),MATCH(Parts!$B10,INDIRECT(\"'\"&A10&\"'!$10:$10\"),0)),0)","v":0},null,null,{"$f":"IFERROR(INDEX(INDIRECT(\"'\"&A10&\"'!$18:$50\"),MATCH($U$1,INDIRECT(\"'\"&A10&\"'!$A$18:$A$50\"),0),MATCH(Parts!$B10,INDIRECT(\"'\"&A10&\"'!$10:$10\"),0)),0)","v":0},null,null,{"$f":"IFERROR(INDEX(INDIRECT(\"'\"&A10&\"'!$18:$50\"),MATCH($X$1,INDIRECT(\"'\"&A10&\"'!$A$18:$A$50\"),0),MATCH(Parts!$B10,INDIRECT(\"'\"&A10&\"'!$10:$10\"),0)),0)","v":0},null,null,{"$f":"IFERROR(INDEX(INDIRECT(\"'\"&A10&\"'!$18:$50\"),MATCH($AA$1,INDIRECT(\"'\"&A10&\"'!$A$18:$A$50\"),0),MATCH(Parts!$B10,INDIRECT(\"'\"&A10&\"'!$10:$10\"),0)),0)","v":0},null,null,{"$f":"IFERROR(INDEX(INDIRECT(\"'\"&A10&\"'!$18:$50\"),MATCH($AD$1,INDIRECT(\"'\"&A10&\"'!$A$18:$A$50\"),0),MATCH(Parts!$B10,INDIRECT(\"'\"&A10&\"'!$10:$10\"),0)),0)","v":0},null,null,{"$f":"IFERROR(INDEX(INDIRECT(\"'\"&A10&\"'!$18:$50\"),MATCH($AG$1,INDIRECT(\"'\"&A10&\"'!$A$18:$A$50\"),0),MATCH(Parts!$B10,INDIRECT(\"'\"&A10&\"'!$10:$10\"),0)),0)","v":0},null,null,{"$f":"IFERROR(INDEX(INDIRECT(\"'\"&A10&\"'!$18:$50\"),MATCH($AJ$1,INDIRECT(\"'\"&A10&\"'!$A$18:$A$50\"),0),MATCH(Parts!$B10,INDIRECT(\"'\"&A10&\"'!$10:$10\"),0)),0)","v":0},null,null,{"$f":"IFERROR(INDEX(INDIRECT(\"'\"&A10&\"'!$18:$50\"),MATCH($AM$1,INDIRECT(\"'\"&A10&\"'!$A$18:$A$50\"),0),MATCH(Parts!$B10,INDIRECT(\"'\"&A10&\"'!$10:$10\"),0)),0)","v":0},null,null,{"$f":"IFERROR(INDEX(INDIRECT(\"'\"&A10&\"'!$18:$50\"),MATCH($AP$1,INDIRECT(\"'\"&A10&\"'!$A$18:$A$50\"),0),MATCH(Parts!$B10,INDIRECT(\"'\"&A10&\"'!$10:$10\"),0)),0)","v":0},null,"BASKET 353090001",{"$f":"IFERROR(INDEX(INDIRECT(\"'\"&A10&\"'!$18:$50\"),MATCH($AS$1,INDIRECT(\"'\"&A10&\"'!$A$18:$A$50\"),0),MATCH(Parts!$B10,INDIRECT(\"'\"&A10&\"'!$10:$10\"),0)),0)","v":1},5.92,null,{"$f":"IFERROR(INDEX(INDIRECT(\"'\"&A10&\"'!$18:$50\"),MATCH($AV$1,INDIRECT(\"'\"&A10&\"'!$A$18:$A$50\"),0),MATCH(Parts!$B10,INDIRECT(\"'\"&A10&\"'!$10:$10\"),0)),0)","v":0},null,"STARTING DEVICE (RELAY) A921115",{"$f":"IFERROR(INDEX(INDIRECT(\"'\"&A10&\"'!$18:$50\"),MATCH($AY$1,INDIRECT(\"'\"&A10&\"'!$A$18:$A$50\"),0),MATCH(Parts!$B10,INDIRECT(\"'\"&A10&\"'!$10:$10\"),0)),0)","v":1},9.26,null,{"$f":"IFERROR(INDEX(INDIRECT(\"'\"&A10&\"'!$18:$50\"),MATCH($BB$1,INDIRECT(\"'\"&A10&\"'!$A$18:$A$50\"),0),MATCH(Parts!$B10,INDIRECT(\"'\"&A10&\"'!$10:$10\"),0)),0)","v":0},null,"ALU-CYLINDER WITH R134A (1000 GRS) 04.9954073",{"$f":"IFERROR(INDEX(INDIRECT(\"'\"&A10&\"'!$18:$50\"),MATCH($BE$1,INDIRECT(\"'\"&A10&\"'!$A$18:$A$50\"),0),MATCH(Parts!$B10,INDIRECT(\"'\"&A10&\"'!$10:$10\"),0)),0)","v":1},65.03,"FILTER/DRIER TYPE XH 9 (20 GRS) 0-6538001",{"$f":"IFERROR(INDEX(INDIRECT(\"'\"&A10&\"'!$18:$50\"),MATCH($BH$1,INDIRECT(\"'\"&A10&\"'!$A$18:$A$50\"),0),MATCH(Parts!$B10,INDIRECT(\"'\"&A10&\"'!$10:$10\"),0)),0)","v":1},3.84,null,{"$f":"IFERROR(INDEX(INDIRECT(\"'\"&A10&\"'!$18:$50\"),MATCH($BK$1,INDIRECT(\"'\"&A10&\"'!$A$18:$A$50\"),0),MATCH(Parts!$B10,INDIRECT(\"'\"&A10&\"'!$10:$10\"),0)),0)","v":0},null,null,{"$f":"IFERROR(INDEX(INDIRECT(\"'\"&A10&\"'!$18:$50\"),MATCH($BN$1,INDIRECT(\"'\"&A10&\"'!$A$18:$A$50\"),0),MATCH(Parts!$B10,INDIRECT(\"'\"&A10&\"'!$10:$10\"),0)),0)","v":0},null,"HINGE WITH SPRING 1510029",{"$f":"IFERROR(INDEX(INDIRECT(\"'\"&A10&\"'!$18:$50\"),MATCH($BQ$1,INDIRECT(\"'\"&A10&\"'!$A$18:$A$50\"),0),MATCH(Parts!$B10,INDIRECT(\"'\"&A10&\"'!$10:$10\"),0)),0)","v":1},8.85,null,{"$f":"IFERROR(INDEX(INDIRECT(\"'\"&A10&\"'!$18:$50\"),MATCH($BT$1,INDIRECT(\"'\"&A10&\"'!$A$18:$A$50\"),0),MATCH(Parts!$B10,INDIRECT(\"'\"&A10&\"'!$10:$10\"),0)),0)","v":0},null,null,{"$f":"IFERROR(INDEX(INDIRECT(\"'\"&A10&\"'!$18:$50\"),MATCH($BW$1,INDIRECT(\"'\"&A10&\"'!$A$18:$A$50\"),0),MATCH(Parts!$B10,INDIRECT(\"'\"&A10&\"'!$10:$10\"),0)),0)","v":0},null,"THERMOMETER 7020164",{"$f":"IFERROR(INDEX(INDIRECT(\"'\"&A10&\"'!$18:$50\"),MATCH($BZ$1,INDIRECT(\"'\"&A10&\"'!$A$18:$A$50\"),0),MATCH(Parts!$B10,INDIRECT(\"'\"&A10&\"'!$10:$10\"),0)),0)","v":1},10.61,null,{"$f":"IFERROR(INDEX(INDIRECT(\"'\"&A10&\"'!$18:$50\"),MATCH($CC$1,INDIRECT(\"'\"&A10&\"'!$A$18:$A$50\"),0),MATCH(Parts!$B10,INDIRECT(\"'\"&A10&\"'!$10:$10\"),0)),0)","v":0},null,"HANDLE WITH LOCK AND KEY 304090501",{"$f":"IFERROR(INDEX(INDIRECT(\"'\"&A10&\"'!$18:$50\"),MATCH($CF$1,INDIRECT(\"'\"&A10&\"'!$A$18:$A$50\"),0),MATCH(Parts!$B10,INDIRECT(\"'\"&A10&\"'!$10:$10\"),0)),0)","v":1},7.14,null,{"$f":"IFERROR(INDEX(INDIRECT(\"'\"&A10&\"'!$18:$50\"),MATCH($CI$1,INDIRECT(\"'\"&A10&\"'!$A$18:$A$50\"),0),MATCH(Parts!$B10,INDIRECT(\"'\"&A10&\"'!$10:$10\"),0)),0)","v":0},null,null,{"$f":"IFERROR(INDEX(INDIRECT(\"'\"&A10&\"'!$18:$50\"),MATCH($CL$1,INDIRECT(\"'\"&A10&\"'!$A$18:$A$50\"),0),MATCH(Parts!$B10,INDIRECT(\"'\"&A10&\"'!$10:$10\"),0)),0)","v":0},null,null,{"$f":"IFERROR(INDEX(INDIRECT(\"'\"&A10&\"'!$18:$50\"),MATCH($CO$1,INDIRECT(\"'\"&A10&\"'!$A$18:$A$50\"),0),MATCH(Parts!$B10,INDIRECT(\"'\"&A10&\"'!$10:$10\"),0)),0)","v":0},null,null,{"$f":"IFERROR(INDEX(INDIRECT(\"'\"&A10&\"'!$18:$50\"),MATCH($CR$1,INDIRECT(\"'\"&A10&\"'!$A$18:$A$50\"),0),MATCH(Parts!$B10,INDIRECT(\"'\"&A10&\"'!$10:$10\"),0)),0)","v":0},null,null,{"$f":"IFERROR(INDEX(INDIRECT(\"'\"&A10&\"'!$18:$50\"),MATCH($CU$1,INDIRECT(\"'\"&A10&\"'!$A$18:$A$50\"),0),MATCH(Parts!$B10,INDIRECT(\"'\"&A10&\"'!$10:$10\"),0)),0)","v":0},null,null,{"$f":"IFERROR(INDEX(INDIRECT(\"'\"&A10&\"'!$18:$50\"),MATCH($CX$1,INDIRECT(\"'\"&A10&\"'!$A$18:$A$50\"),0),MATCH(Parts!$B10,INDIRECT(\"'\"&A10&\"'!$10:$10\"),0)),0)","v":0},null,null,{"$f":"IFERROR(INDEX(INDIRECT(\"'\"&A10&\"'!$18:$50\"),MATCH($DA$1,INDIRECT(\"'\"&A10&\"'!$A$18:$A$50\"),0),MATCH(Parts!$B10,INDIRECT(\"'\"&A10&\"'!$10:$10\"),0)),0)","v":0},null,null,{"$f":"IFERROR(INDEX(INDIRECT(\"'\"&A10&\"'!$18:$50\"),MATCH($DD$1,INDIRECT(\"'\"&A10&\"'!$A$18:$A$50\"),0),MATCH(Parts!$B10,INDIRECT(\"'\"&A10&\"'!$10:$10\"),0)),0)","v":0},null,null,{"$f":"IFERROR(INDEX(INDIRECT(\"'\"&A10&\"'!$18:$50\"),MATCH($DG$1,INDIRECT(\"'\"&A10&\"'!$A$18:$A$50\"),0),MATCH(Parts!$B10,INDIRECT(\"'\"&A10&\"'!$10:$10\"),0)),0)","v":0},null,null,{"$f":"IFERROR(INDEX(INDIRECT(\"'\"&A10&\"'!$18:$50\"),MATCH($DJ$1,INDIRECT(\"'\"&A10&\"'!$A$18:$A$50\"),0),MATCH(Parts!$B10,INDIRECT(\"'\"&A10&\"'!$10:$10\"),0)),0)","v":0},null,null,{"$f":"IFERROR(INDEX(INDIRECT(\"'\"&A10&\"'!$18:$50\"),MATCH($DM$1,INDIRECT(\"'\"&A10&\"'!$A$18:$A$50\"),0),MATCH(Parts!$B10,INDIRECT(\"'\"&A10&\"'!$10:$10\"),0)),0)","v":0},null,null,{"$f":"IFERROR(INDEX(INDIRECT(\"'\"&A10&\"'!$18:$50\"),MATCH($DP$1,INDIRECT(\"'\"&A10&\"'!$A$18:$A$50\"),0),MATCH(Parts!$B10,INDIRECT(\"'\"&A10&\"'!$10:$10\"),0)),0)","v":0},null,null,{"$f":"IFERROR(INDEX(INDIRECT(\"'\"&A10&\"'!$18:$50\"),MATCH($DS$1,INDIRECT(\"'\"&A10&\"'!$A$18:$A$50\"),0),MATCH(Parts!$B10,INDIRECT(\"'\"&A10&\"'!$10:$10\"),0)),0)","v":0},null,null,{"$f":"IFERROR(INDEX(INDIRECT(\"'\"&A10&\"'!$18:$50\"),MATCH($DV$1,INDIRECT(\"'\"&A10&\"'!$A$18:$A$50\"),0),MATCH(Parts!$B10,INDIRECT(\"'\"&A10&\"'!$10:$10\"),0)),0)","v":0},null,null,{"$f":"IFERROR(INDEX(INDIRECT(\"'\"&A10&\"'!$18:$50\"),MATCH($DY$1,INDIRECT(\"'\"&A10&\"'!$A$18:$A$50\"),0),MATCH(Parts!$B10,INDIRECT(\"'\"&A10&\"'!$10:$10\"),0)),0)","v":0},null,null,{"$f":"IFERROR(INDEX(INDIRECT(\"'\"&A10&\"'!$18:$50\"),MATCH($EB$1,INDIRECT(\"'\"&A10&\"'!$A$18:$A$50\"),0),MATCH(Parts!$B10,INDIRECT(\"'\"&A10&\"'!$10:$10\"),0)),0)","v":0},null,null,{"$f":"IFERROR(INDEX(INDIRECT(\"'\"&A10&\"'!$18:$50\"),MATCH($EE$1,INDIRECT(\"'\"&A10&\"'!$A$18:$A$50\"),0),MATCH(Parts!$B10,INDIRECT(\"'\"&A10&\"'!$10:$10\"),0)),0)","v":0},null,null,{"$f":"IFERROR(INDEX(INDIRECT(\"'\"&A10&\"'!$18:$50\"),MATCH($EH$1,INDIRECT(\"'\"&A10&\"'!$A$18:$A$50\"),0),MATCH(Parts!$B10,INDIRECT(\"'\"&A10&\"'!$10:$10\"),0)),0)","v":0},null,null,{"$f":"IFERROR(INDEX(INDIRECT(\"'\"&A10&\"'!$18:$50\"),MATCH($EK$1,INDIRECT(\"'\"&A10&\"'!$A$18:$A$50\"),0),MATCH(Parts!$B10,INDIRECT(\"'\"&A10&\"'!$10:$10\"),0)),0)","v":0}]
[{"$f":"PQS!A13","v":"Freezer"},"E003/004",{"$f":"PQS!E13","v":"TFW 800*"},{"$f":"PQS!P13","v":"€"},359.45,"Compressor, 296.9701.33",{"$f":"IFERROR(INDEX(INDIRECT(\"'\"&A11&\"'!$18:$50\"),MATCH(Parts!F$1,INDIRECT(\"'\"&A11&\"'!$A$18:$A$50\"),0),MATCH(Parts!$B11,INDIRECT(\"'\"&A11&\"'!$10:$10\"),0)),0)","v":1},139.47,"Thermostat (2), 296.9764.09, 123.00 €",{"$f":"IFERROR(INDEX(INDIRECT(\"'\"&A11&\"'!$18:$50\"),MATCH($I$1,INDIRECT(\"'\"&A11&\"'!$A$18:$A$50\"),0),MATCH(Parts!$B11,INDIRECT(\"'\"&A11&\"'!$10:$10\"),0)),0)","v":2},{"$f":"123/2","v":61.5},null,{"$f":"IFERROR(INDEX(INDIRECT(\"'\"&A11&\"'!$18:$50\"),MATCH($L$1,INDIRECT(\"'\"&A11&\"'!$A$18:$A$50\"),0),MATCH(Parts!$B11,INDIRECT(\"'\"&A11&\"'!$10:$10\"),0)),0)","v":0},null,null,{"$f":"IFERROR(INDEX(INDIRECT(\"'\"&A11&\"'!$18:$50\"),MATCH($O$1,INDIRECT(\"'\"&A11&\"'!$A$18:$A$50\"),0),MATCH(Parts!$B11,INDIRECT(\"'\"&A11&\"'!$10:$10\"),0)),0)","v":0},null,null,{"$f":"IFERROR(INDEX(INDIRECT(\"'\"&A11&\"'!$18:$50\"),MATCH($R$1,INDIRECT(\"'\"&A11&\"'!$A$18:$A$50\"),0),MATCH(Parts!$B11,INDIRECT(\"'\"&A11&\"'!$10:$10\"),0)),0)","v":0},null,"Sensor NTC6X15 PVC  296.9804.22",{"$f":"IFERROR(INDEX(INDIRECT(\"'\"&A11&\"'!$18:$50\"),MATCH($U$1,INDIRECT(\"'\"&A11&\"'!$A$18:$A$50\"),0),MATCH(Parts!$B11,INDIRECT(\"'\"&A11&\"'!$10:$10\"),0)),0)","v":1},7.45,"Condensor Fan  296.9759.51",{"$f":"IFERROR(INDEX(INDIRECT(\"'\"&A11&\"'!$18:$50\"),MATCH($X$1,INDIRECT(\"'\"&A11&\"'!$A$18:$A$50\"),0),MATCH(Parts!$B11,INDIRECT(\"'\"&A11&\"'!$10:$10\"),0)),0)","v":1},31.73,null,{"$f":"IFERROR(INDEX(INDIRECT(\"'\"&A11&\"'!$18:$50\"),MATCH($AA$1,INDIRECT(\"'\"&A11&\"'!$A$18:$A$50\"),0),MATCH(Parts!$B11,INDIRECT(\"'\"&A11&\"'!$10:$10\"),0)),0)","v":0},null,null,{"$f":"IFERROR(INDEX(INDIRECT(\"'\"&A11&\"'!$18:$50\"),MATCH($AD$1,INDIRECT(\"'\"&A11&\"'!$A$18:$A$50\"),0),MATCH(Parts!$B11,INDIRECT(\"'\"&A11&\"'!$10:$10\"),0)),0)","v":0},null,null,{"$f":"IFERROR(INDEX(INDIRECT(\"'\"&A11&\"'!$18:$50\"),MATCH($AG$1,INDIRECT(\"'\"&A11&\"'!$A$18:$A$50\"),0),MATCH(Parts!$B11,INDIRECT(\"'\"&A11&\"'!$10:$10\"),0)),0)","v":0},null,null,{"$f":"IFERROR(INDEX(INDIRECT(\"'\"&A11&\"'!$18:$50\"),MATCH($AJ$1,INDIRECT(\"'\"&A11&\"'!$A$18:$A$50\"),0),MATCH(Parts!$B11,INDIRECT(\"'\"&A11&\"'!$10:$10\"),0)),0)","v":0},null,"On/Off Switch   296.9823.04",{"$f":"IFERROR(INDEX(INDIRECT(\"'\"&A11&\"'!$18:$50\"),MATCH($AM$1,INDIRECT(\"'\"&A11&\"'!$A$18:$A$50\"),0),MATCH(Parts!$B11,INDIRECT(\"'\"&A11&\"'!$10:$10\"),0)),0)","v":1},3.69,null,{"$f":"IFERROR(INDEX(INDIRECT(\"'\"&A11&\"'!$18:$50\"),MATCH($AP$1,INDIRECT(\"'\"&A11&\"'!$A$18:$A$50\"),0),MATCH(Parts!$B11,INDIRECT(\"'\"&A11&\"'!$10:$10\"),0)),0)","v":0},null,null,{"$f":"IFERROR(INDEX(INDIRECT(\"'\"&A11&\"'!$18:$50\"),MATCH($AS$1,INDIRECT(\"'\"&A11&\"'!$A$18:$A$50\"),0),MATCH(Parts!$B11,INDIRECT(\"'\"&A11&\"'!$10:$10\"),0)),0)","v":0},null,null,{"$f":"IFERROR(INDEX(INDIRECT(\"'\"&A11&\"'!$18:$50\"),MATCH($AV$1,INDIRECT(\"'\"&A11&\"'!$A$18:$A$50\"),0),MATCH(Parts!$B11,INDIRECT(\"'\"&A11&\"'!$10:$10\"),0)),0)","v":0},null,"Starting relay, 296.9706.08 ",{"$f":"IFERROR(INDEX(INDIRECT(\"'\"&A11&\"'!$18:$50\"),MATCH($AY$1,INDIRECT(\"'\"&A11&\"'!$A$18:$A$50\"),0),MATCH(Parts!$B11,INDIRECT(\"'\"&A11&\"'!$10:$10\"),0)),0)","v":1},5.19,"Start Capacitor   296.9706.10",{"$f":"IFERROR(INDEX(INDIRECT(\"'\"&A11&\"'!$18:$50\"),MATCH($BB$1,INDIRECT(\"'\"&A11&\"'!$A$18:$A$50\"),0),MATCH(Parts!$B11,INDIRECT(\"'\"&A11&\"'!$10:$10\"),0)),0)","v":1},11.14,null,{"$f":"IFERROR(INDEX(INDIRECT(\"'\"&A11&\"'!$18:$50\"),MATCH($BE$1,INDIRECT(\"'\"&A11&\"'!$A$18:$A$50\"),0),MATCH(Parts!$B11,INDIRECT(\"'\"&A11&\"'!$10:$10\"),0)),0)","v":0},null,"Drier   296.0945.04",{"$f":"IFERROR(INDEX(INDIRECT(\"'\"&A11&\"'!$18:$50\"),MATCH($BH$1,INDIRECT(\"'\"&A11&\"'!$A$18:$A$50\"),0),MATCH(Parts!$B11,INDIRECT(\"'\"&A11&\"'!$10:$10\"),0)),0)","v":1},2.0699999999999998,null,{"$f":"IFERROR(INDEX(INDIRECT(\"'\"&A11&\"'!$18:$50\"),MATCH($BK$1,INDIRECT(\"'\"&A11&\"'!$A$18:$A$50\"),0),MATCH(Parts!$B11,INDIRECT(\"'\"&A11&\"'!$10:$10\"),0)),0)","v":0},null,null,{"$f":"IFERROR(INDEX(INDIRECT(\"'\"&A11&\"'!$18:$50\"),MATCH($BN$1,INDIRECT(\"'\"&A11&\"'!$A$18:$A$50\"),0),MATCH(Parts!$B11,INDIRECT(\"'\"&A11&\"'!$10:$10\"),0)),0)","v":0},null,"Hinge Upper  205.7981.01 - 2.77\nHinge Bottom  205.6952.29 - 3.5",{"$f":"IFERROR(INDEX(INDIRECT(\"'\"&A11&\"'!$18:$50\"),MATCH($BQ$1,INDIRECT(\"'\"&A11&\"'!$A$18:$A$50\"),0),MATCH(Parts!$B11,INDIRECT(\"'\"&A11&\"'!$10:$10\"),0)),0)","v":2},{"$f":"AVERAGE(2.77,3.5)","v":3.1349999999999998},"Hinge Cover",{"$f":"IFERROR(INDEX(INDIRECT(\"'\"&A11&\"'!$18:$50\"),MATCH($BT$1,INDIRECT(\"'\"&A11&\"'!$A$18:$A$50\"),0),MATCH(Parts!$B11,INDIRECT(\"'\"&A11&\"'!$10:$10\"),0)),0)","v":1},0.75,null,{"$f":"IFERROR(INDEX(INDIRECT(\"'\"&A11&\"'!$18:$50\"),MATCH($BW$1,INDIRECT(\"'\"&A11&\"'!$A$18:$A$50\"),0),MATCH(Parts!$B11,INDIRECT(\"'\"&A11&\"'!$10:$10\"),0)),0)","v":0},null,null,{"$f":"IFERROR(INDEX(INDIRECT(\"'\"&A11&\"'!$18:$50\"),MATCH($BZ$1,INDIRECT(\"'\"&A11&\"'!$A$18:$A$50\"),0),MATCH(Parts!$B11,INDIRECT(\"'\"&A11&\"'!$10:$10\"),0)),0)","v":0},null,"Ice Pack 0,6L   292.8508.01",{"$f":"IFERROR(INDEX(INDIRECT(\"'\"&A11&\"'!$18:$50\"),MATCH($CC$1,INDIRECT(\"'\"&A11&\"'!$A$18:$A$50\"),0),MATCH(Parts!$B11,INDIRECT(\"'\"&A11&\"'!$10:$10\"),0)),0)","v":1},1.1100000000000001,"Handle   296.9614.22",{"$f":"IFERROR(INDEX(INDIRECT(\"'\"&A11&\"'!$18:$50\"),MATCH($CF$1,INDIRECT(\"'\"&A11&\"'!$A$18:$A$50\"),0),MATCH(Parts!$B11,INDIRECT(\"'\"&A11&\"'!$10:$10\"),0)),0)","v":1},27.58,null,{"$f":"IFERROR(INDEX(INDIRECT(\"'\"&A11&\"'!$18:$50\"),MATCH($CI$1,INDIRECT(\"'\"&A11&\"'!$A$18:$A$50\"),0),MATCH(Parts!$B11,INDIRECT(\"'\"&A11&\"'!$10:$10\"),0)),0)","v":0},null,null,{"$f":"IFERROR(INDEX(INDIRECT(\"'\"&A11&\"'!$18:$50\"),MATCH($CL$1,INDIRECT(\"'\"&A11&\"'!$A$18:$A$50\"),0),MATCH(Parts!$B11,INDIRECT(\"'\"&A11&\"'!$10:$10\"),0)),0)","v":0},null,null,{"$f":"IFERROR(INDEX(INDIRECT(\"'\"&A11&\"'!$18:$50\"),MATCH($CO$1,INDIRECT(\"'\"&A11&\"'!$A$18:$A$50\"),0),MATCH(Parts!$B11,INDIRECT(\"'\"&A11&\"'!$10:$10\"),0)),0)","v":0},null,null,{"$f":"IFERROR(INDEX(INDIRECT(\"'\"&A11&\"'!$18:$50\"),MATCH($CR$1,INDIRECT(\"'\"&A11&\"'!$A$18:$A$50\"),0),MATCH(Parts!$B11,INDIRECT(\"'\"&A11&\"'!$10:$10\"),0)),0)","v":0},null,null,{"$f":"IFERROR(INDEX(INDIRECT(\"'\"&A11&\"'!$18:$50\"),MATCH($CU$1,INDIRECT(\"'\"&A11&\"'!$A$18:$A$50\"),0),MATCH(Parts!$B11,INDIRECT(\"'\"&A11&\"'!$10:$10\"),0)),0)","v":0},null,null,{"$f":"IFERROR(INDEX(INDIRECT(\"'\"&A11&\"'!$18:$50\"),MATCH($CX$1,INDIRECT(\"'\"&A11&\"'!$A$18:$A$50\"),0),MATCH(Parts!$B11,INDIRECT(\"'\"&A11&\"'!$10:$10\"),0)),0)","v":0},null,null,{"$f":"IFERROR(INDEX(INDIRECT(\"'\"&A11&\"'!$18:$50\"),MATCH($DA$1,INDIRECT(\"'\"&A11&\"'!$A$18:$A$50\"),0),MATCH(Parts!$B11,INDIRECT(\"'\"&A11&\"'!$10:$10\"),0)),0)","v":0},null,null,{"$f":"IFERROR(INDEX(INDIRECT(\"'\"&A11&\"'!$18:$50\"),MATCH($DD$1,INDIRECT(\"'\"&A11&\"'!$A$18:$A$50\"),0),MATCH(Parts!$B11,INDIRECT(\"'\"&A11&\"'!$10:$10\"),0)),0)","v":0},null,null,{"$f":"IFERROR(INDEX(INDIRECT(\"'\"&A11&\"'!$18:$50\"),MATCH($DG$1,INDIRECT(\"'\"&A11&\"'!$A$18:$A$50\"),0),MATCH(Parts!$B11,INDIRECT(\"'\"&A11&\"'!$10:$10\"),0)),0)","v":0},null,null,{"$f":"IFERROR(INDEX(INDIRECT(\"'\"&A11&\"'!$18:$50\"),MATCH($DJ$1,INDIRECT(\"'\"&A11&\"'!$A$18:$A$50\"),0),MATCH(Parts!$B11,INDIRECT(\"'\"&A11&\"'!$10:$10\"),0)),0)","v":0},null,null,{"$f":"IFERROR(INDEX(INDIRECT(\"'\"&A11&\"'!$18:$50\"),MATCH($DM$1,INDIRECT(\"'\"&A11&\"'!$A$18:$A$50\"),0),MATCH(Parts!$B11,INDIRECT(\"'\"&A11&\"'!$10:$10\"),0)),0)","v":0},null,null,{"$f":"IFERROR(INDEX(INDIRECT(\"'\"&A11&\"'!$18:$50\"),MATCH($DP$1,INDIRECT(\"'\"&A11&\"'!$A$18:$A$50\"),0),MATCH(Parts!$B11,INDIRECT(\"'\"&A11&\"'!$10:$10\"),0)),0)","v":0},null,null,{"$f":"IFERROR(INDEX(INDIRECT(\"'\"&A11&\"'!$18:$50\"),MATCH($DS$1,INDIRECT(\"'\"&A11&\"'!$A$18:$A$50\"),0),MATCH(Parts!$B11,INDIRECT(\"'\"&A11&\"'!$10:$10\"),0)),0)","v":0},null,null,{"$f":"IFERROR(INDEX(INDIRECT(\"'\"&A11&\"'!$18:$50\"),MATCH($DV$1,INDIRECT(\"'\"&A11&\"'!$A$18:$A$50\"),0),MATCH(Parts!$B11,INDIRECT(\"'\"&A11&\"'!$10:$10\"),0)),0)","v":0},null,null,{"$f":"IFERROR(INDEX(INDIRECT(\"'\"&A11&\"'!$18:$50\"),MATCH($DY$1,INDIRECT(\"'\"&A11&\"'!$A$18:$A$50\"),0),MATCH(Parts!$B11,INDIRECT(\"'\"&A11&\"'!$10:$10\"),0)),0)","v":0},null,null,{"$f":"IFERROR(INDEX(INDIRECT(\"'\"&A11&\"'!$18:$50\"),MATCH($EB$1,INDIRECT(\"'\"&A11&\"'!$A$18:$A$50\"),0),MATCH(Parts!$B11,INDIRECT(\"'\"&A11&\"'!$10:$10\"),0)),0)","v":0},null,null,{"$f":"IFERROR(INDEX(INDIRECT(\"'\"&A11&\"'!$18:$50\"),MATCH($EE$1,INDIRECT(\"'\"&A11&\"'!$A$18:$A$50\"),0),MATCH(Parts!$B11,INDIRECT(\"'\"&A11&\"'!$10:$10\"),0)),0)","v":0},null,null,{"$f":"IFERROR(INDEX(INDIRECT(\"'\"&A11&\"'!$18:$50\"),MATCH($EH$1,INDIRECT(\"'\"&A11&\"'!$A$18:$A$50\"),0),MATCH(Parts!$B11,INDIRECT(\"'\"&A11&\"'!$10:$10\"),0)),0)","v":0},null,null,{"$f":"IFERROR(INDEX(INDIRECT(\"'\"&A11&\"'!$18:$50\"),MATCH($EK$1,INDIRECT(\"'\"&A11&\"'!$A$18:$A$50\"),0),MATCH(Parts!$B11,INDIRECT(\"'\"&A11&\"'!$10:$10\"),0)),0)","v":0}]
[{"$f":"PQS!A14","v":"Freezer"},"E003/060",{"$f":"PQS!E14","v":"DW-25W147*"},{"$f":"PQS!P14","v":"$"},218.96000000000004,"NL6.1FT（Secop ）",{"$f":"IFERROR(INDEX(INDIRECT(\"'\"&A12&\"'!$18:$50\"),MATCH(Parts!F$1,INDIRECT(\"'\"&A12&\"'!$A$18:$A$50\"),0),MATCH(Parts!$B12,INDIRECT(\"'\"&A12&\"'!$10:$10\"),0)),0)","v":1},137.4,"THERMOSTAT（CAREL）",{"$f":"IFERROR(INDEX(INDIRECT(\"'\"&A12&\"'!$18:$50\"),MATCH($I$1,INDIRECT(\"'\"&A12&\"'!$A$18:$A$50\"),0),MATCH(Parts!$B12,INDIRECT(\"'\"&A12&\"'!$10:$10\"),0)),0)","v":1},51.49,null,{"$f":"IFERROR(INDEX(INDIRECT(\"'\"&A12&\"'!$18:$50\"),MATCH($L$1,INDIRECT(\"'\"&A12&\"'!$A$18:$A$50\"),0),MATCH(Parts!$B12,INDIRECT(\"'\"&A12&\"'!$10:$10\"),0)),0)","v":0},null,null,{"$f":"IFERROR(INDEX(INDIRECT(\"'\"&A12&\"'!$18:$50\"),MATCH($O$1,INDIRECT(\"'\"&A12&\"'!$A$18:$A$50\"),0),MATCH(Parts!$B12,INDIRECT(\"'\"&A12&\"'!$10:$10\"),0)),0)","v":0},null,"Bundled in the thermostat",{"$f":"IFERROR(INDEX(INDIRECT(\"'\"&A12&\"'!$18:$50\"),MATCH($R$1,INDIRECT(\"'\"&A12&\"'!$A$18:$A$50\"),0),MATCH(Parts!$B12,INDIRECT(\"'\"&A12&\"'!$10:$10\"),0)),0)","v":0},null,"Bundled in the thermostat",{"$f":"IFERROR(INDEX(INDIRECT(\"'\"&A12&\"'!$18:$50\"),MATCH($U$1,INDIRECT(\"'\"&A12&\"'!$A$18:$A$50\"),0),MATCH(Parts!$B12,INDIRECT(\"'\"&A12&\"'!$10:$10\"),0)),0)","v":0},null,"condensate fan",{"$f":"IFERROR(INDEX(INDIRECT(\"'\"&A12&\"'!$18:$50\"),MATCH($X$1,INDIRECT(\"'\"&A12&\"'!$A$18:$A$50\"),0),MATCH(Parts!$B12,INDIRECT(\"'\"&A12&\"'!$10:$10\"),0)),0)","v":1},12.4,"coil pipe condenser",{"$f":"IFERROR(INDEX(INDIRECT(\"'\"&A12&\"'!$18:$50\"),MATCH($AA$1,INDIRECT(\"'\"&A12&\"'!$A$18:$A$50\"),0),MATCH(Parts!$B12,INDIRECT(\"'\"&A12&\"'!$10:$10\"),0)),0)","v":1},5.5,"dipping plastic coating steel wire",{"$f":"IFERROR(INDEX(INDIRECT(\"'\"&A12&\"'!$18:$50\"),MATCH($AD$1,INDIRECT(\"'\"&A12&\"'!$A$18:$A$50\"),0),MATCH(Parts!$B12,INDIRECT(\"'\"&A12&\"'!$10:$10\"),0)),0)","v":1},1.9,"coiled tube type",{"$f":"IFERROR(INDEX(INDIRECT(\"'\"&A12&\"'!$18:$50\"),MATCH($AG$1,INDIRECT(\"'\"&A12&\"'!$A$18:$A$50\"),0),MATCH(Parts!$B12,INDIRECT(\"'\"&A12&\"'!$10:$10\"),0)),0)","v":1},8.1999999999999993,null,{"$f":"IFERROR(INDEX(INDIRECT(\"'\"&A12&\"'!$18:$50\"),MATCH($AJ$1,INDIRECT(\"'\"&A12&\"'!$A$18:$A$50\"),0),MATCH(Parts!$B12,INDIRECT(\"'\"&A12&\"'!$10:$10\"),0)),0)","v":0},null,"rocker switch",{"$f":"IFERROR(INDEX(INDIRECT(\"'\"&A12&\"'!$18:$50\"),MATCH($AM$1,INDIRECT(\"'\"&A12&\"'!$A$18:$A$50\"),0),MATCH(Parts!$B12,INDIRECT(\"'\"&A12&\"'!$10:$10\"),0)),0)","v":1},0.55000000000000004,null,{"$f":"IFERROR(INDEX(INDIRECT(\"'\"&A12&\"'!$18:$50\"),MATCH($AP$1,INDIRECT(\"'\"&A12&\"'!$A$18:$A$50\"),0),MATCH(Parts!$B12,INDIRECT(\"'\"&A12&\"'!$10:$10\"),0)),0)","v":0},null,null,{"$f":"IFERROR(INDEX(INDIRECT(\"'\"&A12&\"'!$18:$50\"),MATCH($AS$1,INDIRECT(\"'\"&A12&\"'!$A$18:$A$50\"),0),MATCH(Parts!$B12,INDIRECT(\"'\"&A12&\"'!$10:$10\"),0)),0)","v":0},null,null,{"$f":"IFERROR(INDEX(INDIRECT(\"'\"&A12&\"'!$18:$50\"),MATCH($AV$1,INDIRECT(\"'\"&A12&\"'!$A$18:$A$50\"),0),MATCH(Parts!$B12,INDIRECT(\"'\"&A12&\"'!$10:$10\"),0)),0)","v":0},null,null,{"$f":"IFERROR(INDEX(INDIRECT(\"'\"&A12&\"'!$18:$50\"),MATCH($AY$1,INDIRECT(\"'\"&A12&\"'!$A$18:$A$50\"),0),MATCH(Parts!$B12,INDIRECT(\"'\"&A12&\"'!$10:$10\"),0)),0)","v":0},null,null,{"$f":"IFERROR(INDEX(INDIRECT(\"'\"&A12&\"'!$18:$50\"),MATCH($BB$1,INDIRECT(\"'\"&A12&\"'!$A$18:$A$50\"),0),MATCH(Parts!$B12,INDIRECT(\"'\"&A12&\"'!$10:$10\"),0)),0)","v":0},null,null,{"$f":"IFERROR(INDEX(INDIRECT(\"'\"&A12&\"'!$18:$50\"),MATCH($BE$1,INDIRECT(\"'\"&A12&\"'!$A$18:$A$50\"),0),MATCH(Parts!$B12,INDIRECT(\"'\"&A12&\"'!$10:$10\"),0)),0)","v":0},null,"Dry filter φ2.3,φ6.2,R134a",{"$f":"IFERROR(INDEX(INDIRECT(\"'\"&A12&\"'!$18:$50\"),MATCH($BH$1,INDIRECT(\"'\"&A12&\"'!$A$18:$A$50\"),0),MATCH(Parts!$B12,INDIRECT(\"'\"&A12&\"'!$10:$10\"),0)),0)","v":1},1.52,null,{"$f":"IFERROR(INDEX(INDIRECT(\"'\"&A12&\"'!$18:$50\"),MATCH($BK$1,INDIRECT(\"'\"&A12&\"'!$A$18:$A$50\"),0),MATCH(Parts!$B12,INDIRECT(\"'\"&A12&\"'!$10:$10\"),0)),0)","v":0},null,null,{"$f":"IFERROR(INDEX(INDIRECT(\"'\"&A12&\"'!$18:$50\"),MATCH($BN$1,INDIRECT(\"'\"&A12&\"'!$A$18:$A$50\"),0),MATCH(Parts!$B12,INDIRECT(\"'\"&A12&\"'!$10:$10\"),0)),0)","v":0},null,null,{"$f":"IFERROR(INDEX(INDIRECT(\"'\"&A12&\"'!$18:$50\"),MATCH($BQ$1,INDIRECT(\"'\"&A12&\"'!$A$18:$A$50\"),0),MATCH(Parts!$B12,INDIRECT(\"'\"&A12&\"'!$10:$10\"),0)),0)","v":0},null,null,{"$f":"IFERROR(INDEX(INDIRECT(\"'\"&A12&\"'!$18:$50\"),MATCH($BT$1,INDIRECT(\"'\"&A12&\"'!$A$18:$A$50\"),0),MATCH(Parts!$B12,INDIRECT(\"'\"&A12&\"'!$10:$10\"),0)),0)","v":0},null,null,{"$f":"IFERROR(INDEX(INDIRECT(\"'\"&A12&\"'!$18:$50\"),MATCH($BW$1,INDIRECT(\"'\"&A12&\"'!$A$18:$A$50\"),0),MATCH(Parts!$B12,INDIRECT(\"'\"&A12&\"'!$10:$10\"),0)),0)","v":0},null,null,{"$f":"IFERROR(INDEX(INDIRECT(\"'\"&A12&\"'!$18:$50\"),MATCH($BZ$1,INDIRECT(\"'\"&A12&\"'!$A$18:$A$50\"),0),MATCH(Parts!$B12,INDIRECT(\"'\"&A12&\"'!$10:$10\"),0)),0)","v":0},null,null,{"$f":"IFERROR(INDEX(INDIRECT(\"'\"&A12&\"'!$18:$50\"),MATCH($CC$1,INDIRECT(\"'\"&A12&\"'!$A$18:$A$50\"),0),MATCH(Parts!$B12,INDIRECT(\"'\"&A12&\"'!$10:$10\"),0)),0)","v":0},null,null,{"$f":"IFERROR(INDEX(INDIRECT(\"'\"&A12&\"'!$18:$50\"),MATCH($CF$1,INDIRECT(\"'\"&A12&\"'!$A$18:$A$50\"),0),MATCH(Parts!$B12,INDIRECT(\"'\"&A12&\"'!$10:$10\"),0)),0)","v":0},null,null,{"$f":"IFERROR(INDEX(INDIRECT(\"'\"&A12&\"'!$18:$50\"),MATCH($CI$1,INDIRECT(\"'\"&A12&\"'!$A$18:$A$50\"),0),MATCH(Parts!$B12,INDIRECT(\"'\"&A12&\"'!$10:$10\"),0)),0)","v":0},null,null,{"$f":"IFERROR(INDEX(INDIRECT(\"'\"&A12&\"'!$18:$50\"),MATCH($CL$1,INDIRECT(\"'\"&A12&\"'!$A$18:$A$50\"),0),MATCH(Parts!$B12,INDIRECT(\"'\"&A12&\"'!$10:$10\"),0)),0)","v":0},null,null,{"$f":"IFERROR(INDEX(INDIRECT(\"'\"&A12&\"'!$18:$50\"),MATCH($CO$1,INDIRECT(\"'\"&A12&\"'!$A$18:$A$50\"),0),MATCH(Parts!$B12,INDIRECT(\"'\"&A12&\"'!$10:$10\"),0)),0)","v":0},null,null,{"$f":"IFERROR(INDEX(INDIRECT(\"'\"&A12&\"'!$18:$50\"),MATCH($CR$1,INDIRECT(\"'\"&A12&\"'!$A$18:$A$50\"),0),MATCH(Parts!$B12,INDIRECT(\"'\"&A12&\"'!$10:$10\"),0)),0)","v":0},null,null,{"$f":"IFERROR(INDEX(INDIRECT(\"'\"&A12&\"'!$18:$50\"),MATCH($CU$1,INDIRECT(\"'\"&A12&\"'!$A$18:$A$50\"),0),MATCH(Parts!$B12,INDIRECT(\"'\"&A12&\"'!$10:$10\"),0)),0)","v":0},null,null,{"$f":"IFERROR(INDEX(INDIRECT(\"'\"&A12&\"'!$18:$50\"),MATCH($CX$1,INDIRECT(\"'\"&A12&\"'!$A$18:$A$50\"),0),MATCH(Parts!$B12,INDIRECT(\"'\"&A12&\"'!$10:$10\"),0)),0)","v":0},null,null,{"$f":"IFERROR(INDEX(INDIRECT(\"'\"&A12&\"'!$18:$50\"),MATCH($DA$1,INDIRECT(\"'\"&A12&\"'!$A$18:$A$50\"),0),MATCH(Parts!$B12,INDIRECT(\"'\"&A12&\"'!$10:$10\"),0)),0)","v":0},null,null,{"$f":"IFERROR(INDEX(INDIRECT(\"'\"&A12&\"'!$18:$50\"),MATCH($DD$1,INDIRECT(\"'\"&A12&\"'!$A$18:$A$50\"),0),MATCH(Parts!$B12,INDIRECT(\"'\"&A12&\"'!$10:$10\"),0)),0)","v":0},null,null,{"$f":"IFERROR(INDEX(INDIRECT(\"'\"&A12&\"'!$18:$50\"),MATCH($DG$1,INDIRECT(\"'\"&A12&\"'!$A$18:$A$50\"),0),MATCH(Parts!$B12,INDIRECT(\"'\"&A12&\"'!$10:$10\"),0)),0)","v":0},null,null,{"$f":"IFERROR(INDEX(INDIRECT(\"'\"&A12&\"'!$18:$50\"),MATCH($DJ$1,INDIRECT(\"'\"&A12&\"'!$A$18:$A$50\"),0),MATCH(Parts!$B12,INDIRECT(\"'\"&A12&\"'!$10:$10\"),0)),0)","v":0},null,null,{"$f":"IFERROR(INDEX(INDIRECT(\"'\"&A12&\"'!$18:$50\"),MATCH($DM$1,INDIRECT(\"'\"&A12&\"'!$A$18:$A$50\"),0),MATCH(Parts!$B12,INDIRECT(\"'\"&A12&\"'!$10:$10\"),0)),0)","v":0},null,null,{"$f":"IFERROR(INDEX(INDIRECT(\"'\"&A12&\"'!$18:$50\"),MATCH($DP$1,INDIRECT(\"'\"&A12&\"'!$A$18:$A$50\"),0),MATCH(Parts!$B12,INDIRECT(\"'\"&A12&\"'!$10:$10\"),0)),0)","v":0},null,null,{"$f":"IFERROR(INDEX(INDIRECT(\"'\"&A12&\"'!$18:$50\"),MATCH($DS$1,INDIRECT(\"'\"&A12&\"'!$A$18:$A$50\"),0),MATCH(Parts!$B12,INDIRECT(\"'\"&A12&\"'!$10:$10\"),0)),0)","v":0},null,null,{"$f":"IFERROR(INDEX(INDIRECT(\"'\"&A12&\"'!$18:$50\"),MATCH($DV$1,INDIRECT(\"'\"&A12&\"'!$A$18:$A$50\"),0),MATCH(Parts!$B12,INDIRECT(\"'\"&A12&\"'!$10:$10\"),0)),0)","v":0},null,null,{"$f":"IFERROR(INDEX(INDIRECT(\"'\"&A12&\"'!$18:$50\"),MATCH($DY$1,INDIRECT(\"'\"&A12&\"'!$A$18:$A$50\"),0),MATCH(Parts!$B12,INDIRECT(\"'\"&A12&\"'!$10:$10\"),0)),0)","v":0},null,null,{"$f":"IFERROR(INDEX(INDIRECT(\"'\"&A12&\"'!$18:$50\"),MATCH($EB$1,INDIRECT(\"'\"&A12&\"'!$A$18:$A$50\"),0),MATCH(Parts!$B12,INDIRECT(\"'\"&A12&\"'!$10:$10\"),0)),0)","v":0},null,null,{"$f":"IFERROR(INDEX(INDIRECT(\"'\"&A12&\"'!$18:$50\"),MATCH($EE$1,INDIRECT(\"'\"&A12&\"'!$A$18:$A$50\"),0),MATCH(Parts!$B12,INDIRECT(\"'\"&A12&\"'!$10:$10\"),0)),0)","v":0},null,null,{"$f":"IFERROR(INDEX(INDIRECT(\"'\"&A12&\"'!$18:$50\"),MATCH($EH$1,INDIRECT(\"'\"&A12&\"'!$A$18:$A$50\"),0),MATCH(Parts!$B12,INDIRECT(\"'\"&A12&\"'!$10:$10\"),0)),0)","v":0},null,null,{"$f":"IFERROR(INDEX(INDIRECT(\"'\"&A12&\"'!$18:$50\"),MATCH($EK$1,INDIRECT(\"'\"&A12&\"'!$A$18:$A$50\"),0),MATCH(Parts!$B12,INDIRECT(\"'\"&A12&\"'!$10:$10\"),0)),0)","v":0}]
[{"$f":"PQS!A15","v":"Freezer"},"E003/061",{"$f":"PQS!E15","v":"DW-25W300*"},{"$f":"PQS!P15","v":"$"},387.34999999999997,"NL7FT（Secop ）",{"$f":"IFERROR(INDEX(INDIRECT(\"'\"&A13&\"'!$18:$50\"),MATCH(Parts!F$1,INDIRECT(\"'\"&A13&\"'!$A$18:$A$50\"),0),MATCH(Parts!$B13,INDIRECT(\"'\"&A13&\"'!$10:$10\"),0)),0)","v":1},150.49,"THERMOSTAT（CAREL）",{"$f":"IFERROR(INDEX(INDIRECT(\"'\"&A13&\"'!$18:$50\"),MATCH($I$1,INDIRECT(\"'\"&A13&\"'!$A$18:$A$50\"),0),MATCH(Parts!$B13,INDIRECT(\"'\"&A13&\"'!$10:$10\"),0)),0)","v":1},51.49,null,{"$f":"IFERROR(INDEX(INDIRECT(\"'\"&A13&\"'!$18:$50\"),MATCH($L$1,INDIRECT(\"'\"&A13&\"'!$A$18:$A$50\"),0),MATCH(Parts!$B13,INDIRECT(\"'\"&A13&\"'!$10:$10\"),0)),0)","v":0},null,null,{"$f":"IFERROR(INDEX(INDIRECT(\"'\"&A13&\"'!$18:$50\"),MATCH($O$1,INDIRECT(\"'\"&A13&\"'!$A$18:$A$50\"),0),MATCH(Parts!$B13,INDIRECT(\"'\"&A13&\"'!$10:$10\"),0)),0)","v":0},null,"Bundled in the thermostat",{"$f":"IFERROR(INDEX(INDIRECT(\"'\"&A13&\"'!$18:$50\"),MATCH($R$1,INDIRECT(\"'\"&A13&\"'!$A$18:$A$50\"),0),MATCH(Parts!$B13,INDIRECT(\"'\"&A13&\"'!$10:$10\"),0)),0)","v":0},null,"Bundled in the thermostat",{"$f":"IFERROR(INDEX(INDIRECT(\"'\"&A13&\"'!$18:$50\"),MATCH($U$1,INDIRECT(\"'\"&A13&\"'!$A$18:$A$50\"),0),MATCH(Parts!$B13,INDIRECT(\"'\"&A13&\"'!$10:$10\"),0)),0)","v":0},null,"condensate fan",{"$f":"IFERROR(INDEX(INDIRECT(\"'\"&A13&\"'!$18:$50\"),MATCH($X$1,INDIRECT(\"'\"&A13&\"'!$A$18:$A$50\"),0),MATCH(Parts!$B13,INDIRECT(\"'\"&A13&\"'!$10:$10\"),0)),0)","v":1},17.100000000000001,"wire and tube condenser",{"$f":"IFERROR(INDEX(INDIRECT(\"'\"&A13&\"'!$18:$50\"),MATCH($AA$1,INDIRECT(\"'\"&A13&\"'!$A$18:$A$50\"),0),MATCH(Parts!$B13,INDIRECT(\"'\"&A13&\"'!$10:$10\"),0)),0)","v":1},13,"dipping plastic coating steel wire",{"$f":"IFERROR(INDEX(INDIRECT(\"'\"&A13&\"'!$18:$50\"),MATCH($AD$1,INDIRECT(\"'\"&A13&\"'!$A$18:$A$50\"),0),MATCH(Parts!$B13,INDIRECT(\"'\"&A13&\"'!$10:$10\"),0)),0)","v":1},2.2000000000000002,"coiled tube type",{"$f":"IFERROR(INDEX(INDIRECT(\"'\"&A13&\"'!$18:$50\"),MATCH($AG$1,INDIRECT(\"'\"&A13&\"'!$A$18:$A$50\"),0),MATCH(Parts!$B13,INDIRECT(\"'\"&A13&\"'!$10:$10\"),0)),0)","v":1},151,null,{"$f":"IFERROR(INDEX(INDIRECT(\"'\"&A13&\"'!$18:$50\"),MATCH($AJ$1,INDIRECT(\"'\"&A13&\"'!$A$18:$A$50\"),0),MATCH(Parts!$B13,INDIRECT(\"'\"&A13&\"'!$10:$10\"),0)),0)","v":0},null,"rocker switch",{"$f":"IFERROR(INDEX(INDIRECT(\"'\"&A13&\"'!$18:$50\"),MATCH($AM$1,INDIRECT(\"'\"&A13&\"'!$A$18:$A$50\"),0),MATCH(Parts!$B13,INDIRECT(\"'\"&A13&\"'!$10:$10\"),0)),0)","v":1},0.55000000000000004,null,{"$f":"IFERROR(INDEX(INDIRECT(\"'\"&A13&\"'!$18:$50\"),MATCH($AP$1,INDIRECT(\"'\"&A13&\"'!$A$18:$A$50\"),0),MATCH(Parts!$B13,INDIRECT(\"'\"&A13&\"'!$10:$10\"),0)),0)","v":0},null,null,{"$f":"IFERROR(INDEX(INDIRECT(\"'\"&A13&\"'!$18:$50\"),MATCH($AS$1,INDIRECT(\"'\"&A13&\"'!$A$18:$A$50\"),0),MATCH(Parts!$B13,INDIRECT(\"'\"&A13&\"'!$10:$10\"),0)),0)","v":0},null,null,{"$f":"IFERROR(INDEX(INDIRECT(\"'\"&A13&\"'!$18:$50\"),MATCH($AV$1,INDIRECT(\"'\"&A13&\"'!$A$18:$A$50\"),0),MATCH(Parts!$B13,INDIRECT(\"'\"&A13&\"'!$10:$10\"),0)),0)","v":0},null,null,{"$f":"IFERROR(INDEX(INDIRECT(\"'\"&A13&\"'!$18:$50\"),MATCH($AY$1,INDIRECT(\"'\"&A13&\"'!$A$18:$A$50\"),0),MATCH(Parts!$B13,INDIRECT(\"'\"&A13&\"'!$10:$10\"),0)),0)","v":0},null,null,{"$f":"IFERROR(INDEX(INDIRECT(\"'\"&A13&\"'!$18:$50\"),MATCH($BB$1,INDIRECT(\"'\"&A13&\"'!$A$18:$A$50\"),0),MATCH(Parts!$B13,INDIRECT(\"'\"&A13&\"'!$10:$10\"),0)),0)","v":0},null,null,{"$f":"IFERROR(INDEX(INDIRECT(\"'\"&A13&\"'!$18:$50\"),MATCH($BE$1,INDIRECT(\"'\"&A13&\"'!$A$18:$A$50\"),0),MATCH(Parts!$B13,INDIRECT(\"'\"&A13&\"'!$10:$10\"),0)),0)","v":0},null,"Dry filter φ2.3,φ6.2,R134a",{"$f":"IFERROR(INDEX(INDIRECT(\"'\"&A13&\"'!$18:$50\"),MATCH($BH$1,INDIRECT(\"'\"&A13&\"'!$A$18:$A$50\"),0),MATCH(Parts!$B13,INDIRECT(\"'\"&A13&\"'!$10:$10\"),0)),0)","v":1},1.52,null,{"$f":"IFERROR(INDEX(INDIRECT(\"'\"&A13&\"'!$18:$50\"),MATCH($BK$1,INDIRECT(\"'\"&A13&\"'!$A$18:$A$50\"),0),MATCH(Parts!$B13,INDIRECT(\"'\"&A13&\"'!$10:$10\"),0)),0)","v":0},null,null,{"$f":"IFERROR(INDEX(INDIRECT(\"'\"&A13&\"'!$18:$50\"),MATCH($BN$1,INDIRECT(\"'\"&A13&\"'!$A$18:$A$50\"),0),MATCH(Parts!$B13,INDIRECT(\"'\"&A13&\"'!$10:$10\"),0)),0)","v":0},null,null,{"$f":"IFERROR(INDEX(INDIRECT(\"'\"&A13&\"'!$18:$50\"),MATCH($BQ$1,INDIRECT(\"'\"&A13&\"'!$A$18:$A$50\"),0),MATCH(Parts!$B13,INDIRECT(\"'\"&A13&\"'!$10:$10\"),0)),0)","v":0},null,null,{"$f":"IFERROR(INDEX(INDIRECT(\"'\"&A13&\"'!$18:$50\"),MATCH($BT$1,INDIRECT(\"'\"&A13&\"'!$A$18:$A$50\"),0),MATCH(Parts!$B13,INDIRECT(\"'\"&A13&\"'!$10:$10\"),0)),0)","v":0},null,null,{"$f":"IFERROR(INDEX(INDIRECT(\"'\"&A13&\"'!$18:$50\"),MATCH($BW$1,INDIRECT(\"'\"&A13&\"'!$A$18:$A$50\"),0),MATCH(Parts!$B13,INDIRECT(\"'\"&A13&\"'!$10:$10\"),0)),0)","v":0},null,null,{"$f":"IFERROR(INDEX(INDIRECT(\"'\"&A13&\"'!$18:$50\"),MATCH($BZ$1,INDIRECT(\"'\"&A13&\"'!$A$18:$A$50\"),0),MATCH(Parts!$B13,INDIRECT(\"'\"&A13&\"'!$10:$10\"),0)),0)","v":0},null,null,{"$f":"IFERROR(INDEX(INDIRECT(\"'\"&A13&\"'!$18:$50\"),MATCH($CC$1,INDIRECT(\"'\"&A13&\"'!$A$18:$A$50\"),0),MATCH(Parts!$B13,INDIRECT(\"'\"&A13&\"'!$10:$10\"),0)),0)","v":0},null,null,{"$f":"IFERROR(INDEX(INDIRECT(\"'\"&A13&\"'!$18:$50\"),MATCH($CF$1,INDIRECT(\"'\"&A13&\"'!$A$18:$A$50\"),0),MATCH(Parts!$B13,INDIRECT(\"'\"&A13&\"'!$10:$10\"),0)),0)","v":0},null,null,{"$f":"IFERROR(INDEX(INDIRECT(\"'\"&A13&\"'!$18:$50\"),MATCH($CI$1,INDIRECT(\"'\"&A13&\"'!$A$18:$A$50\"),0),MATCH(Parts!$B13,INDIRECT(\"'\"&A13&\"'!$10:$10\"),0)),0)","v":0},null,null,{"$f":"IFERROR(INDEX(INDIRECT(\"'\"&A13&\"'!$18:$50\"),MATCH($CL$1,INDIRECT(\"'\"&A13&\"'!$A$18:$A$50\"),0),MATCH(Parts!$B13,INDIRECT(\"'\"&A13&\"'!$10:$10\"),0)),0)","v":0},null,null,{"$f":"IFERROR(INDEX(INDIRECT(\"'\"&A13&\"'!$18:$50\"),MATCH($CO$1,INDIRECT(\"'\"&A13&\"'!$A$18:$A$50\"),0),MATCH(Parts!$B13,INDIRECT(\"'\"&A13&\"'!$10:$10\"),0)),0)","v":0},null,null,{"$f":"IFERROR(INDEX(INDIRECT(\"'\"&A13&\"'!$18:$50\"),MATCH($CR$1,INDIRECT(\"'\"&A13&\"'!$A$18:$A$50\"),0),MATCH(Parts!$B13,INDIRECT(\"'\"&A13&\"'!$10:$10\"),0)),0)","v":0},null,null,{"$f":"IFERROR(INDEX(INDIRECT(\"'\"&A13&\"'!$18:$50\"),MATCH($CU$1,INDIRECT(\"'\"&A13&\"'!$A$18:$A$50\"),0),MATCH(Parts!$B13,INDIRECT(\"'\"&A13&\"'!$10:$10\"),0)),0)","v":0},null,null,{"$f":"IFERROR(INDEX(INDIRECT(\"'\"&A13&\"'!$18:$50\"),MATCH($CX$1,INDIRECT(\"'\"&A13&\"'!$A$18:$A$50\"),0),MATCH(Parts!$B13,INDIRECT(\"'\"&A13&\"'!$10:$10\"),0)),0)","v":0},null,null,{"$f":"IFERROR(INDEX(INDIRECT(\"'\"&A13&\"'!$18:$50\"),MATCH($DA$1,INDIRECT(\"'\"&A13&\"'!$A$18:$A$50\"),0),MATCH(Parts!$B13,INDIRECT(\"'\"&A13&\"'!$10:$10\"),0)),0)","v":0},null,null,{"$f":"IFERROR(INDEX(INDIRECT(\"'\"&A13&\"'!$18:$50\"),MATCH($DD$1,INDIRECT(\"'\"&A13&\"'!$A$18:$A$50\"),0),MATCH(Parts!$B13,INDIRECT(\"'\"&A13&\"'!$10:$10\"),0)),0)","v":0},null,null,{"$f":"IFERROR(INDEX(INDIRECT(\"'\"&A13&\"'!$18:$50\"),MATCH($DG$1,INDIRECT(\"'\"&A13&\"'!$A$18:$A$50\"),0),MATCH(Parts!$B13,INDIRECT(\"'\"&A13&\"'!$10:$10\"),0)),0)","v":0},null,null,{"$f":"IFERROR(INDEX(INDIRECT(\"'\"&A13&\"'!$18:$50\"),MATCH($DJ$1,INDIRECT(\"'\"&A13&\"'!$A$18:$A$50\"),0),MATCH(Parts!$B13,INDIRECT(\"'\"&A13&\"'!$10:$10\"),0)),0)","v":0},null,null,{"$f":"IFERROR(INDEX(INDIRECT(\"'\"&A13&\"'!$18:$50\"),MATCH($DM$1,INDIRECT(\"'\"&A13&\"'!$A$18:$A$50\"),0),MATCH(Parts!$B13,INDIRECT(\"'\"&A13&\"'!$10:$10\"),0)),0)","v":0},null,null,{"$f":"IFERROR(INDEX(INDIRECT(\"'\"&A13&\"'!$18:$50\"),MATCH($DP$1,INDIRECT(\"'\"&A13&\"'!$A$18:$A$50\"),0),MATCH(Parts!$B13,INDIRECT(\"'\"&A13&\"'!$10:$10\"),0)),0)","v":0},null,null,{"$f":"IFERROR(INDEX(INDIRECT(\"'\"&A13&\"'!$18:$50\"),MATCH($DS$1,INDIRECT(\"'\"&A13&\"'!$A$18:$A$50\"),0),MATCH(Parts!$B13,INDIRECT(\"'\"&A13&\"'!$10:$10\"),0)),0)","v":0},null,null,{"$f":"IFERROR(INDEX(INDIRECT(\"'\"&A13&\"'!$18:$50\"),MATCH($DV$1,INDIRECT(\"'\"&A13&\"'!$A$18:$A$50\"),0),MATCH(Parts!$B13,INDIRECT(\"'\"&A13&\"'!$10:$10\"),0)),0)","v":0},null,null,{"$f":"IFERROR(INDEX(INDIRECT(\"'\"&A13&\"'!$18:$50\"),MATCH($DY$1,INDIRECT(\"'\"&A13&\"'!$A$18:$A$50\"),0),MATCH(Parts!$B13,INDIRECT(\"'\"&A13&\"'!$10:$10\"),0)),0)","v":0},null,null,{"$f":"IFERROR(INDEX(INDIRECT(\"'\"&A13&\"'!$18:$50\"),MATCH($EB$1,INDIRECT(\"'\"&A13&\"'!$A$18:$A$50\"),0),MATCH(Parts!$B13,INDIRECT(\"'\"&A13&\"'!$10:$10\"),0)),0)","v":0},null,null,{"$f":"IFERROR(INDEX(INDIRECT(\"'\"&A13&\"'!$18:$50\"),MATCH($EE$1,INDIRECT(\"'\"&A13&\"'!$A$18:$A$50\"),0),MATCH(Parts!$B13,INDIRECT(\"'\"&A13&\"'!$10:$10\"),0)),0)","v":0},null,null,{"$f":"IFERROR(INDEX(INDIRECT(\"'\"&A13&\"'!$18:$50\"),MATCH($EH$1,INDIRECT(\"'\"&A13&\"'!$A$18:$A$50\"),0),MATCH(Parts!$B13,INDIRECT(\"'\"&A13&\"'!$10:$10\"),0)),0)","v":0},null,null,{"$f":"IFERROR(INDEX(INDIRECT(\"'\"&A13&\"'!$18:$50\"),MATCH($EK$1,INDIRECT(\"'\"&A13&\"'!$A$18:$A$50\"),0),MATCH(Parts!$B13,INDIRECT(\"'\"&A13&\"'!$10:$10\"),0)),0)","v":0}]
[{"$f":"PQS!A16","v":"Freezer"},"E003/071",{"$f":"PQS!E16","v":"TFW 3000 AC*"},{"$f":"PQS!P16","v":"€"},610.15000000000009,"Compressor: 296.9701.72",{"$f":"IFERROR(INDEX(INDIRECT(\"'\"&A14&\"'!$18:$50\"),MATCH(Parts!F$1,INDIRECT(\"'\"&A14&\"'!$A$18:$A$50\"),0),MATCH(Parts!$B14,INDIRECT(\"'\"&A14&\"'!$10:$10\"),0)),0)","v":1},179.09,null,{"$f":"IFERROR(INDEX(INDIRECT(\"'\"&A14&\"'!$18:$50\"),MATCH($I$1,INDIRECT(\"'\"&A14&\"'!$A$18:$A$50\"),0),MATCH(Parts!$B14,INDIRECT(\"'\"&A14&\"'!$10:$10\"),0)),0)","v":0},null,"Controller board: 296.9769.95",{"$f":"IFERROR(INDEX(INDIRECT(\"'\"&A14&\"'!$18:$50\"),MATCH($L$1,INDIRECT(\"'\"&A14&\"'!$A$18:$A$50\"),0),MATCH(Parts!$B14,INDIRECT(\"'\"&A14&\"'!$10:$10\"),0)),0)","v":1},139.09,null,{"$f":"IFERROR(INDEX(INDIRECT(\"'\"&A14&\"'!$18:$50\"),MATCH($O$1,INDIRECT(\"'\"&A14&\"'!$A$18:$A$50\"),0),MATCH(Parts!$B14,INDIRECT(\"'\"&A14&\"'!$10:$10\"),0)),0)","v":0},null,null,{"$f":"IFERROR(INDEX(INDIRECT(\"'\"&A14&\"'!$18:$50\"),MATCH($R$1,INDIRECT(\"'\"&A14&\"'!$A$18:$A$50\"),0),MATCH(Parts!$B14,INDIRECT(\"'\"&A14&\"'!$10:$10\"),0)),0)","v":0},null,null,{"$f":"IFERROR(INDEX(INDIRECT(\"'\"&A14&\"'!$18:$50\"),MATCH($U$1,INDIRECT(\"'\"&A14&\"'!$A$18:$A$50\"),0),MATCH(Parts!$B14,INDIRECT(\"'\"&A14&\"'!$10:$10\"),0)),0)","v":0},null,"Fan compressor: 296.9759.51: 31,67 €",{"$f":"IFERROR(INDEX(INDIRECT(\"'\"&A14&\"'!$18:$50\"),MATCH($X$1,INDIRECT(\"'\"&A14&\"'!$A$18:$A$50\"),0),MATCH(Parts!$B14,INDIRECT(\"'\"&A14&\"'!$10:$10\"),0)),0)","v":1},31.67,null,{"$f":"IFERROR(INDEX(INDIRECT(\"'\"&A14&\"'!$18:$50\"),MATCH($AA$1,INDIRECT(\"'\"&A14&\"'!$A$18:$A$50\"),0),MATCH(Parts!$B14,INDIRECT(\"'\"&A14&\"'!$10:$10\"),0)),0)","v":0},null,null,{"$f":"IFERROR(INDEX(INDIRECT(\"'\"&A14&\"'!$18:$50\"),MATCH($AD$1,INDIRECT(\"'\"&A14&\"'!$A$18:$A$50\"),0),MATCH(Parts!$B14,INDIRECT(\"'\"&A14&\"'!$10:$10\"),0)),0)","v":0},null,null,{"$f":"IFERROR(INDEX(INDIRECT(\"'\"&A14&\"'!$18:$50\"),MATCH($AG$1,INDIRECT(\"'\"&A14&\"'!$A$18:$A$50\"),0),MATCH(Parts!$B14,INDIRECT(\"'\"&A14&\"'!$10:$10\"),0)),0)","v":0},null,"Switch power supply: 294.2943.75: 87,03 €",{"$f":"IFERROR(INDEX(INDIRECT(\"'\"&A14&\"'!$18:$50\"),MATCH($AJ$1,INDIRECT(\"'\"&A14&\"'!$A$18:$A$50\"),0),MATCH(Parts!$B14,INDIRECT(\"'\"&A14&\"'!$10:$10\"),0)),0)","v":1},87.03,"Main switch: 292.2044.20: 7,67 €",{"$f":"IFERROR(INDEX(INDIRECT(\"'\"&A14&\"'!$18:$50\"),MATCH($AM$1,INDIRECT(\"'\"&A14&\"'!$A$18:$A$50\"),0),MATCH(Parts!$B14,INDIRECT(\"'\"&A14&\"'!$10:$10\"),0)),0)","v":1},7.67,"292.2904.15",{"$f":"IFERROR(INDEX(INDIRECT(\"'\"&A14&\"'!$18:$50\"),MATCH($AP$1,INDIRECT(\"'\"&A14&\"'!$A$18:$A$50\"),0),MATCH(Parts!$B14,INDIRECT(\"'\"&A14&\"'!$10:$10\"),0)),0)","v":1},55.85,"Basket  292.9427.48",{"$f":"IFERROR(INDEX(INDIRECT(\"'\"&A14&\"'!$18:$50\"),MATCH($AS$1,INDIRECT(\"'\"&A14&\"'!$A$18:$A$50\"),0),MATCH(Parts!$B14,INDIRECT(\"'\"&A14&\"'!$10:$10\"),0)),0)","v":1},15.24,null,{"$f":"IFERROR(INDEX(INDIRECT(\"'\"&A14&\"'!$18:$50\"),MATCH($AV$1,INDIRECT(\"'\"&A14&\"'!$A$18:$A$50\"),0),MATCH(Parts!$B14,INDIRECT(\"'\"&A14&\"'!$10:$10\"),0)),0)","v":0},null,"Start Relay  296.9706.80",{"$f":"IFERROR(INDEX(INDIRECT(\"'\"&A14&\"'!$18:$50\"),MATCH($AY$1,INDIRECT(\"'\"&A14&\"'!$A$18:$A$50\"),0),MATCH(Parts!$B14,INDIRECT(\"'\"&A14&\"'!$10:$10\"),0)),0)","v":1},6.95,"Start Capacitor",{"$f":"IFERROR(INDEX(INDIRECT(\"'\"&A14&\"'!$18:$50\"),MATCH($BB$1,INDIRECT(\"'\"&A14&\"'!$A$18:$A$50\"),0),MATCH(Parts!$B14,INDIRECT(\"'\"&A14&\"'!$10:$10\"),0)),0)","v":1},13.45,null,{"$f":"IFERROR(INDEX(INDIRECT(\"'\"&A14&\"'!$18:$50\"),MATCH($BE$1,INDIRECT(\"'\"&A14&\"'!$A$18:$A$50\"),0),MATCH(Parts!$B14,INDIRECT(\"'\"&A14&\"'!$10:$10\"),0)),0)","v":0},null,"Drier   296.0945.04",{"$f":"IFERROR(INDEX(INDIRECT(\"'\"&A14&\"'!$18:$50\"),MATCH($BH$1,INDIRECT(\"'\"&A14&\"'!$A$18:$A$50\"),0),MATCH(Parts!$B14,INDIRECT(\"'\"&A14&\"'!$10:$10\"),0)),0)","v":1},2.0699999999999998,null,{"$f":"IFERROR(INDEX(INDIRECT(\"'\"&A14&\"'!$18:$50\"),MATCH($BK$1,INDIRECT(\"'\"&A14&\"'!$A$18:$A$50\"),0),MATCH(Parts!$B14,INDIRECT(\"'\"&A14&\"'!$10:$10\"),0)),0)","v":0},null,null,{"$f":"IFERROR(INDEX(INDIRECT(\"'\"&A14&\"'!$18:$50\"),MATCH($BN$1,INDIRECT(\"'\"&A14&\"'!$A$18:$A$50\"),0),MATCH(Parts!$B14,INDIRECT(\"'\"&A14&\"'!$10:$10\"),0)),0)","v":0},null,"Outer Hinge 292.8503.30 - 7.76\nInner Hinge 292.8503.31 - 8.41",{"$f":"IFERROR(INDEX(INDIRECT(\"'\"&A14&\"'!$18:$50\"),MATCH($BQ$1,INDIRECT(\"'\"&A14&\"'!$A$18:$A$50\"),0),MATCH(Parts!$B14,INDIRECT(\"'\"&A14&\"'!$10:$10\"),0)),0)","v":2},{"$f":"AVERAGE(7.76,8.41)","v":8.0850000000000009},"Cover Hinge  296.4018.00",{"$f":"IFERROR(INDEX(INDIRECT(\"'\"&A14&\"'!$18:$50\"),MATCH($BT$1,INDIRECT(\"'\"&A14&\"'!$A$18:$A$50\"),0),MATCH(Parts!$B14,INDIRECT(\"'\"&A14&\"'!$10:$10\"),0)),0)","v":1},0.73,null,{"$f":"IFERROR(INDEX(INDIRECT(\"'\"&A14&\"'!$18:$50\"),MATCH($BW$1,INDIRECT(\"'\"&A14&\"'!$A$18:$A$50\"),0),MATCH(Parts!$B14,INDIRECT(\"'\"&A14&\"'!$10:$10\"),0)),0)","v":0},null,null,{"$f":"IFERROR(INDEX(INDIRECT(\"'\"&A14&\"'!$18:$50\"),MATCH($BZ$1,INDIRECT(\"'\"&A14&\"'!$A$18:$A$50\"),0),MATCH(Parts!$B14,INDIRECT(\"'\"&A14&\"'!$10:$10\"),0)),0)","v":0},null,"Ice Pack 0,6L   292.8508.01",{"$f":"IFERROR(INDEX(INDIRECT(\"'\"&A14&\"'!$18:$50\"),MATCH($CC$1,INDIRECT(\"'\"&A14&\"'!$A$18:$A$50\"),0),MATCH(Parts!$B14,INDIRECT(\"'\"&A14&\"'!$10:$10\"),0)),0)","v":1},1.1100000000000001,null,{"$f":"IFERROR(INDEX(INDIRECT(\"'\"&A14&\"'!$18:$50\"),MATCH($CF$1,INDIRECT(\"'\"&A14&\"'!$A$18:$A$50\"),0),MATCH(Parts!$B14,INDIRECT(\"'\"&A14&\"'!$10:$10\"),0)),0)","v":0},null,null,{"$f":"IFERROR(INDEX(INDIRECT(\"'\"&A14&\"'!$18:$50\"),MATCH($CI$1,INDIRECT(\"'\"&A14&\"'!$A$18:$A$50\"),0),MATCH(Parts!$B14,INDIRECT(\"'\"&A14&\"'!$10:$10\"),0)),0)","v":0},null,null,{"$f":"IFERROR(INDEX(INDIRECT(\"'\"&A14&\"'!$18:$50\"),MATCH($CL$1,INDIRECT(\"'\"&A14&\"'!$A$18:$A$50\"),0),MATCH(Parts!$B14,INDIRECT(\"'\"&A14&\"'!$10:$10\"),0)),0)","v":0},null,null,{"$f":"IFERROR(INDEX(INDIRECT(\"'\"&A14&\"'!$18:$50\"),MATCH($CO$1,INDIRECT(\"'\"&A14&\"'!$A$18:$A$50\"),0),MATCH(Parts!$B14,INDIRECT(\"'\"&A14&\"'!$10:$10\"),0)),0)","v":0},null,null,{"$f":"IFERROR(INDEX(INDIRECT(\"'\"&A14&\"'!$18:$50\"),MATCH($CR$1,INDIRECT(\"'\"&A14&\"'!$A$18:$A$50\"),0),MATCH(Parts!$B14,INDIRECT(\"'\"&A14&\"'!$10:$10\"),0)),0)","v":0},null,null,{"$f":"IFERROR(INDEX(INDIRECT(\"'\"&A14&\"'!$18:$50\"),MATCH($CU$1,INDIRECT(\"'\"&A14&\"'!$A$18:$A$50\"),0),MATCH(Parts!$B14,INDIRECT(\"'\"&A14&\"'!$10:$10\"),0)),0)","v":0},null,null,{"$f":"IFERROR(INDEX(INDIRECT(\"'\"&A14&\"'!$18:$50\"),MATCH($CX$1,INDIRECT(\"'\"&A14&\"'!$A$18:$A$50\"),0),MATCH(Parts!$B14,INDIRECT(\"'\"&A14&\"'!$10:$10\"),0)),0)","v":0},null,null,{"$f":"IFERROR(INDEX(INDIRECT(\"'\"&A14&\"'!$18:$50\"),MATCH($DA$1,INDIRECT(\"'\"&A14&\"'!$A$18:$A$50\"),0),MATCH(Parts!$B14,INDIRECT(\"'\"&A14&\"'!$10:$10\"),0)),0)","v":0},null,null,{"$f":"IFERROR(INDEX(INDIRECT(\"'\"&A14&\"'!$18:$50\"),MATCH($DD$1,INDIRECT(\"'\"&A14&\"'!$A$18:$A$50\"),0),MATCH(Parts!$B14,INDIRECT(\"'\"&A14&\"'!$10:$10\"),0)),0)","v":0},null,null,{"$f":"IFERROR(INDEX(INDIRECT(\"'\"&A14&\"'!$18:$50\"),MATCH($DG$1,INDIRECT(\"'\"&A14&\"'!$A$18:$A$50\"),0),MATCH(Parts!$B14,INDIRECT(\"'\"&A14&\"'!$10:$10\"),0)),0)","v":0},null,null,{"$f":"IFERROR(INDEX(INDIRECT(\"'\"&A14&\"'!$18:$50\"),MATCH($DJ$1,INDIRECT(\"'\"&A14&\"'!$A$18:$A$50\"),0),MATCH(Parts!$B14,INDIRECT(\"'\"&A14&\"'!$10:$10\"),0)),0)","v":0},null,null,{"$f":"IFERROR(INDEX(INDIRECT(\"'\"&A14&\"'!$18:$50\"),MATCH($DM$1,INDIRECT(\"'\"&A14&\"'!$A$18:$A$50\"),0),MATCH(Parts!$B14,INDIRECT(\"'\"&A14&\"'!$10:$10\"),0)),0)","v":0},null,null,{"$f":"IFERROR(INDEX(INDIRECT(\"'\"&A14&\"'!$18:$50\"),MATCH($DP$1,INDIRECT(\"'\"&A14&\"'!$A$18:$A$50\"),0),MATCH(Parts!$B14,INDIRECT(\"'\"&A14&\"'!$10:$10\"),0)),0)","v":0},null,null,{"$f":"IFERROR(INDEX(INDIRECT(\"'\"&A14&\"'!$18:$50\"),MATCH($DS$1,INDIRECT(\"'\"&A14&\"'!$A$18:$A$50\"),0),MATCH(Parts!$B14,INDIRECT(\"'\"&A14&\"'!$10:$10\"),0)),0)","v":0},null,"Sensor cooler: 296.9804.48",{"$f":"IFERROR(INDEX(INDIRECT(\"'\"&A14&\"'!$18:$50\"),MATCH($DV$1,INDIRECT(\"'\"&A14&\"'!$A$18:$A$50\"),0),MATCH(Parts!$B14,INDIRECT(\"'\"&A14&\"'!$10:$10\"),0)),0)","v":1},15.64,null,{"$f":"IFERROR(INDEX(INDIRECT(\"'\"&A14&\"'!$18:$50\"),MATCH($DY$1,INDIRECT(\"'\"&A14&\"'!$A$18:$A$50\"),0),MATCH(Parts!$B14,INDIRECT(\"'\"&A14&\"'!$10:$10\"),0)),0)","v":0},null,null,{"$f":"IFERROR(INDEX(INDIRECT(\"'\"&A14&\"'!$18:$50\"),MATCH($EB$1,INDIRECT(\"'\"&A14&\"'!$A$18:$A$50\"),0),MATCH(Parts!$B14,INDIRECT(\"'\"&A14&\"'!$10:$10\"),0)),0)","v":0},null,"Display board: 296.9769.81",{"$f":"IFERROR(INDEX(INDIRECT(\"'\"&A14&\"'!$18:$50\"),MATCH($EE$1,INDIRECT(\"'\"&A14&\"'!$A$18:$A$50\"),0),MATCH(Parts!$B14,INDIRECT(\"'\"&A14&\"'!$10:$10\"),0)),0)","v":1},38.39,null,{"$f":"IFERROR(INDEX(INDIRECT(\"'\"&A14&\"'!$18:$50\"),MATCH($EH$1,INDIRECT(\"'\"&A14&\"'!$A$18:$A$50\"),0),MATCH(Parts!$B14,INDIRECT(\"'\"&A14&\"'!$10:$10\"),0)),0)","v":0},null,null,{"$f":"IFERROR(INDEX(INDIRECT(\"'\"&A14&\"'!$18:$50\"),MATCH($EK$1,INDIRECT(\"'\"&A14&\"'!$A$18:$A$50\"),0),MATCH(Parts!$B14,INDIRECT(\"'\"&A14&\"'!$10:$10\"),0)),0)","v":0}]
[{"$f":"PQS!A17","v":"Freezer"},"E003/073",{"$f":"PQS!E17","v":"TFW 40 SDD*"},{"$f":"PQS!P17","v":"€"},633.99999999999989,"Compressor: 296.9702.09",{"$f":"IFERROR(INDEX(INDIRECT(\"'\"&A15&\"'!$18:$50\"),MATCH(Parts!F$1,INDIRECT(\"'\"&A15&\"'!$A$18:$A$50\"),0),MATCH(Parts!$B15,INDIRECT(\"'\"&A15&\"'!$10:$10\"),0)),0)","v":1},116.2,null,{"$f":"IFERROR(INDEX(INDIRECT(\"'\"&A15&\"'!$18:$50\"),MATCH($I$1,INDIRECT(\"'\"&A15&\"'!$A$18:$A$50\"),0),MATCH(Parts!$B15,INDIRECT(\"'\"&A15&\"'!$10:$10\"),0)),0)","v":0},null,"Controller board: 296.9769.92: 141,97 €",{"$f":"IFERROR(INDEX(INDIRECT(\"'\"&A15&\"'!$18:$50\"),MATCH($L$1,INDIRECT(\"'\"&A15&\"'!$A$18:$A$50\"),0),MATCH(Parts!$B15,INDIRECT(\"'\"&A15&\"'!$10:$10\"),0)),0)","v":0},141.97,null,{"$f":"IFERROR(INDEX(INDIRECT(\"'\"&A15&\"'!$18:$50\"),MATCH($O$1,INDIRECT(\"'\"&A15&\"'!$A$18:$A$50\"),0),MATCH(Parts!$B15,INDIRECT(\"'\"&A15&\"'!$10:$10\"),0)),0)","v":0},null,"Control Panel: 296.9769.82",{"$f":"IFERROR(INDEX(INDIRECT(\"'\"&A15&\"'!$18:$50\"),MATCH($R$1,INDIRECT(\"'\"&A15&\"'!$A$18:$A$50\"),0),MATCH(Parts!$B15,INDIRECT(\"'\"&A15&\"'!$10:$10\"),0)),0)","v":1},107.21,"Sensor: 296.9804.76",{"$f":"IFERROR(INDEX(INDIRECT(\"'\"&A15&\"'!$18:$50\"),MATCH($U$1,INDIRECT(\"'\"&A15&\"'!$A$18:$A$50\"),0),MATCH(Parts!$B15,INDIRECT(\"'\"&A15&\"'!$10:$10\"),0)),0)","v":1},16.309999999999999,"Fan Condensor: 292.9960.06",{"$f":"IFERROR(INDEX(INDIRECT(\"'\"&A15&\"'!$18:$50\"),MATCH($X$1,INDIRECT(\"'\"&A15&\"'!$A$18:$A$50\"),0),MATCH(Parts!$B15,INDIRECT(\"'\"&A15&\"'!$10:$10\"),0)),0)","v":1},66.069999999999993,null,{"$f":"IFERROR(INDEX(INDIRECT(\"'\"&A15&\"'!$18:$50\"),MATCH($AA$1,INDIRECT(\"'\"&A15&\"'!$A$18:$A$50\"),0),MATCH(Parts!$B15,INDIRECT(\"'\"&A15&\"'!$10:$10\"),0)),0)","v":0},null,null,{"$f":"IFERROR(INDEX(INDIRECT(\"'\"&A15&\"'!$18:$50\"),MATCH($AD$1,INDIRECT(\"'\"&A15&\"'!$A$18:$A$50\"),0),MATCH(Parts!$B15,INDIRECT(\"'\"&A15&\"'!$10:$10\"),0)),0)","v":0},null,null,{"$f":"IFERROR(INDEX(INDIRECT(\"'\"&A15&\"'!$18:$50\"),MATCH($AG$1,INDIRECT(\"'\"&A15&\"'!$A$18:$A$50\"),0),MATCH(Parts!$B15,INDIRECT(\"'\"&A15&\"'!$10:$10\"),0)),0)","v":0},null,"E-Box 296.9705.24",{"$f":"IFERROR(INDEX(INDIRECT(\"'\"&A15&\"'!$18:$50\"),MATCH($AJ$1,INDIRECT(\"'\"&A15&\"'!$A$18:$A$50\"),0),MATCH(Parts!$B15,INDIRECT(\"'\"&A15&\"'!$10:$10\"),0)),0)","v":1},128.79,"Main switch: 292.2044.11",{"$f":"IFERROR(INDEX(INDIRECT(\"'\"&A15&\"'!$18:$50\"),MATCH($AM$1,INDIRECT(\"'\"&A15&\"'!$A$18:$A$50\"),0),MATCH(Parts!$B15,INDIRECT(\"'\"&A15&\"'!$10:$10\"),0)),0)","v":1},2.76,null,{"$f":"IFERROR(INDEX(INDIRECT(\"'\"&A15&\"'!$18:$50\"),MATCH($AP$1,INDIRECT(\"'\"&A15&\"'!$A$18:$A$50\"),0),MATCH(Parts!$B15,INDIRECT(\"'\"&A15&\"'!$10:$10\"),0)),0)","v":0},null,"Basket: 292.8580.23",{"$f":"IFERROR(INDEX(INDIRECT(\"'\"&A15&\"'!$18:$50\"),MATCH($AS$1,INDIRECT(\"'\"&A15&\"'!$A$18:$A$50\"),0),MATCH(Parts!$B15,INDIRECT(\"'\"&A15&\"'!$10:$10\"),0)),0)","v":1},15,null,{"$f":"IFERROR(INDEX(INDIRECT(\"'\"&A15&\"'!$18:$50\"),MATCH($AV$1,INDIRECT(\"'\"&A15&\"'!$A$18:$A$50\"),0),MATCH(Parts!$B15,INDIRECT(\"'\"&A15&\"'!$10:$10\"),0)),0)","v":0},null,null,{"$f":"IFERROR(INDEX(INDIRECT(\"'\"&A15&\"'!$18:$50\"),MATCH($AY$1,INDIRECT(\"'\"&A15&\"'!$A$18:$A$50\"),0),MATCH(Parts!$B15,INDIRECT(\"'\"&A15&\"'!$10:$10\"),0)),0)","v":0},null,null,{"$f":"IFERROR(INDEX(INDIRECT(\"'\"&A15&\"'!$18:$50\"),MATCH($BB$1,INDIRECT(\"'\"&A15&\"'!$A$18:$A$50\"),0),MATCH(Parts!$B15,INDIRECT(\"'\"&A15&\"'!$10:$10\"),0)),0)","v":0},null,null,{"$f":"IFERROR(INDEX(INDIRECT(\"'\"&A15&\"'!$18:$50\"),MATCH($BE$1,INDIRECT(\"'\"&A15&\"'!$A$18:$A$50\"),0),MATCH(Parts!$B15,INDIRECT(\"'\"&A15&\"'!$10:$10\"),0)),0)","v":0},null,"Drier   296.0945.04",{"$f":"IFERROR(INDEX(INDIRECT(\"'\"&A15&\"'!$18:$50\"),MATCH($BH$1,INDIRECT(\"'\"&A15&\"'!$A$18:$A$50\"),0),MATCH(Parts!$B15,INDIRECT(\"'\"&A15&\"'!$10:$10\"),0)),0)","v":1},2.0699999999999998,"Fuse 15A  296.9243.15",{"$f":"IFERROR(INDEX(INDIRECT(\"'\"&A15&\"'!$18:$50\"),MATCH($BK$1,INDIRECT(\"'\"&A15&\"'!$A$18:$A$50\"),0),MATCH(Parts!$B15,INDIRECT(\"'\"&A15&\"'!$10:$10\"),0)),0)","v":1},0.19,null,{"$f":"IFERROR(INDEX(INDIRECT(\"'\"&A15&\"'!$18:$50\"),MATCH($BN$1,INDIRECT(\"'\"&A15&\"'!$A$18:$A$50\"),0),MATCH(Parts!$B15,INDIRECT(\"'\"&A15&\"'!$10:$10\"),0)),0)","v":0},null,"Outer Hinge  292.8503.30",{"$f":"IFERROR(INDEX(INDIRECT(\"'\"&A15&\"'!$18:$50\"),MATCH($BQ$1,INDIRECT(\"'\"&A15&\"'!$A$18:$A$50\"),0),MATCH(Parts!$B15,INDIRECT(\"'\"&A15&\"'!$10:$10\"),0)),0)","v":1},7.76,"Cover Hinge  296.4018.00",{"$f":"IFERROR(INDEX(INDIRECT(\"'\"&A15&\"'!$18:$50\"),MATCH($BT$1,INDIRECT(\"'\"&A15&\"'!$A$18:$A$50\"),0),MATCH(Parts!$B15,INDIRECT(\"'\"&A15&\"'!$10:$10\"),0)),0)","v":1},0.73,null,{"$f":"IFERROR(INDEX(INDIRECT(\"'\"&A15&\"'!$18:$50\"),MATCH($BW$1,INDIRECT(\"'\"&A15&\"'!$A$18:$A$50\"),0),MATCH(Parts!$B15,INDIRECT(\"'\"&A15&\"'!$10:$10\"),0)),0)","v":0},null,null,{"$f":"IFERROR(INDEX(INDIRECT(\"'\"&A15&\"'!$18:$50\"),MATCH($BZ$1,INDIRECT(\"'\"&A15&\"'!$A$18:$A$50\"),0),MATCH(Parts!$B15,INDIRECT(\"'\"&A15&\"'!$10:$10\"),0)),0)","v":0},null,"Ice Pack  292.8580.24",{"$f":"IFERROR(INDEX(INDIRECT(\"'\"&A15&\"'!$18:$50\"),MATCH($CC$1,INDIRECT(\"'\"&A15&\"'!$A$18:$A$50\"),0),MATCH(Parts!$B15,INDIRECT(\"'\"&A15&\"'!$10:$10\"),0)),0)","v":1},54.55,null,{"$f":"IFERROR(INDEX(INDIRECT(\"'\"&A15&\"'!$18:$50\"),MATCH($CF$1,INDIRECT(\"'\"&A15&\"'!$A$18:$A$50\"),0),MATCH(Parts!$B15,INDIRECT(\"'\"&A15&\"'!$10:$10\"),0)),0)","v":0},null,null,{"$f":"IFERROR(INDEX(INDIRECT(\"'\"&A15&\"'!$18:$50\"),MATCH($CI$1,INDIRECT(\"'\"&A15&\"'!$A$18:$A$50\"),0),MATCH(Parts!$B15,INDIRECT(\"'\"&A15&\"'!$10:$10\"),0)),0)","v":0},null,null,{"$f":"IFERROR(INDEX(INDIRECT(\"'\"&A15&\"'!$18:$50\"),MATCH($CL$1,INDIRECT(\"'\"&A15&\"'!$A$18:$A$50\"),0),MATCH(Parts!$B15,INDIRECT(\"'\"&A15&\"'!$10:$10\"),0)),0)","v":0},null,null,{"$f":"IFERROR(INDEX(INDIRECT(\"'\"&A15&\"'!$18:$50\"),MATCH($CO$1,INDIRECT(\"'\"&A15&\"'!$A$18:$A$50\"),0),MATCH(Parts!$B15,INDIRECT(\"'\"&A15&\"'!$10:$10\"),0)),0)","v":0},null,null,{"$f":"IFERROR(INDEX(INDIRECT(\"'\"&A15&\"'!$18:$50\"),MATCH($CR$1,INDIRECT(\"'\"&A15&\"'!$A$18:$A$50\"),0),MATCH(Parts!$B15,INDIRECT(\"'\"&A15&\"'!$10:$10\"),0)),0)","v":0},null,null,{"$f":"IFERROR(INDEX(INDIRECT(\"'\"&A15&\"'!$18:$50\"),MATCH($CU$1,INDIRECT(\"'\"&A15&\"'!$A$18:$A$50\"),0),MATCH(Parts!$B15,INDIRECT(\"'\"&A15&\"'!$10:$10\"),0)),0)","v":0},null,null,{"$f":"IFERROR(INDEX(INDIRECT(\"'\"&A15&\"'!$18:$50\"),MATCH($CX$1,INDIRECT(\"'\"&A15&\"'!$A$18:$A$50\"),0),MATCH(Parts!$B15,INDIRECT(\"'\"&A15&\"'!$10:$10\"),0)),0)","v":0},null,null,{"$f":"IFERROR(INDEX(INDIRECT(\"'\"&A15&\"'!$18:$50\"),MATCH($DA$1,INDIRECT(\"'\"&A15&\"'!$A$18:$A$50\"),0),MATCH(Parts!$B15,INDIRECT(\"'\"&A15&\"'!$10:$10\"),0)),0)","v":0},null,null,{"$f":"IFERROR(INDEX(INDIRECT(\"'\"&A15&\"'!$18:$50\"),MATCH($DD$1,INDIRECT(\"'\"&A15&\"'!$A$18:$A$50\"),0),MATCH(Parts!$B15,INDIRECT(\"'\"&A15&\"'!$10:$10\"),0)),0)","v":0},null,null,{"$f":"IFERROR(INDEX(INDIRECT(\"'\"&A15&\"'!$18:$50\"),MATCH($DG$1,INDIRECT(\"'\"&A15&\"'!$A$18:$A$50\"),0),MATCH(Parts!$B15,INDIRECT(\"'\"&A15&\"'!$10:$10\"),0)),0)","v":0},null,null,{"$f":"IFERROR(INDEX(INDIRECT(\"'\"&A15&\"'!$18:$50\"),MATCH($DJ$1,INDIRECT(\"'\"&A15&\"'!$A$18:$A$50\"),0),MATCH(Parts!$B15,INDIRECT(\"'\"&A15&\"'!$10:$10\"),0)),0)","v":0},null,null,{"$f":"IFERROR(INDEX(INDIRECT(\"'\"&A15&\"'!$18:$50\"),MATCH($DM$1,INDIRECT(\"'\"&A15&\"'!$A$18:$A$50\"),0),MATCH(Parts!$B15,INDIRECT(\"'\"&A15&\"'!$10:$10\"),0)),0)","v":0},null,null,{"$f":"IFERROR(INDEX(INDIRECT(\"'\"&A15&\"'!$18:$50\"),MATCH($DP$1,INDIRECT(\"'\"&A15&\"'!$A$18:$A$50\"),0),MATCH(Parts!$B15,INDIRECT(\"'\"&A15&\"'!$10:$10\"),0)),0)","v":0},null,"SDD Controller  296.9769.77",{"$f":"IFERROR(INDEX(INDIRECT(\"'\"&A15&\"'!$18:$50\"),MATCH($DS$1,INDIRECT(\"'\"&A15&\"'!$A$18:$A$50\"),0),MATCH(Parts!$B15,INDIRECT(\"'\"&A15&\"'!$10:$10\"),0)),0)","v":1},77.97,"Sensor cooler: 296.9804.48: 15,64 €",{"$f":"IFERROR(INDEX(INDIRECT(\"'\"&A15&\"'!$18:$50\"),MATCH($DV$1,INDIRECT(\"'\"&A15&\"'!$A$18:$A$50\"),0),MATCH(Parts!$B15,INDIRECT(\"'\"&A15&\"'!$10:$10\"),0)),0)","v":0},15.64,null,{"$f":"IFERROR(INDEX(INDIRECT(\"'\"&A15&\"'!$18:$50\"),MATCH($DY$1,INDIRECT(\"'\"&A15&\"'!$A$18:$A$50\"),0),MATCH(Parts!$B15,INDIRECT(\"'\"&A15&\"'!$10:$10\"),0)),0)","v":0},null,null,{"$f":"IFERROR(INDEX(INDIRECT(\"'\"&A15&\"'!$18:$50\"),MATCH($EB$1,INDIRECT(\"'\"&A15&\"'!$A$18:$A$50\"),0),MATCH(Parts!$B15,INDIRECT(\"'\"&A15&\"'!$10:$10\"),0)),0)","v":0},null,"Display board: 296.9769.81",{"$f":"IFERROR(INDEX(INDIRECT(\"'\"&A15&\"'!$18:$50\"),MATCH($EE$1,INDIRECT(\"'\"&A15&\"'!$A$18:$A$50\"),0),MATCH(Parts!$B15,INDIRECT(\"'\"&A15&\"'!$10:$10\"),0)),0)","v":1},38.39,null,{"$f":"IFERROR(INDEX(INDIRECT(\"'\"&A15&\"'!$18:$50\"),MATCH($EH$1,INDIRECT(\"'\"&A15&\"'!$A$18:$A$50\"),0),MATCH(Parts!$B15,INDIRECT(\"'\"&A15&\"'!$10:$10\"),0)),0)","v":0},null,null,{"$f":"IFERROR(INDEX(INDIRECT(\"'\"&A15&\"'!$18:$50\"),MATCH($EK$1,INDIRECT(\"'\"&A15&\"'!$A$18:$A$50\"),0),MATCH(Parts!$B15,INDIRECT(\"'\"&A15&\"'!$10:$10\"),0)),0)","v":0}]
[{"$f":"PQS!A18","v":"ILR"},"E003/005",{"$f":"PQS!E18","v":"HBC-70"},{"$f":"PQS!P18","v":"$"},184.12333333333333,"Compressor, 0070701331; 94.9 USD",{"$f":"IFERROR(INDEX(INDIRECT(\"'\"&A16&\"'!$18:$50\"),MATCH(Parts!F$1,INDIRECT(\"'\"&A16&\"'!$A$18:$A$50\"),0),MATCH(Parts!$B16,INDIRECT(\"'\"&A16&\"'!$10:$10\"),0)),0)","v":1},94.9,"Thermostat, 0074091494; 27.6 USD",{"$f":"IFERROR(INDEX(INDIRECT(\"'\"&A16&\"'!$18:$50\"),MATCH($I$1,INDIRECT(\"'\"&A16&\"'!$A$18:$A$50\"),0),MATCH(Parts!$B16,INDIRECT(\"'\"&A16&\"'!$10:$10\"),0)),0)","v":1},27.6,null,{"$f":"IFERROR(INDEX(INDIRECT(\"'\"&A16&\"'!$18:$50\"),MATCH($L$1,INDIRECT(\"'\"&A16&\"'!$A$18:$A$50\"),0),MATCH(Parts!$B16,INDIRECT(\"'\"&A16&\"'!$10:$10\"),0)),0)","v":0},null,null,{"$f":"IFERROR(INDEX(INDIRECT(\"'\"&A16&\"'!$18:$50\"),MATCH($O$1,INDIRECT(\"'\"&A16&\"'!$A$18:$A$50\"),0),MATCH(Parts!$B16,INDIRECT(\"'\"&A16&\"'!$10:$10\"),0)),0)","v":0},null,"Control panel, 0072040234: 1.55USD",{"$f":"IFERROR(INDEX(INDIRECT(\"'\"&A16&\"'!$18:$50\"),MATCH($R$1,INDIRECT(\"'\"&A16&\"'!$A$18:$A$50\"),0),MATCH(Parts!$B16,INDIRECT(\"'\"&A16&\"'!$10:$10\"),0)),0)","v":1},1.55,null,{"$f":"IFERROR(INDEX(INDIRECT(\"'\"&A16&\"'!$18:$50\"),MATCH($U$1,INDIRECT(\"'\"&A16&\"'!$A$18:$A$50\"),0),MATCH(Parts!$B16,INDIRECT(\"'\"&A16&\"'!$10:$10\"),0)),0)","v":0},null,"fan0075030020",{"$f":"IFERROR(INDEX(INDIRECT(\"'\"&A16&\"'!$18:$50\"),MATCH($X$1,INDIRECT(\"'\"&A16&\"'!$A$18:$A$50\"),0),MATCH(Parts!$B16,INDIRECT(\"'\"&A16&\"'!$10:$10\"),0)),0)","v":1},38.61,null,{"$f":"IFERROR(INDEX(INDIRECT(\"'\"&A16&\"'!$18:$50\"),MATCH($AA$1,INDIRECT(\"'\"&A16&\"'!$A$18:$A$50\"),0),MATCH(Parts!$B16,INDIRECT(\"'\"&A16&\"'!$10:$10\"),0)),0)","v":0},null,null,{"$f":"IFERROR(INDEX(INDIRECT(\"'\"&A16&\"'!$18:$50\"),MATCH($AD$1,INDIRECT(\"'\"&A16&\"'!$A$18:$A$50\"),0),MATCH(Parts!$B16,INDIRECT(\"'\"&A16&\"'!$10:$10\"),0)),0)","v":0},null,null,{"$f":"IFERROR(INDEX(INDIRECT(\"'\"&A16&\"'!$18:$50\"),MATCH($AG$1,INDIRECT(\"'\"&A16&\"'!$A$18:$A$50\"),0),MATCH(Parts!$B16,INDIRECT(\"'\"&A16&\"'!$10:$10\"),0)),0)","v":0},null,null,{"$f":"IFERROR(INDEX(INDIRECT(\"'\"&A16&\"'!$18:$50\"),MATCH($AJ$1,INDIRECT(\"'\"&A16&\"'!$A$18:$A$50\"),0),MATCH(Parts!$B16,INDIRECT(\"'\"&A16&\"'!$10:$10\"),0)),0)","v":0},null,"Switch - 0075050003",{"$f":"IFERROR(INDEX(INDIRECT(\"'\"&A16&\"'!$18:$50\"),MATCH($AM$1,INDIRECT(\"'\"&A16&\"'!$A$18:$A$50\"),0),MATCH(Parts!$B16,INDIRECT(\"'\"&A16&\"'!$10:$10\"),0)),0)","v":1},2,"BE0GL0Z1T",{"$f":"IFERROR(INDEX(INDIRECT(\"'\"&A16&\"'!$18:$50\"),MATCH($AP$1,INDIRECT(\"'\"&A16&\"'!$A$18:$A$50\"),0),MATCH(Parts!$B16,INDIRECT(\"'\"&A16&\"'!$10:$10\"),0)),0)","v":1},null,"Lower baskets, 0070107509: 2.00USD\nUpper baskets, 0070107508: 2.05USD",{"$f":"IFERROR(INDEX(INDIRECT(\"'\"&A16&\"'!$18:$50\"),MATCH($AS$1,INDIRECT(\"'\"&A16&\"'!$A$18:$A$50\"),0),MATCH(Parts!$B16,INDIRECT(\"'\"&A16&\"'!$10:$10\"),0)),0)","v":1},4.05,null,{"$f":"IFERROR(INDEX(INDIRECT(\"'\"&A16&\"'!$18:$50\"),MATCH($AV$1,INDIRECT(\"'\"&A16&\"'!$A$18:$A$50\"),0),MATCH(Parts!$B16,INDIRECT(\"'\"&A16&\"'!$10:$10\"),0)),0)","v":0},null,null,{"$f":"IFERROR(INDEX(INDIRECT(\"'\"&A16&\"'!$18:$50\"),MATCH($AY$1,INDIRECT(\"'\"&A16&\"'!$A$18:$A$50\"),0),MATCH(Parts!$B16,INDIRECT(\"'\"&A16&\"'!$10:$10\"),0)),0)","v":0},null,null,{"$f":"IFERROR(INDEX(INDIRECT(\"'\"&A16&\"'!$18:$50\"),MATCH($BB$1,INDIRECT(\"'\"&A16&\"'!$A$18:$A$50\"),0),MATCH(Parts!$B16,INDIRECT(\"'\"&A16&\"'!$10:$10\"),0)),0)","v":0},null,null,{"$f":"IFERROR(INDEX(INDIRECT(\"'\"&A16&\"'!$18:$50\"),MATCH($BE$1,INDIRECT(\"'\"&A16&\"'!$A$18:$A$50\"),0),MATCH(Parts!$B16,INDIRECT(\"'\"&A16&\"'!$10:$10\"),0)),0)","v":0},null,"Dry filter, 0074180002A: 2.00USD",{"$f":"IFERROR(INDEX(INDIRECT(\"'\"&A16&\"'!$18:$50\"),MATCH($BH$1,INDIRECT(\"'\"&A16&\"'!$A$18:$A$50\"),0),MATCH(Parts!$B16,INDIRECT(\"'\"&A16&\"'!$10:$10\"),0)),0)","v":1},2,null,{"$f":"IFERROR(INDEX(INDIRECT(\"'\"&A16&\"'!$18:$50\"),MATCH($BK$1,INDIRECT(\"'\"&A16&\"'!$A$18:$A$50\"),0),MATCH(Parts!$B16,INDIRECT(\"'\"&A16&\"'!$10:$10\"),0)),0)","v":0},null,null,{"$f":"IFERROR(INDEX(INDIRECT(\"'\"&A16&\"'!$18:$50\"),MATCH($BN$1,INDIRECT(\"'\"&A16&\"'!$A$18:$A$50\"),0),MATCH(Parts!$B16,INDIRECT(\"'\"&A16&\"'!$10:$10\"),0)),0)","v":0},null,"Hinge，0078090012A",{"$f":"IFERROR(INDEX(INDIRECT(\"'\"&A16&\"'!$18:$50\"),MATCH($BQ$1,INDIRECT(\"'\"&A16&\"'!$A$18:$A$50\"),0),MATCH(Parts!$B16,INDIRECT(\"'\"&A16&\"'!$10:$10\"),0)),0)","v":1},null,"Hinge covers Up, 0072040003\nHinge covers Down, 0072040011 ",{"$f":"IFERROR(INDEX(INDIRECT(\"'\"&A16&\"'!$18:$50\"),MATCH($BT$1,INDIRECT(\"'\"&A16&\"'!$A$18:$A$50\"),0),MATCH(Parts!$B16,INDIRECT(\"'\"&A16&\"'!$10:$10\"),0)),0)","v":1},0.21333333333333335,null,{"$f":"IFERROR(INDEX(INDIRECT(\"'\"&A16&\"'!$18:$50\"),MATCH($BW$1,INDIRECT(\"'\"&A16&\"'!$A$18:$A$50\"),0),MATCH(Parts!$B16,INDIRECT(\"'\"&A16&\"'!$10:$10\"),0)),0)","v":0},null,"Thermometer：0271400001",{"$f":"IFERROR(INDEX(INDIRECT(\"'\"&A16&\"'!$18:$50\"),MATCH($BZ$1,INDIRECT(\"'\"&A16&\"'!$A$18:$A$50\"),0),MATCH(Parts!$B16,INDIRECT(\"'\"&A16&\"'!$10:$10\"),0)),0)","v":1},3,null,{"$f":"IFERROR(INDEX(INDIRECT(\"'\"&A16&\"'!$18:$50\"),MATCH($CC$1,INDIRECT(\"'\"&A16&\"'!$A$18:$A$50\"),0),MATCH(Parts!$B16,INDIRECT(\"'\"&A16&\"'!$10:$10\"),0)),0)","v":0},null,"Handle, 0070814623: 3.70USD",{"$f":"IFERROR(INDEX(INDIRECT(\"'\"&A16&\"'!$18:$50\"),MATCH($CF$1,INDIRECT(\"'\"&A16&\"'!$A$18:$A$50\"),0),MATCH(Parts!$B16,INDIRECT(\"'\"&A16&\"'!$10:$10\"),0)),0)","v":1},3.7,"Electrical wiring 0070400252B",{"$f":"IFERROR(INDEX(INDIRECT(\"'\"&A16&\"'!$18:$50\"),MATCH($CI$1,INDIRECT(\"'\"&A16&\"'!$A$18:$A$50\"),0),MATCH(Parts!$B16,INDIRECT(\"'\"&A16&\"'!$10:$10\"),0)),0)","v":1},6.5,null,{"$f":"IFERROR(INDEX(INDIRECT(\"'\"&A16&\"'!$18:$50\"),MATCH($CL$1,INDIRECT(\"'\"&A16&\"'!$A$18:$A$50\"),0),MATCH(Parts!$B16,INDIRECT(\"'\"&A16&\"'!$10:$10\"),0)),0)","v":0},null,null,{"$f":"IFERROR(INDEX(INDIRECT(\"'\"&A16&\"'!$18:$50\"),MATCH($CO$1,INDIRECT(\"'\"&A16&\"'!$A$18:$A$50\"),0),MATCH(Parts!$B16,INDIRECT(\"'\"&A16&\"'!$10:$10\"),0)),0)","v":0},null,null,{"$f":"IFERROR(INDEX(INDIRECT(\"'\"&A16&\"'!$18:$50\"),MATCH($CR$1,INDIRECT(\"'\"&A16&\"'!$A$18:$A$50\"),0),MATCH(Parts!$B16,INDIRECT(\"'\"&A16&\"'!$10:$10\"),0)),0)","v":0},null,null,{"$f":"IFERROR(INDEX(INDIRECT(\"'\"&A16&\"'!$18:$50\"),MATCH($CU$1,INDIRECT(\"'\"&A16&\"'!$A$18:$A$50\"),0),MATCH(Parts!$B16,INDIRECT(\"'\"&A16&\"'!$10:$10\"),0)),0)","v":0},null,null,{"$f":"IFERROR(INDEX(INDIRECT(\"'\"&A16&\"'!$18:$50\"),MATCH($CX$1,INDIRECT(\"'\"&A16&\"'!$A$18:$A$50\"),0),MATCH(Parts!$B16,INDIRECT(\"'\"&A16&\"'!$10:$10\"),0)),0)","v":0},null,null,{"$f":"IFERROR(INDEX(INDIRECT(\"'\"&A16&\"'!$18:$50\"),MATCH($DA$1,INDIRECT(\"'\"&A16&\"'!$A$18:$A$50\"),0),MATCH(Parts!$B16,INDIRECT(\"'\"&A16&\"'!$10:$10\"),0)),0)","v":0},null,null,{"$f":"IFERROR(INDEX(INDIRECT(\"'\"&A16&\"'!$18:$50\"),MATCH($DD$1,INDIRECT(\"'\"&A16&\"'!$A$18:$A$50\"),0),MATCH(Parts!$B16,INDIRECT(\"'\"&A16&\"'!$10:$10\"),0)),0)","v":0},null,null,{"$f":"IFERROR(INDEX(INDIRECT(\"'\"&A16&\"'!$18:$50\"),MATCH($DG$1,INDIRECT(\"'\"&A16&\"'!$A$18:$A$50\"),0),MATCH(Parts!$B16,INDIRECT(\"'\"&A16&\"'!$10:$10\"),0)),0)","v":0},null,null,{"$f":"IFERROR(INDEX(INDIRECT(\"'\"&A16&\"'!$18:$50\"),MATCH($DJ$1,INDIRECT(\"'\"&A16&\"'!$A$18:$A$50\"),0),MATCH(Parts!$B16,INDIRECT(\"'\"&A16&\"'!$10:$10\"),0)),0)","v":0},null,null,{"$f":"IFERROR(INDEX(INDIRECT(\"'\"&A16&\"'!$18:$50\"),MATCH($DM$1,INDIRECT(\"'\"&A16&\"'!$A$18:$A$50\"),0),MATCH(Parts!$B16,INDIRECT(\"'\"&A16&\"'!$10:$10\"),0)),0)","v":0},null,null,{"$f":"IFERROR(INDEX(INDIRECT(\"'\"&A16&\"'!$18:$50\"),MATCH($DP$1,INDIRECT(\"'\"&A16&\"'!$A$18:$A$50\"),0),MATCH(Parts!$B16,INDIRECT(\"'\"&A16&\"'!$10:$10\"),0)),0)","v":0},null,null,{"$f":"IFERROR(INDEX(INDIRECT(\"'\"&A16&\"'!$18:$50\"),MATCH($DS$1,INDIRECT(\"'\"&A16&\"'!$A$18:$A$50\"),0),MATCH(Parts!$B16,INDIRECT(\"'\"&A16&\"'!$10:$10\"),0)),0)","v":0},null,null,{"$f":"IFERROR(INDEX(INDIRECT(\"'\"&A16&\"'!$18:$50\"),MATCH($DV$1,INDIRECT(\"'\"&A16&\"'!$A$18:$A$50\"),0),MATCH(Parts!$B16,INDIRECT(\"'\"&A16&\"'!$10:$10\"),0)),0)","v":0},null,null,{"$f":"IFERROR(INDEX(INDIRECT(\"'\"&A16&\"'!$18:$50\"),MATCH($DY$1,INDIRECT(\"'\"&A16&\"'!$A$18:$A$50\"),0),MATCH(Parts!$B16,INDIRECT(\"'\"&A16&\"'!$10:$10\"),0)),0)","v":0},null,null,{"$f":"IFERROR(INDEX(INDIRECT(\"'\"&A16&\"'!$18:$50\"),MATCH($EB$1,INDIRECT(\"'\"&A16&\"'!$A$18:$A$50\"),0),MATCH(Parts!$B16,INDIRECT(\"'\"&A16&\"'!$10:$10\"),0)),0)","v":0},null,null,{"$f":"IFERROR(INDEX(INDIRECT(\"'\"&A16&\"'!$18:$50\"),MATCH($EE$1,INDIRECT(\"'\"&A16&\"'!$A$18:$A$50\"),0),MATCH(Parts!$B16,INDIRECT(\"'\"&A16&\"'!$10:$10\"),0)),0)","v":0},null,null,{"$f":"IFERROR(INDEX(INDIRECT(\"'\"&A16&\"'!$18:$50\"),MATCH($EH$1,INDIRECT(\"'\"&A16&\"'!$A$18:$A$50\"),0),MATCH(Parts!$B16,INDIRECT(\"'\"&A16&\"'!$10:$10\"),0)),0)","v":0},null,null,{"$f":"IFERROR(INDEX(INDIRECT(\"'\"&A16&\"'!$18:$50\"),MATCH($EK$1,INDIRECT(\"'\"&A16&\"'!$A$18:$A$50\"),0),MATCH(Parts!$B16,INDIRECT(\"'\"&A16&\"'!$10:$10\"),0)),0)","v":0}]
[{"$f":"PQS!A19","v":"ILR"},"E003/006",{"$f":"PQS!E19","v":"HBC-200"},{"$f":"PQS!P19","v":"$"},188.12333333333336,"Compressor, 0070701332; 98.9 USD",{"$f":"IFERROR(INDEX(INDIRECT(\"'\"&A17&\"'!$18:$50\"),MATCH(Parts!F$1,INDIRECT(\"'\"&A17&\"'!$A$18:$A$50\"),0),MATCH(Parts!$B17,INDIRECT(\"'\"&A17&\"'!$10:$10\"),0)),0)","v":1},98.9,"Thermostat, 0074091494; 27.6 USD",{"$f":"IFERROR(INDEX(INDIRECT(\"'\"&A17&\"'!$18:$50\"),MATCH($I$1,INDIRECT(\"'\"&A17&\"'!$A$18:$A$50\"),0),MATCH(Parts!$B17,INDIRECT(\"'\"&A17&\"'!$10:$10\"),0)),0)","v":1},27.6,null,{"$f":"IFERROR(INDEX(INDIRECT(\"'\"&A17&\"'!$18:$50\"),MATCH($L$1,INDIRECT(\"'\"&A17&\"'!$A$18:$A$50\"),0),MATCH(Parts!$B17,INDIRECT(\"'\"&A17&\"'!$10:$10\"),0)),0)","v":0},null,null,{"$f":"IFERROR(INDEX(INDIRECT(\"'\"&A17&\"'!$18:$50\"),MATCH($O$1,INDIRECT(\"'\"&A17&\"'!$A$18:$A$50\"),0),MATCH(Parts!$B17,INDIRECT(\"'\"&A17&\"'!$10:$10\"),0)),0)","v":0},null,"Control panel, 0072040234: 1.55USD",{"$f":"IFERROR(INDEX(INDIRECT(\"'\"&A17&\"'!$18:$50\"),MATCH($R$1,INDIRECT(\"'\"&A17&\"'!$A$18:$A$50\"),0),MATCH(Parts!$B17,INDIRECT(\"'\"&A17&\"'!$10:$10\"),0)),0)","v":1},1.55,null,{"$f":"IFERROR(INDEX(INDIRECT(\"'\"&A17&\"'!$18:$50\"),MATCH($U$1,INDIRECT(\"'\"&A17&\"'!$A$18:$A$50\"),0),MATCH(Parts!$B17,INDIRECT(\"'\"&A17&\"'!$10:$10\"),0)),0)","v":0},null,"Condensor，0070701369；fan0075030020",{"$f":"IFERROR(INDEX(INDIRECT(\"'\"&A17&\"'!$18:$50\"),MATCH($X$1,INDIRECT(\"'\"&A17&\"'!$A$18:$A$50\"),0),MATCH(Parts!$B17,INDIRECT(\"'\"&A17&\"'!$10:$10\"),0)),0)","v":1},38.61,null,{"$f":"IFERROR(INDEX(INDIRECT(\"'\"&A17&\"'!$18:$50\"),MATCH($AA$1,INDIRECT(\"'\"&A17&\"'!$A$18:$A$50\"),0),MATCH(Parts!$B17,INDIRECT(\"'\"&A17&\"'!$10:$10\"),0)),0)","v":0},null,null,{"$f":"IFERROR(INDEX(INDIRECT(\"'\"&A17&\"'!$18:$50\"),MATCH($AD$1,INDIRECT(\"'\"&A17&\"'!$A$18:$A$50\"),0),MATCH(Parts!$B17,INDIRECT(\"'\"&A17&\"'!$10:$10\"),0)),0)","v":0},null,null,{"$f":"IFERROR(INDEX(INDIRECT(\"'\"&A17&\"'!$18:$50\"),MATCH($AG$1,INDIRECT(\"'\"&A17&\"'!$A$18:$A$50\"),0),MATCH(Parts!$B17,INDIRECT(\"'\"&A17&\"'!$10:$10\"),0)),0)","v":0},null,null,{"$f":"IFERROR(INDEX(INDIRECT(\"'\"&A17&\"'!$18:$50\"),MATCH($AJ$1,INDIRECT(\"'\"&A17&\"'!$A$18:$A$50\"),0),MATCH(Parts!$B17,INDIRECT(\"'\"&A17&\"'!$10:$10\"),0)),0)","v":0},null,"Switch - 0075050003",{"$f":"IFERROR(INDEX(INDIRECT(\"'\"&A17&\"'!$18:$50\"),MATCH($AM$1,INDIRECT(\"'\"&A17&\"'!$A$18:$A$50\"),0),MATCH(Parts!$B17,INDIRECT(\"'\"&A17&\"'!$10:$10\"),0)),0)","v":1},2,"BE0GL0Z1T",{"$f":"IFERROR(INDEX(INDIRECT(\"'\"&A17&\"'!$18:$50\"),MATCH($AP$1,INDIRECT(\"'\"&A17&\"'!$A$18:$A$50\"),0),MATCH(Parts!$B17,INDIRECT(\"'\"&A17&\"'!$10:$10\"),0)),0)","v":1},null,"Lower baskets, 0070107509: 2.00USD\nUpper baskets, 0070107508: 2.05USD",{"$f":"IFERROR(INDEX(INDIRECT(\"'\"&A17&\"'!$18:$50\"),MATCH($AS$1,INDIRECT(\"'\"&A17&\"'!$A$18:$A$50\"),0),MATCH(Parts!$B17,INDIRECT(\"'\"&A17&\"'!$10:$10\"),0)),0)","v":1},4.05,null,{"$f":"IFERROR(INDEX(INDIRECT(\"'\"&A17&\"'!$18:$50\"),MATCH($AV$1,INDIRECT(\"'\"&A17&\"'!$A$18:$A$50\"),0),MATCH(Parts!$B17,INDIRECT(\"'\"&A17&\"'!$10:$10\"),0)),0)","v":0},null,null,{"$f":"IFERROR(INDEX(INDIRECT(\"'\"&A17&\"'!$18:$50\"),MATCH($AY$1,INDIRECT(\"'\"&A17&\"'!$A$18:$A$50\"),0),MATCH(Parts!$B17,INDIRECT(\"'\"&A17&\"'!$10:$10\"),0)),0)","v":0},null,null,{"$f":"IFERROR(INDEX(INDIRECT(\"'\"&A17&\"'!$18:$50\"),MATCH($BB$1,INDIRECT(\"'\"&A17&\"'!$A$18:$A$50\"),0),MATCH(Parts!$B17,INDIRECT(\"'\"&A17&\"'!$10:$10\"),0)),0)","v":0},null,null,{"$f":"IFERROR(INDEX(INDIRECT(\"'\"&A17&\"'!$18:$50\"),MATCH($BE$1,INDIRECT(\"'\"&A17&\"'!$A$18:$A$50\"),0),MATCH(Parts!$B17,INDIRECT(\"'\"&A17&\"'!$10:$10\"),0)),0)","v":0},null,"Dry filter, 0074180002A: 2.00USD",{"$f":"IFERROR(INDEX(INDIRECT(\"'\"&A17&\"'!$18:$50\"),MATCH($BH$1,INDIRECT(\"'\"&A17&\"'!$A$18:$A$50\"),0),MATCH(Parts!$B17,INDIRECT(\"'\"&A17&\"'!$10:$10\"),0)),0)","v":1},2,null,{"$f":"IFERROR(INDEX(INDIRECT(\"'\"&A17&\"'!$18:$50\"),MATCH($BK$1,INDIRECT(\"'\"&A17&\"'!$A$18:$A$50\"),0),MATCH(Parts!$B17,INDIRECT(\"'\"&A17&\"'!$10:$10\"),0)),0)","v":0},null,null,{"$f":"IFERROR(INDEX(INDIRECT(\"'\"&A17&\"'!$18:$50\"),MATCH($BN$1,INDIRECT(\"'\"&A17&\"'!$A$18:$A$50\"),0),MATCH(Parts!$B17,INDIRECT(\"'\"&A17&\"'!$10:$10\"),0)),0)","v":0},null,"Hinge，0078090002",{"$f":"IFERROR(INDEX(INDIRECT(\"'\"&A17&\"'!$18:$50\"),MATCH($BQ$1,INDIRECT(\"'\"&A17&\"'!$A$18:$A$50\"),0),MATCH(Parts!$B17,INDIRECT(\"'\"&A17&\"'!$10:$10\"),0)),0)","v":1},null,"Hinge covers Up, 0072040003\nHinge covers Down, 0072040011 ",{"$f":"IFERROR(INDEX(INDIRECT(\"'\"&A17&\"'!$18:$50\"),MATCH($BT$1,INDIRECT(\"'\"&A17&\"'!$A$18:$A$50\"),0),MATCH(Parts!$B17,INDIRECT(\"'\"&A17&\"'!$10:$10\"),0)),0)","v":1},0.21333333333333335,null,{"$f":"IFERROR(INDEX(INDIRECT(\"'\"&A17&\"'!$18:$50\"),MATCH($BW$1,INDIRECT(\"'\"&A17&\"'!$A$18:$A$50\"),0),MATCH(Parts!$B17,INDIRECT(\"'\"&A17&\"'!$10:$10\"),0)),0)","v":0},null,"Thermometer：0271400001",{"$f":"IFERROR(INDEX(INDIRECT(\"'\"&A17&\"'!$18:$50\"),MATCH($BZ$1,INDIRECT(\"'\"&A17&\"'!$A$18:$A$50\"),0),MATCH(Parts!$B17,INDIRECT(\"'\"&A17&\"'!$10:$10\"),0)),0)","v":1},3,null,{"$f":"IFERROR(INDEX(INDIRECT(\"'\"&A17&\"'!$18:$50\"),MATCH($CC$1,INDIRECT(\"'\"&A17&\"'!$A$18:$A$50\"),0),MATCH(Parts!$B17,INDIRECT(\"'\"&A17&\"'!$10:$10\"),0)),0)","v":0},null,"Handle, 0070814623: 3.70USD",{"$f":"IFERROR(INDEX(INDIRECT(\"'\"&A17&\"'!$18:$50\"),MATCH($CF$1,INDIRECT(\"'\"&A17&\"'!$A$18:$A$50\"),0),MATCH(Parts!$B17,INDIRECT(\"'\"&A17&\"'!$10:$10\"),0)),0)","v":1},3.7,"Electrical wiring 0070400252B",{"$f":"IFERROR(INDEX(INDIRECT(\"'\"&A17&\"'!$18:$50\"),MATCH($CI$1,INDIRECT(\"'\"&A17&\"'!$A$18:$A$50\"),0),MATCH(Parts!$B17,INDIRECT(\"'\"&A17&\"'!$10:$10\"),0)),0)","v":1},6.5,null,{"$f":"IFERROR(INDEX(INDIRECT(\"'\"&A17&\"'!$18:$50\"),MATCH($CL$1,INDIRECT(\"'\"&A17&\"'!$A$18:$A$50\"),0),MATCH(Parts!$B17,INDIRECT(\"'\"&A17&\"'!$10:$10\"),0)),0)","v":0},null,null,{"$f":"IFERROR(INDEX(INDIRECT(\"'\"&A17&\"'!$18:$50\"),MATCH($CO$1,INDIRECT(\"'\"&A17&\"'!$A$18:$A$50\"),0),MATCH(Parts!$B17,INDIRECT(\"'\"&A17&\"'!$10:$10\"),0)),0)","v":0},null,null,{"$f":"IFERROR(INDEX(INDIRECT(\"'\"&A17&\"'!$18:$50\"),MATCH($CR$1,INDIRECT(\"'\"&A17&\"'!$A$18:$A$50\"),0),MATCH(Parts!$B17,INDIRECT(\"'\"&A17&\"'!$10:$10\"),0)),0)","v":0},null,null,{"$f":"IFERROR(INDEX(INDIRECT(\"'\"&A17&\"'!$18:$50\"),MATCH($CU$1,INDIRECT(\"'\"&A17&\"'!$A$18:$A$50\"),0),MATCH(Parts!$B17,INDIRECT(\"'\"&A17&\"'!$10:$10\"),0)),0)","v":0},null,null,{"$f":"IFERROR(INDEX(INDIRECT(\"'\"&A17&\"'!$18:$50\"),MATCH($CX$1,INDIRECT(\"'\"&A17&\"'!$A$18:$A$50\"),0),MATCH(Parts!$B17,INDIRECT(\"'\"&A17&\"'!$10:$10\"),0)),0)","v":0},null,null,{"$f":"IFERROR(INDEX(INDIRECT(\"'\"&A17&\"'!$18:$50\"),MATCH($DA$1,INDIRECT(\"'\"&A17&\"'!$A$18:$A$50\"),0),MATCH(Parts!$B17,INDIRECT(\"'\"&A17&\"'!$10:$10\"),0)),0)","v":0},null,null,{"$f":"IFERROR(INDEX(INDIRECT(\"'\"&A17&\"'!$18:$50\"),MATCH($DD$1,INDIRECT(\"'\"&A17&\"'!$A$18:$A$50\"),0),MATCH(Parts!$B17,INDIRECT(\"'\"&A17&\"'!$10:$10\"),0)),0)","v":0},null,null,{"$f":"IFERROR(INDEX(INDIRECT(\"'\"&A17&\"'!$18:$50\"),MATCH($DG$1,INDIRECT(\"'\"&A17&\"'!$A$18:$A$50\"),0),MATCH(Parts!$B17,INDIRECT(\"'\"&A17&\"'!$10:$10\"),0)),0)","v":0},null,null,{"$f":"IFERROR(INDEX(INDIRECT(\"'\"&A17&\"'!$18:$50\"),MATCH($DJ$1,INDIRECT(\"'\"&A17&\"'!$A$18:$A$50\"),0),MATCH(Parts!$B17,INDIRECT(\"'\"&A17&\"'!$10:$10\"),0)),0)","v":0},null,null,{"$f":"IFERROR(INDEX(INDIRECT(\"'\"&A17&\"'!$18:$50\"),MATCH($DM$1,INDIRECT(\"'\"&A17&\"'!$A$18:$A$50\"),0),MATCH(Parts!$B17,INDIRECT(\"'\"&A17&\"'!$10:$10\"),0)),0)","v":0},null,null,{"$f":"IFERROR(INDEX(INDIRECT(\"'\"&A17&\"'!$18:$50\"),MATCH($DP$1,INDIRECT(\"'\"&A17&\"'!$A$18:$A$50\"),0),MATCH(Parts!$B17,INDIRECT(\"'\"&A17&\"'!$10:$10\"),0)),0)","v":0},null,null,{"$f":"IFERROR(INDEX(INDIRECT(\"'\"&A17&\"'!$18:$50\"),MATCH($DS$1,INDIRECT(\"'\"&A17&\"'!$A$18:$A$50\"),0),MATCH(Parts!$B17,INDIRECT(\"'\"&A17&\"'!$10:$10\"),0)),0)","v":0},null,null,{"$f":"IFERROR(INDEX(INDIRECT(\"'\"&A17&\"'!$18:$50\"),MATCH($DV$1,INDIRECT(\"'\"&A17&\"'!$A$18:$A$50\"),0),MATCH(Parts!$B17,INDIRECT(\"'\"&A17&\"'!$10:$10\"),0)),0)","v":0},null,null,{"$f":"IFERROR(INDEX(INDIRECT(\"'\"&A17&\"'!$18:$50\"),MATCH($DY$1,INDIRECT(\"'\"&A17&\"'!$A$18:$A$50\"),0),MATCH(Parts!$B17,INDIRECT(\"'\"&A17&\"'!$10:$10\"),0)),0)","v":0},null,null,{"$f":"IFERROR(INDEX(INDIRECT(\"'\"&A17&\"'!$18:$50\"),MATCH($EB$1,INDIRECT(\"'\"&A17&\"'!$A$18:$A$50\"),0),MATCH(Parts!$B17,INDIRECT(\"'\"&A17&\"'!$10:$10\"),0)),0)","v":0},null,null,{"$f":"IFERROR(INDEX(INDIRECT(\"'\"&A17&\"'!$18:$50\"),MATCH($EE$1,INDIRECT(\"'\"&A17&\"'!$A$18:$A$50\"),0),MATCH(Parts!$B17,INDIRECT(\"'\"&A17&\"'!$10:$10\"),0)),0)","v":0},null,null,{"$f":"IFERROR(INDEX(INDIRECT(\"'\"&A17&\"'!$18:$50\"),MATCH($EH$1,INDIRECT(\"'\"&A17&\"'!$A$18:$A$50\"),0),MATCH(Parts!$B17,INDIRECT(\"'\"&A17&\"'!$10:$10\"),0)),0)","v":0},null,null,{"$f":"IFERROR(INDEX(INDIRECT(\"'\"&A17&\"'!$18:$50\"),MATCH($EK$1,INDIRECT(\"'\"&A17&\"'!$A$18:$A$50\"),0),MATCH(Parts!$B17,INDIRECT(\"'\"&A17&\"'!$10:$10\"),0)),0)","v":0}]
[{"$f":"PQS!A20","v":"ILR"},"E003/007",{"$f":"PQS!E20","v":"MK 304"},{"$f":"PQS!P20","v":"€"},384.52,"COMPRESSOR, SECOP FR8 5G, HST, COMPL. 03.6038480",{"$f":"IFERROR(INDEX(INDIRECT(\"'\"&A18&\"'!$18:$50\"),MATCH(Parts!F$1,INDIRECT(\"'\"&A18&\"'!$A$18:$A$50\"),0),MATCH(Parts!$B18,INDIRECT(\"'\"&A18&\"'!$10:$10\"),0)),0)","v":1},105.03,"ELECTRONIC THERMOSTAT 7020293",{"$f":"IFERROR(INDEX(INDIRECT(\"'\"&A18&\"'!$18:$50\"),MATCH($I$1,INDIRECT(\"'\"&A18&\"'!$A$18:$A$50\"),0),MATCH(Parts!$B18,INDIRECT(\"'\"&A18&\"'!$10:$10\"),0)),0)","v":1},29.86,null,{"$f":"IFERROR(INDEX(INDIRECT(\"'\"&A18&\"'!$18:$50\"),MATCH($L$1,INDIRECT(\"'\"&A18&\"'!$A$18:$A$50\"),0),MATCH(Parts!$B18,INDIRECT(\"'\"&A18&\"'!$10:$10\"),0)),0)","v":0},null,"FAN FOR COMPRESSOR 6000902",{"$f":"IFERROR(INDEX(INDIRECT(\"'\"&A18&\"'!$18:$50\"),MATCH($O$1,INDIRECT(\"'\"&A18&\"'!$A$18:$A$50\"),0),MATCH(Parts!$B18,INDIRECT(\"'\"&A18&\"'!$10:$10\"),0)),0)","v":1},22.43,null,{"$f":"IFERROR(INDEX(INDIRECT(\"'\"&A18&\"'!$18:$50\"),MATCH($R$1,INDIRECT(\"'\"&A18&\"'!$A$18:$A$50\"),0),MATCH(Parts!$B18,INDIRECT(\"'\"&A18&\"'!$10:$10\"),0)),0)","v":0},null,null,{"$f":"IFERROR(INDEX(INDIRECT(\"'\"&A18&\"'!$18:$50\"),MATCH($U$1,INDIRECT(\"'\"&A18&\"'!$A$18:$A$50\"),0),MATCH(Parts!$B18,INDIRECT(\"'\"&A18&\"'!$10:$10\"),0)),0)","v":0},null,"FAN 7030333 - 9.19\nFAN BOX INCL. HEATING ELEMENT 7090047 - 67.12",{"$f":"IFERROR(INDEX(INDIRECT(\"'\"&A18&\"'!$18:$50\"),MATCH($X$1,INDIRECT(\"'\"&A18&\"'!$A$18:$A$50\"),0),MATCH(Parts!$B18,INDIRECT(\"'\"&A18&\"'!$10:$10\"),0)),0)","v":1},{"$f":"9.19+67.12","v":76.31},null,{"$f":"IFERROR(INDEX(INDIRECT(\"'\"&A18&\"'!$18:$50\"),MATCH($AA$1,INDIRECT(\"'\"&A18&\"'!$A$18:$A$50\"),0),MATCH(Parts!$B18,INDIRECT(\"'\"&A18&\"'!$10:$10\"),0)),0)","v":0},null,null,{"$f":"IFERROR(INDEX(INDIRECT(\"'\"&A18&\"'!$18:$50\"),MATCH($AD$1,INDIRECT(\"'\"&A18&\"'!$A$18:$A$50\"),0),MATCH(Parts!$B18,INDIRECT(\"'\"&A18&\"'!$10:$10\"),0)),0)","v":0},null,null,{"$f":"IFERROR(INDEX(INDIRECT(\"'\"&A18&\"'!$18:$50\"),MATCH($AG$1,INDIRECT(\"'\"&A18&\"'!$A$18:$A$50\"),0),MATCH(Parts!$B18,INDIRECT(\"'\"&A18&\"'!$10:$10\"),0)),0)","v":0},null,null,{"$f":"IFERROR(INDEX(INDIRECT(\"'\"&A18&\"'!$18:$50\"),MATCH($AJ$1,INDIRECT(\"'\"&A18&\"'!$A$18:$A$50\"),0),MATCH(Parts!$B18,INDIRECT(\"'\"&A18&\"'!$10:$10\"),0)),0)","v":0},null,null,{"$f":"IFERROR(INDEX(INDIRECT(\"'\"&A18&\"'!$18:$50\"),MATCH($AM$1,INDIRECT(\"'\"&A18&\"'!$A$18:$A$50\"),0),MATCH(Parts!$B18,INDIRECT(\"'\"&A18&\"'!$10:$10\"),0)),0)","v":0},null,null,{"$f":"IFERROR(INDEX(INDIRECT(\"'\"&A18&\"'!$18:$50\"),MATCH($AP$1,INDIRECT(\"'\"&A18&\"'!$A$18:$A$50\"),0),MATCH(Parts!$B18,INDIRECT(\"'\"&A18&\"'!$10:$10\"),0)),0)","v":0},null,"TOP BASKET 3510024 - 9,03\nBOTTOM BASKET 3510023 -  11,75",{"$f":"IFERROR(INDEX(INDIRECT(\"'\"&A18&\"'!$18:$50\"),MATCH($AS$1,INDIRECT(\"'\"&A18&\"'!$A$18:$A$50\"),0),MATCH(Parts!$B18,INDIRECT(\"'\"&A18&\"'!$10:$10\"),0)),0)","v":2},{"$f":"AVERAGE(9.03,11.75)","v":10.39},null,{"$f":"IFERROR(INDEX(INDIRECT(\"'\"&A18&\"'!$18:$50\"),MATCH($AV$1,INDIRECT(\"'\"&A18&\"'!$A$18:$A$50\"),0),MATCH(Parts!$B18,INDIRECT(\"'\"&A18&\"'!$10:$10\"),0)),0)","v":0},null,"STARTING DEVICE, (RELAY) 6520106",{"$f":"IFERROR(INDEX(INDIRECT(\"'\"&A18&\"'!$18:$50\"),MATCH($AY$1,INDIRECT(\"'\"&A18&\"'!$A$18:$A$50\"),0),MATCH(Parts!$B18,INDIRECT(\"'\"&A18&\"'!$10:$10\"),0)),0)","v":1},9.76,"STARTING DEVICE, (CAPACITOR) 6520004",{"$f":"IFERROR(INDEX(INDIRECT(\"'\"&A18&\"'!$18:$50\"),MATCH($BB$1,INDIRECT(\"'\"&A18&\"'!$A$18:$A$50\"),0),MATCH(Parts!$B18,INDIRECT(\"'\"&A18&\"'!$10:$10\"),0)),0)","v":1},16.93,"ALU-CYLINDER WITH R134A (1000 GRS) 04.9954073",{"$f":"IFERROR(INDEX(INDIRECT(\"'\"&A18&\"'!$18:$50\"),MATCH($BE$1,INDIRECT(\"'\"&A18&\"'!$A$18:$A$50\"),0),MATCH(Parts!$B18,INDIRECT(\"'\"&A18&\"'!$10:$10\"),0)),0)","v":1},65.03,"FILTER/DRIER TYPE XH 9 (20 GRS) 0-6538001",{"$f":"IFERROR(INDEX(INDIRECT(\"'\"&A18&\"'!$18:$50\"),MATCH($BH$1,INDIRECT(\"'\"&A18&\"'!$A$18:$A$50\"),0),MATCH(Parts!$B18,INDIRECT(\"'\"&A18&\"'!$10:$10\"),0)),0)","v":1},3.84,null,{"$f":"IFERROR(INDEX(INDIRECT(\"'\"&A18&\"'!$18:$50\"),MATCH($BK$1,INDIRECT(\"'\"&A18&\"'!$A$18:$A$50\"),0),MATCH(Parts!$B18,INDIRECT(\"'\"&A18&\"'!$10:$10\"),0)),0)","v":0},null,null,{"$f":"IFERROR(INDEX(INDIRECT(\"'\"&A18&\"'!$18:$50\"),MATCH($BN$1,INDIRECT(\"'\"&A18&\"'!$A$18:$A$50\"),0),MATCH(Parts!$B18,INDIRECT(\"'\"&A18&\"'!$10:$10\"),0)),0)","v":0},null,"HINGE WITH SPRING 1510031",{"$f":"IFERROR(INDEX(INDIRECT(\"'\"&A18&\"'!$18:$50\"),MATCH($BQ$1,INDIRECT(\"'\"&A18&\"'!$A$18:$A$50\"),0),MATCH(Parts!$B18,INDIRECT(\"'\"&A18&\"'!$10:$10\"),0)),0)","v":1},8.85,null,{"$f":"IFERROR(INDEX(INDIRECT(\"'\"&A18&\"'!$18:$50\"),MATCH($BT$1,INDIRECT(\"'\"&A18&\"'!$A$18:$A$50\"),0),MATCH(Parts!$B18,INDIRECT(\"'\"&A18&\"'!$10:$10\"),0)),0)","v":0},null,"TRANSFORMER 7030108",{"$f":"IFERROR(INDEX(INDIRECT(\"'\"&A18&\"'!$18:$50\"),MATCH($BW$1,INDIRECT(\"'\"&A18&\"'!$A$18:$A$50\"),0),MATCH(Parts!$B18,INDIRECT(\"'\"&A18&\"'!$10:$10\"),0)),0)","v":1},7.95,"THERMOMETER 7020164",{"$f":"IFERROR(INDEX(INDIRECT(\"'\"&A18&\"'!$18:$50\"),MATCH($BZ$1,INDIRECT(\"'\"&A18&\"'!$A$18:$A$50\"),0),MATCH(Parts!$B18,INDIRECT(\"'\"&A18&\"'!$10:$10\"),0)),0)","v":1},10.61,null,{"$f":"IFERROR(INDEX(INDIRECT(\"'\"&A18&\"'!$18:$50\"),MATCH($CC$1,INDIRECT(\"'\"&A18&\"'!$A$18:$A$50\"),0),MATCH(Parts!$B18,INDIRECT(\"'\"&A18&\"'!$10:$10\"),0)),0)","v":0},null,"HANDLE WITH LOCK AND KEY 304090501",{"$f":"IFERROR(INDEX(INDIRECT(\"'\"&A18&\"'!$18:$50\"),MATCH($CF$1,INDIRECT(\"'\"&A18&\"'!$A$18:$A$50\"),0),MATCH(Parts!$B18,INDIRECT(\"'\"&A18&\"'!$10:$10\"),0)),0)","v":1},7.14,null,{"$f":"IFERROR(INDEX(INDIRECT(\"'\"&A18&\"'!$18:$50\"),MATCH($CI$1,INDIRECT(\"'\"&A18&\"'!$A$18:$A$50\"),0),MATCH(Parts!$B18,INDIRECT(\"'\"&A18&\"'!$10:$10\"),0)),0)","v":0},null,null,{"$f":"IFERROR(INDEX(INDIRECT(\"'\"&A18&\"'!$18:$50\"),MATCH($CL$1,INDIRECT(\"'\"&A18&\"'!$A$18:$A$50\"),0),MATCH(Parts!$B18,INDIRECT(\"'\"&A18&\"'!$10:$10\"),0)),0)","v":0},null,null,{"$f":"IFERROR(INDEX(INDIRECT(\"'\"&A18&\"'!$18:$50\"),MATCH($CO$1,INDIRECT(\"'\"&A18&\"'!$A$18:$A$50\"),0),MATCH(Parts!$B18,INDIRECT(\"'\"&A18&\"'!$10:$10\"),0)),0)","v":0},null,null,{"$f":"IFERROR(INDEX(INDIRECT(\"'\"&A18&\"'!$18:$50\"),MATCH($CR$1,INDIRECT(\"'\"&A18&\"'!$A$18:$A$50\"),0),MATCH(Parts!$B18,INDIRECT(\"'\"&A18&\"'!$10:$10\"),0)),0)","v":0},null,null,{"$f":"IFERROR(INDEX(INDIRECT(\"'\"&A18&\"'!$18:$50\"),MATCH($CU$1,INDIRECT(\"'\"&A18&\"'!$A$18:$A$50\"),0),MATCH(Parts!$B18,INDIRECT(\"'\"&A18&\"'!$10:$10\"),0)),0)","v":0},null,null,{"$f":"IFERROR(INDEX(INDIRECT(\"'\"&A18&\"'!$18:$50\"),MATCH($CX$1,INDIRECT(\"'\"&A18&\"'!$A$18:$A$50\"),0),MATCH(Parts!$B18,INDIRECT(\"'\"&A18&\"'!$10:$10\"),0)),0)","v":0},null,null,{"$f":"IFERROR(INDEX(INDIRECT(\"'\"&A18&\"'!$18:$50\"),MATCH($DA$1,INDIRECT(\"'\"&A18&\"'!$A$18:$A$50\"),0),MATCH(Parts!$B18,INDIRECT(\"'\"&A18&\"'!$10:$10\"),0)),0)","v":0},null,null,{"$f":"IFERROR(INDEX(INDIRECT(\"'\"&A18&\"'!$18:$50\"),MATCH($DD$1,INDIRECT(\"'\"&A18&\"'!$A$18:$A$50\"),0),MATCH(Parts!$B18,INDIRECT(\"'\"&A18&\"'!$10:$10\"),0)),0)","v":0},null,null,{"$f":"IFERROR(INDEX(INDIRECT(\"'\"&A18&\"'!$18:$50\"),MATCH($DG$1,INDIRECT(\"'\"&A18&\"'!$A$18:$A$50\"),0),MATCH(Parts!$B18,INDIRECT(\"'\"&A18&\"'!$10:$10\"),0)),0)","v":0},null,null,{"$f":"IFERROR(INDEX(INDIRECT(\"'\"&A18&\"'!$18:$50\"),MATCH($DJ$1,INDIRECT(\"'\"&A18&\"'!$A$18:$A$50\"),0),MATCH(Parts!$B18,INDIRECT(\"'\"&A18&\"'!$10:$10\"),0)),0)","v":0},null,null,{"$f":"IFERROR(INDEX(INDIRECT(\"'\"&A18&\"'!$18:$50\"),MATCH($DM$1,INDIRECT(\"'\"&A18&\"'!$A$18:$A$50\"),0),MATCH(Parts!$B18,INDIRECT(\"'\"&A18&\"'!$10:$10\"),0)),0)","v":0},null,null,{"$f":"IFERROR(INDEX(INDIRECT(\"'\"&A18&\"'!$18:$50\"),MATCH($DP$1,INDIRECT(\"'\"&A18&\"'!$A$18:$A$50\"),0),MATCH(Parts!$B18,INDIRECT(\"'\"&A18&\"'!$10:$10\"),0)),0)","v":0},null,null,{"$f":"IFERROR(INDEX(INDIRECT(\"'\"&A18&\"'!$18:$50\"),MATCH($DS$1,INDIRECT(\"'\"&A18&\"'!$A$18:$A$50\"),0),MATCH(Parts!$B18,INDIRECT(\"'\"&A18&\"'!$10:$10\"),0)),0)","v":0},null,null,{"$f":"IFERROR(INDEX(INDIRECT(\"'\"&A18&\"'!$18:$50\"),MATCH($DV$1,INDIRECT(\"'\"&A18&\"'!$A$18:$A$50\"),0),MATCH(Parts!$B18,INDIRECT(\"'\"&A18&\"'!$10:$10\"),0)),0)","v":0},null,null,{"$f":"IFERROR(INDEX(INDIRECT(\"'\"&A18&\"'!$18:$50\"),MATCH($DY$1,INDIRECT(\"'\"&A18&\"'!$A$18:$A$50\"),0),MATCH(Parts!$B18,INDIRECT(\"'\"&A18&\"'!$10:$10\"),0)),0)","v":0},null,null,{"$f":"IFERROR(INDEX(INDIRECT(\"'\"&A18&\"'!$18:$50\"),MATCH($EB$1,INDIRECT(\"'\"&A18&\"'!$A$18:$A$50\"),0),MATCH(Parts!$B18,INDIRECT(\"'\"&A18&\"'!$10:$10\"),0)),0)","v":0},null,null,{"$f":"IFERROR(INDEX(INDIRECT(\"'\"&A18&\"'!$18:$50\"),MATCH($EE$1,INDIRECT(\"'\"&A18&\"'!$A$18:$A$50\"),0),MATCH(Parts!$B18,INDIRECT(\"'\"&A18&\"'!$10:$10\"),0)),0)","v":0},null,null,{"$f":"IFERROR(INDEX(INDIRECT(\"'\"&A18&\"'!$18:$50\"),MATCH($EH$1,INDIRECT(\"'\"&A18&\"'!$A$18:$A$50\"),0),MATCH(Parts!$B18,INDIRECT(\"'\"&A18&\"'!$10:$10\"),0)),0)","v":0},null,null,{"$f":"IFERROR(INDEX(INDIRECT(\"'\"&A18&\"'!$18:$50\"),MATCH($EK$1,INDIRECT(\"'\"&A18&\"'!$A$18:$A$50\"),0),MATCH(Parts!$B18,INDIRECT(\"'\"&A18&\"'!$10:$10\"),0)),0)","v":0}]
[{"$f":"PQS!A21","v":"ILR"},"E003/010",{"$f":"PQS!E21","v":"MKF 074"},{"$f":"PQS!P21","v":"€"},218.66,"COMPRESSOR, SECOP TL5G, HST, COMPL. 03.6038602",{"$f":"IFERROR(INDEX(INDIRECT(\"'\"&A19&\"'!$18:$50\"),MATCH(Parts!F$1,INDIRECT(\"'\"&A19&\"'!$A$18:$A$50\"),0),MATCH(Parts!$B19,INDIRECT(\"'\"&A19&\"'!$10:$10\"),0)),0)","v":1},88.42,"THERMOSTAT 7020290",{"$f":"IFERROR(INDEX(INDIRECT(\"'\"&A19&\"'!$18:$50\"),MATCH($I$1,INDIRECT(\"'\"&A19&\"'!$A$18:$A$50\"),0),MATCH(Parts!$B19,INDIRECT(\"'\"&A19&\"'!$10:$10\"),0)),0)","v":1},10.62,null,{"$f":"IFERROR(INDEX(INDIRECT(\"'\"&A19&\"'!$18:$50\"),MATCH($L$1,INDIRECT(\"'\"&A19&\"'!$A$18:$A$50\"),0),MATCH(Parts!$B19,INDIRECT(\"'\"&A19&\"'!$10:$10\"),0)),0)","v":0},null,null,{"$f":"IFERROR(INDEX(INDIRECT(\"'\"&A19&\"'!$18:$50\"),MATCH($O$1,INDIRECT(\"'\"&A19&\"'!$A$18:$A$50\"),0),MATCH(Parts!$B19,INDIRECT(\"'\"&A19&\"'!$10:$10\"),0)),0)","v":0},null,null,{"$f":"IFERROR(INDEX(INDIRECT(\"'\"&A19&\"'!$18:$50\"),MATCH($R$1,INDIRECT(\"'\"&A19&\"'!$A$18:$A$50\"),0),MATCH(Parts!$B19,INDIRECT(\"'\"&A19&\"'!$10:$10\"),0)),0)","v":0},null,null,{"$f":"IFERROR(INDEX(INDIRECT(\"'\"&A19&\"'!$18:$50\"),MATCH($U$1,INDIRECT(\"'\"&A19&\"'!$A$18:$A$50\"),0),MATCH(Parts!$B19,INDIRECT(\"'\"&A19&\"'!$10:$10\"),0)),0)","v":0},null,null,{"$f":"IFERROR(INDEX(INDIRECT(\"'\"&A19&\"'!$18:$50\"),MATCH($X$1,INDIRECT(\"'\"&A19&\"'!$A$18:$A$50\"),0),MATCH(Parts!$B19,INDIRECT(\"'\"&A19&\"'!$10:$10\"),0)),0)","v":0},null,null,{"$f":"IFERROR(INDEX(INDIRECT(\"'\"&A19&\"'!$18:$50\"),MATCH($AA$1,INDIRECT(\"'\"&A19&\"'!$A$18:$A$50\"),0),MATCH(Parts!$B19,INDIRECT(\"'\"&A19&\"'!$10:$10\"),0)),0)","v":0},null,null,{"$f":"IFERROR(INDEX(INDIRECT(\"'\"&A19&\"'!$18:$50\"),MATCH($AD$1,INDIRECT(\"'\"&A19&\"'!$A$18:$A$50\"),0),MATCH(Parts!$B19,INDIRECT(\"'\"&A19&\"'!$10:$10\"),0)),0)","v":0},null,null,{"$f":"IFERROR(INDEX(INDIRECT(\"'\"&A19&\"'!$18:$50\"),MATCH($AG$1,INDIRECT(\"'\"&A19&\"'!$A$18:$A$50\"),0),MATCH(Parts!$B19,INDIRECT(\"'\"&A19&\"'!$10:$10\"),0)),0)","v":0},null,null,{"$f":"IFERROR(INDEX(INDIRECT(\"'\"&A19&\"'!$18:$50\"),MATCH($AJ$1,INDIRECT(\"'\"&A19&\"'!$A$18:$A$50\"),0),MATCH(Parts!$B19,INDIRECT(\"'\"&A19&\"'!$10:$10\"),0)),0)","v":0},null,null,{"$f":"IFERROR(INDEX(INDIRECT(\"'\"&A19&\"'!$18:$50\"),MATCH($AM$1,INDIRECT(\"'\"&A19&\"'!$A$18:$A$50\"),0),MATCH(Parts!$B19,INDIRECT(\"'\"&A19&\"'!$10:$10\"),0)),0)","v":0},null,null,{"$f":"IFERROR(INDEX(INDIRECT(\"'\"&A19&\"'!$18:$50\"),MATCH($AP$1,INDIRECT(\"'\"&A19&\"'!$A$18:$A$50\"),0),MATCH(Parts!$B19,INDIRECT(\"'\"&A19&\"'!$10:$10\"),0)),0)","v":0},null,"TOP BASKET 3520016 - 9,03\nBOTTOM BASKET 3520015 -  6,91",{"$f":"IFERROR(INDEX(INDIRECT(\"'\"&A19&\"'!$18:$50\"),MATCH($AS$1,INDIRECT(\"'\"&A19&\"'!$A$18:$A$50\"),0),MATCH(Parts!$B19,INDIRECT(\"'\"&A19&\"'!$10:$10\"),0)),0)","v":2},{"$f":"AVERAGE(9.03,6.91)","v":7.97},null,{"$f":"IFERROR(INDEX(INDIRECT(\"'\"&A19&\"'!$18:$50\"),MATCH($AV$1,INDIRECT(\"'\"&A19&\"'!$A$18:$A$50\"),0),MATCH(Parts!$B19,INDIRECT(\"'\"&A19&\"'!$10:$10\"),0)),0)","v":0},null,"STARTING DEVICE FOR COMPRESSOR 6520048",{"$f":"IFERROR(INDEX(INDIRECT(\"'\"&A19&\"'!$18:$50\"),MATCH($AY$1,INDIRECT(\"'\"&A19&\"'!$A$18:$A$50\"),0),MATCH(Parts!$B19,INDIRECT(\"'\"&A19&\"'!$10:$10\"),0)),0)","v":1},9.76,null,{"$f":"IFERROR(INDEX(INDIRECT(\"'\"&A19&\"'!$18:$50\"),MATCH($BB$1,INDIRECT(\"'\"&A19&\"'!$A$18:$A$50\"),0),MATCH(Parts!$B19,INDIRECT(\"'\"&A19&\"'!$10:$10\"),0)),0)","v":0},null,"ALU-CYLINDER WITH R134A (1000 GRS) 04.9954073",{"$f":"IFERROR(INDEX(INDIRECT(\"'\"&A19&\"'!$18:$50\"),MATCH($BE$1,INDIRECT(\"'\"&A19&\"'!$A$18:$A$50\"),0),MATCH(Parts!$B19,INDIRECT(\"'\"&A19&\"'!$10:$10\"),0)),0)","v":1},65.03,"FILTER/DRIER TYPE XH 9 (20 GRS) 0-6538001",{"$f":"IFERROR(INDEX(INDIRECT(\"'\"&A19&\"'!$18:$50\"),MATCH($BH$1,INDIRECT(\"'\"&A19&\"'!$A$18:$A$50\"),0),MATCH(Parts!$B19,INDIRECT(\"'\"&A19&\"'!$10:$10\"),0)),0)","v":1},3.84,null,{"$f":"IFERROR(INDEX(INDIRECT(\"'\"&A19&\"'!$18:$50\"),MATCH($BK$1,INDIRECT(\"'\"&A19&\"'!$A$18:$A$50\"),0),MATCH(Parts!$B19,INDIRECT(\"'\"&A19&\"'!$10:$10\"),0)),0)","v":0},null,null,{"$f":"IFERROR(INDEX(INDIRECT(\"'\"&A19&\"'!$18:$50\"),MATCH($BN$1,INDIRECT(\"'\"&A19&\"'!$A$18:$A$50\"),0),MATCH(Parts!$B19,INDIRECT(\"'\"&A19&\"'!$10:$10\"),0)),0)","v":0},null,"HINGE WITH SPRING (RIGHT) 1510028 - 8,85\nHINGE WITH SPRING (LEFT) 1510029 - 8,85",{"$f":"IFERROR(INDEX(INDIRECT(\"'\"&A19&\"'!$18:$50\"),MATCH($BQ$1,INDIRECT(\"'\"&A19&\"'!$A$18:$A$50\"),0),MATCH(Parts!$B19,INDIRECT(\"'\"&A19&\"'!$10:$10\"),0)),0)","v":2},8.85,null,{"$f":"IFERROR(INDEX(INDIRECT(\"'\"&A19&\"'!$18:$50\"),MATCH($BT$1,INDIRECT(\"'\"&A19&\"'!$A$18:$A$50\"),0),MATCH(Parts!$B19,INDIRECT(\"'\"&A19&\"'!$10:$10\"),0)),0)","v":0},null,null,{"$f":"IFERROR(INDEX(INDIRECT(\"'\"&A19&\"'!$18:$50\"),MATCH($BW$1,INDIRECT(\"'\"&A19&\"'!$A$18:$A$50\"),0),MATCH(Parts!$B19,INDIRECT(\"'\"&A19&\"'!$10:$10\"),0)),0)","v":0},null,null,{"$f":"IFERROR(INDEX(INDIRECT(\"'\"&A19&\"'!$18:$50\"),MATCH($BZ$1,INDIRECT(\"'\"&A19&\"'!$A$18:$A$50\"),0),MATCH(Parts!$B19,INDIRECT(\"'\"&A19&\"'!$10:$10\"),0)),0)","v":0},null,null,{"$f":"IFERROR(INDEX(INDIRECT(\"'\"&A19&\"'!$18:$50\"),MATCH($CC$1,INDIRECT(\"'\"&A19&\"'!$A$18:$A$50\"),0),MATCH(Parts!$B19,INDIRECT(\"'\"&A19&\"'!$10:$10\"),0)),0)","v":0},null,"HANDLE WITH LOCK AND KEY 304090501",{"$f":"IFERROR(INDEX(INDIRECT(\"'\"&A19&\"'!$18:$50\"),MATCH($CF$1,INDIRECT(\"'\"&A19&\"'!$A$18:$A$50\"),0),MATCH(Parts!$B19,INDIRECT(\"'\"&A19&\"'!$10:$10\"),0)),0)","v":1},7.35,null,{"$f":"IFERROR(INDEX(INDIRECT(\"'\"&A19&\"'!$18:$50\"),MATCH($CI$1,INDIRECT(\"'\"&A19&\"'!$A$18:$A$50\"),0),MATCH(Parts!$B19,INDIRECT(\"'\"&A19&\"'!$10:$10\"),0)),0)","v":0},null,null,{"$f":"IFERROR(INDEX(INDIRECT(\"'\"&A19&\"'!$18:$50\"),MATCH($CL$1,INDIRECT(\"'\"&A19&\"'!$A$18:$A$50\"),0),MATCH(Parts!$B19,INDIRECT(\"'\"&A19&\"'!$10:$10\"),0)),0)","v":0},null,null,{"$f":"IFERROR(INDEX(INDIRECT(\"'\"&A19&\"'!$18:$50\"),MATCH($CO$1,INDIRECT(\"'\"&A19&\"'!$A$18:$A$50\"),0),MATCH(Parts!$B19,INDIRECT(\"'\"&A19&\"'!$10:$10\"),0)),0)","v":0},null,null,{"$f":"IFERROR(INDEX(INDIRECT(\"'\"&A19&\"'!$18:$50\"),MATCH($CR$1,INDIRECT(\"'\"&A19&\"'!$A$18:$A$50\"),0),MATCH(Parts!$B19,INDIRECT(\"'\"&A19&\"'!$10:$10\"),0)),0)","v":0},null,null,{"$f":"IFERROR(INDEX(INDIRECT(\"'\"&A19&\"'!$18:$50\"),MATCH($CU$1,INDIRECT(\"'\"&A19&\"'!$A$18:$A$50\"),0),MATCH(Parts!$B19,INDIRECT(\"'\"&A19&\"'!$10:$10\"),0)),0)","v":0},null,null,{"$f":"IFERROR(INDEX(INDIRECT(\"'\"&A19&\"'!$18:$50\"),MATCH($CX$1,INDIRECT(\"'\"&A19&\"'!$A$18:$A$50\"),0),MATCH(Parts!$B19,INDIRECT(\"'\"&A19&\"'!$10:$10\"),0)),0)","v":0},null,null,{"$f":"IFERROR(INDEX(INDIRECT(\"'\"&A19&\"'!$18:$50\"),MATCH($DA$1,INDIRECT(\"'\"&A19&\"'!$A$18:$A$50\"),0),MATCH(Parts!$B19,INDIRECT(\"'\"&A19&\"'!$10:$10\"),0)),0)","v":0},null,null,{"$f":"IFERROR(INDEX(INDIRECT(\"'\"&A19&\"'!$18:$50\"),MATCH($DD$1,INDIRECT(\"'\"&A19&\"'!$A$18:$A$50\"),0),MATCH(Parts!$B19,INDIRECT(\"'\"&A19&\"'!$10:$10\"),0)),0)","v":0},null,null,{"$f":"IFERROR(INDEX(INDIRECT(\"'\"&A19&\"'!$18:$50\"),MATCH($DG$1,INDIRECT(\"'\"&A19&\"'!$A$18:$A$50\"),0),MATCH(Parts!$B19,INDIRECT(\"'\"&A19&\"'!$10:$10\"),0)),0)","v":0},null,null,{"$f":"IFERROR(INDEX(INDIRECT(\"'\"&A19&\"'!$18:$50\"),MATCH($DJ$1,INDIRECT(\"'\"&A19&\"'!$A$18:$A$50\"),0),MATCH(Parts!$B19,INDIRECT(\"'\"&A19&\"'!$10:$10\"),0)),0)","v":0},null,null,{"$f":"IFERROR(INDEX(INDIRECT(\"'\"&A19&\"'!$18:$50\"),MATCH($DM$1,INDIRECT(\"'\"&A19&\"'!$A$18:$A$50\"),0),MATCH(Parts!$B19,INDIRECT(\"'\"&A19&\"'!$10:$10\"),0)),0)","v":0},null,null,{"$f":"IFERROR(INDEX(INDIRECT(\"'\"&A19&\"'!$18:$50\"),MATCH($DP$1,INDIRECT(\"'\"&A19&\"'!$A$18:$A$50\"),0),MATCH(Parts!$B19,INDIRECT(\"'\"&A19&\"'!$10:$10\"),0)),0)","v":0},null,null,{"$f":"IFERROR(INDEX(INDIRECT(\"'\"&A19&\"'!$18:$50\"),MATCH($DS$1,INDIRECT(\"'\"&A19&\"'!$A$18:$A$50\"),0),MATCH(Parts!$B19,INDIRECT(\"'\"&A19&\"'!$10:$10\"),0)),0)","v":0},null,null,{"$f":"IFERROR(INDEX(INDIRECT(\"'\"&A19&\"'!$18:$50\"),MATCH($DV$1,INDIRECT(\"'\"&A19&\"'!$A$18:$A$50\"),0),MATCH(Parts!$B19,INDIRECT(\"'\"&A19&\"'!$10:$10\"),0)),0)","v":0},null,null,{"$f":"IFERROR(INDEX(INDIRECT(\"'\"&A19&\"'!$18:$50\"),MATCH($DY$1,INDIRECT(\"'\"&A19&\"'!$A$18:$A$50\"),0),MATCH(Parts!$B19,INDIRECT(\"'\"&A19&\"'!$10:$10\"),0)),0)","v":0},null,null,{"$f":"IFERROR(INDEX(INDIRECT(\"'\"&A19&\"'!$18:$50\"),MATCH($EB$1,INDIRECT(\"'\"&A19&\"'!$A$18:$A$50\"),0),MATCH(Parts!$B19,INDIRECT(\"'\"&A19&\"'!$10:$10\"),0)),0)","v":0},null,null,{"$f":"IFERROR(INDEX(INDIRECT(\"'\"&A19&\"'!$18:$50\"),MATCH($EE$1,INDIRECT(\"'\"&A19&\"'!$A$18:$A$50\"),0),MATCH(Parts!$B19,INDIRECT(\"'\"&A19&\"'!$10:$10\"),0)),0)","v":0},null,null,{"$f":"IFERROR(INDEX(INDIRECT(\"'\"&A19&\"'!$18:$50\"),MATCH($EH$1,INDIRECT(\"'\"&A19&\"'!$A$18:$A$50\"),0),MATCH(Parts!$B19,INDIRECT(\"'\"&A19&\"'!$10:$10\"),0)),0)","v":0},null,null,{"$f":"IFERROR(INDEX(INDIRECT(\"'\"&A19&\"'!$18:$50\"),MATCH($EK$1,INDIRECT(\"'\"&A19&\"'!$A$18:$A$50\"),0),MATCH(Parts!$B19,INDIRECT(\"'\"&A19&\"'!$10:$10\"),0)),0)","v":0}]
[{"$f":"PQS!A22","v":"ILR"},"E003/011",{"$f":"PQS!E22","v":"MK 204"},{"$f":"PQS!P22","v":"€"},266.07,"COMPRESSOR, SECOP FR6G, HST, COMPL. 03.6038754",{"$f":"IFERROR(INDEX(INDIRECT(\"'\"&A20&\"'!$18:$50\"),MATCH(Parts!F$1,INDIRECT(\"'\"&A20&\"'!$A$18:$A$50\"),0),MATCH(Parts!$B20,INDIRECT(\"'\"&A20&\"'!$10:$10\"),0)),0)","v":1},96.37,"ELECTRONIC THERMOSTAT 7020292 29,86",{"$f":"IFERROR(INDEX(INDIRECT(\"'\"&A20&\"'!$18:$50\"),MATCH($I$1,INDIRECT(\"'\"&A20&\"'!$A$18:$A$50\"),0),MATCH(Parts!$B20,INDIRECT(\"'\"&A20&\"'!$10:$10\"),0)),0)","v":1},29.86,null,{"$f":"IFERROR(INDEX(INDIRECT(\"'\"&A20&\"'!$18:$50\"),MATCH($L$1,INDIRECT(\"'\"&A20&\"'!$A$18:$A$50\"),0),MATCH(Parts!$B20,INDIRECT(\"'\"&A20&\"'!$10:$10\"),0)),0)","v":0},null,null,{"$f":"IFERROR(INDEX(INDIRECT(\"'\"&A20&\"'!$18:$50\"),MATCH($O$1,INDIRECT(\"'\"&A20&\"'!$A$18:$A$50\"),0),MATCH(Parts!$B20,INDIRECT(\"'\"&A20&\"'!$10:$10\"),0)),0)","v":0},null,null,{"$f":"IFERROR(INDEX(INDIRECT(\"'\"&A20&\"'!$18:$50\"),MATCH($R$1,INDIRECT(\"'\"&A20&\"'!$A$18:$A$50\"),0),MATCH(Parts!$B20,INDIRECT(\"'\"&A20&\"'!$10:$10\"),0)),0)","v":0},null,null,{"$f":"IFERROR(INDEX(INDIRECT(\"'\"&A20&\"'!$18:$50\"),MATCH($U$1,INDIRECT(\"'\"&A20&\"'!$A$18:$A$50\"),0),MATCH(Parts!$B20,INDIRECT(\"'\"&A20&\"'!$10:$10\"),0)),0)","v":0},null,null,{"$f":"IFERROR(INDEX(INDIRECT(\"'\"&A20&\"'!$18:$50\"),MATCH($X$1,INDIRECT(\"'\"&A20&\"'!$A$18:$A$50\"),0),MATCH(Parts!$B20,INDIRECT(\"'\"&A20&\"'!$10:$10\"),0)),0)","v":0},null,null,{"$f":"IFERROR(INDEX(INDIRECT(\"'\"&A20&\"'!$18:$50\"),MATCH($AA$1,INDIRECT(\"'\"&A20&\"'!$A$18:$A$50\"),0),MATCH(Parts!$B20,INDIRECT(\"'\"&A20&\"'!$10:$10\"),0)),0)","v":0},null,null,{"$f":"IFERROR(INDEX(INDIRECT(\"'\"&A20&\"'!$18:$50\"),MATCH($AD$1,INDIRECT(\"'\"&A20&\"'!$A$18:$A$50\"),0),MATCH(Parts!$B20,INDIRECT(\"'\"&A20&\"'!$10:$10\"),0)),0)","v":0},null,null,{"$f":"IFERROR(INDEX(INDIRECT(\"'\"&A20&\"'!$18:$50\"),MATCH($AG$1,INDIRECT(\"'\"&A20&\"'!$A$18:$A$50\"),0),MATCH(Parts!$B20,INDIRECT(\"'\"&A20&\"'!$10:$10\"),0)),0)","v":0},null,null,{"$f":"IFERROR(INDEX(INDIRECT(\"'\"&A20&\"'!$18:$50\"),MATCH($AJ$1,INDIRECT(\"'\"&A20&\"'!$A$18:$A$50\"),0),MATCH(Parts!$B20,INDIRECT(\"'\"&A20&\"'!$10:$10\"),0)),0)","v":0},null,null,{"$f":"IFERROR(INDEX(INDIRECT(\"'\"&A20&\"'!$18:$50\"),MATCH($AM$1,INDIRECT(\"'\"&A20&\"'!$A$18:$A$50\"),0),MATCH(Parts!$B20,INDIRECT(\"'\"&A20&\"'!$10:$10\"),0)),0)","v":0},null,null,{"$f":"IFERROR(INDEX(INDIRECT(\"'\"&A20&\"'!$18:$50\"),MATCH($AP$1,INDIRECT(\"'\"&A20&\"'!$A$18:$A$50\"),0),MATCH(Parts!$B20,INDIRECT(\"'\"&A20&\"'!$10:$10\"),0)),0)","v":0},null,"TOP BASKET 3510025 - 9,03\nBOTTOM BASKET 3510022 - 8,65",{"$f":"IFERROR(INDEX(INDIRECT(\"'\"&A20&\"'!$18:$50\"),MATCH($AS$1,INDIRECT(\"'\"&A20&\"'!$A$18:$A$50\"),0),MATCH(Parts!$B20,INDIRECT(\"'\"&A20&\"'!$10:$10\"),0)),0)","v":2},{"$f":"AVERAGE(9.03,8.65)","v":8.84},null,{"$f":"IFERROR(INDEX(INDIRECT(\"'\"&A20&\"'!$18:$50\"),MATCH($AV$1,INDIRECT(\"'\"&A20&\"'!$A$18:$A$50\"),0),MATCH(Parts!$B20,INDIRECT(\"'\"&A20&\"'!$10:$10\"),0)),0)","v":0},null,"STARTING DEVICE, (RELAY) 6520048",{"$f":"IFERROR(INDEX(INDIRECT(\"'\"&A20&\"'!$18:$50\"),MATCH($AY$1,INDIRECT(\"'\"&A20&\"'!$A$18:$A$50\"),0),MATCH(Parts!$B20,INDIRECT(\"'\"&A20&\"'!$10:$10\"),0)),0)","v":1},9.76,"STARTING DEVICE, (CAPACITOR) 6520004",{"$f":"IFERROR(INDEX(INDIRECT(\"'\"&A20&\"'!$18:$50\"),MATCH($BB$1,INDIRECT(\"'\"&A20&\"'!$A$18:$A$50\"),0),MATCH(Parts!$B20,INDIRECT(\"'\"&A20&\"'!$10:$10\"),0)),0)","v":1},16.93,"ALU-CYLINDER WITH R134A (1000 GRS) 04.9954073",{"$f":"IFERROR(INDEX(INDIRECT(\"'\"&A20&\"'!$18:$50\"),MATCH($BE$1,INDIRECT(\"'\"&A20&\"'!$A$18:$A$50\"),0),MATCH(Parts!$B20,INDIRECT(\"'\"&A20&\"'!$10:$10\"),0)),0)","v":1},65.03,"FILTER/DRIER TYPE XH 9 (20 GRS) 0-6538001",{"$f":"IFERROR(INDEX(INDIRECT(\"'\"&A20&\"'!$18:$50\"),MATCH($BH$1,INDIRECT(\"'\"&A20&\"'!$A$18:$A$50\"),0),MATCH(Parts!$B20,INDIRECT(\"'\"&A20&\"'!$10:$10\"),0)),0)","v":1},3.84,null,{"$f":"IFERROR(INDEX(INDIRECT(\"'\"&A20&\"'!$18:$50\"),MATCH($BK$1,INDIRECT(\"'\"&A20&\"'!$A$18:$A$50\"),0),MATCH(Parts!$B20,INDIRECT(\"'\"&A20&\"'!$10:$10\"),0)),0)","v":0},null,null,{"$f":"IFERROR(INDEX(INDIRECT(\"'\"&A20&\"'!$18:$50\"),MATCH($BN$1,INDIRECT(\"'\"&A20&\"'!$A$18:$A$50\"),0),MATCH(Parts!$B20,INDIRECT(\"'\"&A20&\"'!$10:$10\"),0)),0)","v":0},null,"HINGE WITH SPRING 1510027",{"$f":"IFERROR(INDEX(INDIRECT(\"'\"&A20&\"'!$18:$50\"),MATCH($BQ$1,INDIRECT(\"'\"&A20&\"'!$A$18:$A$50\"),0),MATCH(Parts!$B20,INDIRECT(\"'\"&A20&\"'!$10:$10\"),0)),0)","v":1},8.85,null,{"$f":"IFERROR(INDEX(INDIRECT(\"'\"&A20&\"'!$18:$50\"),MATCH($BT$1,INDIRECT(\"'\"&A20&\"'!$A$18:$A$50\"),0),MATCH(Parts!$B20,INDIRECT(\"'\"&A20&\"'!$10:$10\"),0)),0)","v":0},null,null,{"$f":"IFERROR(INDEX(INDIRECT(\"'\"&A20&\"'!$18:$50\"),MATCH($BW$1,INDIRECT(\"'\"&A20&\"'!$A$18:$A$50\"),0),MATCH(Parts!$B20,INDIRECT(\"'\"&A20&\"'!$10:$10\"),0)),0)","v":0},null,"THERMOMETER 7020164",{"$f":"IFERROR(INDEX(INDIRECT(\"'\"&A20&\"'!$18:$50\"),MATCH($BZ$1,INDIRECT(\"'\"&A20&\"'!$A$18:$A$50\"),0),MATCH(Parts!$B20,INDIRECT(\"'\"&A20&\"'!$10:$10\"),0)),0)","v":1},10.61,null,{"$f":"IFERROR(INDEX(INDIRECT(\"'\"&A20&\"'!$18:$50\"),MATCH($CC$1,INDIRECT(\"'\"&A20&\"'!$A$18:$A$50\"),0),MATCH(Parts!$B20,INDIRECT(\"'\"&A20&\"'!$10:$10\"),0)),0)","v":0},null,"HANDLE WITH LOCK AND KEY 304090501",{"$f":"IFERROR(INDEX(INDIRECT(\"'\"&A20&\"'!$18:$50\"),MATCH($CF$1,INDIRECT(\"'\"&A20&\"'!$A$18:$A$50\"),0),MATCH(Parts!$B20,INDIRECT(\"'\"&A20&\"'!$10:$10\"),0)),0)","v":1},7.14,null,{"$f":"IFERROR(INDEX(INDIRECT(\"'\"&A20&\"'!$18:$50\"),MATCH($CI$1,INDIRECT(\"'\"&A20&\"'!$A$18:$A$50\"),0),MATCH(Parts!$B20,INDIRECT(\"'\"&A20&\"'!$10:$10\"),0)),0)","v":0},null,null,{"$f":"IFERROR(INDEX(INDIRECT(\"'\"&A20&\"'!$18:$50\"),MATCH($CL$1,INDIRECT(\"'\"&A20&\"'!$A$18:$A$50\"),0),MATCH(Parts!$B20,INDIRECT(\"'\"&A20&\"'!$10:$10\"),0)),0)","v":0},null,null,{"$f":"IFERROR(INDEX(INDIRECT(\"'\"&A20&\"'!$18:$50\"),MATCH($CO$1,INDIRECT(\"'\"&A20&\"'!$A$18:$A$50\"),0),MATCH(Parts!$B20,INDIRECT(\"'\"&A20&\"'!$10:$10\"),0)),0)","v":0},null,null,{"$f":"IFERROR(INDEX(INDIRECT(\"'\"&A20&\"'!$18:$50\"),MATCH($CR$1,INDIRECT(\"'\"&A20&\"'!$A$18:$A$50\"),0),MATCH(Parts!$B20,INDIRECT(\"'\"&A20&\"'!$10:$10\"),0)),0)","v":0},null,null,{"$f":"IFERROR(INDEX(INDIRECT(\"'\"&A20&\"'!$18:$50\"),MATCH($CU$1,INDIRECT(\"'\"&A20&\"'!$A$18:$A$50\"),0),MATCH(Parts!$B20,INDIRECT(\"'\"&A20&\"'!$10:$10\"),0)),0)","v":0},null,null,{"$f":"IFERROR(INDEX(INDIRECT(\"'\"&A20&\"'!$18:$50\"),MATCH($CX$1,INDIRECT(\"'\"&A20&\"'!$A$18:$A$50\"),0),MATCH(Parts!$B20,INDIRECT(\"'\"&A20&\"'!$10:$10\"),0)),0)","v":0},null,null,{"$f":"IFERROR(INDEX(INDIRECT(\"'\"&A20&\"'!$18:$50\"),MATCH($DA$1,INDIRECT(\"'\"&A20&\"'!$A$18:$A$50\"),0),MATCH(Parts!$B20,INDIRECT(\"'\"&A20&\"'!$10:$10\"),0)),0)","v":0},null,null,{"$f":"IFERROR(INDEX(INDIRECT(\"'\"&A20&\"'!$18:$50\"),MATCH($DD$1,INDIRECT(\"'\"&A20&\"'!$A$18:$A$50\"),0),MATCH(Parts!$B20,INDIRECT(\"'\"&A20&\"'!$10:$10\"),0)),0)","v":0},null,null,{"$f":"IFERROR(INDEX(INDIRECT(\"'\"&A20&\"'!$18:$50\"),MATCH($DG$1,INDIRECT(\"'\"&A20&\"'!$A$18:$A$50\"),0),MATCH(Parts!$B20,INDIRECT(\"'\"&A20&\"'!$10:$10\"),0)),0)","v":0},null,null,{"$f":"IFERROR(INDEX(INDIRECT(\"'\"&A20&\"'!$18:$50\"),MATCH($DJ$1,INDIRECT(\"'\"&A20&\"'!$A$18:$A$50\"),0),MATCH(Parts!$B20,INDIRECT(\"'\"&A20&\"'!$10:$10\"),0)),0)","v":0},null,null,{"$f":"IFERROR(INDEX(INDIRECT(\"'\"&A20&\"'!$18:$50\"),MATCH($DM$1,INDIRECT(\"'\"&A20&\"'!$A$18:$A$50\"),0),MATCH(Parts!$B20,INDIRECT(\"'\"&A20&\"'!$10:$10\"),0)),0)","v":0},null,null,{"$f":"IFERROR(INDEX(INDIRECT(\"'\"&A20&\"'!$18:$50\"),MATCH($DP$1,INDIRECT(\"'\"&A20&\"'!$A$18:$A$50\"),0),MATCH(Parts!$B20,INDIRECT(\"'\"&A20&\"'!$10:$10\"),0)),0)","v":0},null,null,{"$f":"IFERROR(INDEX(INDIRECT(\"'\"&A20&\"'!$18:$50\"),MATCH($DS$1,INDIRECT(\"'\"&A20&\"'!$A$18:$A$50\"),0),MATCH(Parts!$B20,INDIRECT(\"'\"&A20&\"'!$10:$10\"),0)),0)","v":0},null,null,{"$f":"IFERROR(INDEX(INDIRECT(\"'\"&A20&\"'!$18:$50\"),MATCH($DV$1,INDIRECT(\"'\"&A20&\"'!$A$18:$A$50\"),0),MATCH(Parts!$B20,INDIRECT(\"'\"&A20&\"'!$10:$10\"),0)),0)","v":0},null,null,{"$f":"IFERROR(INDEX(INDIRECT(\"'\"&A20&\"'!$18:$50\"),MATCH($DY$1,INDIRECT(\"'\"&A20&\"'!$A$18:$A$50\"),0),MATCH(Parts!$B20,INDIRECT(\"'\"&A20&\"'!$10:$10\"),0)),0)","v":0},null,null,{"$f":"IFERROR(INDEX(INDIRECT(\"'\"&A20&\"'!$18:$50\"),MATCH($EB$1,INDIRECT(\"'\"&A20&\"'!$A$18:$A$50\"),0),MATCH(Parts!$B20,INDIRECT(\"'\"&A20&\"'!$10:$10\"),0)),0)","v":0},null,null,{"$f":"IFERROR(INDEX(INDIRECT(\"'\"&A20&\"'!$18:$50\"),MATCH($EE$1,INDIRECT(\"'\"&A20&\"'!$A$18:$A$50\"),0),MATCH(Parts!$B20,INDIRECT(\"'\"&A20&\"'!$10:$10\"),0)),0)","v":0},null,null,{"$f":"IFERROR(INDEX(INDIRECT(\"'\"&A20&\"'!$18:$50\"),MATCH($EH$1,INDIRECT(\"'\"&A20&\"'!$A$18:$A$50\"),0),MATCH(Parts!$B20,INDIRECT(\"'\"&A20&\"'!$10:$10\"),0)),0)","v":0},null,null,{"$f":"IFERROR(INDEX(INDIRECT(\"'\"&A20&\"'!$18:$50\"),MATCH($EK$1,INDIRECT(\"'\"&A20&\"'!$A$18:$A$50\"),0),MATCH(Parts!$B20,INDIRECT(\"'\"&A20&\"'!$10:$10\"),0)),0)","v":0}]
[{"$f":"PQS!A23","v":"ILR"},"E003/012",{"$f":"PQS!E23","v":"MK 404"},{"$f":"PQS!P23","v":"€"},315.05,"COMPRESSOR, SECOP FR8 5G, HST, COMPL. 03.6038480",{"$f":"IFERROR(INDEX(INDIRECT(\"'\"&A21&\"'!$18:$50\"),MATCH(Parts!F$1,INDIRECT(\"'\"&A21&\"'!$A$18:$A$50\"),0),MATCH(Parts!$B21,INDIRECT(\"'\"&A21&\"'!$10:$10\"),0)),0)","v":1},105.03,"ELECTRONIC THERMOSTAT 7020294",{"$f":"IFERROR(INDEX(INDIRECT(\"'\"&A21&\"'!$18:$50\"),MATCH($I$1,INDIRECT(\"'\"&A21&\"'!$A$18:$A$50\"),0),MATCH(Parts!$B21,INDIRECT(\"'\"&A21&\"'!$10:$10\"),0)),0)","v":1},29.82,null,{"$f":"IFERROR(INDEX(INDIRECT(\"'\"&A21&\"'!$18:$50\"),MATCH($L$1,INDIRECT(\"'\"&A21&\"'!$A$18:$A$50\"),0),MATCH(Parts!$B21,INDIRECT(\"'\"&A21&\"'!$10:$10\"),0)),0)","v":0},null,"FAN FOR COMPRESSOR 6000902",{"$f":"IFERROR(INDEX(INDIRECT(\"'\"&A21&\"'!$18:$50\"),MATCH($O$1,INDIRECT(\"'\"&A21&\"'!$A$18:$A$50\"),0),MATCH(Parts!$B21,INDIRECT(\"'\"&A21&\"'!$10:$10\"),0)),0)","v":1},22.43,null,{"$f":"IFERROR(INDEX(INDIRECT(\"'\"&A21&\"'!$18:$50\"),MATCH($R$1,INDIRECT(\"'\"&A21&\"'!$A$18:$A$50\"),0),MATCH(Parts!$B21,INDIRECT(\"'\"&A21&\"'!$10:$10\"),0)),0)","v":0},null,null,{"$f":"IFERROR(INDEX(INDIRECT(\"'\"&A21&\"'!$18:$50\"),MATCH($U$1,INDIRECT(\"'\"&A21&\"'!$A$18:$A$50\"),0),MATCH(Parts!$B21,INDIRECT(\"'\"&A21&\"'!$10:$10\"),0)),0)","v":0},null,"FAN 7030119",{"$f":"IFERROR(INDEX(INDIRECT(\"'\"&A21&\"'!$18:$50\"),MATCH($X$1,INDIRECT(\"'\"&A21&\"'!$A$18:$A$50\"),0),MATCH(Parts!$B21,INDIRECT(\"'\"&A21&\"'!$10:$10\"),0)),0)","v":1},6.91,null,{"$f":"IFERROR(INDEX(INDIRECT(\"'\"&A21&\"'!$18:$50\"),MATCH($AA$1,INDIRECT(\"'\"&A21&\"'!$A$18:$A$50\"),0),MATCH(Parts!$B21,INDIRECT(\"'\"&A21&\"'!$10:$10\"),0)),0)","v":0},null,null,{"$f":"IFERROR(INDEX(INDIRECT(\"'\"&A21&\"'!$18:$50\"),MATCH($AD$1,INDIRECT(\"'\"&A21&\"'!$A$18:$A$50\"),0),MATCH(Parts!$B21,INDIRECT(\"'\"&A21&\"'!$10:$10\"),0)),0)","v":0},null,null,{"$f":"IFERROR(INDEX(INDIRECT(\"'\"&A21&\"'!$18:$50\"),MATCH($AG$1,INDIRECT(\"'\"&A21&\"'!$A$18:$A$50\"),0),MATCH(Parts!$B21,INDIRECT(\"'\"&A21&\"'!$10:$10\"),0)),0)","v":0},null,null,{"$f":"IFERROR(INDEX(INDIRECT(\"'\"&A21&\"'!$18:$50\"),MATCH($AJ$1,INDIRECT(\"'\"&A21&\"'!$A$18:$A$50\"),0),MATCH(Parts!$B21,INDIRECT(\"'\"&A21&\"'!$10:$10\"),0)),0)","v":0},null,null,{"$f":"IFERROR(INDEX(INDIRECT(\"'\"&A21&\"'!$18:$50\"),MATCH($AM$1,INDIRECT(\"'\"&A21&\"'!$A$18:$A$50\"),0),MATCH(Parts!$B21,INDIRECT(\"'\"&A21&\"'!$10:$10\"),0)),0)","v":0},null,null,{"$f":"IFERROR(INDEX(INDIRECT(\"'\"&A21&\"'!$18:$50\"),MATCH($AP$1,INDIRECT(\"'\"&A21&\"'!$A$18:$A$50\"),0),MATCH(Parts!$B21,INDIRECT(\"'\"&A21&\"'!$10:$10\"),0)),0)","v":0},null,"TOP BASKET 3520012 - 9,03\nBOTTOM BASKET 3520405 -  11,75",{"$f":"IFERROR(INDEX(INDIRECT(\"'\"&A21&\"'!$18:$50\"),MATCH($AS$1,INDIRECT(\"'\"&A21&\"'!$A$18:$A$50\"),0),MATCH(Parts!$B21,INDIRECT(\"'\"&A21&\"'!$10:$10\"),0)),0)","v":2},{"$f":"AVERAGE(9.03,11.75)","v":10.39},null,{"$f":"IFERROR(INDEX(INDIRECT(\"'\"&A21&\"'!$18:$50\"),MATCH($AV$1,INDIRECT(\"'\"&A21&\"'!$A$18:$A$50\"),0),MATCH(Parts!$B21,INDIRECT(\"'\"&A21&\"'!$10:$10\"),0)),0)","v":0},null,"STARTING DEVICE, (RELAY) 6520106",{"$f":"IFERROR(INDEX(INDIRECT(\"'\"&A21&\"'!$18:$50\"),MATCH($AY$1,INDIRECT(\"'\"&A21&\"'!$A$18:$A$50\"),0),MATCH(Parts!$B21,INDIRECT(\"'\"&A21&\"'!$10:$10\"),0)),0)","v":1},9.76,"STARTING DEVICE, (CAPACITOR) 6520004",{"$f":"IFERROR(INDEX(INDIRECT(\"'\"&A21&\"'!$18:$50\"),MATCH($BB$1,INDIRECT(\"'\"&A21&\"'!$A$18:$A$50\"),0),MATCH(Parts!$B21,INDIRECT(\"'\"&A21&\"'!$10:$10\"),0)),0)","v":1},16.93,"ALU-CYLINDER WITH R134A (1000 GRS) 04.9954073",{"$f":"IFERROR(INDEX(INDIRECT(\"'\"&A21&\"'!$18:$50\"),MATCH($BE$1,INDIRECT(\"'\"&A21&\"'!$A$18:$A$50\"),0),MATCH(Parts!$B21,INDIRECT(\"'\"&A21&\"'!$10:$10\"),0)),0)","v":1},65.03,"FILTER/DRIER TYPE XH 9 (20 GRS) 0-6538001",{"$f":"IFERROR(INDEX(INDIRECT(\"'\"&A21&\"'!$18:$50\"),MATCH($BH$1,INDIRECT(\"'\"&A21&\"'!$A$18:$A$50\"),0),MATCH(Parts!$B21,INDIRECT(\"'\"&A21&\"'!$10:$10\"),0)),0)","v":1},3.84,null,{"$f":"IFERROR(INDEX(INDIRECT(\"'\"&A21&\"'!$18:$50\"),MATCH($BK$1,INDIRECT(\"'\"&A21&\"'!$A$18:$A$50\"),0),MATCH(Parts!$B21,INDIRECT(\"'\"&A21&\"'!$10:$10\"),0)),0)","v":0},null,null,{"$f":"IFERROR(INDEX(INDIRECT(\"'\"&A21&\"'!$18:$50\"),MATCH($BN$1,INDIRECT(\"'\"&A21&\"'!$A$18:$A$50\"),0),MATCH(Parts!$B21,INDIRECT(\"'\"&A21&\"'!$10:$10\"),0)),0)","v":0},null,"HINGE WITH SPRING 1510029",{"$f":"IFERROR(INDEX(INDIRECT(\"'\"&A21&\"'!$18:$50\"),MATCH($BQ$1,INDIRECT(\"'\"&A21&\"'!$A$18:$A$50\"),0),MATCH(Parts!$B21,INDIRECT(\"'\"&A21&\"'!$10:$10\"),0)),0)","v":1},8.85,null,{"$f":"IFERROR(INDEX(INDIRECT(\"'\"&A21&\"'!$18:$50\"),MATCH($BT$1,INDIRECT(\"'\"&A21&\"'!$A$18:$A$50\"),0),MATCH(Parts!$B21,INDIRECT(\"'\"&A21&\"'!$10:$10\"),0)),0)","v":0},null,"TRANSFORMER 7030108",{"$f":"IFERROR(INDEX(INDIRECT(\"'\"&A21&\"'!$18:$50\"),MATCH($BW$1,INDIRECT(\"'\"&A21&\"'!$A$18:$A$50\"),0),MATCH(Parts!$B21,INDIRECT(\"'\"&A21&\"'!$10:$10\"),0)),0)","v":1},7.92,"THERMOMETER 7020164",{"$f":"IFERROR(INDEX(INDIRECT(\"'\"&A21&\"'!$18:$50\"),MATCH($BZ$1,INDIRECT(\"'\"&A21&\"'!$A$18:$A$50\"),0),MATCH(Parts!$B21,INDIRECT(\"'\"&A21&\"'!$10:$10\"),0)),0)","v":1},10.61,null,{"$f":"IFERROR(INDEX(INDIRECT(\"'\"&A21&\"'!$18:$50\"),MATCH($CC$1,INDIRECT(\"'\"&A21&\"'!$A$18:$A$50\"),0),MATCH(Parts!$B21,INDIRECT(\"'\"&A21&\"'!$10:$10\"),0)),0)","v":0},null,"HANDLE WITH LOCK AND KEY 304090501",{"$f":"IFERROR(INDEX(INDIRECT(\"'\"&A21&\"'!$18:$50\"),MATCH($CF$1,INDIRECT(\"'\"&A21&\"'!$A$18:$A$50\"),0),MATCH(Parts!$B21,INDIRECT(\"'\"&A21&\"'!$10:$10\"),0)),0)","v":1},7.14,null,{"$f":"IFERROR(INDEX(INDIRECT(\"'\"&A21&\"'!$18:$50\"),MATCH($CI$1,INDIRECT(\"'\"&A21&\"'!$A$18:$A$50\"),0),MATCH(Parts!$B21,INDIRECT(\"'\"&A21&\"'!$10:$10\"),0)),0)","v":0},null,null,{"$f":"IFERROR(INDEX(INDIRECT(\"'\"&A21&\"'!$18:$50\"),MATCH($CL$1,INDIRECT(\"'\"&A21&\"'!$A$18:$A$50\"),0),MATCH(Parts!$B21,INDIRECT(\"'\"&A21&\"'!$10:$10\"),0)),0)","v":0},null,null,{"$f":"IFERROR(INDEX(INDIRECT(\"'\"&A21&\"'!$18:$50\"),MATCH($CO$1,INDIRECT(\"'\"&A21&\"'!$A$18:$A$50\"),0),MATCH(Parts!$B21,INDIRECT(\"'\"&A21&\"'!$10:$10\"),0)),0)","v":0},null,null,{"$f":"IFERROR(INDEX(INDIRECT(\"'\"&A21&\"'!$18:$50\"),MATCH($CR$1,INDIRECT(\"'\"&A21&\"'!$A$18:$A$50\"),0),MATCH(Parts!$B21,INDIRECT(\"'\"&A21&\"'!$10:$10\"),0)),0)","v":0},null,null,{"$f":"IFERROR(INDEX(INDIRECT(\"'\"&A21&\"'!$18:$50\"),MATCH($CU$1,INDIRECT(\"'\"&A21&\"'!$A$18:$A$50\"),0),MATCH(Parts!$B21,INDIRECT(\"'\"&A21&\"'!$10:$10\"),0)),0)","v":0},null,null,{"$f":"IFERROR(INDEX(INDIRECT(\"'\"&A21&\"'!$18:$50\"),MATCH($CX$1,INDIRECT(\"'\"&A21&\"'!$A$18:$A$50\"),0),MATCH(Parts!$B21,INDIRECT(\"'\"&A21&\"'!$10:$10\"),0)),0)","v":0},null,null,{"$f":"IFERROR(INDEX(INDIRECT(\"'\"&A21&\"'!$18:$50\"),MATCH($DA$1,INDIRECT(\"'\"&A21&\"'!$A$18:$A$50\"),0),MATCH(Parts!$B21,INDIRECT(\"'\"&A21&\"'!$10:$10\"),0)),0)","v":0},null,null,{"$f":"IFERROR(INDEX(INDIRECT(\"'\"&A21&\"'!$18:$50\"),MATCH($DD$1,INDIRECT(\"'\"&A21&\"'!$A$18:$A$50\"),0),MATCH(Parts!$B21,INDIRECT(\"'\"&A21&\"'!$10:$10\"),0)),0)","v":0},null,null,{"$f":"IFERROR(INDEX(INDIRECT(\"'\"&A21&\"'!$18:$50\"),MATCH($DG$1,INDIRECT(\"'\"&A21&\"'!$A$18:$A$50\"),0),MATCH(Parts!$B21,INDIRECT(\"'\"&A21&\"'!$10:$10\"),0)),0)","v":0},null,null,{"$f":"IFERROR(INDEX(INDIRECT(\"'\"&A21&\"'!$18:$50\"),MATCH($DJ$1,INDIRECT(\"'\"&A21&\"'!$A$18:$A$50\"),0),MATCH(Parts!$B21,INDIRECT(\"'\"&A21&\"'!$10:$10\"),0)),0)","v":0},null,null,{"$f":"IFERROR(INDEX(INDIRECT(\"'\"&A21&\"'!$18:$50\"),MATCH($DM$1,INDIRECT(\"'\"&A21&\"'!$A$18:$A$50\"),0),MATCH(Parts!$B21,INDIRECT(\"'\"&A21&\"'!$10:$10\"),0)),0)","v":0},null,null,{"$f":"IFERROR(INDEX(INDIRECT(\"'\"&A21&\"'!$18:$50\"),MATCH($DP$1,INDIRECT(\"'\"&A21&\"'!$A$18:$A$50\"),0),MATCH(Parts!$B21,INDIRECT(\"'\"&A21&\"'!$10:$10\"),0)),0)","v":0},null,null,{"$f":"IFERROR(INDEX(INDIRECT(\"'\"&A21&\"'!$18:$50\"),MATCH($DS$1,INDIRECT(\"'\"&A21&\"'!$A$18:$A$50\"),0),MATCH(Parts!$B21,INDIRECT(\"'\"&A21&\"'!$10:$10\"),0)),0)","v":0},null,null,{"$f":"IFERROR(INDEX(INDIRECT(\"'\"&A21&\"'!$18:$50\"),MATCH($DV$1,INDIRECT(\"'\"&A21&\"'!$A$18:$A$50\"),0),MATCH(Parts!$B21,INDIRECT(\"'\"&A21&\"'!$10:$10\"),0)),0)","v":0},null,null,{"$f":"IFERROR(INDEX(INDIRECT(\"'\"&A21&\"'!$18:$50\"),MATCH($DY$1,INDIRECT(\"'\"&A21&\"'!$A$18:$A$50\"),0),MATCH(Parts!$B21,INDIRECT(\"'\"&A21&\"'!$10:$10\"),0)),0)","v":0},null,null,{"$f":"IFERROR(INDEX(INDIRECT(\"'\"&A21&\"'!$18:$50\"),MATCH($EB$1,INDIRECT(\"'\"&A21&\"'!$A$18:$A$50\"),0),MATCH(Parts!$B21,INDIRECT(\"'\"&A21&\"'!$10:$10\"),0)),0)","v":0},null,null,{"$f":"IFERROR(INDEX(INDIRECT(\"'\"&A21&\"'!$18:$50\"),MATCH($EE$1,INDIRECT(\"'\"&A21&\"'!$A$18:$A$50\"),0),MATCH(Parts!$B21,INDIRECT(\"'\"&A21&\"'!$10:$10\"),0)),0)","v":0},null,null,{"$f":"IFERROR(INDEX(INDIRECT(\"'\"&A21&\"'!$18:$50\"),MATCH($EH$1,INDIRECT(\"'\"&A21&\"'!$A$18:$A$50\"),0),MATCH(Parts!$B21,INDIRECT(\"'\"&A21&\"'!$10:$10\"),0)),0)","v":0},null,null,{"$f":"IFERROR(INDEX(INDIRECT(\"'\"&A21&\"'!$18:$50\"),MATCH($EK$1,INDIRECT(\"'\"&A21&\"'!$A$18:$A$50\"),0),MATCH(Parts!$B21,INDIRECT(\"'\"&A21&\"'!$10:$10\"),0)),0)","v":0}]
[{"$f":"PQS!A24","v":"ILR"},"E003/014",{"$f":"PQS!E24","v":"TCW 2000 AC*"},{"$f":"PQS!P24","v":"€"},567.28,"Compressor - 296.9701.41 - 130.32 €",{"$f":"IFERROR(INDEX(INDIRECT(\"'\"&A22&\"'!$18:$50\"),MATCH(Parts!F$1,INDIRECT(\"'\"&A22&\"'!$A$18:$A$50\"),0),MATCH(Parts!$B22,INDIRECT(\"'\"&A22&\"'!$10:$10\"),0)),0)","v":1},130.32,"Electronic Thermostat - 292.2009.00 - 89.36 €",{"$f":"IFERROR(INDEX(INDIRECT(\"'\"&A22&\"'!$18:$50\"),MATCH($I$1,INDIRECT(\"'\"&A22&\"'!$A$18:$A$50\"),0),MATCH(Parts!$B22,INDIRECT(\"'\"&A22&\"'!$10:$10\"),0)),0)","v":1},89.36,null,{"$f":"IFERROR(INDEX(INDIRECT(\"'\"&A22&\"'!$18:$50\"),MATCH($L$1,INDIRECT(\"'\"&A22&\"'!$A$18:$A$50\"),0),MATCH(Parts!$B22,INDIRECT(\"'\"&A22&\"'!$10:$10\"),0)),0)","v":0},null,null,{"$f":"IFERROR(INDEX(INDIRECT(\"'\"&A22&\"'!$18:$50\"),MATCH($O$1,INDIRECT(\"'\"&A22&\"'!$A$18:$A$50\"),0),MATCH(Parts!$B22,INDIRECT(\"'\"&A22&\"'!$10:$10\"),0)),0)","v":0},null,"Panel TCW2000",{"$f":"IFERROR(INDEX(INDIRECT(\"'\"&A22&\"'!$18:$50\"),MATCH($R$1,INDIRECT(\"'\"&A22&\"'!$A$18:$A$50\"),0),MATCH(Parts!$B22,INDIRECT(\"'\"&A22&\"'!$10:$10\"),0)),0)","v":1},11.79,"Sensor   296.9804.20",{"$f":"IFERROR(INDEX(INDIRECT(\"'\"&A22&\"'!$18:$50\"),MATCH($U$1,INDIRECT(\"'\"&A22&\"'!$A$18:$A$50\"),0),MATCH(Parts!$B22,INDIRECT(\"'\"&A22&\"'!$10:$10\"),0)),0)","v":1},8.27,"Fan - 296.9759.17 - 28.30 €",{"$f":"IFERROR(INDEX(INDIRECT(\"'\"&A22&\"'!$18:$50\"),MATCH($X$1,INDIRECT(\"'\"&A22&\"'!$A$18:$A$50\"),0),MATCH(Parts!$B22,INDIRECT(\"'\"&A22&\"'!$10:$10\"),0)),0)","v":1},28.3,null,{"$f":"IFERROR(INDEX(INDIRECT(\"'\"&A22&\"'!$18:$50\"),MATCH($AA$1,INDIRECT(\"'\"&A22&\"'!$A$18:$A$50\"),0),MATCH(Parts!$B22,INDIRECT(\"'\"&A22&\"'!$10:$10\"),0)),0)","v":0},null,null,{"$f":"IFERROR(INDEX(INDIRECT(\"'\"&A22&\"'!$18:$50\"),MATCH($AD$1,INDIRECT(\"'\"&A22&\"'!$A$18:$A$50\"),0),MATCH(Parts!$B22,INDIRECT(\"'\"&A22&\"'!$10:$10\"),0)),0)","v":0},null,null,{"$f":"IFERROR(INDEX(INDIRECT(\"'\"&A22&\"'!$18:$50\"),MATCH($AG$1,INDIRECT(\"'\"&A22&\"'!$A$18:$A$50\"),0),MATCH(Parts!$B22,INDIRECT(\"'\"&A22&\"'!$10:$10\"),0)),0)","v":0},null,null,{"$f":"IFERROR(INDEX(INDIRECT(\"'\"&A22&\"'!$18:$50\"),MATCH($AJ$1,INDIRECT(\"'\"&A22&\"'!$A$18:$A$50\"),0),MATCH(Parts!$B22,INDIRECT(\"'\"&A22&\"'!$10:$10\"),0)),0)","v":0},null,"Switch   292.2044.19",{"$f":"IFERROR(INDEX(INDIRECT(\"'\"&A22&\"'!$18:$50\"),MATCH($AM$1,INDIRECT(\"'\"&A22&\"'!$A$18:$A$50\"),0),MATCH(Parts!$B22,INDIRECT(\"'\"&A22&\"'!$10:$10\"),0)),0)","v":1},3.53,"292.2904.20",{"$f":"IFERROR(INDEX(INDIRECT(\"'\"&A22&\"'!$18:$50\"),MATCH($AP$1,INDIRECT(\"'\"&A22&\"'!$A$18:$A$50\"),0),MATCH(Parts!$B22,INDIRECT(\"'\"&A22&\"'!$10:$10\"),0)),0)","v":1},248.78,"Basket   292.9427.56",{"$f":"IFERROR(INDEX(INDIRECT(\"'\"&A22&\"'!$18:$50\"),MATCH($AS$1,INDIRECT(\"'\"&A22&\"'!$A$18:$A$50\"),0),MATCH(Parts!$B22,INDIRECT(\"'\"&A22&\"'!$10:$10\"),0)),0)","v":1},10.29,null,{"$f":"IFERROR(INDEX(INDIRECT(\"'\"&A22&\"'!$18:$50\"),MATCH($AV$1,INDIRECT(\"'\"&A22&\"'!$A$18:$A$50\"),0),MATCH(Parts!$B22,INDIRECT(\"'\"&A22&\"'!$10:$10\"),0)),0)","v":0},null,"Start Relay  296.9706.07",{"$f":"IFERROR(INDEX(INDIRECT(\"'\"&A22&\"'!$18:$50\"),MATCH($AY$1,INDIRECT(\"'\"&A22&\"'!$A$18:$A$50\"),0),MATCH(Parts!$B22,INDIRECT(\"'\"&A22&\"'!$10:$10\"),0)),0)","v":1},5.19,"Starting capacitor - 296.9706.48 - 11.54 €",{"$f":"IFERROR(INDEX(INDIRECT(\"'\"&A22&\"'!$18:$50\"),MATCH($BB$1,INDIRECT(\"'\"&A22&\"'!$A$18:$A$50\"),0),MATCH(Parts!$B22,INDIRECT(\"'\"&A22&\"'!$10:$10\"),0)),0)","v":1},11.54,null,{"$f":"IFERROR(INDEX(INDIRECT(\"'\"&A22&\"'!$18:$50\"),MATCH($BE$1,INDIRECT(\"'\"&A22&\"'!$A$18:$A$50\"),0),MATCH(Parts!$B22,INDIRECT(\"'\"&A22&\"'!$10:$10\"),0)),0)","v":0},null,"Drier - 294.1853.02",{"$f":"IFERROR(INDEX(INDIRECT(\"'\"&A22&\"'!$18:$50\"),MATCH($BH$1,INDIRECT(\"'\"&A22&\"'!$A$18:$A$50\"),0),MATCH(Parts!$B22,INDIRECT(\"'\"&A22&\"'!$10:$10\"),0)),0)","v":1},1.9,null,{"$f":"IFERROR(INDEX(INDIRECT(\"'\"&A22&\"'!$18:$50\"),MATCH($BK$1,INDIRECT(\"'\"&A22&\"'!$A$18:$A$50\"),0),MATCH(Parts!$B22,INDIRECT(\"'\"&A22&\"'!$10:$10\"),0)),0)","v":0},null,null,{"$f":"IFERROR(INDEX(INDIRECT(\"'\"&A22&\"'!$18:$50\"),MATCH($BN$1,INDIRECT(\"'\"&A22&\"'!$A$18:$A$50\"),0),MATCH(Parts!$B22,INDIRECT(\"'\"&A22&\"'!$10:$10\"),0)),0)","v":0},null,"Outer Hinge  292.8503.30 - 7.76\nInner Hinge 292.8503.31 - 8.41",{"$f":"IFERROR(INDEX(INDIRECT(\"'\"&A22&\"'!$18:$50\"),MATCH($BQ$1,INDIRECT(\"'\"&A22&\"'!$A$18:$A$50\"),0),MATCH(Parts!$B22,INDIRECT(\"'\"&A22&\"'!$10:$10\"),0)),0)","v":2},{"$f":"AVERAGE(7.76,8.41)","v":8.0850000000000009},"Cover Hinge  296.4018.00",{"$f":"IFERROR(INDEX(INDIRECT(\"'\"&A22&\"'!$18:$50\"),MATCH($BT$1,INDIRECT(\"'\"&A22&\"'!$A$18:$A$50\"),0),MATCH(Parts!$B22,INDIRECT(\"'\"&A22&\"'!$10:$10\"),0)),0)","v":1},0.73,null,{"$f":"IFERROR(INDEX(INDIRECT(\"'\"&A22&\"'!$18:$50\"),MATCH($BW$1,INDIRECT(\"'\"&A22&\"'!$A$18:$A$50\"),0),MATCH(Parts!$B22,INDIRECT(\"'\"&A22&\"'!$10:$10\"),0)),0)","v":0},null,null,{"$f":"IFERROR(INDEX(INDIRECT(\"'\"&A22&\"'!$18:$50\"),MATCH($BZ$1,INDIRECT(\"'\"&A22&\"'!$A$18:$A$50\"),0),MATCH(Parts!$B22,INDIRECT(\"'\"&A22&\"'!$10:$10\"),0)),0)","v":0},null,"Ice Pack 292.8508.01",{"$f":"IFERROR(INDEX(INDIRECT(\"'\"&A22&\"'!$18:$50\"),MATCH($CC$1,INDIRECT(\"'\"&A22&\"'!$A$18:$A$50\"),0),MATCH(Parts!$B22,INDIRECT(\"'\"&A22&\"'!$10:$10\"),0)),0)","v":1},1.1100000000000001,null,{"$f":"IFERROR(INDEX(INDIRECT(\"'\"&A22&\"'!$18:$50\"),MATCH($CF$1,INDIRECT(\"'\"&A22&\"'!$A$18:$A$50\"),0),MATCH(Parts!$B22,INDIRECT(\"'\"&A22&\"'!$10:$10\"),0)),0)","v":0},null,null,{"$f":"IFERROR(INDEX(INDIRECT(\"'\"&A22&\"'!$18:$50\"),MATCH($CI$1,INDIRECT(\"'\"&A22&\"'!$A$18:$A$50\"),0),MATCH(Parts!$B22,INDIRECT(\"'\"&A22&\"'!$10:$10\"),0)),0)","v":0},null,null,{"$f":"IFERROR(INDEX(INDIRECT(\"'\"&A22&\"'!$18:$50\"),MATCH($CL$1,INDIRECT(\"'\"&A22&\"'!$A$18:$A$50\"),0),MATCH(Parts!$B22,INDIRECT(\"'\"&A22&\"'!$10:$10\"),0)),0)","v":0},null,null,{"$f":"IFERROR(INDEX(INDIRECT(\"'\"&A22&\"'!$18:$50\"),MATCH($CO$1,INDIRECT(\"'\"&A22&\"'!$A$18:$A$50\"),0),MATCH(Parts!$B22,INDIRECT(\"'\"&A22&\"'!$10:$10\"),0)),0)","v":0},null,null,{"$f":"IFERROR(INDEX(INDIRECT(\"'\"&A22&\"'!$18:$50\"),MATCH($CR$1,INDIRECT(\"'\"&A22&\"'!$A$18:$A$50\"),0),MATCH(Parts!$B22,INDIRECT(\"'\"&A22&\"'!$10:$10\"),0)),0)","v":0},null,null,{"$f":"IFERROR(INDEX(INDIRECT(\"'\"&A22&\"'!$18:$50\"),MATCH($CU$1,INDIRECT(\"'\"&A22&\"'!$A$18:$A$50\"),0),MATCH(Parts!$B22,INDIRECT(\"'\"&A22&\"'!$10:$10\"),0)),0)","v":0},null,null,{"$f":"IFERROR(INDEX(INDIRECT(\"'\"&A22&\"'!$18:$50\"),MATCH($CX$1,INDIRECT(\"'\"&A22&\"'!$A$18:$A$50\"),0),MATCH(Parts!$B22,INDIRECT(\"'\"&A22&\"'!$10:$10\"),0)),0)","v":0},null,null,{"$f":"IFERROR(INDEX(INDIRECT(\"'\"&A22&\"'!$18:$50\"),MATCH($DA$1,INDIRECT(\"'\"&A22&\"'!$A$18:$A$50\"),0),MATCH(Parts!$B22,INDIRECT(\"'\"&A22&\"'!$10:$10\"),0)),0)","v":0},null,null,{"$f":"IFERROR(INDEX(INDIRECT(\"'\"&A22&\"'!$18:$50\"),MATCH($DD$1,INDIRECT(\"'\"&A22&\"'!$A$18:$A$50\"),0),MATCH(Parts!$B22,INDIRECT(\"'\"&A22&\"'!$10:$10\"),0)),0)","v":0},null,null,{"$f":"IFERROR(INDEX(INDIRECT(\"'\"&A22&\"'!$18:$50\"),MATCH($DG$1,INDIRECT(\"'\"&A22&\"'!$A$18:$A$50\"),0),MATCH(Parts!$B22,INDIRECT(\"'\"&A22&\"'!$10:$10\"),0)),0)","v":0},null,null,{"$f":"IFERROR(INDEX(INDIRECT(\"'\"&A22&\"'!$18:$50\"),MATCH($DJ$1,INDIRECT(\"'\"&A22&\"'!$A$18:$A$50\"),0),MATCH(Parts!$B22,INDIRECT(\"'\"&A22&\"'!$10:$10\"),0)),0)","v":0},null,null,{"$f":"IFERROR(INDEX(INDIRECT(\"'\"&A22&\"'!$18:$50\"),MATCH($DM$1,INDIRECT(\"'\"&A22&\"'!$A$18:$A$50\"),0),MATCH(Parts!$B22,INDIRECT(\"'\"&A22&\"'!$10:$10\"),0)),0)","v":0},null,null,{"$f":"IFERROR(INDEX(INDIRECT(\"'\"&A22&\"'!$18:$50\"),MATCH($DP$1,INDIRECT(\"'\"&A22&\"'!$A$18:$A$50\"),0),MATCH(Parts!$B22,INDIRECT(\"'\"&A22&\"'!$10:$10\"),0)),0)","v":0},null,null,{"$f":"IFERROR(INDEX(INDIRECT(\"'\"&A22&\"'!$18:$50\"),MATCH($DS$1,INDIRECT(\"'\"&A22&\"'!$A$18:$A$50\"),0),MATCH(Parts!$B22,INDIRECT(\"'\"&A22&\"'!$10:$10\"),0)),0)","v":0},null,null,{"$f":"IFERROR(INDEX(INDIRECT(\"'\"&A22&\"'!$18:$50\"),MATCH($DV$1,INDIRECT(\"'\"&A22&\"'!$A$18:$A$50\"),0),MATCH(Parts!$B22,INDIRECT(\"'\"&A22&\"'!$10:$10\"),0)),0)","v":0},null,null,{"$f":"IFERROR(INDEX(INDIRECT(\"'\"&A22&\"'!$18:$50\"),MATCH($DY$1,INDIRECT(\"'\"&A22&\"'!$A$18:$A$50\"),0),MATCH(Parts!$B22,INDIRECT(\"'\"&A22&\"'!$10:$10\"),0)),0)","v":0},null,null,{"$f":"IFERROR(INDEX(INDIRECT(\"'\"&A22&\"'!$18:$50\"),MATCH($EB$1,INDIRECT(\"'\"&A22&\"'!$A$18:$A$50\"),0),MATCH(Parts!$B22,INDIRECT(\"'\"&A22&\"'!$10:$10\"),0)),0)","v":0},null,null,{"$f":"IFERROR(INDEX(INDIRECT(\"'\"&A22&\"'!$18:$50\"),MATCH($EE$1,INDIRECT(\"'\"&A22&\"'!$A$18:$A$50\"),0),MATCH(Parts!$B22,INDIRECT(\"'\"&A22&\"'!$10:$10\"),0)),0)","v":0},null,null,{"$f":"IFERROR(INDEX(INDIRECT(\"'\"&A22&\"'!$18:$50\"),MATCH($EH$1,INDIRECT(\"'\"&A22&\"'!$A$18:$A$50\"),0),MATCH(Parts!$B22,INDIRECT(\"'\"&A22&\"'!$10:$10\"),0)),0)","v":0},null,null,{"$f":"IFERROR(INDEX(INDIRECT(\"'\"&A22&\"'!$18:$50\"),MATCH($EK$1,INDIRECT(\"'\"&A22&\"'!$A$18:$A$50\"),0),MATCH(Parts!$B22,INDIRECT(\"'\"&A22&\"'!$10:$10\"),0)),0)","v":0}]
[{"$f":"PQS!A25","v":"ILR"},"E003/017",{"$f":"PQS!E25","v":"TCW 3000 AC"},{"$f":"PQS!P25","v":"€"},405.86,"Compressor, 296.9701.33 - 167.55 €",{"$f":"IFERROR(INDEX(INDIRECT(\"'\"&A23&\"'!$18:$50\"),MATCH(Parts!F$1,INDIRECT(\"'\"&A23&\"'!$A$18:$A$50\"),0),MATCH(Parts!$B23,INDIRECT(\"'\"&A23&\"'!$10:$10\"),0)),0)","v":1},167.55,"Electronic thermostat TCW3000, 292.2009.03 - 104.22 €",{"$f":"IFERROR(INDEX(INDIRECT(\"'\"&A23&\"'!$18:$50\"),MATCH($I$1,INDIRECT(\"'\"&A23&\"'!$A$18:$A$50\"),0),MATCH(Parts!$B23,INDIRECT(\"'\"&A23&\"'!$10:$10\"),0)),0)","v":1},104.22,null,{"$f":"IFERROR(INDEX(INDIRECT(\"'\"&A23&\"'!$18:$50\"),MATCH($L$1,INDIRECT(\"'\"&A23&\"'!$A$18:$A$50\"),0),MATCH(Parts!$B23,INDIRECT(\"'\"&A23&\"'!$10:$10\"),0)),0)","v":0},null,null,{"$f":"IFERROR(INDEX(INDIRECT(\"'\"&A23&\"'!$18:$50\"),MATCH($O$1,INDIRECT(\"'\"&A23&\"'!$A$18:$A$50\"),0),MATCH(Parts!$B23,INDIRECT(\"'\"&A23&\"'!$10:$10\"),0)),0)","v":0},null,null,{"$f":"IFERROR(INDEX(INDIRECT(\"'\"&A23&\"'!$18:$50\"),MATCH($R$1,INDIRECT(\"'\"&A23&\"'!$A$18:$A$50\"),0),MATCH(Parts!$B23,INDIRECT(\"'\"&A23&\"'!$10:$10\"),0)),0)","v":0},null,"Sensor   296.9804.20",{"$f":"IFERROR(INDEX(INDIRECT(\"'\"&A23&\"'!$18:$50\"),MATCH($U$1,INDIRECT(\"'\"&A23&\"'!$A$18:$A$50\"),0),MATCH(Parts!$B23,INDIRECT(\"'\"&A23&\"'!$10:$10\"),0)),0)","v":1},8.27,"Fan compressor, 296.9759.51 - 26.79 €",{"$f":"IFERROR(INDEX(INDIRECT(\"'\"&A23&\"'!$18:$50\"),MATCH($X$1,INDIRECT(\"'\"&A23&\"'!$A$18:$A$50\"),0),MATCH(Parts!$B23,INDIRECT(\"'\"&A23&\"'!$10:$10\"),0)),0)","v":1},26.79,null,{"$f":"IFERROR(INDEX(INDIRECT(\"'\"&A23&\"'!$18:$50\"),MATCH($AA$1,INDIRECT(\"'\"&A23&\"'!$A$18:$A$50\"),0),MATCH(Parts!$B23,INDIRECT(\"'\"&A23&\"'!$10:$10\"),0)),0)","v":0},null,null,{"$f":"IFERROR(INDEX(INDIRECT(\"'\"&A23&\"'!$18:$50\"),MATCH($AD$1,INDIRECT(\"'\"&A23&\"'!$A$18:$A$50\"),0),MATCH(Parts!$B23,INDIRECT(\"'\"&A23&\"'!$10:$10\"),0)),0)","v":0},null,null,{"$f":"IFERROR(INDEX(INDIRECT(\"'\"&A23&\"'!$18:$50\"),MATCH($AG$1,INDIRECT(\"'\"&A23&\"'!$A$18:$A$50\"),0),MATCH(Parts!$B23,INDIRECT(\"'\"&A23&\"'!$10:$10\"),0)),0)","v":0},null,null,{"$f":"IFERROR(INDEX(INDIRECT(\"'\"&A23&\"'!$18:$50\"),MATCH($AJ$1,INDIRECT(\"'\"&A23&\"'!$A$18:$A$50\"),0),MATCH(Parts!$B23,INDIRECT(\"'\"&A23&\"'!$10:$10\"),0)),0)","v":0},null,"Switch   292.2044.19",{"$f":"IFERROR(INDEX(INDIRECT(\"'\"&A23&\"'!$18:$50\"),MATCH($AM$1,INDIRECT(\"'\"&A23&\"'!$A$18:$A$50\"),0),MATCH(Parts!$B23,INDIRECT(\"'\"&A23&\"'!$10:$10\"),0)),0)","v":1},3.53,null,{"$f":"IFERROR(INDEX(INDIRECT(\"'\"&A23&\"'!$18:$50\"),MATCH($AP$1,INDIRECT(\"'\"&A23&\"'!$A$18:$A$50\"),0),MATCH(Parts!$B23,INDIRECT(\"'\"&A23&\"'!$10:$10\"),0)),0)","v":0},null,"Basket  292.9427.37",{"$f":"IFERROR(INDEX(INDIRECT(\"'\"&A23&\"'!$18:$50\"),MATCH($AS$1,INDIRECT(\"'\"&A23&\"'!$A$18:$A$50\"),0),MATCH(Parts!$B23,INDIRECT(\"'\"&A23&\"'!$10:$10\"),0)),0)","v":1},3.79,null,{"$f":"IFERROR(INDEX(INDIRECT(\"'\"&A23&\"'!$18:$50\"),MATCH($AV$1,INDIRECT(\"'\"&A23&\"'!$A$18:$A$50\"),0),MATCH(Parts!$B23,INDIRECT(\"'\"&A23&\"'!$10:$10\"),0)),0)","v":0},null,"Starting relay, 296.9706.08",{"$f":"IFERROR(INDEX(INDIRECT(\"'\"&A23&\"'!$18:$50\"),MATCH($AY$1,INDIRECT(\"'\"&A23&\"'!$A$18:$A$50\"),0),MATCH(Parts!$B23,INDIRECT(\"'\"&A23&\"'!$10:$10\"),0)),0)","v":1},5.19,"Starting capacitor 80 uf, 296.9706.10 - 11.13 €",{"$f":"IFERROR(INDEX(INDIRECT(\"'\"&A23&\"'!$18:$50\"),MATCH($BB$1,INDIRECT(\"'\"&A23&\"'!$A$18:$A$50\"),0),MATCH(Parts!$B23,INDIRECT(\"'\"&A23&\"'!$10:$10\"),0)),0)","v":1},11.13,null,{"$f":"IFERROR(INDEX(INDIRECT(\"'\"&A23&\"'!$18:$50\"),MATCH($BE$1,INDIRECT(\"'\"&A23&\"'!$A$18:$A$50\"),0),MATCH(Parts!$B23,INDIRECT(\"'\"&A23&\"'!$10:$10\"),0)),0)","v":0},null,"Drier 13,5G R134A, 296.0945.04 - 1.89 €",{"$f":"IFERROR(INDEX(INDIRECT(\"'\"&A23&\"'!$18:$50\"),MATCH($BH$1,INDIRECT(\"'\"&A23&\"'!$A$18:$A$50\"),0),MATCH(Parts!$B23,INDIRECT(\"'\"&A23&\"'!$10:$10\"),0)),0)","v":1},1.89,null,{"$f":"IFERROR(INDEX(INDIRECT(\"'\"&A23&\"'!$18:$50\"),MATCH($BK$1,INDIRECT(\"'\"&A23&\"'!$A$18:$A$50\"),0),MATCH(Parts!$B23,INDIRECT(\"'\"&A23&\"'!$10:$10\"),0)),0)","v":0},null,null,{"$f":"IFERROR(INDEX(INDIRECT(\"'\"&A23&\"'!$18:$50\"),MATCH($BN$1,INDIRECT(\"'\"&A23&\"'!$A$18:$A$50\"),0),MATCH(Parts!$B23,INDIRECT(\"'\"&A23&\"'!$10:$10\"),0)),0)","v":0},null,"Outer Hinge  292.8503.30 - 7.76\nInner Hinge 292.8503.31 - 8.41",{"$f":"IFERROR(INDEX(INDIRECT(\"'\"&A23&\"'!$18:$50\"),MATCH($BQ$1,INDIRECT(\"'\"&A23&\"'!$A$18:$A$50\"),0),MATCH(Parts!$B23,INDIRECT(\"'\"&A23&\"'!$10:$10\"),0)),0)","v":2},{"$f":"AVERAGE(7.76,8.41)","v":8.0850000000000009},"Cover Hinge  296.4018.00",{"$f":"IFERROR(INDEX(INDIRECT(\"'\"&A23&\"'!$18:$50\"),MATCH($BT$1,INDIRECT(\"'\"&A23&\"'!$A$18:$A$50\"),0),MATCH(Parts!$B23,INDIRECT(\"'\"&A23&\"'!$10:$10\"),0)),0)","v":1},0.73,null,{"$f":"IFERROR(INDEX(INDIRECT(\"'\"&A23&\"'!$18:$50\"),MATCH($BW$1,INDIRECT(\"'\"&A23&\"'!$A$18:$A$50\"),0),MATCH(Parts!$B23,INDIRECT(\"'\"&A23&\"'!$10:$10\"),0)),0)","v":0},null,"Thermometer  292.8538.15",{"$f":"IFERROR(INDEX(INDIRECT(\"'\"&A23&\"'!$18:$50\"),MATCH($BZ$1,INDIRECT(\"'\"&A23&\"'!$A$18:$A$50\"),0),MATCH(Parts!$B23,INDIRECT(\"'\"&A23&\"'!$10:$10\"),0)),0)","v":1},55.49,"Ice Pack  292.8508.01",{"$f":"IFERROR(INDEX(INDIRECT(\"'\"&A23&\"'!$18:$50\"),MATCH($CC$1,INDIRECT(\"'\"&A23&\"'!$A$18:$A$50\"),0),MATCH(Parts!$B23,INDIRECT(\"'\"&A23&\"'!$10:$10\"),0)),0)","v":1},1.1100000000000001,null,{"$f":"IFERROR(INDEX(INDIRECT(\"'\"&A23&\"'!$18:$50\"),MATCH($CF$1,INDIRECT(\"'\"&A23&\"'!$A$18:$A$50\"),0),MATCH(Parts!$B23,INDIRECT(\"'\"&A23&\"'!$10:$10\"),0)),0)","v":0},null,null,{"$f":"IFERROR(INDEX(INDIRECT(\"'\"&A23&\"'!$18:$50\"),MATCH($CI$1,INDIRECT(\"'\"&A23&\"'!$A$18:$A$50\"),0),MATCH(Parts!$B23,INDIRECT(\"'\"&A23&\"'!$10:$10\"),0)),0)","v":0},null,null,{"$f":"IFERROR(INDEX(INDIRECT(\"'\"&A23&\"'!$18:$50\"),MATCH($CL$1,INDIRECT(\"'\"&A23&\"'!$A$18:$A$50\"),0),MATCH(Parts!$B23,INDIRECT(\"'\"&A23&\"'!$10:$10\"),0)),0)","v":0},null,null,{"$f":"IFERROR(INDEX(INDIRECT(\"'\"&A23&\"'!$18:$50\"),MATCH($CO$1,INDIRECT(\"'\"&A23&\"'!$A$18:$A$50\"),0),MATCH(Parts!$B23,INDIRECT(\"'\"&A23&\"'!$10:$10\"),0)),0)","v":0},null,null,{"$f":"IFERROR(INDEX(INDIRECT(\"'\"&A23&\"'!$18:$50\"),MATCH($CR$1,INDIRECT(\"'\"&A23&\"'!$A$18:$A$50\"),0),MATCH(Parts!$B23,INDIRECT(\"'\"&A23&\"'!$10:$10\"),0)),0)","v":0},null,null,{"$f":"IFERROR(INDEX(INDIRECT(\"'\"&A23&\"'!$18:$50\"),MATCH($CU$1,INDIRECT(\"'\"&A23&\"'!$A$18:$A$50\"),0),MATCH(Parts!$B23,INDIRECT(\"'\"&A23&\"'!$10:$10\"),0)),0)","v":0},null,null,{"$f":"IFERROR(INDEX(INDIRECT(\"'\"&A23&\"'!$18:$50\"),MATCH($CX$1,INDIRECT(\"'\"&A23&\"'!$A$18:$A$50\"),0),MATCH(Parts!$B23,INDIRECT(\"'\"&A23&\"'!$10:$10\"),0)),0)","v":0},null,null,{"$f":"IFERROR(INDEX(INDIRECT(\"'\"&A23&\"'!$18:$50\"),MATCH($DA$1,INDIRECT(\"'\"&A23&\"'!$A$18:$A$50\"),0),MATCH(Parts!$B23,INDIRECT(\"'\"&A23&\"'!$10:$10\"),0)),0)","v":0},null,null,{"$f":"IFERROR(INDEX(INDIRECT(\"'\"&A23&\"'!$18:$50\"),MATCH($DD$1,INDIRECT(\"'\"&A23&\"'!$A$18:$A$50\"),0),MATCH(Parts!$B23,INDIRECT(\"'\"&A23&\"'!$10:$10\"),0)),0)","v":0},null,null,{"$f":"IFERROR(INDEX(INDIRECT(\"'\"&A23&\"'!$18:$50\"),MATCH($DG$1,INDIRECT(\"'\"&A23&\"'!$A$18:$A$50\"),0),MATCH(Parts!$B23,INDIRECT(\"'\"&A23&\"'!$10:$10\"),0)),0)","v":0},null,null,{"$f":"IFERROR(INDEX(INDIRECT(\"'\"&A23&\"'!$18:$50\"),MATCH($DJ$1,INDIRECT(\"'\"&A23&\"'!$A$18:$A$50\"),0),MATCH(Parts!$B23,INDIRECT(\"'\"&A23&\"'!$10:$10\"),0)),0)","v":0},null,null,{"$f":"IFERROR(INDEX(INDIRECT(\"'\"&A23&\"'!$18:$50\"),MATCH($DM$1,INDIRECT(\"'\"&A23&\"'!$A$18:$A$50\"),0),MATCH(Parts!$B23,INDIRECT(\"'\"&A23&\"'!$10:$10\"),0)),0)","v":0},null,null,{"$f":"IFERROR(INDEX(INDIRECT(\"'\"&A23&\"'!$18:$50\"),MATCH($DP$1,INDIRECT(\"'\"&A23&\"'!$A$18:$A$50\"),0),MATCH(Parts!$B23,INDIRECT(\"'\"&A23&\"'!$10:$10\"),0)),0)","v":0},null,null,{"$f":"IFERROR(INDEX(INDIRECT(\"'\"&A23&\"'!$18:$50\"),MATCH($DS$1,INDIRECT(\"'\"&A23&\"'!$A$18:$A$50\"),0),MATCH(Parts!$B23,INDIRECT(\"'\"&A23&\"'!$10:$10\"),0)),0)","v":0},null,null,{"$f":"IFERROR(INDEX(INDIRECT(\"'\"&A23&\"'!$18:$50\"),MATCH($DV$1,INDIRECT(\"'\"&A23&\"'!$A$18:$A$50\"),0),MATCH(Parts!$B23,INDIRECT(\"'\"&A23&\"'!$10:$10\"),0)),0)","v":0},null,null,{"$f":"IFERROR(INDEX(INDIRECT(\"'\"&A23&\"'!$18:$50\"),MATCH($DY$1,INDIRECT(\"'\"&A23&\"'!$A$18:$A$50\"),0),MATCH(Parts!$B23,INDIRECT(\"'\"&A23&\"'!$10:$10\"),0)),0)","v":0},null,null,{"$f":"IFERROR(INDEX(INDIRECT(\"'\"&A23&\"'!$18:$50\"),MATCH($EB$1,INDIRECT(\"'\"&A23&\"'!$A$18:$A$50\"),0),MATCH(Parts!$B23,INDIRECT(\"'\"&A23&\"'!$10:$10\"),0)),0)","v":0},null,null,{"$f":"IFERROR(INDEX(INDIRECT(\"'\"&A23&\"'!$18:$50\"),MATCH($EE$1,INDIRECT(\"'\"&A23&\"'!$A$18:$A$50\"),0),MATCH(Parts!$B23,INDIRECT(\"'\"&A23&\"'!$10:$10\"),0)),0)","v":0},null,null,{"$f":"IFERROR(INDEX(INDIRECT(\"'\"&A23&\"'!$18:$50\"),MATCH($EH$1,INDIRECT(\"'\"&A23&\"'!$A$18:$A$50\"),0),MATCH(Parts!$B23,INDIRECT(\"'\"&A23&\"'!$10:$10\"),0)),0)","v":0},null,null,{"$f":"IFERROR(INDEX(INDIRECT(\"'\"&A23&\"'!$18:$50\"),MATCH($EK$1,INDIRECT(\"'\"&A23&\"'!$A$18:$A$50\"),0),MATCH(Parts!$B23,INDIRECT(\"'\"&A23&\"'!$10:$10\"),0)),0)","v":0}]
[{"$f":"PQS!A26","v":"ILR"},"E003/021",{"$f":"PQS!E26","v":"VLS 400"},{"$f":"PQS!P26","v":"€"},263.19,"COMPRESSOR, NLE 9 KTK 03.6038255",{"$f":"IFERROR(INDEX(INDIRECT(\"'\"&A24&\"'!$18:$50\"),MATCH(Parts!F$1,INDIRECT(\"'\"&A24&\"'!$A$18:$A$50\"),0),MATCH(Parts!$B24,INDIRECT(\"'\"&A24&\"'!$10:$10\"),0)),0)","v":1},106.65,"Thermostat - Danfoss; 7020276",{"$f":"IFERROR(INDEX(INDIRECT(\"'\"&A24&\"'!$18:$50\"),MATCH($I$1,INDIRECT(\"'\"&A24&\"'!$A$18:$A$50\"),0),MATCH(Parts!$B24,INDIRECT(\"'\"&A24&\"'!$10:$10\"),0)),0)","v":1},22.16,null,{"$f":"IFERROR(INDEX(INDIRECT(\"'\"&A24&\"'!$18:$50\"),MATCH($L$1,INDIRECT(\"'\"&A24&\"'!$A$18:$A$50\"),0),MATCH(Parts!$B24,INDIRECT(\"'\"&A24&\"'!$10:$10\"),0)),0)","v":0},null,null,{"$f":"IFERROR(INDEX(INDIRECT(\"'\"&A24&\"'!$18:$50\"),MATCH($O$1,INDIRECT(\"'\"&A24&\"'!$A$18:$A$50\"),0),MATCH(Parts!$B24,INDIRECT(\"'\"&A24&\"'!$10:$10\"),0)),0)","v":0},null,null,{"$f":"IFERROR(INDEX(INDIRECT(\"'\"&A24&\"'!$18:$50\"),MATCH($R$1,INDIRECT(\"'\"&A24&\"'!$A$18:$A$50\"),0),MATCH(Parts!$B24,INDIRECT(\"'\"&A24&\"'!$10:$10\"),0)),0)","v":0},null,null,{"$f":"IFERROR(INDEX(INDIRECT(\"'\"&A24&\"'!$18:$50\"),MATCH($U$1,INDIRECT(\"'\"&A24&\"'!$A$18:$A$50\"),0),MATCH(Parts!$B24,INDIRECT(\"'\"&A24&\"'!$10:$10\"),0)),0)","v":0},null,null,{"$f":"IFERROR(INDEX(INDIRECT(\"'\"&A24&\"'!$18:$50\"),MATCH($X$1,INDIRECT(\"'\"&A24&\"'!$A$18:$A$50\"),0),MATCH(Parts!$B24,INDIRECT(\"'\"&A24&\"'!$10:$10\"),0)),0)","v":0},null,null,{"$f":"IFERROR(INDEX(INDIRECT(\"'\"&A24&\"'!$18:$50\"),MATCH($AA$1,INDIRECT(\"'\"&A24&\"'!$A$18:$A$50\"),0),MATCH(Parts!$B24,INDIRECT(\"'\"&A24&\"'!$10:$10\"),0)),0)","v":0},null,null,{"$f":"IFERROR(INDEX(INDIRECT(\"'\"&A24&\"'!$18:$50\"),MATCH($AD$1,INDIRECT(\"'\"&A24&\"'!$A$18:$A$50\"),0),MATCH(Parts!$B24,INDIRECT(\"'\"&A24&\"'!$10:$10\"),0)),0)","v":0},null,null,{"$f":"IFERROR(INDEX(INDIRECT(\"'\"&A24&\"'!$18:$50\"),MATCH($AG$1,INDIRECT(\"'\"&A24&\"'!$A$18:$A$50\"),0),MATCH(Parts!$B24,INDIRECT(\"'\"&A24&\"'!$10:$10\"),0)),0)","v":0},null,null,{"$f":"IFERROR(INDEX(INDIRECT(\"'\"&A24&\"'!$18:$50\"),MATCH($AJ$1,INDIRECT(\"'\"&A24&\"'!$A$18:$A$50\"),0),MATCH(Parts!$B24,INDIRECT(\"'\"&A24&\"'!$10:$10\"),0)),0)","v":0},null,null,{"$f":"IFERROR(INDEX(INDIRECT(\"'\"&A24&\"'!$18:$50\"),MATCH($AM$1,INDIRECT(\"'\"&A24&\"'!$A$18:$A$50\"),0),MATCH(Parts!$B24,INDIRECT(\"'\"&A24&\"'!$10:$10\"),0)),0)","v":0},null,null,{"$f":"IFERROR(INDEX(INDIRECT(\"'\"&A24&\"'!$18:$50\"),MATCH($AP$1,INDIRECT(\"'\"&A24&\"'!$A$18:$A$50\"),0),MATCH(Parts!$B24,INDIRECT(\"'\"&A24&\"'!$10:$10\"),0)),0)","v":0},null,"TOP BASKET 3510015 - 9.03\nBOTTOM BASKET 3510016 - 6.91",{"$f":"IFERROR(INDEX(INDIRECT(\"'\"&A24&\"'!$18:$50\"),MATCH($AS$1,INDIRECT(\"'\"&A24&\"'!$A$18:$A$50\"),0),MATCH(Parts!$B24,INDIRECT(\"'\"&A24&\"'!$10:$10\"),0)),0)","v":2},{"$f":"AVERAGE(9.03,6.91)","v":7.97},null,{"$f":"IFERROR(INDEX(INDIRECT(\"'\"&A24&\"'!$18:$50\"),MATCH($AV$1,INDIRECT(\"'\"&A24&\"'!$A$18:$A$50\"),0),MATCH(Parts!$B24,INDIRECT(\"'\"&A24&\"'!$10:$10\"),0)),0)","v":0},null,"STARTING DEVICE (RELAY)\nA921115",{"$f":"IFERROR(INDEX(INDIRECT(\"'\"&A24&\"'!$18:$50\"),MATCH($AY$1,INDIRECT(\"'\"&A24&\"'!$A$18:$A$50\"),0),MATCH(Parts!$B24,INDIRECT(\"'\"&A24&\"'!$10:$10\"),0)),0)","v":1},9.26,null,{"$f":"IFERROR(INDEX(INDIRECT(\"'\"&A24&\"'!$18:$50\"),MATCH($BB$1,INDIRECT(\"'\"&A24&\"'!$A$18:$A$50\"),0),MATCH(Parts!$B24,INDIRECT(\"'\"&A24&\"'!$10:$10\"),0)),0)","v":0},null,"CANISTER OF 420 GR R600A\n04.9954073",{"$f":"IFERROR(INDEX(INDIRECT(\"'\"&A24&\"'!$18:$50\"),MATCH($BE$1,INDIRECT(\"'\"&A24&\"'!$A$18:$A$50\"),0),MATCH(Parts!$B24,INDIRECT(\"'\"&A24&\"'!$10:$10\"),0)),0)","v":1},78.739999999999995,"FILTER/DRIER TYPE XH 9 (20 GRS)\n0-6538001",{"$f":"IFERROR(INDEX(INDIRECT(\"'\"&A24&\"'!$18:$50\"),MATCH($BH$1,INDIRECT(\"'\"&A24&\"'!$A$18:$A$50\"),0),MATCH(Parts!$B24,INDIRECT(\"'\"&A24&\"'!$10:$10\"),0)),0)","v":1},3.84,null,{"$f":"IFERROR(INDEX(INDIRECT(\"'\"&A24&\"'!$18:$50\"),MATCH($BK$1,INDIRECT(\"'\"&A24&\"'!$A$18:$A$50\"),0),MATCH(Parts!$B24,INDIRECT(\"'\"&A24&\"'!$10:$10\"),0)),0)","v":0},null,null,{"$f":"IFERROR(INDEX(INDIRECT(\"'\"&A24&\"'!$18:$50\"),MATCH($BN$1,INDIRECT(\"'\"&A24&\"'!$A$18:$A$50\"),0),MATCH(Parts!$B24,INDIRECT(\"'\"&A24&\"'!$10:$10\"),0)),0)","v":0},null,"HINGE WITH SPRING\n1510031",{"$f":"IFERROR(INDEX(INDIRECT(\"'\"&A24&\"'!$18:$50\"),MATCH($BQ$1,INDIRECT(\"'\"&A24&\"'!$A$18:$A$50\"),0),MATCH(Parts!$B24,INDIRECT(\"'\"&A24&\"'!$10:$10\"),0)),0)","v":1},8.85,null,{"$f":"IFERROR(INDEX(INDIRECT(\"'\"&A24&\"'!$18:$50\"),MATCH($BT$1,INDIRECT(\"'\"&A24&\"'!$A$18:$A$50\"),0),MATCH(Parts!$B24,INDIRECT(\"'\"&A24&\"'!$10:$10\"),0)),0)","v":0},null,null,{"$f":"IFERROR(INDEX(INDIRECT(\"'\"&A24&\"'!$18:$50\"),MATCH($BW$1,INDIRECT(\"'\"&A24&\"'!$A$18:$A$50\"),0),MATCH(Parts!$B24,INDIRECT(\"'\"&A24&\"'!$10:$10\"),0)),0)","v":0},null,"THERMOMETER\n7020287-03",{"$f":"IFERROR(INDEX(INDIRECT(\"'\"&A24&\"'!$18:$50\"),MATCH($BZ$1,INDIRECT(\"'\"&A24&\"'!$A$18:$A$50\"),0),MATCH(Parts!$B24,INDIRECT(\"'\"&A24&\"'!$10:$10\"),0)),0)","v":1},10.61,null,{"$f":"IFERROR(INDEX(INDIRECT(\"'\"&A24&\"'!$18:$50\"),MATCH($CC$1,INDIRECT(\"'\"&A24&\"'!$A$18:$A$50\"),0),MATCH(Parts!$B24,INDIRECT(\"'\"&A24&\"'!$10:$10\"),0)),0)","v":0},null,"HANDLE WITH LOCK AND KEY\n304090501",{"$f":"IFERROR(INDEX(INDIRECT(\"'\"&A24&\"'!$18:$50\"),MATCH($CF$1,INDIRECT(\"'\"&A24&\"'!$A$18:$A$50\"),0),MATCH(Parts!$B24,INDIRECT(\"'\"&A24&\"'!$10:$10\"),0)),0)","v":1},7.14,null,{"$f":"IFERROR(INDEX(INDIRECT(\"'\"&A24&\"'!$18:$50\"),MATCH($CI$1,INDIRECT(\"'\"&A24&\"'!$A$18:$A$50\"),0),MATCH(Parts!$B24,INDIRECT(\"'\"&A24&\"'!$10:$10\"),0)),0)","v":0},null,null,{"$f":"IFERROR(INDEX(INDIRECT(\"'\"&A24&\"'!$18:$50\"),MATCH($CL$1,INDIRECT(\"'\"&A24&\"'!$A$18:$A$50\"),0),MATCH(Parts!$B24,INDIRECT(\"'\"&A24&\"'!$10:$10\"),0)),0)","v":0},null,null,{"$f":"IFERROR(INDEX(INDIRECT(\"'\"&A24&\"'!$18:$50\"),MATCH($CO$1,INDIRECT(\"'\"&A24&\"'!$A$18:$A$50\"),0),MATCH(Parts!$B24,INDIRECT(\"'\"&A24&\"'!$10:$10\"),0)),0)","v":0},null,null,{"$f":"IFERROR(INDEX(INDIRECT(\"'\"&A24&\"'!$18:$50\"),MATCH($CR$1,INDIRECT(\"'\"&A24&\"'!$A$18:$A$50\"),0),MATCH(Parts!$B24,INDIRECT(\"'\"&A24&\"'!$10:$10\"),0)),0)","v":0},null,null,{"$f":"IFERROR(INDEX(INDIRECT(\"'\"&A24&\"'!$18:$50\"),MATCH($CU$1,INDIRECT(\"'\"&A24&\"'!$A$18:$A$50\"),0),MATCH(Parts!$B24,INDIRECT(\"'\"&A24&\"'!$10:$10\"),0)),0)","v":0},null,null,{"$f":"IFERROR(INDEX(INDIRECT(\"'\"&A24&\"'!$18:$50\"),MATCH($CX$1,INDIRECT(\"'\"&A24&\"'!$A$18:$A$50\"),0),MATCH(Parts!$B24,INDIRECT(\"'\"&A24&\"'!$10:$10\"),0)),0)","v":0},null,null,{"$f":"IFERROR(INDEX(INDIRECT(\"'\"&A24&\"'!$18:$50\"),MATCH($DA$1,INDIRECT(\"'\"&A24&\"'!$A$18:$A$50\"),0),MATCH(Parts!$B24,INDIRECT(\"'\"&A24&\"'!$10:$10\"),0)),0)","v":0},null,null,{"$f":"IFERROR(INDEX(INDIRECT(\"'\"&A24&\"'!$18:$50\"),MATCH($DD$1,INDIRECT(\"'\"&A24&\"'!$A$18:$A$50\"),0),MATCH(Parts!$B24,INDIRECT(\"'\"&A24&\"'!$10:$10\"),0)),0)","v":0},null,null,{"$f":"IFERROR(INDEX(INDIRECT(\"'\"&A24&\"'!$18:$50\"),MATCH($DG$1,INDIRECT(\"'\"&A24&\"'!$A$18:$A$50\"),0),MATCH(Parts!$B24,INDIRECT(\"'\"&A24&\"'!$10:$10\"),0)),0)","v":0},null,null,{"$f":"IFERROR(INDEX(INDIRECT(\"'\"&A24&\"'!$18:$50\"),MATCH($DJ$1,INDIRECT(\"'\"&A24&\"'!$A$18:$A$50\"),0),MATCH(Parts!$B24,INDIRECT(\"'\"&A24&\"'!$10:$10\"),0)),0)","v":0},null,null,{"$f":"IFERROR(INDEX(INDIRECT(\"'\"&A24&\"'!$18:$50\"),MATCH($DM$1,INDIRECT(\"'\"&A24&\"'!$A$18:$A$50\"),0),MATCH(Parts!$B24,INDIRECT(\"'\"&A24&\"'!$10:$10\"),0)),0)","v":0},null,null,{"$f":"IFERROR(INDEX(INDIRECT(\"'\"&A24&\"'!$18:$50\"),MATCH($DP$1,INDIRECT(\"'\"&A24&\"'!$A$18:$A$50\"),0),MATCH(Parts!$B24,INDIRECT(\"'\"&A24&\"'!$10:$10\"),0)),0)","v":0},null,null,{"$f":"IFERROR(INDEX(INDIRECT(\"'\"&A24&\"'!$18:$50\"),MATCH($DS$1,INDIRECT(\"'\"&A24&\"'!$A$18:$A$50\"),0),MATCH(Parts!$B24,INDIRECT(\"'\"&A24&\"'!$10:$10\"),0)),0)","v":0},null,null,{"$f":"IFERROR(INDEX(INDIRECT(\"'\"&A24&\"'!$18:$50\"),MATCH($DV$1,INDIRECT(\"'\"&A24&\"'!$A$18:$A$50\"),0),MATCH(Parts!$B24,INDIRECT(\"'\"&A24&\"'!$10:$10\"),0)),0)","v":0},null,null,{"$f":"IFERROR(INDEX(INDIRECT(\"'\"&A24&\"'!$18:$50\"),MATCH($DY$1,INDIRECT(\"'\"&A24&\"'!$A$18:$A$50\"),0),MATCH(Parts!$B24,INDIRECT(\"'\"&A24&\"'!$10:$10\"),0)),0)","v":0},null,null,{"$f":"IFERROR(INDEX(INDIRECT(\"'\"&A24&\"'!$18:$50\"),MATCH($EB$1,INDIRECT(\"'\"&A24&\"'!$A$18:$A$50\"),0),MATCH(Parts!$B24,INDIRECT(\"'\"&A24&\"'!$10:$10\"),0)),0)","v":0},null,null,{"$f":"IFERROR(INDEX(INDIRECT(\"'\"&A24&\"'!$18:$50\"),MATCH($EE$1,INDIRECT(\"'\"&A24&\"'!$A$18:$A$50\"),0),MATCH(Parts!$B24,INDIRECT(\"'\"&A24&\"'!$10:$10\"),0)),0)","v":0},null,null,{"$f":"IFERROR(INDEX(INDIRECT(\"'\"&A24&\"'!$18:$50\"),MATCH($EH$1,INDIRECT(\"'\"&A24&\"'!$A$18:$A$50\"),0),MATCH(Parts!$B24,INDIRECT(\"'\"&A24&\"'!$10:$10\"),0)),0)","v":0},null,null,{"$f":"IFERROR(INDEX(INDIRECT(\"'\"&A24&\"'!$18:$50\"),MATCH($EK$1,INDIRECT(\"'\"&A24&\"'!$A$18:$A$50\"),0),MATCH(Parts!$B24,INDIRECT(\"'\"&A24&\"'!$10:$10\"),0)),0)","v":0}]
[{"$f":"PQS!A27","v":"ILR"},"E003/022",{"$f":"PQS!E27","v":"MK 144"},{"$f":"PQS!P27","v":"€"},262.04999999999995,"COMPRESSOR, SECOP TL5G, HST, COMPL.\n03.6038602",{"$f":"IFERROR(INDEX(INDIRECT(\"'\"&A25&\"'!$18:$50\"),MATCH(Parts!F$1,INDIRECT(\"'\"&A25&\"'!$A$18:$A$50\"),0),MATCH(Parts!$B25,INDIRECT(\"'\"&A25&\"'!$10:$10\"),0)),0)","v":1},88.42,"ELECTRONIC THERMOSTAT\n7020291",{"$f":"IFERROR(INDEX(INDIRECT(\"'\"&A25&\"'!$18:$50\"),MATCH($I$1,INDIRECT(\"'\"&A25&\"'!$A$18:$A$50\"),0),MATCH(Parts!$B25,INDIRECT(\"'\"&A25&\"'!$10:$10\"),0)),0)","v":1},29.86,null,{"$f":"IFERROR(INDEX(INDIRECT(\"'\"&A25&\"'!$18:$50\"),MATCH($L$1,INDIRECT(\"'\"&A25&\"'!$A$18:$A$50\"),0),MATCH(Parts!$B25,INDIRECT(\"'\"&A25&\"'!$10:$10\"),0)),0)","v":0},null,null,{"$f":"IFERROR(INDEX(INDIRECT(\"'\"&A25&\"'!$18:$50\"),MATCH($O$1,INDIRECT(\"'\"&A25&\"'!$A$18:$A$50\"),0),MATCH(Parts!$B25,INDIRECT(\"'\"&A25&\"'!$10:$10\"),0)),0)","v":0},null,null,{"$f":"IFERROR(INDEX(INDIRECT(\"'\"&A25&\"'!$18:$50\"),MATCH($R$1,INDIRECT(\"'\"&A25&\"'!$A$18:$A$50\"),0),MATCH(Parts!$B25,INDIRECT(\"'\"&A25&\"'!$10:$10\"),0)),0)","v":0},null,null,{"$f":"IFERROR(INDEX(INDIRECT(\"'\"&A25&\"'!$18:$50\"),MATCH($U$1,INDIRECT(\"'\"&A25&\"'!$A$18:$A$50\"),0),MATCH(Parts!$B25,INDIRECT(\"'\"&A25&\"'!$10:$10\"),0)),0)","v":0},null,null,{"$f":"IFERROR(INDEX(INDIRECT(\"'\"&A25&\"'!$18:$50\"),MATCH($X$1,INDIRECT(\"'\"&A25&\"'!$A$18:$A$50\"),0),MATCH(Parts!$B25,INDIRECT(\"'\"&A25&\"'!$10:$10\"),0)),0)","v":0},null,null,{"$f":"IFERROR(INDEX(INDIRECT(\"'\"&A25&\"'!$18:$50\"),MATCH($AA$1,INDIRECT(\"'\"&A25&\"'!$A$18:$A$50\"),0),MATCH(Parts!$B25,INDIRECT(\"'\"&A25&\"'!$10:$10\"),0)),0)","v":0},null,null,{"$f":"IFERROR(INDEX(INDIRECT(\"'\"&A25&\"'!$18:$50\"),MATCH($AD$1,INDIRECT(\"'\"&A25&\"'!$A$18:$A$50\"),0),MATCH(Parts!$B25,INDIRECT(\"'\"&A25&\"'!$10:$10\"),0)),0)","v":0},null,null,{"$f":"IFERROR(INDEX(INDIRECT(\"'\"&A25&\"'!$18:$50\"),MATCH($AG$1,INDIRECT(\"'\"&A25&\"'!$A$18:$A$50\"),0),MATCH(Parts!$B25,INDIRECT(\"'\"&A25&\"'!$10:$10\"),0)),0)","v":0},null,null,{"$f":"IFERROR(INDEX(INDIRECT(\"'\"&A25&\"'!$18:$50\"),MATCH($AJ$1,INDIRECT(\"'\"&A25&\"'!$A$18:$A$50\"),0),MATCH(Parts!$B25,INDIRECT(\"'\"&A25&\"'!$10:$10\"),0)),0)","v":0},null,null,{"$f":"IFERROR(INDEX(INDIRECT(\"'\"&A25&\"'!$18:$50\"),MATCH($AM$1,INDIRECT(\"'\"&A25&\"'!$A$18:$A$50\"),0),MATCH(Parts!$B25,INDIRECT(\"'\"&A25&\"'!$10:$10\"),0)),0)","v":0},null,null,{"$f":"IFERROR(INDEX(INDIRECT(\"'\"&A25&\"'!$18:$50\"),MATCH($AP$1,INDIRECT(\"'\"&A25&\"'!$A$18:$A$50\"),0),MATCH(Parts!$B25,INDIRECT(\"'\"&A25&\"'!$10:$10\"),0)),0)","v":0},null,"TOP BASKET 3520012 - \n9,03\nBOTTOM BASKET 3520404 - \n11,75",{"$f":"IFERROR(INDEX(INDIRECT(\"'\"&A25&\"'!$18:$50\"),MATCH($AS$1,INDIRECT(\"'\"&A25&\"'!$A$18:$A$50\"),0),MATCH(Parts!$B25,INDIRECT(\"'\"&A25&\"'!$10:$10\"),0)),0)","v":2},{"$f":"AVERAGE(9.03,11.75)","v":10.39},null,{"$f":"IFERROR(INDEX(INDIRECT(\"'\"&A25&\"'!$18:$50\"),MATCH($AV$1,INDIRECT(\"'\"&A25&\"'!$A$18:$A$50\"),0),MATCH(Parts!$B25,INDIRECT(\"'\"&A25&\"'!$10:$10\"),0)),0)","v":0},null,"STARTING DEVICE (RELAY)\n6520048",{"$f":"IFERROR(INDEX(INDIRECT(\"'\"&A25&\"'!$18:$50\"),MATCH($AY$1,INDIRECT(\"'\"&A25&\"'!$A$18:$A$50\"),0),MATCH(Parts!$B25,INDIRECT(\"'\"&A25&\"'!$10:$10\"),0)),0)","v":1},9.76,"STARTING DEVICE (CAPACITOR) 6520016",{"$f":"IFERROR(INDEX(INDIRECT(\"'\"&A25&\"'!$18:$50\"),MATCH($BB$1,INDIRECT(\"'\"&A25&\"'!$A$18:$A$50\"),0),MATCH(Parts!$B25,INDIRECT(\"'\"&A25&\"'!$10:$10\"),0)),0)","v":1},17.760000000000002,"ALU-CYLINDER WITH R134A (1000 GRS)\n04.9954073",{"$f":"IFERROR(INDEX(INDIRECT(\"'\"&A25&\"'!$18:$50\"),MATCH($BE$1,INDIRECT(\"'\"&A25&\"'!$A$18:$A$50\"),0),MATCH(Parts!$B25,INDIRECT(\"'\"&A25&\"'!$10:$10\"),0)),0)","v":1},65.03,"FILTER/DRIER TYPE XH 9 (20 GRS)\n0-6538001",{"$f":"IFERROR(INDEX(INDIRECT(\"'\"&A25&\"'!$18:$50\"),MATCH($BH$1,INDIRECT(\"'\"&A25&\"'!$A$18:$A$50\"),0),MATCH(Parts!$B25,INDIRECT(\"'\"&A25&\"'!$10:$10\"),0)),0)","v":1},3.84,null,{"$f":"IFERROR(INDEX(INDIRECT(\"'\"&A25&\"'!$18:$50\"),MATCH($BK$1,INDIRECT(\"'\"&A25&\"'!$A$18:$A$50\"),0),MATCH(Parts!$B25,INDIRECT(\"'\"&A25&\"'!$10:$10\"),0)),0)","v":0},null,null,{"$f":"IFERROR(INDEX(INDIRECT(\"'\"&A25&\"'!$18:$50\"),MATCH($BN$1,INDIRECT(\"'\"&A25&\"'!$A$18:$A$50\"),0),MATCH(Parts!$B25,INDIRECT(\"'\"&A25&\"'!$10:$10\"),0)),0)","v":0},null,"HINGE WITH SPRING\n1510029",{"$f":"IFERROR(INDEX(INDIRECT(\"'\"&A25&\"'!$18:$50\"),MATCH($BQ$1,INDIRECT(\"'\"&A25&\"'!$A$18:$A$50\"),0),MATCH(Parts!$B25,INDIRECT(\"'\"&A25&\"'!$10:$10\"),0)),0)","v":1},8.85,null,{"$f":"IFERROR(INDEX(INDIRECT(\"'\"&A25&\"'!$18:$50\"),MATCH($BT$1,INDIRECT(\"'\"&A25&\"'!$A$18:$A$50\"),0),MATCH(Parts!$B25,INDIRECT(\"'\"&A25&\"'!$10:$10\"),0)),0)","v":0},null,null,{"$f":"IFERROR(INDEX(INDIRECT(\"'\"&A25&\"'!$18:$50\"),MATCH($BW$1,INDIRECT(\"'\"&A25&\"'!$A$18:$A$50\"),0),MATCH(Parts!$B25,INDIRECT(\"'\"&A25&\"'!$10:$10\"),0)),0)","v":0},null,"THERMOMETER\n7020164",{"$f":"IFERROR(INDEX(INDIRECT(\"'\"&A25&\"'!$18:$50\"),MATCH($BZ$1,INDIRECT(\"'\"&A25&\"'!$A$18:$A$50\"),0),MATCH(Parts!$B25,INDIRECT(\"'\"&A25&\"'!$10:$10\"),0)),0)","v":1},10.61,null,{"$f":"IFERROR(INDEX(INDIRECT(\"'\"&A25&\"'!$18:$50\"),MATCH($CC$1,INDIRECT(\"'\"&A25&\"'!$A$18:$A$50\"),0),MATCH(Parts!$B25,INDIRECT(\"'\"&A25&\"'!$10:$10\"),0)),0)","v":0},null,"HANDLE WITH LOCK AND KEY\n304090501",{"$f":"IFERROR(INDEX(INDIRECT(\"'\"&A25&\"'!$18:$50\"),MATCH($CF$1,INDIRECT(\"'\"&A25&\"'!$A$18:$A$50\"),0),MATCH(Parts!$B25,INDIRECT(\"'\"&A25&\"'!$10:$10\"),0)),0)","v":1},7.14,null,{"$f":"IFERROR(INDEX(INDIRECT(\"'\"&A25&\"'!$18:$50\"),MATCH($CI$1,INDIRECT(\"'\"&A25&\"'!$A$18:$A$50\"),0),MATCH(Parts!$B25,INDIRECT(\"'\"&A25&\"'!$10:$10\"),0)),0)","v":0},null,null,{"$f":"IFERROR(INDEX(INDIRECT(\"'\"&A25&\"'!$18:$50\"),MATCH($CL$1,INDIRECT(\"'\"&A25&\"'!$A$18:$A$50\"),0),MATCH(Parts!$B25,INDIRECT(\"'\"&A25&\"'!$10:$10\"),0)),0)","v":0},null,null,{"$f":"IFERROR(INDEX(INDIRECT(\"'\"&A25&\"'!$18:$50\"),MATCH($CO$1,INDIRECT(\"'\"&A25&\"'!$A$18:$A$50\"),0),MATCH(Parts!$B25,INDIRECT(\"'\"&A25&\"'!$10:$10\"),0)),0)","v":0},null,null,{"$f":"IFERROR(INDEX(INDIRECT(\"'\"&A25&\"'!$18:$50\"),MATCH($CR$1,INDIRECT(\"'\"&A25&\"'!$A$18:$A$50\"),0),MATCH(Parts!$B25,INDIRECT(\"'\"&A25&\"'!$10:$10\"),0)),0)","v":0},null,null,{"$f":"IFERROR(INDEX(INDIRECT(\"'\"&A25&\"'!$18:$50\"),MATCH($CU$1,INDIRECT(\"'\"&A25&\"'!$A$18:$A$50\"),0),MATCH(Parts!$B25,INDIRECT(\"'\"&A25&\"'!$10:$10\"),0)),0)","v":0},null,null,{"$f":"IFERROR(INDEX(INDIRECT(\"'\"&A25&\"'!$18:$50\"),MATCH($CX$1,INDIRECT(\"'\"&A25&\"'!$A$18:$A$50\"),0),MATCH(Parts!$B25,INDIRECT(\"'\"&A25&\"'!$10:$10\"),0)),0)","v":0},null,null,{"$f":"IFERROR(INDEX(INDIRECT(\"'\"&A25&\"'!$18:$50\"),MATCH($DA$1,INDIRECT(\"'\"&A25&\"'!$A$18:$A$50\"),0),MATCH(Parts!$B25,INDIRECT(\"'\"&A25&\"'!$10:$10\"),0)),0)","v":0},null,null,{"$f":"IFERROR(INDEX(INDIRECT(\"'\"&A25&\"'!$18:$50\"),MATCH($DD$1,INDIRECT(\"'\"&A25&\"'!$A$18:$A$50\"),0),MATCH(Parts!$B25,INDIRECT(\"'\"&A25&\"'!$10:$10\"),0)),0)","v":0},null,null,{"$f":"IFERROR(INDEX(INDIRECT(\"'\"&A25&\"'!$18:$50\"),MATCH($DG$1,INDIRECT(\"'\"&A25&\"'!$A$18:$A$50\"),0),MATCH(Parts!$B25,INDIRECT(\"'\"&A25&\"'!$10:$10\"),0)),0)","v":0},null,null,{"$f":"IFERROR(INDEX(INDIRECT(\"'\"&A25&\"'!$18:$50\"),MATCH($DJ$1,INDIRECT(\"'\"&A25&\"'!$A$18:$A$50\"),0),MATCH(Parts!$B25,INDIRECT(\"'\"&A25&\"'!$10:$10\"),0)),0)","v":0},null,null,{"$f":"IFERROR(INDEX(INDIRECT(\"'\"&A25&\"'!$18:$50\"),MATCH($DM$1,INDIRECT(\"'\"&A25&\"'!$A$18:$A$50\"),0),MATCH(Parts!$B25,INDIRECT(\"'\"&A25&\"'!$10:$10\"),0)),0)","v":0},null,null,{"$f":"IFERROR(INDEX(INDIRECT(\"'\"&A25&\"'!$18:$50\"),MATCH($DP$1,INDIRECT(\"'\"&A25&\"'!$A$18:$A$50\"),0),MATCH(Parts!$B25,INDIRECT(\"'\"&A25&\"'!$10:$10\"),0)),0)","v":0},null,null,{"$f":"IFERROR(INDEX(INDIRECT(\"'\"&A25&\"'!$18:$50\"),MATCH($DS$1,INDIRECT(\"'\"&A25&\"'!$A$18:$A$50\"),0),MATCH(Parts!$B25,INDIRECT(\"'\"&A25&\"'!$10:$10\"),0)),0)","v":0},null,null,{"$f":"IFERROR(INDEX(INDIRECT(\"'\"&A25&\"'!$18:$50\"),MATCH($DV$1,INDIRECT(\"'\"&A25&\"'!$A$18:$A$50\"),0),MATCH(Parts!$B25,INDIRECT(\"'\"&A25&\"'!$10:$10\"),0)),0)","v":0},null,null,{"$f":"IFERROR(INDEX(INDIRECT(\"'\"&A25&\"'!$18:$50\"),MATCH($DY$1,INDIRECT(\"'\"&A25&\"'!$A$18:$A$50\"),0),MATCH(Parts!$B25,INDIRECT(\"'\"&A25&\"'!$10:$10\"),0)),0)","v":0},null,null,{"$f":"IFERROR(INDEX(INDIRECT(\"'\"&A25&\"'!$18:$50\"),MATCH($EB$1,INDIRECT(\"'\"&A25&\"'!$A$18:$A$50\"),0),MATCH(Parts!$B25,INDIRECT(\"'\"&A25&\"'!$10:$10\"),0)),0)","v":0},null,null,{"$f":"IFERROR(INDEX(INDIRECT(\"'\"&A25&\"'!$18:$50\"),MATCH($EE$1,INDIRECT(\"'\"&A25&\"'!$A$18:$A$50\"),0),MATCH(Parts!$B25,INDIRECT(\"'\"&A25&\"'!$10:$10\"),0)),0)","v":0},null,null,{"$f":"IFERROR(INDEX(INDIRECT(\"'\"&A25&\"'!$18:$50\"),MATCH($EH$1,INDIRECT(\"'\"&A25&\"'!$A$18:$A$50\"),0),MATCH(Parts!$B25,INDIRECT(\"'\"&A25&\"'!$10:$10\"),0)),0)","v":0},null,null,{"$f":"IFERROR(INDEX(INDIRECT(\"'\"&A25&\"'!$18:$50\"),MATCH($EK$1,INDIRECT(\"'\"&A25&\"'!$A$18:$A$50\"),0),MATCH(Parts!$B25,INDIRECT(\"'\"&A25&\"'!$10:$10\"),0)),0)","v":0}]
[{"$f":"PQS!A28","v":"ILR"},"E003/031",{"$f":"PQS!E28","v":"VLS 200"},{"$f":"PQS!P28","v":"€"},255.75,"Compressor - TLES7KTK , Complete 8-036038297",{"$f":"IFERROR(INDEX(INDIRECT(\"'\"&A26&\"'!$18:$50\"),MATCH(Parts!F$1,INDIRECT(\"'\"&A26&\"'!$A$18:$A$50\"),0),MATCH(Parts!$B26,INDIRECT(\"'\"&A26&\"'!$10:$10\"),0)),0)","v":1},99.21,"Thermostat 7020276",{"$f":"IFERROR(INDEX(INDIRECT(\"'\"&A26&\"'!$18:$50\"),MATCH($I$1,INDIRECT(\"'\"&A26&\"'!$A$18:$A$50\"),0),MATCH(Parts!$B26,INDIRECT(\"'\"&A26&\"'!$10:$10\"),0)),0)","v":1},22.16,null,{"$f":"IFERROR(INDEX(INDIRECT(\"'\"&A26&\"'!$18:$50\"),MATCH($L$1,INDIRECT(\"'\"&A26&\"'!$A$18:$A$50\"),0),MATCH(Parts!$B26,INDIRECT(\"'\"&A26&\"'!$10:$10\"),0)),0)","v":0},null,null,{"$f":"IFERROR(INDEX(INDIRECT(\"'\"&A26&\"'!$18:$50\"),MATCH($O$1,INDIRECT(\"'\"&A26&\"'!$A$18:$A$50\"),0),MATCH(Parts!$B26,INDIRECT(\"'\"&A26&\"'!$10:$10\"),0)),0)","v":0},null,null,{"$f":"IFERROR(INDEX(INDIRECT(\"'\"&A26&\"'!$18:$50\"),MATCH($R$1,INDIRECT(\"'\"&A26&\"'!$A$18:$A$50\"),0),MATCH(Parts!$B26,INDIRECT(\"'\"&A26&\"'!$10:$10\"),0)),0)","v":0},null,null,{"$f":"IFERROR(INDEX(INDIRECT(\"'\"&A26&\"'!$18:$50\"),MATCH($U$1,INDIRECT(\"'\"&A26&\"'!$A$18:$A$50\"),0),MATCH(Parts!$B26,INDIRECT(\"'\"&A26&\"'!$10:$10\"),0)),0)","v":0},null,null,{"$f":"IFERROR(INDEX(INDIRECT(\"'\"&A26&\"'!$18:$50\"),MATCH($X$1,INDIRECT(\"'\"&A26&\"'!$A$18:$A$50\"),0),MATCH(Parts!$B26,INDIRECT(\"'\"&A26&\"'!$10:$10\"),0)),0)","v":0},null,null,{"$f":"IFERROR(INDEX(INDIRECT(\"'\"&A26&\"'!$18:$50\"),MATCH($AA$1,INDIRECT(\"'\"&A26&\"'!$A$18:$A$50\"),0),MATCH(Parts!$B26,INDIRECT(\"'\"&A26&\"'!$10:$10\"),0)),0)","v":0},null,null,{"$f":"IFERROR(INDEX(INDIRECT(\"'\"&A26&\"'!$18:$50\"),MATCH($AD$1,INDIRECT(\"'\"&A26&\"'!$A$18:$A$50\"),0),MATCH(Parts!$B26,INDIRECT(\"'\"&A26&\"'!$10:$10\"),0)),0)","v":0},null,null,{"$f":"IFERROR(INDEX(INDIRECT(\"'\"&A26&\"'!$18:$50\"),MATCH($AG$1,INDIRECT(\"'\"&A26&\"'!$A$18:$A$50\"),0),MATCH(Parts!$B26,INDIRECT(\"'\"&A26&\"'!$10:$10\"),0)),0)","v":0},null,null,{"$f":"IFERROR(INDEX(INDIRECT(\"'\"&A26&\"'!$18:$50\"),MATCH($AJ$1,INDIRECT(\"'\"&A26&\"'!$A$18:$A$50\"),0),MATCH(Parts!$B26,INDIRECT(\"'\"&A26&\"'!$10:$10\"),0)),0)","v":0},null,null,{"$f":"IFERROR(INDEX(INDIRECT(\"'\"&A26&\"'!$18:$50\"),MATCH($AM$1,INDIRECT(\"'\"&A26&\"'!$A$18:$A$50\"),0),MATCH(Parts!$B26,INDIRECT(\"'\"&A26&\"'!$10:$10\"),0)),0)","v":0},null,null,{"$f":"IFERROR(INDEX(INDIRECT(\"'\"&A26&\"'!$18:$50\"),MATCH($AP$1,INDIRECT(\"'\"&A26&\"'!$A$18:$A$50\"),0),MATCH(Parts!$B26,INDIRECT(\"'\"&A26&\"'!$10:$10\"),0)),0)","v":0},null,"TOP BASKET 3510015 - 9.03\nBOTTOM BASKET 3510016 - 6.91",{"$f":"IFERROR(INDEX(INDIRECT(\"'\"&A26&\"'!$18:$50\"),MATCH($AS$1,INDIRECT(\"'\"&A26&\"'!$A$18:$A$50\"),0),MATCH(Parts!$B26,INDIRECT(\"'\"&A26&\"'!$10:$10\"),0)),0)","v":2},{"$f":"AVERAGE(9.03,6.91)","v":7.97},null,{"$f":"IFERROR(INDEX(INDIRECT(\"'\"&A26&\"'!$18:$50\"),MATCH($AV$1,INDIRECT(\"'\"&A26&\"'!$A$18:$A$50\"),0),MATCH(Parts!$B26,INDIRECT(\"'\"&A26&\"'!$10:$10\"),0)),0)","v":0},null,"STARTING DEVICE (RELAY) A921115",{"$f":"IFERROR(INDEX(INDIRECT(\"'\"&A26&\"'!$18:$50\"),MATCH($AY$1,INDIRECT(\"'\"&A26&\"'!$A$18:$A$50\"),0),MATCH(Parts!$B26,INDIRECT(\"'\"&A26&\"'!$10:$10\"),0)),0)","v":1},9.26,null,{"$f":"IFERROR(INDEX(INDIRECT(\"'\"&A26&\"'!$18:$50\"),MATCH($BB$1,INDIRECT(\"'\"&A26&\"'!$A$18:$A$50\"),0),MATCH(Parts!$B26,INDIRECT(\"'\"&A26&\"'!$10:$10\"),0)),0)","v":0},null,"CANISTER OF 420 GR R600A - 04.9954073",{"$f":"IFERROR(INDEX(INDIRECT(\"'\"&A26&\"'!$18:$50\"),MATCH($BE$1,INDIRECT(\"'\"&A26&\"'!$A$18:$A$50\"),0),MATCH(Parts!$B26,INDIRECT(\"'\"&A26&\"'!$10:$10\"),0)),0)","v":1},78.739999999999995,"FILTER/DRIER TYPE XH 9 (20 GRS) 0-6538001",{"$f":"IFERROR(INDEX(INDIRECT(\"'\"&A26&\"'!$18:$50\"),MATCH($BH$1,INDIRECT(\"'\"&A26&\"'!$A$18:$A$50\"),0),MATCH(Parts!$B26,INDIRECT(\"'\"&A26&\"'!$10:$10\"),0)),0)","v":1},3.84,null,{"$f":"IFERROR(INDEX(INDIRECT(\"'\"&A26&\"'!$18:$50\"),MATCH($BK$1,INDIRECT(\"'\"&A26&\"'!$A$18:$A$50\"),0),MATCH(Parts!$B26,INDIRECT(\"'\"&A26&\"'!$10:$10\"),0)),0)","v":0},null,null,{"$f":"IFERROR(INDEX(INDIRECT(\"'\"&A26&\"'!$18:$50\"),MATCH($BN$1,INDIRECT(\"'\"&A26&\"'!$A$18:$A$50\"),0),MATCH(Parts!$B26,INDIRECT(\"'\"&A26&\"'!$10:$10\"),0)),0)","v":0},null,"HINGE WITH SPRING 1510027",{"$f":"IFERROR(INDEX(INDIRECT(\"'\"&A26&\"'!$18:$50\"),MATCH($BQ$1,INDIRECT(\"'\"&A26&\"'!$A$18:$A$50\"),0),MATCH(Parts!$B26,INDIRECT(\"'\"&A26&\"'!$10:$10\"),0)),0)","v":1},8.85,null,{"$f":"IFERROR(INDEX(INDIRECT(\"'\"&A26&\"'!$18:$50\"),MATCH($BT$1,INDIRECT(\"'\"&A26&\"'!$A$18:$A$50\"),0),MATCH(Parts!$B26,INDIRECT(\"'\"&A26&\"'!$10:$10\"),0)),0)","v":0},null,null,{"$f":"IFERROR(INDEX(INDIRECT(\"'\"&A26&\"'!$18:$50\"),MATCH($BW$1,INDIRECT(\"'\"&A26&\"'!$A$18:$A$50\"),0),MATCH(Parts!$B26,INDIRECT(\"'\"&A26&\"'!$10:$10\"),0)),0)","v":0},null,"THERMOMETER  7020287-03",{"$f":"IFERROR(INDEX(INDIRECT(\"'\"&A26&\"'!$18:$50\"),MATCH($BZ$1,INDIRECT(\"'\"&A26&\"'!$A$18:$A$50\"),0),MATCH(Parts!$B26,INDIRECT(\"'\"&A26&\"'!$10:$10\"),0)),0)","v":1},10.61,null,{"$f":"IFERROR(INDEX(INDIRECT(\"'\"&A26&\"'!$18:$50\"),MATCH($CC$1,INDIRECT(\"'\"&A26&\"'!$A$18:$A$50\"),0),MATCH(Parts!$B26,INDIRECT(\"'\"&A26&\"'!$10:$10\"),0)),0)","v":0},null,"HANDLE WITH LOCK AND KEY 304090501",{"$f":"IFERROR(INDEX(INDIRECT(\"'\"&A26&\"'!$18:$50\"),MATCH($CF$1,INDIRECT(\"'\"&A26&\"'!$A$18:$A$50\"),0),MATCH(Parts!$B26,INDIRECT(\"'\"&A26&\"'!$10:$10\"),0)),0)","v":1},7.14,null,{"$f":"IFERROR(INDEX(INDIRECT(\"'\"&A26&\"'!$18:$50\"),MATCH($CI$1,INDIRECT(\"'\"&A26&\"'!$A$18:$A$50\"),0),MATCH(Parts!$B26,INDIRECT(\"'\"&A26&\"'!$10:$10\"),0)),0)","v":0},null,null,{"$f":"IFERROR(INDEX(INDIRECT(\"'\"&A26&\"'!$18:$50\"),MATCH($CL$1,INDIRECT(\"'\"&A26&\"'!$A$18:$A$50\"),0),MATCH(Parts!$B26,INDIRECT(\"'\"&A26&\"'!$10:$10\"),0)),0)","v":0},null,null,{"$f":"IFERROR(INDEX(INDIRECT(\"'\"&A26&\"'!$18:$50\"),MATCH($CO$1,INDIRECT(\"'\"&A26&\"'!$A$18:$A$50\"),0),MATCH(Parts!$B26,INDIRECT(\"'\"&A26&\"'!$10:$10\"),0)),0)","v":0},null,null,{"$f":"IFERROR(INDEX(INDIRECT(\"'\"&A26&\"'!$18:$50\"),MATCH($CR$1,INDIRECT(\"'\"&A26&\"'!$A$18:$A$50\"),0),MATCH(Parts!$B26,INDIRECT(\"'\"&A26&\"'!$10:$10\"),0)),0)","v":0},null,null,{"$f":"IFERROR(INDEX(INDIRECT(\"'\"&A26&\"'!$18:$50\"),MATCH($CU$1,INDIRECT(\"'\"&A26&\"'!$A$18:$A$50\"),0),MATCH(Parts!$B26,INDIRECT(\"'\"&A26&\"'!$10:$10\"),0)),0)","v":0},null,null,{"$f":"IFERROR(INDEX(INDIRECT(\"'\"&A26&\"'!$18:$50\"),MATCH($CX$1,INDIRECT(\"'\"&A26&\"'!$A$18:$A$50\"),0),MATCH(Parts!$B26,INDIRECT(\"'\"&A26&\"'!$10:$10\"),0)),0)","v":0},null,null,{"$f":"IFERROR(INDEX(INDIRECT(\"'\"&A26&\"'!$18:$50\"),MATCH($DA$1,INDIRECT(\"'\"&A26&\"'!$A$18:$A$50\"),0),MATCH(Parts!$B26,INDIRECT(\"'\"&A26&\"'!$10:$10\"),0)),0)","v":0},null,null,{"$f":"IFERROR(INDEX(INDIRECT(\"'\"&A26&\"'!$18:$50\"),MATCH($DD$1,INDIRECT(\"'\"&A26&\"'!$A$18:$A$50\"),0),MATCH(Parts!$B26,INDIRECT(\"'\"&A26&\"'!$10:$10\"),0)),0)","v":0},null,null,{"$f":"IFERROR(INDEX(INDIRECT(\"'\"&A26&\"'!$18:$50\"),MATCH($DG$1,INDIRECT(\"'\"&A26&\"'!$A$18:$A$50\"),0),MATCH(Parts!$B26,INDIRECT(\"'\"&A26&\"'!$10:$10\"),0)),0)","v":0},null,null,{"$f":"IFERROR(INDEX(INDIRECT(\"'\"&A26&\"'!$18:$50\"),MATCH($DJ$1,INDIRECT(\"'\"&A26&\"'!$A$18:$A$50\"),0),MATCH(Parts!$B26,INDIRECT(\"'\"&A26&\"'!$10:$10\"),0)),0)","v":0},null,null,{"$f":"IFERROR(INDEX(INDIRECT(\"'\"&A26&\"'!$18:$50\"),MATCH($DM$1,INDIRECT(\"'\"&A26&\"'!$A$18:$A$50\"),0),MATCH(Parts!$B26,INDIRECT(\"'\"&A26&\"'!$10:$10\"),0)),0)","v":0},null,null,{"$f":"IFERROR(INDEX(INDIRECT(\"'\"&A26&\"'!$18:$50\"),MATCH($DP$1,INDIRECT(\"'\"&A26&\"'!$A$18:$A$50\"),0),MATCH(Parts!$B26,INDIRECT(\"'\"&A26&\"'!$10:$10\"),0)),0)","v":0},null,null,{"$f":"IFERROR(INDEX(INDIRECT(\"'\"&A26&\"'!$18:$50\"),MATCH($DS$1,INDIRECT(\"'\"&A26&\"'!$A$18:$A$50\"),0),MATCH(Parts!$B26,INDIRECT(\"'\"&A26&\"'!$10:$10\"),0)),0)","v":0},null,null,{"$f":"IFERROR(INDEX(INDIRECT(\"'\"&A26&\"'!$18:$50\"),MATCH($DV$1,INDIRECT(\"'\"&A26&\"'!$A$18:$A$50\"),0),MATCH(Parts!$B26,INDIRECT(\"'\"&A26&\"'!$10:$10\"),0)),0)","v":0},null,null,{"$f":"IFERROR(INDEX(INDIRECT(\"'\"&A26&\"'!$18:$50\"),MATCH($DY$1,INDIRECT(\"'\"&A26&\"'!$A$18:$A$50\"),0),MATCH(Parts!$B26,INDIRECT(\"'\"&A26&\"'!$10:$10\"),0)),0)","v":0},null,null,{"$f":"IFERROR(INDEX(INDIRECT(\"'\"&A26&\"'!$18:$50\"),MATCH($EB$1,INDIRECT(\"'\"&A26&\"'!$A$18:$A$50\"),0),MATCH(Parts!$B26,INDIRECT(\"'\"&A26&\"'!$10:$10\"),0)),0)","v":0},null,null,{"$f":"IFERROR(INDEX(INDIRECT(\"'\"&A26&\"'!$18:$50\"),MATCH($EE$1,INDIRECT(\"'\"&A26&\"'!$A$18:$A$50\"),0),MATCH(Parts!$B26,INDIRECT(\"'\"&A26&\"'!$10:$10\"),0)),0)","v":0},null,null,{"$f":"IFERROR(INDEX(INDIRECT(\"'\"&A26&\"'!$18:$50\"),MATCH($EH$1,INDIRECT(\"'\"&A26&\"'!$A$18:$A$50\"),0),MATCH(Parts!$B26,INDIRECT(\"'\"&A26&\"'!$10:$10\"),0)),0)","v":0},null,null,{"$f":"IFERROR(INDEX(INDIRECT(\"'\"&A26&\"'!$18:$50\"),MATCH($EK$1,INDIRECT(\"'\"&A26&\"'!$A$18:$A$50\"),0),MATCH(Parts!$B26,INDIRECT(\"'\"&A26&\"'!$10:$10\"),0)),0)","v":0}]
[{"$f":"PQS!A29","v":"ILR"},"E003/032",{"$f":"PQS!E29","v":"VLS 300"},{"$f":"PQS!P29","v":"€"},177.01,"Compressor - TLES7KTK , Complete  8-036038297",{"$f":"IFERROR(INDEX(INDIRECT(\"'\"&A27&\"'!$18:$50\"),MATCH(Parts!F$1,INDIRECT(\"'\"&A27&\"'!$A$18:$A$50\"),0),MATCH(Parts!$B27,INDIRECT(\"'\"&A27&\"'!$10:$10\"),0)),0)","v":1},99.21,"THERMOSTAT 7020276",{"$f":"IFERROR(INDEX(INDIRECT(\"'\"&A27&\"'!$18:$50\"),MATCH($I$1,INDIRECT(\"'\"&A27&\"'!$A$18:$A$50\"),0),MATCH(Parts!$B27,INDIRECT(\"'\"&A27&\"'!$10:$10\"),0)),0)","v":1},22.16,null,{"$f":"IFERROR(INDEX(INDIRECT(\"'\"&A27&\"'!$18:$50\"),MATCH($L$1,INDIRECT(\"'\"&A27&\"'!$A$18:$A$50\"),0),MATCH(Parts!$B27,INDIRECT(\"'\"&A27&\"'!$10:$10\"),0)),0)","v":0},null,null,{"$f":"IFERROR(INDEX(INDIRECT(\"'\"&A27&\"'!$18:$50\"),MATCH($O$1,INDIRECT(\"'\"&A27&\"'!$A$18:$A$50\"),0),MATCH(Parts!$B27,INDIRECT(\"'\"&A27&\"'!$10:$10\"),0)),0)","v":0},null,null,{"$f":"IFERROR(INDEX(INDIRECT(\"'\"&A27&\"'!$18:$50\"),MATCH($R$1,INDIRECT(\"'\"&A27&\"'!$A$18:$A$50\"),0),MATCH(Parts!$B27,INDIRECT(\"'\"&A27&\"'!$10:$10\"),0)),0)","v":0},null,null,{"$f":"IFERROR(INDEX(INDIRECT(\"'\"&A27&\"'!$18:$50\"),MATCH($U$1,INDIRECT(\"'\"&A27&\"'!$A$18:$A$50\"),0),MATCH(Parts!$B27,INDIRECT(\"'\"&A27&\"'!$10:$10\"),0)),0)","v":0},null,null,{"$f":"IFERROR(INDEX(INDIRECT(\"'\"&A27&\"'!$18:$50\"),MATCH($X$1,INDIRECT(\"'\"&A27&\"'!$A$18:$A$50\"),0),MATCH(Parts!$B27,INDIRECT(\"'\"&A27&\"'!$10:$10\"),0)),0)","v":0},null,null,{"$f":"IFERROR(INDEX(INDIRECT(\"'\"&A27&\"'!$18:$50\"),MATCH($AA$1,INDIRECT(\"'\"&A27&\"'!$A$18:$A$50\"),0),MATCH(Parts!$B27,INDIRECT(\"'\"&A27&\"'!$10:$10\"),0)),0)","v":0},null,null,{"$f":"IFERROR(INDEX(INDIRECT(\"'\"&A27&\"'!$18:$50\"),MATCH($AD$1,INDIRECT(\"'\"&A27&\"'!$A$18:$A$50\"),0),MATCH(Parts!$B27,INDIRECT(\"'\"&A27&\"'!$10:$10\"),0)),0)","v":0},null,null,{"$f":"IFERROR(INDEX(INDIRECT(\"'\"&A27&\"'!$18:$50\"),MATCH($AG$1,INDIRECT(\"'\"&A27&\"'!$A$18:$A$50\"),0),MATCH(Parts!$B27,INDIRECT(\"'\"&A27&\"'!$10:$10\"),0)),0)","v":0},null,null,{"$f":"IFERROR(INDEX(INDIRECT(\"'\"&A27&\"'!$18:$50\"),MATCH($AJ$1,INDIRECT(\"'\"&A27&\"'!$A$18:$A$50\"),0),MATCH(Parts!$B27,INDIRECT(\"'\"&A27&\"'!$10:$10\"),0)),0)","v":0},null,null,{"$f":"IFERROR(INDEX(INDIRECT(\"'\"&A27&\"'!$18:$50\"),MATCH($AM$1,INDIRECT(\"'\"&A27&\"'!$A$18:$A$50\"),0),MATCH(Parts!$B27,INDIRECT(\"'\"&A27&\"'!$10:$10\"),0)),0)","v":0},null,null,{"$f":"IFERROR(INDEX(INDIRECT(\"'\"&A27&\"'!$18:$50\"),MATCH($AP$1,INDIRECT(\"'\"&A27&\"'!$A$18:$A$50\"),0),MATCH(Parts!$B27,INDIRECT(\"'\"&A27&\"'!$10:$10\"),0)),0)","v":0},null,"TOP BASKET 3510015 - 9,03\nBOTTOM BASKET 3510016 - 6,91",{"$f":"IFERROR(INDEX(INDIRECT(\"'\"&A27&\"'!$18:$50\"),MATCH($AS$1,INDIRECT(\"'\"&A27&\"'!$A$18:$A$50\"),0),MATCH(Parts!$B27,INDIRECT(\"'\"&A27&\"'!$10:$10\"),0)),0)","v":2},{"$f":"AVERAGE(9.03,6.91)","v":7.97},null,{"$f":"IFERROR(INDEX(INDIRECT(\"'\"&A27&\"'!$18:$50\"),MATCH($AV$1,INDIRECT(\"'\"&A27&\"'!$A$18:$A$50\"),0),MATCH(Parts!$B27,INDIRECT(\"'\"&A27&\"'!$10:$10\"),0)),0)","v":0},null,"STARTING DEVICE (RELAY)       A921115",{"$f":"IFERROR(INDEX(INDIRECT(\"'\"&A27&\"'!$18:$50\"),MATCH($AY$1,INDIRECT(\"'\"&A27&\"'!$A$18:$A$50\"),0),MATCH(Parts!$B27,INDIRECT(\"'\"&A27&\"'!$10:$10\"),0)),0)","v":1},9.26,null,{"$f":"IFERROR(INDEX(INDIRECT(\"'\"&A27&\"'!$18:$50\"),MATCH($BB$1,INDIRECT(\"'\"&A27&\"'!$A$18:$A$50\"),0),MATCH(Parts!$B27,INDIRECT(\"'\"&A27&\"'!$10:$10\"),0)),0)","v":0},null,null,{"$f":"IFERROR(INDEX(INDIRECT(\"'\"&A27&\"'!$18:$50\"),MATCH($BE$1,INDIRECT(\"'\"&A27&\"'!$A$18:$A$50\"),0),MATCH(Parts!$B27,INDIRECT(\"'\"&A27&\"'!$10:$10\"),0)),0)","v":0},null,"FILTER/DRIER TYPE XH 9 (20 GRS) 0-6538001",{"$f":"IFERROR(INDEX(INDIRECT(\"'\"&A27&\"'!$18:$50\"),MATCH($BH$1,INDIRECT(\"'\"&A27&\"'!$A$18:$A$50\"),0),MATCH(Parts!$B27,INDIRECT(\"'\"&A27&\"'!$10:$10\"),0)),0)","v":1},3.84,null,{"$f":"IFERROR(INDEX(INDIRECT(\"'\"&A27&\"'!$18:$50\"),MATCH($BK$1,INDIRECT(\"'\"&A27&\"'!$A$18:$A$50\"),0),MATCH(Parts!$B27,INDIRECT(\"'\"&A27&\"'!$10:$10\"),0)),0)","v":0},null,null,{"$f":"IFERROR(INDEX(INDIRECT(\"'\"&A27&\"'!$18:$50\"),MATCH($BN$1,INDIRECT(\"'\"&A27&\"'!$A$18:$A$50\"),0),MATCH(Parts!$B27,INDIRECT(\"'\"&A27&\"'!$10:$10\"),0)),0)","v":0},null,"HINGE WITH SPRING       1510027",{"$f":"IFERROR(INDEX(INDIRECT(\"'\"&A27&\"'!$18:$50\"),MATCH($BQ$1,INDIRECT(\"'\"&A27&\"'!$A$18:$A$50\"),0),MATCH(Parts!$B27,INDIRECT(\"'\"&A27&\"'!$10:$10\"),0)),0)","v":1},8.85,null,{"$f":"IFERROR(INDEX(INDIRECT(\"'\"&A27&\"'!$18:$50\"),MATCH($BT$1,INDIRECT(\"'\"&A27&\"'!$A$18:$A$50\"),0),MATCH(Parts!$B27,INDIRECT(\"'\"&A27&\"'!$10:$10\"),0)),0)","v":0},null,null,{"$f":"IFERROR(INDEX(INDIRECT(\"'\"&A27&\"'!$18:$50\"),MATCH($BW$1,INDIRECT(\"'\"&A27&\"'!$A$18:$A$50\"),0),MATCH(Parts!$B27,INDIRECT(\"'\"&A27&\"'!$10:$10\"),0)),0)","v":0},null,"THERMOMETER 7020287-03",{"$f":"IFERROR(INDEX(INDIRECT(\"'\"&A27&\"'!$18:$50\"),MATCH($BZ$1,INDIRECT(\"'\"&A27&\"'!$A$18:$A$50\"),0),MATCH(Parts!$B27,INDIRECT(\"'\"&A27&\"'!$10:$10\"),0)),0)","v":1},10.61,null,{"$f":"IFERROR(INDEX(INDIRECT(\"'\"&A27&\"'!$18:$50\"),MATCH($CC$1,INDIRECT(\"'\"&A27&\"'!$A$18:$A$50\"),0),MATCH(Parts!$B27,INDIRECT(\"'\"&A27&\"'!$10:$10\"),0)),0)","v":0},null,"HANDLE WITH LOCK AND KEY 304090501",{"$f":"IFERROR(INDEX(INDIRECT(\"'\"&A27&\"'!$18:$50\"),MATCH($CF$1,INDIRECT(\"'\"&A27&\"'!$A$18:$A$50\"),0),MATCH(Parts!$B27,INDIRECT(\"'\"&A27&\"'!$10:$10\"),0)),0)","v":1},7.14,null,{"$f":"IFERROR(INDEX(INDIRECT(\"'\"&A27&\"'!$18:$50\"),MATCH($CI$1,INDIRECT(\"'\"&A27&\"'!$A$18:$A$50\"),0),MATCH(Parts!$B27,INDIRECT(\"'\"&A27&\"'!$10:$10\"),0)),0)","v":0},null,null,{"$f":"IFERROR(INDEX(INDIRECT(\"'\"&A27&\"'!$18:$50\"),MATCH($CL$1,INDIRECT(\"'\"&A27&\"'!$A$18:$A$50\"),0),MATCH(Parts!$B27,INDIRECT(\"'\"&A27&\"'!$10:$10\"),0)),0)","v":0},null,null,{"$f":"IFERROR(INDEX(INDIRECT(\"'\"&A27&\"'!$18:$50\"),MATCH($CO$1,INDIRECT(\"'\"&A27&\"'!$A$18:$A$50\"),0),MATCH(Parts!$B27,INDIRECT(\"'\"&A27&\"'!$10:$10\"),0)),0)","v":0},null,null,{"$f":"IFERROR(INDEX(INDIRECT(\"'\"&A27&\"'!$18:$50\"),MATCH($CR$1,INDIRECT(\"'\"&A27&\"'!$A$18:$A$50\"),0),MATCH(Parts!$B27,INDIRECT(\"'\"&A27&\"'!$10:$10\"),0)),0)","v":0},null,null,{"$f":"IFERROR(INDEX(INDIRECT(\"'\"&A27&\"'!$18:$50\"),MATCH($CU$1,INDIRECT(\"'\"&A27&\"'!$A$18:$A$50\"),0),MATCH(Parts!$B27,INDIRECT(\"'\"&A27&\"'!$10:$10\"),0)),0)","v":0},null,null,{"$f":"IFERROR(INDEX(INDIRECT(\"'\"&A27&\"'!$18:$50\"),MATCH($CX$1,INDIRECT(\"'\"&A27&\"'!$A$18:$A$50\"),0),MATCH(Parts!$B27,INDIRECT(\"'\"&A27&\"'!$10:$10\"),0)),0)","v":0},null,null,{"$f":"IFERROR(INDEX(INDIRECT(\"'\"&A27&\"'!$18:$50\"),MATCH($DA$1,INDIRECT(\"'\"&A27&\"'!$A$18:$A$50\"),0),MATCH(Parts!$B27,INDIRECT(\"'\"&A27&\"'!$10:$10\"),0)),0)","v":0},null,null,{"$f":"IFERROR(INDEX(INDIRECT(\"'\"&A27&\"'!$18:$50\"),MATCH($DD$1,INDIRECT(\"'\"&A27&\"'!$A$18:$A$50\"),0),MATCH(Parts!$B27,INDIRECT(\"'\"&A27&\"'!$10:$10\"),0)),0)","v":0},null,null,{"$f":"IFERROR(INDEX(INDIRECT(\"'\"&A27&\"'!$18:$50\"),MATCH($DG$1,INDIRECT(\"'\"&A27&\"'!$A$18:$A$50\"),0),MATCH(Parts!$B27,INDIRECT(\"'\"&A27&\"'!$10:$10\"),0)),0)","v":0},null,null,{"$f":"IFERROR(INDEX(INDIRECT(\"'\"&A27&\"'!$18:$50\"),MATCH($DJ$1,INDIRECT(\"'\"&A27&\"'!$A$18:$A$50\"),0),MATCH(Parts!$B27,INDIRECT(\"'\"&A27&\"'!$10:$10\"),0)),0)","v":0},null,null,{"$f":"IFERROR(INDEX(INDIRECT(\"'\"&A27&\"'!$18:$50\"),MATCH($DM$1,INDIRECT(\"'\"&A27&\"'!$A$18:$A$50\"),0),MATCH(Parts!$B27,INDIRECT(\"'\"&A27&\"'!$10:$10\"),0)),0)","v":0},null,null,{"$f":"IFERROR(INDEX(INDIRECT(\"'\"&A27&\"'!$18:$50\"),MATCH($DP$1,INDIRECT(\"'\"&A27&\"'!$A$18:$A$50\"),0),MATCH(Parts!$B27,INDIRECT(\"'\"&A27&\"'!$10:$10\"),0)),0)","v":0},null,null,{"$f":"IFERROR(INDEX(INDIRECT(\"'\"&A27&\"'!$18:$50\"),MATCH($DS$1,INDIRECT(\"'\"&A27&\"'!$A$18:$A$50\"),0),MATCH(Parts!$B27,INDIRECT(\"'\"&A27&\"'!$10:$10\"),0)),0)","v":0},null,null,{"$f":"IFERROR(INDEX(INDIRECT(\"'\"&A27&\"'!$18:$50\"),MATCH($DV$1,INDIRECT(\"'\"&A27&\"'!$A$18:$A$50\"),0),MATCH(Parts!$B27,INDIRECT(\"'\"&A27&\"'!$10:$10\"),0)),0)","v":0},null,null,{"$f":"IFERROR(INDEX(INDIRECT(\"'\"&A27&\"'!$18:$50\"),MATCH($DY$1,INDIRECT(\"'\"&A27&\"'!$A$18:$A$50\"),0),MATCH(Parts!$B27,INDIRECT(\"'\"&A27&\"'!$10:$10\"),0)),0)","v":0},null,null,{"$f":"IFERROR(INDEX(INDIRECT(\"'\"&A27&\"'!$18:$50\"),MATCH($EB$1,INDIRECT(\"'\"&A27&\"'!$A$18:$A$50\"),0),MATCH(Parts!$B27,INDIRECT(\"'\"&A27&\"'!$10:$10\"),0)),0)","v":0},null,null,{"$f":"IFERROR(INDEX(INDIRECT(\"'\"&A27&\"'!$18:$50\"),MATCH($EE$1,INDIRECT(\"'\"&A27&\"'!$A$18:$A$50\"),0),MATCH(Parts!$B27,INDIRECT(\"'\"&A27&\"'!$10:$10\"),0)),0)","v":0},null,null,{"$f":"IFERROR(INDEX(INDIRECT(\"'\"&A27&\"'!$18:$50\"),MATCH($EH$1,INDIRECT(\"'\"&A27&\"'!$A$18:$A$50\"),0),MATCH(Parts!$B27,INDIRECT(\"'\"&A27&\"'!$10:$10\"),0)),0)","v":0},null,null,{"$f":"IFERROR(INDEX(INDIRECT(\"'\"&A27&\"'!$18:$50\"),MATCH($EK$1,INDIRECT(\"'\"&A27&\"'!$A$18:$A$50\"),0),MATCH(Parts!$B27,INDIRECT(\"'\"&A27&\"'!$10:$10\"),0)),0)","v":0}]
[{"$f":"PQS!A30","v":"ILR"},"E003/033",{"$f":"PQS!E30","v":"VLS 350"},{"$f":"PQS!P30","v":"€"},263.19,"Compressor - NLE 9KTK , Complete, R600a 8-036038255",{"$f":"IFERROR(INDEX(INDIRECT(\"'\"&A28&\"'!$18:$50\"),MATCH(Parts!F$1,INDIRECT(\"'\"&A28&\"'!$A$18:$A$50\"),0),MATCH(Parts!$B28,INDIRECT(\"'\"&A28&\"'!$10:$10\"),0)),0)","v":1},106.65,"Thermostat 7020276",{"$f":"IFERROR(INDEX(INDIRECT(\"'\"&A28&\"'!$18:$50\"),MATCH($I$1,INDIRECT(\"'\"&A28&\"'!$A$18:$A$50\"),0),MATCH(Parts!$B28,INDIRECT(\"'\"&A28&\"'!$10:$10\"),0)),0)","v":1},22.16,null,{"$f":"IFERROR(INDEX(INDIRECT(\"'\"&A28&\"'!$18:$50\"),MATCH($L$1,INDIRECT(\"'\"&A28&\"'!$A$18:$A$50\"),0),MATCH(Parts!$B28,INDIRECT(\"'\"&A28&\"'!$10:$10\"),0)),0)","v":0},null,null,{"$f":"IFERROR(INDEX(INDIRECT(\"'\"&A28&\"'!$18:$50\"),MATCH($O$1,INDIRECT(\"'\"&A28&\"'!$A$18:$A$50\"),0),MATCH(Parts!$B28,INDIRECT(\"'\"&A28&\"'!$10:$10\"),0)),0)","v":0},null,null,{"$f":"IFERROR(INDEX(INDIRECT(\"'\"&A28&\"'!$18:$50\"),MATCH($R$1,INDIRECT(\"'\"&A28&\"'!$A$18:$A$50\"),0),MATCH(Parts!$B28,INDIRECT(\"'\"&A28&\"'!$10:$10\"),0)),0)","v":0},null,null,{"$f":"IFERROR(INDEX(INDIRECT(\"'\"&A28&\"'!$18:$50\"),MATCH($U$1,INDIRECT(\"'\"&A28&\"'!$A$18:$A$50\"),0),MATCH(Parts!$B28,INDIRECT(\"'\"&A28&\"'!$10:$10\"),0)),0)","v":0},null,null,{"$f":"IFERROR(INDEX(INDIRECT(\"'\"&A28&\"'!$18:$50\"),MATCH($X$1,INDIRECT(\"'\"&A28&\"'!$A$18:$A$50\"),0),MATCH(Parts!$B28,INDIRECT(\"'\"&A28&\"'!$10:$10\"),0)),0)","v":0},null,null,{"$f":"IFERROR(INDEX(INDIRECT(\"'\"&A28&\"'!$18:$50\"),MATCH($AA$1,INDIRECT(\"'\"&A28&\"'!$A$18:$A$50\"),0),MATCH(Parts!$B28,INDIRECT(\"'\"&A28&\"'!$10:$10\"),0)),0)","v":0},null,null,{"$f":"IFERROR(INDEX(INDIRECT(\"'\"&A28&\"'!$18:$50\"),MATCH($AD$1,INDIRECT(\"'\"&A28&\"'!$A$18:$A$50\"),0),MATCH(Parts!$B28,INDIRECT(\"'\"&A28&\"'!$10:$10\"),0)),0)","v":0},null,null,{"$f":"IFERROR(INDEX(INDIRECT(\"'\"&A28&\"'!$18:$50\"),MATCH($AG$1,INDIRECT(\"'\"&A28&\"'!$A$18:$A$50\"),0),MATCH(Parts!$B28,INDIRECT(\"'\"&A28&\"'!$10:$10\"),0)),0)","v":0},null,null,{"$f":"IFERROR(INDEX(INDIRECT(\"'\"&A28&\"'!$18:$50\"),MATCH($AJ$1,INDIRECT(\"'\"&A28&\"'!$A$18:$A$50\"),0),MATCH(Parts!$B28,INDIRECT(\"'\"&A28&\"'!$10:$10\"),0)),0)","v":0},null,null,{"$f":"IFERROR(INDEX(INDIRECT(\"'\"&A28&\"'!$18:$50\"),MATCH($AM$1,INDIRECT(\"'\"&A28&\"'!$A$18:$A$50\"),0),MATCH(Parts!$B28,INDIRECT(\"'\"&A28&\"'!$10:$10\"),0)),0)","v":0},null,null,{"$f":"IFERROR(INDEX(INDIRECT(\"'\"&A28&\"'!$18:$50\"),MATCH($AP$1,INDIRECT(\"'\"&A28&\"'!$A$18:$A$50\"),0),MATCH(Parts!$B28,INDIRECT(\"'\"&A28&\"'!$10:$10\"),0)),0)","v":0},null,"TOP BASKET 3510015 - 9.03\nBOTTOM BASKET 3510016 - 6.91",{"$f":"IFERROR(INDEX(INDIRECT(\"'\"&A28&\"'!$18:$50\"),MATCH($AS$1,INDIRECT(\"'\"&A28&\"'!$A$18:$A$50\"),0),MATCH(Parts!$B28,INDIRECT(\"'\"&A28&\"'!$10:$10\"),0)),0)","v":2},{"$f":"AVERAGE(9.03,6.91)","v":7.97},null,{"$f":"IFERROR(INDEX(INDIRECT(\"'\"&A28&\"'!$18:$50\"),MATCH($AV$1,INDIRECT(\"'\"&A28&\"'!$A$18:$A$50\"),0),MATCH(Parts!$B28,INDIRECT(\"'\"&A28&\"'!$10:$10\"),0)),0)","v":0},null,"STARTING DEVICE (RELAY) A921115",{"$f":"IFERROR(INDEX(INDIRECT(\"'\"&A28&\"'!$18:$50\"),MATCH($AY$1,INDIRECT(\"'\"&A28&\"'!$A$18:$A$50\"),0),MATCH(Parts!$B28,INDIRECT(\"'\"&A28&\"'!$10:$10\"),0)),0)","v":1},9.26,null,{"$f":"IFERROR(INDEX(INDIRECT(\"'\"&A28&\"'!$18:$50\"),MATCH($BB$1,INDIRECT(\"'\"&A28&\"'!$A$18:$A$50\"),0),MATCH(Parts!$B28,INDIRECT(\"'\"&A28&\"'!$10:$10\"),0)),0)","v":0},null,"CANISTER OF 420 GR R600A - 04.9954073",{"$f":"IFERROR(INDEX(INDIRECT(\"'\"&A28&\"'!$18:$50\"),MATCH($BE$1,INDIRECT(\"'\"&A28&\"'!$A$18:$A$50\"),0),MATCH(Parts!$B28,INDIRECT(\"'\"&A28&\"'!$10:$10\"),0)),0)","v":1},78.739999999999995,"FILTER/DRIER TYPE XH 9 (20 GRS) 0-6538001",{"$f":"IFERROR(INDEX(INDIRECT(\"'\"&A28&\"'!$18:$50\"),MATCH($BH$1,INDIRECT(\"'\"&A28&\"'!$A$18:$A$50\"),0),MATCH(Parts!$B28,INDIRECT(\"'\"&A28&\"'!$10:$10\"),0)),0)","v":1},3.84,null,{"$f":"IFERROR(INDEX(INDIRECT(\"'\"&A28&\"'!$18:$50\"),MATCH($BK$1,INDIRECT(\"'\"&A28&\"'!$A$18:$A$50\"),0),MATCH(Parts!$B28,INDIRECT(\"'\"&A28&\"'!$10:$10\"),0)),0)","v":0},null,null,{"$f":"IFERROR(INDEX(INDIRECT(\"'\"&A28&\"'!$18:$50\"),MATCH($BN$1,INDIRECT(\"'\"&A28&\"'!$A$18:$A$50\"),0),MATCH(Parts!$B28,INDIRECT(\"'\"&A28&\"'!$10:$10\"),0)),0)","v":0},null,"HINGE WITH SPRING 1510031",{"$f":"IFERROR(INDEX(INDIRECT(\"'\"&A28&\"'!$18:$50\"),MATCH($BQ$1,INDIRECT(\"'\"&A28&\"'!$A$18:$A$50\"),0),MATCH(Parts!$B28,INDIRECT(\"'\"&A28&\"'!$10:$10\"),0)),0)","v":1},8.85,null,{"$f":"IFERROR(INDEX(INDIRECT(\"'\"&A28&\"'!$18:$50\"),MATCH($BT$1,INDIRECT(\"'\"&A28&\"'!$A$18:$A$50\"),0),MATCH(Parts!$B28,INDIRECT(\"'\"&A28&\"'!$10:$10\"),0)),0)","v":0},null,null,{"$f":"IFERROR(INDEX(INDIRECT(\"'\"&A28&\"'!$18:$50\"),MATCH($BW$1,INDIRECT(\"'\"&A28&\"'!$A$18:$A$50\"),0),MATCH(Parts!$B28,INDIRECT(\"'\"&A28&\"'!$10:$10\"),0)),0)","v":0},null,"THERMOMETER 7020287-03",{"$f":"IFERROR(INDEX(INDIRECT(\"'\"&A28&\"'!$18:$50\"),MATCH($BZ$1,INDIRECT(\"'\"&A28&\"'!$A$18:$A$50\"),0),MATCH(Parts!$B28,INDIRECT(\"'\"&A28&\"'!$10:$10\"),0)),0)","v":1},10.61,null,{"$f":"IFERROR(INDEX(INDIRECT(\"'\"&A28&\"'!$18:$50\"),MATCH($CC$1,INDIRECT(\"'\"&A28&\"'!$A$18:$A$50\"),0),MATCH(Parts!$B28,INDIRECT(\"'\"&A28&\"'!$10:$10\"),0)),0)","v":0},null,"HANDLE WITH LOCK AND KEY 304090501",{"$f":"IFERROR(INDEX(INDIRECT(\"'\"&A28&\"'!$18:$50\"),MATCH($CF$1,INDIRECT(\"'\"&A28&\"'!$A$18:$A$50\"),0),MATCH(Parts!$B28,INDIRECT(\"'\"&A28&\"'!$10:$10\"),0)),0)","v":1},7.14,null,{"$f":"IFERROR(INDEX(INDIRECT(\"'\"&A28&\"'!$18:$50\"),MATCH($CI$1,INDIRECT(\"'\"&A28&\"'!$A$18:$A$50\"),0),MATCH(Parts!$B28,INDIRECT(\"'\"&A28&\"'!$10:$10\"),0)),0)","v":0},null,null,{"$f":"IFERROR(INDEX(INDIRECT(\"'\"&A28&\"'!$18:$50\"),MATCH($CL$1,INDIRECT(\"'\"&A28&\"'!$A$18:$A$50\"),0),MATCH(Parts!$B28,INDIRECT(\"'\"&A28&\"'!$10:$10\"),0)),0)","v":0},null,null,{"$f":"IFERROR(INDEX(INDIRECT(\"'\"&A28&\"'!$18:$50\"),MATCH($CO$1,INDIRECT(\"'\"&A28&\"'!$A$18:$A$50\"),0),MATCH(Parts!$B28,INDIRECT(\"'\"&A28&\"'!$10:$10\"),0)),0)","v":0},null,null,{"$f":"IFERROR(INDEX(INDIRECT(\"'\"&A28&\"'!$18:$50\"),MATCH($CR$1,INDIRECT(\"'\"&A28&\"'!$A$18:$A$50\"),0),MATCH(Parts!$B28,INDIRECT(\"'\"&A28&\"'!$10:$10\"),0)),0)","v":0},null,null,{"$f":"IFERROR(INDEX(INDIRECT(\"'\"&A28&\"'!$18:$50\"),MATCH($CU$1,INDIRECT(\"'\"&A28&\"'!$A$18:$A$50\"),0),MATCH(Parts!$B28,INDIRECT(\"'\"&A28&\"'!$10:$10\"),0)),0)","v":0},null,null,{"$f":"IFERROR(INDEX(INDIRECT(\"'\"&A28&\"'!$18:$50\"),MATCH($CX$1,INDIRECT(\"'\"&A28&\"'!$A$18:$A$50\"),0),MATCH(Parts!$B28,INDIRECT(\"'\"&A28&\"'!$10:$10\"),0)),0)","v":0},null,null,{"$f":"IFERROR(INDEX(INDIRECT(\"'\"&A28&\"'!$18:$50\"),MATCH($DA$1,INDIRECT(\"'\"&A28&\"'!$A$18:$A$50\"),0),MATCH(Parts!$B28,INDIRECT(\"'\"&A28&\"'!$10:$10\"),0)),0)","v":0},null,null,{"$f":"IFERROR(INDEX(INDIRECT(\"'\"&A28&\"'!$18:$50\"),MATCH($DD$1,INDIRECT(\"'\"&A28&\"'!$A$18:$A$50\"),0),MATCH(Parts!$B28,INDIRECT(\"'\"&A28&\"'!$10:$10\"),0)),0)","v":0},null,null,{"$f":"IFERROR(INDEX(INDIRECT(\"'\"&A28&\"'!$18:$50\"),MATCH($DG$1,INDIRECT(\"'\"&A28&\"'!$A$18:$A$50\"),0),MATCH(Parts!$B28,INDIRECT(\"'\"&A28&\"'!$10:$10\"),0)),0)","v":0},null,null,{"$f":"IFERROR(INDEX(INDIRECT(\"'\"&A28&\"'!$18:$50\"),MATCH($DJ$1,INDIRECT(\"'\"&A28&\"'!$A$18:$A$50\"),0),MATCH(Parts!$B28,INDIRECT(\"'\"&A28&\"'!$10:$10\"),0)),0)","v":0},null,null,{"$f":"IFERROR(INDEX(INDIRECT(\"'\"&A28&\"'!$18:$50\"),MATCH($DM$1,INDIRECT(\"'\"&A28&\"'!$A$18:$A$50\"),0),MATCH(Parts!$B28,INDIRECT(\"'\"&A28&\"'!$10:$10\"),0)),0)","v":0},null,null,{"$f":"IFERROR(INDEX(INDIRECT(\"'\"&A28&\"'!$18:$50\"),MATCH($DP$1,INDIRECT(\"'\"&A28&\"'!$A$18:$A$50\"),0),MATCH(Parts!$B28,INDIRECT(\"'\"&A28&\"'!$10:$10\"),0)),0)","v":0},null,null,{"$f":"IFERROR(INDEX(INDIRECT(\"'\"&A28&\"'!$18:$50\"),MATCH($DS$1,INDIRECT(\"'\"&A28&\"'!$A$18:$A$50\"),0),MATCH(Parts!$B28,INDIRECT(\"'\"&A28&\"'!$10:$10\"),0)),0)","v":0},null,null,{"$f":"IFERROR(INDEX(INDIRECT(\"'\"&A28&\"'!$18:$50\"),MATCH($DV$1,INDIRECT(\"'\"&A28&\"'!$A$18:$A$50\"),0),MATCH(Parts!$B28,INDIRECT(\"'\"&A28&\"'!$10:$10\"),0)),0)","v":0},null,null,{"$f":"IFERROR(INDEX(INDIRECT(\"'\"&A28&\"'!$18:$50\"),MATCH($DY$1,INDIRECT(\"'\"&A28&\"'!$A$18:$A$50\"),0),MATCH(Parts!$B28,INDIRECT(\"'\"&A28&\"'!$10:$10\"),0)),0)","v":0},null,null,{"$f":"IFERROR(INDEX(INDIRECT(\"'\"&A28&\"'!$18:$50\"),MATCH($EB$1,INDIRECT(\"'\"&A28&\"'!$A$18:$A$50\"),0),MATCH(Parts!$B28,INDIRECT(\"'\"&A28&\"'!$10:$10\"),0)),0)","v":0},null,null,{"$f":"IFERROR(INDEX(INDIRECT(\"'\"&A28&\"'!$18:$50\"),MATCH($EE$1,INDIRECT(\"'\"&A28&\"'!$A$18:$A$50\"),0),MATCH(Parts!$B28,INDIRECT(\"'\"&A28&\"'!$10:$10\"),0)),0)","v":0},null,null,{"$f":"IFERROR(INDEX(INDIRECT(\"'\"&A28&\"'!$18:$50\"),MATCH($EH$1,INDIRECT(\"'\"&A28&\"'!$A$18:$A$50\"),0),MATCH(Parts!$B28,INDIRECT(\"'\"&A28&\"'!$10:$10\"),0)),0)","v":0},null,null,{"$f":"IFERROR(INDEX(INDIRECT(\"'\"&A28&\"'!$18:$50\"),MATCH($EK$1,INDIRECT(\"'\"&A28&\"'!$A$18:$A$50\"),0),MATCH(Parts!$B28,INDIRECT(\"'\"&A28&\"'!$10:$10\"),0)),0)","v":0}]
[{"$f":"PQS!A31","v":"ILR"},"E003/034",{"$f":"PQS!E31","v":"HBC-110"},{"$f":"PQS!P31","v":"$"},195.62333333333333,"Compressor-/NL10MF, 0070701307: 98.30USD",{"$f":"IFERROR(INDEX(INDIRECT(\"'\"&A29&\"'!$18:$50\"),MATCH(Parts!F$1,INDIRECT(\"'\"&A29&\"'!$A$18:$A$50\"),0),MATCH(Parts!$B29,INDIRECT(\"'\"&A29&\"'!$10:$10\"),0)),0)","v":1},98.3,"Thermostat, 0074091494; 27.6 USD",{"$f":"IFERROR(INDEX(INDIRECT(\"'\"&A29&\"'!$18:$50\"),MATCH($I$1,INDIRECT(\"'\"&A29&\"'!$A$18:$A$50\"),0),MATCH(Parts!$B29,INDIRECT(\"'\"&A29&\"'!$10:$10\"),0)),0)","v":1},27.6,null,{"$f":"IFERROR(INDEX(INDIRECT(\"'\"&A29&\"'!$18:$50\"),MATCH($L$1,INDIRECT(\"'\"&A29&\"'!$A$18:$A$50\"),0),MATCH(Parts!$B29,INDIRECT(\"'\"&A29&\"'!$10:$10\"),0)),0)","v":0},null,null,{"$f":"IFERROR(INDEX(INDIRECT(\"'\"&A29&\"'!$18:$50\"),MATCH($O$1,INDIRECT(\"'\"&A29&\"'!$A$18:$A$50\"),0),MATCH(Parts!$B29,INDIRECT(\"'\"&A29&\"'!$10:$10\"),0)),0)","v":0},null,"Control panel, 0072040234: 1.55USD",{"$f":"IFERROR(INDEX(INDIRECT(\"'\"&A29&\"'!$18:$50\"),MATCH($R$1,INDIRECT(\"'\"&A29&\"'!$A$18:$A$50\"),0),MATCH(Parts!$B29,INDIRECT(\"'\"&A29&\"'!$10:$10\"),0)),0)","v":1},1.55,null,{"$f":"IFERROR(INDEX(INDIRECT(\"'\"&A29&\"'!$18:$50\"),MATCH($U$1,INDIRECT(\"'\"&A29&\"'!$A$18:$A$50\"),0),MATCH(Parts!$B29,INDIRECT(\"'\"&A29&\"'!$10:$10\"),0)),0)","v":0},null,"Condensor，0070701369；fan0075030020",{"$f":"IFERROR(INDEX(INDIRECT(\"'\"&A29&\"'!$18:$50\"),MATCH($X$1,INDIRECT(\"'\"&A29&\"'!$A$18:$A$50\"),0),MATCH(Parts!$B29,INDIRECT(\"'\"&A29&\"'!$10:$10\"),0)),0)","v":1},38.61,null,{"$f":"IFERROR(INDEX(INDIRECT(\"'\"&A29&\"'!$18:$50\"),MATCH($AA$1,INDIRECT(\"'\"&A29&\"'!$A$18:$A$50\"),0),MATCH(Parts!$B29,INDIRECT(\"'\"&A29&\"'!$10:$10\"),0)),0)","v":0},null,null,{"$f":"IFERROR(INDEX(INDIRECT(\"'\"&A29&\"'!$18:$50\"),MATCH($AD$1,INDIRECT(\"'\"&A29&\"'!$A$18:$A$50\"),0),MATCH(Parts!$B29,INDIRECT(\"'\"&A29&\"'!$10:$10\"),0)),0)","v":0},null,null,{"$f":"IFERROR(INDEX(INDIRECT(\"'\"&A29&\"'!$18:$50\"),MATCH($AG$1,INDIRECT(\"'\"&A29&\"'!$A$18:$A$50\"),0),MATCH(Parts!$B29,INDIRECT(\"'\"&A29&\"'!$10:$10\"),0)),0)","v":0},null,null,{"$f":"IFERROR(INDEX(INDIRECT(\"'\"&A29&\"'!$18:$50\"),MATCH($AJ$1,INDIRECT(\"'\"&A29&\"'!$A$18:$A$50\"),0),MATCH(Parts!$B29,INDIRECT(\"'\"&A29&\"'!$10:$10\"),0)),0)","v":0},null,"Switch - 0075050003",{"$f":"IFERROR(INDEX(INDIRECT(\"'\"&A29&\"'!$18:$50\"),MATCH($AM$1,INDIRECT(\"'\"&A29&\"'!$A$18:$A$50\"),0),MATCH(Parts!$B29,INDIRECT(\"'\"&A29&\"'!$10:$10\"),0)),0)","v":1},2,"BE0GL0Z1T",{"$f":"IFERROR(INDEX(INDIRECT(\"'\"&A29&\"'!$18:$50\"),MATCH($AP$1,INDIRECT(\"'\"&A29&\"'!$A$18:$A$50\"),0),MATCH(Parts!$B29,INDIRECT(\"'\"&A29&\"'!$10:$10\"),0)),0)","v":1},null,"Lower baskets, 0070107509: 2.00USD\nUpper baskets, 0070107508: 2.05USD",{"$f":"IFERROR(INDEX(INDIRECT(\"'\"&A29&\"'!$18:$50\"),MATCH($AS$1,INDIRECT(\"'\"&A29&\"'!$A$18:$A$50\"),0),MATCH(Parts!$B29,INDIRECT(\"'\"&A29&\"'!$10:$10\"),0)),0)","v":1},4.05,null,{"$f":"IFERROR(INDEX(INDIRECT(\"'\"&A29&\"'!$18:$50\"),MATCH($AV$1,INDIRECT(\"'\"&A29&\"'!$A$18:$A$50\"),0),MATCH(Parts!$B29,INDIRECT(\"'\"&A29&\"'!$10:$10\"),0)),0)","v":0},null,null,{"$f":"IFERROR(INDEX(INDIRECT(\"'\"&A29&\"'!$18:$50\"),MATCH($AY$1,INDIRECT(\"'\"&A29&\"'!$A$18:$A$50\"),0),MATCH(Parts!$B29,INDIRECT(\"'\"&A29&\"'!$10:$10\"),0)),0)","v":0},null,null,{"$f":"IFERROR(INDEX(INDIRECT(\"'\"&A29&\"'!$18:$50\"),MATCH($BB$1,INDIRECT(\"'\"&A29&\"'!$A$18:$A$50\"),0),MATCH(Parts!$B29,INDIRECT(\"'\"&A29&\"'!$10:$10\"),0)),0)","v":0},null,null,{"$f":"IFERROR(INDEX(INDIRECT(\"'\"&A29&\"'!$18:$50\"),MATCH($BE$1,INDIRECT(\"'\"&A29&\"'!$A$18:$A$50\"),0),MATCH(Parts!$B29,INDIRECT(\"'\"&A29&\"'!$10:$10\"),0)),0)","v":0},null,"Dry filter, 0074180002A: 2.00USD",{"$f":"IFERROR(INDEX(INDIRECT(\"'\"&A29&\"'!$18:$50\"),MATCH($BH$1,INDIRECT(\"'\"&A29&\"'!$A$18:$A$50\"),0),MATCH(Parts!$B29,INDIRECT(\"'\"&A29&\"'!$10:$10\"),0)),0)","v":1},2,null,{"$f":"IFERROR(INDEX(INDIRECT(\"'\"&A29&\"'!$18:$50\"),MATCH($BK$1,INDIRECT(\"'\"&A29&\"'!$A$18:$A$50\"),0),MATCH(Parts!$B29,INDIRECT(\"'\"&A29&\"'!$10:$10\"),0)),0)","v":0},null,null,{"$f":"IFERROR(INDEX(INDIRECT(\"'\"&A29&\"'!$18:$50\"),MATCH($BN$1,INDIRECT(\"'\"&A29&\"'!$A$18:$A$50\"),0),MATCH(Parts!$B29,INDIRECT(\"'\"&A29&\"'!$10:$10\"),0)),0)","v":0},null,"Hinge，0078090012",{"$f":"IFERROR(INDEX(INDIRECT(\"'\"&A29&\"'!$18:$50\"),MATCH($BQ$1,INDIRECT(\"'\"&A29&\"'!$A$18:$A$50\"),0),MATCH(Parts!$B29,INDIRECT(\"'\"&A29&\"'!$10:$10\"),0)),0)","v":1},null,"Hinge covers Up, 0072040003\nHinge covers Down, 0072040011 ",{"$f":"IFERROR(INDEX(INDIRECT(\"'\"&A29&\"'!$18:$50\"),MATCH($BT$1,INDIRECT(\"'\"&A29&\"'!$A$18:$A$50\"),0),MATCH(Parts!$B29,INDIRECT(\"'\"&A29&\"'!$10:$10\"),0)),0)","v":1},0.21333333333333335,null,{"$f":"IFERROR(INDEX(INDIRECT(\"'\"&A29&\"'!$18:$50\"),MATCH($BW$1,INDIRECT(\"'\"&A29&\"'!$A$18:$A$50\"),0),MATCH(Parts!$B29,INDIRECT(\"'\"&A29&\"'!$10:$10\"),0)),0)","v":0},null,"Thermometer：0271400001",{"$f":"IFERROR(INDEX(INDIRECT(\"'\"&A29&\"'!$18:$50\"),MATCH($BZ$1,INDIRECT(\"'\"&A29&\"'!$A$18:$A$50\"),0),MATCH(Parts!$B29,INDIRECT(\"'\"&A29&\"'!$10:$10\"),0)),0)","v":1},3,"Ice Pack up, 0070204756: 2.80USD\nIce Pack down, 0270200225: 5.30USD",{"$f":"IFERROR(INDEX(INDIRECT(\"'\"&A29&\"'!$18:$50\"),MATCH($CC$1,INDIRECT(\"'\"&A29&\"'!$A$18:$A$50\"),0),MATCH(Parts!$B29,INDIRECT(\"'\"&A29&\"'!$10:$10\"),0)),0)","v":1},8.1,"Handle, 0070814623: 3.70USD",{"$f":"IFERROR(INDEX(INDIRECT(\"'\"&A29&\"'!$18:$50\"),MATCH($CF$1,INDIRECT(\"'\"&A29&\"'!$A$18:$A$50\"),0),MATCH(Parts!$B29,INDIRECT(\"'\"&A29&\"'!$10:$10\"),0)),0)","v":1},3.7,"Electrical wiring 0070400252B",{"$f":"IFERROR(INDEX(INDIRECT(\"'\"&A29&\"'!$18:$50\"),MATCH($CI$1,INDIRECT(\"'\"&A29&\"'!$A$18:$A$50\"),0),MATCH(Parts!$B29,INDIRECT(\"'\"&A29&\"'!$10:$10\"),0)),0)","v":1},6.5,null,{"$f":"IFERROR(INDEX(INDIRECT(\"'\"&A29&\"'!$18:$50\"),MATCH($CL$1,INDIRECT(\"'\"&A29&\"'!$A$18:$A$50\"),0),MATCH(Parts!$B29,INDIRECT(\"'\"&A29&\"'!$10:$10\"),0)),0)","v":0},null,null,{"$f":"IFERROR(INDEX(INDIRECT(\"'\"&A29&\"'!$18:$50\"),MATCH($CO$1,INDIRECT(\"'\"&A29&\"'!$A$18:$A$50\"),0),MATCH(Parts!$B29,INDIRECT(\"'\"&A29&\"'!$10:$10\"),0)),0)","v":0},null,null,{"$f":"IFERROR(INDEX(INDIRECT(\"'\"&A29&\"'!$18:$50\"),MATCH($CR$1,INDIRECT(\"'\"&A29&\"'!$A$18:$A$50\"),0),MATCH(Parts!$B29,INDIRECT(\"'\"&A29&\"'!$10:$10\"),0)),0)","v":0},null,null,{"$f":"IFERROR(INDEX(INDIRECT(\"'\"&A29&\"'!$18:$50\"),MATCH($CU$1,INDIRECT(\"'\"&A29&\"'!$A$18:$A$50\"),0),MATCH(Parts!$B29,INDIRECT(\"'\"&A29&\"'!$10:$10\"),0)),0)","v":0},null,null,{"$f":"IFERROR(INDEX(INDIRECT(\"'\"&A29&\"'!$18:$50\"),MATCH($CX$1,INDIRECT(\"'\"&A29&\"'!$A$18:$A$50\"),0),MATCH(Parts!$B29,INDIRECT(\"'\"&A29&\"'!$10:$10\"),0)),0)","v":0},null,null,{"$f":"IFERROR(INDEX(INDIRECT(\"'\"&A29&\"'!$18:$50\"),MATCH($DA$1,INDIRECT(\"'\"&A29&\"'!$A$18:$A$50\"),0),MATCH(Parts!$B29,INDIRECT(\"'\"&A29&\"'!$10:$10\"),0)),0)","v":0},null,null,{"$f":"IFERROR(INDEX(INDIRECT(\"'\"&A29&\"'!$18:$50\"),MATCH($DD$1,INDIRECT(\"'\"&A29&\"'!$A$18:$A$50\"),0),MATCH(Parts!$B29,INDIRECT(\"'\"&A29&\"'!$10:$10\"),0)),0)","v":0},null,null,{"$f":"IFERROR(INDEX(INDIRECT(\"'\"&A29&\"'!$18:$50\"),MATCH($DG$1,INDIRECT(\"'\"&A29&\"'!$A$18:$A$50\"),0),MATCH(Parts!$B29,INDIRECT(\"'\"&A29&\"'!$10:$10\"),0)),0)","v":0},null,null,{"$f":"IFERROR(INDEX(INDIRECT(\"'\"&A29&\"'!$18:$50\"),MATCH($DJ$1,INDIRECT(\"'\"&A29&\"'!$A$18:$A$50\"),0),MATCH(Parts!$B29,INDIRECT(\"'\"&A29&\"'!$10:$10\"),0)),0)","v":0},null,null,{"$f":"IFERROR(INDEX(INDIRECT(\"'\"&A29&\"'!$18:$50\"),MATCH($DM$1,INDIRECT(\"'\"&A29&\"'!$A$18:$A$50\"),0),MATCH(Parts!$B29,INDIRECT(\"'\"&A29&\"'!$10:$10\"),0)),0)","v":0},null,null,{"$f":"IFERROR(INDEX(INDIRECT(\"'\"&A29&\"'!$18:$50\"),MATCH($DP$1,INDIRECT(\"'\"&A29&\"'!$A$18:$A$50\"),0),MATCH(Parts!$B29,INDIRECT(\"'\"&A29&\"'!$10:$10\"),0)),0)","v":0},null,null,{"$f":"IFERROR(INDEX(INDIRECT(\"'\"&A29&\"'!$18:$50\"),MATCH($DS$1,INDIRECT(\"'\"&A29&\"'!$A$18:$A$50\"),0),MATCH(Parts!$B29,INDIRECT(\"'\"&A29&\"'!$10:$10\"),0)),0)","v":0},null,null,{"$f":"IFERROR(INDEX(INDIRECT(\"'\"&A29&\"'!$18:$50\"),MATCH($DV$1,INDIRECT(\"'\"&A29&\"'!$A$18:$A$50\"),0),MATCH(Parts!$B29,INDIRECT(\"'\"&A29&\"'!$10:$10\"),0)),0)","v":0},null,null,{"$f":"IFERROR(INDEX(INDIRECT(\"'\"&A29&\"'!$18:$50\"),MATCH($DY$1,INDIRECT(\"'\"&A29&\"'!$A$18:$A$50\"),0),MATCH(Parts!$B29,INDIRECT(\"'\"&A29&\"'!$10:$10\"),0)),0)","v":0},null,null,{"$f":"IFERROR(INDEX(INDIRECT(\"'\"&A29&\"'!$18:$50\"),MATCH($EB$1,INDIRECT(\"'\"&A29&\"'!$A$18:$A$50\"),0),MATCH(Parts!$B29,INDIRECT(\"'\"&A29&\"'!$10:$10\"),0)),0)","v":0},null,null,{"$f":"IFERROR(INDEX(INDIRECT(\"'\"&A29&\"'!$18:$50\"),MATCH($EE$1,INDIRECT(\"'\"&A29&\"'!$A$18:$A$50\"),0),MATCH(Parts!$B29,INDIRECT(\"'\"&A29&\"'!$10:$10\"),0)),0)","v":0},null,null,{"$f":"IFERROR(INDEX(INDIRECT(\"'\"&A29&\"'!$18:$50\"),MATCH($EH$1,INDIRECT(\"'\"&A29&\"'!$A$18:$A$50\"),0),MATCH(Parts!$B29,INDIRECT(\"'\"&A29&\"'!$10:$10\"),0)),0)","v":0},null,null,{"$f":"IFERROR(INDEX(INDIRECT(\"'\"&A29&\"'!$18:$50\"),MATCH($EK$1,INDIRECT(\"'\"&A29&\"'!$A$18:$A$50\"),0),MATCH(Parts!$B29,INDIRECT(\"'\"&A29&\"'!$10:$10\"),0)),0)","v":0}]
[{"$f":"PQS!A32","v":"ILR"},"E003/036",{"$f":"PQS!E32","v":"ZLF 100 AC*"},{"$f":"PQS!P32","v":"$"},481,"Compressor, IMPC20: 166.00USD",{"$f":"IFERROR(INDEX(INDIRECT(\"'\"&A30&\"'!$18:$50\"),MATCH(Parts!F$1,INDIRECT(\"'\"&A30&\"'!$A$18:$A$50\"),0),MATCH(Parts!$B30,INDIRECT(\"'\"&A30&\"'!$10:$10\"),0)),0)","v":1},166,"Electronic controller (thermostat), IMP70: 84.00USD",{"$f":"IFERROR(INDEX(INDIRECT(\"'\"&A30&\"'!$18:$50\"),MATCH($I$1,INDIRECT(\"'\"&A30&\"'!$A$18:$A$50\"),0),MATCH(Parts!$B30,INDIRECT(\"'\"&A30&\"'!$10:$10\"),0)),0)","v":1},84,null,{"$f":"IFERROR(INDEX(INDIRECT(\"'\"&A30&\"'!$18:$50\"),MATCH($L$1,INDIRECT(\"'\"&A30&\"'!$A$18:$A$50\"),0),MATCH(Parts!$B30,INDIRECT(\"'\"&A30&\"'!$10:$10\"),0)),0)","v":0},null,null,{"$f":"IFERROR(INDEX(INDIRECT(\"'\"&A30&\"'!$18:$50\"),MATCH($O$1,INDIRECT(\"'\"&A30&\"'!$A$18:$A$50\"),0),MATCH(Parts!$B30,INDIRECT(\"'\"&A30&\"'!$10:$10\"),0)),0)","v":0},null,null,{"$f":"IFERROR(INDEX(INDIRECT(\"'\"&A30&\"'!$18:$50\"),MATCH($R$1,INDIRECT(\"'\"&A30&\"'!$A$18:$A$50\"),0),MATCH(Parts!$B30,INDIRECT(\"'\"&A30&\"'!$10:$10\"),0)),0)","v":0},null,null,{"$f":"IFERROR(INDEX(INDIRECT(\"'\"&A30&\"'!$18:$50\"),MATCH($U$1,INDIRECT(\"'\"&A30&\"'!$A$18:$A$50\"),0),MATCH(Parts!$B30,INDIRECT(\"'\"&A30&\"'!$10:$10\"),0)),0)","v":0},null,"Condenser and fan, IMP65: 196.00USD",{"$f":"IFERROR(INDEX(INDIRECT(\"'\"&A30&\"'!$18:$50\"),MATCH($X$1,INDIRECT(\"'\"&A30&\"'!$A$18:$A$50\"),0),MATCH(Parts!$B30,INDIRECT(\"'\"&A30&\"'!$10:$10\"),0)),0)","v":1},196,null,{"$f":"IFERROR(INDEX(INDIRECT(\"'\"&A30&\"'!$18:$50\"),MATCH($AA$1,INDIRECT(\"'\"&A30&\"'!$A$18:$A$50\"),0),MATCH(Parts!$B30,INDIRECT(\"'\"&A30&\"'!$10:$10\"),0)),0)","v":0},null,null,{"$f":"IFERROR(INDEX(INDIRECT(\"'\"&A30&\"'!$18:$50\"),MATCH($AD$1,INDIRECT(\"'\"&A30&\"'!$A$18:$A$50\"),0),MATCH(Parts!$B30,INDIRECT(\"'\"&A30&\"'!$10:$10\"),0)),0)","v":0},null,null,{"$f":"IFERROR(INDEX(INDIRECT(\"'\"&A30&\"'!$18:$50\"),MATCH($AG$1,INDIRECT(\"'\"&A30&\"'!$A$18:$A$50\"),0),MATCH(Parts!$B30,INDIRECT(\"'\"&A30&\"'!$10:$10\"),0)),0)","v":0},null,null,{"$f":"IFERROR(INDEX(INDIRECT(\"'\"&A30&\"'!$18:$50\"),MATCH($AJ$1,INDIRECT(\"'\"&A30&\"'!$A$18:$A$50\"),0),MATCH(Parts!$B30,INDIRECT(\"'\"&A30&\"'!$10:$10\"),0)),0)","v":0},null,null,{"$f":"IFERROR(INDEX(INDIRECT(\"'\"&A30&\"'!$18:$50\"),MATCH($AM$1,INDIRECT(\"'\"&A30&\"'!$A$18:$A$50\"),0),MATCH(Parts!$B30,INDIRECT(\"'\"&A30&\"'!$10:$10\"),0)),0)","v":0},null,null,{"$f":"IFERROR(INDEX(INDIRECT(\"'\"&A30&\"'!$18:$50\"),MATCH($AP$1,INDIRECT(\"'\"&A30&\"'!$A$18:$A$50\"),0),MATCH(Parts!$B30,INDIRECT(\"'\"&A30&\"'!$10:$10\"),0)),0)","v":0},null,null,{"$f":"IFERROR(INDEX(INDIRECT(\"'\"&A30&\"'!$18:$50\"),MATCH($AS$1,INDIRECT(\"'\"&A30&\"'!$A$18:$A$50\"),0),MATCH(Parts!$B30,INDIRECT(\"'\"&A30&\"'!$10:$10\"),0)),0)","v":0},null,null,{"$f":"IFERROR(INDEX(INDIRECT(\"'\"&A30&\"'!$18:$50\"),MATCH($AV$1,INDIRECT(\"'\"&A30&\"'!$A$18:$A$50\"),0),MATCH(Parts!$B30,INDIRECT(\"'\"&A30&\"'!$10:$10\"),0)),0)","v":0},null,null,{"$f":"IFERROR(INDEX(INDIRECT(\"'\"&A30&\"'!$18:$50\"),MATCH($AY$1,INDIRECT(\"'\"&A30&\"'!$A$18:$A$50\"),0),MATCH(Parts!$B30,INDIRECT(\"'\"&A30&\"'!$10:$10\"),0)),0)","v":0},null,null,{"$f":"IFERROR(INDEX(INDIRECT(\"'\"&A30&\"'!$18:$50\"),MATCH($BB$1,INDIRECT(\"'\"&A30&\"'!$A$18:$A$50\"),0),MATCH(Parts!$B30,INDIRECT(\"'\"&A30&\"'!$10:$10\"),0)),0)","v":0},null,null,{"$f":"IFERROR(INDEX(INDIRECT(\"'\"&A30&\"'!$18:$50\"),MATCH($BE$1,INDIRECT(\"'\"&A30&\"'!$A$18:$A$50\"),0),MATCH(Parts!$B30,INDIRECT(\"'\"&A30&\"'!$10:$10\"),0)),0)","v":0},null,null,{"$f":"IFERROR(INDEX(INDIRECT(\"'\"&A30&\"'!$18:$50\"),MATCH($BH$1,INDIRECT(\"'\"&A30&\"'!$A$18:$A$50\"),0),MATCH(Parts!$B30,INDIRECT(\"'\"&A30&\"'!$10:$10\"),0)),0)","v":0},null,null,{"$f":"IFERROR(INDEX(INDIRECT(\"'\"&A30&\"'!$18:$50\"),MATCH($BK$1,INDIRECT(\"'\"&A30&\"'!$A$18:$A$50\"),0),MATCH(Parts!$B30,INDIRECT(\"'\"&A30&\"'!$10:$10\"),0)),0)","v":0},null,null,{"$f":"IFERROR(INDEX(INDIRECT(\"'\"&A30&\"'!$18:$50\"),MATCH($BN$1,INDIRECT(\"'\"&A30&\"'!$A$18:$A$50\"),0),MATCH(Parts!$B30,INDIRECT(\"'\"&A30&\"'!$10:$10\"),0)),0)","v":0},null,null,{"$f":"IFERROR(INDEX(INDIRECT(\"'\"&A30&\"'!$18:$50\"),MATCH($BQ$1,INDIRECT(\"'\"&A30&\"'!$A$18:$A$50\"),0),MATCH(Parts!$B30,INDIRECT(\"'\"&A30&\"'!$10:$10\"),0)),0)","v":0},null,null,{"$f":"IFERROR(INDEX(INDIRECT(\"'\"&A30&\"'!$18:$50\"),MATCH($BT$1,INDIRECT(\"'\"&A30&\"'!$A$18:$A$50\"),0),MATCH(Parts!$B30,INDIRECT(\"'\"&A30&\"'!$10:$10\"),0)),0)","v":0},null,null,{"$f":"IFERROR(INDEX(INDIRECT(\"'\"&A30&\"'!$18:$50\"),MATCH($BW$1,INDIRECT(\"'\"&A30&\"'!$A$18:$A$50\"),0),MATCH(Parts!$B30,INDIRECT(\"'\"&A30&\"'!$10:$10\"),0)),0)","v":0},null,"External solar thermometer, IMP60: 35.00USD",{"$f":"IFERROR(INDEX(INDIRECT(\"'\"&A30&\"'!$18:$50\"),MATCH($BZ$1,INDIRECT(\"'\"&A30&\"'!$A$18:$A$50\"),0),MATCH(Parts!$B30,INDIRECT(\"'\"&A30&\"'!$10:$10\"),0)),0)","v":1},35,null,{"$f":"IFERROR(INDEX(INDIRECT(\"'\"&A30&\"'!$18:$50\"),MATCH($CC$1,INDIRECT(\"'\"&A30&\"'!$A$18:$A$50\"),0),MATCH(Parts!$B30,INDIRECT(\"'\"&A30&\"'!$10:$10\"),0)),0)","v":0},null,null,{"$f":"IFERROR(INDEX(INDIRECT(\"'\"&A30&\"'!$18:$50\"),MATCH($CF$1,INDIRECT(\"'\"&A30&\"'!$A$18:$A$50\"),0),MATCH(Parts!$B30,INDIRECT(\"'\"&A30&\"'!$10:$10\"),0)),0)","v":0},null,null,{"$f":"IFERROR(INDEX(INDIRECT(\"'\"&A30&\"'!$18:$50\"),MATCH($CI$1,INDIRECT(\"'\"&A30&\"'!$A$18:$A$50\"),0),MATCH(Parts!$B30,INDIRECT(\"'\"&A30&\"'!$10:$10\"),0)),0)","v":0},null,null,{"$f":"IFERROR(INDEX(INDIRECT(\"'\"&A30&\"'!$18:$50\"),MATCH($CL$1,INDIRECT(\"'\"&A30&\"'!$A$18:$A$50\"),0),MATCH(Parts!$B30,INDIRECT(\"'\"&A30&\"'!$10:$10\"),0)),0)","v":0},null,null,{"$f":"IFERROR(INDEX(INDIRECT(\"'\"&A30&\"'!$18:$50\"),MATCH($CO$1,INDIRECT(\"'\"&A30&\"'!$A$18:$A$50\"),0),MATCH(Parts!$B30,INDIRECT(\"'\"&A30&\"'!$10:$10\"),0)),0)","v":0},null,null,{"$f":"IFERROR(INDEX(INDIRECT(\"'\"&A30&\"'!$18:$50\"),MATCH($CR$1,INDIRECT(\"'\"&A30&\"'!$A$18:$A$50\"),0),MATCH(Parts!$B30,INDIRECT(\"'\"&A30&\"'!$10:$10\"),0)),0)","v":0},null,null,{"$f":"IFERROR(INDEX(INDIRECT(\"'\"&A30&\"'!$18:$50\"),MATCH($CU$1,INDIRECT(\"'\"&A30&\"'!$A$18:$A$50\"),0),MATCH(Parts!$B30,INDIRECT(\"'\"&A30&\"'!$10:$10\"),0)),0)","v":0},null,null,{"$f":"IFERROR(INDEX(INDIRECT(\"'\"&A30&\"'!$18:$50\"),MATCH($CX$1,INDIRECT(\"'\"&A30&\"'!$A$18:$A$50\"),0),MATCH(Parts!$B30,INDIRECT(\"'\"&A30&\"'!$10:$10\"),0)),0)","v":0},null,null,{"$f":"IFERROR(INDEX(INDIRECT(\"'\"&A30&\"'!$18:$50\"),MATCH($DA$1,INDIRECT(\"'\"&A30&\"'!$A$18:$A$50\"),0),MATCH(Parts!$B30,INDIRECT(\"'\"&A30&\"'!$10:$10\"),0)),0)","v":0},null,null,{"$f":"IFERROR(INDEX(INDIRECT(\"'\"&A30&\"'!$18:$50\"),MATCH($DD$1,INDIRECT(\"'\"&A30&\"'!$A$18:$A$50\"),0),MATCH(Parts!$B30,INDIRECT(\"'\"&A30&\"'!$10:$10\"),0)),0)","v":0},null,null,{"$f":"IFERROR(INDEX(INDIRECT(\"'\"&A30&\"'!$18:$50\"),MATCH($DG$1,INDIRECT(\"'\"&A30&\"'!$A$18:$A$50\"),0),MATCH(Parts!$B30,INDIRECT(\"'\"&A30&\"'!$10:$10\"),0)),0)","v":0},null,null,{"$f":"IFERROR(INDEX(INDIRECT(\"'\"&A30&\"'!$18:$50\"),MATCH($DJ$1,INDIRECT(\"'\"&A30&\"'!$A$18:$A$50\"),0),MATCH(Parts!$B30,INDIRECT(\"'\"&A30&\"'!$10:$10\"),0)),0)","v":0},null,null,{"$f":"IFERROR(INDEX(INDIRECT(\"'\"&A30&\"'!$18:$50\"),MATCH($DM$1,INDIRECT(\"'\"&A30&\"'!$A$18:$A$50\"),0),MATCH(Parts!$B30,INDIRECT(\"'\"&A30&\"'!$10:$10\"),0)),0)","v":0},null,null,{"$f":"IFERROR(INDEX(INDIRECT(\"'\"&A30&\"'!$18:$50\"),MATCH($DP$1,INDIRECT(\"'\"&A30&\"'!$A$18:$A$50\"),0),MATCH(Parts!$B30,INDIRECT(\"'\"&A30&\"'!$10:$10\"),0)),0)","v":0},null,null,{"$f":"IFERROR(INDEX(INDIRECT(\"'\"&A30&\"'!$18:$50\"),MATCH($DS$1,INDIRECT(\"'\"&A30&\"'!$A$18:$A$50\"),0),MATCH(Parts!$B30,INDIRECT(\"'\"&A30&\"'!$10:$10\"),0)),0)","v":0},null,null,{"$f":"IFERROR(INDEX(INDIRECT(\"'\"&A30&\"'!$18:$50\"),MATCH($DV$1,INDIRECT(\"'\"&A30&\"'!$A$18:$A$50\"),0),MATCH(Parts!$B30,INDIRECT(\"'\"&A30&\"'!$10:$10\"),0)),0)","v":0},null,null,{"$f":"IFERROR(INDEX(INDIRECT(\"'\"&A30&\"'!$18:$50\"),MATCH($DY$1,INDIRECT(\"'\"&A30&\"'!$A$18:$A$50\"),0),MATCH(Parts!$B30,INDIRECT(\"'\"&A30&\"'!$10:$10\"),0)),0)","v":0},null,null,{"$f":"IFERROR(INDEX(INDIRECT(\"'\"&A30&\"'!$18:$50\"),MATCH($EB$1,INDIRECT(\"'\"&A30&\"'!$A$18:$A$50\"),0),MATCH(Parts!$B30,INDIRECT(\"'\"&A30&\"'!$10:$10\"),0)),0)","v":0},null,null,{"$f":"IFERROR(INDEX(INDIRECT(\"'\"&A30&\"'!$18:$50\"),MATCH($EE$1,INDIRECT(\"'\"&A30&\"'!$A$18:$A$50\"),0),MATCH(Parts!$B30,INDIRECT(\"'\"&A30&\"'!$10:$10\"),0)),0)","v":0},null,null,{"$f":"IFERROR(INDEX(INDIRECT(\"'\"&A30&\"'!$18:$50\"),MATCH($EH$1,INDIRECT(\"'\"&A30&\"'!$A$18:$A$50\"),0),MATCH(Parts!$B30,INDIRECT(\"'\"&A30&\"'!$10:$10\"),0)),0)","v":0},null,null,{"$f":"IFERROR(INDEX(INDIRECT(\"'\"&A30&\"'!$18:$50\"),MATCH($EK$1,INDIRECT(\"'\"&A30&\"'!$A$18:$A$50\"),0),MATCH(Parts!$B30,INDIRECT(\"'\"&A30&\"'!$10:$10\"),0)),0)","v":0}]
[{"$f":"PQS!A33","v":"ILR"},"E003/038",{"$f":"PQS!E33","v":"HBC-340"},{"$f":"PQS!P33","v":"$"},269.84000000000003,"Compressor, 0070701331: 121.49USD",{"$f":"IFERROR(INDEX(INDIRECT(\"'\"&A31&\"'!$18:$50\"),MATCH(Parts!F$1,INDIRECT(\"'\"&A31&\"'!$A$18:$A$50\"),0),MATCH(Parts!$B31,INDIRECT(\"'\"&A31&\"'!$10:$10\"),0)),0)","v":1},121.49,"Thermostat, 0074091494; 27.6 USD",{"$f":"IFERROR(INDEX(INDIRECT(\"'\"&A31&\"'!$18:$50\"),MATCH($I$1,INDIRECT(\"'\"&A31&\"'!$A$18:$A$50\"),0),MATCH(Parts!$B31,INDIRECT(\"'\"&A31&\"'!$10:$10\"),0)),0)","v":1},27.6,null,{"$f":"IFERROR(INDEX(INDIRECT(\"'\"&A31&\"'!$18:$50\"),MATCH($L$1,INDIRECT(\"'\"&A31&\"'!$A$18:$A$50\"),0),MATCH(Parts!$B31,INDIRECT(\"'\"&A31&\"'!$10:$10\"),0)),0)","v":0},null,null,{"$f":"IFERROR(INDEX(INDIRECT(\"'\"&A31&\"'!$18:$50\"),MATCH($O$1,INDIRECT(\"'\"&A31&\"'!$A$18:$A$50\"),0),MATCH(Parts!$B31,INDIRECT(\"'\"&A31&\"'!$10:$10\"),0)),0)","v":0},null,"Control panel, 0072040234: 1.55USD",{"$f":"IFERROR(INDEX(INDIRECT(\"'\"&A31&\"'!$18:$50\"),MATCH($R$1,INDIRECT(\"'\"&A31&\"'!$A$18:$A$50\"),0),MATCH(Parts!$B31,INDIRECT(\"'\"&A31&\"'!$10:$10\"),0)),0)","v":1},1.55,null,{"$f":"IFERROR(INDEX(INDIRECT(\"'\"&A31&\"'!$18:$50\"),MATCH($U$1,INDIRECT(\"'\"&A31&\"'!$A$18:$A$50\"),0),MATCH(Parts!$B31,INDIRECT(\"'\"&A31&\"'!$10:$10\"),0)),0)","v":0},null,"Condensor，0070803664；fan0075030020",{"$f":"IFERROR(INDEX(INDIRECT(\"'\"&A31&\"'!$18:$50\"),MATCH($X$1,INDIRECT(\"'\"&A31&\"'!$A$18:$A$50\"),0),MATCH(Parts!$B31,INDIRECT(\"'\"&A31&\"'!$10:$10\"),0)),0)","v":1},4,null,{"$f":"IFERROR(INDEX(INDIRECT(\"'\"&A31&\"'!$18:$50\"),MATCH($AA$1,INDIRECT(\"'\"&A31&\"'!$A$18:$A$50\"),0),MATCH(Parts!$B31,INDIRECT(\"'\"&A31&\"'!$10:$10\"),0)),0)","v":0},null,null,{"$f":"IFERROR(INDEX(INDIRECT(\"'\"&A31&\"'!$18:$50\"),MATCH($AD$1,INDIRECT(\"'\"&A31&\"'!$A$18:$A$50\"),0),MATCH(Parts!$B31,INDIRECT(\"'\"&A31&\"'!$10:$10\"),0)),0)","v":0},null,null,{"$f":"IFERROR(INDEX(INDIRECT(\"'\"&A31&\"'!$18:$50\"),MATCH($AG$1,INDIRECT(\"'\"&A31&\"'!$A$18:$A$50\"),0),MATCH(Parts!$B31,INDIRECT(\"'\"&A31&\"'!$10:$10\"),0)),0)","v":0},null,null,{"$f":"IFERROR(INDEX(INDIRECT(\"'\"&A31&\"'!$18:$50\"),MATCH($AJ$1,INDIRECT(\"'\"&A31&\"'!$A$18:$A$50\"),0),MATCH(Parts!$B31,INDIRECT(\"'\"&A31&\"'!$10:$10\"),0)),0)","v":0},null,"Switch - 0075050003",{"$f":"IFERROR(INDEX(INDIRECT(\"'\"&A31&\"'!$18:$50\"),MATCH($AM$1,INDIRECT(\"'\"&A31&\"'!$A$18:$A$50\"),0),MATCH(Parts!$B31,INDIRECT(\"'\"&A31&\"'!$10:$10\"),0)),0)","v":1},2,"BE0GL0Z1T",{"$f":"IFERROR(INDEX(INDIRECT(\"'\"&A31&\"'!$18:$50\"),MATCH($AP$1,INDIRECT(\"'\"&A31&\"'!$A$18:$A$50\"),0),MATCH(Parts!$B31,INDIRECT(\"'\"&A31&\"'!$10:$10\"),0)),0)","v":1},null,"Basket down,, 0270100218B: 3.20USD\nBasket up, 0270100218A: 6.50USD",{"$f":"IFERROR(INDEX(INDIRECT(\"'\"&A31&\"'!$18:$50\"),MATCH($AS$1,INDIRECT(\"'\"&A31&\"'!$A$18:$A$50\"),0),MATCH(Parts!$B31,INDIRECT(\"'\"&A31&\"'!$10:$10\"),0)),0)","v":1},{"$f":"3.2+6.5","v":9.6999999999999993},null,{"$f":"IFERROR(INDEX(INDIRECT(\"'\"&A31&\"'!$18:$50\"),MATCH($AV$1,INDIRECT(\"'\"&A31&\"'!$A$18:$A$50\"),0),MATCH(Parts!$B31,INDIRECT(\"'\"&A31&\"'!$10:$10\"),0)),0)","v":0},null,null,{"$f":"IFERROR(INDEX(INDIRECT(\"'\"&A31&\"'!$18:$50\"),MATCH($AY$1,INDIRECT(\"'\"&A31&\"'!$A$18:$A$50\"),0),MATCH(Parts!$B31,INDIRECT(\"'\"&A31&\"'!$10:$10\"),0)),0)","v":0},null,null,{"$f":"IFERROR(INDEX(INDIRECT(\"'\"&A31&\"'!$18:$50\"),MATCH($BB$1,INDIRECT(\"'\"&A31&\"'!$A$18:$A$50\"),0),MATCH(Parts!$B31,INDIRECT(\"'\"&A31&\"'!$10:$10\"),0)),0)","v":0},null,null,{"$f":"IFERROR(INDEX(INDIRECT(\"'\"&A31&\"'!$18:$50\"),MATCH($BE$1,INDIRECT(\"'\"&A31&\"'!$A$18:$A$50\"),0),MATCH(Parts!$B31,INDIRECT(\"'\"&A31&\"'!$10:$10\"),0)),0)","v":0},null,"Dry filter, 0074180002A: 2.00USD",{"$f":"IFERROR(INDEX(INDIRECT(\"'\"&A31&\"'!$18:$50\"),MATCH($BH$1,INDIRECT(\"'\"&A31&\"'!$A$18:$A$50\"),0),MATCH(Parts!$B31,INDIRECT(\"'\"&A31&\"'!$10:$10\"),0)),0)","v":1},2,null,{"$f":"IFERROR(INDEX(INDIRECT(\"'\"&A31&\"'!$18:$50\"),MATCH($BK$1,INDIRECT(\"'\"&A31&\"'!$A$18:$A$50\"),0),MATCH(Parts!$B31,INDIRECT(\"'\"&A31&\"'!$10:$10\"),0)),0)","v":0},null,null,{"$f":"IFERROR(INDEX(INDIRECT(\"'\"&A31&\"'!$18:$50\"),MATCH($BN$1,INDIRECT(\"'\"&A31&\"'!$A$18:$A$50\"),0),MATCH(Parts!$B31,INDIRECT(\"'\"&A31&\"'!$10:$10\"),0)),0)","v":0},null,"Hinge - 0070815568",{"$f":"IFERROR(INDEX(INDIRECT(\"'\"&A31&\"'!$18:$50\"),MATCH($BQ$1,INDIRECT(\"'\"&A31&\"'!$A$18:$A$50\"),0),MATCH(Parts!$B31,INDIRECT(\"'\"&A31&\"'!$10:$10\"),0)),0)","v":1},3,"Hinge covers Up, 0070203942\nHinge covers Down,  0070204349",{"$f":"IFERROR(INDEX(INDIRECT(\"'\"&A31&\"'!$18:$50\"),MATCH($BT$1,INDIRECT(\"'\"&A31&\"'!$A$18:$A$50\"),0),MATCH(Parts!$B31,INDIRECT(\"'\"&A31&\"'!$10:$10\"),0)),0)","v":1},1,null,{"$f":"IFERROR(INDEX(INDIRECT(\"'\"&A31&\"'!$18:$50\"),MATCH($BW$1,INDIRECT(\"'\"&A31&\"'!$A$18:$A$50\"),0),MATCH(Parts!$B31,INDIRECT(\"'\"&A31&\"'!$10:$10\"),0)),0)","v":0},null,"Thermometer：0271400001",{"$f":"IFERROR(INDEX(INDIRECT(\"'\"&A31&\"'!$18:$50\"),MATCH($BZ$1,INDIRECT(\"'\"&A31&\"'!$A$18:$A$50\"),0),MATCH(Parts!$B31,INDIRECT(\"'\"&A31&\"'!$10:$10\"),0)),0)","v":1},3,"Ice Pack up, 0070204756: 2.80USD\nIce Pack down, 0270200225: 5.30USD",{"$f":"IFERROR(INDEX(INDIRECT(\"'\"&A31&\"'!$18:$50\"),MATCH($CC$1,INDIRECT(\"'\"&A31&\"'!$A$18:$A$50\"),0),MATCH(Parts!$B31,INDIRECT(\"'\"&A31&\"'!$10:$10\"),0)),0)","v":0},{"$f":"2.8+5.3","v":8.1},"Handle - 0070814623; 3 USD",{"$f":"IFERROR(INDEX(INDIRECT(\"'\"&A31&\"'!$18:$50\"),MATCH($CF$1,INDIRECT(\"'\"&A31&\"'!$A$18:$A$50\"),0),MATCH(Parts!$B31,INDIRECT(\"'\"&A31&\"'!$10:$10\"),0)),0)","v":1},3,"Electrical wiring 0070400252B",{"$f":"IFERROR(INDEX(INDIRECT(\"'\"&A31&\"'!$18:$50\"),MATCH($CI$1,INDIRECT(\"'\"&A31&\"'!$A$18:$A$50\"),0),MATCH(Parts!$B31,INDIRECT(\"'\"&A31&\"'!$10:$10\"),0)),0)","v":1},6.5,"Indicator lamp, 0075050003: 1.20USD",{"$f":"IFERROR(INDEX(INDIRECT(\"'\"&A31&\"'!$18:$50\"),MATCH($CL$1,INDIRECT(\"'\"&A31&\"'!$A$18:$A$50\"),0),MATCH(Parts!$B31,INDIRECT(\"'\"&A31&\"'!$10:$10\"),0)),0)","v":0},1.2,null,{"$f":"IFERROR(INDEX(INDIRECT(\"'\"&A31&\"'!$18:$50\"),MATCH($CO$1,INDIRECT(\"'\"&A31&\"'!$A$18:$A$50\"),0),MATCH(Parts!$B31,INDIRECT(\"'\"&A31&\"'!$10:$10\"),0)),0)","v":0},null,null,{"$f":"IFERROR(INDEX(INDIRECT(\"'\"&A31&\"'!$18:$50\"),MATCH($CR$1,INDIRECT(\"'\"&A31&\"'!$A$18:$A$50\"),0),MATCH(Parts!$B31,INDIRECT(\"'\"&A31&\"'!$10:$10\"),0)),0)","v":0},null,null,{"$f":"IFERROR(INDEX(INDIRECT(\"'\"&A31&\"'!$18:$50\"),MATCH($CU$1,INDIRECT(\"'\"&A31&\"'!$A$18:$A$50\"),0),MATCH(Parts!$B31,INDIRECT(\"'\"&A31&\"'!$10:$10\"),0)),0)","v":0},null,null,{"$f":"IFERROR(INDEX(INDIRECT(\"'\"&A31&\"'!$18:$50\"),MATCH($CX$1,INDIRECT(\"'\"&A31&\"'!$A$18:$A$50\"),0),MATCH(Parts!$B31,INDIRECT(\"'\"&A31&\"'!$10:$10\"),0)),0)","v":0},null,null,{"$f":"IFERROR(INDEX(INDIRECT(\"'\"&A31&\"'!$18:$50\"),MATCH($DA$1,INDIRECT(\"'\"&A31&\"'!$A$18:$A$50\"),0),MATCH(Parts!$B31,INDIRECT(\"'\"&A31&\"'!$10:$10\"),0)),0)","v":0},null,null,{"$f":"IFERROR(INDEX(INDIRECT(\"'\"&A31&\"'!$18:$50\"),MATCH($DD$1,INDIRECT(\"'\"&A31&\"'!$A$18:$A$50\"),0),MATCH(Parts!$B31,INDIRECT(\"'\"&A31&\"'!$10:$10\"),0)),0)","v":0},null,null,{"$f":"IFERROR(INDEX(INDIRECT(\"'\"&A31&\"'!$18:$50\"),MATCH($DG$1,INDIRECT(\"'\"&A31&\"'!$A$18:$A$50\"),0),MATCH(Parts!$B31,INDIRECT(\"'\"&A31&\"'!$10:$10\"),0)),0)","v":0},null,null,{"$f":"IFERROR(INDEX(INDIRECT(\"'\"&A31&\"'!$18:$50\"),MATCH($DJ$1,INDIRECT(\"'\"&A31&\"'!$A$18:$A$50\"),0),MATCH(Parts!$B31,INDIRECT(\"'\"&A31&\"'!$10:$10\"),0)),0)","v":0},null,"Rechargeable battery (12V 10Ah) - 0274000119; 85 USD",{"$f":"IFERROR(INDEX(INDIRECT(\"'\"&A31&\"'!$18:$50\"),MATCH($DM$1,INDIRECT(\"'\"&A31&\"'!$A$18:$A$50\"),0),MATCH(Parts!$B31,INDIRECT(\"'\"&A31&\"'!$10:$10\"),0)),0)","v":1},85,null,{"$f":"IFERROR(INDEX(INDIRECT(\"'\"&A31&\"'!$18:$50\"),MATCH($DP$1,INDIRECT(\"'\"&A31&\"'!$A$18:$A$50\"),0),MATCH(Parts!$B31,INDIRECT(\"'\"&A31&\"'!$10:$10\"),0)),0)","v":0},null,null,{"$f":"IFERROR(INDEX(INDIRECT(\"'\"&A31&\"'!$18:$50\"),MATCH($DS$1,INDIRECT(\"'\"&A31&\"'!$A$18:$A$50\"),0),MATCH(Parts!$B31,INDIRECT(\"'\"&A31&\"'!$10:$10\"),0)),0)","v":0},null,null,{"$f":"IFERROR(INDEX(INDIRECT(\"'\"&A31&\"'!$18:$50\"),MATCH($DV$1,INDIRECT(\"'\"&A31&\"'!$A$18:$A$50\"),0),MATCH(Parts!$B31,INDIRECT(\"'\"&A31&\"'!$10:$10\"),0)),0)","v":0},null,null,{"$f":"IFERROR(INDEX(INDIRECT(\"'\"&A31&\"'!$18:$50\"),MATCH($DY$1,INDIRECT(\"'\"&A31&\"'!$A$18:$A$50\"),0),MATCH(Parts!$B31,INDIRECT(\"'\"&A31&\"'!$10:$10\"),0)),0)","v":0},null,null,{"$f":"IFERROR(INDEX(INDIRECT(\"'\"&A31&\"'!$18:$50\"),MATCH($EB$1,INDIRECT(\"'\"&A31&\"'!$A$18:$A$50\"),0),MATCH(Parts!$B31,INDIRECT(\"'\"&A31&\"'!$10:$10\"),0)),0)","v":0},null,null,{"$f":"IFERROR(INDEX(INDIRECT(\"'\"&A31&\"'!$18:$50\"),MATCH($EE$1,INDIRECT(\"'\"&A31&\"'!$A$18:$A$50\"),0),MATCH(Parts!$B31,INDIRECT(\"'\"&A31&\"'!$10:$10\"),0)),0)","v":0},null,null,{"$f":"IFERROR(INDEX(INDIRECT(\"'\"&A31&\"'!$18:$50\"),MATCH($EH$1,INDIRECT(\"'\"&A31&\"'!$A$18:$A$50\"),0),MATCH(Parts!$B31,INDIRECT(\"'\"&A31&\"'!$10:$10\"),0)),0)","v":0},null,null,{"$f":"IFERROR(INDEX(INDIRECT(\"'\"&A31&\"'!$18:$50\"),MATCH($EK$1,INDIRECT(\"'\"&A31&\"'!$A$18:$A$50\"),0),MATCH(Parts!$B31,INDIRECT(\"'\"&A31&\"'!$10:$10\"),0)),0)","v":0}]
[{"$f":"PQS!A34","v":"ILR"},"E003/044",{"$f":"PQS!E34","v":"ZLF 150 AC*"},{"$f":"PQS!P34","v":"$"},481,"Compressor, IMPC20: 166.00USD",{"$f":"IFERROR(INDEX(INDIRECT(\"'\"&A32&\"'!$18:$50\"),MATCH(Parts!F$1,INDIRECT(\"'\"&A32&\"'!$A$18:$A$50\"),0),MATCH(Parts!$B32,INDIRECT(\"'\"&A32&\"'!$10:$10\"),0)),0)","v":1},166,"Electronic controller (thermostat), IMP70: 84.00USD",{"$f":"IFERROR(INDEX(INDIRECT(\"'\"&A32&\"'!$18:$50\"),MATCH($I$1,INDIRECT(\"'\"&A32&\"'!$A$18:$A$50\"),0),MATCH(Parts!$B32,INDIRECT(\"'\"&A32&\"'!$10:$10\"),0)),0)","v":1},84,null,{"$f":"IFERROR(INDEX(INDIRECT(\"'\"&A32&\"'!$18:$50\"),MATCH($L$1,INDIRECT(\"'\"&A32&\"'!$A$18:$A$50\"),0),MATCH(Parts!$B32,INDIRECT(\"'\"&A32&\"'!$10:$10\"),0)),0)","v":0},null,null,{"$f":"IFERROR(INDEX(INDIRECT(\"'\"&A32&\"'!$18:$50\"),MATCH($O$1,INDIRECT(\"'\"&A32&\"'!$A$18:$A$50\"),0),MATCH(Parts!$B32,INDIRECT(\"'\"&A32&\"'!$10:$10\"),0)),0)","v":0},null,null,{"$f":"IFERROR(INDEX(INDIRECT(\"'\"&A32&\"'!$18:$50\"),MATCH($R$1,INDIRECT(\"'\"&A32&\"'!$A$18:$A$50\"),0),MATCH(Parts!$B32,INDIRECT(\"'\"&A32&\"'!$10:$10\"),0)),0)","v":0},null,null,{"$f":"IFERROR(INDEX(INDIRECT(\"'\"&A32&\"'!$18:$50\"),MATCH($U$1,INDIRECT(\"'\"&A32&\"'!$A$18:$A$50\"),0),MATCH(Parts!$B32,INDIRECT(\"'\"&A32&\"'!$10:$10\"),0)),0)","v":0},null,"Condenser and fan, IMP65: 196.00USD",{"$f":"IFERROR(INDEX(INDIRECT(\"'\"&A32&\"'!$18:$50\"),MATCH($X$1,INDIRECT(\"'\"&A32&\"'!$A$18:$A$50\"),0),MATCH(Parts!$B32,INDIRECT(\"'\"&A32&\"'!$10:$10\"),0)),0)","v":1},196,null,{"$f":"IFERROR(INDEX(INDIRECT(\"'\"&A32&\"'!$18:$50\"),MATCH($AA$1,INDIRECT(\"'\"&A32&\"'!$A$18:$A$50\"),0),MATCH(Parts!$B32,INDIRECT(\"'\"&A32&\"'!$10:$10\"),0)),0)","v":0},null,null,{"$f":"IFERROR(INDEX(INDIRECT(\"'\"&A32&\"'!$18:$50\"),MATCH($AD$1,INDIRECT(\"'\"&A32&\"'!$A$18:$A$50\"),0),MATCH(Parts!$B32,INDIRECT(\"'\"&A32&\"'!$10:$10\"),0)),0)","v":0},null,null,{"$f":"IFERROR(INDEX(INDIRECT(\"'\"&A32&\"'!$18:$50\"),MATCH($AG$1,INDIRECT(\"'\"&A32&\"'!$A$18:$A$50\"),0),MATCH(Parts!$B32,INDIRECT(\"'\"&A32&\"'!$10:$10\"),0)),0)","v":0},null,null,{"$f":"IFERROR(INDEX(INDIRECT(\"'\"&A32&\"'!$18:$50\"),MATCH($AJ$1,INDIRECT(\"'\"&A32&\"'!$A$18:$A$50\"),0),MATCH(Parts!$B32,INDIRECT(\"'\"&A32&\"'!$10:$10\"),0)),0)","v":0},null,null,{"$f":"IFERROR(INDEX(INDIRECT(\"'\"&A32&\"'!$18:$50\"),MATCH($AM$1,INDIRECT(\"'\"&A32&\"'!$A$18:$A$50\"),0),MATCH(Parts!$B32,INDIRECT(\"'\"&A32&\"'!$10:$10\"),0)),0)","v":0},null,null,{"$f":"IFERROR(INDEX(INDIRECT(\"'\"&A32&\"'!$18:$50\"),MATCH($AP$1,INDIRECT(\"'\"&A32&\"'!$A$18:$A$50\"),0),MATCH(Parts!$B32,INDIRECT(\"'\"&A32&\"'!$10:$10\"),0)),0)","v":0},null,null,{"$f":"IFERROR(INDEX(INDIRECT(\"'\"&A32&\"'!$18:$50\"),MATCH($AS$1,INDIRECT(\"'\"&A32&\"'!$A$18:$A$50\"),0),MATCH(Parts!$B32,INDIRECT(\"'\"&A32&\"'!$10:$10\"),0)),0)","v":0},null,null,{"$f":"IFERROR(INDEX(INDIRECT(\"'\"&A32&\"'!$18:$50\"),MATCH($AV$1,INDIRECT(\"'\"&A32&\"'!$A$18:$A$50\"),0),MATCH(Parts!$B32,INDIRECT(\"'\"&A32&\"'!$10:$10\"),0)),0)","v":0},null,null,{"$f":"IFERROR(INDEX(INDIRECT(\"'\"&A32&\"'!$18:$50\"),MATCH($AY$1,INDIRECT(\"'\"&A32&\"'!$A$18:$A$50\"),0),MATCH(Parts!$B32,INDIRECT(\"'\"&A32&\"'!$10:$10\"),0)),0)","v":0},null,null,{"$f":"IFERROR(INDEX(INDIRECT(\"'\"&A32&\"'!$18:$50\"),MATCH($BB$1,INDIRECT(\"'\"&A32&\"'!$A$18:$A$50\"),0),MATCH(Parts!$B32,INDIRECT(\"'\"&A32&\"'!$10:$10\"),0)),0)","v":0},null,null,{"$f":"IFERROR(INDEX(INDIRECT(\"'\"&A32&\"'!$18:$50\"),MATCH($BE$1,INDIRECT(\"'\"&A32&\"'!$A$18:$A$50\"),0),MATCH(Parts!$B32,INDIRECT(\"'\"&A32&\"'!$10:$10\"),0)),0)","v":0},null,null,{"$f":"IFERROR(INDEX(INDIRECT(\"'\"&A32&\"'!$18:$50\"),MATCH($BH$1,INDIRECT(\"'\"&A32&\"'!$A$18:$A$50\"),0),MATCH(Parts!$B32,INDIRECT(\"'\"&A32&\"'!$10:$10\"),0)),0)","v":0},null,null,{"$f":"IFERROR(INDEX(INDIRECT(\"'\"&A32&\"'!$18:$50\"),MATCH($BK$1,INDIRECT(\"'\"&A32&\"'!$A$18:$A$50\"),0),MATCH(Parts!$B32,INDIRECT(\"'\"&A32&\"'!$10:$10\"),0)),0)","v":0},null,null,{"$f":"IFERROR(INDEX(INDIRECT(\"'\"&A32&\"'!$18:$50\"),MATCH($BN$1,INDIRECT(\"'\"&A32&\"'!$A$18:$A$50\"),0),MATCH(Parts!$B32,INDIRECT(\"'\"&A32&\"'!$10:$10\"),0)),0)","v":0},null,null,{"$f":"IFERROR(INDEX(INDIRECT(\"'\"&A32&\"'!$18:$50\"),MATCH($BQ$1,INDIRECT(\"'\"&A32&\"'!$A$18:$A$50\"),0),MATCH(Parts!$B32,INDIRECT(\"'\"&A32&\"'!$10:$10\"),0)),0)","v":0},null,null,{"$f":"IFERROR(INDEX(INDIRECT(\"'\"&A32&\"'!$18:$50\"),MATCH($BT$1,INDIRECT(\"'\"&A32&\"'!$A$18:$A$50\"),0),MATCH(Parts!$B32,INDIRECT(\"'\"&A32&\"'!$10:$10\"),0)),0)","v":0},null,null,{"$f":"IFERROR(INDEX(INDIRECT(\"'\"&A32&\"'!$18:$50\"),MATCH($BW$1,INDIRECT(\"'\"&A32&\"'!$A$18:$A$50\"),0),MATCH(Parts!$B32,INDIRECT(\"'\"&A32&\"'!$10:$10\"),0)),0)","v":0},null,"External solar thermometer, IMP60: 35.00USD",{"$f":"IFERROR(INDEX(INDIRECT(\"'\"&A32&\"'!$18:$50\"),MATCH($BZ$1,INDIRECT(\"'\"&A32&\"'!$A$18:$A$50\"),0),MATCH(Parts!$B32,INDIRECT(\"'\"&A32&\"'!$10:$10\"),0)),0)","v":1},35,null,{"$f":"IFERROR(INDEX(INDIRECT(\"'\"&A32&\"'!$18:$50\"),MATCH($CC$1,INDIRECT(\"'\"&A32&\"'!$A$18:$A$50\"),0),MATCH(Parts!$B32,INDIRECT(\"'\"&A32&\"'!$10:$10\"),0)),0)","v":0},null,null,{"$f":"IFERROR(INDEX(INDIRECT(\"'\"&A32&\"'!$18:$50\"),MATCH($CF$1,INDIRECT(\"'\"&A32&\"'!$A$18:$A$50\"),0),MATCH(Parts!$B32,INDIRECT(\"'\"&A32&\"'!$10:$10\"),0)),0)","v":0},null,null,{"$f":"IFERROR(INDEX(INDIRECT(\"'\"&A32&\"'!$18:$50\"),MATCH($CI$1,INDIRECT(\"'\"&A32&\"'!$A$18:$A$50\"),0),MATCH(Parts!$B32,INDIRECT(\"'\"&A32&\"'!$10:$10\"),0)),0)","v":0},null,null,{"$f":"IFERROR(INDEX(INDIRECT(\"'\"&A32&\"'!$18:$50\"),MATCH($CL$1,INDIRECT(\"'\"&A32&\"'!$A$18:$A$50\"),0),MATCH(Parts!$B32,INDIRECT(\"'\"&A32&\"'!$10:$10\"),0)),0)","v":0},null,null,{"$f":"IFERROR(INDEX(INDIRECT(\"'\"&A32&\"'!$18:$50\"),MATCH($CO$1,INDIRECT(\"'\"&A32&\"'!$A$18:$A$50\"),0),MATCH(Parts!$B32,INDIRECT(\"'\"&A32&\"'!$10:$10\"),0)),0)","v":0},null,null,{"$f":"IFERROR(INDEX(INDIRECT(\"'\"&A32&\"'!$18:$50\"),MATCH($CR$1,INDIRECT(\"'\"&A32&\"'!$A$18:$A$50\"),0),MATCH(Parts!$B32,INDIRECT(\"'\"&A32&\"'!$10:$10\"),0)),0)","v":0},null,null,{"$f":"IFERROR(INDEX(INDIRECT(\"'\"&A32&\"'!$18:$50\"),MATCH($CU$1,INDIRECT(\"'\"&A32&\"'!$A$18:$A$50\"),0),MATCH(Parts!$B32,INDIRECT(\"'\"&A32&\"'!$10:$10\"),0)),0)","v":0},null,null,{"$f":"IFERROR(INDEX(INDIRECT(\"'\"&A32&\"'!$18:$50\"),MATCH($CX$1,INDIRECT(\"'\"&A32&\"'!$A$18:$A$50\"),0),MATCH(Parts!$B32,INDIRECT(\"'\"&A32&\"'!$10:$10\"),0)),0)","v":0},null,null,{"$f":"IFERROR(INDEX(INDIRECT(\"'\"&A32&\"'!$18:$50\"),MATCH($DA$1,INDIRECT(\"'\"&A32&\"'!$A$18:$A$50\"),0),MATCH(Parts!$B32,INDIRECT(\"'\"&A32&\"'!$10:$10\"),0)),0)","v":0},null,null,{"$f":"IFERROR(INDEX(INDIRECT(\"'\"&A32&\"'!$18:$50\"),MATCH($DD$1,INDIRECT(\"'\"&A32&\"'!$A$18:$A$50\"),0),MATCH(Parts!$B32,INDIRECT(\"'\"&A32&\"'!$10:$10\"),0)),0)","v":0},null,null,{"$f":"IFERROR(INDEX(INDIRECT(\"'\"&A32&\"'!$18:$50\"),MATCH($DG$1,INDIRECT(\"'\"&A32&\"'!$A$18:$A$50\"),0),MATCH(Parts!$B32,INDIRECT(\"'\"&A32&\"'!$10:$10\"),0)),0)","v":0},null,null,{"$f":"IFERROR(INDEX(INDIRECT(\"'\"&A32&\"'!$18:$50\"),MATCH($DJ$1,INDIRECT(\"'\"&A32&\"'!$A$18:$A$50\"),0),MATCH(Parts!$B32,INDIRECT(\"'\"&A32&\"'!$10:$10\"),0)),0)","v":0},null,null,{"$f":"IFERROR(INDEX(INDIRECT(\"'\"&A32&\"'!$18:$50\"),MATCH($DM$1,INDIRECT(\"'\"&A32&\"'!$A$18:$A$50\"),0),MATCH(Parts!$B32,INDIRECT(\"'\"&A32&\"'!$10:$10\"),0)),0)","v":0},null,null,{"$f":"IFERROR(INDEX(INDIRECT(\"'\"&A32&\"'!$18:$50\"),MATCH($DP$1,INDIRECT(\"'\"&A32&\"'!$A$18:$A$50\"),0),MATCH(Parts!$B32,INDIRECT(\"'\"&A32&\"'!$10:$10\"),0)),0)","v":0},null,null,{"$f":"IFERROR(INDEX(INDIRECT(\"'\"&A32&\"'!$18:$50\"),MATCH($DS$1,INDIRECT(\"'\"&A32&\"'!$A$18:$A$50\"),0),MATCH(Parts!$B32,INDIRECT(\"'\"&A32&\"'!$10:$10\"),0)),0)","v":0},null,null,{"$f":"IFERROR(INDEX(INDIRECT(\"'\"&A32&\"'!$18:$50\"),MATCH($DV$1,INDIRECT(\"'\"&A32&\"'!$A$18:$A$50\"),0),MATCH(Parts!$B32,INDIRECT(\"'\"&A32&\"'!$10:$10\"),0)),0)","v":0},null,null,{"$f":"IFERROR(INDEX(INDIRECT(\"'\"&A32&\"'!$18:$50\"),MATCH($DY$1,INDIRECT(\"'\"&A32&\"'!$A$18:$A$50\"),0),MATCH(Parts!$B32,INDIRECT(\"'\"&A32&\"'!$10:$10\"),0)),0)","v":0},null,null,{"$f":"IFERROR(INDEX(INDIRECT(\"'\"&A32&\"'!$18:$50\"),MATCH($EB$1,INDIRECT(\"'\"&A32&\"'!$A$18:$A$50\"),0),MATCH(Parts!$B32,INDIRECT(\"'\"&A32&\"'!$10:$10\"),0)),0)","v":0},null,null,{"$f":"IFERROR(INDEX(INDIRECT(\"'\"&A32&\"'!$18:$50\"),MATCH($EE$1,INDIRECT(\"'\"&A32&\"'!$A$18:$A$50\"),0),MATCH(Parts!$B32,INDIRECT(\"'\"&A32&\"'!$10:$10\"),0)),0)","v":0},null,null,{"$f":"IFERROR(INDEX(INDIRECT(\"'\"&A32&\"'!$18:$50\"),MATCH($EH$1,INDIRECT(\"'\"&A32&\"'!$A$18:$A$50\"),0),MATCH(Parts!$B32,INDIRECT(\"'\"&A32&\"'!$10:$10\"),0)),0)","v":0},null,null,{"$f":"IFERROR(INDEX(INDIRECT(\"'\"&A32&\"'!$18:$50\"),MATCH($EK$1,INDIRECT(\"'\"&A32&\"'!$A$18:$A$50\"),0),MATCH(Parts!$B32,INDIRECT(\"'\"&A32&\"'!$10:$10\"),0)),0)","v":0}]
[{"$f":"PQS!A35","v":"ILR"},"E003/046",{"$f":"PQS!E35","v":"GVR 50 AC*"},{"$f":"PQS!P35","v":"$"},156,"Compressor i8 50L TR AC; RCM97749257:57.00USD",{"$f":"IFERROR(INDEX(INDIRECT(\"'\"&A33&\"'!$18:$50\"),MATCH(Parts!F$1,INDIRECT(\"'\"&A33&\"'!$A$18:$A$50\"),0),MATCH(Parts!$B33,INDIRECT(\"'\"&A33&\"'!$10:$10\"),0)),0)","v":1},57,null,{"$f":"IFERROR(INDEX(INDIRECT(\"'\"&A33&\"'!$18:$50\"),MATCH($I$1,INDIRECT(\"'\"&A33&\"'!$A$18:$A$50\"),0),MATCH(Parts!$B33,INDIRECT(\"'\"&A33&\"'!$10:$10\"),0)),0)","v":0},null,null,{"$f":"IFERROR(INDEX(INDIRECT(\"'\"&A33&\"'!$18:$50\"),MATCH($L$1,INDIRECT(\"'\"&A33&\"'!$A$18:$A$50\"),0),MATCH(Parts!$B33,INDIRECT(\"'\"&A33&\"'!$10:$10\"),0)),0)","v":0},null,null,{"$f":"IFERROR(INDEX(INDIRECT(\"'\"&A33&\"'!$18:$50\"),MATCH($O$1,INDIRECT(\"'\"&A33&\"'!$A$18:$A$50\"),0),MATCH(Parts!$B33,INDIRECT(\"'\"&A33&\"'!$10:$10\"),0)),0)","v":0},null,"ELEC CNTRL CARD; RCC97749260: 30.00USD",{"$f":"IFERROR(INDEX(INDIRECT(\"'\"&A33&\"'!$18:$50\"),MATCH($R$1,INDIRECT(\"'\"&A33&\"'!$A$18:$A$50\"),0),MATCH(Parts!$B33,INDIRECT(\"'\"&A33&\"'!$10:$10\"),0)),0)","v":1},30,null,{"$f":"IFERROR(INDEX(INDIRECT(\"'\"&A33&\"'!$18:$50\"),MATCH($U$1,INDIRECT(\"'\"&A33&\"'!$A$18:$A$50\"),0),MATCH(Parts!$B33,INDIRECT(\"'\"&A33&\"'!$10:$10\"),0)),0)","v":0},null,"Fan MTR 50L TR100L TRAC; RFN97749259:12.00USD\nFan IMPELLER; RFM97749278: 1.50USD",{"$f":"IFERROR(INDEX(INDIRECT(\"'\"&A33&\"'!$18:$50\"),MATCH($X$1,INDIRECT(\"'\"&A33&\"'!$A$18:$A$50\"),0),MATCH(Parts!$B33,INDIRECT(\"'\"&A33&\"'!$10:$10\"),0)),0)","v":1},{"$f":" 12+1.5","v":13.5},null,{"$f":"IFERROR(INDEX(INDIRECT(\"'\"&A33&\"'!$18:$50\"),MATCH($AA$1,INDIRECT(\"'\"&A33&\"'!$A$18:$A$50\"),0),MATCH(Parts!$B33,INDIRECT(\"'\"&A33&\"'!$10:$10\"),0)),0)","v":0},null,null,{"$f":"IFERROR(INDEX(INDIRECT(\"'\"&A33&\"'!$18:$50\"),MATCH($AD$1,INDIRECT(\"'\"&A33&\"'!$A$18:$A$50\"),0),MATCH(Parts!$B33,INDIRECT(\"'\"&A33&\"'!$10:$10\"),0)),0)","v":0},null,null,{"$f":"IFERROR(INDEX(INDIRECT(\"'\"&A33&\"'!$18:$50\"),MATCH($AG$1,INDIRECT(\"'\"&A33&\"'!$A$18:$A$50\"),0),MATCH(Parts!$B33,INDIRECT(\"'\"&A33&\"'!$10:$10\"),0)),0)","v":0},null,null,{"$f":"IFERROR(INDEX(INDIRECT(\"'\"&A33&\"'!$18:$50\"),MATCH($AJ$1,INDIRECT(\"'\"&A33&\"'!$A$18:$A$50\"),0),MATCH(Parts!$B33,INDIRECT(\"'\"&A33&\"'!$10:$10\"),0)),0)","v":0},null,null,{"$f":"IFERROR(INDEX(INDIRECT(\"'\"&A33&\"'!$18:$50\"),MATCH($AM$1,INDIRECT(\"'\"&A33&\"'!$A$18:$A$50\"),0),MATCH(Parts!$B33,INDIRECT(\"'\"&A33&\"'!$10:$10\"),0)),0)","v":0},null,"Voltage Stabilizer; RCM97749357: 25.00USD",{"$f":"IFERROR(INDEX(INDIRECT(\"'\"&A33&\"'!$18:$50\"),MATCH($AP$1,INDIRECT(\"'\"&A33&\"'!$A$18:$A$50\"),0),MATCH(Parts!$B33,INDIRECT(\"'\"&A33&\"'!$10:$10\"),0)),0)","v":1},25,null,{"$f":"IFERROR(INDEX(INDIRECT(\"'\"&A33&\"'!$18:$50\"),MATCH($AS$1,INDIRECT(\"'\"&A33&\"'!$A$18:$A$50\"),0),MATCH(Parts!$B33,INDIRECT(\"'\"&A33&\"'!$10:$10\"),0)),0)","v":0},null,null,{"$f":"IFERROR(INDEX(INDIRECT(\"'\"&A33&\"'!$18:$50\"),MATCH($AV$1,INDIRECT(\"'\"&A33&\"'!$A$18:$A$50\"),0),MATCH(Parts!$B33,INDIRECT(\"'\"&A33&\"'!$10:$10\"),0)),0)","v":0},null,"Relay + OLP 50L TR AC; RRE97749258:2.00USD",{"$f":"IFERROR(INDEX(INDIRECT(\"'\"&A33&\"'!$18:$50\"),MATCH($AY$1,INDIRECT(\"'\"&A33&\"'!$A$18:$A$50\"),0),MATCH(Parts!$B33,INDIRECT(\"'\"&A33&\"'!$10:$10\"),0)),0)","v":1},2,"Run Capacitor 50L TR100L TRAC; RFN97749263:1.00USD ",{"$f":"IFERROR(INDEX(INDIRECT(\"'\"&A33&\"'!$18:$50\"),MATCH($BB$1,INDIRECT(\"'\"&A33&\"'!$A$18:$A$50\"),0),MATCH(Parts!$B33,INDIRECT(\"'\"&A33&\"'!$10:$10\"),0)),0)","v":1},1,null,{"$f":"IFERROR(INDEX(INDIRECT(\"'\"&A33&\"'!$18:$50\"),MATCH($BE$1,INDIRECT(\"'\"&A33&\"'!$A$18:$A$50\"),0),MATCH(Parts!$B33,INDIRECT(\"'\"&A33&\"'!$10:$10\"),0)),0)","v":0},null,null,{"$f":"IFERROR(INDEX(INDIRECT(\"'\"&A33&\"'!$18:$50\"),MATCH($BH$1,INDIRECT(\"'\"&A33&\"'!$A$18:$A$50\"),0),MATCH(Parts!$B33,INDIRECT(\"'\"&A33&\"'!$10:$10\"),0)),0)","v":0},null,null,{"$f":"IFERROR(INDEX(INDIRECT(\"'\"&A33&\"'!$18:$50\"),MATCH($BK$1,INDIRECT(\"'\"&A33&\"'!$A$18:$A$50\"),0),MATCH(Parts!$B33,INDIRECT(\"'\"&A33&\"'!$10:$10\"),0)),0)","v":0},null,null,{"$f":"IFERROR(INDEX(INDIRECT(\"'\"&A33&\"'!$18:$50\"),MATCH($BN$1,INDIRECT(\"'\"&A33&\"'!$A$18:$A$50\"),0),MATCH(Parts!$B33,INDIRECT(\"'\"&A33&\"'!$10:$10\"),0)),0)","v":0},null,null,{"$f":"IFERROR(INDEX(INDIRECT(\"'\"&A33&\"'!$18:$50\"),MATCH($BQ$1,INDIRECT(\"'\"&A33&\"'!$A$18:$A$50\"),0),MATCH(Parts!$B33,INDIRECT(\"'\"&A33&\"'!$10:$10\"),0)),0)","v":0},null,"Door Hinge, RMS97749264: 9.00USD; Door Latch, RMS97749269: 6.50USD",{"$f":"IFERROR(INDEX(INDIRECT(\"'\"&A33&\"'!$18:$50\"),MATCH($BT$1,INDIRECT(\"'\"&A33&\"'!$A$18:$A$50\"),0),MATCH(Parts!$B33,INDIRECT(\"'\"&A33&\"'!$10:$10\"),0)),0)","v":1},{"$f":"9+6.5","v":15.5},null,{"$f":"IFERROR(INDEX(INDIRECT(\"'\"&A33&\"'!$18:$50\"),MATCH($BW$1,INDIRECT(\"'\"&A33&\"'!$A$18:$A$50\"),0),MATCH(Parts!$B33,INDIRECT(\"'\"&A33&\"'!$10:$10\"),0)),0)","v":0},null,"Solar Powered Thermo BRD; RCC97749262: 10.50USD",{"$f":"IFERROR(INDEX(INDIRECT(\"'\"&A33&\"'!$18:$50\"),MATCH($BZ$1,INDIRECT(\"'\"&A33&\"'!$A$18:$A$50\"),0),MATCH(Parts!$B33,INDIRECT(\"'\"&A33&\"'!$10:$10\"),0)),0)","v":1},10.5,null,{"$f":"IFERROR(INDEX(INDIRECT(\"'\"&A33&\"'!$18:$50\"),MATCH($CC$1,INDIRECT(\"'\"&A33&\"'!$A$18:$A$50\"),0),MATCH(Parts!$B33,INDIRECT(\"'\"&A33&\"'!$10:$10\"),0)),0)","v":0},null,"Door Handle, RMS97749265:1.50USD",{"$f":"IFERROR(INDEX(INDIRECT(\"'\"&A33&\"'!$18:$50\"),MATCH($CF$1,INDIRECT(\"'\"&A33&\"'!$A$18:$A$50\"),0),MATCH(Parts!$B33,INDIRECT(\"'\"&A33&\"'!$10:$10\"),0)),0)","v":1},1.5,null,{"$f":"IFERROR(INDEX(INDIRECT(\"'\"&A33&\"'!$18:$50\"),MATCH($CI$1,INDIRECT(\"'\"&A33&\"'!$A$18:$A$50\"),0),MATCH(Parts!$B33,INDIRECT(\"'\"&A33&\"'!$10:$10\"),0)),0)","v":0},null,null,{"$f":"IFERROR(INDEX(INDIRECT(\"'\"&A33&\"'!$18:$50\"),MATCH($CL$1,INDIRECT(\"'\"&A33&\"'!$A$18:$A$50\"),0),MATCH(Parts!$B33,INDIRECT(\"'\"&A33&\"'!$10:$10\"),0)),0)","v":0},null,null,{"$f":"IFERROR(INDEX(INDIRECT(\"'\"&A33&\"'!$18:$50\"),MATCH($CO$1,INDIRECT(\"'\"&A33&\"'!$A$18:$A$50\"),0),MATCH(Parts!$B33,INDIRECT(\"'\"&A33&\"'!$10:$10\"),0)),0)","v":0},null,null,{"$f":"IFERROR(INDEX(INDIRECT(\"'\"&A33&\"'!$18:$50\"),MATCH($CR$1,INDIRECT(\"'\"&A33&\"'!$A$18:$A$50\"),0),MATCH(Parts!$B33,INDIRECT(\"'\"&A33&\"'!$10:$10\"),0)),0)","v":0},null,null,{"$f":"IFERROR(INDEX(INDIRECT(\"'\"&A33&\"'!$18:$50\"),MATCH($CU$1,INDIRECT(\"'\"&A33&\"'!$A$18:$A$50\"),0),MATCH(Parts!$B33,INDIRECT(\"'\"&A33&\"'!$10:$10\"),0)),0)","v":0},null,null,{"$f":"IFERROR(INDEX(INDIRECT(\"'\"&A33&\"'!$18:$50\"),MATCH($CX$1,INDIRECT(\"'\"&A33&\"'!$A$18:$A$50\"),0),MATCH(Parts!$B33,INDIRECT(\"'\"&A33&\"'!$10:$10\"),0)),0)","v":0},null,null,{"$f":"IFERROR(INDEX(INDIRECT(\"'\"&A33&\"'!$18:$50\"),MATCH($DA$1,INDIRECT(\"'\"&A33&\"'!$A$18:$A$50\"),0),MATCH(Parts!$B33,INDIRECT(\"'\"&A33&\"'!$10:$10\"),0)),0)","v":0},null,null,{"$f":"IFERROR(INDEX(INDIRECT(\"'\"&A33&\"'!$18:$50\"),MATCH($DD$1,INDIRECT(\"'\"&A33&\"'!$A$18:$A$50\"),0),MATCH(Parts!$B33,INDIRECT(\"'\"&A33&\"'!$10:$10\"),0)),0)","v":0},null,null,{"$f":"IFERROR(INDEX(INDIRECT(\"'\"&A33&\"'!$18:$50\"),MATCH($DG$1,INDIRECT(\"'\"&A33&\"'!$A$18:$A$50\"),0),MATCH(Parts!$B33,INDIRECT(\"'\"&A33&\"'!$10:$10\"),0)),0)","v":0},null,null,{"$f":"IFERROR(INDEX(INDIRECT(\"'\"&A33&\"'!$18:$50\"),MATCH($DJ$1,INDIRECT(\"'\"&A33&\"'!$A$18:$A$50\"),0),MATCH(Parts!$B33,INDIRECT(\"'\"&A33&\"'!$10:$10\"),0)),0)","v":0},null,null,{"$f":"IFERROR(INDEX(INDIRECT(\"'\"&A33&\"'!$18:$50\"),MATCH($DM$1,INDIRECT(\"'\"&A33&\"'!$A$18:$A$50\"),0),MATCH(Parts!$B33,INDIRECT(\"'\"&A33&\"'!$10:$10\"),0)),0)","v":0},null,null,{"$f":"IFERROR(INDEX(INDIRECT(\"'\"&A33&\"'!$18:$50\"),MATCH($DP$1,INDIRECT(\"'\"&A33&\"'!$A$18:$A$50\"),0),MATCH(Parts!$B33,INDIRECT(\"'\"&A33&\"'!$10:$10\"),0)),0)","v":0},null,null,{"$f":"IFERROR(INDEX(INDIRECT(\"'\"&A33&\"'!$18:$50\"),MATCH($DS$1,INDIRECT(\"'\"&A33&\"'!$A$18:$A$50\"),0),MATCH(Parts!$B33,INDIRECT(\"'\"&A33&\"'!$10:$10\"),0)),0)","v":0},null,null,{"$f":"IFERROR(INDEX(INDIRECT(\"'\"&A33&\"'!$18:$50\"),MATCH($DV$1,INDIRECT(\"'\"&A33&\"'!$A$18:$A$50\"),0),MATCH(Parts!$B33,INDIRECT(\"'\"&A33&\"'!$10:$10\"),0)),0)","v":0},null,null,{"$f":"IFERROR(INDEX(INDIRECT(\"'\"&A33&\"'!$18:$50\"),MATCH($DY$1,INDIRECT(\"'\"&A33&\"'!$A$18:$A$50\"),0),MATCH(Parts!$B33,INDIRECT(\"'\"&A33&\"'!$10:$10\"),0)),0)","v":0},null,null,{"$f":"IFERROR(INDEX(INDIRECT(\"'\"&A33&\"'!$18:$50\"),MATCH($EB$1,INDIRECT(\"'\"&A33&\"'!$A$18:$A$50\"),0),MATCH(Parts!$B33,INDIRECT(\"'\"&A33&\"'!$10:$10\"),0)),0)","v":0},null,null,{"$f":"IFERROR(INDEX(INDIRECT(\"'\"&A33&\"'!$18:$50\"),MATCH($EE$1,INDIRECT(\"'\"&A33&\"'!$A$18:$A$50\"),0),MATCH(Parts!$B33,INDIRECT(\"'\"&A33&\"'!$10:$10\"),0)),0)","v":0},null,null,{"$f":"IFERROR(INDEX(INDIRECT(\"'\"&A33&\"'!$18:$50\"),MATCH($EH$1,INDIRECT(\"'\"&A33&\"'!$A$18:$A$50\"),0),MATCH(Parts!$B33,INDIRECT(\"'\"&A33&\"'!$10:$10\"),0)),0)","v":0},null,null,{"$f":"IFERROR(INDEX(INDIRECT(\"'\"&A33&\"'!$18:$50\"),MATCH($EK$1,INDIRECT(\"'\"&A33&\"'!$A$18:$A$50\"),0),MATCH(Parts!$B33,INDIRECT(\"'\"&A33&\"'!$10:$10\"),0)),0)","v":0}]
[{"$f":"PQS!A36","v":"ILR"},"E003/047",{"$f":"PQS!E36","v":"GVR 100 AC*"},{"$f":"PQS!P36","v":"$"},156,"Compressor i11 100TR AC; RCM97749256:57.00USD",{"$f":"IFERROR(INDEX(INDIRECT(\"'\"&A34&\"'!$18:$50\"),MATCH(Parts!F$1,INDIRECT(\"'\"&A34&\"'!$A$18:$A$50\"),0),MATCH(Parts!$B34,INDIRECT(\"'\"&A34&\"'!$10:$10\"),0)),0)","v":1},57,null,{"$f":"IFERROR(INDEX(INDIRECT(\"'\"&A34&\"'!$18:$50\"),MATCH($I$1,INDIRECT(\"'\"&A34&\"'!$A$18:$A$50\"),0),MATCH(Parts!$B34,INDIRECT(\"'\"&A34&\"'!$10:$10\"),0)),0)","v":0},null,null,{"$f":"IFERROR(INDEX(INDIRECT(\"'\"&A34&\"'!$18:$50\"),MATCH($L$1,INDIRECT(\"'\"&A34&\"'!$A$18:$A$50\"),0),MATCH(Parts!$B34,INDIRECT(\"'\"&A34&\"'!$10:$10\"),0)),0)","v":0},null,null,{"$f":"IFERROR(INDEX(INDIRECT(\"'\"&A34&\"'!$18:$50\"),MATCH($O$1,INDIRECT(\"'\"&A34&\"'!$A$18:$A$50\"),0),MATCH(Parts!$B34,INDIRECT(\"'\"&A34&\"'!$10:$10\"),0)),0)","v":0},null,"Elec.CNTRL Card 50LTR100LTRAC; RCC97749260:30.00USD",{"$f":"IFERROR(INDEX(INDIRECT(\"'\"&A34&\"'!$18:$50\"),MATCH($R$1,INDIRECT(\"'\"&A34&\"'!$A$18:$A$50\"),0),MATCH(Parts!$B34,INDIRECT(\"'\"&A34&\"'!$10:$10\"),0)),0)","v":1},30,null,{"$f":"IFERROR(INDEX(INDIRECT(\"'\"&A34&\"'!$18:$50\"),MATCH($U$1,INDIRECT(\"'\"&A34&\"'!$A$18:$A$50\"),0),MATCH(Parts!$B34,INDIRECT(\"'\"&A34&\"'!$10:$10\"),0)),0)","v":0},null,"Fan MTR 50LTR 100LTRAC; RFN97749259: 12.00USD\nFan IMPELLER; RFM97749278:1.50USD",{"$f":"IFERROR(INDEX(INDIRECT(\"'\"&A34&\"'!$18:$50\"),MATCH($X$1,INDIRECT(\"'\"&A34&\"'!$A$18:$A$50\"),0),MATCH(Parts!$B34,INDIRECT(\"'\"&A34&\"'!$10:$10\"),0)),0)","v":1},{"$f":"12+1.5","v":13.5},null,{"$f":"IFERROR(INDEX(INDIRECT(\"'\"&A34&\"'!$18:$50\"),MATCH($AA$1,INDIRECT(\"'\"&A34&\"'!$A$18:$A$50\"),0),MATCH(Parts!$B34,INDIRECT(\"'\"&A34&\"'!$10:$10\"),0)),0)","v":0},null,null,{"$f":"IFERROR(INDEX(INDIRECT(\"'\"&A34&\"'!$18:$50\"),MATCH($AD$1,INDIRECT(\"'\"&A34&\"'!$A$18:$A$50\"),0),MATCH(Parts!$B34,INDIRECT(\"'\"&A34&\"'!$10:$10\"),0)),0)","v":0},null,null,{"$f":"IFERROR(INDEX(INDIRECT(\"'\"&A34&\"'!$18:$50\"),MATCH($AG$1,INDIRECT(\"'\"&A34&\"'!$A$18:$A$50\"),0),MATCH(Parts!$B34,INDIRECT(\"'\"&A34&\"'!$10:$10\"),0)),0)","v":0},null,null,{"$f":"IFERROR(INDEX(INDIRECT(\"'\"&A34&\"'!$18:$50\"),MATCH($AJ$1,INDIRECT(\"'\"&A34&\"'!$A$18:$A$50\"),0),MATCH(Parts!$B34,INDIRECT(\"'\"&A34&\"'!$10:$10\"),0)),0)","v":0},null,null,{"$f":"IFERROR(INDEX(INDIRECT(\"'\"&A34&\"'!$18:$50\"),MATCH($AM$1,INDIRECT(\"'\"&A34&\"'!$A$18:$A$50\"),0),MATCH(Parts!$B34,INDIRECT(\"'\"&A34&\"'!$10:$10\"),0)),0)","v":0},null,"Transformer + Stabilizer ASSLY; RCM97749357: 25.00USD",{"$f":"IFERROR(INDEX(INDIRECT(\"'\"&A34&\"'!$18:$50\"),MATCH($AP$1,INDIRECT(\"'\"&A34&\"'!$A$18:$A$50\"),0),MATCH(Parts!$B34,INDIRECT(\"'\"&A34&\"'!$10:$10\"),0)),0)","v":1},25,null,{"$f":"IFERROR(INDEX(INDIRECT(\"'\"&A34&\"'!$18:$50\"),MATCH($AS$1,INDIRECT(\"'\"&A34&\"'!$A$18:$A$50\"),0),MATCH(Parts!$B34,INDIRECT(\"'\"&A34&\"'!$10:$10\"),0)),0)","v":0},null,null,{"$f":"IFERROR(INDEX(INDIRECT(\"'\"&A34&\"'!$18:$50\"),MATCH($AV$1,INDIRECT(\"'\"&A34&\"'!$A$18:$A$50\"),0),MATCH(Parts!$B34,INDIRECT(\"'\"&A34&\"'!$10:$10\"),0)),0)","v":0},null,"Relay +OLP 50LTR 100LTR AC; RRE97749258: 2.00USD",{"$f":"IFERROR(INDEX(INDIRECT(\"'\"&A34&\"'!$18:$50\"),MATCH($AY$1,INDIRECT(\"'\"&A34&\"'!$A$18:$A$50\"),0),MATCH(Parts!$B34,INDIRECT(\"'\"&A34&\"'!$10:$10\"),0)),0)","v":1},2,"Capacitor 50LTR 100LTRAC; RFN97749263:1.00USD",{"$f":"IFERROR(INDEX(INDIRECT(\"'\"&A34&\"'!$18:$50\"),MATCH($BB$1,INDIRECT(\"'\"&A34&\"'!$A$18:$A$50\"),0),MATCH(Parts!$B34,INDIRECT(\"'\"&A34&\"'!$10:$10\"),0)),0)","v":1},1,null,{"$f":"IFERROR(INDEX(INDIRECT(\"'\"&A34&\"'!$18:$50\"),MATCH($BE$1,INDIRECT(\"'\"&A34&\"'!$A$18:$A$50\"),0),MATCH(Parts!$B34,INDIRECT(\"'\"&A34&\"'!$10:$10\"),0)),0)","v":0},null,null,{"$f":"IFERROR(INDEX(INDIRECT(\"'\"&A34&\"'!$18:$50\"),MATCH($BH$1,INDIRECT(\"'\"&A34&\"'!$A$18:$A$50\"),0),MATCH(Parts!$B34,INDIRECT(\"'\"&A34&\"'!$10:$10\"),0)),0)","v":0},null,null,{"$f":"IFERROR(INDEX(INDIRECT(\"'\"&A34&\"'!$18:$50\"),MATCH($BK$1,INDIRECT(\"'\"&A34&\"'!$A$18:$A$50\"),0),MATCH(Parts!$B34,INDIRECT(\"'\"&A34&\"'!$10:$10\"),0)),0)","v":0},null,null,{"$f":"IFERROR(INDEX(INDIRECT(\"'\"&A34&\"'!$18:$50\"),MATCH($BN$1,INDIRECT(\"'\"&A34&\"'!$A$18:$A$50\"),0),MATCH(Parts!$B34,INDIRECT(\"'\"&A34&\"'!$10:$10\"),0)),0)","v":0},null,null,{"$f":"IFERROR(INDEX(INDIRECT(\"'\"&A34&\"'!$18:$50\"),MATCH($BQ$1,INDIRECT(\"'\"&A34&\"'!$A$18:$A$50\"),0),MATCH(Parts!$B34,INDIRECT(\"'\"&A34&\"'!$10:$10\"),0)),0)","v":0},null,"Door Hinge, RMS97749264: 9.00USD; Door Latch, RMS97749269:6.50USD",{"$f":"IFERROR(INDEX(INDIRECT(\"'\"&A34&\"'!$18:$50\"),MATCH($BT$1,INDIRECT(\"'\"&A34&\"'!$A$18:$A$50\"),0),MATCH(Parts!$B34,INDIRECT(\"'\"&A34&\"'!$10:$10\"),0)),0)","v":1},{"$f":"(9+6.5)","v":15.5},null,{"$f":"IFERROR(INDEX(INDIRECT(\"'\"&A34&\"'!$18:$50\"),MATCH($BW$1,INDIRECT(\"'\"&A34&\"'!$A$18:$A$50\"),0),MATCH(Parts!$B34,INDIRECT(\"'\"&A34&\"'!$10:$10\"),0)),0)","v":0},null,"Solar Powered Temp Display BRD; RCC97749262: 10.50USD",{"$f":"IFERROR(INDEX(INDIRECT(\"'\"&A34&\"'!$18:$50\"),MATCH($BZ$1,INDIRECT(\"'\"&A34&\"'!$A$18:$A$50\"),0),MATCH(Parts!$B34,INDIRECT(\"'\"&A34&\"'!$10:$10\"),0)),0)","v":1},10.5,null,{"$f":"IFERROR(INDEX(INDIRECT(\"'\"&A34&\"'!$18:$50\"),MATCH($CC$1,INDIRECT(\"'\"&A34&\"'!$A$18:$A$50\"),0),MATCH(Parts!$B34,INDIRECT(\"'\"&A34&\"'!$10:$10\"),0)),0)","v":0},null,"Door handle, RMS97749265:1.50USD",{"$f":"IFERROR(INDEX(INDIRECT(\"'\"&A34&\"'!$18:$50\"),MATCH($CF$1,INDIRECT(\"'\"&A34&\"'!$A$18:$A$50\"),0),MATCH(Parts!$B34,INDIRECT(\"'\"&A34&\"'!$10:$10\"),0)),0)","v":1},1.5,null,{"$f":"IFERROR(INDEX(INDIRECT(\"'\"&A34&\"'!$18:$50\"),MATCH($CI$1,INDIRECT(\"'\"&A34&\"'!$A$18:$A$50\"),0),MATCH(Parts!$B34,INDIRECT(\"'\"&A34&\"'!$10:$10\"),0)),0)","v":0},null,null,{"$f":"IFERROR(INDEX(INDIRECT(\"'\"&A34&\"'!$18:$50\"),MATCH($CL$1,INDIRECT(\"'\"&A34&\"'!$A$18:$A$50\"),0),MATCH(Parts!$B34,INDIRECT(\"'\"&A34&\"'!$10:$10\"),0)),0)","v":0},null,null,{"$f":"IFERROR(INDEX(INDIRECT(\"'\"&A34&\"'!$18:$50\"),MATCH($CO$1,INDIRECT(\"'\"&A34&\"'!$A$18:$A$50\"),0),MATCH(Parts!$B34,INDIRECT(\"'\"&A34&\"'!$10:$10\"),0)),0)","v":0},null,null,{"$f":"IFERROR(INDEX(INDIRECT(\"'\"&A34&\"'!$18:$50\"),MATCH($CR$1,INDIRECT(\"'\"&A34&\"'!$A$18:$A$50\"),0),MATCH(Parts!$B34,INDIRECT(\"'\"&A34&\"'!$10:$10\"),0)),0)","v":0},null,null,{"$f":"IFERROR(INDEX(INDIRECT(\"'\"&A34&\"'!$18:$50\"),MATCH($CU$1,INDIRECT(\"'\"&A34&\"'!$A$18:$A$50\"),0),MATCH(Parts!$B34,INDIRECT(\"'\"&A34&\"'!$10:$10\"),0)),0)","v":0},null,null,{"$f":"IFERROR(INDEX(INDIRECT(\"'\"&A34&\"'!$18:$50\"),MATCH($CX$1,INDIRECT(\"'\"&A34&\"'!$A$18:$A$50\"),0),MATCH(Parts!$B34,INDIRECT(\"'\"&A34&\"'!$10:$10\"),0)),0)","v":0},null,null,{"$f":"IFERROR(INDEX(INDIRECT(\"'\"&A34&\"'!$18:$50\"),MATCH($DA$1,INDIRECT(\"'\"&A34&\"'!$A$18:$A$50\"),0),MATCH(Parts!$B34,INDIRECT(\"'\"&A34&\"'!$10:$10\"),0)),0)","v":0},null,null,{"$f":"IFERROR(INDEX(INDIRECT(\"'\"&A34&\"'!$18:$50\"),MATCH($DD$1,INDIRECT(\"'\"&A34&\"'!$A$18:$A$50\"),0),MATCH(Parts!$B34,INDIRECT(\"'\"&A34&\"'!$10:$10\"),0)),0)","v":0},null,null,{"$f":"IFERROR(INDEX(INDIRECT(\"'\"&A34&\"'!$18:$50\"),MATCH($DG$1,INDIRECT(\"'\"&A34&\"'!$A$18:$A$50\"),0),MATCH(Parts!$B34,INDIRECT(\"'\"&A34&\"'!$10:$10\"),0)),0)","v":0},null,null,{"$f":"IFERROR(INDEX(INDIRECT(\"'\"&A34&\"'!$18:$50\"),MATCH($DJ$1,INDIRECT(\"'\"&A34&\"'!$A$18:$A$50\"),0),MATCH(Parts!$B34,INDIRECT(\"'\"&A34&\"'!$10:$10\"),0)),0)","v":0},null,null,{"$f":"IFERROR(INDEX(INDIRECT(\"'\"&A34&\"'!$18:$50\"),MATCH($DM$1,INDIRECT(\"'\"&A34&\"'!$A$18:$A$50\"),0),MATCH(Parts!$B34,INDIRECT(\"'\"&A34&\"'!$10:$10\"),0)),0)","v":0},null,null,{"$f":"IFERROR(INDEX(INDIRECT(\"'\"&A34&\"'!$18:$50\"),MATCH($DP$1,INDIRECT(\"'\"&A34&\"'!$A$18:$A$50\"),0),MATCH(Parts!$B34,INDIRECT(\"'\"&A34&\"'!$10:$10\"),0)),0)","v":0},null,null,{"$f":"IFERROR(INDEX(INDIRECT(\"'\"&A34&\"'!$18:$50\"),MATCH($DS$1,INDIRECT(\"'\"&A34&\"'!$A$18:$A$50\"),0),MATCH(Parts!$B34,INDIRECT(\"'\"&A34&\"'!$10:$10\"),0)),0)","v":0},null,null,{"$f":"IFERROR(INDEX(INDIRECT(\"'\"&A34&\"'!$18:$50\"),MATCH($DV$1,INDIRECT(\"'\"&A34&\"'!$A$18:$A$50\"),0),MATCH(Parts!$B34,INDIRECT(\"'\"&A34&\"'!$10:$10\"),0)),0)","v":0},null,null,{"$f":"IFERROR(INDEX(INDIRECT(\"'\"&A34&\"'!$18:$50\"),MATCH($DY$1,INDIRECT(\"'\"&A34&\"'!$A$18:$A$50\"),0),MATCH(Parts!$B34,INDIRECT(\"'\"&A34&\"'!$10:$10\"),0)),0)","v":0},null,null,{"$f":"IFERROR(INDEX(INDIRECT(\"'\"&A34&\"'!$18:$50\"),MATCH($EB$1,INDIRECT(\"'\"&A34&\"'!$A$18:$A$50\"),0),MATCH(Parts!$B34,INDIRECT(\"'\"&A34&\"'!$10:$10\"),0)),0)","v":0},null,null,{"$f":"IFERROR(INDEX(INDIRECT(\"'\"&A34&\"'!$18:$50\"),MATCH($EE$1,INDIRECT(\"'\"&A34&\"'!$A$18:$A$50\"),0),MATCH(Parts!$B34,INDIRECT(\"'\"&A34&\"'!$10:$10\"),0)),0)","v":0},null,null,{"$f":"IFERROR(INDEX(INDIRECT(\"'\"&A34&\"'!$18:$50\"),MATCH($EH$1,INDIRECT(\"'\"&A34&\"'!$A$18:$A$50\"),0),MATCH(Parts!$B34,INDIRECT(\"'\"&A34&\"'!$10:$10\"),0)),0)","v":0},null,null,{"$f":"IFERROR(INDEX(INDIRECT(\"'\"&A34&\"'!$18:$50\"),MATCH($EK$1,INDIRECT(\"'\"&A34&\"'!$A$18:$A$50\"),0),MATCH(Parts!$B34,INDIRECT(\"'\"&A34&\"'!$10:$10\"),0)),0)","v":0}]
[{"$f":"PQS!A37","v":"ILR"},"E003/051",{"$f":"PQS!E37","v":"ZLF 30 AC*"},{"$f":"PQS!P37","v":"$"},481,"Compressor IMPC1Æ: 166.00USD",{"$f":"IFERROR(INDEX(INDIRECT(\"'\"&A35&\"'!$18:$50\"),MATCH(Parts!F$1,INDIRECT(\"'\"&A35&\"'!$A$18:$A$50\"),0),MATCH(Parts!$B35,INDIRECT(\"'\"&A35&\"'!$10:$10\"),0)),0)","v":1},166,"Electronic controller (thermostat), IMP70: 84.00USD",{"$f":"IFERROR(INDEX(INDIRECT(\"'\"&A35&\"'!$18:$50\"),MATCH($I$1,INDIRECT(\"'\"&A35&\"'!$A$18:$A$50\"),0),MATCH(Parts!$B35,INDIRECT(\"'\"&A35&\"'!$10:$10\"),0)),0)","v":1},84,null,{"$f":"IFERROR(INDEX(INDIRECT(\"'\"&A35&\"'!$18:$50\"),MATCH($L$1,INDIRECT(\"'\"&A35&\"'!$A$18:$A$50\"),0),MATCH(Parts!$B35,INDIRECT(\"'\"&A35&\"'!$10:$10\"),0)),0)","v":0},null,null,{"$f":"IFERROR(INDEX(INDIRECT(\"'\"&A35&\"'!$18:$50\"),MATCH($O$1,INDIRECT(\"'\"&A35&\"'!$A$18:$A$50\"),0),MATCH(Parts!$B35,INDIRECT(\"'\"&A35&\"'!$10:$10\"),0)),0)","v":0},null,null,{"$f":"IFERROR(INDEX(INDIRECT(\"'\"&A35&\"'!$18:$50\"),MATCH($R$1,INDIRECT(\"'\"&A35&\"'!$A$18:$A$50\"),0),MATCH(Parts!$B35,INDIRECT(\"'\"&A35&\"'!$10:$10\"),0)),0)","v":0},null,null,{"$f":"IFERROR(INDEX(INDIRECT(\"'\"&A35&\"'!$18:$50\"),MATCH($U$1,INDIRECT(\"'\"&A35&\"'!$A$18:$A$50\"),0),MATCH(Parts!$B35,INDIRECT(\"'\"&A35&\"'!$10:$10\"),0)),0)","v":0},null,"Condensor + fan: IMP65; 196.00 USD",{"$f":"IFERROR(INDEX(INDIRECT(\"'\"&A35&\"'!$18:$50\"),MATCH($X$1,INDIRECT(\"'\"&A35&\"'!$A$18:$A$50\"),0),MATCH(Parts!$B35,INDIRECT(\"'\"&A35&\"'!$10:$10\"),0)),0)","v":1},196,null,{"$f":"IFERROR(INDEX(INDIRECT(\"'\"&A35&\"'!$18:$50\"),MATCH($AA$1,INDIRECT(\"'\"&A35&\"'!$A$18:$A$50\"),0),MATCH(Parts!$B35,INDIRECT(\"'\"&A35&\"'!$10:$10\"),0)),0)","v":0},null,null,{"$f":"IFERROR(INDEX(INDIRECT(\"'\"&A35&\"'!$18:$50\"),MATCH($AD$1,INDIRECT(\"'\"&A35&\"'!$A$18:$A$50\"),0),MATCH(Parts!$B35,INDIRECT(\"'\"&A35&\"'!$10:$10\"),0)),0)","v":0},null,null,{"$f":"IFERROR(INDEX(INDIRECT(\"'\"&A35&\"'!$18:$50\"),MATCH($AG$1,INDIRECT(\"'\"&A35&\"'!$A$18:$A$50\"),0),MATCH(Parts!$B35,INDIRECT(\"'\"&A35&\"'!$10:$10\"),0)),0)","v":0},null,null,{"$f":"IFERROR(INDEX(INDIRECT(\"'\"&A35&\"'!$18:$50\"),MATCH($AJ$1,INDIRECT(\"'\"&A35&\"'!$A$18:$A$50\"),0),MATCH(Parts!$B35,INDIRECT(\"'\"&A35&\"'!$10:$10\"),0)),0)","v":0},null,null,{"$f":"IFERROR(INDEX(INDIRECT(\"'\"&A35&\"'!$18:$50\"),MATCH($AM$1,INDIRECT(\"'\"&A35&\"'!$A$18:$A$50\"),0),MATCH(Parts!$B35,INDIRECT(\"'\"&A35&\"'!$10:$10\"),0)),0)","v":0},null,null,{"$f":"IFERROR(INDEX(INDIRECT(\"'\"&A35&\"'!$18:$50\"),MATCH($AP$1,INDIRECT(\"'\"&A35&\"'!$A$18:$A$50\"),0),MATCH(Parts!$B35,INDIRECT(\"'\"&A35&\"'!$10:$10\"),0)),0)","v":0},null,null,{"$f":"IFERROR(INDEX(INDIRECT(\"'\"&A35&\"'!$18:$50\"),MATCH($AS$1,INDIRECT(\"'\"&A35&\"'!$A$18:$A$50\"),0),MATCH(Parts!$B35,INDIRECT(\"'\"&A35&\"'!$10:$10\"),0)),0)","v":0},null,null,{"$f":"IFERROR(INDEX(INDIRECT(\"'\"&A35&\"'!$18:$50\"),MATCH($AV$1,INDIRECT(\"'\"&A35&\"'!$A$18:$A$50\"),0),MATCH(Parts!$B35,INDIRECT(\"'\"&A35&\"'!$10:$10\"),0)),0)","v":0},null,null,{"$f":"IFERROR(INDEX(INDIRECT(\"'\"&A35&\"'!$18:$50\"),MATCH($AY$1,INDIRECT(\"'\"&A35&\"'!$A$18:$A$50\"),0),MATCH(Parts!$B35,INDIRECT(\"'\"&A35&\"'!$10:$10\"),0)),0)","v":0},null,null,{"$f":"IFERROR(INDEX(INDIRECT(\"'\"&A35&\"'!$18:$50\"),MATCH($BB$1,INDIRECT(\"'\"&A35&\"'!$A$18:$A$50\"),0),MATCH(Parts!$B35,INDIRECT(\"'\"&A35&\"'!$10:$10\"),0)),0)","v":0},null,null,{"$f":"IFERROR(INDEX(INDIRECT(\"'\"&A35&\"'!$18:$50\"),MATCH($BE$1,INDIRECT(\"'\"&A35&\"'!$A$18:$A$50\"),0),MATCH(Parts!$B35,INDIRECT(\"'\"&A35&\"'!$10:$10\"),0)),0)","v":0},null,null,{"$f":"IFERROR(INDEX(INDIRECT(\"'\"&A35&\"'!$18:$50\"),MATCH($BH$1,INDIRECT(\"'\"&A35&\"'!$A$18:$A$50\"),0),MATCH(Parts!$B35,INDIRECT(\"'\"&A35&\"'!$10:$10\"),0)),0)","v":0},null,null,{"$f":"IFERROR(INDEX(INDIRECT(\"'\"&A35&\"'!$18:$50\"),MATCH($BK$1,INDIRECT(\"'\"&A35&\"'!$A$18:$A$50\"),0),MATCH(Parts!$B35,INDIRECT(\"'\"&A35&\"'!$10:$10\"),0)),0)","v":0},null,null,{"$f":"IFERROR(INDEX(INDIRECT(\"'\"&A35&\"'!$18:$50\"),MATCH($BN$1,INDIRECT(\"'\"&A35&\"'!$A$18:$A$50\"),0),MATCH(Parts!$B35,INDIRECT(\"'\"&A35&\"'!$10:$10\"),0)),0)","v":0},null,null,{"$f":"IFERROR(INDEX(INDIRECT(\"'\"&A35&\"'!$18:$50\"),MATCH($BQ$1,INDIRECT(\"'\"&A35&\"'!$A$18:$A$50\"),0),MATCH(Parts!$B35,INDIRECT(\"'\"&A35&\"'!$10:$10\"),0)),0)","v":0},null,null,{"$f":"IFERROR(INDEX(INDIRECT(\"'\"&A35&\"'!$18:$50\"),MATCH($BT$1,INDIRECT(\"'\"&A35&\"'!$A$18:$A$50\"),0),MATCH(Parts!$B35,INDIRECT(\"'\"&A35&\"'!$10:$10\"),0)),0)","v":0},null,null,{"$f":"IFERROR(INDEX(INDIRECT(\"'\"&A35&\"'!$18:$50\"),MATCH($BW$1,INDIRECT(\"'\"&A35&\"'!$A$18:$A$50\"),0),MATCH(Parts!$B35,INDIRECT(\"'\"&A35&\"'!$10:$10\"),0)),0)","v":0},null,"External solar thermometer, IMP60: 35.00USD",{"$f":"IFERROR(INDEX(INDIRECT(\"'\"&A35&\"'!$18:$50\"),MATCH($BZ$1,INDIRECT(\"'\"&A35&\"'!$A$18:$A$50\"),0),MATCH(Parts!$B35,INDIRECT(\"'\"&A35&\"'!$10:$10\"),0)),0)","v":1},35,null,{"$f":"IFERROR(INDEX(INDIRECT(\"'\"&A35&\"'!$18:$50\"),MATCH($CC$1,INDIRECT(\"'\"&A35&\"'!$A$18:$A$50\"),0),MATCH(Parts!$B35,INDIRECT(\"'\"&A35&\"'!$10:$10\"),0)),0)","v":0},null,null,{"$f":"IFERROR(INDEX(INDIRECT(\"'\"&A35&\"'!$18:$50\"),MATCH($CF$1,INDIRECT(\"'\"&A35&\"'!$A$18:$A$50\"),0),MATCH(Parts!$B35,INDIRECT(\"'\"&A35&\"'!$10:$10\"),0)),0)","v":0},null,null,{"$f":"IFERROR(INDEX(INDIRECT(\"'\"&A35&\"'!$18:$50\"),MATCH($CI$1,INDIRECT(\"'\"&A35&\"'!$A$18:$A$50\"),0),MATCH(Parts!$B35,INDIRECT(\"'\"&A35&\"'!$10:$10\"),0)),0)","v":0},null,null,{"$f":"IFERROR(INDEX(INDIRECT(\"'\"&A35&\"'!$18:$50\"),MATCH($CL$1,INDIRECT(\"'\"&A35&\"'!$A$18:$A$50\"),0),MATCH(Parts!$B35,INDIRECT(\"'\"&A35&\"'!$10:$10\"),0)),0)","v":0},null,null,{"$f":"IFERROR(INDEX(INDIRECT(\"'\"&A35&\"'!$18:$50\"),MATCH($CO$1,INDIRECT(\"'\"&A35&\"'!$A$18:$A$50\"),0),MATCH(Parts!$B35,INDIRECT(\"'\"&A35&\"'!$10:$10\"),0)),0)","v":0},null,null,{"$f":"IFERROR(INDEX(INDIRECT(\"'\"&A35&\"'!$18:$50\"),MATCH($CR$1,INDIRECT(\"'\"&A35&\"'!$A$18:$A$50\"),0),MATCH(Parts!$B35,INDIRECT(\"'\"&A35&\"'!$10:$10\"),0)),0)","v":0},null,null,{"$f":"IFERROR(INDEX(INDIRECT(\"'\"&A35&\"'!$18:$50\"),MATCH($CU$1,INDIRECT(\"'\"&A35&\"'!$A$18:$A$50\"),0),MATCH(Parts!$B35,INDIRECT(\"'\"&A35&\"'!$10:$10\"),0)),0)","v":0},null,null,{"$f":"IFERROR(INDEX(INDIRECT(\"'\"&A35&\"'!$18:$50\"),MATCH($CX$1,INDIRECT(\"'\"&A35&\"'!$A$18:$A$50\"),0),MATCH(Parts!$B35,INDIRECT(\"'\"&A35&\"'!$10:$10\"),0)),0)","v":0},null,null,{"$f":"IFERROR(INDEX(INDIRECT(\"'\"&A35&\"'!$18:$50\"),MATCH($DA$1,INDIRECT(\"'\"&A35&\"'!$A$18:$A$50\"),0),MATCH(Parts!$B35,INDIRECT(\"'\"&A35&\"'!$10:$10\"),0)),0)","v":0},null,null,{"$f":"IFERROR(INDEX(INDIRECT(\"'\"&A35&\"'!$18:$50\"),MATCH($DD$1,INDIRECT(\"'\"&A35&\"'!$A$18:$A$50\"),0),MATCH(Parts!$B35,INDIRECT(\"'\"&A35&\"'!$10:$10\"),0)),0)","v":0},null,null,{"$f":"IFERROR(INDEX(INDIRECT(\"'\"&A35&\"'!$18:$50\"),MATCH($DG$1,INDIRECT(\"'\"&A35&\"'!$A$18:$A$50\"),0),MATCH(Parts!$B35,INDIRECT(\"'\"&A35&\"'!$10:$10\"),0)),0)","v":0},null,null,{"$f":"IFERROR(INDEX(INDIRECT(\"'\"&A35&\"'!$18:$50\"),MATCH($DJ$1,INDIRECT(\"'\"&A35&\"'!$A$18:$A$50\"),0),MATCH(Parts!$B35,INDIRECT(\"'\"&A35&\"'!$10:$10\"),0)),0)","v":0},null,null,{"$f":"IFERROR(INDEX(INDIRECT(\"'\"&A35&\"'!$18:$50\"),MATCH($DM$1,INDIRECT(\"'\"&A35&\"'!$A$18:$A$50\"),0),MATCH(Parts!$B35,INDIRECT(\"'\"&A35&\"'!$10:$10\"),0)),0)","v":0},null,null,{"$f":"IFERROR(INDEX(INDIRECT(\"'\"&A35&\"'!$18:$50\"),MATCH($DP$1,INDIRECT(\"'\"&A35&\"'!$A$18:$A$50\"),0),MATCH(Parts!$B35,INDIRECT(\"'\"&A35&\"'!$10:$10\"),0)),0)","v":0},null,null,{"$f":"IFERROR(INDEX(INDIRECT(\"'\"&A35&\"'!$18:$50\"),MATCH($DS$1,INDIRECT(\"'\"&A35&\"'!$A$18:$A$50\"),0),MATCH(Parts!$B35,INDIRECT(\"'\"&A35&\"'!$10:$10\"),0)),0)","v":0},null,null,{"$f":"IFERROR(INDEX(INDIRECT(\"'\"&A35&\"'!$18:$50\"),MATCH($DV$1,INDIRECT(\"'\"&A35&\"'!$A$18:$A$50\"),0),MATCH(Parts!$B35,INDIRECT(\"'\"&A35&\"'!$10:$10\"),0)),0)","v":0},null,null,{"$f":"IFERROR(INDEX(INDIRECT(\"'\"&A35&\"'!$18:$50\"),MATCH($DY$1,INDIRECT(\"'\"&A35&\"'!$A$18:$A$50\"),0),MATCH(Parts!$B35,INDIRECT(\"'\"&A35&\"'!$10:$10\"),0)),0)","v":0},null,null,{"$f":"IFERROR(INDEX(INDIRECT(\"'\"&A35&\"'!$18:$50\"),MATCH($EB$1,INDIRECT(\"'\"&A35&\"'!$A$18:$A$50\"),0),MATCH(Parts!$B35,INDIRECT(\"'\"&A35&\"'!$10:$10\"),0)),0)","v":0},null,null,{"$f":"IFERROR(INDEX(INDIRECT(\"'\"&A35&\"'!$18:$50\"),MATCH($EE$1,INDIRECT(\"'\"&A35&\"'!$A$18:$A$50\"),0),MATCH(Parts!$B35,INDIRECT(\"'\"&A35&\"'!$10:$10\"),0)),0)","v":0},null,null,{"$f":"IFERROR(INDEX(INDIRECT(\"'\"&A35&\"'!$18:$50\"),MATCH($EH$1,INDIRECT(\"'\"&A35&\"'!$A$18:$A$50\"),0),MATCH(Parts!$B35,INDIRECT(\"'\"&A35&\"'!$10:$10\"),0)),0)","v":0},null,null,{"$f":"IFERROR(INDEX(INDIRECT(\"'\"&A35&\"'!$18:$50\"),MATCH($EK$1,INDIRECT(\"'\"&A35&\"'!$A$18:$A$50\"),0),MATCH(Parts!$B35,INDIRECT(\"'\"&A35&\"'!$10:$10\"),0)),0)","v":0}]
[{"$f":"PQS!A38","v":"ILR"},{"$f":"PQS!B38","v":"E003/062"},{"$f":"PQS!E38","v":"VLS 200A*"},{"$f":"PQS!P38","v":"€"},250.65999999999997,"Compressor - TLES7KTK , Complete 8-036038297",{"$f":"IFERROR(INDEX(INDIRECT(\"'\"&A36&\"'!$18:$50\"),MATCH(Parts!F$1,INDIRECT(\"'\"&A36&\"'!$A$18:$A$50\"),0),MATCH(Parts!$B36,INDIRECT(\"'\"&A36&\"'!$10:$10\"),0)),0)","v":1},99.21,"THERMOSTAT 7020276",{"$f":"IFERROR(INDEX(INDIRECT(\"'\"&A36&\"'!$18:$50\"),MATCH($I$1,INDIRECT(\"'\"&A36&\"'!$A$18:$A$50\"),0),MATCH(Parts!$B36,INDIRECT(\"'\"&A36&\"'!$10:$10\"),0)),0)","v":1},22.16,null,{"$f":"IFERROR(INDEX(INDIRECT(\"'\"&A36&\"'!$18:$50\"),MATCH($L$1,INDIRECT(\"'\"&A36&\"'!$A$18:$A$50\"),0),MATCH(Parts!$B36,INDIRECT(\"'\"&A36&\"'!$10:$10\"),0)),0)","v":0},null,null,{"$f":"IFERROR(INDEX(INDIRECT(\"'\"&A36&\"'!$18:$50\"),MATCH($O$1,INDIRECT(\"'\"&A36&\"'!$A$18:$A$50\"),0),MATCH(Parts!$B36,INDIRECT(\"'\"&A36&\"'!$10:$10\"),0)),0)","v":0},null,null,{"$f":"IFERROR(INDEX(INDIRECT(\"'\"&A36&\"'!$18:$50\"),MATCH($R$1,INDIRECT(\"'\"&A36&\"'!$A$18:$A$50\"),0),MATCH(Parts!$B36,INDIRECT(\"'\"&A36&\"'!$10:$10\"),0)),0)","v":0},null,null,{"$f":"IFERROR(INDEX(INDIRECT(\"'\"&A36&\"'!$18:$50\"),MATCH($U$1,INDIRECT(\"'\"&A36&\"'!$A$18:$A$50\"),0),MATCH(Parts!$B36,INDIRECT(\"'\"&A36&\"'!$10:$10\"),0)),0)","v":0},null,null,{"$f":"IFERROR(INDEX(INDIRECT(\"'\"&A36&\"'!$18:$50\"),MATCH($X$1,INDIRECT(\"'\"&A36&\"'!$A$18:$A$50\"),0),MATCH(Parts!$B36,INDIRECT(\"'\"&A36&\"'!$10:$10\"),0)),0)","v":0},null,null,{"$f":"IFERROR(INDEX(INDIRECT(\"'\"&A36&\"'!$18:$50\"),MATCH($AA$1,INDIRECT(\"'\"&A36&\"'!$A$18:$A$50\"),0),MATCH(Parts!$B36,INDIRECT(\"'\"&A36&\"'!$10:$10\"),0)),0)","v":0},null,null,{"$f":"IFERROR(INDEX(INDIRECT(\"'\"&A36&\"'!$18:$50\"),MATCH($AD$1,INDIRECT(\"'\"&A36&\"'!$A$18:$A$50\"),0),MATCH(Parts!$B36,INDIRECT(\"'\"&A36&\"'!$10:$10\"),0)),0)","v":0},null,null,{"$f":"IFERROR(INDEX(INDIRECT(\"'\"&A36&\"'!$18:$50\"),MATCH($AG$1,INDIRECT(\"'\"&A36&\"'!$A$18:$A$50\"),0),MATCH(Parts!$B36,INDIRECT(\"'\"&A36&\"'!$10:$10\"),0)),0)","v":0},null,null,{"$f":"IFERROR(INDEX(INDIRECT(\"'\"&A36&\"'!$18:$50\"),MATCH($AJ$1,INDIRECT(\"'\"&A36&\"'!$A$18:$A$50\"),0),MATCH(Parts!$B36,INDIRECT(\"'\"&A36&\"'!$10:$10\"),0)),0)","v":0},null,null,{"$f":"IFERROR(INDEX(INDIRECT(\"'\"&A36&\"'!$18:$50\"),MATCH($AM$1,INDIRECT(\"'\"&A36&\"'!$A$18:$A$50\"),0),MATCH(Parts!$B36,INDIRECT(\"'\"&A36&\"'!$10:$10\"),0)),0)","v":0},null,null,{"$f":"IFERROR(INDEX(INDIRECT(\"'\"&A36&\"'!$18:$50\"),MATCH($AP$1,INDIRECT(\"'\"&A36&\"'!$A$18:$A$50\"),0),MATCH(Parts!$B36,INDIRECT(\"'\"&A36&\"'!$10:$10\"),0)),0)","v":0},null,"TOP BASKET 3510015 - 9.03\nBOTTOM BASKET 3510016 - 6.91",{"$f":"IFERROR(INDEX(INDIRECT(\"'\"&A36&\"'!$18:$50\"),MATCH($AS$1,INDIRECT(\"'\"&A36&\"'!$A$18:$A$50\"),0),MATCH(Parts!$B36,INDIRECT(\"'\"&A36&\"'!$10:$10\"),0)),0)","v":2},{"$f":"AVERAGE(9.03,6.91)","v":7.97},null,{"$f":"IFERROR(INDEX(INDIRECT(\"'\"&A36&\"'!$18:$50\"),MATCH($AV$1,INDIRECT(\"'\"&A36&\"'!$A$18:$A$50\"),0),MATCH(Parts!$B36,INDIRECT(\"'\"&A36&\"'!$10:$10\"),0)),0)","v":0},null,"STARTING DEVICE (RELAY)",{"$f":"IFERROR(INDEX(INDIRECT(\"'\"&A36&\"'!$18:$50\"),MATCH($AY$1,INDIRECT(\"'\"&A36&\"'!$A$18:$A$50\"),0),MATCH(Parts!$B36,INDIRECT(\"'\"&A36&\"'!$10:$10\"),0)),0)","v":1},9.26,"RUN CAPACITOR 65200229",{"$f":"IFERROR(INDEX(INDIRECT(\"'\"&A36&\"'!$18:$50\"),MATCH($BB$1,INDIRECT(\"'\"&A36&\"'!$A$18:$A$50\"),0),MATCH(Parts!$B36,INDIRECT(\"'\"&A36&\"'!$10:$10\"),0)),0)","v":1},4.25,null,{"$f":"IFERROR(INDEX(INDIRECT(\"'\"&A36&\"'!$18:$50\"),MATCH($BE$1,INDIRECT(\"'\"&A36&\"'!$A$18:$A$50\"),0),MATCH(Parts!$B36,INDIRECT(\"'\"&A36&\"'!$10:$10\"),0)),0)","v":0},null,"FILTER/DRIER TYPE XH 9 (20 GRS) 0-6538001",{"$f":"IFERROR(INDEX(INDIRECT(\"'\"&A36&\"'!$18:$50\"),MATCH($BH$1,INDIRECT(\"'\"&A36&\"'!$A$18:$A$50\"),0),MATCH(Parts!$B36,INDIRECT(\"'\"&A36&\"'!$10:$10\"),0)),0)","v":1},3.84,null,{"$f":"IFERROR(INDEX(INDIRECT(\"'\"&A36&\"'!$18:$50\"),MATCH($BK$1,INDIRECT(\"'\"&A36&\"'!$A$18:$A$50\"),0),MATCH(Parts!$B36,INDIRECT(\"'\"&A36&\"'!$10:$10\"),0)),0)","v":0},null,"LID 5000917680",{"$f":"IFERROR(INDEX(INDIRECT(\"'\"&A36&\"'!$18:$50\"),MATCH($BN$1,INDIRECT(\"'\"&A36&\"'!$A$18:$A$50\"),0),MATCH(Parts!$B36,INDIRECT(\"'\"&A36&\"'!$10:$10\"),0)),0)","v":1},65.16,null,{"$f":"IFERROR(INDEX(INDIRECT(\"'\"&A36&\"'!$18:$50\"),MATCH($BQ$1,INDIRECT(\"'\"&A36&\"'!$A$18:$A$50\"),0),MATCH(Parts!$B36,INDIRECT(\"'\"&A36&\"'!$10:$10\"),0)),0)","v":0},null,"HINGE WITH SPRING, LEFT 1510029 - 8.85\nHINGE WITH SPRING, RIGHT 1510028 - 4.24",{"$f":"IFERROR(INDEX(INDIRECT(\"'\"&A36&\"'!$18:$50\"),MATCH($BT$1,INDIRECT(\"'\"&A36&\"'!$A$18:$A$50\"),0),MATCH(Parts!$B36,INDIRECT(\"'\"&A36&\"'!$10:$10\"),0)),0)","v":2},{"$f":"AVERAGE(8.85,4.24)","v":6.5449999999999999},null,{"$f":"IFERROR(INDEX(INDIRECT(\"'\"&A36&\"'!$18:$50\"),MATCH($BW$1,INDIRECT(\"'\"&A36&\"'!$A$18:$A$50\"),0),MATCH(Parts!$B36,INDIRECT(\"'\"&A36&\"'!$10:$10\"),0)),0)","v":0},null,"THERMOMETER 7020287-03",{"$f":"IFERROR(INDEX(INDIRECT(\"'\"&A36&\"'!$18:$50\"),MATCH($BZ$1,INDIRECT(\"'\"&A36&\"'!$A$18:$A$50\"),0),MATCH(Parts!$B36,INDIRECT(\"'\"&A36&\"'!$10:$10\"),0)),0)","v":1},10.61,null,{"$f":"IFERROR(INDEX(INDIRECT(\"'\"&A36&\"'!$18:$50\"),MATCH($CC$1,INDIRECT(\"'\"&A36&\"'!$A$18:$A$50\"),0),MATCH(Parts!$B36,INDIRECT(\"'\"&A36&\"'!$10:$10\"),0)),0)","v":0},null,"HANDLE WITH LOCK AND KEY 304090501",{"$f":"IFERROR(INDEX(INDIRECT(\"'\"&A36&\"'!$18:$50\"),MATCH($CF$1,INDIRECT(\"'\"&A36&\"'!$A$18:$A$50\"),0),MATCH(Parts!$B36,INDIRECT(\"'\"&A36&\"'!$10:$10\"),0)),0)","v":1},7.14,null,{"$f":"IFERROR(INDEX(INDIRECT(\"'\"&A36&\"'!$18:$50\"),MATCH($CI$1,INDIRECT(\"'\"&A36&\"'!$A$18:$A$50\"),0),MATCH(Parts!$B36,INDIRECT(\"'\"&A36&\"'!$10:$10\"),0)),0)","v":0},null,null,{"$f":"IFERROR(INDEX(INDIRECT(\"'\"&A36&\"'!$18:$50\"),MATCH($CL$1,INDIRECT(\"'\"&A36&\"'!$A$18:$A$50\"),0),MATCH(Parts!$B36,INDIRECT(\"'\"&A36&\"'!$10:$10\"),0)),0)","v":0},null,null,{"$f":"IFERROR(INDEX(INDIRECT(\"'\"&A36&\"'!$18:$50\"),MATCH($CO$1,INDIRECT(\"'\"&A36&\"'!$A$18:$A$50\"),0),MATCH(Parts!$B36,INDIRECT(\"'\"&A36&\"'!$10:$10\"),0)),0)","v":0},null,null,{"$f":"IFERROR(INDEX(INDIRECT(\"'\"&A36&\"'!$18:$50\"),MATCH($CR$1,INDIRECT(\"'\"&A36&\"'!$A$18:$A$50\"),0),MATCH(Parts!$B36,INDIRECT(\"'\"&A36&\"'!$10:$10\"),0)),0)","v":0},null,null,{"$f":"IFERROR(INDEX(INDIRECT(\"'\"&A36&\"'!$18:$50\"),MATCH($CU$1,INDIRECT(\"'\"&A36&\"'!$A$18:$A$50\"),0),MATCH(Parts!$B36,INDIRECT(\"'\"&A36&\"'!$10:$10\"),0)),0)","v":0},null,null,{"$f":"IFERROR(INDEX(INDIRECT(\"'\"&A36&\"'!$18:$50\"),MATCH($CX$1,INDIRECT(\"'\"&A36&\"'!$A$18:$A$50\"),0),MATCH(Parts!$B36,INDIRECT(\"'\"&A36&\"'!$10:$10\"),0)),0)","v":0},null,null,{"$f":"IFERROR(INDEX(INDIRECT(\"'\"&A36&\"'!$18:$50\"),MATCH($DA$1,INDIRECT(\"'\"&A36&\"'!$A$18:$A$50\"),0),MATCH(Parts!$B36,INDIRECT(\"'\"&A36&\"'!$10:$10\"),0)),0)","v":0},null,null,{"$f":"IFERROR(INDEX(INDIRECT(\"'\"&A36&\"'!$18:$50\"),MATCH($DD$1,INDIRECT(\"'\"&A36&\"'!$A$18:$A$50\"),0),MATCH(Parts!$B36,INDIRECT(\"'\"&A36&\"'!$10:$10\"),0)),0)","v":0},null,null,{"$f":"IFERROR(INDEX(INDIRECT(\"'\"&A36&\"'!$18:$50\"),MATCH($DG$1,INDIRECT(\"'\"&A36&\"'!$A$18:$A$50\"),0),MATCH(Parts!$B36,INDIRECT(\"'\"&A36&\"'!$10:$10\"),0)),0)","v":0},null,null,{"$f":"IFERROR(INDEX(INDIRECT(\"'\"&A36&\"'!$18:$50\"),MATCH($DJ$1,INDIRECT(\"'\"&A36&\"'!$A$18:$A$50\"),0),MATCH(Parts!$B36,INDIRECT(\"'\"&A36&\"'!$10:$10\"),0)),0)","v":0},null,null,{"$f":"IFERROR(INDEX(INDIRECT(\"'\"&A36&\"'!$18:$50\"),MATCH($DM$1,INDIRECT(\"'\"&A36&\"'!$A$18:$A$50\"),0),MATCH(Parts!$B36,INDIRECT(\"'\"&A36&\"'!$10:$10\"),0)),0)","v":0},null,null,{"$f":"IFERROR(INDEX(INDIRECT(\"'\"&A36&\"'!$18:$50\"),MATCH($DP$1,INDIRECT(\"'\"&A36&\"'!$A$18:$A$50\"),0),MATCH(Parts!$B36,INDIRECT(\"'\"&A36&\"'!$10:$10\"),0)),0)","v":0},null,null,{"$f":"IFERROR(INDEX(INDIRECT(\"'\"&A36&\"'!$18:$50\"),MATCH($DS$1,INDIRECT(\"'\"&A36&\"'!$A$18:$A$50\"),0),MATCH(Parts!$B36,INDIRECT(\"'\"&A36&\"'!$10:$10\"),0)),0)","v":0},null,null,{"$f":"IFERROR(INDEX(INDIRECT(\"'\"&A36&\"'!$18:$50\"),MATCH($DV$1,INDIRECT(\"'\"&A36&\"'!$A$18:$A$50\"),0),MATCH(Parts!$B36,INDIRECT(\"'\"&A36&\"'!$10:$10\"),0)),0)","v":0},null,null,{"$f":"IFERROR(INDEX(INDIRECT(\"'\"&A36&\"'!$18:$50\"),MATCH($DY$1,INDIRECT(\"'\"&A36&\"'!$A$18:$A$50\"),0),MATCH(Parts!$B36,INDIRECT(\"'\"&A36&\"'!$10:$10\"),0)),0)","v":0},null,null,{"$f":"IFERROR(INDEX(INDIRECT(\"'\"&A36&\"'!$18:$50\"),MATCH($EB$1,INDIRECT(\"'\"&A36&\"'!$A$18:$A$50\"),0),MATCH(Parts!$B36,INDIRECT(\"'\"&A36&\"'!$10:$10\"),0)),0)","v":0},null,null,{"$f":"IFERROR(INDEX(INDIRECT(\"'\"&A36&\"'!$18:$50\"),MATCH($EE$1,INDIRECT(\"'\"&A36&\"'!$A$18:$A$50\"),0),MATCH(Parts!$B36,INDIRECT(\"'\"&A36&\"'!$10:$10\"),0)),0)","v":0},null,null,{"$f":"IFERROR(INDEX(INDIRECT(\"'\"&A36&\"'!$18:$50\"),MATCH($EH$1,INDIRECT(\"'\"&A36&\"'!$A$18:$A$50\"),0),MATCH(Parts!$B36,INDIRECT(\"'\"&A36&\"'!$10:$10\"),0)),0)","v":0},null,null,{"$f":"IFERROR(INDEX(INDIRECT(\"'\"&A36&\"'!$18:$50\"),MATCH($EK$1,INDIRECT(\"'\"&A36&\"'!$A$18:$A$50\"),0),MATCH(Parts!$B36,INDIRECT(\"'\"&A36&\"'!$10:$10\"),0)),0)","v":0}]
[{"$f":"PQS!A39","v":"ILR"},{"$f":"PQS!B39","v":"E003/063"},{"$f":"PQS!E39","v":"VLS 300A*"},{"$f":"PQS!P39","v":"€"},261.04999999999995,"Compressor - TLES7KTK , Complete 8-036038297",{"$f":"IFERROR(INDEX(INDIRECT(\"'\"&A37&\"'!$18:$50\"),MATCH(Parts!F$1,INDIRECT(\"'\"&A37&\"'!$A$18:$A$50\"),0),MATCH(Parts!$B37,INDIRECT(\"'\"&A37&\"'!$10:$10\"),0)),0)","v":1},99.21,"THERMOSTAT 7020276",{"$f":"IFERROR(INDEX(INDIRECT(\"'\"&A37&\"'!$18:$50\"),MATCH($I$1,INDIRECT(\"'\"&A37&\"'!$A$18:$A$50\"),0),MATCH(Parts!$B37,INDIRECT(\"'\"&A37&\"'!$10:$10\"),0)),0)","v":1},22.16,null,{"$f":"IFERROR(INDEX(INDIRECT(\"'\"&A37&\"'!$18:$50\"),MATCH($L$1,INDIRECT(\"'\"&A37&\"'!$A$18:$A$50\"),0),MATCH(Parts!$B37,INDIRECT(\"'\"&A37&\"'!$10:$10\"),0)),0)","v":0},null,null,{"$f":"IFERROR(INDEX(INDIRECT(\"'\"&A37&\"'!$18:$50\"),MATCH($O$1,INDIRECT(\"'\"&A37&\"'!$A$18:$A$50\"),0),MATCH(Parts!$B37,INDIRECT(\"'\"&A37&\"'!$10:$10\"),0)),0)","v":0},null,null,{"$f":"IFERROR(INDEX(INDIRECT(\"'\"&A37&\"'!$18:$50\"),MATCH($R$1,INDIRECT(\"'\"&A37&\"'!$A$18:$A$50\"),0),MATCH(Parts!$B37,INDIRECT(\"'\"&A37&\"'!$10:$10\"),0)),0)","v":0},null,null,{"$f":"IFERROR(INDEX(INDIRECT(\"'\"&A37&\"'!$18:$50\"),MATCH($U$1,INDIRECT(\"'\"&A37&\"'!$A$18:$A$50\"),0),MATCH(Parts!$B37,INDIRECT(\"'\"&A37&\"'!$10:$10\"),0)),0)","v":0},null,null,{"$f":"IFERROR(INDEX(INDIRECT(\"'\"&A37&\"'!$18:$50\"),MATCH($X$1,INDIRECT(\"'\"&A37&\"'!$A$18:$A$50\"),0),MATCH(Parts!$B37,INDIRECT(\"'\"&A37&\"'!$10:$10\"),0)),0)","v":0},null,null,{"$f":"IFERROR(INDEX(INDIRECT(\"'\"&A37&\"'!$18:$50\"),MATCH($AA$1,INDIRECT(\"'\"&A37&\"'!$A$18:$A$50\"),0),MATCH(Parts!$B37,INDIRECT(\"'\"&A37&\"'!$10:$10\"),0)),0)","v":0},null,null,{"$f":"IFERROR(INDEX(INDIRECT(\"'\"&A37&\"'!$18:$50\"),MATCH($AD$1,INDIRECT(\"'\"&A37&\"'!$A$18:$A$50\"),0),MATCH(Parts!$B37,INDIRECT(\"'\"&A37&\"'!$10:$10\"),0)),0)","v":0},null,null,{"$f":"IFERROR(INDEX(INDIRECT(\"'\"&A37&\"'!$18:$50\"),MATCH($AG$1,INDIRECT(\"'\"&A37&\"'!$A$18:$A$50\"),0),MATCH(Parts!$B37,INDIRECT(\"'\"&A37&\"'!$10:$10\"),0)),0)","v":0},null,null,{"$f":"IFERROR(INDEX(INDIRECT(\"'\"&A37&\"'!$18:$50\"),MATCH($AJ$1,INDIRECT(\"'\"&A37&\"'!$A$18:$A$50\"),0),MATCH(Parts!$B37,INDIRECT(\"'\"&A37&\"'!$10:$10\"),0)),0)","v":0},null,null,{"$f":"IFERROR(INDEX(INDIRECT(\"'\"&A37&\"'!$18:$50\"),MATCH($AM$1,INDIRECT(\"'\"&A37&\"'!$A$18:$A$50\"),0),MATCH(Parts!$B37,INDIRECT(\"'\"&A37&\"'!$10:$10\"),0)),0)","v":0},null,null,{"$f":"IFERROR(INDEX(INDIRECT(\"'\"&A37&\"'!$18:$50\"),MATCH($AP$1,INDIRECT(\"'\"&A37&\"'!$A$18:$A$50\"),0),MATCH(Parts!$B37,INDIRECT(\"'\"&A37&\"'!$10:$10\"),0)),0)","v":0},null,"TOP BASKET 3510015 - 9.03\nBOTTOM BASKET 3510016 - 6.91",{"$f":"IFERROR(INDEX(INDIRECT(\"'\"&A37&\"'!$18:$50\"),MATCH($AS$1,INDIRECT(\"'\"&A37&\"'!$A$18:$A$50\"),0),MATCH(Parts!$B37,INDIRECT(\"'\"&A37&\"'!$10:$10\"),0)),0)","v":2},{"$f":"AVERAGE(9.03,6.91)","v":7.97},null,{"$f":"IFERROR(INDEX(INDIRECT(\"'\"&A37&\"'!$18:$50\"),MATCH($AV$1,INDIRECT(\"'\"&A37&\"'!$A$18:$A$50\"),0),MATCH(Parts!$B37,INDIRECT(\"'\"&A37&\"'!$10:$10\"),0)),0)","v":0},null,"STARTING DEVICE (RELAY) A921115",{"$f":"IFERROR(INDEX(INDIRECT(\"'\"&A37&\"'!$18:$50\"),MATCH($AY$1,INDIRECT(\"'\"&A37&\"'!$A$18:$A$50\"),0),MATCH(Parts!$B37,INDIRECT(\"'\"&A37&\"'!$10:$10\"),0)),0)","v":1},9.26,"RUN CAPACITOR 65200229",{"$f":"IFERROR(INDEX(INDIRECT(\"'\"&A37&\"'!$18:$50\"),MATCH($BB$1,INDIRECT(\"'\"&A37&\"'!$A$18:$A$50\"),0),MATCH(Parts!$B37,INDIRECT(\"'\"&A37&\"'!$10:$10\"),0)),0)","v":1},4.25,null,{"$f":"IFERROR(INDEX(INDIRECT(\"'\"&A37&\"'!$18:$50\"),MATCH($BE$1,INDIRECT(\"'\"&A37&\"'!$A$18:$A$50\"),0),MATCH(Parts!$B37,INDIRECT(\"'\"&A37&\"'!$10:$10\"),0)),0)","v":0},null,"FILTER/DRIER TYPE XH 9 (20 GRS) 0-6538001",{"$f":"IFERROR(INDEX(INDIRECT(\"'\"&A37&\"'!$18:$50\"),MATCH($BH$1,INDIRECT(\"'\"&A37&\"'!$A$18:$A$50\"),0),MATCH(Parts!$B37,INDIRECT(\"'\"&A37&\"'!$10:$10\"),0)),0)","v":1},3.84,null,{"$f":"IFERROR(INDEX(INDIRECT(\"'\"&A37&\"'!$18:$50\"),MATCH($BK$1,INDIRECT(\"'\"&A37&\"'!$A$18:$A$50\"),0),MATCH(Parts!$B37,INDIRECT(\"'\"&A37&\"'!$10:$10\"),0)),0)","v":0},null,"LID 50009112163",{"$f":"IFERROR(INDEX(INDIRECT(\"'\"&A37&\"'!$18:$50\"),MATCH($BN$1,INDIRECT(\"'\"&A37&\"'!$A$18:$A$50\"),0),MATCH(Parts!$B37,INDIRECT(\"'\"&A37&\"'!$10:$10\"),0)),0)","v":1},75.55,null,{"$f":"IFERROR(INDEX(INDIRECT(\"'\"&A37&\"'!$18:$50\"),MATCH($BQ$1,INDIRECT(\"'\"&A37&\"'!$A$18:$A$50\"),0),MATCH(Parts!$B37,INDIRECT(\"'\"&A37&\"'!$10:$10\"),0)),0)","v":0},null,"HINGE WITH SPRING, LEFT 1510029 - 8.85\nHINGE WITH SPRING, RIGHT 1510028 - 4.24",{"$f":"IFERROR(INDEX(INDIRECT(\"'\"&A37&\"'!$18:$50\"),MATCH($BT$1,INDIRECT(\"'\"&A37&\"'!$A$18:$A$50\"),0),MATCH(Parts!$B37,INDIRECT(\"'\"&A37&\"'!$10:$10\"),0)),0)","v":2},{"$f":"AVERAGE(8.85,4.24)","v":6.5449999999999999},null,{"$f":"IFERROR(INDEX(INDIRECT(\"'\"&A37&\"'!$18:$50\"),MATCH($BW$1,INDIRECT(\"'\"&A37&\"'!$A$18:$A$50\"),0),MATCH(Parts!$B37,INDIRECT(\"'\"&A37&\"'!$10:$10\"),0)),0)","v":0},null,"THERMOMETER 7020287-03",{"$f":"IFERROR(INDEX(INDIRECT(\"'\"&A37&\"'!$18:$50\"),MATCH($BZ$1,INDIRECT(\"'\"&A37&\"'!$A$18:$A$50\"),0),MATCH(Parts!$B37,INDIRECT(\"'\"&A37&\"'!$10:$10\"),0)),0)","v":1},10.61,null,{"$f":"IFERROR(INDEX(INDIRECT(\"'\"&A37&\"'!$18:$50\"),MATCH($CC$1,INDIRECT(\"'\"&A37&\"'!$A$18:$A$50\"),0),MATCH(Parts!$B37,INDIRECT(\"'\"&A37&\"'!$10:$10\"),0)),0)","v":0},null,"HANDLE WITH LOCK AND KEY 304090501",{"$f":"IFERROR(INDEX(INDIRECT(\"'\"&A37&\"'!$18:$50\"),MATCH($CF$1,INDIRECT(\"'\"&A37&\"'!$A$18:$A$50\"),0),MATCH(Parts!$B37,INDIRECT(\"'\"&A37&\"'!$10:$10\"),0)),0)","v":1},7.14,null,{"$f":"IFERROR(INDEX(INDIRECT(\"'\"&A37&\"'!$18:$50\"),MATCH($CI$1,INDIRECT(\"'\"&A37&\"'!$A$18:$A$50\"),0),MATCH(Parts!$B37,INDIRECT(\"'\"&A37&\"'!$10:$10\"),0)),0)","v":0},null,null,{"$f":"IFERROR(INDEX(INDIRECT(\"'\"&A37&\"'!$18:$50\"),MATCH($CL$1,INDIRECT(\"'\"&A37&\"'!$A$18:$A$50\"),0),MATCH(Parts!$B37,INDIRECT(\"'\"&A37&\"'!$10:$10\"),0)),0)","v":0},null,null,{"$f":"IFERROR(INDEX(INDIRECT(\"'\"&A37&\"'!$18:$50\"),MATCH($CO$1,INDIRECT(\"'\"&A37&\"'!$A$18:$A$50\"),0),MATCH(Parts!$B37,INDIRECT(\"'\"&A37&\"'!$10:$10\"),0)),0)","v":0},null,null,{"$f":"IFERROR(INDEX(INDIRECT(\"'\"&A37&\"'!$18:$50\"),MATCH($CR$1,INDIRECT(\"'\"&A37&\"'!$A$18:$A$50\"),0),MATCH(Parts!$B37,INDIRECT(\"'\"&A37&\"'!$10:$10\"),0)),0)","v":0},null,null,{"$f":"IFERROR(INDEX(INDIRECT(\"'\"&A37&\"'!$18:$50\"),MATCH($CU$1,INDIRECT(\"'\"&A37&\"'!$A$18:$A$50\"),0),MATCH(Parts!$B37,INDIRECT(\"'\"&A37&\"'!$10:$10\"),0)),0)","v":0},null,null,{"$f":"IFERROR(INDEX(INDIRECT(\"'\"&A37&\"'!$18:$50\"),MATCH($CX$1,INDIRECT(\"'\"&A37&\"'!$A$18:$A$50\"),0),MATCH(Parts!$B37,INDIRECT(\"'\"&A37&\"'!$10:$10\"),0)),0)","v":0},null,null,{"$f":"IFERROR(INDEX(INDIRECT(\"'\"&A37&\"'!$18:$50\"),MATCH($DA$1,INDIRECT(\"'\"&A37&\"'!$A$18:$A$50\"),0),MATCH(Parts!$B37,INDIRECT(\"'\"&A37&\"'!$10:$10\"),0)),0)","v":0},null,null,{"$f":"IFERROR(INDEX(INDIRECT(\"'\"&A37&\"'!$18:$50\"),MATCH($DD$1,INDIRECT(\"'\"&A37&\"'!$A$18:$A$50\"),0),MATCH(Parts!$B37,INDIRECT(\"'\"&A37&\"'!$10:$10\"),0)),0)","v":0},null,null,{"$f":"IFERROR(INDEX(INDIRECT(\"'\"&A37&\"'!$18:$50\"),MATCH($DG$1,INDIRECT(\"'\"&A37&\"'!$A$18:$A$50\"),0),MATCH(Parts!$B37,INDIRECT(\"'\"&A37&\"'!$10:$10\"),0)),0)","v":0},null,null,{"$f":"IFERROR(INDEX(INDIRECT(\"'\"&A37&\"'!$18:$50\"),MATCH($DJ$1,INDIRECT(\"'\"&A37&\"'!$A$18:$A$50\"),0),MATCH(Parts!$B37,INDIRECT(\"'\"&A37&\"'!$10:$10\"),0)),0)","v":0},null,null,{"$f":"IFERROR(INDEX(INDIRECT(\"'\"&A37&\"'!$18:$50\"),MATCH($DM$1,INDIRECT(\"'\"&A37&\"'!$A$18:$A$50\"),0),MATCH(Parts!$B37,INDIRECT(\"'\"&A37&\"'!$10:$10\"),0)),0)","v":0},null,null,{"$f":"IFERROR(INDEX(INDIRECT(\"'\"&A37&\"'!$18:$50\"),MATCH($DP$1,INDIRECT(\"'\"&A37&\"'!$A$18:$A$50\"),0),MATCH(Parts!$B37,INDIRECT(\"'\"&A37&\"'!$10:$10\"),0)),0)","v":0},null,null,{"$f":"IFERROR(INDEX(INDIRECT(\"'\"&A37&\"'!$18:$50\"),MATCH($DS$1,INDIRECT(\"'\"&A37&\"'!$A$18:$A$50\"),0),MATCH(Parts!$B37,INDIRECT(\"'\"&A37&\"'!$10:$10\"),0)),0)","v":0},null,null,{"$f":"IFERROR(INDEX(INDIRECT(\"'\"&A37&\"'!$18:$50\"),MATCH($DV$1,INDIRECT(\"'\"&A37&\"'!$A$18:$A$50\"),0),MATCH(Parts!$B37,INDIRECT(\"'\"&A37&\"'!$10:$10\"),0)),0)","v":0},null,null,{"$f":"IFERROR(INDEX(INDIRECT(\"'\"&A37&\"'!$18:$50\"),MATCH($DY$1,INDIRECT(\"'\"&A37&\"'!$A$18:$A$50\"),0),MATCH(Parts!$B37,INDIRECT(\"'\"&A37&\"'!$10:$10\"),0)),0)","v":0},null,null,{"$f":"IFERROR(INDEX(INDIRECT(\"'\"&A37&\"'!$18:$50\"),MATCH($EB$1,INDIRECT(\"'\"&A37&\"'!$A$18:$A$50\"),0),MATCH(Parts!$B37,INDIRECT(\"'\"&A37&\"'!$10:$10\"),0)),0)","v":0},null,null,{"$f":"IFERROR(INDEX(INDIRECT(\"'\"&A37&\"'!$18:$50\"),MATCH($EE$1,INDIRECT(\"'\"&A37&\"'!$A$18:$A$50\"),0),MATCH(Parts!$B37,INDIRECT(\"'\"&A37&\"'!$10:$10\"),0)),0)","v":0},null,null,{"$f":"IFERROR(INDEX(INDIRECT(\"'\"&A37&\"'!$18:$50\"),MATCH($EH$1,INDIRECT(\"'\"&A37&\"'!$A$18:$A$50\"),0),MATCH(Parts!$B37,INDIRECT(\"'\"&A37&\"'!$10:$10\"),0)),0)","v":0},null,null,{"$f":"IFERROR(INDEX(INDIRECT(\"'\"&A37&\"'!$18:$50\"),MATCH($EK$1,INDIRECT(\"'\"&A37&\"'!$A$18:$A$50\"),0),MATCH(Parts!$B37,INDIRECT(\"'\"&A37&\"'!$10:$10\"),0)),0)","v":0}]
[{"$f":"PQS!A40","v":"ILR"},{"$f":"PQS!B40","v":"E003/064"},{"$f":"PQS!E40","v":"VLS 350A*"},{"$f":"PQS!P40","v":"€"},265.10999999999996,"Compressor - NLE 9KTK , Complete, R600a 8-036038255",{"$f":"IFERROR(INDEX(INDIRECT(\"'\"&A38&\"'!$18:$50\"),MATCH(Parts!F$1,INDIRECT(\"'\"&A38&\"'!$A$18:$A$50\"),0),MATCH(Parts!$B38,INDIRECT(\"'\"&A38&\"'!$10:$10\"),0)),0)","v":1},106.65,"Thermostat 7020276",{"$f":"IFERROR(INDEX(INDIRECT(\"'\"&A38&\"'!$18:$50\"),MATCH($I$1,INDIRECT(\"'\"&A38&\"'!$A$18:$A$50\"),0),MATCH(Parts!$B38,INDIRECT(\"'\"&A38&\"'!$10:$10\"),0)),0)","v":1},22.16,null,{"$f":"IFERROR(INDEX(INDIRECT(\"'\"&A38&\"'!$18:$50\"),MATCH($L$1,INDIRECT(\"'\"&A38&\"'!$A$18:$A$50\"),0),MATCH(Parts!$B38,INDIRECT(\"'\"&A38&\"'!$10:$10\"),0)),0)","v":0},null,null,{"$f":"IFERROR(INDEX(INDIRECT(\"'\"&A38&\"'!$18:$50\"),MATCH($O$1,INDIRECT(\"'\"&A38&\"'!$A$18:$A$50\"),0),MATCH(Parts!$B38,INDIRECT(\"'\"&A38&\"'!$10:$10\"),0)),0)","v":0},null,null,{"$f":"IFERROR(INDEX(INDIRECT(\"'\"&A38&\"'!$18:$50\"),MATCH($R$1,INDIRECT(\"'\"&A38&\"'!$A$18:$A$50\"),0),MATCH(Parts!$B38,INDIRECT(\"'\"&A38&\"'!$10:$10\"),0)),0)","v":0},null,null,{"$f":"IFERROR(INDEX(INDIRECT(\"'\"&A38&\"'!$18:$50\"),MATCH($U$1,INDIRECT(\"'\"&A38&\"'!$A$18:$A$50\"),0),MATCH(Parts!$B38,INDIRECT(\"'\"&A38&\"'!$10:$10\"),0)),0)","v":0},null,null,{"$f":"IFERROR(INDEX(INDIRECT(\"'\"&A38&\"'!$18:$50\"),MATCH($X$1,INDIRECT(\"'\"&A38&\"'!$A$18:$A$50\"),0),MATCH(Parts!$B38,INDIRECT(\"'\"&A38&\"'!$10:$10\"),0)),0)","v":0},null,null,{"$f":"IFERROR(INDEX(INDIRECT(\"'\"&A38&\"'!$18:$50\"),MATCH($AA$1,INDIRECT(\"'\"&A38&\"'!$A$18:$A$50\"),0),MATCH(Parts!$B38,INDIRECT(\"'\"&A38&\"'!$10:$10\"),0)),0)","v":0},null,null,{"$f":"IFERROR(INDEX(INDIRECT(\"'\"&A38&\"'!$18:$50\"),MATCH($AD$1,INDIRECT(\"'\"&A38&\"'!$A$18:$A$50\"),0),MATCH(Parts!$B38,INDIRECT(\"'\"&A38&\"'!$10:$10\"),0)),0)","v":0},null,null,{"$f":"IFERROR(INDEX(INDIRECT(\"'\"&A38&\"'!$18:$50\"),MATCH($AG$1,INDIRECT(\"'\"&A38&\"'!$A$18:$A$50\"),0),MATCH(Parts!$B38,INDIRECT(\"'\"&A38&\"'!$10:$10\"),0)),0)","v":0},null,null,{"$f":"IFERROR(INDEX(INDIRECT(\"'\"&A38&\"'!$18:$50\"),MATCH($AJ$1,INDIRECT(\"'\"&A38&\"'!$A$18:$A$50\"),0),MATCH(Parts!$B38,INDIRECT(\"'\"&A38&\"'!$10:$10\"),0)),0)","v":0},null,null,{"$f":"IFERROR(INDEX(INDIRECT(\"'\"&A38&\"'!$18:$50\"),MATCH($AM$1,INDIRECT(\"'\"&A38&\"'!$A$18:$A$50\"),0),MATCH(Parts!$B38,INDIRECT(\"'\"&A38&\"'!$10:$10\"),0)),0)","v":0},null,null,{"$f":"IFERROR(INDEX(INDIRECT(\"'\"&A38&\"'!$18:$50\"),MATCH($AP$1,INDIRECT(\"'\"&A38&\"'!$A$18:$A$50\"),0),MATCH(Parts!$B38,INDIRECT(\"'\"&A38&\"'!$10:$10\"),0)),0)","v":0},null,"TOP BASKET 3510015 - 9.03\nBOTTOM BASKET 3510016 - 6.91",{"$f":"IFERROR(INDEX(INDIRECT(\"'\"&A38&\"'!$18:$50\"),MATCH($AS$1,INDIRECT(\"'\"&A38&\"'!$A$18:$A$50\"),0),MATCH(Parts!$B38,INDIRECT(\"'\"&A38&\"'!$10:$10\"),0)),0)","v":2},{"$f":"AVERAGE(9.03,6.91)","v":7.97},null,{"$f":"IFERROR(INDEX(INDIRECT(\"'\"&A38&\"'!$18:$50\"),MATCH($AV$1,INDIRECT(\"'\"&A38&\"'!$A$18:$A$50\"),0),MATCH(Parts!$B38,INDIRECT(\"'\"&A38&\"'!$10:$10\"),0)),0)","v":0},null,"STARTING DEVICE (RELAY) A921115",{"$f":"IFERROR(INDEX(INDIRECT(\"'\"&A38&\"'!$18:$50\"),MATCH($AY$1,INDIRECT(\"'\"&A38&\"'!$A$18:$A$50\"),0),MATCH(Parts!$B38,INDIRECT(\"'\"&A38&\"'!$10:$10\"),0)),0)","v":1},9.26,"RUN CAPACITOR 304090501",{"$f":"IFERROR(INDEX(INDIRECT(\"'\"&A38&\"'!$18:$50\"),MATCH($BB$1,INDIRECT(\"'\"&A38&\"'!$A$18:$A$50\"),0),MATCH(Parts!$B38,INDIRECT(\"'\"&A38&\"'!$10:$10\"),0)),0)","v":1},4.25,null,{"$f":"IFERROR(INDEX(INDIRECT(\"'\"&A38&\"'!$18:$50\"),MATCH($BE$1,INDIRECT(\"'\"&A38&\"'!$A$18:$A$50\"),0),MATCH(Parts!$B38,INDIRECT(\"'\"&A38&\"'!$10:$10\"),0)),0)","v":0},null,"FILTER/DRIER TYPE XH 9 (20 GRS) 0-6538001",{"$f":"IFERROR(INDEX(INDIRECT(\"'\"&A38&\"'!$18:$50\"),MATCH($BH$1,INDIRECT(\"'\"&A38&\"'!$A$18:$A$50\"),0),MATCH(Parts!$B38,INDIRECT(\"'\"&A38&\"'!$10:$10\"),0)),0)","v":1},3.84,null,{"$f":"IFERROR(INDEX(INDIRECT(\"'\"&A38&\"'!$18:$50\"),MATCH($BK$1,INDIRECT(\"'\"&A38&\"'!$A$18:$A$50\"),0),MATCH(Parts!$B38,INDIRECT(\"'\"&A38&\"'!$10:$10\"),0)),0)","v":0},null,"LID 5000911213",{"$f":"IFERROR(INDEX(INDIRECT(\"'\"&A38&\"'!$18:$50\"),MATCH($BN$1,INDIRECT(\"'\"&A38&\"'!$A$18:$A$50\"),0),MATCH(Parts!$B38,INDIRECT(\"'\"&A38&\"'!$10:$10\"),0)),0)","v":1},76.41,"HINGE WITH SPRING 1510031",{"$f":"IFERROR(INDEX(INDIRECT(\"'\"&A38&\"'!$18:$50\"),MATCH($BQ$1,INDIRECT(\"'\"&A38&\"'!$A$18:$A$50\"),0),MATCH(Parts!$B38,INDIRECT(\"'\"&A38&\"'!$10:$10\"),0)),0)","v":1},8.85,null,{"$f":"IFERROR(INDEX(INDIRECT(\"'\"&A38&\"'!$18:$50\"),MATCH($BT$1,INDIRECT(\"'\"&A38&\"'!$A$18:$A$50\"),0),MATCH(Parts!$B38,INDIRECT(\"'\"&A38&\"'!$10:$10\"),0)),0)","v":0},null,null,{"$f":"IFERROR(INDEX(INDIRECT(\"'\"&A38&\"'!$18:$50\"),MATCH($BW$1,INDIRECT(\"'\"&A38&\"'!$A$18:$A$50\"),0),MATCH(Parts!$B38,INDIRECT(\"'\"&A38&\"'!$10:$10\"),0)),0)","v":0},null,"THERMOMETER 7020287-03",{"$f":"IFERROR(INDEX(INDIRECT(\"'\"&A38&\"'!$18:$50\"),MATCH($BZ$1,INDIRECT(\"'\"&A38&\"'!$A$18:$A$50\"),0),MATCH(Parts!$B38,INDIRECT(\"'\"&A38&\"'!$10:$10\"),0)),0)","v":1},10.61,null,{"$f":"IFERROR(INDEX(INDIRECT(\"'\"&A38&\"'!$18:$50\"),MATCH($CC$1,INDIRECT(\"'\"&A38&\"'!$A$18:$A$50\"),0),MATCH(Parts!$B38,INDIRECT(\"'\"&A38&\"'!$10:$10\"),0)),0)","v":0},null,"HANDLE WITH LOCK AND KEY 304090501",{"$f":"IFERROR(INDEX(INDIRECT(\"'\"&A38&\"'!$18:$50\"),MATCH($CF$1,INDIRECT(\"'\"&A38&\"'!$A$18:$A$50\"),0),MATCH(Parts!$B38,INDIRECT(\"'\"&A38&\"'!$10:$10\"),0)),0)","v":1},7.14,null,{"$f":"IFERROR(INDEX(INDIRECT(\"'\"&A38&\"'!$18:$50\"),MATCH($CI$1,INDIRECT(\"'\"&A38&\"'!$A$18:$A$50\"),0),MATCH(Parts!$B38,INDIRECT(\"'\"&A38&\"'!$10:$10\"),0)),0)","v":0},null,null,{"$f":"IFERROR(INDEX(INDIRECT(\"'\"&A38&\"'!$18:$50\"),MATCH($CL$1,INDIRECT(\"'\"&A38&\"'!$A$18:$A$50\"),0),MATCH(Parts!$B38,INDIRECT(\"'\"&A38&\"'!$10:$10\"),0)),0)","v":0},null,null,{"$f":"IFERROR(INDEX(INDIRECT(\"'\"&A38&\"'!$18:$50\"),MATCH($CO$1,INDIRECT(\"'\"&A38&\"'!$A$18:$A$50\"),0),MATCH(Parts!$B38,INDIRECT(\"'\"&A38&\"'!$10:$10\"),0)),0)","v":0},null,null,{"$f":"IFERROR(INDEX(INDIRECT(\"'\"&A38&\"'!$18:$50\"),MATCH($CR$1,INDIRECT(\"'\"&A38&\"'!$A$18:$A$50\"),0),MATCH(Parts!$B38,INDIRECT(\"'\"&A38&\"'!$10:$10\"),0)),0)","v":0},null,null,{"$f":"IFERROR(INDEX(INDIRECT(\"'\"&A38&\"'!$18:$50\"),MATCH($CU$1,INDIRECT(\"'\"&A38&\"'!$A$18:$A$50\"),0),MATCH(Parts!$B38,INDIRECT(\"'\"&A38&\"'!$10:$10\"),0)),0)","v":0},null,null,{"$f":"IFERROR(INDEX(INDIRECT(\"'\"&A38&\"'!$18:$50\"),MATCH($CX$1,INDIRECT(\"'\"&A38&\"'!$A$18:$A$50\"),0),MATCH(Parts!$B38,INDIRECT(\"'\"&A38&\"'!$10:$10\"),0)),0)","v":0},null,null,{"$f":"IFERROR(INDEX(INDIRECT(\"'\"&A38&\"'!$18:$50\"),MATCH($DA$1,INDIRECT(\"'\"&A38&\"'!$A$18:$A$50\"),0),MATCH(Parts!$B38,INDIRECT(\"'\"&A38&\"'!$10:$10\"),0)),0)","v":0},null,null,{"$f":"IFERROR(INDEX(INDIRECT(\"'\"&A38&\"'!$18:$50\"),MATCH($DD$1,INDIRECT(\"'\"&A38&\"'!$A$18:$A$50\"),0),MATCH(Parts!$B38,INDIRECT(\"'\"&A38&\"'!$10:$10\"),0)),0)","v":0},null,null,{"$f":"IFERROR(INDEX(INDIRECT(\"'\"&A38&\"'!$18:$50\"),MATCH($DG$1,INDIRECT(\"'\"&A38&\"'!$A$18:$A$50\"),0),MATCH(Parts!$B38,INDIRECT(\"'\"&A38&\"'!$10:$10\"),0)),0)","v":0},null,null,{"$f":"IFERROR(INDEX(INDIRECT(\"'\"&A38&\"'!$18:$50\"),MATCH($DJ$1,INDIRECT(\"'\"&A38&\"'!$A$18:$A$50\"),0),MATCH(Parts!$B38,INDIRECT(\"'\"&A38&\"'!$10:$10\"),0)),0)","v":0},null,null,{"$f":"IFERROR(INDEX(INDIRECT(\"'\"&A38&\"'!$18:$50\"),MATCH($DM$1,INDIRECT(\"'\"&A38&\"'!$A$18:$A$50\"),0),MATCH(Parts!$B38,INDIRECT(\"'\"&A38&\"'!$10:$10\"),0)),0)","v":0},null,null,{"$f":"IFERROR(INDEX(INDIRECT(\"'\"&A38&\"'!$18:$50\"),MATCH($DP$1,INDIRECT(\"'\"&A38&\"'!$A$18:$A$50\"),0),MATCH(Parts!$B38,INDIRECT(\"'\"&A38&\"'!$10:$10\"),0)),0)","v":0},null,null,{"$f":"IFERROR(INDEX(INDIRECT(\"'\"&A38&\"'!$18:$50\"),MATCH($DS$1,INDIRECT(\"'\"&A38&\"'!$A$18:$A$50\"),0),MATCH(Parts!$B38,INDIRECT(\"'\"&A38&\"'!$10:$10\"),0)),0)","v":0},null,null,{"$f":"IFERROR(INDEX(INDIRECT(\"'\"&A38&\"'!$18:$50\"),MATCH($DV$1,INDIRECT(\"'\"&A38&\"'!$A$18:$A$50\"),0),MATCH(Parts!$B38,INDIRECT(\"'\"&A38&\"'!$10:$10\"),0)),0)","v":0},null,null,{"$f":"IFERROR(INDEX(INDIRECT(\"'\"&A38&\"'!$18:$50\"),MATCH($DY$1,INDIRECT(\"'\"&A38&\"'!$A$18:$A$50\"),0),MATCH(Parts!$B38,INDIRECT(\"'\"&A38&\"'!$10:$10\"),0)),0)","v":0},null,null,{"$f":"IFERROR(INDEX(INDIRECT(\"'\"&A38&\"'!$18:$50\"),MATCH($EB$1,INDIRECT(\"'\"&A38&\"'!$A$18:$A$50\"),0),MATCH(Parts!$B38,INDIRECT(\"'\"&A38&\"'!$10:$10\"),0)),0)","v":0},null,null,{"$f":"IFERROR(INDEX(INDIRECT(\"'\"&A38&\"'!$18:$50\"),MATCH($EE$1,INDIRECT(\"'\"&A38&\"'!$A$18:$A$50\"),0),MATCH(Parts!$B38,INDIRECT(\"'\"&A38&\"'!$10:$10\"),0)),0)","v":0},null,null,{"$f":"IFERROR(INDEX(INDIRECT(\"'\"&A38&\"'!$18:$50\"),MATCH($EH$1,INDIRECT(\"'\"&A38&\"'!$A$18:$A$50\"),0),MATCH(Parts!$B38,INDIRECT(\"'\"&A38&\"'!$10:$10\"),0)),0)","v":0},null,null,{"$f":"IFERROR(INDEX(INDIRECT(\"'\"&A38&\"'!$18:$50\"),MATCH($EK$1,INDIRECT(\"'\"&A38&\"'!$A$18:$A$50\"),0),MATCH(Parts!$B38,INDIRECT(\"'\"&A38&\"'!$10:$10\"),0)),0)","v":0}]
[{"$f":"PQS!A41","v":"ILR"},{"$f":"PQS!B41","v":"E003/065"},{"$f":"PQS!E41","v":"VLS 400A*"},{"$f":"PQS!P41","v":"€"},262.79999999999995,"COMPRESSOR, NLE 9 KTK 03.6038255",{"$f":"IFERROR(INDEX(INDIRECT(\"'\"&A39&\"'!$18:$50\"),MATCH(Parts!F$1,INDIRECT(\"'\"&A39&\"'!$A$18:$A$50\"),0),MATCH(Parts!$B39,INDIRECT(\"'\"&A39&\"'!$10:$10\"),0)),0)","v":1},106.65,"Thermostat 7020276",{"$f":"IFERROR(INDEX(INDIRECT(\"'\"&A39&\"'!$18:$50\"),MATCH($I$1,INDIRECT(\"'\"&A39&\"'!$A$18:$A$50\"),0),MATCH(Parts!$B39,INDIRECT(\"'\"&A39&\"'!$10:$10\"),0)),0)","v":1},22.16,null,{"$f":"IFERROR(INDEX(INDIRECT(\"'\"&A39&\"'!$18:$50\"),MATCH($L$1,INDIRECT(\"'\"&A39&\"'!$A$18:$A$50\"),0),MATCH(Parts!$B39,INDIRECT(\"'\"&A39&\"'!$10:$10\"),0)),0)","v":0},null,null,{"$f":"IFERROR(INDEX(INDIRECT(\"'\"&A39&\"'!$18:$50\"),MATCH($O$1,INDIRECT(\"'\"&A39&\"'!$A$18:$A$50\"),0),MATCH(Parts!$B39,INDIRECT(\"'\"&A39&\"'!$10:$10\"),0)),0)","v":0},null,null,{"$f":"IFERROR(INDEX(INDIRECT(\"'\"&A39&\"'!$18:$50\"),MATCH($R$1,INDIRECT(\"'\"&A39&\"'!$A$18:$A$50\"),0),MATCH(Parts!$B39,INDIRECT(\"'\"&A39&\"'!$10:$10\"),0)),0)","v":0},null,null,{"$f":"IFERROR(INDEX(INDIRECT(\"'\"&A39&\"'!$18:$50\"),MATCH($U$1,INDIRECT(\"'\"&A39&\"'!$A$18:$A$50\"),0),MATCH(Parts!$B39,INDIRECT(\"'\"&A39&\"'!$10:$10\"),0)),0)","v":0},null,null,{"$f":"IFERROR(INDEX(INDIRECT(\"'\"&A39&\"'!$18:$50\"),MATCH($X$1,INDIRECT(\"'\"&A39&\"'!$A$18:$A$50\"),0),MATCH(Parts!$B39,INDIRECT(\"'\"&A39&\"'!$10:$10\"),0)),0)","v":0},null,null,{"$f":"IFERROR(INDEX(INDIRECT(\"'\"&A39&\"'!$18:$50\"),MATCH($AA$1,INDIRECT(\"'\"&A39&\"'!$A$18:$A$50\"),0),MATCH(Parts!$B39,INDIRECT(\"'\"&A39&\"'!$10:$10\"),0)),0)","v":0},null,null,{"$f":"IFERROR(INDEX(INDIRECT(\"'\"&A39&\"'!$18:$50\"),MATCH($AD$1,INDIRECT(\"'\"&A39&\"'!$A$18:$A$50\"),0),MATCH(Parts!$B39,INDIRECT(\"'\"&A39&\"'!$10:$10\"),0)),0)","v":0},null,null,{"$f":"IFERROR(INDEX(INDIRECT(\"'\"&A39&\"'!$18:$50\"),MATCH($AG$1,INDIRECT(\"'\"&A39&\"'!$A$18:$A$50\"),0),MATCH(Parts!$B39,INDIRECT(\"'\"&A39&\"'!$10:$10\"),0)),0)","v":0},null,null,{"$f":"IFERROR(INDEX(INDIRECT(\"'\"&A39&\"'!$18:$50\"),MATCH($AJ$1,INDIRECT(\"'\"&A39&\"'!$A$18:$A$50\"),0),MATCH(Parts!$B39,INDIRECT(\"'\"&A39&\"'!$10:$10\"),0)),0)","v":0},null,null,{"$f":"IFERROR(INDEX(INDIRECT(\"'\"&A39&\"'!$18:$50\"),MATCH($AM$1,INDIRECT(\"'\"&A39&\"'!$A$18:$A$50\"),0),MATCH(Parts!$B39,INDIRECT(\"'\"&A39&\"'!$10:$10\"),0)),0)","v":0},null,null,{"$f":"IFERROR(INDEX(INDIRECT(\"'\"&A39&\"'!$18:$50\"),MATCH($AP$1,INDIRECT(\"'\"&A39&\"'!$A$18:$A$50\"),0),MATCH(Parts!$B39,INDIRECT(\"'\"&A39&\"'!$10:$10\"),0)),0)","v":0},null,"TOP BASKET 3510015 - 9.03\nBOTTOM BASKET 3510016 - 6.91",{"$f":"IFERROR(INDEX(INDIRECT(\"'\"&A39&\"'!$18:$50\"),MATCH($AS$1,INDIRECT(\"'\"&A39&\"'!$A$18:$A$50\"),0),MATCH(Parts!$B39,INDIRECT(\"'\"&A39&\"'!$10:$10\"),0)),0)","v":2},{"$f":"AVERAGE(9.03,6.91)","v":7.97},null,{"$f":"IFERROR(INDEX(INDIRECT(\"'\"&A39&\"'!$18:$50\"),MATCH($AV$1,INDIRECT(\"'\"&A39&\"'!$A$18:$A$50\"),0),MATCH(Parts!$B39,INDIRECT(\"'\"&A39&\"'!$10:$10\"),0)),0)","v":0},null,"STARTING DEVICE (RELAY) A921115",{"$f":"IFERROR(INDEX(INDIRECT(\"'\"&A39&\"'!$18:$50\"),MATCH($AY$1,INDIRECT(\"'\"&A39&\"'!$A$18:$A$50\"),0),MATCH(Parts!$B39,INDIRECT(\"'\"&A39&\"'!$10:$10\"),0)),0)","v":1},9.26,"RUN CAPACITOR 65200229",{"$f":"IFERROR(INDEX(INDIRECT(\"'\"&A39&\"'!$18:$50\"),MATCH($BB$1,INDIRECT(\"'\"&A39&\"'!$A$18:$A$50\"),0),MATCH(Parts!$B39,INDIRECT(\"'\"&A39&\"'!$10:$10\"),0)),0)","v":1},4.25,null,{"$f":"IFERROR(INDEX(INDIRECT(\"'\"&A39&\"'!$18:$50\"),MATCH($BE$1,INDIRECT(\"'\"&A39&\"'!$A$18:$A$50\"),0),MATCH(Parts!$B39,INDIRECT(\"'\"&A39&\"'!$10:$10\"),0)),0)","v":0},null,"FILTER/DRIER TYPE XH 9 (20 GRS) 0-6538001",{"$f":"IFERROR(INDEX(INDIRECT(\"'\"&A39&\"'!$18:$50\"),MATCH($BH$1,INDIRECT(\"'\"&A39&\"'!$A$18:$A$50\"),0),MATCH(Parts!$B39,INDIRECT(\"'\"&A39&\"'!$10:$10\"),0)),0)","v":1},3.84,null,{"$f":"IFERROR(INDEX(INDIRECT(\"'\"&A39&\"'!$18:$50\"),MATCH($BK$1,INDIRECT(\"'\"&A39&\"'!$A$18:$A$50\"),0),MATCH(Parts!$B39,INDIRECT(\"'\"&A39&\"'!$10:$10\"),0)),0)","v":0},null,"LID 5000902243",{"$f":"IFERROR(INDEX(INDIRECT(\"'\"&A39&\"'!$18:$50\"),MATCH($BN$1,INDIRECT(\"'\"&A39&\"'!$A$18:$A$50\"),0),MATCH(Parts!$B39,INDIRECT(\"'\"&A39&\"'!$10:$10\"),0)),0)","v":1},74.099999999999994,"HINGE WITH SPRING 1510031",{"$f":"IFERROR(INDEX(INDIRECT(\"'\"&A39&\"'!$18:$50\"),MATCH($BQ$1,INDIRECT(\"'\"&A39&\"'!$A$18:$A$50\"),0),MATCH(Parts!$B39,INDIRECT(\"'\"&A39&\"'!$10:$10\"),0)),0)","v":1},8.85,null,{"$f":"IFERROR(INDEX(INDIRECT(\"'\"&A39&\"'!$18:$50\"),MATCH($BT$1,INDIRECT(\"'\"&A39&\"'!$A$18:$A$50\"),0),MATCH(Parts!$B39,INDIRECT(\"'\"&A39&\"'!$10:$10\"),0)),0)","v":0},null,null,{"$f":"IFERROR(INDEX(INDIRECT(\"'\"&A39&\"'!$18:$50\"),MATCH($BW$1,INDIRECT(\"'\"&A39&\"'!$A$18:$A$50\"),0),MATCH(Parts!$B39,INDIRECT(\"'\"&A39&\"'!$10:$10\"),0)),0)","v":0},null,"THERMOMETER 7020287-03",{"$f":"IFERROR(INDEX(INDIRECT(\"'\"&A39&\"'!$18:$50\"),MATCH($BZ$1,INDIRECT(\"'\"&A39&\"'!$A$18:$A$50\"),0),MATCH(Parts!$B39,INDIRECT(\"'\"&A39&\"'!$10:$10\"),0)),0)","v":1},10.61,null,{"$f":"IFERROR(INDEX(INDIRECT(\"'\"&A39&\"'!$18:$50\"),MATCH($CC$1,INDIRECT(\"'\"&A39&\"'!$A$18:$A$50\"),0),MATCH(Parts!$B39,INDIRECT(\"'\"&A39&\"'!$10:$10\"),0)),0)","v":0},null,"HANDLE WITH LOCK AND KEY 304090501",{"$f":"IFERROR(INDEX(INDIRECT(\"'\"&A39&\"'!$18:$50\"),MATCH($CF$1,INDIRECT(\"'\"&A39&\"'!$A$18:$A$50\"),0),MATCH(Parts!$B39,INDIRECT(\"'\"&A39&\"'!$10:$10\"),0)),0)","v":1},7.14,null,{"$f":"IFERROR(INDEX(INDIRECT(\"'\"&A39&\"'!$18:$50\"),MATCH($CI$1,INDIRECT(\"'\"&A39&\"'!$A$18:$A$50\"),0),MATCH(Parts!$B39,INDIRECT(\"'\"&A39&\"'!$10:$10\"),0)),0)","v":0},null,null,{"$f":"IFERROR(INDEX(INDIRECT(\"'\"&A39&\"'!$18:$50\"),MATCH($CL$1,INDIRECT(\"'\"&A39&\"'!$A$18:$A$50\"),0),MATCH(Parts!$B39,INDIRECT(\"'\"&A39&\"'!$10:$10\"),0)),0)","v":0},null,null,{"$f":"IFERROR(INDEX(INDIRECT(\"'\"&A39&\"'!$18:$50\"),MATCH($CO$1,INDIRECT(\"'\"&A39&\"'!$A$18:$A$50\"),0),MATCH(Parts!$B39,INDIRECT(\"'\"&A39&\"'!$10:$10\"),0)),0)","v":0},null,null,{"$f":"IFERROR(INDEX(INDIRECT(\"'\"&A39&\"'!$18:$50\"),MATCH($CR$1,INDIRECT(\"'\"&A39&\"'!$A$18:$A$50\"),0),MATCH(Parts!$B39,INDIRECT(\"'\"&A39&\"'!$10:$10\"),0)),0)","v":0},null,null,{"$f":"IFERROR(INDEX(INDIRECT(\"'\"&A39&\"'!$18:$50\"),MATCH($CU$1,INDIRECT(\"'\"&A39&\"'!$A$18:$A$50\"),0),MATCH(Parts!$B39,INDIRECT(\"'\"&A39&\"'!$10:$10\"),0)),0)","v":0},null,null,{"$f":"IFERROR(INDEX(INDIRECT(\"'\"&A39&\"'!$18:$50\"),MATCH($CX$1,INDIRECT(\"'\"&A39&\"'!$A$18:$A$50\"),0),MATCH(Parts!$B39,INDIRECT(\"'\"&A39&\"'!$10:$10\"),0)),0)","v":0},null,null,{"$f":"IFERROR(INDEX(INDIRECT(\"'\"&A39&\"'!$18:$50\"),MATCH($DA$1,INDIRECT(\"'\"&A39&\"'!$A$18:$A$50\"),0),MATCH(Parts!$B39,INDIRECT(\"'\"&A39&\"'!$10:$10\"),0)),0)","v":0},null,null,{"$f":"IFERROR(INDEX(INDIRECT(\"'\"&A39&\"'!$18:$50\"),MATCH($DD$1,INDIRECT(\"'\"&A39&\"'!$A$18:$A$50\"),0),MATCH(Parts!$B39,INDIRECT(\"'\"&A39&\"'!$10:$10\"),0)),0)","v":0},null,null,{"$f":"IFERROR(INDEX(INDIRECT(\"'\"&A39&\"'!$18:$50\"),MATCH($DG$1,INDIRECT(\"'\"&A39&\"'!$A$18:$A$50\"),0),MATCH(Parts!$B39,INDIRECT(\"'\"&A39&\"'!$10:$10\"),0)),0)","v":0},null,null,{"$f":"IFERROR(INDEX(INDIRECT(\"'\"&A39&\"'!$18:$50\"),MATCH($DJ$1,INDIRECT(\"'\"&A39&\"'!$A$18:$A$50\"),0),MATCH(Parts!$B39,INDIRECT(\"'\"&A39&\"'!$10:$10\"),0)),0)","v":0},null,null,{"$f":"IFERROR(INDEX(INDIRECT(\"'\"&A39&\"'!$18:$50\"),MATCH($DM$1,INDIRECT(\"'\"&A39&\"'!$A$18:$A$50\"),0),MATCH(Parts!$B39,INDIRECT(\"'\"&A39&\"'!$10:$10\"),0)),0)","v":0},null,null,{"$f":"IFERROR(INDEX(INDIRECT(\"'\"&A39&\"'!$18:$50\"),MATCH($DP$1,INDIRECT(\"'\"&A39&\"'!$A$18:$A$50\"),0),MATCH(Parts!$B39,INDIRECT(\"'\"&A39&\"'!$10:$10\"),0)),0)","v":0},null,null,{"$f":"IFERROR(INDEX(INDIRECT(\"'\"&A39&\"'!$18:$50\"),MATCH($DS$1,INDIRECT(\"'\"&A39&\"'!$A$18:$A$50\"),0),MATCH(Parts!$B39,INDIRECT(\"'\"&A39&\"'!$10:$10\"),0)),0)","v":0},null,null,{"$f":"IFERROR(INDEX(INDIRECT(\"'\"&A39&\"'!$18:$50\"),MATCH($DV$1,INDIRECT(\"'\"&A39&\"'!$A$18:$A$50\"),0),MATCH(Parts!$B39,INDIRECT(\"'\"&A39&\"'!$10:$10\"),0)),0)","v":0},null,null,{"$f":"IFERROR(INDEX(INDIRECT(\"'\"&A39&\"'!$18:$50\"),MATCH($DY$1,INDIRECT(\"'\"&A39&\"'!$A$18:$A$50\"),0),MATCH(Parts!$B39,INDIRECT(\"'\"&A39&\"'!$10:$10\"),0)),0)","v":0},null,null,{"$f":"IFERROR(INDEX(INDIRECT(\"'\"&A39&\"'!$18:$50\"),MATCH($EB$1,INDIRECT(\"'\"&A39&\"'!$A$18:$A$50\"),0),MATCH(Parts!$B39,INDIRECT(\"'\"&A39&\"'!$10:$10\"),0)),0)","v":0},null,null,{"$f":"IFERROR(INDEX(INDIRECT(\"'\"&A39&\"'!$18:$50\"),MATCH($EE$1,INDIRECT(\"'\"&A39&\"'!$A$18:$A$50\"),0),MATCH(Parts!$B39,INDIRECT(\"'\"&A39&\"'!$10:$10\"),0)),0)","v":0},null,null,{"$f":"IFERROR(INDEX(INDIRECT(\"'\"&A39&\"'!$18:$50\"),MATCH($EH$1,INDIRECT(\"'\"&A39&\"'!$A$18:$A$50\"),0),MATCH(Parts!$B39,INDIRECT(\"'\"&A39&\"'!$10:$10\"),0)),0)","v":0},null,null,{"$f":"IFERROR(INDEX(INDIRECT(\"'\"&A39&\"'!$18:$50\"),MATCH($EK$1,INDIRECT(\"'\"&A39&\"'!$A$18:$A$50\"),0),MATCH(Parts!$B39,INDIRECT(\"'\"&A39&\"'!$10:$10\"),0)),0)","v":0}]
[{"$f":"PQS!A42","v":"ILR"},{"$f":"PQS!B42","v":"E003/066"},{"$f":"PQS!E42","v":"TCW 4000 AC*"},{"$f":"PQS!P42","v":"€"},509.17,"Compressor: 296.9701.63: 164,69 €",{"$f":"IFERROR(INDEX(INDIRECT(\"'\"&A40&\"'!$18:$50\"),MATCH(Parts!F$1,INDIRECT(\"'\"&A40&\"'!$A$18:$A$50\"),0),MATCH(Parts!$B40,INDIRECT(\"'\"&A40&\"'!$10:$10\"),0)),0)","v":1},164.69,null,{"$f":"IFERROR(INDEX(INDIRECT(\"'\"&A40&\"'!$18:$50\"),MATCH($I$1,INDIRECT(\"'\"&A40&\"'!$A$18:$A$50\"),0),MATCH(Parts!$B40,INDIRECT(\"'\"&A40&\"'!$10:$10\"),0)),0)","v":0},null,null,{"$f":"IFERROR(INDEX(INDIRECT(\"'\"&A40&\"'!$18:$50\"),MATCH($L$1,INDIRECT(\"'\"&A40&\"'!$A$18:$A$50\"),0),MATCH(Parts!$B40,INDIRECT(\"'\"&A40&\"'!$10:$10\"),0)),0)","v":0},null,null,{"$f":"IFERROR(INDEX(INDIRECT(\"'\"&A40&\"'!$18:$50\"),MATCH($O$1,INDIRECT(\"'\"&A40&\"'!$A$18:$A$50\"),0),MATCH(Parts!$B40,INDIRECT(\"'\"&A40&\"'!$10:$10\"),0)),0)","v":0},null,"Controller board: 296.9769.93: 143,39 €",{"$f":"IFERROR(INDEX(INDIRECT(\"'\"&A40&\"'!$18:$50\"),MATCH($R$1,INDIRECT(\"'\"&A40&\"'!$A$18:$A$50\"),0),MATCH(Parts!$B40,INDIRECT(\"'\"&A40&\"'!$10:$10\"),0)),0)","v":1},143.38999999999999,null,{"$f":"IFERROR(INDEX(INDIRECT(\"'\"&A40&\"'!$18:$50\"),MATCH($U$1,INDIRECT(\"'\"&A40&\"'!$A$18:$A$50\"),0),MATCH(Parts!$B40,INDIRECT(\"'\"&A40&\"'!$10:$10\"),0)),0)","v":0},null,"Fan compressor; 292.9960.06: 66,05 €",{"$f":"IFERROR(INDEX(INDIRECT(\"'\"&A40&\"'!$18:$50\"),MATCH($X$1,INDIRECT(\"'\"&A40&\"'!$A$18:$A$50\"),0),MATCH(Parts!$B40,INDIRECT(\"'\"&A40&\"'!$10:$10\"),0)),0)","v":1},66.05,null,{"$f":"IFERROR(INDEX(INDIRECT(\"'\"&A40&\"'!$18:$50\"),MATCH($AA$1,INDIRECT(\"'\"&A40&\"'!$A$18:$A$50\"),0),MATCH(Parts!$B40,INDIRECT(\"'\"&A40&\"'!$10:$10\"),0)),0)","v":0},null,null,{"$f":"IFERROR(INDEX(INDIRECT(\"'\"&A40&\"'!$18:$50\"),MATCH($AD$1,INDIRECT(\"'\"&A40&\"'!$A$18:$A$50\"),0),MATCH(Parts!$B40,INDIRECT(\"'\"&A40&\"'!$10:$10\"),0)),0)","v":0},null,null,{"$f":"IFERROR(INDEX(INDIRECT(\"'\"&A40&\"'!$18:$50\"),MATCH($AG$1,INDIRECT(\"'\"&A40&\"'!$A$18:$A$50\"),0),MATCH(Parts!$B40,INDIRECT(\"'\"&A40&\"'!$10:$10\"),0)),0)","v":0},null,null,{"$f":"IFERROR(INDEX(INDIRECT(\"'\"&A40&\"'!$18:$50\"),MATCH($AJ$1,INDIRECT(\"'\"&A40&\"'!$A$18:$A$50\"),0),MATCH(Parts!$B40,INDIRECT(\"'\"&A40&\"'!$10:$10\"),0)),0)","v":0},null,"Main switch: 292.2044.20: 7,67 €\nSwitching power supply: 32,37 €",{"$f":"IFERROR(INDEX(INDIRECT(\"'\"&A40&\"'!$18:$50\"),MATCH($AM$1,INDIRECT(\"'\"&A40&\"'!$A$18:$A$50\"),0),MATCH(Parts!$B40,INDIRECT(\"'\"&A40&\"'!$10:$10\"),0)),0)","v":1},{"$f":"7.67+32.37","v":40.04},null,{"$f":"IFERROR(INDEX(INDIRECT(\"'\"&A40&\"'!$18:$50\"),MATCH($AP$1,INDIRECT(\"'\"&A40&\"'!$A$18:$A$50\"),0),MATCH(Parts!$B40,INDIRECT(\"'\"&A40&\"'!$10:$10\"),0)),0)","v":0},null,"Basket TCW4000  292.9427.46",{"$f":"IFERROR(INDEX(INDIRECT(\"'\"&A40&\"'!$18:$50\"),MATCH($AS$1,INDIRECT(\"'\"&A40&\"'!$A$18:$A$50\"),0),MATCH(Parts!$B40,INDIRECT(\"'\"&A40&\"'!$10:$10\"),0)),0)","v":1},10.67,null,{"$f":"IFERROR(INDEX(INDIRECT(\"'\"&A40&\"'!$18:$50\"),MATCH($AV$1,INDIRECT(\"'\"&A40&\"'!$A$18:$A$50\"),0),MATCH(Parts!$B40,INDIRECT(\"'\"&A40&\"'!$10:$10\"),0)),0)","v":0},null,"Start Relay  296.9706.62",{"$f":"IFERROR(INDEX(INDIRECT(\"'\"&A40&\"'!$18:$50\"),MATCH($AY$1,INDIRECT(\"'\"&A40&\"'!$A$18:$A$50\"),0),MATCH(Parts!$B40,INDIRECT(\"'\"&A40&\"'!$10:$10\"),0)),0)","v":1},3.46,"Start Capacitor   296.9706.63",{"$f":"IFERROR(INDEX(INDIRECT(\"'\"&A40&\"'!$18:$50\"),MATCH($BB$1,INDIRECT(\"'\"&A40&\"'!$A$18:$A$50\"),0),MATCH(Parts!$B40,INDIRECT(\"'\"&A40&\"'!$10:$10\"),0)),0)","v":1},7.68,null,{"$f":"IFERROR(INDEX(INDIRECT(\"'\"&A40&\"'!$18:$50\"),MATCH($BE$1,INDIRECT(\"'\"&A40&\"'!$A$18:$A$50\"),0),MATCH(Parts!$B40,INDIRECT(\"'\"&A40&\"'!$10:$10\"),0)),0)","v":0},null,"Drier   296.0945.04",{"$f":"IFERROR(INDEX(INDIRECT(\"'\"&A40&\"'!$18:$50\"),MATCH($BH$1,INDIRECT(\"'\"&A40&\"'!$A$18:$A$50\"),0),MATCH(Parts!$B40,INDIRECT(\"'\"&A40&\"'!$10:$10\"),0)),0)","v":1},2.0699999999999998,"Fuse 15A  296.9243.15",{"$f":"IFERROR(INDEX(INDIRECT(\"'\"&A40&\"'!$18:$50\"),MATCH($BK$1,INDIRECT(\"'\"&A40&\"'!$A$18:$A$50\"),0),MATCH(Parts!$B40,INDIRECT(\"'\"&A40&\"'!$10:$10\"),0)),0)","v":1},0.19,null,{"$f":"IFERROR(INDEX(INDIRECT(\"'\"&A40&\"'!$18:$50\"),MATCH($BN$1,INDIRECT(\"'\"&A40&\"'!$A$18:$A$50\"),0),MATCH(Parts!$B40,INDIRECT(\"'\"&A40&\"'!$10:$10\"),0)),0)","v":0},null,"Outer Hinge  292.8503.30 - 7.76\nInner Hinge 292.8503.31 - 8.41",{"$f":"IFERROR(INDEX(INDIRECT(\"'\"&A40&\"'!$18:$50\"),MATCH($BQ$1,INDIRECT(\"'\"&A40&\"'!$A$18:$A$50\"),0),MATCH(Parts!$B40,INDIRECT(\"'\"&A40&\"'!$10:$10\"),0)),0)","v":2},{"$f":"AVERAGE(7.76,8.41)","v":8.0850000000000009},"Cover Hinge  296.4018.00",{"$f":"IFERROR(INDEX(INDIRECT(\"'\"&A40&\"'!$18:$50\"),MATCH($BT$1,INDIRECT(\"'\"&A40&\"'!$A$18:$A$50\"),0),MATCH(Parts!$B40,INDIRECT(\"'\"&A40&\"'!$10:$10\"),0)),0)","v":1},0.73,null,{"$f":"IFERROR(INDEX(INDIRECT(\"'\"&A40&\"'!$18:$50\"),MATCH($BW$1,INDIRECT(\"'\"&A40&\"'!$A$18:$A$50\"),0),MATCH(Parts!$B40,INDIRECT(\"'\"&A40&\"'!$10:$10\"),0)),0)","v":0},null,null,{"$f":"IFERROR(INDEX(INDIRECT(\"'\"&A40&\"'!$18:$50\"),MATCH($BZ$1,INDIRECT(\"'\"&A40&\"'!$A$18:$A$50\"),0),MATCH(Parts!$B40,INDIRECT(\"'\"&A40&\"'!$10:$10\"),0)),0)","v":0},null,null,{"$f":"IFERROR(INDEX(INDIRECT(\"'\"&A40&\"'!$18:$50\"),MATCH($CC$1,INDIRECT(\"'\"&A40&\"'!$A$18:$A$50\"),0),MATCH(Parts!$B40,INDIRECT(\"'\"&A40&\"'!$10:$10\"),0)),0)","v":0},null,null,{"$f":"IFERROR(INDEX(INDIRECT(\"'\"&A40&\"'!$18:$50\"),MATCH($CF$1,INDIRECT(\"'\"&A40&\"'!$A$18:$A$50\"),0),MATCH(Parts!$B40,INDIRECT(\"'\"&A40&\"'!$10:$10\"),0)),0)","v":0},null,null,{"$f":"IFERROR(INDEX(INDIRECT(\"'\"&A40&\"'!$18:$50\"),MATCH($CI$1,INDIRECT(\"'\"&A40&\"'!$A$18:$A$50\"),0),MATCH(Parts!$B40,INDIRECT(\"'\"&A40&\"'!$10:$10\"),0)),0)","v":0},null,null,{"$f":"IFERROR(INDEX(INDIRECT(\"'\"&A40&\"'!$18:$50\"),MATCH($CL$1,INDIRECT(\"'\"&A40&\"'!$A$18:$A$50\"),0),MATCH(Parts!$B40,INDIRECT(\"'\"&A40&\"'!$10:$10\"),0)),0)","v":0},null,null,{"$f":"IFERROR(INDEX(INDIRECT(\"'\"&A40&\"'!$18:$50\"),MATCH($CO$1,INDIRECT(\"'\"&A40&\"'!$A$18:$A$50\"),0),MATCH(Parts!$B40,INDIRECT(\"'\"&A40&\"'!$10:$10\"),0)),0)","v":0},null,null,{"$f":"IFERROR(INDEX(INDIRECT(\"'\"&A40&\"'!$18:$50\"),MATCH($CR$1,INDIRECT(\"'\"&A40&\"'!$A$18:$A$50\"),0),MATCH(Parts!$B40,INDIRECT(\"'\"&A40&\"'!$10:$10\"),0)),0)","v":0},null,null,{"$f":"IFERROR(INDEX(INDIRECT(\"'\"&A40&\"'!$18:$50\"),MATCH($CU$1,INDIRECT(\"'\"&A40&\"'!$A$18:$A$50\"),0),MATCH(Parts!$B40,INDIRECT(\"'\"&A40&\"'!$10:$10\"),0)),0)","v":0},null,null,{"$f":"IFERROR(INDEX(INDIRECT(\"'\"&A40&\"'!$18:$50\"),MATCH($CX$1,INDIRECT(\"'\"&A40&\"'!$A$18:$A$50\"),0),MATCH(Parts!$B40,INDIRECT(\"'\"&A40&\"'!$10:$10\"),0)),0)","v":0},null,null,{"$f":"IFERROR(INDEX(INDIRECT(\"'\"&A40&\"'!$18:$50\"),MATCH($DA$1,INDIRECT(\"'\"&A40&\"'!$A$18:$A$50\"),0),MATCH(Parts!$B40,INDIRECT(\"'\"&A40&\"'!$10:$10\"),0)),0)","v":0},null,null,{"$f":"IFERROR(INDEX(INDIRECT(\"'\"&A40&\"'!$18:$50\"),MATCH($DD$1,INDIRECT(\"'\"&A40&\"'!$A$18:$A$50\"),0),MATCH(Parts!$B40,INDIRECT(\"'\"&A40&\"'!$10:$10\"),0)),0)","v":0},null,null,{"$f":"IFERROR(INDEX(INDIRECT(\"'\"&A40&\"'!$18:$50\"),MATCH($DG$1,INDIRECT(\"'\"&A40&\"'!$A$18:$A$50\"),0),MATCH(Parts!$B40,INDIRECT(\"'\"&A40&\"'!$10:$10\"),0)),0)","v":0},null,null,{"$f":"IFERROR(INDEX(INDIRECT(\"'\"&A40&\"'!$18:$50\"),MATCH($DJ$1,INDIRECT(\"'\"&A40&\"'!$A$18:$A$50\"),0),MATCH(Parts!$B40,INDIRECT(\"'\"&A40&\"'!$10:$10\"),0)),0)","v":0},null,null,{"$f":"IFERROR(INDEX(INDIRECT(\"'\"&A40&\"'!$18:$50\"),MATCH($DM$1,INDIRECT(\"'\"&A40&\"'!$A$18:$A$50\"),0),MATCH(Parts!$B40,INDIRECT(\"'\"&A40&\"'!$10:$10\"),0)),0)","v":0},null,null,{"$f":"IFERROR(INDEX(INDIRECT(\"'\"&A40&\"'!$18:$50\"),MATCH($DP$1,INDIRECT(\"'\"&A40&\"'!$A$18:$A$50\"),0),MATCH(Parts!$B40,INDIRECT(\"'\"&A40&\"'!$10:$10\"),0)),0)","v":0},null,null,{"$f":"IFERROR(INDEX(INDIRECT(\"'\"&A40&\"'!$18:$50\"),MATCH($DS$1,INDIRECT(\"'\"&A40&\"'!$A$18:$A$50\"),0),MATCH(Parts!$B40,INDIRECT(\"'\"&A40&\"'!$10:$10\"),0)),0)","v":0},null,"Sensor cooler: 296.9804.48: 15,64 €",{"$f":"IFERROR(INDEX(INDIRECT(\"'\"&A40&\"'!$18:$50\"),MATCH($DV$1,INDIRECT(\"'\"&A40&\"'!$A$18:$A$50\"),0),MATCH(Parts!$B40,INDIRECT(\"'\"&A40&\"'!$10:$10\"),0)),0)","v":1},15.64,null,{"$f":"IFERROR(INDEX(INDIRECT(\"'\"&A40&\"'!$18:$50\"),MATCH($DY$1,INDIRECT(\"'\"&A40&\"'!$A$18:$A$50\"),0),MATCH(Parts!$B40,INDIRECT(\"'\"&A40&\"'!$10:$10\"),0)),0)","v":0},null,null,{"$f":"IFERROR(INDEX(INDIRECT(\"'\"&A40&\"'!$18:$50\"),MATCH($EB$1,INDIRECT(\"'\"&A40&\"'!$A$18:$A$50\"),0),MATCH(Parts!$B40,INDIRECT(\"'\"&A40&\"'!$10:$10\"),0)),0)","v":0},null,"Display board: 296.9769.81: 38,39 €",{"$f":"IFERROR(INDEX(INDIRECT(\"'\"&A40&\"'!$18:$50\"),MATCH($EE$1,INDIRECT(\"'\"&A40&\"'!$A$18:$A$50\"),0),MATCH(Parts!$B40,INDIRECT(\"'\"&A40&\"'!$10:$10\"),0)),0)","v":1},38.39,null,{"$f":"IFERROR(INDEX(INDIRECT(\"'\"&A40&\"'!$18:$50\"),MATCH($EH$1,INDIRECT(\"'\"&A40&\"'!$A$18:$A$50\"),0),MATCH(Parts!$B40,INDIRECT(\"'\"&A40&\"'!$10:$10\"),0)),0)","v":0},null,null,{"$f":"IFERROR(INDEX(INDIRECT(\"'\"&A40&\"'!$18:$50\"),MATCH($EK$1,INDIRECT(\"'\"&A40&\"'!$A$18:$A$50\"),0),MATCH(Parts!$B40,INDIRECT(\"'\"&A40&\"'!$10:$10\"),0)),0)","v":0}]
[{"$f":"PQS!A43","v":"ILR"},{"$f":"PQS!B43","v":"E003/070"},{"$f":"PQS!E43","v":"VLS 064 RF"},{"$f":"PQS!P43","v":"€"},161.17000000000002,"Compressor: 8-036038987; 120,59€",{"$f":"IFERROR(INDEX(INDIRECT(\"'\"&A41&\"'!$18:$50\"),MATCH(Parts!F$1,INDIRECT(\"'\"&A41&\"'!$A$18:$A$50\"),0),MATCH(Parts!$B41,INDIRECT(\"'\"&A41&\"'!$10:$10\"),0)),0)","v":1},120.59,"Thermostat: 7095034; 40,58€",{"$f":"IFERROR(INDEX(INDIRECT(\"'\"&A41&\"'!$18:$50\"),MATCH($I$1,INDIRECT(\"'\"&A41&\"'!$A$18:$A$50\"),0),MATCH(Parts!$B41,INDIRECT(\"'\"&A41&\"'!$10:$10\"),0)),0)","v":1},40.58,null,{"$f":"IFERROR(INDEX(INDIRECT(\"'\"&A41&\"'!$18:$50\"),MATCH($L$1,INDIRECT(\"'\"&A41&\"'!$A$18:$A$50\"),0),MATCH(Parts!$B41,INDIRECT(\"'\"&A41&\"'!$10:$10\"),0)),0)","v":0},null,null,{"$f":"IFERROR(INDEX(INDIRECT(\"'\"&A41&\"'!$18:$50\"),MATCH($O$1,INDIRECT(\"'\"&A41&\"'!$A$18:$A$50\"),0),MATCH(Parts!$B41,INDIRECT(\"'\"&A41&\"'!$10:$10\"),0)),0)","v":0},null,null,{"$f":"IFERROR(INDEX(INDIRECT(\"'\"&A41&\"'!$18:$50\"),MATCH($R$1,INDIRECT(\"'\"&A41&\"'!$A$18:$A$50\"),0),MATCH(Parts!$B41,INDIRECT(\"'\"&A41&\"'!$10:$10\"),0)),0)","v":0},null,null,{"$f":"IFERROR(INDEX(INDIRECT(\"'\"&A41&\"'!$18:$50\"),MATCH($U$1,INDIRECT(\"'\"&A41&\"'!$A$18:$A$50\"),0),MATCH(Parts!$B41,INDIRECT(\"'\"&A41&\"'!$10:$10\"),0)),0)","v":0},null,null,{"$f":"IFERROR(INDEX(INDIRECT(\"'\"&A41&\"'!$18:$50\"),MATCH($X$1,INDIRECT(\"'\"&A41&\"'!$A$18:$A$50\"),0),MATCH(Parts!$B41,INDIRECT(\"'\"&A41&\"'!$10:$10\"),0)),0)","v":0},null,null,{"$f":"IFERROR(INDEX(INDIRECT(\"'\"&A41&\"'!$18:$50\"),MATCH($AA$1,INDIRECT(\"'\"&A41&\"'!$A$18:$A$50\"),0),MATCH(Parts!$B41,INDIRECT(\"'\"&A41&\"'!$10:$10\"),0)),0)","v":0},null,null,{"$f":"IFERROR(INDEX(INDIRECT(\"'\"&A41&\"'!$18:$50\"),MATCH($AD$1,INDIRECT(\"'\"&A41&\"'!$A$18:$A$50\"),0),MATCH(Parts!$B41,INDIRECT(\"'\"&A41&\"'!$10:$10\"),0)),0)","v":0},null,null,{"$f":"IFERROR(INDEX(INDIRECT(\"'\"&A41&\"'!$18:$50\"),MATCH($AG$1,INDIRECT(\"'\"&A41&\"'!$A$18:$A$50\"),0),MATCH(Parts!$B41,INDIRECT(\"'\"&A41&\"'!$10:$10\"),0)),0)","v":0},null,null,{"$f":"IFERROR(INDEX(INDIRECT(\"'\"&A41&\"'!$18:$50\"),MATCH($AJ$1,INDIRECT(\"'\"&A41&\"'!$A$18:$A$50\"),0),MATCH(Parts!$B41,INDIRECT(\"'\"&A41&\"'!$10:$10\"),0)),0)","v":0},null,null,{"$f":"IFERROR(INDEX(INDIRECT(\"'\"&A41&\"'!$18:$50\"),MATCH($AM$1,INDIRECT(\"'\"&A41&\"'!$A$18:$A$50\"),0),MATCH(Parts!$B41,INDIRECT(\"'\"&A41&\"'!$10:$10\"),0)),0)","v":0},null,null,{"$f":"IFERROR(INDEX(INDIRECT(\"'\"&A41&\"'!$18:$50\"),MATCH($AP$1,INDIRECT(\"'\"&A41&\"'!$A$18:$A$50\"),0),MATCH(Parts!$B41,INDIRECT(\"'\"&A41&\"'!$10:$10\"),0)),0)","v":0},null,null,{"$f":"IFERROR(INDEX(INDIRECT(\"'\"&A41&\"'!$18:$50\"),MATCH($AS$1,INDIRECT(\"'\"&A41&\"'!$A$18:$A$50\"),0),MATCH(Parts!$B41,INDIRECT(\"'\"&A41&\"'!$10:$10\"),0)),0)","v":0},null,null,{"$f":"IFERROR(INDEX(INDIRECT(\"'\"&A41&\"'!$18:$50\"),MATCH($AV$1,INDIRECT(\"'\"&A41&\"'!$A$18:$A$50\"),0),MATCH(Parts!$B41,INDIRECT(\"'\"&A41&\"'!$10:$10\"),0)),0)","v":0},null,null,{"$f":"IFERROR(INDEX(INDIRECT(\"'\"&A41&\"'!$18:$50\"),MATCH($AY$1,INDIRECT(\"'\"&A41&\"'!$A$18:$A$50\"),0),MATCH(Parts!$B41,INDIRECT(\"'\"&A41&\"'!$10:$10\"),0)),0)","v":0},null,null,{"$f":"IFERROR(INDEX(INDIRECT(\"'\"&A41&\"'!$18:$50\"),MATCH($BB$1,INDIRECT(\"'\"&A41&\"'!$A$18:$A$50\"),0),MATCH(Parts!$B41,INDIRECT(\"'\"&A41&\"'!$10:$10\"),0)),0)","v":0},null,null,{"$f":"IFERROR(INDEX(INDIRECT(\"'\"&A41&\"'!$18:$50\"),MATCH($BE$1,INDIRECT(\"'\"&A41&\"'!$A$18:$A$50\"),0),MATCH(Parts!$B41,INDIRECT(\"'\"&A41&\"'!$10:$10\"),0)),0)","v":0},null,null,{"$f":"IFERROR(INDEX(INDIRECT(\"'\"&A41&\"'!$18:$50\"),MATCH($BH$1,INDIRECT(\"'\"&A41&\"'!$A$18:$A$50\"),0),MATCH(Parts!$B41,INDIRECT(\"'\"&A41&\"'!$10:$10\"),0)),0)","v":0},null,null,{"$f":"IFERROR(INDEX(INDIRECT(\"'\"&A41&\"'!$18:$50\"),MATCH($BK$1,INDIRECT(\"'\"&A41&\"'!$A$18:$A$50\"),0),MATCH(Parts!$B41,INDIRECT(\"'\"&A41&\"'!$10:$10\"),0)),0)","v":0},null,null,{"$f":"IFERROR(INDEX(INDIRECT(\"'\"&A41&\"'!$18:$50\"),MATCH($BN$1,INDIRECT(\"'\"&A41&\"'!$A$18:$A$50\"),0),MATCH(Parts!$B41,INDIRECT(\"'\"&A41&\"'!$10:$10\"),0)),0)","v":0},null,null,{"$f":"IFERROR(INDEX(INDIRECT(\"'\"&A41&\"'!$18:$50\"),MATCH($BQ$1,INDIRECT(\"'\"&A41&\"'!$A$18:$A$50\"),0),MATCH(Parts!$B41,INDIRECT(\"'\"&A41&\"'!$10:$10\"),0)),0)","v":0},null,null,{"$f":"IFERROR(INDEX(INDIRECT(\"'\"&A41&\"'!$18:$50\"),MATCH($BT$1,INDIRECT(\"'\"&A41&\"'!$A$18:$A$50\"),0),MATCH(Parts!$B41,INDIRECT(\"'\"&A41&\"'!$10:$10\"),0)),0)","v":0},null,null,{"$f":"IFERROR(INDEX(INDIRECT(\"'\"&A41&\"'!$18:$50\"),MATCH($BW$1,INDIRECT(\"'\"&A41&\"'!$A$18:$A$50\"),0),MATCH(Parts!$B41,INDIRECT(\"'\"&A41&\"'!$10:$10\"),0)),0)","v":0},null,null,{"$f":"IFERROR(INDEX(INDIRECT(\"'\"&A41&\"'!$18:$50\"),MATCH($BZ$1,INDIRECT(\"'\"&A41&\"'!$A$18:$A$50\"),0),MATCH(Parts!$B41,INDIRECT(\"'\"&A41&\"'!$10:$10\"),0)),0)","v":0},null,null,{"$f":"IFERROR(INDEX(INDIRECT(\"'\"&A41&\"'!$18:$50\"),MATCH($CC$1,INDIRECT(\"'\"&A41&\"'!$A$18:$A$50\"),0),MATCH(Parts!$B41,INDIRECT(\"'\"&A41&\"'!$10:$10\"),0)),0)","v":0},null,null,{"$f":"IFERROR(INDEX(INDIRECT(\"'\"&A41&\"'!$18:$50\"),MATCH($CF$1,INDIRECT(\"'\"&A41&\"'!$A$18:$A$50\"),0),MATCH(Parts!$B41,INDIRECT(\"'\"&A41&\"'!$10:$10\"),0)),0)","v":0},null,null,{"$f":"IFERROR(INDEX(INDIRECT(\"'\"&A41&\"'!$18:$50\"),MATCH($CI$1,INDIRECT(\"'\"&A41&\"'!$A$18:$A$50\"),0),MATCH(Parts!$B41,INDIRECT(\"'\"&A41&\"'!$10:$10\"),0)),0)","v":0},null,null,{"$f":"IFERROR(INDEX(INDIRECT(\"'\"&A41&\"'!$18:$50\"),MATCH($CL$1,INDIRECT(\"'\"&A41&\"'!$A$18:$A$50\"),0),MATCH(Parts!$B41,INDIRECT(\"'\"&A41&\"'!$10:$10\"),0)),0)","v":0},null,null,{"$f":"IFERROR(INDEX(INDIRECT(\"'\"&A41&\"'!$18:$50\"),MATCH($CO$1,INDIRECT(\"'\"&A41&\"'!$A$18:$A$50\"),0),MATCH(Parts!$B41,INDIRECT(\"'\"&A41&\"'!$10:$10\"),0)),0)","v":0},null,null,{"$f":"IFERROR(INDEX(INDIRECT(\"'\"&A41&\"'!$18:$50\"),MATCH($CR$1,INDIRECT(\"'\"&A41&\"'!$A$18:$A$50\"),0),MATCH(Parts!$B41,INDIRECT(\"'\"&A41&\"'!$10:$10\"),0)),0)","v":0},null,null,{"$f":"IFERROR(INDEX(INDIRECT(\"'\"&A41&\"'!$18:$50\"),MATCH($CU$1,INDIRECT(\"'\"&A41&\"'!$A$18:$A$50\"),0),MATCH(Parts!$B41,INDIRECT(\"'\"&A41&\"'!$10:$10\"),0)),0)","v":0},null,null,{"$f":"IFERROR(INDEX(INDIRECT(\"'\"&A41&\"'!$18:$50\"),MATCH($CX$1,INDIRECT(\"'\"&A41&\"'!$A$18:$A$50\"),0),MATCH(Parts!$B41,INDIRECT(\"'\"&A41&\"'!$10:$10\"),0)),0)","v":0},null,null,{"$f":"IFERROR(INDEX(INDIRECT(\"'\"&A41&\"'!$18:$50\"),MATCH($DA$1,INDIRECT(\"'\"&A41&\"'!$A$18:$A$50\"),0),MATCH(Parts!$B41,INDIRECT(\"'\"&A41&\"'!$10:$10\"),0)),0)","v":0},null,null,{"$f":"IFERROR(INDEX(INDIRECT(\"'\"&A41&\"'!$18:$50\"),MATCH($DD$1,INDIRECT(\"'\"&A41&\"'!$A$18:$A$50\"),0),MATCH(Parts!$B41,INDIRECT(\"'\"&A41&\"'!$10:$10\"),0)),0)","v":0},null,null,{"$f":"IFERROR(INDEX(INDIRECT(\"'\"&A41&\"'!$18:$50\"),MATCH($DG$1,INDIRECT(\"'\"&A41&\"'!$A$18:$A$50\"),0),MATCH(Parts!$B41,INDIRECT(\"'\"&A41&\"'!$10:$10\"),0)),0)","v":0},null,null,{"$f":"IFERROR(INDEX(INDIRECT(\"'\"&A41&\"'!$18:$50\"),MATCH($DJ$1,INDIRECT(\"'\"&A41&\"'!$A$18:$A$50\"),0),MATCH(Parts!$B41,INDIRECT(\"'\"&A41&\"'!$10:$10\"),0)),0)","v":0},null,null,{"$f":"IFERROR(INDEX(INDIRECT(\"'\"&A41&\"'!$18:$50\"),MATCH($DM$1,INDIRECT(\"'\"&A41&\"'!$A$18:$A$50\"),0),MATCH(Parts!$B41,INDIRECT(\"'\"&A41&\"'!$10:$10\"),0)),0)","v":0},null,null,{"$f":"IFERROR(INDEX(INDIRECT(\"'\"&A41&\"'!$18:$50\"),MATCH($DP$1,INDIRECT(\"'\"&A41&\"'!$A$18:$A$50\"),0),MATCH(Parts!$B41,INDIRECT(\"'\"&A41&\"'!$10:$10\"),0)),0)","v":0},null,null,{"$f":"IFERROR(INDEX(INDIRECT(\"'\"&A41&\"'!$18:$50\"),MATCH($DS$1,INDIRECT(\"'\"&A41&\"'!$A$18:$A$50\"),0),MATCH(Parts!$B41,INDIRECT(\"'\"&A41&\"'!$10:$10\"),0)),0)","v":0},null,null,{"$f":"IFERROR(INDEX(INDIRECT(\"'\"&A41&\"'!$18:$50\"),MATCH($DV$1,INDIRECT(\"'\"&A41&\"'!$A$18:$A$50\"),0),MATCH(Parts!$B41,INDIRECT(\"'\"&A41&\"'!$10:$10\"),0)),0)","v":0},null,null,{"$f":"IFERROR(INDEX(INDIRECT(\"'\"&A41&\"'!$18:$50\"),MATCH($DY$1,INDIRECT(\"'\"&A41&\"'!$A$18:$A$50\"),0),MATCH(Parts!$B41,INDIRECT(\"'\"&A41&\"'!$10:$10\"),0)),0)","v":0},null,null,{"$f":"IFERROR(INDEX(INDIRECT(\"'\"&A41&\"'!$18:$50\"),MATCH($EB$1,INDIRECT(\"'\"&A41&\"'!$A$18:$A$50\"),0),MATCH(Parts!$B41,INDIRECT(\"'\"&A41&\"'!$10:$10\"),0)),0)","v":0},null,null,{"$f":"IFERROR(INDEX(INDIRECT(\"'\"&A41&\"'!$18:$50\"),MATCH($EE$1,INDIRECT(\"'\"&A41&\"'!$A$18:$A$50\"),0),MATCH(Parts!$B41,INDIRECT(\"'\"&A41&\"'!$10:$10\"),0)),0)","v":0},null,null,{"$f":"IFERROR(INDEX(INDIRECT(\"'\"&A41&\"'!$18:$50\"),MATCH($EH$1,INDIRECT(\"'\"&A41&\"'!$A$18:$A$50\"),0),MATCH(Parts!$B41,INDIRECT(\"'\"&A41&\"'!$10:$10\"),0)),0)","v":0},null,null,{"$f":"IFERROR(INDEX(INDIRECT(\"'\"&A41&\"'!$18:$50\"),MATCH($EK$1,INDIRECT(\"'\"&A41&\"'!$A$18:$A$50\"),0),MATCH(Parts!$B41,INDIRECT(\"'\"&A41&\"'!$10:$10\"),0)),0)","v":0}]
[{"$f":"PQS!A44","v":"ILR"},{"$f":"PQS!B44","v":"E003/072"},{"$f":"PQS!E44","v":"VC 225 ILR*"},"€",549,"Compressor Danfoss BD35K: €178.00",{"$f":"IFERROR(INDEX(INDIRECT(\"'\"&A42&\"'!$18:$50\"),MATCH(Parts!F$1,INDIRECT(\"'\"&A42&\"'!$A$18:$A$50\"),0),MATCH(Parts!$B42,INDIRECT(\"'\"&A42&\"'!$10:$10\"),0)),0)","v":1},178,"Temperature probe: € 5.00",{"$f":"IFERROR(INDEX(INDIRECT(\"'\"&A42&\"'!$18:$50\"),MATCH($I$1,INDIRECT(\"'\"&A42&\"'!$A$18:$A$50\"),0),MATCH(Parts!$B42,INDIRECT(\"'\"&A42&\"'!$10:$10\"),0)),0)","v":1},5,"Controller Danfoss 101N0420: €140.00",{"$f":"IFERROR(INDEX(INDIRECT(\"'\"&A42&\"'!$18:$50\"),MATCH($L$1,INDIRECT(\"'\"&A42&\"'!$A$18:$A$50\"),0),MATCH(Parts!$B42,INDIRECT(\"'\"&A42&\"'!$10:$10\"),0)),0)","v":1},140,null,{"$f":"IFERROR(INDEX(INDIRECT(\"'\"&A42&\"'!$18:$50\"),MATCH($O$1,INDIRECT(\"'\"&A42&\"'!$A$18:$A$50\"),0),MATCH(Parts!$B42,INDIRECT(\"'\"&A42&\"'!$10:$10\"),0)),0)","v":0},null,"Fridge controller: €191.00",{"$f":"IFERROR(INDEX(INDIRECT(\"'\"&A42&\"'!$18:$50\"),MATCH($R$1,INDIRECT(\"'\"&A42&\"'!$A$18:$A$50\"),0),MATCH(Parts!$B42,INDIRECT(\"'\"&A42&\"'!$10:$10\"),0)),0)","v":1},191,null,{"$f":"IFERROR(INDEX(INDIRECT(\"'\"&A42&\"'!$18:$50\"),MATCH($U$1,INDIRECT(\"'\"&A42&\"'!$A$18:$A$50\"),0),MATCH(Parts!$B42,INDIRECT(\"'\"&A42&\"'!$10:$10\"),0)),0)","v":0},null,null,{"$f":"IFERROR(INDEX(INDIRECT(\"'\"&A42&\"'!$18:$50\"),MATCH($X$1,INDIRECT(\"'\"&A42&\"'!$A$18:$A$50\"),0),MATCH(Parts!$B42,INDIRECT(\"'\"&A42&\"'!$10:$10\"),0)),0)","v":0},null,null,{"$f":"IFERROR(INDEX(INDIRECT(\"'\"&A42&\"'!$18:$50\"),MATCH($AA$1,INDIRECT(\"'\"&A42&\"'!$A$18:$A$50\"),0),MATCH(Parts!$B42,INDIRECT(\"'\"&A42&\"'!$10:$10\"),0)),0)","v":0},null,null,{"$f":"IFERROR(INDEX(INDIRECT(\"'\"&A42&\"'!$18:$50\"),MATCH($AD$1,INDIRECT(\"'\"&A42&\"'!$A$18:$A$50\"),0),MATCH(Parts!$B42,INDIRECT(\"'\"&A42&\"'!$10:$10\"),0)),0)","v":0},null,null,{"$f":"IFERROR(INDEX(INDIRECT(\"'\"&A42&\"'!$18:$50\"),MATCH($AG$1,INDIRECT(\"'\"&A42&\"'!$A$18:$A$50\"),0),MATCH(Parts!$B42,INDIRECT(\"'\"&A42&\"'!$10:$10\"),0)),0)","v":0},null,"Dulas PS-ILR-001 power supply unit: €260.00",{"$f":"IFERROR(INDEX(INDIRECT(\"'\"&A42&\"'!$18:$50\"),MATCH($AJ$1,INDIRECT(\"'\"&A42&\"'!$A$18:$A$50\"),0),MATCH(Parts!$B42,INDIRECT(\"'\"&A42&\"'!$10:$10\"),0)),0)","v":0},260,"MCB fridge/Isolation switch: €19.05",{"$f":"IFERROR(INDEX(INDIRECT(\"'\"&A42&\"'!$18:$50\"),MATCH($AM$1,INDIRECT(\"'\"&A42&\"'!$A$18:$A$50\"),0),MATCH(Parts!$B42,INDIRECT(\"'\"&A42&\"'!$10:$10\"),0)),0)","v":0},19.05,null,{"$f":"IFERROR(INDEX(INDIRECT(\"'\"&A42&\"'!$18:$50\"),MATCH($AP$1,INDIRECT(\"'\"&A42&\"'!$A$18:$A$50\"),0),MATCH(Parts!$B42,INDIRECT(\"'\"&A42&\"'!$10:$10\"),0)),0)","v":0},null,null,{"$f":"IFERROR(INDEX(INDIRECT(\"'\"&A42&\"'!$18:$50\"),MATCH($AS$1,INDIRECT(\"'\"&A42&\"'!$A$18:$A$50\"),0),MATCH(Parts!$B42,INDIRECT(\"'\"&A42&\"'!$10:$10\"),0)),0)","v":0},null,null,{"$f":"IFERROR(INDEX(INDIRECT(\"'\"&A42&\"'!$18:$50\"),MATCH($AV$1,INDIRECT(\"'\"&A42&\"'!$A$18:$A$50\"),0),MATCH(Parts!$B42,INDIRECT(\"'\"&A42&\"'!$10:$10\"),0)),0)","v":0},null,null,{"$f":"IFERROR(INDEX(INDIRECT(\"'\"&A42&\"'!$18:$50\"),MATCH($AY$1,INDIRECT(\"'\"&A42&\"'!$A$18:$A$50\"),0),MATCH(Parts!$B42,INDIRECT(\"'\"&A42&\"'!$10:$10\"),0)),0)","v":0},null,null,{"$f":"IFERROR(INDEX(INDIRECT(\"'\"&A42&\"'!$18:$50\"),MATCH($BB$1,INDIRECT(\"'\"&A42&\"'!$A$18:$A$50\"),0),MATCH(Parts!$B42,INDIRECT(\"'\"&A42&\"'!$10:$10\"),0)),0)","v":0},null,null,{"$f":"IFERROR(INDEX(INDIRECT(\"'\"&A42&\"'!$18:$50\"),MATCH($BE$1,INDIRECT(\"'\"&A42&\"'!$A$18:$A$50\"),0),MATCH(Parts!$B42,INDIRECT(\"'\"&A42&\"'!$10:$10\"),0)),0)","v":0},null,null,{"$f":"IFERROR(INDEX(INDIRECT(\"'\"&A42&\"'!$18:$50\"),MATCH($BH$1,INDIRECT(\"'\"&A42&\"'!$A$18:$A$50\"),0),MATCH(Parts!$B42,INDIRECT(\"'\"&A42&\"'!$10:$10\"),0)),0)","v":0},null,null,{"$f":"IFERROR(INDEX(INDIRECT(\"'\"&A42&\"'!$18:$50\"),MATCH($BK$1,INDIRECT(\"'\"&A42&\"'!$A$18:$A$50\"),0),MATCH(Parts!$B42,INDIRECT(\"'\"&A42&\"'!$10:$10\"),0)),0)","v":0},null,null,{"$f":"IFERROR(INDEX(INDIRECT(\"'\"&A42&\"'!$18:$50\"),MATCH($BN$1,INDIRECT(\"'\"&A42&\"'!$A$18:$A$50\"),0),MATCH(Parts!$B42,INDIRECT(\"'\"&A42&\"'!$10:$10\"),0)),0)","v":0},null,null,{"$f":"IFERROR(INDEX(INDIRECT(\"'\"&A42&\"'!$18:$50\"),MATCH($BQ$1,INDIRECT(\"'\"&A42&\"'!$A$18:$A$50\"),0),MATCH(Parts!$B42,INDIRECT(\"'\"&A42&\"'!$10:$10\"),0)),0)","v":0},null,null,{"$f":"IFERROR(INDEX(INDIRECT(\"'\"&A42&\"'!$18:$50\"),MATCH($BT$1,INDIRECT(\"'\"&A42&\"'!$A$18:$A$50\"),0),MATCH(Parts!$B42,INDIRECT(\"'\"&A42&\"'!$10:$10\"),0)),0)","v":0},null,null,{"$f":"IFERROR(INDEX(INDIRECT(\"'\"&A42&\"'!$18:$50\"),MATCH($BW$1,INDIRECT(\"'\"&A42&\"'!$A$18:$A$50\"),0),MATCH(Parts!$B42,INDIRECT(\"'\"&A42&\"'!$10:$10\"),0)),0)","v":0},null,"Solar thermometer: € 35.00",{"$f":"IFERROR(INDEX(INDIRECT(\"'\"&A42&\"'!$18:$50\"),MATCH($BZ$1,INDIRECT(\"'\"&A42&\"'!$A$18:$A$50\"),0),MATCH(Parts!$B42,INDIRECT(\"'\"&A42&\"'!$10:$10\"),0)),0)","v":1},35,null,{"$f":"IFERROR(INDEX(INDIRECT(\"'\"&A42&\"'!$18:$50\"),MATCH($CC$1,INDIRECT(\"'\"&A42&\"'!$A$18:$A$50\"),0),MATCH(Parts!$B42,INDIRECT(\"'\"&A42&\"'!$10:$10\"),0)),0)","v":0},null,null,{"$f":"IFERROR(INDEX(INDIRECT(\"'\"&A42&\"'!$18:$50\"),MATCH($CF$1,INDIRECT(\"'\"&A42&\"'!$A$18:$A$50\"),0),MATCH(Parts!$B42,INDIRECT(\"'\"&A42&\"'!$10:$10\"),0)),0)","v":0},null,null,{"$f":"IFERROR(INDEX(INDIRECT(\"'\"&A42&\"'!$18:$50\"),MATCH($CI$1,INDIRECT(\"'\"&A42&\"'!$A$18:$A$50\"),0),MATCH(Parts!$B42,INDIRECT(\"'\"&A42&\"'!$10:$10\"),0)),0)","v":0},null,null,{"$f":"IFERROR(INDEX(INDIRECT(\"'\"&A42&\"'!$18:$50\"),MATCH($CL$1,INDIRECT(\"'\"&A42&\"'!$A$18:$A$50\"),0),MATCH(Parts!$B42,INDIRECT(\"'\"&A42&\"'!$10:$10\"),0)),0)","v":0},null,null,{"$f":"IFERROR(INDEX(INDIRECT(\"'\"&A42&\"'!$18:$50\"),MATCH($CO$1,INDIRECT(\"'\"&A42&\"'!$A$18:$A$50\"),0),MATCH(Parts!$B42,INDIRECT(\"'\"&A42&\"'!$10:$10\"),0)),0)","v":0},null,null,{"$f":"IFERROR(INDEX(INDIRECT(\"'\"&A42&\"'!$18:$50\"),MATCH($CR$1,INDIRECT(\"'\"&A42&\"'!$A$18:$A$50\"),0),MATCH(Parts!$B42,INDIRECT(\"'\"&A42&\"'!$10:$10\"),0)),0)","v":0},null,null,{"$f":"IFERROR(INDEX(INDIRECT(\"'\"&A42&\"'!$18:$50\"),MATCH($CU$1,INDIRECT(\"'\"&A42&\"'!$A$18:$A$50\"),0),MATCH(Parts!$B42,INDIRECT(\"'\"&A42&\"'!$10:$10\"),0)),0)","v":0},null,null,{"$f":"IFERROR(INDEX(INDIRECT(\"'\"&A42&\"'!$18:$50\"),MATCH($CX$1,INDIRECT(\"'\"&A42&\"'!$A$18:$A$50\"),0),MATCH(Parts!$B42,INDIRECT(\"'\"&A42&\"'!$10:$10\"),0)),0)","v":0},null,null,{"$f":"IFERROR(INDEX(INDIRECT(\"'\"&A42&\"'!$18:$50\"),MATCH($DA$1,INDIRECT(\"'\"&A42&\"'!$A$18:$A$50\"),0),MATCH(Parts!$B42,INDIRECT(\"'\"&A42&\"'!$10:$10\"),0)),0)","v":0},null,null,{"$f":"IFERROR(INDEX(INDIRECT(\"'\"&A42&\"'!$18:$50\"),MATCH($DD$1,INDIRECT(\"'\"&A42&\"'!$A$18:$A$50\"),0),MATCH(Parts!$B42,INDIRECT(\"'\"&A42&\"'!$10:$10\"),0)),0)","v":0},null,null,{"$f":"IFERROR(INDEX(INDIRECT(\"'\"&A42&\"'!$18:$50\"),MATCH($DG$1,INDIRECT(\"'\"&A42&\"'!$A$18:$A$50\"),0),MATCH(Parts!$B42,INDIRECT(\"'\"&A42&\"'!$10:$10\"),0)),0)","v":0},null,null,{"$f":"IFERROR(INDEX(INDIRECT(\"'\"&A42&\"'!$18:$50\"),MATCH($DJ$1,INDIRECT(\"'\"&A42&\"'!$A$18:$A$50\"),0),MATCH(Parts!$B42,INDIRECT(\"'\"&A42&\"'!$10:$10\"),0)),0)","v":0},null,null,{"$f":"IFERROR(INDEX(INDIRECT(\"'\"&A42&\"'!$18:$50\"),MATCH($DM$1,INDIRECT(\"'\"&A42&\"'!$A$18:$A$50\"),0),MATCH(Parts!$B42,INDIRECT(\"'\"&A42&\"'!$10:$10\"),0)),0)","v":0},null,null,{"$f":"IFERROR(INDEX(INDIRECT(\"'\"&A42&\"'!$18:$50\"),MATCH($DP$1,INDIRECT(\"'\"&A42&\"'!$A$18:$A$50\"),0),MATCH(Parts!$B42,INDIRECT(\"'\"&A42&\"'!$10:$10\"),0)),0)","v":0},null,null,{"$f":"IFERROR(INDEX(INDIRECT(\"'\"&A42&\"'!$18:$50\"),MATCH($DS$1,INDIRECT(\"'\"&A42&\"'!$A$18:$A$50\"),0),MATCH(Parts!$B42,INDIRECT(\"'\"&A42&\"'!$10:$10\"),0)),0)","v":0},null,null,{"$f":"IFERROR(INDEX(INDIRECT(\"'\"&A42&\"'!$18:$50\"),MATCH($DV$1,INDIRECT(\"'\"&A42&\"'!$A$18:$A$50\"),0),MATCH(Parts!$B42,INDIRECT(\"'\"&A42&\"'!$10:$10\"),0)),0)","v":0},null,null,{"$f":"IFERROR(INDEX(INDIRECT(\"'\"&A42&\"'!$18:$50\"),MATCH($DY$1,INDIRECT(\"'\"&A42&\"'!$A$18:$A$50\"),0),MATCH(Parts!$B42,INDIRECT(\"'\"&A42&\"'!$10:$10\"),0)),0)","v":0},null,null,{"$f":"IFERROR(INDEX(INDIRECT(\"'\"&A42&\"'!$18:$50\"),MATCH($EB$1,INDIRECT(\"'\"&A42&\"'!$A$18:$A$50\"),0),MATCH(Parts!$B42,INDIRECT(\"'\"&A42&\"'!$10:$10\"),0)),0)","v":0},null,null,{"$f":"IFERROR(INDEX(INDIRECT(\"'\"&A42&\"'!$18:$50\"),MATCH($EE$1,INDIRECT(\"'\"&A42&\"'!$A$18:$A$50\"),0),MATCH(Parts!$B42,INDIRECT(\"'\"&A42&\"'!$10:$10\"),0)),0)","v":0},null,null,{"$f":"IFERROR(INDEX(INDIRECT(\"'\"&A42&\"'!$18:$50\"),MATCH($EH$1,INDIRECT(\"'\"&A42&\"'!$A$18:$A$50\"),0),MATCH(Parts!$B42,INDIRECT(\"'\"&A42&\"'!$10:$10\"),0)),0)","v":0},null,"Fuse/ surge protection pack: € 12.00",{"$f":"IFERROR(INDEX(INDIRECT(\"'\"&A42&\"'!$18:$50\"),MATCH($EK$1,INDIRECT(\"'\"&A42&\"'!$A$18:$A$50\"),0),MATCH(Parts!$B42,INDIRECT(\"'\"&A42&\"'!$10:$10\"),0)),0)","v":0},12]
[{"$f":"PQS!A45","v":"ILR"},{"$f":"PQS!B45","v":"E003/079"},{"$f":"PQS!E45","v":"CFD-50"},"€",1166.5,null,{"$f":"IFERROR(INDEX(INDIRECT(\"'\"&A43&\"'!$18:$50\"),MATCH(Parts!F$1,INDIRECT(\"'\"&A43&\"'!$A$18:$A$50\"),0),MATCH(Parts!$B43,INDIRECT(\"'\"&A43&\"'!$10:$10\"),0)),0)","v":1},108,null,{"$f":"IFERROR(INDEX(INDIRECT(\"'\"&A43&\"'!$18:$50\"),MATCH($I$1,INDIRECT(\"'\"&A43&\"'!$A$18:$A$50\"),0),MATCH(Parts!$B43,INDIRECT(\"'\"&A43&\"'!$10:$10\"),0)),0)","v":1},2.5,null,{"$f":"IFERROR(INDEX(INDIRECT(\"'\"&A43&\"'!$18:$50\"),MATCH($L$1,INDIRECT(\"'\"&A43&\"'!$A$18:$A$50\"),0),MATCH(Parts!$B43,INDIRECT(\"'\"&A43&\"'!$10:$10\"),0)),0)","v":1},329,null,{"$f":"IFERROR(INDEX(INDIRECT(\"'\"&A43&\"'!$18:$50\"),MATCH($O$1,INDIRECT(\"'\"&A43&\"'!$A$18:$A$50\"),0),MATCH(Parts!$B43,INDIRECT(\"'\"&A43&\"'!$10:$10\"),0)),0)","v":0},null,null,{"$f":"IFERROR(INDEX(INDIRECT(\"'\"&A43&\"'!$18:$50\"),MATCH($R$1,INDIRECT(\"'\"&A43&\"'!$A$18:$A$50\"),0),MATCH(Parts!$B43,INDIRECT(\"'\"&A43&\"'!$10:$10\"),0)),0)","v":1},352,null,{"$f":"IFERROR(INDEX(INDIRECT(\"'\"&A43&\"'!$18:$50\"),MATCH($U$1,INDIRECT(\"'\"&A43&\"'!$A$18:$A$50\"),0),MATCH(Parts!$B43,INDIRECT(\"'\"&A43&\"'!$10:$10\"),0)),0)","v":1},90,null,{"$f":"IFERROR(INDEX(INDIRECT(\"'\"&A43&\"'!$18:$50\"),MATCH($X$1,INDIRECT(\"'\"&A43&\"'!$A$18:$A$50\"),0),MATCH(Parts!$B43,INDIRECT(\"'\"&A43&\"'!$10:$10\"),0)),0)","v":1},{"$f":"25+22","v":47},null,{"$f":"IFERROR(INDEX(INDIRECT(\"'\"&A43&\"'!$18:$50\"),MATCH($AA$1,INDIRECT(\"'\"&A43&\"'!$A$18:$A$50\"),0),MATCH(Parts!$B43,INDIRECT(\"'\"&A43&\"'!$10:$10\"),0)),0)","v":0},null,null,{"$f":"IFERROR(INDEX(INDIRECT(\"'\"&A43&\"'!$18:$50\"),MATCH($AD$1,INDIRECT(\"'\"&A43&\"'!$A$18:$A$50\"),0),MATCH(Parts!$B43,INDIRECT(\"'\"&A43&\"'!$10:$10\"),0)),0)","v":0},8,null,{"$f":"IFERROR(INDEX(INDIRECT(\"'\"&A43&\"'!$18:$50\"),MATCH($AG$1,INDIRECT(\"'\"&A43&\"'!$A$18:$A$50\"),0),MATCH(Parts!$B43,INDIRECT(\"'\"&A43&\"'!$10:$10\"),0)),0)","v":1},45,null,{"$f":"IFERROR(INDEX(INDIRECT(\"'\"&A43&\"'!$18:$50\"),MATCH($AJ$1,INDIRECT(\"'\"&A43&\"'!$A$18:$A$50\"),0),MATCH(Parts!$B43,INDIRECT(\"'\"&A43&\"'!$10:$10\"),0)),0)","v":0},null,null,{"$f":"IFERROR(INDEX(INDIRECT(\"'\"&A43&\"'!$18:$50\"),MATCH($AM$1,INDIRECT(\"'\"&A43&\"'!$A$18:$A$50\"),0),MATCH(Parts!$B43,INDIRECT(\"'\"&A43&\"'!$10:$10\"),0)),0)","v":1},4,null,{"$f":"IFERROR(INDEX(INDIRECT(\"'\"&A43&\"'!$18:$50\"),MATCH($AP$1,INDIRECT(\"'\"&A43&\"'!$A$18:$A$50\"),0),MATCH(Parts!$B43,INDIRECT(\"'\"&A43&\"'!$10:$10\"),0)),0)","v":0},null,null,{"$f":"IFERROR(INDEX(INDIRECT(\"'\"&A43&\"'!$18:$50\"),MATCH($AS$1,INDIRECT(\"'\"&A43&\"'!$A$18:$A$50\"),0),MATCH(Parts!$B43,INDIRECT(\"'\"&A43&\"'!$10:$10\"),0)),0)","v":0},null,null,{"$f":"IFERROR(INDEX(INDIRECT(\"'\"&A43&\"'!$18:$50\"),MATCH($AV$1,INDIRECT(\"'\"&A43&\"'!$A$18:$A$50\"),0),MATCH(Parts!$B43,INDIRECT(\"'\"&A43&\"'!$10:$10\"),0)),0)","v":0},null,null,{"$f":"IFERROR(INDEX(INDIRECT(\"'\"&A43&\"'!$18:$50\"),MATCH($AY$1,INDIRECT(\"'\"&A43&\"'!$A$18:$A$50\"),0),MATCH(Parts!$B43,INDIRECT(\"'\"&A43&\"'!$10:$10\"),0)),0)","v":0},null,null,{"$f":"IFERROR(INDEX(INDIRECT(\"'\"&A43&\"'!$18:$50\"),MATCH($BB$1,INDIRECT(\"'\"&A43&\"'!$A$18:$A$50\"),0),MATCH(Parts!$B43,INDIRECT(\"'\"&A43&\"'!$10:$10\"),0)),0)","v":0},null,null,{"$f":"IFERROR(INDEX(INDIRECT(\"'\"&A43&\"'!$18:$50\"),MATCH($BE$1,INDIRECT(\"'\"&A43&\"'!$A$18:$A$50\"),0),MATCH(Parts!$B43,INDIRECT(\"'\"&A43&\"'!$10:$10\"),0)),0)","v":0},null,null,{"$f":"IFERROR(INDEX(INDIRECT(\"'\"&A43&\"'!$18:$50\"),MATCH($BH$1,INDIRECT(\"'\"&A43&\"'!$A$18:$A$50\"),0),MATCH(Parts!$B43,INDIRECT(\"'\"&A43&\"'!$10:$10\"),0)),0)","v":1},2,null,{"$f":"IFERROR(INDEX(INDIRECT(\"'\"&A43&\"'!$18:$50\"),MATCH($BK$1,INDIRECT(\"'\"&A43&\"'!$A$18:$A$50\"),0),MATCH(Parts!$B43,INDIRECT(\"'\"&A43&\"'!$10:$10\"),0)),0)","v":0},null,null,{"$f":"IFERROR(INDEX(INDIRECT(\"'\"&A43&\"'!$18:$50\"),MATCH($BN$1,INDIRECT(\"'\"&A43&\"'!$A$18:$A$50\"),0),MATCH(Parts!$B43,INDIRECT(\"'\"&A43&\"'!$10:$10\"),0)),0)","v":0},null,null,{"$f":"IFERROR(INDEX(INDIRECT(\"'\"&A43&\"'!$18:$50\"),MATCH($BQ$1,INDIRECT(\"'\"&A43&\"'!$A$18:$A$50\"),0),MATCH(Parts!$B43,INDIRECT(\"'\"&A43&\"'!$10:$10\"),0)),0)","v":0},null,null,{"$f":"IFERROR(INDEX(INDIRECT(\"'\"&A43&\"'!$18:$50\"),MATCH($BT$1,INDIRECT(\"'\"&A43&\"'!$A$18:$A$50\"),0),MATCH(Parts!$B43,INDIRECT(\"'\"&A43&\"'!$10:$10\"),0)),0)","v":0},null,null,{"$f":"IFERROR(INDEX(INDIRECT(\"'\"&A43&\"'!$18:$50\"),MATCH($BW$1,INDIRECT(\"'\"&A43&\"'!$A$18:$A$50\"),0),MATCH(Parts!$B43,INDIRECT(\"'\"&A43&\"'!$10:$10\"),0)),0)","v":1},179,null,{"$f":"IFERROR(INDEX(INDIRECT(\"'\"&A43&\"'!$18:$50\"),MATCH($BZ$1,INDIRECT(\"'\"&A43&\"'!$A$18:$A$50\"),0),MATCH(Parts!$B43,INDIRECT(\"'\"&A43&\"'!$10:$10\"),0)),0)","v":0},null,null,{"$f":"IFERROR(INDEX(INDIRECT(\"'\"&A43&\"'!$18:$50\"),MATCH($CC$1,INDIRECT(\"'\"&A43&\"'!$A$18:$A$50\"),0),MATCH(Parts!$B43,INDIRECT(\"'\"&A43&\"'!$10:$10\"),0)),0)","v":0},null,null,{"$f":"IFERROR(INDEX(INDIRECT(\"'\"&A43&\"'!$18:$50\"),MATCH($CF$1,INDIRECT(\"'\"&A43&\"'!$A$18:$A$50\"),0),MATCH(Parts!$B43,INDIRECT(\"'\"&A43&\"'!$10:$10\"),0)),0)","v":0},null,null,{"$f":"IFERROR(INDEX(INDIRECT(\"'\"&A43&\"'!$18:$50\"),MATCH($CI$1,INDIRECT(\"'\"&A43&\"'!$A$18:$A$50\"),0),MATCH(Parts!$B43,INDIRECT(\"'\"&A43&\"'!$10:$10\"),0)),0)","v":1},8,null,{"$f":"IFERROR(INDEX(INDIRECT(\"'\"&A43&\"'!$18:$50\"),MATCH($CL$1,INDIRECT(\"'\"&A43&\"'!$A$18:$A$50\"),0),MATCH(Parts!$B43,INDIRECT(\"'\"&A43&\"'!$10:$10\"),0)),0)","v":0},null,null,{"$f":"IFERROR(INDEX(INDIRECT(\"'\"&A43&\"'!$18:$50\"),MATCH($CO$1,INDIRECT(\"'\"&A43&\"'!$A$18:$A$50\"),0),MATCH(Parts!$B43,INDIRECT(\"'\"&A43&\"'!$10:$10\"),0)),0)","v":0},null,null,{"$f":"IFERROR(INDEX(INDIRECT(\"'\"&A43&\"'!$18:$50\"),MATCH($CR$1,INDIRECT(\"'\"&A43&\"'!$A$18:$A$50\"),0),MATCH(Parts!$B43,INDIRECT(\"'\"&A43&\"'!$10:$10\"),0)),0)","v":0},null,null,{"$f":"IFERROR(INDEX(INDIRECT(\"'\"&A43&\"'!$18:$50\"),MATCH($CU$1,INDIRECT(\"'\"&A43&\"'!$A$18:$A$50\"),0),MATCH(Parts!$B43,INDIRECT(\"'\"&A43&\"'!$10:$10\"),0)),0)","v":0},null,null,{"$f":"IFERROR(INDEX(INDIRECT(\"'\"&A43&\"'!$18:$50\"),MATCH($CX$1,INDIRECT(\"'\"&A43&\"'!$A$18:$A$50\"),0),MATCH(Parts!$B43,INDIRECT(\"'\"&A43&\"'!$10:$10\"),0)),0)","v":0},null,null,{"$f":"IFERROR(INDEX(INDIRECT(\"'\"&A43&\"'!$18:$50\"),MATCH($DA$1,INDIRECT(\"'\"&A43&\"'!$A$18:$A$50\"),0),MATCH(Parts!$B43,INDIRECT(\"'\"&A43&\"'!$10:$10\"),0)),0)","v":0},null,null,{"$f":"IFERROR(INDEX(INDIRECT(\"'\"&A43&\"'!$18:$50\"),MATCH($DD$1,INDIRECT(\"'\"&A43&\"'!$A$18:$A$50\"),0),MATCH(Parts!$B43,INDIRECT(\"'\"&A43&\"'!$10:$10\"),0)),0)","v":0},null,null,{"$f":"IFERROR(INDEX(INDIRECT(\"'\"&A43&\"'!$18:$50\"),MATCH($DG$1,INDIRECT(\"'\"&A43&\"'!$A$18:$A$50\"),0),MATCH(Parts!$B43,INDIRECT(\"'\"&A43&\"'!$10:$10\"),0)),0)","v":0},null,null,{"$f":"IFERROR(INDEX(INDIRECT(\"'\"&A43&\"'!$18:$50\"),MATCH($DJ$1,INDIRECT(\"'\"&A43&\"'!$A$18:$A$50\"),0),MATCH(Parts!$B43,INDIRECT(\"'\"&A43&\"'!$10:$10\"),0)),0)","v":0},null,null,{"$f":"IFERROR(INDEX(INDIRECT(\"'\"&A43&\"'!$18:$50\"),MATCH($DM$1,INDIRECT(\"'\"&A43&\"'!$A$18:$A$50\"),0),MATCH(Parts!$B43,INDIRECT(\"'\"&A43&\"'!$10:$10\"),0)),0)","v":0},null,null,{"$f":"IFERROR(INDEX(INDIRECT(\"'\"&A43&\"'!$18:$50\"),MATCH($DP$1,INDIRECT(\"'\"&A43&\"'!$A$18:$A$50\"),0),MATCH(Parts!$B43,INDIRECT(\"'\"&A43&\"'!$10:$10\"),0)),0)","v":0},null,null,{"$f":"IFERROR(INDEX(INDIRECT(\"'\"&A43&\"'!$18:$50\"),MATCH($DS$1,INDIRECT(\"'\"&A43&\"'!$A$18:$A$50\"),0),MATCH(Parts!$B43,INDIRECT(\"'\"&A43&\"'!$10:$10\"),0)),0)","v":0},null,null,{"$f":"IFERROR(INDEX(INDIRECT(\"'\"&A43&\"'!$18:$50\"),MATCH($DV$1,INDIRECT(\"'\"&A43&\"'!$A$18:$A$50\"),0),MATCH(Parts!$B43,INDIRECT(\"'\"&A43&\"'!$10:$10\"),0)),0)","v":0},null,null,{"$f":"IFERROR(INDEX(INDIRECT(\"'\"&A43&\"'!$18:$50\"),MATCH($DY$1,INDIRECT(\"'\"&A43&\"'!$A$18:$A$50\"),0),MATCH(Parts!$B43,INDIRECT(\"'\"&A43&\"'!$10:$10\"),0)),0)","v":0},null,null,{"$f":"IFERROR(INDEX(INDIRECT(\"'\"&A43&\"'!$18:$50\"),MATCH($EB$1,INDIRECT(\"'\"&A43&\"'!$A$18:$A$50\"),0),MATCH(Parts!$B43,INDIRECT(\"'\"&A43&\"'!$10:$10\"),0)),0)","v":0},null,null,{"$f":"IFERROR(INDEX(INDIRECT(\"'\"&A43&\"'!$18:$50\"),MATCH($EE$1,INDIRECT(\"'\"&A43&\"'!$A$18:$A$50\"),0),MATCH(Parts!$B43,INDIRECT(\"'\"&A43&\"'!$10:$10\"),0)),0)","v":0},null,null,{"$f":"IFERROR(INDEX(INDIRECT(\"'\"&A43&\"'!$18:$50\"),MATCH($EH$1,INDIRECT(\"'\"&A43&\"'!$A$18:$A$50\"),0),MATCH(Parts!$B43,INDIRECT(\"'\"&A43&\"'!$10:$10\"),0)),0)","v":0},null,null,{"$f":"IFERROR(INDEX(INDIRECT(\"'\"&A43&\"'!$18:$50\"),MATCH($EK$1,INDIRECT(\"'\"&A43&\"'!$A$18:$A$50\"),0),MATCH(Parts!$B43,INDIRECT(\"'\"&A43&\"'!$10:$10\"),0)),0)","v":0}]
[{"$f":"PQS!A46","v":"ILR"},{"$f":"PQS!B46","v":"E003/080"},{"$f":"PQS!E46","v":"GVR 51 LITE AC*"},"€",207,"Compressor i8 ; RCM97749257:57.00USD",{"$f":"IFERROR(INDEX(INDIRECT(\"'\"&A44&\"'!$18:$50\"),MATCH(Parts!F$1,INDIRECT(\"'\"&A44&\"'!$A$18:$A$50\"),0),MATCH(Parts!$B44,INDIRECT(\"'\"&A44&\"'!$10:$10\"),0)),0)","v":1},57,null,{"$f":"IFERROR(INDEX(INDIRECT(\"'\"&A44&\"'!$18:$50\"),MATCH($I$1,INDIRECT(\"'\"&A44&\"'!$A$18:$A$50\"),0),MATCH(Parts!$B44,INDIRECT(\"'\"&A44&\"'!$10:$10\"),0)),0)","v":0},null,null,{"$f":"IFERROR(INDEX(INDIRECT(\"'\"&A44&\"'!$18:$50\"),MATCH($L$1,INDIRECT(\"'\"&A44&\"'!$A$18:$A$50\"),0),MATCH(Parts!$B44,INDIRECT(\"'\"&A44&\"'!$10:$10\"),0)),0)","v":0},null,null,{"$f":"IFERROR(INDEX(INDIRECT(\"'\"&A44&\"'!$18:$50\"),MATCH($O$1,INDIRECT(\"'\"&A44&\"'!$A$18:$A$50\"),0),MATCH(Parts!$B44,INDIRECT(\"'\"&A44&\"'!$10:$10\"),0)),0)","v":0},null,"Elec.CNTRL Card  RCC97749260:30.00USD",{"$f":"IFERROR(INDEX(INDIRECT(\"'\"&A44&\"'!$18:$50\"),MATCH($R$1,INDIRECT(\"'\"&A44&\"'!$A$18:$A$50\"),0),MATCH(Parts!$B44,INDIRECT(\"'\"&A44&\"'!$10:$10\"),0)),0)","v":1},30,null,{"$f":"IFERROR(INDEX(INDIRECT(\"'\"&A44&\"'!$18:$50\"),MATCH($U$1,INDIRECT(\"'\"&A44&\"'!$A$18:$A$50\"),0),MATCH(Parts!$B44,INDIRECT(\"'\"&A44&\"'!$10:$10\"),0)),0)","v":0},null,null,{"$f":"IFERROR(INDEX(INDIRECT(\"'\"&A44&\"'!$18:$50\"),MATCH($X$1,INDIRECT(\"'\"&A44&\"'!$A$18:$A$50\"),0),MATCH(Parts!$B44,INDIRECT(\"'\"&A44&\"'!$10:$10\"),0)),0)","v":0},null,null,{"$f":"IFERROR(INDEX(INDIRECT(\"'\"&A44&\"'!$18:$50\"),MATCH($AA$1,INDIRECT(\"'\"&A44&\"'!$A$18:$A$50\"),0),MATCH(Parts!$B44,INDIRECT(\"'\"&A44&\"'!$10:$10\"),0)),0)","v":0},null,null,{"$f":"IFERROR(INDEX(INDIRECT(\"'\"&A44&\"'!$18:$50\"),MATCH($AD$1,INDIRECT(\"'\"&A44&\"'!$A$18:$A$50\"),0),MATCH(Parts!$B44,INDIRECT(\"'\"&A44&\"'!$10:$10\"),0)),0)","v":0},null,null,{"$f":"IFERROR(INDEX(INDIRECT(\"'\"&A44&\"'!$18:$50\"),MATCH($AG$1,INDIRECT(\"'\"&A44&\"'!$A$18:$A$50\"),0),MATCH(Parts!$B44,INDIRECT(\"'\"&A44&\"'!$10:$10\"),0)),0)","v":0},null,null,{"$f":"IFERROR(INDEX(INDIRECT(\"'\"&A44&\"'!$18:$50\"),MATCH($AJ$1,INDIRECT(\"'\"&A44&\"'!$A$18:$A$50\"),0),MATCH(Parts!$B44,INDIRECT(\"'\"&A44&\"'!$10:$10\"),0)),0)","v":0},null,null,{"$f":"IFERROR(INDEX(INDIRECT(\"'\"&A44&\"'!$18:$50\"),MATCH($AM$1,INDIRECT(\"'\"&A44&\"'!$A$18:$A$50\"),0),MATCH(Parts!$B44,INDIRECT(\"'\"&A44&\"'!$10:$10\"),0)),0)","v":0},null,"Voltage Stabilizer; RCM97749357: 25.00USD",{"$f":"IFERROR(INDEX(INDIRECT(\"'\"&A44&\"'!$18:$50\"),MATCH($AP$1,INDIRECT(\"'\"&A44&\"'!$A$18:$A$50\"),0),MATCH(Parts!$B44,INDIRECT(\"'\"&A44&\"'!$10:$10\"),0)),0)","v":1},25,null,{"$f":"IFERROR(INDEX(INDIRECT(\"'\"&A44&\"'!$18:$50\"),MATCH($AS$1,INDIRECT(\"'\"&A44&\"'!$A$18:$A$50\"),0),MATCH(Parts!$B44,INDIRECT(\"'\"&A44&\"'!$10:$10\"),0)),0)","v":0},null,null,{"$f":"IFERROR(INDEX(INDIRECT(\"'\"&A44&\"'!$18:$50\"),MATCH($AV$1,INDIRECT(\"'\"&A44&\"'!$A$18:$A$50\"),0),MATCH(Parts!$B44,INDIRECT(\"'\"&A44&\"'!$10:$10\"),0)),0)","v":0},null,"Relay +OLP ; RRE97749258: 2.00USD",{"$f":"IFERROR(INDEX(INDIRECT(\"'\"&A44&\"'!$18:$50\"),MATCH($AY$1,INDIRECT(\"'\"&A44&\"'!$A$18:$A$50\"),0),MATCH(Parts!$B44,INDIRECT(\"'\"&A44&\"'!$10:$10\"),0)),0)","v":1},2,"Capacitor; RFN97749263:1.00USD",{"$f":"IFERROR(INDEX(INDIRECT(\"'\"&A44&\"'!$18:$50\"),MATCH($BB$1,INDIRECT(\"'\"&A44&\"'!$A$18:$A$50\"),0),MATCH(Parts!$B44,INDIRECT(\"'\"&A44&\"'!$10:$10\"),0)),0)","v":1},1,null,{"$f":"IFERROR(INDEX(INDIRECT(\"'\"&A44&\"'!$18:$50\"),MATCH($BE$1,INDIRECT(\"'\"&A44&\"'!$A$18:$A$50\"),0),MATCH(Parts!$B44,INDIRECT(\"'\"&A44&\"'!$10:$10\"),0)),0)","v":0},null,null,{"$f":"IFERROR(INDEX(INDIRECT(\"'\"&A44&\"'!$18:$50\"),MATCH($BH$1,INDIRECT(\"'\"&A44&\"'!$A$18:$A$50\"),0),MATCH(Parts!$B44,INDIRECT(\"'\"&A44&\"'!$10:$10\"),0)),0)","v":0},null,null,{"$f":"IFERROR(INDEX(INDIRECT(\"'\"&A44&\"'!$18:$50\"),MATCH($BK$1,INDIRECT(\"'\"&A44&\"'!$A$18:$A$50\"),0),MATCH(Parts!$B44,INDIRECT(\"'\"&A44&\"'!$10:$10\"),0)),0)","v":0},null,null,{"$f":"IFERROR(INDEX(INDIRECT(\"'\"&A44&\"'!$18:$50\"),MATCH($BN$1,INDIRECT(\"'\"&A44&\"'!$A$18:$A$50\"),0),MATCH(Parts!$B44,INDIRECT(\"'\"&A44&\"'!$10:$10\"),0)),0)","v":0},null,null,{"$f":"IFERROR(INDEX(INDIRECT(\"'\"&A44&\"'!$18:$50\"),MATCH($BQ$1,INDIRECT(\"'\"&A44&\"'!$A$18:$A$50\"),0),MATCH(Parts!$B44,INDIRECT(\"'\"&A44&\"'!$10:$10\"),0)),0)","v":0},null,"Door Hinge, RMS97749264: 9.00USD; Door Latch, RMS97749269:6.50USD",{"$f":"IFERROR(INDEX(INDIRECT(\"'\"&A44&\"'!$18:$50\"),MATCH($BT$1,INDIRECT(\"'\"&A44&\"'!$A$18:$A$50\"),0),MATCH(Parts!$B44,INDIRECT(\"'\"&A44&\"'!$10:$10\"),0)),0)","v":1},15.5,null,{"$f":"IFERROR(INDEX(INDIRECT(\"'\"&A44&\"'!$18:$50\"),MATCH($BW$1,INDIRECT(\"'\"&A44&\"'!$A$18:$A$50\"),0),MATCH(Parts!$B44,INDIRECT(\"'\"&A44&\"'!$10:$10\"),0)),0)","v":0},null,"Berlinger Fridge Tag 2",{"$f":"IFERROR(INDEX(INDIRECT(\"'\"&A44&\"'!$18:$50\"),MATCH($BZ$1,INDIRECT(\"'\"&A44&\"'!$A$18:$A$50\"),0),MATCH(Parts!$B44,INDIRECT(\"'\"&A44&\"'!$10:$10\"),0)),0)","v":1},75,null,{"$f":"IFERROR(INDEX(INDIRECT(\"'\"&A44&\"'!$18:$50\"),MATCH($CC$1,INDIRECT(\"'\"&A44&\"'!$A$18:$A$50\"),0),MATCH(Parts!$B44,INDIRECT(\"'\"&A44&\"'!$10:$10\"),0)),0)","v":0},null,"Door Handle, RMS97749265:1.50USD",{"$f":"IFERROR(INDEX(INDIRECT(\"'\"&A44&\"'!$18:$50\"),MATCH($CF$1,INDIRECT(\"'\"&A44&\"'!$A$18:$A$50\"),0),MATCH(Parts!$B44,INDIRECT(\"'\"&A44&\"'!$10:$10\"),0)),0)","v":1},1.5,null,{"$f":"IFERROR(INDEX(INDIRECT(\"'\"&A44&\"'!$18:$50\"),MATCH($CI$1,INDIRECT(\"'\"&A44&\"'!$A$18:$A$50\"),0),MATCH(Parts!$B44,INDIRECT(\"'\"&A44&\"'!$10:$10\"),0)),0)","v":0},null,null,{"$f":"IFERROR(INDEX(INDIRECT(\"'\"&A44&\"'!$18:$50\"),MATCH($CL$1,INDIRECT(\"'\"&A44&\"'!$A$18:$A$50\"),0),MATCH(Parts!$B44,INDIRECT(\"'\"&A44&\"'!$10:$10\"),0)),0)","v":0},null,null,{"$f":"IFERROR(INDEX(INDIRECT(\"'\"&A44&\"'!$18:$50\"),MATCH($CO$1,INDIRECT(\"'\"&A44&\"'!$A$18:$A$50\"),0),MATCH(Parts!$B44,INDIRECT(\"'\"&A44&\"'!$10:$10\"),0)),0)","v":0},null,null,{"$f":"IFERROR(INDEX(INDIRECT(\"'\"&A44&\"'!$18:$50\"),MATCH($CR$1,INDIRECT(\"'\"&A44&\"'!$A$18:$A$50\"),0),MATCH(Parts!$B44,INDIRECT(\"'\"&A44&\"'!$10:$10\"),0)),0)","v":0},null,null,{"$f":"IFERROR(INDEX(INDIRECT(\"'\"&A44&\"'!$18:$50\"),MATCH($CU$1,INDIRECT(\"'\"&A44&\"'!$A$18:$A$50\"),0),MATCH(Parts!$B44,INDIRECT(\"'\"&A44&\"'!$10:$10\"),0)),0)","v":0},null,null,{"$f":"IFERROR(INDEX(INDIRECT(\"'\"&A44&\"'!$18:$50\"),MATCH($CX$1,INDIRECT(\"'\"&A44&\"'!$A$18:$A$50\"),0),MATCH(Parts!$B44,INDIRECT(\"'\"&A44&\"'!$10:$10\"),0)),0)","v":0},null,null,{"$f":"IFERROR(INDEX(INDIRECT(\"'\"&A44&\"'!$18:$50\"),MATCH($DA$1,INDIRECT(\"'\"&A44&\"'!$A$18:$A$50\"),0),MATCH(Parts!$B44,INDIRECT(\"'\"&A44&\"'!$10:$10\"),0)),0)","v":0},null,null,{"$f":"IFERROR(INDEX(INDIRECT(\"'\"&A44&\"'!$18:$50\"),MATCH($DD$1,INDIRECT(\"'\"&A44&\"'!$A$18:$A$50\"),0),MATCH(Parts!$B44,INDIRECT(\"'\"&A44&\"'!$10:$10\"),0)),0)","v":0},null,null,{"$f":"IFERROR(INDEX(INDIRECT(\"'\"&A44&\"'!$18:$50\"),MATCH($DG$1,INDIRECT(\"'\"&A44&\"'!$A$18:$A$50\"),0),MATCH(Parts!$B44,INDIRECT(\"'\"&A44&\"'!$10:$10\"),0)),0)","v":0},null,null,{"$f":"IFERROR(INDEX(INDIRECT(\"'\"&A44&\"'!$18:$50\"),MATCH($DJ$1,INDIRECT(\"'\"&A44&\"'!$A$18:$A$50\"),0),MATCH(Parts!$B44,INDIRECT(\"'\"&A44&\"'!$10:$10\"),0)),0)","v":0},null,null,{"$f":"IFERROR(INDEX(INDIRECT(\"'\"&A44&\"'!$18:$50\"),MATCH($DM$1,INDIRECT(\"'\"&A44&\"'!$A$18:$A$50\"),0),MATCH(Parts!$B44,INDIRECT(\"'\"&A44&\"'!$10:$10\"),0)),0)","v":0},null,null,{"$f":"IFERROR(INDEX(INDIRECT(\"'\"&A44&\"'!$18:$50\"),MATCH($DP$1,INDIRECT(\"'\"&A44&\"'!$A$18:$A$50\"),0),MATCH(Parts!$B44,INDIRECT(\"'\"&A44&\"'!$10:$10\"),0)),0)","v":0},null,null,{"$f":"IFERROR(INDEX(INDIRECT(\"'\"&A44&\"'!$18:$50\"),MATCH($DS$1,INDIRECT(\"'\"&A44&\"'!$A$18:$A$50\"),0),MATCH(Parts!$B44,INDIRECT(\"'\"&A44&\"'!$10:$10\"),0)),0)","v":0},null,null,{"$f":"IFERROR(INDEX(INDIRECT(\"'\"&A44&\"'!$18:$50\"),MATCH($DV$1,INDIRECT(\"'\"&A44&\"'!$A$18:$A$50\"),0),MATCH(Parts!$B44,INDIRECT(\"'\"&A44&\"'!$10:$10\"),0)),0)","v":0},null,null,{"$f":"IFERROR(INDEX(INDIRECT(\"'\"&A44&\"'!$18:$50\"),MATCH($DY$1,INDIRECT(\"'\"&A44&\"'!$A$18:$A$50\"),0),MATCH(Parts!$B44,INDIRECT(\"'\"&A44&\"'!$10:$10\"),0)),0)","v":0},null,null,{"$f":"IFERROR(INDEX(INDIRECT(\"'\"&A44&\"'!$18:$50\"),MATCH($EB$1,INDIRECT(\"'\"&A44&\"'!$A$18:$A$50\"),0),MATCH(Parts!$B44,INDIRECT(\"'\"&A44&\"'!$10:$10\"),0)),0)","v":0},null,null,{"$f":"IFERROR(INDEX(INDIRECT(\"'\"&A44&\"'!$18:$50\"),MATCH($EE$1,INDIRECT(\"'\"&A44&\"'!$A$18:$A$50\"),0),MATCH(Parts!$B44,INDIRECT(\"'\"&A44&\"'!$10:$10\"),0)),0)","v":0},null,null,{"$f":"IFERROR(INDEX(INDIRECT(\"'\"&A44&\"'!$18:$50\"),MATCH($EH$1,INDIRECT(\"'\"&A44&\"'!$A$18:$A$50\"),0),MATCH(Parts!$B44,INDIRECT(\"'\"&A44&\"'!$10:$10\"),0)),0)","v":0},null,null,{"$f":"IFERROR(INDEX(INDIRECT(\"'\"&A44&\"'!$18:$50\"),MATCH($EK$1,INDIRECT(\"'\"&A44&\"'!$A$18:$A$50\"),0),MATCH(Parts!$B44,INDIRECT(\"'\"&A44&\"'!$10:$10\"),0)),0)","v":0}]
[{"$f":"PQS!A47","v":"ILR"},{"$f":"PQS!B47","v":"E003/081"},{"$f":"PQS!E47","v":"GVR 75 Lite*"},"€",207,"Compressor i8 ; RCM97749257:57.00USD",{"$f":"IFERROR(INDEX(INDIRECT(\"'\"&A45&\"'!$18:$50\"),MATCH(Parts!F$1,INDIRECT(\"'\"&A45&\"'!$A$18:$A$50\"),0),MATCH(Parts!$B45,INDIRECT(\"'\"&A45&\"'!$10:$10\"),0)),0)","v":1},57,null,{"$f":"IFERROR(INDEX(INDIRECT(\"'\"&A45&\"'!$18:$50\"),MATCH($I$1,INDIRECT(\"'\"&A45&\"'!$A$18:$A$50\"),0),MATCH(Parts!$B45,INDIRECT(\"'\"&A45&\"'!$10:$10\"),0)),0)","v":0},null,null,{"$f":"IFERROR(INDEX(INDIRECT(\"'\"&A45&\"'!$18:$50\"),MATCH($L$1,INDIRECT(\"'\"&A45&\"'!$A$18:$A$50\"),0),MATCH(Parts!$B45,INDIRECT(\"'\"&A45&\"'!$10:$10\"),0)),0)","v":0},null,null,{"$f":"IFERROR(INDEX(INDIRECT(\"'\"&A45&\"'!$18:$50\"),MATCH($O$1,INDIRECT(\"'\"&A45&\"'!$A$18:$A$50\"),0),MATCH(Parts!$B45,INDIRECT(\"'\"&A45&\"'!$10:$10\"),0)),0)","v":0},null,"Elec.CNTRL Card  RCC97749260:30.00USD",{"$f":"IFERROR(INDEX(INDIRECT(\"'\"&A45&\"'!$18:$50\"),MATCH($R$1,INDIRECT(\"'\"&A45&\"'!$A$18:$A$50\"),0),MATCH(Parts!$B45,INDIRECT(\"'\"&A45&\"'!$10:$10\"),0)),0)","v":1},30,null,{"$f":"IFERROR(INDEX(INDIRECT(\"'\"&A45&\"'!$18:$50\"),MATCH($U$1,INDIRECT(\"'\"&A45&\"'!$A$18:$A$50\"),0),MATCH(Parts!$B45,INDIRECT(\"'\"&A45&\"'!$10:$10\"),0)),0)","v":0},null,null,{"$f":"IFERROR(INDEX(INDIRECT(\"'\"&A45&\"'!$18:$50\"),MATCH($X$1,INDIRECT(\"'\"&A45&\"'!$A$18:$A$50\"),0),MATCH(Parts!$B45,INDIRECT(\"'\"&A45&\"'!$10:$10\"),0)),0)","v":0},null,null,{"$f":"IFERROR(INDEX(INDIRECT(\"'\"&A45&\"'!$18:$50\"),MATCH($AA$1,INDIRECT(\"'\"&A45&\"'!$A$18:$A$50\"),0),MATCH(Parts!$B45,INDIRECT(\"'\"&A45&\"'!$10:$10\"),0)),0)","v":0},null,null,{"$f":"IFERROR(INDEX(INDIRECT(\"'\"&A45&\"'!$18:$50\"),MATCH($AD$1,INDIRECT(\"'\"&A45&\"'!$A$18:$A$50\"),0),MATCH(Parts!$B45,INDIRECT(\"'\"&A45&\"'!$10:$10\"),0)),0)","v":0},null,null,{"$f":"IFERROR(INDEX(INDIRECT(\"'\"&A45&\"'!$18:$50\"),MATCH($AG$1,INDIRECT(\"'\"&A45&\"'!$A$18:$A$50\"),0),MATCH(Parts!$B45,INDIRECT(\"'\"&A45&\"'!$10:$10\"),0)),0)","v":0},null,null,{"$f":"IFERROR(INDEX(INDIRECT(\"'\"&A45&\"'!$18:$50\"),MATCH($AJ$1,INDIRECT(\"'\"&A45&\"'!$A$18:$A$50\"),0),MATCH(Parts!$B45,INDIRECT(\"'\"&A45&\"'!$10:$10\"),0)),0)","v":0},null,null,{"$f":"IFERROR(INDEX(INDIRECT(\"'\"&A45&\"'!$18:$50\"),MATCH($AM$1,INDIRECT(\"'\"&A45&\"'!$A$18:$A$50\"),0),MATCH(Parts!$B45,INDIRECT(\"'\"&A45&\"'!$10:$10\"),0)),0)","v":0},null,"Voltage Stabilizer; RCM97749357: 25.00USD",{"$f":"IFERROR(INDEX(INDIRECT(\"'\"&A45&\"'!$18:$50\"),MATCH($AP$1,INDIRECT(\"'\"&A45&\"'!$A$18:$A$50\"),0),MATCH(Parts!$B45,INDIRECT(\"'\"&A45&\"'!$10:$10\"),0)),0)","v":1},25,null,{"$f":"IFERROR(INDEX(INDIRECT(\"'\"&A45&\"'!$18:$50\"),MATCH($AS$1,INDIRECT(\"'\"&A45&\"'!$A$18:$A$50\"),0),MATCH(Parts!$B45,INDIRECT(\"'\"&A45&\"'!$10:$10\"),0)),0)","v":0},null,null,{"$f":"IFERROR(INDEX(INDIRECT(\"'\"&A45&\"'!$18:$50\"),MATCH($AV$1,INDIRECT(\"'\"&A45&\"'!$A$18:$A$50\"),0),MATCH(Parts!$B45,INDIRECT(\"'\"&A45&\"'!$10:$10\"),0)),0)","v":0},null,"Relay +OLP ; RRE97749258: 2.00USD",{"$f":"IFERROR(INDEX(INDIRECT(\"'\"&A45&\"'!$18:$50\"),MATCH($AY$1,INDIRECT(\"'\"&A45&\"'!$A$18:$A$50\"),0),MATCH(Parts!$B45,INDIRECT(\"'\"&A45&\"'!$10:$10\"),0)),0)","v":1},2,"Capacitor; RFN97749263:1.00USD",{"$f":"IFERROR(INDEX(INDIRECT(\"'\"&A45&\"'!$18:$50\"),MATCH($BB$1,INDIRECT(\"'\"&A45&\"'!$A$18:$A$50\"),0),MATCH(Parts!$B45,INDIRECT(\"'\"&A45&\"'!$10:$10\"),0)),0)","v":1},1,null,{"$f":"IFERROR(INDEX(INDIRECT(\"'\"&A45&\"'!$18:$50\"),MATCH($BE$1,INDIRECT(\"'\"&A45&\"'!$A$18:$A$50\"),0),MATCH(Parts!$B45,INDIRECT(\"'\"&A45&\"'!$10:$10\"),0)),0)","v":0},null,null,{"$f":"IFERROR(INDEX(INDIRECT(\"'\"&A45&\"'!$18:$50\"),MATCH($BH$1,INDIRECT(\"'\"&A45&\"'!$A$18:$A$50\"),0),MATCH(Parts!$B45,INDIRECT(\"'\"&A45&\"'!$10:$10\"),0)),0)","v":0},null,null,{"$f":"IFERROR(INDEX(INDIRECT(\"'\"&A45&\"'!$18:$50\"),MATCH($BK$1,INDIRECT(\"'\"&A45&\"'!$A$18:$A$50\"),0),MATCH(Parts!$B45,INDIRECT(\"'\"&A45&\"'!$10:$10\"),0)),0)","v":0},null,null,{"$f":"IFERROR(INDEX(INDIRECT(\"'\"&A45&\"'!$18:$50\"),MATCH($BN$1,INDIRECT(\"'\"&A45&\"'!$A$18:$A$50\"),0),MATCH(Parts!$B45,INDIRECT(\"'\"&A45&\"'!$10:$10\"),0)),0)","v":0},null,null,{"$f":"IFERROR(INDEX(INDIRECT(\"'\"&A45&\"'!$18:$50\"),MATCH($BQ$1,INDIRECT(\"'\"&A45&\"'!$A$18:$A$50\"),0),MATCH(Parts!$B45,INDIRECT(\"'\"&A45&\"'!$10:$10\"),0)),0)","v":0},null,"Door Hinge, RMS97749264: 9.00USD; Door Latch, RMS97749269:6.50USD",{"$f":"IFERROR(INDEX(INDIRECT(\"'\"&A45&\"'!$18:$50\"),MATCH($BT$1,INDIRECT(\"'\"&A45&\"'!$A$18:$A$50\"),0),MATCH(Parts!$B45,INDIRECT(\"'\"&A45&\"'!$10:$10\"),0)),0)","v":1},15.5,null,{"$f":"IFERROR(INDEX(INDIRECT(\"'\"&A45&\"'!$18:$50\"),MATCH($BW$1,INDIRECT(\"'\"&A45&\"'!$A$18:$A$50\"),0),MATCH(Parts!$B45,INDIRECT(\"'\"&A45&\"'!$10:$10\"),0)),0)","v":0},null,"Berlinger Fridge Tag 3",{"$f":"IFERROR(INDEX(INDIRECT(\"'\"&A45&\"'!$18:$50\"),MATCH($BZ$1,INDIRECT(\"'\"&A45&\"'!$A$18:$A$50\"),0),MATCH(Parts!$B45,INDIRECT(\"'\"&A45&\"'!$10:$10\"),0)),0)","v":1},75,null,{"$f":"IFERROR(INDEX(INDIRECT(\"'\"&A45&\"'!$18:$50\"),MATCH($CC$1,INDIRECT(\"'\"&A45&\"'!$A$18:$A$50\"),0),MATCH(Parts!$B45,INDIRECT(\"'\"&A45&\"'!$10:$10\"),0)),0)","v":0},null,"Door Handle, RMS97749265:1.50USD",{"$f":"IFERROR(INDEX(INDIRECT(\"'\"&A45&\"'!$18:$50\"),MATCH($CF$1,INDIRECT(\"'\"&A45&\"'!$A$18:$A$50\"),0),MATCH(Parts!$B45,INDIRECT(\"'\"&A45&\"'!$10:$10\"),0)),0)","v":1},1.5,null,{"$f":"IFERROR(INDEX(INDIRECT(\"'\"&A45&\"'!$18:$50\"),MATCH($CI$1,INDIRECT(\"'\"&A45&\"'!$A$18:$A$50\"),0),MATCH(Parts!$B45,INDIRECT(\"'\"&A45&\"'!$10:$10\"),0)),0)","v":0},null,null,{"$f":"IFERROR(INDEX(INDIRECT(\"'\"&A45&\"'!$18:$50\"),MATCH($CL$1,INDIRECT(\"'\"&A45&\"'!$A$18:$A$50\"),0),MATCH(Parts!$B45,INDIRECT(\"'\"&A45&\"'!$10:$10\"),0)),0)","v":0},null,null,{"$f":"IFERROR(INDEX(INDIRECT(\"'\"&A45&\"'!$18:$50\"),MATCH($CO$1,INDIRECT(\"'\"&A45&\"'!$A$18:$A$50\"),0),MATCH(Parts!$B45,INDIRECT(\"'\"&A45&\"'!$10:$10\"),0)),0)","v":0},null,null,{"$f":"IFERROR(INDEX(INDIRECT(\"'\"&A45&\"'!$18:$50\"),MATCH($CR$1,INDIRECT(\"'\"&A45&\"'!$A$18:$A$50\"),0),MATCH(Parts!$B45,INDIRECT(\"'\"&A45&\"'!$10:$10\"),0)),0)","v":0},null,null,{"$f":"IFERROR(INDEX(INDIRECT(\"'\"&A45&\"'!$18:$50\"),MATCH($CU$1,INDIRECT(\"'\"&A45&\"'!$A$18:$A$50\"),0),MATCH(Parts!$B45,INDIRECT(\"'\"&A45&\"'!$10:$10\"),0)),0)","v":0},null,null,{"$f":"IFERROR(INDEX(INDIRECT(\"'\"&A45&\"'!$18:$50\"),MATCH($CX$1,INDIRECT(\"'\"&A45&\"'!$A$18:$A$50\"),0),MATCH(Parts!$B45,INDIRECT(\"'\"&A45&\"'!$10:$10\"),0)),0)","v":0},null,null,{"$f":"IFERROR(INDEX(INDIRECT(\"'\"&A45&\"'!$18:$50\"),MATCH($DA$1,INDIRECT(\"'\"&A45&\"'!$A$18:$A$50\"),0),MATCH(Parts!$B45,INDIRECT(\"'\"&A45&\"'!$10:$10\"),0)),0)","v":0},null,null,{"$f":"IFERROR(INDEX(INDIRECT(\"'\"&A45&\"'!$18:$50\"),MATCH($DD$1,INDIRECT(\"'\"&A45&\"'!$A$18:$A$50\"),0),MATCH(Parts!$B45,INDIRECT(\"'\"&A45&\"'!$10:$10\"),0)),0)","v":0},null,null,{"$f":"IFERROR(INDEX(INDIRECT(\"'\"&A45&\"'!$18:$50\"),MATCH($DG$1,INDIRECT(\"'\"&A45&\"'!$A$18:$A$50\"),0),MATCH(Parts!$B45,INDIRECT(\"'\"&A45&\"'!$10:$10\"),0)),0)","v":0},null,null,{"$f":"IFERROR(INDEX(INDIRECT(\"'\"&A45&\"'!$18:$50\"),MATCH($DJ$1,INDIRECT(\"'\"&A45&\"'!$A$18:$A$50\"),0),MATCH(Parts!$B45,INDIRECT(\"'\"&A45&\"'!$10:$10\"),0)),0)","v":0},null,null,{"$f":"IFERROR(INDEX(INDIRECT(\"'\"&A45&\"'!$18:$50\"),MATCH($DM$1,INDIRECT(\"'\"&A45&\"'!$A$18:$A$50\"),0),MATCH(Parts!$B45,INDIRECT(\"'\"&A45&\"'!$10:$10\"),0)),0)","v":0},null,null,{"$f":"IFERROR(INDEX(INDIRECT(\"'\"&A45&\"'!$18:$50\"),MATCH($DP$1,INDIRECT(\"'\"&A45&\"'!$A$18:$A$50\"),0),MATCH(Parts!$B45,INDIRECT(\"'\"&A45&\"'!$10:$10\"),0)),0)","v":0},null,null,{"$f":"IFERROR(INDEX(INDIRECT(\"'\"&A45&\"'!$18:$50\"),MATCH($DS$1,INDIRECT(\"'\"&A45&\"'!$A$18:$A$50\"),0),MATCH(Parts!$B45,INDIRECT(\"'\"&A45&\"'!$10:$10\"),0)),0)","v":0},null,null,{"$f":"IFERROR(INDEX(INDIRECT(\"'\"&A45&\"'!$18:$50\"),MATCH($DV$1,INDIRECT(\"'\"&A45&\"'!$A$18:$A$50\"),0),MATCH(Parts!$B45,INDIRECT(\"'\"&A45&\"'!$10:$10\"),0)),0)","v":0},null,null,{"$f":"IFERROR(INDEX(INDIRECT(\"'\"&A45&\"'!$18:$50\"),MATCH($DY$1,INDIRECT(\"'\"&A45&\"'!$A$18:$A$50\"),0),MATCH(Parts!$B45,INDIRECT(\"'\"&A45&\"'!$10:$10\"),0)),0)","v":0},null,null,{"$f":"IFERROR(INDEX(INDIRECT(\"'\"&A45&\"'!$18:$50\"),MATCH($EB$1,INDIRECT(\"'\"&A45&\"'!$A$18:$A$50\"),0),MATCH(Parts!$B45,INDIRECT(\"'\"&A45&\"'!$10:$10\"),0)),0)","v":0},null,null,{"$f":"IFERROR(INDEX(INDIRECT(\"'\"&A45&\"'!$18:$50\"),MATCH($EE$1,INDIRECT(\"'\"&A45&\"'!$A$18:$A$50\"),0),MATCH(Parts!$B45,INDIRECT(\"'\"&A45&\"'!$10:$10\"),0)),0)","v":0},null,null,{"$f":"IFERROR(INDEX(INDIRECT(\"'\"&A45&\"'!$18:$50\"),MATCH($EH$1,INDIRECT(\"'\"&A45&\"'!$A$18:$A$50\"),0),MATCH(Parts!$B45,INDIRECT(\"'\"&A45&\"'!$10:$10\"),0)),0)","v":0},null,null,{"$f":"IFERROR(INDEX(INDIRECT(\"'\"&A45&\"'!$18:$50\"),MATCH($EK$1,INDIRECT(\"'\"&A45&\"'!$A$18:$A$50\"),0),MATCH(Parts!$B45,INDIRECT(\"'\"&A45&\"'!$10:$10\"),0)),0)","v":0}]
[{"$f":"PQS!A48","v":"ILR"},{"$f":"PQS!B48","v":"E003/082"},{"$f":"PQS!E48","v":"GVR 99 Lite*"},"€",207,"Compressor i8 ; RCM97749257:57.00USD",{"$f":"IFERROR(INDEX(INDIRECT(\"'\"&A46&\"'!$18:$50\"),MATCH(Parts!F$1,INDIRECT(\"'\"&A46&\"'!$A$18:$A$50\"),0),MATCH(Parts!$B46,INDIRECT(\"'\"&A46&\"'!$10:$10\"),0)),0)","v":1},57,null,{"$f":"IFERROR(INDEX(INDIRECT(\"'\"&A46&\"'!$18:$50\"),MATCH($I$1,INDIRECT(\"'\"&A46&\"'!$A$18:$A$50\"),0),MATCH(Parts!$B46,INDIRECT(\"'\"&A46&\"'!$10:$10\"),0)),0)","v":0},null,null,{"$f":"IFERROR(INDEX(INDIRECT(\"'\"&A46&\"'!$18:$50\"),MATCH($L$1,INDIRECT(\"'\"&A46&\"'!$A$18:$A$50\"),0),MATCH(Parts!$B46,INDIRECT(\"'\"&A46&\"'!$10:$10\"),0)),0)","v":0},null,null,{"$f":"IFERROR(INDEX(INDIRECT(\"'\"&A46&\"'!$18:$50\"),MATCH($O$1,INDIRECT(\"'\"&A46&\"'!$A$18:$A$50\"),0),MATCH(Parts!$B46,INDIRECT(\"'\"&A46&\"'!$10:$10\"),0)),0)","v":0},null,"Elec.CNTRL Card  RCC97749260:30.00USD",{"$f":"IFERROR(INDEX(INDIRECT(\"'\"&A46&\"'!$18:$50\"),MATCH($R$1,INDIRECT(\"'\"&A46&\"'!$A$18:$A$50\"),0),MATCH(Parts!$B46,INDIRECT(\"'\"&A46&\"'!$10:$10\"),0)),0)","v":1},30,null,{"$f":"IFERROR(INDEX(INDIRECT(\"'\"&A46&\"'!$18:$50\"),MATCH($U$1,INDIRECT(\"'\"&A46&\"'!$A$18:$A$50\"),0),MATCH(Parts!$B46,INDIRECT(\"'\"&A46&\"'!$10:$10\"),0)),0)","v":0},null,null,{"$f":"IFERROR(INDEX(INDIRECT(\"'\"&A46&\"'!$18:$50\"),MATCH($X$1,INDIRECT(\"'\"&A46&\"'!$A$18:$A$50\"),0),MATCH(Parts!$B46,INDIRECT(\"'\"&A46&\"'!$10:$10\"),0)),0)","v":0},null,null,{"$f":"IFERROR(INDEX(INDIRECT(\"'\"&A46&\"'!$18:$50\"),MATCH($AA$1,INDIRECT(\"'\"&A46&\"'!$A$18:$A$50\"),0),MATCH(Parts!$B46,INDIRECT(\"'\"&A46&\"'!$10:$10\"),0)),0)","v":0},null,null,{"$f":"IFERROR(INDEX(INDIRECT(\"'\"&A46&\"'!$18:$50\"),MATCH($AD$1,INDIRECT(\"'\"&A46&\"'!$A$18:$A$50\"),0),MATCH(Parts!$B46,INDIRECT(\"'\"&A46&\"'!$10:$10\"),0)),0)","v":0},null,null,{"$f":"IFERROR(INDEX(INDIRECT(\"'\"&A46&\"'!$18:$50\"),MATCH($AG$1,INDIRECT(\"'\"&A46&\"'!$A$18:$A$50\"),0),MATCH(Parts!$B46,INDIRECT(\"'\"&A46&\"'!$10:$10\"),0)),0)","v":0},null,null,{"$f":"IFERROR(INDEX(INDIRECT(\"'\"&A46&\"'!$18:$50\"),MATCH($AJ$1,INDIRECT(\"'\"&A46&\"'!$A$18:$A$50\"),0),MATCH(Parts!$B46,INDIRECT(\"'\"&A46&\"'!$10:$10\"),0)),0)","v":0},null,null,{"$f":"IFERROR(INDEX(INDIRECT(\"'\"&A46&\"'!$18:$50\"),MATCH($AM$1,INDIRECT(\"'\"&A46&\"'!$A$18:$A$50\"),0),MATCH(Parts!$B46,INDIRECT(\"'\"&A46&\"'!$10:$10\"),0)),0)","v":0},null,"Voltage Stabilizer; RCM97749357: 25.00USD",{"$f":"IFERROR(INDEX(INDIRECT(\"'\"&A46&\"'!$18:$50\"),MATCH($AP$1,INDIRECT(\"'\"&A46&\"'!$A$18:$A$50\"),0),MATCH(Parts!$B46,INDIRECT(\"'\"&A46&\"'!$10:$10\"),0)),0)","v":1},25,null,{"$f":"IFERROR(INDEX(INDIRECT(\"'\"&A46&\"'!$18:$50\"),MATCH($AS$1,INDIRECT(\"'\"&A46&\"'!$A$18:$A$50\"),0),MATCH(Parts!$B46,INDIRECT(\"'\"&A46&\"'!$10:$10\"),0)),0)","v":0},null,null,{"$f":"IFERROR(INDEX(INDIRECT(\"'\"&A46&\"'!$18:$50\"),MATCH($AV$1,INDIRECT(\"'\"&A46&\"'!$A$18:$A$50\"),0),MATCH(Parts!$B46,INDIRECT(\"'\"&A46&\"'!$10:$10\"),0)),0)","v":0},null,"Relay +OLP ; RRE97749258: 2.00USD",{"$f":"IFERROR(INDEX(INDIRECT(\"'\"&A46&\"'!$18:$50\"),MATCH($AY$1,INDIRECT(\"'\"&A46&\"'!$A$18:$A$50\"),0),MATCH(Parts!$B46,INDIRECT(\"'\"&A46&\"'!$10:$10\"),0)),0)","v":1},2,"Capacitor; RFN97749263:1.00USD",{"$f":"IFERROR(INDEX(INDIRECT(\"'\"&A46&\"'!$18:$50\"),MATCH($BB$1,INDIRECT(\"'\"&A46&\"'!$A$18:$A$50\"),0),MATCH(Parts!$B46,INDIRECT(\"'\"&A46&\"'!$10:$10\"),0)),0)","v":1},1,null,{"$f":"IFERROR(INDEX(INDIRECT(\"'\"&A46&\"'!$18:$50\"),MATCH($BE$1,INDIRECT(\"'\"&A46&\"'!$A$18:$A$50\"),0),MATCH(Parts!$B46,INDIRECT(\"'\"&A46&\"'!$10:$10\"),0)),0)","v":0},null,null,{"$f":"IFERROR(INDEX(INDIRECT(\"'\"&A46&\"'!$18:$50\"),MATCH($BH$1,INDIRECT(\"'\"&A46&\"'!$A$18:$A$50\"),0),MATCH(Parts!$B46,INDIRECT(\"'\"&A46&\"'!$10:$10\"),0)),0)","v":0},null,null,{"$f":"IFERROR(INDEX(INDIRECT(\"'\"&A46&\"'!$18:$50\"),MATCH($BK$1,INDIRECT(\"'\"&A46&\"'!$A$18:$A$50\"),0),MATCH(Parts!$B46,INDIRECT(\"'\"&A46&\"'!$10:$10\"),0)),0)","v":0},null,null,{"$f":"IFERROR(INDEX(INDIRECT(\"'\"&A46&\"'!$18:$50\"),MATCH($BN$1,INDIRECT(\"'\"&A46&\"'!$A$18:$A$50\"),0),MATCH(Parts!$B46,INDIRECT(\"'\"&A46&\"'!$10:$10\"),0)),0)","v":0},null,null,{"$f":"IFERROR(INDEX(INDIRECT(\"'\"&A46&\"'!$18:$50\"),MATCH($BQ$1,INDIRECT(\"'\"&A46&\"'!$A$18:$A$50\"),0),MATCH(Parts!$B46,INDIRECT(\"'\"&A46&\"'!$10:$10\"),0)),0)","v":0},null,"Door Hinge, RMS97749264: 9.00USD; Door Latch, RMS97749269:6.50USD",{"$f":"IFERROR(INDEX(INDIRECT(\"'\"&A46&\"'!$18:$50\"),MATCH($BT$1,INDIRECT(\"'\"&A46&\"'!$A$18:$A$50\"),0),MATCH(Parts!$B46,INDIRECT(\"'\"&A46&\"'!$10:$10\"),0)),0)","v":1},15.5,null,{"$f":"IFERROR(INDEX(INDIRECT(\"'\"&A46&\"'!$18:$50\"),MATCH($BW$1,INDIRECT(\"'\"&A46&\"'!$A$18:$A$50\"),0),MATCH(Parts!$B46,INDIRECT(\"'\"&A46&\"'!$10:$10\"),0)),0)","v":0},null,"Berlinger Fridge Tag 4",{"$f":"IFERROR(INDEX(INDIRECT(\"'\"&A46&\"'!$18:$50\"),MATCH($BZ$1,INDIRECT(\"'\"&A46&\"'!$A$18:$A$50\"),0),MATCH(Parts!$B46,INDIRECT(\"'\"&A46&\"'!$10:$10\"),0)),0)","v":1},75,null,{"$f":"IFERROR(INDEX(INDIRECT(\"'\"&A46&\"'!$18:$50\"),MATCH($CC$1,INDIRECT(\"'\"&A46&\"'!$A$18:$A$50\"),0),MATCH(Parts!$B46,INDIRECT(\"'\"&A46&\"'!$10:$10\"),0)),0)","v":0},null,"Door Handle, RMS97749265:1.50USD",{"$f":"IFERROR(INDEX(INDIRECT(\"'\"&A46&\"'!$18:$50\"),MATCH($CF$1,INDIRECT(\"'\"&A46&\"'!$A$18:$A$50\"),0),MATCH(Parts!$B46,INDIRECT(\"'\"&A46&\"'!$10:$10\"),0)),0)","v":1},1.5,null,{"$f":"IFERROR(INDEX(INDIRECT(\"'\"&A46&\"'!$18:$50\"),MATCH($CI$1,INDIRECT(\"'\"&A46&\"'!$A$18:$A$50\"),0),MATCH(Parts!$B46,INDIRECT(\"'\"&A46&\"'!$10:$10\"),0)),0)","v":0},null,null,{"$f":"IFERROR(INDEX(INDIRECT(\"'\"&A46&\"'!$18:$50\"),MATCH($CL$1,INDIRECT(\"'\"&A46&\"'!$A$18:$A$50\"),0),MATCH(Parts!$B46,INDIRECT(\"'\"&A46&\"'!$10:$10\"),0)),0)","v":0},null,null,{"$f":"IFERROR(INDEX(INDIRECT(\"'\"&A46&\"'!$18:$50\"),MATCH($CO$1,INDIRECT(\"'\"&A46&\"'!$A$18:$A$50\"),0),MATCH(Parts!$B46,INDIRECT(\"'\"&A46&\"'!$10:$10\"),0)),0)","v":0},null,null,{"$f":"IFERROR(INDEX(INDIRECT(\"'\"&A46&\"'!$18:$50\"),MATCH($CR$1,INDIRECT(\"'\"&A46&\"'!$A$18:$A$50\"),0),MATCH(Parts!$B46,INDIRECT(\"'\"&A46&\"'!$10:$10\"),0)),0)","v":0},null,null,{"$f":"IFERROR(INDEX(INDIRECT(\"'\"&A46&\"'!$18:$50\"),MATCH($CU$1,INDIRECT(\"'\"&A46&\"'!$A$18:$A$50\"),0),MATCH(Parts!$B46,INDIRECT(\"'\"&A46&\"'!$10:$10\"),0)),0)","v":0},null,null,{"$f":"IFERROR(INDEX(INDIRECT(\"'\"&A46&\"'!$18:$50\"),MATCH($CX$1,INDIRECT(\"'\"&A46&\"'!$A$18:$A$50\"),0),MATCH(Parts!$B46,INDIRECT(\"'\"&A46&\"'!$10:$10\"),0)),0)","v":0},null,null,{"$f":"IFERROR(INDEX(INDIRECT(\"'\"&A46&\"'!$18:$50\"),MATCH($DA$1,INDIRECT(\"'\"&A46&\"'!$A$18:$A$50\"),0),MATCH(Parts!$B46,INDIRECT(\"'\"&A46&\"'!$10:$10\"),0)),0)","v":0},null,null,{"$f":"IFERROR(INDEX(INDIRECT(\"'\"&A46&\"'!$18:$50\"),MATCH($DD$1,INDIRECT(\"'\"&A46&\"'!$A$18:$A$50\"),0),MATCH(Parts!$B46,INDIRECT(\"'\"&A46&\"'!$10:$10\"),0)),0)","v":0},null,null,{"$f":"IFERROR(INDEX(INDIRECT(\"'\"&A46&\"'!$18:$50\"),MATCH($DG$1,INDIRECT(\"'\"&A46&\"'!$A$18:$A$50\"),0),MATCH(Parts!$B46,INDIRECT(\"'\"&A46&\"'!$10:$10\"),0)),0)","v":0},null,null,{"$f":"IFERROR(INDEX(INDIRECT(\"'\"&A46&\"'!$18:$50\"),MATCH($DJ$1,INDIRECT(\"'\"&A46&\"'!$A$18:$A$50\"),0),MATCH(Parts!$B46,INDIRECT(\"'\"&A46&\"'!$10:$10\"),0)),0)","v":0},null,null,{"$f":"IFERROR(INDEX(INDIRECT(\"'\"&A46&\"'!$18:$50\"),MATCH($DM$1,INDIRECT(\"'\"&A46&\"'!$A$18:$A$50\"),0),MATCH(Parts!$B46,INDIRECT(\"'\"&A46&\"'!$10:$10\"),0)),0)","v":0},null,null,{"$f":"IFERROR(INDEX(INDIRECT(\"'\"&A46&\"'!$18:$50\"),MATCH($DP$1,INDIRECT(\"'\"&A46&\"'!$A$18:$A$50\"),0),MATCH(Parts!$B46,INDIRECT(\"'\"&A46&\"'!$10:$10\"),0)),0)","v":0},null,null,{"$f":"IFERROR(INDEX(INDIRECT(\"'\"&A46&\"'!$18:$50\"),MATCH($DS$1,INDIRECT(\"'\"&A46&\"'!$A$18:$A$50\"),0),MATCH(Parts!$B46,INDIRECT(\"'\"&A46&\"'!$10:$10\"),0)),0)","v":0},null,null,{"$f":"IFERROR(INDEX(INDIRECT(\"'\"&A46&\"'!$18:$50\"),MATCH($DV$1,INDIRECT(\"'\"&A46&\"'!$A$18:$A$50\"),0),MATCH(Parts!$B46,INDIRECT(\"'\"&A46&\"'!$10:$10\"),0)),0)","v":0},null,null,{"$f":"IFERROR(INDEX(INDIRECT(\"'\"&A46&\"'!$18:$50\"),MATCH($DY$1,INDIRECT(\"'\"&A46&\"'!$A$18:$A$50\"),0),MATCH(Parts!$B46,INDIRECT(\"'\"&A46&\"'!$10:$10\"),0)),0)","v":0},null,null,{"$f":"IFERROR(INDEX(INDIRECT(\"'\"&A46&\"'!$18:$50\"),MATCH($EB$1,INDIRECT(\"'\"&A46&\"'!$A$18:$A$50\"),0),MATCH(Parts!$B46,INDIRECT(\"'\"&A46&\"'!$10:$10\"),0)),0)","v":0},null,null,{"$f":"IFERROR(INDEX(INDIRECT(\"'\"&A46&\"'!$18:$50\"),MATCH($EE$1,INDIRECT(\"'\"&A46&\"'!$A$18:$A$50\"),0),MATCH(Parts!$B46,INDIRECT(\"'\"&A46&\"'!$10:$10\"),0)),0)","v":0},null,null,{"$f":"IFERROR(INDEX(INDIRECT(\"'\"&A46&\"'!$18:$50\"),MATCH($EH$1,INDIRECT(\"'\"&A46&\"'!$A$18:$A$50\"),0),MATCH(Parts!$B46,INDIRECT(\"'\"&A46&\"'!$10:$10\"),0)),0)","v":0},null,null,{"$f":"IFERROR(INDEX(INDIRECT(\"'\"&A46&\"'!$18:$50\"),MATCH($EK$1,INDIRECT(\"'\"&A46&\"'!$A$18:$A$50\"),0),MATCH(Parts!$B46,INDIRECT(\"'\"&A46&\"'!$10:$10\"),0)),0)","v":0}]
[{"$f":"PQS!A49","v":"ILR"},{"$f":"PQS!B49","v":"E003/083"},{"$f":"PQS!E49","v":"GVR 225 AC*"},"€",156,"Compressor i11; RCM97749256:57.00USD",{"$f":"IFERROR(INDEX(INDIRECT(\"'\"&A47&\"'!$18:$50\"),MATCH(Parts!F$1,INDIRECT(\"'\"&A47&\"'!$A$18:$A$50\"),0),MATCH(Parts!$B47,INDIRECT(\"'\"&A47&\"'!$10:$10\"),0)),0)","v":1},57,null,{"$f":"IFERROR(INDEX(INDIRECT(\"'\"&A47&\"'!$18:$50\"),MATCH($I$1,INDIRECT(\"'\"&A47&\"'!$A$18:$A$50\"),0),MATCH(Parts!$B47,INDIRECT(\"'\"&A47&\"'!$10:$10\"),0)),0)","v":0},null,null,{"$f":"IFERROR(INDEX(INDIRECT(\"'\"&A47&\"'!$18:$50\"),MATCH($L$1,INDIRECT(\"'\"&A47&\"'!$A$18:$A$50\"),0),MATCH(Parts!$B47,INDIRECT(\"'\"&A47&\"'!$10:$10\"),0)),0)","v":0},null,null,{"$f":"IFERROR(INDEX(INDIRECT(\"'\"&A47&\"'!$18:$50\"),MATCH($O$1,INDIRECT(\"'\"&A47&\"'!$A$18:$A$50\"),0),MATCH(Parts!$B47,INDIRECT(\"'\"&A47&\"'!$10:$10\"),0)),0)","v":0},null,"Elec.CNTRL Card; RCC97749260:30.00USD",{"$f":"IFERROR(INDEX(INDIRECT(\"'\"&A47&\"'!$18:$50\"),MATCH($R$1,INDIRECT(\"'\"&A47&\"'!$A$18:$A$50\"),0),MATCH(Parts!$B47,INDIRECT(\"'\"&A47&\"'!$10:$10\"),0)),0)","v":1},30,null,{"$f":"IFERROR(INDEX(INDIRECT(\"'\"&A47&\"'!$18:$50\"),MATCH($U$1,INDIRECT(\"'\"&A47&\"'!$A$18:$A$50\"),0),MATCH(Parts!$B47,INDIRECT(\"'\"&A47&\"'!$10:$10\"),0)),0)","v":0},null,"Fan MTR; RFN97749259: 12.00USD\nFan IMPELLER; RFM97749278:1.50USD",{"$f":"IFERROR(INDEX(INDIRECT(\"'\"&A47&\"'!$18:$50\"),MATCH($X$1,INDIRECT(\"'\"&A47&\"'!$A$18:$A$50\"),0),MATCH(Parts!$B47,INDIRECT(\"'\"&A47&\"'!$10:$10\"),0)),0)","v":1},13.5,null,{"$f":"IFERROR(INDEX(INDIRECT(\"'\"&A47&\"'!$18:$50\"),MATCH($AA$1,INDIRECT(\"'\"&A47&\"'!$A$18:$A$50\"),0),MATCH(Parts!$B47,INDIRECT(\"'\"&A47&\"'!$10:$10\"),0)),0)","v":0},null,null,{"$f":"IFERROR(INDEX(INDIRECT(\"'\"&A47&\"'!$18:$50\"),MATCH($AD$1,INDIRECT(\"'\"&A47&\"'!$A$18:$A$50\"),0),MATCH(Parts!$B47,INDIRECT(\"'\"&A47&\"'!$10:$10\"),0)),0)","v":0},null,null,{"$f":"IFERROR(INDEX(INDIRECT(\"'\"&A47&\"'!$18:$50\"),MATCH($AG$1,INDIRECT(\"'\"&A47&\"'!$A$18:$A$50\"),0),MATCH(Parts!$B47,INDIRECT(\"'\"&A47&\"'!$10:$10\"),0)),0)","v":0},null,null,{"$f":"IFERROR(INDEX(INDIRECT(\"'\"&A47&\"'!$18:$50\"),MATCH($AJ$1,INDIRECT(\"'\"&A47&\"'!$A$18:$A$50\"),0),MATCH(Parts!$B47,INDIRECT(\"'\"&A47&\"'!$10:$10\"),0)),0)","v":0},null,null,{"$f":"IFERROR(INDEX(INDIRECT(\"'\"&A47&\"'!$18:$50\"),MATCH($AM$1,INDIRECT(\"'\"&A47&\"'!$A$18:$A$50\"),0),MATCH(Parts!$B47,INDIRECT(\"'\"&A47&\"'!$10:$10\"),0)),0)","v":0},null,"Transformer + Stabilizer ASSLY; RCM97749357: 25.00USD",{"$f":"IFERROR(INDEX(INDIRECT(\"'\"&A47&\"'!$18:$50\"),MATCH($AP$1,INDIRECT(\"'\"&A47&\"'!$A$18:$A$50\"),0),MATCH(Parts!$B47,INDIRECT(\"'\"&A47&\"'!$10:$10\"),0)),0)","v":1},25,null,{"$f":"IFERROR(INDEX(INDIRECT(\"'\"&A47&\"'!$18:$50\"),MATCH($AS$1,INDIRECT(\"'\"&A47&\"'!$A$18:$A$50\"),0),MATCH(Parts!$B47,INDIRECT(\"'\"&A47&\"'!$10:$10\"),0)),0)","v":0},null,null,{"$f":"IFERROR(INDEX(INDIRECT(\"'\"&A47&\"'!$18:$50\"),MATCH($AV$1,INDIRECT(\"'\"&A47&\"'!$A$18:$A$50\"),0),MATCH(Parts!$B47,INDIRECT(\"'\"&A47&\"'!$10:$10\"),0)),0)","v":0},null,"Relay +OLP ; RRE97749258: 2.00USD",{"$f":"IFERROR(INDEX(INDIRECT(\"'\"&A47&\"'!$18:$50\"),MATCH($AY$1,INDIRECT(\"'\"&A47&\"'!$A$18:$A$50\"),0),MATCH(Parts!$B47,INDIRECT(\"'\"&A47&\"'!$10:$10\"),0)),0)","v":1},2,"Capacitor; RFN97749263:1.00USD",{"$f":"IFERROR(INDEX(INDIRECT(\"'\"&A47&\"'!$18:$50\"),MATCH($BB$1,INDIRECT(\"'\"&A47&\"'!$A$18:$A$50\"),0),MATCH(Parts!$B47,INDIRECT(\"'\"&A47&\"'!$10:$10\"),0)),0)","v":1},1,null,{"$f":"IFERROR(INDEX(INDIRECT(\"'\"&A47&\"'!$18:$50\"),MATCH($BE$1,INDIRECT(\"'\"&A47&\"'!$A$18:$A$50\"),0),MATCH(Parts!$B47,INDIRECT(\"'\"&A47&\"'!$10:$10\"),0)),0)","v":0},null,null,{"$f":"IFERROR(INDEX(INDIRECT(\"'\"&A47&\"'!$18:$50\"),MATCH($BH$1,INDIRECT(\"'\"&A47&\"'!$A$18:$A$50\"),0),MATCH(Parts!$B47,INDIRECT(\"'\"&A47&\"'!$10:$10\"),0)),0)","v":0},null,null,{"$f":"IFERROR(INDEX(INDIRECT(\"'\"&A47&\"'!$18:$50\"),MATCH($BK$1,INDIRECT(\"'\"&A47&\"'!$A$18:$A$50\"),0),MATCH(Parts!$B47,INDIRECT(\"'\"&A47&\"'!$10:$10\"),0)),0)","v":0},null,null,{"$f":"IFERROR(INDEX(INDIRECT(\"'\"&A47&\"'!$18:$50\"),MATCH($BN$1,INDIRECT(\"'\"&A47&\"'!$A$18:$A$50\"),0),MATCH(Parts!$B47,INDIRECT(\"'\"&A47&\"'!$10:$10\"),0)),0)","v":0},null,null,{"$f":"IFERROR(INDEX(INDIRECT(\"'\"&A47&\"'!$18:$50\"),MATCH($BQ$1,INDIRECT(\"'\"&A47&\"'!$A$18:$A$50\"),0),MATCH(Parts!$B47,INDIRECT(\"'\"&A47&\"'!$10:$10\"),0)),0)","v":0},null,"Door Hinge, RMS97749264: 9.00USD; Door Latch, RMS97749269:6.50USD",{"$f":"IFERROR(INDEX(INDIRECT(\"'\"&A47&\"'!$18:$50\"),MATCH($BT$1,INDIRECT(\"'\"&A47&\"'!$A$18:$A$50\"),0),MATCH(Parts!$B47,INDIRECT(\"'\"&A47&\"'!$10:$10\"),0)),0)","v":1},15.5,null,{"$f":"IFERROR(INDEX(INDIRECT(\"'\"&A47&\"'!$18:$50\"),MATCH($BW$1,INDIRECT(\"'\"&A47&\"'!$A$18:$A$50\"),0),MATCH(Parts!$B47,INDIRECT(\"'\"&A47&\"'!$10:$10\"),0)),0)","v":0},null,"Solar Powered Temp Display BRD; RCC97749262: 10.50USD",{"$f":"IFERROR(INDEX(INDIRECT(\"'\"&A47&\"'!$18:$50\"),MATCH($BZ$1,INDIRECT(\"'\"&A47&\"'!$A$18:$A$50\"),0),MATCH(Parts!$B47,INDIRECT(\"'\"&A47&\"'!$10:$10\"),0)),0)","v":1},10.5,null,{"$f":"IFERROR(INDEX(INDIRECT(\"'\"&A47&\"'!$18:$50\"),MATCH($CC$1,INDIRECT(\"'\"&A47&\"'!$A$18:$A$50\"),0),MATCH(Parts!$B47,INDIRECT(\"'\"&A47&\"'!$10:$10\"),0)),0)","v":0},null,"Door handle, RMS97749265:1.50USD",{"$f":"IFERROR(INDEX(INDIRECT(\"'\"&A47&\"'!$18:$50\"),MATCH($CF$1,INDIRECT(\"'\"&A47&\"'!$A$18:$A$50\"),0),MATCH(Parts!$B47,INDIRECT(\"'\"&A47&\"'!$10:$10\"),0)),0)","v":1},1.5,null,{"$f":"IFERROR(INDEX(INDIRECT(\"'\"&A47&\"'!$18:$50\"),MATCH($CI$1,INDIRECT(\"'\"&A47&\"'!$A$18:$A$50\"),0),MATCH(Parts!$B47,INDIRECT(\"'\"&A47&\"'!$10:$10\"),0)),0)","v":0},null,null,{"$f":"IFERROR(INDEX(INDIRECT(\"'\"&A47&\"'!$18:$50\"),MATCH($CL$1,INDIRECT(\"'\"&A47&\"'!$A$18:$A$50\"),0),MATCH(Parts!$B47,INDIRECT(\"'\"&A47&\"'!$10:$10\"),0)),0)","v":0},null,null,{"$f":"IFERROR(INDEX(INDIRECT(\"'\"&A47&\"'!$18:$50\"),MATCH($CO$1,INDIRECT(\"'\"&A47&\"'!$A$18:$A$50\"),0),MATCH(Parts!$B47,INDIRECT(\"'\"&A47&\"'!$10:$10\"),0)),0)","v":0},null,null,{"$f":"IFERROR(INDEX(INDIRECT(\"'\"&A47&\"'!$18:$50\"),MATCH($CR$1,INDIRECT(\"'\"&A47&\"'!$A$18:$A$50\"),0),MATCH(Parts!$B47,INDIRECT(\"'\"&A47&\"'!$10:$10\"),0)),0)","v":0},null,null,{"$f":"IFERROR(INDEX(INDIRECT(\"'\"&A47&\"'!$18:$50\"),MATCH($CU$1,INDIRECT(\"'\"&A47&\"'!$A$18:$A$50\"),0),MATCH(Parts!$B47,INDIRECT(\"'\"&A47&\"'!$10:$10\"),0)),0)","v":0},null,null,{"$f":"IFERROR(INDEX(INDIRECT(\"'\"&A47&\"'!$18:$50\"),MATCH($CX$1,INDIRECT(\"'\"&A47&\"'!$A$18:$A$50\"),0),MATCH(Parts!$B47,INDIRECT(\"'\"&A47&\"'!$10:$10\"),0)),0)","v":0},null,null,{"$f":"IFERROR(INDEX(INDIRECT(\"'\"&A47&\"'!$18:$50\"),MATCH($DA$1,INDIRECT(\"'\"&A47&\"'!$A$18:$A$50\"),0),MATCH(Parts!$B47,INDIRECT(\"'\"&A47&\"'!$10:$10\"),0)),0)","v":0},null,null,{"$f":"IFERROR(INDEX(INDIRECT(\"'\"&A47&\"'!$18:$50\"),MATCH($DD$1,INDIRECT(\"'\"&A47&\"'!$A$18:$A$50\"),0),MATCH(Parts!$B47,INDIRECT(\"'\"&A47&\"'!$10:$10\"),0)),0)","v":0},null,null,{"$f":"IFERROR(INDEX(INDIRECT(\"'\"&A47&\"'!$18:$50\"),MATCH($DG$1,INDIRECT(\"'\"&A47&\"'!$A$18:$A$50\"),0),MATCH(Parts!$B47,INDIRECT(\"'\"&A47&\"'!$10:$10\"),0)),0)","v":0},null,null,{"$f":"IFERROR(INDEX(INDIRECT(\"'\"&A47&\"'!$18:$50\"),MATCH($DJ$1,INDIRECT(\"'\"&A47&\"'!$A$18:$A$50\"),0),MATCH(Parts!$B47,INDIRECT(\"'\"&A47&\"'!$10:$10\"),0)),0)","v":0},null,null,{"$f":"IFERROR(INDEX(INDIRECT(\"'\"&A47&\"'!$18:$50\"),MATCH($DM$1,INDIRECT(\"'\"&A47&\"'!$A$18:$A$50\"),0),MATCH(Parts!$B47,INDIRECT(\"'\"&A47&\"'!$10:$10\"),0)),0)","v":0},null,null,{"$f":"IFERROR(INDEX(INDIRECT(\"'\"&A47&\"'!$18:$50\"),MATCH($DP$1,INDIRECT(\"'\"&A47&\"'!$A$18:$A$50\"),0),MATCH(Parts!$B47,INDIRECT(\"'\"&A47&\"'!$10:$10\"),0)),0)","v":0},null,null,{"$f":"IFERROR(INDEX(INDIRECT(\"'\"&A47&\"'!$18:$50\"),MATCH($DS$1,INDIRECT(\"'\"&A47&\"'!$A$18:$A$50\"),0),MATCH(Parts!$B47,INDIRECT(\"'\"&A47&\"'!$10:$10\"),0)),0)","v":0},null,null,{"$f":"IFERROR(INDEX(INDIRECT(\"'\"&A47&\"'!$18:$50\"),MATCH($DV$1,INDIRECT(\"'\"&A47&\"'!$A$18:$A$50\"),0),MATCH(Parts!$B47,INDIRECT(\"'\"&A47&\"'!$10:$10\"),0)),0)","v":0},null,null,{"$f":"IFERROR(INDEX(INDIRECT(\"'\"&A47&\"'!$18:$50\"),MATCH($DY$1,INDIRECT(\"'\"&A47&\"'!$A$18:$A$50\"),0),MATCH(Parts!$B47,INDIRECT(\"'\"&A47&\"'!$10:$10\"),0)),0)","v":0},null,null,{"$f":"IFERROR(INDEX(INDIRECT(\"'\"&A47&\"'!$18:$50\"),MATCH($EB$1,INDIRECT(\"'\"&A47&\"'!$A$18:$A$50\"),0),MATCH(Parts!$B47,INDIRECT(\"'\"&A47&\"'!$10:$10\"),0)),0)","v":0},null,null,{"$f":"IFERROR(INDEX(INDIRECT(\"'\"&A47&\"'!$18:$50\"),MATCH($EE$1,INDIRECT(\"'\"&A47&\"'!$A$18:$A$50\"),0),MATCH(Parts!$B47,INDIRECT(\"'\"&A47&\"'!$10:$10\"),0)),0)","v":0},null,null,{"$f":"IFERROR(INDEX(INDIRECT(\"'\"&A47&\"'!$18:$50\"),MATCH($EH$1,INDIRECT(\"'\"&A47&\"'!$A$18:$A$50\"),0),MATCH(Parts!$B47,INDIRECT(\"'\"&A47&\"'!$10:$10\"),0)),0)","v":0},null,null,{"$f":"IFERROR(INDEX(INDIRECT(\"'\"&A47&\"'!$18:$50\"),MATCH($EK$1,INDIRECT(\"'\"&A47&\"'!$A$18:$A$50\"),0),MATCH(Parts!$B47,INDIRECT(\"'\"&A47&\"'!$10:$10\"),0)),0)","v":0}]
[{"$f":"PQS!A50","v":"Kerosene"},{"$f":"PQS!B50","v":"E3/85-M"},{"$f":"PQS!E50","v":"V 170 KE "},{"$f":"PQS!P50","v":"€"},166.71,null,{"$f":"IFERROR(INDEX(INDIRECT(\"'\"&A48&\"'!$18:$50\"),MATCH(Parts!F$1,INDIRECT(\"'\"&A48&\"'!$A$18:$A$50\"),0),MATCH(Parts!$B48,INDIRECT(\"'\"&A48&\"'!$10:$10\"),0)),0)","v":0},null,null,{"$f":"IFERROR(INDEX(INDIRECT(\"'\"&A48&\"'!$18:$50\"),MATCH($I$1,INDIRECT(\"'\"&A48&\"'!$A$18:$A$50\"),0),MATCH(Parts!$B48,INDIRECT(\"'\"&A48&\"'!$10:$10\"),0)),0)","v":0},null,null,{"$f":"IFERROR(INDEX(INDIRECT(\"'\"&A48&\"'!$18:$50\"),MATCH($L$1,INDIRECT(\"'\"&A48&\"'!$A$18:$A$50\"),0),MATCH(Parts!$B48,INDIRECT(\"'\"&A48&\"'!$10:$10\"),0)),0)","v":0},null,null,{"$f":"IFERROR(INDEX(INDIRECT(\"'\"&A48&\"'!$18:$50\"),MATCH($O$1,INDIRECT(\"'\"&A48&\"'!$A$18:$A$50\"),0),MATCH(Parts!$B48,INDIRECT(\"'\"&A48&\"'!$10:$10\"),0)),0)","v":0},null,null,{"$f":"IFERROR(INDEX(INDIRECT(\"'\"&A48&\"'!$18:$50\"),MATCH($R$1,INDIRECT(\"'\"&A48&\"'!$A$18:$A$50\"),0),MATCH(Parts!$B48,INDIRECT(\"'\"&A48&\"'!$10:$10\"),0)),0)","v":0},null,null,{"$f":"IFERROR(INDEX(INDIRECT(\"'\"&A48&\"'!$18:$50\"),MATCH($U$1,INDIRECT(\"'\"&A48&\"'!$A$18:$A$50\"),0),MATCH(Parts!$B48,INDIRECT(\"'\"&A48&\"'!$10:$10\"),0)),0)","v":0},null,null,{"$f":"IFERROR(INDEX(INDIRECT(\"'\"&A48&\"'!$18:$50\"),MATCH($X$1,INDIRECT(\"'\"&A48&\"'!$A$18:$A$50\"),0),MATCH(Parts!$B48,INDIRECT(\"'\"&A48&\"'!$10:$10\"),0)),0)","v":0},null,null,{"$f":"IFERROR(INDEX(INDIRECT(\"'\"&A48&\"'!$18:$50\"),MATCH($AA$1,INDIRECT(\"'\"&A48&\"'!$A$18:$A$50\"),0),MATCH(Parts!$B48,INDIRECT(\"'\"&A48&\"'!$10:$10\"),0)),0)","v":0},null,null,{"$f":"IFERROR(INDEX(INDIRECT(\"'\"&A48&\"'!$18:$50\"),MATCH($AD$1,INDIRECT(\"'\"&A48&\"'!$A$18:$A$50\"),0),MATCH(Parts!$B48,INDIRECT(\"'\"&A48&\"'!$10:$10\"),0)),0)","v":0},null,null,{"$f":"IFERROR(INDEX(INDIRECT(\"'\"&A48&\"'!$18:$50\"),MATCH($AG$1,INDIRECT(\"'\"&A48&\"'!$A$18:$A$50\"),0),MATCH(Parts!$B48,INDIRECT(\"'\"&A48&\"'!$10:$10\"),0)),0)","v":0},null,null,{"$f":"IFERROR(INDEX(INDIRECT(\"'\"&A48&\"'!$18:$50\"),MATCH($AJ$1,INDIRECT(\"'\"&A48&\"'!$A$18:$A$50\"),0),MATCH(Parts!$B48,INDIRECT(\"'\"&A48&\"'!$10:$10\"),0)),0)","v":0},null,null,{"$f":"IFERROR(INDEX(INDIRECT(\"'\"&A48&\"'!$18:$50\"),MATCH($AM$1,INDIRECT(\"'\"&A48&\"'!$A$18:$A$50\"),0),MATCH(Parts!$B48,INDIRECT(\"'\"&A48&\"'!$10:$10\"),0)),0)","v":0},null,null,{"$f":"IFERROR(INDEX(INDIRECT(\"'\"&A48&\"'!$18:$50\"),MATCH($AP$1,INDIRECT(\"'\"&A48&\"'!$A$18:$A$50\"),0),MATCH(Parts!$B48,INDIRECT(\"'\"&A48&\"'!$10:$10\"),0)),0)","v":0},null,null,{"$f":"IFERROR(INDEX(INDIRECT(\"'\"&A48&\"'!$18:$50\"),MATCH($AS$1,INDIRECT(\"'\"&A48&\"'!$A$18:$A$50\"),0),MATCH(Parts!$B48,INDIRECT(\"'\"&A48&\"'!$10:$10\"),0)),0)","v":0},null,null,{"$f":"IFERROR(INDEX(INDIRECT(\"'\"&A48&\"'!$18:$50\"),MATCH($AV$1,INDIRECT(\"'\"&A48&\"'!$A$18:$A$50\"),0),MATCH(Parts!$B48,INDIRECT(\"'\"&A48&\"'!$10:$10\"),0)),0)","v":0},null,null,{"$f":"IFERROR(INDEX(INDIRECT(\"'\"&A48&\"'!$18:$50\"),MATCH($AY$1,INDIRECT(\"'\"&A48&\"'!$A$18:$A$50\"),0),MATCH(Parts!$B48,INDIRECT(\"'\"&A48&\"'!$10:$10\"),0)),0)","v":0},null,null,{"$f":"IFERROR(INDEX(INDIRECT(\"'\"&A48&\"'!$18:$50\"),MATCH($BB$1,INDIRECT(\"'\"&A48&\"'!$A$18:$A$50\"),0),MATCH(Parts!$B48,INDIRECT(\"'\"&A48&\"'!$10:$10\"),0)),0)","v":0},null,null,{"$f":"IFERROR(INDEX(INDIRECT(\"'\"&A48&\"'!$18:$50\"),MATCH($BE$1,INDIRECT(\"'\"&A48&\"'!$A$18:$A$50\"),0),MATCH(Parts!$B48,INDIRECT(\"'\"&A48&\"'!$10:$10\"),0)),0)","v":0},null,null,{"$f":"IFERROR(INDEX(INDIRECT(\"'\"&A48&\"'!$18:$50\"),MATCH($BH$1,INDIRECT(\"'\"&A48&\"'!$A$18:$A$50\"),0),MATCH(Parts!$B48,INDIRECT(\"'\"&A48&\"'!$10:$10\"),0)),0)","v":0},null,null,{"$f":"IFERROR(INDEX(INDIRECT(\"'\"&A48&\"'!$18:$50\"),MATCH($BK$1,INDIRECT(\"'\"&A48&\"'!$A$18:$A$50\"),0),MATCH(Parts!$B48,INDIRECT(\"'\"&A48&\"'!$10:$10\"),0)),0)","v":0},null,null,{"$f":"IFERROR(INDEX(INDIRECT(\"'\"&A48&\"'!$18:$50\"),MATCH($BN$1,INDIRECT(\"'\"&A48&\"'!$A$18:$A$50\"),0),MATCH(Parts!$B48,INDIRECT(\"'\"&A48&\"'!$10:$10\"),0)),0)","v":0},null,null,{"$f":"IFERROR(INDEX(INDIRECT(\"'\"&A48&\"'!$18:$50\"),MATCH($BQ$1,INDIRECT(\"'\"&A48&\"'!$A$18:$A$50\"),0),MATCH(Parts!$B48,INDIRECT(\"'\"&A48&\"'!$10:$10\"),0)),0)","v":0},null,null,{"$f":"IFERROR(INDEX(INDIRECT(\"'\"&A48&\"'!$18:$50\"),MATCH($BT$1,INDIRECT(\"'\"&A48&\"'!$A$18:$A$50\"),0),MATCH(Parts!$B48,INDIRECT(\"'\"&A48&\"'!$10:$10\"),0)),0)","v":0},null,null,{"$f":"IFERROR(INDEX(INDIRECT(\"'\"&A48&\"'!$18:$50\"),MATCH($BW$1,INDIRECT(\"'\"&A48&\"'!$A$18:$A$50\"),0),MATCH(Parts!$B48,INDIRECT(\"'\"&A48&\"'!$10:$10\"),0)),0)","v":0},null,null,{"$f":"IFERROR(INDEX(INDIRECT(\"'\"&A48&\"'!$18:$50\"),MATCH($BZ$1,INDIRECT(\"'\"&A48&\"'!$A$18:$A$50\"),0),MATCH(Parts!$B48,INDIRECT(\"'\"&A48&\"'!$10:$10\"),0)),0)","v":0},null,null,{"$f":"IFERROR(INDEX(INDIRECT(\"'\"&A48&\"'!$18:$50\"),MATCH($CC$1,INDIRECT(\"'\"&A48&\"'!$A$18:$A$50\"),0),MATCH(Parts!$B48,INDIRECT(\"'\"&A48&\"'!$10:$10\"),0)),0)","v":0},null,null,{"$f":"IFERROR(INDEX(INDIRECT(\"'\"&A48&\"'!$18:$50\"),MATCH($CF$1,INDIRECT(\"'\"&A48&\"'!$A$18:$A$50\"),0),MATCH(Parts!$B48,INDIRECT(\"'\"&A48&\"'!$10:$10\"),0)),0)","v":0},null,null,{"$f":"IFERROR(INDEX(INDIRECT(\"'\"&A48&\"'!$18:$50\"),MATCH($CI$1,INDIRECT(\"'\"&A48&\"'!$A$18:$A$50\"),0),MATCH(Parts!$B48,INDIRECT(\"'\"&A48&\"'!$10:$10\"),0)),0)","v":0},null,"Glass lamp (20), 293 28 92-01/7, US$ 27.32",{"$f":"IFERROR(INDEX(INDIRECT(\"'\"&A48&\"'!$18:$50\"),MATCH($CL$1,INDIRECT(\"'\"&A48&\"'!$A$18:$A$50\"),0),MATCH(Parts!$B48,INDIRECT(\"'\"&A48&\"'!$10:$10\"),0)),0)","v":2},27.32,"Electric heater, 230 VAC (2), 17 37 42-30/5, US$ 11.65",{"$f":"IFERROR(INDEX(INDIRECT(\"'\"&A48&\"'!$18:$50\"),MATCH($CO$1,INDIRECT(\"'\"&A48&\"'!$A$18:$A$50\"),0),MATCH(Parts!$B48,INDIRECT(\"'\"&A48&\"'!$10:$10\"),0)),0)","v":1},11.65,null,{"$f":"IFERROR(INDEX(INDIRECT(\"'\"&A48&\"'!$18:$50\"),MATCH($CR$1,INDIRECT(\"'\"&A48&\"'!$A$18:$A$50\"),0),MATCH(Parts!$B48,INDIRECT(\"'\"&A48&\"'!$10:$10\"),0)),0)","v":0},null,"23E60 Burner C/W Long Tail Wick unleaded, P-237016",{"$f":"IFERROR(INDEX(INDIRECT(\"'\"&A48&\"'!$18:$50\"),MATCH($CU$1,INDIRECT(\"'\"&A48&\"'!$A$18:$A$50\"),0),MATCH(Parts!$B48,INDIRECT(\"'\"&A48&\"'!$10:$10\"),0)),0)","v":1},55.58,null,{"$f":"IFERROR(INDEX(INDIRECT(\"'\"&A48&\"'!$18:$50\"),MATCH($CX$1,INDIRECT(\"'\"&A48&\"'!$A$18:$A$50\"),0),MATCH(Parts!$B48,INDIRECT(\"'\"&A48&\"'!$10:$10\"),0)),0)","v":0},null,"Wick, long tail, cotton, for Aladdin size 23E60 burner (50), US$ 5.48",{"$f":"IFERROR(INDEX(INDIRECT(\"'\"&A48&\"'!$18:$50\"),MATCH($DA$1,INDIRECT(\"'\"&A48&\"'!$A$18:$A$50\"),0),MATCH(Parts!$B48,INDIRECT(\"'\"&A48&\"'!$10:$10\"),0)),0)","v":5},5.48,"Brass flue for Aladdin size 23E burner (10), US$ 6.75",{"$f":"IFERROR(INDEX(INDIRECT(\"'\"&A48&\"'!$18:$50\"),MATCH($DD$1,INDIRECT(\"'\"&A48&\"'!$A$18:$A$50\"),0),MATCH(Parts!$B48,INDIRECT(\"'\"&A48&\"'!$10:$10\"),0)),0)","v":1},6.75,"Wick cleaner for Aladdin size 23E burner (2), US$ 1.96",{"$f":"IFERROR(INDEX(INDIRECT(\"'\"&A48&\"'!$18:$50\"),MATCH($DG$1,INDIRECT(\"'\"&A48&\"'!$A$18:$A$50\"),0),MATCH(Parts!$B48,INDIRECT(\"'\"&A48&\"'!$10:$10\"),0)),0)","v":1},1.96,"Flue brush (10), 15 74 18-00/5, US$ 8.73",{"$f":"IFERROR(INDEX(INDIRECT(\"'\"&A48&\"'!$18:$50\"),MATCH($DJ$1,INDIRECT(\"'\"&A48&\"'!$A$18:$A$50\"),0),MATCH(Parts!$B48,INDIRECT(\"'\"&A48&\"'!$10:$10\"),0)),0)","v":1},8.73,null,{"$f":"IFERROR(INDEX(INDIRECT(\"'\"&A48&\"'!$18:$50\"),MATCH($DM$1,INDIRECT(\"'\"&A48&\"'!$A$18:$A$50\"),0),MATCH(Parts!$B48,INDIRECT(\"'\"&A48&\"'!$10:$10\"),0)),0)","v":0},null,null,{"$f":"IFERROR(INDEX(INDIRECT(\"'\"&A48&\"'!$18:$50\"),MATCH($DP$1,INDIRECT(\"'\"&A48&\"'!$A$18:$A$50\"),0),MATCH(Parts!$B48,INDIRECT(\"'\"&A48&\"'!$10:$10\"),0)),0)","v":0},null,null,{"$f":"IFERROR(INDEX(INDIRECT(\"'\"&A48&\"'!$18:$50\"),MATCH($DS$1,INDIRECT(\"'\"&A48&\"'!$A$18:$A$50\"),0),MATCH(Parts!$B48,INDIRECT(\"'\"&A48&\"'!$10:$10\"),0)),0)","v":0},null,null,{"$f":"IFERROR(INDEX(INDIRECT(\"'\"&A48&\"'!$18:$50\"),MATCH($DV$1,INDIRECT(\"'\"&A48&\"'!$A$18:$A$50\"),0),MATCH(Parts!$B48,INDIRECT(\"'\"&A48&\"'!$10:$10\"),0)),0)","v":0},null,null,{"$f":"IFERROR(INDEX(INDIRECT(\"'\"&A48&\"'!$18:$50\"),MATCH($DY$1,INDIRECT(\"'\"&A48&\"'!$A$18:$A$50\"),0),MATCH(Parts!$B48,INDIRECT(\"'\"&A48&\"'!$10:$10\"),0)),0)","v":0},null,null,{"$f":"IFERROR(INDEX(INDIRECT(\"'\"&A48&\"'!$18:$50\"),MATCH($EB$1,INDIRECT(\"'\"&A48&\"'!$A$18:$A$50\"),0),MATCH(Parts!$B48,INDIRECT(\"'\"&A48&\"'!$10:$10\"),0)),0)","v":0},null,null,{"$f":"IFERROR(INDEX(INDIRECT(\"'\"&A48&\"'!$18:$50\"),MATCH($EE$1,INDIRECT(\"'\"&A48&\"'!$A$18:$A$50\"),0),MATCH(Parts!$B48,INDIRECT(\"'\"&A48&\"'!$10:$10\"),0)),0)","v":0},null,null,{"$f":"IFERROR(INDEX(INDIRECT(\"'\"&A48&\"'!$18:$50\"),MATCH($EH$1,INDIRECT(\"'\"&A48&\"'!$A$18:$A$50\"),0),MATCH(Parts!$B48,INDIRECT(\"'\"&A48&\"'!$10:$10\"),0)),0)","v":0},null,null,{"$f":"IFERROR(INDEX(INDIRECT(\"'\"&A48&\"'!$18:$50\"),MATCH($EK$1,INDIRECT(\"'\"&A48&\"'!$A$18:$A$50\"),0),MATCH(Parts!$B48,INDIRECT(\"'\"&A48&\"'!$10:$10\"),0)),0)","v":0}]
[{"$f":"PQS!A51","v":"Kerosene"},{"$f":"PQS!B51","v":"E3/87-M "},{"$f":"PQS!E51","v":"V 110 KE "},{"$f":"PQS!P51","v":"€"},66.724999999999994,null,{"$f":"IFERROR(INDEX(INDIRECT(\"'\"&A49&\"'!$18:$50\"),MATCH(Parts!F$1,INDIRECT(\"'\"&A49&\"'!$A$18:$A$50\"),0),MATCH(Parts!$B49,INDIRECT(\"'\"&A49&\"'!$10:$10\"),0)),0)","v":0},null,null,{"$f":"IFERROR(INDEX(INDIRECT(\"'\"&A49&\"'!$18:$50\"),MATCH($I$1,INDIRECT(\"'\"&A49&\"'!$A$18:$A$50\"),0),MATCH(Parts!$B49,INDIRECT(\"'\"&A49&\"'!$10:$10\"),0)),0)","v":0},null,null,{"$f":"IFERROR(INDEX(INDIRECT(\"'\"&A49&\"'!$18:$50\"),MATCH($L$1,INDIRECT(\"'\"&A49&\"'!$A$18:$A$50\"),0),MATCH(Parts!$B49,INDIRECT(\"'\"&A49&\"'!$10:$10\"),0)),0)","v":0},null,null,{"$f":"IFERROR(INDEX(INDIRECT(\"'\"&A49&\"'!$18:$50\"),MATCH($O$1,INDIRECT(\"'\"&A49&\"'!$A$18:$A$50\"),0),MATCH(Parts!$B49,INDIRECT(\"'\"&A49&\"'!$10:$10\"),0)),0)","v":0},null,null,{"$f":"IFERROR(INDEX(INDIRECT(\"'\"&A49&\"'!$18:$50\"),MATCH($R$1,INDIRECT(\"'\"&A49&\"'!$A$18:$A$50\"),0),MATCH(Parts!$B49,INDIRECT(\"'\"&A49&\"'!$10:$10\"),0)),0)","v":0},null,null,{"$f":"IFERROR(INDEX(INDIRECT(\"'\"&A49&\"'!$18:$50\"),MATCH($U$1,INDIRECT(\"'\"&A49&\"'!$A$18:$A$50\"),0),MATCH(Parts!$B49,INDIRECT(\"'\"&A49&\"'!$10:$10\"),0)),0)","v":0},null,null,{"$f":"IFERROR(INDEX(INDIRECT(\"'\"&A49&\"'!$18:$50\"),MATCH($X$1,INDIRECT(\"'\"&A49&\"'!$A$18:$A$50\"),0),MATCH(Parts!$B49,INDIRECT(\"'\"&A49&\"'!$10:$10\"),0)),0)","v":0},null,null,{"$f":"IFERROR(INDEX(INDIRECT(\"'\"&A49&\"'!$18:$50\"),MATCH($AA$1,INDIRECT(\"'\"&A49&\"'!$A$18:$A$50\"),0),MATCH(Parts!$B49,INDIRECT(\"'\"&A49&\"'!$10:$10\"),0)),0)","v":0},null,null,{"$f":"IFERROR(INDEX(INDIRECT(\"'\"&A49&\"'!$18:$50\"),MATCH($AD$1,INDIRECT(\"'\"&A49&\"'!$A$18:$A$50\"),0),MATCH(Parts!$B49,INDIRECT(\"'\"&A49&\"'!$10:$10\"),0)),0)","v":0},null,null,{"$f":"IFERROR(INDEX(INDIRECT(\"'\"&A49&\"'!$18:$50\"),MATCH($AG$1,INDIRECT(\"'\"&A49&\"'!$A$18:$A$50\"),0),MATCH(Parts!$B49,INDIRECT(\"'\"&A49&\"'!$10:$10\"),0)),0)","v":0},null,null,{"$f":"IFERROR(INDEX(INDIRECT(\"'\"&A49&\"'!$18:$50\"),MATCH($AJ$1,INDIRECT(\"'\"&A49&\"'!$A$18:$A$50\"),0),MATCH(Parts!$B49,INDIRECT(\"'\"&A49&\"'!$10:$10\"),0)),0)","v":0},null,null,{"$f":"IFERROR(INDEX(INDIRECT(\"'\"&A49&\"'!$18:$50\"),MATCH($AM$1,INDIRECT(\"'\"&A49&\"'!$A$18:$A$50\"),0),MATCH(Parts!$B49,INDIRECT(\"'\"&A49&\"'!$10:$10\"),0)),0)","v":0},null,null,{"$f":"IFERROR(INDEX(INDIRECT(\"'\"&A49&\"'!$18:$50\"),MATCH($AP$1,INDIRECT(\"'\"&A49&\"'!$A$18:$A$50\"),0),MATCH(Parts!$B49,INDIRECT(\"'\"&A49&\"'!$10:$10\"),0)),0)","v":0},null,null,{"$f":"IFERROR(INDEX(INDIRECT(\"'\"&A49&\"'!$18:$50\"),MATCH($AS$1,INDIRECT(\"'\"&A49&\"'!$A$18:$A$50\"),0),MATCH(Parts!$B49,INDIRECT(\"'\"&A49&\"'!$10:$10\"),0)),0)","v":0},null,null,{"$f":"IFERROR(INDEX(INDIRECT(\"'\"&A49&\"'!$18:$50\"),MATCH($AV$1,INDIRECT(\"'\"&A49&\"'!$A$18:$A$50\"),0),MATCH(Parts!$B49,INDIRECT(\"'\"&A49&\"'!$10:$10\"),0)),0)","v":0},null,null,{"$f":"IFERROR(INDEX(INDIRECT(\"'\"&A49&\"'!$18:$50\"),MATCH($AY$1,INDIRECT(\"'\"&A49&\"'!$A$18:$A$50\"),0),MATCH(Parts!$B49,INDIRECT(\"'\"&A49&\"'!$10:$10\"),0)),0)","v":0},null,null,{"$f":"IFERROR(INDEX(INDIRECT(\"'\"&A49&\"'!$18:$50\"),MATCH($BB$1,INDIRECT(\"'\"&A49&\"'!$A$18:$A$50\"),0),MATCH(Parts!$B49,INDIRECT(\"'\"&A49&\"'!$10:$10\"),0)),0)","v":0},null,null,{"$f":"IFERROR(INDEX(INDIRECT(\"'\"&A49&\"'!$18:$50\"),MATCH($BE$1,INDIRECT(\"'\"&A49&\"'!$A$18:$A$50\"),0),MATCH(Parts!$B49,INDIRECT(\"'\"&A49&\"'!$10:$10\"),0)),0)","v":0},null,null,{"$f":"IFERROR(INDEX(INDIRECT(\"'\"&A49&\"'!$18:$50\"),MATCH($BH$1,INDIRECT(\"'\"&A49&\"'!$A$18:$A$50\"),0),MATCH(Parts!$B49,INDIRECT(\"'\"&A49&\"'!$10:$10\"),0)),0)","v":0},null,null,{"$f":"IFERROR(INDEX(INDIRECT(\"'\"&A49&\"'!$18:$50\"),MATCH($BK$1,INDIRECT(\"'\"&A49&\"'!$A$18:$A$50\"),0),MATCH(Parts!$B49,INDIRECT(\"'\"&A49&\"'!$10:$10\"),0)),0)","v":0},null,null,{"$f":"IFERROR(INDEX(INDIRECT(\"'\"&A49&\"'!$18:$50\"),MATCH($BN$1,INDIRECT(\"'\"&A49&\"'!$A$18:$A$50\"),0),MATCH(Parts!$B49,INDIRECT(\"'\"&A49&\"'!$10:$10\"),0)),0)","v":0},null,null,{"$f":"IFERROR(INDEX(INDIRECT(\"'\"&A49&\"'!$18:$50\"),MATCH($BQ$1,INDIRECT(\"'\"&A49&\"'!$A$18:$A$50\"),0),MATCH(Parts!$B49,INDIRECT(\"'\"&A49&\"'!$10:$10\"),0)),0)","v":0},null,null,{"$f":"IFERROR(INDEX(INDIRECT(\"'\"&A49&\"'!$18:$50\"),MATCH($BT$1,INDIRECT(\"'\"&A49&\"'!$A$18:$A$50\"),0),MATCH(Parts!$B49,INDIRECT(\"'\"&A49&\"'!$10:$10\"),0)),0)","v":0},null,null,{"$f":"IFERROR(INDEX(INDIRECT(\"'\"&A49&\"'!$18:$50\"),MATCH($BW$1,INDIRECT(\"'\"&A49&\"'!$A$18:$A$50\"),0),MATCH(Parts!$B49,INDIRECT(\"'\"&A49&\"'!$10:$10\"),0)),0)","v":0},null,null,{"$f":"IFERROR(INDEX(INDIRECT(\"'\"&A49&\"'!$18:$50\"),MATCH($BZ$1,INDIRECT(\"'\"&A49&\"'!$A$18:$A$50\"),0),MATCH(Parts!$B49,INDIRECT(\"'\"&A49&\"'!$10:$10\"),0)),0)","v":0},null,null,{"$f":"IFERROR(INDEX(INDIRECT(\"'\"&A49&\"'!$18:$50\"),MATCH($CC$1,INDIRECT(\"'\"&A49&\"'!$A$18:$A$50\"),0),MATCH(Parts!$B49,INDIRECT(\"'\"&A49&\"'!$10:$10\"),0)),0)","v":0},null,null,{"$f":"IFERROR(INDEX(INDIRECT(\"'\"&A49&\"'!$18:$50\"),MATCH($CF$1,INDIRECT(\"'\"&A49&\"'!$A$18:$A$50\"),0),MATCH(Parts!$B49,INDIRECT(\"'\"&A49&\"'!$10:$10\"),0)),0)","v":0},null,null,{"$f":"IFERROR(INDEX(INDIRECT(\"'\"&A49&\"'!$18:$50\"),MATCH($CI$1,INDIRECT(\"'\"&A49&\"'!$A$18:$A$50\"),0),MATCH(Parts!$B49,INDIRECT(\"'\"&A49&\"'!$10:$10\"),0)),0)","v":0},null,"Glass lamp (20), 6 6704-02/4, US$ 10.08",{"$f":"IFERROR(INDEX(INDIRECT(\"'\"&A49&\"'!$18:$50\"),MATCH($CL$1,INDIRECT(\"'\"&A49&\"'!$A$18:$A$50\"),0),MATCH(Parts!$B49,INDIRECT(\"'\"&A49&\"'!$10:$10\"),0)),0)","v":2},10.08,"Electric heater, 230 VAC (2), 17 37 38-29/5, US$ 14.11",{"$f":"IFERROR(INDEX(INDIRECT(\"'\"&A49&\"'!$18:$50\"),MATCH($CO$1,INDIRECT(\"'\"&A49&\"'!$A$18:$A$50\"),0),MATCH(Parts!$B49,INDIRECT(\"'\"&A49&\"'!$10:$10\"),0)),0)","v":1},14.11,null,{"$f":"IFERROR(INDEX(INDIRECT(\"'\"&A49&\"'!$18:$50\"),MATCH($CR$1,INDIRECT(\"'\"&A49&\"'!$A$18:$A$50\"),0),MATCH(Parts!$B49,INDIRECT(\"'\"&A49&\"'!$10:$10\"),0)),0)","v":0},null,null,{"$f":"IFERROR(INDEX(INDIRECT(\"'\"&A49&\"'!$18:$50\"),MATCH($CU$1,INDIRECT(\"'\"&A49&\"'!$A$18:$A$50\"),0),MATCH(Parts!$B49,INDIRECT(\"'\"&A49&\"'!$10:$10\"),0)),0)","v":0},null,null,{"$f":"IFERROR(INDEX(INDIRECT(\"'\"&A49&\"'!$18:$50\"),MATCH($CX$1,INDIRECT(\"'\"&A49&\"'!$A$18:$A$50\"),0),MATCH(Parts!$B49,INDIRECT(\"'\"&A49&\"'!$10:$10\"),0)),0)","v":0},null,"Wick, 25cm, for Kosmos No.10 burner (50), US$ 2.39; Wick, 50cm, for Kosmos No.10 burner, $4.32",{"$f":"IFERROR(INDEX(INDIRECT(\"'\"&A49&\"'!$18:$50\"),MATCH($DA$1,INDIRECT(\"'\"&A49&\"'!$A$18:$A$50\"),0),MATCH(Parts!$B49,INDIRECT(\"'\"&A49&\"'!$10:$10\"),0)),0)","v":5},{"$f":"(2.39+4.32)/2","v":3.3550000000000004},"Glass flue for Kosmos No.10 burner (10), US$4.82",{"$f":"IFERROR(INDEX(INDIRECT(\"'\"&A49&\"'!$18:$50\"),MATCH($DD$1,INDIRECT(\"'\"&A49&\"'!$A$18:$A$50\"),0),MATCH(Parts!$B49,INDIRECT(\"'\"&A49&\"'!$10:$10\"),0)),0)","v":1},4.82,"Wick cleaner (2), 289 00 65-00/2, US$ 3.47",{"$f":"IFERROR(INDEX(INDIRECT(\"'\"&A49&\"'!$18:$50\"),MATCH($DG$1,INDIRECT(\"'\"&A49&\"'!$A$18:$A$50\"),0),MATCH(Parts!$B49,INDIRECT(\"'\"&A49&\"'!$10:$10\"),0)),0)","v":1},3.47,"Flue brush (10), 151404-0/1, US$ 7.39",{"$f":"IFERROR(INDEX(INDIRECT(\"'\"&A49&\"'!$18:$50\"),MATCH($DJ$1,INDIRECT(\"'\"&A49&\"'!$A$18:$A$50\"),0),MATCH(Parts!$B49,INDIRECT(\"'\"&A49&\"'!$10:$10\"),0)),0)","v":1},7.39,null,{"$f":"IFERROR(INDEX(INDIRECT(\"'\"&A49&\"'!$18:$50\"),MATCH($DM$1,INDIRECT(\"'\"&A49&\"'!$A$18:$A$50\"),0),MATCH(Parts!$B49,INDIRECT(\"'\"&A49&\"'!$10:$10\"),0)),0)","v":0},null,null,{"$f":"IFERROR(INDEX(INDIRECT(\"'\"&A49&\"'!$18:$50\"),MATCH($DP$1,INDIRECT(\"'\"&A49&\"'!$A$18:$A$50\"),0),MATCH(Parts!$B49,INDIRECT(\"'\"&A49&\"'!$10:$10\"),0)),0)","v":0},null,null,{"$f":"IFERROR(INDEX(INDIRECT(\"'\"&A49&\"'!$18:$50\"),MATCH($DS$1,INDIRECT(\"'\"&A49&\"'!$A$18:$A$50\"),0),MATCH(Parts!$B49,INDIRECT(\"'\"&A49&\"'!$10:$10\"),0)),0)","v":0},null,null,{"$f":"IFERROR(INDEX(INDIRECT(\"'\"&A49&\"'!$18:$50\"),MATCH($DV$1,INDIRECT(\"'\"&A49&\"'!$A$18:$A$50\"),0),MATCH(Parts!$B49,INDIRECT(\"'\"&A49&\"'!$10:$10\"),0)),0)","v":0},null,null,{"$f":"IFERROR(INDEX(INDIRECT(\"'\"&A49&\"'!$18:$50\"),MATCH($DY$1,INDIRECT(\"'\"&A49&\"'!$A$18:$A$50\"),0),MATCH(Parts!$B49,INDIRECT(\"'\"&A49&\"'!$10:$10\"),0)),0)","v":0},null,null,{"$f":"IFERROR(INDEX(INDIRECT(\"'\"&A49&\"'!$18:$50\"),MATCH($EB$1,INDIRECT(\"'\"&A49&\"'!$A$18:$A$50\"),0),MATCH(Parts!$B49,INDIRECT(\"'\"&A49&\"'!$10:$10\"),0)),0)","v":0},null,null,{"$f":"IFERROR(INDEX(INDIRECT(\"'\"&A49&\"'!$18:$50\"),MATCH($EE$1,INDIRECT(\"'\"&A49&\"'!$A$18:$A$50\"),0),MATCH(Parts!$B49,INDIRECT(\"'\"&A49&\"'!$10:$10\"),0)),0)","v":0},null,null,{"$f":"IFERROR(INDEX(INDIRECT(\"'\"&A49&\"'!$18:$50\"),MATCH($EH$1,INDIRECT(\"'\"&A49&\"'!$A$18:$A$50\"),0),MATCH(Parts!$B49,INDIRECT(\"'\"&A49&\"'!$10:$10\"),0)),0)","v":0},null,null,{"$f":"IFERROR(INDEX(INDIRECT(\"'\"&A49&\"'!$18:$50\"),MATCH($EK$1,INDIRECT(\"'\"&A49&\"'!$A$18:$A$50\"),0),MATCH(Parts!$B49,INDIRECT(\"'\"&A49&\"'!$10:$10\"),0)),0)","v":0}]
[{"$f":"PQS!A52","v":"Kerosene"},{"$f":"PQS!B52","v":"E3/91-M "},{"$f":"PQS!E52","v":"RCW 50 EK"},{"$f":"PQS!P52","v":"€"},136.77000000000001,null,{"$f":"IFERROR(INDEX(INDIRECT(\"'\"&A50&\"'!$18:$50\"),MATCH(Parts!F$1,INDIRECT(\"'\"&A50&\"'!$A$18:$A$50\"),0),MATCH(Parts!$B50,INDIRECT(\"'\"&A50&\"'!$10:$10\"),0)),0)","v":0},null,"Thermostat, 292.2007.04, US$ 3.93",{"$f":"IFERROR(INDEX(INDIRECT(\"'\"&A50&\"'!$18:$50\"),MATCH($I$1,INDIRECT(\"'\"&A50&\"'!$A$18:$A$50\"),0),MATCH(Parts!$B50,INDIRECT(\"'\"&A50&\"'!$10:$10\"),0)),0)","v":1},3.93,null,{"$f":"IFERROR(INDEX(INDIRECT(\"'\"&A50&\"'!$18:$50\"),MATCH($L$1,INDIRECT(\"'\"&A50&\"'!$A$18:$A$50\"),0),MATCH(Parts!$B50,INDIRECT(\"'\"&A50&\"'!$10:$10\"),0)),0)","v":0},null,null,{"$f":"IFERROR(INDEX(INDIRECT(\"'\"&A50&\"'!$18:$50\"),MATCH($O$1,INDIRECT(\"'\"&A50&\"'!$A$18:$A$50\"),0),MATCH(Parts!$B50,INDIRECT(\"'\"&A50&\"'!$10:$10\"),0)),0)","v":0},null,null,{"$f":"IFERROR(INDEX(INDIRECT(\"'\"&A50&\"'!$18:$50\"),MATCH($R$1,INDIRECT(\"'\"&A50&\"'!$A$18:$A$50\"),0),MATCH(Parts!$B50,INDIRECT(\"'\"&A50&\"'!$10:$10\"),0)),0)","v":0},null,null,{"$f":"IFERROR(INDEX(INDIRECT(\"'\"&A50&\"'!$18:$50\"),MATCH($U$1,INDIRECT(\"'\"&A50&\"'!$A$18:$A$50\"),0),MATCH(Parts!$B50,INDIRECT(\"'\"&A50&\"'!$10:$10\"),0)),0)","v":0},null,null,{"$f":"IFERROR(INDEX(INDIRECT(\"'\"&A50&\"'!$18:$50\"),MATCH($X$1,INDIRECT(\"'\"&A50&\"'!$A$18:$A$50\"),0),MATCH(Parts!$B50,INDIRECT(\"'\"&A50&\"'!$10:$10\"),0)),0)","v":0},null,null,{"$f":"IFERROR(INDEX(INDIRECT(\"'\"&A50&\"'!$18:$50\"),MATCH($AA$1,INDIRECT(\"'\"&A50&\"'!$A$18:$A$50\"),0),MATCH(Parts!$B50,INDIRECT(\"'\"&A50&\"'!$10:$10\"),0)),0)","v":0},null,null,{"$f":"IFERROR(INDEX(INDIRECT(\"'\"&A50&\"'!$18:$50\"),MATCH($AD$1,INDIRECT(\"'\"&A50&\"'!$A$18:$A$50\"),0),MATCH(Parts!$B50,INDIRECT(\"'\"&A50&\"'!$10:$10\"),0)),0)","v":0},null,null,{"$f":"IFERROR(INDEX(INDIRECT(\"'\"&A50&\"'!$18:$50\"),MATCH($AG$1,INDIRECT(\"'\"&A50&\"'!$A$18:$A$50\"),0),MATCH(Parts!$B50,INDIRECT(\"'\"&A50&\"'!$10:$10\"),0)),0)","v":0},null,null,{"$f":"IFERROR(INDEX(INDIRECT(\"'\"&A50&\"'!$18:$50\"),MATCH($AJ$1,INDIRECT(\"'\"&A50&\"'!$A$18:$A$50\"),0),MATCH(Parts!$B50,INDIRECT(\"'\"&A50&\"'!$10:$10\"),0)),0)","v":0},null,null,{"$f":"IFERROR(INDEX(INDIRECT(\"'\"&A50&\"'!$18:$50\"),MATCH($AM$1,INDIRECT(\"'\"&A50&\"'!$A$18:$A$50\"),0),MATCH(Parts!$B50,INDIRECT(\"'\"&A50&\"'!$10:$10\"),0)),0)","v":0},null,null,{"$f":"IFERROR(INDEX(INDIRECT(\"'\"&A50&\"'!$18:$50\"),MATCH($AP$1,INDIRECT(\"'\"&A50&\"'!$A$18:$A$50\"),0),MATCH(Parts!$B50,INDIRECT(\"'\"&A50&\"'!$10:$10\"),0)),0)","v":0},null,null,{"$f":"IFERROR(INDEX(INDIRECT(\"'\"&A50&\"'!$18:$50\"),MATCH($AS$1,INDIRECT(\"'\"&A50&\"'!$A$18:$A$50\"),0),MATCH(Parts!$B50,INDIRECT(\"'\"&A50&\"'!$10:$10\"),0)),0)","v":0},null,null,{"$f":"IFERROR(INDEX(INDIRECT(\"'\"&A50&\"'!$18:$50\"),MATCH($AV$1,INDIRECT(\"'\"&A50&\"'!$A$18:$A$50\"),0),MATCH(Parts!$B50,INDIRECT(\"'\"&A50&\"'!$10:$10\"),0)),0)","v":0},null,null,{"$f":"IFERROR(INDEX(INDIRECT(\"'\"&A50&\"'!$18:$50\"),MATCH($AY$1,INDIRECT(\"'\"&A50&\"'!$A$18:$A$50\"),0),MATCH(Parts!$B50,INDIRECT(\"'\"&A50&\"'!$10:$10\"),0)),0)","v":0},null,null,{"$f":"IFERROR(INDEX(INDIRECT(\"'\"&A50&\"'!$18:$50\"),MATCH($BB$1,INDIRECT(\"'\"&A50&\"'!$A$18:$A$50\"),0),MATCH(Parts!$B50,INDIRECT(\"'\"&A50&\"'!$10:$10\"),0)),0)","v":0},null,null,{"$f":"IFERROR(INDEX(INDIRECT(\"'\"&A50&\"'!$18:$50\"),MATCH($BE$1,INDIRECT(\"'\"&A50&\"'!$A$18:$A$50\"),0),MATCH(Parts!$B50,INDIRECT(\"'\"&A50&\"'!$10:$10\"),0)),0)","v":0},null,null,{"$f":"IFERROR(INDEX(INDIRECT(\"'\"&A50&\"'!$18:$50\"),MATCH($BH$1,INDIRECT(\"'\"&A50&\"'!$A$18:$A$50\"),0),MATCH(Parts!$B50,INDIRECT(\"'\"&A50&\"'!$10:$10\"),0)),0)","v":0},null,null,{"$f":"IFERROR(INDEX(INDIRECT(\"'\"&A50&\"'!$18:$50\"),MATCH($BK$1,INDIRECT(\"'\"&A50&\"'!$A$18:$A$50\"),0),MATCH(Parts!$B50,INDIRECT(\"'\"&A50&\"'!$10:$10\"),0)),0)","v":0},null,null,{"$f":"IFERROR(INDEX(INDIRECT(\"'\"&A50&\"'!$18:$50\"),MATCH($BN$1,INDIRECT(\"'\"&A50&\"'!$A$18:$A$50\"),0),MATCH(Parts!$B50,INDIRECT(\"'\"&A50&\"'!$10:$10\"),0)),0)","v":0},null,null,{"$f":"IFERROR(INDEX(INDIRECT(\"'\"&A50&\"'!$18:$50\"),MATCH($BQ$1,INDIRECT(\"'\"&A50&\"'!$A$18:$A$50\"),0),MATCH(Parts!$B50,INDIRECT(\"'\"&A50&\"'!$10:$10\"),0)),0)","v":0},null,null,{"$f":"IFERROR(INDEX(INDIRECT(\"'\"&A50&\"'!$18:$50\"),MATCH($BT$1,INDIRECT(\"'\"&A50&\"'!$A$18:$A$50\"),0),MATCH(Parts!$B50,INDIRECT(\"'\"&A50&\"'!$10:$10\"),0)),0)","v":0},null,null,{"$f":"IFERROR(INDEX(INDIRECT(\"'\"&A50&\"'!$18:$50\"),MATCH($BW$1,INDIRECT(\"'\"&A50&\"'!$A$18:$A$50\"),0),MATCH(Parts!$B50,INDIRECT(\"'\"&A50&\"'!$10:$10\"),0)),0)","v":0},null,null,{"$f":"IFERROR(INDEX(INDIRECT(\"'\"&A50&\"'!$18:$50\"),MATCH($BZ$1,INDIRECT(\"'\"&A50&\"'!$A$18:$A$50\"),0),MATCH(Parts!$B50,INDIRECT(\"'\"&A50&\"'!$10:$10\"),0)),0)","v":0},null,null,{"$f":"IFERROR(INDEX(INDIRECT(\"'\"&A50&\"'!$18:$50\"),MATCH($CC$1,INDIRECT(\"'\"&A50&\"'!$A$18:$A$50\"),0),MATCH(Parts!$B50,INDIRECT(\"'\"&A50&\"'!$10:$10\"),0)),0)","v":0},null,null,{"$f":"IFERROR(INDEX(INDIRECT(\"'\"&A50&\"'!$18:$50\"),MATCH($CF$1,INDIRECT(\"'\"&A50&\"'!$A$18:$A$50\"),0),MATCH(Parts!$B50,INDIRECT(\"'\"&A50&\"'!$10:$10\"),0)),0)","v":0},null,null,{"$f":"IFERROR(INDEX(INDIRECT(\"'\"&A50&\"'!$18:$50\"),MATCH($CI$1,INDIRECT(\"'\"&A50&\"'!$A$18:$A$50\"),0),MATCH(Parts!$B50,INDIRECT(\"'\"&A50&\"'!$10:$10\"),0)),0)","v":0},null,null,{"$f":"IFERROR(INDEX(INDIRECT(\"'\"&A50&\"'!$18:$50\"),MATCH($CL$1,INDIRECT(\"'\"&A50&\"'!$A$18:$A$50\"),0),MATCH(Parts!$B50,INDIRECT(\"'\"&A50&\"'!$10:$10\"),0)),0)","v":0},null,"Electrical Heater 230 V, 296.9730.02, US$ 6.68",{"$f":"IFERROR(INDEX(INDIRECT(\"'\"&A50&\"'!$18:$50\"),MATCH($CO$1,INDIRECT(\"'\"&A50&\"'!$A$18:$A$50\"),0),MATCH(Parts!$B50,INDIRECT(\"'\"&A50&\"'!$10:$10\"),0)),0)","v":1},6.68,null,{"$f":"IFERROR(INDEX(INDIRECT(\"'\"&A50&\"'!$18:$50\"),MATCH($CR$1,INDIRECT(\"'\"&A50&\"'!$A$18:$A$50\"),0),MATCH(Parts!$B50,INDIRECT(\"'\"&A50&\"'!$10:$10\"),0)),0)","v":0},null,"32 Brass Burner C/W Long Tail Wick, P-990009",{"$f":"IFERROR(INDEX(INDIRECT(\"'\"&A50&\"'!$18:$50\"),MATCH($CU$1,INDIRECT(\"'\"&A50&\"'!$A$18:$A$50\"),0),MATCH(Parts!$B50,INDIRECT(\"'\"&A50&\"'!$10:$10\"),0)),0)","v":1},55.68,null,{"$f":"IFERROR(INDEX(INDIRECT(\"'\"&A50&\"'!$18:$50\"),MATCH($CX$1,INDIRECT(\"'\"&A50&\"'!$A$18:$A$50\"),0),MATCH(Parts!$B50,INDIRECT(\"'\"&A50&\"'!$10:$10\"),0)),0)","v":0},null,"Wick, long tail , cotton, for Aladdin size 32 burner(3), P-990820, US$ 4.90",{"$f":"IFERROR(INDEX(INDIRECT(\"'\"&A50&\"'!$18:$50\"),MATCH($DA$1,INDIRECT(\"'\"&A50&\"'!$A$18:$A$50\"),0),MATCH(Parts!$B50,INDIRECT(\"'\"&A50&\"'!$10:$10\"),0)),0)","v":10},4.9000000000000004,"Glass Flue for Aladdin size 32 burner(2), US$ 20.15",{"$f":"IFERROR(INDEX(INDIRECT(\"'\"&A50&\"'!$18:$50\"),MATCH($DD$1,INDIRECT(\"'\"&A50&\"'!$A$18:$A$50\"),0),MATCH(Parts!$B50,INDIRECT(\"'\"&A50&\"'!$10:$10\"),0)),0)","v":1},20.149999999999999,"Wick cleaner for Aladdin size 32 burner, $1.33",{"$f":"IFERROR(INDEX(INDIRECT(\"'\"&A50&\"'!$18:$50\"),MATCH($DG$1,INDIRECT(\"'\"&A50&\"'!$A$18:$A$50\"),0),MATCH(Parts!$B50,INDIRECT(\"'\"&A50&\"'!$10:$10\"),0)),0)","v":1},1.33,null,{"$f":"IFERROR(INDEX(INDIRECT(\"'\"&A50&\"'!$18:$50\"),MATCH($DJ$1,INDIRECT(\"'\"&A50&\"'!$A$18:$A$50\"),0),MATCH(Parts!$B50,INDIRECT(\"'\"&A50&\"'!$10:$10\"),0)),0)","v":0},null,null,{"$f":"IFERROR(INDEX(INDIRECT(\"'\"&A50&\"'!$18:$50\"),MATCH($DM$1,INDIRECT(\"'\"&A50&\"'!$A$18:$A$50\"),0),MATCH(Parts!$B50,INDIRECT(\"'\"&A50&\"'!$10:$10\"),0)),0)","v":0},null,null,{"$f":"IFERROR(INDEX(INDIRECT(\"'\"&A50&\"'!$18:$50\"),MATCH($DP$1,INDIRECT(\"'\"&A50&\"'!$A$18:$A$50\"),0),MATCH(Parts!$B50,INDIRECT(\"'\"&A50&\"'!$10:$10\"),0)),0)","v":0},null,null,{"$f":"IFERROR(INDEX(INDIRECT(\"'\"&A50&\"'!$18:$50\"),MATCH($DS$1,INDIRECT(\"'\"&A50&\"'!$A$18:$A$50\"),0),MATCH(Parts!$B50,INDIRECT(\"'\"&A50&\"'!$10:$10\"),0)),0)","v":0},null,null,{"$f":"IFERROR(INDEX(INDIRECT(\"'\"&A50&\"'!$18:$50\"),MATCH($DV$1,INDIRECT(\"'\"&A50&\"'!$A$18:$A$50\"),0),MATCH(Parts!$B50,INDIRECT(\"'\"&A50&\"'!$10:$10\"),0)),0)","v":0},null,null,{"$f":"IFERROR(INDEX(INDIRECT(\"'\"&A50&\"'!$18:$50\"),MATCH($DY$1,INDIRECT(\"'\"&A50&\"'!$A$18:$A$50\"),0),MATCH(Parts!$B50,INDIRECT(\"'\"&A50&\"'!$10:$10\"),0)),0)","v":0},null,null,{"$f":"IFERROR(INDEX(INDIRECT(\"'\"&A50&\"'!$18:$50\"),MATCH($EB$1,INDIRECT(\"'\"&A50&\"'!$A$18:$A$50\"),0),MATCH(Parts!$B50,INDIRECT(\"'\"&A50&\"'!$10:$10\"),0)),0)","v":0},null,null,{"$f":"IFERROR(INDEX(INDIRECT(\"'\"&A50&\"'!$18:$50\"),MATCH($EE$1,INDIRECT(\"'\"&A50&\"'!$A$18:$A$50\"),0),MATCH(Parts!$B50,INDIRECT(\"'\"&A50&\"'!$10:$10\"),0)),0)","v":0},null,null,{"$f":"IFERROR(INDEX(INDIRECT(\"'\"&A50&\"'!$18:$50\"),MATCH($EH$1,INDIRECT(\"'\"&A50&\"'!$A$18:$A$50\"),0),MATCH(Parts!$B50,INDIRECT(\"'\"&A50&\"'!$10:$10\"),0)),0)","v":0},null,null,{"$f":"IFERROR(INDEX(INDIRECT(\"'\"&A50&\"'!$18:$50\"),MATCH($EK$1,INDIRECT(\"'\"&A50&\"'!$A$18:$A$50\"),0),MATCH(Parts!$B50,INDIRECT(\"'\"&A50&\"'!$10:$10\"),0)),0)","v":0}]
[{"$f":"PQS!A53","v":"SDD"},{"$f":"PQS!B53","v":"E003/009"},{"$f":"PQS!E53","v":"MKS 044"},{"$f":"PQS!P53","v":"€"},437.57000000000011,"COMPRESSOR, SECOP BD35K 101Z0211 8-036510214",{"$f":"IFERROR(INDEX(INDIRECT(\"'\"&A51&\"'!$18:$50\"),MATCH(Parts!F$1,INDIRECT(\"'\"&A51&\"'!$A$18:$A$50\"),0),MATCH(Parts!$B51,INDIRECT(\"'\"&A51&\"'!$10:$10\"),0)),0)","v":1},245,"THERMOSTAT (VACCINE STORAGE) 6520128 - 11.58\nTHERMOSTAT (ICE BANK) 6520260 - 9.28",{"$f":"IFERROR(INDEX(INDIRECT(\"'\"&A51&\"'!$18:$50\"),MATCH($I$1,INDIRECT(\"'\"&A51&\"'!$A$18:$A$50\"),0),MATCH(Parts!$B51,INDIRECT(\"'\"&A51&\"'!$10:$10\"),0)),0)","v":2},{"$f":"AVERAGE(11.58,9.28)","v":10.43},"Electronics for BD35K compressor, ECU 6520258",{"$f":"IFERROR(INDEX(INDIRECT(\"'\"&A51&\"'!$18:$50\"),MATCH($L$1,INDIRECT(\"'\"&A51&\"'!$A$18:$A$50\"),0),MATCH(Parts!$B51,INDIRECT(\"'\"&A51&\"'!$10:$10\"),0)),0)","v":1},112.29,null,{"$f":"IFERROR(INDEX(INDIRECT(\"'\"&A51&\"'!$18:$50\"),MATCH($O$1,INDIRECT(\"'\"&A51&\"'!$A$18:$A$50\"),0),MATCH(Parts!$B51,INDIRECT(\"'\"&A51&\"'!$10:$10\"),0)),0)","v":0},null,null,{"$f":"IFERROR(INDEX(INDIRECT(\"'\"&A51&\"'!$18:$50\"),MATCH($R$1,INDIRECT(\"'\"&A51&\"'!$A$18:$A$50\"),0),MATCH(Parts!$B51,INDIRECT(\"'\"&A51&\"'!$10:$10\"),0)),0)","v":0},null,null,{"$f":"IFERROR(INDEX(INDIRECT(\"'\"&A51&\"'!$18:$50\"),MATCH($U$1,INDIRECT(\"'\"&A51&\"'!$A$18:$A$50\"),0),MATCH(Parts!$B51,INDIRECT(\"'\"&A51&\"'!$10:$10\"),0)),0)","v":0},null,"(FAN SET)  FAN EXTERNAL 7090099",{"$f":"IFERROR(INDEX(INDIRECT(\"'\"&A51&\"'!$18:$50\"),MATCH($X$1,INDIRECT(\"'\"&A51&\"'!$A$18:$A$50\"),0),MATCH(Parts!$B51,INDIRECT(\"'\"&A51&\"'!$10:$10\"),0)),0)","v":1},17.48,null,{"$f":"IFERROR(INDEX(INDIRECT(\"'\"&A51&\"'!$18:$50\"),MATCH($AA$1,INDIRECT(\"'\"&A51&\"'!$A$18:$A$50\"),0),MATCH(Parts!$B51,INDIRECT(\"'\"&A51&\"'!$10:$10\"),0)),0)","v":0},null,null,{"$f":"IFERROR(INDEX(INDIRECT(\"'\"&A51&\"'!$18:$50\"),MATCH($AD$1,INDIRECT(\"'\"&A51&\"'!$A$18:$A$50\"),0),MATCH(Parts!$B51,INDIRECT(\"'\"&A51&\"'!$10:$10\"),0)),0)","v":0},null,null,{"$f":"IFERROR(INDEX(INDIRECT(\"'\"&A51&\"'!$18:$50\"),MATCH($AG$1,INDIRECT(\"'\"&A51&\"'!$A$18:$A$50\"),0),MATCH(Parts!$B51,INDIRECT(\"'\"&A51&\"'!$10:$10\"),0)),0)","v":0},null,"E-box danfoss: BD35K, 71.50 €",{"$f":"IFERROR(INDEX(INDIRECT(\"'\"&A51&\"'!$18:$50\"),MATCH($AJ$1,INDIRECT(\"'\"&A51&\"'!$A$18:$A$50\"),0),MATCH(Parts!$B51,INDIRECT(\"'\"&A51&\"'!$10:$10\"),0)),0)","v":0},71.5,null,{"$f":"IFERROR(INDEX(INDIRECT(\"'\"&A51&\"'!$18:$50\"),MATCH($AM$1,INDIRECT(\"'\"&A51&\"'!$A$18:$A$50\"),0),MATCH(Parts!$B51,INDIRECT(\"'\"&A51&\"'!$10:$10\"),0)),0)","v":0},null,null,{"$f":"IFERROR(INDEX(INDIRECT(\"'\"&A51&\"'!$18:$50\"),MATCH($AP$1,INDIRECT(\"'\"&A51&\"'!$A$18:$A$50\"),0),MATCH(Parts!$B51,INDIRECT(\"'\"&A51&\"'!$10:$10\"),0)),0)","v":0},null,"BASKET FOR VACCINE STORAGE 353091701",{"$f":"IFERROR(INDEX(INDIRECT(\"'\"&A51&\"'!$18:$50\"),MATCH($AS$1,INDIRECT(\"'\"&A51&\"'!$A$18:$A$50\"),0),MATCH(Parts!$B51,INDIRECT(\"'\"&A51&\"'!$10:$10\"),0)),0)","v":1},8.73,null,{"$f":"IFERROR(INDEX(INDIRECT(\"'\"&A51&\"'!$18:$50\"),MATCH($AV$1,INDIRECT(\"'\"&A51&\"'!$A$18:$A$50\"),0),MATCH(Parts!$B51,INDIRECT(\"'\"&A51&\"'!$10:$10\"),0)),0)","v":0},null,null,{"$f":"IFERROR(INDEX(INDIRECT(\"'\"&A51&\"'!$18:$50\"),MATCH($AY$1,INDIRECT(\"'\"&A51&\"'!$A$18:$A$50\"),0),MATCH(Parts!$B51,INDIRECT(\"'\"&A51&\"'!$10:$10\"),0)),0)","v":0},null,null,{"$f":"IFERROR(INDEX(INDIRECT(\"'\"&A51&\"'!$18:$50\"),MATCH($BB$1,INDIRECT(\"'\"&A51&\"'!$A$18:$A$50\"),0),MATCH(Parts!$B51,INDIRECT(\"'\"&A51&\"'!$10:$10\"),0)),0)","v":0},null,null,{"$f":"IFERROR(INDEX(INDIRECT(\"'\"&A51&\"'!$18:$50\"),MATCH($BE$1,INDIRECT(\"'\"&A51&\"'!$A$18:$A$50\"),0),MATCH(Parts!$B51,INDIRECT(\"'\"&A51&\"'!$10:$10\"),0)),0)","v":0},null,"FILTER/DRIER TYPE XH 9 (20 GRS) 0-6538001",{"$f":"IFERROR(INDEX(INDIRECT(\"'\"&A51&\"'!$18:$50\"),MATCH($BH$1,INDIRECT(\"'\"&A51&\"'!$A$18:$A$50\"),0),MATCH(Parts!$B51,INDIRECT(\"'\"&A51&\"'!$10:$10\"),0)),0)","v":1},3.84,null,{"$f":"IFERROR(INDEX(INDIRECT(\"'\"&A51&\"'!$18:$50\"),MATCH($BK$1,INDIRECT(\"'\"&A51&\"'!$A$18:$A$50\"),0),MATCH(Parts!$B51,INDIRECT(\"'\"&A51&\"'!$10:$10\"),0)),0)","v":0},null,null,{"$f":"IFERROR(INDEX(INDIRECT(\"'\"&A51&\"'!$18:$50\"),MATCH($BN$1,INDIRECT(\"'\"&A51&\"'!$A$18:$A$50\"),0),MATCH(Parts!$B51,INDIRECT(\"'\"&A51&\"'!$10:$10\"),0)),0)","v":0},null,"HINGE WITH SPRING 1510029",{"$f":"IFERROR(INDEX(INDIRECT(\"'\"&A51&\"'!$18:$50\"),MATCH($BQ$1,INDIRECT(\"'\"&A51&\"'!$A$18:$A$50\"),0),MATCH(Parts!$B51,INDIRECT(\"'\"&A51&\"'!$10:$10\"),0)),0)","v":1},8.85,null,{"$f":"IFERROR(INDEX(INDIRECT(\"'\"&A51&\"'!$18:$50\"),MATCH($BT$1,INDIRECT(\"'\"&A51&\"'!$A$18:$A$50\"),0),MATCH(Parts!$B51,INDIRECT(\"'\"&A51&\"'!$10:$10\"),0)),0)","v":0},null,null,{"$f":"IFERROR(INDEX(INDIRECT(\"'\"&A51&\"'!$18:$50\"),MATCH($BW$1,INDIRECT(\"'\"&A51&\"'!$A$18:$A$50\"),0),MATCH(Parts!$B51,INDIRECT(\"'\"&A51&\"'!$10:$10\"),0)),0)","v":0},null,"THERMOMETER 7020164",{"$f":"IFERROR(INDEX(INDIRECT(\"'\"&A51&\"'!$18:$50\"),MATCH($BZ$1,INDIRECT(\"'\"&A51&\"'!$A$18:$A$50\"),0),MATCH(Parts!$B51,INDIRECT(\"'\"&A51&\"'!$10:$10\"),0)),0)","v":1},13.17,null,{"$f":"IFERROR(INDEX(INDIRECT(\"'\"&A51&\"'!$18:$50\"),MATCH($CC$1,INDIRECT(\"'\"&A51&\"'!$A$18:$A$50\"),0),MATCH(Parts!$B51,INDIRECT(\"'\"&A51&\"'!$10:$10\"),0)),0)","v":0},null,"HANDLE WITH LOCK AND KEY 304090501",{"$f":"IFERROR(INDEX(INDIRECT(\"'\"&A51&\"'!$18:$50\"),MATCH($CF$1,INDIRECT(\"'\"&A51&\"'!$A$18:$A$50\"),0),MATCH(Parts!$B51,INDIRECT(\"'\"&A51&\"'!$10:$10\"),0)),0)","v":1},7.35,null,{"$f":"IFERROR(INDEX(INDIRECT(\"'\"&A51&\"'!$18:$50\"),MATCH($CI$1,INDIRECT(\"'\"&A51&\"'!$A$18:$A$50\"),0),MATCH(Parts!$B51,INDIRECT(\"'\"&A51&\"'!$10:$10\"),0)),0)","v":0},null,null,{"$f":"IFERROR(INDEX(INDIRECT(\"'\"&A51&\"'!$18:$50\"),MATCH($CL$1,INDIRECT(\"'\"&A51&\"'!$A$18:$A$50\"),0),MATCH(Parts!$B51,INDIRECT(\"'\"&A51&\"'!$10:$10\"),0)),0)","v":0},null,null,{"$f":"IFERROR(INDEX(INDIRECT(\"'\"&A51&\"'!$18:$50\"),MATCH($CO$1,INDIRECT(\"'\"&A51&\"'!$A$18:$A$50\"),0),MATCH(Parts!$B51,INDIRECT(\"'\"&A51&\"'!$10:$10\"),0)),0)","v":0},null,null,{"$f":"IFERROR(INDEX(INDIRECT(\"'\"&A51&\"'!$18:$50\"),MATCH($CR$1,INDIRECT(\"'\"&A51&\"'!$A$18:$A$50\"),0),MATCH(Parts!$B51,INDIRECT(\"'\"&A51&\"'!$10:$10\"),0)),0)","v":0},null,null,{"$f":"IFERROR(INDEX(INDIRECT(\"'\"&A51&\"'!$18:$50\"),MATCH($CU$1,INDIRECT(\"'\"&A51&\"'!$A$18:$A$50\"),0),MATCH(Parts!$B51,INDIRECT(\"'\"&A51&\"'!$10:$10\"),0)),0)","v":0},null,null,{"$f":"IFERROR(INDEX(INDIRECT(\"'\"&A51&\"'!$18:$50\"),MATCH($CX$1,INDIRECT(\"'\"&A51&\"'!$A$18:$A$50\"),0),MATCH(Parts!$B51,INDIRECT(\"'\"&A51&\"'!$10:$10\"),0)),0)","v":0},null,null,{"$f":"IFERROR(INDEX(INDIRECT(\"'\"&A51&\"'!$18:$50\"),MATCH($DA$1,INDIRECT(\"'\"&A51&\"'!$A$18:$A$50\"),0),MATCH(Parts!$B51,INDIRECT(\"'\"&A51&\"'!$10:$10\"),0)),0)","v":0},null,null,{"$f":"IFERROR(INDEX(INDIRECT(\"'\"&A51&\"'!$18:$50\"),MATCH($DD$1,INDIRECT(\"'\"&A51&\"'!$A$18:$A$50\"),0),MATCH(Parts!$B51,INDIRECT(\"'\"&A51&\"'!$10:$10\"),0)),0)","v":0},null,null,{"$f":"IFERROR(INDEX(INDIRECT(\"'\"&A51&\"'!$18:$50\"),MATCH($DG$1,INDIRECT(\"'\"&A51&\"'!$A$18:$A$50\"),0),MATCH(Parts!$B51,INDIRECT(\"'\"&A51&\"'!$10:$10\"),0)),0)","v":0},null,null,{"$f":"IFERROR(INDEX(INDIRECT(\"'\"&A51&\"'!$18:$50\"),MATCH($DJ$1,INDIRECT(\"'\"&A51&\"'!$A$18:$A$50\"),0),MATCH(Parts!$B51,INDIRECT(\"'\"&A51&\"'!$10:$10\"),0)),0)","v":0},null,null,{"$f":"IFERROR(INDEX(INDIRECT(\"'\"&A51&\"'!$18:$50\"),MATCH($DM$1,INDIRECT(\"'\"&A51&\"'!$A$18:$A$50\"),0),MATCH(Parts!$B51,INDIRECT(\"'\"&A51&\"'!$10:$10\"),0)),0)","v":0},null,null,{"$f":"IFERROR(INDEX(INDIRECT(\"'\"&A51&\"'!$18:$50\"),MATCH($DP$1,INDIRECT(\"'\"&A51&\"'!$A$18:$A$50\"),0),MATCH(Parts!$B51,INDIRECT(\"'\"&A51&\"'!$10:$10\"),0)),0)","v":0},null,null,{"$f":"IFERROR(INDEX(INDIRECT(\"'\"&A51&\"'!$18:$50\"),MATCH($DS$1,INDIRECT(\"'\"&A51&\"'!$A$18:$A$50\"),0),MATCH(Parts!$B51,INDIRECT(\"'\"&A51&\"'!$10:$10\"),0)),0)","v":0},null,null,{"$f":"IFERROR(INDEX(INDIRECT(\"'\"&A51&\"'!$18:$50\"),MATCH($DV$1,INDIRECT(\"'\"&A51&\"'!$A$18:$A$50\"),0),MATCH(Parts!$B51,INDIRECT(\"'\"&A51&\"'!$10:$10\"),0)),0)","v":0},null,null,{"$f":"IFERROR(INDEX(INDIRECT(\"'\"&A51&\"'!$18:$50\"),MATCH($DY$1,INDIRECT(\"'\"&A51&\"'!$A$18:$A$50\"),0),MATCH(Parts!$B51,INDIRECT(\"'\"&A51&\"'!$10:$10\"),0)),0)","v":0},null,null,{"$f":"IFERROR(INDEX(INDIRECT(\"'\"&A51&\"'!$18:$50\"),MATCH($EB$1,INDIRECT(\"'\"&A51&\"'!$A$18:$A$50\"),0),MATCH(Parts!$B51,INDIRECT(\"'\"&A51&\"'!$10:$10\"),0)),0)","v":0},null,null,{"$f":"IFERROR(INDEX(INDIRECT(\"'\"&A51&\"'!$18:$50\"),MATCH($EE$1,INDIRECT(\"'\"&A51&\"'!$A$18:$A$50\"),0),MATCH(Parts!$B51,INDIRECT(\"'\"&A51&\"'!$10:$10\"),0)),0)","v":0},null,null,{"$f":"IFERROR(INDEX(INDIRECT(\"'\"&A51&\"'!$18:$50\"),MATCH($EH$1,INDIRECT(\"'\"&A51&\"'!$A$18:$A$50\"),0),MATCH(Parts!$B51,INDIRECT(\"'\"&A51&\"'!$10:$10\"),0)),0)","v":0},null,null,{"$f":"IFERROR(INDEX(INDIRECT(\"'\"&A51&\"'!$18:$50\"),MATCH($EK$1,INDIRECT(\"'\"&A51&\"'!$A$18:$A$50\"),0),MATCH(Parts!$B51,INDIRECT(\"'\"&A51&\"'!$10:$10\"),0)),0)","v":0}]
[{"$f":"PQS!A54","v":"SDD"},{"$f":"PQS!B54","v":"E003/029"},{"$f":"PQS!E54","v":"HTC-60"},{"$f":"PQS!P54","v":"$"},249.35000000000002,"Compressor Danfoss - 0274000118; 180 USD",{"$f":"IFERROR(INDEX(INDIRECT(\"'\"&A52&\"'!$18:$50\"),MATCH(Parts!F$1,INDIRECT(\"'\"&A52&\"'!$A$18:$A$50\"),0),MATCH(Parts!$B52,INDIRECT(\"'\"&A52&\"'!$10:$10\"),0)),0)","v":1},180,"Thermostat, 0074091494; 27.6 USD",{"$f":"IFERROR(INDEX(INDIRECT(\"'\"&A52&\"'!$18:$50\"),MATCH($I$1,INDIRECT(\"'\"&A52&\"'!$A$18:$A$50\"),0),MATCH(Parts!$B52,INDIRECT(\"'\"&A52&\"'!$10:$10\"),0)),0)","v":1},27.6,"Electric controller - 0274000185; 30 USD",{"$f":"IFERROR(INDEX(INDIRECT(\"'\"&A52&\"'!$18:$50\"),MATCH($L$1,INDIRECT(\"'\"&A52&\"'!$A$18:$A$50\"),0),MATCH(Parts!$B52,INDIRECT(\"'\"&A52&\"'!$10:$10\"),0)),0)","v":0},30,null,{"$f":"IFERROR(INDEX(INDIRECT(\"'\"&A52&\"'!$18:$50\"),MATCH($O$1,INDIRECT(\"'\"&A52&\"'!$A$18:$A$50\"),0),MATCH(Parts!$B52,INDIRECT(\"'\"&A52&\"'!$10:$10\"),0)),0)","v":0},null,"Control panel：0072040234",{"$f":"IFERROR(INDEX(INDIRECT(\"'\"&A52&\"'!$18:$50\"),MATCH($R$1,INDIRECT(\"'\"&A52&\"'!$A$18:$A$50\"),0),MATCH(Parts!$B52,INDIRECT(\"'\"&A52&\"'!$10:$10\"),0)),0)","v":1},1.55,"Sensor for e-thermostat：0274000185A",{"$f":"IFERROR(INDEX(INDIRECT(\"'\"&A52&\"'!$18:$50\"),MATCH($U$1,INDIRECT(\"'\"&A52&\"'!$A$18:$A$50\"),0),MATCH(Parts!$B52,INDIRECT(\"'\"&A52&\"'!$10:$10\"),0)),0)","v":1},null,"Fan： 0074000329 ",{"$f":"IFERROR(INDEX(INDIRECT(\"'\"&A52&\"'!$18:$50\"),MATCH($X$1,INDIRECT(\"'\"&A52&\"'!$A$18:$A$50\"),0),MATCH(Parts!$B52,INDIRECT(\"'\"&A52&\"'!$10:$10\"),0)),0)","v":1},19.22,null,{"$f":"IFERROR(INDEX(INDIRECT(\"'\"&A52&\"'!$18:$50\"),MATCH($AA$1,INDIRECT(\"'\"&A52&\"'!$A$18:$A$50\"),0),MATCH(Parts!$B52,INDIRECT(\"'\"&A52&\"'!$10:$10\"),0)),0)","v":0},null,null,{"$f":"IFERROR(INDEX(INDIRECT(\"'\"&A52&\"'!$18:$50\"),MATCH($AD$1,INDIRECT(\"'\"&A52&\"'!$A$18:$A$50\"),0),MATCH(Parts!$B52,INDIRECT(\"'\"&A52&\"'!$10:$10\"),0)),0)","v":0},null,null,{"$f":"IFERROR(INDEX(INDIRECT(\"'\"&A52&\"'!$18:$50\"),MATCH($AG$1,INDIRECT(\"'\"&A52&\"'!$A$18:$A$50\"),0),MATCH(Parts!$B52,INDIRECT(\"'\"&A52&\"'!$10:$10\"),0)),0)","v":0},null,null,{"$f":"IFERROR(INDEX(INDIRECT(\"'\"&A52&\"'!$18:$50\"),MATCH($AJ$1,INDIRECT(\"'\"&A52&\"'!$A$18:$A$50\"),0),MATCH(Parts!$B52,INDIRECT(\"'\"&A52&\"'!$10:$10\"),0)),0)","v":0},null,"Switch：0274000098",{"$f":"IFERROR(INDEX(INDIRECT(\"'\"&A52&\"'!$18:$50\"),MATCH($AM$1,INDIRECT(\"'\"&A52&\"'!$A$18:$A$50\"),0),MATCH(Parts!$B52,INDIRECT(\"'\"&A52&\"'!$10:$10\"),0)),0)","v":1},2,null,{"$f":"IFERROR(INDEX(INDIRECT(\"'\"&A52&\"'!$18:$50\"),MATCH($AP$1,INDIRECT(\"'\"&A52&\"'!$A$18:$A$50\"),0),MATCH(Parts!$B52,INDIRECT(\"'\"&A52&\"'!$10:$10\"),0)),0)","v":0},null,"baskets：0270100797",{"$f":"IFERROR(INDEX(INDIRECT(\"'\"&A52&\"'!$18:$50\"),MATCH($AS$1,INDIRECT(\"'\"&A52&\"'!$A$18:$A$50\"),0),MATCH(Parts!$B52,INDIRECT(\"'\"&A52&\"'!$10:$10\"),0)),0)","v":1},4.05,null,{"$f":"IFERROR(INDEX(INDIRECT(\"'\"&A52&\"'!$18:$50\"),MATCH($AV$1,INDIRECT(\"'\"&A52&\"'!$A$18:$A$50\"),0),MATCH(Parts!$B52,INDIRECT(\"'\"&A52&\"'!$10:$10\"),0)),0)","v":0},null,null,{"$f":"IFERROR(INDEX(INDIRECT(\"'\"&A52&\"'!$18:$50\"),MATCH($AY$1,INDIRECT(\"'\"&A52&\"'!$A$18:$A$50\"),0),MATCH(Parts!$B52,INDIRECT(\"'\"&A52&\"'!$10:$10\"),0)),0)","v":0},null,null,{"$f":"IFERROR(INDEX(INDIRECT(\"'\"&A52&\"'!$18:$50\"),MATCH($BB$1,INDIRECT(\"'\"&A52&\"'!$A$18:$A$50\"),0),MATCH(Parts!$B52,INDIRECT(\"'\"&A52&\"'!$10:$10\"),0)),0)","v":0},null,null,{"$f":"IFERROR(INDEX(INDIRECT(\"'\"&A52&\"'!$18:$50\"),MATCH($BE$1,INDIRECT(\"'\"&A52&\"'!$A$18:$A$50\"),0),MATCH(Parts!$B52,INDIRECT(\"'\"&A52&\"'!$10:$10\"),0)),0)","v":0},null,"Dry filter：0074180006",{"$f":"IFERROR(INDEX(INDIRECT(\"'\"&A52&\"'!$18:$50\"),MATCH($BH$1,INDIRECT(\"'\"&A52&\"'!$A$18:$A$50\"),0),MATCH(Parts!$B52,INDIRECT(\"'\"&A52&\"'!$10:$10\"),0)),0)","v":1},2,null,{"$f":"IFERROR(INDEX(INDIRECT(\"'\"&A52&\"'!$18:$50\"),MATCH($BK$1,INDIRECT(\"'\"&A52&\"'!$A$18:$A$50\"),0),MATCH(Parts!$B52,INDIRECT(\"'\"&A52&\"'!$10:$10\"),0)),0)","v":0},null,null,{"$f":"IFERROR(INDEX(INDIRECT(\"'\"&A52&\"'!$18:$50\"),MATCH($BN$1,INDIRECT(\"'\"&A52&\"'!$A$18:$A$50\"),0),MATCH(Parts!$B52,INDIRECT(\"'\"&A52&\"'!$10:$10\"),0)),0)","v":0},null,"Hinge：0070816334",{"$f":"IFERROR(INDEX(INDIRECT(\"'\"&A52&\"'!$18:$50\"),MATCH($BQ$1,INDIRECT(\"'\"&A52&\"'!$A$18:$A$50\"),0),MATCH(Parts!$B52,INDIRECT(\"'\"&A52&\"'!$10:$10\"),0)),0)","v":1},3,"Hinge cover：0070203942 and 0070204349",{"$f":"IFERROR(INDEX(INDIRECT(\"'\"&A52&\"'!$18:$50\"),MATCH($BT$1,INDIRECT(\"'\"&A52&\"'!$A$18:$A$50\"),0),MATCH(Parts!$B52,INDIRECT(\"'\"&A52&\"'!$10:$10\"),0)),0)","v":1},1,null,{"$f":"IFERROR(INDEX(INDIRECT(\"'\"&A52&\"'!$18:$50\"),MATCH($BW$1,INDIRECT(\"'\"&A52&\"'!$A$18:$A$50\"),0),MATCH(Parts!$B52,INDIRECT(\"'\"&A52&\"'!$10:$10\"),0)),0)","v":0},null,"Thermometer：0271400001",{"$f":"IFERROR(INDEX(INDIRECT(\"'\"&A52&\"'!$18:$50\"),MATCH($BZ$1,INDIRECT(\"'\"&A52&\"'!$A$18:$A$50\"),0),MATCH(Parts!$B52,INDIRECT(\"'\"&A52&\"'!$10:$10\"),0)),0)","v":1},null,"Ice Pack：0070203825:54PCS / 0070204757: 1PCS",{"$f":"IFERROR(INDEX(INDIRECT(\"'\"&A52&\"'!$18:$50\"),MATCH($CC$1,INDIRECT(\"'\"&A52&\"'!$A$18:$A$50\"),0),MATCH(Parts!$B52,INDIRECT(\"'\"&A52&\"'!$10:$10\"),0)),0)","v":1},1,"Handle：0070814623",{"$f":"IFERROR(INDEX(INDIRECT(\"'\"&A52&\"'!$18:$50\"),MATCH($CF$1,INDIRECT(\"'\"&A52&\"'!$A$18:$A$50\"),0),MATCH(Parts!$B52,INDIRECT(\"'\"&A52&\"'!$10:$10\"),0)),0)","v":1},3.38,"wire：0270400211",{"$f":"IFERROR(INDEX(INDIRECT(\"'\"&A52&\"'!$18:$50\"),MATCH($CI$1,INDIRECT(\"'\"&A52&\"'!$A$18:$A$50\"),0),MATCH(Parts!$B52,INDIRECT(\"'\"&A52&\"'!$10:$10\"),0)),0)","v":1},4.55,null,{"$f":"IFERROR(INDEX(INDIRECT(\"'\"&A52&\"'!$18:$50\"),MATCH($CL$1,INDIRECT(\"'\"&A52&\"'!$A$18:$A$50\"),0),MATCH(Parts!$B52,INDIRECT(\"'\"&A52&\"'!$10:$10\"),0)),0)","v":0},null,null,{"$f":"IFERROR(INDEX(INDIRECT(\"'\"&A52&\"'!$18:$50\"),MATCH($CO$1,INDIRECT(\"'\"&A52&\"'!$A$18:$A$50\"),0),MATCH(Parts!$B52,INDIRECT(\"'\"&A52&\"'!$10:$10\"),0)),0)","v":0},null,null,{"$f":"IFERROR(INDEX(INDIRECT(\"'\"&A52&\"'!$18:$50\"),MATCH($CR$1,INDIRECT(\"'\"&A52&\"'!$A$18:$A$50\"),0),MATCH(Parts!$B52,INDIRECT(\"'\"&A52&\"'!$10:$10\"),0)),0)","v":0},null,null,{"$f":"IFERROR(INDEX(INDIRECT(\"'\"&A52&\"'!$18:$50\"),MATCH($CU$1,INDIRECT(\"'\"&A52&\"'!$A$18:$A$50\"),0),MATCH(Parts!$B52,INDIRECT(\"'\"&A52&\"'!$10:$10\"),0)),0)","v":0},null,null,{"$f":"IFERROR(INDEX(INDIRECT(\"'\"&A52&\"'!$18:$50\"),MATCH($CX$1,INDIRECT(\"'\"&A52&\"'!$A$18:$A$50\"),0),MATCH(Parts!$B52,INDIRECT(\"'\"&A52&\"'!$10:$10\"),0)),0)","v":0},null,null,{"$f":"IFERROR(INDEX(INDIRECT(\"'\"&A52&\"'!$18:$50\"),MATCH($DA$1,INDIRECT(\"'\"&A52&\"'!$A$18:$A$50\"),0),MATCH(Parts!$B52,INDIRECT(\"'\"&A52&\"'!$10:$10\"),0)),0)","v":0},null,null,{"$f":"IFERROR(INDEX(INDIRECT(\"'\"&A52&\"'!$18:$50\"),MATCH($DD$1,INDIRECT(\"'\"&A52&\"'!$A$18:$A$50\"),0),MATCH(Parts!$B52,INDIRECT(\"'\"&A52&\"'!$10:$10\"),0)),0)","v":0},null,null,{"$f":"IFERROR(INDEX(INDIRECT(\"'\"&A52&\"'!$18:$50\"),MATCH($DG$1,INDIRECT(\"'\"&A52&\"'!$A$18:$A$50\"),0),MATCH(Parts!$B52,INDIRECT(\"'\"&A52&\"'!$10:$10\"),0)),0)","v":0},null,null,{"$f":"IFERROR(INDEX(INDIRECT(\"'\"&A52&\"'!$18:$50\"),MATCH($DJ$1,INDIRECT(\"'\"&A52&\"'!$A$18:$A$50\"),0),MATCH(Parts!$B52,INDIRECT(\"'\"&A52&\"'!$10:$10\"),0)),0)","v":0},null,null,{"$f":"IFERROR(INDEX(INDIRECT(\"'\"&A52&\"'!$18:$50\"),MATCH($DM$1,INDIRECT(\"'\"&A52&\"'!$A$18:$A$50\"),0),MATCH(Parts!$B52,INDIRECT(\"'\"&A52&\"'!$10:$10\"),0)),0)","v":0},null,null,{"$f":"IFERROR(INDEX(INDIRECT(\"'\"&A52&\"'!$18:$50\"),MATCH($DP$1,INDIRECT(\"'\"&A52&\"'!$A$18:$A$50\"),0),MATCH(Parts!$B52,INDIRECT(\"'\"&A52&\"'!$10:$10\"),0)),0)","v":0},null,null,{"$f":"IFERROR(INDEX(INDIRECT(\"'\"&A52&\"'!$18:$50\"),MATCH($DS$1,INDIRECT(\"'\"&A52&\"'!$A$18:$A$50\"),0),MATCH(Parts!$B52,INDIRECT(\"'\"&A52&\"'!$10:$10\"),0)),0)","v":0},null,null,{"$f":"IFERROR(INDEX(INDIRECT(\"'\"&A52&\"'!$18:$50\"),MATCH($DV$1,INDIRECT(\"'\"&A52&\"'!$A$18:$A$50\"),0),MATCH(Parts!$B52,INDIRECT(\"'\"&A52&\"'!$10:$10\"),0)),0)","v":0},null,null,{"$f":"IFERROR(INDEX(INDIRECT(\"'\"&A52&\"'!$18:$50\"),MATCH($DY$1,INDIRECT(\"'\"&A52&\"'!$A$18:$A$50\"),0),MATCH(Parts!$B52,INDIRECT(\"'\"&A52&\"'!$10:$10\"),0)),0)","v":0},null,null,{"$f":"IFERROR(INDEX(INDIRECT(\"'\"&A52&\"'!$18:$50\"),MATCH($EB$1,INDIRECT(\"'\"&A52&\"'!$A$18:$A$50\"),0),MATCH(Parts!$B52,INDIRECT(\"'\"&A52&\"'!$10:$10\"),0)),0)","v":0},null,null,{"$f":"IFERROR(INDEX(INDIRECT(\"'\"&A52&\"'!$18:$50\"),MATCH($EE$1,INDIRECT(\"'\"&A52&\"'!$A$18:$A$50\"),0),MATCH(Parts!$B52,INDIRECT(\"'\"&A52&\"'!$10:$10\"),0)),0)","v":0},null,null,{"$f":"IFERROR(INDEX(INDIRECT(\"'\"&A52&\"'!$18:$50\"),MATCH($EH$1,INDIRECT(\"'\"&A52&\"'!$A$18:$A$50\"),0),MATCH(Parts!$B52,INDIRECT(\"'\"&A52&\"'!$10:$10\"),0)),0)","v":0},null,null,{"$f":"IFERROR(INDEX(INDIRECT(\"'\"&A52&\"'!$18:$50\"),MATCH($EK$1,INDIRECT(\"'\"&A52&\"'!$A$18:$A$50\"),0),MATCH(Parts!$B52,INDIRECT(\"'\"&A52&\"'!$10:$10\"),0)),0)","v":0}]
[{"$f":"PQS!A55","v":"SDD"},{"$f":"PQS!B55","v":"E003/020"},{"$f":"PQS!E55","v":"BFRV 55*"},{"$f":"PQS!P55","v":"$"},430,"Compressor: 101Z0203, 120 USD",{"$f":"IFERROR(INDEX(INDIRECT(\"'\"&A53&\"'!$18:$50\"),MATCH(Parts!F$1,INDIRECT(\"'\"&A53&\"'!$A$18:$A$50\"),0),MATCH(Parts!$B53,INDIRECT(\"'\"&A53&\"'!$10:$10\"),0)),0)","v":1},100,"Electronic Thermostat: SDZR-PCB 7.5, 70 USD",{"$f":"IFERROR(INDEX(INDIRECT(\"'\"&A53&\"'!$18:$50\"),MATCH($I$1,INDIRECT(\"'\"&A53&\"'!$A$18:$A$50\"),0),MATCH(Parts!$B53,INDIRECT(\"'\"&A53&\"'!$10:$10\"),0)),0)","v":1},70,"Electronic Control Unit: 101N0212, 120 USD",{"$f":"IFERROR(INDEX(INDIRECT(\"'\"&A53&\"'!$18:$50\"),MATCH($L$1,INDIRECT(\"'\"&A53&\"'!$A$18:$A$50\"),0),MATCH(Parts!$B53,INDIRECT(\"'\"&A53&\"'!$10:$10\"),0)),0)","v":1},100,null,{"$f":"IFERROR(INDEX(INDIRECT(\"'\"&A53&\"'!$18:$50\"),MATCH($O$1,INDIRECT(\"'\"&A53&\"'!$A$18:$A$50\"),0),MATCH(Parts!$B53,INDIRECT(\"'\"&A53&\"'!$10:$10\"),0)),0)","v":0},null,null,{"$f":"IFERROR(INDEX(INDIRECT(\"'\"&A53&\"'!$18:$50\"),MATCH($R$1,INDIRECT(\"'\"&A53&\"'!$A$18:$A$50\"),0),MATCH(Parts!$B53,INDIRECT(\"'\"&A53&\"'!$10:$10\"),0)),0)","v":0},null,null,{"$f":"IFERROR(INDEX(INDIRECT(\"'\"&A53&\"'!$18:$50\"),MATCH($U$1,INDIRECT(\"'\"&A53&\"'!$A$18:$A$50\"),0),MATCH(Parts!$B53,INDIRECT(\"'\"&A53&\"'!$10:$10\"),0)),0)","v":0},null,"ECU Fan and Condenser Fan set: 11SD001, 30 USD",{"$f":"IFERROR(INDEX(INDIRECT(\"'\"&A53&\"'!$18:$50\"),MATCH($X$1,INDIRECT(\"'\"&A53&\"'!$A$18:$A$50\"),0),MATCH(Parts!$B53,INDIRECT(\"'\"&A53&\"'!$10:$10\"),0)),0)","v":0},30,null,{"$f":"IFERROR(INDEX(INDIRECT(\"'\"&A53&\"'!$18:$50\"),MATCH($AA$1,INDIRECT(\"'\"&A53&\"'!$A$18:$A$50\"),0),MATCH(Parts!$B53,INDIRECT(\"'\"&A53&\"'!$10:$10\"),0)),0)","v":0},null,null,{"$f":"IFERROR(INDEX(INDIRECT(\"'\"&A53&\"'!$18:$50\"),MATCH($AD$1,INDIRECT(\"'\"&A53&\"'!$A$18:$A$50\"),0),MATCH(Parts!$B53,INDIRECT(\"'\"&A53&\"'!$10:$10\"),0)),0)","v":0},null,null,{"$f":"IFERROR(INDEX(INDIRECT(\"'\"&A53&\"'!$18:$50\"),MATCH($AG$1,INDIRECT(\"'\"&A53&\"'!$A$18:$A$50\"),0),MATCH(Parts!$B53,INDIRECT(\"'\"&A53&\"'!$10:$10\"),0)),0)","v":0},null,null,{"$f":"IFERROR(INDEX(INDIRECT(\"'\"&A53&\"'!$18:$50\"),MATCH($AJ$1,INDIRECT(\"'\"&A53&\"'!$A$18:$A$50\"),0),MATCH(Parts!$B53,INDIRECT(\"'\"&A53&\"'!$10:$10\"),0)),0)","v":0},null,"Med/High Capacity Toggle Switch",{"$f":"IFERROR(INDEX(INDIRECT(\"'\"&A53&\"'!$18:$50\"),MATCH($AM$1,INDIRECT(\"'\"&A53&\"'!$A$18:$A$50\"),0),MATCH(Parts!$B53,INDIRECT(\"'\"&A53&\"'!$10:$10\"),0)),0)","v":1},10,null,{"$f":"IFERROR(INDEX(INDIRECT(\"'\"&A53&\"'!$18:$50\"),MATCH($AP$1,INDIRECT(\"'\"&A53&\"'!$A$18:$A$50\"),0),MATCH(Parts!$B53,INDIRECT(\"'\"&A53&\"'!$10:$10\"),0)),0)","v":0},null,null,{"$f":"IFERROR(INDEX(INDIRECT(\"'\"&A53&\"'!$18:$50\"),MATCH($AS$1,INDIRECT(\"'\"&A53&\"'!$A$18:$A$50\"),0),MATCH(Parts!$B53,INDIRECT(\"'\"&A53&\"'!$10:$10\"),0)),0)","v":0},null,null,{"$f":"IFERROR(INDEX(INDIRECT(\"'\"&A53&\"'!$18:$50\"),MATCH($AV$1,INDIRECT(\"'\"&A53&\"'!$A$18:$A$50\"),0),MATCH(Parts!$B53,INDIRECT(\"'\"&A53&\"'!$10:$10\"),0)),0)","v":0},null,null,{"$f":"IFERROR(INDEX(INDIRECT(\"'\"&A53&\"'!$18:$50\"),MATCH($AY$1,INDIRECT(\"'\"&A53&\"'!$A$18:$A$50\"),0),MATCH(Parts!$B53,INDIRECT(\"'\"&A53&\"'!$10:$10\"),0)),0)","v":0},null,null,{"$f":"IFERROR(INDEX(INDIRECT(\"'\"&A53&\"'!$18:$50\"),MATCH($BB$1,INDIRECT(\"'\"&A53&\"'!$A$18:$A$50\"),0),MATCH(Parts!$B53,INDIRECT(\"'\"&A53&\"'!$10:$10\"),0)),0)","v":0},null,null,{"$f":"IFERROR(INDEX(INDIRECT(\"'\"&A53&\"'!$18:$50\"),MATCH($BE$1,INDIRECT(\"'\"&A53&\"'!$A$18:$A$50\"),0),MATCH(Parts!$B53,INDIRECT(\"'\"&A53&\"'!$10:$10\"),0)),0)","v":0},null,"Copper Drier",{"$f":"IFERROR(INDEX(INDIRECT(\"'\"&A53&\"'!$18:$50\"),MATCH($BH$1,INDIRECT(\"'\"&A53&\"'!$A$18:$A$50\"),0),MATCH(Parts!$B53,INDIRECT(\"'\"&A53&\"'!$10:$10\"),0)),0)","v":1},10,null,{"$f":"IFERROR(INDEX(INDIRECT(\"'\"&A53&\"'!$18:$50\"),MATCH($BK$1,INDIRECT(\"'\"&A53&\"'!$A$18:$A$50\"),0),MATCH(Parts!$B53,INDIRECT(\"'\"&A53&\"'!$10:$10\"),0)),0)","v":0},null,null,{"$f":"IFERROR(INDEX(INDIRECT(\"'\"&A53&\"'!$18:$50\"),MATCH($BN$1,INDIRECT(\"'\"&A53&\"'!$A$18:$A$50\"),0),MATCH(Parts!$B53,INDIRECT(\"'\"&A53&\"'!$10:$10\"),0)),0)","v":0},null,"Hinge",{"$f":"IFERROR(INDEX(INDIRECT(\"'\"&A53&\"'!$18:$50\"),MATCH($BQ$1,INDIRECT(\"'\"&A53&\"'!$A$18:$A$50\"),0),MATCH(Parts!$B53,INDIRECT(\"'\"&A53&\"'!$10:$10\"),0)),0)","v":1},40,"Hinge cover",{"$f":"IFERROR(INDEX(INDIRECT(\"'\"&A53&\"'!$18:$50\"),MATCH($BT$1,INDIRECT(\"'\"&A53&\"'!$A$18:$A$50\"),0),MATCH(Parts!$B53,INDIRECT(\"'\"&A53&\"'!$10:$10\"),0)),0)","v":1},40,null,{"$f":"IFERROR(INDEX(INDIRECT(\"'\"&A53&\"'!$18:$50\"),MATCH($BW$1,INDIRECT(\"'\"&A53&\"'!$A$18:$A$50\"),0),MATCH(Parts!$B53,INDIRECT(\"'\"&A53&\"'!$10:$10\"),0)),0)","v":0},null,"Vaccine Thermometer",{"$f":"IFERROR(INDEX(INDIRECT(\"'\"&A53&\"'!$18:$50\"),MATCH($BZ$1,INDIRECT(\"'\"&A53&\"'!$A$18:$A$50\"),0),MATCH(Parts!$B53,INDIRECT(\"'\"&A53&\"'!$10:$10\"),0)),0)","v":1},40,null,{"$f":"IFERROR(INDEX(INDIRECT(\"'\"&A53&\"'!$18:$50\"),MATCH($CC$1,INDIRECT(\"'\"&A53&\"'!$A$18:$A$50\"),0),MATCH(Parts!$B53,INDIRECT(\"'\"&A53&\"'!$10:$10\"),0)),0)","v":0},null,"Handle",{"$f":"IFERROR(INDEX(INDIRECT(\"'\"&A53&\"'!$18:$50\"),MATCH($CF$1,INDIRECT(\"'\"&A53&\"'!$A$18:$A$50\"),0),MATCH(Parts!$B53,INDIRECT(\"'\"&A53&\"'!$10:$10\"),0)),0)","v":1},20,null,{"$f":"IFERROR(INDEX(INDIRECT(\"'\"&A53&\"'!$18:$50\"),MATCH($CI$1,INDIRECT(\"'\"&A53&\"'!$A$18:$A$50\"),0),MATCH(Parts!$B53,INDIRECT(\"'\"&A53&\"'!$10:$10\"),0)),0)","v":0},null,null,{"$f":"IFERROR(INDEX(INDIRECT(\"'\"&A53&\"'!$18:$50\"),MATCH($CL$1,INDIRECT(\"'\"&A53&\"'!$A$18:$A$50\"),0),MATCH(Parts!$B53,INDIRECT(\"'\"&A53&\"'!$10:$10\"),0)),0)","v":0},null,null,{"$f":"IFERROR(INDEX(INDIRECT(\"'\"&A53&\"'!$18:$50\"),MATCH($CO$1,INDIRECT(\"'\"&A53&\"'!$A$18:$A$50\"),0),MATCH(Parts!$B53,INDIRECT(\"'\"&A53&\"'!$10:$10\"),0)),0)","v":0},null,null,{"$f":"IFERROR(INDEX(INDIRECT(\"'\"&A53&\"'!$18:$50\"),MATCH($CR$1,INDIRECT(\"'\"&A53&\"'!$A$18:$A$50\"),0),MATCH(Parts!$B53,INDIRECT(\"'\"&A53&\"'!$10:$10\"),0)),0)","v":0},null,null,{"$f":"IFERROR(INDEX(INDIRECT(\"'\"&A53&\"'!$18:$50\"),MATCH($CU$1,INDIRECT(\"'\"&A53&\"'!$A$18:$A$50\"),0),MATCH(Parts!$B53,INDIRECT(\"'\"&A53&\"'!$10:$10\"),0)),0)","v":0},null,null,{"$f":"IFERROR(INDEX(INDIRECT(\"'\"&A53&\"'!$18:$50\"),MATCH($CX$1,INDIRECT(\"'\"&A53&\"'!$A$18:$A$50\"),0),MATCH(Parts!$B53,INDIRECT(\"'\"&A53&\"'!$10:$10\"),0)),0)","v":0},null,null,{"$f":"IFERROR(INDEX(INDIRECT(\"'\"&A53&\"'!$18:$50\"),MATCH($DA$1,INDIRECT(\"'\"&A53&\"'!$A$18:$A$50\"),0),MATCH(Parts!$B53,INDIRECT(\"'\"&A53&\"'!$10:$10\"),0)),0)","v":0},null,null,{"$f":"IFERROR(INDEX(INDIRECT(\"'\"&A53&\"'!$18:$50\"),MATCH($DD$1,INDIRECT(\"'\"&A53&\"'!$A$18:$A$50\"),0),MATCH(Parts!$B53,INDIRECT(\"'\"&A53&\"'!$10:$10\"),0)),0)","v":0},null,null,{"$f":"IFERROR(INDEX(INDIRECT(\"'\"&A53&\"'!$18:$50\"),MATCH($DG$1,INDIRECT(\"'\"&A53&\"'!$A$18:$A$50\"),0),MATCH(Parts!$B53,INDIRECT(\"'\"&A53&\"'!$10:$10\"),0)),0)","v":0},null,null,{"$f":"IFERROR(INDEX(INDIRECT(\"'\"&A53&\"'!$18:$50\"),MATCH($DJ$1,INDIRECT(\"'\"&A53&\"'!$A$18:$A$50\"),0),MATCH(Parts!$B53,INDIRECT(\"'\"&A53&\"'!$10:$10\"),0)),0)","v":0},null,null,{"$f":"IFERROR(INDEX(INDIRECT(\"'\"&A53&\"'!$18:$50\"),MATCH($DM$1,INDIRECT(\"'\"&A53&\"'!$A$18:$A$50\"),0),MATCH(Parts!$B53,INDIRECT(\"'\"&A53&\"'!$10:$10\"),0)),0)","v":0},null,null,{"$f":"IFERROR(INDEX(INDIRECT(\"'\"&A53&\"'!$18:$50\"),MATCH($DP$1,INDIRECT(\"'\"&A53&\"'!$A$18:$A$50\"),0),MATCH(Parts!$B53,INDIRECT(\"'\"&A53&\"'!$10:$10\"),0)),0)","v":0},null,null,{"$f":"IFERROR(INDEX(INDIRECT(\"'\"&A53&\"'!$18:$50\"),MATCH($DS$1,INDIRECT(\"'\"&A53&\"'!$A$18:$A$50\"),0),MATCH(Parts!$B53,INDIRECT(\"'\"&A53&\"'!$10:$10\"),0)),0)","v":0},null,null,{"$f":"IFERROR(INDEX(INDIRECT(\"'\"&A53&\"'!$18:$50\"),MATCH($DV$1,INDIRECT(\"'\"&A53&\"'!$A$18:$A$50\"),0),MATCH(Parts!$B53,INDIRECT(\"'\"&A53&\"'!$10:$10\"),0)),0)","v":0},null,null,{"$f":"IFERROR(INDEX(INDIRECT(\"'\"&A53&\"'!$18:$50\"),MATCH($DY$1,INDIRECT(\"'\"&A53&\"'!$A$18:$A$50\"),0),MATCH(Parts!$B53,INDIRECT(\"'\"&A53&\"'!$10:$10\"),0)),0)","v":0},null,null,{"$f":"IFERROR(INDEX(INDIRECT(\"'\"&A53&\"'!$18:$50\"),MATCH($EB$1,INDIRECT(\"'\"&A53&\"'!$A$18:$A$50\"),0),MATCH(Parts!$B53,INDIRECT(\"'\"&A53&\"'!$10:$10\"),0)),0)","v":0},null,null,{"$f":"IFERROR(INDEX(INDIRECT(\"'\"&A53&\"'!$18:$50\"),MATCH($EE$1,INDIRECT(\"'\"&A53&\"'!$A$18:$A$50\"),0),MATCH(Parts!$B53,INDIRECT(\"'\"&A53&\"'!$10:$10\"),0)),0)","v":0},null,null,{"$f":"IFERROR(INDEX(INDIRECT(\"'\"&A53&\"'!$18:$50\"),MATCH($EH$1,INDIRECT(\"'\"&A53&\"'!$A$18:$A$50\"),0),MATCH(Parts!$B53,INDIRECT(\"'\"&A53&\"'!$10:$10\"),0)),0)","v":0},null,null,{"$f":"IFERROR(INDEX(INDIRECT(\"'\"&A53&\"'!$18:$50\"),MATCH($EK$1,INDIRECT(\"'\"&A53&\"'!$A$18:$A$50\"),0),MATCH(Parts!$B53,INDIRECT(\"'\"&A53&\"'!$10:$10\"),0)),0)","v":0}]
[{"$f":"PQS!A56","v":"SDD"},{"$f":"PQS!B56","v":"E003/030"},{"$f":"PQS!E56","v":"TCW 3000 SDD"},{"$f":"PQS!P56","v":"€"},640.65000000000009,"Compressor 296.9702.09",{"$f":"IFERROR(INDEX(INDIRECT(\"'\"&A54&\"'!$18:$50\"),MATCH(Parts!F$1,INDIRECT(\"'\"&A54&\"'!$A$18:$A$50\"),0),MATCH(Parts!$B54,INDIRECT(\"'\"&A54&\"'!$10:$10\"),0)),0)","v":1},125.5,"Electronic thermostat 292.2009.05",{"$f":"IFERROR(INDEX(INDIRECT(\"'\"&A54&\"'!$18:$50\"),MATCH($I$1,INDIRECT(\"'\"&A54&\"'!$A$18:$A$50\"),0),MATCH(Parts!$B54,INDIRECT(\"'\"&A54&\"'!$10:$10\"),0)),0)","v":1},117.72,null,{"$f":"IFERROR(INDEX(INDIRECT(\"'\"&A54&\"'!$18:$50\"),MATCH($L$1,INDIRECT(\"'\"&A54&\"'!$A$18:$A$50\"),0),MATCH(Parts!$B54,INDIRECT(\"'\"&A54&\"'!$10:$10\"),0)),0)","v":0},null,null,{"$f":"IFERROR(INDEX(INDIRECT(\"'\"&A54&\"'!$18:$50\"),MATCH($O$1,INDIRECT(\"'\"&A54&\"'!$A$18:$A$50\"),0),MATCH(Parts!$B54,INDIRECT(\"'\"&A54&\"'!$10:$10\"),0)),0)","v":0},null,"Electronic control panel 296.3602.83",{"$f":"IFERROR(INDEX(INDIRECT(\"'\"&A54&\"'!$18:$50\"),MATCH($R$1,INDIRECT(\"'\"&A54&\"'!$A$18:$A$50\"),0),MATCH(Parts!$B54,INDIRECT(\"'\"&A54&\"'!$10:$10\"),0)),0)","v":1},7.52,"Sensor for e-thermostat 296.9804.20",{"$f":"IFERROR(INDEX(INDIRECT(\"'\"&A54&\"'!$18:$50\"),MATCH($U$1,INDIRECT(\"'\"&A54&\"'!$A$18:$A$50\"),0),MATCH(Parts!$B54,INDIRECT(\"'\"&A54&\"'!$10:$10\"),0)),0)","v":1},8.86,"Fan compressor 292.9960.06",{"$f":"IFERROR(INDEX(INDIRECT(\"'\"&A54&\"'!$18:$50\"),MATCH($X$1,INDIRECT(\"'\"&A54&\"'!$A$18:$A$50\"),0),MATCH(Parts!$B54,INDIRECT(\"'\"&A54&\"'!$10:$10\"),0)),0)","v":1},72.48,null,{"$f":"IFERROR(INDEX(INDIRECT(\"'\"&A54&\"'!$18:$50\"),MATCH($AA$1,INDIRECT(\"'\"&A54&\"'!$A$18:$A$50\"),0),MATCH(Parts!$B54,INDIRECT(\"'\"&A54&\"'!$10:$10\"),0)),0)","v":0},null,null,{"$f":"IFERROR(INDEX(INDIRECT(\"'\"&A54&\"'!$18:$50\"),MATCH($AD$1,INDIRECT(\"'\"&A54&\"'!$A$18:$A$50\"),0),MATCH(Parts!$B54,INDIRECT(\"'\"&A54&\"'!$10:$10\"),0)),0)","v":0},null,null,{"$f":"IFERROR(INDEX(INDIRECT(\"'\"&A54&\"'!$18:$50\"),MATCH($AG$1,INDIRECT(\"'\"&A54&\"'!$A$18:$A$50\"),0),MATCH(Parts!$B54,INDIRECT(\"'\"&A54&\"'!$10:$10\"),0)),0)","v":0},null,"E-Box 296.9705.24",{"$f":"IFERROR(INDEX(INDIRECT(\"'\"&A54&\"'!$18:$50\"),MATCH($AJ$1,INDIRECT(\"'\"&A54&\"'!$A$18:$A$50\"),0),MATCH(Parts!$B54,INDIRECT(\"'\"&A54&\"'!$10:$10\"),0)),0)","v":1},128.79,"Main switch 292.2044.18",{"$f":"IFERROR(INDEX(INDIRECT(\"'\"&A54&\"'!$18:$50\"),MATCH($AM$1,INDIRECT(\"'\"&A54&\"'!$A$18:$A$50\"),0),MATCH(Parts!$B54,INDIRECT(\"'\"&A54&\"'!$10:$10\"),0)),0)","v":1},6.17,null,{"$f":"IFERROR(INDEX(INDIRECT(\"'\"&A54&\"'!$18:$50\"),MATCH($AP$1,INDIRECT(\"'\"&A54&\"'!$A$18:$A$50\"),0),MATCH(Parts!$B54,INDIRECT(\"'\"&A54&\"'!$10:$10\"),0)),0)","v":0},null,"Basket TCW3000SDD  292.9427.37",{"$f":"IFERROR(INDEX(INDIRECT(\"'\"&A54&\"'!$18:$50\"),MATCH($AS$1,INDIRECT(\"'\"&A54&\"'!$A$18:$A$50\"),0),MATCH(Parts!$B54,INDIRECT(\"'\"&A54&\"'!$10:$10\"),0)),0)","v":1},9.7899999999999991,null,{"$f":"IFERROR(INDEX(INDIRECT(\"'\"&A54&\"'!$18:$50\"),MATCH($AV$1,INDIRECT(\"'\"&A54&\"'!$A$18:$A$50\"),0),MATCH(Parts!$B54,INDIRECT(\"'\"&A54&\"'!$10:$10\"),0)),0)","v":0},null,null,{"$f":"IFERROR(INDEX(INDIRECT(\"'\"&A54&\"'!$18:$50\"),MATCH($AY$1,INDIRECT(\"'\"&A54&\"'!$A$18:$A$50\"),0),MATCH(Parts!$B54,INDIRECT(\"'\"&A54&\"'!$10:$10\"),0)),0)","v":0},null,null,{"$f":"IFERROR(INDEX(INDIRECT(\"'\"&A54&\"'!$18:$50\"),MATCH($BB$1,INDIRECT(\"'\"&A54&\"'!$A$18:$A$50\"),0),MATCH(Parts!$B54,INDIRECT(\"'\"&A54&\"'!$10:$10\"),0)),0)","v":0},null,null,{"$f":"IFERROR(INDEX(INDIRECT(\"'\"&A54&\"'!$18:$50\"),MATCH($BE$1,INDIRECT(\"'\"&A54&\"'!$A$18:$A$50\"),0),MATCH(Parts!$B54,INDIRECT(\"'\"&A54&\"'!$10:$10\"),0)),0)","v":0},null,"Drier 13,5G R134A MS2V-5  294.1853.02",{"$f":"IFERROR(INDEX(INDIRECT(\"'\"&A54&\"'!$18:$50\"),MATCH($BH$1,INDIRECT(\"'\"&A54&\"'!$A$18:$A$50\"),0),MATCH(Parts!$B54,INDIRECT(\"'\"&A54&\"'!$10:$10\"),0)),0)","v":1},2.0699999999999998,"Fuse 15A  296.9243.15",{"$f":"IFERROR(INDEX(INDIRECT(\"'\"&A54&\"'!$18:$50\"),MATCH($BK$1,INDIRECT(\"'\"&A54&\"'!$A$18:$A$50\"),0),MATCH(Parts!$B54,INDIRECT(\"'\"&A54&\"'!$10:$10\"),0)),0)","v":1},0.19,null,{"$f":"IFERROR(INDEX(INDIRECT(\"'\"&A54&\"'!$18:$50\"),MATCH($BN$1,INDIRECT(\"'\"&A54&\"'!$A$18:$A$50\"),0),MATCH(Parts!$B54,INDIRECT(\"'\"&A54&\"'!$10:$10\"),0)),0)","v":0},null,"Outer Hinge  292.8503.30 - 7.76\nInner Hinge 292.8503.31 - 8.41",{"$f":"IFERROR(INDEX(INDIRECT(\"'\"&A54&\"'!$18:$50\"),MATCH($BQ$1,INDIRECT(\"'\"&A54&\"'!$A$18:$A$50\"),0),MATCH(Parts!$B54,INDIRECT(\"'\"&A54&\"'!$10:$10\"),0)),0)","v":2},{"$f":"AVERAGE(7.76,8.41)","v":8.0850000000000009},"Cover Hinge  296.4018.00",{"$f":"IFERROR(INDEX(INDIRECT(\"'\"&A54&\"'!$18:$50\"),MATCH($BT$1,INDIRECT(\"'\"&A54&\"'!$A$18:$A$50\"),0),MATCH(Parts!$B54,INDIRECT(\"'\"&A54&\"'!$10:$10\"),0)),0)","v":1},0.73,null,{"$f":"IFERROR(INDEX(INDIRECT(\"'\"&A54&\"'!$18:$50\"),MATCH($BW$1,INDIRECT(\"'\"&A54&\"'!$A$18:$A$50\"),0),MATCH(Parts!$B54,INDIRECT(\"'\"&A54&\"'!$10:$10\"),0)),0)","v":0},null,null,{"$f":"IFERROR(INDEX(INDIRECT(\"'\"&A54&\"'!$18:$50\"),MATCH($BZ$1,INDIRECT(\"'\"&A54&\"'!$A$18:$A$50\"),0),MATCH(Parts!$B54,INDIRECT(\"'\"&A54&\"'!$10:$10\"),0)),0)","v":0},null,"Ice Pack TCW Solar  292.8580.09",{"$f":"IFERROR(INDEX(INDIRECT(\"'\"&A54&\"'!$18:$50\"),MATCH($CC$1,INDIRECT(\"'\"&A54&\"'!$A$18:$A$50\"),0),MATCH(Parts!$B54,INDIRECT(\"'\"&A54&\"'!$10:$10\"),0)),0)","v":1},66.69,null,{"$f":"IFERROR(INDEX(INDIRECT(\"'\"&A54&\"'!$18:$50\"),MATCH($CF$1,INDIRECT(\"'\"&A54&\"'!$A$18:$A$50\"),0),MATCH(Parts!$B54,INDIRECT(\"'\"&A54&\"'!$10:$10\"),0)),0)","v":0},null,null,{"$f":"IFERROR(INDEX(INDIRECT(\"'\"&A54&\"'!$18:$50\"),MATCH($CI$1,INDIRECT(\"'\"&A54&\"'!$A$18:$A$50\"),0),MATCH(Parts!$B54,INDIRECT(\"'\"&A54&\"'!$10:$10\"),0)),0)","v":0},null,null,{"$f":"IFERROR(INDEX(INDIRECT(\"'\"&A54&\"'!$18:$50\"),MATCH($CL$1,INDIRECT(\"'\"&A54&\"'!$A$18:$A$50\"),0),MATCH(Parts!$B54,INDIRECT(\"'\"&A54&\"'!$10:$10\"),0)),0)","v":0},null,null,{"$f":"IFERROR(INDEX(INDIRECT(\"'\"&A54&\"'!$18:$50\"),MATCH($CO$1,INDIRECT(\"'\"&A54&\"'!$A$18:$A$50\"),0),MATCH(Parts!$B54,INDIRECT(\"'\"&A54&\"'!$10:$10\"),0)),0)","v":0},null,null,{"$f":"IFERROR(INDEX(INDIRECT(\"'\"&A54&\"'!$18:$50\"),MATCH($CR$1,INDIRECT(\"'\"&A54&\"'!$A$18:$A$50\"),0),MATCH(Parts!$B54,INDIRECT(\"'\"&A54&\"'!$10:$10\"),0)),0)","v":0},null,null,{"$f":"IFERROR(INDEX(INDIRECT(\"'\"&A54&\"'!$18:$50\"),MATCH($CU$1,INDIRECT(\"'\"&A54&\"'!$A$18:$A$50\"),0),MATCH(Parts!$B54,INDIRECT(\"'\"&A54&\"'!$10:$10\"),0)),0)","v":0},null,null,{"$f":"IFERROR(INDEX(INDIRECT(\"'\"&A54&\"'!$18:$50\"),MATCH($CX$1,INDIRECT(\"'\"&A54&\"'!$A$18:$A$50\"),0),MATCH(Parts!$B54,INDIRECT(\"'\"&A54&\"'!$10:$10\"),0)),0)","v":0},null,null,{"$f":"IFERROR(INDEX(INDIRECT(\"'\"&A54&\"'!$18:$50\"),MATCH($DA$1,INDIRECT(\"'\"&A54&\"'!$A$18:$A$50\"),0),MATCH(Parts!$B54,INDIRECT(\"'\"&A54&\"'!$10:$10\"),0)),0)","v":0},null,null,{"$f":"IFERROR(INDEX(INDIRECT(\"'\"&A54&\"'!$18:$50\"),MATCH($DD$1,INDIRECT(\"'\"&A54&\"'!$A$18:$A$50\"),0),MATCH(Parts!$B54,INDIRECT(\"'\"&A54&\"'!$10:$10\"),0)),0)","v":0},null,null,{"$f":"IFERROR(INDEX(INDIRECT(\"'\"&A54&\"'!$18:$50\"),MATCH($DG$1,INDIRECT(\"'\"&A54&\"'!$A$18:$A$50\"),0),MATCH(Parts!$B54,INDIRECT(\"'\"&A54&\"'!$10:$10\"),0)),0)","v":0},null,null,{"$f":"IFERROR(INDEX(INDIRECT(\"'\"&A54&\"'!$18:$50\"),MATCH($DJ$1,INDIRECT(\"'\"&A54&\"'!$A$18:$A$50\"),0),MATCH(Parts!$B54,INDIRECT(\"'\"&A54&\"'!$10:$10\"),0)),0)","v":0},null,null,{"$f":"IFERROR(INDEX(INDIRECT(\"'\"&A54&\"'!$18:$50\"),MATCH($DM$1,INDIRECT(\"'\"&A54&\"'!$A$18:$A$50\"),0),MATCH(Parts!$B54,INDIRECT(\"'\"&A54&\"'!$10:$10\"),0)),0)","v":0},null,null,{"$f":"IFERROR(INDEX(INDIRECT(\"'\"&A54&\"'!$18:$50\"),MATCH($DP$1,INDIRECT(\"'\"&A54&\"'!$A$18:$A$50\"),0),MATCH(Parts!$B54,INDIRECT(\"'\"&A54&\"'!$10:$10\"),0)),0)","v":0},null,"SDD Controller  296.9769.77",{"$f":"IFERROR(INDEX(INDIRECT(\"'\"&A54&\"'!$18:$50\"),MATCH($DS$1,INDIRECT(\"'\"&A54&\"'!$A$18:$A$50\"),0),MATCH(Parts!$B54,INDIRECT(\"'\"&A54&\"'!$10:$10\"),0)),0)","v":1},77.97,null,{"$f":"IFERROR(INDEX(INDIRECT(\"'\"&A54&\"'!$18:$50\"),MATCH($DV$1,INDIRECT(\"'\"&A54&\"'!$A$18:$A$50\"),0),MATCH(Parts!$B54,INDIRECT(\"'\"&A54&\"'!$10:$10\"),0)),0)","v":0},null,null,{"$f":"IFERROR(INDEX(INDIRECT(\"'\"&A54&\"'!$18:$50\"),MATCH($DY$1,INDIRECT(\"'\"&A54&\"'!$A$18:$A$50\"),0),MATCH(Parts!$B54,INDIRECT(\"'\"&A54&\"'!$10:$10\"),0)),0)","v":0},null,null,{"$f":"IFERROR(INDEX(INDIRECT(\"'\"&A54&\"'!$18:$50\"),MATCH($EB$1,INDIRECT(\"'\"&A54&\"'!$A$18:$A$50\"),0),MATCH(Parts!$B54,INDIRECT(\"'\"&A54&\"'!$10:$10\"),0)),0)","v":0},null,null,{"$f":"IFERROR(INDEX(INDIRECT(\"'\"&A54&\"'!$18:$50\"),MATCH($EE$1,INDIRECT(\"'\"&A54&\"'!$A$18:$A$50\"),0),MATCH(Parts!$B54,INDIRECT(\"'\"&A54&\"'!$10:$10\"),0)),0)","v":0},null,null,{"$f":"IFERROR(INDEX(INDIRECT(\"'\"&A54&\"'!$18:$50\"),MATCH($EH$1,INDIRECT(\"'\"&A54&\"'!$A$18:$A$50\"),0),MATCH(Parts!$B54,INDIRECT(\"'\"&A54&\"'!$10:$10\"),0)),0)","v":0},null,null,{"$f":"IFERROR(INDEX(INDIRECT(\"'\"&A54&\"'!$18:$50\"),MATCH($EK$1,INDIRECT(\"'\"&A54&\"'!$A$18:$A$50\"),0),MATCH(Parts!$B54,INDIRECT(\"'\"&A54&\"'!$10:$10\"),0)),0)","v":0}]
[{"$f":"PQS!A57","v":"SDD"},{"$f":"PQS!B57","v":"E003/035"},{"$f":"PQS!E57","v":"TCW 2000 SDD"},{"$f":"PQS!P57","v":"€"},649.60000000000014,"Compressor 296.9702.09",{"$f":"IFERROR(INDEX(INDIRECT(\"'\"&A55&\"'!$18:$50\"),MATCH(Parts!F$1,INDIRECT(\"'\"&A55&\"'!$A$18:$A$50\"),0),MATCH(Parts!$B55,INDIRECT(\"'\"&A55&\"'!$10:$10\"),0)),0)","v":1},125.5,"Electronic thermostat 292.2009.05",{"$f":"IFERROR(INDEX(INDIRECT(\"'\"&A55&\"'!$18:$50\"),MATCH($I$1,INDIRECT(\"'\"&A55&\"'!$A$18:$A$50\"),0),MATCH(Parts!$B55,INDIRECT(\"'\"&A55&\"'!$10:$10\"),0)),0)","v":1},117.72,null,{"$f":"IFERROR(INDEX(INDIRECT(\"'\"&A55&\"'!$18:$50\"),MATCH($L$1,INDIRECT(\"'\"&A55&\"'!$A$18:$A$50\"),0),MATCH(Parts!$B55,INDIRECT(\"'\"&A55&\"'!$10:$10\"),0)),0)","v":0},null,null,{"$f":"IFERROR(INDEX(INDIRECT(\"'\"&A55&\"'!$18:$50\"),MATCH($O$1,INDIRECT(\"'\"&A55&\"'!$A$18:$A$50\"),0),MATCH(Parts!$B55,INDIRECT(\"'\"&A55&\"'!$10:$10\"),0)),0)","v":0},null,"E control panel: 296.3602.82",{"$f":"IFERROR(INDEX(INDIRECT(\"'\"&A55&\"'!$18:$50\"),MATCH($R$1,INDIRECT(\"'\"&A55&\"'!$A$18:$A$50\"),0),MATCH(Parts!$B55,INDIRECT(\"'\"&A55&\"'!$10:$10\"),0)),0)","v":1},15.97,"Sensor for e-thermostat: 2969804.20",{"$f":"IFERROR(INDEX(INDIRECT(\"'\"&A55&\"'!$18:$50\"),MATCH($U$1,INDIRECT(\"'\"&A55&\"'!$A$18:$A$50\"),0),MATCH(Parts!$B55,INDIRECT(\"'\"&A55&\"'!$10:$10\"),0)),0)","v":1},8.86,"Fan compressor: 292.9960.06",{"$f":"IFERROR(INDEX(INDIRECT(\"'\"&A55&\"'!$18:$50\"),MATCH($X$1,INDIRECT(\"'\"&A55&\"'!$A$18:$A$50\"),0),MATCH(Parts!$B55,INDIRECT(\"'\"&A55&\"'!$10:$10\"),0)),0)","v":1},72.48,null,{"$f":"IFERROR(INDEX(INDIRECT(\"'\"&A55&\"'!$18:$50\"),MATCH($AA$1,INDIRECT(\"'\"&A55&\"'!$A$18:$A$50\"),0),MATCH(Parts!$B55,INDIRECT(\"'\"&A55&\"'!$10:$10\"),0)),0)","v":0},null,null,{"$f":"IFERROR(INDEX(INDIRECT(\"'\"&A55&\"'!$18:$50\"),MATCH($AD$1,INDIRECT(\"'\"&A55&\"'!$A$18:$A$50\"),0),MATCH(Parts!$B55,INDIRECT(\"'\"&A55&\"'!$10:$10\"),0)),0)","v":0},null,null,{"$f":"IFERROR(INDEX(INDIRECT(\"'\"&A55&\"'!$18:$50\"),MATCH($AG$1,INDIRECT(\"'\"&A55&\"'!$A$18:$A$50\"),0),MATCH(Parts!$B55,INDIRECT(\"'\"&A55&\"'!$10:$10\"),0)),0)","v":0},null,"E-Box 296.9705.24",{"$f":"IFERROR(INDEX(INDIRECT(\"'\"&A55&\"'!$18:$50\"),MATCH($AJ$1,INDIRECT(\"'\"&A55&\"'!$A$18:$A$50\"),0),MATCH(Parts!$B55,INDIRECT(\"'\"&A55&\"'!$10:$10\"),0)),0)","v":1},128.79,"Main switch 292.2044.18",{"$f":"IFERROR(INDEX(INDIRECT(\"'\"&A55&\"'!$18:$50\"),MATCH($AM$1,INDIRECT(\"'\"&A55&\"'!$A$18:$A$50\"),0),MATCH(Parts!$B55,INDIRECT(\"'\"&A55&\"'!$10:$10\"),0)),0)","v":1},6.17,null,{"$f":"IFERROR(INDEX(INDIRECT(\"'\"&A55&\"'!$18:$50\"),MATCH($AP$1,INDIRECT(\"'\"&A55&\"'!$A$18:$A$50\"),0),MATCH(Parts!$B55,INDIRECT(\"'\"&A55&\"'!$10:$10\"),0)),0)","v":0},null,"Basket TCW2000SDD  292.9427.56",{"$f":"IFERROR(INDEX(INDIRECT(\"'\"&A55&\"'!$18:$50\"),MATCH($AS$1,INDIRECT(\"'\"&A55&\"'!$A$18:$A$50\"),0),MATCH(Parts!$B55,INDIRECT(\"'\"&A55&\"'!$10:$10\"),0)),0)","v":1},10.29,null,{"$f":"IFERROR(INDEX(INDIRECT(\"'\"&A55&\"'!$18:$50\"),MATCH($AV$1,INDIRECT(\"'\"&A55&\"'!$A$18:$A$50\"),0),MATCH(Parts!$B55,INDIRECT(\"'\"&A55&\"'!$10:$10\"),0)),0)","v":0},null,null,{"$f":"IFERROR(INDEX(INDIRECT(\"'\"&A55&\"'!$18:$50\"),MATCH($AY$1,INDIRECT(\"'\"&A55&\"'!$A$18:$A$50\"),0),MATCH(Parts!$B55,INDIRECT(\"'\"&A55&\"'!$10:$10\"),0)),0)","v":0},null,null,{"$f":"IFERROR(INDEX(INDIRECT(\"'\"&A55&\"'!$18:$50\"),MATCH($BB$1,INDIRECT(\"'\"&A55&\"'!$A$18:$A$50\"),0),MATCH(Parts!$B55,INDIRECT(\"'\"&A55&\"'!$10:$10\"),0)),0)","v":0},null,null,{"$f":"IFERROR(INDEX(INDIRECT(\"'\"&A55&\"'!$18:$50\"),MATCH($BE$1,INDIRECT(\"'\"&A55&\"'!$A$18:$A$50\"),0),MATCH(Parts!$B55,INDIRECT(\"'\"&A55&\"'!$10:$10\"),0)),0)","v":0},null,"Drier 13,5G R134A MS2V-5  294.1853.02",{"$f":"IFERROR(INDEX(INDIRECT(\"'\"&A55&\"'!$18:$50\"),MATCH($BH$1,INDIRECT(\"'\"&A55&\"'!$A$18:$A$50\"),0),MATCH(Parts!$B55,INDIRECT(\"'\"&A55&\"'!$10:$10\"),0)),0)","v":1},2.0699999999999998,"Fuse 15A  296.9243.15",{"$f":"IFERROR(INDEX(INDIRECT(\"'\"&A55&\"'!$18:$50\"),MATCH($BK$1,INDIRECT(\"'\"&A55&\"'!$A$18:$A$50\"),0),MATCH(Parts!$B55,INDIRECT(\"'\"&A55&\"'!$10:$10\"),0)),0)","v":1},0.19,null,{"$f":"IFERROR(INDEX(INDIRECT(\"'\"&A55&\"'!$18:$50\"),MATCH($BN$1,INDIRECT(\"'\"&A55&\"'!$A$18:$A$50\"),0),MATCH(Parts!$B55,INDIRECT(\"'\"&A55&\"'!$10:$10\"),0)),0)","v":0},null,"Outer Hinge  292.8503.30 - 7.76\nInner Hinge 292.8503.31 - 8.41",{"$f":"IFERROR(INDEX(INDIRECT(\"'\"&A55&\"'!$18:$50\"),MATCH($BQ$1,INDIRECT(\"'\"&A55&\"'!$A$18:$A$50\"),0),MATCH(Parts!$B55,INDIRECT(\"'\"&A55&\"'!$10:$10\"),0)),0)","v":2},{"$f":"AVERAGE(7.76,8.41)","v":8.0850000000000009},"Cover Hinge  296.4018.00",{"$f":"IFERROR(INDEX(INDIRECT(\"'\"&A55&\"'!$18:$50\"),MATCH($BT$1,INDIRECT(\"'\"&A55&\"'!$A$18:$A$50\"),0),MATCH(Parts!$B55,INDIRECT(\"'\"&A55&\"'!$10:$10\"),0)),0)","v":1},0.73,null,{"$f":"IFERROR(INDEX(INDIRECT(\"'\"&A55&\"'!$18:$50\"),MATCH($BW$1,INDIRECT(\"'\"&A55&\"'!$A$18:$A$50\"),0),MATCH(Parts!$B55,INDIRECT(\"'\"&A55&\"'!$10:$10\"),0)),0)","v":0},null,null,{"$f":"IFERROR(INDEX(INDIRECT(\"'\"&A55&\"'!$18:$50\"),MATCH($BZ$1,INDIRECT(\"'\"&A55&\"'!$A$18:$A$50\"),0),MATCH(Parts!$B55,INDIRECT(\"'\"&A55&\"'!$10:$10\"),0)),0)","v":0},null,"Ice Pack TCW Solar  292.8580.09",{"$f":"IFERROR(INDEX(INDIRECT(\"'\"&A55&\"'!$18:$50\"),MATCH($CC$1,INDIRECT(\"'\"&A55&\"'!$A$18:$A$50\"),0),MATCH(Parts!$B55,INDIRECT(\"'\"&A55&\"'!$10:$10\"),0)),0)","v":1},66.69,null,{"$f":"IFERROR(INDEX(INDIRECT(\"'\"&A55&\"'!$18:$50\"),MATCH($CF$1,INDIRECT(\"'\"&A55&\"'!$A$18:$A$50\"),0),MATCH(Parts!$B55,INDIRECT(\"'\"&A55&\"'!$10:$10\"),0)),0)","v":0},null,null,{"$f":"IFERROR(INDEX(INDIRECT(\"'\"&A55&\"'!$18:$50\"),MATCH($CI$1,INDIRECT(\"'\"&A55&\"'!$A$18:$A$50\"),0),MATCH(Parts!$B55,INDIRECT(\"'\"&A55&\"'!$10:$10\"),0)),0)","v":0},null,null,{"$f":"IFERROR(INDEX(INDIRECT(\"'\"&A55&\"'!$18:$50\"),MATCH($CL$1,INDIRECT(\"'\"&A55&\"'!$A$18:$A$50\"),0),MATCH(Parts!$B55,INDIRECT(\"'\"&A55&\"'!$10:$10\"),0)),0)","v":0},null,null,{"$f":"IFERROR(INDEX(INDIRECT(\"'\"&A55&\"'!$18:$50\"),MATCH($CO$1,INDIRECT(\"'\"&A55&\"'!$A$18:$A$50\"),0),MATCH(Parts!$B55,INDIRECT(\"'\"&A55&\"'!$10:$10\"),0)),0)","v":0},null,null,{"$f":"IFERROR(INDEX(INDIRECT(\"'\"&A55&\"'!$18:$50\"),MATCH($CR$1,INDIRECT(\"'\"&A55&\"'!$A$18:$A$50\"),0),MATCH(Parts!$B55,INDIRECT(\"'\"&A55&\"'!$10:$10\"),0)),0)","v":0},null,null,{"$f":"IFERROR(INDEX(INDIRECT(\"'\"&A55&\"'!$18:$50\"),MATCH($CU$1,INDIRECT(\"'\"&A55&\"'!$A$18:$A$50\"),0),MATCH(Parts!$B55,INDIRECT(\"'\"&A55&\"'!$10:$10\"),0)),0)","v":0},null,null,{"$f":"IFERROR(INDEX(INDIRECT(\"'\"&A55&\"'!$18:$50\"),MATCH($CX$1,INDIRECT(\"'\"&A55&\"'!$A$18:$A$50\"),0),MATCH(Parts!$B55,INDIRECT(\"'\"&A55&\"'!$10:$10\"),0)),0)","v":0},null,null,{"$f":"IFERROR(INDEX(INDIRECT(\"'\"&A55&\"'!$18:$50\"),MATCH($DA$1,INDIRECT(\"'\"&A55&\"'!$A$18:$A$50\"),0),MATCH(Parts!$B55,INDIRECT(\"'\"&A55&\"'!$10:$10\"),0)),0)","v":0},null,null,{"$f":"IFERROR(INDEX(INDIRECT(\"'\"&A55&\"'!$18:$50\"),MATCH($DD$1,INDIRECT(\"'\"&A55&\"'!$A$18:$A$50\"),0),MATCH(Parts!$B55,INDIRECT(\"'\"&A55&\"'!$10:$10\"),0)),0)","v":0},null,null,{"$f":"IFERROR(INDEX(INDIRECT(\"'\"&A55&\"'!$18:$50\"),MATCH($DG$1,INDIRECT(\"'\"&A55&\"'!$A$18:$A$50\"),0),MATCH(Parts!$B55,INDIRECT(\"'\"&A55&\"'!$10:$10\"),0)),0)","v":0},null,null,{"$f":"IFERROR(INDEX(INDIRECT(\"'\"&A55&\"'!$18:$50\"),MATCH($DJ$1,INDIRECT(\"'\"&A55&\"'!$A$18:$A$50\"),0),MATCH(Parts!$B55,INDIRECT(\"'\"&A55&\"'!$10:$10\"),0)),0)","v":0},null,null,{"$f":"IFERROR(INDEX(INDIRECT(\"'\"&A55&\"'!$18:$50\"),MATCH($DM$1,INDIRECT(\"'\"&A55&\"'!$A$18:$A$50\"),0),MATCH(Parts!$B55,INDIRECT(\"'\"&A55&\"'!$10:$10\"),0)),0)","v":0},null,null,{"$f":"IFERROR(INDEX(INDIRECT(\"'\"&A55&\"'!$18:$50\"),MATCH($DP$1,INDIRECT(\"'\"&A55&\"'!$A$18:$A$50\"),0),MATCH(Parts!$B55,INDIRECT(\"'\"&A55&\"'!$10:$10\"),0)),0)","v":0},null,"SDD Controller  296.9769.77",{"$f":"IFERROR(INDEX(INDIRECT(\"'\"&A55&\"'!$18:$50\"),MATCH($DS$1,INDIRECT(\"'\"&A55&\"'!$A$18:$A$50\"),0),MATCH(Parts!$B55,INDIRECT(\"'\"&A55&\"'!$10:$10\"),0)),0)","v":1},77.97,null,{"$f":"IFERROR(INDEX(INDIRECT(\"'\"&A55&\"'!$18:$50\"),MATCH($DV$1,INDIRECT(\"'\"&A55&\"'!$A$18:$A$50\"),0),MATCH(Parts!$B55,INDIRECT(\"'\"&A55&\"'!$10:$10\"),0)),0)","v":0},null,null,{"$f":"IFERROR(INDEX(INDIRECT(\"'\"&A55&\"'!$18:$50\"),MATCH($DY$1,INDIRECT(\"'\"&A55&\"'!$A$18:$A$50\"),0),MATCH(Parts!$B55,INDIRECT(\"'\"&A55&\"'!$10:$10\"),0)),0)","v":0},null,null,{"$f":"IFERROR(INDEX(INDIRECT(\"'\"&A55&\"'!$18:$50\"),MATCH($EB$1,INDIRECT(\"'\"&A55&\"'!$A$18:$A$50\"),0),MATCH(Parts!$B55,INDIRECT(\"'\"&A55&\"'!$10:$10\"),0)),0)","v":0},null,null,{"$f":"IFERROR(INDEX(INDIRECT(\"'\"&A55&\"'!$18:$50\"),MATCH($EE$1,INDIRECT(\"'\"&A55&\"'!$A$18:$A$50\"),0),MATCH(Parts!$B55,INDIRECT(\"'\"&A55&\"'!$10:$10\"),0)),0)","v":0},null,null,{"$f":"IFERROR(INDEX(INDIRECT(\"'\"&A55&\"'!$18:$50\"),MATCH($EH$1,INDIRECT(\"'\"&A55&\"'!$A$18:$A$50\"),0),MATCH(Parts!$B55,INDIRECT(\"'\"&A55&\"'!$10:$10\"),0)),0)","v":0},null,null,{"$f":"IFERROR(INDEX(INDIRECT(\"'\"&A55&\"'!$18:$50\"),MATCH($EK$1,INDIRECT(\"'\"&A55&\"'!$A$18:$A$50\"),0),MATCH(Parts!$B55,INDIRECT(\"'\"&A55&\"'!$10:$10\"),0)),0)","v":0}]
[{"$f":"PQS!A58","v":"SDD"},{"$f":"PQS!B58","v":"E003/037"},{"$f":"PQS!E58","v":"ZLF 100 DC*"},{"$f":"PQS!P58","v":"$"},666,"Compressor IMPC 151: 214.00USD",{"$f":"IFERROR(INDEX(INDIRECT(\"'\"&A56&\"'!$18:$50\"),MATCH(Parts!F$1,INDIRECT(\"'\"&A56&\"'!$A$18:$A$50\"),0),MATCH(Parts!$B56,INDIRECT(\"'\"&A56&\"'!$10:$10\"),0)),0)","v":1},214,"Thermostat IMP 012: 92.00USD",{"$f":"IFERROR(INDEX(INDIRECT(\"'\"&A56&\"'!$18:$50\"),MATCH($I$1,INDIRECT(\"'\"&A56&\"'!$A$18:$A$50\"),0),MATCH(Parts!$B56,INDIRECT(\"'\"&A56&\"'!$10:$10\"),0)),0)","v":1},92,"Compressor controller IMP 152: 164.00USD",{"$f":"IFERROR(INDEX(INDIRECT(\"'\"&A56&\"'!$18:$50\"),MATCH($L$1,INDIRECT(\"'\"&A56&\"'!$A$18:$A$50\"),0),MATCH(Parts!$B56,INDIRECT(\"'\"&A56&\"'!$10:$10\"),0)),0)","v":1},164,null,{"$f":"IFERROR(INDEX(INDIRECT(\"'\"&A56&\"'!$18:$50\"),MATCH($O$1,INDIRECT(\"'\"&A56&\"'!$A$18:$A$50\"),0),MATCH(Parts!$B56,INDIRECT(\"'\"&A56&\"'!$10:$10\"),0)),0)","v":0},null,null,{"$f":"IFERROR(INDEX(INDIRECT(\"'\"&A56&\"'!$18:$50\"),MATCH($R$1,INDIRECT(\"'\"&A56&\"'!$A$18:$A$50\"),0),MATCH(Parts!$B56,INDIRECT(\"'\"&A56&\"'!$10:$10\"),0)),0)","v":0},null,null,{"$f":"IFERROR(INDEX(INDIRECT(\"'\"&A56&\"'!$18:$50\"),MATCH($U$1,INDIRECT(\"'\"&A56&\"'!$A$18:$A$50\"),0),MATCH(Parts!$B56,INDIRECT(\"'\"&A56&\"'!$10:$10\"),0)),0)","v":0},null,"Fan IMP 144: 33.00USD\nCondenser IMP 145: 53.00USD",{"$f":"IFERROR(INDEX(INDIRECT(\"'\"&A56&\"'!$18:$50\"),MATCH($X$1,INDIRECT(\"'\"&A56&\"'!$A$18:$A$50\"),0),MATCH(Parts!$B56,INDIRECT(\"'\"&A56&\"'!$10:$10\"),0)),0)","v":1},{"$f":"33+53","v":86},null,{"$f":"IFERROR(INDEX(INDIRECT(\"'\"&A56&\"'!$18:$50\"),MATCH($AA$1,INDIRECT(\"'\"&A56&\"'!$A$18:$A$50\"),0),MATCH(Parts!$B56,INDIRECT(\"'\"&A56&\"'!$10:$10\"),0)),0)","v":0},null,null,{"$f":"IFERROR(INDEX(INDIRECT(\"'\"&A56&\"'!$18:$50\"),MATCH($AD$1,INDIRECT(\"'\"&A56&\"'!$A$18:$A$50\"),0),MATCH(Parts!$B56,INDIRECT(\"'\"&A56&\"'!$10:$10\"),0)),0)","v":0},null,null,{"$f":"IFERROR(INDEX(INDIRECT(\"'\"&A56&\"'!$18:$50\"),MATCH($AG$1,INDIRECT(\"'\"&A56&\"'!$A$18:$A$50\"),0),MATCH(Parts!$B56,INDIRECT(\"'\"&A56&\"'!$10:$10\"),0)),0)","v":0},null,null,{"$f":"IFERROR(INDEX(INDIRECT(\"'\"&A56&\"'!$18:$50\"),MATCH($AJ$1,INDIRECT(\"'\"&A56&\"'!$A$18:$A$50\"),0),MATCH(Parts!$B56,INDIRECT(\"'\"&A56&\"'!$10:$10\"),0)),0)","v":0},null,null,{"$f":"IFERROR(INDEX(INDIRECT(\"'\"&A56&\"'!$18:$50\"),MATCH($AM$1,INDIRECT(\"'\"&A56&\"'!$A$18:$A$50\"),0),MATCH(Parts!$B56,INDIRECT(\"'\"&A56&\"'!$10:$10\"),0)),0)","v":0},null,null,{"$f":"IFERROR(INDEX(INDIRECT(\"'\"&A56&\"'!$18:$50\"),MATCH($AP$1,INDIRECT(\"'\"&A56&\"'!$A$18:$A$50\"),0),MATCH(Parts!$B56,INDIRECT(\"'\"&A56&\"'!$10:$10\"),0)),0)","v":0},null,null,{"$f":"IFERROR(INDEX(INDIRECT(\"'\"&A56&\"'!$18:$50\"),MATCH($AS$1,INDIRECT(\"'\"&A56&\"'!$A$18:$A$50\"),0),MATCH(Parts!$B56,INDIRECT(\"'\"&A56&\"'!$10:$10\"),0)),0)","v":0},null,null,{"$f":"IFERROR(INDEX(INDIRECT(\"'\"&A56&\"'!$18:$50\"),MATCH($AV$1,INDIRECT(\"'\"&A56&\"'!$A$18:$A$50\"),0),MATCH(Parts!$B56,INDIRECT(\"'\"&A56&\"'!$10:$10\"),0)),0)","v":0},null,null,{"$f":"IFERROR(INDEX(INDIRECT(\"'\"&A56&\"'!$18:$50\"),MATCH($AY$1,INDIRECT(\"'\"&A56&\"'!$A$18:$A$50\"),0),MATCH(Parts!$B56,INDIRECT(\"'\"&A56&\"'!$10:$10\"),0)),0)","v":0},null,null,{"$f":"IFERROR(INDEX(INDIRECT(\"'\"&A56&\"'!$18:$50\"),MATCH($BB$1,INDIRECT(\"'\"&A56&\"'!$A$18:$A$50\"),0),MATCH(Parts!$B56,INDIRECT(\"'\"&A56&\"'!$10:$10\"),0)),0)","v":0},null,null,{"$f":"IFERROR(INDEX(INDIRECT(\"'\"&A56&\"'!$18:$50\"),MATCH($BE$1,INDIRECT(\"'\"&A56&\"'!$A$18:$A$50\"),0),MATCH(Parts!$B56,INDIRECT(\"'\"&A56&\"'!$10:$10\"),0)),0)","v":0},null,null,{"$f":"IFERROR(INDEX(INDIRECT(\"'\"&A56&\"'!$18:$50\"),MATCH($BH$1,INDIRECT(\"'\"&A56&\"'!$A$18:$A$50\"),0),MATCH(Parts!$B56,INDIRECT(\"'\"&A56&\"'!$10:$10\"),0)),0)","v":0},null,null,{"$f":"IFERROR(INDEX(INDIRECT(\"'\"&A56&\"'!$18:$50\"),MATCH($BK$1,INDIRECT(\"'\"&A56&\"'!$A$18:$A$50\"),0),MATCH(Parts!$B56,INDIRECT(\"'\"&A56&\"'!$10:$10\"),0)),0)","v":0},null,null,{"$f":"IFERROR(INDEX(INDIRECT(\"'\"&A56&\"'!$18:$50\"),MATCH($BN$1,INDIRECT(\"'\"&A56&\"'!$A$18:$A$50\"),0),MATCH(Parts!$B56,INDIRECT(\"'\"&A56&\"'!$10:$10\"),0)),0)","v":0},null,null,{"$f":"IFERROR(INDEX(INDIRECT(\"'\"&A56&\"'!$18:$50\"),MATCH($BQ$1,INDIRECT(\"'\"&A56&\"'!$A$18:$A$50\"),0),MATCH(Parts!$B56,INDIRECT(\"'\"&A56&\"'!$10:$10\"),0)),0)","v":0},null,null,{"$f":"IFERROR(INDEX(INDIRECT(\"'\"&A56&\"'!$18:$50\"),MATCH($BT$1,INDIRECT(\"'\"&A56&\"'!$A$18:$A$50\"),0),MATCH(Parts!$B56,INDIRECT(\"'\"&A56&\"'!$10:$10\"),0)),0)","v":0},null,null,{"$f":"IFERROR(INDEX(INDIRECT(\"'\"&A56&\"'!$18:$50\"),MATCH($BW$1,INDIRECT(\"'\"&A56&\"'!$A$18:$A$50\"),0),MATCH(Parts!$B56,INDIRECT(\"'\"&A56&\"'!$10:$10\"),0)),0)","v":0},null,null,{"$f":"IFERROR(INDEX(INDIRECT(\"'\"&A56&\"'!$18:$50\"),MATCH($BZ$1,INDIRECT(\"'\"&A56&\"'!$A$18:$A$50\"),0),MATCH(Parts!$B56,INDIRECT(\"'\"&A56&\"'!$10:$10\"),0)),0)","v":0},null,null,{"$f":"IFERROR(INDEX(INDIRECT(\"'\"&A56&\"'!$18:$50\"),MATCH($CC$1,INDIRECT(\"'\"&A56&\"'!$A$18:$A$50\"),0),MATCH(Parts!$B56,INDIRECT(\"'\"&A56&\"'!$10:$10\"),0)),0)","v":0},null,null,{"$f":"IFERROR(INDEX(INDIRECT(\"'\"&A56&\"'!$18:$50\"),MATCH($CF$1,INDIRECT(\"'\"&A56&\"'!$A$18:$A$50\"),0),MATCH(Parts!$B56,INDIRECT(\"'\"&A56&\"'!$10:$10\"),0)),0)","v":0},null,null,{"$f":"IFERROR(INDEX(INDIRECT(\"'\"&A56&\"'!$18:$50\"),MATCH($CI$1,INDIRECT(\"'\"&A56&\"'!$A$18:$A$50\"),0),MATCH(Parts!$B56,INDIRECT(\"'\"&A56&\"'!$10:$10\"),0)),0)","v":0},null,null,{"$f":"IFERROR(INDEX(INDIRECT(\"'\"&A56&\"'!$18:$50\"),MATCH($CL$1,INDIRECT(\"'\"&A56&\"'!$A$18:$A$50\"),0),MATCH(Parts!$B56,INDIRECT(\"'\"&A56&\"'!$10:$10\"),0)),0)","v":0},null,null,{"$f":"IFERROR(INDEX(INDIRECT(\"'\"&A56&\"'!$18:$50\"),MATCH($CO$1,INDIRECT(\"'\"&A56&\"'!$A$18:$A$50\"),0),MATCH(Parts!$B56,INDIRECT(\"'\"&A56&\"'!$10:$10\"),0)),0)","v":0},null,null,{"$f":"IFERROR(INDEX(INDIRECT(\"'\"&A56&\"'!$18:$50\"),MATCH($CR$1,INDIRECT(\"'\"&A56&\"'!$A$18:$A$50\"),0),MATCH(Parts!$B56,INDIRECT(\"'\"&A56&\"'!$10:$10\"),0)),0)","v":0},null,null,{"$f":"IFERROR(INDEX(INDIRECT(\"'\"&A56&\"'!$18:$50\"),MATCH($CU$1,INDIRECT(\"'\"&A56&\"'!$A$18:$A$50\"),0),MATCH(Parts!$B56,INDIRECT(\"'\"&A56&\"'!$10:$10\"),0)),0)","v":0},null,null,{"$f":"IFERROR(INDEX(INDIRECT(\"'\"&A56&\"'!$18:$50\"),MATCH($CX$1,INDIRECT(\"'\"&A56&\"'!$A$18:$A$50\"),0),MATCH(Parts!$B56,INDIRECT(\"'\"&A56&\"'!$10:$10\"),0)),0)","v":0},null,null,{"$f":"IFERROR(INDEX(INDIRECT(\"'\"&A56&\"'!$18:$50\"),MATCH($DA$1,INDIRECT(\"'\"&A56&\"'!$A$18:$A$50\"),0),MATCH(Parts!$B56,INDIRECT(\"'\"&A56&\"'!$10:$10\"),0)),0)","v":0},null,null,{"$f":"IFERROR(INDEX(INDIRECT(\"'\"&A56&\"'!$18:$50\"),MATCH($DD$1,INDIRECT(\"'\"&A56&\"'!$A$18:$A$50\"),0),MATCH(Parts!$B56,INDIRECT(\"'\"&A56&\"'!$10:$10\"),0)),0)","v":0},null,null,{"$f":"IFERROR(INDEX(INDIRECT(\"'\"&A56&\"'!$18:$50\"),MATCH($DG$1,INDIRECT(\"'\"&A56&\"'!$A$18:$A$50\"),0),MATCH(Parts!$B56,INDIRECT(\"'\"&A56&\"'!$10:$10\"),0)),0)","v":0},null,null,{"$f":"IFERROR(INDEX(INDIRECT(\"'\"&A56&\"'!$18:$50\"),MATCH($DJ$1,INDIRECT(\"'\"&A56&\"'!$A$18:$A$50\"),0),MATCH(Parts!$B56,INDIRECT(\"'\"&A56&\"'!$10:$10\"),0)),0)","v":0},null,null,{"$f":"IFERROR(INDEX(INDIRECT(\"'\"&A56&\"'!$18:$50\"),MATCH($DM$1,INDIRECT(\"'\"&A56&\"'!$A$18:$A$50\"),0),MATCH(Parts!$B56,INDIRECT(\"'\"&A56&\"'!$10:$10\"),0)),0)","v":0},null,null,{"$f":"IFERROR(INDEX(INDIRECT(\"'\"&A56&\"'!$18:$50\"),MATCH($DP$1,INDIRECT(\"'\"&A56&\"'!$A$18:$A$50\"),0),MATCH(Parts!$B56,INDIRECT(\"'\"&A56&\"'!$10:$10\"),0)),0)","v":0},null,null,{"$f":"IFERROR(INDEX(INDIRECT(\"'\"&A56&\"'!$18:$50\"),MATCH($DS$1,INDIRECT(\"'\"&A56&\"'!$A$18:$A$50\"),0),MATCH(Parts!$B56,INDIRECT(\"'\"&A56&\"'!$10:$10\"),0)),0)","v":0},null,null,{"$f":"IFERROR(INDEX(INDIRECT(\"'\"&A56&\"'!$18:$50\"),MATCH($DV$1,INDIRECT(\"'\"&A56&\"'!$A$18:$A$50\"),0),MATCH(Parts!$B56,INDIRECT(\"'\"&A56&\"'!$10:$10\"),0)),0)","v":0},null,null,{"$f":"IFERROR(INDEX(INDIRECT(\"'\"&A56&\"'!$18:$50\"),MATCH($DY$1,INDIRECT(\"'\"&A56&\"'!$A$18:$A$50\"),0),MATCH(Parts!$B56,INDIRECT(\"'\"&A56&\"'!$10:$10\"),0)),0)","v":0},null,null,{"$f":"IFERROR(INDEX(INDIRECT(\"'\"&A56&\"'!$18:$50\"),MATCH($EB$1,INDIRECT(\"'\"&A56&\"'!$A$18:$A$50\"),0),MATCH(Parts!$B56,INDIRECT(\"'\"&A56&\"'!$10:$10\"),0)),0)","v":0},null,null,{"$f":"IFERROR(INDEX(INDIRECT(\"'\"&A56&\"'!$18:$50\"),MATCH($EE$1,INDIRECT(\"'\"&A56&\"'!$A$18:$A$50\"),0),MATCH(Parts!$B56,INDIRECT(\"'\"&A56&\"'!$10:$10\"),0)),0)","v":0},null,null,{"$f":"IFERROR(INDEX(INDIRECT(\"'\"&A56&\"'!$18:$50\"),MATCH($EH$1,INDIRECT(\"'\"&A56&\"'!$A$18:$A$50\"),0),MATCH(Parts!$B56,INDIRECT(\"'\"&A56&\"'!$10:$10\"),0)),0)","v":0},null,"24V surge protector ELSP: 110.00USD",{"$f":"IFERROR(INDEX(INDIRECT(\"'\"&A56&\"'!$18:$50\"),MATCH($EK$1,INDIRECT(\"'\"&A56&\"'!$A$18:$A$50\"),0),MATCH(Parts!$B56,INDIRECT(\"'\"&A56&\"'!$10:$10\"),0)),0)","v":1},110]
[{"$f":"PQS!A59","v":"SDD"},{"$f":"PQS!B59","v":"E003/039"},{"$f":"PQS!E59","v":"BFRV 15 SDD*"},{"$f":"PQS!P59","v":"$"},330,"Compressor: 101Z0203, 120USD",{"$f":"IFERROR(INDEX(INDIRECT(\"'\"&A57&\"'!$18:$50\"),MATCH(Parts!F$1,INDIRECT(\"'\"&A57&\"'!$A$18:$A$50\"),0),MATCH(Parts!$B57,INDIRECT(\"'\"&A57&\"'!$10:$10\"),0)),0)","v":1},100,"Electronic Thermostat: SDZR-PCB 7.5, 70 USD",{"$f":"IFERROR(INDEX(INDIRECT(\"'\"&A57&\"'!$18:$50\"),MATCH($I$1,INDIRECT(\"'\"&A57&\"'!$A$18:$A$50\"),0),MATCH(Parts!$B57,INDIRECT(\"'\"&A57&\"'!$10:$10\"),0)),0)","v":1},70,"Electronic Control Unit: 101N0212, 120 USD",{"$f":"IFERROR(INDEX(INDIRECT(\"'\"&A57&\"'!$18:$50\"),MATCH($L$1,INDIRECT(\"'\"&A57&\"'!$A$18:$A$50\"),0),MATCH(Parts!$B57,INDIRECT(\"'\"&A57&\"'!$10:$10\"),0)),0)","v":1},null,null,{"$f":"IFERROR(INDEX(INDIRECT(\"'\"&A57&\"'!$18:$50\"),MATCH($O$1,INDIRECT(\"'\"&A57&\"'!$A$18:$A$50\"),0),MATCH(Parts!$B57,INDIRECT(\"'\"&A57&\"'!$10:$10\"),0)),0)","v":0},null,null,{"$f":"IFERROR(INDEX(INDIRECT(\"'\"&A57&\"'!$18:$50\"),MATCH($R$1,INDIRECT(\"'\"&A57&\"'!$A$18:$A$50\"),0),MATCH(Parts!$B57,INDIRECT(\"'\"&A57&\"'!$10:$10\"),0)),0)","v":0},null,null,{"$f":"IFERROR(INDEX(INDIRECT(\"'\"&A57&\"'!$18:$50\"),MATCH($U$1,INDIRECT(\"'\"&A57&\"'!$A$18:$A$50\"),0),MATCH(Parts!$B57,INDIRECT(\"'\"&A57&\"'!$10:$10\"),0)),0)","v":0},null,"ECU Fan: 11SD001, 15 USD",{"$f":"IFERROR(INDEX(INDIRECT(\"'\"&A57&\"'!$18:$50\"),MATCH($X$1,INDIRECT(\"'\"&A57&\"'!$A$18:$A$50\"),0),MATCH(Parts!$B57,INDIRECT(\"'\"&A57&\"'!$10:$10\"),0)),0)","v":0},15,null,{"$f":"IFERROR(INDEX(INDIRECT(\"'\"&A57&\"'!$18:$50\"),MATCH($AA$1,INDIRECT(\"'\"&A57&\"'!$A$18:$A$50\"),0),MATCH(Parts!$B57,INDIRECT(\"'\"&A57&\"'!$10:$10\"),0)),0)","v":0},null,null,{"$f":"IFERROR(INDEX(INDIRECT(\"'\"&A57&\"'!$18:$50\"),MATCH($AD$1,INDIRECT(\"'\"&A57&\"'!$A$18:$A$50\"),0),MATCH(Parts!$B57,INDIRECT(\"'\"&A57&\"'!$10:$10\"),0)),0)","v":0},null,null,{"$f":"IFERROR(INDEX(INDIRECT(\"'\"&A57&\"'!$18:$50\"),MATCH($AG$1,INDIRECT(\"'\"&A57&\"'!$A$18:$A$50\"),0),MATCH(Parts!$B57,INDIRECT(\"'\"&A57&\"'!$10:$10\"),0)),0)","v":0},null,null,{"$f":"IFERROR(INDEX(INDIRECT(\"'\"&A57&\"'!$18:$50\"),MATCH($AJ$1,INDIRECT(\"'\"&A57&\"'!$A$18:$A$50\"),0),MATCH(Parts!$B57,INDIRECT(\"'\"&A57&\"'!$10:$10\"),0)),0)","v":0},null,"Med/High Capacity Toggle Switch",{"$f":"IFERROR(INDEX(INDIRECT(\"'\"&A57&\"'!$18:$50\"),MATCH($AM$1,INDIRECT(\"'\"&A57&\"'!$A$18:$A$50\"),0),MATCH(Parts!$B57,INDIRECT(\"'\"&A57&\"'!$10:$10\"),0)),0)","v":1},10,null,{"$f":"IFERROR(INDEX(INDIRECT(\"'\"&A57&\"'!$18:$50\"),MATCH($AP$1,INDIRECT(\"'\"&A57&\"'!$A$18:$A$50\"),0),MATCH(Parts!$B57,INDIRECT(\"'\"&A57&\"'!$10:$10\"),0)),0)","v":0},null,null,{"$f":"IFERROR(INDEX(INDIRECT(\"'\"&A57&\"'!$18:$50\"),MATCH($AS$1,INDIRECT(\"'\"&A57&\"'!$A$18:$A$50\"),0),MATCH(Parts!$B57,INDIRECT(\"'\"&A57&\"'!$10:$10\"),0)),0)","v":0},null,null,{"$f":"IFERROR(INDEX(INDIRECT(\"'\"&A57&\"'!$18:$50\"),MATCH($AV$1,INDIRECT(\"'\"&A57&\"'!$A$18:$A$50\"),0),MATCH(Parts!$B57,INDIRECT(\"'\"&A57&\"'!$10:$10\"),0)),0)","v":0},null,null,{"$f":"IFERROR(INDEX(INDIRECT(\"'\"&A57&\"'!$18:$50\"),MATCH($AY$1,INDIRECT(\"'\"&A57&\"'!$A$18:$A$50\"),0),MATCH(Parts!$B57,INDIRECT(\"'\"&A57&\"'!$10:$10\"),0)),0)","v":0},null,null,{"$f":"IFERROR(INDEX(INDIRECT(\"'\"&A57&\"'!$18:$50\"),MATCH($BB$1,INDIRECT(\"'\"&A57&\"'!$A$18:$A$50\"),0),MATCH(Parts!$B57,INDIRECT(\"'\"&A57&\"'!$10:$10\"),0)),0)","v":0},null,null,{"$f":"IFERROR(INDEX(INDIRECT(\"'\"&A57&\"'!$18:$50\"),MATCH($BE$1,INDIRECT(\"'\"&A57&\"'!$A$18:$A$50\"),0),MATCH(Parts!$B57,INDIRECT(\"'\"&A57&\"'!$10:$10\"),0)),0)","v":0},null,"Copper Drier",{"$f":"IFERROR(INDEX(INDIRECT(\"'\"&A57&\"'!$18:$50\"),MATCH($BH$1,INDIRECT(\"'\"&A57&\"'!$A$18:$A$50\"),0),MATCH(Parts!$B57,INDIRECT(\"'\"&A57&\"'!$10:$10\"),0)),0)","v":1},10,null,{"$f":"IFERROR(INDEX(INDIRECT(\"'\"&A57&\"'!$18:$50\"),MATCH($BK$1,INDIRECT(\"'\"&A57&\"'!$A$18:$A$50\"),0),MATCH(Parts!$B57,INDIRECT(\"'\"&A57&\"'!$10:$10\"),0)),0)","v":0},null,null,{"$f":"IFERROR(INDEX(INDIRECT(\"'\"&A57&\"'!$18:$50\"),MATCH($BN$1,INDIRECT(\"'\"&A57&\"'!$A$18:$A$50\"),0),MATCH(Parts!$B57,INDIRECT(\"'\"&A57&\"'!$10:$10\"),0)),0)","v":0},null,"Hinge",{"$f":"IFERROR(INDEX(INDIRECT(\"'\"&A57&\"'!$18:$50\"),MATCH($BQ$1,INDIRECT(\"'\"&A57&\"'!$A$18:$A$50\"),0),MATCH(Parts!$B57,INDIRECT(\"'\"&A57&\"'!$10:$10\"),0)),0)","v":1},40,"Hinge cover",{"$f":"IFERROR(INDEX(INDIRECT(\"'\"&A57&\"'!$18:$50\"),MATCH($BT$1,INDIRECT(\"'\"&A57&\"'!$A$18:$A$50\"),0),MATCH(Parts!$B57,INDIRECT(\"'\"&A57&\"'!$10:$10\"),0)),0)","v":1},40,null,{"$f":"IFERROR(INDEX(INDIRECT(\"'\"&A57&\"'!$18:$50\"),MATCH($BW$1,INDIRECT(\"'\"&A57&\"'!$A$18:$A$50\"),0),MATCH(Parts!$B57,INDIRECT(\"'\"&A57&\"'!$10:$10\"),0)),0)","v":0},null,"Vaccine Thermometer",{"$f":"IFERROR(INDEX(INDIRECT(\"'\"&A57&\"'!$18:$50\"),MATCH($BZ$1,INDIRECT(\"'\"&A57&\"'!$A$18:$A$50\"),0),MATCH(Parts!$B57,INDIRECT(\"'\"&A57&\"'!$10:$10\"),0)),0)","v":1},40,null,{"$f":"IFERROR(INDEX(INDIRECT(\"'\"&A57&\"'!$18:$50\"),MATCH($CC$1,INDIRECT(\"'\"&A57&\"'!$A$18:$A$50\"),0),MATCH(Parts!$B57,INDIRECT(\"'\"&A57&\"'!$10:$10\"),0)),0)","v":0},null,"Handle",{"$f":"IFERROR(INDEX(INDIRECT(\"'\"&A57&\"'!$18:$50\"),MATCH($CF$1,INDIRECT(\"'\"&A57&\"'!$A$18:$A$50\"),0),MATCH(Parts!$B57,INDIRECT(\"'\"&A57&\"'!$10:$10\"),0)),0)","v":1},20,null,{"$f":"IFERROR(INDEX(INDIRECT(\"'\"&A57&\"'!$18:$50\"),MATCH($CI$1,INDIRECT(\"'\"&A57&\"'!$A$18:$A$50\"),0),MATCH(Parts!$B57,INDIRECT(\"'\"&A57&\"'!$10:$10\"),0)),0)","v":0},null,null,{"$f":"IFERROR(INDEX(INDIRECT(\"'\"&A57&\"'!$18:$50\"),MATCH($CL$1,INDIRECT(\"'\"&A57&\"'!$A$18:$A$50\"),0),MATCH(Parts!$B57,INDIRECT(\"'\"&A57&\"'!$10:$10\"),0)),0)","v":0},null,null,{"$f":"IFERROR(INDEX(INDIRECT(\"'\"&A57&\"'!$18:$50\"),MATCH($CO$1,INDIRECT(\"'\"&A57&\"'!$A$18:$A$50\"),0),MATCH(Parts!$B57,INDIRECT(\"'\"&A57&\"'!$10:$10\"),0)),0)","v":0},null,null,{"$f":"IFERROR(INDEX(INDIRECT(\"'\"&A57&\"'!$18:$50\"),MATCH($CR$1,INDIRECT(\"'\"&A57&\"'!$A$18:$A$50\"),0),MATCH(Parts!$B57,INDIRECT(\"'\"&A57&\"'!$10:$10\"),0)),0)","v":0},null,null,{"$f":"IFERROR(INDEX(INDIRECT(\"'\"&A57&\"'!$18:$50\"),MATCH($CU$1,INDIRECT(\"'\"&A57&\"'!$A$18:$A$50\"),0),MATCH(Parts!$B57,INDIRECT(\"'\"&A57&\"'!$10:$10\"),0)),0)","v":0},null,null,{"$f":"IFERROR(INDEX(INDIRECT(\"'\"&A57&\"'!$18:$50\"),MATCH($CX$1,INDIRECT(\"'\"&A57&\"'!$A$18:$A$50\"),0),MATCH(Parts!$B57,INDIRECT(\"'\"&A57&\"'!$10:$10\"),0)),0)","v":0},null,null,{"$f":"IFERROR(INDEX(INDIRECT(\"'\"&A57&\"'!$18:$50\"),MATCH($DA$1,INDIRECT(\"'\"&A57&\"'!$A$18:$A$50\"),0),MATCH(Parts!$B57,INDIRECT(\"'\"&A57&\"'!$10:$10\"),0)),0)","v":0},null,null,{"$f":"IFERROR(INDEX(INDIRECT(\"'\"&A57&\"'!$18:$50\"),MATCH($DD$1,INDIRECT(\"'\"&A57&\"'!$A$18:$A$50\"),0),MATCH(Parts!$B57,INDIRECT(\"'\"&A57&\"'!$10:$10\"),0)),0)","v":0},null,null,{"$f":"IFERROR(INDEX(INDIRECT(\"'\"&A57&\"'!$18:$50\"),MATCH($DG$1,INDIRECT(\"'\"&A57&\"'!$A$18:$A$50\"),0),MATCH(Parts!$B57,INDIRECT(\"'\"&A57&\"'!$10:$10\"),0)),0)","v":0},null,null,{"$f":"IFERROR(INDEX(INDIRECT(\"'\"&A57&\"'!$18:$50\"),MATCH($DJ$1,INDIRECT(\"'\"&A57&\"'!$A$18:$A$50\"),0),MATCH(Parts!$B57,INDIRECT(\"'\"&A57&\"'!$10:$10\"),0)),0)","v":0},null,null,{"$f":"IFERROR(INDEX(INDIRECT(\"'\"&A57&\"'!$18:$50\"),MATCH($DM$1,INDIRECT(\"'\"&A57&\"'!$A$18:$A$50\"),0),MATCH(Parts!$B57,INDIRECT(\"'\"&A57&\"'!$10:$10\"),0)),0)","v":0},null,null,{"$f":"IFERROR(INDEX(INDIRECT(\"'\"&A57&\"'!$18:$50\"),MATCH($DP$1,INDIRECT(\"'\"&A57&\"'!$A$18:$A$50\"),0),MATCH(Parts!$B57,INDIRECT(\"'\"&A57&\"'!$10:$10\"),0)),0)","v":0},null,null,{"$f":"IFERROR(INDEX(INDIRECT(\"'\"&A57&\"'!$18:$50\"),MATCH($DS$1,INDIRECT(\"'\"&A57&\"'!$A$18:$A$50\"),0),MATCH(Parts!$B57,INDIRECT(\"'\"&A57&\"'!$10:$10\"),0)),0)","v":0},null,null,{"$f":"IFERROR(INDEX(INDIRECT(\"'\"&A57&\"'!$18:$50\"),MATCH($DV$1,INDIRECT(\"'\"&A57&\"'!$A$18:$A$50\"),0),MATCH(Parts!$B57,INDIRECT(\"'\"&A57&\"'!$10:$10\"),0)),0)","v":0},null,null,{"$f":"IFERROR(INDEX(INDIRECT(\"'\"&A57&\"'!$18:$50\"),MATCH($DY$1,INDIRECT(\"'\"&A57&\"'!$A$18:$A$50\"),0),MATCH(Parts!$B57,INDIRECT(\"'\"&A57&\"'!$10:$10\"),0)),0)","v":0},null,null,{"$f":"IFERROR(INDEX(INDIRECT(\"'\"&A57&\"'!$18:$50\"),MATCH($EB$1,INDIRECT(\"'\"&A57&\"'!$A$18:$A$50\"),0),MATCH(Parts!$B57,INDIRECT(\"'\"&A57&\"'!$10:$10\"),0)),0)","v":0},null,null,{"$f":"IFERROR(INDEX(INDIRECT(\"'\"&A57&\"'!$18:$50\"),MATCH($EE$1,INDIRECT(\"'\"&A57&\"'!$A$18:$A$50\"),0),MATCH(Parts!$B57,INDIRECT(\"'\"&A57&\"'!$10:$10\"),0)),0)","v":0},null,null,{"$f":"IFERROR(INDEX(INDIRECT(\"'\"&A57&\"'!$18:$50\"),MATCH($EH$1,INDIRECT(\"'\"&A57&\"'!$A$18:$A$50\"),0),MATCH(Parts!$B57,INDIRECT(\"'\"&A57&\"'!$10:$10\"),0)),0)","v":0},null,null,{"$f":"IFERROR(INDEX(INDIRECT(\"'\"&A57&\"'!$18:$50\"),MATCH($EK$1,INDIRECT(\"'\"&A57&\"'!$A$18:$A$50\"),0),MATCH(Parts!$B57,INDIRECT(\"'\"&A57&\"'!$10:$10\"),0)),0)","v":0}]
[{"$f":"PQS!A60","v":"SDD"},{"$f":"PQS!B60","v":"E003/040"},{"$f":"PQS!E60","v":"VC 200 SDD*"},"€",371,"Compressor Danfoss BD35K: €178.00",{"$f":"IFERROR(INDEX(INDIRECT(\"'\"&A58&\"'!$18:$50\"),MATCH(Parts!F$1,INDIRECT(\"'\"&A58&\"'!$A$18:$A$50\"),0),MATCH(Parts!$B58,INDIRECT(\"'\"&A58&\"'!$10:$10\"),0)),0)","v":0},178,null,{"$f":"IFERROR(INDEX(INDIRECT(\"'\"&A58&\"'!$18:$50\"),MATCH($I$1,INDIRECT(\"'\"&A58&\"'!$A$18:$A$50\"),0),MATCH(Parts!$B58,INDIRECT(\"'\"&A58&\"'!$10:$10\"),0)),0)","v":0},null,"Controller Danfoss 101N0420: €140.00",{"$f":"IFERROR(INDEX(INDIRECT(\"'\"&A58&\"'!$18:$50\"),MATCH($L$1,INDIRECT(\"'\"&A58&\"'!$A$18:$A$50\"),0),MATCH(Parts!$B58,INDIRECT(\"'\"&A58&\"'!$10:$10\"),0)),0)","v":1},140,null,{"$f":"IFERROR(INDEX(INDIRECT(\"'\"&A58&\"'!$18:$50\"),MATCH($O$1,INDIRECT(\"'\"&A58&\"'!$A$18:$A$50\"),0),MATCH(Parts!$B58,INDIRECT(\"'\"&A58&\"'!$10:$10\"),0)),0)","v":0},null,null,{"$f":"IFERROR(INDEX(INDIRECT(\"'\"&A58&\"'!$18:$50\"),MATCH($R$1,INDIRECT(\"'\"&A58&\"'!$A$18:$A$50\"),0),MATCH(Parts!$B58,INDIRECT(\"'\"&A58&\"'!$10:$10\"),0)),0)","v":0},null,null,{"$f":"IFERROR(INDEX(INDIRECT(\"'\"&A58&\"'!$18:$50\"),MATCH($U$1,INDIRECT(\"'\"&A58&\"'!$A$18:$A$50\"),0),MATCH(Parts!$B58,INDIRECT(\"'\"&A58&\"'!$10:$10\"),0)),0)","v":0},null,null,{"$f":"IFERROR(INDEX(INDIRECT(\"'\"&A58&\"'!$18:$50\"),MATCH($X$1,INDIRECT(\"'\"&A58&\"'!$A$18:$A$50\"),0),MATCH(Parts!$B58,INDIRECT(\"'\"&A58&\"'!$10:$10\"),0)),0)","v":0},null,null,{"$f":"IFERROR(INDEX(INDIRECT(\"'\"&A58&\"'!$18:$50\"),MATCH($AA$1,INDIRECT(\"'\"&A58&\"'!$A$18:$A$50\"),0),MATCH(Parts!$B58,INDIRECT(\"'\"&A58&\"'!$10:$10\"),0)),0)","v":0},null,null,{"$f":"IFERROR(INDEX(INDIRECT(\"'\"&A58&\"'!$18:$50\"),MATCH($AD$1,INDIRECT(\"'\"&A58&\"'!$A$18:$A$50\"),0),MATCH(Parts!$B58,INDIRECT(\"'\"&A58&\"'!$10:$10\"),0)),0)","v":0},null,null,{"$f":"IFERROR(INDEX(INDIRECT(\"'\"&A58&\"'!$18:$50\"),MATCH($AG$1,INDIRECT(\"'\"&A58&\"'!$A$18:$A$50\"),0),MATCH(Parts!$B58,INDIRECT(\"'\"&A58&\"'!$10:$10\"),0)),0)","v":0},null,null,{"$f":"IFERROR(INDEX(INDIRECT(\"'\"&A58&\"'!$18:$50\"),MATCH($AJ$1,INDIRECT(\"'\"&A58&\"'!$A$18:$A$50\"),0),MATCH(Parts!$B58,INDIRECT(\"'\"&A58&\"'!$10:$10\"),0)),0)","v":0},null,"MCB fridge / isolation switch: €19.05",{"$f":"IFERROR(INDEX(INDIRECT(\"'\"&A58&\"'!$18:$50\"),MATCH($AM$1,INDIRECT(\"'\"&A58&\"'!$A$18:$A$50\"),0),MATCH(Parts!$B58,INDIRECT(\"'\"&A58&\"'!$10:$10\"),0)),0)","v":0},19.05,null,{"$f":"IFERROR(INDEX(INDIRECT(\"'\"&A58&\"'!$18:$50\"),MATCH($AP$1,INDIRECT(\"'\"&A58&\"'!$A$18:$A$50\"),0),MATCH(Parts!$B58,INDIRECT(\"'\"&A58&\"'!$10:$10\"),0)),0)","v":0},null,null,{"$f":"IFERROR(INDEX(INDIRECT(\"'\"&A58&\"'!$18:$50\"),MATCH($AS$1,INDIRECT(\"'\"&A58&\"'!$A$18:$A$50\"),0),MATCH(Parts!$B58,INDIRECT(\"'\"&A58&\"'!$10:$10\"),0)),0)","v":0},null,null,{"$f":"IFERROR(INDEX(INDIRECT(\"'\"&A58&\"'!$18:$50\"),MATCH($AV$1,INDIRECT(\"'\"&A58&\"'!$A$18:$A$50\"),0),MATCH(Parts!$B58,INDIRECT(\"'\"&A58&\"'!$10:$10\"),0)),0)","v":0},null,null,{"$f":"IFERROR(INDEX(INDIRECT(\"'\"&A58&\"'!$18:$50\"),MATCH($AY$1,INDIRECT(\"'\"&A58&\"'!$A$18:$A$50\"),0),MATCH(Parts!$B58,INDIRECT(\"'\"&A58&\"'!$10:$10\"),0)),0)","v":0},null,null,{"$f":"IFERROR(INDEX(INDIRECT(\"'\"&A58&\"'!$18:$50\"),MATCH($BB$1,INDIRECT(\"'\"&A58&\"'!$A$18:$A$50\"),0),MATCH(Parts!$B58,INDIRECT(\"'\"&A58&\"'!$10:$10\"),0)),0)","v":0},null,null,{"$f":"IFERROR(INDEX(INDIRECT(\"'\"&A58&\"'!$18:$50\"),MATCH($BE$1,INDIRECT(\"'\"&A58&\"'!$A$18:$A$50\"),0),MATCH(Parts!$B58,INDIRECT(\"'\"&A58&\"'!$10:$10\"),0)),0)","v":0},null,null,{"$f":"IFERROR(INDEX(INDIRECT(\"'\"&A58&\"'!$18:$50\"),MATCH($BH$1,INDIRECT(\"'\"&A58&\"'!$A$18:$A$50\"),0),MATCH(Parts!$B58,INDIRECT(\"'\"&A58&\"'!$10:$10\"),0)),0)","v":0},null,null,{"$f":"IFERROR(INDEX(INDIRECT(\"'\"&A58&\"'!$18:$50\"),MATCH($BK$1,INDIRECT(\"'\"&A58&\"'!$A$18:$A$50\"),0),MATCH(Parts!$B58,INDIRECT(\"'\"&A58&\"'!$10:$10\"),0)),0)","v":0},null,null,{"$f":"IFERROR(INDEX(INDIRECT(\"'\"&A58&\"'!$18:$50\"),MATCH($BN$1,INDIRECT(\"'\"&A58&\"'!$A$18:$A$50\"),0),MATCH(Parts!$B58,INDIRECT(\"'\"&A58&\"'!$10:$10\"),0)),0)","v":0},null,null,{"$f":"IFERROR(INDEX(INDIRECT(\"'\"&A58&\"'!$18:$50\"),MATCH($BQ$1,INDIRECT(\"'\"&A58&\"'!$A$18:$A$50\"),0),MATCH(Parts!$B58,INDIRECT(\"'\"&A58&\"'!$10:$10\"),0)),0)","v":0},null,null,{"$f":"IFERROR(INDEX(INDIRECT(\"'\"&A58&\"'!$18:$50\"),MATCH($BT$1,INDIRECT(\"'\"&A58&\"'!$A$18:$A$50\"),0),MATCH(Parts!$B58,INDIRECT(\"'\"&A58&\"'!$10:$10\"),0)),0)","v":0},null,null,{"$f":"IFERROR(INDEX(INDIRECT(\"'\"&A58&\"'!$18:$50\"),MATCH($BW$1,INDIRECT(\"'\"&A58&\"'!$A$18:$A$50\"),0),MATCH(Parts!$B58,INDIRECT(\"'\"&A58&\"'!$10:$10\"),0)),0)","v":0},null,"Solar thermometer: € 35.00",{"$f":"IFERROR(INDEX(INDIRECT(\"'\"&A58&\"'!$18:$50\"),MATCH($BZ$1,INDIRECT(\"'\"&A58&\"'!$A$18:$A$50\"),0),MATCH(Parts!$B58,INDIRECT(\"'\"&A58&\"'!$10:$10\"),0)),0)","v":1},35,null,{"$f":"IFERROR(INDEX(INDIRECT(\"'\"&A58&\"'!$18:$50\"),MATCH($CC$1,INDIRECT(\"'\"&A58&\"'!$A$18:$A$50\"),0),MATCH(Parts!$B58,INDIRECT(\"'\"&A58&\"'!$10:$10\"),0)),0)","v":0},null,null,{"$f":"IFERROR(INDEX(INDIRECT(\"'\"&A58&\"'!$18:$50\"),MATCH($CF$1,INDIRECT(\"'\"&A58&\"'!$A$18:$A$50\"),0),MATCH(Parts!$B58,INDIRECT(\"'\"&A58&\"'!$10:$10\"),0)),0)","v":0},null,null,{"$f":"IFERROR(INDEX(INDIRECT(\"'\"&A58&\"'!$18:$50\"),MATCH($CI$1,INDIRECT(\"'\"&A58&\"'!$A$18:$A$50\"),0),MATCH(Parts!$B58,INDIRECT(\"'\"&A58&\"'!$10:$10\"),0)),0)","v":0},null,null,{"$f":"IFERROR(INDEX(INDIRECT(\"'\"&A58&\"'!$18:$50\"),MATCH($CL$1,INDIRECT(\"'\"&A58&\"'!$A$18:$A$50\"),0),MATCH(Parts!$B58,INDIRECT(\"'\"&A58&\"'!$10:$10\"),0)),0)","v":0},null,null,{"$f":"IFERROR(INDEX(INDIRECT(\"'\"&A58&\"'!$18:$50\"),MATCH($CO$1,INDIRECT(\"'\"&A58&\"'!$A$18:$A$50\"),0),MATCH(Parts!$B58,INDIRECT(\"'\"&A58&\"'!$10:$10\"),0)),0)","v":0},null,null,{"$f":"IFERROR(INDEX(INDIRECT(\"'\"&A58&\"'!$18:$50\"),MATCH($CR$1,INDIRECT(\"'\"&A58&\"'!$A$18:$A$50\"),0),MATCH(Parts!$B58,INDIRECT(\"'\"&A58&\"'!$10:$10\"),0)),0)","v":0},null,null,{"$f":"IFERROR(INDEX(INDIRECT(\"'\"&A58&\"'!$18:$50\"),MATCH($CU$1,INDIRECT(\"'\"&A58&\"'!$A$18:$A$50\"),0),MATCH(Parts!$B58,INDIRECT(\"'\"&A58&\"'!$10:$10\"),0)),0)","v":0},null,null,{"$f":"IFERROR(INDEX(INDIRECT(\"'\"&A58&\"'!$18:$50\"),MATCH($CX$1,INDIRECT(\"'\"&A58&\"'!$A$18:$A$50\"),0),MATCH(Parts!$B58,INDIRECT(\"'\"&A58&\"'!$10:$10\"),0)),0)","v":0},null,null,{"$f":"IFERROR(INDEX(INDIRECT(\"'\"&A58&\"'!$18:$50\"),MATCH($DA$1,INDIRECT(\"'\"&A58&\"'!$A$18:$A$50\"),0),MATCH(Parts!$B58,INDIRECT(\"'\"&A58&\"'!$10:$10\"),0)),0)","v":0},null,null,{"$f":"IFERROR(INDEX(INDIRECT(\"'\"&A58&\"'!$18:$50\"),MATCH($DD$1,INDIRECT(\"'\"&A58&\"'!$A$18:$A$50\"),0),MATCH(Parts!$B58,INDIRECT(\"'\"&A58&\"'!$10:$10\"),0)),0)","v":0},null,null,{"$f":"IFERROR(INDEX(INDIRECT(\"'\"&A58&\"'!$18:$50\"),MATCH($DG$1,INDIRECT(\"'\"&A58&\"'!$A$18:$A$50\"),0),MATCH(Parts!$B58,INDIRECT(\"'\"&A58&\"'!$10:$10\"),0)),0)","v":0},null,null,{"$f":"IFERROR(INDEX(INDIRECT(\"'\"&A58&\"'!$18:$50\"),MATCH($DJ$1,INDIRECT(\"'\"&A58&\"'!$A$18:$A$50\"),0),MATCH(Parts!$B58,INDIRECT(\"'\"&A58&\"'!$10:$10\"),0)),0)","v":0},null,null,{"$f":"IFERROR(INDEX(INDIRECT(\"'\"&A58&\"'!$18:$50\"),MATCH($DM$1,INDIRECT(\"'\"&A58&\"'!$A$18:$A$50\"),0),MATCH(Parts!$B58,INDIRECT(\"'\"&A58&\"'!$10:$10\"),0)),0)","v":0},null,"Temperature probe: € 5.00",{"$f":"IFERROR(INDEX(INDIRECT(\"'\"&A58&\"'!$18:$50\"),MATCH($DP$1,INDIRECT(\"'\"&A58&\"'!$A$18:$A$50\"),0),MATCH(Parts!$B58,INDIRECT(\"'\"&A58&\"'!$10:$10\"),0)),0)","v":1},5,"SDD controller: €191.00",{"$f":"IFERROR(INDEX(INDIRECT(\"'\"&A58&\"'!$18:$50\"),MATCH($DS$1,INDIRECT(\"'\"&A58&\"'!$A$18:$A$50\"),0),MATCH(Parts!$B58,INDIRECT(\"'\"&A58&\"'!$10:$10\"),0)),0)","v":1},191,null,{"$f":"IFERROR(INDEX(INDIRECT(\"'\"&A58&\"'!$18:$50\"),MATCH($DV$1,INDIRECT(\"'\"&A58&\"'!$A$18:$A$50\"),0),MATCH(Parts!$B58,INDIRECT(\"'\"&A58&\"'!$10:$10\"),0)),0)","v":0},null,null,{"$f":"IFERROR(INDEX(INDIRECT(\"'\"&A58&\"'!$18:$50\"),MATCH($DY$1,INDIRECT(\"'\"&A58&\"'!$A$18:$A$50\"),0),MATCH(Parts!$B58,INDIRECT(\"'\"&A58&\"'!$10:$10\"),0)),0)","v":0},null,"Fuse / surge protection pack: € 12.00",{"$f":"IFERROR(INDEX(INDIRECT(\"'\"&A58&\"'!$18:$50\"),MATCH($EB$1,INDIRECT(\"'\"&A58&\"'!$A$18:$A$50\"),0),MATCH(Parts!$B58,INDIRECT(\"'\"&A58&\"'!$10:$10\"),0)),0)","v":0},12,null,{"$f":"IFERROR(INDEX(INDIRECT(\"'\"&A58&\"'!$18:$50\"),MATCH($EE$1,INDIRECT(\"'\"&A58&\"'!$A$18:$A$50\"),0),MATCH(Parts!$B58,INDIRECT(\"'\"&A58&\"'!$10:$10\"),0)),0)","v":0},null,null,{"$f":"IFERROR(INDEX(INDIRECT(\"'\"&A58&\"'!$18:$50\"),MATCH($EH$1,INDIRECT(\"'\"&A58&\"'!$A$18:$A$50\"),0),MATCH(Parts!$B58,INDIRECT(\"'\"&A58&\"'!$10:$10\"),0)),0)","v":0},null,null,{"$f":"IFERROR(INDEX(INDIRECT(\"'\"&A58&\"'!$18:$50\"),MATCH($EK$1,INDIRECT(\"'\"&A58&\"'!$A$18:$A$50\"),0),MATCH(Parts!$B58,INDIRECT(\"'\"&A58&\"'!$10:$10\"),0)),0)","v":0}]
[{"$f":"PQS!A61","v":"SDD"},{"$f":"PQS!B61","v":"E003/041"},{"$f":"PQS!E61","v":"VLS 054 SDD*"},{"$f":"PQS!P61","v":"€"},468.76000000000005,"COMPRESSOR, SECOP BD35K 101Z0211  8-036510214",{"$f":"IFERROR(INDEX(INDIRECT(\"'\"&A59&\"'!$18:$50\"),MATCH(Parts!F$1,INDIRECT(\"'\"&A59&\"'!$A$18:$A$50\"),0),MATCH(Parts!$B59,INDIRECT(\"'\"&A59&\"'!$10:$10\"),0)),0)","v":1},245,"THERMOSTAT 7020274",{"$f":"IFERROR(INDEX(INDIRECT(\"'\"&A59&\"'!$18:$50\"),MATCH($I$1,INDIRECT(\"'\"&A59&\"'!$A$18:$A$50\"),0),MATCH(Parts!$B59,INDIRECT(\"'\"&A59&\"'!$10:$10\"),0)),0)","v":1},41.2,"Electronics for BD35K compressor, ECU 6520258",{"$f":"IFERROR(INDEX(INDIRECT(\"'\"&A59&\"'!$18:$50\"),MATCH($L$1,INDIRECT(\"'\"&A59&\"'!$A$18:$A$50\"),0),MATCH(Parts!$B59,INDIRECT(\"'\"&A59&\"'!$10:$10\"),0)),0)","v":1},112.29,null,{"$f":"IFERROR(INDEX(INDIRECT(\"'\"&A59&\"'!$18:$50\"),MATCH($O$1,INDIRECT(\"'\"&A59&\"'!$A$18:$A$50\"),0),MATCH(Parts!$B59,INDIRECT(\"'\"&A59&\"'!$10:$10\"),0)),0)","v":0},null,null,{"$f":"IFERROR(INDEX(INDIRECT(\"'\"&A59&\"'!$18:$50\"),MATCH($R$1,INDIRECT(\"'\"&A59&\"'!$A$18:$A$50\"),0),MATCH(Parts!$B59,INDIRECT(\"'\"&A59&\"'!$10:$10\"),0)),0)","v":0},null,null,{"$f":"IFERROR(INDEX(INDIRECT(\"'\"&A59&\"'!$18:$50\"),MATCH($U$1,INDIRECT(\"'\"&A59&\"'!$A$18:$A$50\"),0),MATCH(Parts!$B59,INDIRECT(\"'\"&A59&\"'!$10:$10\"),0)),0)","v":0},null,"FAN 7090099",{"$f":"IFERROR(INDEX(INDIRECT(\"'\"&A59&\"'!$18:$50\"),MATCH($X$1,INDIRECT(\"'\"&A59&\"'!$A$18:$A$50\"),0),MATCH(Parts!$B59,INDIRECT(\"'\"&A59&\"'!$10:$10\"),0)),0)","v":1},17.48,null,{"$f":"IFERROR(INDEX(INDIRECT(\"'\"&A59&\"'!$18:$50\"),MATCH($AA$1,INDIRECT(\"'\"&A59&\"'!$A$18:$A$50\"),0),MATCH(Parts!$B59,INDIRECT(\"'\"&A59&\"'!$10:$10\"),0)),0)","v":0},null,null,{"$f":"IFERROR(INDEX(INDIRECT(\"'\"&A59&\"'!$18:$50\"),MATCH($AD$1,INDIRECT(\"'\"&A59&\"'!$A$18:$A$50\"),0),MATCH(Parts!$B59,INDIRECT(\"'\"&A59&\"'!$10:$10\"),0)),0)","v":0},null,null,{"$f":"IFERROR(INDEX(INDIRECT(\"'\"&A59&\"'!$18:$50\"),MATCH($AG$1,INDIRECT(\"'\"&A59&\"'!$A$18:$A$50\"),0),MATCH(Parts!$B59,INDIRECT(\"'\"&A59&\"'!$10:$10\"),0)),0)","v":0},null,null,{"$f":"IFERROR(INDEX(INDIRECT(\"'\"&A59&\"'!$18:$50\"),MATCH($AJ$1,INDIRECT(\"'\"&A59&\"'!$A$18:$A$50\"),0),MATCH(Parts!$B59,INDIRECT(\"'\"&A59&\"'!$10:$10\"),0)),0)","v":0},null,null,{"$f":"IFERROR(INDEX(INDIRECT(\"'\"&A59&\"'!$18:$50\"),MATCH($AM$1,INDIRECT(\"'\"&A59&\"'!$A$18:$A$50\"),0),MATCH(Parts!$B59,INDIRECT(\"'\"&A59&\"'!$10:$10\"),0)),0)","v":0},null,null,{"$f":"IFERROR(INDEX(INDIRECT(\"'\"&A59&\"'!$18:$50\"),MATCH($AP$1,INDIRECT(\"'\"&A59&\"'!$A$18:$A$50\"),0),MATCH(Parts!$B59,INDIRECT(\"'\"&A59&\"'!$10:$10\"),0)),0)","v":0},null,"BASKET FOR VACCINE STORAGE 3510029",{"$f":"IFERROR(INDEX(INDIRECT(\"'\"&A59&\"'!$18:$50\"),MATCH($AS$1,INDIRECT(\"'\"&A59&\"'!$A$18:$A$50\"),0),MATCH(Parts!$B59,INDIRECT(\"'\"&A59&\"'!$10:$10\"),0)),0)","v":1},19.940000000000001,null,{"$f":"IFERROR(INDEX(INDIRECT(\"'\"&A59&\"'!$18:$50\"),MATCH($AV$1,INDIRECT(\"'\"&A59&\"'!$A$18:$A$50\"),0),MATCH(Parts!$B59,INDIRECT(\"'\"&A59&\"'!$10:$10\"),0)),0)","v":0},null,null,{"$f":"IFERROR(INDEX(INDIRECT(\"'\"&A59&\"'!$18:$50\"),MATCH($AY$1,INDIRECT(\"'\"&A59&\"'!$A$18:$A$50\"),0),MATCH(Parts!$B59,INDIRECT(\"'\"&A59&\"'!$10:$10\"),0)),0)","v":0},null,null,{"$f":"IFERROR(INDEX(INDIRECT(\"'\"&A59&\"'!$18:$50\"),MATCH($BB$1,INDIRECT(\"'\"&A59&\"'!$A$18:$A$50\"),0),MATCH(Parts!$B59,INDIRECT(\"'\"&A59&\"'!$10:$10\"),0)),0)","v":0},null,null,{"$f":"IFERROR(INDEX(INDIRECT(\"'\"&A59&\"'!$18:$50\"),MATCH($BE$1,INDIRECT(\"'\"&A59&\"'!$A$18:$A$50\"),0),MATCH(Parts!$B59,INDIRECT(\"'\"&A59&\"'!$10:$10\"),0)),0)","v":0},null,"FILTER/DRIER TYPE XH 9 (20 GRS) 0-6538001",{"$f":"IFERROR(INDEX(INDIRECT(\"'\"&A59&\"'!$18:$50\"),MATCH($BH$1,INDIRECT(\"'\"&A59&\"'!$A$18:$A$50\"),0),MATCH(Parts!$B59,INDIRECT(\"'\"&A59&\"'!$10:$10\"),0)),0)","v":1},3.84,null,{"$f":"IFERROR(INDEX(INDIRECT(\"'\"&A59&\"'!$18:$50\"),MATCH($BK$1,INDIRECT(\"'\"&A59&\"'!$A$18:$A$50\"),0),MATCH(Parts!$B59,INDIRECT(\"'\"&A59&\"'!$10:$10\"),0)),0)","v":0},null,null,{"$f":"IFERROR(INDEX(INDIRECT(\"'\"&A59&\"'!$18:$50\"),MATCH($BN$1,INDIRECT(\"'\"&A59&\"'!$A$18:$A$50\"),0),MATCH(Parts!$B59,INDIRECT(\"'\"&A59&\"'!$10:$10\"),0)),0)","v":0},null,"HINGE WITH SPRING 1510052",{"$f":"IFERROR(INDEX(INDIRECT(\"'\"&A59&\"'!$18:$50\"),MATCH($BQ$1,INDIRECT(\"'\"&A59&\"'!$A$18:$A$50\"),0),MATCH(Parts!$B59,INDIRECT(\"'\"&A59&\"'!$10:$10\"),0)),0)","v":1},8.49,null,{"$f":"IFERROR(INDEX(INDIRECT(\"'\"&A59&\"'!$18:$50\"),MATCH($BT$1,INDIRECT(\"'\"&A59&\"'!$A$18:$A$50\"),0),MATCH(Parts!$B59,INDIRECT(\"'\"&A59&\"'!$10:$10\"),0)),0)","v":0},null,null,{"$f":"IFERROR(INDEX(INDIRECT(\"'\"&A59&\"'!$18:$50\"),MATCH($BW$1,INDIRECT(\"'\"&A59&\"'!$A$18:$A$50\"),0),MATCH(Parts!$B59,INDIRECT(\"'\"&A59&\"'!$10:$10\"),0)),0)","v":0},null,"THERMOMETER 7020287-03",{"$f":"IFERROR(INDEX(INDIRECT(\"'\"&A59&\"'!$18:$50\"),MATCH($BZ$1,INDIRECT(\"'\"&A59&\"'!$A$18:$A$50\"),0),MATCH(Parts!$B59,INDIRECT(\"'\"&A59&\"'!$10:$10\"),0)),0)","v":1},13.17,null,{"$f":"IFERROR(INDEX(INDIRECT(\"'\"&A59&\"'!$18:$50\"),MATCH($CC$1,INDIRECT(\"'\"&A59&\"'!$A$18:$A$50\"),0),MATCH(Parts!$B59,INDIRECT(\"'\"&A59&\"'!$10:$10\"),0)),0)","v":0},null,"HANDLE WITH LOCK AND KEY 304090501",{"$f":"IFERROR(INDEX(INDIRECT(\"'\"&A59&\"'!$18:$50\"),MATCH($CF$1,INDIRECT(\"'\"&A59&\"'!$A$18:$A$50\"),0),MATCH(Parts!$B59,INDIRECT(\"'\"&A59&\"'!$10:$10\"),0)),0)","v":1},7.35,null,{"$f":"IFERROR(INDEX(INDIRECT(\"'\"&A59&\"'!$18:$50\"),MATCH($CI$1,INDIRECT(\"'\"&A59&\"'!$A$18:$A$50\"),0),MATCH(Parts!$B59,INDIRECT(\"'\"&A59&\"'!$10:$10\"),0)),0)","v":0},null,null,{"$f":"IFERROR(INDEX(INDIRECT(\"'\"&A59&\"'!$18:$50\"),MATCH($CL$1,INDIRECT(\"'\"&A59&\"'!$A$18:$A$50\"),0),MATCH(Parts!$B59,INDIRECT(\"'\"&A59&\"'!$10:$10\"),0)),0)","v":0},null,null,{"$f":"IFERROR(INDEX(INDIRECT(\"'\"&A59&\"'!$18:$50\"),MATCH($CO$1,INDIRECT(\"'\"&A59&\"'!$A$18:$A$50\"),0),MATCH(Parts!$B59,INDIRECT(\"'\"&A59&\"'!$10:$10\"),0)),0)","v":0},null,null,{"$f":"IFERROR(INDEX(INDIRECT(\"'\"&A59&\"'!$18:$50\"),MATCH($CR$1,INDIRECT(\"'\"&A59&\"'!$A$18:$A$50\"),0),MATCH(Parts!$B59,INDIRECT(\"'\"&A59&\"'!$10:$10\"),0)),0)","v":0},null,null,{"$f":"IFERROR(INDEX(INDIRECT(\"'\"&A59&\"'!$18:$50\"),MATCH($CU$1,INDIRECT(\"'\"&A59&\"'!$A$18:$A$50\"),0),MATCH(Parts!$B59,INDIRECT(\"'\"&A59&\"'!$10:$10\"),0)),0)","v":0},null,null,{"$f":"IFERROR(INDEX(INDIRECT(\"'\"&A59&\"'!$18:$50\"),MATCH($CX$1,INDIRECT(\"'\"&A59&\"'!$A$18:$A$50\"),0),MATCH(Parts!$B59,INDIRECT(\"'\"&A59&\"'!$10:$10\"),0)),0)","v":0},null,null,{"$f":"IFERROR(INDEX(INDIRECT(\"'\"&A59&\"'!$18:$50\"),MATCH($DA$1,INDIRECT(\"'\"&A59&\"'!$A$18:$A$50\"),0),MATCH(Parts!$B59,INDIRECT(\"'\"&A59&\"'!$10:$10\"),0)),0)","v":0},null,null,{"$f":"IFERROR(INDEX(INDIRECT(\"'\"&A59&\"'!$18:$50\"),MATCH($DD$1,INDIRECT(\"'\"&A59&\"'!$A$18:$A$50\"),0),MATCH(Parts!$B59,INDIRECT(\"'\"&A59&\"'!$10:$10\"),0)),0)","v":0},null,null,{"$f":"IFERROR(INDEX(INDIRECT(\"'\"&A59&\"'!$18:$50\"),MATCH($DG$1,INDIRECT(\"'\"&A59&\"'!$A$18:$A$50\"),0),MATCH(Parts!$B59,INDIRECT(\"'\"&A59&\"'!$10:$10\"),0)),0)","v":0},null,null,{"$f":"IFERROR(INDEX(INDIRECT(\"'\"&A59&\"'!$18:$50\"),MATCH($DJ$1,INDIRECT(\"'\"&A59&\"'!$A$18:$A$50\"),0),MATCH(Parts!$B59,INDIRECT(\"'\"&A59&\"'!$10:$10\"),0)),0)","v":0},null,null,{"$f":"IFERROR(INDEX(INDIRECT(\"'\"&A59&\"'!$18:$50\"),MATCH($DM$1,INDIRECT(\"'\"&A59&\"'!$A$18:$A$50\"),0),MATCH(Parts!$B59,INDIRECT(\"'\"&A59&\"'!$10:$10\"),0)),0)","v":0},null,null,{"$f":"IFERROR(INDEX(INDIRECT(\"'\"&A59&\"'!$18:$50\"),MATCH($DP$1,INDIRECT(\"'\"&A59&\"'!$A$18:$A$50\"),0),MATCH(Parts!$B59,INDIRECT(\"'\"&A59&\"'!$10:$10\"),0)),0)","v":0},null,null,{"$f":"IFERROR(INDEX(INDIRECT(\"'\"&A59&\"'!$18:$50\"),MATCH($DS$1,INDIRECT(\"'\"&A59&\"'!$A$18:$A$50\"),0),MATCH(Parts!$B59,INDIRECT(\"'\"&A59&\"'!$10:$10\"),0)),0)","v":0},null,null,{"$f":"IFERROR(INDEX(INDIRECT(\"'\"&A59&\"'!$18:$50\"),MATCH($DV$1,INDIRECT(\"'\"&A59&\"'!$A$18:$A$50\"),0),MATCH(Parts!$B59,INDIRECT(\"'\"&A59&\"'!$10:$10\"),0)),0)","v":0},null,null,{"$f":"IFERROR(INDEX(INDIRECT(\"'\"&A59&\"'!$18:$50\"),MATCH($DY$1,INDIRECT(\"'\"&A59&\"'!$A$18:$A$50\"),0),MATCH(Parts!$B59,INDIRECT(\"'\"&A59&\"'!$10:$10\"),0)),0)","v":0},null,null,{"$f":"IFERROR(INDEX(INDIRECT(\"'\"&A59&\"'!$18:$50\"),MATCH($EB$1,INDIRECT(\"'\"&A59&\"'!$A$18:$A$50\"),0),MATCH(Parts!$B59,INDIRECT(\"'\"&A59&\"'!$10:$10\"),0)),0)","v":0},null,null,{"$f":"IFERROR(INDEX(INDIRECT(\"'\"&A59&\"'!$18:$50\"),MATCH($EE$1,INDIRECT(\"'\"&A59&\"'!$A$18:$A$50\"),0),MATCH(Parts!$B59,INDIRECT(\"'\"&A59&\"'!$10:$10\"),0)),0)","v":0},null,null,{"$f":"IFERROR(INDEX(INDIRECT(\"'\"&A59&\"'!$18:$50\"),MATCH($EH$1,INDIRECT(\"'\"&A59&\"'!$A$18:$A$50\"),0),MATCH(Parts!$B59,INDIRECT(\"'\"&A59&\"'!$10:$10\"),0)),0)","v":0},null,null,{"$f":"IFERROR(INDEX(INDIRECT(\"'\"&A59&\"'!$18:$50\"),MATCH($EK$1,INDIRECT(\"'\"&A59&\"'!$A$18:$A$50\"),0),MATCH(Parts!$B59,INDIRECT(\"'\"&A59&\"'!$10:$10\"),0)),0)","v":0}]
[{"$f":"PQS!A62","v":"SDD"},{"$f":"PQS!B62","v":"E003/042"},{"$f":"PQS!E62","v":"TCW 40 SDD*"},{"$f":"PQS!P62","v":"€"},729.89000000000021,"Compressor: 296.9702.09",{"$f":"IFERROR(INDEX(INDIRECT(\"'\"&A60&\"'!$18:$50\"),MATCH(Parts!F$1,INDIRECT(\"'\"&A60&\"'!$A$18:$A$50\"),0),MATCH(Parts!$B60,INDIRECT(\"'\"&A60&\"'!$10:$10\"),0)),0)","v":1},84.48,"Thermostat  296.9769.81",{"$f":"IFERROR(INDEX(INDIRECT(\"'\"&A60&\"'!$18:$50\"),MATCH($I$1,INDIRECT(\"'\"&A60&\"'!$A$18:$A$50\"),0),MATCH(Parts!$B60,INDIRECT(\"'\"&A60&\"'!$10:$10\"),0)),0)","v":1},38.409999999999997,"Contrller Board 296.9769.91",{"$f":"IFERROR(INDEX(INDIRECT(\"'\"&A60&\"'!$18:$50\"),MATCH($L$1,INDIRECT(\"'\"&A60&\"'!$A$18:$A$50\"),0),MATCH(Parts!$B60,INDIRECT(\"'\"&A60&\"'!$10:$10\"),0)),0)","v":1},139.09,null,{"$f":"IFERROR(INDEX(INDIRECT(\"'\"&A60&\"'!$18:$50\"),MATCH($O$1,INDIRECT(\"'\"&A60&\"'!$A$18:$A$50\"),0),MATCH(Parts!$B60,INDIRECT(\"'\"&A60&\"'!$10:$10\"),0)),0)","v":0},null,"Controller board: 296.9769.82",{"$f":"IFERROR(INDEX(INDIRECT(\"'\"&A60&\"'!$18:$50\"),MATCH($R$1,INDIRECT(\"'\"&A60&\"'!$A$18:$A$50\"),0),MATCH(Parts!$B60,INDIRECT(\"'\"&A60&\"'!$10:$10\"),0)),0)","v":1},107.21,"Sensor for e-thermostat 296.9804.20",{"$f":"IFERROR(INDEX(INDIRECT(\"'\"&A60&\"'!$18:$50\"),MATCH($U$1,INDIRECT(\"'\"&A60&\"'!$A$18:$A$50\"),0),MATCH(Parts!$B60,INDIRECT(\"'\"&A60&\"'!$10:$10\"),0)),0)","v":1},41.56,"Fan compressor; 292.9960.06",{"$f":"IFERROR(INDEX(INDIRECT(\"'\"&A60&\"'!$18:$50\"),MATCH($X$1,INDIRECT(\"'\"&A60&\"'!$A$18:$A$50\"),0),MATCH(Parts!$B60,INDIRECT(\"'\"&A60&\"'!$10:$10\"),0)),0)","v":1},50.92,null,{"$f":"IFERROR(INDEX(INDIRECT(\"'\"&A60&\"'!$18:$50\"),MATCH($AA$1,INDIRECT(\"'\"&A60&\"'!$A$18:$A$50\"),0),MATCH(Parts!$B60,INDIRECT(\"'\"&A60&\"'!$10:$10\"),0)),0)","v":0},null,null,{"$f":"IFERROR(INDEX(INDIRECT(\"'\"&A60&\"'!$18:$50\"),MATCH($AD$1,INDIRECT(\"'\"&A60&\"'!$A$18:$A$50\"),0),MATCH(Parts!$B60,INDIRECT(\"'\"&A60&\"'!$10:$10\"),0)),0)","v":0},null,null,{"$f":"IFERROR(INDEX(INDIRECT(\"'\"&A60&\"'!$18:$50\"),MATCH($AG$1,INDIRECT(\"'\"&A60&\"'!$A$18:$A$50\"),0),MATCH(Parts!$B60,INDIRECT(\"'\"&A60&\"'!$10:$10\"),0)),0)","v":0},null,"E Box: 296.9705.24",{"$f":"IFERROR(INDEX(INDIRECT(\"'\"&A60&\"'!$18:$50\"),MATCH($AJ$1,INDIRECT(\"'\"&A60&\"'!$A$18:$A$50\"),0),MATCH(Parts!$B60,INDIRECT(\"'\"&A60&\"'!$10:$10\"),0)),0)","v":1},128.79,"Main switch: 292.2044.11",{"$f":"IFERROR(INDEX(INDIRECT(\"'\"&A60&\"'!$18:$50\"),MATCH($AM$1,INDIRECT(\"'\"&A60&\"'!$A$18:$A$50\"),0),MATCH(Parts!$B60,INDIRECT(\"'\"&A60&\"'!$10:$10\"),0)),0)","v":1},2.73,null,{"$f":"IFERROR(INDEX(INDIRECT(\"'\"&A60&\"'!$18:$50\"),MATCH($AP$1,INDIRECT(\"'\"&A60&\"'!$A$18:$A$50\"),0),MATCH(Parts!$B60,INDIRECT(\"'\"&A60&\"'!$10:$10\"),0)),0)","v":0},null,"Basket TCW40SDD  292.9427.38",{"$f":"IFERROR(INDEX(INDIRECT(\"'\"&A60&\"'!$18:$50\"),MATCH($AS$1,INDIRECT(\"'\"&A60&\"'!$A$18:$A$50\"),0),MATCH(Parts!$B60,INDIRECT(\"'\"&A60&\"'!$10:$10\"),0)),0)","v":1},19.21,null,{"$f":"IFERROR(INDEX(INDIRECT(\"'\"&A60&\"'!$18:$50\"),MATCH($AV$1,INDIRECT(\"'\"&A60&\"'!$A$18:$A$50\"),0),MATCH(Parts!$B60,INDIRECT(\"'\"&A60&\"'!$10:$10\"),0)),0)","v":0},null,null,{"$f":"IFERROR(INDEX(INDIRECT(\"'\"&A60&\"'!$18:$50\"),MATCH($AY$1,INDIRECT(\"'\"&A60&\"'!$A$18:$A$50\"),0),MATCH(Parts!$B60,INDIRECT(\"'\"&A60&\"'!$10:$10\"),0)),0)","v":0},null,null,{"$f":"IFERROR(INDEX(INDIRECT(\"'\"&A60&\"'!$18:$50\"),MATCH($BB$1,INDIRECT(\"'\"&A60&\"'!$A$18:$A$50\"),0),MATCH(Parts!$B60,INDIRECT(\"'\"&A60&\"'!$10:$10\"),0)),0)","v":0},null,null,{"$f":"IFERROR(INDEX(INDIRECT(\"'\"&A60&\"'!$18:$50\"),MATCH($BE$1,INDIRECT(\"'\"&A60&\"'!$A$18:$A$50\"),0),MATCH(Parts!$B60,INDIRECT(\"'\"&A60&\"'!$10:$10\"),0)),0)","v":0},null,"Drier   296.0945.04",{"$f":"IFERROR(INDEX(INDIRECT(\"'\"&A60&\"'!$18:$50\"),MATCH($BH$1,INDIRECT(\"'\"&A60&\"'!$A$18:$A$50\"),0),MATCH(Parts!$B60,INDIRECT(\"'\"&A60&\"'!$10:$10\"),0)),0)","v":1},2.0699999999999998,"Fuse 15A  296.9243.15",{"$f":"IFERROR(INDEX(INDIRECT(\"'\"&A60&\"'!$18:$50\"),MATCH($BK$1,INDIRECT(\"'\"&A60&\"'!$A$18:$A$50\"),0),MATCH(Parts!$B60,INDIRECT(\"'\"&A60&\"'!$10:$10\"),0)),0)","v":1},0.19,null,{"$f":"IFERROR(INDEX(INDIRECT(\"'\"&A60&\"'!$18:$50\"),MATCH($BN$1,INDIRECT(\"'\"&A60&\"'!$A$18:$A$50\"),0),MATCH(Parts!$B60,INDIRECT(\"'\"&A60&\"'!$10:$10\"),0)),0)","v":0},null,"Outer Hinge  292.8503.30",{"$f":"IFERROR(INDEX(INDIRECT(\"'\"&A60&\"'!$18:$50\"),MATCH($BQ$1,INDIRECT(\"'\"&A60&\"'!$A$18:$A$50\"),0),MATCH(Parts!$B60,INDIRECT(\"'\"&A60&\"'!$10:$10\"),0)),0)","v":1},7.76,"Cover Hinge  296.4018.00",{"$f":"IFERROR(INDEX(INDIRECT(\"'\"&A60&\"'!$18:$50\"),MATCH($BT$1,INDIRECT(\"'\"&A60&\"'!$A$18:$A$50\"),0),MATCH(Parts!$B60,INDIRECT(\"'\"&A60&\"'!$10:$10\"),0)),0)","v":1},0.73,null,{"$f":"IFERROR(INDEX(INDIRECT(\"'\"&A60&\"'!$18:$50\"),MATCH($BW$1,INDIRECT(\"'\"&A60&\"'!$A$18:$A$50\"),0),MATCH(Parts!$B60,INDIRECT(\"'\"&A60&\"'!$10:$10\"),0)),0)","v":0},null,null,{"$f":"IFERROR(INDEX(INDIRECT(\"'\"&A60&\"'!$18:$50\"),MATCH($BZ$1,INDIRECT(\"'\"&A60&\"'!$A$18:$A$50\"),0),MATCH(Parts!$B60,INDIRECT(\"'\"&A60&\"'!$10:$10\"),0)),0)","v":0},null,"Ice Pack TCW40SDD   292.8580.19",{"$f":"IFERROR(INDEX(INDIRECT(\"'\"&A60&\"'!$18:$50\"),MATCH($CC$1,INDIRECT(\"'\"&A60&\"'!$A$18:$A$50\"),0),MATCH(Parts!$B60,INDIRECT(\"'\"&A60&\"'!$10:$10\"),0)),0)","v":1},19.21,null,{"$f":"IFERROR(INDEX(INDIRECT(\"'\"&A60&\"'!$18:$50\"),MATCH($CF$1,INDIRECT(\"'\"&A60&\"'!$A$18:$A$50\"),0),MATCH(Parts!$B60,INDIRECT(\"'\"&A60&\"'!$10:$10\"),0)),0)","v":0},null,null,{"$f":"IFERROR(INDEX(INDIRECT(\"'\"&A60&\"'!$18:$50\"),MATCH($CI$1,INDIRECT(\"'\"&A60&\"'!$A$18:$A$50\"),0),MATCH(Parts!$B60,INDIRECT(\"'\"&A60&\"'!$10:$10\"),0)),0)","v":0},null,null,{"$f":"IFERROR(INDEX(INDIRECT(\"'\"&A60&\"'!$18:$50\"),MATCH($CL$1,INDIRECT(\"'\"&A60&\"'!$A$18:$A$50\"),0),MATCH(Parts!$B60,INDIRECT(\"'\"&A60&\"'!$10:$10\"),0)),0)","v":0},null,"Heater  292.8580.19",{"$f":"IFERROR(INDEX(INDIRECT(\"'\"&A60&\"'!$18:$50\"),MATCH($CO$1,INDIRECT(\"'\"&A60&\"'!$A$18:$A$50\"),0),MATCH(Parts!$B60,INDIRECT(\"'\"&A60&\"'!$10:$10\"),0)),0)","v":1},16.52,null,{"$f":"IFERROR(INDEX(INDIRECT(\"'\"&A60&\"'!$18:$50\"),MATCH($CR$1,INDIRECT(\"'\"&A60&\"'!$A$18:$A$50\"),0),MATCH(Parts!$B60,INDIRECT(\"'\"&A60&\"'!$10:$10\"),0)),0)","v":0},null,null,{"$f":"IFERROR(INDEX(INDIRECT(\"'\"&A60&\"'!$18:$50\"),MATCH($CU$1,INDIRECT(\"'\"&A60&\"'!$A$18:$A$50\"),0),MATCH(Parts!$B60,INDIRECT(\"'\"&A60&\"'!$10:$10\"),0)),0)","v":0},null,null,{"$f":"IFERROR(INDEX(INDIRECT(\"'\"&A60&\"'!$18:$50\"),MATCH($CX$1,INDIRECT(\"'\"&A60&\"'!$A$18:$A$50\"),0),MATCH(Parts!$B60,INDIRECT(\"'\"&A60&\"'!$10:$10\"),0)),0)","v":0},null,null,{"$f":"IFERROR(INDEX(INDIRECT(\"'\"&A60&\"'!$18:$50\"),MATCH($DA$1,INDIRECT(\"'\"&A60&\"'!$A$18:$A$50\"),0),MATCH(Parts!$B60,INDIRECT(\"'\"&A60&\"'!$10:$10\"),0)),0)","v":0},null,null,{"$f":"IFERROR(INDEX(INDIRECT(\"'\"&A60&\"'!$18:$50\"),MATCH($DD$1,INDIRECT(\"'\"&A60&\"'!$A$18:$A$50\"),0),MATCH(Parts!$B60,INDIRECT(\"'\"&A60&\"'!$10:$10\"),0)),0)","v":0},null,null,{"$f":"IFERROR(INDEX(INDIRECT(\"'\"&A60&\"'!$18:$50\"),MATCH($DG$1,INDIRECT(\"'\"&A60&\"'!$A$18:$A$50\"),0),MATCH(Parts!$B60,INDIRECT(\"'\"&A60&\"'!$10:$10\"),0)),0)","v":0},null,null,{"$f":"IFERROR(INDEX(INDIRECT(\"'\"&A60&\"'!$18:$50\"),MATCH($DJ$1,INDIRECT(\"'\"&A60&\"'!$A$18:$A$50\"),0),MATCH(Parts!$B60,INDIRECT(\"'\"&A60&\"'!$10:$10\"),0)),0)","v":0},null,null,{"$f":"IFERROR(INDEX(INDIRECT(\"'\"&A60&\"'!$18:$50\"),MATCH($DM$1,INDIRECT(\"'\"&A60&\"'!$A$18:$A$50\"),0),MATCH(Parts!$B60,INDIRECT(\"'\"&A60&\"'!$10:$10\"),0)),0)","v":0},null,null,{"$f":"IFERROR(INDEX(INDIRECT(\"'\"&A60&\"'!$18:$50\"),MATCH($DP$1,INDIRECT(\"'\"&A60&\"'!$A$18:$A$50\"),0),MATCH(Parts!$B60,INDIRECT(\"'\"&A60&\"'!$10:$10\"),0)),0)","v":0},null,null,{"$f":"IFERROR(INDEX(INDIRECT(\"'\"&A60&\"'!$18:$50\"),MATCH($DS$1,INDIRECT(\"'\"&A60&\"'!$A$18:$A$50\"),0),MATCH(Parts!$B60,INDIRECT(\"'\"&A60&\"'!$10:$10\"),0)),0)","v":0},null,"Sensor cooler: 296.9804.73: 28 €",{"$f":"IFERROR(INDEX(INDIRECT(\"'\"&A60&\"'!$18:$50\"),MATCH($DV$1,INDIRECT(\"'\"&A60&\"'!$A$18:$A$50\"),0),MATCH(Parts!$B60,INDIRECT(\"'\"&A60&\"'!$10:$10\"),0)),0)","v":1},28,"Sensor heater: 296.9804.72: 17.55 €",{"$f":"IFERROR(INDEX(INDIRECT(\"'\"&A60&\"'!$18:$50\"),MATCH($DY$1,INDIRECT(\"'\"&A60&\"'!$A$18:$A$50\"),0),MATCH(Parts!$B60,INDIRECT(\"'\"&A60&\"'!$10:$10\"),0)),0)","v":1},17.55,null,{"$f":"IFERROR(INDEX(INDIRECT(\"'\"&A60&\"'!$18:$50\"),MATCH($EB$1,INDIRECT(\"'\"&A60&\"'!$A$18:$A$50\"),0),MATCH(Parts!$B60,INDIRECT(\"'\"&A60&\"'!$10:$10\"),0)),0)","v":0},null,"Display board: 296.9769.81: 25.46 €",{"$f":"IFERROR(INDEX(INDIRECT(\"'\"&A60&\"'!$18:$50\"),MATCH($EE$1,INDIRECT(\"'\"&A60&\"'!$A$18:$A$50\"),0),MATCH(Parts!$B60,INDIRECT(\"'\"&A60&\"'!$10:$10\"),0)),0)","v":1},25.46,null,{"$f":"IFERROR(INDEX(INDIRECT(\"'\"&A60&\"'!$18:$50\"),MATCH($EH$1,INDIRECT(\"'\"&A60&\"'!$A$18:$A$50\"),0),MATCH(Parts!$B60,INDIRECT(\"'\"&A60&\"'!$10:$10\"),0)),0)","v":0},null,null,{"$f":"IFERROR(INDEX(INDIRECT(\"'\"&A60&\"'!$18:$50\"),MATCH($EK$1,INDIRECT(\"'\"&A60&\"'!$A$18:$A$50\"),0),MATCH(Parts!$B60,INDIRECT(\"'\"&A60&\"'!$10:$10\"),0)),0)","v":0}]
[{"$f":"PQS!A63","v":"SDD"},{"$f":"PQS!B63","v":"E003/043"},{"$f":"PQS!E63","v":"TCW 2043 SDD*"},{"$f":"PQS!P63","v":"€"},546.71,"Compressor: 296.9702.09",{"$f":"IFERROR(INDEX(INDIRECT(\"'\"&A61&\"'!$18:$50\"),MATCH(Parts!F$1,INDIRECT(\"'\"&A61&\"'!$A$18:$A$50\"),0),MATCH(Parts!$B61,INDIRECT(\"'\"&A61&\"'!$10:$10\"),0)),0)","v":1},84.42,"Electronic thermostat: 292.2009.05",{"$f":"IFERROR(INDEX(INDIRECT(\"'\"&A61&\"'!$18:$50\"),MATCH($I$1,INDIRECT(\"'\"&A61&\"'!$A$18:$A$50\"),0),MATCH(Parts!$B61,INDIRECT(\"'\"&A61&\"'!$10:$10\"),0)),0)","v":1},81.75,null,{"$f":"IFERROR(INDEX(INDIRECT(\"'\"&A61&\"'!$18:$50\"),MATCH($L$1,INDIRECT(\"'\"&A61&\"'!$A$18:$A$50\"),0),MATCH(Parts!$B61,INDIRECT(\"'\"&A61&\"'!$10:$10\"),0)),0)","v":0},null,null,{"$f":"IFERROR(INDEX(INDIRECT(\"'\"&A61&\"'!$18:$50\"),MATCH($O$1,INDIRECT(\"'\"&A61&\"'!$A$18:$A$50\"),0),MATCH(Parts!$B61,INDIRECT(\"'\"&A61&\"'!$10:$10\"),0)),0)","v":0},null,"Electronic control panel: 296.3602.82",{"$f":"IFERROR(INDEX(INDIRECT(\"'\"&A61&\"'!$18:$50\"),MATCH($R$1,INDIRECT(\"'\"&A61&\"'!$A$18:$A$50\"),0),MATCH(Parts!$B61,INDIRECT(\"'\"&A61&\"'!$10:$10\"),0)),0)","v":1},11.1,"Sensor for e-thermostat 296.9804.20",{"$f":"IFERROR(INDEX(INDIRECT(\"'\"&A61&\"'!$18:$50\"),MATCH($U$1,INDIRECT(\"'\"&A61&\"'!$A$18:$A$50\"),0),MATCH(Parts!$B61,INDIRECT(\"'\"&A61&\"'!$10:$10\"),0)),0)","v":1},6.15,"Fan compressor; 292.9960.06",{"$f":"IFERROR(INDEX(INDIRECT(\"'\"&A61&\"'!$18:$50\"),MATCH($X$1,INDIRECT(\"'\"&A61&\"'!$A$18:$A$50\"),0),MATCH(Parts!$B61,INDIRECT(\"'\"&A61&\"'!$10:$10\"),0)),0)","v":1},50.92,null,{"$f":"IFERROR(INDEX(INDIRECT(\"'\"&A61&\"'!$18:$50\"),MATCH($AA$1,INDIRECT(\"'\"&A61&\"'!$A$18:$A$50\"),0),MATCH(Parts!$B61,INDIRECT(\"'\"&A61&\"'!$10:$10\"),0)),0)","v":0},null,null,{"$f":"IFERROR(INDEX(INDIRECT(\"'\"&A61&\"'!$18:$50\"),MATCH($AD$1,INDIRECT(\"'\"&A61&\"'!$A$18:$A$50\"),0),MATCH(Parts!$B61,INDIRECT(\"'\"&A61&\"'!$10:$10\"),0)),0)","v":0},null,null,{"$f":"IFERROR(INDEX(INDIRECT(\"'\"&A61&\"'!$18:$50\"),MATCH($AG$1,INDIRECT(\"'\"&A61&\"'!$A$18:$A$50\"),0),MATCH(Parts!$B61,INDIRECT(\"'\"&A61&\"'!$10:$10\"),0)),0)","v":0},null,"E Box: 296.9705.24",{"$f":"IFERROR(INDEX(INDIRECT(\"'\"&A61&\"'!$18:$50\"),MATCH($AJ$1,INDIRECT(\"'\"&A61&\"'!$A$18:$A$50\"),0),MATCH(Parts!$B61,INDIRECT(\"'\"&A61&\"'!$10:$10\"),0)),0)","v":1},128.79,"Main switch: 292.2044.18",{"$f":"IFERROR(INDEX(INDIRECT(\"'\"&A61&\"'!$18:$50\"),MATCH($AM$1,INDIRECT(\"'\"&A61&\"'!$A$18:$A$50\"),0),MATCH(Parts!$B61,INDIRECT(\"'\"&A61&\"'!$10:$10\"),0)),0)","v":1},5.89,null,{"$f":"IFERROR(INDEX(INDIRECT(\"'\"&A61&\"'!$18:$50\"),MATCH($AP$1,INDIRECT(\"'\"&A61&\"'!$A$18:$A$50\"),0),MATCH(Parts!$B61,INDIRECT(\"'\"&A61&\"'!$10:$10\"),0)),0)","v":0},null,"Basket TCW2043SDD   292.9427.43",{"$f":"IFERROR(INDEX(INDIRECT(\"'\"&A61&\"'!$18:$50\"),MATCH($AS$1,INDIRECT(\"'\"&A61&\"'!$A$18:$A$50\"),0),MATCH(Parts!$B61,INDIRECT(\"'\"&A61&\"'!$10:$10\"),0)),0)","v":1},13.87,null,{"$f":"IFERROR(INDEX(INDIRECT(\"'\"&A61&\"'!$18:$50\"),MATCH($AV$1,INDIRECT(\"'\"&A61&\"'!$A$18:$A$50\"),0),MATCH(Parts!$B61,INDIRECT(\"'\"&A61&\"'!$10:$10\"),0)),0)","v":0},null,null,{"$f":"IFERROR(INDEX(INDIRECT(\"'\"&A61&\"'!$18:$50\"),MATCH($AY$1,INDIRECT(\"'\"&A61&\"'!$A$18:$A$50\"),0),MATCH(Parts!$B61,INDIRECT(\"'\"&A61&\"'!$10:$10\"),0)),0)","v":0},null,null,{"$f":"IFERROR(INDEX(INDIRECT(\"'\"&A61&\"'!$18:$50\"),MATCH($BB$1,INDIRECT(\"'\"&A61&\"'!$A$18:$A$50\"),0),MATCH(Parts!$B61,INDIRECT(\"'\"&A61&\"'!$10:$10\"),0)),0)","v":0},null,null,{"$f":"IFERROR(INDEX(INDIRECT(\"'\"&A61&\"'!$18:$50\"),MATCH($BE$1,INDIRECT(\"'\"&A61&\"'!$A$18:$A$50\"),0),MATCH(Parts!$B61,INDIRECT(\"'\"&A61&\"'!$10:$10\"),0)),0)","v":0},null,"Drier 13,5G R134A MS2V-5  294.1853.02",{"$f":"IFERROR(INDEX(INDIRECT(\"'\"&A61&\"'!$18:$50\"),MATCH($BH$1,INDIRECT(\"'\"&A61&\"'!$A$18:$A$50\"),0),MATCH(Parts!$B61,INDIRECT(\"'\"&A61&\"'!$10:$10\"),0)),0)","v":1},2.0699999999999998,"Fuse 15A  296.9243.15",{"$f":"IFERROR(INDEX(INDIRECT(\"'\"&A61&\"'!$18:$50\"),MATCH($BK$1,INDIRECT(\"'\"&A61&\"'!$A$18:$A$50\"),0),MATCH(Parts!$B61,INDIRECT(\"'\"&A61&\"'!$10:$10\"),0)),0)","v":1},0.19,null,{"$f":"IFERROR(INDEX(INDIRECT(\"'\"&A61&\"'!$18:$50\"),MATCH($BN$1,INDIRECT(\"'\"&A61&\"'!$A$18:$A$50\"),0),MATCH(Parts!$B61,INDIRECT(\"'\"&A61&\"'!$10:$10\"),0)),0)","v":0},null,"Outer Hinge  292.8503.30 - 7.76\nInner Hinge 292.8503.31 - 8.41",{"$f":"IFERROR(INDEX(INDIRECT(\"'\"&A61&\"'!$18:$50\"),MATCH($BQ$1,INDIRECT(\"'\"&A61&\"'!$A$18:$A$50\"),0),MATCH(Parts!$B61,INDIRECT(\"'\"&A61&\"'!$10:$10\"),0)),0)","v":2},{"$f":"AVERAGE(7.76,8.41)","v":8.0850000000000009},"Cover Hinge  296.4018.00",{"$f":"IFERROR(INDEX(INDIRECT(\"'\"&A61&\"'!$18:$50\"),MATCH($BT$1,INDIRECT(\"'\"&A61&\"'!$A$18:$A$50\"),0),MATCH(Parts!$B61,INDIRECT(\"'\"&A61&\"'!$10:$10\"),0)),0)","v":1},0.73,null,{"$f":"IFERROR(INDEX(INDIRECT(\"'\"&A61&\"'!$18:$50\"),MATCH($BW$1,INDIRECT(\"'\"&A61&\"'!$A$18:$A$50\"),0),MATCH(Parts!$B61,INDIRECT(\"'\"&A61&\"'!$10:$10\"),0)),0)","v":0},null,null,{"$f":"IFERROR(INDEX(INDIRECT(\"'\"&A61&\"'!$18:$50\"),MATCH($BZ$1,INDIRECT(\"'\"&A61&\"'!$A$18:$A$50\"),0),MATCH(Parts!$B61,INDIRECT(\"'\"&A61&\"'!$10:$10\"),0)),0)","v":0},null,"Ice Pack TCW Solar  292.8580.09",{"$f":"IFERROR(INDEX(INDIRECT(\"'\"&A61&\"'!$18:$50\"),MATCH($CC$1,INDIRECT(\"'\"&A61&\"'!$A$18:$A$50\"),0),MATCH(Parts!$B61,INDIRECT(\"'\"&A61&\"'!$10:$10\"),0)),0)","v":1},66.69,null,{"$f":"IFERROR(INDEX(INDIRECT(\"'\"&A61&\"'!$18:$50\"),MATCH($CF$1,INDIRECT(\"'\"&A61&\"'!$A$18:$A$50\"),0),MATCH(Parts!$B61,INDIRECT(\"'\"&A61&\"'!$10:$10\"),0)),0)","v":0},null,null,{"$f":"IFERROR(INDEX(INDIRECT(\"'\"&A61&\"'!$18:$50\"),MATCH($CI$1,INDIRECT(\"'\"&A61&\"'!$A$18:$A$50\"),0),MATCH(Parts!$B61,INDIRECT(\"'\"&A61&\"'!$10:$10\"),0)),0)","v":0},null,null,{"$f":"IFERROR(INDEX(INDIRECT(\"'\"&A61&\"'!$18:$50\"),MATCH($CL$1,INDIRECT(\"'\"&A61&\"'!$A$18:$A$50\"),0),MATCH(Parts!$B61,INDIRECT(\"'\"&A61&\"'!$10:$10\"),0)),0)","v":0},null,null,{"$f":"IFERROR(INDEX(INDIRECT(\"'\"&A61&\"'!$18:$50\"),MATCH($CO$1,INDIRECT(\"'\"&A61&\"'!$A$18:$A$50\"),0),MATCH(Parts!$B61,INDIRECT(\"'\"&A61&\"'!$10:$10\"),0)),0)","v":0},null,null,{"$f":"IFERROR(INDEX(INDIRECT(\"'\"&A61&\"'!$18:$50\"),MATCH($CR$1,INDIRECT(\"'\"&A61&\"'!$A$18:$A$50\"),0),MATCH(Parts!$B61,INDIRECT(\"'\"&A61&\"'!$10:$10\"),0)),0)","v":0},null,null,{"$f":"IFERROR(INDEX(INDIRECT(\"'\"&A61&\"'!$18:$50\"),MATCH($CU$1,INDIRECT(\"'\"&A61&\"'!$A$18:$A$50\"),0),MATCH(Parts!$B61,INDIRECT(\"'\"&A61&\"'!$10:$10\"),0)),0)","v":0},null,null,{"$f":"IFERROR(INDEX(INDIRECT(\"'\"&A61&\"'!$18:$50\"),MATCH($CX$1,INDIRECT(\"'\"&A61&\"'!$A$18:$A$50\"),0),MATCH(Parts!$B61,INDIRECT(\"'\"&A61&\"'!$10:$10\"),0)),0)","v":0},null,null,{"$f":"IFERROR(INDEX(INDIRECT(\"'\"&A61&\"'!$18:$50\"),MATCH($DA$1,INDIRECT(\"'\"&A61&\"'!$A$18:$A$50\"),0),MATCH(Parts!$B61,INDIRECT(\"'\"&A61&\"'!$10:$10\"),0)),0)","v":0},null,null,{"$f":"IFERROR(INDEX(INDIRECT(\"'\"&A61&\"'!$18:$50\"),MATCH($DD$1,INDIRECT(\"'\"&A61&\"'!$A$18:$A$50\"),0),MATCH(Parts!$B61,INDIRECT(\"'\"&A61&\"'!$10:$10\"),0)),0)","v":0},null,null,{"$f":"IFERROR(INDEX(INDIRECT(\"'\"&A61&\"'!$18:$50\"),MATCH($DG$1,INDIRECT(\"'\"&A61&\"'!$A$18:$A$50\"),0),MATCH(Parts!$B61,INDIRECT(\"'\"&A61&\"'!$10:$10\"),0)),0)","v":0},null,null,{"$f":"IFERROR(INDEX(INDIRECT(\"'\"&A61&\"'!$18:$50\"),MATCH($DJ$1,INDIRECT(\"'\"&A61&\"'!$A$18:$A$50\"),0),MATCH(Parts!$B61,INDIRECT(\"'\"&A61&\"'!$10:$10\"),0)),0)","v":0},null,null,{"$f":"IFERROR(INDEX(INDIRECT(\"'\"&A61&\"'!$18:$50\"),MATCH($DM$1,INDIRECT(\"'\"&A61&\"'!$A$18:$A$50\"),0),MATCH(Parts!$B61,INDIRECT(\"'\"&A61&\"'!$10:$10\"),0)),0)","v":0},null,null,{"$f":"IFERROR(INDEX(INDIRECT(\"'\"&A61&\"'!$18:$50\"),MATCH($DP$1,INDIRECT(\"'\"&A61&\"'!$A$18:$A$50\"),0),MATCH(Parts!$B61,INDIRECT(\"'\"&A61&\"'!$10:$10\"),0)),0)","v":0},null,"SDD Controller  296.9769.77",{"$f":"IFERROR(INDEX(INDIRECT(\"'\"&A61&\"'!$18:$50\"),MATCH($DS$1,INDIRECT(\"'\"&A61&\"'!$A$18:$A$50\"),0),MATCH(Parts!$B61,INDIRECT(\"'\"&A61&\"'!$10:$10\"),0)),0)","v":1},77.97,null,{"$f":"IFERROR(INDEX(INDIRECT(\"'\"&A61&\"'!$18:$50\"),MATCH($DV$1,INDIRECT(\"'\"&A61&\"'!$A$18:$A$50\"),0),MATCH(Parts!$B61,INDIRECT(\"'\"&A61&\"'!$10:$10\"),0)),0)","v":0},null,null,{"$f":"IFERROR(INDEX(INDIRECT(\"'\"&A61&\"'!$18:$50\"),MATCH($DY$1,INDIRECT(\"'\"&A61&\"'!$A$18:$A$50\"),0),MATCH(Parts!$B61,INDIRECT(\"'\"&A61&\"'!$10:$10\"),0)),0)","v":0},null,null,{"$f":"IFERROR(INDEX(INDIRECT(\"'\"&A61&\"'!$18:$50\"),MATCH($EB$1,INDIRECT(\"'\"&A61&\"'!$A$18:$A$50\"),0),MATCH(Parts!$B61,INDIRECT(\"'\"&A61&\"'!$10:$10\"),0)),0)","v":0},null,null,{"$f":"IFERROR(INDEX(INDIRECT(\"'\"&A61&\"'!$18:$50\"),MATCH($EE$1,INDIRECT(\"'\"&A61&\"'!$A$18:$A$50\"),0),MATCH(Parts!$B61,INDIRECT(\"'\"&A61&\"'!$10:$10\"),0)),0)","v":0},null,null,{"$f":"IFERROR(INDEX(INDIRECT(\"'\"&A61&\"'!$18:$50\"),MATCH($EH$1,INDIRECT(\"'\"&A61&\"'!$A$18:$A$50\"),0),MATCH(Parts!$B61,INDIRECT(\"'\"&A61&\"'!$10:$10\"),0)),0)","v":0},null,null,{"$f":"IFERROR(INDEX(INDIRECT(\"'\"&A61&\"'!$18:$50\"),MATCH($EK$1,INDIRECT(\"'\"&A61&\"'!$A$18:$A$50\"),0),MATCH(Parts!$B61,INDIRECT(\"'\"&A61&\"'!$10:$10\"),0)),0)","v":0}]
[{"$f":"PQS!A64","v":"SDD"},{"$f":"PQS!B64","v":"E003/045"},{"$f":"PQS!E64","v":"TCW 3043 SDD*"},{"$f":"PQS!P64","v":"€"},616.3900000000001,"Compressor: 296.9702.09",{"$f":"IFERROR(INDEX(INDIRECT(\"'\"&A62&\"'!$18:$50\"),MATCH(Parts!F$1,INDIRECT(\"'\"&A62&\"'!$A$18:$A$50\"),0),MATCH(Parts!$B62,INDIRECT(\"'\"&A62&\"'!$10:$10\"),0)),0)","v":1},120.63,"Electronic thermostat: 292.2009.05",{"$f":"IFERROR(INDEX(INDIRECT(\"'\"&A62&\"'!$18:$50\"),MATCH($I$1,INDIRECT(\"'\"&A62&\"'!$A$18:$A$50\"),0),MATCH(Parts!$B62,INDIRECT(\"'\"&A62&\"'!$10:$10\"),0)),0)","v":1},116.8,null,{"$f":"IFERROR(INDEX(INDIRECT(\"'\"&A62&\"'!$18:$50\"),MATCH($L$1,INDIRECT(\"'\"&A62&\"'!$A$18:$A$50\"),0),MATCH(Parts!$B62,INDIRECT(\"'\"&A62&\"'!$10:$10\"),0)),0)","v":0},null,null,{"$f":"IFERROR(INDEX(INDIRECT(\"'\"&A62&\"'!$18:$50\"),MATCH($O$1,INDIRECT(\"'\"&A62&\"'!$A$18:$A$50\"),0),MATCH(Parts!$B62,INDIRECT(\"'\"&A62&\"'!$10:$10\"),0)),0)","v":0},null,"Electronic control panel: 296.3602.83",{"$f":"IFERROR(INDEX(INDIRECT(\"'\"&A62&\"'!$18:$50\"),MATCH($R$1,INDIRECT(\"'\"&A62&\"'!$A$18:$A$50\"),0),MATCH(Parts!$B62,INDIRECT(\"'\"&A62&\"'!$10:$10\"),0)),0)","v":1},7.47,"Sensor for e-thermostat 296.9804.20",{"$f":"IFERROR(INDEX(INDIRECT(\"'\"&A62&\"'!$18:$50\"),MATCH($U$1,INDIRECT(\"'\"&A62&\"'!$A$18:$A$50\"),0),MATCH(Parts!$B62,INDIRECT(\"'\"&A62&\"'!$10:$10\"),0)),0)","v":1},8.81,"Fan compressor; 292.9960.06",{"$f":"IFERROR(INDEX(INDIRECT(\"'\"&A62&\"'!$18:$50\"),MATCH($X$1,INDIRECT(\"'\"&A62&\"'!$A$18:$A$50\"),0),MATCH(Parts!$B62,INDIRECT(\"'\"&A62&\"'!$10:$10\"),0)),0)","v":1},72.760000000000005,null,{"$f":"IFERROR(INDEX(INDIRECT(\"'\"&A62&\"'!$18:$50\"),MATCH($AA$1,INDIRECT(\"'\"&A62&\"'!$A$18:$A$50\"),0),MATCH(Parts!$B62,INDIRECT(\"'\"&A62&\"'!$10:$10\"),0)),0)","v":0},null,null,{"$f":"IFERROR(INDEX(INDIRECT(\"'\"&A62&\"'!$18:$50\"),MATCH($AD$1,INDIRECT(\"'\"&A62&\"'!$A$18:$A$50\"),0),MATCH(Parts!$B62,INDIRECT(\"'\"&A62&\"'!$10:$10\"),0)),0)","v":0},null,null,{"$f":"IFERROR(INDEX(INDIRECT(\"'\"&A62&\"'!$18:$50\"),MATCH($AG$1,INDIRECT(\"'\"&A62&\"'!$A$18:$A$50\"),0),MATCH(Parts!$B62,INDIRECT(\"'\"&A62&\"'!$10:$10\"),0)),0)","v":0},null,"E Box: 296.9705.24",{"$f":"IFERROR(INDEX(INDIRECT(\"'\"&A62&\"'!$18:$50\"),MATCH($AJ$1,INDIRECT(\"'\"&A62&\"'!$A$18:$A$50\"),0),MATCH(Parts!$B62,INDIRECT(\"'\"&A62&\"'!$10:$10\"),0)),0)","v":1},128.79,"Main switch: 292.2044.18",{"$f":"IFERROR(INDEX(INDIRECT(\"'\"&A62&\"'!$18:$50\"),MATCH($AM$1,INDIRECT(\"'\"&A62&\"'!$A$18:$A$50\"),0),MATCH(Parts!$B62,INDIRECT(\"'\"&A62&\"'!$10:$10\"),0)),0)","v":1},8.42,null,{"$f":"IFERROR(INDEX(INDIRECT(\"'\"&A62&\"'!$18:$50\"),MATCH($AP$1,INDIRECT(\"'\"&A62&\"'!$A$18:$A$50\"),0),MATCH(Parts!$B62,INDIRECT(\"'\"&A62&\"'!$10:$10\"),0)),0)","v":0},null,"Basket TCW3043SDD   292.9427.41",{"$f":"IFERROR(INDEX(INDIRECT(\"'\"&A62&\"'!$18:$50\"),MATCH($AS$1,INDIRECT(\"'\"&A62&\"'!$A$18:$A$50\"),0),MATCH(Parts!$B62,INDIRECT(\"'\"&A62&\"'!$10:$10\"),0)),0)","v":1},10.99,null,{"$f":"IFERROR(INDEX(INDIRECT(\"'\"&A62&\"'!$18:$50\"),MATCH($AV$1,INDIRECT(\"'\"&A62&\"'!$A$18:$A$50\"),0),MATCH(Parts!$B62,INDIRECT(\"'\"&A62&\"'!$10:$10\"),0)),0)","v":0},null,null,{"$f":"IFERROR(INDEX(INDIRECT(\"'\"&A62&\"'!$18:$50\"),MATCH($AY$1,INDIRECT(\"'\"&A62&\"'!$A$18:$A$50\"),0),MATCH(Parts!$B62,INDIRECT(\"'\"&A62&\"'!$10:$10\"),0)),0)","v":0},null,null,{"$f":"IFERROR(INDEX(INDIRECT(\"'\"&A62&\"'!$18:$50\"),MATCH($BB$1,INDIRECT(\"'\"&A62&\"'!$A$18:$A$50\"),0),MATCH(Parts!$B62,INDIRECT(\"'\"&A62&\"'!$10:$10\"),0)),0)","v":0},null,null,{"$f":"IFERROR(INDEX(INDIRECT(\"'\"&A62&\"'!$18:$50\"),MATCH($BE$1,INDIRECT(\"'\"&A62&\"'!$A$18:$A$50\"),0),MATCH(Parts!$B62,INDIRECT(\"'\"&A62&\"'!$10:$10\"),0)),0)","v":0},null,"Drier 13,5G R134A MS2V-5  294.1853.02",{"$f":"IFERROR(INDEX(INDIRECT(\"'\"&A62&\"'!$18:$50\"),MATCH($BH$1,INDIRECT(\"'\"&A62&\"'!$A$18:$A$50\"),0),MATCH(Parts!$B62,INDIRECT(\"'\"&A62&\"'!$10:$10\"),0)),0)","v":1},2.0699999999999998,"Fuse 15A  296.9243.15",{"$f":"IFERROR(INDEX(INDIRECT(\"'\"&A62&\"'!$18:$50\"),MATCH($BK$1,INDIRECT(\"'\"&A62&\"'!$A$18:$A$50\"),0),MATCH(Parts!$B62,INDIRECT(\"'\"&A62&\"'!$10:$10\"),0)),0)","v":1},0.19,null,{"$f":"IFERROR(INDEX(INDIRECT(\"'\"&A62&\"'!$18:$50\"),MATCH($BN$1,INDIRECT(\"'\"&A62&\"'!$A$18:$A$50\"),0),MATCH(Parts!$B62,INDIRECT(\"'\"&A62&\"'!$10:$10\"),0)),0)","v":0},null,"Outer Hinge  292.8503.30 - 7.76\nInner Hinge 292.8503.31 - 8.42",{"$f":"IFERROR(INDEX(INDIRECT(\"'\"&A62&\"'!$18:$50\"),MATCH($BQ$1,INDIRECT(\"'\"&A62&\"'!$A$18:$A$50\"),0),MATCH(Parts!$B62,INDIRECT(\"'\"&A62&\"'!$10:$10\"),0)),0)","v":2},{"$f":"AVERAGE(7.76,8.41)","v":8.0850000000000009},"Cover Hinge  296.4018.00",{"$f":"IFERROR(INDEX(INDIRECT(\"'\"&A62&\"'!$18:$50\"),MATCH($BT$1,INDIRECT(\"'\"&A62&\"'!$A$18:$A$50\"),0),MATCH(Parts!$B62,INDIRECT(\"'\"&A62&\"'!$10:$10\"),0)),0)","v":1},0.73,null,{"$f":"IFERROR(INDEX(INDIRECT(\"'\"&A62&\"'!$18:$50\"),MATCH($BW$1,INDIRECT(\"'\"&A62&\"'!$A$18:$A$50\"),0),MATCH(Parts!$B62,INDIRECT(\"'\"&A62&\"'!$10:$10\"),0)),0)","v":0},null,null,{"$f":"IFERROR(INDEX(INDIRECT(\"'\"&A62&\"'!$18:$50\"),MATCH($BZ$1,INDIRECT(\"'\"&A62&\"'!$A$18:$A$50\"),0),MATCH(Parts!$B62,INDIRECT(\"'\"&A62&\"'!$10:$10\"),0)),0)","v":0},null,"Ice Pack TCW3043SDD  292.8580.21",{"$f":"IFERROR(INDEX(INDIRECT(\"'\"&A62&\"'!$18:$50\"),MATCH($CC$1,INDIRECT(\"'\"&A62&\"'!$A$18:$A$50\"),0),MATCH(Parts!$B62,INDIRECT(\"'\"&A62&\"'!$10:$10\"),0)),0)","v":1},44.59,null,{"$f":"IFERROR(INDEX(INDIRECT(\"'\"&A62&\"'!$18:$50\"),MATCH($CF$1,INDIRECT(\"'\"&A62&\"'!$A$18:$A$50\"),0),MATCH(Parts!$B62,INDIRECT(\"'\"&A62&\"'!$10:$10\"),0)),0)","v":0},null,null,{"$f":"IFERROR(INDEX(INDIRECT(\"'\"&A62&\"'!$18:$50\"),MATCH($CI$1,INDIRECT(\"'\"&A62&\"'!$A$18:$A$50\"),0),MATCH(Parts!$B62,INDIRECT(\"'\"&A62&\"'!$10:$10\"),0)),0)","v":0},null,null,{"$f":"IFERROR(INDEX(INDIRECT(\"'\"&A62&\"'!$18:$50\"),MATCH($CL$1,INDIRECT(\"'\"&A62&\"'!$A$18:$A$50\"),0),MATCH(Parts!$B62,INDIRECT(\"'\"&A62&\"'!$10:$10\"),0)),0)","v":0},null,null,{"$f":"IFERROR(INDEX(INDIRECT(\"'\"&A62&\"'!$18:$50\"),MATCH($CO$1,INDIRECT(\"'\"&A62&\"'!$A$18:$A$50\"),0),MATCH(Parts!$B62,INDIRECT(\"'\"&A62&\"'!$10:$10\"),0)),0)","v":0},null,null,{"$f":"IFERROR(INDEX(INDIRECT(\"'\"&A62&\"'!$18:$50\"),MATCH($CR$1,INDIRECT(\"'\"&A62&\"'!$A$18:$A$50\"),0),MATCH(Parts!$B62,INDIRECT(\"'\"&A62&\"'!$10:$10\"),0)),0)","v":0},null,null,{"$f":"IFERROR(INDEX(INDIRECT(\"'\"&A62&\"'!$18:$50\"),MATCH($CU$1,INDIRECT(\"'\"&A62&\"'!$A$18:$A$50\"),0),MATCH(Parts!$B62,INDIRECT(\"'\"&A62&\"'!$10:$10\"),0)),0)","v":0},null,null,{"$f":"IFERROR(INDEX(INDIRECT(\"'\"&A62&\"'!$18:$50\"),MATCH($CX$1,INDIRECT(\"'\"&A62&\"'!$A$18:$A$50\"),0),MATCH(Parts!$B62,INDIRECT(\"'\"&A62&\"'!$10:$10\"),0)),0)","v":0},null,null,{"$f":"IFERROR(INDEX(INDIRECT(\"'\"&A62&\"'!$18:$50\"),MATCH($DA$1,INDIRECT(\"'\"&A62&\"'!$A$18:$A$50\"),0),MATCH(Parts!$B62,INDIRECT(\"'\"&A62&\"'!$10:$10\"),0)),0)","v":0},null,null,{"$f":"IFERROR(INDEX(INDIRECT(\"'\"&A62&\"'!$18:$50\"),MATCH($DD$1,INDIRECT(\"'\"&A62&\"'!$A$18:$A$50\"),0),MATCH(Parts!$B62,INDIRECT(\"'\"&A62&\"'!$10:$10\"),0)),0)","v":0},null,null,{"$f":"IFERROR(INDEX(INDIRECT(\"'\"&A62&\"'!$18:$50\"),MATCH($DG$1,INDIRECT(\"'\"&A62&\"'!$A$18:$A$50\"),0),MATCH(Parts!$B62,INDIRECT(\"'\"&A62&\"'!$10:$10\"),0)),0)","v":0},null,null,{"$f":"IFERROR(INDEX(INDIRECT(\"'\"&A62&\"'!$18:$50\"),MATCH($DJ$1,INDIRECT(\"'\"&A62&\"'!$A$18:$A$50\"),0),MATCH(Parts!$B62,INDIRECT(\"'\"&A62&\"'!$10:$10\"),0)),0)","v":0},null,null,{"$f":"IFERROR(INDEX(INDIRECT(\"'\"&A62&\"'!$18:$50\"),MATCH($DM$1,INDIRECT(\"'\"&A62&\"'!$A$18:$A$50\"),0),MATCH(Parts!$B62,INDIRECT(\"'\"&A62&\"'!$10:$10\"),0)),0)","v":0},null,null,{"$f":"IFERROR(INDEX(INDIRECT(\"'\"&A62&\"'!$18:$50\"),MATCH($DP$1,INDIRECT(\"'\"&A62&\"'!$A$18:$A$50\"),0),MATCH(Parts!$B62,INDIRECT(\"'\"&A62&\"'!$10:$10\"),0)),0)","v":0},null,"SDD Controller  296.9769.77",{"$f":"IFERROR(INDEX(INDIRECT(\"'\"&A62&\"'!$18:$50\"),MATCH($DS$1,INDIRECT(\"'\"&A62&\"'!$A$18:$A$50\"),0),MATCH(Parts!$B62,INDIRECT(\"'\"&A62&\"'!$10:$10\"),0)),0)","v":1},77.97,null,{"$f":"IFERROR(INDEX(INDIRECT(\"'\"&A62&\"'!$18:$50\"),MATCH($DV$1,INDIRECT(\"'\"&A62&\"'!$A$18:$A$50\"),0),MATCH(Parts!$B62,INDIRECT(\"'\"&A62&\"'!$10:$10\"),0)),0)","v":0},null,null,{"$f":"IFERROR(INDEX(INDIRECT(\"'\"&A62&\"'!$18:$50\"),MATCH($DY$1,INDIRECT(\"'\"&A62&\"'!$A$18:$A$50\"),0),MATCH(Parts!$B62,INDIRECT(\"'\"&A62&\"'!$10:$10\"),0)),0)","v":0},null,null,{"$f":"IFERROR(INDEX(INDIRECT(\"'\"&A62&\"'!$18:$50\"),MATCH($EB$1,INDIRECT(\"'\"&A62&\"'!$A$18:$A$50\"),0),MATCH(Parts!$B62,INDIRECT(\"'\"&A62&\"'!$10:$10\"),0)),0)","v":0},null,null,{"$f":"IFERROR(INDEX(INDIRECT(\"'\"&A62&\"'!$18:$50\"),MATCH($EE$1,INDIRECT(\"'\"&A62&\"'!$A$18:$A$50\"),0),MATCH(Parts!$B62,INDIRECT(\"'\"&A62&\"'!$10:$10\"),0)),0)","v":0},null,null,{"$f":"IFERROR(INDEX(INDIRECT(\"'\"&A62&\"'!$18:$50\"),MATCH($EH$1,INDIRECT(\"'\"&A62&\"'!$A$18:$A$50\"),0),MATCH(Parts!$B62,INDIRECT(\"'\"&A62&\"'!$10:$10\"),0)),0)","v":0},null,null,{"$f":"IFERROR(INDEX(INDIRECT(\"'\"&A62&\"'!$18:$50\"),MATCH($EK$1,INDIRECT(\"'\"&A62&\"'!$A$18:$A$50\"),0),MATCH(Parts!$B62,INDIRECT(\"'\"&A62&\"'!$10:$10\"),0)),0)","v":0}]
[{"$f":"PQS!A65","v":"SDD"},{"$f":"PQS!B65","v":"E003/048"},{"$f":"PQS!E65","v":"VC 150 SDD*"},{"$f":"PQS!P65","v":"€"},395,"Compressor Danfoss BD35K: €178.00",{"$f":"IFERROR(INDEX(INDIRECT(\"'\"&A63&\"'!$18:$50\"),MATCH(Parts!F$1,INDIRECT(\"'\"&A63&\"'!$A$18:$A$50\"),0),MATCH(Parts!$B63,INDIRECT(\"'\"&A63&\"'!$10:$10\"),0)),0)","v":0},178,null,{"$f":"IFERROR(INDEX(INDIRECT(\"'\"&A63&\"'!$18:$50\"),MATCH($I$1,INDIRECT(\"'\"&A63&\"'!$A$18:$A$50\"),0),MATCH(Parts!$B63,INDIRECT(\"'\"&A63&\"'!$10:$10\"),0)),0)","v":0},null,"Controller Danfoss 101N0420: €140.00",{"$f":"IFERROR(INDEX(INDIRECT(\"'\"&A63&\"'!$18:$50\"),MATCH($L$1,INDIRECT(\"'\"&A63&\"'!$A$18:$A$50\"),0),MATCH(Parts!$B63,INDIRECT(\"'\"&A63&\"'!$10:$10\"),0)),0)","v":1},140,null,{"$f":"IFERROR(INDEX(INDIRECT(\"'\"&A63&\"'!$18:$50\"),MATCH($O$1,INDIRECT(\"'\"&A63&\"'!$A$18:$A$50\"),0),MATCH(Parts!$B63,INDIRECT(\"'\"&A63&\"'!$10:$10\"),0)),0)","v":0},null,null,{"$f":"IFERROR(INDEX(INDIRECT(\"'\"&A63&\"'!$18:$50\"),MATCH($R$1,INDIRECT(\"'\"&A63&\"'!$A$18:$A$50\"),0),MATCH(Parts!$B63,INDIRECT(\"'\"&A63&\"'!$10:$10\"),0)),0)","v":0},null,null,{"$f":"IFERROR(INDEX(INDIRECT(\"'\"&A63&\"'!$18:$50\"),MATCH($U$1,INDIRECT(\"'\"&A63&\"'!$A$18:$A$50\"),0),MATCH(Parts!$B63,INDIRECT(\"'\"&A63&\"'!$10:$10\"),0)),0)","v":0},null,"Freezer fan: €24.00",{"$f":"IFERROR(INDEX(INDIRECT(\"'\"&A63&\"'!$18:$50\"),MATCH($X$1,INDIRECT(\"'\"&A63&\"'!$A$18:$A$50\"),0),MATCH(Parts!$B63,INDIRECT(\"'\"&A63&\"'!$10:$10\"),0)),0)","v":1},24,null,{"$f":"IFERROR(INDEX(INDIRECT(\"'\"&A63&\"'!$18:$50\"),MATCH($AA$1,INDIRECT(\"'\"&A63&\"'!$A$18:$A$50\"),0),MATCH(Parts!$B63,INDIRECT(\"'\"&A63&\"'!$10:$10\"),0)),0)","v":0},null,null,{"$f":"IFERROR(INDEX(INDIRECT(\"'\"&A63&\"'!$18:$50\"),MATCH($AD$1,INDIRECT(\"'\"&A63&\"'!$A$18:$A$50\"),0),MATCH(Parts!$B63,INDIRECT(\"'\"&A63&\"'!$10:$10\"),0)),0)","v":0},null,null,{"$f":"IFERROR(INDEX(INDIRECT(\"'\"&A63&\"'!$18:$50\"),MATCH($AG$1,INDIRECT(\"'\"&A63&\"'!$A$18:$A$50\"),0),MATCH(Parts!$B63,INDIRECT(\"'\"&A63&\"'!$10:$10\"),0)),0)","v":0},null,null,{"$f":"IFERROR(INDEX(INDIRECT(\"'\"&A63&\"'!$18:$50\"),MATCH($AJ$1,INDIRECT(\"'\"&A63&\"'!$A$18:$A$50\"),0),MATCH(Parts!$B63,INDIRECT(\"'\"&A63&\"'!$10:$10\"),0)),0)","v":0},null,"MCB fridge / isolation switch: €19.05\nMCB freezer (isolation switch): €12.69",{"$f":"IFERROR(INDEX(INDIRECT(\"'\"&A63&\"'!$18:$50\"),MATCH($AM$1,INDIRECT(\"'\"&A63&\"'!$A$18:$A$50\"),0),MATCH(Parts!$B63,INDIRECT(\"'\"&A63&\"'!$10:$10\"),0)),0)","v":0},{"$f":"(19.05+12.69)/2","v":15.870000000000001},null,{"$f":"IFERROR(INDEX(INDIRECT(\"'\"&A63&\"'!$18:$50\"),MATCH($AP$1,INDIRECT(\"'\"&A63&\"'!$A$18:$A$50\"),0),MATCH(Parts!$B63,INDIRECT(\"'\"&A63&\"'!$10:$10\"),0)),0)","v":0},null,null,{"$f":"IFERROR(INDEX(INDIRECT(\"'\"&A63&\"'!$18:$50\"),MATCH($AS$1,INDIRECT(\"'\"&A63&\"'!$A$18:$A$50\"),0),MATCH(Parts!$B63,INDIRECT(\"'\"&A63&\"'!$10:$10\"),0)),0)","v":0},null,null,{"$f":"IFERROR(INDEX(INDIRECT(\"'\"&A63&\"'!$18:$50\"),MATCH($AV$1,INDIRECT(\"'\"&A63&\"'!$A$18:$A$50\"),0),MATCH(Parts!$B63,INDIRECT(\"'\"&A63&\"'!$10:$10\"),0)),0)","v":0},null,null,{"$f":"IFERROR(INDEX(INDIRECT(\"'\"&A63&\"'!$18:$50\"),MATCH($AY$1,INDIRECT(\"'\"&A63&\"'!$A$18:$A$50\"),0),MATCH(Parts!$B63,INDIRECT(\"'\"&A63&\"'!$10:$10\"),0)),0)","v":0},null,null,{"$f":"IFERROR(INDEX(INDIRECT(\"'\"&A63&\"'!$18:$50\"),MATCH($BB$1,INDIRECT(\"'\"&A63&\"'!$A$18:$A$50\"),0),MATCH(Parts!$B63,INDIRECT(\"'\"&A63&\"'!$10:$10\"),0)),0)","v":0},null,null,{"$f":"IFERROR(INDEX(INDIRECT(\"'\"&A63&\"'!$18:$50\"),MATCH($BE$1,INDIRECT(\"'\"&A63&\"'!$A$18:$A$50\"),0),MATCH(Parts!$B63,INDIRECT(\"'\"&A63&\"'!$10:$10\"),0)),0)","v":0},null,null,{"$f":"IFERROR(INDEX(INDIRECT(\"'\"&A63&\"'!$18:$50\"),MATCH($BH$1,INDIRECT(\"'\"&A63&\"'!$A$18:$A$50\"),0),MATCH(Parts!$B63,INDIRECT(\"'\"&A63&\"'!$10:$10\"),0)),0)","v":0},null,null,{"$f":"IFERROR(INDEX(INDIRECT(\"'\"&A63&\"'!$18:$50\"),MATCH($BK$1,INDIRECT(\"'\"&A63&\"'!$A$18:$A$50\"),0),MATCH(Parts!$B63,INDIRECT(\"'\"&A63&\"'!$10:$10\"),0)),0)","v":0},null,null,{"$f":"IFERROR(INDEX(INDIRECT(\"'\"&A63&\"'!$18:$50\"),MATCH($BN$1,INDIRECT(\"'\"&A63&\"'!$A$18:$A$50\"),0),MATCH(Parts!$B63,INDIRECT(\"'\"&A63&\"'!$10:$10\"),0)),0)","v":0},null,null,{"$f":"IFERROR(INDEX(INDIRECT(\"'\"&A63&\"'!$18:$50\"),MATCH($BQ$1,INDIRECT(\"'\"&A63&\"'!$A$18:$A$50\"),0),MATCH(Parts!$B63,INDIRECT(\"'\"&A63&\"'!$10:$10\"),0)),0)","v":0},null,null,{"$f":"IFERROR(INDEX(INDIRECT(\"'\"&A63&\"'!$18:$50\"),MATCH($BT$1,INDIRECT(\"'\"&A63&\"'!$A$18:$A$50\"),0),MATCH(Parts!$B63,INDIRECT(\"'\"&A63&\"'!$10:$10\"),0)),0)","v":0},null,null,{"$f":"IFERROR(INDEX(INDIRECT(\"'\"&A63&\"'!$18:$50\"),MATCH($BW$1,INDIRECT(\"'\"&A63&\"'!$A$18:$A$50\"),0),MATCH(Parts!$B63,INDIRECT(\"'\"&A63&\"'!$10:$10\"),0)),0)","v":0},null,"Solar thermometer: € 35.00",{"$f":"IFERROR(INDEX(INDIRECT(\"'\"&A63&\"'!$18:$50\"),MATCH($BZ$1,INDIRECT(\"'\"&A63&\"'!$A$18:$A$50\"),0),MATCH(Parts!$B63,INDIRECT(\"'\"&A63&\"'!$10:$10\"),0)),0)","v":1},35,null,{"$f":"IFERROR(INDEX(INDIRECT(\"'\"&A63&\"'!$18:$50\"),MATCH($CC$1,INDIRECT(\"'\"&A63&\"'!$A$18:$A$50\"),0),MATCH(Parts!$B63,INDIRECT(\"'\"&A63&\"'!$10:$10\"),0)),0)","v":0},null,null,{"$f":"IFERROR(INDEX(INDIRECT(\"'\"&A63&\"'!$18:$50\"),MATCH($CF$1,INDIRECT(\"'\"&A63&\"'!$A$18:$A$50\"),0),MATCH(Parts!$B63,INDIRECT(\"'\"&A63&\"'!$10:$10\"),0)),0)","v":0},null,null,{"$f":"IFERROR(INDEX(INDIRECT(\"'\"&A63&\"'!$18:$50\"),MATCH($CI$1,INDIRECT(\"'\"&A63&\"'!$A$18:$A$50\"),0),MATCH(Parts!$B63,INDIRECT(\"'\"&A63&\"'!$10:$10\"),0)),0)","v":0},null,null,{"$f":"IFERROR(INDEX(INDIRECT(\"'\"&A63&\"'!$18:$50\"),MATCH($CL$1,INDIRECT(\"'\"&A63&\"'!$A$18:$A$50\"),0),MATCH(Parts!$B63,INDIRECT(\"'\"&A63&\"'!$10:$10\"),0)),0)","v":0},null,null,{"$f":"IFERROR(INDEX(INDIRECT(\"'\"&A63&\"'!$18:$50\"),MATCH($CO$1,INDIRECT(\"'\"&A63&\"'!$A$18:$A$50\"),0),MATCH(Parts!$B63,INDIRECT(\"'\"&A63&\"'!$10:$10\"),0)),0)","v":0},null,null,{"$f":"IFERROR(INDEX(INDIRECT(\"'\"&A63&\"'!$18:$50\"),MATCH($CR$1,INDIRECT(\"'\"&A63&\"'!$A$18:$A$50\"),0),MATCH(Parts!$B63,INDIRECT(\"'\"&A63&\"'!$10:$10\"),0)),0)","v":0},null,null,{"$f":"IFERROR(INDEX(INDIRECT(\"'\"&A63&\"'!$18:$50\"),MATCH($CU$1,INDIRECT(\"'\"&A63&\"'!$A$18:$A$50\"),0),MATCH(Parts!$B63,INDIRECT(\"'\"&A63&\"'!$10:$10\"),0)),0)","v":0},null,null,{"$f":"IFERROR(INDEX(INDIRECT(\"'\"&A63&\"'!$18:$50\"),MATCH($CX$1,INDIRECT(\"'\"&A63&\"'!$A$18:$A$50\"),0),MATCH(Parts!$B63,INDIRECT(\"'\"&A63&\"'!$10:$10\"),0)),0)","v":0},null,null,{"$f":"IFERROR(INDEX(INDIRECT(\"'\"&A63&\"'!$18:$50\"),MATCH($DA$1,INDIRECT(\"'\"&A63&\"'!$A$18:$A$50\"),0),MATCH(Parts!$B63,INDIRECT(\"'\"&A63&\"'!$10:$10\"),0)),0)","v":0},null,null,{"$f":"IFERROR(INDEX(INDIRECT(\"'\"&A63&\"'!$18:$50\"),MATCH($DD$1,INDIRECT(\"'\"&A63&\"'!$A$18:$A$50\"),0),MATCH(Parts!$B63,INDIRECT(\"'\"&A63&\"'!$10:$10\"),0)),0)","v":0},null,null,{"$f":"IFERROR(INDEX(INDIRECT(\"'\"&A63&\"'!$18:$50\"),MATCH($DG$1,INDIRECT(\"'\"&A63&\"'!$A$18:$A$50\"),0),MATCH(Parts!$B63,INDIRECT(\"'\"&A63&\"'!$10:$10\"),0)),0)","v":0},null,null,{"$f":"IFERROR(INDEX(INDIRECT(\"'\"&A63&\"'!$18:$50\"),MATCH($DJ$1,INDIRECT(\"'\"&A63&\"'!$A$18:$A$50\"),0),MATCH(Parts!$B63,INDIRECT(\"'\"&A63&\"'!$10:$10\"),0)),0)","v":0},null,null,{"$f":"IFERROR(INDEX(INDIRECT(\"'\"&A63&\"'!$18:$50\"),MATCH($DM$1,INDIRECT(\"'\"&A63&\"'!$A$18:$A$50\"),0),MATCH(Parts!$B63,INDIRECT(\"'\"&A63&\"'!$10:$10\"),0)),0)","v":0},null,"Temperature probe: € 5.00",{"$f":"IFERROR(INDEX(INDIRECT(\"'\"&A63&\"'!$18:$50\"),MATCH($DP$1,INDIRECT(\"'\"&A63&\"'!$A$18:$A$50\"),0),MATCH(Parts!$B63,INDIRECT(\"'\"&A63&\"'!$10:$10\"),0)),0)","v":1},5,"SDD controller: €191.00",{"$f":"IFERROR(INDEX(INDIRECT(\"'\"&A63&\"'!$18:$50\"),MATCH($DS$1,INDIRECT(\"'\"&A63&\"'!$A$18:$A$50\"),0),MATCH(Parts!$B63,INDIRECT(\"'\"&A63&\"'!$10:$10\"),0)),0)","v":1},191,null,{"$f":"IFERROR(INDEX(INDIRECT(\"'\"&A63&\"'!$18:$50\"),MATCH($DV$1,INDIRECT(\"'\"&A63&\"'!$A$18:$A$50\"),0),MATCH(Parts!$B63,INDIRECT(\"'\"&A63&\"'!$10:$10\"),0)),0)","v":0},null,null,{"$f":"IFERROR(INDEX(INDIRECT(\"'\"&A63&\"'!$18:$50\"),MATCH($DY$1,INDIRECT(\"'\"&A63&\"'!$A$18:$A$50\"),0),MATCH(Parts!$B63,INDIRECT(\"'\"&A63&\"'!$10:$10\"),0)),0)","v":0},null,null,{"$f":"IFERROR(INDEX(INDIRECT(\"'\"&A63&\"'!$18:$50\"),MATCH($EB$1,INDIRECT(\"'\"&A63&\"'!$A$18:$A$50\"),0),MATCH(Parts!$B63,INDIRECT(\"'\"&A63&\"'!$10:$10\"),0)),0)","v":0},null,null,{"$f":"IFERROR(INDEX(INDIRECT(\"'\"&A63&\"'!$18:$50\"),MATCH($EE$1,INDIRECT(\"'\"&A63&\"'!$A$18:$A$50\"),0),MATCH(Parts!$B63,INDIRECT(\"'\"&A63&\"'!$10:$10\"),0)),0)","v":0},null,"Freezer foam lid: €38.10",{"$f":"IFERROR(INDEX(INDIRECT(\"'\"&A63&\"'!$18:$50\"),MATCH($EH$1,INDIRECT(\"'\"&A63&\"'!$A$18:$A$50\"),0),MATCH(Parts!$B63,INDIRECT(\"'\"&A63&\"'!$10:$10\"),0)),0)","v":0},38.1,null,{"$f":"IFERROR(INDEX(INDIRECT(\"'\"&A63&\"'!$18:$50\"),MATCH($EK$1,INDIRECT(\"'\"&A63&\"'!$A$18:$A$50\"),0),MATCH(Parts!$B63,INDIRECT(\"'\"&A63&\"'!$10:$10\"),0)),0)","v":0}]
[{"$f":"PQS!A66","v":"SDD"},{"$f":"PQS!B66","v":"E003/049"},{"$f":"PQS!E66","v":"GVR 50DC SDD*"},{"$f":"PQS!P66","v":"$"},388,"Compressor & Controller :RCM9774923; 280$",{"$f":"IFERROR(INDEX(INDIRECT(\"'\"&A64&\"'!$18:$50\"),MATCH(Parts!F$1,INDIRECT(\"'\"&A64&\"'!$A$18:$A$50\"),0),MATCH(Parts!$B64,INDIRECT(\"'\"&A64&\"'!$10:$10\"),0)),0)","v":1},280,"Electronic control card: RCC97749237; 45$",{"$f":"IFERROR(INDEX(INDIRECT(\"'\"&A64&\"'!$18:$50\"),MATCH($I$1,INDIRECT(\"'\"&A64&\"'!$A$18:$A$50\"),0),MATCH(Parts!$B64,INDIRECT(\"'\"&A64&\"'!$10:$10\"),0)),0)","v":1},45,null,{"$f":"IFERROR(INDEX(INDIRECT(\"'\"&A64&\"'!$18:$50\"),MATCH($L$1,INDIRECT(\"'\"&A64&\"'!$A$18:$A$50\"),0),MATCH(Parts!$B64,INDIRECT(\"'\"&A64&\"'!$10:$10\"),0)),0)","v":0},null,null,{"$f":"IFERROR(INDEX(INDIRECT(\"'\"&A64&\"'!$18:$50\"),MATCH($O$1,INDIRECT(\"'\"&A64&\"'!$A$18:$A$50\"),0),MATCH(Parts!$B64,INDIRECT(\"'\"&A64&\"'!$10:$10\"),0)),0)","v":0},null,null,{"$f":"IFERROR(INDEX(INDIRECT(\"'\"&A64&\"'!$18:$50\"),MATCH($R$1,INDIRECT(\"'\"&A64&\"'!$A$18:$A$50\"),0),MATCH(Parts!$B64,INDIRECT(\"'\"&A64&\"'!$10:$10\"),0)),0)","v":0},null,null,{"$f":"IFERROR(INDEX(INDIRECT(\"'\"&A64&\"'!$18:$50\"),MATCH($U$1,INDIRECT(\"'\"&A64&\"'!$A$18:$A$50\"),0),MATCH(Parts!$B64,INDIRECT(\"'\"&A64&\"'!$10:$10\"),0)),0)","v":0},null,"Condensor : RFN97749232; 55$\nFan :RFN97749232; 8$(Including Impeller)",{"$f":"IFERROR(INDEX(INDIRECT(\"'\"&A64&\"'!$18:$50\"),MATCH($X$1,INDIRECT(\"'\"&A64&\"'!$A$18:$A$50\"),0),MATCH(Parts!$B64,INDIRECT(\"'\"&A64&\"'!$10:$10\"),0)),0)","v":1},{"$f":"55+8","v":63},null,{"$f":"IFERROR(INDEX(INDIRECT(\"'\"&A64&\"'!$18:$50\"),MATCH($AA$1,INDIRECT(\"'\"&A64&\"'!$A$18:$A$50\"),0),MATCH(Parts!$B64,INDIRECT(\"'\"&A64&\"'!$10:$10\"),0)),0)","v":0},null,null,{"$f":"IFERROR(INDEX(INDIRECT(\"'\"&A64&\"'!$18:$50\"),MATCH($AD$1,INDIRECT(\"'\"&A64&\"'!$A$18:$A$50\"),0),MATCH(Parts!$B64,INDIRECT(\"'\"&A64&\"'!$10:$10\"),0)),0)","v":0},null,null,{"$f":"IFERROR(INDEX(INDIRECT(\"'\"&A64&\"'!$18:$50\"),MATCH($AG$1,INDIRECT(\"'\"&A64&\"'!$A$18:$A$50\"),0),MATCH(Parts!$B64,INDIRECT(\"'\"&A64&\"'!$10:$10\"),0)),0)","v":0},null,null,{"$f":"IFERROR(INDEX(INDIRECT(\"'\"&A64&\"'!$18:$50\"),MATCH($AJ$1,INDIRECT(\"'\"&A64&\"'!$A$18:$A$50\"),0),MATCH(Parts!$B64,INDIRECT(\"'\"&A64&\"'!$10:$10\"),0)),0)","v":0},null,null,{"$f":"IFERROR(INDEX(INDIRECT(\"'\"&A64&\"'!$18:$50\"),MATCH($AM$1,INDIRECT(\"'\"&A64&\"'!$A$18:$A$50\"),0),MATCH(Parts!$B64,INDIRECT(\"'\"&A64&\"'!$10:$10\"),0)),0)","v":0},null,null,{"$f":"IFERROR(INDEX(INDIRECT(\"'\"&A64&\"'!$18:$50\"),MATCH($AP$1,INDIRECT(\"'\"&A64&\"'!$A$18:$A$50\"),0),MATCH(Parts!$B64,INDIRECT(\"'\"&A64&\"'!$10:$10\"),0)),0)","v":0},null,null,{"$f":"IFERROR(INDEX(INDIRECT(\"'\"&A64&\"'!$18:$50\"),MATCH($AS$1,INDIRECT(\"'\"&A64&\"'!$A$18:$A$50\"),0),MATCH(Parts!$B64,INDIRECT(\"'\"&A64&\"'!$10:$10\"),0)),0)","v":0},null,null,{"$f":"IFERROR(INDEX(INDIRECT(\"'\"&A64&\"'!$18:$50\"),MATCH($AV$1,INDIRECT(\"'\"&A64&\"'!$A$18:$A$50\"),0),MATCH(Parts!$B64,INDIRECT(\"'\"&A64&\"'!$10:$10\"),0)),0)","v":0},null,null,{"$f":"IFERROR(INDEX(INDIRECT(\"'\"&A64&\"'!$18:$50\"),MATCH($AY$1,INDIRECT(\"'\"&A64&\"'!$A$18:$A$50\"),0),MATCH(Parts!$B64,INDIRECT(\"'\"&A64&\"'!$10:$10\"),0)),0)","v":0},null,null,{"$f":"IFERROR(INDEX(INDIRECT(\"'\"&A64&\"'!$18:$50\"),MATCH($BB$1,INDIRECT(\"'\"&A64&\"'!$A$18:$A$50\"),0),MATCH(Parts!$B64,INDIRECT(\"'\"&A64&\"'!$10:$10\"),0)),0)","v":0},null,null,{"$f":"IFERROR(INDEX(INDIRECT(\"'\"&A64&\"'!$18:$50\"),MATCH($BE$1,INDIRECT(\"'\"&A64&\"'!$A$18:$A$50\"),0),MATCH(Parts!$B64,INDIRECT(\"'\"&A64&\"'!$10:$10\"),0)),0)","v":0},null,null,{"$f":"IFERROR(INDEX(INDIRECT(\"'\"&A64&\"'!$18:$50\"),MATCH($BH$1,INDIRECT(\"'\"&A64&\"'!$A$18:$A$50\"),0),MATCH(Parts!$B64,INDIRECT(\"'\"&A64&\"'!$10:$10\"),0)),0)","v":0},null,null,{"$f":"IFERROR(INDEX(INDIRECT(\"'\"&A64&\"'!$18:$50\"),MATCH($BK$1,INDIRECT(\"'\"&A64&\"'!$A$18:$A$50\"),0),MATCH(Parts!$B64,INDIRECT(\"'\"&A64&\"'!$10:$10\"),0)),0)","v":0},null,null,{"$f":"IFERROR(INDEX(INDIRECT(\"'\"&A64&\"'!$18:$50\"),MATCH($BN$1,INDIRECT(\"'\"&A64&\"'!$A$18:$A$50\"),0),MATCH(Parts!$B64,INDIRECT(\"'\"&A64&\"'!$10:$10\"),0)),0)","v":0},null,null,{"$f":"IFERROR(INDEX(INDIRECT(\"'\"&A64&\"'!$18:$50\"),MATCH($BQ$1,INDIRECT(\"'\"&A64&\"'!$A$18:$A$50\"),0),MATCH(Parts!$B64,INDIRECT(\"'\"&A64&\"'!$10:$10\"),0)),0)","v":0},null,null,{"$f":"IFERROR(INDEX(INDIRECT(\"'\"&A64&\"'!$18:$50\"),MATCH($BT$1,INDIRECT(\"'\"&A64&\"'!$A$18:$A$50\"),0),MATCH(Parts!$B64,INDIRECT(\"'\"&A64&\"'!$10:$10\"),0)),0)","v":0},null,null,{"$f":"IFERROR(INDEX(INDIRECT(\"'\"&A64&\"'!$18:$50\"),MATCH($BW$1,INDIRECT(\"'\"&A64&\"'!$A$18:$A$50\"),0),MATCH(Parts!$B64,INDIRECT(\"'\"&A64&\"'!$10:$10\"),0)),0)","v":0},null,null,{"$f":"IFERROR(INDEX(INDIRECT(\"'\"&A64&\"'!$18:$50\"),MATCH($BZ$1,INDIRECT(\"'\"&A64&\"'!$A$18:$A$50\"),0),MATCH(Parts!$B64,INDIRECT(\"'\"&A64&\"'!$10:$10\"),0)),0)","v":0},null,null,{"$f":"IFERROR(INDEX(INDIRECT(\"'\"&A64&\"'!$18:$50\"),MATCH($CC$1,INDIRECT(\"'\"&A64&\"'!$A$18:$A$50\"),0),MATCH(Parts!$B64,INDIRECT(\"'\"&A64&\"'!$10:$10\"),0)),0)","v":0},null,null,{"$f":"IFERROR(INDEX(INDIRECT(\"'\"&A64&\"'!$18:$50\"),MATCH($CF$1,INDIRECT(\"'\"&A64&\"'!$A$18:$A$50\"),0),MATCH(Parts!$B64,INDIRECT(\"'\"&A64&\"'!$10:$10\"),0)),0)","v":0},null,null,{"$f":"IFERROR(INDEX(INDIRECT(\"'\"&A64&\"'!$18:$50\"),MATCH($CI$1,INDIRECT(\"'\"&A64&\"'!$A$18:$A$50\"),0),MATCH(Parts!$B64,INDIRECT(\"'\"&A64&\"'!$10:$10\"),0)),0)","v":0},null,null,{"$f":"IFERROR(INDEX(INDIRECT(\"'\"&A64&\"'!$18:$50\"),MATCH($CL$1,INDIRECT(\"'\"&A64&\"'!$A$18:$A$50\"),0),MATCH(Parts!$B64,INDIRECT(\"'\"&A64&\"'!$10:$10\"),0)),0)","v":0},null,null,{"$f":"IFERROR(INDEX(INDIRECT(\"'\"&A64&\"'!$18:$50\"),MATCH($CO$1,INDIRECT(\"'\"&A64&\"'!$A$18:$A$50\"),0),MATCH(Parts!$B64,INDIRECT(\"'\"&A64&\"'!$10:$10\"),0)),0)","v":0},null,null,{"$f":"IFERROR(INDEX(INDIRECT(\"'\"&A64&\"'!$18:$50\"),MATCH($CR$1,INDIRECT(\"'\"&A64&\"'!$A$18:$A$50\"),0),MATCH(Parts!$B64,INDIRECT(\"'\"&A64&\"'!$10:$10\"),0)),0)","v":0},null,null,{"$f":"IFERROR(INDEX(INDIRECT(\"'\"&A64&\"'!$18:$50\"),MATCH($CU$1,INDIRECT(\"'\"&A64&\"'!$A$18:$A$50\"),0),MATCH(Parts!$B64,INDIRECT(\"'\"&A64&\"'!$10:$10\"),0)),0)","v":0},null,null,{"$f":"IFERROR(INDEX(INDIRECT(\"'\"&A64&\"'!$18:$50\"),MATCH($CX$1,INDIRECT(\"'\"&A64&\"'!$A$18:$A$50\"),0),MATCH(Parts!$B64,INDIRECT(\"'\"&A64&\"'!$10:$10\"),0)),0)","v":0},null,null,{"$f":"IFERROR(INDEX(INDIRECT(\"'\"&A64&\"'!$18:$50\"),MATCH($DA$1,INDIRECT(\"'\"&A64&\"'!$A$18:$A$50\"),0),MATCH(Parts!$B64,INDIRECT(\"'\"&A64&\"'!$10:$10\"),0)),0)","v":0},null,null,{"$f":"IFERROR(INDEX(INDIRECT(\"'\"&A64&\"'!$18:$50\"),MATCH($DD$1,INDIRECT(\"'\"&A64&\"'!$A$18:$A$50\"),0),MATCH(Parts!$B64,INDIRECT(\"'\"&A64&\"'!$10:$10\"),0)),0)","v":0},null,null,{"$f":"IFERROR(INDEX(INDIRECT(\"'\"&A64&\"'!$18:$50\"),MATCH($DG$1,INDIRECT(\"'\"&A64&\"'!$A$18:$A$50\"),0),MATCH(Parts!$B64,INDIRECT(\"'\"&A64&\"'!$10:$10\"),0)),0)","v":0},null,null,{"$f":"IFERROR(INDEX(INDIRECT(\"'\"&A64&\"'!$18:$50\"),MATCH($DJ$1,INDIRECT(\"'\"&A64&\"'!$A$18:$A$50\"),0),MATCH(Parts!$B64,INDIRECT(\"'\"&A64&\"'!$10:$10\"),0)),0)","v":0},null,null,{"$f":"IFERROR(INDEX(INDIRECT(\"'\"&A64&\"'!$18:$50\"),MATCH($DM$1,INDIRECT(\"'\"&A64&\"'!$A$18:$A$50\"),0),MATCH(Parts!$B64,INDIRECT(\"'\"&A64&\"'!$10:$10\"),0)),0)","v":0},null,null,{"$f":"IFERROR(INDEX(INDIRECT(\"'\"&A64&\"'!$18:$50\"),MATCH($DP$1,INDIRECT(\"'\"&A64&\"'!$A$18:$A$50\"),0),MATCH(Parts!$B64,INDIRECT(\"'\"&A64&\"'!$10:$10\"),0)),0)","v":0},null,null,{"$f":"IFERROR(INDEX(INDIRECT(\"'\"&A64&\"'!$18:$50\"),MATCH($DS$1,INDIRECT(\"'\"&A64&\"'!$A$18:$A$50\"),0),MATCH(Parts!$B64,INDIRECT(\"'\"&A64&\"'!$10:$10\"),0)),0)","v":0},null,null,{"$f":"IFERROR(INDEX(INDIRECT(\"'\"&A64&\"'!$18:$50\"),MATCH($DV$1,INDIRECT(\"'\"&A64&\"'!$A$18:$A$50\"),0),MATCH(Parts!$B64,INDIRECT(\"'\"&A64&\"'!$10:$10\"),0)),0)","v":0},null,null,{"$f":"IFERROR(INDEX(INDIRECT(\"'\"&A64&\"'!$18:$50\"),MATCH($DY$1,INDIRECT(\"'\"&A64&\"'!$A$18:$A$50\"),0),MATCH(Parts!$B64,INDIRECT(\"'\"&A64&\"'!$10:$10\"),0)),0)","v":0},null,null,{"$f":"IFERROR(INDEX(INDIRECT(\"'\"&A64&\"'!$18:$50\"),MATCH($EB$1,INDIRECT(\"'\"&A64&\"'!$A$18:$A$50\"),0),MATCH(Parts!$B64,INDIRECT(\"'\"&A64&\"'!$10:$10\"),0)),0)","v":0},null,null,{"$f":"IFERROR(INDEX(INDIRECT(\"'\"&A64&\"'!$18:$50\"),MATCH($EE$1,INDIRECT(\"'\"&A64&\"'!$A$18:$A$50\"),0),MATCH(Parts!$B64,INDIRECT(\"'\"&A64&\"'!$10:$10\"),0)),0)","v":0},null,null,{"$f":"IFERROR(INDEX(INDIRECT(\"'\"&A64&\"'!$18:$50\"),MATCH($EH$1,INDIRECT(\"'\"&A64&\"'!$A$18:$A$50\"),0),MATCH(Parts!$B64,INDIRECT(\"'\"&A64&\"'!$10:$10\"),0)),0)","v":0},null,null,{"$f":"IFERROR(INDEX(INDIRECT(\"'\"&A64&\"'!$18:$50\"),MATCH($EK$1,INDIRECT(\"'\"&A64&\"'!$A$18:$A$50\"),0),MATCH(Parts!$B64,INDIRECT(\"'\"&A64&\"'!$10:$10\"),0)),0)","v":0}]
[{"$f":"PQS!A67","v":"SDD"},{"$f":"PQS!B67","v":"E003/050"},{"$f":"PQS!E67","v":"GVR 100DC (SureChill)*"},{"$f":"PQS!P67","v":"$"},388,"Compressor & Controller :RCM9774923; 280$",{"$f":"IFERROR(INDEX(INDIRECT(\"'\"&A65&\"'!$18:$50\"),MATCH(Parts!F$1,INDIRECT(\"'\"&A65&\"'!$A$18:$A$50\"),0),MATCH(Parts!$B65,INDIRECT(\"'\"&A65&\"'!$10:$10\"),0)),0)","v":1},280,"Electronic control card: RCC97749237; 45$",{"$f":"IFERROR(INDEX(INDIRECT(\"'\"&A65&\"'!$18:$50\"),MATCH($I$1,INDIRECT(\"'\"&A65&\"'!$A$18:$A$50\"),0),MATCH(Parts!$B65,INDIRECT(\"'\"&A65&\"'!$10:$10\"),0)),0)","v":1},45,null,{"$f":"IFERROR(INDEX(INDIRECT(\"'\"&A65&\"'!$18:$50\"),MATCH($L$1,INDIRECT(\"'\"&A65&\"'!$A$18:$A$50\"),0),MATCH(Parts!$B65,INDIRECT(\"'\"&A65&\"'!$10:$10\"),0)),0)","v":0},null,null,{"$f":"IFERROR(INDEX(INDIRECT(\"'\"&A65&\"'!$18:$50\"),MATCH($O$1,INDIRECT(\"'\"&A65&\"'!$A$18:$A$50\"),0),MATCH(Parts!$B65,INDIRECT(\"'\"&A65&\"'!$10:$10\"),0)),0)","v":0},null,null,{"$f":"IFERROR(INDEX(INDIRECT(\"'\"&A65&\"'!$18:$50\"),MATCH($R$1,INDIRECT(\"'\"&A65&\"'!$A$18:$A$50\"),0),MATCH(Parts!$B65,INDIRECT(\"'\"&A65&\"'!$10:$10\"),0)),0)","v":0},null,null,{"$f":"IFERROR(INDEX(INDIRECT(\"'\"&A65&\"'!$18:$50\"),MATCH($U$1,INDIRECT(\"'\"&A65&\"'!$A$18:$A$50\"),0),MATCH(Parts!$B65,INDIRECT(\"'\"&A65&\"'!$10:$10\"),0)),0)","v":0},null,"Condensor : RFN97749232; 55$\nFan :RFN97749232; 8$(Including Impeller)",{"$f":"IFERROR(INDEX(INDIRECT(\"'\"&A65&\"'!$18:$50\"),MATCH($X$1,INDIRECT(\"'\"&A65&\"'!$A$18:$A$50\"),0),MATCH(Parts!$B65,INDIRECT(\"'\"&A65&\"'!$10:$10\"),0)),0)","v":1},{"$f":"55+8","v":63},null,{"$f":"IFERROR(INDEX(INDIRECT(\"'\"&A65&\"'!$18:$50\"),MATCH($AA$1,INDIRECT(\"'\"&A65&\"'!$A$18:$A$50\"),0),MATCH(Parts!$B65,INDIRECT(\"'\"&A65&\"'!$10:$10\"),0)),0)","v":0},null,null,{"$f":"IFERROR(INDEX(INDIRECT(\"'\"&A65&\"'!$18:$50\"),MATCH($AD$1,INDIRECT(\"'\"&A65&\"'!$A$18:$A$50\"),0),MATCH(Parts!$B65,INDIRECT(\"'\"&A65&\"'!$10:$10\"),0)),0)","v":0},null,null,{"$f":"IFERROR(INDEX(INDIRECT(\"'\"&A65&\"'!$18:$50\"),MATCH($AG$1,INDIRECT(\"'\"&A65&\"'!$A$18:$A$50\"),0),MATCH(Parts!$B65,INDIRECT(\"'\"&A65&\"'!$10:$10\"),0)),0)","v":0},null,null,{"$f":"IFERROR(INDEX(INDIRECT(\"'\"&A65&\"'!$18:$50\"),MATCH($AJ$1,INDIRECT(\"'\"&A65&\"'!$A$18:$A$50\"),0),MATCH(Parts!$B65,INDIRECT(\"'\"&A65&\"'!$10:$10\"),0)),0)","v":0},null,null,{"$f":"IFERROR(INDEX(INDIRECT(\"'\"&A65&\"'!$18:$50\"),MATCH($AM$1,INDIRECT(\"'\"&A65&\"'!$A$18:$A$50\"),0),MATCH(Parts!$B65,INDIRECT(\"'\"&A65&\"'!$10:$10\"),0)),0)","v":0},null,null,{"$f":"IFERROR(INDEX(INDIRECT(\"'\"&A65&\"'!$18:$50\"),MATCH($AP$1,INDIRECT(\"'\"&A65&\"'!$A$18:$A$50\"),0),MATCH(Parts!$B65,INDIRECT(\"'\"&A65&\"'!$10:$10\"),0)),0)","v":0},null,null,{"$f":"IFERROR(INDEX(INDIRECT(\"'\"&A65&\"'!$18:$50\"),MATCH($AS$1,INDIRECT(\"'\"&A65&\"'!$A$18:$A$50\"),0),MATCH(Parts!$B65,INDIRECT(\"'\"&A65&\"'!$10:$10\"),0)),0)","v":0},null,null,{"$f":"IFERROR(INDEX(INDIRECT(\"'\"&A65&\"'!$18:$50\"),MATCH($AV$1,INDIRECT(\"'\"&A65&\"'!$A$18:$A$50\"),0),MATCH(Parts!$B65,INDIRECT(\"'\"&A65&\"'!$10:$10\"),0)),0)","v":0},null,null,{"$f":"IFERROR(INDEX(INDIRECT(\"'\"&A65&\"'!$18:$50\"),MATCH($AY$1,INDIRECT(\"'\"&A65&\"'!$A$18:$A$50\"),0),MATCH(Parts!$B65,INDIRECT(\"'\"&A65&\"'!$10:$10\"),0)),0)","v":0},null,null,{"$f":"IFERROR(INDEX(INDIRECT(\"'\"&A65&\"'!$18:$50\"),MATCH($BB$1,INDIRECT(\"'\"&A65&\"'!$A$18:$A$50\"),0),MATCH(Parts!$B65,INDIRECT(\"'\"&A65&\"'!$10:$10\"),0)),0)","v":0},null,null,{"$f":"IFERROR(INDEX(INDIRECT(\"'\"&A65&\"'!$18:$50\"),MATCH($BE$1,INDIRECT(\"'\"&A65&\"'!$A$18:$A$50\"),0),MATCH(Parts!$B65,INDIRECT(\"'\"&A65&\"'!$10:$10\"),0)),0)","v":0},null,null,{"$f":"IFERROR(INDEX(INDIRECT(\"'\"&A65&\"'!$18:$50\"),MATCH($BH$1,INDIRECT(\"'\"&A65&\"'!$A$18:$A$50\"),0),MATCH(Parts!$B65,INDIRECT(\"'\"&A65&\"'!$10:$10\"),0)),0)","v":0},null,null,{"$f":"IFERROR(INDEX(INDIRECT(\"'\"&A65&\"'!$18:$50\"),MATCH($BK$1,INDIRECT(\"'\"&A65&\"'!$A$18:$A$50\"),0),MATCH(Parts!$B65,INDIRECT(\"'\"&A65&\"'!$10:$10\"),0)),0)","v":0},null,null,{"$f":"IFERROR(INDEX(INDIRECT(\"'\"&A65&\"'!$18:$50\"),MATCH($BN$1,INDIRECT(\"'\"&A65&\"'!$A$18:$A$50\"),0),MATCH(Parts!$B65,INDIRECT(\"'\"&A65&\"'!$10:$10\"),0)),0)","v":0},null,null,{"$f":"IFERROR(INDEX(INDIRECT(\"'\"&A65&\"'!$18:$50\"),MATCH($BQ$1,INDIRECT(\"'\"&A65&\"'!$A$18:$A$50\"),0),MATCH(Parts!$B65,INDIRECT(\"'\"&A65&\"'!$10:$10\"),0)),0)","v":0},null,null,{"$f":"IFERROR(INDEX(INDIRECT(\"'\"&A65&\"'!$18:$50\"),MATCH($BT$1,INDIRECT(\"'\"&A65&\"'!$A$18:$A$50\"),0),MATCH(Parts!$B65,INDIRECT(\"'\"&A65&\"'!$10:$10\"),0)),0)","v":0},null,null,{"$f":"IFERROR(INDEX(INDIRECT(\"'\"&A65&\"'!$18:$50\"),MATCH($BW$1,INDIRECT(\"'\"&A65&\"'!$A$18:$A$50\"),0),MATCH(Parts!$B65,INDIRECT(\"'\"&A65&\"'!$10:$10\"),0)),0)","v":0},null,null,{"$f":"IFERROR(INDEX(INDIRECT(\"'\"&A65&\"'!$18:$50\"),MATCH($BZ$1,INDIRECT(\"'\"&A65&\"'!$A$18:$A$50\"),0),MATCH(Parts!$B65,INDIRECT(\"'\"&A65&\"'!$10:$10\"),0)),0)","v":0},null,null,{"$f":"IFERROR(INDEX(INDIRECT(\"'\"&A65&\"'!$18:$50\"),MATCH($CC$1,INDIRECT(\"'\"&A65&\"'!$A$18:$A$50\"),0),MATCH(Parts!$B65,INDIRECT(\"'\"&A65&\"'!$10:$10\"),0)),0)","v":0},null,null,{"$f":"IFERROR(INDEX(INDIRECT(\"'\"&A65&\"'!$18:$50\"),MATCH($CF$1,INDIRECT(\"'\"&A65&\"'!$A$18:$A$50\"),0),MATCH(Parts!$B65,INDIRECT(\"'\"&A65&\"'!$10:$10\"),0)),0)","v":0},null,null,{"$f":"IFERROR(INDEX(INDIRECT(\"'\"&A65&\"'!$18:$50\"),MATCH($CI$1,INDIRECT(\"'\"&A65&\"'!$A$18:$A$50\"),0),MATCH(Parts!$B65,INDIRECT(\"'\"&A65&\"'!$10:$10\"),0)),0)","v":0},null,null,{"$f":"IFERROR(INDEX(INDIRECT(\"'\"&A65&\"'!$18:$50\"),MATCH($CL$1,INDIRECT(\"'\"&A65&\"'!$A$18:$A$50\"),0),MATCH(Parts!$B65,INDIRECT(\"'\"&A65&\"'!$10:$10\"),0)),0)","v":0},null,null,{"$f":"IFERROR(INDEX(INDIRECT(\"'\"&A65&\"'!$18:$50\"),MATCH($CO$1,INDIRECT(\"'\"&A65&\"'!$A$18:$A$50\"),0),MATCH(Parts!$B65,INDIRECT(\"'\"&A65&\"'!$10:$10\"),0)),0)","v":0},null,null,{"$f":"IFERROR(INDEX(INDIRECT(\"'\"&A65&\"'!$18:$50\"),MATCH($CR$1,INDIRECT(\"'\"&A65&\"'!$A$18:$A$50\"),0),MATCH(Parts!$B65,INDIRECT(\"'\"&A65&\"'!$10:$10\"),0)),0)","v":0},null,null,{"$f":"IFERROR(INDEX(INDIRECT(\"'\"&A65&\"'!$18:$50\"),MATCH($CU$1,INDIRECT(\"'\"&A65&\"'!$A$18:$A$50\"),0),MATCH(Parts!$B65,INDIRECT(\"'\"&A65&\"'!$10:$10\"),0)),0)","v":0},null,null,{"$f":"IFERROR(INDEX(INDIRECT(\"'\"&A65&\"'!$18:$50\"),MATCH($CX$1,INDIRECT(\"'\"&A65&\"'!$A$18:$A$50\"),0),MATCH(Parts!$B65,INDIRECT(\"'\"&A65&\"'!$10:$10\"),0)),0)","v":0},null,null,{"$f":"IFERROR(INDEX(INDIRECT(\"'\"&A65&\"'!$18:$50\"),MATCH($DA$1,INDIRECT(\"'\"&A65&\"'!$A$18:$A$50\"),0),MATCH(Parts!$B65,INDIRECT(\"'\"&A65&\"'!$10:$10\"),0)),0)","v":0},null,null,{"$f":"IFERROR(INDEX(INDIRECT(\"'\"&A65&\"'!$18:$50\"),MATCH($DD$1,INDIRECT(\"'\"&A65&\"'!$A$18:$A$50\"),0),MATCH(Parts!$B65,INDIRECT(\"'\"&A65&\"'!$10:$10\"),0)),0)","v":0},null,null,{"$f":"IFERROR(INDEX(INDIRECT(\"'\"&A65&\"'!$18:$50\"),MATCH($DG$1,INDIRECT(\"'\"&A65&\"'!$A$18:$A$50\"),0),MATCH(Parts!$B65,INDIRECT(\"'\"&A65&\"'!$10:$10\"),0)),0)","v":0},null,null,{"$f":"IFERROR(INDEX(INDIRECT(\"'\"&A65&\"'!$18:$50\"),MATCH($DJ$1,INDIRECT(\"'\"&A65&\"'!$A$18:$A$50\"),0),MATCH(Parts!$B65,INDIRECT(\"'\"&A65&\"'!$10:$10\"),0)),0)","v":0},null,null,{"$f":"IFERROR(INDEX(INDIRECT(\"'\"&A65&\"'!$18:$50\"),MATCH($DM$1,INDIRECT(\"'\"&A65&\"'!$A$18:$A$50\"),0),MATCH(Parts!$B65,INDIRECT(\"'\"&A65&\"'!$10:$10\"),0)),0)","v":0},null,null,{"$f":"IFERROR(INDEX(INDIRECT(\"'\"&A65&\"'!$18:$50\"),MATCH($DP$1,INDIRECT(\"'\"&A65&\"'!$A$18:$A$50\"),0),MATCH(Parts!$B65,INDIRECT(\"'\"&A65&\"'!$10:$10\"),0)),0)","v":0},null,null,{"$f":"IFERROR(INDEX(INDIRECT(\"'\"&A65&\"'!$18:$50\"),MATCH($DS$1,INDIRECT(\"'\"&A65&\"'!$A$18:$A$50\"),0),MATCH(Parts!$B65,INDIRECT(\"'\"&A65&\"'!$10:$10\"),0)),0)","v":0},null,null,{"$f":"IFERROR(INDEX(INDIRECT(\"'\"&A65&\"'!$18:$50\"),MATCH($DV$1,INDIRECT(\"'\"&A65&\"'!$A$18:$A$50\"),0),MATCH(Parts!$B65,INDIRECT(\"'\"&A65&\"'!$10:$10\"),0)),0)","v":0},null,null,{"$f":"IFERROR(INDEX(INDIRECT(\"'\"&A65&\"'!$18:$50\"),MATCH($DY$1,INDIRECT(\"'\"&A65&\"'!$A$18:$A$50\"),0),MATCH(Parts!$B65,INDIRECT(\"'\"&A65&\"'!$10:$10\"),0)),0)","v":0},null,null,{"$f":"IFERROR(INDEX(INDIRECT(\"'\"&A65&\"'!$18:$50\"),MATCH($EB$1,INDIRECT(\"'\"&A65&\"'!$A$18:$A$50\"),0),MATCH(Parts!$B65,INDIRECT(\"'\"&A65&\"'!$10:$10\"),0)),0)","v":0},null,null,{"$f":"IFERROR(INDEX(INDIRECT(\"'\"&A65&\"'!$18:$50\"),MATCH($EE$1,INDIRECT(\"'\"&A65&\"'!$A$18:$A$50\"),0),MATCH(Parts!$B65,INDIRECT(\"'\"&A65&\"'!$10:$10\"),0)),0)","v":0},null,null,{"$f":"IFERROR(INDEX(INDIRECT(\"'\"&A65&\"'!$18:$50\"),MATCH($EH$1,INDIRECT(\"'\"&A65&\"'!$A$18:$A$50\"),0),MATCH(Parts!$B65,INDIRECT(\"'\"&A65&\"'!$10:$10\"),0)),0)","v":0},null,null,{"$f":"IFERROR(INDEX(INDIRECT(\"'\"&A65&\"'!$18:$50\"),MATCH($EK$1,INDIRECT(\"'\"&A65&\"'!$A$18:$A$50\"),0),MATCH(Parts!$B65,INDIRECT(\"'\"&A65&\"'!$10:$10\"),0)),0)","v":0}]
[{"$f":"PQS!A68","v":"SDD"},{"$f":"PQS!B68","v":"E003/052"},{"$f":"PQS!E68","v":"ZLF 150DC*"},{"$f":"PQS!P68","v":"$"},709,"Compressor IMPC Æ7: 257.00 USD",{"$f":"IFERROR(INDEX(INDIRECT(\"'\"&A66&\"'!$18:$50\"),MATCH(Parts!F$1,INDIRECT(\"'\"&A66&\"'!$A$18:$A$50\"),0),MATCH(Parts!$B66,INDIRECT(\"'\"&A66&\"'!$10:$10\"),0)),0)","v":1},257,"Thermostat IMP 012: 92.00 USD",{"$f":"IFERROR(INDEX(INDIRECT(\"'\"&A66&\"'!$18:$50\"),MATCH($I$1,INDIRECT(\"'\"&A66&\"'!$A$18:$A$50\"),0),MATCH(Parts!$B66,INDIRECT(\"'\"&A66&\"'!$10:$10\"),0)),0)","v":1},92,"Compressor controller IMP 152: 164.00USD",{"$f":"IFERROR(INDEX(INDIRECT(\"'\"&A66&\"'!$18:$50\"),MATCH($L$1,INDIRECT(\"'\"&A66&\"'!$A$18:$A$50\"),0),MATCH(Parts!$B66,INDIRECT(\"'\"&A66&\"'!$10:$10\"),0)),0)","v":1},164,null,{"$f":"IFERROR(INDEX(INDIRECT(\"'\"&A66&\"'!$18:$50\"),MATCH($O$1,INDIRECT(\"'\"&A66&\"'!$A$18:$A$50\"),0),MATCH(Parts!$B66,INDIRECT(\"'\"&A66&\"'!$10:$10\"),0)),0)","v":0},null,null,{"$f":"IFERROR(INDEX(INDIRECT(\"'\"&A66&\"'!$18:$50\"),MATCH($R$1,INDIRECT(\"'\"&A66&\"'!$A$18:$A$50\"),0),MATCH(Parts!$B66,INDIRECT(\"'\"&A66&\"'!$10:$10\"),0)),0)","v":0},null,null,{"$f":"IFERROR(INDEX(INDIRECT(\"'\"&A66&\"'!$18:$50\"),MATCH($U$1,INDIRECT(\"'\"&A66&\"'!$A$18:$A$50\"),0),MATCH(Parts!$B66,INDIRECT(\"'\"&A66&\"'!$10:$10\"),0)),0)","v":0},null,"Condensor IMP145: 53.00 USD\nFan IMP 144: 33.00 USD",{"$f":"IFERROR(INDEX(INDIRECT(\"'\"&A66&\"'!$18:$50\"),MATCH($X$1,INDIRECT(\"'\"&A66&\"'!$A$18:$A$50\"),0),MATCH(Parts!$B66,INDIRECT(\"'\"&A66&\"'!$10:$10\"),0)),0)","v":1},{"$f":"53+33","v":86},null,{"$f":"IFERROR(INDEX(INDIRECT(\"'\"&A66&\"'!$18:$50\"),MATCH($AA$1,INDIRECT(\"'\"&A66&\"'!$A$18:$A$50\"),0),MATCH(Parts!$B66,INDIRECT(\"'\"&A66&\"'!$10:$10\"),0)),0)","v":0},null,null,{"$f":"IFERROR(INDEX(INDIRECT(\"'\"&A66&\"'!$18:$50\"),MATCH($AD$1,INDIRECT(\"'\"&A66&\"'!$A$18:$A$50\"),0),MATCH(Parts!$B66,INDIRECT(\"'\"&A66&\"'!$10:$10\"),0)),0)","v":0},null,null,{"$f":"IFERROR(INDEX(INDIRECT(\"'\"&A66&\"'!$18:$50\"),MATCH($AG$1,INDIRECT(\"'\"&A66&\"'!$A$18:$A$50\"),0),MATCH(Parts!$B66,INDIRECT(\"'\"&A66&\"'!$10:$10\"),0)),0)","v":0},null,null,{"$f":"IFERROR(INDEX(INDIRECT(\"'\"&A66&\"'!$18:$50\"),MATCH($AJ$1,INDIRECT(\"'\"&A66&\"'!$A$18:$A$50\"),0),MATCH(Parts!$B66,INDIRECT(\"'\"&A66&\"'!$10:$10\"),0)),0)","v":0},null,null,{"$f":"IFERROR(INDEX(INDIRECT(\"'\"&A66&\"'!$18:$50\"),MATCH($AM$1,INDIRECT(\"'\"&A66&\"'!$A$18:$A$50\"),0),MATCH(Parts!$B66,INDIRECT(\"'\"&A66&\"'!$10:$10\"),0)),0)","v":0},null,null,{"$f":"IFERROR(INDEX(INDIRECT(\"'\"&A66&\"'!$18:$50\"),MATCH($AP$1,INDIRECT(\"'\"&A66&\"'!$A$18:$A$50\"),0),MATCH(Parts!$B66,INDIRECT(\"'\"&A66&\"'!$10:$10\"),0)),0)","v":0},null,null,{"$f":"IFERROR(INDEX(INDIRECT(\"'\"&A66&\"'!$18:$50\"),MATCH($AS$1,INDIRECT(\"'\"&A66&\"'!$A$18:$A$50\"),0),MATCH(Parts!$B66,INDIRECT(\"'\"&A66&\"'!$10:$10\"),0)),0)","v":0},null,null,{"$f":"IFERROR(INDEX(INDIRECT(\"'\"&A66&\"'!$18:$50\"),MATCH($AV$1,INDIRECT(\"'\"&A66&\"'!$A$18:$A$50\"),0),MATCH(Parts!$B66,INDIRECT(\"'\"&A66&\"'!$10:$10\"),0)),0)","v":0},null,null,{"$f":"IFERROR(INDEX(INDIRECT(\"'\"&A66&\"'!$18:$50\"),MATCH($AY$1,INDIRECT(\"'\"&A66&\"'!$A$18:$A$50\"),0),MATCH(Parts!$B66,INDIRECT(\"'\"&A66&\"'!$10:$10\"),0)),0)","v":0},null,null,{"$f":"IFERROR(INDEX(INDIRECT(\"'\"&A66&\"'!$18:$50\"),MATCH($BB$1,INDIRECT(\"'\"&A66&\"'!$A$18:$A$50\"),0),MATCH(Parts!$B66,INDIRECT(\"'\"&A66&\"'!$10:$10\"),0)),0)","v":0},null,null,{"$f":"IFERROR(INDEX(INDIRECT(\"'\"&A66&\"'!$18:$50\"),MATCH($BE$1,INDIRECT(\"'\"&A66&\"'!$A$18:$A$50\"),0),MATCH(Parts!$B66,INDIRECT(\"'\"&A66&\"'!$10:$10\"),0)),0)","v":0},null,null,{"$f":"IFERROR(INDEX(INDIRECT(\"'\"&A66&\"'!$18:$50\"),MATCH($BH$1,INDIRECT(\"'\"&A66&\"'!$A$18:$A$50\"),0),MATCH(Parts!$B66,INDIRECT(\"'\"&A66&\"'!$10:$10\"),0)),0)","v":0},null,null,{"$f":"IFERROR(INDEX(INDIRECT(\"'\"&A66&\"'!$18:$50\"),MATCH($BK$1,INDIRECT(\"'\"&A66&\"'!$A$18:$A$50\"),0),MATCH(Parts!$B66,INDIRECT(\"'\"&A66&\"'!$10:$10\"),0)),0)","v":0},null,null,{"$f":"IFERROR(INDEX(INDIRECT(\"'\"&A66&\"'!$18:$50\"),MATCH($BN$1,INDIRECT(\"'\"&A66&\"'!$A$18:$A$50\"),0),MATCH(Parts!$B66,INDIRECT(\"'\"&A66&\"'!$10:$10\"),0)),0)","v":0},null,null,{"$f":"IFERROR(INDEX(INDIRECT(\"'\"&A66&\"'!$18:$50\"),MATCH($BQ$1,INDIRECT(\"'\"&A66&\"'!$A$18:$A$50\"),0),MATCH(Parts!$B66,INDIRECT(\"'\"&A66&\"'!$10:$10\"),0)),0)","v":0},null,null,{"$f":"IFERROR(INDEX(INDIRECT(\"'\"&A66&\"'!$18:$50\"),MATCH($BT$1,INDIRECT(\"'\"&A66&\"'!$A$18:$A$50\"),0),MATCH(Parts!$B66,INDIRECT(\"'\"&A66&\"'!$10:$10\"),0)),0)","v":0},null,null,{"$f":"IFERROR(INDEX(INDIRECT(\"'\"&A66&\"'!$18:$50\"),MATCH($BW$1,INDIRECT(\"'\"&A66&\"'!$A$18:$A$50\"),0),MATCH(Parts!$B66,INDIRECT(\"'\"&A66&\"'!$10:$10\"),0)),0)","v":0},null,null,{"$f":"IFERROR(INDEX(INDIRECT(\"'\"&A66&\"'!$18:$50\"),MATCH($BZ$1,INDIRECT(\"'\"&A66&\"'!$A$18:$A$50\"),0),MATCH(Parts!$B66,INDIRECT(\"'\"&A66&\"'!$10:$10\"),0)),0)","v":0},null,null,{"$f":"IFERROR(INDEX(INDIRECT(\"'\"&A66&\"'!$18:$50\"),MATCH($CC$1,INDIRECT(\"'\"&A66&\"'!$A$18:$A$50\"),0),MATCH(Parts!$B66,INDIRECT(\"'\"&A66&\"'!$10:$10\"),0)),0)","v":0},null,null,{"$f":"IFERROR(INDEX(INDIRECT(\"'\"&A66&\"'!$18:$50\"),MATCH($CF$1,INDIRECT(\"'\"&A66&\"'!$A$18:$A$50\"),0),MATCH(Parts!$B66,INDIRECT(\"'\"&A66&\"'!$10:$10\"),0)),0)","v":0},null,null,{"$f":"IFERROR(INDEX(INDIRECT(\"'\"&A66&\"'!$18:$50\"),MATCH($CI$1,INDIRECT(\"'\"&A66&\"'!$A$18:$A$50\"),0),MATCH(Parts!$B66,INDIRECT(\"'\"&A66&\"'!$10:$10\"),0)),0)","v":0},null,null,{"$f":"IFERROR(INDEX(INDIRECT(\"'\"&A66&\"'!$18:$50\"),MATCH($CL$1,INDIRECT(\"'\"&A66&\"'!$A$18:$A$50\"),0),MATCH(Parts!$B66,INDIRECT(\"'\"&A66&\"'!$10:$10\"),0)),0)","v":0},null,null,{"$f":"IFERROR(INDEX(INDIRECT(\"'\"&A66&\"'!$18:$50\"),MATCH($CO$1,INDIRECT(\"'\"&A66&\"'!$A$18:$A$50\"),0),MATCH(Parts!$B66,INDIRECT(\"'\"&A66&\"'!$10:$10\"),0)),0)","v":0},null,null,{"$f":"IFERROR(INDEX(INDIRECT(\"'\"&A66&\"'!$18:$50\"),MATCH($CR$1,INDIRECT(\"'\"&A66&\"'!$A$18:$A$50\"),0),MATCH(Parts!$B66,INDIRECT(\"'\"&A66&\"'!$10:$10\"),0)),0)","v":0},null,null,{"$f":"IFERROR(INDEX(INDIRECT(\"'\"&A66&\"'!$18:$50\"),MATCH($CU$1,INDIRECT(\"'\"&A66&\"'!$A$18:$A$50\"),0),MATCH(Parts!$B66,INDIRECT(\"'\"&A66&\"'!$10:$10\"),0)),0)","v":0},null,null,{"$f":"IFERROR(INDEX(INDIRECT(\"'\"&A66&\"'!$18:$50\"),MATCH($CX$1,INDIRECT(\"'\"&A66&\"'!$A$18:$A$50\"),0),MATCH(Parts!$B66,INDIRECT(\"'\"&A66&\"'!$10:$10\"),0)),0)","v":0},null,null,{"$f":"IFERROR(INDEX(INDIRECT(\"'\"&A66&\"'!$18:$50\"),MATCH($DA$1,INDIRECT(\"'\"&A66&\"'!$A$18:$A$50\"),0),MATCH(Parts!$B66,INDIRECT(\"'\"&A66&\"'!$10:$10\"),0)),0)","v":0},null,null,{"$f":"IFERROR(INDEX(INDIRECT(\"'\"&A66&\"'!$18:$50\"),MATCH($DD$1,INDIRECT(\"'\"&A66&\"'!$A$18:$A$50\"),0),MATCH(Parts!$B66,INDIRECT(\"'\"&A66&\"'!$10:$10\"),0)),0)","v":0},null,null,{"$f":"IFERROR(INDEX(INDIRECT(\"'\"&A66&\"'!$18:$50\"),MATCH($DG$1,INDIRECT(\"'\"&A66&\"'!$A$18:$A$50\"),0),MATCH(Parts!$B66,INDIRECT(\"'\"&A66&\"'!$10:$10\"),0)),0)","v":0},null,null,{"$f":"IFERROR(INDEX(INDIRECT(\"'\"&A66&\"'!$18:$50\"),MATCH($DJ$1,INDIRECT(\"'\"&A66&\"'!$A$18:$A$50\"),0),MATCH(Parts!$B66,INDIRECT(\"'\"&A66&\"'!$10:$10\"),0)),0)","v":0},null,null,{"$f":"IFERROR(INDEX(INDIRECT(\"'\"&A66&\"'!$18:$50\"),MATCH($DM$1,INDIRECT(\"'\"&A66&\"'!$A$18:$A$50\"),0),MATCH(Parts!$B66,INDIRECT(\"'\"&A66&\"'!$10:$10\"),0)),0)","v":0},null,null,{"$f":"IFERROR(INDEX(INDIRECT(\"'\"&A66&\"'!$18:$50\"),MATCH($DP$1,INDIRECT(\"'\"&A66&\"'!$A$18:$A$50\"),0),MATCH(Parts!$B66,INDIRECT(\"'\"&A66&\"'!$10:$10\"),0)),0)","v":0},null,null,{"$f":"IFERROR(INDEX(INDIRECT(\"'\"&A66&\"'!$18:$50\"),MATCH($DS$1,INDIRECT(\"'\"&A66&\"'!$A$18:$A$50\"),0),MATCH(Parts!$B66,INDIRECT(\"'\"&A66&\"'!$10:$10\"),0)),0)","v":0},null,null,{"$f":"IFERROR(INDEX(INDIRECT(\"'\"&A66&\"'!$18:$50\"),MATCH($DV$1,INDIRECT(\"'\"&A66&\"'!$A$18:$A$50\"),0),MATCH(Parts!$B66,INDIRECT(\"'\"&A66&\"'!$10:$10\"),0)),0)","v":0},null,null,{"$f":"IFERROR(INDEX(INDIRECT(\"'\"&A66&\"'!$18:$50\"),MATCH($DY$1,INDIRECT(\"'\"&A66&\"'!$A$18:$A$50\"),0),MATCH(Parts!$B66,INDIRECT(\"'\"&A66&\"'!$10:$10\"),0)),0)","v":0},null,null,{"$f":"IFERROR(INDEX(INDIRECT(\"'\"&A66&\"'!$18:$50\"),MATCH($EB$1,INDIRECT(\"'\"&A66&\"'!$A$18:$A$50\"),0),MATCH(Parts!$B66,INDIRECT(\"'\"&A66&\"'!$10:$10\"),0)),0)","v":0},null,null,{"$f":"IFERROR(INDEX(INDIRECT(\"'\"&A66&\"'!$18:$50\"),MATCH($EE$1,INDIRECT(\"'\"&A66&\"'!$A$18:$A$50\"),0),MATCH(Parts!$B66,INDIRECT(\"'\"&A66&\"'!$10:$10\"),0)),0)","v":0},null,null,{"$f":"IFERROR(INDEX(INDIRECT(\"'\"&A66&\"'!$18:$50\"),MATCH($EH$1,INDIRECT(\"'\"&A66&\"'!$A$18:$A$50\"),0),MATCH(Parts!$B66,INDIRECT(\"'\"&A66&\"'!$10:$10\"),0)),0)","v":0},null,"24V Surge Protector ELSP15: 110.00USD",{"$f":"IFERROR(INDEX(INDIRECT(\"'\"&A66&\"'!$18:$50\"),MATCH($EK$1,INDIRECT(\"'\"&A66&\"'!$A$18:$A$50\"),0),MATCH(Parts!$B66,INDIRECT(\"'\"&A66&\"'!$10:$10\"),0)),0)","v":1},110]
[{"$f":"PQS!A69","v":"SDD"},{"$f":"PQS!B69","v":"E003/053"},{"$f":"PQS!E69","v":"VLS 094 SDD*"},{"$f":"PQS!P69","v":"€"},465.27000000000004,"COMPRESSOR, SECOP BD35K 101Z0211 8-036510214",{"$f":"IFERROR(INDEX(INDIRECT(\"'\"&A67&\"'!$18:$50\"),MATCH(Parts!F$1,INDIRECT(\"'\"&A67&\"'!$A$18:$A$50\"),0),MATCH(Parts!$B67,INDIRECT(\"'\"&A67&\"'!$10:$10\"),0)),0)","v":1},245,"THERMOSTAT 7020274",{"$f":"IFERROR(INDEX(INDIRECT(\"'\"&A67&\"'!$18:$50\"),MATCH($I$1,INDIRECT(\"'\"&A67&\"'!$A$18:$A$50\"),0),MATCH(Parts!$B67,INDIRECT(\"'\"&A67&\"'!$10:$10\"),0)),0)","v":1},41.2,"Electronics for BD35K compressor, ECU 6520258",{"$f":"IFERROR(INDEX(INDIRECT(\"'\"&A67&\"'!$18:$50\"),MATCH($L$1,INDIRECT(\"'\"&A67&\"'!$A$18:$A$50\"),0),MATCH(Parts!$B67,INDIRECT(\"'\"&A67&\"'!$10:$10\"),0)),0)","v":1},112.29,null,{"$f":"IFERROR(INDEX(INDIRECT(\"'\"&A67&\"'!$18:$50\"),MATCH($O$1,INDIRECT(\"'\"&A67&\"'!$A$18:$A$50\"),0),MATCH(Parts!$B67,INDIRECT(\"'\"&A67&\"'!$10:$10\"),0)),0)","v":0},null,null,{"$f":"IFERROR(INDEX(INDIRECT(\"'\"&A67&\"'!$18:$50\"),MATCH($R$1,INDIRECT(\"'\"&A67&\"'!$A$18:$A$50\"),0),MATCH(Parts!$B67,INDIRECT(\"'\"&A67&\"'!$10:$10\"),0)),0)","v":0},null,null,{"$f":"IFERROR(INDEX(INDIRECT(\"'\"&A67&\"'!$18:$50\"),MATCH($U$1,INDIRECT(\"'\"&A67&\"'!$A$18:$A$50\"),0),MATCH(Parts!$B67,INDIRECT(\"'\"&A67&\"'!$10:$10\"),0)),0)","v":0},null,"FAN 7090099",{"$f":"IFERROR(INDEX(INDIRECT(\"'\"&A67&\"'!$18:$50\"),MATCH($X$1,INDIRECT(\"'\"&A67&\"'!$A$18:$A$50\"),0),MATCH(Parts!$B67,INDIRECT(\"'\"&A67&\"'!$10:$10\"),0)),0)","v":1},17.48,null,{"$f":"IFERROR(INDEX(INDIRECT(\"'\"&A67&\"'!$18:$50\"),MATCH($AA$1,INDIRECT(\"'\"&A67&\"'!$A$18:$A$50\"),0),MATCH(Parts!$B67,INDIRECT(\"'\"&A67&\"'!$10:$10\"),0)),0)","v":0},null,null,{"$f":"IFERROR(INDEX(INDIRECT(\"'\"&A67&\"'!$18:$50\"),MATCH($AD$1,INDIRECT(\"'\"&A67&\"'!$A$18:$A$50\"),0),MATCH(Parts!$B67,INDIRECT(\"'\"&A67&\"'!$10:$10\"),0)),0)","v":0},null,null,{"$f":"IFERROR(INDEX(INDIRECT(\"'\"&A67&\"'!$18:$50\"),MATCH($AG$1,INDIRECT(\"'\"&A67&\"'!$A$18:$A$50\"),0),MATCH(Parts!$B67,INDIRECT(\"'\"&A67&\"'!$10:$10\"),0)),0)","v":0},null,null,{"$f":"IFERROR(INDEX(INDIRECT(\"'\"&A67&\"'!$18:$50\"),MATCH($AJ$1,INDIRECT(\"'\"&A67&\"'!$A$18:$A$50\"),0),MATCH(Parts!$B67,INDIRECT(\"'\"&A67&\"'!$10:$10\"),0)),0)","v":0},null,null,{"$f":"IFERROR(INDEX(INDIRECT(\"'\"&A67&\"'!$18:$50\"),MATCH($AM$1,INDIRECT(\"'\"&A67&\"'!$A$18:$A$50\"),0),MATCH(Parts!$B67,INDIRECT(\"'\"&A67&\"'!$10:$10\"),0)),0)","v":0},null,null,{"$f":"IFERROR(INDEX(INDIRECT(\"'\"&A67&\"'!$18:$50\"),MATCH($AP$1,INDIRECT(\"'\"&A67&\"'!$A$18:$A$50\"),0),MATCH(Parts!$B67,INDIRECT(\"'\"&A67&\"'!$10:$10\"),0)),0)","v":0},null,"BASKET FOR VACCINE STORAGE 3510036",{"$f":"IFERROR(INDEX(INDIRECT(\"'\"&A67&\"'!$18:$50\"),MATCH($AS$1,INDIRECT(\"'\"&A67&\"'!$A$18:$A$50\"),0),MATCH(Parts!$B67,INDIRECT(\"'\"&A67&\"'!$10:$10\"),0)),0)","v":1},16.09,null,{"$f":"IFERROR(INDEX(INDIRECT(\"'\"&A67&\"'!$18:$50\"),MATCH($AV$1,INDIRECT(\"'\"&A67&\"'!$A$18:$A$50\"),0),MATCH(Parts!$B67,INDIRECT(\"'\"&A67&\"'!$10:$10\"),0)),0)","v":0},null,null,{"$f":"IFERROR(INDEX(INDIRECT(\"'\"&A67&\"'!$18:$50\"),MATCH($AY$1,INDIRECT(\"'\"&A67&\"'!$A$18:$A$50\"),0),MATCH(Parts!$B67,INDIRECT(\"'\"&A67&\"'!$10:$10\"),0)),0)","v":0},null,null,{"$f":"IFERROR(INDEX(INDIRECT(\"'\"&A67&\"'!$18:$50\"),MATCH($BB$1,INDIRECT(\"'\"&A67&\"'!$A$18:$A$50\"),0),MATCH(Parts!$B67,INDIRECT(\"'\"&A67&\"'!$10:$10\"),0)),0)","v":0},null,null,{"$f":"IFERROR(INDEX(INDIRECT(\"'\"&A67&\"'!$18:$50\"),MATCH($BE$1,INDIRECT(\"'\"&A67&\"'!$A$18:$A$50\"),0),MATCH(Parts!$B67,INDIRECT(\"'\"&A67&\"'!$10:$10\"),0)),0)","v":0},null,"FILTER/DRIER TYPE XH 9 (20 GRS) 0-6538001",{"$f":"IFERROR(INDEX(INDIRECT(\"'\"&A67&\"'!$18:$50\"),MATCH($BH$1,INDIRECT(\"'\"&A67&\"'!$A$18:$A$50\"),0),MATCH(Parts!$B67,INDIRECT(\"'\"&A67&\"'!$10:$10\"),0)),0)","v":1},3.84,null,{"$f":"IFERROR(INDEX(INDIRECT(\"'\"&A67&\"'!$18:$50\"),MATCH($BK$1,INDIRECT(\"'\"&A67&\"'!$A$18:$A$50\"),0),MATCH(Parts!$B67,INDIRECT(\"'\"&A67&\"'!$10:$10\"),0)),0)","v":0},null,null,{"$f":"IFERROR(INDEX(INDIRECT(\"'\"&A67&\"'!$18:$50\"),MATCH($BN$1,INDIRECT(\"'\"&A67&\"'!$A$18:$A$50\"),0),MATCH(Parts!$B67,INDIRECT(\"'\"&A67&\"'!$10:$10\"),0)),0)","v":0},null,"HINGE WITH SPRING 1510029",{"$f":"IFERROR(INDEX(INDIRECT(\"'\"&A67&\"'!$18:$50\"),MATCH($BQ$1,INDIRECT(\"'\"&A67&\"'!$A$18:$A$50\"),0),MATCH(Parts!$B67,INDIRECT(\"'\"&A67&\"'!$10:$10\"),0)),0)","v":1},8.85,null,{"$f":"IFERROR(INDEX(INDIRECT(\"'\"&A67&\"'!$18:$50\"),MATCH($BT$1,INDIRECT(\"'\"&A67&\"'!$A$18:$A$50\"),0),MATCH(Parts!$B67,INDIRECT(\"'\"&A67&\"'!$10:$10\"),0)),0)","v":0},null,null,{"$f":"IFERROR(INDEX(INDIRECT(\"'\"&A67&\"'!$18:$50\"),MATCH($BW$1,INDIRECT(\"'\"&A67&\"'!$A$18:$A$50\"),0),MATCH(Parts!$B67,INDIRECT(\"'\"&A67&\"'!$10:$10\"),0)),0)","v":0},null,"THERMOMETER 7020287-03",{"$f":"IFERROR(INDEX(INDIRECT(\"'\"&A67&\"'!$18:$50\"),MATCH($BZ$1,INDIRECT(\"'\"&A67&\"'!$A$18:$A$50\"),0),MATCH(Parts!$B67,INDIRECT(\"'\"&A67&\"'!$10:$10\"),0)),0)","v":1},13.17,null,{"$f":"IFERROR(INDEX(INDIRECT(\"'\"&A67&\"'!$18:$50\"),MATCH($CC$1,INDIRECT(\"'\"&A67&\"'!$A$18:$A$50\"),0),MATCH(Parts!$B67,INDIRECT(\"'\"&A67&\"'!$10:$10\"),0)),0)","v":0},null,"HANDLE WITH LOCK AND KEY 304090501",{"$f":"IFERROR(INDEX(INDIRECT(\"'\"&A67&\"'!$18:$50\"),MATCH($CF$1,INDIRECT(\"'\"&A67&\"'!$A$18:$A$50\"),0),MATCH(Parts!$B67,INDIRECT(\"'\"&A67&\"'!$10:$10\"),0)),0)","v":1},7.35,null,{"$f":"IFERROR(INDEX(INDIRECT(\"'\"&A67&\"'!$18:$50\"),MATCH($CI$1,INDIRECT(\"'\"&A67&\"'!$A$18:$A$50\"),0),MATCH(Parts!$B67,INDIRECT(\"'\"&A67&\"'!$10:$10\"),0)),0)","v":0},null,null,{"$f":"IFERROR(INDEX(INDIRECT(\"'\"&A67&\"'!$18:$50\"),MATCH($CL$1,INDIRECT(\"'\"&A67&\"'!$A$18:$A$50\"),0),MATCH(Parts!$B67,INDIRECT(\"'\"&A67&\"'!$10:$10\"),0)),0)","v":0},null,null,{"$f":"IFERROR(INDEX(INDIRECT(\"'\"&A67&\"'!$18:$50\"),MATCH($CO$1,INDIRECT(\"'\"&A67&\"'!$A$18:$A$50\"),0),MATCH(Parts!$B67,INDIRECT(\"'\"&A67&\"'!$10:$10\"),0)),0)","v":0},null,null,{"$f":"IFERROR(INDEX(INDIRECT(\"'\"&A67&\"'!$18:$50\"),MATCH($CR$1,INDIRECT(\"'\"&A67&\"'!$A$18:$A$50\"),0),MATCH(Parts!$B67,INDIRECT(\"'\"&A67&\"'!$10:$10\"),0)),0)","v":0},null,null,{"$f":"IFERROR(INDEX(INDIRECT(\"'\"&A67&\"'!$18:$50\"),MATCH($CU$1,INDIRECT(\"'\"&A67&\"'!$A$18:$A$50\"),0),MATCH(Parts!$B67,INDIRECT(\"'\"&A67&\"'!$10:$10\"),0)),0)","v":0},null,null,{"$f":"IFERROR(INDEX(INDIRECT(\"'\"&A67&\"'!$18:$50\"),MATCH($CX$1,INDIRECT(\"'\"&A67&\"'!$A$18:$A$50\"),0),MATCH(Parts!$B67,INDIRECT(\"'\"&A67&\"'!$10:$10\"),0)),0)","v":0},null,null,{"$f":"IFERROR(INDEX(INDIRECT(\"'\"&A67&\"'!$18:$50\"),MATCH($DA$1,INDIRECT(\"'\"&A67&\"'!$A$18:$A$50\"),0),MATCH(Parts!$B67,INDIRECT(\"'\"&A67&\"'!$10:$10\"),0)),0)","v":0},null,null,{"$f":"IFERROR(INDEX(INDIRECT(\"'\"&A67&\"'!$18:$50\"),MATCH($DD$1,INDIRECT(\"'\"&A67&\"'!$A$18:$A$50\"),0),MATCH(Parts!$B67,INDIRECT(\"'\"&A67&\"'!$10:$10\"),0)),0)","v":0},null,null,{"$f":"IFERROR(INDEX(INDIRECT(\"'\"&A67&\"'!$18:$50\"),MATCH($DG$1,INDIRECT(\"'\"&A67&\"'!$A$18:$A$50\"),0),MATCH(Parts!$B67,INDIRECT(\"'\"&A67&\"'!$10:$10\"),0)),0)","v":0},null,null,{"$f":"IFERROR(INDEX(INDIRECT(\"'\"&A67&\"'!$18:$50\"),MATCH($DJ$1,INDIRECT(\"'\"&A67&\"'!$A$18:$A$50\"),0),MATCH(Parts!$B67,INDIRECT(\"'\"&A67&\"'!$10:$10\"),0)),0)","v":0},null,null,{"$f":"IFERROR(INDEX(INDIRECT(\"'\"&A67&\"'!$18:$50\"),MATCH($DM$1,INDIRECT(\"'\"&A67&\"'!$A$18:$A$50\"),0),MATCH(Parts!$B67,INDIRECT(\"'\"&A67&\"'!$10:$10\"),0)),0)","v":0},null,null,{"$f":"IFERROR(INDEX(INDIRECT(\"'\"&A67&\"'!$18:$50\"),MATCH($DP$1,INDIRECT(\"'\"&A67&\"'!$A$18:$A$50\"),0),MATCH(Parts!$B67,INDIRECT(\"'\"&A67&\"'!$10:$10\"),0)),0)","v":0},null,null,{"$f":"IFERROR(INDEX(INDIRECT(\"'\"&A67&\"'!$18:$50\"),MATCH($DS$1,INDIRECT(\"'\"&A67&\"'!$A$18:$A$50\"),0),MATCH(Parts!$B67,INDIRECT(\"'\"&A67&\"'!$10:$10\"),0)),0)","v":0},null,null,{"$f":"IFERROR(INDEX(INDIRECT(\"'\"&A67&\"'!$18:$50\"),MATCH($DV$1,INDIRECT(\"'\"&A67&\"'!$A$18:$A$50\"),0),MATCH(Parts!$B67,INDIRECT(\"'\"&A67&\"'!$10:$10\"),0)),0)","v":0},null,null,{"$f":"IFERROR(INDEX(INDIRECT(\"'\"&A67&\"'!$18:$50\"),MATCH($DY$1,INDIRECT(\"'\"&A67&\"'!$A$18:$A$50\"),0),MATCH(Parts!$B67,INDIRECT(\"'\"&A67&\"'!$10:$10\"),0)),0)","v":0},null,null,{"$f":"IFERROR(INDEX(INDIRECT(\"'\"&A67&\"'!$18:$50\"),MATCH($EB$1,INDIRECT(\"'\"&A67&\"'!$A$18:$A$50\"),0),MATCH(Parts!$B67,INDIRECT(\"'\"&A67&\"'!$10:$10\"),0)),0)","v":0},null,null,{"$f":"IFERROR(INDEX(INDIRECT(\"'\"&A67&\"'!$18:$50\"),MATCH($EE$1,INDIRECT(\"'\"&A67&\"'!$A$18:$A$50\"),0),MATCH(Parts!$B67,INDIRECT(\"'\"&A67&\"'!$10:$10\"),0)),0)","v":0},null,null,{"$f":"IFERROR(INDEX(INDIRECT(\"'\"&A67&\"'!$18:$50\"),MATCH($EH$1,INDIRECT(\"'\"&A67&\"'!$A$18:$A$50\"),0),MATCH(Parts!$B67,INDIRECT(\"'\"&A67&\"'!$10:$10\"),0)),0)","v":0},null,null,{"$f":"IFERROR(INDEX(INDIRECT(\"'\"&A67&\"'!$18:$50\"),MATCH($EK$1,INDIRECT(\"'\"&A67&\"'!$A$18:$A$50\"),0),MATCH(Parts!$B67,INDIRECT(\"'\"&A67&\"'!$10:$10\"),0)),0)","v":0}]
[{"$f":"PQS!A70","v":"SDD"},{"$f":"PQS!B70","v":"E003/054"},{"$f":"PQS!E70","v":"VLS 154 SDD*"},{"$f":"PQS!P70","v":"€"},458.21000000000004,"COMPRESSOR, SECOP BD35K 101Z0211  8-036510214",{"$f":"IFERROR(INDEX(INDIRECT(\"'\"&A68&\"'!$18:$50\"),MATCH(Parts!F$1,INDIRECT(\"'\"&A68&\"'!$A$18:$A$50\"),0),MATCH(Parts!$B68,INDIRECT(\"'\"&A68&\"'!$10:$10\"),0)),0)","v":1},245,"THERMOSTAT 7020274",{"$f":"IFERROR(INDEX(INDIRECT(\"'\"&A68&\"'!$18:$50\"),MATCH($I$1,INDIRECT(\"'\"&A68&\"'!$A$18:$A$50\"),0),MATCH(Parts!$B68,INDIRECT(\"'\"&A68&\"'!$10:$10\"),0)),0)","v":1},41.2,"Electronics for BD35K compressor, ECU 6520258",{"$f":"IFERROR(INDEX(INDIRECT(\"'\"&A68&\"'!$18:$50\"),MATCH($L$1,INDIRECT(\"'\"&A68&\"'!$A$18:$A$50\"),0),MATCH(Parts!$B68,INDIRECT(\"'\"&A68&\"'!$10:$10\"),0)),0)","v":1},112.29,null,{"$f":"IFERROR(INDEX(INDIRECT(\"'\"&A68&\"'!$18:$50\"),MATCH($O$1,INDIRECT(\"'\"&A68&\"'!$A$18:$A$50\"),0),MATCH(Parts!$B68,INDIRECT(\"'\"&A68&\"'!$10:$10\"),0)),0)","v":0},null,null,{"$f":"IFERROR(INDEX(INDIRECT(\"'\"&A68&\"'!$18:$50\"),MATCH($R$1,INDIRECT(\"'\"&A68&\"'!$A$18:$A$50\"),0),MATCH(Parts!$B68,INDIRECT(\"'\"&A68&\"'!$10:$10\"),0)),0)","v":0},null,null,{"$f":"IFERROR(INDEX(INDIRECT(\"'\"&A68&\"'!$18:$50\"),MATCH($U$1,INDIRECT(\"'\"&A68&\"'!$A$18:$A$50\"),0),MATCH(Parts!$B68,INDIRECT(\"'\"&A68&\"'!$10:$10\"),0)),0)","v":0},null,"FAN 7090099",{"$f":"IFERROR(INDEX(INDIRECT(\"'\"&A68&\"'!$18:$50\"),MATCH($X$1,INDIRECT(\"'\"&A68&\"'!$A$18:$A$50\"),0),MATCH(Parts!$B68,INDIRECT(\"'\"&A68&\"'!$10:$10\"),0)),0)","v":1},17.48,null,{"$f":"IFERROR(INDEX(INDIRECT(\"'\"&A68&\"'!$18:$50\"),MATCH($AA$1,INDIRECT(\"'\"&A68&\"'!$A$18:$A$50\"),0),MATCH(Parts!$B68,INDIRECT(\"'\"&A68&\"'!$10:$10\"),0)),0)","v":0},null,null,{"$f":"IFERROR(INDEX(INDIRECT(\"'\"&A68&\"'!$18:$50\"),MATCH($AD$1,INDIRECT(\"'\"&A68&\"'!$A$18:$A$50\"),0),MATCH(Parts!$B68,INDIRECT(\"'\"&A68&\"'!$10:$10\"),0)),0)","v":0},null,null,{"$f":"IFERROR(INDEX(INDIRECT(\"'\"&A68&\"'!$18:$50\"),MATCH($AG$1,INDIRECT(\"'\"&A68&\"'!$A$18:$A$50\"),0),MATCH(Parts!$B68,INDIRECT(\"'\"&A68&\"'!$10:$10\"),0)),0)","v":0},null,null,{"$f":"IFERROR(INDEX(INDIRECT(\"'\"&A68&\"'!$18:$50\"),MATCH($AJ$1,INDIRECT(\"'\"&A68&\"'!$A$18:$A$50\"),0),MATCH(Parts!$B68,INDIRECT(\"'\"&A68&\"'!$10:$10\"),0)),0)","v":0},null,null,{"$f":"IFERROR(INDEX(INDIRECT(\"'\"&A68&\"'!$18:$50\"),MATCH($AM$1,INDIRECT(\"'\"&A68&\"'!$A$18:$A$50\"),0),MATCH(Parts!$B68,INDIRECT(\"'\"&A68&\"'!$10:$10\"),0)),0)","v":0},null,null,{"$f":"IFERROR(INDEX(INDIRECT(\"'\"&A68&\"'!$18:$50\"),MATCH($AP$1,INDIRECT(\"'\"&A68&\"'!$A$18:$A$50\"),0),MATCH(Parts!$B68,INDIRECT(\"'\"&A68&\"'!$10:$10\"),0)),0)","v":0},null,"TOP BASKET",{"$f":"IFERROR(INDEX(INDIRECT(\"'\"&A68&\"'!$18:$50\"),MATCH($AS$1,INDIRECT(\"'\"&A68&\"'!$A$18:$A$50\"),0),MATCH(Parts!$B68,INDIRECT(\"'\"&A68&\"'!$10:$10\"),0)),0)","v":1},9.0299999999999994,null,{"$f":"IFERROR(INDEX(INDIRECT(\"'\"&A68&\"'!$18:$50\"),MATCH($AV$1,INDIRECT(\"'\"&A68&\"'!$A$18:$A$50\"),0),MATCH(Parts!$B68,INDIRECT(\"'\"&A68&\"'!$10:$10\"),0)),0)","v":0},null,null,{"$f":"IFERROR(INDEX(INDIRECT(\"'\"&A68&\"'!$18:$50\"),MATCH($AY$1,INDIRECT(\"'\"&A68&\"'!$A$18:$A$50\"),0),MATCH(Parts!$B68,INDIRECT(\"'\"&A68&\"'!$10:$10\"),0)),0)","v":0},null,null,{"$f":"IFERROR(INDEX(INDIRECT(\"'\"&A68&\"'!$18:$50\"),MATCH($BB$1,INDIRECT(\"'\"&A68&\"'!$A$18:$A$50\"),0),MATCH(Parts!$B68,INDIRECT(\"'\"&A68&\"'!$10:$10\"),0)),0)","v":0},null,null,{"$f":"IFERROR(INDEX(INDIRECT(\"'\"&A68&\"'!$18:$50\"),MATCH($BE$1,INDIRECT(\"'\"&A68&\"'!$A$18:$A$50\"),0),MATCH(Parts!$B68,INDIRECT(\"'\"&A68&\"'!$10:$10\"),0)),0)","v":0},null,"FILTER/DRIER TYPE XH 9 (20 GRS) 0-6538001",{"$f":"IFERROR(INDEX(INDIRECT(\"'\"&A68&\"'!$18:$50\"),MATCH($BH$1,INDIRECT(\"'\"&A68&\"'!$A$18:$A$50\"),0),MATCH(Parts!$B68,INDIRECT(\"'\"&A68&\"'!$10:$10\"),0)),0)","v":1},3.84,null,{"$f":"IFERROR(INDEX(INDIRECT(\"'\"&A68&\"'!$18:$50\"),MATCH($BK$1,INDIRECT(\"'\"&A68&\"'!$A$18:$A$50\"),0),MATCH(Parts!$B68,INDIRECT(\"'\"&A68&\"'!$10:$10\"),0)),0)","v":0},null,null,{"$f":"IFERROR(INDEX(INDIRECT(\"'\"&A68&\"'!$18:$50\"),MATCH($BN$1,INDIRECT(\"'\"&A68&\"'!$A$18:$A$50\"),0),MATCH(Parts!$B68,INDIRECT(\"'\"&A68&\"'!$10:$10\"),0)),0)","v":0},null,"HINGE WITH SPRING 1510029",{"$f":"IFERROR(INDEX(INDIRECT(\"'\"&A68&\"'!$18:$50\"),MATCH($BQ$1,INDIRECT(\"'\"&A68&\"'!$A$18:$A$50\"),0),MATCH(Parts!$B68,INDIRECT(\"'\"&A68&\"'!$10:$10\"),0)),0)","v":1},8.85,null,{"$f":"IFERROR(INDEX(INDIRECT(\"'\"&A68&\"'!$18:$50\"),MATCH($BT$1,INDIRECT(\"'\"&A68&\"'!$A$18:$A$50\"),0),MATCH(Parts!$B68,INDIRECT(\"'\"&A68&\"'!$10:$10\"),0)),0)","v":0},null,null,{"$f":"IFERROR(INDEX(INDIRECT(\"'\"&A68&\"'!$18:$50\"),MATCH($BW$1,INDIRECT(\"'\"&A68&\"'!$A$18:$A$50\"),0),MATCH(Parts!$B68,INDIRECT(\"'\"&A68&\"'!$10:$10\"),0)),0)","v":0},null,"THERMOMETER 7020287-03",{"$f":"IFERROR(INDEX(INDIRECT(\"'\"&A68&\"'!$18:$50\"),MATCH($BZ$1,INDIRECT(\"'\"&A68&\"'!$A$18:$A$50\"),0),MATCH(Parts!$B68,INDIRECT(\"'\"&A68&\"'!$10:$10\"),0)),0)","v":1},13.17,null,{"$f":"IFERROR(INDEX(INDIRECT(\"'\"&A68&\"'!$18:$50\"),MATCH($CC$1,INDIRECT(\"'\"&A68&\"'!$A$18:$A$50\"),0),MATCH(Parts!$B68,INDIRECT(\"'\"&A68&\"'!$10:$10\"),0)),0)","v":0},null,"HANDLE WITH LOCK AND KEY 304090501",{"$f":"IFERROR(INDEX(INDIRECT(\"'\"&A68&\"'!$18:$50\"),MATCH($CF$1,INDIRECT(\"'\"&A68&\"'!$A$18:$A$50\"),0),MATCH(Parts!$B68,INDIRECT(\"'\"&A68&\"'!$10:$10\"),0)),0)","v":1},7.35,null,{"$f":"IFERROR(INDEX(INDIRECT(\"'\"&A68&\"'!$18:$50\"),MATCH($CI$1,INDIRECT(\"'\"&A68&\"'!$A$18:$A$50\"),0),MATCH(Parts!$B68,INDIRECT(\"'\"&A68&\"'!$10:$10\"),0)),0)","v":0},null,null,{"$f":"IFERROR(INDEX(INDIRECT(\"'\"&A68&\"'!$18:$50\"),MATCH($CL$1,INDIRECT(\"'\"&A68&\"'!$A$18:$A$50\"),0),MATCH(Parts!$B68,INDIRECT(\"'\"&A68&\"'!$10:$10\"),0)),0)","v":0},null,null,{"$f":"IFERROR(INDEX(INDIRECT(\"'\"&A68&\"'!$18:$50\"),MATCH($CO$1,INDIRECT(\"'\"&A68&\"'!$A$18:$A$50\"),0),MATCH(Parts!$B68,INDIRECT(\"'\"&A68&\"'!$10:$10\"),0)),0)","v":0},null,null,{"$f":"IFERROR(INDEX(INDIRECT(\"'\"&A68&\"'!$18:$50\"),MATCH($CR$1,INDIRECT(\"'\"&A68&\"'!$A$18:$A$50\"),0),MATCH(Parts!$B68,INDIRECT(\"'\"&A68&\"'!$10:$10\"),0)),0)","v":0},null,null,{"$f":"IFERROR(INDEX(INDIRECT(\"'\"&A68&\"'!$18:$50\"),MATCH($CU$1,INDIRECT(\"'\"&A68&\"'!$A$18:$A$50\"),0),MATCH(Parts!$B68,INDIRECT(\"'\"&A68&\"'!$10:$10\"),0)),0)","v":0},null,null,{"$f":"IFERROR(INDEX(INDIRECT(\"'\"&A68&\"'!$18:$50\"),MATCH($CX$1,INDIRECT(\"'\"&A68&\"'!$A$18:$A$50\"),0),MATCH(Parts!$B68,INDIRECT(\"'\"&A68&\"'!$10:$10\"),0)),0)","v":0},null,null,{"$f":"IFERROR(INDEX(INDIRECT(\"'\"&A68&\"'!$18:$50\"),MATCH($DA$1,INDIRECT(\"'\"&A68&\"'!$A$18:$A$50\"),0),MATCH(Parts!$B68,INDIRECT(\"'\"&A68&\"'!$10:$10\"),0)),0)","v":0},null,null,{"$f":"IFERROR(INDEX(INDIRECT(\"'\"&A68&\"'!$18:$50\"),MATCH($DD$1,INDIRECT(\"'\"&A68&\"'!$A$18:$A$50\"),0),MATCH(Parts!$B68,INDIRECT(\"'\"&A68&\"'!$10:$10\"),0)),0)","v":0},null,null,{"$f":"IFERROR(INDEX(INDIRECT(\"'\"&A68&\"'!$18:$50\"),MATCH($DG$1,INDIRECT(\"'\"&A68&\"'!$A$18:$A$50\"),0),MATCH(Parts!$B68,INDIRECT(\"'\"&A68&\"'!$10:$10\"),0)),0)","v":0},null,null,{"$f":"IFERROR(INDEX(INDIRECT(\"'\"&A68&\"'!$18:$50\"),MATCH($DJ$1,INDIRECT(\"'\"&A68&\"'!$A$18:$A$50\"),0),MATCH(Parts!$B68,INDIRECT(\"'\"&A68&\"'!$10:$10\"),0)),0)","v":0},null,null,{"$f":"IFERROR(INDEX(INDIRECT(\"'\"&A68&\"'!$18:$50\"),MATCH($DM$1,INDIRECT(\"'\"&A68&\"'!$A$18:$A$50\"),0),MATCH(Parts!$B68,INDIRECT(\"'\"&A68&\"'!$10:$10\"),0)),0)","v":0},null,null,{"$f":"IFERROR(INDEX(INDIRECT(\"'\"&A68&\"'!$18:$50\"),MATCH($DP$1,INDIRECT(\"'\"&A68&\"'!$A$18:$A$50\"),0),MATCH(Parts!$B68,INDIRECT(\"'\"&A68&\"'!$10:$10\"),0)),0)","v":0},null,null,{"$f":"IFERROR(INDEX(INDIRECT(\"'\"&A68&\"'!$18:$50\"),MATCH($DS$1,INDIRECT(\"'\"&A68&\"'!$A$18:$A$50\"),0),MATCH(Parts!$B68,INDIRECT(\"'\"&A68&\"'!$10:$10\"),0)),0)","v":0},null,null,{"$f":"IFERROR(INDEX(INDIRECT(\"'\"&A68&\"'!$18:$50\"),MATCH($DV$1,INDIRECT(\"'\"&A68&\"'!$A$18:$A$50\"),0),MATCH(Parts!$B68,INDIRECT(\"'\"&A68&\"'!$10:$10\"),0)),0)","v":0},null,null,{"$f":"IFERROR(INDEX(INDIRECT(\"'\"&A68&\"'!$18:$50\"),MATCH($DY$1,INDIRECT(\"'\"&A68&\"'!$A$18:$A$50\"),0),MATCH(Parts!$B68,INDIRECT(\"'\"&A68&\"'!$10:$10\"),0)),0)","v":0},null,null,{"$f":"IFERROR(INDEX(INDIRECT(\"'\"&A68&\"'!$18:$50\"),MATCH($EB$1,INDIRECT(\"'\"&A68&\"'!$A$18:$A$50\"),0),MATCH(Parts!$B68,INDIRECT(\"'\"&A68&\"'!$10:$10\"),0)),0)","v":0},null,null,{"$f":"IFERROR(INDEX(INDIRECT(\"'\"&A68&\"'!$18:$50\"),MATCH($EE$1,INDIRECT(\"'\"&A68&\"'!$A$18:$A$50\"),0),MATCH(Parts!$B68,INDIRECT(\"'\"&A68&\"'!$10:$10\"),0)),0)","v":0},null,null,{"$f":"IFERROR(INDEX(INDIRECT(\"'\"&A68&\"'!$18:$50\"),MATCH($EH$1,INDIRECT(\"'\"&A68&\"'!$A$18:$A$50\"),0),MATCH(Parts!$B68,INDIRECT(\"'\"&A68&\"'!$10:$10\"),0)),0)","v":0},null,null,{"$f":"IFERROR(INDEX(INDIRECT(\"'\"&A68&\"'!$18:$50\"),MATCH($EK$1,INDIRECT(\"'\"&A68&\"'!$A$18:$A$50\"),0),MATCH(Parts!$B68,INDIRECT(\"'\"&A68&\"'!$10:$10\"),0)),0)","v":0}]
[{"$f":"PQS!A71","v":"SDD"},{"$f":"PQS!B71","v":"E003/055"},{"$f":"PQS!E71","v":"ZLF 30DC SDD*"},{"$f":"PQS!P71","v":"$"},709,"Compressor IMPC Æ7: 257.00 USD",{"$f":"IFERROR(INDEX(INDIRECT(\"'\"&A69&\"'!$18:$50\"),MATCH(Parts!F$1,INDIRECT(\"'\"&A69&\"'!$A$18:$A$50\"),0),MATCH(Parts!$B69,INDIRECT(\"'\"&A69&\"'!$10:$10\"),0)),0)","v":1},257,"Thermostat IMP012: 92.00 USD",{"$f":"IFERROR(INDEX(INDIRECT(\"'\"&A69&\"'!$18:$50\"),MATCH($I$1,INDIRECT(\"'\"&A69&\"'!$A$18:$A$50\"),0),MATCH(Parts!$B69,INDIRECT(\"'\"&A69&\"'!$10:$10\"),0)),0)","v":1},92,"Compressor controller IMP152: 164.00 USD",{"$f":"IFERROR(INDEX(INDIRECT(\"'\"&A69&\"'!$18:$50\"),MATCH($L$1,INDIRECT(\"'\"&A69&\"'!$A$18:$A$50\"),0),MATCH(Parts!$B69,INDIRECT(\"'\"&A69&\"'!$10:$10\"),0)),0)","v":1},164,null,{"$f":"IFERROR(INDEX(INDIRECT(\"'\"&A69&\"'!$18:$50\"),MATCH($O$1,INDIRECT(\"'\"&A69&\"'!$A$18:$A$50\"),0),MATCH(Parts!$B69,INDIRECT(\"'\"&A69&\"'!$10:$10\"),0)),0)","v":0},null,null,{"$f":"IFERROR(INDEX(INDIRECT(\"'\"&A69&\"'!$18:$50\"),MATCH($R$1,INDIRECT(\"'\"&A69&\"'!$A$18:$A$50\"),0),MATCH(Parts!$B69,INDIRECT(\"'\"&A69&\"'!$10:$10\"),0)),0)","v":0},null,null,{"$f":"IFERROR(INDEX(INDIRECT(\"'\"&A69&\"'!$18:$50\"),MATCH($U$1,INDIRECT(\"'\"&A69&\"'!$A$18:$A$50\"),0),MATCH(Parts!$B69,INDIRECT(\"'\"&A69&\"'!$10:$10\"),0)),0)","v":0},null,"Condenser IMP145: 53.00 USD\nFan IMP144: 33.00 USD",{"$f":"IFERROR(INDEX(INDIRECT(\"'\"&A69&\"'!$18:$50\"),MATCH($X$1,INDIRECT(\"'\"&A69&\"'!$A$18:$A$50\"),0),MATCH(Parts!$B69,INDIRECT(\"'\"&A69&\"'!$10:$10\"),0)),0)","v":1},{"$f":"53+33","v":86},null,{"$f":"IFERROR(INDEX(INDIRECT(\"'\"&A69&\"'!$18:$50\"),MATCH($AA$1,INDIRECT(\"'\"&A69&\"'!$A$18:$A$50\"),0),MATCH(Parts!$B69,INDIRECT(\"'\"&A69&\"'!$10:$10\"),0)),0)","v":0},null,null,{"$f":"IFERROR(INDEX(INDIRECT(\"'\"&A69&\"'!$18:$50\"),MATCH($AD$1,INDIRECT(\"'\"&A69&\"'!$A$18:$A$50\"),0),MATCH(Parts!$B69,INDIRECT(\"'\"&A69&\"'!$10:$10\"),0)),0)","v":0},null,null,{"$f":"IFERROR(INDEX(INDIRECT(\"'\"&A69&\"'!$18:$50\"),MATCH($AG$1,INDIRECT(\"'\"&A69&\"'!$A$18:$A$50\"),0),MATCH(Parts!$B69,INDIRECT(\"'\"&A69&\"'!$10:$10\"),0)),0)","v":0},null,null,{"$f":"IFERROR(INDEX(INDIRECT(\"'\"&A69&\"'!$18:$50\"),MATCH($AJ$1,INDIRECT(\"'\"&A69&\"'!$A$18:$A$50\"),0),MATCH(Parts!$B69,INDIRECT(\"'\"&A69&\"'!$10:$10\"),0)),0)","v":0},null,null,{"$f":"IFERROR(INDEX(INDIRECT(\"'\"&A69&\"'!$18:$50\"),MATCH($AM$1,INDIRECT(\"'\"&A69&\"'!$A$18:$A$50\"),0),MATCH(Parts!$B69,INDIRECT(\"'\"&A69&\"'!$10:$10\"),0)),0)","v":0},null,null,{"$f":"IFERROR(INDEX(INDIRECT(\"'\"&A69&\"'!$18:$50\"),MATCH($AP$1,INDIRECT(\"'\"&A69&\"'!$A$18:$A$50\"),0),MATCH(Parts!$B69,INDIRECT(\"'\"&A69&\"'!$10:$10\"),0)),0)","v":0},null,null,{"$f":"IFERROR(INDEX(INDIRECT(\"'\"&A69&\"'!$18:$50\"),MATCH($AS$1,INDIRECT(\"'\"&A69&\"'!$A$18:$A$50\"),0),MATCH(Parts!$B69,INDIRECT(\"'\"&A69&\"'!$10:$10\"),0)),0)","v":0},null,null,{"$f":"IFERROR(INDEX(INDIRECT(\"'\"&A69&\"'!$18:$50\"),MATCH($AV$1,INDIRECT(\"'\"&A69&\"'!$A$18:$A$50\"),0),MATCH(Parts!$B69,INDIRECT(\"'\"&A69&\"'!$10:$10\"),0)),0)","v":0},null,null,{"$f":"IFERROR(INDEX(INDIRECT(\"'\"&A69&\"'!$18:$50\"),MATCH($AY$1,INDIRECT(\"'\"&A69&\"'!$A$18:$A$50\"),0),MATCH(Parts!$B69,INDIRECT(\"'\"&A69&\"'!$10:$10\"),0)),0)","v":0},null,null,{"$f":"IFERROR(INDEX(INDIRECT(\"'\"&A69&\"'!$18:$50\"),MATCH($BB$1,INDIRECT(\"'\"&A69&\"'!$A$18:$A$50\"),0),MATCH(Parts!$B69,INDIRECT(\"'\"&A69&\"'!$10:$10\"),0)),0)","v":0},null,null,{"$f":"IFERROR(INDEX(INDIRECT(\"'\"&A69&\"'!$18:$50\"),MATCH($BE$1,INDIRECT(\"'\"&A69&\"'!$A$18:$A$50\"),0),MATCH(Parts!$B69,INDIRECT(\"'\"&A69&\"'!$10:$10\"),0)),0)","v":0},null,null,{"$f":"IFERROR(INDEX(INDIRECT(\"'\"&A69&\"'!$18:$50\"),MATCH($BH$1,INDIRECT(\"'\"&A69&\"'!$A$18:$A$50\"),0),MATCH(Parts!$B69,INDIRECT(\"'\"&A69&\"'!$10:$10\"),0)),0)","v":0},null,null,{"$f":"IFERROR(INDEX(INDIRECT(\"'\"&A69&\"'!$18:$50\"),MATCH($BK$1,INDIRECT(\"'\"&A69&\"'!$A$18:$A$50\"),0),MATCH(Parts!$B69,INDIRECT(\"'\"&A69&\"'!$10:$10\"),0)),0)","v":0},null,null,{"$f":"IFERROR(INDEX(INDIRECT(\"'\"&A69&\"'!$18:$50\"),MATCH($BN$1,INDIRECT(\"'\"&A69&\"'!$A$18:$A$50\"),0),MATCH(Parts!$B69,INDIRECT(\"'\"&A69&\"'!$10:$10\"),0)),0)","v":0},null,null,{"$f":"IFERROR(INDEX(INDIRECT(\"'\"&A69&\"'!$18:$50\"),MATCH($BQ$1,INDIRECT(\"'\"&A69&\"'!$A$18:$A$50\"),0),MATCH(Parts!$B69,INDIRECT(\"'\"&A69&\"'!$10:$10\"),0)),0)","v":0},null,null,{"$f":"IFERROR(INDEX(INDIRECT(\"'\"&A69&\"'!$18:$50\"),MATCH($BT$1,INDIRECT(\"'\"&A69&\"'!$A$18:$A$50\"),0),MATCH(Parts!$B69,INDIRECT(\"'\"&A69&\"'!$10:$10\"),0)),0)","v":0},null,null,{"$f":"IFERROR(INDEX(INDIRECT(\"'\"&A69&\"'!$18:$50\"),MATCH($BW$1,INDIRECT(\"'\"&A69&\"'!$A$18:$A$50\"),0),MATCH(Parts!$B69,INDIRECT(\"'\"&A69&\"'!$10:$10\"),0)),0)","v":0},null,null,{"$f":"IFERROR(INDEX(INDIRECT(\"'\"&A69&\"'!$18:$50\"),MATCH($BZ$1,INDIRECT(\"'\"&A69&\"'!$A$18:$A$50\"),0),MATCH(Parts!$B69,INDIRECT(\"'\"&A69&\"'!$10:$10\"),0)),0)","v":0},null,null,{"$f":"IFERROR(INDEX(INDIRECT(\"'\"&A69&\"'!$18:$50\"),MATCH($CC$1,INDIRECT(\"'\"&A69&\"'!$A$18:$A$50\"),0),MATCH(Parts!$B69,INDIRECT(\"'\"&A69&\"'!$10:$10\"),0)),0)","v":0},null,null,{"$f":"IFERROR(INDEX(INDIRECT(\"'\"&A69&\"'!$18:$50\"),MATCH($CF$1,INDIRECT(\"'\"&A69&\"'!$A$18:$A$50\"),0),MATCH(Parts!$B69,INDIRECT(\"'\"&A69&\"'!$10:$10\"),0)),0)","v":0},null,null,{"$f":"IFERROR(INDEX(INDIRECT(\"'\"&A69&\"'!$18:$50\"),MATCH($CI$1,INDIRECT(\"'\"&A69&\"'!$A$18:$A$50\"),0),MATCH(Parts!$B69,INDIRECT(\"'\"&A69&\"'!$10:$10\"),0)),0)","v":0},null,null,{"$f":"IFERROR(INDEX(INDIRECT(\"'\"&A69&\"'!$18:$50\"),MATCH($CL$1,INDIRECT(\"'\"&A69&\"'!$A$18:$A$50\"),0),MATCH(Parts!$B69,INDIRECT(\"'\"&A69&\"'!$10:$10\"),0)),0)","v":0},null,null,{"$f":"IFERROR(INDEX(INDIRECT(\"'\"&A69&\"'!$18:$50\"),MATCH($CO$1,INDIRECT(\"'\"&A69&\"'!$A$18:$A$50\"),0),MATCH(Parts!$B69,INDIRECT(\"'\"&A69&\"'!$10:$10\"),0)),0)","v":0},null,null,{"$f":"IFERROR(INDEX(INDIRECT(\"'\"&A69&\"'!$18:$50\"),MATCH($CR$1,INDIRECT(\"'\"&A69&\"'!$A$18:$A$50\"),0),MATCH(Parts!$B69,INDIRECT(\"'\"&A69&\"'!$10:$10\"),0)),0)","v":0},null,null,{"$f":"IFERROR(INDEX(INDIRECT(\"'\"&A69&\"'!$18:$50\"),MATCH($CU$1,INDIRECT(\"'\"&A69&\"'!$A$18:$A$50\"),0),MATCH(Parts!$B69,INDIRECT(\"'\"&A69&\"'!$10:$10\"),0)),0)","v":0},null,null,{"$f":"IFERROR(INDEX(INDIRECT(\"'\"&A69&\"'!$18:$50\"),MATCH($CX$1,INDIRECT(\"'\"&A69&\"'!$A$18:$A$50\"),0),MATCH(Parts!$B69,INDIRECT(\"'\"&A69&\"'!$10:$10\"),0)),0)","v":0},null,null,{"$f":"IFERROR(INDEX(INDIRECT(\"'\"&A69&\"'!$18:$50\"),MATCH($DA$1,INDIRECT(\"'\"&A69&\"'!$A$18:$A$50\"),0),MATCH(Parts!$B69,INDIRECT(\"'\"&A69&\"'!$10:$10\"),0)),0)","v":0},null,null,{"$f":"IFERROR(INDEX(INDIRECT(\"'\"&A69&\"'!$18:$50\"),MATCH($DD$1,INDIRECT(\"'\"&A69&\"'!$A$18:$A$50\"),0),MATCH(Parts!$B69,INDIRECT(\"'\"&A69&\"'!$10:$10\"),0)),0)","v":0},null,null,{"$f":"IFERROR(INDEX(INDIRECT(\"'\"&A69&\"'!$18:$50\"),MATCH($DG$1,INDIRECT(\"'\"&A69&\"'!$A$18:$A$50\"),0),MATCH(Parts!$B69,INDIRECT(\"'\"&A69&\"'!$10:$10\"),0)),0)","v":0},null,null,{"$f":"IFERROR(INDEX(INDIRECT(\"'\"&A69&\"'!$18:$50\"),MATCH($DJ$1,INDIRECT(\"'\"&A69&\"'!$A$18:$A$50\"),0),MATCH(Parts!$B69,INDIRECT(\"'\"&A69&\"'!$10:$10\"),0)),0)","v":0},null,null,{"$f":"IFERROR(INDEX(INDIRECT(\"'\"&A69&\"'!$18:$50\"),MATCH($DM$1,INDIRECT(\"'\"&A69&\"'!$A$18:$A$50\"),0),MATCH(Parts!$B69,INDIRECT(\"'\"&A69&\"'!$10:$10\"),0)),0)","v":0},null,null,{"$f":"IFERROR(INDEX(INDIRECT(\"'\"&A69&\"'!$18:$50\"),MATCH($DP$1,INDIRECT(\"'\"&A69&\"'!$A$18:$A$50\"),0),MATCH(Parts!$B69,INDIRECT(\"'\"&A69&\"'!$10:$10\"),0)),0)","v":0},null,null,{"$f":"IFERROR(INDEX(INDIRECT(\"'\"&A69&\"'!$18:$50\"),MATCH($DS$1,INDIRECT(\"'\"&A69&\"'!$A$18:$A$50\"),0),MATCH(Parts!$B69,INDIRECT(\"'\"&A69&\"'!$10:$10\"),0)),0)","v":0},null,null,{"$f":"IFERROR(INDEX(INDIRECT(\"'\"&A69&\"'!$18:$50\"),MATCH($DV$1,INDIRECT(\"'\"&A69&\"'!$A$18:$A$50\"),0),MATCH(Parts!$B69,INDIRECT(\"'\"&A69&\"'!$10:$10\"),0)),0)","v":0},null,null,{"$f":"IFERROR(INDEX(INDIRECT(\"'\"&A69&\"'!$18:$50\"),MATCH($DY$1,INDIRECT(\"'\"&A69&\"'!$A$18:$A$50\"),0),MATCH(Parts!$B69,INDIRECT(\"'\"&A69&\"'!$10:$10\"),0)),0)","v":0},null,null,{"$f":"IFERROR(INDEX(INDIRECT(\"'\"&A69&\"'!$18:$50\"),MATCH($EB$1,INDIRECT(\"'\"&A69&\"'!$A$18:$A$50\"),0),MATCH(Parts!$B69,INDIRECT(\"'\"&A69&\"'!$10:$10\"),0)),0)","v":0},null,null,{"$f":"IFERROR(INDEX(INDIRECT(\"'\"&A69&\"'!$18:$50\"),MATCH($EE$1,INDIRECT(\"'\"&A69&\"'!$A$18:$A$50\"),0),MATCH(Parts!$B69,INDIRECT(\"'\"&A69&\"'!$10:$10\"),0)),0)","v":0},null,null,{"$f":"IFERROR(INDEX(INDIRECT(\"'\"&A69&\"'!$18:$50\"),MATCH($EH$1,INDIRECT(\"'\"&A69&\"'!$A$18:$A$50\"),0),MATCH(Parts!$B69,INDIRECT(\"'\"&A69&\"'!$10:$10\"),0)),0)","v":0},null,"24V Surge protector ELSP15: 110.00 USD",{"$f":"IFERROR(INDEX(INDIRECT(\"'\"&A69&\"'!$18:$50\"),MATCH($EK$1,INDIRECT(\"'\"&A69&\"'!$A$18:$A$50\"),0),MATCH(Parts!$B69,INDIRECT(\"'\"&A69&\"'!$10:$10\"),0)),0)","v":1},110]
[{"$f":"PQS!A72","v":"SDD"},{"$f":"PQS!B72","v":"E003/056"},{"$f":"PQS!E72","v":"HTC-60H"},{"$f":"PQS!P72","v":"$"},319.13,"Compressor Danfoss - 0274000118; 180 USD",{"$f":"IFERROR(INDEX(INDIRECT(\"'\"&A70&\"'!$18:$50\"),MATCH(Parts!F$1,INDIRECT(\"'\"&A70&\"'!$A$18:$A$50\"),0),MATCH(Parts!$B70,INDIRECT(\"'\"&A70&\"'!$10:$10\"),0)),0)","v":1},180,"Thermostat, 0074091494; 27.6 USD",{"$f":"IFERROR(INDEX(INDIRECT(\"'\"&A70&\"'!$18:$50\"),MATCH($I$1,INDIRECT(\"'\"&A70&\"'!$A$18:$A$50\"),0),MATCH(Parts!$B70,INDIRECT(\"'\"&A70&\"'!$10:$10\"),0)),0)","v":1},27.6,null,{"$f":"IFERROR(INDEX(INDIRECT(\"'\"&A70&\"'!$18:$50\"),MATCH($L$1,INDIRECT(\"'\"&A70&\"'!$A$18:$A$50\"),0),MATCH(Parts!$B70,INDIRECT(\"'\"&A70&\"'!$10:$10\"),0)),0)","v":0},null,null,{"$f":"IFERROR(INDEX(INDIRECT(\"'\"&A70&\"'!$18:$50\"),MATCH($O$1,INDIRECT(\"'\"&A70&\"'!$A$18:$A$50\"),0),MATCH(Parts!$B70,INDIRECT(\"'\"&A70&\"'!$10:$10\"),0)),0)","v":0},null,"Control panel：0072040234",{"$f":"IFERROR(INDEX(INDIRECT(\"'\"&A70&\"'!$18:$50\"),MATCH($R$1,INDIRECT(\"'\"&A70&\"'!$A$18:$A$50\"),0),MATCH(Parts!$B70,INDIRECT(\"'\"&A70&\"'!$10:$10\"),0)),0)","v":1},1.55,"Sensor for e-thermostat：0274000185A",{"$f":"IFERROR(INDEX(INDIRECT(\"'\"&A70&\"'!$18:$50\"),MATCH($U$1,INDIRECT(\"'\"&A70&\"'!$A$18:$A$50\"),0),MATCH(Parts!$B70,INDIRECT(\"'\"&A70&\"'!$10:$10\"),0)),0)","v":1},null,"Condensor：0270700395  \nFan DC 12V：0074000329 ",{"$f":"IFERROR(INDEX(INDIRECT(\"'\"&A70&\"'!$18:$50\"),MATCH($X$1,INDIRECT(\"'\"&A70&\"'!$A$18:$A$50\"),0),MATCH(Parts!$B70,INDIRECT(\"'\"&A70&\"'!$10:$10\"),0)),0)","v":1},4,null,{"$f":"IFERROR(INDEX(INDIRECT(\"'\"&A70&\"'!$18:$50\"),MATCH($AA$1,INDIRECT(\"'\"&A70&\"'!$A$18:$A$50\"),0),MATCH(Parts!$B70,INDIRECT(\"'\"&A70&\"'!$10:$10\"),0)),0)","v":0},null,null,{"$f":"IFERROR(INDEX(INDIRECT(\"'\"&A70&\"'!$18:$50\"),MATCH($AD$1,INDIRECT(\"'\"&A70&\"'!$A$18:$A$50\"),0),MATCH(Parts!$B70,INDIRECT(\"'\"&A70&\"'!$10:$10\"),0)),0)","v":0},null,null,{"$f":"IFERROR(INDEX(INDIRECT(\"'\"&A70&\"'!$18:$50\"),MATCH($AG$1,INDIRECT(\"'\"&A70&\"'!$A$18:$A$50\"),0),MATCH(Parts!$B70,INDIRECT(\"'\"&A70&\"'!$10:$10\"),0)),0)","v":0},null,null,{"$f":"IFERROR(INDEX(INDIRECT(\"'\"&A70&\"'!$18:$50\"),MATCH($AJ$1,INDIRECT(\"'\"&A70&\"'!$A$18:$A$50\"),0),MATCH(Parts!$B70,INDIRECT(\"'\"&A70&\"'!$10:$10\"),0)),0)","v":0},null,"Switch：0274000354",{"$f":"IFERROR(INDEX(INDIRECT(\"'\"&A70&\"'!$18:$50\"),MATCH($AM$1,INDIRECT(\"'\"&A70&\"'!$A$18:$A$50\"),0),MATCH(Parts!$B70,INDIRECT(\"'\"&A70&\"'!$10:$10\"),0)),0)","v":1},2,null,{"$f":"IFERROR(INDEX(INDIRECT(\"'\"&A70&\"'!$18:$50\"),MATCH($AP$1,INDIRECT(\"'\"&A70&\"'!$A$18:$A$50\"),0),MATCH(Parts!$B70,INDIRECT(\"'\"&A70&\"'!$10:$10\"),0)),0)","v":0},null,"baskets：0270100797",{"$f":"IFERROR(INDEX(INDIRECT(\"'\"&A70&\"'!$18:$50\"),MATCH($AS$1,INDIRECT(\"'\"&A70&\"'!$A$18:$A$50\"),0),MATCH(Parts!$B70,INDIRECT(\"'\"&A70&\"'!$10:$10\"),0)),0)","v":1},4.05,null,{"$f":"IFERROR(INDEX(INDIRECT(\"'\"&A70&\"'!$18:$50\"),MATCH($AV$1,INDIRECT(\"'\"&A70&\"'!$A$18:$A$50\"),0),MATCH(Parts!$B70,INDIRECT(\"'\"&A70&\"'!$10:$10\"),0)),0)","v":0},null,null,{"$f":"IFERROR(INDEX(INDIRECT(\"'\"&A70&\"'!$18:$50\"),MATCH($AY$1,INDIRECT(\"'\"&A70&\"'!$A$18:$A$50\"),0),MATCH(Parts!$B70,INDIRECT(\"'\"&A70&\"'!$10:$10\"),0)),0)","v":0},null,null,{"$f":"IFERROR(INDEX(INDIRECT(\"'\"&A70&\"'!$18:$50\"),MATCH($BB$1,INDIRECT(\"'\"&A70&\"'!$A$18:$A$50\"),0),MATCH(Parts!$B70,INDIRECT(\"'\"&A70&\"'!$10:$10\"),0)),0)","v":0},null,null,{"$f":"IFERROR(INDEX(INDIRECT(\"'\"&A70&\"'!$18:$50\"),MATCH($BE$1,INDIRECT(\"'\"&A70&\"'!$A$18:$A$50\"),0),MATCH(Parts!$B70,INDIRECT(\"'\"&A70&\"'!$10:$10\"),0)),0)","v":0},null,"Dry filter：0074180006",{"$f":"IFERROR(INDEX(INDIRECT(\"'\"&A70&\"'!$18:$50\"),MATCH($BH$1,INDIRECT(\"'\"&A70&\"'!$A$18:$A$50\"),0),MATCH(Parts!$B70,INDIRECT(\"'\"&A70&\"'!$10:$10\"),0)),0)","v":1},2,null,{"$f":"IFERROR(INDEX(INDIRECT(\"'\"&A70&\"'!$18:$50\"),MATCH($BK$1,INDIRECT(\"'\"&A70&\"'!$A$18:$A$50\"),0),MATCH(Parts!$B70,INDIRECT(\"'\"&A70&\"'!$10:$10\"),0)),0)","v":0},null,null,{"$f":"IFERROR(INDEX(INDIRECT(\"'\"&A70&\"'!$18:$50\"),MATCH($BN$1,INDIRECT(\"'\"&A70&\"'!$A$18:$A$50\"),0),MATCH(Parts!$B70,INDIRECT(\"'\"&A70&\"'!$10:$10\"),0)),0)","v":0},null,"Hinge：0070816334",{"$f":"IFERROR(INDEX(INDIRECT(\"'\"&A70&\"'!$18:$50\"),MATCH($BQ$1,INDIRECT(\"'\"&A70&\"'!$A$18:$A$50\"),0),MATCH(Parts!$B70,INDIRECT(\"'\"&A70&\"'!$10:$10\"),0)),0)","v":1},3,"Hinge cover：0070203942 and 0070204349",{"$f":"IFERROR(INDEX(INDIRECT(\"'\"&A70&\"'!$18:$50\"),MATCH($BT$1,INDIRECT(\"'\"&A70&\"'!$A$18:$A$50\"),0),MATCH(Parts!$B70,INDIRECT(\"'\"&A70&\"'!$10:$10\"),0)),0)","v":1},1,null,{"$f":"IFERROR(INDEX(INDIRECT(\"'\"&A70&\"'!$18:$50\"),MATCH($BW$1,INDIRECT(\"'\"&A70&\"'!$A$18:$A$50\"),0),MATCH(Parts!$B70,INDIRECT(\"'\"&A70&\"'!$10:$10\"),0)),0)","v":0},null,"Thermometer：0271400001",{"$f":"IFERROR(INDEX(INDIRECT(\"'\"&A70&\"'!$18:$50\"),MATCH($BZ$1,INDIRECT(\"'\"&A70&\"'!$A$18:$A$50\"),0),MATCH(Parts!$B70,INDIRECT(\"'\"&A70&\"'!$10:$10\"),0)),0)","v":1},null,"Ice Pack：0070203825:54PCS / 0070204757: 1PCS",{"$f":"IFERROR(INDEX(INDIRECT(\"'\"&A70&\"'!$18:$50\"),MATCH($CC$1,INDIRECT(\"'\"&A70&\"'!$A$18:$A$50\"),0),MATCH(Parts!$B70,INDIRECT(\"'\"&A70&\"'!$10:$10\"),0)),0)","v":1},1,"Handle：0070814623",{"$f":"IFERROR(INDEX(INDIRECT(\"'\"&A70&\"'!$18:$50\"),MATCH($CF$1,INDIRECT(\"'\"&A70&\"'!$A$18:$A$50\"),0),MATCH(Parts!$B70,INDIRECT(\"'\"&A70&\"'!$10:$10\"),0)),0)","v":1},3.38,"wire：0270400211 and 0274000206C",{"$f":"IFERROR(INDEX(INDIRECT(\"'\"&A70&\"'!$18:$50\"),MATCH($CI$1,INDIRECT(\"'\"&A70&\"'!$A$18:$A$50\"),0),MATCH(Parts!$B70,INDIRECT(\"'\"&A70&\"'!$10:$10\"),0)),0)","v":1},4.55,null,{"$f":"IFERROR(INDEX(INDIRECT(\"'\"&A70&\"'!$18:$50\"),MATCH($CL$1,INDIRECT(\"'\"&A70&\"'!$A$18:$A$50\"),0),MATCH(Parts!$B70,INDIRECT(\"'\"&A70&\"'!$10:$10\"),0)),0)","v":0},null,null,{"$f":"IFERROR(INDEX(INDIRECT(\"'\"&A70&\"'!$18:$50\"),MATCH($CO$1,INDIRECT(\"'\"&A70&\"'!$A$18:$A$50\"),0),MATCH(Parts!$B70,INDIRECT(\"'\"&A70&\"'!$10:$10\"),0)),0)","v":0},null,null,{"$f":"IFERROR(INDEX(INDIRECT(\"'\"&A70&\"'!$18:$50\"),MATCH($CR$1,INDIRECT(\"'\"&A70&\"'!$A$18:$A$50\"),0),MATCH(Parts!$B70,INDIRECT(\"'\"&A70&\"'!$10:$10\"),0)),0)","v":0},null,null,{"$f":"IFERROR(INDEX(INDIRECT(\"'\"&A70&\"'!$18:$50\"),MATCH($CU$1,INDIRECT(\"'\"&A70&\"'!$A$18:$A$50\"),0),MATCH(Parts!$B70,INDIRECT(\"'\"&A70&\"'!$10:$10\"),0)),0)","v":0},null,null,{"$f":"IFERROR(INDEX(INDIRECT(\"'\"&A70&\"'!$18:$50\"),MATCH($CX$1,INDIRECT(\"'\"&A70&\"'!$A$18:$A$50\"),0),MATCH(Parts!$B70,INDIRECT(\"'\"&A70&\"'!$10:$10\"),0)),0)","v":0},null,null,{"$f":"IFERROR(INDEX(INDIRECT(\"'\"&A70&\"'!$18:$50\"),MATCH($DA$1,INDIRECT(\"'\"&A70&\"'!$A$18:$A$50\"),0),MATCH(Parts!$B70,INDIRECT(\"'\"&A70&\"'!$10:$10\"),0)),0)","v":0},null,null,{"$f":"IFERROR(INDEX(INDIRECT(\"'\"&A70&\"'!$18:$50\"),MATCH($DD$1,INDIRECT(\"'\"&A70&\"'!$A$18:$A$50\"),0),MATCH(Parts!$B70,INDIRECT(\"'\"&A70&\"'!$10:$10\"),0)),0)","v":0},null,null,{"$f":"IFERROR(INDEX(INDIRECT(\"'\"&A70&\"'!$18:$50\"),MATCH($DG$1,INDIRECT(\"'\"&A70&\"'!$A$18:$A$50\"),0),MATCH(Parts!$B70,INDIRECT(\"'\"&A70&\"'!$10:$10\"),0)),0)","v":0},null,null,{"$f":"IFERROR(INDEX(INDIRECT(\"'\"&A70&\"'!$18:$50\"),MATCH($DJ$1,INDIRECT(\"'\"&A70&\"'!$A$18:$A$50\"),0),MATCH(Parts!$B70,INDIRECT(\"'\"&A70&\"'!$10:$10\"),0)),0)","v":0},null,"Rechargeable battery (12V 10Ah)",{"$f":"IFERROR(INDEX(INDIRECT(\"'\"&A70&\"'!$18:$50\"),MATCH($DM$1,INDIRECT(\"'\"&A70&\"'!$A$18:$A$50\"),0),MATCH(Parts!$B70,INDIRECT(\"'\"&A70&\"'!$10:$10\"),0)),0)","v":1},85,null,{"$f":"IFERROR(INDEX(INDIRECT(\"'\"&A70&\"'!$18:$50\"),MATCH($DP$1,INDIRECT(\"'\"&A70&\"'!$A$18:$A$50\"),0),MATCH(Parts!$B70,INDIRECT(\"'\"&A70&\"'!$10:$10\"),0)),0)","v":0},null,null,{"$f":"IFERROR(INDEX(INDIRECT(\"'\"&A70&\"'!$18:$50\"),MATCH($DS$1,INDIRECT(\"'\"&A70&\"'!$A$18:$A$50\"),0),MATCH(Parts!$B70,INDIRECT(\"'\"&A70&\"'!$10:$10\"),0)),0)","v":0},null,null,{"$f":"IFERROR(INDEX(INDIRECT(\"'\"&A70&\"'!$18:$50\"),MATCH($DV$1,INDIRECT(\"'\"&A70&\"'!$A$18:$A$50\"),0),MATCH(Parts!$B70,INDIRECT(\"'\"&A70&\"'!$10:$10\"),0)),0)","v":0},null,null,{"$f":"IFERROR(INDEX(INDIRECT(\"'\"&A70&\"'!$18:$50\"),MATCH($DY$1,INDIRECT(\"'\"&A70&\"'!$A$18:$A$50\"),0),MATCH(Parts!$B70,INDIRECT(\"'\"&A70&\"'!$10:$10\"),0)),0)","v":0},null,null,{"$f":"IFERROR(INDEX(INDIRECT(\"'\"&A70&\"'!$18:$50\"),MATCH($EB$1,INDIRECT(\"'\"&A70&\"'!$A$18:$A$50\"),0),MATCH(Parts!$B70,INDIRECT(\"'\"&A70&\"'!$10:$10\"),0)),0)","v":0},null,null,{"$f":"IFERROR(INDEX(INDIRECT(\"'\"&A70&\"'!$18:$50\"),MATCH($EE$1,INDIRECT(\"'\"&A70&\"'!$A$18:$A$50\"),0),MATCH(Parts!$B70,INDIRECT(\"'\"&A70&\"'!$10:$10\"),0)),0)","v":0},null,null,{"$f":"IFERROR(INDEX(INDIRECT(\"'\"&A70&\"'!$18:$50\"),MATCH($EH$1,INDIRECT(\"'\"&A70&\"'!$A$18:$A$50\"),0),MATCH(Parts!$B70,INDIRECT(\"'\"&A70&\"'!$10:$10\"),0)),0)","v":0},null,null,{"$f":"IFERROR(INDEX(INDIRECT(\"'\"&A70&\"'!$18:$50\"),MATCH($EK$1,INDIRECT(\"'\"&A70&\"'!$A$18:$A$50\"),0),MATCH(Parts!$B70,INDIRECT(\"'\"&A70&\"'!$10:$10\"),0)),0)","v":0}]
[{"$f":"PQS!A73","v":"SDD"},{"$f":"PQS!B73","v":"E003/057"},{"$f":"PQS!E73","v":"HTCD-160*"},{"$f":"PQS!P73","v":"$"},323.44,"Compressor SECOP: 0274000118A; USD 230.00",{"$f":"IFERROR(INDEX(INDIRECT(\"'\"&A71&\"'!$18:$50\"),MATCH(Parts!F$1,INDIRECT(\"'\"&A71&\"'!$A$18:$A$50\"),0),MATCH(Parts!$B71,INDIRECT(\"'\"&A71&\"'!$10:$10\"),0)),0)","v":1},230,"Electric controller: 274000352; USD 45.00",{"$f":"IFERROR(INDEX(INDIRECT(\"'\"&A71&\"'!$18:$50\"),MATCH($I$1,INDIRECT(\"'\"&A71&\"'!$A$18:$A$50\"),0),MATCH(Parts!$B71,INDIRECT(\"'\"&A71&\"'!$10:$10\"),0)),0)","v":1},45,null,{"$f":"IFERROR(INDEX(INDIRECT(\"'\"&A71&\"'!$18:$50\"),MATCH($L$1,INDIRECT(\"'\"&A71&\"'!$A$18:$A$50\"),0),MATCH(Parts!$B71,INDIRECT(\"'\"&A71&\"'!$10:$10\"),0)),0)","v":0},null,null,{"$f":"IFERROR(INDEX(INDIRECT(\"'\"&A71&\"'!$18:$50\"),MATCH($O$1,INDIRECT(\"'\"&A71&\"'!$A$18:$A$50\"),0),MATCH(Parts!$B71,INDIRECT(\"'\"&A71&\"'!$10:$10\"),0)),0)","v":0},null,null,{"$f":"IFERROR(INDEX(INDIRECT(\"'\"&A71&\"'!$18:$50\"),MATCH($R$1,INDIRECT(\"'\"&A71&\"'!$A$18:$A$50\"),0),MATCH(Parts!$B71,INDIRECT(\"'\"&A71&\"'!$10:$10\"),0)),0)","v":0},null,"Sensor for ice freezing：0274000353\nSensor for refrigerator：0274000358\nSensor for freezer：0274000357A",{"$f":"IFERROR(INDEX(INDIRECT(\"'\"&A71&\"'!$18:$50\"),MATCH($U$1,INDIRECT(\"'\"&A71&\"'!$A$18:$A$50\"),0),MATCH(Parts!$B71,INDIRECT(\"'\"&A71&\"'!$10:$10\"),0)),0)","v":1},null,"Condensor：0060702951A/Fan ：0274000351 ",{"$f":"IFERROR(INDEX(INDIRECT(\"'\"&A71&\"'!$18:$50\"),MATCH($X$1,INDIRECT(\"'\"&A71&\"'!$A$18:$A$50\"),0),MATCH(Parts!$B71,INDIRECT(\"'\"&A71&\"'!$10:$10\"),0)),0)","v":1},4,null,{"$f":"IFERROR(INDEX(INDIRECT(\"'\"&A71&\"'!$18:$50\"),MATCH($AA$1,INDIRECT(\"'\"&A71&\"'!$A$18:$A$50\"),0),MATCH(Parts!$B71,INDIRECT(\"'\"&A71&\"'!$10:$10\"),0)),0)","v":0},null,null,{"$f":"IFERROR(INDEX(INDIRECT(\"'\"&A71&\"'!$18:$50\"),MATCH($AD$1,INDIRECT(\"'\"&A71&\"'!$A$18:$A$50\"),0),MATCH(Parts!$B71,INDIRECT(\"'\"&A71&\"'!$10:$10\"),0)),0)","v":0},null,null,{"$f":"IFERROR(INDEX(INDIRECT(\"'\"&A71&\"'!$18:$50\"),MATCH($AG$1,INDIRECT(\"'\"&A71&\"'!$A$18:$A$50\"),0),MATCH(Parts!$B71,INDIRECT(\"'\"&A71&\"'!$10:$10\"),0)),0)","v":0},null,null,{"$f":"IFERROR(INDEX(INDIRECT(\"'\"&A71&\"'!$18:$50\"),MATCH($AJ$1,INDIRECT(\"'\"&A71&\"'!$A$18:$A$50\"),0),MATCH(Parts!$B71,INDIRECT(\"'\"&A71&\"'!$10:$10\"),0)),0)","v":0},null,"Switch：0274000354",{"$f":"IFERROR(INDEX(INDIRECT(\"'\"&A71&\"'!$18:$50\"),MATCH($AM$1,INDIRECT(\"'\"&A71&\"'!$A$18:$A$50\"),0),MATCH(Parts!$B71,INDIRECT(\"'\"&A71&\"'!$10:$10\"),0)),0)","v":1},2,null,{"$f":"IFERROR(INDEX(INDIRECT(\"'\"&A71&\"'!$18:$50\"),MATCH($AP$1,INDIRECT(\"'\"&A71&\"'!$A$18:$A$50\"),0),MATCH(Parts!$B71,INDIRECT(\"'\"&A71&\"'!$10:$10\"),0)),0)","v":0},null,"shelves：0270101953",{"$f":"IFERROR(INDEX(INDIRECT(\"'\"&A71&\"'!$18:$50\"),MATCH($AS$1,INDIRECT(\"'\"&A71&\"'!$A$18:$A$50\"),0),MATCH(Parts!$B71,INDIRECT(\"'\"&A71&\"'!$10:$10\"),0)),0)","v":1},4.05,null,{"$f":"IFERROR(INDEX(INDIRECT(\"'\"&A71&\"'!$18:$50\"),MATCH($AV$1,INDIRECT(\"'\"&A71&\"'!$A$18:$A$50\"),0),MATCH(Parts!$B71,INDIRECT(\"'\"&A71&\"'!$10:$10\"),0)),0)","v":0},null,null,{"$f":"IFERROR(INDEX(INDIRECT(\"'\"&A71&\"'!$18:$50\"),MATCH($AY$1,INDIRECT(\"'\"&A71&\"'!$A$18:$A$50\"),0),MATCH(Parts!$B71,INDIRECT(\"'\"&A71&\"'!$10:$10\"),0)),0)","v":0},null,"capacitor：0274000356",{"$f":"IFERROR(INDEX(INDIRECT(\"'\"&A71&\"'!$18:$50\"),MATCH($BB$1,INDIRECT(\"'\"&A71&\"'!$A$18:$A$50\"),0),MATCH(Parts!$B71,INDIRECT(\"'\"&A71&\"'!$10:$10\"),0)),0)","v":0},null,null,{"$f":"IFERROR(INDEX(INDIRECT(\"'\"&A71&\"'!$18:$50\"),MATCH($BE$1,INDIRECT(\"'\"&A71&\"'!$A$18:$A$50\"),0),MATCH(Parts!$B71,INDIRECT(\"'\"&A71&\"'!$10:$10\"),0)),0)","v":0},null,"Dry filter：0074180006",{"$f":"IFERROR(INDEX(INDIRECT(\"'\"&A71&\"'!$18:$50\"),MATCH($BH$1,INDIRECT(\"'\"&A71&\"'!$A$18:$A$50\"),0),MATCH(Parts!$B71,INDIRECT(\"'\"&A71&\"'!$10:$10\"),0)),0)","v":1},2,null,{"$f":"IFERROR(INDEX(INDIRECT(\"'\"&A71&\"'!$18:$50\"),MATCH($BK$1,INDIRECT(\"'\"&A71&\"'!$A$18:$A$50\"),0),MATCH(Parts!$B71,INDIRECT(\"'\"&A71&\"'!$10:$10\"),0)),0)","v":0},null,null,{"$f":"IFERROR(INDEX(INDIRECT(\"'\"&A71&\"'!$18:$50\"),MATCH($BN$1,INDIRECT(\"'\"&A71&\"'!$A$18:$A$50\"),0),MATCH(Parts!$B71,INDIRECT(\"'\"&A71&\"'!$10:$10\"),0)),0)","v":0},null,"inner door side Hinge：0070106965A  2 each\ninner door middle Hinge：0070107180A  1each\nouter door Hinge：0070107087     4 each",{"$f":"IFERROR(INDEX(INDIRECT(\"'\"&A71&\"'!$18:$50\"),MATCH($BQ$1,INDIRECT(\"'\"&A71&\"'!$A$18:$A$50\"),0),MATCH(Parts!$B71,INDIRECT(\"'\"&A71&\"'!$10:$10\"),0)),0)","v":1},3,null,{"$f":"IFERROR(INDEX(INDIRECT(\"'\"&A71&\"'!$18:$50\"),MATCH($BT$1,INDIRECT(\"'\"&A71&\"'!$A$18:$A$50\"),0),MATCH(Parts!$B71,INDIRECT(\"'\"&A71&\"'!$10:$10\"),0)),0)","v":0},null,null,{"$f":"IFERROR(INDEX(INDIRECT(\"'\"&A71&\"'!$18:$50\"),MATCH($BW$1,INDIRECT(\"'\"&A71&\"'!$A$18:$A$50\"),0),MATCH(Parts!$B71,INDIRECT(\"'\"&A71&\"'!$10:$10\"),0)),0)","v":0},null,"30 days data logger：0274000391",{"$f":"IFERROR(INDEX(INDIRECT(\"'\"&A71&\"'!$18:$50\"),MATCH($BZ$1,INDIRECT(\"'\"&A71&\"'!$A$18:$A$50\"),0),MATCH(Parts!$B71,INDIRECT(\"'\"&A71&\"'!$10:$10\"),0)),0)","v":1},null,null,{"$f":"IFERROR(INDEX(INDIRECT(\"'\"&A71&\"'!$18:$50\"),MATCH($CC$1,INDIRECT(\"'\"&A71&\"'!$A$18:$A$50\"),0),MATCH(Parts!$B71,INDIRECT(\"'\"&A71&\"'!$10:$10\"),0)),0)","v":0},null,"Refrigerator handle：0270801098\nFreezer handle：0270801098A",{"$f":"IFERROR(INDEX(INDIRECT(\"'\"&A71&\"'!$18:$50\"),MATCH($CF$1,INDIRECT(\"'\"&A71&\"'!$A$18:$A$50\"),0),MATCH(Parts!$B71,INDIRECT(\"'\"&A71&\"'!$10:$10\"),0)),0)","v":1},3.38,"wire：0270400212B and0274000206C",{"$f":"IFERROR(INDEX(INDIRECT(\"'\"&A71&\"'!$18:$50\"),MATCH($CI$1,INDIRECT(\"'\"&A71&\"'!$A$18:$A$50\"),0),MATCH(Parts!$B71,INDIRECT(\"'\"&A71&\"'!$10:$10\"),0)),0)","v":1},4.55,null,{"$f":"IFERROR(INDEX(INDIRECT(\"'\"&A71&\"'!$18:$50\"),MATCH($CL$1,INDIRECT(\"'\"&A71&\"'!$A$18:$A$50\"),0),MATCH(Parts!$B71,INDIRECT(\"'\"&A71&\"'!$10:$10\"),0)),0)","v":0},null,null,{"$f":"IFERROR(INDEX(INDIRECT(\"'\"&A71&\"'!$18:$50\"),MATCH($CO$1,INDIRECT(\"'\"&A71&\"'!$A$18:$A$50\"),0),MATCH(Parts!$B71,INDIRECT(\"'\"&A71&\"'!$10:$10\"),0)),0)","v":0},null,null,{"$f":"IFERROR(INDEX(INDIRECT(\"'\"&A71&\"'!$18:$50\"),MATCH($CR$1,INDIRECT(\"'\"&A71&\"'!$A$18:$A$50\"),0),MATCH(Parts!$B71,INDIRECT(\"'\"&A71&\"'!$10:$10\"),0)),0)","v":0},null,null,{"$f":"IFERROR(INDEX(INDIRECT(\"'\"&A71&\"'!$18:$50\"),MATCH($CU$1,INDIRECT(\"'\"&A71&\"'!$A$18:$A$50\"),0),MATCH(Parts!$B71,INDIRECT(\"'\"&A71&\"'!$10:$10\"),0)),0)","v":0},null,null,{"$f":"IFERROR(INDEX(INDIRECT(\"'\"&A71&\"'!$18:$50\"),MATCH($CX$1,INDIRECT(\"'\"&A71&\"'!$A$18:$A$50\"),0),MATCH(Parts!$B71,INDIRECT(\"'\"&A71&\"'!$10:$10\"),0)),0)","v":0},null,null,{"$f":"IFERROR(INDEX(INDIRECT(\"'\"&A71&\"'!$18:$50\"),MATCH($DA$1,INDIRECT(\"'\"&A71&\"'!$A$18:$A$50\"),0),MATCH(Parts!$B71,INDIRECT(\"'\"&A71&\"'!$10:$10\"),0)),0)","v":0},null,null,{"$f":"IFERROR(INDEX(INDIRECT(\"'\"&A71&\"'!$18:$50\"),MATCH($DD$1,INDIRECT(\"'\"&A71&\"'!$A$18:$A$50\"),0),MATCH(Parts!$B71,INDIRECT(\"'\"&A71&\"'!$10:$10\"),0)),0)","v":0},null,null,{"$f":"IFERROR(INDEX(INDIRECT(\"'\"&A71&\"'!$18:$50\"),MATCH($DG$1,INDIRECT(\"'\"&A71&\"'!$A$18:$A$50\"),0),MATCH(Parts!$B71,INDIRECT(\"'\"&A71&\"'!$10:$10\"),0)),0)","v":0},null,null,{"$f":"IFERROR(INDEX(INDIRECT(\"'\"&A71&\"'!$18:$50\"),MATCH($DJ$1,INDIRECT(\"'\"&A71&\"'!$A$18:$A$50\"),0),MATCH(Parts!$B71,INDIRECT(\"'\"&A71&\"'!$10:$10\"),0)),0)","v":0},null,null,{"$f":"IFERROR(INDEX(INDIRECT(\"'\"&A71&\"'!$18:$50\"),MATCH($DM$1,INDIRECT(\"'\"&A71&\"'!$A$18:$A$50\"),0),MATCH(Parts!$B71,INDIRECT(\"'\"&A71&\"'!$10:$10\"),0)),0)","v":0},null,null,{"$f":"IFERROR(INDEX(INDIRECT(\"'\"&A71&\"'!$18:$50\"),MATCH($DP$1,INDIRECT(\"'\"&A71&\"'!$A$18:$A$50\"),0),MATCH(Parts!$B71,INDIRECT(\"'\"&A71&\"'!$10:$10\"),0)),0)","v":0},null,null,{"$f":"IFERROR(INDEX(INDIRECT(\"'\"&A71&\"'!$18:$50\"),MATCH($DS$1,INDIRECT(\"'\"&A71&\"'!$A$18:$A$50\"),0),MATCH(Parts!$B71,INDIRECT(\"'\"&A71&\"'!$10:$10\"),0)),0)","v":0},null,null,{"$f":"IFERROR(INDEX(INDIRECT(\"'\"&A71&\"'!$18:$50\"),MATCH($DV$1,INDIRECT(\"'\"&A71&\"'!$A$18:$A$50\"),0),MATCH(Parts!$B71,INDIRECT(\"'\"&A71&\"'!$10:$10\"),0)),0)","v":0},null,null,{"$f":"IFERROR(INDEX(INDIRECT(\"'\"&A71&\"'!$18:$50\"),MATCH($DY$1,INDIRECT(\"'\"&A71&\"'!$A$18:$A$50\"),0),MATCH(Parts!$B71,INDIRECT(\"'\"&A71&\"'!$10:$10\"),0)),0)","v":0},null,null,{"$f":"IFERROR(INDEX(INDIRECT(\"'\"&A71&\"'!$18:$50\"),MATCH($EB$1,INDIRECT(\"'\"&A71&\"'!$A$18:$A$50\"),0),MATCH(Parts!$B71,INDIRECT(\"'\"&A71&\"'!$10:$10\"),0)),0)","v":0},null,"Solar display",{"$f":"IFERROR(INDEX(INDIRECT(\"'\"&A71&\"'!$18:$50\"),MATCH($EE$1,INDIRECT(\"'\"&A71&\"'!$A$18:$A$50\"),0),MATCH(Parts!$B71,INDIRECT(\"'\"&A71&\"'!$10:$10\"),0)),0)","v":1},25.46,null,{"$f":"IFERROR(INDEX(INDIRECT(\"'\"&A71&\"'!$18:$50\"),MATCH($EH$1,INDIRECT(\"'\"&A71&\"'!$A$18:$A$50\"),0),MATCH(Parts!$B71,INDIRECT(\"'\"&A71&\"'!$10:$10\"),0)),0)","v":0},null,null,{"$f":"IFERROR(INDEX(INDIRECT(\"'\"&A71&\"'!$18:$50\"),MATCH($EK$1,INDIRECT(\"'\"&A71&\"'!$A$18:$A$50\"),0),MATCH(Parts!$B71,INDIRECT(\"'\"&A71&\"'!$10:$10\"),0)),0)","v":0}]
[{"$f":"PQS!A74","v":"SDD"},{"$f":"PQS!B74","v":"E003/058"},{"$f":"PQS!E74","v":"VC 110 SDD*"},{"$f":"PQS!P74","v":"€"},371,"Compressor Danfoss BD35K: €178.00",{"$f":"IFERROR(INDEX(INDIRECT(\"'\"&A72&\"'!$18:$50\"),MATCH(Parts!F$1,INDIRECT(\"'\"&A72&\"'!$A$18:$A$50\"),0),MATCH(Parts!$B72,INDIRECT(\"'\"&A72&\"'!$10:$10\"),0)),0)","v":0},178,null,{"$f":"IFERROR(INDEX(INDIRECT(\"'\"&A72&\"'!$18:$50\"),MATCH($I$1,INDIRECT(\"'\"&A72&\"'!$A$18:$A$50\"),0),MATCH(Parts!$B72,INDIRECT(\"'\"&A72&\"'!$10:$10\"),0)),0)","v":0},null,"Controller Danfoss 101N0420: €140.00",{"$f":"IFERROR(INDEX(INDIRECT(\"'\"&A72&\"'!$18:$50\"),MATCH($L$1,INDIRECT(\"'\"&A72&\"'!$A$18:$A$50\"),0),MATCH(Parts!$B72,INDIRECT(\"'\"&A72&\"'!$10:$10\"),0)),0)","v":1},140,null,{"$f":"IFERROR(INDEX(INDIRECT(\"'\"&A72&\"'!$18:$50\"),MATCH($O$1,INDIRECT(\"'\"&A72&\"'!$A$18:$A$50\"),0),MATCH(Parts!$B72,INDIRECT(\"'\"&A72&\"'!$10:$10\"),0)),0)","v":0},null,null,{"$f":"IFERROR(INDEX(INDIRECT(\"'\"&A72&\"'!$18:$50\"),MATCH($R$1,INDIRECT(\"'\"&A72&\"'!$A$18:$A$50\"),0),MATCH(Parts!$B72,INDIRECT(\"'\"&A72&\"'!$10:$10\"),0)),0)","v":0},null,null,{"$f":"IFERROR(INDEX(INDIRECT(\"'\"&A72&\"'!$18:$50\"),MATCH($U$1,INDIRECT(\"'\"&A72&\"'!$A$18:$A$50\"),0),MATCH(Parts!$B72,INDIRECT(\"'\"&A72&\"'!$10:$10\"),0)),0)","v":0},null,null,{"$f":"IFERROR(INDEX(INDIRECT(\"'\"&A72&\"'!$18:$50\"),MATCH($X$1,INDIRECT(\"'\"&A72&\"'!$A$18:$A$50\"),0),MATCH(Parts!$B72,INDIRECT(\"'\"&A72&\"'!$10:$10\"),0)),0)","v":0},null,null,{"$f":"IFERROR(INDEX(INDIRECT(\"'\"&A72&\"'!$18:$50\"),MATCH($AA$1,INDIRECT(\"'\"&A72&\"'!$A$18:$A$50\"),0),MATCH(Parts!$B72,INDIRECT(\"'\"&A72&\"'!$10:$10\"),0)),0)","v":0},null,null,{"$f":"IFERROR(INDEX(INDIRECT(\"'\"&A72&\"'!$18:$50\"),MATCH($AD$1,INDIRECT(\"'\"&A72&\"'!$A$18:$A$50\"),0),MATCH(Parts!$B72,INDIRECT(\"'\"&A72&\"'!$10:$10\"),0)),0)","v":0},null,null,{"$f":"IFERROR(INDEX(INDIRECT(\"'\"&A72&\"'!$18:$50\"),MATCH($AG$1,INDIRECT(\"'\"&A72&\"'!$A$18:$A$50\"),0),MATCH(Parts!$B72,INDIRECT(\"'\"&A72&\"'!$10:$10\"),0)),0)","v":0},null,null,{"$f":"IFERROR(INDEX(INDIRECT(\"'\"&A72&\"'!$18:$50\"),MATCH($AJ$1,INDIRECT(\"'\"&A72&\"'!$A$18:$A$50\"),0),MATCH(Parts!$B72,INDIRECT(\"'\"&A72&\"'!$10:$10\"),0)),0)","v":0},null,"MCB fridge / isolation switch: €19.05",{"$f":"IFERROR(INDEX(INDIRECT(\"'\"&A72&\"'!$18:$50\"),MATCH($AM$1,INDIRECT(\"'\"&A72&\"'!$A$18:$A$50\"),0),MATCH(Parts!$B72,INDIRECT(\"'\"&A72&\"'!$10:$10\"),0)),0)","v":0},19.05,null,{"$f":"IFERROR(INDEX(INDIRECT(\"'\"&A72&\"'!$18:$50\"),MATCH($AP$1,INDIRECT(\"'\"&A72&\"'!$A$18:$A$50\"),0),MATCH(Parts!$B72,INDIRECT(\"'\"&A72&\"'!$10:$10\"),0)),0)","v":0},null,null,{"$f":"IFERROR(INDEX(INDIRECT(\"'\"&A72&\"'!$18:$50\"),MATCH($AS$1,INDIRECT(\"'\"&A72&\"'!$A$18:$A$50\"),0),MATCH(Parts!$B72,INDIRECT(\"'\"&A72&\"'!$10:$10\"),0)),0)","v":0},null,null,{"$f":"IFERROR(INDEX(INDIRECT(\"'\"&A72&\"'!$18:$50\"),MATCH($AV$1,INDIRECT(\"'\"&A72&\"'!$A$18:$A$50\"),0),MATCH(Parts!$B72,INDIRECT(\"'\"&A72&\"'!$10:$10\"),0)),0)","v":0},null,null,{"$f":"IFERROR(INDEX(INDIRECT(\"'\"&A72&\"'!$18:$50\"),MATCH($AY$1,INDIRECT(\"'\"&A72&\"'!$A$18:$A$50\"),0),MATCH(Parts!$B72,INDIRECT(\"'\"&A72&\"'!$10:$10\"),0)),0)","v":0},null,null,{"$f":"IFERROR(INDEX(INDIRECT(\"'\"&A72&\"'!$18:$50\"),MATCH($BB$1,INDIRECT(\"'\"&A72&\"'!$A$18:$A$50\"),0),MATCH(Parts!$B72,INDIRECT(\"'\"&A72&\"'!$10:$10\"),0)),0)","v":0},null,null,{"$f":"IFERROR(INDEX(INDIRECT(\"'\"&A72&\"'!$18:$50\"),MATCH($BE$1,INDIRECT(\"'\"&A72&\"'!$A$18:$A$50\"),0),MATCH(Parts!$B72,INDIRECT(\"'\"&A72&\"'!$10:$10\"),0)),0)","v":0},null,null,{"$f":"IFERROR(INDEX(INDIRECT(\"'\"&A72&\"'!$18:$50\"),MATCH($BH$1,INDIRECT(\"'\"&A72&\"'!$A$18:$A$50\"),0),MATCH(Parts!$B72,INDIRECT(\"'\"&A72&\"'!$10:$10\"),0)),0)","v":0},null,null,{"$f":"IFERROR(INDEX(INDIRECT(\"'\"&A72&\"'!$18:$50\"),MATCH($BK$1,INDIRECT(\"'\"&A72&\"'!$A$18:$A$50\"),0),MATCH(Parts!$B72,INDIRECT(\"'\"&A72&\"'!$10:$10\"),0)),0)","v":0},null,null,{"$f":"IFERROR(INDEX(INDIRECT(\"'\"&A72&\"'!$18:$50\"),MATCH($BN$1,INDIRECT(\"'\"&A72&\"'!$A$18:$A$50\"),0),MATCH(Parts!$B72,INDIRECT(\"'\"&A72&\"'!$10:$10\"),0)),0)","v":0},null,null,{"$f":"IFERROR(INDEX(INDIRECT(\"'\"&A72&\"'!$18:$50\"),MATCH($BQ$1,INDIRECT(\"'\"&A72&\"'!$A$18:$A$50\"),0),MATCH(Parts!$B72,INDIRECT(\"'\"&A72&\"'!$10:$10\"),0)),0)","v":0},null,null,{"$f":"IFERROR(INDEX(INDIRECT(\"'\"&A72&\"'!$18:$50\"),MATCH($BT$1,INDIRECT(\"'\"&A72&\"'!$A$18:$A$50\"),0),MATCH(Parts!$B72,INDIRECT(\"'\"&A72&\"'!$10:$10\"),0)),0)","v":0},null,null,{"$f":"IFERROR(INDEX(INDIRECT(\"'\"&A72&\"'!$18:$50\"),MATCH($BW$1,INDIRECT(\"'\"&A72&\"'!$A$18:$A$50\"),0),MATCH(Parts!$B72,INDIRECT(\"'\"&A72&\"'!$10:$10\"),0)),0)","v":0},null,"Solar thermometer: € 35.00",{"$f":"IFERROR(INDEX(INDIRECT(\"'\"&A72&\"'!$18:$50\"),MATCH($BZ$1,INDIRECT(\"'\"&A72&\"'!$A$18:$A$50\"),0),MATCH(Parts!$B72,INDIRECT(\"'\"&A72&\"'!$10:$10\"),0)),0)","v":1},35,null,{"$f":"IFERROR(INDEX(INDIRECT(\"'\"&A72&\"'!$18:$50\"),MATCH($CC$1,INDIRECT(\"'\"&A72&\"'!$A$18:$A$50\"),0),MATCH(Parts!$B72,INDIRECT(\"'\"&A72&\"'!$10:$10\"),0)),0)","v":0},null,null,{"$f":"IFERROR(INDEX(INDIRECT(\"'\"&A72&\"'!$18:$50\"),MATCH($CF$1,INDIRECT(\"'\"&A72&\"'!$A$18:$A$50\"),0),MATCH(Parts!$B72,INDIRECT(\"'\"&A72&\"'!$10:$10\"),0)),0)","v":0},null,null,{"$f":"IFERROR(INDEX(INDIRECT(\"'\"&A72&\"'!$18:$50\"),MATCH($CI$1,INDIRECT(\"'\"&A72&\"'!$A$18:$A$50\"),0),MATCH(Parts!$B72,INDIRECT(\"'\"&A72&\"'!$10:$10\"),0)),0)","v":0},null,null,{"$f":"IFERROR(INDEX(INDIRECT(\"'\"&A72&\"'!$18:$50\"),MATCH($CL$1,INDIRECT(\"'\"&A72&\"'!$A$18:$A$50\"),0),MATCH(Parts!$B72,INDIRECT(\"'\"&A72&\"'!$10:$10\"),0)),0)","v":0},null,null,{"$f":"IFERROR(INDEX(INDIRECT(\"'\"&A72&\"'!$18:$50\"),MATCH($CO$1,INDIRECT(\"'\"&A72&\"'!$A$18:$A$50\"),0),MATCH(Parts!$B72,INDIRECT(\"'\"&A72&\"'!$10:$10\"),0)),0)","v":0},null,null,{"$f":"IFERROR(INDEX(INDIRECT(\"'\"&A72&\"'!$18:$50\"),MATCH($CR$1,INDIRECT(\"'\"&A72&\"'!$A$18:$A$50\"),0),MATCH(Parts!$B72,INDIRECT(\"'\"&A72&\"'!$10:$10\"),0)),0)","v":0},null,null,{"$f":"IFERROR(INDEX(INDIRECT(\"'\"&A72&\"'!$18:$50\"),MATCH($CU$1,INDIRECT(\"'\"&A72&\"'!$A$18:$A$50\"),0),MATCH(Parts!$B72,INDIRECT(\"'\"&A72&\"'!$10:$10\"),0)),0)","v":0},null,null,{"$f":"IFERROR(INDEX(INDIRECT(\"'\"&A72&\"'!$18:$50\"),MATCH($CX$1,INDIRECT(\"'\"&A72&\"'!$A$18:$A$50\"),0),MATCH(Parts!$B72,INDIRECT(\"'\"&A72&\"'!$10:$10\"),0)),0)","v":0},null,null,{"$f":"IFERROR(INDEX(INDIRECT(\"'\"&A72&\"'!$18:$50\"),MATCH($DA$1,INDIRECT(\"'\"&A72&\"'!$A$18:$A$50\"),0),MATCH(Parts!$B72,INDIRECT(\"'\"&A72&\"'!$10:$10\"),0)),0)","v":0},null,null,{"$f":"IFERROR(INDEX(INDIRECT(\"'\"&A72&\"'!$18:$50\"),MATCH($DD$1,INDIRECT(\"'\"&A72&\"'!$A$18:$A$50\"),0),MATCH(Parts!$B72,INDIRECT(\"'\"&A72&\"'!$10:$10\"),0)),0)","v":0},null,null,{"$f":"IFERROR(INDEX(INDIRECT(\"'\"&A72&\"'!$18:$50\"),MATCH($DG$1,INDIRECT(\"'\"&A72&\"'!$A$18:$A$50\"),0),MATCH(Parts!$B72,INDIRECT(\"'\"&A72&\"'!$10:$10\"),0)),0)","v":0},null,null,{"$f":"IFERROR(INDEX(INDIRECT(\"'\"&A72&\"'!$18:$50\"),MATCH($DJ$1,INDIRECT(\"'\"&A72&\"'!$A$18:$A$50\"),0),MATCH(Parts!$B72,INDIRECT(\"'\"&A72&\"'!$10:$10\"),0)),0)","v":0},null,null,{"$f":"IFERROR(INDEX(INDIRECT(\"'\"&A72&\"'!$18:$50\"),MATCH($DM$1,INDIRECT(\"'\"&A72&\"'!$A$18:$A$50\"),0),MATCH(Parts!$B72,INDIRECT(\"'\"&A72&\"'!$10:$10\"),0)),0)","v":0},null,"Temperature probe: € 5.00",{"$f":"IFERROR(INDEX(INDIRECT(\"'\"&A72&\"'!$18:$50\"),MATCH($DP$1,INDIRECT(\"'\"&A72&\"'!$A$18:$A$50\"),0),MATCH(Parts!$B72,INDIRECT(\"'\"&A72&\"'!$10:$10\"),0)),0)","v":1},5,"SDD controller: €191.00",{"$f":"IFERROR(INDEX(INDIRECT(\"'\"&A72&\"'!$18:$50\"),MATCH($DS$1,INDIRECT(\"'\"&A72&\"'!$A$18:$A$50\"),0),MATCH(Parts!$B72,INDIRECT(\"'\"&A72&\"'!$10:$10\"),0)),0)","v":1},191,null,{"$f":"IFERROR(INDEX(INDIRECT(\"'\"&A72&\"'!$18:$50\"),MATCH($DV$1,INDIRECT(\"'\"&A72&\"'!$A$18:$A$50\"),0),MATCH(Parts!$B72,INDIRECT(\"'\"&A72&\"'!$10:$10\"),0)),0)","v":0},null,null,{"$f":"IFERROR(INDEX(INDIRECT(\"'\"&A72&\"'!$18:$50\"),MATCH($DY$1,INDIRECT(\"'\"&A72&\"'!$A$18:$A$50\"),0),MATCH(Parts!$B72,INDIRECT(\"'\"&A72&\"'!$10:$10\"),0)),0)","v":0},null,"Fuse / surge protection pack: € 12.00",{"$f":"IFERROR(INDEX(INDIRECT(\"'\"&A72&\"'!$18:$50\"),MATCH($EB$1,INDIRECT(\"'\"&A72&\"'!$A$18:$A$50\"),0),MATCH(Parts!$B72,INDIRECT(\"'\"&A72&\"'!$10:$10\"),0)),0)","v":0},12,null,{"$f":"IFERROR(INDEX(INDIRECT(\"'\"&A72&\"'!$18:$50\"),MATCH($EE$1,INDIRECT(\"'\"&A72&\"'!$A$18:$A$50\"),0),MATCH(Parts!$B72,INDIRECT(\"'\"&A72&\"'!$10:$10\"),0)),0)","v":0},null,null,{"$f":"IFERROR(INDEX(INDIRECT(\"'\"&A72&\"'!$18:$50\"),MATCH($EH$1,INDIRECT(\"'\"&A72&\"'!$A$18:$A$50\"),0),MATCH(Parts!$B72,INDIRECT(\"'\"&A72&\"'!$10:$10\"),0)),0)","v":0},null,null,{"$f":"IFERROR(INDEX(INDIRECT(\"'\"&A72&\"'!$18:$50\"),MATCH($EK$1,INDIRECT(\"'\"&A72&\"'!$A$18:$A$50\"),0),MATCH(Parts!$B72,INDIRECT(\"'\"&A72&\"'!$10:$10\"),0)),0)","v":0}]
[{"$f":"PQS!A75","v":"SDD"},{"$f":"PQS!B75","v":"E003/059"},{"$f":"PQS!E75","v":"VC 88 SDD*"},{"$f":"PQS!P75","v":"€"},{"$f":"SUM(G73*H73,J73*K73,M73*N73,P73*Q73,S73*T73,V73*W73,Y73*Z73,AB73*AC73,AE73*AF73,AH73*AI73,AK73*AL73,AN73*AO73,AQ73*AR73,AT73*AU73,AW73*AX73,AZ73*BA73,BC73*BD73,BF73*BG73,BI73*BJ73,BL73*BM73,BO73*BP73, BR73*BS73,BU73*BV73, BX73*BY73, CA73*CB73,CD73*CE73,CG73*CH73,CJ73*CK73,CM73*CN73,CP73*CQ73,CS73*CT73,CV73*CW73,CY73*CZ73,DB73*DC73,DE73*DF73,DH73*DI73,DK73*DL73,DN73*DO73,DQ73*DR73,DT73*DU73,DW73*DX73,DZ73*EA73,EC73*ED73,EF73*EG73,EI73*EJ73,EL73*EM73)","v":371},"Compressor Danfoss BD35K: €178.00",{"$f":"IFERROR(INDEX(INDIRECT(\"'\"&A73&\"'!$18:$50\"),MATCH(Parts!F$1,INDIRECT(\"'\"&A73&\"'!$A$18:$A$50\"),0),MATCH(Parts!$B73,INDIRECT(\"'\"&A73&\"'!$10:$10\"),0)),0)","v":0},178,null,{"$f":"IFERROR(INDEX(INDIRECT(\"'\"&A73&\"'!$18:$50\"),MATCH($I$1,INDIRECT(\"'\"&A73&\"'!$A$18:$A$50\"),0),MATCH(Parts!$B73,INDIRECT(\"'\"&A73&\"'!$10:$10\"),0)),0)","v":0},null,"Controller Danfoss 101N0420: €140.00",{"$f":"IFERROR(INDEX(INDIRECT(\"'\"&A73&\"'!$18:$50\"),MATCH($L$1,INDIRECT(\"'\"&A73&\"'!$A$18:$A$50\"),0),MATCH(Parts!$B73,INDIRECT(\"'\"&A73&\"'!$10:$10\"),0)),0)","v":1},140,null,{"$f":"IFERROR(INDEX(INDIRECT(\"'\"&A73&\"'!$18:$50\"),MATCH($O$1,INDIRECT(\"'\"&A73&\"'!$A$18:$A$50\"),0),MATCH(Parts!$B73,INDIRECT(\"'\"&A73&\"'!$10:$10\"),0)),0)","v":0},null,null,{"$f":"IFERROR(INDEX(INDIRECT(\"'\"&A73&\"'!$18:$50\"),MATCH($R$1,INDIRECT(\"'\"&A73&\"'!$A$18:$A$50\"),0),MATCH(Parts!$B73,INDIRECT(\"'\"&A73&\"'!$10:$10\"),0)),0)","v":0},null,null,{"$f":"IFERROR(INDEX(INDIRECT(\"'\"&A73&\"'!$18:$50\"),MATCH($U$1,INDIRECT(\"'\"&A73&\"'!$A$18:$A$50\"),0),MATCH(Parts!$B73,INDIRECT(\"'\"&A73&\"'!$10:$10\"),0)),0)","v":0},null,null,{"$f":"IFERROR(INDEX(INDIRECT(\"'\"&A73&\"'!$18:$50\"),MATCH($X$1,INDIRECT(\"'\"&A73&\"'!$A$18:$A$50\"),0),MATCH(Parts!$B73,INDIRECT(\"'\"&A73&\"'!$10:$10\"),0)),0)","v":0},null,null,{"$f":"IFERROR(INDEX(INDIRECT(\"'\"&A73&\"'!$18:$50\"),MATCH($AA$1,INDIRECT(\"'\"&A73&\"'!$A$18:$A$50\"),0),MATCH(Parts!$B73,INDIRECT(\"'\"&A73&\"'!$10:$10\"),0)),0)","v":0},null,null,{"$f":"IFERROR(INDEX(INDIRECT(\"'\"&A73&\"'!$18:$50\"),MATCH($AD$1,INDIRECT(\"'\"&A73&\"'!$A$18:$A$50\"),0),MATCH(Parts!$B73,INDIRECT(\"'\"&A73&\"'!$10:$10\"),0)),0)","v":0},null,null,{"$f":"IFERROR(INDEX(INDIRECT(\"'\"&A73&\"'!$18:$50\"),MATCH($AG$1,INDIRECT(\"'\"&A73&\"'!$A$18:$A$50\"),0),MATCH(Parts!$B73,INDIRECT(\"'\"&A73&\"'!$10:$10\"),0)),0)","v":0},null,null,{"$f":"IFERROR(INDEX(INDIRECT(\"'\"&A73&\"'!$18:$50\"),MATCH($AJ$1,INDIRECT(\"'\"&A73&\"'!$A$18:$A$50\"),0),MATCH(Parts!$B73,INDIRECT(\"'\"&A73&\"'!$10:$10\"),0)),0)","v":0},null,"MCB fridge / isolation switch: €19.05",{"$f":"IFERROR(INDEX(INDIRECT(\"'\"&A73&\"'!$18:$50\"),MATCH($AM$1,INDIRECT(\"'\"&A73&\"'!$A$18:$A$50\"),0),MATCH(Parts!$B73,INDIRECT(\"'\"&A73&\"'!$10:$10\"),0)),0)","v":0},19.05,null,{"$f":"IFERROR(INDEX(INDIRECT(\"'\"&A73&\"'!$18:$50\"),MATCH($AP$1,INDIRECT(\"'\"&A73&\"'!$A$18:$A$50\"),0),MATCH(Parts!$B73,INDIRECT(\"'\"&A73&\"'!$10:$10\"),0)),0)","v":0},null,null,{"$f":"IFERROR(INDEX(INDIRECT(\"'\"&A73&\"'!$18:$50\"),MATCH($AS$1,INDIRECT(\"'\"&A73&\"'!$A$18:$A$50\"),0),MATCH(Parts!$B73,INDIRECT(\"'\"&A73&\"'!$10:$10\"),0)),0)","v":0},null,null,{"$f":"IFERROR(INDEX(INDIRECT(\"'\"&A73&\"'!$18:$50\"),MATCH($AV$1,INDIRECT(\"'\"&A73&\"'!$A$18:$A$50\"),0),MATCH(Parts!$B73,INDIRECT(\"'\"&A73&\"'!$10:$10\"),0)),0)","v":0},null,null,{"$f":"IFERROR(INDEX(INDIRECT(\"'\"&A73&\"'!$18:$50\"),MATCH($AY$1,INDIRECT(\"'\"&A73&\"'!$A$18:$A$50\"),0),MATCH(Parts!$B73,INDIRECT(\"'\"&A73&\"'!$10:$10\"),0)),0)","v":0},null,null,{"$f":"IFERROR(INDEX(INDIRECT(\"'\"&A73&\"'!$18:$50\"),MATCH($BB$1,INDIRECT(\"'\"&A73&\"'!$A$18:$A$50\"),0),MATCH(Parts!$B73,INDIRECT(\"'\"&A73&\"'!$10:$10\"),0)),0)","v":0},null,null,{"$f":"IFERROR(INDEX(INDIRECT(\"'\"&A73&\"'!$18:$50\"),MATCH($BE$1,INDIRECT(\"'\"&A73&\"'!$A$18:$A$50\"),0),MATCH(Parts!$B73,INDIRECT(\"'\"&A73&\"'!$10:$10\"),0)),0)","v":0},null,null,{"$f":"IFERROR(INDEX(INDIRECT(\"'\"&A73&\"'!$18:$50\"),MATCH($BH$1,INDIRECT(\"'\"&A73&\"'!$A$18:$A$50\"),0),MATCH(Parts!$B73,INDIRECT(\"'\"&A73&\"'!$10:$10\"),0)),0)","v":0},null,null,{"$f":"IFERROR(INDEX(INDIRECT(\"'\"&A73&\"'!$18:$50\"),MATCH($BK$1,INDIRECT(\"'\"&A73&\"'!$A$18:$A$50\"),0),MATCH(Parts!$B73,INDIRECT(\"'\"&A73&\"'!$10:$10\"),0)),0)","v":0},null,null,{"$f":"IFERROR(INDEX(INDIRECT(\"'\"&A73&\"'!$18:$50\"),MATCH($BN$1,INDIRECT(\"'\"&A73&\"'!$A$18:$A$50\"),0),MATCH(Parts!$B73,INDIRECT(\"'\"&A73&\"'!$10:$10\"),0)),0)","v":0},null,null,{"$f":"IFERROR(INDEX(INDIRECT(\"'\"&A73&\"'!$18:$50\"),MATCH($BQ$1,INDIRECT(\"'\"&A73&\"'!$A$18:$A$50\"),0),MATCH(Parts!$B73,INDIRECT(\"'\"&A73&\"'!$10:$10\"),0)),0)","v":0},null,null,{"$f":"IFERROR(INDEX(INDIRECT(\"'\"&A73&\"'!$18:$50\"),MATCH($BT$1,INDIRECT(\"'\"&A73&\"'!$A$18:$A$50\"),0),MATCH(Parts!$B73,INDIRECT(\"'\"&A73&\"'!$10:$10\"),0)),0)","v":0},null,null,{"$f":"IFERROR(INDEX(INDIRECT(\"'\"&A73&\"'!$18:$50\"),MATCH($BW$1,INDIRECT(\"'\"&A73&\"'!$A$18:$A$50\"),0),MATCH(Parts!$B73,INDIRECT(\"'\"&A73&\"'!$10:$10\"),0)),0)","v":0},null,"Solar thermometer: € 35.00",{"$f":"IFERROR(INDEX(INDIRECT(\"'\"&A73&\"'!$18:$50\"),MATCH($BZ$1,INDIRECT(\"'\"&A73&\"'!$A$18:$A$50\"),0),MATCH(Parts!$B73,INDIRECT(\"'\"&A73&\"'!$10:$10\"),0)),0)","v":1},35,null,{"$f":"IFERROR(INDEX(INDIRECT(\"'\"&A73&\"'!$18:$50\"),MATCH($CC$1,INDIRECT(\"'\"&A73&\"'!$A$18:$A$50\"),0),MATCH(Parts!$B73,INDIRECT(\"'\"&A73&\"'!$10:$10\"),0)),0)","v":0},null,null,{"$f":"IFERROR(INDEX(INDIRECT(\"'\"&A73&\"'!$18:$50\"),MATCH($CF$1,INDIRECT(\"'\"&A73&\"'!$A$18:$A$50\"),0),MATCH(Parts!$B73,INDIRECT(\"'\"&A73&\"'!$10:$10\"),0)),0)","v":0},null,null,{"$f":"IFERROR(INDEX(INDIRECT(\"'\"&A73&\"'!$18:$50\"),MATCH($CI$1,INDIRECT(\"'\"&A73&\"'!$A$18:$A$50\"),0),MATCH(Parts!$B73,INDIRECT(\"'\"&A73&\"'!$10:$10\"),0)),0)","v":0},null,null,{"$f":"IFERROR(INDEX(INDIRECT(\"'\"&A73&\"'!$18:$50\"),MATCH($CL$1,INDIRECT(\"'\"&A73&\"'!$A$18:$A$50\"),0),MATCH(Parts!$B73,INDIRECT(\"'\"&A73&\"'!$10:$10\"),0)),0)","v":0},null,null,{"$f":"IFERROR(INDEX(INDIRECT(\"'\"&A73&\"'!$18:$50\"),MATCH($CO$1,INDIRECT(\"'\"&A73&\"'!$A$18:$A$50\"),0),MATCH(Parts!$B73,INDIRECT(\"'\"&A73&\"'!$10:$10\"),0)),0)","v":0},null,null,{"$f":"IFERROR(INDEX(INDIRECT(\"'\"&A73&\"'!$18:$50\"),MATCH($CR$1,INDIRECT(\"'\"&A73&\"'!$A$18:$A$50\"),0),MATCH(Parts!$B73,INDIRECT(\"'\"&A73&\"'!$10:$10\"),0)),0)","v":0},null,null,{"$f":"IFERROR(INDEX(INDIRECT(\"'\"&A73&\"'!$18:$50\"),MATCH($CU$1,INDIRECT(\"'\"&A73&\"'!$A$18:$A$50\"),0),MATCH(Parts!$B73,INDIRECT(\"'\"&A73&\"'!$10:$10\"),0)),0)","v":0},null,null,{"$f":"IFERROR(INDEX(INDIRECT(\"'\"&A73&\"'!$18:$50\"),MATCH($CX$1,INDIRECT(\"'\"&A73&\"'!$A$18:$A$50\"),0),MATCH(Parts!$B73,INDIRECT(\"'\"&A73&\"'!$10:$10\"),0)),0)","v":0},null,null,{"$f":"IFERROR(INDEX(INDIRECT(\"'\"&A73&\"'!$18:$50\"),MATCH($DA$1,INDIRECT(\"'\"&A73&\"'!$A$18:$A$50\"),0),MATCH(Parts!$B73,INDIRECT(\"'\"&A73&\"'!$10:$10\"),0)),0)","v":0},null,null,{"$f":"IFERROR(INDEX(INDIRECT(\"'\"&A73&\"'!$18:$50\"),MATCH($DD$1,INDIRECT(\"'\"&A73&\"'!$A$18:$A$50\"),0),MATCH(Parts!$B73,INDIRECT(\"'\"&A73&\"'!$10:$10\"),0)),0)","v":0},null,null,{"$f":"IFERROR(INDEX(INDIRECT(\"'\"&A73&\"'!$18:$50\"),MATCH($DG$1,INDIRECT(\"'\"&A73&\"'!$A$18:$A$50\"),0),MATCH(Parts!$B73,INDIRECT(\"'\"&A73&\"'!$10:$10\"),0)),0)","v":0},null,null,{"$f":"IFERROR(INDEX(INDIRECT(\"'\"&A73&\"'!$18:$50\"),MATCH($DJ$1,INDIRECT(\"'\"&A73&\"'!$A$18:$A$50\"),0),MATCH(Parts!$B73,INDIRECT(\"'\"&A73&\"'!$10:$10\"),0)),0)","v":0},null,null,{"$f":"IFERROR(INDEX(INDIRECT(\"'\"&A73&\"'!$18:$50\"),MATCH($DM$1,INDIRECT(\"'\"&A73&\"'!$A$18:$A$50\"),0),MATCH(Parts!$B73,INDIRECT(\"'\"&A73&\"'!$10:$10\"),0)),0)","v":0},null,"Temperature probe: € 5.00",{"$f":"IFERROR(INDEX(INDIRECT(\"'\"&A73&\"'!$18:$50\"),MATCH($DP$1,INDIRECT(\"'\"&A73&\"'!$A$18:$A$50\"),0),MATCH(Parts!$B73,INDIRECT(\"'\"&A73&\"'!$10:$10\"),0)),0)","v":1},5,"SDD controller: €191.00",{"$f":"IFERROR(INDEX(INDIRECT(\"'\"&A73&\"'!$18:$50\"),MATCH($DS$1,INDIRECT(\"'\"&A73&\"'!$A$18:$A$50\"),0),MATCH(Parts!$B73,INDIRECT(\"'\"&A73&\"'!$10:$10\"),0)),0)","v":1},191,null,{"$f":"IFERROR(INDEX(INDIRECT(\"'\"&A73&\"'!$18:$50\"),MATCH($DV$1,INDIRECT(\"'\"&A73&\"'!$A$18:$A$50\"),0),MATCH(Parts!$B73,INDIRECT(\"'\"&A73&\"'!$10:$10\"),0)),0)","v":0},null,null,{"$f":"IFERROR(INDEX(INDIRECT(\"'\"&A73&\"'!$18:$50\"),MATCH($DY$1,INDIRECT(\"'\"&A73&\"'!$A$18:$A$50\"),0),MATCH(Parts!$B73,INDIRECT(\"'\"&A73&\"'!$10:$10\"),0)),0)","v":0},null,"Fuse / surge protection pack: € 12.00",{"$f":"IFERROR(INDEX(INDIRECT(\"'\"&A73&\"'!$18:$50\"),MATCH($EB$1,INDIRECT(\"'\"&A73&\"'!$A$18:$A$50\"),0),MATCH(Parts!$B73,INDIRECT(\"'\"&A73&\"'!$10:$10\"),0)),0)","v":0},12,null,{"$f":"IFERROR(INDEX(INDIRECT(\"'\"&A73&\"'!$18:$50\"),MATCH($EE$1,INDIRECT(\"'\"&A73&\"'!$A$18:$A$50\"),0),MATCH(Parts!$B73,INDIRECT(\"'\"&A73&\"'!$10:$10\"),0)),0)","v":0},null,null,{"$f":"IFERROR(INDEX(INDIRECT(\"'\"&A73&\"'!$18:$50\"),MATCH($EH$1,INDIRECT(\"'\"&A73&\"'!$A$18:$A$50\"),0),MATCH(Parts!$B73,INDIRECT(\"'\"&A73&\"'!$10:$10\"),0)),0)","v":0},null,null,{"$f":"IFERROR(INDEX(INDIRECT(\"'\"&A73&\"'!$18:$50\"),MATCH($EK$1,INDIRECT(\"'\"&A73&\"'!$A$18:$A$50\"),0),MATCH(Parts!$B73,INDIRECT(\"'\"&A73&\"'!$10:$10\"),0)),0)","v":0}]
[{"$f":"PQS!A76","v":"SDD"},{"$f":"PQS!B76","v":"E003/067"},{"$f":"PQS!E76","v":"TCW 15R SDD*"},{"$f":"PQS!P76","v":"€"},644.14,"Compressor: 296.9702.09: 116,94 €",{"$f":"IFERROR(INDEX(INDIRECT(\"'\"&A74&\"'!$18:$50\"),MATCH(Parts!F$1,INDIRECT(\"'\"&A74&\"'!$A$18:$A$50\"),0),MATCH(Parts!$B74,INDIRECT(\"'\"&A74&\"'!$10:$10\"),0)),0)","v":1},116.94,null,{"$f":"IFERROR(INDEX(INDIRECT(\"'\"&A74&\"'!$18:$50\"),MATCH($I$1,INDIRECT(\"'\"&A74&\"'!$A$18:$A$50\"),0),MATCH(Parts!$B74,INDIRECT(\"'\"&A74&\"'!$10:$10\"),0)),0)","v":0},null,null,{"$f":"IFERROR(INDEX(INDIRECT(\"'\"&A74&\"'!$18:$50\"),MATCH($L$1,INDIRECT(\"'\"&A74&\"'!$A$18:$A$50\"),0),MATCH(Parts!$B74,INDIRECT(\"'\"&A74&\"'!$10:$10\"),0)),0)","v":0},null,null,{"$f":"IFERROR(INDEX(INDIRECT(\"'\"&A74&\"'!$18:$50\"),MATCH($O$1,INDIRECT(\"'\"&A74&\"'!$A$18:$A$50\"),0),MATCH(Parts!$B74,INDIRECT(\"'\"&A74&\"'!$10:$10\"),0)),0)","v":0},null,"Controller board: 296.9769.82: 138.28 €",{"$f":"IFERROR(INDEX(INDIRECT(\"'\"&A74&\"'!$18:$50\"),MATCH($R$1,INDIRECT(\"'\"&A74&\"'!$A$18:$A$50\"),0),MATCH(Parts!$B74,INDIRECT(\"'\"&A74&\"'!$10:$10\"),0)),0)","v":1},138.28,null,{"$f":"IFERROR(INDEX(INDIRECT(\"'\"&A74&\"'!$18:$50\"),MATCH($U$1,INDIRECT(\"'\"&A74&\"'!$A$18:$A$50\"),0),MATCH(Parts!$B74,INDIRECT(\"'\"&A74&\"'!$10:$10\"),0)),0)","v":0},null,"Fan compressor; 292.9960.06",{"$f":"IFERROR(INDEX(INDIRECT(\"'\"&A74&\"'!$18:$50\"),MATCH($X$1,INDIRECT(\"'\"&A74&\"'!$A$18:$A$50\"),0),MATCH(Parts!$B74,INDIRECT(\"'\"&A74&\"'!$10:$10\"),0)),0)","v":1},72.819999999999993,null,{"$f":"IFERROR(INDEX(INDIRECT(\"'\"&A74&\"'!$18:$50\"),MATCH($AA$1,INDIRECT(\"'\"&A74&\"'!$A$18:$A$50\"),0),MATCH(Parts!$B74,INDIRECT(\"'\"&A74&\"'!$10:$10\"),0)),0)","v":0},null,null,{"$f":"IFERROR(INDEX(INDIRECT(\"'\"&A74&\"'!$18:$50\"),MATCH($AD$1,INDIRECT(\"'\"&A74&\"'!$A$18:$A$50\"),0),MATCH(Parts!$B74,INDIRECT(\"'\"&A74&\"'!$10:$10\"),0)),0)","v":0},null,null,{"$f":"IFERROR(INDEX(INDIRECT(\"'\"&A74&\"'!$18:$50\"),MATCH($AG$1,INDIRECT(\"'\"&A74&\"'!$A$18:$A$50\"),0),MATCH(Parts!$B74,INDIRECT(\"'\"&A74&\"'!$10:$10\"),0)),0)","v":0},null,"E Box: 296.9705.12",{"$f":"IFERROR(INDEX(INDIRECT(\"'\"&A74&\"'!$18:$50\"),MATCH($AJ$1,INDIRECT(\"'\"&A74&\"'!$A$18:$A$50\"),0),MATCH(Parts!$B74,INDIRECT(\"'\"&A74&\"'!$10:$10\"),0)),0)","v":1},104.96,"Main switch: 292.2044.11",{"$f":"IFERROR(INDEX(INDIRECT(\"'\"&A74&\"'!$18:$50\"),MATCH($AM$1,INDIRECT(\"'\"&A74&\"'!$A$18:$A$50\"),0),MATCH(Parts!$B74,INDIRECT(\"'\"&A74&\"'!$10:$10\"),0)),0)","v":1},2.76,null,{"$f":"IFERROR(INDEX(INDIRECT(\"'\"&A74&\"'!$18:$50\"),MATCH($AP$1,INDIRECT(\"'\"&A74&\"'!$A$18:$A$50\"),0),MATCH(Parts!$B74,INDIRECT(\"'\"&A74&\"'!$10:$10\"),0)),0)","v":0},null,"Basket TCW15SDD   292.9427.50",{"$f":"IFERROR(INDEX(INDIRECT(\"'\"&A74&\"'!$18:$50\"),MATCH($AS$1,INDIRECT(\"'\"&A74&\"'!$A$18:$A$50\"),0),MATCH(Parts!$B74,INDIRECT(\"'\"&A74&\"'!$10:$10\"),0)),0)","v":1},14.12,null,{"$f":"IFERROR(INDEX(INDIRECT(\"'\"&A74&\"'!$18:$50\"),MATCH($AV$1,INDIRECT(\"'\"&A74&\"'!$A$18:$A$50\"),0),MATCH(Parts!$B74,INDIRECT(\"'\"&A74&\"'!$10:$10\"),0)),0)","v":0},null,null,{"$f":"IFERROR(INDEX(INDIRECT(\"'\"&A74&\"'!$18:$50\"),MATCH($AY$1,INDIRECT(\"'\"&A74&\"'!$A$18:$A$50\"),0),MATCH(Parts!$B74,INDIRECT(\"'\"&A74&\"'!$10:$10\"),0)),0)","v":0},null,null,{"$f":"IFERROR(INDEX(INDIRECT(\"'\"&A74&\"'!$18:$50\"),MATCH($BB$1,INDIRECT(\"'\"&A74&\"'!$A$18:$A$50\"),0),MATCH(Parts!$B74,INDIRECT(\"'\"&A74&\"'!$10:$10\"),0)),0)","v":0},null,null,{"$f":"IFERROR(INDEX(INDIRECT(\"'\"&A74&\"'!$18:$50\"),MATCH($BE$1,INDIRECT(\"'\"&A74&\"'!$A$18:$A$50\"),0),MATCH(Parts!$B74,INDIRECT(\"'\"&A74&\"'!$10:$10\"),0)),0)","v":0},null,"Drier   296.0945.04",{"$f":"IFERROR(INDEX(INDIRECT(\"'\"&A74&\"'!$18:$50\"),MATCH($BH$1,INDIRECT(\"'\"&A74&\"'!$A$18:$A$50\"),0),MATCH(Parts!$B74,INDIRECT(\"'\"&A74&\"'!$10:$10\"),0)),0)","v":1},2.0699999999999998,"Wire 2,5 RT Fuse 15A Clip   296.0924.52",{"$f":"IFERROR(INDEX(INDIRECT(\"'\"&A74&\"'!$18:$50\"),MATCH($BK$1,INDIRECT(\"'\"&A74&\"'!$A$18:$A$50\"),0),MATCH(Parts!$B74,INDIRECT(\"'\"&A74&\"'!$10:$10\"),0)),0)","v":1},12.74,null,{"$f":"IFERROR(INDEX(INDIRECT(\"'\"&A74&\"'!$18:$50\"),MATCH($BN$1,INDIRECT(\"'\"&A74&\"'!$A$18:$A$50\"),0),MATCH(Parts!$B74,INDIRECT(\"'\"&A74&\"'!$10:$10\"),0)),0)","v":0},null,"Inner Hinge  292.8503.31",{"$f":"IFERROR(INDEX(INDIRECT(\"'\"&A74&\"'!$18:$50\"),MATCH($BQ$1,INDIRECT(\"'\"&A74&\"'!$A$18:$A$50\"),0),MATCH(Parts!$B74,INDIRECT(\"'\"&A74&\"'!$10:$10\"),0)),0)","v":1},8.41,"Cover Hinge  296.4018.00",{"$f":"IFERROR(INDEX(INDIRECT(\"'\"&A74&\"'!$18:$50\"),MATCH($BT$1,INDIRECT(\"'\"&A74&\"'!$A$18:$A$50\"),0),MATCH(Parts!$B74,INDIRECT(\"'\"&A74&\"'!$10:$10\"),0)),0)","v":1},0.73,null,{"$f":"IFERROR(INDEX(INDIRECT(\"'\"&A74&\"'!$18:$50\"),MATCH($BW$1,INDIRECT(\"'\"&A74&\"'!$A$18:$A$50\"),0),MATCH(Parts!$B74,INDIRECT(\"'\"&A74&\"'!$10:$10\"),0)),0)","v":0},null,null,{"$f":"IFERROR(INDEX(INDIRECT(\"'\"&A74&\"'!$18:$50\"),MATCH($BZ$1,INDIRECT(\"'\"&A74&\"'!$A$18:$A$50\"),0),MATCH(Parts!$B74,INDIRECT(\"'\"&A74&\"'!$10:$10\"),0)),0)","v":0},null,"Ice Pack TCW15SDD   292.8580.27",{"$f":"IFERROR(INDEX(INDIRECT(\"'\"&A74&\"'!$18:$50\"),MATCH($CC$1,INDIRECT(\"'\"&A74&\"'!$A$18:$A$50\"),0),MATCH(Parts!$B74,INDIRECT(\"'\"&A74&\"'!$10:$10\"),0)),0)","v":1},18.29,null,{"$f":"IFERROR(INDEX(INDIRECT(\"'\"&A74&\"'!$18:$50\"),MATCH($CF$1,INDIRECT(\"'\"&A74&\"'!$A$18:$A$50\"),0),MATCH(Parts!$B74,INDIRECT(\"'\"&A74&\"'!$10:$10\"),0)),0)","v":0},null,null,{"$f":"IFERROR(INDEX(INDIRECT(\"'\"&A74&\"'!$18:$50\"),MATCH($CI$1,INDIRECT(\"'\"&A74&\"'!$A$18:$A$50\"),0),MATCH(Parts!$B74,INDIRECT(\"'\"&A74&\"'!$10:$10\"),0)),0)","v":0},null,null,{"$f":"IFERROR(INDEX(INDIRECT(\"'\"&A74&\"'!$18:$50\"),MATCH($CL$1,INDIRECT(\"'\"&A74&\"'!$A$18:$A$50\"),0),MATCH(Parts!$B74,INDIRECT(\"'\"&A74&\"'!$10:$10\"),0)),0)","v":0},null,null,{"$f":"IFERROR(INDEX(INDIRECT(\"'\"&A74&\"'!$18:$50\"),MATCH($CO$1,INDIRECT(\"'\"&A74&\"'!$A$18:$A$50\"),0),MATCH(Parts!$B74,INDIRECT(\"'\"&A74&\"'!$10:$10\"),0)),0)","v":0},null,"Sensor Logger   296.9712.01",{"$f":"IFERROR(INDEX(INDIRECT(\"'\"&A74&\"'!$18:$50\"),MATCH($CR$1,INDIRECT(\"'\"&A74&\"'!$A$18:$A$50\"),0),MATCH(Parts!$B74,INDIRECT(\"'\"&A74&\"'!$10:$10\"),0)),0)","v":1},32.39,null,{"$f":"IFERROR(INDEX(INDIRECT(\"'\"&A74&\"'!$18:$50\"),MATCH($CU$1,INDIRECT(\"'\"&A74&\"'!$A$18:$A$50\"),0),MATCH(Parts!$B74,INDIRECT(\"'\"&A74&\"'!$10:$10\"),0)),0)","v":0},null,null,{"$f":"IFERROR(INDEX(INDIRECT(\"'\"&A74&\"'!$18:$50\"),MATCH($CX$1,INDIRECT(\"'\"&A74&\"'!$A$18:$A$50\"),0),MATCH(Parts!$B74,INDIRECT(\"'\"&A74&\"'!$10:$10\"),0)),0)","v":0},null,null,{"$f":"IFERROR(INDEX(INDIRECT(\"'\"&A74&\"'!$18:$50\"),MATCH($DA$1,INDIRECT(\"'\"&A74&\"'!$A$18:$A$50\"),0),MATCH(Parts!$B74,INDIRECT(\"'\"&A74&\"'!$10:$10\"),0)),0)","v":0},null,null,{"$f":"IFERROR(INDEX(INDIRECT(\"'\"&A74&\"'!$18:$50\"),MATCH($DD$1,INDIRECT(\"'\"&A74&\"'!$A$18:$A$50\"),0),MATCH(Parts!$B74,INDIRECT(\"'\"&A74&\"'!$10:$10\"),0)),0)","v":0},null,null,{"$f":"IFERROR(INDEX(INDIRECT(\"'\"&A74&\"'!$18:$50\"),MATCH($DG$1,INDIRECT(\"'\"&A74&\"'!$A$18:$A$50\"),0),MATCH(Parts!$B74,INDIRECT(\"'\"&A74&\"'!$10:$10\"),0)),0)","v":0},null,null,{"$f":"IFERROR(INDEX(INDIRECT(\"'\"&A74&\"'!$18:$50\"),MATCH($DJ$1,INDIRECT(\"'\"&A74&\"'!$A$18:$A$50\"),0),MATCH(Parts!$B74,INDIRECT(\"'\"&A74&\"'!$10:$10\"),0)),0)","v":0},null,null,{"$f":"IFERROR(INDEX(INDIRECT(\"'\"&A74&\"'!$18:$50\"),MATCH($DM$1,INDIRECT(\"'\"&A74&\"'!$A$18:$A$50\"),0),MATCH(Parts!$B74,INDIRECT(\"'\"&A74&\"'!$10:$10\"),0)),0)","v":0},null,null,{"$f":"IFERROR(INDEX(INDIRECT(\"'\"&A74&\"'!$18:$50\"),MATCH($DP$1,INDIRECT(\"'\"&A74&\"'!$A$18:$A$50\"),0),MATCH(Parts!$B74,INDIRECT(\"'\"&A74&\"'!$10:$10\"),0)),0)","v":0},null,null,{"$f":"IFERROR(INDEX(INDIRECT(\"'\"&A74&\"'!$18:$50\"),MATCH($DS$1,INDIRECT(\"'\"&A74&\"'!$A$18:$A$50\"),0),MATCH(Parts!$B74,INDIRECT(\"'\"&A74&\"'!$10:$10\"),0)),0)","v":0},null,"Sensor cooler: 296.9804.73",{"$f":"IFERROR(INDEX(INDIRECT(\"'\"&A74&\"'!$18:$50\"),MATCH($DV$1,INDIRECT(\"'\"&A74&\"'!$A$18:$A$50\"),0),MATCH(Parts!$B74,INDIRECT(\"'\"&A74&\"'!$10:$10\"),0)),0)","v":1},46.14,"Sensor heater: 296.9804.72",{"$f":"IFERROR(INDEX(INDIRECT(\"'\"&A74&\"'!$18:$50\"),MATCH($DY$1,INDIRECT(\"'\"&A74&\"'!$A$18:$A$50\"),0),MATCH(Parts!$B74,INDIRECT(\"'\"&A74&\"'!$10:$10\"),0)),0)","v":1},35.17,null,{"$f":"IFERROR(INDEX(INDIRECT(\"'\"&A74&\"'!$18:$50\"),MATCH($EB$1,INDIRECT(\"'\"&A74&\"'!$A$18:$A$50\"),0),MATCH(Parts!$B74,INDIRECT(\"'\"&A74&\"'!$10:$10\"),0)),0)","v":0},null,"Display board: 296.9769.8",{"$f":"IFERROR(INDEX(INDIRECT(\"'\"&A74&\"'!$18:$50\"),MATCH($EE$1,INDIRECT(\"'\"&A74&\"'!$A$18:$A$50\"),0),MATCH(Parts!$B74,INDIRECT(\"'\"&A74&\"'!$10:$10\"),0)),0)","v":1},38.32,null,{"$f":"IFERROR(INDEX(INDIRECT(\"'\"&A74&\"'!$18:$50\"),MATCH($EH$1,INDIRECT(\"'\"&A74&\"'!$A$18:$A$50\"),0),MATCH(Parts!$B74,INDIRECT(\"'\"&A74&\"'!$10:$10\"),0)),0)","v":0},null,null,{"$f":"IFERROR(INDEX(INDIRECT(\"'\"&A74&\"'!$18:$50\"),MATCH($EK$1,INDIRECT(\"'\"&A74&\"'!$A$18:$A$50\"),0),MATCH(Parts!$B74,INDIRECT(\"'\"&A74&\"'!$10:$10\"),0)),0)","v":0}]
[{"$f":"PQS!A77","v":"SDD"},{"$f":"PQS!B77","v":"E003/068"},{"$f":"PQS!E77","v":"TCW 40R SDD*"},{"$f":"PQS!P77","v":"€"},706.87999999999988,"Compressor: 296.9702.09: 116,94 €",{"$f":"IFERROR(INDEX(INDIRECT(\"'\"&A75&\"'!$18:$50\"),MATCH(Parts!F$1,INDIRECT(\"'\"&A75&\"'!$A$18:$A$50\"),0),MATCH(Parts!$B75,INDIRECT(\"'\"&A75&\"'!$10:$10\"),0)),0)","v":1},116.94,null,{"$f":"IFERROR(INDEX(INDIRECT(\"'\"&A75&\"'!$18:$50\"),MATCH($I$1,INDIRECT(\"'\"&A75&\"'!$A$18:$A$50\"),0),MATCH(Parts!$B75,INDIRECT(\"'\"&A75&\"'!$10:$10\"),0)),0)","v":0},null,null,{"$f":"IFERROR(INDEX(INDIRECT(\"'\"&A75&\"'!$18:$50\"),MATCH($L$1,INDIRECT(\"'\"&A75&\"'!$A$18:$A$50\"),0),MATCH(Parts!$B75,INDIRECT(\"'\"&A75&\"'!$10:$10\"),0)),0)","v":0},null,null,{"$f":"IFERROR(INDEX(INDIRECT(\"'\"&A75&\"'!$18:$50\"),MATCH($O$1,INDIRECT(\"'\"&A75&\"'!$A$18:$A$50\"),0),MATCH(Parts!$B75,INDIRECT(\"'\"&A75&\"'!$10:$10\"),0)),0)","v":0},null,"Controller board: 296.9769.82: 138.28 €",{"$f":"IFERROR(INDEX(INDIRECT(\"'\"&A75&\"'!$18:$50\"),MATCH($R$1,INDIRECT(\"'\"&A75&\"'!$A$18:$A$50\"),0),MATCH(Parts!$B75,INDIRECT(\"'\"&A75&\"'!$10:$10\"),0)),0)","v":1},138.28,null,{"$f":"IFERROR(INDEX(INDIRECT(\"'\"&A75&\"'!$18:$50\"),MATCH($U$1,INDIRECT(\"'\"&A75&\"'!$A$18:$A$50\"),0),MATCH(Parts!$B75,INDIRECT(\"'\"&A75&\"'!$10:$10\"),0)),0)","v":0},null,"Fan compressor; 292.9960.06",{"$f":"IFERROR(INDEX(INDIRECT(\"'\"&A75&\"'!$18:$50\"),MATCH($X$1,INDIRECT(\"'\"&A75&\"'!$A$18:$A$50\"),0),MATCH(Parts!$B75,INDIRECT(\"'\"&A75&\"'!$10:$10\"),0)),0)","v":1},66.069999999999993,null,{"$f":"IFERROR(INDEX(INDIRECT(\"'\"&A75&\"'!$18:$50\"),MATCH($AA$1,INDIRECT(\"'\"&A75&\"'!$A$18:$A$50\"),0),MATCH(Parts!$B75,INDIRECT(\"'\"&A75&\"'!$10:$10\"),0)),0)","v":0},null,null,{"$f":"IFERROR(INDEX(INDIRECT(\"'\"&A75&\"'!$18:$50\"),MATCH($AD$1,INDIRECT(\"'\"&A75&\"'!$A$18:$A$50\"),0),MATCH(Parts!$B75,INDIRECT(\"'\"&A75&\"'!$10:$10\"),0)),0)","v":0},null,null,{"$f":"IFERROR(INDEX(INDIRECT(\"'\"&A75&\"'!$18:$50\"),MATCH($AG$1,INDIRECT(\"'\"&A75&\"'!$A$18:$A$50\"),0),MATCH(Parts!$B75,INDIRECT(\"'\"&A75&\"'!$10:$10\"),0)),0)","v":0},null,"E Box: 296.9705.24",{"$f":"IFERROR(INDEX(INDIRECT(\"'\"&A75&\"'!$18:$50\"),MATCH($AJ$1,INDIRECT(\"'\"&A75&\"'!$A$18:$A$50\"),0),MATCH(Parts!$B75,INDIRECT(\"'\"&A75&\"'!$10:$10\"),0)),0)","v":1},128.79,"Main switch: 292.2044.11",{"$f":"IFERROR(INDEX(INDIRECT(\"'\"&A75&\"'!$18:$50\"),MATCH($AM$1,INDIRECT(\"'\"&A75&\"'!$A$18:$A$50\"),0),MATCH(Parts!$B75,INDIRECT(\"'\"&A75&\"'!$10:$10\"),0)),0)","v":1},2.76,null,{"$f":"IFERROR(INDEX(INDIRECT(\"'\"&A75&\"'!$18:$50\"),MATCH($AP$1,INDIRECT(\"'\"&A75&\"'!$A$18:$A$50\"),0),MATCH(Parts!$B75,INDIRECT(\"'\"&A75&\"'!$10:$10\"),0)),0)","v":0},null,"Basket TCW40SDD  292.9427.38",{"$f":"IFERROR(INDEX(INDIRECT(\"'\"&A75&\"'!$18:$50\"),MATCH($AS$1,INDIRECT(\"'\"&A75&\"'!$A$18:$A$50\"),0),MATCH(Parts!$B75,INDIRECT(\"'\"&A75&\"'!$10:$10\"),0)),0)","v":1},19.21,null,{"$f":"IFERROR(INDEX(INDIRECT(\"'\"&A75&\"'!$18:$50\"),MATCH($AV$1,INDIRECT(\"'\"&A75&\"'!$A$18:$A$50\"),0),MATCH(Parts!$B75,INDIRECT(\"'\"&A75&\"'!$10:$10\"),0)),0)","v":0},null,null,{"$f":"IFERROR(INDEX(INDIRECT(\"'\"&A75&\"'!$18:$50\"),MATCH($AY$1,INDIRECT(\"'\"&A75&\"'!$A$18:$A$50\"),0),MATCH(Parts!$B75,INDIRECT(\"'\"&A75&\"'!$10:$10\"),0)),0)","v":0},null,null,{"$f":"IFERROR(INDEX(INDIRECT(\"'\"&A75&\"'!$18:$50\"),MATCH($BB$1,INDIRECT(\"'\"&A75&\"'!$A$18:$A$50\"),0),MATCH(Parts!$B75,INDIRECT(\"'\"&A75&\"'!$10:$10\"),0)),0)","v":0},null,null,{"$f":"IFERROR(INDEX(INDIRECT(\"'\"&A75&\"'!$18:$50\"),MATCH($BE$1,INDIRECT(\"'\"&A75&\"'!$A$18:$A$50\"),0),MATCH(Parts!$B75,INDIRECT(\"'\"&A75&\"'!$10:$10\"),0)),0)","v":0},null,"Drier   296.0945.04",{"$f":"IFERROR(INDEX(INDIRECT(\"'\"&A75&\"'!$18:$50\"),MATCH($BH$1,INDIRECT(\"'\"&A75&\"'!$A$18:$A$50\"),0),MATCH(Parts!$B75,INDIRECT(\"'\"&A75&\"'!$10:$10\"),0)),0)","v":1},2.0699999999999998,"Fuse 15A  296.9243.15",{"$f":"IFERROR(INDEX(INDIRECT(\"'\"&A75&\"'!$18:$50\"),MATCH($BK$1,INDIRECT(\"'\"&A75&\"'!$A$18:$A$50\"),0),MATCH(Parts!$B75,INDIRECT(\"'\"&A75&\"'!$10:$10\"),0)),0)","v":1},0.19,null,{"$f":"IFERROR(INDEX(INDIRECT(\"'\"&A75&\"'!$18:$50\"),MATCH($BN$1,INDIRECT(\"'\"&A75&\"'!$A$18:$A$50\"),0),MATCH(Parts!$B75,INDIRECT(\"'\"&A75&\"'!$10:$10\"),0)),0)","v":0},null,"Outer Hinge  292.8503.30",{"$f":"IFERROR(INDEX(INDIRECT(\"'\"&A75&\"'!$18:$50\"),MATCH($BQ$1,INDIRECT(\"'\"&A75&\"'!$A$18:$A$50\"),0),MATCH(Parts!$B75,INDIRECT(\"'\"&A75&\"'!$10:$10\"),0)),0)","v":1},7.76,"Cover Hinge  296.4018.00",{"$f":"IFERROR(INDEX(INDIRECT(\"'\"&A75&\"'!$18:$50\"),MATCH($BT$1,INDIRECT(\"'\"&A75&\"'!$A$18:$A$50\"),0),MATCH(Parts!$B75,INDIRECT(\"'\"&A75&\"'!$10:$10\"),0)),0)","v":1},0.73,null,{"$f":"IFERROR(INDEX(INDIRECT(\"'\"&A75&\"'!$18:$50\"),MATCH($BW$1,INDIRECT(\"'\"&A75&\"'!$A$18:$A$50\"),0),MATCH(Parts!$B75,INDIRECT(\"'\"&A75&\"'!$10:$10\"),0)),0)","v":0},null,null,{"$f":"IFERROR(INDEX(INDIRECT(\"'\"&A75&\"'!$18:$50\"),MATCH($BZ$1,INDIRECT(\"'\"&A75&\"'!$A$18:$A$50\"),0),MATCH(Parts!$B75,INDIRECT(\"'\"&A75&\"'!$10:$10\"),0)),0)","v":0},null,"Ice Pack TCW40SDD   292.8580.19",{"$f":"IFERROR(INDEX(INDIRECT(\"'\"&A75&\"'!$18:$50\"),MATCH($CC$1,INDIRECT(\"'\"&A75&\"'!$A$18:$A$50\"),0),MATCH(Parts!$B75,INDIRECT(\"'\"&A75&\"'!$10:$10\"),0)),0)","v":1},55.54,null,{"$f":"IFERROR(INDEX(INDIRECT(\"'\"&A75&\"'!$18:$50\"),MATCH($CF$1,INDIRECT(\"'\"&A75&\"'!$A$18:$A$50\"),0),MATCH(Parts!$B75,INDIRECT(\"'\"&A75&\"'!$10:$10\"),0)),0)","v":0},null,null,{"$f":"IFERROR(INDEX(INDIRECT(\"'\"&A75&\"'!$18:$50\"),MATCH($CI$1,INDIRECT(\"'\"&A75&\"'!$A$18:$A$50\"),0),MATCH(Parts!$B75,INDIRECT(\"'\"&A75&\"'!$10:$10\"),0)),0)","v":0},null,null,{"$f":"IFERROR(INDEX(INDIRECT(\"'\"&A75&\"'!$18:$50\"),MATCH($CL$1,INDIRECT(\"'\"&A75&\"'!$A$18:$A$50\"),0),MATCH(Parts!$B75,INDIRECT(\"'\"&A75&\"'!$10:$10\"),0)),0)","v":0},null,"Heater  296.9767.28",{"$f":"IFERROR(INDEX(INDIRECT(\"'\"&A75&\"'!$18:$50\"),MATCH($CO$1,INDIRECT(\"'\"&A75&\"'!$A$18:$A$50\"),0),MATCH(Parts!$B75,INDIRECT(\"'\"&A75&\"'!$10:$10\"),0)),0)","v":1},16.52,"Sensor Logger   296.9712.01",{"$f":"IFERROR(INDEX(INDIRECT(\"'\"&A75&\"'!$18:$50\"),MATCH($CR$1,INDIRECT(\"'\"&A75&\"'!$A$18:$A$50\"),0),MATCH(Parts!$B75,INDIRECT(\"'\"&A75&\"'!$10:$10\"),0)),0)","v":1},32.39,null,{"$f":"IFERROR(INDEX(INDIRECT(\"'\"&A75&\"'!$18:$50\"),MATCH($CU$1,INDIRECT(\"'\"&A75&\"'!$A$18:$A$50\"),0),MATCH(Parts!$B75,INDIRECT(\"'\"&A75&\"'!$10:$10\"),0)),0)","v":0},null,null,{"$f":"IFERROR(INDEX(INDIRECT(\"'\"&A75&\"'!$18:$50\"),MATCH($CX$1,INDIRECT(\"'\"&A75&\"'!$A$18:$A$50\"),0),MATCH(Parts!$B75,INDIRECT(\"'\"&A75&\"'!$10:$10\"),0)),0)","v":0},null,null,{"$f":"IFERROR(INDEX(INDIRECT(\"'\"&A75&\"'!$18:$50\"),MATCH($DA$1,INDIRECT(\"'\"&A75&\"'!$A$18:$A$50\"),0),MATCH(Parts!$B75,INDIRECT(\"'\"&A75&\"'!$10:$10\"),0)),0)","v":0},null,null,{"$f":"IFERROR(INDEX(INDIRECT(\"'\"&A75&\"'!$18:$50\"),MATCH($DD$1,INDIRECT(\"'\"&A75&\"'!$A$18:$A$50\"),0),MATCH(Parts!$B75,INDIRECT(\"'\"&A75&\"'!$10:$10\"),0)),0)","v":0},null,null,{"$f":"IFERROR(INDEX(INDIRECT(\"'\"&A75&\"'!$18:$50\"),MATCH($DG$1,INDIRECT(\"'\"&A75&\"'!$A$18:$A$50\"),0),MATCH(Parts!$B75,INDIRECT(\"'\"&A75&\"'!$10:$10\"),0)),0)","v":0},null,null,{"$f":"IFERROR(INDEX(INDIRECT(\"'\"&A75&\"'!$18:$50\"),MATCH($DJ$1,INDIRECT(\"'\"&A75&\"'!$A$18:$A$50\"),0),MATCH(Parts!$B75,INDIRECT(\"'\"&A75&\"'!$10:$10\"),0)),0)","v":0},null,null,{"$f":"IFERROR(INDEX(INDIRECT(\"'\"&A75&\"'!$18:$50\"),MATCH($DM$1,INDIRECT(\"'\"&A75&\"'!$A$18:$A$50\"),0),MATCH(Parts!$B75,INDIRECT(\"'\"&A75&\"'!$10:$10\"),0)),0)","v":0},null,null,{"$f":"IFERROR(INDEX(INDIRECT(\"'\"&A75&\"'!$18:$50\"),MATCH($DP$1,INDIRECT(\"'\"&A75&\"'!$A$18:$A$50\"),0),MATCH(Parts!$B75,INDIRECT(\"'\"&A75&\"'!$10:$10\"),0)),0)","v":0},null,null,{"$f":"IFERROR(INDEX(INDIRECT(\"'\"&A75&\"'!$18:$50\"),MATCH($DS$1,INDIRECT(\"'\"&A75&\"'!$A$18:$A$50\"),0),MATCH(Parts!$B75,INDIRECT(\"'\"&A75&\"'!$10:$10\"),0)),0)","v":0},null,"Sensor cooler: 296.9804.73",{"$f":"IFERROR(INDEX(INDIRECT(\"'\"&A75&\"'!$18:$50\"),MATCH($DV$1,INDIRECT(\"'\"&A75&\"'!$A$18:$A$50\"),0),MATCH(Parts!$B75,INDIRECT(\"'\"&A75&\"'!$10:$10\"),0)),0)","v":1},46.14,"Sensor heater: 296.9804.72",{"$f":"IFERROR(INDEX(INDIRECT(\"'\"&A75&\"'!$18:$50\"),MATCH($DY$1,INDIRECT(\"'\"&A75&\"'!$A$18:$A$50\"),0),MATCH(Parts!$B75,INDIRECT(\"'\"&A75&\"'!$10:$10\"),0)),0)","v":1},35.17,null,{"$f":"IFERROR(INDEX(INDIRECT(\"'\"&A75&\"'!$18:$50\"),MATCH($EB$1,INDIRECT(\"'\"&A75&\"'!$A$18:$A$50\"),0),MATCH(Parts!$B75,INDIRECT(\"'\"&A75&\"'!$10:$10\"),0)),0)","v":0},null,"Display board: 296.9769.81",{"$f":"IFERROR(INDEX(INDIRECT(\"'\"&A75&\"'!$18:$50\"),MATCH($EE$1,INDIRECT(\"'\"&A75&\"'!$A$18:$A$50\"),0),MATCH(Parts!$B75,INDIRECT(\"'\"&A75&\"'!$10:$10\"),0)),0)","v":1},38.32,null,{"$f":"IFERROR(INDEX(INDIRECT(\"'\"&A75&\"'!$18:$50\"),MATCH($EH$1,INDIRECT(\"'\"&A75&\"'!$A$18:$A$50\"),0),MATCH(Parts!$B75,INDIRECT(\"'\"&A75&\"'!$10:$10\"),0)),0)","v":0},null,null,{"$f":"IFERROR(INDEX(INDIRECT(\"'\"&A75&\"'!$18:$50\"),MATCH($EK$1,INDIRECT(\"'\"&A75&\"'!$A$18:$A$50\"),0),MATCH(Parts!$B75,INDIRECT(\"'\"&A75&\"'!$10:$10\"),0)),0)","v":0}]
[{"$f":"PQS!A78","v":"SDD"},{"$f":"PQS!B78","v":"E003/069"},{"$f":"PQS!E78","v":"VLS 024 SDD*"},{"$f":"PQS!P78","v":"€"},468.76000000000005,"COMPRESSOR, SECOP BD35K 101Z0211  8-036510214",{"$f":"IFERROR(INDEX(INDIRECT(\"'\"&A76&\"'!$18:$50\"),MATCH(Parts!F$1,INDIRECT(\"'\"&A76&\"'!$A$18:$A$50\"),0),MATCH(Parts!$B76,INDIRECT(\"'\"&A76&\"'!$10:$10\"),0)),0)","v":1},245,"THERMOSTAT 7020274",{"$f":"IFERROR(INDEX(INDIRECT(\"'\"&A76&\"'!$18:$50\"),MATCH($I$1,INDIRECT(\"'\"&A76&\"'!$A$18:$A$50\"),0),MATCH(Parts!$B76,INDIRECT(\"'\"&A76&\"'!$10:$10\"),0)),0)","v":1},41.2,"Electronics for BD35K compressor, ECU 6520258",{"$f":"IFERROR(INDEX(INDIRECT(\"'\"&A76&\"'!$18:$50\"),MATCH($L$1,INDIRECT(\"'\"&A76&\"'!$A$18:$A$50\"),0),MATCH(Parts!$B76,INDIRECT(\"'\"&A76&\"'!$10:$10\"),0)),0)","v":1},112.29,null,{"$f":"IFERROR(INDEX(INDIRECT(\"'\"&A76&\"'!$18:$50\"),MATCH($O$1,INDIRECT(\"'\"&A76&\"'!$A$18:$A$50\"),0),MATCH(Parts!$B76,INDIRECT(\"'\"&A76&\"'!$10:$10\"),0)),0)","v":0},null,null,{"$f":"IFERROR(INDEX(INDIRECT(\"'\"&A76&\"'!$18:$50\"),MATCH($R$1,INDIRECT(\"'\"&A76&\"'!$A$18:$A$50\"),0),MATCH(Parts!$B76,INDIRECT(\"'\"&A76&\"'!$10:$10\"),0)),0)","v":0},null,null,{"$f":"IFERROR(INDEX(INDIRECT(\"'\"&A76&\"'!$18:$50\"),MATCH($U$1,INDIRECT(\"'\"&A76&\"'!$A$18:$A$50\"),0),MATCH(Parts!$B76,INDIRECT(\"'\"&A76&\"'!$10:$10\"),0)),0)","v":0},null,"FAN SET 7030333",{"$f":"IFERROR(INDEX(INDIRECT(\"'\"&A76&\"'!$18:$50\"),MATCH($X$1,INDIRECT(\"'\"&A76&\"'!$A$18:$A$50\"),0),MATCH(Parts!$B76,INDIRECT(\"'\"&A76&\"'!$10:$10\"),0)),0)","v":1},17.48,null,{"$f":"IFERROR(INDEX(INDIRECT(\"'\"&A76&\"'!$18:$50\"),MATCH($AA$1,INDIRECT(\"'\"&A76&\"'!$A$18:$A$50\"),0),MATCH(Parts!$B76,INDIRECT(\"'\"&A76&\"'!$10:$10\"),0)),0)","v":0},null,null,{"$f":"IFERROR(INDEX(INDIRECT(\"'\"&A76&\"'!$18:$50\"),MATCH($AD$1,INDIRECT(\"'\"&A76&\"'!$A$18:$A$50\"),0),MATCH(Parts!$B76,INDIRECT(\"'\"&A76&\"'!$10:$10\"),0)),0)","v":0},null,null,{"$f":"IFERROR(INDEX(INDIRECT(\"'\"&A76&\"'!$18:$50\"),MATCH($AG$1,INDIRECT(\"'\"&A76&\"'!$A$18:$A$50\"),0),MATCH(Parts!$B76,INDIRECT(\"'\"&A76&\"'!$10:$10\"),0)),0)","v":0},null,null,{"$f":"IFERROR(INDEX(INDIRECT(\"'\"&A76&\"'!$18:$50\"),MATCH($AJ$1,INDIRECT(\"'\"&A76&\"'!$A$18:$A$50\"),0),MATCH(Parts!$B76,INDIRECT(\"'\"&A76&\"'!$10:$10\"),0)),0)","v":0},null,null,{"$f":"IFERROR(INDEX(INDIRECT(\"'\"&A76&\"'!$18:$50\"),MATCH($AM$1,INDIRECT(\"'\"&A76&\"'!$A$18:$A$50\"),0),MATCH(Parts!$B76,INDIRECT(\"'\"&A76&\"'!$10:$10\"),0)),0)","v":0},null,null,{"$f":"IFERROR(INDEX(INDIRECT(\"'\"&A76&\"'!$18:$50\"),MATCH($AP$1,INDIRECT(\"'\"&A76&\"'!$A$18:$A$50\"),0),MATCH(Parts!$B76,INDIRECT(\"'\"&A76&\"'!$10:$10\"),0)),0)","v":0},null,"TOP BASKET 3510054",{"$f":"IFERROR(INDEX(INDIRECT(\"'\"&A76&\"'!$18:$50\"),MATCH($AS$1,INDIRECT(\"'\"&A76&\"'!$A$18:$A$50\"),0),MATCH(Parts!$B76,INDIRECT(\"'\"&A76&\"'!$10:$10\"),0)),0)","v":1},19.940000000000001,null,{"$f":"IFERROR(INDEX(INDIRECT(\"'\"&A76&\"'!$18:$50\"),MATCH($AV$1,INDIRECT(\"'\"&A76&\"'!$A$18:$A$50\"),0),MATCH(Parts!$B76,INDIRECT(\"'\"&A76&\"'!$10:$10\"),0)),0)","v":0},null,null,{"$f":"IFERROR(INDEX(INDIRECT(\"'\"&A76&\"'!$18:$50\"),MATCH($AY$1,INDIRECT(\"'\"&A76&\"'!$A$18:$A$50\"),0),MATCH(Parts!$B76,INDIRECT(\"'\"&A76&\"'!$10:$10\"),0)),0)","v":0},null,null,{"$f":"IFERROR(INDEX(INDIRECT(\"'\"&A76&\"'!$18:$50\"),MATCH($BB$1,INDIRECT(\"'\"&A76&\"'!$A$18:$A$50\"),0),MATCH(Parts!$B76,INDIRECT(\"'\"&A76&\"'!$10:$10\"),0)),0)","v":0},null,null,{"$f":"IFERROR(INDEX(INDIRECT(\"'\"&A76&\"'!$18:$50\"),MATCH($BE$1,INDIRECT(\"'\"&A76&\"'!$A$18:$A$50\"),0),MATCH(Parts!$B76,INDIRECT(\"'\"&A76&\"'!$10:$10\"),0)),0)","v":0},null,"FILTER/DRIER TYPE XH 9 (20 GRS) 0-6538001",{"$f":"IFERROR(INDEX(INDIRECT(\"'\"&A76&\"'!$18:$50\"),MATCH($BH$1,INDIRECT(\"'\"&A76&\"'!$A$18:$A$50\"),0),MATCH(Parts!$B76,INDIRECT(\"'\"&A76&\"'!$10:$10\"),0)),0)","v":1},3.84,null,{"$f":"IFERROR(INDEX(INDIRECT(\"'\"&A76&\"'!$18:$50\"),MATCH($BK$1,INDIRECT(\"'\"&A76&\"'!$A$18:$A$50\"),0),MATCH(Parts!$B76,INDIRECT(\"'\"&A76&\"'!$10:$10\"),0)),0)","v":0},null,null,{"$f":"IFERROR(INDEX(INDIRECT(\"'\"&A76&\"'!$18:$50\"),MATCH($BN$1,INDIRECT(\"'\"&A76&\"'!$A$18:$A$50\"),0),MATCH(Parts!$B76,INDIRECT(\"'\"&A76&\"'!$10:$10\"),0)),0)","v":0},null,"HINGE WITH SPRING 1510059",{"$f":"IFERROR(INDEX(INDIRECT(\"'\"&A76&\"'!$18:$50\"),MATCH($BQ$1,INDIRECT(\"'\"&A76&\"'!$A$18:$A$50\"),0),MATCH(Parts!$B76,INDIRECT(\"'\"&A76&\"'!$10:$10\"),0)),0)","v":1},8.49,null,{"$f":"IFERROR(INDEX(INDIRECT(\"'\"&A76&\"'!$18:$50\"),MATCH($BT$1,INDIRECT(\"'\"&A76&\"'!$A$18:$A$50\"),0),MATCH(Parts!$B76,INDIRECT(\"'\"&A76&\"'!$10:$10\"),0)),0)","v":0},null,null,{"$f":"IFERROR(INDEX(INDIRECT(\"'\"&A76&\"'!$18:$50\"),MATCH($BW$1,INDIRECT(\"'\"&A76&\"'!$A$18:$A$50\"),0),MATCH(Parts!$B76,INDIRECT(\"'\"&A76&\"'!$10:$10\"),0)),0)","v":0},null,"THERMOMETER 7020287-03",{"$f":"IFERROR(INDEX(INDIRECT(\"'\"&A76&\"'!$18:$50\"),MATCH($BZ$1,INDIRECT(\"'\"&A76&\"'!$A$18:$A$50\"),0),MATCH(Parts!$B76,INDIRECT(\"'\"&A76&\"'!$10:$10\"),0)),0)","v":1},13.17,null,{"$f":"IFERROR(INDEX(INDIRECT(\"'\"&A76&\"'!$18:$50\"),MATCH($CC$1,INDIRECT(\"'\"&A76&\"'!$A$18:$A$50\"),0),MATCH(Parts!$B76,INDIRECT(\"'\"&A76&\"'!$10:$10\"),0)),0)","v":0},null,"HANDLE WITH LOCK AND KEY 304090501",{"$f":"IFERROR(INDEX(INDIRECT(\"'\"&A76&\"'!$18:$50\"),MATCH($CF$1,INDIRECT(\"'\"&A76&\"'!$A$18:$A$50\"),0),MATCH(Parts!$B76,INDIRECT(\"'\"&A76&\"'!$10:$10\"),0)),0)","v":1},7.35,null,{"$f":"IFERROR(INDEX(INDIRECT(\"'\"&A76&\"'!$18:$50\"),MATCH($CI$1,INDIRECT(\"'\"&A76&\"'!$A$18:$A$50\"),0),MATCH(Parts!$B76,INDIRECT(\"'\"&A76&\"'!$10:$10\"),0)),0)","v":0},null,null,{"$f":"IFERROR(INDEX(INDIRECT(\"'\"&A76&\"'!$18:$50\"),MATCH($CL$1,INDIRECT(\"'\"&A76&\"'!$A$18:$A$50\"),0),MATCH(Parts!$B76,INDIRECT(\"'\"&A76&\"'!$10:$10\"),0)),0)","v":0},null,null,{"$f":"IFERROR(INDEX(INDIRECT(\"'\"&A76&\"'!$18:$50\"),MATCH($CO$1,INDIRECT(\"'\"&A76&\"'!$A$18:$A$50\"),0),MATCH(Parts!$B76,INDIRECT(\"'\"&A76&\"'!$10:$10\"),0)),0)","v":0},null,null,{"$f":"IFERROR(INDEX(INDIRECT(\"'\"&A76&\"'!$18:$50\"),MATCH($CR$1,INDIRECT(\"'\"&A76&\"'!$A$18:$A$50\"),0),MATCH(Parts!$B76,INDIRECT(\"'\"&A76&\"'!$10:$10\"),0)),0)","v":0},null,null,{"$f":"IFERROR(INDEX(INDIRECT(\"'\"&A76&\"'!$18:$50\"),MATCH($CU$1,INDIRECT(\"'\"&A76&\"'!$A$18:$A$50\"),0),MATCH(Parts!$B76,INDIRECT(\"'\"&A76&\"'!$10:$10\"),0)),0)","v":0},null,null,{"$f":"IFERROR(INDEX(INDIRECT(\"'\"&A76&\"'!$18:$50\"),MATCH($CX$1,INDIRECT(\"'\"&A76&\"'!$A$18:$A$50\"),0),MATCH(Parts!$B76,INDIRECT(\"'\"&A76&\"'!$10:$10\"),0)),0)","v":0},null,null,{"$f":"IFERROR(INDEX(INDIRECT(\"'\"&A76&\"'!$18:$50\"),MATCH($DA$1,INDIRECT(\"'\"&A76&\"'!$A$18:$A$50\"),0),MATCH(Parts!$B76,INDIRECT(\"'\"&A76&\"'!$10:$10\"),0)),0)","v":0},null,null,{"$f":"IFERROR(INDEX(INDIRECT(\"'\"&A76&\"'!$18:$50\"),MATCH($DD$1,INDIRECT(\"'\"&A76&\"'!$A$18:$A$50\"),0),MATCH(Parts!$B76,INDIRECT(\"'\"&A76&\"'!$10:$10\"),0)),0)","v":0},null,null,{"$f":"IFERROR(INDEX(INDIRECT(\"'\"&A76&\"'!$18:$50\"),MATCH($DG$1,INDIRECT(\"'\"&A76&\"'!$A$18:$A$50\"),0),MATCH(Parts!$B76,INDIRECT(\"'\"&A76&\"'!$10:$10\"),0)),0)","v":0},null,null,{"$f":"IFERROR(INDEX(INDIRECT(\"'\"&A76&\"'!$18:$50\"),MATCH($DJ$1,INDIRECT(\"'\"&A76&\"'!$A$18:$A$50\"),0),MATCH(Parts!$B76,INDIRECT(\"'\"&A76&\"'!$10:$10\"),0)),0)","v":0},null,null,{"$f":"IFERROR(INDEX(INDIRECT(\"'\"&A76&\"'!$18:$50\"),MATCH($DM$1,INDIRECT(\"'\"&A76&\"'!$A$18:$A$50\"),0),MATCH(Parts!$B76,INDIRECT(\"'\"&A76&\"'!$10:$10\"),0)),0)","v":0},null,null,{"$f":"IFERROR(INDEX(INDIRECT(\"'\"&A76&\"'!$18:$50\"),MATCH($DP$1,INDIRECT(\"'\"&A76&\"'!$A$18:$A$50\"),0),MATCH(Parts!$B76,INDIRECT(\"'\"&A76&\"'!$10:$10\"),0)),0)","v":0},null,null,{"$f":"IFERROR(INDEX(INDIRECT(\"'\"&A76&\"'!$18:$50\"),MATCH($DS$1,INDIRECT(\"'\"&A76&\"'!$A$18:$A$50\"),0),MATCH(Parts!$B76,INDIRECT(\"'\"&A76&\"'!$10:$10\"),0)),0)","v":0},null,null,{"$f":"IFERROR(INDEX(INDIRECT(\"'\"&A76&\"'!$18:$50\"),MATCH($DV$1,INDIRECT(\"'\"&A76&\"'!$A$18:$A$50\"),0),MATCH(Parts!$B76,INDIRECT(\"'\"&A76&\"'!$10:$10\"),0)),0)","v":0},null,null,{"$f":"IFERROR(INDEX(INDIRECT(\"'\"&A76&\"'!$18:$50\"),MATCH($DY$1,INDIRECT(\"'\"&A76&\"'!$A$18:$A$50\"),0),MATCH(Parts!$B76,INDIRECT(\"'\"&A76&\"'!$10:$10\"),0)),0)","v":0},null,null,{"$f":"IFERROR(INDEX(INDIRECT(\"'\"&A76&\"'!$18:$50\"),MATCH($EB$1,INDIRECT(\"'\"&A76&\"'!$A$18:$A$50\"),0),MATCH(Parts!$B76,INDIRECT(\"'\"&A76&\"'!$10:$10\"),0)),0)","v":0},null,null,{"$f":"IFERROR(INDEX(INDIRECT(\"'\"&A76&\"'!$18:$50\"),MATCH($EE$1,INDIRECT(\"'\"&A76&\"'!$A$18:$A$50\"),0),MATCH(Parts!$B76,INDIRECT(\"'\"&A76&\"'!$10:$10\"),0)),0)","v":0},null,null,{"$f":"IFERROR(INDEX(INDIRECT(\"'\"&A76&\"'!$18:$50\"),MATCH($EH$1,INDIRECT(\"'\"&A76&\"'!$A$18:$A$50\"),0),MATCH(Parts!$B76,INDIRECT(\"'\"&A76&\"'!$10:$10\"),0)),0)","v":0},null,null,{"$f":"IFERROR(INDEX(INDIRECT(\"'\"&A76&\"'!$18:$50\"),MATCH($EK$1,INDIRECT(\"'\"&A76&\"'!$A$18:$A$50\"),0),MATCH(Parts!$B76,INDIRECT(\"'\"&A76&\"'!$10:$10\"),0)),0)","v":0}]
[{"$f":"PQS!A79","v":"SDD"},{"$f":"PQS!B79","v":"E003/074"},{"$f":"PQS!E79","v":"HTCD 90 SDD*"},{"$f":"PQS!P79","v":"$"},320.98,"Compressor SECOP: 0274000118A; USD 230.00",{"$f":"IFERROR(INDEX(INDIRECT(\"'\"&A77&\"'!$18:$50\"),MATCH(Parts!F$1,INDIRECT(\"'\"&A77&\"'!$A$18:$A$50\"),0),MATCH(Parts!$B77,INDIRECT(\"'\"&A77&\"'!$10:$10\"),0)),0)","v":1},230,"Electric controller: 274000352; USD 45.00",{"$f":"IFERROR(INDEX(INDIRECT(\"'\"&A77&\"'!$18:$50\"),MATCH($I$1,INDIRECT(\"'\"&A77&\"'!$A$18:$A$50\"),0),MATCH(Parts!$B77,INDIRECT(\"'\"&A77&\"'!$10:$10\"),0)),0)","v":1},45,null,{"$f":"IFERROR(INDEX(INDIRECT(\"'\"&A77&\"'!$18:$50\"),MATCH($L$1,INDIRECT(\"'\"&A77&\"'!$A$18:$A$50\"),0),MATCH(Parts!$B77,INDIRECT(\"'\"&A77&\"'!$10:$10\"),0)),0)","v":0},null,null,{"$f":"IFERROR(INDEX(INDIRECT(\"'\"&A77&\"'!$18:$50\"),MATCH($O$1,INDIRECT(\"'\"&A77&\"'!$A$18:$A$50\"),0),MATCH(Parts!$B77,INDIRECT(\"'\"&A77&\"'!$10:$10\"),0)),0)","v":0},null,null,{"$f":"IFERROR(INDEX(INDIRECT(\"'\"&A77&\"'!$18:$50\"),MATCH($R$1,INDIRECT(\"'\"&A77&\"'!$A$18:$A$50\"),0),MATCH(Parts!$B77,INDIRECT(\"'\"&A77&\"'!$10:$10\"),0)),0)","v":0},null,"Sensor for ice freezing：0274000353\nSensor for refrigerator：0274000358\nSensor for freezer：0274000357A",{"$f":"IFERROR(INDEX(INDIRECT(\"'\"&A77&\"'!$18:$50\"),MATCH($U$1,INDIRECT(\"'\"&A77&\"'!$A$18:$A$50\"),0),MATCH(Parts!$B77,INDIRECT(\"'\"&A77&\"'!$10:$10\"),0)),0)","v":1},null,"Condensor：0270700425、0270700425A  / Fan ：0274000351 ",{"$f":"IFERROR(INDEX(INDIRECT(\"'\"&A77&\"'!$18:$50\"),MATCH($X$1,INDIRECT(\"'\"&A77&\"'!$A$18:$A$50\"),0),MATCH(Parts!$B77,INDIRECT(\"'\"&A77&\"'!$10:$10\"),0)),0)","v":1},8,null,{"$f":"IFERROR(INDEX(INDIRECT(\"'\"&A77&\"'!$18:$50\"),MATCH($AA$1,INDIRECT(\"'\"&A77&\"'!$A$18:$A$50\"),0),MATCH(Parts!$B77,INDIRECT(\"'\"&A77&\"'!$10:$10\"),0)),0)","v":0},null,null,{"$f":"IFERROR(INDEX(INDIRECT(\"'\"&A77&\"'!$18:$50\"),MATCH($AD$1,INDIRECT(\"'\"&A77&\"'!$A$18:$A$50\"),0),MATCH(Parts!$B77,INDIRECT(\"'\"&A77&\"'!$10:$10\"),0)),0)","v":0},null,null,{"$f":"IFERROR(INDEX(INDIRECT(\"'\"&A77&\"'!$18:$50\"),MATCH($AG$1,INDIRECT(\"'\"&A77&\"'!$A$18:$A$50\"),0),MATCH(Parts!$B77,INDIRECT(\"'\"&A77&\"'!$10:$10\"),0)),0)","v":0},null,null,{"$f":"IFERROR(INDEX(INDIRECT(\"'\"&A77&\"'!$18:$50\"),MATCH($AJ$1,INDIRECT(\"'\"&A77&\"'!$A$18:$A$50\"),0),MATCH(Parts!$B77,INDIRECT(\"'\"&A77&\"'!$10:$10\"),0)),0)","v":0},null,"Main switch: 274000354; USD 12.00",{"$f":"IFERROR(INDEX(INDIRECT(\"'\"&A77&\"'!$18:$50\"),MATCH($AM$1,INDIRECT(\"'\"&A77&\"'!$A$18:$A$50\"),0),MATCH(Parts!$B77,INDIRECT(\"'\"&A77&\"'!$10:$10\"),0)),0)","v":1},12,null,{"$f":"IFERROR(INDEX(INDIRECT(\"'\"&A77&\"'!$18:$50\"),MATCH($AP$1,INDIRECT(\"'\"&A77&\"'!$A$18:$A$50\"),0),MATCH(Parts!$B77,INDIRECT(\"'\"&A77&\"'!$10:$10\"),0)),0)","v":0},null,"refrigerator baskets：0270102688A and 0270102688B   1 each\nfreezer baskets：0270102688  2 each",{"$f":"IFERROR(INDEX(INDIRECT(\"'\"&A77&\"'!$18:$50\"),MATCH($AS$1,INDIRECT(\"'\"&A77&\"'!$A$18:$A$50\"),0),MATCH(Parts!$B77,INDIRECT(\"'\"&A77&\"'!$10:$10\"),0)),0)","v":1},4.05,null,{"$f":"IFERROR(INDEX(INDIRECT(\"'\"&A77&\"'!$18:$50\"),MATCH($AV$1,INDIRECT(\"'\"&A77&\"'!$A$18:$A$50\"),0),MATCH(Parts!$B77,INDIRECT(\"'\"&A77&\"'!$10:$10\"),0)),0)","v":0},null,null,{"$f":"IFERROR(INDEX(INDIRECT(\"'\"&A77&\"'!$18:$50\"),MATCH($AY$1,INDIRECT(\"'\"&A77&\"'!$A$18:$A$50\"),0),MATCH(Parts!$B77,INDIRECT(\"'\"&A77&\"'!$10:$10\"),0)),0)","v":0},null,"capacitor：0274000393",{"$f":"IFERROR(INDEX(INDIRECT(\"'\"&A77&\"'!$18:$50\"),MATCH($BB$1,INDIRECT(\"'\"&A77&\"'!$A$18:$A$50\"),0),MATCH(Parts!$B77,INDIRECT(\"'\"&A77&\"'!$10:$10\"),0)),0)","v":0},null,null,{"$f":"IFERROR(INDEX(INDIRECT(\"'\"&A77&\"'!$18:$50\"),MATCH($BE$1,INDIRECT(\"'\"&A77&\"'!$A$18:$A$50\"),0),MATCH(Parts!$B77,INDIRECT(\"'\"&A77&\"'!$10:$10\"),0)),0)","v":0},null,"Dry filter：0074180006",{"$f":"IFERROR(INDEX(INDIRECT(\"'\"&A77&\"'!$18:$50\"),MATCH($BH$1,INDIRECT(\"'\"&A77&\"'!$A$18:$A$50\"),0),MATCH(Parts!$B77,INDIRECT(\"'\"&A77&\"'!$10:$10\"),0)),0)","v":1},2,null,{"$f":"IFERROR(INDEX(INDIRECT(\"'\"&A77&\"'!$18:$50\"),MATCH($BK$1,INDIRECT(\"'\"&A77&\"'!$A$18:$A$50\"),0),MATCH(Parts!$B77,INDIRECT(\"'\"&A77&\"'!$10:$10\"),0)),0)","v":0},null,null,{"$f":"IFERROR(INDEX(INDIRECT(\"'\"&A77&\"'!$18:$50\"),MATCH($BN$1,INDIRECT(\"'\"&A77&\"'!$A$18:$A$50\"),0),MATCH(Parts!$B77,INDIRECT(\"'\"&A77&\"'!$10:$10\"),0)),0)","v":0},null,"Hinge：0070816334",{"$f":"IFERROR(INDEX(INDIRECT(\"'\"&A77&\"'!$18:$50\"),MATCH($BQ$1,INDIRECT(\"'\"&A77&\"'!$A$18:$A$50\"),0),MATCH(Parts!$B77,INDIRECT(\"'\"&A77&\"'!$10:$10\"),0)),0)","v":1},3,"Hinge cover：0070203942 and 0070204349",{"$f":"IFERROR(INDEX(INDIRECT(\"'\"&A77&\"'!$18:$50\"),MATCH($BT$1,INDIRECT(\"'\"&A77&\"'!$A$18:$A$50\"),0),MATCH(Parts!$B77,INDIRECT(\"'\"&A77&\"'!$10:$10\"),0)),0)","v":1},1,null,{"$f":"IFERROR(INDEX(INDIRECT(\"'\"&A77&\"'!$18:$50\"),MATCH($BW$1,INDIRECT(\"'\"&A77&\"'!$A$18:$A$50\"),0),MATCH(Parts!$B77,INDIRECT(\"'\"&A77&\"'!$10:$10\"),0)),0)","v":0},null,"30 days data logger：0274000391",{"$f":"IFERROR(INDEX(INDIRECT(\"'\"&A77&\"'!$18:$50\"),MATCH($BZ$1,INDIRECT(\"'\"&A77&\"'!$A$18:$A$50\"),0),MATCH(Parts!$B77,INDIRECT(\"'\"&A77&\"'!$10:$10\"),0)),0)","v":1},null,"Ice Pack：0070203825 ",{"$f":"IFERROR(INDEX(INDIRECT(\"'\"&A77&\"'!$18:$50\"),MATCH($CC$1,INDIRECT(\"'\"&A77&\"'!$A$18:$A$50\"),0),MATCH(Parts!$B77,INDIRECT(\"'\"&A77&\"'!$10:$10\"),0)),0)","v":1},null,"Handle：0070814623",{"$f":"IFERROR(INDEX(INDIRECT(\"'\"&A77&\"'!$18:$50\"),MATCH($CF$1,INDIRECT(\"'\"&A77&\"'!$A$18:$A$50\"),0),MATCH(Parts!$B77,INDIRECT(\"'\"&A77&\"'!$10:$10\"),0)),0)","v":1},3.38,"wire：0270400397 X2 and 0274000206C",{"$f":"IFERROR(INDEX(INDIRECT(\"'\"&A77&\"'!$18:$50\"),MATCH($CI$1,INDIRECT(\"'\"&A77&\"'!$A$18:$A$50\"),0),MATCH(Parts!$B77,INDIRECT(\"'\"&A77&\"'!$10:$10\"),0)),0)","v":1},4.55,null,{"$f":"IFERROR(INDEX(INDIRECT(\"'\"&A77&\"'!$18:$50\"),MATCH($CL$1,INDIRECT(\"'\"&A77&\"'!$A$18:$A$50\"),0),MATCH(Parts!$B77,INDIRECT(\"'\"&A77&\"'!$10:$10\"),0)),0)","v":0},null,null,{"$f":"IFERROR(INDEX(INDIRECT(\"'\"&A77&\"'!$18:$50\"),MATCH($CO$1,INDIRECT(\"'\"&A77&\"'!$A$18:$A$50\"),0),MATCH(Parts!$B77,INDIRECT(\"'\"&A77&\"'!$10:$10\"),0)),0)","v":0},null,null,{"$f":"IFERROR(INDEX(INDIRECT(\"'\"&A77&\"'!$18:$50\"),MATCH($CR$1,INDIRECT(\"'\"&A77&\"'!$A$18:$A$50\"),0),MATCH(Parts!$B77,INDIRECT(\"'\"&A77&\"'!$10:$10\"),0)),0)","v":0},null,null,{"$f":"IFERROR(INDEX(INDIRECT(\"'\"&A77&\"'!$18:$50\"),MATCH($CU$1,INDIRECT(\"'\"&A77&\"'!$A$18:$A$50\"),0),MATCH(Parts!$B77,INDIRECT(\"'\"&A77&\"'!$10:$10\"),0)),0)","v":0},null,null,{"$f":"IFERROR(INDEX(INDIRECT(\"'\"&A77&\"'!$18:$50\"),MATCH($CX$1,INDIRECT(\"'\"&A77&\"'!$A$18:$A$50\"),0),MATCH(Parts!$B77,INDIRECT(\"'\"&A77&\"'!$10:$10\"),0)),0)","v":0},null,null,{"$f":"IFERROR(INDEX(INDIRECT(\"'\"&A77&\"'!$18:$50\"),MATCH($DA$1,INDIRECT(\"'\"&A77&\"'!$A$18:$A$50\"),0),MATCH(Parts!$B77,INDIRECT(\"'\"&A77&\"'!$10:$10\"),0)),0)","v":0},null,null,{"$f":"IFERROR(INDEX(INDIRECT(\"'\"&A77&\"'!$18:$50\"),MATCH($DD$1,INDIRECT(\"'\"&A77&\"'!$A$18:$A$50\"),0),MATCH(Parts!$B77,INDIRECT(\"'\"&A77&\"'!$10:$10\"),0)),0)","v":0},null,null,{"$f":"IFERROR(INDEX(INDIRECT(\"'\"&A77&\"'!$18:$50\"),MATCH($DG$1,INDIRECT(\"'\"&A77&\"'!$A$18:$A$50\"),0),MATCH(Parts!$B77,INDIRECT(\"'\"&A77&\"'!$10:$10\"),0)),0)","v":0},null,null,{"$f":"IFERROR(INDEX(INDIRECT(\"'\"&A77&\"'!$18:$50\"),MATCH($DJ$1,INDIRECT(\"'\"&A77&\"'!$A$18:$A$50\"),0),MATCH(Parts!$B77,INDIRECT(\"'\"&A77&\"'!$10:$10\"),0)),0)","v":0},null,null,{"$f":"IFERROR(INDEX(INDIRECT(\"'\"&A77&\"'!$18:$50\"),MATCH($DM$1,INDIRECT(\"'\"&A77&\"'!$A$18:$A$50\"),0),MATCH(Parts!$B77,INDIRECT(\"'\"&A77&\"'!$10:$10\"),0)),0)","v":0},null,null,{"$f":"IFERROR(INDEX(INDIRECT(\"'\"&A77&\"'!$18:$50\"),MATCH($DP$1,INDIRECT(\"'\"&A77&\"'!$A$18:$A$50\"),0),MATCH(Parts!$B77,INDIRECT(\"'\"&A77&\"'!$10:$10\"),0)),0)","v":0},null,null,{"$f":"IFERROR(INDEX(INDIRECT(\"'\"&A77&\"'!$18:$50\"),MATCH($DS$1,INDIRECT(\"'\"&A77&\"'!$A$18:$A$50\"),0),MATCH(Parts!$B77,INDIRECT(\"'\"&A77&\"'!$10:$10\"),0)),0)","v":0},null,null,{"$f":"IFERROR(INDEX(INDIRECT(\"'\"&A77&\"'!$18:$50\"),MATCH($DV$1,INDIRECT(\"'\"&A77&\"'!$A$18:$A$50\"),0),MATCH(Parts!$B77,INDIRECT(\"'\"&A77&\"'!$10:$10\"),0)),0)","v":0},null,null,{"$f":"IFERROR(INDEX(INDIRECT(\"'\"&A77&\"'!$18:$50\"),MATCH($DY$1,INDIRECT(\"'\"&A77&\"'!$A$18:$A$50\"),0),MATCH(Parts!$B77,INDIRECT(\"'\"&A77&\"'!$10:$10\"),0)),0)","v":0},null,null,{"$f":"IFERROR(INDEX(INDIRECT(\"'\"&A77&\"'!$18:$50\"),MATCH($EB$1,INDIRECT(\"'\"&A77&\"'!$A$18:$A$50\"),0),MATCH(Parts!$B77,INDIRECT(\"'\"&A77&\"'!$10:$10\"),0)),0)","v":0},null,"Solar Display: 274000357; USD 8.00",{"$f":"IFERROR(INDEX(INDIRECT(\"'\"&A77&\"'!$18:$50\"),MATCH($EE$1,INDIRECT(\"'\"&A77&\"'!$A$18:$A$50\"),0),MATCH(Parts!$B77,INDIRECT(\"'\"&A77&\"'!$10:$10\"),0)),0)","v":1},8,null,{"$f":"IFERROR(INDEX(INDIRECT(\"'\"&A77&\"'!$18:$50\"),MATCH($EH$1,INDIRECT(\"'\"&A77&\"'!$A$18:$A$50\"),0),MATCH(Parts!$B77,INDIRECT(\"'\"&A77&\"'!$10:$10\"),0)),0)","v":0},null,null,{"$f":"IFERROR(INDEX(INDIRECT(\"'\"&A77&\"'!$18:$50\"),MATCH($EK$1,INDIRECT(\"'\"&A77&\"'!$A$18:$A$50\"),0),MATCH(Parts!$B77,INDIRECT(\"'\"&A77&\"'!$10:$10\"),0)),0)","v":0}]
[{"$f":"PQS!A80","v":"SDD"},{"$f":"PQS!B80","v":"E003/075"},{"$f":"PQS!E80","v":"HTC 40 SDD*"},{"$f":"PQS!P80","v":"$"},320.98,"Compressor SECOP: 0274000118A; USD 230.00",{"$f":"IFERROR(INDEX(INDIRECT(\"'\"&A78&\"'!$18:$50\"),MATCH(Parts!F$1,INDIRECT(\"'\"&A78&\"'!$A$18:$A$50\"),0),MATCH(Parts!$B78,INDIRECT(\"'\"&A78&\"'!$10:$10\"),0)),0)","v":1},230,"Electric controller: 274000352; USD 45.00",{"$f":"IFERROR(INDEX(INDIRECT(\"'\"&A78&\"'!$18:$50\"),MATCH($I$1,INDIRECT(\"'\"&A78&\"'!$A$18:$A$50\"),0),MATCH(Parts!$B78,INDIRECT(\"'\"&A78&\"'!$10:$10\"),0)),0)","v":1},45,null,{"$f":"IFERROR(INDEX(INDIRECT(\"'\"&A78&\"'!$18:$50\"),MATCH($L$1,INDIRECT(\"'\"&A78&\"'!$A$18:$A$50\"),0),MATCH(Parts!$B78,INDIRECT(\"'\"&A78&\"'!$10:$10\"),0)),0)","v":0},null,null,{"$f":"IFERROR(INDEX(INDIRECT(\"'\"&A78&\"'!$18:$50\"),MATCH($O$1,INDIRECT(\"'\"&A78&\"'!$A$18:$A$50\"),0),MATCH(Parts!$B78,INDIRECT(\"'\"&A78&\"'!$10:$10\"),0)),0)","v":0},null,null,{"$f":"IFERROR(INDEX(INDIRECT(\"'\"&A78&\"'!$18:$50\"),MATCH($R$1,INDIRECT(\"'\"&A78&\"'!$A$18:$A$50\"),0),MATCH(Parts!$B78,INDIRECT(\"'\"&A78&\"'!$10:$10\"),0)),0)","v":0},null,"Sensor for ice freezing：0274000353\nSensor for refrigerator：0274000358",{"$f":"IFERROR(INDEX(INDIRECT(\"'\"&A78&\"'!$18:$50\"),MATCH($U$1,INDIRECT(\"'\"&A78&\"'!$A$18:$A$50\"),0),MATCH(Parts!$B78,INDIRECT(\"'\"&A78&\"'!$10:$10\"),0)),0)","v":1},null,"Condensor：0270700425 / Fan ：0274000351 ",{"$f":"IFERROR(INDEX(INDIRECT(\"'\"&A78&\"'!$18:$50\"),MATCH($X$1,INDIRECT(\"'\"&A78&\"'!$A$18:$A$50\"),0),MATCH(Parts!$B78,INDIRECT(\"'\"&A78&\"'!$10:$10\"),0)),0)","v":1},8,null,{"$f":"IFERROR(INDEX(INDIRECT(\"'\"&A78&\"'!$18:$50\"),MATCH($AA$1,INDIRECT(\"'\"&A78&\"'!$A$18:$A$50\"),0),MATCH(Parts!$B78,INDIRECT(\"'\"&A78&\"'!$10:$10\"),0)),0)","v":0},null,null,{"$f":"IFERROR(INDEX(INDIRECT(\"'\"&A78&\"'!$18:$50\"),MATCH($AD$1,INDIRECT(\"'\"&A78&\"'!$A$18:$A$50\"),0),MATCH(Parts!$B78,INDIRECT(\"'\"&A78&\"'!$10:$10\"),0)),0)","v":0},null,null,{"$f":"IFERROR(INDEX(INDIRECT(\"'\"&A78&\"'!$18:$50\"),MATCH($AG$1,INDIRECT(\"'\"&A78&\"'!$A$18:$A$50\"),0),MATCH(Parts!$B78,INDIRECT(\"'\"&A78&\"'!$10:$10\"),0)),0)","v":0},null,null,{"$f":"IFERROR(INDEX(INDIRECT(\"'\"&A78&\"'!$18:$50\"),MATCH($AJ$1,INDIRECT(\"'\"&A78&\"'!$A$18:$A$50\"),0),MATCH(Parts!$B78,INDIRECT(\"'\"&A78&\"'!$10:$10\"),0)),0)","v":0},null,"Main switch: 274000354; USD 12.00",{"$f":"IFERROR(INDEX(INDIRECT(\"'\"&A78&\"'!$18:$50\"),MATCH($AM$1,INDIRECT(\"'\"&A78&\"'!$A$18:$A$50\"),0),MATCH(Parts!$B78,INDIRECT(\"'\"&A78&\"'!$10:$10\"),0)),0)","v":1},12,null,{"$f":"IFERROR(INDEX(INDIRECT(\"'\"&A78&\"'!$18:$50\"),MATCH($AP$1,INDIRECT(\"'\"&A78&\"'!$A$18:$A$50\"),0),MATCH(Parts!$B78,INDIRECT(\"'\"&A78&\"'!$10:$10\"),0)),0)","v":0},null,"baskets：0270102688C and 0270102688D    1 each",{"$f":"IFERROR(INDEX(INDIRECT(\"'\"&A78&\"'!$18:$50\"),MATCH($AS$1,INDIRECT(\"'\"&A78&\"'!$A$18:$A$50\"),0),MATCH(Parts!$B78,INDIRECT(\"'\"&A78&\"'!$10:$10\"),0)),0)","v":1},4.05,null,{"$f":"IFERROR(INDEX(INDIRECT(\"'\"&A78&\"'!$18:$50\"),MATCH($AV$1,INDIRECT(\"'\"&A78&\"'!$A$18:$A$50\"),0),MATCH(Parts!$B78,INDIRECT(\"'\"&A78&\"'!$10:$10\"),0)),0)","v":0},null,null,{"$f":"IFERROR(INDEX(INDIRECT(\"'\"&A78&\"'!$18:$50\"),MATCH($AY$1,INDIRECT(\"'\"&A78&\"'!$A$18:$A$50\"),0),MATCH(Parts!$B78,INDIRECT(\"'\"&A78&\"'!$10:$10\"),0)),0)","v":0},null,"capacitor：0274000393",{"$f":"IFERROR(INDEX(INDIRECT(\"'\"&A78&\"'!$18:$50\"),MATCH($BB$1,INDIRECT(\"'\"&A78&\"'!$A$18:$A$50\"),0),MATCH(Parts!$B78,INDIRECT(\"'\"&A78&\"'!$10:$10\"),0)),0)","v":0},null,null,{"$f":"IFERROR(INDEX(INDIRECT(\"'\"&A78&\"'!$18:$50\"),MATCH($BE$1,INDIRECT(\"'\"&A78&\"'!$A$18:$A$50\"),0),MATCH(Parts!$B78,INDIRECT(\"'\"&A78&\"'!$10:$10\"),0)),0)","v":0},null,"Dry filter：0074180006",{"$f":"IFERROR(INDEX(INDIRECT(\"'\"&A78&\"'!$18:$50\"),MATCH($BH$1,INDIRECT(\"'\"&A78&\"'!$A$18:$A$50\"),0),MATCH(Parts!$B78,INDIRECT(\"'\"&A78&\"'!$10:$10\"),0)),0)","v":1},2,null,{"$f":"IFERROR(INDEX(INDIRECT(\"'\"&A78&\"'!$18:$50\"),MATCH($BK$1,INDIRECT(\"'\"&A78&\"'!$A$18:$A$50\"),0),MATCH(Parts!$B78,INDIRECT(\"'\"&A78&\"'!$10:$10\"),0)),0)","v":0},null,null,{"$f":"IFERROR(INDEX(INDIRECT(\"'\"&A78&\"'!$18:$50\"),MATCH($BN$1,INDIRECT(\"'\"&A78&\"'!$A$18:$A$50\"),0),MATCH(Parts!$B78,INDIRECT(\"'\"&A78&\"'!$10:$10\"),0)),0)","v":0},null,"Hinge：0070816334",{"$f":"IFERROR(INDEX(INDIRECT(\"'\"&A78&\"'!$18:$50\"),MATCH($BQ$1,INDIRECT(\"'\"&A78&\"'!$A$18:$A$50\"),0),MATCH(Parts!$B78,INDIRECT(\"'\"&A78&\"'!$10:$10\"),0)),0)","v":1},3,"Hinge cover：0070203942 and 0070204349",{"$f":"IFERROR(INDEX(INDIRECT(\"'\"&A78&\"'!$18:$50\"),MATCH($BT$1,INDIRECT(\"'\"&A78&\"'!$A$18:$A$50\"),0),MATCH(Parts!$B78,INDIRECT(\"'\"&A78&\"'!$10:$10\"),0)),0)","v":1},1,null,{"$f":"IFERROR(INDEX(INDIRECT(\"'\"&A78&\"'!$18:$50\"),MATCH($BW$1,INDIRECT(\"'\"&A78&\"'!$A$18:$A$50\"),0),MATCH(Parts!$B78,INDIRECT(\"'\"&A78&\"'!$10:$10\"),0)),0)","v":0},null,"30 days data logger：0274000391",{"$f":"IFERROR(INDEX(INDIRECT(\"'\"&A78&\"'!$18:$50\"),MATCH($BZ$1,INDIRECT(\"'\"&A78&\"'!$A$18:$A$50\"),0),MATCH(Parts!$B78,INDIRECT(\"'\"&A78&\"'!$10:$10\"),0)),0)","v":1},null,null,{"$f":"IFERROR(INDEX(INDIRECT(\"'\"&A78&\"'!$18:$50\"),MATCH($CC$1,INDIRECT(\"'\"&A78&\"'!$A$18:$A$50\"),0),MATCH(Parts!$B78,INDIRECT(\"'\"&A78&\"'!$10:$10\"),0)),0)","v":0},null,"Handle：0070814623",{"$f":"IFERROR(INDEX(INDIRECT(\"'\"&A78&\"'!$18:$50\"),MATCH($CF$1,INDIRECT(\"'\"&A78&\"'!$A$18:$A$50\"),0),MATCH(Parts!$B78,INDIRECT(\"'\"&A78&\"'!$10:$10\"),0)),0)","v":1},3.38,"wire：0270400397 and 0274000206C",{"$f":"IFERROR(INDEX(INDIRECT(\"'\"&A78&\"'!$18:$50\"),MATCH($CI$1,INDIRECT(\"'\"&A78&\"'!$A$18:$A$50\"),0),MATCH(Parts!$B78,INDIRECT(\"'\"&A78&\"'!$10:$10\"),0)),0)","v":1},4.55,null,{"$f":"IFERROR(INDEX(INDIRECT(\"'\"&A78&\"'!$18:$50\"),MATCH($CL$1,INDIRECT(\"'\"&A78&\"'!$A$18:$A$50\"),0),MATCH(Parts!$B78,INDIRECT(\"'\"&A78&\"'!$10:$10\"),0)),0)","v":0},null,null,{"$f":"IFERROR(INDEX(INDIRECT(\"'\"&A78&\"'!$18:$50\"),MATCH($CO$1,INDIRECT(\"'\"&A78&\"'!$A$18:$A$50\"),0),MATCH(Parts!$B78,INDIRECT(\"'\"&A78&\"'!$10:$10\"),0)),0)","v":0},null,null,{"$f":"IFERROR(INDEX(INDIRECT(\"'\"&A78&\"'!$18:$50\"),MATCH($CR$1,INDIRECT(\"'\"&A78&\"'!$A$18:$A$50\"),0),MATCH(Parts!$B78,INDIRECT(\"'\"&A78&\"'!$10:$10\"),0)),0)","v":0},null,null,{"$f":"IFERROR(INDEX(INDIRECT(\"'\"&A78&\"'!$18:$50\"),MATCH($CU$1,INDIRECT(\"'\"&A78&\"'!$A$18:$A$50\"),0),MATCH(Parts!$B78,INDIRECT(\"'\"&A78&\"'!$10:$10\"),0)),0)","v":0},null,null,{"$f":"IFERROR(INDEX(INDIRECT(\"'\"&A78&\"'!$18:$50\"),MATCH($CX$1,INDIRECT(\"'\"&A78&\"'!$A$18:$A$50\"),0),MATCH(Parts!$B78,INDIRECT(\"'\"&A78&\"'!$10:$10\"),0)),0)","v":0},null,null,{"$f":"IFERROR(INDEX(INDIRECT(\"'\"&A78&\"'!$18:$50\"),MATCH($DA$1,INDIRECT(\"'\"&A78&\"'!$A$18:$A$50\"),0),MATCH(Parts!$B78,INDIRECT(\"'\"&A78&\"'!$10:$10\"),0)),0)","v":0},null,null,{"$f":"IFERROR(INDEX(INDIRECT(\"'\"&A78&\"'!$18:$50\"),MATCH($DD$1,INDIRECT(\"'\"&A78&\"'!$A$18:$A$50\"),0),MATCH(Parts!$B78,INDIRECT(\"'\"&A78&\"'!$10:$10\"),0)),0)","v":0},null,null,{"$f":"IFERROR(INDEX(INDIRECT(\"'\"&A78&\"'!$18:$50\"),MATCH($DG$1,INDIRECT(\"'\"&A78&\"'!$A$18:$A$50\"),0),MATCH(Parts!$B78,INDIRECT(\"'\"&A78&\"'!$10:$10\"),0)),0)","v":0},null,null,{"$f":"IFERROR(INDEX(INDIRECT(\"'\"&A78&\"'!$18:$50\"),MATCH($DJ$1,INDIRECT(\"'\"&A78&\"'!$A$18:$A$50\"),0),MATCH(Parts!$B78,INDIRECT(\"'\"&A78&\"'!$10:$10\"),0)),0)","v":0},null,null,{"$f":"IFERROR(INDEX(INDIRECT(\"'\"&A78&\"'!$18:$50\"),MATCH($DM$1,INDIRECT(\"'\"&A78&\"'!$A$18:$A$50\"),0),MATCH(Parts!$B78,INDIRECT(\"'\"&A78&\"'!$10:$10\"),0)),0)","v":0},null,null,{"$f":"IFERROR(INDEX(INDIRECT(\"'\"&A78&\"'!$18:$50\"),MATCH($DP$1,INDIRECT(\"'\"&A78&\"'!$A$18:$A$50\"),0),MATCH(Parts!$B78,INDIRECT(\"'\"&A78&\"'!$10:$10\"),0)),0)","v":0},null,null,{"$f":"IFERROR(INDEX(INDIRECT(\"'\"&A78&\"'!$18:$50\"),MATCH($DS$1,INDIRECT(\"'\"&A78&\"'!$A$18:$A$50\"),0),MATCH(Parts!$B78,INDIRECT(\"'\"&A78&\"'!$10:$10\"),0)),0)","v":0},null,null,{"$f":"IFERROR(INDEX(INDIRECT(\"'\"&A78&\"'!$18:$50\"),MATCH($DV$1,INDIRECT(\"'\"&A78&\"'!$A$18:$A$50\"),0),MATCH(Parts!$B78,INDIRECT(\"'\"&A78&\"'!$10:$10\"),0)),0)","v":0},null,null,{"$f":"IFERROR(INDEX(INDIRECT(\"'\"&A78&\"'!$18:$50\"),MATCH($DY$1,INDIRECT(\"'\"&A78&\"'!$A$18:$A$50\"),0),MATCH(Parts!$B78,INDIRECT(\"'\"&A78&\"'!$10:$10\"),0)),0)","v":0},null,null,{"$f":"IFERROR(INDEX(INDIRECT(\"'\"&A78&\"'!$18:$50\"),MATCH($EB$1,INDIRECT(\"'\"&A78&\"'!$A$18:$A$50\"),0),MATCH(Parts!$B78,INDIRECT(\"'\"&A78&\"'!$10:$10\"),0)),0)","v":0},null,"Solar Display: 274000357; USD 8.00",{"$f":"IFERROR(INDEX(INDIRECT(\"'\"&A78&\"'!$18:$50\"),MATCH($EE$1,INDIRECT(\"'\"&A78&\"'!$A$18:$A$50\"),0),MATCH(Parts!$B78,INDIRECT(\"'\"&A78&\"'!$10:$10\"),0)),0)","v":1},8,null,{"$f":"IFERROR(INDEX(INDIRECT(\"'\"&A78&\"'!$18:$50\"),MATCH($EH$1,INDIRECT(\"'\"&A78&\"'!$A$18:$A$50\"),0),MATCH(Parts!$B78,INDIRECT(\"'\"&A78&\"'!$10:$10\"),0)),0)","v":0},null,null,{"$f":"IFERROR(INDEX(INDIRECT(\"'\"&A78&\"'!$18:$50\"),MATCH($EK$1,INDIRECT(\"'\"&A78&\"'!$A$18:$A$50\"),0),MATCH(Parts!$B78,INDIRECT(\"'\"&A78&\"'!$10:$10\"),0)),0)","v":0}]
[{"$f":"PQS!A81","v":"SDD"},{"$f":"PQS!B81","v":"E003/076"},{"$f":"PQS!E81","v":"HTC 110 SDD*"},{"$f":"PQS!P81","v":"$"},320.98,"Compressor SECOP: 0274000118A; USD 230.00",{"$f":"IFERROR(INDEX(INDIRECT(\"'\"&A79&\"'!$18:$50\"),MATCH(Parts!F$1,INDIRECT(\"'\"&A79&\"'!$A$18:$A$50\"),0),MATCH(Parts!$B79,INDIRECT(\"'\"&A79&\"'!$10:$10\"),0)),0)","v":1},230,"Electric controller: 274000352; USD 45.00",{"$f":"IFERROR(INDEX(INDIRECT(\"'\"&A79&\"'!$18:$50\"),MATCH($I$1,INDIRECT(\"'\"&A79&\"'!$A$18:$A$50\"),0),MATCH(Parts!$B79,INDIRECT(\"'\"&A79&\"'!$10:$10\"),0)),0)","v":1},45,null,{"$f":"IFERROR(INDEX(INDIRECT(\"'\"&A79&\"'!$18:$50\"),MATCH($L$1,INDIRECT(\"'\"&A79&\"'!$A$18:$A$50\"),0),MATCH(Parts!$B79,INDIRECT(\"'\"&A79&\"'!$10:$10\"),0)),0)","v":0},null,null,{"$f":"IFERROR(INDEX(INDIRECT(\"'\"&A79&\"'!$18:$50\"),MATCH($O$1,INDIRECT(\"'\"&A79&\"'!$A$18:$A$50\"),0),MATCH(Parts!$B79,INDIRECT(\"'\"&A79&\"'!$10:$10\"),0)),0)","v":0},null,null,{"$f":"IFERROR(INDEX(INDIRECT(\"'\"&A79&\"'!$18:$50\"),MATCH($R$1,INDIRECT(\"'\"&A79&\"'!$A$18:$A$50\"),0),MATCH(Parts!$B79,INDIRECT(\"'\"&A79&\"'!$10:$10\"),0)),0)","v":0},null,"Sensor for ice freezing：0274000353\nSensor for refrigerator：0274000358",{"$f":"IFERROR(INDEX(INDIRECT(\"'\"&A79&\"'!$18:$50\"),MATCH($U$1,INDIRECT(\"'\"&A79&\"'!$A$18:$A$50\"),0),MATCH(Parts!$B79,INDIRECT(\"'\"&A79&\"'!$10:$10\"),0)),0)","v":1},null,"Condensor：0270700421 / Fan ：0274000351 ",{"$f":"IFERROR(INDEX(INDIRECT(\"'\"&A79&\"'!$18:$50\"),MATCH($X$1,INDIRECT(\"'\"&A79&\"'!$A$18:$A$50\"),0),MATCH(Parts!$B79,INDIRECT(\"'\"&A79&\"'!$10:$10\"),0)),0)","v":1},8,null,{"$f":"IFERROR(INDEX(INDIRECT(\"'\"&A79&\"'!$18:$50\"),MATCH($AA$1,INDIRECT(\"'\"&A79&\"'!$A$18:$A$50\"),0),MATCH(Parts!$B79,INDIRECT(\"'\"&A79&\"'!$10:$10\"),0)),0)","v":0},null,null,{"$f":"IFERROR(INDEX(INDIRECT(\"'\"&A79&\"'!$18:$50\"),MATCH($AD$1,INDIRECT(\"'\"&A79&\"'!$A$18:$A$50\"),0),MATCH(Parts!$B79,INDIRECT(\"'\"&A79&\"'!$10:$10\"),0)),0)","v":0},null,null,{"$f":"IFERROR(INDEX(INDIRECT(\"'\"&A79&\"'!$18:$50\"),MATCH($AG$1,INDIRECT(\"'\"&A79&\"'!$A$18:$A$50\"),0),MATCH(Parts!$B79,INDIRECT(\"'\"&A79&\"'!$10:$10\"),0)),0)","v":0},null,null,{"$f":"IFERROR(INDEX(INDIRECT(\"'\"&A79&\"'!$18:$50\"),MATCH($AJ$1,INDIRECT(\"'\"&A79&\"'!$A$18:$A$50\"),0),MATCH(Parts!$B79,INDIRECT(\"'\"&A79&\"'!$10:$10\"),0)),0)","v":0},null,"Main switch: 274000354; USD 12.00",{"$f":"IFERROR(INDEX(INDIRECT(\"'\"&A79&\"'!$18:$50\"),MATCH($AM$1,INDIRECT(\"'\"&A79&\"'!$A$18:$A$50\"),0),MATCH(Parts!$B79,INDIRECT(\"'\"&A79&\"'!$10:$10\"),0)),0)","v":1},12,null,{"$f":"IFERROR(INDEX(INDIRECT(\"'\"&A79&\"'!$18:$50\"),MATCH($AP$1,INDIRECT(\"'\"&A79&\"'!$A$18:$A$50\"),0),MATCH(Parts!$B79,INDIRECT(\"'\"&A79&\"'!$10:$10\"),0)),0)","v":0},null,"baskets：0270102688         4 each",{"$f":"IFERROR(INDEX(INDIRECT(\"'\"&A79&\"'!$18:$50\"),MATCH($AS$1,INDIRECT(\"'\"&A79&\"'!$A$18:$A$50\"),0),MATCH(Parts!$B79,INDIRECT(\"'\"&A79&\"'!$10:$10\"),0)),0)","v":1},4.05,null,{"$f":"IFERROR(INDEX(INDIRECT(\"'\"&A79&\"'!$18:$50\"),MATCH($AV$1,INDIRECT(\"'\"&A79&\"'!$A$18:$A$50\"),0),MATCH(Parts!$B79,INDIRECT(\"'\"&A79&\"'!$10:$10\"),0)),0)","v":0},null,null,{"$f":"IFERROR(INDEX(INDIRECT(\"'\"&A79&\"'!$18:$50\"),MATCH($AY$1,INDIRECT(\"'\"&A79&\"'!$A$18:$A$50\"),0),MATCH(Parts!$B79,INDIRECT(\"'\"&A79&\"'!$10:$10\"),0)),0)","v":0},null,"capacitor：0274000393",{"$f":"IFERROR(INDEX(INDIRECT(\"'\"&A79&\"'!$18:$50\"),MATCH($BB$1,INDIRECT(\"'\"&A79&\"'!$A$18:$A$50\"),0),MATCH(Parts!$B79,INDIRECT(\"'\"&A79&\"'!$10:$10\"),0)),0)","v":0},null,null,{"$f":"IFERROR(INDEX(INDIRECT(\"'\"&A79&\"'!$18:$50\"),MATCH($BE$1,INDIRECT(\"'\"&A79&\"'!$A$18:$A$50\"),0),MATCH(Parts!$B79,INDIRECT(\"'\"&A79&\"'!$10:$10\"),0)),0)","v":0},null,"Dry filter：0074180006",{"$f":"IFERROR(INDEX(INDIRECT(\"'\"&A79&\"'!$18:$50\"),MATCH($BH$1,INDIRECT(\"'\"&A79&\"'!$A$18:$A$50\"),0),MATCH(Parts!$B79,INDIRECT(\"'\"&A79&\"'!$10:$10\"),0)),0)","v":1},2,null,{"$f":"IFERROR(INDEX(INDIRECT(\"'\"&A79&\"'!$18:$50\"),MATCH($BK$1,INDIRECT(\"'\"&A79&\"'!$A$18:$A$50\"),0),MATCH(Parts!$B79,INDIRECT(\"'\"&A79&\"'!$10:$10\"),0)),0)","v":0},null,null,{"$f":"IFERROR(INDEX(INDIRECT(\"'\"&A79&\"'!$18:$50\"),MATCH($BN$1,INDIRECT(\"'\"&A79&\"'!$A$18:$A$50\"),0),MATCH(Parts!$B79,INDIRECT(\"'\"&A79&\"'!$10:$10\"),0)),0)","v":0},null,"Hinge：0070816334",{"$f":"IFERROR(INDEX(INDIRECT(\"'\"&A79&\"'!$18:$50\"),MATCH($BQ$1,INDIRECT(\"'\"&A79&\"'!$A$18:$A$50\"),0),MATCH(Parts!$B79,INDIRECT(\"'\"&A79&\"'!$10:$10\"),0)),0)","v":1},3,"Hinge cover：0070203942 and 0070204349",{"$f":"IFERROR(INDEX(INDIRECT(\"'\"&A79&\"'!$18:$50\"),MATCH($BT$1,INDIRECT(\"'\"&A79&\"'!$A$18:$A$50\"),0),MATCH(Parts!$B79,INDIRECT(\"'\"&A79&\"'!$10:$10\"),0)),0)","v":1},1,null,{"$f":"IFERROR(INDEX(INDIRECT(\"'\"&A79&\"'!$18:$50\"),MATCH($BW$1,INDIRECT(\"'\"&A79&\"'!$A$18:$A$50\"),0),MATCH(Parts!$B79,INDIRECT(\"'\"&A79&\"'!$10:$10\"),0)),0)","v":0},null,"30 days data logger：0274000391",{"$f":"IFERROR(INDEX(INDIRECT(\"'\"&A79&\"'!$18:$50\"),MATCH($BZ$1,INDIRECT(\"'\"&A79&\"'!$A$18:$A$50\"),0),MATCH(Parts!$B79,INDIRECT(\"'\"&A79&\"'!$10:$10\"),0)),0)","v":1},null,null,{"$f":"IFERROR(INDEX(INDIRECT(\"'\"&A79&\"'!$18:$50\"),MATCH($CC$1,INDIRECT(\"'\"&A79&\"'!$A$18:$A$50\"),0),MATCH(Parts!$B79,INDIRECT(\"'\"&A79&\"'!$10:$10\"),0)),0)","v":0},null,"Handle：0070814623",{"$f":"IFERROR(INDEX(INDIRECT(\"'\"&A79&\"'!$18:$50\"),MATCH($CF$1,INDIRECT(\"'\"&A79&\"'!$A$18:$A$50\"),0),MATCH(Parts!$B79,INDIRECT(\"'\"&A79&\"'!$10:$10\"),0)),0)","v":1},3.38,"wire：0270400397 and 0274000206C",{"$f":"IFERROR(INDEX(INDIRECT(\"'\"&A79&\"'!$18:$50\"),MATCH($CI$1,INDIRECT(\"'\"&A79&\"'!$A$18:$A$50\"),0),MATCH(Parts!$B79,INDIRECT(\"'\"&A79&\"'!$10:$10\"),0)),0)","v":1},4.55,null,{"$f":"IFERROR(INDEX(INDIRECT(\"'\"&A79&\"'!$18:$50\"),MATCH($CL$1,INDIRECT(\"'\"&A79&\"'!$A$18:$A$50\"),0),MATCH(Parts!$B79,INDIRECT(\"'\"&A79&\"'!$10:$10\"),0)),0)","v":0},null,null,{"$f":"IFERROR(INDEX(INDIRECT(\"'\"&A79&\"'!$18:$50\"),MATCH($CO$1,INDIRECT(\"'\"&A79&\"'!$A$18:$A$50\"),0),MATCH(Parts!$B79,INDIRECT(\"'\"&A79&\"'!$10:$10\"),0)),0)","v":0},null,null,{"$f":"IFERROR(INDEX(INDIRECT(\"'\"&A79&\"'!$18:$50\"),MATCH($CR$1,INDIRECT(\"'\"&A79&\"'!$A$18:$A$50\"),0),MATCH(Parts!$B79,INDIRECT(\"'\"&A79&\"'!$10:$10\"),0)),0)","v":0},null,null,{"$f":"IFERROR(INDEX(INDIRECT(\"'\"&A79&\"'!$18:$50\"),MATCH($CU$1,INDIRECT(\"'\"&A79&\"'!$A$18:$A$50\"),0),MATCH(Parts!$B79,INDIRECT(\"'\"&A79&\"'!$10:$10\"),0)),0)","v":0},null,null,{"$f":"IFERROR(INDEX(INDIRECT(\"'\"&A79&\"'!$18:$50\"),MATCH($CX$1,INDIRECT(\"'\"&A79&\"'!$A$18:$A$50\"),0),MATCH(Parts!$B79,INDIRECT(\"'\"&A79&\"'!$10:$10\"),0)),0)","v":0},null,null,{"$f":"IFERROR(INDEX(INDIRECT(\"'\"&A79&\"'!$18:$50\"),MATCH($DA$1,INDIRECT(\"'\"&A79&\"'!$A$18:$A$50\"),0),MATCH(Parts!$B79,INDIRECT(\"'\"&A79&\"'!$10:$10\"),0)),0)","v":0},null,null,{"$f":"IFERROR(INDEX(INDIRECT(\"'\"&A79&\"'!$18:$50\"),MATCH($DD$1,INDIRECT(\"'\"&A79&\"'!$A$18:$A$50\"),0),MATCH(Parts!$B79,INDIRECT(\"'\"&A79&\"'!$10:$10\"),0)),0)","v":0},null,null,{"$f":"IFERROR(INDEX(INDIRECT(\"'\"&A79&\"'!$18:$50\"),MATCH($DG$1,INDIRECT(\"'\"&A79&\"'!$A$18:$A$50\"),0),MATCH(Parts!$B79,INDIRECT(\"'\"&A79&\"'!$10:$10\"),0)),0)","v":0},null,null,{"$f":"IFERROR(INDEX(INDIRECT(\"'\"&A79&\"'!$18:$50\"),MATCH($DJ$1,INDIRECT(\"'\"&A79&\"'!$A$18:$A$50\"),0),MATCH(Parts!$B79,INDIRECT(\"'\"&A79&\"'!$10:$10\"),0)),0)","v":0},null,null,{"$f":"IFERROR(INDEX(INDIRECT(\"'\"&A79&\"'!$18:$50\"),MATCH($DM$1,INDIRECT(\"'\"&A79&\"'!$A$18:$A$50\"),0),MATCH(Parts!$B79,INDIRECT(\"'\"&A79&\"'!$10:$10\"),0)),0)","v":0},null,null,{"$f":"IFERROR(INDEX(INDIRECT(\"'\"&A79&\"'!$18:$50\"),MATCH($DP$1,INDIRECT(\"'\"&A79&\"'!$A$18:$A$50\"),0),MATCH(Parts!$B79,INDIRECT(\"'\"&A79&\"'!$10:$10\"),0)),0)","v":0},null,null,{"$f":"IFERROR(INDEX(INDIRECT(\"'\"&A79&\"'!$18:$50\"),MATCH($DS$1,INDIRECT(\"'\"&A79&\"'!$A$18:$A$50\"),0),MATCH(Parts!$B79,INDIRECT(\"'\"&A79&\"'!$10:$10\"),0)),0)","v":0},null,null,{"$f":"IFERROR(INDEX(INDIRECT(\"'\"&A79&\"'!$18:$50\"),MATCH($DV$1,INDIRECT(\"'\"&A79&\"'!$A$18:$A$50\"),0),MATCH(Parts!$B79,INDIRECT(\"'\"&A79&\"'!$10:$10\"),0)),0)","v":0},null,null,{"$f":"IFERROR(INDEX(INDIRECT(\"'\"&A79&\"'!$18:$50\"),MATCH($DY$1,INDIRECT(\"'\"&A79&\"'!$A$18:$A$50\"),0),MATCH(Parts!$B79,INDIRECT(\"'\"&A79&\"'!$10:$10\"),0)),0)","v":0},null,null,{"$f":"IFERROR(INDEX(INDIRECT(\"'\"&A79&\"'!$18:$50\"),MATCH($EB$1,INDIRECT(\"'\"&A79&\"'!$A$18:$A$50\"),0),MATCH(Parts!$B79,INDIRECT(\"'\"&A79&\"'!$10:$10\"),0)),0)","v":0},null,"Solar Display: 274000357; USD 8.00",{"$f":"IFERROR(INDEX(INDIRECT(\"'\"&A79&\"'!$18:$50\"),MATCH($EE$1,INDIRECT(\"'\"&A79&\"'!$A$18:$A$50\"),0),MATCH(Parts!$B79,INDIRECT(\"'\"&A79&\"'!$10:$10\"),0)),0)","v":1},8,null,{"$f":"IFERROR(INDEX(INDIRECT(\"'\"&A79&\"'!$18:$50\"),MATCH($EH$1,INDIRECT(\"'\"&A79&\"'!$A$18:$A$50\"),0),MATCH(Parts!$B79,INDIRECT(\"'\"&A79&\"'!$10:$10\"),0)),0)","v":0},null,null,{"$f":"IFERROR(INDEX(INDIRECT(\"'\"&A79&\"'!$18:$50\"),MATCH($EK$1,INDIRECT(\"'\"&A79&\"'!$A$18:$A$50\"),0),MATCH(Parts!$B79,INDIRECT(\"'\"&A79&\"'!$10:$10\"),0)),0)","v":0}]
[{"$f":"PQS!A82","v":"SDD"},{"$f":"PQS!B82","v":"E003/077"},{"$f":"PQS!E82","v":"TCW 15 SDD*"},{"$f":"PQS!P82","v":"€"},543.12,"Compressor: 296.9702.09: 116,19 €",{"$f":"IFERROR(INDEX(INDIRECT(\"'\"&A80&\"'!$18:$50\"),MATCH(Parts!F$1,INDIRECT(\"'\"&A80&\"'!$A$18:$A$50\"),0),MATCH(Parts!$B80,INDIRECT(\"'\"&A80&\"'!$10:$10\"),0)),0)","v":1},116.19,null,{"$f":"IFERROR(INDEX(INDIRECT(\"'\"&A80&\"'!$18:$50\"),MATCH($I$1,INDIRECT(\"'\"&A80&\"'!$A$18:$A$50\"),0),MATCH(Parts!$B80,INDIRECT(\"'\"&A80&\"'!$10:$10\"),0)),0)","v":0},null,null,{"$f":"IFERROR(INDEX(INDIRECT(\"'\"&A80&\"'!$18:$50\"),MATCH($L$1,INDIRECT(\"'\"&A80&\"'!$A$18:$A$50\"),0),MATCH(Parts!$B80,INDIRECT(\"'\"&A80&\"'!$10:$10\"),0)),0)","v":0},null,null,{"$f":"IFERROR(INDEX(INDIRECT(\"'\"&A80&\"'!$18:$50\"),MATCH($O$1,INDIRECT(\"'\"&A80&\"'!$A$18:$A$50\"),0),MATCH(Parts!$B80,INDIRECT(\"'\"&A80&\"'!$10:$10\"),0)),0)","v":0},null,"Controller board: 296.9769.82: 138,27 €",{"$f":"IFERROR(INDEX(INDIRECT(\"'\"&A80&\"'!$18:$50\"),MATCH($R$1,INDIRECT(\"'\"&A80&\"'!$A$18:$A$50\"),0),MATCH(Parts!$B80,INDIRECT(\"'\"&A80&\"'!$10:$10\"),0)),0)","v":1},138.27000000000001,null,{"$f":"IFERROR(INDEX(INDIRECT(\"'\"&A80&\"'!$18:$50\"),MATCH($U$1,INDIRECT(\"'\"&A80&\"'!$A$18:$A$50\"),0),MATCH(Parts!$B80,INDIRECT(\"'\"&A80&\"'!$10:$10\"),0)),0)","v":0},null,"Fan compressor: 292.9960.06: 66,05 €",{"$f":"IFERROR(INDEX(INDIRECT(\"'\"&A80&\"'!$18:$50\"),MATCH($X$1,INDIRECT(\"'\"&A80&\"'!$A$18:$A$50\"),0),MATCH(Parts!$B80,INDIRECT(\"'\"&A80&\"'!$10:$10\"),0)),0)","v":1},66.05,null,{"$f":"IFERROR(INDEX(INDIRECT(\"'\"&A80&\"'!$18:$50\"),MATCH($AA$1,INDIRECT(\"'\"&A80&\"'!$A$18:$A$50\"),0),MATCH(Parts!$B80,INDIRECT(\"'\"&A80&\"'!$10:$10\"),0)),0)","v":0},null,null,{"$f":"IFERROR(INDEX(INDIRECT(\"'\"&A80&\"'!$18:$50\"),MATCH($AD$1,INDIRECT(\"'\"&A80&\"'!$A$18:$A$50\"),0),MATCH(Parts!$B80,INDIRECT(\"'\"&A80&\"'!$10:$10\"),0)),0)","v":0},null,null,{"$f":"IFERROR(INDEX(INDIRECT(\"'\"&A80&\"'!$18:$50\"),MATCH($AG$1,INDIRECT(\"'\"&A80&\"'!$A$18:$A$50\"),0),MATCH(Parts!$B80,INDIRECT(\"'\"&A80&\"'!$10:$10\"),0)),0)","v":0},null,"E Box: 296.9705.12: 104,96 €",{"$f":"IFERROR(INDEX(INDIRECT(\"'\"&A80&\"'!$18:$50\"),MATCH($AJ$1,INDIRECT(\"'\"&A80&\"'!$A$18:$A$50\"),0),MATCH(Parts!$B80,INDIRECT(\"'\"&A80&\"'!$10:$10\"),0)),0)","v":1},104.96,"Main switch: 292.2044.11: 2,73 €",{"$f":"IFERROR(INDEX(INDIRECT(\"'\"&A80&\"'!$18:$50\"),MATCH($AM$1,INDIRECT(\"'\"&A80&\"'!$A$18:$A$50\"),0),MATCH(Parts!$B80,INDIRECT(\"'\"&A80&\"'!$10:$10\"),0)),0)","v":1},2.73,null,{"$f":"IFERROR(INDEX(INDIRECT(\"'\"&A80&\"'!$18:$50\"),MATCH($AP$1,INDIRECT(\"'\"&A80&\"'!$A$18:$A$50\"),0),MATCH(Parts!$B80,INDIRECT(\"'\"&A80&\"'!$10:$10\"),0)),0)","v":0},null,null,{"$f":"IFERROR(INDEX(INDIRECT(\"'\"&A80&\"'!$18:$50\"),MATCH($AS$1,INDIRECT(\"'\"&A80&\"'!$A$18:$A$50\"),0),MATCH(Parts!$B80,INDIRECT(\"'\"&A80&\"'!$10:$10\"),0)),0)","v":0},null,null,{"$f":"IFERROR(INDEX(INDIRECT(\"'\"&A80&\"'!$18:$50\"),MATCH($AV$1,INDIRECT(\"'\"&A80&\"'!$A$18:$A$50\"),0),MATCH(Parts!$B80,INDIRECT(\"'\"&A80&\"'!$10:$10\"),0)),0)","v":0},null,null,{"$f":"IFERROR(INDEX(INDIRECT(\"'\"&A80&\"'!$18:$50\"),MATCH($AY$1,INDIRECT(\"'\"&A80&\"'!$A$18:$A$50\"),0),MATCH(Parts!$B80,INDIRECT(\"'\"&A80&\"'!$10:$10\"),0)),0)","v":0},null,null,{"$f":"IFERROR(INDEX(INDIRECT(\"'\"&A80&\"'!$18:$50\"),MATCH($BB$1,INDIRECT(\"'\"&A80&\"'!$A$18:$A$50\"),0),MATCH(Parts!$B80,INDIRECT(\"'\"&A80&\"'!$10:$10\"),0)),0)","v":0},null,null,{"$f":"IFERROR(INDEX(INDIRECT(\"'\"&A80&\"'!$18:$50\"),MATCH($BE$1,INDIRECT(\"'\"&A80&\"'!$A$18:$A$50\"),0),MATCH(Parts!$B80,INDIRECT(\"'\"&A80&\"'!$10:$10\"),0)),0)","v":0},null,null,{"$f":"IFERROR(INDEX(INDIRECT(\"'\"&A80&\"'!$18:$50\"),MATCH($BH$1,INDIRECT(\"'\"&A80&\"'!$A$18:$A$50\"),0),MATCH(Parts!$B80,INDIRECT(\"'\"&A80&\"'!$10:$10\"),0)),0)","v":0},null,null,{"$f":"IFERROR(INDEX(INDIRECT(\"'\"&A80&\"'!$18:$50\"),MATCH($BK$1,INDIRECT(\"'\"&A80&\"'!$A$18:$A$50\"),0),MATCH(Parts!$B80,INDIRECT(\"'\"&A80&\"'!$10:$10\"),0)),0)","v":0},null,null,{"$f":"IFERROR(INDEX(INDIRECT(\"'\"&A80&\"'!$18:$50\"),MATCH($BN$1,INDIRECT(\"'\"&A80&\"'!$A$18:$A$50\"),0),MATCH(Parts!$B80,INDIRECT(\"'\"&A80&\"'!$10:$10\"),0)),0)","v":0},null,null,{"$f":"IFERROR(INDEX(INDIRECT(\"'\"&A80&\"'!$18:$50\"),MATCH($BQ$1,INDIRECT(\"'\"&A80&\"'!$A$18:$A$50\"),0),MATCH(Parts!$B80,INDIRECT(\"'\"&A80&\"'!$10:$10\"),0)),0)","v":0},null,null,{"$f":"IFERROR(INDEX(INDIRECT(\"'\"&A80&\"'!$18:$50\"),MATCH($BT$1,INDIRECT(\"'\"&A80&\"'!$A$18:$A$50\"),0),MATCH(Parts!$B80,INDIRECT(\"'\"&A80&\"'!$10:$10\"),0)),0)","v":0},null,null,{"$f":"IFERROR(INDEX(INDIRECT(\"'\"&A80&\"'!$18:$50\"),MATCH($BW$1,INDIRECT(\"'\"&A80&\"'!$A$18:$A$50\"),0),MATCH(Parts!$B80,INDIRECT(\"'\"&A80&\"'!$10:$10\"),0)),0)","v":0},null,null,{"$f":"IFERROR(INDEX(INDIRECT(\"'\"&A80&\"'!$18:$50\"),MATCH($BZ$1,INDIRECT(\"'\"&A80&\"'!$A$18:$A$50\"),0),MATCH(Parts!$B80,INDIRECT(\"'\"&A80&\"'!$10:$10\"),0)),0)","v":0},null,null,{"$f":"IFERROR(INDEX(INDIRECT(\"'\"&A80&\"'!$18:$50\"),MATCH($CC$1,INDIRECT(\"'\"&A80&\"'!$A$18:$A$50\"),0),MATCH(Parts!$B80,INDIRECT(\"'\"&A80&\"'!$10:$10\"),0)),0)","v":0},null,null,{"$f":"IFERROR(INDEX(INDIRECT(\"'\"&A80&\"'!$18:$50\"),MATCH($CF$1,INDIRECT(\"'\"&A80&\"'!$A$18:$A$50\"),0),MATCH(Parts!$B80,INDIRECT(\"'\"&A80&\"'!$10:$10\"),0)),0)","v":0},null,null,{"$f":"IFERROR(INDEX(INDIRECT(\"'\"&A80&\"'!$18:$50\"),MATCH($CI$1,INDIRECT(\"'\"&A80&\"'!$A$18:$A$50\"),0),MATCH(Parts!$B80,INDIRECT(\"'\"&A80&\"'!$10:$10\"),0)),0)","v":0},null,null,{"$f":"IFERROR(INDEX(INDIRECT(\"'\"&A80&\"'!$18:$50\"),MATCH($CL$1,INDIRECT(\"'\"&A80&\"'!$A$18:$A$50\"),0),MATCH(Parts!$B80,INDIRECT(\"'\"&A80&\"'!$10:$10\"),0)),0)","v":0},null,null,{"$f":"IFERROR(INDEX(INDIRECT(\"'\"&A80&\"'!$18:$50\"),MATCH($CO$1,INDIRECT(\"'\"&A80&\"'!$A$18:$A$50\"),0),MATCH(Parts!$B80,INDIRECT(\"'\"&A80&\"'!$10:$10\"),0)),0)","v":0},null,null,{"$f":"IFERROR(INDEX(INDIRECT(\"'\"&A80&\"'!$18:$50\"),MATCH($CR$1,INDIRECT(\"'\"&A80&\"'!$A$18:$A$50\"),0),MATCH(Parts!$B80,INDIRECT(\"'\"&A80&\"'!$10:$10\"),0)),0)","v":0},null,null,{"$f":"IFERROR(INDEX(INDIRECT(\"'\"&A80&\"'!$18:$50\"),MATCH($CU$1,INDIRECT(\"'\"&A80&\"'!$A$18:$A$50\"),0),MATCH(Parts!$B80,INDIRECT(\"'\"&A80&\"'!$10:$10\"),0)),0)","v":0},null,null,{"$f":"IFERROR(INDEX(INDIRECT(\"'\"&A80&\"'!$18:$50\"),MATCH($CX$1,INDIRECT(\"'\"&A80&\"'!$A$18:$A$50\"),0),MATCH(Parts!$B80,INDIRECT(\"'\"&A80&\"'!$10:$10\"),0)),0)","v":0},null,null,{"$f":"IFERROR(INDEX(INDIRECT(\"'\"&A80&\"'!$18:$50\"),MATCH($DA$1,INDIRECT(\"'\"&A80&\"'!$A$18:$A$50\"),0),MATCH(Parts!$B80,INDIRECT(\"'\"&A80&\"'!$10:$10\"),0)),0)","v":0},null,null,{"$f":"IFERROR(INDEX(INDIRECT(\"'\"&A80&\"'!$18:$50\"),MATCH($DD$1,INDIRECT(\"'\"&A80&\"'!$A$18:$A$50\"),0),MATCH(Parts!$B80,INDIRECT(\"'\"&A80&\"'!$10:$10\"),0)),0)","v":0},null,null,{"$f":"IFERROR(INDEX(INDIRECT(\"'\"&A80&\"'!$18:$50\"),MATCH($DG$1,INDIRECT(\"'\"&A80&\"'!$A$18:$A$50\"),0),MATCH(Parts!$B80,INDIRECT(\"'\"&A80&\"'!$10:$10\"),0)),0)","v":0},null,null,{"$f":"IFERROR(INDEX(INDIRECT(\"'\"&A80&\"'!$18:$50\"),MATCH($DJ$1,INDIRECT(\"'\"&A80&\"'!$A$18:$A$50\"),0),MATCH(Parts!$B80,INDIRECT(\"'\"&A80&\"'!$10:$10\"),0)),0)","v":0},null,null,{"$f":"IFERROR(INDEX(INDIRECT(\"'\"&A80&\"'!$18:$50\"),MATCH($DM$1,INDIRECT(\"'\"&A80&\"'!$A$18:$A$50\"),0),MATCH(Parts!$B80,INDIRECT(\"'\"&A80&\"'!$10:$10\"),0)),0)","v":0},null,null,{"$f":"IFERROR(INDEX(INDIRECT(\"'\"&A80&\"'!$18:$50\"),MATCH($DP$1,INDIRECT(\"'\"&A80&\"'!$A$18:$A$50\"),0),MATCH(Parts!$B80,INDIRECT(\"'\"&A80&\"'!$10:$10\"),0)),0)","v":0},null,null,{"$f":"IFERROR(INDEX(INDIRECT(\"'\"&A80&\"'!$18:$50\"),MATCH($DS$1,INDIRECT(\"'\"&A80&\"'!$A$18:$A$50\"),0),MATCH(Parts!$B80,INDIRECT(\"'\"&A80&\"'!$10:$10\"),0)),0)","v":0},null,"Sensor cooler: 296.9804.73: 41,54 €",{"$f":"IFERROR(INDEX(INDIRECT(\"'\"&A80&\"'!$18:$50\"),MATCH($DV$1,INDIRECT(\"'\"&A80&\"'!$A$18:$A$50\"),0),MATCH(Parts!$B80,INDIRECT(\"'\"&A80&\"'!$10:$10\"),0)),0)","v":1},41.54,"Sensor heater: 296.9804.72: 34,99 €",{"$f":"IFERROR(INDEX(INDIRECT(\"'\"&A80&\"'!$18:$50\"),MATCH($DY$1,INDIRECT(\"'\"&A80&\"'!$A$18:$A$50\"),0),MATCH(Parts!$B80,INDIRECT(\"'\"&A80&\"'!$10:$10\"),0)),0)","v":1},34.99,null,{"$f":"IFERROR(INDEX(INDIRECT(\"'\"&A80&\"'!$18:$50\"),MATCH($EB$1,INDIRECT(\"'\"&A80&\"'!$A$18:$A$50\"),0),MATCH(Parts!$B80,INDIRECT(\"'\"&A80&\"'!$10:$10\"),0)),0)","v":0},null,"Display board: 296.9769.81: 38,39 €",{"$f":"IFERROR(INDEX(INDIRECT(\"'\"&A80&\"'!$18:$50\"),MATCH($EE$1,INDIRECT(\"'\"&A80&\"'!$A$18:$A$50\"),0),MATCH(Parts!$B80,INDIRECT(\"'\"&A80&\"'!$10:$10\"),0)),0)","v":1},38.39,null,{"$f":"IFERROR(INDEX(INDIRECT(\"'\"&A80&\"'!$18:$50\"),MATCH($EH$1,INDIRECT(\"'\"&A80&\"'!$A$18:$A$50\"),0),MATCH(Parts!$B80,INDIRECT(\"'\"&A80&\"'!$10:$10\"),0)),0)","v":0},null,null,{"$f":"IFERROR(INDEX(INDIRECT(\"'\"&A80&\"'!$18:$50\"),MATCH($EK$1,INDIRECT(\"'\"&A80&\"'!$A$18:$A$50\"),0),MATCH(Parts!$B80,INDIRECT(\"'\"&A80&\"'!$10:$10\"),0)),0)","v":0}]
[{"$f":"PQS!A83","v":"SDD"},{"$f":"PQS!B83","v":"E003/078"},{"$f":"PQS!E83","v":"VC 50 SDD*"},{"$f":"PQS!P83","v":"€"},663.84999999999991,"Compressor Danfoss BD35K: €178.00",{"$f":"IFERROR(INDEX(INDIRECT(\"'\"&A81&\"'!$18:$50\"),MATCH(Parts!F$1,INDIRECT(\"'\"&A81&\"'!$A$18:$A$50\"),0),MATCH(Parts!$B81,INDIRECT(\"'\"&A81&\"'!$10:$10\"),0)),0)","v":1},178,null,{"$f":"IFERROR(INDEX(INDIRECT(\"'\"&A81&\"'!$18:$50\"),MATCH($I$1,INDIRECT(\"'\"&A81&\"'!$A$18:$A$50\"),0),MATCH(Parts!$B81,INDIRECT(\"'\"&A81&\"'!$10:$10\"),0)),0)","v":0},null,"Controller Danfoss 101N0420: €140.00",{"$f":"IFERROR(INDEX(INDIRECT(\"'\"&A81&\"'!$18:$50\"),MATCH($L$1,INDIRECT(\"'\"&A81&\"'!$A$18:$A$50\"),0),MATCH(Parts!$B81,INDIRECT(\"'\"&A81&\"'!$10:$10\"),0)),0)","v":1},140,null,{"$f":"IFERROR(INDEX(INDIRECT(\"'\"&A81&\"'!$18:$50\"),MATCH($O$1,INDIRECT(\"'\"&A81&\"'!$A$18:$A$50\"),0),MATCH(Parts!$B81,INDIRECT(\"'\"&A81&\"'!$10:$10\"),0)),0)","v":0},null,null,{"$f":"IFERROR(INDEX(INDIRECT(\"'\"&A81&\"'!$18:$50\"),MATCH($R$1,INDIRECT(\"'\"&A81&\"'!$A$18:$A$50\"),0),MATCH(Parts!$B81,INDIRECT(\"'\"&A81&\"'!$10:$10\"),0)),0)","v":0},null,null,{"$f":"IFERROR(INDEX(INDIRECT(\"'\"&A81&\"'!$18:$50\"),MATCH($U$1,INDIRECT(\"'\"&A81&\"'!$A$18:$A$50\"),0),MATCH(Parts!$B81,INDIRECT(\"'\"&A81&\"'!$10:$10\"),0)),0)","v":0},null,null,{"$f":"IFERROR(INDEX(INDIRECT(\"'\"&A81&\"'!$18:$50\"),MATCH($X$1,INDIRECT(\"'\"&A81&\"'!$A$18:$A$50\"),0),MATCH(Parts!$B81,INDIRECT(\"'\"&A81&\"'!$10:$10\"),0)),0)","v":0},null,null,{"$f":"IFERROR(INDEX(INDIRECT(\"'\"&A81&\"'!$18:$50\"),MATCH($AA$1,INDIRECT(\"'\"&A81&\"'!$A$18:$A$50\"),0),MATCH(Parts!$B81,INDIRECT(\"'\"&A81&\"'!$10:$10\"),0)),0)","v":0},null,null,{"$f":"IFERROR(INDEX(INDIRECT(\"'\"&A81&\"'!$18:$50\"),MATCH($AD$1,INDIRECT(\"'\"&A81&\"'!$A$18:$A$50\"),0),MATCH(Parts!$B81,INDIRECT(\"'\"&A81&\"'!$10:$10\"),0)),0)","v":0},null,null,{"$f":"IFERROR(INDEX(INDIRECT(\"'\"&A81&\"'!$18:$50\"),MATCH($AG$1,INDIRECT(\"'\"&A81&\"'!$A$18:$A$50\"),0),MATCH(Parts!$B81,INDIRECT(\"'\"&A81&\"'!$10:$10\"),0)),0)","v":0},null,null,{"$f":"IFERROR(INDEX(INDIRECT(\"'\"&A81&\"'!$18:$50\"),MATCH($AJ$1,INDIRECT(\"'\"&A81&\"'!$A$18:$A$50\"),0),MATCH(Parts!$B81,INDIRECT(\"'\"&A81&\"'!$10:$10\"),0)),0)","v":0},null,"MCB fridge/Isolation switch: €19.05",{"$f":"IFERROR(INDEX(INDIRECT(\"'\"&A81&\"'!$18:$50\"),MATCH($AM$1,INDIRECT(\"'\"&A81&\"'!$A$18:$A$50\"),0),MATCH(Parts!$B81,INDIRECT(\"'\"&A81&\"'!$10:$10\"),0)),0)","v":1},19.05,null,{"$f":"IFERROR(INDEX(INDIRECT(\"'\"&A81&\"'!$18:$50\"),MATCH($AP$1,INDIRECT(\"'\"&A81&\"'!$A$18:$A$50\"),0),MATCH(Parts!$B81,INDIRECT(\"'\"&A81&\"'!$10:$10\"),0)),0)","v":0},null,null,{"$f":"IFERROR(INDEX(INDIRECT(\"'\"&A81&\"'!$18:$50\"),MATCH($AS$1,INDIRECT(\"'\"&A81&\"'!$A$18:$A$50\"),0),MATCH(Parts!$B81,INDIRECT(\"'\"&A81&\"'!$10:$10\"),0)),0)","v":0},null,null,{"$f":"IFERROR(INDEX(INDIRECT(\"'\"&A81&\"'!$18:$50\"),MATCH($AV$1,INDIRECT(\"'\"&A81&\"'!$A$18:$A$50\"),0),MATCH(Parts!$B81,INDIRECT(\"'\"&A81&\"'!$10:$10\"),0)),0)","v":0},null,null,{"$f":"IFERROR(INDEX(INDIRECT(\"'\"&A81&\"'!$18:$50\"),MATCH($AY$1,INDIRECT(\"'\"&A81&\"'!$A$18:$A$50\"),0),MATCH(Parts!$B81,INDIRECT(\"'\"&A81&\"'!$10:$10\"),0)),0)","v":0},null,null,{"$f":"IFERROR(INDEX(INDIRECT(\"'\"&A81&\"'!$18:$50\"),MATCH($BB$1,INDIRECT(\"'\"&A81&\"'!$A$18:$A$50\"),0),MATCH(Parts!$B81,INDIRECT(\"'\"&A81&\"'!$10:$10\"),0)),0)","v":0},null,null,{"$f":"IFERROR(INDEX(INDIRECT(\"'\"&A81&\"'!$18:$50\"),MATCH($BE$1,INDIRECT(\"'\"&A81&\"'!$A$18:$A$50\"),0),MATCH(Parts!$B81,INDIRECT(\"'\"&A81&\"'!$10:$10\"),0)),0)","v":0},null,null,{"$f":"IFERROR(INDEX(INDIRECT(\"'\"&A81&\"'!$18:$50\"),MATCH($BH$1,INDIRECT(\"'\"&A81&\"'!$A$18:$A$50\"),0),MATCH(Parts!$B81,INDIRECT(\"'\"&A81&\"'!$10:$10\"),0)),0)","v":0},null,null,{"$f":"IFERROR(INDEX(INDIRECT(\"'\"&A81&\"'!$18:$50\"),MATCH($BK$1,INDIRECT(\"'\"&A81&\"'!$A$18:$A$50\"),0),MATCH(Parts!$B81,INDIRECT(\"'\"&A81&\"'!$10:$10\"),0)),0)","v":0},null,null,{"$f":"IFERROR(INDEX(INDIRECT(\"'\"&A81&\"'!$18:$50\"),MATCH($BN$1,INDIRECT(\"'\"&A81&\"'!$A$18:$A$50\"),0),MATCH(Parts!$B81,INDIRECT(\"'\"&A81&\"'!$10:$10\"),0)),0)","v":0},null,null,{"$f":"IFERROR(INDEX(INDIRECT(\"'\"&A81&\"'!$18:$50\"),MATCH($BQ$1,INDIRECT(\"'\"&A81&\"'!$A$18:$A$50\"),0),MATCH(Parts!$B81,INDIRECT(\"'\"&A81&\"'!$10:$10\"),0)),0)","v":0},null,"Lid gaskets: €45.00",{"$f":"IFERROR(INDEX(INDIRECT(\"'\"&A81&\"'!$18:$50\"),MATCH($BT$1,INDIRECT(\"'\"&A81&\"'!$A$18:$A$50\"),0),MATCH(Parts!$B81,INDIRECT(\"'\"&A81&\"'!$10:$10\"),0)),0)","v":1},45,null,{"$f":"IFERROR(INDEX(INDIRECT(\"'\"&A81&\"'!$18:$50\"),MATCH($BW$1,INDIRECT(\"'\"&A81&\"'!$A$18:$A$50\"),0),MATCH(Parts!$B81,INDIRECT(\"'\"&A81&\"'!$10:$10\"),0)),0)","v":0},null,"Solar thermometer: €38.10\nSolar thermometer: € 35.00",{"$f":"IFERROR(INDEX(INDIRECT(\"'\"&A81&\"'!$18:$50\"),MATCH($BZ$1,INDIRECT(\"'\"&A81&\"'!$A$18:$A$50\"),0),MATCH(Parts!$B81,INDIRECT(\"'\"&A81&\"'!$10:$10\"),0)),0)","v":2},{"$f":"AVERAGE(38.1,35)","v":36.549999999999997},null,{"$f":"IFERROR(INDEX(INDIRECT(\"'\"&A81&\"'!$18:$50\"),MATCH($CC$1,INDIRECT(\"'\"&A81&\"'!$A$18:$A$50\"),0),MATCH(Parts!$B81,INDIRECT(\"'\"&A81&\"'!$10:$10\"),0)),0)","v":0},null,null,{"$f":"IFERROR(INDEX(INDIRECT(\"'\"&A81&\"'!$18:$50\"),MATCH($CF$1,INDIRECT(\"'\"&A81&\"'!$A$18:$A$50\"),0),MATCH(Parts!$B81,INDIRECT(\"'\"&A81&\"'!$10:$10\"),0)),0)","v":0},null,null,{"$f":"IFERROR(INDEX(INDIRECT(\"'\"&A81&\"'!$18:$50\"),MATCH($CI$1,INDIRECT(\"'\"&A81&\"'!$A$18:$A$50\"),0),MATCH(Parts!$B81,INDIRECT(\"'\"&A81&\"'!$10:$10\"),0)),0)","v":0},null,null,{"$f":"IFERROR(INDEX(INDIRECT(\"'\"&A81&\"'!$18:$50\"),MATCH($CL$1,INDIRECT(\"'\"&A81&\"'!$A$18:$A$50\"),0),MATCH(Parts!$B81,INDIRECT(\"'\"&A81&\"'!$10:$10\"),0)),0)","v":0},null,null,{"$f":"IFERROR(INDEX(INDIRECT(\"'\"&A81&\"'!$18:$50\"),MATCH($CO$1,INDIRECT(\"'\"&A81&\"'!$A$18:$A$50\"),0),MATCH(Parts!$B81,INDIRECT(\"'\"&A81&\"'!$10:$10\"),0)),0)","v":0},null,null,{"$f":"IFERROR(INDEX(INDIRECT(\"'\"&A81&\"'!$18:$50\"),MATCH($CR$1,INDIRECT(\"'\"&A81&\"'!$A$18:$A$50\"),0),MATCH(Parts!$B81,INDIRECT(\"'\"&A81&\"'!$10:$10\"),0)),0)","v":0},null,null,{"$f":"IFERROR(INDEX(INDIRECT(\"'\"&A81&\"'!$18:$50\"),MATCH($CU$1,INDIRECT(\"'\"&A81&\"'!$A$18:$A$50\"),0),MATCH(Parts!$B81,INDIRECT(\"'\"&A81&\"'!$10:$10\"),0)),0)","v":0},null,null,{"$f":"IFERROR(INDEX(INDIRECT(\"'\"&A81&\"'!$18:$50\"),MATCH($CX$1,INDIRECT(\"'\"&A81&\"'!$A$18:$A$50\"),0),MATCH(Parts!$B81,INDIRECT(\"'\"&A81&\"'!$10:$10\"),0)),0)","v":0},null,null,{"$f":"IFERROR(INDEX(INDIRECT(\"'\"&A81&\"'!$18:$50\"),MATCH($DA$1,INDIRECT(\"'\"&A81&\"'!$A$18:$A$50\"),0),MATCH(Parts!$B81,INDIRECT(\"'\"&A81&\"'!$10:$10\"),0)),0)","v":0},null,null,{"$f":"IFERROR(INDEX(INDIRECT(\"'\"&A81&\"'!$18:$50\"),MATCH($DD$1,INDIRECT(\"'\"&A81&\"'!$A$18:$A$50\"),0),MATCH(Parts!$B81,INDIRECT(\"'\"&A81&\"'!$10:$10\"),0)),0)","v":0},null,null,{"$f":"IFERROR(INDEX(INDIRECT(\"'\"&A81&\"'!$18:$50\"),MATCH($DG$1,INDIRECT(\"'\"&A81&\"'!$A$18:$A$50\"),0),MATCH(Parts!$B81,INDIRECT(\"'\"&A81&\"'!$10:$10\"),0)),0)","v":0},null,null,{"$f":"IFERROR(INDEX(INDIRECT(\"'\"&A81&\"'!$18:$50\"),MATCH($DJ$1,INDIRECT(\"'\"&A81&\"'!$A$18:$A$50\"),0),MATCH(Parts!$B81,INDIRECT(\"'\"&A81&\"'!$10:$10\"),0)),0)","v":0},null,null,{"$f":"IFERROR(INDEX(INDIRECT(\"'\"&A81&\"'!$18:$50\"),MATCH($DM$1,INDIRECT(\"'\"&A81&\"'!$A$18:$A$50\"),0),MATCH(Parts!$B81,INDIRECT(\"'\"&A81&\"'!$10:$10\"),0)),0)","v":0},null,"Temperature probe: €12.70 (per pair)\nTemperature probe: €5.00",{"$f":"IFERROR(INDEX(INDIRECT(\"'\"&A81&\"'!$18:$50\"),MATCH($DP$1,INDIRECT(\"'\"&A81&\"'!$A$18:$A$50\"),0),MATCH(Parts!$B81,INDIRECT(\"'\"&A81&\"'!$10:$10\"),0)),0)","v":2},{"$f":"AVERAGE(12.7,5)","v":8.85},"Dulas SDD controller: €191.00",{"$f":"IFERROR(INDEX(INDIRECT(\"'\"&A81&\"'!$18:$50\"),MATCH($DS$1,INDIRECT(\"'\"&A81&\"'!$A$18:$A$50\"),0),MATCH(Parts!$B81,INDIRECT(\"'\"&A81&\"'!$10:$10\"),0)),0)","v":1},191,null,{"$f":"IFERROR(INDEX(INDIRECT(\"'\"&A81&\"'!$18:$50\"),MATCH($DV$1,INDIRECT(\"'\"&A81&\"'!$A$18:$A$50\"),0),MATCH(Parts!$B81,INDIRECT(\"'\"&A81&\"'!$10:$10\"),0)),0)","v":0},null,null,{"$f":"IFERROR(INDEX(INDIRECT(\"'\"&A81&\"'!$18:$50\"),MATCH($DY$1,INDIRECT(\"'\"&A81&\"'!$A$18:$A$50\"),0),MATCH(Parts!$B81,INDIRECT(\"'\"&A81&\"'!$10:$10\"),0)),0)","v":0},null,null,{"$f":"IFERROR(INDEX(INDIRECT(\"'\"&A81&\"'!$18:$50\"),MATCH($EB$1,INDIRECT(\"'\"&A81&\"'!$A$18:$A$50\"),0),MATCH(Parts!$B81,INDIRECT(\"'\"&A81&\"'!$10:$10\"),0)),0)","v":0},null,null,{"$f":"IFERROR(INDEX(INDIRECT(\"'\"&A81&\"'!$18:$50\"),MATCH($EE$1,INDIRECT(\"'\"&A81&\"'!$A$18:$A$50\"),0),MATCH(Parts!$B81,INDIRECT(\"'\"&A81&\"'!$10:$10\"),0)),0)","v":0},null,null,{"$f":"IFERROR(INDEX(INDIRECT(\"'\"&A81&\"'!$18:$50\"),MATCH($EH$1,INDIRECT(\"'\"&A81&\"'!$A$18:$A$50\"),0),MATCH(Parts!$B81,INDIRECT(\"'\"&A81&\"'!$10:$10\"),0)),0)","v":0},null,null,{"$f":"IFERROR(INDEX(INDIRECT(\"'\"&A81&\"'!$18:$50\"),MATCH($EK$1,INDIRECT(\"'\"&A81&\"'!$A$18:$A$50\"),0),MATCH(Parts!$B81,INDIRECT(\"'\"&A81&\"'!$10:$10\"),0)),0)","v":0}]
["SDD",{"$f":"PQS!B84","v":"E003/084"},{"$f":"PQS!E84","v":"VC 60 SDD*"},{"$f":"PQS!P84","v":"€"},615.54000000000008,"Compressor Danfoss BD35K: €178.00",{"$f":"IFERROR(INDEX(INDIRECT(\"'\"&A82&\"'!$18:$50\"),MATCH(Parts!F$1,INDIRECT(\"'\"&A82&\"'!$A$18:$A$50\"),0),MATCH(Parts!$B82,INDIRECT(\"'\"&A82&\"'!$10:$10\"),0)),0)","v":1},178,null,{"$f":"IFERROR(INDEX(INDIRECT(\"'\"&A82&\"'!$18:$50\"),MATCH($I$1,INDIRECT(\"'\"&A82&\"'!$A$18:$A$50\"),0),MATCH(Parts!$B82,INDIRECT(\"'\"&A82&\"'!$10:$10\"),0)),0)","v":0},null,"Controller\nDanfoss 101N0410: €140.00",{"$f":"IFERROR(INDEX(INDIRECT(\"'\"&A82&\"'!$18:$50\"),MATCH($L$1,INDIRECT(\"'\"&A82&\"'!$A$18:$A$50\"),0),MATCH(Parts!$B82,INDIRECT(\"'\"&A82&\"'!$10:$10\"),0)),0)","v":1},140,null,{"$f":"IFERROR(INDEX(INDIRECT(\"'\"&A82&\"'!$18:$50\"),MATCH($O$1,INDIRECT(\"'\"&A82&\"'!$A$18:$A$50\"),0),MATCH(Parts!$B82,INDIRECT(\"'\"&A82&\"'!$10:$10\"),0)),0)","v":0},null,null,{"$f":"IFERROR(INDEX(INDIRECT(\"'\"&A82&\"'!$18:$50\"),MATCH($R$1,INDIRECT(\"'\"&A82&\"'!$A$18:$A$50\"),0),MATCH(Parts!$B82,INDIRECT(\"'\"&A82&\"'!$10:$10\"),0)),0)","v":0},null,null,{"$f":"IFERROR(INDEX(INDIRECT(\"'\"&A82&\"'!$18:$50\"),MATCH($U$1,INDIRECT(\"'\"&A82&\"'!$A$18:$A$50\"),0),MATCH(Parts!$B82,INDIRECT(\"'\"&A82&\"'!$10:$10\"),0)),0)","v":0},null,"Freezer fan: €24.00",{"$f":"IFERROR(INDEX(INDIRECT(\"'\"&A82&\"'!$18:$50\"),MATCH($X$1,INDIRECT(\"'\"&A82&\"'!$A$18:$A$50\"),0),MATCH(Parts!$B82,INDIRECT(\"'\"&A82&\"'!$10:$10\"),0)),0)","v":1},24,null,{"$f":"IFERROR(INDEX(INDIRECT(\"'\"&A82&\"'!$18:$50\"),MATCH($AA$1,INDIRECT(\"'\"&A82&\"'!$A$18:$A$50\"),0),MATCH(Parts!$B82,INDIRECT(\"'\"&A82&\"'!$10:$10\"),0)),0)","v":0},null,null,{"$f":"IFERROR(INDEX(INDIRECT(\"'\"&A82&\"'!$18:$50\"),MATCH($AD$1,INDIRECT(\"'\"&A82&\"'!$A$18:$A$50\"),0),MATCH(Parts!$B82,INDIRECT(\"'\"&A82&\"'!$10:$10\"),0)),0)","v":0},null,null,{"$f":"IFERROR(INDEX(INDIRECT(\"'\"&A82&\"'!$18:$50\"),MATCH($AG$1,INDIRECT(\"'\"&A82&\"'!$A$18:$A$50\"),0),MATCH(Parts!$B82,INDIRECT(\"'\"&A82&\"'!$10:$10\"),0)),0)","v":0},null,null,{"$f":"IFERROR(INDEX(INDIRECT(\"'\"&A82&\"'!$18:$50\"),MATCH($AJ$1,INDIRECT(\"'\"&A82&\"'!$A$18:$A$50\"),0),MATCH(Parts!$B82,INDIRECT(\"'\"&A82&\"'!$10:$10\"),0)),0)","v":0},null,"MCB fridge / isolation switch: €19.05 - MCB freezer (isolation switch): €12.69",{"$f":"IFERROR(INDEX(INDIRECT(\"'\"&A82&\"'!$18:$50\"),MATCH($AM$1,INDIRECT(\"'\"&A82&\"'!$A$18:$A$50\"),0),MATCH(Parts!$B82,INDIRECT(\"'\"&A82&\"'!$10:$10\"),0)),0)","v":1},{"$f":"19.05+12.69","v":31.740000000000002},null,{"$f":"IFERROR(INDEX(INDIRECT(\"'\"&A82&\"'!$18:$50\"),MATCH($AP$1,INDIRECT(\"'\"&A82&\"'!$A$18:$A$50\"),0),MATCH(Parts!$B82,INDIRECT(\"'\"&A82&\"'!$10:$10\"),0)),0)","v":0},null,null,{"$f":"IFERROR(INDEX(INDIRECT(\"'\"&A82&\"'!$18:$50\"),MATCH($AS$1,INDIRECT(\"'\"&A82&\"'!$A$18:$A$50\"),0),MATCH(Parts!$B82,INDIRECT(\"'\"&A82&\"'!$10:$10\"),0)),0)","v":0},null,null,{"$f":"IFERROR(INDEX(INDIRECT(\"'\"&A82&\"'!$18:$50\"),MATCH($AV$1,INDIRECT(\"'\"&A82&\"'!$A$18:$A$50\"),0),MATCH(Parts!$B82,INDIRECT(\"'\"&A82&\"'!$10:$10\"),0)),0)","v":0},null,null,{"$f":"IFERROR(INDEX(INDIRECT(\"'\"&A82&\"'!$18:$50\"),MATCH($AY$1,INDIRECT(\"'\"&A82&\"'!$A$18:$A$50\"),0),MATCH(Parts!$B82,INDIRECT(\"'\"&A82&\"'!$10:$10\"),0)),0)","v":0},null,null,{"$f":"IFERROR(INDEX(INDIRECT(\"'\"&A82&\"'!$18:$50\"),MATCH($BB$1,INDIRECT(\"'\"&A82&\"'!$A$18:$A$50\"),0),MATCH(Parts!$B82,INDIRECT(\"'\"&A82&\"'!$10:$10\"),0)),0)","v":0},null,null,{"$f":"IFERROR(INDEX(INDIRECT(\"'\"&A82&\"'!$18:$50\"),MATCH($BE$1,INDIRECT(\"'\"&A82&\"'!$A$18:$A$50\"),0),MATCH(Parts!$B82,INDIRECT(\"'\"&A82&\"'!$10:$10\"),0)),0)","v":0},null,null,{"$f":"IFERROR(INDEX(INDIRECT(\"'\"&A82&\"'!$18:$50\"),MATCH($BH$1,INDIRECT(\"'\"&A82&\"'!$A$18:$A$50\"),0),MATCH(Parts!$B82,INDIRECT(\"'\"&A82&\"'!$10:$10\"),0)),0)","v":0},null,null,{"$f":"IFERROR(INDEX(INDIRECT(\"'\"&A82&\"'!$18:$50\"),MATCH($BK$1,INDIRECT(\"'\"&A82&\"'!$A$18:$A$50\"),0),MATCH(Parts!$B82,INDIRECT(\"'\"&A82&\"'!$10:$10\"),0)),0)","v":0},null,null,{"$f":"IFERROR(INDEX(INDIRECT(\"'\"&A82&\"'!$18:$50\"),MATCH($BN$1,INDIRECT(\"'\"&A82&\"'!$A$18:$A$50\"),0),MATCH(Parts!$B82,INDIRECT(\"'\"&A82&\"'!$10:$10\"),0)),0)","v":0},null,null,{"$f":"IFERROR(INDEX(INDIRECT(\"'\"&A82&\"'!$18:$50\"),MATCH($BQ$1,INDIRECT(\"'\"&A82&\"'!$A$18:$A$50\"),0),MATCH(Parts!$B82,INDIRECT(\"'\"&A82&\"'!$10:$10\"),0)),0)","v":0},null,null,{"$f":"IFERROR(INDEX(INDIRECT(\"'\"&A82&\"'!$18:$50\"),MATCH($BT$1,INDIRECT(\"'\"&A82&\"'!$A$18:$A$50\"),0),MATCH(Parts!$B82,INDIRECT(\"'\"&A82&\"'!$10:$10\"),0)),0)","v":0},null,null,{"$f":"IFERROR(INDEX(INDIRECT(\"'\"&A82&\"'!$18:$50\"),MATCH($BW$1,INDIRECT(\"'\"&A82&\"'!$A$18:$A$50\"),0),MATCH(Parts!$B82,INDIRECT(\"'\"&A82&\"'!$10:$10\"),0)),0)","v":0},null,null,{"$f":"IFERROR(INDEX(INDIRECT(\"'\"&A82&\"'!$18:$50\"),MATCH($BZ$1,INDIRECT(\"'\"&A82&\"'!$A$18:$A$50\"),0),MATCH(Parts!$B82,INDIRECT(\"'\"&A82&\"'!$10:$10\"),0)),0)","v":0},null,null,{"$f":"IFERROR(INDEX(INDIRECT(\"'\"&A82&\"'!$18:$50\"),MATCH($CC$1,INDIRECT(\"'\"&A82&\"'!$A$18:$A$50\"),0),MATCH(Parts!$B82,INDIRECT(\"'\"&A82&\"'!$10:$10\"),0)),0)","v":0},null,null,{"$f":"IFERROR(INDEX(INDIRECT(\"'\"&A82&\"'!$18:$50\"),MATCH($CF$1,INDIRECT(\"'\"&A82&\"'!$A$18:$A$50\"),0),MATCH(Parts!$B82,INDIRECT(\"'\"&A82&\"'!$10:$10\"),0)),0)","v":0},null,null,{"$f":"IFERROR(INDEX(INDIRECT(\"'\"&A82&\"'!$18:$50\"),MATCH($CI$1,INDIRECT(\"'\"&A82&\"'!$A$18:$A$50\"),0),MATCH(Parts!$B82,INDIRECT(\"'\"&A82&\"'!$10:$10\"),0)),0)","v":0},null,null,{"$f":"IFERROR(INDEX(INDIRECT(\"'\"&A82&\"'!$18:$50\"),MATCH($CL$1,INDIRECT(\"'\"&A82&\"'!$A$18:$A$50\"),0),MATCH(Parts!$B82,INDIRECT(\"'\"&A82&\"'!$10:$10\"),0)),0)","v":0},null,null,{"$f":"IFERROR(INDEX(INDIRECT(\"'\"&A82&\"'!$18:$50\"),MATCH($CO$1,INDIRECT(\"'\"&A82&\"'!$A$18:$A$50\"),0),MATCH(Parts!$B82,INDIRECT(\"'\"&A82&\"'!$10:$10\"),0)),0)","v":0},null,null,{"$f":"IFERROR(INDEX(INDIRECT(\"'\"&A82&\"'!$18:$50\"),MATCH($CR$1,INDIRECT(\"'\"&A82&\"'!$A$18:$A$50\"),0),MATCH(Parts!$B82,INDIRECT(\"'\"&A82&\"'!$10:$10\"),0)),0)","v":0},null,null,{"$f":"IFERROR(INDEX(INDIRECT(\"'\"&A82&\"'!$18:$50\"),MATCH($CU$1,INDIRECT(\"'\"&A82&\"'!$A$18:$A$50\"),0),MATCH(Parts!$B82,INDIRECT(\"'\"&A82&\"'!$10:$10\"),0)),0)","v":0},null,null,{"$f":"IFERROR(INDEX(INDIRECT(\"'\"&A82&\"'!$18:$50\"),MATCH($CX$1,INDIRECT(\"'\"&A82&\"'!$A$18:$A$50\"),0),MATCH(Parts!$B82,INDIRECT(\"'\"&A82&\"'!$10:$10\"),0)),0)","v":0},null,null,{"$f":"IFERROR(INDEX(INDIRECT(\"'\"&A82&\"'!$18:$50\"),MATCH($DA$1,INDIRECT(\"'\"&A82&\"'!$A$18:$A$50\"),0),MATCH(Parts!$B82,INDIRECT(\"'\"&A82&\"'!$10:$10\"),0)),0)","v":0},null,null,{"$f":"IFERROR(INDEX(INDIRECT(\"'\"&A82&\"'!$18:$50\"),MATCH($DD$1,INDIRECT(\"'\"&A82&\"'!$A$18:$A$50\"),0),MATCH(Parts!$B82,INDIRECT(\"'\"&A82&\"'!$10:$10\"),0)),0)","v":0},null,null,{"$f":"IFERROR(INDEX(INDIRECT(\"'\"&A82&\"'!$18:$50\"),MATCH($DG$1,INDIRECT(\"'\"&A82&\"'!$A$18:$A$50\"),0),MATCH(Parts!$B82,INDIRECT(\"'\"&A82&\"'!$10:$10\"),0)),0)","v":0},null,null,{"$f":"IFERROR(INDEX(INDIRECT(\"'\"&A82&\"'!$18:$50\"),MATCH($DJ$1,INDIRECT(\"'\"&A82&\"'!$A$18:$A$50\"),0),MATCH(Parts!$B82,INDIRECT(\"'\"&A82&\"'!$10:$10\"),0)),0)","v":0},null,null,{"$f":"IFERROR(INDEX(INDIRECT(\"'\"&A82&\"'!$18:$50\"),MATCH($DM$1,INDIRECT(\"'\"&A82&\"'!$A$18:$A$50\"),0),MATCH(Parts!$B82,INDIRECT(\"'\"&A82&\"'!$10:$10\"),0)),0)","v":0},null,"Temperature probe: €12.70 (per pair)",{"$f":"IFERROR(INDEX(INDIRECT(\"'\"&A82&\"'!$18:$50\"),MATCH($DP$1,INDIRECT(\"'\"&A82&\"'!$A$18:$A$50\"),0),MATCH(Parts!$B82,INDIRECT(\"'\"&A82&\"'!$10:$10\"),0)),0)","v":1},12.7,"SDD controller: €191.00",{"$f":"IFERROR(INDEX(INDIRECT(\"'\"&A82&\"'!$18:$50\"),MATCH($DS$1,INDIRECT(\"'\"&A82&\"'!$A$18:$A$50\"),0),MATCH(Parts!$B82,INDIRECT(\"'\"&A82&\"'!$10:$10\"),0)),0)","v":1},191,null,{"$f":"IFERROR(INDEX(INDIRECT(\"'\"&A82&\"'!$18:$50\"),MATCH($DV$1,INDIRECT(\"'\"&A82&\"'!$A$18:$A$50\"),0),MATCH(Parts!$B82,INDIRECT(\"'\"&A82&\"'!$10:$10\"),0)),0)","v":0},null,null,{"$f":"IFERROR(INDEX(INDIRECT(\"'\"&A82&\"'!$18:$50\"),MATCH($DY$1,INDIRECT(\"'\"&A82&\"'!$A$18:$A$50\"),0),MATCH(Parts!$B82,INDIRECT(\"'\"&A82&\"'!$10:$10\"),0)),0)","v":0},null,null,{"$f":"IFERROR(INDEX(INDIRECT(\"'\"&A82&\"'!$18:$50\"),MATCH($EB$1,INDIRECT(\"'\"&A82&\"'!$A$18:$A$50\"),0),MATCH(Parts!$B82,INDIRECT(\"'\"&A82&\"'!$10:$10\"),0)),0)","v":0},null,null,{"$f":"IFERROR(INDEX(INDIRECT(\"'\"&A82&\"'!$18:$50\"),MATCH($EE$1,INDIRECT(\"'\"&A82&\"'!$A$18:$A$50\"),0),MATCH(Parts!$B82,INDIRECT(\"'\"&A82&\"'!$10:$10\"),0)),0)","v":0},null,"Freezer foam lid: €38.10",{"$f":"IFERROR(INDEX(INDIRECT(\"'\"&A82&\"'!$18:$50\"),MATCH($EH$1,INDIRECT(\"'\"&A82&\"'!$A$18:$A$50\"),0),MATCH(Parts!$B82,INDIRECT(\"'\"&A82&\"'!$10:$10\"),0)),0)","v":1},38.1,null,{"$f":"IFERROR(INDEX(INDIRECT(\"'\"&A82&\"'!$18:$50\"),MATCH($EK$1,INDIRECT(\"'\"&A82&\"'!$A$18:$A$50\"),0),MATCH(Parts!$B82,INDIRECT(\"'\"&A82&\"'!$10:$10\"),0)),0)","v":0}]
[{"$f":"PQS!A85","v":"Solar w battery"},{"$f":"PQS!B85","v":"E003/001"},{"$f":"PQS!E85","v":"TCW 2000 DC"},{"$f":"PQS!P85","v":"€"},430.66999999999996,"Compressor Danfoss BD35F, 296.9702.07, 107.70 €",{"$f":"IFERROR(INDEX(INDIRECT(\"'\"&A83&\"'!$18:$50\"),MATCH(Parts!F$1,INDIRECT(\"'\"&A83&\"'!$A$18:$A$50\"),0),MATCH(Parts!$B83,INDIRECT(\"'\"&A83&\"'!$10:$10\"),0)),0)","v":1},107.7,"Electronic thermostat TCW/DC, 292.2009.01, 94.48 €",{"$f":"IFERROR(INDEX(INDIRECT(\"'\"&A83&\"'!$18:$50\"),MATCH($I$1,INDIRECT(\"'\"&A83&\"'!$A$18:$A$50\"),0),MATCH(Parts!$B83,INDIRECT(\"'\"&A83&\"'!$10:$10\"),0)),0)","v":1},94.48,null,{"$f":"IFERROR(INDEX(INDIRECT(\"'\"&A83&\"'!$18:$50\"),MATCH($L$1,INDIRECT(\"'\"&A83&\"'!$A$18:$A$50\"),0),MATCH(Parts!$B83,INDIRECT(\"'\"&A83&\"'!$10:$10\"),0)),0)","v":0},null,null,{"$f":"IFERROR(INDEX(INDIRECT(\"'\"&A83&\"'!$18:$50\"),MATCH($O$1,INDIRECT(\"'\"&A83&\"'!$A$18:$A$50\"),0),MATCH(Parts!$B83,INDIRECT(\"'\"&A83&\"'!$10:$10\"),0)),0)","v":0},null,"Electronic control panel, 296.3602.82, 15.15 €",{"$f":"IFERROR(INDEX(INDIRECT(\"'\"&A83&\"'!$18:$50\"),MATCH($R$1,INDIRECT(\"'\"&A83&\"'!$A$18:$A$50\"),0),MATCH(Parts!$B83,INDIRECT(\"'\"&A83&\"'!$10:$10\"),0)),0)","v":1},15.15,"Sensor for e-thermostat, 296.9804.20, 6.51 €",{"$f":"IFERROR(INDEX(INDIRECT(\"'\"&A83&\"'!$18:$50\"),MATCH($U$1,INDIRECT(\"'\"&A83&\"'!$A$18:$A$50\"),0),MATCH(Parts!$B83,INDIRECT(\"'\"&A83&\"'!$10:$10\"),0)),0)","v":1},6.51,"Fan compressor, 296.9710.12, 52.06 €",{"$f":"IFERROR(INDEX(INDIRECT(\"'\"&A83&\"'!$18:$50\"),MATCH($X$1,INDIRECT(\"'\"&A83&\"'!$A$18:$A$50\"),0),MATCH(Parts!$B83,INDIRECT(\"'\"&A83&\"'!$10:$10\"),0)),0)","v":1},52.06,null,{"$f":"IFERROR(INDEX(INDIRECT(\"'\"&A83&\"'!$18:$50\"),MATCH($AA$1,INDIRECT(\"'\"&A83&\"'!$A$18:$A$50\"),0),MATCH(Parts!$B83,INDIRECT(\"'\"&A83&\"'!$10:$10\"),0)),0)","v":0},null,null,{"$f":"IFERROR(INDEX(INDIRECT(\"'\"&A83&\"'!$18:$50\"),MATCH($AD$1,INDIRECT(\"'\"&A83&\"'!$A$18:$A$50\"),0),MATCH(Parts!$B83,INDIRECT(\"'\"&A83&\"'!$10:$10\"),0)),0)","v":0},null,null,{"$f":"IFERROR(INDEX(INDIRECT(\"'\"&A83&\"'!$18:$50\"),MATCH($AG$1,INDIRECT(\"'\"&A83&\"'!$A$18:$A$50\"),0),MATCH(Parts!$B83,INDIRECT(\"'\"&A83&\"'!$10:$10\"),0)),0)","v":0},null,"E.Box BD35F, 296.9705.12, 105.38 €",{"$f":"IFERROR(INDEX(INDIRECT(\"'\"&A83&\"'!$18:$50\"),MATCH($AJ$1,INDIRECT(\"'\"&A83&\"'!$A$18:$A$50\"),0),MATCH(Parts!$B83,INDIRECT(\"'\"&A83&\"'!$10:$10\"),0)),0)","v":1},105.38,"Main switch DC, 292.2044.16, 3.85 €",{"$f":"IFERROR(INDEX(INDIRECT(\"'\"&A83&\"'!$18:$50\"),MATCH($AM$1,INDIRECT(\"'\"&A83&\"'!$A$18:$A$50\"),0),MATCH(Parts!$B83,INDIRECT(\"'\"&A83&\"'!$10:$10\"),0)),0)","v":1},3.85,"Voltage regulator 12 v, 296.9769.71, 45.45 €",{"$f":"IFERROR(INDEX(INDIRECT(\"'\"&A83&\"'!$18:$50\"),MATCH($AP$1,INDIRECT(\"'\"&A83&\"'!$A$18:$A$50\"),0),MATCH(Parts!$B83,INDIRECT(\"'\"&A83&\"'!$10:$10\"),0)),0)","v":1},45.45,null,{"$f":"IFERROR(INDEX(INDIRECT(\"'\"&A83&\"'!$18:$50\"),MATCH($AS$1,INDIRECT(\"'\"&A83&\"'!$A$18:$A$50\"),0),MATCH(Parts!$B83,INDIRECT(\"'\"&A83&\"'!$10:$10\"),0)),0)","v":0},null,null,{"$f":"IFERROR(INDEX(INDIRECT(\"'\"&A83&\"'!$18:$50\"),MATCH($AV$1,INDIRECT(\"'\"&A83&\"'!$A$18:$A$50\"),0),MATCH(Parts!$B83,INDIRECT(\"'\"&A83&\"'!$10:$10\"),0)),0)","v":0},null,null,{"$f":"IFERROR(INDEX(INDIRECT(\"'\"&A83&\"'!$18:$50\"),MATCH($AY$1,INDIRECT(\"'\"&A83&\"'!$A$18:$A$50\"),0),MATCH(Parts!$B83,INDIRECT(\"'\"&A83&\"'!$10:$10\"),0)),0)","v":0},null,null,{"$f":"IFERROR(INDEX(INDIRECT(\"'\"&A83&\"'!$18:$50\"),MATCH($BB$1,INDIRECT(\"'\"&A83&\"'!$A$18:$A$50\"),0),MATCH(Parts!$B83,INDIRECT(\"'\"&A83&\"'!$10:$10\"),0)),0)","v":0},null,null,{"$f":"IFERROR(INDEX(INDIRECT(\"'\"&A83&\"'!$18:$50\"),MATCH($BE$1,INDIRECT(\"'\"&A83&\"'!$A$18:$A$50\"),0),MATCH(Parts!$B83,INDIRECT(\"'\"&A83&\"'!$10:$10\"),0)),0)","v":0},null,null,{"$f":"IFERROR(INDEX(INDIRECT(\"'\"&A83&\"'!$18:$50\"),MATCH($BH$1,INDIRECT(\"'\"&A83&\"'!$A$18:$A$50\"),0),MATCH(Parts!$B83,INDIRECT(\"'\"&A83&\"'!$10:$10\"),0)),0)","v":0},null,"Fuse 15A, 296.9243.15, 0.09 €",{"$f":"IFERROR(INDEX(INDIRECT(\"'\"&A83&\"'!$18:$50\"),MATCH($BK$1,INDIRECT(\"'\"&A83&\"'!$A$18:$A$50\"),0),MATCH(Parts!$B83,INDIRECT(\"'\"&A83&\"'!$10:$10\"),0)),0)","v":1},0.09,null,{"$f":"IFERROR(INDEX(INDIRECT(\"'\"&A83&\"'!$18:$50\"),MATCH($BN$1,INDIRECT(\"'\"&A83&\"'!$A$18:$A$50\"),0),MATCH(Parts!$B83,INDIRECT(\"'\"&A83&\"'!$10:$10\"),0)),0)","v":0},null,null,{"$f":"IFERROR(INDEX(INDIRECT(\"'\"&A83&\"'!$18:$50\"),MATCH($BQ$1,INDIRECT(\"'\"&A83&\"'!$A$18:$A$50\"),0),MATCH(Parts!$B83,INDIRECT(\"'\"&A83&\"'!$10:$10\"),0)),0)","v":0},null,null,{"$f":"IFERROR(INDEX(INDIRECT(\"'\"&A83&\"'!$18:$50\"),MATCH($BT$1,INDIRECT(\"'\"&A83&\"'!$A$18:$A$50\"),0),MATCH(Parts!$B83,INDIRECT(\"'\"&A83&\"'!$10:$10\"),0)),0)","v":0},null,null,{"$f":"IFERROR(INDEX(INDIRECT(\"'\"&A83&\"'!$18:$50\"),MATCH($BW$1,INDIRECT(\"'\"&A83&\"'!$A$18:$A$50\"),0),MATCH(Parts!$B83,INDIRECT(\"'\"&A83&\"'!$10:$10\"),0)),0)","v":0},null,null,{"$f":"IFERROR(INDEX(INDIRECT(\"'\"&A83&\"'!$18:$50\"),MATCH($BZ$1,INDIRECT(\"'\"&A83&\"'!$A$18:$A$50\"),0),MATCH(Parts!$B83,INDIRECT(\"'\"&A83&\"'!$10:$10\"),0)),0)","v":0},null,null,{"$f":"IFERROR(INDEX(INDIRECT(\"'\"&A83&\"'!$18:$50\"),MATCH($CC$1,INDIRECT(\"'\"&A83&\"'!$A$18:$A$50\"),0),MATCH(Parts!$B83,INDIRECT(\"'\"&A83&\"'!$10:$10\"),0)),0)","v":0},null,null,{"$f":"IFERROR(INDEX(INDIRECT(\"'\"&A83&\"'!$18:$50\"),MATCH($CF$1,INDIRECT(\"'\"&A83&\"'!$A$18:$A$50\"),0),MATCH(Parts!$B83,INDIRECT(\"'\"&A83&\"'!$10:$10\"),0)),0)","v":0},null,null,{"$f":"IFERROR(INDEX(INDIRECT(\"'\"&A83&\"'!$18:$50\"),MATCH($CI$1,INDIRECT(\"'\"&A83&\"'!$A$18:$A$50\"),0),MATCH(Parts!$B83,INDIRECT(\"'\"&A83&\"'!$10:$10\"),0)),0)","v":0},null,null,{"$f":"IFERROR(INDEX(INDIRECT(\"'\"&A83&\"'!$18:$50\"),MATCH($CL$1,INDIRECT(\"'\"&A83&\"'!$A$18:$A$50\"),0),MATCH(Parts!$B83,INDIRECT(\"'\"&A83&\"'!$10:$10\"),0)),0)","v":0},null,null,{"$f":"IFERROR(INDEX(INDIRECT(\"'\"&A83&\"'!$18:$50\"),MATCH($CO$1,INDIRECT(\"'\"&A83&\"'!$A$18:$A$50\"),0),MATCH(Parts!$B83,INDIRECT(\"'\"&A83&\"'!$10:$10\"),0)),0)","v":0},null,null,{"$f":"IFERROR(INDEX(INDIRECT(\"'\"&A83&\"'!$18:$50\"),MATCH($CR$1,INDIRECT(\"'\"&A83&\"'!$A$18:$A$50\"),0),MATCH(Parts!$B83,INDIRECT(\"'\"&A83&\"'!$10:$10\"),0)),0)","v":0},null,null,{"$f":"IFERROR(INDEX(INDIRECT(\"'\"&A83&\"'!$18:$50\"),MATCH($CU$1,INDIRECT(\"'\"&A83&\"'!$A$18:$A$50\"),0),MATCH(Parts!$B83,INDIRECT(\"'\"&A83&\"'!$10:$10\"),0)),0)","v":0},null,null,{"$f":"IFERROR(INDEX(INDIRECT(\"'\"&A83&\"'!$18:$50\"),MATCH($CX$1,INDIRECT(\"'\"&A83&\"'!$A$18:$A$50\"),0),MATCH(Parts!$B83,INDIRECT(\"'\"&A83&\"'!$10:$10\"),0)),0)","v":0},null,null,{"$f":"IFERROR(INDEX(INDIRECT(\"'\"&A83&\"'!$18:$50\"),MATCH($DA$1,INDIRECT(\"'\"&A83&\"'!$A$18:$A$50\"),0),MATCH(Parts!$B83,INDIRECT(\"'\"&A83&\"'!$10:$10\"),0)),0)","v":0},null,null,{"$f":"IFERROR(INDEX(INDIRECT(\"'\"&A83&\"'!$18:$50\"),MATCH($DD$1,INDIRECT(\"'\"&A83&\"'!$A$18:$A$50\"),0),MATCH(Parts!$B83,INDIRECT(\"'\"&A83&\"'!$10:$10\"),0)),0)","v":0},null,null,{"$f":"IFERROR(INDEX(INDIRECT(\"'\"&A83&\"'!$18:$50\"),MATCH($DG$1,INDIRECT(\"'\"&A83&\"'!$A$18:$A$50\"),0),MATCH(Parts!$B83,INDIRECT(\"'\"&A83&\"'!$10:$10\"),0)),0)","v":0},null,null,{"$f":"IFERROR(INDEX(INDIRECT(\"'\"&A83&\"'!$18:$50\"),MATCH($DJ$1,INDIRECT(\"'\"&A83&\"'!$A$18:$A$50\"),0),MATCH(Parts!$B83,INDIRECT(\"'\"&A83&\"'!$10:$10\"),0)),0)","v":0},null,null,{"$f":"IFERROR(INDEX(INDIRECT(\"'\"&A83&\"'!$18:$50\"),MATCH($DM$1,INDIRECT(\"'\"&A83&\"'!$A$18:$A$50\"),0),MATCH(Parts!$B83,INDIRECT(\"'\"&A83&\"'!$10:$10\"),0)),0)","v":0},null,null,{"$f":"IFERROR(INDEX(INDIRECT(\"'\"&A83&\"'!$18:$50\"),MATCH($DP$1,INDIRECT(\"'\"&A83&\"'!$A$18:$A$50\"),0),MATCH(Parts!$B83,INDIRECT(\"'\"&A83&\"'!$10:$10\"),0)),0)","v":0},null,null,{"$f":"IFERROR(INDEX(INDIRECT(\"'\"&A83&\"'!$18:$50\"),MATCH($DS$1,INDIRECT(\"'\"&A83&\"'!$A$18:$A$50\"),0),MATCH(Parts!$B83,INDIRECT(\"'\"&A83&\"'!$10:$10\"),0)),0)","v":0},null,null,{"$f":"IFERROR(INDEX(INDIRECT(\"'\"&A83&\"'!$18:$50\"),MATCH($DV$1,INDIRECT(\"'\"&A83&\"'!$A$18:$A$50\"),0),MATCH(Parts!$B83,INDIRECT(\"'\"&A83&\"'!$10:$10\"),0)),0)","v":0},null,null,{"$f":"IFERROR(INDEX(INDIRECT(\"'\"&A83&\"'!$18:$50\"),MATCH($DY$1,INDIRECT(\"'\"&A83&\"'!$A$18:$A$50\"),0),MATCH(Parts!$B83,INDIRECT(\"'\"&A83&\"'!$10:$10\"),0)),0)","v":0},null,null,{"$f":"IFERROR(INDEX(INDIRECT(\"'\"&A83&\"'!$18:$50\"),MATCH($EB$1,INDIRECT(\"'\"&A83&\"'!$A$18:$A$50\"),0),MATCH(Parts!$B83,INDIRECT(\"'\"&A83&\"'!$10:$10\"),0)),0)","v":0},null,null,{"$f":"IFERROR(INDEX(INDIRECT(\"'\"&A83&\"'!$18:$50\"),MATCH($EE$1,INDIRECT(\"'\"&A83&\"'!$A$18:$A$50\"),0),MATCH(Parts!$B83,INDIRECT(\"'\"&A83&\"'!$10:$10\"),0)),0)","v":0},null,null,{"$f":"IFERROR(INDEX(INDIRECT(\"'\"&A83&\"'!$18:$50\"),MATCH($EH$1,INDIRECT(\"'\"&A83&\"'!$A$18:$A$50\"),0),MATCH(Parts!$B83,INDIRECT(\"'\"&A83&\"'!$10:$10\"),0)),0)","v":0},null,null,{"$f":"IFERROR(INDEX(INDIRECT(\"'\"&A83&\"'!$18:$50\"),MATCH($EK$1,INDIRECT(\"'\"&A83&\"'!$A$18:$A$50\"),0),MATCH(Parts!$B83,INDIRECT(\"'\"&A83&\"'!$10:$10\"),0)),0)","v":0}]
[{"$f":"PQS!A86","v":"Solar w battery"},{"$f":"PQS!B86","v":"E003/008"},{"$f":"PQS!E86","v":"TCW 3000 DC"},{"$f":"PQS!P86","v":"€"},601.76,"Compressor Danfoss BD80F - 296.9702.11 - 176.66 €",{"$f":"IFERROR(INDEX(INDIRECT(\"'\"&A84&\"'!$18:$50\"),MATCH(Parts!F$1,INDIRECT(\"'\"&A84&\"'!$A$18:$A$50\"),0),MATCH(Parts!$B84,INDIRECT(\"'\"&A84&\"'!$10:$10\"),0)),0)","v":1},176.66,"Electronic thermostat TCW/DC 292.2009.01 - 94.48 €",{"$f":"IFERROR(INDEX(INDIRECT(\"'\"&A84&\"'!$18:$50\"),MATCH($I$1,INDIRECT(\"'\"&A84&\"'!$A$18:$A$50\"),0),MATCH(Parts!$B84,INDIRECT(\"'\"&A84&\"'!$10:$10\"),0)),0)","v":1},94.48,null,{"$f":"IFERROR(INDEX(INDIRECT(\"'\"&A84&\"'!$18:$50\"),MATCH($L$1,INDIRECT(\"'\"&A84&\"'!$A$18:$A$50\"),0),MATCH(Parts!$B84,INDIRECT(\"'\"&A84&\"'!$10:$10\"),0)),0)","v":0},null,null,{"$f":"IFERROR(INDEX(INDIRECT(\"'\"&A84&\"'!$18:$50\"),MATCH($O$1,INDIRECT(\"'\"&A84&\"'!$A$18:$A$50\"),0),MATCH(Parts!$B84,INDIRECT(\"'\"&A84&\"'!$10:$10\"),0)),0)","v":0},null,"Control panel\nelectronic - 296.3602.83 - 11.66 €",{"$f":"IFERROR(INDEX(INDIRECT(\"'\"&A84&\"'!$18:$50\"),MATCH($R$1,INDIRECT(\"'\"&A84&\"'!$A$18:$A$50\"),0),MATCH(Parts!$B84,INDIRECT(\"'\"&A84&\"'!$10:$10\"),0)),0)","v":1},11.66,"Sensor for electronic thermostat - 296.9804.20 - 6.51 €",{"$f":"IFERROR(INDEX(INDIRECT(\"'\"&A84&\"'!$18:$50\"),MATCH($U$1,INDIRECT(\"'\"&A84&\"'!$A$18:$A$50\"),0),MATCH(Parts!$B84,INDIRECT(\"'\"&A84&\"'!$10:$10\"),0)),0)","v":1},6.51,"Fan compressor - 296.9710.71 - 65.21 €",{"$f":"IFERROR(INDEX(INDIRECT(\"'\"&A84&\"'!$18:$50\"),MATCH($X$1,INDIRECT(\"'\"&A84&\"'!$A$18:$A$50\"),0),MATCH(Parts!$B84,INDIRECT(\"'\"&A84&\"'!$10:$10\"),0)),0)","v":1},65.209999999999994,null,{"$f":"IFERROR(INDEX(INDIRECT(\"'\"&A84&\"'!$18:$50\"),MATCH($AA$1,INDIRECT(\"'\"&A84&\"'!$A$18:$A$50\"),0),MATCH(Parts!$B84,INDIRECT(\"'\"&A84&\"'!$10:$10\"),0)),0)","v":0},null,null,{"$f":"IFERROR(INDEX(INDIRECT(\"'\"&A84&\"'!$18:$50\"),MATCH($AD$1,INDIRECT(\"'\"&A84&\"'!$A$18:$A$50\"),0),MATCH(Parts!$B84,INDIRECT(\"'\"&A84&\"'!$10:$10\"),0)),0)","v":0},null,null,{"$f":"IFERROR(INDEX(INDIRECT(\"'\"&A84&\"'!$18:$50\"),MATCH($AG$1,INDIRECT(\"'\"&A84&\"'!$A$18:$A$50\"),0),MATCH(Parts!$B84,INDIRECT(\"'\"&A84&\"'!$10:$10\"),0)),0)","v":0},null,"E-Box BD80F - 296.9705.22 - 165.82 €",{"$f":"IFERROR(INDEX(INDIRECT(\"'\"&A84&\"'!$18:$50\"),MATCH($AJ$1,INDIRECT(\"'\"&A84&\"'!$A$18:$A$50\"),0),MATCH(Parts!$B84,INDIRECT(\"'\"&A84&\"'!$10:$10\"),0)),0)","v":1},165.82,"Main switch DC - 292.2044.16 - 3.85 €",{"$f":"IFERROR(INDEX(INDIRECT(\"'\"&A84&\"'!$18:$50\"),MATCH($AM$1,INDIRECT(\"'\"&A84&\"'!$A$18:$A$50\"),0),MATCH(Parts!$B84,INDIRECT(\"'\"&A84&\"'!$10:$10\"),0)),0)","v":1},3.85,"Voltage regulator 12V - 296.9769.71 - 77.48 €",{"$f":"IFERROR(INDEX(INDIRECT(\"'\"&A84&\"'!$18:$50\"),MATCH($AP$1,INDIRECT(\"'\"&A84&\"'!$A$18:$A$50\"),0),MATCH(Parts!$B84,INDIRECT(\"'\"&A84&\"'!$10:$10\"),0)),0)","v":1},77.48,null,{"$f":"IFERROR(INDEX(INDIRECT(\"'\"&A84&\"'!$18:$50\"),MATCH($AS$1,INDIRECT(\"'\"&A84&\"'!$A$18:$A$50\"),0),MATCH(Parts!$B84,INDIRECT(\"'\"&A84&\"'!$10:$10\"),0)),0)","v":0},null,null,{"$f":"IFERROR(INDEX(INDIRECT(\"'\"&A84&\"'!$18:$50\"),MATCH($AV$1,INDIRECT(\"'\"&A84&\"'!$A$18:$A$50\"),0),MATCH(Parts!$B84,INDIRECT(\"'\"&A84&\"'!$10:$10\"),0)),0)","v":0},null,null,{"$f":"IFERROR(INDEX(INDIRECT(\"'\"&A84&\"'!$18:$50\"),MATCH($AY$1,INDIRECT(\"'\"&A84&\"'!$A$18:$A$50\"),0),MATCH(Parts!$B84,INDIRECT(\"'\"&A84&\"'!$10:$10\"),0)),0)","v":0},null,null,{"$f":"IFERROR(INDEX(INDIRECT(\"'\"&A84&\"'!$18:$50\"),MATCH($BB$1,INDIRECT(\"'\"&A84&\"'!$A$18:$A$50\"),0),MATCH(Parts!$B84,INDIRECT(\"'\"&A84&\"'!$10:$10\"),0)),0)","v":0},null,null,{"$f":"IFERROR(INDEX(INDIRECT(\"'\"&A84&\"'!$18:$50\"),MATCH($BE$1,INDIRECT(\"'\"&A84&\"'!$A$18:$A$50\"),0),MATCH(Parts!$B84,INDIRECT(\"'\"&A84&\"'!$10:$10\"),0)),0)","v":0},null,null,{"$f":"IFERROR(INDEX(INDIRECT(\"'\"&A84&\"'!$18:$50\"),MATCH($BH$1,INDIRECT(\"'\"&A84&\"'!$A$18:$A$50\"),0),MATCH(Parts!$B84,INDIRECT(\"'\"&A84&\"'!$10:$10\"),0)),0)","v":0},null,"Fuse 15A - 296.9243.15 - 0.09 €",{"$f":"IFERROR(INDEX(INDIRECT(\"'\"&A84&\"'!$18:$50\"),MATCH($BK$1,INDIRECT(\"'\"&A84&\"'!$A$18:$A$50\"),0),MATCH(Parts!$B84,INDIRECT(\"'\"&A84&\"'!$10:$10\"),0)),0)","v":1},0.09,null,{"$f":"IFERROR(INDEX(INDIRECT(\"'\"&A84&\"'!$18:$50\"),MATCH($BN$1,INDIRECT(\"'\"&A84&\"'!$A$18:$A$50\"),0),MATCH(Parts!$B84,INDIRECT(\"'\"&A84&\"'!$10:$10\"),0)),0)","v":0},null,null,{"$f":"IFERROR(INDEX(INDIRECT(\"'\"&A84&\"'!$18:$50\"),MATCH($BQ$1,INDIRECT(\"'\"&A84&\"'!$A$18:$A$50\"),0),MATCH(Parts!$B84,INDIRECT(\"'\"&A84&\"'!$10:$10\"),0)),0)","v":0},null,null,{"$f":"IFERROR(INDEX(INDIRECT(\"'\"&A84&\"'!$18:$50\"),MATCH($BT$1,INDIRECT(\"'\"&A84&\"'!$A$18:$A$50\"),0),MATCH(Parts!$B84,INDIRECT(\"'\"&A84&\"'!$10:$10\"),0)),0)","v":0},null,null,{"$f":"IFERROR(INDEX(INDIRECT(\"'\"&A84&\"'!$18:$50\"),MATCH($BW$1,INDIRECT(\"'\"&A84&\"'!$A$18:$A$50\"),0),MATCH(Parts!$B84,INDIRECT(\"'\"&A84&\"'!$10:$10\"),0)),0)","v":0},null,null,{"$f":"IFERROR(INDEX(INDIRECT(\"'\"&A84&\"'!$18:$50\"),MATCH($BZ$1,INDIRECT(\"'\"&A84&\"'!$A$18:$A$50\"),0),MATCH(Parts!$B84,INDIRECT(\"'\"&A84&\"'!$10:$10\"),0)),0)","v":0},null,null,{"$f":"IFERROR(INDEX(INDIRECT(\"'\"&A84&\"'!$18:$50\"),MATCH($CC$1,INDIRECT(\"'\"&A84&\"'!$A$18:$A$50\"),0),MATCH(Parts!$B84,INDIRECT(\"'\"&A84&\"'!$10:$10\"),0)),0)","v":0},null,null,{"$f":"IFERROR(INDEX(INDIRECT(\"'\"&A84&\"'!$18:$50\"),MATCH($CF$1,INDIRECT(\"'\"&A84&\"'!$A$18:$A$50\"),0),MATCH(Parts!$B84,INDIRECT(\"'\"&A84&\"'!$10:$10\"),0)),0)","v":0},null,null,{"$f":"IFERROR(INDEX(INDIRECT(\"'\"&A84&\"'!$18:$50\"),MATCH($CI$1,INDIRECT(\"'\"&A84&\"'!$A$18:$A$50\"),0),MATCH(Parts!$B84,INDIRECT(\"'\"&A84&\"'!$10:$10\"),0)),0)","v":0},null,null,{"$f":"IFERROR(INDEX(INDIRECT(\"'\"&A84&\"'!$18:$50\"),MATCH($CL$1,INDIRECT(\"'\"&A84&\"'!$A$18:$A$50\"),0),MATCH(Parts!$B84,INDIRECT(\"'\"&A84&\"'!$10:$10\"),0)),0)","v":0},null,null,{"$f":"IFERROR(INDEX(INDIRECT(\"'\"&A84&\"'!$18:$50\"),MATCH($CO$1,INDIRECT(\"'\"&A84&\"'!$A$18:$A$50\"),0),MATCH(Parts!$B84,INDIRECT(\"'\"&A84&\"'!$10:$10\"),0)),0)","v":0},null,null,{"$f":"IFERROR(INDEX(INDIRECT(\"'\"&A84&\"'!$18:$50\"),MATCH($CR$1,INDIRECT(\"'\"&A84&\"'!$A$18:$A$50\"),0),MATCH(Parts!$B84,INDIRECT(\"'\"&A84&\"'!$10:$10\"),0)),0)","v":0},null,null,{"$f":"IFERROR(INDEX(INDIRECT(\"'\"&A84&\"'!$18:$50\"),MATCH($CU$1,INDIRECT(\"'\"&A84&\"'!$A$18:$A$50\"),0),MATCH(Parts!$B84,INDIRECT(\"'\"&A84&\"'!$10:$10\"),0)),0)","v":0},null,null,{"$f":"IFERROR(INDEX(INDIRECT(\"'\"&A84&\"'!$18:$50\"),MATCH($CX$1,INDIRECT(\"'\"&A84&\"'!$A$18:$A$50\"),0),MATCH(Parts!$B84,INDIRECT(\"'\"&A84&\"'!$10:$10\"),0)),0)","v":0},null,null,{"$f":"IFERROR(INDEX(INDIRECT(\"'\"&A84&\"'!$18:$50\"),MATCH($DA$1,INDIRECT(\"'\"&A84&\"'!$A$18:$A$50\"),0),MATCH(Parts!$B84,INDIRECT(\"'\"&A84&\"'!$10:$10\"),0)),0)","v":0},null,null,{"$f":"IFERROR(INDEX(INDIRECT(\"'\"&A84&\"'!$18:$50\"),MATCH($DD$1,INDIRECT(\"'\"&A84&\"'!$A$18:$A$50\"),0),MATCH(Parts!$B84,INDIRECT(\"'\"&A84&\"'!$10:$10\"),0)),0)","v":0},null,null,{"$f":"IFERROR(INDEX(INDIRECT(\"'\"&A84&\"'!$18:$50\"),MATCH($DG$1,INDIRECT(\"'\"&A84&\"'!$A$18:$A$50\"),0),MATCH(Parts!$B84,INDIRECT(\"'\"&A84&\"'!$10:$10\"),0)),0)","v":0},null,null,{"$f":"IFERROR(INDEX(INDIRECT(\"'\"&A84&\"'!$18:$50\"),MATCH($DJ$1,INDIRECT(\"'\"&A84&\"'!$A$18:$A$50\"),0),MATCH(Parts!$B84,INDIRECT(\"'\"&A84&\"'!$10:$10\"),0)),0)","v":0},null,null,{"$f":"IFERROR(INDEX(INDIRECT(\"'\"&A84&\"'!$18:$50\"),MATCH($DM$1,INDIRECT(\"'\"&A84&\"'!$A$18:$A$50\"),0),MATCH(Parts!$B84,INDIRECT(\"'\"&A84&\"'!$10:$10\"),0)),0)","v":0},null,null,{"$f":"IFERROR(INDEX(INDIRECT(\"'\"&A84&\"'!$18:$50\"),MATCH($DP$1,INDIRECT(\"'\"&A84&\"'!$A$18:$A$50\"),0),MATCH(Parts!$B84,INDIRECT(\"'\"&A84&\"'!$10:$10\"),0)),0)","v":0},null,null,{"$f":"IFERROR(INDEX(INDIRECT(\"'\"&A84&\"'!$18:$50\"),MATCH($DS$1,INDIRECT(\"'\"&A84&\"'!$A$18:$A$50\"),0),MATCH(Parts!$B84,INDIRECT(\"'\"&A84&\"'!$10:$10\"),0)),0)","v":0},null,null,{"$f":"IFERROR(INDEX(INDIRECT(\"'\"&A84&\"'!$18:$50\"),MATCH($DV$1,INDIRECT(\"'\"&A84&\"'!$A$18:$A$50\"),0),MATCH(Parts!$B84,INDIRECT(\"'\"&A84&\"'!$10:$10\"),0)),0)","v":0},null,null,{"$f":"IFERROR(INDEX(INDIRECT(\"'\"&A84&\"'!$18:$50\"),MATCH($DY$1,INDIRECT(\"'\"&A84&\"'!$A$18:$A$50\"),0),MATCH(Parts!$B84,INDIRECT(\"'\"&A84&\"'!$10:$10\"),0)),0)","v":0},null,null,{"$f":"IFERROR(INDEX(INDIRECT(\"'\"&A84&\"'!$18:$50\"),MATCH($EB$1,INDIRECT(\"'\"&A84&\"'!$A$18:$A$50\"),0),MATCH(Parts!$B84,INDIRECT(\"'\"&A84&\"'!$10:$10\"),0)),0)","v":0},null,null,{"$f":"IFERROR(INDEX(INDIRECT(\"'\"&A84&\"'!$18:$50\"),MATCH($EE$1,INDIRECT(\"'\"&A84&\"'!$A$18:$A$50\"),0),MATCH(Parts!$B84,INDIRECT(\"'\"&A84&\"'!$10:$10\"),0)),0)","v":0},null,null,{"$f":"IFERROR(INDEX(INDIRECT(\"'\"&A84&\"'!$18:$50\"),MATCH($EH$1,INDIRECT(\"'\"&A84&\"'!$A$18:$A$50\"),0),MATCH(Parts!$B84,INDIRECT(\"'\"&A84&\"'!$10:$10\"),0)),0)","v":0},null,null,{"$f":"IFERROR(INDEX(INDIRECT(\"'\"&A84&\"'!$18:$50\"),MATCH($EK$1,INDIRECT(\"'\"&A84&\"'!$A$18:$A$50\"),0),MATCH(Parts!$B84,INDIRECT(\"'\"&A84&\"'!$10:$10\"),0)),0)","v":0}]
[{"$f":"PQS!A87","v":"Solar w battery"},{"$f":"PQS!B87","v":"E003/026"},{"$f":"PQS!E87","v":"VC 65-2"},{"$f":"PQS!P87","v":"€"},270,"Compressor, Danfoss BD35F, 125.00€",{"$f":"IFERROR(INDEX(INDIRECT(\"'\"&A85&\"'!$18:$50\"),MATCH(Parts!F$1,INDIRECT(\"'\"&A85&\"'!$A$18:$A$50\"),0),MATCH(Parts!$B85,INDIRECT(\"'\"&A85&\"'!$10:$10\"),0)),0)","v":1},125,"Thermostat AT-5BQ8L-1PS, 50.00€",{"$f":"IFERROR(INDEX(INDIRECT(\"'\"&A85&\"'!$18:$50\"),MATCH($I$1,INDIRECT(\"'\"&A85&\"'!$A$18:$A$50\"),0),MATCH(Parts!$B85,INDIRECT(\"'\"&A85&\"'!$10:$10\"),0)),0)","v":1},50,"Compressor controller, Danfoss 101N0210; 95.00€",{"$f":"IFERROR(INDEX(INDIRECT(\"'\"&A85&\"'!$18:$50\"),MATCH($L$1,INDIRECT(\"'\"&A85&\"'!$A$18:$A$50\"),0),MATCH(Parts!$B85,INDIRECT(\"'\"&A85&\"'!$10:$10\"),0)),0)","v":1},95,null,{"$f":"IFERROR(INDEX(INDIRECT(\"'\"&A85&\"'!$18:$50\"),MATCH($O$1,INDIRECT(\"'\"&A85&\"'!$A$18:$A$50\"),0),MATCH(Parts!$B85,INDIRECT(\"'\"&A85&\"'!$10:$10\"),0)),0)","v":0},null,null,{"$f":"IFERROR(INDEX(INDIRECT(\"'\"&A85&\"'!$18:$50\"),MATCH($R$1,INDIRECT(\"'\"&A85&\"'!$A$18:$A$50\"),0),MATCH(Parts!$B85,INDIRECT(\"'\"&A85&\"'!$10:$10\"),0)),0)","v":0},null,null,{"$f":"IFERROR(INDEX(INDIRECT(\"'\"&A85&\"'!$18:$50\"),MATCH($U$1,INDIRECT(\"'\"&A85&\"'!$A$18:$A$50\"),0),MATCH(Parts!$B85,INDIRECT(\"'\"&A85&\"'!$10:$10\"),0)),0)","v":0},null,null,{"$f":"IFERROR(INDEX(INDIRECT(\"'\"&A85&\"'!$18:$50\"),MATCH($X$1,INDIRECT(\"'\"&A85&\"'!$A$18:$A$50\"),0),MATCH(Parts!$B85,INDIRECT(\"'\"&A85&\"'!$10:$10\"),0)),0)","v":0},null,null,{"$f":"IFERROR(INDEX(INDIRECT(\"'\"&A85&\"'!$18:$50\"),MATCH($AA$1,INDIRECT(\"'\"&A85&\"'!$A$18:$A$50\"),0),MATCH(Parts!$B85,INDIRECT(\"'\"&A85&\"'!$10:$10\"),0)),0)","v":0},null,null,{"$f":"IFERROR(INDEX(INDIRECT(\"'\"&A85&\"'!$18:$50\"),MATCH($AD$1,INDIRECT(\"'\"&A85&\"'!$A$18:$A$50\"),0),MATCH(Parts!$B85,INDIRECT(\"'\"&A85&\"'!$10:$10\"),0)),0)","v":0},null,null,{"$f":"IFERROR(INDEX(INDIRECT(\"'\"&A85&\"'!$18:$50\"),MATCH($AG$1,INDIRECT(\"'\"&A85&\"'!$A$18:$A$50\"),0),MATCH(Parts!$B85,INDIRECT(\"'\"&A85&\"'!$10:$10\"),0)),0)","v":0},null,null,{"$f":"IFERROR(INDEX(INDIRECT(\"'\"&A85&\"'!$18:$50\"),MATCH($AJ$1,INDIRECT(\"'\"&A85&\"'!$A$18:$A$50\"),0),MATCH(Parts!$B85,INDIRECT(\"'\"&A85&\"'!$10:$10\"),0)),0)","v":0},null,null,{"$f":"IFERROR(INDEX(INDIRECT(\"'\"&A85&\"'!$18:$50\"),MATCH($AM$1,INDIRECT(\"'\"&A85&\"'!$A$18:$A$50\"),0),MATCH(Parts!$B85,INDIRECT(\"'\"&A85&\"'!$10:$10\"),0)),0)","v":0},null,null,{"$f":"IFERROR(INDEX(INDIRECT(\"'\"&A85&\"'!$18:$50\"),MATCH($AP$1,INDIRECT(\"'\"&A85&\"'!$A$18:$A$50\"),0),MATCH(Parts!$B85,INDIRECT(\"'\"&A85&\"'!$10:$10\"),0)),0)","v":0},null,null,{"$f":"IFERROR(INDEX(INDIRECT(\"'\"&A85&\"'!$18:$50\"),MATCH($AS$1,INDIRECT(\"'\"&A85&\"'!$A$18:$A$50\"),0),MATCH(Parts!$B85,INDIRECT(\"'\"&A85&\"'!$10:$10\"),0)),0)","v":0},null,null,{"$f":"IFERROR(INDEX(INDIRECT(\"'\"&A85&\"'!$18:$50\"),MATCH($AV$1,INDIRECT(\"'\"&A85&\"'!$A$18:$A$50\"),0),MATCH(Parts!$B85,INDIRECT(\"'\"&A85&\"'!$10:$10\"),0)),0)","v":0},null,null,{"$f":"IFERROR(INDEX(INDIRECT(\"'\"&A85&\"'!$18:$50\"),MATCH($AY$1,INDIRECT(\"'\"&A85&\"'!$A$18:$A$50\"),0),MATCH(Parts!$B85,INDIRECT(\"'\"&A85&\"'!$10:$10\"),0)),0)","v":0},null,null,{"$f":"IFERROR(INDEX(INDIRECT(\"'\"&A85&\"'!$18:$50\"),MATCH($BB$1,INDIRECT(\"'\"&A85&\"'!$A$18:$A$50\"),0),MATCH(Parts!$B85,INDIRECT(\"'\"&A85&\"'!$10:$10\"),0)),0)","v":0},null,null,{"$f":"IFERROR(INDEX(INDIRECT(\"'\"&A85&\"'!$18:$50\"),MATCH($BE$1,INDIRECT(\"'\"&A85&\"'!$A$18:$A$50\"),0),MATCH(Parts!$B85,INDIRECT(\"'\"&A85&\"'!$10:$10\"),0)),0)","v":0},null,null,{"$f":"IFERROR(INDEX(INDIRECT(\"'\"&A85&\"'!$18:$50\"),MATCH($BH$1,INDIRECT(\"'\"&A85&\"'!$A$18:$A$50\"),0),MATCH(Parts!$B85,INDIRECT(\"'\"&A85&\"'!$10:$10\"),0)),0)","v":0},null,null,{"$f":"IFERROR(INDEX(INDIRECT(\"'\"&A85&\"'!$18:$50\"),MATCH($BK$1,INDIRECT(\"'\"&A85&\"'!$A$18:$A$50\"),0),MATCH(Parts!$B85,INDIRECT(\"'\"&A85&\"'!$10:$10\"),0)),0)","v":0},null,null,{"$f":"IFERROR(INDEX(INDIRECT(\"'\"&A85&\"'!$18:$50\"),MATCH($BN$1,INDIRECT(\"'\"&A85&\"'!$A$18:$A$50\"),0),MATCH(Parts!$B85,INDIRECT(\"'\"&A85&\"'!$10:$10\"),0)),0)","v":0},null,null,{"$f":"IFERROR(INDEX(INDIRECT(\"'\"&A85&\"'!$18:$50\"),MATCH($BQ$1,INDIRECT(\"'\"&A85&\"'!$A$18:$A$50\"),0),MATCH(Parts!$B85,INDIRECT(\"'\"&A85&\"'!$10:$10\"),0)),0)","v":0},null,null,{"$f":"IFERROR(INDEX(INDIRECT(\"'\"&A85&\"'!$18:$50\"),MATCH($BT$1,INDIRECT(\"'\"&A85&\"'!$A$18:$A$50\"),0),MATCH(Parts!$B85,INDIRECT(\"'\"&A85&\"'!$10:$10\"),0)),0)","v":0},null,null,{"$f":"IFERROR(INDEX(INDIRECT(\"'\"&A85&\"'!$18:$50\"),MATCH($BW$1,INDIRECT(\"'\"&A85&\"'!$A$18:$A$50\"),0),MATCH(Parts!$B85,INDIRECT(\"'\"&A85&\"'!$10:$10\"),0)),0)","v":0},null,null,{"$f":"IFERROR(INDEX(INDIRECT(\"'\"&A85&\"'!$18:$50\"),MATCH($BZ$1,INDIRECT(\"'\"&A85&\"'!$A$18:$A$50\"),0),MATCH(Parts!$B85,INDIRECT(\"'\"&A85&\"'!$10:$10\"),0)),0)","v":0},null,null,{"$f":"IFERROR(INDEX(INDIRECT(\"'\"&A85&\"'!$18:$50\"),MATCH($CC$1,INDIRECT(\"'\"&A85&\"'!$A$18:$A$50\"),0),MATCH(Parts!$B85,INDIRECT(\"'\"&A85&\"'!$10:$10\"),0)),0)","v":0},null,null,{"$f":"IFERROR(INDEX(INDIRECT(\"'\"&A85&\"'!$18:$50\"),MATCH($CF$1,INDIRECT(\"'\"&A85&\"'!$A$18:$A$50\"),0),MATCH(Parts!$B85,INDIRECT(\"'\"&A85&\"'!$10:$10\"),0)),0)","v":0},null,null,{"$f":"IFERROR(INDEX(INDIRECT(\"'\"&A85&\"'!$18:$50\"),MATCH($CI$1,INDIRECT(\"'\"&A85&\"'!$A$18:$A$50\"),0),MATCH(Parts!$B85,INDIRECT(\"'\"&A85&\"'!$10:$10\"),0)),0)","v":0},null,null,{"$f":"IFERROR(INDEX(INDIRECT(\"'\"&A85&\"'!$18:$50\"),MATCH($CL$1,INDIRECT(\"'\"&A85&\"'!$A$18:$A$50\"),0),MATCH(Parts!$B85,INDIRECT(\"'\"&A85&\"'!$10:$10\"),0)),0)","v":0},null,null,{"$f":"IFERROR(INDEX(INDIRECT(\"'\"&A85&\"'!$18:$50\"),MATCH($CO$1,INDIRECT(\"'\"&A85&\"'!$A$18:$A$50\"),0),MATCH(Parts!$B85,INDIRECT(\"'\"&A85&\"'!$10:$10\"),0)),0)","v":0},null,null,{"$f":"IFERROR(INDEX(INDIRECT(\"'\"&A85&\"'!$18:$50\"),MATCH($CR$1,INDIRECT(\"'\"&A85&\"'!$A$18:$A$50\"),0),MATCH(Parts!$B85,INDIRECT(\"'\"&A85&\"'!$10:$10\"),0)),0)","v":0},null,null,{"$f":"IFERROR(INDEX(INDIRECT(\"'\"&A85&\"'!$18:$50\"),MATCH($CU$1,INDIRECT(\"'\"&A85&\"'!$A$18:$A$50\"),0),MATCH(Parts!$B85,INDIRECT(\"'\"&A85&\"'!$10:$10\"),0)),0)","v":0},null,null,{"$f":"IFERROR(INDEX(INDIRECT(\"'\"&A85&\"'!$18:$50\"),MATCH($CX$1,INDIRECT(\"'\"&A85&\"'!$A$18:$A$50\"),0),MATCH(Parts!$B85,INDIRECT(\"'\"&A85&\"'!$10:$10\"),0)),0)","v":0},null,null,{"$f":"IFERROR(INDEX(INDIRECT(\"'\"&A85&\"'!$18:$50\"),MATCH($DA$1,INDIRECT(\"'\"&A85&\"'!$A$18:$A$50\"),0),MATCH(Parts!$B85,INDIRECT(\"'\"&A85&\"'!$10:$10\"),0)),0)","v":0},null,null,{"$f":"IFERROR(INDEX(INDIRECT(\"'\"&A85&\"'!$18:$50\"),MATCH($DD$1,INDIRECT(\"'\"&A85&\"'!$A$18:$A$50\"),0),MATCH(Parts!$B85,INDIRECT(\"'\"&A85&\"'!$10:$10\"),0)),0)","v":0},null,null,{"$f":"IFERROR(INDEX(INDIRECT(\"'\"&A85&\"'!$18:$50\"),MATCH($DG$1,INDIRECT(\"'\"&A85&\"'!$A$18:$A$50\"),0),MATCH(Parts!$B85,INDIRECT(\"'\"&A85&\"'!$10:$10\"),0)),0)","v":0},null,null,{"$f":"IFERROR(INDEX(INDIRECT(\"'\"&A85&\"'!$18:$50\"),MATCH($DJ$1,INDIRECT(\"'\"&A85&\"'!$A$18:$A$50\"),0),MATCH(Parts!$B85,INDIRECT(\"'\"&A85&\"'!$10:$10\"),0)),0)","v":0},null,null,{"$f":"IFERROR(INDEX(INDIRECT(\"'\"&A85&\"'!$18:$50\"),MATCH($DM$1,INDIRECT(\"'\"&A85&\"'!$A$18:$A$50\"),0),MATCH(Parts!$B85,INDIRECT(\"'\"&A85&\"'!$10:$10\"),0)),0)","v":0},null,null,{"$f":"IFERROR(INDEX(INDIRECT(\"'\"&A85&\"'!$18:$50\"),MATCH($DP$1,INDIRECT(\"'\"&A85&\"'!$A$18:$A$50\"),0),MATCH(Parts!$B85,INDIRECT(\"'\"&A85&\"'!$10:$10\"),0)),0)","v":0},null,null,{"$f":"IFERROR(INDEX(INDIRECT(\"'\"&A85&\"'!$18:$50\"),MATCH($DS$1,INDIRECT(\"'\"&A85&\"'!$A$18:$A$50\"),0),MATCH(Parts!$B85,INDIRECT(\"'\"&A85&\"'!$10:$10\"),0)),0)","v":0},null,null,{"$f":"IFERROR(INDEX(INDIRECT(\"'\"&A85&\"'!$18:$50\"),MATCH($DV$1,INDIRECT(\"'\"&A85&\"'!$A$18:$A$50\"),0),MATCH(Parts!$B85,INDIRECT(\"'\"&A85&\"'!$10:$10\"),0)),0)","v":0},null,null,{"$f":"IFERROR(INDEX(INDIRECT(\"'\"&A85&\"'!$18:$50\"),MATCH($DY$1,INDIRECT(\"'\"&A85&\"'!$A$18:$A$50\"),0),MATCH(Parts!$B85,INDIRECT(\"'\"&A85&\"'!$10:$10\"),0)),0)","v":0},null,null,{"$f":"IFERROR(INDEX(INDIRECT(\"'\"&A85&\"'!$18:$50\"),MATCH($EB$1,INDIRECT(\"'\"&A85&\"'!$A$18:$A$50\"),0),MATCH(Parts!$B85,INDIRECT(\"'\"&A85&\"'!$10:$10\"),0)),0)","v":0},null,null,{"$f":"IFERROR(INDEX(INDIRECT(\"'\"&A85&\"'!$18:$50\"),MATCH($EE$1,INDIRECT(\"'\"&A85&\"'!$A$18:$A$50\"),0),MATCH(Parts!$B85,INDIRECT(\"'\"&A85&\"'!$10:$10\"),0)),0)","v":0},null,null,{"$f":"IFERROR(INDEX(INDIRECT(\"'\"&A85&\"'!$18:$50\"),MATCH($EH$1,INDIRECT(\"'\"&A85&\"'!$A$18:$A$50\"),0),MATCH(Parts!$B85,INDIRECT(\"'\"&A85&\"'!$10:$10\"),0)),0)","v":0},null,null,{"$f":"IFERROR(INDEX(INDIRECT(\"'\"&A85&\"'!$18:$50\"),MATCH($EK$1,INDIRECT(\"'\"&A85&\"'!$A$18:$A$50\"),0),MATCH(Parts!$B85,INDIRECT(\"'\"&A85&\"'!$10:$10\"),0)),0)","v":0}]
[{"$f":"PQS!A88","v":"Solar w battery"},{"$f":"PQS!B88","v":"E003/027"},{"$f":"PQS!E88","v":"VC 150-2"},{"$f":"PQS!P88","v":"€"},270,"Compressor Danfoss BD35F, 125.00€",{"$f":"IFERROR(INDEX(INDIRECT(\"'\"&A86&\"'!$18:$50\"),MATCH(Parts!F$1,INDIRECT(\"'\"&A86&\"'!$A$18:$A$50\"),0),MATCH(Parts!$B86,INDIRECT(\"'\"&A86&\"'!$10:$10\"),0)),0)","v":1},125,"Thermostat AT-5BQ8L-1PS, 50.00€",{"$f":"IFERROR(INDEX(INDIRECT(\"'\"&A86&\"'!$18:$50\"),MATCH($I$1,INDIRECT(\"'\"&A86&\"'!$A$18:$A$50\"),0),MATCH(Parts!$B86,INDIRECT(\"'\"&A86&\"'!$10:$10\"),0)),0)","v":1},50,"Compressor controller 101N0210, 95.00€",{"$f":"IFERROR(INDEX(INDIRECT(\"'\"&A86&\"'!$18:$50\"),MATCH($L$1,INDIRECT(\"'\"&A86&\"'!$A$18:$A$50\"),0),MATCH(Parts!$B86,INDIRECT(\"'\"&A86&\"'!$10:$10\"),0)),0)","v":1},95,null,{"$f":"IFERROR(INDEX(INDIRECT(\"'\"&A86&\"'!$18:$50\"),MATCH($O$1,INDIRECT(\"'\"&A86&\"'!$A$18:$A$50\"),0),MATCH(Parts!$B86,INDIRECT(\"'\"&A86&\"'!$10:$10\"),0)),0)","v":0},null,null,{"$f":"IFERROR(INDEX(INDIRECT(\"'\"&A86&\"'!$18:$50\"),MATCH($R$1,INDIRECT(\"'\"&A86&\"'!$A$18:$A$50\"),0),MATCH(Parts!$B86,INDIRECT(\"'\"&A86&\"'!$10:$10\"),0)),0)","v":0},null,null,{"$f":"IFERROR(INDEX(INDIRECT(\"'\"&A86&\"'!$18:$50\"),MATCH($U$1,INDIRECT(\"'\"&A86&\"'!$A$18:$A$50\"),0),MATCH(Parts!$B86,INDIRECT(\"'\"&A86&\"'!$10:$10\"),0)),0)","v":0},null,null,{"$f":"IFERROR(INDEX(INDIRECT(\"'\"&A86&\"'!$18:$50\"),MATCH($X$1,INDIRECT(\"'\"&A86&\"'!$A$18:$A$50\"),0),MATCH(Parts!$B86,INDIRECT(\"'\"&A86&\"'!$10:$10\"),0)),0)","v":0},null,null,{"$f":"IFERROR(INDEX(INDIRECT(\"'\"&A86&\"'!$18:$50\"),MATCH($AA$1,INDIRECT(\"'\"&A86&\"'!$A$18:$A$50\"),0),MATCH(Parts!$B86,INDIRECT(\"'\"&A86&\"'!$10:$10\"),0)),0)","v":0},null,null,{"$f":"IFERROR(INDEX(INDIRECT(\"'\"&A86&\"'!$18:$50\"),MATCH($AD$1,INDIRECT(\"'\"&A86&\"'!$A$18:$A$50\"),0),MATCH(Parts!$B86,INDIRECT(\"'\"&A86&\"'!$10:$10\"),0)),0)","v":0},null,null,{"$f":"IFERROR(INDEX(INDIRECT(\"'\"&A86&\"'!$18:$50\"),MATCH($AG$1,INDIRECT(\"'\"&A86&\"'!$A$18:$A$50\"),0),MATCH(Parts!$B86,INDIRECT(\"'\"&A86&\"'!$10:$10\"),0)),0)","v":0},null,null,{"$f":"IFERROR(INDEX(INDIRECT(\"'\"&A86&\"'!$18:$50\"),MATCH($AJ$1,INDIRECT(\"'\"&A86&\"'!$A$18:$A$50\"),0),MATCH(Parts!$B86,INDIRECT(\"'\"&A86&\"'!$10:$10\"),0)),0)","v":0},null,null,{"$f":"IFERROR(INDEX(INDIRECT(\"'\"&A86&\"'!$18:$50\"),MATCH($AM$1,INDIRECT(\"'\"&A86&\"'!$A$18:$A$50\"),0),MATCH(Parts!$B86,INDIRECT(\"'\"&A86&\"'!$10:$10\"),0)),0)","v":0},null,null,{"$f":"IFERROR(INDEX(INDIRECT(\"'\"&A86&\"'!$18:$50\"),MATCH($AP$1,INDIRECT(\"'\"&A86&\"'!$A$18:$A$50\"),0),MATCH(Parts!$B86,INDIRECT(\"'\"&A86&\"'!$10:$10\"),0)),0)","v":0},null,null,{"$f":"IFERROR(INDEX(INDIRECT(\"'\"&A86&\"'!$18:$50\"),MATCH($AS$1,INDIRECT(\"'\"&A86&\"'!$A$18:$A$50\"),0),MATCH(Parts!$B86,INDIRECT(\"'\"&A86&\"'!$10:$10\"),0)),0)","v":0},null,null,{"$f":"IFERROR(INDEX(INDIRECT(\"'\"&A86&\"'!$18:$50\"),MATCH($AV$1,INDIRECT(\"'\"&A86&\"'!$A$18:$A$50\"),0),MATCH(Parts!$B86,INDIRECT(\"'\"&A86&\"'!$10:$10\"),0)),0)","v":0},null,null,{"$f":"IFERROR(INDEX(INDIRECT(\"'\"&A86&\"'!$18:$50\"),MATCH($AY$1,INDIRECT(\"'\"&A86&\"'!$A$18:$A$50\"),0),MATCH(Parts!$B86,INDIRECT(\"'\"&A86&\"'!$10:$10\"),0)),0)","v":0},null,null,{"$f":"IFERROR(INDEX(INDIRECT(\"'\"&A86&\"'!$18:$50\"),MATCH($BB$1,INDIRECT(\"'\"&A86&\"'!$A$18:$A$50\"),0),MATCH(Parts!$B86,INDIRECT(\"'\"&A86&\"'!$10:$10\"),0)),0)","v":0},null,null,{"$f":"IFERROR(INDEX(INDIRECT(\"'\"&A86&\"'!$18:$50\"),MATCH($BE$1,INDIRECT(\"'\"&A86&\"'!$A$18:$A$50\"),0),MATCH(Parts!$B86,INDIRECT(\"'\"&A86&\"'!$10:$10\"),0)),0)","v":0},null,null,{"$f":"IFERROR(INDEX(INDIRECT(\"'\"&A86&\"'!$18:$50\"),MATCH($BH$1,INDIRECT(\"'\"&A86&\"'!$A$18:$A$50\"),0),MATCH(Parts!$B86,INDIRECT(\"'\"&A86&\"'!$10:$10\"),0)),0)","v":0},null,null,{"$f":"IFERROR(INDEX(INDIRECT(\"'\"&A86&\"'!$18:$50\"),MATCH($BK$1,INDIRECT(\"'\"&A86&\"'!$A$18:$A$50\"),0),MATCH(Parts!$B86,INDIRECT(\"'\"&A86&\"'!$10:$10\"),0)),0)","v":0},null,null,{"$f":"IFERROR(INDEX(INDIRECT(\"'\"&A86&\"'!$18:$50\"),MATCH($BN$1,INDIRECT(\"'\"&A86&\"'!$A$18:$A$50\"),0),MATCH(Parts!$B86,INDIRECT(\"'\"&A86&\"'!$10:$10\"),0)),0)","v":0},null,null,{"$f":"IFERROR(INDEX(INDIRECT(\"'\"&A86&\"'!$18:$50\"),MATCH($BQ$1,INDIRECT(\"'\"&A86&\"'!$A$18:$A$50\"),0),MATCH(Parts!$B86,INDIRECT(\"'\"&A86&\"'!$10:$10\"),0)),0)","v":0},null,null,{"$f":"IFERROR(INDEX(INDIRECT(\"'\"&A86&\"'!$18:$50\"),MATCH($BT$1,INDIRECT(\"'\"&A86&\"'!$A$18:$A$50\"),0),MATCH(Parts!$B86,INDIRECT(\"'\"&A86&\"'!$10:$10\"),0)),0)","v":0},null,null,{"$f":"IFERROR(INDEX(INDIRECT(\"'\"&A86&\"'!$18:$50\"),MATCH($BW$1,INDIRECT(\"'\"&A86&\"'!$A$18:$A$50\"),0),MATCH(Parts!$B86,INDIRECT(\"'\"&A86&\"'!$10:$10\"),0)),0)","v":0},null,null,{"$f":"IFERROR(INDEX(INDIRECT(\"'\"&A86&\"'!$18:$50\"),MATCH($BZ$1,INDIRECT(\"'\"&A86&\"'!$A$18:$A$50\"),0),MATCH(Parts!$B86,INDIRECT(\"'\"&A86&\"'!$10:$10\"),0)),0)","v":0},null,null,{"$f":"IFERROR(INDEX(INDIRECT(\"'\"&A86&\"'!$18:$50\"),MATCH($CC$1,INDIRECT(\"'\"&A86&\"'!$A$18:$A$50\"),0),MATCH(Parts!$B86,INDIRECT(\"'\"&A86&\"'!$10:$10\"),0)),0)","v":0},null,null,{"$f":"IFERROR(INDEX(INDIRECT(\"'\"&A86&\"'!$18:$50\"),MATCH($CF$1,INDIRECT(\"'\"&A86&\"'!$A$18:$A$50\"),0),MATCH(Parts!$B86,INDIRECT(\"'\"&A86&\"'!$10:$10\"),0)),0)","v":0},null,null,{"$f":"IFERROR(INDEX(INDIRECT(\"'\"&A86&\"'!$18:$50\"),MATCH($CI$1,INDIRECT(\"'\"&A86&\"'!$A$18:$A$50\"),0),MATCH(Parts!$B86,INDIRECT(\"'\"&A86&\"'!$10:$10\"),0)),0)","v":0},null,null,{"$f":"IFERROR(INDEX(INDIRECT(\"'\"&A86&\"'!$18:$50\"),MATCH($CL$1,INDIRECT(\"'\"&A86&\"'!$A$18:$A$50\"),0),MATCH(Parts!$B86,INDIRECT(\"'\"&A86&\"'!$10:$10\"),0)),0)","v":0},null,null,{"$f":"IFERROR(INDEX(INDIRECT(\"'\"&A86&\"'!$18:$50\"),MATCH($CO$1,INDIRECT(\"'\"&A86&\"'!$A$18:$A$50\"),0),MATCH(Parts!$B86,INDIRECT(\"'\"&A86&\"'!$10:$10\"),0)),0)","v":0},null,null,{"$f":"IFERROR(INDEX(INDIRECT(\"'\"&A86&\"'!$18:$50\"),MATCH($CR$1,INDIRECT(\"'\"&A86&\"'!$A$18:$A$50\"),0),MATCH(Parts!$B86,INDIRECT(\"'\"&A86&\"'!$10:$10\"),0)),0)","v":0},null,null,{"$f":"IFERROR(INDEX(INDIRECT(\"'\"&A86&\"'!$18:$50\"),MATCH($CU$1,INDIRECT(\"'\"&A86&\"'!$A$18:$A$50\"),0),MATCH(Parts!$B86,INDIRECT(\"'\"&A86&\"'!$10:$10\"),0)),0)","v":0},null,null,{"$f":"IFERROR(INDEX(INDIRECT(\"'\"&A86&\"'!$18:$50\"),MATCH($CX$1,INDIRECT(\"'\"&A86&\"'!$A$18:$A$50\"),0),MATCH(Parts!$B86,INDIRECT(\"'\"&A86&\"'!$10:$10\"),0)),0)","v":0},null,null,{"$f":"IFERROR(INDEX(INDIRECT(\"'\"&A86&\"'!$18:$50\"),MATCH($DA$1,INDIRECT(\"'\"&A86&\"'!$A$18:$A$50\"),0),MATCH(Parts!$B86,INDIRECT(\"'\"&A86&\"'!$10:$10\"),0)),0)","v":0},null,null,{"$f":"IFERROR(INDEX(INDIRECT(\"'\"&A86&\"'!$18:$50\"),MATCH($DD$1,INDIRECT(\"'\"&A86&\"'!$A$18:$A$50\"),0),MATCH(Parts!$B86,INDIRECT(\"'\"&A86&\"'!$10:$10\"),0)),0)","v":0},null,null,{"$f":"IFERROR(INDEX(INDIRECT(\"'\"&A86&\"'!$18:$50\"),MATCH($DG$1,INDIRECT(\"'\"&A86&\"'!$A$18:$A$50\"),0),MATCH(Parts!$B86,INDIRECT(\"'\"&A86&\"'!$10:$10\"),0)),0)","v":0},null,null,{"$f":"IFERROR(INDEX(INDIRECT(\"'\"&A86&\"'!$18:$50\"),MATCH($DJ$1,INDIRECT(\"'\"&A86&\"'!$A$18:$A$50\"),0),MATCH(Parts!$B86,INDIRECT(\"'\"&A86&\"'!$10:$10\"),0)),0)","v":0},null,null,{"$f":"IFERROR(INDEX(INDIRECT(\"'\"&A86&\"'!$18:$50\"),MATCH($DM$1,INDIRECT(\"'\"&A86&\"'!$A$18:$A$50\"),0),MATCH(Parts!$B86,INDIRECT(\"'\"&A86&\"'!$10:$10\"),0)),0)","v":0},null,null,{"$f":"IFERROR(INDEX(INDIRECT(\"'\"&A86&\"'!$18:$50\"),MATCH($DP$1,INDIRECT(\"'\"&A86&\"'!$A$18:$A$50\"),0),MATCH(Parts!$B86,INDIRECT(\"'\"&A86&\"'!$10:$10\"),0)),0)","v":0},null,null,{"$f":"IFERROR(INDEX(INDIRECT(\"'\"&A86&\"'!$18:$50\"),MATCH($DS$1,INDIRECT(\"'\"&A86&\"'!$A$18:$A$50\"),0),MATCH(Parts!$B86,INDIRECT(\"'\"&A86&\"'!$10:$10\"),0)),0)","v":0},null,null,{"$f":"IFERROR(INDEX(INDIRECT(\"'\"&A86&\"'!$18:$50\"),MATCH($DV$1,INDIRECT(\"'\"&A86&\"'!$A$18:$A$50\"),0),MATCH(Parts!$B86,INDIRECT(\"'\"&A86&\"'!$10:$10\"),0)),0)","v":0},null,null,{"$f":"IFERROR(INDEX(INDIRECT(\"'\"&A86&\"'!$18:$50\"),MATCH($DY$1,INDIRECT(\"'\"&A86&\"'!$A$18:$A$50\"),0),MATCH(Parts!$B86,INDIRECT(\"'\"&A86&\"'!$10:$10\"),0)),0)","v":0},null,null,{"$f":"IFERROR(INDEX(INDIRECT(\"'\"&A86&\"'!$18:$50\"),MATCH($EB$1,INDIRECT(\"'\"&A86&\"'!$A$18:$A$50\"),0),MATCH(Parts!$B86,INDIRECT(\"'\"&A86&\"'!$10:$10\"),0)),0)","v":0},null,null,{"$f":"IFERROR(INDEX(INDIRECT(\"'\"&A86&\"'!$18:$50\"),MATCH($EE$1,INDIRECT(\"'\"&A86&\"'!$A$18:$A$50\"),0),MATCH(Parts!$B86,INDIRECT(\"'\"&A86&\"'!$10:$10\"),0)),0)","v":0},null,null,{"$f":"IFERROR(INDEX(INDIRECT(\"'\"&A86&\"'!$18:$50\"),MATCH($EH$1,INDIRECT(\"'\"&A86&\"'!$A$18:$A$50\"),0),MATCH(Parts!$B86,INDIRECT(\"'\"&A86&\"'!$10:$10\"),0)),0)","v":0},null,null,{"$f":"IFERROR(INDEX(INDIRECT(\"'\"&A86&\"'!$18:$50\"),MATCH($EK$1,INDIRECT(\"'\"&A86&\"'!$A$18:$A$50\"),0),MATCH(Parts!$B86,INDIRECT(\"'\"&A86&\"'!$10:$10\"),0)),0)","v":0}]
[{"$f":"PQS!A89","v":"Solar w battery"},{"$f":"PQS!B89","v":"E003/028"},{"$f":"PQS!E89","v":"VC 200-1"},{"$f":"PQS!P89","v":"€"},270,"Compressor Danfoss BD35F, 125.00€",{"$f":"IFERROR(INDEX(INDIRECT(\"'\"&A87&\"'!$18:$50\"),MATCH(Parts!F$1,INDIRECT(\"'\"&A87&\"'!$A$18:$A$50\"),0),MATCH(Parts!$B87,INDIRECT(\"'\"&A87&\"'!$10:$10\"),0)),0)","v":1},125,"Thermostat AT-5BQ8L-1PS, 50.00€",{"$f":"IFERROR(INDEX(INDIRECT(\"'\"&A87&\"'!$18:$50\"),MATCH($I$1,INDIRECT(\"'\"&A87&\"'!$A$18:$A$50\"),0),MATCH(Parts!$B87,INDIRECT(\"'\"&A87&\"'!$10:$10\"),0)),0)","v":1},50,"Compressor controller 101N0210, 95.00€",{"$f":"IFERROR(INDEX(INDIRECT(\"'\"&A87&\"'!$18:$50\"),MATCH($L$1,INDIRECT(\"'\"&A87&\"'!$A$18:$A$50\"),0),MATCH(Parts!$B87,INDIRECT(\"'\"&A87&\"'!$10:$10\"),0)),0)","v":1},95,null,{"$f":"IFERROR(INDEX(INDIRECT(\"'\"&A87&\"'!$18:$50\"),MATCH($O$1,INDIRECT(\"'\"&A87&\"'!$A$18:$A$50\"),0),MATCH(Parts!$B87,INDIRECT(\"'\"&A87&\"'!$10:$10\"),0)),0)","v":0},null,null,{"$f":"IFERROR(INDEX(INDIRECT(\"'\"&A87&\"'!$18:$50\"),MATCH($R$1,INDIRECT(\"'\"&A87&\"'!$A$18:$A$50\"),0),MATCH(Parts!$B87,INDIRECT(\"'\"&A87&\"'!$10:$10\"),0)),0)","v":0},null,null,{"$f":"IFERROR(INDEX(INDIRECT(\"'\"&A87&\"'!$18:$50\"),MATCH($U$1,INDIRECT(\"'\"&A87&\"'!$A$18:$A$50\"),0),MATCH(Parts!$B87,INDIRECT(\"'\"&A87&\"'!$10:$10\"),0)),0)","v":0},null,null,{"$f":"IFERROR(INDEX(INDIRECT(\"'\"&A87&\"'!$18:$50\"),MATCH($X$1,INDIRECT(\"'\"&A87&\"'!$A$18:$A$50\"),0),MATCH(Parts!$B87,INDIRECT(\"'\"&A87&\"'!$10:$10\"),0)),0)","v":0},null,null,{"$f":"IFERROR(INDEX(INDIRECT(\"'\"&A87&\"'!$18:$50\"),MATCH($AA$1,INDIRECT(\"'\"&A87&\"'!$A$18:$A$50\"),0),MATCH(Parts!$B87,INDIRECT(\"'\"&A87&\"'!$10:$10\"),0)),0)","v":0},null,null,{"$f":"IFERROR(INDEX(INDIRECT(\"'\"&A87&\"'!$18:$50\"),MATCH($AD$1,INDIRECT(\"'\"&A87&\"'!$A$18:$A$50\"),0),MATCH(Parts!$B87,INDIRECT(\"'\"&A87&\"'!$10:$10\"),0)),0)","v":0},null,null,{"$f":"IFERROR(INDEX(INDIRECT(\"'\"&A87&\"'!$18:$50\"),MATCH($AG$1,INDIRECT(\"'\"&A87&\"'!$A$18:$A$50\"),0),MATCH(Parts!$B87,INDIRECT(\"'\"&A87&\"'!$10:$10\"),0)),0)","v":0},null,null,{"$f":"IFERROR(INDEX(INDIRECT(\"'\"&A87&\"'!$18:$50\"),MATCH($AJ$1,INDIRECT(\"'\"&A87&\"'!$A$18:$A$50\"),0),MATCH(Parts!$B87,INDIRECT(\"'\"&A87&\"'!$10:$10\"),0)),0)","v":0},null,null,{"$f":"IFERROR(INDEX(INDIRECT(\"'\"&A87&\"'!$18:$50\"),MATCH($AM$1,INDIRECT(\"'\"&A87&\"'!$A$18:$A$50\"),0),MATCH(Parts!$B87,INDIRECT(\"'\"&A87&\"'!$10:$10\"),0)),0)","v":0},null,null,{"$f":"IFERROR(INDEX(INDIRECT(\"'\"&A87&\"'!$18:$50\"),MATCH($AP$1,INDIRECT(\"'\"&A87&\"'!$A$18:$A$50\"),0),MATCH(Parts!$B87,INDIRECT(\"'\"&A87&\"'!$10:$10\"),0)),0)","v":0},null,null,{"$f":"IFERROR(INDEX(INDIRECT(\"'\"&A87&\"'!$18:$50\"),MATCH($AS$1,INDIRECT(\"'\"&A87&\"'!$A$18:$A$50\"),0),MATCH(Parts!$B87,INDIRECT(\"'\"&A87&\"'!$10:$10\"),0)),0)","v":0},null,null,{"$f":"IFERROR(INDEX(INDIRECT(\"'\"&A87&\"'!$18:$50\"),MATCH($AV$1,INDIRECT(\"'\"&A87&\"'!$A$18:$A$50\"),0),MATCH(Parts!$B87,INDIRECT(\"'\"&A87&\"'!$10:$10\"),0)),0)","v":0},null,null,{"$f":"IFERROR(INDEX(INDIRECT(\"'\"&A87&\"'!$18:$50\"),MATCH($AY$1,INDIRECT(\"'\"&A87&\"'!$A$18:$A$50\"),0),MATCH(Parts!$B87,INDIRECT(\"'\"&A87&\"'!$10:$10\"),0)),0)","v":0},null,null,{"$f":"IFERROR(INDEX(INDIRECT(\"'\"&A87&\"'!$18:$50\"),MATCH($BB$1,INDIRECT(\"'\"&A87&\"'!$A$18:$A$50\"),0),MATCH(Parts!$B87,INDIRECT(\"'\"&A87&\"'!$10:$10\"),0)),0)","v":0},null,null,{"$f":"IFERROR(INDEX(INDIRECT(\"'\"&A87&\"'!$18:$50\"),MATCH($BE$1,INDIRECT(\"'\"&A87&\"'!$A$18:$A$50\"),0),MATCH(Parts!$B87,INDIRECT(\"'\"&A87&\"'!$10:$10\"),0)),0)","v":0},null,null,{"$f":"IFERROR(INDEX(INDIRECT(\"'\"&A87&\"'!$18:$50\"),MATCH($BH$1,INDIRECT(\"'\"&A87&\"'!$A$18:$A$50\"),0),MATCH(Parts!$B87,INDIRECT(\"'\"&A87&\"'!$10:$10\"),0)),0)","v":0},null,null,{"$f":"IFERROR(INDEX(INDIRECT(\"'\"&A87&\"'!$18:$50\"),MATCH($BK$1,INDIRECT(\"'\"&A87&\"'!$A$18:$A$50\"),0),MATCH(Parts!$B87,INDIRECT(\"'\"&A87&\"'!$10:$10\"),0)),0)","v":0},null,null,{"$f":"IFERROR(INDEX(INDIRECT(\"'\"&A87&\"'!$18:$50\"),MATCH($BN$1,INDIRECT(\"'\"&A87&\"'!$A$18:$A$50\"),0),MATCH(Parts!$B87,INDIRECT(\"'\"&A87&\"'!$10:$10\"),0)),0)","v":0},null,null,{"$f":"IFERROR(INDEX(INDIRECT(\"'\"&A87&\"'!$18:$50\"),MATCH($BQ$1,INDIRECT(\"'\"&A87&\"'!$A$18:$A$50\"),0),MATCH(Parts!$B87,INDIRECT(\"'\"&A87&\"'!$10:$10\"),0)),0)","v":0},null,null,{"$f":"IFERROR(INDEX(INDIRECT(\"'\"&A87&\"'!$18:$50\"),MATCH($BT$1,INDIRECT(\"'\"&A87&\"'!$A$18:$A$50\"),0),MATCH(Parts!$B87,INDIRECT(\"'\"&A87&\"'!$10:$10\"),0)),0)","v":0},null,null,{"$f":"IFERROR(INDEX(INDIRECT(\"'\"&A87&\"'!$18:$50\"),MATCH($BW$1,INDIRECT(\"'\"&A87&\"'!$A$18:$A$50\"),0),MATCH(Parts!$B87,INDIRECT(\"'\"&A87&\"'!$10:$10\"),0)),0)","v":0},null,null,{"$f":"IFERROR(INDEX(INDIRECT(\"'\"&A87&\"'!$18:$50\"),MATCH($BZ$1,INDIRECT(\"'\"&A87&\"'!$A$18:$A$50\"),0),MATCH(Parts!$B87,INDIRECT(\"'\"&A87&\"'!$10:$10\"),0)),0)","v":0},null,null,{"$f":"IFERROR(INDEX(INDIRECT(\"'\"&A87&\"'!$18:$50\"),MATCH($CC$1,INDIRECT(\"'\"&A87&\"'!$A$18:$A$50\"),0),MATCH(Parts!$B87,INDIRECT(\"'\"&A87&\"'!$10:$10\"),0)),0)","v":0},null,null,{"$f":"IFERROR(INDEX(INDIRECT(\"'\"&A87&\"'!$18:$50\"),MATCH($CF$1,INDIRECT(\"'\"&A87&\"'!$A$18:$A$50\"),0),MATCH(Parts!$B87,INDIRECT(\"'\"&A87&\"'!$10:$10\"),0)),0)","v":0},null,null,{"$f":"IFERROR(INDEX(INDIRECT(\"'\"&A87&\"'!$18:$50\"),MATCH($CI$1,INDIRECT(\"'\"&A87&\"'!$A$18:$A$50\"),0),MATCH(Parts!$B87,INDIRECT(\"'\"&A87&\"'!$10:$10\"),0)),0)","v":0},null,null,{"$f":"IFERROR(INDEX(INDIRECT(\"'\"&A87&\"'!$18:$50\"),MATCH($CL$1,INDIRECT(\"'\"&A87&\"'!$A$18:$A$50\"),0),MATCH(Parts!$B87,INDIRECT(\"'\"&A87&\"'!$10:$10\"),0)),0)","v":0},null,null,{"$f":"IFERROR(INDEX(INDIRECT(\"'\"&A87&\"'!$18:$50\"),MATCH($CO$1,INDIRECT(\"'\"&A87&\"'!$A$18:$A$50\"),0),MATCH(Parts!$B87,INDIRECT(\"'\"&A87&\"'!$10:$10\"),0)),0)","v":0},null,null,{"$f":"IFERROR(INDEX(INDIRECT(\"'\"&A87&\"'!$18:$50\"),MATCH($CR$1,INDIRECT(\"'\"&A87&\"'!$A$18:$A$50\"),0),MATCH(Parts!$B87,INDIRECT(\"'\"&A87&\"'!$10:$10\"),0)),0)","v":0},null,null,{"$f":"IFERROR(INDEX(INDIRECT(\"'\"&A87&\"'!$18:$50\"),MATCH($CU$1,INDIRECT(\"'\"&A87&\"'!$A$18:$A$50\"),0),MATCH(Parts!$B87,INDIRECT(\"'\"&A87&\"'!$10:$10\"),0)),0)","v":0},null,null,{"$f":"IFERROR(INDEX(INDIRECT(\"'\"&A87&\"'!$18:$50\"),MATCH($CX$1,INDIRECT(\"'\"&A87&\"'!$A$18:$A$50\"),0),MATCH(Parts!$B87,INDIRECT(\"'\"&A87&\"'!$10:$10\"),0)),0)","v":0},null,null,{"$f":"IFERROR(INDEX(INDIRECT(\"'\"&A87&\"'!$18:$50\"),MATCH($DA$1,INDIRECT(\"'\"&A87&\"'!$A$18:$A$50\"),0),MATCH(Parts!$B87,INDIRECT(\"'\"&A87&\"'!$10:$10\"),0)),0)","v":0},null,null,{"$f":"IFERROR(INDEX(INDIRECT(\"'\"&A87&\"'!$18:$50\"),MATCH($DD$1,INDIRECT(\"'\"&A87&\"'!$A$18:$A$50\"),0),MATCH(Parts!$B87,INDIRECT(\"'\"&A87&\"'!$10:$10\"),0)),0)","v":0},null,null,{"$f":"IFERROR(INDEX(INDIRECT(\"'\"&A87&\"'!$18:$50\"),MATCH($DG$1,INDIRECT(\"'\"&A87&\"'!$A$18:$A$50\"),0),MATCH(Parts!$B87,INDIRECT(\"'\"&A87&\"'!$10:$10\"),0)),0)","v":0},null,null,{"$f":"IFERROR(INDEX(INDIRECT(\"'\"&A87&\"'!$18:$50\"),MATCH($DJ$1,INDIRECT(\"'\"&A87&\"'!$A$18:$A$50\"),0),MATCH(Parts!$B87,INDIRECT(\"'\"&A87&\"'!$10:$10\"),0)),0)","v":0},null,null,{"$f":"IFERROR(INDEX(INDIRECT(\"'\"&A87&\"'!$18:$50\"),MATCH($DM$1,INDIRECT(\"'\"&A87&\"'!$A$18:$A$50\"),0),MATCH(Parts!$B87,INDIRECT(\"'\"&A87&\"'!$10:$10\"),0)),0)","v":0},null,null,{"$f":"IFERROR(INDEX(INDIRECT(\"'\"&A87&\"'!$18:$50\"),MATCH($DP$1,INDIRECT(\"'\"&A87&\"'!$A$18:$A$50\"),0),MATCH(Parts!$B87,INDIRECT(\"'\"&A87&\"'!$10:$10\"),0)),0)","v":0},null,null,{"$f":"IFERROR(INDEX(INDIRECT(\"'\"&A87&\"'!$18:$50\"),MATCH($DS$1,INDIRECT(\"'\"&A87&\"'!$A$18:$A$50\"),0),MATCH(Parts!$B87,INDIRECT(\"'\"&A87&\"'!$10:$10\"),0)),0)","v":0},null,null,{"$f":"IFERROR(INDEX(INDIRECT(\"'\"&A87&\"'!$18:$50\"),MATCH($DV$1,INDIRECT(\"'\"&A87&\"'!$A$18:$A$50\"),0),MATCH(Parts!$B87,INDIRECT(\"'\"&A87&\"'!$10:$10\"),0)),0)","v":0},null,null,{"$f":"IFERROR(INDEX(INDIRECT(\"'\"&A87&\"'!$18:$50\"),MATCH($DY$1,INDIRECT(\"'\"&A87&\"'!$A$18:$A$50\"),0),MATCH(Parts!$B87,INDIRECT(\"'\"&A87&\"'!$10:$10\"),0)),0)","v":0},null,null,{"$f":"IFERROR(INDEX(INDIRECT(\"'\"&A87&\"'!$18:$50\"),MATCH($EB$1,INDIRECT(\"'\"&A87&\"'!$A$18:$A$50\"),0),MATCH(Parts!$B87,INDIRECT(\"'\"&A87&\"'!$10:$10\"),0)),0)","v":0},null,null,{"$f":"IFERROR(INDEX(INDIRECT(\"'\"&A87&\"'!$18:$50\"),MATCH($EE$1,INDIRECT(\"'\"&A87&\"'!$A$18:$A$50\"),0),MATCH(Parts!$B87,INDIRECT(\"'\"&A87&\"'!$10:$10\"),0)),0)","v":0},null,null,{"$f":"IFERROR(INDEX(INDIRECT(\"'\"&A87&\"'!$18:$50\"),MATCH($EH$1,INDIRECT(\"'\"&A87&\"'!$A$18:$A$50\"),0),MATCH(Parts!$B87,INDIRECT(\"'\"&A87&\"'!$10:$10\"),0)),0)","v":0},null,null,{"$f":"IFERROR(INDEX(INDIRECT(\"'\"&A87&\"'!$18:$50\"),MATCH($EK$1,INDIRECT(\"'\"&A87&\"'!$A$18:$A$50\"),0),MATCH(Parts!$B87,INDIRECT(\"'\"&A87&\"'!$10:$10\"),0)),0)","v":0}]
["Solar system","SP1","Small solar array","$",1500]
["Solar system","SP2","Med solar array","$",2000]
["Solar system","SP3","Large solar array","$",3000]
["Price of solar system depending on country input",null,null,"$",{"$f":"IF('Country Input'!C61=\"None\",0,IF('Country Input'!C61=\"Small\",Parts!E88,IF('Country Input'!C61=\"Med\",Parts!E89,Parts!E90)))","v":1500}]
[null,null,"Solar battery","$",268.33]

{"sheet":"Calculations","index":30,"n_rows":112,"n_cols":124,"rows_kept":112,"cut":false,"hidden":true,"merged":[[2,45,2,49],[2,51,2,55],[2,11,2,15],[2,28,2,31],[2,39,2,43],[2,23,2,26],[2,33,2,37],[2,16,2,21]]}
[null,"Calculations"]
[]
[null,null,null,null,null,null,null,null,null,null,null,"Initial capital costs",null,null,null,null,"Annual recurrent costs",null,null,null,null,null,null,"Total costs per liter ",null,null,null,null,"Annual costs per liter ",null,null,null,null,"Total costs for equipment needed (based total vaccine volume requirements per delivery)",null,null,null,null,null,"Total annual costs per liter vaccines stored (based total vaccine volume requirements per year)",null,null,null,null,null,"Total costs for equipment needed (based total vaccine volume requirements per delivery)",null,null,null,null,null,"Total annual costs per liter vaccines stored (based total vaccine volume requirements per year)",null,null,null,null,null,null,"Cost with inflation",1,2,3,4,5,6,7,8,9,10,11,12,13,14,15,16,17,18,19,20,null,"Net present cost",1,2,3,4,5,6,7,8,9,10,11,12,13,14,15,16,17,18,19,20,null,null,"Cumulative Cash Flow",1,2,3,4,5,6,7,8,9,10,11,12,13,14,15,16,17,18,19,20]
["Technology","PQS Number","Model Number","Supplier","Refrigerator type","Vaccine Storage Capacity (liters)","Freezer Capacity (liters)","CCEOP","Useful\nLife","Solar Panel Useful Life","Solar Battery Useful Life","Refrigerator and install equipment*","Installation","Spare parts over lifetime","Total Capex","Annual amortization of capital costs","Annual Fuel (kerosene, gas, electricity)","Annual Routine Maintenance2","Annual Major Repairs","Total Opex","Total annual recurrent costs","Total annual costs",null,{"$f":"E4","v":"Refrigerator type"},"Total capital costs per liter","Total recurrent costs per liter","Total  costs per liter",null,{"$f":"E4","v":"Refrigerator type"},"Total annual amortization of capital costs per liter","Total annual recurrent costs per liter","Total annual costs per liter",null,{"$f":"E4","v":"Refrigerator type"},"Number of refrigerators required","Total capital costs ","Total recurrent costs","Total costs for equipment needed",null,{"$f":"AC4","v":"Refrigerator type"},"Number of refrigerators required","Total annual amortization of capital costs per liter vaccine stored","Total annual recurrent costs per liter vaccine stored","Total annual costs per liter vaccine stored",null,{"$f":"U4","v":"Total annual recurrent costs"},"Number of refrigerators required","Total capital costs ","Total recurrent costs","Total costs for equipment needed",null,{"$f":"AN4","v":"Refrigerator type"},"Number of refrigerators required","Total annual amortization of capital costs per liter vaccine stored","Total annual recurrent costs per liter vaccine stored","Total annual costs per liter vaccine stored",null,null,"Refrigerator Type","Year 1","Year 2","Year 3","Year 4","Year 5","Year 6","Year 7","Year 8","Year 9","Year 10","Year 11","Year 12","Year 13","Year 14","Year 15","Year 16","Year 17","Year 18","Year 19","Year 20",null,"Refrigerator Type","Year 1","Year 2","Year 3","Year 4","Year 5","Year 6","Year 7","Year 8","Year 9","Year 10","Year 11","Year 12","Year 13","Year 14","Year 15","Year 16","Year 17","Year 18","Year 19","Year 20","Net Present Cost (Driven by years of planning)",null,"Refrigerator Type","Year 1","Year 2","Year 3","Year 4","Year 5","Year 6","Year 7","Year 8","Year 9","Year 10","Year 11","Year 12","Year 13","Year 14","Year 15","Year 16","Year 17","Year 18","Year 19","Year 20"]
[{"$f":"PQS!A5","v":"Gas"},{"$f":"PQS!B5","v":"E3/88-M"},{"$f":"PQS!E5","v":"RCW 50 EG"},{"$f":"PQS!F5","v":"B Medical"},{"$f":"PQS!D5","v":"B Medical RCW 50 EG"},{"$f":"VLOOKUP(E5,PQS!$D$5:$K$107,COLUMN(PQS!$I$3)-COLUMN(PQS!$D$3)+1,FALSE)","v":24},{"$f":"VLOOKUP(E5,PQS!$D$5:$K$107,COLUMN(PQS!$J$3)-COLUMN(PQS!$D$3)+1,FALSE)","v":0},{"$f":"VLOOKUP(E5,PQS!$D$5:$K$107,COLUMN(PQS!$G$3)-COLUMN(PQS!$D$3)+1,FALSE)","v":"No"},{"$f":"HLOOKUP(B5,INDIRECT(\"'\"&A5&\"'!$10:$15\"),ROW('Technology template'!$A$11)-ROW('Technology template'!$A$10)+1,FALSE)","v":10},{"$f":"HLOOKUP(B5,INDIRECT(\"'\"&A5&\"'!$10:$15\"),ROW('Technology template'!$A$12)-ROW('Technology template'!$A$10)+1,FALSE)","v":0},{"$f":"HLOOKUP(B5,INDIRECT(\"'\"&A5&\"'!$10:$15\"),ROW('Technology template'!$A$13)-ROW('Technology template'!$A$10)+1,FALSE)","v":0},{"$f":"VLOOKUP(B5,PQS!$B:$Q,MATCH(PQS!$Q$3,PQS!$B$3:$Q$3,0),FALSE)*(1+'Country Input'!$C$47)+HLOOKUP(B5,INDIRECT(\"'\"&A5&\"'!$10:$15\"),ROW('Technology template'!$A$14)-ROW('Technology template'!$A$10)+1,FALSE)*(1+'Country Input'!$C$47)","v":2171.6826999999998},{"$f":"HLOOKUP(B5,INDIRECT(\"'\"&A5&\"'!$10:$80\"),MATCH('Technology template'!$A$27,INDIRECT(\"'\"&A5&\"'!$A$10:$A$80\"),0),FALSE)+'Labor and Maintenance '!$E$21","v":441},{"$f":"VLOOKUP(B5,PQS!B:T,MATCH(PQS!$T$3,PQS!$B$3:$T$3,0),FALSE)*(1+'Country Input'!$C$47)","v":65.762200000000007},{"$f":"L5+M5+N5","v":2678.4449},{"$f":"O5/I5","v":267.84449000000001},{"$f":"VLOOKUP(B5,PQS!$B:$AE,COLUMN(PQS!AD3)-1,FALSE)","v":360.69300000000004},{"$f":"IFERROR(1/HLOOKUP(B5,INDIRECT(\"'\"&A5&\"'!$10:$80\"),MATCH('Technology template'!$A$31,INDIRECT(\"'\"&A5&\"'!$A$10:$A$80\"),0),FALSE)*HLOOKUP(B5,INDIRECT(\"'\"&A5&\"'!$10:$80\"),MATCH('Technology template'!$A$41,INDIRECT(\"'\"&A5&\"'!$A$10:$A$80\"),0),FALSE),0)*TechnicianHourlyWage+IF(A5=\"Solar w Battery\",1/'Labor and Maintenance '!$E$53*'Labor and Maintenance '!$D$53,0)+IF(A5=\"LT passive\", 1/'Labor and Maintenance '!$E$81*'Labor and Maintenance '!$D$81,0)","v":24},{"$f":"IFERROR(1/HLOOKUP(B5,INDIRECT(\"'\"&A5&\"'!$10:$80\"),MATCH('Technology template'!$A$34,INDIRECT(\"'\"&A5&\"'!$A$10:$A$80\"),0),FALSE)*(HLOOKUP(B5,INDIRECT(\"'\"&A5&\"'!$10:$80\"),MATCH('Technology template'!$A$44,INDIRECT(\"'\"&A5&\"'!$A10:$A$80\"),0),FALSE)*TechnicianHourlyWage+RemoteTravelCostPerDay),0)+IFERROR(1/HLOOKUP(B5,INDIRECT(\"'\"&A5&\"'!$10:$80\"),MATCH('Technology template'!$A$35,INDIRECT(\"'\"&A5&\"'!$A$10:$A$80\"),0),FALSE)*(HLOOKUP(B5,INDIRECT(\"'\"&A5&\"'!$10:$80\"),MATCH('Technology template'!$A$45,INDIRECT(\"'\"&A5&\"'!$A10:$A$80\"),0),FALSE)*TechnicianHourlyWage+RemoteTravelCostPerDay),0)+IFERROR(1/HLOOKUP(B5,INDIRECT(\"'\"&A5&\"'!$10:$80\"),MATCH('Technology template'!$A$37,INDIRECT(\"'\"&A5&\"'!$A$10:$A$80\"),0),FALSE)*(HLOOKUP(B5,INDIRECT(\"'\"&A5&\"'!$10:$80\"),MATCH('Technology template'!$A$46,INDIRECT(\"'\"&A5&\"'!$A10:$A$80\"),0),FALSE)*TechnicianHourlyWage+'Labor and Maintenance '!$B$8),0)","v":34},{"$f":"SUM(Q5:S5)*I5","v":4186.93},{"$f":"SUM(Q5:S5)","v":418.69300000000004},{"$f":"P5+U5","v":686.53749000000005},null,{"$f":"E5","v":"B Medical RCW 50 EG"},{"$f":"IF(F5=0,O5/G5,O5/F5)","v":111.60187083333334},{"$f":"IF(F5=0,T5/G5,T5/F5)","v":174.45541666666668},{"$f":"Y5+Z5","v":286.05728750000003},null,"B Medical RCW 50 EG",{"$f":"IF(F5=0, P5/G5, P5/F5)","v":11.160187083333334},{"$f":"IF(F5=0, U5/G5, U5/F5)","v":17.445541666666667},{"$f":"IF(F5=0, V5/G5, V5/F5)","v":28.605728750000001},null,"B Medical RCW 50 EG",{"$f":"ROUNDUP(LitersPerDelivery/F5,0)","v":6},{"$f":"AI5*O5","v":16070.669399999999},{"$f":"AI5*T5","v":25121.58},{"$f":"AJ5+AK5","v":41192.249400000001},null,{"$f":"E5","v":"B Medical RCW 50 EG"},{"$f":"ROUNDUP(LitersPerDelivery/F5,0)","v":6},{"$f":"AO5*AD5","v":66.961122500000002},{"$f":"AO5*AE5","v":104.67325},{"$f":"+AP5+AQ5","v":171.63437249999998},null,{"$f":"E5","v":"B Medical RCW 50 EG"},{"$f":"IF(F5=0, 'Country Input'!$D$7, ROUNDUP(LitersPerFacility/F5,0)*'Country Input'!$D$7)","v":10},{"$f":"AU5*O5","v":26784.449000000001},{"$f":"AU5*(SUM(Q5:S5))","v":4186.93},{"$f":"AV5+AW5","v":30971.379000000001},null,{"$f":"E5","v":"B Medical RCW 50 EG"},{"$f":"ROUNDUP(LitersPerFacility/F5,0)*'Country Input'!$D$7*ROUNDUP('Total Solution Costs'!$B$2/Calculations!I5,0)","v":10},{"$f":"AV5/(F5*AU5)","v":111.60187083333334},{"$f":"AW5/(F5*AU5)","v":17.445541666666667},{"$f":"BB5+BC5","v":129.04741250000001},null,null,{"$f":"E5","v":"B Medical RCW 50 EG"},{"$f":"(($U5+($O5)*IF(MOD(BH$3,$I5)=1,1,0)+Parts!$E$91*IF($J5=0,0,IF(MOD(BH$3,$I5)=1,IF(PQS!$R5=\"NO\",1,0),IF(MOD(BH$3,Calculations!$J5)=1,1,0)))+Parts!$E$92*IF(Calculations!$K5=0,0,IF(MOD(BH$3,$I5)=1,0,IF(MOD(BH$3,Calculations!$K5)=1,1,0))))*$AU5)*(1+'Country Input'!$C$45)^(Calculations!BH$3-$BH$3)+TrainingCost","v":30971.379000000001},{"$f":"(($U5+($O5)*IF(MOD(BI$3,$I5)=1,1,0)+Parts!$E$91*IF($J5=0,0,IF(MOD(BI$3,$I5)=1,IF(PQS!$R5=\"NO\",1,0),IF(MOD(BI$3,Calculations!$J5)=1,1,0)))+Parts!$E$92*IF(Calculations!$K5=0,0,IF(MOD(BI$3,$I5)=1,0,IF(MOD(BI$3,Calculations!$K5)=1,1,0))))*$AU5)*(1+'Country Input'!$C$45)^(Calculations!BI$3-$BH$3)","v":4186.93},{"$f":"(($U5+($O5)*IF(MOD(BJ$3,$I5)=1,1,0)+Parts!$E$91*IF($J5=0,0,IF(MOD(BJ$3,$I5)=1,IF(PQS!$R5=\"NO\",1,0),IF(MOD(BJ$3,Calculations!$J5)=1,1,0)))+Parts!$E$92*IF(Calculations!$K5=0,0,IF(MOD(BJ$3,$I5)=1,0,IF(MOD(BJ$3,Calculations!$K5)=1,1,0))))*$AU5)*(1+'Country Input'!$C$45)^(Calculations!BJ$3-$BH$3)","v":4186.93},{"$f":"(($U5+($O5)*IF(MOD(BK$3,$I5)=1,1,0)+Parts!$E$91*IF($J5=0,0,IF(MOD(BK$3,$I5)=1,IF(PQS!$R5=\"NO\",1,0),IF(MOD(BK$3,Calculations!$J5)=1,1,0)))+Parts!$E$92*IF(Calculations!$K5=0,0,IF(MOD(BK$3,$I5)=1,0,IF(MOD(BK$3,Calculations!$K5)=1,1,0))))*$AU5)*(1+'Country Input'!$C$45)^(Calculations!BK$3-$BH$3)","v":4186.93},{"$f":"(($U5+($O5)*IF(MOD(BL$3,$I5)=1,1,0)+Parts!$E$91*IF($J5=0,0,IF(MOD(BL$3,$I5)=1,IF(PQS!$R5=\"NO\",1,0),IF(MOD(BL$3,Calculations!$J5)=1,1,0)))+Parts!$E$92*IF(Calculations!$K5=0,0,IF(MOD(BL$3,$I5)=1,0,IF(MOD(BL$3,Calculations!$K5)=1,1,0))))*$AU5)*(1+'Country Input'!$C$45)^(Calculations!BL$3-$BH$3)","v":4186.93},{"$f":"(($U5+($O5)*IF(MOD(BM$3,$I5)=1,1,0)+Parts!$E$91*IF($J5=0,0,IF(MOD(BM$3,$I5)=1,IF(PQS!$R5=\"NO\",1,0),IF(MOD(BM$3,Calculations!$J5)=1,1,0)))+Parts!$E$92*IF(Calculations!$K5=0,0,IF(MOD(BM$3,$I5)=1,0,IF(MOD(BM$3,Calculations!$K5)=1,1,0))))*$AU5)*(1+'Country Input'!$C$45)^(Calculations!BM$3-$BH$3)","v":4186.93},{"$f":"(($U5+($O5)*IF(MOD(BN$3,$I5)=1,1,0)+Parts!$E$91*IF($J5=0,0,IF(MOD(BN$3,$I5)=1,IF(PQS!$R5=\"NO\",1,0),IF(MOD(BN$3,Calculations!$J5)=1,1,0)))+Parts!$E$92*IF(Calculations!$K5=0,0,IF(MOD(BN$3,$I5)=1,0,IF(MOD(BN$3,Calculations!$K5)=1,1,0))))*$AU5)*(1+'Country Input'!$C$45)^(Calculations!BN$3-$BH$3)","v":4186.93},{"$f":"(($U5+($O5)*IF(MOD(BO$3,$I5)=1,1,0)+Parts!$E$91*IF($J5=0,0,IF(MOD(BO$3,$I5)=1,IF(PQS!$R5=\"NO\",1,0),IF(MOD(BO$3,Calculations!$J5)=1,1,0)))+Parts!$E$92*IF(Calculations!$K5=0,0,IF(MOD(BO$3,$I5)=1,0,IF(MOD(BO$3,Calculations!$K5)=1,1,0))))*$AU5)*(1+'Country Input'!$C$45)^(Calculations!BO$3-$BH$3)","v":4186.93},{"$f":"(($U5+($O5)*IF(MOD(BP$3,$I5)=1,1,0)+Parts!$E$91*IF($J5=0,0,IF(MOD(BP$3,$I5)=1,IF(PQS!$R5=\"NO\",1,0),IF(MOD(BP$3,Calculations!$J5)=1,1,0)))+Parts!$E$92*IF(Calculations!$K5=0,0,IF(MOD(BP$3,$I5)=1,0,IF(MOD(BP$3,Calculations!$K5)=1,1,0))))*$AU5)*(1+'Country Input'!$C$45)^(Calculations!BP$3-$BH$3)","v":4186.93},{"$f":"(($U5+($O5)*IF(MOD(BQ$3,$I5)=1,1,0)+Parts!$E$91*IF($J5=0,0,IF(MOD(BQ$3,$I5)=1,IF(PQS!$R5=\"NO\",1,0),IF(MOD(BQ$3,Calculations!$J5)=1,1,0)))+Parts!$E$92*IF(Calculations!$K5=0,0,IF(MOD(BQ$3,$I5)=1,0,IF(MOD(BQ$3,Calculations!$K5)=1,1,0))))*$AU5)*(1+'Country Input'!$C$45)^(Calculations!BQ$3-$BH$3)","v":4186.93},{"$f":"(($U5+($O5)*IF(MOD(BR$3,$I5)=1,1,0)+Parts!$E$91*IF($J5=0,0,IF(MOD(BR$3,$I5)=1,IF(PQS!$R5=\"NO\",1,0),IF(MOD(BR$3,Calculations!$J5)=1,1,0)))+Parts!$E$92*IF(Calculations!$K5=0,0,IF(MOD(BR$3,$I5)=1,0,IF(MOD(BR$3,Calculations!$K5)=1,1,0))))*$AU5)*(1+'Country Input'!$C$45)^(Calculations!BR$3-$BH$3)","v":30971.379000000001},{"$f":"(($U5+($O5)*IF(MOD(BS$3,$I5)=1,1,0)+Parts!$E$91*IF($J5=0,0,IF(MOD(BS$3,$I5)=1,IF(PQS!$R5=\"NO\",1,0),IF(MOD(BS$3,Calculations!$J5)=1,1,0)))+Parts!$E$92*IF(Calculations!$K5=0,0,IF(MOD(BS$3,$I5)=1,0,IF(MOD(BS$3,Calculations!$K5)=1,1,0))))*$AU5)*(1+'Country Input'!$C$45)^(Calculations!BS$3-$BH$3)","v":4186.93},{"$f":"(($U5+($O5)*IF(MOD(BT$3,$I5)=1,1,0)+Parts!$E$91*IF($J5=0,0,IF(MOD(BT$3,$I5)=1,IF(PQS!$R5=\"NO\",1,0),IF(MOD(BT$3,Calculations!$J5)=1,1,0)))+Parts!$E$92*IF(Calculations!$K5=0,0,IF(MOD(BT$3,$I5)=1,0,IF(MOD(BT$3,Calculations!$K5)=1,1,0))))*$AU5)*(1+'Country Input'!$C$45)^(Calculations!BT$3-$BH$3)","v":4186.93},{"$f":"(($U5+($O5)*IF(MOD(BU$3,$I5)=1,1,0)+Parts!$E$91*IF($J5=0,0,IF(MOD(BU$3,$I5)=1,IF(PQS!$R5=\"NO\",1,0),IF(MOD(BU$3,Calculations!$J5)=1,1,0)))+Parts!$E$92*IF(Calculations!$K5=0,0,IF(MOD(BU$3,$I5)=1,0,IF(MOD(BU$3,Calculations!$K5)=1,1,0))))*$AU5)*(1+'Country Input'!$C$45)^(Calculations!BU$3-$BH$3)","v":4186.93},{"$f":"(($U5+($O5)*IF(MOD(BV$3,$I5)=1,1,0)+Parts!$E$91*IF($J5=0,0,IF(MOD(BV$3,$I5)=1,IF(PQS!$R5=\"NO\",1,0),IF(MOD(BV$3,Calculations!$J5)=1,1,0)))+Parts!$E$92*IF(Calculations!$K5=0,0,IF(MOD(BV$3,$I5)=1,0,IF(MOD(BV$3,Calculations!$K5)=1,1,0))))*$AU5)*(1+'Country Input'!$C$45)^(Calculations!BV$3-$BH$3)","v":4186.93},{"$f":"(($U5+($O5)*IF(MOD(BW$3,$I5)=1,1,0)+Parts!$E$91*IF($J5=0,0,IF(MOD(BW$3,$I5)=1,IF(PQS!$R5=\"NO\",1,0),IF(MOD(BW$3,Calculations!$J5)=1,1,0)))+Parts!$E$92*IF(Calculations!$K5=0,0,IF(MOD(BW$3,$I5)=1,0,IF(MOD(BW$3,Calculations!$K5)=1,1,0))))*$AU5)*(1+'Country Input'!$C$45)^(Calculations!BW$3-$BH$3)","v":4186.93},{"$f":"(($U5+($O5)*IF(MOD(BX$3,$I5)=1,1,0)+Parts!$E$91*IF($J5=0,0,IF(MOD(BX$3,$I5)=1,IF(PQS!$R5=\"NO\",1,0),IF(MOD(BX$3,Calculations!$J5)=1,1,0)))+Parts!$E$92*IF(Calculations!$K5=0,0,IF(MOD(BX$3,$I5)=1,0,IF(MOD(BX$3,Calculations!$K5)=1,1,0))))*$AU5)*(1+'Country Input'!$C$45)^(Calculations!BX$3-$BH$3)","v":4186.93},{"$f":"(($U5+($O5)*IF(MOD(BY$3,$I5)=1,1,0)+Parts!$E$91*IF($J5=0,0,IF(MOD(BY$3,$I5)=1,IF(PQS!$R5=\"NO\",1,0),IF(MOD(BY$3,Calculations!$J5)=1,1,0)))+Parts!$E$92*IF(Calculations!$K5=0,0,IF(MOD(BY$3,$I5)=1,0,IF(MOD(BY$3,Calculations!$K5)=1,1,0))))*$AU5)*(1+'Country Input'!$C$45)^(Calculations!BY$3-$BH$3)","v":4186.93},{"$f":"(($U5+($O5)*IF(MOD(BZ$3,$I5)=1,1,0)+Parts!$E$91*IF($J5=0,0,IF(MOD(BZ$3,$I5)=1,IF(PQS!$R5=\"NO\",1,0),IF(MOD(BZ$3,Calculations!$J5)=1,1,0)))+Parts!$E$92*IF(Calculations!$K5=0,0,IF(MOD(BZ$3,$I5)=1,0,IF(MOD(BZ$3,Calculations!$K5)=1,1,0))))*$AU5)*(1+'Country Input'!$C$45)^(Calculations!BZ$3-$BH$3)","v":4186.93},{"$f":"(($U5+($O5)*IF(MOD(CA$3,$I5)=1,1,0)+Parts!$E$91*IF($J5=0,0,IF(MOD(CA$3,$I5)=1,IF(PQS!$R5=\"NO\",1,0),IF(MOD(CA$3,Calculations!$J5)=1,1,0)))+Parts!$E$92*IF(Calculations!$K5=0,0,IF(MOD(CA$3,$I5)=1,0,IF(MOD(CA$3,Calculations!$K5)=1,1,0))))*$AU5)*(1+'Country Input'!$C$45)^(Calculations!CA$3-$BH$3)","v":4186.93},null,{"$f":"E5","v":"B Medical RCW 50 EG"},{"$f":"BH5/((1+DiscountRate)^(COLUMN(CD5)-COLUMN($CD5)))","v":30971.379000000001},{"$f":"BI5/((1+DiscountRate)^(COLUMN(CE5)-COLUMN($CD5)))","v":4186.93},{"$f":"BJ5/((1+DiscountRate)^(COLUMN(CF5)-COLUMN($CD5)))","v":4186.93},{"$f":"BK5/((1+DiscountRate)^(COLUMN(CG5)-COLUMN($CD5)))","v":4186.93},{"$f":"BL5/((1+DiscountRate)^(COLUMN(CH5)-COLUMN($CD5)))","v":4186.93},{"$f":"BM5/((1+DiscountRate)^(COLUMN(CI5)-COLUMN($CD5)))","v":4186.93},{"$f":"BN5/((1+DiscountRate)^(COLUMN(CJ5)-COLUMN($CD5)))","v":4186.93},{"$f":"BO5/((1+DiscountRate)^(COLUMN(CK5)-COLUMN($CD5)))","v":4186.93},{"$f":"BP5/((1+DiscountRate)^(COLUMN(CL5)-COLUMN($CD5)))","v":4186.93},{"$f":"BQ5/((1+DiscountRate)^(COLUMN(CM5)-COLUMN($CD5)))","v":4186.93},{"$f":"BR5/((1+DiscountRate)^(COLUMN(CN5)-COLUMN($CD5)))","v":30971.379000000001},{"$f":"BS5/((1+DiscountRate)^(COLUMN(CO5)-COLUMN($CD5)))","v":4186.93},{"$f":"BT5/((1+DiscountRate)^(COLUMN(CP5)-COLUMN($CD5)))","v":4186.93},{"$f":"BU5/((1+DiscountRate)^(COLUMN(CQ5)-COLUMN($CD5)))","v":4186.93},{"$f":"BV5/((1+DiscountRate)^(COLUMN(CR5)-COLUMN($CD5)))","v":4186.93},{"$f":"BW5/((1+DiscountRate)^(COLUMN(CS5)-COLUMN($CD5)))","v":4186.93},{"$f":"BX5/((1+DiscountRate)^(COLUMN(CT5)-COLUMN($CD5)))","v":4186.93},{"$f":"BY5/((1+DiscountRate)^(COLUMN(CU5)-COLUMN($CD5)))","v":4186.93},{"$f":"BZ5/((1+DiscountRate)^(COLUMN(CV5)-COLUMN($CD5)))","v":4186.93},{"$f":"CA5/((1+DiscountRate)^(COLUMN(CW5)-COLUMN($CD5)))","v":4186.93},{"$f":"SUM(CD5:INDEX($CD5:$CW5,1,'Total Solution Costs'!$B$2))","v":68653.749000000011},null,{"$f":"CC5","v":"B Medical RCW 50 EG"},{"$f":"SUM($BH5:BH5)","v":30971.379000000001},{"$f":"SUM($BH5:BI5)","v":35158.309000000001},{"$f":"SUM($BH5:BJ5)","v":39345.239000000001},{"$f":"SUM($BH5:BK5)","v":43532.169000000002},{"$f":"SUM($BH5:BL5)","v":47719.099000000002},{"$f":"SUM($BH5:BM5)","v":51906.029000000002},{"$f":"SUM($BH5:BN5)","v":56092.959000000003},{"$f":"SUM($BH5:BO5)","v":60279.889000000003},{"$f":"SUM($BH5:BP5)","v":64466.819000000003},{"$f":"SUM($BH5:BQ5)","v":68653.749000000011},{"$f":"SUM($BH5:BR5)","v":99625.128000000012},{"$f":"SUM($BH5:BS5)","v":103812.05800000002},{"$f":"SUM($BH5:BT5)","v":107998.98800000001},{"$f":"SUM($BH5:BU5)","v":112185.91800000001},{"$f":"SUM($BH5:BV5)","v":116372.848},{"$f":"SUM($BH5:BW5)","v":120559.77799999999},{"$f":"SUM($BH5:BX5)","v":124746.70799999998},{"$f":"SUM($BH5:BY5)","v":128933.63799999998},{"$f":"SUM($BH5:BZ5)","v":133120.56799999997},{"$f":"SUM($BH5:CA5)","v":137307.49799999996}]
[{"$f":"PQS!A6","v":"Gas"},{"$f":"PQS!B6","v":"E3/84-M"},{"$f":"PQS!E6","v":"V 170 GE"},{"$f":"PQS!F6","v":"Sibir"},{"$f":"PQS!D6","v":"Sibir V 170 GE"},{"$f":"VLOOKUP(E6,PQS!$D$5:$K$107,COLUMN(PQS!$I$3)-COLUMN(PQS!$D$3)+1,FALSE)","v":55},{"$f":"VLOOKUP(E6,PQS!$D$5:$K$107,COLUMN(PQS!$J$3)-COLUMN(PQS!$D$3)+1,FALSE)","v":0},{"$f":"VLOOKUP(E6,PQS!$D$5:$K$107,COLUMN(PQS!$G$3)-COLUMN(PQS!$D$3)+1,FALSE)","v":"No"},{"$f":"HLOOKUP(B6,INDIRECT(\"'\"&A6&\"'!$10:$15\"),ROW('Technology template'!$A$11)-ROW('Technology template'!$A$10)+1,FALSE)","v":10},{"$f":"HLOOKUP(B6,INDIRECT(\"'\"&A6&\"'!$10:$15\"),ROW('Technology template'!$A$12)-ROW('Technology template'!$A$10)+1,FALSE)","v":0},{"$f":"HLOOKUP(B6,INDIRECT(\"'\"&A6&\"'!$10:$15\"),ROW('Technology template'!$A$13)-ROW('Technology template'!$A$10)+1,FALSE)","v":0},{"$f":"VLOOKUP(B6,PQS!$B:$Q,MATCH(PQS!$Q$3,PQS!$B$3:$Q$3,0),FALSE)*(1+'Country Input'!$C$47)+HLOOKUP(B6,INDIRECT(\"'\"&A6&\"'!$10:$15\"),ROW('Technology template'!$A$14)-ROW('Technology template'!$A$10)+1,FALSE)*(1+'Country Input'!$C$47)","v":1735.2297000000001},{"$f":"HLOOKUP(B6,INDIRECT(\"'\"&A6&\"'!$10:$80\"),MATCH('Technology template'!$A$27,INDIRECT(\"'\"&A6&\"'!$A$10:$A$80\"),0),FALSE)+'Labor and Maintenance '!$E$21","v":441},{"$f":"VLOOKUP(B6,PQS!B:T,MATCH(PQS!$T$3,PQS!$B$3:$T$3,0),FALSE)*(1+'Country Input'!$C$47)","v":121.76600000000001},{"$f":"L6+M6+N6","v":2297.9956999999999},{"$f":"O6/I6","v":229.79956999999999},{"$f":"VLOOKUP(B6,PQS!$B:$AE,COLUMN(PQS!AD4)-1,FALSE)","v":534.36},{"$f":"IFERROR(1/HLOOKUP(B6,INDIRECT(\"'\"&A6&\"'!$10:$80\"),MATCH('Technology template'!$A$31,INDIRECT(\"'\"&A6&\"'!$A$10:$A$80\"),0),FALSE)*HLOOKUP(B6,INDIRECT(\"'\"&A6&\"'!$10:$80\"),MATCH('Technology template'!$A$41,INDIRECT(\"'\"&A6&\"'!$A10:$A$80\"),0),FALSE),0)*TechnicianHourlyWage+IF(A6=\"Solar w Battery\",1/'Labor and Maintenance '!$E$53*'Labor and Maintenance '!$D$53,0)+IF(A6=\"LT passive\", 1/'Labor and Maintenance '!$E$81*'Labor and Maintenance '!$D$81,0)","v":24},{"$f":"IFERROR(1/HLOOKUP(B6,INDIRECT(\"'\"&A6&\"'!$10:$80\"),MATCH('Technology template'!$A$34,INDIRECT(\"'\"&A6&\"'!$A$10:$A$80\"),0),FALSE)*(HLOOKUP(B6,INDIRECT(\"'\"&A6&\"'!$10:$80\"),MATCH('Technology template'!$A$44,INDIRECT(\"'\"&A6&\"'!$A10:$A$80\"),0),FALSE)*TechnicianHourlyWage+RemoteTravelCostPerDay),0)+IFERROR(1/HLOOKUP(B6,INDIRECT(\"'\"&A6&\"'!$10:$80\"),MATCH('Technology template'!$A$35,INDIRECT(\"'\"&A6&\"'!$A$10:$A$80\"),0),FALSE)*(HLOOKUP(B6,INDIRECT(\"'\"&A6&\"'!$10:$80\"),MATCH('Technology template'!$A$45,INDIRECT(\"'\"&A6&\"'!$A10:$A$80\"),0),FALSE)*TechnicianHourlyWage+RemoteTravelCostPerDay),0)+IFERROR(1/HLOOKUP(B6,INDIRECT(\"'\"&A6&\"'!$10:$80\"),MATCH('Technology template'!$A$37,INDIRECT(\"'\"&A6&\"'!$A$10:$A$80\"),0),FALSE)*(HLOOKUP(B6,INDIRECT(\"'\"&A6&\"'!$10:$80\"),MATCH('Technology template'!$A$46,INDIRECT(\"'\"&A6&\"'!$A10:$A$80\"),0),FALSE)*TechnicianHourlyWage+'Labor and Maintenance '!$B$8),0)","v":34},{"$f":"SUM(Q6:S6)*I6","v":5923.6},592.36,822.15957000000003,null,{"$f":"E6","v":"Sibir V 170 GE"},{"$f":"IF(F6=0,O6/G6,O6/F6)","v":41.781739999999999},{"$f":"IF(F6=0,T6/G6,T6/F6)","v":107.70181818181818},{"$f":"Y6+Z6","v":149.48355818181818},null,"Sibir V 170 GE",{"$f":"IF(F6=0, P6/G6, P6/F6)","v":4.1781739999999994},{"$f":"IF(F6=0, U6/G6, U6/F6)","v":10.770181818181818},{"$f":"IF(F6=0, V6/G6, V6/F6)","v":14.948355818181819},null,"Sibir V 170 GE",3,6893.9871000000003,17770.800000000003,{"$f":"AJ6+AK6","v":24664.787100000001},null,"Sibir V 170 GE",3,12.534521999999999,32.310545454545455,{"$f":"+AP6+AQ6","v":44.845067454545458},null,"Sibir V 170 GE",{"$f":"IF(F6=0, 'Country Input'!$D$7, ROUNDUP(LitersPerFacility/F6,0)*'Country Input'!$D$7)","v":10},22979.956999999999,5923.6,{"$f":"AV6+AW6","v":28903.557000000001},null,"Sibir V 170 GE",{"$f":"ROUNDUP(LitersPerFacility/F6,0)*'Country Input'!$D$7*ROUNDUP('Total Solution Costs'!$B$2/Calculations!I6,0)","v":10},{"$f":"AV6/(F6*BA6)","v":41.781739999999999},10.770181818181818,{"$f":"BB6+BC6","v":52.551921818181818},null,null,"Sibir V 170 GE",{"$f":"(($U6+($O6)*IF(MOD(BH$3,$I6)=1,1,0)+Parts!$E$91*IF($J6=0,0,IF(MOD(BH$3,$I6)=1,IF(PQS!$R6=\"NO\",1,0),IF(MOD(BH$3,Calculations!$J6)=1,1,0)))+Parts!$E$92*IF(Calculations!$K6=0,0,IF(MOD(BH$3,$I6)=1,0,IF(MOD(BH$3,Calculations!$K6)=1,1,0))))*$AU6)*(1+'Country Input'!$C$45)^(Calculations!BH$3-$BH$3)+TrainingCost","v":28903.557000000001},{"$f":"(($U6+($O6)*IF(MOD(BI$3,$I6)=1,1,0)+Parts!$E$91*IF($J6=0,0,IF(MOD(BI$3,$I6)=1,IF(PQS!$R6=\"NO\",1,0),IF(MOD(BI$3,Calculations!$J6)=1,1,0)))+Parts!$E$92*IF(Calculations!$K6=0,0,IF(MOD(BI$3,$I6)=1,0,IF(MOD(BI$3,Calculations!$K6)=1,1,0))))*$AU6)*(1+'Country Input'!$C$45)^(Calculations!BI$3-$BH$3)","v":5923.6},{"$f":"(($U6+($O6)*IF(MOD(BJ$3,$I6)=1,1,0)+Parts!$E$91*IF($J6=0,0,IF(MOD(BJ$3,$I6)=1,IF(PQS!$R6=\"NO\",1,0),IF(MOD(BJ$3,Calculations!$J6)=1,1,0)))+Parts!$E$92*IF(Calculations!$K6=0,0,IF(MOD(BJ$3,$I6)=1,0,IF(MOD(BJ$3,Calculations!$K6)=1,1,0))))*$AU6)*(1+'Country Input'!$C$45)^(Calculations!BJ$3-$BH$3)","v":5923.6},{"$f":"(($U6+($O6)*IF(MOD(BK$3,$I6)=1,1,0)+Parts!$E$91*IF($J6=0,0,IF(MOD(BK$3,$I6)=1,IF(PQS!$R6=\"NO\",1,0),IF(MOD(BK$3,Calculations!$J6)=1,1,0)))+Parts!$E$92*IF(Calculations!$K6=0,0,IF(MOD(BK$3,$I6)=1,0,IF(MOD(BK$3,Calculations!$K6)=1,1,0))))*$AU6)*(1+'Country Input'!$C$45)^(Calculations!BK$3-$BH$3)","v":5923.6},{"$f":"(($U6+($O6)*IF(MOD(BL$3,$I6)=1,1,0)+Parts!$E$91*IF($J6=0,0,IF(MOD(BL$3,$I6)=1,IF(PQS!$R6=\"NO\",1,0),IF(MOD(BL$3,Calculations!$J6)=1,1,0)))+Parts!$E$92*IF(Calculations!$K6=0,0,IF(MOD(BL$3,$I6)=1,0,IF(MOD(BL$3,Calculations!$K6)=1,1,0))))*$AU6)*(1+'Country Input'!$C$45)^(Calculations!BL$3-$BH$3)","v":5923.6},{"$f":"(($U6+($O6)*IF(MOD(BM$3,$I6)=1,1,0)+Parts!$E$91*IF($J6=0,0,IF(MOD(BM$3,$I6)=1,IF(PQS!$R6=\"NO\",1,0),IF(MOD(BM$3,Calculations!$J6)=1,1,0)))+Parts!$E$92*IF(Calculations!$K6=0,0,IF(MOD(BM$3,$I6)=1,0,IF(MOD(BM$3,Calculations!$K6)=1,1,0))))*$AU6)*(1+'Country Input'!$C$45)^(Calculations!BM$3-$BH$3)","v":5923.6},{"$f":"(($U6+($O6)*IF(MOD(BN$3,$I6)=1,1,0)+Parts!$E$91*IF($J6=0,0,IF(MOD(BN$3,$I6)=1,IF(PQS!$R6=\"NO\",1,0),IF(MOD(BN$3,Calculations!$J6)=1,1,0)))+Parts!$E$92*IF(Calculations!$K6=0,0,IF(MOD(BN$3,$I6)=1,0,IF(MOD(BN$3,Calculations!$K6)=1,1,0))))*$AU6)*(1+'Country Input'!$C$45)^(Calculations!BN$3-$BH$3)","v":5923.6},{"$f":"(($U6+($O6)*IF(MOD(BO$3,$I6)=1,1,0)+Parts!$E$91*IF($J6=0,0,IF(MOD(BO$3,$I6)=1,IF(PQS!$R6=\"NO\",1,0),IF(MOD(BO$3,Calculations!$J6)=1,1,0)))+Parts!$E$92*IF(Calculations!$K6=0,0,IF(MOD(BO$3,$I6)=1,0,IF(MOD(BO$3,Calculations!$K6)=1,1,0))))*$AU6)*(1+'Country Input'!$C$45)^(Calculations!BO$3-$BH$3)","v":5923.6},{"$f":"(($U6+($O6)*IF(MOD(BP$3,$I6)=1,1,0)+Parts!$E$91*IF($J6=0,0,IF(MOD(BP$3,$I6)=1,IF(PQS!$R6=\"NO\",1,0),IF(MOD(BP$3,Calculations!$J6)=1,1,0)))+Parts!$E$92*IF(Calculations!$K6=0,0,IF(MOD(BP$3,$I6)=1,0,IF(MOD(BP$3,Calculations!$K6)=1,1,0))))*$AU6)*(1+'Country Input'!$C$45)^(Calculations!BP$3-$BH$3)","v":5923.6},{"$f":"(($U6+($O6)*IF(MOD(BQ$3,$I6)=1,1,0)+Parts!$E$91*IF($J6=0,0,IF(MOD(BQ$3,$I6)=1,IF(PQS!$R6=\"NO\",1,0),IF(MOD(BQ$3,Calculations!$J6)=1,1,0)))+Parts!$E$92*IF(Calculations!$K6=0,0,IF(MOD(BQ$3,$I6)=1,0,IF(MOD(BQ$3,Calculations!$K6)=1,1,0))))*$AU6)*(1+'Country Input'!$C$45)^(Calculations!BQ$3-$BH$3)","v":5923.6},{"$f":"(($U6+($O6)*IF(MOD(BR$3,$I6)=1,1,0)+Parts!$E$91*IF($J6=0,0,IF(MOD(BR$3,$I6)=1,IF(PQS!$R6=\"NO\",1,0),IF(MOD(BR$3,Calculations!$J6)=1,1,0)))+Parts!$E$92*IF(Calculations!$K6=0,0,IF(MOD(BR$3,$I6)=1,0,IF(MOD(BR$3,Calculations!$K6)=1,1,0))))*$AU6)*(1+'Country Input'!$C$45)^(Calculations!BR$3-$BH$3)","v":28903.557000000001},{"$f":"(($U6+($O6)*IF(MOD(BS$3,$I6)=1,1,0)+Parts!$E$91*IF($J6=0,0,IF(MOD(BS$3,$I6)=1,IF(PQS!$R6=\"NO\",1,0),IF(MOD(BS$3,Calculations!$J6)=1,1,0)))+Parts!$E$92*IF(Calculations!$K6=0,0,IF(MOD(BS$3,$I6)=1,0,IF(MOD(BS$3,Calculations!$K6)=1,1,0))))*$AU6)*(1+'Country Input'!$C$45)^(Calculations!BS$3-$BH$3)","v":5923.6},{"$f":"(($U6+($O6)*IF(MOD(BT$3,$I6)=1,1,0)+Parts!$E$91*IF($J6=0,0,IF(MOD(BT$3,$I6)=1,IF(PQS!$R6=\"NO\",1,0),IF(MOD(BT$3,Calculations!$J6)=1,1,0)))+Parts!$E$92*IF(Calculations!$K6=0,0,IF(MOD(BT$3,$I6)=1,0,IF(MOD(BT$3,Calculations!$K6)=1,1,0))))*$AU6)*(1+'Country Input'!$C$45)^(Calculations!BT$3-$BH$3)","v":5923.6},{"$f":"(($U6+($O6)*IF(MOD(BU$3,$I6)=1,1,0)+Parts!$E$91*IF($J6=0,0,IF(MOD(BU$3,$I6)=1,IF(PQS!$R6=\"NO\",1,0),IF(MOD(BU$3,Calculations!$J6)=1,1,0)))+Parts!$E$92*IF(Calculations!$K6=0,0,IF(MOD(BU$3,$I6)=1,0,IF(MOD(BU$3,Calculations!$K6)=1,1,0))))*$AU6)*(1+'Country Input'!$C$45)^(Calculations!BU$3-$BH$3)","v":5923.6},{"$f":"(($U6+($O6)*IF(MOD(BV$3,$I6)=1,1,0)+Parts!$E$91*IF($J6=0,0,IF(MOD(BV$3,$I6)=1,IF(PQS!$R6=\"NO\",1,0),IF(MOD(BV$3,Calculations!$J6)=1,1,0)))+Parts!$E$92*IF(Calculations!$K6=0,0,IF(MOD(BV$3,$I6)=1,0,IF(MOD(BV$3,Calculations!$K6)=1,1,0))))*$AU6)*(1+'Country Input'!$C$45)^(Calculations!BV$3-$BH$3)","v":5923.6},{"$f":"(($U6+($O6)*IF(MOD(BW$3,$I6)=1,1,0)+Parts!$E$91*IF($J6=0,0,IF(MOD(BW$3,$I6)=1,IF(PQS!$R6=\"NO\",1,0),IF(MOD(BW$3,Calculations!$J6)=1,1,0)))+Parts!$E$92*IF(Calculations!$K6=0,0,IF(MOD(BW$3,$I6)=1,0,IF(MOD(BW$3,Calculations!$K6)=1,1,0))))*$AU6)*(1+'Country Input'!$C$45)^(Calculations!BW$3-$BH$3)","v":5923.6},{"$f":"(($U6+($O6)*IF(MOD(BX$3,$I6)=1,1,0)+Parts!$E$91*IF($J6=0,0,IF(MOD(BX$3,$I6)=1,IF(PQS!$R6=\"NO\",1,0),IF(MOD(BX$3,Calculations!$J6)=1,1,0)))+Parts!$E$92*IF(Calculations!$K6=0,0,IF(MOD(BX$3,$I6)=1,0,IF(MOD(BX$3,Calculations!$K6)=1,1,0))))*$AU6)*(1+'Country Input'!$C$45)^(Calculations!BX$3-$BH$3)","v":5923.6},{"$f":"(($U6+($O6)*IF(MOD(BY$3,$I6)=1,1,0)+Parts!$E$91*IF($J6=0,0,IF(MOD(BY$3,$I6)=1,IF(PQS!$R6=\"NO\",1,0),IF(MOD(BY$3,Calculations!$J6)=1,1,0)))+Parts!$E$92*IF(Calculations!$K6=0,0,IF(MOD(BY$3,$I6)=1,0,IF(MOD(BY$3,Calculations!$K6)=1,1,0))))*$AU6)*(1+'Country Input'!$C$45)^(Calculations!BY$3-$BH$3)","v":5923.6},{"$f":"(($U6+($O6)*IF(MOD(BZ$3,$I6)=1,1,0)+Parts!$E$91*IF($J6=0,0,IF(MOD(BZ$3,$I6)=1,IF(PQS!$R6=\"NO\",1,0),IF(MOD(BZ$3,Calculations!$J6)=1,1,0)))+Parts!$E$92*IF(Calculations!$K6=0,0,IF(MOD(BZ$3,$I6)=1,0,IF(MOD(BZ$3,Calculations!$K6)=1,1,0))))*$AU6)*(1+'Country Input'!$C$45)^(Calculations!BZ$3-$BH$3)","v":5923.6},{"$f":"(($U6+($O6)*IF(MOD(CA$3,$I6)=1,1,0)+Parts!$E$91*IF($J6=0,0,IF(MOD(CA$3,$I6)=1,IF(PQS!$R6=\"NO\",1,0),IF(MOD(CA$3,Calculations!$J6)=1,1,0)))+Parts!$E$92*IF(Calculations!$K6=0,0,IF(MOD(CA$3,$I6)=1,0,IF(MOD(CA$3,Calculations!$K6)=1,1,0))))*$AU6)*(1+'Country Input'!$C$45)^(Calculations!CA$3-$BH$3)","v":5923.6},null,"Sibir V 170 GE",28903.557000000001,5923.6,5923.6,5923.6,5923.6,5923.6,5923.6,5923.6,5923.6,5923.6,28903.557000000001,5923.6,5923.6,5923.6,5923.6,5923.6,5923.6,5923.6,5923.6,5923.6,{"$f":"SUM(CD6:INDEX($CD6:$CW6,1,'Total Solution Costs'!$B$2))","v":82215.957000000009},null,{"$f":"CC6","v":"Sibir V 170 GE"},{"$f":"SUM($BH6:BH6)","v":28903.557000000001},{"$f":"SUM($BH6:BI6)","v":34827.156999999999},{"$f":"SUM($BH6:BJ6)","v":40750.756999999998},{"$f":"SUM($BH6:BK6)","v":46674.356999999996},{"$f":"SUM($BH6:BL6)","v":52597.956999999995},{"$f":"SUM($BH6:BM6)","v":58521.556999999993},{"$f":"SUM($BH6:BN6)","v":64445.156999999992},{"$f":"SUM($BH6:BO6)","v":70368.756999999998},{"$f":"SUM($BH6:BP6)","v":76292.357000000004},{"$f":"SUM($BH6:BQ6)","v":82215.957000000009},{"$f":"SUM($BH6:BR6)","v":111119.51400000001},{"$f":"SUM($BH6:BS6)","v":117043.11400000002},{"$f":"SUM($BH6:BT6)","v":122966.71400000002},{"$f":"SUM($BH6:BU6)","v":128890.31400000003},{"$f":"SUM($BH6:BV6)","v":134813.91400000002},{"$f":"SUM($BH6:BW6)","v":140737.51400000002},{"$f":"SUM($BH6:BX6)","v":146661.11400000003},{"$f":"SUM($BH6:BY6)","v":152584.71400000004},{"$f":"SUM($BH6:BZ6)","v":158508.31400000004},{"$f":"SUM($BH6:CA6)","v":164431.91400000005}]
[{"$f":"PQS!A7","v":"Gas"},{"$f":"PQS!B7","v":"E3/86-M"},{"$f":"PQS!E7","v":"V 110 GE "},{"$f":"PQS!F7","v":"Sibir"},{"$f":"PQS!D7","v":"Sibir V 110 GE "},{"$f":"VLOOKUP(E7,PQS!$D$5:$K$107,COLUMN(PQS!$I$3)-COLUMN(PQS!$D$3)+1,FALSE)","v":17},{"$f":"VLOOKUP(E7,PQS!$D$5:$K$107,COLUMN(PQS!$J$3)-COLUMN(PQS!$D$3)+1,FALSE)","v":0},{"$f":"VLOOKUP(E7,PQS!$D$5:$K$107,COLUMN(PQS!$G$3)-COLUMN(PQS!$D$3)+1,FALSE)","v":"No"},{"$f":"HLOOKUP(B7,INDIRECT(\"'\"&A7&\"'!$10:$15\"),ROW('Technology template'!$A$11)-ROW('Technology template'!$A$10)+1,FALSE)","v":10},{"$f":"HLOOKUP(B7,INDIRECT(\"'\"&A7&\"'!$10:$15\"),ROW('Technology template'!$A$12)-ROW('Technology template'!$A$10)+1,FALSE)","v":0},{"$f":"HLOOKUP(B7,INDIRECT(\"'\"&A7&\"'!$10:$15\"),ROW('Technology template'!$A$13)-ROW('Technology template'!$A$10)+1,FALSE)","v":0},{"$f":"VLOOKUP(B7,PQS!$B:$Q,MATCH(PQS!$Q$3,PQS!$B$3:$Q$3,0),FALSE)*(1+'Country Input'!$C$47)+HLOOKUP(B7,INDIRECT(\"'\"&A7&\"'!$10:$15\"),ROW('Technology template'!$A$14)-ROW('Technology template'!$A$10)+1,FALSE)*(1+'Country Input'!$C$47)","v":1563.7301000000002},{"$f":"HLOOKUP(B7,INDIRECT(\"'\"&A7&\"'!$10:$80\"),MATCH('Technology template'!$A$27,INDIRECT(\"'\"&A7&\"'!$A$10:$A$80\"),0),FALSE)+'Labor and Maintenance '!$E$21","v":441},{"$f":"VLOOKUP(B7,PQS!B:T,MATCH(PQS!$T$3,PQS!$B$3:$T$3,0),FALSE)*(1+'Country Input'!$C$47)","v":122.70760000000001},2127.4377000000004,212.74377000000004,{"$f":"VLOOKUP(B7,PQS!$B:$AE,COLUMN(PQS!AD5)-1,FALSE)","v":333.97500000000002},{"$f":"IFERROR(1/HLOOKUP(B7,INDIRECT(\"'\"&A7&\"'!$10:$80\"),MATCH('Technology template'!$A$31,INDIRECT(\"'\"&A7&\"'!$A$10:$A$80\"),0),FALSE)*HLOOKUP(B7,INDIRECT(\"'\"&A7&\"'!$10:$80\"),MATCH('Technology template'!$A$41,INDIRECT(\"'\"&A7&\"'!$A10:$A$80\"),0),FALSE),0)*TechnicianHourlyWage+IF(A7=\"Solar w Battery\",1/'Labor and Maintenance '!$E$53*'Labor and Maintenance '!$D$53,0)+IF(A7=\"LT passive\", 1/'Labor and Maintenance '!$E$81*'Labor and Maintenance '!$D$81,0)","v":24},{"$f":"IFERROR(1/HLOOKUP(B7,INDIRECT(\"'\"&A7&\"'!$10:$80\"),MATCH('Technology template'!$A$34,INDIRECT(\"'\"&A7&\"'!$A$10:$A$80\"),0),FALSE)*(HLOOKUP(B7,INDIRECT(\"'\"&A7&\"'!$10:$80\"),MATCH('Technology template'!$A$44,INDIRECT(\"'\"&A7&\"'!$A10:$A$80\"),0),FALSE)*TechnicianHourlyWage+RemoteTravelCostPerDay),0)+IFERROR(1/HLOOKUP(B7,INDIRECT(\"'\"&A7&\"'!$10:$80\"),MATCH('Technology template'!$A$35,INDIRECT(\"'\"&A7&\"'!$A$10:$A$80\"),0),FALSE)*(HLOOKUP(B7,INDIRECT(\"'\"&A7&\"'!$10:$80\"),MATCH('Technology template'!$A$45,INDIRECT(\"'\"&A7&\"'!$A10:$A$80\"),0),FALSE)*TechnicianHourlyWage+RemoteTravelCostPerDay),0)+IFERROR(1/HLOOKUP(B7,INDIRECT(\"'\"&A7&\"'!$10:$80\"),MATCH('Technology template'!$A$37,INDIRECT(\"'\"&A7&\"'!$A$10:$A$80\"),0),FALSE)*(HLOOKUP(B7,INDIRECT(\"'\"&A7&\"'!$10:$80\"),MATCH('Technology template'!$A$46,INDIRECT(\"'\"&A7&\"'!$A10:$A$80\"),0),FALSE)*TechnicianHourlyWage+'Labor and Maintenance '!$B$8),0)","v":34},3919.75,391.97500000000002,604.71877000000006,null,"Sibir V 110 GE ",125.14339411764708,230.5735294117647,355.71692352941176,null,"Sibir V 110 GE ",12.514339411764709,23.057352941176472,35.571692352941177,null,"Sibir V 110 GE ",8,17019.501600000003,31358,48377.501600000003,null,"Sibir V 110 GE ",8,100.11471529411767,184.45882352941177,284.57353882352947,null,"Sibir V 110 GE ",{"$f":"IF(F7=0, 'Country Input'!$D$7, ROUNDUP(LitersPerFacility/F7,0)*'Country Input'!$D$7)","v":10},21274.377000000004,3919.75,25194.127000000004,null,"Sibir V 110 GE ",{"$f":"ROUNDUP(LitersPerFacility/F7,0)*'Country Input'!$D$7*ROUNDUP('Total Solution Costs'!$B$2/Calculations!I7,0)","v":10},{"$f":"AV7/(F7*BA7)","v":125.14339411764708},23.057352941176472,148.20074705882354,null,null,"Sibir V 110 GE ",{"$f":"(($U7+($O7)*IF(MOD(BH$3,$I7)=1,1,0)+Parts!$E$91*IF($J7=0,0,IF(MOD(BH$3,$I7)=1,IF(PQS!$R7=\"NO\",1,0),IF(MOD(BH$3,Calculations!$J7)=1,1,0)))+Parts!$E$92*IF(Calculations!$K7=0,0,IF(MOD(BH$3,$I7)=1,0,IF(MOD(BH$3,Calculations!$K7)=1,1,0))))*$AU7)*(1+'Country Input'!$C$45)^(Calculations!BH$3-$BH$3)+TrainingCost","v":25194.127000000004},{"$f":"(($U7+($O7)*IF(MOD(BI$3,$I7)=1,1,0)+Parts!$E$91*IF($J7=0,0,IF(MOD(BI$3,$I7)=1,IF(PQS!$R7=\"NO\",1,0),IF(MOD(BI$3,Calculations!$J7)=1,1,0)))+Parts!$E$92*IF(Calculations!$K7=0,0,IF(MOD(BI$3,$I7)=1,0,IF(MOD(BI$3,Calculations!$K7)=1,1,0))))*$AU7)*(1+'Country Input'!$C$45)^(Calculations!BI$3-$BH$3)","v":3919.75},{"$f":"(($U7+($O7)*IF(MOD(BJ$3,$I7)=1,1,0)+Parts!$E$91*IF($J7=0,0,IF(MOD(BJ$3,$I7)=1,IF(PQS!$R7=\"NO\",1,0),IF(MOD(BJ$3,Calculations!$J7)=1,1,0)))+Parts!$E$92*IF(Calculations!$K7=0,0,IF(MOD(BJ$3,$I7)=1,0,IF(MOD(BJ$3,Calculations!$K7)=1,1,0))))*$AU7)*(1+'Country Input'!$C$45)^(Calculations!BJ$3-$BH$3)","v":3919.75},{"$f":"(($U7+($O7)*IF(MOD(BK$3,$I7)=1,1,0)+Parts!$E$91*IF($J7=0,0,IF(MOD(BK$3,$I7)=1,IF(PQS!$R7=\"NO\",1,0),IF(MOD(BK$3,Calculations!$J7)=1,1,0)))+Parts!$E$92*IF(Calculations!$K7=0,0,IF(MOD(BK$3,$I7)=1,0,IF(MOD(BK$3,Calculations!$K7)=1,1,0))))*$AU7)*(1+'Country Input'!$C$45)^(Calculations!BK$3-$BH$3)","v":3919.75},{"$f":"(($U7+($O7)*IF(MOD(BL$3,$I7)=1,1,0)+Parts!$E$91*IF($J7=0,0,IF(MOD(BL$3,$I7)=1,IF(PQS!$R7=\"NO\",1,0),IF(MOD(BL$3,Calculations!$J7)=1,1,0)))+Parts!$E$92*IF(Calculations!$K7=0,0,IF(MOD(BL$3,$I7)=1,0,IF(MOD(BL$3,Calculations!$K7)=1,1,0))))*$AU7)*(1+'Country Input'!$C$45)^(Calculations!BL$3-$BH$3)","v":3919.75},{"$f":"(($U7+($O7)*IF(MOD(BM$3,$I7)=1,1,0)+Parts!$E$91*IF($J7=0,0,IF(MOD(BM$3,$I7)=1,IF(PQS!$R7=\"NO\",1,0),IF(MOD(BM$3,Calculations!$J7)=1,1,0)))+Parts!$E$92*IF(Calculations!$K7=0,0,IF(MOD(BM$3,$I7)=1,0,IF(MOD(BM$3,Calculations!$K7)=1,1,0))))*$AU7)*(1+'Country Input'!$C$45)^(Calculations!BM$3-$BH$3)","v":3919.75},{"$f":"(($U7+($O7)*IF(MOD(BN$3,$I7)=1,1,0)+Parts!$E$91*IF($J7=0,0,IF(MOD(BN$3,$I7)=1,IF(PQS!$R7=\"NO\",1,0),IF(MOD(BN$3,Calculations!$J7)=1,1,0)))+Parts!$E$92*IF(Calculations!$K7=0,0,IF(MOD(BN$3,$I7)=1,0,IF(MOD(BN$3,Calculations!$K7)=1,1,0))))*$AU7)*(1+'Country Input'!$C$45)^(Calculations!BN$3-$BH$3)","v":3919.75},{"$f":"(($U7+($O7)*IF(MOD(BO$3,$I7)=1,1,0)+Parts!$E$91*IF($J7=0,0,IF(MOD(BO$3,$I7)=1,IF(PQS!$R7=\"NO\",1,0),IF(MOD(BO$3,Calculations!$J7)=1,1,0)))+Parts!$E$92*IF(Calculations!$K7=0,0,IF(MOD(BO$3,$I7)=1,0,IF(MOD(BO$3,Calculations!$K7)=1,1,0))))*$AU7)*(1+'Country Input'!$C$45)^(Calculations!BO$3-$BH$3)","v":3919.75},{"$f":"(($U7+($O7)*IF(MOD(BP$3,$I7)=1,1,0)+Parts!$E$91*IF($J7=0,0,IF(MOD(BP$3,$I7)=1,IF(PQS!$R7=\"NO\",1,0),IF(MOD(BP$3,Calculations!$J7)=1,1,0)))+Parts!$E$92*IF(Calculations!$K7=0,0,IF(MOD(BP$3,$I7)=1,0,IF(MOD(BP$3,Calculations!$K7)=1,1,0))))*$AU7)*(1+'Country Input'!$C$45)^(Calculations!BP$3-$BH$3)","v":3919.75},{"$f":"(($U7+($O7)*IF(MOD(BQ$3,$I7)=1,1,0)+Parts!$E$91*IF($J7=0,0,IF(MOD(BQ$3,$I7)=1,IF(PQS!$R7=\"NO\",1,0),IF(MOD(BQ$3,Calculations!$J7)=1,1,0)))+Parts!$E$92*IF(Calculations!$K7=0,0,IF(MOD(BQ$3,$I7)=1,0,IF(MOD(BQ$3,Calculations!$K7)=1,1,0))))*$AU7)*(1+'Country Input'!$C$45)^(Calculations!BQ$3-$BH$3)","v":3919.75},{"$f":"(($U7+($O7)*IF(MOD(BR$3,$I7)=1,1,0)+Parts!$E$91*IF($J7=0,0,IF(MOD(BR$3,$I7)=1,IF(PQS!$R7=\"NO\",1,0),IF(MOD(BR$3,Calculations!$J7)=1,1,0)))+Parts!$E$92*IF(Calculations!$K7=0,0,IF(MOD(BR$3,$I7)=1,0,IF(MOD(BR$3,Calculations!$K7)=1,1,0))))*$AU7)*(1+'Country Input'!$C$45)^(Calculations!BR$3-$BH$3)","v":25194.127000000004},{"$f":"(($U7+($O7)*IF(MOD(BS$3,$I7)=1,1,0)+Parts!$E$91*IF($J7=0,0,IF(MOD(BS$3,$I7)=1,IF(PQS!$R7=\"NO\",1,0),IF(MOD(BS$3,Calculations!$J7)=1,1,0)))+Parts!$E$92*IF(Calculations!$K7=0,0,IF(MOD(BS$3,$I7)=1,0,IF(MOD(BS$3,Calculations!$K7)=1,1,0))))*$AU7)*(1+'Country Input'!$C$45)^(Calculations!BS$3-$BH$3)","v":3919.75},{"$f":"(($U7+($O7)*IF(MOD(BT$3,$I7)=1,1,0)+Parts!$E$91*IF($J7=0,0,IF(MOD(BT$3,$I7)=1,IF(PQS!$R7=\"NO\",1,0),IF(MOD(BT$3,Calculations!$J7)=1,1,0)))+Parts!$E$92*IF(Calculations!$K7=0,0,IF(MOD(BT$3,$I7)=1,0,IF(MOD(BT$3,Calculations!$K7)=1,1,0))))*$AU7)*(1+'Country Input'!$C$45)^(Calculations!BT$3-$BH$3)","v":3919.75},{"$f":"(($U7+($O7)*IF(MOD(BU$3,$I7)=1,1,0)+Parts!$E$91*IF($J7=0,0,IF(MOD(BU$3,$I7)=1,IF(PQS!$R7=\"NO\",1,0),IF(MOD(BU$3,Calculations!$J7)=1,1,0)))+Parts!$E$92*IF(Calculations!$K7=0,0,IF(MOD(BU$3,$I7)=1,0,IF(MOD(BU$3,Calculations!$K7)=1,1,0))))*$AU7)*(1+'Country Input'!$C$45)^(Calculations!BU$3-$BH$3)","v":3919.75},{"$f":"(($U7+($O7)*IF(MOD(BV$3,$I7)=1,1,0)+Parts!$E$91*IF($J7=0,0,IF(MOD(BV$3,$I7)=1,IF(PQS!$R7=\"NO\",1,0),IF(MOD(BV$3,Calculations!$J7)=1,1,0)))+Parts!$E$92*IF(Calculations!$K7=0,0,IF(MOD(BV$3,$I7)=1,0,IF(MOD(BV$3,Calculations!$K7)=1,1,0))))*$AU7)*(1+'Country Input'!$C$45)^(Calculations!BV$3-$BH$3)","v":3919.75},{"$f":"(($U7+($O7)*IF(MOD(BW$3,$I7)=1,1,0)+Parts!$E$91*IF($J7=0,0,IF(MOD(BW$3,$I7)=1,IF(PQS!$R7=\"NO\",1,0),IF(MOD(BW$3,Calculations!$J7)=1,1,0)))+Parts!$E$92*IF(Calculations!$K7=0,0,IF(MOD(BW$3,$I7)=1,0,IF(MOD(BW$3,Calculations!$K7)=1,1,0))))*$AU7)*(1+'Country Input'!$C$45)^(Calculations!BW$3-$BH$3)","v":3919.75},{"$f":"(($U7+($O7)*IF(MOD(BX$3,$I7)=1,1,0)+Parts!$E$91*IF($J7=0,0,IF(MOD(BX$3,$I7)=1,IF(PQS!$R7=\"NO\",1,0),IF(MOD(BX$3,Calculations!$J7)=1,1,0)))+Parts!$E$92*IF(Calculations!$K7=0,0,IF(MOD(BX$3,$I7)=1,0,IF(MOD(BX$3,Calculations!$K7)=1,1,0))))*$AU7)*(1+'Country Input'!$C$45)^(Calculations!BX$3-$BH$3)","v":3919.75},{"$f":"(($U7+($O7)*IF(MOD(BY$3,$I7)=1,1,0)+Parts!$E$91*IF($J7=0,0,IF(MOD(BY$3,$I7)=1,IF(PQS!$R7=\"NO\",1,0),IF(MOD(BY$3,Calculations!$J7)=1,1,0)))+Parts!$E$92*IF(Calculations!$K7=0,0,IF(MOD(BY$3,$I7)=1,0,IF(MOD(BY$3,Calculations!$K7)=1,1,0))))*$AU7)*(1+'Country Input'!$C$45)^(Calculations!BY$3-$BH$3)","v":3919.75},{"$f":"(($U7+($O7)*IF(MOD(BZ$3,$I7)=1,1,0)+Parts!$E$91*IF($J7=0,0,IF(MOD(BZ$3,$I7)=1,IF(PQS!$R7=\"NO\",1,0),IF(MOD(BZ$3,Calculations!$J7)=1,1,0)))+Parts!$E$92*IF(Calculations!$K7=0,0,IF(MOD(BZ$3,$I7)=1,0,IF(MOD(BZ$3,Calculations!$K7)=1,1,0))))*$AU7)*(1+'Country Input'!$C$45)^(Calculations!BZ$3-$BH$3)","v":3919.75},{"$f":"(($U7+($O7)*IF(MOD(CA$3,$I7)=1,1,0)+Parts!$E$91*IF($J7=0,0,IF(MOD(CA$3,$I7)=1,IF(PQS!$R7=\"NO\",1,0),IF(MOD(CA$3,Calculations!$J7)=1,1,0)))+Parts!$E$92*IF(Calculations!$K7=0,0,IF(MOD(CA$3,$I7)=1,0,IF(MOD(CA$3,Calculations!$K7)=1,1,0))))*$AU7)*(1+'Country Input'!$C$45)^(Calculations!CA$3-$BH$3)","v":3919.75},null,"Sibir V 110 GE ",25194.127000000004,3919.75,3919.75,3919.75,3919.75,3919.75,3919.75,3919.75,3919.75,3919.75,25194.127000000004,3919.75,3919.75,3919.75,3919.75,3919.75,3919.75,3919.75,3919.75,3919.75,{"$f":"SUM(CD7:INDEX($CD7:$CW7,1,'Total Solution Costs'!$B$2))","v":60471.877000000008},null,"Sibir V 110 GE ",{"$f":"SUM($BH7:BH7)","v":25194.127000000004},{"$f":"SUM($BH7:BI7)","v":29113.877000000004},{"$f":"SUM($BH7:BJ7)","v":33033.627000000008},{"$f":"SUM($BH7:BK7)","v":36953.377000000008},{"$f":"SUM($BH7:BL7)","v":40873.127000000008},{"$f":"SUM($BH7:BM7)","v":44792.877000000008},{"$f":"SUM($BH7:BN7)","v":48712.627000000008},{"$f":"SUM($BH7:BO7)","v":52632.377000000008},{"$f":"SUM($BH7:BP7)","v":56552.127000000008},{"$f":"SUM($BH7:BQ7)","v":60471.877000000008},{"$f":"SUM($BH7:BR7)","v":85666.004000000015},{"$f":"SUM($BH7:BS7)","v":89585.754000000015},{"$f":"SUM($BH7:BT7)","v":93505.504000000015},{"$f":"SUM($BH7:BU7)","v":97425.254000000015},{"$f":"SUM($BH7:BV7)","v":101345.00400000002},{"$f":"SUM($BH7:BW7)","v":105264.75400000002},{"$f":"SUM($BH7:BX7)","v":109184.50400000002},{"$f":"SUM($BH7:BY7)","v":113104.25400000002},{"$f":"SUM($BH7:BZ7)","v":117024.00400000002},{"$f":"SUM($BH7:CA7)","v":120943.75400000002}]
[{"$f":"PQS!A8","v":"Freezer"},{"$f":"PQS!B8","v":"E003/002"},{"$f":"PQS!E8","v":"HBD 116*"},{"$f":"PQS!F8","v":"Haier"},{"$f":"PQS!D8","v":"Haier HBD 116*"},{"$f":"VLOOKUP(E8,PQS!$D$5:$K$107,COLUMN(PQS!$I$3)-COLUMN(PQS!$D$3)+1,FALSE)","v":0},{"$f":"VLOOKUP(E8,PQS!$D$5:$K$107,COLUMN(PQS!$J$3)-COLUMN(PQS!$D$3)+1,FALSE)","v":121},{"$f":"VLOOKUP(E8,PQS!$D$5:$K$107,COLUMN(PQS!$G$3)-COLUMN(PQS!$D$3)+1,FALSE)","v":"Yes"},{"$f":"HLOOKUP(B8,INDIRECT(\"'\"&A8&\"'!$10:$15\"),ROW('Technology template'!$A$11)-ROW('Technology template'!$A$10)+1,FALSE)","v":10},{"$f":"HLOOKUP(B8,INDIRECT(\"'\"&A8&\"'!$10:$15\"),ROW('Technology template'!$A$12)-ROW('Technology template'!$A$10)+1,FALSE)","v":0},{"$f":"HLOOKUP(B8,INDIRECT(\"'\"&A8&\"'!$10:$15\"),ROW('Technology template'!$A$13)-ROW('Technology template'!$A$10)+1,FALSE)","v":0},{"$f":"VLOOKUP(B8,PQS!$B:$Q,MATCH(PQS!$Q$3,PQS!$B$3:$Q$3,0),FALSE)*(1+'Country Input'!$C$47)+HLOOKUP(B8,INDIRECT(\"'\"&A8&\"'!$10:$15\"),ROW('Technology template'!$A$14)-ROW('Technology template'!$A$10)+1,FALSE)*(1+'Country Input'!$C$47)","v":561.36480000000006},{"$f":"HLOOKUP(B8,INDIRECT(\"'\"&A8&\"'!$10:$80\"),MATCH('Technology template'!$A$27,INDIRECT(\"'\"&A8&\"'!$A$10:$A$80\"),0),FALSE)+'Labor and Maintenance '!$E$23","v":716},{"$f":"VLOOKUP(B8,PQS!B:T,MATCH(PQS!$T$3,PQS!$B$3:$T$3,0),FALSE)*(1+'Country Input'!$C$47)","v":128.47846666666669},1405.8432666666668,140.58432666666667,{"$f":"VLOOKUP(B8,PQS!$B:$AE,COLUMN(PQS!AD6)-1,FALSE)","v":27.740000000000006},{"$f":"IFERROR(1/HLOOKUP(B8,INDIRECT(\"'\"&A8&\"'!$10:$80\"),MATCH('Technology template'!$A$31,INDIRECT(\"'\"&A8&\"'!$A$10:$A$80\"),0),FALSE)*HLOOKUP(B8,INDIRECT(\"'\"&A8&\"'!$10:$80\"),MATCH('Technology template'!$A$41,INDIRECT(\"'\"&A8&\"'!$A10:$A$80\"),0),FALSE),0)*TechnicianHourlyWage+IF(A8=\"Solar w Battery\",1/'Labor and Maintenance '!$E$53*'Labor and Maintenance '!$D$53,0)+IF(A8=\"LT passive\", 1/'Labor and Maintenance '!$E$81*'Labor and Maintenance '!$D$81,0)","v":24},{"$f":"IFERROR(1/HLOOKUP(B8,INDIRECT(\"'\"&A8&\"'!$10:$80\"),MATCH('Technology template'!$A$34,INDIRECT(\"'\"&A8&\"'!$A$10:$A$80\"),0),FALSE)*(HLOOKUP(B8,INDIRECT(\"'\"&A8&\"'!$10:$80\"),MATCH('Technology template'!$A$44,INDIRECT(\"'\"&A8&\"'!$A10:$A$80\"),0),FALSE)*TechnicianHourlyWage+RemoteTravelCostPerDay),0)+IFERROR(1/HLOOKUP(B8,INDIRECT(\"'\"&A8&\"'!$10:$80\"),MATCH('Technology template'!$A$35,INDIRECT(\"'\"&A8&\"'!$A$10:$A$80\"),0),FALSE)*(HLOOKUP(B8,INDIRECT(\"'\"&A8&\"'!$10:$80\"),MATCH('Technology template'!$A$45,INDIRECT(\"'\"&A8&\"'!$A10:$A$80\"),0),FALSE)*TechnicianHourlyWage+RemoteTravelCostPerDay),0)+IFERROR(1/HLOOKUP(B8,INDIRECT(\"'\"&A8&\"'!$10:$80\"),MATCH('Technology template'!$A$37,INDIRECT(\"'\"&A8&\"'!$A$10:$A$80\"),0),FALSE)*(HLOOKUP(B8,INDIRECT(\"'\"&A8&\"'!$10:$80\"),MATCH('Technology template'!$A$46,INDIRECT(\"'\"&A8&\"'!$A10:$A$80\"),0),FALSE)*TechnicianHourlyWage+'Labor and Maintenance '!$B$8),0)","v":94.666666666666657},1464.0666666666666,146.40666666666667,286.99099333333334,null,"Haier HBD 116*",11.618539393939395,12.099724517906335,23.718263911845732,null,"Haier HBD 116*",1.1618539393939393,1.2099724517906336,2.3718263911845732,null,"Haier HBD 116*",{"$error":"#DIV/0!"},{"$error":"#DIV/0!"},{"$error":"#DIV/0!"},{"$error":"#DIV/0!"},null,"Haier HBD 116*",{"$error":"#DIV/0!"},{"$error":"#DIV/0!"},{"$error":"#DIV/0!"},{"$error":"#DIV/0!"},null,"Haier HBD 116*",{"$f":"IF(F8=0, 'Country Input'!$D$7, ROUNDUP(LitersPerFacility/F8,0)*'Country Input'!$D$7)","v":10},14058.432666666668,1464.0666666666666,15522.499333333333,null,"Haier HBD 116*",{"$f":"ROUNDUP(LitersPerFacility/F8,0)*'Country Input'!$D$7*ROUNDUP('Total Solution Costs'!$B$2/Calculations!I8,0)","v":{"$error":"#DIV/0!"}},{"$f":"BA8*AD8","v":{"$error":"#DIV/0!"}},{"$error":"#DIV/0!"},{"$error":"#DIV/0!"},null,null,"Haier HBD 116*",{"$f":"(($U8+($O8)*IF(MOD(BH$3,$I8)=1,1,0)+Parts!$E$91*IF($J8=0,0,IF(MOD(BH$3,$I8)=1,IF(PQS!$R8=\"NO\",1,0),IF(MOD(BH$3,Calculations!$J8)=1,1,0)))+Parts!$E$92*IF(Calculations!$K8=0,0,IF(MOD(BH$3,$I8)=1,0,IF(MOD(BH$3,Calculations!$K8)=1,1,0))))*$AU8)*(1+'Country Input'!$C$45)^(Calculations!BH$3-$BH$3)+TrainingCost","v":15522.499333333335},{"$f":"(($U8+($O8)*IF(MOD(BI$3,$I8)=1,1,0)+Parts!$E$91*IF($J8=0,0,IF(MOD(BI$3,$I8)=1,IF(PQS!$R8=\"NO\",1,0),IF(MOD(BI$3,Calculations!$J8)=1,1,0)))+Parts!$E$92*IF(Calculations!$K8=0,0,IF(MOD(BI$3,$I8)=1,0,IF(MOD(BI$3,Calculations!$K8)=1,1,0))))*$AU8)*(1+'Country Input'!$C$45)^(Calculations!BI$3-$BH$3)","v":1464.0666666666666},{"$f":"(($U8+($O8)*IF(MOD(BJ$3,$I8)=1,1,0)+Parts!$E$91*IF($J8=0,0,IF(MOD(BJ$3,$I8)=1,IF(PQS!$R8=\"NO\",1,0),IF(MOD(BJ$3,Calculations!$J8)=1,1,0)))+Parts!$E$92*IF(Calculations!$K8=0,0,IF(MOD(BJ$3,$I8)=1,0,IF(MOD(BJ$3,Calculations!$K8)=1,1,0))))*$AU8)*(1+'Country Input'!$C$45)^(Calculations!BJ$3-$BH$3)","v":1464.0666666666666},{"$f":"(($U8+($O8)*IF(MOD(BK$3,$I8)=1,1,0)+Parts!$E$91*IF($J8=0,0,IF(MOD(BK$3,$I8)=1,IF(PQS!$R8=\"NO\",1,0),IF(MOD(BK$3,Calculations!$J8)=1,1,0)))+Parts!$E$92*IF(Calculations!$K8=0,0,IF(MOD(BK$3,$I8)=1,0,IF(MOD(BK$3,Calculations!$K8)=1,1,0))))*$AU8)*(1+'Country Input'!$C$45)^(Calculations!BK$3-$BH$3)","v":1464.0666666666666},{"$f":"(($U8+($O8)*IF(MOD(BL$3,$I8)=1,1,0)+Parts!$E$91*IF($J8=0,0,IF(MOD(BL$3,$I8)=1,IF(PQS!$R8=\"NO\",1,0),IF(MOD(BL$3,Calculations!$J8)=1,1,0)))+Parts!$E$92*IF(Calculations!$K8=0,0,IF(MOD(BL$3,$I8)=1,0,IF(MOD(BL$3,Calculations!$K8)=1,1,0))))*$AU8)*(1+'Country Input'!$C$45)^(Calculations!BL$3-$BH$3)","v":1464.0666666666666},{"$f":"(($U8+($O8)*IF(MOD(BM$3,$I8)=1,1,0)+Parts!$E$91*IF($J8=0,0,IF(MOD(BM$3,$I8)=1,IF(PQS!$R8=\"NO\",1,0),IF(MOD(BM$3,Calculations!$J8)=1,1,0)))+Parts!$E$92*IF(Calculations!$K8=0,0,IF(MOD(BM$3,$I8)=1,0,IF(MOD(BM$3,Calculations!$K8)=1,1,0))))*$AU8)*(1+'Country Input'!$C$45)^(Calculations!BM$3-$BH$3)","v":1464.0666666666666},{"$f":"(($U8+($O8)*IF(MOD(BN$3,$I8)=1,1,0)+Parts!$E$91*IF($J8=0,0,IF(MOD(BN$3,$I8)=1,IF(PQS!$R8=\"NO\",1,0),IF(MOD(BN$3,Calculations!$J8)=1,1,0)))+Parts!$E$92*IF(Calculations!$K8=0,0,IF(MOD(BN$3,$I8)=1,0,IF(MOD(BN$3,Calculations!$K8)=1,1,0))))*$AU8)*(1+'Country Input'!$C$45)^(Calculations!BN$3-$BH$3)","v":1464.0666666666666},{"$f":"(($U8+($O8)*IF(MOD(BO$3,$I8)=1,1,0)+Parts!$E$91*IF($J8=0,0,IF(MOD(BO$3,$I8)=1,IF(PQS!$R8=\"NO\",1,0),IF(MOD(BO$3,Calculations!$J8)=1,1,0)))+Parts!$E$92*IF(Calculations!$K8=0,0,IF(MOD(BO$3,$I8)=1,0,IF(MOD(BO$3,Calculations!$K8)=1,1,0))))*$AU8)*(1+'Country Input'!$C$45)^(Calculations!BO$3-$BH$3)","v":1464.0666666666666},{"$f":"(($U8+($O8)*IF(MOD(BP$3,$I8)=1,1,0)+Parts!$E$91*IF($J8=0,0,IF(MOD(BP$3,$I8)=1,IF(PQS!$R8=\"NO\",1,0),IF(MOD(BP$3,Calculations!$J8)=1,1,0)))+Parts!$E$92*IF(Calculations!$K8=0,0,IF(MOD(BP$3,$I8)=1,0,IF(MOD(BP$3,Calculations!$K8)=1,1,0))))*$AU8)*(1+'Country Input'!$C$45)^(Calculations!BP$3-$BH$3)","v":1464.0666666666666},{"$f":"(($U8+($O8)*IF(MOD(BQ$3,$I8)=1,1,0)+Parts!$E$91*IF($J8=0,0,IF(MOD(BQ$3,$I8)=1,IF(PQS!$R8=\"NO\",1,0),IF(MOD(BQ$3,Calculations!$J8)=1,1,0)))+Parts!$E$92*IF(Calculations!$K8=0,0,IF(MOD(BQ$3,$I8)=1,0,IF(MOD(BQ$3,Calculations!$K8)=1,1,0))))*$AU8)*(1+'Country Input'!$C$45)^(Calculations!BQ$3-$BH$3)","v":1464.0666666666666},{"$f":"(($U8+($O8)*IF(MOD(BR$3,$I8)=1,1,0)+Parts!$E$91*IF($J8=0,0,IF(MOD(BR$3,$I8)=1,IF(PQS!$R8=\"NO\",1,0),IF(MOD(BR$3,Calculations!$J8)=1,1,0)))+Parts!$E$92*IF(Calculations!$K8=0,0,IF(MOD(BR$3,$I8)=1,0,IF(MOD(BR$3,Calculations!$K8)=1,1,0))))*$AU8)*(1+'Country Input'!$C$45)^(Calculations!BR$3-$BH$3)","v":15522.499333333335},{"$f":"(($U8+($O8)*IF(MOD(BS$3,$I8)=1,1,0)+Parts!$E$91*IF($J8=0,0,IF(MOD(BS$3,$I8)=1,IF(PQS!$R8=\"NO\",1,0),IF(MOD(BS$3,Calculations!$J8)=1,1,0)))+Parts!$E$92*IF(Calculations!$K8=0,0,IF(MOD(BS$3,$I8)=1,0,IF(MOD(BS$3,Calculations!$K8)=1,1,0))))*$AU8)*(1+'Country Input'!$C$45)^(Calculations!BS$3-$BH$3)","v":1464.0666666666666},{"$f":"(($U8+($O8)*IF(MOD(BT$3,$I8)=1,1,0)+Parts!$E$91*IF($J8=0,0,IF(MOD(BT$3,$I8)=1,IF(PQS!$R8=\"NO\",1,0),IF(MOD(BT$3,Calculations!$J8)=1,1,0)))+Parts!$E$92*IF(Calculations!$K8=0,0,IF(MOD(BT$3,$I8)=1,0,IF(MOD(BT$3,Calculations!$K8)=1,1,0))))*$AU8)*(1+'Country Input'!$C$45)^(Calculations!BT$3-$BH$3)","v":1464.0666666666666},{"$f":"(($U8+($O8)*IF(MOD(BU$3,$I8)=1,1,0)+Parts!$E$91*IF($J8=0,0,IF(MOD(BU$3,$I8)=1,IF(PQS!$R8=\"NO\",1,0),IF(MOD(BU$3,Calculations!$J8)=1,1,0)))+Parts!$E$92*IF(Calculations!$K8=0,0,IF(MOD(BU$3,$I8)=1,0,IF(MOD(BU$3,Calculations!$K8)=1,1,0))))*$AU8)*(1+'Country Input'!$C$45)^(Calculations!BU$3-$BH$3)","v":1464.0666666666666},{"$f":"(($U8+($O8)*IF(MOD(BV$3,$I8)=1,1,0)+Parts!$E$91*IF($J8=0,0,IF(MOD(BV$3,$I8)=1,IF(PQS!$R8=\"NO\",1,0),IF(MOD(BV$3,Calculations!$J8)=1,1,0)))+Parts!$E$92*IF(Calculations!$K8=0,0,IF(MOD(BV$3,$I8)=1,0,IF(MOD(BV$3,Calculations!$K8)=1,1,0))))*$AU8)*(1+'Country Input'!$C$45)^(Calculations!BV$3-$BH$3)","v":1464.0666666666666},{"$f":"(($U8+($O8)*IF(MOD(BW$3,$I8)=1,1,0)+Parts!$E$91*IF($J8=0,0,IF(MOD(BW$3,$I8)=1,IF(PQS!$R8=\"NO\",1,0),IF(MOD(BW$3,Calculations!$J8)=1,1,0)))+Parts!$E$92*IF(Calculations!$K8=0,0,IF(MOD(BW$3,$I8)=1,0,IF(MOD(BW$3,Calculations!$K8)=1,1,0))))*$AU8)*(1+'Country Input'!$C$45)^(Calculations!BW$3-$BH$3)","v":1464.0666666666666},{"$f":"(($U8+($O8)*IF(MOD(BX$3,$I8)=1,1,0)+Parts!$E$91*IF($J8=0,0,IF(MOD(BX$3,$I8)=1,IF(PQS!$R8=\"NO\",1,0),IF(MOD(BX$3,Calculations!$J8)=1,1,0)))+Parts!$E$92*IF(Calculations!$K8=0,0,IF(MOD(BX$3,$I8)=1,0,IF(MOD(BX$3,Calculations!$K8)=1,1,0))))*$AU8)*(1+'Country Input'!$C$45)^(Calculations!BX$3-$BH$3)","v":1464.0666666666666},{"$f":"(($U8+($O8)*IF(MOD(BY$3,$I8)=1,1,0)+Parts!$E$91*IF($J8=0,0,IF(MOD(BY$3,$I8)=1,IF(PQS!$R8=\"NO\",1,0),IF(MOD(BY$3,Calculations!$J8)=1,1,0)))+Parts!$E$92*IF(Calculations!$K8=0,0,IF(MOD(BY$3,$I8)=1,0,IF(MOD(BY$3,Calculations!$K8)=1,1,0))))*$AU8)*(1+'Country Input'!$C$45)^(Calculations!BY$3-$BH$3)","v":1464.0666666666666},{"$f":"(($U8+($O8)*IF(MOD(BZ$3,$I8)=1,1,0)+Parts!$E$91*IF($J8=0,0,IF(MOD(BZ$3,$I8)=1,IF(PQS!$R8=\"NO\",1,0),IF(MOD(BZ$3,Calculations!$J8)=1,1,0)))+Parts!$E$92*IF(Calculations!$K8=0,0,IF(MOD(BZ$3,$I8)=1,0,IF(MOD(BZ$3,Calculations!$K8)=1,1,0))))*$AU8)*(1+'Country Input'!$C$45)^(Calculations!BZ$3-$BH$3)","v":1464.0666666666666},{"$f":"(($U8+($O8)*IF(MOD(CA$3,$I8)=1,1,0)+Parts!$E$91*IF($J8=0,0,IF(MOD(CA$3,$I8)=1,IF(PQS!$R8=\"NO\",1,0),IF(MOD(CA$3,Calculations!$J8)=1,1,0)))+Parts!$E$92*IF(Calculations!$K8=0,0,IF(MOD(CA$3,$I8)=1,0,IF(MOD(CA$3,Calculations!$K8)=1,1,0))))*$AU8)*(1+'Country Input'!$C$45)^(Calculations!CA$3-$BH$3)","v":1464.0666666666666},null,"Haier HBD 116*",15522.499333333335,1464.0666666666666,1464.0666666666666,1464.0666666666666,1464.0666666666666,1464.0666666666666,1464.0666666666666,1464.0666666666666,1464.0666666666666,1464.0666666666666,15522.499333333335,1464.0666666666666,1464.0666666666666,1464.0666666666666,1464.0666666666666,1464.0666666666666,1464.0666666666666,1464.0666666666666,1464.0666666666666,1464.0666666666666,{"$f":"SUM(CD8:INDEX($CD8:$CW8,1,'Total Solution Costs'!$B$2))","v":28699.099333333328},null,"Haier HBD 116*",{"$f":"SUM($BH8:BH8)","v":15522.499333333335},{"$f":"SUM($BH8:BI8)","v":16986.566000000003},{"$f":"SUM($BH8:BJ8)","v":18450.632666666668},{"$f":"SUM($BH8:BK8)","v":19914.699333333334},{"$f":"SUM($BH8:BL8)","v":21378.766},{"$f":"SUM($BH8:BM8)","v":22842.832666666665},{"$f":"SUM($BH8:BN8)","v":24306.899333333331},{"$f":"SUM($BH8:BO8)","v":25770.965999999997},{"$f":"SUM($BH8:BP8)","v":27235.032666666662},{"$f":"SUM($BH8:BQ8)","v":28699.099333333328},{"$f":"SUM($BH8:BR8)","v":44221.598666666665},{"$f":"SUM($BH8:BS8)","v":45685.665333333331},{"$f":"SUM($BH8:BT8)","v":47149.731999999996},{"$f":"SUM($BH8:BU8)","v":48613.798666666662},{"$f":"SUM($BH8:BV8)","v":50077.865333333328},{"$f":"SUM($BH8:BW8)","v":51541.931999999993},{"$f":"SUM($BH8:BX8)","v":53005.998666666659},{"$f":"SUM($BH8:BY8)","v":54470.065333333325},{"$f":"SUM($BH8:BZ8)","v":55934.131999999991},{"$f":"SUM($BH8:CA8)","v":57398.198666666656}]
[{"$f":"PQS!A9","v":"Freezer"},{"$f":"PQS!B9","v":"E003/003"},{"$f":"PQS!E9","v":"HBD 286*"},{"$f":"PQS!F9","v":"Haier"},{"$f":"PQS!D9","v":"Haier HBD 286*"},{"$f":"VLOOKUP(E9,PQS!$D$5:$K$107,COLUMN(PQS!$I$3)-COLUMN(PQS!$D$3)+1,FALSE)","v":0},{"$f":"VLOOKUP(E9,PQS!$D$5:$K$107,COLUMN(PQS!$J$3)-COLUMN(PQS!$D$3)+1,FALSE)","v":298},{"$f":"VLOOKUP(E9,PQS!$D$5:$K$107,COLUMN(PQS!$G$3)-COLUMN(PQS!$D$3)+1,FALSE)","v":"Yes"},{"$f":"HLOOKUP(B9,INDIRECT(\"'\"&A9&\"'!$10:$15\"),ROW('Technology template'!$A$11)-ROW('Technology template'!$A$10)+1,FALSE)","v":10},{"$f":"HLOOKUP(B9,INDIRECT(\"'\"&A9&\"'!$10:$15\"),ROW('Technology template'!$A$12)-ROW('Technology template'!$A$10)+1,FALSE)","v":0},{"$f":"HLOOKUP(B9,INDIRECT(\"'\"&A9&\"'!$10:$15\"),ROW('Technology template'!$A$13)-ROW('Technology template'!$A$10)+1,FALSE)","v":0},{"$f":"VLOOKUP(B9,PQS!$B:$Q,MATCH(PQS!$Q$3,PQS!$B$3:$Q$3,0),FALSE)*(1+'Country Input'!$C$47)+HLOOKUP(B9,INDIRECT(\"'\"&A9&\"'!$10:$15\"),ROW('Technology template'!$A$14)-ROW('Technology template'!$A$10)+1,FALSE)*(1+'Country Input'!$C$47)","v":652.70000000000005},{"$f":"HLOOKUP(B9,INDIRECT(\"'\"&A9&\"'!$10:$80\"),MATCH('Technology template'!$A$27,INDIRECT(\"'\"&A9&\"'!$A$10:$A$80\"),0),FALSE)+'Labor and Maintenance '!$E$23","v":716},{"$f":"VLOOKUP(B9,PQS!B:T,MATCH(PQS!$T$3,PQS!$B$3:$T$3,0),FALSE)*(1+'Country Input'!$C$47)","v":139.39246666666668},1508.0924666666667,150.80924666666667,{"$f":"VLOOKUP(B9,PQS!$B:$AE,COLUMN(PQS!AD7)-1,FALSE)","v":318.28000000000003},{"$f":"IFERROR(1/HLOOKUP(B9,INDIRECT(\"'\"&A9&\"'!$10:$80\"),MATCH('Technology template'!$A$31,INDIRECT(\"'\"&A9&\"'!$A$10:$A$80\"),0),FALSE)*HLOOKUP(B9,INDIRECT(\"'\"&A9&\"'!$10:$80\"),MATCH('Technology template'!$A$41,INDIRECT(\"'\"&A9&\"'!$A10:$A$80\"),0),FALSE),0)*TechnicianHourlyWage+IF(A9=\"Solar w Battery\",1/'Labor and Maintenance '!$E$53*'Labor and Maintenance '!$D$53,0)+IF(A9=\"LT passive\", 1/'Labor and Maintenance '!$E$81*'Labor and Maintenance '!$D$81,0)","v":24},{"$f":"IFERROR(1/HLOOKUP(B9,INDIRECT(\"'\"&A9&\"'!$10:$80\"),MATCH('Technology template'!$A$34,INDIRECT(\"'\"&A9&\"'!$A$10:$A$80\"),0),FALSE)*(HLOOKUP(B9,INDIRECT(\"'\"&A9&\"'!$10:$80\"),MATCH('Technology template'!$A$44,INDIRECT(\"'\"&A9&\"'!$A10:$A$80\"),0),FALSE)*TechnicianHourlyWage+RemoteTravelCostPerDay),0)+IFERROR(1/HLOOKUP(B9,INDIRECT(\"'\"&A9&\"'!$10:$80\"),MATCH('Technology template'!$A$35,INDIRECT(\"'\"&A9&\"'!$A$10:$A$80\"),0),FALSE)*(HLOOKUP(B9,INDIRECT(\"'\"&A9&\"'!$10:$80\"),MATCH('Technology template'!$A$45,INDIRECT(\"'\"&A9&\"'!$A10:$A$80\"),0),FALSE)*TechnicianHourlyWage+RemoteTravelCostPerDay),0)+IFERROR(1/HLOOKUP(B9,INDIRECT(\"'\"&A9&\"'!$10:$80\"),MATCH('Technology template'!$A$37,INDIRECT(\"'\"&A9&\"'!$A$10:$A$80\"),0),FALSE)*(HLOOKUP(B9,INDIRECT(\"'\"&A9&\"'!$10:$80\"),MATCH('Technology template'!$A$46,INDIRECT(\"'\"&A9&\"'!$A10:$A$80\"),0),FALSE)*TechnicianHourlyWage+'Labor and Maintenance '!$B$8),0)","v":94.666666666666657},4369.4666666666672,436.94666666666672,587.75591333333341,null,"Haier HBD 286*",5.0607129753914988,14.662639821029085,19.723352796420585,null,"Haier HBD 286*",0.50607129753914992,1.4662639821029084,1.9723352796420583,null,"Haier HBD 286*",{"$error":"#DIV/0!"},{"$error":"#DIV/0!"},{"$error":"#DIV/0!"},{"$error":"#DIV/0!"},null,"Haier HBD 286*",{"$error":"#DIV/0!"},{"$error":"#DIV/0!"},{"$error":"#DIV/0!"},{"$error":"#DIV/0!"},null,"Haier HBD 286*",{"$f":"IF(F9=0, 'Country Input'!$D$7, ROUNDUP(LitersPerFacility/F9,0)*'Country Input'!$D$7)","v":10},15080.924666666668,4369.4666666666672,19450.391333333333,null,"Haier HBD 286*",{"$f":"ROUNDUP(LitersPerFacility/F9,0)*'Country Input'!$D$7*ROUNDUP('Total Solution Costs'!$B$2/Calculations!I9,0)","v":{"$error":"#DIV/0!"}},{"$error":"#DIV/0!"},{"$error":"#DIV/0!"},{"$error":"#DIV/0!"},null,null,"Haier HBD 286*",{"$f":"(($U9+($O9)*IF(MOD(BH$3,$I9)=1,1,0)+Parts!$E$91*IF($J9=0,0,IF(MOD(BH$3,$I9)=1,IF(PQS!$R9=\"NO\",1,0),IF(MOD(BH$3,Calculations!$J9)=1,1,0)))+Parts!$E$92*IF(Calculations!$K9=0,0,IF(MOD(BH$3,$I9)=1,0,IF(MOD(BH$3,Calculations!$K9)=1,1,0))))*$AU9)*(1+'Country Input'!$C$45)^(Calculations!BH$3-$BH$3)+TrainingCost","v":19450.391333333333},{"$f":"(($U9+($O9)*IF(MOD(BI$3,$I9)=1,1,0)+Parts!$E$91*IF($J9=0,0,IF(MOD(BI$3,$I9)=1,IF(PQS!$R9=\"NO\",1,0),IF(MOD(BI$3,Calculations!$J9)=1,1,0)))+Parts!$E$92*IF(Calculations!$K9=0,0,IF(MOD(BI$3,$I9)=1,0,IF(MOD(BI$3,Calculations!$K9)=1,1,0))))*$AU9)*(1+'Country Input'!$C$45)^(Calculations!BI$3-$BH$3)","v":4369.4666666666672},{"$f":"(($U9+($O9)*IF(MOD(BJ$3,$I9)=1,1,0)+Parts!$E$91*IF($J9=0,0,IF(MOD(BJ$3,$I9)=1,IF(PQS!$R9=\"NO\",1,0),IF(MOD(BJ$3,Calculations!$J9)=1,1,0)))+Parts!$E$92*IF(Calculations!$K9=0,0,IF(MOD(BJ$3,$I9)=1,0,IF(MOD(BJ$3,Calculations!$K9)=1,1,0))))*$AU9)*(1+'Country Input'!$C$45)^(Calculations!BJ$3-$BH$3)","v":4369.4666666666672},{"$f":"(($U9+($O9)*IF(MOD(BK$3,$I9)=1,1,0)+Parts!$E$91*IF($J9=0,0,IF(MOD(BK$3,$I9)=1,IF(PQS!$R9=\"NO\",1,0),IF(MOD(BK$3,Calculations!$J9)=1,1,0)))+Parts!$E$92*IF(Calculations!$K9=0,0,IF(MOD(BK$3,$I9)=1,0,IF(MOD(BK$3,Calculations!$K9)=1,1,0))))*$AU9)*(1+'Country Input'!$C$45)^(Calculations!BK$3-$BH$3)","v":4369.4666666666672},{"$f":"(($U9+($O9)*IF(MOD(BL$3,$I9)=1,1,0)+Parts!$E$91*IF($J9=0,0,IF(MOD(BL$3,$I9)=1,IF(PQS!$R9=\"NO\",1,0),IF(MOD(BL$3,Calculations!$J9)=1,1,0)))+Parts!$E$92*IF(Calculations!$K9=0,0,IF(MOD(BL$3,$I9)=1,0,IF(MOD(BL$3,Calculations!$K9)=1,1,0))))*$AU9)*(1+'Country Input'!$C$45)^(Calculations!BL$3-$BH$3)","v":4369.4666666666672},{"$f":"(($U9+($O9)*IF(MOD(BM$3,$I9)=1,1,0)+Parts!$E$91*IF($J9=0,0,IF(MOD(BM$3,$I9)=1,IF(PQS!$R9=\"NO\",1,0),IF(MOD(BM$3,Calculations!$J9)=1,1,0)))+Parts!$E$92*IF(Calculations!$K9=0,0,IF(MOD(BM$3,$I9)=1,0,IF(MOD(BM$3,Calculations!$K9)=1,1,0))))*$AU9)*(1+'Country Input'!$C$45)^(Calculations!BM$3-$BH$3)","v":4369.4666666666672},{"$f":"(($U9+($O9)*IF(MOD(BN$3,$I9)=1,1,0)+Parts!$E$91*IF($J9=0,0,IF(MOD(BN$3,$I9)=1,IF(PQS!$R9=\"NO\",1,0),IF(MOD(BN$3,Calculations!$J9)=1,1,0)))+Parts!$E$92*IF(Calculations!$K9=0,0,IF(MOD(BN$3,$I9)=1,0,IF(MOD(BN$3,Calculations!$K9)=1,1,0))))*$AU9)*(1+'Country Input'!$C$45)^(Calculations!BN$3-$BH$3)","v":4369.4666666666672},{"$f":"(($U9+($O9)*IF(MOD(BO$3,$I9)=1,1,0)+Parts!$E$91*IF($J9=0,0,IF(MOD(BO$3,$I9)=1,IF(PQS!$R9=\"NO\",1,0),IF(MOD(BO$3,Calculations!$J9)=1,1,0)))+Parts!$E$92*IF(Calculations!$K9=0,0,IF(MOD(BO$3,$I9)=1,0,IF(MOD(BO$3,Calculations!$K9)=1,1,0))))*$AU9)*(1+'Country Input'!$C$45)^(Calculations!BO$3-$BH$3)","v":4369.4666666666672},{"$f":"(($U9+($O9)*IF(MOD(BP$3,$I9)=1,1,0)+Parts!$E$91*IF($J9=0,0,IF(MOD(BP$3,$I9)=1,IF(PQS!$R9=\"NO\",1,0),IF(MOD(BP$3,Calculations!$J9)=1,1,0)))+Parts!$E$92*IF(Calculations!$K9=0,0,IF(MOD(BP$3,$I9)=1,0,IF(MOD(BP$3,Calculations!$K9)=1,1,0))))*$AU9)*(1+'Country Input'!$C$45)^(Calculations!BP$3-$BH$3)","v":4369.4666666666672},{"$f":"(($U9+($O9)*IF(MOD(BQ$3,$I9)=1,1,0)+Parts!$E$91*IF($J9=0,0,IF(MOD(BQ$3,$I9)=1,IF(PQS!$R9=\"NO\",1,0),IF(MOD(BQ$3,Calculations!$J9)=1,1,0)))+Parts!$E$92*IF(Calculations!$K9=0,0,IF(MOD(BQ$3,$I9)=1,0,IF(MOD(BQ$3,Calculations!$K9)=1,1,0))))*$AU9)*(1+'Country Input'!$C$45)^(Calculations!BQ$3-$BH$3)","v":4369.4666666666672},{"$f":"(($U9+($O9)*IF(MOD(BR$3,$I9)=1,1,0)+Parts!$E$91*IF($J9=0,0,IF(MOD(BR$3,$I9)=1,IF(PQS!$R9=\"NO\",1,0),IF(MOD(BR$3,Calculations!$J9)=1,1,0)))+Parts!$E$92*IF(Calculations!$K9=0,0,IF(MOD(BR$3,$I9)=1,0,IF(MOD(BR$3,Calculations!$K9)=1,1,0))))*$AU9)*(1+'Country Input'!$C$45)^(Calculations!BR$3-$BH$3)","v":19450.391333333333},{"$f":"(($U9+($O9)*IF(MOD(BS$3,$I9)=1,1,0)+Parts!$E$91*IF($J9=0,0,IF(MOD(BS$3,$I9)=1,IF(PQS!$R9=\"NO\",1,0),IF(MOD(BS$3,Calculations!$J9)=1,1,0)))+Parts!$E$92*IF(Calculations!$K9=0,0,IF(MOD(BS$3,$I9)=1,0,IF(MOD(BS$3,Calculations!$K9)=1,1,0))))*$AU9)*(1+'Country Input'!$C$45)^(Calculations!BS$3-$BH$3)","v":4369.4666666666672},{"$f":"(($U9+($O9)*IF(MOD(BT$3,$I9)=1,1,0)+Parts!$E$91*IF($J9=0,0,IF(MOD(BT$3,$I9)=1,IF(PQS!$R9=\"NO\",1,0),IF(MOD(BT$3,Calculations!$J9)=1,1,0)))+Parts!$E$92*IF(Calculations!$K9=0,0,IF(MOD(BT$3,$I9)=1,0,IF(MOD(BT$3,Calculations!$K9)=1,1,0))))*$AU9)*(1+'Country Input'!$C$45)^(Calculations!BT$3-$BH$3)","v":4369.4666666666672},{"$f":"(($U9+($O9)*IF(MOD(BU$3,$I9)=1,1,0)+Parts!$E$91*IF($J9=0,0,IF(MOD(BU$3,$I9)=1,IF(PQS!$R9=\"NO\",1,0),IF(MOD(BU$3,Calculations!$J9)=1,1,0)))+Parts!$E$92*IF(Calculations!$K9=0,0,IF(MOD(BU$3,$I9)=1,0,IF(MOD(BU$3,Calculations!$K9)=1,1,0))))*$AU9)*(1+'Country Input'!$C$45)^(Calculations!BU$3-$BH$3)","v":4369.4666666666672},{"$f":"(($U9+($O9)*IF(MOD(BV$3,$I9)=1,1,0)+Parts!$E$91*IF($J9=0,0,IF(MOD(BV$3,$I9)=1,IF(PQS!$R9=\"NO\",1,0),IF(MOD(BV$3,Calculations!$J9)=1,1,0)))+Parts!$E$92*IF(Calculations!$K9=0,0,IF(MOD(BV$3,$I9)=1,0,IF(MOD(BV$3,Calculations!$K9)=1,1,0))))*$AU9)*(1+'Country Input'!$C$45)^(Calculations!BV$3-$BH$3)","v":4369.4666666666672},{"$f":"(($U9+($O9)*IF(MOD(BW$3,$I9)=1,1,0)+Parts!$E$91*IF($J9=0,0,IF(MOD(BW$3,$I9)=1,IF(PQS!$R9=\"NO\",1,0),IF(MOD(BW$3,Calculations!$J9)=1,1,0)))+Parts!$E$92*IF(Calculations!$K9=0,0,IF(MOD(BW$3,$I9)=1,0,IF(MOD(BW$3,Calculations!$K9)=1,1,0))))*$AU9)*(1+'Country Input'!$C$45)^(Calculations!BW$3-$BH$3)","v":4369.4666666666672},{"$f":"(($U9+($O9)*IF(MOD(BX$3,$I9)=1,1,0)+Parts!$E$91*IF($J9=0,0,IF(MOD(BX$3,$I9)=1,IF(PQS!$R9=\"NO\",1,0),IF(MOD(BX$3,Calculations!$J9)=1,1,0)))+Parts!$E$92*IF(Calculations!$K9=0,0,IF(MOD(BX$3,$I9)=1,0,IF(MOD(BX$3,Calculations!$K9)=1,1,0))))*$AU9)*(1+'Country Input'!$C$45)^(Calculations!BX$3-$BH$3)","v":4369.4666666666672},{"$f":"(($U9+($O9)*IF(MOD(BY$3,$I9)=1,1,0)+Parts!$E$91*IF($J9=0,0,IF(MOD(BY$3,$I9)=1,IF(PQS!$R9=\"NO\",1,0),IF(MOD(BY$3,Calculations!$J9)=1,1,0)))+Parts!$E$92*IF(Calculations!$K9=0,0,IF(MOD(BY$3,$I9)=1,0,IF(MOD(BY$3,Calculations!$K9)=1,1,0))))*$AU9)*(1+'Country Input'!$C$45)^(Calculations!BY$3-$BH$3)","v":4369.4666666666672},{"$f":"(($U9+($O9)*IF(MOD(BZ$3,$I9)=1,1,0)+Parts!$E$91*IF($J9=0,0,IF(MOD(BZ$3,$I9)=1,IF(PQS!$R9=\"NO\",1,0),IF(MOD(BZ$3,Calculations!$J9)=1,1,0)))+Parts!$E$92*IF(Calculations!$K9=0,0,IF(MOD(BZ$3,$I9)=1,0,IF(MOD(BZ$3,Calculations!$K9)=1,1,0))))*$AU9)*(1+'Country Input'!$C$45)^(Calculations!BZ$3-$BH$3)","v":4369.4666666666672},{"$f":"(($U9+($O9)*IF(MOD(CA$3,$I9)=1,1,0)+Parts!$E$91*IF($J9=0,0,IF(MOD(CA$3,$I9)=1,IF(PQS!$R9=\"NO\",1,0),IF(MOD(CA$3,Calculations!$J9)=1,1,0)))+Parts!$E$92*IF(Calculations!$K9=0,0,IF(MOD(CA$3,$I9)=1,0,IF(MOD(CA$3,Calculations!$K9)=1,1,0))))*$AU9)*(1+'Country Input'!$C$45)^(Calculations!CA$3-$BH$3)","v":4369.4666666666672},null,"Haier HBD 286*",19450.391333333333,4369.4666666666672,4369.4666666666672,4369.4666666666672,4369.4666666666672,4369.4666666666672,4369.4666666666672,4369.4666666666672,4369.4666666666672,4369.4666666666672,19450.391333333333,4369.4666666666672,4369.4666666666672,4369.4666666666672,4369.4666666666672,4369.4666666666672,4369.4666666666672,4369.4666666666672,4369.4666666666672,4369.4666666666672,{"$f":"SUM(CD9:INDEX($CD9:$CW9,1,'Total Solution Costs'!$B$2))","v":58775.591333333337},null,"Haier HBD 286*",{"$f":"SUM($BH9:BH9)","v":19450.391333333333},{"$f":"SUM($BH9:BI9)","v":23819.858},{"$f":"SUM($BH9:BJ9)","v":28189.324666666667},{"$f":"SUM($BH9:BK9)","v":32558.791333333334},{"$f":"SUM($BH9:BL9)","v":36928.258000000002},{"$f":"SUM($BH9:BM9)","v":41297.724666666669},{"$f":"SUM($BH9:BN9)","v":45667.191333333336},{"$f":"SUM($BH9:BO9)","v":50036.658000000003},{"$f":"SUM($BH9:BP9)","v":54406.12466666667},{"$f":"SUM($BH9:BQ9)","v":58775.591333333337},{"$f":"SUM($BH9:BR9)","v":78225.982666666678},{"$f":"SUM($BH9:BS9)","v":82595.449333333352},{"$f":"SUM($BH9:BT9)","v":86964.916000000027},{"$f":"SUM($BH9:BU9)","v":91334.382666666701},{"$f":"SUM($BH9:BV9)","v":95703.849333333375},{"$f":"SUM($BH9:BW9)","v":100073.31600000005},{"$f":"SUM($BH9:BX9)","v":104442.78266666672},{"$f":"SUM($BH9:BY9)","v":108812.2493333334},{"$f":"SUM($BH9:BZ9)","v":113181.71600000007},{"$f":"SUM($BH9:CA9)","v":117551.18266666675}]
[{"$f":"PQS!A10","v":"Freezer"},{"$f":"PQS!B10","v":"E003/023"},{"$f":"PQS!E10","v":"MF 314*"},{"$f":"PQS!F10","v":"Vestfrost"},{"$f":"PQS!D10","v":"Vestfrost MF 314*"},{"$f":"VLOOKUP(E10,PQS!$D$5:$K$107,COLUMN(PQS!$I$3)-COLUMN(PQS!$D$3)+1,FALSE)","v":0},{"$f":"VLOOKUP(E10,PQS!$D$5:$K$107,COLUMN(PQS!$J$3)-COLUMN(PQS!$D$3)+1,FALSE)","v":281},{"$f":"VLOOKUP(E10,PQS!$D$5:$K$107,COLUMN(PQS!$G$3)-COLUMN(PQS!$D$3)+1,FALSE)","v":"Yes"},{"$f":"HLOOKUP(B10,INDIRECT(\"'\"&A10&\"'!$10:$15\"),ROW('Technology template'!$A$11)-ROW('Technology template'!$A$10)+1,FALSE)","v":10},{"$f":"HLOOKUP(B10,INDIRECT(\"'\"&A10&\"'!$10:$15\"),ROW('Technology template'!$A$12)-ROW('Technology template'!$A$10)+1,FALSE)","v":0},{"$f":"HLOOKUP(B10,INDIRECT(\"'\"&A10&\"'!$10:$15\"),ROW('Technology template'!$A$13)-ROW('Technology template'!$A$10)+1,FALSE)","v":0},{"$f":"VLOOKUP(B10,PQS!$B:$Q,MATCH(PQS!$Q$3,PQS!$B$3:$Q$3,0),FALSE)*(1+'Country Input'!$C$47)+HLOOKUP(B10,INDIRECT(\"'\"&A10&\"'!$10:$15\"),ROW('Technology template'!$A$14)-ROW('Technology template'!$A$10)+1,FALSE)*(1+'Country Input'!$C$47)","v":656.64830000000006},{"$f":"HLOOKUP(B10,INDIRECT(\"'\"&A10&\"'!$10:$80\"),MATCH('Technology template'!$A$27,INDIRECT(\"'\"&A10&\"'!$A$10:$A$80\"),0),FALSE)+'Labor and Maintenance '!$E$23","v":716},{"$f":"VLOOKUP(B10,PQS!B:T,MATCH(PQS!$T$3,PQS!$B$3:$T$3,0),FALSE)*(1+'Country Input'!$C$47)","v":278.93230799999998},1651.580608,165.15806079999999,{"$f":"VLOOKUP(B10,PQS!$B:$AE,COLUMN(PQS!AD8)-1,FALSE)","v":308.79000000000002},{"$f":"IFERROR(1/HLOOKUP(B10,INDIRECT(\"'\"&A10&\"'!$10:$80\"),MATCH('Technology template'!$A$31,INDIRECT(\"'\"&A10&\"'!$A$10:$A$80\"),0),FALSE)*HLOOKUP(B10,INDIRECT(\"'\"&A10&\"'!$10:$80\"),MATCH('Technology template'!$A$41,INDIRECT(\"'\"&A10&\"'!$A10:$A$80\"),0),FALSE),0)*TechnicianHourlyWage+IF(A10=\"Solar w Battery\",1/'Labor and Maintenance '!$E$53*'Labor and Maintenance '!$D$53,0)+IF(A10=\"LT passive\", 1/'Labor and Maintenance '!$E$81*'Labor and Maintenance '!$D$81,0)","v":24},{"$f":"IFERROR(1/HLOOKUP(B10,INDIRECT(\"'\"&A10&\"'!$10:$80\"),MATCH('Technology template'!$A$34,INDIRECT(\"'\"&A10&\"'!$A$10:$A$80\"),0),FALSE)*(HLOOKUP(B10,INDIRECT(\"'\"&A10&\"'!$10:$80\"),MATCH('Technology template'!$A$44,INDIRECT(\"'\"&A10&\"'!$A10:$A$80\"),0),FALSE)*TechnicianHourlyWage+RemoteTravelCostPerDay),0)+IFERROR(1/HLOOKUP(B10,INDIRECT(\"'\"&A10&\"'!$10:$80\"),MATCH('Technology template'!$A$35,INDIRECT(\"'\"&A10&\"'!$A$10:$A$80\"),0),FALSE)*(HLOOKUP(B10,INDIRECT(\"'\"&A10&\"'!$10:$80\"),MATCH('Technology template'!$A$45,INDIRECT(\"'\"&A10&\"'!$A10:$A$80\"),0),FALSE)*TechnicianHourlyWage+RemoteTravelCostPerDay),0)+IFERROR(1/HLOOKUP(B10,INDIRECT(\"'\"&A10&\"'!$10:$80\"),MATCH('Technology template'!$A$37,INDIRECT(\"'\"&A10&\"'!$A$10:$A$80\"),0),FALSE)*(HLOOKUP(B10,INDIRECT(\"'\"&A10&\"'!$10:$80\"),MATCH('Technology template'!$A$46,INDIRECT(\"'\"&A10&\"'!$A10:$A$80\"),0),FALSE)*TechnicianHourlyWage+'Labor and Maintenance '!$B$8),0)","v":94.666666666666657},4274.5666666666675,427.45666666666671,592.61472746666664,null,"Vestfrost MF 314*",5.8775110604982208,15.211981020166077,21.089492080664296,null,"Vestfrost MF 314*",0.58775110604982206,1.5211981020166074,2.1089492080664294,null,"Vestfrost MF 314*",{"$error":"#DIV/0!"},{"$error":"#DIV/0!"},{"$error":"#DIV/0!"},{"$error":"#DIV/0!"},null,"Vestfrost MF 314*",{"$error":"#DIV/0!"},{"$error":"#DIV/0!"},{"$error":"#DIV/0!"},{"$error":"#DIV/0!"},null,"Vestfrost MF 314*",{"$f":"IF(F10=0, 'Country Input'!$D$7, ROUNDUP(LitersPerFacility/F10,0)*'Country Input'!$D$7)","v":10},16515.806079999998,4274.5666666666675,20790.372746666668,null,"Vestfrost MF 314*",{"$f":"ROUNDUP(LitersPerFacility/F10,0)*'Country Input'!$D$7*ROUNDUP('Total Solution Costs'!$B$2/Calculations!I10,0)","v":{"$error":"#DIV/0!"}},{"$error":"#DIV/0!"},{"$error":"#DIV/0!"},{"$error":"#DIV/0!"},null,null,"Vestfrost MF 314*",{"$f":"(($U10+($O10)*IF(MOD(BH$3,$I10)=1,1,0)+Parts!$E$91*IF($J10=0,0,IF(MOD(BH$3,$I10)=1,IF(PQS!$R10=\"NO\",1,0),IF(MOD(BH$3,Calculations!$J10)=1,1,0)))+Parts!$E$92*IF(Calculations!$K10=0,0,IF(MOD(BH$3,$I10)=1,0,IF(MOD(BH$3,Calculations!$K10)=1,1,0))))*$AU10)*(1+'Country Input'!$C$45)^(Calculations!BH$3-$BH$3)+TrainingCost","v":20790.372746666668},{"$f":"(($U10+($O10)*IF(MOD(BI$3,$I10)=1,1,0)+Parts!$E$91*IF($J10=0,0,IF(MOD(BI$3,$I10)=1,IF(PQS!$R10=\"NO\",1,0),IF(MOD(BI$3,Calculations!$J10)=1,1,0)))+Parts!$E$92*IF(Calculations!$K10=0,0,IF(MOD(BI$3,$I10)=1,0,IF(MOD(BI$3,Calculations!$K10)=1,1,0))))*$AU10)*(1+'Country Input'!$C$45)^(Calculations!BI$3-$BH$3)","v":4274.5666666666675},{"$f":"(($U10+($O10)*IF(MOD(BJ$3,$I10)=1,1,0)+Parts!$E$91*IF($J10=0,0,IF(MOD(BJ$3,$I10)=1,IF(PQS!$R10=\"NO\",1,0),IF(MOD(BJ$3,Calculations!$J10)=1,1,0)))+Parts!$E$92*IF(Calculations!$K10=0,0,IF(MOD(BJ$3,$I10)=1,0,IF(MOD(BJ$3,Calculations!$K10)=1,1,0))))*$AU10)*(1+'Country Input'!$C$45)^(Calculations!BJ$3-$BH$3)","v":4274.5666666666675},{"$f":"(($U10+($O10)*IF(MOD(BK$3,$I10)=1,1,0)+Parts!$E$91*IF($J10=0,0,IF(MOD(BK$3,$I10)=1,IF(PQS!$R10=\"NO\",1,0),IF(MOD(BK$3,Calculations!$J10)=1,1,0)))+Parts!$E$92*IF(Calculations!$K10=0,0,IF(MOD(BK$3,$I10)=1,0,IF(MOD(BK$3,Calculations!$K10)=1,1,0))))*$AU10)*(1+'Country Input'!$C$45)^(Calculations!BK$3-$BH$3)","v":4274.5666666666675},{"$f":"(($U10+($O10)*IF(MOD(BL$3,$I10)=1,1,0)+Parts!$E$91*IF($J10=0,0,IF(MOD(BL$3,$I10)=1,IF(PQS!$R10=\"NO\",1,0),IF(MOD(BL$3,Calculations!$J10)=1,1,0)))+Parts!$E$92*IF(Calculations!$K10=0,0,IF(MOD(BL$3,$I10)=1,0,IF(MOD(BL$3,Calculations!$K10)=1,1,0))))*$AU10)*(1+'Country Input'!$C$45)^(Calculations!BL$3-$BH$3)","v":4274.5666666666675},{"$f":"(($U10+($O10)*IF(MOD(BM$3,$I10)=1,1,0)+Parts!$E$91*IF($J10=0,0,IF(MOD(BM$3,$I10)=1,IF(PQS!$R10=\"NO\",1,0),IF(MOD(BM$3,Calculations!$J10)=1,1,0)))+Parts!$E$92*IF(Calculations!$K10=0,0,IF(MOD(BM$3,$I10)=1,0,IF(MOD(BM$3,Calculations!$K10)=1,1,0))))*$AU10)*(1+'Country Input'!$C$45)^(Calculations!BM$3-$BH$3)","v":4274.5666666666675},{"$f":"(($U10+($O10)*IF(MOD(BN$3,$I10)=1,1,0)+Parts!$E$91*IF($J10=0,0,IF(MOD(BN$3,$I10)=1,IF(PQS!$R10=\"NO\",1,0),IF(MOD(BN$3,Calculations!$J10)=1,1,0)))+Parts!$E$92*IF(Calculations!$K10=0,0,IF(MOD(BN$3,$I10)=1,0,IF(MOD(BN$3,Calculations!$K10)=1,1,0))))*$AU10)*(1+'Country Input'!$C$45)^(Calculations!BN$3-$BH$3)","v":4274.5666666666675},{"$f":"(($U10+($O10)*IF(MOD(BO$3,$I10)=1,1,0)+Parts!$E$91*IF($J10=0,0,IF(MOD(BO$3,$I10)=1,IF(PQS!$R10=\"NO\",1,0),IF(MOD(BO$3,Calculations!$J10)=1,1,0)))+Parts!$E$92*IF(Calculations!$K10=0,0,IF(MOD(BO$3,$I10)=1,0,IF(MOD(BO$3,Calculations!$K10)=1,1,0))))*$AU10)*(1+'Country Input'!$C$45)^(Calculations!BO$3-$BH$3)","v":4274.5666666666675},{"$f":"(($U10+($O10)*IF(MOD(BP$3,$I10)=1,1,0)+Parts!$E$91*IF($J10=0,0,IF(MOD(BP$3,$I10)=1,IF(PQS!$R10=\"NO\",1,0),IF(MOD(BP$3,Calculations!$J10)=1,1,0)))+Parts!$E$92*IF(Calculations!$K10=0,0,IF(MOD(BP$3,$I10)=1,0,IF(MOD(BP$3,Calculations!$K10)=1,1,0))))*$AU10)*(1+'Country Input'!$C$45)^(Calculations!BP$3-$BH$3)","v":4274.5666666666675},{"$f":"(($U10+($O10)*IF(MOD(BQ$3,$I10)=1,1,0)+Parts!$E$91*IF($J10=0,0,IF(MOD(BQ$3,$I10)=1,IF(PQS!$R10=\"NO\",1,0),IF(MOD(BQ$3,Calculations!$J10)=1,1,0)))+Parts!$E$92*IF(Calculations!$K10=0,0,IF(MOD(BQ$3,$I10)=1,0,IF(MOD(BQ$3,Calculations!$K10)=1,1,0))))*$AU10)*(1+'Country Input'!$C$45)^(Calculations!BQ$3-$BH$3)","v":4274.5666666666675},{"$f":"(($U10+($O10)*IF(MOD(BR$3,$I10)=1,1,0)+Parts!$E$91*IF($J10=0,0,IF(MOD(BR$3,$I10)=1,IF(PQS!$R10=\"NO\",1,0),IF(MOD(BR$3,Calculations!$J10)=1,1,0)))+Parts!$E$92*IF(Calculations!$K10=0,0,IF(MOD(BR$3,$I10)=1,0,IF(MOD(BR$3,Calculations!$K10)=1,1,0))))*$AU10)*(1+'Country Input'!$C$45)^(Calculations!BR$3-$BH$3)","v":20790.372746666668},{"$f":"(($U10+($O10)*IF(MOD(BS$3,$I10)=1,1,0)+Parts!$E$91*IF($J10=0,0,IF(MOD(BS$3,$I10)=1,IF(PQS!$R10=\"NO\",1,0),IF(MOD(BS$3,Calculations!$J10)=1,1,0)))+Parts!$E$92*IF(Calculations!$K10=0,0,IF(MOD(BS$3,$I10)=1,0,IF(MOD(BS$3,Calculations!$K10)=1,1,0))))*$AU10)*(1+'Country Input'!$C$45)^(Calculations!BS$3-$BH$3)","v":4274.5666666666675},{"$f":"(($U10+($O10)*IF(MOD(BT$3,$I10)=1,1,0)+Parts!$E$91*IF($J10=0,0,IF(MOD(BT$3,$I10)=1,IF(PQS!$R10=\"NO\",1,0),IF(MOD(BT$3,Calculations!$J10)=1,1,0)))+Parts!$E$92*IF(Calculations!$K10=0,0,IF(MOD(BT$3,$I10)=1,0,IF(MOD(BT$3,Calculations!$K10)=1,1,0))))*$AU10)*(1+'Country Input'!$C$45)^(Calculations!BT$3-$BH$3)","v":4274.5666666666675},{"$f":"(($U10+($O10)*IF(MOD(BU$3,$I10)=1,1,0)+Parts!$E$91*IF($J10=0,0,IF(MOD(BU$3,$I10)=1,IF(PQS!$R10=\"NO\",1,0),IF(MOD(BU$3,Calculations!$J10)=1,1,0)))+Parts!$E$92*IF(Calculations!$K10=0,0,IF(MOD(BU$3,$I10)=1,0,IF(MOD(BU$3,Calculations!$K10)=1,1,0))))*$AU10)*(1+'Country Input'!$C$45)^(Calculations!BU$3-$BH$3)","v":4274.5666666666675},{"$f":"(($U10+($O10)*IF(MOD(BV$3,$I10)=1,1,0)+Parts!$E$91*IF($J10=0,0,IF(MOD(BV$3,$I10)=1,IF(PQS!$R10=\"NO\",1,0),IF(MOD(BV$3,Calculations!$J10)=1,1,0)))+Parts!$E$92*IF(Calculations!$K10=0,0,IF(MOD(BV$3,$I10)=1,0,IF(MOD(BV$3,Calculations!$K10)=1,1,0))))*$AU10)*(1+'Country Input'!$C$45)^(Calculations!BV$3-$BH$3)","v":4274.5666666666675},{"$f":"(($U10+($O10)*IF(MOD(BW$3,$I10)=1,1,0)+Parts!$E$91*IF($J10=0,0,IF(MOD(BW$3,$I10)=1,IF(PQS!$R10=\"NO\",1,0),IF(MOD(BW$3,Calculations!$J10)=1,1,0)))+Parts!$E$92*IF(Calculations!$K10=0,0,IF(MOD(BW$3,$I10)=1,0,IF(MOD(BW$3,Calculations!$K10)=1,1,0))))*$AU10)*(1+'Country Input'!$C$45)^(Calculations!BW$3-$BH$3)","v":4274.5666666666675},{"$f":"(($U10+($O10)*IF(MOD(BX$3,$I10)=1,1,0)+Parts!$E$91*IF($J10=0,0,IF(MOD(BX$3,$I10)=1,IF(PQS!$R10=\"NO\",1,0),IF(MOD(BX$3,Calculations!$J10)=1,1,0)))+Parts!$E$92*IF(Calculations!$K10=0,0,IF(MOD(BX$3,$I10)=1,0,IF(MOD(BX$3,Calculations!$K10)=1,1,0))))*$AU10)*(1+'Country Input'!$C$45)^(Calculations!BX$3-$BH$3)","v":4274.5666666666675},{"$f":"(($U10+($O10)*IF(MOD(BY$3,$I10)=1,1,0)+Parts!$E$91*IF($J10=0,0,IF(MOD(BY$3,$I10)=1,IF(PQS!$R10=\"NO\",1,0),IF(MOD(BY$3,Calculations!$J10)=1,1,0)))+Parts!$E$92*IF(Calculations!$K10=0,0,IF(MOD(BY$3,$I10)=1,0,IF(MOD(BY$3,Calculations!$K10)=1,1,0))))*$AU10)*(1+'Country Input'!$C$45)^(Calculations!BY$3-$BH$3)","v":4274.5666666666675},{"$f":"(($U10+($O10)*IF(MOD(BZ$3,$I10)=1,1,0)+Parts!$E$91*IF($J10=0,0,IF(MOD(BZ$3,$I10)=1,IF(PQS!$R10=\"NO\",1,0),IF(MOD(BZ$3,Calculations!$J10)=1,1,0)))+Parts!$E$92*IF(Calculations!$K10=0,0,IF(MOD(BZ$3,$I10)=1,0,IF(MOD(BZ$3,Calculations!$K10)=1,1,0))))*$AU10)*(1+'Country Input'!$C$45)^(Calculations!BZ$3-$BH$3)","v":4274.5666666666675},{"$f":"(($U10+($O10)*IF(MOD(CA$3,$I10)=1,1,0)+Parts!$E$91*IF($J10=0,0,IF(MOD(CA$3,$I10)=1,IF(PQS!$R10=\"NO\",1,0),IF(MOD(CA$3,Calculations!$J10)=1,1,0)))+Parts!$E$92*IF(Calculations!$K10=0,0,IF(MOD(CA$3,$I10)=1,0,IF(MOD(CA$3,Calculations!$K10)=1,1,0))))*$AU10)*(1+'Country Input'!$C$45)^(Calculations!CA$3-$BH$3)","v":4274.5666666666675},null,"Vestfrost MF 314*",20790.372746666668,4274.5666666666675,4274.5666666666675,4274.5666666666675,4274.5666666666675,4274.5666666666675,4274.5666666666675,4274.5666666666675,4274.5666666666675,4274.5666666666675,20790.372746666668,4274.5666666666675,4274.5666666666675,4274.5666666666675,4274.5666666666675,4274.5666666666675,4274.5666666666675,4274.5666666666675,4274.5666666666675,4274.5666666666675,{"$f":"SUM(CD10:INDEX($CD10:$CW10,1,'Total Solution Costs'!$B$2))","v":59261.472746666659},null,"Vestfrost MF 314*",{"$f":"SUM($BH10:BH10)","v":20790.372746666668},{"$f":"SUM($BH10:BI10)","v":25064.939413333334},{"$f":"SUM($BH10:BJ10)","v":29339.506079999999},{"$f":"SUM($BH10:BK10)","v":33614.072746666665},{"$f":"SUM($BH10:BL10)","v":37888.639413333331},{"$f":"SUM($BH10:BM10)","v":42163.206079999996},{"$f":"SUM($BH10:BN10)","v":46437.772746666662},{"$f":"SUM($BH10:BO10)","v":50712.339413333328},{"$f":"SUM($BH10:BP10)","v":54986.906079999993},{"$f":"SUM($BH10:BQ10)","v":59261.472746666659},{"$f":"SUM($BH10:BR10)","v":80051.845493333327},{"$f":"SUM($BH10:BS10)","v":84326.412159999993},{"$f":"SUM($BH10:BT10)","v":88600.978826666658},{"$f":"SUM($BH10:BU10)","v":92875.545493333324},{"$f":"SUM($BH10:BV10)","v":97150.11215999999},{"$f":"SUM($BH10:BW10)","v":101424.67882666666},{"$f":"SUM($BH10:BX10)","v":105699.24549333332},{"$f":"SUM($BH10:BY10)","v":109973.81215999999},{"$f":"SUM($BH10:BZ10)","v":114248.37882666665},{"$f":"SUM($BH10:CA10)","v":118522.94549333332}]
[{"$f":"PQS!A11","v":"Freezer"},{"$f":"PQS!B11","v":"E003/024"},{"$f":"PQS!E11","v":"MF 114*"},{"$f":"PQS!F11","v":"Vestfrost"},{"$f":"PQS!D11","v":"Vestfrost MF 114*"},{"$f":"VLOOKUP(E11,PQS!$D$5:$K$107,COLUMN(PQS!$I$3)-COLUMN(PQS!$D$3)+1,FALSE)","v":0},{"$f":"VLOOKUP(E11,PQS!$D$5:$K$107,COLUMN(PQS!$J$3)-COLUMN(PQS!$D$3)+1,FALSE)","v":105},{"$f":"VLOOKUP(E11,PQS!$D$5:$K$107,COLUMN(PQS!$G$3)-COLUMN(PQS!$D$3)+1,FALSE)","v":"Yes"},{"$f":"HLOOKUP(B11,INDIRECT(\"'\"&A11&\"'!$10:$15\"),ROW('Technology template'!$A$11)-ROW('Technology template'!$A$10)+1,FALSE)","v":10},{"$f":"HLOOKUP(B11,INDIRECT(\"'\"&A11&\"'!$10:$15\"),ROW('Technology template'!$A$12)-ROW('Technology template'!$A$10)+1,FALSE)","v":0},{"$f":"HLOOKUP(B11,INDIRECT(\"'\"&A11&\"'!$10:$15\"),ROW('Technology template'!$A$13)-ROW('Technology template'!$A$10)+1,FALSE)","v":0},{"$f":"VLOOKUP(B11,PQS!$B:$Q,MATCH(PQS!$Q$3,PQS!$B$3:$Q$3,0),FALSE)*(1+'Country Input'!$C$47)+HLOOKUP(B11,INDIRECT(\"'\"&A11&\"'!$10:$15\"),ROW('Technology template'!$A$14)-ROW('Technology template'!$A$10)+1,FALSE)*(1+'Country Input'!$C$47)","v":505.58570000000003},{"$f":"HLOOKUP(B11,INDIRECT(\"'\"&A11&\"'!$10:$80\"),MATCH('Technology template'!$A$27,INDIRECT(\"'\"&A11&\"'!$A$10:$A$80\"),0),FALSE)+'Labor and Maintenance '!$E$23","v":716},{"$f":"VLOOKUP(B11,PQS!B:T,MATCH(PQS!$T$3,PQS!$B$3:$T$3,0),FALSE)*(1+'Country Input'!$C$47)","v":278.93230799999998},1500.518008,150.0518008,{"$f":"VLOOKUP(B11,PQS!$B:$AE,COLUMN(PQS!AD9)-1,FALSE)","v":163.52000000000001},{"$f":"IFERROR(1/HLOOKUP(B11,INDIRECT(\"'\"&A11&\"'!$10:$80\"),MATCH('Technology template'!$A$31,INDIRECT(\"'\"&A11&\"'!$A$10:$A$80\"),0),FALSE)*HLOOKUP(B11,INDIRECT(\"'\"&A11&\"'!$10:$80\"),MATCH('Technology template'!$A$41,INDIRECT(\"'\"&A11&\"'!$A10:$A$80\"),0),FALSE),0)*TechnicianHourlyWage+IF(A11=\"Solar w Battery\",1/'Labor and Maintenance '!$E$53*'Labor and Maintenance '!$D$53,0)+IF(A11=\"LT passive\", 1/'Labor and Maintenance '!$E$81*'Labor and Maintenance '!$D$81,0)","v":24},{"$f":"IFERROR(1/HLOOKUP(B11,INDIRECT(\"'\"&A11&\"'!$10:$80\"),MATCH('Technology template'!$A$34,INDIRECT(\"'\"&A11&\"'!$A$10:$A$80\"),0),FALSE)*(HLOOKUP(B11,INDIRECT(\"'\"&A11&\"'!$10:$80\"),MATCH('Technology template'!$A$44,INDIRECT(\"'\"&A11&\"'!$A10:$A$80\"),0),FALSE)*TechnicianHourlyWage+RemoteTravelCostPerDay),0)+IFERROR(1/HLOOKUP(B11,INDIRECT(\"'\"&A11&\"'!$10:$80\"),MATCH('Technology template'!$A$35,INDIRECT(\"'\"&A11&\"'!$A$10:$A$80\"),0),FALSE)*(HLOOKUP(B11,INDIRECT(\"'\"&A11&\"'!$10:$80\"),MATCH('Technology template'!$A$45,INDIRECT(\"'\"&A11&\"'!$A10:$A$80\"),0),FALSE)*TechnicianHourlyWage+RemoteTravelCostPerDay),0)+IFERROR(1/HLOOKUP(B11,INDIRECT(\"'\"&A11&\"'!$10:$80\"),MATCH('Technology template'!$A$37,INDIRECT(\"'\"&A11&\"'!$A$10:$A$80\"),0),FALSE)*(HLOOKUP(B11,INDIRECT(\"'\"&A11&\"'!$10:$80\"),MATCH('Technology template'!$A$46,INDIRECT(\"'\"&A11&\"'!$A10:$A$80\"),0),FALSE)*TechnicianHourlyWage+'Labor and Maintenance '!$B$8),0)","v":94.666666666666657},2821.8666666666668,282.18666666666667,432.23846746666663,null,"Vestfrost MF 114*",14.290647695238095,26.874920634920635,41.165568330158727,null,"Vestfrost MF 114*",1.4290647695238095,2.6874920634920634,4.1165568330158724,null,"Vestfrost MF 114*",{"$error":"#DIV/0!"},{"$error":"#DIV/0!"},{"$error":"#DIV/0!"},{"$error":"#DIV/0!"},null,"Vestfrost MF 114*",{"$error":"#DIV/0!"},{"$error":"#DIV/0!"},{"$error":"#DIV/0!"},{"$error":"#DIV/0!"},null,"Vestfrost MF 114*",{"$f":"IF(F11=0, 'Country Input'!$D$7, ROUNDUP(LitersPerFacility/F11,0)*'Country Input'!$D$7)","v":10},15005.18008,2821.8666666666668,17827.046746666667,null,"Vestfrost MF 114*",{"$f":"ROUNDUP(LitersPerFacility/F11,0)*'Country Input'!$D$7*ROUNDUP('Total Solution Costs'!$B$2/Calculations!I11,0)","v":{"$error":"#DIV/0!"}},{"$error":"#DIV/0!"},{"$error":"#DIV/0!"},{"$error":"#DIV/0!"},null,null,"Vestfrost MF 114*",{"$f":"(($U11+($O11)*IF(MOD(BH$3,$I11)=1,1,0)+Parts!$E$91*IF($J11=0,0,IF(MOD(BH$3,$I11)=1,IF(PQS!$R11=\"NO\",1,0),IF(MOD(BH$3,Calculations!$J11)=1,1,0)))+Parts!$E$92*IF(Calculations!$K11=0,0,IF(MOD(BH$3,$I11)=1,0,IF(MOD(BH$3,Calculations!$K11)=1,1,0))))*$AU11)*(1+'Country Input'!$C$45)^(Calculations!BH$3-$BH$3)+TrainingCost","v":17827.046746666667},{"$f":"(($U11+($O11)*IF(MOD(BI$3,$I11)=1,1,0)+Parts!$E$91*IF($J11=0,0,IF(MOD(BI$3,$I11)=1,IF(PQS!$R11=\"NO\",1,0),IF(MOD(BI$3,Calculations!$J11)=1,1,0)))+Parts!$E$92*IF(Calculations!$K11=0,0,IF(MOD(BI$3,$I11)=1,0,IF(MOD(BI$3,Calculations!$K11)=1,1,0))))*$AU11)*(1+'Country Input'!$C$45)^(Calculations!BI$3-$BH$3)","v":2821.8666666666668},{"$f":"(($U11+($O11)*IF(MOD(BJ$3,$I11)=1,1,0)+Parts!$E$91*IF($J11=0,0,IF(MOD(BJ$3,$I11)=1,IF(PQS!$R11=\"NO\",1,0),IF(MOD(BJ$3,Calculations!$J11)=1,1,0)))+Parts!$E$92*IF(Calculations!$K11=0,0,IF(MOD(BJ$3,$I11)=1,0,IF(MOD(BJ$3,Calculations!$K11)=1,1,0))))*$AU11)*(1+'Country Input'!$C$45)^(Calculations!BJ$3-$BH$3)","v":2821.8666666666668},{"$f":"(($U11+($O11)*IF(MOD(BK$3,$I11)=1,1,0)+Parts!$E$91*IF($J11=0,0,IF(MOD(BK$3,$I11)=1,IF(PQS!$R11=\"NO\",1,0),IF(MOD(BK$3,Calculations!$J11)=1,1,0)))+Parts!$E$92*IF(Calculations!$K11=0,0,IF(MOD(BK$3,$I11)=1,0,IF(MOD(BK$3,Calculations!$K11)=1,1,0))))*$AU11)*(1+'Country Input'!$C$45)^(Calculations!BK$3-$BH$3)","v":2821.8666666666668},{"$f":"(($U11+($O11)*IF(MOD(BL$3,$I11)=1,1,0)+Parts!$E$91*IF($J11=0,0,IF(MOD(BL$3,$I11)=1,IF(PQS!$R11=\"NO\",1,0),IF(MOD(BL$3,Calculations!$J11)=1,1,0)))+Parts!$E$92*IF(Calculations!$K11=0,0,IF(MOD(BL$3,$I11)=1,0,IF(MOD(BL$3,Calculations!$K11)=1,1,0))))*$AU11)*(1+'Country Input'!$C$45)^(Calculations!BL$3-$BH$3)","v":2821.8666666666668},{"$f":"(($U11+($O11)*IF(MOD(BM$3,$I11)=1,1,0)+Parts!$E$91*IF($J11=0,0,IF(MOD(BM$3,$I11)=1,IF(PQS!$R11=\"NO\",1,0),IF(MOD(BM$3,Calculations!$J11)=1,1,0)))+Parts!$E$92*IF(Calculations!$K11=0,0,IF(MOD(BM$3,$I11)=1,0,IF(MOD(BM$3,Calculations!$K11)=1,1,0))))*$AU11)*(1+'Country Input'!$C$45)^(Calculations!BM$3-$BH$3)","v":2821.8666666666668},{"$f":"(($U11+($O11)*IF(MOD(BN$3,$I11)=1,1,0)+Parts!$E$91*IF($J11=0,0,IF(MOD(BN$3,$I11)=1,IF(PQS!$R11=\"NO\",1,0),IF(MOD(BN$3,Calculations!$J11)=1,1,0)))+Parts!$E$92*IF(Calculations!$K11=0,0,IF(MOD(BN$3,$I11)=1,0,IF(MOD(BN$3,Calculations!$K11)=1,1,0))))*$AU11)*(1+'Country Input'!$C$45)^(Calculations!BN$3-$BH$3)","v":2821.8666666666668},{"$f":"(($U11+($O11)*IF(MOD(BO$3,$I11)=1,1,0)+Parts!$E$91*IF($J11=0,0,IF(MOD(BO$3,$I11)=1,IF(PQS!$R11=\"NO\",1,0),IF(MOD(BO$3,Calculations!$J11)=1,1,0)))+Parts!$E$92*IF(Calculations!$K11=0,0,IF(MOD(BO$3,$I11)=1,0,IF(MOD(BO$3,Calculations!$K11)=1,1,0))))*$AU11)*(1+'Country Input'!$C$45)^(Calculations!BO$3-$BH$3)","v":2821.8666666666668},{"$f":"(($U11+($O11)*IF(MOD(BP$3,$I11)=1,1,0)+Parts!$E$91*IF($J11=0,0,IF(MOD(BP$3,$I11)=1,IF(PQS!$R11=\"NO\",1,0),IF(MOD(BP$3,Calculations!$J11)=1,1,0)))+Parts!$E$92*IF(Calculations!$K11=0,0,IF(MOD(BP$3,$I11)=1,0,IF(MOD(BP$3,Calculations!$K11)=1,1,0))))*$AU11)*(1+'Country Input'!$C$45)^(Calculations!BP$3-$BH$3)","v":2821.8666666666668},{"$f":"(($U11+($O11)*IF(MOD(BQ$3,$I11)=1,1,0)+Parts!$E$91*IF($J11=0,0,IF(MOD(BQ$3,$I11)=1,IF(PQS!$R11=\"NO\",1,0),IF(MOD(BQ$3,Calculations!$J11)=1,1,0)))+Parts!$E$92*IF(Calculations!$K11=0,0,IF(MOD(BQ$3,$I11)=1,0,IF(MOD(BQ$3,Calculations!$K11)=1,1,0))))*$AU11)*(1+'Country Input'!$C$45)^(Calculations!BQ$3-$BH$3)","v":2821.8666666666668},{"$f":"(($U11+($O11)*IF(MOD(BR$3,$I11)=1,1,0)+Parts!$E$91*IF($J11=0,0,IF(MOD(BR$3,$I11)=1,IF(PQS!$R11=\"NO\",1,0),IF(MOD(BR$3,Calculations!$J11)=1,1,0)))+Parts!$E$92*IF(Calculations!$K11=0,0,IF(MOD(BR$3,$I11)=1,0,IF(MOD(BR$3,Calculations!$K11)=1,1,0))))*$AU11)*(1+'Country Input'!$C$45)^(Calculations!BR$3-$BH$3)","v":17827.046746666667},{"$f":"(($U11+($O11)*IF(MOD(BS$3,$I11)=1,1,0)+Parts!$E$91*IF($J11=0,0,IF(MOD(BS$3,$I11)=1,IF(PQS!$R11=\"NO\",1,0),IF(MOD(BS$3,Calculations!$J11)=1,1,0)))+Parts!$E$92*IF(Calculations!$K11=0,0,IF(MOD(BS$3,$I11)=1,0,IF(MOD(BS$3,Calculations!$K11)=1,1,0))))*$AU11)*(1+'Country Input'!$C$45)^(Calculations!BS$3-$BH$3)","v":2821.8666666666668},{"$f":"(($U11+($O11)*IF(MOD(BT$3,$I11)=1,1,0)+Parts!$E$91*IF($J11=0,0,IF(MOD(BT$3,$I11)=1,IF(PQS!$R11=\"NO\",1,0),IF(MOD(BT$3,Calculations!$J11)=1,1,0)))+Parts!$E$92*IF(Calculations!$K11=0,0,IF(MOD(BT$3,$I11)=1,0,IF(MOD(BT$3,Calculations!$K11)=1,1,0))))*$AU11)*(1+'Country Input'!$C$45)^(Calculations!BT$3-$BH$3)","v":2821.8666666666668},{"$f":"(($U11+($O11)*IF(MOD(BU$3,$I11)=1,1,0)+Parts!$E$91*IF($J11=0,0,IF(MOD(BU$3,$I11)=1,IF(PQS!$R11=\"NO\",1,0),IF(MOD(BU$3,Calculations!$J11)=1,1,0)))+Parts!$E$92*IF(Calculations!$K11=0,0,IF(MOD(BU$3,$I11)=1,0,IF(MOD(BU$3,Calculations!$K11)=1,1,0))))*$AU11)*(1+'Country Input'!$C$45)^(Calculations!BU$3-$BH$3)","v":2821.8666666666668},{"$f":"(($U11+($O11)*IF(MOD(BV$3,$I11)=1,1,0)+Parts!$E$91*IF($J11=0,0,IF(MOD(BV$3,$I11)=1,IF(PQS!$R11=\"NO\",1,0),IF(MOD(BV$3,Calculations!$J11)=1,1,0)))+Parts!$E$92*IF(Calculations!$K11=0,0,IF(MOD(BV$3,$I11)=1,0,IF(MOD(BV$3,Calculations!$K11)=1,1,0))))*$AU11)*(1+'Country Input'!$C$45)^(Calculations!BV$3-$BH$3)","v":2821.8666666666668},{"$f":"(($U11+($O11)*IF(MOD(BW$3,$I11)=1,1,0)+Parts!$E$91*IF($J11=0,0,IF(MOD(BW$3,$I11)=1,IF(PQS!$R11=\"NO\",1,0),IF(MOD(BW$3,Calculations!$J11)=1,1,0)))+Parts!$E$92*IF(Calculations!$K11=0,0,IF(MOD(BW$3,$I11)=1,0,IF(MOD(BW$3,Calculations!$K11)=1,1,0))))*$AU11)*(1+'Country Input'!$C$45)^(Calculations!BW$3-$BH$3)","v":2821.8666666666668},{"$f":"(($U11+($O11)*IF(MOD(BX$3,$I11)=1,1,0)+Parts!$E$91*IF($J11=0,0,IF(MOD(BX$3,$I11)=1,IF(PQS!$R11=\"NO\",1,0),IF(MOD(BX$3,Calculations!$J11)=1,1,0)))+Parts!$E$92*IF(Calculations!$K11=0,0,IF(MOD(BX$3,$I11)=1,0,IF(MOD(BX$3,Calculations!$K11)=1,1,0))))*$AU11)*(1+'Country Input'!$C$45)^(Calculations!BX$3-$BH$3)","v":2821.8666666666668},{"$f":"(($U11+($O11)*IF(MOD(BY$3,$I11)=1,1,0)+Parts!$E$91*IF($J11=0,0,IF(MOD(BY$3,$I11)=1,IF(PQS!$R11=\"NO\",1,0),IF(MOD(BY$3,Calculations!$J11)=1,1,0)))+Parts!$E$92*IF(Calculations!$K11=0,0,IF(MOD(BY$3,$I11)=1,0,IF(MOD(BY$3,Calculations!$K11)=1,1,0))))*$AU11)*(1+'Country Input'!$C$45)^(Calculations!BY$3-$BH$3)","v":2821.8666666666668},{"$f":"(($U11+($O11)*IF(MOD(BZ$3,$I11)=1,1,0)+Parts!$E$91*IF($J11=0,0,IF(MOD(BZ$3,$I11)=1,IF(PQS!$R11=\"NO\",1,0),IF(MOD(BZ$3,Calculations!$J11)=1,1,0)))+Parts!$E$92*IF(Calculations!$K11=0,0,IF(MOD(BZ$3,$I11)=1,0,IF(MOD(BZ$3,Calculations!$K11)=1,1,0))))*$AU11)*(1+'Country Input'!$C$45)^(Calculations!BZ$3-$BH$3)","v":2821.8666666666668},{"$f":"(($U11+($O11)*IF(MOD(CA$3,$I11)=1,1,0)+Parts!$E$91*IF($J11=0,0,IF(MOD(CA$3,$I11)=1,IF(PQS!$R11=\"NO\",1,0),IF(MOD(CA$3,Calculations!$J11)=1,1,0)))+Parts!$E$92*IF(Calculations!$K11=0,0,IF(MOD(CA$3,$I11)=1,0,IF(MOD(CA$3,Calculations!$K11)=1,1,0))))*$AU11)*(1+'Country Input'!$C$45)^(Calculations!CA$3-$BH$3)","v":2821.8666666666668},null,"Vestfrost MF 114*",17827.046746666667,2821.8666666666668,2821.8666666666668,2821.8666666666668,2821.8666666666668,2821.8666666666668,2821.8666666666668,2821.8666666666668,2821.8666666666668,2821.8666666666668,17827.046746666667,2821.8666666666668,2821.8666666666668,2821.8666666666668,2821.8666666666668,2821.8666666666668,2821.8666666666668,2821.8666666666668,2821.8666666666668,2821.8666666666668,{"$f":"SUM(CD11:INDEX($CD11:$CW11,1,'Total Solution Costs'!$B$2))","v":43223.846746666684},null,"Vestfrost MF 114*",{"$f":"SUM($BH11:BH11)","v":17827.046746666667},{"$f":"SUM($BH11:BI11)","v":20648.913413333335},{"$f":"SUM($BH11:BJ11)","v":23470.780080000004},{"$f":"SUM($BH11:BK11)","v":26292.646746666673},{"$f":"SUM($BH11:BL11)","v":29114.513413333341},{"$f":"SUM($BH11:BM11)","v":31936.38008000001},{"$f":"SUM($BH11:BN11)","v":34758.246746666679},{"$f":"SUM($BH11:BO11)","v":37580.113413333347},{"$f":"SUM($BH11:BP11)","v":40401.980080000016},{"$f":"SUM($BH11:BQ11)","v":43223.846746666684},{"$f":"SUM($BH11:BR11)","v":61050.893493333351},{"$f":"SUM($BH11:BS11)","v":63872.76016000002},{"$f":"SUM($BH11:BT11)","v":66694.626826666688},{"$f":"SUM($BH11:BU11)","v":69516.493493333357},{"$f":"SUM($BH11:BV11)","v":72338.360160000026},{"$f":"SUM($BH11:BW11)","v":75160.226826666694},{"$f":"SUM($BH11:BX11)","v":77982.093493333363},{"$f":"SUM($BH11:BY11)","v":80803.960160000031},{"$f":"SUM($BH11:BZ11)","v":83625.8268266667},{"$f":"SUM($BH11:CA11)","v":86447.693493333369}]
[{"$f":"PQS!A12","v":"Freezer"},{"$f":"PQS!B12","v":"E003/025"},{"$f":"PQS!E12","v":"MF 214*"},{"$f":"PQS!F12","v":"Vestfrost"},{"$f":"PQS!D12","v":"Vestfrost MF 214*"},{"$f":"VLOOKUP(E12,PQS!$D$5:$K$107,COLUMN(PQS!$I$3)-COLUMN(PQS!$D$3)+1,FALSE)","v":0},{"$f":"VLOOKUP(E12,PQS!$D$5:$K$107,COLUMN(PQS!$J$3)-COLUMN(PQS!$D$3)+1,FALSE)","v":171},{"$f":"VLOOKUP(E12,PQS!$D$5:$K$107,COLUMN(PQS!$G$3)-COLUMN(PQS!$D$3)+1,FALSE)","v":"Yes"},{"$f":"HLOOKUP(B12,INDIRECT(\"'\"&A12&\"'!$10:$15\"),ROW('Technology template'!$A$11)-ROW('Technology template'!$A$10)+1,FALSE)","v":10},{"$f":"HLOOKUP(B12,INDIRECT(\"'\"&A12&\"'!$10:$15\"),ROW('Technology template'!$A$12)-ROW('Technology template'!$A$10)+1,FALSE)","v":0},{"$f":"HLOOKUP(B12,INDIRECT(\"'\"&A12&\"'!$10:$15\"),ROW('Technology template'!$A$13)-ROW('Technology template'!$A$10)+1,FALSE)","v":0},{"$f":"VLOOKUP(B12,PQS!$B:$Q,MATCH(PQS!$Q$3,PQS!$B$3:$Q$3,0),FALSE)*(1+'Country Input'!$C$47)+HLOOKUP(B12,INDIRECT(\"'\"&A12&\"'!$10:$15\"),ROW('Technology template'!$A$14)-ROW('Technology template'!$A$10)+1,FALSE)*(1+'Country Input'!$C$47)","v":573.73400000000004},{"$f":"HLOOKUP(B12,INDIRECT(\"'\"&A12&\"'!$10:$80\"),MATCH('Technology template'!$A$27,INDIRECT(\"'\"&A12&\"'!$A$10:$A$80\"),0),FALSE)+'Labor and Maintenance '!$E$23","v":716},{"$f":"VLOOKUP(B12,PQS!B:T,MATCH(PQS!$T$3,PQS!$B$3:$T$3,0),FALSE)*(1+'Country Input'!$C$47)","v":278.92064499999998},1568.6546449999998,156.86546449999997,{"$f":"VLOOKUP(B12,PQS!$B:$AE,COLUMN(PQS!AD10)-1,FALSE)","v":219.00000000000003},{"$f":"IFERROR(1/HLOOKUP(B12,INDIRECT(\"'\"&A12&\"'!$10:$80\"),MATCH('Technology template'!$A$31,INDIRECT(\"'\"&A12&\"'!$A$10:$A$80\"),0),FALSE)*HLOOKUP(B12,INDIRECT(\"'\"&A12&\"'!$10:$80\"),MATCH('Technology template'!$A$41,INDIRECT(\"'\"&A12&\"'!$A10:$A$80\"),0),FALSE),0)*TechnicianHourlyWage+IF(A12=\"Solar w Battery\",1/'Labor and Maintenance '!$E$53*'Labor and Maintenance '!$D$53,0)+IF(A12=\"LT passive\", 1/'Labor and Maintenance '!$E$81*'Labor and Maintenance '!$D$81,0)","v":24},{"$f":"IFERROR(1/HLOOKUP(B12,INDIRECT(\"'\"&A12&\"'!$10:$80\"),MATCH('Technology template'!$A$34,INDIRECT(\"'\"&A12&\"'!$A$10:$A$80\"),0),FALSE)*(HLOOKUP(B12,INDIRECT(\"'\"&A12&\"'!$10:$80\"),MATCH('Technology template'!$A$44,INDIRECT(\"'\"&A12&\"'!$A10:$A$80\"),0),FALSE)*TechnicianHourlyWage+RemoteTravelCostPerDay),0)+IFERROR(1/HLOOKUP(B12,INDIRECT(\"'\"&A12&\"'!$10:$80\"),MATCH('Technology template'!$A$35,INDIRECT(\"'\"&A12&\"'!$A$10:$A$80\"),0),FALSE)*(HLOOKUP(B12,INDIRECT(\"'\"&A12&\"'!$10:$80\"),MATCH('Technology template'!$A$45,INDIRECT(\"'\"&A12&\"'!$A10:$A$80\"),0),FALSE)*TechnicianHourlyWage+RemoteTravelCostPerDay),0)+IFERROR(1/HLOOKUP(B12,INDIRECT(\"'\"&A12&\"'!$10:$80\"),MATCH('Technology template'!$A$37,INDIRECT(\"'\"&A12&\"'!$A$10:$A$80\"),0),FALSE)*(HLOOKUP(B12,INDIRECT(\"'\"&A12&\"'!$10:$80\"),MATCH('Technology template'!$A$46,INDIRECT(\"'\"&A12&\"'!$A10:$A$80\"),0),FALSE)*TechnicianHourlyWage+'Labor and Maintenance '!$B$8),0)","v":94.666666666666657},3376.666666666667,337.66666666666669,494.53213116666666,null,"Vestfrost MF 214*",9.1734189766081862,19.746588693957118,28.920007670565305,null,"Vestfrost MF 214*",0.91734189766081853,1.9746588693957117,2.8920007670565302,null,"Vestfrost MF 214*",{"$error":"#DIV/0!"},{"$error":"#DIV/0!"},{"$error":"#DIV/0!"},{"$error":"#DIV/0!"},null,"Vestfrost MF 214*",{"$error":"#DIV/0!"},{"$error":"#DIV/0!"},{"$error":"#DIV/0!"},{"$error":"#DIV/0!"},null,"Vestfrost MF 214*",{"$f":"IF(F12=0, 'Country Input'!$D$7, ROUNDUP(LitersPerFacility/F12,0)*'Country Input'!$D$7)","v":10},15686.546449999998,3376.666666666667,19063.213116666666,null,"Vestfrost MF 214*",{"$f":"ROUNDUP(LitersPerFacility/F12,0)*'Country Input'!$D$7*ROUNDUP('Total Solution Costs'!$B$2/Calculations!I12,0)","v":{"$error":"#DIV/0!"}},{"$error":"#DIV/0!"},{"$error":"#DIV/0!"},{"$error":"#DIV/0!"},null,null,"Vestfrost MF 214*",{"$f":"(($U12+($O12)*IF(MOD(BH$3,$I12)=1,1,0)+Parts!$E$91*IF($J12=0,0,IF(MOD(BH$3,$I12)=1,IF(PQS!$R12=\"NO\",1,0),IF(MOD(BH$3,Calculations!$J12)=1,1,0)))+Parts!$E$92*IF(Calculations!$K12=0,0,IF(MOD(BH$3,$I12)=1,0,IF(MOD(BH$3,Calculations!$K12)=1,1,0))))*$AU12)*(1+'Country Input'!$C$45)^(Calculations!BH$3-$BH$3)+TrainingCost","v":19063.213116666666},{"$f":"(($U12+($O12)*IF(MOD(BI$3,$I12)=1,1,0)+Parts!$E$91*IF($J12=0,0,IF(MOD(BI$3,$I12)=1,IF(PQS!$R12=\"NO\",1,0),IF(MOD(BI$3,Calculations!$J12)=1,1,0)))+Parts!$E$92*IF(Calculations!$K12=0,0,IF(MOD(BI$3,$I12)=1,0,IF(MOD(BI$3,Calculations!$K12)=1,1,0))))*$AU12)*(1+'Country Input'!$C$45)^(Calculations!BI$3-$BH$3)","v":3376.666666666667},{"$f":"(($U12+($O12)*IF(MOD(BJ$3,$I12)=1,1,0)+Parts!$E$91*IF($J12=0,0,IF(MOD(BJ$3,$I12)=1,IF(PQS!$R12=\"NO\",1,0),IF(MOD(BJ$3,Calculations!$J12)=1,1,0)))+Parts!$E$92*IF(Calculations!$K12=0,0,IF(MOD(BJ$3,$I12)=1,0,IF(MOD(BJ$3,Calculations!$K12)=1,1,0))))*$AU12)*(1+'Country Input'!$C$45)^(Calculations!BJ$3-$BH$3)","v":3376.666666666667},{"$f":"(($U12+($O12)*IF(MOD(BK$3,$I12)=1,1,0)+Parts!$E$91*IF($J12=0,0,IF(MOD(BK$3,$I12)=1,IF(PQS!$R12=\"NO\",1,0),IF(MOD(BK$3,Calculations!$J12)=1,1,0)))+Parts!$E$92*IF(Calculations!$K12=0,0,IF(MOD(BK$3,$I12)=1,0,IF(MOD(BK$3,Calculations!$K12)=1,1,0))))*$AU12)*(1+'Country Input'!$C$45)^(Calculations!BK$3-$BH$3)","v":3376.666666666667},{"$f":"(($U12+($O12)*IF(MOD(BL$3,$I12)=1,1,0)+Parts!$E$91*IF($J12=0,0,IF(MOD(BL$3,$I12)=1,IF(PQS!$R12=\"NO\",1,0),IF(MOD(BL$3,Calculations!$J12)=1,1,0)))+Parts!$E$92*IF(Calculations!$K12=0,0,IF(MOD(BL$3,$I12)=1,0,IF(MOD(BL$3,Calculations!$K12)=1,1,0))))*$AU12)*(1+'Country Input'!$C$45)^(Calculations!BL$3-$BH$3)","v":3376.666666666667},{"$f":"(($U12+($O12)*IF(MOD(BM$3,$I12)=1,1,0)+Parts!$E$91*IF($J12=0,0,IF(MOD(BM$3,$I12)=1,IF(PQS!$R12=\"NO\",1,0),IF(MOD(BM$3,Calculations!$J12)=1,1,0)))+Parts!$E$92*IF(Calculations!$K12=0,0,IF(MOD(BM$3,$I12)=1,0,IF(MOD(BM$3,Calculations!$K12)=1,1,0))))*$AU12)*(1+'Country Input'!$C$45)^(Calculations!BM$3-$BH$3)","v":3376.666666666667},{"$f":"(($U12+($O12)*IF(MOD(BN$3,$I12)=1,1,0)+Parts!$E$91*IF($J12=0,0,IF(MOD(BN$3,$I12)=1,IF(PQS!$R12=\"NO\",1,0),IF(MOD(BN$3,Calculations!$J12)=1,1,0)))+Parts!$E$92*IF(Calculations!$K12=0,0,IF(MOD(BN$3,$I12)=1,0,IF(MOD(BN$3,Calculations!$K12)=1,1,0))))*$AU12)*(1+'Country Input'!$C$45)^(Calculations!BN$3-$BH$3)","v":3376.666666666667},{"$f":"(($U12+($O12)*IF(MOD(BO$3,$I12)=1,1,0)+Parts!$E$91*IF($J12=0,0,IF(MOD(BO$3,$I12)=1,IF(PQS!$R12=\"NO\",1,0),IF(MOD(BO$3,Calculations!$J12)=1,1,0)))+Parts!$E$92*IF(Calculations!$K12=0,0,IF(MOD(BO$3,$I12)=1,0,IF(MOD(BO$3,Calculations!$K12)=1,1,0))))*$AU12)*(1+'Country Input'!$C$45)^(Calculations!BO$3-$BH$3)","v":3376.666666666667},{"$f":"(($U12+($O12)*IF(MOD(BP$3,$I12)=1,1,0)+Parts!$E$91*IF($J12=0,0,IF(MOD(BP$3,$I12)=1,IF(PQS!$R12=\"NO\",1,0),IF(MOD(BP$3,Calculations!$J12)=1,1,0)))+Parts!$E$92*IF(Calculations!$K12=0,0,IF(MOD(BP$3,$I12)=1,0,IF(MOD(BP$3,Calculations!$K12)=1,1,0))))*$AU12)*(1+'Country Input'!$C$45)^(Calculations!BP$3-$BH$3)","v":3376.666666666667},{"$f":"(($U12+($O12)*IF(MOD(BQ$3,$I12)=1,1,0)+Parts!$E$91*IF($J12=0,0,IF(MOD(BQ$3,$I12)=1,IF(PQS!$R12=\"NO\",1,0),IF(MOD(BQ$3,Calculations!$J12)=1,1,0)))+Parts!$E$92*IF(Calculations!$K12=0,0,IF(MOD(BQ$3,$I12)=1,0,IF(MOD(BQ$3,Calculations!$K12)=1,1,0))))*$AU12)*(1+'Country Input'!$C$45)^(Calculations!BQ$3-$BH$3)","v":3376.666666666667},{"$f":"(($U12+($O12)*IF(MOD(BR$3,$I12)=1,1,0)+Parts!$E$91*IF($J12=0,0,IF(MOD(BR$3,$I12)=1,IF(PQS!$R12=\"NO\",1,0),IF(MOD(BR$3,Calculations!$J12)=1,1,0)))+Parts!$E$92*IF(Calculations!$K12=0,0,IF(MOD(BR$3,$I12)=1,0,IF(MOD(BR$3,Calculations!$K12)=1,1,0))))*$AU12)*(1+'Country Input'!$C$45)^(Calculations!BR$3-$BH$3)","v":19063.213116666666},{"$f":"(($U12+($O12)*IF(MOD(BS$3,$I12)=1,1,0)+Parts!$E$91*IF($J12=0,0,IF(MOD(BS$3,$I12)=1,IF(PQS!$R12=\"NO\",1,0),IF(MOD(BS$3,Calculations!$J12)=1,1,0)))+Parts!$E$92*IF(Calculations!$K12=0,0,IF(MOD(BS$3,$I12)=1,0,IF(MOD(BS$3,Calculations!$K12)=1,1,0))))*$AU12)*(1+'Country Input'!$C$45)^(Calculations!BS$3-$BH$3)","v":3376.666666666667},{"$f":"(($U12+($O12)*IF(MOD(BT$3,$I12)=1,1,0)+Parts!$E$91*IF($J12=0,0,IF(MOD(BT$3,$I12)=1,IF(PQS!$R12=\"NO\",1,0),IF(MOD(BT$3,Calculations!$J12)=1,1,0)))+Parts!$E$92*IF(Calculations!$K12=0,0,IF(MOD(BT$3,$I12)=1,0,IF(MOD(BT$3,Calculations!$K12)=1,1,0))))*$AU12)*(1+'Country Input'!$C$45)^(Calculations!BT$3-$BH$3)","v":3376.666666666667},{"$f":"(($U12+($O12)*IF(MOD(BU$3,$I12)=1,1,0)+Parts!$E$91*IF($J12=0,0,IF(MOD(BU$3,$I12)=1,IF(PQS!$R12=\"NO\",1,0),IF(MOD(BU$3,Calculations!$J12)=1,1,0)))+Parts!$E$92*IF(Calculations!$K12=0,0,IF(MOD(BU$3,$I12)=1,0,IF(MOD(BU$3,Calculations!$K12)=1,1,0))))*$AU12)*(1+'Country Input'!$C$45)^(Calculations!BU$3-$BH$3)","v":3376.666666666667},{"$f":"(($U12+($O12)*IF(MOD(BV$3,$I12)=1,1,0)+Parts!$E$91*IF($J12=0,0,IF(MOD(BV$3,$I12)=1,IF(PQS!$R12=\"NO\",1,0),IF(MOD(BV$3,Calculations!$J12)=1,1,0)))+Parts!$E$92*IF(Calculations!$K12=0,0,IF(MOD(BV$3,$I12)=1,0,IF(MOD(BV$3,Calculations!$K12)=1,1,0))))*$AU12)*(1+'Country Input'!$C$45)^(Calculations!BV$3-$BH$3)","v":3376.666666666667},{"$f":"(($U12+($O12)*IF(MOD(BW$3,$I12)=1,1,0)+Parts!$E$91*IF($J12=0,0,IF(MOD(BW$3,$I12)=1,IF(PQS!$R12=\"NO\",1,0),IF(MOD(BW$3,Calculations!$J12)=1,1,0)))+Parts!$E$92*IF(Calculations!$K12=0,0,IF(MOD(BW$3,$I12)=1,0,IF(MOD(BW$3,Calculations!$K12)=1,1,0))))*$AU12)*(1+'Country Input'!$C$45)^(Calculations!BW$3-$BH$3)","v":3376.666666666667},{"$f":"(($U12+($O12)*IF(MOD(BX$3,$I12)=1,1,0)+Parts!$E$91*IF($J12=0,0,IF(MOD(BX$3,$I12)=1,IF(PQS!$R12=\"NO\",1,0),IF(MOD(BX$3,Calculations!$J12)=1,1,0)))+Parts!$E$92*IF(Calculations!$K12=0,0,IF(MOD(BX$3,$I12)=1,0,IF(MOD(BX$3,Calculations!$K12)=1,1,0))))*$AU12)*(1+'Country Input'!$C$45)^(Calculations!BX$3-$BH$3)","v":3376.666666666667},{"$f":"(($U12+($O12)*IF(MOD(BY$3,$I12)=1,1,0)+Parts!$E$91*IF($J12=0,0,IF(MOD(BY$3,$I12)=1,IF(PQS!$R12=\"NO\",1,0),IF(MOD(BY$3,Calculations!$J12)=1,1,0)))+Parts!$E$92*IF(Calculations!$K12=0,0,IF(MOD(BY$3,$I12)=1,0,IF(MOD(BY$3,Calculations!$K12)=1,1,0))))*$AU12)*(1+'Country Input'!$C$45)^(Calculations!BY$3-$BH$3)","v":3376.666666666667},{"$f":"(($U12+($O12)*IF(MOD(BZ$3,$I12)=1,1,0)+Parts!$E$91*IF($J12=0,0,IF(MOD(BZ$3,$I12)=1,IF(PQS!$R12=\"NO\",1,0),IF(MOD(BZ$3,Calculations!$J12)=1,1,0)))+Parts!$E$92*IF(Calculations!$K12=0,0,IF(MOD(BZ$3,$I12)=1,0,IF(MOD(BZ$3,Calculations!$K12)=1,1,0))))*$AU12)*(1+'Country Input'!$C$45)^(Calculations!BZ$3-$BH$3)","v":3376.666666666667},{"$f":"(($U12+($O12)*IF(MOD(CA$3,$I12)=1,1,0)+Parts!$E$91*IF($J12=0,0,IF(MOD(CA$3,$I12)=1,IF(PQS!$R12=\"NO\",1,0),IF(MOD(CA$3,Calculations!$J12)=1,1,0)))+Parts!$E$92*IF(Calculations!$K12=0,0,IF(MOD(CA$3,$I12)=1,0,IF(MOD(CA$3,Calculations!$K12)=1,1,0))))*$AU12)*(1+'Country Input'!$C$45)^(Calculations!CA$3-$BH$3)","v":3376.666666666667},null,"Vestfrost MF 214*",19063.213116666666,3376.666666666667,3376.666666666667,3376.666666666667,3376.666666666667,3376.666666666667,3376.666666666667,3376.666666666667,3376.666666666667,3376.666666666667,19063.213116666666,3376.666666666667,3376.666666666667,3376.666666666667,3376.666666666667,3376.666666666667,3376.666666666667,3376.666666666667,3376.666666666667,3376.666666666667,{"$f":"SUM(CD12:INDEX($CD12:$CW12,1,'Total Solution Costs'!$B$2))","v":49453.213116666659},null,"Vestfrost MF 214*",{"$f":"SUM($BH12:BH12)","v":19063.213116666666},{"$f":"SUM($BH12:BI12)","v":22439.879783333334},{"$f":"SUM($BH12:BJ12)","v":25816.546450000002},{"$f":"SUM($BH12:BK12)","v":29193.21311666667},{"$f":"SUM($BH12:BL12)","v":32569.879783333337},{"$f":"SUM($BH12:BM12)","v":35946.546450000002},{"$f":"SUM($BH12:BN12)","v":39323.213116666666},{"$f":"SUM($BH12:BO12)","v":42699.87978333333},{"$f":"SUM($BH12:BP12)","v":46076.546449999994},{"$f":"SUM($BH12:BQ12)","v":49453.213116666659},{"$f":"SUM($BH12:BR12)","v":68516.426233333332},{"$f":"SUM($BH12:BS12)","v":71893.092900000003},{"$f":"SUM($BH12:BT12)","v":75269.759566666675},{"$f":"SUM($BH12:BU12)","v":78646.426233333346},{"$f":"SUM($BH12:BV12)","v":82023.092900000018},{"$f":"SUM($BH12:BW12)","v":85399.759566666689},{"$f":"SUM($BH12:BX12)","v":88776.426233333361},{"$f":"SUM($BH12:BY12)","v":92153.092900000032},{"$f":"SUM($BH12:BZ12)","v":95529.759566666704},{"$f":"SUM($BH12:CA12)","v":98906.426233333375}]
[{"$f":"PQS!A13","v":"Freezer"},{"$f":"PQS!B13","v":"E003/004"},{"$f":"PQS!E13","v":"TFW 800*"},{"$f":"PQS!F13","v":"B Medical"},{"$f":"PQS!D13","v":"B Medical TFW 800*"},{"$f":"VLOOKUP(E13,PQS!$D$5:$K$107,COLUMN(PQS!$I$3)-COLUMN(PQS!$D$3)+1,FALSE)","v":0},{"$f":"VLOOKUP(E13,PQS!$D$5:$K$107,COLUMN(PQS!$J$3)-COLUMN(PQS!$D$3)+1,FALSE)","v":290},{"$f":"VLOOKUP(E13,PQS!$D$5:$K$107,COLUMN(PQS!$G$3)-COLUMN(PQS!$D$3)+1,FALSE)","v":"Yes"},{"$f":"HLOOKUP(B13,INDIRECT(\"'\"&A13&\"'!$10:$15\"),ROW('Technology template'!$A$11)-ROW('Technology template'!$A$10)+1,FALSE)","v":10},{"$f":"HLOOKUP(B13,INDIRECT(\"'\"&A13&\"'!$10:$15\"),ROW('Technology template'!$A$12)-ROW('Technology template'!$A$10)+1,FALSE)","v":0},{"$f":"HLOOKUP(B13,INDIRECT(\"'\"&A13&\"'!$10:$15\"),ROW('Technology template'!$A$13)-ROW('Technology template'!$A$10)+1,FALSE)","v":0},{"$f":"VLOOKUP(B13,PQS!$B:$Q,MATCH(PQS!$Q$3,PQS!$B$3:$Q$3,0),FALSE)*(1+'Country Input'!$C$47)+HLOOKUP(B13,INDIRECT(\"'\"&A13&\"'!$10:$15\"),ROW('Technology template'!$A$14)-ROW('Technology template'!$A$10)+1,FALSE)*(1+'Country Input'!$C$47)","v":3406.3985000000002},{"$f":"HLOOKUP(B13,INDIRECT(\"'\"&A13&\"'!$10:$80\"),MATCH('Technology template'!$A$27,INDIRECT(\"'\"&A13&\"'!$A$10:$A$80\"),0),FALSE)+'Labor and Maintenance '!$E$23","v":716},{"$f":"VLOOKUP(B13,PQS!B:T,MATCH(PQS!$T$3,PQS!$B$3:$T$3,0),FALSE)*(1+'Country Input'!$C$47)","v":419.22653500000001},4541.625035,{"$f":"O13/I13","v":454.16250350000001},{"$f":"VLOOKUP(B13,PQS!$B:$AE,COLUMN(PQS!AD11)-1,FALSE)","v":244.55},{"$f":"IFERROR(1/HLOOKUP(B13,INDIRECT(\"'\"&A13&\"'!$10:$80\"),MATCH('Technology template'!$A$31,INDIRECT(\"'\"&A13&\"'!$A$10:$A$80\"),0),FALSE)*HLOOKUP(B13,INDIRECT(\"'\"&A13&\"'!$10:$80\"),MATCH('Technology template'!$A$41,INDIRECT(\"'\"&A13&\"'!$A10:$A$80\"),0),FALSE),0)*TechnicianHourlyWage+IF(A13=\"Solar w Battery\",1/'Labor and Maintenance '!$E$53*'Labor and Maintenance '!$D$53,0)+IF(A13=\"LT passive\", 1/'Labor and Maintenance '!$E$81*'Labor and Maintenance '!$D$81,0)","v":24},{"$f":"IFERROR(1/HLOOKUP(B13,INDIRECT(\"'\"&A13&\"'!$10:$80\"),MATCH('Technology template'!$A$34,INDIRECT(\"'\"&A13&\"'!$A$10:$A$80\"),0),FALSE)*(HLOOKUP(B13,INDIRECT(\"'\"&A13&\"'!$10:$80\"),MATCH('Technology template'!$A$44,INDIRECT(\"'\"&A13&\"'!$A10:$A$80\"),0),FALSE)*TechnicianHourlyWage+RemoteTravelCostPerDay),0)+IFERROR(1/HLOOKUP(B13,INDIRECT(\"'\"&A13&\"'!$10:$80\"),MATCH('Technology template'!$A$35,INDIRECT(\"'\"&A13&\"'!$A$10:$A$80\"),0),FALSE)*(HLOOKUP(B13,INDIRECT(\"'\"&A13&\"'!$10:$80\"),MATCH('Technology template'!$A$45,INDIRECT(\"'\"&A13&\"'!$A10:$A$80\"),0),FALSE)*TechnicianHourlyWage+RemoteTravelCostPerDay),0)+IFERROR(1/HLOOKUP(B13,INDIRECT(\"'\"&A13&\"'!$10:$80\"),MATCH('Technology template'!$A$37,INDIRECT(\"'\"&A13&\"'!$A$10:$A$80\"),0),FALSE)*(HLOOKUP(B13,INDIRECT(\"'\"&A13&\"'!$10:$80\"),MATCH('Technology template'!$A$46,INDIRECT(\"'\"&A13&\"'!$A10:$A$80\"),0),FALSE)*TechnicianHourlyWage+'Labor and Maintenance '!$B$8),0)","v":94.666666666666657},{"$f":"SUM(Q13:S13)*I13","v":3632.166666666667},{"$f":"SUM(Q13:S13)","v":363.2166666666667},{"$f":"P13+U13","v":817.37917016666665},null,"B Medical TFW 800*",15.66077598275862,12.524712643678162,28.185488626436783,null,"B Medical TFW 800*",1.5660775982758621,1.2524712643678162,2.8185488626436781,null,"B Medical TFW 800*",{"$error":"#DIV/0!"},{"$error":"#DIV/0!"},{"$error":"#DIV/0!"},{"$f":"AJ13+AK13","v":{"$error":"#DIV/0!"}},null,"B Medical TFW 800*",{"$error":"#DIV/0!"},{"$error":"#DIV/0!"},{"$error":"#DIV/0!"},{"$f":"+AP13+AQ13","v":{"$error":"#DIV/0!"}},null,"B Medical TFW 800*",{"$f":"IF(F13=0, 'Country Input'!$D$7, ROUNDUP(LitersPerFacility/F13,0)*'Country Input'!$D$7)","v":10},45416.250350000002,3632.166666666667,49048.417016666666,null,"B Medical TFW 800*",{"$f":"ROUNDUP(LitersPerFacility/F13,0)*'Country Input'!$D$7*ROUNDUP('Total Solution Costs'!$B$2/Calculations!I13,0)","v":{"$error":"#DIV/0!"}},{"$error":"#DIV/0!"},{"$error":"#DIV/0!"},{"$f":"BB13+BC13","v":{"$error":"#DIV/0!"}},null,null,"B Medical TFW 800*",{"$f":"(($U13+($O13)*IF(MOD(BH$3,$I13)=1,1,0)+Parts!$E$91*IF($J13=0,0,IF(MOD(BH$3,$I13)=1,IF(PQS!$R13=\"NO\",1,0),IF(MOD(BH$3,Calculations!$J13)=1,1,0)))+Parts!$E$92*IF(Calculations!$K13=0,0,IF(MOD(BH$3,$I13)=1,0,IF(MOD(BH$3,Calculations!$K13)=1,1,0))))*$AU13)*(1+'Country Input'!$C$45)^(Calculations!BH$3-$BH$3)+TrainingCost","v":49048.417016666659},{"$f":"(($U13+($O13)*IF(MOD(BI$3,$I13)=1,1,0)+Parts!$E$91*IF($J13=0,0,IF(MOD(BI$3,$I13)=1,IF(PQS!$R13=\"NO\",1,0),IF(MOD(BI$3,Calculations!$J13)=1,1,0)))+Parts!$E$92*IF(Calculations!$K13=0,0,IF(MOD(BI$3,$I13)=1,0,IF(MOD(BI$3,Calculations!$K13)=1,1,0))))*$AU13)*(1+'Country Input'!$C$45)^(Calculations!BI$3-$BH$3)","v":3632.166666666667},{"$f":"(($U13+($O13)*IF(MOD(BJ$3,$I13)=1,1,0)+Parts!$E$91*IF($J13=0,0,IF(MOD(BJ$3,$I13)=1,IF(PQS!$R13=\"NO\",1,0),IF(MOD(BJ$3,Calculations!$J13)=1,1,0)))+Parts!$E$92*IF(Calculations!$K13=0,0,IF(MOD(BJ$3,$I13)=1,0,IF(MOD(BJ$3,Calculations!$K13)=1,1,0))))*$AU13)*(1+'Country Input'!$C$45)^(Calculations!BJ$3-$BH$3)","v":3632.166666666667},{"$f":"(($U13+($O13)*IF(MOD(BK$3,$I13)=1,1,0)+Parts!$E$91*IF($J13=0,0,IF(MOD(BK$3,$I13)=1,IF(PQS!$R13=\"NO\",1,0),IF(MOD(BK$3,Calculations!$J13)=1,1,0)))+Parts!$E$92*IF(Calculations!$K13=0,0,IF(MOD(BK$3,$I13)=1,0,IF(MOD(BK$3,Calculations!$K13)=1,1,0))))*$AU13)*(1+'Country Input'!$C$45)^(Calculations!BK$3-$BH$3)","v":3632.166666666667},{"$f":"(($U13+($O13)*IF(MOD(BL$3,$I13)=1,1,0)+Parts!$E$91*IF($J13=0,0,IF(MOD(BL$3,$I13)=1,IF(PQS!$R13=\"NO\",1,0),IF(MOD(BL$3,Calculations!$J13)=1,1,0)))+Parts!$E$92*IF(Calculations!$K13=0,0,IF(MOD(BL$3,$I13)=1,0,IF(MOD(BL$3,Calculations!$K13)=1,1,0))))*$AU13)*(1+'Country Input'!$C$45)^(Calculations!BL$3-$BH$3)","v":3632.166666666667},{"$f":"(($U13+($O13)*IF(MOD(BM$3,$I13)=1,1,0)+Parts!$E$91*IF($J13=0,0,IF(MOD(BM$3,$I13)=1,IF(PQS!$R13=\"NO\",1,0),IF(MOD(BM$3,Calculations!$J13)=1,1,0)))+Parts!$E$92*IF(Calculations!$K13=0,0,IF(MOD(BM$3,$I13)=1,0,IF(MOD(BM$3,Calculations!$K13)=1,1,0))))*$AU13)*(1+'Country Input'!$C$45)^(Calculations!BM$3-$BH$3)","v":3632.166666666667},{"$f":"(($U13+($O13)*IF(MOD(BN$3,$I13)=1,1,0)+Parts!$E$91*IF($J13=0,0,IF(MOD(BN$3,$I13)=1,IF(PQS!$R13=\"NO\",1,0),IF(MOD(BN$3,Calculations!$J13)=1,1,0)))+Parts!$E$92*IF(Calculations!$K13=0,0,IF(MOD(BN$3,$I13)=1,0,IF(MOD(BN$3,Calculations!$K13)=1,1,0))))*$AU13)*(1+'Country Input'!$C$45)^(Calculations!BN$3-$BH$3)","v":3632.166666666667},{"$f":"(($U13+($O13)*IF(MOD(BO$3,$I13)=1,1,0)+Parts!$E$91*IF($J13=0,0,IF(MOD(BO$3,$I13)=1,IF(PQS!$R13=\"NO\",1,0),IF(MOD(BO$3,Calculations!$J13)=1,1,0)))+Parts!$E$92*IF(Calculations!$K13=0,0,IF(MOD(BO$3,$I13)=1,0,IF(MOD(BO$3,Calculations!$K13)=1,1,0))))*$AU13)*(1+'Country Input'!$C$45)^(Calculations!BO$3-$BH$3)","v":3632.166666666667},{"$f":"(($U13+($O13)*IF(MOD(BP$3,$I13)=1,1,0)+Parts!$E$91*IF($J13=0,0,IF(MOD(BP$3,$I13)=1,IF(PQS!$R13=\"NO\",1,0),IF(MOD(BP$3,Calculations!$J13)=1,1,0)))+Parts!$E$92*IF(Calculations!$K13=0,0,IF(MOD(BP$3,$I13)=1,0,IF(MOD(BP$3,Calculations!$K13)=1,1,0))))*$AU13)*(1+'Country Input'!$C$45)^(Calculations!BP$3-$BH$3)","v":3632.166666666667},{"$f":"(($U13+($O13)*IF(MOD(BQ$3,$I13)=1,1,0)+Parts!$E$91*IF($J13=0,0,IF(MOD(BQ$3,$I13)=1,IF(PQS!$R13=\"NO\",1,0),IF(MOD(BQ$3,Calculations!$J13)=1,1,0)))+Parts!$E$92*IF(Calculations!$K13=0,0,IF(MOD(BQ$3,$I13)=1,0,IF(MOD(BQ$3,Calculations!$K13)=1,1,0))))*$AU13)*(1+'Country Input'!$C$45)^(Calculations!BQ$3-$BH$3)","v":3632.166666666667},{"$f":"(($U13+($O13)*IF(MOD(BR$3,$I13)=1,1,0)+Parts!$E$91*IF($J13=0,0,IF(MOD(BR$3,$I13)=1,IF(PQS!$R13=\"NO\",1,0),IF(MOD(BR$3,Calculations!$J13)=1,1,0)))+Parts!$E$92*IF(Calculations!$K13=0,0,IF(MOD(BR$3,$I13)=1,0,IF(MOD(BR$3,Calculations!$K13)=1,1,0))))*$AU13)*(1+'Country Input'!$C$45)^(Calculations!BR$3-$BH$3)","v":49048.417016666659},{"$f":"(($U13+($O13)*IF(MOD(BS$3,$I13)=1,1,0)+Parts!$E$91*IF($J13=0,0,IF(MOD(BS$3,$I13)=1,IF(PQS!$R13=\"NO\",1,0),IF(MOD(BS$3,Calculations!$J13)=1,1,0)))+Parts!$E$92*IF(Calculations!$K13=0,0,IF(MOD(BS$3,$I13)=1,0,IF(MOD(BS$3,Calculations!$K13)=1,1,0))))*$AU13)*(1+'Country Input'!$C$45)^(Calculations!BS$3-$BH$3)","v":3632.166666666667},{"$f":"(($U13+($O13)*IF(MOD(BT$3,$I13)=1,1,0)+Parts!$E$91*IF($J13=0,0,IF(MOD(BT$3,$I13)=1,IF(PQS!$R13=\"NO\",1,0),IF(MOD(BT$3,Calculations!$J13)=1,1,0)))+Parts!$E$92*IF(Calculations!$K13=0,0,IF(MOD(BT$3,$I13)=1,0,IF(MOD(BT$3,Calculations!$K13)=1,1,0))))*$AU13)*(1+'Country Input'!$C$45)^(Calculations!BT$3-$BH$3)","v":3632.166666666667},{"$f":"(($U13+($O13)*IF(MOD(BU$3,$I13)=1,1,0)+Parts!$E$91*IF($J13=0,0,IF(MOD(BU$3,$I13)=1,IF(PQS!$R13=\"NO\",1,0),IF(MOD(BU$3,Calculations!$J13)=1,1,0)))+Parts!$E$92*IF(Calculations!$K13=0,0,IF(MOD(BU$3,$I13)=1,0,IF(MOD(BU$3,Calculations!$K13)=1,1,0))))*$AU13)*(1+'Country Input'!$C$45)^(Calculations!BU$3-$BH$3)","v":3632.166666666667},{"$f":"(($U13+($O13)*IF(MOD(BV$3,$I13)=1,1,0)+Parts!$E$91*IF($J13=0,0,IF(MOD(BV$3,$I13)=1,IF(PQS!$R13=\"NO\",1,0),IF(MOD(BV$3,Calculations!$J13)=1,1,0)))+Parts!$E$92*IF(Calculations!$K13=0,0,IF(MOD(BV$3,$I13)=1,0,IF(MOD(BV$3,Calculations!$K13)=1,1,0))))*$AU13)*(1+'Country Input'!$C$45)^(Calculations!BV$3-$BH$3)","v":3632.166666666667},{"$f":"(($U13+($O13)*IF(MOD(BW$3,$I13)=1,1,0)+Parts!$E$91*IF($J13=0,0,IF(MOD(BW$3,$I13)=1,IF(PQS!$R13=\"NO\",1,0),IF(MOD(BW$3,Calculations!$J13)=1,1,0)))+Parts!$E$92*IF(Calculations!$K13=0,0,IF(MOD(BW$3,$I13)=1,0,IF(MOD(BW$3,Calculations!$K13)=1,1,0))))*$AU13)*(1+'Country Input'!$C$45)^(Calculations!BW$3-$BH$3)","v":3632.166666666667},{"$f":"(($U13+($O13)*IF(MOD(BX$3,$I13)=1,1,0)+Parts!$E$91*IF($J13=0,0,IF(MOD(BX$3,$I13)=1,IF(PQS!$R13=\"NO\",1,0),IF(MOD(BX$3,Calculations!$J13)=1,1,0)))+Parts!$E$92*IF(Calculations!$K13=0,0,IF(MOD(BX$3,$I13)=1,0,IF(MOD(BX$3,Calculations!$K13)=1,1,0))))*$AU13)*(1+'Country Input'!$C$45)^(Calculations!BX$3-$BH$3)","v":3632.166666666667},{"$f":"(($U13+($O13)*IF(MOD(BY$3,$I13)=1,1,0)+Parts!$E$91*IF($J13=0,0,IF(MOD(BY$3,$I13)=1,IF(PQS!$R13=\"NO\",1,0),IF(MOD(BY$3,Calculations!$J13)=1,1,0)))+Parts!$E$92*IF(Calculations!$K13=0,0,IF(MOD(BY$3,$I13)=1,0,IF(MOD(BY$3,Calculations!$K13)=1,1,0))))*$AU13)*(1+'Country Input'!$C$45)^(Calculations!BY$3-$BH$3)","v":3632.166666666667},{"$f":"(($U13+($O13)*IF(MOD(BZ$3,$I13)=1,1,0)+Parts!$E$91*IF($J13=0,0,IF(MOD(BZ$3,$I13)=1,IF(PQS!$R13=\"NO\",1,0),IF(MOD(BZ$3,Calculations!$J13)=1,1,0)))+Parts!$E$92*IF(Calculations!$K13=0,0,IF(MOD(BZ$3,$I13)=1,0,IF(MOD(BZ$3,Calculations!$K13)=1,1,0))))*$AU13)*(1+'Country Input'!$C$45)^(Calculations!BZ$3-$BH$3)","v":3632.166666666667},{"$f":"(($U13+($O13)*IF(MOD(CA$3,$I13)=1,1,0)+Parts!$E$91*IF($J13=0,0,IF(MOD(CA$3,$I13)=1,IF(PQS!$R13=\"NO\",1,0),IF(MOD(CA$3,Calculations!$J13)=1,1,0)))+Parts!$E$92*IF(Calculations!$K13=0,0,IF(MOD(CA$3,$I13)=1,0,IF(MOD(CA$3,Calculations!$K13)=1,1,0))))*$AU13)*(1+'Country Input'!$C$45)^(Calculations!CA$3-$BH$3)","v":3632.166666666667},null,"B Medical TFW 800*",{"$f":"BH13/((1+DiscountRate)^(COLUMN(CD13)-COLUMN($CD13)))","v":49048.417016666659},3632.166666666667,3632.166666666667,3632.166666666667,3632.166666666667,3632.166666666667,3632.166666666667,3632.166666666667,3632.166666666667,3632.166666666667,49048.417016666659,3632.166666666667,3632.166666666667,3632.166666666667,3632.166666666667,3632.166666666667,3632.166666666667,3632.166666666667,3632.166666666667,3632.166666666667,{"$f":"SUM(CD13:INDEX($CD13:$CW13,1,'Total Solution Costs'!$B$2))","v":81737.917016666674},null,"B Medical TFW 800*",{"$f":"SUM($BH13:BH13)","v":49048.417016666659},{"$f":"SUM($BH13:BI13)","v":52680.583683333323},{"$f":"SUM($BH13:BJ13)","v":56312.750349999988},{"$f":"SUM($BH13:BK13)","v":59944.917016666652},{"$f":"SUM($BH13:BL13)","v":63577.083683333316},{"$f":"SUM($BH13:BM13)","v":67209.250349999988},{"$f":"SUM($BH13:BN13)","v":70841.417016666659},{"$f":"SUM($BH13:BO13)","v":74473.583683333331},{"$f":"SUM($BH13:BP13)","v":78105.750350000002},{"$f":"SUM($BH13:BQ13)","v":81737.917016666674},{"$f":"SUM($BH13:BR13)","v":130786.33403333333},{"$f":"SUM($BH13:BS13)","v":134418.5007},{"$f":"SUM($BH13:BT13)","v":138050.66736666666},{"$f":"SUM($BH13:BU13)","v":141682.83403333332},{"$f":"SUM($BH13:BV13)","v":145315.00069999998},{"$f":"SUM($BH13:BW13)","v":148947.16736666663},{"$f":"SUM($BH13:BX13)","v":152579.33403333329},{"$f":"SUM($BH13:BY13)","v":156211.50069999995},{"$f":"SUM($BH13:BZ13)","v":159843.6673666666},{"$f":"SUM($BH13:CA13)","v":163475.83403333326}]
[{"$f":"PQS!A14","v":"Freezer"},{"$f":"PQS!B14","v":"E003/060"},{"$f":"PQS!E14","v":"DW-25W147*"},{"$f":"PQS!F14","v":"Aucma"},{"$f":"PQS!D14","v":"Aucma DW-25W147*"},{"$f":"VLOOKUP(E14,PQS!$D$5:$K$107,COLUMN(PQS!$I$3)-COLUMN(PQS!$D$3)+1,FALSE)","v":0},{"$f":"VLOOKUP(E14,PQS!$D$5:$K$107,COLUMN(PQS!$J$3)-COLUMN(PQS!$D$3)+1,FALSE)","v":96},{"$f":"VLOOKUP(E14,PQS!$D$5:$K$107,COLUMN(PQS!$G$3)-COLUMN(PQS!$D$3)+1,FALSE)","v":"Yes"},{"$f":"HLOOKUP(B14,INDIRECT(\"'\"&A14&\"'!$10:$15\"),ROW('Technology template'!$A$11)-ROW('Technology template'!$A$10)+1,FALSE)","v":10},{"$f":"HLOOKUP(B14,INDIRECT(\"'\"&A14&\"'!$10:$15\"),ROW('Technology template'!$A$12)-ROW('Technology template'!$A$10)+1,FALSE)","v":0},{"$f":"HLOOKUP(B14,INDIRECT(\"'\"&A14&\"'!$10:$15\"),ROW('Technology template'!$A$13)-ROW('Technology template'!$A$10)+1,FALSE)","v":0},{"$f":"VLOOKUP(B14,PQS!$B:$Q,MATCH(PQS!$Q$3,PQS!$B$3:$Q$3,0),FALSE)*(1+'Country Input'!$C$47)+HLOOKUP(B14,INDIRECT(\"'\"&A14&\"'!$10:$15\"),ROW('Technology template'!$A$14)-ROW('Technology template'!$A$10)+1,FALSE)*(1+'Country Input'!$C$47)","v":535},{"$f":"HLOOKUP(B14,INDIRECT(\"'\"&A14&\"'!$10:$80\"),MATCH('Technology template'!$A$27,INDIRECT(\"'\"&A14&\"'!$A$10:$A$80\"),0),FALSE)+'Labor and Maintenance '!$E$23","v":716},{"$f":"VLOOKUP(B14,PQS!B:T,MATCH(PQS!$T$3,PQS!$B$3:$T$3,0),FALSE)*(1+'Country Input'!$C$47)","v":234.28720000000004},1485.2872,{"$f":"O14/I14","v":148.52871999999999},{"$f":"VLOOKUP(B14,PQS!$B:$AE,COLUMN(PQS!AD12)-1,FALSE)","v":241.63000000000002},{"$f":"IFERROR(1/HLOOKUP(B14,INDIRECT(\"'\"&A14&\"'!$10:$80\"),MATCH('Technology template'!$A$31,INDIRECT(\"'\"&A14&\"'!$A$10:$A$80\"),0),FALSE)*HLOOKUP(B14,INDIRECT(\"'\"&A14&\"'!$10:$80\"),MATCH('Technology template'!$A$41,INDIRECT(\"'\"&A14&\"'!$A10:$A$80\"),0),FALSE),0)*TechnicianHourlyWage+IF(A14=\"Solar w Battery\",1/'Labor and Maintenance '!$E$53*'Labor and Maintenance '!$D$53,0)+IF(A14=\"LT passive\", 1/'Labor and Maintenance '!$E$81*'Labor and Maintenance '!$D$81,0)","v":24},{"$f":"IFERROR(1/HLOOKUP(B14,INDIRECT(\"'\"&A14&\"'!$10:$80\"),MATCH('Technology template'!$A$34,INDIRECT(\"'\"&A14&\"'!$A$10:$A$80\"),0),FALSE)*(HLOOKUP(B14,INDIRECT(\"'\"&A14&\"'!$10:$80\"),MATCH('Technology template'!$A$44,INDIRECT(\"'\"&A14&\"'!$A10:$A$80\"),0),FALSE)*TechnicianHourlyWage+RemoteTravelCostPerDay),0)+IFERROR(1/HLOOKUP(B14,INDIRECT(\"'\"&A14&\"'!$10:$80\"),MATCH('Technology template'!$A$35,INDIRECT(\"'\"&A14&\"'!$A$10:$A$80\"),0),FALSE)*(HLOOKUP(B14,INDIRECT(\"'\"&A14&\"'!$10:$80\"),MATCH('Technology template'!$A$45,INDIRECT(\"'\"&A14&\"'!$A10:$A$80\"),0),FALSE)*TechnicianHourlyWage+RemoteTravelCostPerDay),0)+IFERROR(1/HLOOKUP(B14,INDIRECT(\"'\"&A14&\"'!$10:$80\"),MATCH('Technology template'!$A$37,INDIRECT(\"'\"&A14&\"'!$A$10:$A$80\"),0),FALSE)*(HLOOKUP(B14,INDIRECT(\"'\"&A14&\"'!$10:$80\"),MATCH('Technology template'!$A$46,INDIRECT(\"'\"&A14&\"'!$A10:$A$80\"),0),FALSE)*TechnicianHourlyWage+'Labor and Maintenance '!$B$8),0)","v":94.666666666666657},{"$f":"SUM(Q14:S14)*I14","v":3602.9666666666662},{"$f":"SUM(Q14:S14)","v":360.29666666666662},{"$f":"P14+U14","v":508.82538666666665},null,{"$f":"E14","v":"Aucma DW-25W147*"},15.471741666666667,37.530902777777776,{"$f":"Y14+Z14","v":53.002644444444442},null,"Aucma DW-25W147*",1.5471741666666665,3.7530902777777775,5.3002644444444442,null,"Aucma DW-25W147*",{"$error":"#DIV/0!"},{"$error":"#DIV/0!"},{"$error":"#DIV/0!"},{"$f":"AJ14+AK14","v":{"$error":"#DIV/0!"}},null,"Aucma DW-25W147*",{"$error":"#DIV/0!"},{"$error":"#DIV/0!"},{"$error":"#DIV/0!"},{"$f":"+AP14+AQ14","v":{"$error":"#DIV/0!"}},null,"Aucma DW-25W147*",{"$f":"IF(F14=0, 'Country Input'!$D$7, ROUNDUP(LitersPerFacility/F14,0)*'Country Input'!$D$7)","v":10},14852.871999999999,3602.9666666666662,18455.838666666667,null,"Aucma DW-25W147*",{"$f":"ROUNDUP(LitersPerFacility/F14,0)*'Country Input'!$D$7*ROUNDUP('Total Solution Costs'!$B$2/Calculations!I14,0)","v":{"$error":"#DIV/0!"}},{"$error":"#DIV/0!"},{"$error":"#DIV/0!"},{"$f":"BB14+BC14","v":{"$error":"#DIV/0!"}},null,null,"Aucma DW-25W147*",{"$f":"(($U14+($O14)*IF(MOD(BH$3,$I14)=1,1,0)+Parts!$E$91*IF($J14=0,0,IF(MOD(BH$3,$I14)=1,IF(PQS!$R14=\"NO\",1,0),IF(MOD(BH$3,Calculations!$J14)=1,1,0)))+Parts!$E$92*IF(Calculations!$K14=0,0,IF(MOD(BH$3,$I14)=1,0,IF(MOD(BH$3,Calculations!$K14)=1,1,0))))*$AU14)*(1+'Country Input'!$C$45)^(Calculations!BH$3-$BH$3)+TrainingCost","v":18455.838666666667},{"$f":"(($U14+($O14)*IF(MOD(BI$3,$I14)=1,1,0)+Parts!$E$91*IF($J14=0,0,IF(MOD(BI$3,$I14)=1,IF(PQS!$R14=\"NO\",1,0),IF(MOD(BI$3,Calculations!$J14)=1,1,0)))+Parts!$E$92*IF(Calculations!$K14=0,0,IF(MOD(BI$3,$I14)=1,0,IF(MOD(BI$3,Calculations!$K14)=1,1,0))))*$AU14)*(1+'Country Input'!$C$45)^(Calculations!BI$3-$BH$3)","v":3602.9666666666662},{"$f":"(($U14+($O14)*IF(MOD(BJ$3,$I14)=1,1,0)+Parts!$E$91*IF($J14=0,0,IF(MOD(BJ$3,$I14)=1,IF(PQS!$R14=\"NO\",1,0),IF(MOD(BJ$3,Calculations!$J14)=1,1,0)))+Parts!$E$92*IF(Calculations!$K14=0,0,IF(MOD(BJ$3,$I14)=1,0,IF(MOD(BJ$3,Calculations!$K14)=1,1,0))))*$AU14)*(1+'Country Input'!$C$45)^(Calculations!BJ$3-$BH$3)","v":3602.9666666666662},{"$f":"(($U14+($O14)*IF(MOD(BK$3,$I14)=1,1,0)+Parts!$E$91*IF($J14=0,0,IF(MOD(BK$3,$I14)=1,IF(PQS!$R14=\"NO\",1,0),IF(MOD(BK$3,Calculations!$J14)=1,1,0)))+Parts!$E$92*IF(Calculations!$K14=0,0,IF(MOD(BK$3,$I14)=1,0,IF(MOD(BK$3,Calculations!$K14)=1,1,0))))*$AU14)*(1+'Country Input'!$C$45)^(Calculations!BK$3-$BH$3)","v":3602.9666666666662},{"$f":"(($U14+($O14)*IF(MOD(BL$3,$I14)=1,1,0)+Parts!$E$91*IF($J14=0,0,IF(MOD(BL$3,$I14)=1,IF(PQS!$R14=\"NO\",1,0),IF(MOD(BL$3,Calculations!$J14)=1,1,0)))+Parts!$E$92*IF(Calculations!$K14=0,0,IF(MOD(BL$3,$I14)=1,0,IF(MOD(BL$3,Calculations!$K14)=1,1,0))))*$AU14)*(1+'Country Input'!$C$45)^(Calculations!BL$3-$BH$3)","v":3602.9666666666662},{"$f":"(($U14+($O14)*IF(MOD(BM$3,$I14)=1,1,0)+Parts!$E$91*IF($J14=0,0,IF(MOD(BM$3,$I14)=1,IF(PQS!$R14=\"NO\",1,0),IF(MOD(BM$3,Calculations!$J14)=1,1,0)))+Parts!$E$92*IF(Calculations!$K14=0,0,IF(MOD(BM$3,$I14)=1,0,IF(MOD(BM$3,Calculations!$K14)=1,1,0))))*$AU14)*(1+'Country Input'!$C$45)^(Calculations!BM$3-$BH$3)","v":3602.9666666666662},{"$f":"(($U14+($O14)*IF(MOD(BN$3,$I14)=1,1,0)+Parts!$E$91*IF($J14=0,0,IF(MOD(BN$3,$I14)=1,IF(PQS!$R14=\"NO\",1,0),IF(MOD(BN$3,Calculations!$J14)=1,1,0)))+Parts!$E$92*IF(Calculations!$K14=0,0,IF(MOD(BN$3,$I14)=1,0,IF(MOD(BN$3,Calculations!$K14)=1,1,0))))*$AU14)*(1+'Country Input'!$C$45)^(Calculations!BN$3-$BH$3)","v":3602.9666666666662},{"$f":"(($U14+($O14)*IF(MOD(BO$3,$I14)=1,1,0)+Parts!$E$91*IF($J14=0,0,IF(MOD(BO$3,$I14)=1,IF(PQS!$R14=\"NO\",1,0),IF(MOD(BO$3,Calculations!$J14)=1,1,0)))+Parts!$E$92*IF(Calculations!$K14=0,0,IF(MOD(BO$3,$I14)=1,0,IF(MOD(BO$3,Calculations!$K14)=1,1,0))))*$AU14)*(1+'Country Input'!$C$45)^(Calculations!BO$3-$BH$3)","v":3602.9666666666662},{"$f":"(($U14+($O14)*IF(MOD(BP$3,$I14)=1,1,0)+Parts!$E$91*IF($J14=0,0,IF(MOD(BP$3,$I14)=1,IF(PQS!$R14=\"NO\",1,0),IF(MOD(BP$3,Calculations!$J14)=1,1,0)))+Parts!$E$92*IF(Calculations!$K14=0,0,IF(MOD(BP$3,$I14)=1,0,IF(MOD(BP$3,Calculations!$K14)=1,1,0))))*$AU14)*(1+'Country Input'!$C$45)^(Calculations!BP$3-$BH$3)","v":3602.9666666666662},{"$f":"(($U14+($O14)*IF(MOD(BQ$3,$I14)=1,1,0)+Parts!$E$91*IF($J14=0,0,IF(MOD(BQ$3,$I14)=1,IF(PQS!$R14=\"NO\",1,0),IF(MOD(BQ$3,Calculations!$J14)=1,1,0)))+Parts!$E$92*IF(Calculations!$K14=0,0,IF(MOD(BQ$3,$I14)=1,0,IF(MOD(BQ$3,Calculations!$K14)=1,1,0))))*$AU14)*(1+'Country Input'!$C$45)^(Calculations!BQ$3-$BH$3)","v":3602.9666666666662},{"$f":"(($U14+($O14)*IF(MOD(BR$3,$I14)=1,1,0)+Parts!$E$91*IF($J14=0,0,IF(MOD(BR$3,$I14)=1,IF(PQS!$R14=\"NO\",1,0),IF(MOD(BR$3,Calculations!$J14)=1,1,0)))+Parts!$E$92*IF(Calculations!$K14=0,0,IF(MOD(BR$3,$I14)=1,0,IF(MOD(BR$3,Calculations!$K14)=1,1,0))))*$AU14)*(1+'Country Input'!$C$45)^(Calculations!BR$3-$BH$3)","v":18455.838666666667},{"$f":"(($U14+($O14)*IF(MOD(BS$3,$I14)=1,1,0)+Parts!$E$91*IF($J14=0,0,IF(MOD(BS$3,$I14)=1,IF(PQS!$R14=\"NO\",1,0),IF(MOD(BS$3,Calculations!$J14)=1,1,0)))+Parts!$E$92*IF(Calculations!$K14=0,0,IF(MOD(BS$3,$I14)=1,0,IF(MOD(BS$3,Calculations!$K14)=1,1,0))))*$AU14)*(1+'Country Input'!$C$45)^(Calculations!BS$3-$BH$3)","v":3602.9666666666662},{"$f":"(($U14+($O14)*IF(MOD(BT$3,$I14)=1,1,0)+Parts!$E$91*IF($J14=0,0,IF(MOD(BT$3,$I14)=1,IF(PQS!$R14=\"NO\",1,0),IF(MOD(BT$3,Calculations!$J14)=1,1,0)))+Parts!$E$92*IF(Calculations!$K14=0,0,IF(MOD(BT$3,$I14)=1,0,IF(MOD(BT$3,Calculations!$K14)=1,1,0))))*$AU14)*(1+'Country Input'!$C$45)^(Calculations!BT$3-$BH$3)","v":3602.9666666666662},{"$f":"(($U14+($O14)*IF(MOD(BU$3,$I14)=1,1,0)+Parts!$E$91*IF($J14=0,0,IF(MOD(BU$3,$I14)=1,IF(PQS!$R14=\"NO\",1,0),IF(MOD(BU$3,Calculations!$J14)=1,1,0)))+Parts!$E$92*IF(Calculations!$K14=0,0,IF(MOD(BU$3,$I14)=1,0,IF(MOD(BU$3,Calculations!$K14)=1,1,0))))*$AU14)*(1+'Country Input'!$C$45)^(Calculations!BU$3-$BH$3)","v":3602.9666666666662},{"$f":"(($U14+($O14)*IF(MOD(BV$3,$I14)=1,1,0)+Parts!$E$91*IF($J14=0,0,IF(MOD(BV$3,$I14)=1,IF(PQS!$R14=\"NO\",1,0),IF(MOD(BV$3,Calculations!$J14)=1,1,0)))+Parts!$E$92*IF(Calculations!$K14=0,0,IF(MOD(BV$3,$I14)=1,0,IF(MOD(BV$3,Calculations!$K14)=1,1,0))))*$AU14)*(1+'Country Input'!$C$45)^(Calculations!BV$3-$BH$3)","v":3602.9666666666662},{"$f":"(($U14+($O14)*IF(MOD(BW$3,$I14)=1,1,0)+Parts!$E$91*IF($J14=0,0,IF(MOD(BW$3,$I14)=1,IF(PQS!$R14=\"NO\",1,0),IF(MOD(BW$3,Calculations!$J14)=1,1,0)))+Parts!$E$92*IF(Calculations!$K14=0,0,IF(MOD(BW$3,$I14)=1,0,IF(MOD(BW$3,Calculations!$K14)=1,1,0))))*$AU14)*(1+'Country Input'!$C$45)^(Calculations!BW$3-$BH$3)","v":3602.9666666666662},{"$f":"(($U14+($O14)*IF(MOD(BX$3,$I14)=1,1,0)+Parts!$E$91*IF($J14=0,0,IF(MOD(BX$3,$I14)=1,IF(PQS!$R14=\"NO\",1,0),IF(MOD(BX$3,Calculations!$J14)=1,1,0)))+Parts!$E$92*IF(Calculations!$K14=0,0,IF(MOD(BX$3,$I14)=1,0,IF(MOD(BX$3,Calculations!$K14)=1,1,0))))*$AU14)*(1+'Country Input'!$C$45)^(Calculations!BX$3-$BH$3)","v":3602.9666666666662},{"$f":"(($U14+($O14)*IF(MOD(BY$3,$I14)=1,1,0)+Parts!$E$91*IF($J14=0,0,IF(MOD(BY$3,$I14)=1,IF(PQS!$R14=\"NO\",1,0),IF(MOD(BY$3,Calculations!$J14)=1,1,0)))+Parts!$E$92*IF(Calculations!$K14=0,0,IF(MOD(BY$3,$I14)=1,0,IF(MOD(BY$3,Calculations!$K14)=1,1,0))))*$AU14)*(1+'Country Input'!$C$45)^(Calculations!BY$3-$BH$3)","v":3602.9666666666662},{"$f":"(($U14+($O14)*IF(MOD(BZ$3,$I14)=1,1,0)+Parts!$E$91*IF($J14=0,0,IF(MOD(BZ$3,$I14)=1,IF(PQS!$R14=\"NO\",1,0),IF(MOD(BZ$3,Calculations!$J14)=1,1,0)))+Parts!$E$92*IF(Calculations!$K14=0,0,IF(MOD(BZ$3,$I14)=1,0,IF(MOD(BZ$3,Calculations!$K14)=1,1,0))))*$AU14)*(1+'Country Input'!$C$45)^(Calculations!BZ$3-$BH$3)","v":3602.9666666666662},{"$f":"(($U14+($O14)*IF(MOD(CA$3,$I14)=1,1,0)+Parts!$E$91*IF($J14=0,0,IF(MOD(CA$3,$I14)=1,IF(PQS!$R14=\"NO\",1,0),IF(MOD(CA$3,Calculations!$J14)=1,1,0)))+Parts!$E$92*IF(Calculations!$K14=0,0,IF(MOD(CA$3,$I14)=1,0,IF(MOD(CA$3,Calculations!$K14)=1,1,0))))*$AU14)*(1+'Country Input'!$C$45)^(Calculations!CA$3-$BH$3)","v":3602.9666666666662},null,"Aucma DW-25W147*",18455.838666666667,3602.9666666666662,3602.9666666666662,3602.9666666666662,3602.9666666666662,3602.9666666666662,3602.9666666666662,3602.9666666666662,3602.9666666666662,3602.9666666666662,18455.838666666667,3602.9666666666662,3602.9666666666662,3602.9666666666662,3602.9666666666662,3602.9666666666662,3602.9666666666662,3602.9666666666662,3602.9666666666662,3602.9666666666662,{"$f":"SUM(CD14:INDEX($CD14:$CW14,1,'Total Solution Costs'!$B$2))","v":50882.538666666667},null,"Aucma DW-25W147*",{"$f":"SUM($BH14:BH14)","v":18455.838666666667},{"$f":"SUM($BH14:BI14)","v":22058.805333333334},{"$f":"SUM($BH14:BJ14)","v":25661.772000000001},{"$f":"SUM($BH14:BK14)","v":29264.738666666668},{"$f":"SUM($BH14:BL14)","v":32867.705333333332},{"$f":"SUM($BH14:BM14)","v":36470.671999999999},{"$f":"SUM($BH14:BN14)","v":40073.638666666666},{"$f":"SUM($BH14:BO14)","v":43676.605333333333},{"$f":"SUM($BH14:BP14)","v":47279.572},{"$f":"SUM($BH14:BQ14)","v":50882.538666666667},{"$f":"SUM($BH14:BR14)","v":69338.377333333337},{"$f":"SUM($BH14:BS14)","v":72941.343999999997},{"$f":"SUM($BH14:BT14)","v":76544.310666666657},{"$f":"SUM($BH14:BU14)","v":80147.277333333317},{"$f":"SUM($BH14:BV14)","v":83750.243999999977},{"$f":"SUM($BH14:BW14)","v":87353.210666666637},{"$f":"SUM($BH14:BX14)","v":90956.177333333297},{"$f":"SUM($BH14:BY14)","v":94559.143999999957},{"$f":"SUM($BH14:BZ14)","v":98162.110666666616},{"$f":"SUM($BH14:CA14)","v":101765.07733333328}]
[{"$f":"PQS!A15","v":"Freezer"},{"$f":"PQS!B15","v":"E003/061"},{"$f":"PQS!E15","v":"DW-25W300*"},{"$f":"PQS!F15","v":"Aucma"},{"$f":"PQS!D15","v":"Aucma DW-25W300*"},{"$f":"VLOOKUP(E15,PQS!$D$5:$K$107,COLUMN(PQS!$I$3)-COLUMN(PQS!$D$3)+1,FALSE)","v":0},{"$f":"VLOOKUP(E15,PQS!$D$5:$K$107,COLUMN(PQS!$J$3)-COLUMN(PQS!$D$3)+1,FALSE)","v":240},{"$f":"VLOOKUP(E15,PQS!$D$5:$K$107,COLUMN(PQS!$G$3)-COLUMN(PQS!$D$3)+1,FALSE)","v":"Yes"},{"$f":"HLOOKUP(B15,INDIRECT(\"'\"&A15&\"'!$10:$15\"),ROW('Technology template'!$A$11)-ROW('Technology template'!$A$10)+1,FALSE)","v":10},{"$f":"HLOOKUP(B15,INDIRECT(\"'\"&A15&\"'!$10:$15\"),ROW('Technology template'!$A$12)-ROW('Technology template'!$A$10)+1,FALSE)","v":0},{"$f":"HLOOKUP(B15,INDIRECT(\"'\"&A15&\"'!$10:$15\"),ROW('Technology template'!$A$13)-ROW('Technology template'!$A$10)+1,FALSE)","v":0},{"$f":"VLOOKUP(B15,PQS!$B:$Q,MATCH(PQS!$Q$3,PQS!$B$3:$Q$3,0),FALSE)*(1+'Country Input'!$C$47)+HLOOKUP(B15,INDIRECT(\"'\"&A15&\"'!$10:$15\"),ROW('Technology template'!$A$14)-ROW('Technology template'!$A$10)+1,FALSE)*(1+'Country Input'!$C$47)","v":631.30000000000007},{"$f":"HLOOKUP(B15,INDIRECT(\"'\"&A15&\"'!$10:$80\"),MATCH('Technology template'!$A$27,INDIRECT(\"'\"&A15&\"'!$A$10:$A$80\"),0),FALSE)+'Labor and Maintenance '!$E$23","v":716},{"$f":"VLOOKUP(B15,PQS!B:T,MATCH(PQS!$T$3,PQS!$B$3:$T$3,0),FALSE)*(1+'Country Input'!$C$47)","v":414.46449999999999},1761.7645000000002,{"$f":"O15/I15","v":176.17645000000002},{"$f":"VLOOKUP(B15,PQS!$B:$AE,COLUMN(PQS!AD13)-1,FALSE)","v":246.01000000000002},{"$f":"IFERROR(1/HLOOKUP(B15,INDIRECT(\"'\"&A15&\"'!$10:$80\"),MATCH('Technology template'!$A$31,INDIRECT(\"'\"&A15&\"'!$A$10:$A$80\"),0),FALSE)*HLOOKUP(B15,INDIRECT(\"'\"&A15&\"'!$10:$80\"),MATCH('Technology template'!$A$41,INDIRECT(\"'\"&A15&\"'!$A10:$A$80\"),0),FALSE),0)*TechnicianHourlyWage+IF(A15=\"Solar w Battery\",1/'Labor and Maintenance '!$E$53*'Labor and Maintenance '!$D$53,0)+IF(A15=\"LT passive\", 1/'Labor and Maintenance '!$E$81*'Labor and Maintenance '!$D$81,0)","v":24},{"$f":"IFERROR(1/HLOOKUP(B15,INDIRECT(\"'\"&A15&\"'!$10:$80\"),MATCH('Technology template'!$A$34,INDIRECT(\"'\"&A15&\"'!$A$10:$A$80\"),0),FALSE)*(HLOOKUP(B15,INDIRECT(\"'\"&A15&\"'!$10:$80\"),MATCH('Technology template'!$A$44,INDIRECT(\"'\"&A15&\"'!$A10:$A$80\"),0),FALSE)*TechnicianHourlyWage+RemoteTravelCostPerDay),0)+IFERROR(1/HLOOKUP(B15,INDIRECT(\"'\"&A15&\"'!$10:$80\"),MATCH('Technology template'!$A$35,INDIRECT(\"'\"&A15&\"'!$A$10:$A$80\"),0),FALSE)*(HLOOKUP(B15,INDIRECT(\"'\"&A15&\"'!$10:$80\"),MATCH('Technology template'!$A$45,INDIRECT(\"'\"&A15&\"'!$A10:$A$80\"),0),FALSE)*TechnicianHourlyWage+RemoteTravelCostPerDay),0)+IFERROR(1/HLOOKUP(B15,INDIRECT(\"'\"&A15&\"'!$10:$80\"),MATCH('Technology template'!$A$37,INDIRECT(\"'\"&A15&\"'!$A$10:$A$80\"),0),FALSE)*(HLOOKUP(B15,INDIRECT(\"'\"&A15&\"'!$10:$80\"),MATCH('Technology template'!$A$46,INDIRECT(\"'\"&A15&\"'!$A10:$A$80\"),0),FALSE)*TechnicianHourlyWage+'Labor and Maintenance '!$B$8),0)","v":94.666666666666657},{"$f":"SUM(Q15:S15)*I15","v":3646.7666666666664},{"$f":"SUM(Q15:S15)","v":364.67666666666662},{"$f":"P15+U15","v":540.85311666666666},null,{"$f":"E15","v":"Aucma DW-25W300*"},7.340685416666668,15.194861111111111,{"$f":"Y15+Z15","v":22.535546527777779},null,"Aucma DW-25W300*",0.73406854166666669,1.5194861111111109,2.2535546527777779,null,"Aucma DW-25W300*",{"$error":"#DIV/0!"},{"$error":"#DIV/0!"},{"$error":"#DIV/0!"},{"$f":"AJ15+AK15","v":{"$error":"#DIV/0!"}},null,"Aucma DW-25W300*",{"$error":"#DIV/0!"},{"$error":"#DIV/0!"},{"$error":"#DIV/0!"},{"$f":"+AP15+AQ15","v":{"$error":"#DIV/0!"}},null,"Aucma DW-25W300*",{"$f":"IF(F15=0, 'Country Input'!$D$7, ROUNDUP(LitersPerFacility/F15,0)*'Country Input'!$D$7)","v":10},17617.645000000004,3646.7666666666664,21264.41166666667,null,"Aucma DW-25W300*",{"$f":"ROUNDUP(LitersPerFacility/F15,0)*'Country Input'!$D$7*ROUNDUP('Total Solution Costs'!$B$2/Calculations!I15,0)","v":{"$error":"#DIV/0!"}},{"$error":"#DIV/0!"},{"$error":"#DIV/0!"},{"$f":"BB15+BC15","v":{"$error":"#DIV/0!"}},null,null,"Aucma DW-25W300*",{"$f":"(($U15+($O15)*IF(MOD(BH$3,$I15)=1,1,0)+Parts!$E$91*IF($J15=0,0,IF(MOD(BH$3,$I15)=1,IF(PQS!$R15=\"NO\",1,0),IF(MOD(BH$3,Calculations!$J15)=1,1,0)))+Parts!$E$92*IF(Calculations!$K15=0,0,IF(MOD(BH$3,$I15)=1,0,IF(MOD(BH$3,Calculations!$K15)=1,1,0))))*$AU15)*(1+'Country Input'!$C$45)^(Calculations!BH$3-$BH$3)+TrainingCost","v":21264.41166666667},{"$f":"(($U15+($O15)*IF(MOD(BI$3,$I15)=1,1,0)+Parts!$E$91*IF($J15=0,0,IF(MOD(BI$3,$I15)=1,IF(PQS!$R15=\"NO\",1,0),IF(MOD(BI$3,Calculations!$J15)=1,1,0)))+Parts!$E$92*IF(Calculations!$K15=0,0,IF(MOD(BI$3,$I15)=1,0,IF(MOD(BI$3,Calculations!$K15)=1,1,0))))*$AU15)*(1+'Country Input'!$C$45)^(Calculations!BI$3-$BH$3)","v":3646.7666666666664},{"$f":"(($U15+($O15)*IF(MOD(BJ$3,$I15)=1,1,0)+Parts!$E$91*IF($J15=0,0,IF(MOD(BJ$3,$I15)=1,IF(PQS!$R15=\"NO\",1,0),IF(MOD(BJ$3,Calculations!$J15)=1,1,0)))+Parts!$E$92*IF(Calculations!$K15=0,0,IF(MOD(BJ$3,$I15)=1,0,IF(MOD(BJ$3,Calculations!$K15)=1,1,0))))*$AU15)*(1+'Country Input'!$C$45)^(Calculations!BJ$3-$BH$3)","v":3646.7666666666664},{"$f":"(($U15+($O15)*IF(MOD(BK$3,$I15)=1,1,0)+Parts!$E$91*IF($J15=0,0,IF(MOD(BK$3,$I15)=1,IF(PQS!$R15=\"NO\",1,0),IF(MOD(BK$3,Calculations!$J15)=1,1,0)))+Parts!$E$92*IF(Calculations!$K15=0,0,IF(MOD(BK$3,$I15)=1,0,IF(MOD(BK$3,Calculations!$K15)=1,1,0))))*$AU15)*(1+'Country Input'!$C$45)^(Calculations!BK$3-$BH$3)","v":3646.7666666666664},{"$f":"(($U15+($O15)*IF(MOD(BL$3,$I15)=1,1,0)+Parts!$E$91*IF($J15=0,0,IF(MOD(BL$3,$I15)=1,IF(PQS!$R15=\"NO\",1,0),IF(MOD(BL$3,Calculations!$J15)=1,1,0)))+Parts!$E$92*IF(Calculations!$K15=0,0,IF(MOD(BL$3,$I15)=1,0,IF(MOD(BL$3,Calculations!$K15)=1,1,0))))*$AU15)*(1+'Country Input'!$C$45)^(Calculations!BL$3-$BH$3)","v":3646.7666666666664},{"$f":"(($U15+($O15)*IF(MOD(BM$3,$I15)=1,1,0)+Parts!$E$91*IF($J15=0,0,IF(MOD(BM$3,$I15)=1,IF(PQS!$R15=\"NO\",1,0),IF(MOD(BM$3,Calculations!$J15)=1,1,0)))+Parts!$E$92*IF(Calculations!$K15=0,0,IF(MOD(BM$3,$I15)=1,0,IF(MOD(BM$3,Calculations!$K15)=1,1,0))))*$AU15)*(1+'Country Input'!$C$45)^(Calculations!BM$3-$BH$3)","v":3646.7666666666664},{"$f":"(($U15+($O15)*IF(MOD(BN$3,$I15)=1,1,0)+Parts!$E$91*IF($J15=0,0,IF(MOD(BN$3,$I15)=1,IF(PQS!$R15=\"NO\",1,0),IF(MOD(BN$3,Calculations!$J15)=1,1,0)))+Parts!$E$92*IF(Calculations!$K15=0,0,IF(MOD(BN$3,$I15)=1,0,IF(MOD(BN$3,Calculations!$K15)=1,1,0))))*$AU15)*(1+'Country Input'!$C$45)^(Calculations!BN$3-$BH$3)","v":3646.7666666666664},{"$f":"(($U15+($O15)*IF(MOD(BO$3,$I15)=1,1,0)+Parts!$E$91*IF($J15=0,0,IF(MOD(BO$3,$I15)=1,IF(PQS!$R15=\"NO\",1,0),IF(MOD(BO$3,Calculations!$J15)=1,1,0)))+Parts!$E$92*IF(Calculations!$K15=0,0,IF(MOD(BO$3,$I15)=1,0,IF(MOD(BO$3,Calculations!$K15)=1,1,0))))*$AU15)*(1+'Country Input'!$C$45)^(Calculations!BO$3-$BH$3)","v":3646.7666666666664},{"$f":"(($U15+($O15)*IF(MOD(BP$3,$I15)=1,1,0)+Parts!$E$91*IF($J15=0,0,IF(MOD(BP$3,$I15)=1,IF(PQS!$R15=\"NO\",1,0),IF(MOD(BP$3,Calculations!$J15)=1,1,0)))+Parts!$E$92*IF(Calculations!$K15=0,0,IF(MOD(BP$3,$I15)=1,0,IF(MOD(BP$3,Calculations!$K15)=1,1,0))))*$AU15)*(1+'Country Input'!$C$45)^(Calculations!BP$3-$BH$3)","v":3646.7666666666664},{"$f":"(($U15+($O15)*IF(MOD(BQ$3,$I15)=1,1,0)+Parts!$E$91*IF($J15=0,0,IF(MOD(BQ$3,$I15)=1,IF(PQS!$R15=\"NO\",1,0),IF(MOD(BQ$3,Calculations!$J15)=1,1,0)))+Parts!$E$92*IF(Calculations!$K15=0,0,IF(MOD(BQ$3,$I15)=1,0,IF(MOD(BQ$3,Calculations!$K15)=1,1,0))))*$AU15)*(1+'Country Input'!$C$45)^(Calculations!BQ$3-$BH$3)","v":3646.7666666666664},{"$f":"(($U15+($O15)*IF(MOD(BR$3,$I15)=1,1,0)+Parts!$E$91*IF($J15=0,0,IF(MOD(BR$3,$I15)=1,IF(PQS!$R15=\"NO\",1,0),IF(MOD(BR$3,Calculations!$J15)=1,1,0)))+Parts!$E$92*IF(Calculations!$K15=0,0,IF(MOD(BR$3,$I15)=1,0,IF(MOD(BR$3,Calculations!$K15)=1,1,0))))*$AU15)*(1+'Country Input'!$C$45)^(Calculations!BR$3-$BH$3)","v":21264.41166666667},{"$f":"(($U15+($O15)*IF(MOD(BS$3,$I15)=1,1,0)+Parts!$E$91*IF($J15=0,0,IF(MOD(BS$3,$I15)=1,IF(PQS!$R15=\"NO\",1,0),IF(MOD(BS$3,Calculations!$J15)=1,1,0)))+Parts!$E$92*IF(Calculations!$K15=0,0,IF(MOD(BS$3,$I15)=1,0,IF(MOD(BS$3,Calculations!$K15)=1,1,0))))*$AU15)*(1+'Country Input'!$C$45)^(Calculations!BS$3-$BH$3)","v":3646.7666666666664},{"$f":"(($U15+($O15)*IF(MOD(BT$3,$I15)=1,1,0)+Parts!$E$91*IF($J15=0,0,IF(MOD(BT$3,$I15)=1,IF(PQS!$R15=\"NO\",1,0),IF(MOD(BT$3,Calculations!$J15)=1,1,0)))+Parts!$E$92*IF(Calculations!$K15=0,0,IF(MOD(BT$3,$I15)=1,0,IF(MOD(BT$3,Calculations!$K15)=1,1,0))))*$AU15)*(1+'Country Input'!$C$45)^(Calculations!BT$3-$BH$3)","v":3646.7666666666664},{"$f":"(($U15+($O15)*IF(MOD(BU$3,$I15)=1,1,0)+Parts!$E$91*IF($J15=0,0,IF(MOD(BU$3,$I15)=1,IF(PQS!$R15=\"NO\",1,0),IF(MOD(BU$3,Calculations!$J15)=1,1,0)))+Parts!$E$92*IF(Calculations!$K15=0,0,IF(MOD(BU$3,$I15)=1,0,IF(MOD(BU$3,Calculations!$K15)=1,1,0))))*$AU15)*(1+'Country Input'!$C$45)^(Calculations!BU$3-$BH$3)","v":3646.7666666666664},{"$f":"(($U15+($O15)*IF(MOD(BV$3,$I15)=1,1,0)+Parts!$E$91*IF($J15=0,0,IF(MOD(BV$3,$I15)=1,IF(PQS!$R15=\"NO\",1,0),IF(MOD(BV$3,Calculations!$J15)=1,1,0)))+Parts!$E$92*IF(Calculations!$K15=0,0,IF(MOD(BV$3,$I15)=1,0,IF(MOD(BV$3,Calculations!$K15)=1,1,0))))*$AU15)*(1+'Country Input'!$C$45)^(Calculations!BV$3-$BH$3)","v":3646.7666666666664},{"$f":"(($U15+($O15)*IF(MOD(BW$3,$I15)=1,1,0)+Parts!$E$91*IF($J15=0,0,IF(MOD(BW$3,$I15)=1,IF(PQS!$R15=\"NO\",1,0),IF(MOD(BW$3,Calculations!$J15)=1,1,0)))+Parts!$E$92*IF(Calculations!$K15=0,0,IF(MOD(BW$3,$I15)=1,0,IF(MOD(BW$3,Calculations!$K15)=1,1,0))))*$AU15)*(1+'Country Input'!$C$45)^(Calculations!BW$3-$BH$3)","v":3646.7666666666664},{"$f":"(($U15+($O15)*IF(MOD(BX$3,$I15)=1,1,0)+Parts!$E$91*IF($J15=0,0,IF(MOD(BX$3,$I15)=1,IF(PQS!$R15=\"NO\",1,0),IF(MOD(BX$3,Calculations!$J15)=1,1,0)))+Parts!$E$92*IF(Calculations!$K15=0,0,IF(MOD(BX$3,$I15)=1,0,IF(MOD(BX$3,Calculations!$K15)=1,1,0))))*$AU15)*(1+'Country Input'!$C$45)^(Calculations!BX$3-$BH$3)","v":3646.7666666666664},{"$f":"(($U15+($O15)*IF(MOD(BY$3,$I15)=1,1,0)+Parts!$E$91*IF($J15=0,0,IF(MOD(BY$3,$I15)=1,IF(PQS!$R15=\"NO\",1,0),IF(MOD(BY$3,Calculations!$J15)=1,1,0)))+Parts!$E$92*IF(Calculations!$K15=0,0,IF(MOD(BY$3,$I15)=1,0,IF(MOD(BY$3,Calculations!$K15)=1,1,0))))*$AU15)*(1+'Country Input'!$C$45)^(Calculations!BY$3-$BH$3)","v":3646.7666666666664},{"$f":"(($U15+($O15)*IF(MOD(BZ$3,$I15)=1,1,0)+Parts!$E$91*IF($J15=0,0,IF(MOD(BZ$3,$I15)=1,IF(PQS!$R15=\"NO\",1,0),IF(MOD(BZ$3,Calculations!$J15)=1,1,0)))+Parts!$E$92*IF(Calculations!$K15=0,0,IF(MOD(BZ$3,$I15)=1,0,IF(MOD(BZ$3,Calculations!$K15)=1,1,0))))*$AU15)*(1+'Country Input'!$C$45)^(Calculations!BZ$3-$BH$3)","v":3646.7666666666664},{"$f":"(($U15+($O15)*IF(MOD(CA$3,$I15)=1,1,0)+Parts!$E$91*IF($J15=0,0,IF(MOD(CA$3,$I15)=1,IF(PQS!$R15=\"NO\",1,0),IF(MOD(CA$3,Calculations!$J15)=1,1,0)))+Parts!$E$92*IF(Calculations!$K15=0,0,IF(MOD(CA$3,$I15)=1,0,IF(MOD(CA$3,Calculations!$K15)=1,1,0))))*$AU15)*(1+'Country Input'!$C$45)^(Calculations!CA$3-$BH$3)","v":3646.7666666666664},null,"Aucma DW-25W300*",21264.41166666667,3646.7666666666664,3646.7666666666664,3646.7666666666664,3646.7666666666664,3646.7666666666664,3646.7666666666664,3646.7666666666664,3646.7666666666664,3646.7666666666664,21264.41166666667,3646.7666666666664,3646.7666666666664,3646.7666666666664,3646.7666666666664,3646.7666666666664,3646.7666666666664,3646.7666666666664,3646.7666666666664,3646.7666666666664,{"$f":"SUM(CD15:INDEX($CD15:$CW15,1,'Total Solution Costs'!$B$2))","v":54085.311666666646},null,"Aucma DW-25W300*",{"$f":"SUM($BH15:BH15)","v":21264.41166666667},{"$f":"SUM($BH15:BI15)","v":24911.178333333337},{"$f":"SUM($BH15:BJ15)","v":28557.945000000003},{"$f":"SUM($BH15:BK15)","v":32204.71166666667},{"$f":"SUM($BH15:BL15)","v":35851.478333333333},{"$f":"SUM($BH15:BM15)","v":39498.244999999995},{"$f":"SUM($BH15:BN15)","v":43145.011666666658},{"$f":"SUM($BH15:BO15)","v":46791.778333333321},{"$f":"SUM($BH15:BP15)","v":50438.544999999984},{"$f":"SUM($BH15:BQ15)","v":54085.311666666646},{"$f":"SUM($BH15:BR15)","v":75349.723333333313},{"$f":"SUM($BH15:BS15)","v":78996.489999999976},{"$f":"SUM($BH15:BT15)","v":82643.256666666639},{"$f":"SUM($BH15:BU15)","v":86290.023333333302},{"$f":"SUM($BH15:BV15)","v":89936.789999999964},{"$f":"SUM($BH15:BW15)","v":93583.556666666627},{"$f":"SUM($BH15:BX15)","v":97230.32333333329},{"$f":"SUM($BH15:BY15)","v":100877.08999999995},{"$f":"SUM($BH15:BZ15)","v":104523.85666666662},{"$f":"SUM($BH15:CA15)","v":108170.62333333328}]
[{"$f":"PQS!A16","v":"Freezer"},{"$f":"PQS!B16","v":"E003/071"},{"$f":"PQS!E16","v":"TFW 3000 AC*"},{"$f":"PQS!F16","v":"B Medical"},{"$f":"PQS!D16","v":"B Medical TFW 3000 AC*"},{"$f":"VLOOKUP(E16,PQS!$D$5:$K$107,COLUMN(PQS!$I$3)-COLUMN(PQS!$D$3)+1,FALSE)","v":0},{"$f":"VLOOKUP(E16,PQS!$D$5:$K$107,COLUMN(PQS!$J$3)-COLUMN(PQS!$D$3)+1,FALSE)","v":204},{"$f":"VLOOKUP(E16,PQS!$D$5:$K$107,COLUMN(PQS!$G$3)-COLUMN(PQS!$D$3)+1,FALSE)","v":"Yes"},{"$f":"HLOOKUP(B16,INDIRECT(\"'\"&A16&\"'!$10:$15\"),ROW('Technology template'!$A$11)-ROW('Technology template'!$A$10)+1,FALSE)","v":10},{"$f":"HLOOKUP(B16,INDIRECT(\"'\"&A16&\"'!$10:$15\"),ROW('Technology template'!$A$12)-ROW('Technology template'!$A$10)+1,FALSE)","v":0},{"$f":"HLOOKUP(B16,INDIRECT(\"'\"&A16&\"'!$10:$15\"),ROW('Technology template'!$A$13)-ROW('Technology template'!$A$10)+1,FALSE)","v":0},{"$f":"VLOOKUP(B16,PQS!$B:$Q,MATCH(PQS!$Q$3,PQS!$B$3:$Q$3,0),FALSE)*(1+'Country Input'!$C$47)+HLOOKUP(B16,INDIRECT(\"'\"&A16&\"'!$10:$15\"),ROW('Technology template'!$A$14)-ROW('Technology template'!$A$10)+1,FALSE)*(1+'Country Input'!$C$47)","v":3306.3107000000005},{"$f":"HLOOKUP(B16,INDIRECT(\"'\"&A16&\"'!$10:$80\"),MATCH('Technology template'!$A$27,INDIRECT(\"'\"&A16&\"'!$A$10:$A$80\"),0),FALSE)+'Labor and Maintenance '!$E$23","v":716},{"$f":"VLOOKUP(B16,PQS!B:T,MATCH(PQS!$T$3,PQS!$B$3:$T$3,0),FALSE)*(1+'Country Input'!$C$47)","v":711.6179450000003},4733.9286450000009,{"$f":"O16/I16","v":473.39286450000009},{"$f":"VLOOKUP(B16,PQS!$B:$AE,COLUMN(PQS!AD14)-1,FALSE)","v":156.94999999999999},{"$f":"IFERROR(1/HLOOKUP(B16,INDIRECT(\"'\"&A16&\"'!$10:$80\"),MATCH('Technology template'!$A$31,INDIRECT(\"'\"&A16&\"'!$A$10:$A$80\"),0),FALSE)*HLOOKUP(B16,INDIRECT(\"'\"&A16&\"'!$10:$80\"),MATCH('Technology template'!$A$41,INDIRECT(\"'\"&A16&\"'!$A10:$A$80\"),0),FALSE),0)*TechnicianHourlyWage+IF(A16=\"Solar w Battery\",1/'Labor and Maintenance '!$E$53*'Labor and Maintenance '!$D$53,0)+IF(A16=\"LT passive\", 1/'Labor and Maintenance '!$E$81*'Labor and Maintenance '!$D$81,0)","v":24},{"$f":"IFERROR(1/HLOOKUP(B16,INDIRECT(\"'\"&A16&\"'!$10:$80\"),MATCH('Technology template'!$A$34,INDIRECT(\"'\"&A16&\"'!$A$10:$A$80\"),0),FALSE)*(HLOOKUP(B16,INDIRECT(\"'\"&A16&\"'!$10:$80\"),MATCH('Technology template'!$A$44,INDIRECT(\"'\"&A16&\"'!$A10:$A$80\"),0),FALSE)*TechnicianHourlyWage+RemoteTravelCostPerDay),0)+IFERROR(1/HLOOKUP(B16,INDIRECT(\"'\"&A16&\"'!$10:$80\"),MATCH('Technology template'!$A$35,INDIRECT(\"'\"&A16&\"'!$A$10:$A$80\"),0),FALSE)*(HLOOKUP(B16,INDIRECT(\"'\"&A16&\"'!$10:$80\"),MATCH('Technology template'!$A$45,INDIRECT(\"'\"&A16&\"'!$A10:$A$80\"),0),FALSE)*TechnicianHourlyWage+RemoteTravelCostPerDay),0)+IFERROR(1/HLOOKUP(B16,INDIRECT(\"'\"&A16&\"'!$10:$80\"),MATCH('Technology template'!$A$37,INDIRECT(\"'\"&A16&\"'!$A$10:$A$80\"),0),FALSE)*(HLOOKUP(B16,INDIRECT(\"'\"&A16&\"'!$10:$80\"),MATCH('Technology template'!$A$46,INDIRECT(\"'\"&A16&\"'!$A10:$A$80\"),0),FALSE)*TechnicianHourlyWage+'Labor and Maintenance '!$B$8),0)","v":94.666666666666657},{"$f":"SUM(Q16:S16)*I16","v":2756.166666666667},{"$f":"SUM(Q16:S16)","v":275.61666666666667},{"$f":"P16+U16","v":749.00953116666676},null,{"$f":"E16","v":"B Medical TFW 3000 AC*"},23.205532573529418,13.510620915032682,{"$f":"Y16+Z16","v":36.716153488562099},null,"B Medical TFW 3000 AC*",2.3205532573529415,1.3510620915032681,3.6716153488562098,null,"B Medical TFW 3000 AC*",{"$error":"#DIV/0!"},{"$error":"#DIV/0!"},{"$error":"#DIV/0!"},{"$f":"AJ16+AK16","v":{"$error":"#DIV/0!"}},null,"B Medical TFW 3000 AC*",{"$error":"#DIV/0!"},{"$error":"#DIV/0!"},{"$error":"#DIV/0!"},{"$f":"+AP16+AQ16","v":{"$error":"#DIV/0!"}},null,"B Medical TFW 3000 AC*",{"$f":"IF(F16=0, 'Country Input'!$D$7, ROUNDUP(LitersPerFacility/F16,0)*'Country Input'!$D$7)","v":10},47339.286450000007,2756.166666666667,{"$f":"AV16+AW16","v":50095.453116666671},null,"B Medical TFW 3000 AC*",{"$f":"ROUNDUP(LitersPerFacility/F16,0)*'Country Input'!$D$7*ROUNDUP('Total Solution Costs'!$B$2/Calculations!I16,0)","v":{"$error":"#DIV/0!"}},{"$error":"#DIV/0!"},{"$error":"#DIV/0!"},{"$f":"BB16+BC16","v":{"$error":"#DIV/0!"}},null,null,"B Medical TFW 3000 AC*",{"$f":"(($U16+($O16)*IF(MOD(BH$3,$I16)=1,1,0)+Parts!$E$91*IF($J16=0,0,IF(MOD(BH$3,$I16)=1,IF(PQS!$R16=\"NO\",1,0),IF(MOD(BH$3,Calculations!$J16)=1,1,0)))+Parts!$E$92*IF(Calculations!$K16=0,0,IF(MOD(BH$3,$I16)=1,0,IF(MOD(BH$3,Calculations!$K16)=1,1,0))))*$AU16)*(1+'Country Input'!$C$45)^(Calculations!BH$3-$BH$3)+TrainingCost","v":50095.453116666678},{"$f":"(($U16+($O16)*IF(MOD(BI$3,$I16)=1,1,0)+Parts!$E$91*IF($J16=0,0,IF(MOD(BI$3,$I16)=1,IF(PQS!$R16=\"NO\",1,0),IF(MOD(BI$3,Calculations!$J16)=1,1,0)))+Parts!$E$92*IF(Calculations!$K16=0,0,IF(MOD(BI$3,$I16)=1,0,IF(MOD(BI$3,Calculations!$K16)=1,1,0))))*$AU16)*(1+'Country Input'!$C$45)^(Calculations!BI$3-$BH$3)","v":2756.166666666667},{"$f":"(($U16+($O16)*IF(MOD(BJ$3,$I16)=1,1,0)+Parts!$E$91*IF($J16=0,0,IF(MOD(BJ$3,$I16)=1,IF(PQS!$R16=\"NO\",1,0),IF(MOD(BJ$3,Calculations!$J16)=1,1,0)))+Parts!$E$92*IF(Calculations!$K16=0,0,IF(MOD(BJ$3,$I16)=1,0,IF(MOD(BJ$3,Calculations!$K16)=1,1,0))))*$AU16)*(1+'Country Input'!$C$45)^(Calculations!BJ$3-$BH$3)","v":2756.166666666667},{"$f":"(($U16+($O16)*IF(MOD(BK$3,$I16)=1,1,0)+Parts!$E$91*IF($J16=0,0,IF(MOD(BK$3,$I16)=1,IF(PQS!$R16=\"NO\",1,0),IF(MOD(BK$3,Calculations!$J16)=1,1,0)))+Parts!$E$92*IF(Calculations!$K16=0,0,IF(MOD(BK$3,$I16)=1,0,IF(MOD(BK$3,Calculations!$K16)=1,1,0))))*$AU16)*(1+'Country Input'!$C$45)^(Calculations!BK$3-$BH$3)","v":2756.166666666667},{"$f":"(($U16+($O16)*IF(MOD(BL$3,$I16)=1,1,0)+Parts!$E$91*IF($J16=0,0,IF(MOD(BL$3,$I16)=1,IF(PQS!$R16=\"NO\",1,0),IF(MOD(BL$3,Calculations!$J16)=1,1,0)))+Parts!$E$92*IF(Calculations!$K16=0,0,IF(MOD(BL$3,$I16)=1,0,IF(MOD(BL$3,Calculations!$K16)=1,1,0))))*$AU16)*(1+'Country Input'!$C$45)^(Calculations!BL$3-$BH$3)","v":2756.166666666667},{"$f":"(($U16+($O16)*IF(MOD(BM$3,$I16)=1,1,0)+Parts!$E$91*IF($J16=0,0,IF(MOD(BM$3,$I16)=1,IF(PQS!$R16=\"NO\",1,0),IF(MOD(BM$3,Calculations!$J16)=1,1,0)))+Parts!$E$92*IF(Calculations!$K16=0,0,IF(MOD(BM$3,$I16)=1,0,IF(MOD(BM$3,Calculations!$K16)=1,1,0))))*$AU16)*(1+'Country Input'!$C$45)^(Calculations!BM$3-$BH$3)","v":2756.166666666667},{"$f":"(($U16+($O16)*IF(MOD(BN$3,$I16)=1,1,0)+Parts!$E$91*IF($J16=0,0,IF(MOD(BN$3,$I16)=1,IF(PQS!$R16=\"NO\",1,0),IF(MOD(BN$3,Calculations!$J16)=1,1,0)))+Parts!$E$92*IF(Calculations!$K16=0,0,IF(MOD(BN$3,$I16)=1,0,IF(MOD(BN$3,Calculations!$K16)=1,1,0))))*$AU16)*(1+'Country Input'!$C$45)^(Calculations!BN$3-$BH$3)","v":2756.166666666667},{"$f":"(($U16+($O16)*IF(MOD(BO$3,$I16)=1,1,0)+Parts!$E$91*IF($J16=0,0,IF(MOD(BO$3,$I16)=1,IF(PQS!$R16=\"NO\",1,0),IF(MOD(BO$3,Calculations!$J16)=1,1,0)))+Parts!$E$92*IF(Calculations!$K16=0,0,IF(MOD(BO$3,$I16)=1,0,IF(MOD(BO$3,Calculations!$K16)=1,1,0))))*$AU16)*(1+'Country Input'!$C$45)^(Calculations!BO$3-$BH$3)","v":2756.166666666667},{"$f":"(($U16+($O16)*IF(MOD(BP$3,$I16)=1,1,0)+Parts!$E$91*IF($J16=0,0,IF(MOD(BP$3,$I16)=1,IF(PQS!$R16=\"NO\",1,0),IF(MOD(BP$3,Calculations!$J16)=1,1,0)))+Parts!$E$92*IF(Calculations!$K16=0,0,IF(MOD(BP$3,$I16)=1,0,IF(MOD(BP$3,Calculations!$K16)=1,1,0))))*$AU16)*(1+'Country Input'!$C$45)^(Calculations!BP$3-$BH$3)","v":2756.166666666667},{"$f":"(($U16+($O16)*IF(MOD(BQ$3,$I16)=1,1,0)+Parts!$E$91*IF($J16=0,0,IF(MOD(BQ$3,$I16)=1,IF(PQS!$R16=\"NO\",1,0),IF(MOD(BQ$3,Calculations!$J16)=1,1,0)))+Parts!$E$92*IF(Calculations!$K16=0,0,IF(MOD(BQ$3,$I16)=1,0,IF(MOD(BQ$3,Calculations!$K16)=1,1,0))))*$AU16)*(1+'Country Input'!$C$45)^(Calculations!BQ$3-$BH$3)","v":2756.166666666667},{"$f":"(($U16+($O16)*IF(MOD(BR$3,$I16)=1,1,0)+Parts!$E$91*IF($J16=0,0,IF(MOD(BR$3,$I16)=1,IF(PQS!$R16=\"NO\",1,0),IF(MOD(BR$3,Calculations!$J16)=1,1,0)))+Parts!$E$92*IF(Calculations!$K16=0,0,IF(MOD(BR$3,$I16)=1,0,IF(MOD(BR$3,Calculations!$K16)=1,1,0))))*$AU16)*(1+'Country Input'!$C$45)^(Calculations!BR$3-$BH$3)","v":50095.453116666678},{"$f":"(($U16+($O16)*IF(MOD(BS$3,$I16)=1,1,0)+Parts!$E$91*IF($J16=0,0,IF(MOD(BS$3,$I16)=1,IF(PQS!$R16=\"NO\",1,0),IF(MOD(BS$3,Calculations!$J16)=1,1,0)))+Parts!$E$92*IF(Calculations!$K16=0,0,IF(MOD(BS$3,$I16)=1,0,IF(MOD(BS$3,Calculations!$K16)=1,1,0))))*$AU16)*(1+'Country Input'!$C$45)^(Calculations!BS$3-$BH$3)","v":2756.166666666667},{"$f":"(($U16+($O16)*IF(MOD(BT$3,$I16)=1,1,0)+Parts!$E$91*IF($J16=0,0,IF(MOD(BT$3,$I16)=1,IF(PQS!$R16=\"NO\",1,0),IF(MOD(BT$3,Calculations!$J16)=1,1,0)))+Parts!$E$92*IF(Calculations!$K16=0,0,IF(MOD(BT$3,$I16)=1,0,IF(MOD(BT$3,Calculations!$K16)=1,1,0))))*$AU16)*(1+'Country Input'!$C$45)^(Calculations!BT$3-$BH$3)","v":2756.166666666667},{"$f":"(($U16+($O16)*IF(MOD(BU$3,$I16)=1,1,0)+Parts!$E$91*IF($J16=0,0,IF(MOD(BU$3,$I16)=1,IF(PQS!$R16=\"NO\",1,0),IF(MOD(BU$3,Calculations!$J16)=1,1,0)))+Parts!$E$92*IF(Calculations!$K16=0,0,IF(MOD(BU$3,$I16)=1,0,IF(MOD(BU$3,Calculations!$K16)=1,1,0))))*$AU16)*(1+'Country Input'!$C$45)^(Calculations!BU$3-$BH$3)","v":2756.166666666667},{"$f":"(($U16+($O16)*IF(MOD(BV$3,$I16)=1,1,0)+Parts!$E$91*IF($J16=0,0,IF(MOD(BV$3,$I16)=1,IF(PQS!$R16=\"NO\",1,0),IF(MOD(BV$3,Calculations!$J16)=1,1,0)))+Parts!$E$92*IF(Calculations!$K16=0,0,IF(MOD(BV$3,$I16)=1,0,IF(MOD(BV$3,Calculations!$K16)=1,1,0))))*$AU16)*(1+'Country Input'!$C$45)^(Calculations!BV$3-$BH$3)","v":2756.166666666667},{"$f":"(($U16+($O16)*IF(MOD(BW$3,$I16)=1,1,0)+Parts!$E$91*IF($J16=0,0,IF(MOD(BW$3,$I16)=1,IF(PQS!$R16=\"NO\",1,0),IF(MOD(BW$3,Calculations!$J16)=1,1,0)))+Parts!$E$92*IF(Calculations!$K16=0,0,IF(MOD(BW$3,$I16)=1,0,IF(MOD(BW$3,Calculations!$K16)=1,1,0))))*$AU16)*(1+'Country Input'!$C$45)^(Calculations!BW$3-$BH$3)","v":2756.166666666667},{"$f":"(($U16+($O16)*IF(MOD(BX$3,$I16)=1,1,0)+Parts!$E$91*IF($J16=0,0,IF(MOD(BX$3,$I16)=1,IF(PQS!$R16=\"NO\",1,0),IF(MOD(BX$3,Calculations!$J16)=1,1,0)))+Parts!$E$92*IF(Calculations!$K16=0,0,IF(MOD(BX$3,$I16)=1,0,IF(MOD(BX$3,Calculations!$K16)=1,1,0))))*$AU16)*(1+'Country Input'!$C$45)^(Calculations!BX$3-$BH$3)","v":2756.166666666667},{"$f":"(($U16+($O16)*IF(MOD(BY$3,$I16)=1,1,0)+Parts!$E$91*IF($J16=0,0,IF(MOD(BY$3,$I16)=1,IF(PQS!$R16=\"NO\",1,0),IF(MOD(BY$3,Calculations!$J16)=1,1,0)))+Parts!$E$92*IF(Calculations!$K16=0,0,IF(MOD(BY$3,$I16)=1,0,IF(MOD(BY$3,Calculations!$K16)=1,1,0))))*$AU16)*(1+'Country Input'!$C$45)^(Calculations!BY$3-$BH$3)","v":2756.166666666667},{"$f":"(($U16+($O16)*IF(MOD(BZ$3,$I16)=1,1,0)+Parts!$E$91*IF($J16=0,0,IF(MOD(BZ$3,$I16)=1,IF(PQS!$R16=\"NO\",1,0),IF(MOD(BZ$3,Calculations!$J16)=1,1,0)))+Parts!$E$92*IF(Calculations!$K16=0,0,IF(MOD(BZ$3,$I16)=1,0,IF(MOD(BZ$3,Calculations!$K16)=1,1,0))))*$AU16)*(1+'Country Input'!$C$45)^(Calculations!BZ$3-$BH$3)","v":2756.166666666667},{"$f":"(($U16+($O16)*IF(MOD(CA$3,$I16)=1,1,0)+Parts!$E$91*IF($J16=0,0,IF(MOD(CA$3,$I16)=1,IF(PQS!$R16=\"NO\",1,0),IF(MOD(CA$3,Calculations!$J16)=1,1,0)))+Parts!$E$92*IF(Calculations!$K16=0,0,IF(MOD(CA$3,$I16)=1,0,IF(MOD(CA$3,Calculations!$K16)=1,1,0))))*$AU16)*(1+'Country Input'!$C$45)^(Calculations!CA$3-$BH$3)","v":2756.166666666667},null,"B Medical TFW 3000 AC*",{"$f":"BH16/((1+DiscountRate)^(COLUMN(CD16)-COLUMN($CD16)))","v":50095.453116666678},{"$f":"BI16/((1+DiscountRate)^(COLUMN(CE16)-COLUMN($CD16)))","v":2756.166666666667},{"$f":"BJ16/((1+DiscountRate)^(COLUMN(CF16)-COLUMN($CD16)))","v":2756.166666666667},{"$f":"BK16/((1+DiscountRate)^(COLUMN(CG16)-COLUMN($CD16)))","v":2756.166666666667},{"$f":"BL16/((1+DiscountRate)^(COLUMN(CH16)-COLUMN($CD16)))","v":2756.166666666667},{"$f":"BM16/((1+DiscountRate)^(COLUMN(CI16)-COLUMN($CD16)))","v":2756.166666666667},{"$f":"BN16/((1+DiscountRate)^(COLUMN(CJ16)-COLUMN($CD16)))","v":2756.166666666667},{"$f":"BO16/((1+DiscountRate)^(COLUMN(CK16)-COLUMN($CD16)))","v":2756.166666666667},{"$f":"BP16/((1+DiscountRate)^(COLUMN(CL16)-COLUMN($CD16)))","v":2756.166666666667},{"$f":"BQ16/((1+DiscountRate)^(COLUMN(CM16)-COLUMN($CD16)))","v":2756.166666666667},{"$f":"BR16/((1+DiscountRate)^(COLUMN(CN16)-COLUMN($CD16)))","v":50095.453116666678},{"$f":"BS16/((1+DiscountRate)^(COLUMN(CO16)-COLUMN($CD16)))","v":2756.166666666667},{"$f":"BT16/((1+DiscountRate)^(COLUMN(CP16)-COLUMN($CD16)))","v":2756.166666666667},{"$f":"BU16/((1+DiscountRate)^(COLUMN(CQ16)-COLUMN($CD16)))","v":2756.166666666667},{"$f":"BV16/((1+DiscountRate)^(COLUMN(CR16)-COLUMN($CD16)))","v":2756.166666666667},{"$f":"BW16/((1+DiscountRate)^(COLUMN(CS16)-COLUMN($CD16)))","v":2756.166666666667},{"$f":"BX16/((1+DiscountRate)^(COLUMN(CT16)-COLUMN($CD16)))","v":2756.166666666667},{"$f":"BY16/((1+DiscountRate)^(COLUMN(CU16)-COLUMN($CD16)))","v":2756.166666666667},{"$f":"BZ16/((1+DiscountRate)^(COLUMN(CV16)-COLUMN($CD16)))","v":2756.166666666667},{"$f":"CA16/((1+DiscountRate)^(COLUMN(CW16)-COLUMN($CD16)))","v":2756.166666666667},{"$f":"SUM(CD16:INDEX($CD16:$CW16,1,'Total Solution Costs'!$B$2))","v":74900.953116666686},null,{"$f":"CC16","v":"B Medical TFW 3000 AC*"},{"$f":"SUM($BH16:BH16)","v":50095.453116666678},{"$f":"SUM($BH16:BI16)","v":52851.619783333343},{"$f":"SUM($BH16:BJ16)","v":55607.786450000007},{"$f":"SUM($BH16:BK16)","v":58363.953116666671},{"$f":"SUM($BH16:BL16)","v":61120.119783333335},{"$f":"SUM($BH16:BM16)","v":63876.28645},{"$f":"SUM($BH16:BN16)","v":66632.453116666671},{"$f":"SUM($BH16:BO16)","v":69388.619783333343},{"$f":"SUM($BH16:BP16)","v":72144.786450000014},{"$f":"SUM($BH16:BQ16)","v":74900.953116666686},{"$f":"SUM($BH16:BR16)","v":124996.40623333337},{"$f":"SUM($BH16:BS16)","v":127752.57290000004},{"$f":"SUM($BH16:BT16)","v":130508.73956666671},{"$f":"SUM($BH16:BU16)","v":133264.90623333337},{"$f":"SUM($BH16:BV16)","v":136021.07290000003},{"$f":"SUM($BH16:BW16)","v":138777.23956666669},{"$f":"SUM($BH16:BX16)","v":141533.40623333334},{"$f":"SUM($BH16:BY16)","v":144289.5729},{"$f":"SUM($BH16:BZ16)","v":147045.73956666666},{"$f":"SUM($BH16:CA16)","v":149801.90623333331}]
[{"$f":"PQS!A17","v":"Freezer"},{"$f":"PQS!B17","v":"E003/073"},{"$f":"PQS!E17","v":"TFW 40 SDD*"},{"$f":"PQS!F17","v":"B Medical"},{"$f":"PQS!D17","v":"B Medical TFW 40 SDD*"},{"$f":"VLOOKUP(E17,PQS!$D$5:$K$107,COLUMN(PQS!$I$3)-COLUMN(PQS!$D$3)+1,FALSE)","v":0},{"$f":"VLOOKUP(E17,PQS!$D$5:$K$107,COLUMN(PQS!$J$3)-COLUMN(PQS!$D$3)+1,FALSE)","v":64},{"$f":"VLOOKUP(E17,PQS!$D$5:$K$107,COLUMN(PQS!$G$3)-COLUMN(PQS!$D$3)+1,FALSE)","v":"Yes"},{"$f":"HLOOKUP(B17,INDIRECT(\"'\"&A17&\"'!$10:$15\"),ROW('Technology template'!$A$11)-ROW('Technology template'!$A$10)+1,FALSE)","v":10},{"$f":"HLOOKUP(B17,INDIRECT(\"'\"&A17&\"'!$10:$15\"),ROW('Technology template'!$A$12)-ROW('Technology template'!$A$10)+1,FALSE)","v":0},{"$f":"HLOOKUP(B17,INDIRECT(\"'\"&A17&\"'!$10:$15\"),ROW('Technology template'!$A$13)-ROW('Technology template'!$A$10)+1,FALSE)","v":0},{"$f":"VLOOKUP(B17,PQS!$B:$Q,MATCH(PQS!$Q$3,PQS!$B$3:$Q$3,0),FALSE)*(1+'Country Input'!$C$47)+HLOOKUP(B17,INDIRECT(\"'\"&A17&\"'!$10:$15\"),ROW('Technology template'!$A$14)-ROW('Technology template'!$A$10)+1,FALSE)*(1+'Country Input'!$C$47)","v":5638.9107000000004},{"$f":"HLOOKUP(B17,INDIRECT(\"'\"&A17&\"'!$10:$80\"),MATCH('Technology template'!$A$27,INDIRECT(\"'\"&A17&\"'!$A$10:$A$80\"),0),FALSE)+'Labor and Maintenance '!$E$23","v":716},{"$f":"VLOOKUP(B17,PQS!B:T,MATCH(PQS!$T$3,PQS!$B$3:$T$3,0),FALSE)*(1+'Country Input'!$C$47)","v":739.43420000000003},7094.3449000000001,709.43448999999998,{"$f":"VLOOKUP(B17,PQS!$B:$AE,COLUMN(PQS!AD15)-1,FALSE)","v":0},{"$f":"IFERROR(1/HLOOKUP(B17,INDIRECT(\"'\"&A17&\"'!$10:$80\"),MATCH('Technology template'!$A$31,INDIRECT(\"'\"&A17&\"'!$A$10:$A$80\"),0),FALSE)*HLOOKUP(B17,INDIRECT(\"'\"&A17&\"'!$10:$80\"),MATCH('Technology template'!$A$41,INDIRECT(\"'\"&A17&\"'!$A10:$A$80\"),0),FALSE),0)*TechnicianHourlyWage+IF(A17=\"Solar w Battery\",1/'Labor and Maintenance '!$E$53*'Labor and Maintenance '!$D$53,0)+IF(A17=\"LT passive\", 1/'Labor and Maintenance '!$E$81*'Labor and Maintenance '!$D$81,0)","v":24},{"$f":"IFERROR(1/HLOOKUP(B17,INDIRECT(\"'\"&A17&\"'!$10:$80\"),MATCH('Technology template'!$A$34,INDIRECT(\"'\"&A17&\"'!$A$10:$A$80\"),0),FALSE)*(HLOOKUP(B17,INDIRECT(\"'\"&A17&\"'!$10:$80\"),MATCH('Technology template'!$A$44,INDIRECT(\"'\"&A17&\"'!$A10:$A$80\"),0),FALSE)*TechnicianHourlyWage+RemoteTravelCostPerDay),0)+IFERROR(1/HLOOKUP(B17,INDIRECT(\"'\"&A17&\"'!$10:$80\"),MATCH('Technology template'!$A$35,INDIRECT(\"'\"&A17&\"'!$A$10:$A$80\"),0),FALSE)*(HLOOKUP(B17,INDIRECT(\"'\"&A17&\"'!$10:$80\"),MATCH('Technology template'!$A$45,INDIRECT(\"'\"&A17&\"'!$A10:$A$80\"),0),FALSE)*TechnicianHourlyWage+RemoteTravelCostPerDay),0)+IFERROR(1/HLOOKUP(B17,INDIRECT(\"'\"&A17&\"'!$10:$80\"),MATCH('Technology template'!$A$37,INDIRECT(\"'\"&A17&\"'!$A$10:$A$80\"),0),FALSE)*(HLOOKUP(B17,INDIRECT(\"'\"&A17&\"'!$10:$80\"),MATCH('Technology template'!$A$46,INDIRECT(\"'\"&A17&\"'!$A10:$A$80\"),0),FALSE)*TechnicianHourlyWage+'Labor and Maintenance '!$B$8),0)","v":94.666666666666657},1186.6666666666665,118.66666666666666,828.10115666666661,null,"B Medical TFW 40 SDD*",110.8491390625,18.541666666666664,129.39080572916666,null,"B Medical TFW 40 SDD*",11.08491390625,1.8541666666666665,12.939080572916666,null,"B Medical TFW 40 SDD*",{"$error":"#DIV/0!"},{"$error":"#DIV/0!"},{"$error":"#DIV/0!"},{"$error":"#DIV/0!"},null,"B Medical TFW 40 SDD*",{"$error":"#DIV/0!"},{"$error":"#DIV/0!"},{"$error":"#DIV/0!"},{"$error":"#DIV/0!"},null,"B Medical TFW 40 SDD*",{"$f":"IF(F17=0, 'Country Input'!$D$7, ROUNDUP(LitersPerFacility/F17,0)*'Country Input'!$D$7)","v":10},70943.448999999993,1186.6666666666665,72130.115666666665,null,"B Medical TFW 40 SDD*",{"$f":"ROUNDUP(LitersPerFacility/F17,0)*'Country Input'!$D$7*ROUNDUP('Total Solution Costs'!$B$2/Calculations!I17,0)","v":{"$error":"#DIV/0!"}},{"$error":"#DIV/0!"},{"$error":"#DIV/0!"},{"$error":"#DIV/0!"},null,null,"B Medical TFW 40 SDD*",{"$f":"(($U17+($O17)*IF(MOD(BH$3,$I17)=1,1,0)+Parts!$E$91*IF($J17=0,0,IF(MOD(BH$3,$I17)=1,IF(PQS!$R17=\"NO\",1,0),IF(MOD(BH$3,Calculations!$J17)=1,1,0)))+Parts!$E$92*IF(Calculations!$K17=0,0,IF(MOD(BH$3,$I17)=1,0,IF(MOD(BH$3,Calculations!$K17)=1,1,0))))*$AU17)*(1+'Country Input'!$C$45)^(Calculations!BH$3-$BH$3)+TrainingCost","v":72130.115666666665},{"$f":"(($U17+($O17)*IF(MOD(BI$3,$I17)=1,1,0)+Parts!$E$91*IF($J17=0,0,IF(MOD(BI$3,$I17)=1,IF(PQS!$R17=\"NO\",1,0),IF(MOD(BI$3,Calculations!$J17)=1,1,0)))+Parts!$E$92*IF(Calculations!$K17=0,0,IF(MOD(BI$3,$I17)=1,0,IF(MOD(BI$3,Calculations!$K17)=1,1,0))))*$AU17)*(1+'Country Input'!$C$45)^(Calculations!BI$3-$BH$3)","v":1186.6666666666665},{"$f":"(($U17+($O17)*IF(MOD(BJ$3,$I17)=1,1,0)+Parts!$E$91*IF($J17=0,0,IF(MOD(BJ$3,$I17)=1,IF(PQS!$R17=\"NO\",1,0),IF(MOD(BJ$3,Calculations!$J17)=1,1,0)))+Parts!$E$92*IF(Calculations!$K17=0,0,IF(MOD(BJ$3,$I17)=1,0,IF(MOD(BJ$3,Calculations!$K17)=1,1,0))))*$AU17)*(1+'Country Input'!$C$45)^(Calculations!BJ$3-$BH$3)","v":1186.6666666666665},{"$f":"(($U17+($O17)*IF(MOD(BK$3,$I17)=1,1,0)+Parts!$E$91*IF($J17=0,0,IF(MOD(BK$3,$I17)=1,IF(PQS!$R17=\"NO\",1,0),IF(MOD(BK$3,Calculations!$J17)=1,1,0)))+Parts!$E$92*IF(Calculations!$K17=0,0,IF(MOD(BK$3,$I17)=1,0,IF(MOD(BK$3,Calculations!$K17)=1,1,0))))*$AU17)*(1+'Country Input'!$C$45)^(Calculations!BK$3-$BH$3)","v":1186.6666666666665},{"$f":"(($U17+($O17)*IF(MOD(BL$3,$I17)=1,1,0)+Parts!$E$91*IF($J17=0,0,IF(MOD(BL$3,$I17)=1,IF(PQS!$R17=\"NO\",1,0),IF(MOD(BL$3,Calculations!$J17)=1,1,0)))+Parts!$E$92*IF(Calculations!$K17=0,0,IF(MOD(BL$3,$I17)=1,0,IF(MOD(BL$3,Calculations!$K17)=1,1,0))))*$AU17)*(1+'Country Input'!$C$45)^(Calculations!BL$3-$BH$3)","v":1186.6666666666665},{"$f":"(($U17+($O17)*IF(MOD(BM$3,$I17)=1,1,0)+Parts!$E$91*IF($J17=0,0,IF(MOD(BM$3,$I17)=1,IF(PQS!$R17=\"NO\",1,0),IF(MOD(BM$3,Calculations!$J17)=1,1,0)))+Parts!$E$92*IF(Calculations!$K17=0,0,IF(MOD(BM$3,$I17)=1,0,IF(MOD(BM$3,Calculations!$K17)=1,1,0))))*$AU17)*(1+'Country Input'!$C$45)^(Calculations!BM$3-$BH$3)","v":1186.6666666666665},{"$f":"(($U17+($O17)*IF(MOD(BN$3,$I17)=1,1,0)+Parts!$E$91*IF($J17=0,0,IF(MOD(BN$3,$I17)=1,IF(PQS!$R17=\"NO\",1,0),IF(MOD(BN$3,Calculations!$J17)=1,1,0)))+Parts!$E$92*IF(Calculations!$K17=0,0,IF(MOD(BN$3,$I17)=1,0,IF(MOD(BN$3,Calculations!$K17)=1,1,0))))*$AU17)*(1+'Country Input'!$C$45)^(Calculations!BN$3-$BH$3)","v":1186.6666666666665},{"$f":"(($U17+($O17)*IF(MOD(BO$3,$I17)=1,1,0)+Parts!$E$91*IF($J17=0,0,IF(MOD(BO$3,$I17)=1,IF(PQS!$R17=\"NO\",1,0),IF(MOD(BO$3,Calculations!$J17)=1,1,0)))+Parts!$E$92*IF(Calculations!$K17=0,0,IF(MOD(BO$3,$I17)=1,0,IF(MOD(BO$3,Calculations!$K17)=1,1,0))))*$AU17)*(1+'Country Input'!$C$45)^(Calculations!BO$3-$BH$3)","v":1186.6666666666665},{"$f":"(($U17+($O17)*IF(MOD(BP$3,$I17)=1,1,0)+Parts!$E$91*IF($J17=0,0,IF(MOD(BP$3,$I17)=1,IF(PQS!$R17=\"NO\",1,0),IF(MOD(BP$3,Calculations!$J17)=1,1,0)))+Parts!$E$92*IF(Calculations!$K17=0,0,IF(MOD(BP$3,$I17)=1,0,IF(MOD(BP$3,Calculations!$K17)=1,1,0))))*$AU17)*(1+'Country Input'!$C$45)^(Calculations!BP$3-$BH$3)","v":1186.6666666666665},{"$f":"(($U17+($O17)*IF(MOD(BQ$3,$I17)=1,1,0)+Parts!$E$91*IF($J17=0,0,IF(MOD(BQ$3,$I17)=1,IF(PQS!$R17=\"NO\",1,0),IF(MOD(BQ$3,Calculations!$J17)=1,1,0)))+Parts!$E$92*IF(Calculations!$K17=0,0,IF(MOD(BQ$3,$I17)=1,0,IF(MOD(BQ$3,Calculations!$K17)=1,1,0))))*$AU17)*(1+'Country Input'!$C$45)^(Calculations!BQ$3-$BH$3)","v":1186.6666666666665},{"$f":"(($U17+($O17)*IF(MOD(BR$3,$I17)=1,1,0)+Parts!$E$91*IF($J17=0,0,IF(MOD(BR$3,$I17)=1,IF(PQS!$R17=\"NO\",1,0),IF(MOD(BR$3,Calculations!$J17)=1,1,0)))+Parts!$E$92*IF(Calculations!$K17=0,0,IF(MOD(BR$3,$I17)=1,0,IF(MOD(BR$3,Calculations!$K17)=1,1,0))))*$AU17)*(1+'Country Input'!$C$45)^(Calculations!BR$3-$BH$3)","v":72130.115666666665},{"$f":"(($U17+($O17)*IF(MOD(BS$3,$I17)=1,1,0)+Parts!$E$91*IF($J17=0,0,IF(MOD(BS$3,$I17)=1,IF(PQS!$R17=\"NO\",1,0),IF(MOD(BS$3,Calculations!$J17)=1,1,0)))+Parts!$E$92*IF(Calculations!$K17=0,0,IF(MOD(BS$3,$I17)=1,0,IF(MOD(BS$3,Calculations!$K17)=1,1,0))))*$AU17)*(1+'Country Input'!$C$45)^(Calculations!BS$3-$BH$3)","v":1186.6666666666665},{"$f":"(($U17+($O17)*IF(MOD(BT$3,$I17)=1,1,0)+Parts!$E$91*IF($J17=0,0,IF(MOD(BT$3,$I17)=1,IF(PQS!$R17=\"NO\",1,0),IF(MOD(BT$3,Calculations!$J17)=1,1,0)))+Parts!$E$92*IF(Calculations!$K17=0,0,IF(MOD(BT$3,$I17)=1,0,IF(MOD(BT$3,Calculations!$K17)=1,1,0))))*$AU17)*(1+'Country Input'!$C$45)^(Calculations!BT$3-$BH$3)","v":1186.6666666666665},{"$f":"(($U17+($O17)*IF(MOD(BU$3,$I17)=1,1,0)+Parts!$E$91*IF($J17=0,0,IF(MOD(BU$3,$I17)=1,IF(PQS!$R17=\"NO\",1,0),IF(MOD(BU$3,Calculations!$J17)=1,1,0)))+Parts!$E$92*IF(Calculations!$K17=0,0,IF(MOD(BU$3,$I17)=1,0,IF(MOD(BU$3,Calculations!$K17)=1,1,0))))*$AU17)*(1+'Country Input'!$C$45)^(Calculations!BU$3-$BH$3)","v":1186.6666666666665},{"$f":"(($U17+($O17)*IF(MOD(BV$3,$I17)=1,1,0)+Parts!$E$91*IF($J17=0,0,IF(MOD(BV$3,$I17)=1,IF(PQS!$R17=\"NO\",1,0),IF(MOD(BV$3,Calculations!$J17)=1,1,0)))+Parts!$E$92*IF(Calculations!$K17=0,0,IF(MOD(BV$3,$I17)=1,0,IF(MOD(BV$3,Calculations!$K17)=1,1,0))))*$AU17)*(1+'Country Input'!$C$45)^(Calculations!BV$3-$BH$3)","v":1186.6666666666665},{"$f":"(($U17+($O17)*IF(MOD(BW$3,$I17)=1,1,0)+Parts!$E$91*IF($J17=0,0,IF(MOD(BW$3,$I17)=1,IF(PQS!$R17=\"NO\",1,0),IF(MOD(BW$3,Calculations!$J17)=1,1,0)))+Parts!$E$92*IF(Calculations!$K17=0,0,IF(MOD(BW$3,$I17)=1,0,IF(MOD(BW$3,Calculations!$K17)=1,1,0))))*$AU17)*(1+'Country Input'!$C$45)^(Calculations!BW$3-$BH$3)","v":1186.6666666666665},{"$f":"(($U17+($O17)*IF(MOD(BX$3,$I17)=1,1,0)+Parts!$E$91*IF($J17=0,0,IF(MOD(BX$3,$I17)=1,IF(PQS!$R17=\"NO\",1,0),IF(MOD(BX$3,Calculations!$J17)=1,1,0)))+Parts!$E$92*IF(Calculations!$K17=0,0,IF(MOD(BX$3,$I17)=1,0,IF(MOD(BX$3,Calculations!$K17)=1,1,0))))*$AU17)*(1+'Country Input'!$C$45)^(Calculations!BX$3-$BH$3)","v":1186.6666666666665},{"$f":"(($U17+($O17)*IF(MOD(BY$3,$I17)=1,1,0)+Parts!$E$91*IF($J17=0,0,IF(MOD(BY$3,$I17)=1,IF(PQS!$R17=\"NO\",1,0),IF(MOD(BY$3,Calculations!$J17)=1,1,0)))+Parts!$E$92*IF(Calculations!$K17=0,0,IF(MOD(BY$3,$I17)=1,0,IF(MOD(BY$3,Calculations!$K17)=1,1,0))))*$AU17)*(1+'Country Input'!$C$45)^(Calculations!BY$3-$BH$3)","v":1186.6666666666665},{"$f":"(($U17+($O17)*IF(MOD(BZ$3,$I17)=1,1,0)+Parts!$E$91*IF($J17=0,0,IF(MOD(BZ$3,$I17)=1,IF(PQS!$R17=\"NO\",1,0),IF(MOD(BZ$3,Calculations!$J17)=1,1,0)))+Parts!$E$92*IF(Calculations!$K17=0,0,IF(MOD(BZ$3,$I17)=1,0,IF(MOD(BZ$3,Calculations!$K17)=1,1,0))))*$AU17)*(1+'Country Input'!$C$45)^(Calculations!BZ$3-$BH$3)","v":1186.6666666666665},{"$f":"(($U17+($O17)*IF(MOD(CA$3,$I17)=1,1,0)+Parts!$E$91*IF($J17=0,0,IF(MOD(CA$3,$I17)=1,IF(PQS!$R17=\"NO\",1,0),IF(MOD(CA$3,Calculations!$J17)=1,1,0)))+Parts!$E$92*IF(Calculations!$K17=0,0,IF(MOD(CA$3,$I17)=1,0,IF(MOD(CA$3,Calculations!$K17)=1,1,0))))*$AU17)*(1+'Country Input'!$C$45)^(Calculations!CA$3-$BH$3)","v":1186.6666666666665},null,"B Medical TFW 40 SDD*",72130.115666666665,1186.6666666666665,1186.6666666666665,1186.6666666666665,1186.6666666666665,1186.6666666666665,1186.6666666666665,1186.6666666666665,1186.6666666666665,1186.6666666666665,72130.115666666665,1186.6666666666665,1186.6666666666665,1186.6666666666665,1186.6666666666665,1186.6666666666665,1186.6666666666665,1186.6666666666665,1186.6666666666665,1186.6666666666665,{"$f":"SUM(CD17:INDEX($CD17:$CW17,1,'Total Solution Costs'!$B$2))","v":82810.115666666708},null,"B Medical TFW 40 SDD*",{"$f":"SUM($BH17:BH17)","v":72130.115666666665},{"$f":"SUM($BH17:BI17)","v":73316.782333333336},{"$f":"SUM($BH17:BJ17)","v":74503.449000000008},{"$f":"SUM($BH17:BK17)","v":75690.115666666679},{"$f":"SUM($BH17:BL17)","v":76876.782333333351},{"$f":"SUM($BH17:BM17)","v":78063.449000000022},{"$f":"SUM($BH17:BN17)","v":79250.115666666694},{"$f":"SUM($BH17:BO17)","v":80436.782333333365},{"$f":"SUM($BH17:BP17)","v":81623.449000000037},{"$f":"SUM($BH17:BQ17)","v":82810.115666666708},{"$f":"SUM($BH17:BR17)","v":154940.23133333336},{"$f":"SUM($BH17:BS17)","v":156126.89800000002},{"$f":"SUM($BH17:BT17)","v":157313.56466666667},{"$f":"SUM($BH17:BU17)","v":158500.23133333333},{"$f":"SUM($BH17:BV17)","v":159686.89799999999},{"$f":"SUM($BH17:BW17)","v":160873.56466666664},{"$f":"SUM($BH17:BX17)","v":162060.2313333333},{"$f":"SUM($BH17:BY17)","v":163246.89799999996},{"$f":"SUM($BH17:BZ17)","v":164433.56466666661},{"$f":"SUM($BH17:CA17)","v":165620.23133333327}]
[{"$f":"PQS!A18","v":"ILR"},{"$f":"PQS!B18","v":"E003/005"},{"$f":"PQS!E18","v":"HBC-70"},{"$f":"PQS!F18","v":"Haier"},{"$f":"PQS!D18","v":"Haier HBC-70"},{"$f":"VLOOKUP(E18,PQS!$D$5:$K$107,COLUMN(PQS!$I$3)-COLUMN(PQS!$D$3)+1,FALSE)","v":45},{"$f":"VLOOKUP(E18,PQS!$D$5:$K$107,COLUMN(PQS!$J$3)-COLUMN(PQS!$D$3)+1,FALSE)","v":0},{"$f":"VLOOKUP(E18,PQS!$D$5:$K$107,COLUMN(PQS!$G$3)-COLUMN(PQS!$D$3)+1,FALSE)","v":"No"},{"$f":"HLOOKUP(B18,INDIRECT(\"'\"&A18&\"'!$10:$15\"),ROW('Technology template'!$A$11)-ROW('Technology template'!$A$10)+1,FALSE)","v":10},{"$f":"HLOOKUP(B18,INDIRECT(\"'\"&A18&\"'!$10:$15\"),ROW('Technology template'!$A$12)-ROW('Technology template'!$A$10)+1,FALSE)","v":0},{"$f":"HLOOKUP(B18,INDIRECT(\"'\"&A18&\"'!$10:$15\"),ROW('Technology template'!$A$13)-ROW('Technology template'!$A$10)+1,FALSE)","v":0},{"$f":"VLOOKUP(B18,PQS!$B:$Q,MATCH(PQS!$Q$3,PQS!$B$3:$Q$3,0),FALSE)*(1+'Country Input'!$C$47)+HLOOKUP(B18,INDIRECT(\"'\"&A18&\"'!$10:$15\"),ROW('Technology template'!$A$14)-ROW('Technology template'!$A$10)+1,FALSE)*(1+'Country Input'!$C$47)","v":604.55000000000007},{"$f":"HLOOKUP(B18,INDIRECT(\"'\"&A18&\"'!$10:$80\"),MATCH('Technology template'!$A$27,INDIRECT(\"'\"&A18&\"'!$A$10:$A$80\"),0),FALSE)+'Labor and Maintenance '!$E$22","v":748},{"$f":"VLOOKUP(B18,PQS!B:T,MATCH(PQS!$T$3,PQS!$B$3:$T$3,0),FALSE)*(1+'Country Input'!$C$47)","v":197.01196666666667},1549.5619666666669,154.9561966666667,{"$f":"VLOOKUP(B18,PQS!$B:$AE,COLUMN(PQS!AD12)-1,FALSE)","v":46.72},{"$f":"IFERROR(1/HLOOKUP(B18,INDIRECT(\"'\"&A18&\"'!$10:$80\"),MATCH('Technology template'!$A$31,INDIRECT(\"'\"&A18&\"'!$A$10:$A$80\"),0),FALSE)*HLOOKUP(B18,INDIRECT(\"'\"&A18&\"'!$10:$80\"),MATCH('Technology template'!$A$41,INDIRECT(\"'\"&A18&\"'!$A10:$A$80\"),0),FALSE),0)*TechnicianHourlyWage+IF(A18=\"Solar w Battery\",1/'Labor and Maintenance '!$E$53*'Labor and Maintenance '!$D$53,0)+IF(A18=\"LT passive\", 1/'Labor and Maintenance '!$E$81*'Labor and Maintenance '!$D$81,0)","v":24},{"$f":"IFERROR(1/HLOOKUP(B18,INDIRECT(\"'\"&A18&\"'!$10:$80\"),MATCH('Technology template'!$A$34,INDIRECT(\"'\"&A18&\"'!$A$10:$A$80\"),0),FALSE)*(HLOOKUP(B18,INDIRECT(\"'\"&A18&\"'!$10:$80\"),MATCH('Technology template'!$A$44,INDIRECT(\"'\"&A18&\"'!$A10:$A$80\"),0),FALSE)*TechnicianHourlyWage+RemoteTravelCostPerDay),0)+IFERROR(1/HLOOKUP(B18,INDIRECT(\"'\"&A18&\"'!$10:$80\"),MATCH('Technology template'!$A$35,INDIRECT(\"'\"&A18&\"'!$A$10:$A$80\"),0),FALSE)*(HLOOKUP(B18,INDIRECT(\"'\"&A18&\"'!$10:$80\"),MATCH('Technology template'!$A$45,INDIRECT(\"'\"&A18&\"'!$A10:$A$80\"),0),FALSE)*TechnicianHourlyWage+RemoteTravelCostPerDay),0)+IFERROR(1/HLOOKUP(B18,INDIRECT(\"'\"&A18&\"'!$10:$80\"),MATCH('Technology template'!$A$37,INDIRECT(\"'\"&A18&\"'!$A$10:$A$80\"),0),FALSE)*(HLOOKUP(B18,INDIRECT(\"'\"&A18&\"'!$10:$80\"),MATCH('Technology template'!$A$46,INDIRECT(\"'\"&A18&\"'!$A10:$A$80\"),0),FALSE)*TechnicianHourlyWage+'Labor and Maintenance '!$B$8),0)","v":94.666666666666657},1653.8666666666666,165.38666666666666,320.34286333333336,null,"Haier HBC-70",34.434710370370375,36.752592592592592,71.187302962962974,null,"Haier HBC-70",3.4434710370370376,3.675259259259259,7.1187302962962971,null,"Haier HBC-70",3,4648.6859000000004,4961.5999999999995,9610.2858999999989,null,"Haier HBC-70",3,10.330413111111113,11.025777777777776,21.356190888888889,null,"Haier HBC-70",{"$f":"IF(F18=0, 'Country Input'!$D$7, ROUNDUP(LitersPerFacility/F18,0)*'Country Input'!$D$7)","v":10},15495.619666666669,1653.8666666666666,17149.486333333334,null,"Haier HBC-70",{"$f":"ROUNDUP(LitersPerFacility/F18,0)*'Country Input'!$D$7*ROUNDUP('Total Solution Costs'!$B$2/Calculations!I18,0)","v":10},34.434710370370375,3.675259259259259,38.109969629629632,null,null,"Haier HBC-70",{"$f":"(($U18+($O18)*IF(MOD(BH$3,$I18)=1,1,0)+Parts!$E$91*IF($J18=0,0,IF(MOD(BH$3,$I18)=1,IF(PQS!$R18=\"NO\",1,0),IF(MOD(BH$3,Calculations!$J18)=1,1,0)))+Parts!$E$92*IF(Calculations!$K18=0,0,IF(MOD(BH$3,$I18)=1,0,IF(MOD(BH$3,Calculations!$K18)=1,1,0))))*$AU18)*(1+'Country Input'!$C$45)^(Calculations!BH$3-$BH$3)+TrainingCost","v":17149.486333333334},{"$f":"(($U18+($O18)*IF(MOD(BI$3,$I18)=1,1,0)+Parts!$E$91*IF($J18=0,0,IF(MOD(BI$3,$I18)=1,IF(PQS!$R18=\"NO\",1,0),IF(MOD(BI$3,Calculations!$J18)=1,1,0)))+Parts!$E$92*IF(Calculations!$K18=0,0,IF(MOD(BI$3,$I18)=1,0,IF(MOD(BI$3,Calculations!$K18)=1,1,0))))*$AU18)*(1+'Country Input'!$C$45)^(Calculations!BI$3-$BH$3)","v":1653.8666666666666},{"$f":"(($U18+($O18)*IF(MOD(BJ$3,$I18)=1,1,0)+Parts!$E$91*IF($J18=0,0,IF(MOD(BJ$3,$I18)=1,IF(PQS!$R18=\"NO\",1,0),IF(MOD(BJ$3,Calculations!$J18)=1,1,0)))+Parts!$E$92*IF(Calculations!$K18=0,0,IF(MOD(BJ$3,$I18)=1,0,IF(MOD(BJ$3,Calculations!$K18)=1,1,0))))*$AU18)*(1+'Country Input'!$C$45)^(Calculations!BJ$3-$BH$3)","v":1653.8666666666666},{"$f":"(($U18+($O18)*IF(MOD(BK$3,$I18)=1,1,0)+Parts!$E$91*IF($J18=0,0,IF(MOD(BK$3,$I18)=1,IF(PQS!$R18=\"NO\",1,0),IF(MOD(BK$3,Calculations!$J18)=1,1,0)))+Parts!$E$92*IF(Calculations!$K18=0,0,IF(MOD(BK$3,$I18)=1,0,IF(MOD(BK$3,Calculations!$K18)=1,1,0))))*$AU18)*(1+'Country Input'!$C$45)^(Calculations!BK$3-$BH$3)","v":1653.8666666666666},{"$f":"(($U18+($O18)*IF(MOD(BL$3,$I18)=1,1,0)+Parts!$E$91*IF($J18=0,0,IF(MOD(BL$3,$I18)=1,IF(PQS!$R18=\"NO\",1,0),IF(MOD(BL$3,Calculations!$J18)=1,1,0)))+Parts!$E$92*IF(Calculations!$K18=0,0,IF(MOD(BL$3,$I18)=1,0,IF(MOD(BL$3,Calculations!$K18)=1,1,0))))*$AU18)*(1+'Country Input'!$C$45)^(Calculations!BL$3-$BH$3)","v":1653.8666666666666},{"$f":"(($U18+($O18)*IF(MOD(BM$3,$I18)=1,1,0)+Parts!$E$91*IF($J18=0,0,IF(MOD(BM$3,$I18)=1,IF(PQS!$R18=\"NO\",1,0),IF(MOD(BM$3,Calculations!$J18)=1,1,0)))+Parts!$E$92*IF(Calculations!$K18=0,0,IF(MOD(BM$3,$I18)=1,0,IF(MOD(BM$3,Calculations!$K18)=1,1,0))))*$AU18)*(1+'Country Input'!$C$45)^(Calculations!BM$3-$BH$3)","v":1653.8666666666666},{"$f":"(($U18+($O18)*IF(MOD(BN$3,$I18)=1,1,0)+Parts!$E$91*IF($J18=0,0,IF(MOD(BN$3,$I18)=1,IF(PQS!$R18=\"NO\",1,0),IF(MOD(BN$3,Calculations!$J18)=1,1,0)))+Parts!$E$92*IF(Calculations!$K18=0,0,IF(MOD(BN$3,$I18)=1,0,IF(MOD(BN$3,Calculations!$K18)=1,1,0))))*$AU18)*(1+'Country Input'!$C$45)^(Calculations!BN$3-$BH$3)","v":1653.8666666666666},{"$f":"(($U18+($O18)*IF(MOD(BO$3,$I18)=1,1,0)+Parts!$E$91*IF($J18=0,0,IF(MOD(BO$3,$I18)=1,IF(PQS!$R18=\"NO\",1,0),IF(MOD(BO$3,Calculations!$J18)=1,1,0)))+Parts!$E$92*IF(Calculations!$K18=0,0,IF(MOD(BO$3,$I18)=1,0,IF(MOD(BO$3,Calculations!$K18)=1,1,0))))*$AU18)*(1+'Country Input'!$C$45)^(Calculations!BO$3-$BH$3)","v":1653.8666666666666},{"$f":"(($U18+($O18)*IF(MOD(BP$3,$I18)=1,1,0)+Parts!$E$91*IF($J18=0,0,IF(MOD(BP$3,$I18)=1,IF(PQS!$R18=\"NO\",1,0),IF(MOD(BP$3,Calculations!$J18)=1,1,0)))+Parts!$E$92*IF(Calculations!$K18=0,0,IF(MOD(BP$3,$I18)=1,0,IF(MOD(BP$3,Calculations!$K18)=1,1,0))))*$AU18)*(1+'Country Input'!$C$45)^(Calculations!BP$3-$BH$3)","v":1653.8666666666666},{"$f":"(($U18+($O18)*IF(MOD(BQ$3,$I18)=1,1,0)+Parts!$E$91*IF($J18=0,0,IF(MOD(BQ$3,$I18)=1,IF(PQS!$R18=\"NO\",1,0),IF(MOD(BQ$3,Calculations!$J18)=1,1,0)))+Parts!$E$92*IF(Calculations!$K18=0,0,IF(MOD(BQ$3,$I18)=1,0,IF(MOD(BQ$3,Calculations!$K18)=1,1,0))))*$AU18)*(1+'Country Input'!$C$45)^(Calculations!BQ$3-$BH$3)","v":1653.8666666666666},{"$f":"(($U18+($O18)*IF(MOD(BR$3,$I18)=1,1,0)+Parts!$E$91*IF($J18=0,0,IF(MOD(BR$3,$I18)=1,IF(PQS!$R18=\"NO\",1,0),IF(MOD(BR$3,Calculations!$J18)=1,1,0)))+Parts!$E$92*IF(Calculations!$K18=0,0,IF(MOD(BR$3,$I18)=1,0,IF(MOD(BR$3,Calculations!$K18)=1,1,0))))*$AU18)*(1+'Country Input'!$C$45)^(Calculations!BR$3-$BH$3)","v":17149.486333333334},{"$f":"(($U18+($O18)*IF(MOD(BS$3,$I18)=1,1,0)+Parts!$E$91*IF($J18=0,0,IF(MOD(BS$3,$I18)=1,IF(PQS!$R18=\"NO\",1,0),IF(MOD(BS$3,Calculations!$J18)=1,1,0)))+Parts!$E$92*IF(Calculations!$K18=0,0,IF(MOD(BS$3,$I18)=1,0,IF(MOD(BS$3,Calculations!$K18)=1,1,0))))*$AU18)*(1+'Country Input'!$C$45)^(Calculations!BS$3-$BH$3)","v":1653.8666666666666},{"$f":"(($U18+($O18)*IF(MOD(BT$3,$I18)=1,1,0)+Parts!$E$91*IF($J18=0,0,IF(MOD(BT$3,$I18)=1,IF(PQS!$R18=\"NO\",1,0),IF(MOD(BT$3,Calculations!$J18)=1,1,0)))+Parts!$E$92*IF(Calculations!$K18=0,0,IF(MOD(BT$3,$I18)=1,0,IF(MOD(BT$3,Calculations!$K18)=1,1,0))))*$AU18)*(1+'Country Input'!$C$45)^(Calculations!BT$3-$BH$3)","v":1653.8666666666666},{"$f":"(($U18+($O18)*IF(MOD(BU$3,$I18)=1,1,0)+Parts!$E$91*IF($J18=0,0,IF(MOD(BU$3,$I18)=1,IF(PQS!$R18=\"NO\",1,0),IF(MOD(BU$3,Calculations!$J18)=1,1,0)))+Parts!$E$92*IF(Calculations!$K18=0,0,IF(MOD(BU$3,$I18)=1,0,IF(MOD(BU$3,Calculations!$K18)=1,1,0))))*$AU18)*(1+'Country Input'!$C$45)^(Calculations!BU$3-$BH$3)","v":1653.8666666666666},{"$f":"(($U18+($O18)*IF(MOD(BV$3,$I18)=1,1,0)+Parts!$E$91*IF($J18=0,0,IF(MOD(BV$3,$I18)=1,IF(PQS!$R18=\"NO\",1,0),IF(MOD(BV$3,Calculations!$J18)=1,1,0)))+Parts!$E$92*IF(Calculations!$K18=0,0,IF(MOD(BV$3,$I18)=1,0,IF(MOD(BV$3,Calculations!$K18)=1,1,0))))*$AU18)*(1+'Country Input'!$C$45)^(Calculations!BV$3-$BH$3)","v":1653.8666666666666},{"$f":"(($U18+($O18)*IF(MOD(BW$3,$I18)=1,1,0)+Parts!$E$91*IF($J18=0,0,IF(MOD(BW$3,$I18)=1,IF(PQS!$R18=\"NO\",1,0),IF(MOD(BW$3,Calculations!$J18)=1,1,0)))+Parts!$E$92*IF(Calculations!$K18=0,0,IF(MOD(BW$3,$I18)=1,0,IF(MOD(BW$3,Calculations!$K18)=1,1,0))))*$AU18)*(1+'Country Input'!$C$45)^(Calculations!BW$3-$BH$3)","v":1653.8666666666666},{"$f":"(($U18+($O18)*IF(MOD(BX$3,$I18)=1,1,0)+Parts!$E$91*IF($J18=0,0,IF(MOD(BX$3,$I18)=1,IF(PQS!$R18=\"NO\",1,0),IF(MOD(BX$3,Calculations!$J18)=1,1,0)))+Parts!$E$92*IF(Calculations!$K18=0,0,IF(MOD(BX$3,$I18)=1,0,IF(MOD(BX$3,Calculations!$K18)=1,1,0))))*$AU18)*(1+'Country Input'!$C$45)^(Calculations!BX$3-$BH$3)","v":1653.8666666666666},{"$f":"(($U18+($O18)*IF(MOD(BY$3,$I18)=1,1,0)+Parts!$E$91*IF($J18=0,0,IF(MOD(BY$3,$I18)=1,IF(PQS!$R18=\"NO\",1,0),IF(MOD(BY$3,Calculations!$J18)=1,1,0)))+Parts!$E$92*IF(Calculations!$K18=0,0,IF(MOD(BY$3,$I18)=1,0,IF(MOD(BY$3,Calculations!$K18)=1,1,0))))*$AU18)*(1+'Country Input'!$C$45)^(Calculations!BY$3-$BH$3)","v":1653.8666666666666},{"$f":"(($U18+($O18)*IF(MOD(BZ$3,$I18)=1,1,0)+Parts!$E$91*IF($J18=0,0,IF(MOD(BZ$3,$I18)=1,IF(PQS!$R18=\"NO\",1,0),IF(MOD(BZ$3,Calculations!$J18)=1,1,0)))+Parts!$E$92*IF(Calculations!$K18=0,0,IF(MOD(BZ$3,$I18)=1,0,IF(MOD(BZ$3,Calculations!$K18)=1,1,0))))*$AU18)*(1+'Country Input'!$C$45)^(Calculations!BZ$3-$BH$3)","v":1653.8666666666666},{"$f":"(($U18+($O18)*IF(MOD(CA$3,$I18)=1,1,0)+Parts!$E$91*IF($J18=0,0,IF(MOD(CA$3,$I18)=1,IF(PQS!$R18=\"NO\",1,0),IF(MOD(CA$3,Calculations!$J18)=1,1,0)))+Parts!$E$92*IF(Calculations!$K18=0,0,IF(MOD(CA$3,$I18)=1,0,IF(MOD(CA$3,Calculations!$K18)=1,1,0))))*$AU18)*(1+'Country Input'!$C$45)^(Calculations!CA$3-$BH$3)","v":1653.8666666666666},null,"Haier HBC-70",17149.486333333334,1653.8666666666666,1653.8666666666666,1653.8666666666666,1653.8666666666666,1653.8666666666666,1653.8666666666666,1653.8666666666666,1653.8666666666666,1653.8666666666666,17149.486333333334,1653.8666666666666,1653.8666666666666,1653.8666666666666,1653.8666666666666,1653.8666666666666,1653.8666666666666,1653.8666666666666,1653.8666666666666,1653.8666666666666,{"$f":"SUM(CD18:INDEX($CD18:$CW18,1,'Total Solution Costs'!$B$2))","v":32034.286333333319},null,"Haier HBC-70",{"$f":"SUM($BH18:BH18)","v":17149.486333333334},{"$f":"SUM($BH18:BI18)","v":18803.352999999999},{"$f":"SUM($BH18:BJ18)","v":20457.219666666664},{"$f":"SUM($BH18:BK18)","v":22111.086333333329},{"$f":"SUM($BH18:BL18)","v":23764.952999999994},{"$f":"SUM($BH18:BM18)","v":25418.819666666659},{"$f":"SUM($BH18:BN18)","v":27072.686333333324},{"$f":"SUM($BH18:BO18)","v":28726.552999999989},{"$f":"SUM($BH18:BP18)","v":30380.419666666654},{"$f":"SUM($BH18:BQ18)","v":32034.286333333319},{"$f":"SUM($BH18:BR18)","v":49183.772666666657},{"$f":"SUM($BH18:BS18)","v":50837.639333333325},{"$f":"SUM($BH18:BT18)","v":52491.505999999994},{"$f":"SUM($BH18:BU18)","v":54145.372666666663},{"$f":"SUM($BH18:BV18)","v":55799.239333333331},{"$f":"SUM($BH18:BW18)","v":57453.106},{"$f":"SUM($BH18:BX18)","v":59106.972666666668},{"$f":"SUM($BH18:BY18)","v":60760.839333333337},{"$f":"SUM($BH18:BZ18)","v":62414.706000000006},{"$f":"SUM($BH18:CA18)","v":64068.572666666674}]
[{"$f":"PQS!A19","v":"ILR"},{"$f":"PQS!B19","v":"E003/006"},{"$f":"PQS!E19","v":"HBC-200"},{"$f":"PQS!F19","v":"Haier"},{"$f":"PQS!D19","v":"Haier HBC-200"},{"$f":"VLOOKUP(E19,PQS!$D$5:$K$107,COLUMN(PQS!$I$3)-COLUMN(PQS!$D$3)+1,FALSE)","v":90},{"$f":"VLOOKUP(E19,PQS!$D$5:$K$107,COLUMN(PQS!$J$3)-COLUMN(PQS!$D$3)+1,FALSE)","v":0},{"$f":"VLOOKUP(E19,PQS!$D$5:$K$107,COLUMN(PQS!$G$3)-COLUMN(PQS!$D$3)+1,FALSE)","v":"No"},{"$f":"HLOOKUP(B19,INDIRECT(\"'\"&A19&\"'!$10:$15\"),ROW('Technology template'!$A$11)-ROW('Technology template'!$A$10)+1,FALSE)","v":10},{"$f":"HLOOKUP(B19,INDIRECT(\"'\"&A19&\"'!$10:$15\"),ROW('Technology template'!$A$12)-ROW('Technology template'!$A$10)+1,FALSE)","v":0},{"$f":"HLOOKUP(B19,INDIRECT(\"'\"&A19&\"'!$10:$15\"),ROW('Technology template'!$A$13)-ROW('Technology template'!$A$10)+1,FALSE)","v":0},{"$f":"VLOOKUP(B19,PQS!$B:$Q,MATCH(PQS!$Q$3,PQS!$B$3:$Q$3,0),FALSE)*(1+'Country Input'!$C$47)+HLOOKUP(B19,INDIRECT(\"'\"&A19&\"'!$10:$15\"),ROW('Technology template'!$A$14)-ROW('Technology template'!$A$10)+1,FALSE)*(1+'Country Input'!$C$47)","v":749},{"$f":"HLOOKUP(B19,INDIRECT(\"'\"&A19&\"'!$10:$80\"),MATCH('Technology template'!$A$27,INDIRECT(\"'\"&A19&\"'!$A$10:$A$80\"),0),FALSE)+'Labor and Maintenance '!$E$22","v":748},{"$f":"VLOOKUP(B19,PQS!B:T,MATCH(PQS!$T$3,PQS!$B$3:$T$3,0),FALSE)*(1+'Country Input'!$C$47)","v":201.29196666666672},1698.2919666666667,169.82919666666666,{"$f":"VLOOKUP(B19,PQS!$B:$AE,COLUMN(PQS!AD13)-1,FALSE)","v":97.820000000000007},{"$f":"IFERROR(1/HLOOKUP(B19,INDIRECT(\"'\"&A19&\"'!$10:$80\"),MATCH('Technology template'!$A$31,INDIRECT(\"'\"&A19&\"'!$A$10:$A$80\"),0),FALSE)*HLOOKUP(B19,INDIRECT(\"'\"&A19&\"'!$10:$80\"),MATCH('Technology template'!$A$41,INDIRECT(\"'\"&A19&\"'!$A10:$A$80\"),0),FALSE),0)*TechnicianHourlyWage+IF(A19=\"Solar w Battery\",1/'Labor and Maintenance '!$E$53*'Labor and Maintenance '!$D$53,0)+IF(A19=\"LT passive\", 1/'Labor and Maintenance '!$E$81*'Labor and Maintenance '!$D$81,0)","v":24},{"$f":"IFERROR(1/HLOOKUP(B19,INDIRECT(\"'\"&A19&\"'!$10:$80\"),MATCH('Technology template'!$A$34,INDIRECT(\"'\"&A19&\"'!$A$10:$A$80\"),0),FALSE)*(HLOOKUP(B19,INDIRECT(\"'\"&A19&\"'!$10:$80\"),MATCH('Technology template'!$A$44,INDIRECT(\"'\"&A19&\"'!$A10:$A$80\"),0),FALSE)*TechnicianHourlyWage+RemoteTravelCostPerDay),0)+IFERROR(1/HLOOKUP(B19,INDIRECT(\"'\"&A19&\"'!$10:$80\"),MATCH('Technology template'!$A$35,INDIRECT(\"'\"&A19&\"'!$A$10:$A$80\"),0),FALSE)*(HLOOKUP(B19,INDIRECT(\"'\"&A19&\"'!$10:$80\"),MATCH('Technology template'!$A$45,INDIRECT(\"'\"&A19&\"'!$A10:$A$80\"),0),FALSE)*TechnicianHourlyWage+RemoteTravelCostPerDay),0)+IFERROR(1/HLOOKUP(B19,INDIRECT(\"'\"&A19&\"'!$10:$80\"),MATCH('Technology template'!$A$37,INDIRECT(\"'\"&A19&\"'!$A$10:$A$80\"),0),FALSE)*(HLOOKUP(B19,INDIRECT(\"'\"&A19&\"'!$10:$80\"),MATCH('Technology template'!$A$46,INDIRECT(\"'\"&A19&\"'!$A10:$A$80\"),0),FALSE)*TechnicianHourlyWage+'Labor and Maintenance '!$B$8),0)","v":94.666666666666657},2164.8666666666668,216.48666666666668,386.31586333333337,null,"Haier HBC-200",18.869910740740742,24.054074074074077,42.923984814814816,null,"Haier HBC-200",1.8869910740740741,2.4054074074074077,4.2923984814814817,null,"Haier HBC-200",2,3396.5839333333333,4329.7333333333336,7726.3172666666669,null,"Haier HBC-200",2,3.7739821481481481,4.8108148148148153,8.5847969629629635,null,"Haier HBC-200",{"$f":"IF(F19=0, 'Country Input'!$D$7, ROUNDUP(LitersPerFacility/F19,0)*'Country Input'!$D$7)","v":10},16982.919666666668,2164.8666666666668,19147.786333333337,null,"Haier HBC-200",{"$f":"ROUNDUP(LitersPerFacility/F19,0)*'Country Input'!$D$7*ROUNDUP('Total Solution Costs'!$B$2/Calculations!I19,0)","v":10},18.869910740740742,2.4054074074074077,21.275318148148152,null,null,"Haier HBC-200",{"$f":"(($U19+($O19)*IF(MOD(BH$3,$I19)=1,1,0)+Parts!$E$91*IF($J19=0,0,IF(MOD(BH$3,$I19)=1,IF(PQS!$R19=\"NO\",1,0),IF(MOD(BH$3,Calculations!$J19)=1,1,0)))+Parts!$E$92*IF(Calculations!$K19=0,0,IF(MOD(BH$3,$I19)=1,0,IF(MOD(BH$3,Calculations!$K19)=1,1,0))))*$AU19)*(1+'Country Input'!$C$45)^(Calculations!BH$3-$BH$3)+TrainingCost","v":19147.786333333333},{"$f":"(($U19+($O19)*IF(MOD(BI$3,$I19)=1,1,0)+Parts!$E$91*IF($J19=0,0,IF(MOD(BI$3,$I19)=1,IF(PQS!$R19=\"NO\",1,0),IF(MOD(BI$3,Calculations!$J19)=1,1,0)))+Parts!$E$92*IF(Calculations!$K19=0,0,IF(MOD(BI$3,$I19)=1,0,IF(MOD(BI$3,Calculations!$K19)=1,1,0))))*$AU19)*(1+'Country Input'!$C$45)^(Calculations!BI$3-$BH$3)","v":2164.8666666666668},{"$f":"(($U19+($O19)*IF(MOD(BJ$3,$I19)=1,1,0)+Parts!$E$91*IF($J19=0,0,IF(MOD(BJ$3,$I19)=1,IF(PQS!$R19=\"NO\",1,0),IF(MOD(BJ$3,Calculations!$J19)=1,1,0)))+Parts!$E$92*IF(Calculations!$K19=0,0,IF(MOD(BJ$3,$I19)=1,0,IF(MOD(BJ$3,Calculations!$K19)=1,1,0))))*$AU19)*(1+'Country Input'!$C$45)^(Calculations!BJ$3-$BH$3)","v":2164.8666666666668},{"$f":"(($U19+($O19)*IF(MOD(BK$3,$I19)=1,1,0)+Parts!$E$91*IF($J19=0,0,IF(MOD(BK$3,$I19)=1,IF(PQS!$R19=\"NO\",1,0),IF(MOD(BK$3,Calculations!$J19)=1,1,0)))+Parts!$E$92*IF(Calculations!$K19=0,0,IF(MOD(BK$3,$I19)=1,0,IF(MOD(BK$3,Calculations!$K19)=1,1,0))))*$AU19)*(1+'Country Input'!$C$45)^(Calculations!BK$3-$BH$3)","v":2164.8666666666668},{"$f":"(($U19+($O19)*IF(MOD(BL$3,$I19)=1,1,0)+Parts!$E$91*IF($J19=0,0,IF(MOD(BL$3,$I19)=1,IF(PQS!$R19=\"NO\",1,0),IF(MOD(BL$3,Calculations!$J19)=1,1,0)))+Parts!$E$92*IF(Calculations!$K19=0,0,IF(MOD(BL$3,$I19)=1,0,IF(MOD(BL$3,Calculations!$K19)=1,1,0))))*$AU19)*(1+'Country Input'!$C$45)^(Calculations!BL$3-$BH$3)","v":2164.8666666666668},{"$f":"(($U19+($O19)*IF(MOD(BM$3,$I19)=1,1,0)+Parts!$E$91*IF($J19=0,0,IF(MOD(BM$3,$I19)=1,IF(PQS!$R19=\"NO\",1,0),IF(MOD(BM$3,Calculations!$J19)=1,1,0)))+Parts!$E$92*IF(Calculations!$K19=0,0,IF(MOD(BM$3,$I19)=1,0,IF(MOD(BM$3,Calculations!$K19)=1,1,0))))*$AU19)*(1+'Country Input'!$C$45)^(Calculations!BM$3-$BH$3)","v":2164.8666666666668},{"$f":"(($U19+($O19)*IF(MOD(BN$3,$I19)=1,1,0)+Parts!$E$91*IF($J19=0,0,IF(MOD(BN$3,$I19)=1,IF(PQS!$R19=\"NO\",1,0),IF(MOD(BN$3,Calculations!$J19)=1,1,0)))+Parts!$E$92*IF(Calculations!$K19=0,0,IF(MOD(BN$3,$I19)=1,0,IF(MOD(BN$3,Calculations!$K19)=1,1,0))))*$AU19)*(1+'Country Input'!$C$45)^(Calculations!BN$3-$BH$3)","v":2164.8666666666668},{"$f":"(($U19+($O19)*IF(MOD(BO$3,$I19)=1,1,0)+Parts!$E$91*IF($J19=0,0,IF(MOD(BO$3,$I19)=1,IF(PQS!$R19=\"NO\",1,0),IF(MOD(BO$3,Calculations!$J19)=1,1,0)))+Parts!$E$92*IF(Calculations!$K19=0,0,IF(MOD(BO$3,$I19)=1,0,IF(MOD(BO$3,Calculations!$K19)=1,1,0))))*$AU19)*(1+'Country Input'!$C$45)^(Calculations!BO$3-$BH$3)","v":2164.8666666666668},{"$f":"(($U19+($O19)*IF(MOD(BP$3,$I19)=1,1,0)+Parts!$E$91*IF($J19=0,0,IF(MOD(BP$3,$I19)=1,IF(PQS!$R19=\"NO\",1,0),IF(MOD(BP$3,Calculations!$J19)=1,1,0)))+Parts!$E$92*IF(Calculations!$K19=0,0,IF(MOD(BP$3,$I19)=1,0,IF(MOD(BP$3,Calculations!$K19)=1,1,0))))*$AU19)*(1+'Country Input'!$C$45)^(Calculations!BP$3-$BH$3)","v":2164.8666666666668},{"$f":"(($U19+($O19)*IF(MOD(BQ$3,$I19)=1,1,0)+Parts!$E$91*IF($J19=0,0,IF(MOD(BQ$3,$I19)=1,IF(PQS!$R19=\"NO\",1,0),IF(MOD(BQ$3,Calculations!$J19)=1,1,0)))+Parts!$E$92*IF(Calculations!$K19=0,0,IF(MOD(BQ$3,$I19)=1,0,IF(MOD(BQ$3,Calculations!$K19)=1,1,0))))*$AU19)*(1+'Country Input'!$C$45)^(Calculations!BQ$3-$BH$3)","v":2164.8666666666668},{"$f":"(($U19+($O19)*IF(MOD(BR$3,$I19)=1,1,0)+Parts!$E$91*IF($J19=0,0,IF(MOD(BR$3,$I19)=1,IF(PQS!$R19=\"NO\",1,0),IF(MOD(BR$3,Calculations!$J19)=1,1,0)))+Parts!$E$92*IF(Calculations!$K19=0,0,IF(MOD(BR$3,$I19)=1,0,IF(MOD(BR$3,Calculations!$K19)=1,1,0))))*$AU19)*(1+'Country Input'!$C$45)^(Calculations!BR$3-$BH$3)","v":19147.786333333333},{"$f":"(($U19+($O19)*IF(MOD(BS$3,$I19)=1,1,0)+Parts!$E$91*IF($J19=0,0,IF(MOD(BS$3,$I19)=1,IF(PQS!$R19=\"NO\",1,0),IF(MOD(BS$3,Calculations!$J19)=1,1,0)))+Parts!$E$92*IF(Calculations!$K19=0,0,IF(MOD(BS$3,$I19)=1,0,IF(MOD(BS$3,Calculations!$K19)=1,1,0))))*$AU19)*(1+'Country Input'!$C$45)^(Calculations!BS$3-$BH$3)","v":2164.8666666666668},{"$f":"(($U19+($O19)*IF(MOD(BT$3,$I19)=1,1,0)+Parts!$E$91*IF($J19=0,0,IF(MOD(BT$3,$I19)=1,IF(PQS!$R19=\"NO\",1,0),IF(MOD(BT$3,Calculations!$J19)=1,1,0)))+Parts!$E$92*IF(Calculations!$K19=0,0,IF(MOD(BT$3,$I19)=1,0,IF(MOD(BT$3,Calculations!$K19)=1,1,0))))*$AU19)*(1+'Country Input'!$C$45)^(Calculations!BT$3-$BH$3)","v":2164.8666666666668},{"$f":"(($U19+($O19)*IF(MOD(BU$3,$I19)=1,1,0)+Parts!$E$91*IF($J19=0,0,IF(MOD(BU$3,$I19)=1,IF(PQS!$R19=\"NO\",1,0),IF(MOD(BU$3,Calculations!$J19)=1,1,0)))+Parts!$E$92*IF(Calculations!$K19=0,0,IF(MOD(BU$3,$I19)=1,0,IF(MOD(BU$3,Calculations!$K19)=1,1,0))))*$AU19)*(1+'Country Input'!$C$45)^(Calculations!BU$3-$BH$3)","v":2164.8666666666668},{"$f":"(($U19+($O19)*IF(MOD(BV$3,$I19)=1,1,0)+Parts!$E$91*IF($J19=0,0,IF(MOD(BV$3,$I19)=1,IF(PQS!$R19=\"NO\",1,0),IF(MOD(BV$3,Calculations!$J19)=1,1,0)))+Parts!$E$92*IF(Calculations!$K19=0,0,IF(MOD(BV$3,$I19)=1,0,IF(MOD(BV$3,Calculations!$K19)=1,1,0))))*$AU19)*(1+'Country Input'!$C$45)^(Calculations!BV$3-$BH$3)","v":2164.8666666666668},{"$f":"(($U19+($O19)*IF(MOD(BW$3,$I19)=1,1,0)+Parts!$E$91*IF($J19=0,0,IF(MOD(BW$3,$I19)=1,IF(PQS!$R19=\"NO\",1,0),IF(MOD(BW$3,Calculations!$J19)=1,1,0)))+Parts!$E$92*IF(Calculations!$K19=0,0,IF(MOD(BW$3,$I19)=1,0,IF(MOD(BW$3,Calculations!$K19)=1,1,0))))*$AU19)*(1+'Country Input'!$C$45)^(Calculations!BW$3-$BH$3)","v":2164.8666666666668},{"$f":"(($U19+($O19)*IF(MOD(BX$3,$I19)=1,1,0)+Parts!$E$91*IF($J19=0,0,IF(MOD(BX$3,$I19)=1,IF(PQS!$R19=\"NO\",1,0),IF(MOD(BX$3,Calculations!$J19)=1,1,0)))+Parts!$E$92*IF(Calculations!$K19=0,0,IF(MOD(BX$3,$I19)=1,0,IF(MOD(BX$3,Calculations!$K19)=1,1,0))))*$AU19)*(1+'Country Input'!$C$45)^(Calculations!BX$3-$BH$3)","v":2164.8666666666668},{"$f":"(($U19+($O19)*IF(MOD(BY$3,$I19)=1,1,0)+Parts!$E$91*IF($J19=0,0,IF(MOD(BY$3,$I19)=1,IF(PQS!$R19=\"NO\",1,0),IF(MOD(BY$3,Calculations!$J19)=1,1,0)))+Parts!$E$92*IF(Calculations!$K19=0,0,IF(MOD(BY$3,$I19)=1,0,IF(MOD(BY$3,Calculations!$K19)=1,1,0))))*$AU19)*(1+'Country Input'!$C$45)^(Calculations!BY$3-$BH$3)","v":2164.8666666666668},{"$f":"(($U19+($O19)*IF(MOD(BZ$3,$I19)=1,1,0)+Parts!$E$91*IF($J19=0,0,IF(MOD(BZ$3,$I19)=1,IF(PQS!$R19=\"NO\",1,0),IF(MOD(BZ$3,Calculations!$J19)=1,1,0)))+Parts!$E$92*IF(Calculations!$K19=0,0,IF(MOD(BZ$3,$I19)=1,0,IF(MOD(BZ$3,Calculations!$K19)=1,1,0))))*$AU19)*(1+'Country Input'!$C$45)^(Calculations!BZ$3-$BH$3)","v":2164.8666666666668},{"$f":"(($U19+($O19)*IF(MOD(CA$3,$I19)=1,1,0)+Parts!$E$91*IF($J19=0,0,IF(MOD(CA$3,$I19)=1,IF(PQS!$R19=\"NO\",1,0),IF(MOD(CA$3,Calculations!$J19)=1,1,0)))+Parts!$E$92*IF(Calculations!$K19=0,0,IF(MOD(CA$3,$I19)=1,0,IF(MOD(CA$3,Calculations!$K19)=1,1,0))))*$AU19)*(1+'Country Input'!$C$45)^(Calculations!CA$3-$BH$3)","v":2164.8666666666668},null,"Haier HBC-200",19147.786333333333,2164.8666666666668,2164.8666666666668,2164.8666666666668,2164.8666666666668,2164.8666666666668,2164.8666666666668,2164.8666666666668,2164.8666666666668,2164.8666666666668,19147.786333333333,2164.8666666666668,2164.8666666666668,2164.8666666666668,2164.8666666666668,2164.8666666666668,2164.8666666666668,2164.8666666666668,2164.8666666666668,2164.8666666666668,{"$f":"SUM(CD19:INDEX($CD19:$CW19,1,'Total Solution Costs'!$B$2))","v":38631.586333333347},null,"Haier HBC-200",{"$f":"SUM($BH19:BH19)","v":19147.786333333333},{"$f":"SUM($BH19:BI19)","v":21312.652999999998},{"$f":"SUM($BH19:BJ19)","v":23477.519666666667},{"$f":"SUM($BH19:BK19)","v":25642.386333333336},{"$f":"SUM($BH19:BL19)","v":27807.253000000004},{"$f":"SUM($BH19:BM19)","v":29972.119666666673},{"$f":"SUM($BH19:BN19)","v":32136.986333333341},{"$f":"SUM($BH19:BO19)","v":34301.85300000001},{"$f":"SUM($BH19:BP19)","v":36466.719666666679},{"$f":"SUM($BH19:BQ19)","v":38631.586333333347},{"$f":"SUM($BH19:BR19)","v":57779.372666666677},{"$f":"SUM($BH19:BS19)","v":59944.239333333346},{"$f":"SUM($BH19:BT19)","v":62109.106000000014},{"$f":"SUM($BH19:BU19)","v":64273.972666666683},{"$f":"SUM($BH19:BV19)","v":66438.839333333352},{"$f":"SUM($BH19:BW19)","v":68603.70600000002},{"$f":"SUM($BH19:BX19)","v":70768.572666666689},{"$f":"SUM($BH19:BY19)","v":72933.439333333357},{"$f":"SUM($BH19:BZ19)","v":75098.306000000026},{"$f":"SUM($BH19:CA19)","v":77263.172666666695}]
[{"$f":"PQS!A20","v":"ILR"},{"$f":"PQS!B20","v":"E003/007"},{"$f":"PQS!E20","v":"MK 304"},{"$f":"PQS!F20","v":"Vestfrost"},{"$f":"PQS!D20","v":"Vestfrost MK 304"},{"$f":"VLOOKUP(E20,PQS!$D$5:$K$107,COLUMN(PQS!$I$3)-COLUMN(PQS!$D$3)+1,FALSE)","v":105},{"$f":"VLOOKUP(E20,PQS!$D$5:$K$107,COLUMN(PQS!$J$3)-COLUMN(PQS!$D$3)+1,FALSE)","v":0},{"$f":"VLOOKUP(E20,PQS!$D$5:$K$107,COLUMN(PQS!$G$3)-COLUMN(PQS!$D$3)+1,FALSE)","v":"No"},{"$f":"HLOOKUP(B20,INDIRECT(\"'\"&A20&\"'!$10:$15\"),ROW('Technology template'!$A$11)-ROW('Technology template'!$A$10)+1,FALSE)","v":10},{"$f":"HLOOKUP(B20,INDIRECT(\"'\"&A20&\"'!$10:$15\"),ROW('Technology template'!$A$12)-ROW('Technology template'!$A$10)+1,FALSE)","v":0},{"$f":"HLOOKUP(B20,INDIRECT(\"'\"&A20&\"'!$10:$15\"),ROW('Technology template'!$A$13)-ROW('Technology template'!$A$10)+1,FALSE)","v":0},{"$f":"VLOOKUP(B20,PQS!$B:$Q,MATCH(PQS!$Q$3,PQS!$B$3:$Q$3,0),FALSE)*(1+'Country Input'!$C$47)+HLOOKUP(B20,INDIRECT(\"'\"&A20&\"'!$10:$15\"),ROW('Technology template'!$A$14)-ROW('Technology template'!$A$10)+1,FALSE)*(1+'Country Input'!$C$47)","v":923.58119999999997},{"$f":"HLOOKUP(B20,INDIRECT(\"'\"&A20&\"'!$10:$80\"),MATCH('Technology template'!$A$27,INDIRECT(\"'\"&A20&\"'!$A$10:$A$80\"),0),FALSE)+'Labor and Maintenance '!$E$22","v":748},{"$f":"VLOOKUP(B20,PQS!B:T,MATCH(PQS!$T$3,PQS!$B$3:$T$3,0),FALSE)*(1+'Country Input'!$C$47)","v":448.46567600000003},2120.0468760000003,212.00468760000004,{"$f":"VLOOKUP(B20,PQS!$B:$AE,COLUMN(PQS!AD18)-1,FALSE)","v":233.60000000000005},{"$f":"IFERROR(1/HLOOKUP(B20,INDIRECT(\"'\"&A20&\"'!$10:$80\"),MATCH('Technology template'!$A$31,INDIRECT(\"'\"&A20&\"'!$A$10:$A$80\"),0),FALSE)*HLOOKUP(B20,INDIRECT(\"'\"&A20&\"'!$10:$80\"),MATCH('Technology template'!$A$41,INDIRECT(\"'\"&A20&\"'!$A10:$A$80\"),0),FALSE),0)*TechnicianHourlyWage+IF(A20=\"Solar w Battery\",1/'Labor and Maintenance '!$E$53*'Labor and Maintenance '!$D$53,0)+IF(A20=\"LT passive\", 1/'Labor and Maintenance '!$E$81*'Labor and Maintenance '!$D$81,0)","v":24},{"$f":"IFERROR(1/HLOOKUP(B20,INDIRECT(\"'\"&A20&\"'!$10:$80\"),MATCH('Technology template'!$A$34,INDIRECT(\"'\"&A20&\"'!$A$10:$A$80\"),0),FALSE)*(HLOOKUP(B20,INDIRECT(\"'\"&A20&\"'!$10:$80\"),MATCH('Technology template'!$A$44,INDIRECT(\"'\"&A20&\"'!$A10:$A$80\"),0),FALSE)*TechnicianHourlyWage+RemoteTravelCostPerDay),0)+IFERROR(1/HLOOKUP(B20,INDIRECT(\"'\"&A20&\"'!$10:$80\"),MATCH('Technology template'!$A$35,INDIRECT(\"'\"&A20&\"'!$A$10:$A$80\"),0),FALSE)*(HLOOKUP(B20,INDIRECT(\"'\"&A20&\"'!$10:$80\"),MATCH('Technology template'!$A$45,INDIRECT(\"'\"&A20&\"'!$A10:$A$80\"),0),FALSE)*TechnicianHourlyWage+RemoteTravelCostPerDay),0)+IFERROR(1/HLOOKUP(B20,INDIRECT(\"'\"&A20&\"'!$10:$80\"),MATCH('Technology template'!$A$37,INDIRECT(\"'\"&A20&\"'!$A$10:$A$80\"),0),FALSE)*(HLOOKUP(B20,INDIRECT(\"'\"&A20&\"'!$10:$80\"),MATCH('Technology template'!$A$46,INDIRECT(\"'\"&A20&\"'!$A10:$A$80\"),0),FALSE)*TechnicianHourlyWage+'Labor and Maintenance '!$B$8),0)","v":94.666666666666657},3522.6666666666665,{"$f":"SUM(Q20:S20)","v":352.26666666666665},564.27135426666666,null,"Vestfrost MK 304",20.190922628571432,33.549206349206351,53.740128977777786,null,"Vestfrost MK 304",2.0190922628571433,3.3549206349206346,5.3740128977777779,null,"Vestfrost MK 304",2,4240.0937520000007,7045.333333333333,11285.427085333333,null,"Vestfrost MK 304",2,4.0381845257142865,6.7098412698412693,10.748025795555556,null,"Vestfrost MK 304",{"$f":"IF(F20=0, 'Country Input'!$D$7, ROUNDUP(LitersPerFacility/F20,0)*'Country Input'!$D$7)","v":10},21200.468760000003,3522.6666666666665,24723.135426666671,null,"Vestfrost MK 304",{"$f":"ROUNDUP(LitersPerFacility/F20,0)*'Country Input'!$D$7*ROUNDUP('Total Solution Costs'!$B$2/Calculations!I20,0)","v":10},20.190922628571432,3.3549206349206346,23.545843263492067,null,null,"Vestfrost MK 304",{"$f":"(($U20+($O20)*IF(MOD(BH$3,$I20)=1,1,0)+Parts!$E$91*IF($J20=0,0,IF(MOD(BH$3,$I20)=1,IF(PQS!$R20=\"NO\",1,0),IF(MOD(BH$3,Calculations!$J20)=1,1,0)))+Parts!$E$92*IF(Calculations!$K20=0,0,IF(MOD(BH$3,$I20)=1,0,IF(MOD(BH$3,Calculations!$K20)=1,1,0))))*$AU20)*(1+'Country Input'!$C$45)^(Calculations!BH$3-$BH$3)+TrainingCost","v":24723.135426666668},{"$f":"(($U20+($O20)*IF(MOD(BI$3,$I20)=1,1,0)+Parts!$E$91*IF($J20=0,0,IF(MOD(BI$3,$I20)=1,IF(PQS!$R20=\"NO\",1,0),IF(MOD(BI$3,Calculations!$J20)=1,1,0)))+Parts!$E$92*IF(Calculations!$K20=0,0,IF(MOD(BI$3,$I20)=1,0,IF(MOD(BI$3,Calculations!$K20)=1,1,0))))*$AU20)*(1+'Country Input'!$C$45)^(Calculations!BI$3-$BH$3)","v":3522.6666666666665},{"$f":"(($U20+($O20)*IF(MOD(BJ$3,$I20)=1,1,0)+Parts!$E$91*IF($J20=0,0,IF(MOD(BJ$3,$I20)=1,IF(PQS!$R20=\"NO\",1,0),IF(MOD(BJ$3,Calculations!$J20)=1,1,0)))+Parts!$E$92*IF(Calculations!$K20=0,0,IF(MOD(BJ$3,$I20)=1,0,IF(MOD(BJ$3,Calculations!$K20)=1,1,0))))*$AU20)*(1+'Country Input'!$C$45)^(Calculations!BJ$3-$BH$3)","v":3522.6666666666665},{"$f":"(($U20+($O20)*IF(MOD(BK$3,$I20)=1,1,0)+Parts!$E$91*IF($J20=0,0,IF(MOD(BK$3,$I20)=1,IF(PQS!$R20=\"NO\",1,0),IF(MOD(BK$3,Calculations!$J20)=1,1,0)))+Parts!$E$92*IF(Calculations!$K20=0,0,IF(MOD(BK$3,$I20)=1,0,IF(MOD(BK$3,Calculations!$K20)=1,1,0))))*$AU20)*(1+'Country Input'!$C$45)^(Calculations!BK$3-$BH$3)","v":3522.6666666666665},{"$f":"(($U20+($O20)*IF(MOD(BL$3,$I20)=1,1,0)+Parts!$E$91*IF($J20=0,0,IF(MOD(BL$3,$I20)=1,IF(PQS!$R20=\"NO\",1,0),IF(MOD(BL$3,Calculations!$J20)=1,1,0)))+Parts!$E$92*IF(Calculations!$K20=0,0,IF(MOD(BL$3,$I20)=1,0,IF(MOD(BL$3,Calculations!$K20)=1,1,0))))*$AU20)*(1+'Country Input'!$C$45)^(Calculations!BL$3-$BH$3)","v":3522.6666666666665},{"$f":"(($U20+($O20)*IF(MOD(BM$3,$I20)=1,1,0)+Parts!$E$91*IF($J20=0,0,IF(MOD(BM$3,$I20)=1,IF(PQS!$R20=\"NO\",1,0),IF(MOD(BM$3,Calculations!$J20)=1,1,0)))+Parts!$E$92*IF(Calculations!$K20=0,0,IF(MOD(BM$3,$I20)=1,0,IF(MOD(BM$3,Calculations!$K20)=1,1,0))))*$AU20)*(1+'Country Input'!$C$45)^(Calculations!BM$3-$BH$3)","v":3522.6666666666665},{"$f":"(($U20+($O20)*IF(MOD(BN$3,$I20)=1,1,0)+Parts!$E$91*IF($J20=0,0,IF(MOD(BN$3,$I20)=1,IF(PQS!$R20=\"NO\",1,0),IF(MOD(BN$3,Calculations!$J20)=1,1,0)))+Parts!$E$92*IF(Calculations!$K20=0,0,IF(MOD(BN$3,$I20)=1,0,IF(MOD(BN$3,Calculations!$K20)=1,1,0))))*$AU20)*(1+'Country Input'!$C$45)^(Calculations!BN$3-$BH$3)","v":3522.6666666666665},{"$f":"(($U20+($O20)*IF(MOD(BO$3,$I20)=1,1,0)+Parts!$E$91*IF($J20=0,0,IF(MOD(BO$3,$I20)=1,IF(PQS!$R20=\"NO\",1,0),IF(MOD(BO$3,Calculations!$J20)=1,1,0)))+Parts!$E$92*IF(Calculations!$K20=0,0,IF(MOD(BO$3,$I20)=1,0,IF(MOD(BO$3,Calculations!$K20)=1,1,0))))*$AU20)*(1+'Country Input'!$C$45)^(Calculations!BO$3-$BH$3)","v":3522.6666666666665},{"$f":"(($U20+($O20)*IF(MOD(BP$3,$I20)=1,1,0)+Parts!$E$91*IF($J20=0,0,IF(MOD(BP$3,$I20)=1,IF(PQS!$R20=\"NO\",1,0),IF(MOD(BP$3,Calculations!$J20)=1,1,0)))+Parts!$E$92*IF(Calculations!$K20=0,0,IF(MOD(BP$3,$I20)=1,0,IF(MOD(BP$3,Calculations!$K20)=1,1,0))))*$AU20)*(1+'Country Input'!$C$45)^(Calculations!BP$3-$BH$3)","v":3522.6666666666665},{"$f":"(($U20+($O20)*IF(MOD(BQ$3,$I20)=1,1,0)+Parts!$E$91*IF($J20=0,0,IF(MOD(BQ$3,$I20)=1,IF(PQS!$R20=\"NO\",1,0),IF(MOD(BQ$3,Calculations!$J20)=1,1,0)))+Parts!$E$92*IF(Calculations!$K20=0,0,IF(MOD(BQ$3,$I20)=1,0,IF(MOD(BQ$3,Calculations!$K20)=1,1,0))))*$AU20)*(1+'Country Input'!$C$45)^(Calculations!BQ$3-$BH$3)","v":3522.6666666666665},{"$f":"(($U20+($O20)*IF(MOD(BR$3,$I20)=1,1,0)+Parts!$E$91*IF($J20=0,0,IF(MOD(BR$3,$I20)=1,IF(PQS!$R20=\"NO\",1,0),IF(MOD(BR$3,Calculations!$J20)=1,1,0)))+Parts!$E$92*IF(Calculations!$K20=0,0,IF(MOD(BR$3,$I20)=1,0,IF(MOD(BR$3,Calculations!$K20)=1,1,0))))*$AU20)*(1+'Country Input'!$C$45)^(Calculations!BR$3-$BH$3)","v":24723.135426666668},{"$f":"(($U20+($O20)*IF(MOD(BS$3,$I20)=1,1,0)+Parts!$E$91*IF($J20=0,0,IF(MOD(BS$3,$I20)=1,IF(PQS!$R20=\"NO\",1,0),IF(MOD(BS$3,Calculations!$J20)=1,1,0)))+Parts!$E$92*IF(Calculations!$K20=0,0,IF(MOD(BS$3,$I20)=1,0,IF(MOD(BS$3,Calculations!$K20)=1,1,0))))*$AU20)*(1+'Country Input'!$C$45)^(Calculations!BS$3-$BH$3)","v":3522.6666666666665},{"$f":"(($U20+($O20)*IF(MOD(BT$3,$I20)=1,1,0)+Parts!$E$91*IF($J20=0,0,IF(MOD(BT$3,$I20)=1,IF(PQS!$R20=\"NO\",1,0),IF(MOD(BT$3,Calculations!$J20)=1,1,0)))+Parts!$E$92*IF(Calculations!$K20=0,0,IF(MOD(BT$3,$I20)=1,0,IF(MOD(BT$3,Calculations!$K20)=1,1,0))))*$AU20)*(1+'Country Input'!$C$45)^(Calculations!BT$3-$BH$3)","v":3522.6666666666665},{"$f":"(($U20+($O20)*IF(MOD(BU$3,$I20)=1,1,0)+Parts!$E$91*IF($J20=0,0,IF(MOD(BU$3,$I20)=1,IF(PQS!$R20=\"NO\",1,0),IF(MOD(BU$3,Calculations!$J20)=1,1,0)))+Parts!$E$92*IF(Calculations!$K20=0,0,IF(MOD(BU$3,$I20)=1,0,IF(MOD(BU$3,Calculations!$K20)=1,1,0))))*$AU20)*(1+'Country Input'!$C$45)^(Calculations!BU$3-$BH$3)","v":3522.6666666666665},{"$f":"(($U20+($O20)*IF(MOD(BV$3,$I20)=1,1,0)+Parts!$E$91*IF($J20=0,0,IF(MOD(BV$3,$I20)=1,IF(PQS!$R20=\"NO\",1,0),IF(MOD(BV$3,Calculations!$J20)=1,1,0)))+Parts!$E$92*IF(Calculations!$K20=0,0,IF(MOD(BV$3,$I20)=1,0,IF(MOD(BV$3,Calculations!$K20)=1,1,0))))*$AU20)*(1+'Country Input'!$C$45)^(Calculations!BV$3-$BH$3)","v":3522.6666666666665},{"$f":"(($U20+($O20)*IF(MOD(BW$3,$I20)=1,1,0)+Parts!$E$91*IF($J20=0,0,IF(MOD(BW$3,$I20)=1,IF(PQS!$R20=\"NO\",1,0),IF(MOD(BW$3,Calculations!$J20)=1,1,0)))+Parts!$E$92*IF(Calculations!$K20=0,0,IF(MOD(BW$3,$I20)=1,0,IF(MOD(BW$3,Calculations!$K20)=1,1,0))))*$AU20)*(1+'Country Input'!$C$45)^(Calculations!BW$3-$BH$3)","v":3522.6666666666665},{"$f":"(($U20+($O20)*IF(MOD(BX$3,$I20)=1,1,0)+Parts!$E$91*IF($J20=0,0,IF(MOD(BX$3,$I20)=1,IF(PQS!$R20=\"NO\",1,0),IF(MOD(BX$3,Calculations!$J20)=1,1,0)))+Parts!$E$92*IF(Calculations!$K20=0,0,IF(MOD(BX$3,$I20)=1,0,IF(MOD(BX$3,Calculations!$K20)=1,1,0))))*$AU20)*(1+'Country Input'!$C$45)^(Calculations!BX$3-$BH$3)","v":3522.6666666666665},{"$f":"(($U20+($O20)*IF(MOD(BY$3,$I20)=1,1,0)+Parts!$E$91*IF($J20=0,0,IF(MOD(BY$3,$I20)=1,IF(PQS!$R20=\"NO\",1,0),IF(MOD(BY$3,Calculations!$J20)=1,1,0)))+Parts!$E$92*IF(Calculations!$K20=0,0,IF(MOD(BY$3,$I20)=1,0,IF(MOD(BY$3,Calculations!$K20)=1,1,0))))*$AU20)*(1+'Country Input'!$C$45)^(Calculations!BY$3-$BH$3)","v":3522.6666666666665},{"$f":"(($U20+($O20)*IF(MOD(BZ$3,$I20)=1,1,0)+Parts!$E$91*IF($J20=0,0,IF(MOD(BZ$3,$I20)=1,IF(PQS!$R20=\"NO\",1,0),IF(MOD(BZ$3,Calculations!$J20)=1,1,0)))+Parts!$E$92*IF(Calculations!$K20=0,0,IF(MOD(BZ$3,$I20)=1,0,IF(MOD(BZ$3,Calculations!$K20)=1,1,0))))*$AU20)*(1+'Country Input'!$C$45)^(Calculations!BZ$3-$BH$3)","v":3522.6666666666665},{"$f":"(($U20+($O20)*IF(MOD(CA$3,$I20)=1,1,0)+Parts!$E$91*IF($J20=0,0,IF(MOD(CA$3,$I20)=1,IF(PQS!$R20=\"NO\",1,0),IF(MOD(CA$3,Calculations!$J20)=1,1,0)))+Parts!$E$92*IF(Calculations!$K20=0,0,IF(MOD(CA$3,$I20)=1,0,IF(MOD(CA$3,Calculations!$K20)=1,1,0))))*$AU20)*(1+'Country Input'!$C$45)^(Calculations!CA$3-$BH$3)","v":3522.6666666666665},null,"Vestfrost MK 304",24723.135426666668,3522.6666666666665,3522.6666666666665,3522.6666666666665,3522.6666666666665,3522.6666666666665,3522.6666666666665,3522.6666666666665,3522.6666666666665,3522.6666666666665,24723.135426666668,3522.6666666666665,3522.6666666666665,3522.6666666666665,3522.6666666666665,3522.6666666666665,3522.6666666666665,3522.6666666666665,3522.6666666666665,3522.6666666666665,{"$f":"SUM(CD20:INDEX($CD20:$CW20,1,'Total Solution Costs'!$B$2))","v":56427.135426666653},null,"Vestfrost MK 304",{"$f":"SUM($BH20:BH20)","v":24723.135426666668},{"$f":"SUM($BH20:BI20)","v":28245.802093333336},{"$f":"SUM($BH20:BJ20)","v":31768.468760000003},{"$f":"SUM($BH20:BK20)","v":35291.135426666668},{"$f":"SUM($BH20:BL20)","v":38813.802093333332},{"$f":"SUM($BH20:BM20)","v":42336.468759999996},{"$f":"SUM($BH20:BN20)","v":45859.13542666666},{"$f":"SUM($BH20:BO20)","v":49381.802093333325},{"$f":"SUM($BH20:BP20)","v":52904.468759999989},{"$f":"SUM($BH20:BQ20)","v":56427.135426666653},{"$f":"SUM($BH20:BR20)","v":81150.270853333321},{"$f":"SUM($BH20:BS20)","v":84672.937519999992},{"$f":"SUM($BH20:BT20)","v":88195.604186666664},{"$f":"SUM($BH20:BU20)","v":91718.270853333335},{"$f":"SUM($BH20:BV20)","v":95240.937520000007},{"$f":"SUM($BH20:BW20)","v":98763.604186666678},{"$f":"SUM($BH20:BX20)","v":102286.27085333335},{"$f":"SUM($BH20:BY20)","v":105808.93752000002},{"$f":"SUM($BH20:BZ20)","v":109331.60418666669},{"$f":"SUM($BH20:CA20)","v":112854.27085333336}]
[{"$f":"PQS!A21","v":"ILR"},{"$f":"PQS!B21","v":"E003/010"},{"$f":"PQS!E21","v":"MKF 074"},{"$f":"PQS!F21","v":"Vestfrost"},{"$f":"PQS!D21","v":"Vestfrost MKF 074"},{"$f":"VLOOKUP(E21,PQS!$D$5:$K$107,COLUMN(PQS!$I$3)-COLUMN(PQS!$D$3)+1,FALSE)","v":16},{"$f":"VLOOKUP(E21,PQS!$D$5:$K$107,COLUMN(PQS!$J$3)-COLUMN(PQS!$D$3)+1,FALSE)","v":10},{"$f":"VLOOKUP(E21,PQS!$D$5:$K$107,COLUMN(PQS!$G$3)-COLUMN(PQS!$D$3)+1,FALSE)","v":"No"},{"$f":"HLOOKUP(B21,INDIRECT(\"'\"&A21&\"'!$10:$15\"),ROW('Technology template'!$A$11)-ROW('Technology template'!$A$10)+1,FALSE)","v":10},{"$f":"HLOOKUP(B21,INDIRECT(\"'\"&A21&\"'!$10:$15\"),ROW('Technology template'!$A$12)-ROW('Technology template'!$A$10)+1,FALSE)","v":0},{"$f":"HLOOKUP(B21,INDIRECT(\"'\"&A21&\"'!$10:$15\"),ROW('Technology template'!$A$13)-ROW('Technology template'!$A$10)+1,FALSE)","v":0},{"$f":"VLOOKUP(B21,PQS!$B:$Q,MATCH(PQS!$Q$3,PQS!$B$3:$Q$3,0),FALSE)*(1+'Country Input'!$C$47)+HLOOKUP(B21,INDIRECT(\"'\"&A21&\"'!$10:$15\"),ROW('Technology template'!$A$14)-ROW('Technology template'!$A$10)+1,FALSE)*(1+'Country Input'!$C$47)","v":896.89540000000011},{"$f":"HLOOKUP(B21,INDIRECT(\"'\"&A21&\"'!$10:$80\"),MATCH('Technology template'!$A$27,INDIRECT(\"'\"&A21&\"'!$A$10:$A$80\"),0),FALSE)+'Labor and Maintenance '!$E$22","v":748},{"$f":"VLOOKUP(B21,PQS!B:T,MATCH(PQS!$T$3,PQS!$B$3:$T$3,0),FALSE)*(1+'Country Input'!$C$47)","v":255.02315800000002},1899.9185580000001,189.9918558,{"$f":"VLOOKUP(B21,PQS!$B:$AE,COLUMN(PQS!AD19)-1,FALSE)","v":252.58},{"$f":"IFERROR(1/HLOOKUP(B21,INDIRECT(\"'\"&A21&\"'!$10:$80\"),MATCH('Technology template'!$A$31,INDIRECT(\"'\"&A21&\"'!$A$10:$A$80\"),0),FALSE)*HLOOKUP(B21,INDIRECT(\"'\"&A21&\"'!$10:$80\"),MATCH('Technology template'!$A$41,INDIRECT(\"'\"&A21&\"'!$A10:$A$80\"),0),FALSE),0)*TechnicianHourlyWage+IF(A21=\"Solar w Battery\",1/'Labor and Maintenance '!$E$53*'Labor and Maintenance '!$D$53,0)+IF(A21=\"LT passive\", 1/'Labor and Maintenance '!$E$81*'Labor and Maintenance '!$D$81,0)","v":24},{"$f":"IFERROR(1/HLOOKUP(B21,INDIRECT(\"'\"&A21&\"'!$10:$80\"),MATCH('Technology template'!$A$34,INDIRECT(\"'\"&A21&\"'!$A$10:$A$80\"),0),FALSE)*(HLOOKUP(B21,INDIRECT(\"'\"&A21&\"'!$10:$80\"),MATCH('Technology template'!$A$44,INDIRECT(\"'\"&A21&\"'!$A10:$A$80\"),0),FALSE)*TechnicianHourlyWage+RemoteTravelCostPerDay),0)+IFERROR(1/HLOOKUP(B21,INDIRECT(\"'\"&A21&\"'!$10:$80\"),MATCH('Technology template'!$A$35,INDIRECT(\"'\"&A21&\"'!$A$10:$A$80\"),0),FALSE)*(HLOOKUP(B21,INDIRECT(\"'\"&A21&\"'!$10:$80\"),MATCH('Technology template'!$A$45,INDIRECT(\"'\"&A21&\"'!$A10:$A$80\"),0),FALSE)*TechnicianHourlyWage+RemoteTravelCostPerDay),0)+IFERROR(1/HLOOKUP(B21,INDIRECT(\"'\"&A21&\"'!$10:$80\"),MATCH('Technology template'!$A$37,INDIRECT(\"'\"&A21&\"'!$A$10:$A$80\"),0),FALSE)*(HLOOKUP(B21,INDIRECT(\"'\"&A21&\"'!$10:$80\"),MATCH('Technology template'!$A$46,INDIRECT(\"'\"&A21&\"'!$A10:$A$80\"),0),FALSE)*TechnicianHourlyWage+'Labor and Maintenance '!$B$8),0)","v":94.666666666666657},3712.4666666666667,371.24666666666667,561.23852246666661,null,"Vestfrost MKF 074",118.744909875,232.02916666666667,350.77407654166666,null,"Vestfrost MKF 074",11.8744909875,23.202916666666667,35.077407654166663,null,"Vestfrost MKF 074",8,15199.348464000001,29699.733333333334,44899.081797333332,null,"Vestfrost MKF 074",8,94.995927899999998,185.62333333333333,280.6192612333333,null,"Vestfrost MKF 074",{"$f":"IF(F21=0, 'Country Input'!$D$7, ROUNDUP(LitersPerFacility/F21,0)*'Country Input'!$D$7)","v":10},18999.185580000001,3712.4666666666667,22711.652246666668,null,"Vestfrost MKF 074",{"$f":"ROUNDUP(LitersPerFacility/F21,0)*'Country Input'!$D$7*ROUNDUP('Total Solution Costs'!$B$2/Calculations!I21,0)","v":10},118.74490987499999,23.202916666666667,141.94782654166664,null,null,"Vestfrost MKF 074",{"$f":"(($U21+($O21)*IF(MOD(BH$3,$I21)=1,1,0)+Parts!$E$91*IF($J21=0,0,IF(MOD(BH$3,$I21)=1,IF(PQS!$R21=\"NO\",1,0),IF(MOD(BH$3,Calculations!$J21)=1,1,0)))+Parts!$E$92*IF(Calculations!$K21=0,0,IF(MOD(BH$3,$I21)=1,0,IF(MOD(BH$3,Calculations!$K21)=1,1,0))))*$AU21)*(1+'Country Input'!$C$45)^(Calculations!BH$3-$BH$3)+TrainingCost","v":22711.652246666668},{"$f":"(($U21+($O21)*IF(MOD(BI$3,$I21)=1,1,0)+Parts!$E$91*IF($J21=0,0,IF(MOD(BI$3,$I21)=1,IF(PQS!$R21=\"NO\",1,0),IF(MOD(BI$3,Calculations!$J21)=1,1,0)))+Parts!$E$92*IF(Calculations!$K21=0,0,IF(MOD(BI$3,$I21)=1,0,IF(MOD(BI$3,Calculations!$K21)=1,1,0))))*$AU21)*(1+'Country Input'!$C$45)^(Calculations!BI$3-$BH$3)","v":3712.4666666666667},{"$f":"(($U21+($O21)*IF(MOD(BJ$3,$I21)=1,1,0)+Parts!$E$91*IF($J21=0,0,IF(MOD(BJ$3,$I21)=1,IF(PQS!$R21=\"NO\",1,0),IF(MOD(BJ$3,Calculations!$J21)=1,1,0)))+Parts!$E$92*IF(Calculations!$K21=0,0,IF(MOD(BJ$3,$I21)=1,0,IF(MOD(BJ$3,Calculations!$K21)=1,1,0))))*$AU21)*(1+'Country Input'!$C$45)^(Calculations!BJ$3-$BH$3)","v":3712.4666666666667},{"$f":"(($U21+($O21)*IF(MOD(BK$3,$I21)=1,1,0)+Parts!$E$91*IF($J21=0,0,IF(MOD(BK$3,$I21)=1,IF(PQS!$R21=\"NO\",1,0),IF(MOD(BK$3,Calculations!$J21)=1,1,0)))+Parts!$E$92*IF(Calculations!$K21=0,0,IF(MOD(BK$3,$I21)=1,0,IF(MOD(BK$3,Calculations!$K21)=1,1,0))))*$AU21)*(1+'Country Input'!$C$45)^(Calculations!BK$3-$BH$3)","v":3712.4666666666667},{"$f":"(($U21+($O21)*IF(MOD(BL$3,$I21)=1,1,0)+Parts!$E$91*IF($J21=0,0,IF(MOD(BL$3,$I21)=1,IF(PQS!$R21=\"NO\",1,0),IF(MOD(BL$3,Calculations!$J21)=1,1,0)))+Parts!$E$92*IF(Calculations!$K21=0,0,IF(MOD(BL$3,$I21)=1,0,IF(MOD(BL$3,Calculations!$K21)=1,1,0))))*$AU21)*(1+'Country Input'!$C$45)^(Calculations!BL$3-$BH$3)","v":3712.4666666666667},{"$f":"(($U21+($O21)*IF(MOD(BM$3,$I21)=1,1,0)+Parts!$E$91*IF($J21=0,0,IF(MOD(BM$3,$I21)=1,IF(PQS!$R21=\"NO\",1,0),IF(MOD(BM$3,Calculations!$J21)=1,1,0)))+Parts!$E$92*IF(Calculations!$K21=0,0,IF(MOD(BM$3,$I21)=1,0,IF(MOD(BM$3,Calculations!$K21)=1,1,0))))*$AU21)*(1+'Country Input'!$C$45)^(Calculations!BM$3-$BH$3)","v":3712.4666666666667},{"$f":"(($U21+($O21)*IF(MOD(BN$3,$I21)=1,1,0)+Parts!$E$91*IF($J21=0,0,IF(MOD(BN$3,$I21)=1,IF(PQS!$R21=\"NO\",1,0),IF(MOD(BN$3,Calculations!$J21)=1,1,0)))+Parts!$E$92*IF(Calculations!$K21=0,0,IF(MOD(BN$3,$I21)=1,0,IF(MOD(BN$3,Calculations!$K21)=1,1,0))))*$AU21)*(1+'Country Input'!$C$45)^(Calculations!BN$3-$BH$3)","v":3712.4666666666667},{"$f":"(($U21+($O21)*IF(MOD(BO$3,$I21)=1,1,0)+Parts!$E$91*IF($J21=0,0,IF(MOD(BO$3,$I21)=1,IF(PQS!$R21=\"NO\",1,0),IF(MOD(BO$3,Calculations!$J21)=1,1,0)))+Parts!$E$92*IF(Calculations!$K21=0,0,IF(MOD(BO$3,$I21)=1,0,IF(MOD(BO$3,Calculations!$K21)=1,1,0))))*$AU21)*(1+'Country Input'!$C$45)^(Calculations!BO$3-$BH$3)","v":3712.4666666666667},{"$f":"(($U21+($O21)*IF(MOD(BP$3,$I21)=1,1,0)+Parts!$E$91*IF($J21=0,0,IF(MOD(BP$3,$I21)=1,IF(PQS!$R21=\"NO\",1,0),IF(MOD(BP$3,Calculations!$J21)=1,1,0)))+Parts!$E$92*IF(Calculations!$K21=0,0,IF(MOD(BP$3,$I21)=1,0,IF(MOD(BP$3,Calculations!$K21)=1,1,0))))*$AU21)*(1+'Country Input'!$C$45)^(Calculations!BP$3-$BH$3)","v":3712.4666666666667},{"$f":"(($U21+($O21)*IF(MOD(BQ$3,$I21)=1,1,0)+Parts!$E$91*IF($J21=0,0,IF(MOD(BQ$3,$I21)=1,IF(PQS!$R21=\"NO\",1,0),IF(MOD(BQ$3,Calculations!$J21)=1,1,0)))+Parts!$E$92*IF(Calculations!$K21=0,0,IF(MOD(BQ$3,$I21)=1,0,IF(MOD(BQ$3,Calculations!$K21)=1,1,0))))*$AU21)*(1+'Country Input'!$C$45)^(Calculations!BQ$3-$BH$3)","v":3712.4666666666667},{"$f":"(($U21+($O21)*IF(MOD(BR$3,$I21)=1,1,0)+Parts!$E$91*IF($J21=0,0,IF(MOD(BR$3,$I21)=1,IF(PQS!$R21=\"NO\",1,0),IF(MOD(BR$3,Calculations!$J21)=1,1,0)))+Parts!$E$92*IF(Calculations!$K21=0,0,IF(MOD(BR$3,$I21)=1,0,IF(MOD(BR$3,Calculations!$K21)=1,1,0))))*$AU21)*(1+'Country Input'!$C$45)^(Calculations!BR$3-$BH$3)","v":22711.652246666668},{"$f":"(($U21+($O21)*IF(MOD(BS$3,$I21)=1,1,0)+Parts!$E$91*IF($J21=0,0,IF(MOD(BS$3,$I21)=1,IF(PQS!$R21=\"NO\",1,0),IF(MOD(BS$3,Calculations!$J21)=1,1,0)))+Parts!$E$92*IF(Calculations!$K21=0,0,IF(MOD(BS$3,$I21)=1,0,IF(MOD(BS$3,Calculations!$K21)=1,1,0))))*$AU21)*(1+'Country Input'!$C$45)^(Calculations!BS$3-$BH$3)","v":3712.4666666666667},{"$f":"(($U21+($O21)*IF(MOD(BT$3,$I21)=1,1,0)+Parts!$E$91*IF($J21=0,0,IF(MOD(BT$3,$I21)=1,IF(PQS!$R21=\"NO\",1,0),IF(MOD(BT$3,Calculations!$J21)=1,1,0)))+Parts!$E$92*IF(Calculations!$K21=0,0,IF(MOD(BT$3,$I21)=1,0,IF(MOD(BT$3,Calculations!$K21)=1,1,0))))*$AU21)*(1+'Country Input'!$C$45)^(Calculations!BT$3-$BH$3)","v":3712.4666666666667},{"$f":"(($U21+($O21)*IF(MOD(BU$3,$I21)=1,1,0)+Parts!$E$91*IF($J21=0,0,IF(MOD(BU$3,$I21)=1,IF(PQS!$R21=\"NO\",1,0),IF(MOD(BU$3,Calculations!$J21)=1,1,0)))+Parts!$E$92*IF(Calculations!$K21=0,0,IF(MOD(BU$3,$I21)=1,0,IF(MOD(BU$3,Calculations!$K21)=1,1,0))))*$AU21)*(1+'Country Input'!$C$45)^(Calculations!BU$3-$BH$3)","v":3712.4666666666667},{"$f":"(($U21+($O21)*IF(MOD(BV$3,$I21)=1,1,0)+Parts!$E$91*IF($J21=0,0,IF(MOD(BV$3,$I21)=1,IF(PQS!$R21=\"NO\",1,0),IF(MOD(BV$3,Calculations!$J21)=1,1,0)))+Parts!$E$92*IF(Calculations!$K21=0,0,IF(MOD(BV$3,$I21)=1,0,IF(MOD(BV$3,Calculations!$K21)=1,1,0))))*$AU21)*(1+'Country Input'!$C$45)^(Calculations!BV$3-$BH$3)","v":3712.4666666666667},{"$f":"(($U21+($O21)*IF(MOD(BW$3,$I21)=1,1,0)+Parts!$E$91*IF($J21=0,0,IF(MOD(BW$3,$I21)=1,IF(PQS!$R21=\"NO\",1,0),IF(MOD(BW$3,Calculations!$J21)=1,1,0)))+Parts!$E$92*IF(Calculations!$K21=0,0,IF(MOD(BW$3,$I21)=1,0,IF(MOD(BW$3,Calculations!$K21)=1,1,0))))*$AU21)*(1+'Country Input'!$C$45)^(Calculations!BW$3-$BH$3)","v":3712.4666666666667},{"$f":"(($U21+($O21)*IF(MOD(BX$3,$I21)=1,1,0)+Parts!$E$91*IF($J21=0,0,IF(MOD(BX$3,$I21)=1,IF(PQS!$R21=\"NO\",1,0),IF(MOD(BX$3,Calculations!$J21)=1,1,0)))+Parts!$E$92*IF(Calculations!$K21=0,0,IF(MOD(BX$3,$I21)=1,0,IF(MOD(BX$3,Calculations!$K21)=1,1,0))))*$AU21)*(1+'Country Input'!$C$45)^(Calculations!BX$3-$BH$3)","v":3712.4666666666667},{"$f":"(($U21+($O21)*IF(MOD(BY$3,$I21)=1,1,0)+Parts!$E$91*IF($J21=0,0,IF(MOD(BY$3,$I21)=1,IF(PQS!$R21=\"NO\",1,0),IF(MOD(BY$3,Calculations!$J21)=1,1,0)))+Parts!$E$92*IF(Calculations!$K21=0,0,IF(MOD(BY$3,$I21)=1,0,IF(MOD(BY$3,Calculations!$K21)=1,1,0))))*$AU21)*(1+'Country Input'!$C$45)^(Calculations!BY$3-$BH$3)","v":3712.4666666666667},{"$f":"(($U21+($O21)*IF(MOD(BZ$3,$I21)=1,1,0)+Parts!$E$91*IF($J21=0,0,IF(MOD(BZ$3,$I21)=1,IF(PQS!$R21=\"NO\",1,0),IF(MOD(BZ$3,Calculations!$J21)=1,1,0)))+Parts!$E$92*IF(Calculations!$K21=0,0,IF(MOD(BZ$3,$I21)=1,0,IF(MOD(BZ$3,Calculations!$K21)=1,1,0))))*$AU21)*(1+'Country Input'!$C$45)^(Calculations!BZ$3-$BH$3)","v":3712.4666666666667},{"$f":"(($U21+($O21)*IF(MOD(CA$3,$I21)=1,1,0)+Parts!$E$91*IF($J21=0,0,IF(MOD(CA$3,$I21)=1,IF(PQS!$R21=\"NO\",1,0),IF(MOD(CA$3,Calculations!$J21)=1,1,0)))+Parts!$E$92*IF(Calculations!$K21=0,0,IF(MOD(CA$3,$I21)=1,0,IF(MOD(CA$3,Calculations!$K21)=1,1,0))))*$AU21)*(1+'Country Input'!$C$45)^(Calculations!CA$3-$BH$3)","v":3712.4666666666667},null,"Vestfrost MKF 074",22711.652246666668,3712.4666666666667,3712.4666666666667,3712.4666666666667,3712.4666666666667,3712.4666666666667,3712.4666666666667,3712.4666666666667,3712.4666666666667,3712.4666666666667,22711.652246666668,3712.4666666666667,3712.4666666666667,3712.4666666666667,3712.4666666666667,3712.4666666666667,3712.4666666666667,3712.4666666666667,3712.4666666666667,3712.4666666666667,{"$f":"SUM(CD21:INDEX($CD21:$CW21,1,'Total Solution Costs'!$B$2))","v":56123.852246666669},null,"Vestfrost MKF 074",{"$f":"SUM($BH21:BH21)","v":22711.652246666668},{"$f":"SUM($BH21:BI21)","v":26424.118913333336},{"$f":"SUM($BH21:BJ21)","v":30136.585580000003},{"$f":"SUM($BH21:BK21)","v":33849.052246666666},{"$f":"SUM($BH21:BL21)","v":37561.518913333333},{"$f":"SUM($BH21:BM21)","v":41273.98558},{"$f":"SUM($BH21:BN21)","v":44986.452246666668},{"$f":"SUM($BH21:BO21)","v":48698.918913333335},{"$f":"SUM($BH21:BP21)","v":52411.385580000002},{"$f":"SUM($BH21:BQ21)","v":56123.852246666669},{"$f":"SUM($BH21:BR21)","v":78835.504493333341},{"$f":"SUM($BH21:BS21)","v":82547.971160000001},{"$f":"SUM($BH21:BT21)","v":86260.437826666661},{"$f":"SUM($BH21:BU21)","v":89972.904493333321},{"$f":"SUM($BH21:BV21)","v":93685.371159999981},{"$f":"SUM($BH21:BW21)","v":97397.83782666664},{"$f":"SUM($BH21:BX21)","v":101110.3044933333},{"$f":"SUM($BH21:BY21)","v":104822.77115999996},{"$f":"SUM($BH21:BZ21)","v":108535.23782666662},{"$f":"SUM($BH21:CA21)","v":112247.70449333328}]
[{"$f":"PQS!A22","v":"ILR"},{"$f":"PQS!B22","v":"E003/011"},{"$f":"PQS!E22","v":"MK 204"},{"$f":"PQS!F22","v":"Vestfrost"},{"$f":"PQS!D22","v":"Vestfrost MK 204"},{"$f":"VLOOKUP(E22,PQS!$D$5:$K$107,COLUMN(PQS!$I$3)-COLUMN(PQS!$D$3)+1,FALSE)","v":75},{"$f":"VLOOKUP(E22,PQS!$D$5:$K$107,COLUMN(PQS!$J$3)-COLUMN(PQS!$D$3)+1,FALSE)","v":0},{"$f":"VLOOKUP(E22,PQS!$D$5:$K$107,COLUMN(PQS!$G$3)-COLUMN(PQS!$D$3)+1,FALSE)","v":"No"},{"$f":"HLOOKUP(B22,INDIRECT(\"'\"&A22&\"'!$10:$15\"),ROW('Technology template'!$A$11)-ROW('Technology template'!$A$10)+1,FALSE)","v":10},{"$f":"HLOOKUP(B22,INDIRECT(\"'\"&A22&\"'!$10:$15\"),ROW('Technology template'!$A$12)-ROW('Technology template'!$A$10)+1,FALSE)","v":0},{"$f":"HLOOKUP(B22,INDIRECT(\"'\"&A22&\"'!$10:$15\"),ROW('Technology template'!$A$13)-ROW('Technology template'!$A$10)+1,FALSE)","v":0},{"$f":"VLOOKUP(B22,PQS!$B:$Q,MATCH(PQS!$Q$3,PQS!$B$3:$Q$3,0),FALSE)*(1+'Country Input'!$C$47)+HLOOKUP(B22,INDIRECT(\"'\"&A22&\"'!$10:$15\"),ROW('Technology template'!$A$14)-ROW('Technology template'!$A$10)+1,FALSE)*(1+'Country Input'!$C$47)","v":786.13970000000006},{"$f":"HLOOKUP(B22,INDIRECT(\"'\"&A22&\"'!$10:$80\"),MATCH('Technology template'!$A$27,INDIRECT(\"'\"&A22&\"'!$A$10:$A$80\"),0),FALSE)+'Labor and Maintenance '!$E$22","v":748},{"$f":"VLOOKUP(B22,PQS!B:T,MATCH(PQS!$T$3,PQS!$B$3:$T$3,0),FALSE)*(1+'Country Input'!$C$47)","v":310.31744100000003},1844.4571410000003,184.44571410000003,{"$f":"VLOOKUP(B22,PQS!$B:$AE,COLUMN(PQS!AD20)-1,FALSE)","v":137.97},{"$f":"IFERROR(1/HLOOKUP(B22,INDIRECT(\"'\"&A22&\"'!$10:$80\"),MATCH('Technology template'!$A$31,INDIRECT(\"'\"&A22&\"'!$A$10:$A$80\"),0),FALSE)*HLOOKUP(B22,INDIRECT(\"'\"&A22&\"'!$10:$80\"),MATCH('Technology template'!$A$41,INDIRECT(\"'\"&A22&\"'!$A10:$A$80\"),0),FALSE),0)*TechnicianHourlyWage+IF(A22=\"Solar w Battery\",1/'Labor and Maintenance '!$E$53*'Labor and Maintenance '!$D$53,0)+IF(A22=\"LT passive\", 1/'Labor and Maintenance '!$E$81*'Labor and Maintenance '!$D$81,0)","v":24},{"$f":"IFERROR(1/HLOOKUP(B22,INDIRECT(\"'\"&A22&\"'!$10:$80\"),MATCH('Technology template'!$A$34,INDIRECT(\"'\"&A22&\"'!$A$10:$A$80\"),0),FALSE)*(HLOOKUP(B22,INDIRECT(\"'\"&A22&\"'!$10:$80\"),MATCH('Technology template'!$A$44,INDIRECT(\"'\"&A22&\"'!$A10:$A$80\"),0),FALSE)*TechnicianHourlyWage+RemoteTravelCostPerDay),0)+IFERROR(1/HLOOKUP(B22,INDIRECT(\"'\"&A22&\"'!$10:$80\"),MATCH('Technology template'!$A$35,INDIRECT(\"'\"&A22&\"'!$A$10:$A$80\"),0),FALSE)*(HLOOKUP(B22,INDIRECT(\"'\"&A22&\"'!$10:$80\"),MATCH('Technology template'!$A$45,INDIRECT(\"'\"&A22&\"'!$A10:$A$80\"),0),FALSE)*TechnicianHourlyWage+RemoteTravelCostPerDay),0)+IFERROR(1/HLOOKUP(B22,INDIRECT(\"'\"&A22&\"'!$10:$80\"),MATCH('Technology template'!$A$37,INDIRECT(\"'\"&A22&\"'!$A$10:$A$80\"),0),FALSE)*(HLOOKUP(B22,INDIRECT(\"'\"&A22&\"'!$10:$80\"),MATCH('Technology template'!$A$46,INDIRECT(\"'\"&A22&\"'!$A10:$A$80\"),0),FALSE)*TechnicianHourlyWage+'Labor and Maintenance '!$B$8),0)","v":94.666666666666657},2566.3666666666668,256.63666666666666,441.08238076666669,null,"Vestfrost MK 204",24.592761880000005,34.218222222222224,58.810984102222228,null,"Vestfrost MK 204",2.4592761880000005,3.4218222222222221,5.8810984102222221,null,"Vestfrost MK 204",2,3688.9142820000006,5132.7333333333336,8821.6476153333351,null,"Vestfrost MK 204",2,4.9185523760000009,6.8436444444444442,11.762196820444444,null,"Vestfrost MK 204",{"$f":"IF(F22=0, 'Country Input'!$D$7, ROUNDUP(LitersPerFacility/F22,0)*'Country Input'!$D$7)","v":10},18444.571410000004,2566.3666666666668,21010.938076666673,null,"Vestfrost MK 204",{"$f":"ROUNDUP(LitersPerFacility/F22,0)*'Country Input'!$D$7*ROUNDUP('Total Solution Costs'!$B$2/Calculations!I22,0)","v":10},24.592761880000005,3.4218222222222225,28.014584102222226,null,null,"Vestfrost MK 204",{"$f":"(($U22+($O22)*IF(MOD(BH$3,$I22)=1,1,0)+Parts!$E$91*IF($J22=0,0,IF(MOD(BH$3,$I22)=1,IF(PQS!$R22=\"NO\",1,0),IF(MOD(BH$3,Calculations!$J22)=1,1,0)))+Parts!$E$92*IF(Calculations!$K22=0,0,IF(MOD(BH$3,$I22)=1,0,IF(MOD(BH$3,Calculations!$K22)=1,1,0))))*$AU22)*(1+'Country Input'!$C$45)^(Calculations!BH$3-$BH$3)+TrainingCost","v":21010.938076666673},{"$f":"(($U22+($O22)*IF(MOD(BI$3,$I22)=1,1,0)+Parts!$E$91*IF($J22=0,0,IF(MOD(BI$3,$I22)=1,IF(PQS!$R22=\"NO\",1,0),IF(MOD(BI$3,Calculations!$J22)=1,1,0)))+Parts!$E$92*IF(Calculations!$K22=0,0,IF(MOD(BI$3,$I22)=1,0,IF(MOD(BI$3,Calculations!$K22)=1,1,0))))*$AU22)*(1+'Country Input'!$C$45)^(Calculations!BI$3-$BH$3)","v":2566.3666666666668},{"$f":"(($U22+($O22)*IF(MOD(BJ$3,$I22)=1,1,0)+Parts!$E$91*IF($J22=0,0,IF(MOD(BJ$3,$I22)=1,IF(PQS!$R22=\"NO\",1,0),IF(MOD(BJ$3,Calculations!$J22)=1,1,0)))+Parts!$E$92*IF(Calculations!$K22=0,0,IF(MOD(BJ$3,$I22)=1,0,IF(MOD(BJ$3,Calculations!$K22)=1,1,0))))*$AU22)*(1+'Country Input'!$C$45)^(Calculations!BJ$3-$BH$3)","v":2566.3666666666668},{"$f":"(($U22+($O22)*IF(MOD(BK$3,$I22)=1,1,0)+Parts!$E$91*IF($J22=0,0,IF(MOD(BK$3,$I22)=1,IF(PQS!$R22=\"NO\",1,0),IF(MOD(BK$3,Calculations!$J22)=1,1,0)))+Parts!$E$92*IF(Calculations!$K22=0,0,IF(MOD(BK$3,$I22)=1,0,IF(MOD(BK$3,Calculations!$K22)=1,1,0))))*$AU22)*(1+'Country Input'!$C$45)^(Calculations!BK$3-$BH$3)","v":2566.3666666666668},{"$f":"(($U22+($O22)*IF(MOD(BL$3,$I22)=1,1,0)+Parts!$E$91*IF($J22=0,0,IF(MOD(BL$3,$I22)=1,IF(PQS!$R22=\"NO\",1,0),IF(MOD(BL$3,Calculations!$J22)=1,1,0)))+Parts!$E$92*IF(Calculations!$K22=0,0,IF(MOD(BL$3,$I22)=1,0,IF(MOD(BL$3,Calculations!$K22)=1,1,0))))*$AU22)*(1+'Country Input'!$C$45)^(Calculations!BL$3-$BH$3)","v":2566.3666666666668},{"$f":"(($U22+($O22)*IF(MOD(BM$3,$I22)=1,1,0)+Parts!$E$91*IF($J22=0,0,IF(MOD(BM$3,$I22)=1,IF(PQS!$R22=\"NO\",1,0),IF(MOD(BM$3,Calculations!$J22)=1,1,0)))+Parts!$E$92*IF(Calculations!$K22=0,0,IF(MOD(BM$3,$I22)=1,0,IF(MOD(BM$3,Calculations!$K22)=1,1,0))))*$AU22)*(1+'Country Input'!$C$45)^(Calculations!BM$3-$BH$3)","v":2566.3666666666668},{"$f":"(($U22+($O22)*IF(MOD(BN$3,$I22)=1,1,0)+Parts!$E$91*IF($J22=0,0,IF(MOD(BN$3,$I22)=1,IF(PQS!$R22=\"NO\",1,0),IF(MOD(BN$3,Calculations!$J22)=1,1,0)))+Parts!$E$92*IF(Calculations!$K22=0,0,IF(MOD(BN$3,$I22)=1,0,IF(MOD(BN$3,Calculations!$K22)=1,1,0))))*$AU22)*(1+'Country Input'!$C$45)^(Calculations!BN$3-$BH$3)","v":2566.3666666666668},{"$f":"(($U22+($O22)*IF(MOD(BO$3,$I22)=1,1,0)+Parts!$E$91*IF($J22=0,0,IF(MOD(BO$3,$I22)=1,IF(PQS!$R22=\"NO\",1,0),IF(MOD(BO$3,Calculations!$J22)=1,1,0)))+Parts!$E$92*IF(Calculations!$K22=0,0,IF(MOD(BO$3,$I22)=1,0,IF(MOD(BO$3,Calculations!$K22)=1,1,0))))*$AU22)*(1+'Country Input'!$C$45)^(Calculations!BO$3-$BH$3)","v":2566.3666666666668},{"$f":"(($U22+($O22)*IF(MOD(BP$3,$I22)=1,1,0)+Parts!$E$91*IF($J22=0,0,IF(MOD(BP$3,$I22)=1,IF(PQS!$R22=\"NO\",1,0),IF(MOD(BP$3,Calculations!$J22)=1,1,0)))+Parts!$E$92*IF(Calculations!$K22=0,0,IF(MOD(BP$3,$I22)=1,0,IF(MOD(BP$3,Calculations!$K22)=1,1,0))))*$AU22)*(1+'Country Input'!$C$45)^(Calculations!BP$3-$BH$3)","v":2566.3666666666668},{"$f":"(($U22+($O22)*IF(MOD(BQ$3,$I22)=1,1,0)+Parts!$E$91*IF($J22=0,0,IF(MOD(BQ$3,$I22)=1,IF(PQS!$R22=\"NO\",1,0),IF(MOD(BQ$3,Calculations!$J22)=1,1,0)))+Parts!$E$92*IF(Calculations!$K22=0,0,IF(MOD(BQ$3,$I22)=1,0,IF(MOD(BQ$3,Calculations!$K22)=1,1,0))))*$AU22)*(1+'Country Input'!$C$45)^(Calculations!BQ$3-$BH$3)","v":2566.3666666666668},{"$f":"(($U22+($O22)*IF(MOD(BR$3,$I22)=1,1,0)+Parts!$E$91*IF($J22=0,0,IF(MOD(BR$3,$I22)=1,IF(PQS!$R22=\"NO\",1,0),IF(MOD(BR$3,Calculations!$J22)=1,1,0)))+Parts!$E$92*IF(Calculations!$K22=0,0,IF(MOD(BR$3,$I22)=1,0,IF(MOD(BR$3,Calculations!$K22)=1,1,0))))*$AU22)*(1+'Country Input'!$C$45)^(Calculations!BR$3-$BH$3)","v":21010.938076666673},{"$f":"(($U22+($O22)*IF(MOD(BS$3,$I22)=1,1,0)+Parts!$E$91*IF($J22=0,0,IF(MOD(BS$3,$I22)=1,IF(PQS!$R22=\"NO\",1,0),IF(MOD(BS$3,Calculations!$J22)=1,1,0)))+Parts!$E$92*IF(Calculations!$K22=0,0,IF(MOD(BS$3,$I22)=1,0,IF(MOD(BS$3,Calculations!$K22)=1,1,0))))*$AU22)*(1+'Country Input'!$C$45)^(Calculations!BS$3-$BH$3)","v":2566.3666666666668},{"$f":"(($U22+($O22)*IF(MOD(BT$3,$I22)=1,1,0)+Parts!$E$91*IF($J22=0,0,IF(MOD(BT$3,$I22)=1,IF(PQS!$R22=\"NO\",1,0),IF(MOD(BT$3,Calculations!$J22)=1,1,0)))+Parts!$E$92*IF(Calculations!$K22=0,0,IF(MOD(BT$3,$I22)=1,0,IF(MOD(BT$3,Calculations!$K22)=1,1,0))))*$AU22)*(1+'Country Input'!$C$45)^(Calculations!BT$3-$BH$3)","v":2566.3666666666668},{"$f":"(($U22+($O22)*IF(MOD(BU$3,$I22)=1,1,0)+Parts!$E$91*IF($J22=0,0,IF(MOD(BU$3,$I22)=1,IF(PQS!$R22=\"NO\",1,0),IF(MOD(BU$3,Calculations!$J22)=1,1,0)))+Parts!$E$92*IF(Calculations!$K22=0,0,IF(MOD(BU$3,$I22)=1,0,IF(MOD(BU$3,Calculations!$K22)=1,1,0))))*$AU22)*(1+'Country Input'!$C$45)^(Calculations!BU$3-$BH$3)","v":2566.3666666666668},{"$f":"(($U22+($O22)*IF(MOD(BV$3,$I22)=1,1,0)+Parts!$E$91*IF($J22=0,0,IF(MOD(BV$3,$I22)=1,IF(PQS!$R22=\"NO\",1,0),IF(MOD(BV$3,Calculations!$J22)=1,1,0)))+Parts!$E$92*IF(Calculations!$K22=0,0,IF(MOD(BV$3,$I22)=1,0,IF(MOD(BV$3,Calculations!$K22)=1,1,0))))*$AU22)*(1+'Country Input'!$C$45)^(Calculations!BV$3-$BH$3)","v":2566.3666666666668},{"$f":"(($U22+($O22)*IF(MOD(BW$3,$I22)=1,1,0)+Parts!$E$91*IF($J22=0,0,IF(MOD(BW$3,$I22)=1,IF(PQS!$R22=\"NO\",1,0),IF(MOD(BW$3,Calculations!$J22)=1,1,0)))+Parts!$E$92*IF(Calculations!$K22=0,0,IF(MOD(BW$3,$I22)=1,0,IF(MOD(BW$3,Calculations!$K22)=1,1,0))))*$AU22)*(1+'Country Input'!$C$45)^(Calculations!BW$3-$BH$3)","v":2566.3666666666668},{"$f":"(($U22+($O22)*IF(MOD(BX$3,$I22)=1,1,0)+Parts!$E$91*IF($J22=0,0,IF(MOD(BX$3,$I22)=1,IF(PQS!$R22=\"NO\",1,0),IF(MOD(BX$3,Calculations!$J22)=1,1,0)))+Parts!$E$92*IF(Calculations!$K22=0,0,IF(MOD(BX$3,$I22)=1,0,IF(MOD(BX$3,Calculations!$K22)=1,1,0))))*$AU22)*(1+'Country Input'!$C$45)^(Calculations!BX$3-$BH$3)","v":2566.3666666666668},{"$f":"(($U22+($O22)*IF(MOD(BY$3,$I22)=1,1,0)+Parts!$E$91*IF($J22=0,0,IF(MOD(BY$3,$I22)=1,IF(PQS!$R22=\"NO\",1,0),IF(MOD(BY$3,Calculations!$J22)=1,1,0)))+Parts!$E$92*IF(Calculations!$K22=0,0,IF(MOD(BY$3,$I22)=1,0,IF(MOD(BY$3,Calculations!$K22)=1,1,0))))*$AU22)*(1+'Country Input'!$C$45)^(Calculations!BY$3-$BH$3)","v":2566.3666666666668},{"$f":"(($U22+($O22)*IF(MOD(BZ$3,$I22)=1,1,0)+Parts!$E$91*IF($J22=0,0,IF(MOD(BZ$3,$I22)=1,IF(PQS!$R22=\"NO\",1,0),IF(MOD(BZ$3,Calculations!$J22)=1,1,0)))+Parts!$E$92*IF(Calculations!$K22=0,0,IF(MOD(BZ$3,$I22)=1,0,IF(MOD(BZ$3,Calculations!$K22)=1,1,0))))*$AU22)*(1+'Country Input'!$C$45)^(Calculations!BZ$3-$BH$3)","v":2566.3666666666668},{"$f":"(($U22+($O22)*IF(MOD(CA$3,$I22)=1,1,0)+Parts!$E$91*IF($J22=0,0,IF(MOD(CA$3,$I22)=1,IF(PQS!$R22=\"NO\",1,0),IF(MOD(CA$3,Calculations!$J22)=1,1,0)))+Parts!$E$92*IF(Calculations!$K22=0,0,IF(MOD(CA$3,$I22)=1,0,IF(MOD(CA$3,Calculations!$K22)=1,1,0))))*$AU22)*(1+'Country Input'!$C$45)^(Calculations!CA$3-$BH$3)","v":2566.3666666666668},null,"Vestfrost MK 204",21010.938076666673,2566.3666666666668,2566.3666666666668,2566.3666666666668,2566.3666666666668,2566.3666666666668,2566.3666666666668,2566.3666666666668,2566.3666666666668,2566.3666666666668,21010.938076666673,2566.3666666666668,2566.3666666666668,2566.3666666666668,2566.3666666666668,2566.3666666666668,2566.3666666666668,2566.3666666666668,2566.3666666666668,2566.3666666666668,{"$f":"SUM(CD22:INDEX($CD22:$CW22,1,'Total Solution Costs'!$B$2))","v":44108.23807666669},null,"Vestfrost MK 204",{"$f":"SUM($BH22:BH22)","v":21010.938076666673},{"$f":"SUM($BH22:BI22)","v":23577.304743333341},{"$f":"SUM($BH22:BJ22)","v":26143.67141000001},{"$f":"SUM($BH22:BK22)","v":28710.038076666679},{"$f":"SUM($BH22:BL22)","v":31276.404743333347},{"$f":"SUM($BH22:BM22)","v":33842.771410000016},{"$f":"SUM($BH22:BN22)","v":36409.138076666684},{"$f":"SUM($BH22:BO22)","v":38975.504743333353},{"$f":"SUM($BH22:BP22)","v":41541.871410000022},{"$f":"SUM($BH22:BQ22)","v":44108.23807666669},{"$f":"SUM($BH22:BR22)","v":65119.176153333363},{"$f":"SUM($BH22:BS22)","v":67685.542820000031},{"$f":"SUM($BH22:BT22)","v":70251.9094866667},{"$f":"SUM($BH22:BU22)","v":72818.276153333369},{"$f":"SUM($BH22:BV22)","v":75384.642820000037},{"$f":"SUM($BH22:BW22)","v":77951.009486666706},{"$f":"SUM($BH22:BX22)","v":80517.376153333375},{"$f":"SUM($BH22:BY22)","v":83083.742820000043},{"$f":"SUM($BH22:BZ22)","v":85650.109486666712},{"$f":"SUM($BH22:CA22)","v":88216.47615333338}]
[{"$f":"PQS!A23","v":"ILR"},{"$f":"PQS!B23","v":"E003/012"},{"$f":"PQS!E23","v":"MK 404"},{"$f":"PQS!F23","v":"Vestfrost"},{"$f":"PQS!D23","v":"Vestfrost MK 404"},{"$f":"VLOOKUP(E23,PQS!$D$5:$K$107,COLUMN(PQS!$I$3)-COLUMN(PQS!$D$3)+1,FALSE)","v":135},{"$f":"VLOOKUP(E23,PQS!$D$5:$K$107,COLUMN(PQS!$J$3)-COLUMN(PQS!$D$3)+1,FALSE)","v":0},{"$f":"VLOOKUP(E23,PQS!$D$5:$K$107,COLUMN(PQS!$G$3)-COLUMN(PQS!$D$3)+1,FALSE)","v":"No"},{"$f":"HLOOKUP(B23,INDIRECT(\"'\"&A23&\"'!$10:$15\"),ROW('Technology template'!$A$11)-ROW('Technology template'!$A$10)+1,FALSE)","v":10},{"$f":"HLOOKUP(B23,INDIRECT(\"'\"&A23&\"'!$10:$15\"),ROW('Technology template'!$A$12)-ROW('Technology template'!$A$10)+1,FALSE)","v":0},{"$f":"HLOOKUP(B23,INDIRECT(\"'\"&A23&\"'!$10:$15\"),ROW('Technology template'!$A$13)-ROW('Technology template'!$A$10)+1,FALSE)","v":0},{"$f":"VLOOKUP(B23,PQS!$B:$Q,MATCH(PQS!$Q$3,PQS!$B$3:$Q$3,0),FALSE)*(1+'Country Input'!$C$47)+HLOOKUP(B23,INDIRECT(\"'\"&A23&\"'!$10:$15\"),ROW('Technology template'!$A$14)-ROW('Technology template'!$A$10)+1,FALSE)*(1+'Country Input'!$C$47)","v":1118.6529},{"$f":"HLOOKUP(B23,INDIRECT(\"'\"&A23&\"'!$10:$80\"),MATCH('Technology template'!$A$27,INDIRECT(\"'\"&A23&\"'!$A$10:$A$80\"),0),FALSE)+'Labor and Maintenance '!$E$22","v":748},{"$f":"VLOOKUP(B23,PQS!B:T,MATCH(PQS!$T$3,PQS!$B$3:$T$3,0),FALSE)*(1+'Country Input'!$C$47)","v":367.44281500000005},2234.0957149999999,223.4095715,{"$f":"VLOOKUP(B23,PQS!$B:$AE,COLUMN(PQS!AD21)-1,FALSE)","v":224.84000000000003},{"$f":"IFERROR(1/HLOOKUP(B23,INDIRECT(\"'\"&A23&\"'!$10:$80\"),MATCH('Technology template'!$A$31,INDIRECT(\"'\"&A23&\"'!$A$10:$A$80\"),0),FALSE)*HLOOKUP(B23,INDIRECT(\"'\"&A23&\"'!$10:$80\"),MATCH('Technology template'!$A$41,INDIRECT(\"'\"&A23&\"'!$A10:$A$80\"),0),FALSE),0)*TechnicianHourlyWage+IF(A23=\"Solar w Battery\",1/'Labor and Maintenance '!$E$53*'Labor and Maintenance '!$D$53,0)+IF(A23=\"LT passive\", 1/'Labor and Maintenance '!$E$81*'Labor and Maintenance '!$D$81,0)","v":24},{"$f":"IFERROR(1/HLOOKUP(B23,INDIRECT(\"'\"&A23&\"'!$10:$80\"),MATCH('Technology template'!$A$34,INDIRECT(\"'\"&A23&\"'!$A$10:$A$80\"),0),FALSE)*(HLOOKUP(B23,INDIRECT(\"'\"&A23&\"'!$10:$80\"),MATCH('Technology template'!$A$44,INDIRECT(\"'\"&A23&\"'!$A10:$A$80\"),0),FALSE)*TechnicianHourlyWage+RemoteTravelCostPerDay),0)+IFERROR(1/HLOOKUP(B23,INDIRECT(\"'\"&A23&\"'!$10:$80\"),MATCH('Technology template'!$A$35,INDIRECT(\"'\"&A23&\"'!$A$10:$A$80\"),0),FALSE)*(HLOOKUP(B23,INDIRECT(\"'\"&A23&\"'!$10:$80\"),MATCH('Technology template'!$A$45,INDIRECT(\"'\"&A23&\"'!$A10:$A$80\"),0),FALSE)*TechnicianHourlyWage+RemoteTravelCostPerDay),0)+IFERROR(1/HLOOKUP(B23,INDIRECT(\"'\"&A23&\"'!$10:$80\"),MATCH('Technology template'!$A$37,INDIRECT(\"'\"&A23&\"'!$A$10:$A$80\"),0),FALSE)*(HLOOKUP(B23,INDIRECT(\"'\"&A23&\"'!$10:$80\"),MATCH('Technology template'!$A$46,INDIRECT(\"'\"&A23&\"'!$A10:$A$80\"),0),FALSE)*TechnicianHourlyWage+'Labor and Maintenance '!$B$8),0)","v":94.666666666666657},3435.0666666666666,{"$f":"SUM(Q23:S23)","v":343.50666666666666},566.91623816666663,null,"Vestfrost MK 404",16.548857148148148,25.444938271604936,41.993795419753084,null,"Vestfrost MK 404",1.6548857148148148,2.544493827160494,4.1993795419753086,null,"Vestfrost MK 404",1,2234.0957149999999,3435.0666666666666,5669.162381666667,null,"Vestfrost MK 404",1,1.6548857148148148,2.544493827160494,4.1993795419753086,null,"Vestfrost MK 404",{"$f":"IF(F23=0, 'Country Input'!$D$7, ROUNDUP(LitersPerFacility/F23,0)*'Country Input'!$D$7)","v":10},22340.957149999998,3435.0666666666666,25776.023816666664,null,"Vestfrost MK 404",{"$f":"ROUNDUP(LitersPerFacility/F23,0)*'Country Input'!$D$7*ROUNDUP('Total Solution Costs'!$B$2/Calculations!I23,0)","v":10},16.548857148148148,2.544493827160494,19.093350975308642,null,null,"Vestfrost MK 404",{"$f":"(($U23+($O23)*IF(MOD(BH$3,$I23)=1,1,0)+Parts!$E$91*IF($J23=0,0,IF(MOD(BH$3,$I23)=1,IF(PQS!$R23=\"NO\",1,0),IF(MOD(BH$3,Calculations!$J23)=1,1,0)))+Parts!$E$92*IF(Calculations!$K23=0,0,IF(MOD(BH$3,$I23)=1,0,IF(MOD(BH$3,Calculations!$K23)=1,1,0))))*$AU23)*(1+'Country Input'!$C$45)^(Calculations!BH$3-$BH$3)+TrainingCost","v":25776.023816666668},{"$f":"(($U23+($O23)*IF(MOD(BI$3,$I23)=1,1,0)+Parts!$E$91*IF($J23=0,0,IF(MOD(BI$3,$I23)=1,IF(PQS!$R23=\"NO\",1,0),IF(MOD(BI$3,Calculations!$J23)=1,1,0)))+Parts!$E$92*IF(Calculations!$K23=0,0,IF(MOD(BI$3,$I23)=1,0,IF(MOD(BI$3,Calculations!$K23)=1,1,0))))*$AU23)*(1+'Country Input'!$C$45)^(Calculations!BI$3-$BH$3)","v":3435.0666666666666},{"$f":"(($U23+($O23)*IF(MOD(BJ$3,$I23)=1,1,0)+Parts!$E$91*IF($J23=0,0,IF(MOD(BJ$3,$I23)=1,IF(PQS!$R23=\"NO\",1,0),IF(MOD(BJ$3,Calculations!$J23)=1,1,0)))+Parts!$E$92*IF(Calculations!$K23=0,0,IF(MOD(BJ$3,$I23)=1,0,IF(MOD(BJ$3,Calculations!$K23)=1,1,0))))*$AU23)*(1+'Country Input'!$C$45)^(Calculations!BJ$3-$BH$3)","v":3435.0666666666666},{"$f":"(($U23+($O23)*IF(MOD(BK$3,$I23)=1,1,0)+Parts!$E$91*IF($J23=0,0,IF(MOD(BK$3,$I23)=1,IF(PQS!$R23=\"NO\",1,0),IF(MOD(BK$3,Calculations!$J23)=1,1,0)))+Parts!$E$92*IF(Calculations!$K23=0,0,IF(MOD(BK$3,$I23)=1,0,IF(MOD(BK$3,Calculations!$K23)=1,1,0))))*$AU23)*(1+'Country Input'!$C$45)^(Calculations!BK$3-$BH$3)","v":3435.0666666666666},{"$f":"(($U23+($O23)*IF(MOD(BL$3,$I23)=1,1,0)+Parts!$E$91*IF($J23=0,0,IF(MOD(BL$3,$I23)=1,IF(PQS!$R23=\"NO\",1,0),IF(MOD(BL$3,Calculations!$J23)=1,1,0)))+Parts!$E$92*IF(Calculations!$K23=0,0,IF(MOD(BL$3,$I23)=1,0,IF(MOD(BL$3,Calculations!$K23)=1,1,0))))*$AU23)*(1+'Country Input'!$C$45)^(Calculations!BL$3-$BH$3)","v":3435.0666666666666},{"$f":"(($U23+($O23)*IF(MOD(BM$3,$I23)=1,1,0)+Parts!$E$91*IF($J23=0,0,IF(MOD(BM$3,$I23)=1,IF(PQS!$R23=\"NO\",1,0),IF(MOD(BM$3,Calculations!$J23)=1,1,0)))+Parts!$E$92*IF(Calculations!$K23=0,0,IF(MOD(BM$3,$I23)=1,0,IF(MOD(BM$3,Calculations!$K23)=1,1,0))))*$AU23)*(1+'Country Input'!$C$45)^(Calculations!BM$3-$BH$3)","v":3435.0666666666666},{"$f":"(($U23+($O23)*IF(MOD(BN$3,$I23)=1,1,0)+Parts!$E$91*IF($J23=0,0,IF(MOD(BN$3,$I23)=1,IF(PQS!$R23=\"NO\",1,0),IF(MOD(BN$3,Calculations!$J23)=1,1,0)))+Parts!$E$92*IF(Calculations!$K23=0,0,IF(MOD(BN$3,$I23)=1,0,IF(MOD(BN$3,Calculations!$K23)=1,1,0))))*$AU23)*(1+'Country Input'!$C$45)^(Calculations!BN$3-$BH$3)","v":3435.0666666666666},{"$f":"(($U23+($O23)*IF(MOD(BO$3,$I23)=1,1,0)+Parts!$E$91*IF($J23=0,0,IF(MOD(BO$3,$I23)=1,IF(PQS!$R23=\"NO\",1,0),IF(MOD(BO$3,Calculations!$J23)=1,1,0)))+Parts!$E$92*IF(Calculations!$K23=0,0,IF(MOD(BO$3,$I23)=1,0,IF(MOD(BO$3,Calculations!$K23)=1,1,0))))*$AU23)*(1+'Country Input'!$C$45)^(Calculations!BO$3-$BH$3)","v":3435.0666666666666},{"$f":"(($U23+($O23)*IF(MOD(BP$3,$I23)=1,1,0)+Parts!$E$91*IF($J23=0,0,IF(MOD(BP$3,$I23)=1,IF(PQS!$R23=\"NO\",1,0),IF(MOD(BP$3,Calculations!$J23)=1,1,0)))+Parts!$E$92*IF(Calculations!$K23=0,0,IF(MOD(BP$3,$I23)=1,0,IF(MOD(BP$3,Calculations!$K23)=1,1,0))))*$AU23)*(1+'Country Input'!$C$45)^(Calculations!BP$3-$BH$3)","v":3435.0666666666666},{"$f":"(($U23+($O23)*IF(MOD(BQ$3,$I23)=1,1,0)+Parts!$E$91*IF($J23=0,0,IF(MOD(BQ$3,$I23)=1,IF(PQS!$R23=\"NO\",1,0),IF(MOD(BQ$3,Calculations!$J23)=1,1,0)))+Parts!$E$92*IF(Calculations!$K23=0,0,IF(MOD(BQ$3,$I23)=1,0,IF(MOD(BQ$3,Calculations!$K23)=1,1,0))))*$AU23)*(1+'Country Input'!$C$45)^(Calculations!BQ$3-$BH$3)","v":3435.0666666666666},{"$f":"(($U23+($O23)*IF(MOD(BR$3,$I23)=1,1,0)+Parts!$E$91*IF($J23=0,0,IF(MOD(BR$3,$I23)=1,IF(PQS!$R23=\"NO\",1,0),IF(MOD(BR$3,Calculations!$J23)=1,1,0)))+Parts!$E$92*IF(Calculations!$K23=0,0,IF(MOD(BR$3,$I23)=1,0,IF(MOD(BR$3,Calculations!$K23)=1,1,0))))*$AU23)*(1+'Country Input'!$C$45)^(Calculations!BR$3-$BH$3)","v":25776.023816666668},{"$f":"(($U23+($O23)*IF(MOD(BS$3,$I23)=1,1,0)+Parts!$E$91*IF($J23=0,0,IF(MOD(BS$3,$I23)=1,IF(PQS!$R23=\"NO\",1,0),IF(MOD(BS$3,Calculations!$J23)=1,1,0)))+Parts!$E$92*IF(Calculations!$K23=0,0,IF(MOD(BS$3,$I23)=1,0,IF(MOD(BS$3,Calculations!$K23)=1,1,0))))*$AU23)*(1+'Country Input'!$C$45)^(Calculations!BS$3-$BH$3)","v":3435.0666666666666},{"$f":"(($U23+($O23)*IF(MOD(BT$3,$I23)=1,1,0)+Parts!$E$91*IF($J23=0,0,IF(MOD(BT$3,$I23)=1,IF(PQS!$R23=\"NO\",1,0),IF(MOD(BT$3,Calculations!$J23)=1,1,0)))+Parts!$E$92*IF(Calculations!$K23=0,0,IF(MOD(BT$3,$I23)=1,0,IF(MOD(BT$3,Calculations!$K23)=1,1,0))))*$AU23)*(1+'Country Input'!$C$45)^(Calculations!BT$3-$BH$3)","v":3435.0666666666666},{"$f":"(($U23+($O23)*IF(MOD(BU$3,$I23)=1,1,0)+Parts!$E$91*IF($J23=0,0,IF(MOD(BU$3,$I23)=1,IF(PQS!$R23=\"NO\",1,0),IF(MOD(BU$3,Calculations!$J23)=1,1,0)))+Parts!$E$92*IF(Calculations!$K23=0,0,IF(MOD(BU$3,$I23)=1,0,IF(MOD(BU$3,Calculations!$K23)=1,1,0))))*$AU23)*(1+'Country Input'!$C$45)^(Calculations!BU$3-$BH$3)","v":3435.0666666666666},{"$f":"(($U23+($O23)*IF(MOD(BV$3,$I23)=1,1,0)+Parts!$E$91*IF($J23=0,0,IF(MOD(BV$3,$I23)=1,IF(PQS!$R23=\"NO\",1,0),IF(MOD(BV$3,Calculations!$J23)=1,1,0)))+Parts!$E$92*IF(Calculations!$K23=0,0,IF(MOD(BV$3,$I23)=1,0,IF(MOD(BV$3,Calculations!$K23)=1,1,0))))*$AU23)*(1+'Country Input'!$C$45)^(Calculations!BV$3-$BH$3)","v":3435.0666666666666},{"$f":"(($U23+($O23)*IF(MOD(BW$3,$I23)=1,1,0)+Parts!$E$91*IF($J23=0,0,IF(MOD(BW$3,$I23)=1,IF(PQS!$R23=\"NO\",1,0),IF(MOD(BW$3,Calculations!$J23)=1,1,0)))+Parts!$E$92*IF(Calculations!$K23=0,0,IF(MOD(BW$3,$I23)=1,0,IF(MOD(BW$3,Calculations!$K23)=1,1,0))))*$AU23)*(1+'Country Input'!$C$45)^(Calculations!BW$3-$BH$3)","v":3435.0666666666666},{"$f":"(($U23+($O23)*IF(MOD(BX$3,$I23)=1,1,0)+Parts!$E$91*IF($J23=0,0,IF(MOD(BX$3,$I23)=1,IF(PQS!$R23=\"NO\",1,0),IF(MOD(BX$3,Calculations!$J23)=1,1,0)))+Parts!$E$92*IF(Calculations!$K23=0,0,IF(MOD(BX$3,$I23)=1,0,IF(MOD(BX$3,Calculations!$K23)=1,1,0))))*$AU23)*(1+'Country Input'!$C$45)^(Calculations!BX$3-$BH$3)","v":3435.0666666666666},{"$f":"(($U23+($O23)*IF(MOD(BY$3,$I23)=1,1,0)+Parts!$E$91*IF($J23=0,0,IF(MOD(BY$3,$I23)=1,IF(PQS!$R23=\"NO\",1,0),IF(MOD(BY$3,Calculations!$J23)=1,1,0)))+Parts!$E$92*IF(Calculations!$K23=0,0,IF(MOD(BY$3,$I23)=1,0,IF(MOD(BY$3,Calculations!$K23)=1,1,0))))*$AU23)*(1+'Country Input'!$C$45)^(Calculations!BY$3-$BH$3)","v":3435.0666666666666},{"$f":"(($U23+($O23)*IF(MOD(BZ$3,$I23)=1,1,0)+Parts!$E$91*IF($J23=0,0,IF(MOD(BZ$3,$I23)=1,IF(PQS!$R23=\"NO\",1,0),IF(MOD(BZ$3,Calculations!$J23)=1,1,0)))+Parts!$E$92*IF(Calculations!$K23=0,0,IF(MOD(BZ$3,$I23)=1,0,IF(MOD(BZ$3,Calculations!$K23)=1,1,0))))*$AU23)*(1+'Country Input'!$C$45)^(Calculations!BZ$3-$BH$3)","v":3435.0666666666666},{"$f":"(($U23+($O23)*IF(MOD(CA$3,$I23)=1,1,0)+Parts!$E$91*IF($J23=0,0,IF(MOD(CA$3,$I23)=1,IF(PQS!$R23=\"NO\",1,0),IF(MOD(CA$3,Calculations!$J23)=1,1,0)))+Parts!$E$92*IF(Calculations!$K23=0,0,IF(MOD(CA$3,$I23)=1,0,IF(MOD(CA$3,Calculations!$K23)=1,1,0))))*$AU23)*(1+'Country Input'!$C$45)^(Calculations!CA$3-$BH$3)","v":3435.0666666666666},null,"Vestfrost MK 404",25776.023816666668,3435.0666666666666,3435.0666666666666,3435.0666666666666,3435.0666666666666,3435.0666666666666,3435.0666666666666,3435.0666666666666,3435.0666666666666,3435.0666666666666,25776.023816666668,3435.0666666666666,3435.0666666666666,3435.0666666666666,3435.0666666666666,3435.0666666666666,3435.0666666666666,3435.0666666666666,3435.0666666666666,3435.0666666666666,{"$f":"SUM(CD23:INDEX($CD23:$CW23,1,'Total Solution Costs'!$B$2))","v":56691.623816666659},null,"Vestfrost MK 404",{"$f":"SUM($BH23:BH23)","v":25776.023816666668},{"$f":"SUM($BH23:BI23)","v":29211.090483333333},{"$f":"SUM($BH23:BJ23)","v":32646.157149999999},{"$f":"SUM($BH23:BK23)","v":36081.223816666665},{"$f":"SUM($BH23:BL23)","v":39516.29048333333},{"$f":"SUM($BH23:BM23)","v":42951.357149999996},{"$f":"SUM($BH23:BN23)","v":46386.423816666662},{"$f":"SUM($BH23:BO23)","v":49821.490483333328},{"$f":"SUM($BH23:BP23)","v":53256.557149999993},{"$f":"SUM($BH23:BQ23)","v":56691.623816666659},{"$f":"SUM($BH23:BR23)","v":82467.647633333327},{"$f":"SUM($BH23:BS23)","v":85902.714299999992},{"$f":"SUM($BH23:BT23)","v":89337.780966666658},{"$f":"SUM($BH23:BU23)","v":92772.847633333324},{"$f":"SUM($BH23:BV23)","v":96207.914299999989},{"$f":"SUM($BH23:BW23)","v":99642.980966666655},{"$f":"SUM($BH23:BX23)","v":103078.04763333332},{"$f":"SUM($BH23:BY23)","v":106513.11429999999},{"$f":"SUM($BH23:BZ23)","v":109948.18096666665},{"$f":"SUM($BH23:CA23)","v":113383.24763333332}]
[{"$f":"PQS!A24","v":"ILR"},{"$f":"PQS!B24","v":"E003/014"},{"$f":"PQS!E24","v":"TCW 2000 AC*"},{"$f":"PQS!F24","v":"B Medical"},{"$f":"PQS!D24","v":"B Medical TCW 2000 AC*"},{"$f":"VLOOKUP(E24,PQS!$D$5:$K$107,COLUMN(PQS!$I$3)-COLUMN(PQS!$D$3)+1,FALSE)","v":60},{"$f":"VLOOKUP(E24,PQS!$D$5:$K$107,COLUMN(PQS!$J$3)-COLUMN(PQS!$D$3)+1,FALSE)","v":42},{"$f":"VLOOKUP(E24,PQS!$D$5:$K$107,COLUMN(PQS!$G$3)-COLUMN(PQS!$D$3)+1,FALSE)","v":"Yes"},{"$f":"HLOOKUP(B24,INDIRECT(\"'\"&A24&\"'!$10:$15\"),ROW('Technology template'!$A$11)-ROW('Technology template'!$A$10)+1,FALSE)","v":10},{"$f":"HLOOKUP(B24,INDIRECT(\"'\"&A24&\"'!$10:$15\"),ROW('Technology template'!$A$12)-ROW('Technology template'!$A$10)+1,FALSE)","v":0},{"$f":"HLOOKUP(B24,INDIRECT(\"'\"&A24&\"'!$10:$15\"),ROW('Technology template'!$A$13)-ROW('Technology template'!$A$10)+1,FALSE)","v":0},{"$f":"VLOOKUP(B24,PQS!$B:$Q,MATCH(PQS!$Q$3,PQS!$B$3:$Q$3,0),FALSE)*(1+'Country Input'!$C$47)+HLOOKUP(B24,INDIRECT(\"'\"&A24&\"'!$10:$15\"),ROW('Technology template'!$A$14)-ROW('Technology template'!$A$10)+1,FALSE)*(1+'Country Input'!$C$47)","v":2466.1146000000003},{"$f":"HLOOKUP(B24,INDIRECT(\"'\"&A24&\"'!$10:$80\"),MATCH('Technology template'!$A$27,INDIRECT(\"'\"&A24&\"'!$A$10:$A$80\"),0),FALSE)+'Labor and Maintenance '!$E$22","v":748},{"$f":"VLOOKUP(B24,PQS!B:T,MATCH(PQS!$T$3,PQS!$B$3:$T$3,0),FALSE)*(1+'Country Input'!$C$47)","v":661.61866399999997},3875.7332640000004,387.57332640000004,{"$f":"VLOOKUP(B24,PQS!$B:$AE,COLUMN(PQS!AD22)-1,FALSE)","v":136.51000000000002},{"$f":"IFERROR(1/HLOOKUP(B24,INDIRECT(\"'\"&A24&\"'!$10:$80\"),MATCH('Technology template'!$A$31,INDIRECT(\"'\"&A24&\"'!$A$10:$A$80\"),0),FALSE)*HLOOKUP(B24,INDIRECT(\"'\"&A24&\"'!$10:$80\"),MATCH('Technology template'!$A$41,INDIRECT(\"'\"&A24&\"'!$A10:$A$80\"),0),FALSE),0)*TechnicianHourlyWage+IF(A24=\"Solar w Battery\",1/'Labor and Maintenance '!$E$53*'Labor and Maintenance '!$D$53,0)+IF(A24=\"LT passive\", 1/'Labor and Maintenance '!$E$81*'Labor and Maintenance '!$D$81,0)","v":24},{"$f":"IFERROR(1/HLOOKUP(B24,INDIRECT(\"'\"&A24&\"'!$10:$80\"),MATCH('Technology template'!$A$34,INDIRECT(\"'\"&A24&\"'!$A$10:$A$80\"),0),FALSE)*(HLOOKUP(B24,INDIRECT(\"'\"&A24&\"'!$10:$80\"),MATCH('Technology template'!$A$44,INDIRECT(\"'\"&A24&\"'!$A10:$A$80\"),0),FALSE)*TechnicianHourlyWage+RemoteTravelCostPerDay),0)+IFERROR(1/HLOOKUP(B24,INDIRECT(\"'\"&A24&\"'!$10:$80\"),MATCH('Technology template'!$A$35,INDIRECT(\"'\"&A24&\"'!$A$10:$A$80\"),0),FALSE)*(HLOOKUP(B24,INDIRECT(\"'\"&A24&\"'!$10:$80\"),MATCH('Technology template'!$A$45,INDIRECT(\"'\"&A24&\"'!$A10:$A$80\"),0),FALSE)*TechnicianHourlyWage+RemoteTravelCostPerDay),0)+IFERROR(1/HLOOKUP(B24,INDIRECT(\"'\"&A24&\"'!$10:$80\"),MATCH('Technology template'!$A$37,INDIRECT(\"'\"&A24&\"'!$A$10:$A$80\"),0),FALSE)*(HLOOKUP(B24,INDIRECT(\"'\"&A24&\"'!$10:$80\"),MATCH('Technology template'!$A$46,INDIRECT(\"'\"&A24&\"'!$A10:$A$80\"),0),FALSE)*TechnicianHourlyWage+'Labor and Maintenance '!$B$8),0)","v":94.666666666666657},2551.7666666666669,255.17666666666668,642.74999306666678,null,"B Medical TCW 2000 AC*",64.595554400000012,42.529444444444451,107.12499884444446,null,"B Medical TCW 2000 AC*",6.4595554400000008,4.2529444444444442,10.712499884444446,null,"B Medical TCW 2000 AC*",3,11627.199792000001,7655.3000000000011,19282.499792000002,null,"B Medical TCW 2000 AC*",3,19.378666320000001,12.758833333333332,32.137499653333336,null,"B Medical TCW 2000 AC*",{"$f":"IF(F24=0, 'Country Input'!$D$7, ROUNDUP(LitersPerFacility/F24,0)*'Country Input'!$D$7)","v":10},38757.332640000008,2551.7666666666669,41309.099306666678,null,"B Medical TCW 2000 AC*",{"$f":"ROUNDUP(LitersPerFacility/F24,0)*'Country Input'!$D$7*ROUNDUP('Total Solution Costs'!$B$2/Calculations!I24,0)","v":10},64.595554400000012,4.2529444444444451,68.848498844444464,null,null,"B Medical TCW 2000 AC*",{"$f":"(($U24+($O24)*IF(MOD(BH$3,$I24)=1,1,0)+Parts!$E$91*IF($J24=0,0,IF(MOD(BH$3,$I24)=1,IF(PQS!$R24=\"NO\",1,0),IF(MOD(BH$3,Calculations!$J24)=1,1,0)))+Parts!$E$92*IF(Calculations!$K24=0,0,IF(MOD(BH$3,$I24)=1,0,IF(MOD(BH$3,Calculations!$K24)=1,1,0))))*$AU24)*(1+'Country Input'!$C$45)^(Calculations!BH$3-$BH$3)+TrainingCost","v":41309.099306666671},{"$f":"(($U24+($O24)*IF(MOD(BI$3,$I24)=1,1,0)+Parts!$E$91*IF($J24=0,0,IF(MOD(BI$3,$I24)=1,IF(PQS!$R24=\"NO\",1,0),IF(MOD(BI$3,Calculations!$J24)=1,1,0)))+Parts!$E$92*IF(Calculations!$K24=0,0,IF(MOD(BI$3,$I24)=1,0,IF(MOD(BI$3,Calculations!$K24)=1,1,0))))*$AU24)*(1+'Country Input'!$C$45)^(Calculations!BI$3-$BH$3)","v":2551.7666666666669},{"$f":"(($U24+($O24)*IF(MOD(BJ$3,$I24)=1,1,0)+Parts!$E$91*IF($J24=0,0,IF(MOD(BJ$3,$I24)=1,IF(PQS!$R24=\"NO\",1,0),IF(MOD(BJ$3,Calculations!$J24)=1,1,0)))+Parts!$E$92*IF(Calculations!$K24=0,0,IF(MOD(BJ$3,$I24)=1,0,IF(MOD(BJ$3,Calculations!$K24)=1,1,0))))*$AU24)*(1+'Country Input'!$C$45)^(Calculations!BJ$3-$BH$3)","v":2551.7666666666669},{"$f":"(($U24+($O24)*IF(MOD(BK$3,$I24)=1,1,0)+Parts!$E$91*IF($J24=0,0,IF(MOD(BK$3,$I24)=1,IF(PQS!$R24=\"NO\",1,0),IF(MOD(BK$3,Calculations!$J24)=1,1,0)))+Parts!$E$92*IF(Calculations!$K24=0,0,IF(MOD(BK$3,$I24)=1,0,IF(MOD(BK$3,Calculations!$K24)=1,1,0))))*$AU24)*(1+'Country Input'!$C$45)^(Calculations!BK$3-$BH$3)","v":2551.7666666666669},{"$f":"(($U24+($O24)*IF(MOD(BL$3,$I24)=1,1,0)+Parts!$E$91*IF($J24=0,0,IF(MOD(BL$3,$I24)=1,IF(PQS!$R24=\"NO\",1,0),IF(MOD(BL$3,Calculations!$J24)=1,1,0)))+Parts!$E$92*IF(Calculations!$K24=0,0,IF(MOD(BL$3,$I24)=1,0,IF(MOD(BL$3,Calculations!$K24)=1,1,0))))*$AU24)*(1+'Country Input'!$C$45)^(Calculations!BL$3-$BH$3)","v":2551.7666666666669},{"$f":"(($U24+($O24)*IF(MOD(BM$3,$I24)=1,1,0)+Parts!$E$91*IF($J24=0,0,IF(MOD(BM$3,$I24)=1,IF(PQS!$R24=\"NO\",1,0),IF(MOD(BM$3,Calculations!$J24)=1,1,0)))+Parts!$E$92*IF(Calculations!$K24=0,0,IF(MOD(BM$3,$I24)=1,0,IF(MOD(BM$3,Calculations!$K24)=1,1,0))))*$AU24)*(1+'Country Input'!$C$45)^(Calculations!BM$3-$BH$3)","v":2551.7666666666669},{"$f":"(($U24+($O24)*IF(MOD(BN$3,$I24)=1,1,0)+Parts!$E$91*IF($J24=0,0,IF(MOD(BN$3,$I24)=1,IF(PQS!$R24=\"NO\",1,0),IF(MOD(BN$3,Calculations!$J24)=1,1,0)))+Parts!$E$92*IF(Calculations!$K24=0,0,IF(MOD(BN$3,$I24)=1,0,IF(MOD(BN$3,Calculations!$K24)=1,1,0))))*$AU24)*(1+'Country Input'!$C$45)^(Calculations!BN$3-$BH$3)","v":2551.7666666666669},{"$f":"(($U24+($O24)*IF(MOD(BO$3,$I24)=1,1,0)+Parts!$E$91*IF($J24=0,0,IF(MOD(BO$3,$I24)=1,IF(PQS!$R24=\"NO\",1,0),IF(MOD(BO$3,Calculations!$J24)=1,1,0)))+Parts!$E$92*IF(Calculations!$K24=0,0,IF(MOD(BO$3,$I24)=1,0,IF(MOD(BO$3,Calculations!$K24)=1,1,0))))*$AU24)*(1+'Country Input'!$C$45)^(Calculations!BO$3-$BH$3)","v":2551.7666666666669},{"$f":"(($U24+($O24)*IF(MOD(BP$3,$I24)=1,1,0)+Parts!$E$91*IF($J24=0,0,IF(MOD(BP$3,$I24)=1,IF(PQS!$R24=\"NO\",1,0),IF(MOD(BP$3,Calculations!$J24)=1,1,0)))+Parts!$E$92*IF(Calculations!$K24=0,0,IF(MOD(BP$3,$I24)=1,0,IF(MOD(BP$3,Calculations!$K24)=1,1,0))))*$AU24)*(1+'Country Input'!$C$45)^(Calculations!BP$3-$BH$3)","v":2551.7666666666669},{"$f":"(($U24+($O24)*IF(MOD(BQ$3,$I24)=1,1,0)+Parts!$E$91*IF($J24=0,0,IF(MOD(BQ$3,$I24)=1,IF(PQS!$R24=\"NO\",1,0),IF(MOD(BQ$3,Calculations!$J24)=1,1,0)))+Parts!$E$92*IF(Calculations!$K24=0,0,IF(MOD(BQ$3,$I24)=1,0,IF(MOD(BQ$3,Calculations!$K24)=1,1,0))))*$AU24)*(1+'Country Input'!$C$45)^(Calculations!BQ$3-$BH$3)","v":2551.7666666666669},{"$f":"(($U24+($O24)*IF(MOD(BR$3,$I24)=1,1,0)+Parts!$E$91*IF($J24=0,0,IF(MOD(BR$3,$I24)=1,IF(PQS!$R24=\"NO\",1,0),IF(MOD(BR$3,Calculations!$J24)=1,1,0)))+Parts!$E$92*IF(Calculations!$K24=0,0,IF(MOD(BR$3,$I24)=1,0,IF(MOD(BR$3,Calculations!$K24)=1,1,0))))*$AU24)*(1+'Country Input'!$C$45)^(Calculations!BR$3-$BH$3)","v":41309.099306666671},{"$f":"(($U24+($O24)*IF(MOD(BS$3,$I24)=1,1,0)+Parts!$E$91*IF($J24=0,0,IF(MOD(BS$3,$I24)=1,IF(PQS!$R24=\"NO\",1,0),IF(MOD(BS$3,Calculations!$J24)=1,1,0)))+Parts!$E$92*IF(Calculations!$K24=0,0,IF(MOD(BS$3,$I24)=1,0,IF(MOD(BS$3,Calculations!$K24)=1,1,0))))*$AU24)*(1+'Country Input'!$C$45)^(Calculations!BS$3-$BH$3)","v":2551.7666666666669},{"$f":"(($U24+($O24)*IF(MOD(BT$3,$I24)=1,1,0)+Parts!$E$91*IF($J24=0,0,IF(MOD(BT$3,$I24)=1,IF(PQS!$R24=\"NO\",1,0),IF(MOD(BT$3,Calculations!$J24)=1,1,0)))+Parts!$E$92*IF(Calculations!$K24=0,0,IF(MOD(BT$3,$I24)=1,0,IF(MOD(BT$3,Calculations!$K24)=1,1,0))))*$AU24)*(1+'Country Input'!$C$45)^(Calculations!BT$3-$BH$3)","v":2551.7666666666669},{"$f":"(($U24+($O24)*IF(MOD(BU$3,$I24)=1,1,0)+Parts!$E$91*IF($J24=0,0,IF(MOD(BU$3,$I24)=1,IF(PQS!$R24=\"NO\",1,0),IF(MOD(BU$3,Calculations!$J24)=1,1,0)))+Parts!$E$92*IF(Calculations!$K24=0,0,IF(MOD(BU$3,$I24)=1,0,IF(MOD(BU$3,Calculations!$K24)=1,1,0))))*$AU24)*(1+'Country Input'!$C$45)^(Calculations!BU$3-$BH$3)","v":2551.7666666666669},{"$f":"(($U24+($O24)*IF(MOD(BV$3,$I24)=1,1,0)+Parts!$E$91*IF($J24=0,0,IF(MOD(BV$3,$I24)=1,IF(PQS!$R24=\"NO\",1,0),IF(MOD(BV$3,Calculations!$J24)=1,1,0)))+Parts!$E$92*IF(Calculations!$K24=0,0,IF(MOD(BV$3,$I24)=1,0,IF(MOD(BV$3,Calculations!$K24)=1,1,0))))*$AU24)*(1+'Country Input'!$C$45)^(Calculations!BV$3-$BH$3)","v":2551.7666666666669},{"$f":"(($U24+($O24)*IF(MOD(BW$3,$I24)=1,1,0)+Parts!$E$91*IF($J24=0,0,IF(MOD(BW$3,$I24)=1,IF(PQS!$R24=\"NO\",1,0),IF(MOD(BW$3,Calculations!$J24)=1,1,0)))+Parts!$E$92*IF(Calculations!$K24=0,0,IF(MOD(BW$3,$I24)=1,0,IF(MOD(BW$3,Calculations!$K24)=1,1,0))))*$AU24)*(1+'Country Input'!$C$45)^(Calculations!BW$3-$BH$3)","v":2551.7666666666669},{"$f":"(($U24+($O24)*IF(MOD(BX$3,$I24)=1,1,0)+Parts!$E$91*IF($J24=0,0,IF(MOD(BX$3,$I24)=1,IF(PQS!$R24=\"NO\",1,0),IF(MOD(BX$3,Calculations!$J24)=1,1,0)))+Parts!$E$92*IF(Calculations!$K24=0,0,IF(MOD(BX$3,$I24)=1,0,IF(MOD(BX$3,Calculations!$K24)=1,1,0))))*$AU24)*(1+'Country Input'!$C$45)^(Calculations!BX$3-$BH$3)","v":2551.7666666666669},{"$f":"(($U24+($O24)*IF(MOD(BY$3,$I24)=1,1,0)+Parts!$E$91*IF($J24=0,0,IF(MOD(BY$3,$I24)=1,IF(PQS!$R24=\"NO\",1,0),IF(MOD(BY$3,Calculations!$J24)=1,1,0)))+Parts!$E$92*IF(Calculations!$K24=0,0,IF(MOD(BY$3,$I24)=1,0,IF(MOD(BY$3,Calculations!$K24)=1,1,0))))*$AU24)*(1+'Country Input'!$C$45)^(Calculations!BY$3-$BH$3)","v":2551.7666666666669},{"$f":"(($U24+($O24)*IF(MOD(BZ$3,$I24)=1,1,0)+Parts!$E$91*IF($J24=0,0,IF(MOD(BZ$3,$I24)=1,IF(PQS!$R24=\"NO\",1,0),IF(MOD(BZ$3,Calculations!$J24)=1,1,0)))+Parts!$E$92*IF(Calculations!$K24=0,0,IF(MOD(BZ$3,$I24)=1,0,IF(MOD(BZ$3,Calculations!$K24)=1,1,0))))*$AU24)*(1+'Country Input'!$C$45)^(Calculations!BZ$3-$BH$3)","v":2551.7666666666669},{"$f":"(($U24+($O24)*IF(MOD(CA$3,$I24)=1,1,0)+Parts!$E$91*IF($J24=0,0,IF(MOD(CA$3,$I24)=1,IF(PQS!$R24=\"NO\",1,0),IF(MOD(CA$3,Calculations!$J24)=1,1,0)))+Parts!$E$92*IF(Calculations!$K24=0,0,IF(MOD(CA$3,$I24)=1,0,IF(MOD(CA$3,Calculations!$K24)=1,1,0))))*$AU24)*(1+'Country Input'!$C$45)^(Calculations!CA$3-$BH$3)","v":2551.7666666666669},null,"B Medical TCW 2000 AC*",41309.099306666671,2551.7666666666669,2551.7666666666669,2551.7666666666669,2551.7666666666669,2551.7666666666669,2551.7666666666669,2551.7666666666669,2551.7666666666669,2551.7666666666669,41309.099306666671,2551.7666666666669,2551.7666666666669,2551.7666666666669,2551.7666666666669,2551.7666666666669,2551.7666666666669,2551.7666666666669,2551.7666666666669,2551.7666666666669,{"$f":"SUM(CD24:INDEX($CD24:$CW24,1,'Total Solution Costs'!$B$2))","v":64274.999306666701},null,"B Medical TCW 2000 AC*",{"$f":"SUM($BH24:BH24)","v":41309.099306666671},{"$f":"SUM($BH24:BI24)","v":43860.865973333341},{"$f":"SUM($BH24:BJ24)","v":46412.632640000011},{"$f":"SUM($BH24:BK24)","v":48964.399306666681},{"$f":"SUM($BH24:BL24)","v":51516.165973333351},{"$f":"SUM($BH24:BM24)","v":54067.932640000021},{"$f":"SUM($BH24:BN24)","v":56619.699306666691},{"$f":"SUM($BH24:BO24)","v":59171.465973333361},{"$f":"SUM($BH24:BP24)","v":61723.232640000031},{"$f":"SUM($BH24:BQ24)","v":64274.999306666701},{"$f":"SUM($BH24:BR24)","v":105584.09861333336},{"$f":"SUM($BH24:BS24)","v":108135.86528000003},{"$f":"SUM($BH24:BT24)","v":110687.63194666669},{"$f":"SUM($BH24:BU24)","v":113239.39861333335},{"$f":"SUM($BH24:BV24)","v":115791.16528000002},{"$f":"SUM($BH24:BW24)","v":118342.93194666668},{"$f":"SUM($BH24:BX24)","v":120894.69861333334},{"$f":"SUM($BH24:BY24)","v":123446.46528},{"$f":"SUM($BH24:BZ24)","v":125998.23194666667},{"$f":"SUM($BH24:CA24)","v":128549.99861333333}]
[{"$f":"PQS!A25","v":"ILR"},{"$f":"PQS!B25","v":"E003/017"},{"$f":"PQS!E25","v":"TCW 3000 AC"},{"$f":"PQS!F25","v":"B Medical"},{"$f":"PQS!D25","v":"B Medical TCW 3000 AC"},{"$f":"VLOOKUP(E25,PQS!$D$5:$K$107,COLUMN(PQS!$I$3)-COLUMN(PQS!$D$3)+1,FALSE)","v":150},{"$f":"VLOOKUP(E25,PQS!$D$5:$K$107,COLUMN(PQS!$J$3)-COLUMN(PQS!$D$3)+1,FALSE)","v":204},{"$f":"VLOOKUP(E25,PQS!$D$5:$K$107,COLUMN(PQS!$G$3)-COLUMN(PQS!$D$3)+1,FALSE)","v":"No"},{"$f":"HLOOKUP(B25,INDIRECT(\"'\"&A25&\"'!$10:$15\"),ROW('Technology template'!$A$11)-ROW('Technology template'!$A$10)+1,FALSE)","v":10},{"$f":"HLOOKUP(B25,INDIRECT(\"'\"&A25&\"'!$10:$15\"),ROW('Technology template'!$A$12)-ROW('Technology template'!$A$10)+1,FALSE)","v":0},{"$f":"HLOOKUP(B25,INDIRECT(\"'\"&A25&\"'!$10:$15\"),ROW('Technology template'!$A$13)-ROW('Technology template'!$A$10)+1,FALSE)","v":0},{"$f":"VLOOKUP(B25,PQS!$B:$Q,MATCH(PQS!$Q$3,PQS!$B$3:$Q$3,0),FALSE)*(1+'Country Input'!$C$47)+HLOOKUP(B25,INDIRECT(\"'\"&A25&\"'!$10:$15\"),ROW('Technology template'!$A$14)-ROW('Technology template'!$A$10)+1,FALSE)*(1+'Country Input'!$C$47)","v":2433.1693},{"$f":"HLOOKUP(B25,INDIRECT(\"'\"&A25&\"'!$10:$80\"),MATCH('Technology template'!$A$27,INDIRECT(\"'\"&A25&\"'!$A$10:$A$80\"),0),FALSE)+'Labor and Maintenance '!$E$22","v":748},{"$f":"VLOOKUP(B25,PQS!B:T,MATCH(PQS!$T$3,PQS!$B$3:$T$3,0),FALSE)*(1+'Country Input'!$C$47)","v":473.3545180000001},3654.5238180000001,365.45238180000001,{"$f":"VLOOKUP(B25,PQS!$B:$AE,COLUMN(PQS!AD23)-1,FALSE)","v":100.01},{"$f":"IFERROR(1/HLOOKUP(B25,INDIRECT(\"'\"&A25&\"'!$10:$80\"),MATCH('Technology template'!$A$31,INDIRECT(\"'\"&A25&\"'!$A$10:$A$80\"),0),FALSE)*HLOOKUP(B25,INDIRECT(\"'\"&A25&\"'!$10:$80\"),MATCH('Technology template'!$A$41,INDIRECT(\"'\"&A25&\"'!$A10:$A$80\"),0),FALSE),0)*TechnicianHourlyWage+IF(A25=\"Solar w Battery\",1/'Labor and Maintenance '!$E$53*'Labor and Maintenance '!$D$53,0)+IF(A25=\"LT passive\", 1/'Labor and Maintenance '!$E$81*'Labor and Maintenance '!$D$81,0)","v":24},{"$f":"IFERROR(1/HLOOKUP(B25,INDIRECT(\"'\"&A25&\"'!$10:$80\"),MATCH('Technology template'!$A$34,INDIRECT(\"'\"&A25&\"'!$A$10:$A$80\"),0),FALSE)*(HLOOKUP(B25,INDIRECT(\"'\"&A25&\"'!$10:$80\"),MATCH('Technology template'!$A$44,INDIRECT(\"'\"&A25&\"'!$A10:$A$80\"),0),FALSE)*TechnicianHourlyWage+RemoteTravelCostPerDay),0)+IFERROR(1/HLOOKUP(B25,INDIRECT(\"'\"&A25&\"'!$10:$80\"),MATCH('Technology template'!$A$35,INDIRECT(\"'\"&A25&\"'!$A$10:$A$80\"),0),FALSE)*(HLOOKUP(B25,INDIRECT(\"'\"&A25&\"'!$10:$80\"),MATCH('Technology template'!$A$45,INDIRECT(\"'\"&A25&\"'!$A10:$A$80\"),0),FALSE)*TechnicianHourlyWage+RemoteTravelCostPerDay),0)+IFERROR(1/HLOOKUP(B25,INDIRECT(\"'\"&A25&\"'!$10:$80\"),MATCH('Technology template'!$A$37,INDIRECT(\"'\"&A25&\"'!$A$10:$A$80\"),0),FALSE)*(HLOOKUP(B25,INDIRECT(\"'\"&A25&\"'!$10:$80\"),MATCH('Technology template'!$A$46,INDIRECT(\"'\"&A25&\"'!$A10:$A$80\"),0),FALSE)*TechnicianHourlyWage+'Labor and Maintenance '!$B$8),0)","v":94.666666666666657},2186.7666666666669,218.67666666666668,584.12904846666675,null,"B Medical TCW 3000 AC",24.36349212,14.578444444444445,38.941936564444447,null,"B Medical TCW 3000 AC",2.4363492120000001,1.4578444444444445,3.894193656444445,null,"B Medical TCW 3000 AC",1,3654.5238180000001,2186.7666666666669,5841.290484666667,null,"B Medical TCW 3000 AC",1,2.4363492120000001,1.4578444444444445,3.8941936564444446,null,"B Medical TCW 3000 AC",{"$f":"IF(F25=0, 'Country Input'!$D$7, ROUNDUP(LitersPerFacility/F25,0)*'Country Input'!$D$7)","v":10},36545.23818,2186.7666666666669,38732.00484666667,null,"B Medical TCW 3000 AC",{"$f":"ROUNDUP(LitersPerFacility/F25,0)*'Country Input'!$D$7*ROUNDUP('Total Solution Costs'!$B$2/Calculations!I25,0)","v":10},24.36349212,1.4578444444444445,25.821336564444444,null,null,"B Medical TCW 3000 AC",{"$f":"(($U25+($O25)*IF(MOD(BH$3,$I25)=1,1,0)+Parts!$E$91*IF($J25=0,0,IF(MOD(BH$3,$I25)=1,IF(PQS!$R25=\"NO\",1,0),IF(MOD(BH$3,Calculations!$J25)=1,1,0)))+Parts!$E$92*IF(Calculations!$K25=0,0,IF(MOD(BH$3,$I25)=1,0,IF(MOD(BH$3,Calculations!$K25)=1,1,0))))*$AU25)*(1+'Country Input'!$C$45)^(Calculations!BH$3-$BH$3)+TrainingCost","v":38732.00484666667},{"$f":"(($U25+($O25)*IF(MOD(BI$3,$I25)=1,1,0)+Parts!$E$91*IF($J25=0,0,IF(MOD(BI$3,$I25)=1,IF(PQS!$R25=\"NO\",1,0),IF(MOD(BI$3,Calculations!$J25)=1,1,0)))+Parts!$E$92*IF(Calculations!$K25=0,0,IF(MOD(BI$3,$I25)=1,0,IF(MOD(BI$3,Calculations!$K25)=1,1,0))))*$AU25)*(1+'Country Input'!$C$45)^(Calculations!BI$3-$BH$3)","v":2186.7666666666669},{"$f":"(($U25+($O25)*IF(MOD(BJ$3,$I25)=1,1,0)+Parts!$E$91*IF($J25=0,0,IF(MOD(BJ$3,$I25)=1,IF(PQS!$R25=\"NO\",1,0),IF(MOD(BJ$3,Calculations!$J25)=1,1,0)))+Parts!$E$92*IF(Calculations!$K25=0,0,IF(MOD(BJ$3,$I25)=1,0,IF(MOD(BJ$3,Calculations!$K25)=1,1,0))))*$AU25)*(1+'Country Input'!$C$45)^(Calculations!BJ$3-$BH$3)","v":2186.7666666666669},{"$f":"(($U25+($O25)*IF(MOD(BK$3,$I25)=1,1,0)+Parts!$E$91*IF($J25=0,0,IF(MOD(BK$3,$I25)=1,IF(PQS!$R25=\"NO\",1,0),IF(MOD(BK$3,Calculations!$J25)=1,1,0)))+Parts!$E$92*IF(Calculations!$K25=0,0,IF(MOD(BK$3,$I25)=1,0,IF(MOD(BK$3,Calculations!$K25)=1,1,0))))*$AU25)*(1+'Country Input'!$C$45)^(Calculations!BK$3-$BH$3)","v":2186.7666666666669},{"$f":"(($U25+($O25)*IF(MOD(BL$3,$I25)=1,1,0)+Parts!$E$91*IF($J25=0,0,IF(MOD(BL$3,$I25)=1,IF(PQS!$R25=\"NO\",1,0),IF(MOD(BL$3,Calculations!$J25)=1,1,0)))+Parts!$E$92*IF(Calculations!$K25=0,0,IF(MOD(BL$3,$I25)=1,0,IF(MOD(BL$3,Calculations!$K25)=1,1,0))))*$AU25)*(1+'Country Input'!$C$45)^(Calculations!BL$3-$BH$3)","v":2186.7666666666669},{"$f":"(($U25+($O25)*IF(MOD(BM$3,$I25)=1,1,0)+Parts!$E$91*IF($J25=0,0,IF(MOD(BM$3,$I25)=1,IF(PQS!$R25=\"NO\",1,0),IF(MOD(BM$3,Calculations!$J25)=1,1,0)))+Parts!$E$92*IF(Calculations!$K25=0,0,IF(MOD(BM$3,$I25)=1,0,IF(MOD(BM$3,Calculations!$K25)=1,1,0))))*$AU25)*(1+'Country Input'!$C$45)^(Calculations!BM$3-$BH$3)","v":2186.7666666666669},{"$f":"(($U25+($O25)*IF(MOD(BN$3,$I25)=1,1,0)+Parts!$E$91*IF($J25=0,0,IF(MOD(BN$3,$I25)=1,IF(PQS!$R25=\"NO\",1,0),IF(MOD(BN$3,Calculations!$J25)=1,1,0)))+Parts!$E$92*IF(Calculations!$K25=0,0,IF(MOD(BN$3,$I25)=1,0,IF(MOD(BN$3,Calculations!$K25)=1,1,0))))*$AU25)*(1+'Country Input'!$C$45)^(Calculations!BN$3-$BH$3)","v":2186.7666666666669},{"$f":"(($U25+($O25)*IF(MOD(BO$3,$I25)=1,1,0)+Parts!$E$91*IF($J25=0,0,IF(MOD(BO$3,$I25)=1,IF(PQS!$R25=\"NO\",1,0),IF(MOD(BO$3,Calculations!$J25)=1,1,0)))+Parts!$E$92*IF(Calculations!$K25=0,0,IF(MOD(BO$3,$I25)=1,0,IF(MOD(BO$3,Calculations!$K25)=1,1,0))))*$AU25)*(1+'Country Input'!$C$45)^(Calculations!BO$3-$BH$3)","v":2186.7666666666669},{"$f":"(($U25+($O25)*IF(MOD(BP$3,$I25)=1,1,0)+Parts!$E$91*IF($J25=0,0,IF(MOD(BP$3,$I25)=1,IF(PQS!$R25=\"NO\",1,0),IF(MOD(BP$3,Calculations!$J25)=1,1,0)))+Parts!$E$92*IF(Calculations!$K25=0,0,IF(MOD(BP$3,$I25)=1,0,IF(MOD(BP$3,Calculations!$K25)=1,1,0))))*$AU25)*(1+'Country Input'!$C$45)^(Calculations!BP$3-$BH$3)","v":2186.7666666666669},{"$f":"(($U25+($O25)*IF(MOD(BQ$3,$I25)=1,1,0)+Parts!$E$91*IF($J25=0,0,IF(MOD(BQ$3,$I25)=1,IF(PQS!$R25=\"NO\",1,0),IF(MOD(BQ$3,Calculations!$J25)=1,1,0)))+Parts!$E$92*IF(Calculations!$K25=0,0,IF(MOD(BQ$3,$I25)=1,0,IF(MOD(BQ$3,Calculations!$K25)=1,1,0))))*$AU25)*(1+'Country Input'!$C$45)^(Calculations!BQ$3-$BH$3)","v":2186.7666666666669},{"$f":"(($U25+($O25)*IF(MOD(BR$3,$I25)=1,1,0)+Parts!$E$91*IF($J25=0,0,IF(MOD(BR$3,$I25)=1,IF(PQS!$R25=\"NO\",1,0),IF(MOD(BR$3,Calculations!$J25)=1,1,0)))+Parts!$E$92*IF(Calculations!$K25=0,0,IF(MOD(BR$3,$I25)=1,0,IF(MOD(BR$3,Calculations!$K25)=1,1,0))))*$AU25)*(1+'Country Input'!$C$45)^(Calculations!BR$3-$BH$3)","v":38732.00484666667},{"$f":"(($U25+($O25)*IF(MOD(BS$3,$I25)=1,1,0)+Parts!$E$91*IF($J25=0,0,IF(MOD(BS$3,$I25)=1,IF(PQS!$R25=\"NO\",1,0),IF(MOD(BS$3,Calculations!$J25)=1,1,0)))+Parts!$E$92*IF(Calculations!$K25=0,0,IF(MOD(BS$3,$I25)=1,0,IF(MOD(BS$3,Calculations!$K25)=1,1,0))))*$AU25)*(1+'Country Input'!$C$45)^(Calculations!BS$3-$BH$3)","v":2186.7666666666669},{"$f":"(($U25+($O25)*IF(MOD(BT$3,$I25)=1,1,0)+Parts!$E$91*IF($J25=0,0,IF(MOD(BT$3,$I25)=1,IF(PQS!$R25=\"NO\",1,0),IF(MOD(BT$3,Calculations!$J25)=1,1,0)))+Parts!$E$92*IF(Calculations!$K25=0,0,IF(MOD(BT$3,$I25)=1,0,IF(MOD(BT$3,Calculations!$K25)=1,1,0))))*$AU25)*(1+'Country Input'!$C$45)^(Calculations!BT$3-$BH$3)","v":2186.7666666666669},{"$f":"(($U25+($O25)*IF(MOD(BU$3,$I25)=1,1,0)+Parts!$E$91*IF($J25=0,0,IF(MOD(BU$3,$I25)=1,IF(PQS!$R25=\"NO\",1,0),IF(MOD(BU$3,Calculations!$J25)=1,1,0)))+Parts!$E$92*IF(Calculations!$K25=0,0,IF(MOD(BU$3,$I25)=1,0,IF(MOD(BU$3,Calculations!$K25)=1,1,0))))*$AU25)*(1+'Country Input'!$C$45)^(Calculations!BU$3-$BH$3)","v":2186.7666666666669},{"$f":"(($U25+($O25)*IF(MOD(BV$3,$I25)=1,1,0)+Parts!$E$91*IF($J25=0,0,IF(MOD(BV$3,$I25)=1,IF(PQS!$R25=\"NO\",1,0),IF(MOD(BV$3,Calculations!$J25)=1,1,0)))+Parts!$E$92*IF(Calculations!$K25=0,0,IF(MOD(BV$3,$I25)=1,0,IF(MOD(BV$3,Calculations!$K25)=1,1,0))))*$AU25)*(1+'Country Input'!$C$45)^(Calculations!BV$3-$BH$3)","v":2186.7666666666669},{"$f":"(($U25+($O25)*IF(MOD(BW$3,$I25)=1,1,0)+Parts!$E$91*IF($J25=0,0,IF(MOD(BW$3,$I25)=1,IF(PQS!$R25=\"NO\",1,0),IF(MOD(BW$3,Calculations!$J25)=1,1,0)))+Parts!$E$92*IF(Calculations!$K25=0,0,IF(MOD(BW$3,$I25)=1,0,IF(MOD(BW$3,Calculations!$K25)=1,1,0))))*$AU25)*(1+'Country Input'!$C$45)^(Calculations!BW$3-$BH$3)","v":2186.7666666666669},{"$f":"(($U25+($O25)*IF(MOD(BX$3,$I25)=1,1,0)+Parts!$E$91*IF($J25=0,0,IF(MOD(BX$3,$I25)=1,IF(PQS!$R25=\"NO\",1,0),IF(MOD(BX$3,Calculations!$J25)=1,1,0)))+Parts!$E$92*IF(Calculations!$K25=0,0,IF(MOD(BX$3,$I25)=1,0,IF(MOD(BX$3,Calculations!$K25)=1,1,0))))*$AU25)*(1+'Country Input'!$C$45)^(Calculations!BX$3-$BH$3)","v":2186.7666666666669},{"$f":"(($U25+($O25)*IF(MOD(BY$3,$I25)=1,1,0)+Parts!$E$91*IF($J25=0,0,IF(MOD(BY$3,$I25)=1,IF(PQS!$R25=\"NO\",1,0),IF(MOD(BY$3,Calculations!$J25)=1,1,0)))+Parts!$E$92*IF(Calculations!$K25=0,0,IF(MOD(BY$3,$I25)=1,0,IF(MOD(BY$3,Calculations!$K25)=1,1,0))))*$AU25)*(1+'Country Input'!$C$45)^(Calculations!BY$3-$BH$3)","v":2186.7666666666669},{"$f":"(($U25+($O25)*IF(MOD(BZ$3,$I25)=1,1,0)+Parts!$E$91*IF($J25=0,0,IF(MOD(BZ$3,$I25)=1,IF(PQS!$R25=\"NO\",1,0),IF(MOD(BZ$3,Calculations!$J25)=1,1,0)))+Parts!$E$92*IF(Calculations!$K25=0,0,IF(MOD(BZ$3,$I25)=1,0,IF(MOD(BZ$3,Calculations!$K25)=1,1,0))))*$AU25)*(1+'Country Input'!$C$45)^(Calculations!BZ$3-$BH$3)","v":2186.7666666666669},{"$f":"(($U25+($O25)*IF(MOD(CA$3,$I25)=1,1,0)+Parts!$E$91*IF($J25=0,0,IF(MOD(CA$3,$I25)=1,IF(PQS!$R25=\"NO\",1,0),IF(MOD(CA$3,Calculations!$J25)=1,1,0)))+Parts!$E$92*IF(Calculations!$K25=0,0,IF(MOD(CA$3,$I25)=1,0,IF(MOD(CA$3,Calculations!$K25)=1,1,0))))*$AU25)*(1+'Country Input'!$C$45)^(Calculations!CA$3-$BH$3)","v":2186.7666666666669},null,"B Medical TCW 3000 AC",38732.00484666667,2186.7666666666669,2186.7666666666669,2186.7666666666669,2186.7666666666669,2186.7666666666669,2186.7666666666669,2186.7666666666669,2186.7666666666669,2186.7666666666669,38732.00484666667,2186.7666666666669,2186.7666666666669,2186.7666666666669,2186.7666666666669,2186.7666666666669,2186.7666666666669,2186.7666666666669,2186.7666666666669,2186.7666666666669,{"$f":"SUM(CD25:INDEX($CD25:$CW25,1,'Total Solution Costs'!$B$2))","v":58412.904846666701},null,"B Medical TCW 3000 AC",{"$f":"SUM($BH25:BH25)","v":38732.00484666667},{"$f":"SUM($BH25:BI25)","v":40918.77151333334},{"$f":"SUM($BH25:BJ25)","v":43105.53818000001},{"$f":"SUM($BH25:BK25)","v":45292.304846666681},{"$f":"SUM($BH25:BL25)","v":47479.071513333351},{"$f":"SUM($BH25:BM25)","v":49665.838180000021},{"$f":"SUM($BH25:BN25)","v":51852.604846666691},{"$f":"SUM($BH25:BO25)","v":54039.371513333361},{"$f":"SUM($BH25:BP25)","v":56226.138180000031},{"$f":"SUM($BH25:BQ25)","v":58412.904846666701},{"$f":"SUM($BH25:BR25)","v":97144.909693333379},{"$f":"SUM($BH25:BS25)","v":99331.676360000041},{"$f":"SUM($BH25:BT25)","v":101518.4430266667},{"$f":"SUM($BH25:BU25)","v":103705.20969333337},{"$f":"SUM($BH25:BV25)","v":105891.97636000003},{"$f":"SUM($BH25:BW25)","v":108078.74302666669},{"$f":"SUM($BH25:BX25)","v":110265.50969333336},{"$f":"SUM($BH25:BY25)","v":112452.27636000002},{"$f":"SUM($BH25:BZ25)","v":114639.04302666668},{"$f":"SUM($BH25:CA25)","v":116825.80969333334}]
[{"$f":"PQS!A26","v":"ILR"},{"$f":"PQS!B26","v":"E003/021"},{"$f":"PQS!E26","v":"VLS 400"},{"$f":"PQS!F26","v":"Vestfrost"},{"$f":"PQS!D26","v":"Vestfrost VLS 400"},{"$f":"VLOOKUP(E26,PQS!$D$5:$K$107,COLUMN(PQS!$I$3)-COLUMN(PQS!$D$3)+1,FALSE)","v":216},{"$f":"VLOOKUP(E26,PQS!$D$5:$K$107,COLUMN(PQS!$J$3)-COLUMN(PQS!$D$3)+1,FALSE)","v":0},{"$f":"VLOOKUP(E26,PQS!$D$5:$K$107,COLUMN(PQS!$G$3)-COLUMN(PQS!$D$3)+1,FALSE)","v":"No"},{"$f":"HLOOKUP(B26,INDIRECT(\"'\"&A26&\"'!$10:$15\"),ROW('Technology template'!$A$11)-ROW('Technology template'!$A$10)+1,FALSE)","v":10},{"$f":"HLOOKUP(B26,INDIRECT(\"'\"&A26&\"'!$10:$15\"),ROW('Technology template'!$A$12)-ROW('Technology template'!$A$10)+1,FALSE)","v":0},{"$f":"HLOOKUP(B26,INDIRECT(\"'\"&A26&\"'!$10:$15\"),ROW('Technology template'!$A$13)-ROW('Technology template'!$A$10)+1,FALSE)","v":0},{"$f":"VLOOKUP(B26,PQS!$B:$Q,MATCH(PQS!$Q$3,PQS!$B$3:$Q$3,0),FALSE)*(1+'Country Input'!$C$47)+HLOOKUP(B26,INDIRECT(\"'\"&A26&\"'!$10:$15\"),ROW('Technology template'!$A$14)-ROW('Technology template'!$A$10)+1,FALSE)*(1+'Country Input'!$C$47)","v":948.57640000000004},{"$f":"HLOOKUP(B26,INDIRECT(\"'\"&A26&\"'!$10:$80\"),MATCH('Technology template'!$A$27,INDIRECT(\"'\"&A26&\"'!$A$10:$A$80\"),0),FALSE)+'Labor and Maintenance '!$E$22","v":748},{"$f":"VLOOKUP(B26,PQS!B:T,MATCH(PQS!$T$3,PQS!$B$3:$T$3,0),FALSE)*(1+'Country Input'!$C$47)","v":306.95849700000008},2003.534897,200.35348970000001,{"$f":"VLOOKUP(B26,PQS!$B:$AE,COLUMN(PQS!AD24)-1,FALSE)","v":59.86},{"$f":"IFERROR(1/HLOOKUP(B26,INDIRECT(\"'\"&A26&\"'!$10:$80\"),MATCH('Technology template'!$A$31,INDIRECT(\"'\"&A26&\"'!$A$10:$A$80\"),0),FALSE)*HLOOKUP(B26,INDIRECT(\"'\"&A26&\"'!$10:$80\"),MATCH('Technology template'!$A$41,INDIRECT(\"'\"&A26&\"'!$A10:$A$80\"),0),FALSE),0)*TechnicianHourlyWage+IF(A26=\"Solar w Battery\",1/'Labor and Maintenance '!$E$53*'Labor and Maintenance '!$D$53,0)+IF(A26=\"LT passive\", 1/'Labor and Maintenance '!$E$81*'Labor and Maintenance '!$D$81,0)","v":24},{"$f":"IFERROR(1/HLOOKUP(B26,INDIRECT(\"'\"&A26&\"'!$10:$80\"),MATCH('Technology template'!$A$34,INDIRECT(\"'\"&A26&\"'!$A$10:$A$80\"),0),FALSE)*(HLOOKUP(B26,INDIRECT(\"'\"&A26&\"'!$10:$80\"),MATCH('Technology template'!$A$44,INDIRECT(\"'\"&A26&\"'!$A10:$A$80\"),0),FALSE)*TechnicianHourlyWage+RemoteTravelCostPerDay),0)+IFERROR(1/HLOOKUP(B26,INDIRECT(\"'\"&A26&\"'!$10:$80\"),MATCH('Technology template'!$A$35,INDIRECT(\"'\"&A26&\"'!$A$10:$A$80\"),0),FALSE)*(HLOOKUP(B26,INDIRECT(\"'\"&A26&\"'!$10:$80\"),MATCH('Technology template'!$A$45,INDIRECT(\"'\"&A26&\"'!$A10:$A$80\"),0),FALSE)*TechnicianHourlyWage+RemoteTravelCostPerDay),0)+IFERROR(1/HLOOKUP(B26,INDIRECT(\"'\"&A26&\"'!$10:$80\"),MATCH('Technology template'!$A$37,INDIRECT(\"'\"&A26&\"'!$A$10:$A$80\"),0),FALSE)*(HLOOKUP(B26,INDIRECT(\"'\"&A26&\"'!$10:$80\"),MATCH('Technology template'!$A$46,INDIRECT(\"'\"&A26&\"'!$A10:$A$80\"),0),FALSE)*TechnicianHourlyWage+'Labor and Maintenance '!$B$8),0)","v":94.666666666666657},1785.2666666666664,178.52666666666664,378.88015636666665,null,"Vestfrost VLS 400",9.2756245231481476,8.2651234567901231,17.540747979938271,null,"Vestfrost VLS 400",0.92756245231481482,0.82651234567901222,1.7540747979938272,null,"Vestfrost VLS 400",1,2003.534897,1785.2666666666664,3788.8015636666664,null,"Vestfrost VLS 400",1,0.92756245231481482,0.82651234567901222,1.7540747979938272,null,"Vestfrost VLS 400",{"$f":"IF(F26=0, 'Country Input'!$D$7, ROUNDUP(LitersPerFacility/F26,0)*'Country Input'!$D$7)","v":10},20035.348969999999,1785.2666666666664,21820.615636666666,null,"Vestfrost VLS 400",{"$f":"ROUNDUP(LitersPerFacility/F26,0)*'Country Input'!$D$7*ROUNDUP('Total Solution Costs'!$B$2/Calculations!I26,0)","v":10},9.2756245231481476,0.82651234567901222,10.102136868827159,null,null,"Vestfrost VLS 400",{"$f":"(($U26+($O26)*IF(MOD(BH$3,$I26)=1,1,0)+Parts!$E$91*IF($J26=0,0,IF(MOD(BH$3,$I26)=1,IF(PQS!$R26=\"NO\",1,0),IF(MOD(BH$3,Calculations!$J26)=1,1,0)))+Parts!$E$92*IF(Calculations!$K26=0,0,IF(MOD(BH$3,$I26)=1,0,IF(MOD(BH$3,Calculations!$K26)=1,1,0))))*$AU26)*(1+'Country Input'!$C$45)^(Calculations!BH$3-$BH$3)+TrainingCost","v":21820.615636666666},{"$f":"(($U26+($O26)*IF(MOD(BI$3,$I26)=1,1,0)+Parts!$E$91*IF($J26=0,0,IF(MOD(BI$3,$I26)=1,IF(PQS!$R26=\"NO\",1,0),IF(MOD(BI$3,Calculations!$J26)=1,1,0)))+Parts!$E$92*IF(Calculations!$K26=0,0,IF(MOD(BI$3,$I26)=1,0,IF(MOD(BI$3,Calculations!$K26)=1,1,0))))*$AU26)*(1+'Country Input'!$C$45)^(Calculations!BI$3-$BH$3)","v":1785.2666666666664},{"$f":"(($U26+($O26)*IF(MOD(BJ$3,$I26)=1,1,0)+Parts!$E$91*IF($J26=0,0,IF(MOD(BJ$3,$I26)=1,IF(PQS!$R26=\"NO\",1,0),IF(MOD(BJ$3,Calculations!$J26)=1,1,0)))+Parts!$E$92*IF(Calculations!$K26=0,0,IF(MOD(BJ$3,$I26)=1,0,IF(MOD(BJ$3,Calculations!$K26)=1,1,0))))*$AU26)*(1+'Country Input'!$C$45)^(Calculations!BJ$3-$BH$3)","v":1785.2666666666664},{"$f":"(($U26+($O26)*IF(MOD(BK$3,$I26)=1,1,0)+Parts!$E$91*IF($J26=0,0,IF(MOD(BK$3,$I26)=1,IF(PQS!$R26=\"NO\",1,0),IF(MOD(BK$3,Calculations!$J26)=1,1,0)))+Parts!$E$92*IF(Calculations!$K26=0,0,IF(MOD(BK$3,$I26)=1,0,IF(MOD(BK$3,Calculations!$K26)=1,1,0))))*$AU26)*(1+'Country Input'!$C$45)^(Calculations!BK$3-$BH$3)","v":1785.2666666666664},{"$f":"(($U26+($O26)*IF(MOD(BL$3,$I26)=1,1,0)+Parts!$E$91*IF($J26=0,0,IF(MOD(BL$3,$I26)=1,IF(PQS!$R26=\"NO\",1,0),IF(MOD(BL$3,Calculations!$J26)=1,1,0)))+Parts!$E$92*IF(Calculations!$K26=0,0,IF(MOD(BL$3,$I26)=1,0,IF(MOD(BL$3,Calculations!$K26)=1,1,0))))*$AU26)*(1+'Country Input'!$C$45)^(Calculations!BL$3-$BH$3)","v":1785.2666666666664},{"$f":"(($U26+($O26)*IF(MOD(BM$3,$I26)=1,1,0)+Parts!$E$91*IF($J26=0,0,IF(MOD(BM$3,$I26)=1,IF(PQS!$R26=\"NO\",1,0),IF(MOD(BM$3,Calculations!$J26)=1,1,0)))+Parts!$E$92*IF(Calculations!$K26=0,0,IF(MOD(BM$3,$I26)=1,0,IF(MOD(BM$3,Calculations!$K26)=1,1,0))))*$AU26)*(1+'Country Input'!$C$45)^(Calculations!BM$3-$BH$3)","v":1785.2666666666664},{"$f":"(($U26+($O26)*IF(MOD(BN$3,$I26)=1,1,0)+Parts!$E$91*IF($J26=0,0,IF(MOD(BN$3,$I26)=1,IF(PQS!$R26=\"NO\",1,0),IF(MOD(BN$3,Calculations!$J26)=1,1,0)))+Parts!$E$92*IF(Calculations!$K26=0,0,IF(MOD(BN$3,$I26)=1,0,IF(MOD(BN$3,Calculations!$K26)=1,1,0))))*$AU26)*(1+'Country Input'!$C$45)^(Calculations!BN$3-$BH$3)","v":1785.2666666666664},{"$f":"(($U26+($O26)*IF(MOD(BO$3,$I26)=1,1,0)+Parts!$E$91*IF($J26=0,0,IF(MOD(BO$3,$I26)=1,IF(PQS!$R26=\"NO\",1,0),IF(MOD(BO$3,Calculations!$J26)=1,1,0)))+Parts!$E$92*IF(Calculations!$K26=0,0,IF(MOD(BO$3,$I26)=1,0,IF(MOD(BO$3,Calculations!$K26)=1,1,0))))*$AU26)*(1+'Country Input'!$C$45)^(Calculations!BO$3-$BH$3)","v":1785.2666666666664},{"$f":"(($U26+($O26)*IF(MOD(BP$3,$I26)=1,1,0)+Parts!$E$91*IF($J26=0,0,IF(MOD(BP$3,$I26)=1,IF(PQS!$R26=\"NO\",1,0),IF(MOD(BP$3,Calculations!$J26)=1,1,0)))+Parts!$E$92*IF(Calculations!$K26=0,0,IF(MOD(BP$3,$I26)=1,0,IF(MOD(BP$3,Calculations!$K26)=1,1,0))))*$AU26)*(1+'Country Input'!$C$45)^(Calculations!BP$3-$BH$3)","v":1785.2666666666664},{"$f":"(($U26+($O26)*IF(MOD(BQ$3,$I26)=1,1,0)+Parts!$E$91*IF($J26=0,0,IF(MOD(BQ$3,$I26)=1,IF(PQS!$R26=\"NO\",1,0),IF(MOD(BQ$3,Calculations!$J26)=1,1,0)))+Parts!$E$92*IF(Calculations!$K26=0,0,IF(MOD(BQ$3,$I26)=1,0,IF(MOD(BQ$3,Calculations!$K26)=1,1,0))))*$AU26)*(1+'Country Input'!$C$45)^(Calculations!BQ$3-$BH$3)","v":1785.2666666666664},{"$f":"(($U26+($O26)*IF(MOD(BR$3,$I26)=1,1,0)+Parts!$E$91*IF($J26=0,0,IF(MOD(BR$3,$I26)=1,IF(PQS!$R26=\"NO\",1,0),IF(MOD(BR$3,Calculations!$J26)=1,1,0)))+Parts!$E$92*IF(Calculations!$K26=0,0,IF(MOD(BR$3,$I26)=1,0,IF(MOD(BR$3,Calculations!$K26)=1,1,0))))*$AU26)*(1+'Country Input'!$C$45)^(Calculations!BR$3-$BH$3)","v":21820.615636666666},{"$f":"(($U26+($O26)*IF(MOD(BS$3,$I26)=1,1,0)+Parts!$E$91*IF($J26=0,0,IF(MOD(BS$3,$I26)=1,IF(PQS!$R26=\"NO\",1,0),IF(MOD(BS$3,Calculations!$J26)=1,1,0)))+Parts!$E$92*IF(Calculations!$K26=0,0,IF(MOD(BS$3,$I26)=1,0,IF(MOD(BS$3,Calculations!$K26)=1,1,0))))*$AU26)*(1+'Country Input'!$C$45)^(Calculations!BS$3-$BH$3)","v":1785.2666666666664},{"$f":"(($U26+($O26)*IF(MOD(BT$3,$I26)=1,1,0)+Parts!$E$91*IF($J26=0,0,IF(MOD(BT$3,$I26)=1,IF(PQS!$R26=\"NO\",1,0),IF(MOD(BT$3,Calculations!$J26)=1,1,0)))+Parts!$E$92*IF(Calculations!$K26=0,0,IF(MOD(BT$3,$I26)=1,0,IF(MOD(BT$3,Calculations!$K26)=1,1,0))))*$AU26)*(1+'Country Input'!$C$45)^(Calculations!BT$3-$BH$3)","v":1785.2666666666664},{"$f":"(($U26+($O26)*IF(MOD(BU$3,$I26)=1,1,0)+Parts!$E$91*IF($J26=0,0,IF(MOD(BU$3,$I26)=1,IF(PQS!$R26=\"NO\",1,0),IF(MOD(BU$3,Calculations!$J26)=1,1,0)))+Parts!$E$92*IF(Calculations!$K26=0,0,IF(MOD(BU$3,$I26)=1,0,IF(MOD(BU$3,Calculations!$K26)=1,1,0))))*$AU26)*(1+'Country Input'!$C$45)^(Calculations!BU$3-$BH$3)","v":1785.2666666666664},{"$f":"(($U26+($O26)*IF(MOD(BV$3,$I26)=1,1,0)+Parts!$E$91*IF($J26=0,0,IF(MOD(BV$3,$I26)=1,IF(PQS!$R26=\"NO\",1,0),IF(MOD(BV$3,Calculations!$J26)=1,1,0)))+Parts!$E$92*IF(Calculations!$K26=0,0,IF(MOD(BV$3,$I26)=1,0,IF(MOD(BV$3,Calculations!$K26)=1,1,0))))*$AU26)*(1+'Country Input'!$C$45)^(Calculations!BV$3-$BH$3)","v":1785.2666666666664},{"$f":"(($U26+($O26)*IF(MOD(BW$3,$I26)=1,1,0)+Parts!$E$91*IF($J26=0,0,IF(MOD(BW$3,$I26)=1,IF(PQS!$R26=\"NO\",1,0),IF(MOD(BW$3,Calculations!$J26)=1,1,0)))+Parts!$E$92*IF(Calculations!$K26=0,0,IF(MOD(BW$3,$I26)=1,0,IF(MOD(BW$3,Calculations!$K26)=1,1,0))))*$AU26)*(1+'Country Input'!$C$45)^(Calculations!BW$3-$BH$3)","v":1785.2666666666664},{"$f":"(($U26+($O26)*IF(MOD(BX$3,$I26)=1,1,0)+Parts!$E$91*IF($J26=0,0,IF(MOD(BX$3,$I26)=1,IF(PQS!$R26=\"NO\",1,0),IF(MOD(BX$3,Calculations!$J26)=1,1,0)))+Parts!$E$92*IF(Calculations!$K26=0,0,IF(MOD(BX$3,$I26)=1,0,IF(MOD(BX$3,Calculations!$K26)=1,1,0))))*$AU26)*(1+'Country Input'!$C$45)^(Calculations!BX$3-$BH$3)","v":1785.2666666666664},{"$f":"(($U26+($O26)*IF(MOD(BY$3,$I26)=1,1,0)+Parts!$E$91*IF($J26=0,0,IF(MOD(BY$3,$I26)=1,IF(PQS!$R26=\"NO\",1,0),IF(MOD(BY$3,Calculations!$J26)=1,1,0)))+Parts!$E$92*IF(Calculations!$K26=0,0,IF(MOD(BY$3,$I26)=1,0,IF(MOD(BY$3,Calculations!$K26)=1,1,0))))*$AU26)*(1+'Country Input'!$C$45)^(Calculations!BY$3-$BH$3)","v":1785.2666666666664},{"$f":"(($U26+($O26)*IF(MOD(BZ$3,$I26)=1,1,0)+Parts!$E$91*IF($J26=0,0,IF(MOD(BZ$3,$I26)=1,IF(PQS!$R26=\"NO\",1,0),IF(MOD(BZ$3,Calculations!$J26)=1,1,0)))+Parts!$E$92*IF(Calculations!$K26=0,0,IF(MOD(BZ$3,$I26)=1,0,IF(MOD(BZ$3,Calculations!$K26)=1,1,0))))*$AU26)*(1+'Country Input'!$C$45)^(Calculations!BZ$3-$BH$3)","v":1785.2666666666664},{"$f":"(($U26+($O26)*IF(MOD(CA$3,$I26)=1,1,0)+Parts!$E$91*IF($J26=0,0,IF(MOD(CA$3,$I26)=1,IF(PQS!$R26=\"NO\",1,0),IF(MOD(CA$3,Calculations!$J26)=1,1,0)))+Parts!$E$92*IF(Calculations!$K26=0,0,IF(MOD(CA$3,$I26)=1,0,IF(MOD(CA$3,Calculations!$K26)=1,1,0))))*$AU26)*(1+'Country Input'!$C$45)^(Calculations!CA$3-$BH$3)","v":1785.2666666666664},null,"Vestfrost VLS 400",21820.615636666666,1785.2666666666664,1785.2666666666664,1785.2666666666664,1785.2666666666664,1785.2666666666664,1785.2666666666664,1785.2666666666664,1785.2666666666664,1785.2666666666664,21820.615636666666,1785.2666666666664,1785.2666666666664,1785.2666666666664,1785.2666666666664,1785.2666666666664,1785.2666666666664,1785.2666666666664,1785.2666666666664,1785.2666666666664,{"$f":"SUM(CD26:INDEX($CD26:$CW26,1,'Total Solution Costs'!$B$2))","v":37888.015636666663},null,"Vestfrost VLS 400",{"$f":"SUM($BH26:BH26)","v":21820.615636666666},{"$f":"SUM($BH26:BI26)","v":23605.882303333332},{"$f":"SUM($BH26:BJ26)","v":25391.148969999998},{"$f":"SUM($BH26:BK26)","v":27176.415636666665},{"$f":"SUM($BH26:BL26)","v":28961.682303333331},{"$f":"SUM($BH26:BM26)","v":30746.948969999998},{"$f":"SUM($BH26:BN26)","v":32532.215636666664},{"$f":"SUM($BH26:BO26)","v":34317.48230333333},{"$f":"SUM($BH26:BP26)","v":36102.748970000001},{"$f":"SUM($BH26:BQ26)","v":37888.015636666663},{"$f":"SUM($BH26:BR26)","v":59708.631273333333},{"$f":"SUM($BH26:BS26)","v":61493.897939999995},{"$f":"SUM($BH26:BT26)","v":63279.164606666658},{"$f":"SUM($BH26:BU26)","v":65064.431273333321},{"$f":"SUM($BH26:BV26)","v":66849.697939999984},{"$f":"SUM($BH26:BW26)","v":68634.964606666646},{"$f":"SUM($BH26:BX26)","v":70420.231273333309},{"$f":"SUM($BH26:BY26)","v":72205.497939999972},{"$f":"SUM($BH26:BZ26)","v":73990.764606666635},{"$f":"SUM($BH26:CA26)","v":75776.031273333298}]
[{"$f":"PQS!A27","v":"ILR"},{"$f":"PQS!B27","v":"E003/022"},{"$f":"PQS!E27","v":"MK 144"},{"$f":"PQS!F27","v":"Vestfrost"},{"$f":"PQS!D27","v":"Vestfrost MK 144"},{"$f":"VLOOKUP(E27,PQS!$D$5:$K$107,COLUMN(PQS!$I$3)-COLUMN(PQS!$D$3)+1,FALSE)","v":48},{"$f":"VLOOKUP(E27,PQS!$D$5:$K$107,COLUMN(PQS!$J$3)-COLUMN(PQS!$D$3)+1,FALSE)","v":0},{"$f":"VLOOKUP(E27,PQS!$D$5:$K$107,COLUMN(PQS!$G$3)-COLUMN(PQS!$D$3)+1,FALSE)","v":"No"},{"$f":"HLOOKUP(B27,INDIRECT(\"'\"&A27&\"'!$10:$15\"),ROW('Technology template'!$A$11)-ROW('Technology template'!$A$10)+1,FALSE)","v":10},{"$f":"HLOOKUP(B27,INDIRECT(\"'\"&A27&\"'!$10:$15\"),ROW('Technology template'!$A$12)-ROW('Technology template'!$A$10)+1,FALSE)","v":0},{"$f":"HLOOKUP(B27,INDIRECT(\"'\"&A27&\"'!$10:$15\"),ROW('Technology template'!$A$13)-ROW('Technology template'!$A$10)+1,FALSE)","v":0},{"$f":"VLOOKUP(B27,PQS!$B:$Q,MATCH(PQS!$Q$3,PQS!$B$3:$Q$3,0),FALSE)*(1+'Country Input'!$C$47)+HLOOKUP(B27,INDIRECT(\"'\"&A27&\"'!$10:$15\"),ROW('Technology template'!$A$14)-ROW('Technology template'!$A$10)+1,FALSE)*(1+'Country Input'!$C$47)","v":683.91189999999995},{"$f":"HLOOKUP(B27,INDIRECT(\"'\"&A27&\"'!$10:$80\"),MATCH('Technology template'!$A$27,INDIRECT(\"'\"&A27&\"'!$A$10:$A$80\"),0),FALSE)+'Labor and Maintenance '!$E$22","v":748},{"$f":"VLOOKUP(B27,PQS!B:T,MATCH(PQS!$T$3,PQS!$B$3:$T$3,0),FALSE)*(1+'Country Input'!$C$47)","v":305.62891499999995},1737.5408150000001,173.75408150000001,{"$f":"VLOOKUP(B27,PQS!$B:$AE,COLUMN(PQS!AD25)-1,FALSE)","v":167.89999999999998},{"$f":"IFERROR(1/HLOOKUP(B27,INDIRECT(\"'\"&A27&\"'!$10:$80\"),MATCH('Technology template'!$A$31,INDIRECT(\"'\"&A27&\"'!$A$10:$A$80\"),0),FALSE)*HLOOKUP(B27,INDIRECT(\"'\"&A27&\"'!$10:$80\"),MATCH('Technology template'!$A$41,INDIRECT(\"'\"&A27&\"'!$A10:$A$80\"),0),FALSE),0)*TechnicianHourlyWage+IF(A27=\"Solar w Battery\",1/'Labor and Maintenance '!$E$53*'Labor and Maintenance '!$D$53,0)+IF(A27=\"LT passive\", 1/'Labor and Maintenance '!$E$81*'Labor and Maintenance '!$D$81,0)","v":24},{"$f":"IFERROR(1/HLOOKUP(B27,INDIRECT(\"'\"&A27&\"'!$10:$80\"),MATCH('Technology template'!$A$34,INDIRECT(\"'\"&A27&\"'!$A$10:$A$80\"),0),FALSE)*(HLOOKUP(B27,INDIRECT(\"'\"&A27&\"'!$10:$80\"),MATCH('Technology template'!$A$44,INDIRECT(\"'\"&A27&\"'!$A10:$A$80\"),0),FALSE)*TechnicianHourlyWage+RemoteTravelCostPerDay),0)+IFERROR(1/HLOOKUP(B27,INDIRECT(\"'\"&A27&\"'!$10:$80\"),MATCH('Technology template'!$A$35,INDIRECT(\"'\"&A27&\"'!$A$10:$A$80\"),0),FALSE)*(HLOOKUP(B27,INDIRECT(\"'\"&A27&\"'!$10:$80\"),MATCH('Technology template'!$A$45,INDIRECT(\"'\"&A27&\"'!$A10:$A$80\"),0),FALSE)*TechnicianHourlyWage+RemoteTravelCostPerDay),0)+IFERROR(1/HLOOKUP(B27,INDIRECT(\"'\"&A27&\"'!$10:$80\"),MATCH('Technology template'!$A$37,INDIRECT(\"'\"&A27&\"'!$A$10:$A$80\"),0),FALSE)*(HLOOKUP(B27,INDIRECT(\"'\"&A27&\"'!$10:$80\"),MATCH('Technology template'!$A$46,INDIRECT(\"'\"&A27&\"'!$A10:$A$80\"),0),FALSE)*TechnicianHourlyWage+'Labor and Maintenance '!$B$8),0)","v":94.666666666666657},2865.6666666666661,286.56666666666661,460.32074816666659,null,"Vestfrost MK 144",36.19876697916667,59.701388888888879,95.900155868055549,null,"Vestfrost MK 144",3.6198766979166668,5.9701388888888873,9.5900155868055545,null,"Vestfrost MK 144",3,5212.622445,8596.9999999999982,13809.622444999997,null,"Vestfrost MK 144",3,10.859630093750001,17.910416666666663,28.770046760416662,null,"Vestfrost MK 144",{"$f":"IF(F27=0, 'Country Input'!$D$7, ROUNDUP(LitersPerFacility/F27,0)*'Country Input'!$D$7)","v":10},17375.408149999999,2865.6666666666661,20241.074816666667,null,"Vestfrost MK 144",{"$f":"ROUNDUP(LitersPerFacility/F27,0)*'Country Input'!$D$7*ROUNDUP('Total Solution Costs'!$B$2/Calculations!I27,0)","v":10},36.19876697916667,5.9701388888888873,42.16890586805556,null,null,"Vestfrost MK 144",{"$f":"(($U27+($O27)*IF(MOD(BH$3,$I27)=1,1,0)+Parts!$E$91*IF($J27=0,0,IF(MOD(BH$3,$I27)=1,IF(PQS!$R27=\"NO\",1,0),IF(MOD(BH$3,Calculations!$J27)=1,1,0)))+Parts!$E$92*IF(Calculations!$K27=0,0,IF(MOD(BH$3,$I27)=1,0,IF(MOD(BH$3,Calculations!$K27)=1,1,0))))*$AU27)*(1+'Country Input'!$C$45)^(Calculations!BH$3-$BH$3)+TrainingCost","v":20241.074816666667},{"$f":"(($U27+($O27)*IF(MOD(BI$3,$I27)=1,1,0)+Parts!$E$91*IF($J27=0,0,IF(MOD(BI$3,$I27)=1,IF(PQS!$R27=\"NO\",1,0),IF(MOD(BI$3,Calculations!$J27)=1,1,0)))+Parts!$E$92*IF(Calculations!$K27=0,0,IF(MOD(BI$3,$I27)=1,0,IF(MOD(BI$3,Calculations!$K27)=1,1,0))))*$AU27)*(1+'Country Input'!$C$45)^(Calculations!BI$3-$BH$3)","v":2865.6666666666661},{"$f":"(($U27+($O27)*IF(MOD(BJ$3,$I27)=1,1,0)+Parts!$E$91*IF($J27=0,0,IF(MOD(BJ$3,$I27)=1,IF(PQS!$R27=\"NO\",1,0),IF(MOD(BJ$3,Calculations!$J27)=1,1,0)))+Parts!$E$92*IF(Calculations!$K27=0,0,IF(MOD(BJ$3,$I27)=1,0,IF(MOD(BJ$3,Calculations!$K27)=1,1,0))))*$AU27)*(1+'Country Input'!$C$45)^(Calculations!BJ$3-$BH$3)","v":2865.6666666666661},{"$f":"(($U27+($O27)*IF(MOD(BK$3,$I27)=1,1,0)+Parts!$E$91*IF($J27=0,0,IF(MOD(BK$3,$I27)=1,IF(PQS!$R27=\"NO\",1,0),IF(MOD(BK$3,Calculations!$J27)=1,1,0)))+Parts!$E$92*IF(Calculations!$K27=0,0,IF(MOD(BK$3,$I27)=1,0,IF(MOD(BK$3,Calculations!$K27)=1,1,0))))*$AU27)*(1+'Country Input'!$C$45)^(Calculations!BK$3-$BH$3)","v":2865.6666666666661},{"$f":"(($U27+($O27)*IF(MOD(BL$3,$I27)=1,1,0)+Parts!$E$91*IF($J27=0,0,IF(MOD(BL$3,$I27)=1,IF(PQS!$R27=\"NO\",1,0),IF(MOD(BL$3,Calculations!$J27)=1,1,0)))+Parts!$E$92*IF(Calculations!$K27=0,0,IF(MOD(BL$3,$I27)=1,0,IF(MOD(BL$3,Calculations!$K27)=1,1,0))))*$AU27)*(1+'Country Input'!$C$45)^(Calculations!BL$3-$BH$3)","v":2865.6666666666661},{"$f":"(($U27+($O27)*IF(MOD(BM$3,$I27)=1,1,0)+Parts!$E$91*IF($J27=0,0,IF(MOD(BM$3,$I27)=1,IF(PQS!$R27=\"NO\",1,0),IF(MOD(BM$3,Calculations!$J27)=1,1,0)))+Parts!$E$92*IF(Calculations!$K27=0,0,IF(MOD(BM$3,$I27)=1,0,IF(MOD(BM$3,Calculations!$K27)=1,1,0))))*$AU27)*(1+'Country Input'!$C$45)^(Calculations!BM$3-$BH$3)","v":2865.6666666666661},{"$f":"(($U27+($O27)*IF(MOD(BN$3,$I27)=1,1,0)+Parts!$E$91*IF($J27=0,0,IF(MOD(BN$3,$I27)=1,IF(PQS!$R27=\"NO\",1,0),IF(MOD(BN$3,Calculations!$J27)=1,1,0)))+Parts!$E$92*IF(Calculations!$K27=0,0,IF(MOD(BN$3,$I27)=1,0,IF(MOD(BN$3,Calculations!$K27)=1,1,0))))*$AU27)*(1+'Country Input'!$C$45)^(Calculations!BN$3-$BH$3)","v":2865.6666666666661},{"$f":"(($U27+($O27)*IF(MOD(BO$3,$I27)=1,1,0)+Parts!$E$91*IF($J27=0,0,IF(MOD(BO$3,$I27)=1,IF(PQS!$R27=\"NO\",1,0),IF(MOD(BO$3,Calculations!$J27)=1,1,0)))+Parts!$E$92*IF(Calculations!$K27=0,0,IF(MOD(BO$3,$I27)=1,0,IF(MOD(BO$3,Calculations!$K27)=1,1,0))))*$AU27)*(1+'Country Input'!$C$45)^(Calculations!BO$3-$BH$3)","v":2865.6666666666661},{"$f":"(($U27+($O27)*IF(MOD(BP$3,$I27)=1,1,0)+Parts!$E$91*IF($J27=0,0,IF(MOD(BP$3,$I27)=1,IF(PQS!$R27=\"NO\",1,0),IF(MOD(BP$3,Calculations!$J27)=1,1,0)))+Parts!$E$92*IF(Calculations!$K27=0,0,IF(MOD(BP$3,$I27)=1,0,IF(MOD(BP$3,Calculations!$K27)=1,1,0))))*$AU27)*(1+'Country Input'!$C$45)^(Calculations!BP$3-$BH$3)","v":2865.6666666666661},{"$f":"(($U27+($O27)*IF(MOD(BQ$3,$I27)=1,1,0)+Parts!$E$91*IF($J27=0,0,IF(MOD(BQ$3,$I27)=1,IF(PQS!$R27=\"NO\",1,0),IF(MOD(BQ$3,Calculations!$J27)=1,1,0)))+Parts!$E$92*IF(Calculations!$K27=0,0,IF(MOD(BQ$3,$I27)=1,0,IF(MOD(BQ$3,Calculations!$K27)=1,1,0))))*$AU27)*(1+'Country Input'!$C$45)^(Calculations!BQ$3-$BH$3)","v":2865.6666666666661},{"$f":"(($U27+($O27)*IF(MOD(BR$3,$I27)=1,1,0)+Parts!$E$91*IF($J27=0,0,IF(MOD(BR$3,$I27)=1,IF(PQS!$R27=\"NO\",1,0),IF(MOD(BR$3,Calculations!$J27)=1,1,0)))+Parts!$E$92*IF(Calculations!$K27=0,0,IF(MOD(BR$3,$I27)=1,0,IF(MOD(BR$3,Calculations!$K27)=1,1,0))))*$AU27)*(1+'Country Input'!$C$45)^(Calculations!BR$3-$BH$3)","v":20241.074816666667},{"$f":"(($U27+($O27)*IF(MOD(BS$3,$I27)=1,1,0)+Parts!$E$91*IF($J27=0,0,IF(MOD(BS$3,$I27)=1,IF(PQS!$R27=\"NO\",1,0),IF(MOD(BS$3,Calculations!$J27)=1,1,0)))+Parts!$E$92*IF(Calculations!$K27=0,0,IF(MOD(BS$3,$I27)=1,0,IF(MOD(BS$3,Calculations!$K27)=1,1,0))))*$AU27)*(1+'Country Input'!$C$45)^(Calculations!BS$3-$BH$3)","v":2865.6666666666661},{"$f":"(($U27+($O27)*IF(MOD(BT$3,$I27)=1,1,0)+Parts!$E$91*IF($J27=0,0,IF(MOD(BT$3,$I27)=1,IF(PQS!$R27=\"NO\",1,0),IF(MOD(BT$3,Calculations!$J27)=1,1,0)))+Parts!$E$92*IF(Calculations!$K27=0,0,IF(MOD(BT$3,$I27)=1,0,IF(MOD(BT$3,Calculations!$K27)=1,1,0))))*$AU27)*(1+'Country Input'!$C$45)^(Calculations!BT$3-$BH$3)","v":2865.6666666666661},{"$f":"(($U27+($O27)*IF(MOD(BU$3,$I27)=1,1,0)+Parts!$E$91*IF($J27=0,0,IF(MOD(BU$3,$I27)=1,IF(PQS!$R27=\"NO\",1,0),IF(MOD(BU$3,Calculations!$J27)=1,1,0)))+Parts!$E$92*IF(Calculations!$K27=0,0,IF(MOD(BU$3,$I27)=1,0,IF(MOD(BU$3,Calculations!$K27)=1,1,0))))*$AU27)*(1+'Country Input'!$C$45)^(Calculations!BU$3-$BH$3)","v":2865.6666666666661},{"$f":"(($U27+($O27)*IF(MOD(BV$3,$I27)=1,1,0)+Parts!$E$91*IF($J27=0,0,IF(MOD(BV$3,$I27)=1,IF(PQS!$R27=\"NO\",1,0),IF(MOD(BV$3,Calculations!$J27)=1,1,0)))+Parts!$E$92*IF(Calculations!$K27=0,0,IF(MOD(BV$3,$I27)=1,0,IF(MOD(BV$3,Calculations!$K27)=1,1,0))))*$AU27)*(1+'Country Input'!$C$45)^(Calculations!BV$3-$BH$3)","v":2865.6666666666661},{"$f":"(($U27+($O27)*IF(MOD(BW$3,$I27)=1,1,0)+Parts!$E$91*IF($J27=0,0,IF(MOD(BW$3,$I27)=1,IF(PQS!$R27=\"NO\",1,0),IF(MOD(BW$3,Calculations!$J27)=1,1,0)))+Parts!$E$92*IF(Calculations!$K27=0,0,IF(MOD(BW$3,$I27)=1,0,IF(MOD(BW$3,Calculations!$K27)=1,1,0))))*$AU27)*(1+'Country Input'!$C$45)^(Calculations!BW$3-$BH$3)","v":2865.6666666666661},{"$f":"(($U27+($O27)*IF(MOD(BX$3,$I27)=1,1,0)+Parts!$E$91*IF($J27=0,0,IF(MOD(BX$3,$I27)=1,IF(PQS!$R27=\"NO\",1,0),IF(MOD(BX$3,Calculations!$J27)=1,1,0)))+Parts!$E$92*IF(Calculations!$K27=0,0,IF(MOD(BX$3,$I27)=1,0,IF(MOD(BX$3,Calculations!$K27)=1,1,0))))*$AU27)*(1+'Country Input'!$C$45)^(Calculations!BX$3-$BH$3)","v":2865.6666666666661},{"$f":"(($U27+($O27)*IF(MOD(BY$3,$I27)=1,1,0)+Parts!$E$91*IF($J27=0,0,IF(MOD(BY$3,$I27)=1,IF(PQS!$R27=\"NO\",1,0),IF(MOD(BY$3,Calculations!$J27)=1,1,0)))+Parts!$E$92*IF(Calculations!$K27=0,0,IF(MOD(BY$3,$I27)=1,0,IF(MOD(BY$3,Calculations!$K27)=1,1,0))))*$AU27)*(1+'Country Input'!$C$45)^(Calculations!BY$3-$BH$3)","v":2865.6666666666661},{"$f":"(($U27+($O27)*IF(MOD(BZ$3,$I27)=1,1,0)+Parts!$E$91*IF($J27=0,0,IF(MOD(BZ$3,$I27)=1,IF(PQS!$R27=\"NO\",1,0),IF(MOD(BZ$3,Calculations!$J27)=1,1,0)))+Parts!$E$92*IF(Calculations!$K27=0,0,IF(MOD(BZ$3,$I27)=1,0,IF(MOD(BZ$3,Calculations!$K27)=1,1,0))))*$AU27)*(1+'Country Input'!$C$45)^(Calculations!BZ$3-$BH$3)","v":2865.6666666666661},{"$f":"(($U27+($O27)*IF(MOD(CA$3,$I27)=1,1,0)+Parts!$E$91*IF($J27=0,0,IF(MOD(CA$3,$I27)=1,IF(PQS!$R27=\"NO\",1,0),IF(MOD(CA$3,Calculations!$J27)=1,1,0)))+Parts!$E$92*IF(Calculations!$K27=0,0,IF(MOD(CA$3,$I27)=1,0,IF(MOD(CA$3,Calculations!$K27)=1,1,0))))*$AU27)*(1+'Country Input'!$C$45)^(Calculations!CA$3-$BH$3)","v":2865.6666666666661},null,"Vestfrost MK 144",20241.074816666667,2865.6666666666661,2865.6666666666661,2865.6666666666661,2865.6666666666661,2865.6666666666661,2865.6666666666661,2865.6666666666661,2865.6666666666661,2865.6666666666661,20241.074816666667,2865.6666666666661,2865.6666666666661,2865.6666666666661,2865.6666666666661,2865.6666666666661,2865.6666666666661,2865.6666666666661,2865.6666666666661,2865.6666666666661,{"$f":"SUM(CD27:INDEX($CD27:$CW27,1,'Total Solution Costs'!$B$2))","v":46032.074816666645},null,"Vestfrost MK 144",{"$f":"SUM($BH27:BH27)","v":20241.074816666667},{"$f":"SUM($BH27:BI27)","v":23106.741483333331},{"$f":"SUM($BH27:BJ27)","v":25972.408149999996},{"$f":"SUM($BH27:BK27)","v":28838.07481666666},{"$f":"SUM($BH27:BL27)","v":31703.741483333324},{"$f":"SUM($BH27:BM27)","v":34569.408149999988},{"$f":"SUM($BH27:BN27)","v":37435.074816666653},{"$f":"SUM($BH27:BO27)","v":40300.741483333317},{"$f":"SUM($BH27:BP27)","v":43166.408149999981},{"$f":"SUM($BH27:BQ27)","v":46032.074816666645},{"$f":"SUM($BH27:BR27)","v":66273.14963333332},{"$f":"SUM($BH27:BS27)","v":69138.816299999991},{"$f":"SUM($BH27:BT27)","v":72004.482966666663},{"$f":"SUM($BH27:BU27)","v":74870.149633333334},{"$f":"SUM($BH27:BV27)","v":77735.816300000006},{"$f":"SUM($BH27:BW27)","v":80601.482966666677},{"$f":"SUM($BH27:BX27)","v":83467.149633333349},{"$f":"SUM($BH27:BY27)","v":86332.81630000002},{"$f":"SUM($BH27:BZ27)","v":89198.482966666692},{"$f":"SUM($BH27:CA27)","v":92064.149633333363}]
[{"$f":"PQS!A28","v":"ILR"},{"$f":"PQS!B28","v":"E003/031"},{"$f":"PQS!E28","v":"VLS 200"},{"$f":"PQS!F28","v":"Vestfrost"},{"$f":"PQS!D28","v":"Vestfrost VLS 200"},{"$f":"VLOOKUP(E28,PQS!$D$5:$K$107,COLUMN(PQS!$I$3)-COLUMN(PQS!$D$3)+1,FALSE)","v":100},{"$f":"VLOOKUP(E28,PQS!$D$5:$K$107,COLUMN(PQS!$J$3)-COLUMN(PQS!$D$3)+1,FALSE)","v":39},{"$f":"VLOOKUP(E28,PQS!$D$5:$K$107,COLUMN(PQS!$G$3)-COLUMN(PQS!$D$3)+1,FALSE)","v":"No"},{"$f":"HLOOKUP(B28,INDIRECT(\"'\"&A28&\"'!$10:$15\"),ROW('Technology template'!$A$11)-ROW('Technology template'!$A$10)+1,FALSE)","v":10},{"$f":"HLOOKUP(B28,INDIRECT(\"'\"&A28&\"'!$10:$15\"),ROW('Technology template'!$A$12)-ROW('Technology template'!$A$10)+1,FALSE)","v":0},{"$f":"HLOOKUP(B28,INDIRECT(\"'\"&A28&\"'!$10:$15\"),ROW('Technology template'!$A$13)-ROW('Technology template'!$A$10)+1,FALSE)","v":0},{"$f":"VLOOKUP(B28,PQS!$B:$Q,MATCH(PQS!$Q$3,PQS!$B$3:$Q$3,0),FALSE)*(1+'Country Input'!$C$47)+HLOOKUP(B28,INDIRECT(\"'\"&A28&\"'!$10:$15\"),ROW('Technology template'!$A$14)-ROW('Technology template'!$A$10)+1,FALSE)*(1+'Country Input'!$C$47)","v":694.14110000000005},{"$f":"HLOOKUP(B28,INDIRECT(\"'\"&A28&\"'!$10:$80\"),MATCH('Technology template'!$A$27,INDIRECT(\"'\"&A28&\"'!$A$10:$A$80\"),0),FALSE)+'Labor and Maintenance '!$E$22","v":748},{"$f":"VLOOKUP(B28,PQS!B:T,MATCH(PQS!$T$3,PQS!$B$3:$T$3,0),FALSE)*(1+'Country Input'!$C$47)","v":298.28122500000006},1740.422325,174.04223250000001,{"$f":"VLOOKUP(B28,PQS!$B:$AE,COLUMN(PQS!AD26)-1,FALSE)","v":51.83},{"$f":"IFERROR(1/HLOOKUP(B28,INDIRECT(\"'\"&A28&\"'!$10:$80\"),MATCH('Technology template'!$A$31,INDIRECT(\"'\"&A28&\"'!$A$10:$A$80\"),0),FALSE)*HLOOKUP(B28,INDIRECT(\"'\"&A28&\"'!$10:$80\"),MATCH('Technology template'!$A$41,INDIRECT(\"'\"&A28&\"'!$A10:$A$80\"),0),FALSE),0)*TechnicianHourlyWage+IF(A28=\"Solar w Battery\",1/'Labor and Maintenance '!$E$53*'Labor and Maintenance '!$D$53,0)+IF(A28=\"LT passive\", 1/'Labor and Maintenance '!$E$81*'Labor and Maintenance '!$D$81,0)","v":24},{"$f":"IFERROR(1/HLOOKUP(B28,INDIRECT(\"'\"&A28&\"'!$10:$80\"),MATCH('Technology template'!$A$34,INDIRECT(\"'\"&A28&\"'!$A$10:$A$80\"),0),FALSE)*(HLOOKUP(B28,INDIRECT(\"'\"&A28&\"'!$10:$80\"),MATCH('Technology template'!$A$44,INDIRECT(\"'\"&A28&\"'!$A10:$A$80\"),0),FALSE)*TechnicianHourlyWage+RemoteTravelCostPerDay),0)+IFERROR(1/HLOOKUP(B28,INDIRECT(\"'\"&A28&\"'!$10:$80\"),MATCH('Technology template'!$A$35,INDIRECT(\"'\"&A28&\"'!$A$10:$A$80\"),0),FALSE)*(HLOOKUP(B28,INDIRECT(\"'\"&A28&\"'!$10:$80\"),MATCH('Technology template'!$A$45,INDIRECT(\"'\"&A28&\"'!$A10:$A$80\"),0),FALSE)*TechnicianHourlyWage+RemoteTravelCostPerDay),0)+IFERROR(1/HLOOKUP(B28,INDIRECT(\"'\"&A28&\"'!$10:$80\"),MATCH('Technology template'!$A$37,INDIRECT(\"'\"&A28&\"'!$A$10:$A$80\"),0),FALSE)*(HLOOKUP(B28,INDIRECT(\"'\"&A28&\"'!$10:$80\"),MATCH('Technology template'!$A$46,INDIRECT(\"'\"&A28&\"'!$A10:$A$80\"),0),FALSE)*TechnicianHourlyWage+'Labor and Maintenance '!$B$8),0)","v":94.666666666666657},1704.9666666666667,170.49666666666667,344.53889916666668,null,"Vestfrost VLS 200",17.404223250000001,17.049666666666667,34.453889916666668,null,"Vestfrost VLS 200",1.7404223250000002,1.7049666666666667,3.4453889916666669,null,"Vestfrost VLS 200",2,3480.84465,3409.9333333333334,6890.7779833333334,null,"Vestfrost VLS 200",2,3.4808446500000003,3.4099333333333335,6.8907779833333338,null,"Vestfrost VLS 200",{"$f":"IF(F28=0, 'Country Input'!$D$7, ROUNDUP(LitersPerFacility/F28,0)*'Country Input'!$D$7)","v":10},17404.223249999999,1704.9666666666667,19109.189916666666,null,"Vestfrost VLS 200",{"$f":"ROUNDUP(LitersPerFacility/F28,0)*'Country Input'!$D$7*ROUNDUP('Total Solution Costs'!$B$2/Calculations!I28,0)","v":10},17.404223250000001,1.7049666666666667,19.109189916666669,null,null,"Vestfrost VLS 200",{"$f":"(($U28+($O28)*IF(MOD(BH$3,$I28)=1,1,0)+Parts!$E$91*IF($J28=0,0,IF(MOD(BH$3,$I28)=1,IF(PQS!$R28=\"NO\",1,0),IF(MOD(BH$3,Calculations!$J28)=1,1,0)))+Parts!$E$92*IF(Calculations!$K28=0,0,IF(MOD(BH$3,$I28)=1,0,IF(MOD(BH$3,Calculations!$K28)=1,1,0))))*$AU28)*(1+'Country Input'!$C$45)^(Calculations!BH$3-$BH$3)+TrainingCost","v":19109.189916666666},{"$f":"(($U28+($O28)*IF(MOD(BI$3,$I28)=1,1,0)+Parts!$E$91*IF($J28=0,0,IF(MOD(BI$3,$I28)=1,IF(PQS!$R28=\"NO\",1,0),IF(MOD(BI$3,Calculations!$J28)=1,1,0)))+Parts!$E$92*IF(Calculations!$K28=0,0,IF(MOD(BI$3,$I28)=1,0,IF(MOD(BI$3,Calculations!$K28)=1,1,0))))*$AU28)*(1+'Country Input'!$C$45)^(Calculations!BI$3-$BH$3)","v":1704.9666666666667},{"$f":"(($U28+($O28)*IF(MOD(BJ$3,$I28)=1,1,0)+Parts!$E$91*IF($J28=0,0,IF(MOD(BJ$3,$I28)=1,IF(PQS!$R28=\"NO\",1,0),IF(MOD(BJ$3,Calculations!$J28)=1,1,0)))+Parts!$E$92*IF(Calculations!$K28=0,0,IF(MOD(BJ$3,$I28)=1,0,IF(MOD(BJ$3,Calculations!$K28)=1,1,0))))*$AU28)*(1+'Country Input'!$C$45)^(Calculations!BJ$3-$BH$3)","v":1704.9666666666667},{"$f":"(($U28+($O28)*IF(MOD(BK$3,$I28)=1,1,0)+Parts!$E$91*IF($J28=0,0,IF(MOD(BK$3,$I28)=1,IF(PQS!$R28=\"NO\",1,0),IF(MOD(BK$3,Calculations!$J28)=1,1,0)))+Parts!$E$92*IF(Calculations!$K28=0,0,IF(MOD(BK$3,$I28)=1,0,IF(MOD(BK$3,Calculations!$K28)=1,1,0))))*$AU28)*(1+'Country Input'!$C$45)^(Calculations!BK$3-$BH$3)","v":1704.9666666666667},{"$f":"(($U28+($O28)*IF(MOD(BL$3,$I28)=1,1,0)+Parts!$E$91*IF($J28=0,0,IF(MOD(BL$3,$I28)=1,IF(PQS!$R28=\"NO\",1,0),IF(MOD(BL$3,Calculations!$J28)=1,1,0)))+Parts!$E$92*IF(Calculations!$K28=0,0,IF(MOD(BL$3,$I28)=1,0,IF(MOD(BL$3,Calculations!$K28)=1,1,0))))*$AU28)*(1+'Country Input'!$C$45)^(Calculations!BL$3-$BH$3)","v":1704.9666666666667},{"$f":"(($U28+($O28)*IF(MOD(BM$3,$I28)=1,1,0)+Parts!$E$91*IF($J28=0,0,IF(MOD(BM$3,$I28)=1,IF(PQS!$R28=\"NO\",1,0),IF(MOD(BM$3,Calculations!$J28)=1,1,0)))+Parts!$E$92*IF(Calculations!$K28=0,0,IF(MOD(BM$3,$I28)=1,0,IF(MOD(BM$3,Calculations!$K28)=1,1,0))))*$AU28)*(1+'Country Input'!$C$45)^(Calculations!BM$3-$BH$3)","v":1704.9666666666667},{"$f":"(($U28+($O28)*IF(MOD(BN$3,$I28)=1,1,0)+Parts!$E$91*IF($J28=0,0,IF(MOD(BN$3,$I28)=1,IF(PQS!$R28=\"NO\",1,0),IF(MOD(BN$3,Calculations!$J28)=1,1,0)))+Parts!$E$92*IF(Calculations!$K28=0,0,IF(MOD(BN$3,$I28)=1,0,IF(MOD(BN$3,Calculations!$K28)=1,1,0))))*$AU28)*(1+'Country Input'!$C$45)^(Calculations!BN$3-$BH$3)","v":1704.9666666666667},{"$f":"(($U28+($O28)*IF(MOD(BO$3,$I28)=1,1,0)+Parts!$E$91*IF($J28=0,0,IF(MOD(BO$3,$I28)=1,IF(PQS!$R28=\"NO\",1,0),IF(MOD(BO$3,Calculations!$J28)=1,1,0)))+Parts!$E$92*IF(Calculations!$K28=0,0,IF(MOD(BO$3,$I28)=1,0,IF(MOD(BO$3,Calculations!$K28)=1,1,0))))*$AU28)*(1+'Country Input'!$C$45)^(Calculations!BO$3-$BH$3)","v":1704.9666666666667},{"$f":"(($U28+($O28)*IF(MOD(BP$3,$I28)=1,1,0)+Parts!$E$91*IF($J28=0,0,IF(MOD(BP$3,$I28)=1,IF(PQS!$R28=\"NO\",1,0),IF(MOD(BP$3,Calculations!$J28)=1,1,0)))+Parts!$E$92*IF(Calculations!$K28=0,0,IF(MOD(BP$3,$I28)=1,0,IF(MOD(BP$3,Calculations!$K28)=1,1,0))))*$AU28)*(1+'Country Input'!$C$45)^(Calculations!BP$3-$BH$3)","v":1704.9666666666667},{"$f":"(($U28+($O28)*IF(MOD(BQ$3,$I28)=1,1,0)+Parts!$E$91*IF($J28=0,0,IF(MOD(BQ$3,$I28)=1,IF(PQS!$R28=\"NO\",1,0),IF(MOD(BQ$3,Calculations!$J28)=1,1,0)))+Parts!$E$92*IF(Calculations!$K28=0,0,IF(MOD(BQ$3,$I28)=1,0,IF(MOD(BQ$3,Calculations!$K28)=1,1,0))))*$AU28)*(1+'Country Input'!$C$45)^(Calculations!BQ$3-$BH$3)","v":1704.9666666666667},{"$f":"(($U28+($O28)*IF(MOD(BR$3,$I28)=1,1,0)+Parts!$E$91*IF($J28=0,0,IF(MOD(BR$3,$I28)=1,IF(PQS!$R28=\"NO\",1,0),IF(MOD(BR$3,Calculations!$J28)=1,1,0)))+Parts!$E$92*IF(Calculations!$K28=0,0,IF(MOD(BR$3,$I28)=1,0,IF(MOD(BR$3,Calculations!$K28)=1,1,0))))*$AU28)*(1+'Country Input'!$C$45)^(Calculations!BR$3-$BH$3)","v":19109.189916666666},{"$f":"(($U28+($O28)*IF(MOD(BS$3,$I28)=1,1,0)+Parts!$E$91*IF($J28=0,0,IF(MOD(BS$3,$I28)=1,IF(PQS!$R28=\"NO\",1,0),IF(MOD(BS$3,Calculations!$J28)=1,1,0)))+Parts!$E$92*IF(Calculations!$K28=0,0,IF(MOD(BS$3,$I28)=1,0,IF(MOD(BS$3,Calculations!$K28)=1,1,0))))*$AU28)*(1+'Country Input'!$C$45)^(Calculations!BS$3-$BH$3)","v":1704.9666666666667},{"$f":"(($U28+($O28)*IF(MOD(BT$3,$I28)=1,1,0)+Parts!$E$91*IF($J28=0,0,IF(MOD(BT$3,$I28)=1,IF(PQS!$R28=\"NO\",1,0),IF(MOD(BT$3,Calculations!$J28)=1,1,0)))+Parts!$E$92*IF(Calculations!$K28=0,0,IF(MOD(BT$3,$I28)=1,0,IF(MOD(BT$3,Calculations!$K28)=1,1,0))))*$AU28)*(1+'Country Input'!$C$45)^(Calculations!BT$3-$BH$3)","v":1704.9666666666667},{"$f":"(($U28+($O28)*IF(MOD(BU$3,$I28)=1,1,0)+Parts!$E$91*IF($J28=0,0,IF(MOD(BU$3,$I28)=1,IF(PQS!$R28=\"NO\",1,0),IF(MOD(BU$3,Calculations!$J28)=1,1,0)))+Parts!$E$92*IF(Calculations!$K28=0,0,IF(MOD(BU$3,$I28)=1,0,IF(MOD(BU$3,Calculations!$K28)=1,1,0))))*$AU28)*(1+'Country Input'!$C$45)^(Calculations!BU$3-$BH$3)","v":1704.9666666666667},{"$f":"(($U28+($O28)*IF(MOD(BV$3,$I28)=1,1,0)+Parts!$E$91*IF($J28=0,0,IF(MOD(BV$3,$I28)=1,IF(PQS!$R28=\"NO\",1,0),IF(MOD(BV$3,Calculations!$J28)=1,1,0)))+Parts!$E$92*IF(Calculations!$K28=0,0,IF(MOD(BV$3,$I28)=1,0,IF(MOD(BV$3,Calculations!$K28)=1,1,0))))*$AU28)*(1+'Country Input'!$C$45)^(Calculations!BV$3-$BH$3)","v":1704.9666666666667},{"$f":"(($U28+($O28)*IF(MOD(BW$3,$I28)=1,1,0)+Parts!$E$91*IF($J28=0,0,IF(MOD(BW$3,$I28)=1,IF(PQS!$R28=\"NO\",1,0),IF(MOD(BW$3,Calculations!$J28)=1,1,0)))+Parts!$E$92*IF(Calculations!$K28=0,0,IF(MOD(BW$3,$I28)=1,0,IF(MOD(BW$3,Calculations!$K28)=1,1,0))))*$AU28)*(1+'Country Input'!$C$45)^(Calculations!BW$3-$BH$3)","v":1704.9666666666667},{"$f":"(($U28+($O28)*IF(MOD(BX$3,$I28)=1,1,0)+Parts!$E$91*IF($J28=0,0,IF(MOD(BX$3,$I28)=1,IF(PQS!$R28=\"NO\",1,0),IF(MOD(BX$3,Calculations!$J28)=1,1,0)))+Parts!$E$92*IF(Calculations!$K28=0,0,IF(MOD(BX$3,$I28)=1,0,IF(MOD(BX$3,Calculations!$K28)=1,1,0))))*$AU28)*(1+'Country Input'!$C$45)^(Calculations!BX$3-$BH$3)","v":1704.9666666666667},{"$f":"(($U28+($O28)*IF(MOD(BY$3,$I28)=1,1,0)+Parts!$E$91*IF($J28=0,0,IF(MOD(BY$3,$I28)=1,IF(PQS!$R28=\"NO\",1,0),IF(MOD(BY$3,Calculations!$J28)=1,1,0)))+Parts!$E$92*IF(Calculations!$K28=0,0,IF(MOD(BY$3,$I28)=1,0,IF(MOD(BY$3,Calculations!$K28)=1,1,0))))*$AU28)*(1+'Country Input'!$C$45)^(Calculations!BY$3-$BH$3)","v":1704.9666666666667},{"$f":"(($U28+($O28)*IF(MOD(BZ$3,$I28)=1,1,0)+Parts!$E$91*IF($J28=0,0,IF(MOD(BZ$3,$I28)=1,IF(PQS!$R28=\"NO\",1,0),IF(MOD(BZ$3,Calculations!$J28)=1,1,0)))+Parts!$E$92*IF(Calculations!$K28=0,0,IF(MOD(BZ$3,$I28)=1,0,IF(MOD(BZ$3,Calculations!$K28)=1,1,0))))*$AU28)*(1+'Country Input'!$C$45)^(Calculations!BZ$3-$BH$3)","v":1704.9666666666667},{"$f":"(($U28+($O28)*IF(MOD(CA$3,$I28)=1,1,0)+Parts!$E$91*IF($J28=0,0,IF(MOD(CA$3,$I28)=1,IF(PQS!$R28=\"NO\",1,0),IF(MOD(CA$3,Calculations!$J28)=1,1,0)))+Parts!$E$92*IF(Calculations!$K28=0,0,IF(MOD(CA$3,$I28)=1,0,IF(MOD(CA$3,Calculations!$K28)=1,1,0))))*$AU28)*(1+'Country Input'!$C$45)^(Calculations!CA$3-$BH$3)","v":1704.9666666666667},null,"Vestfrost VLS 200",19109.189916666666,1704.9666666666667,1704.9666666666667,1704.9666666666667,1704.9666666666667,1704.9666666666667,1704.9666666666667,1704.9666666666667,1704.9666666666667,1704.9666666666667,19109.189916666666,1704.9666666666667,1704.9666666666667,1704.9666666666667,1704.9666666666667,1704.9666666666667,1704.9666666666667,1704.9666666666667,1704.9666666666667,1704.9666666666667,{"$f":"SUM(CD28:INDEX($CD28:$CW28,1,'Total Solution Costs'!$B$2))","v":34453.889916666667},null,"Vestfrost VLS 200",{"$f":"SUM($BH28:BH28)","v":19109.189916666666},{"$f":"SUM($BH28:BI28)","v":20814.156583333333},{"$f":"SUM($BH28:BJ28)","v":22519.123250000001},{"$f":"SUM($BH28:BK28)","v":24224.089916666668},{"$f":"SUM($BH28:BL28)","v":25929.056583333335},{"$f":"SUM($BH28:BM28)","v":27634.023250000002},{"$f":"SUM($BH28:BN28)","v":29338.989916666669},{"$f":"SUM($BH28:BO28)","v":31043.956583333336},{"$f":"SUM($BH28:BP28)","v":32748.923250000003},{"$f":"SUM($BH28:BQ28)","v":34453.889916666667},{"$f":"SUM($BH28:BR28)","v":53563.079833333337},{"$f":"SUM($BH28:BS28)","v":55268.046500000004},{"$f":"SUM($BH28:BT28)","v":56973.013166666671},{"$f":"SUM($BH28:BU28)","v":58677.979833333338},{"$f":"SUM($BH28:BV28)","v":60382.946500000005},{"$f":"SUM($BH28:BW28)","v":62087.913166666673},{"$f":"SUM($BH28:BX28)","v":63792.87983333334},{"$f":"SUM($BH28:BY28)","v":65497.846500000007},{"$f":"SUM($BH28:BZ28)","v":67202.813166666674},{"$f":"SUM($BH28:CA28)","v":68907.779833333334}]
[{"$f":"PQS!A29","v":"ILR"},{"$f":"PQS!B29","v":"E003/032"},{"$f":"PQS!E29","v":"VLS 300"},{"$f":"PQS!F29","v":"Vestfrost"},{"$f":"PQS!D29","v":"Vestfrost VLS 300"},{"$f":"VLOOKUP(E29,PQS!$D$5:$K$107,COLUMN(PQS!$I$3)-COLUMN(PQS!$D$3)+1,FALSE)","v":148},{"$f":"VLOOKUP(E29,PQS!$D$5:$K$107,COLUMN(PQS!$J$3)-COLUMN(PQS!$D$3)+1,FALSE)","v":0},{"$f":"VLOOKUP(E29,PQS!$D$5:$K$107,COLUMN(PQS!$G$3)-COLUMN(PQS!$D$3)+1,FALSE)","v":"No"},{"$f":"HLOOKUP(B29,INDIRECT(\"'\"&A29&\"'!$10:$15\"),ROW('Technology template'!$A$11)-ROW('Technology template'!$A$10)+1,FALSE)","v":10},{"$f":"HLOOKUP(B29,INDIRECT(\"'\"&A29&\"'!$10:$15\"),ROW('Technology template'!$A$12)-ROW('Technology template'!$A$10)+1,FALSE)","v":0},{"$f":"HLOOKUP(B29,INDIRECT(\"'\"&A29&\"'!$10:$15\"),ROW('Technology template'!$A$13)-ROW('Technology template'!$A$10)+1,FALSE)","v":0},{"$f":"VLOOKUP(B29,PQS!$B:$Q,MATCH(PQS!$Q$3,PQS!$B$3:$Q$3,0),FALSE)*(1+'Country Input'!$C$47)+HLOOKUP(B29,INDIRECT(\"'\"&A29&\"'!$10:$15\"),ROW('Technology template'!$A$14)-ROW('Technology template'!$A$10)+1,FALSE)*(1+'Country Input'!$C$47)","v":867.57740000000013},{"$f":"HLOOKUP(B29,INDIRECT(\"'\"&A29&\"'!$10:$80\"),MATCH('Technology template'!$A$27,INDIRECT(\"'\"&A29&\"'!$A$10:$A$80\"),0),FALSE)+'Labor and Maintenance '!$E$22","v":748},{"$f":"VLOOKUP(B29,PQS!B:T,MATCH(PQS!$T$3,PQS!$B$3:$T$3,0),FALSE)*(1+'Country Input'!$C$47)","v":206.446763},1822.024163,182.20241630000001,{"$f":"VLOOKUP(B29,PQS!$B:$AE,COLUMN(PQS!AD27)-1,FALSE)","v":48.18},{"$f":"IFERROR(1/HLOOKUP(B29,INDIRECT(\"'\"&A29&\"'!$10:$80\"),MATCH('Technology template'!$A$31,INDIRECT(\"'\"&A29&\"'!$A$10:$A$80\"),0),FALSE)*HLOOKUP(B29,INDIRECT(\"'\"&A29&\"'!$10:$80\"),MATCH('Technology template'!$A$41,INDIRECT(\"'\"&A29&\"'!$A10:$A$80\"),0),FALSE),0)*TechnicianHourlyWage+IF(A29=\"Solar w Battery\",1/'Labor and Maintenance '!$E$53*'Labor and Maintenance '!$D$53,0)+IF(A29=\"LT passive\", 1/'Labor and Maintenance '!$E$81*'Labor and Maintenance '!$D$81,0)","v":24},{"$f":"IFERROR(1/HLOOKUP(B29,INDIRECT(\"'\"&A29&\"'!$10:$80\"),MATCH('Technology template'!$A$34,INDIRECT(\"'\"&A29&\"'!$A$10:$A$80\"),0),FALSE)*(HLOOKUP(B29,INDIRECT(\"'\"&A29&\"'!$10:$80\"),MATCH('Technology template'!$A$44,INDIRECT(\"'\"&A29&\"'!$A10:$A$80\"),0),FALSE)*TechnicianHourlyWage+RemoteTravelCostPerDay),0)+IFERROR(1/HLOOKUP(B29,INDIRECT(\"'\"&A29&\"'!$10:$80\"),MATCH('Technology template'!$A$35,INDIRECT(\"'\"&A29&\"'!$A$10:$A$80\"),0),FALSE)*(HLOOKUP(B29,INDIRECT(\"'\"&A29&\"'!$10:$80\"),MATCH('Technology template'!$A$45,INDIRECT(\"'\"&A29&\"'!$A10:$A$80\"),0),FALSE)*TechnicianHourlyWage+RemoteTravelCostPerDay),0)+IFERROR(1/HLOOKUP(B29,INDIRECT(\"'\"&A29&\"'!$10:$80\"),MATCH('Technology template'!$A$37,INDIRECT(\"'\"&A29&\"'!$A$10:$A$80\"),0),FALSE)*(HLOOKUP(B29,INDIRECT(\"'\"&A29&\"'!$10:$80\"),MATCH('Technology template'!$A$46,INDIRECT(\"'\"&A29&\"'!$A10:$A$80\"),0),FALSE)*TechnicianHourlyWage+'Labor and Maintenance '!$B$8),0)","v":94.666666666666657},1668.4666666666667,166.84666666666666,349.04908296666667,null,"Vestfrost VLS 300",12.310974074324324,11.273423423423424,23.584397497747748,null,"Vestfrost VLS 300",1.2310974074324326,1.1273423423423423,2.3584397497747749,null,"Vestfrost VLS 300",1,1822.024163,1668.4666666666667,3490.4908296666667,null,"Vestfrost VLS 300",1,1.2310974074324326,1.1273423423423423,2.3584397497747749,null,"Vestfrost VLS 300",{"$f":"IF(F29=0, 'Country Input'!$D$7, ROUNDUP(LitersPerFacility/F29,0)*'Country Input'!$D$7)","v":10},18220.24163,1668.4666666666667,19888.708296666668,null,"Vestfrost VLS 300",{"$f":"ROUNDUP(LitersPerFacility/F29,0)*'Country Input'!$D$7*ROUNDUP('Total Solution Costs'!$B$2/Calculations!I29,0)","v":10},12.310974074324326,1.1273423423423423,13.438316416666668,null,null,"Vestfrost VLS 300",{"$f":"(($U29+($O29)*IF(MOD(BH$3,$I29)=1,1,0)+Parts!$E$91*IF($J29=0,0,IF(MOD(BH$3,$I29)=1,IF(PQS!$R29=\"NO\",1,0),IF(MOD(BH$3,Calculations!$J29)=1,1,0)))+Parts!$E$92*IF(Calculations!$K29=0,0,IF(MOD(BH$3,$I29)=1,0,IF(MOD(BH$3,Calculations!$K29)=1,1,0))))*$AU29)*(1+'Country Input'!$C$45)^(Calculations!BH$3-$BH$3)+TrainingCost","v":19888.708296666668},{"$f":"(($U29+($O29)*IF(MOD(BI$3,$I29)=1,1,0)+Parts!$E$91*IF($J29=0,0,IF(MOD(BI$3,$I29)=1,IF(PQS!$R29=\"NO\",1,0),IF(MOD(BI$3,Calculations!$J29)=1,1,0)))+Parts!$E$92*IF(Calculations!$K29=0,0,IF(MOD(BI$3,$I29)=1,0,IF(MOD(BI$3,Calculations!$K29)=1,1,0))))*$AU29)*(1+'Country Input'!$C$45)^(Calculations!BI$3-$BH$3)","v":1668.4666666666667},{"$f":"(($U29+($O29)*IF(MOD(BJ$3,$I29)=1,1,0)+Parts!$E$91*IF($J29=0,0,IF(MOD(BJ$3,$I29)=1,IF(PQS!$R29=\"NO\",1,0),IF(MOD(BJ$3,Calculations!$J29)=1,1,0)))+Parts!$E$92*IF(Calculations!$K29=0,0,IF(MOD(BJ$3,$I29)=1,0,IF(MOD(BJ$3,Calculations!$K29)=1,1,0))))*$AU29)*(1+'Country Input'!$C$45)^(Calculations!BJ$3-$BH$3)","v":1668.4666666666667},{"$f":"(($U29+($O29)*IF(MOD(BK$3,$I29)=1,1,0)+Parts!$E$91*IF($J29=0,0,IF(MOD(BK$3,$I29)=1,IF(PQS!$R29=\"NO\",1,0),IF(MOD(BK$3,Calculations!$J29)=1,1,0)))+Parts!$E$92*IF(Calculations!$K29=0,0,IF(MOD(BK$3,$I29)=1,0,IF(MOD(BK$3,Calculations!$K29)=1,1,0))))*$AU29)*(1+'Country Input'!$C$45)^(Calculations!BK$3-$BH$3)","v":1668.4666666666667},{"$f":"(($U29+($O29)*IF(MOD(BL$3,$I29)=1,1,0)+Parts!$E$91*IF($J29=0,0,IF(MOD(BL$3,$I29)=1,IF(PQS!$R29=\"NO\",1,0),IF(MOD(BL$3,Calculations!$J29)=1,1,0)))+Parts!$E$92*IF(Calculations!$K29=0,0,IF(MOD(BL$3,$I29)=1,0,IF(MOD(BL$3,Calculations!$K29)=1,1,0))))*$AU29)*(1+'Country Input'!$C$45)^(Calculations!BL$3-$BH$3)","v":1668.4666666666667},{"$f":"(($U29+($O29)*IF(MOD(BM$3,$I29)=1,1,0)+Parts!$E$91*IF($J29=0,0,IF(MOD(BM$3,$I29)=1,IF(PQS!$R29=\"NO\",1,0),IF(MOD(BM$3,Calculations!$J29)=1,1,0)))+Parts!$E$92*IF(Calculations!$K29=0,0,IF(MOD(BM$3,$I29)=1,0,IF(MOD(BM$3,Calculations!$K29)=1,1,0))))*$AU29)*(1+'Country Input'!$C$45)^(Calculations!BM$3-$BH$3)","v":1668.4666666666667},{"$f":"(($U29+($O29)*IF(MOD(BN$3,$I29)=1,1,0)+Parts!$E$91*IF($J29=0,0,IF(MOD(BN$3,$I29)=1,IF(PQS!$R29=\"NO\",1,0),IF(MOD(BN$3,Calculations!$J29)=1,1,0)))+Parts!$E$92*IF(Calculations!$K29=0,0,IF(MOD(BN$3,$I29)=1,0,IF(MOD(BN$3,Calculations!$K29)=1,1,0))))*$AU29)*(1+'Country Input'!$C$45)^(Calculations!BN$3-$BH$3)","v":1668.4666666666667},{"$f":"(($U29+($O29)*IF(MOD(BO$3,$I29)=1,1,0)+Parts!$E$91*IF($J29=0,0,IF(MOD(BO$3,$I29)=1,IF(PQS!$R29=\"NO\",1,0),IF(MOD(BO$3,Calculations!$J29)=1,1,0)))+Parts!$E$92*IF(Calculations!$K29=0,0,IF(MOD(BO$3,$I29)=1,0,IF(MOD(BO$3,Calculations!$K29)=1,1,0))))*$AU29)*(1+'Country Input'!$C$45)^(Calculations!BO$3-$BH$3)","v":1668.4666666666667},{"$f":"(($U29+($O29)*IF(MOD(BP$3,$I29)=1,1,0)+Parts!$E$91*IF($J29=0,0,IF(MOD(BP$3,$I29)=1,IF(PQS!$R29=\"NO\",1,0),IF(MOD(BP$3,Calculations!$J29)=1,1,0)))+Parts!$E$92*IF(Calculations!$K29=0,0,IF(MOD(BP$3,$I29)=1,0,IF(MOD(BP$3,Calculations!$K29)=1,1,0))))*$AU29)*(1+'Country Input'!$C$45)^(Calculations!BP$3-$BH$3)","v":1668.4666666666667},{"$f":"(($U29+($O29)*IF(MOD(BQ$3,$I29)=1,1,0)+Parts!$E$91*IF($J29=0,0,IF(MOD(BQ$3,$I29)=1,IF(PQS!$R29=\"NO\",1,0),IF(MOD(BQ$3,Calculations!$J29)=1,1,0)))+Parts!$E$92*IF(Calculations!$K29=0,0,IF(MOD(BQ$3,$I29)=1,0,IF(MOD(BQ$3,Calculations!$K29)=1,1,0))))*$AU29)*(1+'Country Input'!$C$45)^(Calculations!BQ$3-$BH$3)","v":1668.4666666666667},{"$f":"(($U29+($O29)*IF(MOD(BR$3,$I29)=1,1,0)+Parts!$E$91*IF($J29=0,0,IF(MOD(BR$3,$I29)=1,IF(PQS!$R29=\"NO\",1,0),IF(MOD(BR$3,Calculations!$J29)=1,1,0)))+Parts!$E$92*IF(Calculations!$K29=0,0,IF(MOD(BR$3,$I29)=1,0,IF(MOD(BR$3,Calculations!$K29)=1,1,0))))*$AU29)*(1+'Country Input'!$C$45)^(Calculations!BR$3-$BH$3)","v":19888.708296666668},{"$f":"(($U29+($O29)*IF(MOD(BS$3,$I29)=1,1,0)+Parts!$E$91*IF($J29=0,0,IF(MOD(BS$3,$I29)=1,IF(PQS!$R29=\"NO\",1,0),IF(MOD(BS$3,Calculations!$J29)=1,1,0)))+Parts!$E$92*IF(Calculations!$K29=0,0,IF(MOD(BS$3,$I29)=1,0,IF(MOD(BS$3,Calculations!$K29)=1,1,0))))*$AU29)*(1+'Country Input'!$C$45)^(Calculations!BS$3-$BH$3)","v":1668.4666666666667},{"$f":"(($U29+($O29)*IF(MOD(BT$3,$I29)=1,1,0)+Parts!$E$91*IF($J29=0,0,IF(MOD(BT$3,$I29)=1,IF(PQS!$R29=\"NO\",1,0),IF(MOD(BT$3,Calculations!$J29)=1,1,0)))+Parts!$E$92*IF(Calculations!$K29=0,0,IF(MOD(BT$3,$I29)=1,0,IF(MOD(BT$3,Calculations!$K29)=1,1,0))))*$AU29)*(1+'Country Input'!$C$45)^(Calculations!BT$3-$BH$3)","v":1668.4666666666667},{"$f":"(($U29+($O29)*IF(MOD(BU$3,$I29)=1,1,0)+Parts!$E$91*IF($J29=0,0,IF(MOD(BU$3,$I29)=1,IF(PQS!$R29=\"NO\",1,0),IF(MOD(BU$3,Calculations!$J29)=1,1,0)))+Parts!$E$92*IF(Calculations!$K29=0,0,IF(MOD(BU$3,$I29)=1,0,IF(MOD(BU$3,Calculations!$K29)=1,1,0))))*$AU29)*(1+'Country Input'!$C$45)^(Calculations!BU$3-$BH$3)","v":1668.4666666666667},{"$f":"(($U29+($O29)*IF(MOD(BV$3,$I29)=1,1,0)+Parts!$E$91*IF($J29=0,0,IF(MOD(BV$3,$I29)=1,IF(PQS!$R29=\"NO\",1,0),IF(MOD(BV$3,Calculations!$J29)=1,1,0)))+Parts!$E$92*IF(Calculations!$K29=0,0,IF(MOD(BV$3,$I29)=1,0,IF(MOD(BV$3,Calculations!$K29)=1,1,0))))*$AU29)*(1+'Country Input'!$C$45)^(Calculations!BV$3-$BH$3)","v":1668.4666666666667},{"$f":"(($U29+($O29)*IF(MOD(BW$3,$I29)=1,1,0)+Parts!$E$91*IF($J29=0,0,IF(MOD(BW$3,$I29)=1,IF(PQS!$R29=\"NO\",1,0),IF(MOD(BW$3,Calculations!$J29)=1,1,0)))+Parts!$E$92*IF(Calculations!$K29=0,0,IF(MOD(BW$3,$I29)=1,0,IF(MOD(BW$3,Calculations!$K29)=1,1,0))))*$AU29)*(1+'Country Input'!$C$45)^(Calculations!BW$3-$BH$3)","v":1668.4666666666667},{"$f":"(($U29+($O29)*IF(MOD(BX$3,$I29)=1,1,0)+Parts!$E$91*IF($J29=0,0,IF(MOD(BX$3,$I29)=1,IF(PQS!$R29=\"NO\",1,0),IF(MOD(BX$3,Calculations!$J29)=1,1,0)))+Parts!$E$92*IF(Calculations!$K29=0,0,IF(MOD(BX$3,$I29)=1,0,IF(MOD(BX$3,Calculations!$K29)=1,1,0))))*$AU29)*(1+'Country Input'!$C$45)^(Calculations!BX$3-$BH$3)","v":1668.4666666666667},{"$f":"(($U29+($O29)*IF(MOD(BY$3,$I29)=1,1,0)+Parts!$E$91*IF($J29=0,0,IF(MOD(BY$3,$I29)=1,IF(PQS!$R29=\"NO\",1,0),IF(MOD(BY$3,Calculations!$J29)=1,1,0)))+Parts!$E$92*IF(Calculations!$K29=0,0,IF(MOD(BY$3,$I29)=1,0,IF(MOD(BY$3,Calculations!$K29)=1,1,0))))*$AU29)*(1+'Country Input'!$C$45)^(Calculations!BY$3-$BH$3)","v":1668.4666666666667},{"$f":"(($U29+($O29)*IF(MOD(BZ$3,$I29)=1,1,0)+Parts!$E$91*IF($J29=0,0,IF(MOD(BZ$3,$I29)=1,IF(PQS!$R29=\"NO\",1,0),IF(MOD(BZ$3,Calculations!$J29)=1,1,0)))+Parts!$E$92*IF(Calculations!$K29=0,0,IF(MOD(BZ$3,$I29)=1,0,IF(MOD(BZ$3,Calculations!$K29)=1,1,0))))*$AU29)*(1+'Country Input'!$C$45)^(Calculations!BZ$3-$BH$3)","v":1668.4666666666667},{"$f":"(($U29+($O29)*IF(MOD(CA$3,$I29)=1,1,0)+Parts!$E$91*IF($J29=0,0,IF(MOD(CA$3,$I29)=1,IF(PQS!$R29=\"NO\",1,0),IF(MOD(CA$3,Calculations!$J29)=1,1,0)))+Parts!$E$92*IF(Calculations!$K29=0,0,IF(MOD(CA$3,$I29)=1,0,IF(MOD(CA$3,Calculations!$K29)=1,1,0))))*$AU29)*(1+'Country Input'!$C$45)^(Calculations!CA$3-$BH$3)","v":1668.4666666666667},null,"Vestfrost VLS 300",19888.708296666668,1668.4666666666667,1668.4666666666667,1668.4666666666667,1668.4666666666667,1668.4666666666667,1668.4666666666667,1668.4666666666667,1668.4666666666667,1668.4666666666667,19888.708296666668,1668.4666666666667,1668.4666666666667,1668.4666666666667,1668.4666666666667,1668.4666666666667,1668.4666666666667,1668.4666666666667,1668.4666666666667,1668.4666666666667,{"$f":"SUM(CD29:INDEX($CD29:$CW29,1,'Total Solution Costs'!$B$2))","v":34904.908296666668},null,"Vestfrost VLS 300",{"$f":"SUM($BH29:BH29)","v":19888.708296666668},{"$f":"SUM($BH29:BI29)","v":21557.174963333335},{"$f":"SUM($BH29:BJ29)","v":23225.641630000002},{"$f":"SUM($BH29:BK29)","v":24894.108296666669},{"$f":"SUM($BH29:BL29)","v":26562.574963333336},{"$f":"SUM($BH29:BM29)","v":28231.041630000003},{"$f":"SUM($BH29:BN29)","v":29899.508296666671},{"$f":"SUM($BH29:BO29)","v":31567.974963333338},{"$f":"SUM($BH29:BP29)","v":33236.441630000001},{"$f":"SUM($BH29:BQ29)","v":34904.908296666668},{"$f":"SUM($BH29:BR29)","v":54793.61659333334},{"$f":"SUM($BH29:BS29)","v":56462.083260000007},{"$f":"SUM($BH29:BT29)","v":58130.549926666674},{"$f":"SUM($BH29:BU29)","v":59799.016593333341},{"$f":"SUM($BH29:BV29)","v":61467.483260000008},{"$f":"SUM($BH29:BW29)","v":63135.949926666675},{"$f":"SUM($BH29:BX29)","v":64804.416593333342},{"$f":"SUM($BH29:BY29)","v":66472.883260000002},{"$f":"SUM($BH29:BZ29)","v":68141.349926666662},{"$f":"SUM($BH29:CA29)","v":69809.816593333322}]
[{"$f":"PQS!A30","v":"ILR"},{"$f":"PQS!B30","v":"E003/033"},{"$f":"PQS!E30","v":"VLS 350"},{"$f":"PQS!F30","v":"Vestfrost"},{"$f":"PQS!D30","v":"Vestfrost VLS 350"},{"$f":"VLOOKUP(E30,PQS!$D$5:$K$107,COLUMN(PQS!$I$3)-COLUMN(PQS!$D$3)+1,FALSE)","v":196},{"$f":"VLOOKUP(E30,PQS!$D$5:$K$107,COLUMN(PQS!$J$3)-COLUMN(PQS!$D$3)+1,FALSE)","v":0},{"$f":"VLOOKUP(E30,PQS!$D$5:$K$107,COLUMN(PQS!$G$3)-COLUMN(PQS!$D$3)+1,FALSE)","v":"No"},{"$f":"HLOOKUP(B30,INDIRECT(\"'\"&A30&\"'!$10:$15\"),ROW('Technology template'!$A$11)-ROW('Technology template'!$A$10)+1,FALSE)","v":10},{"$f":"HLOOKUP(B30,INDIRECT(\"'\"&A30&\"'!$10:$15\"),ROW('Technology template'!$A$12)-ROW('Technology template'!$A$10)+1,FALSE)","v":0},{"$f":"HLOOKUP(B30,INDIRECT(\"'\"&A30&\"'!$10:$15\"),ROW('Technology template'!$A$13)-ROW('Technology template'!$A$10)+1,FALSE)","v":0},{"$f":"VLOOKUP(B30,PQS!$B:$Q,MATCH(PQS!$Q$3,PQS!$B$3:$Q$3,0),FALSE)*(1+'Country Input'!$C$47)+HLOOKUP(B30,INDIRECT(\"'\"&A30&\"'!$10:$15\"),ROW('Technology template'!$A$14)-ROW('Technology template'!$A$10)+1,FALSE)*(1+'Country Input'!$C$47)","v":870.19889999999998},{"$f":"HLOOKUP(B30,INDIRECT(\"'\"&A30&\"'!$10:$80\"),MATCH('Technology template'!$A$27,INDIRECT(\"'\"&A30&\"'!$A$10:$A$80\"),0),FALSE)+'Labor and Maintenance '!$E$22","v":748},{"$f":"VLOOKUP(B30,PQS!B:T,MATCH(PQS!$T$3,PQS!$B$3:$T$3,0),FALSE)*(1+'Country Input'!$C$47)","v":306.95849700000008},1925.1573969999999,192.51573969999998,{"$f":"VLOOKUP(B30,PQS!$B:$AE,COLUMN(PQS!AD28)-1,FALSE)","v":44.53},{"$f":"IFERROR(1/HLOOKUP(B30,INDIRECT(\"'\"&A30&\"'!$10:$80\"),MATCH('Technology template'!$A$31,INDIRECT(\"'\"&A30&\"'!$A$10:$A$80\"),0),FALSE)*HLOOKUP(B30,INDIRECT(\"'\"&A30&\"'!$10:$80\"),MATCH('Technology template'!$A$41,INDIRECT(\"'\"&A30&\"'!$A10:$A$80\"),0),FALSE),0)*TechnicianHourlyWage+IF(A30=\"Solar w Battery\",1/'Labor and Maintenance '!$E$53*'Labor and Maintenance '!$D$53,0)+IF(A30=\"LT passive\", 1/'Labor and Maintenance '!$E$81*'Labor and Maintenance '!$D$81,0)","v":24},{"$f":"IFERROR(1/HLOOKUP(B30,INDIRECT(\"'\"&A30&\"'!$10:$80\"),MATCH('Technology template'!$A$34,INDIRECT(\"'\"&A30&\"'!$A$10:$A$80\"),0),FALSE)*(HLOOKUP(B30,INDIRECT(\"'\"&A30&\"'!$10:$80\"),MATCH('Technology template'!$A$44,INDIRECT(\"'\"&A30&\"'!$A10:$A$80\"),0),FALSE)*TechnicianHourlyWage+RemoteTravelCostPerDay),0)+IFERROR(1/HLOOKUP(B30,INDIRECT(\"'\"&A30&\"'!$10:$80\"),MATCH('Technology template'!$A$35,INDIRECT(\"'\"&A30&\"'!$A$10:$A$80\"),0),FALSE)*(HLOOKUP(B30,INDIRECT(\"'\"&A30&\"'!$10:$80\"),MATCH('Technology template'!$A$45,INDIRECT(\"'\"&A30&\"'!$A10:$A$80\"),0),FALSE)*TechnicianHourlyWage+RemoteTravelCostPerDay),0)+IFERROR(1/HLOOKUP(B30,INDIRECT(\"'\"&A30&\"'!$10:$80\"),MATCH('Technology template'!$A$37,INDIRECT(\"'\"&A30&\"'!$A$10:$A$80\"),0),FALSE)*(HLOOKUP(B30,INDIRECT(\"'\"&A30&\"'!$10:$80\"),MATCH('Technology template'!$A$46,INDIRECT(\"'\"&A30&\"'!$A10:$A$80\"),0),FALSE)*TechnicianHourlyWage+'Labor and Maintenance '!$B$8),0)","v":94.666666666666657},1631.9666666666667,163.19666666666666,355.71240636666664,null,"Vestfrost VLS 350",9.8222316173469384,8.3263605442176871,18.148592161564626,null,"Vestfrost VLS 350",0.98222316173469382,0.83263605442176869,1.8148592161564625,null,"Vestfrost VLS 350",1,1925.1573969999999,1631.9666666666667,3557.1240636666666,null,"Vestfrost VLS 350",1,0.98222316173469382,0.83263605442176869,1.8148592161564625,null,"Vestfrost VLS 350",{"$f":"IF(F30=0, 'Country Input'!$D$7, ROUNDUP(LitersPerFacility/F30,0)*'Country Input'!$D$7)","v":10},19251.573969999998,1631.9666666666667,20883.540636666665,null,"Vestfrost VLS 350",{"$f":"ROUNDUP(LitersPerFacility/F30,0)*'Country Input'!$D$7*ROUNDUP('Total Solution Costs'!$B$2/Calculations!I30,0)","v":10},9.8222316173469384,0.83263605442176869,10.654867671768708,null,null,"Vestfrost VLS 350",{"$f":"(($U30+($O30)*IF(MOD(BH$3,$I30)=1,1,0)+Parts!$E$91*IF($J30=0,0,IF(MOD(BH$3,$I30)=1,IF(PQS!$R30=\"NO\",1,0),IF(MOD(BH$3,Calculations!$J30)=1,1,0)))+Parts!$E$92*IF(Calculations!$K30=0,0,IF(MOD(BH$3,$I30)=1,0,IF(MOD(BH$3,Calculations!$K30)=1,1,0))))*$AU30)*(1+'Country Input'!$C$45)^(Calculations!BH$3-$BH$3)+TrainingCost","v":20883.540636666665},{"$f":"(($U30+($O30)*IF(MOD(BI$3,$I30)=1,1,0)+Parts!$E$91*IF($J30=0,0,IF(MOD(BI$3,$I30)=1,IF(PQS!$R30=\"NO\",1,0),IF(MOD(BI$3,Calculations!$J30)=1,1,0)))+Parts!$E$92*IF(Calculations!$K30=0,0,IF(MOD(BI$3,$I30)=1,0,IF(MOD(BI$3,Calculations!$K30)=1,1,0))))*$AU30)*(1+'Country Input'!$C$45)^(Calculations!BI$3-$BH$3)","v":1631.9666666666667},{"$f":"(($U30+($O30)*IF(MOD(BJ$3,$I30)=1,1,0)+Parts!$E$91*IF($J30=0,0,IF(MOD(BJ$3,$I30)=1,IF(PQS!$R30=\"NO\",1,0),IF(MOD(BJ$3,Calculations!$J30)=1,1,0)))+Parts!$E$92*IF(Calculations!$K30=0,0,IF(MOD(BJ$3,$I30)=1,0,IF(MOD(BJ$3,Calculations!$K30)=1,1,0))))*$AU30)*(1+'Country Input'!$C$45)^(Calculations!BJ$3-$BH$3)","v":1631.9666666666667},{"$f":"(($U30+($O30)*IF(MOD(BK$3,$I30)=1,1,0)+Parts!$E$91*IF($J30=0,0,IF(MOD(BK$3,$I30)=1,IF(PQS!$R30=\"NO\",1,0),IF(MOD(BK$3,Calculations!$J30)=1,1,0)))+Parts!$E$92*IF(Calculations!$K30=0,0,IF(MOD(BK$3,$I30)=1,0,IF(MOD(BK$3,Calculations!$K30)=1,1,0))))*$AU30)*(1+'Country Input'!$C$45)^(Calculations!BK$3-$BH$3)","v":1631.9666666666667},{"$f":"(($U30+($O30)*IF(MOD(BL$3,$I30)=1,1,0)+Parts!$E$91*IF($J30=0,0,IF(MOD(BL$3,$I30)=1,IF(PQS!$R30=\"NO\",1,0),IF(MOD(BL$3,Calculations!$J30)=1,1,0)))+Parts!$E$92*IF(Calculations!$K30=0,0,IF(MOD(BL$3,$I30)=1,0,IF(MOD(BL$3,Calculations!$K30)=1,1,0))))*$AU30)*(1+'Country Input'!$C$45)^(Calculations!BL$3-$BH$3)","v":1631.9666666666667},{"$f":"(($U30+($O30)*IF(MOD(BM$3,$I30)=1,1,0)+Parts!$E$91*IF($J30=0,0,IF(MOD(BM$3,$I30)=1,IF(PQS!$R30=\"NO\",1,0),IF(MOD(BM$3,Calculations!$J30)=1,1,0)))+Parts!$E$92*IF(Calculations!$K30=0,0,IF(MOD(BM$3,$I30)=1,0,IF(MOD(BM$3,Calculations!$K30)=1,1,0))))*$AU30)*(1+'Country Input'!$C$45)^(Calculations!BM$3-$BH$3)","v":1631.9666666666667},{"$f":"(($U30+($O30)*IF(MOD(BN$3,$I30)=1,1,0)+Parts!$E$91*IF($J30=0,0,IF(MOD(BN$3,$I30)=1,IF(PQS!$R30=\"NO\",1,0),IF(MOD(BN$3,Calculations!$J30)=1,1,0)))+Parts!$E$92*IF(Calculations!$K30=0,0,IF(MOD(BN$3,$I30)=1,0,IF(MOD(BN$3,Calculations!$K30)=1,1,0))))*$AU30)*(1+'Country Input'!$C$45)^(Calculations!BN$3-$BH$3)","v":1631.9666666666667},{"$f":"(($U30+($O30)*IF(MOD(BO$3,$I30)=1,1,0)+Parts!$E$91*IF($J30=0,0,IF(MOD(BO$3,$I30)=1,IF(PQS!$R30=\"NO\",1,0),IF(MOD(BO$3,Calculations!$J30)=1,1,0)))+Parts!$E$92*IF(Calculations!$K30=0,0,IF(MOD(BO$3,$I30)=1,0,IF(MOD(BO$3,Calculations!$K30)=1,1,0))))*$AU30)*(1+'Country Input'!$C$45)^(Calculations!BO$3-$BH$3)","v":1631.9666666666667},{"$f":"(($U30+($O30)*IF(MOD(BP$3,$I30)=1,1,0)+Parts!$E$91*IF($J30=0,0,IF(MOD(BP$3,$I30)=1,IF(PQS!$R30=\"NO\",1,0),IF(MOD(BP$3,Calculations!$J30)=1,1,0)))+Parts!$E$92*IF(Calculations!$K30=0,0,IF(MOD(BP$3,$I30)=1,0,IF(MOD(BP$3,Calculations!$K30)=1,1,0))))*$AU30)*(1+'Country Input'!$C$45)^(Calculations!BP$3-$BH$3)","v":1631.9666666666667},{"$f":"(($U30+($O30)*IF(MOD(BQ$3,$I30)=1,1,0)+Parts!$E$91*IF($J30=0,0,IF(MOD(BQ$3,$I30)=1,IF(PQS!$R30=\"NO\",1,0),IF(MOD(BQ$3,Calculations!$J30)=1,1,0)))+Parts!$E$92*IF(Calculations!$K30=0,0,IF(MOD(BQ$3,$I30)=1,0,IF(MOD(BQ$3,Calculations!$K30)=1,1,0))))*$AU30)*(1+'Country Input'!$C$45)^(Calculations!BQ$3-$BH$3)","v":1631.9666666666667},{"$f":"(($U30+($O30)*IF(MOD(BR$3,$I30)=1,1,0)+Parts!$E$91*IF($J30=0,0,IF(MOD(BR$3,$I30)=1,IF(PQS!$R30=\"NO\",1,0),IF(MOD(BR$3,Calculations!$J30)=1,1,0)))+Parts!$E$92*IF(Calculations!$K30=0,0,IF(MOD(BR$3,$I30)=1,0,IF(MOD(BR$3,Calculations!$K30)=1,1,0))))*$AU30)*(1+'Country Input'!$C$45)^(Calculations!BR$3-$BH$3)","v":20883.540636666665},{"$f":"(($U30+($O30)*IF(MOD(BS$3,$I30)=1,1,0)+Parts!$E$91*IF($J30=0,0,IF(MOD(BS$3,$I30)=1,IF(PQS!$R30=\"NO\",1,0),IF(MOD(BS$3,Calculations!$J30)=1,1,0)))+Parts!$E$92*IF(Calculations!$K30=0,0,IF(MOD(BS$3,$I30)=1,0,IF(MOD(BS$3,Calculations!$K30)=1,1,0))))*$AU30)*(1+'Country Input'!$C$45)^(Calculations!BS$3-$BH$3)","v":1631.9666666666667},{"$f":"(($U30+($O30)*IF(MOD(BT$3,$I30)=1,1,0)+Parts!$E$91*IF($J30=0,0,IF(MOD(BT$3,$I30)=1,IF(PQS!$R30=\"NO\",1,0),IF(MOD(BT$3,Calculations!$J30)=1,1,0)))+Parts!$E$92*IF(Calculations!$K30=0,0,IF(MOD(BT$3,$I30)=1,0,IF(MOD(BT$3,Calculations!$K30)=1,1,0))))*$AU30)*(1+'Country Input'!$C$45)^(Calculations!BT$3-$BH$3)","v":1631.9666666666667},{"$f":"(($U30+($O30)*IF(MOD(BU$3,$I30)=1,1,0)+Parts!$E$91*IF($J30=0,0,IF(MOD(BU$3,$I30)=1,IF(PQS!$R30=\"NO\",1,0),IF(MOD(BU$3,Calculations!$J30)=1,1,0)))+Parts!$E$92*IF(Calculations!$K30=0,0,IF(MOD(BU$3,$I30)=1,0,IF(MOD(BU$3,Calculations!$K30)=1,1,0))))*$AU30)*(1+'Country Input'!$C$45)^(Calculations!BU$3-$BH$3)","v":1631.9666666666667},{"$f":"(($U30+($O30)*IF(MOD(BV$3,$I30)=1,1,0)+Parts!$E$91*IF($J30=0,0,IF(MOD(BV$3,$I30)=1,IF(PQS!$R30=\"NO\",1,0),IF(MOD(BV$3,Calculations!$J30)=1,1,0)))+Parts!$E$92*IF(Calculations!$K30=0,0,IF(MOD(BV$3,$I30)=1,0,IF(MOD(BV$3,Calculations!$K30)=1,1,0))))*$AU30)*(1+'Country Input'!$C$45)^(Calculations!BV$3-$BH$3)","v":1631.9666666666667},{"$f":"(($U30+($O30)*IF(MOD(BW$3,$I30)=1,1,0)+Parts!$E$91*IF($J30=0,0,IF(MOD(BW$3,$I30)=1,IF(PQS!$R30=\"NO\",1,0),IF(MOD(BW$3,Calculations!$J30)=1,1,0)))+Parts!$E$92*IF(Calculations!$K30=0,0,IF(MOD(BW$3,$I30)=1,0,IF(MOD(BW$3,Calculations!$K30)=1,1,0))))*$AU30)*(1+'Country Input'!$C$45)^(Calculations!BW$3-$BH$3)","v":1631.9666666666667},{"$f":"(($U30+($O30)*IF(MOD(BX$3,$I30)=1,1,0)+Parts!$E$91*IF($J30=0,0,IF(MOD(BX$3,$I30)=1,IF(PQS!$R30=\"NO\",1,0),IF(MOD(BX$3,Calculations!$J30)=1,1,0)))+Parts!$E$92*IF(Calculations!$K30=0,0,IF(MOD(BX$3,$I30)=1,0,IF(MOD(BX$3,Calculations!$K30)=1,1,0))))*$AU30)*(1+'Country Input'!$C$45)^(Calculations!BX$3-$BH$3)","v":1631.9666666666667},{"$f":"(($U30+($O30)*IF(MOD(BY$3,$I30)=1,1,0)+Parts!$E$91*IF($J30=0,0,IF(MOD(BY$3,$I30)=1,IF(PQS!$R30=\"NO\",1,0),IF(MOD(BY$3,Calculations!$J30)=1,1,0)))+Parts!$E$92*IF(Calculations!$K30=0,0,IF(MOD(BY$3,$I30)=1,0,IF(MOD(BY$3,Calculations!$K30)=1,1,0))))*$AU30)*(1+'Country Input'!$C$45)^(Calculations!BY$3-$BH$3)","v":1631.9666666666667},{"$f":"(($U30+($O30)*IF(MOD(BZ$3,$I30)=1,1,0)+Parts!$E$91*IF($J30=0,0,IF(MOD(BZ$3,$I30)=1,IF(PQS!$R30=\"NO\",1,0),IF(MOD(BZ$3,Calculations!$J30)=1,1,0)))+Parts!$E$92*IF(Calculations!$K30=0,0,IF(MOD(BZ$3,$I30)=1,0,IF(MOD(BZ$3,Calculations!$K30)=1,1,0))))*$AU30)*(1+'Country Input'!$C$45)^(Calculations!BZ$3-$BH$3)","v":1631.9666666666667},{"$f":"(($U30+($O30)*IF(MOD(CA$3,$I30)=1,1,0)+Parts!$E$91*IF($J30=0,0,IF(MOD(CA$3,$I30)=1,IF(PQS!$R30=\"NO\",1,0),IF(MOD(CA$3,Calculations!$J30)=1,1,0)))+Parts!$E$92*IF(Calculations!$K30=0,0,IF(MOD(CA$3,$I30)=1,0,IF(MOD(CA$3,Calculations!$K30)=1,1,0))))*$AU30)*(1+'Country Input'!$C$45)^(Calculations!CA$3-$BH$3)","v":1631.9666666666667},null,"Vestfrost VLS 350",20883.540636666665,1631.9666666666667,1631.9666666666667,1631.9666666666667,1631.9666666666667,1631.9666666666667,1631.9666666666667,1631.9666666666667,1631.9666666666667,1631.9666666666667,20883.540636666665,1631.9666666666667,1631.9666666666667,1631.9666666666667,1631.9666666666667,1631.9666666666667,1631.9666666666667,1631.9666666666667,1631.9666666666667,1631.9666666666667,{"$f":"SUM(CD30:INDEX($CD30:$CW30,1,'Total Solution Costs'!$B$2))","v":35571.240636666669},null,"Vestfrost VLS 350",{"$f":"SUM($BH30:BH30)","v":20883.540636666665},{"$f":"SUM($BH30:BI30)","v":22515.507303333332},{"$f":"SUM($BH30:BJ30)","v":24147.473969999999},{"$f":"SUM($BH30:BK30)","v":25779.440636666666},{"$f":"SUM($BH30:BL30)","v":27411.407303333333},{"$f":"SUM($BH30:BM30)","v":29043.373970000001},{"$f":"SUM($BH30:BN30)","v":30675.340636666668},{"$f":"SUM($BH30:BO30)","v":32307.307303333335},{"$f":"SUM($BH30:BP30)","v":33939.273970000002},{"$f":"SUM($BH30:BQ30)","v":35571.240636666669},{"$f":"SUM($BH30:BR30)","v":56454.781273333334},{"$f":"SUM($BH30:BS30)","v":58086.747940000001},{"$f":"SUM($BH30:BT30)","v":59718.714606666668},{"$f":"SUM($BH30:BU30)","v":61350.681273333335},{"$f":"SUM($BH30:BV30)","v":62982.647940000003},{"$f":"SUM($BH30:BW30)","v":64614.61460666667},{"$f":"SUM($BH30:BX30)","v":66246.58127333333},{"$f":"SUM($BH30:BY30)","v":67878.547939999989},{"$f":"SUM($BH30:BZ30)","v":69510.514606666649},{"$f":"SUM($BH30:CA30)","v":71142.481273333309}]
[{"$f":"PQS!A31","v":"ILR"},{"$f":"PQS!B31","v":"E003/034"},{"$f":"PQS!E31","v":"HBC-110"},{"$f":"PQS!F31","v":"Haier"},{"$f":"PQS!D31","v":"Haier HBC-110"},{"$f":"VLOOKUP(E31,PQS!$D$5:$K$107,COLUMN(PQS!$I$3)-COLUMN(PQS!$D$3)+1,FALSE)","v":52.5},{"$f":"VLOOKUP(E31,PQS!$D$5:$K$107,COLUMN(PQS!$J$3)-COLUMN(PQS!$D$3)+1,FALSE)","v":0},{"$f":"VLOOKUP(E31,PQS!$D$5:$K$107,COLUMN(PQS!$G$3)-COLUMN(PQS!$D$3)+1,FALSE)","v":"No"},{"$f":"HLOOKUP(B31,INDIRECT(\"'\"&A31&\"'!$10:$15\"),ROW('Technology template'!$A$11)-ROW('Technology template'!$A$10)+1,FALSE)","v":10},{"$f":"HLOOKUP(B31,INDIRECT(\"'\"&A31&\"'!$10:$15\"),ROW('Technology template'!$A$12)-ROW('Technology template'!$A$10)+1,FALSE)","v":0},{"$f":"HLOOKUP(B31,INDIRECT(\"'\"&A31&\"'!$10:$15\"),ROW('Technology template'!$A$13)-ROW('Technology template'!$A$10)+1,FALSE)","v":0},{"$f":"VLOOKUP(B31,PQS!$B:$Q,MATCH(PQS!$Q$3,PQS!$B$3:$Q$3,0),FALSE)*(1+'Country Input'!$C$47)+HLOOKUP(B31,INDIRECT(\"'\"&A31&\"'!$10:$15\"),ROW('Technology template'!$A$14)-ROW('Technology template'!$A$10)+1,FALSE)*(1+'Country Input'!$C$47)","v":642},{"$f":"HLOOKUP(B31,INDIRECT(\"'\"&A31&\"'!$10:$80\"),MATCH('Technology template'!$A$27,INDIRECT(\"'\"&A31&\"'!$A$10:$A$80\"),0),FALSE)+'Labor and Maintenance '!$E$22","v":748},{"$f":"VLOOKUP(B31,PQS!B:T,MATCH(PQS!$T$3,PQS!$B$3:$T$3,0),FALSE)*(1+'Country Input'!$C$47)","v":209.31696666666667},1599.3169666666668,159.93169666666668,{"$f":"VLOOKUP(B31,PQS!$B:$AE,COLUMN(PQS!AD29)-1,FALSE)","v":87.6},{"$f":"IFERROR(1/HLOOKUP(B31,INDIRECT(\"'\"&A31&\"'!$10:$80\"),MATCH('Technology template'!$A$31,INDIRECT(\"'\"&A31&\"'!$A$10:$A$80\"),0),FALSE)*HLOOKUP(B31,INDIRECT(\"'\"&A31&\"'!$10:$80\"),MATCH('Technology template'!$A$41,INDIRECT(\"'\"&A31&\"'!$A10:$A$80\"),0),FALSE),0)*TechnicianHourlyWage+IF(A31=\"Solar w Battery\",1/'Labor and Maintenance '!$E$53*'Labor and Maintenance '!$D$53,0)+IF(A31=\"LT passive\", 1/'Labor and Maintenance '!$E$81*'Labor and Maintenance '!$D$81,0)","v":24},{"$f":"IFERROR(1/HLOOKUP(B31,INDIRECT(\"'\"&A31&\"'!$10:$80\"),MATCH('Technology template'!$A$34,INDIRECT(\"'\"&A31&\"'!$A$10:$A$80\"),0),FALSE)*(HLOOKUP(B31,INDIRECT(\"'\"&A31&\"'!$10:$80\"),MATCH('Technology template'!$A$44,INDIRECT(\"'\"&A31&\"'!$A10:$A$80\"),0),FALSE)*TechnicianHourlyWage+RemoteTravelCostPerDay),0)+IFERROR(1/HLOOKUP(B31,INDIRECT(\"'\"&A31&\"'!$10:$80\"),MATCH('Technology template'!$A$35,INDIRECT(\"'\"&A31&\"'!$A$10:$A$80\"),0),FALSE)*(HLOOKUP(B31,INDIRECT(\"'\"&A31&\"'!$10:$80\"),MATCH('Technology template'!$A$45,INDIRECT(\"'\"&A31&\"'!$A10:$A$80\"),0),FALSE)*TechnicianHourlyWage+RemoteTravelCostPerDay),0)+IFERROR(1/HLOOKUP(B31,INDIRECT(\"'\"&A31&\"'!$10:$80\"),MATCH('Technology template'!$A$37,INDIRECT(\"'\"&A31&\"'!$A$10:$A$80\"),0),FALSE)*(HLOOKUP(B31,INDIRECT(\"'\"&A31&\"'!$10:$80\"),MATCH('Technology template'!$A$46,INDIRECT(\"'\"&A31&\"'!$A10:$A$80\"),0),FALSE)*TechnicianHourlyWage+'Labor and Maintenance '!$B$8),0)","v":94.666666666666657},2062.6666666666665,206.26666666666665,366.1983633333333,null,"Haier HBC-110",30.463180317460321,39.288888888888884,69.752069206349205,null,"Haier HBC-110",3.0463180317460319,3.9288888888888884,6.9752069206349203,null,"Haier HBC-110",3,4797.9508999999998,6188,10985.9509,null,"Haier HBC-110",3,9.1389540952380948,11.786666666666665,20.92562076190476,null,"Haier HBC-110",{"$f":"IF(F31=0, 'Country Input'!$D$7, ROUNDUP(LitersPerFacility/F31,0)*'Country Input'!$D$7)","v":10},15993.169666666668,2062.6666666666665,18055.836333333336,null,"Haier HBC-110",{"$f":"ROUNDUP(LitersPerFacility/F31,0)*'Country Input'!$D$7*ROUNDUP('Total Solution Costs'!$B$2/Calculations!I31,0)","v":10},30.463180317460321,3.9288888888888884,34.392069206349206,null,null,"Haier HBC-110",{"$f":"(($U31+($O31)*IF(MOD(BH$3,$I31)=1,1,0)+Parts!$E$91*IF($J31=0,0,IF(MOD(BH$3,$I31)=1,IF(PQS!$R31=\"NO\",1,0),IF(MOD(BH$3,Calculations!$J31)=1,1,0)))+Parts!$E$92*IF(Calculations!$K31=0,0,IF(MOD(BH$3,$I31)=1,0,IF(MOD(BH$3,Calculations!$K31)=1,1,0))))*$AU31)*(1+'Country Input'!$C$45)^(Calculations!BH$3-$BH$3)+TrainingCost","v":18055.836333333333},{"$f":"(($U31+($O31)*IF(MOD(BI$3,$I31)=1,1,0)+Parts!$E$91*IF($J31=0,0,IF(MOD(BI$3,$I31)=1,IF(PQS!$R31=\"NO\",1,0),IF(MOD(BI$3,Calculations!$J31)=1,1,0)))+Parts!$E$92*IF(Calculations!$K31=0,0,IF(MOD(BI$3,$I31)=1,0,IF(MOD(BI$3,Calculations!$K31)=1,1,0))))*$AU31)*(1+'Country Input'!$C$45)^(Calculations!BI$3-$BH$3)","v":2062.6666666666665},{"$f":"(($U31+($O31)*IF(MOD(BJ$3,$I31)=1,1,0)+Parts!$E$91*IF($J31=0,0,IF(MOD(BJ$3,$I31)=1,IF(PQS!$R31=\"NO\",1,0),IF(MOD(BJ$3,Calculations!$J31)=1,1,0)))+Parts!$E$92*IF(Calculations!$K31=0,0,IF(MOD(BJ$3,$I31)=1,0,IF(MOD(BJ$3,Calculations!$K31)=1,1,0))))*$AU31)*(1+'Country Input'!$C$45)^(Calculations!BJ$3-$BH$3)","v":2062.6666666666665},{"$f":"(($U31+($O31)*IF(MOD(BK$3,$I31)=1,1,0)+Parts!$E$91*IF($J31=0,0,IF(MOD(BK$3,$I31)=1,IF(PQS!$R31=\"NO\",1,0),IF(MOD(BK$3,Calculations!$J31)=1,1,0)))+Parts!$E$92*IF(Calculations!$K31=0,0,IF(MOD(BK$3,$I31)=1,0,IF(MOD(BK$3,Calculations!$K31)=1,1,0))))*$AU31)*(1+'Country Input'!$C$45)^(Calculations!BK$3-$BH$3)","v":2062.6666666666665},{"$f":"(($U31+($O31)*IF(MOD(BL$3,$I31)=1,1,0)+Parts!$E$91*IF($J31=0,0,IF(MOD(BL$3,$I31)=1,IF(PQS!$R31=\"NO\",1,0),IF(MOD(BL$3,Calculations!$J31)=1,1,0)))+Parts!$E$92*IF(Calculations!$K31=0,0,IF(MOD(BL$3,$I31)=1,0,IF(MOD(BL$3,Calculations!$K31)=1,1,0))))*$AU31)*(1+'Country Input'!$C$45)^(Calculations!BL$3-$BH$3)","v":2062.6666666666665},{"$f":"(($U31+($O31)*IF(MOD(BM$3,$I31)=1,1,0)+Parts!$E$91*IF($J31=0,0,IF(MOD(BM$3,$I31)=1,IF(PQS!$R31=\"NO\",1,0),IF(MOD(BM$3,Calculations!$J31)=1,1,0)))+Parts!$E$92*IF(Calculations!$K31=0,0,IF(MOD(BM$3,$I31)=1,0,IF(MOD(BM$3,Calculations!$K31)=1,1,0))))*$AU31)*(1+'Country Input'!$C$45)^(Calculations!BM$3-$BH$3)","v":2062.6666666666665},{"$f":"(($U31+($O31)*IF(MOD(BN$3,$I31)=1,1,0)+Parts!$E$91*IF($J31=0,0,IF(MOD(BN$3,$I31)=1,IF(PQS!$R31=\"NO\",1,0),IF(MOD(BN$3,Calculations!$J31)=1,1,0)))+Parts!$E$92*IF(Calculations!$K31=0,0,IF(MOD(BN$3,$I31)=1,0,IF(MOD(BN$3,Calculations!$K31)=1,1,0))))*$AU31)*(1+'Country Input'!$C$45)^(Calculations!BN$3-$BH$3)","v":2062.6666666666665},{"$f":"(($U31+($O31)*IF(MOD(BO$3,$I31)=1,1,0)+Parts!$E$91*IF($J31=0,0,IF(MOD(BO$3,$I31)=1,IF(PQS!$R31=\"NO\",1,0),IF(MOD(BO$3,Calculations!$J31)=1,1,0)))+Parts!$E$92*IF(Calculations!$K31=0,0,IF(MOD(BO$3,$I31)=1,0,IF(MOD(BO$3,Calculations!$K31)=1,1,0))))*$AU31)*(1+'Country Input'!$C$45)^(Calculations!BO$3-$BH$3)","v":2062.6666666666665},{"$f":"(($U31+($O31)*IF(MOD(BP$3,$I31)=1,1,0)+Parts!$E$91*IF($J31=0,0,IF(MOD(BP$3,$I31)=1,IF(PQS!$R31=\"NO\",1,0),IF(MOD(BP$3,Calculations!$J31)=1,1,0)))+Parts!$E$92*IF(Calculations!$K31=0,0,IF(MOD(BP$3,$I31)=1,0,IF(MOD(BP$3,Calculations!$K31)=1,1,0))))*$AU31)*(1+'Country Input'!$C$45)^(Calculations!BP$3-$BH$3)","v":2062.6666666666665},{"$f":"(($U31+($O31)*IF(MOD(BQ$3,$I31)=1,1,0)+Parts!$E$91*IF($J31=0,0,IF(MOD(BQ$3,$I31)=1,IF(PQS!$R31=\"NO\",1,0),IF(MOD(BQ$3,Calculations!$J31)=1,1,0)))+Parts!$E$92*IF(Calculations!$K31=0,0,IF(MOD(BQ$3,$I31)=1,0,IF(MOD(BQ$3,Calculations!$K31)=1,1,0))))*$AU31)*(1+'Country Input'!$C$45)^(Calculations!BQ$3-$BH$3)","v":2062.6666666666665},{"$f":"(($U31+($O31)*IF(MOD(BR$3,$I31)=1,1,0)+Parts!$E$91*IF($J31=0,0,IF(MOD(BR$3,$I31)=1,IF(PQS!$R31=\"NO\",1,0),IF(MOD(BR$3,Calculations!$J31)=1,1,0)))+Parts!$E$92*IF(Calculations!$K31=0,0,IF(MOD(BR$3,$I31)=1,0,IF(MOD(BR$3,Calculations!$K31)=1,1,0))))*$AU31)*(1+'Country Input'!$C$45)^(Calculations!BR$3-$BH$3)","v":18055.836333333333},{"$f":"(($U31+($O31)*IF(MOD(BS$3,$I31)=1,1,0)+Parts!$E$91*IF($J31=0,0,IF(MOD(BS$3,$I31)=1,IF(PQS!$R31=\"NO\",1,0),IF(MOD(BS$3,Calculations!$J31)=1,1,0)))+Parts!$E$92*IF(Calculations!$K31=0,0,IF(MOD(BS$3,$I31)=1,0,IF(MOD(BS$3,Calculations!$K31)=1,1,0))))*$AU31)*(1+'Country Input'!$C$45)^(Calculations!BS$3-$BH$3)","v":2062.6666666666665},{"$f":"(($U31+($O31)*IF(MOD(BT$3,$I31)=1,1,0)+Parts!$E$91*IF($J31=0,0,IF(MOD(BT$3,$I31)=1,IF(PQS!$R31=\"NO\",1,0),IF(MOD(BT$3,Calculations!$J31)=1,1,0)))+Parts!$E$92*IF(Calculations!$K31=0,0,IF(MOD(BT$3,$I31)=1,0,IF(MOD(BT$3,Calculations!$K31)=1,1,0))))*$AU31)*(1+'Country Input'!$C$45)^(Calculations!BT$3-$BH$3)","v":2062.6666666666665},{"$f":"(($U31+($O31)*IF(MOD(BU$3,$I31)=1,1,0)+Parts!$E$91*IF($J31=0,0,IF(MOD(BU$3,$I31)=1,IF(PQS!$R31=\"NO\",1,0),IF(MOD(BU$3,Calculations!$J31)=1,1,0)))+Parts!$E$92*IF(Calculations!$K31=0,0,IF(MOD(BU$3,$I31)=1,0,IF(MOD(BU$3,Calculations!$K31)=1,1,0))))*$AU31)*(1+'Country Input'!$C$45)^(Calculations!BU$3-$BH$3)","v":2062.6666666666665},{"$f":"(($U31+($O31)*IF(MOD(BV$3,$I31)=1,1,0)+Parts!$E$91*IF($J31=0,0,IF(MOD(BV$3,$I31)=1,IF(PQS!$R31=\"NO\",1,0),IF(MOD(BV$3,Calculations!$J31)=1,1,0)))+Parts!$E$92*IF(Calculations!$K31=0,0,IF(MOD(BV$3,$I31)=1,0,IF(MOD(BV$3,Calculations!$K31)=1,1,0))))*$AU31)*(1+'Country Input'!$C$45)^(Calculations!BV$3-$BH$3)","v":2062.6666666666665},{"$f":"(($U31+($O31)*IF(MOD(BW$3,$I31)=1,1,0)+Parts!$E$91*IF($J31=0,0,IF(MOD(BW$3,$I31)=1,IF(PQS!$R31=\"NO\",1,0),IF(MOD(BW$3,Calculations!$J31)=1,1,0)))+Parts!$E$92*IF(Calculations!$K31=0,0,IF(MOD(BW$3,$I31)=1,0,IF(MOD(BW$3,Calculations!$K31)=1,1,0))))*$AU31)*(1+'Country Input'!$C$45)^(Calculations!BW$3-$BH$3)","v":2062.6666666666665},{"$f":"(($U31+($O31)*IF(MOD(BX$3,$I31)=1,1,0)+Parts!$E$91*IF($J31=0,0,IF(MOD(BX$3,$I31)=1,IF(PQS!$R31=\"NO\",1,0),IF(MOD(BX$3,Calculations!$J31)=1,1,0)))+Parts!$E$92*IF(Calculations!$K31=0,0,IF(MOD(BX$3,$I31)=1,0,IF(MOD(BX$3,Calculations!$K31)=1,1,0))))*$AU31)*(1+'Country Input'!$C$45)^(Calculations!BX$3-$BH$3)","v":2062.6666666666665},{"$f":"(($U31+($O31)*IF(MOD(BY$3,$I31)=1,1,0)+Parts!$E$91*IF($J31=0,0,IF(MOD(BY$3,$I31)=1,IF(PQS!$R31=\"NO\",1,0),IF(MOD(BY$3,Calculations!$J31)=1,1,0)))+Parts!$E$92*IF(Calculations!$K31=0,0,IF(MOD(BY$3,$I31)=1,0,IF(MOD(BY$3,Calculations!$K31)=1,1,0))))*$AU31)*(1+'Country Input'!$C$45)^(Calculations!BY$3-$BH$3)","v":2062.6666666666665},{"$f":"(($U31+($O31)*IF(MOD(BZ$3,$I31)=1,1,0)+Parts!$E$91*IF($J31=0,0,IF(MOD(BZ$3,$I31)=1,IF(PQS!$R31=\"NO\",1,0),IF(MOD(BZ$3,Calculations!$J31)=1,1,0)))+Parts!$E$92*IF(Calculations!$K31=0,0,IF(MOD(BZ$3,$I31)=1,0,IF(MOD(BZ$3,Calculations!$K31)=1,1,0))))*$AU31)*(1+'Country Input'!$C$45)^(Calculations!BZ$3-$BH$3)","v":2062.6666666666665},{"$f":"(($U31+($O31)*IF(MOD(CA$3,$I31)=1,1,0)+Parts!$E$91*IF($J31=0,0,IF(MOD(CA$3,$I31)=1,IF(PQS!$R31=\"NO\",1,0),IF(MOD(CA$3,Calculations!$J31)=1,1,0)))+Parts!$E$92*IF(Calculations!$K31=0,0,IF(MOD(CA$3,$I31)=1,0,IF(MOD(CA$3,Calculations!$K31)=1,1,0))))*$AU31)*(1+'Country Input'!$C$45)^(Calculations!CA$3-$BH$3)","v":2062.6666666666665},null,"Haier HBC-110",18055.836333333333,2062.6666666666665,2062.6666666666665,2062.6666666666665,2062.6666666666665,2062.6666666666665,2062.6666666666665,2062.6666666666665,2062.6666666666665,2062.6666666666665,18055.836333333333,2062.6666666666665,2062.6666666666665,2062.6666666666665,2062.6666666666665,2062.6666666666665,2062.6666666666665,2062.6666666666665,2062.6666666666665,2062.6666666666665,{"$f":"SUM(CD31:INDEX($CD31:$CW31,1,'Total Solution Costs'!$B$2))","v":36619.83633333334},null,"Haier HBC-110",{"$f":"SUM($BH31:BH31)","v":18055.836333333333},{"$f":"SUM($BH31:BI31)","v":20118.503000000001},{"$f":"SUM($BH31:BJ31)","v":22181.169666666668},{"$f":"SUM($BH31:BK31)","v":24243.836333333336},{"$f":"SUM($BH31:BL31)","v":26306.503000000004},{"$f":"SUM($BH31:BM31)","v":28369.169666666672},{"$f":"SUM($BH31:BN31)","v":30431.83633333334},{"$f":"SUM($BH31:BO31)","v":32494.503000000008},{"$f":"SUM($BH31:BP31)","v":34557.169666666676},{"$f":"SUM($BH31:BQ31)","v":36619.83633333334},{"$f":"SUM($BH31:BR31)","v":54675.672666666673},{"$f":"SUM($BH31:BS31)","v":56738.339333333337},{"$f":"SUM($BH31:BT31)","v":58801.006000000001},{"$f":"SUM($BH31:BU31)","v":60863.672666666665},{"$f":"SUM($BH31:BV31)","v":62926.33933333333},{"$f":"SUM($BH31:BW31)","v":64989.005999999994},{"$f":"SUM($BH31:BX31)","v":67051.672666666665},{"$f":"SUM($BH31:BY31)","v":69114.339333333337},{"$f":"SUM($BH31:BZ31)","v":71177.006000000008},{"$f":"SUM($BH31:CA31)","v":73239.67266666668}]
[{"$f":"PQS!A32","v":"ILR"},{"$f":"PQS!B32","v":"E003/036"},{"$f":"PQS!E32","v":"ZLF 100 AC*"},{"$f":"PQS!F32","v":"Zero"},{"$f":"PQS!D32","v":"Zero ZLF 100 AC*"},{"$f":"VLOOKUP(E32,PQS!$D$5:$K$107,COLUMN(PQS!$I$3)-COLUMN(PQS!$D$3)+1,FALSE)","v":99},{"$f":"VLOOKUP(E32,PQS!$D$5:$K$107,COLUMN(PQS!$J$3)-COLUMN(PQS!$D$3)+1,FALSE)","v":0},{"$f":"VLOOKUP(E32,PQS!$D$5:$K$107,COLUMN(PQS!$G$3)-COLUMN(PQS!$D$3)+1,FALSE)","v":"Yes"},{"$f":"HLOOKUP(B32,INDIRECT(\"'\"&A32&\"'!$10:$15\"),ROW('Technology template'!$A$11)-ROW('Technology template'!$A$10)+1,FALSE)","v":10},{"$f":"HLOOKUP(B32,INDIRECT(\"'\"&A32&\"'!$10:$15\"),ROW('Technology template'!$A$12)-ROW('Technology template'!$A$10)+1,FALSE)","v":0},{"$f":"HLOOKUP(B32,INDIRECT(\"'\"&A32&\"'!$10:$15\"),ROW('Technology template'!$A$13)-ROW('Technology template'!$A$10)+1,FALSE)","v":0},{"$f":"VLOOKUP(B32,PQS!$B:$Q,MATCH(PQS!$Q$3,PQS!$B$3:$Q$3,0),FALSE)*(1+'Country Input'!$C$47)+HLOOKUP(B32,INDIRECT(\"'\"&A32&\"'!$10:$15\"),ROW('Technology template'!$A$14)-ROW('Technology template'!$A$10)+1,FALSE)*(1+'Country Input'!$C$47)","v":2209.5500000000002},{"$f":"HLOOKUP(B32,INDIRECT(\"'\"&A32&\"'!$10:$80\"),MATCH('Technology template'!$A$27,INDIRECT(\"'\"&A32&\"'!$A$10:$A$80\"),0),FALSE)+'Labor and Maintenance '!$E$22","v":748},{"$f":"VLOOKUP(B32,PQS!B:T,MATCH(PQS!$T$3,PQS!$B$3:$T$3,0),FALSE)*(1+'Country Input'!$C$47)","v":514.67000000000007},3472.2200000000003,347.22200000000004,{"$f":"VLOOKUP(B32,PQS!$B:$AE,COLUMN(PQS!AD30)-1,FALSE)","v":143.08000000000001},{"$f":"IFERROR(1/HLOOKUP(B32,INDIRECT(\"'\"&A32&\"'!$10:$80\"),MATCH('Technology template'!$A$31,INDIRECT(\"'\"&A32&\"'!$A$10:$A$80\"),0),FALSE)*HLOOKUP(B32,INDIRECT(\"'\"&A32&\"'!$10:$80\"),MATCH('Technology template'!$A$41,INDIRECT(\"'\"&A32&\"'!$A10:$A$80\"),0),FALSE),0)*TechnicianHourlyWage+IF(A32=\"Solar w Battery\",1/'Labor and Maintenance '!$E$53*'Labor and Maintenance '!$D$53,0)+IF(A32=\"LT passive\", 1/'Labor and Maintenance '!$E$81*'Labor and Maintenance '!$D$81,0)","v":24},{"$f":"IFERROR(1/HLOOKUP(B32,INDIRECT(\"'\"&A32&\"'!$10:$80\"),MATCH('Technology template'!$A$34,INDIRECT(\"'\"&A32&\"'!$A$10:$A$80\"),0),FALSE)*(HLOOKUP(B32,INDIRECT(\"'\"&A32&\"'!$10:$80\"),MATCH('Technology template'!$A$44,INDIRECT(\"'\"&A32&\"'!$A10:$A$80\"),0),FALSE)*TechnicianHourlyWage+RemoteTravelCostPerDay),0)+IFERROR(1/HLOOKUP(B32,INDIRECT(\"'\"&A32&\"'!$10:$80\"),MATCH('Technology template'!$A$35,INDIRECT(\"'\"&A32&\"'!$A$10:$A$80\"),0),FALSE)*(HLOOKUP(B32,INDIRECT(\"'\"&A32&\"'!$10:$80\"),MATCH('Technology template'!$A$45,INDIRECT(\"'\"&A32&\"'!$A10:$A$80\"),0),FALSE)*TechnicianHourlyWage+RemoteTravelCostPerDay),0)+IFERROR(1/HLOOKUP(B32,INDIRECT(\"'\"&A32&\"'!$10:$80\"),MATCH('Technology template'!$A$37,INDIRECT(\"'\"&A32&\"'!$A$10:$A$80\"),0),FALSE)*(HLOOKUP(B32,INDIRECT(\"'\"&A32&\"'!$10:$80\"),MATCH('Technology template'!$A$46,INDIRECT(\"'\"&A32&\"'!$A10:$A$80\"),0),FALSE)*TechnicianHourlyWage+'Labor and Maintenance '!$B$8),0)","v":94.666666666666657},2617.4666666666667,261.74666666666667,608.96866666666665,null,"Zero ZLF 100 AC*",35.072929292929295,26.439057239057238,61.511986531986537,null,"Zero ZLF 100 AC*",3.5072929292929298,2.643905723905724,6.1511986531986533,null,"Zero ZLF 100 AC*",2,6944.4400000000005,5234.9333333333334,12179.373333333333,null,"Zero ZLF 100 AC*",2,7.0145858585858596,5.287811447811448,12.302397306397307,null,"Zero ZLF 100 AC*",{"$f":"IF(F32=0, 'Country Input'!$D$7, ROUNDUP(LitersPerFacility/F32,0)*'Country Input'!$D$7)","v":10},34722.200000000004,2617.4666666666667,37339.666666666672,null,"Zero ZLF 100 AC*",{"$f":"ROUNDUP(LitersPerFacility/F32,0)*'Country Input'!$D$7*ROUNDUP('Total Solution Costs'!$B$2/Calculations!I32,0)","v":10},35.072929292929295,2.643905723905724,37.71683501683502,null,null,"Zero ZLF 100 AC*",{"$f":"(($U32+($O32)*IF(MOD(BH$3,$I32)=1,1,0)+Parts!$E$91*IF($J32=0,0,IF(MOD(BH$3,$I32)=1,IF(PQS!$R32=\"NO\",1,0),IF(MOD(BH$3,Calculations!$J32)=1,1,0)))+Parts!$E$92*IF(Calculations!$K32=0,0,IF(MOD(BH$3,$I32)=1,0,IF(MOD(BH$3,Calculations!$K32)=1,1,0))))*$AU32)*(1+'Country Input'!$C$45)^(Calculations!BH$3-$BH$3)+TrainingCost","v":37339.666666666672},{"$f":"(($U32+($O32)*IF(MOD(BI$3,$I32)=1,1,0)+Parts!$E$91*IF($J32=0,0,IF(MOD(BI$3,$I32)=1,IF(PQS!$R32=\"NO\",1,0),IF(MOD(BI$3,Calculations!$J32)=1,1,0)))+Parts!$E$92*IF(Calculations!$K32=0,0,IF(MOD(BI$3,$I32)=1,0,IF(MOD(BI$3,Calculations!$K32)=1,1,0))))*$AU32)*(1+'Country Input'!$C$45)^(Calculations!BI$3-$BH$3)","v":2617.4666666666667},{"$f":"(($U32+($O32)*IF(MOD(BJ$3,$I32)=1,1,0)+Parts!$E$91*IF($J32=0,0,IF(MOD(BJ$3,$I32)=1,IF(PQS!$R32=\"NO\",1,0),IF(MOD(BJ$3,Calculations!$J32)=1,1,0)))+Parts!$E$92*IF(Calculations!$K32=0,0,IF(MOD(BJ$3,$I32)=1,0,IF(MOD(BJ$3,Calculations!$K32)=1,1,0))))*$AU32)*(1+'Country Input'!$C$45)^(Calculations!BJ$3-$BH$3)","v":2617.4666666666667},{"$f":"(($U32+($O32)*IF(MOD(BK$3,$I32)=1,1,0)+Parts!$E$91*IF($J32=0,0,IF(MOD(BK$3,$I32)=1,IF(PQS!$R32=\"NO\",1,0),IF(MOD(BK$3,Calculations!$J32)=1,1,0)))+Parts!$E$92*IF(Calculations!$K32=0,0,IF(MOD(BK$3,$I32)=1,0,IF(MOD(BK$3,Calculations!$K32)=1,1,0))))*$AU32)*(1+'Country Input'!$C$45)^(Calculations!BK$3-$BH$3)","v":2617.4666666666667},{"$f":"(($U32+($O32)*IF(MOD(BL$3,$I32)=1,1,0)+Parts!$E$91*IF($J32=0,0,IF(MOD(BL$3,$I32)=1,IF(PQS!$R32=\"NO\",1,0),IF(MOD(BL$3,Calculations!$J32)=1,1,0)))+Parts!$E$92*IF(Calculations!$K32=0,0,IF(MOD(BL$3,$I32)=1,0,IF(MOD(BL$3,Calculations!$K32)=1,1,0))))*$AU32)*(1+'Country Input'!$C$45)^(Calculations!BL$3-$BH$3)","v":2617.4666666666667},{"$f":"(($U32+($O32)*IF(MOD(BM$3,$I32)=1,1,0)+Parts!$E$91*IF($J32=0,0,IF(MOD(BM$3,$I32)=1,IF(PQS!$R32=\"NO\",1,0),IF(MOD(BM$3,Calculations!$J32)=1,1,0)))+Parts!$E$92*IF(Calculations!$K32=0,0,IF(MOD(BM$3,$I32)=1,0,IF(MOD(BM$3,Calculations!$K32)=1,1,0))))*$AU32)*(1+'Country Input'!$C$45)^(Calculations!BM$3-$BH$3)","v":2617.4666666666667},{"$f":"(($U32+($O32)*IF(MOD(BN$3,$I32)=1,1,0)+Parts!$E$91*IF($J32=0,0,IF(MOD(BN$3,$I32)=1,IF(PQS!$R32=\"NO\",1,0),IF(MOD(BN$3,Calculations!$J32)=1,1,0)))+Parts!$E$92*IF(Calculations!$K32=0,0,IF(MOD(BN$3,$I32)=1,0,IF(MOD(BN$3,Calculations!$K32)=1,1,0))))*$AU32)*(1+'Country Input'!$C$45)^(Calculations!BN$3-$BH$3)","v":2617.4666666666667},{"$f":"(($U32+($O32)*IF(MOD(BO$3,$I32)=1,1,0)+Parts!$E$91*IF($J32=0,0,IF(MOD(BO$3,$I32)=1,IF(PQS!$R32=\"NO\",1,0),IF(MOD(BO$3,Calculations!$J32)=1,1,0)))+Parts!$E$92*IF(Calculations!$K32=0,0,IF(MOD(BO$3,$I32)=1,0,IF(MOD(BO$3,Calculations!$K32)=1,1,0))))*$AU32)*(1+'Country Input'!$C$45)^(Calculations!BO$3-$BH$3)","v":2617.4666666666667},{"$f":"(($U32+($O32)*IF(MOD(BP$3,$I32)=1,1,0)+Parts!$E$91*IF($J32=0,0,IF(MOD(BP$3,$I32)=1,IF(PQS!$R32=\"NO\",1,0),IF(MOD(BP$3,Calculations!$J32)=1,1,0)))+Parts!$E$92*IF(Calculations!$K32=0,0,IF(MOD(BP$3,$I32)=1,0,IF(MOD(BP$3,Calculations!$K32)=1,1,0))))*$AU32)*(1+'Country Input'!$C$45)^(Calculations!BP$3-$BH$3)","v":2617.4666666666667},{"$f":"(($U32+($O32)*IF(MOD(BQ$3,$I32)=1,1,0)+Parts!$E$91*IF($J32=0,0,IF(MOD(BQ$3,$I32)=1,IF(PQS!$R32=\"NO\",1,0),IF(MOD(BQ$3,Calculations!$J32)=1,1,0)))+Parts!$E$92*IF(Calculations!$K32=0,0,IF(MOD(BQ$3,$I32)=1,0,IF(MOD(BQ$3,Calculations!$K32)=1,1,0))))*$AU32)*(1+'Country Input'!$C$45)^(Calculations!BQ$3-$BH$3)","v":2617.4666666666667},{"$f":"(($U32+($O32)*IF(MOD(BR$3,$I32)=1,1,0)+Parts!$E$91*IF($J32=0,0,IF(MOD(BR$3,$I32)=1,IF(PQS!$R32=\"NO\",1,0),IF(MOD(BR$3,Calculations!$J32)=1,1,0)))+Parts!$E$92*IF(Calculations!$K32=0,0,IF(MOD(BR$3,$I32)=1,0,IF(MOD(BR$3,Calculations!$K32)=1,1,0))))*$AU32)*(1+'Country Input'!$C$45)^(Calculations!BR$3-$BH$3)","v":37339.666666666672},{"$f":"(($U32+($O32)*IF(MOD(BS$3,$I32)=1,1,0)+Parts!$E$91*IF($J32=0,0,IF(MOD(BS$3,$I32)=1,IF(PQS!$R32=\"NO\",1,0),IF(MOD(BS$3,Calculations!$J32)=1,1,0)))+Parts!$E$92*IF(Calculations!$K32=0,0,IF(MOD(BS$3,$I32)=1,0,IF(MOD(BS$3,Calculations!$K32)=1,1,0))))*$AU32)*(1+'Country Input'!$C$45)^(Calculations!BS$3-$BH$3)","v":2617.4666666666667},{"$f":"(($U32+($O32)*IF(MOD(BT$3,$I32)=1,1,0)+Parts!$E$91*IF($J32=0,0,IF(MOD(BT$3,$I32)=1,IF(PQS!$R32=\"NO\",1,0),IF(MOD(BT$3,Calculations!$J32)=1,1,0)))+Parts!$E$92*IF(Calculations!$K32=0,0,IF(MOD(BT$3,$I32)=1,0,IF(MOD(BT$3,Calculations!$K32)=1,1,0))))*$AU32)*(1+'Country Input'!$C$45)^(Calculations!BT$3-$BH$3)","v":2617.4666666666667},{"$f":"(($U32+($O32)*IF(MOD(BU$3,$I32)=1,1,0)+Parts!$E$91*IF($J32=0,0,IF(MOD(BU$3,$I32)=1,IF(PQS!$R32=\"NO\",1,0),IF(MOD(BU$3,Calculations!$J32)=1,1,0)))+Parts!$E$92*IF(Calculations!$K32=0,0,IF(MOD(BU$3,$I32)=1,0,IF(MOD(BU$3,Calculations!$K32)=1,1,0))))*$AU32)*(1+'Country Input'!$C$45)^(Calculations!BU$3-$BH$3)","v":2617.4666666666667},{"$f":"(($U32+($O32)*IF(MOD(BV$3,$I32)=1,1,0)+Parts!$E$91*IF($J32=0,0,IF(MOD(BV$3,$I32)=1,IF(PQS!$R32=\"NO\",1,0),IF(MOD(BV$3,Calculations!$J32)=1,1,0)))+Parts!$E$92*IF(Calculations!$K32=0,0,IF(MOD(BV$3,$I32)=1,0,IF(MOD(BV$3,Calculations!$K32)=1,1,0))))*$AU32)*(1+'Country Input'!$C$45)^(Calculations!BV$3-$BH$3)","v":2617.4666666666667},{"$f":"(($U32+($O32)*IF(MOD(BW$3,$I32)=1,1,0)+Parts!$E$91*IF($J32=0,0,IF(MOD(BW$3,$I32)=1,IF(PQS!$R32=\"NO\",1,0),IF(MOD(BW$3,Calculations!$J32)=1,1,0)))+Parts!$E$92*IF(Calculations!$K32=0,0,IF(MOD(BW$3,$I32)=1,0,IF(MOD(BW$3,Calculations!$K32)=1,1,0))))*$AU32)*(1+'Country Input'!$C$45)^(Calculations!BW$3-$BH$3)","v":2617.4666666666667},{"$f":"(($U32+($O32)*IF(MOD(BX$3,$I32)=1,1,0)+Parts!$E$91*IF($J32=0,0,IF(MOD(BX$3,$I32)=1,IF(PQS!$R32=\"NO\",1,0),IF(MOD(BX$3,Calculations!$J32)=1,1,0)))+Parts!$E$92*IF(Calculations!$K32=0,0,IF(MOD(BX$3,$I32)=1,0,IF(MOD(BX$3,Calculations!$K32)=1,1,0))))*$AU32)*(1+'Country Input'!$C$45)^(Calculations!BX$3-$BH$3)","v":2617.4666666666667},{"$f":"(($U32+($O32)*IF(MOD(BY$3,$I32)=1,1,0)+Parts!$E$91*IF($J32=0,0,IF(MOD(BY$3,$I32)=1,IF(PQS!$R32=\"NO\",1,0),IF(MOD(BY$3,Calculations!$J32)=1,1,0)))+Parts!$E$92*IF(Calculations!$K32=0,0,IF(MOD(BY$3,$I32)=1,0,IF(MOD(BY$3,Calculations!$K32)=1,1,0))))*$AU32)*(1+'Country Input'!$C$45)^(Calculations!BY$3-$BH$3)","v":2617.4666666666667},{"$f":"(($U32+($O32)*IF(MOD(BZ$3,$I32)=1,1,0)+Parts!$E$91*IF($J32=0,0,IF(MOD(BZ$3,$I32)=1,IF(PQS!$R32=\"NO\",1,0),IF(MOD(BZ$3,Calculations!$J32)=1,1,0)))+Parts!$E$92*IF(Calculations!$K32=0,0,IF(MOD(BZ$3,$I32)=1,0,IF(MOD(BZ$3,Calculations!$K32)=1,1,0))))*$AU32)*(1+'Country Input'!$C$45)^(Calculations!BZ$3-$BH$3)","v":2617.4666666666667},{"$f":"(($U32+($O32)*IF(MOD(CA$3,$I32)=1,1,0)+Parts!$E$91*IF($J32=0,0,IF(MOD(CA$3,$I32)=1,IF(PQS!$R32=\"NO\",1,0),IF(MOD(CA$3,Calculations!$J32)=1,1,0)))+Parts!$E$92*IF(Calculations!$K32=0,0,IF(MOD(CA$3,$I32)=1,0,IF(MOD(CA$3,Calculations!$K32)=1,1,0))))*$AU32)*(1+'Country Input'!$C$45)^(Calculations!CA$3-$BH$3)","v":2617.4666666666667},null,"Zero ZLF 100 AC*",37339.666666666672,2617.4666666666667,2617.4666666666667,2617.4666666666667,2617.4666666666667,2617.4666666666667,2617.4666666666667,2617.4666666666667,2617.4666666666667,2617.4666666666667,37339.666666666672,2617.4666666666667,2617.4666666666667,2617.4666666666667,2617.4666666666667,2617.4666666666667,2617.4666666666667,2617.4666666666667,2617.4666666666667,2617.4666666666667,{"$f":"SUM(CD32:INDEX($CD32:$CW32,1,'Total Solution Costs'!$B$2))","v":60896.866666666676},null,"Zero ZLF 100 AC*",{"$f":"SUM($BH32:BH32)","v":37339.666666666672},{"$f":"SUM($BH32:BI32)","v":39957.133333333339},{"$f":"SUM($BH32:BJ32)","v":42574.600000000006},{"$f":"SUM($BH32:BK32)","v":45192.066666666673},{"$f":"SUM($BH32:BL32)","v":47809.53333333334},{"$f":"SUM($BH32:BM32)","v":50427.000000000007},{"$f":"SUM($BH32:BN32)","v":53044.466666666674},{"$f":"SUM($BH32:BO32)","v":55661.933333333342},{"$f":"SUM($BH32:BP32)","v":58279.400000000009},{"$f":"SUM($BH32:BQ32)","v":60896.866666666676},{"$f":"SUM($BH32:BR32)","v":98236.533333333355},{"$f":"SUM($BH32:BS32)","v":100854.00000000001},{"$f":"SUM($BH32:BT32)","v":103471.46666666667},{"$f":"SUM($BH32:BU32)","v":106088.93333333333},{"$f":"SUM($BH32:BV32)","v":108706.4},{"$f":"SUM($BH32:BW32)","v":111323.86666666665},{"$f":"SUM($BH32:BX32)","v":113941.33333333331},{"$f":"SUM($BH32:BY32)","v":116558.79999999997},{"$f":"SUM($BH32:BZ32)","v":119176.26666666663},{"$f":"SUM($BH32:CA32)","v":121793.73333333329}]
[{"$f":"PQS!A33","v":"ILR"},{"$f":"PQS!B33","v":"E003/038"},{"$f":"PQS!E33","v":"HBC-340"},{"$f":"PQS!F33","v":"Haier"},{"$f":"PQS!D33","v":"Haier HBC-340"},{"$f":"VLOOKUP(E33,PQS!$D$5:$K$107,COLUMN(PQS!$I$3)-COLUMN(PQS!$D$3)+1,FALSE)","v":211},{"$f":"VLOOKUP(E33,PQS!$D$5:$K$107,COLUMN(PQS!$J$3)-COLUMN(PQS!$D$3)+1,FALSE)","v":0},{"$f":"VLOOKUP(E33,PQS!$D$5:$K$107,COLUMN(PQS!$G$3)-COLUMN(PQS!$D$3)+1,FALSE)","v":"No"},{"$f":"HLOOKUP(B33,INDIRECT(\"'\"&A33&\"'!$10:$15\"),ROW('Technology template'!$A$11)-ROW('Technology template'!$A$10)+1,FALSE)","v":10},{"$f":"HLOOKUP(B33,INDIRECT(\"'\"&A33&\"'!$10:$15\"),ROW('Technology template'!$A$12)-ROW('Technology template'!$A$10)+1,FALSE)","v":0},{"$f":"HLOOKUP(B33,INDIRECT(\"'\"&A33&\"'!$10:$15\"),ROW('Technology template'!$A$13)-ROW('Technology template'!$A$10)+1,FALSE)","v":0},{"$f":"VLOOKUP(B33,PQS!$B:$Q,MATCH(PQS!$Q$3,PQS!$B$3:$Q$3,0),FALSE)*(1+'Country Input'!$C$47)+HLOOKUP(B33,INDIRECT(\"'\"&A33&\"'!$10:$15\"),ROW('Technology template'!$A$14)-ROW('Technology template'!$A$10)+1,FALSE)*(1+'Country Input'!$C$47)","v":1016.5},{"$f":"HLOOKUP(B33,INDIRECT(\"'\"&A33&\"'!$10:$80\"),MATCH('Technology template'!$A$27,INDIRECT(\"'\"&A33&\"'!$A$10:$A$80\"),0),FALSE)+'Labor and Maintenance '!$E$22","v":748},{"$f":"VLOOKUP(B33,PQS!B:T,MATCH(PQS!$T$3,PQS!$B$3:$T$3,0),FALSE)*(1+'Country Input'!$C$47)","v":288.72880000000004},2053.2287999999999,205.32288,{"$f":"VLOOKUP(B33,PQS!$B:$AE,COLUMN(PQS!AD31)-1,FALSE)","v":150.38000000000002},{"$f":"IFERROR(1/HLOOKUP(B33,INDIRECT(\"'\"&A33&\"'!$10:$80\"),MATCH('Technology template'!$A$31,INDIRECT(\"'\"&A33&\"'!$A$10:$A$80\"),0),FALSE)*HLOOKUP(B33,INDIRECT(\"'\"&A33&\"'!$10:$80\"),MATCH('Technology template'!$A$41,INDIRECT(\"'\"&A33&\"'!$A10:$A$80\"),0),FALSE),0)*TechnicianHourlyWage+IF(A33=\"Solar w Battery\",1/'Labor and Maintenance '!$E$53*'Labor and Maintenance '!$D$53,0)+IF(A33=\"LT passive\", 1/'Labor and Maintenance '!$E$81*'Labor and Maintenance '!$D$81,0)","v":24},{"$f":"IFERROR(1/HLOOKUP(B33,INDIRECT(\"'\"&A33&\"'!$10:$80\"),MATCH('Technology template'!$A$34,INDIRECT(\"'\"&A33&\"'!$A$10:$A$80\"),0),FALSE)*(HLOOKUP(B33,INDIRECT(\"'\"&A33&\"'!$10:$80\"),MATCH('Technology template'!$A$44,INDIRECT(\"'\"&A33&\"'!$A10:$A$80\"),0),FALSE)*TechnicianHourlyWage+RemoteTravelCostPerDay),0)+IFERROR(1/HLOOKUP(B33,INDIRECT(\"'\"&A33&\"'!$10:$80\"),MATCH('Technology template'!$A$35,INDIRECT(\"'\"&A33&\"'!$A$10:$A$80\"),0),FALSE)*(HLOOKUP(B33,INDIRECT(\"'\"&A33&\"'!$10:$80\"),MATCH('Technology template'!$A$45,INDIRECT(\"'\"&A33&\"'!$A10:$A$80\"),0),FALSE)*TechnicianHourlyWage+RemoteTravelCostPerDay),0)+IFERROR(1/HLOOKUP(B33,INDIRECT(\"'\"&A33&\"'!$10:$80\"),MATCH('Technology template'!$A$37,INDIRECT(\"'\"&A33&\"'!$A$10:$A$80\"),0),FALSE)*(HLOOKUP(B33,INDIRECT(\"'\"&A33&\"'!$10:$80\"),MATCH('Technology template'!$A$46,INDIRECT(\"'\"&A33&\"'!$A10:$A$80\"),0),FALSE)*TechnicianHourlyWage+'Labor and Maintenance '!$B$8),0)","v":94.666666666666657},2690.4666666666667,269.04666666666668,474.36954666666668,null,"Haier HBC-340",9.730942180094786,12.751026856240127,22.481969036334913,null,"Haier HBC-340",0.97309421800947871,1.2751026856240126,2.2481969036334912,null,"Haier HBC-340",1,2053.2287999999999,2690.4666666666667,4743.6954666666661,null,"Haier HBC-340",1,0.97309421800947871,1.2751026856240126,2.2481969036334912,null,"Haier HBC-340",{"$f":"IF(F33=0, 'Country Input'!$D$7, ROUNDUP(LitersPerFacility/F33,0)*'Country Input'!$D$7)","v":10},20532.288,2690.4666666666667,23222.754666666668,null,"Haier HBC-340",{"$f":"ROUNDUP(LitersPerFacility/F33,0)*'Country Input'!$D$7*ROUNDUP('Total Solution Costs'!$B$2/Calculations!I33,0)","v":10},9.7309421800947877,1.2751026856240126,11.006044865718801,null,null,"Haier HBC-340",{"$f":"(($U33+($O33)*IF(MOD(BH$3,$I33)=1,1,0)+Parts!$E$91*IF($J33=0,0,IF(MOD(BH$3,$I33)=1,IF(PQS!$R33=\"NO\",1,0),IF(MOD(BH$3,Calculations!$J33)=1,1,0)))+Parts!$E$92*IF(Calculations!$K33=0,0,IF(MOD(BH$3,$I33)=1,0,IF(MOD(BH$3,Calculations!$K33)=1,1,0))))*$AU33)*(1+'Country Input'!$C$45)^(Calculations!BH$3-$BH$3)+TrainingCost","v":23222.754666666664},{"$f":"(($U33+($O33)*IF(MOD(BI$3,$I33)=1,1,0)+Parts!$E$91*IF($J33=0,0,IF(MOD(BI$3,$I33)=1,IF(PQS!$R33=\"NO\",1,0),IF(MOD(BI$3,Calculations!$J33)=1,1,0)))+Parts!$E$92*IF(Calculations!$K33=0,0,IF(MOD(BI$3,$I33)=1,0,IF(MOD(BI$3,Calculations!$K33)=1,1,0))))*$AU33)*(1+'Country Input'!$C$45)^(Calculations!BI$3-$BH$3)","v":2690.4666666666667},{"$f":"(($U33+($O33)*IF(MOD(BJ$3,$I33)=1,1,0)+Parts!$E$91*IF($J33=0,0,IF(MOD(BJ$3,$I33)=1,IF(PQS!$R33=\"NO\",1,0),IF(MOD(BJ$3,Calculations!$J33)=1,1,0)))+Parts!$E$92*IF(Calculations!$K33=0,0,IF(MOD(BJ$3,$I33)=1,0,IF(MOD(BJ$3,Calculations!$K33)=1,1,0))))*$AU33)*(1+'Country Input'!$C$45)^(Calculations!BJ$3-$BH$3)","v":2690.4666666666667},{"$f":"(($U33+($O33)*IF(MOD(BK$3,$I33)=1,1,0)+Parts!$E$91*IF($J33=0,0,IF(MOD(BK$3,$I33)=1,IF(PQS!$R33=\"NO\",1,0),IF(MOD(BK$3,Calculations!$J33)=1,1,0)))+Parts!$E$92*IF(Calculations!$K33=0,0,IF(MOD(BK$3,$I33)=1,0,IF(MOD(BK$3,Calculations!$K33)=1,1,0))))*$AU33)*(1+'Country Input'!$C$45)^(Calculations!BK$3-$BH$3)","v":2690.4666666666667},{"$f":"(($U33+($O33)*IF(MOD(BL$3,$I33)=1,1,0)+Parts!$E$91*IF($J33=0,0,IF(MOD(BL$3,$I33)=1,IF(PQS!$R33=\"NO\",1,0),IF(MOD(BL$3,Calculations!$J33)=1,1,0)))+Parts!$E$92*IF(Calculations!$K33=0,0,IF(MOD(BL$3,$I33)=1,0,IF(MOD(BL$3,Calculations!$K33)=1,1,0))))*$AU33)*(1+'Country Input'!$C$45)^(Calculations!BL$3-$BH$3)","v":2690.4666666666667},{"$f":"(($U33+($O33)*IF(MOD(BM$3,$I33)=1,1,0)+Parts!$E$91*IF($J33=0,0,IF(MOD(BM$3,$I33)=1,IF(PQS!$R33=\"NO\",1,0),IF(MOD(BM$3,Calculations!$J33)=1,1,0)))+Parts!$E$92*IF(Calculations!$K33=0,0,IF(MOD(BM$3,$I33)=1,0,IF(MOD(BM$3,Calculations!$K33)=1,1,0))))*$AU33)*(1+'Country Input'!$C$45)^(Calculations!BM$3-$BH$3)","v":2690.4666666666667},{"$f":"(($U33+($O33)*IF(MOD(BN$3,$I33)=1,1,0)+Parts!$E$91*IF($J33=0,0,IF(MOD(BN$3,$I33)=1,IF(PQS!$R33=\"NO\",1,0),IF(MOD(BN$3,Calculations!$J33)=1,1,0)))+Parts!$E$92*IF(Calculations!$K33=0,0,IF(MOD(BN$3,$I33)=1,0,IF(MOD(BN$3,Calculations!$K33)=1,1,0))))*$AU33)*(1+'Country Input'!$C$45)^(Calculations!BN$3-$BH$3)","v":2690.4666666666667},{"$f":"(($U33+($O33)*IF(MOD(BO$3,$I33)=1,1,0)+Parts!$E$91*IF($J33=0,0,IF(MOD(BO$3,$I33)=1,IF(PQS!$R33=\"NO\",1,0),IF(MOD(BO$3,Calculations!$J33)=1,1,0)))+Parts!$E$92*IF(Calculations!$K33=0,0,IF(MOD(BO$3,$I33)=1,0,IF(MOD(BO$3,Calculations!$K33)=1,1,0))))*$AU33)*(1+'Country Input'!$C$45)^(Calculations!BO$3-$BH$3)","v":2690.4666666666667},{"$f":"(($U33+($O33)*IF(MOD(BP$3,$I33)=1,1,0)+Parts!$E$91*IF($J33=0,0,IF(MOD(BP$3,$I33)=1,IF(PQS!$R33=\"NO\",1,0),IF(MOD(BP$3,Calculations!$J33)=1,1,0)))+Parts!$E$92*IF(Calculations!$K33=0,0,IF(MOD(BP$3,$I33)=1,0,IF(MOD(BP$3,Calculations!$K33)=1,1,0))))*$AU33)*(1+'Country Input'!$C$45)^(Calculations!BP$3-$BH$3)","v":2690.4666666666667},{"$f":"(($U33+($O33)*IF(MOD(BQ$3,$I33)=1,1,0)+Parts!$E$91*IF($J33=0,0,IF(MOD(BQ$3,$I33)=1,IF(PQS!$R33=\"NO\",1,0),IF(MOD(BQ$3,Calculations!$J33)=1,1,0)))+Parts!$E$92*IF(Calculations!$K33=0,0,IF(MOD(BQ$3,$I33)=1,0,IF(MOD(BQ$3,Calculations!$K33)=1,1,0))))*$AU33)*(1+'Country Input'!$C$45)^(Calculations!BQ$3-$BH$3)","v":2690.4666666666667},{"$f":"(($U33+($O33)*IF(MOD(BR$3,$I33)=1,1,0)+Parts!$E$91*IF($J33=0,0,IF(MOD(BR$3,$I33)=1,IF(PQS!$R33=\"NO\",1,0),IF(MOD(BR$3,Calculations!$J33)=1,1,0)))+Parts!$E$92*IF(Calculations!$K33=0,0,IF(MOD(BR$3,$I33)=1,0,IF(MOD(BR$3,Calculations!$K33)=1,1,0))))*$AU33)*(1+'Country Input'!$C$45)^(Calculations!BR$3-$BH$3)","v":23222.754666666664},{"$f":"(($U33+($O33)*IF(MOD(BS$3,$I33)=1,1,0)+Parts!$E$91*IF($J33=0,0,IF(MOD(BS$3,$I33)=1,IF(PQS!$R33=\"NO\",1,0),IF(MOD(BS$3,Calculations!$J33)=1,1,0)))+Parts!$E$92*IF(Calculations!$K33=0,0,IF(MOD(BS$3,$I33)=1,0,IF(MOD(BS$3,Calculations!$K33)=1,1,0))))*$AU33)*(1+'Country Input'!$C$45)^(Calculations!BS$3-$BH$3)","v":2690.4666666666667},{"$f":"(($U33+($O33)*IF(MOD(BT$3,$I33)=1,1,0)+Parts!$E$91*IF($J33=0,0,IF(MOD(BT$3,$I33)=1,IF(PQS!$R33=\"NO\",1,0),IF(MOD(BT$3,Calculations!$J33)=1,1,0)))+Parts!$E$92*IF(Calculations!$K33=0,0,IF(MOD(BT$3,$I33)=1,0,IF(MOD(BT$3,Calculations!$K33)=1,1,0))))*$AU33)*(1+'Country Input'!$C$45)^(Calculations!BT$3-$BH$3)","v":2690.4666666666667},{"$f":"(($U33+($O33)*IF(MOD(BU$3,$I33)=1,1,0)+Parts!$E$91*IF($J33=0,0,IF(MOD(BU$3,$I33)=1,IF(PQS!$R33=\"NO\",1,0),IF(MOD(BU$3,Calculations!$J33)=1,1,0)))+Parts!$E$92*IF(Calculations!$K33=0,0,IF(MOD(BU$3,$I33)=1,0,IF(MOD(BU$3,Calculations!$K33)=1,1,0))))*$AU33)*(1+'Country Input'!$C$45)^(Calculations!BU$3-$BH$3)","v":2690.4666666666667},{"$f":"(($U33+($O33)*IF(MOD(BV$3,$I33)=1,1,0)+Parts!$E$91*IF($J33=0,0,IF(MOD(BV$3,$I33)=1,IF(PQS!$R33=\"NO\",1,0),IF(MOD(BV$3,Calculations!$J33)=1,1,0)))+Parts!$E$92*IF(Calculations!$K33=0,0,IF(MOD(BV$3,$I33)=1,0,IF(MOD(BV$3,Calculations!$K33)=1,1,0))))*$AU33)*(1+'Country Input'!$C$45)^(Calculations!BV$3-$BH$3)","v":2690.4666666666667},{"$f":"(($U33+($O33)*IF(MOD(BW$3,$I33)=1,1,0)+Parts!$E$91*IF($J33=0,0,IF(MOD(BW$3,$I33)=1,IF(PQS!$R33=\"NO\",1,0),IF(MOD(BW$3,Calculations!$J33)=1,1,0)))+Parts!$E$92*IF(Calculations!$K33=0,0,IF(MOD(BW$3,$I33)=1,0,IF(MOD(BW$3,Calculations!$K33)=1,1,0))))*$AU33)*(1+'Country Input'!$C$45)^(Calculations!BW$3-$BH$3)","v":2690.4666666666667},{"$f":"(($U33+($O33)*IF(MOD(BX$3,$I33)=1,1,0)+Parts!$E$91*IF($J33=0,0,IF(MOD(BX$3,$I33)=1,IF(PQS!$R33=\"NO\",1,0),IF(MOD(BX$3,Calculations!$J33)=1,1,0)))+Parts!$E$92*IF(Calculations!$K33=0,0,IF(MOD(BX$3,$I33)=1,0,IF(MOD(BX$3,Calculations!$K33)=1,1,0))))*$AU33)*(1+'Country Input'!$C$45)^(Calculations!BX$3-$BH$3)","v":2690.4666666666667},{"$f":"(($U33+($O33)*IF(MOD(BY$3,$I33)=1,1,0)+Parts!$E$91*IF($J33=0,0,IF(MOD(BY$3,$I33)=1,IF(PQS!$R33=\"NO\",1,0),IF(MOD(BY$3,Calculations!$J33)=1,1,0)))+Parts!$E$92*IF(Calculations!$K33=0,0,IF(MOD(BY$3,$I33)=1,0,IF(MOD(BY$3,Calculations!$K33)=1,1,0))))*$AU33)*(1+'Country Input'!$C$45)^(Calculations!BY$3-$BH$3)","v":2690.4666666666667},{"$f":"(($U33+($O33)*IF(MOD(BZ$3,$I33)=1,1,0)+Parts!$E$91*IF($J33=0,0,IF(MOD(BZ$3,$I33)=1,IF(PQS!$R33=\"NO\",1,0),IF(MOD(BZ$3,Calculations!$J33)=1,1,0)))+Parts!$E$92*IF(Calculations!$K33=0,0,IF(MOD(BZ$3,$I33)=1,0,IF(MOD(BZ$3,Calculations!$K33)=1,1,0))))*$AU33)*(1+'Country Input'!$C$45)^(Calculations!BZ$3-$BH$3)","v":2690.4666666666667},{"$f":"(($U33+($O33)*IF(MOD(CA$3,$I33)=1,1,0)+Parts!$E$91*IF($J33=0,0,IF(MOD(CA$3,$I33)=1,IF(PQS!$R33=\"NO\",1,0),IF(MOD(CA$3,Calculations!$J33)=1,1,0)))+Parts!$E$92*IF(Calculations!$K33=0,0,IF(MOD(CA$3,$I33)=1,0,IF(MOD(CA$3,Calculations!$K33)=1,1,0))))*$AU33)*(1+'Country Input'!$C$45)^(Calculations!CA$3-$BH$3)","v":2690.4666666666667},null,"Haier HBC-340",23222.754666666664,2690.4666666666667,2690.4666666666667,2690.4666666666667,2690.4666666666667,2690.4666666666667,2690.4666666666667,2690.4666666666667,2690.4666666666667,2690.4666666666667,23222.754666666664,2690.4666666666667,2690.4666666666667,2690.4666666666667,2690.4666666666667,2690.4666666666667,2690.4666666666667,2690.4666666666667,2690.4666666666667,2690.4666666666667,{"$f":"SUM(CD33:INDEX($CD33:$CW33,1,'Total Solution Costs'!$B$2))","v":47436.954666666665},null,"Haier HBC-340",{"$f":"SUM($BH33:BH33)","v":23222.754666666664},{"$f":"SUM($BH33:BI33)","v":25913.221333333331},{"$f":"SUM($BH33:BJ33)","v":28603.687999999998},{"$f":"SUM($BH33:BK33)","v":31294.154666666665},{"$f":"SUM($BH33:BL33)","v":33984.621333333329},{"$f":"SUM($BH33:BM33)","v":36675.087999999996},{"$f":"SUM($BH33:BN33)","v":39365.554666666663},{"$f":"SUM($BH33:BO33)","v":42056.02133333333},{"$f":"SUM($BH33:BP33)","v":44746.487999999998},{"$f":"SUM($BH33:BQ33)","v":47436.954666666665},{"$f":"SUM($BH33:BR33)","v":70659.709333333332},{"$f":"SUM($BH33:BS33)","v":73350.175999999992},{"$f":"SUM($BH33:BT33)","v":76040.642666666652},{"$f":"SUM($BH33:BU33)","v":78731.109333333312},{"$f":"SUM($BH33:BV33)","v":81421.575999999972},{"$f":"SUM($BH33:BW33)","v":84112.042666666632},{"$f":"SUM($BH33:BX33)","v":86802.509333333292},{"$f":"SUM($BH33:BY33)","v":89492.975999999951},{"$f":"SUM($BH33:BZ33)","v":92183.442666666611},{"$f":"SUM($BH33:CA33)","v":94873.909333333271}]
[{"$f":"PQS!A34","v":"ILR"},{"$f":"PQS!B34","v":"E003/044"},{"$f":"PQS!E34","v":"ZLF 150 AC*"},{"$f":"PQS!F34","v":"Zero"},{"$f":"PQS!D34","v":"Zero ZLF 150 AC*"},{"$f":"VLOOKUP(E34,PQS!$D$5:$K$107,COLUMN(PQS!$I$3)-COLUMN(PQS!$D$3)+1,FALSE)","v":128},{"$f":"VLOOKUP(E34,PQS!$D$5:$K$107,COLUMN(PQS!$J$3)-COLUMN(PQS!$D$3)+1,FALSE)","v":0},{"$f":"VLOOKUP(E34,PQS!$D$5:$K$107,COLUMN(PQS!$G$3)-COLUMN(PQS!$D$3)+1,FALSE)","v":"Yes"},{"$f":"HLOOKUP(B34,INDIRECT(\"'\"&A34&\"'!$10:$15\"),ROW('Technology template'!$A$11)-ROW('Technology template'!$A$10)+1,FALSE)","v":10},{"$f":"HLOOKUP(B34,INDIRECT(\"'\"&A34&\"'!$10:$15\"),ROW('Technology template'!$A$12)-ROW('Technology template'!$A$10)+1,FALSE)","v":0},{"$f":"HLOOKUP(B34,INDIRECT(\"'\"&A34&\"'!$10:$15\"),ROW('Technology template'!$A$13)-ROW('Technology template'!$A$10)+1,FALSE)","v":0},{"$f":"VLOOKUP(B34,PQS!$B:$Q,MATCH(PQS!$Q$3,PQS!$B$3:$Q$3,0),FALSE)*(1+'Country Input'!$C$47)+HLOOKUP(B34,INDIRECT(\"'\"&A34&\"'!$10:$15\"),ROW('Technology template'!$A$14)-ROW('Technology template'!$A$10)+1,FALSE)*(1+'Country Input'!$C$47)","v":2652.53},{"$f":"HLOOKUP(B34,INDIRECT(\"'\"&A34&\"'!$10:$80\"),MATCH('Technology template'!$A$27,INDIRECT(\"'\"&A34&\"'!$A$10:$A$80\"),0),FALSE)+'Labor and Maintenance '!$E$22","v":748},{"$f":"VLOOKUP(B34,PQS!B:T,MATCH(PQS!$T$3,PQS!$B$3:$T$3,0),FALSE)*(1+'Country Input'!$C$47)","v":514.67000000000007},3915.2000000000003,391.52000000000004,{"$f":"VLOOKUP(B34,PQS!$B:$AE,COLUMN(PQS!AD32)-1,FALSE)","v":144.54000000000002},{"$f":"IFERROR(1/HLOOKUP(B34,INDIRECT(\"'\"&A34&\"'!$10:$80\"),MATCH('Technology template'!$A$31,INDIRECT(\"'\"&A34&\"'!$A$10:$A$80\"),0),FALSE)*HLOOKUP(B34,INDIRECT(\"'\"&A34&\"'!$10:$80\"),MATCH('Technology template'!$A$41,INDIRECT(\"'\"&A34&\"'!$A10:$A$80\"),0),FALSE),0)*TechnicianHourlyWage+IF(A34=\"Solar w Battery\",1/'Labor and Maintenance '!$E$53*'Labor and Maintenance '!$D$53,0)+IF(A34=\"LT passive\", 1/'Labor and Maintenance '!$E$81*'Labor and Maintenance '!$D$81,0)","v":24},{"$f":"IFERROR(1/HLOOKUP(B34,INDIRECT(\"'\"&A34&\"'!$10:$80\"),MATCH('Technology template'!$A$34,INDIRECT(\"'\"&A34&\"'!$A$10:$A$80\"),0),FALSE)*(HLOOKUP(B34,INDIRECT(\"'\"&A34&\"'!$10:$80\"),MATCH('Technology template'!$A$44,INDIRECT(\"'\"&A34&\"'!$A10:$A$80\"),0),FALSE)*TechnicianHourlyWage+RemoteTravelCostPerDay),0)+IFERROR(1/HLOOKUP(B34,INDIRECT(\"'\"&A34&\"'!$10:$80\"),MATCH('Technology template'!$A$35,INDIRECT(\"'\"&A34&\"'!$A$10:$A$80\"),0),FALSE)*(HLOOKUP(B34,INDIRECT(\"'\"&A34&\"'!$10:$80\"),MATCH('Technology template'!$A$45,INDIRECT(\"'\"&A34&\"'!$A10:$A$80\"),0),FALSE)*TechnicianHourlyWage+RemoteTravelCostPerDay),0)+IFERROR(1/HLOOKUP(B34,INDIRECT(\"'\"&A34&\"'!$10:$80\"),MATCH('Technology template'!$A$37,INDIRECT(\"'\"&A34&\"'!$A$10:$A$80\"),0),FALSE)*(HLOOKUP(B34,INDIRECT(\"'\"&A34&\"'!$10:$80\"),MATCH('Technology template'!$A$46,INDIRECT(\"'\"&A34&\"'!$A10:$A$80\"),0),FALSE)*TechnicianHourlyWage+'Labor and Maintenance '!$B$8),0)","v":94.666666666666657},2632.0666666666671,263.20666666666671,654.72666666666669,null,"Zero ZLF 150 AC*",30.587500000000002,20.563020833333336,51.150520833333339,null,"Zero ZLF 150 AC*",3.0587500000000003,2.0563020833333336,5.1150520833333335,null,"Zero ZLF 150 AC*",1,3915.2000000000003,2632.0666666666671,6547.2666666666673,null,"Zero ZLF 150 AC*",1,3.0587500000000003,2.0563020833333336,5.1150520833333335,null,"Zero ZLF 150 AC*",{"$f":"IF(F34=0, 'Country Input'!$D$7, ROUNDUP(LitersPerFacility/F34,0)*'Country Input'!$D$7)","v":10},39152,2632.0666666666671,41784.066666666666,null,"Zero ZLF 150 AC*",{"$f":"ROUNDUP(LitersPerFacility/F34,0)*'Country Input'!$D$7*ROUNDUP('Total Solution Costs'!$B$2/Calculations!I34,0)","v":10},30.587500000000002,2.0563020833333336,32.643802083333334,null,null,"Zero ZLF 150 AC*",{"$f":"(($U34+($O34)*IF(MOD(BH$3,$I34)=1,1,0)+Parts!$E$91*IF($J34=0,0,IF(MOD(BH$3,$I34)=1,IF(PQS!$R34=\"NO\",1,0),IF(MOD(BH$3,Calculations!$J34)=1,1,0)))+Parts!$E$92*IF(Calculations!$K34=0,0,IF(MOD(BH$3,$I34)=1,0,IF(MOD(BH$3,Calculations!$K34)=1,1,0))))*$AU34)*(1+'Country Input'!$C$45)^(Calculations!BH$3-$BH$3)+TrainingCost","v":41784.066666666666},{"$f":"(($U34+($O34)*IF(MOD(BI$3,$I34)=1,1,0)+Parts!$E$91*IF($J34=0,0,IF(MOD(BI$3,$I34)=1,IF(PQS!$R34=\"NO\",1,0),IF(MOD(BI$3,Calculations!$J34)=1,1,0)))+Parts!$E$92*IF(Calculations!$K34=0,0,IF(MOD(BI$3,$I34)=1,0,IF(MOD(BI$3,Calculations!$K34)=1,1,0))))*$AU34)*(1+'Country Input'!$C$45)^(Calculations!BI$3-$BH$3)","v":2632.0666666666671},{"$f":"(($U34+($O34)*IF(MOD(BJ$3,$I34)=1,1,0)+Parts!$E$91*IF($J34=0,0,IF(MOD(BJ$3,$I34)=1,IF(PQS!$R34=\"NO\",1,0),IF(MOD(BJ$3,Calculations!$J34)=1,1,0)))+Parts!$E$92*IF(Calculations!$K34=0,0,IF(MOD(BJ$3,$I34)=1,0,IF(MOD(BJ$3,Calculations!$K34)=1,1,0))))*$AU34)*(1+'Country Input'!$C$45)^(Calculations!BJ$3-$BH$3)","v":2632.0666666666671},{"$f":"(($U34+($O34)*IF(MOD(BK$3,$I34)=1,1,0)+Parts!$E$91*IF($J34=0,0,IF(MOD(BK$3,$I34)=1,IF(PQS!$R34=\"NO\",1,0),IF(MOD(BK$3,Calculations!$J34)=1,1,0)))+Parts!$E$92*IF(Calculations!$K34=0,0,IF(MOD(BK$3,$I34)=1,0,IF(MOD(BK$3,Calculations!$K34)=1,1,0))))*$AU34)*(1+'Country Input'!$C$45)^(Calculations!BK$3-$BH$3)","v":2632.0666666666671},{"$f":"(($U34+($O34)*IF(MOD(BL$3,$I34)=1,1,0)+Parts!$E$91*IF($J34=0,0,IF(MOD(BL$3,$I34)=1,IF(PQS!$R34=\"NO\",1,0),IF(MOD(BL$3,Calculations!$J34)=1,1,0)))+Parts!$E$92*IF(Calculations!$K34=0,0,IF(MOD(BL$3,$I34)=1,0,IF(MOD(BL$3,Calculations!$K34)=1,1,0))))*$AU34)*(1+'Country Input'!$C$45)^(Calculations!BL$3-$BH$3)","v":2632.0666666666671},{"$f":"(($U34+($O34)*IF(MOD(BM$3,$I34)=1,1,0)+Parts!$E$91*IF($J34=0,0,IF(MOD(BM$3,$I34)=1,IF(PQS!$R34=\"NO\",1,0),IF(MOD(BM$3,Calculations!$J34)=1,1,0)))+Parts!$E$92*IF(Calculations!$K34=0,0,IF(MOD(BM$3,$I34)=1,0,IF(MOD(BM$3,Calculations!$K34)=1,1,0))))*$AU34)*(1+'Country Input'!$C$45)^(Calculations!BM$3-$BH$3)","v":2632.0666666666671},{"$f":"(($U34+($O34)*IF(MOD(BN$3,$I34)=1,1,0)+Parts!$E$91*IF($J34=0,0,IF(MOD(BN$3,$I34)=1,IF(PQS!$R34=\"NO\",1,0),IF(MOD(BN$3,Calculations!$J34)=1,1,0)))+Parts!$E$92*IF(Calculations!$K34=0,0,IF(MOD(BN$3,$I34)=1,0,IF(MOD(BN$3,Calculations!$K34)=1,1,0))))*$AU34)*(1+'Country Input'!$C$45)^(Calculations!BN$3-$BH$3)","v":2632.0666666666671},{"$f":"(($U34+($O34)*IF(MOD(BO$3,$I34)=1,1,0)+Parts!$E$91*IF($J34=0,0,IF(MOD(BO$3,$I34)=1,IF(PQS!$R34=\"NO\",1,0),IF(MOD(BO$3,Calculations!$J34)=1,1,0)))+Parts!$E$92*IF(Calculations!$K34=0,0,IF(MOD(BO$3,$I34)=1,0,IF(MOD(BO$3,Calculations!$K34)=1,1,0))))*$AU34)*(1+'Country Input'!$C$45)^(Calculations!BO$3-$BH$3)","v":2632.0666666666671},{"$f":"(($U34+($O34)*IF(MOD(BP$3,$I34)=1,1,0)+Parts!$E$91*IF($J34=0,0,IF(MOD(BP$3,$I34)=1,IF(PQS!$R34=\"NO\",1,0),IF(MOD(BP$3,Calculations!$J34)=1,1,0)))+Parts!$E$92*IF(Calculations!$K34=0,0,IF(MOD(BP$3,$I34)=1,0,IF(MOD(BP$3,Calculations!$K34)=1,1,0))))*$AU34)*(1+'Country Input'!$C$45)^(Calculations!BP$3-$BH$3)","v":2632.0666666666671},{"$f":"(($U34+($O34)*IF(MOD(BQ$3,$I34)=1,1,0)+Parts!$E$91*IF($J34=0,0,IF(MOD(BQ$3,$I34)=1,IF(PQS!$R34=\"NO\",1,0),IF(MOD(BQ$3,Calculations!$J34)=1,1,0)))+Parts!$E$92*IF(Calculations!$K34=0,0,IF(MOD(BQ$3,$I34)=1,0,IF(MOD(BQ$3,Calculations!$K34)=1,1,0))))*$AU34)*(1+'Country Input'!$C$45)^(Calculations!BQ$3-$BH$3)","v":2632.0666666666671},{"$f":"(($U34+($O34)*IF(MOD(BR$3,$I34)=1,1,0)+Parts!$E$91*IF($J34=0,0,IF(MOD(BR$3,$I34)=1,IF(PQS!$R34=\"NO\",1,0),IF(MOD(BR$3,Calculations!$J34)=1,1,0)))+Parts!$E$92*IF(Calculations!$K34=0,0,IF(MOD(BR$3,$I34)=1,0,IF(MOD(BR$3,Calculations!$K34)=1,1,0))))*$AU34)*(1+'Country Input'!$C$45)^(Calculations!BR$3-$BH$3)","v":41784.066666666666},{"$f":"(($U34+($O34)*IF(MOD(BS$3,$I34)=1,1,0)+Parts!$E$91*IF($J34=0,0,IF(MOD(BS$3,$I34)=1,IF(PQS!$R34=\"NO\",1,0),IF(MOD(BS$3,Calculations!$J34)=1,1,0)))+Parts!$E$92*IF(Calculations!$K34=0,0,IF(MOD(BS$3,$I34)=1,0,IF(MOD(BS$3,Calculations!$K34)=1,1,0))))*$AU34)*(1+'Country Input'!$C$45)^(Calculations!BS$3-$BH$3)","v":2632.0666666666671},{"$f":"(($U34+($O34)*IF(MOD(BT$3,$I34)=1,1,0)+Parts!$E$91*IF($J34=0,0,IF(MOD(BT$3,$I34)=1,IF(PQS!$R34=\"NO\",1,0),IF(MOD(BT$3,Calculations!$J34)=1,1,0)))+Parts!$E$92*IF(Calculations!$K34=0,0,IF(MOD(BT$3,$I34)=1,0,IF(MOD(BT$3,Calculations!$K34)=1,1,0))))*$AU34)*(1+'Country Input'!$C$45)^(Calculations!BT$3-$BH$3)","v":2632.0666666666671},{"$f":"(($U34+($O34)*IF(MOD(BU$3,$I34)=1,1,0)+Parts!$E$91*IF($J34=0,0,IF(MOD(BU$3,$I34)=1,IF(PQS!$R34=\"NO\",1,0),IF(MOD(BU$3,Calculations!$J34)=1,1,0)))+Parts!$E$92*IF(Calculations!$K34=0,0,IF(MOD(BU$3,$I34)=1,0,IF(MOD(BU$3,Calculations!$K34)=1,1,0))))*$AU34)*(1+'Country Input'!$C$45)^(Calculations!BU$3-$BH$3)","v":2632.0666666666671},{"$f":"(($U34+($O34)*IF(MOD(BV$3,$I34)=1,1,0)+Parts!$E$91*IF($J34=0,0,IF(MOD(BV$3,$I34)=1,IF(PQS!$R34=\"NO\",1,0),IF(MOD(BV$3,Calculations!$J34)=1,1,0)))+Parts!$E$92*IF(Calculations!$K34=0,0,IF(MOD(BV$3,$I34)=1,0,IF(MOD(BV$3,Calculations!$K34)=1,1,0))))*$AU34)*(1+'Country Input'!$C$45)^(Calculations!BV$3-$BH$3)","v":2632.0666666666671},{"$f":"(($U34+($O34)*IF(MOD(BW$3,$I34)=1,1,0)+Parts!$E$91*IF($J34=0,0,IF(MOD(BW$3,$I34)=1,IF(PQS!$R34=\"NO\",1,0),IF(MOD(BW$3,Calculations!$J34)=1,1,0)))+Parts!$E$92*IF(Calculations!$K34=0,0,IF(MOD(BW$3,$I34)=1,0,IF(MOD(BW$3,Calculations!$K34)=1,1,0))))*$AU34)*(1+'Country Input'!$C$45)^(Calculations!BW$3-$BH$3)","v":2632.0666666666671},{"$f":"(($U34+($O34)*IF(MOD(BX$3,$I34)=1,1,0)+Parts!$E$91*IF($J34=0,0,IF(MOD(BX$3,$I34)=1,IF(PQS!$R34=\"NO\",1,0),IF(MOD(BX$3,Calculations!$J34)=1,1,0)))+Parts!$E$92*IF(Calculations!$K34=0,0,IF(MOD(BX$3,$I34)=1,0,IF(MOD(BX$3,Calculations!$K34)=1,1,0))))*$AU34)*(1+'Country Input'!$C$45)^(Calculations!BX$3-$BH$3)","v":2632.0666666666671},{"$f":"(($U34+($O34)*IF(MOD(BY$3,$I34)=1,1,0)+Parts!$E$91*IF($J34=0,0,IF(MOD(BY$3,$I34)=1,IF(PQS!$R34=\"NO\",1,0),IF(MOD(BY$3,Calculations!$J34)=1,1,0)))+Parts!$E$92*IF(Calculations!$K34=0,0,IF(MOD(BY$3,$I34)=1,0,IF(MOD(BY$3,Calculations!$K34)=1,1,0))))*$AU34)*(1+'Country Input'!$C$45)^(Calculations!BY$3-$BH$3)","v":2632.0666666666671},{"$f":"(($U34+($O34)*IF(MOD(BZ$3,$I34)=1,1,0)+Parts!$E$91*IF($J34=0,0,IF(MOD(BZ$3,$I34)=1,IF(PQS!$R34=\"NO\",1,0),IF(MOD(BZ$3,Calculations!$J34)=1,1,0)))+Parts!$E$92*IF(Calculations!$K34=0,0,IF(MOD(BZ$3,$I34)=1,0,IF(MOD(BZ$3,Calculations!$K34)=1,1,0))))*$AU34)*(1+'Country Input'!$C$45)^(Calculations!BZ$3-$BH$3)","v":2632.0666666666671},{"$f":"(($U34+($O34)*IF(MOD(CA$3,$I34)=1,1,0)+Parts!$E$91*IF($J34=0,0,IF(MOD(CA$3,$I34)=1,IF(PQS!$R34=\"NO\",1,0),IF(MOD(CA$3,Calculations!$J34)=1,1,0)))+Parts!$E$92*IF(Calculations!$K34=0,0,IF(MOD(CA$3,$I34)=1,0,IF(MOD(CA$3,Calculations!$K34)=1,1,0))))*$AU34)*(1+'Country Input'!$C$45)^(Calculations!CA$3-$BH$3)","v":2632.0666666666671},null,"Zero ZLF 150 AC*",41784.066666666666,2632.0666666666671,2632.0666666666671,2632.0666666666671,2632.0666666666671,2632.0666666666671,2632.0666666666671,2632.0666666666671,2632.0666666666671,2632.0666666666671,41784.066666666666,2632.0666666666671,2632.0666666666671,2632.0666666666671,2632.0666666666671,2632.0666666666671,2632.0666666666671,2632.0666666666671,2632.0666666666671,2632.0666666666671,{"$f":"SUM(CD34:INDEX($CD34:$CW34,1,'Total Solution Costs'!$B$2))","v":65472.666666666657},null,"Zero ZLF 150 AC*",{"$f":"SUM($BH34:BH34)","v":41784.066666666666},{"$f":"SUM($BH34:BI34)","v":44416.133333333331},{"$f":"SUM($BH34:BJ34)","v":47048.2},{"$f":"SUM($BH34:BK34)","v":49680.266666666663},{"$f":"SUM($BH34:BL34)","v":52312.333333333328},{"$f":"SUM($BH34:BM34)","v":54944.399999999994},{"$f":"SUM($BH34:BN34)","v":57576.46666666666},{"$f":"SUM($BH34:BO34)","v":60208.533333333326},{"$f":"SUM($BH34:BP34)","v":62840.599999999991},{"$f":"SUM($BH34:BQ34)","v":65472.666666666657},{"$f":"SUM($BH34:BR34)","v":107256.73333333332},{"$f":"SUM($BH34:BS34)","v":109888.79999999999},{"$f":"SUM($BH34:BT34)","v":112520.86666666665},{"$f":"SUM($BH34:BU34)","v":115152.93333333332},{"$f":"SUM($BH34:BV34)","v":117784.99999999999},{"$f":"SUM($BH34:BW34)","v":120417.06666666665},{"$f":"SUM($BH34:BX34)","v":123049.13333333332},{"$f":"SUM($BH34:BY34)","v":125681.19999999998},{"$f":"SUM($BH34:BZ34)","v":128313.26666666665},{"$f":"SUM($BH34:CA34)","v":130945.33333333331}]
[{"$f":"PQS!A35","v":"ILR"},{"$f":"PQS!B35","v":"E003/046"},{"$f":"PQS!E35","v":"GVR 50 AC*"},{"$f":"PQS!F35","v":"Godrej & Boyce "},{"$f":"PQS!D35","v":"Godrej & Boyce  GVR 50 AC*"},{"$f":"VLOOKUP(E35,PQS!$D$5:$K$107,COLUMN(PQS!$I$3)-COLUMN(PQS!$D$3)+1,FALSE)","v":46.8},{"$f":"VLOOKUP(E35,PQS!$D$5:$K$107,COLUMN(PQS!$J$3)-COLUMN(PQS!$D$3)+1,FALSE)","v":0},{"$f":"VLOOKUP(E35,PQS!$D$5:$K$107,COLUMN(PQS!$G$3)-COLUMN(PQS!$D$3)+1,FALSE)","v":"Yes"},{"$f":"HLOOKUP(B35,INDIRECT(\"'\"&A35&\"'!$10:$15\"),ROW('Technology template'!$A$11)-ROW('Technology template'!$A$10)+1,FALSE)","v":10},{"$f":"HLOOKUP(B35,INDIRECT(\"'\"&A35&\"'!$10:$15\"),ROW('Technology template'!$A$12)-ROW('Technology template'!$A$10)+1,FALSE)","v":0},{"$f":"HLOOKUP(B35,INDIRECT(\"'\"&A35&\"'!$10:$15\"),ROW('Technology template'!$A$13)-ROW('Technology template'!$A$10)+1,FALSE)","v":0},{"$f":"VLOOKUP(B35,PQS!$B:$Q,MATCH(PQS!$Q$3,PQS!$B$3:$Q$3,0),FALSE)*(1+'Country Input'!$C$47)+HLOOKUP(B35,INDIRECT(\"'\"&A35&\"'!$10:$15\"),ROW('Technology template'!$A$14)-ROW('Technology template'!$A$10)+1,FALSE)*(1+'Country Input'!$C$47)","v":1658.5},{"$f":"HLOOKUP(B35,INDIRECT(\"'\"&A35&\"'!$10:$80\"),MATCH('Technology template'!$A$27,INDIRECT(\"'\"&A35&\"'!$A$10:$A$80\"),0),FALSE)+'Labor and Maintenance '!$E$22","v":748},{"$f":"VLOOKUP(B35,PQS!B:T,MATCH(PQS!$T$3,PQS!$B$3:$T$3,0),FALSE)*(1+'Country Input'!$C$47)","v":166.92000000000002},2573.42,257.34199999999998,{"$f":"VLOOKUP(B35,PQS!$B:$AE,COLUMN(PQS!AD33)-1,FALSE)","v":40.880000000000003},{"$f":"IFERROR(1/HLOOKUP(B35,INDIRECT(\"'\"&A35&\"'!$10:$80\"),MATCH('Technology template'!$A$31,INDIRECT(\"'\"&A35&\"'!$A$10:$A$80\"),0),FALSE)*HLOOKUP(B35,INDIRECT(\"'\"&A35&\"'!$10:$80\"),MATCH('Technology template'!$A$41,INDIRECT(\"'\"&A35&\"'!$A10:$A$80\"),0),FALSE),0)*TechnicianHourlyWage+IF(A35=\"Solar w Battery\",1/'Labor and Maintenance '!$E$53*'Labor and Maintenance '!$D$53,0)+IF(A35=\"LT passive\", 1/'Labor and Maintenance '!$E$81*'Labor and Maintenance '!$D$81,0)","v":24},{"$f":"IFERROR(1/HLOOKUP(B35,INDIRECT(\"'\"&A35&\"'!$10:$80\"),MATCH('Technology template'!$A$34,INDIRECT(\"'\"&A35&\"'!$A$10:$A$80\"),0),FALSE)*(HLOOKUP(B35,INDIRECT(\"'\"&A35&\"'!$10:$80\"),MATCH('Technology template'!$A$44,INDIRECT(\"'\"&A35&\"'!$A10:$A$80\"),0),FALSE)*TechnicianHourlyWage+RemoteTravelCostPerDay),0)+IFERROR(1/HLOOKUP(B35,INDIRECT(\"'\"&A35&\"'!$10:$80\"),MATCH('Technology template'!$A$35,INDIRECT(\"'\"&A35&\"'!$A$10:$A$80\"),0),FALSE)*(HLOOKUP(B35,INDIRECT(\"'\"&A35&\"'!$10:$80\"),MATCH('Technology template'!$A$45,INDIRECT(\"'\"&A35&\"'!$A10:$A$80\"),0),FALSE)*TechnicianHourlyWage+RemoteTravelCostPerDay),0)+IFERROR(1/HLOOKUP(B35,INDIRECT(\"'\"&A35&\"'!$10:$80\"),MATCH('Technology template'!$A$37,INDIRECT(\"'\"&A35&\"'!$A$10:$A$80\"),0),FALSE)*(HLOOKUP(B35,INDIRECT(\"'\"&A35&\"'!$10:$80\"),MATCH('Technology template'!$A$46,INDIRECT(\"'\"&A35&\"'!$A10:$A$80\"),0),FALSE)*TechnicianHourlyWage+'Labor and Maintenance '!$B$8),0)","v":94.666666666666657},1595.4666666666665,159.54666666666665,416.88866666666661,null,"Godrej & Boyce  GVR 50 AC*",54.98760683760684,34.091168091168086,89.078774928774919,null,"Godrej & Boyce  GVR 50 AC*",5.4987606837606835,3.4091168091168091,8.9078774928774926,null,"Godrej & Boyce  GVR 50 AC*",3,7720.26,4786.3999999999996,12506.66,null,"Godrej & Boyce  GVR 50 AC*",3,16.496282051282051,10.227350427350427,26.723632478632478,null,"Godrej & Boyce  GVR 50 AC*",{"$f":"IF(F35=0, 'Country Input'!$D$7, ROUNDUP(LitersPerFacility/F35,0)*'Country Input'!$D$7)","v":10},25734.2,1595.4666666666665,27329.666666666668,null,"Godrej & Boyce  GVR 50 AC*",{"$f":"ROUNDUP(LitersPerFacility/F35,0)*'Country Input'!$D$7*ROUNDUP('Total Solution Costs'!$B$2/Calculations!I35,0)","v":10},54.987606837606833,3.4091168091168087,58.396723646723643,null,null,"Godrej & Boyce  GVR 50 AC*",{"$f":"(($U35+($O35)*IF(MOD(BH$3,$I35)=1,1,0)+Parts!$E$91*IF($J35=0,0,IF(MOD(BH$3,$I35)=1,IF(PQS!$R35=\"NO\",1,0),IF(MOD(BH$3,Calculations!$J35)=1,1,0)))+Parts!$E$92*IF(Calculations!$K35=0,0,IF(MOD(BH$3,$I35)=1,0,IF(MOD(BH$3,Calculations!$K35)=1,1,0))))*$AU35)*(1+'Country Input'!$C$45)^(Calculations!BH$3-$BH$3)+TrainingCost","v":27329.666666666668},{"$f":"(($U35+($O35)*IF(MOD(BI$3,$I35)=1,1,0)+Parts!$E$91*IF($J35=0,0,IF(MOD(BI$3,$I35)=1,IF(PQS!$R35=\"NO\",1,0),IF(MOD(BI$3,Calculations!$J35)=1,1,0)))+Parts!$E$92*IF(Calculations!$K35=0,0,IF(MOD(BI$3,$I35)=1,0,IF(MOD(BI$3,Calculations!$K35)=1,1,0))))*$AU35)*(1+'Country Input'!$C$45)^(Calculations!BI$3-$BH$3)","v":1595.4666666666665},{"$f":"(($U35+($O35)*IF(MOD(BJ$3,$I35)=1,1,0)+Parts!$E$91*IF($J35=0,0,IF(MOD(BJ$3,$I35)=1,IF(PQS!$R35=\"NO\",1,0),IF(MOD(BJ$3,Calculations!$J35)=1,1,0)))+Parts!$E$92*IF(Calculations!$K35=0,0,IF(MOD(BJ$3,$I35)=1,0,IF(MOD(BJ$3,Calculations!$K35)=1,1,0))))*$AU35)*(1+'Country Input'!$C$45)^(Calculations!BJ$3-$BH$3)","v":1595.4666666666665},{"$f":"(($U35+($O35)*IF(MOD(BK$3,$I35)=1,1,0)+Parts!$E$91*IF($J35=0,0,IF(MOD(BK$3,$I35)=1,IF(PQS!$R35=\"NO\",1,0),IF(MOD(BK$3,Calculations!$J35)=1,1,0)))+Parts!$E$92*IF(Calculations!$K35=0,0,IF(MOD(BK$3,$I35)=1,0,IF(MOD(BK$3,Calculations!$K35)=1,1,0))))*$AU35)*(1+'Country Input'!$C$45)^(Calculations!BK$3-$BH$3)","v":1595.4666666666665},{"$f":"(($U35+($O35)*IF(MOD(BL$3,$I35)=1,1,0)+Parts!$E$91*IF($J35=0,0,IF(MOD(BL$3,$I35)=1,IF(PQS!$R35=\"NO\",1,0),IF(MOD(BL$3,Calculations!$J35)=1,1,0)))+Parts!$E$92*IF(Calculations!$K35=0,0,IF(MOD(BL$3,$I35)=1,0,IF(MOD(BL$3,Calculations!$K35)=1,1,0))))*$AU35)*(1+'Country Input'!$C$45)^(Calculations!BL$3-$BH$3)","v":1595.4666666666665},{"$f":"(($U35+($O35)*IF(MOD(BM$3,$I35)=1,1,0)+Parts!$E$91*IF($J35=0,0,IF(MOD(BM$3,$I35)=1,IF(PQS!$R35=\"NO\",1,0),IF(MOD(BM$3,Calculations!$J35)=1,1,0)))+Parts!$E$92*IF(Calculations!$K35=0,0,IF(MOD(BM$3,$I35)=1,0,IF(MOD(BM$3,Calculations!$K35)=1,1,0))))*$AU35)*(1+'Country Input'!$C$45)^(Calculations!BM$3-$BH$3)","v":1595.4666666666665},{"$f":"(($U35+($O35)*IF(MOD(BN$3,$I35)=1,1,0)+Parts!$E$91*IF($J35=0,0,IF(MOD(BN$3,$I35)=1,IF(PQS!$R35=\"NO\",1,0),IF(MOD(BN$3,Calculations!$J35)=1,1,0)))+Parts!$E$92*IF(Calculations!$K35=0,0,IF(MOD(BN$3,$I35)=1,0,IF(MOD(BN$3,Calculations!$K35)=1,1,0))))*$AU35)*(1+'Country Input'!$C$45)^(Calculations!BN$3-$BH$3)","v":1595.4666666666665},{"$f":"(($U35+($O35)*IF(MOD(BO$3,$I35)=1,1,0)+Parts!$E$91*IF($J35=0,0,IF(MOD(BO$3,$I35)=1,IF(PQS!$R35=\"NO\",1,0),IF(MOD(BO$3,Calculations!$J35)=1,1,0)))+Parts!$E$92*IF(Calculations!$K35=0,0,IF(MOD(BO$3,$I35)=1,0,IF(MOD(BO$3,Calculations!$K35)=1,1,0))))*$AU35)*(1+'Country Input'!$C$45)^(Calculations!BO$3-$BH$3)","v":1595.4666666666665},{"$f":"(($U35+($O35)*IF(MOD(BP$3,$I35)=1,1,0)+Parts!$E$91*IF($J35=0,0,IF(MOD(BP$3,$I35)=1,IF(PQS!$R35=\"NO\",1,0),IF(MOD(BP$3,Calculations!$J35)=1,1,0)))+Parts!$E$92*IF(Calculations!$K35=0,0,IF(MOD(BP$3,$I35)=1,0,IF(MOD(BP$3,Calculations!$K35)=1,1,0))))*$AU35)*(1+'Country Input'!$C$45)^(Calculations!BP$3-$BH$3)","v":1595.4666666666665},{"$f":"(($U35+($O35)*IF(MOD(BQ$3,$I35)=1,1,0)+Parts!$E$91*IF($J35=0,0,IF(MOD(BQ$3,$I35)=1,IF(PQS!$R35=\"NO\",1,0),IF(MOD(BQ$3,Calculations!$J35)=1,1,0)))+Parts!$E$92*IF(Calculations!$K35=0,0,IF(MOD(BQ$3,$I35)=1,0,IF(MOD(BQ$3,Calculations!$K35)=1,1,0))))*$AU35)*(1+'Country Input'!$C$45)^(Calculations!BQ$3-$BH$3)","v":1595.4666666666665},{"$f":"(($U35+($O35)*IF(MOD(BR$3,$I35)=1,1,0)+Parts!$E$91*IF($J35=0,0,IF(MOD(BR$3,$I35)=1,IF(PQS!$R35=\"NO\",1,0),IF(MOD(BR$3,Calculations!$J35)=1,1,0)))+Parts!$E$92*IF(Calculations!$K35=0,0,IF(MOD(BR$3,$I35)=1,0,IF(MOD(BR$3,Calculations!$K35)=1,1,0))))*$AU35)*(1+'Country Input'!$C$45)^(Calculations!BR$3-$BH$3)","v":27329.666666666668},{"$f":"(($U35+($O35)*IF(MOD(BS$3,$I35)=1,1,0)+Parts!$E$91*IF($J35=0,0,IF(MOD(BS$3,$I35)=1,IF(PQS!$R35=\"NO\",1,0),IF(MOD(BS$3,Calculations!$J35)=1,1,0)))+Parts!$E$92*IF(Calculations!$K35=0,0,IF(MOD(BS$3,$I35)=1,0,IF(MOD(BS$3,Calculations!$K35)=1,1,0))))*$AU35)*(1+'Country Input'!$C$45)^(Calculations!BS$3-$BH$3)","v":1595.4666666666665},{"$f":"(($U35+($O35)*IF(MOD(BT$3,$I35)=1,1,0)+Parts!$E$91*IF($J35=0,0,IF(MOD(BT$3,$I35)=1,IF(PQS!$R35=\"NO\",1,0),IF(MOD(BT$3,Calculations!$J35)=1,1,0)))+Parts!$E$92*IF(Calculations!$K35=0,0,IF(MOD(BT$3,$I35)=1,0,IF(MOD(BT$3,Calculations!$K35)=1,1,0))))*$AU35)*(1+'Country Input'!$C$45)^(Calculations!BT$3-$BH$3)","v":1595.4666666666665},{"$f":"(($U35+($O35)*IF(MOD(BU$3,$I35)=1,1,0)+Parts!$E$91*IF($J35=0,0,IF(MOD(BU$3,$I35)=1,IF(PQS!$R35=\"NO\",1,0),IF(MOD(BU$3,Calculations!$J35)=1,1,0)))+Parts!$E$92*IF(Calculations!$K35=0,0,IF(MOD(BU$3,$I35)=1,0,IF(MOD(BU$3,Calculations!$K35)=1,1,0))))*$AU35)*(1+'Country Input'!$C$45)^(Calculations!BU$3-$BH$3)","v":1595.4666666666665},{"$f":"(($U35+($O35)*IF(MOD(BV$3,$I35)=1,1,0)+Parts!$E$91*IF($J35=0,0,IF(MOD(BV$3,$I35)=1,IF(PQS!$R35=\"NO\",1,0),IF(MOD(BV$3,Calculations!$J35)=1,1,0)))+Parts!$E$92*IF(Calculations!$K35=0,0,IF(MOD(BV$3,$I35)=1,0,IF(MOD(BV$3,Calculations!$K35)=1,1,0))))*$AU35)*(1+'Country Input'!$C$45)^(Calculations!BV$3-$BH$3)","v":1595.4666666666665},{"$f":"(($U35+($O35)*IF(MOD(BW$3,$I35)=1,1,0)+Parts!$E$91*IF($J35=0,0,IF(MOD(BW$3,$I35)=1,IF(PQS!$R35=\"NO\",1,0),IF(MOD(BW$3,Calculations!$J35)=1,1,0)))+Parts!$E$92*IF(Calculations!$K35=0,0,IF(MOD(BW$3,$I35)=1,0,IF(MOD(BW$3,Calculations!$K35)=1,1,0))))*$AU35)*(1+'Country Input'!$C$45)^(Calculations!BW$3-$BH$3)","v":1595.4666666666665},{"$f":"(($U35+($O35)*IF(MOD(BX$3,$I35)=1,1,0)+Parts!$E$91*IF($J35=0,0,IF(MOD(BX$3,$I35)=1,IF(PQS!$R35=\"NO\",1,0),IF(MOD(BX$3,Calculations!$J35)=1,1,0)))+Parts!$E$92*IF(Calculations!$K35=0,0,IF(MOD(BX$3,$I35)=1,0,IF(MOD(BX$3,Calculations!$K35)=1,1,0))))*$AU35)*(1+'Country Input'!$C$45)^(Calculations!BX$3-$BH$3)","v":1595.4666666666665},{"$f":"(($U35+($O35)*IF(MOD(BY$3,$I35)=1,1,0)+Parts!$E$91*IF($J35=0,0,IF(MOD(BY$3,$I35)=1,IF(PQS!$R35=\"NO\",1,0),IF(MOD(BY$3,Calculations!$J35)=1,1,0)))+Parts!$E$92*IF(Calculations!$K35=0,0,IF(MOD(BY$3,$I35)=1,0,IF(MOD(BY$3,Calculations!$K35)=1,1,0))))*$AU35)*(1+'Country Input'!$C$45)^(Calculations!BY$3-$BH$3)","v":1595.4666666666665},{"$f":"(($U35+($O35)*IF(MOD(BZ$3,$I35)=1,1,0)+Parts!$E$91*IF($J35=0,0,IF(MOD(BZ$3,$I35)=1,IF(PQS!$R35=\"NO\",1,0),IF(MOD(BZ$3,Calculations!$J35)=1,1,0)))+Parts!$E$92*IF(Calculations!$K35=0,0,IF(MOD(BZ$3,$I35)=1,0,IF(MOD(BZ$3,Calculations!$K35)=1,1,0))))*$AU35)*(1+'Country Input'!$C$45)^(Calculations!BZ$3-$BH$3)","v":1595.4666666666665},{"$f":"(($U35+($O35)*IF(MOD(CA$3,$I35)=1,1,0)+Parts!$E$91*IF($J35=0,0,IF(MOD(CA$3,$I35)=1,IF(PQS!$R35=\"NO\",1,0),IF(MOD(CA$3,Calculations!$J35)=1,1,0)))+Parts!$E$92*IF(Calculations!$K35=0,0,IF(MOD(CA$3,$I35)=1,0,IF(MOD(CA$3,Calculations!$K35)=1,1,0))))*$AU35)*(1+'Country Input'!$C$45)^(Calculations!CA$3-$BH$3)","v":1595.4666666666665},null,"Godrej & Boyce  GVR 50 AC*",27329.666666666668,1595.4666666666665,1595.4666666666665,1595.4666666666665,1595.4666666666665,1595.4666666666665,1595.4666666666665,1595.4666666666665,1595.4666666666665,1595.4666666666665,27329.666666666668,1595.4666666666665,1595.4666666666665,1595.4666666666665,1595.4666666666665,1595.4666666666665,1595.4666666666665,1595.4666666666665,1595.4666666666665,1595.4666666666665,{"$f":"SUM(CD35:INDEX($CD35:$CW35,1,'Total Solution Costs'!$B$2))","v":41688.866666666669},null,"Godrej & Boyce  GVR 50 AC*",{"$f":"SUM($BH35:BH35)","v":27329.666666666668},{"$f":"SUM($BH35:BI35)","v":28925.133333333335},{"$f":"SUM($BH35:BJ35)","v":30520.600000000002},{"$f":"SUM($BH35:BK35)","v":32116.066666666669},{"$f":"SUM($BH35:BL35)","v":33711.533333333333},{"$f":"SUM($BH35:BM35)","v":35307},{"$f":"SUM($BH35:BN35)","v":36902.466666666667},{"$f":"SUM($BH35:BO35)","v":38497.933333333334},{"$f":"SUM($BH35:BP35)","v":40093.4},{"$f":"SUM($BH35:BQ35)","v":41688.866666666669},{"$f":"SUM($BH35:BR35)","v":69018.53333333334},{"$f":"SUM($BH35:BS35)","v":70614},{"$f":"SUM($BH35:BT35)","v":72209.46666666666},{"$f":"SUM($BH35:BU35)","v":73804.93333333332},{"$f":"SUM($BH35:BV35)","v":75400.39999999998},{"$f":"SUM($BH35:BW35)","v":76995.86666666664},{"$f":"SUM($BH35:BX35)","v":78591.333333333299},{"$f":"SUM($BH35:BY35)","v":80186.799999999959},{"$f":"SUM($BH35:BZ35)","v":81782.266666666619},{"$f":"SUM($BH35:CA35)","v":83377.733333333279}]
[{"$f":"PQS!A36","v":"ILR"},{"$f":"PQS!B36","v":"E003/047"},{"$f":"PQS!E36","v":"GVR 100 AC*"},{"$f":"PQS!F36","v":"Godrej & Boyce "},{"$f":"PQS!D36","v":"Godrej & Boyce  GVR 100 AC*"},{"$f":"VLOOKUP(E36,PQS!$D$5:$K$107,COLUMN(PQS!$I$3)-COLUMN(PQS!$D$3)+1,FALSE)","v":99},{"$f":"VLOOKUP(E36,PQS!$D$5:$K$107,COLUMN(PQS!$J$3)-COLUMN(PQS!$D$3)+1,FALSE)","v":0},{"$f":"VLOOKUP(E36,PQS!$D$5:$K$107,COLUMN(PQS!$G$3)-COLUMN(PQS!$D$3)+1,FALSE)","v":"Yes"},{"$f":"HLOOKUP(B36,INDIRECT(\"'\"&A36&\"'!$10:$15\"),ROW('Technology template'!$A$11)-ROW('Technology template'!$A$10)+1,FALSE)","v":10},{"$f":"HLOOKUP(B36,INDIRECT(\"'\"&A36&\"'!$10:$15\"),ROW('Technology template'!$A$12)-ROW('Technology template'!$A$10)+1,FALSE)","v":0},{"$f":"HLOOKUP(B36,INDIRECT(\"'\"&A36&\"'!$10:$15\"),ROW('Technology template'!$A$13)-ROW('Technology template'!$A$10)+1,FALSE)","v":0},{"$f":"VLOOKUP(B36,PQS!$B:$Q,MATCH(PQS!$Q$3,PQS!$B$3:$Q$3,0),FALSE)*(1+'Country Input'!$C$47)+HLOOKUP(B36,INDIRECT(\"'\"&A36&\"'!$10:$15\"),ROW('Technology template'!$A$14)-ROW('Technology template'!$A$10)+1,FALSE)*(1+'Country Input'!$C$47)","v":2514.5},{"$f":"HLOOKUP(B36,INDIRECT(\"'\"&A36&\"'!$10:$80\"),MATCH('Technology template'!$A$27,INDIRECT(\"'\"&A36&\"'!$A$10:$A$80\"),0),FALSE)+'Labor and Maintenance '!$E$22","v":748},{"$f":"VLOOKUP(B36,PQS!B:T,MATCH(PQS!$T$3,PQS!$B$3:$T$3,0),FALSE)*(1+'Country Input'!$C$47)","v":166.92000000000002},3429.42,342.94200000000001,{"$f":"VLOOKUP(B36,PQS!$B:$AE,COLUMN(PQS!AD34)-1,FALSE)","v":54.750000000000007},{"$f":"IFERROR(1/HLOOKUP(B36,INDIRECT(\"'\"&A36&\"'!$10:$80\"),MATCH('Technology template'!$A$31,INDIRECT(\"'\"&A36&\"'!$A$10:$A$80\"),0),FALSE)*HLOOKUP(B36,INDIRECT(\"'\"&A36&\"'!$10:$80\"),MATCH('Technology template'!$A$41,INDIRECT(\"'\"&A36&\"'!$A10:$A$80\"),0),FALSE),0)*TechnicianHourlyWage+IF(A36=\"Solar w Battery\",1/'Labor and Maintenance '!$E$53*'Labor and Maintenance '!$D$53,0)+IF(A36=\"LT passive\", 1/'Labor and Maintenance '!$E$81*'Labor and Maintenance '!$D$81,0)","v":24},{"$f":"IFERROR(1/HLOOKUP(B36,INDIRECT(\"'\"&A36&\"'!$10:$80\"),MATCH('Technology template'!$A$34,INDIRECT(\"'\"&A36&\"'!$A$10:$A$80\"),0),FALSE)*(HLOOKUP(B36,INDIRECT(\"'\"&A36&\"'!$10:$80\"),MATCH('Technology template'!$A$44,INDIRECT(\"'\"&A36&\"'!$A10:$A$80\"),0),FALSE)*TechnicianHourlyWage+RemoteTravelCostPerDay),0)+IFERROR(1/HLOOKUP(B36,INDIRECT(\"'\"&A36&\"'!$10:$80\"),MATCH('Technology template'!$A$35,INDIRECT(\"'\"&A36&\"'!$A$10:$A$80\"),0),FALSE)*(HLOOKUP(B36,INDIRECT(\"'\"&A36&\"'!$10:$80\"),MATCH('Technology template'!$A$45,INDIRECT(\"'\"&A36&\"'!$A10:$A$80\"),0),FALSE)*TechnicianHourlyWage+RemoteTravelCostPerDay),0)+IFERROR(1/HLOOKUP(B36,INDIRECT(\"'\"&A36&\"'!$10:$80\"),MATCH('Technology template'!$A$37,INDIRECT(\"'\"&A36&\"'!$A$10:$A$80\"),0),FALSE)*(HLOOKUP(B36,INDIRECT(\"'\"&A36&\"'!$10:$80\"),MATCH('Technology template'!$A$46,INDIRECT(\"'\"&A36&\"'!$A10:$A$80\"),0),FALSE)*TechnicianHourlyWage+'Labor and Maintenance '!$B$8),0)","v":94.666666666666657},1734.1666666666665,173.41666666666666,516.35866666666664,null,"Godrej & Boyce  GVR 100 AC*",34.640606060606061,17.516835016835014,52.157441077441078,null,{"$f":"E36","v":"Godrej & Boyce  GVR 100 AC*"},3.4640606060606061,1.7516835016835015,5.2157441077441078,null,{"$f":"E36","v":"Godrej & Boyce  GVR 100 AC*"},2,6858.84,3468.333333333333,10327.173333333332,null,"Godrej & Boyce  GVR 100 AC*",2,6.9281212121212121,3.503367003367003,10.431488215488216,null,"Godrej & Boyce  GVR 100 AC*",{"$f":"IF(F36=0, 'Country Input'!$D$7, ROUNDUP(LitersPerFacility/F36,0)*'Country Input'!$D$7)","v":10},34294.199999999997,1734.1666666666665,36028.366666666661,null,"Godrej & Boyce  GVR 100 AC*",{"$f":"ROUNDUP(LitersPerFacility/F36,0)*'Country Input'!$D$7*ROUNDUP('Total Solution Costs'!$B$2/Calculations!I36,0)","v":10},34.640606060606061,1.7516835016835015,36.392289562289562,null,null,"Godrej & Boyce  GVR 100 AC*",{"$f":"(($U36+($O36)*IF(MOD(BH$3,$I36)=1,1,0)+Parts!$E$91*IF($J36=0,0,IF(MOD(BH$3,$I36)=1,IF(PQS!$R36=\"NO\",1,0),IF(MOD(BH$3,Calculations!$J36)=1,1,0)))+Parts!$E$92*IF(Calculations!$K36=0,0,IF(MOD(BH$3,$I36)=1,0,IF(MOD(BH$3,Calculations!$K36)=1,1,0))))*$AU36)*(1+'Country Input'!$C$45)^(Calculations!BH$3-$BH$3)+TrainingCost","v":36028.366666666669},{"$f":"(($U36+($O36)*IF(MOD(BI$3,$I36)=1,1,0)+Parts!$E$91*IF($J36=0,0,IF(MOD(BI$3,$I36)=1,IF(PQS!$R36=\"NO\",1,0),IF(MOD(BI$3,Calculations!$J36)=1,1,0)))+Parts!$E$92*IF(Calculations!$K36=0,0,IF(MOD(BI$3,$I36)=1,0,IF(MOD(BI$3,Calculations!$K36)=1,1,0))))*$AU36)*(1+'Country Input'!$C$45)^(Calculations!BI$3-$BH$3)","v":1734.1666666666665},{"$f":"(($U36+($O36)*IF(MOD(BJ$3,$I36)=1,1,0)+Parts!$E$91*IF($J36=0,0,IF(MOD(BJ$3,$I36)=1,IF(PQS!$R36=\"NO\",1,0),IF(MOD(BJ$3,Calculations!$J36)=1,1,0)))+Parts!$E$92*IF(Calculations!$K36=0,0,IF(MOD(BJ$3,$I36)=1,0,IF(MOD(BJ$3,Calculations!$K36)=1,1,0))))*$AU36)*(1+'Country Input'!$C$45)^(Calculations!BJ$3-$BH$3)","v":1734.1666666666665},{"$f":"(($U36+($O36)*IF(MOD(BK$3,$I36)=1,1,0)+Parts!$E$91*IF($J36=0,0,IF(MOD(BK$3,$I36)=1,IF(PQS!$R36=\"NO\",1,0),IF(MOD(BK$3,Calculations!$J36)=1,1,0)))+Parts!$E$92*IF(Calculations!$K36=0,0,IF(MOD(BK$3,$I36)=1,0,IF(MOD(BK$3,Calculations!$K36)=1,1,0))))*$AU36)*(1+'Country Input'!$C$45)^(Calculations!BK$3-$BH$3)","v":1734.1666666666665},{"$f":"(($U36+($O36)*IF(MOD(BL$3,$I36)=1,1,0)+Parts!$E$91*IF($J36=0,0,IF(MOD(BL$3,$I36)=1,IF(PQS!$R36=\"NO\",1,0),IF(MOD(BL$3,Calculations!$J36)=1,1,0)))+Parts!$E$92*IF(Calculations!$K36=0,0,IF(MOD(BL$3,$I36)=1,0,IF(MOD(BL$3,Calculations!$K36)=1,1,0))))*$AU36)*(1+'Country Input'!$C$45)^(Calculations!BL$3-$BH$3)","v":1734.1666666666665},{"$f":"(($U36+($O36)*IF(MOD(BM$3,$I36)=1,1,0)+Parts!$E$91*IF($J36=0,0,IF(MOD(BM$3,$I36)=1,IF(PQS!$R36=\"NO\",1,0),IF(MOD(BM$3,Calculations!$J36)=1,1,0)))+Parts!$E$92*IF(Calculations!$K36=0,0,IF(MOD(BM$3,$I36)=1,0,IF(MOD(BM$3,Calculations!$K36)=1,1,0))))*$AU36)*(1+'Country Input'!$C$45)^(Calculations!BM$3-$BH$3)","v":1734.1666666666665},{"$f":"(($U36+($O36)*IF(MOD(BN$3,$I36)=1,1,0)+Parts!$E$91*IF($J36=0,0,IF(MOD(BN$3,$I36)=1,IF(PQS!$R36=\"NO\",1,0),IF(MOD(BN$3,Calculations!$J36)=1,1,0)))+Parts!$E$92*IF(Calculations!$K36=0,0,IF(MOD(BN$3,$I36)=1,0,IF(MOD(BN$3,Calculations!$K36)=1,1,0))))*$AU36)*(1+'Country Input'!$C$45)^(Calculations!BN$3-$BH$3)","v":1734.1666666666665},{"$f":"(($U36+($O36)*IF(MOD(BO$3,$I36)=1,1,0)+Parts!$E$91*IF($J36=0,0,IF(MOD(BO$3,$I36)=1,IF(PQS!$R36=\"NO\",1,0),IF(MOD(BO$3,Calculations!$J36)=1,1,0)))+Parts!$E$92*IF(Calculations!$K36=0,0,IF(MOD(BO$3,$I36)=1,0,IF(MOD(BO$3,Calculations!$K36)=1,1,0))))*$AU36)*(1+'Country Input'!$C$45)^(Calculations!BO$3-$BH$3)","v":1734.1666666666665},{"$f":"(($U36+($O36)*IF(MOD(BP$3,$I36)=1,1,0)+Parts!$E$91*IF($J36=0,0,IF(MOD(BP$3,$I36)=1,IF(PQS!$R36=\"NO\",1,0),IF(MOD(BP$3,Calculations!$J36)=1,1,0)))+Parts!$E$92*IF(Calculations!$K36=0,0,IF(MOD(BP$3,$I36)=1,0,IF(MOD(BP$3,Calculations!$K36)=1,1,0))))*$AU36)*(1+'Country Input'!$C$45)^(Calculations!BP$3-$BH$3)","v":1734.1666666666665},{"$f":"(($U36+($O36)*IF(MOD(BQ$3,$I36)=1,1,0)+Parts!$E$91*IF($J36=0,0,IF(MOD(BQ$3,$I36)=1,IF(PQS!$R36=\"NO\",1,0),IF(MOD(BQ$3,Calculations!$J36)=1,1,0)))+Parts!$E$92*IF(Calculations!$K36=0,0,IF(MOD(BQ$3,$I36)=1,0,IF(MOD(BQ$3,Calculations!$K36)=1,1,0))))*$AU36)*(1+'Country Input'!$C$45)^(Calculations!BQ$3-$BH$3)","v":1734.1666666666665},{"$f":"(($U36+($O36)*IF(MOD(BR$3,$I36)=1,1,0)+Parts!$E$91*IF($J36=0,0,IF(MOD(BR$3,$I36)=1,IF(PQS!$R36=\"NO\",1,0),IF(MOD(BR$3,Calculations!$J36)=1,1,0)))+Parts!$E$92*IF(Calculations!$K36=0,0,IF(MOD(BR$3,$I36)=1,0,IF(MOD(BR$3,Calculations!$K36)=1,1,0))))*$AU36)*(1+'Country Input'!$C$45)^(Calculations!BR$3-$BH$3)","v":36028.366666666669},{"$f":"(($U36+($O36)*IF(MOD(BS$3,$I36)=1,1,0)+Parts!$E$91*IF($J36=0,0,IF(MOD(BS$3,$I36)=1,IF(PQS!$R36=\"NO\",1,0),IF(MOD(BS$3,Calculations!$J36)=1,1,0)))+Parts!$E$92*IF(Calculations!$K36=0,0,IF(MOD(BS$3,$I36)=1,0,IF(MOD(BS$3,Calculations!$K36)=1,1,0))))*$AU36)*(1+'Country Input'!$C$45)^(Calculations!BS$3-$BH$3)","v":1734.1666666666665},{"$f":"(($U36+($O36)*IF(MOD(BT$3,$I36)=1,1,0)+Parts!$E$91*IF($J36=0,0,IF(MOD(BT$3,$I36)=1,IF(PQS!$R36=\"NO\",1,0),IF(MOD(BT$3,Calculations!$J36)=1,1,0)))+Parts!$E$92*IF(Calculations!$K36=0,0,IF(MOD(BT$3,$I36)=1,0,IF(MOD(BT$3,Calculations!$K36)=1,1,0))))*$AU36)*(1+'Country Input'!$C$45)^(Calculations!BT$3-$BH$3)","v":1734.1666666666665},{"$f":"(($U36+($O36)*IF(MOD(BU$3,$I36)=1,1,0)+Parts!$E$91*IF($J36=0,0,IF(MOD(BU$3,$I36)=1,IF(PQS!$R36=\"NO\",1,0),IF(MOD(BU$3,Calculations!$J36)=1,1,0)))+Parts!$E$92*IF(Calculations!$K36=0,0,IF(MOD(BU$3,$I36)=1,0,IF(MOD(BU$3,Calculations!$K36)=1,1,0))))*$AU36)*(1+'Country Input'!$C$45)^(Calculations!BU$3-$BH$3)","v":1734.1666666666665},{"$f":"(($U36+($O36)*IF(MOD(BV$3,$I36)=1,1,0)+Parts!$E$91*IF($J36=0,0,IF(MOD(BV$3,$I36)=1,IF(PQS!$R36=\"NO\",1,0),IF(MOD(BV$3,Calculations!$J36)=1,1,0)))+Parts!$E$92*IF(Calculations!$K36=0,0,IF(MOD(BV$3,$I36)=1,0,IF(MOD(BV$3,Calculations!$K36)=1,1,0))))*$AU36)*(1+'Country Input'!$C$45)^(Calculations!BV$3-$BH$3)","v":1734.1666666666665},{"$f":"(($U36+($O36)*IF(MOD(BW$3,$I36)=1,1,0)+Parts!$E$91*IF($J36=0,0,IF(MOD(BW$3,$I36)=1,IF(PQS!$R36=\"NO\",1,0),IF(MOD(BW$3,Calculations!$J36)=1,1,0)))+Parts!$E$92*IF(Calculations!$K36=0,0,IF(MOD(BW$3,$I36)=1,0,IF(MOD(BW$3,Calculations!$K36)=1,1,0))))*$AU36)*(1+'Country Input'!$C$45)^(Calculations!BW$3-$BH$3)","v":1734.1666666666665},{"$f":"(($U36+($O36)*IF(MOD(BX$3,$I36)=1,1,0)+Parts!$E$91*IF($J36=0,0,IF(MOD(BX$3,$I36)=1,IF(PQS!$R36=\"NO\",1,0),IF(MOD(BX$3,Calculations!$J36)=1,1,0)))+Parts!$E$92*IF(Calculations!$K36=0,0,IF(MOD(BX$3,$I36)=1,0,IF(MOD(BX$3,Calculations!$K36)=1,1,0))))*$AU36)*(1+'Country Input'!$C$45)^(Calculations!BX$3-$BH$3)","v":1734.1666666666665},{"$f":"(($U36+($O36)*IF(MOD(BY$3,$I36)=1,1,0)+Parts!$E$91*IF($J36=0,0,IF(MOD(BY$3,$I36)=1,IF(PQS!$R36=\"NO\",1,0),IF(MOD(BY$3,Calculations!$J36)=1,1,0)))+Parts!$E$92*IF(Calculations!$K36=0,0,IF(MOD(BY$3,$I36)=1,0,IF(MOD(BY$3,Calculations!$K36)=1,1,0))))*$AU36)*(1+'Country Input'!$C$45)^(Calculations!BY$3-$BH$3)","v":1734.1666666666665},{"$f":"(($U36+($O36)*IF(MOD(BZ$3,$I36)=1,1,0)+Parts!$E$91*IF($J36=0,0,IF(MOD(BZ$3,$I36)=1,IF(PQS!$R36=\"NO\",1,0),IF(MOD(BZ$3,Calculations!$J36)=1,1,0)))+Parts!$E$92*IF(Calculations!$K36=0,0,IF(MOD(BZ$3,$I36)=1,0,IF(MOD(BZ$3,Calculations!$K36)=1,1,0))))*$AU36)*(1+'Country Input'!$C$45)^(Calculations!BZ$3-$BH$3)","v":1734.1666666666665},{"$f":"(($U36+($O36)*IF(MOD(CA$3,$I36)=1,1,0)+Parts!$E$91*IF($J36=0,0,IF(MOD(CA$3,$I36)=1,IF(PQS!$R36=\"NO\",1,0),IF(MOD(CA$3,Calculations!$J36)=1,1,0)))+Parts!$E$92*IF(Calculations!$K36=0,0,IF(MOD(CA$3,$I36)=1,0,IF(MOD(CA$3,Calculations!$K36)=1,1,0))))*$AU36)*(1+'Country Input'!$C$45)^(Calculations!CA$3-$BH$3)","v":1734.1666666666665},null,"Godrej & Boyce  GVR 100 AC*",36028.366666666669,1734.1666666666665,1734.1666666666665,1734.1666666666665,1734.1666666666665,1734.1666666666665,1734.1666666666665,1734.1666666666665,1734.1666666666665,1734.1666666666665,36028.366666666669,1734.1666666666665,1734.1666666666665,1734.1666666666665,1734.1666666666665,1734.1666666666665,1734.1666666666665,1734.1666666666665,1734.1666666666665,1734.1666666666665,{"$f":"SUM(CD36:INDEX($CD36:$CW36,1,'Total Solution Costs'!$B$2))","v":51635.866666666647},null,"Godrej & Boyce  GVR 100 AC*",{"$f":"SUM($BH36:BH36)","v":36028.366666666669},{"$f":"SUM($BH36:BI36)","v":37762.533333333333},{"$f":"SUM($BH36:BJ36)","v":39496.699999999997},{"$f":"SUM($BH36:BK36)","v":41230.866666666661},{"$f":"SUM($BH36:BL36)","v":42965.033333333326},{"$f":"SUM($BH36:BM36)","v":44699.19999999999},{"$f":"SUM($BH36:BN36)","v":46433.366666666654},{"$f":"SUM($BH36:BO36)","v":48167.533333333318},{"$f":"SUM($BH36:BP36)","v":49901.699999999983},{"$f":"SUM($BH36:BQ36)","v":51635.866666666647},{"$f":"SUM($BH36:BR36)","v":87664.233333333308},{"$f":"SUM($BH36:BS36)","v":89398.39999999998},{"$f":"SUM($BH36:BT36)","v":91132.566666666651},{"$f":"SUM($BH36:BU36)","v":92866.733333333323},{"$f":"SUM($BH36:BV36)","v":94600.9},{"$f":"SUM($BH36:BW36)","v":96335.066666666666},{"$f":"SUM($BH36:BX36)","v":98069.233333333337},{"$f":"SUM($BH36:BY36)","v":99803.400000000009},{"$f":"SUM($BH36:BZ36)","v":101537.56666666668},{"$f":"SUM($BH36:CA36)","v":103271.73333333335}]
[{"$f":"PQS!A37","v":"ILR"},{"$f":"PQS!B37","v":"E003/051"},{"$f":"PQS!E37","v":"ZLF 30 AC*"},{"$f":"PQS!F37","v":"Zero"},{"$f":"PQS!D37","v":"Zero ZLF 30 AC*"},{"$f":"VLOOKUP(E37,PQS!$D$5:$K$107,COLUMN(PQS!$I$3)-COLUMN(PQS!$D$3)+1,FALSE)","v":27},{"$f":"VLOOKUP(E37,PQS!$D$5:$K$107,COLUMN(PQS!$J$3)-COLUMN(PQS!$D$3)+1,FALSE)","v":0},{"$f":"VLOOKUP(E37,PQS!$D$5:$K$107,COLUMN(PQS!$G$3)-COLUMN(PQS!$D$3)+1,FALSE)","v":"Yes"},{"$f":"HLOOKUP(B37,INDIRECT(\"'\"&A37&\"'!$10:$15\"),ROW('Technology template'!$A$11)-ROW('Technology template'!$A$10)+1,FALSE)","v":10},{"$f":"HLOOKUP(B37,INDIRECT(\"'\"&A37&\"'!$10:$15\"),ROW('Technology template'!$A$12)-ROW('Technology template'!$A$10)+1,FALSE)","v":0},{"$f":"HLOOKUP(B37,INDIRECT(\"'\"&A37&\"'!$10:$15\"),ROW('Technology template'!$A$13)-ROW('Technology template'!$A$10)+1,FALSE)","v":0},{"$f":"VLOOKUP(B37,PQS!$B:$Q,MATCH(PQS!$Q$3,PQS!$B$3:$Q$3,0),FALSE)*(1+'Country Input'!$C$47)+HLOOKUP(B37,INDIRECT(\"'\"&A37&\"'!$10:$15\"),ROW('Technology template'!$A$14)-ROW('Technology template'!$A$10)+1,FALSE)*(1+'Country Input'!$C$47)","v":1328.94},{"$f":"HLOOKUP(B37,INDIRECT(\"'\"&A37&\"'!$10:$80\"),MATCH('Technology template'!$A$27,INDIRECT(\"'\"&A37&\"'!$A$10:$A$80\"),0),FALSE)+'Labor and Maintenance '!$E$22","v":748},{"$f":"VLOOKUP(B37,PQS!B:T,MATCH(PQS!$T$3,PQS!$B$3:$T$3,0),FALSE)*(1+'Country Input'!$C$47)","v":514.67000000000007},2591.61,{"$f":"O37/I37","v":259.161},{"$f":"VLOOKUP(B37,PQS!$B:$AE,COLUMN(PQS!AD35)-1,FALSE)","v":122.78600000000002},{"$f":"IFERROR(1/HLOOKUP(B37,INDIRECT(\"'\"&A37&\"'!$10:$80\"),MATCH('Technology template'!$A$31,INDIRECT(\"'\"&A37&\"'!$A$10:$A$80\"),0),FALSE)*HLOOKUP(B37,INDIRECT(\"'\"&A37&\"'!$10:$80\"),MATCH('Technology template'!$A$41,INDIRECT(\"'\"&A37&\"'!$A10:$A$80\"),0),FALSE),0)*TechnicianHourlyWage+IF(A37=\"Solar w Battery\",1/'Labor and Maintenance '!$E$53*'Labor and Maintenance '!$D$53,0)+IF(A37=\"LT passive\", 1/'Labor and Maintenance '!$E$81*'Labor and Maintenance '!$D$81,0)","v":24},{"$f":"IFERROR(1/HLOOKUP(B37,INDIRECT(\"'\"&A37&\"'!$10:$80\"),MATCH('Technology template'!$A$34,INDIRECT(\"'\"&A37&\"'!$A$10:$A$80\"),0),FALSE)*(HLOOKUP(B37,INDIRECT(\"'\"&A37&\"'!$10:$80\"),MATCH('Technology template'!$A$44,INDIRECT(\"'\"&A37&\"'!$A10:$A$80\"),0),FALSE)*TechnicianHourlyWage+RemoteTravelCostPerDay),0)+IFERROR(1/HLOOKUP(B37,INDIRECT(\"'\"&A37&\"'!$10:$80\"),MATCH('Technology template'!$A$35,INDIRECT(\"'\"&A37&\"'!$A$10:$A$80\"),0),FALSE)*(HLOOKUP(B37,INDIRECT(\"'\"&A37&\"'!$10:$80\"),MATCH('Technology template'!$A$45,INDIRECT(\"'\"&A37&\"'!$A10:$A$80\"),0),FALSE)*TechnicianHourlyWage+RemoteTravelCostPerDay),0)+IFERROR(1/HLOOKUP(B37,INDIRECT(\"'\"&A37&\"'!$10:$80\"),MATCH('Technology template'!$A$37,INDIRECT(\"'\"&A37&\"'!$A$10:$A$80\"),0),FALSE)*(HLOOKUP(B37,INDIRECT(\"'\"&A37&\"'!$10:$80\"),MATCH('Technology template'!$A$46,INDIRECT(\"'\"&A37&\"'!$A10:$A$80\"),0),FALSE)*TechnicianHourlyWage+'Labor and Maintenance '!$B$8),0)","v":94.666666666666657},{"$f":"SUM(Q37:S37)*I37","v":2414.5266666666666},{"$f":"SUM(Q37:S37)","v":241.45266666666666},{"$f":"P37+U37","v":500.61366666666663},null,{"$f":"E37","v":"Zero ZLF 30 AC*"},95.985555555555564,89.426913580246918,{"$f":"Y37+Z37","v":185.4124691358025},null,"Zero ZLF 30 AC*",9.5985555555555564,8.9426913580246907,18.541246913580245,null,"Zero ZLF 30 AC*",{"$f":"ROUNDUP(LitersPerDelivery/F37,0)","v":5},{"$f":"AI37*O37","v":12958.050000000001},{"$f":"AI37*T37","v":12072.633333333333},{"$f":"AJ37+AK37","v":25030.683333333334},null,{"$f":"E37","v":"Zero ZLF 30 AC*"},{"$f":"ROUNDUP(LitersPerDelivery/F37,0)","v":5},{"$f":"AO37*AD37","v":47.992777777777782},{"$f":"AO37*AE37","v":44.713456790123452},{"$f":"+AP37+AQ37","v":92.706234567901234},null,{"$f":"E37","v":"Zero ZLF 30 AC*"},{"$f":"IF(F37=0, 'Country Input'!$D$7, ROUNDUP(LitersPerFacility/F37,0)*'Country Input'!$D$7)","v":10},{"$f":"AU37*O37","v":25916.100000000002},{"$f":"AU37*(SUM(Q37:S37))","v":2414.5266666666666},{"$f":"AV37+AW37","v":28330.626666666671},null,{"$f":"E37","v":"Zero ZLF 30 AC*"},{"$f":"ROUNDUP(LitersPerFacility/F37,0)*'Country Input'!$D$7*ROUNDUP('Total Solution Costs'!$B$2/Calculations!I37,0)","v":10},95.985555555555564,{"$f":"AW37/(F37*AU37)","v":8.9426913580246907},{"$f":"BB37+BC37","v":104.92824691358025},null,null,{"$f":"E37","v":"Zero ZLF 30 AC*"},{"$f":"(($U37+($O37)*IF(MOD(BH$3,$I37)=1,1,0)+Parts!$E$91*IF($J37=0,0,IF(MOD(BH$3,$I37)=1,IF(PQS!$R37=\"NO\",1,0),IF(MOD(BH$3,Calculations!$J37)=1,1,0)))+Parts!$E$92*IF(Calculations!$K37=0,0,IF(MOD(BH$3,$I37)=1,0,IF(MOD(BH$3,Calculations!$K37)=1,1,0))))*$AU37)*(1+'Country Input'!$C$45)^(Calculations!BH$3-$BH$3)+TrainingCost","v":28330.626666666667},{"$f":"(($U37+($O37)*IF(MOD(BI$3,$I37)=1,1,0)+Parts!$E$91*IF($J37=0,0,IF(MOD(BI$3,$I37)=1,IF(PQS!$R37=\"NO\",1,0),IF(MOD(BI$3,Calculations!$J37)=1,1,0)))+Parts!$E$92*IF(Calculations!$K37=0,0,IF(MOD(BI$3,$I37)=1,0,IF(MOD(BI$3,Calculations!$K37)=1,1,0))))*$AU37)*(1+'Country Input'!$C$45)^(Calculations!BI$3-$BH$3)","v":2414.5266666666666},{"$f":"(($U37+($O37)*IF(MOD(BJ$3,$I37)=1,1,0)+Parts!$E$91*IF($J37=0,0,IF(MOD(BJ$3,$I37)=1,IF(PQS!$R37=\"NO\",1,0),IF(MOD(BJ$3,Calculations!$J37)=1,1,0)))+Parts!$E$92*IF(Calculations!$K37=0,0,IF(MOD(BJ$3,$I37)=1,0,IF(MOD(BJ$3,Calculations!$K37)=1,1,0))))*$AU37)*(1+'Country Input'!$C$45)^(Calculations!BJ$3-$BH$3)","v":2414.5266666666666},{"$f":"(($U37+($O37)*IF(MOD(BK$3,$I37)=1,1,0)+Parts!$E$91*IF($J37=0,0,IF(MOD(BK$3,$I37)=1,IF(PQS!$R37=\"NO\",1,0),IF(MOD(BK$3,Calculations!$J37)=1,1,0)))+Parts!$E$92*IF(Calculations!$K37=0,0,IF(MOD(BK$3,$I37)=1,0,IF(MOD(BK$3,Calculations!$K37)=1,1,0))))*$AU37)*(1+'Country Input'!$C$45)^(Calculations!BK$3-$BH$3)","v":2414.5266666666666},{"$f":"(($U37+($O37)*IF(MOD(BL$3,$I37)=1,1,0)+Parts!$E$91*IF($J37=0,0,IF(MOD(BL$3,$I37)=1,IF(PQS!$R37=\"NO\",1,0),IF(MOD(BL$3,Calculations!$J37)=1,1,0)))+Parts!$E$92*IF(Calculations!$K37=0,0,IF(MOD(BL$3,$I37)=1,0,IF(MOD(BL$3,Calculations!$K37)=1,1,0))))*$AU37)*(1+'Country Input'!$C$45)^(Calculations!BL$3-$BH$3)","v":2414.5266666666666},{"$f":"(($U37+($O37)*IF(MOD(BM$3,$I37)=1,1,0)+Parts!$E$91*IF($J37=0,0,IF(MOD(BM$3,$I37)=1,IF(PQS!$R37=\"NO\",1,0),IF(MOD(BM$3,Calculations!$J37)=1,1,0)))+Parts!$E$92*IF(Calculations!$K37=0,0,IF(MOD(BM$3,$I37)=1,0,IF(MOD(BM$3,Calculations!$K37)=1,1,0))))*$AU37)*(1+'Country Input'!$C$45)^(Calculations!BM$3-$BH$3)","v":2414.5266666666666},{"$f":"(($U37+($O37)*IF(MOD(BN$3,$I37)=1,1,0)+Parts!$E$91*IF($J37=0,0,IF(MOD(BN$3,$I37)=1,IF(PQS!$R37=\"NO\",1,0),IF(MOD(BN$3,Calculations!$J37)=1,1,0)))+Parts!$E$92*IF(Calculations!$K37=0,0,IF(MOD(BN$3,$I37)=1,0,IF(MOD(BN$3,Calculations!$K37)=1,1,0))))*$AU37)*(1+'Country Input'!$C$45)^(Calculations!BN$3-$BH$3)","v":2414.5266666666666},{"$f":"(($U37+($O37)*IF(MOD(BO$3,$I37)=1,1,0)+Parts!$E$91*IF($J37=0,0,IF(MOD(BO$3,$I37)=1,IF(PQS!$R37=\"NO\",1,0),IF(MOD(BO$3,Calculations!$J37)=1,1,0)))+Parts!$E$92*IF(Calculations!$K37=0,0,IF(MOD(BO$3,$I37)=1,0,IF(MOD(BO$3,Calculations!$K37)=1,1,0))))*$AU37)*(1+'Country Input'!$C$45)^(Calculations!BO$3-$BH$3)","v":2414.5266666666666},{"$f":"(($U37+($O37)*IF(MOD(BP$3,$I37)=1,1,0)+Parts!$E$91*IF($J37=0,0,IF(MOD(BP$3,$I37)=1,IF(PQS!$R37=\"NO\",1,0),IF(MOD(BP$3,Calculations!$J37)=1,1,0)))+Parts!$E$92*IF(Calculations!$K37=0,0,IF(MOD(BP$3,$I37)=1,0,IF(MOD(BP$3,Calculations!$K37)=1,1,0))))*$AU37)*(1+'Country Input'!$C$45)^(Calculations!BP$3-$BH$3)","v":2414.5266666666666},{"$f":"(($U37+($O37)*IF(MOD(BQ$3,$I37)=1,1,0)+Parts!$E$91*IF($J37=0,0,IF(MOD(BQ$3,$I37)=1,IF(PQS!$R37=\"NO\",1,0),IF(MOD(BQ$3,Calculations!$J37)=1,1,0)))+Parts!$E$92*IF(Calculations!$K37=0,0,IF(MOD(BQ$3,$I37)=1,0,IF(MOD(BQ$3,Calculations!$K37)=1,1,0))))*$AU37)*(1+'Country Input'!$C$45)^(Calculations!BQ$3-$BH$3)","v":2414.5266666666666},{"$f":"(($U37+($O37)*IF(MOD(BR$3,$I37)=1,1,0)+Parts!$E$91*IF($J37=0,0,IF(MOD(BR$3,$I37)=1,IF(PQS!$R37=\"NO\",1,0),IF(MOD(BR$3,Calculations!$J37)=1,1,0)))+Parts!$E$92*IF(Calculations!$K37=0,0,IF(MOD(BR$3,$I37)=1,0,IF(MOD(BR$3,Calculations!$K37)=1,1,0))))*$AU37)*(1+'Country Input'!$C$45)^(Calculations!BR$3-$BH$3)","v":28330.626666666667},{"$f":"(($U37+($O37)*IF(MOD(BS$3,$I37)=1,1,0)+Parts!$E$91*IF($J37=0,0,IF(MOD(BS$3,$I37)=1,IF(PQS!$R37=\"NO\",1,0),IF(MOD(BS$3,Calculations!$J37)=1,1,0)))+Parts!$E$92*IF(Calculations!$K37=0,0,IF(MOD(BS$3,$I37)=1,0,IF(MOD(BS$3,Calculations!$K37)=1,1,0))))*$AU37)*(1+'Country Input'!$C$45)^(Calculations!BS$3-$BH$3)","v":2414.5266666666666},{"$f":"(($U37+($O37)*IF(MOD(BT$3,$I37)=1,1,0)+Parts!$E$91*IF($J37=0,0,IF(MOD(BT$3,$I37)=1,IF(PQS!$R37=\"NO\",1,0),IF(MOD(BT$3,Calculations!$J37)=1,1,0)))+Parts!$E$92*IF(Calculations!$K37=0,0,IF(MOD(BT$3,$I37)=1,0,IF(MOD(BT$3,Calculations!$K37)=1,1,0))))*$AU37)*(1+'Country Input'!$C$45)^(Calculations!BT$3-$BH$3)","v":2414.5266666666666},{"$f":"(($U37+($O37)*IF(MOD(BU$3,$I37)=1,1,0)+Parts!$E$91*IF($J37=0,0,IF(MOD(BU$3,$I37)=1,IF(PQS!$R37=\"NO\",1,0),IF(MOD(BU$3,Calculations!$J37)=1,1,0)))+Parts!$E$92*IF(Calculations!$K37=0,0,IF(MOD(BU$3,$I37)=1,0,IF(MOD(BU$3,Calculations!$K37)=1,1,0))))*$AU37)*(1+'Country Input'!$C$45)^(Calculations!BU$3-$BH$3)","v":2414.5266666666666},{"$f":"(($U37+($O37)*IF(MOD(BV$3,$I37)=1,1,0)+Parts!$E$91*IF($J37=0,0,IF(MOD(BV$3,$I37)=1,IF(PQS!$R37=\"NO\",1,0),IF(MOD(BV$3,Calculations!$J37)=1,1,0)))+Parts!$E$92*IF(Calculations!$K37=0,0,IF(MOD(BV$3,$I37)=1,0,IF(MOD(BV$3,Calculations!$K37)=1,1,0))))*$AU37)*(1+'Country Input'!$C$45)^(Calculations!BV$3-$BH$3)","v":2414.5266666666666},{"$f":"(($U37+($O37)*IF(MOD(BW$3,$I37)=1,1,0)+Parts!$E$91*IF($J37=0,0,IF(MOD(BW$3,$I37)=1,IF(PQS!$R37=\"NO\",1,0),IF(MOD(BW$3,Calculations!$J37)=1,1,0)))+Parts!$E$92*IF(Calculations!$K37=0,0,IF(MOD(BW$3,$I37)=1,0,IF(MOD(BW$3,Calculations!$K37)=1,1,0))))*$AU37)*(1+'Country Input'!$C$45)^(Calculations!BW$3-$BH$3)","v":2414.5266666666666},{"$f":"(($U37+($O37)*IF(MOD(BX$3,$I37)=1,1,0)+Parts!$E$91*IF($J37=0,0,IF(MOD(BX$3,$I37)=1,IF(PQS!$R37=\"NO\",1,0),IF(MOD(BX$3,Calculations!$J37)=1,1,0)))+Parts!$E$92*IF(Calculations!$K37=0,0,IF(MOD(BX$3,$I37)=1,0,IF(MOD(BX$3,Calculations!$K37)=1,1,0))))*$AU37)*(1+'Country Input'!$C$45)^(Calculations!BX$3-$BH$3)","v":2414.5266666666666},{"$f":"(($U37+($O37)*IF(MOD(BY$3,$I37)=1,1,0)+Parts!$E$91*IF($J37=0,0,IF(MOD(BY$3,$I37)=1,IF(PQS!$R37=\"NO\",1,0),IF(MOD(BY$3,Calculations!$J37)=1,1,0)))+Parts!$E$92*IF(Calculations!$K37=0,0,IF(MOD(BY$3,$I37)=1,0,IF(MOD(BY$3,Calculations!$K37)=1,1,0))))*$AU37)*(1+'Country Input'!$C$45)^(Calculations!BY$3-$BH$3)","v":2414.5266666666666},{"$f":"(($U37+($O37)*IF(MOD(BZ$3,$I37)=1,1,0)+Parts!$E$91*IF($J37=0,0,IF(MOD(BZ$3,$I37)=1,IF(PQS!$R37=\"NO\",1,0),IF(MOD(BZ$3,Calculations!$J37)=1,1,0)))+Parts!$E$92*IF(Calculations!$K37=0,0,IF(MOD(BZ$3,$I37)=1,0,IF(MOD(BZ$3,Calculations!$K37)=1,1,0))))*$AU37)*(1+'Country Input'!$C$45)^(Calculations!BZ$3-$BH$3)","v":2414.5266666666666},{"$f":"(($U37+($O37)*IF(MOD(CA$3,$I37)=1,1,0)+Parts!$E$91*IF($J37=0,0,IF(MOD(CA$3,$I37)=1,IF(PQS!$R37=\"NO\",1,0),IF(MOD(CA$3,Calculations!$J37)=1,1,0)))+Parts!$E$92*IF(Calculations!$K37=0,0,IF(MOD(CA$3,$I37)=1,0,IF(MOD(CA$3,Calculations!$K37)=1,1,0))))*$AU37)*(1+'Country Input'!$C$45)^(Calculations!CA$3-$BH$3)","v":2414.5266666666666},null,{"$f":"E37","v":"Zero ZLF 30 AC*"},{"$f":"BH37/((1+DiscountRate)^(COLUMN(CD37)-COLUMN($CD37)))","v":28330.626666666667},2414.5266666666666,2414.5266666666666,2414.5266666666666,2414.5266666666666,2414.5266666666666,2414.5266666666666,2414.5266666666666,2414.5266666666666,2414.5266666666666,28330.626666666667,2414.5266666666666,2414.5266666666666,2414.5266666666666,2414.5266666666666,2414.5266666666666,2414.5266666666666,2414.5266666666666,2414.5266666666666,2414.5266666666666,{"$f":"SUM(CD37:INDEX($CD37:$CW37,1,'Total Solution Costs'!$B$2))","v":50061.366666666654},null,"Zero ZLF 30 AC*",{"$f":"SUM($BH37:BH37)","v":28330.626666666667},{"$f":"SUM($BH37:BI37)","v":30745.153333333335},{"$f":"SUM($BH37:BJ37)","v":33159.68},{"$f":"SUM($BH37:BK37)","v":35574.206666666665},{"$f":"SUM($BH37:BL37)","v":37988.73333333333},{"$f":"SUM($BH37:BM37)","v":40403.259999999995},{"$f":"SUM($BH37:BN37)","v":42817.78666666666},{"$f":"SUM($BH37:BO37)","v":45232.313333333324},{"$f":"SUM($BH37:BP37)","v":47646.839999999989},{"$f":"SUM($BH37:BQ37)","v":50061.366666666654},{"$f":"SUM($BH37:BR37)","v":78391.993333333317},{"$f":"SUM($BH37:BS37)","v":80806.51999999999},{"$f":"SUM($BH37:BT37)","v":83221.046666666662},{"$f":"SUM($BH37:BU37)","v":85635.573333333334},{"$f":"SUM($BH37:BV37)","v":88050.1},{"$f":"SUM($BH37:BW37)","v":90464.626666666678},{"$f":"SUM($BH37:BX37)","v":92879.15333333335},{"$f":"SUM($BH37:BY37)","v":95293.680000000022},{"$f":"SUM($BH37:BZ37)","v":97708.206666666694},{"$f":"SUM($BH37:CA37)","v":100122.73333333337}]
[{"$f":"PQS!A38","v":"ILR"},{"$f":"PQS!B38","v":"E003/062"},{"$f":"PQS!E38","v":"VLS 200A*"},{"$f":"PQS!F38","v":"Vestfrost"},{"$f":"PQS!D38","v":"Vestfrost VLS 200A*"},{"$f":"VLOOKUP(E38,PQS!$D$5:$K$107,COLUMN(PQS!$I$3)-COLUMN(PQS!$D$3)+1,FALSE)","v":60},{"$f":"VLOOKUP(E38,PQS!$D$5:$K$107,COLUMN(PQS!$J$3)-COLUMN(PQS!$D$3)+1,FALSE)","v":0},{"$f":"VLOOKUP(E38,PQS!$D$5:$K$107,COLUMN(PQS!$G$3)-COLUMN(PQS!$D$3)+1,FALSE)","v":"Yes"},{"$f":"HLOOKUP(B38,INDIRECT(\"'\"&A38&\"'!$10:$15\"),ROW('Technology template'!$A$11)-ROW('Technology template'!$A$10)+1,FALSE)","v":10},{"$f":"HLOOKUP(B38,INDIRECT(\"'\"&A38&\"'!$10:$15\"),ROW('Technology template'!$A$12)-ROW('Technology template'!$A$10)+1,FALSE)","v":0},{"$f":"HLOOKUP(B38,INDIRECT(\"'\"&A38&\"'!$10:$15\"),ROW('Technology template'!$A$13)-ROW('Technology template'!$A$10)+1,FALSE)","v":0},{"$f":"VLOOKUP(B38,PQS!$B:$Q,MATCH(PQS!$Q$3,PQS!$B$3:$Q$3,0),FALSE)*(1+'Country Input'!$C$47)+HLOOKUP(B38,INDIRECT(\"'\"&A38&\"'!$10:$15\"),ROW('Technology template'!$A$14)-ROW('Technology template'!$A$10)+1,FALSE)*(1+'Country Input'!$C$47)","v":833.75470000000007},{"$f":"HLOOKUP(B38,INDIRECT(\"'\"&A38&\"'!$10:$80\"),MATCH('Technology template'!$A$27,INDIRECT(\"'\"&A38&\"'!$A$10:$A$80\"),0),FALSE)+'Labor and Maintenance '!$E$22","v":748},{"$f":"VLOOKUP(B38,PQS!B:T,MATCH(PQS!$T$3,PQS!$B$3:$T$3,0),FALSE)*(1+'Country Input'!$C$47)","v":292.34475800000001},1874.0994579999999,{"$f":"O38/I38","v":187.4099458},{"$f":"VLOOKUP(B38,PQS!$B:$AE,COLUMN(PQS!AD36)-1,FALSE)","v":41.61},{"$f":"IFERROR(1/HLOOKUP(B38,INDIRECT(\"'\"&A38&\"'!$10:$80\"),MATCH('Technology template'!$A$31,INDIRECT(\"'\"&A38&\"'!$A$10:$A$80\"),0),FALSE)*HLOOKUP(B38,INDIRECT(\"'\"&A38&\"'!$10:$80\"),MATCH('Technology template'!$A$41,INDIRECT(\"'\"&A38&\"'!$A10:$A$80\"),0),FALSE),0)*TechnicianHourlyWage+IF(A38=\"Solar w Battery\",1/'Labor and Maintenance '!$E$53*'Labor and Maintenance '!$D$53,0)+IF(A38=\"LT passive\", 1/'Labor and Maintenance '!$E$81*'Labor and Maintenance '!$D$81,0)","v":24},{"$f":"IFERROR(1/HLOOKUP(B38,INDIRECT(\"'\"&A38&\"'!$10:$80\"),MATCH('Technology template'!$A$34,INDIRECT(\"'\"&A38&\"'!$A$10:$A$80\"),0),FALSE)*(HLOOKUP(B38,INDIRECT(\"'\"&A38&\"'!$10:$80\"),MATCH('Technology template'!$A$44,INDIRECT(\"'\"&A38&\"'!$A10:$A$80\"),0),FALSE)*TechnicianHourlyWage+RemoteTravelCostPerDay),0)+IFERROR(1/HLOOKUP(B38,INDIRECT(\"'\"&A38&\"'!$10:$80\"),MATCH('Technology template'!$A$35,INDIRECT(\"'\"&A38&\"'!$A$10:$A$80\"),0),FALSE)*(HLOOKUP(B38,INDIRECT(\"'\"&A38&\"'!$10:$80\"),MATCH('Technology template'!$A$45,INDIRECT(\"'\"&A38&\"'!$A10:$A$80\"),0),FALSE)*TechnicianHourlyWage+RemoteTravelCostPerDay),0)+IFERROR(1/HLOOKUP(B38,INDIRECT(\"'\"&A38&\"'!$10:$80\"),MATCH('Technology template'!$A$37,INDIRECT(\"'\"&A38&\"'!$A$10:$A$80\"),0),FALSE)*(HLOOKUP(B38,INDIRECT(\"'\"&A38&\"'!$10:$80\"),MATCH('Technology template'!$A$46,INDIRECT(\"'\"&A38&\"'!$A10:$A$80\"),0),FALSE)*TechnicianHourlyWage+'Labor and Maintenance '!$B$8),0)","v":94.666666666666657},{"$f":"SUM(Q38:S38)*I38","v":1602.7666666666664},{"$f":"SUM(Q38:S38)","v":160.27666666666664},{"$f":"P38+U38","v":347.68661246666665},null,{"$f":"E38","v":"Vestfrost VLS 200A*"},31.234990966666665,26.712777777777774,{"$f":"Y38+Z38","v":57.947768744444438},null,"Vestfrost VLS 200A*",3.1234990966666669,2.6712777777777772,5.7947768744444437,null,"Vestfrost VLS 200A*",3,5622.298374,4808.2999999999993,{"$f":"AJ38+AK38","v":10430.598373999999},null,"Vestfrost VLS 200A*",3,9.3704972900000012,8.0138333333333307,{"$f":"+AP38+AQ38","v":17.384330623333334},null,"Vestfrost VLS 200A*",{"$f":"IF(F38=0, 'Country Input'!$D$7, ROUNDUP(LitersPerFacility/F38,0)*'Country Input'!$D$7)","v":10},18740.994579999999,1602.7666666666664,{"$f":"AV38+AW38","v":20343.761246666665},null,"Vestfrost VLS 200A*",{"$f":"ROUNDUP(LitersPerFacility/F38,0)*'Country Input'!$D$7*ROUNDUP('Total Solution Costs'!$B$2/Calculations!I38,0)","v":10},31.234990966666668,2.6712777777777772,{"$f":"BB38+BC38","v":33.906268744444446},null,null,"Vestfrost VLS 200A*",{"$f":"(($U38+($O38)*IF(MOD(BH$3,$I38)=1,1,0)+Parts!$E$91*IF($J38=0,0,IF(MOD(BH$3,$I38)=1,IF(PQS!$R38=\"NO\",1,0),IF(MOD(BH$3,Calculations!$J38)=1,1,0)))+Parts!$E$92*IF(Calculations!$K38=0,0,IF(MOD(BH$3,$I38)=1,0,IF(MOD(BH$3,Calculations!$K38)=1,1,0))))*$AU38)*(1+'Country Input'!$C$45)^(Calculations!BH$3-$BH$3)+TrainingCost","v":20343.761246666665},{"$f":"(($U38+($O38)*IF(MOD(BI$3,$I38)=1,1,0)+Parts!$E$91*IF($J38=0,0,IF(MOD(BI$3,$I38)=1,IF(PQS!$R38=\"NO\",1,0),IF(MOD(BI$3,Calculations!$J38)=1,1,0)))+Parts!$E$92*IF(Calculations!$K38=0,0,IF(MOD(BI$3,$I38)=1,0,IF(MOD(BI$3,Calculations!$K38)=1,1,0))))*$AU38)*(1+'Country Input'!$C$45)^(Calculations!BI$3-$BH$3)","v":1602.7666666666664},{"$f":"(($U38+($O38)*IF(MOD(BJ$3,$I38)=1,1,0)+Parts!$E$91*IF($J38=0,0,IF(MOD(BJ$3,$I38)=1,IF(PQS!$R38=\"NO\",1,0),IF(MOD(BJ$3,Calculations!$J38)=1,1,0)))+Parts!$E$92*IF(Calculations!$K38=0,0,IF(MOD(BJ$3,$I38)=1,0,IF(MOD(BJ$3,Calculations!$K38)=1,1,0))))*$AU38)*(1+'Country Input'!$C$45)^(Calculations!BJ$3-$BH$3)","v":1602.7666666666664},{"$f":"(($U38+($O38)*IF(MOD(BK$3,$I38)=1,1,0)+Parts!$E$91*IF($J38=0,0,IF(MOD(BK$3,$I38)=1,IF(PQS!$R38=\"NO\",1,0),IF(MOD(BK$3,Calculations!$J38)=1,1,0)))+Parts!$E$92*IF(Calculations!$K38=0,0,IF(MOD(BK$3,$I38)=1,0,IF(MOD(BK$3,Calculations!$K38)=1,1,0))))*$AU38)*(1+'Country Input'!$C$45)^(Calculations!BK$3-$BH$3)","v":1602.7666666666664},{"$f":"(($U38+($O38)*IF(MOD(BL$3,$I38)=1,1,0)+Parts!$E$91*IF($J38=0,0,IF(MOD(BL$3,$I38)=1,IF(PQS!$R38=\"NO\",1,0),IF(MOD(BL$3,Calculations!$J38)=1,1,0)))+Parts!$E$92*IF(Calculations!$K38=0,0,IF(MOD(BL$3,$I38)=1,0,IF(MOD(BL$3,Calculations!$K38)=1,1,0))))*$AU38)*(1+'Country Input'!$C$45)^(Calculations!BL$3-$BH$3)","v":1602.7666666666664},{"$f":"(($U38+($O38)*IF(MOD(BM$3,$I38)=1,1,0)+Parts!$E$91*IF($J38=0,0,IF(MOD(BM$3,$I38)=1,IF(PQS!$R38=\"NO\",1,0),IF(MOD(BM$3,Calculations!$J38)=1,1,0)))+Parts!$E$92*IF(Calculations!$K38=0,0,IF(MOD(BM$3,$I38)=1,0,IF(MOD(BM$3,Calculations!$K38)=1,1,0))))*$AU38)*(1+'Country Input'!$C$45)^(Calculations!BM$3-$BH$3)","v":1602.7666666666664},{"$f":"(($U38+($O38)*IF(MOD(BN$3,$I38)=1,1,0)+Parts!$E$91*IF($J38=0,0,IF(MOD(BN$3,$I38)=1,IF(PQS!$R38=\"NO\",1,0),IF(MOD(BN$3,Calculations!$J38)=1,1,0)))+Parts!$E$92*IF(Calculations!$K38=0,0,IF(MOD(BN$3,$I38)=1,0,IF(MOD(BN$3,Calculations!$K38)=1,1,0))))*$AU38)*(1+'Country Input'!$C$45)^(Calculations!BN$3-$BH$3)","v":1602.7666666666664},{"$f":"(($U38+($O38)*IF(MOD(BO$3,$I38)=1,1,0)+Parts!$E$91*IF($J38=0,0,IF(MOD(BO$3,$I38)=1,IF(PQS!$R38=\"NO\",1,0),IF(MOD(BO$3,Calculations!$J38)=1,1,0)))+Parts!$E$92*IF(Calculations!$K38=0,0,IF(MOD(BO$3,$I38)=1,0,IF(MOD(BO$3,Calculations!$K38)=1,1,0))))*$AU38)*(1+'Country Input'!$C$45)^(Calculations!BO$3-$BH$3)","v":1602.7666666666664},{"$f":"(($U38+($O38)*IF(MOD(BP$3,$I38)=1,1,0)+Parts!$E$91*IF($J38=0,0,IF(MOD(BP$3,$I38)=1,IF(PQS!$R38=\"NO\",1,0),IF(MOD(BP$3,Calculations!$J38)=1,1,0)))+Parts!$E$92*IF(Calculations!$K38=0,0,IF(MOD(BP$3,$I38)=1,0,IF(MOD(BP$3,Calculations!$K38)=1,1,0))))*$AU38)*(1+'Country Input'!$C$45)^(Calculations!BP$3-$BH$3)","v":1602.7666666666664},{"$f":"(($U38+($O38)*IF(MOD(BQ$3,$I38)=1,1,0)+Parts!$E$91*IF($J38=0,0,IF(MOD(BQ$3,$I38)=1,IF(PQS!$R38=\"NO\",1,0),IF(MOD(BQ$3,Calculations!$J38)=1,1,0)))+Parts!$E$92*IF(Calculations!$K38=0,0,IF(MOD(BQ$3,$I38)=1,0,IF(MOD(BQ$3,Calculations!$K38)=1,1,0))))*$AU38)*(1+'Country Input'!$C$45)^(Calculations!BQ$3-$BH$3)","v":1602.7666666666664},{"$f":"(($U38+($O38)*IF(MOD(BR$3,$I38)=1,1,0)+Parts!$E$91*IF($J38=0,0,IF(MOD(BR$3,$I38)=1,IF(PQS!$R38=\"NO\",1,0),IF(MOD(BR$3,Calculations!$J38)=1,1,0)))+Parts!$E$92*IF(Calculations!$K38=0,0,IF(MOD(BR$3,$I38)=1,0,IF(MOD(BR$3,Calculations!$K38)=1,1,0))))*$AU38)*(1+'Country Input'!$C$45)^(Calculations!BR$3-$BH$3)","v":20343.761246666665},{"$f":"(($U38+($O38)*IF(MOD(BS$3,$I38)=1,1,0)+Parts!$E$91*IF($J38=0,0,IF(MOD(BS$3,$I38)=1,IF(PQS!$R38=\"NO\",1,0),IF(MOD(BS$3,Calculations!$J38)=1,1,0)))+Parts!$E$92*IF(Calculations!$K38=0,0,IF(MOD(BS$3,$I38)=1,0,IF(MOD(BS$3,Calculations!$K38)=1,1,0))))*$AU38)*(1+'Country Input'!$C$45)^(Calculations!BS$3-$BH$3)","v":1602.7666666666664},{"$f":"(($U38+($O38)*IF(MOD(BT$3,$I38)=1,1,0)+Parts!$E$91*IF($J38=0,0,IF(MOD(BT$3,$I38)=1,IF(PQS!$R38=\"NO\",1,0),IF(MOD(BT$3,Calculations!$J38)=1,1,0)))+Parts!$E$92*IF(Calculations!$K38=0,0,IF(MOD(BT$3,$I38)=1,0,IF(MOD(BT$3,Calculations!$K38)=1,1,0))))*$AU38)*(1+'Country Input'!$C$45)^(Calculations!BT$3-$BH$3)","v":1602.7666666666664},{"$f":"(($U38+($O38)*IF(MOD(BU$3,$I38)=1,1,0)+Parts!$E$91*IF($J38=0,0,IF(MOD(BU$3,$I38)=1,IF(PQS!$R38=\"NO\",1,0),IF(MOD(BU$3,Calculations!$J38)=1,1,0)))+Parts!$E$92*IF(Calculations!$K38=0,0,IF(MOD(BU$3,$I38)=1,0,IF(MOD(BU$3,Calculations!$K38)=1,1,0))))*$AU38)*(1+'Country Input'!$C$45)^(Calculations!BU$3-$BH$3)","v":1602.7666666666664},{"$f":"(($U38+($O38)*IF(MOD(BV$3,$I38)=1,1,0)+Parts!$E$91*IF($J38=0,0,IF(MOD(BV$3,$I38)=1,IF(PQS!$R38=\"NO\",1,0),IF(MOD(BV$3,Calculations!$J38)=1,1,0)))+Parts!$E$92*IF(Calculations!$K38=0,0,IF(MOD(BV$3,$I38)=1,0,IF(MOD(BV$3,Calculations!$K38)=1,1,0))))*$AU38)*(1+'Country Input'!$C$45)^(Calculations!BV$3-$BH$3)","v":1602.7666666666664},{"$f":"(($U38+($O38)*IF(MOD(BW$3,$I38)=1,1,0)+Parts!$E$91*IF($J38=0,0,IF(MOD(BW$3,$I38)=1,IF(PQS!$R38=\"NO\",1,0),IF(MOD(BW$3,Calculations!$J38)=1,1,0)))+Parts!$E$92*IF(Calculations!$K38=0,0,IF(MOD(BW$3,$I38)=1,0,IF(MOD(BW$3,Calculations!$K38)=1,1,0))))*$AU38)*(1+'Country Input'!$C$45)^(Calculations!BW$3-$BH$3)","v":1602.7666666666664},{"$f":"(($U38+($O38)*IF(MOD(BX$3,$I38)=1,1,0)+Parts!$E$91*IF($J38=0,0,IF(MOD(BX$3,$I38)=1,IF(PQS!$R38=\"NO\",1,0),IF(MOD(BX$3,Calculations!$J38)=1,1,0)))+Parts!$E$92*IF(Calculations!$K38=0,0,IF(MOD(BX$3,$I38)=1,0,IF(MOD(BX$3,Calculations!$K38)=1,1,0))))*$AU38)*(1+'Country Input'!$C$45)^(Calculations!BX$3-$BH$3)","v":1602.7666666666664},{"$f":"(($U38+($O38)*IF(MOD(BY$3,$I38)=1,1,0)+Parts!$E$91*IF($J38=0,0,IF(MOD(BY$3,$I38)=1,IF(PQS!$R38=\"NO\",1,0),IF(MOD(BY$3,Calculations!$J38)=1,1,0)))+Parts!$E$92*IF(Calculations!$K38=0,0,IF(MOD(BY$3,$I38)=1,0,IF(MOD(BY$3,Calculations!$K38)=1,1,0))))*$AU38)*(1+'Country Input'!$C$45)^(Calculations!BY$3-$BH$3)","v":1602.7666666666664},{"$f":"(($U38+($O38)*IF(MOD(BZ$3,$I38)=1,1,0)+Parts!$E$91*IF($J38=0,0,IF(MOD(BZ$3,$I38)=1,IF(PQS!$R38=\"NO\",1,0),IF(MOD(BZ$3,Calculations!$J38)=1,1,0)))+Parts!$E$92*IF(Calculations!$K38=0,0,IF(MOD(BZ$3,$I38)=1,0,IF(MOD(BZ$3,Calculations!$K38)=1,1,0))))*$AU38)*(1+'Country Input'!$C$45)^(Calculations!BZ$3-$BH$3)","v":1602.7666666666664},{"$f":"(($U38+($O38)*IF(MOD(CA$3,$I38)=1,1,0)+Parts!$E$91*IF($J38=0,0,IF(MOD(CA$3,$I38)=1,IF(PQS!$R38=\"NO\",1,0),IF(MOD(CA$3,Calculations!$J38)=1,1,0)))+Parts!$E$92*IF(Calculations!$K38=0,0,IF(MOD(CA$3,$I38)=1,0,IF(MOD(CA$3,Calculations!$K38)=1,1,0))))*$AU38)*(1+'Country Input'!$C$45)^(Calculations!CA$3-$BH$3)","v":1602.7666666666664},null,"Vestfrost VLS 200A*",{"$f":"BH38/((1+DiscountRate)^(COLUMN(CD38)-COLUMN($CD38)))","v":20343.761246666665},{"$f":"BI38/((1+DiscountRate)^(COLUMN(CE38)-COLUMN($CD38)))","v":1602.7666666666664},{"$f":"BJ38/((1+DiscountRate)^(COLUMN(CF38)-COLUMN($CD38)))","v":1602.7666666666664},{"$f":"BK38/((1+DiscountRate)^(COLUMN(CG38)-COLUMN($CD38)))","v":1602.7666666666664},{"$f":"BL38/((1+DiscountRate)^(COLUMN(CH38)-COLUMN($CD38)))","v":1602.7666666666664},{"$f":"BM38/((1+DiscountRate)^(COLUMN(CI38)-COLUMN($CD38)))","v":1602.7666666666664},{"$f":"BN38/((1+DiscountRate)^(COLUMN(CJ38)-COLUMN($CD38)))","v":1602.7666666666664},{"$f":"BO38/((1+DiscountRate)^(COLUMN(CK38)-COLUMN($CD38)))","v":1602.7666666666664},{"$f":"BP38/((1+DiscountRate)^(COLUMN(CL38)-COLUMN($CD38)))","v":1602.7666666666664},{"$f":"BQ38/((1+DiscountRate)^(COLUMN(CM38)-COLUMN($CD38)))","v":1602.7666666666664},{"$f":"BR38/((1+DiscountRate)^(COLUMN(CN38)-COLUMN($CD38)))","v":20343.761246666665},{"$f":"BS38/((1+DiscountRate)^(COLUMN(CO38)-COLUMN($CD38)))","v":1602.7666666666664},{"$f":"BT38/((1+DiscountRate)^(COLUMN(CP38)-COLUMN($CD38)))","v":1602.7666666666664},{"$f":"BU38/((1+DiscountRate)^(COLUMN(CQ38)-COLUMN($CD38)))","v":1602.7666666666664},{"$f":"BV38/((1+DiscountRate)^(COLUMN(CR38)-COLUMN($CD38)))","v":1602.7666666666664},{"$f":"BW38/((1+DiscountRate)^(COLUMN(CS38)-COLUMN($CD38)))","v":1602.7666666666664},{"$f":"BX38/((1+DiscountRate)^(COLUMN(CT38)-COLUMN($CD38)))","v":1602.7666666666664},{"$f":"BY38/((1+DiscountRate)^(COLUMN(CU38)-COLUMN($CD38)))","v":1602.7666666666664},{"$f":"BZ38/((1+DiscountRate)^(COLUMN(CV38)-COLUMN($CD38)))","v":1602.7666666666664},{"$f":"CA38/((1+DiscountRate)^(COLUMN(CW38)-COLUMN($CD38)))","v":1602.7666666666664},{"$f":"SUM(CD38:INDEX($CD38:$CW38,1,'Total Solution Costs'!$B$2))","v":34768.661246666656},null,{"$f":"CC38","v":"Vestfrost VLS 200A*"},{"$f":"SUM($BH38:BH38)","v":20343.761246666665},{"$f":"SUM($BH38:BI38)","v":21946.527913333332},{"$f":"SUM($BH38:BJ38)","v":23549.294579999998},{"$f":"SUM($BH38:BK38)","v":25152.061246666664},{"$f":"SUM($BH38:BL38)","v":26754.827913333331},{"$f":"SUM($BH38:BM38)","v":28357.594579999997},{"$f":"SUM($BH38:BN38)","v":29960.361246666664},{"$f":"SUM($BH38:BO38)","v":31563.12791333333},{"$f":"SUM($BH38:BP38)","v":33165.894579999993},{"$f":"SUM($BH38:BQ38)","v":34768.661246666656},{"$f":"SUM($BH38:BR38)","v":55112.422493333317},{"$f":"SUM($BH38:BS38)","v":56715.18915999998},{"$f":"SUM($BH38:BT38)","v":58317.955826666643},{"$f":"SUM($BH38:BU38)","v":59920.722493333305},{"$f":"SUM($BH38:BV38)","v":61523.489159999968},{"$f":"SUM($BH38:BW38)","v":63126.255826666631},{"$f":"SUM($BH38:BX38)","v":64729.022493333294},{"$f":"SUM($BH38:BY38)","v":66331.789159999957},{"$f":"SUM($BH38:BZ38)","v":67934.555826666619},{"$f":"SUM($BH38:CA38)","v":69537.322493333282}]
[{"$f":"PQS!A39","v":"ILR"},{"$f":"PQS!B39","v":"E003/063"},{"$f":"PQS!E39","v":"VLS 300A*"},{"$f":"PQS!F39","v":"Vestfrost"},{"$f":"PQS!D39","v":"Vestfrost VLS 300A*"},{"$f":"VLOOKUP(E39,PQS!$D$5:$K$107,COLUMN(PQS!$I$3)-COLUMN(PQS!$D$3)+1,FALSE)","v":98},{"$f":"VLOOKUP(E39,PQS!$D$5:$K$107,COLUMN(PQS!$J$3)-COLUMN(PQS!$D$3)+1,FALSE)","v":0},{"$f":"VLOOKUP(E39,PQS!$D$5:$K$107,COLUMN(PQS!$G$3)-COLUMN(PQS!$D$3)+1,FALSE)","v":"Yes"},{"$f":"HLOOKUP(B39,INDIRECT(\"'\"&A39&\"'!$10:$15\"),ROW('Technology template'!$A$11)-ROW('Technology template'!$A$10)+1,FALSE)","v":10},{"$f":"HLOOKUP(B39,INDIRECT(\"'\"&A39&\"'!$10:$15\"),ROW('Technology template'!$A$12)-ROW('Technology template'!$A$10)+1,FALSE)","v":0},{"$f":"HLOOKUP(B39,INDIRECT(\"'\"&A39&\"'!$10:$15\"),ROW('Technology template'!$A$13)-ROW('Technology template'!$A$10)+1,FALSE)","v":0},{"$f":"VLOOKUP(B39,PQS!$B:$Q,MATCH(PQS!$Q$3,PQS!$B$3:$Q$3,0),FALSE)*(1+'Country Input'!$C$47)+HLOOKUP(B39,INDIRECT(\"'\"&A39&\"'!$10:$15\"),ROW('Technology template'!$A$14)-ROW('Technology template'!$A$10)+1,FALSE)*(1+'Country Input'!$C$47)","v":1012.1986000000001},{"$f":"HLOOKUP(B39,INDIRECT(\"'\"&A39&\"'!$10:$80\"),MATCH('Technology template'!$A$27,INDIRECT(\"'\"&A39&\"'!$A$10:$A$80\"),0),FALSE)+'Labor and Maintenance '!$E$22","v":748},{"$f":"VLOOKUP(B39,PQS!B:T,MATCH(PQS!$T$3,PQS!$B$3:$T$3,0),FALSE)*(1+'Country Input'!$C$47)","v":304.46261499999997},2064.6612150000001,206.46612150000001,{"$f":"VLOOKUP(B39,PQS!$B:$AE,COLUMN(PQS!AD37)-1,FALSE)","v":50.37},{"$f":"IFERROR(1/HLOOKUP(B39,INDIRECT(\"'\"&A39&\"'!$10:$80\"),MATCH('Technology template'!$A$31,INDIRECT(\"'\"&A39&\"'!$A$10:$A$80\"),0),FALSE)*HLOOKUP(B39,INDIRECT(\"'\"&A39&\"'!$10:$80\"),MATCH('Technology template'!$A$41,INDIRECT(\"'\"&A39&\"'!$A10:$A$80\"),0),FALSE),0)*TechnicianHourlyWage+IF(A39=\"Solar w Battery\",1/'Labor and Maintenance '!$E$53*'Labor and Maintenance '!$D$53,0)+IF(A39=\"LT passive\", 1/'Labor and Maintenance '!$E$81*'Labor and Maintenance '!$D$81,0)","v":24},{"$f":"IFERROR(1/HLOOKUP(B39,INDIRECT(\"'\"&A39&\"'!$10:$80\"),MATCH('Technology template'!$A$34,INDIRECT(\"'\"&A39&\"'!$A$10:$A$80\"),0),FALSE)*(HLOOKUP(B39,INDIRECT(\"'\"&A39&\"'!$10:$80\"),MATCH('Technology template'!$A$44,INDIRECT(\"'\"&A39&\"'!$A10:$A$80\"),0),FALSE)*TechnicianHourlyWage+RemoteTravelCostPerDay),0)+IFERROR(1/HLOOKUP(B39,INDIRECT(\"'\"&A39&\"'!$10:$80\"),MATCH('Technology template'!$A$35,INDIRECT(\"'\"&A39&\"'!$A$10:$A$80\"),0),FALSE)*(HLOOKUP(B39,INDIRECT(\"'\"&A39&\"'!$10:$80\"),MATCH('Technology template'!$A$45,INDIRECT(\"'\"&A39&\"'!$A10:$A$80\"),0),FALSE)*TechnicianHourlyWage+RemoteTravelCostPerDay),0)+IFERROR(1/HLOOKUP(B39,INDIRECT(\"'\"&A39&\"'!$10:$80\"),MATCH('Technology template'!$A$37,INDIRECT(\"'\"&A39&\"'!$A$10:$A$80\"),0),FALSE)*(HLOOKUP(B39,INDIRECT(\"'\"&A39&\"'!$10:$80\"),MATCH('Technology template'!$A$46,INDIRECT(\"'\"&A39&\"'!$A10:$A$80\"),0),FALSE)*TechnicianHourlyWage+'Labor and Maintenance '!$B$8),0)","v":94.666666666666657},1690.3666666666666,169.03666666666666,375.50278816666668,null,"Vestfrost VLS 300A*",21.067971581632655,17.24863945578231,38.316611037414965,null,"Vestfrost VLS 300A*",2.1067971581632654,1.7248639455782313,3.8316611037414967,null,"Vestfrost VLS 300A*",2,4129.3224300000002,3380.7333333333331,7510.0557633333337,null,"Vestfrost VLS 300A*",2,4.2135943163265308,3.4497278911564626,7.6633222074829934,null,"Vestfrost VLS 300A*",{"$f":"IF(F39=0, 'Country Input'!$D$7, ROUNDUP(LitersPerFacility/F39,0)*'Country Input'!$D$7)","v":10},20646.612150000001,1690.3666666666666,22336.978816666666,null,"Vestfrost VLS 300A*",{"$f":"ROUNDUP(LitersPerFacility/F39,0)*'Country Input'!$D$7*ROUNDUP('Total Solution Costs'!$B$2/Calculations!I39,0)","v":10},21.067971581632655,1.7248639455782311,22.792835527210887,null,null,"Vestfrost VLS 300A*",{"$f":"(($U39+($O39)*IF(MOD(BH$3,$I39)=1,1,0)+Parts!$E$91*IF($J39=0,0,IF(MOD(BH$3,$I39)=1,IF(PQS!$R39=\"NO\",1,0),IF(MOD(BH$3,Calculations!$J39)=1,1,0)))+Parts!$E$92*IF(Calculations!$K39=0,0,IF(MOD(BH$3,$I39)=1,0,IF(MOD(BH$3,Calculations!$K39)=1,1,0))))*$AU39)*(1+'Country Input'!$C$45)^(Calculations!BH$3-$BH$3)+TrainingCost","v":22336.978816666669},{"$f":"(($U39+($O39)*IF(MOD(BI$3,$I39)=1,1,0)+Parts!$E$91*IF($J39=0,0,IF(MOD(BI$3,$I39)=1,IF(PQS!$R39=\"NO\",1,0),IF(MOD(BI$3,Calculations!$J39)=1,1,0)))+Parts!$E$92*IF(Calculations!$K39=0,0,IF(MOD(BI$3,$I39)=1,0,IF(MOD(BI$3,Calculations!$K39)=1,1,0))))*$AU39)*(1+'Country Input'!$C$45)^(Calculations!BI$3-$BH$3)","v":1690.3666666666666},{"$f":"(($U39+($O39)*IF(MOD(BJ$3,$I39)=1,1,0)+Parts!$E$91*IF($J39=0,0,IF(MOD(BJ$3,$I39)=1,IF(PQS!$R39=\"NO\",1,0),IF(MOD(BJ$3,Calculations!$J39)=1,1,0)))+Parts!$E$92*IF(Calculations!$K39=0,0,IF(MOD(BJ$3,$I39)=1,0,IF(MOD(BJ$3,Calculations!$K39)=1,1,0))))*$AU39)*(1+'Country Input'!$C$45)^(Calculations!BJ$3-$BH$3)","v":1690.3666666666666},{"$f":"(($U39+($O39)*IF(MOD(BK$3,$I39)=1,1,0)+Parts!$E$91*IF($J39=0,0,IF(MOD(BK$3,$I39)=1,IF(PQS!$R39=\"NO\",1,0),IF(MOD(BK$3,Calculations!$J39)=1,1,0)))+Parts!$E$92*IF(Calculations!$K39=0,0,IF(MOD(BK$3,$I39)=1,0,IF(MOD(BK$3,Calculations!$K39)=1,1,0))))*$AU39)*(1+'Country Input'!$C$45)^(Calculations!BK$3-$BH$3)","v":1690.3666666666666},{"$f":"(($U39+($O39)*IF(MOD(BL$3,$I39)=1,1,0)+Parts!$E$91*IF($J39=0,0,IF(MOD(BL$3,$I39)=1,IF(PQS!$R39=\"NO\",1,0),IF(MOD(BL$3,Calculations!$J39)=1,1,0)))+Parts!$E$92*IF(Calculations!$K39=0,0,IF(MOD(BL$3,$I39)=1,0,IF(MOD(BL$3,Calculations!$K39)=1,1,0))))*$AU39)*(1+'Country Input'!$C$45)^(Calculations!BL$3-$BH$3)","v":1690.3666666666666},{"$f":"(($U39+($O39)*IF(MOD(BM$3,$I39)=1,1,0)+Parts!$E$91*IF($J39=0,0,IF(MOD(BM$3,$I39)=1,IF(PQS!$R39=\"NO\",1,0),IF(MOD(BM$3,Calculations!$J39)=1,1,0)))+Parts!$E$92*IF(Calculations!$K39=0,0,IF(MOD(BM$3,$I39)=1,0,IF(MOD(BM$3,Calculations!$K39)=1,1,0))))*$AU39)*(1+'Country Input'!$C$45)^(Calculations!BM$3-$BH$3)","v":1690.3666666666666},{"$f":"(($U39+($O39)*IF(MOD(BN$3,$I39)=1,1,0)+Parts!$E$91*IF($J39=0,0,IF(MOD(BN$3,$I39)=1,IF(PQS!$R39=\"NO\",1,0),IF(MOD(BN$3,Calculations!$J39)=1,1,0)))+Parts!$E$92*IF(Calculations!$K39=0,0,IF(MOD(BN$3,$I39)=1,0,IF(MOD(BN$3,Calculations!$K39)=1,1,0))))*$AU39)*(1+'Country Input'!$C$45)^(Calculations!BN$3-$BH$3)","v":1690.3666666666666},{"$f":"(($U39+($O39)*IF(MOD(BO$3,$I39)=1,1,0)+Parts!$E$91*IF($J39=0,0,IF(MOD(BO$3,$I39)=1,IF(PQS!$R39=\"NO\",1,0),IF(MOD(BO$3,Calculations!$J39)=1,1,0)))+Parts!$E$92*IF(Calculations!$K39=0,0,IF(MOD(BO$3,$I39)=1,0,IF(MOD(BO$3,Calculations!$K39)=1,1,0))))*$AU39)*(1+'Country Input'!$C$45)^(Calculations!BO$3-$BH$3)","v":1690.3666666666666},{"$f":"(($U39+($O39)*IF(MOD(BP$3,$I39)=1,1,0)+Parts!$E$91*IF($J39=0,0,IF(MOD(BP$3,$I39)=1,IF(PQS!$R39=\"NO\",1,0),IF(MOD(BP$3,Calculations!$J39)=1,1,0)))+Parts!$E$92*IF(Calculations!$K39=0,0,IF(MOD(BP$3,$I39)=1,0,IF(MOD(BP$3,Calculations!$K39)=1,1,0))))*$AU39)*(1+'Country Input'!$C$45)^(Calculations!BP$3-$BH$3)","v":1690.3666666666666},{"$f":"(($U39+($O39)*IF(MOD(BQ$3,$I39)=1,1,0)+Parts!$E$91*IF($J39=0,0,IF(MOD(BQ$3,$I39)=1,IF(PQS!$R39=\"NO\",1,0),IF(MOD(BQ$3,Calculations!$J39)=1,1,0)))+Parts!$E$92*IF(Calculations!$K39=0,0,IF(MOD(BQ$3,$I39)=1,0,IF(MOD(BQ$3,Calculations!$K39)=1,1,0))))*$AU39)*(1+'Country Input'!$C$45)^(Calculations!BQ$3-$BH$3)","v":1690.3666666666666},{"$f":"(($U39+($O39)*IF(MOD(BR$3,$I39)=1,1,0)+Parts!$E$91*IF($J39=0,0,IF(MOD(BR$3,$I39)=1,IF(PQS!$R39=\"NO\",1,0),IF(MOD(BR$3,Calculations!$J39)=1,1,0)))+Parts!$E$92*IF(Calculations!$K39=0,0,IF(MOD(BR$3,$I39)=1,0,IF(MOD(BR$3,Calculations!$K39)=1,1,0))))*$AU39)*(1+'Country Input'!$C$45)^(Calculations!BR$3-$BH$3)","v":22336.978816666669},{"$f":"(($U39+($O39)*IF(MOD(BS$3,$I39)=1,1,0)+Parts!$E$91*IF($J39=0,0,IF(MOD(BS$3,$I39)=1,IF(PQS!$R39=\"NO\",1,0),IF(MOD(BS$3,Calculations!$J39)=1,1,0)))+Parts!$E$92*IF(Calculations!$K39=0,0,IF(MOD(BS$3,$I39)=1,0,IF(MOD(BS$3,Calculations!$K39)=1,1,0))))*$AU39)*(1+'Country Input'!$C$45)^(Calculations!BS$3-$BH$3)","v":1690.3666666666666},{"$f":"(($U39+($O39)*IF(MOD(BT$3,$I39)=1,1,0)+Parts!$E$91*IF($J39=0,0,IF(MOD(BT$3,$I39)=1,IF(PQS!$R39=\"NO\",1,0),IF(MOD(BT$3,Calculations!$J39)=1,1,0)))+Parts!$E$92*IF(Calculations!$K39=0,0,IF(MOD(BT$3,$I39)=1,0,IF(MOD(BT$3,Calculations!$K39)=1,1,0))))*$AU39)*(1+'Country Input'!$C$45)^(Calculations!BT$3-$BH$3)","v":1690.3666666666666},{"$f":"(($U39+($O39)*IF(MOD(BU$3,$I39)=1,1,0)+Parts!$E$91*IF($J39=0,0,IF(MOD(BU$3,$I39)=1,IF(PQS!$R39=\"NO\",1,0),IF(MOD(BU$3,Calculations!$J39)=1,1,0)))+Parts!$E$92*IF(Calculations!$K39=0,0,IF(MOD(BU$3,$I39)=1,0,IF(MOD(BU$3,Calculations!$K39)=1,1,0))))*$AU39)*(1+'Country Input'!$C$45)^(Calculations!BU$3-$BH$3)","v":1690.3666666666666},{"$f":"(($U39+($O39)*IF(MOD(BV$3,$I39)=1,1,0)+Parts!$E$91*IF($J39=0,0,IF(MOD(BV$3,$I39)=1,IF(PQS!$R39=\"NO\",1,0),IF(MOD(BV$3,Calculations!$J39)=1,1,0)))+Parts!$E$92*IF(Calculations!$K39=0,0,IF(MOD(BV$3,$I39)=1,0,IF(MOD(BV$3,Calculations!$K39)=1,1,0))))*$AU39)*(1+'Country Input'!$C$45)^(Calculations!BV$3-$BH$3)","v":1690.3666666666666},{"$f":"(($U39+($O39)*IF(MOD(BW$3,$I39)=1,1,0)+Parts!$E$91*IF($J39=0,0,IF(MOD(BW$3,$I39)=1,IF(PQS!$R39=\"NO\",1,0),IF(MOD(BW$3,Calculations!$J39)=1,1,0)))+Parts!$E$92*IF(Calculations!$K39=0,0,IF(MOD(BW$3,$I39)=1,0,IF(MOD(BW$3,Calculations!$K39)=1,1,0))))*$AU39)*(1+'Country Input'!$C$45)^(Calculations!BW$3-$BH$3)","v":1690.3666666666666},{"$f":"(($U39+($O39)*IF(MOD(BX$3,$I39)=1,1,0)+Parts!$E$91*IF($J39=0,0,IF(MOD(BX$3,$I39)=1,IF(PQS!$R39=\"NO\",1,0),IF(MOD(BX$3,Calculations!$J39)=1,1,0)))+Parts!$E$92*IF(Calculations!$K39=0,0,IF(MOD(BX$3,$I39)=1,0,IF(MOD(BX$3,Calculations!$K39)=1,1,0))))*$AU39)*(1+'Country Input'!$C$45)^(Calculations!BX$3-$BH$3)","v":1690.3666666666666},{"$f":"(($U39+($O39)*IF(MOD(BY$3,$I39)=1,1,0)+Parts!$E$91*IF($J39=0,0,IF(MOD(BY$3,$I39)=1,IF(PQS!$R39=\"NO\",1,0),IF(MOD(BY$3,Calculations!$J39)=1,1,0)))+Parts!$E$92*IF(Calculations!$K39=0,0,IF(MOD(BY$3,$I39)=1,0,IF(MOD(BY$3,Calculations!$K39)=1,1,0))))*$AU39)*(1+'Country Input'!$C$45)^(Calculations!BY$3-$BH$3)","v":1690.3666666666666},{"$f":"(($U39+($O39)*IF(MOD(BZ$3,$I39)=1,1,0)+Parts!$E$91*IF($J39=0,0,IF(MOD(BZ$3,$I39)=1,IF(PQS!$R39=\"NO\",1,0),IF(MOD(BZ$3,Calculations!$J39)=1,1,0)))+Parts!$E$92*IF(Calculations!$K39=0,0,IF(MOD(BZ$3,$I39)=1,0,IF(MOD(BZ$3,Calculations!$K39)=1,1,0))))*$AU39)*(1+'Country Input'!$C$45)^(Calculations!BZ$3-$BH$3)","v":1690.3666666666666},{"$f":"(($U39+($O39)*IF(MOD(CA$3,$I39)=1,1,0)+Parts!$E$91*IF($J39=0,0,IF(MOD(CA$3,$I39)=1,IF(PQS!$R39=\"NO\",1,0),IF(MOD(CA$3,Calculations!$J39)=1,1,0)))+Parts!$E$92*IF(Calculations!$K39=0,0,IF(MOD(CA$3,$I39)=1,0,IF(MOD(CA$3,Calculations!$K39)=1,1,0))))*$AU39)*(1+'Country Input'!$C$45)^(Calculations!CA$3-$BH$3)","v":1690.3666666666666},null,"Vestfrost VLS 300A*",22336.978816666669,1690.3666666666666,1690.3666666666666,1690.3666666666666,1690.3666666666666,1690.3666666666666,1690.3666666666666,1690.3666666666666,1690.3666666666666,1690.3666666666666,22336.978816666669,1690.3666666666666,1690.3666666666666,1690.3666666666666,1690.3666666666666,1690.3666666666666,1690.3666666666666,1690.3666666666666,1690.3666666666666,1690.3666666666666,{"$f":"SUM(CD39:INDEX($CD39:$CW39,1,'Total Solution Costs'!$B$2))","v":37550.278816666665},null,"Vestfrost VLS 300A*",{"$f":"SUM($BH39:BH39)","v":22336.978816666669},{"$f":"SUM($BH39:BI39)","v":24027.345483333334},{"$f":"SUM($BH39:BJ39)","v":25717.712149999999},{"$f":"SUM($BH39:BK39)","v":27408.078816666664},{"$f":"SUM($BH39:BL39)","v":29098.445483333329},{"$f":"SUM($BH39:BM39)","v":30788.812149999994},{"$f":"SUM($BH39:BN39)","v":32479.178816666659},{"$f":"SUM($BH39:BO39)","v":34169.545483333328},{"$f":"SUM($BH39:BP39)","v":35859.912149999996},{"$f":"SUM($BH39:BQ39)","v":37550.278816666665},{"$f":"SUM($BH39:BR39)","v":59887.257633333335},{"$f":"SUM($BH39:BS39)","v":61577.624300000003},{"$f":"SUM($BH39:BT39)","v":63267.990966666672},{"$f":"SUM($BH39:BU39)","v":64958.35763333334},{"$f":"SUM($BH39:BV39)","v":66648.724300000002},{"$f":"SUM($BH39:BW39)","v":68339.09096666667},{"$f":"SUM($BH39:BX39)","v":70029.457633333339},{"$f":"SUM($BH39:BY39)","v":71719.824300000007},{"$f":"SUM($BH39:BZ39)","v":73410.190966666676},{"$f":"SUM($BH39:CA39)","v":75100.557633333345}]
[{"$f":"PQS!A40","v":"ILR"},{"$f":"PQS!B40","v":"E003/064"},{"$f":"PQS!E40","v":"VLS 350A*"},{"$f":"PQS!F40","v":"Vestfrost"},{"$f":"PQS!D40","v":"Vestfrost VLS 350A*"},{"$f":"VLOOKUP(E40,PQS!$D$5:$K$107,COLUMN(PQS!$I$3)-COLUMN(PQS!$D$3)+1,FALSE)","v":127},{"$f":"VLOOKUP(E40,PQS!$D$5:$K$107,COLUMN(PQS!$J$3)-COLUMN(PQS!$D$3)+1,FALSE)","v":0},{"$f":"VLOOKUP(E40,PQS!$D$5:$K$107,COLUMN(PQS!$G$3)-COLUMN(PQS!$D$3)+1,FALSE)","v":"Yes"},{"$f":"HLOOKUP(B40,INDIRECT(\"'\"&A40&\"'!$10:$15\"),ROW('Technology template'!$A$11)-ROW('Technology template'!$A$10)+1,FALSE)","v":10},{"$f":"HLOOKUP(B40,INDIRECT(\"'\"&A40&\"'!$10:$15\"),ROW('Technology template'!$A$12)-ROW('Technology template'!$A$10)+1,FALSE)","v":0},{"$f":"HLOOKUP(B40,INDIRECT(\"'\"&A40&\"'!$10:$15\"),ROW('Technology template'!$A$13)-ROW('Technology template'!$A$10)+1,FALSE)","v":0},{"$f":"VLOOKUP(B40,PQS!$B:$Q,MATCH(PQS!$Q$3,PQS!$B$3:$Q$3,0),FALSE)*(1+'Country Input'!$C$47)+HLOOKUP(B40,INDIRECT(\"'\"&A40&\"'!$10:$15\"),ROW('Technology template'!$A$14)-ROW('Technology template'!$A$10)+1,FALSE)*(1+'Country Input'!$C$47)","v":1131.1612000000002},{"$f":"HLOOKUP(B40,INDIRECT(\"'\"&A40&\"'!$10:$80\"),MATCH('Technology template'!$A$27,INDIRECT(\"'\"&A40&\"'!$A$10:$A$80\"),0),FALSE)+'Labor and Maintenance '!$E$22","v":748},{"$f":"VLOOKUP(B40,PQS!B:T,MATCH(PQS!$T$3,PQS!$B$3:$T$3,0),FALSE)*(1+'Country Input'!$C$47)","v":309.19779299999999},2188.3589930000003,218.83589930000002,{"$f":"VLOOKUP(B40,PQS!$B:$AE,COLUMN(PQS!AD38)-1,FALSE)","v":45.26},{"$f":"IFERROR(1/HLOOKUP(B40,INDIRECT(\"'\"&A40&\"'!$10:$80\"),MATCH('Technology template'!$A$31,INDIRECT(\"'\"&A40&\"'!$A$10:$A$80\"),0),FALSE)*HLOOKUP(B40,INDIRECT(\"'\"&A40&\"'!$10:$80\"),MATCH('Technology template'!$A$41,INDIRECT(\"'\"&A40&\"'!$A10:$A$80\"),0),FALSE),0)*TechnicianHourlyWage+IF(A40=\"Solar w Battery\",1/'Labor and Maintenance '!$E$53*'Labor and Maintenance '!$D$53,0)+IF(A40=\"LT passive\", 1/'Labor and Maintenance '!$E$81*'Labor and Maintenance '!$D$81,0)","v":24},{"$f":"IFERROR(1/HLOOKUP(B40,INDIRECT(\"'\"&A40&\"'!$10:$80\"),MATCH('Technology template'!$A$34,INDIRECT(\"'\"&A40&\"'!$A$10:$A$80\"),0),FALSE)*(HLOOKUP(B40,INDIRECT(\"'\"&A40&\"'!$10:$80\"),MATCH('Technology template'!$A$44,INDIRECT(\"'\"&A40&\"'!$A10:$A$80\"),0),FALSE)*TechnicianHourlyWage+RemoteTravelCostPerDay),0)+IFERROR(1/HLOOKUP(B40,INDIRECT(\"'\"&A40&\"'!$10:$80\"),MATCH('Technology template'!$A$35,INDIRECT(\"'\"&A40&\"'!$A$10:$A$80\"),0),FALSE)*(HLOOKUP(B40,INDIRECT(\"'\"&A40&\"'!$10:$80\"),MATCH('Technology template'!$A$45,INDIRECT(\"'\"&A40&\"'!$A10:$A$80\"),0),FALSE)*TechnicianHourlyWage+RemoteTravelCostPerDay),0)+IFERROR(1/HLOOKUP(B40,INDIRECT(\"'\"&A40&\"'!$10:$80\"),MATCH('Technology template'!$A$37,INDIRECT(\"'\"&A40&\"'!$A$10:$A$80\"),0),FALSE)*(HLOOKUP(B40,INDIRECT(\"'\"&A40&\"'!$10:$80\"),MATCH('Technology template'!$A$46,INDIRECT(\"'\"&A40&\"'!$A10:$A$80\"),0),FALSE)*TechnicianHourlyWage+'Labor and Maintenance '!$B$8),0)","v":94.666666666666657},1639.2666666666664,163.92666666666665,382.76256596666667,null,"Vestfrost VLS 350A*",17.231173173228349,12.907611548556428,30.138784721784777,null,"Vestfrost VLS 350A*",1.7231173173228349,1.2907611548556428,3.0138784721784777,null,"Vestfrost VLS 350A*",1,2188.3589930000003,1639.2666666666664,3827.6256596666667,null,"Vestfrost VLS 350A*",1,1.7231173173228349,1.2907611548556428,3.0138784721784777,null,"Vestfrost VLS 350A*",{"$f":"IF(F40=0, 'Country Input'!$D$7, ROUNDUP(LitersPerFacility/F40,0)*'Country Input'!$D$7)","v":10},21883.589930000002,1639.2666666666664,23522.856596666668,null,"Vestfrost VLS 350A*",{"$f":"ROUNDUP(LitersPerFacility/F40,0)*'Country Input'!$D$7*ROUNDUP('Total Solution Costs'!$B$2/Calculations!I40,0)","v":10},{"$f":"BA40*AD40","v":17.231173173228349},1.2907611548556428,18.521934328083994,null,null,"Vestfrost VLS 350A*",{"$f":"(($U40+($O40)*IF(MOD(BH$3,$I40)=1,1,0)+Parts!$E$91*IF($J40=0,0,IF(MOD(BH$3,$I40)=1,IF(PQS!$R40=\"NO\",1,0),IF(MOD(BH$3,Calculations!$J40)=1,1,0)))+Parts!$E$92*IF(Calculations!$K40=0,0,IF(MOD(BH$3,$I40)=1,0,IF(MOD(BH$3,Calculations!$K40)=1,1,0))))*$AU40)*(1+'Country Input'!$C$45)^(Calculations!BH$3-$BH$3)+TrainingCost","v":23522.856596666672},{"$f":"(($U40+($O40)*IF(MOD(BI$3,$I40)=1,1,0)+Parts!$E$91*IF($J40=0,0,IF(MOD(BI$3,$I40)=1,IF(PQS!$R40=\"NO\",1,0),IF(MOD(BI$3,Calculations!$J40)=1,1,0)))+Parts!$E$92*IF(Calculations!$K40=0,0,IF(MOD(BI$3,$I40)=1,0,IF(MOD(BI$3,Calculations!$K40)=1,1,0))))*$AU40)*(1+'Country Input'!$C$45)^(Calculations!BI$3-$BH$3)","v":1639.2666666666664},{"$f":"(($U40+($O40)*IF(MOD(BJ$3,$I40)=1,1,0)+Parts!$E$91*IF($J40=0,0,IF(MOD(BJ$3,$I40)=1,IF(PQS!$R40=\"NO\",1,0),IF(MOD(BJ$3,Calculations!$J40)=1,1,0)))+Parts!$E$92*IF(Calculations!$K40=0,0,IF(MOD(BJ$3,$I40)=1,0,IF(MOD(BJ$3,Calculations!$K40)=1,1,0))))*$AU40)*(1+'Country Input'!$C$45)^(Calculations!BJ$3-$BH$3)","v":1639.2666666666664},{"$f":"(($U40+($O40)*IF(MOD(BK$3,$I40)=1,1,0)+Parts!$E$91*IF($J40=0,0,IF(MOD(BK$3,$I40)=1,IF(PQS!$R40=\"NO\",1,0),IF(MOD(BK$3,Calculations!$J40)=1,1,0)))+Parts!$E$92*IF(Calculations!$K40=0,0,IF(MOD(BK$3,$I40)=1,0,IF(MOD(BK$3,Calculations!$K40)=1,1,0))))*$AU40)*(1+'Country Input'!$C$45)^(Calculations!BK$3-$BH$3)","v":1639.2666666666664},{"$f":"(($U40+($O40)*IF(MOD(BL$3,$I40)=1,1,0)+Parts!$E$91*IF($J40=0,0,IF(MOD(BL$3,$I40)=1,IF(PQS!$R40=\"NO\",1,0),IF(MOD(BL$3,Calculations!$J40)=1,1,0)))+Parts!$E$92*IF(Calculations!$K40=0,0,IF(MOD(BL$3,$I40)=1,0,IF(MOD(BL$3,Calculations!$K40)=1,1,0))))*$AU40)*(1+'Country Input'!$C$45)^(Calculations!BL$3-$BH$3)","v":1639.2666666666664},{"$f":"(($U40+($O40)*IF(MOD(BM$3,$I40)=1,1,0)+Parts!$E$91*IF($J40=0,0,IF(MOD(BM$3,$I40)=1,IF(PQS!$R40=\"NO\",1,0),IF(MOD(BM$3,Calculations!$J40)=1,1,0)))+Parts!$E$92*IF(Calculations!$K40=0,0,IF(MOD(BM$3,$I40)=1,0,IF(MOD(BM$3,Calculations!$K40)=1,1,0))))*$AU40)*(1+'Country Input'!$C$45)^(Calculations!BM$3-$BH$3)","v":1639.2666666666664},{"$f":"(($U40+($O40)*IF(MOD(BN$3,$I40)=1,1,0)+Parts!$E$91*IF($J40=0,0,IF(MOD(BN$3,$I40)=1,IF(PQS!$R40=\"NO\",1,0),IF(MOD(BN$3,Calculations!$J40)=1,1,0)))+Parts!$E$92*IF(Calculations!$K40=0,0,IF(MOD(BN$3,$I40)=1,0,IF(MOD(BN$3,Calculations!$K40)=1,1,0))))*$AU40)*(1+'Country Input'!$C$45)^(Calculations!BN$3-$BH$3)","v":1639.2666666666664},{"$f":"(($U40+($O40)*IF(MOD(BO$3,$I40)=1,1,0)+Parts!$E$91*IF($J40=0,0,IF(MOD(BO$3,$I40)=1,IF(PQS!$R40=\"NO\",1,0),IF(MOD(BO$3,Calculations!$J40)=1,1,0)))+Parts!$E$92*IF(Calculations!$K40=0,0,IF(MOD(BO$3,$I40)=1,0,IF(MOD(BO$3,Calculations!$K40)=1,1,0))))*$AU40)*(1+'Country Input'!$C$45)^(Calculations!BO$3-$BH$3)","v":1639.2666666666664},{"$f":"(($U40+($O40)*IF(MOD(BP$3,$I40)=1,1,0)+Parts!$E$91*IF($J40=0,0,IF(MOD(BP$3,$I40)=1,IF(PQS!$R40=\"NO\",1,0),IF(MOD(BP$3,Calculations!$J40)=1,1,0)))+Parts!$E$92*IF(Calculations!$K40=0,0,IF(MOD(BP$3,$I40)=1,0,IF(MOD(BP$3,Calculations!$K40)=1,1,0))))*$AU40)*(1+'Country Input'!$C$45)^(Calculations!BP$3-$BH$3)","v":1639.2666666666664},{"$f":"(($U40+($O40)*IF(MOD(BQ$3,$I40)=1,1,0)+Parts!$E$91*IF($J40=0,0,IF(MOD(BQ$3,$I40)=1,IF(PQS!$R40=\"NO\",1,0),IF(MOD(BQ$3,Calculations!$J40)=1,1,0)))+Parts!$E$92*IF(Calculations!$K40=0,0,IF(MOD(BQ$3,$I40)=1,0,IF(MOD(BQ$3,Calculations!$K40)=1,1,0))))*$AU40)*(1+'Country Input'!$C$45)^(Calculations!BQ$3-$BH$3)","v":1639.2666666666664},{"$f":"(($U40+($O40)*IF(MOD(BR$3,$I40)=1,1,0)+Parts!$E$91*IF($J40=0,0,IF(MOD(BR$3,$I40)=1,IF(PQS!$R40=\"NO\",1,0),IF(MOD(BR$3,Calculations!$J40)=1,1,0)))+Parts!$E$92*IF(Calculations!$K40=0,0,IF(MOD(BR$3,$I40)=1,0,IF(MOD(BR$3,Calculations!$K40)=1,1,0))))*$AU40)*(1+'Country Input'!$C$45)^(Calculations!BR$3-$BH$3)","v":23522.856596666672},{"$f":"(($U40+($O40)*IF(MOD(BS$3,$I40)=1,1,0)+Parts!$E$91*IF($J40=0,0,IF(MOD(BS$3,$I40)=1,IF(PQS!$R40=\"NO\",1,0),IF(MOD(BS$3,Calculations!$J40)=1,1,0)))+Parts!$E$92*IF(Calculations!$K40=0,0,IF(MOD(BS$3,$I40)=1,0,IF(MOD(BS$3,Calculations!$K40)=1,1,0))))*$AU40)*(1+'Country Input'!$C$45)^(Calculations!BS$3-$BH$3)","v":1639.2666666666664},{"$f":"(($U40+($O40)*IF(MOD(BT$3,$I40)=1,1,0)+Parts!$E$91*IF($J40=0,0,IF(MOD(BT$3,$I40)=1,IF(PQS!$R40=\"NO\",1,0),IF(MOD(BT$3,Calculations!$J40)=1,1,0)))+Parts!$E$92*IF(Calculations!$K40=0,0,IF(MOD(BT$3,$I40)=1,0,IF(MOD(BT$3,Calculations!$K40)=1,1,0))))*$AU40)*(1+'Country Input'!$C$45)^(Calculations!BT$3-$BH$3)","v":1639.2666666666664},{"$f":"(($U40+($O40)*IF(MOD(BU$3,$I40)=1,1,0)+Parts!$E$91*IF($J40=0,0,IF(MOD(BU$3,$I40)=1,IF(PQS!$R40=\"NO\",1,0),IF(MOD(BU$3,Calculations!$J40)=1,1,0)))+Parts!$E$92*IF(Calculations!$K40=0,0,IF(MOD(BU$3,$I40)=1,0,IF(MOD(BU$3,Calculations!$K40)=1,1,0))))*$AU40)*(1+'Country Input'!$C$45)^(Calculations!BU$3-$BH$3)","v":1639.2666666666664},{"$f":"(($U40+($O40)*IF(MOD(BV$3,$I40)=1,1,0)+Parts!$E$91*IF($J40=0,0,IF(MOD(BV$3,$I40)=1,IF(PQS!$R40=\"NO\",1,0),IF(MOD(BV$3,Calculations!$J40)=1,1,0)))+Parts!$E$92*IF(Calculations!$K40=0,0,IF(MOD(BV$3,$I40)=1,0,IF(MOD(BV$3,Calculations!$K40)=1,1,0))))*$AU40)*(1+'Country Input'!$C$45)^(Calculations!BV$3-$BH$3)","v":1639.2666666666664},{"$f":"(($U40+($O40)*IF(MOD(BW$3,$I40)=1,1,0)+Parts!$E$91*IF($J40=0,0,IF(MOD(BW$3,$I40)=1,IF(PQS!$R40=\"NO\",1,0),IF(MOD(BW$3,Calculations!$J40)=1,1,0)))+Parts!$E$92*IF(Calculations!$K40=0,0,IF(MOD(BW$3,$I40)=1,0,IF(MOD(BW$3,Calculations!$K40)=1,1,0))))*$AU40)*(1+'Country Input'!$C$45)^(Calculations!BW$3-$BH$3)","v":1639.2666666666664},{"$f":"(($U40+($O40)*IF(MOD(BX$3,$I40)=1,1,0)+Parts!$E$91*IF($J40=0,0,IF(MOD(BX$3,$I40)=1,IF(PQS!$R40=\"NO\",1,0),IF(MOD(BX$3,Calculations!$J40)=1,1,0)))+Parts!$E$92*IF(Calculations!$K40=0,0,IF(MOD(BX$3,$I40)=1,0,IF(MOD(BX$3,Calculations!$K40)=1,1,0))))*$AU40)*(1+'Country Input'!$C$45)^(Calculations!BX$3-$BH$3)","v":1639.2666666666664},{"$f":"(($U40+($O40)*IF(MOD(BY$3,$I40)=1,1,0)+Parts!$E$91*IF($J40=0,0,IF(MOD(BY$3,$I40)=1,IF(PQS!$R40=\"NO\",1,0),IF(MOD(BY$3,Calculations!$J40)=1,1,0)))+Parts!$E$92*IF(Calculations!$K40=0,0,IF(MOD(BY$3,$I40)=1,0,IF(MOD(BY$3,Calculations!$K40)=1,1,0))))*$AU40)*(1+'Country Input'!$C$45)^(Calculations!BY$3-$BH$3)","v":1639.2666666666664},{"$f":"(($U40+($O40)*IF(MOD(BZ$3,$I40)=1,1,0)+Parts!$E$91*IF($J40=0,0,IF(MOD(BZ$3,$I40)=1,IF(PQS!$R40=\"NO\",1,0),IF(MOD(BZ$3,Calculations!$J40)=1,1,0)))+Parts!$E$92*IF(Calculations!$K40=0,0,IF(MOD(BZ$3,$I40)=1,0,IF(MOD(BZ$3,Calculations!$K40)=1,1,0))))*$AU40)*(1+'Country Input'!$C$45)^(Calculations!BZ$3-$BH$3)","v":1639.2666666666664},{"$f":"(($U40+($O40)*IF(MOD(CA$3,$I40)=1,1,0)+Parts!$E$91*IF($J40=0,0,IF(MOD(CA$3,$I40)=1,IF(PQS!$R40=\"NO\",1,0),IF(MOD(CA$3,Calculations!$J40)=1,1,0)))+Parts!$E$92*IF(Calculations!$K40=0,0,IF(MOD(CA$3,$I40)=1,0,IF(MOD(CA$3,Calculations!$K40)=1,1,0))))*$AU40)*(1+'Country Input'!$C$45)^(Calculations!CA$3-$BH$3)","v":1639.2666666666664},null,"Vestfrost VLS 350A*",23522.856596666672,1639.2666666666664,1639.2666666666664,1639.2666666666664,1639.2666666666664,1639.2666666666664,1639.2666666666664,1639.2666666666664,1639.2666666666664,1639.2666666666664,23522.856596666672,1639.2666666666664,1639.2666666666664,1639.2666666666664,1639.2666666666664,1639.2666666666664,1639.2666666666664,1639.2666666666664,1639.2666666666664,1639.2666666666664,{"$f":"SUM(CD40:INDEX($CD40:$CW40,1,'Total Solution Costs'!$B$2))","v":38276.256596666659},null,"Vestfrost VLS 350A*",{"$f":"SUM($BH40:BH40)","v":23522.856596666672},{"$f":"SUM($BH40:BI40)","v":25162.123263333338},{"$f":"SUM($BH40:BJ40)","v":26801.389930000005},{"$f":"SUM($BH40:BK40)","v":28440.656596666671},{"$f":"SUM($BH40:BL40)","v":30079.923263333338},{"$f":"SUM($BH40:BM40)","v":31719.189930000004},{"$f":"SUM($BH40:BN40)","v":33358.456596666671},{"$f":"SUM($BH40:BO40)","v":34997.723263333333},{"$f":"SUM($BH40:BP40)","v":36636.989929999996},{"$f":"SUM($BH40:BQ40)","v":38276.256596666659},{"$f":"SUM($BH40:BR40)","v":61799.113193333331},{"$f":"SUM($BH40:BS40)","v":63438.379860000001},{"$f":"SUM($BH40:BT40)","v":65077.646526666664},{"$f":"SUM($BH40:BU40)","v":66716.913193333326},{"$f":"SUM($BH40:BV40)","v":68356.179859999989},{"$f":"SUM($BH40:BW40)","v":69995.446526666652},{"$f":"SUM($BH40:BX40)","v":71634.713193333315},{"$f":"SUM($BH40:BY40)","v":73273.979859999978},{"$f":"SUM($BH40:BZ40)","v":74913.24652666664},{"$f":"SUM($BH40:CA40)","v":76552.513193333303}]
[{"$f":"PQS!A41","v":"ILR"},{"$f":"PQS!B41","v":"E003/065"},{"$f":"PQS!E41","v":"VLS 400A*"},{"$f":"PQS!F41","v":"Vestfrost"},{"$f":"PQS!D41","v":"Vestfrost VLS 400A*"},{"$f":"VLOOKUP(E41,PQS!$D$5:$K$107,COLUMN(PQS!$I$3)-COLUMN(PQS!$D$3)+1,FALSE)","v":145},{"$f":"VLOOKUP(E41,PQS!$D$5:$K$107,COLUMN(PQS!$J$3)-COLUMN(PQS!$D$3)+1,FALSE)","v":0},{"$f":"VLOOKUP(E41,PQS!$D$5:$K$107,COLUMN(PQS!$G$3)-COLUMN(PQS!$D$3)+1,FALSE)","v":"Yes"},{"$f":"HLOOKUP(B41,INDIRECT(\"'\"&A41&\"'!$10:$15\"),ROW('Technology template'!$A$11)-ROW('Technology template'!$A$10)+1,FALSE)","v":10},{"$f":"HLOOKUP(B41,INDIRECT(\"'\"&A41&\"'!$10:$15\"),ROW('Technology template'!$A$12)-ROW('Technology template'!$A$10)+1,FALSE)","v":0},{"$f":"HLOOKUP(B41,INDIRECT(\"'\"&A41&\"'!$10:$15\"),ROW('Technology template'!$A$13)-ROW('Technology template'!$A$10)+1,FALSE)","v":0},{"$f":"VLOOKUP(B41,PQS!$B:$Q,MATCH(PQS!$Q$3,PQS!$B$3:$Q$3,0),FALSE)*(1+'Country Input'!$C$47)+HLOOKUP(B41,INDIRECT(\"'\"&A41&\"'!$10:$15\"),ROW('Technology template'!$A$14)-ROW('Technology template'!$A$10)+1,FALSE)*(1+'Country Input'!$C$47)","v":1225.6315000000002},{"$f":"HLOOKUP(B41,INDIRECT(\"'\"&A41&\"'!$10:$80\"),MATCH('Technology template'!$A$27,INDIRECT(\"'\"&A41&\"'!$A$10:$A$80\"),0),FALSE)+'Labor and Maintenance '!$E$22","v":748},{"$f":"VLOOKUP(B41,PQS!B:T,MATCH(PQS!$T$3,PQS!$B$3:$T$3,0),FALSE)*(1+'Country Input'!$C$47)","v":306.50364000000002},2280.1351400000003,228.01351400000004,{"$f":"VLOOKUP(B41,PQS!$B:$AE,COLUMN(PQS!AD39)-1,FALSE)","v":48.910000000000004},{"$f":"IFERROR(1/HLOOKUP(B41,INDIRECT(\"'\"&A41&\"'!$10:$80\"),MATCH('Technology template'!$A$31,INDIRECT(\"'\"&A41&\"'!$A$10:$A$80\"),0),FALSE)*HLOOKUP(B41,INDIRECT(\"'\"&A41&\"'!$10:$80\"),MATCH('Technology template'!$A$41,INDIRECT(\"'\"&A41&\"'!$A10:$A$80\"),0),FALSE),0)*TechnicianHourlyWage+IF(A41=\"Solar w Battery\",1/'Labor and Maintenance '!$E$53*'Labor and Maintenance '!$D$53,0)+IF(A41=\"LT passive\", 1/'Labor and Maintenance '!$E$81*'Labor and Maintenance '!$D$81,0)","v":24},{"$f":"IFERROR(1/HLOOKUP(B41,INDIRECT(\"'\"&A41&\"'!$10:$80\"),MATCH('Technology template'!$A$34,INDIRECT(\"'\"&A41&\"'!$A$10:$A$80\"),0),FALSE)*(HLOOKUP(B41,INDIRECT(\"'\"&A41&\"'!$10:$80\"),MATCH('Technology template'!$A$44,INDIRECT(\"'\"&A41&\"'!$A10:$A$80\"),0),FALSE)*TechnicianHourlyWage+RemoteTravelCostPerDay),0)+IFERROR(1/HLOOKUP(B41,INDIRECT(\"'\"&A41&\"'!$10:$80\"),MATCH('Technology template'!$A$35,INDIRECT(\"'\"&A41&\"'!$A$10:$A$80\"),0),FALSE)*(HLOOKUP(B41,INDIRECT(\"'\"&A41&\"'!$10:$80\"),MATCH('Technology template'!$A$45,INDIRECT(\"'\"&A41&\"'!$A10:$A$80\"),0),FALSE)*TechnicianHourlyWage+RemoteTravelCostPerDay),0)+IFERROR(1/HLOOKUP(B41,INDIRECT(\"'\"&A41&\"'!$10:$80\"),MATCH('Technology template'!$A$37,INDIRECT(\"'\"&A41&\"'!$A$10:$A$80\"),0),FALSE)*(HLOOKUP(B41,INDIRECT(\"'\"&A41&\"'!$10:$80\"),MATCH('Technology template'!$A$46,INDIRECT(\"'\"&A41&\"'!$A10:$A$80\"),0),FALSE)*TechnicianHourlyWage+'Labor and Maintenance '!$B$8),0)","v":94.666666666666657},1675.7666666666664,167.57666666666665,395.5901806666667,null,"Vestfrost VLS 400A*",15.725069931034485,11.557011494252873,27.282081425287359,null,"Vestfrost VLS 400A*",1.5725069931034485,1.1557011494252873,2.7282081425287359,null,"Vestfrost VLS 400A*",1,2280.1351400000003,1675.7666666666664,3955.9018066666667,null,"Vestfrost VLS 400A*",1,1.5725069931034485,1.1557011494252873,2.7282081425287359,null,"Vestfrost VLS 400A*",{"$f":"IF(F41=0, 'Country Input'!$D$7, ROUNDUP(LitersPerFacility/F41,0)*'Country Input'!$D$7)","v":10},22801.351400000003,1675.7666666666664,24477.11806666667,null,"Vestfrost VLS 400A*",{"$f":"ROUNDUP(LitersPerFacility/F41,0)*'Country Input'!$D$7*ROUNDUP('Total Solution Costs'!$B$2/Calculations!I41,0)","v":10},15.725069931034486,1.1557011494252871,16.880771080459773,null,null,"Vestfrost VLS 400A*",{"$f":"(($U41+($O41)*IF(MOD(BH$3,$I41)=1,1,0)+Parts!$E$91*IF($J41=0,0,IF(MOD(BH$3,$I41)=1,IF(PQS!$R41=\"NO\",1,0),IF(MOD(BH$3,Calculations!$J41)=1,1,0)))+Parts!$E$92*IF(Calculations!$K41=0,0,IF(MOD(BH$3,$I41)=1,0,IF(MOD(BH$3,Calculations!$K41)=1,1,0))))*$AU41)*(1+'Country Input'!$C$45)^(Calculations!BH$3-$BH$3)+TrainingCost","v":24477.11806666667},{"$f":"(($U41+($O41)*IF(MOD(BI$3,$I41)=1,1,0)+Parts!$E$91*IF($J41=0,0,IF(MOD(BI$3,$I41)=1,IF(PQS!$R41=\"NO\",1,0),IF(MOD(BI$3,Calculations!$J41)=1,1,0)))+Parts!$E$92*IF(Calculations!$K41=0,0,IF(MOD(BI$3,$I41)=1,0,IF(MOD(BI$3,Calculations!$K41)=1,1,0))))*$AU41)*(1+'Country Input'!$C$45)^(Calculations!BI$3-$BH$3)","v":1675.7666666666664},{"$f":"(($U41+($O41)*IF(MOD(BJ$3,$I41)=1,1,0)+Parts!$E$91*IF($J41=0,0,IF(MOD(BJ$3,$I41)=1,IF(PQS!$R41=\"NO\",1,0),IF(MOD(BJ$3,Calculations!$J41)=1,1,0)))+Parts!$E$92*IF(Calculations!$K41=0,0,IF(MOD(BJ$3,$I41)=1,0,IF(MOD(BJ$3,Calculations!$K41)=1,1,0))))*$AU41)*(1+'Country Input'!$C$45)^(Calculations!BJ$3-$BH$3)","v":1675.7666666666664},{"$f":"(($U41+($O41)*IF(MOD(BK$3,$I41)=1,1,0)+Parts!$E$91*IF($J41=0,0,IF(MOD(BK$3,$I41)=1,IF(PQS!$R41=\"NO\",1,0),IF(MOD(BK$3,Calculations!$J41)=1,1,0)))+Parts!$E$92*IF(Calculations!$K41=0,0,IF(MOD(BK$3,$I41)=1,0,IF(MOD(BK$3,Calculations!$K41)=1,1,0))))*$AU41)*(1+'Country Input'!$C$45)^(Calculations!BK$3-$BH$3)","v":1675.7666666666664},{"$f":"(($U41+($O41)*IF(MOD(BL$3,$I41)=1,1,0)+Parts!$E$91*IF($J41=0,0,IF(MOD(BL$3,$I41)=1,IF(PQS!$R41=\"NO\",1,0),IF(MOD(BL$3,Calculations!$J41)=1,1,0)))+Parts!$E$92*IF(Calculations!$K41=0,0,IF(MOD(BL$3,$I41)=1,0,IF(MOD(BL$3,Calculations!$K41)=1,1,0))))*$AU41)*(1+'Country Input'!$C$45)^(Calculations!BL$3-$BH$3)","v":1675.7666666666664},{"$f":"(($U41+($O41)*IF(MOD(BM$3,$I41)=1,1,0)+Parts!$E$91*IF($J41=0,0,IF(MOD(BM$3,$I41)=1,IF(PQS!$R41=\"NO\",1,0),IF(MOD(BM$3,Calculations!$J41)=1,1,0)))+Parts!$E$92*IF(Calculations!$K41=0,0,IF(MOD(BM$3,$I41)=1,0,IF(MOD(BM$3,Calculations!$K41)=1,1,0))))*$AU41)*(1+'Country Input'!$C$45)^(Calculations!BM$3-$BH$3)","v":1675.7666666666664},{"$f":"(($U41+($O41)*IF(MOD(BN$3,$I41)=1,1,0)+Parts!$E$91*IF($J41=0,0,IF(MOD(BN$3,$I41)=1,IF(PQS!$R41=\"NO\",1,0),IF(MOD(BN$3,Calculations!$J41)=1,1,0)))+Parts!$E$92*IF(Calculations!$K41=0,0,IF(MOD(BN$3,$I41)=1,0,IF(MOD(BN$3,Calculations!$K41)=1,1,0))))*$AU41)*(1+'Country Input'!$C$45)^(Calculations!BN$3-$BH$3)","v":1675.7666666666664},{"$f":"(($U41+($O41)*IF(MOD(BO$3,$I41)=1,1,0)+Parts!$E$91*IF($J41=0,0,IF(MOD(BO$3,$I41)=1,IF(PQS!$R41=\"NO\",1,0),IF(MOD(BO$3,Calculations!$J41)=1,1,0)))+Parts!$E$92*IF(Calculations!$K41=0,0,IF(MOD(BO$3,$I41)=1,0,IF(MOD(BO$3,Calculations!$K41)=1,1,0))))*$AU41)*(1+'Country Input'!$C$45)^(Calculations!BO$3-$BH$3)","v":1675.7666666666664},{"$f":"(($U41+($O41)*IF(MOD(BP$3,$I41)=1,1,0)+Parts!$E$91*IF($J41=0,0,IF(MOD(BP$3,$I41)=1,IF(PQS!$R41=\"NO\",1,0),IF(MOD(BP$3,Calculations!$J41)=1,1,0)))+Parts!$E$92*IF(Calculations!$K41=0,0,IF(MOD(BP$3,$I41)=1,0,IF(MOD(BP$3,Calculations!$K41)=1,1,0))))*$AU41)*(1+'Country Input'!$C$45)^(Calculations!BP$3-$BH$3)","v":1675.7666666666664},{"$f":"(($U41+($O41)*IF(MOD(BQ$3,$I41)=1,1,0)+Parts!$E$91*IF($J41=0,0,IF(MOD(BQ$3,$I41)=1,IF(PQS!$R41=\"NO\",1,0),IF(MOD(BQ$3,Calculations!$J41)=1,1,0)))+Parts!$E$92*IF(Calculations!$K41=0,0,IF(MOD(BQ$3,$I41)=1,0,IF(MOD(BQ$3,Calculations!$K41)=1,1,0))))*$AU41)*(1+'Country Input'!$C$45)^(Calculations!BQ$3-$BH$3)","v":1675.7666666666664},{"$f":"(($U41+($O41)*IF(MOD(BR$3,$I41)=1,1,0)+Parts!$E$91*IF($J41=0,0,IF(MOD(BR$3,$I41)=1,IF(PQS!$R41=\"NO\",1,0),IF(MOD(BR$3,Calculations!$J41)=1,1,0)))+Parts!$E$92*IF(Calculations!$K41=0,0,IF(MOD(BR$3,$I41)=1,0,IF(MOD(BR$3,Calculations!$K41)=1,1,0))))*$AU41)*(1+'Country Input'!$C$45)^(Calculations!BR$3-$BH$3)","v":24477.11806666667},{"$f":"(($U41+($O41)*IF(MOD(BS$3,$I41)=1,1,0)+Parts!$E$91*IF($J41=0,0,IF(MOD(BS$3,$I41)=1,IF(PQS!$R41=\"NO\",1,0),IF(MOD(BS$3,Calculations!$J41)=1,1,0)))+Parts!$E$92*IF(Calculations!$K41=0,0,IF(MOD(BS$3,$I41)=1,0,IF(MOD(BS$3,Calculations!$K41)=1,1,0))))*$AU41)*(1+'Country Input'!$C$45)^(Calculations!BS$3-$BH$3)","v":1675.7666666666664},{"$f":"(($U41+($O41)*IF(MOD(BT$3,$I41)=1,1,0)+Parts!$E$91*IF($J41=0,0,IF(MOD(BT$3,$I41)=1,IF(PQS!$R41=\"NO\",1,0),IF(MOD(BT$3,Calculations!$J41)=1,1,0)))+Parts!$E$92*IF(Calculations!$K41=0,0,IF(MOD(BT$3,$I41)=1,0,IF(MOD(BT$3,Calculations!$K41)=1,1,0))))*$AU41)*(1+'Country Input'!$C$45)^(Calculations!BT$3-$BH$3)","v":1675.7666666666664},{"$f":"(($U41+($O41)*IF(MOD(BU$3,$I41)=1,1,0)+Parts!$E$91*IF($J41=0,0,IF(MOD(BU$3,$I41)=1,IF(PQS!$R41=\"NO\",1,0),IF(MOD(BU$3,Calculations!$J41)=1,1,0)))+Parts!$E$92*IF(Calculations!$K41=0,0,IF(MOD(BU$3,$I41)=1,0,IF(MOD(BU$3,Calculations!$K41)=1,1,0))))*$AU41)*(1+'Country Input'!$C$45)^(Calculations!BU$3-$BH$3)","v":1675.7666666666664},{"$f":"(($U41+($O41)*IF(MOD(BV$3,$I41)=1,1,0)+Parts!$E$91*IF($J41=0,0,IF(MOD(BV$3,$I41)=1,IF(PQS!$R41=\"NO\",1,0),IF(MOD(BV$3,Calculations!$J41)=1,1,0)))+Parts!$E$92*IF(Calculations!$K41=0,0,IF(MOD(BV$3,$I41)=1,0,IF(MOD(BV$3,Calculations!$K41)=1,1,0))))*$AU41)*(1+'Country Input'!$C$45)^(Calculations!BV$3-$BH$3)","v":1675.7666666666664},{"$f":"(($U41+($O41)*IF(MOD(BW$3,$I41)=1,1,0)+Parts!$E$91*IF($J41=0,0,IF(MOD(BW$3,$I41)=1,IF(PQS!$R41=\"NO\",1,0),IF(MOD(BW$3,Calculations!$J41)=1,1,0)))+Parts!$E$92*IF(Calculations!$K41=0,0,IF(MOD(BW$3,$I41)=1,0,IF(MOD(BW$3,Calculations!$K41)=1,1,0))))*$AU41)*(1+'Country Input'!$C$45)^(Calculations!BW$3-$BH$3)","v":1675.7666666666664},{"$f":"(($U41+($O41)*IF(MOD(BX$3,$I41)=1,1,0)+Parts!$E$91*IF($J41=0,0,IF(MOD(BX$3,$I41)=1,IF(PQS!$R41=\"NO\",1,0),IF(MOD(BX$3,Calculations!$J41)=1,1,0)))+Parts!$E$92*IF(Calculations!$K41=0,0,IF(MOD(BX$3,$I41)=1,0,IF(MOD(BX$3,Calculations!$K41)=1,1,0))))*$AU41)*(1+'Country Input'!$C$45)^(Calculations!BX$3-$BH$3)","v":1675.7666666666664},{"$f":"(($U41+($O41)*IF(MOD(BY$3,$I41)=1,1,0)+Parts!$E$91*IF($J41=0,0,IF(MOD(BY$3,$I41)=1,IF(PQS!$R41=\"NO\",1,0),IF(MOD(BY$3,Calculations!$J41)=1,1,0)))+Parts!$E$92*IF(Calculations!$K41=0,0,IF(MOD(BY$3,$I41)=1,0,IF(MOD(BY$3,Calculations!$K41)=1,1,0))))*$AU41)*(1+'Country Input'!$C$45)^(Calculations!BY$3-$BH$3)","v":1675.7666666666664},{"$f":"(($U41+($O41)*IF(MOD(BZ$3,$I41)=1,1,0)+Parts!$E$91*IF($J41=0,0,IF(MOD(BZ$3,$I41)=1,IF(PQS!$R41=\"NO\",1,0),IF(MOD(BZ$3,Calculations!$J41)=1,1,0)))+Parts!$E$92*IF(Calculations!$K41=0,0,IF(MOD(BZ$3,$I41)=1,0,IF(MOD(BZ$3,Calculations!$K41)=1,1,0))))*$AU41)*(1+'Country Input'!$C$45)^(Calculations!BZ$3-$BH$3)","v":1675.7666666666664},{"$f":"(($U41+($O41)*IF(MOD(CA$3,$I41)=1,1,0)+Parts!$E$91*IF($J41=0,0,IF(MOD(CA$3,$I41)=1,IF(PQS!$R41=\"NO\",1,0),IF(MOD(CA$3,Calculations!$J41)=1,1,0)))+Parts!$E$92*IF(Calculations!$K41=0,0,IF(MOD(CA$3,$I41)=1,0,IF(MOD(CA$3,Calculations!$K41)=1,1,0))))*$AU41)*(1+'Country Input'!$C$45)^(Calculations!CA$3-$BH$3)","v":1675.7666666666664},null,"Vestfrost VLS 400A*",24477.11806666667,1675.7666666666664,1675.7666666666664,1675.7666666666664,1675.7666666666664,1675.7666666666664,1675.7666666666664,1675.7666666666664,1675.7666666666664,1675.7666666666664,24477.11806666667,1675.7666666666664,1675.7666666666664,1675.7666666666664,1675.7666666666664,1675.7666666666664,1675.7666666666664,1675.7666666666664,1675.7666666666664,1675.7666666666664,{"$f":"SUM(CD41:INDEX($CD41:$CW41,1,'Total Solution Costs'!$B$2))","v":39559.018066666657},null,"Vestfrost VLS 400A*",{"$f":"SUM($BH41:BH41)","v":24477.11806666667},{"$f":"SUM($BH41:BI41)","v":26152.884733333336},{"$f":"SUM($BH41:BJ41)","v":27828.651400000002},{"$f":"SUM($BH41:BK41)","v":29504.418066666669},{"$f":"SUM($BH41:BL41)","v":31180.184733333335},{"$f":"SUM($BH41:BM41)","v":32855.951400000005},{"$f":"SUM($BH41:BN41)","v":34531.718066666668},{"$f":"SUM($BH41:BO41)","v":36207.484733333331},{"$f":"SUM($BH41:BP41)","v":37883.251399999994},{"$f":"SUM($BH41:BQ41)","v":39559.018066666657},{"$f":"SUM($BH41:BR41)","v":64036.136133333326},{"$f":"SUM($BH41:BS41)","v":65711.902799999996},{"$f":"SUM($BH41:BT41)","v":67387.669466666659},{"$f":"SUM($BH41:BU41)","v":69063.436133333322},{"$f":"SUM($BH41:BV41)","v":70739.202799999985},{"$f":"SUM($BH41:BW41)","v":72414.969466666647},{"$f":"SUM($BH41:BX41)","v":74090.73613333331},{"$f":"SUM($BH41:BY41)","v":75766.502799999973},{"$f":"SUM($BH41:BZ41)","v":77442.269466666636},{"$f":"SUM($BH41:CA41)","v":79118.036133333298}]
[{"$f":"PQS!A42","v":"ILR"},{"$f":"PQS!B42","v":"E003/066"},{"$f":"PQS!E42","v":"TCW 4000 AC*"},{"$f":"PQS!F42","v":"B Medical"},{"$f":"PQS!D42","v":"B Medical TCW 4000 AC*"},{"$f":"VLOOKUP(E42,PQS!$D$5:$K$107,COLUMN(PQS!$I$3)-COLUMN(PQS!$D$3)+1,FALSE)","v":240},{"$f":"VLOOKUP(E42,PQS!$D$5:$K$107,COLUMN(PQS!$J$3)-COLUMN(PQS!$D$3)+1,FALSE)","v":0},{"$f":"VLOOKUP(E42,PQS!$D$5:$K$107,COLUMN(PQS!$G$3)-COLUMN(PQS!$D$3)+1,FALSE)","v":"Yes"},{"$f":"HLOOKUP(B42,INDIRECT(\"'\"&A42&\"'!$10:$15\"),ROW('Technology template'!$A$11)-ROW('Technology template'!$A$10)+1,FALSE)","v":10},{"$f":"HLOOKUP(B42,INDIRECT(\"'\"&A42&\"'!$10:$15\"),ROW('Technology template'!$A$12)-ROW('Technology template'!$A$10)+1,FALSE)","v":0},{"$f":"HLOOKUP(B42,INDIRECT(\"'\"&A42&\"'!$10:$15\"),ROW('Technology template'!$A$13)-ROW('Technology template'!$A$10)+1,FALSE)","v":0},{"$f":"VLOOKUP(B42,PQS!$B:$Q,MATCH(PQS!$Q$3,PQS!$B$3:$Q$3,0),FALSE)*(1+'Country Input'!$C$47)+HLOOKUP(B42,INDIRECT(\"'\"&A42&\"'!$10:$15\"),ROW('Technology template'!$A$14)-ROW('Technology template'!$A$10)+1,FALSE)*(1+'Country Input'!$C$47)","v":3910.4541000000004},{"$f":"HLOOKUP(B42,INDIRECT(\"'\"&A42&\"'!$10:$80\"),MATCH('Technology template'!$A$27,INDIRECT(\"'\"&A42&\"'!$A$10:$A$80\"),0),FALSE)+'Labor and Maintenance '!$E$22","v":748},{"$f":"VLOOKUP(B42,PQS!B:T,MATCH(PQS!$T$3,PQS!$B$3:$T$3,0),FALSE)*(1+'Country Input'!$C$47)","v":593.8449710000001},5252.2990710000013,525.2299071000001,{"$f":"VLOOKUP(B42,PQS!$B:$AE,COLUMN(PQS!AD40)-1,FALSE)","v":62.050000000000004},{"$f":"IFERROR(1/HLOOKUP(B42,INDIRECT(\"'\"&A42&\"'!$10:$80\"),MATCH('Technology template'!$A$31,INDIRECT(\"'\"&A42&\"'!$A$10:$A$80\"),0),FALSE)*HLOOKUP(B42,INDIRECT(\"'\"&A42&\"'!$10:$80\"),MATCH('Technology template'!$A$41,INDIRECT(\"'\"&A42&\"'!$A10:$A$80\"),0),FALSE),0)*TechnicianHourlyWage+IF(A42=\"Solar w Battery\",1/'Labor and Maintenance '!$E$53*'Labor and Maintenance '!$D$53,0)+IF(A42=\"LT passive\", 1/'Labor and Maintenance '!$E$81*'Labor and Maintenance '!$D$81,0)","v":24},{"$f":"IFERROR(1/HLOOKUP(B42,INDIRECT(\"'\"&A42&\"'!$10:$80\"),MATCH('Technology template'!$A$34,INDIRECT(\"'\"&A42&\"'!$A$10:$A$80\"),0),FALSE)*(HLOOKUP(B42,INDIRECT(\"'\"&A42&\"'!$10:$80\"),MATCH('Technology template'!$A$44,INDIRECT(\"'\"&A42&\"'!$A10:$A$80\"),0),FALSE)*TechnicianHourlyWage+RemoteTravelCostPerDay),0)+IFERROR(1/HLOOKUP(B42,INDIRECT(\"'\"&A42&\"'!$10:$80\"),MATCH('Technology template'!$A$35,INDIRECT(\"'\"&A42&\"'!$A$10:$A$80\"),0),FALSE)*(HLOOKUP(B42,INDIRECT(\"'\"&A42&\"'!$10:$80\"),MATCH('Technology template'!$A$45,INDIRECT(\"'\"&A42&\"'!$A10:$A$80\"),0),FALSE)*TechnicianHourlyWage+RemoteTravelCostPerDay),0)+IFERROR(1/HLOOKUP(B42,INDIRECT(\"'\"&A42&\"'!$10:$80\"),MATCH('Technology template'!$A$37,INDIRECT(\"'\"&A42&\"'!$A$10:$A$80\"),0),FALSE)*(HLOOKUP(B42,INDIRECT(\"'\"&A42&\"'!$10:$80\"),MATCH('Technology template'!$A$46,INDIRECT(\"'\"&A42&\"'!$A10:$A$80\"),0),FALSE)*TechnicianHourlyWage+'Labor and Maintenance '!$B$8),0)","v":94.666666666666657},1807.1666666666667,180.71666666666667,705.9465737666668,null,"B Medical TCW 4000 AC*",21.884579462500007,7.5298611111111118,29.414440573611117,null,"B Medical TCW 4000 AC*",2.1884579462500002,0.75298611111111113,2.9414440573611116,null,"B Medical TCW 4000 AC*",1,5252.2990710000013,1807.1666666666667,7059.4657376666682,null,"B Medical TCW 4000 AC*",1,2.1884579462500002,0.75298611111111113,2.9414440573611111,null,"B Medical TCW 4000 AC*",{"$f":"IF(F42=0, 'Country Input'!$D$7, ROUNDUP(LitersPerFacility/F42,0)*'Country Input'!$D$7)","v":10},52522.990710000013,1807.1666666666667,54330.157376666677,null,"B Medical TCW 4000 AC*",{"$f":"ROUNDUP(LitersPerFacility/F42,0)*'Country Input'!$D$7*ROUNDUP('Total Solution Costs'!$B$2/Calculations!I42,0)","v":10},21.884579462500003,0.75298611111111113,22.637565573611113,null,null,"B Medical TCW 4000 AC*",{"$f":"(($U42+($O42)*IF(MOD(BH$3,$I42)=1,1,0)+Parts!$E$91*IF($J42=0,0,IF(MOD(BH$3,$I42)=1,IF(PQS!$R42=\"NO\",1,0),IF(MOD(BH$3,Calculations!$J42)=1,1,0)))+Parts!$E$92*IF(Calculations!$K42=0,0,IF(MOD(BH$3,$I42)=1,0,IF(MOD(BH$3,Calculations!$K42)=1,1,0))))*$AU42)*(1+'Country Input'!$C$45)^(Calculations!BH$3-$BH$3)+TrainingCost","v":54330.157376666677},{"$f":"(($U42+($O42)*IF(MOD(BI$3,$I42)=1,1,0)+Parts!$E$91*IF($J42=0,0,IF(MOD(BI$3,$I42)=1,IF(PQS!$R42=\"NO\",1,0),IF(MOD(BI$3,Calculations!$J42)=1,1,0)))+Parts!$E$92*IF(Calculations!$K42=0,0,IF(MOD(BI$3,$I42)=1,0,IF(MOD(BI$3,Calculations!$K42)=1,1,0))))*$AU42)*(1+'Country Input'!$C$45)^(Calculations!BI$3-$BH$3)","v":1807.1666666666667},{"$f":"(($U42+($O42)*IF(MOD(BJ$3,$I42)=1,1,0)+Parts!$E$91*IF($J42=0,0,IF(MOD(BJ$3,$I42)=1,IF(PQS!$R42=\"NO\",1,0),IF(MOD(BJ$3,Calculations!$J42)=1,1,0)))+Parts!$E$92*IF(Calculations!$K42=0,0,IF(MOD(BJ$3,$I42)=1,0,IF(MOD(BJ$3,Calculations!$K42)=1,1,0))))*$AU42)*(1+'Country Input'!$C$45)^(Calculations!BJ$3-$BH$3)","v":1807.1666666666667},{"$f":"(($U42+($O42)*IF(MOD(BK$3,$I42)=1,1,0)+Parts!$E$91*IF($J42=0,0,IF(MOD(BK$3,$I42)=1,IF(PQS!$R42=\"NO\",1,0),IF(MOD(BK$3,Calculations!$J42)=1,1,0)))+Parts!$E$92*IF(Calculations!$K42=0,0,IF(MOD(BK$3,$I42)=1,0,IF(MOD(BK$3,Calculations!$K42)=1,1,0))))*$AU42)*(1+'Country Input'!$C$45)^(Calculations!BK$3-$BH$3)","v":1807.1666666666667},{"$f":"(($U42+($O42)*IF(MOD(BL$3,$I42)=1,1,0)+Parts!$E$91*IF($J42=0,0,IF(MOD(BL$3,$I42)=1,IF(PQS!$R42=\"NO\",1,0),IF(MOD(BL$3,Calculations!$J42)=1,1,0)))+Parts!$E$92*IF(Calculations!$K42=0,0,IF(MOD(BL$3,$I42)=1,0,IF(MOD(BL$3,Calculations!$K42)=1,1,0))))*$AU42)*(1+'Country Input'!$C$45)^(Calculations!BL$3-$BH$3)","v":1807.1666666666667},{"$f":"(($U42+($O42)*IF(MOD(BM$3,$I42)=1,1,0)+Parts!$E$91*IF($J42=0,0,IF(MOD(BM$3,$I42)=1,IF(PQS!$R42=\"NO\",1,0),IF(MOD(BM$3,Calculations!$J42)=1,1,0)))+Parts!$E$92*IF(Calculations!$K42=0,0,IF(MOD(BM$3,$I42)=1,0,IF(MOD(BM$3,Calculations!$K42)=1,1,0))))*$AU42)*(1+'Country Input'!$C$45)^(Calculations!BM$3-$BH$3)","v":1807.1666666666667},{"$f":"(($U42+($O42)*IF(MOD(BN$3,$I42)=1,1,0)+Parts!$E$91*IF($J42=0,0,IF(MOD(BN$3,$I42)=1,IF(PQS!$R42=\"NO\",1,0),IF(MOD(BN$3,Calculations!$J42)=1,1,0)))+Parts!$E$92*IF(Calculations!$K42=0,0,IF(MOD(BN$3,$I42)=1,0,IF(MOD(BN$3,Calculations!$K42)=1,1,0))))*$AU42)*(1+'Country Input'!$C$45)^(Calculations!BN$3-$BH$3)","v":1807.1666666666667},{"$f":"(($U42+($O42)*IF(MOD(BO$3,$I42)=1,1,0)+Parts!$E$91*IF($J42=0,0,IF(MOD(BO$3,$I42)=1,IF(PQS!$R42=\"NO\",1,0),IF(MOD(BO$3,Calculations!$J42)=1,1,0)))+Parts!$E$92*IF(Calculations!$K42=0,0,IF(MOD(BO$3,$I42)=1,0,IF(MOD(BO$3,Calculations!$K42)=1,1,0))))*$AU42)*(1+'Country Input'!$C$45)^(Calculations!BO$3-$BH$3)","v":1807.1666666666667},{"$f":"(($U42+($O42)*IF(MOD(BP$3,$I42)=1,1,0)+Parts!$E$91*IF($J42=0,0,IF(MOD(BP$3,$I42)=1,IF(PQS!$R42=\"NO\",1,0),IF(MOD(BP$3,Calculations!$J42)=1,1,0)))+Parts!$E$92*IF(Calculations!$K42=0,0,IF(MOD(BP$3,$I42)=1,0,IF(MOD(BP$3,Calculations!$K42)=1,1,0))))*$AU42)*(1+'Country Input'!$C$45)^(Calculations!BP$3-$BH$3)","v":1807.1666666666667},{"$f":"(($U42+($O42)*IF(MOD(BQ$3,$I42)=1,1,0)+Parts!$E$91*IF($J42=0,0,IF(MOD(BQ$3,$I42)=1,IF(PQS!$R42=\"NO\",1,0),IF(MOD(BQ$3,Calculations!$J42)=1,1,0)))+Parts!$E$92*IF(Calculations!$K42=0,0,IF(MOD(BQ$3,$I42)=1,0,IF(MOD(BQ$3,Calculations!$K42)=1,1,0))))*$AU42)*(1+'Country Input'!$C$45)^(Calculations!BQ$3-$BH$3)","v":1807.1666666666667},{"$f":"(($U42+($O42)*IF(MOD(BR$3,$I42)=1,1,0)+Parts!$E$91*IF($J42=0,0,IF(MOD(BR$3,$I42)=1,IF(PQS!$R42=\"NO\",1,0),IF(MOD(BR$3,Calculations!$J42)=1,1,0)))+Parts!$E$92*IF(Calculations!$K42=0,0,IF(MOD(BR$3,$I42)=1,0,IF(MOD(BR$3,Calculations!$K42)=1,1,0))))*$AU42)*(1+'Country Input'!$C$45)^(Calculations!BR$3-$BH$3)","v":54330.157376666677},{"$f":"(($U42+($O42)*IF(MOD(BS$3,$I42)=1,1,0)+Parts!$E$91*IF($J42=0,0,IF(MOD(BS$3,$I42)=1,IF(PQS!$R42=\"NO\",1,0),IF(MOD(BS$3,Calculations!$J42)=1,1,0)))+Parts!$E$92*IF(Calculations!$K42=0,0,IF(MOD(BS$3,$I42)=1,0,IF(MOD(BS$3,Calculations!$K42)=1,1,0))))*$AU42)*(1+'Country Input'!$C$45)^(Calculations!BS$3-$BH$3)","v":1807.1666666666667},{"$f":"(($U42+($O42)*IF(MOD(BT$3,$I42)=1,1,0)+Parts!$E$91*IF($J42=0,0,IF(MOD(BT$3,$I42)=1,IF(PQS!$R42=\"NO\",1,0),IF(MOD(BT$3,Calculations!$J42)=1,1,0)))+Parts!$E$92*IF(Calculations!$K42=0,0,IF(MOD(BT$3,$I42)=1,0,IF(MOD(BT$3,Calculations!$K42)=1,1,0))))*$AU42)*(1+'Country Input'!$C$45)^(Calculations!BT$3-$BH$3)","v":1807.1666666666667},{"$f":"(($U42+($O42)*IF(MOD(BU$3,$I42)=1,1,0)+Parts!$E$91*IF($J42=0,0,IF(MOD(BU$3,$I42)=1,IF(PQS!$R42=\"NO\",1,0),IF(MOD(BU$3,Calculations!$J42)=1,1,0)))+Parts!$E$92*IF(Calculations!$K42=0,0,IF(MOD(BU$3,$I42)=1,0,IF(MOD(BU$3,Calculations!$K42)=1,1,0))))*$AU42)*(1+'Country Input'!$C$45)^(Calculations!BU$3-$BH$3)","v":1807.1666666666667},{"$f":"(($U42+($O42)*IF(MOD(BV$3,$I42)=1,1,0)+Parts!$E$91*IF($J42=0,0,IF(MOD(BV$3,$I42)=1,IF(PQS!$R42=\"NO\",1,0),IF(MOD(BV$3,Calculations!$J42)=1,1,0)))+Parts!$E$92*IF(Calculations!$K42=0,0,IF(MOD(BV$3,$I42)=1,0,IF(MOD(BV$3,Calculations!$K42)=1,1,0))))*$AU42)*(1+'Country Input'!$C$45)^(Calculations!BV$3-$BH$3)","v":1807.1666666666667},{"$f":"(($U42+($O42)*IF(MOD(BW$3,$I42)=1,1,0)+Parts!$E$91*IF($J42=0,0,IF(MOD(BW$3,$I42)=1,IF(PQS!$R42=\"NO\",1,0),IF(MOD(BW$3,Calculations!$J42)=1,1,0)))+Parts!$E$92*IF(Calculations!$K42=0,0,IF(MOD(BW$3,$I42)=1,0,IF(MOD(BW$3,Calculations!$K42)=1,1,0))))*$AU42)*(1+'Country Input'!$C$45)^(Calculations!BW$3-$BH$3)","v":1807.1666666666667},{"$f":"(($U42+($O42)*IF(MOD(BX$3,$I42)=1,1,0)+Parts!$E$91*IF($J42=0,0,IF(MOD(BX$3,$I42)=1,IF(PQS!$R42=\"NO\",1,0),IF(MOD(BX$3,Calculations!$J42)=1,1,0)))+Parts!$E$92*IF(Calculations!$K42=0,0,IF(MOD(BX$3,$I42)=1,0,IF(MOD(BX$3,Calculations!$K42)=1,1,0))))*$AU42)*(1+'Country Input'!$C$45)^(Calculations!BX$3-$BH$3)","v":1807.1666666666667},{"$f":"(($U42+($O42)*IF(MOD(BY$3,$I42)=1,1,0)+Parts!$E$91*IF($J42=0,0,IF(MOD(BY$3,$I42)=1,IF(PQS!$R42=\"NO\",1,0),IF(MOD(BY$3,Calculations!$J42)=1,1,0)))+Parts!$E$92*IF(Calculations!$K42=0,0,IF(MOD(BY$3,$I42)=1,0,IF(MOD(BY$3,Calculations!$K42)=1,1,0))))*$AU42)*(1+'Country Input'!$C$45)^(Calculations!BY$3-$BH$3)","v":1807.1666666666667},{"$f":"(($U42+($O42)*IF(MOD(BZ$3,$I42)=1,1,0)+Parts!$E$91*IF($J42=0,0,IF(MOD(BZ$3,$I42)=1,IF(PQS!$R42=\"NO\",1,0),IF(MOD(BZ$3,Calculations!$J42)=1,1,0)))+Parts!$E$92*IF(Calculations!$K42=0,0,IF(MOD(BZ$3,$I42)=1,0,IF(MOD(BZ$3,Calculations!$K42)=1,1,0))))*$AU42)*(1+'Country Input'!$C$45)^(Calculations!BZ$3-$BH$3)","v":1807.1666666666667},{"$f":"(($U42+($O42)*IF(MOD(CA$3,$I42)=1,1,0)+Parts!$E$91*IF($J42=0,0,IF(MOD(CA$3,$I42)=1,IF(PQS!$R42=\"NO\",1,0),IF(MOD(CA$3,Calculations!$J42)=1,1,0)))+Parts!$E$92*IF(Calculations!$K42=0,0,IF(MOD(CA$3,$I42)=1,0,IF(MOD(CA$3,Calculations!$K42)=1,1,0))))*$AU42)*(1+'Country Input'!$C$45)^(Calculations!CA$3-$BH$3)","v":1807.1666666666667},null,"B Medical TCW 4000 AC*",54330.157376666677,1807.1666666666667,1807.1666666666667,1807.1666666666667,1807.1666666666667,1807.1666666666667,1807.1666666666667,1807.1666666666667,1807.1666666666667,1807.1666666666667,54330.157376666677,1807.1666666666667,1807.1666666666667,1807.1666666666667,1807.1666666666667,1807.1666666666667,1807.1666666666667,1807.1666666666667,1807.1666666666667,1807.1666666666667,{"$f":"SUM(CD42:INDEX($CD42:$CW42,1,'Total Solution Costs'!$B$2))","v":70594.65737666667},null,"B Medical TCW 4000 AC*",{"$f":"SUM($BH42:BH42)","v":54330.157376666677},{"$f":"SUM($BH42:BI42)","v":56137.324043333341},{"$f":"SUM($BH42:BJ42)","v":57944.490710000005},{"$f":"SUM($BH42:BK42)","v":59751.65737666667},{"$f":"SUM($BH42:BL42)","v":61558.824043333334},{"$f":"SUM($BH42:BM42)","v":63365.990709999998},{"$f":"SUM($BH42:BN42)","v":65173.157376666662},{"$f":"SUM($BH42:BO42)","v":66980.324043333327},{"$f":"SUM($BH42:BP42)","v":68787.490709999998},{"$f":"SUM($BH42:BQ42)","v":70594.65737666667},{"$f":"SUM($BH42:BR42)","v":124924.81475333334},{"$f":"SUM($BH42:BS42)","v":126731.98142000001},{"$f":"SUM($BH42:BT42)","v":128539.14808666668},{"$f":"SUM($BH42:BU42)","v":130346.31475333335},{"$f":"SUM($BH42:BV42)","v":132153.48142000003},{"$f":"SUM($BH42:BW42)","v":133960.64808666668},{"$f":"SUM($BH42:BX42)","v":135767.81475333334},{"$f":"SUM($BH42:BY42)","v":137574.98142},{"$f":"SUM($BH42:BZ42)","v":139382.14808666665},{"$f":"SUM($BH42:CA42)","v":141189.31475333331}]
[{"$f":"PQS!A43","v":"ILR"},{"$f":"PQS!B43","v":"E003/070"},{"$f":"PQS!E43","v":"VLS 064 RF"},{"$f":"PQS!F43","v":"Vestfrost"},{"$f":"PQS!D43","v":"Vestfrost VLS 064 RF"},{"$f":"VLOOKUP(E43,PQS!$D$5:$K$107,COLUMN(PQS!$I$3)-COLUMN(PQS!$D$3)+1,FALSE)","v":52.5},{"$f":"VLOOKUP(E43,PQS!$D$5:$K$107,COLUMN(PQS!$J$3)-COLUMN(PQS!$D$3)+1,FALSE)","v":5.0999999999999996},{"$f":"VLOOKUP(E43,PQS!$D$5:$K$107,COLUMN(PQS!$G$3)-COLUMN(PQS!$D$3)+1,FALSE)","v":"No"},{"$f":"HLOOKUP(B43,INDIRECT(\"'\"&A43&\"'!$10:$15\"),ROW('Technology template'!$A$11)-ROW('Technology template'!$A$10)+1,FALSE)","v":10},{"$f":"HLOOKUP(B43,INDIRECT(\"'\"&A43&\"'!$10:$15\"),ROW('Technology template'!$A$12)-ROW('Technology template'!$A$10)+1,FALSE)","v":0},{"$f":"HLOOKUP(B43,INDIRECT(\"'\"&A43&\"'!$10:$15\"),ROW('Technology template'!$A$13)-ROW('Technology template'!$A$10)+1,FALSE)","v":0},{"$f":"VLOOKUP(B43,PQS!$B:$Q,MATCH(PQS!$Q$3,PQS!$B$3:$Q$3,0),FALSE)*(1+'Country Input'!$C$47)+HLOOKUP(B43,INDIRECT(\"'\"&A43&\"'!$10:$15\"),ROW('Technology template'!$A$14)-ROW('Technology template'!$A$10)+1,FALSE)*(1+'Country Input'!$C$47)","v":1166.1502000000003},{"$f":"HLOOKUP(B43,INDIRECT(\"'\"&A43&\"'!$10:$80\"),MATCH('Technology template'!$A$27,INDIRECT(\"'\"&A43&\"'!$A$10:$A$80\"),0),FALSE)+'Labor and Maintenance '!$E$22","v":748},{"$f":"VLOOKUP(B43,PQS!B:T,MATCH(PQS!$T$3,PQS!$B$3:$T$3,0),FALSE)*(1+'Country Input'!$C$47)","v":187.97257100000004},2102.1227710000003,{"$f":"O43/I43","v":210.21227710000002},{"$f":"VLOOKUP(B43,PQS!$B:$AE,COLUMN(PQS!AD41)-1,FALSE)","v":109.50000000000001},{"$f":"IFERROR(1/HLOOKUP(B43,INDIRECT(\"'\"&A43&\"'!$10:$80\"),MATCH('Technology template'!$A$31,INDIRECT(\"'\"&A43&\"'!$A$10:$A$80\"),0),FALSE)*HLOOKUP(B43,INDIRECT(\"'\"&A43&\"'!$10:$80\"),MATCH('Technology template'!$A$41,INDIRECT(\"'\"&A43&\"'!$A10:$A$80\"),0),FALSE),0)*TechnicianHourlyWage+IF(A43=\"Solar w Battery\",1/'Labor and Maintenance '!$E$53*'Labor and Maintenance '!$D$53,0)+IF(A43=\"LT passive\", 1/'Labor and Maintenance '!$E$81*'Labor and Maintenance '!$D$81,0)","v":24},{"$f":"IFERROR(1/HLOOKUP(B43,INDIRECT(\"'\"&A43&\"'!$10:$80\"),MATCH('Technology template'!$A$34,INDIRECT(\"'\"&A43&\"'!$A$10:$A$80\"),0),FALSE)*(HLOOKUP(B43,INDIRECT(\"'\"&A43&\"'!$10:$80\"),MATCH('Technology template'!$A$44,INDIRECT(\"'\"&A43&\"'!$A10:$A$80\"),0),FALSE)*TechnicianHourlyWage+RemoteTravelCostPerDay),0)+IFERROR(1/HLOOKUP(B43,INDIRECT(\"'\"&A43&\"'!$10:$80\"),MATCH('Technology template'!$A$35,INDIRECT(\"'\"&A43&\"'!$A$10:$A$80\"),0),FALSE)*(HLOOKUP(B43,INDIRECT(\"'\"&A43&\"'!$10:$80\"),MATCH('Technology template'!$A$45,INDIRECT(\"'\"&A43&\"'!$A10:$A$80\"),0),FALSE)*TechnicianHourlyWage+RemoteTravelCostPerDay),0)+IFERROR(1/HLOOKUP(B43,INDIRECT(\"'\"&A43&\"'!$10:$80\"),MATCH('Technology template'!$A$37,INDIRECT(\"'\"&A43&\"'!$A$10:$A$80\"),0),FALSE)*(HLOOKUP(B43,INDIRECT(\"'\"&A43&\"'!$10:$80\"),MATCH('Technology template'!$A$46,INDIRECT(\"'\"&A43&\"'!$A10:$A$80\"),0),FALSE)*TechnicianHourlyWage+'Labor and Maintenance '!$B$8),0)","v":94.666666666666657},{"$f":"SUM(Q43:S43)*I43","v":2281.6666666666665},{"$f":"SUM(Q43:S43)","v":228.16666666666666},{"$f":"P43+U43","v":438.37894376666668},null,{"$f":"E43","v":"Vestfrost VLS 064 RF"},40.040433733333337,43.460317460317455,{"$f":"Y43+Z43","v":83.500751193650785},null,"Vestfrost VLS 064 RF",4.0040433733333334,4.3460317460317457,8.35007511936508,null,"Vestfrost VLS 064 RF",3,6306.3683130000009,6845,{"$f":"AJ43+AK43","v":13151.368313000001},null,"Vestfrost VLS 064 RF",3,12.01213012,13.038095238095238,{"$f":"+AP43+AQ43","v":25.05022535809524},null,"Vestfrost VLS 064 RF",{"$f":"IF(F43=0, 'Country Input'!$D$7, ROUNDUP(LitersPerFacility/F43,0)*'Country Input'!$D$7)","v":10},21021.227710000003,2281.6666666666665,{"$f":"AV43+AW43","v":23302.894376666671},null,"Vestfrost VLS 064 RF",{"$f":"ROUNDUP(LitersPerFacility/F43,0)*'Country Input'!$D$7*ROUNDUP('Total Solution Costs'!$B$2/Calculations!I43,0)","v":10},40.04043373333333,4.3460317460317457,{"$f":"BB43+BC43","v":44.386465479365079},null,null,"Vestfrost VLS 064 RF",{"$f":"(($U43+($O43)*IF(MOD(BH$3,$I43)=1,1,0)+Parts!$E$91*IF($J43=0,0,IF(MOD(BH$3,$I43)=1,IF(PQS!$R43=\"NO\",1,0),IF(MOD(BH$3,Calculations!$J43)=1,1,0)))+Parts!$E$92*IF(Calculations!$K43=0,0,IF(MOD(BH$3,$I43)=1,0,IF(MOD(BH$3,Calculations!$K43)=1,1,0))))*$AU43)*(1+'Country Input'!$C$45)^(Calculations!BH$3-$BH$3)+TrainingCost","v":23302.894376666667},{"$f":"(($U43+($O43)*IF(MOD(BI$3,$I43)=1,1,0)+Parts!$E$91*IF($J43=0,0,IF(MOD(BI$3,$I43)=1,IF(PQS!$R43=\"NO\",1,0),IF(MOD(BI$3,Calculations!$J43)=1,1,0)))+Parts!$E$92*IF(Calculations!$K43=0,0,IF(MOD(BI$3,$I43)=1,0,IF(MOD(BI$3,Calculations!$K43)=1,1,0))))*$AU43)*(1+'Country Input'!$C$45)^(Calculations!BI$3-$BH$3)","v":2281.6666666666665},{"$f":"(($U43+($O43)*IF(MOD(BJ$3,$I43)=1,1,0)+Parts!$E$91*IF($J43=0,0,IF(MOD(BJ$3,$I43)=1,IF(PQS!$R43=\"NO\",1,0),IF(MOD(BJ$3,Calculations!$J43)=1,1,0)))+Parts!$E$92*IF(Calculations!$K43=0,0,IF(MOD(BJ$3,$I43)=1,0,IF(MOD(BJ$3,Calculations!$K43)=1,1,0))))*$AU43)*(1+'Country Input'!$C$45)^(Calculations!BJ$3-$BH$3)","v":2281.6666666666665},{"$f":"(($U43+($O43)*IF(MOD(BK$3,$I43)=1,1,0)+Parts!$E$91*IF($J43=0,0,IF(MOD(BK$3,$I43)=1,IF(PQS!$R43=\"NO\",1,0),IF(MOD(BK$3,Calculations!$J43)=1,1,0)))+Parts!$E$92*IF(Calculations!$K43=0,0,IF(MOD(BK$3,$I43)=1,0,IF(MOD(BK$3,Calculations!$K43)=1,1,0))))*$AU43)*(1+'Country Input'!$C$45)^(Calculations!BK$3-$BH$3)","v":2281.6666666666665},{"$f":"(($U43+($O43)*IF(MOD(BL$3,$I43)=1,1,0)+Parts!$E$91*IF($J43=0,0,IF(MOD(BL$3,$I43)=1,IF(PQS!$R43=\"NO\",1,0),IF(MOD(BL$3,Calculations!$J43)=1,1,0)))+Parts!$E$92*IF(Calculations!$K43=0,0,IF(MOD(BL$3,$I43)=1,0,IF(MOD(BL$3,Calculations!$K43)=1,1,0))))*$AU43)*(1+'Country Input'!$C$45)^(Calculations!BL$3-$BH$3)","v":2281.6666666666665},{"$f":"(($U43+($O43)*IF(MOD(BM$3,$I43)=1,1,0)+Parts!$E$91*IF($J43=0,0,IF(MOD(BM$3,$I43)=1,IF(PQS!$R43=\"NO\",1,0),IF(MOD(BM$3,Calculations!$J43)=1,1,0)))+Parts!$E$92*IF(Calculations!$K43=0,0,IF(MOD(BM$3,$I43)=1,0,IF(MOD(BM$3,Calculations!$K43)=1,1,0))))*$AU43)*(1+'Country Input'!$C$45)^(Calculations!BM$3-$BH$3)","v":2281.6666666666665},{"$f":"(($U43+($O43)*IF(MOD(BN$3,$I43)=1,1,0)+Parts!$E$91*IF($J43=0,0,IF(MOD(BN$3,$I43)=1,IF(PQS!$R43=\"NO\",1,0),IF(MOD(BN$3,Calculations!$J43)=1,1,0)))+Parts!$E$92*IF(Calculations!$K43=0,0,IF(MOD(BN$3,$I43)=1,0,IF(MOD(BN$3,Calculations!$K43)=1,1,0))))*$AU43)*(1+'Country Input'!$C$45)^(Calculations!BN$3-$BH$3)","v":2281.6666666666665},{"$f":"(($U43+($O43)*IF(MOD(BO$3,$I43)=1,1,0)+Parts!$E$91*IF($J43=0,0,IF(MOD(BO$3,$I43)=1,IF(PQS!$R43=\"NO\",1,0),IF(MOD(BO$3,Calculations!$J43)=1,1,0)))+Parts!$E$92*IF(Calculations!$K43=0,0,IF(MOD(BO$3,$I43)=1,0,IF(MOD(BO$3,Calculations!$K43)=1,1,0))))*$AU43)*(1+'Country Input'!$C$45)^(Calculations!BO$3-$BH$3)","v":2281.6666666666665},{"$f":"(($U43+($O43)*IF(MOD(BP$3,$I43)=1,1,0)+Parts!$E$91*IF($J43=0,0,IF(MOD(BP$3,$I43)=1,IF(PQS!$R43=\"NO\",1,0),IF(MOD(BP$3,Calculations!$J43)=1,1,0)))+Parts!$E$92*IF(Calculations!$K43=0,0,IF(MOD(BP$3,$I43)=1,0,IF(MOD(BP$3,Calculations!$K43)=1,1,0))))*$AU43)*(1+'Country Input'!$C$45)^(Calculations!BP$3-$BH$3)","v":2281.6666666666665},{"$f":"(($U43+($O43)*IF(MOD(BQ$3,$I43)=1,1,0)+Parts!$E$91*IF($J43=0,0,IF(MOD(BQ$3,$I43)=1,IF(PQS!$R43=\"NO\",1,0),IF(MOD(BQ$3,Calculations!$J43)=1,1,0)))+Parts!$E$92*IF(Calculations!$K43=0,0,IF(MOD(BQ$3,$I43)=1,0,IF(MOD(BQ$3,Calculations!$K43)=1,1,0))))*$AU43)*(1+'Country Input'!$C$45)^(Calculations!BQ$3-$BH$3)","v":2281.6666666666665},{"$f":"(($U43+($O43)*IF(MOD(BR$3,$I43)=1,1,0)+Parts!$E$91*IF($J43=0,0,IF(MOD(BR$3,$I43)=1,IF(PQS!$R43=\"NO\",1,0),IF(MOD(BR$3,Calculations!$J43)=1,1,0)))+Parts!$E$92*IF(Calculations!$K43=0,0,IF(MOD(BR$3,$I43)=1,0,IF(MOD(BR$3,Calculations!$K43)=1,1,0))))*$AU43)*(1+'Country Input'!$C$45)^(Calculations!BR$3-$BH$3)","v":23302.894376666667},{"$f":"(($U43+($O43)*IF(MOD(BS$3,$I43)=1,1,0)+Parts!$E$91*IF($J43=0,0,IF(MOD(BS$3,$I43)=1,IF(PQS!$R43=\"NO\",1,0),IF(MOD(BS$3,Calculations!$J43)=1,1,0)))+Parts!$E$92*IF(Calculations!$K43=0,0,IF(MOD(BS$3,$I43)=1,0,IF(MOD(BS$3,Calculations!$K43)=1,1,0))))*$AU43)*(1+'Country Input'!$C$45)^(Calculations!BS$3-$BH$3)","v":2281.6666666666665},{"$f":"(($U43+($O43)*IF(MOD(BT$3,$I43)=1,1,0)+Parts!$E$91*IF($J43=0,0,IF(MOD(BT$3,$I43)=1,IF(PQS!$R43=\"NO\",1,0),IF(MOD(BT$3,Calculations!$J43)=1,1,0)))+Parts!$E$92*IF(Calculations!$K43=0,0,IF(MOD(BT$3,$I43)=1,0,IF(MOD(BT$3,Calculations!$K43)=1,1,0))))*$AU43)*(1+'Country Input'!$C$45)^(Calculations!BT$3-$BH$3)","v":2281.6666666666665},{"$f":"(($U43+($O43)*IF(MOD(BU$3,$I43)=1,1,0)+Parts!$E$91*IF($J43=0,0,IF(MOD(BU$3,$I43)=1,IF(PQS!$R43=\"NO\",1,0),IF(MOD(BU$3,Calculations!$J43)=1,1,0)))+Parts!$E$92*IF(Calculations!$K43=0,0,IF(MOD(BU$3,$I43)=1,0,IF(MOD(BU$3,Calculations!$K43)=1,1,0))))*$AU43)*(1+'Country Input'!$C$45)^(Calculations!BU$3-$BH$3)","v":2281.6666666666665},{"$f":"(($U43+($O43)*IF(MOD(BV$3,$I43)=1,1,0)+Parts!$E$91*IF($J43=0,0,IF(MOD(BV$3,$I43)=1,IF(PQS!$R43=\"NO\",1,0),IF(MOD(BV$3,Calculations!$J43)=1,1,0)))+Parts!$E$92*IF(Calculations!$K43=0,0,IF(MOD(BV$3,$I43)=1,0,IF(MOD(BV$3,Calculations!$K43)=1,1,0))))*$AU43)*(1+'Country Input'!$C$45)^(Calculations!BV$3-$BH$3)","v":2281.6666666666665},{"$f":"(($U43+($O43)*IF(MOD(BW$3,$I43)=1,1,0)+Parts!$E$91*IF($J43=0,0,IF(MOD(BW$3,$I43)=1,IF(PQS!$R43=\"NO\",1,0),IF(MOD(BW$3,Calculations!$J43)=1,1,0)))+Parts!$E$92*IF(Calculations!$K43=0,0,IF(MOD(BW$3,$I43)=1,0,IF(MOD(BW$3,Calculations!$K43)=1,1,0))))*$AU43)*(1+'Country Input'!$C$45)^(Calculations!BW$3-$BH$3)","v":2281.6666666666665},{"$f":"(($U43+($O43)*IF(MOD(BX$3,$I43)=1,1,0)+Parts!$E$91*IF($J43=0,0,IF(MOD(BX$3,$I43)=1,IF(PQS!$R43=\"NO\",1,0),IF(MOD(BX$3,Calculations!$J43)=1,1,0)))+Parts!$E$92*IF(Calculations!$K43=0,0,IF(MOD(BX$3,$I43)=1,0,IF(MOD(BX$3,Calculations!$K43)=1,1,0))))*$AU43)*(1+'Country Input'!$C$45)^(Calculations!BX$3-$BH$3)","v":2281.6666666666665},{"$f":"(($U43+($O43)*IF(MOD(BY$3,$I43)=1,1,0)+Parts!$E$91*IF($J43=0,0,IF(MOD(BY$3,$I43)=1,IF(PQS!$R43=\"NO\",1,0),IF(MOD(BY$3,Calculations!$J43)=1,1,0)))+Parts!$E$92*IF(Calculations!$K43=0,0,IF(MOD(BY$3,$I43)=1,0,IF(MOD(BY$3,Calculations!$K43)=1,1,0))))*$AU43)*(1+'Country Input'!$C$45)^(Calculations!BY$3-$BH$3)","v":2281.6666666666665},{"$f":"(($U43+($O43)*IF(MOD(BZ$3,$I43)=1,1,0)+Parts!$E$91*IF($J43=0,0,IF(MOD(BZ$3,$I43)=1,IF(PQS!$R43=\"NO\",1,0),IF(MOD(BZ$3,Calculations!$J43)=1,1,0)))+Parts!$E$92*IF(Calculations!$K43=0,0,IF(MOD(BZ$3,$I43)=1,0,IF(MOD(BZ$3,Calculations!$K43)=1,1,0))))*$AU43)*(1+'Country Input'!$C$45)^(Calculations!BZ$3-$BH$3)","v":2281.6666666666665},{"$f":"(($U43+($O43)*IF(MOD(CA$3,$I43)=1,1,0)+Parts!$E$91*IF($J43=0,0,IF(MOD(CA$3,$I43)=1,IF(PQS!$R43=\"NO\",1,0),IF(MOD(CA$3,Calculations!$J43)=1,1,0)))+Parts!$E$92*IF(Calculations!$K43=0,0,IF(MOD(CA$3,$I43)=1,0,IF(MOD(CA$3,Calculations!$K43)=1,1,0))))*$AU43)*(1+'Country Input'!$C$45)^(Calculations!CA$3-$BH$3)","v":2281.6666666666665},null,"Vestfrost VLS 064 RF",{"$f":"BH43/((1+DiscountRate)^(COLUMN(CD43)-COLUMN($CD43)))","v":23302.894376666667},{"$f":"BI43/((1+DiscountRate)^(COLUMN(CE43)-COLUMN($CD43)))","v":2281.6666666666665},{"$f":"BJ43/((1+DiscountRate)^(COLUMN(CF43)-COLUMN($CD43)))","v":2281.6666666666665},{"$f":"BK43/((1+DiscountRate)^(COLUMN(CG43)-COLUMN($CD43)))","v":2281.6666666666665},{"$f":"BL43/((1+DiscountRate)^(COLUMN(CH43)-COLUMN($CD43)))","v":2281.6666666666665},{"$f":"BM43/((1+DiscountRate)^(COLUMN(CI43)-COLUMN($CD43)))","v":2281.6666666666665},{"$f":"BN43/((1+DiscountRate)^(COLUMN(CJ43)-COLUMN($CD43)))","v":2281.6666666666665},{"$f":"BO43/((1+DiscountRate)^(COLUMN(CK43)-COLUMN($CD43)))","v":2281.6666666666665},{"$f":"BP43/((1+DiscountRate)^(COLUMN(CL43)-COLUMN($CD43)))","v":2281.6666666666665},{"$f":"BQ43/((1+DiscountRate)^(COLUMN(CM43)-COLUMN($CD43)))","v":2281.6666666666665},{"$f":"BR43/((1+DiscountRate)^(COLUMN(CN43)-COLUMN($CD43)))","v":23302.894376666667},{"$f":"BS43/((1+DiscountRate)^(COLUMN(CO43)-COLUMN($CD43)))","v":2281.6666666666665},{"$f":"BT43/((1+DiscountRate)^(COLUMN(CP43)-COLUMN($CD43)))","v":2281.6666666666665},{"$f":"BU43/((1+DiscountRate)^(COLUMN(CQ43)-COLUMN($CD43)))","v":2281.6666666666665},{"$f":"BV43/((1+DiscountRate)^(COLUMN(CR43)-COLUMN($CD43)))","v":2281.6666666666665},{"$f":"BW43/((1+DiscountRate)^(COLUMN(CS43)-COLUMN($CD43)))","v":2281.6666666666665},{"$f":"BX43/((1+DiscountRate)^(COLUMN(CT43)-COLUMN($CD43)))","v":2281.6666666666665},{"$f":"BY43/((1+DiscountRate)^(COLUMN(CU43)-COLUMN($CD43)))","v":2281.6666666666665},{"$f":"BZ43/((1+DiscountRate)^(COLUMN(CV43)-COLUMN($CD43)))","v":2281.6666666666665},{"$f":"CA43/((1+DiscountRate)^(COLUMN(CW43)-COLUMN($CD43)))","v":2281.6666666666665},{"$f":"SUM(CD43:INDEX($CD43:$CW43,1,'Total Solution Costs'!$B$2))","v":43837.894376666663},null,{"$f":"CC43","v":"Vestfrost VLS 064 RF"},{"$f":"SUM($BH43:BH43)","v":23302.894376666667},{"$f":"SUM($BH43:BI43)","v":25584.561043333335},{"$f":"SUM($BH43:BJ43)","v":27866.227710000003},{"$f":"SUM($BH43:BK43)","v":30147.894376666671},{"$f":"SUM($BH43:BL43)","v":32429.561043333339},{"$f":"SUM($BH43:BM43)","v":34711.227710000006},{"$f":"SUM($BH43:BN43)","v":36992.894376666671},{"$f":"SUM($BH43:BO43)","v":39274.561043333335},{"$f":"SUM($BH43:BP43)","v":41556.227709999999},{"$f":"SUM($BH43:BQ43)","v":43837.894376666663},{"$f":"SUM($BH43:BR43)","v":67140.788753333327},{"$f":"SUM($BH43:BS43)","v":69422.455419999998},{"$f":"SUM($BH43:BT43)","v":71704.12208666667},{"$f":"SUM($BH43:BU43)","v":73985.788753333341},{"$f":"SUM($BH43:BV43)","v":76267.455420000013},{"$f":"SUM($BH43:BW43)","v":78549.122086666684},{"$f":"SUM($BH43:BX43)","v":80830.788753333356},{"$f":"SUM($BH43:BY43)","v":83112.455420000028},{"$f":"SUM($BH43:BZ43)","v":85394.122086666699},{"$f":"SUM($BH43:CA43)","v":87675.788753333371}]
[{"$f":"PQS!A44","v":"ILR"},{"$f":"PQS!B44","v":"E003/072"},{"$f":"PQS!E44","v":"VC 225 ILR*"},{"$f":"PQS!F44","v":"Dulas Solar"},{"$f":"PQS!D44","v":"Dulas Solar VC 225 ILR*"},{"$f":"VLOOKUP(E44,PQS!$D$5:$K$107,COLUMN(PQS!$I$3)-COLUMN(PQS!$D$3)+1,FALSE)","v":203.2},{"$f":"VLOOKUP(E44,PQS!$D$5:$K$107,COLUMN(PQS!$J$3)-COLUMN(PQS!$D$3)+1,FALSE)","v":0},{"$f":"VLOOKUP(E44,PQS!$D$5:$K$107,COLUMN(PQS!$G$3)-COLUMN(PQS!$D$3)+1,FALSE)","v":"Yes"},{"$f":"HLOOKUP(B44,INDIRECT(\"'\"&A44&\"'!$10:$15\"),ROW('Technology template'!$A$11)-ROW('Technology template'!$A$10)+1,FALSE)","v":10},{"$f":"HLOOKUP(B44,INDIRECT(\"'\"&A44&\"'!$10:$15\"),ROW('Technology template'!$A$12)-ROW('Technology template'!$A$10)+1,FALSE)","v":0},{"$f":"HLOOKUP(B44,INDIRECT(\"'\"&A44&\"'!$10:$15\"),ROW('Technology template'!$A$13)-ROW('Technology template'!$A$10)+1,FALSE)","v":0},{"$f":"VLOOKUP(B44,PQS!$B:$Q,MATCH(PQS!$Q$3,PQS!$B$3:$Q$3,0),FALSE)*(1+'Country Input'!$C$47)+HLOOKUP(B44,INDIRECT(\"'\"&A44&\"'!$10:$15\"),ROW('Technology template'!$A$14)-ROW('Technology template'!$A$10)+1,FALSE)*(1+'Country Input'!$C$47)","v":2835.5},{"$f":"HLOOKUP(B44,INDIRECT(\"'\"&A44&\"'!$10:$80\"),MATCH('Technology template'!$A$27,INDIRECT(\"'\"&A44&\"'!$A$10:$A$80\"),0),FALSE)+'Labor and Maintenance '!$E$22","v":748},{"$f":"VLOOKUP(B44,PQS!B:T,MATCH(PQS!$T$3,PQS!$B$3:$T$3,0),FALSE)*(1+'Country Input'!$C$47)","v":587.43000000000006},4170.93,417.09300000000002,{"$f":"VLOOKUP(B44,PQS!$B:$AE,COLUMN(PQS!AD42)-1,FALSE)","v":58.619000000000007},{"$f":"IFERROR(1/HLOOKUP(B44,INDIRECT(\"'\"&A44&\"'!$10:$80\"),MATCH('Technology template'!$A$31,INDIRECT(\"'\"&A44&\"'!$A$10:$A$80\"),0),FALSE)*HLOOKUP(B44,INDIRECT(\"'\"&A44&\"'!$10:$80\"),MATCH('Technology template'!$A$41,INDIRECT(\"'\"&A44&\"'!$A10:$A$80\"),0),FALSE),0)*TechnicianHourlyWage+IF(A44=\"Solar w Battery\",1/'Labor and Maintenance '!$E$53*'Labor and Maintenance '!$D$53,0)+IF(A44=\"LT passive\", 1/'Labor and Maintenance '!$E$81*'Labor and Maintenance '!$D$81,0)","v":24},{"$f":"IFERROR(1/HLOOKUP(B44,INDIRECT(\"'\"&A44&\"'!$10:$80\"),MATCH('Technology template'!$A$34,INDIRECT(\"'\"&A44&\"'!$A$10:$A$80\"),0),FALSE)*(HLOOKUP(B44,INDIRECT(\"'\"&A44&\"'!$10:$80\"),MATCH('Technology template'!$A$44,INDIRECT(\"'\"&A44&\"'!$A10:$A$80\"),0),FALSE)*TechnicianHourlyWage+RemoteTravelCostPerDay),0)+IFERROR(1/HLOOKUP(B44,INDIRECT(\"'\"&A44&\"'!$10:$80\"),MATCH('Technology template'!$A$35,INDIRECT(\"'\"&A44&\"'!$A$10:$A$80\"),0),FALSE)*(HLOOKUP(B44,INDIRECT(\"'\"&A44&\"'!$10:$80\"),MATCH('Technology template'!$A$45,INDIRECT(\"'\"&A44&\"'!$A10:$A$80\"),0),FALSE)*TechnicianHourlyWage+RemoteTravelCostPerDay),0)+IFERROR(1/HLOOKUP(B44,INDIRECT(\"'\"&A44&\"'!$10:$80\"),MATCH('Technology template'!$A$37,INDIRECT(\"'\"&A44&\"'!$A$10:$A$80\"),0),FALSE)*(HLOOKUP(B44,INDIRECT(\"'\"&A44&\"'!$10:$80\"),MATCH('Technology template'!$A$46,INDIRECT(\"'\"&A44&\"'!$A10:$A$80\"),0),FALSE)*TechnicianHourlyWage+'Labor and Maintenance '!$B$8),0)","v":94.666666666666657},1772.8566666666666,177.28566666666666,594.37866666666673,null,"Dulas Solar VC 225 ILR*",20.526230314960632,8.7246883202099745,29.250918635170606,null,"Dulas Solar VC 225 ILR*",2.0526230314960632,0.87246883202099734,2.9250918635170606,null,"Dulas Solar VC 225 ILR*",1,4170.93,1772.8566666666666,5943.7866666666669,null,"Dulas Solar VC 225 ILR*",1,2.0526230314960632,0.87246883202099734,2.9250918635170606,null,"Dulas Solar VC 225 ILR*",{"$f":"IF(F44=0, 'Country Input'!$D$7, ROUNDUP(LitersPerFacility/F44,0)*'Country Input'!$D$7)","v":10},41709.300000000003,1772.8566666666666,43482.156666666669,null,"Dulas Solar VC 225 ILR*",{"$f":"ROUNDUP(LitersPerFacility/F44,0)*'Country Input'!$D$7*ROUNDUP('Total Solution Costs'!$B$2/Calculations!I44,0)","v":10},20.526230314960632,0.87246883202099734,21.398699146981627,null,null,"Dulas Solar VC 225 ILR*",{"$f":"(($U44+($O44)*IF(MOD(BH$3,$I44)=1,1,0)+Parts!$E$91*IF($J44=0,0,IF(MOD(BH$3,$I44)=1,IF(PQS!$R44=\"NO\",1,0),IF(MOD(BH$3,Calculations!$J44)=1,1,0)))+Parts!$E$92*IF(Calculations!$K44=0,0,IF(MOD(BH$3,$I44)=1,0,IF(MOD(BH$3,Calculations!$K44)=1,1,0))))*$AU44)*(1+'Country Input'!$C$45)^(Calculations!BH$3-$BH$3)+TrainingCost","v":43482.156666666669},{"$f":"(($U44+($O44)*IF(MOD(BI$3,$I44)=1,1,0)+Parts!$E$91*IF($J44=0,0,IF(MOD(BI$3,$I44)=1,IF(PQS!$R44=\"NO\",1,0),IF(MOD(BI$3,Calculations!$J44)=1,1,0)))+Parts!$E$92*IF(Calculations!$K44=0,0,IF(MOD(BI$3,$I44)=1,0,IF(MOD(BI$3,Calculations!$K44)=1,1,0))))*$AU44)*(1+'Country Input'!$C$45)^(Calculations!BI$3-$BH$3)","v":1772.8566666666666},{"$f":"(($U44+($O44)*IF(MOD(BJ$3,$I44)=1,1,0)+Parts!$E$91*IF($J44=0,0,IF(MOD(BJ$3,$I44)=1,IF(PQS!$R44=\"NO\",1,0),IF(MOD(BJ$3,Calculations!$J44)=1,1,0)))+Parts!$E$92*IF(Calculations!$K44=0,0,IF(MOD(BJ$3,$I44)=1,0,IF(MOD(BJ$3,Calculations!$K44)=1,1,0))))*$AU44)*(1+'Country Input'!$C$45)^(Calculations!BJ$3-$BH$3)","v":1772.8566666666666},{"$f":"(($U44+($O44)*IF(MOD(BK$3,$I44)=1,1,0)+Parts!$E$91*IF($J44=0,0,IF(MOD(BK$3,$I44)=1,IF(PQS!$R44=\"NO\",1,0),IF(MOD(BK$3,Calculations!$J44)=1,1,0)))+Parts!$E$92*IF(Calculations!$K44=0,0,IF(MOD(BK$3,$I44)=1,0,IF(MOD(BK$3,Calculations!$K44)=1,1,0))))*$AU44)*(1+'Country Input'!$C$45)^(Calculations!BK$3-$BH$3)","v":1772.8566666666666},{"$f":"(($U44+($O44)*IF(MOD(BL$3,$I44)=1,1,0)+Parts!$E$91*IF($J44=0,0,IF(MOD(BL$3,$I44)=1,IF(PQS!$R44=\"NO\",1,0),IF(MOD(BL$3,Calculations!$J44)=1,1,0)))+Parts!$E$92*IF(Calculations!$K44=0,0,IF(MOD(BL$3,$I44)=1,0,IF(MOD(BL$3,Calculations!$K44)=1,1,0))))*$AU44)*(1+'Country Input'!$C$45)^(Calculations!BL$3-$BH$3)","v":1772.8566666666666},{"$f":"(($U44+($O44)*IF(MOD(BM$3,$I44)=1,1,0)+Parts!$E$91*IF($J44=0,0,IF(MOD(BM$3,$I44)=1,IF(PQS!$R44=\"NO\",1,0),IF(MOD(BM$3,Calculations!$J44)=1,1,0)))+Parts!$E$92*IF(Calculations!$K44=0,0,IF(MOD(BM$3,$I44)=1,0,IF(MOD(BM$3,Calculations!$K44)=1,1,0))))*$AU44)*(1+'Country Input'!$C$45)^(Calculations!BM$3-$BH$3)","v":1772.8566666666666},{"$f":"(($U44+($O44)*IF(MOD(BN$3,$I44)=1,1,0)+Parts!$E$91*IF($J44=0,0,IF(MOD(BN$3,$I44)=1,IF(PQS!$R44=\"NO\",1,0),IF(MOD(BN$3,Calculations!$J44)=1,1,0)))+Parts!$E$92*IF(Calculations!$K44=0,0,IF(MOD(BN$3,$I44)=1,0,IF(MOD(BN$3,Calculations!$K44)=1,1,0))))*$AU44)*(1+'Country Input'!$C$45)^(Calculations!BN$3-$BH$3)","v":1772.8566666666666},{"$f":"(($U44+($O44)*IF(MOD(BO$3,$I44)=1,1,0)+Parts!$E$91*IF($J44=0,0,IF(MOD(BO$3,$I44)=1,IF(PQS!$R44=\"NO\",1,0),IF(MOD(BO$3,Calculations!$J44)=1,1,0)))+Parts!$E$92*IF(Calculations!$K44=0,0,IF(MOD(BO$3,$I44)=1,0,IF(MOD(BO$3,Calculations!$K44)=1,1,0))))*$AU44)*(1+'Country Input'!$C$45)^(Calculations!BO$3-$BH$3)","v":1772.8566666666666},{"$f":"(($U44+($O44)*IF(MOD(BP$3,$I44)=1,1,0)+Parts!$E$91*IF($J44=0,0,IF(MOD(BP$3,$I44)=1,IF(PQS!$R44=\"NO\",1,0),IF(MOD(BP$3,Calculations!$J44)=1,1,0)))+Parts!$E$92*IF(Calculations!$K44=0,0,IF(MOD(BP$3,$I44)=1,0,IF(MOD(BP$3,Calculations!$K44)=1,1,0))))*$AU44)*(1+'Country Input'!$C$45)^(Calculations!BP$3-$BH$3)","v":1772.8566666666666},{"$f":"(($U44+($O44)*IF(MOD(BQ$3,$I44)=1,1,0)+Parts!$E$91*IF($J44=0,0,IF(MOD(BQ$3,$I44)=1,IF(PQS!$R44=\"NO\",1,0),IF(MOD(BQ$3,Calculations!$J44)=1,1,0)))+Parts!$E$92*IF(Calculations!$K44=0,0,IF(MOD(BQ$3,$I44)=1,0,IF(MOD(BQ$3,Calculations!$K44)=1,1,0))))*$AU44)*(1+'Country Input'!$C$45)^(Calculations!BQ$3-$BH$3)","v":1772.8566666666666},{"$f":"(($U44+($O44)*IF(MOD(BR$3,$I44)=1,1,0)+Parts!$E$91*IF($J44=0,0,IF(MOD(BR$3,$I44)=1,IF(PQS!$R44=\"NO\",1,0),IF(MOD(BR$3,Calculations!$J44)=1,1,0)))+Parts!$E$92*IF(Calculations!$K44=0,0,IF(MOD(BR$3,$I44)=1,0,IF(MOD(BR$3,Calculations!$K44)=1,1,0))))*$AU44)*(1+'Country Input'!$C$45)^(Calculations!BR$3-$BH$3)","v":43482.156666666669},{"$f":"(($U44+($O44)*IF(MOD(BS$3,$I44)=1,1,0)+Parts!$E$91*IF($J44=0,0,IF(MOD(BS$3,$I44)=1,IF(PQS!$R44=\"NO\",1,0),IF(MOD(BS$3,Calculations!$J44)=1,1,0)))+Parts!$E$92*IF(Calculations!$K44=0,0,IF(MOD(BS$3,$I44)=1,0,IF(MOD(BS$3,Calculations!$K44)=1,1,0))))*$AU44)*(1+'Country Input'!$C$45)^(Calculations!BS$3-$BH$3)","v":1772.8566666666666},{"$f":"(($U44+($O44)*IF(MOD(BT$3,$I44)=1,1,0)+Parts!$E$91*IF($J44=0,0,IF(MOD(BT$3,$I44)=1,IF(PQS!$R44=\"NO\",1,0),IF(MOD(BT$3,Calculations!$J44)=1,1,0)))+Parts!$E$92*IF(Calculations!$K44=0,0,IF(MOD(BT$3,$I44)=1,0,IF(MOD(BT$3,Calculations!$K44)=1,1,0))))*$AU44)*(1+'Country Input'!$C$45)^(Calculations!BT$3-$BH$3)","v":1772.8566666666666},{"$f":"(($U44+($O44)*IF(MOD(BU$3,$I44)=1,1,0)+Parts!$E$91*IF($J44=0,0,IF(MOD(BU$3,$I44)=1,IF(PQS!$R44=\"NO\",1,0),IF(MOD(BU$3,Calculations!$J44)=1,1,0)))+Parts!$E$92*IF(Calculations!$K44=0,0,IF(MOD(BU$3,$I44)=1,0,IF(MOD(BU$3,Calculations!$K44)=1,1,0))))*$AU44)*(1+'Country Input'!$C$45)^(Calculations!BU$3-$BH$3)","v":1772.8566666666666},{"$f":"(($U44+($O44)*IF(MOD(BV$3,$I44)=1,1,0)+Parts!$E$91*IF($J44=0,0,IF(MOD(BV$3,$I44)=1,IF(PQS!$R44=\"NO\",1,0),IF(MOD(BV$3,Calculations!$J44)=1,1,0)))+Parts!$E$92*IF(Calculations!$K44=0,0,IF(MOD(BV$3,$I44)=1,0,IF(MOD(BV$3,Calculations!$K44)=1,1,0))))*$AU44)*(1+'Country Input'!$C$45)^(Calculations!BV$3-$BH$3)","v":1772.8566666666666},{"$f":"(($U44+($O44)*IF(MOD(BW$3,$I44)=1,1,0)+Parts!$E$91*IF($J44=0,0,IF(MOD(BW$3,$I44)=1,IF(PQS!$R44=\"NO\",1,0),IF(MOD(BW$3,Calculations!$J44)=1,1,0)))+Parts!$E$92*IF(Calculations!$K44=0,0,IF(MOD(BW$3,$I44)=1,0,IF(MOD(BW$3,Calculations!$K44)=1,1,0))))*$AU44)*(1+'Country Input'!$C$45)^(Calculations!BW$3-$BH$3)","v":1772.8566666666666},{"$f":"(($U44+($O44)*IF(MOD(BX$3,$I44)=1,1,0)+Parts!$E$91*IF($J44=0,0,IF(MOD(BX$3,$I44)=1,IF(PQS!$R44=\"NO\",1,0),IF(MOD(BX$3,Calculations!$J44)=1,1,0)))+Parts!$E$92*IF(Calculations!$K44=0,0,IF(MOD(BX$3,$I44)=1,0,IF(MOD(BX$3,Calculations!$K44)=1,1,0))))*$AU44)*(1+'Country Input'!$C$45)^(Calculations!BX$3-$BH$3)","v":1772.8566666666666},{"$f":"(($U44+($O44)*IF(MOD(BY$3,$I44)=1,1,0)+Parts!$E$91*IF($J44=0,0,IF(MOD(BY$3,$I44)=1,IF(PQS!$R44=\"NO\",1,0),IF(MOD(BY$3,Calculations!$J44)=1,1,0)))+Parts!$E$92*IF(Calculations!$K44=0,0,IF(MOD(BY$3,$I44)=1,0,IF(MOD(BY$3,Calculations!$K44)=1,1,0))))*$AU44)*(1+'Country Input'!$C$45)^(Calculations!BY$3-$BH$3)","v":1772.8566666666666},{"$f":"(($U44+($O44)*IF(MOD(BZ$3,$I44)=1,1,0)+Parts!$E$91*IF($J44=0,0,IF(MOD(BZ$3,$I44)=1,IF(PQS!$R44=\"NO\",1,0),IF(MOD(BZ$3,Calculations!$J44)=1,1,0)))+Parts!$E$92*IF(Calculations!$K44=0,0,IF(MOD(BZ$3,$I44)=1,0,IF(MOD(BZ$3,Calculations!$K44)=1,1,0))))*$AU44)*(1+'Country Input'!$C$45)^(Calculations!BZ$3-$BH$3)","v":1772.8566666666666},{"$f":"(($U44+($O44)*IF(MOD(CA$3,$I44)=1,1,0)+Parts!$E$91*IF($J44=0,0,IF(MOD(CA$3,$I44)=1,IF(PQS!$R44=\"NO\",1,0),IF(MOD(CA$3,Calculations!$J44)=1,1,0)))+Parts!$E$92*IF(Calculations!$K44=0,0,IF(MOD(CA$3,$I44)=1,0,IF(MOD(CA$3,Calculations!$K44)=1,1,0))))*$AU44)*(1+'Country Input'!$C$45)^(Calculations!CA$3-$BH$3)","v":1772.8566666666666},null,"Dulas Solar VC 225 ILR*",43482.156666666669,1772.8566666666666,1772.8566666666666,1772.8566666666666,1772.8566666666666,1772.8566666666666,1772.8566666666666,1772.8566666666666,1772.8566666666666,1772.8566666666666,43482.156666666669,1772.8566666666666,1772.8566666666666,1772.8566666666666,1772.8566666666666,1772.8566666666666,1772.8566666666666,1772.8566666666666,1772.8566666666666,1772.8566666666666,{"$f":"SUM(CD44:INDEX($CD44:$CW44,1,'Total Solution Costs'!$B$2))","v":59437.866666666669},null,"Dulas Solar VC 225 ILR*",{"$f":"SUM($BH44:BH44)","v":43482.156666666669},{"$f":"SUM($BH44:BI44)","v":45255.013333333336},{"$f":"SUM($BH44:BJ44)","v":47027.87},{"$f":"SUM($BH44:BK44)","v":48800.726666666669},{"$f":"SUM($BH44:BL44)","v":50573.583333333336},{"$f":"SUM($BH44:BM44)","v":52346.44},{"$f":"SUM($BH44:BN44)","v":54119.296666666669},{"$f":"SUM($BH44:BO44)","v":55892.153333333335},{"$f":"SUM($BH44:BP44)","v":57665.01},{"$f":"SUM($BH44:BQ44)","v":59437.866666666669},{"$f":"SUM($BH44:BR44)","v":102920.02333333335},{"$f":"SUM($BH44:BS44)","v":104692.88},{"$f":"SUM($BH44:BT44)","v":106465.73666666666},{"$f":"SUM($BH44:BU44)","v":108238.59333333332},{"$f":"SUM($BH44:BV44)","v":110011.44999999998},{"$f":"SUM($BH44:BW44)","v":111784.30666666664},{"$f":"SUM($BH44:BX44)","v":113557.1633333333},{"$f":"SUM($BH44:BY44)","v":115330.01999999996},{"$f":"SUM($BH44:BZ44)","v":117102.87666666662},{"$f":"SUM($BH44:CA44)","v":118875.73333333328}]
[{"$f":"PQS!A45","v":"ILR"},{"$f":"PQS!B45","v":"E003/079"},{"$f":"PQS!E45","v":"CFD-50"},{"$f":"PQS!F45","v":"Aucma"},{"$f":"PQS!D45","v":"Aucma CFD-50"},{"$f":"VLOOKUP(E45,PQS!$D$5:$K$107,COLUMN(PQS!$I$3)-COLUMN(PQS!$D$3)+1,FALSE)","v":50},{"$f":"VLOOKUP(E45,PQS!$D$5:$K$107,COLUMN(PQS!$J$3)-COLUMN(PQS!$D$3)+1,FALSE)","v":0},{"$f":"VLOOKUP(E45,PQS!$D$5:$K$107,COLUMN(PQS!$G$3)-COLUMN(PQS!$D$3)+1,FALSE)","v":"No"},{"$f":"HLOOKUP(B45,INDIRECT(\"'\"&A45&\"'!$10:$15\"),ROW('Technology template'!$A$11)-ROW('Technology template'!$A$10)+1,FALSE)","v":10},{"$f":"HLOOKUP(B45,INDIRECT(\"'\"&A45&\"'!$10:$15\"),ROW('Technology template'!$A$12)-ROW('Technology template'!$A$10)+1,FALSE)","v":0},{"$f":"HLOOKUP(B45,INDIRECT(\"'\"&A45&\"'!$10:$15\"),ROW('Technology template'!$A$13)-ROW('Technology template'!$A$10)+1,FALSE)","v":0},{"$f":"VLOOKUP(B45,PQS!$B:$Q,MATCH(PQS!$Q$3,PQS!$B$3:$Q$3,0),FALSE)*(1+'Country Input'!$C$47)+HLOOKUP(B45,INDIRECT(\"'\"&A45&\"'!$10:$15\"),ROW('Technology template'!$A$14)-ROW('Technology template'!$A$10)+1,FALSE)*(1+'Country Input'!$C$47)","v":1551.5},{"$f":"HLOOKUP(B45,INDIRECT(\"'\"&A45&\"'!$10:$80\"),MATCH('Technology template'!$A$27,INDIRECT(\"'\"&A45&\"'!$A$10:$A$80\"),0),FALSE)+'Labor and Maintenance '!$E$22","v":748},{"$f":"VLOOKUP(B45,PQS!B:T,MATCH(PQS!$T$3,PQS!$B$3:$T$3,0),FALSE)*(1+'Country Input'!$C$47)","v":1248.155},3547.6549999999997,{"$f":"O45/I45","v":354.76549999999997},{"$f":"VLOOKUP(B45,PQS!$B:$AE,COLUMN(PQS!AD43)-1,FALSE)","v":55.480000000000011},{"$f":"IFERROR(1/HLOOKUP(B45,INDIRECT(\"'\"&A45&\"'!$10:$80\"),MATCH('Technology template'!$A$31,INDIRECT(\"'\"&A45&\"'!$A$10:$A$80\"),0),FALSE)*HLOOKUP(B45,INDIRECT(\"'\"&A45&\"'!$10:$80\"),MATCH('Technology template'!$A$41,INDIRECT(\"'\"&A45&\"'!$A10:$A$80\"),0),FALSE),0)*TechnicianHourlyWage+IF(A45=\"Solar w Battery\",1/'Labor and Maintenance '!$E$53*'Labor and Maintenance '!$D$53,0)+IF(A45=\"LT passive\", 1/'Labor and Maintenance '!$E$81*'Labor and Maintenance '!$D$81,0)","v":24},{"$f":"IFERROR(1/HLOOKUP(B45,INDIRECT(\"'\"&A45&\"'!$10:$80\"),MATCH('Technology template'!$A$34,INDIRECT(\"'\"&A45&\"'!$A$10:$A$80\"),0),FALSE)*(HLOOKUP(B45,INDIRECT(\"'\"&A45&\"'!$10:$80\"),MATCH('Technology template'!$A$44,INDIRECT(\"'\"&A45&\"'!$A10:$A$80\"),0),FALSE)*TechnicianHourlyWage+RemoteTravelCostPerDay),0)+IFERROR(1/HLOOKUP(B45,INDIRECT(\"'\"&A45&\"'!$10:$80\"),MATCH('Technology template'!$A$35,INDIRECT(\"'\"&A45&\"'!$A$10:$A$80\"),0),FALSE)*(HLOOKUP(B45,INDIRECT(\"'\"&A45&\"'!$10:$80\"),MATCH('Technology template'!$A$45,INDIRECT(\"'\"&A45&\"'!$A10:$A$80\"),0),FALSE)*TechnicianHourlyWage+RemoteTravelCostPerDay),0)+IFERROR(1/HLOOKUP(B45,INDIRECT(\"'\"&A45&\"'!$10:$80\"),MATCH('Technology template'!$A$37,INDIRECT(\"'\"&A45&\"'!$A$10:$A$80\"),0),FALSE)*(HLOOKUP(B45,INDIRECT(\"'\"&A45&\"'!$10:$80\"),MATCH('Technology template'!$A$46,INDIRECT(\"'\"&A45&\"'!$A10:$A$80\"),0),FALSE)*TechnicianHourlyWage+'Labor and Maintenance '!$B$8),0)","v":94.666666666666657},{"$f":"SUM(Q45:S45)*I45","v":1741.4666666666667},{"$f":"SUM(Q45:S45)","v":174.14666666666668},{"$f":"P45+U45","v":528.91216666666662},null,{"$f":"E45","v":"Aucma CFD-50"},{"$f":"IF(F45=0,O45/G45,O45/F45)","v":70.953099999999992},{"$f":"IF(F45=0,T45/G45,T45/F45)","v":34.829333333333331},{"$f":"Y45+Z45","v":105.78243333333333},null,{"$f":"E45","v":"Aucma CFD-50"},{"$f":"IF(F45=0, P45/G45, P45/F45)","v":7.0953099999999996},{"$f":"IF(F45=0, U45/G45, U45/F45)","v":3.4829333333333334},{"$f":"IF(F45=0, V45/G45, V45/F45)","v":10.578243333333333},null,{"$f":"E45","v":"Aucma CFD-50"},{"$f":"ROUNDUP(LitersPerDelivery/F45,0)","v":3},{"$f":"AI45*O45","v":10642.965},{"$f":"AI45*T45","v":5224.3999999999996},{"$f":"AJ45+AK45","v":15867.365},null,{"$f":"E45","v":"Aucma CFD-50"},{"$f":"ROUNDUP(LitersPerDelivery/F45,0)","v":3},{"$f":"AO45*AD45","v":21.28593},{"$f":"AO45*AE45","v":10.4488},{"$f":"+AP45+AQ45","v":31.734729999999999},null,{"$f":"E45","v":"Aucma CFD-50"},{"$f":"IF(F45=0, 'Country Input'!$D$7, ROUNDUP(LitersPerFacility/F45,0)*'Country Input'!$D$7)","v":10},{"$f":"AU45*O45","v":35476.549999999996},{"$f":"AU45*(SUM(Q45:S45))","v":1741.4666666666667},{"$f":"AV45+AW45","v":37218.016666666663},null,{"$f":"E45","v":"Aucma CFD-50"},{"$f":"ROUNDUP(LitersPerFacility/F45,0)*'Country Input'!$D$7*ROUNDUP('Total Solution Costs'!$B$2/Calculations!I45,0)","v":10},{"$f":"BA45*AD45","v":70.953099999999992},{"$f":"AW45/(F45*AU45)","v":3.4829333333333334},{"$f":"BB45+BC45","v":74.436033333333327},null,null,{"$f":"E45","v":"Aucma CFD-50"},{"$f":"(($U45+($O45)*IF(MOD(BH$3,$I45)=1,1,0)+Parts!$E$91*IF($J45=0,0,IF(MOD(BH$3,$I45)=1,IF(PQS!$R45=\"NO\",1,0),IF(MOD(BH$3,Calculations!$J45)=1,1,0)))+Parts!$E$92*IF(Calculations!$K45=0,0,IF(MOD(BH$3,$I45)=1,0,IF(MOD(BH$3,Calculations!$K45)=1,1,0))))*$AU45)*(1+'Country Input'!$C$45)^(Calculations!BH$3-$BH$3)+TrainingCost","v":37218.016666666663},{"$f":"(($U45+($O45)*IF(MOD(BI$3,$I45)=1,1,0)+Parts!$E$91*IF($J45=0,0,IF(MOD(BI$3,$I45)=1,IF(PQS!$R45=\"NO\",1,0),IF(MOD(BI$3,Calculations!$J45)=1,1,0)))+Parts!$E$92*IF(Calculations!$K45=0,0,IF(MOD(BI$3,$I45)=1,0,IF(MOD(BI$3,Calculations!$K45)=1,1,0))))*$AU45)*(1+'Country Input'!$C$45)^(Calculations!BI$3-$BH$3)","v":1741.4666666666667},{"$f":"(($U45+($O45)*IF(MOD(BJ$3,$I45)=1,1,0)+Parts!$E$91*IF($J45=0,0,IF(MOD(BJ$3,$I45)=1,IF(PQS!$R45=\"NO\",1,0),IF(MOD(BJ$3,Calculations!$J45)=1,1,0)))+Parts!$E$92*IF(Calculations!$K45=0,0,IF(MOD(BJ$3,$I45)=1,0,IF(MOD(BJ$3,Calculations!$K45)=1,1,0))))*$AU45)*(1+'Country Input'!$C$45)^(Calculations!BJ$3-$BH$3)","v":1741.4666666666667},{"$f":"(($U45+($O45)*IF(MOD(BK$3,$I45)=1,1,0)+Parts!$E$91*IF($J45=0,0,IF(MOD(BK$3,$I45)=1,IF(PQS!$R45=\"NO\",1,0),IF(MOD(BK$3,Calculations!$J45)=1,1,0)))+Parts!$E$92*IF(Calculations!$K45=0,0,IF(MOD(BK$3,$I45)=1,0,IF(MOD(BK$3,Calculations!$K45)=1,1,0))))*$AU45)*(1+'Country Input'!$C$45)^(Calculations!BK$3-$BH$3)","v":1741.4666666666667},{"$f":"(($U45+($O45)*IF(MOD(BL$3,$I45)=1,1,0)+Parts!$E$91*IF($J45=0,0,IF(MOD(BL$3,$I45)=1,IF(PQS!$R45=\"NO\",1,0),IF(MOD(BL$3,Calculations!$J45)=1,1,0)))+Parts!$E$92*IF(Calculations!$K45=0,0,IF(MOD(BL$3,$I45)=1,0,IF(MOD(BL$3,Calculations!$K45)=1,1,0))))*$AU45)*(1+'Country Input'!$C$45)^(Calculations!BL$3-$BH$3)","v":1741.4666666666667},{"$f":"(($U45+($O45)*IF(MOD(BM$3,$I45)=1,1,0)+Parts!$E$91*IF($J45=0,0,IF(MOD(BM$3,$I45)=1,IF(PQS!$R45=\"NO\",1,0),IF(MOD(BM$3,Calculations!$J45)=1,1,0)))+Parts!$E$92*IF(Calculations!$K45=0,0,IF(MOD(BM$3,$I45)=1,0,IF(MOD(BM$3,Calculations!$K45)=1,1,0))))*$AU45)*(1+'Country Input'!$C$45)^(Calculations!BM$3-$BH$3)","v":1741.4666666666667},{"$f":"(($U45+($O45)*IF(MOD(BN$3,$I45)=1,1,0)+Parts!$E$91*IF($J45=0,0,IF(MOD(BN$3,$I45)=1,IF(PQS!$R45=\"NO\",1,0),IF(MOD(BN$3,Calculations!$J45)=1,1,0)))+Parts!$E$92*IF(Calculations!$K45=0,0,IF(MOD(BN$3,$I45)=1,0,IF(MOD(BN$3,Calculations!$K45)=1,1,0))))*$AU45)*(1+'Country Input'!$C$45)^(Calculations!BN$3-$BH$3)","v":1741.4666666666667},{"$f":"(($U45+($O45)*IF(MOD(BO$3,$I45)=1,1,0)+Parts!$E$91*IF($J45=0,0,IF(MOD(BO$3,$I45)=1,IF(PQS!$R45=\"NO\",1,0),IF(MOD(BO$3,Calculations!$J45)=1,1,0)))+Parts!$E$92*IF(Calculations!$K45=0,0,IF(MOD(BO$3,$I45)=1,0,IF(MOD(BO$3,Calculations!$K45)=1,1,0))))*$AU45)*(1+'Country Input'!$C$45)^(Calculations!BO$3-$BH$3)","v":1741.4666666666667},{"$f":"(($U45+($O45)*IF(MOD(BP$3,$I45)=1,1,0)+Parts!$E$91*IF($J45=0,0,IF(MOD(BP$3,$I45)=1,IF(PQS!$R45=\"NO\",1,0),IF(MOD(BP$3,Calculations!$J45)=1,1,0)))+Parts!$E$92*IF(Calculations!$K45=0,0,IF(MOD(BP$3,$I45)=1,0,IF(MOD(BP$3,Calculations!$K45)=1,1,0))))*$AU45)*(1+'Country Input'!$C$45)^(Calculations!BP$3-$BH$3)","v":1741.4666666666667},{"$f":"(($U45+($O45)*IF(MOD(BQ$3,$I45)=1,1,0)+Parts!$E$91*IF($J45=0,0,IF(MOD(BQ$3,$I45)=1,IF(PQS!$R45=\"NO\",1,0),IF(MOD(BQ$3,Calculations!$J45)=1,1,0)))+Parts!$E$92*IF(Calculations!$K45=0,0,IF(MOD(BQ$3,$I45)=1,0,IF(MOD(BQ$3,Calculations!$K45)=1,1,0))))*$AU45)*(1+'Country Input'!$C$45)^(Calculations!BQ$3-$BH$3)","v":1741.4666666666667},{"$f":"(($U45+($O45)*IF(MOD(BR$3,$I45)=1,1,0)+Parts!$E$91*IF($J45=0,0,IF(MOD(BR$3,$I45)=1,IF(PQS!$R45=\"NO\",1,0),IF(MOD(BR$3,Calculations!$J45)=1,1,0)))+Parts!$E$92*IF(Calculations!$K45=0,0,IF(MOD(BR$3,$I45)=1,0,IF(MOD(BR$3,Calculations!$K45)=1,1,0))))*$AU45)*(1+'Country Input'!$C$45)^(Calculations!BR$3-$BH$3)","v":37218.016666666663},{"$f":"(($U45+($O45)*IF(MOD(BS$3,$I45)=1,1,0)+Parts!$E$91*IF($J45=0,0,IF(MOD(BS$3,$I45)=1,IF(PQS!$R45=\"NO\",1,0),IF(MOD(BS$3,Calculations!$J45)=1,1,0)))+Parts!$E$92*IF(Calculations!$K45=0,0,IF(MOD(BS$3,$I45)=1,0,IF(MOD(BS$3,Calculations!$K45)=1,1,0))))*$AU45)*(1+'Country Input'!$C$45)^(Calculations!BS$3-$BH$3)","v":1741.4666666666667},{"$f":"(($U45+($O45)*IF(MOD(BT$3,$I45)=1,1,0)+Parts!$E$91*IF($J45=0,0,IF(MOD(BT$3,$I45)=1,IF(PQS!$R45=\"NO\",1,0),IF(MOD(BT$3,Calculations!$J45)=1,1,0)))+Parts!$E$92*IF(Calculations!$K45=0,0,IF(MOD(BT$3,$I45)=1,0,IF(MOD(BT$3,Calculations!$K45)=1,1,0))))*$AU45)*(1+'Country Input'!$C$45)^(Calculations!BT$3-$BH$3)","v":1741.4666666666667},{"$f":"(($U45+($O45)*IF(MOD(BU$3,$I45)=1,1,0)+Parts!$E$91*IF($J45=0,0,IF(MOD(BU$3,$I45)=1,IF(PQS!$R45=\"NO\",1,0),IF(MOD(BU$3,Calculations!$J45)=1,1,0)))+Parts!$E$92*IF(Calculations!$K45=0,0,IF(MOD(BU$3,$I45)=1,0,IF(MOD(BU$3,Calculations!$K45)=1,1,0))))*$AU45)*(1+'Country Input'!$C$45)^(Calculations!BU$3-$BH$3)","v":1741.4666666666667},{"$f":"(($U45+($O45)*IF(MOD(BV$3,$I45)=1,1,0)+Parts!$E$91*IF($J45=0,0,IF(MOD(BV$3,$I45)=1,IF(PQS!$R45=\"NO\",1,0),IF(MOD(BV$3,Calculations!$J45)=1,1,0)))+Parts!$E$92*IF(Calculations!$K45=0,0,IF(MOD(BV$3,$I45)=1,0,IF(MOD(BV$3,Calculations!$K45)=1,1,0))))*$AU45)*(1+'Country Input'!$C$45)^(Calculations!BV$3-$BH$3)","v":1741.4666666666667},{"$f":"(($U45+($O45)*IF(MOD(BW$3,$I45)=1,1,0)+Parts!$E$91*IF($J45=0,0,IF(MOD(BW$3,$I45)=1,IF(PQS!$R45=\"NO\",1,0),IF(MOD(BW$3,Calculations!$J45)=1,1,0)))+Parts!$E$92*IF(Calculations!$K45=0,0,IF(MOD(BW$3,$I45)=1,0,IF(MOD(BW$3,Calculations!$K45)=1,1,0))))*$AU45)*(1+'Country Input'!$C$45)^(Calculations!BW$3-$BH$3)","v":1741.4666666666667},{"$f":"(($U45+($O45)*IF(MOD(BX$3,$I45)=1,1,0)+Parts!$E$91*IF($J45=0,0,IF(MOD(BX$3,$I45)=1,IF(PQS!$R45=\"NO\",1,0),IF(MOD(BX$3,Calculations!$J45)=1,1,0)))+Parts!$E$92*IF(Calculations!$K45=0,0,IF(MOD(BX$3,$I45)=1,0,IF(MOD(BX$3,Calculations!$K45)=1,1,0))))*$AU45)*(1+'Country Input'!$C$45)^(Calculations!BX$3-$BH$3)","v":1741.4666666666667},{"$f":"(($U45+($O45)*IF(MOD(BY$3,$I45)=1,1,0)+Parts!$E$91*IF($J45=0,0,IF(MOD(BY$3,$I45)=1,IF(PQS!$R45=\"NO\",1,0),IF(MOD(BY$3,Calculations!$J45)=1,1,0)))+Parts!$E$92*IF(Calculations!$K45=0,0,IF(MOD(BY$3,$I45)=1,0,IF(MOD(BY$3,Calculations!$K45)=1,1,0))))*$AU45)*(1+'Country Input'!$C$45)^(Calculations!BY$3-$BH$3)","v":1741.4666666666667},{"$f":"(($U45+($O45)*IF(MOD(BZ$3,$I45)=1,1,0)+Parts!$E$91*IF($J45=0,0,IF(MOD(BZ$3,$I45)=1,IF(PQS!$R45=\"NO\",1,0),IF(MOD(BZ$3,Calculations!$J45)=1,1,0)))+Parts!$E$92*IF(Calculations!$K45=0,0,IF(MOD(BZ$3,$I45)=1,0,IF(MOD(BZ$3,Calculations!$K45)=1,1,0))))*$AU45)*(1+'Country Input'!$C$45)^(Calculations!BZ$3-$BH$3)","v":1741.4666666666667},{"$f":"(($U45+($O45)*IF(MOD(CA$3,$I45)=1,1,0)+Parts!$E$91*IF($J45=0,0,IF(MOD(CA$3,$I45)=1,IF(PQS!$R45=\"NO\",1,0),IF(MOD(CA$3,Calculations!$J45)=1,1,0)))+Parts!$E$92*IF(Calculations!$K45=0,0,IF(MOD(CA$3,$I45)=1,0,IF(MOD(CA$3,Calculations!$K45)=1,1,0))))*$AU45)*(1+'Country Input'!$C$45)^(Calculations!CA$3-$BH$3)","v":1741.4666666666667},null,{"$f":"E45","v":"Aucma CFD-50"},{"$f":"BH45/((1+DiscountRate)^(COLUMN(CD45)-COLUMN($CD45)))","v":37218.016666666663},{"$f":"BI45/((1+DiscountRate)^(COLUMN(CE45)-COLUMN($CD45)))","v":1741.4666666666667},{"$f":"BJ45/((1+DiscountRate)^(COLUMN(CF45)-COLUMN($CD45)))","v":1741.4666666666667},{"$f":"BK45/((1+DiscountRate)^(COLUMN(CG45)-COLUMN($CD45)))","v":1741.4666666666667},{"$f":"BL45/((1+DiscountRate)^(COLUMN(CH45)-COLUMN($CD45)))","v":1741.4666666666667},{"$f":"BM45/((1+DiscountRate)^(COLUMN(CI45)-COLUMN($CD45)))","v":1741.4666666666667},{"$f":"BN45/((1+DiscountRate)^(COLUMN(CJ45)-COLUMN($CD45)))","v":1741.4666666666667},{"$f":"BO45/((1+DiscountRate)^(COLUMN(CK45)-COLUMN($CD45)))","v":1741.4666666666667},{"$f":"BP45/((1+DiscountRate)^(COLUMN(CL45)-COLUMN($CD45)))","v":1741.4666666666667},{"$f":"BQ45/((1+DiscountRate)^(COLUMN(CM45)-COLUMN($CD45)))","v":1741.4666666666667},{"$f":"BR45/((1+DiscountRate)^(COLUMN(CN45)-COLUMN($CD45)))","v":37218.016666666663},{"$f":"BS45/((1+DiscountRate)^(COLUMN(CO45)-COLUMN($CD45)))","v":1741.4666666666667},{"$f":"BT45/((1+DiscountRate)^(COLUMN(CP45)-COLUMN($CD45)))","v":1741.4666666666667},{"$f":"BU45/((1+DiscountRate)^(COLUMN(CQ45)-COLUMN($CD45)))","v":1741.4666666666667},{"$f":"BV45/((1+DiscountRate)^(COLUMN(CR45)-COLUMN($CD45)))","v":1741.4666666666667},{"$f":"BW45/((1+DiscountRate)^(COLUMN(CS45)-COLUMN($CD45)))","v":1741.4666666666667},{"$f":"BX45/((1+DiscountRate)^(COLUMN(CT45)-COLUMN($CD45)))","v":1741.4666666666667},{"$f":"BY45/((1+DiscountRate)^(COLUMN(CU45)-COLUMN($CD45)))","v":1741.4666666666667},{"$f":"BZ45/((1+DiscountRate)^(COLUMN(CV45)-COLUMN($CD45)))","v":1741.4666666666667},{"$f":"CA45/((1+DiscountRate)^(COLUMN(CW45)-COLUMN($CD45)))","v":1741.4666666666667},{"$f":"SUM(CD45:INDEX($CD45:$CW45,1,'Total Solution Costs'!$B$2))","v":52891.216666666667},null,{"$f":"CC45","v":"Aucma CFD-50"},{"$f":"SUM($BH45:BH45)","v":37218.016666666663},{"$f":"SUM($BH45:BI45)","v":38959.48333333333},{"$f":"SUM($BH45:BJ45)","v":40700.949999999997},{"$f":"SUM($BH45:BK45)","v":42442.416666666664},{"$f":"SUM($BH45:BL45)","v":44183.883333333331},{"$f":"SUM($BH45:BM45)","v":45925.35},{"$f":"SUM($BH45:BN45)","v":47666.816666666666},{"$f":"SUM($BH45:BO45)","v":49408.283333333333},{"$f":"SUM($BH45:BP45)","v":51149.75},{"$f":"SUM($BH45:BQ45)","v":52891.216666666667},{"$f":"SUM($BH45:BR45)","v":90109.233333333337},{"$f":"SUM($BH45:BS45)","v":91850.7},{"$f":"SUM($BH45:BT45)","v":93592.166666666657},{"$f":"SUM($BH45:BU45)","v":95333.633333333317},{"$f":"SUM($BH45:BV45)","v":97075.099999999977},{"$f":"SUM($BH45:BW45)","v":98816.566666666637},{"$f":"SUM($BH45:BX45)","v":100558.0333333333},{"$f":"SUM($BH45:BY45)","v":102299.49999999996},{"$f":"SUM($BH45:BZ45)","v":104040.96666666662},{"$f":"SUM($BH45:CA45)","v":105782.43333333328}]
[{"$f":"PQS!A46","v":"ILR"},{"$f":"PQS!B46","v":"E003/080"},{"$f":"PQS!E46","v":"GVR 51 LITE AC*"},{"$f":"PQS!F46","v":"Godrej & Boyce "},{"$f":"PQS!D46","v":"Godrej & Boyce  GVR 51 LITE AC*"},{"$f":"VLOOKUP(E46,PQS!$D$5:$K$107,COLUMN(PQS!$I$3)-COLUMN(PQS!$D$3)+1,FALSE)","v":51},{"$f":"VLOOKUP(E46,PQS!$D$5:$K$107,COLUMN(PQS!$J$3)-COLUMN(PQS!$D$3)+1,FALSE)","v":0},{"$f":"VLOOKUP(E46,PQS!$D$5:$K$107,COLUMN(PQS!$G$3)-COLUMN(PQS!$D$3)+1,FALSE)","v":"Yes"},{"$f":"HLOOKUP(B46,INDIRECT(\"'\"&A46&\"'!$10:$15\"),ROW('Technology template'!$A$11)-ROW('Technology template'!$A$10)+1,FALSE)","v":10},{"$f":"HLOOKUP(B46,INDIRECT(\"'\"&A46&\"'!$10:$15\"),ROW('Technology template'!$A$12)-ROW('Technology template'!$A$10)+1,FALSE)","v":0},{"$f":"HLOOKUP(B46,INDIRECT(\"'\"&A46&\"'!$10:$15\"),ROW('Technology template'!$A$13)-ROW('Technology template'!$A$10)+1,FALSE)","v":0},{"$f":"VLOOKUP(B46,PQS!$B:$Q,MATCH(PQS!$Q$3,PQS!$B$3:$Q$3,0),FALSE)*(1+'Country Input'!$C$47)+HLOOKUP(B46,INDIRECT(\"'\"&A46&\"'!$10:$15\"),ROW('Technology template'!$A$14)-ROW('Technology template'!$A$10)+1,FALSE)*(1+'Country Input'!$C$47)","v":1979.5},{"$f":"HLOOKUP(B46,INDIRECT(\"'\"&A46&\"'!$10:$80\"),MATCH('Technology template'!$A$27,INDIRECT(\"'\"&A46&\"'!$A$10:$A$80\"),0),FALSE)+'Labor and Maintenance '!$E$22","v":748},{"$f":"VLOOKUP(B46,PQS!B:T,MATCH(PQS!$T$3,PQS!$B$3:$T$3,0),FALSE)*(1+'Country Input'!$C$47)","v":221.49},2948.99,294.899,{"$f":"VLOOKUP(B46,PQS!$B:$AE,COLUMN(PQS!AD44)-1,FALSE)","v":148.92000000000002},{"$f":"IFERROR(1/HLOOKUP(B46,INDIRECT(\"'\"&A46&\"'!$10:$80\"),MATCH('Technology template'!$A$31,INDIRECT(\"'\"&A46&\"'!$A$10:$A$80\"),0),FALSE)*HLOOKUP(B46,INDIRECT(\"'\"&A46&\"'!$10:$80\"),MATCH('Technology template'!$A$41,INDIRECT(\"'\"&A46&\"'!$A10:$A$80\"),0),FALSE),0)*TechnicianHourlyWage+IF(A46=\"Solar w Battery\",1/'Labor and Maintenance '!$E$53*'Labor and Maintenance '!$D$53,0)+IF(A46=\"LT passive\", 1/'Labor and Maintenance '!$E$81*'Labor and Maintenance '!$D$81,0)","v":24},{"$f":"IFERROR(1/HLOOKUP(B46,INDIRECT(\"'\"&A46&\"'!$10:$80\"),MATCH('Technology template'!$A$34,INDIRECT(\"'\"&A46&\"'!$A$10:$A$80\"),0),FALSE)*(HLOOKUP(B46,INDIRECT(\"'\"&A46&\"'!$10:$80\"),MATCH('Technology template'!$A$44,INDIRECT(\"'\"&A46&\"'!$A10:$A$80\"),0),FALSE)*TechnicianHourlyWage+RemoteTravelCostPerDay),0)+IFERROR(1/HLOOKUP(B46,INDIRECT(\"'\"&A46&\"'!$10:$80\"),MATCH('Technology template'!$A$35,INDIRECT(\"'\"&A46&\"'!$A$10:$A$80\"),0),FALSE)*(HLOOKUP(B46,INDIRECT(\"'\"&A46&\"'!$10:$80\"),MATCH('Technology template'!$A$45,INDIRECT(\"'\"&A46&\"'!$A10:$A$80\"),0),FALSE)*TechnicianHourlyWage+RemoteTravelCostPerDay),0)+IFERROR(1/HLOOKUP(B46,INDIRECT(\"'\"&A46&\"'!$10:$80\"),MATCH('Technology template'!$A$37,INDIRECT(\"'\"&A46&\"'!$A$10:$A$80\"),0),FALSE)*(HLOOKUP(B46,INDIRECT(\"'\"&A46&\"'!$10:$80\"),MATCH('Technology template'!$A$46,INDIRECT(\"'\"&A46&\"'!$A10:$A$80\"),0),FALSE)*TechnicianHourlyWage+'Labor and Maintenance '!$B$8),0)","v":94.666666666666657},2675.8666666666668,267.5866666666667,562.4856666666667,null,"Godrej & Boyce  GVR 51 LITE AC*",57.823333333333331,52.467973856209156,110.29130718954249,null,"Godrej & Boyce  GVR 51 LITE AC*",5.7823333333333338,5.2467973856209156,11.029130718954249,null,"Godrej & Boyce  GVR 51 LITE AC*",3,8846.9699999999993,8027.6,16874.57,null,"Godrej & Boyce  GVR 51 LITE AC*",3,17.347000000000001,15.740392156862747,33.087392156862748,null,"Godrej & Boyce  GVR 51 LITE AC*",{"$f":"IF(F46=0, 'Country Input'!$D$7, ROUNDUP(LitersPerFacility/F46,0)*'Country Input'!$D$7)","v":10},29489.899999999998,2675.8666666666668,32165.766666666663,null,"Godrej & Boyce  GVR 51 LITE AC*",{"$f":"ROUNDUP(LitersPerFacility/F46,0)*'Country Input'!$D$7*ROUNDUP('Total Solution Costs'!$B$2/Calculations!I46,0)","v":10},57.823333333333338,5.2467973856209156,63.070130718954253,null,null,"Godrej & Boyce  GVR 51 LITE AC*",{"$f":"(($U46+($O46)*IF(MOD(BH$3,$I46)=1,1,0)+Parts!$E$91*IF($J46=0,0,IF(MOD(BH$3,$I46)=1,IF(PQS!$R46=\"NO\",1,0),IF(MOD(BH$3,Calculations!$J46)=1,1,0)))+Parts!$E$92*IF(Calculations!$K46=0,0,IF(MOD(BH$3,$I46)=1,0,IF(MOD(BH$3,Calculations!$K46)=1,1,0))))*$AU46)*(1+'Country Input'!$C$45)^(Calculations!BH$3-$BH$3)+TrainingCost","v":32165.766666666663},{"$f":"(($U46+($O46)*IF(MOD(BI$3,$I46)=1,1,0)+Parts!$E$91*IF($J46=0,0,IF(MOD(BI$3,$I46)=1,IF(PQS!$R46=\"NO\",1,0),IF(MOD(BI$3,Calculations!$J46)=1,1,0)))+Parts!$E$92*IF(Calculations!$K46=0,0,IF(MOD(BI$3,$I46)=1,0,IF(MOD(BI$3,Calculations!$K46)=1,1,0))))*$AU46)*(1+'Country Input'!$C$45)^(Calculations!BI$3-$BH$3)","v":2675.8666666666668},{"$f":"(($U46+($O46)*IF(MOD(BJ$3,$I46)=1,1,0)+Parts!$E$91*IF($J46=0,0,IF(MOD(BJ$3,$I46)=1,IF(PQS!$R46=\"NO\",1,0),IF(MOD(BJ$3,Calculations!$J46)=1,1,0)))+Parts!$E$92*IF(Calculations!$K46=0,0,IF(MOD(BJ$3,$I46)=1,0,IF(MOD(BJ$3,Calculations!$K46)=1,1,0))))*$AU46)*(1+'Country Input'!$C$45)^(Calculations!BJ$3-$BH$3)","v":2675.8666666666668},{"$f":"(($U46+($O46)*IF(MOD(BK$3,$I46)=1,1,0)+Parts!$E$91*IF($J46=0,0,IF(MOD(BK$3,$I46)=1,IF(PQS!$R46=\"NO\",1,0),IF(MOD(BK$3,Calculations!$J46)=1,1,0)))+Parts!$E$92*IF(Calculations!$K46=0,0,IF(MOD(BK$3,$I46)=1,0,IF(MOD(BK$3,Calculations!$K46)=1,1,0))))*$AU46)*(1+'Country Input'!$C$45)^(Calculations!BK$3-$BH$3)","v":2675.8666666666668},{"$f":"(($U46+($O46)*IF(MOD(BL$3,$I46)=1,1,0)+Parts!$E$91*IF($J46=0,0,IF(MOD(BL$3,$I46)=1,IF(PQS!$R46=\"NO\",1,0),IF(MOD(BL$3,Calculations!$J46)=1,1,0)))+Parts!$E$92*IF(Calculations!$K46=0,0,IF(MOD(BL$3,$I46)=1,0,IF(MOD(BL$3,Calculations!$K46)=1,1,0))))*$AU46)*(1+'Country Input'!$C$45)^(Calculations!BL$3-$BH$3)","v":2675.8666666666668},{"$f":"(($U46+($O46)*IF(MOD(BM$3,$I46)=1,1,0)+Parts!$E$91*IF($J46=0,0,IF(MOD(BM$3,$I46)=1,IF(PQS!$R46=\"NO\",1,0),IF(MOD(BM$3,Calculations!$J46)=1,1,0)))+Parts!$E$92*IF(Calculations!$K46=0,0,IF(MOD(BM$3,$I46)=1,0,IF(MOD(BM$3,Calculations!$K46)=1,1,0))))*$AU46)*(1+'Country Input'!$C$45)^(Calculations!BM$3-$BH$3)","v":2675.8666666666668},{"$f":"(($U46+($O46)*IF(MOD(BN$3,$I46)=1,1,0)+Parts!$E$91*IF($J46=0,0,IF(MOD(BN$3,$I46)=1,IF(PQS!$R46=\"NO\",1,0),IF(MOD(BN$3,Calculations!$J46)=1,1,0)))+Parts!$E$92*IF(Calculations!$K46=0,0,IF(MOD(BN$3,$I46)=1,0,IF(MOD(BN$3,Calculations!$K46)=1,1,0))))*$AU46)*(1+'Country Input'!$C$45)^(Calculations!BN$3-$BH$3)","v":2675.8666666666668},{"$f":"(($U46+($O46)*IF(MOD(BO$3,$I46)=1,1,0)+Parts!$E$91*IF($J46=0,0,IF(MOD(BO$3,$I46)=1,IF(PQS!$R46=\"NO\",1,0),IF(MOD(BO$3,Calculations!$J46)=1,1,0)))+Parts!$E$92*IF(Calculations!$K46=0,0,IF(MOD(BO$3,$I46)=1,0,IF(MOD(BO$3,Calculations!$K46)=1,1,0))))*$AU46)*(1+'Country Input'!$C$45)^(Calculations!BO$3-$BH$3)","v":2675.8666666666668},{"$f":"(($U46+($O46)*IF(MOD(BP$3,$I46)=1,1,0)+Parts!$E$91*IF($J46=0,0,IF(MOD(BP$3,$I46)=1,IF(PQS!$R46=\"NO\",1,0),IF(MOD(BP$3,Calculations!$J46)=1,1,0)))+Parts!$E$92*IF(Calculations!$K46=0,0,IF(MOD(BP$3,$I46)=1,0,IF(MOD(BP$3,Calculations!$K46)=1,1,0))))*$AU46)*(1+'Country Input'!$C$45)^(Calculations!BP$3-$BH$3)","v":2675.8666666666668},{"$f":"(($U46+($O46)*IF(MOD(BQ$3,$I46)=1,1,0)+Parts!$E$91*IF($J46=0,0,IF(MOD(BQ$3,$I46)=1,IF(PQS!$R46=\"NO\",1,0),IF(MOD(BQ$3,Calculations!$J46)=1,1,0)))+Parts!$E$92*IF(Calculations!$K46=0,0,IF(MOD(BQ$3,$I46)=1,0,IF(MOD(BQ$3,Calculations!$K46)=1,1,0))))*$AU46)*(1+'Country Input'!$C$45)^(Calculations!BQ$3-$BH$3)","v":2675.8666666666668},{"$f":"(($U46+($O46)*IF(MOD(BR$3,$I46)=1,1,0)+Parts!$E$91*IF($J46=0,0,IF(MOD(BR$3,$I46)=1,IF(PQS!$R46=\"NO\",1,0),IF(MOD(BR$3,Calculations!$J46)=1,1,0)))+Parts!$E$92*IF(Calculations!$K46=0,0,IF(MOD(BR$3,$I46)=1,0,IF(MOD(BR$3,Calculations!$K46)=1,1,0))))*$AU46)*(1+'Country Input'!$C$45)^(Calculations!BR$3-$BH$3)","v":32165.766666666663},{"$f":"(($U46+($O46)*IF(MOD(BS$3,$I46)=1,1,0)+Parts!$E$91*IF($J46=0,0,IF(MOD(BS$3,$I46)=1,IF(PQS!$R46=\"NO\",1,0),IF(MOD(BS$3,Calculations!$J46)=1,1,0)))+Parts!$E$92*IF(Calculations!$K46=0,0,IF(MOD(BS$3,$I46)=1,0,IF(MOD(BS$3,Calculations!$K46)=1,1,0))))*$AU46)*(1+'Country Input'!$C$45)^(Calculations!BS$3-$BH$3)","v":2675.8666666666668},{"$f":"(($U46+($O46)*IF(MOD(BT$3,$I46)=1,1,0)+Parts!$E$91*IF($J46=0,0,IF(MOD(BT$3,$I46)=1,IF(PQS!$R46=\"NO\",1,0),IF(MOD(BT$3,Calculations!$J46)=1,1,0)))+Parts!$E$92*IF(Calculations!$K46=0,0,IF(MOD(BT$3,$I46)=1,0,IF(MOD(BT$3,Calculations!$K46)=1,1,0))))*$AU46)*(1+'Country Input'!$C$45)^(Calculations!BT$3-$BH$3)","v":2675.8666666666668},{"$f":"(($U46+($O46)*IF(MOD(BU$3,$I46)=1,1,0)+Parts!$E$91*IF($J46=0,0,IF(MOD(BU$3,$I46)=1,IF(PQS!$R46=\"NO\",1,0),IF(MOD(BU$3,Calculations!$J46)=1,1,0)))+Parts!$E$92*IF(Calculations!$K46=0,0,IF(MOD(BU$3,$I46)=1,0,IF(MOD(BU$3,Calculations!$K46)=1,1,0))))*$AU46)*(1+'Country Input'!$C$45)^(Calculations!BU$3-$BH$3)","v":2675.8666666666668},{"$f":"(($U46+($O46)*IF(MOD(BV$3,$I46)=1,1,0)+Parts!$E$91*IF($J46=0,0,IF(MOD(BV$3,$I46)=1,IF(PQS!$R46=\"NO\",1,0),IF(MOD(BV$3,Calculations!$J46)=1,1,0)))+Parts!$E$92*IF(Calculations!$K46=0,0,IF(MOD(BV$3,$I46)=1,0,IF(MOD(BV$3,Calculations!$K46)=1,1,0))))*$AU46)*(1+'Country Input'!$C$45)^(Calculations!BV$3-$BH$3)","v":2675.8666666666668},{"$f":"(($U46+($O46)*IF(MOD(BW$3,$I46)=1,1,0)+Parts!$E$91*IF($J46=0,0,IF(MOD(BW$3,$I46)=1,IF(PQS!$R46=\"NO\",1,0),IF(MOD(BW$3,Calculations!$J46)=1,1,0)))+Parts!$E$92*IF(Calculations!$K46=0,0,IF(MOD(BW$3,$I46)=1,0,IF(MOD(BW$3,Calculations!$K46)=1,1,0))))*$AU46)*(1+'Country Input'!$C$45)^(Calculations!BW$3-$BH$3)","v":2675.8666666666668},{"$f":"(($U46+($O46)*IF(MOD(BX$3,$I46)=1,1,0)+Parts!$E$91*IF($J46=0,0,IF(MOD(BX$3,$I46)=1,IF(PQS!$R46=\"NO\",1,0),IF(MOD(BX$3,Calculations!$J46)=1,1,0)))+Parts!$E$92*IF(Calculations!$K46=0,0,IF(MOD(BX$3,$I46)=1,0,IF(MOD(BX$3,Calculations!$K46)=1,1,0))))*$AU46)*(1+'Country Input'!$C$45)^(Calculations!BX$3-$BH$3)","v":2675.8666666666668},{"$f":"(($U46+($O46)*IF(MOD(BY$3,$I46)=1,1,0)+Parts!$E$91*IF($J46=0,0,IF(MOD(BY$3,$I46)=1,IF(PQS!$R46=\"NO\",1,0),IF(MOD(BY$3,Calculations!$J46)=1,1,0)))+Parts!$E$92*IF(Calculations!$K46=0,0,IF(MOD(BY$3,$I46)=1,0,IF(MOD(BY$3,Calculations!$K46)=1,1,0))))*$AU46)*(1+'Country Input'!$C$45)^(Calculations!BY$3-$BH$3)","v":2675.8666666666668},{"$f":"(($U46+($O46)*IF(MOD(BZ$3,$I46)=1,1,0)+Parts!$E$91*IF($J46=0,0,IF(MOD(BZ$3,$I46)=1,IF(PQS!$R46=\"NO\",1,0),IF(MOD(BZ$3,Calculations!$J46)=1,1,0)))+Parts!$E$92*IF(Calculations!$K46=0,0,IF(MOD(BZ$3,$I46)=1,0,IF(MOD(BZ$3,Calculations!$K46)=1,1,0))))*$AU46)*(1+'Country Input'!$C$45)^(Calculations!BZ$3-$BH$3)","v":2675.8666666666668},{"$f":"(($U46+($O46)*IF(MOD(CA$3,$I46)=1,1,0)+Parts!$E$91*IF($J46=0,0,IF(MOD(CA$3,$I46)=1,IF(PQS!$R46=\"NO\",1,0),IF(MOD(CA$3,Calculations!$J46)=1,1,0)))+Parts!$E$92*IF(Calculations!$K46=0,0,IF(MOD(CA$3,$I46)=1,0,IF(MOD(CA$3,Calculations!$K46)=1,1,0))))*$AU46)*(1+'Country Input'!$C$45)^(Calculations!CA$3-$BH$3)","v":2675.8666666666668},null,"Godrej & Boyce  GVR 51 LITE AC*",32165.766666666663,2675.8666666666668,2675.8666666666668,2675.8666666666668,2675.8666666666668,2675.8666666666668,2675.8666666666668,2675.8666666666668,2675.8666666666668,2675.8666666666668,32165.766666666663,2675.8666666666668,2675.8666666666668,2675.8666666666668,2675.8666666666668,2675.8666666666668,2675.8666666666668,2675.8666666666668,2675.8666666666668,2675.8666666666668,{"$f":"SUM(CD46:INDEX($CD46:$CW46,1,'Total Solution Costs'!$B$2))","v":56248.56666666668},null,"Godrej & Boyce  GVR 51 LITE AC*",{"$f":"SUM($BH46:BH46)","v":32165.766666666663},{"$f":"SUM($BH46:BI46)","v":34841.633333333331},{"$f":"SUM($BH46:BJ46)","v":37517.5},{"$f":"SUM($BH46:BK46)","v":40193.366666666669},{"$f":"SUM($BH46:BL46)","v":42869.233333333337},{"$f":"SUM($BH46:BM46)","v":45545.100000000006},{"$f":"SUM($BH46:BN46)","v":48220.966666666674},{"$f":"SUM($BH46:BO46)","v":50896.833333333343},{"$f":"SUM($BH46:BP46)","v":53572.700000000012},{"$f":"SUM($BH46:BQ46)","v":56248.56666666668},{"$f":"SUM($BH46:BR46)","v":88414.333333333343},{"$f":"SUM($BH46:BS46)","v":91090.200000000012},{"$f":"SUM($BH46:BT46)","v":93766.06666666668},{"$f":"SUM($BH46:BU46)","v":96441.933333333349},{"$f":"SUM($BH46:BV46)","v":99117.800000000017},{"$f":"SUM($BH46:BW46)","v":101793.66666666669},{"$f":"SUM($BH46:BX46)","v":104469.53333333335},{"$f":"SUM($BH46:BY46)","v":107145.40000000002},{"$f":"SUM($BH46:BZ46)","v":109821.26666666669},{"$f":"SUM($BH46:CA46)","v":112497.13333333336}]
[{"$f":"PQS!A47","v":"ILR"},{"$f":"PQS!B47","v":"E003/081"},{"$f":"PQS!E47","v":"GVR 75 Lite*"},{"$f":"PQS!F47","v":"Godrej & Boyce "},{"$f":"PQS!D47","v":"Godrej & Boyce  GVR 75 Lite*"},{"$f":"VLOOKUP(E47,PQS!$D$5:$K$107,COLUMN(PQS!$I$3)-COLUMN(PQS!$D$3)+1,FALSE)","v":72.5},{"$f":"VLOOKUP(E47,PQS!$D$5:$K$107,COLUMN(PQS!$J$3)-COLUMN(PQS!$D$3)+1,FALSE)","v":0},{"$f":"VLOOKUP(E47,PQS!$D$5:$K$107,COLUMN(PQS!$G$3)-COLUMN(PQS!$D$3)+1,FALSE)","v":"Yes"},{"$f":"HLOOKUP(B47,INDIRECT(\"'\"&A47&\"'!$10:$15\"),ROW('Technology template'!$A$11)-ROW('Technology template'!$A$10)+1,FALSE)","v":10},{"$f":"HLOOKUP(B47,INDIRECT(\"'\"&A47&\"'!$10:$15\"),ROW('Technology template'!$A$12)-ROW('Technology template'!$A$10)+1,FALSE)","v":0},{"$f":"HLOOKUP(B47,INDIRECT(\"'\"&A47&\"'!$10:$15\"),ROW('Technology template'!$A$13)-ROW('Technology template'!$A$10)+1,FALSE)","v":0},{"$f":"VLOOKUP(B47,PQS!$B:$Q,MATCH(PQS!$Q$3,PQS!$B$3:$Q$3,0),FALSE)*(1+'Country Input'!$C$47)+HLOOKUP(B47,INDIRECT(\"'\"&A47&\"'!$10:$15\"),ROW('Technology template'!$A$14)-ROW('Technology template'!$A$10)+1,FALSE)*(1+'Country Input'!$C$47)","v":1093.54},{"$f":"HLOOKUP(B47,INDIRECT(\"'\"&A47&\"'!$10:$80\"),MATCH('Technology template'!$A$27,INDIRECT(\"'\"&A47&\"'!$A$10:$A$80\"),0),FALSE)+'Labor and Maintenance '!$E$22","v":748},{"$f":"VLOOKUP(B47,PQS!B:T,MATCH(PQS!$T$3,PQS!$B$3:$T$3,0),FALSE)*(1+'Country Input'!$C$47)","v":221.49},2063.0299999999997,206.30299999999997,{"$f":"VLOOKUP(B47,PQS!$B:$AE,COLUMN(PQS!AD45)-1,FALSE)","v":107.30999999999999},{"$f":"IFERROR(1/HLOOKUP(B47,INDIRECT(\"'\"&A47&\"'!$10:$80\"),MATCH('Technology template'!$A$31,INDIRECT(\"'\"&A47&\"'!$A$10:$A$80\"),0),FALSE)*HLOOKUP(B47,INDIRECT(\"'\"&A47&\"'!$10:$80\"),MATCH('Technology template'!$A$41,INDIRECT(\"'\"&A47&\"'!$A10:$A$80\"),0),FALSE),0)*TechnicianHourlyWage+IF(A47=\"Solar w Battery\",1/'Labor and Maintenance '!$E$53*'Labor and Maintenance '!$D$53,0)+IF(A47=\"LT passive\", 1/'Labor and Maintenance '!$E$81*'Labor and Maintenance '!$D$81,0)","v":24},{"$f":"IFERROR(1/HLOOKUP(B47,INDIRECT(\"'\"&A47&\"'!$10:$80\"),MATCH('Technology template'!$A$34,INDIRECT(\"'\"&A47&\"'!$A$10:$A$80\"),0),FALSE)*(HLOOKUP(B47,INDIRECT(\"'\"&A47&\"'!$10:$80\"),MATCH('Technology template'!$A$44,INDIRECT(\"'\"&A47&\"'!$A10:$A$80\"),0),FALSE)*TechnicianHourlyWage+RemoteTravelCostPerDay),0)+IFERROR(1/HLOOKUP(B47,INDIRECT(\"'\"&A47&\"'!$10:$80\"),MATCH('Technology template'!$A$35,INDIRECT(\"'\"&A47&\"'!$A$10:$A$80\"),0),FALSE)*(HLOOKUP(B47,INDIRECT(\"'\"&A47&\"'!$10:$80\"),MATCH('Technology template'!$A$45,INDIRECT(\"'\"&A47&\"'!$A10:$A$80\"),0),FALSE)*TechnicianHourlyWage+RemoteTravelCostPerDay),0)+IFERROR(1/HLOOKUP(B47,INDIRECT(\"'\"&A47&\"'!$10:$80\"),MATCH('Technology template'!$A$37,INDIRECT(\"'\"&A47&\"'!$A$10:$A$80\"),0),FALSE)*(HLOOKUP(B47,INDIRECT(\"'\"&A47&\"'!$10:$80\"),MATCH('Technology template'!$A$46,INDIRECT(\"'\"&A47&\"'!$A10:$A$80\"),0),FALSE)*TechnicianHourlyWage+'Labor and Maintenance '!$B$8),0)","v":94.666666666666657},2259.7666666666664,225.97666666666666,432.27966666666663,null,"Godrej & Boyce  GVR 75 Lite*",28.455586206896548,31.169195402298847,59.624781609195395,null,"Godrej & Boyce  GVR 75 Lite*",2.8455586206896548,3.116919540229885,5.9624781609195399,null,"Godrej & Boyce  GVR 75 Lite*",2,4126.0599999999995,4519.5333333333328,8645.5933333333323,null,"Godrej & Boyce  GVR 75 Lite*",2,5.6911172413793096,6.2338390804597701,11.92495632183908,null,"Godrej & Boyce  GVR 75 Lite*",{"$f":"IF(F47=0, 'Country Input'!$D$7, ROUNDUP(LitersPerFacility/F47,0)*'Country Input'!$D$7)","v":10},20630.299999999996,2259.7666666666664,22890.066666666662,null,"Godrej & Boyce  GVR 75 Lite*",{"$f":"ROUNDUP(LitersPerFacility/F47,0)*'Country Input'!$D$7*ROUNDUP('Total Solution Costs'!$B$2/Calculations!I47,0)","v":10},28.455586206896548,3.1169195402298846,31.572505747126431,null,null,"Godrej & Boyce  GVR 75 Lite*",{"$f":"(($U47+($O47)*IF(MOD(BH$3,$I47)=1,1,0)+Parts!$E$91*IF($J47=0,0,IF(MOD(BH$3,$I47)=1,IF(PQS!$R47=\"NO\",1,0),IF(MOD(BH$3,Calculations!$J47)=1,1,0)))+Parts!$E$92*IF(Calculations!$K47=0,0,IF(MOD(BH$3,$I47)=1,0,IF(MOD(BH$3,Calculations!$K47)=1,1,0))))*$AU47)*(1+'Country Input'!$C$45)^(Calculations!BH$3-$BH$3)+TrainingCost","v":22890.066666666662},{"$f":"(($U47+($O47)*IF(MOD(BI$3,$I47)=1,1,0)+Parts!$E$91*IF($J47=0,0,IF(MOD(BI$3,$I47)=1,IF(PQS!$R47=\"NO\",1,0),IF(MOD(BI$3,Calculations!$J47)=1,1,0)))+Parts!$E$92*IF(Calculations!$K47=0,0,IF(MOD(BI$3,$I47)=1,0,IF(MOD(BI$3,Calculations!$K47)=1,1,0))))*$AU47)*(1+'Country Input'!$C$45)^(Calculations!BI$3-$BH$3)","v":2259.7666666666664},{"$f":"(($U47+($O47)*IF(MOD(BJ$3,$I47)=1,1,0)+Parts!$E$91*IF($J47=0,0,IF(MOD(BJ$3,$I47)=1,IF(PQS!$R47=\"NO\",1,0),IF(MOD(BJ$3,Calculations!$J47)=1,1,0)))+Parts!$E$92*IF(Calculations!$K47=0,0,IF(MOD(BJ$3,$I47)=1,0,IF(MOD(BJ$3,Calculations!$K47)=1,1,0))))*$AU47)*(1+'Country Input'!$C$45)^(Calculations!BJ$3-$BH$3)","v":2259.7666666666664},{"$f":"(($U47+($O47)*IF(MOD(BK$3,$I47)=1,1,0)+Parts!$E$91*IF($J47=0,0,IF(MOD(BK$3,$I47)=1,IF(PQS!$R47=\"NO\",1,0),IF(MOD(BK$3,Calculations!$J47)=1,1,0)))+Parts!$E$92*IF(Calculations!$K47=0,0,IF(MOD(BK$3,$I47)=1,0,IF(MOD(BK$3,Calculations!$K47)=1,1,0))))*$AU47)*(1+'Country Input'!$C$45)^(Calculations!BK$3-$BH$3)","v":2259.7666666666664},{"$f":"(($U47+($O47)*IF(MOD(BL$3,$I47)=1,1,0)+Parts!$E$91*IF($J47=0,0,IF(MOD(BL$3,$I47)=1,IF(PQS!$R47=\"NO\",1,0),IF(MOD(BL$3,Calculations!$J47)=1,1,0)))+Parts!$E$92*IF(Calculations!$K47=0,0,IF(MOD(BL$3,$I47)=1,0,IF(MOD(BL$3,Calculations!$K47)=1,1,0))))*$AU47)*(1+'Country Input'!$C$45)^(Calculations!BL$3-$BH$3)","v":2259.7666666666664},{"$f":"(($U47+($O47)*IF(MOD(BM$3,$I47)=1,1,0)+Parts!$E$91*IF($J47=0,0,IF(MOD(BM$3,$I47)=1,IF(PQS!$R47=\"NO\",1,0),IF(MOD(BM$3,Calculations!$J47)=1,1,0)))+Parts!$E$92*IF(Calculations!$K47=0,0,IF(MOD(BM$3,$I47)=1,0,IF(MOD(BM$3,Calculations!$K47)=1,1,0))))*$AU47)*(1+'Country Input'!$C$45)^(Calculations!BM$3-$BH$3)","v":2259.7666666666664},{"$f":"(($U47+($O47)*IF(MOD(BN$3,$I47)=1,1,0)+Parts!$E$91*IF($J47=0,0,IF(MOD(BN$3,$I47)=1,IF(PQS!$R47=\"NO\",1,0),IF(MOD(BN$3,Calculations!$J47)=1,1,0)))+Parts!$E$92*IF(Calculations!$K47=0,0,IF(MOD(BN$3,$I47)=1,0,IF(MOD(BN$3,Calculations!$K47)=1,1,0))))*$AU47)*(1+'Country Input'!$C$45)^(Calculations!BN$3-$BH$3)","v":2259.7666666666664},{"$f":"(($U47+($O47)*IF(MOD(BO$3,$I47)=1,1,0)+Parts!$E$91*IF($J47=0,0,IF(MOD(BO$3,$I47)=1,IF(PQS!$R47=\"NO\",1,0),IF(MOD(BO$3,Calculations!$J47)=1,1,0)))+Parts!$E$92*IF(Calculations!$K47=0,0,IF(MOD(BO$3,$I47)=1,0,IF(MOD(BO$3,Calculations!$K47)=1,1,0))))*$AU47)*(1+'Country Input'!$C$45)^(Calculations!BO$3-$BH$3)","v":2259.7666666666664},{"$f":"(($U47+($O47)*IF(MOD(BP$3,$I47)=1,1,0)+Parts!$E$91*IF($J47=0,0,IF(MOD(BP$3,$I47)=1,IF(PQS!$R47=\"NO\",1,0),IF(MOD(BP$3,Calculations!$J47)=1,1,0)))+Parts!$E$92*IF(Calculations!$K47=0,0,IF(MOD(BP$3,$I47)=1,0,IF(MOD(BP$3,Calculations!$K47)=1,1,0))))*$AU47)*(1+'Country Input'!$C$45)^(Calculations!BP$3-$BH$3)","v":2259.7666666666664},{"$f":"(($U47+($O47)*IF(MOD(BQ$3,$I47)=1,1,0)+Parts!$E$91*IF($J47=0,0,IF(MOD(BQ$3,$I47)=1,IF(PQS!$R47=\"NO\",1,0),IF(MOD(BQ$3,Calculations!$J47)=1,1,0)))+Parts!$E$92*IF(Calculations!$K47=0,0,IF(MOD(BQ$3,$I47)=1,0,IF(MOD(BQ$3,Calculations!$K47)=1,1,0))))*$AU47)*(1+'Country Input'!$C$45)^(Calculations!BQ$3-$BH$3)","v":2259.7666666666664},{"$f":"(($U47+($O47)*IF(MOD(BR$3,$I47)=1,1,0)+Parts!$E$91*IF($J47=0,0,IF(MOD(BR$3,$I47)=1,IF(PQS!$R47=\"NO\",1,0),IF(MOD(BR$3,Calculations!$J47)=1,1,0)))+Parts!$E$92*IF(Calculations!$K47=0,0,IF(MOD(BR$3,$I47)=1,0,IF(MOD(BR$3,Calculations!$K47)=1,1,0))))*$AU47)*(1+'Country Input'!$C$45)^(Calculations!BR$3-$BH$3)","v":22890.066666666662},{"$f":"(($U47+($O47)*IF(MOD(BS$3,$I47)=1,1,0)+Parts!$E$91*IF($J47=0,0,IF(MOD(BS$3,$I47)=1,IF(PQS!$R47=\"NO\",1,0),IF(MOD(BS$3,Calculations!$J47)=1,1,0)))+Parts!$E$92*IF(Calculations!$K47=0,0,IF(MOD(BS$3,$I47)=1,0,IF(MOD(BS$3,Calculations!$K47)=1,1,0))))*$AU47)*(1+'Country Input'!$C$45)^(Calculations!BS$3-$BH$3)","v":2259.7666666666664},{"$f":"(($U47+($O47)*IF(MOD(BT$3,$I47)=1,1,0)+Parts!$E$91*IF($J47=0,0,IF(MOD(BT$3,$I47)=1,IF(PQS!$R47=\"NO\",1,0),IF(MOD(BT$3,Calculations!$J47)=1,1,0)))+Parts!$E$92*IF(Calculations!$K47=0,0,IF(MOD(BT$3,$I47)=1,0,IF(MOD(BT$3,Calculations!$K47)=1,1,0))))*$AU47)*(1+'Country Input'!$C$45)^(Calculations!BT$3-$BH$3)","v":2259.7666666666664},{"$f":"(($U47+($O47)*IF(MOD(BU$3,$I47)=1,1,0)+Parts!$E$91*IF($J47=0,0,IF(MOD(BU$3,$I47)=1,IF(PQS!$R47=\"NO\",1,0),IF(MOD(BU$3,Calculations!$J47)=1,1,0)))+Parts!$E$92*IF(Calculations!$K47=0,0,IF(MOD(BU$3,$I47)=1,0,IF(MOD(BU$3,Calculations!$K47)=1,1,0))))*$AU47)*(1+'Country Input'!$C$45)^(Calculations!BU$3-$BH$3)","v":2259.7666666666664},{"$f":"(($U47+($O47)*IF(MOD(BV$3,$I47)=1,1,0)+Parts!$E$91*IF($J47=0,0,IF(MOD(BV$3,$I47)=1,IF(PQS!$R47=\"NO\",1,0),IF(MOD(BV$3,Calculations!$J47)=1,1,0)))+Parts!$E$92*IF(Calculations!$K47=0,0,IF(MOD(BV$3,$I47)=1,0,IF(MOD(BV$3,Calculations!$K47)=1,1,0))))*$AU47)*(1+'Country Input'!$C$45)^(Calculations!BV$3-$BH$3)","v":2259.7666666666664},{"$f":"(($U47+($O47)*IF(MOD(BW$3,$I47)=1,1,0)+Parts!$E$91*IF($J47=0,0,IF(MOD(BW$3,$I47)=1,IF(PQS!$R47=\"NO\",1,0),IF(MOD(BW$3,Calculations!$J47)=1,1,0)))+Parts!$E$92*IF(Calculations!$K47=0,0,IF(MOD(BW$3,$I47)=1,0,IF(MOD(BW$3,Calculations!$K47)=1,1,0))))*$AU47)*(1+'Country Input'!$C$45)^(Calculations!BW$3-$BH$3)","v":2259.7666666666664},{"$f":"(($U47+($O47)*IF(MOD(BX$3,$I47)=1,1,0)+Parts!$E$91*IF($J47=0,0,IF(MOD(BX$3,$I47)=1,IF(PQS!$R47=\"NO\",1,0),IF(MOD(BX$3,Calculations!$J47)=1,1,0)))+Parts!$E$92*IF(Calculations!$K47=0,0,IF(MOD(BX$3,$I47)=1,0,IF(MOD(BX$3,Calculations!$K47)=1,1,0))))*$AU47)*(1+'Country Input'!$C$45)^(Calculations!BX$3-$BH$3)","v":2259.7666666666664},{"$f":"(($U47+($O47)*IF(MOD(BY$3,$I47)=1,1,0)+Parts!$E$91*IF($J47=0,0,IF(MOD(BY$3,$I47)=1,IF(PQS!$R47=\"NO\",1,0),IF(MOD(BY$3,Calculations!$J47)=1,1,0)))+Parts!$E$92*IF(Calculations!$K47=0,0,IF(MOD(BY$3,$I47)=1,0,IF(MOD(BY$3,Calculations!$K47)=1,1,0))))*$AU47)*(1+'Country Input'!$C$45)^(Calculations!BY$3-$BH$3)","v":2259.7666666666664},{"$f":"(($U47+($O47)*IF(MOD(BZ$3,$I47)=1,1,0)+Parts!$E$91*IF($J47=0,0,IF(MOD(BZ$3,$I47)=1,IF(PQS!$R47=\"NO\",1,0),IF(MOD(BZ$3,Calculations!$J47)=1,1,0)))+Parts!$E$92*IF(Calculations!$K47=0,0,IF(MOD(BZ$3,$I47)=1,0,IF(MOD(BZ$3,Calculations!$K47)=1,1,0))))*$AU47)*(1+'Country Input'!$C$45)^(Calculations!BZ$3-$BH$3)","v":2259.7666666666664},{"$f":"(($U47+($O47)*IF(MOD(CA$3,$I47)=1,1,0)+Parts!$E$91*IF($J47=0,0,IF(MOD(CA$3,$I47)=1,IF(PQS!$R47=\"NO\",1,0),IF(MOD(CA$3,Calculations!$J47)=1,1,0)))+Parts!$E$92*IF(Calculations!$K47=0,0,IF(MOD(CA$3,$I47)=1,0,IF(MOD(CA$3,Calculations!$K47)=1,1,0))))*$AU47)*(1+'Country Input'!$C$45)^(Calculations!CA$3-$BH$3)","v":2259.7666666666664},null,"Godrej & Boyce  GVR 75 Lite*",22890.066666666662,2259.7666666666664,2259.7666666666664,2259.7666666666664,2259.7666666666664,2259.7666666666664,2259.7666666666664,2259.7666666666664,2259.7666666666664,2259.7666666666664,22890.066666666662,2259.7666666666664,2259.7666666666664,2259.7666666666664,2259.7666666666664,2259.7666666666664,2259.7666666666664,2259.7666666666664,2259.7666666666664,2259.7666666666664,{"$f":"SUM(CD47:INDEX($CD47:$CW47,1,'Total Solution Costs'!$B$2))","v":43227.966666666645},null,"Godrej & Boyce  GVR 75 Lite*",{"$f":"SUM($BH47:BH47)","v":22890.066666666662},{"$f":"SUM($BH47:BI47)","v":25149.833333333328},{"$f":"SUM($BH47:BJ47)","v":27409.599999999995},{"$f":"SUM($BH47:BK47)","v":29669.366666666661},{"$f":"SUM($BH47:BL47)","v":31929.133333333328},{"$f":"SUM($BH47:BM47)","v":34188.899999999994},{"$f":"SUM($BH47:BN47)","v":36448.666666666657},{"$f":"SUM($BH47:BO47)","v":38708.43333333332},{"$f":"SUM($BH47:BP47)","v":40968.199999999983},{"$f":"SUM($BH47:BQ47)","v":43227.966666666645},{"$f":"SUM($BH47:BR47)","v":66118.033333333311},{"$f":"SUM($BH47:BS47)","v":68377.799999999974},{"$f":"SUM($BH47:BT47)","v":70637.566666666637},{"$f":"SUM($BH47:BU47)","v":72897.333333333299},{"$f":"SUM($BH47:BV47)","v":75157.099999999962},{"$f":"SUM($BH47:BW47)","v":77416.866666666625},{"$f":"SUM($BH47:BX47)","v":79676.633333333288},{"$f":"SUM($BH47:BY47)","v":81936.399999999951},{"$f":"SUM($BH47:BZ47)","v":84196.166666666613},{"$f":"SUM($BH47:CA47)","v":86455.933333333276}]
[{"$f":"PQS!A48","v":"ILR"},{"$f":"PQS!B48","v":"E003/082"},{"$f":"PQS!E48","v":"GVR 99 Lite*"},{"$f":"PQS!F48","v":"Godrej & Boyce "},{"$f":"PQS!D48","v":"Godrej & Boyce  GVR 99 Lite*"},{"$f":"VLOOKUP(E48,PQS!$D$5:$K$107,COLUMN(PQS!$I$3)-COLUMN(PQS!$D$3)+1,FALSE)","v":98.5},{"$f":"VLOOKUP(E48,PQS!$D$5:$K$107,COLUMN(PQS!$J$3)-COLUMN(PQS!$D$3)+1,FALSE)","v":0},{"$f":"VLOOKUP(E48,PQS!$D$5:$K$107,COLUMN(PQS!$G$3)-COLUMN(PQS!$D$3)+1,FALSE)","v":"Yes"},{"$f":"HLOOKUP(B48,INDIRECT(\"'\"&A48&\"'!$10:$15\"),ROW('Technology template'!$A$11)-ROW('Technology template'!$A$10)+1,FALSE)","v":10},{"$f":"HLOOKUP(B48,INDIRECT(\"'\"&A48&\"'!$10:$15\"),ROW('Technology template'!$A$12)-ROW('Technology template'!$A$10)+1,FALSE)","v":0},{"$f":"HLOOKUP(B48,INDIRECT(\"'\"&A48&\"'!$10:$15\"),ROW('Technology template'!$A$13)-ROW('Technology template'!$A$10)+1,FALSE)","v":0},{"$f":"VLOOKUP(B48,PQS!$B:$Q,MATCH(PQS!$Q$3,PQS!$B$3:$Q$3,0),FALSE)*(1+'Country Input'!$C$47)+HLOOKUP(B48,INDIRECT(\"'\"&A48&\"'!$10:$15\"),ROW('Technology template'!$A$14)-ROW('Technology template'!$A$10)+1,FALSE)*(1+'Country Input'!$C$47)","v":1177},{"$f":"HLOOKUP(B48,INDIRECT(\"'\"&A48&\"'!$10:$80\"),MATCH('Technology template'!$A$27,INDIRECT(\"'\"&A48&\"'!$A$10:$A$80\"),0),FALSE)+'Labor and Maintenance '!$E$22","v":748},{"$f":"VLOOKUP(B48,PQS!B:T,MATCH(PQS!$T$3,PQS!$B$3:$T$3,0),FALSE)*(1+'Country Input'!$C$47)","v":221.49},2146.4899999999998,214.64899999999997,{"$f":"VLOOKUP(B48,PQS!$B:$AE,COLUMN(PQS!AD46)-1,FALSE)","v":89.789999999999992},{"$f":"IFERROR(1/HLOOKUP(B48,INDIRECT(\"'\"&A48&\"'!$10:$80\"),MATCH('Technology template'!$A$31,INDIRECT(\"'\"&A48&\"'!$A$10:$A$80\"),0),FALSE)*HLOOKUP(B48,INDIRECT(\"'\"&A48&\"'!$10:$80\"),MATCH('Technology template'!$A$41,INDIRECT(\"'\"&A48&\"'!$A10:$A$80\"),0),FALSE),0)*TechnicianHourlyWage+IF(A48=\"Solar w Battery\",1/'Labor and Maintenance '!$E$53*'Labor and Maintenance '!$D$53,0)+IF(A48=\"LT passive\", 1/'Labor and Maintenance '!$E$81*'Labor and Maintenance '!$D$81,0)","v":24},{"$f":"IFERROR(1/HLOOKUP(B48,INDIRECT(\"'\"&A48&\"'!$10:$80\"),MATCH('Technology template'!$A$34,INDIRECT(\"'\"&A48&\"'!$A$10:$A$80\"),0),FALSE)*(HLOOKUP(B48,INDIRECT(\"'\"&A48&\"'!$10:$80\"),MATCH('Technology template'!$A$44,INDIRECT(\"'\"&A48&\"'!$A10:$A$80\"),0),FALSE)*TechnicianHourlyWage+RemoteTravelCostPerDay),0)+IFERROR(1/HLOOKUP(B48,INDIRECT(\"'\"&A48&\"'!$10:$80\"),MATCH('Technology template'!$A$35,INDIRECT(\"'\"&A48&\"'!$A$10:$A$80\"),0),FALSE)*(HLOOKUP(B48,INDIRECT(\"'\"&A48&\"'!$10:$80\"),MATCH('Technology template'!$A$45,INDIRECT(\"'\"&A48&\"'!$A10:$A$80\"),0),FALSE)*TechnicianHourlyWage+RemoteTravelCostPerDay),0)+IFERROR(1/HLOOKUP(B48,INDIRECT(\"'\"&A48&\"'!$10:$80\"),MATCH('Technology template'!$A$37,INDIRECT(\"'\"&A48&\"'!$A$10:$A$80\"),0),FALSE)*(HLOOKUP(B48,INDIRECT(\"'\"&A48&\"'!$10:$80\"),MATCH('Technology template'!$A$46,INDIRECT(\"'\"&A48&\"'!$A10:$A$80\"),0),FALSE)*TechnicianHourlyWage+'Labor and Maintenance '!$B$8),0)","v":94.666666666666657},2084.5666666666666,208.45666666666665,423.10566666666659,null,"Godrej & Boyce  GVR 99 Lite*",21.79177664974619,21.163113367174279,42.954890016920473,null,"Godrej & Boyce  GVR 99 Lite*",2.1791776649746191,2.1163113367174278,4.2954890016920464,null,"Godrej & Boyce  GVR 99 Lite*",2,4292.9799999999996,4169.1333333333332,8462.1133333333328,null,"Godrej & Boyce  GVR 99 Lite*",2,4.3583553299492381,4.2326226734348555,8.5909780033840946,null,"Godrej & Boyce  GVR 99 Lite*",{"$f":"IF(F48=0, 'Country Input'!$D$7, ROUNDUP(LitersPerFacility/F48,0)*'Country Input'!$D$7)","v":10},21464.899999999998,2084.5666666666666,23549.466666666664,null,"Godrej & Boyce  GVR 99 Lite*",{"$f":"ROUNDUP(LitersPerFacility/F48,0)*'Country Input'!$D$7*ROUNDUP('Total Solution Costs'!$B$2/Calculations!I48,0)","v":10},21.79177664974619,2.1163113367174282,23.908087986463617,null,null,"Godrej & Boyce  GVR 99 Lite*",{"$f":"(($U48+($O48)*IF(MOD(BH$3,$I48)=1,1,0)+Parts!$E$91*IF($J48=0,0,IF(MOD(BH$3,$I48)=1,IF(PQS!$R48=\"NO\",1,0),IF(MOD(BH$3,Calculations!$J48)=1,1,0)))+Parts!$E$92*IF(Calculations!$K48=0,0,IF(MOD(BH$3,$I48)=1,0,IF(MOD(BH$3,Calculations!$K48)=1,1,0))))*$AU48)*(1+'Country Input'!$C$45)^(Calculations!BH$3-$BH$3)+TrainingCost","v":23549.466666666664},{"$f":"(($U48+($O48)*IF(MOD(BI$3,$I48)=1,1,0)+Parts!$E$91*IF($J48=0,0,IF(MOD(BI$3,$I48)=1,IF(PQS!$R48=\"NO\",1,0),IF(MOD(BI$3,Calculations!$J48)=1,1,0)))+Parts!$E$92*IF(Calculations!$K48=0,0,IF(MOD(BI$3,$I48)=1,0,IF(MOD(BI$3,Calculations!$K48)=1,1,0))))*$AU48)*(1+'Country Input'!$C$45)^(Calculations!BI$3-$BH$3)","v":2084.5666666666666},{"$f":"(($U48+($O48)*IF(MOD(BJ$3,$I48)=1,1,0)+Parts!$E$91*IF($J48=0,0,IF(MOD(BJ$3,$I48)=1,IF(PQS!$R48=\"NO\",1,0),IF(MOD(BJ$3,Calculations!$J48)=1,1,0)))+Parts!$E$92*IF(Calculations!$K48=0,0,IF(MOD(BJ$3,$I48)=1,0,IF(MOD(BJ$3,Calculations!$K48)=1,1,0))))*$AU48)*(1+'Country Input'!$C$45)^(Calculations!BJ$3-$BH$3)","v":2084.5666666666666},{"$f":"(($U48+($O48)*IF(MOD(BK$3,$I48)=1,1,0)+Parts!$E$91*IF($J48=0,0,IF(MOD(BK$3,$I48)=1,IF(PQS!$R48=\"NO\",1,0),IF(MOD(BK$3,Calculations!$J48)=1,1,0)))+Parts!$E$92*IF(Calculations!$K48=0,0,IF(MOD(BK$3,$I48)=1,0,IF(MOD(BK$3,Calculations!$K48)=1,1,0))))*$AU48)*(1+'Country Input'!$C$45)^(Calculations!BK$3-$BH$3)","v":2084.5666666666666},{"$f":"(($U48+($O48)*IF(MOD(BL$3,$I48)=1,1,0)+Parts!$E$91*IF($J48=0,0,IF(MOD(BL$3,$I48)=1,IF(PQS!$R48=\"NO\",1,0),IF(MOD(BL$3,Calculations!$J48)=1,1,0)))+Parts!$E$92*IF(Calculations!$K48=0,0,IF(MOD(BL$3,$I48)=1,0,IF(MOD(BL$3,Calculations!$K48)=1,1,0))))*$AU48)*(1+'Country Input'!$C$45)^(Calculations!BL$3-$BH$3)","v":2084.5666666666666},{"$f":"(($U48+($O48)*IF(MOD(BM$3,$I48)=1,1,0)+Parts!$E$91*IF($J48=0,0,IF(MOD(BM$3,$I48)=1,IF(PQS!$R48=\"NO\",1,0),IF(MOD(BM$3,Calculations!$J48)=1,1,0)))+Parts!$E$92*IF(Calculations!$K48=0,0,IF(MOD(BM$3,$I48)=1,0,IF(MOD(BM$3,Calculations!$K48)=1,1,0))))*$AU48)*(1+'Country Input'!$C$45)^(Calculations!BM$3-$BH$3)","v":2084.5666666666666},{"$f":"(($U48+($O48)*IF(MOD(BN$3,$I48)=1,1,0)+Parts!$E$91*IF($J48=0,0,IF(MOD(BN$3,$I48)=1,IF(PQS!$R48=\"NO\",1,0),IF(MOD(BN$3,Calculations!$J48)=1,1,0)))+Parts!$E$92*IF(Calculations!$K48=0,0,IF(MOD(BN$3,$I48)=1,0,IF(MOD(BN$3,Calculations!$K48)=1,1,0))))*$AU48)*(1+'Country Input'!$C$45)^(Calculations!BN$3-$BH$3)","v":2084.5666666666666},{"$f":"(($U48+($O48)*IF(MOD(BO$3,$I48)=1,1,0)+Parts!$E$91*IF($J48=0,0,IF(MOD(BO$3,$I48)=1,IF(PQS!$R48=\"NO\",1,0),IF(MOD(BO$3,Calculations!$J48)=1,1,0)))+Parts!$E$92*IF(Calculations!$K48=0,0,IF(MOD(BO$3,$I48)=1,0,IF(MOD(BO$3,Calculations!$K48)=1,1,0))))*$AU48)*(1+'Country Input'!$C$45)^(Calculations!BO$3-$BH$3)","v":2084.5666666666666},{"$f":"(($U48+($O48)*IF(MOD(BP$3,$I48)=1,1,0)+Parts!$E$91*IF($J48=0,0,IF(MOD(BP$3,$I48)=1,IF(PQS!$R48=\"NO\",1,0),IF(MOD(BP$3,Calculations!$J48)=1,1,0)))+Parts!$E$92*IF(Calculations!$K48=0,0,IF(MOD(BP$3,$I48)=1,0,IF(MOD(BP$3,Calculations!$K48)=1,1,0))))*$AU48)*(1+'Country Input'!$C$45)^(Calculations!BP$3-$BH$3)","v":2084.5666666666666},{"$f":"(($U48+($O48)*IF(MOD(BQ$3,$I48)=1,1,0)+Parts!$E$91*IF($J48=0,0,IF(MOD(BQ$3,$I48)=1,IF(PQS!$R48=\"NO\",1,0),IF(MOD(BQ$3,Calculations!$J48)=1,1,0)))+Parts!$E$92*IF(Calculations!$K48=0,0,IF(MOD(BQ$3,$I48)=1,0,IF(MOD(BQ$3,Calculations!$K48)=1,1,0))))*$AU48)*(1+'Country Input'!$C$45)^(Calculations!BQ$3-$BH$3)","v":2084.5666666666666},{"$f":"(($U48+($O48)*IF(MOD(BR$3,$I48)=1,1,0)+Parts!$E$91*IF($J48=0,0,IF(MOD(BR$3,$I48)=1,IF(PQS!$R48=\"NO\",1,0),IF(MOD(BR$3,Calculations!$J48)=1,1,0)))+Parts!$E$92*IF(Calculations!$K48=0,0,IF(MOD(BR$3,$I48)=1,0,IF(MOD(BR$3,Calculations!$K48)=1,1,0))))*$AU48)*(1+'Country Input'!$C$45)^(Calculations!BR$3-$BH$3)","v":23549.466666666664},{"$f":"(($U48+($O48)*IF(MOD(BS$3,$I48)=1,1,0)+Parts!$E$91*IF($J48=0,0,IF(MOD(BS$3,$I48)=1,IF(PQS!$R48=\"NO\",1,0),IF(MOD(BS$3,Calculations!$J48)=1,1,0)))+Parts!$E$92*IF(Calculations!$K48=0,0,IF(MOD(BS$3,$I48)=1,0,IF(MOD(BS$3,Calculations!$K48)=1,1,0))))*$AU48)*(1+'Country Input'!$C$45)^(Calculations!BS$3-$BH$3)","v":2084.5666666666666},{"$f":"(($U48+($O48)*IF(MOD(BT$3,$I48)=1,1,0)+Parts!$E$91*IF($J48=0,0,IF(MOD(BT$3,$I48)=1,IF(PQS!$R48=\"NO\",1,0),IF(MOD(BT$3,Calculations!$J48)=1,1,0)))+Parts!$E$92*IF(Calculations!$K48=0,0,IF(MOD(BT$3,$I48)=1,0,IF(MOD(BT$3,Calculations!$K48)=1,1,0))))*$AU48)*(1+'Country Input'!$C$45)^(Calculations!BT$3-$BH$3)","v":2084.5666666666666},{"$f":"(($U48+($O48)*IF(MOD(BU$3,$I48)=1,1,0)+Parts!$E$91*IF($J48=0,0,IF(MOD(BU$3,$I48)=1,IF(PQS!$R48=\"NO\",1,0),IF(MOD(BU$3,Calculations!$J48)=1,1,0)))+Parts!$E$92*IF(Calculations!$K48=0,0,IF(MOD(BU$3,$I48)=1,0,IF(MOD(BU$3,Calculations!$K48)=1,1,0))))*$AU48)*(1+'Country Input'!$C$45)^(Calculations!BU$3-$BH$3)","v":2084.5666666666666},{"$f":"(($U48+($O48)*IF(MOD(BV$3,$I48)=1,1,0)+Parts!$E$91*IF($J48=0,0,IF(MOD(BV$3,$I48)=1,IF(PQS!$R48=\"NO\",1,0),IF(MOD(BV$3,Calculations!$J48)=1,1,0)))+Parts!$E$92*IF(Calculations!$K48=0,0,IF(MOD(BV$3,$I48)=1,0,IF(MOD(BV$3,Calculations!$K48)=1,1,0))))*$AU48)*(1+'Country Input'!$C$45)^(Calculations!BV$3-$BH$3)","v":2084.5666666666666},{"$f":"(($U48+($O48)*IF(MOD(BW$3,$I48)=1,1,0)+Parts!$E$91*IF($J48=0,0,IF(MOD(BW$3,$I48)=1,IF(PQS!$R48=\"NO\",1,0),IF(MOD(BW$3,Calculations!$J48)=1,1,0)))+Parts!$E$92*IF(Calculations!$K48=0,0,IF(MOD(BW$3,$I48)=1,0,IF(MOD(BW$3,Calculations!$K48)=1,1,0))))*$AU48)*(1+'Country Input'!$C$45)^(Calculations!BW$3-$BH$3)","v":2084.5666666666666},{"$f":"(($U48+($O48)*IF(MOD(BX$3,$I48)=1,1,0)+Parts!$E$91*IF($J48=0,0,IF(MOD(BX$3,$I48)=1,IF(PQS!$R48=\"NO\",1,0),IF(MOD(BX$3,Calculations!$J48)=1,1,0)))+Parts!$E$92*IF(Calculations!$K48=0,0,IF(MOD(BX$3,$I48)=1,0,IF(MOD(BX$3,Calculations!$K48)=1,1,0))))*$AU48)*(1+'Country Input'!$C$45)^(Calculations!BX$3-$BH$3)","v":2084.5666666666666},{"$f":"(($U48+($O48)*IF(MOD(BY$3,$I48)=1,1,0)+Parts!$E$91*IF($J48=0,0,IF(MOD(BY$3,$I48)=1,IF(PQS!$R48=\"NO\",1,0),IF(MOD(BY$3,Calculations!$J48)=1,1,0)))+Parts!$E$92*IF(Calculations!$K48=0,0,IF(MOD(BY$3,$I48)=1,0,IF(MOD(BY$3,Calculations!$K48)=1,1,0))))*$AU48)*(1+'Country Input'!$C$45)^(Calculations!BY$3-$BH$3)","v":2084.5666666666666},{"$f":"(($U48+($O48)*IF(MOD(BZ$3,$I48)=1,1,0)+Parts!$E$91*IF($J48=0,0,IF(MOD(BZ$3,$I48)=1,IF(PQS!$R48=\"NO\",1,0),IF(MOD(BZ$3,Calculations!$J48)=1,1,0)))+Parts!$E$92*IF(Calculations!$K48=0,0,IF(MOD(BZ$3,$I48)=1,0,IF(MOD(BZ$3,Calculations!$K48)=1,1,0))))*$AU48)*(1+'Country Input'!$C$45)^(Calculations!BZ$3-$BH$3)","v":2084.5666666666666},{"$f":"(($U48+($O48)*IF(MOD(CA$3,$I48)=1,1,0)+Parts!$E$91*IF($J48=0,0,IF(MOD(CA$3,$I48)=1,IF(PQS!$R48=\"NO\",1,0),IF(MOD(CA$3,Calculations!$J48)=1,1,0)))+Parts!$E$92*IF(Calculations!$K48=0,0,IF(MOD(CA$3,$I48)=1,0,IF(MOD(CA$3,Calculations!$K48)=1,1,0))))*$AU48)*(1+'Country Input'!$C$45)^(Calculations!CA$3-$BH$3)","v":2084.5666666666666},null,"Godrej & Boyce  GVR 99 Lite*",23549.466666666664,2084.5666666666666,2084.5666666666666,2084.5666666666666,2084.5666666666666,2084.5666666666666,2084.5666666666666,2084.5666666666666,2084.5666666666666,2084.5666666666666,23549.466666666664,2084.5666666666666,2084.5666666666666,2084.5666666666666,2084.5666666666666,2084.5666666666666,2084.5666666666666,2084.5666666666666,2084.5666666666666,2084.5666666666666,{"$f":"SUM(CD48:INDEX($CD48:$CW48,1,'Total Solution Costs'!$B$2))","v":42310.566666666658},null,"Godrej & Boyce  GVR 99 Lite*",{"$f":"SUM($BH48:BH48)","v":23549.466666666664},{"$f":"SUM($BH48:BI48)","v":25634.033333333329},{"$f":"SUM($BH48:BJ48)","v":27718.599999999995},{"$f":"SUM($BH48:BK48)","v":29803.166666666661},{"$f":"SUM($BH48:BL48)","v":31887.733333333326},{"$f":"SUM($BH48:BM48)","v":33972.299999999996},{"$f":"SUM($BH48:BN48)","v":36056.866666666661},{"$f":"SUM($BH48:BO48)","v":38141.433333333327},{"$f":"SUM($BH48:BP48)","v":40225.999999999993},{"$f":"SUM($BH48:BQ48)","v":42310.566666666658},{"$f":"SUM($BH48:BR48)","v":65860.033333333326},{"$f":"SUM($BH48:BS48)","v":67944.599999999991},{"$f":"SUM($BH48:BT48)","v":70029.166666666657},{"$f":"SUM($BH48:BU48)","v":72113.733333333323},{"$f":"SUM($BH48:BV48)","v":74198.299999999988},{"$f":"SUM($BH48:BW48)","v":76282.866666666654},{"$f":"SUM($BH48:BX48)","v":78367.43333333332},{"$f":"SUM($BH48:BY48)","v":80451.999999999985},{"$f":"SUM($BH48:BZ48)","v":82536.566666666651},{"$f":"SUM($BH48:CA48)","v":84621.133333333317}]
[{"$f":"PQS!A49","v":"ILR"},{"$f":"PQS!B49","v":"E003/083"},{"$f":"PQS!E49","v":"GVR 225 AC*"},{"$f":"PQS!F49","v":"Godrej & Boyce "},{"$f":"PQS!D49","v":"Godrej & Boyce  GVR 225 AC*"},{"$f":"VLOOKUP(E49,PQS!$D$5:$K$107,COLUMN(PQS!$I$3)-COLUMN(PQS!$D$3)+1,FALSE)","v":225},{"$f":"VLOOKUP(E49,PQS!$D$5:$K$107,COLUMN(PQS!$J$3)-COLUMN(PQS!$D$3)+1,FALSE)","v":0},{"$f":"VLOOKUP(E49,PQS!$D$5:$K$107,COLUMN(PQS!$G$3)-COLUMN(PQS!$D$3)+1,FALSE)","v":"Yes"},{"$f":"HLOOKUP(B49,INDIRECT(\"'\"&A49&\"'!$10:$15\"),ROW('Technology template'!$A$11)-ROW('Technology template'!$A$10)+1,FALSE)","v":10},{"$f":"HLOOKUP(B49,INDIRECT(\"'\"&A49&\"'!$10:$15\"),ROW('Technology template'!$A$12)-ROW('Technology template'!$A$10)+1,FALSE)","v":0},{"$f":"HLOOKUP(B49,INDIRECT(\"'\"&A49&\"'!$10:$15\"),ROW('Technology template'!$A$13)-ROW('Technology template'!$A$10)+1,FALSE)","v":0},{"$f":"VLOOKUP(B49,PQS!$B:$Q,MATCH(PQS!$Q$3,PQS!$B$3:$Q$3,0),FALSE)*(1+'Country Input'!$C$47)+HLOOKUP(B49,INDIRECT(\"'\"&A49&\"'!$10:$15\"),ROW('Technology template'!$A$14)-ROW('Technology template'!$A$10)+1,FALSE)*(1+'Country Input'!$C$47)","v":1979.5},{"$f":"HLOOKUP(B49,INDIRECT(\"'\"&A49&\"'!$10:$80\"),MATCH('Technology template'!$A$27,INDIRECT(\"'\"&A49&\"'!$A$10:$A$80\"),0),FALSE)+'Labor and Maintenance '!$E$22","v":748},{"$f":"VLOOKUP(B49,PQS!B:T,MATCH(PQS!$T$3,PQS!$B$3:$T$3,0),FALSE)*(1+'Country Input'!$C$47)","v":166.92000000000002},2894.42,289.44200000000001,{"$f":"VLOOKUP(B49,PQS!$B:$AE,COLUMN(PQS!AD47)-1,FALSE)","v":148.92000000000002},{"$f":"IFERROR(1/HLOOKUP(B49,INDIRECT(\"'\"&A49&\"'!$10:$80\"),MATCH('Technology template'!$A$31,INDIRECT(\"'\"&A49&\"'!$A$10:$A$80\"),0),FALSE)*HLOOKUP(B49,INDIRECT(\"'\"&A49&\"'!$10:$80\"),MATCH('Technology template'!$A$41,INDIRECT(\"'\"&A49&\"'!$A10:$A$80\"),0),FALSE),0)*TechnicianHourlyWage+IF(A49=\"Solar w Battery\",1/'Labor and Maintenance '!$E$53*'Labor and Maintenance '!$D$53,0)+IF(A49=\"LT passive\", 1/'Labor and Maintenance '!$E$81*'Labor and Maintenance '!$D$81,0)","v":24},{"$f":"IFERROR(1/HLOOKUP(B49,INDIRECT(\"'\"&A49&\"'!$10:$80\"),MATCH('Technology template'!$A$34,INDIRECT(\"'\"&A49&\"'!$A$10:$A$80\"),0),FALSE)*(HLOOKUP(B49,INDIRECT(\"'\"&A49&\"'!$10:$80\"),MATCH('Technology template'!$A$44,INDIRECT(\"'\"&A49&\"'!$A10:$A$80\"),0),FALSE)*TechnicianHourlyWage+RemoteTravelCostPerDay),0)+IFERROR(1/HLOOKUP(B49,INDIRECT(\"'\"&A49&\"'!$10:$80\"),MATCH('Technology template'!$A$35,INDIRECT(\"'\"&A49&\"'!$A$10:$A$80\"),0),FALSE)*(HLOOKUP(B49,INDIRECT(\"'\"&A49&\"'!$10:$80\"),MATCH('Technology template'!$A$45,INDIRECT(\"'\"&A49&\"'!$A10:$A$80\"),0),FALSE)*TechnicianHourlyWage+RemoteTravelCostPerDay),0)+IFERROR(1/HLOOKUP(B49,INDIRECT(\"'\"&A49&\"'!$10:$80\"),MATCH('Technology template'!$A$37,INDIRECT(\"'\"&A49&\"'!$A$10:$A$80\"),0),FALSE)*(HLOOKUP(B49,INDIRECT(\"'\"&A49&\"'!$10:$80\"),MATCH('Technology template'!$A$46,INDIRECT(\"'\"&A49&\"'!$A10:$A$80\"),0),FALSE)*TechnicianHourlyWage+'Labor and Maintenance '!$B$8),0)","v":94.666666666666657},2675.8666666666668,267.5866666666667,557.02866666666671,null,"Godrej & Boyce  GVR 225 AC*",12.864088888888888,11.892740740740742,24.756829629629628,null,"Godrej & Boyce  GVR 225 AC*",1.2864088888888889,1.1892740740740742,2.4756829629629631,null,"Godrej & Boyce  GVR 225 AC*",1,2894.42,2675.8666666666668,5570.2866666666669,null,"Godrej & Boyce  GVR 225 AC*",1,1.2864088888888889,1.1892740740740742,2.4756829629629631,null,"Godrej & Boyce  GVR 225 AC*",{"$f":"IF(F49=0, 'Country Input'!$D$7, ROUNDUP(LitersPerFacility/F49,0)*'Country Input'!$D$7)","v":10},28944.2,2675.8666666666668,31620.066666666666,null,"Godrej & Boyce  GVR 225 AC*",{"$f":"ROUNDUP(LitersPerFacility/F49,0)*'Country Input'!$D$7*ROUNDUP('Total Solution Costs'!$B$2/Calculations!I49,0)","v":10},12.86408888888889,1.1892740740740742,14.053362962962964,null,null,"Godrej & Boyce  GVR 225 AC*",{"$f":"(($U49+($O49)*IF(MOD(BH$3,$I49)=1,1,0)+Parts!$E$91*IF($J49=0,0,IF(MOD(BH$3,$I49)=1,IF(PQS!$R49=\"NO\",1,0),IF(MOD(BH$3,Calculations!$J49)=1,1,0)))+Parts!$E$92*IF(Calculations!$K49=0,0,IF(MOD(BH$3,$I49)=1,0,IF(MOD(BH$3,Calculations!$K49)=1,1,0))))*$AU49)*(1+'Country Input'!$C$45)^(Calculations!BH$3-$BH$3)+TrainingCost","v":31620.066666666666},{"$f":"(($U49+($O49)*IF(MOD(BI$3,$I49)=1,1,0)+Parts!$E$91*IF($J49=0,0,IF(MOD(BI$3,$I49)=1,IF(PQS!$R49=\"NO\",1,0),IF(MOD(BI$3,Calculations!$J49)=1,1,0)))+Parts!$E$92*IF(Calculations!$K49=0,0,IF(MOD(BI$3,$I49)=1,0,IF(MOD(BI$3,Calculations!$K49)=1,1,0))))*$AU49)*(1+'Country Input'!$C$45)^(Calculations!BI$3-$BH$3)","v":2675.8666666666668},{"$f":"(($U49+($O49)*IF(MOD(BJ$3,$I49)=1,1,0)+Parts!$E$91*IF($J49=0,0,IF(MOD(BJ$3,$I49)=1,IF(PQS!$R49=\"NO\",1,0),IF(MOD(BJ$3,Calculations!$J49)=1,1,0)))+Parts!$E$92*IF(Calculations!$K49=0,0,IF(MOD(BJ$3,$I49)=1,0,IF(MOD(BJ$3,Calculations!$K49)=1,1,0))))*$AU49)*(1+'Country Input'!$C$45)^(Calculations!BJ$3-$BH$3)","v":2675.8666666666668},{"$f":"(($U49+($O49)*IF(MOD(BK$3,$I49)=1,1,0)+Parts!$E$91*IF($J49=0,0,IF(MOD(BK$3,$I49)=1,IF(PQS!$R49=\"NO\",1,0),IF(MOD(BK$3,Calculations!$J49)=1,1,0)))+Parts!$E$92*IF(Calculations!$K49=0,0,IF(MOD(BK$3,$I49)=1,0,IF(MOD(BK$3,Calculations!$K49)=1,1,0))))*$AU49)*(1+'Country Input'!$C$45)^(Calculations!BK$3-$BH$3)","v":2675.8666666666668},{"$f":"(($U49+($O49)*IF(MOD(BL$3,$I49)=1,1,0)+Parts!$E$91*IF($J49=0,0,IF(MOD(BL$3,$I49)=1,IF(PQS!$R49=\"NO\",1,0),IF(MOD(BL$3,Calculations!$J49)=1,1,0)))+Parts!$E$92*IF(Calculations!$K49=0,0,IF(MOD(BL$3,$I49)=1,0,IF(MOD(BL$3,Calculations!$K49)=1,1,0))))*$AU49)*(1+'Country Input'!$C$45)^(Calculations!BL$3-$BH$3)","v":2675.8666666666668},{"$f":"(($U49+($O49)*IF(MOD(BM$3,$I49)=1,1,0)+Parts!$E$91*IF($J49=0,0,IF(MOD(BM$3,$I49)=1,IF(PQS!$R49=\"NO\",1,0),IF(MOD(BM$3,Calculations!$J49)=1,1,0)))+Parts!$E$92*IF(Calculations!$K49=0,0,IF(MOD(BM$3,$I49)=1,0,IF(MOD(BM$3,Calculations!$K49)=1,1,0))))*$AU49)*(1+'Country Input'!$C$45)^(Calculations!BM$3-$BH$3)","v":2675.8666666666668},{"$f":"(($U49+($O49)*IF(MOD(BN$3,$I49)=1,1,0)+Parts!$E$91*IF($J49=0,0,IF(MOD(BN$3,$I49)=1,IF(PQS!$R49=\"NO\",1,0),IF(MOD(BN$3,Calculations!$J49)=1,1,0)))+Parts!$E$92*IF(Calculations!$K49=0,0,IF(MOD(BN$3,$I49)=1,0,IF(MOD(BN$3,Calculations!$K49)=1,1,0))))*$AU49)*(1+'Country Input'!$C$45)^(Calculations!BN$3-$BH$3)","v":2675.8666666666668},{"$f":"(($U49+($O49)*IF(MOD(BO$3,$I49)=1,1,0)+Parts!$E$91*IF($J49=0,0,IF(MOD(BO$3,$I49)=1,IF(PQS!$R49=\"NO\",1,0),IF(MOD(BO$3,Calculations!$J49)=1,1,0)))+Parts!$E$92*IF(Calculations!$K49=0,0,IF(MOD(BO$3,$I49)=1,0,IF(MOD(BO$3,Calculations!$K49)=1,1,0))))*$AU49)*(1+'Country Input'!$C$45)^(Calculations!BO$3-$BH$3)","v":2675.8666666666668},{"$f":"(($U49+($O49)*IF(MOD(BP$3,$I49)=1,1,0)+Parts!$E$91*IF($J49=0,0,IF(MOD(BP$3,$I49)=1,IF(PQS!$R49=\"NO\",1,0),IF(MOD(BP$3,Calculations!$J49)=1,1,0)))+Parts!$E$92*IF(Calculations!$K49=0,0,IF(MOD(BP$3,$I49)=1,0,IF(MOD(BP$3,Calculations!$K49)=1,1,0))))*$AU49)*(1+'Country Input'!$C$45)^(Calculations!BP$3-$BH$3)","v":2675.8666666666668},{"$f":"(($U49+($O49)*IF(MOD(BQ$3,$I49)=1,1,0)+Parts!$E$91*IF($J49=0,0,IF(MOD(BQ$3,$I49)=1,IF(PQS!$R49=\"NO\",1,0),IF(MOD(BQ$3,Calculations!$J49)=1,1,0)))+Parts!$E$92*IF(Calculations!$K49=0,0,IF(MOD(BQ$3,$I49)=1,0,IF(MOD(BQ$3,Calculations!$K49)=1,1,0))))*$AU49)*(1+'Country Input'!$C$45)^(Calculations!BQ$3-$BH$3)","v":2675.8666666666668},{"$f":"(($U49+($O49)*IF(MOD(BR$3,$I49)=1,1,0)+Parts!$E$91*IF($J49=0,0,IF(MOD(BR$3,$I49)=1,IF(PQS!$R49=\"NO\",1,0),IF(MOD(BR$3,Calculations!$J49)=1,1,0)))+Parts!$E$92*IF(Calculations!$K49=0,0,IF(MOD(BR$3,$I49)=1,0,IF(MOD(BR$3,Calculations!$K49)=1,1,0))))*$AU49)*(1+'Country Input'!$C$45)^(Calculations!BR$3-$BH$3)","v":31620.066666666666},{"$f":"(($U49+($O49)*IF(MOD(BS$3,$I49)=1,1,0)+Parts!$E$91*IF($J49=0,0,IF(MOD(BS$3,$I49)=1,IF(PQS!$R49=\"NO\",1,0),IF(MOD(BS$3,Calculations!$J49)=1,1,0)))+Parts!$E$92*IF(Calculations!$K49=0,0,IF(MOD(BS$3,$I49)=1,0,IF(MOD(BS$3,Calculations!$K49)=1,1,0))))*$AU49)*(1+'Country Input'!$C$45)^(Calculations!BS$3-$BH$3)","v":2675.8666666666668},{"$f":"(($U49+($O49)*IF(MOD(BT$3,$I49)=1,1,0)+Parts!$E$91*IF($J49=0,0,IF(MOD(BT$3,$I49)=1,IF(PQS!$R49=\"NO\",1,0),IF(MOD(BT$3,Calculations!$J49)=1,1,0)))+Parts!$E$92*IF(Calculations!$K49=0,0,IF(MOD(BT$3,$I49)=1,0,IF(MOD(BT$3,Calculations!$K49)=1,1,0))))*$AU49)*(1+'Country Input'!$C$45)^(Calculations!BT$3-$BH$3)","v":2675.8666666666668},{"$f":"(($U49+($O49)*IF(MOD(BU$3,$I49)=1,1,0)+Parts!$E$91*IF($J49=0,0,IF(MOD(BU$3,$I49)=1,IF(PQS!$R49=\"NO\",1,0),IF(MOD(BU$3,Calculations!$J49)=1,1,0)))+Parts!$E$92*IF(Calculations!$K49=0,0,IF(MOD(BU$3,$I49)=1,0,IF(MOD(BU$3,Calculations!$K49)=1,1,0))))*$AU49)*(1+'Country Input'!$C$45)^(Calculations!BU$3-$BH$3)","v":2675.8666666666668},{"$f":"(($U49+($O49)*IF(MOD(BV$3,$I49)=1,1,0)+Parts!$E$91*IF($J49=0,0,IF(MOD(BV$3,$I49)=1,IF(PQS!$R49=\"NO\",1,0),IF(MOD(BV$3,Calculations!$J49)=1,1,0)))+Parts!$E$92*IF(Calculations!$K49=0,0,IF(MOD(BV$3,$I49)=1,0,IF(MOD(BV$3,Calculations!$K49)=1,1,0))))*$AU49)*(1+'Country Input'!$C$45)^(Calculations!BV$3-$BH$3)","v":2675.8666666666668},{"$f":"(($U49+($O49)*IF(MOD(BW$3,$I49)=1,1,0)+Parts!$E$91*IF($J49=0,0,IF(MOD(BW$3,$I49)=1,IF(PQS!$R49=\"NO\",1,0),IF(MOD(BW$3,Calculations!$J49)=1,1,0)))+Parts!$E$92*IF(Calculations!$K49=0,0,IF(MOD(BW$3,$I49)=1,0,IF(MOD(BW$3,Calculations!$K49)=1,1,0))))*$AU49)*(1+'Country Input'!$C$45)^(Calculations!BW$3-$BH$3)","v":2675.8666666666668},{"$f":"(($U49+($O49)*IF(MOD(BX$3,$I49)=1,1,0)+Parts!$E$91*IF($J49=0,0,IF(MOD(BX$3,$I49)=1,IF(PQS!$R49=\"NO\",1,0),IF(MOD(BX$3,Calculations!$J49)=1,1,0)))+Parts!$E$92*IF(Calculations!$K49=0,0,IF(MOD(BX$3,$I49)=1,0,IF(MOD(BX$3,Calculations!$K49)=1,1,0))))*$AU49)*(1+'Country Input'!$C$45)^(Calculations!BX$3-$BH$3)","v":2675.8666666666668},{"$f":"(($U49+($O49)*IF(MOD(BY$3,$I49)=1,1,0)+Parts!$E$91*IF($J49=0,0,IF(MOD(BY$3,$I49)=1,IF(PQS!$R49=\"NO\",1,0),IF(MOD(BY$3,Calculations!$J49)=1,1,0)))+Parts!$E$92*IF(Calculations!$K49=0,0,IF(MOD(BY$3,$I49)=1,0,IF(MOD(BY$3,Calculations!$K49)=1,1,0))))*$AU49)*(1+'Country Input'!$C$45)^(Calculations!BY$3-$BH$3)","v":2675.8666666666668},{"$f":"(($U49+($O49)*IF(MOD(BZ$3,$I49)=1,1,0)+Parts!$E$91*IF($J49=0,0,IF(MOD(BZ$3,$I49)=1,IF(PQS!$R49=\"NO\",1,0),IF(MOD(BZ$3,Calculations!$J49)=1,1,0)))+Parts!$E$92*IF(Calculations!$K49=0,0,IF(MOD(BZ$3,$I49)=1,0,IF(MOD(BZ$3,Calculations!$K49)=1,1,0))))*$AU49)*(1+'Country Input'!$C$45)^(Calculations!BZ$3-$BH$3)","v":2675.8666666666668},{"$f":"(($U49+($O49)*IF(MOD(CA$3,$I49)=1,1,0)+Parts!$E$91*IF($J49=0,0,IF(MOD(CA$3,$I49)=1,IF(PQS!$R49=\"NO\",1,0),IF(MOD(CA$3,Calculations!$J49)=1,1,0)))+Parts!$E$92*IF(Calculations!$K49=0,0,IF(MOD(CA$3,$I49)=1,0,IF(MOD(CA$3,Calculations!$K49)=1,1,0))))*$AU49)*(1+'Country Input'!$C$45)^(Calculations!CA$3-$BH$3)","v":2675.8666666666668},null,"Godrej & Boyce  GVR 225 AC*",31620.066666666666,2675.8666666666668,2675.8666666666668,2675.8666666666668,2675.8666666666668,2675.8666666666668,2675.8666666666668,2675.8666666666668,2675.8666666666668,2675.8666666666668,31620.066666666666,2675.8666666666668,2675.8666666666668,2675.8666666666668,2675.8666666666668,2675.8666666666668,2675.8666666666668,2675.8666666666668,2675.8666666666668,2675.8666666666668,{"$f":"SUM(CD49:INDEX($CD49:$CW49,1,'Total Solution Costs'!$B$2))","v":55702.866666666683},null,"Godrej & Boyce  GVR 225 AC*",{"$f":"SUM($BH49:BH49)","v":31620.066666666666},{"$f":"SUM($BH49:BI49)","v":34295.933333333334},{"$f":"SUM($BH49:BJ49)","v":36971.800000000003},{"$f":"SUM($BH49:BK49)","v":39647.666666666672},{"$f":"SUM($BH49:BL49)","v":42323.53333333334},{"$f":"SUM($BH49:BM49)","v":44999.400000000009},{"$f":"SUM($BH49:BN49)","v":47675.266666666677},{"$f":"SUM($BH49:BO49)","v":50351.133333333346},{"$f":"SUM($BH49:BP49)","v":53027.000000000015},{"$f":"SUM($BH49:BQ49)","v":55702.866666666683},{"$f":"SUM($BH49:BR49)","v":87322.933333333349},{"$f":"SUM($BH49:BS49)","v":89998.800000000017},{"$f":"SUM($BH49:BT49)","v":92674.666666666686},{"$f":"SUM($BH49:BU49)","v":95350.533333333355},{"$f":"SUM($BH49:BV49)","v":98026.400000000023},{"$f":"SUM($BH49:BW49)","v":100702.26666666669},{"$f":"SUM($BH49:BX49)","v":103378.13333333336},{"$f":"SUM($BH49:BY49)","v":106054.00000000003},{"$f":"SUM($BH49:BZ49)","v":108729.8666666667},{"$f":"SUM($BH49:CA49)","v":111405.73333333337}]
[{"$f":"PQS!A50","v":"Kerosene"},{"$f":"PQS!B50","v":"E3/85-M"},{"$f":"PQS!E50","v":"V 170 KE "},{"$f":"PQS!F50","v":"Sibir"},{"$f":"PQS!D50","v":"Sibir V 170 KE "},{"$f":"VLOOKUP(E50,PQS!$D$5:$K$107,COLUMN(PQS!$I$3)-COLUMN(PQS!$D$3)+1,FALSE)","v":55},{"$f":"VLOOKUP(E50,PQS!$D$5:$K$107,COLUMN(PQS!$J$3)-COLUMN(PQS!$D$3)+1,FALSE)","v":0},{"$f":"VLOOKUP(E50,PQS!$D$5:$K$107,COLUMN(PQS!$G$3)-COLUMN(PQS!$D$3)+1,FALSE)","v":"No"},{"$f":"HLOOKUP(B50,INDIRECT(\"'\"&A50&\"'!$10:$15\"),ROW('Technology template'!$A$11)-ROW('Technology template'!$A$10)+1,FALSE)","v":10},{"$f":"HLOOKUP(B50,INDIRECT(\"'\"&A50&\"'!$10:$15\"),ROW('Technology template'!$A$12)-ROW('Technology template'!$A$10)+1,FALSE)","v":0},{"$f":"HLOOKUP(B50,INDIRECT(\"'\"&A50&\"'!$10:$15\"),ROW('Technology template'!$A$13)-ROW('Technology template'!$A$10)+1,FALSE)","v":0},{"$f":"VLOOKUP(B50,PQS!$B:$Q,MATCH(PQS!$Q$3,PQS!$B$3:$Q$3,0),FALSE)*(1+'Country Input'!$C$47)+HLOOKUP(B50,INDIRECT(\"'\"&A50&\"'!$10:$15\"),ROW('Technology template'!$A$14)-ROW('Technology template'!$A$10)+1,FALSE)*(1+'Country Input'!$C$47)","v":743.41460000000006},{"$f":"HLOOKUP(B50,INDIRECT(\"'\"&A50&\"'!$10:$80\"),MATCH('Technology template'!$A$27,INDIRECT(\"'\"&A50&\"'!$A$10:$A$80\"),0),FALSE)+'Labor and Maintenance '!$E$20","v":441},{"$f":"VLOOKUP(B50,PQS!B:T,MATCH(PQS!$T$3,PQS!$B$3:$T$3,0),FALSE)*(1+'Country Input'!$C$47)","v":194.43387300000003},1378.848473,137.88484729999999,{"$f":"VLOOKUP(B50,PQS!$B:$AE,COLUMN(PQS!AD36)-1,FALSE)","v":597.87},{"$f":"IFERROR(1/HLOOKUP(B50,INDIRECT(\"'\"&A50&\"'!$10:$80\"),MATCH('Technology template'!$A$31,INDIRECT(\"'\"&A50&\"'!$A$10:$A$80\"),0),FALSE)*HLOOKUP(B50,INDIRECT(\"'\"&A50&\"'!$10:$80\"),MATCH('Technology template'!$A$41,INDIRECT(\"'\"&A50&\"'!$A10:$A$80\"),0),FALSE),0)*TechnicianHourlyWage+IF(A50=\"Solar w Battery\",1/'Labor and Maintenance '!$E$53*'Labor and Maintenance '!$D$53,0)+IF(A50=\"LT passive\", 1/'Labor and Maintenance '!$E$81*'Labor and Maintenance '!$D$81,0)","v":24},{"$f":"IFERROR(1/HLOOKUP(B50,INDIRECT(\"'\"&A50&\"'!$10:$80\"),MATCH('Technology template'!$A$34,INDIRECT(\"'\"&A50&\"'!$A$10:$A$80\"),0),FALSE)*(HLOOKUP(B50,INDIRECT(\"'\"&A50&\"'!$10:$80\"),MATCH('Technology template'!$A$44,INDIRECT(\"'\"&A50&\"'!$A10:$A$80\"),0),FALSE)*TechnicianHourlyWage+RemoteTravelCostPerDay),0)+IFERROR(1/HLOOKUP(B50,INDIRECT(\"'\"&A50&\"'!$10:$80\"),MATCH('Technology template'!$A$35,INDIRECT(\"'\"&A50&\"'!$A$10:$A$80\"),0),FALSE)*(HLOOKUP(B50,INDIRECT(\"'\"&A50&\"'!$10:$80\"),MATCH('Technology template'!$A$45,INDIRECT(\"'\"&A50&\"'!$A10:$A$80\"),0),FALSE)*TechnicianHourlyWage+RemoteTravelCostPerDay),0)+IFERROR(1/HLOOKUP(B50,INDIRECT(\"'\"&A50&\"'!$10:$80\"),MATCH('Technology template'!$A$37,INDIRECT(\"'\"&A50&\"'!$A$10:$A$80\"),0),FALSE)*(HLOOKUP(B50,INDIRECT(\"'\"&A50&\"'!$10:$80\"),MATCH('Technology template'!$A$46,INDIRECT(\"'\"&A50&\"'!$A10:$A$80\"),0),FALSE)*TechnicianHourlyWage+'Labor and Maintenance '!$B$8),0)","v":68.599999999999994},6904.7000000000007,690.47,828.35484730000007,null,"Sibir V 170 KE ",25.069972236363636,125.54,150.60997223636363,null,"Sibir V 170 KE ",2.5069972236363633,12.554,15.060997223636365,null,"Sibir V 170 KE ",3,4136.545419,20714.100000000002,24850.645419,null,"Sibir V 170 KE ",3,7.5209916709090905,37.661999999999999,45.18299167090909,null,"Sibir V 170 KE ",{"$f":"IF(F50=0, 'Country Input'!$D$7, ROUNDUP(LitersPerFacility/F50,0)*'Country Input'!$D$7)","v":10},13788.48473,6904.7000000000007,20693.184730000001,null,"Sibir V 170 KE ",{"$f":"ROUNDUP(LitersPerFacility/F50,0)*'Country Input'!$D$7*ROUNDUP('Total Solution Costs'!$B$2/Calculations!I50,0)","v":10},25.069972236363633,12.554000000000002,37.623972236363635,null,null,"Sibir V 170 KE ",{"$f":"(($U50+($O50)*IF(MOD(BH$3,$I50)=1,1,0)+Parts!$E$91*IF($J50=0,0,IF(MOD(BH$3,$I50)=1,IF(PQS!$R50=\"NO\",1,0),IF(MOD(BH$3,Calculations!$J50)=1,1,0)))+Parts!$E$92*IF(Calculations!$K50=0,0,IF(MOD(BH$3,$I50)=1,0,IF(MOD(BH$3,Calculations!$K50)=1,1,0))))*$AU50)*(1+'Country Input'!$C$45)^(Calculations!BH$3-$BH$3)+TrainingCost","v":20693.184730000001},{"$f":"(($U50+($O50)*IF(MOD(BI$3,$I50)=1,1,0)+Parts!$E$91*IF($J50=0,0,IF(MOD(BI$3,$I50)=1,IF(PQS!$R50=\"NO\",1,0),IF(MOD(BI$3,Calculations!$J50)=1,1,0)))+Parts!$E$92*IF(Calculations!$K50=0,0,IF(MOD(BI$3,$I50)=1,0,IF(MOD(BI$3,Calculations!$K50)=1,1,0))))*$AU50)*(1+'Country Input'!$C$45)^(Calculations!BI$3-$BH$3)","v":6904.7000000000007},{"$f":"(($U50+($O50)*IF(MOD(BJ$3,$I50)=1,1,0)+Parts!$E$91*IF($J50=0,0,IF(MOD(BJ$3,$I50)=1,IF(PQS!$R50=\"NO\",1,0),IF(MOD(BJ$3,Calculations!$J50)=1,1,0)))+Parts!$E$92*IF(Calculations!$K50=0,0,IF(MOD(BJ$3,$I50)=1,0,IF(MOD(BJ$3,Calculations!$K50)=1,1,0))))*$AU50)*(1+'Country Input'!$C$45)^(Calculations!BJ$3-$BH$3)","v":6904.7000000000007},{"$f":"(($U50+($O50)*IF(MOD(BK$3,$I50)=1,1,0)+Parts!$E$91*IF($J50=0,0,IF(MOD(BK$3,$I50)=1,IF(PQS!$R50=\"NO\",1,0),IF(MOD(BK$3,Calculations!$J50)=1,1,0)))+Parts!$E$92*IF(Calculations!$K50=0,0,IF(MOD(BK$3,$I50)=1,0,IF(MOD(BK$3,Calculations!$K50)=1,1,0))))*$AU50)*(1+'Country Input'!$C$45)^(Calculations!BK$3-$BH$3)","v":6904.7000000000007},{"$f":"(($U50+($O50)*IF(MOD(BL$3,$I50)=1,1,0)+Parts!$E$91*IF($J50=0,0,IF(MOD(BL$3,$I50)=1,IF(PQS!$R50=\"NO\",1,0),IF(MOD(BL$3,Calculations!$J50)=1,1,0)))+Parts!$E$92*IF(Calculations!$K50=0,0,IF(MOD(BL$3,$I50)=1,0,IF(MOD(BL$3,Calculations!$K50)=1,1,0))))*$AU50)*(1+'Country Input'!$C$45)^(Calculations!BL$3-$BH$3)","v":6904.7000000000007},{"$f":"(($U50+($O50)*IF(MOD(BM$3,$I50)=1,1,0)+Parts!$E$91*IF($J50=0,0,IF(MOD(BM$3,$I50)=1,IF(PQS!$R50=\"NO\",1,0),IF(MOD(BM$3,Calculations!$J50)=1,1,0)))+Parts!$E$92*IF(Calculations!$K50=0,0,IF(MOD(BM$3,$I50)=1,0,IF(MOD(BM$3,Calculations!$K50)=1,1,0))))*$AU50)*(1+'Country Input'!$C$45)^(Calculations!BM$3-$BH$3)","v":6904.7000000000007},{"$f":"(($U50+($O50)*IF(MOD(BN$3,$I50)=1,1,0)+Parts!$E$91*IF($J50=0,0,IF(MOD(BN$3,$I50)=1,IF(PQS!$R50=\"NO\",1,0),IF(MOD(BN$3,Calculations!$J50)=1,1,0)))+Parts!$E$92*IF(Calculations!$K50=0,0,IF(MOD(BN$3,$I50)=1,0,IF(MOD(BN$3,Calculations!$K50)=1,1,0))))*$AU50)*(1+'Country Input'!$C$45)^(Calculations!BN$3-$BH$3)","v":6904.7000000000007},{"$f":"(($U50+($O50)*IF(MOD(BO$3,$I50)=1,1,0)+Parts!$E$91*IF($J50=0,0,IF(MOD(BO$3,$I50)=1,IF(PQS!$R50=\"NO\",1,0),IF(MOD(BO$3,Calculations!$J50)=1,1,0)))+Parts!$E$92*IF(Calculations!$K50=0,0,IF(MOD(BO$3,$I50)=1,0,IF(MOD(BO$3,Calculations!$K50)=1,1,0))))*$AU50)*(1+'Country Input'!$C$45)^(Calculations!BO$3-$BH$3)","v":6904.7000000000007},{"$f":"(($U50+($O50)*IF(MOD(BP$3,$I50)=1,1,0)+Parts!$E$91*IF($J50=0,0,IF(MOD(BP$3,$I50)=1,IF(PQS!$R50=\"NO\",1,0),IF(MOD(BP$3,Calculations!$J50)=1,1,0)))+Parts!$E$92*IF(Calculations!$K50=0,0,IF(MOD(BP$3,$I50)=1,0,IF(MOD(BP$3,Calculations!$K50)=1,1,0))))*$AU50)*(1+'Country Input'!$C$45)^(Calculations!BP$3-$BH$3)","v":6904.7000000000007},{"$f":"(($U50+($O50)*IF(MOD(BQ$3,$I50)=1,1,0)+Parts!$E$91*IF($J50=0,0,IF(MOD(BQ$3,$I50)=1,IF(PQS!$R50=\"NO\",1,0),IF(MOD(BQ$3,Calculations!$J50)=1,1,0)))+Parts!$E$92*IF(Calculations!$K50=0,0,IF(MOD(BQ$3,$I50)=1,0,IF(MOD(BQ$3,Calculations!$K50)=1,1,0))))*$AU50)*(1+'Country Input'!$C$45)^(Calculations!BQ$3-$BH$3)","v":6904.7000000000007},{"$f":"(($U50+($O50)*IF(MOD(BR$3,$I50)=1,1,0)+Parts!$E$91*IF($J50=0,0,IF(MOD(BR$3,$I50)=1,IF(PQS!$R50=\"NO\",1,0),IF(MOD(BR$3,Calculations!$J50)=1,1,0)))+Parts!$E$92*IF(Calculations!$K50=0,0,IF(MOD(BR$3,$I50)=1,0,IF(MOD(BR$3,Calculations!$K50)=1,1,0))))*$AU50)*(1+'Country Input'!$C$45)^(Calculations!BR$3-$BH$3)","v":20693.184730000001},{"$f":"(($U50+($O50)*IF(MOD(BS$3,$I50)=1,1,0)+Parts!$E$91*IF($J50=0,0,IF(MOD(BS$3,$I50)=1,IF(PQS!$R50=\"NO\",1,0),IF(MOD(BS$3,Calculations!$J50)=1,1,0)))+Parts!$E$92*IF(Calculations!$K50=0,0,IF(MOD(BS$3,$I50)=1,0,IF(MOD(BS$3,Calculations!$K50)=1,1,0))))*$AU50)*(1+'Country Input'!$C$45)^(Calculations!BS$3-$BH$3)","v":6904.7000000000007},{"$f":"(($U50+($O50)*IF(MOD(BT$3,$I50)=1,1,0)+Parts!$E$91*IF($J50=0,0,IF(MOD(BT$3,$I50)=1,IF(PQS!$R50=\"NO\",1,0),IF(MOD(BT$3,Calculations!$J50)=1,1,0)))+Parts!$E$92*IF(Calculations!$K50=0,0,IF(MOD(BT$3,$I50)=1,0,IF(MOD(BT$3,Calculations!$K50)=1,1,0))))*$AU50)*(1+'Country Input'!$C$45)^(Calculations!BT$3-$BH$3)","v":6904.7000000000007},{"$f":"(($U50+($O50)*IF(MOD(BU$3,$I50)=1,1,0)+Parts!$E$91*IF($J50=0,0,IF(MOD(BU$3,$I50)=1,IF(PQS!$R50=\"NO\",1,0),IF(MOD(BU$3,Calculations!$J50)=1,1,0)))+Parts!$E$92*IF(Calculations!$K50=0,0,IF(MOD(BU$3,$I50)=1,0,IF(MOD(BU$3,Calculations!$K50)=1,1,0))))*$AU50)*(1+'Country Input'!$C$45)^(Calculations!BU$3-$BH$3)","v":6904.7000000000007},{"$f":"(($U50+($O50)*IF(MOD(BV$3,$I50)=1,1,0)+Parts!$E$91*IF($J50=0,0,IF(MOD(BV$3,$I50)=1,IF(PQS!$R50=\"NO\",1,0),IF(MOD(BV$3,Calculations!$J50)=1,1,0)))+Parts!$E$92*IF(Calculations!$K50=0,0,IF(MOD(BV$3,$I50)=1,0,IF(MOD(BV$3,Calculations!$K50)=1,1,0))))*$AU50)*(1+'Country Input'!$C$45)^(Calculations!BV$3-$BH$3)","v":6904.7000000000007},{"$f":"(($U50+($O50)*IF(MOD(BW$3,$I50)=1,1,0)+Parts!$E$91*IF($J50=0,0,IF(MOD(BW$3,$I50)=1,IF(PQS!$R50=\"NO\",1,0),IF(MOD(BW$3,Calculations!$J50)=1,1,0)))+Parts!$E$92*IF(Calculations!$K50=0,0,IF(MOD(BW$3,$I50)=1,0,IF(MOD(BW$3,Calculations!$K50)=1,1,0))))*$AU50)*(1+'Country Input'!$C$45)^(Calculations!BW$3-$BH$3)","v":6904.7000000000007},{"$f":"(($U50+($O50)*IF(MOD(BX$3,$I50)=1,1,0)+Parts!$E$91*IF($J50=0,0,IF(MOD(BX$3,$I50)=1,IF(PQS!$R50=\"NO\",1,0),IF(MOD(BX$3,Calculations!$J50)=1,1,0)))+Parts!$E$92*IF(Calculations!$K50=0,0,IF(MOD(BX$3,$I50)=1,0,IF(MOD(BX$3,Calculations!$K50)=1,1,0))))*$AU50)*(1+'Country Input'!$C$45)^(Calculations!BX$3-$BH$3)","v":6904.7000000000007},{"$f":"(($U50+($O50)*IF(MOD(BY$3,$I50)=1,1,0)+Parts!$E$91*IF($J50=0,0,IF(MOD(BY$3,$I50)=1,IF(PQS!$R50=\"NO\",1,0),IF(MOD(BY$3,Calculations!$J50)=1,1,0)))+Parts!$E$92*IF(Calculations!$K50=0,0,IF(MOD(BY$3,$I50)=1,0,IF(MOD(BY$3,Calculations!$K50)=1,1,0))))*$AU50)*(1+'Country Input'!$C$45)^(Calculations!BY$3-$BH$3)","v":6904.7000000000007},{"$f":"(($U50+($O50)*IF(MOD(BZ$3,$I50)=1,1,0)+Parts!$E$91*IF($J50=0,0,IF(MOD(BZ$3,$I50)=1,IF(PQS!$R50=\"NO\",1,0),IF(MOD(BZ$3,Calculations!$J50)=1,1,0)))+Parts!$E$92*IF(Calculations!$K50=0,0,IF(MOD(BZ$3,$I50)=1,0,IF(MOD(BZ$3,Calculations!$K50)=1,1,0))))*$AU50)*(1+'Country Input'!$C$45)^(Calculations!BZ$3-$BH$3)","v":6904.7000000000007},{"$f":"(($U50+($O50)*IF(MOD(CA$3,$I50)=1,1,0)+Parts!$E$91*IF($J50=0,0,IF(MOD(CA$3,$I50)=1,IF(PQS!$R50=\"NO\",1,0),IF(MOD(CA$3,Calculations!$J50)=1,1,0)))+Parts!$E$92*IF(Calculations!$K50=0,0,IF(MOD(CA$3,$I50)=1,0,IF(MOD(CA$3,Calculations!$K50)=1,1,0))))*$AU50)*(1+'Country Input'!$C$45)^(Calculations!CA$3-$BH$3)","v":6904.7000000000007},null,"Sibir V 170 KE ",20693.184730000001,6904.7000000000007,6904.7000000000007,6904.7000000000007,6904.7000000000007,6904.7000000000007,6904.7000000000007,6904.7000000000007,6904.7000000000007,6904.7000000000007,20693.184730000001,6904.7000000000007,6904.7000000000007,6904.7000000000007,6904.7000000000007,6904.7000000000007,6904.7000000000007,6904.7000000000007,6904.7000000000007,6904.7000000000007,{"$f":"SUM(CD50:INDEX($CD50:$CW50,1,'Total Solution Costs'!$B$2))","v":82835.484729999982},null,"Sibir V 170 KE ",{"$f":"SUM($BH50:BH50)","v":20693.184730000001},{"$f":"SUM($BH50:BI50)","v":27597.884730000002},{"$f":"SUM($BH50:BJ50)","v":34502.584730000002},{"$f":"SUM($BH50:BK50)","v":41407.284729999999},{"$f":"SUM($BH50:BL50)","v":48311.984729999996},{"$f":"SUM($BH50:BM50)","v":55216.684729999994},{"$f":"SUM($BH50:BN50)","v":62121.384729999991},{"$f":"SUM($BH50:BO50)","v":69026.084729999988},{"$f":"SUM($BH50:BP50)","v":75930.784729999985},{"$f":"SUM($BH50:BQ50)","v":82835.484729999982},{"$f":"SUM($BH50:BR50)","v":103528.66945999998},{"$f":"SUM($BH50:BS50)","v":110433.36945999997},{"$f":"SUM($BH50:BT50)","v":117338.06945999997},{"$f":"SUM($BH50:BU50)","v":124242.76945999997},{"$f":"SUM($BH50:BV50)","v":131147.46945999996},{"$f":"SUM($BH50:BW50)","v":138052.16945999998},{"$f":"SUM($BH50:BX50)","v":144956.86945999999},{"$f":"SUM($BH50:BY50)","v":151861.56946},{"$f":"SUM($BH50:BZ50)","v":158766.26946000001},{"$f":"SUM($BH50:CA50)","v":165670.96946000002}]
[{"$f":"PQS!A51","v":"Kerosene"},{"$f":"PQS!B51","v":"E3/87-M "},{"$f":"PQS!E51","v":"V 110 KE "},{"$f":"PQS!F51","v":"Sibir"},{"$f":"PQS!D51","v":"Sibir V 110 KE "},{"$f":"VLOOKUP(E51,PQS!$D$5:$K$107,COLUMN(PQS!$I$3)-COLUMN(PQS!$D$3)+1,FALSE)","v":17},{"$f":"VLOOKUP(E51,PQS!$D$5:$K$107,COLUMN(PQS!$J$3)-COLUMN(PQS!$D$3)+1,FALSE)","v":0},{"$f":"VLOOKUP(E51,PQS!$D$5:$K$107,COLUMN(PQS!$G$3)-COLUMN(PQS!$D$3)+1,FALSE)","v":"No"},{"$f":"HLOOKUP(B51,INDIRECT(\"'\"&A51&\"'!$10:$15\"),ROW('Technology template'!$A$11)-ROW('Technology template'!$A$10)+1,FALSE)","v":10},{"$f":"HLOOKUP(B51,INDIRECT(\"'\"&A51&\"'!$10:$15\"),ROW('Technology template'!$A$12)-ROW('Technology template'!$A$10)+1,FALSE)","v":0},{"$f":"HLOOKUP(B51,INDIRECT(\"'\"&A51&\"'!$10:$15\"),ROW('Technology template'!$A$13)-ROW('Technology template'!$A$10)+1,FALSE)","v":0},{"$f":"VLOOKUP(B51,PQS!$B:$Q,MATCH(PQS!$Q$3,PQS!$B$3:$Q$3,0),FALSE)*(1+'Country Input'!$C$47)+HLOOKUP(B51,INDIRECT(\"'\"&A51&\"'!$10:$15\"),ROW('Technology template'!$A$14)-ROW('Technology template'!$A$10)+1,FALSE)*(1+'Country Input'!$C$47)","v":1943.9439},{"$f":"HLOOKUP(B51,INDIRECT(\"'\"&A51&\"'!$10:$80\"),MATCH('Technology template'!$A$27,INDIRECT(\"'\"&A51&\"'!$A$10:$A$80\"),0),FALSE)+'Labor and Maintenance '!$E$20","v":441},{"$f":"VLOOKUP(B51,PQS!B:T,MATCH(PQS!$T$3,PQS!$B$3:$T$3,0),FALSE)*(1+'Country Input'!$C$47)","v":77.821367500000008},2462.7652675000004,246.27652675000004,{"$f":"VLOOKUP(B51,PQS!$B:$AE,COLUMN(PQS!AD37)-1,FALSE)","v":213.52499999999998},{"$f":"IFERROR(1/HLOOKUP(B51,INDIRECT(\"'\"&A51&\"'!$10:$80\"),MATCH('Technology template'!$A$31,INDIRECT(\"'\"&A51&\"'!$A$10:$A$80\"),0),FALSE)*HLOOKUP(B51,INDIRECT(\"'\"&A51&\"'!$10:$80\"),MATCH('Technology template'!$A$41,INDIRECT(\"'\"&A51&\"'!$A10:$A$80\"),0),FALSE),0)*TechnicianHourlyWage+IF(A51=\"Solar w Battery\",1/'Labor and Maintenance '!$E$53*'Labor and Maintenance '!$D$53,0)+IF(A51=\"LT passive\", 1/'Labor and Maintenance '!$E$81*'Labor and Maintenance '!$D$81,0)","v":24},{"$f":"IFERROR(1/HLOOKUP(B51,INDIRECT(\"'\"&A51&\"'!$10:$80\"),MATCH('Technology template'!$A$34,INDIRECT(\"'\"&A51&\"'!$A$10:$A$80\"),0),FALSE)*(HLOOKUP(B51,INDIRECT(\"'\"&A51&\"'!$10:$80\"),MATCH('Technology template'!$A$44,INDIRECT(\"'\"&A51&\"'!$A10:$A$80\"),0),FALSE)*TechnicianHourlyWage+RemoteTravelCostPerDay),0)+IFERROR(1/HLOOKUP(B51,INDIRECT(\"'\"&A51&\"'!$10:$80\"),MATCH('Technology template'!$A$35,INDIRECT(\"'\"&A51&\"'!$A$10:$A$80\"),0),FALSE)*(HLOOKUP(B51,INDIRECT(\"'\"&A51&\"'!$10:$80\"),MATCH('Technology template'!$A$45,INDIRECT(\"'\"&A51&\"'!$A10:$A$80\"),0),FALSE)*TechnicianHourlyWage+RemoteTravelCostPerDay),0)+IFERROR(1/HLOOKUP(B51,INDIRECT(\"'\"&A51&\"'!$10:$80\"),MATCH('Technology template'!$A$37,INDIRECT(\"'\"&A51&\"'!$A$10:$A$80\"),0),FALSE)*(HLOOKUP(B51,INDIRECT(\"'\"&A51&\"'!$10:$80\"),MATCH('Technology template'!$A$46,INDIRECT(\"'\"&A51&\"'!$A10:$A$80\"),0),FALSE)*TechnicianHourlyWage+'Labor and Maintenance '!$B$8),0)","v":68.599999999999994},3061.25,306.125,552.40152675000002,null,"Sibir V 110 KE ",144.86854514705885,180.0735294117647,324.94207455882355,null,"Sibir V 110 KE ",14.486854514705884,18.007352941176471,32.494207455882353,null,"Sibir V 110 KE ",8,19702.122140000003,24490,44192.122140000007,null,"Sibir V 110 KE ",8,115.89483611764707,144.05882352941177,259.95365964705883,null,"Sibir V 110 KE ",{"$f":"IF(F51=0, 'Country Input'!$D$7, ROUNDUP(LitersPerFacility/F51,0)*'Country Input'!$D$7)","v":10},24627.652675000005,3061.25,27688.902675000005,null,"Sibir V 110 KE ",{"$f":"ROUNDUP(LitersPerFacility/F51,0)*'Country Input'!$D$7*ROUNDUP('Total Solution Costs'!$B$2/Calculations!I51,0)","v":10},144.86854514705885,18.007352941176471,162.87589808823532,null,null,"Sibir V 110 KE ",{"$f":"(($U51+($O51)*IF(MOD(BH$3,$I51)=1,1,0)+Parts!$E$91*IF($J51=0,0,IF(MOD(BH$3,$I51)=1,IF(PQS!$R51=\"NO\",1,0),IF(MOD(BH$3,Calculations!$J51)=1,1,0)))+Parts!$E$92*IF(Calculations!$K51=0,0,IF(MOD(BH$3,$I51)=1,0,IF(MOD(BH$3,Calculations!$K51)=1,1,0))))*$AU51)*(1+'Country Input'!$C$45)^(Calculations!BH$3-$BH$3)+TrainingCost","v":27688.902675000005},{"$f":"(($U51+($O51)*IF(MOD(BI$3,$I51)=1,1,0)+Parts!$E$91*IF($J51=0,0,IF(MOD(BI$3,$I51)=1,IF(PQS!$R51=\"NO\",1,0),IF(MOD(BI$3,Calculations!$J51)=1,1,0)))+Parts!$E$92*IF(Calculations!$K51=0,0,IF(MOD(BI$3,$I51)=1,0,IF(MOD(BI$3,Calculations!$K51)=1,1,0))))*$AU51)*(1+'Country Input'!$C$45)^(Calculations!BI$3-$BH$3)","v":3061.25},{"$f":"(($U51+($O51)*IF(MOD(BJ$3,$I51)=1,1,0)+Parts!$E$91*IF($J51=0,0,IF(MOD(BJ$3,$I51)=1,IF(PQS!$R51=\"NO\",1,0),IF(MOD(BJ$3,Calculations!$J51)=1,1,0)))+Parts!$E$92*IF(Calculations!$K51=0,0,IF(MOD(BJ$3,$I51)=1,0,IF(MOD(BJ$3,Calculations!$K51)=1,1,0))))*$AU51)*(1+'Country Input'!$C$45)^(Calculations!BJ$3-$BH$3)","v":3061.25},{"$f":"(($U51+($O51)*IF(MOD(BK$3,$I51)=1,1,0)+Parts!$E$91*IF($J51=0,0,IF(MOD(BK$3,$I51)=1,IF(PQS!$R51=\"NO\",1,0),IF(MOD(BK$3,Calculations!$J51)=1,1,0)))+Parts!$E$92*IF(Calculations!$K51=0,0,IF(MOD(BK$3,$I51)=1,0,IF(MOD(BK$3,Calculations!$K51)=1,1,0))))*$AU51)*(1+'Country Input'!$C$45)^(Calculations!BK$3-$BH$3)","v":3061.25},{"$f":"(($U51+($O51)*IF(MOD(BL$3,$I51)=1,1,0)+Parts!$E$91*IF($J51=0,0,IF(MOD(BL$3,$I51)=1,IF(PQS!$R51=\"NO\",1,0),IF(MOD(BL$3,Calculations!$J51)=1,1,0)))+Parts!$E$92*IF(Calculations!$K51=0,0,IF(MOD(BL$3,$I51)=1,0,IF(MOD(BL$3,Calculations!$K51)=1,1,0))))*$AU51)*(1+'Country Input'!$C$45)^(Calculations!BL$3-$BH$3)","v":3061.25},{"$f":"(($U51+($O51)*IF(MOD(BM$3,$I51)=1,1,0)+Parts!$E$91*IF($J51=0,0,IF(MOD(BM$3,$I51)=1,IF(PQS!$R51=\"NO\",1,0),IF(MOD(BM$3,Calculations!$J51)=1,1,0)))+Parts!$E$92*IF(Calculations!$K51=0,0,IF(MOD(BM$3,$I51)=1,0,IF(MOD(BM$3,Calculations!$K51)=1,1,0))))*$AU51)*(1+'Country Input'!$C$45)^(Calculations!BM$3-$BH$3)","v":3061.25},{"$f":"(($U51+($O51)*IF(MOD(BN$3,$I51)=1,1,0)+Parts!$E$91*IF($J51=0,0,IF(MOD(BN$3,$I51)=1,IF(PQS!$R51=\"NO\",1,0),IF(MOD(BN$3,Calculations!$J51)=1,1,0)))+Parts!$E$92*IF(Calculations!$K51=0,0,IF(MOD(BN$3,$I51)=1,0,IF(MOD(BN$3,Calculations!$K51)=1,1,0))))*$AU51)*(1+'Country Input'!$C$45)^(Calculations!BN$3-$BH$3)","v":3061.25},{"$f":"(($U51+($O51)*IF(MOD(BO$3,$I51)=1,1,0)+Parts!$E$91*IF($J51=0,0,IF(MOD(BO$3,$I51)=1,IF(PQS!$R51=\"NO\",1,0),IF(MOD(BO$3,Calculations!$J51)=1,1,0)))+Parts!$E$92*IF(Calculations!$K51=0,0,IF(MOD(BO$3,$I51)=1,0,IF(MOD(BO$3,Calculations!$K51)=1,1,0))))*$AU51)*(1+'Country Input'!$C$45)^(Calculations!BO$3-$BH$3)","v":3061.25},{"$f":"(($U51+($O51)*IF(MOD(BP$3,$I51)=1,1,0)+Parts!$E$91*IF($J51=0,0,IF(MOD(BP$3,$I51)=1,IF(PQS!$R51=\"NO\",1,0),IF(MOD(BP$3,Calculations!$J51)=1,1,0)))+Parts!$E$92*IF(Calculations!$K51=0,0,IF(MOD(BP$3,$I51)=1,0,IF(MOD(BP$3,Calculations!$K51)=1,1,0))))*$AU51)*(1+'Country Input'!$C$45)^(Calculations!BP$3-$BH$3)","v":3061.25},{"$f":"(($U51+($O51)*IF(MOD(BQ$3,$I51)=1,1,0)+Parts!$E$91*IF($J51=0,0,IF(MOD(BQ$3,$I51)=1,IF(PQS!$R51=\"NO\",1,0),IF(MOD(BQ$3,Calculations!$J51)=1,1,0)))+Parts!$E$92*IF(Calculations!$K51=0,0,IF(MOD(BQ$3,$I51)=1,0,IF(MOD(BQ$3,Calculations!$K51)=1,1,0))))*$AU51)*(1+'Country Input'!$C$45)^(Calculations!BQ$3-$BH$3)","v":3061.25},{"$f":"(($U51+($O51)*IF(MOD(BR$3,$I51)=1,1,0)+Parts!$E$91*IF($J51=0,0,IF(MOD(BR$3,$I51)=1,IF(PQS!$R51=\"NO\",1,0),IF(MOD(BR$3,Calculations!$J51)=1,1,0)))+Parts!$E$92*IF(Calculations!$K51=0,0,IF(MOD(BR$3,$I51)=1,0,IF(MOD(BR$3,Calculations!$K51)=1,1,0))))*$AU51)*(1+'Country Input'!$C$45)^(Calculations!BR$3-$BH$3)","v":27688.902675000005},{"$f":"(($U51+($O51)*IF(MOD(BS$3,$I51)=1,1,0)+Parts!$E$91*IF($J51=0,0,IF(MOD(BS$3,$I51)=1,IF(PQS!$R51=\"NO\",1,0),IF(MOD(BS$3,Calculations!$J51)=1,1,0)))+Parts!$E$92*IF(Calculations!$K51=0,0,IF(MOD(BS$3,$I51)=1,0,IF(MOD(BS$3,Calculations!$K51)=1,1,0))))*$AU51)*(1+'Country Input'!$C$45)^(Calculations!BS$3-$BH$3)","v":3061.25},{"$f":"(($U51+($O51)*IF(MOD(BT$3,$I51)=1,1,0)+Parts!$E$91*IF($J51=0,0,IF(MOD(BT$3,$I51)=1,IF(PQS!$R51=\"NO\",1,0),IF(MOD(BT$3,Calculations!$J51)=1,1,0)))+Parts!$E$92*IF(Calculations!$K51=0,0,IF(MOD(BT$3,$I51)=1,0,IF(MOD(BT$3,Calculations!$K51)=1,1,0))))*$AU51)*(1+'Country Input'!$C$45)^(Calculations!BT$3-$BH$3)","v":3061.25},{"$f":"(($U51+($O51)*IF(MOD(BU$3,$I51)=1,1,0)+Parts!$E$91*IF($J51=0,0,IF(MOD(BU$3,$I51)=1,IF(PQS!$R51=\"NO\",1,0),IF(MOD(BU$3,Calculations!$J51)=1,1,0)))+Parts!$E$92*IF(Calculations!$K51=0,0,IF(MOD(BU$3,$I51)=1,0,IF(MOD(BU$3,Calculations!$K51)=1,1,0))))*$AU51)*(1+'Country Input'!$C$45)^(Calculations!BU$3-$BH$3)","v":3061.25},{"$f":"(($U51+($O51)*IF(MOD(BV$3,$I51)=1,1,0)+Parts!$E$91*IF($J51=0,0,IF(MOD(BV$3,$I51)=1,IF(PQS!$R51=\"NO\",1,0),IF(MOD(BV$3,Calculations!$J51)=1,1,0)))+Parts!$E$92*IF(Calculations!$K51=0,0,IF(MOD(BV$3,$I51)=1,0,IF(MOD(BV$3,Calculations!$K51)=1,1,0))))*$AU51)*(1+'Country Input'!$C$45)^(Calculations!BV$3-$BH$3)","v":3061.25},{"$f":"(($U51+($O51)*IF(MOD(BW$3,$I51)=1,1,0)+Parts!$E$91*IF($J51=0,0,IF(MOD(BW$3,$I51)=1,IF(PQS!$R51=\"NO\",1,0),IF(MOD(BW$3,Calculations!$J51)=1,1,0)))+Parts!$E$92*IF(Calculations!$K51=0,0,IF(MOD(BW$3,$I51)=1,0,IF(MOD(BW$3,Calculations!$K51)=1,1,0))))*$AU51)*(1+'Country Input'!$C$45)^(Calculations!BW$3-$BH$3)","v":3061.25},{"$f":"(($U51+($O51)*IF(MOD(BX$3,$I51)=1,1,0)+Parts!$E$91*IF($J51=0,0,IF(MOD(BX$3,$I51)=1,IF(PQS!$R51=\"NO\",1,0),IF(MOD(BX$3,Calculations!$J51)=1,1,0)))+Parts!$E$92*IF(Calculations!$K51=0,0,IF(MOD(BX$3,$I51)=1,0,IF(MOD(BX$3,Calculations!$K51)=1,1,0))))*$AU51)*(1+'Country Input'!$C$45)^(Calculations!BX$3-$BH$3)","v":3061.25},{"$f":"(($U51+($O51)*IF(MOD(BY$3,$I51)=1,1,0)+Parts!$E$91*IF($J51=0,0,IF(MOD(BY$3,$I51)=1,IF(PQS!$R51=\"NO\",1,0),IF(MOD(BY$3,Calculations!$J51)=1,1,0)))+Parts!$E$92*IF(Calculations!$K51=0,0,IF(MOD(BY$3,$I51)=1,0,IF(MOD(BY$3,Calculations!$K51)=1,1,0))))*$AU51)*(1+'Country Input'!$C$45)^(Calculations!BY$3-$BH$3)","v":3061.25},{"$f":"(($U51+($O51)*IF(MOD(BZ$3,$I51)=1,1,0)+Parts!$E$91*IF($J51=0,0,IF(MOD(BZ$3,$I51)=1,IF(PQS!$R51=\"NO\",1,0),IF(MOD(BZ$3,Calculations!$J51)=1,1,0)))+Parts!$E$92*IF(Calculations!$K51=0,0,IF(MOD(BZ$3,$I51)=1,0,IF(MOD(BZ$3,Calculations!$K51)=1,1,0))))*$AU51)*(1+'Country Input'!$C$45)^(Calculations!BZ$3-$BH$3)","v":3061.25},{"$f":"(($U51+($O51)*IF(MOD(CA$3,$I51)=1,1,0)+Parts!$E$91*IF($J51=0,0,IF(MOD(CA$3,$I51)=1,IF(PQS!$R51=\"NO\",1,0),IF(MOD(CA$3,Calculations!$J51)=1,1,0)))+Parts!$E$92*IF(Calculations!$K51=0,0,IF(MOD(CA$3,$I51)=1,0,IF(MOD(CA$3,Calculations!$K51)=1,1,0))))*$AU51)*(1+'Country Input'!$C$45)^(Calculations!CA$3-$BH$3)","v":3061.25},null,"Sibir V 110 KE ",27688.902675000005,3061.25,3061.25,3061.25,3061.25,3061.25,3061.25,3061.25,3061.25,3061.25,27688.902675000005,3061.25,3061.25,3061.25,3061.25,3061.25,3061.25,3061.25,3061.25,3061.25,{"$f":"SUM(CD51:INDEX($CD51:$CW51,1,'Total Solution Costs'!$B$2))","v":55240.152675000005},null,"Sibir V 110 KE ",{"$f":"SUM($BH51:BH51)","v":27688.902675000005},{"$f":"SUM($BH51:BI51)","v":30750.152675000005},{"$f":"SUM($BH51:BJ51)","v":33811.402675000005},{"$f":"SUM($BH51:BK51)","v":36872.652675000005},{"$f":"SUM($BH51:BL51)","v":39933.902675000005},{"$f":"SUM($BH51:BM51)","v":42995.152675000005},{"$f":"SUM($BH51:BN51)","v":46056.402675000005},{"$f":"SUM($BH51:BO51)","v":49117.652675000005},{"$f":"SUM($BH51:BP51)","v":52178.902675000005},{"$f":"SUM($BH51:BQ51)","v":55240.152675000005},{"$f":"SUM($BH51:BR51)","v":82929.05535000001},{"$f":"SUM($BH51:BS51)","v":85990.30535000001},{"$f":"SUM($BH51:BT51)","v":89051.55535000001},{"$f":"SUM($BH51:BU51)","v":92112.80535000001},{"$f":"SUM($BH51:BV51)","v":95174.05535000001},{"$f":"SUM($BH51:BW51)","v":98235.30535000001},{"$f":"SUM($BH51:BX51)","v":101296.55535000001},{"$f":"SUM($BH51:BY51)","v":104357.80535000001},{"$f":"SUM($BH51:BZ51)","v":107419.05535000001},{"$f":"SUM($BH51:CA51)","v":110480.30535000001}]
[{"$f":"PQS!A52","v":"Kerosene"},{"$f":"PQS!B52","v":"E3/91-M "},{"$f":"PQS!E52","v":"RCW 50 EK"},{"$f":"PQS!F52","v":"B Medical"},{"$f":"PQS!D52","v":"B Medical RCW 50 EK"},{"$f":"VLOOKUP(E52,PQS!$D$5:$K$107,COLUMN(PQS!$I$3)-COLUMN(PQS!$D$3)+1,FALSE)","v":24},{"$f":"VLOOKUP(E52,PQS!$D$5:$K$107,COLUMN(PQS!$J$3)-COLUMN(PQS!$D$3)+1,FALSE)","v":0},{"$f":"VLOOKUP(E52,PQS!$D$5:$K$107,COLUMN(PQS!$G$3)-COLUMN(PQS!$D$3)+1,FALSE)","v":"No"},{"$f":"HLOOKUP(B52,INDIRECT(\"'\"&A52&\"'!$10:$15\"),ROW('Technology template'!$A$11)-ROW('Technology template'!$A$10)+1,FALSE)","v":10},{"$f":"HLOOKUP(B52,INDIRECT(\"'\"&A52&\"'!$10:$15\"),ROW('Technology template'!$A$12)-ROW('Technology template'!$A$10)+1,FALSE)","v":0},{"$f":"HLOOKUP(B52,INDIRECT(\"'\"&A52&\"'!$10:$15\"),ROW('Technology template'!$A$13)-ROW('Technology template'!$A$10)+1,FALSE)","v":0},{"$f":"VLOOKUP(B52,PQS!$B:$Q,MATCH(PQS!$Q$3,PQS!$B$3:$Q$3,0),FALSE)*(1+'Country Input'!$C$47)+HLOOKUP(B52,INDIRECT(\"'\"&A52&\"'!$10:$15\"),ROW('Technology template'!$A$14)-ROW('Technology template'!$A$10)+1,FALSE)*(1+'Country Input'!$C$47)","v":3242.4210000000003},{"$f":"HLOOKUP(B52,INDIRECT(\"'\"&A52&\"'!$10:$80\"),MATCH('Technology template'!$A$27,INDIRECT(\"'\"&A52&\"'!$A$10:$A$80\"),0),FALSE)+'Labor and Maintenance '!$E$20","v":441},{"$f":"VLOOKUP(B52,PQS!B:T,MATCH(PQS!$T$3,PQS!$B$3:$T$3,0),FALSE)*(1+'Country Input'!$C$47)","v":159.51485100000002},3842.9358510000002,384.29358510000003,{"$f":"VLOOKUP(B52,PQS!$B:$AE,COLUMN(PQS!AD50)-1,FALSE)","v":341.64},{"$f":"IFERROR(1/HLOOKUP(B52,INDIRECT(\"'\"&A52&\"'!$10:$80\"),MATCH('Technology template'!$A$31,INDIRECT(\"'\"&A52&\"'!$A$10:$A$80\"),0),FALSE)*HLOOKUP(B52,INDIRECT(\"'\"&A52&\"'!$10:$80\"),MATCH('Technology template'!$A$41,INDIRECT(\"'\"&A52&\"'!$A10:$A$80\"),0),FALSE),0)*TechnicianHourlyWage+IF(A52=\"Solar w Battery\",1/'Labor and Maintenance '!$E$53*'Labor and Maintenance '!$D$53,0)+IF(A52=\"LT passive\", 1/'Labor and Maintenance '!$E$81*'Labor and Maintenance '!$D$81,0)","v":24},{"$f":"IFERROR(1/HLOOKUP(B52,INDIRECT(\"'\"&A52&\"'!$10:$80\"),MATCH('Technology template'!$A$34,INDIRECT(\"'\"&A52&\"'!$A$10:$A$80\"),0),FALSE)*(HLOOKUP(B52,INDIRECT(\"'\"&A52&\"'!$10:$80\"),MATCH('Technology template'!$A$44,INDIRECT(\"'\"&A52&\"'!$A10:$A$80\"),0),FALSE)*TechnicianHourlyWage+RemoteTravelCostPerDay),0)+IFERROR(1/HLOOKUP(B52,INDIRECT(\"'\"&A52&\"'!$10:$80\"),MATCH('Technology template'!$A$35,INDIRECT(\"'\"&A52&\"'!$A$10:$A$80\"),0),FALSE)*(HLOOKUP(B52,INDIRECT(\"'\"&A52&\"'!$10:$80\"),MATCH('Technology template'!$A$45,INDIRECT(\"'\"&A52&\"'!$A10:$A$80\"),0),FALSE)*TechnicianHourlyWage+RemoteTravelCostPerDay),0)+IFERROR(1/HLOOKUP(B52,INDIRECT(\"'\"&A52&\"'!$10:$80\"),MATCH('Technology template'!$A$37,INDIRECT(\"'\"&A52&\"'!$A$10:$A$80\"),0),FALSE)*(HLOOKUP(B52,INDIRECT(\"'\"&A52&\"'!$10:$80\"),MATCH('Technology template'!$A$46,INDIRECT(\"'\"&A52&\"'!$A10:$A$80\"),0),FALSE)*TechnicianHourlyWage+'Labor and Maintenance '!$B$8),0)","v":68.599999999999994},4342.3999999999996,434.24,818.53358509999998,null,"B Medical RCW 50 EK",160.122327125,180.93333333333331,341.05566045833331,null,"B Medical RCW 50 EK",16.012232712500001,18.093333333333334,34.105566045833335,null,"B Medical RCW 50 EK",6,23057.615106000001,26054.399999999998,49112.015105999999,null,"B Medical RCW 50 EK",6,96.073396275000007,108.56,204.633396275,null,"B Medical RCW 50 EK",{"$f":"IF(F52=0, 'Country Input'!$D$7, ROUNDUP(LitersPerFacility/F52,0)*'Country Input'!$D$7)","v":10},38429.358510000005,4342.3999999999996,42771.758510000007,null,"B Medical RCW 50 EK",{"$f":"ROUNDUP(LitersPerFacility/F52,0)*'Country Input'!$D$7*ROUNDUP('Total Solution Costs'!$B$2/Calculations!I52,0)","v":10},160.12232712500003,18.09333333333333,178.21566045833336,null,null,"B Medical RCW 50 EK",{"$f":"(($U52+($O52)*IF(MOD(BH$3,$I52)=1,1,0)+Parts!$E$91*IF($J52=0,0,IF(MOD(BH$3,$I52)=1,IF(PQS!$R52=\"NO\",1,0),IF(MOD(BH$3,Calculations!$J52)=1,1,0)))+Parts!$E$92*IF(Calculations!$K52=0,0,IF(MOD(BH$3,$I52)=1,0,IF(MOD(BH$3,Calculations!$K52)=1,1,0))))*$AU52)*(1+'Country Input'!$C$45)^(Calculations!BH$3-$BH$3)+TrainingCost","v":42771.75851},{"$f":"(($U52+($O52)*IF(MOD(BI$3,$I52)=1,1,0)+Parts!$E$91*IF($J52=0,0,IF(MOD(BI$3,$I52)=1,IF(PQS!$R52=\"NO\",1,0),IF(MOD(BI$3,Calculations!$J52)=1,1,0)))+Parts!$E$92*IF(Calculations!$K52=0,0,IF(MOD(BI$3,$I52)=1,0,IF(MOD(BI$3,Calculations!$K52)=1,1,0))))*$AU52)*(1+'Country Input'!$C$45)^(Calculations!BI$3-$BH$3)","v":4342.3999999999996},{"$f":"(($U52+($O52)*IF(MOD(BJ$3,$I52)=1,1,0)+Parts!$E$91*IF($J52=0,0,IF(MOD(BJ$3,$I52)=1,IF(PQS!$R52=\"NO\",1,0),IF(MOD(BJ$3,Calculations!$J52)=1,1,0)))+Parts!$E$92*IF(Calculations!$K52=0,0,IF(MOD(BJ$3,$I52)=1,0,IF(MOD(BJ$3,Calculations!$K52)=1,1,0))))*$AU52)*(1+'Country Input'!$C$45)^(Calculations!BJ$3-$BH$3)","v":4342.3999999999996},{"$f":"(($U52+($O52)*IF(MOD(BK$3,$I52)=1,1,0)+Parts!$E$91*IF($J52=0,0,IF(MOD(BK$3,$I52)=1,IF(PQS!$R52=\"NO\",1,0),IF(MOD(BK$3,Calculations!$J52)=1,1,0)))+Parts!$E$92*IF(Calculations!$K52=0,0,IF(MOD(BK$3,$I52)=1,0,IF(MOD(BK$3,Calculations!$K52)=1,1,0))))*$AU52)*(1+'Country Input'!$C$45)^(Calculations!BK$3-$BH$3)","v":4342.3999999999996},{"$f":"(($U52+($O52)*IF(MOD(BL$3,$I52)=1,1,0)+Parts!$E$91*IF($J52=0,0,IF(MOD(BL$3,$I52)=1,IF(PQS!$R52=\"NO\",1,0),IF(MOD(BL$3,Calculations!$J52)=1,1,0)))+Parts!$E$92*IF(Calculations!$K52=0,0,IF(MOD(BL$3,$I52)=1,0,IF(MOD(BL$3,Calculations!$K52)=1,1,0))))*$AU52)*(1+'Country Input'!$C$45)^(Calculations!BL$3-$BH$3)","v":4342.3999999999996},{"$f":"(($U52+($O52)*IF(MOD(BM$3,$I52)=1,1,0)+Parts!$E$91*IF($J52=0,0,IF(MOD(BM$3,$I52)=1,IF(PQS!$R52=\"NO\",1,0),IF(MOD(BM$3,Calculations!$J52)=1,1,0)))+Parts!$E$92*IF(Calculations!$K52=0,0,IF(MOD(BM$3,$I52)=1,0,IF(MOD(BM$3,Calculations!$K52)=1,1,0))))*$AU52)*(1+'Country Input'!$C$45)^(Calculations!BM$3-$BH$3)","v":4342.3999999999996},{"$f":"(($U52+($O52)*IF(MOD(BN$3,$I52)=1,1,0)+Parts!$E$91*IF($J52=0,0,IF(MOD(BN$3,$I52)=1,IF(PQS!$R52=\"NO\",1,0),IF(MOD(BN$3,Calculations!$J52)=1,1,0)))+Parts!$E$92*IF(Calculations!$K52=0,0,IF(MOD(BN$3,$I52)=1,0,IF(MOD(BN$3,Calculations!$K52)=1,1,0))))*$AU52)*(1+'Country Input'!$C$45)^(Calculations!BN$3-$BH$3)","v":4342.3999999999996},{"$f":"(($U52+($O52)*IF(MOD(BO$3,$I52)=1,1,0)+Parts!$E$91*IF($J52=0,0,IF(MOD(BO$3,$I52)=1,IF(PQS!$R52=\"NO\",1,0),IF(MOD(BO$3,Calculations!$J52)=1,1,0)))+Parts!$E$92*IF(Calculations!$K52=0,0,IF(MOD(BO$3,$I52)=1,0,IF(MOD(BO$3,Calculations!$K52)=1,1,0))))*$AU52)*(1+'Country Input'!$C$45)^(Calculations!BO$3-$BH$3)","v":4342.3999999999996},{"$f":"(($U52+($O52)*IF(MOD(BP$3,$I52)=1,1,0)+Parts!$E$91*IF($J52=0,0,IF(MOD(BP$3,$I52)=1,IF(PQS!$R52=\"NO\",1,0),IF(MOD(BP$3,Calculations!$J52)=1,1,0)))+Parts!$E$92*IF(Calculations!$K52=0,0,IF(MOD(BP$3,$I52)=1,0,IF(MOD(BP$3,Calculations!$K52)=1,1,0))))*$AU52)*(1+'Country Input'!$C$45)^(Calculations!BP$3-$BH$3)","v":4342.3999999999996},{"$f":"(($U52+($O52)*IF(MOD(BQ$3,$I52)=1,1,0)+Parts!$E$91*IF($J52=0,0,IF(MOD(BQ$3,$I52)=1,IF(PQS!$R52=\"NO\",1,0),IF(MOD(BQ$3,Calculations!$J52)=1,1,0)))+Parts!$E$92*IF(Calculations!$K52=0,0,IF(MOD(BQ$3,$I52)=1,0,IF(MOD(BQ$3,Calculations!$K52)=1,1,0))))*$AU52)*(1+'Country Input'!$C$45)^(Calculations!BQ$3-$BH$3)","v":4342.3999999999996},{"$f":"(($U52+($O52)*IF(MOD(BR$3,$I52)=1,1,0)+Parts!$E$91*IF($J52=0,0,IF(MOD(BR$3,$I52)=1,IF(PQS!$R52=\"NO\",1,0),IF(MOD(BR$3,Calculations!$J52)=1,1,0)))+Parts!$E$92*IF(Calculations!$K52=0,0,IF(MOD(BR$3,$I52)=1,0,IF(MOD(BR$3,Calculations!$K52)=1,1,0))))*$AU52)*(1+'Country Input'!$C$45)^(Calculations!BR$3-$BH$3)","v":42771.75851},{"$f":"(($U52+($O52)*IF(MOD(BS$3,$I52)=1,1,0)+Parts!$E$91*IF($J52=0,0,IF(MOD(BS$3,$I52)=1,IF(PQS!$R52=\"NO\",1,0),IF(MOD(BS$3,Calculations!$J52)=1,1,0)))+Parts!$E$92*IF(Calculations!$K52=0,0,IF(MOD(BS$3,$I52)=1,0,IF(MOD(BS$3,Calculations!$K52)=1,1,0))))*$AU52)*(1+'Country Input'!$C$45)^(Calculations!BS$3-$BH$3)","v":4342.3999999999996},{"$f":"(($U52+($O52)*IF(MOD(BT$3,$I52)=1,1,0)+Parts!$E$91*IF($J52=0,0,IF(MOD(BT$3,$I52)=1,IF(PQS!$R52=\"NO\",1,0),IF(MOD(BT$3,Calculations!$J52)=1,1,0)))+Parts!$E$92*IF(Calculations!$K52=0,0,IF(MOD(BT$3,$I52)=1,0,IF(MOD(BT$3,Calculations!$K52)=1,1,0))))*$AU52)*(1+'Country Input'!$C$45)^(Calculations!BT$3-$BH$3)","v":4342.3999999999996},{"$f":"(($U52+($O52)*IF(MOD(BU$3,$I52)=1,1,0)+Parts!$E$91*IF($J52=0,0,IF(MOD(BU$3,$I52)=1,IF(PQS!$R52=\"NO\",1,0),IF(MOD(BU$3,Calculations!$J52)=1,1,0)))+Parts!$E$92*IF(Calculations!$K52=0,0,IF(MOD(BU$3,$I52)=1,0,IF(MOD(BU$3,Calculations!$K52)=1,1,0))))*$AU52)*(1+'Country Input'!$C$45)^(Calculations!BU$3-$BH$3)","v":4342.3999999999996},{"$f":"(($U52+($O52)*IF(MOD(BV$3,$I52)=1,1,0)+Parts!$E$91*IF($J52=0,0,IF(MOD(BV$3,$I52)=1,IF(PQS!$R52=\"NO\",1,0),IF(MOD(BV$3,Calculations!$J52)=1,1,0)))+Parts!$E$92*IF(Calculations!$K52=0,0,IF(MOD(BV$3,$I52)=1,0,IF(MOD(BV$3,Calculations!$K52)=1,1,0))))*$AU52)*(1+'Country Input'!$C$45)^(Calculations!BV$3-$BH$3)","v":4342.3999999999996},{"$f":"(($U52+($O52)*IF(MOD(BW$3,$I52)=1,1,0)+Parts!$E$91*IF($J52=0,0,IF(MOD(BW$3,$I52)=1,IF(PQS!$R52=\"NO\",1,0),IF(MOD(BW$3,Calculations!$J52)=1,1,0)))+Parts!$E$92*IF(Calculations!$K52=0,0,IF(MOD(BW$3,$I52)=1,0,IF(MOD(BW$3,Calculations!$K52)=1,1,0))))*$AU52)*(1+'Country Input'!$C$45)^(Calculations!BW$3-$BH$3)","v":4342.3999999999996},{"$f":"(($U52+($O52)*IF(MOD(BX$3,$I52)=1,1,0)+Parts!$E$91*IF($J52=0,0,IF(MOD(BX$3,$I52)=1,IF(PQS!$R52=\"NO\",1,0),IF(MOD(BX$3,Calculations!$J52)=1,1,0)))+Parts!$E$92*IF(Calculations!$K52=0,0,IF(MOD(BX$3,$I52)=1,0,IF(MOD(BX$3,Calculations!$K52)=1,1,0))))*$AU52)*(1+'Country Input'!$C$45)^(Calculations!BX$3-$BH$3)","v":4342.3999999999996},{"$f":"(($U52+($O52)*IF(MOD(BY$3,$I52)=1,1,0)+Parts!$E$91*IF($J52=0,0,IF(MOD(BY$3,$I52)=1,IF(PQS!$R52=\"NO\",1,0),IF(MOD(BY$3,Calculations!$J52)=1,1,0)))+Parts!$E$92*IF(Calculations!$K52=0,0,IF(MOD(BY$3,$I52)=1,0,IF(MOD(BY$3,Calculations!$K52)=1,1,0))))*$AU52)*(1+'Country Input'!$C$45)^(Calculations!BY$3-$BH$3)","v":4342.3999999999996},{"$f":"(($U52+($O52)*IF(MOD(BZ$3,$I52)=1,1,0)+Parts!$E$91*IF($J52=0,0,IF(MOD(BZ$3,$I52)=1,IF(PQS!$R52=\"NO\",1,0),IF(MOD(BZ$3,Calculations!$J52)=1,1,0)))+Parts!$E$92*IF(Calculations!$K52=0,0,IF(MOD(BZ$3,$I52)=1,0,IF(MOD(BZ$3,Calculations!$K52)=1,1,0))))*$AU52)*(1+'Country Input'!$C$45)^(Calculations!BZ$3-$BH$3)","v":4342.3999999999996},{"$f":"(($U52+($O52)*IF(MOD(CA$3,$I52)=1,1,0)+Parts!$E$91*IF($J52=0,0,IF(MOD(CA$3,$I52)=1,IF(PQS!$R52=\"NO\",1,0),IF(MOD(CA$3,Calculations!$J52)=1,1,0)))+Parts!$E$92*IF(Calculations!$K52=0,0,IF(MOD(CA$3,$I52)=1,0,IF(MOD(CA$3,Calculations!$K52)=1,1,0))))*$AU52)*(1+'Country Input'!$C$45)^(Calculations!CA$3-$BH$3)","v":4342.3999999999996},null,"B Medical RCW 50 EK",42771.75851,4342.3999999999996,4342.3999999999996,4342.3999999999996,4342.3999999999996,4342.3999999999996,4342.3999999999996,4342.3999999999996,4342.3999999999996,4342.3999999999996,42771.75851,4342.3999999999996,4342.3999999999996,4342.3999999999996,4342.3999999999996,4342.3999999999996,4342.3999999999996,4342.3999999999996,4342.3999999999996,4342.3999999999996,{"$f":"SUM(CD52:INDEX($CD52:$CW52,1,'Total Solution Costs'!$B$2))","v":81853.358509999991},null,"B Medical RCW 50 EK",{"$f":"SUM($BH52:BH52)","v":42771.75851},{"$f":"SUM($BH52:BI52)","v":47114.158510000001},{"$f":"SUM($BH52:BJ52)","v":51456.558510000003},{"$f":"SUM($BH52:BK52)","v":55798.958510000004},{"$f":"SUM($BH52:BL52)","v":60141.358510000005},{"$f":"SUM($BH52:BM52)","v":64483.758510000007},{"$f":"SUM($BH52:BN52)","v":68826.158510000008},{"$f":"SUM($BH52:BO52)","v":73168.558510000003},{"$f":"SUM($BH52:BP52)","v":77510.958509999997},{"$f":"SUM($BH52:BQ52)","v":81853.358509999991},{"$f":"SUM($BH52:BR52)","v":124625.11701999999},{"$f":"SUM($BH52:BS52)","v":128967.51701999998},{"$f":"SUM($BH52:BT52)","v":133309.91701999999},{"$f":"SUM($BH52:BU52)","v":137652.31701999999},{"$f":"SUM($BH52:BV52)","v":141994.71701999998},{"$f":"SUM($BH52:BW52)","v":146337.11701999998},{"$f":"SUM($BH52:BX52)","v":150679.51701999997},{"$f":"SUM($BH52:BY52)","v":155021.91701999996},{"$f":"SUM($BH52:BZ52)","v":159364.31701999996},{"$f":"SUM($BH52:CA52)","v":163706.71701999995}]
[{"$f":"PQS!A53","v":"SDD"},{"$f":"PQS!B53","v":"E003/009"},{"$f":"PQS!E53","v":"MKS 044"},{"$f":"PQS!F53","v":"Vestfrost"},{"$f":"PQS!D53","v":"Vestfrost MKS 044"},{"$f":"VLOOKUP(E53,PQS!$D$5:$K$107,COLUMN(PQS!$I$3)-COLUMN(PQS!$D$3)+1,FALSE)","v":19.5},{"$f":"VLOOKUP(E53,PQS!$D$5:$K$107,COLUMN(PQS!$J$3)-COLUMN(PQS!$D$3)+1,FALSE)","v":0},{"$f":"VLOOKUP(E53,PQS!$D$5:$K$107,COLUMN(PQS!$G$3)-COLUMN(PQS!$D$3)+1,FALSE)","v":"No"},{"$f":"HLOOKUP(B53,INDIRECT(\"'\"&A53&\"'!$10:$15\"),ROW('Technology template'!$A$11)-ROW('Technology template'!$A$10)+1,FALSE)","v":10},{"$f":"HLOOKUP(B53,INDIRECT(\"'\"&A53&\"'!$10:$15\"),ROW('Technology template'!$A$12)-ROW('Technology template'!$A$10)+1,FALSE)","v":10},{"$f":"HLOOKUP(B53,INDIRECT(\"'\"&A53&\"'!$10:$15\"),ROW('Technology template'!$A$13)-ROW('Technology template'!$A$10)+1,FALSE)","v":0},{"$f":"VLOOKUP(B53,PQS!$B:$Q,MATCH(PQS!$Q$3,PQS!$B$3:$Q$3,0),FALSE)*(1+'Country Input'!$C$47)+HLOOKUP(B53,INDIRECT(\"'\"&A53&\"'!$10:$15\"),ROW('Technology template'!$A$14)-ROW('Technology template'!$A$10)+1,FALSE)*(1+'Country Input'!$C$47)","v":2610.2971000000002},{"$f":"HLOOKUP(B53,INDIRECT(\"'\"&A53&\"'!$10:$80\"),MATCH('Technology template'!$A$27,INDIRECT(\"'\"&A53&\"'!$A$10:$A$80\"),0),FALSE)+'Labor and Maintenance '!$E$18","v":1042},{"$f":"VLOOKUP(B53,PQS!B:T,MATCH(PQS!$T$3,PQS!$B$3:$T$3,0),FALSE)*(1+'Country Input'!$C$47)","v":510.33789100000024},4162.6349910000008,416.2634991000001,{"$f":"VLOOKUP(B53,PQS!$B:$AE,COLUMN(PQS!AD51)-1,FALSE)","v":0},{"$f":"IFERROR(1/HLOOKUP(B53,INDIRECT(\"'\"&A53&\"'!$10:$80\"),MATCH('Technology template'!$A$31,INDIRECT(\"'\"&A53&\"'!$A$10:$A$80\"),0),FALSE)*HLOOKUP(B53,INDIRECT(\"'\"&A53&\"'!$10:$80\"),MATCH('Technology template'!$A$41,INDIRECT(\"'\"&A53&\"'!$A10:$A$80\"),0),FALSE),0)*TechnicianHourlyWage+IF(A53=\"Solar w Battery\",1/'Labor and Maintenance '!$E$53*'Labor and Maintenance '!$D$53,0)+IF(A53=\"LT passive\", 1/'Labor and Maintenance '!$E$81*'Labor and Maintenance '!$D$81,0)","v":24},{"$f":"IFERROR(1/HLOOKUP(B53,INDIRECT(\"'\"&A53&\"'!$10:$80\"),MATCH('Technology template'!$A$34,INDIRECT(\"'\"&A53&\"'!$A$10:$A$80\"),0),FALSE)*(HLOOKUP(B53,INDIRECT(\"'\"&A53&\"'!$10:$80\"),MATCH('Technology template'!$A$44,INDIRECT(\"'\"&A53&\"'!$A10:$A$80\"),0),FALSE)*TechnicianHourlyWage+RemoteTravelCostPerDay),0)+IFERROR(1/HLOOKUP(B53,INDIRECT(\"'\"&A53&\"'!$10:$80\"),MATCH('Technology template'!$A$35,INDIRECT(\"'\"&A53&\"'!$A$10:$A$80\"),0),FALSE)*(HLOOKUP(B53,INDIRECT(\"'\"&A53&\"'!$10:$80\"),MATCH('Technology template'!$A$45,INDIRECT(\"'\"&A53&\"'!$A10:$A$80\"),0),FALSE)*TechnicianHourlyWage+RemoteTravelCostPerDay),0)+IFERROR(1/HLOOKUP(B53,INDIRECT(\"'\"&A53&\"'!$10:$80\"),MATCH('Technology template'!$A$37,INDIRECT(\"'\"&A53&\"'!$A$10:$A$80\"),0),FALSE)*(HLOOKUP(B53,INDIRECT(\"'\"&A53&\"'!$10:$80\"),MATCH('Technology template'!$A$46,INDIRECT(\"'\"&A53&\"'!$A10:$A$80\"),0),FALSE)*TechnicianHourlyWage+'Labor and Maintenance '!$B$8),0)","v":83.5},1075,107.5,{"$f":"P53+U53","v":523.7634991000001},null,"Vestfrost MKS 044",213.46846107692312,55.128205128205131,268.59666620512826,null,"Vestfrost MKS 044",21.346846107692311,5.5128205128205128,26.859666620512826,null,"Vestfrost MKS 044",7,29138.444937000007,7525,36663.444937000007,null,"Vestfrost MKS 044",7,149.42792275384619,38.589743589743591,188.01766634358978,null,"Vestfrost MKS 044",{"$f":"IF(F53=0, 'Country Input'!$D$7, ROUNDUP(LitersPerFacility/F53,0)*'Country Input'!$D$7)","v":10},41626.349910000004,1075,42701.349910000004,null,"Vestfrost MKS 044",{"$f":"ROUNDUP(LitersPerFacility/F53,0)*'Country Input'!$D$7*ROUNDUP('Total Solution Costs'!$B$2/Calculations!I53,0)","v":10},213.46846107692312,5.5128205128205128,218.98128158974365,null,null,"Vestfrost MKS 044",{"$f":"(($U53+($O53)*IF(MOD(BH$3,$I53)=1,1,0)+Parts!$E$91*IF($J53=0,0,IF(MOD(BH$3,$I53)=1,IF(PQS!$R53=\"NO\",1,0),IF(MOD(BH$3,Calculations!$J53)=1,1,0)))+Parts!$E$92*IF(Calculations!$K53=0,0,IF(MOD(BH$3,$I53)=1,0,IF(MOD(BH$3,Calculations!$K53)=1,1,0))))*$AU53)*(1+'Country Input'!$C$45)^(Calculations!BH$3-$BH$3)+TrainingCost","v":42701.349910000004},{"$f":"(($U53+($O53)*IF(MOD(BI$3,$I53)=1,1,0)+Parts!$E$91*IF($J53=0,0,IF(MOD(BI$3,$I53)=1,IF(PQS!$R53=\"NO\",1,0),IF(MOD(BI$3,Calculations!$J53)=1,1,0)))+Parts!$E$92*IF(Calculations!$K53=0,0,IF(MOD(BI$3,$I53)=1,0,IF(MOD(BI$3,Calculations!$K53)=1,1,0))))*$AU53)*(1+'Country Input'!$C$45)^(Calculations!BI$3-$BH$3)","v":1075},{"$f":"(($U53+($O53)*IF(MOD(BJ$3,$I53)=1,1,0)+Parts!$E$91*IF($J53=0,0,IF(MOD(BJ$3,$I53)=1,IF(PQS!$R53=\"NO\",1,0),IF(MOD(BJ$3,Calculations!$J53)=1,1,0)))+Parts!$E$92*IF(Calculations!$K53=0,0,IF(MOD(BJ$3,$I53)=1,0,IF(MOD(BJ$3,Calculations!$K53)=1,1,0))))*$AU53)*(1+'Country Input'!$C$45)^(Calculations!BJ$3-$BH$3)","v":1075},{"$f":"(($U53+($O53)*IF(MOD(BK$3,$I53)=1,1,0)+Parts!$E$91*IF($J53=0,0,IF(MOD(BK$3,$I53)=1,IF(PQS!$R53=\"NO\",1,0),IF(MOD(BK$3,Calculations!$J53)=1,1,0)))+Parts!$E$92*IF(Calculations!$K53=0,0,IF(MOD(BK$3,$I53)=1,0,IF(MOD(BK$3,Calculations!$K53)=1,1,0))))*$AU53)*(1+'Country Input'!$C$45)^(Calculations!BK$3-$BH$3)","v":1075},{"$f":"(($U53+($O53)*IF(MOD(BL$3,$I53)=1,1,0)+Parts!$E$91*IF($J53=0,0,IF(MOD(BL$3,$I53)=1,IF(PQS!$R53=\"NO\",1,0),IF(MOD(BL$3,Calculations!$J53)=1,1,0)))+Parts!$E$92*IF(Calculations!$K53=0,0,IF(MOD(BL$3,$I53)=1,0,IF(MOD(BL$3,Calculations!$K53)=1,1,0))))*$AU53)*(1+'Country Input'!$C$45)^(Calculations!BL$3-$BH$3)","v":1075},{"$f":"(($U53+($O53)*IF(MOD(BM$3,$I53)=1,1,0)+Parts!$E$91*IF($J53=0,0,IF(MOD(BM$3,$I53)=1,IF(PQS!$R53=\"NO\",1,0),IF(MOD(BM$3,Calculations!$J53)=1,1,0)))+Parts!$E$92*IF(Calculations!$K53=0,0,IF(MOD(BM$3,$I53)=1,0,IF(MOD(BM$3,Calculations!$K53)=1,1,0))))*$AU53)*(1+'Country Input'!$C$45)^(Calculations!BM$3-$BH$3)","v":1075},{"$f":"(($U53+($O53)*IF(MOD(BN$3,$I53)=1,1,0)+Parts!$E$91*IF($J53=0,0,IF(MOD(BN$3,$I53)=1,IF(PQS!$R53=\"NO\",1,0),IF(MOD(BN$3,Calculations!$J53)=1,1,0)))+Parts!$E$92*IF(Calculations!$K53=0,0,IF(MOD(BN$3,$I53)=1,0,IF(MOD(BN$3,Calculations!$K53)=1,1,0))))*$AU53)*(1+'Country Input'!$C$45)^(Calculations!BN$3-$BH$3)","v":1075},{"$f":"(($U53+($O53)*IF(MOD(BO$3,$I53)=1,1,0)+Parts!$E$91*IF($J53=0,0,IF(MOD(BO$3,$I53)=1,IF(PQS!$R53=\"NO\",1,0),IF(MOD(BO$3,Calculations!$J53)=1,1,0)))+Parts!$E$92*IF(Calculations!$K53=0,0,IF(MOD(BO$3,$I53)=1,0,IF(MOD(BO$3,Calculations!$K53)=1,1,0))))*$AU53)*(1+'Country Input'!$C$45)^(Calculations!BO$3-$BH$3)","v":1075},{"$f":"(($U53+($O53)*IF(MOD(BP$3,$I53)=1,1,0)+Parts!$E$91*IF($J53=0,0,IF(MOD(BP$3,$I53)=1,IF(PQS!$R53=\"NO\",1,0),IF(MOD(BP$3,Calculations!$J53)=1,1,0)))+Parts!$E$92*IF(Calculations!$K53=0,0,IF(MOD(BP$3,$I53)=1,0,IF(MOD(BP$3,Calculations!$K53)=1,1,0))))*$AU53)*(1+'Country Input'!$C$45)^(Calculations!BP$3-$BH$3)","v":1075},{"$f":"(($U53+($O53)*IF(MOD(BQ$3,$I53)=1,1,0)+Parts!$E$91*IF($J53=0,0,IF(MOD(BQ$3,$I53)=1,IF(PQS!$R53=\"NO\",1,0),IF(MOD(BQ$3,Calculations!$J53)=1,1,0)))+Parts!$E$92*IF(Calculations!$K53=0,0,IF(MOD(BQ$3,$I53)=1,0,IF(MOD(BQ$3,Calculations!$K53)=1,1,0))))*$AU53)*(1+'Country Input'!$C$45)^(Calculations!BQ$3-$BH$3)","v":1075},{"$f":"(($U53+($O53)*IF(MOD(BR$3,$I53)=1,1,0)+Parts!$E$91*IF($J53=0,0,IF(MOD(BR$3,$I53)=1,IF(PQS!$R53=\"NO\",1,0),IF(MOD(BR$3,Calculations!$J53)=1,1,0)))+Parts!$E$92*IF(Calculations!$K53=0,0,IF(MOD(BR$3,$I53)=1,0,IF(MOD(BR$3,Calculations!$K53)=1,1,0))))*$AU53)*(1+'Country Input'!$C$45)^(Calculations!BR$3-$BH$3)","v":42701.349910000004},{"$f":"(($U53+($O53)*IF(MOD(BS$3,$I53)=1,1,0)+Parts!$E$91*IF($J53=0,0,IF(MOD(BS$3,$I53)=1,IF(PQS!$R53=\"NO\",1,0),IF(MOD(BS$3,Calculations!$J53)=1,1,0)))+Parts!$E$92*IF(Calculations!$K53=0,0,IF(MOD(BS$3,$I53)=1,0,IF(MOD(BS$3,Calculations!$K53)=1,1,0))))*$AU53)*(1+'Country Input'!$C$45)^(Calculations!BS$3-$BH$3)","v":1075},{"$f":"(($U53+($O53)*IF(MOD(BT$3,$I53)=1,1,0)+Parts!$E$91*IF($J53=0,0,IF(MOD(BT$3,$I53)=1,IF(PQS!$R53=\"NO\",1,0),IF(MOD(BT$3,Calculations!$J53)=1,1,0)))+Parts!$E$92*IF(Calculations!$K53=0,0,IF(MOD(BT$3,$I53)=1,0,IF(MOD(BT$3,Calculations!$K53)=1,1,0))))*$AU53)*(1+'Country Input'!$C$45)^(Calculations!BT$3-$BH$3)","v":1075},{"$f":"(($U53+($O53)*IF(MOD(BU$3,$I53)=1,1,0)+Parts!$E$91*IF($J53=0,0,IF(MOD(BU$3,$I53)=1,IF(PQS!$R53=\"NO\",1,0),IF(MOD(BU$3,Calculations!$J53)=1,1,0)))+Parts!$E$92*IF(Calculations!$K53=0,0,IF(MOD(BU$3,$I53)=1,0,IF(MOD(BU$3,Calculations!$K53)=1,1,0))))*$AU53)*(1+'Country Input'!$C$45)^(Calculations!BU$3-$BH$3)","v":1075},{"$f":"(($U53+($O53)*IF(MOD(BV$3,$I53)=1,1,0)+Parts!$E$91*IF($J53=0,0,IF(MOD(BV$3,$I53)=1,IF(PQS!$R53=\"NO\",1,0),IF(MOD(BV$3,Calculations!$J53)=1,1,0)))+Parts!$E$92*IF(Calculations!$K53=0,0,IF(MOD(BV$3,$I53)=1,0,IF(MOD(BV$3,Calculations!$K53)=1,1,0))))*$AU53)*(1+'Country Input'!$C$45)^(Calculations!BV$3-$BH$3)","v":1075},{"$f":"(($U53+($O53)*IF(MOD(BW$3,$I53)=1,1,0)+Parts!$E$91*IF($J53=0,0,IF(MOD(BW$3,$I53)=1,IF(PQS!$R53=\"NO\",1,0),IF(MOD(BW$3,Calculations!$J53)=1,1,0)))+Parts!$E$92*IF(Calculations!$K53=0,0,IF(MOD(BW$3,$I53)=1,0,IF(MOD(BW$3,Calculations!$K53)=1,1,0))))*$AU53)*(1+'Country Input'!$C$45)^(Calculations!BW$3-$BH$3)","v":1075},{"$f":"(($U53+($O53)*IF(MOD(BX$3,$I53)=1,1,0)+Parts!$E$91*IF($J53=0,0,IF(MOD(BX$3,$I53)=1,IF(PQS!$R53=\"NO\",1,0),IF(MOD(BX$3,Calculations!$J53)=1,1,0)))+Parts!$E$92*IF(Calculations!$K53=0,0,IF(MOD(BX$3,$I53)=1,0,IF(MOD(BX$3,Calculations!$K53)=1,1,0))))*$AU53)*(1+'Country Input'!$C$45)^(Calculations!BX$3-$BH$3)","v":1075},{"$f":"(($U53+($O53)*IF(MOD(BY$3,$I53)=1,1,0)+Parts!$E$91*IF($J53=0,0,IF(MOD(BY$3,$I53)=1,IF(PQS!$R53=\"NO\",1,0),IF(MOD(BY$3,Calculations!$J53)=1,1,0)))+Parts!$E$92*IF(Calculations!$K53=0,0,IF(MOD(BY$3,$I53)=1,0,IF(MOD(BY$3,Calculations!$K53)=1,1,0))))*$AU53)*(1+'Country Input'!$C$45)^(Calculations!BY$3-$BH$3)","v":1075},{"$f":"(($U53+($O53)*IF(MOD(BZ$3,$I53)=1,1,0)+Parts!$E$91*IF($J53=0,0,IF(MOD(BZ$3,$I53)=1,IF(PQS!$R53=\"NO\",1,0),IF(MOD(BZ$3,Calculations!$J53)=1,1,0)))+Parts!$E$92*IF(Calculations!$K53=0,0,IF(MOD(BZ$3,$I53)=1,0,IF(MOD(BZ$3,Calculations!$K53)=1,1,0))))*$AU53)*(1+'Country Input'!$C$45)^(Calculations!BZ$3-$BH$3)","v":1075},{"$f":"(($U53+($O53)*IF(MOD(CA$3,$I53)=1,1,0)+Parts!$E$91*IF($J53=0,0,IF(MOD(CA$3,$I53)=1,IF(PQS!$R53=\"NO\",1,0),IF(MOD(CA$3,Calculations!$J53)=1,1,0)))+Parts!$E$92*IF(Calculations!$K53=0,0,IF(MOD(CA$3,$I53)=1,0,IF(MOD(CA$3,Calculations!$K53)=1,1,0))))*$AU53)*(1+'Country Input'!$C$45)^(Calculations!CA$3-$BH$3)","v":1075},null,"Vestfrost MKS 044",{"$f":"BH53/((1+DiscountRate)^(COLUMN(CD53)-COLUMN($CD53)))","v":42701.349910000004},{"$f":"BI53/((1+DiscountRate)^(COLUMN(CE53)-COLUMN($CD53)))","v":1075},{"$f":"BJ53/((1+DiscountRate)^(COLUMN(CF53)-COLUMN($CD53)))","v":1075},{"$f":"BK53/((1+DiscountRate)^(COLUMN(CG53)-COLUMN($CD53)))","v":1075},{"$f":"BL53/((1+DiscountRate)^(COLUMN(CH53)-COLUMN($CD53)))","v":1075},{"$f":"BM53/((1+DiscountRate)^(COLUMN(CI53)-COLUMN($CD53)))","v":1075},{"$f":"BN53/((1+DiscountRate)^(COLUMN(CJ53)-COLUMN($CD53)))","v":1075},{"$f":"BO53/((1+DiscountRate)^(COLUMN(CK53)-COLUMN($CD53)))","v":1075},{"$f":"BP53/((1+DiscountRate)^(COLUMN(CL53)-COLUMN($CD53)))","v":1075},{"$f":"BQ53/((1+DiscountRate)^(COLUMN(CM53)-COLUMN($CD53)))","v":1075},{"$f":"BR53/((1+DiscountRate)^(COLUMN(CN53)-COLUMN($CD53)))","v":42701.349910000004},{"$f":"BS53/((1+DiscountRate)^(COLUMN(CO53)-COLUMN($CD53)))","v":1075},{"$f":"BT53/((1+DiscountRate)^(COLUMN(CP53)-COLUMN($CD53)))","v":1075},{"$f":"BU53/((1+DiscountRate)^(COLUMN(CQ53)-COLUMN($CD53)))","v":1075},{"$f":"BV53/((1+DiscountRate)^(COLUMN(CR53)-COLUMN($CD53)))","v":1075},{"$f":"BW53/((1+DiscountRate)^(COLUMN(CS53)-COLUMN($CD53)))","v":1075},{"$f":"BX53/((1+DiscountRate)^(COLUMN(CT53)-COLUMN($CD53)))","v":1075},{"$f":"BY53/((1+DiscountRate)^(COLUMN(CU53)-COLUMN($CD53)))","v":1075},{"$f":"BZ53/((1+DiscountRate)^(COLUMN(CV53)-COLUMN($CD53)))","v":1075},{"$f":"CA53/((1+DiscountRate)^(COLUMN(CW53)-COLUMN($CD53)))","v":1075},{"$f":"SUM(CD53:INDEX($CD53:$CW53,1,'Total Solution Costs'!$B$2))","v":52376.349910000004},null,"Vestfrost MKS 044",{"$f":"SUM($BH53:BH53)","v":42701.349910000004},{"$f":"SUM($BH53:BI53)","v":43776.349910000004},{"$f":"SUM($BH53:BJ53)","v":44851.349910000004},{"$f":"SUM($BH53:BK53)","v":45926.349910000004},{"$f":"SUM($BH53:BL53)","v":47001.349910000004},{"$f":"SUM($BH53:BM53)","v":48076.349910000004},{"$f":"SUM($BH53:BN53)","v":49151.349910000004},{"$f":"SUM($BH53:BO53)","v":50226.349910000004},{"$f":"SUM($BH53:BP53)","v":51301.349910000004},{"$f":"SUM($BH53:BQ53)","v":52376.349910000004},{"$f":"SUM($BH53:BR53)","v":95077.699820000009},{"$f":"SUM($BH53:BS53)","v":96152.699820000009},{"$f":"SUM($BH53:BT53)","v":97227.699820000009},{"$f":"SUM($BH53:BU53)","v":98302.699820000009},{"$f":"SUM($BH53:BV53)","v":99377.699820000009},{"$f":"SUM($BH53:BW53)","v":100452.69982000001},{"$f":"SUM($BH53:BX53)","v":101527.69982000001},{"$f":"SUM($BH53:BY53)","v":102602.69982000001},{"$f":"SUM($BH53:BZ53)","v":103677.69982000001},{"$f":"SUM($BH53:CA53)","v":104752.69982000001}]
[{"$f":"PQS!A54","v":"SDD"},{"$f":"PQS!B54","v":"E003/029"},{"$f":"PQS!E54","v":"HTC-60"},{"$f":"PQS!F54","v":"Haier"},{"$f":"PQS!D54","v":"Haier HTC-60"},{"$f":"VLOOKUP(E54,PQS!$D$5:$K$107,COLUMN(PQS!$I$3)-COLUMN(PQS!$D$3)+1,FALSE)","v":21},{"$f":"VLOOKUP(E54,PQS!$D$5:$K$107,COLUMN(PQS!$J$3)-COLUMN(PQS!$D$3)+1,FALSE)","v":0},{"$f":"VLOOKUP(E54,PQS!$D$5:$K$107,COLUMN(PQS!$G$3)-COLUMN(PQS!$D$3)+1,FALSE)","v":"No"},{"$f":"HLOOKUP(B54,INDIRECT(\"'\"&A54&\"'!$10:$15\"),ROW('Technology template'!$A$11)-ROW('Technology template'!$A$10)+1,FALSE)","v":10},{"$f":"HLOOKUP(B54,INDIRECT(\"'\"&A54&\"'!$10:$15\"),ROW('Technology template'!$A$12)-ROW('Technology template'!$A$10)+1,FALSE)","v":10},{"$f":"HLOOKUP(B54,INDIRECT(\"'\"&A54&\"'!$10:$15\"),ROW('Technology template'!$A$13)-ROW('Technology template'!$A$10)+1,FALSE)","v":0},{"$f":"VLOOKUP(B54,PQS!$B:$Q,MATCH(PQS!$Q$3,PQS!$B$3:$Q$3,0),FALSE)*(1+'Country Input'!$C$47)+HLOOKUP(B54,INDIRECT(\"'\"&A54&\"'!$10:$15\"),ROW('Technology template'!$A$14)-ROW('Technology template'!$A$10)+1,FALSE)*(1+'Country Input'!$C$47)","v":2803.4},{"$f":"HLOOKUP(B54,INDIRECT(\"'\"&A54&\"'!$10:$80\"),MATCH('Technology template'!$A$27,INDIRECT(\"'\"&A54&\"'!$A$10:$A$80\"),0),FALSE)+'Labor and Maintenance '!$E$18","v":1042},{"$f":"VLOOKUP(B54,PQS!B:T,MATCH(PQS!$T$3,PQS!$B$3:$T$3,0),FALSE)*(1+'Country Input'!$C$47)","v":266.80450000000002},4112.2044999999998,411.22044999999997,{"$f":"VLOOKUP(B54,PQS!$B:$AE,COLUMN(PQS!AD52)-1,FALSE)","v":0},{"$f":"IFERROR(1/HLOOKUP(B54,INDIRECT(\"'\"&A54&\"'!$10:$80\"),MATCH('Technology template'!$A$31,INDIRECT(\"'\"&A54&\"'!$A$10:$A$80\"),0),FALSE)*HLOOKUP(B54,INDIRECT(\"'\"&A54&\"'!$10:$80\"),MATCH('Technology template'!$A$41,INDIRECT(\"'\"&A54&\"'!$A10:$A$80\"),0),FALSE),0)*TechnicianHourlyWage+IF(A54=\"Solar w Battery\",1/'Labor and Maintenance '!$E$53*'Labor and Maintenance '!$D$53,0)+IF(A54=\"LT passive\", 1/'Labor and Maintenance '!$E$81*'Labor and Maintenance '!$D$81,0)","v":24},{"$f":"IFERROR(1/HLOOKUP(B54,INDIRECT(\"'\"&A54&\"'!$10:$80\"),MATCH('Technology template'!$A$34,INDIRECT(\"'\"&A54&\"'!$A$10:$A$80\"),0),FALSE)*(HLOOKUP(B54,INDIRECT(\"'\"&A54&\"'!$10:$80\"),MATCH('Technology template'!$A$44,INDIRECT(\"'\"&A54&\"'!$A10:$A$80\"),0),FALSE)*TechnicianHourlyWage+RemoteTravelCostPerDay),0)+IFERROR(1/HLOOKUP(B54,INDIRECT(\"'\"&A54&\"'!$10:$80\"),MATCH('Technology template'!$A$35,INDIRECT(\"'\"&A54&\"'!$A$10:$A$80\"),0),FALSE)*(HLOOKUP(B54,INDIRECT(\"'\"&A54&\"'!$10:$80\"),MATCH('Technology template'!$A$45,INDIRECT(\"'\"&A54&\"'!$A10:$A$80\"),0),FALSE)*TechnicianHourlyWage+RemoteTravelCostPerDay),0)+IFERROR(1/HLOOKUP(B54,INDIRECT(\"'\"&A54&\"'!$10:$80\"),MATCH('Technology template'!$A$37,INDIRECT(\"'\"&A54&\"'!$A$10:$A$80\"),0),FALSE)*(HLOOKUP(B54,INDIRECT(\"'\"&A54&\"'!$10:$80\"),MATCH('Technology template'!$A$46,INDIRECT(\"'\"&A54&\"'!$A10:$A$80\"),0),FALSE)*TechnicianHourlyWage+'Labor and Maintenance '!$B$8),0)","v":83.5},1075,107.5,518.72045000000003,null,"Haier HTC-60",195.8192619047619,51.19047619047619,247.00973809523811,null,"Haier HTC-60",19.581926190476189,5.1190476190476186,24.700973809523809,null,"Haier HTC-60",6,24673.226999999999,6450,31123.226999999999,null,"Haier HTC-60",6,117.49155714285713,30.714285714285712,148.20584285714284,null,"Haier HTC-60",{"$f":"IF(F54=0, 'Country Input'!$D$7, ROUNDUP(LitersPerFacility/F54,0)*'Country Input'!$D$7)","v":10},41122.044999999998,1075,42197.044999999998,null,"Haier HTC-60",{"$f":"ROUNDUP(LitersPerFacility/F54,0)*'Country Input'!$D$7*ROUNDUP('Total Solution Costs'!$B$2/Calculations!I54,0)","v":10},195.8192619047619,5.1190476190476186,200.93830952380952,null,null,"Haier HTC-60",{"$f":"(($U54+($O54)*IF(MOD(BH$3,$I54)=1,1,0)+Parts!$E$91*IF($J54=0,0,IF(MOD(BH$3,$I54)=1,IF(PQS!$R54=\"NO\",1,0),IF(MOD(BH$3,Calculations!$J54)=1,1,0)))+Parts!$E$92*IF(Calculations!$K54=0,0,IF(MOD(BH$3,$I54)=1,0,IF(MOD(BH$3,Calculations!$K54)=1,1,0))))*$AU54)*(1+'Country Input'!$C$45)^(Calculations!BH$3-$BH$3)+TrainingCost","v":42197.044999999998},{"$f":"(($U54+($O54)*IF(MOD(BI$3,$I54)=1,1,0)+Parts!$E$91*IF($J54=0,0,IF(MOD(BI$3,$I54)=1,IF(PQS!$R54=\"NO\",1,0),IF(MOD(BI$3,Calculations!$J54)=1,1,0)))+Parts!$E$92*IF(Calculations!$K54=0,0,IF(MOD(BI$3,$I54)=1,0,IF(MOD(BI$3,Calculations!$K54)=1,1,0))))*$AU54)*(1+'Country Input'!$C$45)^(Calculations!BI$3-$BH$3)","v":1075},{"$f":"(($U54+($O54)*IF(MOD(BJ$3,$I54)=1,1,0)+Parts!$E$91*IF($J54=0,0,IF(MOD(BJ$3,$I54)=1,IF(PQS!$R54=\"NO\",1,0),IF(MOD(BJ$3,Calculations!$J54)=1,1,0)))+Parts!$E$92*IF(Calculations!$K54=0,0,IF(MOD(BJ$3,$I54)=1,0,IF(MOD(BJ$3,Calculations!$K54)=1,1,0))))*$AU54)*(1+'Country Input'!$C$45)^(Calculations!BJ$3-$BH$3)","v":1075},{"$f":"(($U54+($O54)*IF(MOD(BK$3,$I54)=1,1,0)+Parts!$E$91*IF($J54=0,0,IF(MOD(BK$3,$I54)=1,IF(PQS!$R54=\"NO\",1,0),IF(MOD(BK$3,Calculations!$J54)=1,1,0)))+Parts!$E$92*IF(Calculations!$K54=0,0,IF(MOD(BK$3,$I54)=1,0,IF(MOD(BK$3,Calculations!$K54)=1,1,0))))*$AU54)*(1+'Country Input'!$C$45)^(Calculations!BK$3-$BH$3)","v":1075},{"$f":"(($U54+($O54)*IF(MOD(BL$3,$I54)=1,1,0)+Parts!$E$91*IF($J54=0,0,IF(MOD(BL$3,$I54)=1,IF(PQS!$R54=\"NO\",1,0),IF(MOD(BL$3,Calculations!$J54)=1,1,0)))+Parts!$E$92*IF(Calculations!$K54=0,0,IF(MOD(BL$3,$I54)=1,0,IF(MOD(BL$3,Calculations!$K54)=1,1,0))))*$AU54)*(1+'Country Input'!$C$45)^(Calculations!BL$3-$BH$3)","v":1075},{"$f":"(($U54+($O54)*IF(MOD(BM$3,$I54)=1,1,0)+Parts!$E$91*IF($J54=0,0,IF(MOD(BM$3,$I54)=1,IF(PQS!$R54=\"NO\",1,0),IF(MOD(BM$3,Calculations!$J54)=1,1,0)))+Parts!$E$92*IF(Calculations!$K54=0,0,IF(MOD(BM$3,$I54)=1,0,IF(MOD(BM$3,Calculations!$K54)=1,1,0))))*$AU54)*(1+'Country Input'!$C$45)^(Calculations!BM$3-$BH$3)","v":1075},{"$f":"(($U54+($O54)*IF(MOD(BN$3,$I54)=1,1,0)+Parts!$E$91*IF($J54=0,0,IF(MOD(BN$3,$I54)=1,IF(PQS!$R54=\"NO\",1,0),IF(MOD(BN$3,Calculations!$J54)=1,1,0)))+Parts!$E$92*IF(Calculations!$K54=0,0,IF(MOD(BN$3,$I54)=1,0,IF(MOD(BN$3,Calculations!$K54)=1,1,0))))*$AU54)*(1+'Country Input'!$C$45)^(Calculations!BN$3-$BH$3)","v":1075},{"$f":"(($U54+($O54)*IF(MOD(BO$3,$I54)=1,1,0)+Parts!$E$91*IF($J54=0,0,IF(MOD(BO$3,$I54)=1,IF(PQS!$R54=\"NO\",1,0),IF(MOD(BO$3,Calculations!$J54)=1,1,0)))+Parts!$E$92*IF(Calculations!$K54=0,0,IF(MOD(BO$3,$I54)=1,0,IF(MOD(BO$3,Calculations!$K54)=1,1,0))))*$AU54)*(1+'Country Input'!$C$45)^(Calculations!BO$3-$BH$3)","v":1075},{"$f":"(($U54+($O54)*IF(MOD(BP$3,$I54)=1,1,0)+Parts!$E$91*IF($J54=0,0,IF(MOD(BP$3,$I54)=1,IF(PQS!$R54=\"NO\",1,0),IF(MOD(BP$3,Calculations!$J54)=1,1,0)))+Parts!$E$92*IF(Calculations!$K54=0,0,IF(MOD(BP$3,$I54)=1,0,IF(MOD(BP$3,Calculations!$K54)=1,1,0))))*$AU54)*(1+'Country Input'!$C$45)^(Calculations!BP$3-$BH$3)","v":1075},{"$f":"(($U54+($O54)*IF(MOD(BQ$3,$I54)=1,1,0)+Parts!$E$91*IF($J54=0,0,IF(MOD(BQ$3,$I54)=1,IF(PQS!$R54=\"NO\",1,0),IF(MOD(BQ$3,Calculations!$J54)=1,1,0)))+Parts!$E$92*IF(Calculations!$K54=0,0,IF(MOD(BQ$3,$I54)=1,0,IF(MOD(BQ$3,Calculations!$K54)=1,1,0))))*$AU54)*(1+'Country Input'!$C$45)^(Calculations!BQ$3-$BH$3)","v":1075},{"$f":"(($U54+($O54)*IF(MOD(BR$3,$I54)=1,1,0)+Parts!$E$91*IF($J54=0,0,IF(MOD(BR$3,$I54)=1,IF(PQS!$R54=\"NO\",1,0),IF(MOD(BR$3,Calculations!$J54)=1,1,0)))+Parts!$E$92*IF(Calculations!$K54=0,0,IF(MOD(BR$3,$I54)=1,0,IF(MOD(BR$3,Calculations!$K54)=1,1,0))))*$AU54)*(1+'Country Input'!$C$45)^(Calculations!BR$3-$BH$3)","v":42197.044999999998},{"$f":"(($U54+($O54)*IF(MOD(BS$3,$I54)=1,1,0)+Parts!$E$91*IF($J54=0,0,IF(MOD(BS$3,$I54)=1,IF(PQS!$R54=\"NO\",1,0),IF(MOD(BS$3,Calculations!$J54)=1,1,0)))+Parts!$E$92*IF(Calculations!$K54=0,0,IF(MOD(BS$3,$I54)=1,0,IF(MOD(BS$3,Calculations!$K54)=1,1,0))))*$AU54)*(1+'Country Input'!$C$45)^(Calculations!BS$3-$BH$3)","v":1075},{"$f":"(($U54+($O54)*IF(MOD(BT$3,$I54)=1,1,0)+Parts!$E$91*IF($J54=0,0,IF(MOD(BT$3,$I54)=1,IF(PQS!$R54=\"NO\",1,0),IF(MOD(BT$3,Calculations!$J54)=1,1,0)))+Parts!$E$92*IF(Calculations!$K54=0,0,IF(MOD(BT$3,$I54)=1,0,IF(MOD(BT$3,Calculations!$K54)=1,1,0))))*$AU54)*(1+'Country Input'!$C$45)^(Calculations!BT$3-$BH$3)","v":1075},{"$f":"(($U54+($O54)*IF(MOD(BU$3,$I54)=1,1,0)+Parts!$E$91*IF($J54=0,0,IF(MOD(BU$3,$I54)=1,IF(PQS!$R54=\"NO\",1,0),IF(MOD(BU$3,Calculations!$J54)=1,1,0)))+Parts!$E$92*IF(Calculations!$K54=0,0,IF(MOD(BU$3,$I54)=1,0,IF(MOD(BU$3,Calculations!$K54)=1,1,0))))*$AU54)*(1+'Country Input'!$C$45)^(Calculations!BU$3-$BH$3)","v":1075},{"$f":"(($U54+($O54)*IF(MOD(BV$3,$I54)=1,1,0)+Parts!$E$91*IF($J54=0,0,IF(MOD(BV$3,$I54)=1,IF(PQS!$R54=\"NO\",1,0),IF(MOD(BV$3,Calculations!$J54)=1,1,0)))+Parts!$E$92*IF(Calculations!$K54=0,0,IF(MOD(BV$3,$I54)=1,0,IF(MOD(BV$3,Calculations!$K54)=1,1,0))))*$AU54)*(1+'Country Input'!$C$45)^(Calculations!BV$3-$BH$3)","v":1075},{"$f":"(($U54+($O54)*IF(MOD(BW$3,$I54)=1,1,0)+Parts!$E$91*IF($J54=0,0,IF(MOD(BW$3,$I54)=1,IF(PQS!$R54=\"NO\",1,0),IF(MOD(BW$3,Calculations!$J54)=1,1,0)))+Parts!$E$92*IF(Calculations!$K54=0,0,IF(MOD(BW$3,$I54)=1,0,IF(MOD(BW$3,Calculations!$K54)=1,1,0))))*$AU54)*(1+'Country Input'!$C$45)^(Calculations!BW$3-$BH$3)","v":1075},{"$f":"(($U54+($O54)*IF(MOD(BX$3,$I54)=1,1,0)+Parts!$E$91*IF($J54=0,0,IF(MOD(BX$3,$I54)=1,IF(PQS!$R54=\"NO\",1,0),IF(MOD(BX$3,Calculations!$J54)=1,1,0)))+Parts!$E$92*IF(Calculations!$K54=0,0,IF(MOD(BX$3,$I54)=1,0,IF(MOD(BX$3,Calculations!$K54)=1,1,0))))*$AU54)*(1+'Country Input'!$C$45)^(Calculations!BX$3-$BH$3)","v":1075},{"$f":"(($U54+($O54)*IF(MOD(BY$3,$I54)=1,1,0)+Parts!$E$91*IF($J54=0,0,IF(MOD(BY$3,$I54)=1,IF(PQS!$R54=\"NO\",1,0),IF(MOD(BY$3,Calculations!$J54)=1,1,0)))+Parts!$E$92*IF(Calculations!$K54=0,0,IF(MOD(BY$3,$I54)=1,0,IF(MOD(BY$3,Calculations!$K54)=1,1,0))))*$AU54)*(1+'Country Input'!$C$45)^(Calculations!BY$3-$BH$3)","v":1075},{"$f":"(($U54+($O54)*IF(MOD(BZ$3,$I54)=1,1,0)+Parts!$E$91*IF($J54=0,0,IF(MOD(BZ$3,$I54)=1,IF(PQS!$R54=\"NO\",1,0),IF(MOD(BZ$3,Calculations!$J54)=1,1,0)))+Parts!$E$92*IF(Calculations!$K54=0,0,IF(MOD(BZ$3,$I54)=1,0,IF(MOD(BZ$3,Calculations!$K54)=1,1,0))))*$AU54)*(1+'Country Input'!$C$45)^(Calculations!BZ$3-$BH$3)","v":1075},{"$f":"(($U54+($O54)*IF(MOD(CA$3,$I54)=1,1,0)+Parts!$E$91*IF($J54=0,0,IF(MOD(CA$3,$I54)=1,IF(PQS!$R54=\"NO\",1,0),IF(MOD(CA$3,Calculations!$J54)=1,1,0)))+Parts!$E$92*IF(Calculations!$K54=0,0,IF(MOD(CA$3,$I54)=1,0,IF(MOD(CA$3,Calculations!$K54)=1,1,0))))*$AU54)*(1+'Country Input'!$C$45)^(Calculations!CA$3-$BH$3)","v":1075},null,"Haier HTC-60",42197.044999999998,1075,1075,1075,1075,1075,1075,1075,1075,1075,42197.044999999998,1075,1075,1075,1075,1075,1075,1075,1075,1075,{"$f":"SUM(CD54:INDEX($CD54:$CW54,1,'Total Solution Costs'!$B$2))","v":51872.044999999998},null,"Haier HTC-60",{"$f":"SUM($BH54:BH54)","v":42197.044999999998},{"$f":"SUM($BH54:BI54)","v":43272.044999999998},{"$f":"SUM($BH54:BJ54)","v":44347.044999999998},{"$f":"SUM($BH54:BK54)","v":45422.044999999998},{"$f":"SUM($BH54:BL54)","v":46497.044999999998},{"$f":"SUM($BH54:BM54)","v":47572.044999999998},{"$f":"SUM($BH54:BN54)","v":48647.044999999998},{"$f":"SUM($BH54:BO54)","v":49722.044999999998},{"$f":"SUM($BH54:BP54)","v":50797.044999999998},{"$f":"SUM($BH54:BQ54)","v":51872.044999999998},{"$f":"SUM($BH54:BR54)","v":94069.09},{"$f":"SUM($BH54:BS54)","v":95144.09},{"$f":"SUM($BH54:BT54)","v":96219.09},{"$f":"SUM($BH54:BU54)","v":97294.09},{"$f":"SUM($BH54:BV54)","v":98369.09},{"$f":"SUM($BH54:BW54)","v":99444.09},{"$f":"SUM($BH54:BX54)","v":100519.09},{"$f":"SUM($BH54:BY54)","v":101594.09},{"$f":"SUM($BH54:BZ54)","v":102669.09},{"$f":"SUM($BH54:CA54)","v":103744.09}]
[{"$f":"PQS!A55","v":"SDD"},{"$f":"PQS!B55","v":"E003/020"},{"$f":"PQS!E55","v":"BFRV 55*"},{"$f":"PQS!F55","v":"SunDanzer"},{"$f":"PQS!D55","v":"SunDanzer BFRV 55*"},{"$f":"VLOOKUP(E55,PQS!$D$5:$K$107,COLUMN(PQS!$I$3)-COLUMN(PQS!$D$3)+1,FALSE)","v":54.5},{"$f":"VLOOKUP(E55,PQS!$D$5:$K$107,COLUMN(PQS!$J$3)-COLUMN(PQS!$D$3)+1,FALSE)","v":0},{"$f":"VLOOKUP(E55,PQS!$D$5:$K$107,COLUMN(PQS!$G$3)-COLUMN(PQS!$D$3)+1,FALSE)","v":"Yes"},{"$f":"HLOOKUP(B55,INDIRECT(\"'\"&A55&\"'!$10:$15\"),ROW('Technology template'!$A$11)-ROW('Technology template'!$A$10)+1,FALSE)","v":10},{"$f":"HLOOKUP(B55,INDIRECT(\"'\"&A55&\"'!$10:$15\"),ROW('Technology template'!$A$12)-ROW('Technology template'!$A$10)+1,FALSE)","v":10},{"$f":"HLOOKUP(B55,INDIRECT(\"'\"&A55&\"'!$10:$15\"),ROW('Technology template'!$A$13)-ROW('Technology template'!$A$10)+1,FALSE)","v":0},{"$f":"VLOOKUP(B55,PQS!$B:$Q,MATCH(PQS!$Q$3,PQS!$B$3:$Q$3,0),FALSE)*(1+'Country Input'!$C$47)+HLOOKUP(B55,INDIRECT(\"'\"&A55&\"'!$10:$15\"),ROW('Technology template'!$A$14)-ROW('Technology template'!$A$10)+1,FALSE)*(1+'Country Input'!$C$47)","v":3375.8500000000004},{"$f":"HLOOKUP(B55,INDIRECT(\"'\"&A55&\"'!$10:$80\"),MATCH('Technology template'!$A$27,INDIRECT(\"'\"&A55&\"'!$A$10:$A$80\"),0),FALSE)+'Labor and Maintenance '!$E$18","v":1042},{"$f":"VLOOKUP(B55,PQS!B:T,MATCH(PQS!$T$3,PQS!$B$3:$T$3,0),FALSE)*(1+'Country Input'!$C$47)","v":460.1},4877.9500000000007,487.79500000000007,{"$f":"VLOOKUP(B55,PQS!$B:$AE,COLUMN(PQS!AD53)-1,FALSE)","v":0},{"$f":"IFERROR(1/HLOOKUP(B55,INDIRECT(\"'\"&A55&\"'!$10:$80\"),MATCH('Technology template'!$A$31,INDIRECT(\"'\"&A55&\"'!$A$10:$A$80\"),0),FALSE)*HLOOKUP(B55,INDIRECT(\"'\"&A55&\"'!$10:$80\"),MATCH('Technology template'!$A$41,INDIRECT(\"'\"&A55&\"'!$A10:$A$80\"),0),FALSE),0)*TechnicianHourlyWage+IF(A55=\"Solar w Battery\",1/'Labor and Maintenance '!$E$53*'Labor and Maintenance '!$D$53,0)+IF(A55=\"LT passive\", 1/'Labor and Maintenance '!$E$81*'Labor and Maintenance '!$D$81,0)","v":24},{"$f":"IFERROR(1/HLOOKUP(B55,INDIRECT(\"'\"&A55&\"'!$10:$80\"),MATCH('Technology template'!$A$34,INDIRECT(\"'\"&A55&\"'!$A$10:$A$80\"),0),FALSE)*(HLOOKUP(B55,INDIRECT(\"'\"&A55&\"'!$10:$80\"),MATCH('Technology template'!$A$44,INDIRECT(\"'\"&A55&\"'!$A10:$A$80\"),0),FALSE)*TechnicianHourlyWage+RemoteTravelCostPerDay),0)+IFERROR(1/HLOOKUP(B55,INDIRECT(\"'\"&A55&\"'!$10:$80\"),MATCH('Technology template'!$A$35,INDIRECT(\"'\"&A55&\"'!$A$10:$A$80\"),0),FALSE)*(HLOOKUP(B55,INDIRECT(\"'\"&A55&\"'!$10:$80\"),MATCH('Technology template'!$A$45,INDIRECT(\"'\"&A55&\"'!$A10:$A$80\"),0),FALSE)*TechnicianHourlyWage+RemoteTravelCostPerDay),0)+IFERROR(1/HLOOKUP(B55,INDIRECT(\"'\"&A55&\"'!$10:$80\"),MATCH('Technology template'!$A$37,INDIRECT(\"'\"&A55&\"'!$A$10:$A$80\"),0),FALSE)*(HLOOKUP(B55,INDIRECT(\"'\"&A55&\"'!$10:$80\"),MATCH('Technology template'!$A$46,INDIRECT(\"'\"&A55&\"'!$A10:$A$80\"),0),FALSE)*TechnicianHourlyWage+'Labor and Maintenance '!$B$8),0)","v":83.5},1075,107.5,595.29500000000007,null,"SunDanzer BFRV 55*",89.50366972477066,19.724770642201836,109.22844036697249,null,"SunDanzer BFRV 55*",8.9503669724770649,1.9724770642201834,10.922844036697249,null,"SunDanzer BFRV 55*",3,14633.850000000002,3225,17858.850000000002,null,"SunDanzer BFRV 55*",3,26.851100917431197,5.9174311926605503,32.768532110091748,null,"SunDanzer BFRV 55*",{"$f":"IF(F55=0, 'Country Input'!$D$7, ROUNDUP(LitersPerFacility/F55,0)*'Country Input'!$D$7)","v":10},48779.500000000007,1075,49854.500000000007,null,"SunDanzer BFRV 55*",{"$f":"ROUNDUP(LitersPerFacility/F55,0)*'Country Input'!$D$7*ROUNDUP('Total Solution Costs'!$B$2/Calculations!I55,0)","v":10},89.503669724770646,1.9724770642201834,91.476146788990832,null,null,"SunDanzer BFRV 55*",{"$f":"(($U55+($O55)*IF(MOD(BH$3,$I55)=1,1,0)+Parts!$E$91*IF($J55=0,0,IF(MOD(BH$3,$I55)=1,IF(PQS!$R55=\"NO\",1,0),IF(MOD(BH$3,Calculations!$J55)=1,1,0)))+Parts!$E$92*IF(Calculations!$K55=0,0,IF(MOD(BH$3,$I55)=1,0,IF(MOD(BH$3,Calculations!$K55)=1,1,0))))*$AU55)*(1+'Country Input'!$C$45)^(Calculations!BH$3-$BH$3)+TrainingCost","v":49854.500000000007},{"$f":"(($U55+($O55)*IF(MOD(BI$3,$I55)=1,1,0)+Parts!$E$91*IF($J55=0,0,IF(MOD(BI$3,$I55)=1,IF(PQS!$R55=\"NO\",1,0),IF(MOD(BI$3,Calculations!$J55)=1,1,0)))+Parts!$E$92*IF(Calculations!$K55=0,0,IF(MOD(BI$3,$I55)=1,0,IF(MOD(BI$3,Calculations!$K55)=1,1,0))))*$AU55)*(1+'Country Input'!$C$45)^(Calculations!BI$3-$BH$3)","v":1075},{"$f":"(($U55+($O55)*IF(MOD(BJ$3,$I55)=1,1,0)+Parts!$E$91*IF($J55=0,0,IF(MOD(BJ$3,$I55)=1,IF(PQS!$R55=\"NO\",1,0),IF(MOD(BJ$3,Calculations!$J55)=1,1,0)))+Parts!$E$92*IF(Calculations!$K55=0,0,IF(MOD(BJ$3,$I55)=1,0,IF(MOD(BJ$3,Calculations!$K55)=1,1,0))))*$AU55)*(1+'Country Input'!$C$45)^(Calculations!BJ$3-$BH$3)","v":1075},{"$f":"(($U55+($O55)*IF(MOD(BK$3,$I55)=1,1,0)+Parts!$E$91*IF($J55=0,0,IF(MOD(BK$3,$I55)=1,IF(PQS!$R55=\"NO\",1,0),IF(MOD(BK$3,Calculations!$J55)=1,1,0)))+Parts!$E$92*IF(Calculations!$K55=0,0,IF(MOD(BK$3,$I55)=1,0,IF(MOD(BK$3,Calculations!$K55)=1,1,0))))*$AU55)*(1+'Country Input'!$C$45)^(Calculations!BK$3-$BH$3)","v":1075},{"$f":"(($U55+($O55)*IF(MOD(BL$3,$I55)=1,1,0)+Parts!$E$91*IF($J55=0,0,IF(MOD(BL$3,$I55)=1,IF(PQS!$R55=\"NO\",1,0),IF(MOD(BL$3,Calculations!$J55)=1,1,0)))+Parts!$E$92*IF(Calculations!$K55=0,0,IF(MOD(BL$3,$I55)=1,0,IF(MOD(BL$3,Calculations!$K55)=1,1,0))))*$AU55)*(1+'Country Input'!$C$45)^(Calculations!BL$3-$BH$3)","v":1075},{"$f":"(($U55+($O55)*IF(MOD(BM$3,$I55)=1,1,0)+Parts!$E$91*IF($J55=0,0,IF(MOD(BM$3,$I55)=1,IF(PQS!$R55=\"NO\",1,0),IF(MOD(BM$3,Calculations!$J55)=1,1,0)))+Parts!$E$92*IF(Calculations!$K55=0,0,IF(MOD(BM$3,$I55)=1,0,IF(MOD(BM$3,Calculations!$K55)=1,1,0))))*$AU55)*(1+'Country Input'!$C$45)^(Calculations!BM$3-$BH$3)","v":1075},{"$f":"(($U55+($O55)*IF(MOD(BN$3,$I55)=1,1,0)+Parts!$E$91*IF($J55=0,0,IF(MOD(BN$3,$I55)=1,IF(PQS!$R55=\"NO\",1,0),IF(MOD(BN$3,Calculations!$J55)=1,1,0)))+Parts!$E$92*IF(Calculations!$K55=0,0,IF(MOD(BN$3,$I55)=1,0,IF(MOD(BN$3,Calculations!$K55)=1,1,0))))*$AU55)*(1+'Country Input'!$C$45)^(Calculations!BN$3-$BH$3)","v":1075},{"$f":"(($U55+($O55)*IF(MOD(BO$3,$I55)=1,1,0)+Parts!$E$91*IF($J55=0,0,IF(MOD(BO$3,$I55)=1,IF(PQS!$R55=\"NO\",1,0),IF(MOD(BO$3,Calculations!$J55)=1,1,0)))+Parts!$E$92*IF(Calculations!$K55=0,0,IF(MOD(BO$3,$I55)=1,0,IF(MOD(BO$3,Calculations!$K55)=1,1,0))))*$AU55)*(1+'Country Input'!$C$45)^(Calculations!BO$3-$BH$3)","v":1075},{"$f":"(($U55+($O55)*IF(MOD(BP$3,$I55)=1,1,0)+Parts!$E$91*IF($J55=0,0,IF(MOD(BP$3,$I55)=1,IF(PQS!$R55=\"NO\",1,0),IF(MOD(BP$3,Calculations!$J55)=1,1,0)))+Parts!$E$92*IF(Calculations!$K55=0,0,IF(MOD(BP$3,$I55)=1,0,IF(MOD(BP$3,Calculations!$K55)=1,1,0))))*$AU55)*(1+'Country Input'!$C$45)^(Calculations!BP$3-$BH$3)","v":1075},{"$f":"(($U55+($O55)*IF(MOD(BQ$3,$I55)=1,1,0)+Parts!$E$91*IF($J55=0,0,IF(MOD(BQ$3,$I55)=1,IF(PQS!$R55=\"NO\",1,0),IF(MOD(BQ$3,Calculations!$J55)=1,1,0)))+Parts!$E$92*IF(Calculations!$K55=0,0,IF(MOD(BQ$3,$I55)=1,0,IF(MOD(BQ$3,Calculations!$K55)=1,1,0))))*$AU55)*(1+'Country Input'!$C$45)^(Calculations!BQ$3-$BH$3)","v":1075},{"$f":"(($U55+($O55)*IF(MOD(BR$3,$I55)=1,1,0)+Parts!$E$91*IF($J55=0,0,IF(MOD(BR$3,$I55)=1,IF(PQS!$R55=\"NO\",1,0),IF(MOD(BR$3,Calculations!$J55)=1,1,0)))+Parts!$E$92*IF(Calculations!$K55=0,0,IF(MOD(BR$3,$I55)=1,0,IF(MOD(BR$3,Calculations!$K55)=1,1,0))))*$AU55)*(1+'Country Input'!$C$45)^(Calculations!BR$3-$BH$3)","v":49854.500000000007},{"$f":"(($U55+($O55)*IF(MOD(BS$3,$I55)=1,1,0)+Parts!$E$91*IF($J55=0,0,IF(MOD(BS$3,$I55)=1,IF(PQS!$R55=\"NO\",1,0),IF(MOD(BS$3,Calculations!$J55)=1,1,0)))+Parts!$E$92*IF(Calculations!$K55=0,0,IF(MOD(BS$3,$I55)=1,0,IF(MOD(BS$3,Calculations!$K55)=1,1,0))))*$AU55)*(1+'Country Input'!$C$45)^(Calculations!BS$3-$BH$3)","v":1075},{"$f":"(($U55+($O55)*IF(MOD(BT$3,$I55)=1,1,0)+Parts!$E$91*IF($J55=0,0,IF(MOD(BT$3,$I55)=1,IF(PQS!$R55=\"NO\",1,0),IF(MOD(BT$3,Calculations!$J55)=1,1,0)))+Parts!$E$92*IF(Calculations!$K55=0,0,IF(MOD(BT$3,$I55)=1,0,IF(MOD(BT$3,Calculations!$K55)=1,1,0))))*$AU55)*(1+'Country Input'!$C$45)^(Calculations!BT$3-$BH$3)","v":1075},{"$f":"(($U55+($O55)*IF(MOD(BU$3,$I55)=1,1,0)+Parts!$E$91*IF($J55=0,0,IF(MOD(BU$3,$I55)=1,IF(PQS!$R55=\"NO\",1,0),IF(MOD(BU$3,Calculations!$J55)=1,1,0)))+Parts!$E$92*IF(Calculations!$K55=0,0,IF(MOD(BU$3,$I55)=1,0,IF(MOD(BU$3,Calculations!$K55)=1,1,0))))*$AU55)*(1+'Country Input'!$C$45)^(Calculations!BU$3-$BH$3)","v":1075},{"$f":"(($U55+($O55)*IF(MOD(BV$3,$I55)=1,1,0)+Parts!$E$91*IF($J55=0,0,IF(MOD(BV$3,$I55)=1,IF(PQS!$R55=\"NO\",1,0),IF(MOD(BV$3,Calculations!$J55)=1,1,0)))+Parts!$E$92*IF(Calculations!$K55=0,0,IF(MOD(BV$3,$I55)=1,0,IF(MOD(BV$3,Calculations!$K55)=1,1,0))))*$AU55)*(1+'Country Input'!$C$45)^(Calculations!BV$3-$BH$3)","v":1075},{"$f":"(($U55+($O55)*IF(MOD(BW$3,$I55)=1,1,0)+Parts!$E$91*IF($J55=0,0,IF(MOD(BW$3,$I55)=1,IF(PQS!$R55=\"NO\",1,0),IF(MOD(BW$3,Calculations!$J55)=1,1,0)))+Parts!$E$92*IF(Calculations!$K55=0,0,IF(MOD(BW$3,$I55)=1,0,IF(MOD(BW$3,Calculations!$K55)=1,1,0))))*$AU55)*(1+'Country Input'!$C$45)^(Calculations!BW$3-$BH$3)","v":1075},{"$f":"(($U55+($O55)*IF(MOD(BX$3,$I55)=1,1,0)+Parts!$E$91*IF($J55=0,0,IF(MOD(BX$3,$I55)=1,IF(PQS!$R55=\"NO\",1,0),IF(MOD(BX$3,Calculations!$J55)=1,1,0)))+Parts!$E$92*IF(Calculations!$K55=0,0,IF(MOD(BX$3,$I55)=1,0,IF(MOD(BX$3,Calculations!$K55)=1,1,0))))*$AU55)*(1+'Country Input'!$C$45)^(Calculations!BX$3-$BH$3)","v":1075},{"$f":"(($U55+($O55)*IF(MOD(BY$3,$I55)=1,1,0)+Parts!$E$91*IF($J55=0,0,IF(MOD(BY$3,$I55)=1,IF(PQS!$R55=\"NO\",1,0),IF(MOD(BY$3,Calculations!$J55)=1,1,0)))+Parts!$E$92*IF(Calculations!$K55=0,0,IF(MOD(BY$3,$I55)=1,0,IF(MOD(BY$3,Calculations!$K55)=1,1,0))))*$AU55)*(1+'Country Input'!$C$45)^(Calculations!BY$3-$BH$3)","v":1075},{"$f":"(($U55+($O55)*IF(MOD(BZ$3,$I55)=1,1,0)+Parts!$E$91*IF($J55=0,0,IF(MOD(BZ$3,$I55)=1,IF(PQS!$R55=\"NO\",1,0),IF(MOD(BZ$3,Calculations!$J55)=1,1,0)))+Parts!$E$92*IF(Calculations!$K55=0,0,IF(MOD(BZ$3,$I55)=1,0,IF(MOD(BZ$3,Calculations!$K55)=1,1,0))))*$AU55)*(1+'Country Input'!$C$45)^(Calculations!BZ$3-$BH$3)","v":1075},{"$f":"(($U55+($O55)*IF(MOD(CA$3,$I55)=1,1,0)+Parts!$E$91*IF($J55=0,0,IF(MOD(CA$3,$I55)=1,IF(PQS!$R55=\"NO\",1,0),IF(MOD(CA$3,Calculations!$J55)=1,1,0)))+Parts!$E$92*IF(Calculations!$K55=0,0,IF(MOD(CA$3,$I55)=1,0,IF(MOD(CA$3,Calculations!$K55)=1,1,0))))*$AU55)*(1+'Country Input'!$C$45)^(Calculations!CA$3-$BH$3)","v":1075},null,"SunDanzer BFRV 55*",49854.500000000007,1075,1075,1075,1075,1075,1075,1075,1075,1075,49854.500000000007,1075,1075,1075,1075,1075,1075,1075,1075,1075,{"$f":"SUM(CD55:INDEX($CD55:$CW55,1,'Total Solution Costs'!$B$2))","v":59529.500000000007},null,"SunDanzer BFRV 55*",{"$f":"SUM($BH55:BH55)","v":49854.500000000007},{"$f":"SUM($BH55:BI55)","v":50929.500000000007},{"$f":"SUM($BH55:BJ55)","v":52004.500000000007},{"$f":"SUM($BH55:BK55)","v":53079.500000000007},{"$f":"SUM($BH55:BL55)","v":54154.500000000007},{"$f":"SUM($BH55:BM55)","v":55229.500000000007},{"$f":"SUM($BH55:BN55)","v":56304.500000000007},{"$f":"SUM($BH55:BO55)","v":57379.500000000007},{"$f":"SUM($BH55:BP55)","v":58454.500000000007},{"$f":"SUM($BH55:BQ55)","v":59529.500000000007},{"$f":"SUM($BH55:BR55)","v":109384.00000000001},{"$f":"SUM($BH55:BS55)","v":110459.00000000001},{"$f":"SUM($BH55:BT55)","v":111534.00000000001},{"$f":"SUM($BH55:BU55)","v":112609.00000000001},{"$f":"SUM($BH55:BV55)","v":113684.00000000001},{"$f":"SUM($BH55:BW55)","v":114759.00000000001},{"$f":"SUM($BH55:BX55)","v":115834.00000000001},{"$f":"SUM($BH55:BY55)","v":116909.00000000001},{"$f":"SUM($BH55:BZ55)","v":117984.00000000001},{"$f":"SUM($BH55:CA55)","v":119059.00000000001}]
[{"$f":"PQS!A56","v":"SDD"},{"$f":"PQS!B56","v":"E003/030"},{"$f":"PQS!E56","v":"TCW 3000 SDD"},{"$f":"PQS!F56","v":"B Medical"},{"$f":"PQS!D56","v":"B Medical TCW 3000 SDD"},{"$f":"VLOOKUP(E56,PQS!$D$5:$K$107,COLUMN(PQS!$I$3)-COLUMN(PQS!$D$3)+1,FALSE)","v":156},{"$f":"VLOOKUP(E56,PQS!$D$5:$K$107,COLUMN(PQS!$J$3)-COLUMN(PQS!$D$3)+1,FALSE)","v":0},{"$f":"VLOOKUP(E56,PQS!$D$5:$K$107,COLUMN(PQS!$G$3)-COLUMN(PQS!$D$3)+1,FALSE)","v":"No"},{"$f":"HLOOKUP(B56,INDIRECT(\"'\"&A56&\"'!$10:$15\"),ROW('Technology template'!$A$11)-ROW('Technology template'!$A$10)+1,FALSE)","v":10},{"$f":"HLOOKUP(B56,INDIRECT(\"'\"&A56&\"'!$10:$15\"),ROW('Technology template'!$A$12)-ROW('Technology template'!$A$10)+1,FALSE)","v":10},{"$f":"HLOOKUP(B56,INDIRECT(\"'\"&A56&\"'!$10:$15\"),ROW('Technology template'!$A$13)-ROW('Technology template'!$A$10)+1,FALSE)","v":0},{"$f":"VLOOKUP(B56,PQS!$B:$Q,MATCH(PQS!$Q$3,PQS!$B$3:$Q$3,0),FALSE)*(1+'Country Input'!$C$47)+HLOOKUP(B56,INDIRECT(\"'\"&A56&\"'!$10:$15\"),ROW('Technology template'!$A$14)-ROW('Technology template'!$A$10)+1,FALSE)*(1+'Country Input'!$C$47)","v":6975.4904999999999},{"$f":"HLOOKUP(B56,INDIRECT(\"'\"&A56&\"'!$10:$80\"),MATCH('Technology template'!$A$27,INDIRECT(\"'\"&A56&\"'!$A$10:$A$80\"),0),FALSE)+'Labor and Maintenance '!$E$18","v":1042},{"$f":"VLOOKUP(B56,PQS!B:T,MATCH(PQS!$T$3,PQS!$B$3:$T$3,0),FALSE)*(1+'Country Input'!$C$47)","v":747.19009500000016},8764.6805949999998,876.46805949999998,{"$f":"VLOOKUP(B56,PQS!$B:$AE,COLUMN(PQS!AD54)-1,FALSE)","v":0},{"$f":"IFERROR(1/HLOOKUP(B56,INDIRECT(\"'\"&A56&\"'!$10:$80\"),MATCH('Technology template'!$A$31,INDIRECT(\"'\"&A56&\"'!$A$10:$A$80\"),0),FALSE)*HLOOKUP(B56,INDIRECT(\"'\"&A56&\"'!$10:$80\"),MATCH('Technology template'!$A$41,INDIRECT(\"'\"&A56&\"'!$A10:$A$80\"),0),FALSE),0)*TechnicianHourlyWage+IF(A56=\"Solar w Battery\",1/'Labor and Maintenance '!$E$53*'Labor and Maintenance '!$D$53,0)+IF(A56=\"LT passive\", 1/'Labor and Maintenance '!$E$81*'Labor and Maintenance '!$D$81,0)","v":24},{"$f":"IFERROR(1/HLOOKUP(B56,INDIRECT(\"'\"&A56&\"'!$10:$80\"),MATCH('Technology template'!$A$34,INDIRECT(\"'\"&A56&\"'!$A$10:$A$80\"),0),FALSE)*(HLOOKUP(B56,INDIRECT(\"'\"&A56&\"'!$10:$80\"),MATCH('Technology template'!$A$44,INDIRECT(\"'\"&A56&\"'!$A10:$A$80\"),0),FALSE)*TechnicianHourlyWage+RemoteTravelCostPerDay),0)+IFERROR(1/HLOOKUP(B56,INDIRECT(\"'\"&A56&\"'!$10:$80\"),MATCH('Technology template'!$A$35,INDIRECT(\"'\"&A56&\"'!$A$10:$A$80\"),0),FALSE)*(HLOOKUP(B56,INDIRECT(\"'\"&A56&\"'!$10:$80\"),MATCH('Technology template'!$A$45,INDIRECT(\"'\"&A56&\"'!$A10:$A$80\"),0),FALSE)*TechnicianHourlyWage+RemoteTravelCostPerDay),0)+IFERROR(1/HLOOKUP(B56,INDIRECT(\"'\"&A56&\"'!$10:$80\"),MATCH('Technology template'!$A$37,INDIRECT(\"'\"&A56&\"'!$A$10:$A$80\"),0),FALSE)*(HLOOKUP(B56,INDIRECT(\"'\"&A56&\"'!$10:$80\"),MATCH('Technology template'!$A$46,INDIRECT(\"'\"&A56&\"'!$A10:$A$80\"),0),FALSE)*TechnicianHourlyWage+'Labor and Maintenance '!$B$8),0)","v":83.5},1075,107.5,983.96805949999998,null,"B Medical TCW 3000 SDD",56.183849967948717,6.8910256410256414,63.074875608974359,null,"B Medical TCW 3000 SDD",5.6183849967948714,0.6891025641025641,6.3074875608974361,null,"B Medical TCW 3000 SDD",1,8764.6805949999998,1075,9839.6805949999998,null,"B Medical TCW 3000 SDD",1,5.6183849967948714,0.6891025641025641,6.3074875608974352,null,"B Medical TCW 3000 SDD",{"$f":"IF(F56=0, 'Country Input'!$D$7, ROUNDUP(LitersPerFacility/F56,0)*'Country Input'!$D$7)","v":10},87646.805949999994,1075,88721.805949999994,null,"B Medical TCW 3000 SDD",{"$f":"ROUNDUP(LitersPerFacility/F56,0)*'Country Input'!$D$7*ROUNDUP('Total Solution Costs'!$B$2/Calculations!I56,0)","v":10},56.183849967948717,0.6891025641025641,56.872952532051279,null,null,"B Medical TCW 3000 SDD",{"$f":"(($U56+($O56)*IF(MOD(BH$3,$I56)=1,1,0)+Parts!$E$91*IF($J56=0,0,IF(MOD(BH$3,$I56)=1,IF(PQS!$R56=\"NO\",1,0),IF(MOD(BH$3,Calculations!$J56)=1,1,0)))+Parts!$E$92*IF(Calculations!$K56=0,0,IF(MOD(BH$3,$I56)=1,0,IF(MOD(BH$3,Calculations!$K56)=1,1,0))))*$AU56)*(1+'Country Input'!$C$45)^(Calculations!BH$3-$BH$3)+TrainingCost","v":88721.805949999994},{"$f":"(($U56+($O56)*IF(MOD(BI$3,$I56)=1,1,0)+Parts!$E$91*IF($J56=0,0,IF(MOD(BI$3,$I56)=1,IF(PQS!$R56=\"NO\",1,0),IF(MOD(BI$3,Calculations!$J56)=1,1,0)))+Parts!$E$92*IF(Calculations!$K56=0,0,IF(MOD(BI$3,$I56)=1,0,IF(MOD(BI$3,Calculations!$K56)=1,1,0))))*$AU56)*(1+'Country Input'!$C$45)^(Calculations!BI$3-$BH$3)","v":1075},{"$f":"(($U56+($O56)*IF(MOD(BJ$3,$I56)=1,1,0)+Parts!$E$91*IF($J56=0,0,IF(MOD(BJ$3,$I56)=1,IF(PQS!$R56=\"NO\",1,0),IF(MOD(BJ$3,Calculations!$J56)=1,1,0)))+Parts!$E$92*IF(Calculations!$K56=0,0,IF(MOD(BJ$3,$I56)=1,0,IF(MOD(BJ$3,Calculations!$K56)=1,1,0))))*$AU56)*(1+'Country Input'!$C$45)^(Calculations!BJ$3-$BH$3)","v":1075},{"$f":"(($U56+($O56)*IF(MOD(BK$3,$I56)=1,1,0)+Parts!$E$91*IF($J56=0,0,IF(MOD(BK$3,$I56)=1,IF(PQS!$R56=\"NO\",1,0),IF(MOD(BK$3,Calculations!$J56)=1,1,0)))+Parts!$E$92*IF(Calculations!$K56=0,0,IF(MOD(BK$3,$I56)=1,0,IF(MOD(BK$3,Calculations!$K56)=1,1,0))))*$AU56)*(1+'Country Input'!$C$45)^(Calculations!BK$3-$BH$3)","v":1075},{"$f":"(($U56+($O56)*IF(MOD(BL$3,$I56)=1,1,0)+Parts!$E$91*IF($J56=0,0,IF(MOD(BL$3,$I56)=1,IF(PQS!$R56=\"NO\",1,0),IF(MOD(BL$3,Calculations!$J56)=1,1,0)))+Parts!$E$92*IF(Calculations!$K56=0,0,IF(MOD(BL$3,$I56)=1,0,IF(MOD(BL$3,Calculations!$K56)=1,1,0))))*$AU56)*(1+'Country Input'!$C$45)^(Calculations!BL$3-$BH$3)","v":1075},{"$f":"(($U56+($O56)*IF(MOD(BM$3,$I56)=1,1,0)+Parts!$E$91*IF($J56=0,0,IF(MOD(BM$3,$I56)=1,IF(PQS!$R56=\"NO\",1,0),IF(MOD(BM$3,Calculations!$J56)=1,1,0)))+Parts!$E$92*IF(Calculations!$K56=0,0,IF(MOD(BM$3,$I56)=1,0,IF(MOD(BM$3,Calculations!$K56)=1,1,0))))*$AU56)*(1+'Country Input'!$C$45)^(Calculations!BM$3-$BH$3)","v":1075},{"$f":"(($U56+($O56)*IF(MOD(BN$3,$I56)=1,1,0)+Parts!$E$91*IF($J56=0,0,IF(MOD(BN$3,$I56)=1,IF(PQS!$R56=\"NO\",1,0),IF(MOD(BN$3,Calculations!$J56)=1,1,0)))+Parts!$E$92*IF(Calculations!$K56=0,0,IF(MOD(BN$3,$I56)=1,0,IF(MOD(BN$3,Calculations!$K56)=1,1,0))))*$AU56)*(1+'Country Input'!$C$45)^(Calculations!BN$3-$BH$3)","v":1075},{"$f":"(($U56+($O56)*IF(MOD(BO$3,$I56)=1,1,0)+Parts!$E$91*IF($J56=0,0,IF(MOD(BO$3,$I56)=1,IF(PQS!$R56=\"NO\",1,0),IF(MOD(BO$3,Calculations!$J56)=1,1,0)))+Parts!$E$92*IF(Calculations!$K56=0,0,IF(MOD(BO$3,$I56)=1,0,IF(MOD(BO$3,Calculations!$K56)=1,1,0))))*$AU56)*(1+'Country Input'!$C$45)^(Calculations!BO$3-$BH$3)","v":1075},{"$f":"(($U56+($O56)*IF(MOD(BP$3,$I56)=1,1,0)+Parts!$E$91*IF($J56=0,0,IF(MOD(BP$3,$I56)=1,IF(PQS!$R56=\"NO\",1,0),IF(MOD(BP$3,Calculations!$J56)=1,1,0)))+Parts!$E$92*IF(Calculations!$K56=0,0,IF(MOD(BP$3,$I56)=1,0,IF(MOD(BP$3,Calculations!$K56)=1,1,0))))*$AU56)*(1+'Country Input'!$C$45)^(Calculations!BP$3-$BH$3)","v":1075},{"$f":"(($U56+($O56)*IF(MOD(BQ$3,$I56)=1,1,0)+Parts!$E$91*IF($J56=0,0,IF(MOD(BQ$3,$I56)=1,IF(PQS!$R56=\"NO\",1,0),IF(MOD(BQ$3,Calculations!$J56)=1,1,0)))+Parts!$E$92*IF(Calculations!$K56=0,0,IF(MOD(BQ$3,$I56)=1,0,IF(MOD(BQ$3,Calculations!$K56)=1,1,0))))*$AU56)*(1+'Country Input'!$C$45)^(Calculations!BQ$3-$BH$3)","v":1075},{"$f":"(($U56+($O56)*IF(MOD(BR$3,$I56)=1,1,0)+Parts!$E$91*IF($J56=0,0,IF(MOD(BR$3,$I56)=1,IF(PQS!$R56=\"NO\",1,0),IF(MOD(BR$3,Calculations!$J56)=1,1,0)))+Parts!$E$92*IF(Calculations!$K56=0,0,IF(MOD(BR$3,$I56)=1,0,IF(MOD(BR$3,Calculations!$K56)=1,1,0))))*$AU56)*(1+'Country Input'!$C$45)^(Calculations!BR$3-$BH$3)","v":88721.805949999994},{"$f":"(($U56+($O56)*IF(MOD(BS$3,$I56)=1,1,0)+Parts!$E$91*IF($J56=0,0,IF(MOD(BS$3,$I56)=1,IF(PQS!$R56=\"NO\",1,0),IF(MOD(BS$3,Calculations!$J56)=1,1,0)))+Parts!$E$92*IF(Calculations!$K56=0,0,IF(MOD(BS$3,$I56)=1,0,IF(MOD(BS$3,Calculations!$K56)=1,1,0))))*$AU56)*(1+'Country Input'!$C$45)^(Calculations!BS$3-$BH$3)","v":1075},{"$f":"(($U56+($O56)*IF(MOD(BT$3,$I56)=1,1,0)+Parts!$E$91*IF($J56=0,0,IF(MOD(BT$3,$I56)=1,IF(PQS!$R56=\"NO\",1,0),IF(MOD(BT$3,Calculations!$J56)=1,1,0)))+Parts!$E$92*IF(Calculations!$K56=0,0,IF(MOD(BT$3,$I56)=1,0,IF(MOD(BT$3,Calculations!$K56)=1,1,0))))*$AU56)*(1+'Country Input'!$C$45)^(Calculations!BT$3-$BH$3)","v":1075},{"$f":"(($U56+($O56)*IF(MOD(BU$3,$I56)=1,1,0)+Parts!$E$91*IF($J56=0,0,IF(MOD(BU$3,$I56)=1,IF(PQS!$R56=\"NO\",1,0),IF(MOD(BU$3,Calculations!$J56)=1,1,0)))+Parts!$E$92*IF(Calculations!$K56=0,0,IF(MOD(BU$3,$I56)=1,0,IF(MOD(BU$3,Calculations!$K56)=1,1,0))))*$AU56)*(1+'Country Input'!$C$45)^(Calculations!BU$3-$BH$3)","v":1075},{"$f":"(($U56+($O56)*IF(MOD(BV$3,$I56)=1,1,0)+Parts!$E$91*IF($J56=0,0,IF(MOD(BV$3,$I56)=1,IF(PQS!$R56=\"NO\",1,0),IF(MOD(BV$3,Calculations!$J56)=1,1,0)))+Parts!$E$92*IF(Calculations!$K56=0,0,IF(MOD(BV$3,$I56)=1,0,IF(MOD(BV$3,Calculations!$K56)=1,1,0))))*$AU56)*(1+'Country Input'!$C$45)^(Calculations!BV$3-$BH$3)","v":1075},{"$f":"(($U56+($O56)*IF(MOD(BW$3,$I56)=1,1,0)+Parts!$E$91*IF($J56=0,0,IF(MOD(BW$3,$I56)=1,IF(PQS!$R56=\"NO\",1,0),IF(MOD(BW$3,Calculations!$J56)=1,1,0)))+Parts!$E$92*IF(Calculations!$K56=0,0,IF(MOD(BW$3,$I56)=1,0,IF(MOD(BW$3,Calculations!$K56)=1,1,0))))*$AU56)*(1+'Country Input'!$C$45)^(Calculations!BW$3-$BH$3)","v":1075},{"$f":"(($U56+($O56)*IF(MOD(BX$3,$I56)=1,1,0)+Parts!$E$91*IF($J56=0,0,IF(MOD(BX$3,$I56)=1,IF(PQS!$R56=\"NO\",1,0),IF(MOD(BX$3,Calculations!$J56)=1,1,0)))+Parts!$E$92*IF(Calculations!$K56=0,0,IF(MOD(BX$3,$I56)=1,0,IF(MOD(BX$3,Calculations!$K56)=1,1,0))))*$AU56)*(1+'Country Input'!$C$45)^(Calculations!BX$3-$BH$3)","v":1075},{"$f":"(($U56+($O56)*IF(MOD(BY$3,$I56)=1,1,0)+Parts!$E$91*IF($J56=0,0,IF(MOD(BY$3,$I56)=1,IF(PQS!$R56=\"NO\",1,0),IF(MOD(BY$3,Calculations!$J56)=1,1,0)))+Parts!$E$92*IF(Calculations!$K56=0,0,IF(MOD(BY$3,$I56)=1,0,IF(MOD(BY$3,Calculations!$K56)=1,1,0))))*$AU56)*(1+'Country Input'!$C$45)^(Calculations!BY$3-$BH$3)","v":1075},{"$f":"(($U56+($O56)*IF(MOD(BZ$3,$I56)=1,1,0)+Parts!$E$91*IF($J56=0,0,IF(MOD(BZ$3,$I56)=1,IF(PQS!$R56=\"NO\",1,0),IF(MOD(BZ$3,Calculations!$J56)=1,1,0)))+Parts!$E$92*IF(Calculations!$K56=0,0,IF(MOD(BZ$3,$I56)=1,0,IF(MOD(BZ$3,Calculations!$K56)=1,1,0))))*$AU56)*(1+'Country Input'!$C$45)^(Calculations!BZ$3-$BH$3)","v":1075},{"$f":"(($U56+($O56)*IF(MOD(CA$3,$I56)=1,1,0)+Parts!$E$91*IF($J56=0,0,IF(MOD(CA$3,$I56)=1,IF(PQS!$R56=\"NO\",1,0),IF(MOD(CA$3,Calculations!$J56)=1,1,0)))+Parts!$E$92*IF(Calculations!$K56=0,0,IF(MOD(CA$3,$I56)=1,0,IF(MOD(CA$3,Calculations!$K56)=1,1,0))))*$AU56)*(1+'Country Input'!$C$45)^(Calculations!CA$3-$BH$3)","v":1075},null,"B Medical TCW 3000 SDD",88721.805949999994,1075,1075,1075,1075,1075,1075,1075,1075,1075,88721.805949999994,1075,1075,1075,1075,1075,1075,1075,1075,1075,{"$f":"SUM(CD56:INDEX($CD56:$CW56,1,'Total Solution Costs'!$B$2))","v":98396.805949999994},null,"B Medical TCW 3000 SDD",{"$f":"SUM($BH56:BH56)","v":88721.805949999994},{"$f":"SUM($BH56:BI56)","v":89796.805949999994},{"$f":"SUM($BH56:BJ56)","v":90871.805949999994},{"$f":"SUM($BH56:BK56)","v":91946.805949999994},{"$f":"SUM($BH56:BL56)","v":93021.805949999994},{"$f":"SUM($BH56:BM56)","v":94096.805949999994},{"$f":"SUM($BH56:BN56)","v":95171.805949999994},{"$f":"SUM($BH56:BO56)","v":96246.805949999994},{"$f":"SUM($BH56:BP56)","v":97321.805949999994},{"$f":"SUM($BH56:BQ56)","v":98396.805949999994},{"$f":"SUM($BH56:BR56)","v":187118.61189999999},{"$f":"SUM($BH56:BS56)","v":188193.61189999999},{"$f":"SUM($BH56:BT56)","v":189268.61189999999},{"$f":"SUM($BH56:BU56)","v":190343.61189999999},{"$f":"SUM($BH56:BV56)","v":191418.61189999999},{"$f":"SUM($BH56:BW56)","v":192493.61189999999},{"$f":"SUM($BH56:BX56)","v":193568.61189999999},{"$f":"SUM($BH56:BY56)","v":194643.61189999999},{"$f":"SUM($BH56:BZ56)","v":195718.61189999999},{"$f":"SUM($BH56:CA56)","v":196793.61189999999}]
[{"$f":"PQS!A57","v":"SDD"},{"$f":"PQS!B57","v":"E003/035"},{"$f":"PQS!E57","v":"TCW 2000 SDD"},{"$f":"PQS!F57","v":"B Medical"},{"$f":"PQS!D57","v":"B Medical TCW 2000 SDD"},{"$f":"VLOOKUP(E57,PQS!$D$5:$K$107,COLUMN(PQS!$I$3)-COLUMN(PQS!$D$3)+1,FALSE)","v":99},{"$f":"VLOOKUP(E57,PQS!$D$5:$K$107,COLUMN(PQS!$J$3)-COLUMN(PQS!$D$3)+1,FALSE)","v":42},{"$f":"VLOOKUP(E57,PQS!$D$5:$K$107,COLUMN(PQS!$G$3)-COLUMN(PQS!$D$3)+1,FALSE)","v":"No"},{"$f":"HLOOKUP(B57,INDIRECT(\"'\"&A57&\"'!$10:$15\"),ROW('Technology template'!$A$11)-ROW('Technology template'!$A$10)+1,FALSE)","v":10},{"$f":"HLOOKUP(B57,INDIRECT(\"'\"&A57&\"'!$10:$15\"),ROW('Technology template'!$A$12)-ROW('Technology template'!$A$10)+1,FALSE)","v":10},{"$f":"HLOOKUP(B57,INDIRECT(\"'\"&A57&\"'!$10:$15\"),ROW('Technology template'!$A$13)-ROW('Technology template'!$A$10)+1,FALSE)","v":0},{"$f":"VLOOKUP(B57,PQS!$B:$Q,MATCH(PQS!$Q$3,PQS!$B$3:$Q$3,0),FALSE)*(1+'Country Input'!$C$47)+HLOOKUP(B57,INDIRECT(\"'\"&A57&\"'!$10:$15\"),ROW('Technology template'!$A$14)-ROW('Technology template'!$A$10)+1,FALSE)*(1+'Country Input'!$C$47)","v":10032.148800000001},{"$f":"HLOOKUP(B57,INDIRECT(\"'\"&A57&\"'!$10:$80\"),MATCH('Technology template'!$A$27,INDIRECT(\"'\"&A57&\"'!$A$10:$A$80\"),0),FALSE)+'Labor and Maintenance '!$E$18","v":1042},{"$f":"VLOOKUP(B57,PQS!B:T,MATCH(PQS!$T$3,PQS!$B$3:$T$3,0),FALSE)*(1+'Country Input'!$C$47)","v":757.6284800000002},11831.77728,1183.1777280000001,{"$f":"VLOOKUP(B57,PQS!$B:$AE,COLUMN(PQS!AD55)-1,FALSE)","v":0},{"$f":"IFERROR(1/HLOOKUP(B57,INDIRECT(\"'\"&A57&\"'!$10:$80\"),MATCH('Technology template'!$A$31,INDIRECT(\"'\"&A57&\"'!$A$10:$A$80\"),0),FALSE)*HLOOKUP(B57,INDIRECT(\"'\"&A57&\"'!$10:$80\"),MATCH('Technology template'!$A$41,INDIRECT(\"'\"&A57&\"'!$A10:$A$80\"),0),FALSE),0)*TechnicianHourlyWage+IF(A57=\"Solar w Battery\",1/'Labor and Maintenance '!$E$53*'Labor and Maintenance '!$D$53,0)+IF(A57=\"LT passive\", 1/'Labor and Maintenance '!$E$81*'Labor and Maintenance '!$D$81,0)","v":24},{"$f":"IFERROR(1/HLOOKUP(B57,INDIRECT(\"'\"&A57&\"'!$10:$80\"),MATCH('Technology template'!$A$34,INDIRECT(\"'\"&A57&\"'!$A$10:$A$80\"),0),FALSE)*(HLOOKUP(B57,INDIRECT(\"'\"&A57&\"'!$10:$80\"),MATCH('Technology template'!$A$44,INDIRECT(\"'\"&A57&\"'!$A10:$A$80\"),0),FALSE)*TechnicianHourlyWage+RemoteTravelCostPerDay),0)+IFERROR(1/HLOOKUP(B57,INDIRECT(\"'\"&A57&\"'!$10:$80\"),MATCH('Technology template'!$A$35,INDIRECT(\"'\"&A57&\"'!$A$10:$A$80\"),0),FALSE)*(HLOOKUP(B57,INDIRECT(\"'\"&A57&\"'!$10:$80\"),MATCH('Technology template'!$A$45,INDIRECT(\"'\"&A57&\"'!$A10:$A$80\"),0),FALSE)*TechnicianHourlyWage+RemoteTravelCostPerDay),0)+IFERROR(1/HLOOKUP(B57,INDIRECT(\"'\"&A57&\"'!$10:$80\"),MATCH('Technology template'!$A$37,INDIRECT(\"'\"&A57&\"'!$A$10:$A$80\"),0),FALSE)*(HLOOKUP(B57,INDIRECT(\"'\"&A57&\"'!$10:$80\"),MATCH('Technology template'!$A$46,INDIRECT(\"'\"&A57&\"'!$A10:$A$80\"),0),FALSE)*TechnicianHourlyWage+'Labor and Maintenance '!$B$8),0)","v":83.5},1075,107.5,1290.6777280000001,null,"B Medical TCW 2000 SDD",119.51290181818182,10.858585858585858,130.37148767676769,null,"B Medical TCW 2000 SDD",11.951290181818184,1.0858585858585859,13.037148767676769,null,"B Medical TCW 2000 SDD",2,23663.55456,2150,25813.55456,null,"B Medical TCW 2000 SDD",2,23.902580363636368,2.1717171717171717,26.074297535353541,null,"B Medical TCW 2000 SDD",{"$f":"IF(F57=0, 'Country Input'!$D$7, ROUNDUP(LitersPerFacility/F57,0)*'Country Input'!$D$7)","v":10},118317.77280000001,1075,119392.77280000001,null,"B Medical TCW 2000 SDD",{"$f":"ROUNDUP(LitersPerFacility/F57,0)*'Country Input'!$D$7*ROUNDUP('Total Solution Costs'!$B$2/Calculations!I57,0)","v":10},119.51290181818183,1.0858585858585859,120.59876040404042,null,null,"B Medical TCW 2000 SDD",{"$f":"(($U57+($O57)*IF(MOD(BH$3,$I57)=1,1,0)+Parts!$E$91*IF($J57=0,0,IF(MOD(BH$3,$I57)=1,IF(PQS!$R57=\"NO\",1,0),IF(MOD(BH$3,Calculations!$J57)=1,1,0)))+Parts!$E$92*IF(Calculations!$K57=0,0,IF(MOD(BH$3,$I57)=1,0,IF(MOD(BH$3,Calculations!$K57)=1,1,0))))*$AU57)*(1+'Country Input'!$C$45)^(Calculations!BH$3-$BH$3)+TrainingCost","v":119392.77280000001},{"$f":"(($U57+($O57)*IF(MOD(BI$3,$I57)=1,1,0)+Parts!$E$91*IF($J57=0,0,IF(MOD(BI$3,$I57)=1,IF(PQS!$R57=\"NO\",1,0),IF(MOD(BI$3,Calculations!$J57)=1,1,0)))+Parts!$E$92*IF(Calculations!$K57=0,0,IF(MOD(BI$3,$I57)=1,0,IF(MOD(BI$3,Calculations!$K57)=1,1,0))))*$AU57)*(1+'Country Input'!$C$45)^(Calculations!BI$3-$BH$3)","v":1075},{"$f":"(($U57+($O57)*IF(MOD(BJ$3,$I57)=1,1,0)+Parts!$E$91*IF($J57=0,0,IF(MOD(BJ$3,$I57)=1,IF(PQS!$R57=\"NO\",1,0),IF(MOD(BJ$3,Calculations!$J57)=1,1,0)))+Parts!$E$92*IF(Calculations!$K57=0,0,IF(MOD(BJ$3,$I57)=1,0,IF(MOD(BJ$3,Calculations!$K57)=1,1,0))))*$AU57)*(1+'Country Input'!$C$45)^(Calculations!BJ$3-$BH$3)","v":1075},{"$f":"(($U57+($O57)*IF(MOD(BK$3,$I57)=1,1,0)+Parts!$E$91*IF($J57=0,0,IF(MOD(BK$3,$I57)=1,IF(PQS!$R57=\"NO\",1,0),IF(MOD(BK$3,Calculations!$J57)=1,1,0)))+Parts!$E$92*IF(Calculations!$K57=0,0,IF(MOD(BK$3,$I57)=1,0,IF(MOD(BK$3,Calculations!$K57)=1,1,0))))*$AU57)*(1+'Country Input'!$C$45)^(Calculations!BK$3-$BH$3)","v":1075},{"$f":"(($U57+($O57)*IF(MOD(BL$3,$I57)=1,1,0)+Parts!$E$91*IF($J57=0,0,IF(MOD(BL$3,$I57)=1,IF(PQS!$R57=\"NO\",1,0),IF(MOD(BL$3,Calculations!$J57)=1,1,0)))+Parts!$E$92*IF(Calculations!$K57=0,0,IF(MOD(BL$3,$I57)=1,0,IF(MOD(BL$3,Calculations!$K57)=1,1,0))))*$AU57)*(1+'Country Input'!$C$45)^(Calculations!BL$3-$BH$3)","v":1075},{"$f":"(($U57+($O57)*IF(MOD(BM$3,$I57)=1,1,0)+Parts!$E$91*IF($J57=0,0,IF(MOD(BM$3,$I57)=1,IF(PQS!$R57=\"NO\",1,0),IF(MOD(BM$3,Calculations!$J57)=1,1,0)))+Parts!$E$92*IF(Calculations!$K57=0,0,IF(MOD(BM$3,$I57)=1,0,IF(MOD(BM$3,Calculations!$K57)=1,1,0))))*$AU57)*(1+'Country Input'!$C$45)^(Calculations!BM$3-$BH$3)","v":1075},{"$f":"(($U57+($O57)*IF(MOD(BN$3,$I57)=1,1,0)+Parts!$E$91*IF($J57=0,0,IF(MOD(BN$3,$I57)=1,IF(PQS!$R57=\"NO\",1,0),IF(MOD(BN$3,Calculations!$J57)=1,1,0)))+Parts!$E$92*IF(Calculations!$K57=0,0,IF(MOD(BN$3,$I57)=1,0,IF(MOD(BN$3,Calculations!$K57)=1,1,0))))*$AU57)*(1+'Country Input'!$C$45)^(Calculations!BN$3-$BH$3)","v":1075},{"$f":"(($U57+($O57)*IF(MOD(BO$3,$I57)=1,1,0)+Parts!$E$91*IF($J57=0,0,IF(MOD(BO$3,$I57)=1,IF(PQS!$R57=\"NO\",1,0),IF(MOD(BO$3,Calculations!$J57)=1,1,0)))+Parts!$E$92*IF(Calculations!$K57=0,0,IF(MOD(BO$3,$I57)=1,0,IF(MOD(BO$3,Calculations!$K57)=1,1,0))))*$AU57)*(1+'Country Input'!$C$45)^(Calculations!BO$3-$BH$3)","v":1075},{"$f":"(($U57+($O57)*IF(MOD(BP$3,$I57)=1,1,0)+Parts!$E$91*IF($J57=0,0,IF(MOD(BP$3,$I57)=1,IF(PQS!$R57=\"NO\",1,0),IF(MOD(BP$3,Calculations!$J57)=1,1,0)))+Parts!$E$92*IF(Calculations!$K57=0,0,IF(MOD(BP$3,$I57)=1,0,IF(MOD(BP$3,Calculations!$K57)=1,1,0))))*$AU57)*(1+'Country Input'!$C$45)^(Calculations!BP$3-$BH$3)","v":1075},{"$f":"(($U57+($O57)*IF(MOD(BQ$3,$I57)=1,1,0)+Parts!$E$91*IF($J57=0,0,IF(MOD(BQ$3,$I57)=1,IF(PQS!$R57=\"NO\",1,0),IF(MOD(BQ$3,Calculations!$J57)=1,1,0)))+Parts!$E$92*IF(Calculations!$K57=0,0,IF(MOD(BQ$3,$I57)=1,0,IF(MOD(BQ$3,Calculations!$K57)=1,1,0))))*$AU57)*(1+'Country Input'!$C$45)^(Calculations!BQ$3-$BH$3)","v":1075},{"$f":"(($U57+($O57)*IF(MOD(BR$3,$I57)=1,1,0)+Parts!$E$91*IF($J57=0,0,IF(MOD(BR$3,$I57)=1,IF(PQS!$R57=\"NO\",1,0),IF(MOD(BR$3,Calculations!$J57)=1,1,0)))+Parts!$E$92*IF(Calculations!$K57=0,0,IF(MOD(BR$3,$I57)=1,0,IF(MOD(BR$3,Calculations!$K57)=1,1,0))))*$AU57)*(1+'Country Input'!$C$45)^(Calculations!BR$3-$BH$3)","v":119392.77280000001},{"$f":"(($U57+($O57)*IF(MOD(BS$3,$I57)=1,1,0)+Parts!$E$91*IF($J57=0,0,IF(MOD(BS$3,$I57)=1,IF(PQS!$R57=\"NO\",1,0),IF(MOD(BS$3,Calculations!$J57)=1,1,0)))+Parts!$E$92*IF(Calculations!$K57=0,0,IF(MOD(BS$3,$I57)=1,0,IF(MOD(BS$3,Calculations!$K57)=1,1,0))))*$AU57)*(1+'Country Input'!$C$45)^(Calculations!BS$3-$BH$3)","v":1075},{"$f":"(($U57+($O57)*IF(MOD(BT$3,$I57)=1,1,0)+Parts!$E$91*IF($J57=0,0,IF(MOD(BT$3,$I57)=1,IF(PQS!$R57=\"NO\",1,0),IF(MOD(BT$3,Calculations!$J57)=1,1,0)))+Parts!$E$92*IF(Calculations!$K57=0,0,IF(MOD(BT$3,$I57)=1,0,IF(MOD(BT$3,Calculations!$K57)=1,1,0))))*$AU57)*(1+'Country Input'!$C$45)^(Calculations!BT$3-$BH$3)","v":1075},{"$f":"(($U57+($O57)*IF(MOD(BU$3,$I57)=1,1,0)+Parts!$E$91*IF($J57=0,0,IF(MOD(BU$3,$I57)=1,IF(PQS!$R57=\"NO\",1,0),IF(MOD(BU$3,Calculations!$J57)=1,1,0)))+Parts!$E$92*IF(Calculations!$K57=0,0,IF(MOD(BU$3,$I57)=1,0,IF(MOD(BU$3,Calculations!$K57)=1,1,0))))*$AU57)*(1+'Country Input'!$C$45)^(Calculations!BU$3-$BH$3)","v":1075},{"$f":"(($U57+($O57)*IF(MOD(BV$3,$I57)=1,1,0)+Parts!$E$91*IF($J57=0,0,IF(MOD(BV$3,$I57)=1,IF(PQS!$R57=\"NO\",1,0),IF(MOD(BV$3,Calculations!$J57)=1,1,0)))+Parts!$E$92*IF(Calculations!$K57=0,0,IF(MOD(BV$3,$I57)=1,0,IF(MOD(BV$3,Calculations!$K57)=1,1,0))))*$AU57)*(1+'Country Input'!$C$45)^(Calculations!BV$3-$BH$3)","v":1075},{"$f":"(($U57+($O57)*IF(MOD(BW$3,$I57)=1,1,0)+Parts!$E$91*IF($J57=0,0,IF(MOD(BW$3,$I57)=1,IF(PQS!$R57=\"NO\",1,0),IF(MOD(BW$3,Calculations!$J57)=1,1,0)))+Parts!$E$92*IF(Calculations!$K57=0,0,IF(MOD(BW$3,$I57)=1,0,IF(MOD(BW$3,Calculations!$K57)=1,1,0))))*$AU57)*(1+'Country Input'!$C$45)^(Calculations!BW$3-$BH$3)","v":1075},{"$f":"(($U57+($O57)*IF(MOD(BX$3,$I57)=1,1,0)+Parts!$E$91*IF($J57=0,0,IF(MOD(BX$3,$I57)=1,IF(PQS!$R57=\"NO\",1,0),IF(MOD(BX$3,Calculations!$J57)=1,1,0)))+Parts!$E$92*IF(Calculations!$K57=0,0,IF(MOD(BX$3,$I57)=1,0,IF(MOD(BX$3,Calculations!$K57)=1,1,0))))*$AU57)*(1+'Country Input'!$C$45)^(Calculations!BX$3-$BH$3)","v":1075},{"$f":"(($U57+($O57)*IF(MOD(BY$3,$I57)=1,1,0)+Parts!$E$91*IF($J57=0,0,IF(MOD(BY$3,$I57)=1,IF(PQS!$R57=\"NO\",1,0),IF(MOD(BY$3,Calculations!$J57)=1,1,0)))+Parts!$E$92*IF(Calculations!$K57=0,0,IF(MOD(BY$3,$I57)=1,0,IF(MOD(BY$3,Calculations!$K57)=1,1,0))))*$AU57)*(1+'Country Input'!$C$45)^(Calculations!BY$3-$BH$3)","v":1075},{"$f":"(($U57+($O57)*IF(MOD(BZ$3,$I57)=1,1,0)+Parts!$E$91*IF($J57=0,0,IF(MOD(BZ$3,$I57)=1,IF(PQS!$R57=\"NO\",1,0),IF(MOD(BZ$3,Calculations!$J57)=1,1,0)))+Parts!$E$92*IF(Calculations!$K57=0,0,IF(MOD(BZ$3,$I57)=1,0,IF(MOD(BZ$3,Calculations!$K57)=1,1,0))))*$AU57)*(1+'Country Input'!$C$45)^(Calculations!BZ$3-$BH$3)","v":1075},{"$f":"(($U57+($O57)*IF(MOD(CA$3,$I57)=1,1,0)+Parts!$E$91*IF($J57=0,0,IF(MOD(CA$3,$I57)=1,IF(PQS!$R57=\"NO\",1,0),IF(MOD(CA$3,Calculations!$J57)=1,1,0)))+Parts!$E$92*IF(Calculations!$K57=0,0,IF(MOD(CA$3,$I57)=1,0,IF(MOD(CA$3,Calculations!$K57)=1,1,0))))*$AU57)*(1+'Country Input'!$C$45)^(Calculations!CA$3-$BH$3)","v":1075},null,"B Medical TCW 2000 SDD",119392.77280000001,1075,1075,1075,1075,1075,1075,1075,1075,1075,119392.77280000001,1075,1075,1075,1075,1075,1075,1075,1075,1075,{"$f":"SUM(CD57:INDEX($CD57:$CW57,1,'Total Solution Costs'!$B$2))","v":129067.77280000001},null,"B Medical TCW 2000 SDD",{"$f":"SUM($BH57:BH57)","v":119392.77280000001},{"$f":"SUM($BH57:BI57)","v":120467.77280000001},{"$f":"SUM($BH57:BJ57)","v":121542.77280000001},{"$f":"SUM($BH57:BK57)","v":122617.77280000001},{"$f":"SUM($BH57:BL57)","v":123692.77280000001},{"$f":"SUM($BH57:BM57)","v":124767.77280000001},{"$f":"SUM($BH57:BN57)","v":125842.77280000001},{"$f":"SUM($BH57:BO57)","v":126917.77280000001},{"$f":"SUM($BH57:BP57)","v":127992.77280000001},{"$f":"SUM($BH57:BQ57)","v":129067.77280000001},{"$f":"SUM($BH57:BR57)","v":248460.54560000001},{"$f":"SUM($BH57:BS57)","v":249535.54560000001},{"$f":"SUM($BH57:BT57)","v":250610.54560000001},{"$f":"SUM($BH57:BU57)","v":251685.54560000001},{"$f":"SUM($BH57:BV57)","v":252760.54560000001},{"$f":"SUM($BH57:BW57)","v":253835.54560000001},{"$f":"SUM($BH57:BX57)","v":254910.54560000001},{"$f":"SUM($BH57:BY57)","v":255985.54560000001},{"$f":"SUM($BH57:BZ57)","v":257060.54560000001},{"$f":"SUM($BH57:CA57)","v":258135.54560000001}]
[{"$f":"PQS!A58","v":"SDD"},{"$f":"PQS!B58","v":"E003/037"},{"$f":"PQS!E58","v":"ZLF 100 DC*"},{"$f":"PQS!F58","v":"Zero"},{"$f":"PQS!D58","v":"Zero ZLF 100 DC*"},{"$f":"VLOOKUP(E58,PQS!$D$5:$K$107,COLUMN(PQS!$I$3)-COLUMN(PQS!$D$3)+1,FALSE)","v":99},{"$f":"VLOOKUP(E58,PQS!$D$5:$K$107,COLUMN(PQS!$J$3)-COLUMN(PQS!$D$3)+1,FALSE)","v":0},{"$f":"VLOOKUP(E58,PQS!$D$5:$K$107,COLUMN(PQS!$G$3)-COLUMN(PQS!$D$3)+1,FALSE)","v":"Yes"},{"$f":"HLOOKUP(B58,INDIRECT(\"'\"&A58&\"'!$10:$15\"),ROW('Technology template'!$A$11)-ROW('Technology template'!$A$10)+1,FALSE)","v":10},{"$f":"HLOOKUP(B58,INDIRECT(\"'\"&A58&\"'!$10:$15\"),ROW('Technology template'!$A$12)-ROW('Technology template'!$A$10)+1,FALSE)","v":10},{"$f":"HLOOKUP(B58,INDIRECT(\"'\"&A58&\"'!$10:$15\"),ROW('Technology template'!$A$13)-ROW('Technology template'!$A$10)+1,FALSE)","v":0},{"$f":"VLOOKUP(B58,PQS!$B:$Q,MATCH(PQS!$Q$3,PQS!$B$3:$Q$3,0),FALSE)*(1+'Country Input'!$C$47)+HLOOKUP(B58,INDIRECT(\"'\"&A58&\"'!$10:$15\"),ROW('Technology template'!$A$14)-ROW('Technology template'!$A$10)+1,FALSE)*(1+'Country Input'!$C$47)","v":5608.94},{"$f":"HLOOKUP(B58,INDIRECT(\"'\"&A58&\"'!$10:$80\"),MATCH('Technology template'!$A$27,INDIRECT(\"'\"&A58&\"'!$A$10:$A$80\"),0),FALSE)+'Labor and Maintenance '!$E$18","v":1042},{"$f":"VLOOKUP(B58,PQS!B:T,MATCH(PQS!$T$3,PQS!$B$3:$T$3,0),FALSE)*(1+'Country Input'!$C$47)","v":712.62},7363.5599999999995,736.35599999999999,{"$f":"VLOOKUP(B58,PQS!$B:$AE,COLUMN(PQS!AD56)-1,FALSE)","v":0},{"$f":"IFERROR(1/HLOOKUP(B58,INDIRECT(\"'\"&A58&\"'!$10:$80\"),MATCH('Technology template'!$A$31,INDIRECT(\"'\"&A58&\"'!$A$10:$A$80\"),0),FALSE)*HLOOKUP(B58,INDIRECT(\"'\"&A58&\"'!$10:$80\"),MATCH('Technology template'!$A$41,INDIRECT(\"'\"&A58&\"'!$A10:$A$80\"),0),FALSE),0)*TechnicianHourlyWage+IF(A58=\"Solar w Battery\",1/'Labor and Maintenance '!$E$53*'Labor and Maintenance '!$D$53,0)+IF(A58=\"LT passive\", 1/'Labor and Maintenance '!$E$81*'Labor and Maintenance '!$D$81,0)","v":24},{"$f":"IFERROR(1/HLOOKUP(B58,INDIRECT(\"'\"&A58&\"'!$10:$80\"),MATCH('Technology template'!$A$34,INDIRECT(\"'\"&A58&\"'!$A$10:$A$80\"),0),FALSE)*(HLOOKUP(B58,INDIRECT(\"'\"&A58&\"'!$10:$80\"),MATCH('Technology template'!$A$44,INDIRECT(\"'\"&A58&\"'!$A10:$A$80\"),0),FALSE)*TechnicianHourlyWage+RemoteTravelCostPerDay),0)+IFERROR(1/HLOOKUP(B58,INDIRECT(\"'\"&A58&\"'!$10:$80\"),MATCH('Technology template'!$A$35,INDIRECT(\"'\"&A58&\"'!$A$10:$A$80\"),0),FALSE)*(HLOOKUP(B58,INDIRECT(\"'\"&A58&\"'!$10:$80\"),MATCH('Technology template'!$A$45,INDIRECT(\"'\"&A58&\"'!$A10:$A$80\"),0),FALSE)*TechnicianHourlyWage+RemoteTravelCostPerDay),0)+IFERROR(1/HLOOKUP(B58,INDIRECT(\"'\"&A58&\"'!$10:$80\"),MATCH('Technology template'!$A$37,INDIRECT(\"'\"&A58&\"'!$A$10:$A$80\"),0),FALSE)*(HLOOKUP(B58,INDIRECT(\"'\"&A58&\"'!$10:$80\"),MATCH('Technology template'!$A$46,INDIRECT(\"'\"&A58&\"'!$A10:$A$80\"),0),FALSE)*TechnicianHourlyWage+'Labor and Maintenance '!$B$8),0)","v":83.5},1075,{"$f":"SUM(Q58:S58)","v":107.5},843.85599999999999,null,"Zero ZLF 100 DC*",74.379393939393935,10.858585858585858,85.23797979797979,null,"Zero ZLF 100 DC*",7.4379393939393941,1.0858585858585859,8.5237979797979797,null,"Zero ZLF 100 DC*",2,14727.119999999999,2150,16877.12,null,"Zero ZLF 100 DC*",2,14.875878787878788,2.1717171717171717,17.047595959595959,null,"Zero ZLF 100 DC*",{"$f":"IF(F58=0, 'Country Input'!$D$7, ROUNDUP(LitersPerFacility/F58,0)*'Country Input'!$D$7)","v":10},73635.599999999991,1075,74710.599999999991,null,"Zero ZLF 100 DC*",{"$f":"ROUNDUP(LitersPerFacility/F58,0)*'Country Input'!$D$7*ROUNDUP('Total Solution Costs'!$B$2/Calculations!I58,0)","v":10},74.379393939393935,1.0858585858585859,75.465252525252524,null,null,"Zero ZLF 100 DC*",{"$f":"(($U58+($O58)*IF(MOD(BH$3,$I58)=1,1,0)+Parts!$E$91*IF($J58=0,0,IF(MOD(BH$3,$I58)=1,IF(PQS!$R58=\"NO\",1,0),IF(MOD(BH$3,Calculations!$J58)=1,1,0)))+Parts!$E$92*IF(Calculations!$K58=0,0,IF(MOD(BH$3,$I58)=1,0,IF(MOD(BH$3,Calculations!$K58)=1,1,0))))*$AU58)*(1+'Country Input'!$C$45)^(Calculations!BH$3-$BH$3)+TrainingCost","v":74710.599999999991},{"$f":"(($U58+($O58)*IF(MOD(BI$3,$I58)=1,1,0)+Parts!$E$91*IF($J58=0,0,IF(MOD(BI$3,$I58)=1,IF(PQS!$R58=\"NO\",1,0),IF(MOD(BI$3,Calculations!$J58)=1,1,0)))+Parts!$E$92*IF(Calculations!$K58=0,0,IF(MOD(BI$3,$I58)=1,0,IF(MOD(BI$3,Calculations!$K58)=1,1,0))))*$AU58)*(1+'Country Input'!$C$45)^(Calculations!BI$3-$BH$3)","v":1075},{"$f":"(($U58+($O58)*IF(MOD(BJ$3,$I58)=1,1,0)+Parts!$E$91*IF($J58=0,0,IF(MOD(BJ$3,$I58)=1,IF(PQS!$R58=\"NO\",1,0),IF(MOD(BJ$3,Calculations!$J58)=1,1,0)))+Parts!$E$92*IF(Calculations!$K58=0,0,IF(MOD(BJ$3,$I58)=1,0,IF(MOD(BJ$3,Calculations!$K58)=1,1,0))))*$AU58)*(1+'Country Input'!$C$45)^(Calculations!BJ$3-$BH$3)","v":1075},{"$f":"(($U58+($O58)*IF(MOD(BK$3,$I58)=1,1,0)+Parts!$E$91*IF($J58=0,0,IF(MOD(BK$3,$I58)=1,IF(PQS!$R58=\"NO\",1,0),IF(MOD(BK$3,Calculations!$J58)=1,1,0)))+Parts!$E$92*IF(Calculations!$K58=0,0,IF(MOD(BK$3,$I58)=1,0,IF(MOD(BK$3,Calculations!$K58)=1,1,0))))*$AU58)*(1+'Country Input'!$C$45)^(Calculations!BK$3-$BH$3)","v":1075},{"$f":"(($U58+($O58)*IF(MOD(BL$3,$I58)=1,1,0)+Parts!$E$91*IF($J58=0,0,IF(MOD(BL$3,$I58)=1,IF(PQS!$R58=\"NO\",1,0),IF(MOD(BL$3,Calculations!$J58)=1,1,0)))+Parts!$E$92*IF(Calculations!$K58=0,0,IF(MOD(BL$3,$I58)=1,0,IF(MOD(BL$3,Calculations!$K58)=1,1,0))))*$AU58)*(1+'Country Input'!$C$45)^(Calculations!BL$3-$BH$3)","v":1075},{"$f":"(($U58+($O58)*IF(MOD(BM$3,$I58)=1,1,0)+Parts!$E$91*IF($J58=0,0,IF(MOD(BM$3,$I58)=1,IF(PQS!$R58=\"NO\",1,0),IF(MOD(BM$3,Calculations!$J58)=1,1,0)))+Parts!$E$92*IF(Calculations!$K58=0,0,IF(MOD(BM$3,$I58)=1,0,IF(MOD(BM$3,Calculations!$K58)=1,1,0))))*$AU58)*(1+'Country Input'!$C$45)^(Calculations!BM$3-$BH$3)","v":1075},{"$f":"(($U58+($O58)*IF(MOD(BN$3,$I58)=1,1,0)+Parts!$E$91*IF($J58=0,0,IF(MOD(BN$3,$I58)=1,IF(PQS!$R58=\"NO\",1,0),IF(MOD(BN$3,Calculations!$J58)=1,1,0)))+Parts!$E$92*IF(Calculations!$K58=0,0,IF(MOD(BN$3,$I58)=1,0,IF(MOD(BN$3,Calculations!$K58)=1,1,0))))*$AU58)*(1+'Country Input'!$C$45)^(Calculations!BN$3-$BH$3)","v":1075},{"$f":"(($U58+($O58)*IF(MOD(BO$3,$I58)=1,1,0)+Parts!$E$91*IF($J58=0,0,IF(MOD(BO$3,$I58)=1,IF(PQS!$R58=\"NO\",1,0),IF(MOD(BO$3,Calculations!$J58)=1,1,0)))+Parts!$E$92*IF(Calculations!$K58=0,0,IF(MOD(BO$3,$I58)=1,0,IF(MOD(BO$3,Calculations!$K58)=1,1,0))))*$AU58)*(1+'Country Input'!$C$45)^(Calculations!BO$3-$BH$3)","v":1075},{"$f":"(($U58+($O58)*IF(MOD(BP$3,$I58)=1,1,0)+Parts!$E$91*IF($J58=0,0,IF(MOD(BP$3,$I58)=1,IF(PQS!$R58=\"NO\",1,0),IF(MOD(BP$3,Calculations!$J58)=1,1,0)))+Parts!$E$92*IF(Calculations!$K58=0,0,IF(MOD(BP$3,$I58)=1,0,IF(MOD(BP$3,Calculations!$K58)=1,1,0))))*$AU58)*(1+'Country Input'!$C$45)^(Calculations!BP$3-$BH$3)","v":1075},{"$f":"(($U58+($O58)*IF(MOD(BQ$3,$I58)=1,1,0)+Parts!$E$91*IF($J58=0,0,IF(MOD(BQ$3,$I58)=1,IF(PQS!$R58=\"NO\",1,0),IF(MOD(BQ$3,Calculations!$J58)=1,1,0)))+Parts!$E$92*IF(Calculations!$K58=0,0,IF(MOD(BQ$3,$I58)=1,0,IF(MOD(BQ$3,Calculations!$K58)=1,1,0))))*$AU58)*(1+'Country Input'!$C$45)^(Calculations!BQ$3-$BH$3)","v":1075},{"$f":"(($U58+($O58)*IF(MOD(BR$3,$I58)=1,1,0)+Parts!$E$91*IF($J58=0,0,IF(MOD(BR$3,$I58)=1,IF(PQS!$R58=\"NO\",1,0),IF(MOD(BR$3,Calculations!$J58)=1,1,0)))+Parts!$E$92*IF(Calculations!$K58=0,0,IF(MOD(BR$3,$I58)=1,0,IF(MOD(BR$3,Calculations!$K58)=1,1,0))))*$AU58)*(1+'Country Input'!$C$45)^(Calculations!BR$3-$BH$3)","v":74710.599999999991},{"$f":"(($U58+($O58)*IF(MOD(BS$3,$I58)=1,1,0)+Parts!$E$91*IF($J58=0,0,IF(MOD(BS$3,$I58)=1,IF(PQS!$R58=\"NO\",1,0),IF(MOD(BS$3,Calculations!$J58)=1,1,0)))+Parts!$E$92*IF(Calculations!$K58=0,0,IF(MOD(BS$3,$I58)=1,0,IF(MOD(BS$3,Calculations!$K58)=1,1,0))))*$AU58)*(1+'Country Input'!$C$45)^(Calculations!BS$3-$BH$3)","v":1075},{"$f":"(($U58+($O58)*IF(MOD(BT$3,$I58)=1,1,0)+Parts!$E$91*IF($J58=0,0,IF(MOD(BT$3,$I58)=1,IF(PQS!$R58=\"NO\",1,0),IF(MOD(BT$3,Calculations!$J58)=1,1,0)))+Parts!$E$92*IF(Calculations!$K58=0,0,IF(MOD(BT$3,$I58)=1,0,IF(MOD(BT$3,Calculations!$K58)=1,1,0))))*$AU58)*(1+'Country Input'!$C$45)^(Calculations!BT$3-$BH$3)","v":1075},{"$f":"(($U58+($O58)*IF(MOD(BU$3,$I58)=1,1,0)+Parts!$E$91*IF($J58=0,0,IF(MOD(BU$3,$I58)=1,IF(PQS!$R58=\"NO\",1,0),IF(MOD(BU$3,Calculations!$J58)=1,1,0)))+Parts!$E$92*IF(Calculations!$K58=0,0,IF(MOD(BU$3,$I58)=1,0,IF(MOD(BU$3,Calculations!$K58)=1,1,0))))*$AU58)*(1+'Country Input'!$C$45)^(Calculations!BU$3-$BH$3)","v":1075},{"$f":"(($U58+($O58)*IF(MOD(BV$3,$I58)=1,1,0)+Parts!$E$91*IF($J58=0,0,IF(MOD(BV$3,$I58)=1,IF(PQS!$R58=\"NO\",1,0),IF(MOD(BV$3,Calculations!$J58)=1,1,0)))+Parts!$E$92*IF(Calculations!$K58=0,0,IF(MOD(BV$3,$I58)=1,0,IF(MOD(BV$3,Calculations!$K58)=1,1,0))))*$AU58)*(1+'Country Input'!$C$45)^(Calculations!BV$3-$BH$3)","v":1075},{"$f":"(($U58+($O58)*IF(MOD(BW$3,$I58)=1,1,0)+Parts!$E$91*IF($J58=0,0,IF(MOD(BW$3,$I58)=1,IF(PQS!$R58=\"NO\",1,0),IF(MOD(BW$3,Calculations!$J58)=1,1,0)))+Parts!$E$92*IF(Calculations!$K58=0,0,IF(MOD(BW$3,$I58)=1,0,IF(MOD(BW$3,Calculations!$K58)=1,1,0))))*$AU58)*(1+'Country Input'!$C$45)^(Calculations!BW$3-$BH$3)","v":1075},{"$f":"(($U58+($O58)*IF(MOD(BX$3,$I58)=1,1,0)+Parts!$E$91*IF($J58=0,0,IF(MOD(BX$3,$I58)=1,IF(PQS!$R58=\"NO\",1,0),IF(MOD(BX$3,Calculations!$J58)=1,1,0)))+Parts!$E$92*IF(Calculations!$K58=0,0,IF(MOD(BX$3,$I58)=1,0,IF(MOD(BX$3,Calculations!$K58)=1,1,0))))*$AU58)*(1+'Country Input'!$C$45)^(Calculations!BX$3-$BH$3)","v":1075},{"$f":"(($U58+($O58)*IF(MOD(BY$3,$I58)=1,1,0)+Parts!$E$91*IF($J58=0,0,IF(MOD(BY$3,$I58)=1,IF(PQS!$R58=\"NO\",1,0),IF(MOD(BY$3,Calculations!$J58)=1,1,0)))+Parts!$E$92*IF(Calculations!$K58=0,0,IF(MOD(BY$3,$I58)=1,0,IF(MOD(BY$3,Calculations!$K58)=1,1,0))))*$AU58)*(1+'Country Input'!$C$45)^(Calculations!BY$3-$BH$3)","v":1075},{"$f":"(($U58+($O58)*IF(MOD(BZ$3,$I58)=1,1,0)+Parts!$E$91*IF($J58=0,0,IF(MOD(BZ$3,$I58)=1,IF(PQS!$R58=\"NO\",1,0),IF(MOD(BZ$3,Calculations!$J58)=1,1,0)))+Parts!$E$92*IF(Calculations!$K58=0,0,IF(MOD(BZ$3,$I58)=1,0,IF(MOD(BZ$3,Calculations!$K58)=1,1,0))))*$AU58)*(1+'Country Input'!$C$45)^(Calculations!BZ$3-$BH$3)","v":1075},{"$f":"(($U58+($O58)*IF(MOD(CA$3,$I58)=1,1,0)+Parts!$E$91*IF($J58=0,0,IF(MOD(CA$3,$I58)=1,IF(PQS!$R58=\"NO\",1,0),IF(MOD(CA$3,Calculations!$J58)=1,1,0)))+Parts!$E$92*IF(Calculations!$K58=0,0,IF(MOD(CA$3,$I58)=1,0,IF(MOD(CA$3,Calculations!$K58)=1,1,0))))*$AU58)*(1+'Country Input'!$C$45)^(Calculations!CA$3-$BH$3)","v":1075},null,"Zero ZLF 100 DC*",74710.599999999991,1075,1075,1075,1075,1075,1075,1075,1075,1075,74710.599999999991,1075,1075,1075,1075,1075,1075,1075,1075,1075,{"$f":"SUM(CD58:INDEX($CD58:$CW58,1,'Total Solution Costs'!$B$2))","v":84385.599999999991},null,"Zero ZLF 100 DC*",{"$f":"SUM($BH58:BH58)","v":74710.599999999991},{"$f":"SUM($BH58:BI58)","v":75785.599999999991},{"$f":"SUM($BH58:BJ58)","v":76860.599999999991},{"$f":"SUM($BH58:BK58)","v":77935.599999999991},{"$f":"SUM($BH58:BL58)","v":79010.599999999991},{"$f":"SUM($BH58:BM58)","v":80085.599999999991},{"$f":"SUM($BH58:BN58)","v":81160.599999999991},{"$f":"SUM($BH58:BO58)","v":82235.599999999991},{"$f":"SUM($BH58:BP58)","v":83310.599999999991},{"$f":"SUM($BH58:BQ58)","v":84385.599999999991},{"$f":"SUM($BH58:BR58)","v":159096.19999999998},{"$f":"SUM($BH58:BS58)","v":160171.19999999998},{"$f":"SUM($BH58:BT58)","v":161246.19999999998},{"$f":"SUM($BH58:BU58)","v":162321.19999999998},{"$f":"SUM($BH58:BV58)","v":163396.19999999998},{"$f":"SUM($BH58:BW58)","v":164471.19999999998},{"$f":"SUM($BH58:BX58)","v":165546.19999999998},{"$f":"SUM($BH58:BY58)","v":166621.19999999998},{"$f":"SUM($BH58:BZ58)","v":167696.19999999998},{"$f":"SUM($BH58:CA58)","v":168771.19999999998}]
[{"$f":"PQS!A59","v":"SDD"},{"$f":"PQS!B59","v":"E003/039"},{"$f":"PQS!E59","v":"BFRV 15 SDD*"},{"$f":"PQS!F59","v":"SunDanzer"},{"$f":"PQS!D59","v":"SunDanzer BFRV 15 SDD*"},{"$f":"VLOOKUP(E59,PQS!$D$5:$K$107,COLUMN(PQS!$I$3)-COLUMN(PQS!$D$3)+1,FALSE)","v":15},{"$f":"VLOOKUP(E59,PQS!$D$5:$K$107,COLUMN(PQS!$J$3)-COLUMN(PQS!$D$3)+1,FALSE)","v":0},{"$f":"VLOOKUP(E59,PQS!$D$5:$K$107,COLUMN(PQS!$G$3)-COLUMN(PQS!$D$3)+1,FALSE)","v":"Yes"},{"$f":"HLOOKUP(B59,INDIRECT(\"'\"&A59&\"'!$10:$15\"),ROW('Technology template'!$A$11)-ROW('Technology template'!$A$10)+1,FALSE)","v":10},{"$f":"HLOOKUP(B59,INDIRECT(\"'\"&A59&\"'!$10:$15\"),ROW('Technology template'!$A$12)-ROW('Technology template'!$A$10)+1,FALSE)","v":10},{"$f":"HLOOKUP(B59,INDIRECT(\"'\"&A59&\"'!$10:$15\"),ROW('Technology template'!$A$13)-ROW('Technology template'!$A$10)+1,FALSE)","v":0},{"$f":"VLOOKUP(B59,PQS!$B:$Q,MATCH(PQS!$Q$3,PQS!$B$3:$Q$3,0),FALSE)*(1+'Country Input'!$C$47)+HLOOKUP(B59,INDIRECT(\"'\"&A59&\"'!$10:$15\"),ROW('Technology template'!$A$14)-ROW('Technology template'!$A$10)+1,FALSE)*(1+'Country Input'!$C$47)","v":2739.2000000000003},{"$f":"HLOOKUP(B59,INDIRECT(\"'\"&A59&\"'!$10:$80\"),MATCH('Technology template'!$A$27,INDIRECT(\"'\"&A59&\"'!$A$10:$A$80\"),0),FALSE)+'Labor and Maintenance '!$E$18","v":1042},{"$f":"VLOOKUP(B59,PQS!B:T,MATCH(PQS!$T$3,PQS!$B$3:$T$3,0),FALSE)*(1+'Country Input'!$C$47)","v":353.1},4134.3,413.43,{"$f":"VLOOKUP(B59,PQS!$B:$AE,COLUMN(PQS!AD57)-1,FALSE)","v":0},{"$f":"IFERROR(1/HLOOKUP(B59,INDIRECT(\"'\"&A59&\"'!$10:$80\"),MATCH('Technology template'!$A$31,INDIRECT(\"'\"&A59&\"'!$A$10:$A$80\"),0),FALSE)*HLOOKUP(B59,INDIRECT(\"'\"&A59&\"'!$10:$80\"),MATCH('Technology template'!$A$41,INDIRECT(\"'\"&A59&\"'!$A10:$A$80\"),0),FALSE),0)*TechnicianHourlyWage+IF(A59=\"Solar w Battery\",1/'Labor and Maintenance '!$E$53*'Labor and Maintenance '!$D$53,0)+IF(A59=\"LT passive\", 1/'Labor and Maintenance '!$E$81*'Labor and Maintenance '!$D$81,0)","v":24},{"$f":"IFERROR(1/HLOOKUP(B59,INDIRECT(\"'\"&A59&\"'!$10:$80\"),MATCH('Technology template'!$A$34,INDIRECT(\"'\"&A59&\"'!$A$10:$A$80\"),0),FALSE)*(HLOOKUP(B59,INDIRECT(\"'\"&A59&\"'!$10:$80\"),MATCH('Technology template'!$A$44,INDIRECT(\"'\"&A59&\"'!$A10:$A$80\"),0),FALSE)*TechnicianHourlyWage+RemoteTravelCostPerDay),0)+IFERROR(1/HLOOKUP(B59,INDIRECT(\"'\"&A59&\"'!$10:$80\"),MATCH('Technology template'!$A$35,INDIRECT(\"'\"&A59&\"'!$A$10:$A$80\"),0),FALSE)*(HLOOKUP(B59,INDIRECT(\"'\"&A59&\"'!$10:$80\"),MATCH('Technology template'!$A$45,INDIRECT(\"'\"&A59&\"'!$A10:$A$80\"),0),FALSE)*TechnicianHourlyWage+RemoteTravelCostPerDay),0)+IFERROR(1/HLOOKUP(B59,INDIRECT(\"'\"&A59&\"'!$10:$80\"),MATCH('Technology template'!$A$37,INDIRECT(\"'\"&A59&\"'!$A$10:$A$80\"),0),FALSE)*(HLOOKUP(B59,INDIRECT(\"'\"&A59&\"'!$10:$80\"),MATCH('Technology template'!$A$46,INDIRECT(\"'\"&A59&\"'!$A10:$A$80\"),0),FALSE)*TechnicianHourlyWage+'Labor and Maintenance '!$B$8),0)","v":83.5},1075,107.5,520.93000000000006,null,"SunDanzer BFRV 15 SDD*",275.62,71.666666666666671,347.28666666666669,null,"SunDanzer BFRV 15 SDD*",27.562000000000001,7.166666666666667,34.728666666666669,null,"SunDanzer BFRV 15 SDD*",9,37208.700000000004,9675,46883.700000000004,null,"SunDanzer BFRV 15 SDD*",9,248.05800000000002,64.5,312.55799999999999,null,"SunDanzer BFRV 15 SDD*",{"$f":"IF(F59=0, 'Country Input'!$D$7, ROUNDUP(LitersPerFacility/F59,0)*'Country Input'!$D$7)","v":10},41343,1075,42418,null,"SunDanzer BFRV 15 SDD*",{"$f":"ROUNDUP(LitersPerFacility/F59,0)*'Country Input'!$D$7*ROUNDUP('Total Solution Costs'!$B$2/Calculations!I59,0)","v":10},275.62,7.166666666666667,282.78666666666669,null,null,"SunDanzer BFRV 15 SDD*",{"$f":"(($U59+($O59)*IF(MOD(BH$3,$I59)=1,1,0)+Parts!$E$91*IF($J59=0,0,IF(MOD(BH$3,$I59)=1,IF(PQS!$R59=\"NO\",1,0),IF(MOD(BH$3,Calculations!$J59)=1,1,0)))+Parts!$E$92*IF(Calculations!$K59=0,0,IF(MOD(BH$3,$I59)=1,0,IF(MOD(BH$3,Calculations!$K59)=1,1,0))))*$AU59)*(1+'Country Input'!$C$45)^(Calculations!BH$3-$BH$3)+TrainingCost","v":42418},{"$f":"(($U59+($O59)*IF(MOD(BI$3,$I59)=1,1,0)+Parts!$E$91*IF($J59=0,0,IF(MOD(BI$3,$I59)=1,IF(PQS!$R59=\"NO\",1,0),IF(MOD(BI$3,Calculations!$J59)=1,1,0)))+Parts!$E$92*IF(Calculations!$K59=0,0,IF(MOD(BI$3,$I59)=1,0,IF(MOD(BI$3,Calculations!$K59)=1,1,0))))*$AU59)*(1+'Country Input'!$C$45)^(Calculations!BI$3-$BH$3)","v":1075},{"$f":"(($U59+($O59)*IF(MOD(BJ$3,$I59)=1,1,0)+Parts!$E$91*IF($J59=0,0,IF(MOD(BJ$3,$I59)=1,IF(PQS!$R59=\"NO\",1,0),IF(MOD(BJ$3,Calculations!$J59)=1,1,0)))+Parts!$E$92*IF(Calculations!$K59=0,0,IF(MOD(BJ$3,$I59)=1,0,IF(MOD(BJ$3,Calculations!$K59)=1,1,0))))*$AU59)*(1+'Country Input'!$C$45)^(Calculations!BJ$3-$BH$3)","v":1075},{"$f":"(($U59+($O59)*IF(MOD(BK$3,$I59)=1,1,0)+Parts!$E$91*IF($J59=0,0,IF(MOD(BK$3,$I59)=1,IF(PQS!$R59=\"NO\",1,0),IF(MOD(BK$3,Calculations!$J59)=1,1,0)))+Parts!$E$92*IF(Calculations!$K59=0,0,IF(MOD(BK$3,$I59)=1,0,IF(MOD(BK$3,Calculations!$K59)=1,1,0))))*$AU59)*(1+'Country Input'!$C$45)^(Calculations!BK$3-$BH$3)","v":1075},{"$f":"(($U59+($O59)*IF(MOD(BL$3,$I59)=1,1,0)+Parts!$E$91*IF($J59=0,0,IF(MOD(BL$3,$I59)=1,IF(PQS!$R59=\"NO\",1,0),IF(MOD(BL$3,Calculations!$J59)=1,1,0)))+Parts!$E$92*IF(Calculations!$K59=0,0,IF(MOD(BL$3,$I59)=1,0,IF(MOD(BL$3,Calculations!$K59)=1,1,0))))*$AU59)*(1+'Country Input'!$C$45)^(Calculations!BL$3-$BH$3)","v":1075},{"$f":"(($U59+($O59)*IF(MOD(BM$3,$I59)=1,1,0)+Parts!$E$91*IF($J59=0,0,IF(MOD(BM$3,$I59)=1,IF(PQS!$R59=\"NO\",1,0),IF(MOD(BM$3,Calculations!$J59)=1,1,0)))+Parts!$E$92*IF(Calculations!$K59=0,0,IF(MOD(BM$3,$I59)=1,0,IF(MOD(BM$3,Calculations!$K59)=1,1,0))))*$AU59)*(1+'Country Input'!$C$45)^(Calculations!BM$3-$BH$3)","v":1075},{"$f":"(($U59+($O59)*IF(MOD(BN$3,$I59)=1,1,0)+Parts!$E$91*IF($J59=0,0,IF(MOD(BN$3,$I59)=1,IF(PQS!$R59=\"NO\",1,0),IF(MOD(BN$3,Calculations!$J59)=1,1,0)))+Parts!$E$92*IF(Calculations!$K59=0,0,IF(MOD(BN$3,$I59)=1,0,IF(MOD(BN$3,Calculations!$K59)=1,1,0))))*$AU59)*(1+'Country Input'!$C$45)^(Calculations!BN$3-$BH$3)","v":1075},{"$f":"(($U59+($O59)*IF(MOD(BO$3,$I59)=1,1,0)+Parts!$E$91*IF($J59=0,0,IF(MOD(BO$3,$I59)=1,IF(PQS!$R59=\"NO\",1,0),IF(MOD(BO$3,Calculations!$J59)=1,1,0)))+Parts!$E$92*IF(Calculations!$K59=0,0,IF(MOD(BO$3,$I59)=1,0,IF(MOD(BO$3,Calculations!$K59)=1,1,0))))*$AU59)*(1+'Country Input'!$C$45)^(Calculations!BO$3-$BH$3)","v":1075},{"$f":"(($U59+($O59)*IF(MOD(BP$3,$I59)=1,1,0)+Parts!$E$91*IF($J59=0,0,IF(MOD(BP$3,$I59)=1,IF(PQS!$R59=\"NO\",1,0),IF(MOD(BP$3,Calculations!$J59)=1,1,0)))+Parts!$E$92*IF(Calculations!$K59=0,0,IF(MOD(BP$3,$I59)=1,0,IF(MOD(BP$3,Calculations!$K59)=1,1,0))))*$AU59)*(1+'Country Input'!$C$45)^(Calculations!BP$3-$BH$3)","v":1075},{"$f":"(($U59+($O59)*IF(MOD(BQ$3,$I59)=1,1,0)+Parts!$E$91*IF($J59=0,0,IF(MOD(BQ$3,$I59)=1,IF(PQS!$R59=\"NO\",1,0),IF(MOD(BQ$3,Calculations!$J59)=1,1,0)))+Parts!$E$92*IF(Calculations!$K59=0,0,IF(MOD(BQ$3,$I59)=1,0,IF(MOD(BQ$3,Calculations!$K59)=1,1,0))))*$AU59)*(1+'Country Input'!$C$45)^(Calculations!BQ$3-$BH$3)","v":1075},{"$f":"(($U59+($O59)*IF(MOD(BR$3,$I59)=1,1,0)+Parts!$E$91*IF($J59=0,0,IF(MOD(BR$3,$I59)=1,IF(PQS!$R59=\"NO\",1,0),IF(MOD(BR$3,Calculations!$J59)=1,1,0)))+Parts!$E$92*IF(Calculations!$K59=0,0,IF(MOD(BR$3,$I59)=1,0,IF(MOD(BR$3,Calculations!$K59)=1,1,0))))*$AU59)*(1+'Country Input'!$C$45)^(Calculations!BR$3-$BH$3)","v":42418},{"$f":"(($U59+($O59)*IF(MOD(BS$3,$I59)=1,1,0)+Parts!$E$91*IF($J59=0,0,IF(MOD(BS$3,$I59)=1,IF(PQS!$R59=\"NO\",1,0),IF(MOD(BS$3,Calculations!$J59)=1,1,0)))+Parts!$E$92*IF(Calculations!$K59=0,0,IF(MOD(BS$3,$I59)=1,0,IF(MOD(BS$3,Calculations!$K59)=1,1,0))))*$AU59)*(1+'Country Input'!$C$45)^(Calculations!BS$3-$BH$3)","v":1075},{"$f":"(($U59+($O59)*IF(MOD(BT$3,$I59)=1,1,0)+Parts!$E$91*IF($J59=0,0,IF(MOD(BT$3,$I59)=1,IF(PQS!$R59=\"NO\",1,0),IF(MOD(BT$3,Calculations!$J59)=1,1,0)))+Parts!$E$92*IF(Calculations!$K59=0,0,IF(MOD(BT$3,$I59)=1,0,IF(MOD(BT$3,Calculations!$K59)=1,1,0))))*$AU59)*(1+'Country Input'!$C$45)^(Calculations!BT$3-$BH$3)","v":1075},{"$f":"(($U59+($O59)*IF(MOD(BU$3,$I59)=1,1,0)+Parts!$E$91*IF($J59=0,0,IF(MOD(BU$3,$I59)=1,IF(PQS!$R59=\"NO\",1,0),IF(MOD(BU$3,Calculations!$J59)=1,1,0)))+Parts!$E$92*IF(Calculations!$K59=0,0,IF(MOD(BU$3,$I59)=1,0,IF(MOD(BU$3,Calculations!$K59)=1,1,0))))*$AU59)*(1+'Country Input'!$C$45)^(Calculations!BU$3-$BH$3)","v":1075},{"$f":"(($U59+($O59)*IF(MOD(BV$3,$I59)=1,1,0)+Parts!$E$91*IF($J59=0,0,IF(MOD(BV$3,$I59)=1,IF(PQS!$R59=\"NO\",1,0),IF(MOD(BV$3,Calculations!$J59)=1,1,0)))+Parts!$E$92*IF(Calculations!$K59=0,0,IF(MOD(BV$3,$I59)=1,0,IF(MOD(BV$3,Calculations!$K59)=1,1,0))))*$AU59)*(1+'Country Input'!$C$45)^(Calculations!BV$3-$BH$3)","v":1075},{"$f":"(($U59+($O59)*IF(MOD(BW$3,$I59)=1,1,0)+Parts!$E$91*IF($J59=0,0,IF(MOD(BW$3,$I59)=1,IF(PQS!$R59=\"NO\",1,0),IF(MOD(BW$3,Calculations!$J59)=1,1,0)))+Parts!$E$92*IF(Calculations!$K59=0,0,IF(MOD(BW$3,$I59)=1,0,IF(MOD(BW$3,Calculations!$K59)=1,1,0))))*$AU59)*(1+'Country Input'!$C$45)^(Calculations!BW$3-$BH$3)","v":1075},{"$f":"(($U59+($O59)*IF(MOD(BX$3,$I59)=1,1,0)+Parts!$E$91*IF($J59=0,0,IF(MOD(BX$3,$I59)=1,IF(PQS!$R59=\"NO\",1,0),IF(MOD(BX$3,Calculations!$J59)=1,1,0)))+Parts!$E$92*IF(Calculations!$K59=0,0,IF(MOD(BX$3,$I59)=1,0,IF(MOD(BX$3,Calculations!$K59)=1,1,0))))*$AU59)*(1+'Country Input'!$C$45)^(Calculations!BX$3-$BH$3)","v":1075},{"$f":"(($U59+($O59)*IF(MOD(BY$3,$I59)=1,1,0)+Parts!$E$91*IF($J59=0,0,IF(MOD(BY$3,$I59)=1,IF(PQS!$R59=\"NO\",1,0),IF(MOD(BY$3,Calculations!$J59)=1,1,0)))+Parts!$E$92*IF(Calculations!$K59=0,0,IF(MOD(BY$3,$I59)=1,0,IF(MOD(BY$3,Calculations!$K59)=1,1,0))))*$AU59)*(1+'Country Input'!$C$45)^(Calculations!BY$3-$BH$3)","v":1075},{"$f":"(($U59+($O59)*IF(MOD(BZ$3,$I59)=1,1,0)+Parts!$E$91*IF($J59=0,0,IF(MOD(BZ$3,$I59)=1,IF(PQS!$R59=\"NO\",1,0),IF(MOD(BZ$3,Calculations!$J59)=1,1,0)))+Parts!$E$92*IF(Calculations!$K59=0,0,IF(MOD(BZ$3,$I59)=1,0,IF(MOD(BZ$3,Calculations!$K59)=1,1,0))))*$AU59)*(1+'Country Input'!$C$45)^(Calculations!BZ$3-$BH$3)","v":1075},{"$f":"(($U59+($O59)*IF(MOD(CA$3,$I59)=1,1,0)+Parts!$E$91*IF($J59=0,0,IF(MOD(CA$3,$I59)=1,IF(PQS!$R59=\"NO\",1,0),IF(MOD(CA$3,Calculations!$J59)=1,1,0)))+Parts!$E$92*IF(Calculations!$K59=0,0,IF(MOD(CA$3,$I59)=1,0,IF(MOD(CA$3,Calculations!$K59)=1,1,0))))*$AU59)*(1+'Country Input'!$C$45)^(Calculations!CA$3-$BH$3)","v":1075},null,"SunDanzer BFRV 15 SDD*",42418,1075,1075,1075,1075,1075,1075,1075,1075,1075,42418,1075,1075,1075,1075,1075,1075,1075,1075,1075,{"$f":"SUM(CD59:INDEX($CD59:$CW59,1,'Total Solution Costs'!$B$2))","v":52093},null,"SunDanzer BFRV 15 SDD*",{"$f":"SUM($BH59:BH59)","v":42418},{"$f":"SUM($BH59:BI59)","v":43493},{"$f":"SUM($BH59:BJ59)","v":44568},{"$f":"SUM($BH59:BK59)","v":45643},{"$f":"SUM($BH59:BL59)","v":46718},{"$f":"SUM($BH59:BM59)","v":47793},{"$f":"SUM($BH59:BN59)","v":48868},{"$f":"SUM($BH59:BO59)","v":49943},{"$f":"SUM($BH59:BP59)","v":51018},{"$f":"SUM($BH59:BQ59)","v":52093},{"$f":"SUM($BH59:BR59)","v":94511},{"$f":"SUM($BH59:BS59)","v":95586},{"$f":"SUM($BH59:BT59)","v":96661},{"$f":"SUM($BH59:BU59)","v":97736},{"$f":"SUM($BH59:BV59)","v":98811},{"$f":"SUM($BH59:BW59)","v":99886},{"$f":"SUM($BH59:BX59)","v":100961},{"$f":"SUM($BH59:BY59)","v":102036},{"$f":"SUM($BH59:BZ59)","v":103111},{"$f":"SUM($BH59:CA59)","v":104186}]
[{"$f":"PQS!A60","v":"SDD"},{"$f":"PQS!B60","v":"E003/040"},{"$f":"PQS!E60","v":"VC 200 SDD*"},{"$f":"PQS!F60","v":"Dulas Solar"},{"$f":"PQS!D60","v":"Dulas Solar VC 200 SDD*"},{"$f":"VLOOKUP(E60,PQS!$D$5:$K$107,COLUMN(PQS!$I$3)-COLUMN(PQS!$D$3)+1,FALSE)","v":132},{"$f":"VLOOKUP(E60,PQS!$D$5:$K$107,COLUMN(PQS!$J$3)-COLUMN(PQS!$D$3)+1,FALSE)","v":0},{"$f":"VLOOKUP(E60,PQS!$D$5:$K$107,COLUMN(PQS!$G$3)-COLUMN(PQS!$D$3)+1,FALSE)","v":"Yes"},{"$f":"HLOOKUP(B60,INDIRECT(\"'\"&A60&\"'!$10:$15\"),ROW('Technology template'!$A$11)-ROW('Technology template'!$A$10)+1,FALSE)","v":10},{"$f":"HLOOKUP(B60,INDIRECT(\"'\"&A60&\"'!$10:$15\"),ROW('Technology template'!$A$12)-ROW('Technology template'!$A$10)+1,FALSE)","v":10},{"$f":"HLOOKUP(B60,INDIRECT(\"'\"&A60&\"'!$10:$15\"),ROW('Technology template'!$A$13)-ROW('Technology template'!$A$10)+1,FALSE)","v":0},{"$f":"VLOOKUP(B60,PQS!$B:$Q,MATCH(PQS!$Q$3,PQS!$B$3:$Q$3,0),FALSE)*(1+'Country Input'!$C$47)+HLOOKUP(B60,INDIRECT(\"'\"&A60&\"'!$10:$15\"),ROW('Technology template'!$A$14)-ROW('Technology template'!$A$10)+1,FALSE)*(1+'Country Input'!$C$47)","v":5057.3122000000003},{"$f":"HLOOKUP(B60,INDIRECT(\"'\"&A60&\"'!$10:$80\"),MATCH('Technology template'!$A$27,INDIRECT(\"'\"&A60&\"'!$A$10:$A$80\"),0),FALSE)+'Labor and Maintenance '!$E$18","v":1042},{"$f":"VLOOKUP(B60,PQS!B:T,MATCH(PQS!$T$3,PQS!$B$3:$T$3,0),FALSE)*(1+'Country Input'!$C$47)","v":396.97},6496.2822000000006,649.62822000000006,{"$f":"VLOOKUP(B60,PQS!$B:$AE,COLUMN(PQS!AD58)-1,FALSE)","v":0},{"$f":"IFERROR(1/HLOOKUP(B60,INDIRECT(\"'\"&A60&\"'!$10:$80\"),MATCH('Technology template'!$A$31,INDIRECT(\"'\"&A60&\"'!$A$10:$A$80\"),0),FALSE)*HLOOKUP(B60,INDIRECT(\"'\"&A60&\"'!$10:$80\"),MATCH('Technology template'!$A$41,INDIRECT(\"'\"&A60&\"'!$A10:$A$80\"),0),FALSE),0)*TechnicianHourlyWage+IF(A60=\"Solar w Battery\",1/'Labor and Maintenance '!$E$53*'Labor and Maintenance '!$D$53,0)+IF(A60=\"LT passive\", 1/'Labor and Maintenance '!$E$81*'Labor and Maintenance '!$D$81,0)","v":24},{"$f":"IFERROR(1/HLOOKUP(B60,INDIRECT(\"'\"&A60&\"'!$10:$80\"),MATCH('Technology template'!$A$34,INDIRECT(\"'\"&A60&\"'!$A$10:$A$80\"),0),FALSE)*(HLOOKUP(B60,INDIRECT(\"'\"&A60&\"'!$10:$80\"),MATCH('Technology template'!$A$44,INDIRECT(\"'\"&A60&\"'!$A10:$A$80\"),0),FALSE)*TechnicianHourlyWage+RemoteTravelCostPerDay),0)+IFERROR(1/HLOOKUP(B60,INDIRECT(\"'\"&A60&\"'!$10:$80\"),MATCH('Technology template'!$A$35,INDIRECT(\"'\"&A60&\"'!$A$10:$A$80\"),0),FALSE)*(HLOOKUP(B60,INDIRECT(\"'\"&A60&\"'!$10:$80\"),MATCH('Technology template'!$A$45,INDIRECT(\"'\"&A60&\"'!$A10:$A$80\"),0),FALSE)*TechnicianHourlyWage+RemoteTravelCostPerDay),0)+IFERROR(1/HLOOKUP(B60,INDIRECT(\"'\"&A60&\"'!$10:$80\"),MATCH('Technology template'!$A$37,INDIRECT(\"'\"&A60&\"'!$A$10:$A$80\"),0),FALSE)*(HLOOKUP(B60,INDIRECT(\"'\"&A60&\"'!$10:$80\"),MATCH('Technology template'!$A$46,INDIRECT(\"'\"&A60&\"'!$A10:$A$80\"),0),FALSE)*TechnicianHourlyWage+'Labor and Maintenance '!$B$8),0)","v":83.5},1075,107.5,757.12822000000006,null,"Dulas Solar VC 200 SDD*",49.214259090909096,8.1439393939393945,57.358198484848486,null,"Dulas Solar VC 200 SDD*",4.9214259090909094,0.81439393939393945,5.7358198484848488,null,"Dulas Solar VC 200 SDD*",1,6496.2822000000006,1075,7571.2822000000006,null,"Dulas Solar VC 200 SDD*",1,4.9214259090909094,0.81439393939393945,5.7358198484848488,null,"Dulas Solar VC 200 SDD*",{"$f":"IF(F60=0, 'Country Input'!$D$7, ROUNDUP(LitersPerFacility/F60,0)*'Country Input'!$D$7)","v":10},64962.822000000007,1075,66037.822000000015,null,"Dulas Solar VC 200 SDD*",{"$f":"ROUNDUP(LitersPerFacility/F60,0)*'Country Input'!$D$7*ROUNDUP('Total Solution Costs'!$B$2/Calculations!I60,0)","v":10},49.214259090909096,0.81439393939393945,50.028653030303033,null,null,"Dulas Solar VC 200 SDD*",{"$f":"(($U60+($O60)*IF(MOD(BH$3,$I60)=1,1,0)+Parts!$E$91*IF($J60=0,0,IF(MOD(BH$3,$I60)=1,IF(PQS!$R60=\"NO\",1,0),IF(MOD(BH$3,Calculations!$J60)=1,1,0)))+Parts!$E$92*IF(Calculations!$K60=0,0,IF(MOD(BH$3,$I60)=1,0,IF(MOD(BH$3,Calculations!$K60)=1,1,0))))*$AU60)*(1+'Country Input'!$C$45)^(Calculations!BH$3-$BH$3)+TrainingCost","v":66037.822},{"$f":"(($U60+($O60)*IF(MOD(BI$3,$I60)=1,1,0)+Parts!$E$91*IF($J60=0,0,IF(MOD(BI$3,$I60)=1,IF(PQS!$R60=\"NO\",1,0),IF(MOD(BI$3,Calculations!$J60)=1,1,0)))+Parts!$E$92*IF(Calculations!$K60=0,0,IF(MOD(BI$3,$I60)=1,0,IF(MOD(BI$3,Calculations!$K60)=1,1,0))))*$AU60)*(1+'Country Input'!$C$45)^(Calculations!BI$3-$BH$3)","v":1075},{"$f":"(($U60+($O60)*IF(MOD(BJ$3,$I60)=1,1,0)+Parts!$E$91*IF($J60=0,0,IF(MOD(BJ$3,$I60)=1,IF(PQS!$R60=\"NO\",1,0),IF(MOD(BJ$3,Calculations!$J60)=1,1,0)))+Parts!$E$92*IF(Calculations!$K60=0,0,IF(MOD(BJ$3,$I60)=1,0,IF(MOD(BJ$3,Calculations!$K60)=1,1,0))))*$AU60)*(1+'Country Input'!$C$45)^(Calculations!BJ$3-$BH$3)","v":1075},{"$f":"(($U60+($O60)*IF(MOD(BK$3,$I60)=1,1,0)+Parts!$E$91*IF($J60=0,0,IF(MOD(BK$3,$I60)=1,IF(PQS!$R60=\"NO\",1,0),IF(MOD(BK$3,Calculations!$J60)=1,1,0)))+Parts!$E$92*IF(Calculations!$K60=0,0,IF(MOD(BK$3,$I60)=1,0,IF(MOD(BK$3,Calculations!$K60)=1,1,0))))*$AU60)*(1+'Country Input'!$C$45)^(Calculations!BK$3-$BH$3)","v":1075},{"$f":"(($U60+($O60)*IF(MOD(BL$3,$I60)=1,1,0)+Parts!$E$91*IF($J60=0,0,IF(MOD(BL$3,$I60)=1,IF(PQS!$R60=\"NO\",1,0),IF(MOD(BL$3,Calculations!$J60)=1,1,0)))+Parts!$E$92*IF(Calculations!$K60=0,0,IF(MOD(BL$3,$I60)=1,0,IF(MOD(BL$3,Calculations!$K60)=1,1,0))))*$AU60)*(1+'Country Input'!$C$45)^(Calculations!BL$3-$BH$3)","v":1075},{"$f":"(($U60+($O60)*IF(MOD(BM$3,$I60)=1,1,0)+Parts!$E$91*IF($J60=0,0,IF(MOD(BM$3,$I60)=1,IF(PQS!$R60=\"NO\",1,0),IF(MOD(BM$3,Calculations!$J60)=1,1,0)))+Parts!$E$92*IF(Calculations!$K60=0,0,IF(MOD(BM$3,$I60)=1,0,IF(MOD(BM$3,Calculations!$K60)=1,1,0))))*$AU60)*(1+'Country Input'!$C$45)^(Calculations!BM$3-$BH$3)","v":1075},{"$f":"(($U60+($O60)*IF(MOD(BN$3,$I60)=1,1,0)+Parts!$E$91*IF($J60=0,0,IF(MOD(BN$3,$I60)=1,IF(PQS!$R60=\"NO\",1,0),IF(MOD(BN$3,Calculations!$J60)=1,1,0)))+Parts!$E$92*IF(Calculations!$K60=0,0,IF(MOD(BN$3,$I60)=1,0,IF(MOD(BN$3,Calculations!$K60)=1,1,0))))*$AU60)*(1+'Country Input'!$C$45)^(Calculations!BN$3-$BH$3)","v":1075},{"$f":"(($U60+($O60)*IF(MOD(BO$3,$I60)=1,1,0)+Parts!$E$91*IF($J60=0,0,IF(MOD(BO$3,$I60)=1,IF(PQS!$R60=\"NO\",1,0),IF(MOD(BO$3,Calculations!$J60)=1,1,0)))+Parts!$E$92*IF(Calculations!$K60=0,0,IF(MOD(BO$3,$I60)=1,0,IF(MOD(BO$3,Calculations!$K60)=1,1,0))))*$AU60)*(1+'Country Input'!$C$45)^(Calculations!BO$3-$BH$3)","v":1075},{"$f":"(($U60+($O60)*IF(MOD(BP$3,$I60)=1,1,0)+Parts!$E$91*IF($J60=0,0,IF(MOD(BP$3,$I60)=1,IF(PQS!$R60=\"NO\",1,0),IF(MOD(BP$3,Calculations!$J60)=1,1,0)))+Parts!$E$92*IF(Calculations!$K60=0,0,IF(MOD(BP$3,$I60)=1,0,IF(MOD(BP$3,Calculations!$K60)=1,1,0))))*$AU60)*(1+'Country Input'!$C$45)^(Calculations!BP$3-$BH$3)","v":1075},{"$f":"(($U60+($O60)*IF(MOD(BQ$3,$I60)=1,1,0)+Parts!$E$91*IF($J60=0,0,IF(MOD(BQ$3,$I60)=1,IF(PQS!$R60=\"NO\",1,0),IF(MOD(BQ$3,Calculations!$J60)=1,1,0)))+Parts!$E$92*IF(Calculations!$K60=0,0,IF(MOD(BQ$3,$I60)=1,0,IF(MOD(BQ$3,Calculations!$K60)=1,1,0))))*$AU60)*(1+'Country Input'!$C$45)^(Calculations!BQ$3-$BH$3)","v":1075},{"$f":"(($U60+($O60)*IF(MOD(BR$3,$I60)=1,1,0)+Parts!$E$91*IF($J60=0,0,IF(MOD(BR$3,$I60)=1,IF(PQS!$R60=\"NO\",1,0),IF(MOD(BR$3,Calculations!$J60)=1,1,0)))+Parts!$E$92*IF(Calculations!$K60=0,0,IF(MOD(BR$3,$I60)=1,0,IF(MOD(BR$3,Calculations!$K60)=1,1,0))))*$AU60)*(1+'Country Input'!$C$45)^(Calculations!BR$3-$BH$3)","v":66037.822},{"$f":"(($U60+($O60)*IF(MOD(BS$3,$I60)=1,1,0)+Parts!$E$91*IF($J60=0,0,IF(MOD(BS$3,$I60)=1,IF(PQS!$R60=\"NO\",1,0),IF(MOD(BS$3,Calculations!$J60)=1,1,0)))+Parts!$E$92*IF(Calculations!$K60=0,0,IF(MOD(BS$3,$I60)=1,0,IF(MOD(BS$3,Calculations!$K60)=1,1,0))))*$AU60)*(1+'Country Input'!$C$45)^(Calculations!BS$3-$BH$3)","v":1075},{"$f":"(($U60+($O60)*IF(MOD(BT$3,$I60)=1,1,0)+Parts!$E$91*IF($J60=0,0,IF(MOD(BT$3,$I60)=1,IF(PQS!$R60=\"NO\",1,0),IF(MOD(BT$3,Calculations!$J60)=1,1,0)))+Parts!$E$92*IF(Calculations!$K60=0,0,IF(MOD(BT$3,$I60)=1,0,IF(MOD(BT$3,Calculations!$K60)=1,1,0))))*$AU60)*(1+'Country Input'!$C$45)^(Calculations!BT$3-$BH$3)","v":1075},{"$f":"(($U60+($O60)*IF(MOD(BU$3,$I60)=1,1,0)+Parts!$E$91*IF($J60=0,0,IF(MOD(BU$3,$I60)=1,IF(PQS!$R60=\"NO\",1,0),IF(MOD(BU$3,Calculations!$J60)=1,1,0)))+Parts!$E$92*IF(Calculations!$K60=0,0,IF(MOD(BU$3,$I60)=1,0,IF(MOD(BU$3,Calculations!$K60)=1,1,0))))*$AU60)*(1+'Country Input'!$C$45)^(Calculations!BU$3-$BH$3)","v":1075},{"$f":"(($U60+($O60)*IF(MOD(BV$3,$I60)=1,1,0)+Parts!$E$91*IF($J60=0,0,IF(MOD(BV$3,$I60)=1,IF(PQS!$R60=\"NO\",1,0),IF(MOD(BV$3,Calculations!$J60)=1,1,0)))+Parts!$E$92*IF(Calculations!$K60=0,0,IF(MOD(BV$3,$I60)=1,0,IF(MOD(BV$3,Calculations!$K60)=1,1,0))))*$AU60)*(1+'Country Input'!$C$45)^(Calculations!BV$3-$BH$3)","v":1075},{"$f":"(($U60+($O60)*IF(MOD(BW$3,$I60)=1,1,0)+Parts!$E$91*IF($J60=0,0,IF(MOD(BW$3,$I60)=1,IF(PQS!$R60=\"NO\",1,0),IF(MOD(BW$3,Calculations!$J60)=1,1,0)))+Parts!$E$92*IF(Calculations!$K60=0,0,IF(MOD(BW$3,$I60)=1,0,IF(MOD(BW$3,Calculations!$K60)=1,1,0))))*$AU60)*(1+'Country Input'!$C$45)^(Calculations!BW$3-$BH$3)","v":1075},{"$f":"(($U60+($O60)*IF(MOD(BX$3,$I60)=1,1,0)+Parts!$E$91*IF($J60=0,0,IF(MOD(BX$3,$I60)=1,IF(PQS!$R60=\"NO\",1,0),IF(MOD(BX$3,Calculations!$J60)=1,1,0)))+Parts!$E$92*IF(Calculations!$K60=0,0,IF(MOD(BX$3,$I60)=1,0,IF(MOD(BX$3,Calculations!$K60)=1,1,0))))*$AU60)*(1+'Country Input'!$C$45)^(Calculations!BX$3-$BH$3)","v":1075},{"$f":"(($U60+($O60)*IF(MOD(BY$3,$I60)=1,1,0)+Parts!$E$91*IF($J60=0,0,IF(MOD(BY$3,$I60)=1,IF(PQS!$R60=\"NO\",1,0),IF(MOD(BY$3,Calculations!$J60)=1,1,0)))+Parts!$E$92*IF(Calculations!$K60=0,0,IF(MOD(BY$3,$I60)=1,0,IF(MOD(BY$3,Calculations!$K60)=1,1,0))))*$AU60)*(1+'Country Input'!$C$45)^(Calculations!BY$3-$BH$3)","v":1075},{"$f":"(($U60+($O60)*IF(MOD(BZ$3,$I60)=1,1,0)+Parts!$E$91*IF($J60=0,0,IF(MOD(BZ$3,$I60)=1,IF(PQS!$R60=\"NO\",1,0),IF(MOD(BZ$3,Calculations!$J60)=1,1,0)))+Parts!$E$92*IF(Calculations!$K60=0,0,IF(MOD(BZ$3,$I60)=1,0,IF(MOD(BZ$3,Calculations!$K60)=1,1,0))))*$AU60)*(1+'Country Input'!$C$45)^(Calculations!BZ$3-$BH$3)","v":1075},{"$f":"(($U60+($O60)*IF(MOD(CA$3,$I60)=1,1,0)+Parts!$E$91*IF($J60=0,0,IF(MOD(CA$3,$I60)=1,IF(PQS!$R60=\"NO\",1,0),IF(MOD(CA$3,Calculations!$J60)=1,1,0)))+Parts!$E$92*IF(Calculations!$K60=0,0,IF(MOD(CA$3,$I60)=1,0,IF(MOD(CA$3,Calculations!$K60)=1,1,0))))*$AU60)*(1+'Country Input'!$C$45)^(Calculations!CA$3-$BH$3)","v":1075},null,"Dulas Solar VC 200 SDD*",66037.822,1075,1075,1075,1075,1075,1075,1075,1075,1075,66037.822,1075,1075,1075,1075,1075,1075,1075,1075,1075,{"$f":"SUM(CD60:INDEX($CD60:$CW60,1,'Total Solution Costs'!$B$2))","v":75712.822},null,"Dulas Solar VC 200 SDD*",{"$f":"SUM($BH60:BH60)","v":66037.822},{"$f":"SUM($BH60:BI60)","v":67112.822},{"$f":"SUM($BH60:BJ60)","v":68187.822},{"$f":"SUM($BH60:BK60)","v":69262.822},{"$f":"SUM($BH60:BL60)","v":70337.822},{"$f":"SUM($BH60:BM60)","v":71412.822},{"$f":"SUM($BH60:BN60)","v":72487.822},{"$f":"SUM($BH60:BO60)","v":73562.822},{"$f":"SUM($BH60:BP60)","v":74637.822},{"$f":"SUM($BH60:BQ60)","v":75712.822},{"$f":"SUM($BH60:BR60)","v":141750.644},{"$f":"SUM($BH60:BS60)","v":142825.644},{"$f":"SUM($BH60:BT60)","v":143900.644},{"$f":"SUM($BH60:BU60)","v":144975.644},{"$f":"SUM($BH60:BV60)","v":146050.644},{"$f":"SUM($BH60:BW60)","v":147125.644},{"$f":"SUM($BH60:BX60)","v":148200.644},{"$f":"SUM($BH60:BY60)","v":149275.644},{"$f":"SUM($BH60:BZ60)","v":150350.644},{"$f":"SUM($BH60:CA60)","v":151425.644}]
[{"$f":"PQS!A61","v":"SDD"},{"$f":"PQS!B61","v":"E003/041"},{"$f":"PQS!E61","v":"VLS 054 SDD*"},{"$f":"PQS!F61","v":"Vestfrost"},{"$f":"PQS!D61","v":"Vestfrost VLS 054 SDD*"},{"$f":"VLOOKUP(E61,PQS!$D$5:$K$107,COLUMN(PQS!$I$3)-COLUMN(PQS!$D$3)+1,FALSE)","v":55.5},{"$f":"VLOOKUP(E61,PQS!$D$5:$K$107,COLUMN(PQS!$J$3)-COLUMN(PQS!$D$3)+1,FALSE)","v":0},{"$f":"VLOOKUP(E61,PQS!$D$5:$K$107,COLUMN(PQS!$G$3)-COLUMN(PQS!$D$3)+1,FALSE)","v":"Yes"},{"$f":"HLOOKUP(B61,INDIRECT(\"'\"&A61&\"'!$10:$15\"),ROW('Technology template'!$A$11)-ROW('Technology template'!$A$10)+1,FALSE)","v":10},{"$f":"HLOOKUP(B61,INDIRECT(\"'\"&A61&\"'!$10:$15\"),ROW('Technology template'!$A$12)-ROW('Technology template'!$A$10)+1,FALSE)","v":10},{"$f":"HLOOKUP(B61,INDIRECT(\"'\"&A61&\"'!$10:$15\"),ROW('Technology template'!$A$13)-ROW('Technology template'!$A$10)+1,FALSE)","v":0},{"$f":"VLOOKUP(B61,PQS!$B:$Q,MATCH(PQS!$Q$3,PQS!$B$3:$Q$3,0),FALSE)*(1+'Country Input'!$C$47)+HLOOKUP(B61,INDIRECT(\"'\"&A61&\"'!$10:$15\"),ROW('Technology template'!$A$14)-ROW('Technology template'!$A$10)+1,FALSE)*(1+'Country Input'!$C$47)","v":3280.4702000000002},{"$f":"HLOOKUP(B61,INDIRECT(\"'\"&A61&\"'!$10:$80\"),MATCH('Technology template'!$A$27,INDIRECT(\"'\"&A61&\"'!$A$10:$A$80\"),0),FALSE)+'Labor and Maintenance '!$E$18","v":1042},{"$f":"VLOOKUP(B61,PQS!B:T,MATCH(PQS!$T$3,PQS!$B$3:$T$3,0),FALSE)*(1+'Country Input'!$C$47)","v":546.71478800000011},4869.184988,486.91849880000001,{"$f":"VLOOKUP(B61,PQS!$B:$AE,COLUMN(PQS!AD59)-1,FALSE)","v":0},{"$f":"IFERROR(1/HLOOKUP(B61,INDIRECT(\"'\"&A61&\"'!$10:$80\"),MATCH('Technology template'!$A$31,INDIRECT(\"'\"&A61&\"'!$A$10:$A$80\"),0),FALSE)*HLOOKUP(B61,INDIRECT(\"'\"&A61&\"'!$10:$80\"),MATCH('Technology template'!$A$41,INDIRECT(\"'\"&A61&\"'!$A10:$A$80\"),0),FALSE),0)*TechnicianHourlyWage+IF(A61=\"Solar w Battery\",1/'Labor and Maintenance '!$E$53*'Labor and Maintenance '!$D$53,0)+IF(A61=\"LT passive\", 1/'Labor and Maintenance '!$E$81*'Labor and Maintenance '!$D$81,0)","v":24},{"$f":"IFERROR(1/HLOOKUP(B61,INDIRECT(\"'\"&A61&\"'!$10:$80\"),MATCH('Technology template'!$A$34,INDIRECT(\"'\"&A61&\"'!$A$10:$A$80\"),0),FALSE)*(HLOOKUP(B61,INDIRECT(\"'\"&A61&\"'!$10:$80\"),MATCH('Technology template'!$A$44,INDIRECT(\"'\"&A61&\"'!$A10:$A$80\"),0),FALSE)*TechnicianHourlyWage+RemoteTravelCostPerDay),0)+IFERROR(1/HLOOKUP(B61,INDIRECT(\"'\"&A61&\"'!$10:$80\"),MATCH('Technology template'!$A$35,INDIRECT(\"'\"&A61&\"'!$A$10:$A$80\"),0),FALSE)*(HLOOKUP(B61,INDIRECT(\"'\"&A61&\"'!$10:$80\"),MATCH('Technology template'!$A$45,INDIRECT(\"'\"&A61&\"'!$A10:$A$80\"),0),FALSE)*TechnicianHourlyWage+RemoteTravelCostPerDay),0)+IFERROR(1/HLOOKUP(B61,INDIRECT(\"'\"&A61&\"'!$10:$80\"),MATCH('Technology template'!$A$37,INDIRECT(\"'\"&A61&\"'!$A$10:$A$80\"),0),FALSE)*(HLOOKUP(B61,INDIRECT(\"'\"&A61&\"'!$10:$80\"),MATCH('Technology template'!$A$46,INDIRECT(\"'\"&A61&\"'!$A10:$A$80\"),0),FALSE)*TechnicianHourlyWage+'Labor and Maintenance '!$B$8),0)","v":83.5},1075,107.5,594.41849879999995,null,"Vestfrost VLS 054 SDD*",87.733062846846849,19.36936936936937,107.10243221621622,null,"Vestfrost VLS 054 SDD*",8.7733062846846845,1.9369369369369369,10.710243221621621,null,"Vestfrost VLS 054 SDD*",3,14607.554963999999,3225,17832.554963999999,null,"Vestfrost VLS 054 SDD*",3,26.319918854054052,5.8108108108108105,32.130729664864859,null,"Vestfrost VLS 054 SDD*",{"$f":"IF(F61=0, 'Country Input'!$D$7, ROUNDUP(LitersPerFacility/F61,0)*'Country Input'!$D$7)","v":10},48691.849880000002,1075,49766.849880000002,null,"Vestfrost VLS 054 SDD*",{"$f":"ROUNDUP(LitersPerFacility/F61,0)*'Country Input'!$D$7*ROUNDUP('Total Solution Costs'!$B$2/Calculations!I61,0)","v":10},87.733062846846849,1.9369369369369369,89.66999978378378,null,null,"Vestfrost VLS 054 SDD*",{"$f":"(($U61+($O61)*IF(MOD(BH$3,$I61)=1,1,0)+Parts!$E$91*IF($J61=0,0,IF(MOD(BH$3,$I61)=1,IF(PQS!$R61=\"NO\",1,0),IF(MOD(BH$3,Calculations!$J61)=1,1,0)))+Parts!$E$92*IF(Calculations!$K61=0,0,IF(MOD(BH$3,$I61)=1,0,IF(MOD(BH$3,Calculations!$K61)=1,1,0))))*$AU61)*(1+'Country Input'!$C$45)^(Calculations!BH$3-$BH$3)+TrainingCost","v":49766.849880000002},{"$f":"(($U61+($O61)*IF(MOD(BI$3,$I61)=1,1,0)+Parts!$E$91*IF($J61=0,0,IF(MOD(BI$3,$I61)=1,IF(PQS!$R61=\"NO\",1,0),IF(MOD(BI$3,Calculations!$J61)=1,1,0)))+Parts!$E$92*IF(Calculations!$K61=0,0,IF(MOD(BI$3,$I61)=1,0,IF(MOD(BI$3,Calculations!$K61)=1,1,0))))*$AU61)*(1+'Country Input'!$C$45)^(Calculations!BI$3-$BH$3)","v":1075},{"$f":"(($U61+($O61)*IF(MOD(BJ$3,$I61)=1,1,0)+Parts!$E$91*IF($J61=0,0,IF(MOD(BJ$3,$I61)=1,IF(PQS!$R61=\"NO\",1,0),IF(MOD(BJ$3,Calculations!$J61)=1,1,0)))+Parts!$E$92*IF(Calculations!$K61=0,0,IF(MOD(BJ$3,$I61)=1,0,IF(MOD(BJ$3,Calculations!$K61)=1,1,0))))*$AU61)*(1+'Country Input'!$C$45)^(Calculations!BJ$3-$BH$3)","v":1075},{"$f":"(($U61+($O61)*IF(MOD(BK$3,$I61)=1,1,0)+Parts!$E$91*IF($J61=0,0,IF(MOD(BK$3,$I61)=1,IF(PQS!$R61=\"NO\",1,0),IF(MOD(BK$3,Calculations!$J61)=1,1,0)))+Parts!$E$92*IF(Calculations!$K61=0,0,IF(MOD(BK$3,$I61)=1,0,IF(MOD(BK$3,Calculations!$K61)=1,1,0))))*$AU61)*(1+'Country Input'!$C$45)^(Calculations!BK$3-$BH$3)","v":1075},{"$f":"(($U61+($O61)*IF(MOD(BL$3,$I61)=1,1,0)+Parts!$E$91*IF($J61=0,0,IF(MOD(BL$3,$I61)=1,IF(PQS!$R61=\"NO\",1,0),IF(MOD(BL$3,Calculations!$J61)=1,1,0)))+Parts!$E$92*IF(Calculations!$K61=0,0,IF(MOD(BL$3,$I61)=1,0,IF(MOD(BL$3,Calculations!$K61)=1,1,0))))*$AU61)*(1+'Country Input'!$C$45)^(Calculations!BL$3-$BH$3)","v":1075},{"$f":"(($U61+($O61)*IF(MOD(BM$3,$I61)=1,1,0)+Parts!$E$91*IF($J61=0,0,IF(MOD(BM$3,$I61)=1,IF(PQS!$R61=\"NO\",1,0),IF(MOD(BM$3,Calculations!$J61)=1,1,0)))+Parts!$E$92*IF(Calculations!$K61=0,0,IF(MOD(BM$3,$I61)=1,0,IF(MOD(BM$3,Calculations!$K61)=1,1,0))))*$AU61)*(1+'Country Input'!$C$45)^(Calculations!BM$3-$BH$3)","v":1075},{"$f":"(($U61+($O61)*IF(MOD(BN$3,$I61)=1,1,0)+Parts!$E$91*IF($J61=0,0,IF(MOD(BN$3,$I61)=1,IF(PQS!$R61=\"NO\",1,0),IF(MOD(BN$3,Calculations!$J61)=1,1,0)))+Parts!$E$92*IF(Calculations!$K61=0,0,IF(MOD(BN$3,$I61)=1,0,IF(MOD(BN$3,Calculations!$K61)=1,1,0))))*$AU61)*(1+'Country Input'!$C$45)^(Calculations!BN$3-$BH$3)","v":1075},{"$f":"(($U61+($O61)*IF(MOD(BO$3,$I61)=1,1,0)+Parts!$E$91*IF($J61=0,0,IF(MOD(BO$3,$I61)=1,IF(PQS!$R61=\"NO\",1,0),IF(MOD(BO$3,Calculations!$J61)=1,1,0)))+Parts!$E$92*IF(Calculations!$K61=0,0,IF(MOD(BO$3,$I61)=1,0,IF(MOD(BO$3,Calculations!$K61)=1,1,0))))*$AU61)*(1+'Country Input'!$C$45)^(Calculations!BO$3-$BH$3)","v":1075},{"$f":"(($U61+($O61)*IF(MOD(BP$3,$I61)=1,1,0)+Parts!$E$91*IF($J61=0,0,IF(MOD(BP$3,$I61)=1,IF(PQS!$R61=\"NO\",1,0),IF(MOD(BP$3,Calculations!$J61)=1,1,0)))+Parts!$E$92*IF(Calculations!$K61=0,0,IF(MOD(BP$3,$I61)=1,0,IF(MOD(BP$3,Calculations!$K61)=1,1,0))))*$AU61)*(1+'Country Input'!$C$45)^(Calculations!BP$3-$BH$3)","v":1075},{"$f":"(($U61+($O61)*IF(MOD(BQ$3,$I61)=1,1,0)+Parts!$E$91*IF($J61=0,0,IF(MOD(BQ$3,$I61)=1,IF(PQS!$R61=\"NO\",1,0),IF(MOD(BQ$3,Calculations!$J61)=1,1,0)))+Parts!$E$92*IF(Calculations!$K61=0,0,IF(MOD(BQ$3,$I61)=1,0,IF(MOD(BQ$3,Calculations!$K61)=1,1,0))))*$AU61)*(1+'Country Input'!$C$45)^(Calculations!BQ$3-$BH$3)","v":1075},{"$f":"(($U61+($O61)*IF(MOD(BR$3,$I61)=1,1,0)+Parts!$E$91*IF($J61=0,0,IF(MOD(BR$3,$I61)=1,IF(PQS!$R61=\"NO\",1,0),IF(MOD(BR$3,Calculations!$J61)=1,1,0)))+Parts!$E$92*IF(Calculations!$K61=0,0,IF(MOD(BR$3,$I61)=1,0,IF(MOD(BR$3,Calculations!$K61)=1,1,0))))*$AU61)*(1+'Country Input'!$C$45)^(Calculations!BR$3-$BH$3)","v":49766.849880000002},{"$f":"(($U61+($O61)*IF(MOD(BS$3,$I61)=1,1,0)+Parts!$E$91*IF($J61=0,0,IF(MOD(BS$3,$I61)=1,IF(PQS!$R61=\"NO\",1,0),IF(MOD(BS$3,Calculations!$J61)=1,1,0)))+Parts!$E$92*IF(Calculations!$K61=0,0,IF(MOD(BS$3,$I61)=1,0,IF(MOD(BS$3,Calculations!$K61)=1,1,0))))*$AU61)*(1+'Country Input'!$C$45)^(Calculations!BS$3-$BH$3)","v":1075},{"$f":"(($U61+($O61)*IF(MOD(BT$3,$I61)=1,1,0)+Parts!$E$91*IF($J61=0,0,IF(MOD(BT$3,$I61)=1,IF(PQS!$R61=\"NO\",1,0),IF(MOD(BT$3,Calculations!$J61)=1,1,0)))+Parts!$E$92*IF(Calculations!$K61=0,0,IF(MOD(BT$3,$I61)=1,0,IF(MOD(BT$3,Calculations!$K61)=1,1,0))))*$AU61)*(1+'Country Input'!$C$45)^(Calculations!BT$3-$BH$3)","v":1075},{"$f":"(($U61+($O61)*IF(MOD(BU$3,$I61)=1,1,0)+Parts!$E$91*IF($J61=0,0,IF(MOD(BU$3,$I61)=1,IF(PQS!$R61=\"NO\",1,0),IF(MOD(BU$3,Calculations!$J61)=1,1,0)))+Parts!$E$92*IF(Calculations!$K61=0,0,IF(MOD(BU$3,$I61)=1,0,IF(MOD(BU$3,Calculations!$K61)=1,1,0))))*$AU61)*(1+'Country Input'!$C$45)^(Calculations!BU$3-$BH$3)","v":1075},{"$f":"(($U61+($O61)*IF(MOD(BV$3,$I61)=1,1,0)+Parts!$E$91*IF($J61=0,0,IF(MOD(BV$3,$I61)=1,IF(PQS!$R61=\"NO\",1,0),IF(MOD(BV$3,Calculations!$J61)=1,1,0)))+Parts!$E$92*IF(Calculations!$K61=0,0,IF(MOD(BV$3,$I61)=1,0,IF(MOD(BV$3,Calculations!$K61)=1,1,0))))*$AU61)*(1+'Country Input'!$C$45)^(Calculations!BV$3-$BH$3)","v":1075},{"$f":"(($U61+($O61)*IF(MOD(BW$3,$I61)=1,1,0)+Parts!$E$91*IF($J61=0,0,IF(MOD(BW$3,$I61)=1,IF(PQS!$R61=\"NO\",1,0),IF(MOD(BW$3,Calculations!$J61)=1,1,0)))+Parts!$E$92*IF(Calculations!$K61=0,0,IF(MOD(BW$3,$I61)=1,0,IF(MOD(BW$3,Calculations!$K61)=1,1,0))))*$AU61)*(1+'Country Input'!$C$45)^(Calculations!BW$3-$BH$3)","v":1075},{"$f":"(($U61+($O61)*IF(MOD(BX$3,$I61)=1,1,0)+Parts!$E$91*IF($J61=0,0,IF(MOD(BX$3,$I61)=1,IF(PQS!$R61=\"NO\",1,0),IF(MOD(BX$3,Calculations!$J61)=1,1,0)))+Parts!$E$92*IF(Calculations!$K61=0,0,IF(MOD(BX$3,$I61)=1,0,IF(MOD(BX$3,Calculations!$K61)=1,1,0))))*$AU61)*(1+'Country Input'!$C$45)^(Calculations!BX$3-$BH$3)","v":1075},{"$f":"(($U61+($O61)*IF(MOD(BY$3,$I61)=1,1,0)+Parts!$E$91*IF($J61=0,0,IF(MOD(BY$3,$I61)=1,IF(PQS!$R61=\"NO\",1,0),IF(MOD(BY$3,Calculations!$J61)=1,1,0)))+Parts!$E$92*IF(Calculations!$K61=0,0,IF(MOD(BY$3,$I61)=1,0,IF(MOD(BY$3,Calculations!$K61)=1,1,0))))*$AU61)*(1+'Country Input'!$C$45)^(Calculations!BY$3-$BH$3)","v":1075},{"$f":"(($U61+($O61)*IF(MOD(BZ$3,$I61)=1,1,0)+Parts!$E$91*IF($J61=0,0,IF(MOD(BZ$3,$I61)=1,IF(PQS!$R61=\"NO\",1,0),IF(MOD(BZ$3,Calculations!$J61)=1,1,0)))+Parts!$E$92*IF(Calculations!$K61=0,0,IF(MOD(BZ$3,$I61)=1,0,IF(MOD(BZ$3,Calculations!$K61)=1,1,0))))*$AU61)*(1+'Country Input'!$C$45)^(Calculations!BZ$3-$BH$3)","v":1075},{"$f":"(($U61+($O61)*IF(MOD(CA$3,$I61)=1,1,0)+Parts!$E$91*IF($J61=0,0,IF(MOD(CA$3,$I61)=1,IF(PQS!$R61=\"NO\",1,0),IF(MOD(CA$3,Calculations!$J61)=1,1,0)))+Parts!$E$92*IF(Calculations!$K61=0,0,IF(MOD(CA$3,$I61)=1,0,IF(MOD(CA$3,Calculations!$K61)=1,1,0))))*$AU61)*(1+'Country Input'!$C$45)^(Calculations!CA$3-$BH$3)","v":1075},null,"Vestfrost VLS 054 SDD*",49766.849880000002,1075,1075,1075,1075,1075,1075,1075,1075,1075,49766.849880000002,1075,1075,1075,1075,1075,1075,1075,1075,1075,{"$f":"SUM(CD61:INDEX($CD61:$CW61,1,'Total Solution Costs'!$B$2))","v":59441.849880000002},null,"Vestfrost VLS 054 SDD*",{"$f":"SUM($BH61:BH61)","v":49766.849880000002},{"$f":"SUM($BH61:BI61)","v":50841.849880000002},{"$f":"SUM($BH61:BJ61)","v":51916.849880000002},{"$f":"SUM($BH61:BK61)","v":52991.849880000002},{"$f":"SUM($BH61:BL61)","v":54066.849880000002},{"$f":"SUM($BH61:BM61)","v":55141.849880000002},{"$f":"SUM($BH61:BN61)","v":56216.849880000002},{"$f":"SUM($BH61:BO61)","v":57291.849880000002},{"$f":"SUM($BH61:BP61)","v":58366.849880000002},{"$f":"SUM($BH61:BQ61)","v":59441.849880000002},{"$f":"SUM($BH61:BR61)","v":109208.69976},{"$f":"SUM($BH61:BS61)","v":110283.69976},{"$f":"SUM($BH61:BT61)","v":111358.69976},{"$f":"SUM($BH61:BU61)","v":112433.69976},{"$f":"SUM($BH61:BV61)","v":113508.69976},{"$f":"SUM($BH61:BW61)","v":114583.69976},{"$f":"SUM($BH61:BX61)","v":115658.69976},{"$f":"SUM($BH61:BY61)","v":116733.69976},{"$f":"SUM($BH61:BZ61)","v":117808.69976},{"$f":"SUM($BH61:CA61)","v":118883.69976}]
[{"$f":"PQS!A62","v":"SDD"},{"$f":"PQS!B62","v":"E003/042"},{"$f":"PQS!E62","v":"TCW 40 SDD*"},{"$f":"PQS!F62","v":"B Medical"},{"$f":"PQS!D62","v":"B Medical TCW 40 SDD*"},{"$f":"VLOOKUP(E62,PQS!$D$5:$K$107,COLUMN(PQS!$I$3)-COLUMN(PQS!$D$3)+1,FALSE)","v":36},{"$f":"VLOOKUP(E62,PQS!$D$5:$K$107,COLUMN(PQS!$J$3)-COLUMN(PQS!$D$3)+1,FALSE)","v":4.8},{"$f":"VLOOKUP(E62,PQS!$D$5:$K$107,COLUMN(PQS!$G$3)-COLUMN(PQS!$D$3)+1,FALSE)","v":"Yes"},{"$f":"HLOOKUP(B62,INDIRECT(\"'\"&A62&\"'!$10:$15\"),ROW('Technology template'!$A$11)-ROW('Technology template'!$A$10)+1,FALSE)","v":10},{"$f":"HLOOKUP(B62,INDIRECT(\"'\"&A62&\"'!$10:$15\"),ROW('Technology template'!$A$12)-ROW('Technology template'!$A$10)+1,FALSE)","v":10},{"$f":"HLOOKUP(B62,INDIRECT(\"'\"&A62&\"'!$10:$15\"),ROW('Technology template'!$A$13)-ROW('Technology template'!$A$10)+1,FALSE)","v":0},{"$f":"VLOOKUP(B62,PQS!$B:$Q,MATCH(PQS!$Q$3,PQS!$B$3:$Q$3,0),FALSE)*(1+'Country Input'!$C$47)+HLOOKUP(B62,INDIRECT(\"'\"&A62&\"'!$10:$15\"),ROW('Technology template'!$A$14)-ROW('Technology template'!$A$10)+1,FALSE)*(1+'Country Input'!$C$47)","v":6468.8882999999996},{"$f":"HLOOKUP(B62,INDIRECT(\"'\"&A62&\"'!$10:$80\"),MATCH('Technology template'!$A$27,INDIRECT(\"'\"&A62&\"'!$A$10:$A$80\"),0),FALSE)+'Labor and Maintenance '!$E$18","v":1042},{"$f":"VLOOKUP(B62,PQS!B:T,MATCH(PQS!$T$3,PQS!$B$3:$T$3,0),FALSE)*(1+'Country Input'!$C$47)","v":851.27070700000036},8362.1590070000002,836.21590070000002,{"$f":"VLOOKUP(B62,PQS!$B:$AE,COLUMN(PQS!AD60)-1,FALSE)","v":0},{"$f":"IFERROR(1/HLOOKUP(B62,INDIRECT(\"'\"&A62&\"'!$10:$80\"),MATCH('Technology template'!$A$31,INDIRECT(\"'\"&A62&\"'!$A$10:$A$80\"),0),FALSE)*HLOOKUP(B62,INDIRECT(\"'\"&A62&\"'!$10:$80\"),MATCH('Technology template'!$A$41,INDIRECT(\"'\"&A62&\"'!$A10:$A$80\"),0),FALSE),0)*TechnicianHourlyWage+IF(A62=\"Solar w Battery\",1/'Labor and Maintenance '!$E$53*'Labor and Maintenance '!$D$53,0)+IF(A62=\"LT passive\", 1/'Labor and Maintenance '!$E$81*'Labor and Maintenance '!$D$81,0)","v":24},{"$f":"IFERROR(1/HLOOKUP(B62,INDIRECT(\"'\"&A62&\"'!$10:$80\"),MATCH('Technology template'!$A$34,INDIRECT(\"'\"&A62&\"'!$A$10:$A$80\"),0),FALSE)*(HLOOKUP(B62,INDIRECT(\"'\"&A62&\"'!$10:$80\"),MATCH('Technology template'!$A$44,INDIRECT(\"'\"&A62&\"'!$A10:$A$80\"),0),FALSE)*TechnicianHourlyWage+RemoteTravelCostPerDay),0)+IFERROR(1/HLOOKUP(B62,INDIRECT(\"'\"&A62&\"'!$10:$80\"),MATCH('Technology template'!$A$35,INDIRECT(\"'\"&A62&\"'!$A$10:$A$80\"),0),FALSE)*(HLOOKUP(B62,INDIRECT(\"'\"&A62&\"'!$10:$80\"),MATCH('Technology template'!$A$45,INDIRECT(\"'\"&A62&\"'!$A10:$A$80\"),0),FALSE)*TechnicianHourlyWage+RemoteTravelCostPerDay),0)+IFERROR(1/HLOOKUP(B62,INDIRECT(\"'\"&A62&\"'!$10:$80\"),MATCH('Technology template'!$A$37,INDIRECT(\"'\"&A62&\"'!$A$10:$A$80\"),0),FALSE)*(HLOOKUP(B62,INDIRECT(\"'\"&A62&\"'!$10:$80\"),MATCH('Technology template'!$A$46,INDIRECT(\"'\"&A62&\"'!$A10:$A$80\"),0),FALSE)*TechnicianHourlyWage+'Labor and Maintenance '!$B$8),0)","v":83.5},1075,107.5,943.71590070000002,null,"B Medical TCW 40 SDD*",232.28219463888888,29.861111111111111,262.14330574999997,null,"B Medical TCW 40 SDD*",23.228219463888891,2.9861111111111112,26.214330575000002,null,"B Medical TCW 40 SDD*",4,33448.636028000001,4300,37748.636028000001,null,"B Medical TCW 40 SDD*",4,92.912877855555564,11.944444444444445,104.85732230000001,null,"B Medical TCW 40 SDD*",{"$f":"IF(F62=0, 'Country Input'!$D$7, ROUNDUP(LitersPerFacility/F62,0)*'Country Input'!$D$7)","v":10},83621.590070000006,1075,84696.590070000006,null,"B Medical TCW 40 SDD*",{"$f":"ROUNDUP(LitersPerFacility/F62,0)*'Country Input'!$D$7*ROUNDUP('Total Solution Costs'!$B$2/Calculations!I62,0)","v":10},232.28219463888891,2.9861111111111112,235.26830575000002,null,null,"B Medical TCW 40 SDD*",{"$f":"(($U62+($O62)*IF(MOD(BH$3,$I62)=1,1,0)+Parts!$E$91*IF($J62=0,0,IF(MOD(BH$3,$I62)=1,IF(PQS!$R62=\"NO\",1,0),IF(MOD(BH$3,Calculations!$J62)=1,1,0)))+Parts!$E$92*IF(Calculations!$K62=0,0,IF(MOD(BH$3,$I62)=1,0,IF(MOD(BH$3,Calculations!$K62)=1,1,0))))*$AU62)*(1+'Country Input'!$C$45)^(Calculations!BH$3-$BH$3)+TrainingCost","v":84696.590070000006},{"$f":"(($U62+($O62)*IF(MOD(BI$3,$I62)=1,1,0)+Parts!$E$91*IF($J62=0,0,IF(MOD(BI$3,$I62)=1,IF(PQS!$R62=\"NO\",1,0),IF(MOD(BI$3,Calculations!$J62)=1,1,0)))+Parts!$E$92*IF(Calculations!$K62=0,0,IF(MOD(BI$3,$I62)=1,0,IF(MOD(BI$3,Calculations!$K62)=1,1,0))))*$AU62)*(1+'Country Input'!$C$45)^(Calculations!BI$3-$BH$3)","v":1075},{"$f":"(($U62+($O62)*IF(MOD(BJ$3,$I62)=1,1,0)+Parts!$E$91*IF($J62=0,0,IF(MOD(BJ$3,$I62)=1,IF(PQS!$R62=\"NO\",1,0),IF(MOD(BJ$3,Calculations!$J62)=1,1,0)))+Parts!$E$92*IF(Calculations!$K62=0,0,IF(MOD(BJ$3,$I62)=1,0,IF(MOD(BJ$3,Calculations!$K62)=1,1,0))))*$AU62)*(1+'Country Input'!$C$45)^(Calculations!BJ$3-$BH$3)","v":1075},{"$f":"(($U62+($O62)*IF(MOD(BK$3,$I62)=1,1,0)+Parts!$E$91*IF($J62=0,0,IF(MOD(BK$3,$I62)=1,IF(PQS!$R62=\"NO\",1,0),IF(MOD(BK$3,Calculations!$J62)=1,1,0)))+Parts!$E$92*IF(Calculations!$K62=0,0,IF(MOD(BK$3,$I62)=1,0,IF(MOD(BK$3,Calculations!$K62)=1,1,0))))*$AU62)*(1+'Country Input'!$C$45)^(Calculations!BK$3-$BH$3)","v":1075},{"$f":"(($U62+($O62)*IF(MOD(BL$3,$I62)=1,1,0)+Parts!$E$91*IF($J62=0,0,IF(MOD(BL$3,$I62)=1,IF(PQS!$R62=\"NO\",1,0),IF(MOD(BL$3,Calculations!$J62)=1,1,0)))+Parts!$E$92*IF(Calculations!$K62=0,0,IF(MOD(BL$3,$I62)=1,0,IF(MOD(BL$3,Calculations!$K62)=1,1,0))))*$AU62)*(1+'Country Input'!$C$45)^(Calculations!BL$3-$BH$3)","v":1075},{"$f":"(($U62+($O62)*IF(MOD(BM$3,$I62)=1,1,0)+Parts!$E$91*IF($J62=0,0,IF(MOD(BM$3,$I62)=1,IF(PQS!$R62=\"NO\",1,0),IF(MOD(BM$3,Calculations!$J62)=1,1,0)))+Parts!$E$92*IF(Calculations!$K62=0,0,IF(MOD(BM$3,$I62)=1,0,IF(MOD(BM$3,Calculations!$K62)=1,1,0))))*$AU62)*(1+'Country Input'!$C$45)^(Calculations!BM$3-$BH$3)","v":1075},{"$f":"(($U62+($O62)*IF(MOD(BN$3,$I62)=1,1,0)+Parts!$E$91*IF($J62=0,0,IF(MOD(BN$3,$I62)=1,IF(PQS!$R62=\"NO\",1,0),IF(MOD(BN$3,Calculations!$J62)=1,1,0)))+Parts!$E$92*IF(Calculations!$K62=0,0,IF(MOD(BN$3,$I62)=1,0,IF(MOD(BN$3,Calculations!$K62)=1,1,0))))*$AU62)*(1+'Country Input'!$C$45)^(Calculations!BN$3-$BH$3)","v":1075},{"$f":"(($U62+($O62)*IF(MOD(BO$3,$I62)=1,1,0)+Parts!$E$91*IF($J62=0,0,IF(MOD(BO$3,$I62)=1,IF(PQS!$R62=\"NO\",1,0),IF(MOD(BO$3,Calculations!$J62)=1,1,0)))+Parts!$E$92*IF(Calculations!$K62=0,0,IF(MOD(BO$3,$I62)=1,0,IF(MOD(BO$3,Calculations!$K62)=1,1,0))))*$AU62)*(1+'Country Input'!$C$45)^(Calculations!BO$3-$BH$3)","v":1075},{"$f":"(($U62+($O62)*IF(MOD(BP$3,$I62)=1,1,0)+Parts!$E$91*IF($J62=0,0,IF(MOD(BP$3,$I62)=1,IF(PQS!$R62=\"NO\",1,0),IF(MOD(BP$3,Calculations!$J62)=1,1,0)))+Parts!$E$92*IF(Calculations!$K62=0,0,IF(MOD(BP$3,$I62)=1,0,IF(MOD(BP$3,Calculations!$K62)=1,1,0))))*$AU62)*(1+'Country Input'!$C$45)^(Calculations!BP$3-$BH$3)","v":1075},{"$f":"(($U62+($O62)*IF(MOD(BQ$3,$I62)=1,1,0)+Parts!$E$91*IF($J62=0,0,IF(MOD(BQ$3,$I62)=1,IF(PQS!$R62=\"NO\",1,0),IF(MOD(BQ$3,Calculations!$J62)=1,1,0)))+Parts!$E$92*IF(Calculations!$K62=0,0,IF(MOD(BQ$3,$I62)=1,0,IF(MOD(BQ$3,Calculations!$K62)=1,1,0))))*$AU62)*(1+'Country Input'!$C$45)^(Calculations!BQ$3-$BH$3)","v":1075},{"$f":"(($U62+($O62)*IF(MOD(BR$3,$I62)=1,1,0)+Parts!$E$91*IF($J62=0,0,IF(MOD(BR$3,$I62)=1,IF(PQS!$R62=\"NO\",1,0),IF(MOD(BR$3,Calculations!$J62)=1,1,0)))+Parts!$E$92*IF(Calculations!$K62=0,0,IF(MOD(BR$3,$I62)=1,0,IF(MOD(BR$3,Calculations!$K62)=1,1,0))))*$AU62)*(1+'Country Input'!$C$45)^(Calculations!BR$3-$BH$3)","v":84696.590070000006},{"$f":"(($U62+($O62)*IF(MOD(BS$3,$I62)=1,1,0)+Parts!$E$91*IF($J62=0,0,IF(MOD(BS$3,$I62)=1,IF(PQS!$R62=\"NO\",1,0),IF(MOD(BS$3,Calculations!$J62)=1,1,0)))+Parts!$E$92*IF(Calculations!$K62=0,0,IF(MOD(BS$3,$I62)=1,0,IF(MOD(BS$3,Calculations!$K62)=1,1,0))))*$AU62)*(1+'Country Input'!$C$45)^(Calculations!BS$3-$BH$3)","v":1075},{"$f":"(($U62+($O62)*IF(MOD(BT$3,$I62)=1,1,0)+Parts!$E$91*IF($J62=0,0,IF(MOD(BT$3,$I62)=1,IF(PQS!$R62=\"NO\",1,0),IF(MOD(BT$3,Calculations!$J62)=1,1,0)))+Parts!$E$92*IF(Calculations!$K62=0,0,IF(MOD(BT$3,$I62)=1,0,IF(MOD(BT$3,Calculations!$K62)=1,1,0))))*$AU62)*(1+'Country Input'!$C$45)^(Calculations!BT$3-$BH$3)","v":1075},{"$f":"(($U62+($O62)*IF(MOD(BU$3,$I62)=1,1,0)+Parts!$E$91*IF($J62=0,0,IF(MOD(BU$3,$I62)=1,IF(PQS!$R62=\"NO\",1,0),IF(MOD(BU$3,Calculations!$J62)=1,1,0)))+Parts!$E$92*IF(Calculations!$K62=0,0,IF(MOD(BU$3,$I62)=1,0,IF(MOD(BU$3,Calculations!$K62)=1,1,0))))*$AU62)*(1+'Country Input'!$C$45)^(Calculations!BU$3-$BH$3)","v":1075},{"$f":"(($U62+($O62)*IF(MOD(BV$3,$I62)=1,1,0)+Parts!$E$91*IF($J62=0,0,IF(MOD(BV$3,$I62)=1,IF(PQS!$R62=\"NO\",1,0),IF(MOD(BV$3,Calculations!$J62)=1,1,0)))+Parts!$E$92*IF(Calculations!$K62=0,0,IF(MOD(BV$3,$I62)=1,0,IF(MOD(BV$3,Calculations!$K62)=1,1,0))))*$AU62)*(1+'Country Input'!$C$45)^(Calculations!BV$3-$BH$3)","v":1075},{"$f":"(($U62+($O62)*IF(MOD(BW$3,$I62)=1,1,0)+Parts!$E$91*IF($J62=0,0,IF(MOD(BW$3,$I62)=1,IF(PQS!$R62=\"NO\",1,0),IF(MOD(BW$3,Calculations!$J62)=1,1,0)))+Parts!$E$92*IF(Calculations!$K62=0,0,IF(MOD(BW$3,$I62)=1,0,IF(MOD(BW$3,Calculations!$K62)=1,1,0))))*$AU62)*(1+'Country Input'!$C$45)^(Calculations!BW$3-$BH$3)","v":1075},{"$f":"(($U62+($O62)*IF(MOD(BX$3,$I62)=1,1,0)+Parts!$E$91*IF($J62=0,0,IF(MOD(BX$3,$I62)=1,IF(PQS!$R62=\"NO\",1,0),IF(MOD(BX$3,Calculations!$J62)=1,1,0)))+Parts!$E$92*IF(Calculations!$K62=0,0,IF(MOD(BX$3,$I62)=1,0,IF(MOD(BX$3,Calculations!$K62)=1,1,0))))*$AU62)*(1+'Country Input'!$C$45)^(Calculations!BX$3-$BH$3)","v":1075},{"$f":"(($U62+($O62)*IF(MOD(BY$3,$I62)=1,1,0)+Parts!$E$91*IF($J62=0,0,IF(MOD(BY$3,$I62)=1,IF(PQS!$R62=\"NO\",1,0),IF(MOD(BY$3,Calculations!$J62)=1,1,0)))+Parts!$E$92*IF(Calculations!$K62=0,0,IF(MOD(BY$3,$I62)=1,0,IF(MOD(BY$3,Calculations!$K62)=1,1,0))))*$AU62)*(1+'Country Input'!$C$45)^(Calculations!BY$3-$BH$3)","v":1075},{"$f":"(($U62+($O62)*IF(MOD(BZ$3,$I62)=1,1,0)+Parts!$E$91*IF($J62=0,0,IF(MOD(BZ$3,$I62)=1,IF(PQS!$R62=\"NO\",1,0),IF(MOD(BZ$3,Calculations!$J62)=1,1,0)))+Parts!$E$92*IF(Calculations!$K62=0,0,IF(MOD(BZ$3,$I62)=1,0,IF(MOD(BZ$3,Calculations!$K62)=1,1,0))))*$AU62)*(1+'Country Input'!$C$45)^(Calculations!BZ$3-$BH$3)","v":1075},{"$f":"(($U62+($O62)*IF(MOD(CA$3,$I62)=1,1,0)+Parts!$E$91*IF($J62=0,0,IF(MOD(CA$3,$I62)=1,IF(PQS!$R62=\"NO\",1,0),IF(MOD(CA$3,Calculations!$J62)=1,1,0)))+Parts!$E$92*IF(Calculations!$K62=0,0,IF(MOD(CA$3,$I62)=1,0,IF(MOD(CA$3,Calculations!$K62)=1,1,0))))*$AU62)*(1+'Country Input'!$C$45)^(Calculations!CA$3-$BH$3)","v":1075},null,"B Medical TCW 40 SDD*",84696.590070000006,1075,1075,1075,1075,1075,1075,1075,1075,1075,84696.590070000006,1075,1075,1075,1075,1075,1075,1075,1075,1075,{"$f":"SUM(CD62:INDEX($CD62:$CW62,1,'Total Solution Costs'!$B$2))","v":94371.590070000006},null,"B Medical TCW 40 SDD*",{"$f":"SUM($BH62:BH62)","v":84696.590070000006},{"$f":"SUM($BH62:BI62)","v":85771.590070000006},{"$f":"SUM($BH62:BJ62)","v":86846.590070000006},{"$f":"SUM($BH62:BK62)","v":87921.590070000006},{"$f":"SUM($BH62:BL62)","v":88996.590070000006},{"$f":"SUM($BH62:BM62)","v":90071.590070000006},{"$f":"SUM($BH62:BN62)","v":91146.590070000006},{"$f":"SUM($BH62:BO62)","v":92221.590070000006},{"$f":"SUM($BH62:BP62)","v":93296.590070000006},{"$f":"SUM($BH62:BQ62)","v":94371.590070000006},{"$f":"SUM($BH62:BR62)","v":179068.18014000001},{"$f":"SUM($BH62:BS62)","v":180143.18014000001},{"$f":"SUM($BH62:BT62)","v":181218.18014000001},{"$f":"SUM($BH62:BU62)","v":182293.18014000001},{"$f":"SUM($BH62:BV62)","v":183368.18014000001},{"$f":"SUM($BH62:BW62)","v":184443.18014000001},{"$f":"SUM($BH62:BX62)","v":185518.18014000001},{"$f":"SUM($BH62:BY62)","v":186593.18014000001},{"$f":"SUM($BH62:BZ62)","v":187668.18014000001},{"$f":"SUM($BH62:CA62)","v":188743.18014000001}]
[{"$f":"PQS!A63","v":"SDD"},{"$f":"PQS!B63","v":"E003/043"},{"$f":"PQS!E63","v":"TCW 2043 SDD*"},{"$f":"PQS!F63","v":"B Medical"},{"$f":"PQS!D63","v":"B Medical TCW 2043 SDD*"},{"$f":"VLOOKUP(E63,PQS!$D$5:$K$107,COLUMN(PQS!$I$3)-COLUMN(PQS!$D$3)+1,FALSE)","v":70},{"$f":"VLOOKUP(E63,PQS!$D$5:$K$107,COLUMN(PQS!$J$3)-COLUMN(PQS!$D$3)+1,FALSE)","v":42},{"$f":"VLOOKUP(E63,PQS!$D$5:$K$107,COLUMN(PQS!$G$3)-COLUMN(PQS!$D$3)+1,FALSE)","v":"Yes"},{"$f":"HLOOKUP(B63,INDIRECT(\"'\"&A63&\"'!$10:$15\"),ROW('Technology template'!$A$11)-ROW('Technology template'!$A$10)+1,FALSE)","v":10},{"$f":"HLOOKUP(B63,INDIRECT(\"'\"&A63&\"'!$10:$15\"),ROW('Technology template'!$A$12)-ROW('Technology template'!$A$10)+1,FALSE)","v":10},{"$f":"HLOOKUP(B63,INDIRECT(\"'\"&A63&\"'!$10:$15\"),ROW('Technology template'!$A$13)-ROW('Technology template'!$A$10)+1,FALSE)","v":0},{"$f":"VLOOKUP(B63,PQS!$B:$Q,MATCH(PQS!$Q$3,PQS!$B$3:$Q$3,0),FALSE)*(1+'Country Input'!$C$47)+HLOOKUP(B63,INDIRECT(\"'\"&A63&\"'!$10:$15\"),ROW('Technology template'!$A$14)-ROW('Technology template'!$A$10)+1,FALSE)*(1+'Country Input'!$C$47)","v":9936.7261999999992},{"$f":"HLOOKUP(B63,INDIRECT(\"'\"&A63&\"'!$10:$80\"),MATCH('Technology template'!$A$27,INDIRECT(\"'\"&A63&\"'!$A$10:$A$80\"),0),FALSE)+'Labor and Maintenance '!$E$18","v":1042},{"$f":"VLOOKUP(B63,PQS!B:T,MATCH(PQS!$T$3,PQS!$B$3:$T$3,0),FALSE)*(1+'Country Input'!$C$47)","v":637.62787300000014},11616.354072999999,1161.6354072999998,{"$f":"VLOOKUP(B63,PQS!$B:$AE,COLUMN(PQS!AD61)-1,FALSE)","v":0},{"$f":"IFERROR(1/HLOOKUP(B63,INDIRECT(\"'\"&A63&\"'!$10:$80\"),MATCH('Technology template'!$A$31,INDIRECT(\"'\"&A63&\"'!$A$10:$A$80\"),0),FALSE)*HLOOKUP(B63,INDIRECT(\"'\"&A63&\"'!$10:$80\"),MATCH('Technology template'!$A$41,INDIRECT(\"'\"&A63&\"'!$A10:$A$80\"),0),FALSE),0)*TechnicianHourlyWage+IF(A63=\"Solar w Battery\",1/'Labor and Maintenance '!$E$53*'Labor and Maintenance '!$D$53,0)+IF(A63=\"LT passive\", 1/'Labor and Maintenance '!$E$81*'Labor and Maintenance '!$D$81,0)","v":24},{"$f":"IFERROR(1/HLOOKUP(B63,INDIRECT(\"'\"&A63&\"'!$10:$80\"),MATCH('Technology template'!$A$34,INDIRECT(\"'\"&A63&\"'!$A$10:$A$80\"),0),FALSE)*(HLOOKUP(B63,INDIRECT(\"'\"&A63&\"'!$10:$80\"),MATCH('Technology template'!$A$44,INDIRECT(\"'\"&A63&\"'!$A10:$A$80\"),0),FALSE)*TechnicianHourlyWage+RemoteTravelCostPerDay),0)+IFERROR(1/HLOOKUP(B63,INDIRECT(\"'\"&A63&\"'!$10:$80\"),MATCH('Technology template'!$A$35,INDIRECT(\"'\"&A63&\"'!$A$10:$A$80\"),0),FALSE)*(HLOOKUP(B63,INDIRECT(\"'\"&A63&\"'!$10:$80\"),MATCH('Technology template'!$A$45,INDIRECT(\"'\"&A63&\"'!$A10:$A$80\"),0),FALSE)*TechnicianHourlyWage+RemoteTravelCostPerDay),0)+IFERROR(1/HLOOKUP(B63,INDIRECT(\"'\"&A63&\"'!$10:$80\"),MATCH('Technology template'!$A$37,INDIRECT(\"'\"&A63&\"'!$A$10:$A$80\"),0),FALSE)*(HLOOKUP(B63,INDIRECT(\"'\"&A63&\"'!$10:$80\"),MATCH('Technology template'!$A$46,INDIRECT(\"'\"&A63&\"'!$A10:$A$80\"),0),FALSE)*TechnicianHourlyWage+'Labor and Maintenance '!$B$8),0)","v":83.5},1075,107.5,1269.1354072999998,null,"B Medical TCW 2043 SDD*",165.94791532857141,15.357142857142858,181.30505818571427,null,"B Medical TCW 2043 SDD*",16.59479153285714,1.5357142857142858,18.130505818571425,null,"B Medical TCW 2043 SDD*",2,23232.708145999997,2150,25382.708145999997,null,"B Medical TCW 2043 SDD*",2,33.189583065714281,3.0714285714285716,36.26101163714285,null,"B Medical TCW 2043 SDD*",{"$f":"IF(F63=0, 'Country Input'!$D$7, ROUNDUP(LitersPerFacility/F63,0)*'Country Input'!$D$7)","v":10},116163.54072999998,1075,117238.54072999998,null,"B Medical TCW 2043 SDD*",{"$f":"ROUNDUP(LitersPerFacility/F63,0)*'Country Input'!$D$7*ROUNDUP('Total Solution Costs'!$B$2/Calculations!I63,0)","v":10},165.94791532857141,1.5357142857142858,167.48362961428569,null,null,"B Medical TCW 2043 SDD*",{"$f":"(($U63+($O63)*IF(MOD(BH$3,$I63)=1,1,0)+Parts!$E$91*IF($J63=0,0,IF(MOD(BH$3,$I63)=1,IF(PQS!$R63=\"NO\",1,0),IF(MOD(BH$3,Calculations!$J63)=1,1,0)))+Parts!$E$92*IF(Calculations!$K63=0,0,IF(MOD(BH$3,$I63)=1,0,IF(MOD(BH$3,Calculations!$K63)=1,1,0))))*$AU63)*(1+'Country Input'!$C$45)^(Calculations!BH$3-$BH$3)+TrainingCost","v":117238.54072999998},{"$f":"(($U63+($O63)*IF(MOD(BI$3,$I63)=1,1,0)+Parts!$E$91*IF($J63=0,0,IF(MOD(BI$3,$I63)=1,IF(PQS!$R63=\"NO\",1,0),IF(MOD(BI$3,Calculations!$J63)=1,1,0)))+Parts!$E$92*IF(Calculations!$K63=0,0,IF(MOD(BI$3,$I63)=1,0,IF(MOD(BI$3,Calculations!$K63)=1,1,0))))*$AU63)*(1+'Country Input'!$C$45)^(Calculations!BI$3-$BH$3)","v":1075},{"$f":"(($U63+($O63)*IF(MOD(BJ$3,$I63)=1,1,0)+Parts!$E$91*IF($J63=0,0,IF(MOD(BJ$3,$I63)=1,IF(PQS!$R63=\"NO\",1,0),IF(MOD(BJ$3,Calculations!$J63)=1,1,0)))+Parts!$E$92*IF(Calculations!$K63=0,0,IF(MOD(BJ$3,$I63)=1,0,IF(MOD(BJ$3,Calculations!$K63)=1,1,0))))*$AU63)*(1+'Country Input'!$C$45)^(Calculations!BJ$3-$BH$3)","v":1075},{"$f":"(($U63+($O63)*IF(MOD(BK$3,$I63)=1,1,0)+Parts!$E$91*IF($J63=0,0,IF(MOD(BK$3,$I63)=1,IF(PQS!$R63=\"NO\",1,0),IF(MOD(BK$3,Calculations!$J63)=1,1,0)))+Parts!$E$92*IF(Calculations!$K63=0,0,IF(MOD(BK$3,$I63)=1,0,IF(MOD(BK$3,Calculations!$K63)=1,1,0))))*$AU63)*(1+'Country Input'!$C$45)^(Calculations!BK$3-$BH$3)","v":1075},{"$f":"(($U63+($O63)*IF(MOD(BL$3,$I63)=1,1,0)+Parts!$E$91*IF($J63=0,0,IF(MOD(BL$3,$I63)=1,IF(PQS!$R63=\"NO\",1,0),IF(MOD(BL$3,Calculations!$J63)=1,1,0)))+Parts!$E$92*IF(Calculations!$K63=0,0,IF(MOD(BL$3,$I63)=1,0,IF(MOD(BL$3,Calculations!$K63)=1,1,0))))*$AU63)*(1+'Country Input'!$C$45)^(Calculations!BL$3-$BH$3)","v":1075},{"$f":"(($U63+($O63)*IF(MOD(BM$3,$I63)=1,1,0)+Parts!$E$91*IF($J63=0,0,IF(MOD(BM$3,$I63)=1,IF(PQS!$R63=\"NO\",1,0),IF(MOD(BM$3,Calculations!$J63)=1,1,0)))+Parts!$E$92*IF(Calculations!$K63=0,0,IF(MOD(BM$3,$I63)=1,0,IF(MOD(BM$3,Calculations!$K63)=1,1,0))))*$AU63)*(1+'Country Input'!$C$45)^(Calculations!BM$3-$BH$3)","v":1075},{"$f":"(($U63+($O63)*IF(MOD(BN$3,$I63)=1,1,0)+Parts!$E$91*IF($J63=0,0,IF(MOD(BN$3,$I63)=1,IF(PQS!$R63=\"NO\",1,0),IF(MOD(BN$3,Calculations!$J63)=1,1,0)))+Parts!$E$92*IF(Calculations!$K63=0,0,IF(MOD(BN$3,$I63)=1,0,IF(MOD(BN$3,Calculations!$K63)=1,1,0))))*$AU63)*(1+'Country Input'!$C$45)^(Calculations!BN$3-$BH$3)","v":1075},{"$f":"(($U63+($O63)*IF(MOD(BO$3,$I63)=1,1,0)+Parts!$E$91*IF($J63=0,0,IF(MOD(BO$3,$I63)=1,IF(PQS!$R63=\"NO\",1,0),IF(MOD(BO$3,Calculations!$J63)=1,1,0)))+Parts!$E$92*IF(Calculations!$K63=0,0,IF(MOD(BO$3,$I63)=1,0,IF(MOD(BO$3,Calculations!$K63)=1,1,0))))*$AU63)*(1+'Country Input'!$C$45)^(Calculations!BO$3-$BH$3)","v":1075},{"$f":"(($U63+($O63)*IF(MOD(BP$3,$I63)=1,1,0)+Parts!$E$91*IF($J63=0,0,IF(MOD(BP$3,$I63)=1,IF(PQS!$R63=\"NO\",1,0),IF(MOD(BP$3,Calculations!$J63)=1,1,0)))+Parts!$E$92*IF(Calculations!$K63=0,0,IF(MOD(BP$3,$I63)=1,0,IF(MOD(BP$3,Calculations!$K63)=1,1,0))))*$AU63)*(1+'Country Input'!$C$45)^(Calculations!BP$3-$BH$3)","v":1075},{"$f":"(($U63+($O63)*IF(MOD(BQ$3,$I63)=1,1,0)+Parts!$E$91*IF($J63=0,0,IF(MOD(BQ$3,$I63)=1,IF(PQS!$R63=\"NO\",1,0),IF(MOD(BQ$3,Calculations!$J63)=1,1,0)))+Parts!$E$92*IF(Calculations!$K63=0,0,IF(MOD(BQ$3,$I63)=1,0,IF(MOD(BQ$3,Calculations!$K63)=1,1,0))))*$AU63)*(1+'Country Input'!$C$45)^(Calculations!BQ$3-$BH$3)","v":1075},{"$f":"(($U63+($O63)*IF(MOD(BR$3,$I63)=1,1,0)+Parts!$E$91*IF($J63=0,0,IF(MOD(BR$3,$I63)=1,IF(PQS!$R63=\"NO\",1,0),IF(MOD(BR$3,Calculations!$J63)=1,1,0)))+Parts!$E$92*IF(Calculations!$K63=0,0,IF(MOD(BR$3,$I63)=1,0,IF(MOD(BR$3,Calculations!$K63)=1,1,0))))*$AU63)*(1+'Country Input'!$C$45)^(Calculations!BR$3-$BH$3)","v":117238.54072999998},{"$f":"(($U63+($O63)*IF(MOD(BS$3,$I63)=1,1,0)+Parts!$E$91*IF($J63=0,0,IF(MOD(BS$3,$I63)=1,IF(PQS!$R63=\"NO\",1,0),IF(MOD(BS$3,Calculations!$J63)=1,1,0)))+Parts!$E$92*IF(Calculations!$K63=0,0,IF(MOD(BS$3,$I63)=1,0,IF(MOD(BS$3,Calculations!$K63)=1,1,0))))*$AU63)*(1+'Country Input'!$C$45)^(Calculations!BS$3-$BH$3)","v":1075},{"$f":"(($U63+($O63)*IF(MOD(BT$3,$I63)=1,1,0)+Parts!$E$91*IF($J63=0,0,IF(MOD(BT$3,$I63)=1,IF(PQS!$R63=\"NO\",1,0),IF(MOD(BT$3,Calculations!$J63)=1,1,0)))+Parts!$E$92*IF(Calculations!$K63=0,0,IF(MOD(BT$3,$I63)=1,0,IF(MOD(BT$3,Calculations!$K63)=1,1,0))))*$AU63)*(1+'Country Input'!$C$45)^(Calculations!BT$3-$BH$3)","v":1075},{"$f":"(($U63+($O63)*IF(MOD(BU$3,$I63)=1,1,0)+Parts!$E$91*IF($J63=0,0,IF(MOD(BU$3,$I63)=1,IF(PQS!$R63=\"NO\",1,0),IF(MOD(BU$3,Calculations!$J63)=1,1,0)))+Parts!$E$92*IF(Calculations!$K63=0,0,IF(MOD(BU$3,$I63)=1,0,IF(MOD(BU$3,Calculations!$K63)=1,1,0))))*$AU63)*(1+'Country Input'!$C$45)^(Calculations!BU$3-$BH$3)","v":1075},{"$f":"(($U63+($O63)*IF(MOD(BV$3,$I63)=1,1,0)+Parts!$E$91*IF($J63=0,0,IF(MOD(BV$3,$I63)=1,IF(PQS!$R63=\"NO\",1,0),IF(MOD(BV$3,Calculations!$J63)=1,1,0)))+Parts!$E$92*IF(Calculations!$K63=0,0,IF(MOD(BV$3,$I63)=1,0,IF(MOD(BV$3,Calculations!$K63)=1,1,0))))*$AU63)*(1+'Country Input'!$C$45)^(Calculations!BV$3-$BH$3)","v":1075},{"$f":"(($U63+($O63)*IF(MOD(BW$3,$I63)=1,1,0)+Parts!$E$91*IF($J63=0,0,IF(MOD(BW$3,$I63)=1,IF(PQS!$R63=\"NO\",1,0),IF(MOD(BW$3,Calculations!$J63)=1,1,0)))+Parts!$E$92*IF(Calculations!$K63=0,0,IF(MOD(BW$3,$I63)=1,0,IF(MOD(BW$3,Calculations!$K63)=1,1,0))))*$AU63)*(1+'Country Input'!$C$45)^(Calculations!BW$3-$BH$3)","v":1075},{"$f":"(($U63+($O63)*IF(MOD(BX$3,$I63)=1,1,0)+Parts!$E$91*IF($J63=0,0,IF(MOD(BX$3,$I63)=1,IF(PQS!$R63=\"NO\",1,0),IF(MOD(BX$3,Calculations!$J63)=1,1,0)))+Parts!$E$92*IF(Calculations!$K63=0,0,IF(MOD(BX$3,$I63)=1,0,IF(MOD(BX$3,Calculations!$K63)=1,1,0))))*$AU63)*(1+'Country Input'!$C$45)^(Calculations!BX$3-$BH$3)","v":1075},{"$f":"(($U63+($O63)*IF(MOD(BY$3,$I63)=1,1,0)+Parts!$E$91*IF($J63=0,0,IF(MOD(BY$3,$I63)=1,IF(PQS!$R63=\"NO\",1,0),IF(MOD(BY$3,Calculations!$J63)=1,1,0)))+Parts!$E$92*IF(Calculations!$K63=0,0,IF(MOD(BY$3,$I63)=1,0,IF(MOD(BY$3,Calculations!$K63)=1,1,0))))*$AU63)*(1+'Country Input'!$C$45)^(Calculations!BY$3-$BH$3)","v":1075},{"$f":"(($U63+($O63)*IF(MOD(BZ$3,$I63)=1,1,0)+Parts!$E$91*IF($J63=0,0,IF(MOD(BZ$3,$I63)=1,IF(PQS!$R63=\"NO\",1,0),IF(MOD(BZ$3,Calculations!$J63)=1,1,0)))+Parts!$E$92*IF(Calculations!$K63=0,0,IF(MOD(BZ$3,$I63)=1,0,IF(MOD(BZ$3,Calculations!$K63)=1,1,0))))*$AU63)*(1+'Country Input'!$C$45)^(Calculations!BZ$3-$BH$3)","v":1075},{"$f":"(($U63+($O63)*IF(MOD(CA$3,$I63)=1,1,0)+Parts!$E$91*IF($J63=0,0,IF(MOD(CA$3,$I63)=1,IF(PQS!$R63=\"NO\",1,0),IF(MOD(CA$3,Calculations!$J63)=1,1,0)))+Parts!$E$92*IF(Calculations!$K63=0,0,IF(MOD(CA$3,$I63)=1,0,IF(MOD(CA$3,Calculations!$K63)=1,1,0))))*$AU63)*(1+'Country Input'!$C$45)^(Calculations!CA$3-$BH$3)","v":1075},null,"B Medical TCW 2043 SDD*",117238.54072999998,1075,1075,1075,1075,1075,1075,1075,1075,1075,117238.54072999998,1075,1075,1075,1075,1075,1075,1075,1075,1075,{"$f":"SUM(CD63:INDEX($CD63:$CW63,1,'Total Solution Costs'!$B$2))","v":126913.54072999998},null,"B Medical TCW 2043 SDD*",{"$f":"SUM($BH63:BH63)","v":117238.54072999998},{"$f":"SUM($BH63:BI63)","v":118313.54072999998},{"$f":"SUM($BH63:BJ63)","v":119388.54072999998},{"$f":"SUM($BH63:BK63)","v":120463.54072999998},{"$f":"SUM($BH63:BL63)","v":121538.54072999998},{"$f":"SUM($BH63:BM63)","v":122613.54072999998},{"$f":"SUM($BH63:BN63)","v":123688.54072999998},{"$f":"SUM($BH63:BO63)","v":124763.54072999998},{"$f":"SUM($BH63:BP63)","v":125838.54072999998},{"$f":"SUM($BH63:BQ63)","v":126913.54072999998},{"$f":"SUM($BH63:BR63)","v":244152.08145999996},{"$f":"SUM($BH63:BS63)","v":245227.08145999996},{"$f":"SUM($BH63:BT63)","v":246302.08145999996},{"$f":"SUM($BH63:BU63)","v":247377.08145999996},{"$f":"SUM($BH63:BV63)","v":248452.08145999996},{"$f":"SUM($BH63:BW63)","v":249527.08145999996},{"$f":"SUM($BH63:BX63)","v":250602.08145999996},{"$f":"SUM($BH63:BY63)","v":251677.08145999996},{"$f":"SUM($BH63:BZ63)","v":252752.08145999996},{"$f":"SUM($BH63:CA63)","v":253827.08145999996}]
[{"$f":"PQS!A64","v":"SDD"},{"$f":"PQS!B64","v":"E003/045"},{"$f":"PQS!E64","v":"TCW 3043 SDD*"},{"$f":"PQS!F64","v":"B Medical"},{"$f":"PQS!D64","v":"B Medical TCW 3043 SDD*"},{"$f":"VLOOKUP(E64,PQS!$D$5:$K$107,COLUMN(PQS!$I$3)-COLUMN(PQS!$D$3)+1,FALSE)","v":89},{"$f":"VLOOKUP(E64,PQS!$D$5:$K$107,COLUMN(PQS!$J$3)-COLUMN(PQS!$D$3)+1,FALSE)","v":0},{"$f":"VLOOKUP(E64,PQS!$D$5:$K$107,COLUMN(PQS!$G$3)-COLUMN(PQS!$D$3)+1,FALSE)","v":"Yes"},{"$f":"HLOOKUP(B64,INDIRECT(\"'\"&A64&\"'!$10:$15\"),ROW('Technology template'!$A$11)-ROW('Technology template'!$A$10)+1,FALSE)","v":10},{"$f":"HLOOKUP(B64,INDIRECT(\"'\"&A64&\"'!$10:$15\"),ROW('Technology template'!$A$12)-ROW('Technology template'!$A$10)+1,FALSE)","v":10},{"$f":"HLOOKUP(B64,INDIRECT(\"'\"&A64&\"'!$10:$15\"),ROW('Technology template'!$A$13)-ROW('Technology template'!$A$10)+1,FALSE)","v":0},{"$f":"VLOOKUP(B64,PQS!$B:$Q,MATCH(PQS!$Q$3,PQS!$B$3:$Q$3,0),FALSE)*(1+'Country Input'!$C$47)+HLOOKUP(B64,INDIRECT(\"'\"&A64&\"'!$10:$15\"),ROW('Technology template'!$A$14)-ROW('Technology template'!$A$10)+1,FALSE)*(1+'Country Input'!$C$47)","v":7365.0989000000009},{"$f":"HLOOKUP(B64,INDIRECT(\"'\"&A64&\"'!$10:$80\"),MATCH('Technology template'!$A$27,INDIRECT(\"'\"&A64&\"'!$A$10:$A$80\"),0),FALSE)+'Labor and Maintenance '!$E$18","v":1042},{"$f":"VLOOKUP(B64,PQS!B:T,MATCH(PQS!$T$3,PQS!$B$3:$T$3,0),FALSE)*(1+'Country Input'!$C$47)","v":718.89565700000026},9125.9945570000018,912.59945570000014,{"$f":"VLOOKUP(B64,PQS!$B:$AE,COLUMN(PQS!AD62)-1,FALSE)","v":0},{"$f":"IFERROR(1/HLOOKUP(B64,INDIRECT(\"'\"&A64&\"'!$10:$80\"),MATCH('Technology template'!$A$31,INDIRECT(\"'\"&A64&\"'!$A$10:$A$80\"),0),FALSE)*HLOOKUP(B64,INDIRECT(\"'\"&A64&\"'!$10:$80\"),MATCH('Technology template'!$A$41,INDIRECT(\"'\"&A64&\"'!$A10:$A$80\"),0),FALSE),0)*TechnicianHourlyWage+IF(A64=\"Solar w Battery\",1/'Labor and Maintenance '!$E$53*'Labor and Maintenance '!$D$53,0)+IF(A64=\"LT passive\", 1/'Labor and Maintenance '!$E$81*'Labor and Maintenance '!$D$81,0)","v":24},{"$f":"IFERROR(1/HLOOKUP(B64,INDIRECT(\"'\"&A64&\"'!$10:$80\"),MATCH('Technology template'!$A$34,INDIRECT(\"'\"&A64&\"'!$A$10:$A$80\"),0),FALSE)*(HLOOKUP(B64,INDIRECT(\"'\"&A64&\"'!$10:$80\"),MATCH('Technology template'!$A$44,INDIRECT(\"'\"&A64&\"'!$A10:$A$80\"),0),FALSE)*TechnicianHourlyWage+RemoteTravelCostPerDay),0)+IFERROR(1/HLOOKUP(B64,INDIRECT(\"'\"&A64&\"'!$10:$80\"),MATCH('Technology template'!$A$35,INDIRECT(\"'\"&A64&\"'!$A$10:$A$80\"),0),FALSE)*(HLOOKUP(B64,INDIRECT(\"'\"&A64&\"'!$10:$80\"),MATCH('Technology template'!$A$45,INDIRECT(\"'\"&A64&\"'!$A10:$A$80\"),0),FALSE)*TechnicianHourlyWage+RemoteTravelCostPerDay),0)+IFERROR(1/HLOOKUP(B64,INDIRECT(\"'\"&A64&\"'!$10:$80\"),MATCH('Technology template'!$A$37,INDIRECT(\"'\"&A64&\"'!$A$10:$A$80\"),0),FALSE)*(HLOOKUP(B64,INDIRECT(\"'\"&A64&\"'!$10:$80\"),MATCH('Technology template'!$A$46,INDIRECT(\"'\"&A64&\"'!$A10:$A$80\"),0),FALSE)*TechnicianHourlyWage+'Labor and Maintenance '!$B$8),0)","v":83.5},1075,107.5,1020.0994557000001,null,"B Medical TCW 3043 SDD*",102.53926468539328,12.078651685393259,114.61791637078653,null,"B Medical TCW 3043 SDD*",10.253926468539328,1.2078651685393258,11.461791637078653,null,"B Medical TCW 3043 SDD*",2,18251.989114000004,2150,20401.989114000004,null,"B Medical TCW 3043 SDD*",2,20.507852937078656,2.4157303370786516,22.923583274157309,null,"B Medical TCW 3043 SDD*",{"$f":"IF(F64=0, 'Country Input'!$D$7, ROUNDUP(LitersPerFacility/F64,0)*'Country Input'!$D$7)","v":10},91259.945570000011,1075,92334.945570000011,null,"B Medical TCW 3043 SDD*",{"$f":"ROUNDUP(LitersPerFacility/F64,0)*'Country Input'!$D$7*ROUNDUP('Total Solution Costs'!$B$2/Calculations!I64,0)","v":10},102.53926468539328,1.2078651685393258,103.74712985393261,null,null,"B Medical TCW 3043 SDD*",{"$f":"(($U64+($O64)*IF(MOD(BH$3,$I64)=1,1,0)+Parts!$E$91*IF($J64=0,0,IF(MOD(BH$3,$I64)=1,IF(PQS!$R64=\"NO\",1,0),IF(MOD(BH$3,Calculations!$J64)=1,1,0)))+Parts!$E$92*IF(Calculations!$K64=0,0,IF(MOD(BH$3,$I64)=1,0,IF(MOD(BH$3,Calculations!$K64)=1,1,0))))*$AU64)*(1+'Country Input'!$C$45)^(Calculations!BH$3-$BH$3)+TrainingCost","v":92334.945570000011},{"$f":"(($U64+($O64)*IF(MOD(BI$3,$I64)=1,1,0)+Parts!$E$91*IF($J64=0,0,IF(MOD(BI$3,$I64)=1,IF(PQS!$R64=\"NO\",1,0),IF(MOD(BI$3,Calculations!$J64)=1,1,0)))+Parts!$E$92*IF(Calculations!$K64=0,0,IF(MOD(BI$3,$I64)=1,0,IF(MOD(BI$3,Calculations!$K64)=1,1,0))))*$AU64)*(1+'Country Input'!$C$45)^(Calculations!BI$3-$BH$3)","v":1075},{"$f":"(($U64+($O64)*IF(MOD(BJ$3,$I64)=1,1,0)+Parts!$E$91*IF($J64=0,0,IF(MOD(BJ$3,$I64)=1,IF(PQS!$R64=\"NO\",1,0),IF(MOD(BJ$3,Calculations!$J64)=1,1,0)))+Parts!$E$92*IF(Calculations!$K64=0,0,IF(MOD(BJ$3,$I64)=1,0,IF(MOD(BJ$3,Calculations!$K64)=1,1,0))))*$AU64)*(1+'Country Input'!$C$45)^(Calculations!BJ$3-$BH$3)","v":1075},{"$f":"(($U64+($O64)*IF(MOD(BK$3,$I64)=1,1,0)+Parts!$E$91*IF($J64=0,0,IF(MOD(BK$3,$I64)=1,IF(PQS!$R64=\"NO\",1,0),IF(MOD(BK$3,Calculations!$J64)=1,1,0)))+Parts!$E$92*IF(Calculations!$K64=0,0,IF(MOD(BK$3,$I64)=1,0,IF(MOD(BK$3,Calculations!$K64)=1,1,0))))*$AU64)*(1+'Country Input'!$C$45)^(Calculations!BK$3-$BH$3)","v":1075},{"$f":"(($U64+($O64)*IF(MOD(BL$3,$I64)=1,1,0)+Parts!$E$91*IF($J64=0,0,IF(MOD(BL$3,$I64)=1,IF(PQS!$R64=\"NO\",1,0),IF(MOD(BL$3,Calculations!$J64)=1,1,0)))+Parts!$E$92*IF(Calculations!$K64=0,0,IF(MOD(BL$3,$I64)=1,0,IF(MOD(BL$3,Calculations!$K64)=1,1,0))))*$AU64)*(1+'Country Input'!$C$45)^(Calculations!BL$3-$BH$3)","v":1075},{"$f":"(($U64+($O64)*IF(MOD(BM$3,$I64)=1,1,0)+Parts!$E$91*IF($J64=0,0,IF(MOD(BM$3,$I64)=1,IF(PQS!$R64=\"NO\",1,0),IF(MOD(BM$3,Calculations!$J64)=1,1,0)))+Parts!$E$92*IF(Calculations!$K64=0,0,IF(MOD(BM$3,$I64)=1,0,IF(MOD(BM$3,Calculations!$K64)=1,1,0))))*$AU64)*(1+'Country Input'!$C$45)^(Calculations!BM$3-$BH$3)","v":1075},{"$f":"(($U64+($O64)*IF(MOD(BN$3,$I64)=1,1,0)+Parts!$E$91*IF($J64=0,0,IF(MOD(BN$3,$I64)=1,IF(PQS!$R64=\"NO\",1,0),IF(MOD(BN$3,Calculations!$J64)=1,1,0)))+Parts!$E$92*IF(Calculations!$K64=0,0,IF(MOD(BN$3,$I64)=1,0,IF(MOD(BN$3,Calculations!$K64)=1,1,0))))*$AU64)*(1+'Country Input'!$C$45)^(Calculations!BN$3-$BH$3)","v":1075},{"$f":"(($U64+($O64)*IF(MOD(BO$3,$I64)=1,1,0)+Parts!$E$91*IF($J64=0,0,IF(MOD(BO$3,$I64)=1,IF(PQS!$R64=\"NO\",1,0),IF(MOD(BO$3,Calculations!$J64)=1,1,0)))+Parts!$E$92*IF(Calculations!$K64=0,0,IF(MOD(BO$3,$I64)=1,0,IF(MOD(BO$3,Calculations!$K64)=1,1,0))))*$AU64)*(1+'Country Input'!$C$45)^(Calculations!BO$3-$BH$3)","v":1075},{"$f":"(($U64+($O64)*IF(MOD(BP$3,$I64)=1,1,0)+Parts!$E$91*IF($J64=0,0,IF(MOD(BP$3,$I64)=1,IF(PQS!$R64=\"NO\",1,0),IF(MOD(BP$3,Calculations!$J64)=1,1,0)))+Parts!$E$92*IF(Calculations!$K64=0,0,IF(MOD(BP$3,$I64)=1,0,IF(MOD(BP$3,Calculations!$K64)=1,1,0))))*$AU64)*(1+'Country Input'!$C$45)^(Calculations!BP$3-$BH$3)","v":1075},{"$f":"(($U64+($O64)*IF(MOD(BQ$3,$I64)=1,1,0)+Parts!$E$91*IF($J64=0,0,IF(MOD(BQ$3,$I64)=1,IF(PQS!$R64=\"NO\",1,0),IF(MOD(BQ$3,Calculations!$J64)=1,1,0)))+Parts!$E$92*IF(Calculations!$K64=0,0,IF(MOD(BQ$3,$I64)=1,0,IF(MOD(BQ$3,Calculations!$K64)=1,1,0))))*$AU64)*(1+'Country Input'!$C$45)^(Calculations!BQ$3-$BH$3)","v":1075},{"$f":"(($U64+($O64)*IF(MOD(BR$3,$I64)=1,1,0)+Parts!$E$91*IF($J64=0,0,IF(MOD(BR$3,$I64)=1,IF(PQS!$R64=\"NO\",1,0),IF(MOD(BR$3,Calculations!$J64)=1,1,0)))+Parts!$E$92*IF(Calculations!$K64=0,0,IF(MOD(BR$3,$I64)=1,0,IF(MOD(BR$3,Calculations!$K64)=1,1,0))))*$AU64)*(1+'Country Input'!$C$45)^(Calculations!BR$3-$BH$3)","v":92334.945570000011},{"$f":"(($U64+($O64)*IF(MOD(BS$3,$I64)=1,1,0)+Parts!$E$91*IF($J64=0,0,IF(MOD(BS$3,$I64)=1,IF(PQS!$R64=\"NO\",1,0),IF(MOD(BS$3,Calculations!$J64)=1,1,0)))+Parts!$E$92*IF(Calculations!$K64=0,0,IF(MOD(BS$3,$I64)=1,0,IF(MOD(BS$3,Calculations!$K64)=1,1,0))))*$AU64)*(1+'Country Input'!$C$45)^(Calculations!BS$3-$BH$3)","v":1075},{"$f":"(($U64+($O64)*IF(MOD(BT$3,$I64)=1,1,0)+Parts!$E$91*IF($J64=0,0,IF(MOD(BT$3,$I64)=1,IF(PQS!$R64=\"NO\",1,0),IF(MOD(BT$3,Calculations!$J64)=1,1,0)))+Parts!$E$92*IF(Calculations!$K64=0,0,IF(MOD(BT$3,$I64)=1,0,IF(MOD(BT$3,Calculations!$K64)=1,1,0))))*$AU64)*(1+'Country Input'!$C$45)^(Calculations!BT$3-$BH$3)","v":1075},{"$f":"(($U64+($O64)*IF(MOD(BU$3,$I64)=1,1,0)+Parts!$E$91*IF($J64=0,0,IF(MOD(BU$3,$I64)=1,IF(PQS!$R64=\"NO\",1,0),IF(MOD(BU$3,Calculations!$J64)=1,1,0)))+Parts!$E$92*IF(Calculations!$K64=0,0,IF(MOD(BU$3,$I64)=1,0,IF(MOD(BU$3,Calculations!$K64)=1,1,0))))*$AU64)*(1+'Country Input'!$C$45)^(Calculations!BU$3-$BH$3)","v":1075},{"$f":"(($U64+($O64)*IF(MOD(BV$3,$I64)=1,1,0)+Parts!$E$91*IF($J64=0,0,IF(MOD(BV$3,$I64)=1,IF(PQS!$R64=\"NO\",1,0),IF(MOD(BV$3,Calculations!$J64)=1,1,0)))+Parts!$E$92*IF(Calculations!$K64=0,0,IF(MOD(BV$3,$I64)=1,0,IF(MOD(BV$3,Calculations!$K64)=1,1,0))))*$AU64)*(1+'Country Input'!$C$45)^(Calculations!BV$3-$BH$3)","v":1075},{"$f":"(($U64+($O64)*IF(MOD(BW$3,$I64)=1,1,0)+Parts!$E$91*IF($J64=0,0,IF(MOD(BW$3,$I64)=1,IF(PQS!$R64=\"NO\",1,0),IF(MOD(BW$3,Calculations!$J64)=1,1,0)))+Parts!$E$92*IF(Calculations!$K64=0,0,IF(MOD(BW$3,$I64)=1,0,IF(MOD(BW$3,Calculations!$K64)=1,1,0))))*$AU64)*(1+'Country Input'!$C$45)^(Calculations!BW$3-$BH$3)","v":1075},{"$f":"(($U64+($O64)*IF(MOD(BX$3,$I64)=1,1,0)+Parts!$E$91*IF($J64=0,0,IF(MOD(BX$3,$I64)=1,IF(PQS!$R64=\"NO\",1,0),IF(MOD(BX$3,Calculations!$J64)=1,1,0)))+Parts!$E$92*IF(Calculations!$K64=0,0,IF(MOD(BX$3,$I64)=1,0,IF(MOD(BX$3,Calculations!$K64)=1,1,0))))*$AU64)*(1+'Country Input'!$C$45)^(Calculations!BX$3-$BH$3)","v":1075},{"$f":"(($U64+($O64)*IF(MOD(BY$3,$I64)=1,1,0)+Parts!$E$91*IF($J64=0,0,IF(MOD(BY$3,$I64)=1,IF(PQS!$R64=\"NO\",1,0),IF(MOD(BY$3,Calculations!$J64)=1,1,0)))+Parts!$E$92*IF(Calculations!$K64=0,0,IF(MOD(BY$3,$I64)=1,0,IF(MOD(BY$3,Calculations!$K64)=1,1,0))))*$AU64)*(1+'Country Input'!$C$45)^(Calculations!BY$3-$BH$3)","v":1075},{"$f":"(($U64+($O64)*IF(MOD(BZ$3,$I64)=1,1,0)+Parts!$E$91*IF($J64=0,0,IF(MOD(BZ$3,$I64)=1,IF(PQS!$R64=\"NO\",1,0),IF(MOD(BZ$3,Calculations!$J64)=1,1,0)))+Parts!$E$92*IF(Calculations!$K64=0,0,IF(MOD(BZ$3,$I64)=1,0,IF(MOD(BZ$3,Calculations!$K64)=1,1,0))))*$AU64)*(1+'Country Input'!$C$45)^(Calculations!BZ$3-$BH$3)","v":1075},{"$f":"(($U64+($O64)*IF(MOD(CA$3,$I64)=1,1,0)+Parts!$E$91*IF($J64=0,0,IF(MOD(CA$3,$I64)=1,IF(PQS!$R64=\"NO\",1,0),IF(MOD(CA$3,Calculations!$J64)=1,1,0)))+Parts!$E$92*IF(Calculations!$K64=0,0,IF(MOD(CA$3,$I64)=1,0,IF(MOD(CA$3,Calculations!$K64)=1,1,0))))*$AU64)*(1+'Country Input'!$C$45)^(Calculations!CA$3-$BH$3)","v":1075},null,"B Medical TCW 3043 SDD*",92334.945570000011,1075,1075,1075,1075,1075,1075,1075,1075,1075,92334.945570000011,1075,1075,1075,1075,1075,1075,1075,1075,1075,{"$f":"SUM(CD64:INDEX($CD64:$CW64,1,'Total Solution Costs'!$B$2))","v":102009.94557000001},null,"B Medical TCW 3043 SDD*",{"$f":"SUM($BH64:BH64)","v":92334.945570000011},{"$f":"SUM($BH64:BI64)","v":93409.945570000011},{"$f":"SUM($BH64:BJ64)","v":94484.945570000011},{"$f":"SUM($BH64:BK64)","v":95559.945570000011},{"$f":"SUM($BH64:BL64)","v":96634.945570000011},{"$f":"SUM($BH64:BM64)","v":97709.945570000011},{"$f":"SUM($BH64:BN64)","v":98784.945570000011},{"$f":"SUM($BH64:BO64)","v":99859.945570000011},{"$f":"SUM($BH64:BP64)","v":100934.94557000001},{"$f":"SUM($BH64:BQ64)","v":102009.94557000001},{"$f":"SUM($BH64:BR64)","v":194344.89114000002},{"$f":"SUM($BH64:BS64)","v":195419.89114000002},{"$f":"SUM($BH64:BT64)","v":196494.89114000002},{"$f":"SUM($BH64:BU64)","v":197569.89114000002},{"$f":"SUM($BH64:BV64)","v":198644.89114000002},{"$f":"SUM($BH64:BW64)","v":199719.89114000002},{"$f":"SUM($BH64:BX64)","v":200794.89114000002},{"$f":"SUM($BH64:BY64)","v":201869.89114000002},{"$f":"SUM($BH64:BZ64)","v":202944.89114000002},{"$f":"SUM($BH64:CA64)","v":204019.89114000002}]
[{"$f":"PQS!A65","v":"SDD"},{"$f":"PQS!B65","v":"E003/048"},{"$f":"PQS!E65","v":"VC 150 SDD*"},{"$f":"PQS!F65","v":"Dulas Solar"},{"$f":"PQS!D65","v":"Dulas Solar VC 150 SDD*"},{"$f":"VLOOKUP(E65,PQS!$D$5:$K$107,COLUMN(PQS!$I$3)-COLUMN(PQS!$D$3)+1,FALSE)","v":102},{"$f":"VLOOKUP(E65,PQS!$D$5:$K$107,COLUMN(PQS!$J$3)-COLUMN(PQS!$D$3)+1,FALSE)","v":42.9},{"$f":"VLOOKUP(E65,PQS!$D$5:$K$107,COLUMN(PQS!$G$3)-COLUMN(PQS!$D$3)+1,FALSE)","v":"Yes"},{"$f":"HLOOKUP(B65,INDIRECT(\"'\"&A65&\"'!$10:$15\"),ROW('Technology template'!$A$11)-ROW('Technology template'!$A$10)+1,FALSE)","v":10},{"$f":"HLOOKUP(B65,INDIRECT(\"'\"&A65&\"'!$10:$15\"),ROW('Technology template'!$A$12)-ROW('Technology template'!$A$10)+1,FALSE)","v":10},{"$f":"HLOOKUP(B65,INDIRECT(\"'\"&A65&\"'!$10:$15\"),ROW('Technology template'!$A$13)-ROW('Technology template'!$A$10)+1,FALSE)","v":0},{"$f":"VLOOKUP(B65,PQS!$B:$Q,MATCH(PQS!$Q$3,PQS!$B$3:$Q$3,0),FALSE)*(1+'Country Input'!$C$47)+HLOOKUP(B65,INDIRECT(\"'\"&A65&\"'!$10:$15\"),ROW('Technology template'!$A$14)-ROW('Technology template'!$A$10)+1,FALSE)*(1+'Country Input'!$C$47)","v":7462.7792000000009},{"$f":"HLOOKUP(B65,INDIRECT(\"'\"&A65&\"'!$10:$80\"),MATCH('Technology template'!$A$27,INDIRECT(\"'\"&A65&\"'!$A$10:$A$80\"),0),FALSE)+'Labor and Maintenance '!$E$18","v":1042},{"$f":"VLOOKUP(B65,PQS!B:T,MATCH(PQS!$T$3,PQS!$B$3:$T$3,0),FALSE)*(1+'Country Input'!$C$47)","v":460.68850000000003},8965.4677000000011,{"$f":"O65/I65","v":896.54677000000015},{"$f":"VLOOKUP(B65,PQS!$B:$AE,COLUMN(PQS!AD63)-1,FALSE)","v":0},{"$f":"IFERROR(1/HLOOKUP(B65,INDIRECT(\"'\"&A65&\"'!$10:$80\"),MATCH('Technology template'!$A$31,INDIRECT(\"'\"&A65&\"'!$A$10:$A$80\"),0),FALSE)*HLOOKUP(B65,INDIRECT(\"'\"&A65&\"'!$10:$80\"),MATCH('Technology template'!$A$41,INDIRECT(\"'\"&A65&\"'!$A10:$A$80\"),0),FALSE),0)*TechnicianHourlyWage+IF(A65=\"Solar w Battery\",1/'Labor and Maintenance '!$E$53*'Labor and Maintenance '!$D$53,0)+IF(A65=\"LT passive\", 1/'Labor and Maintenance '!$E$81*'Labor and Maintenance '!$D$81,0)","v":24},{"$f":"IFERROR(1/HLOOKUP(B65,INDIRECT(\"'\"&A65&\"'!$10:$80\"),MATCH('Technology template'!$A$34,INDIRECT(\"'\"&A65&\"'!$A$10:$A$80\"),0),FALSE)*(HLOOKUP(B65,INDIRECT(\"'\"&A65&\"'!$10:$80\"),MATCH('Technology template'!$A$44,INDIRECT(\"'\"&A65&\"'!$A10:$A$80\"),0),FALSE)*TechnicianHourlyWage+RemoteTravelCostPerDay),0)+IFERROR(1/HLOOKUP(B65,INDIRECT(\"'\"&A65&\"'!$10:$80\"),MATCH('Technology template'!$A$35,INDIRECT(\"'\"&A65&\"'!$A$10:$A$80\"),0),FALSE)*(HLOOKUP(B65,INDIRECT(\"'\"&A65&\"'!$10:$80\"),MATCH('Technology template'!$A$45,INDIRECT(\"'\"&A65&\"'!$A10:$A$80\"),0),FALSE)*TechnicianHourlyWage+RemoteTravelCostPerDay),0)+IFERROR(1/HLOOKUP(B65,INDIRECT(\"'\"&A65&\"'!$10:$80\"),MATCH('Technology template'!$A$37,INDIRECT(\"'\"&A65&\"'!$A$10:$A$80\"),0),FALSE)*(HLOOKUP(B65,INDIRECT(\"'\"&A65&\"'!$10:$80\"),MATCH('Technology template'!$A$46,INDIRECT(\"'\"&A65&\"'!$A10:$A$80\"),0),FALSE)*TechnicianHourlyWage+'Labor and Maintenance '!$B$8),0)","v":83.5},{"$f":"SUM(Q65:S65)*I65","v":1075},{"$f":"SUM(Q65:S65)","v":107.5},{"$f":"P65+U65","v":1004.0467700000002},null,{"$f":"E65","v":"Dulas Solar VC 150 SDD*"},87.896742156862757,10.53921568627451,{"$f":"Y65+Z65","v":98.43595784313726},null,"Dulas Solar VC 150 SDD*",8.7896742156862757,1.053921568627451,9.8435957843137274,null,"Dulas Solar VC 150 SDD*",2,17930.935400000002,2150,{"$f":"AJ65+AK65","v":20080.935400000002},null,"Dulas Solar VC 150 SDD*",2,17.579348431372551,2.107843137254902,{"$f":"+AP65+AQ65","v":19.687191568627455},null,"Dulas Solar VC 150 SDD*",{"$f":"IF(F65=0, 'Country Input'!$D$7, ROUNDUP(LitersPerFacility/F65,0)*'Country Input'!$D$7)","v":10},89654.677000000011,1075,{"$f":"AV65+AW65","v":90729.677000000011},null,"Dulas Solar VC 150 SDD*",{"$f":"ROUNDUP(LitersPerFacility/F65,0)*'Country Input'!$D$7*ROUNDUP('Total Solution Costs'!$B$2/Calculations!I65,0)","v":10},87.896742156862757,1.053921568627451,{"$f":"BB65+BC65","v":88.950663725490202},null,null,"Dulas Solar VC 150 SDD*",{"$f":"(($U65+($O65)*IF(MOD(BH$3,$I65)=1,1,0)+Parts!$E$91*IF($J65=0,0,IF(MOD(BH$3,$I65)=1,IF(PQS!$R65=\"NO\",1,0),IF(MOD(BH$3,Calculations!$J65)=1,1,0)))+Parts!$E$92*IF(Calculations!$K65=0,0,IF(MOD(BH$3,$I65)=1,0,IF(MOD(BH$3,Calculations!$K65)=1,1,0))))*$AU65)*(1+'Country Input'!$C$45)^(Calculations!BH$3-$BH$3)+TrainingCost","v":90729.677000000011},{"$f":"(($U65+($O65)*IF(MOD(BI$3,$I65)=1,1,0)+Parts!$E$91*IF($J65=0,0,IF(MOD(BI$3,$I65)=1,IF(PQS!$R65=\"NO\",1,0),IF(MOD(BI$3,Calculations!$J65)=1,1,0)))+Parts!$E$92*IF(Calculations!$K65=0,0,IF(MOD(BI$3,$I65)=1,0,IF(MOD(BI$3,Calculations!$K65)=1,1,0))))*$AU65)*(1+'Country Input'!$C$45)^(Calculations!BI$3-$BH$3)","v":1075},{"$f":"(($U65+($O65)*IF(MOD(BJ$3,$I65)=1,1,0)+Parts!$E$91*IF($J65=0,0,IF(MOD(BJ$3,$I65)=1,IF(PQS!$R65=\"NO\",1,0),IF(MOD(BJ$3,Calculations!$J65)=1,1,0)))+Parts!$E$92*IF(Calculations!$K65=0,0,IF(MOD(BJ$3,$I65)=1,0,IF(MOD(BJ$3,Calculations!$K65)=1,1,0))))*$AU65)*(1+'Country Input'!$C$45)^(Calculations!BJ$3-$BH$3)","v":1075},{"$f":"(($U65+($O65)*IF(MOD(BK$3,$I65)=1,1,0)+Parts!$E$91*IF($J65=0,0,IF(MOD(BK$3,$I65)=1,IF(PQS!$R65=\"NO\",1,0),IF(MOD(BK$3,Calculations!$J65)=1,1,0)))+Parts!$E$92*IF(Calculations!$K65=0,0,IF(MOD(BK$3,$I65)=1,0,IF(MOD(BK$3,Calculations!$K65)=1,1,0))))*$AU65)*(1+'Country Input'!$C$45)^(Calculations!BK$3-$BH$3)","v":1075},{"$f":"(($U65+($O65)*IF(MOD(BL$3,$I65)=1,1,0)+Parts!$E$91*IF($J65=0,0,IF(MOD(BL$3,$I65)=1,IF(PQS!$R65=\"NO\",1,0),IF(MOD(BL$3,Calculations!$J65)=1,1,0)))+Parts!$E$92*IF(Calculations!$K65=0,0,IF(MOD(BL$3,$I65)=1,0,IF(MOD(BL$3,Calculations!$K65)=1,1,0))))*$AU65)*(1+'Country Input'!$C$45)^(Calculations!BL$3-$BH$3)","v":1075},{"$f":"(($U65+($O65)*IF(MOD(BM$3,$I65)=1,1,0)+Parts!$E$91*IF($J65=0,0,IF(MOD(BM$3,$I65)=1,IF(PQS!$R65=\"NO\",1,0),IF(MOD(BM$3,Calculations!$J65)=1,1,0)))+Parts!$E$92*IF(Calculations!$K65=0,0,IF(MOD(BM$3,$I65)=1,0,IF(MOD(BM$3,Calculations!$K65)=1,1,0))))*$AU65)*(1+'Country Input'!$C$45)^(Calculations!BM$3-$BH$3)","v":1075},{"$f":"(($U65+($O65)*IF(MOD(BN$3,$I65)=1,1,0)+Parts!$E$91*IF($J65=0,0,IF(MOD(BN$3,$I65)=1,IF(PQS!$R65=\"NO\",1,0),IF(MOD(BN$3,Calculations!$J65)=1,1,0)))+Parts!$E$92*IF(Calculations!$K65=0,0,IF(MOD(BN$3,$I65)=1,0,IF(MOD(BN$3,Calculations!$K65)=1,1,0))))*$AU65)*(1+'Country Input'!$C$45)^(Calculations!BN$3-$BH$3)","v":1075},{"$f":"(($U65+($O65)*IF(MOD(BO$3,$I65)=1,1,0)+Parts!$E$91*IF($J65=0,0,IF(MOD(BO$3,$I65)=1,IF(PQS!$R65=\"NO\",1,0),IF(MOD(BO$3,Calculations!$J65)=1,1,0)))+Parts!$E$92*IF(Calculations!$K65=0,0,IF(MOD(BO$3,$I65)=1,0,IF(MOD(BO$3,Calculations!$K65)=1,1,0))))*$AU65)*(1+'Country Input'!$C$45)^(Calculations!BO$3-$BH$3)","v":1075},{"$f":"(($U65+($O65)*IF(MOD(BP$3,$I65)=1,1,0)+Parts!$E$91*IF($J65=0,0,IF(MOD(BP$3,$I65)=1,IF(PQS!$R65=\"NO\",1,0),IF(MOD(BP$3,Calculations!$J65)=1,1,0)))+Parts!$E$92*IF(Calculations!$K65=0,0,IF(MOD(BP$3,$I65)=1,0,IF(MOD(BP$3,Calculations!$K65)=1,1,0))))*$AU65)*(1+'Country Input'!$C$45)^(Calculations!BP$3-$BH$3)","v":1075},{"$f":"(($U65+($O65)*IF(MOD(BQ$3,$I65)=1,1,0)+Parts!$E$91*IF($J65=0,0,IF(MOD(BQ$3,$I65)=1,IF(PQS!$R65=\"NO\",1,0),IF(MOD(BQ$3,Calculations!$J65)=1,1,0)))+Parts!$E$92*IF(Calculations!$K65=0,0,IF(MOD(BQ$3,$I65)=1,0,IF(MOD(BQ$3,Calculations!$K65)=1,1,0))))*$AU65)*(1+'Country Input'!$C$45)^(Calculations!BQ$3-$BH$3)","v":1075},{"$f":"(($U65+($O65)*IF(MOD(BR$3,$I65)=1,1,0)+Parts!$E$91*IF($J65=0,0,IF(MOD(BR$3,$I65)=1,IF(PQS!$R65=\"NO\",1,0),IF(MOD(BR$3,Calculations!$J65)=1,1,0)))+Parts!$E$92*IF(Calculations!$K65=0,0,IF(MOD(BR$3,$I65)=1,0,IF(MOD(BR$3,Calculations!$K65)=1,1,0))))*$AU65)*(1+'Country Input'!$C$45)^(Calculations!BR$3-$BH$3)","v":90729.677000000011},{"$f":"(($U65+($O65)*IF(MOD(BS$3,$I65)=1,1,0)+Parts!$E$91*IF($J65=0,0,IF(MOD(BS$3,$I65)=1,IF(PQS!$R65=\"NO\",1,0),IF(MOD(BS$3,Calculations!$J65)=1,1,0)))+Parts!$E$92*IF(Calculations!$K65=0,0,IF(MOD(BS$3,$I65)=1,0,IF(MOD(BS$3,Calculations!$K65)=1,1,0))))*$AU65)*(1+'Country Input'!$C$45)^(Calculations!BS$3-$BH$3)","v":1075},{"$f":"(($U65+($O65)*IF(MOD(BT$3,$I65)=1,1,0)+Parts!$E$91*IF($J65=0,0,IF(MOD(BT$3,$I65)=1,IF(PQS!$R65=\"NO\",1,0),IF(MOD(BT$3,Calculations!$J65)=1,1,0)))+Parts!$E$92*IF(Calculations!$K65=0,0,IF(MOD(BT$3,$I65)=1,0,IF(MOD(BT$3,Calculations!$K65)=1,1,0))))*$AU65)*(1+'Country Input'!$C$45)^(Calculations!BT$3-$BH$3)","v":1075},{"$f":"(($U65+($O65)*IF(MOD(BU$3,$I65)=1,1,0)+Parts!$E$91*IF($J65=0,0,IF(MOD(BU$3,$I65)=1,IF(PQS!$R65=\"NO\",1,0),IF(MOD(BU$3,Calculations!$J65)=1,1,0)))+Parts!$E$92*IF(Calculations!$K65=0,0,IF(MOD(BU$3,$I65)=1,0,IF(MOD(BU$3,Calculations!$K65)=1,1,0))))*$AU65)*(1+'Country Input'!$C$45)^(Calculations!BU$3-$BH$3)","v":1075},{"$f":"(($U65+($O65)*IF(MOD(BV$3,$I65)=1,1,0)+Parts!$E$91*IF($J65=0,0,IF(MOD(BV$3,$I65)=1,IF(PQS!$R65=\"NO\",1,0),IF(MOD(BV$3,Calculations!$J65)=1,1,0)))+Parts!$E$92*IF(Calculations!$K65=0,0,IF(MOD(BV$3,$I65)=1,0,IF(MOD(BV$3,Calculations!$K65)=1,1,0))))*$AU65)*(1+'Country Input'!$C$45)^(Calculations!BV$3-$BH$3)","v":1075},{"$f":"(($U65+($O65)*IF(MOD(BW$3,$I65)=1,1,0)+Parts!$E$91*IF($J65=0,0,IF(MOD(BW$3,$I65)=1,IF(PQS!$R65=\"NO\",1,0),IF(MOD(BW$3,Calculations!$J65)=1,1,0)))+Parts!$E$92*IF(Calculations!$K65=0,0,IF(MOD(BW$3,$I65)=1,0,IF(MOD(BW$3,Calculations!$K65)=1,1,0))))*$AU65)*(1+'Country Input'!$C$45)^(Calculations!BW$3-$BH$3)","v":1075},{"$f":"(($U65+($O65)*IF(MOD(BX$3,$I65)=1,1,0)+Parts!$E$91*IF($J65=0,0,IF(MOD(BX$3,$I65)=1,IF(PQS!$R65=\"NO\",1,0),IF(MOD(BX$3,Calculations!$J65)=1,1,0)))+Parts!$E$92*IF(Calculations!$K65=0,0,IF(MOD(BX$3,$I65)=1,0,IF(MOD(BX$3,Calculations!$K65)=1,1,0))))*$AU65)*(1+'Country Input'!$C$45)^(Calculations!BX$3-$BH$3)","v":1075},{"$f":"(($U65+($O65)*IF(MOD(BY$3,$I65)=1,1,0)+Parts!$E$91*IF($J65=0,0,IF(MOD(BY$3,$I65)=1,IF(PQS!$R65=\"NO\",1,0),IF(MOD(BY$3,Calculations!$J65)=1,1,0)))+Parts!$E$92*IF(Calculations!$K65=0,0,IF(MOD(BY$3,$I65)=1,0,IF(MOD(BY$3,Calculations!$K65)=1,1,0))))*$AU65)*(1+'Country Input'!$C$45)^(Calculations!BY$3-$BH$3)","v":1075},{"$f":"(($U65+($O65)*IF(MOD(BZ$3,$I65)=1,1,0)+Parts!$E$91*IF($J65=0,0,IF(MOD(BZ$3,$I65)=1,IF(PQS!$R65=\"NO\",1,0),IF(MOD(BZ$3,Calculations!$J65)=1,1,0)))+Parts!$E$92*IF(Calculations!$K65=0,0,IF(MOD(BZ$3,$I65)=1,0,IF(MOD(BZ$3,Calculations!$K65)=1,1,0))))*$AU65)*(1+'Country Input'!$C$45)^(Calculations!BZ$3-$BH$3)","v":1075},{"$f":"(($U65+($O65)*IF(MOD(CA$3,$I65)=1,1,0)+Parts!$E$91*IF($J65=0,0,IF(MOD(CA$3,$I65)=1,IF(PQS!$R65=\"NO\",1,0),IF(MOD(CA$3,Calculations!$J65)=1,1,0)))+Parts!$E$92*IF(Calculations!$K65=0,0,IF(MOD(CA$3,$I65)=1,0,IF(MOD(CA$3,Calculations!$K65)=1,1,0))))*$AU65)*(1+'Country Input'!$C$45)^(Calculations!CA$3-$BH$3)","v":1075},null,"Dulas Solar VC 150 SDD*",90729.677000000011,1075,1075,1075,1075,1075,1075,1075,1075,1075,90729.677000000011,1075,1075,1075,1075,1075,1075,1075,1075,1075,{"$f":"SUM(CD65:INDEX($CD65:$CW65,1,'Total Solution Costs'!$B$2))","v":100404.67700000001},null,"Dulas Solar VC 150 SDD*",{"$f":"SUM($BH65:BH65)","v":90729.677000000011},{"$f":"SUM($BH65:BI65)","v":91804.677000000011},{"$f":"SUM($BH65:BJ65)","v":92879.677000000011},{"$f":"SUM($BH65:BK65)","v":93954.677000000011},{"$f":"SUM($BH65:BL65)","v":95029.677000000011},{"$f":"SUM($BH65:BM65)","v":96104.677000000011},{"$f":"SUM($BH65:BN65)","v":97179.677000000011},{"$f":"SUM($BH65:BO65)","v":98254.677000000011},{"$f":"SUM($BH65:BP65)","v":99329.677000000011},{"$f":"SUM($BH65:BQ65)","v":100404.67700000001},{"$f":"SUM($BH65:BR65)","v":191134.35400000002},{"$f":"SUM($BH65:BS65)","v":192209.35400000002},{"$f":"SUM($BH65:BT65)","v":193284.35400000002},{"$f":"SUM($BH65:BU65)","v":194359.35400000002},{"$f":"SUM($BH65:BV65)","v":195434.35400000002},{"$f":"SUM($BH65:BW65)","v":196509.35400000002},{"$f":"SUM($BH65:BX65)","v":197584.35400000002},{"$f":"SUM($BH65:BY65)","v":198659.35400000002},{"$f":"SUM($BH65:BZ65)","v":199734.35400000002},{"$f":"SUM($BH65:CA65)","v":200809.35400000002}]
[{"$f":"PQS!A66","v":"SDD"},{"$f":"PQS!B66","v":"E003/049"},{"$f":"PQS!E66","v":"GVR 50DC SDD*"},{"$f":"PQS!F66","v":"Godrej & Boyce "},{"$f":"PQS!D66","v":"Godrej & Boyce  GVR 50DC SDD*"},{"$f":"VLOOKUP(E66,PQS!$D$5:$K$107,COLUMN(PQS!$I$3)-COLUMN(PQS!$D$3)+1,FALSE)","v":46.5},{"$f":"VLOOKUP(E66,PQS!$D$5:$K$107,COLUMN(PQS!$J$3)-COLUMN(PQS!$D$3)+1,FALSE)","v":0},{"$f":"VLOOKUP(E66,PQS!$D$5:$K$107,COLUMN(PQS!$G$3)-COLUMN(PQS!$D$3)+1,FALSE)","v":"Yes"},{"$f":"HLOOKUP(B66,INDIRECT(\"'\"&A66&\"'!$10:$15\"),ROW('Technology template'!$A$11)-ROW('Technology template'!$A$10)+1,FALSE)","v":10},{"$f":"HLOOKUP(B66,INDIRECT(\"'\"&A66&\"'!$10:$15\"),ROW('Technology template'!$A$12)-ROW('Technology template'!$A$10)+1,FALSE)","v":10},{"$f":"HLOOKUP(B66,INDIRECT(\"'\"&A66&\"'!$10:$15\"),ROW('Technology template'!$A$13)-ROW('Technology template'!$A$10)+1,FALSE)","v":0},{"$f":"VLOOKUP(B66,PQS!$B:$Q,MATCH(PQS!$Q$3,PQS!$B$3:$Q$3,0),FALSE)*(1+'Country Input'!$C$47)+HLOOKUP(B66,INDIRECT(\"'\"&A66&\"'!$10:$15\"),ROW('Technology template'!$A$14)-ROW('Technology template'!$A$10)+1,FALSE)*(1+'Country Input'!$C$47)","v":3761.05},{"$f":"HLOOKUP(B66,INDIRECT(\"'\"&A66&\"'!$10:$80\"),MATCH('Technology template'!$A$27,INDIRECT(\"'\"&A66&\"'!$A$10:$A$80\"),0),FALSE)+'Labor and Maintenance '!$E$18","v":1042},{"$f":"VLOOKUP(B66,PQS!B:T,MATCH(PQS!$T$3,PQS!$B$3:$T$3,0),FALSE)*(1+'Country Input'!$C$47)","v":415.16},5218.21,521.82100000000003,{"$f":"VLOOKUP(B66,PQS!$B:$AE,COLUMN(PQS!AD64)-1,FALSE)","v":0},{"$f":"IFERROR(1/HLOOKUP(B66,INDIRECT(\"'\"&A66&\"'!$10:$80\"),MATCH('Technology template'!$A$31,INDIRECT(\"'\"&A66&\"'!$A$10:$A$80\"),0),FALSE)*HLOOKUP(B66,INDIRECT(\"'\"&A66&\"'!$10:$80\"),MATCH('Technology template'!$A$41,INDIRECT(\"'\"&A66&\"'!$A10:$A$80\"),0),FALSE),0)*TechnicianHourlyWage+IF(A66=\"Solar w Battery\",1/'Labor and Maintenance '!$E$53*'Labor and Maintenance '!$D$53,0)+IF(A66=\"LT passive\", 1/'Labor and Maintenance '!$E$81*'Labor and Maintenance '!$D$81,0)","v":24},{"$f":"IFERROR(1/HLOOKUP(B66,INDIRECT(\"'\"&A66&\"'!$10:$80\"),MATCH('Technology template'!$A$34,INDIRECT(\"'\"&A66&\"'!$A$10:$A$80\"),0),FALSE)*(HLOOKUP(B66,INDIRECT(\"'\"&A66&\"'!$10:$80\"),MATCH('Technology template'!$A$44,INDIRECT(\"'\"&A66&\"'!$A10:$A$80\"),0),FALSE)*TechnicianHourlyWage+RemoteTravelCostPerDay),0)+IFERROR(1/HLOOKUP(B66,INDIRECT(\"'\"&A66&\"'!$10:$80\"),MATCH('Technology template'!$A$35,INDIRECT(\"'\"&A66&\"'!$A$10:$A$80\"),0),FALSE)*(HLOOKUP(B66,INDIRECT(\"'\"&A66&\"'!$10:$80\"),MATCH('Technology template'!$A$45,INDIRECT(\"'\"&A66&\"'!$A10:$A$80\"),0),FALSE)*TechnicianHourlyWage+RemoteTravelCostPerDay),0)+IFERROR(1/HLOOKUP(B66,INDIRECT(\"'\"&A66&\"'!$10:$80\"),MATCH('Technology template'!$A$37,INDIRECT(\"'\"&A66&\"'!$A$10:$A$80\"),0),FALSE)*(HLOOKUP(B66,INDIRECT(\"'\"&A66&\"'!$10:$80\"),MATCH('Technology template'!$A$46,INDIRECT(\"'\"&A66&\"'!$A10:$A$80\"),0),FALSE)*TechnicianHourlyWage+'Labor and Maintenance '!$B$8),0)","v":83.5},1075,107.5,629.32100000000003,null,"Godrej & Boyce  GVR 50DC SDD*",112.21956989247312,23.118279569892472,{"$f":"Y66+Z66","v":135.3378494623656},null,"Godrej & Boyce  GVR 50DC SDD*",11.221956989247312,2.3118279569892475,13.53378494623656,null,"Godrej & Boyce  GVR 50DC SDD*",3,15654.630000000001,3225,{"$f":"AJ66+AK66","v":18879.63},null,"Godrej & Boyce  GVR 50DC SDD*",3,33.665870967741938,6.935483870967742,{"$f":"+AP66+AQ66","v":40.601354838709682},null,"Godrej & Boyce  GVR 50DC SDD*",{"$f":"IF(F66=0, 'Country Input'!$D$7, ROUNDUP(LitersPerFacility/F66,0)*'Country Input'!$D$7)","v":10},52182.1,1075,{"$f":"AV66+AW66","v":53257.1},null,"Godrej & Boyce  GVR 50DC SDD*",{"$f":"ROUNDUP(LitersPerFacility/F66,0)*'Country Input'!$D$7*ROUNDUP('Total Solution Costs'!$B$2/Calculations!I66,0)","v":10},112.21956989247312,2.3118279569892475,{"$f":"BB66+BC66","v":114.53139784946237},null,null,"Godrej & Boyce  GVR 50DC SDD*",{"$f":"(($U66+($O66)*IF(MOD(BH$3,$I66)=1,1,0)+Parts!$E$91*IF($J66=0,0,IF(MOD(BH$3,$I66)=1,IF(PQS!$R66=\"NO\",1,0),IF(MOD(BH$3,Calculations!$J66)=1,1,0)))+Parts!$E$92*IF(Calculations!$K66=0,0,IF(MOD(BH$3,$I66)=1,0,IF(MOD(BH$3,Calculations!$K66)=1,1,0))))*$AU66)*(1+'Country Input'!$C$45)^(Calculations!BH$3-$BH$3)+TrainingCost","v":53257.1},{"$f":"(($U66+($O66)*IF(MOD(BI$3,$I66)=1,1,0)+Parts!$E$91*IF($J66=0,0,IF(MOD(BI$3,$I66)=1,IF(PQS!$R66=\"NO\",1,0),IF(MOD(BI$3,Calculations!$J66)=1,1,0)))+Parts!$E$92*IF(Calculations!$K66=0,0,IF(MOD(BI$3,$I66)=1,0,IF(MOD(BI$3,Calculations!$K66)=1,1,0))))*$AU66)*(1+'Country Input'!$C$45)^(Calculations!BI$3-$BH$3)","v":1075},{"$f":"(($U66+($O66)*IF(MOD(BJ$3,$I66)=1,1,0)+Parts!$E$91*IF($J66=0,0,IF(MOD(BJ$3,$I66)=1,IF(PQS!$R66=\"NO\",1,0),IF(MOD(BJ$3,Calculations!$J66)=1,1,0)))+Parts!$E$92*IF(Calculations!$K66=0,0,IF(MOD(BJ$3,$I66)=1,0,IF(MOD(BJ$3,Calculations!$K66)=1,1,0))))*$AU66)*(1+'Country Input'!$C$45)^(Calculations!BJ$3-$BH$3)","v":1075},{"$f":"(($U66+($O66)*IF(MOD(BK$3,$I66)=1,1,0)+Parts!$E$91*IF($J66=0,0,IF(MOD(BK$3,$I66)=1,IF(PQS!$R66=\"NO\",1,0),IF(MOD(BK$3,Calculations!$J66)=1,1,0)))+Parts!$E$92*IF(Calculations!$K66=0,0,IF(MOD(BK$3,$I66)=1,0,IF(MOD(BK$3,Calculations!$K66)=1,1,0))))*$AU66)*(1+'Country Input'!$C$45)^(Calculations!BK$3-$BH$3)","v":1075},{"$f":"(($U66+($O66)*IF(MOD(BL$3,$I66)=1,1,0)+Parts!$E$91*IF($J66=0,0,IF(MOD(BL$3,$I66)=1,IF(PQS!$R66=\"NO\",1,0),IF(MOD(BL$3,Calculations!$J66)=1,1,0)))+Parts!$E$92*IF(Calculations!$K66=0,0,IF(MOD(BL$3,$I66)=1,0,IF(MOD(BL$3,Calculations!$K66)=1,1,0))))*$AU66)*(1+'Country Input'!$C$45)^(Calculations!BL$3-$BH$3)","v":1075},{"$f":"(($U66+($O66)*IF(MOD(BM$3,$I66)=1,1,0)+Parts!$E$91*IF($J66=0,0,IF(MOD(BM$3,$I66)=1,IF(PQS!$R66=\"NO\",1,0),IF(MOD(BM$3,Calculations!$J66)=1,1,0)))+Parts!$E$92*IF(Calculations!$K66=0,0,IF(MOD(BM$3,$I66)=1,0,IF(MOD(BM$3,Calculations!$K66)=1,1,0))))*$AU66)*(1+'Country Input'!$C$45)^(Calculations!BM$3-$BH$3)","v":1075},{"$f":"(($U66+($O66)*IF(MOD(BN$3,$I66)=1,1,0)+Parts!$E$91*IF($J66=0,0,IF(MOD(BN$3,$I66)=1,IF(PQS!$R66=\"NO\",1,0),IF(MOD(BN$3,Calculations!$J66)=1,1,0)))+Parts!$E$92*IF(Calculations!$K66=0,0,IF(MOD(BN$3,$I66)=1,0,IF(MOD(BN$3,Calculations!$K66)=1,1,0))))*$AU66)*(1+'Country Input'!$C$45)^(Calculations!BN$3-$BH$3)","v":1075},{"$f":"(($U66+($O66)*IF(MOD(BO$3,$I66)=1,1,0)+Parts!$E$91*IF($J66=0,0,IF(MOD(BO$3,$I66)=1,IF(PQS!$R66=\"NO\",1,0),IF(MOD(BO$3,Calculations!$J66)=1,1,0)))+Parts!$E$92*IF(Calculations!$K66=0,0,IF(MOD(BO$3,$I66)=1,0,IF(MOD(BO$3,Calculations!$K66)=1,1,0))))*$AU66)*(1+'Country Input'!$C$45)^(Calculations!BO$3-$BH$3)","v":1075},{"$f":"(($U66+($O66)*IF(MOD(BP$3,$I66)=1,1,0)+Parts!$E$91*IF($J66=0,0,IF(MOD(BP$3,$I66)=1,IF(PQS!$R66=\"NO\",1,0),IF(MOD(BP$3,Calculations!$J66)=1,1,0)))+Parts!$E$92*IF(Calculations!$K66=0,0,IF(MOD(BP$3,$I66)=1,0,IF(MOD(BP$3,Calculations!$K66)=1,1,0))))*$AU66)*(1+'Country Input'!$C$45)^(Calculations!BP$3-$BH$3)","v":1075},{"$f":"(($U66+($O66)*IF(MOD(BQ$3,$I66)=1,1,0)+Parts!$E$91*IF($J66=0,0,IF(MOD(BQ$3,$I66)=1,IF(PQS!$R66=\"NO\",1,0),IF(MOD(BQ$3,Calculations!$J66)=1,1,0)))+Parts!$E$92*IF(Calculations!$K66=0,0,IF(MOD(BQ$3,$I66)=1,0,IF(MOD(BQ$3,Calculations!$K66)=1,1,0))))*$AU66)*(1+'Country Input'!$C$45)^(Calculations!BQ$3-$BH$3)","v":1075},{"$f":"(($U66+($O66)*IF(MOD(BR$3,$I66)=1,1,0)+Parts!$E$91*IF($J66=0,0,IF(MOD(BR$3,$I66)=1,IF(PQS!$R66=\"NO\",1,0),IF(MOD(BR$3,Calculations!$J66)=1,1,0)))+Parts!$E$92*IF(Calculations!$K66=0,0,IF(MOD(BR$3,$I66)=1,0,IF(MOD(BR$3,Calculations!$K66)=1,1,0))))*$AU66)*(1+'Country Input'!$C$45)^(Calculations!BR$3-$BH$3)","v":53257.1},{"$f":"(($U66+($O66)*IF(MOD(BS$3,$I66)=1,1,0)+Parts!$E$91*IF($J66=0,0,IF(MOD(BS$3,$I66)=1,IF(PQS!$R66=\"NO\",1,0),IF(MOD(BS$3,Calculations!$J66)=1,1,0)))+Parts!$E$92*IF(Calculations!$K66=0,0,IF(MOD(BS$3,$I66)=1,0,IF(MOD(BS$3,Calculations!$K66)=1,1,0))))*$AU66)*(1+'Country Input'!$C$45)^(Calculations!BS$3-$BH$3)","v":1075},{"$f":"(($U66+($O66)*IF(MOD(BT$3,$I66)=1,1,0)+Parts!$E$91*IF($J66=0,0,IF(MOD(BT$3,$I66)=1,IF(PQS!$R66=\"NO\",1,0),IF(MOD(BT$3,Calculations!$J66)=1,1,0)))+Parts!$E$92*IF(Calculations!$K66=0,0,IF(MOD(BT$3,$I66)=1,0,IF(MOD(BT$3,Calculations!$K66)=1,1,0))))*$AU66)*(1+'Country Input'!$C$45)^(Calculations!BT$3-$BH$3)","v":1075},{"$f":"(($U66+($O66)*IF(MOD(BU$3,$I66)=1,1,0)+Parts!$E$91*IF($J66=0,0,IF(MOD(BU$3,$I66)=1,IF(PQS!$R66=\"NO\",1,0),IF(MOD(BU$3,Calculations!$J66)=1,1,0)))+Parts!$E$92*IF(Calculations!$K66=0,0,IF(MOD(BU$3,$I66)=1,0,IF(MOD(BU$3,Calculations!$K66)=1,1,0))))*$AU66)*(1+'Country Input'!$C$45)^(Calculations!BU$3-$BH$3)","v":1075},{"$f":"(($U66+($O66)*IF(MOD(BV$3,$I66)=1,1,0)+Parts!$E$91*IF($J66=0,0,IF(MOD(BV$3,$I66)=1,IF(PQS!$R66=\"NO\",1,0),IF(MOD(BV$3,Calculations!$J66)=1,1,0)))+Parts!$E$92*IF(Calculations!$K66=0,0,IF(MOD(BV$3,$I66)=1,0,IF(MOD(BV$3,Calculations!$K66)=1,1,0))))*$AU66)*(1+'Country Input'!$C$45)^(Calculations!BV$3-$BH$3)","v":1075},{"$f":"(($U66+($O66)*IF(MOD(BW$3,$I66)=1,1,0)+Parts!$E$91*IF($J66=0,0,IF(MOD(BW$3,$I66)=1,IF(PQS!$R66=\"NO\",1,0),IF(MOD(BW$3,Calculations!$J66)=1,1,0)))+Parts!$E$92*IF(Calculations!$K66=0,0,IF(MOD(BW$3,$I66)=1,0,IF(MOD(BW$3,Calculations!$K66)=1,1,0))))*$AU66)*(1+'Country Input'!$C$45)^(Calculations!BW$3-$BH$3)","v":1075},{"$f":"(($U66+($O66)*IF(MOD(BX$3,$I66)=1,1,0)+Parts!$E$91*IF($J66=0,0,IF(MOD(BX$3,$I66)=1,IF(PQS!$R66=\"NO\",1,0),IF(MOD(BX$3,Calculations!$J66)=1,1,0)))+Parts!$E$92*IF(Calculations!$K66=0,0,IF(MOD(BX$3,$I66)=1,0,IF(MOD(BX$3,Calculations!$K66)=1,1,0))))*$AU66)*(1+'Country Input'!$C$45)^(Calculations!BX$3-$BH$3)","v":1075},{"$f":"(($U66+($O66)*IF(MOD(BY$3,$I66)=1,1,0)+Parts!$E$91*IF($J66=0,0,IF(MOD(BY$3,$I66)=1,IF(PQS!$R66=\"NO\",1,0),IF(MOD(BY$3,Calculations!$J66)=1,1,0)))+Parts!$E$92*IF(Calculations!$K66=0,0,IF(MOD(BY$3,$I66)=1,0,IF(MOD(BY$3,Calculations!$K66)=1,1,0))))*$AU66)*(1+'Country Input'!$C$45)^(Calculations!BY$3-$BH$3)","v":1075},{"$f":"(($U66+($O66)*IF(MOD(BZ$3,$I66)=1,1,0)+Parts!$E$91*IF($J66=0,0,IF(MOD(BZ$3,$I66)=1,IF(PQS!$R66=\"NO\",1,0),IF(MOD(BZ$3,Calculations!$J66)=1,1,0)))+Parts!$E$92*IF(Calculations!$K66=0,0,IF(MOD(BZ$3,$I66)=1,0,IF(MOD(BZ$3,Calculations!$K66)=1,1,0))))*$AU66)*(1+'Country Input'!$C$45)^(Calculations!BZ$3-$BH$3)","v":1075},{"$f":"(($U66+($O66)*IF(MOD(CA$3,$I66)=1,1,0)+Parts!$E$91*IF($J66=0,0,IF(MOD(CA$3,$I66)=1,IF(PQS!$R66=\"NO\",1,0),IF(MOD(CA$3,Calculations!$J66)=1,1,0)))+Parts!$E$92*IF(Calculations!$K66=0,0,IF(MOD(CA$3,$I66)=1,0,IF(MOD(CA$3,Calculations!$K66)=1,1,0))))*$AU66)*(1+'Country Input'!$C$45)^(Calculations!CA$3-$BH$3)","v":1075},null,"Godrej & Boyce  GVR 50DC SDD*",53257.1,1075,1075,1075,1075,1075,1075,1075,1075,1075,53257.1,1075,1075,1075,1075,1075,1075,1075,1075,1075,{"$f":"SUM(CD66:INDEX($CD66:$CW66,1,'Total Solution Costs'!$B$2))","v":62932.1},null,"Godrej & Boyce  GVR 50DC SDD*",{"$f":"SUM($BH66:BH66)","v":53257.1},{"$f":"SUM($BH66:BI66)","v":54332.1},{"$f":"SUM($BH66:BJ66)","v":55407.1},{"$f":"SUM($BH66:BK66)","v":56482.1},{"$f":"SUM($BH66:BL66)","v":57557.1},{"$f":"SUM($BH66:BM66)","v":58632.1},{"$f":"SUM($BH66:BN66)","v":59707.1},{"$f":"SUM($BH66:BO66)","v":60782.1},{"$f":"SUM($BH66:BP66)","v":61857.1},{"$f":"SUM($BH66:BQ66)","v":62932.1},{"$f":"SUM($BH66:BR66)","v":116189.2},{"$f":"SUM($BH66:BS66)","v":117264.2},{"$f":"SUM($BH66:BT66)","v":118339.2},{"$f":"SUM($BH66:BU66)","v":119414.2},{"$f":"SUM($BH66:BV66)","v":120489.2},{"$f":"SUM($BH66:BW66)","v":121564.2},{"$f":"SUM($BH66:BX66)","v":122639.2},{"$f":"SUM($BH66:BY66)","v":123714.2},{"$f":"SUM($BH66:BZ66)","v":124789.2},{"$f":"SUM($BH66:CA66)","v":125864.2}]
[{"$f":"PQS!A67","v":"SDD"},{"$f":"PQS!B67","v":"E003/050"},{"$f":"PQS!E67","v":"GVR 100DC (SureChill)*"},{"$f":"PQS!F67","v":"Godrej & Boyce "},{"$f":"PQS!D67","v":"Godrej & Boyce  GVR 100DC (SureChill)*"},{"$f":"VLOOKUP(E67,PQS!$D$5:$K$107,COLUMN(PQS!$I$3)-COLUMN(PQS!$D$3)+1,FALSE)","v":99},{"$f":"VLOOKUP(E67,PQS!$D$5:$K$107,COLUMN(PQS!$J$3)-COLUMN(PQS!$D$3)+1,FALSE)","v":0},{"$f":"VLOOKUP(E67,PQS!$D$5:$K$107,COLUMN(PQS!$G$3)-COLUMN(PQS!$D$3)+1,FALSE)","v":"Yes"},{"$f":"HLOOKUP(B67,INDIRECT(\"'\"&A67&\"'!$10:$15\"),ROW('Technology template'!$A$11)-ROW('Technology template'!$A$10)+1,FALSE)","v":10},{"$f":"HLOOKUP(B67,INDIRECT(\"'\"&A67&\"'!$10:$15\"),ROW('Technology template'!$A$12)-ROW('Technology template'!$A$10)+1,FALSE)","v":10},{"$f":"HLOOKUP(B67,INDIRECT(\"'\"&A67&\"'!$10:$15\"),ROW('Technology template'!$A$13)-ROW('Technology template'!$A$10)+1,FALSE)","v":0},{"$f":"VLOOKUP(B67,PQS!$B:$Q,MATCH(PQS!$Q$3,PQS!$B$3:$Q$3,0),FALSE)*(1+'Country Input'!$C$47)+HLOOKUP(B67,INDIRECT(\"'\"&A67&\"'!$10:$15\"),ROW('Technology template'!$A$14)-ROW('Technology template'!$A$10)+1,FALSE)*(1+'Country Input'!$C$47)","v":5156.8649999999998},{"$f":"HLOOKUP(B67,INDIRECT(\"'\"&A67&\"'!$10:$80\"),MATCH('Technology template'!$A$27,INDIRECT(\"'\"&A67&\"'!$A$10:$A$80\"),0),FALSE)+'Labor and Maintenance '!$E$18","v":1042},{"$f":"VLOOKUP(B67,PQS!B:T,MATCH(PQS!$T$3,PQS!$B$3:$T$3,0),FALSE)*(1+'Country Input'!$C$47)","v":415.16},6614.0249999999996,661.40249999999992,{"$f":"VLOOKUP(B67,PQS!$B:$AE,COLUMN(PQS!AD65)-1,FALSE)","v":0},{"$f":"IFERROR(1/HLOOKUP(B67,INDIRECT(\"'\"&A67&\"'!$10:$80\"),MATCH('Technology template'!$A$31,INDIRECT(\"'\"&A67&\"'!$A$10:$A$80\"),0),FALSE)*HLOOKUP(B67,INDIRECT(\"'\"&A67&\"'!$10:$80\"),MATCH('Technology template'!$A$41,INDIRECT(\"'\"&A67&\"'!$A10:$A$80\"),0),FALSE),0)*TechnicianHourlyWage+IF(A67=\"Solar w Battery\",1/'Labor and Maintenance '!$E$53*'Labor and Maintenance '!$D$53,0)+IF(A67=\"LT passive\", 1/'Labor and Maintenance '!$E$81*'Labor and Maintenance '!$D$81,0)","v":24},{"$f":"IFERROR(1/HLOOKUP(B67,INDIRECT(\"'\"&A67&\"'!$10:$80\"),MATCH('Technology template'!$A$34,INDIRECT(\"'\"&A67&\"'!$A$10:$A$80\"),0),FALSE)*(HLOOKUP(B67,INDIRECT(\"'\"&A67&\"'!$10:$80\"),MATCH('Technology template'!$A$44,INDIRECT(\"'\"&A67&\"'!$A10:$A$80\"),0),FALSE)*TechnicianHourlyWage+RemoteTravelCostPerDay),0)+IFERROR(1/HLOOKUP(B67,INDIRECT(\"'\"&A67&\"'!$10:$80\"),MATCH('Technology template'!$A$35,INDIRECT(\"'\"&A67&\"'!$A$10:$A$80\"),0),FALSE)*(HLOOKUP(B67,INDIRECT(\"'\"&A67&\"'!$10:$80\"),MATCH('Technology template'!$A$45,INDIRECT(\"'\"&A67&\"'!$A10:$A$80\"),0),FALSE)*TechnicianHourlyWage+RemoteTravelCostPerDay),0)+IFERROR(1/HLOOKUP(B67,INDIRECT(\"'\"&A67&\"'!$10:$80\"),MATCH('Technology template'!$A$37,INDIRECT(\"'\"&A67&\"'!$A$10:$A$80\"),0),FALSE)*(HLOOKUP(B67,INDIRECT(\"'\"&A67&\"'!$10:$80\"),MATCH('Technology template'!$A$46,INDIRECT(\"'\"&A67&\"'!$A10:$A$80\"),0),FALSE)*TechnicianHourlyWage+'Labor and Maintenance '!$B$8),0)","v":83.5},1075,107.5,768.90249999999992,null,"Godrej & Boyce  GVR 100DC (SureChill)*",66.808333333333323,10.858585858585858,{"$f":"Y67+Z67","v":77.666919191919177},null,"Godrej & Boyce  GVR 100DC (SureChill)*",6.6808333333333323,1.0858585858585859,7.7666919191919179,null,"Godrej & Boyce  GVR 100DC (SureChill)*",2,13228.05,2150,{"$f":"AJ67+AK67","v":15378.05},null,"Godrej & Boyce  GVR 100DC (SureChill)*",2,13.361666666666665,2.1717171717171717,{"$f":"+AP67+AQ67","v":15.533383838383836},null,"Godrej & Boyce  GVR 100DC (SureChill)*",{"$f":"IF(F67=0, 'Country Input'!$D$7, ROUNDUP(LitersPerFacility/F67,0)*'Country Input'!$D$7)","v":10},66140.25,1075,{"$f":"AV67+AW67","v":67215.25},null,"Godrej & Boyce  GVR 100DC (SureChill)*",{"$f":"ROUNDUP(LitersPerFacility/F67,0)*'Country Input'!$D$7*ROUNDUP('Total Solution Costs'!$B$2/Calculations!I67,0)","v":10},66.808333333333323,1.0858585858585859,{"$f":"BB67+BC67","v":67.894191919191911},null,null,"Godrej & Boyce  GVR 100DC (SureChill)*",{"$f":"(($U67+($O67)*IF(MOD(BH$3,$I67)=1,1,0)+Parts!$E$91*IF($J67=0,0,IF(MOD(BH$3,$I67)=1,IF(PQS!$R67=\"NO\",1,0),IF(MOD(BH$3,Calculations!$J67)=1,1,0)))+Parts!$E$92*IF(Calculations!$K67=0,0,IF(MOD(BH$3,$I67)=1,0,IF(MOD(BH$3,Calculations!$K67)=1,1,0))))*$AU67)*(1+'Country Input'!$C$45)^(Calculations!BH$3-$BH$3)+TrainingCost","v":67215.25},{"$f":"(($U67+($O67)*IF(MOD(BI$3,$I67)=1,1,0)+Parts!$E$91*IF($J67=0,0,IF(MOD(BI$3,$I67)=1,IF(PQS!$R67=\"NO\",1,0),IF(MOD(BI$3,Calculations!$J67)=1,1,0)))+Parts!$E$92*IF(Calculations!$K67=0,0,IF(MOD(BI$3,$I67)=1,0,IF(MOD(BI$3,Calculations!$K67)=1,1,0))))*$AU67)*(1+'Country Input'!$C$45)^(Calculations!BI$3-$BH$3)","v":1075},{"$f":"(($U67+($O67)*IF(MOD(BJ$3,$I67)=1,1,0)+Parts!$E$91*IF($J67=0,0,IF(MOD(BJ$3,$I67)=1,IF(PQS!$R67=\"NO\",1,0),IF(MOD(BJ$3,Calculations!$J67)=1,1,0)))+Parts!$E$92*IF(Calculations!$K67=0,0,IF(MOD(BJ$3,$I67)=1,0,IF(MOD(BJ$3,Calculations!$K67)=1,1,0))))*$AU67)*(1+'Country Input'!$C$45)^(Calculations!BJ$3-$BH$3)","v":1075},{"$f":"(($U67+($O67)*IF(MOD(BK$3,$I67)=1,1,0)+Parts!$E$91*IF($J67=0,0,IF(MOD(BK$3,$I67)=1,IF(PQS!$R67=\"NO\",1,0),IF(MOD(BK$3,Calculations!$J67)=1,1,0)))+Parts!$E$92*IF(Calculations!$K67=0,0,IF(MOD(BK$3,$I67)=1,0,IF(MOD(BK$3,Calculations!$K67)=1,1,0))))*$AU67)*(1+'Country Input'!$C$45)^(Calculations!BK$3-$BH$3)","v":1075},{"$f":"(($U67+($O67)*IF(MOD(BL$3,$I67)=1,1,0)+Parts!$E$91*IF($J67=0,0,IF(MOD(BL$3,$I67)=1,IF(PQS!$R67=\"NO\",1,0),IF(MOD(BL$3,Calculations!$J67)=1,1,0)))+Parts!$E$92*IF(Calculations!$K67=0,0,IF(MOD(BL$3,$I67)=1,0,IF(MOD(BL$3,Calculations!$K67)=1,1,0))))*$AU67)*(1+'Country Input'!$C$45)^(Calculations!BL$3-$BH$3)","v":1075},{"$f":"(($U67+($O67)*IF(MOD(BM$3,$I67)=1,1,0)+Parts!$E$91*IF($J67=0,0,IF(MOD(BM$3,$I67)=1,IF(PQS!$R67=\"NO\",1,0),IF(MOD(BM$3,Calculations!$J67)=1,1,0)))+Parts!$E$92*IF(Calculations!$K67=0,0,IF(MOD(BM$3,$I67)=1,0,IF(MOD(BM$3,Calculations!$K67)=1,1,0))))*$AU67)*(1+'Country Input'!$C$45)^(Calculations!BM$3-$BH$3)","v":1075},{"$f":"(($U67+($O67)*IF(MOD(BN$3,$I67)=1,1,0)+Parts!$E$91*IF($J67=0,0,IF(MOD(BN$3,$I67)=1,IF(PQS!$R67=\"NO\",1,0),IF(MOD(BN$3,Calculations!$J67)=1,1,0)))+Parts!$E$92*IF(Calculations!$K67=0,0,IF(MOD(BN$3,$I67)=1,0,IF(MOD(BN$3,Calculations!$K67)=1,1,0))))*$AU67)*(1+'Country Input'!$C$45)^(Calculations!BN$3-$BH$3)","v":1075},{"$f":"(($U67+($O67)*IF(MOD(BO$3,$I67)=1,1,0)+Parts!$E$91*IF($J67=0,0,IF(MOD(BO$3,$I67)=1,IF(PQS!$R67=\"NO\",1,0),IF(MOD(BO$3,Calculations!$J67)=1,1,0)))+Parts!$E$92*IF(Calculations!$K67=0,0,IF(MOD(BO$3,$I67)=1,0,IF(MOD(BO$3,Calculations!$K67)=1,1,0))))*$AU67)*(1+'Country Input'!$C$45)^(Calculations!BO$3-$BH$3)","v":1075},{"$f":"(($U67+($O67)*IF(MOD(BP$3,$I67)=1,1,0)+Parts!$E$91*IF($J67=0,0,IF(MOD(BP$3,$I67)=1,IF(PQS!$R67=\"NO\",1,0),IF(MOD(BP$3,Calculations!$J67)=1,1,0)))+Parts!$E$92*IF(Calculations!$K67=0,0,IF(MOD(BP$3,$I67)=1,0,IF(MOD(BP$3,Calculations!$K67)=1,1,0))))*$AU67)*(1+'Country Input'!$C$45)^(Calculations!BP$3-$BH$3)","v":1075},{"$f":"(($U67+($O67)*IF(MOD(BQ$3,$I67)=1,1,0)+Parts!$E$91*IF($J67=0,0,IF(MOD(BQ$3,$I67)=1,IF(PQS!$R67=\"NO\",1,0),IF(MOD(BQ$3,Calculations!$J67)=1,1,0)))+Parts!$E$92*IF(Calculations!$K67=0,0,IF(MOD(BQ$3,$I67)=1,0,IF(MOD(BQ$3,Calculations!$K67)=1,1,0))))*$AU67)*(1+'Country Input'!$C$45)^(Calculations!BQ$3-$BH$3)","v":1075},{"$f":"(($U67+($O67)*IF(MOD(BR$3,$I67)=1,1,0)+Parts!$E$91*IF($J67=0,0,IF(MOD(BR$3,$I67)=1,IF(PQS!$R67=\"NO\",1,0),IF(MOD(BR$3,Calculations!$J67)=1,1,0)))+Parts!$E$92*IF(Calculations!$K67=0,0,IF(MOD(BR$3,$I67)=1,0,IF(MOD(BR$3,Calculations!$K67)=1,1,0))))*$AU67)*(1+'Country Input'!$C$45)^(Calculations!BR$3-$BH$3)","v":67215.25},{"$f":"(($U67+($O67)*IF(MOD(BS$3,$I67)=1,1,0)+Parts!$E$91*IF($J67=0,0,IF(MOD(BS$3,$I67)=1,IF(PQS!$R67=\"NO\",1,0),IF(MOD(BS$3,Calculations!$J67)=1,1,0)))+Parts!$E$92*IF(Calculations!$K67=0,0,IF(MOD(BS$3,$I67)=1,0,IF(MOD(BS$3,Calculations!$K67)=1,1,0))))*$AU67)*(1+'Country Input'!$C$45)^(Calculations!BS$3-$BH$3)","v":1075},{"$f":"(($U67+($O67)*IF(MOD(BT$3,$I67)=1,1,0)+Parts!$E$91*IF($J67=0,0,IF(MOD(BT$3,$I67)=1,IF(PQS!$R67=\"NO\",1,0),IF(MOD(BT$3,Calculations!$J67)=1,1,0)))+Parts!$E$92*IF(Calculations!$K67=0,0,IF(MOD(BT$3,$I67)=1,0,IF(MOD(BT$3,Calculations!$K67)=1,1,0))))*$AU67)*(1+'Country Input'!$C$45)^(Calculations!BT$3-$BH$3)","v":1075},{"$f":"(($U67+($O67)*IF(MOD(BU$3,$I67)=1,1,0)+Parts!$E$91*IF($J67=0,0,IF(MOD(BU$3,$I67)=1,IF(PQS!$R67=\"NO\",1,0),IF(MOD(BU$3,Calculations!$J67)=1,1,0)))+Parts!$E$92*IF(Calculations!$K67=0,0,IF(MOD(BU$3,$I67)=1,0,IF(MOD(BU$3,Calculations!$K67)=1,1,0))))*$AU67)*(1+'Country Input'!$C$45)^(Calculations!BU$3-$BH$3)","v":1075},{"$f":"(($U67+($O67)*IF(MOD(BV$3,$I67)=1,1,0)+Parts!$E$91*IF($J67=0,0,IF(MOD(BV$3,$I67)=1,IF(PQS!$R67=\"NO\",1,0),IF(MOD(BV$3,Calculations!$J67)=1,1,0)))+Parts!$E$92*IF(Calculations!$K67=0,0,IF(MOD(BV$3,$I67)=1,0,IF(MOD(BV$3,Calculations!$K67)=1,1,0))))*$AU67)*(1+'Country Input'!$C$45)^(Calculations!BV$3-$BH$3)","v":1075},{"$f":"(($U67+($O67)*IF(MOD(BW$3,$I67)=1,1,0)+Parts!$E$91*IF($J67=0,0,IF(MOD(BW$3,$I67)=1,IF(PQS!$R67=\"NO\",1,0),IF(MOD(BW$3,Calculations!$J67)=1,1,0)))+Parts!$E$92*IF(Calculations!$K67=0,0,IF(MOD(BW$3,$I67)=1,0,IF(MOD(BW$3,Calculations!$K67)=1,1,0))))*$AU67)*(1+'Country Input'!$C$45)^(Calculations!BW$3-$BH$3)","v":1075},{"$f":"(($U67+($O67)*IF(MOD(BX$3,$I67)=1,1,0)+Parts!$E$91*IF($J67=0,0,IF(MOD(BX$3,$I67)=1,IF(PQS!$R67=\"NO\",1,0),IF(MOD(BX$3,Calculations!$J67)=1,1,0)))+Parts!$E$92*IF(Calculations!$K67=0,0,IF(MOD(BX$3,$I67)=1,0,IF(MOD(BX$3,Calculations!$K67)=1,1,0))))*$AU67)*(1+'Country Input'!$C$45)^(Calculations!BX$3-$BH$3)","v":1075},{"$f":"(($U67+($O67)*IF(MOD(BY$3,$I67)=1,1,0)+Parts!$E$91*IF($J67=0,0,IF(MOD(BY$3,$I67)=1,IF(PQS!$R67=\"NO\",1,0),IF(MOD(BY$3,Calculations!$J67)=1,1,0)))+Parts!$E$92*IF(Calculations!$K67=0,0,IF(MOD(BY$3,$I67)=1,0,IF(MOD(BY$3,Calculations!$K67)=1,1,0))))*$AU67)*(1+'Country Input'!$C$45)^(Calculations!BY$3-$BH$3)","v":1075},{"$f":"(($U67+($O67)*IF(MOD(BZ$3,$I67)=1,1,0)+Parts!$E$91*IF($J67=0,0,IF(MOD(BZ$3,$I67)=1,IF(PQS!$R67=\"NO\",1,0),IF(MOD(BZ$3,Calculations!$J67)=1,1,0)))+Parts!$E$92*IF(Calculations!$K67=0,0,IF(MOD(BZ$3,$I67)=1,0,IF(MOD(BZ$3,Calculations!$K67)=1,1,0))))*$AU67)*(1+'Country Input'!$C$45)^(Calculations!BZ$3-$BH$3)","v":1075},{"$f":"(($U67+($O67)*IF(MOD(CA$3,$I67)=1,1,0)+Parts!$E$91*IF($J67=0,0,IF(MOD(CA$3,$I67)=1,IF(PQS!$R67=\"NO\",1,0),IF(MOD(CA$3,Calculations!$J67)=1,1,0)))+Parts!$E$92*IF(Calculations!$K67=0,0,IF(MOD(CA$3,$I67)=1,0,IF(MOD(CA$3,Calculations!$K67)=1,1,0))))*$AU67)*(1+'Country Input'!$C$45)^(Calculations!CA$3-$BH$3)","v":1075},null,"Godrej & Boyce  GVR 100DC (SureChill)*",67215.25,1075,1075,1075,1075,1075,1075,1075,1075,1075,67215.25,1075,1075,1075,1075,1075,1075,1075,1075,1075,{"$f":"SUM(CD67:INDEX($CD67:$CW67,1,'Total Solution Costs'!$B$2))","v":76890.25},null,"Godrej & Boyce  GVR 100DC (SureChill)*",{"$f":"SUM($BH67:BH67)","v":67215.25},{"$f":"SUM($BH67:BI67)","v":68290.25},{"$f":"SUM($BH67:BJ67)","v":69365.25},{"$f":"SUM($BH67:BK67)","v":70440.25},{"$f":"SUM($BH67:BL67)","v":71515.25},{"$f":"SUM($BH67:BM67)","v":72590.25},{"$f":"SUM($BH67:BN67)","v":73665.25},{"$f":"SUM($BH67:BO67)","v":74740.25},{"$f":"SUM($BH67:BP67)","v":75815.25},{"$f":"SUM($BH67:BQ67)","v":76890.25},{"$f":"SUM($BH67:BR67)","v":144105.5},{"$f":"SUM($BH67:BS67)","v":145180.5},{"$f":"SUM($BH67:BT67)","v":146255.5},{"$f":"SUM($BH67:BU67)","v":147330.5},{"$f":"SUM($BH67:BV67)","v":148405.5},{"$f":"SUM($BH67:BW67)","v":149480.5},{"$f":"SUM($BH67:BX67)","v":150555.5},{"$f":"SUM($BH67:BY67)","v":151630.5},{"$f":"SUM($BH67:BZ67)","v":152705.5},{"$f":"SUM($BH67:CA67)","v":153780.5}]
[{"$f":"PQS!A68","v":"SDD"},{"$f":"PQS!B68","v":"E003/052"},{"$f":"PQS!E68","v":"ZLF 150DC*"},{"$f":"PQS!F68","v":"Zero"},{"$f":"PQS!D68","v":"Zero ZLF 150DC*"},{"$f":"VLOOKUP(E68,PQS!$D$5:$K$107,COLUMN(PQS!$I$3)-COLUMN(PQS!$D$3)+1,FALSE)","v":128},{"$f":"VLOOKUP(E68,PQS!$D$5:$K$107,COLUMN(PQS!$J$3)-COLUMN(PQS!$D$3)+1,FALSE)","v":0},{"$f":"VLOOKUP(E68,PQS!$D$5:$K$107,COLUMN(PQS!$G$3)-COLUMN(PQS!$D$3)+1,FALSE)","v":"Yes"},{"$f":"HLOOKUP(B68,INDIRECT(\"'\"&A68&\"'!$10:$15\"),ROW('Technology template'!$A$11)-ROW('Technology template'!$A$10)+1,FALSE)","v":10},{"$f":"HLOOKUP(B68,INDIRECT(\"'\"&A68&\"'!$10:$15\"),ROW('Technology template'!$A$12)-ROW('Technology template'!$A$10)+1,FALSE)","v":10},{"$f":"HLOOKUP(B68,INDIRECT(\"'\"&A68&\"'!$10:$15\"),ROW('Technology template'!$A$13)-ROW('Technology template'!$A$10)+1,FALSE)","v":0},{"$f":"VLOOKUP(B68,PQS!$B:$Q,MATCH(PQS!$Q$3,PQS!$B$3:$Q$3,0),FALSE)*(1+'Country Input'!$C$47)+HLOOKUP(B68,INDIRECT(\"'\"&A68&\"'!$10:$15\"),ROW('Technology template'!$A$14)-ROW('Technology template'!$A$10)+1,FALSE)*(1+'Country Input'!$C$47)","v":6031.59},{"$f":"HLOOKUP(B68,INDIRECT(\"'\"&A68&\"'!$10:$80\"),MATCH('Technology template'!$A$27,INDIRECT(\"'\"&A68&\"'!$A$10:$A$80\"),0),FALSE)+'Labor and Maintenance '!$E$18","v":1042},{"$f":"VLOOKUP(B68,PQS!B:T,MATCH(PQS!$T$3,PQS!$B$3:$T$3,0),FALSE)*(1+'Country Input'!$C$47)","v":758.63},7832.22,783.22199999999998,{"$f":"VLOOKUP(B68,PQS!$B:$AE,COLUMN(PQS!AD66)-1,FALSE)","v":0},{"$f":"IFERROR(1/HLOOKUP(B68,INDIRECT(\"'\"&A68&\"'!$10:$80\"),MATCH('Technology template'!$A$31,INDIRECT(\"'\"&A68&\"'!$A$10:$A$80\"),0),FALSE)*HLOOKUP(B68,INDIRECT(\"'\"&A68&\"'!$10:$80\"),MATCH('Technology template'!$A$41,INDIRECT(\"'\"&A68&\"'!$A10:$A$80\"),0),FALSE),0)*TechnicianHourlyWage+IF(A68=\"Solar w Battery\",1/'Labor and Maintenance '!$E$53*'Labor and Maintenance '!$D$53,0)+IF(A68=\"LT passive\", 1/'Labor and Maintenance '!$E$81*'Labor and Maintenance '!$D$81,0)","v":24},{"$f":"IFERROR(1/HLOOKUP(B68,INDIRECT(\"'\"&A68&\"'!$10:$80\"),MATCH('Technology template'!$A$34,INDIRECT(\"'\"&A68&\"'!$A$10:$A$80\"),0),FALSE)*(HLOOKUP(B68,INDIRECT(\"'\"&A68&\"'!$10:$80\"),MATCH('Technology template'!$A$44,INDIRECT(\"'\"&A68&\"'!$A10:$A$80\"),0),FALSE)*TechnicianHourlyWage+RemoteTravelCostPerDay),0)+IFERROR(1/HLOOKUP(B68,INDIRECT(\"'\"&A68&\"'!$10:$80\"),MATCH('Technology template'!$A$35,INDIRECT(\"'\"&A68&\"'!$A$10:$A$80\"),0),FALSE)*(HLOOKUP(B68,INDIRECT(\"'\"&A68&\"'!$10:$80\"),MATCH('Technology template'!$A$45,INDIRECT(\"'\"&A68&\"'!$A10:$A$80\"),0),FALSE)*TechnicianHourlyWage+RemoteTravelCostPerDay),0)+IFERROR(1/HLOOKUP(B68,INDIRECT(\"'\"&A68&\"'!$10:$80\"),MATCH('Technology template'!$A$37,INDIRECT(\"'\"&A68&\"'!$A$10:$A$80\"),0),FALSE)*(HLOOKUP(B68,INDIRECT(\"'\"&A68&\"'!$10:$80\"),MATCH('Technology template'!$A$46,INDIRECT(\"'\"&A68&\"'!$A10:$A$80\"),0),FALSE)*TechnicianHourlyWage+'Labor and Maintenance '!$B$8),0)","v":83.5},1075,107.5,890.72199999999998,null,"Zero ZLF 150DC*",61.189218750000002,8.3984375,{"$f":"Y68+Z68","v":69.587656250000009},null,"Zero ZLF 150DC*",6.1189218749999998,0.83984375,6.9587656249999998,null,"Zero ZLF 150DC*",1,7832.22,1075,{"$f":"AJ68+AK68","v":8907.2200000000012},null,"Zero ZLF 150DC*",1,6.1189218749999998,0.83984375,{"$f":"+AP68+AQ68","v":6.9587656249999998},null,"Zero ZLF 150DC*",{"$f":"IF(F68=0, 'Country Input'!$D$7, ROUNDUP(LitersPerFacility/F68,0)*'Country Input'!$D$7)","v":10},78322.2,1075,{"$f":"AV68+AW68","v":79397.2},null,"Zero ZLF 150DC*",{"$f":"ROUNDUP(LitersPerFacility/F68,0)*'Country Input'!$D$7*ROUNDUP('Total Solution Costs'!$B$2/Calculations!I68,0)","v":10},61.189218749999995,0.83984375,{"$f":"BB68+BC68","v":62.029062499999995},null,null,"Zero ZLF 150DC*",{"$f":"(($U68+($O68)*IF(MOD(BH$3,$I68)=1,1,0)+Parts!$E$91*IF($J68=0,0,IF(MOD(BH$3,$I68)=1,IF(PQS!$R68=\"NO\",1,0),IF(MOD(BH$3,Calculations!$J68)=1,1,0)))+Parts!$E$92*IF(Calculations!$K68=0,0,IF(MOD(BH$3,$I68)=1,0,IF(MOD(BH$3,Calculations!$K68)=1,1,0))))*$AU68)*(1+'Country Input'!$C$45)^(Calculations!BH$3-$BH$3)+TrainingCost","v":79397.2},{"$f":"(($U68+($O68)*IF(MOD(BI$3,$I68)=1,1,0)+Parts!$E$91*IF($J68=0,0,IF(MOD(BI$3,$I68)=1,IF(PQS!$R68=\"NO\",1,0),IF(MOD(BI$3,Calculations!$J68)=1,1,0)))+Parts!$E$92*IF(Calculations!$K68=0,0,IF(MOD(BI$3,$I68)=1,0,IF(MOD(BI$3,Calculations!$K68)=1,1,0))))*$AU68)*(1+'Country Input'!$C$45)^(Calculations!BI$3-$BH$3)","v":1075},{"$f":"(($U68+($O68)*IF(MOD(BJ$3,$I68)=1,1,0)+Parts!$E$91*IF($J68=0,0,IF(MOD(BJ$3,$I68)=1,IF(PQS!$R68=\"NO\",1,0),IF(MOD(BJ$3,Calculations!$J68)=1,1,0)))+Parts!$E$92*IF(Calculations!$K68=0,0,IF(MOD(BJ$3,$I68)=1,0,IF(MOD(BJ$3,Calculations!$K68)=1,1,0))))*$AU68)*(1+'Country Input'!$C$45)^(Calculations!BJ$3-$BH$3)","v":1075},{"$f":"(($U68+($O68)*IF(MOD(BK$3,$I68)=1,1,0)+Parts!$E$91*IF($J68=0,0,IF(MOD(BK$3,$I68)=1,IF(PQS!$R68=\"NO\",1,0),IF(MOD(BK$3,Calculations!$J68)=1,1,0)))+Parts!$E$92*IF(Calculations!$K68=0,0,IF(MOD(BK$3,$I68)=1,0,IF(MOD(BK$3,Calculations!$K68)=1,1,0))))*$AU68)*(1+'Country Input'!$C$45)^(Calculations!BK$3-$BH$3)","v":1075},{"$f":"(($U68+($O68)*IF(MOD(BL$3,$I68)=1,1,0)+Parts!$E$91*IF($J68=0,0,IF(MOD(BL$3,$I68)=1,IF(PQS!$R68=\"NO\",1,0),IF(MOD(BL$3,Calculations!$J68)=1,1,0)))+Parts!$E$92*IF(Calculations!$K68=0,0,IF(MOD(BL$3,$I68)=1,0,IF(MOD(BL$3,Calculations!$K68)=1,1,0))))*$AU68)*(1+'Country Input'!$C$45)^(Calculations!BL$3-$BH$3)","v":1075},{"$f":"(($U68+($O68)*IF(MOD(BM$3,$I68)=1,1,0)+Parts!$E$91*IF($J68=0,0,IF(MOD(BM$3,$I68)=1,IF(PQS!$R68=\"NO\",1,0),IF(MOD(BM$3,Calculations!$J68)=1,1,0)))+Parts!$E$92*IF(Calculations!$K68=0,0,IF(MOD(BM$3,$I68)=1,0,IF(MOD(BM$3,Calculations!$K68)=1,1,0))))*$AU68)*(1+'Country Input'!$C$45)^(Calculations!BM$3-$BH$3)","v":1075},{"$f":"(($U68+($O68)*IF(MOD(BN$3,$I68)=1,1,0)+Parts!$E$91*IF($J68=0,0,IF(MOD(BN$3,$I68)=1,IF(PQS!$R68=\"NO\",1,0),IF(MOD(BN$3,Calculations!$J68)=1,1,0)))+Parts!$E$92*IF(Calculations!$K68=0,0,IF(MOD(BN$3,$I68)=1,0,IF(MOD(BN$3,Calculations!$K68)=1,1,0))))*$AU68)*(1+'Country Input'!$C$45)^(Calculations!BN$3-$BH$3)","v":1075},{"$f":"(($U68+($O68)*IF(MOD(BO$3,$I68)=1,1,0)+Parts!$E$91*IF($J68=0,0,IF(MOD(BO$3,$I68)=1,IF(PQS!$R68=\"NO\",1,0),IF(MOD(BO$3,Calculations!$J68)=1,1,0)))+Parts!$E$92*IF(Calculations!$K68=0,0,IF(MOD(BO$3,$I68)=1,0,IF(MOD(BO$3,Calculations!$K68)=1,1,0))))*$AU68)*(1+'Country Input'!$C$45)^(Calculations!BO$3-$BH$3)","v":1075},{"$f":"(($U68+($O68)*IF(MOD(BP$3,$I68)=1,1,0)+Parts!$E$91*IF($J68=0,0,IF(MOD(BP$3,$I68)=1,IF(PQS!$R68=\"NO\",1,0),IF(MOD(BP$3,Calculations!$J68)=1,1,0)))+Parts!$E$92*IF(Calculations!$K68=0,0,IF(MOD(BP$3,$I68)=1,0,IF(MOD(BP$3,Calculations!$K68)=1,1,0))))*$AU68)*(1+'Country Input'!$C$45)^(Calculations!BP$3-$BH$3)","v":1075},{"$f":"(($U68+($O68)*IF(MOD(BQ$3,$I68)=1,1,0)+Parts!$E$91*IF($J68=0,0,IF(MOD(BQ$3,$I68)=1,IF(PQS!$R68=\"NO\",1,0),IF(MOD(BQ$3,Calculations!$J68)=1,1,0)))+Parts!$E$92*IF(Calculations!$K68=0,0,IF(MOD(BQ$3,$I68)=1,0,IF(MOD(BQ$3,Calculations!$K68)=1,1,0))))*$AU68)*(1+'Country Input'!$C$45)^(Calculations!BQ$3-$BH$3)","v":1075},{"$f":"(($U68+($O68)*IF(MOD(BR$3,$I68)=1,1,0)+Parts!$E$91*IF($J68=0,0,IF(MOD(BR$3,$I68)=1,IF(PQS!$R68=\"NO\",1,0),IF(MOD(BR$3,Calculations!$J68)=1,1,0)))+Parts!$E$92*IF(Calculations!$K68=0,0,IF(MOD(BR$3,$I68)=1,0,IF(MOD(BR$3,Calculations!$K68)=1,1,0))))*$AU68)*(1+'Country Input'!$C$45)^(Calculations!BR$3-$BH$3)","v":79397.2},{"$f":"(($U68+($O68)*IF(MOD(BS$3,$I68)=1,1,0)+Parts!$E$91*IF($J68=0,0,IF(MOD(BS$3,$I68)=1,IF(PQS!$R68=\"NO\",1,0),IF(MOD(BS$3,Calculations!$J68)=1,1,0)))+Parts!$E$92*IF(Calculations!$K68=0,0,IF(MOD(BS$3,$I68)=1,0,IF(MOD(BS$3,Calculations!$K68)=1,1,0))))*$AU68)*(1+'Country Input'!$C$45)^(Calculations!BS$3-$BH$3)","v":1075},{"$f":"(($U68+($O68)*IF(MOD(BT$3,$I68)=1,1,0)+Parts!$E$91*IF($J68=0,0,IF(MOD(BT$3,$I68)=1,IF(PQS!$R68=\"NO\",1,0),IF(MOD(BT$3,Calculations!$J68)=1,1,0)))+Parts!$E$92*IF(Calculations!$K68=0,0,IF(MOD(BT$3,$I68)=1,0,IF(MOD(BT$3,Calculations!$K68)=1,1,0))))*$AU68)*(1+'Country Input'!$C$45)^(Calculations!BT$3-$BH$3)","v":1075},{"$f":"(($U68+($O68)*IF(MOD(BU$3,$I68)=1,1,0)+Parts!$E$91*IF($J68=0,0,IF(MOD(BU$3,$I68)=1,IF(PQS!$R68=\"NO\",1,0),IF(MOD(BU$3,Calculations!$J68)=1,1,0)))+Parts!$E$92*IF(Calculations!$K68=0,0,IF(MOD(BU$3,$I68)=1,0,IF(MOD(BU$3,Calculations!$K68)=1,1,0))))*$AU68)*(1+'Country Input'!$C$45)^(Calculations!BU$3-$BH$3)","v":1075},{"$f":"(($U68+($O68)*IF(MOD(BV$3,$I68)=1,1,0)+Parts!$E$91*IF($J68=0,0,IF(MOD(BV$3,$I68)=1,IF(PQS!$R68=\"NO\",1,0),IF(MOD(BV$3,Calculations!$J68)=1,1,0)))+Parts!$E$92*IF(Calculations!$K68=0,0,IF(MOD(BV$3,$I68)=1,0,IF(MOD(BV$3,Calculations!$K68)=1,1,0))))*$AU68)*(1+'Country Input'!$C$45)^(Calculations!BV$3-$BH$3)","v":1075},{"$f":"(($U68+($O68)*IF(MOD(BW$3,$I68)=1,1,0)+Parts!$E$91*IF($J68=0,0,IF(MOD(BW$3,$I68)=1,IF(PQS!$R68=\"NO\",1,0),IF(MOD(BW$3,Calculations!$J68)=1,1,0)))+Parts!$E$92*IF(Calculations!$K68=0,0,IF(MOD(BW$3,$I68)=1,0,IF(MOD(BW$3,Calculations!$K68)=1,1,0))))*$AU68)*(1+'Country Input'!$C$45)^(Calculations!BW$3-$BH$3)","v":1075},{"$f":"(($U68+($O68)*IF(MOD(BX$3,$I68)=1,1,0)+Parts!$E$91*IF($J68=0,0,IF(MOD(BX$3,$I68)=1,IF(PQS!$R68=\"NO\",1,0),IF(MOD(BX$3,Calculations!$J68)=1,1,0)))+Parts!$E$92*IF(Calculations!$K68=0,0,IF(MOD(BX$3,$I68)=1,0,IF(MOD(BX$3,Calculations!$K68)=1,1,0))))*$AU68)*(1+'Country Input'!$C$45)^(Calculations!BX$3-$BH$3)","v":1075},{"$f":"(($U68+($O68)*IF(MOD(BY$3,$I68)=1,1,0)+Parts!$E$91*IF($J68=0,0,IF(MOD(BY$3,$I68)=1,IF(PQS!$R68=\"NO\",1,0),IF(MOD(BY$3,Calculations!$J68)=1,1,0)))+Parts!$E$92*IF(Calculations!$K68=0,0,IF(MOD(BY$3,$I68)=1,0,IF(MOD(BY$3,Calculations!$K68)=1,1,0))))*$AU68)*(1+'Country Input'!$C$45)^(Calculations!BY$3-$BH$3)","v":1075},{"$f":"(($U68+($O68)*IF(MOD(BZ$3,$I68)=1,1,0)+Parts!$E$91*IF($J68=0,0,IF(MOD(BZ$3,$I68)=1,IF(PQS!$R68=\"NO\",1,0),IF(MOD(BZ$3,Calculations!$J68)=1,1,0)))+Parts!$E$92*IF(Calculations!$K68=0,0,IF(MOD(BZ$3,$I68)=1,0,IF(MOD(BZ$3,Calculations!$K68)=1,1,0))))*$AU68)*(1+'Country Input'!$C$45)^(Calculations!BZ$3-$BH$3)","v":1075},{"$f":"(($U68+($O68)*IF(MOD(CA$3,$I68)=1,1,0)+Parts!$E$91*IF($J68=0,0,IF(MOD(CA$3,$I68)=1,IF(PQS!$R68=\"NO\",1,0),IF(MOD(CA$3,Calculations!$J68)=1,1,0)))+Parts!$E$92*IF(Calculations!$K68=0,0,IF(MOD(CA$3,$I68)=1,0,IF(MOD(CA$3,Calculations!$K68)=1,1,0))))*$AU68)*(1+'Country Input'!$C$45)^(Calculations!CA$3-$BH$3)","v":1075},null,"Zero ZLF 150DC*",79397.2,1075,1075,1075,1075,1075,1075,1075,1075,1075,79397.2,1075,1075,1075,1075,1075,1075,1075,1075,1075,{"$f":"SUM(CD68:INDEX($CD68:$CW68,1,'Total Solution Costs'!$B$2))","v":89072.2},null,"Zero ZLF 150DC*",{"$f":"SUM($BH68:BH68)","v":79397.2},{"$f":"SUM($BH68:BI68)","v":80472.2},{"$f":"SUM($BH68:BJ68)","v":81547.199999999997},{"$f":"SUM($BH68:BK68)","v":82622.2},{"$f":"SUM($BH68:BL68)","v":83697.2},{"$f":"SUM($BH68:BM68)","v":84772.2},{"$f":"SUM($BH68:BN68)","v":85847.2},{"$f":"SUM($BH68:BO68)","v":86922.2},{"$f":"SUM($BH68:BP68)","v":87997.2},{"$f":"SUM($BH68:BQ68)","v":89072.2},{"$f":"SUM($BH68:BR68)","v":168469.4},{"$f":"SUM($BH68:BS68)","v":169544.4},{"$f":"SUM($BH68:BT68)","v":170619.4},{"$f":"SUM($BH68:BU68)","v":171694.4},{"$f":"SUM($BH68:BV68)","v":172769.4},{"$f":"SUM($BH68:BW68)","v":173844.4},{"$f":"SUM($BH68:BX68)","v":174919.4},{"$f":"SUM($BH68:BY68)","v":175994.4},{"$f":"SUM($BH68:BZ68)","v":177069.4},{"$f":"SUM($BH68:CA68)","v":178144.4}]
[{"$f":"PQS!A69","v":"SDD"},{"$f":"PQS!B69","v":"E003/053"},{"$f":"PQS!E69","v":"VLS 094 SDD*"},{"$f":"PQS!F69","v":"Vestfrost"},{"$f":"PQS!D69","v":"Vestfrost VLS 094 SDD*"},{"$f":"VLOOKUP(E69,PQS!$D$5:$K$107,COLUMN(PQS!$I$3)-COLUMN(PQS!$D$3)+1,FALSE)","v":92},{"$f":"VLOOKUP(E69,PQS!$D$5:$K$107,COLUMN(PQS!$J$3)-COLUMN(PQS!$D$3)+1,FALSE)","v":0},{"$f":"VLOOKUP(E69,PQS!$D$5:$K$107,COLUMN(PQS!$G$3)-COLUMN(PQS!$D$3)+1,FALSE)","v":"Yes"},{"$f":"HLOOKUP(B69,INDIRECT(\"'\"&A69&\"'!$10:$15\"),ROW('Technology template'!$A$11)-ROW('Technology template'!$A$10)+1,FALSE)","v":10},{"$f":"HLOOKUP(B69,INDIRECT(\"'\"&A69&\"'!$10:$15\"),ROW('Technology template'!$A$12)-ROW('Technology template'!$A$10)+1,FALSE)","v":10},{"$f":"HLOOKUP(B69,INDIRECT(\"'\"&A69&\"'!$10:$15\"),ROW('Technology template'!$A$13)-ROW('Technology template'!$A$10)+1,FALSE)","v":0},{"$f":"VLOOKUP(B69,PQS!$B:$Q,MATCH(PQS!$Q$3,PQS!$B$3:$Q$3,0),FALSE)*(1+'Country Input'!$C$47)+HLOOKUP(B69,INDIRECT(\"'\"&A69&\"'!$10:$15\"),ROW('Technology template'!$A$14)-ROW('Technology template'!$A$10)+1,FALSE)*(1+'Country Input'!$C$47)","v":3660.9942999999998},{"$f":"HLOOKUP(B69,INDIRECT(\"'\"&A69&\"'!$10:$80\"),MATCH('Technology template'!$A$27,INDIRECT(\"'\"&A69&\"'!$A$10:$A$80\"),0),FALSE)+'Labor and Maintenance '!$E$18","v":1042},{"$f":"VLOOKUP(B69,PQS!B:T,MATCH(PQS!$T$3,PQS!$B$3:$T$3,0),FALSE)*(1+'Country Input'!$C$47)","v":542.64440100000013},5245.6387010000008,524.56387010000003,{"$f":"VLOOKUP(B69,PQS!$B:$AE,COLUMN(PQS!AD67)-1,FALSE)","v":0},{"$f":"IFERROR(1/HLOOKUP(B69,INDIRECT(\"'\"&A69&\"'!$10:$80\"),MATCH('Technology template'!$A$31,INDIRECT(\"'\"&A69&\"'!$A$10:$A$80\"),0),FALSE)*HLOOKUP(B69,INDIRECT(\"'\"&A69&\"'!$10:$80\"),MATCH('Technology template'!$A$41,INDIRECT(\"'\"&A69&\"'!$A10:$A$80\"),0),FALSE),0)*TechnicianHourlyWage+IF(A69=\"Solar w Battery\",1/'Labor and Maintenance '!$E$53*'Labor and Maintenance '!$D$53,0)+IF(A69=\"LT passive\", 1/'Labor and Maintenance '!$E$81*'Labor and Maintenance '!$D$81,0)","v":24},{"$f":"IFERROR(1/HLOOKUP(B69,INDIRECT(\"'\"&A69&\"'!$10:$80\"),MATCH('Technology template'!$A$34,INDIRECT(\"'\"&A69&\"'!$A$10:$A$80\"),0),FALSE)*(HLOOKUP(B69,INDIRECT(\"'\"&A69&\"'!$10:$80\"),MATCH('Technology template'!$A$44,INDIRECT(\"'\"&A69&\"'!$A10:$A$80\"),0),FALSE)*TechnicianHourlyWage+RemoteTravelCostPerDay),0)+IFERROR(1/HLOOKUP(B69,INDIRECT(\"'\"&A69&\"'!$10:$80\"),MATCH('Technology template'!$A$35,INDIRECT(\"'\"&A69&\"'!$A$10:$A$80\"),0),FALSE)*(HLOOKUP(B69,INDIRECT(\"'\"&A69&\"'!$10:$80\"),MATCH('Technology template'!$A$45,INDIRECT(\"'\"&A69&\"'!$A10:$A$80\"),0),FALSE)*TechnicianHourlyWage+RemoteTravelCostPerDay),0)+IFERROR(1/HLOOKUP(B69,INDIRECT(\"'\"&A69&\"'!$10:$80\"),MATCH('Technology template'!$A$37,INDIRECT(\"'\"&A69&\"'!$A$10:$A$80\"),0),FALSE)*(HLOOKUP(B69,INDIRECT(\"'\"&A69&\"'!$10:$80\"),MATCH('Technology template'!$A$46,INDIRECT(\"'\"&A69&\"'!$A10:$A$80\"),0),FALSE)*TechnicianHourlyWage+'Labor and Maintenance '!$B$8),0)","v":83.5},1075,107.5,632.06387010000003,null,"Vestfrost VLS 094 SDD*",57.01781196739131,11.684782608695652,{"$f":"Y69+Z69","v":68.702594576086966},null,"Vestfrost VLS 094 SDD*",5.7017811967391312,1.1684782608695652,6.8702594576086957,null,"Vestfrost VLS 094 SDD*",2,10491.277402000002,2150,{"$f":"AJ69+AK69","v":12641.277402000002},null,"Vestfrost VLS 094 SDD*",2,11.403562393478262,2.3369565217391304,{"$f":"+AP69+AQ69","v":13.740518915217393},null,"Vestfrost VLS 094 SDD*",{"$f":"IF(F69=0, 'Country Input'!$D$7, ROUNDUP(LitersPerFacility/F69,0)*'Country Input'!$D$7)","v":10},52456.387010000006,1075,{"$f":"AV69+AW69","v":53531.387010000006},null,"Vestfrost VLS 094 SDD*",{"$f":"ROUNDUP(LitersPerFacility/F69,0)*'Country Input'!$D$7*ROUNDUP('Total Solution Costs'!$B$2/Calculations!I69,0)","v":10},57.01781196739131,1.1684782608695652,{"$f":"BB69+BC69","v":58.186290228260873},null,null,"Vestfrost VLS 094 SDD*",{"$f":"(($U69+($O69)*IF(MOD(BH$3,$I69)=1,1,0)+Parts!$E$91*IF($J69=0,0,IF(MOD(BH$3,$I69)=1,IF(PQS!$R69=\"NO\",1,0),IF(MOD(BH$3,Calculations!$J69)=1,1,0)))+Parts!$E$92*IF(Calculations!$K69=0,0,IF(MOD(BH$3,$I69)=1,0,IF(MOD(BH$3,Calculations!$K69)=1,1,0))))*$AU69)*(1+'Country Input'!$C$45)^(Calculations!BH$3-$BH$3)+TrainingCost","v":53531.387010000006},{"$f":"(($U69+($O69)*IF(MOD(BI$3,$I69)=1,1,0)+Parts!$E$91*IF($J69=0,0,IF(MOD(BI$3,$I69)=1,IF(PQS!$R69=\"NO\",1,0),IF(MOD(BI$3,Calculations!$J69)=1,1,0)))+Parts!$E$92*IF(Calculations!$K69=0,0,IF(MOD(BI$3,$I69)=1,0,IF(MOD(BI$3,Calculations!$K69)=1,1,0))))*$AU69)*(1+'Country Input'!$C$45)^(Calculations!BI$3-$BH$3)","v":1075},{"$f":"(($U69+($O69)*IF(MOD(BJ$3,$I69)=1,1,0)+Parts!$E$91*IF($J69=0,0,IF(MOD(BJ$3,$I69)=1,IF(PQS!$R69=\"NO\",1,0),IF(MOD(BJ$3,Calculations!$J69)=1,1,0)))+Parts!$E$92*IF(Calculations!$K69=0,0,IF(MOD(BJ$3,$I69)=1,0,IF(MOD(BJ$3,Calculations!$K69)=1,1,0))))*$AU69)*(1+'Country Input'!$C$45)^(Calculations!BJ$3-$BH$3)","v":1075},{"$f":"(($U69+($O69)*IF(MOD(BK$3,$I69)=1,1,0)+Parts!$E$91*IF($J69=0,0,IF(MOD(BK$3,$I69)=1,IF(PQS!$R69=\"NO\",1,0),IF(MOD(BK$3,Calculations!$J69)=1,1,0)))+Parts!$E$92*IF(Calculations!$K69=0,0,IF(MOD(BK$3,$I69)=1,0,IF(MOD(BK$3,Calculations!$K69)=1,1,0))))*$AU69)*(1+'Country Input'!$C$45)^(Calculations!BK$3-$BH$3)","v":1075},{"$f":"(($U69+($O69)*IF(MOD(BL$3,$I69)=1,1,0)+Parts!$E$91*IF($J69=0,0,IF(MOD(BL$3,$I69)=1,IF(PQS!$R69=\"NO\",1,0),IF(MOD(BL$3,Calculations!$J69)=1,1,0)))+Parts!$E$92*IF(Calculations!$K69=0,0,IF(MOD(BL$3,$I69)=1,0,IF(MOD(BL$3,Calculations!$K69)=1,1,0))))*$AU69)*(1+'Country Input'!$C$45)^(Calculations!BL$3-$BH$3)","v":1075},{"$f":"(($U69+($O69)*IF(MOD(BM$3,$I69)=1,1,0)+Parts!$E$91*IF($J69=0,0,IF(MOD(BM$3,$I69)=1,IF(PQS!$R69=\"NO\",1,0),IF(MOD(BM$3,Calculations!$J69)=1,1,0)))+Parts!$E$92*IF(Calculations!$K69=0,0,IF(MOD(BM$3,$I69)=1,0,IF(MOD(BM$3,Calculations!$K69)=1,1,0))))*$AU69)*(1+'Country Input'!$C$45)^(Calculations!BM$3-$BH$3)","v":1075},{"$f":"(($U69+($O69)*IF(MOD(BN$3,$I69)=1,1,0)+Parts!$E$91*IF($J69=0,0,IF(MOD(BN$3,$I69)=1,IF(PQS!$R69=\"NO\",1,0),IF(MOD(BN$3,Calculations!$J69)=1,1,0)))+Parts!$E$92*IF(Calculations!$K69=0,0,IF(MOD(BN$3,$I69)=1,0,IF(MOD(BN$3,Calculations!$K69)=1,1,0))))*$AU69)*(1+'Country Input'!$C$45)^(Calculations!BN$3-$BH$3)","v":1075},{"$f":"(($U69+($O69)*IF(MOD(BO$3,$I69)=1,1,0)+Parts!$E$91*IF($J69=0,0,IF(MOD(BO$3,$I69)=1,IF(PQS!$R69=\"NO\",1,0),IF(MOD(BO$3,Calculations!$J69)=1,1,0)))+Parts!$E$92*IF(Calculations!$K69=0,0,IF(MOD(BO$3,$I69)=1,0,IF(MOD(BO$3,Calculations!$K69)=1,1,0))))*$AU69)*(1+'Country Input'!$C$45)^(Calculations!BO$3-$BH$3)","v":1075},{"$f":"(($U69+($O69)*IF(MOD(BP$3,$I69)=1,1,0)+Parts!$E$91*IF($J69=0,0,IF(MOD(BP$3,$I69)=1,IF(PQS!$R69=\"NO\",1,0),IF(MOD(BP$3,Calculations!$J69)=1,1,0)))+Parts!$E$92*IF(Calculations!$K69=0,0,IF(MOD(BP$3,$I69)=1,0,IF(MOD(BP$3,Calculations!$K69)=1,1,0))))*$AU69)*(1+'Country Input'!$C$45)^(Calculations!BP$3-$BH$3)","v":1075},{"$f":"(($U69+($O69)*IF(MOD(BQ$3,$I69)=1,1,0)+Parts!$E$91*IF($J69=0,0,IF(MOD(BQ$3,$I69)=1,IF(PQS!$R69=\"NO\",1,0),IF(MOD(BQ$3,Calculations!$J69)=1,1,0)))+Parts!$E$92*IF(Calculations!$K69=0,0,IF(MOD(BQ$3,$I69)=1,0,IF(MOD(BQ$3,Calculations!$K69)=1,1,0))))*$AU69)*(1+'Country Input'!$C$45)^(Calculations!BQ$3-$BH$3)","v":1075},{"$f":"(($U69+($O69)*IF(MOD(BR$3,$I69)=1,1,0)+Parts!$E$91*IF($J69=0,0,IF(MOD(BR$3,$I69)=1,IF(PQS!$R69=\"NO\",1,0),IF(MOD(BR$3,Calculations!$J69)=1,1,0)))+Parts!$E$92*IF(Calculations!$K69=0,0,IF(MOD(BR$3,$I69)=1,0,IF(MOD(BR$3,Calculations!$K69)=1,1,0))))*$AU69)*(1+'Country Input'!$C$45)^(Calculations!BR$3-$BH$3)","v":53531.387010000006},{"$f":"(($U69+($O69)*IF(MOD(BS$3,$I69)=1,1,0)+Parts!$E$91*IF($J69=0,0,IF(MOD(BS$3,$I69)=1,IF(PQS!$R69=\"NO\",1,0),IF(MOD(BS$3,Calculations!$J69)=1,1,0)))+Parts!$E$92*IF(Calculations!$K69=0,0,IF(MOD(BS$3,$I69)=1,0,IF(MOD(BS$3,Calculations!$K69)=1,1,0))))*$AU69)*(1+'Country Input'!$C$45)^(Calculations!BS$3-$BH$3)","v":1075},{"$f":"(($U69+($O69)*IF(MOD(BT$3,$I69)=1,1,0)+Parts!$E$91*IF($J69=0,0,IF(MOD(BT$3,$I69)=1,IF(PQS!$R69=\"NO\",1,0),IF(MOD(BT$3,Calculations!$J69)=1,1,0)))+Parts!$E$92*IF(Calculations!$K69=0,0,IF(MOD(BT$3,$I69)=1,0,IF(MOD(BT$3,Calculations!$K69)=1,1,0))))*$AU69)*(1+'Country Input'!$C$45)^(Calculations!BT$3-$BH$3)","v":1075},{"$f":"(($U69+($O69)*IF(MOD(BU$3,$I69)=1,1,0)+Parts!$E$91*IF($J69=0,0,IF(MOD(BU$3,$I69)=1,IF(PQS!$R69=\"NO\",1,0),IF(MOD(BU$3,Calculations!$J69)=1,1,0)))+Parts!$E$92*IF(Calculations!$K69=0,0,IF(MOD(BU$3,$I69)=1,0,IF(MOD(BU$3,Calculations!$K69)=1,1,0))))*$AU69)*(1+'Country Input'!$C$45)^(Calculations!BU$3-$BH$3)","v":1075},{"$f":"(($U69+($O69)*IF(MOD(BV$3,$I69)=1,1,0)+Parts!$E$91*IF($J69=0,0,IF(MOD(BV$3,$I69)=1,IF(PQS!$R69=\"NO\",1,0),IF(MOD(BV$3,Calculations!$J69)=1,1,0)))+Parts!$E$92*IF(Calculations!$K69=0,0,IF(MOD(BV$3,$I69)=1,0,IF(MOD(BV$3,Calculations!$K69)=1,1,0))))*$AU69)*(1+'Country Input'!$C$45)^(Calculations!BV$3-$BH$3)","v":1075},{"$f":"(($U69+($O69)*IF(MOD(BW$3,$I69)=1,1,0)+Parts!$E$91*IF($J69=0,0,IF(MOD(BW$3,$I69)=1,IF(PQS!$R69=\"NO\",1,0),IF(MOD(BW$3,Calculations!$J69)=1,1,0)))+Parts!$E$92*IF(Calculations!$K69=0,0,IF(MOD(BW$3,$I69)=1,0,IF(MOD(BW$3,Calculations!$K69)=1,1,0))))*$AU69)*(1+'Country Input'!$C$45)^(Calculations!BW$3-$BH$3)","v":1075},{"$f":"(($U69+($O69)*IF(MOD(BX$3,$I69)=1,1,0)+Parts!$E$91*IF($J69=0,0,IF(MOD(BX$3,$I69)=1,IF(PQS!$R69=\"NO\",1,0),IF(MOD(BX$3,Calculations!$J69)=1,1,0)))+Parts!$E$92*IF(Calculations!$K69=0,0,IF(MOD(BX$3,$I69)=1,0,IF(MOD(BX$3,Calculations!$K69)=1,1,0))))*$AU69)*(1+'Country Input'!$C$45)^(Calculations!BX$3-$BH$3)","v":1075},{"$f":"(($U69+($O69)*IF(MOD(BY$3,$I69)=1,1,0)+Parts!$E$91*IF($J69=0,0,IF(MOD(BY$3,$I69)=1,IF(PQS!$R69=\"NO\",1,0),IF(MOD(BY$3,Calculations!$J69)=1,1,0)))+Parts!$E$92*IF(Calculations!$K69=0,0,IF(MOD(BY$3,$I69)=1,0,IF(MOD(BY$3,Calculations!$K69)=1,1,0))))*$AU69)*(1+'Country Input'!$C$45)^(Calculations!BY$3-$BH$3)","v":1075},{"$f":"(($U69+($O69)*IF(MOD(BZ$3,$I69)=1,1,0)+Parts!$E$91*IF($J69=0,0,IF(MOD(BZ$3,$I69)=1,IF(PQS!$R69=\"NO\",1,0),IF(MOD(BZ$3,Calculations!$J69)=1,1,0)))+Parts!$E$92*IF(Calculations!$K69=0,0,IF(MOD(BZ$3,$I69)=1,0,IF(MOD(BZ$3,Calculations!$K69)=1,1,0))))*$AU69)*(1+'Country Input'!$C$45)^(Calculations!BZ$3-$BH$3)","v":1075},{"$f":"(($U69+($O69)*IF(MOD(CA$3,$I69)=1,1,0)+Parts!$E$91*IF($J69=0,0,IF(MOD(CA$3,$I69)=1,IF(PQS!$R69=\"NO\",1,0),IF(MOD(CA$3,Calculations!$J69)=1,1,0)))+Parts!$E$92*IF(Calculations!$K69=0,0,IF(MOD(CA$3,$I69)=1,0,IF(MOD(CA$3,Calculations!$K69)=1,1,0))))*$AU69)*(1+'Country Input'!$C$45)^(Calculations!CA$3-$BH$3)","v":1075},null,"Vestfrost VLS 094 SDD*",53531.387010000006,1075,1075,1075,1075,1075,1075,1075,1075,1075,53531.387010000006,1075,1075,1075,1075,1075,1075,1075,1075,1075,{"$f":"SUM(CD69:INDEX($CD69:$CW69,1,'Total Solution Costs'!$B$2))","v":63206.387010000006},null,"Vestfrost VLS 094 SDD*",{"$f":"SUM($BH69:BH69)","v":53531.387010000006},{"$f":"SUM($BH69:BI69)","v":54606.387010000006},{"$f":"SUM($BH69:BJ69)","v":55681.387010000006},{"$f":"SUM($BH69:BK69)","v":56756.387010000006},{"$f":"SUM($BH69:BL69)","v":57831.387010000006},{"$f":"SUM($BH69:BM69)","v":58906.387010000006},{"$f":"SUM($BH69:BN69)","v":59981.387010000006},{"$f":"SUM($BH69:BO69)","v":61056.387010000006},{"$f":"SUM($BH69:BP69)","v":62131.387010000006},{"$f":"SUM($BH69:BQ69)","v":63206.387010000006},{"$f":"SUM($BH69:BR69)","v":116737.77402000001},{"$f":"SUM($BH69:BS69)","v":117812.77402000001},{"$f":"SUM($BH69:BT69)","v":118887.77402000001},{"$f":"SUM($BH69:BU69)","v":119962.77402000001},{"$f":"SUM($BH69:BV69)","v":121037.77402000001},{"$f":"SUM($BH69:BW69)","v":122112.77402000001},{"$f":"SUM($BH69:BX69)","v":123187.77402000001},{"$f":"SUM($BH69:BY69)","v":124262.77402000001},{"$f":"SUM($BH69:BZ69)","v":125337.77402000001},{"$f":"SUM($BH69:CA69)","v":126412.77402000001}]
[{"$f":"PQS!A70","v":"SDD"},{"$f":"PQS!B70","v":"E003/054"},{"$f":"PQS!E70","v":"VLS 154 SDD*"},{"$f":"PQS!F70","v":"Vestfrost"},{"$f":"PQS!D70","v":"Vestfrost VLS 154 SDD*"},{"$f":"VLOOKUP(E70,PQS!$D$5:$K$107,COLUMN(PQS!$I$3)-COLUMN(PQS!$D$3)+1,FALSE)","v":170},{"$f":"VLOOKUP(E70,PQS!$D$5:$K$107,COLUMN(PQS!$J$3)-COLUMN(PQS!$D$3)+1,FALSE)","v":0},{"$f":"VLOOKUP(E70,PQS!$D$5:$K$107,COLUMN(PQS!$G$3)-COLUMN(PQS!$D$3)+1,FALSE)","v":"Yes"},{"$f":"HLOOKUP(B70,INDIRECT(\"'\"&A70&\"'!$10:$15\"),ROW('Technology template'!$A$11)-ROW('Technology template'!$A$10)+1,FALSE)","v":10},{"$f":"HLOOKUP(B70,INDIRECT(\"'\"&A70&\"'!$10:$15\"),ROW('Technology template'!$A$12)-ROW('Technology template'!$A$10)+1,FALSE)","v":10},{"$f":"HLOOKUP(B70,INDIRECT(\"'\"&A70&\"'!$10:$15\"),ROW('Technology template'!$A$13)-ROW('Technology template'!$A$10)+1,FALSE)","v":0},{"$f":"VLOOKUP(B70,PQS!$B:$Q,MATCH(PQS!$Q$3,PQS!$B$3:$Q$3,0),FALSE)*(1+'Country Input'!$C$47)+HLOOKUP(B70,INDIRECT(\"'\"&A70&\"'!$10:$15\"),ROW('Technology template'!$A$14)-ROW('Technology template'!$A$10)+1,FALSE)*(1+'Country Input'!$C$47)","v":4501.5434999999998},{"$f":"HLOOKUP(B70,INDIRECT(\"'\"&A70&\"'!$10:$80\"),MATCH('Technology template'!$A$27,INDIRECT(\"'\"&A70&\"'!$A$10:$A$80\"),0),FALSE)+'Labor and Maintenance '!$E$18","v":1042},{"$f":"VLOOKUP(B70,PQS!B:T,MATCH(PQS!$T$3,PQS!$B$3:$T$3,0),FALSE)*(1+'Country Input'!$C$47)","v":534.41032300000018},{"$f":"L70+M70+N70","v":6077.9538229999998},607.79538230000003,{"$f":"VLOOKUP(B70,PQS!$B:$AE,COLUMN(PQS!AD68)-1,FALSE)","v":0},{"$f":"IFERROR(1/HLOOKUP(B70,INDIRECT(\"'\"&A70&\"'!$10:$80\"),MATCH('Technology template'!$A$31,INDIRECT(\"'\"&A70&\"'!$A$10:$A$80\"),0),FALSE)*HLOOKUP(B70,INDIRECT(\"'\"&A70&\"'!$10:$80\"),MATCH('Technology template'!$A$41,INDIRECT(\"'\"&A70&\"'!$A10:$A$80\"),0),FALSE),0)*TechnicianHourlyWage+IF(A70=\"Solar w Battery\",1/'Labor and Maintenance '!$E$53*'Labor and Maintenance '!$D$53,0)+IF(A70=\"LT passive\", 1/'Labor and Maintenance '!$E$81*'Labor and Maintenance '!$D$81,0)","v":24},{"$f":"IFERROR(1/HLOOKUP(B70,INDIRECT(\"'\"&A70&\"'!$10:$80\"),MATCH('Technology template'!$A$34,INDIRECT(\"'\"&A70&\"'!$A$10:$A$80\"),0),FALSE)*(HLOOKUP(B70,INDIRECT(\"'\"&A70&\"'!$10:$80\"),MATCH('Technology template'!$A$44,INDIRECT(\"'\"&A70&\"'!$A10:$A$80\"),0),FALSE)*TechnicianHourlyWage+RemoteTravelCostPerDay),0)+IFERROR(1/HLOOKUP(B70,INDIRECT(\"'\"&A70&\"'!$10:$80\"),MATCH('Technology template'!$A$35,INDIRECT(\"'\"&A70&\"'!$A$10:$A$80\"),0),FALSE)*(HLOOKUP(B70,INDIRECT(\"'\"&A70&\"'!$10:$80\"),MATCH('Technology template'!$A$45,INDIRECT(\"'\"&A70&\"'!$A10:$A$80\"),0),FALSE)*TechnicianHourlyWage+RemoteTravelCostPerDay),0)+IFERROR(1/HLOOKUP(B70,INDIRECT(\"'\"&A70&\"'!$10:$80\"),MATCH('Technology template'!$A$37,INDIRECT(\"'\"&A70&\"'!$A$10:$A$80\"),0),FALSE)*(HLOOKUP(B70,INDIRECT(\"'\"&A70&\"'!$10:$80\"),MATCH('Technology template'!$A$46,INDIRECT(\"'\"&A70&\"'!$A10:$A$80\"),0),FALSE)*TechnicianHourlyWage+'Labor and Maintenance '!$B$8),0)","v":83.5},1075,107.5,715.29538230000003,null,"Vestfrost VLS 154 SDD*",35.752669547058822,6.3235294117647056,{"$f":"Y70+Z70","v":42.076198958823525},null,"Vestfrost VLS 154 SDD*",3.5752669547058824,0.63235294117647056,4.2076198958823534,null,"Vestfrost VLS 154 SDD*",1,6077.9538229999998,1075,{"$f":"AJ70+AK70","v":7152.9538229999998},null,"Vestfrost VLS 154 SDD*",1,3.5752669547058824,0.63235294117647056,{"$f":"+AP70+AQ70","v":4.2076198958823525},null,"Vestfrost VLS 154 SDD*",{"$f":"IF(F70=0, 'Country Input'!$D$7, ROUNDUP(LitersPerFacility/F70,0)*'Country Input'!$D$7)","v":10},60779.538229999998,1075,{"$f":"AV70+AW70","v":61854.538229999998},null,"Vestfrost VLS 154 SDD*",{"$f":"ROUNDUP(LitersPerFacility/F70,0)*'Country Input'!$D$7*ROUNDUP('Total Solution Costs'!$B$2/Calculations!I70,0)","v":10},35.752669547058822,0.63235294117647056,{"$f":"BB70+BC70","v":36.385022488235293},null,null,"Vestfrost VLS 154 SDD*",{"$f":"(($U70+($O70)*IF(MOD(BH$3,$I70)=1,1,0)+Parts!$E$91*IF($J70=0,0,IF(MOD(BH$3,$I70)=1,IF(PQS!$R70=\"NO\",1,0),IF(MOD(BH$3,Calculations!$J70)=1,1,0)))+Parts!$E$92*IF(Calculations!$K70=0,0,IF(MOD(BH$3,$I70)=1,0,IF(MOD(BH$3,Calculations!$K70)=1,1,0))))*$AU70)*(1+'Country Input'!$C$45)^(Calculations!BH$3-$BH$3)+TrainingCost","v":76854.538230000006},{"$f":"(($U70+($O70)*IF(MOD(BI$3,$I70)=1,1,0)+Parts!$E$91*IF($J70=0,0,IF(MOD(BI$3,$I70)=1,IF(PQS!$R70=\"NO\",1,0),IF(MOD(BI$3,Calculations!$J70)=1,1,0)))+Parts!$E$92*IF(Calculations!$K70=0,0,IF(MOD(BI$3,$I70)=1,0,IF(MOD(BI$3,Calculations!$K70)=1,1,0))))*$AU70)*(1+'Country Input'!$C$45)^(Calculations!BI$3-$BH$3)","v":1075},{"$f":"(($U70+($O70)*IF(MOD(BJ$3,$I70)=1,1,0)+Parts!$E$91*IF($J70=0,0,IF(MOD(BJ$3,$I70)=1,IF(PQS!$R70=\"NO\",1,0),IF(MOD(BJ$3,Calculations!$J70)=1,1,0)))+Parts!$E$92*IF(Calculations!$K70=0,0,IF(MOD(BJ$3,$I70)=1,0,IF(MOD(BJ$3,Calculations!$K70)=1,1,0))))*$AU70)*(1+'Country Input'!$C$45)^(Calculations!BJ$3-$BH$3)","v":1075},{"$f":"(($U70+($O70)*IF(MOD(BK$3,$I70)=1,1,0)+Parts!$E$91*IF($J70=0,0,IF(MOD(BK$3,$I70)=1,IF(PQS!$R70=\"NO\",1,0),IF(MOD(BK$3,Calculations!$J70)=1,1,0)))+Parts!$E$92*IF(Calculations!$K70=0,0,IF(MOD(BK$3,$I70)=1,0,IF(MOD(BK$3,Calculations!$K70)=1,1,0))))*$AU70)*(1+'Country Input'!$C$45)^(Calculations!BK$3-$BH$3)","v":1075},{"$f":"(($U70+($O70)*IF(MOD(BL$3,$I70)=1,1,0)+Parts!$E$91*IF($J70=0,0,IF(MOD(BL$3,$I70)=1,IF(PQS!$R70=\"NO\",1,0),IF(MOD(BL$3,Calculations!$J70)=1,1,0)))+Parts!$E$92*IF(Calculations!$K70=0,0,IF(MOD(BL$3,$I70)=1,0,IF(MOD(BL$3,Calculations!$K70)=1,1,0))))*$AU70)*(1+'Country Input'!$C$45)^(Calculations!BL$3-$BH$3)","v":1075},{"$f":"(($U70+($O70)*IF(MOD(BM$3,$I70)=1,1,0)+Parts!$E$91*IF($J70=0,0,IF(MOD(BM$3,$I70)=1,IF(PQS!$R70=\"NO\",1,0),IF(MOD(BM$3,Calculations!$J70)=1,1,0)))+Parts!$E$92*IF(Calculations!$K70=0,0,IF(MOD(BM$3,$I70)=1,0,IF(MOD(BM$3,Calculations!$K70)=1,1,0))))*$AU70)*(1+'Country Input'!$C$45)^(Calculations!BM$3-$BH$3)","v":1075},{"$f":"(($U70+($O70)*IF(MOD(BN$3,$I70)=1,1,0)+Parts!$E$91*IF($J70=0,0,IF(MOD(BN$3,$I70)=1,IF(PQS!$R70=\"NO\",1,0),IF(MOD(BN$3,Calculations!$J70)=1,1,0)))+Parts!$E$92*IF(Calculations!$K70=0,0,IF(MOD(BN$3,$I70)=1,0,IF(MOD(BN$3,Calculations!$K70)=1,1,0))))*$AU70)*(1+'Country Input'!$C$45)^(Calculations!BN$3-$BH$3)","v":1075},{"$f":"(($U70+($O70)*IF(MOD(BO$3,$I70)=1,1,0)+Parts!$E$91*IF($J70=0,0,IF(MOD(BO$3,$I70)=1,IF(PQS!$R70=\"NO\",1,0),IF(MOD(BO$3,Calculations!$J70)=1,1,0)))+Parts!$E$92*IF(Calculations!$K70=0,0,IF(MOD(BO$3,$I70)=1,0,IF(MOD(BO$3,Calculations!$K70)=1,1,0))))*$AU70)*(1+'Country Input'!$C$45)^(Calculations!BO$3-$BH$3)","v":1075},{"$f":"(($U70+($O70)*IF(MOD(BP$3,$I70)=1,1,0)+Parts!$E$91*IF($J70=0,0,IF(MOD(BP$3,$I70)=1,IF(PQS!$R70=\"NO\",1,0),IF(MOD(BP$3,Calculations!$J70)=1,1,0)))+Parts!$E$92*IF(Calculations!$K70=0,0,IF(MOD(BP$3,$I70)=1,0,IF(MOD(BP$3,Calculations!$K70)=1,1,0))))*$AU70)*(1+'Country Input'!$C$45)^(Calculations!BP$3-$BH$3)","v":1075},{"$f":"(($U70+($O70)*IF(MOD(BQ$3,$I70)=1,1,0)+Parts!$E$91*IF($J70=0,0,IF(MOD(BQ$3,$I70)=1,IF(PQS!$R70=\"NO\",1,0),IF(MOD(BQ$3,Calculations!$J70)=1,1,0)))+Parts!$E$92*IF(Calculations!$K70=0,0,IF(MOD(BQ$3,$I70)=1,0,IF(MOD(BQ$3,Calculations!$K70)=1,1,0))))*$AU70)*(1+'Country Input'!$C$45)^(Calculations!BQ$3-$BH$3)","v":1075},{"$f":"(($U70+($O70)*IF(MOD(BR$3,$I70)=1,1,0)+Parts!$E$91*IF($J70=0,0,IF(MOD(BR$3,$I70)=1,IF(PQS!$R70=\"NO\",1,0),IF(MOD(BR$3,Calculations!$J70)=1,1,0)))+Parts!$E$92*IF(Calculations!$K70=0,0,IF(MOD(BR$3,$I70)=1,0,IF(MOD(BR$3,Calculations!$K70)=1,1,0))))*$AU70)*(1+'Country Input'!$C$45)^(Calculations!BR$3-$BH$3)","v":76854.538230000006},{"$f":"(($U70+($O70)*IF(MOD(BS$3,$I70)=1,1,0)+Parts!$E$91*IF($J70=0,0,IF(MOD(BS$3,$I70)=1,IF(PQS!$R70=\"NO\",1,0),IF(MOD(BS$3,Calculations!$J70)=1,1,0)))+Parts!$E$92*IF(Calculations!$K70=0,0,IF(MOD(BS$3,$I70)=1,0,IF(MOD(BS$3,Calculations!$K70)=1,1,0))))*$AU70)*(1+'Country Input'!$C$45)^(Calculations!BS$3-$BH$3)","v":1075},{"$f":"(($U70+($O70)*IF(MOD(BT$3,$I70)=1,1,0)+Parts!$E$91*IF($J70=0,0,IF(MOD(BT$3,$I70)=1,IF(PQS!$R70=\"NO\",1,0),IF(MOD(BT$3,Calculations!$J70)=1,1,0)))+Parts!$E$92*IF(Calculations!$K70=0,0,IF(MOD(BT$3,$I70)=1,0,IF(MOD(BT$3,Calculations!$K70)=1,1,0))))*$AU70)*(1+'Country Input'!$C$45)^(Calculations!BT$3-$BH$3)","v":1075},{"$f":"(($U70+($O70)*IF(MOD(BU$3,$I70)=1,1,0)+Parts!$E$91*IF($J70=0,0,IF(MOD(BU$3,$I70)=1,IF(PQS!$R70=\"NO\",1,0),IF(MOD(BU$3,Calculations!$J70)=1,1,0)))+Parts!$E$92*IF(Calculations!$K70=0,0,IF(MOD(BU$3,$I70)=1,0,IF(MOD(BU$3,Calculations!$K70)=1,1,0))))*$AU70)*(1+'Country Input'!$C$45)^(Calculations!BU$3-$BH$3)","v":1075},{"$f":"(($U70+($O70)*IF(MOD(BV$3,$I70)=1,1,0)+Parts!$E$91*IF($J70=0,0,IF(MOD(BV$3,$I70)=1,IF(PQS!$R70=\"NO\",1,0),IF(MOD(BV$3,Calculations!$J70)=1,1,0)))+Parts!$E$92*IF(Calculations!$K70=0,0,IF(MOD(BV$3,$I70)=1,0,IF(MOD(BV$3,Calculations!$K70)=1,1,0))))*$AU70)*(1+'Country Input'!$C$45)^(Calculations!BV$3-$BH$3)","v":1075},{"$f":"(($U70+($O70)*IF(MOD(BW$3,$I70)=1,1,0)+Parts!$E$91*IF($J70=0,0,IF(MOD(BW$3,$I70)=1,IF(PQS!$R70=\"NO\",1,0),IF(MOD(BW$3,Calculations!$J70)=1,1,0)))+Parts!$E$92*IF(Calculations!$K70=0,0,IF(MOD(BW$3,$I70)=1,0,IF(MOD(BW$3,Calculations!$K70)=1,1,0))))*$AU70)*(1+'Country Input'!$C$45)^(Calculations!BW$3-$BH$3)","v":1075},{"$f":"(($U70+($O70)*IF(MOD(BX$3,$I70)=1,1,0)+Parts!$E$91*IF($J70=0,0,IF(MOD(BX$3,$I70)=1,IF(PQS!$R70=\"NO\",1,0),IF(MOD(BX$3,Calculations!$J70)=1,1,0)))+Parts!$E$92*IF(Calculations!$K70=0,0,IF(MOD(BX$3,$I70)=1,0,IF(MOD(BX$3,Calculations!$K70)=1,1,0))))*$AU70)*(1+'Country Input'!$C$45)^(Calculations!BX$3-$BH$3)","v":1075},{"$f":"(($U70+($O70)*IF(MOD(BY$3,$I70)=1,1,0)+Parts!$E$91*IF($J70=0,0,IF(MOD(BY$3,$I70)=1,IF(PQS!$R70=\"NO\",1,0),IF(MOD(BY$3,Calculations!$J70)=1,1,0)))+Parts!$E$92*IF(Calculations!$K70=0,0,IF(MOD(BY$3,$I70)=1,0,IF(MOD(BY$3,Calculations!$K70)=1,1,0))))*$AU70)*(1+'Country Input'!$C$45)^(Calculations!BY$3-$BH$3)","v":1075},{"$f":"(($U70+($O70)*IF(MOD(BZ$3,$I70)=1,1,0)+Parts!$E$91*IF($J70=0,0,IF(MOD(BZ$3,$I70)=1,IF(PQS!$R70=\"NO\",1,0),IF(MOD(BZ$3,Calculations!$J70)=1,1,0)))+Parts!$E$92*IF(Calculations!$K70=0,0,IF(MOD(BZ$3,$I70)=1,0,IF(MOD(BZ$3,Calculations!$K70)=1,1,0))))*$AU70)*(1+'Country Input'!$C$45)^(Calculations!BZ$3-$BH$3)","v":1075},{"$f":"(($U70+($O70)*IF(MOD(CA$3,$I70)=1,1,0)+Parts!$E$91*IF($J70=0,0,IF(MOD(CA$3,$I70)=1,IF(PQS!$R70=\"NO\",1,0),IF(MOD(CA$3,Calculations!$J70)=1,1,0)))+Parts!$E$92*IF(Calculations!$K70=0,0,IF(MOD(CA$3,$I70)=1,0,IF(MOD(CA$3,Calculations!$K70)=1,1,0))))*$AU70)*(1+'Country Input'!$C$45)^(Calculations!CA$3-$BH$3)","v":1075},null,"Vestfrost VLS 154 SDD*",{"$f":"BH70/((1+DiscountRate)^(COLUMN(CD70)-COLUMN($CD70)))","v":76854.538230000006},{"$f":"BI70/((1+DiscountRate)^(COLUMN(CE70)-COLUMN($CD70)))","v":1075},{"$f":"BJ70/((1+DiscountRate)^(COLUMN(CF70)-COLUMN($CD70)))","v":1075},{"$f":"BK70/((1+DiscountRate)^(COLUMN(CG70)-COLUMN($CD70)))","v":1075},{"$f":"BL70/((1+DiscountRate)^(COLUMN(CH70)-COLUMN($CD70)))","v":1075},{"$f":"BM70/((1+DiscountRate)^(COLUMN(CI70)-COLUMN($CD70)))","v":1075},{"$f":"BN70/((1+DiscountRate)^(COLUMN(CJ70)-COLUMN($CD70)))","v":1075},{"$f":"BO70/((1+DiscountRate)^(COLUMN(CK70)-COLUMN($CD70)))","v":1075},{"$f":"BP70/((1+DiscountRate)^(COLUMN(CL70)-COLUMN($CD70)))","v":1075},{"$f":"BQ70/((1+DiscountRate)^(COLUMN(CM70)-COLUMN($CD70)))","v":1075},{"$f":"BR70/((1+DiscountRate)^(COLUMN(CN70)-COLUMN($CD70)))","v":76854.538230000006},{"$f":"BS70/((1+DiscountRate)^(COLUMN(CO70)-COLUMN($CD70)))","v":1075},{"$f":"BT70/((1+DiscountRate)^(COLUMN(CP70)-COLUMN($CD70)))","v":1075},{"$f":"BU70/((1+DiscountRate)^(COLUMN(CQ70)-COLUMN($CD70)))","v":1075},{"$f":"BV70/((1+DiscountRate)^(COLUMN(CR70)-COLUMN($CD70)))","v":1075},{"$f":"BW70/((1+DiscountRate)^(COLUMN(CS70)-COLUMN($CD70)))","v":1075},{"$f":"BX70/((1+DiscountRate)^(COLUMN(CT70)-COLUMN($CD70)))","v":1075},{"$f":"BY70/((1+DiscountRate)^(COLUMN(CU70)-COLUMN($CD70)))","v":1075},{"$f":"BZ70/((1+DiscountRate)^(COLUMN(CV70)-COLUMN($CD70)))","v":1075},{"$f":"CA70/((1+DiscountRate)^(COLUMN(CW70)-COLUMN($CD70)))","v":1075},{"$f":"SUM(CD70:INDEX($CD70:$CW70,1,'Total Solution Costs'!$B$2))","v":86529.538230000006},null,"Vestfrost VLS 154 SDD*",{"$f":"SUM($BH70:BH70)","v":76854.538230000006},{"$f":"SUM($BH70:BI70)","v":77929.538230000006},{"$f":"SUM($BH70:BJ70)","v":79004.538230000006},{"$f":"SUM($BH70:BK70)","v":80079.538230000006},{"$f":"SUM($BH70:BL70)","v":81154.538230000006},{"$f":"SUM($BH70:BM70)","v":82229.538230000006},{"$f":"SUM($BH70:BN70)","v":83304.538230000006},{"$f":"SUM($BH70:BO70)","v":84379.538230000006},{"$f":"SUM($BH70:BP70)","v":85454.538230000006},{"$f":"SUM($BH70:BQ70)","v":86529.538230000006},{"$f":"SUM($BH70:BR70)","v":163384.07646000001},{"$f":"SUM($BH70:BS70)","v":164459.07646000001},{"$f":"SUM($BH70:BT70)","v":165534.07646000001},{"$f":"SUM($BH70:BU70)","v":166609.07646000001},{"$f":"SUM($BH70:BV70)","v":167684.07646000001},{"$f":"SUM($BH70:BW70)","v":168759.07646000001},{"$f":"SUM($BH70:BX70)","v":169834.07646000001},{"$f":"SUM($BH70:BY70)","v":170909.07646000001},{"$f":"SUM($BH70:BZ70)","v":171984.07646000001},{"$f":"SUM($BH70:CA70)","v":173059.07646000001}]
[{"$f":"PQS!A71","v":"SDD"},{"$f":"PQS!B71","v":"E003/055"},{"$f":"PQS!E71","v":"ZLF 30DC SDD*"},{"$f":"PQS!F71","v":"Zero"},{"$f":"PQS!D71","v":"Zero ZLF 30DC SDD*"},{"$f":"VLOOKUP(E71,PQS!$D$5:$K$107,COLUMN(PQS!$I$3)-COLUMN(PQS!$D$3)+1,FALSE)","v":27},{"$f":"VLOOKUP(E71,PQS!$D$5:$K$107,COLUMN(PQS!$J$3)-COLUMN(PQS!$D$3)+1,FALSE)","v":0},{"$f":"VLOOKUP(E71,PQS!$D$5:$K$107,COLUMN(PQS!$G$3)-COLUMN(PQS!$D$3)+1,FALSE)","v":"Yes"},{"$f":"HLOOKUP(B71,INDIRECT(\"'\"&A71&\"'!$10:$15\"),ROW('Technology template'!$A$11)-ROW('Technology template'!$A$10)+1,FALSE)","v":10},{"$f":"HLOOKUP(B71,INDIRECT(\"'\"&A71&\"'!$10:$15\"),ROW('Technology template'!$A$12)-ROW('Technology template'!$A$10)+1,FALSE)","v":10},{"$f":"HLOOKUP(B71,INDIRECT(\"'\"&A71&\"'!$10:$15\"),ROW('Technology template'!$A$13)-ROW('Technology template'!$A$10)+1,FALSE)","v":0},{"$f":"VLOOKUP(B71,PQS!$B:$Q,MATCH(PQS!$Q$3,PQS!$B$3:$Q$3,0),FALSE)*(1+'Country Input'!$C$47)+HLOOKUP(B71,INDIRECT(\"'\"&A71&\"'!$10:$15\"),ROW('Technology template'!$A$14)-ROW('Technology template'!$A$10)+1,FALSE)*(1+'Country Input'!$C$47)","v":3284.9},{"$f":"HLOOKUP(B71,INDIRECT(\"'\"&A71&\"'!$10:$80\"),MATCH('Technology template'!$A$27,INDIRECT(\"'\"&A71&\"'!$A$10:$A$80\"),0),FALSE)+'Labor and Maintenance '!$E$18","v":1042},{"$f":"VLOOKUP(B71,PQS!B:T,MATCH(PQS!$T$3,PQS!$B$3:$T$3,0),FALSE)*(1+'Country Input'!$C$47)","v":758.63},5085.53,508.553,{"$f":"VLOOKUP(B71,PQS!$B:$AE,COLUMN(PQS!AD69)-1,FALSE)","v":0},{"$f":"IFERROR(1/HLOOKUP(B71,INDIRECT(\"'\"&A71&\"'!$10:$80\"),MATCH('Technology template'!$A$31,INDIRECT(\"'\"&A71&\"'!$A$10:$A$80\"),0),FALSE)*HLOOKUP(B71,INDIRECT(\"'\"&A71&\"'!$10:$80\"),MATCH('Technology template'!$A$41,INDIRECT(\"'\"&A71&\"'!$A10:$A$80\"),0),FALSE),0)*TechnicianHourlyWage+IF(A71=\"Solar w Battery\",1/'Labor and Maintenance '!$E$53*'Labor and Maintenance '!$D$53,0)+IF(A71=\"LT passive\", 1/'Labor and Maintenance '!$E$81*'Labor and Maintenance '!$D$81,0)","v":24},{"$f":"IFERROR(1/HLOOKUP(B71,INDIRECT(\"'\"&A71&\"'!$10:$80\"),MATCH('Technology template'!$A$34,INDIRECT(\"'\"&A71&\"'!$A$10:$A$80\"),0),FALSE)*(HLOOKUP(B71,INDIRECT(\"'\"&A71&\"'!$10:$80\"),MATCH('Technology template'!$A$44,INDIRECT(\"'\"&A71&\"'!$A10:$A$80\"),0),FALSE)*TechnicianHourlyWage+RemoteTravelCostPerDay),0)+IFERROR(1/HLOOKUP(B71,INDIRECT(\"'\"&A71&\"'!$10:$80\"),MATCH('Technology template'!$A$35,INDIRECT(\"'\"&A71&\"'!$A$10:$A$80\"),0),FALSE)*(HLOOKUP(B71,INDIRECT(\"'\"&A71&\"'!$10:$80\"),MATCH('Technology template'!$A$45,INDIRECT(\"'\"&A71&\"'!$A10:$A$80\"),0),FALSE)*TechnicianHourlyWage+RemoteTravelCostPerDay),0)+IFERROR(1/HLOOKUP(B71,INDIRECT(\"'\"&A71&\"'!$10:$80\"),MATCH('Technology template'!$A$37,INDIRECT(\"'\"&A71&\"'!$A$10:$A$80\"),0),FALSE)*(HLOOKUP(B71,INDIRECT(\"'\"&A71&\"'!$10:$80\"),MATCH('Technology template'!$A$46,INDIRECT(\"'\"&A71&\"'!$A10:$A$80\"),0),FALSE)*TechnicianHourlyWage+'Labor and Maintenance '!$B$8),0)","v":83.5},1075,107.5,616.053,null,"Zero ZLF 30DC SDD*",188.35296296296295,39.814814814814817,228.16777777777776,null,"Zero ZLF 30DC SDD*",18.835296296296296,3.9814814814814814,22.816777777777776,null,"Zero ZLF 30DC SDD*",5,25427.649999999998,5375,30802.649999999998,null,"Zero ZLF 30DC SDD*",5,94.176481481481474,19.907407407407408,114.08388888888888,null,"Zero ZLF 30DC SDD*",{"$f":"IF(F71=0, 'Country Input'!$D$7, ROUNDUP(LitersPerFacility/F71,0)*'Country Input'!$D$7)","v":10},50855.299999999996,1075,51930.299999999996,null,"Zero ZLF 30DC SDD*",{"$f":"ROUNDUP(LitersPerFacility/F71,0)*'Country Input'!$D$7*ROUNDUP('Total Solution Costs'!$B$2/Calculations!I71,0)","v":10},188.35296296296295,3.9814814814814814,192.33444444444444,null,null,"Zero ZLF 30DC SDD*",{"$f":"(($U71+($O71)*IF(MOD(BH$3,$I71)=1,1,0)+Parts!$E$91*IF($J71=0,0,IF(MOD(BH$3,$I71)=1,IF(PQS!$R71=\"NO\",1,0),IF(MOD(BH$3,Calculations!$J71)=1,1,0)))+Parts!$E$92*IF(Calculations!$K71=0,0,IF(MOD(BH$3,$I71)=1,0,IF(MOD(BH$3,Calculations!$K71)=1,1,0))))*$AU71)*(1+'Country Input'!$C$45)^(Calculations!BH$3-$BH$3)+TrainingCost","v":51930.299999999996},{"$f":"(($U71+($O71)*IF(MOD(BI$3,$I71)=1,1,0)+Parts!$E$91*IF($J71=0,0,IF(MOD(BI$3,$I71)=1,IF(PQS!$R71=\"NO\",1,0),IF(MOD(BI$3,Calculations!$J71)=1,1,0)))+Parts!$E$92*IF(Calculations!$K71=0,0,IF(MOD(BI$3,$I71)=1,0,IF(MOD(BI$3,Calculations!$K71)=1,1,0))))*$AU71)*(1+'Country Input'!$C$45)^(Calculations!BI$3-$BH$3)","v":1075},{"$f":"(($U71+($O71)*IF(MOD(BJ$3,$I71)=1,1,0)+Parts!$E$91*IF($J71=0,0,IF(MOD(BJ$3,$I71)=1,IF(PQS!$R71=\"NO\",1,0),IF(MOD(BJ$3,Calculations!$J71)=1,1,0)))+Parts!$E$92*IF(Calculations!$K71=0,0,IF(MOD(BJ$3,$I71)=1,0,IF(MOD(BJ$3,Calculations!$K71)=1,1,0))))*$AU71)*(1+'Country Input'!$C$45)^(Calculations!BJ$3-$BH$3)","v":1075},{"$f":"(($U71+($O71)*IF(MOD(BK$3,$I71)=1,1,0)+Parts!$E$91*IF($J71=0,0,IF(MOD(BK$3,$I71)=1,IF(PQS!$R71=\"NO\",1,0),IF(MOD(BK$3,Calculations!$J71)=1,1,0)))+Parts!$E$92*IF(Calculations!$K71=0,0,IF(MOD(BK$3,$I71)=1,0,IF(MOD(BK$3,Calculations!$K71)=1,1,0))))*$AU71)*(1+'Country Input'!$C$45)^(Calculations!BK$3-$BH$3)","v":1075},{"$f":"(($U71+($O71)*IF(MOD(BL$3,$I71)=1,1,0)+Parts!$E$91*IF($J71=0,0,IF(MOD(BL$3,$I71)=1,IF(PQS!$R71=\"NO\",1,0),IF(MOD(BL$3,Calculations!$J71)=1,1,0)))+Parts!$E$92*IF(Calculations!$K71=0,0,IF(MOD(BL$3,$I71)=1,0,IF(MOD(BL$3,Calculations!$K71)=1,1,0))))*$AU71)*(1+'Country Input'!$C$45)^(Calculations!BL$3-$BH$3)","v":1075},{"$f":"(($U71+($O71)*IF(MOD(BM$3,$I71)=1,1,0)+Parts!$E$91*IF($J71=0,0,IF(MOD(BM$3,$I71)=1,IF(PQS!$R71=\"NO\",1,0),IF(MOD(BM$3,Calculations!$J71)=1,1,0)))+Parts!$E$92*IF(Calculations!$K71=0,0,IF(MOD(BM$3,$I71)=1,0,IF(MOD(BM$3,Calculations!$K71)=1,1,0))))*$AU71)*(1+'Country Input'!$C$45)^(Calculations!BM$3-$BH$3)","v":1075},{"$f":"(($U71+($O71)*IF(MOD(BN$3,$I71)=1,1,0)+Parts!$E$91*IF($J71=0,0,IF(MOD(BN$3,$I71)=1,IF(PQS!$R71=\"NO\",1,0),IF(MOD(BN$3,Calculations!$J71)=1,1,0)))+Parts!$E$92*IF(Calculations!$K71=0,0,IF(MOD(BN$3,$I71)=1,0,IF(MOD(BN$3,Calculations!$K71)=1,1,0))))*$AU71)*(1+'Country Input'!$C$45)^(Calculations!BN$3-$BH$3)","v":1075},{"$f":"(($U71+($O71)*IF(MOD(BO$3,$I71)=1,1,0)+Parts!$E$91*IF($J71=0,0,IF(MOD(BO$3,$I71)=1,IF(PQS!$R71=\"NO\",1,0),IF(MOD(BO$3,Calculations!$J71)=1,1,0)))+Parts!$E$92*IF(Calculations!$K71=0,0,IF(MOD(BO$3,$I71)=1,0,IF(MOD(BO$3,Calculations!$K71)=1,1,0))))*$AU71)*(1+'Country Input'!$C$45)^(Calculations!BO$3-$BH$3)","v":1075},{"$f":"(($U71+($O71)*IF(MOD(BP$3,$I71)=1,1,0)+Parts!$E$91*IF($J71=0,0,IF(MOD(BP$3,$I71)=1,IF(PQS!$R71=\"NO\",1,0),IF(MOD(BP$3,Calculations!$J71)=1,1,0)))+Parts!$E$92*IF(Calculations!$K71=0,0,IF(MOD(BP$3,$I71)=1,0,IF(MOD(BP$3,Calculations!$K71)=1,1,0))))*$AU71)*(1+'Country Input'!$C$45)^(Calculations!BP$3-$BH$3)","v":1075},{"$f":"(($U71+($O71)*IF(MOD(BQ$3,$I71)=1,1,0)+Parts!$E$91*IF($J71=0,0,IF(MOD(BQ$3,$I71)=1,IF(PQS!$R71=\"NO\",1,0),IF(MOD(BQ$3,Calculations!$J71)=1,1,0)))+Parts!$E$92*IF(Calculations!$K71=0,0,IF(MOD(BQ$3,$I71)=1,0,IF(MOD(BQ$3,Calculations!$K71)=1,1,0))))*$AU71)*(1+'Country Input'!$C$45)^(Calculations!BQ$3-$BH$3)","v":1075},{"$f":"(($U71+($O71)*IF(MOD(BR$3,$I71)=1,1,0)+Parts!$E$91*IF($J71=0,0,IF(MOD(BR$3,$I71)=1,IF(PQS!$R71=\"NO\",1,0),IF(MOD(BR$3,Calculations!$J71)=1,1,0)))+Parts!$E$92*IF(Calculations!$K71=0,0,IF(MOD(BR$3,$I71)=1,0,IF(MOD(BR$3,Calculations!$K71)=1,1,0))))*$AU71)*(1+'Country Input'!$C$45)^(Calculations!BR$3-$BH$3)","v":51930.299999999996},{"$f":"(($U71+($O71)*IF(MOD(BS$3,$I71)=1,1,0)+Parts!$E$91*IF($J71=0,0,IF(MOD(BS$3,$I71)=1,IF(PQS!$R71=\"NO\",1,0),IF(MOD(BS$3,Calculations!$J71)=1,1,0)))+Parts!$E$92*IF(Calculations!$K71=0,0,IF(MOD(BS$3,$I71)=1,0,IF(MOD(BS$3,Calculations!$K71)=1,1,0))))*$AU71)*(1+'Country Input'!$C$45)^(Calculations!BS$3-$BH$3)","v":1075},{"$f":"(($U71+($O71)*IF(MOD(BT$3,$I71)=1,1,0)+Parts!$E$91*IF($J71=0,0,IF(MOD(BT$3,$I71)=1,IF(PQS!$R71=\"NO\",1,0),IF(MOD(BT$3,Calculations!$J71)=1,1,0)))+Parts!$E$92*IF(Calculations!$K71=0,0,IF(MOD(BT$3,$I71)=1,0,IF(MOD(BT$3,Calculations!$K71)=1,1,0))))*$AU71)*(1+'Country Input'!$C$45)^(Calculations!BT$3-$BH$3)","v":1075},{"$f":"(($U71+($O71)*IF(MOD(BU$3,$I71)=1,1,0)+Parts!$E$91*IF($J71=0,0,IF(MOD(BU$3,$I71)=1,IF(PQS!$R71=\"NO\",1,0),IF(MOD(BU$3,Calculations!$J71)=1,1,0)))+Parts!$E$92*IF(Calculations!$K71=0,0,IF(MOD(BU$3,$I71)=1,0,IF(MOD(BU$3,Calculations!$K71)=1,1,0))))*$AU71)*(1+'Country Input'!$C$45)^(Calculations!BU$3-$BH$3)","v":1075},{"$f":"(($U71+($O71)*IF(MOD(BV$3,$I71)=1,1,0)+Parts!$E$91*IF($J71=0,0,IF(MOD(BV$3,$I71)=1,IF(PQS!$R71=\"NO\",1,0),IF(MOD(BV$3,Calculations!$J71)=1,1,0)))+Parts!$E$92*IF(Calculations!$K71=0,0,IF(MOD(BV$3,$I71)=1,0,IF(MOD(BV$3,Calculations!$K71)=1,1,0))))*$AU71)*(1+'Country Input'!$C$45)^(Calculations!BV$3-$BH$3)","v":1075},{"$f":"(($U71+($O71)*IF(MOD(BW$3,$I71)=1,1,0)+Parts!$E$91*IF($J71=0,0,IF(MOD(BW$3,$I71)=1,IF(PQS!$R71=\"NO\",1,0),IF(MOD(BW$3,Calculations!$J71)=1,1,0)))+Parts!$E$92*IF(Calculations!$K71=0,0,IF(MOD(BW$3,$I71)=1,0,IF(MOD(BW$3,Calculations!$K71)=1,1,0))))*$AU71)*(1+'Country Input'!$C$45)^(Calculations!BW$3-$BH$3)","v":1075},{"$f":"(($U71+($O71)*IF(MOD(BX$3,$I71)=1,1,0)+Parts!$E$91*IF($J71=0,0,IF(MOD(BX$3,$I71)=1,IF(PQS!$R71=\"NO\",1,0),IF(MOD(BX$3,Calculations!$J71)=1,1,0)))+Parts!$E$92*IF(Calculations!$K71=0,0,IF(MOD(BX$3,$I71)=1,0,IF(MOD(BX$3,Calculations!$K71)=1,1,0))))*$AU71)*(1+'Country Input'!$C$45)^(Calculations!BX$3-$BH$3)","v":1075},{"$f":"(($U71+($O71)*IF(MOD(BY$3,$I71)=1,1,0)+Parts!$E$91*IF($J71=0,0,IF(MOD(BY$3,$I71)=1,IF(PQS!$R71=\"NO\",1,0),IF(MOD(BY$3,Calculations!$J71)=1,1,0)))+Parts!$E$92*IF(Calculations!$K71=0,0,IF(MOD(BY$3,$I71)=1,0,IF(MOD(BY$3,Calculations!$K71)=1,1,0))))*$AU71)*(1+'Country Input'!$C$45)^(Calculations!BY$3-$BH$3)","v":1075},{"$f":"(($U71+($O71)*IF(MOD(BZ$3,$I71)=1,1,0)+Parts!$E$91*IF($J71=0,0,IF(MOD(BZ$3,$I71)=1,IF(PQS!$R71=\"NO\",1,0),IF(MOD(BZ$3,Calculations!$J71)=1,1,0)))+Parts!$E$92*IF(Calculations!$K71=0,0,IF(MOD(BZ$3,$I71)=1,0,IF(MOD(BZ$3,Calculations!$K71)=1,1,0))))*$AU71)*(1+'Country Input'!$C$45)^(Calculations!BZ$3-$BH$3)","v":1075},{"$f":"(($U71+($O71)*IF(MOD(CA$3,$I71)=1,1,0)+Parts!$E$91*IF($J71=0,0,IF(MOD(CA$3,$I71)=1,IF(PQS!$R71=\"NO\",1,0),IF(MOD(CA$3,Calculations!$J71)=1,1,0)))+Parts!$E$92*IF(Calculations!$K71=0,0,IF(MOD(CA$3,$I71)=1,0,IF(MOD(CA$3,Calculations!$K71)=1,1,0))))*$AU71)*(1+'Country Input'!$C$45)^(Calculations!CA$3-$BH$3)","v":1075},null,"Zero ZLF 30DC SDD*",51930.299999999996,1075,1075,1075,1075,1075,1075,1075,1075,1075,51930.299999999996,1075,1075,1075,1075,1075,1075,1075,1075,1075,{"$f":"SUM(CD71:INDEX($CD71:$CW71,1,'Total Solution Costs'!$B$2))","v":61605.299999999996},null,"Zero ZLF 30DC SDD*",{"$f":"SUM($BH71:BH71)","v":51930.299999999996},{"$f":"SUM($BH71:BI71)","v":53005.299999999996},{"$f":"SUM($BH71:BJ71)","v":54080.299999999996},{"$f":"SUM($BH71:BK71)","v":55155.299999999996},{"$f":"SUM($BH71:BL71)","v":56230.299999999996},{"$f":"SUM($BH71:BM71)","v":57305.299999999996},{"$f":"SUM($BH71:BN71)","v":58380.299999999996},{"$f":"SUM($BH71:BO71)","v":59455.299999999996},{"$f":"SUM($BH71:BP71)","v":60530.299999999996},{"$f":"SUM($BH71:BQ71)","v":61605.299999999996},{"$f":"SUM($BH71:BR71)","v":113535.59999999999},{"$f":"SUM($BH71:BS71)","v":114610.59999999999},{"$f":"SUM($BH71:BT71)","v":115685.59999999999},{"$f":"SUM($BH71:BU71)","v":116760.59999999999},{"$f":"SUM($BH71:BV71)","v":117835.59999999999},{"$f":"SUM($BH71:BW71)","v":118910.59999999999},{"$f":"SUM($BH71:BX71)","v":119985.59999999999},{"$f":"SUM($BH71:BY71)","v":121060.59999999999},{"$f":"SUM($BH71:BZ71)","v":122135.59999999999},{"$f":"SUM($BH71:CA71)","v":123210.59999999999}]
[{"$f":"PQS!A72","v":"SDD"},{"$f":"PQS!B72","v":"E003/056"},{"$f":"PQS!E72","v":"HTC-60H"},{"$f":"PQS!F72","v":"Haier"},{"$f":"PQS!D72","v":"Haier HTC-60H"},{"$f":"VLOOKUP(E72,PQS!$D$5:$K$107,COLUMN(PQS!$I$3)-COLUMN(PQS!$D$3)+1,FALSE)","v":21},{"$f":"VLOOKUP(E72,PQS!$D$5:$K$107,COLUMN(PQS!$J$3)-COLUMN(PQS!$D$3)+1,FALSE)","v":0},{"$f":"VLOOKUP(E72,PQS!$D$5:$K$107,COLUMN(PQS!$G$3)-COLUMN(PQS!$D$3)+1,FALSE)","v":"No"},{"$f":"HLOOKUP(B72,INDIRECT(\"'\"&A72&\"'!$10:$15\"),ROW('Technology template'!$A$11)-ROW('Technology template'!$A$10)+1,FALSE)","v":10},{"$f":"HLOOKUP(B72,INDIRECT(\"'\"&A72&\"'!$10:$15\"),ROW('Technology template'!$A$12)-ROW('Technology template'!$A$10)+1,FALSE)","v":10},{"$f":"HLOOKUP(B72,INDIRECT(\"'\"&A72&\"'!$10:$15\"),ROW('Technology template'!$A$13)-ROW('Technology template'!$A$10)+1,FALSE)","v":0},{"$f":"VLOOKUP(B72,PQS!$B:$Q,MATCH(PQS!$Q$3,PQS!$B$3:$Q$3,0),FALSE)*(1+'Country Input'!$C$47)+HLOOKUP(B72,INDIRECT(\"'\"&A72&\"'!$10:$15\"),ROW('Technology template'!$A$14)-ROW('Technology template'!$A$10)+1,FALSE)*(1+'Country Input'!$C$47)","v":2910.4},{"$f":"HLOOKUP(B72,INDIRECT(\"'\"&A72&\"'!$10:$80\"),MATCH('Technology template'!$A$27,INDIRECT(\"'\"&A72&\"'!$A$10:$A$80\"),0),FALSE)+'Labor and Maintenance '!$E$18","v":1042},{"$f":"VLOOKUP(B72,PQS!B:T,MATCH(PQS!$T$3,PQS!$B$3:$T$3,0),FALSE)*(1+'Country Input'!$C$47)","v":341.46910000000003},4293.8690999999999,429.38691,{"$f":"VLOOKUP(B72,PQS!$B:$AE,COLUMN(PQS!AD70)-1,FALSE)","v":0},{"$f":"IFERROR(1/HLOOKUP(B72,INDIRECT(\"'\"&A72&\"'!$10:$80\"),MATCH('Technology template'!$A$31,INDIRECT(\"'\"&A72&\"'!$A$10:$A$80\"),0),FALSE)*HLOOKUP(B72,INDIRECT(\"'\"&A72&\"'!$10:$80\"),MATCH('Technology template'!$A$41,INDIRECT(\"'\"&A72&\"'!$A10:$A$80\"),0),FALSE),0)*TechnicianHourlyWage+IF(A72=\"Solar w Battery\",1/'Labor and Maintenance '!$E$53*'Labor and Maintenance '!$D$53,0)+IF(A72=\"LT passive\", 1/'Labor and Maintenance '!$E$81*'Labor and Maintenance '!$D$81,0)","v":24},{"$f":"IFERROR(1/HLOOKUP(B72,INDIRECT(\"'\"&A72&\"'!$10:$80\"),MATCH('Technology template'!$A$34,INDIRECT(\"'\"&A72&\"'!$A$10:$A$80\"),0),FALSE)*(HLOOKUP(B72,INDIRECT(\"'\"&A72&\"'!$10:$80\"),MATCH('Technology template'!$A$44,INDIRECT(\"'\"&A72&\"'!$A10:$A$80\"),0),FALSE)*TechnicianHourlyWage+RemoteTravelCostPerDay),0)+IFERROR(1/HLOOKUP(B72,INDIRECT(\"'\"&A72&\"'!$10:$80\"),MATCH('Technology template'!$A$35,INDIRECT(\"'\"&A72&\"'!$A$10:$A$80\"),0),FALSE)*(HLOOKUP(B72,INDIRECT(\"'\"&A72&\"'!$10:$80\"),MATCH('Technology template'!$A$45,INDIRECT(\"'\"&A72&\"'!$A10:$A$80\"),0),FALSE)*TechnicianHourlyWage+RemoteTravelCostPerDay),0)+IFERROR(1/HLOOKUP(B72,INDIRECT(\"'\"&A72&\"'!$10:$80\"),MATCH('Technology template'!$A$37,INDIRECT(\"'\"&A72&\"'!$A$10:$A$80\"),0),FALSE)*(HLOOKUP(B72,INDIRECT(\"'\"&A72&\"'!$10:$80\"),MATCH('Technology template'!$A$46,INDIRECT(\"'\"&A72&\"'!$A10:$A$80\"),0),FALSE)*TechnicianHourlyWage+'Labor and Maintenance '!$B$8),0)","v":83.5},1075,107.5,536.88690999999994,null,"Haier HTC-60H",204.46995714285714,51.19047619047619,255.66043333333334,null,"Haier HTC-60H",20.446995714285713,5.1190476190476186,25.566043333333329,null,"Haier HTC-60H",6,25763.214599999999,6450,32213.214599999999,null,"Haier HTC-60H",6,122.68197428571428,30.714285714285712,153.39625999999998,null,"Haier HTC-60H",{"$f":"IF(F72=0, 'Country Input'!$D$7, ROUNDUP(LitersPerFacility/F72,0)*'Country Input'!$D$7)","v":10},42938.690999999999,1075,44013.690999999999,null,"Haier HTC-60H",{"$f":"ROUNDUP(LitersPerFacility/F72,0)*'Country Input'!$D$7*ROUNDUP('Total Solution Costs'!$B$2/Calculations!I72,0)","v":10},204.46995714285714,5.1190476190476186,209.58900476190476,null,null,"Haier HTC-60H",{"$f":"(($U72+($O72)*IF(MOD(BH$3,$I72)=1,1,0)+Parts!$E$91*IF($J72=0,0,IF(MOD(BH$3,$I72)=1,IF(PQS!$R72=\"NO\",1,0),IF(MOD(BH$3,Calculations!$J72)=1,1,0)))+Parts!$E$92*IF(Calculations!$K72=0,0,IF(MOD(BH$3,$I72)=1,0,IF(MOD(BH$3,Calculations!$K72)=1,1,0))))*$AU72)*(1+'Country Input'!$C$45)^(Calculations!BH$3-$BH$3)+TrainingCost","v":44013.690999999999},{"$f":"(($U72+($O72)*IF(MOD(BI$3,$I72)=1,1,0)+Parts!$E$91*IF($J72=0,0,IF(MOD(BI$3,$I72)=1,IF(PQS!$R72=\"NO\",1,0),IF(MOD(BI$3,Calculations!$J72)=1,1,0)))+Parts!$E$92*IF(Calculations!$K72=0,0,IF(MOD(BI$3,$I72)=1,0,IF(MOD(BI$3,Calculations!$K72)=1,1,0))))*$AU72)*(1+'Country Input'!$C$45)^(Calculations!BI$3-$BH$3)","v":1075},{"$f":"(($U72+($O72)*IF(MOD(BJ$3,$I72)=1,1,0)+Parts!$E$91*IF($J72=0,0,IF(MOD(BJ$3,$I72)=1,IF(PQS!$R72=\"NO\",1,0),IF(MOD(BJ$3,Calculations!$J72)=1,1,0)))+Parts!$E$92*IF(Calculations!$K72=0,0,IF(MOD(BJ$3,$I72)=1,0,IF(MOD(BJ$3,Calculations!$K72)=1,1,0))))*$AU72)*(1+'Country Input'!$C$45)^(Calculations!BJ$3-$BH$3)","v":1075},{"$f":"(($U72+($O72)*IF(MOD(BK$3,$I72)=1,1,0)+Parts!$E$91*IF($J72=0,0,IF(MOD(BK$3,$I72)=1,IF(PQS!$R72=\"NO\",1,0),IF(MOD(BK$3,Calculations!$J72)=1,1,0)))+Parts!$E$92*IF(Calculations!$K72=0,0,IF(MOD(BK$3,$I72)=1,0,IF(MOD(BK$3,Calculations!$K72)=1,1,0))))*$AU72)*(1+'Country Input'!$C$45)^(Calculations!BK$3-$BH$3)","v":1075},{"$f":"(($U72+($O72)*IF(MOD(BL$3,$I72)=1,1,0)+Parts!$E$91*IF($J72=0,0,IF(MOD(BL$3,$I72)=1,IF(PQS!$R72=\"NO\",1,0),IF(MOD(BL$3,Calculations!$J72)=1,1,0)))+Parts!$E$92*IF(Calculations!$K72=0,0,IF(MOD(BL$3,$I72)=1,0,IF(MOD(BL$3,Calculations!$K72)=1,1,0))))*$AU72)*(1+'Country Input'!$C$45)^(Calculations!BL$3-$BH$3)","v":1075},{"$f":"(($U72+($O72)*IF(MOD(BM$3,$I72)=1,1,0)+Parts!$E$91*IF($J72=0,0,IF(MOD(BM$3,$I72)=1,IF(PQS!$R72=\"NO\",1,0),IF(MOD(BM$3,Calculations!$J72)=1,1,0)))+Parts!$E$92*IF(Calculations!$K72=0,0,IF(MOD(BM$3,$I72)=1,0,IF(MOD(BM$3,Calculations!$K72)=1,1,0))))*$AU72)*(1+'Country Input'!$C$45)^(Calculations!BM$3-$BH$3)","v":1075},{"$f":"(($U72+($O72)*IF(MOD(BN$3,$I72)=1,1,0)+Parts!$E$91*IF($J72=0,0,IF(MOD(BN$3,$I72)=1,IF(PQS!$R72=\"NO\",1,0),IF(MOD(BN$3,Calculations!$J72)=1,1,0)))+Parts!$E$92*IF(Calculations!$K72=0,0,IF(MOD(BN$3,$I72)=1,0,IF(MOD(BN$3,Calculations!$K72)=1,1,0))))*$AU72)*(1+'Country Input'!$C$45)^(Calculations!BN$3-$BH$3)","v":1075},{"$f":"(($U72+($O72)*IF(MOD(BO$3,$I72)=1,1,0)+Parts!$E$91*IF($J72=0,0,IF(MOD(BO$3,$I72)=1,IF(PQS!$R72=\"NO\",1,0),IF(MOD(BO$3,Calculations!$J72)=1,1,0)))+Parts!$E$92*IF(Calculations!$K72=0,0,IF(MOD(BO$3,$I72)=1,0,IF(MOD(BO$3,Calculations!$K72)=1,1,0))))*$AU72)*(1+'Country Input'!$C$45)^(Calculations!BO$3-$BH$3)","v":1075},{"$f":"(($U72+($O72)*IF(MOD(BP$3,$I72)=1,1,0)+Parts!$E$91*IF($J72=0,0,IF(MOD(BP$3,$I72)=1,IF(PQS!$R72=\"NO\",1,0),IF(MOD(BP$3,Calculations!$J72)=1,1,0)))+Parts!$E$92*IF(Calculations!$K72=0,0,IF(MOD(BP$3,$I72)=1,0,IF(MOD(BP$3,Calculations!$K72)=1,1,0))))*$AU72)*(1+'Country Input'!$C$45)^(Calculations!BP$3-$BH$3)","v":1075},{"$f":"(($U72+($O72)*IF(MOD(BQ$3,$I72)=1,1,0)+Parts!$E$91*IF($J72=0,0,IF(MOD(BQ$3,$I72)=1,IF(PQS!$R72=\"NO\",1,0),IF(MOD(BQ$3,Calculations!$J72)=1,1,0)))+Parts!$E$92*IF(Calculations!$K72=0,0,IF(MOD(BQ$3,$I72)=1,0,IF(MOD(BQ$3,Calculations!$K72)=1,1,0))))*$AU72)*(1+'Country Input'!$C$45)^(Calculations!BQ$3-$BH$3)","v":1075},{"$f":"(($U72+($O72)*IF(MOD(BR$3,$I72)=1,1,0)+Parts!$E$91*IF($J72=0,0,IF(MOD(BR$3,$I72)=1,IF(PQS!$R72=\"NO\",1,0),IF(MOD(BR$3,Calculations!$J72)=1,1,0)))+Parts!$E$92*IF(Calculations!$K72=0,0,IF(MOD(BR$3,$I72)=1,0,IF(MOD(BR$3,Calculations!$K72)=1,1,0))))*$AU72)*(1+'Country Input'!$C$45)^(Calculations!BR$3-$BH$3)","v":44013.690999999999},{"$f":"(($U72+($O72)*IF(MOD(BS$3,$I72)=1,1,0)+Parts!$E$91*IF($J72=0,0,IF(MOD(BS$3,$I72)=1,IF(PQS!$R72=\"NO\",1,0),IF(MOD(BS$3,Calculations!$J72)=1,1,0)))+Parts!$E$92*IF(Calculations!$K72=0,0,IF(MOD(BS$3,$I72)=1,0,IF(MOD(BS$3,Calculations!$K72)=1,1,0))))*$AU72)*(1+'Country Input'!$C$45)^(Calculations!BS$3-$BH$3)","v":1075},{"$f":"(($U72+($O72)*IF(MOD(BT$3,$I72)=1,1,0)+Parts!$E$91*IF($J72=0,0,IF(MOD(BT$3,$I72)=1,IF(PQS!$R72=\"NO\",1,0),IF(MOD(BT$3,Calculations!$J72)=1,1,0)))+Parts!$E$92*IF(Calculations!$K72=0,0,IF(MOD(BT$3,$I72)=1,0,IF(MOD(BT$3,Calculations!$K72)=1,1,0))))*$AU72)*(1+'Country Input'!$C$45)^(Calculations!BT$3-$BH$3)","v":1075},{"$f":"(($U72+($O72)*IF(MOD(BU$3,$I72)=1,1,0)+Parts!$E$91*IF($J72=0,0,IF(MOD(BU$3,$I72)=1,IF(PQS!$R72=\"NO\",1,0),IF(MOD(BU$3,Calculations!$J72)=1,1,0)))+Parts!$E$92*IF(Calculations!$K72=0,0,IF(MOD(BU$3,$I72)=1,0,IF(MOD(BU$3,Calculations!$K72)=1,1,0))))*$AU72)*(1+'Country Input'!$C$45)^(Calculations!BU$3-$BH$3)","v":1075},{"$f":"(($U72+($O72)*IF(MOD(BV$3,$I72)=1,1,0)+Parts!$E$91*IF($J72=0,0,IF(MOD(BV$3,$I72)=1,IF(PQS!$R72=\"NO\",1,0),IF(MOD(BV$3,Calculations!$J72)=1,1,0)))+Parts!$E$92*IF(Calculations!$K72=0,0,IF(MOD(BV$3,$I72)=1,0,IF(MOD(BV$3,Calculations!$K72)=1,1,0))))*$AU72)*(1+'Country Input'!$C$45)^(Calculations!BV$3-$BH$3)","v":1075},{"$f":"(($U72+($O72)*IF(MOD(BW$3,$I72)=1,1,0)+Parts!$E$91*IF($J72=0,0,IF(MOD(BW$3,$I72)=1,IF(PQS!$R72=\"NO\",1,0),IF(MOD(BW$3,Calculations!$J72)=1,1,0)))+Parts!$E$92*IF(Calculations!$K72=0,0,IF(MOD(BW$3,$I72)=1,0,IF(MOD(BW$3,Calculations!$K72)=1,1,0))))*$AU72)*(1+'Country Input'!$C$45)^(Calculations!BW$3-$BH$3)","v":1075},{"$f":"(($U72+($O72)*IF(MOD(BX$3,$I72)=1,1,0)+Parts!$E$91*IF($J72=0,0,IF(MOD(BX$3,$I72)=1,IF(PQS!$R72=\"NO\",1,0),IF(MOD(BX$3,Calculations!$J72)=1,1,0)))+Parts!$E$92*IF(Calculations!$K72=0,0,IF(MOD(BX$3,$I72)=1,0,IF(MOD(BX$3,Calculations!$K72)=1,1,0))))*$AU72)*(1+'Country Input'!$C$45)^(Calculations!BX$3-$BH$3)","v":1075},{"$f":"(($U72+($O72)*IF(MOD(BY$3,$I72)=1,1,0)+Parts!$E$91*IF($J72=0,0,IF(MOD(BY$3,$I72)=1,IF(PQS!$R72=\"NO\",1,0),IF(MOD(BY$3,Calculations!$J72)=1,1,0)))+Parts!$E$92*IF(Calculations!$K72=0,0,IF(MOD(BY$3,$I72)=1,0,IF(MOD(BY$3,Calculations!$K72)=1,1,0))))*$AU72)*(1+'Country Input'!$C$45)^(Calculations!BY$3-$BH$3)","v":1075},{"$f":"(($U72+($O72)*IF(MOD(BZ$3,$I72)=1,1,0)+Parts!$E$91*IF($J72=0,0,IF(MOD(BZ$3,$I72)=1,IF(PQS!$R72=\"NO\",1,0),IF(MOD(BZ$3,Calculations!$J72)=1,1,0)))+Parts!$E$92*IF(Calculations!$K72=0,0,IF(MOD(BZ$3,$I72)=1,0,IF(MOD(BZ$3,Calculations!$K72)=1,1,0))))*$AU72)*(1+'Country Input'!$C$45)^(Calculations!BZ$3-$BH$3)","v":1075},{"$f":"(($U72+($O72)*IF(MOD(CA$3,$I72)=1,1,0)+Parts!$E$91*IF($J72=0,0,IF(MOD(CA$3,$I72)=1,IF(PQS!$R72=\"NO\",1,0),IF(MOD(CA$3,Calculations!$J72)=1,1,0)))+Parts!$E$92*IF(Calculations!$K72=0,0,IF(MOD(CA$3,$I72)=1,0,IF(MOD(CA$3,Calculations!$K72)=1,1,0))))*$AU72)*(1+'Country Input'!$C$45)^(Calculations!CA$3-$BH$3)","v":1075},null,"Haier HTC-60H",44013.690999999999,1075,1075,1075,1075,1075,1075,1075,1075,1075,44013.690999999999,1075,1075,1075,1075,1075,1075,1075,1075,1075,{"$f":"SUM(CD72:INDEX($CD72:$CW72,1,'Total Solution Costs'!$B$2))","v":53688.690999999999},null,"Haier HTC-60H",{"$f":"SUM($BH72:BH72)","v":44013.690999999999},{"$f":"SUM($BH72:BI72)","v":45088.690999999999},{"$f":"SUM($BH72:BJ72)","v":46163.690999999999},{"$f":"SUM($BH72:BK72)","v":47238.690999999999},{"$f":"SUM($BH72:BL72)","v":48313.690999999999},{"$f":"SUM($BH72:BM72)","v":49388.690999999999},{"$f":"SUM($BH72:BN72)","v":50463.690999999999},{"$f":"SUM($BH72:BO72)","v":51538.690999999999},{"$f":"SUM($BH72:BP72)","v":52613.690999999999},{"$f":"SUM($BH72:BQ72)","v":53688.690999999999},{"$f":"SUM($BH72:BR72)","v":97702.381999999998},{"$f":"SUM($BH72:BS72)","v":98777.381999999998},{"$f":"SUM($BH72:BT72)","v":99852.381999999998},{"$f":"SUM($BH72:BU72)","v":100927.382},{"$f":"SUM($BH72:BV72)","v":102002.382},{"$f":"SUM($BH72:BW72)","v":103077.382},{"$f":"SUM($BH72:BX72)","v":104152.382},{"$f":"SUM($BH72:BY72)","v":105227.382},{"$f":"SUM($BH72:BZ72)","v":106302.382},{"$f":"SUM($BH72:CA72)","v":107377.382}]
[{"$f":"PQS!A73","v":"SDD"},{"$f":"PQS!B73","v":"E003/057"},{"$f":"PQS!E73","v":"HTCD-160*"},{"$f":"PQS!F73","v":"Haier"},{"$f":"PQS!D73","v":"Haier HTCD-160*"},{"$f":"VLOOKUP(E73,PQS!$D$5:$K$107,COLUMN(PQS!$I$3)-COLUMN(PQS!$D$3)+1,FALSE)","v":100},{"$f":"VLOOKUP(E73,PQS!$D$5:$K$107,COLUMN(PQS!$J$3)-COLUMN(PQS!$D$3)+1,FALSE)","v":40},{"$f":"VLOOKUP(E73,PQS!$D$5:$K$107,COLUMN(PQS!$G$3)-COLUMN(PQS!$D$3)+1,FALSE)","v":"Yes"},{"$f":"HLOOKUP(B73,INDIRECT(\"'\"&A73&\"'!$10:$15\"),ROW('Technology template'!$A$11)-ROW('Technology template'!$A$10)+1,FALSE)","v":10},{"$f":"HLOOKUP(B73,INDIRECT(\"'\"&A73&\"'!$10:$15\"),ROW('Technology template'!$A$12)-ROW('Technology template'!$A$10)+1,FALSE)","v":10},{"$f":"HLOOKUP(B73,INDIRECT(\"'\"&A73&\"'!$10:$15\"),ROW('Technology template'!$A$13)-ROW('Technology template'!$A$10)+1,FALSE)","v":0},{"$f":"VLOOKUP(B73,PQS!$B:$Q,MATCH(PQS!$Q$3,PQS!$B$3:$Q$3,0),FALSE)*(1+'Country Input'!$C$47)+HLOOKUP(B73,INDIRECT(\"'\"&A73&\"'!$10:$15\"),ROW('Technology template'!$A$14)-ROW('Technology template'!$A$10)+1,FALSE)*(1+'Country Input'!$C$47)","v":6869.4},{"$f":"HLOOKUP(B73,INDIRECT(\"'\"&A73&\"'!$10:$80\"),MATCH('Technology template'!$A$27,INDIRECT(\"'\"&A73&\"'!$A$10:$A$80\"),0),FALSE)+'Labor and Maintenance '!$E$18","v":1042},{"$f":"VLOOKUP(B73,PQS!B:T,MATCH(PQS!$T$3,PQS!$B$3:$T$3,0),FALSE)*(1+'Country Input'!$C$47)","v":346.08080000000001},8257.4807999999994,825.74807999999996,{"$f":"VLOOKUP(B73,PQS!$B:$AE,COLUMN(PQS!AD71)-1,FALSE)","v":0},{"$f":"IFERROR(1/HLOOKUP(B73,INDIRECT(\"'\"&A73&\"'!$10:$80\"),MATCH('Technology template'!$A$31,INDIRECT(\"'\"&A73&\"'!$A$10:$A$80\"),0),FALSE)*HLOOKUP(B73,INDIRECT(\"'\"&A73&\"'!$10:$80\"),MATCH('Technology template'!$A$41,INDIRECT(\"'\"&A73&\"'!$A10:$A$80\"),0),FALSE),0)*TechnicianHourlyWage+IF(A73=\"Solar w Battery\",1/'Labor and Maintenance '!$E$53*'Labor and Maintenance '!$D$53,0)+IF(A73=\"LT passive\", 1/'Labor and Maintenance '!$E$81*'Labor and Maintenance '!$D$81,0)","v":24},{"$f":"IFERROR(1/HLOOKUP(B73,INDIRECT(\"'\"&A73&\"'!$10:$80\"),MATCH('Technology template'!$A$34,INDIRECT(\"'\"&A73&\"'!$A$10:$A$80\"),0),FALSE)*(HLOOKUP(B73,INDIRECT(\"'\"&A73&\"'!$10:$80\"),MATCH('Technology template'!$A$44,INDIRECT(\"'\"&A73&\"'!$A10:$A$80\"),0),FALSE)*TechnicianHourlyWage+RemoteTravelCostPerDay),0)+IFERROR(1/HLOOKUP(B73,INDIRECT(\"'\"&A73&\"'!$10:$80\"),MATCH('Technology template'!$A$35,INDIRECT(\"'\"&A73&\"'!$A$10:$A$80\"),0),FALSE)*(HLOOKUP(B73,INDIRECT(\"'\"&A73&\"'!$10:$80\"),MATCH('Technology template'!$A$45,INDIRECT(\"'\"&A73&\"'!$A10:$A$80\"),0),FALSE)*TechnicianHourlyWage+RemoteTravelCostPerDay),0)+IFERROR(1/HLOOKUP(B73,INDIRECT(\"'\"&A73&\"'!$10:$80\"),MATCH('Technology template'!$A$37,INDIRECT(\"'\"&A73&\"'!$A$10:$A$80\"),0),FALSE)*(HLOOKUP(B73,INDIRECT(\"'\"&A73&\"'!$10:$80\"),MATCH('Technology template'!$A$46,INDIRECT(\"'\"&A73&\"'!$A10:$A$80\"),0),FALSE)*TechnicianHourlyWage+'Labor and Maintenance '!$B$8),0)","v":83.5},1075,107.5,933.24807999999996,null,"Haier HTCD-160*",{"$f":"IF(F73=0,O73/G73,O73/F73)","v":82.57480799999999},{"$f":"IF(F73=0,T73/G73,T73/F73)","v":10.75},93.32480799999999,null,{"$f":"E73","v":"Haier HTCD-160*"},{"$f":"IF(F73=0, P73/G73, P73/F73)","v":8.2574807999999997},{"$f":"IF(F73=0, U73/G73, U73/F73)","v":1.075},{"$f":"IF(F73=0, V73/G73, V73/F73)","v":9.332480799999999},null,{"$f":"E73","v":"Haier HTCD-160*"},2,16514.961599999999,2150,18664.961599999999,null,"Haier HTCD-160*",2,16.514961599999999,2.15,18.664961599999998,null,"Haier HTCD-160*",{"$f":"IF(F73=0, 'Country Input'!$D$7, ROUNDUP(LitersPerFacility/F73,0)*'Country Input'!$D$7)","v":10},82574.80799999999,1075,83649.80799999999,null,"Haier HTCD-160*",{"$f":"ROUNDUP(LitersPerFacility/F73,0)*'Country Input'!$D$7*ROUNDUP('Total Solution Costs'!$B$2/Calculations!I73,0)","v":10},82.57480799999999,1.075,83.649807999999993,null,null,"Haier HTCD-160*",{"$f":"(($U73+($O73)*IF(MOD(BH$3,$I73)=1,1,0)+Parts!$E$91*IF($J73=0,0,IF(MOD(BH$3,$I73)=1,IF(PQS!$R73=\"NO\",1,0),IF(MOD(BH$3,Calculations!$J73)=1,1,0)))+Parts!$E$92*IF(Calculations!$K73=0,0,IF(MOD(BH$3,$I73)=1,0,IF(MOD(BH$3,Calculations!$K73)=1,1,0))))*$AU73)*(1+'Country Input'!$C$45)^(Calculations!BH$3-$BH$3)+TrainingCost","v":83649.80799999999},{"$f":"(($U73+($O73)*IF(MOD(BI$3,$I73)=1,1,0)+Parts!$E$91*IF($J73=0,0,IF(MOD(BI$3,$I73)=1,IF(PQS!$R73=\"NO\",1,0),IF(MOD(BI$3,Calculations!$J73)=1,1,0)))+Parts!$E$92*IF(Calculations!$K73=0,0,IF(MOD(BI$3,$I73)=1,0,IF(MOD(BI$3,Calculations!$K73)=1,1,0))))*$AU73)*(1+'Country Input'!$C$45)^(Calculations!BI$3-$BH$3)","v":1075},{"$f":"(($U73+($O73)*IF(MOD(BJ$3,$I73)=1,1,0)+Parts!$E$91*IF($J73=0,0,IF(MOD(BJ$3,$I73)=1,IF(PQS!$R73=\"NO\",1,0),IF(MOD(BJ$3,Calculations!$J73)=1,1,0)))+Parts!$E$92*IF(Calculations!$K73=0,0,IF(MOD(BJ$3,$I73)=1,0,IF(MOD(BJ$3,Calculations!$K73)=1,1,0))))*$AU73)*(1+'Country Input'!$C$45)^(Calculations!BJ$3-$BH$3)","v":1075},{"$f":"(($U73+($O73)*IF(MOD(BK$3,$I73)=1,1,0)+Parts!$E$91*IF($J73=0,0,IF(MOD(BK$3,$I73)=1,IF(PQS!$R73=\"NO\",1,0),IF(MOD(BK$3,Calculations!$J73)=1,1,0)))+Parts!$E$92*IF(Calculations!$K73=0,0,IF(MOD(BK$3,$I73)=1,0,IF(MOD(BK$3,Calculations!$K73)=1,1,0))))*$AU73)*(1+'Country Input'!$C$45)^(Calculations!BK$3-$BH$3)","v":1075},{"$f":"(($U73+($O73)*IF(MOD(BL$3,$I73)=1,1,0)+Parts!$E$91*IF($J73=0,0,IF(MOD(BL$3,$I73)=1,IF(PQS!$R73=\"NO\",1,0),IF(MOD(BL$3,Calculations!$J73)=1,1,0)))+Parts!$E$92*IF(Calculations!$K73=0,0,IF(MOD(BL$3,$I73)=1,0,IF(MOD(BL$3,Calculations!$K73)=1,1,0))))*$AU73)*(1+'Country Input'!$C$45)^(Calculations!BL$3-$BH$3)","v":1075},{"$f":"(($U73+($O73)*IF(MOD(BM$3,$I73)=1,1,0)+Parts!$E$91*IF($J73=0,0,IF(MOD(BM$3,$I73)=1,IF(PQS!$R73=\"NO\",1,0),IF(MOD(BM$3,Calculations!$J73)=1,1,0)))+Parts!$E$92*IF(Calculations!$K73=0,0,IF(MOD(BM$3,$I73)=1,0,IF(MOD(BM$3,Calculations!$K73)=1,1,0))))*$AU73)*(1+'Country Input'!$C$45)^(Calculations!BM$3-$BH$3)","v":1075},{"$f":"(($U73+($O73)*IF(MOD(BN$3,$I73)=1,1,0)+Parts!$E$91*IF($J73=0,0,IF(MOD(BN$3,$I73)=1,IF(PQS!$R73=\"NO\",1,0),IF(MOD(BN$3,Calculations!$J73)=1,1,0)))+Parts!$E$92*IF(Calculations!$K73=0,0,IF(MOD(BN$3,$I73)=1,0,IF(MOD(BN$3,Calculations!$K73)=1,1,0))))*$AU73)*(1+'Country Input'!$C$45)^(Calculations!BN$3-$BH$3)","v":1075},{"$f":"(($U73+($O73)*IF(MOD(BO$3,$I73)=1,1,0)+Parts!$E$91*IF($J73=0,0,IF(MOD(BO$3,$I73)=1,IF(PQS!$R73=\"NO\",1,0),IF(MOD(BO$3,Calculations!$J73)=1,1,0)))+Parts!$E$92*IF(Calculations!$K73=0,0,IF(MOD(BO$3,$I73)=1,0,IF(MOD(BO$3,Calculations!$K73)=1,1,0))))*$AU73)*(1+'Country Input'!$C$45)^(Calculations!BO$3-$BH$3)","v":1075},{"$f":"(($U73+($O73)*IF(MOD(BP$3,$I73)=1,1,0)+Parts!$E$91*IF($J73=0,0,IF(MOD(BP$3,$I73)=1,IF(PQS!$R73=\"NO\",1,0),IF(MOD(BP$3,Calculations!$J73)=1,1,0)))+Parts!$E$92*IF(Calculations!$K73=0,0,IF(MOD(BP$3,$I73)=1,0,IF(MOD(BP$3,Calculations!$K73)=1,1,0))))*$AU73)*(1+'Country Input'!$C$45)^(Calculations!BP$3-$BH$3)","v":1075},{"$f":"(($U73+($O73)*IF(MOD(BQ$3,$I73)=1,1,0)+Parts!$E$91*IF($J73=0,0,IF(MOD(BQ$3,$I73)=1,IF(PQS!$R73=\"NO\",1,0),IF(MOD(BQ$3,Calculations!$J73)=1,1,0)))+Parts!$E$92*IF(Calculations!$K73=0,0,IF(MOD(BQ$3,$I73)=1,0,IF(MOD(BQ$3,Calculations!$K73)=1,1,0))))*$AU73)*(1+'Country Input'!$C$45)^(Calculations!BQ$3-$BH$3)","v":1075},{"$f":"(($U73+($O73)*IF(MOD(BR$3,$I73)=1,1,0)+Parts!$E$91*IF($J73=0,0,IF(MOD(BR$3,$I73)=1,IF(PQS!$R73=\"NO\",1,0),IF(MOD(BR$3,Calculations!$J73)=1,1,0)))+Parts!$E$92*IF(Calculations!$K73=0,0,IF(MOD(BR$3,$I73)=1,0,IF(MOD(BR$3,Calculations!$K73)=1,1,0))))*$AU73)*(1+'Country Input'!$C$45)^(Calculations!BR$3-$BH$3)","v":83649.80799999999},{"$f":"(($U73+($O73)*IF(MOD(BS$3,$I73)=1,1,0)+Parts!$E$91*IF($J73=0,0,IF(MOD(BS$3,$I73)=1,IF(PQS!$R73=\"NO\",1,0),IF(MOD(BS$3,Calculations!$J73)=1,1,0)))+Parts!$E$92*IF(Calculations!$K73=0,0,IF(MOD(BS$3,$I73)=1,0,IF(MOD(BS$3,Calculations!$K73)=1,1,0))))*$AU73)*(1+'Country Input'!$C$45)^(Calculations!BS$3-$BH$3)","v":1075},{"$f":"(($U73+($O73)*IF(MOD(BT$3,$I73)=1,1,0)+Parts!$E$91*IF($J73=0,0,IF(MOD(BT$3,$I73)=1,IF(PQS!$R73=\"NO\",1,0),IF(MOD(BT$3,Calculations!$J73)=1,1,0)))+Parts!$E$92*IF(Calculations!$K73=0,0,IF(MOD(BT$3,$I73)=1,0,IF(MOD(BT$3,Calculations!$K73)=1,1,0))))*$AU73)*(1+'Country Input'!$C$45)^(Calculations!BT$3-$BH$3)","v":1075},{"$f":"(($U73+($O73)*IF(MOD(BU$3,$I73)=1,1,0)+Parts!$E$91*IF($J73=0,0,IF(MOD(BU$3,$I73)=1,IF(PQS!$R73=\"NO\",1,0),IF(MOD(BU$3,Calculations!$J73)=1,1,0)))+Parts!$E$92*IF(Calculations!$K73=0,0,IF(MOD(BU$3,$I73)=1,0,IF(MOD(BU$3,Calculations!$K73)=1,1,0))))*$AU73)*(1+'Country Input'!$C$45)^(Calculations!BU$3-$BH$3)","v":1075},{"$f":"(($U73+($O73)*IF(MOD(BV$3,$I73)=1,1,0)+Parts!$E$91*IF($J73=0,0,IF(MOD(BV$3,$I73)=1,IF(PQS!$R73=\"NO\",1,0),IF(MOD(BV$3,Calculations!$J73)=1,1,0)))+Parts!$E$92*IF(Calculations!$K73=0,0,IF(MOD(BV$3,$I73)=1,0,IF(MOD(BV$3,Calculations!$K73)=1,1,0))))*$AU73)*(1+'Country Input'!$C$45)^(Calculations!BV$3-$BH$3)","v":1075},{"$f":"(($U73+($O73)*IF(MOD(BW$3,$I73)=1,1,0)+Parts!$E$91*IF($J73=0,0,IF(MOD(BW$3,$I73)=1,IF(PQS!$R73=\"NO\",1,0),IF(MOD(BW$3,Calculations!$J73)=1,1,0)))+Parts!$E$92*IF(Calculations!$K73=0,0,IF(MOD(BW$3,$I73)=1,0,IF(MOD(BW$3,Calculations!$K73)=1,1,0))))*$AU73)*(1+'Country Input'!$C$45)^(Calculations!BW$3-$BH$3)","v":1075},{"$f":"(($U73+($O73)*IF(MOD(BX$3,$I73)=1,1,0)+Parts!$E$91*IF($J73=0,0,IF(MOD(BX$3,$I73)=1,IF(PQS!$R73=\"NO\",1,0),IF(MOD(BX$3,Calculations!$J73)=1,1,0)))+Parts!$E$92*IF(Calculations!$K73=0,0,IF(MOD(BX$3,$I73)=1,0,IF(MOD(BX$3,Calculations!$K73)=1,1,0))))*$AU73)*(1+'Country Input'!$C$45)^(Calculations!BX$3-$BH$3)","v":1075},{"$f":"(($U73+($O73)*IF(MOD(BY$3,$I73)=1,1,0)+Parts!$E$91*IF($J73=0,0,IF(MOD(BY$3,$I73)=1,IF(PQS!$R73=\"NO\",1,0),IF(MOD(BY$3,Calculations!$J73)=1,1,0)))+Parts!$E$92*IF(Calculations!$K73=0,0,IF(MOD(BY$3,$I73)=1,0,IF(MOD(BY$3,Calculations!$K73)=1,1,0))))*$AU73)*(1+'Country Input'!$C$45)^(Calculations!BY$3-$BH$3)","v":1075},{"$f":"(($U73+($O73)*IF(MOD(BZ$3,$I73)=1,1,0)+Parts!$E$91*IF($J73=0,0,IF(MOD(BZ$3,$I73)=1,IF(PQS!$R73=\"NO\",1,0),IF(MOD(BZ$3,Calculations!$J73)=1,1,0)))+Parts!$E$92*IF(Calculations!$K73=0,0,IF(MOD(BZ$3,$I73)=1,0,IF(MOD(BZ$3,Calculations!$K73)=1,1,0))))*$AU73)*(1+'Country Input'!$C$45)^(Calculations!BZ$3-$BH$3)","v":1075},{"$f":"(($U73+($O73)*IF(MOD(CA$3,$I73)=1,1,0)+Parts!$E$91*IF($J73=0,0,IF(MOD(CA$3,$I73)=1,IF(PQS!$R73=\"NO\",1,0),IF(MOD(CA$3,Calculations!$J73)=1,1,0)))+Parts!$E$92*IF(Calculations!$K73=0,0,IF(MOD(CA$3,$I73)=1,0,IF(MOD(CA$3,Calculations!$K73)=1,1,0))))*$AU73)*(1+'Country Input'!$C$45)^(Calculations!CA$3-$BH$3)","v":1075},null,"Haier HTCD-160*",83649.80799999999,1075,1075,1075,1075,1075,1075,1075,1075,1075,83649.80799999999,1075,1075,1075,1075,1075,1075,1075,1075,1075,{"$f":"SUM(CD73:INDEX($CD73:$CW73,1,'Total Solution Costs'!$B$2))","v":93324.80799999999},null,"Haier HTCD-160*",{"$f":"SUM($BH73:BH73)","v":83649.80799999999},{"$f":"SUM($BH73:BI73)","v":84724.80799999999},{"$f":"SUM($BH73:BJ73)","v":85799.80799999999},{"$f":"SUM($BH73:BK73)","v":86874.80799999999},{"$f":"SUM($BH73:BL73)","v":87949.80799999999},{"$f":"SUM($BH73:BM73)","v":89024.80799999999},{"$f":"SUM($BH73:BN73)","v":90099.80799999999},{"$f":"SUM($BH73:BO73)","v":91174.80799999999},{"$f":"SUM($BH73:BP73)","v":92249.80799999999},{"$f":"SUM($BH73:BQ73)","v":93324.80799999999},{"$f":"SUM($BH73:BR73)","v":176974.61599999998},{"$f":"SUM($BH73:BS73)","v":178049.61599999998},{"$f":"SUM($BH73:BT73)","v":179124.61599999998},{"$f":"SUM($BH73:BU73)","v":180199.61599999998},{"$f":"SUM($BH73:BV73)","v":181274.61599999998},{"$f":"SUM($BH73:BW73)","v":182349.61599999998},{"$f":"SUM($BH73:BX73)","v":183424.61599999998},{"$f":"SUM($BH73:BY73)","v":184499.61599999998},{"$f":"SUM($BH73:BZ73)","v":185574.61599999998},{"$f":"SUM($BH73:CA73)","v":186649.61599999998}]
[{"$f":"PQS!A74","v":"SDD"},{"$f":"PQS!B74","v":"E003/058"},{"$f":"PQS!E74","v":"VC 110 SDD*"},{"$f":"PQS!F74","v":"Dulas Solar"},{"$f":"PQS!D74","v":"Dulas Solar VC 110 SDD*"},{"$f":"VLOOKUP(E74,PQS!$D$5:$K$107,COLUMN(PQS!$I$3)-COLUMN(PQS!$D$3)+1,FALSE)","v":110},{"$f":"VLOOKUP(E74,PQS!$D$5:$K$107,COLUMN(PQS!$J$3)-COLUMN(PQS!$D$3)+1,FALSE)","v":0},{"$f":"VLOOKUP(E74,PQS!$D$5:$K$107,COLUMN(PQS!$G$3)-COLUMN(PQS!$D$3)+1,FALSE)","v":"Yes"},{"$f":"HLOOKUP(B74,INDIRECT(\"'\"&A74&\"'!$10:$15\"),ROW('Technology template'!$A$11)-ROW('Technology template'!$A$10)+1,FALSE)","v":10},{"$f":"HLOOKUP(B74,INDIRECT(\"'\"&A74&\"'!$10:$15\"),ROW('Technology template'!$A$12)-ROW('Technology template'!$A$10)+1,FALSE)","v":10},{"$f":"HLOOKUP(B74,INDIRECT(\"'\"&A74&\"'!$10:$15\"),ROW('Technology template'!$A$13)-ROW('Technology template'!$A$10)+1,FALSE)","v":0},{"$f":"VLOOKUP(B74,PQS!$B:$Q,MATCH(PQS!$Q$3,PQS!$B$3:$Q$3,0),FALSE)*(1+'Country Input'!$C$47)+HLOOKUP(B74,INDIRECT(\"'\"&A74&\"'!$10:$15\"),ROW('Technology template'!$A$14)-ROW('Technology template'!$A$10)+1,FALSE)*(1+'Country Input'!$C$47)","v":5005.7381999999998},{"$f":"HLOOKUP(B74,INDIRECT(\"'\"&A74&\"'!$10:$80\"),MATCH('Technology template'!$A$27,INDIRECT(\"'\"&A74&\"'!$A$10:$A$80\"),0),FALSE)+'Labor and Maintenance '!$E$18","v":1042},{"$f":"VLOOKUP(B74,PQS!B:T,MATCH(PQS!$T$3,PQS!$B$3:$T$3,0),FALSE)*(1+'Country Input'!$C$47)","v":432.6973000000001},6480.4354999999996,648.04354999999998,{"$f":"VLOOKUP(B74,PQS!$B:$AE,COLUMN(PQS!AD72)-1,FALSE)","v":0},{"$f":"IFERROR(1/HLOOKUP(B74,INDIRECT(\"'\"&A74&\"'!$10:$80\"),MATCH('Technology template'!$A$31,INDIRECT(\"'\"&A74&\"'!$A$10:$A$80\"),0),FALSE)*HLOOKUP(B74,INDIRECT(\"'\"&A74&\"'!$10:$80\"),MATCH('Technology template'!$A$41,INDIRECT(\"'\"&A74&\"'!$A10:$A$80\"),0),FALSE),0)*TechnicianHourlyWage+IF(A74=\"Solar w Battery\",1/'Labor and Maintenance '!$E$53*'Labor and Maintenance '!$D$53,0)+IF(A74=\"LT passive\", 1/'Labor and Maintenance '!$E$81*'Labor and Maintenance '!$D$81,0)","v":24},{"$f":"IFERROR(1/HLOOKUP(B74,INDIRECT(\"'\"&A74&\"'!$10:$80\"),MATCH('Technology template'!$A$34,INDIRECT(\"'\"&A74&\"'!$A$10:$A$80\"),0),FALSE)*(HLOOKUP(B74,INDIRECT(\"'\"&A74&\"'!$10:$80\"),MATCH('Technology template'!$A$44,INDIRECT(\"'\"&A74&\"'!$A10:$A$80\"),0),FALSE)*TechnicianHourlyWage+RemoteTravelCostPerDay),0)+IFERROR(1/HLOOKUP(B74,INDIRECT(\"'\"&A74&\"'!$10:$80\"),MATCH('Technology template'!$A$35,INDIRECT(\"'\"&A74&\"'!$A$10:$A$80\"),0),FALSE)*(HLOOKUP(B74,INDIRECT(\"'\"&A74&\"'!$10:$80\"),MATCH('Technology template'!$A$45,INDIRECT(\"'\"&A74&\"'!$A10:$A$80\"),0),FALSE)*TechnicianHourlyWage+RemoteTravelCostPerDay),0)+IFERROR(1/HLOOKUP(B74,INDIRECT(\"'\"&A74&\"'!$10:$80\"),MATCH('Technology template'!$A$37,INDIRECT(\"'\"&A74&\"'!$A$10:$A$80\"),0),FALSE)*(HLOOKUP(B74,INDIRECT(\"'\"&A74&\"'!$10:$80\"),MATCH('Technology template'!$A$46,INDIRECT(\"'\"&A74&\"'!$A10:$A$80\"),0),FALSE)*TechnicianHourlyWage+'Labor and Maintenance '!$B$8),0)","v":83.5},1075,107.5,755.54354999999998,null,"Dulas Solar VC 110 SDD*",58.913049999999998,9.7727272727272734,68.685777272727279,null,"Dulas Solar VC 110 SDD*",5.891305,0.97727272727272729,6.8685777272727275,null,"Dulas Solar VC 110 SDD*",{"$f":"ROUNDUP(LitersPerDelivery/F74,0)","v":2},{"$f":"AI74*O74","v":12960.870999999999},{"$f":"AI74*T74","v":2150},15110.870999999999,null,{"$f":"E74","v":"Dulas Solar VC 110 SDD*"},{"$f":"ROUNDUP(LitersPerDelivery/F74,0)","v":2},{"$f":"AO74*AD74","v":11.78261},{"$f":"AO74*AE74","v":1.9545454545454546},13.737155454545455,null,{"$f":"E74","v":"Dulas Solar VC 110 SDD*"},{"$f":"IF(F74=0, 'Country Input'!$D$7, ROUNDUP(LitersPerFacility/F74,0)*'Country Input'!$D$7)","v":10},{"$f":"AU74*O74","v":64804.354999999996},{"$f":"AU74*(SUM(Q74:S74))","v":1075},65879.354999999996,null,{"$f":"E74","v":"Dulas Solar VC 110 SDD*"},{"$f":"ROUNDUP(LitersPerFacility/F74,0)*'Country Input'!$D$7*ROUNDUP('Total Solution Costs'!$B$2/Calculations!I74,0)","v":10},58.913049999999998,{"$f":"AW74/(F74*AU74)","v":0.97727272727272729},59.890322727272725,null,null,{"$f":"E74","v":"Dulas Solar VC 110 SDD*"},{"$f":"(($U74+($O74)*IF(MOD(BH$3,$I74)=1,1,0)+Parts!$E$91*IF($J74=0,0,IF(MOD(BH$3,$I74)=1,IF(PQS!$R74=\"NO\",1,0),IF(MOD(BH$3,Calculations!$J74)=1,1,0)))+Parts!$E$92*IF(Calculations!$K74=0,0,IF(MOD(BH$3,$I74)=1,0,IF(MOD(BH$3,Calculations!$K74)=1,1,0))))*$AU74)*(1+'Country Input'!$C$45)^(Calculations!BH$3-$BH$3)+TrainingCost","v":80879.354999999996},{"$f":"(($U74+($O74)*IF(MOD(BI$3,$I74)=1,1,0)+Parts!$E$91*IF($J74=0,0,IF(MOD(BI$3,$I74)=1,IF(PQS!$R74=\"NO\",1,0),IF(MOD(BI$3,Calculations!$J74)=1,1,0)))+Parts!$E$92*IF(Calculations!$K74=0,0,IF(MOD(BI$3,$I74)=1,0,IF(MOD(BI$3,Calculations!$K74)=1,1,0))))*$AU74)*(1+'Country Input'!$C$45)^(Calculations!BI$3-$BH$3)","v":1075},{"$f":"(($U74+($O74)*IF(MOD(BJ$3,$I74)=1,1,0)+Parts!$E$91*IF($J74=0,0,IF(MOD(BJ$3,$I74)=1,IF(PQS!$R74=\"NO\",1,0),IF(MOD(BJ$3,Calculations!$J74)=1,1,0)))+Parts!$E$92*IF(Calculations!$K74=0,0,IF(MOD(BJ$3,$I74)=1,0,IF(MOD(BJ$3,Calculations!$K74)=1,1,0))))*$AU74)*(1+'Country Input'!$C$45)^(Calculations!BJ$3-$BH$3)","v":1075},{"$f":"(($U74+($O74)*IF(MOD(BK$3,$I74)=1,1,0)+Parts!$E$91*IF($J74=0,0,IF(MOD(BK$3,$I74)=1,IF(PQS!$R74=\"NO\",1,0),IF(MOD(BK$3,Calculations!$J74)=1,1,0)))+Parts!$E$92*IF(Calculations!$K74=0,0,IF(MOD(BK$3,$I74)=1,0,IF(MOD(BK$3,Calculations!$K74)=1,1,0))))*$AU74)*(1+'Country Input'!$C$45)^(Calculations!BK$3-$BH$3)","v":1075},{"$f":"(($U74+($O74)*IF(MOD(BL$3,$I74)=1,1,0)+Parts!$E$91*IF($J74=0,0,IF(MOD(BL$3,$I74)=1,IF(PQS!$R74=\"NO\",1,0),IF(MOD(BL$3,Calculations!$J74)=1,1,0)))+Parts!$E$92*IF(Calculations!$K74=0,0,IF(MOD(BL$3,$I74)=1,0,IF(MOD(BL$3,Calculations!$K74)=1,1,0))))*$AU74)*(1+'Country Input'!$C$45)^(Calculations!BL$3-$BH$3)","v":1075},{"$f":"(($U74+($O74)*IF(MOD(BM$3,$I74)=1,1,0)+Parts!$E$91*IF($J74=0,0,IF(MOD(BM$3,$I74)=1,IF(PQS!$R74=\"NO\",1,0),IF(MOD(BM$3,Calculations!$J74)=1,1,0)))+Parts!$E$92*IF(Calculations!$K74=0,0,IF(MOD(BM$3,$I74)=1,0,IF(MOD(BM$3,Calculations!$K74)=1,1,0))))*$AU74)*(1+'Country Input'!$C$45)^(Calculations!BM$3-$BH$3)","v":1075},{"$f":"(($U74+($O74)*IF(MOD(BN$3,$I74)=1,1,0)+Parts!$E$91*IF($J74=0,0,IF(MOD(BN$3,$I74)=1,IF(PQS!$R74=\"NO\",1,0),IF(MOD(BN$3,Calculations!$J74)=1,1,0)))+Parts!$E$92*IF(Calculations!$K74=0,0,IF(MOD(BN$3,$I74)=1,0,IF(MOD(BN$3,Calculations!$K74)=1,1,0))))*$AU74)*(1+'Country Input'!$C$45)^(Calculations!BN$3-$BH$3)","v":1075},{"$f":"(($U74+($O74)*IF(MOD(BO$3,$I74)=1,1,0)+Parts!$E$91*IF($J74=0,0,IF(MOD(BO$3,$I74)=1,IF(PQS!$R74=\"NO\",1,0),IF(MOD(BO$3,Calculations!$J74)=1,1,0)))+Parts!$E$92*IF(Calculations!$K74=0,0,IF(MOD(BO$3,$I74)=1,0,IF(MOD(BO$3,Calculations!$K74)=1,1,0))))*$AU74)*(1+'Country Input'!$C$45)^(Calculations!BO$3-$BH$3)","v":1075},{"$f":"(($U74+($O74)*IF(MOD(BP$3,$I74)=1,1,0)+Parts!$E$91*IF($J74=0,0,IF(MOD(BP$3,$I74)=1,IF(PQS!$R74=\"NO\",1,0),IF(MOD(BP$3,Calculations!$J74)=1,1,0)))+Parts!$E$92*IF(Calculations!$K74=0,0,IF(MOD(BP$3,$I74)=1,0,IF(MOD(BP$3,Calculations!$K74)=1,1,0))))*$AU74)*(1+'Country Input'!$C$45)^(Calculations!BP$3-$BH$3)","v":1075},{"$f":"(($U74+($O74)*IF(MOD(BQ$3,$I74)=1,1,0)+Parts!$E$91*IF($J74=0,0,IF(MOD(BQ$3,$I74)=1,IF(PQS!$R74=\"NO\",1,0),IF(MOD(BQ$3,Calculations!$J74)=1,1,0)))+Parts!$E$92*IF(Calculations!$K74=0,0,IF(MOD(BQ$3,$I74)=1,0,IF(MOD(BQ$3,Calculations!$K74)=1,1,0))))*$AU74)*(1+'Country Input'!$C$45)^(Calculations!BQ$3-$BH$3)","v":1075},{"$f":"(($U74+($O74)*IF(MOD(BR$3,$I74)=1,1,0)+Parts!$E$91*IF($J74=0,0,IF(MOD(BR$3,$I74)=1,IF(PQS!$R74=\"NO\",1,0),IF(MOD(BR$3,Calculations!$J74)=1,1,0)))+Parts!$E$92*IF(Calculations!$K74=0,0,IF(MOD(BR$3,$I74)=1,0,IF(MOD(BR$3,Calculations!$K74)=1,1,0))))*$AU74)*(1+'Country Input'!$C$45)^(Calculations!BR$3-$BH$3)","v":80879.354999999996},{"$f":"(($U74+($O74)*IF(MOD(BS$3,$I74)=1,1,0)+Parts!$E$91*IF($J74=0,0,IF(MOD(BS$3,$I74)=1,IF(PQS!$R74=\"NO\",1,0),IF(MOD(BS$3,Calculations!$J74)=1,1,0)))+Parts!$E$92*IF(Calculations!$K74=0,0,IF(MOD(BS$3,$I74)=1,0,IF(MOD(BS$3,Calculations!$K74)=1,1,0))))*$AU74)*(1+'Country Input'!$C$45)^(Calculations!BS$3-$BH$3)","v":1075},{"$f":"(($U74+($O74)*IF(MOD(BT$3,$I74)=1,1,0)+Parts!$E$91*IF($J74=0,0,IF(MOD(BT$3,$I74)=1,IF(PQS!$R74=\"NO\",1,0),IF(MOD(BT$3,Calculations!$J74)=1,1,0)))+Parts!$E$92*IF(Calculations!$K74=0,0,IF(MOD(BT$3,$I74)=1,0,IF(MOD(BT$3,Calculations!$K74)=1,1,0))))*$AU74)*(1+'Country Input'!$C$45)^(Calculations!BT$3-$BH$3)","v":1075},{"$f":"(($U74+($O74)*IF(MOD(BU$3,$I74)=1,1,0)+Parts!$E$91*IF($J74=0,0,IF(MOD(BU$3,$I74)=1,IF(PQS!$R74=\"NO\",1,0),IF(MOD(BU$3,Calculations!$J74)=1,1,0)))+Parts!$E$92*IF(Calculations!$K74=0,0,IF(MOD(BU$3,$I74)=1,0,IF(MOD(BU$3,Calculations!$K74)=1,1,0))))*$AU74)*(1+'Country Input'!$C$45)^(Calculations!BU$3-$BH$3)","v":1075},{"$f":"(($U74+($O74)*IF(MOD(BV$3,$I74)=1,1,0)+Parts!$E$91*IF($J74=0,0,IF(MOD(BV$3,$I74)=1,IF(PQS!$R74=\"NO\",1,0),IF(MOD(BV$3,Calculations!$J74)=1,1,0)))+Parts!$E$92*IF(Calculations!$K74=0,0,IF(MOD(BV$3,$I74)=1,0,IF(MOD(BV$3,Calculations!$K74)=1,1,0))))*$AU74)*(1+'Country Input'!$C$45)^(Calculations!BV$3-$BH$3)","v":1075},{"$f":"(($U74+($O74)*IF(MOD(BW$3,$I74)=1,1,0)+Parts!$E$91*IF($J74=0,0,IF(MOD(BW$3,$I74)=1,IF(PQS!$R74=\"NO\",1,0),IF(MOD(BW$3,Calculations!$J74)=1,1,0)))+Parts!$E$92*IF(Calculations!$K74=0,0,IF(MOD(BW$3,$I74)=1,0,IF(MOD(BW$3,Calculations!$K74)=1,1,0))))*$AU74)*(1+'Country Input'!$C$45)^(Calculations!BW$3-$BH$3)","v":1075},{"$f":"(($U74+($O74)*IF(MOD(BX$3,$I74)=1,1,0)+Parts!$E$91*IF($J74=0,0,IF(MOD(BX$3,$I74)=1,IF(PQS!$R74=\"NO\",1,0),IF(MOD(BX$3,Calculations!$J74)=1,1,0)))+Parts!$E$92*IF(Calculations!$K74=0,0,IF(MOD(BX$3,$I74)=1,0,IF(MOD(BX$3,Calculations!$K74)=1,1,0))))*$AU74)*(1+'Country Input'!$C$45)^(Calculations!BX$3-$BH$3)","v":1075},{"$f":"(($U74+($O74)*IF(MOD(BY$3,$I74)=1,1,0)+Parts!$E$91*IF($J74=0,0,IF(MOD(BY$3,$I74)=1,IF(PQS!$R74=\"NO\",1,0),IF(MOD(BY$3,Calculations!$J74)=1,1,0)))+Parts!$E$92*IF(Calculations!$K74=0,0,IF(MOD(BY$3,$I74)=1,0,IF(MOD(BY$3,Calculations!$K74)=1,1,0))))*$AU74)*(1+'Country Input'!$C$45)^(Calculations!BY$3-$BH$3)","v":1075},{"$f":"(($U74+($O74)*IF(MOD(BZ$3,$I74)=1,1,0)+Parts!$E$91*IF($J74=0,0,IF(MOD(BZ$3,$I74)=1,IF(PQS!$R74=\"NO\",1,0),IF(MOD(BZ$3,Calculations!$J74)=1,1,0)))+Parts!$E$92*IF(Calculations!$K74=0,0,IF(MOD(BZ$3,$I74)=1,0,IF(MOD(BZ$3,Calculations!$K74)=1,1,0))))*$AU74)*(1+'Country Input'!$C$45)^(Calculations!BZ$3-$BH$3)","v":1075},{"$f":"(($U74+($O74)*IF(MOD(CA$3,$I74)=1,1,0)+Parts!$E$91*IF($J74=0,0,IF(MOD(CA$3,$I74)=1,IF(PQS!$R74=\"NO\",1,0),IF(MOD(CA$3,Calculations!$J74)=1,1,0)))+Parts!$E$92*IF(Calculations!$K74=0,0,IF(MOD(CA$3,$I74)=1,0,IF(MOD(CA$3,Calculations!$K74)=1,1,0))))*$AU74)*(1+'Country Input'!$C$45)^(Calculations!CA$3-$BH$3)","v":1075},null,{"$f":"E74","v":"Dulas Solar VC 110 SDD*"},80879.354999999996,1075,1075,1075,1075,1075,1075,1075,1075,1075,80879.354999999996,1075,1075,1075,1075,1075,1075,1075,1075,1075,{"$f":"SUM(CD74:INDEX($CD74:$CW74,1,'Total Solution Costs'!$B$2))","v":90554.354999999996},null,"Dulas Solar VC 110 SDD*",{"$f":"SUM($BH74:BH74)","v":80879.354999999996},{"$f":"SUM($BH74:BI74)","v":81954.354999999996},{"$f":"SUM($BH74:BJ74)","v":83029.354999999996},{"$f":"SUM($BH74:BK74)","v":84104.354999999996},{"$f":"SUM($BH74:BL74)","v":85179.354999999996},{"$f":"SUM($BH74:BM74)","v":86254.354999999996},{"$f":"SUM($BH74:BN74)","v":87329.354999999996},{"$f":"SUM($BH74:BO74)","v":88404.354999999996},{"$f":"SUM($BH74:BP74)","v":89479.354999999996},{"$f":"SUM($BH74:BQ74)","v":90554.354999999996},{"$f":"SUM($BH74:BR74)","v":171433.71},{"$f":"SUM($BH74:BS74)","v":172508.71},{"$f":"SUM($BH74:BT74)","v":173583.71},{"$f":"SUM($BH74:BU74)","v":174658.71},{"$f":"SUM($BH74:BV74)","v":175733.71},{"$f":"SUM($BH74:BW74)","v":176808.71},{"$f":"SUM($BH74:BX74)","v":177883.71},{"$f":"SUM($BH74:BY74)","v":178958.71},{"$f":"SUM($BH74:BZ74)","v":180033.71},{"$f":"SUM($BH74:CA74)","v":181108.71}]
[{"$f":"PQS!A75","v":"SDD"},{"$f":"PQS!B75","v":"E003/059"},{"$f":"PQS!E75","v":"VC 88 SDD*"},{"$f":"PQS!F75","v":"Dulas Solar"},{"$f":"PQS!D75","v":"Dulas Solar VC 88 SDD*"},{"$f":"VLOOKUP(E75,PQS!$D$5:$K$107,COLUMN(PQS!$I$3)-COLUMN(PQS!$D$3)+1,FALSE)","v":88},{"$f":"VLOOKUP(E75,PQS!$D$5:$K$107,COLUMN(PQS!$J$3)-COLUMN(PQS!$D$3)+1,FALSE)","v":0},{"$f":"VLOOKUP(E75,PQS!$D$5:$K$107,COLUMN(PQS!$G$3)-COLUMN(PQS!$D$3)+1,FALSE)","v":"Yes"},{"$f":"HLOOKUP(B75,INDIRECT(\"'\"&A75&\"'!$10:$15\"),ROW('Technology template'!$A$11)-ROW('Technology template'!$A$10)+1,FALSE)","v":10},{"$f":"HLOOKUP(B75,INDIRECT(\"'\"&A75&\"'!$10:$15\"),ROW('Technology template'!$A$12)-ROW('Technology template'!$A$10)+1,FALSE)","v":10},{"$f":"HLOOKUP(B75,INDIRECT(\"'\"&A75&\"'!$10:$15\"),ROW('Technology template'!$A$13)-ROW('Technology template'!$A$10)+1,FALSE)","v":0},{"$f":"VLOOKUP(B75,PQS!$B:$Q,MATCH(PQS!$Q$3,PQS!$B$3:$Q$3,0),FALSE)*(1+'Country Input'!$C$47)+HLOOKUP(B75,INDIRECT(\"'\"&A75&\"'!$10:$15\"),ROW('Technology template'!$A$14)-ROW('Technology template'!$A$10)+1,FALSE)*(1+'Country Input'!$C$47)","v":4976.0564000000004},{"$f":"HLOOKUP(B75,INDIRECT(\"'\"&A75&\"'!$10:$80\"),MATCH('Technology template'!$A$27,INDIRECT(\"'\"&A75&\"'!$A$10:$A$80\"),0),FALSE)+'Labor and Maintenance '!$E$18","v":1042},{"$f":"VLOOKUP(B75,PQS!B:T,MATCH(PQS!$T$3,PQS!$B$3:$T$3,0),FALSE)*(1+'Country Input'!$C$47)","v":432.6973000000001},6450.7537000000002,645.07537000000002,{"$f":"VLOOKUP(B75,PQS!$B:$AE,COLUMN(PQS!AD73)-1,FALSE)","v":0},{"$f":"IFERROR(1/HLOOKUP(B75,INDIRECT(\"'\"&A75&\"'!$10:$80\"),MATCH('Technology template'!$A$31,INDIRECT(\"'\"&A75&\"'!$A$10:$A$80\"),0),FALSE)*HLOOKUP(B75,INDIRECT(\"'\"&A75&\"'!$10:$80\"),MATCH('Technology template'!$A$41,INDIRECT(\"'\"&A75&\"'!$A10:$A$80\"),0),FALSE),0)*TechnicianHourlyWage+IF(A75=\"Solar w Battery\",1/'Labor and Maintenance '!$E$53*'Labor and Maintenance '!$D$53,0)+IF(A75=\"LT passive\", 1/'Labor and Maintenance '!$E$81*'Labor and Maintenance '!$D$81,0)","v":24},{"$f":"IFERROR(1/HLOOKUP(B75,INDIRECT(\"'\"&A75&\"'!$10:$80\"),MATCH('Technology template'!$A$34,INDIRECT(\"'\"&A75&\"'!$A$10:$A$80\"),0),FALSE)*(HLOOKUP(B75,INDIRECT(\"'\"&A75&\"'!$10:$80\"),MATCH('Technology template'!$A$44,INDIRECT(\"'\"&A75&\"'!$A10:$A$80\"),0),FALSE)*TechnicianHourlyWage+RemoteTravelCostPerDay),0)+IFERROR(1/HLOOKUP(B75,INDIRECT(\"'\"&A75&\"'!$10:$80\"),MATCH('Technology template'!$A$35,INDIRECT(\"'\"&A75&\"'!$A$10:$A$80\"),0),FALSE)*(HLOOKUP(B75,INDIRECT(\"'\"&A75&\"'!$10:$80\"),MATCH('Technology template'!$A$45,INDIRECT(\"'\"&A75&\"'!$A10:$A$80\"),0),FALSE)*TechnicianHourlyWage+RemoteTravelCostPerDay),0)+IFERROR(1/HLOOKUP(B75,INDIRECT(\"'\"&A75&\"'!$10:$80\"),MATCH('Technology template'!$A$37,INDIRECT(\"'\"&A75&\"'!$A$10:$A$80\"),0),FALSE)*(HLOOKUP(B75,INDIRECT(\"'\"&A75&\"'!$10:$80\"),MATCH('Technology template'!$A$46,INDIRECT(\"'\"&A75&\"'!$A10:$A$80\"),0),FALSE)*TechnicianHourlyWage+'Labor and Maintenance '!$B$8),0)","v":83.5},1075,107.5,752.57537000000002,null,"Dulas Solar VC 88 SDD*",73.304019318181815,12.215909090909092,85.519928409090909,null,"Dulas Solar VC 88 SDD*",7.3304019318181819,1.2215909090909092,8.551992840909092,null,"Dulas Solar VC 88 SDD*",2,12901.5074,2150,15051.5074,null,"Dulas Solar VC 88 SDD*",2,14.660803863636364,2.4431818181818183,17.10398568181818,null,"Dulas Solar VC 88 SDD*",{"$f":"IF(F75=0, 'Country Input'!$D$7, ROUNDUP(LitersPerFacility/F75,0)*'Country Input'!$D$7)","v":10},64507.537000000004,1075,65582.537000000011,null,"Dulas Solar VC 88 SDD*",{"$f":"ROUNDUP(LitersPerFacility/F75,0)*'Country Input'!$D$7*ROUNDUP('Total Solution Costs'!$B$2/Calculations!I75,0)","v":10},73.304019318181815,1.2215909090909092,74.525610227272722,null,null,"Dulas Solar VC 88 SDD*",{"$f":"(($U75+($O75)*IF(MOD(BH$3,$I75)=1,1,0)+Parts!$E$91*IF($J75=0,0,IF(MOD(BH$3,$I75)=1,IF(PQS!$R75=\"NO\",1,0),IF(MOD(BH$3,Calculations!$J75)=1,1,0)))+Parts!$E$92*IF(Calculations!$K75=0,0,IF(MOD(BH$3,$I75)=1,0,IF(MOD(BH$3,Calculations!$K75)=1,1,0))))*$AU75)*(1+'Country Input'!$C$45)^(Calculations!BH$3-$BH$3)+TrainingCost","v":65582.536999999997},{"$f":"(($U75+($O75)*IF(MOD(BI$3,$I75)=1,1,0)+Parts!$E$91*IF($J75=0,0,IF(MOD(BI$3,$I75)=1,IF(PQS!$R75=\"NO\",1,0),IF(MOD(BI$3,Calculations!$J75)=1,1,0)))+Parts!$E$92*IF(Calculations!$K75=0,0,IF(MOD(BI$3,$I75)=1,0,IF(MOD(BI$3,Calculations!$K75)=1,1,0))))*$AU75)*(1+'Country Input'!$C$45)^(Calculations!BI$3-$BH$3)","v":1075},{"$f":"(($U75+($O75)*IF(MOD(BJ$3,$I75)=1,1,0)+Parts!$E$91*IF($J75=0,0,IF(MOD(BJ$3,$I75)=1,IF(PQS!$R75=\"NO\",1,0),IF(MOD(BJ$3,Calculations!$J75)=1,1,0)))+Parts!$E$92*IF(Calculations!$K75=0,0,IF(MOD(BJ$3,$I75)=1,0,IF(MOD(BJ$3,Calculations!$K75)=1,1,0))))*$AU75)*(1+'Country Input'!$C$45)^(Calculations!BJ$3-$BH$3)","v":1075},{"$f":"(($U75+($O75)*IF(MOD(BK$3,$I75)=1,1,0)+Parts!$E$91*IF($J75=0,0,IF(MOD(BK$3,$I75)=1,IF(PQS!$R75=\"NO\",1,0),IF(MOD(BK$3,Calculations!$J75)=1,1,0)))+Parts!$E$92*IF(Calculations!$K75=0,0,IF(MOD(BK$3,$I75)=1,0,IF(MOD(BK$3,Calculations!$K75)=1,1,0))))*$AU75)*(1+'Country Input'!$C$45)^(Calculations!BK$3-$BH$3)","v":1075},{"$f":"(($U75+($O75)*IF(MOD(BL$3,$I75)=1,1,0)+Parts!$E$91*IF($J75=0,0,IF(MOD(BL$3,$I75)=1,IF(PQS!$R75=\"NO\",1,0),IF(MOD(BL$3,Calculations!$J75)=1,1,0)))+Parts!$E$92*IF(Calculations!$K75=0,0,IF(MOD(BL$3,$I75)=1,0,IF(MOD(BL$3,Calculations!$K75)=1,1,0))))*$AU75)*(1+'Country Input'!$C$45)^(Calculations!BL$3-$BH$3)","v":1075},{"$f":"(($U75+($O75)*IF(MOD(BM$3,$I75)=1,1,0)+Parts!$E$91*IF($J75=0,0,IF(MOD(BM$3,$I75)=1,IF(PQS!$R75=\"NO\",1,0),IF(MOD(BM$3,Calculations!$J75)=1,1,0)))+Parts!$E$92*IF(Calculations!$K75=0,0,IF(MOD(BM$3,$I75)=1,0,IF(MOD(BM$3,Calculations!$K75)=1,1,0))))*$AU75)*(1+'Country Input'!$C$45)^(Calculations!BM$3-$BH$3)","v":1075},{"$f":"(($U75+($O75)*IF(MOD(BN$3,$I75)=1,1,0)+Parts!$E$91*IF($J75=0,0,IF(MOD(BN$3,$I75)=1,IF(PQS!$R75=\"NO\",1,0),IF(MOD(BN$3,Calculations!$J75)=1,1,0)))+Parts!$E$92*IF(Calculations!$K75=0,0,IF(MOD(BN$3,$I75)=1,0,IF(MOD(BN$3,Calculations!$K75)=1,1,0))))*$AU75)*(1+'Country Input'!$C$45)^(Calculations!BN$3-$BH$3)","v":1075},{"$f":"(($U75+($O75)*IF(MOD(BO$3,$I75)=1,1,0)+Parts!$E$91*IF($J75=0,0,IF(MOD(BO$3,$I75)=1,IF(PQS!$R75=\"NO\",1,0),IF(MOD(BO$3,Calculations!$J75)=1,1,0)))+Parts!$E$92*IF(Calculations!$K75=0,0,IF(MOD(BO$3,$I75)=1,0,IF(MOD(BO$3,Calculations!$K75)=1,1,0))))*$AU75)*(1+'Country Input'!$C$45)^(Calculations!BO$3-$BH$3)","v":1075},{"$f":"(($U75+($O75)*IF(MOD(BP$3,$I75)=1,1,0)+Parts!$E$91*IF($J75=0,0,IF(MOD(BP$3,$I75)=1,IF(PQS!$R75=\"NO\",1,0),IF(MOD(BP$3,Calculations!$J75)=1,1,0)))+Parts!$E$92*IF(Calculations!$K75=0,0,IF(MOD(BP$3,$I75)=1,0,IF(MOD(BP$3,Calculations!$K75)=1,1,0))))*$AU75)*(1+'Country Input'!$C$45)^(Calculations!BP$3-$BH$3)","v":1075},{"$f":"(($U75+($O75)*IF(MOD(BQ$3,$I75)=1,1,0)+Parts!$E$91*IF($J75=0,0,IF(MOD(BQ$3,$I75)=1,IF(PQS!$R75=\"NO\",1,0),IF(MOD(BQ$3,Calculations!$J75)=1,1,0)))+Parts!$E$92*IF(Calculations!$K75=0,0,IF(MOD(BQ$3,$I75)=1,0,IF(MOD(BQ$3,Calculations!$K75)=1,1,0))))*$AU75)*(1+'Country Input'!$C$45)^(Calculations!BQ$3-$BH$3)","v":1075},{"$f":"(($U75+($O75)*IF(MOD(BR$3,$I75)=1,1,0)+Parts!$E$91*IF($J75=0,0,IF(MOD(BR$3,$I75)=1,IF(PQS!$R75=\"NO\",1,0),IF(MOD(BR$3,Calculations!$J75)=1,1,0)))+Parts!$E$92*IF(Calculations!$K75=0,0,IF(MOD(BR$3,$I75)=1,0,IF(MOD(BR$3,Calculations!$K75)=1,1,0))))*$AU75)*(1+'Country Input'!$C$45)^(Calculations!BR$3-$BH$3)","v":65582.536999999997},{"$f":"(($U75+($O75)*IF(MOD(BS$3,$I75)=1,1,0)+Parts!$E$91*IF($J75=0,0,IF(MOD(BS$3,$I75)=1,IF(PQS!$R75=\"NO\",1,0),IF(MOD(BS$3,Calculations!$J75)=1,1,0)))+Parts!$E$92*IF(Calculations!$K75=0,0,IF(MOD(BS$3,$I75)=1,0,IF(MOD(BS$3,Calculations!$K75)=1,1,0))))*$AU75)*(1+'Country Input'!$C$45)^(Calculations!BS$3-$BH$3)","v":1075},{"$f":"(($U75+($O75)*IF(MOD(BT$3,$I75)=1,1,0)+Parts!$E$91*IF($J75=0,0,IF(MOD(BT$3,$I75)=1,IF(PQS!$R75=\"NO\",1,0),IF(MOD(BT$3,Calculations!$J75)=1,1,0)))+Parts!$E$92*IF(Calculations!$K75=0,0,IF(MOD(BT$3,$I75)=1,0,IF(MOD(BT$3,Calculations!$K75)=1,1,0))))*$AU75)*(1+'Country Input'!$C$45)^(Calculations!BT$3-$BH$3)","v":1075},{"$f":"(($U75+($O75)*IF(MOD(BU$3,$I75)=1,1,0)+Parts!$E$91*IF($J75=0,0,IF(MOD(BU$3,$I75)=1,IF(PQS!$R75=\"NO\",1,0),IF(MOD(BU$3,Calculations!$J75)=1,1,0)))+Parts!$E$92*IF(Calculations!$K75=0,0,IF(MOD(BU$3,$I75)=1,0,IF(MOD(BU$3,Calculations!$K75)=1,1,0))))*$AU75)*(1+'Country Input'!$C$45)^(Calculations!BU$3-$BH$3)","v":1075},{"$f":"(($U75+($O75)*IF(MOD(BV$3,$I75)=1,1,0)+Parts!$E$91*IF($J75=0,0,IF(MOD(BV$3,$I75)=1,IF(PQS!$R75=\"NO\",1,0),IF(MOD(BV$3,Calculations!$J75)=1,1,0)))+Parts!$E$92*IF(Calculations!$K75=0,0,IF(MOD(BV$3,$I75)=1,0,IF(MOD(BV$3,Calculations!$K75)=1,1,0))))*$AU75)*(1+'Country Input'!$C$45)^(Calculations!BV$3-$BH$3)","v":1075},{"$f":"(($U75+($O75)*IF(MOD(BW$3,$I75)=1,1,0)+Parts!$E$91*IF($J75=0,0,IF(MOD(BW$3,$I75)=1,IF(PQS!$R75=\"NO\",1,0),IF(MOD(BW$3,Calculations!$J75)=1,1,0)))+Parts!$E$92*IF(Calculations!$K75=0,0,IF(MOD(BW$3,$I75)=1,0,IF(MOD(BW$3,Calculations!$K75)=1,1,0))))*$AU75)*(1+'Country Input'!$C$45)^(Calculations!BW$3-$BH$3)","v":1075},{"$f":"(($U75+($O75)*IF(MOD(BX$3,$I75)=1,1,0)+Parts!$E$91*IF($J75=0,0,IF(MOD(BX$3,$I75)=1,IF(PQS!$R75=\"NO\",1,0),IF(MOD(BX$3,Calculations!$J75)=1,1,0)))+Parts!$E$92*IF(Calculations!$K75=0,0,IF(MOD(BX$3,$I75)=1,0,IF(MOD(BX$3,Calculations!$K75)=1,1,0))))*$AU75)*(1+'Country Input'!$C$45)^(Calculations!BX$3-$BH$3)","v":1075},{"$f":"(($U75+($O75)*IF(MOD(BY$3,$I75)=1,1,0)+Parts!$E$91*IF($J75=0,0,IF(MOD(BY$3,$I75)=1,IF(PQS!$R75=\"NO\",1,0),IF(MOD(BY$3,Calculations!$J75)=1,1,0)))+Parts!$E$92*IF(Calculations!$K75=0,0,IF(MOD(BY$3,$I75)=1,0,IF(MOD(BY$3,Calculations!$K75)=1,1,0))))*$AU75)*(1+'Country Input'!$C$45)^(Calculations!BY$3-$BH$3)","v":1075},{"$f":"(($U75+($O75)*IF(MOD(BZ$3,$I75)=1,1,0)+Parts!$E$91*IF($J75=0,0,IF(MOD(BZ$3,$I75)=1,IF(PQS!$R75=\"NO\",1,0),IF(MOD(BZ$3,Calculations!$J75)=1,1,0)))+Parts!$E$92*IF(Calculations!$K75=0,0,IF(MOD(BZ$3,$I75)=1,0,IF(MOD(BZ$3,Calculations!$K75)=1,1,0))))*$AU75)*(1+'Country Input'!$C$45)^(Calculations!BZ$3-$BH$3)","v":1075},{"$f":"(($U75+($O75)*IF(MOD(CA$3,$I75)=1,1,0)+Parts!$E$91*IF($J75=0,0,IF(MOD(CA$3,$I75)=1,IF(PQS!$R75=\"NO\",1,0),IF(MOD(CA$3,Calculations!$J75)=1,1,0)))+Parts!$E$92*IF(Calculations!$K75=0,0,IF(MOD(CA$3,$I75)=1,0,IF(MOD(CA$3,Calculations!$K75)=1,1,0))))*$AU75)*(1+'Country Input'!$C$45)^(Calculations!CA$3-$BH$3)","v":1075},null,"Dulas Solar VC 88 SDD*",65582.536999999997,1075,1075,1075,1075,1075,1075,1075,1075,1075,65582.536999999997,1075,1075,1075,1075,1075,1075,1075,1075,1075,{"$f":"SUM(CD75:INDEX($CD75:$CW75,1,'Total Solution Costs'!$B$2))","v":75257.536999999997},null,"Dulas Solar VC 88 SDD*",{"$f":"SUM($BH75:BH75)","v":65582.536999999997},{"$f":"SUM($BH75:BI75)","v":66657.536999999997},{"$f":"SUM($BH75:BJ75)","v":67732.536999999997},{"$f":"SUM($BH75:BK75)","v":68807.536999999997},{"$f":"SUM($BH75:BL75)","v":69882.536999999997},{"$f":"SUM($BH75:BM75)","v":70957.536999999997},{"$f":"SUM($BH75:BN75)","v":72032.536999999997},{"$f":"SUM($BH75:BO75)","v":73107.536999999997},{"$f":"SUM($BH75:BP75)","v":74182.536999999997},{"$f":"SUM($BH75:BQ75)","v":75257.536999999997},{"$f":"SUM($BH75:BR75)","v":140840.07399999999},{"$f":"SUM($BH75:BS75)","v":141915.07399999999},{"$f":"SUM($BH75:BT75)","v":142990.07399999999},{"$f":"SUM($BH75:BU75)","v":144065.07399999999},{"$f":"SUM($BH75:BV75)","v":145140.07399999999},{"$f":"SUM($BH75:BW75)","v":146215.07399999999},{"$f":"SUM($BH75:BX75)","v":147290.07399999999},{"$f":"SUM($BH75:BY75)","v":148365.07399999999},{"$f":"SUM($BH75:BZ75)","v":149440.07399999999},{"$f":"SUM($BH75:CA75)","v":150515.07399999999}]
[{"$f":"PQS!A76","v":"SDD"},{"$f":"PQS!B76","v":"E003/067"},{"$f":"PQS!E76","v":"TCW 15R SDD*"},{"$f":"PQS!F76","v":"B Medical"},{"$f":"PQS!D76","v":"B Medical TCW 15R SDD*"},{"$f":"VLOOKUP(E76,PQS!$D$5:$K$107,COLUMN(PQS!$I$3)-COLUMN(PQS!$D$3)+1,FALSE)","v":16},{"$f":"VLOOKUP(E76,PQS!$D$5:$K$107,COLUMN(PQS!$J$3)-COLUMN(PQS!$D$3)+1,FALSE)","v":0},{"$f":"VLOOKUP(E76,PQS!$D$5:$K$107,COLUMN(PQS!$G$3)-COLUMN(PQS!$D$3)+1,FALSE)","v":"Yes"},{"$f":"HLOOKUP(B76,INDIRECT(\"'\"&A76&\"'!$10:$15\"),ROW('Technology template'!$A$11)-ROW('Technology template'!$A$10)+1,FALSE)","v":10},{"$f":"HLOOKUP(B76,INDIRECT(\"'\"&A76&\"'!$10:$15\"),ROW('Technology template'!$A$12)-ROW('Technology template'!$A$10)+1,FALSE)","v":10},{"$f":"HLOOKUP(B76,INDIRECT(\"'\"&A76&\"'!$10:$15\"),ROW('Technology template'!$A$13)-ROW('Technology template'!$A$10)+1,FALSE)","v":0},{"$f":"VLOOKUP(B76,PQS!$B:$Q,MATCH(PQS!$Q$3,PQS!$B$3:$Q$3,0),FALSE)*(1+'Country Input'!$C$47)+HLOOKUP(B76,INDIRECT(\"'\"&A76&\"'!$10:$15\"),ROW('Technology template'!$A$14)-ROW('Technology template'!$A$10)+1,FALSE)*(1+'Country Input'!$C$47)","v":5078.1772000000001},{"$f":"HLOOKUP(B76,INDIRECT(\"'\"&A76&\"'!$10:$80\"),MATCH('Technology template'!$A$27,INDIRECT(\"'\"&A76&\"'!$A$10:$A$80\"),0),FALSE)+'Labor and Maintenance '!$E$18","v":1042},{"$f":"VLOOKUP(B76,PQS!B:T,MATCH(PQS!$T$3,PQS!$B$3:$T$3,0),FALSE)*(1+'Country Input'!$C$47)","v":751.26048200000014},6871.4376819999998,{"$f":"O76/I76","v":687.14376819999995},{"$f":"VLOOKUP(B76,PQS!$B:$AE,COLUMN(PQS!AD74)-1,FALSE)","v":0},{"$f":"IFERROR(1/HLOOKUP(B76,INDIRECT(\"'\"&A76&\"'!$10:$80\"),MATCH('Technology template'!$A$31,INDIRECT(\"'\"&A76&\"'!$A$10:$A$80\"),0),FALSE)*HLOOKUP(B76,INDIRECT(\"'\"&A76&\"'!$10:$80\"),MATCH('Technology template'!$A$41,INDIRECT(\"'\"&A76&\"'!$A10:$A$80\"),0),FALSE),0)*TechnicianHourlyWage+IF(A76=\"Solar w Battery\",1/'Labor and Maintenance '!$E$53*'Labor and Maintenance '!$D$53,0)+IF(A76=\"LT passive\", 1/'Labor and Maintenance '!$E$81*'Labor and Maintenance '!$D$81,0)","v":24},{"$f":"IFERROR(1/HLOOKUP(B76,INDIRECT(\"'\"&A76&\"'!$10:$80\"),MATCH('Technology template'!$A$34,INDIRECT(\"'\"&A76&\"'!$A$10:$A$80\"),0),FALSE)*(HLOOKUP(B76,INDIRECT(\"'\"&A76&\"'!$10:$80\"),MATCH('Technology template'!$A$44,INDIRECT(\"'\"&A76&\"'!$A10:$A$80\"),0),FALSE)*TechnicianHourlyWage+RemoteTravelCostPerDay),0)+IFERROR(1/HLOOKUP(B76,INDIRECT(\"'\"&A76&\"'!$10:$80\"),MATCH('Technology template'!$A$35,INDIRECT(\"'\"&A76&\"'!$A$10:$A$80\"),0),FALSE)*(HLOOKUP(B76,INDIRECT(\"'\"&A76&\"'!$10:$80\"),MATCH('Technology template'!$A$45,INDIRECT(\"'\"&A76&\"'!$A10:$A$80\"),0),FALSE)*TechnicianHourlyWage+RemoteTravelCostPerDay),0)+IFERROR(1/HLOOKUP(B76,INDIRECT(\"'\"&A76&\"'!$10:$80\"),MATCH('Technology template'!$A$37,INDIRECT(\"'\"&A76&\"'!$A$10:$A$80\"),0),FALSE)*(HLOOKUP(B76,INDIRECT(\"'\"&A76&\"'!$10:$80\"),MATCH('Technology template'!$A$46,INDIRECT(\"'\"&A76&\"'!$A10:$A$80\"),0),FALSE)*TechnicianHourlyWage+'Labor and Maintenance '!$B$8),0)","v":83.5},{"$f":"SUM(Q76:S76)*I76","v":1075},{"$f":"SUM(Q76:S76)","v":107.5},{"$f":"P76+U76","v":794.64376819999995},null,{"$f":"E76","v":"B Medical TCW 15R SDD*"},429.46485512499999,67.1875,{"$f":"Y76+Z76","v":496.65235512499999},null,"B Medical TCW 15R SDD*",42.946485512499997,6.71875,49.665235512499997,null,"B Medical TCW 15R SDD*",8,54971.501455999998,8600,{"$f":"AJ76+AK76","v":63571.501455999998},null,"B Medical TCW 15R SDD*",8,343.57188409999998,53.75,{"$f":"+AP76+AQ76","v":397.32188409999998},null,"B Medical TCW 15R SDD*",{"$f":"IF(F76=0, 'Country Input'!$D$7, ROUNDUP(LitersPerFacility/F76,0)*'Country Input'!$D$7)","v":10},68714.376820000005,1075,{"$f":"AV76+AW76","v":69789.376820000005},null,"B Medical TCW 15R SDD*",{"$f":"ROUNDUP(LitersPerFacility/F76,0)*'Country Input'!$D$7*ROUNDUP('Total Solution Costs'!$B$2/Calculations!I76,0)","v":10},429.46485512499999,6.71875,{"$f":"BB76+BC76","v":436.18360512499999},null,null,"B Medical TCW 15R SDD*",{"$f":"(($U76+($O76)*IF(MOD(BH$3,$I76)=1,1,0)+Parts!$E$91*IF($J76=0,0,IF(MOD(BH$3,$I76)=1,IF(PQS!$R76=\"NO\",1,0),IF(MOD(BH$3,Calculations!$J76)=1,1,0)))+Parts!$E$92*IF(Calculations!$K76=0,0,IF(MOD(BH$3,$I76)=1,0,IF(MOD(BH$3,Calculations!$K76)=1,1,0))))*$AU76)*(1+'Country Input'!$C$45)^(Calculations!BH$3-$BH$3)+TrainingCost","v":69789.376820000005},{"$f":"(($U76+($O76)*IF(MOD(BI$3,$I76)=1,1,0)+Parts!$E$91*IF($J76=0,0,IF(MOD(BI$3,$I76)=1,IF(PQS!$R76=\"NO\",1,0),IF(MOD(BI$3,Calculations!$J76)=1,1,0)))+Parts!$E$92*IF(Calculations!$K76=0,0,IF(MOD(BI$3,$I76)=1,0,IF(MOD(BI$3,Calculations!$K76)=1,1,0))))*$AU76)*(1+'Country Input'!$C$45)^(Calculations!BI$3-$BH$3)","v":1075},{"$f":"(($U76+($O76)*IF(MOD(BJ$3,$I76)=1,1,0)+Parts!$E$91*IF($J76=0,0,IF(MOD(BJ$3,$I76)=1,IF(PQS!$R76=\"NO\",1,0),IF(MOD(BJ$3,Calculations!$J76)=1,1,0)))+Parts!$E$92*IF(Calculations!$K76=0,0,IF(MOD(BJ$3,$I76)=1,0,IF(MOD(BJ$3,Calculations!$K76)=1,1,0))))*$AU76)*(1+'Country Input'!$C$45)^(Calculations!BJ$3-$BH$3)","v":1075},{"$f":"(($U76+($O76)*IF(MOD(BK$3,$I76)=1,1,0)+Parts!$E$91*IF($J76=0,0,IF(MOD(BK$3,$I76)=1,IF(PQS!$R76=\"NO\",1,0),IF(MOD(BK$3,Calculations!$J76)=1,1,0)))+Parts!$E$92*IF(Calculations!$K76=0,0,IF(MOD(BK$3,$I76)=1,0,IF(MOD(BK$3,Calculations!$K76)=1,1,0))))*$AU76)*(1+'Country Input'!$C$45)^(Calculations!BK$3-$BH$3)","v":1075},{"$f":"(($U76+($O76)*IF(MOD(BL$3,$I76)=1,1,0)+Parts!$E$91*IF($J76=0,0,IF(MOD(BL$3,$I76)=1,IF(PQS!$R76=\"NO\",1,0),IF(MOD(BL$3,Calculations!$J76)=1,1,0)))+Parts!$E$92*IF(Calculations!$K76=0,0,IF(MOD(BL$3,$I76)=1,0,IF(MOD(BL$3,Calculations!$K76)=1,1,0))))*$AU76)*(1+'Country Input'!$C$45)^(Calculations!BL$3-$BH$3)","v":1075},{"$f":"(($U76+($O76)*IF(MOD(BM$3,$I76)=1,1,0)+Parts!$E$91*IF($J76=0,0,IF(MOD(BM$3,$I76)=1,IF(PQS!$R76=\"NO\",1,0),IF(MOD(BM$3,Calculations!$J76)=1,1,0)))+Parts!$E$92*IF(Calculations!$K76=0,0,IF(MOD(BM$3,$I76)=1,0,IF(MOD(BM$3,Calculations!$K76)=1,1,0))))*$AU76)*(1+'Country Input'!$C$45)^(Calculations!BM$3-$BH$3)","v":1075},{"$f":"(($U76+($O76)*IF(MOD(BN$3,$I76)=1,1,0)+Parts!$E$91*IF($J76=0,0,IF(MOD(BN$3,$I76)=1,IF(PQS!$R76=\"NO\",1,0),IF(MOD(BN$3,Calculations!$J76)=1,1,0)))+Parts!$E$92*IF(Calculations!$K76=0,0,IF(MOD(BN$3,$I76)=1,0,IF(MOD(BN$3,Calculations!$K76)=1,1,0))))*$AU76)*(1+'Country Input'!$C$45)^(Calculations!BN$3-$BH$3)","v":1075},{"$f":"(($U76+($O76)*IF(MOD(BO$3,$I76)=1,1,0)+Parts!$E$91*IF($J76=0,0,IF(MOD(BO$3,$I76)=1,IF(PQS!$R76=\"NO\",1,0),IF(MOD(BO$3,Calculations!$J76)=1,1,0)))+Parts!$E$92*IF(Calculations!$K76=0,0,IF(MOD(BO$3,$I76)=1,0,IF(MOD(BO$3,Calculations!$K76)=1,1,0))))*$AU76)*(1+'Country Input'!$C$45)^(Calculations!BO$3-$BH$3)","v":1075},{"$f":"(($U76+($O76)*IF(MOD(BP$3,$I76)=1,1,0)+Parts!$E$91*IF($J76=0,0,IF(MOD(BP$3,$I76)=1,IF(PQS!$R76=\"NO\",1,0),IF(MOD(BP$3,Calculations!$J76)=1,1,0)))+Parts!$E$92*IF(Calculations!$K76=0,0,IF(MOD(BP$3,$I76)=1,0,IF(MOD(BP$3,Calculations!$K76)=1,1,0))))*$AU76)*(1+'Country Input'!$C$45)^(Calculations!BP$3-$BH$3)","v":1075},{"$f":"(($U76+($O76)*IF(MOD(BQ$3,$I76)=1,1,0)+Parts!$E$91*IF($J76=0,0,IF(MOD(BQ$3,$I76)=1,IF(PQS!$R76=\"NO\",1,0),IF(MOD(BQ$3,Calculations!$J76)=1,1,0)))+Parts!$E$92*IF(Calculations!$K76=0,0,IF(MOD(BQ$3,$I76)=1,0,IF(MOD(BQ$3,Calculations!$K76)=1,1,0))))*$AU76)*(1+'Country Input'!$C$45)^(Calculations!BQ$3-$BH$3)","v":1075},{"$f":"(($U76+($O76)*IF(MOD(BR$3,$I76)=1,1,0)+Parts!$E$91*IF($J76=0,0,IF(MOD(BR$3,$I76)=1,IF(PQS!$R76=\"NO\",1,0),IF(MOD(BR$3,Calculations!$J76)=1,1,0)))+Parts!$E$92*IF(Calculations!$K76=0,0,IF(MOD(BR$3,$I76)=1,0,IF(MOD(BR$3,Calculations!$K76)=1,1,0))))*$AU76)*(1+'Country Input'!$C$45)^(Calculations!BR$3-$BH$3)","v":69789.376820000005},{"$f":"(($U76+($O76)*IF(MOD(BS$3,$I76)=1,1,0)+Parts!$E$91*IF($J76=0,0,IF(MOD(BS$3,$I76)=1,IF(PQS!$R76=\"NO\",1,0),IF(MOD(BS$3,Calculations!$J76)=1,1,0)))+Parts!$E$92*IF(Calculations!$K76=0,0,IF(MOD(BS$3,$I76)=1,0,IF(MOD(BS$3,Calculations!$K76)=1,1,0))))*$AU76)*(1+'Country Input'!$C$45)^(Calculations!BS$3-$BH$3)","v":1075},{"$f":"(($U76+($O76)*IF(MOD(BT$3,$I76)=1,1,0)+Parts!$E$91*IF($J76=0,0,IF(MOD(BT$3,$I76)=1,IF(PQS!$R76=\"NO\",1,0),IF(MOD(BT$3,Calculations!$J76)=1,1,0)))+Parts!$E$92*IF(Calculations!$K76=0,0,IF(MOD(BT$3,$I76)=1,0,IF(MOD(BT$3,Calculations!$K76)=1,1,0))))*$AU76)*(1+'Country Input'!$C$45)^(Calculations!BT$3-$BH$3)","v":1075},{"$f":"(($U76+($O76)*IF(MOD(BU$3,$I76)=1,1,0)+Parts!$E$91*IF($J76=0,0,IF(MOD(BU$3,$I76)=1,IF(PQS!$R76=\"NO\",1,0),IF(MOD(BU$3,Calculations!$J76)=1,1,0)))+Parts!$E$92*IF(Calculations!$K76=0,0,IF(MOD(BU$3,$I76)=1,0,IF(MOD(BU$3,Calculations!$K76)=1,1,0))))*$AU76)*(1+'Country Input'!$C$45)^(Calculations!BU$3-$BH$3)","v":1075},{"$f":"(($U76+($O76)*IF(MOD(BV$3,$I76)=1,1,0)+Parts!$E$91*IF($J76=0,0,IF(MOD(BV$3,$I76)=1,IF(PQS!$R76=\"NO\",1,0),IF(MOD(BV$3,Calculations!$J76)=1,1,0)))+Parts!$E$92*IF(Calculations!$K76=0,0,IF(MOD(BV$3,$I76)=1,0,IF(MOD(BV$3,Calculations!$K76)=1,1,0))))*$AU76)*(1+'Country Input'!$C$45)^(Calculations!BV$3-$BH$3)","v":1075},{"$f":"(($U76+($O76)*IF(MOD(BW$3,$I76)=1,1,0)+Parts!$E$91*IF($J76=0,0,IF(MOD(BW$3,$I76)=1,IF(PQS!$R76=\"NO\",1,0),IF(MOD(BW$3,Calculations!$J76)=1,1,0)))+Parts!$E$92*IF(Calculations!$K76=0,0,IF(MOD(BW$3,$I76)=1,0,IF(MOD(BW$3,Calculations!$K76)=1,1,0))))*$AU76)*(1+'Country Input'!$C$45)^(Calculations!BW$3-$BH$3)","v":1075},{"$f":"(($U76+($O76)*IF(MOD(BX$3,$I76)=1,1,0)+Parts!$E$91*IF($J76=0,0,IF(MOD(BX$3,$I76)=1,IF(PQS!$R76=\"NO\",1,0),IF(MOD(BX$3,Calculations!$J76)=1,1,0)))+Parts!$E$92*IF(Calculations!$K76=0,0,IF(MOD(BX$3,$I76)=1,0,IF(MOD(BX$3,Calculations!$K76)=1,1,0))))*$AU76)*(1+'Country Input'!$C$45)^(Calculations!BX$3-$BH$3)","v":1075},{"$f":"(($U76+($O76)*IF(MOD(BY$3,$I76)=1,1,0)+Parts!$E$91*IF($J76=0,0,IF(MOD(BY$3,$I76)=1,IF(PQS!$R76=\"NO\",1,0),IF(MOD(BY$3,Calculations!$J76)=1,1,0)))+Parts!$E$92*IF(Calculations!$K76=0,0,IF(MOD(BY$3,$I76)=1,0,IF(MOD(BY$3,Calculations!$K76)=1,1,0))))*$AU76)*(1+'Country Input'!$C$45)^(Calculations!BY$3-$BH$3)","v":1075},{"$f":"(($U76+($O76)*IF(MOD(BZ$3,$I76)=1,1,0)+Parts!$E$91*IF($J76=0,0,IF(MOD(BZ$3,$I76)=1,IF(PQS!$R76=\"NO\",1,0),IF(MOD(BZ$3,Calculations!$J76)=1,1,0)))+Parts!$E$92*IF(Calculations!$K76=0,0,IF(MOD(BZ$3,$I76)=1,0,IF(MOD(BZ$3,Calculations!$K76)=1,1,0))))*$AU76)*(1+'Country Input'!$C$45)^(Calculations!BZ$3-$BH$3)","v":1075},{"$f":"(($U76+($O76)*IF(MOD(CA$3,$I76)=1,1,0)+Parts!$E$91*IF($J76=0,0,IF(MOD(CA$3,$I76)=1,IF(PQS!$R76=\"NO\",1,0),IF(MOD(CA$3,Calculations!$J76)=1,1,0)))+Parts!$E$92*IF(Calculations!$K76=0,0,IF(MOD(CA$3,$I76)=1,0,IF(MOD(CA$3,Calculations!$K76)=1,1,0))))*$AU76)*(1+'Country Input'!$C$45)^(Calculations!CA$3-$BH$3)","v":1075},null,"B Medical TCW 15R SDD*",{"$f":"BH76/((1+DiscountRate)^(COLUMN(CD76)-COLUMN($CD76)))","v":69789.376820000005},{"$f":"BI76/((1+DiscountRate)^(COLUMN(CE76)-COLUMN($CD76)))","v":1075},{"$f":"BJ76/((1+DiscountRate)^(COLUMN(CF76)-COLUMN($CD76)))","v":1075},{"$f":"BK76/((1+DiscountRate)^(COLUMN(CG76)-COLUMN($CD76)))","v":1075},{"$f":"BL76/((1+DiscountRate)^(COLUMN(CH76)-COLUMN($CD76)))","v":1075},{"$f":"BM76/((1+DiscountRate)^(COLUMN(CI76)-COLUMN($CD76)))","v":1075},{"$f":"BN76/((1+DiscountRate)^(COLUMN(CJ76)-COLUMN($CD76)))","v":1075},{"$f":"BO76/((1+DiscountRate)^(COLUMN(CK76)-COLUMN($CD76)))","v":1075},{"$f":"BP76/((1+DiscountRate)^(COLUMN(CL76)-COLUMN($CD76)))","v":1075},{"$f":"BQ76/((1+DiscountRate)^(COLUMN(CM76)-COLUMN($CD76)))","v":1075},{"$f":"BR76/((1+DiscountRate)^(COLUMN(CN76)-COLUMN($CD76)))","v":69789.376820000005},{"$f":"BS76/((1+DiscountRate)^(COLUMN(CO76)-COLUMN($CD76)))","v":1075},{"$f":"BT76/((1+DiscountRate)^(COLUMN(CP76)-COLUMN($CD76)))","v":1075},{"$f":"BU76/((1+DiscountRate)^(COLUMN(CQ76)-COLUMN($CD76)))","v":1075},{"$f":"BV76/((1+DiscountRate)^(COLUMN(CR76)-COLUMN($CD76)))","v":1075},{"$f":"BW76/((1+DiscountRate)^(COLUMN(CS76)-COLUMN($CD76)))","v":1075},{"$f":"BX76/((1+DiscountRate)^(COLUMN(CT76)-COLUMN($CD76)))","v":1075},{"$f":"BY76/((1+DiscountRate)^(COLUMN(CU76)-COLUMN($CD76)))","v":1075},{"$f":"BZ76/((1+DiscountRate)^(COLUMN(CV76)-COLUMN($CD76)))","v":1075},{"$f":"CA76/((1+DiscountRate)^(COLUMN(CW76)-COLUMN($CD76)))","v":1075},{"$f":"SUM(CD76:INDEX($CD76:$CW76,1,'Total Solution Costs'!$B$2))","v":79464.376820000005},null,{"$f":"CC76","v":"B Medical TCW 15R SDD*"},{"$f":"SUM($BH76:BH76)","v":69789.376820000005},{"$f":"SUM($BH76:BI76)","v":70864.376820000005},{"$f":"SUM($BH76:BJ76)","v":71939.376820000005},{"$f":"SUM($BH76:BK76)","v":73014.376820000005},{"$f":"SUM($BH76:BL76)","v":74089.376820000005},{"$f":"SUM($BH76:BM76)","v":75164.376820000005},{"$f":"SUM($BH76:BN76)","v":76239.376820000005},{"$f":"SUM($BH76:BO76)","v":77314.376820000005},{"$f":"SUM($BH76:BP76)","v":78389.376820000005},{"$f":"SUM($BH76:BQ76)","v":79464.376820000005},{"$f":"SUM($BH76:BR76)","v":149253.75364000001},{"$f":"SUM($BH76:BS76)","v":150328.75364000001},{"$f":"SUM($BH76:BT76)","v":151403.75364000001},{"$f":"SUM($BH76:BU76)","v":152478.75364000001},{"$f":"SUM($BH76:BV76)","v":153553.75364000001},{"$f":"SUM($BH76:BW76)","v":154628.75364000001},{"$f":"SUM($BH76:BX76)","v":155703.75364000001},{"$f":"SUM($BH76:BY76)","v":156778.75364000001},{"$f":"SUM($BH76:BZ76)","v":157853.75364000001},{"$f":"SUM($BH76:CA76)","v":158928.75364000001}]
[{"$f":"PQS!A77","v":"SDD"},{"$f":"PQS!B77","v":"E003/068"},{"$f":"PQS!E77","v":"TCW 40R SDD*"},{"$f":"PQS!F77","v":"B Medical"},{"$f":"PQS!D77","v":"B Medical TCW 40R SDD*"},{"$f":"VLOOKUP(E77,PQS!$D$5:$K$107,COLUMN(PQS!$I$3)-COLUMN(PQS!$D$3)+1,FALSE)","v":36},{"$f":"VLOOKUP(E77,PQS!$D$5:$K$107,COLUMN(PQS!$J$3)-COLUMN(PQS!$D$3)+1,FALSE)","v":0},{"$f":"VLOOKUP(E77,PQS!$D$5:$K$107,COLUMN(PQS!$G$3)-COLUMN(PQS!$D$3)+1,FALSE)","v":"Yes"},{"$f":"HLOOKUP(B77,INDIRECT(\"'\"&A77&\"'!$10:$15\"),ROW('Technology template'!$A$11)-ROW('Technology template'!$A$10)+1,FALSE)","v":10},{"$f":"HLOOKUP(B77,INDIRECT(\"'\"&A77&\"'!$10:$15\"),ROW('Technology template'!$A$12)-ROW('Technology template'!$A$10)+1,FALSE)","v":10},{"$f":"HLOOKUP(B77,INDIRECT(\"'\"&A77&\"'!$10:$15\"),ROW('Technology template'!$A$13)-ROW('Technology template'!$A$10)+1,FALSE)","v":0},{"$f":"VLOOKUP(B77,PQS!$B:$Q,MATCH(PQS!$Q$3,PQS!$B$3:$Q$3,0),FALSE)*(1+'Country Input'!$C$47)+HLOOKUP(B77,INDIRECT(\"'\"&A77&\"'!$10:$15\"),ROW('Technology template'!$A$14)-ROW('Technology template'!$A$10)+1,FALSE)*(1+'Country Input'!$C$47)","v":5773.2920000000004},{"$f":"HLOOKUP(B77,INDIRECT(\"'\"&A77&\"'!$10:$80\"),MATCH('Technology template'!$A$27,INDIRECT(\"'\"&A77&\"'!$A$10:$A$80\"),0),FALSE)+'Labor and Maintenance '!$E$18","v":1042},{"$f":"VLOOKUP(B77,PQS!B:T,MATCH(PQS!$T$3,PQS!$B$3:$T$3,0),FALSE)*(1+'Country Input'!$C$47)","v":824.43414400000006},7639.7261440000002,763.9726144,{"$f":"VLOOKUP(B77,PQS!$B:$AE,COLUMN(PQS!AD75)-1,FALSE)","v":0},{"$f":"IFERROR(1/HLOOKUP(B77,INDIRECT(\"'\"&A77&\"'!$10:$80\"),MATCH('Technology template'!$A$31,INDIRECT(\"'\"&A77&\"'!$A$10:$A$80\"),0),FALSE)*HLOOKUP(B77,INDIRECT(\"'\"&A77&\"'!$10:$80\"),MATCH('Technology template'!$A$41,INDIRECT(\"'\"&A77&\"'!$A10:$A$80\"),0),FALSE),0)*TechnicianHourlyWage+IF(A77=\"Solar w Battery\",1/'Labor and Maintenance '!$E$53*'Labor and Maintenance '!$D$53,0)+IF(A77=\"LT passive\", 1/'Labor and Maintenance '!$E$81*'Labor and Maintenance '!$D$81,0)","v":24},{"$f":"IFERROR(1/HLOOKUP(B77,INDIRECT(\"'\"&A77&\"'!$10:$80\"),MATCH('Technology template'!$A$34,INDIRECT(\"'\"&A77&\"'!$A$10:$A$80\"),0),FALSE)*(HLOOKUP(B77,INDIRECT(\"'\"&A77&\"'!$10:$80\"),MATCH('Technology template'!$A$44,INDIRECT(\"'\"&A77&\"'!$A10:$A$80\"),0),FALSE)*TechnicianHourlyWage+RemoteTravelCostPerDay),0)+IFERROR(1/HLOOKUP(B77,INDIRECT(\"'\"&A77&\"'!$10:$80\"),MATCH('Technology template'!$A$35,INDIRECT(\"'\"&A77&\"'!$A$10:$A$80\"),0),FALSE)*(HLOOKUP(B77,INDIRECT(\"'\"&A77&\"'!$10:$80\"),MATCH('Technology template'!$A$45,INDIRECT(\"'\"&A77&\"'!$A10:$A$80\"),0),FALSE)*TechnicianHourlyWage+RemoteTravelCostPerDay),0)+IFERROR(1/HLOOKUP(B77,INDIRECT(\"'\"&A77&\"'!$10:$80\"),MATCH('Technology template'!$A$37,INDIRECT(\"'\"&A77&\"'!$A$10:$A$80\"),0),FALSE)*(HLOOKUP(B77,INDIRECT(\"'\"&A77&\"'!$10:$80\"),MATCH('Technology template'!$A$46,INDIRECT(\"'\"&A77&\"'!$A10:$A$80\"),0),FALSE)*TechnicianHourlyWage+'Labor and Maintenance '!$B$8),0)","v":83.5},1075,107.5,871.4726144,null,"B Medical TCW 40R SDD*",212.21461511111113,29.861111111111111,242.07572622222224,null,"B Medical TCW 40R SDD*",21.221461511111112,2.9861111111111112,24.207572622222223,null,"B Medical TCW 40R SDD*",4,30558.904576000001,4300,34858.904576000001,null,"B Medical TCW 40R SDD*",4,84.885846044444449,11.944444444444445,96.830290488888892,null,"B Medical TCW 40R SDD*",{"$f":"IF(F77=0, 'Country Input'!$D$7, ROUNDUP(LitersPerFacility/F77,0)*'Country Input'!$D$7)","v":10},76397.261440000002,1075,77472.261440000002,null,"B Medical TCW 40R SDD*",{"$f":"ROUNDUP(LitersPerFacility/F77,0)*'Country Input'!$D$7*ROUNDUP('Total Solution Costs'!$B$2/Calculations!I77,0)","v":10},{"$f":"BA77*AD77","v":212.21461511111113},2.9861111111111112,215.20072622222224,null,null,"B Medical TCW 40R SDD*",{"$f":"(($U77+($O77)*IF(MOD(BH$3,$I77)=1,1,0)+Parts!$E$91*IF($J77=0,0,IF(MOD(BH$3,$I77)=1,IF(PQS!$R77=\"NO\",1,0),IF(MOD(BH$3,Calculations!$J77)=1,1,0)))+Parts!$E$92*IF(Calculations!$K77=0,0,IF(MOD(BH$3,$I77)=1,0,IF(MOD(BH$3,Calculations!$K77)=1,1,0))))*$AU77)*(1+'Country Input'!$C$45)^(Calculations!BH$3-$BH$3)+TrainingCost","v":92472.261440000002},{"$f":"(($U77+($O77)*IF(MOD(BI$3,$I77)=1,1,0)+Parts!$E$91*IF($J77=0,0,IF(MOD(BI$3,$I77)=1,IF(PQS!$R77=\"NO\",1,0),IF(MOD(BI$3,Calculations!$J77)=1,1,0)))+Parts!$E$92*IF(Calculations!$K77=0,0,IF(MOD(BI$3,$I77)=1,0,IF(MOD(BI$3,Calculations!$K77)=1,1,0))))*$AU77)*(1+'Country Input'!$C$45)^(Calculations!BI$3-$BH$3)","v":1075},{"$f":"(($U77+($O77)*IF(MOD(BJ$3,$I77)=1,1,0)+Parts!$E$91*IF($J77=0,0,IF(MOD(BJ$3,$I77)=1,IF(PQS!$R77=\"NO\",1,0),IF(MOD(BJ$3,Calculations!$J77)=1,1,0)))+Parts!$E$92*IF(Calculations!$K77=0,0,IF(MOD(BJ$3,$I77)=1,0,IF(MOD(BJ$3,Calculations!$K77)=1,1,0))))*$AU77)*(1+'Country Input'!$C$45)^(Calculations!BJ$3-$BH$3)","v":1075},{"$f":"(($U77+($O77)*IF(MOD(BK$3,$I77)=1,1,0)+Parts!$E$91*IF($J77=0,0,IF(MOD(BK$3,$I77)=1,IF(PQS!$R77=\"NO\",1,0),IF(MOD(BK$3,Calculations!$J77)=1,1,0)))+Parts!$E$92*IF(Calculations!$K77=0,0,IF(MOD(BK$3,$I77)=1,0,IF(MOD(BK$3,Calculations!$K77)=1,1,0))))*$AU77)*(1+'Country Input'!$C$45)^(Calculations!BK$3-$BH$3)","v":1075},{"$f":"(($U77+($O77)*IF(MOD(BL$3,$I77)=1,1,0)+Parts!$E$91*IF($J77=0,0,IF(MOD(BL$3,$I77)=1,IF(PQS!$R77=\"NO\",1,0),IF(MOD(BL$3,Calculations!$J77)=1,1,0)))+Parts!$E$92*IF(Calculations!$K77=0,0,IF(MOD(BL$3,$I77)=1,0,IF(MOD(BL$3,Calculations!$K77)=1,1,0))))*$AU77)*(1+'Country Input'!$C$45)^(Calculations!BL$3-$BH$3)","v":1075},{"$f":"(($U77+($O77)*IF(MOD(BM$3,$I77)=1,1,0)+Parts!$E$91*IF($J77=0,0,IF(MOD(BM$3,$I77)=1,IF(PQS!$R77=\"NO\",1,0),IF(MOD(BM$3,Calculations!$J77)=1,1,0)))+Parts!$E$92*IF(Calculations!$K77=0,0,IF(MOD(BM$3,$I77)=1,0,IF(MOD(BM$3,Calculations!$K77)=1,1,0))))*$AU77)*(1+'Country Input'!$C$45)^(Calculations!BM$3-$BH$3)","v":1075},{"$f":"(($U77+($O77)*IF(MOD(BN$3,$I77)=1,1,0)+Parts!$E$91*IF($J77=0,0,IF(MOD(BN$3,$I77)=1,IF(PQS!$R77=\"NO\",1,0),IF(MOD(BN$3,Calculations!$J77)=1,1,0)))+Parts!$E$92*IF(Calculations!$K77=0,0,IF(MOD(BN$3,$I77)=1,0,IF(MOD(BN$3,Calculations!$K77)=1,1,0))))*$AU77)*(1+'Country Input'!$C$45)^(Calculations!BN$3-$BH$3)","v":1075},{"$f":"(($U77+($O77)*IF(MOD(BO$3,$I77)=1,1,0)+Parts!$E$91*IF($J77=0,0,IF(MOD(BO$3,$I77)=1,IF(PQS!$R77=\"NO\",1,0),IF(MOD(BO$3,Calculations!$J77)=1,1,0)))+Parts!$E$92*IF(Calculations!$K77=0,0,IF(MOD(BO$3,$I77)=1,0,IF(MOD(BO$3,Calculations!$K77)=1,1,0))))*$AU77)*(1+'Country Input'!$C$45)^(Calculations!BO$3-$BH$3)","v":1075},{"$f":"(($U77+($O77)*IF(MOD(BP$3,$I77)=1,1,0)+Parts!$E$91*IF($J77=0,0,IF(MOD(BP$3,$I77)=1,IF(PQS!$R77=\"NO\",1,0),IF(MOD(BP$3,Calculations!$J77)=1,1,0)))+Parts!$E$92*IF(Calculations!$K77=0,0,IF(MOD(BP$3,$I77)=1,0,IF(MOD(BP$3,Calculations!$K77)=1,1,0))))*$AU77)*(1+'Country Input'!$C$45)^(Calculations!BP$3-$BH$3)","v":1075},{"$f":"(($U77+($O77)*IF(MOD(BQ$3,$I77)=1,1,0)+Parts!$E$91*IF($J77=0,0,IF(MOD(BQ$3,$I77)=1,IF(PQS!$R77=\"NO\",1,0),IF(MOD(BQ$3,Calculations!$J77)=1,1,0)))+Parts!$E$92*IF(Calculations!$K77=0,0,IF(MOD(BQ$3,$I77)=1,0,IF(MOD(BQ$3,Calculations!$K77)=1,1,0))))*$AU77)*(1+'Country Input'!$C$45)^(Calculations!BQ$3-$BH$3)","v":1075},{"$f":"(($U77+($O77)*IF(MOD(BR$3,$I77)=1,1,0)+Parts!$E$91*IF($J77=0,0,IF(MOD(BR$3,$I77)=1,IF(PQS!$R77=\"NO\",1,0),IF(MOD(BR$3,Calculations!$J77)=1,1,0)))+Parts!$E$92*IF(Calculations!$K77=0,0,IF(MOD(BR$3,$I77)=1,0,IF(MOD(BR$3,Calculations!$K77)=1,1,0))))*$AU77)*(1+'Country Input'!$C$45)^(Calculations!BR$3-$BH$3)","v":92472.261440000002},{"$f":"(($U77+($O77)*IF(MOD(BS$3,$I77)=1,1,0)+Parts!$E$91*IF($J77=0,0,IF(MOD(BS$3,$I77)=1,IF(PQS!$R77=\"NO\",1,0),IF(MOD(BS$3,Calculations!$J77)=1,1,0)))+Parts!$E$92*IF(Calculations!$K77=0,0,IF(MOD(BS$3,$I77)=1,0,IF(MOD(BS$3,Calculations!$K77)=1,1,0))))*$AU77)*(1+'Country Input'!$C$45)^(Calculations!BS$3-$BH$3)","v":1075},{"$f":"(($U77+($O77)*IF(MOD(BT$3,$I77)=1,1,0)+Parts!$E$91*IF($J77=0,0,IF(MOD(BT$3,$I77)=1,IF(PQS!$R77=\"NO\",1,0),IF(MOD(BT$3,Calculations!$J77)=1,1,0)))+Parts!$E$92*IF(Calculations!$K77=0,0,IF(MOD(BT$3,$I77)=1,0,IF(MOD(BT$3,Calculations!$K77)=1,1,0))))*$AU77)*(1+'Country Input'!$C$45)^(Calculations!BT$3-$BH$3)","v":1075},{"$f":"(($U77+($O77)*IF(MOD(BU$3,$I77)=1,1,0)+Parts!$E$91*IF($J77=0,0,IF(MOD(BU$3,$I77)=1,IF(PQS!$R77=\"NO\",1,0),IF(MOD(BU$3,Calculations!$J77)=1,1,0)))+Parts!$E$92*IF(Calculations!$K77=0,0,IF(MOD(BU$3,$I77)=1,0,IF(MOD(BU$3,Calculations!$K77)=1,1,0))))*$AU77)*(1+'Country Input'!$C$45)^(Calculations!BU$3-$BH$3)","v":1075},{"$f":"(($U77+($O77)*IF(MOD(BV$3,$I77)=1,1,0)+Parts!$E$91*IF($J77=0,0,IF(MOD(BV$3,$I77)=1,IF(PQS!$R77=\"NO\",1,0),IF(MOD(BV$3,Calculations!$J77)=1,1,0)))+Parts!$E$92*IF(Calculations!$K77=0,0,IF(MOD(BV$3,$I77)=1,0,IF(MOD(BV$3,Calculations!$K77)=1,1,0))))*$AU77)*(1+'Country Input'!$C$45)^(Calculations!BV$3-$BH$3)","v":1075},{"$f":"(($U77+($O77)*IF(MOD(BW$3,$I77)=1,1,0)+Parts!$E$91*IF($J77=0,0,IF(MOD(BW$3,$I77)=1,IF(PQS!$R77=\"NO\",1,0),IF(MOD(BW$3,Calculations!$J77)=1,1,0)))+Parts!$E$92*IF(Calculations!$K77=0,0,IF(MOD(BW$3,$I77)=1,0,IF(MOD(BW$3,Calculations!$K77)=1,1,0))))*$AU77)*(1+'Country Input'!$C$45)^(Calculations!BW$3-$BH$3)","v":1075},{"$f":"(($U77+($O77)*IF(MOD(BX$3,$I77)=1,1,0)+Parts!$E$91*IF($J77=0,0,IF(MOD(BX$3,$I77)=1,IF(PQS!$R77=\"NO\",1,0),IF(MOD(BX$3,Calculations!$J77)=1,1,0)))+Parts!$E$92*IF(Calculations!$K77=0,0,IF(MOD(BX$3,$I77)=1,0,IF(MOD(BX$3,Calculations!$K77)=1,1,0))))*$AU77)*(1+'Country Input'!$C$45)^(Calculations!BX$3-$BH$3)","v":1075},{"$f":"(($U77+($O77)*IF(MOD(BY$3,$I77)=1,1,0)+Parts!$E$91*IF($J77=0,0,IF(MOD(BY$3,$I77)=1,IF(PQS!$R77=\"NO\",1,0),IF(MOD(BY$3,Calculations!$J77)=1,1,0)))+Parts!$E$92*IF(Calculations!$K77=0,0,IF(MOD(BY$3,$I77)=1,0,IF(MOD(BY$3,Calculations!$K77)=1,1,0))))*$AU77)*(1+'Country Input'!$C$45)^(Calculations!BY$3-$BH$3)","v":1075},{"$f":"(($U77+($O77)*IF(MOD(BZ$3,$I77)=1,1,0)+Parts!$E$91*IF($J77=0,0,IF(MOD(BZ$3,$I77)=1,IF(PQS!$R77=\"NO\",1,0),IF(MOD(BZ$3,Calculations!$J77)=1,1,0)))+Parts!$E$92*IF(Calculations!$K77=0,0,IF(MOD(BZ$3,$I77)=1,0,IF(MOD(BZ$3,Calculations!$K77)=1,1,0))))*$AU77)*(1+'Country Input'!$C$45)^(Calculations!BZ$3-$BH$3)","v":1075},{"$f":"(($U77+($O77)*IF(MOD(CA$3,$I77)=1,1,0)+Parts!$E$91*IF($J77=0,0,IF(MOD(CA$3,$I77)=1,IF(PQS!$R77=\"NO\",1,0),IF(MOD(CA$3,Calculations!$J77)=1,1,0)))+Parts!$E$92*IF(Calculations!$K77=0,0,IF(MOD(CA$3,$I77)=1,0,IF(MOD(CA$3,Calculations!$K77)=1,1,0))))*$AU77)*(1+'Country Input'!$C$45)^(Calculations!CA$3-$BH$3)","v":1075},null,"B Medical TCW 40R SDD*",92472.261440000002,1075,1075,1075,1075,1075,1075,1075,1075,1075,92472.261440000002,1075,1075,1075,1075,1075,1075,1075,1075,1075,{"$f":"SUM(CD77:INDEX($CD77:$CW77,1,'Total Solution Costs'!$B$2))","v":102147.26144},null,"B Medical TCW 40R SDD*",{"$f":"SUM($BH77:BH77)","v":92472.261440000002},{"$f":"SUM($BH77:BI77)","v":93547.261440000002},{"$f":"SUM($BH77:BJ77)","v":94622.261440000002},{"$f":"SUM($BH77:BK77)","v":95697.261440000002},{"$f":"SUM($BH77:BL77)","v":96772.261440000002},{"$f":"SUM($BH77:BM77)","v":97847.261440000002},{"$f":"SUM($BH77:BN77)","v":98922.261440000002},{"$f":"SUM($BH77:BO77)","v":99997.261440000002},{"$f":"SUM($BH77:BP77)","v":101072.26144},{"$f":"SUM($BH77:BQ77)","v":102147.26144},{"$f":"SUM($BH77:BR77)","v":194619.52288},{"$f":"SUM($BH77:BS77)","v":195694.52288},{"$f":"SUM($BH77:BT77)","v":196769.52288},{"$f":"SUM($BH77:BU77)","v":197844.52288},{"$f":"SUM($BH77:BV77)","v":198919.52288},{"$f":"SUM($BH77:BW77)","v":199994.52288},{"$f":"SUM($BH77:BX77)","v":201069.52288},{"$f":"SUM($BH77:BY77)","v":202144.52288},{"$f":"SUM($BH77:BZ77)","v":203219.52288},{"$f":"SUM($BH77:CA77)","v":204294.52288}]
[{"$f":"PQS!A78","v":"SDD"},{"$f":"PQS!B78","v":"E003/069"},{"$f":"PQS!E78","v":"VLS 024 SDD*"},{"$f":"PQS!F78","v":"Vestfrost"},{"$f":"PQS!D78","v":"Vestfrost VLS 024 SDD*"},{"$f":"VLOOKUP(E78,PQS!$D$5:$K$107,COLUMN(PQS!$I$3)-COLUMN(PQS!$D$3)+1,FALSE)","v":25.5},{"$f":"VLOOKUP(E78,PQS!$D$5:$K$107,COLUMN(PQS!$J$3)-COLUMN(PQS!$D$3)+1,FALSE)","v":0},{"$f":"VLOOKUP(E78,PQS!$D$5:$K$107,COLUMN(PQS!$G$3)-COLUMN(PQS!$D$3)+1,FALSE)","v":"Yes"},{"$f":"HLOOKUP(B78,INDIRECT(\"'\"&A78&\"'!$10:$15\"),ROW('Technology template'!$A$11)-ROW('Technology template'!$A$10)+1,FALSE)","v":10},{"$f":"HLOOKUP(B78,INDIRECT(\"'\"&A78&\"'!$10:$15\"),ROW('Technology template'!$A$12)-ROW('Technology template'!$A$10)+1,FALSE)","v":10},{"$f":"HLOOKUP(B78,INDIRECT(\"'\"&A78&\"'!$10:$15\"),ROW('Technology template'!$A$13)-ROW('Technology template'!$A$10)+1,FALSE)","v":0},{"$f":"VLOOKUP(B78,PQS!$B:$Q,MATCH(PQS!$Q$3,PQS!$B$3:$Q$3,0),FALSE)*(1+'Country Input'!$C$47)+HLOOKUP(B78,INDIRECT(\"'\"&A78&\"'!$10:$15\"),ROW('Technology template'!$A$14)-ROW('Technology template'!$A$10)+1,FALSE)*(1+'Country Input'!$C$47)","v":3143.2855000000004},{"$f":"HLOOKUP(B78,INDIRECT(\"'\"&A78&\"'!$10:$80\"),MATCH('Technology template'!$A$27,INDIRECT(\"'\"&A78&\"'!$A$10:$A$80\"),0),FALSE)+'Labor and Maintenance '!$E$18","v":1042},{"$f":"VLOOKUP(B78,PQS!B:T,MATCH(PQS!$T$3,PQS!$B$3:$T$3,0),FALSE)*(1+'Country Input'!$C$47)","v":546.71478800000011},4732.0002880000002,473.20002880000004,{"$f":"VLOOKUP(B78,PQS!$B:$AE,COLUMN(PQS!AD76)-1,FALSE)","v":0},{"$f":"IFERROR(1/HLOOKUP(B78,INDIRECT(\"'\"&A78&\"'!$10:$80\"),MATCH('Technology template'!$A$31,INDIRECT(\"'\"&A78&\"'!$A$10:$A$80\"),0),FALSE)*HLOOKUP(B78,INDIRECT(\"'\"&A78&\"'!$10:$80\"),MATCH('Technology template'!$A$41,INDIRECT(\"'\"&A78&\"'!$A10:$A$80\"),0),FALSE),0)*TechnicianHourlyWage+IF(A78=\"Solar w Battery\",1/'Labor and Maintenance '!$E$53*'Labor and Maintenance '!$D$53,0)+IF(A78=\"LT passive\", 1/'Labor and Maintenance '!$E$81*'Labor and Maintenance '!$D$81,0)","v":24},{"$f":"IFERROR(1/HLOOKUP(B78,INDIRECT(\"'\"&A78&\"'!$10:$80\"),MATCH('Technology template'!$A$34,INDIRECT(\"'\"&A78&\"'!$A$10:$A$80\"),0),FALSE)*(HLOOKUP(B78,INDIRECT(\"'\"&A78&\"'!$10:$80\"),MATCH('Technology template'!$A$44,INDIRECT(\"'\"&A78&\"'!$A10:$A$80\"),0),FALSE)*TechnicianHourlyWage+RemoteTravelCostPerDay),0)+IFERROR(1/HLOOKUP(B78,INDIRECT(\"'\"&A78&\"'!$10:$80\"),MATCH('Technology template'!$A$35,INDIRECT(\"'\"&A78&\"'!$A$10:$A$80\"),0),FALSE)*(HLOOKUP(B78,INDIRECT(\"'\"&A78&\"'!$10:$80\"),MATCH('Technology template'!$A$45,INDIRECT(\"'\"&A78&\"'!$A10:$A$80\"),0),FALSE)*TechnicianHourlyWage+RemoteTravelCostPerDay),0)+IFERROR(1/HLOOKUP(B78,INDIRECT(\"'\"&A78&\"'!$10:$80\"),MATCH('Technology template'!$A$37,INDIRECT(\"'\"&A78&\"'!$A$10:$A$80\"),0),FALSE)*(HLOOKUP(B78,INDIRECT(\"'\"&A78&\"'!$10:$80\"),MATCH('Technology template'!$A$46,INDIRECT(\"'\"&A78&\"'!$A10:$A$80\"),0),FALSE)*TechnicianHourlyWage+'Labor and Maintenance '!$B$8),0)","v":83.5},1075,107.5,580.70002880000004,null,"Vestfrost VLS 024 SDD*",185.56863874509804,42.156862745098039,227.72550149019608,null,"Vestfrost VLS 024 SDD*",18.556863874509805,4.215686274509804,22.772550149019608,null,"Vestfrost VLS 024 SDD*",5,23660.00144,5375,29035.00144,null,"Vestfrost VLS 024 SDD*",5,92.784319372549021,21.078431372549019,113.86275074509804,null,"Vestfrost VLS 024 SDD*",{"$f":"IF(F78=0, 'Country Input'!$D$7, ROUNDUP(LitersPerFacility/F78,0)*'Country Input'!$D$7)","v":10},47320.00288,1075,48395.00288,null,"Vestfrost VLS 024 SDD*",{"$f":"ROUNDUP(LitersPerFacility/F78,0)*'Country Input'!$D$7*ROUNDUP('Total Solution Costs'!$B$2/Calculations!I78,0)","v":10},185.56863874509804,4.215686274509804,189.78432501960785,null,null,"Vestfrost VLS 024 SDD*",{"$f":"(($U78+($O78)*IF(MOD(BH$3,$I78)=1,1,0)+Parts!$E$91*IF($J78=0,0,IF(MOD(BH$3,$I78)=1,IF(PQS!$R78=\"NO\",1,0),IF(MOD(BH$3,Calculations!$J78)=1,1,0)))+Parts!$E$92*IF(Calculations!$K78=0,0,IF(MOD(BH$3,$I78)=1,0,IF(MOD(BH$3,Calculations!$K78)=1,1,0))))*$AU78)*(1+'Country Input'!$C$45)^(Calculations!BH$3-$BH$3)+TrainingCost","v":48395.00288},{"$f":"(($U78+($O78)*IF(MOD(BI$3,$I78)=1,1,0)+Parts!$E$91*IF($J78=0,0,IF(MOD(BI$3,$I78)=1,IF(PQS!$R78=\"NO\",1,0),IF(MOD(BI$3,Calculations!$J78)=1,1,0)))+Parts!$E$92*IF(Calculations!$K78=0,0,IF(MOD(BI$3,$I78)=1,0,IF(MOD(BI$3,Calculations!$K78)=1,1,0))))*$AU78)*(1+'Country Input'!$C$45)^(Calculations!BI$3-$BH$3)","v":1075},{"$f":"(($U78+($O78)*IF(MOD(BJ$3,$I78)=1,1,0)+Parts!$E$91*IF($J78=0,0,IF(MOD(BJ$3,$I78)=1,IF(PQS!$R78=\"NO\",1,0),IF(MOD(BJ$3,Calculations!$J78)=1,1,0)))+Parts!$E$92*IF(Calculations!$K78=0,0,IF(MOD(BJ$3,$I78)=1,0,IF(MOD(BJ$3,Calculations!$K78)=1,1,0))))*$AU78)*(1+'Country Input'!$C$45)^(Calculations!BJ$3-$BH$3)","v":1075},{"$f":"(($U78+($O78)*IF(MOD(BK$3,$I78)=1,1,0)+Parts!$E$91*IF($J78=0,0,IF(MOD(BK$3,$I78)=1,IF(PQS!$R78=\"NO\",1,0),IF(MOD(BK$3,Calculations!$J78)=1,1,0)))+Parts!$E$92*IF(Calculations!$K78=0,0,IF(MOD(BK$3,$I78)=1,0,IF(MOD(BK$3,Calculations!$K78)=1,1,0))))*$AU78)*(1+'Country Input'!$C$45)^(Calculations!BK$3-$BH$3)","v":1075},{"$f":"(($U78+($O78)*IF(MOD(BL$3,$I78)=1,1,0)+Parts!$E$91*IF($J78=0,0,IF(MOD(BL$3,$I78)=1,IF(PQS!$R78=\"NO\",1,0),IF(MOD(BL$3,Calculations!$J78)=1,1,0)))+Parts!$E$92*IF(Calculations!$K78=0,0,IF(MOD(BL$3,$I78)=1,0,IF(MOD(BL$3,Calculations!$K78)=1,1,0))))*$AU78)*(1+'Country Input'!$C$45)^(Calculations!BL$3-$BH$3)","v":1075},{"$f":"(($U78+($O78)*IF(MOD(BM$3,$I78)=1,1,0)+Parts!$E$91*IF($J78=0,0,IF(MOD(BM$3,$I78)=1,IF(PQS!$R78=\"NO\",1,0),IF(MOD(BM$3,Calculations!$J78)=1,1,0)))+Parts!$E$92*IF(Calculations!$K78=0,0,IF(MOD(BM$3,$I78)=1,0,IF(MOD(BM$3,Calculations!$K78)=1,1,0))))*$AU78)*(1+'Country Input'!$C$45)^(Calculations!BM$3-$BH$3)","v":1075},{"$f":"(($U78+($O78)*IF(MOD(BN$3,$I78)=1,1,0)+Parts!$E$91*IF($J78=0,0,IF(MOD(BN$3,$I78)=1,IF(PQS!$R78=\"NO\",1,0),IF(MOD(BN$3,Calculations!$J78)=1,1,0)))+Parts!$E$92*IF(Calculations!$K78=0,0,IF(MOD(BN$3,$I78)=1,0,IF(MOD(BN$3,Calculations!$K78)=1,1,0))))*$AU78)*(1+'Country Input'!$C$45)^(Calculations!BN$3-$BH$3)","v":1075},{"$f":"(($U78+($O78)*IF(MOD(BO$3,$I78)=1,1,0)+Parts!$E$91*IF($J78=0,0,IF(MOD(BO$3,$I78)=1,IF(PQS!$R78=\"NO\",1,0),IF(MOD(BO$3,Calculations!$J78)=1,1,0)))+Parts!$E$92*IF(Calculations!$K78=0,0,IF(MOD(BO$3,$I78)=1,0,IF(MOD(BO$3,Calculations!$K78)=1,1,0))))*$AU78)*(1+'Country Input'!$C$45)^(Calculations!BO$3-$BH$3)","v":1075},{"$f":"(($U78+($O78)*IF(MOD(BP$3,$I78)=1,1,0)+Parts!$E$91*IF($J78=0,0,IF(MOD(BP$3,$I78)=1,IF(PQS!$R78=\"NO\",1,0),IF(MOD(BP$3,Calculations!$J78)=1,1,0)))+Parts!$E$92*IF(Calculations!$K78=0,0,IF(MOD(BP$3,$I78)=1,0,IF(MOD(BP$3,Calculations!$K78)=1,1,0))))*$AU78)*(1+'Country Input'!$C$45)^(Calculations!BP$3-$BH$3)","v":1075},{"$f":"(($U78+($O78)*IF(MOD(BQ$3,$I78)=1,1,0)+Parts!$E$91*IF($J78=0,0,IF(MOD(BQ$3,$I78)=1,IF(PQS!$R78=\"NO\",1,0),IF(MOD(BQ$3,Calculations!$J78)=1,1,0)))+Parts!$E$92*IF(Calculations!$K78=0,0,IF(MOD(BQ$3,$I78)=1,0,IF(MOD(BQ$3,Calculations!$K78)=1,1,0))))*$AU78)*(1+'Country Input'!$C$45)^(Calculations!BQ$3-$BH$3)","v":1075},{"$f":"(($U78+($O78)*IF(MOD(BR$3,$I78)=1,1,0)+Parts!$E$91*IF($J78=0,0,IF(MOD(BR$3,$I78)=1,IF(PQS!$R78=\"NO\",1,0),IF(MOD(BR$3,Calculations!$J78)=1,1,0)))+Parts!$E$92*IF(Calculations!$K78=0,0,IF(MOD(BR$3,$I78)=1,0,IF(MOD(BR$3,Calculations!$K78)=1,1,0))))*$AU78)*(1+'Country Input'!$C$45)^(Calculations!BR$3-$BH$3)","v":48395.00288},{"$f":"(($U78+($O78)*IF(MOD(BS$3,$I78)=1,1,0)+Parts!$E$91*IF($J78=0,0,IF(MOD(BS$3,$I78)=1,IF(PQS!$R78=\"NO\",1,0),IF(MOD(BS$3,Calculations!$J78)=1,1,0)))+Parts!$E$92*IF(Calculations!$K78=0,0,IF(MOD(BS$3,$I78)=1,0,IF(MOD(BS$3,Calculations!$K78)=1,1,0))))*$AU78)*(1+'Country Input'!$C$45)^(Calculations!BS$3-$BH$3)","v":1075},{"$f":"(($U78+($O78)*IF(MOD(BT$3,$I78)=1,1,0)+Parts!$E$91*IF($J78=0,0,IF(MOD(BT$3,$I78)=1,IF(PQS!$R78=\"NO\",1,0),IF(MOD(BT$3,Calculations!$J78)=1,1,0)))+Parts!$E$92*IF(Calculations!$K78=0,0,IF(MOD(BT$3,$I78)=1,0,IF(MOD(BT$3,Calculations!$K78)=1,1,0))))*$AU78)*(1+'Country Input'!$C$45)^(Calculations!BT$3-$BH$3)","v":1075},{"$f":"(($U78+($O78)*IF(MOD(BU$3,$I78)=1,1,0)+Parts!$E$91*IF($J78=0,0,IF(MOD(BU$3,$I78)=1,IF(PQS!$R78=\"NO\",1,0),IF(MOD(BU$3,Calculations!$J78)=1,1,0)))+Parts!$E$92*IF(Calculations!$K78=0,0,IF(MOD(BU$3,$I78)=1,0,IF(MOD(BU$3,Calculations!$K78)=1,1,0))))*$AU78)*(1+'Country Input'!$C$45)^(Calculations!BU$3-$BH$3)","v":1075},{"$f":"(($U78+($O78)*IF(MOD(BV$3,$I78)=1,1,0)+Parts!$E$91*IF($J78=0,0,IF(MOD(BV$3,$I78)=1,IF(PQS!$R78=\"NO\",1,0),IF(MOD(BV$3,Calculations!$J78)=1,1,0)))+Parts!$E$92*IF(Calculations!$K78=0,0,IF(MOD(BV$3,$I78)=1,0,IF(MOD(BV$3,Calculations!$K78)=1,1,0))))*$AU78)*(1+'Country Input'!$C$45)^(Calculations!BV$3-$BH$3)","v":1075},{"$f":"(($U78+($O78)*IF(MOD(BW$3,$I78)=1,1,0)+Parts!$E$91*IF($J78=0,0,IF(MOD(BW$3,$I78)=1,IF(PQS!$R78=\"NO\",1,0),IF(MOD(BW$3,Calculations!$J78)=1,1,0)))+Parts!$E$92*IF(Calculations!$K78=0,0,IF(MOD(BW$3,$I78)=1,0,IF(MOD(BW$3,Calculations!$K78)=1,1,0))))*$AU78)*(1+'Country Input'!$C$45)^(Calculations!BW$3-$BH$3)","v":1075},{"$f":"(($U78+($O78)*IF(MOD(BX$3,$I78)=1,1,0)+Parts!$E$91*IF($J78=0,0,IF(MOD(BX$3,$I78)=1,IF(PQS!$R78=\"NO\",1,0),IF(MOD(BX$3,Calculations!$J78)=1,1,0)))+Parts!$E$92*IF(Calculations!$K78=0,0,IF(MOD(BX$3,$I78)=1,0,IF(MOD(BX$3,Calculations!$K78)=1,1,0))))*$AU78)*(1+'Country Input'!$C$45)^(Calculations!BX$3-$BH$3)","v":1075},{"$f":"(($U78+($O78)*IF(MOD(BY$3,$I78)=1,1,0)+Parts!$E$91*IF($J78=0,0,IF(MOD(BY$3,$I78)=1,IF(PQS!$R78=\"NO\",1,0),IF(MOD(BY$3,Calculations!$J78)=1,1,0)))+Parts!$E$92*IF(Calculations!$K78=0,0,IF(MOD(BY$3,$I78)=1,0,IF(MOD(BY$3,Calculations!$K78)=1,1,0))))*$AU78)*(1+'Country Input'!$C$45)^(Calculations!BY$3-$BH$3)","v":1075},{"$f":"(($U78+($O78)*IF(MOD(BZ$3,$I78)=1,1,0)+Parts!$E$91*IF($J78=0,0,IF(MOD(BZ$3,$I78)=1,IF(PQS!$R78=\"NO\",1,0),IF(MOD(BZ$3,Calculations!$J78)=1,1,0)))+Parts!$E$92*IF(Calculations!$K78=0,0,IF(MOD(BZ$3,$I78)=1,0,IF(MOD(BZ$3,Calculations!$K78)=1,1,0))))*$AU78)*(1+'Country Input'!$C$45)^(Calculations!BZ$3-$BH$3)","v":1075},{"$f":"(($U78+($O78)*IF(MOD(CA$3,$I78)=1,1,0)+Parts!$E$91*IF($J78=0,0,IF(MOD(CA$3,$I78)=1,IF(PQS!$R78=\"NO\",1,0),IF(MOD(CA$3,Calculations!$J78)=1,1,0)))+Parts!$E$92*IF(Calculations!$K78=0,0,IF(MOD(CA$3,$I78)=1,0,IF(MOD(CA$3,Calculations!$K78)=1,1,0))))*$AU78)*(1+'Country Input'!$C$45)^(Calculations!CA$3-$BH$3)","v":1075},null,"Vestfrost VLS 024 SDD*",48395.00288,1075,1075,1075,1075,1075,1075,1075,1075,1075,48395.00288,1075,1075,1075,1075,1075,1075,1075,1075,1075,{"$f":"SUM(CD78:INDEX($CD78:$CW78,1,'Total Solution Costs'!$B$2))","v":58070.00288},null,"Vestfrost VLS 024 SDD*",{"$f":"SUM($BH78:BH78)","v":48395.00288},{"$f":"SUM($BH78:BI78)","v":49470.00288},{"$f":"SUM($BH78:BJ78)","v":50545.00288},{"$f":"SUM($BH78:BK78)","v":51620.00288},{"$f":"SUM($BH78:BL78)","v":52695.00288},{"$f":"SUM($BH78:BM78)","v":53770.00288},{"$f":"SUM($BH78:BN78)","v":54845.00288},{"$f":"SUM($BH78:BO78)","v":55920.00288},{"$f":"SUM($BH78:BP78)","v":56995.00288},{"$f":"SUM($BH78:BQ78)","v":58070.00288},{"$f":"SUM($BH78:BR78)","v":106465.00576},{"$f":"SUM($BH78:BS78)","v":107540.00576},{"$f":"SUM($BH78:BT78)","v":108615.00576},{"$f":"SUM($BH78:BU78)","v":109690.00576},{"$f":"SUM($BH78:BV78)","v":110765.00576},{"$f":"SUM($BH78:BW78)","v":111840.00576},{"$f":"SUM($BH78:BX78)","v":112915.00576},{"$f":"SUM($BH78:BY78)","v":113990.00576},{"$f":"SUM($BH78:BZ78)","v":115065.00576},{"$f":"SUM($BH78:CA78)","v":116140.00576}]
[{"$f":"PQS!A79","v":"SDD"},{"$f":"PQS!B79","v":"E003/074"},{"$f":"PQS!E79","v":"HTCD 90 SDD*"},{"$f":"PQS!F79","v":"Haier"},{"$f":"PQS!D79","v":"Haier HTCD 90 SDD*"},{"$f":"VLOOKUP(E79,PQS!$D$5:$K$107,COLUMN(PQS!$I$3)-COLUMN(PQS!$D$3)+1,FALSE)","v":37.5},{"$f":"VLOOKUP(E79,PQS!$D$5:$K$107,COLUMN(PQS!$J$3)-COLUMN(PQS!$D$3)+1,FALSE)","v":32},{"$f":"VLOOKUP(E79,PQS!$D$5:$K$107,COLUMN(PQS!$G$3)-COLUMN(PQS!$D$3)+1,FALSE)","v":"Yes"},{"$f":"HLOOKUP(B79,INDIRECT(\"'\"&A79&\"'!$10:$15\"),ROW('Technology template'!$A$11)-ROW('Technology template'!$A$10)+1,FALSE)","v":10},{"$f":"HLOOKUP(B79,INDIRECT(\"'\"&A79&\"'!$10:$15\"),ROW('Technology template'!$A$12)-ROW('Technology template'!$A$10)+1,FALSE)","v":10},{"$f":"HLOOKUP(B79,INDIRECT(\"'\"&A79&\"'!$10:$15\"),ROW('Technology template'!$A$13)-ROW('Technology template'!$A$10)+1,FALSE)","v":0},{"$f":"VLOOKUP(B79,PQS!$B:$Q,MATCH(PQS!$Q$3,PQS!$B$3:$Q$3,0),FALSE)*(1+'Country Input'!$C$47)+HLOOKUP(B79,INDIRECT(\"'\"&A79&\"'!$10:$15\"),ROW('Technology template'!$A$14)-ROW('Technology template'!$A$10)+1,FALSE)*(1+'Country Input'!$C$47)","v":4943.3999999999996},{"$f":"HLOOKUP(B79,INDIRECT(\"'\"&A79&\"'!$10:$80\"),MATCH('Technology template'!$A$27,INDIRECT(\"'\"&A79&\"'!$A$10:$A$80\"),0),FALSE)+'Labor and Maintenance '!$E$18","v":1042},{"$f":"VLOOKUP(B79,PQS!B:T,MATCH(PQS!$T$3,PQS!$B$3:$T$3,0),FALSE)*(1+'Country Input'!$C$47)","v":343.44860000000006},6328.8485999999994,632.88485999999989,{"$f":"VLOOKUP(B79,PQS!$B:$AE,COLUMN(PQS!AD77)-1,FALSE)","v":0},{"$f":"IFERROR(1/HLOOKUP(B79,INDIRECT(\"'\"&A79&\"'!$10:$80\"),MATCH('Technology template'!$A$31,INDIRECT(\"'\"&A79&\"'!$A$10:$A$80\"),0),FALSE)*HLOOKUP(B79,INDIRECT(\"'\"&A79&\"'!$10:$80\"),MATCH('Technology template'!$A$41,INDIRECT(\"'\"&A79&\"'!$A10:$A$80\"),0),FALSE),0)*TechnicianHourlyWage+IF(A79=\"Solar w Battery\",1/'Labor and Maintenance '!$E$53*'Labor and Maintenance '!$D$53,0)+IF(A79=\"LT passive\", 1/'Labor and Maintenance '!$E$81*'Labor and Maintenance '!$D$81,0)","v":24},{"$f":"IFERROR(1/HLOOKUP(B79,INDIRECT(\"'\"&A79&\"'!$10:$80\"),MATCH('Technology template'!$A$34,INDIRECT(\"'\"&A79&\"'!$A$10:$A$80\"),0),FALSE)*(HLOOKUP(B79,INDIRECT(\"'\"&A79&\"'!$10:$80\"),MATCH('Technology template'!$A$44,INDIRECT(\"'\"&A79&\"'!$A10:$A$80\"),0),FALSE)*TechnicianHourlyWage+RemoteTravelCostPerDay),0)+IFERROR(1/HLOOKUP(B79,INDIRECT(\"'\"&A79&\"'!$10:$80\"),MATCH('Technology template'!$A$35,INDIRECT(\"'\"&A79&\"'!$A$10:$A$80\"),0),FALSE)*(HLOOKUP(B79,INDIRECT(\"'\"&A79&\"'!$10:$80\"),MATCH('Technology template'!$A$45,INDIRECT(\"'\"&A79&\"'!$A10:$A$80\"),0),FALSE)*TechnicianHourlyWage+RemoteTravelCostPerDay),0)+IFERROR(1/HLOOKUP(B79,INDIRECT(\"'\"&A79&\"'!$10:$80\"),MATCH('Technology template'!$A$37,INDIRECT(\"'\"&A79&\"'!$A$10:$A$80\"),0),FALSE)*(HLOOKUP(B79,INDIRECT(\"'\"&A79&\"'!$10:$80\"),MATCH('Technology template'!$A$46,INDIRECT(\"'\"&A79&\"'!$A10:$A$80\"),0),FALSE)*TechnicianHourlyWage+'Labor and Maintenance '!$B$8),0)","v":83.5},1075,107.5,740.38485999999989,null,"Haier HTCD 90 SDD*",168.76929599999997,28.666666666666668,197.43596266666663,null,"Haier HTCD 90 SDD*",16.876929599999997,2.8666666666666667,19.743596266666664,null,"Haier HTCD 90 SDD*",4,25315.394399999997,4300,29615.394399999997,null,"Haier HTCD 90 SDD*",4,67.507718399999987,11.466666666666667,78.974385066666656,null,"Haier HTCD 90 SDD*",{"$f":"IF(F79=0, 'Country Input'!$D$7, ROUNDUP(LitersPerFacility/F79,0)*'Country Input'!$D$7)","v":10},63288.48599999999,1075,64363.48599999999,null,"Haier HTCD 90 SDD*",{"$f":"ROUNDUP(LitersPerFacility/F79,0)*'Country Input'!$D$7*ROUNDUP('Total Solution Costs'!$B$2/Calculations!I79,0)","v":10},168.76929599999997,2.8666666666666667,171.63596266666664,null,null,"Haier HTCD 90 SDD*",{"$f":"(($U79+($O79)*IF(MOD(BH$3,$I79)=1,1,0)+Parts!$E$91*IF($J79=0,0,IF(MOD(BH$3,$I79)=1,IF(PQS!$R79=\"NO\",1,0),IF(MOD(BH$3,Calculations!$J79)=1,1,0)))+Parts!$E$92*IF(Calculations!$K79=0,0,IF(MOD(BH$3,$I79)=1,0,IF(MOD(BH$3,Calculations!$K79)=1,1,0))))*$AU79)*(1+'Country Input'!$C$45)^(Calculations!BH$3-$BH$3)+TrainingCost","v":79363.48599999999},{"$f":"(($U79+($O79)*IF(MOD(BI$3,$I79)=1,1,0)+Parts!$E$91*IF($J79=0,0,IF(MOD(BI$3,$I79)=1,IF(PQS!$R79=\"NO\",1,0),IF(MOD(BI$3,Calculations!$J79)=1,1,0)))+Parts!$E$92*IF(Calculations!$K79=0,0,IF(MOD(BI$3,$I79)=1,0,IF(MOD(BI$3,Calculations!$K79)=1,1,0))))*$AU79)*(1+'Country Input'!$C$45)^(Calculations!BI$3-$BH$3)","v":1075},{"$f":"(($U79+($O79)*IF(MOD(BJ$3,$I79)=1,1,0)+Parts!$E$91*IF($J79=0,0,IF(MOD(BJ$3,$I79)=1,IF(PQS!$R79=\"NO\",1,0),IF(MOD(BJ$3,Calculations!$J79)=1,1,0)))+Parts!$E$92*IF(Calculations!$K79=0,0,IF(MOD(BJ$3,$I79)=1,0,IF(MOD(BJ$3,Calculations!$K79)=1,1,0))))*$AU79)*(1+'Country Input'!$C$45)^(Calculations!BJ$3-$BH$3)","v":1075},{"$f":"(($U79+($O79)*IF(MOD(BK$3,$I79)=1,1,0)+Parts!$E$91*IF($J79=0,0,IF(MOD(BK$3,$I79)=1,IF(PQS!$R79=\"NO\",1,0),IF(MOD(BK$3,Calculations!$J79)=1,1,0)))+Parts!$E$92*IF(Calculations!$K79=0,0,IF(MOD(BK$3,$I79)=1,0,IF(MOD(BK$3,Calculations!$K79)=1,1,0))))*$AU79)*(1+'Country Input'!$C$45)^(Calculations!BK$3-$BH$3)","v":1075},{"$f":"(($U79+($O79)*IF(MOD(BL$3,$I79)=1,1,0)+Parts!$E$91*IF($J79=0,0,IF(MOD(BL$3,$I79)=1,IF(PQS!$R79=\"NO\",1,0),IF(MOD(BL$3,Calculations!$J79)=1,1,0)))+Parts!$E$92*IF(Calculations!$K79=0,0,IF(MOD(BL$3,$I79)=1,0,IF(MOD(BL$3,Calculations!$K79)=1,1,0))))*$AU79)*(1+'Country Input'!$C$45)^(Calculations!BL$3-$BH$3)","v":1075},{"$f":"(($U79+($O79)*IF(MOD(BM$3,$I79)=1,1,0)+Parts!$E$91*IF($J79=0,0,IF(MOD(BM$3,$I79)=1,IF(PQS!$R79=\"NO\",1,0),IF(MOD(BM$3,Calculations!$J79)=1,1,0)))+Parts!$E$92*IF(Calculations!$K79=0,0,IF(MOD(BM$3,$I79)=1,0,IF(MOD(BM$3,Calculations!$K79)=1,1,0))))*$AU79)*(1+'Country Input'!$C$45)^(Calculations!BM$3-$BH$3)","v":1075},{"$f":"(($U79+($O79)*IF(MOD(BN$3,$I79)=1,1,0)+Parts!$E$91*IF($J79=0,0,IF(MOD(BN$3,$I79)=1,IF(PQS!$R79=\"NO\",1,0),IF(MOD(BN$3,Calculations!$J79)=1,1,0)))+Parts!$E$92*IF(Calculations!$K79=0,0,IF(MOD(BN$3,$I79)=1,0,IF(MOD(BN$3,Calculations!$K79)=1,1,0))))*$AU79)*(1+'Country Input'!$C$45)^(Calculations!BN$3-$BH$3)","v":1075},{"$f":"(($U79+($O79)*IF(MOD(BO$3,$I79)=1,1,0)+Parts!$E$91*IF($J79=0,0,IF(MOD(BO$3,$I79)=1,IF(PQS!$R79=\"NO\",1,0),IF(MOD(BO$3,Calculations!$J79)=1,1,0)))+Parts!$E$92*IF(Calculations!$K79=0,0,IF(MOD(BO$3,$I79)=1,0,IF(MOD(BO$3,Calculations!$K79)=1,1,0))))*$AU79)*(1+'Country Input'!$C$45)^(Calculations!BO$3-$BH$3)","v":1075},{"$f":"(($U79+($O79)*IF(MOD(BP$3,$I79)=1,1,0)+Parts!$E$91*IF($J79=0,0,IF(MOD(BP$3,$I79)=1,IF(PQS!$R79=\"NO\",1,0),IF(MOD(BP$3,Calculations!$J79)=1,1,0)))+Parts!$E$92*IF(Calculations!$K79=0,0,IF(MOD(BP$3,$I79)=1,0,IF(MOD(BP$3,Calculations!$K79)=1,1,0))))*$AU79)*(1+'Country Input'!$C$45)^(Calculations!BP$3-$BH$3)","v":1075},{"$f":"(($U79+($O79)*IF(MOD(BQ$3,$I79)=1,1,0)+Parts!$E$91*IF($J79=0,0,IF(MOD(BQ$3,$I79)=1,IF(PQS!$R79=\"NO\",1,0),IF(MOD(BQ$3,Calculations!$J79)=1,1,0)))+Parts!$E$92*IF(Calculations!$K79=0,0,IF(MOD(BQ$3,$I79)=1,0,IF(MOD(BQ$3,Calculations!$K79)=1,1,0))))*$AU79)*(1+'Country Input'!$C$45)^(Calculations!BQ$3-$BH$3)","v":1075},{"$f":"(($U79+($O79)*IF(MOD(BR$3,$I79)=1,1,0)+Parts!$E$91*IF($J79=0,0,IF(MOD(BR$3,$I79)=1,IF(PQS!$R79=\"NO\",1,0),IF(MOD(BR$3,Calculations!$J79)=1,1,0)))+Parts!$E$92*IF(Calculations!$K79=0,0,IF(MOD(BR$3,$I79)=1,0,IF(MOD(BR$3,Calculations!$K79)=1,1,0))))*$AU79)*(1+'Country Input'!$C$45)^(Calculations!BR$3-$BH$3)","v":79363.48599999999},{"$f":"(($U79+($O79)*IF(MOD(BS$3,$I79)=1,1,0)+Parts!$E$91*IF($J79=0,0,IF(MOD(BS$3,$I79)=1,IF(PQS!$R79=\"NO\",1,0),IF(MOD(BS$3,Calculations!$J79)=1,1,0)))+Parts!$E$92*IF(Calculations!$K79=0,0,IF(MOD(BS$3,$I79)=1,0,IF(MOD(BS$3,Calculations!$K79)=1,1,0))))*$AU79)*(1+'Country Input'!$C$45)^(Calculations!BS$3-$BH$3)","v":1075},{"$f":"(($U79+($O79)*IF(MOD(BT$3,$I79)=1,1,0)+Parts!$E$91*IF($J79=0,0,IF(MOD(BT$3,$I79)=1,IF(PQS!$R79=\"NO\",1,0),IF(MOD(BT$3,Calculations!$J79)=1,1,0)))+Parts!$E$92*IF(Calculations!$K79=0,0,IF(MOD(BT$3,$I79)=1,0,IF(MOD(BT$3,Calculations!$K79)=1,1,0))))*$AU79)*(1+'Country Input'!$C$45)^(Calculations!BT$3-$BH$3)","v":1075},{"$f":"(($U79+($O79)*IF(MOD(BU$3,$I79)=1,1,0)+Parts!$E$91*IF($J79=0,0,IF(MOD(BU$3,$I79)=1,IF(PQS!$R79=\"NO\",1,0),IF(MOD(BU$3,Calculations!$J79)=1,1,0)))+Parts!$E$92*IF(Calculations!$K79=0,0,IF(MOD(BU$3,$I79)=1,0,IF(MOD(BU$3,Calculations!$K79)=1,1,0))))*$AU79)*(1+'Country Input'!$C$45)^(Calculations!BU$3-$BH$3)","v":1075},{"$f":"(($U79+($O79)*IF(MOD(BV$3,$I79)=1,1,0)+Parts!$E$91*IF($J79=0,0,IF(MOD(BV$3,$I79)=1,IF(PQS!$R79=\"NO\",1,0),IF(MOD(BV$3,Calculations!$J79)=1,1,0)))+Parts!$E$92*IF(Calculations!$K79=0,0,IF(MOD(BV$3,$I79)=1,0,IF(MOD(BV$3,Calculations!$K79)=1,1,0))))*$AU79)*(1+'Country Input'!$C$45)^(Calculations!BV$3-$BH$3)","v":1075},{"$f":"(($U79+($O79)*IF(MOD(BW$3,$I79)=1,1,0)+Parts!$E$91*IF($J79=0,0,IF(MOD(BW$3,$I79)=1,IF(PQS!$R79=\"NO\",1,0),IF(MOD(BW$3,Calculations!$J79)=1,1,0)))+Parts!$E$92*IF(Calculations!$K79=0,0,IF(MOD(BW$3,$I79)=1,0,IF(MOD(BW$3,Calculations!$K79)=1,1,0))))*$AU79)*(1+'Country Input'!$C$45)^(Calculations!BW$3-$BH$3)","v":1075},{"$f":"(($U79+($O79)*IF(MOD(BX$3,$I79)=1,1,0)+Parts!$E$91*IF($J79=0,0,IF(MOD(BX$3,$I79)=1,IF(PQS!$R79=\"NO\",1,0),IF(MOD(BX$3,Calculations!$J79)=1,1,0)))+Parts!$E$92*IF(Calculations!$K79=0,0,IF(MOD(BX$3,$I79)=1,0,IF(MOD(BX$3,Calculations!$K79)=1,1,0))))*$AU79)*(1+'Country Input'!$C$45)^(Calculations!BX$3-$BH$3)","v":1075},{"$f":"(($U79+($O79)*IF(MOD(BY$3,$I79)=1,1,0)+Parts!$E$91*IF($J79=0,0,IF(MOD(BY$3,$I79)=1,IF(PQS!$R79=\"NO\",1,0),IF(MOD(BY$3,Calculations!$J79)=1,1,0)))+Parts!$E$92*IF(Calculations!$K79=0,0,IF(MOD(BY$3,$I79)=1,0,IF(MOD(BY$3,Calculations!$K79)=1,1,0))))*$AU79)*(1+'Country Input'!$C$45)^(Calculations!BY$3-$BH$3)","v":1075},{"$f":"(($U79+($O79)*IF(MOD(BZ$3,$I79)=1,1,0)+Parts!$E$91*IF($J79=0,0,IF(MOD(BZ$3,$I79)=1,IF(PQS!$R79=\"NO\",1,0),IF(MOD(BZ$3,Calculations!$J79)=1,1,0)))+Parts!$E$92*IF(Calculations!$K79=0,0,IF(MOD(BZ$3,$I79)=1,0,IF(MOD(BZ$3,Calculations!$K79)=1,1,0))))*$AU79)*(1+'Country Input'!$C$45)^(Calculations!BZ$3-$BH$3)","v":1075},{"$f":"(($U79+($O79)*IF(MOD(CA$3,$I79)=1,1,0)+Parts!$E$91*IF($J79=0,0,IF(MOD(CA$3,$I79)=1,IF(PQS!$R79=\"NO\",1,0),IF(MOD(CA$3,Calculations!$J79)=1,1,0)))+Parts!$E$92*IF(Calculations!$K79=0,0,IF(MOD(CA$3,$I79)=1,0,IF(MOD(CA$3,Calculations!$K79)=1,1,0))))*$AU79)*(1+'Country Input'!$C$45)^(Calculations!CA$3-$BH$3)","v":1075},null,"Haier HTCD 90 SDD*",79363.48599999999,1075,1075,1075,1075,1075,1075,1075,1075,1075,79363.48599999999,1075,1075,1075,1075,1075,1075,1075,1075,1075,{"$f":"SUM(CD79:INDEX($CD79:$CW79,1,'Total Solution Costs'!$B$2))","v":89038.48599999999},null,"Haier HTCD 90 SDD*",{"$f":"SUM($BH79:BH79)","v":79363.48599999999},{"$f":"SUM($BH79:BI79)","v":80438.48599999999},{"$f":"SUM($BH79:BJ79)","v":81513.48599999999},{"$f":"SUM($BH79:BK79)","v":82588.48599999999},{"$f":"SUM($BH79:BL79)","v":83663.48599999999},{"$f":"SUM($BH79:BM79)","v":84738.48599999999},{"$f":"SUM($BH79:BN79)","v":85813.48599999999},{"$f":"SUM($BH79:BO79)","v":86888.48599999999},{"$f":"SUM($BH79:BP79)","v":87963.48599999999},{"$f":"SUM($BH79:BQ79)","v":89038.48599999999},{"$f":"SUM($BH79:BR79)","v":168401.97199999998},{"$f":"SUM($BH79:BS79)","v":169476.97199999998},{"$f":"SUM($BH79:BT79)","v":170551.97199999998},{"$f":"SUM($BH79:BU79)","v":171626.97199999998},{"$f":"SUM($BH79:BV79)","v":172701.97199999998},{"$f":"SUM($BH79:BW79)","v":173776.97199999998},{"$f":"SUM($BH79:BX79)","v":174851.97199999998},{"$f":"SUM($BH79:BY79)","v":175926.97199999998},{"$f":"SUM($BH79:BZ79)","v":177001.97199999998},{"$f":"SUM($BH79:CA79)","v":178076.97199999998}]
[{"$f":"PQS!A80","v":"SDD"},{"$f":"PQS!B80","v":"E003/075"},{"$f":"PQS!E80","v":"HTC 40 SDD*"},{"$f":"PQS!F80","v":"Haier"},{"$f":"PQS!D80","v":"Haier HTC 40 SDD*"},{"$f":"VLOOKUP(E80,PQS!$D$5:$K$107,COLUMN(PQS!$I$3)-COLUMN(PQS!$D$3)+1,FALSE)","v":22.5},{"$f":"VLOOKUP(E80,PQS!$D$5:$K$107,COLUMN(PQS!$J$3)-COLUMN(PQS!$D$3)+1,FALSE)","v":0},{"$f":"VLOOKUP(E80,PQS!$D$5:$K$107,COLUMN(PQS!$G$3)-COLUMN(PQS!$D$3)+1,FALSE)","v":"Yes"},{"$f":"HLOOKUP(B80,INDIRECT(\"'\"&A80&\"'!$10:$15\"),ROW('Technology template'!$A$11)-ROW('Technology template'!$A$10)+1,FALSE)","v":10},{"$f":"HLOOKUP(B80,INDIRECT(\"'\"&A80&\"'!$10:$15\"),ROW('Technology template'!$A$12)-ROW('Technology template'!$A$10)+1,FALSE)","v":10},{"$f":"HLOOKUP(B80,INDIRECT(\"'\"&A80&\"'!$10:$15\"),ROW('Technology template'!$A$13)-ROW('Technology template'!$A$10)+1,FALSE)","v":0},{"$f":"VLOOKUP(B80,PQS!$B:$Q,MATCH(PQS!$Q$3,PQS!$B$3:$Q$3,0),FALSE)*(1+'Country Input'!$C$47)+HLOOKUP(B80,INDIRECT(\"'\"&A80&\"'!$10:$15\"),ROW('Technology template'!$A$14)-ROW('Technology template'!$A$10)+1,FALSE)*(1+'Country Input'!$C$47)","v":3017.4},{"$f":"HLOOKUP(B80,INDIRECT(\"'\"&A80&\"'!$10:$80\"),MATCH('Technology template'!$A$27,INDIRECT(\"'\"&A80&\"'!$A$10:$A$80\"),0),FALSE)+'Labor and Maintenance '!$E$18","v":1042},{"$f":"VLOOKUP(B80,PQS!B:T,MATCH(PQS!$T$3,PQS!$B$3:$T$3,0),FALSE)*(1+'Country Input'!$C$47)","v":343.44860000000006},4402.8486000000003,440.28486000000004,{"$f":"VLOOKUP(B80,PQS!$B:$AE,COLUMN(PQS!AD78)-1,FALSE)","v":0},{"$f":"IFERROR(1/HLOOKUP(B80,INDIRECT(\"'\"&A80&\"'!$10:$80\"),MATCH('Technology template'!$A$31,INDIRECT(\"'\"&A80&\"'!$A$10:$A$80\"),0),FALSE)*HLOOKUP(B80,INDIRECT(\"'\"&A80&\"'!$10:$80\"),MATCH('Technology template'!$A$41,INDIRECT(\"'\"&A80&\"'!$A10:$A$80\"),0),FALSE),0)*TechnicianHourlyWage+IF(A80=\"Solar w Battery\",1/'Labor and Maintenance '!$E$53*'Labor and Maintenance '!$D$53,0)+IF(A80=\"LT passive\", 1/'Labor and Maintenance '!$E$81*'Labor and Maintenance '!$D$81,0)","v":24},{"$f":"IFERROR(1/HLOOKUP(B80,INDIRECT(\"'\"&A80&\"'!$10:$80\"),MATCH('Technology template'!$A$34,INDIRECT(\"'\"&A80&\"'!$A$10:$A$80\"),0),FALSE)*(HLOOKUP(B80,INDIRECT(\"'\"&A80&\"'!$10:$80\"),MATCH('Technology template'!$A$44,INDIRECT(\"'\"&A80&\"'!$A10:$A$80\"),0),FALSE)*TechnicianHourlyWage+RemoteTravelCostPerDay),0)+IFERROR(1/HLOOKUP(B80,INDIRECT(\"'\"&A80&\"'!$10:$80\"),MATCH('Technology template'!$A$35,INDIRECT(\"'\"&A80&\"'!$A$10:$A$80\"),0),FALSE)*(HLOOKUP(B80,INDIRECT(\"'\"&A80&\"'!$10:$80\"),MATCH('Technology template'!$A$45,INDIRECT(\"'\"&A80&\"'!$A10:$A$80\"),0),FALSE)*TechnicianHourlyWage+RemoteTravelCostPerDay),0)+IFERROR(1/HLOOKUP(B80,INDIRECT(\"'\"&A80&\"'!$10:$80\"),MATCH('Technology template'!$A$37,INDIRECT(\"'\"&A80&\"'!$A$10:$A$80\"),0),FALSE)*(HLOOKUP(B80,INDIRECT(\"'\"&A80&\"'!$10:$80\"),MATCH('Technology template'!$A$46,INDIRECT(\"'\"&A80&\"'!$A10:$A$80\"),0),FALSE)*TechnicianHourlyWage+'Labor and Maintenance '!$B$8),0)","v":83.5},1075,107.5,547.78485999999998,null,"Haier HTC 40 SDD*",195.68216000000001,47.777777777777779,243.45993777777778,null,"Haier HTC 40 SDD*",19.568216000000003,4.7777777777777777,24.345993777777778,null,"Haier HTC 40 SDD*",6,26417.0916,6450,32867.0916,null,"Haier HTC 40 SDD*",6,117.40929600000001,28.666666666666664,146.07596266666667,null,"Haier HTC 40 SDD*",{"$f":"IF(F80=0, 'Country Input'!$D$7, ROUNDUP(LitersPerFacility/F80,0)*'Country Input'!$D$7)","v":10},44028.486000000004,1075,45103.486000000004,null,"Haier HTC 40 SDD*",{"$f":"ROUNDUP(LitersPerFacility/F80,0)*'Country Input'!$D$7*ROUNDUP('Total Solution Costs'!$B$2/Calculations!I80,0)","v":10},195.68216000000004,4.7777777777777777,200.45993777777781,null,null,"Haier HTC 40 SDD*",{"$f":"(($U80+($O80)*IF(MOD(BH$3,$I80)=1,1,0)+Parts!$E$91*IF($J80=0,0,IF(MOD(BH$3,$I80)=1,IF(PQS!$R80=\"NO\",1,0),IF(MOD(BH$3,Calculations!$J80)=1,1,0)))+Parts!$E$92*IF(Calculations!$K80=0,0,IF(MOD(BH$3,$I80)=1,0,IF(MOD(BH$3,Calculations!$K80)=1,1,0))))*$AU80)*(1+'Country Input'!$C$45)^(Calculations!BH$3-$BH$3)+TrainingCost","v":45103.486000000004},{"$f":"(($U80+($O80)*IF(MOD(BI$3,$I80)=1,1,0)+Parts!$E$91*IF($J80=0,0,IF(MOD(BI$3,$I80)=1,IF(PQS!$R80=\"NO\",1,0),IF(MOD(BI$3,Calculations!$J80)=1,1,0)))+Parts!$E$92*IF(Calculations!$K80=0,0,IF(MOD(BI$3,$I80)=1,0,IF(MOD(BI$3,Calculations!$K80)=1,1,0))))*$AU80)*(1+'Country Input'!$C$45)^(Calculations!BI$3-$BH$3)","v":1075},{"$f":"(($U80+($O80)*IF(MOD(BJ$3,$I80)=1,1,0)+Parts!$E$91*IF($J80=0,0,IF(MOD(BJ$3,$I80)=1,IF(PQS!$R80=\"NO\",1,0),IF(MOD(BJ$3,Calculations!$J80)=1,1,0)))+Parts!$E$92*IF(Calculations!$K80=0,0,IF(MOD(BJ$3,$I80)=1,0,IF(MOD(BJ$3,Calculations!$K80)=1,1,0))))*$AU80)*(1+'Country Input'!$C$45)^(Calculations!BJ$3-$BH$3)","v":1075},{"$f":"(($U80+($O80)*IF(MOD(BK$3,$I80)=1,1,0)+Parts!$E$91*IF($J80=0,0,IF(MOD(BK$3,$I80)=1,IF(PQS!$R80=\"NO\",1,0),IF(MOD(BK$3,Calculations!$J80)=1,1,0)))+Parts!$E$92*IF(Calculations!$K80=0,0,IF(MOD(BK$3,$I80)=1,0,IF(MOD(BK$3,Calculations!$K80)=1,1,0))))*$AU80)*(1+'Country Input'!$C$45)^(Calculations!BK$3-$BH$3)","v":1075},{"$f":"(($U80+($O80)*IF(MOD(BL$3,$I80)=1,1,0)+Parts!$E$91*IF($J80=0,0,IF(MOD(BL$3,$I80)=1,IF(PQS!$R80=\"NO\",1,0),IF(MOD(BL$3,Calculations!$J80)=1,1,0)))+Parts!$E$92*IF(Calculations!$K80=0,0,IF(MOD(BL$3,$I80)=1,0,IF(MOD(BL$3,Calculations!$K80)=1,1,0))))*$AU80)*(1+'Country Input'!$C$45)^(Calculations!BL$3-$BH$3)","v":1075},{"$f":"(($U80+($O80)*IF(MOD(BM$3,$I80)=1,1,0)+Parts!$E$91*IF($J80=0,0,IF(MOD(BM$3,$I80)=1,IF(PQS!$R80=\"NO\",1,0),IF(MOD(BM$3,Calculations!$J80)=1,1,0)))+Parts!$E$92*IF(Calculations!$K80=0,0,IF(MOD(BM$3,$I80)=1,0,IF(MOD(BM$3,Calculations!$K80)=1,1,0))))*$AU80)*(1+'Country Input'!$C$45)^(Calculations!BM$3-$BH$3)","v":1075},{"$f":"(($U80+($O80)*IF(MOD(BN$3,$I80)=1,1,0)+Parts!$E$91*IF($J80=0,0,IF(MOD(BN$3,$I80)=1,IF(PQS!$R80=\"NO\",1,0),IF(MOD(BN$3,Calculations!$J80)=1,1,0)))+Parts!$E$92*IF(Calculations!$K80=0,0,IF(MOD(BN$3,$I80)=1,0,IF(MOD(BN$3,Calculations!$K80)=1,1,0))))*$AU80)*(1+'Country Input'!$C$45)^(Calculations!BN$3-$BH$3)","v":1075},{"$f":"(($U80+($O80)*IF(MOD(BO$3,$I80)=1,1,0)+Parts!$E$91*IF($J80=0,0,IF(MOD(BO$3,$I80)=1,IF(PQS!$R80=\"NO\",1,0),IF(MOD(BO$3,Calculations!$J80)=1,1,0)))+Parts!$E$92*IF(Calculations!$K80=0,0,IF(MOD(BO$3,$I80)=1,0,IF(MOD(BO$3,Calculations!$K80)=1,1,0))))*$AU80)*(1+'Country Input'!$C$45)^(Calculations!BO$3-$BH$3)","v":1075},{"$f":"(($U80+($O80)*IF(MOD(BP$3,$I80)=1,1,0)+Parts!$E$91*IF($J80=0,0,IF(MOD(BP$3,$I80)=1,IF(PQS!$R80=\"NO\",1,0),IF(MOD(BP$3,Calculations!$J80)=1,1,0)))+Parts!$E$92*IF(Calculations!$K80=0,0,IF(MOD(BP$3,$I80)=1,0,IF(MOD(BP$3,Calculations!$K80)=1,1,0))))*$AU80)*(1+'Country Input'!$C$45)^(Calculations!BP$3-$BH$3)","v":1075},{"$f":"(($U80+($O80)*IF(MOD(BQ$3,$I80)=1,1,0)+Parts!$E$91*IF($J80=0,0,IF(MOD(BQ$3,$I80)=1,IF(PQS!$R80=\"NO\",1,0),IF(MOD(BQ$3,Calculations!$J80)=1,1,0)))+Parts!$E$92*IF(Calculations!$K80=0,0,IF(MOD(BQ$3,$I80)=1,0,IF(MOD(BQ$3,Calculations!$K80)=1,1,0))))*$AU80)*(1+'Country Input'!$C$45)^(Calculations!BQ$3-$BH$3)","v":1075},{"$f":"(($U80+($O80)*IF(MOD(BR$3,$I80)=1,1,0)+Parts!$E$91*IF($J80=0,0,IF(MOD(BR$3,$I80)=1,IF(PQS!$R80=\"NO\",1,0),IF(MOD(BR$3,Calculations!$J80)=1,1,0)))+Parts!$E$92*IF(Calculations!$K80=0,0,IF(MOD(BR$3,$I80)=1,0,IF(MOD(BR$3,Calculations!$K80)=1,1,0))))*$AU80)*(1+'Country Input'!$C$45)^(Calculations!BR$3-$BH$3)","v":45103.486000000004},{"$f":"(($U80+($O80)*IF(MOD(BS$3,$I80)=1,1,0)+Parts!$E$91*IF($J80=0,0,IF(MOD(BS$3,$I80)=1,IF(PQS!$R80=\"NO\",1,0),IF(MOD(BS$3,Calculations!$J80)=1,1,0)))+Parts!$E$92*IF(Calculations!$K80=0,0,IF(MOD(BS$3,$I80)=1,0,IF(MOD(BS$3,Calculations!$K80)=1,1,0))))*$AU80)*(1+'Country Input'!$C$45)^(Calculations!BS$3-$BH$3)","v":1075},{"$f":"(($U80+($O80)*IF(MOD(BT$3,$I80)=1,1,0)+Parts!$E$91*IF($J80=0,0,IF(MOD(BT$3,$I80)=1,IF(PQS!$R80=\"NO\",1,0),IF(MOD(BT$3,Calculations!$J80)=1,1,0)))+Parts!$E$92*IF(Calculations!$K80=0,0,IF(MOD(BT$3,$I80)=1,0,IF(MOD(BT$3,Calculations!$K80)=1,1,0))))*$AU80)*(1+'Country Input'!$C$45)^(Calculations!BT$3-$BH$3)","v":1075},{"$f":"(($U80+($O80)*IF(MOD(BU$3,$I80)=1,1,0)+Parts!$E$91*IF($J80=0,0,IF(MOD(BU$3,$I80)=1,IF(PQS!$R80=\"NO\",1,0),IF(MOD(BU$3,Calculations!$J80)=1,1,0)))+Parts!$E$92*IF(Calculations!$K80=0,0,IF(MOD(BU$3,$I80)=1,0,IF(MOD(BU$3,Calculations!$K80)=1,1,0))))*$AU80)*(1+'Country Input'!$C$45)^(Calculations!BU$3-$BH$3)","v":1075},{"$f":"(($U80+($O80)*IF(MOD(BV$3,$I80)=1,1,0)+Parts!$E$91*IF($J80=0,0,IF(MOD(BV$3,$I80)=1,IF(PQS!$R80=\"NO\",1,0),IF(MOD(BV$3,Calculations!$J80)=1,1,0)))+Parts!$E$92*IF(Calculations!$K80=0,0,IF(MOD(BV$3,$I80)=1,0,IF(MOD(BV$3,Calculations!$K80)=1,1,0))))*$AU80)*(1+'Country Input'!$C$45)^(Calculations!BV$3-$BH$3)","v":1075},{"$f":"(($U80+($O80)*IF(MOD(BW$3,$I80)=1,1,0)+Parts!$E$91*IF($J80=0,0,IF(MOD(BW$3,$I80)=1,IF(PQS!$R80=\"NO\",1,0),IF(MOD(BW$3,Calculations!$J80)=1,1,0)))+Parts!$E$92*IF(Calculations!$K80=0,0,IF(MOD(BW$3,$I80)=1,0,IF(MOD(BW$3,Calculations!$K80)=1,1,0))))*$AU80)*(1+'Country Input'!$C$45)^(Calculations!BW$3-$BH$3)","v":1075},{"$f":"(($U80+($O80)*IF(MOD(BX$3,$I80)=1,1,0)+Parts!$E$91*IF($J80=0,0,IF(MOD(BX$3,$I80)=1,IF(PQS!$R80=\"NO\",1,0),IF(MOD(BX$3,Calculations!$J80)=1,1,0)))+Parts!$E$92*IF(Calculations!$K80=0,0,IF(MOD(BX$3,$I80)=1,0,IF(MOD(BX$3,Calculations!$K80)=1,1,0))))*$AU80)*(1+'Country Input'!$C$45)^(Calculations!BX$3-$BH$3)","v":1075},{"$f":"(($U80+($O80)*IF(MOD(BY$3,$I80)=1,1,0)+Parts!$E$91*IF($J80=0,0,IF(MOD(BY$3,$I80)=1,IF(PQS!$R80=\"NO\",1,0),IF(MOD(BY$3,Calculations!$J80)=1,1,0)))+Parts!$E$92*IF(Calculations!$K80=0,0,IF(MOD(BY$3,$I80)=1,0,IF(MOD(BY$3,Calculations!$K80)=1,1,0))))*$AU80)*(1+'Country Input'!$C$45)^(Calculations!BY$3-$BH$3)","v":1075},{"$f":"(($U80+($O80)*IF(MOD(BZ$3,$I80)=1,1,0)+Parts!$E$91*IF($J80=0,0,IF(MOD(BZ$3,$I80)=1,IF(PQS!$R80=\"NO\",1,0),IF(MOD(BZ$3,Calculations!$J80)=1,1,0)))+Parts!$E$92*IF(Calculations!$K80=0,0,IF(MOD(BZ$3,$I80)=1,0,IF(MOD(BZ$3,Calculations!$K80)=1,1,0))))*$AU80)*(1+'Country Input'!$C$45)^(Calculations!BZ$3-$BH$3)","v":1075},{"$f":"(($U80+($O80)*IF(MOD(CA$3,$I80)=1,1,0)+Parts!$E$91*IF($J80=0,0,IF(MOD(CA$3,$I80)=1,IF(PQS!$R80=\"NO\",1,0),IF(MOD(CA$3,Calculations!$J80)=1,1,0)))+Parts!$E$92*IF(Calculations!$K80=0,0,IF(MOD(CA$3,$I80)=1,0,IF(MOD(CA$3,Calculations!$K80)=1,1,0))))*$AU80)*(1+'Country Input'!$C$45)^(Calculations!CA$3-$BH$3)","v":1075},null,"Haier HTC 40 SDD*",45103.486000000004,1075,1075,1075,1075,1075,1075,1075,1075,1075,45103.486000000004,1075,1075,1075,1075,1075,1075,1075,1075,1075,{"$f":"SUM(CD80:INDEX($CD80:$CW80,1,'Total Solution Costs'!$B$2))","v":54778.486000000004},null,"Haier HTC 40 SDD*",{"$f":"SUM($BH80:BH80)","v":45103.486000000004},{"$f":"SUM($BH80:BI80)","v":46178.486000000004},{"$f":"SUM($BH80:BJ80)","v":47253.486000000004},{"$f":"SUM($BH80:BK80)","v":48328.486000000004},{"$f":"SUM($BH80:BL80)","v":49403.486000000004},{"$f":"SUM($BH80:BM80)","v":50478.486000000004},{"$f":"SUM($BH80:BN80)","v":51553.486000000004},{"$f":"SUM($BH80:BO80)","v":52628.486000000004},{"$f":"SUM($BH80:BP80)","v":53703.486000000004},{"$f":"SUM($BH80:BQ80)","v":54778.486000000004},{"$f":"SUM($BH80:BR80)","v":99881.972000000009},{"$f":"SUM($BH80:BS80)","v":100956.97200000001},{"$f":"SUM($BH80:BT80)","v":102031.97200000001},{"$f":"SUM($BH80:BU80)","v":103106.97200000001},{"$f":"SUM($BH80:BV80)","v":104181.97200000001},{"$f":"SUM($BH80:BW80)","v":105256.97200000001},{"$f":"SUM($BH80:BX80)","v":106331.97200000001},{"$f":"SUM($BH80:BY80)","v":107406.97200000001},{"$f":"SUM($BH80:BZ80)","v":108481.97200000001},{"$f":"SUM($BH80:CA80)","v":109556.97200000001}]
[{"$f":"PQS!A81","v":"SDD"},{"$f":"PQS!B81","v":"E003/076"},{"$f":"PQS!E81","v":"HTC 110 SDD*"},{"$f":"PQS!F81","v":"Haier"},{"$f":"PQS!D81","v":"Haier HTC 110 SDD*"},{"$f":"VLOOKUP(E81,PQS!$D$5:$K$107,COLUMN(PQS!$I$3)-COLUMN(PQS!$D$3)+1,FALSE)","v":59},{"$f":"VLOOKUP(E81,PQS!$D$5:$K$107,COLUMN(PQS!$J$3)-COLUMN(PQS!$D$3)+1,FALSE)","v":0},{"$f":"VLOOKUP(E81,PQS!$D$5:$K$107,COLUMN(PQS!$G$3)-COLUMN(PQS!$D$3)+1,FALSE)","v":"Yes"},{"$f":"HLOOKUP(B81,INDIRECT(\"'\"&A81&\"'!$10:$15\"),ROW('Technology template'!$A$11)-ROW('Technology template'!$A$10)+1,FALSE)","v":10},{"$f":"HLOOKUP(B81,INDIRECT(\"'\"&A81&\"'!$10:$15\"),ROW('Technology template'!$A$12)-ROW('Technology template'!$A$10)+1,FALSE)","v":10},{"$f":"HLOOKUP(B81,INDIRECT(\"'\"&A81&\"'!$10:$15\"),ROW('Technology template'!$A$13)-ROW('Technology template'!$A$10)+1,FALSE)","v":0},{"$f":"VLOOKUP(B81,PQS!$B:$Q,MATCH(PQS!$Q$3,PQS!$B$3:$Q$3,0),FALSE)*(1+'Country Input'!$C$47)+HLOOKUP(B81,INDIRECT(\"'\"&A81&\"'!$10:$15\"),ROW('Technology template'!$A$14)-ROW('Technology template'!$A$10)+1,FALSE)*(1+'Country Input'!$C$47)","v":3338.4},{"$f":"HLOOKUP(B81,INDIRECT(\"'\"&A81&\"'!$10:$80\"),MATCH('Technology template'!$A$27,INDIRECT(\"'\"&A81&\"'!$A$10:$A$80\"),0),FALSE)+'Labor and Maintenance '!$E$18","v":1042},{"$f":"VLOOKUP(B81,PQS!B:T,MATCH(PQS!$T$3,PQS!$B$3:$T$3,0),FALSE)*(1+'Country Input'!$C$47)","v":343.44860000000006},4723.8485999999994,472.38485999999995,{"$f":"VLOOKUP(B81,PQS!$B:$AE,COLUMN(PQS!AD79)-1,FALSE)","v":0},{"$f":"IFERROR(1/HLOOKUP(B81,INDIRECT(\"'\"&A81&\"'!$10:$80\"),MATCH('Technology template'!$A$31,INDIRECT(\"'\"&A81&\"'!$A$10:$A$80\"),0),FALSE)*HLOOKUP(B81,INDIRECT(\"'\"&A81&\"'!$10:$80\"),MATCH('Technology template'!$A$41,INDIRECT(\"'\"&A81&\"'!$A10:$A$80\"),0),FALSE),0)*TechnicianHourlyWage+IF(A81=\"Solar w Battery\",1/'Labor and Maintenance '!$E$53*'Labor and Maintenance '!$D$53,0)+IF(A81=\"LT passive\", 1/'Labor and Maintenance '!$E$81*'Labor and Maintenance '!$D$81,0)","v":24},{"$f":"IFERROR(1/HLOOKUP(B81,INDIRECT(\"'\"&A81&\"'!$10:$80\"),MATCH('Technology template'!$A$34,INDIRECT(\"'\"&A81&\"'!$A$10:$A$80\"),0),FALSE)*(HLOOKUP(B81,INDIRECT(\"'\"&A81&\"'!$10:$80\"),MATCH('Technology template'!$A$44,INDIRECT(\"'\"&A81&\"'!$A10:$A$80\"),0),FALSE)*TechnicianHourlyWage+RemoteTravelCostPerDay),0)+IFERROR(1/HLOOKUP(B81,INDIRECT(\"'\"&A81&\"'!$10:$80\"),MATCH('Technology template'!$A$35,INDIRECT(\"'\"&A81&\"'!$A$10:$A$80\"),0),FALSE)*(HLOOKUP(B81,INDIRECT(\"'\"&A81&\"'!$10:$80\"),MATCH('Technology template'!$A$45,INDIRECT(\"'\"&A81&\"'!$A10:$A$80\"),0),FALSE)*TechnicianHourlyWage+RemoteTravelCostPerDay),0)+IFERROR(1/HLOOKUP(B81,INDIRECT(\"'\"&A81&\"'!$10:$80\"),MATCH('Technology template'!$A$37,INDIRECT(\"'\"&A81&\"'!$A$10:$A$80\"),0),FALSE)*(HLOOKUP(B81,INDIRECT(\"'\"&A81&\"'!$10:$80\"),MATCH('Technology template'!$A$46,INDIRECT(\"'\"&A81&\"'!$A10:$A$80\"),0),FALSE)*TechnicianHourlyWage+'Labor and Maintenance '!$B$8),0)","v":83.5},1075,107.5,579.88485999999989,null,"Haier HTC 110 SDD*",80.065230508474571,18.220338983050848,98.285569491525422,null,"Haier HTC 110 SDD*",8.0065230508474574,1.8220338983050848,9.8285569491525404,null,"Haier HTC 110 SDD*",3,14171.545799999998,3225,17396.5458,null,"Haier HTC 110 SDD*",3,24.019569152542374,5.4661016949152543,29.485670847457627,null,"Haier HTC 110 SDD*",{"$f":"IF(F81=0, 'Country Input'!$D$7, ROUNDUP(LitersPerFacility/F81,0)*'Country Input'!$D$7)","v":10},47238.48599999999,1075,48313.48599999999,null,"Haier HTC 110 SDD*",{"$f":"ROUNDUP(LitersPerFacility/F81,0)*'Country Input'!$D$7*ROUNDUP('Total Solution Costs'!$B$2/Calculations!I81,0)","v":10},80.065230508474571,1.8220338983050848,81.88726440677965,null,null,"Haier HTC 110 SDD*",{"$f":"(($U81+($O81)*IF(MOD(BH$3,$I81)=1,1,0)+Parts!$E$91*IF($J81=0,0,IF(MOD(BH$3,$I81)=1,IF(PQS!$R81=\"NO\",1,0),IF(MOD(BH$3,Calculations!$J81)=1,1,0)))+Parts!$E$92*IF(Calculations!$K81=0,0,IF(MOD(BH$3,$I81)=1,0,IF(MOD(BH$3,Calculations!$K81)=1,1,0))))*$AU81)*(1+'Country Input'!$C$45)^(Calculations!BH$3-$BH$3)+TrainingCost","v":48313.48599999999},{"$f":"(($U81+($O81)*IF(MOD(BI$3,$I81)=1,1,0)+Parts!$E$91*IF($J81=0,0,IF(MOD(BI$3,$I81)=1,IF(PQS!$R81=\"NO\",1,0),IF(MOD(BI$3,Calculations!$J81)=1,1,0)))+Parts!$E$92*IF(Calculations!$K81=0,0,IF(MOD(BI$3,$I81)=1,0,IF(MOD(BI$3,Calculations!$K81)=1,1,0))))*$AU81)*(1+'Country Input'!$C$45)^(Calculations!BI$3-$BH$3)","v":1075},{"$f":"(($U81+($O81)*IF(MOD(BJ$3,$I81)=1,1,0)+Parts!$E$91*IF($J81=0,0,IF(MOD(BJ$3,$I81)=1,IF(PQS!$R81=\"NO\",1,0),IF(MOD(BJ$3,Calculations!$J81)=1,1,0)))+Parts!$E$92*IF(Calculations!$K81=0,0,IF(MOD(BJ$3,$I81)=1,0,IF(MOD(BJ$3,Calculations!$K81)=1,1,0))))*$AU81)*(1+'Country Input'!$C$45)^(Calculations!BJ$3-$BH$3)","v":1075},{"$f":"(($U81+($O81)*IF(MOD(BK$3,$I81)=1,1,0)+Parts!$E$91*IF($J81=0,0,IF(MOD(BK$3,$I81)=1,IF(PQS!$R81=\"NO\",1,0),IF(MOD(BK$3,Calculations!$J81)=1,1,0)))+Parts!$E$92*IF(Calculations!$K81=0,0,IF(MOD(BK$3,$I81)=1,0,IF(MOD(BK$3,Calculations!$K81)=1,1,0))))*$AU81)*(1+'Country Input'!$C$45)^(Calculations!BK$3-$BH$3)","v":1075},{"$f":"(($U81+($O81)*IF(MOD(BL$3,$I81)=1,1,0)+Parts!$E$91*IF($J81=0,0,IF(MOD(BL$3,$I81)=1,IF(PQS!$R81=\"NO\",1,0),IF(MOD(BL$3,Calculations!$J81)=1,1,0)))+Parts!$E$92*IF(Calculations!$K81=0,0,IF(MOD(BL$3,$I81)=1,0,IF(MOD(BL$3,Calculations!$K81)=1,1,0))))*$AU81)*(1+'Country Input'!$C$45)^(Calculations!BL$3-$BH$3)","v":1075},{"$f":"(($U81+($O81)*IF(MOD(BM$3,$I81)=1,1,0)+Parts!$E$91*IF($J81=0,0,IF(MOD(BM$3,$I81)=1,IF(PQS!$R81=\"NO\",1,0),IF(MOD(BM$3,Calculations!$J81)=1,1,0)))+Parts!$E$92*IF(Calculations!$K81=0,0,IF(MOD(BM$3,$I81)=1,0,IF(MOD(BM$3,Calculations!$K81)=1,1,0))))*$AU81)*(1+'Country Input'!$C$45)^(Calculations!BM$3-$BH$3)","v":1075},{"$f":"(($U81+($O81)*IF(MOD(BN$3,$I81)=1,1,0)+Parts!$E$91*IF($J81=0,0,IF(MOD(BN$3,$I81)=1,IF(PQS!$R81=\"NO\",1,0),IF(MOD(BN$3,Calculations!$J81)=1,1,0)))+Parts!$E$92*IF(Calculations!$K81=0,0,IF(MOD(BN$3,$I81)=1,0,IF(MOD(BN$3,Calculations!$K81)=1,1,0))))*$AU81)*(1+'Country Input'!$C$45)^(Calculations!BN$3-$BH$3)","v":1075},{"$f":"(($U81+($O81)*IF(MOD(BO$3,$I81)=1,1,0)+Parts!$E$91*IF($J81=0,0,IF(MOD(BO$3,$I81)=1,IF(PQS!$R81=\"NO\",1,0),IF(MOD(BO$3,Calculations!$J81)=1,1,0)))+Parts!$E$92*IF(Calculations!$K81=0,0,IF(MOD(BO$3,$I81)=1,0,IF(MOD(BO$3,Calculations!$K81)=1,1,0))))*$AU81)*(1+'Country Input'!$C$45)^(Calculations!BO$3-$BH$3)","v":1075},{"$f":"(($U81+($O81)*IF(MOD(BP$3,$I81)=1,1,0)+Parts!$E$91*IF($J81=0,0,IF(MOD(BP$3,$I81)=1,IF(PQS!$R81=\"NO\",1,0),IF(MOD(BP$3,Calculations!$J81)=1,1,0)))+Parts!$E$92*IF(Calculations!$K81=0,0,IF(MOD(BP$3,$I81)=1,0,IF(MOD(BP$3,Calculations!$K81)=1,1,0))))*$AU81)*(1+'Country Input'!$C$45)^(Calculations!BP$3-$BH$3)","v":1075},{"$f":"(($U81+($O81)*IF(MOD(BQ$3,$I81)=1,1,0)+Parts!$E$91*IF($J81=0,0,IF(MOD(BQ$3,$I81)=1,IF(PQS!$R81=\"NO\",1,0),IF(MOD(BQ$3,Calculations!$J81)=1,1,0)))+Parts!$E$92*IF(Calculations!$K81=0,0,IF(MOD(BQ$3,$I81)=1,0,IF(MOD(BQ$3,Calculations!$K81)=1,1,0))))*$AU81)*(1+'Country Input'!$C$45)^(Calculations!BQ$3-$BH$3)","v":1075},{"$f":"(($U81+($O81)*IF(MOD(BR$3,$I81)=1,1,0)+Parts!$E$91*IF($J81=0,0,IF(MOD(BR$3,$I81)=1,IF(PQS!$R81=\"NO\",1,0),IF(MOD(BR$3,Calculations!$J81)=1,1,0)))+Parts!$E$92*IF(Calculations!$K81=0,0,IF(MOD(BR$3,$I81)=1,0,IF(MOD(BR$3,Calculations!$K81)=1,1,0))))*$AU81)*(1+'Country Input'!$C$45)^(Calculations!BR$3-$BH$3)","v":48313.48599999999},{"$f":"(($U81+($O81)*IF(MOD(BS$3,$I81)=1,1,0)+Parts!$E$91*IF($J81=0,0,IF(MOD(BS$3,$I81)=1,IF(PQS!$R81=\"NO\",1,0),IF(MOD(BS$3,Calculations!$J81)=1,1,0)))+Parts!$E$92*IF(Calculations!$K81=0,0,IF(MOD(BS$3,$I81)=1,0,IF(MOD(BS$3,Calculations!$K81)=1,1,0))))*$AU81)*(1+'Country Input'!$C$45)^(Calculations!BS$3-$BH$3)","v":1075},{"$f":"(($U81+($O81)*IF(MOD(BT$3,$I81)=1,1,0)+Parts!$E$91*IF($J81=0,0,IF(MOD(BT$3,$I81)=1,IF(PQS!$R81=\"NO\",1,0),IF(MOD(BT$3,Calculations!$J81)=1,1,0)))+Parts!$E$92*IF(Calculations!$K81=0,0,IF(MOD(BT$3,$I81)=1,0,IF(MOD(BT$3,Calculations!$K81)=1,1,0))))*$AU81)*(1+'Country Input'!$C$45)^(Calculations!BT$3-$BH$3)","v":1075},{"$f":"(($U81+($O81)*IF(MOD(BU$3,$I81)=1,1,0)+Parts!$E$91*IF($J81=0,0,IF(MOD(BU$3,$I81)=1,IF(PQS!$R81=\"NO\",1,0),IF(MOD(BU$3,Calculations!$J81)=1,1,0)))+Parts!$E$92*IF(Calculations!$K81=0,0,IF(MOD(BU$3,$I81)=1,0,IF(MOD(BU$3,Calculations!$K81)=1,1,0))))*$AU81)*(1+'Country Input'!$C$45)^(Calculations!BU$3-$BH$3)","v":1075},{"$f":"(($U81+($O81)*IF(MOD(BV$3,$I81)=1,1,0)+Parts!$E$91*IF($J81=0,0,IF(MOD(BV$3,$I81)=1,IF(PQS!$R81=\"NO\",1,0),IF(MOD(BV$3,Calculations!$J81)=1,1,0)))+Parts!$E$92*IF(Calculations!$K81=0,0,IF(MOD(BV$3,$I81)=1,0,IF(MOD(BV$3,Calculations!$K81)=1,1,0))))*$AU81)*(1+'Country Input'!$C$45)^(Calculations!BV$3-$BH$3)","v":1075},{"$f":"(($U81+($O81)*IF(MOD(BW$3,$I81)=1,1,0)+Parts!$E$91*IF($J81=0,0,IF(MOD(BW$3,$I81)=1,IF(PQS!$R81=\"NO\",1,0),IF(MOD(BW$3,Calculations!$J81)=1,1,0)))+Parts!$E$92*IF(Calculations!$K81=0,0,IF(MOD(BW$3,$I81)=1,0,IF(MOD(BW$3,Calculations!$K81)=1,1,0))))*$AU81)*(1+'Country Input'!$C$45)^(Calculations!BW$3-$BH$3)","v":1075},{"$f":"(($U81+($O81)*IF(MOD(BX$3,$I81)=1,1,0)+Parts!$E$91*IF($J81=0,0,IF(MOD(BX$3,$I81)=1,IF(PQS!$R81=\"NO\",1,0),IF(MOD(BX$3,Calculations!$J81)=1,1,0)))+Parts!$E$92*IF(Calculations!$K81=0,0,IF(MOD(BX$3,$I81)=1,0,IF(MOD(BX$3,Calculations!$K81)=1,1,0))))*$AU81)*(1+'Country Input'!$C$45)^(Calculations!BX$3-$BH$3)","v":1075},{"$f":"(($U81+($O81)*IF(MOD(BY$3,$I81)=1,1,0)+Parts!$E$91*IF($J81=0,0,IF(MOD(BY$3,$I81)=1,IF(PQS!$R81=\"NO\",1,0),IF(MOD(BY$3,Calculations!$J81)=1,1,0)))+Parts!$E$92*IF(Calculations!$K81=0,0,IF(MOD(BY$3,$I81)=1,0,IF(MOD(BY$3,Calculations!$K81)=1,1,0))))*$AU81)*(1+'Country Input'!$C$45)^(Calculations!BY$3-$BH$3)","v":1075},{"$f":"(($U81+($O81)*IF(MOD(BZ$3,$I81)=1,1,0)+Parts!$E$91*IF($J81=0,0,IF(MOD(BZ$3,$I81)=1,IF(PQS!$R81=\"NO\",1,0),IF(MOD(BZ$3,Calculations!$J81)=1,1,0)))+Parts!$E$92*IF(Calculations!$K81=0,0,IF(MOD(BZ$3,$I81)=1,0,IF(MOD(BZ$3,Calculations!$K81)=1,1,0))))*$AU81)*(1+'Country Input'!$C$45)^(Calculations!BZ$3-$BH$3)","v":1075},{"$f":"(($U81+($O81)*IF(MOD(CA$3,$I81)=1,1,0)+Parts!$E$91*IF($J81=0,0,IF(MOD(CA$3,$I81)=1,IF(PQS!$R81=\"NO\",1,0),IF(MOD(CA$3,Calculations!$J81)=1,1,0)))+Parts!$E$92*IF(Calculations!$K81=0,0,IF(MOD(CA$3,$I81)=1,0,IF(MOD(CA$3,Calculations!$K81)=1,1,0))))*$AU81)*(1+'Country Input'!$C$45)^(Calculations!CA$3-$BH$3)","v":1075},null,"Haier HTC 110 SDD*",48313.48599999999,1075,1075,1075,1075,1075,1075,1075,1075,1075,48313.48599999999,1075,1075,1075,1075,1075,1075,1075,1075,1075,{"$f":"SUM(CD81:INDEX($CD81:$CW81,1,'Total Solution Costs'!$B$2))","v":57988.48599999999},null,"Haier HTC 110 SDD*",{"$f":"SUM($BH81:BH81)","v":48313.48599999999},{"$f":"SUM($BH81:BI81)","v":49388.48599999999},{"$f":"SUM($BH81:BJ81)","v":50463.48599999999},{"$f":"SUM($BH81:BK81)","v":51538.48599999999},{"$f":"SUM($BH81:BL81)","v":52613.48599999999},{"$f":"SUM($BH81:BM81)","v":53688.48599999999},{"$f":"SUM($BH81:BN81)","v":54763.48599999999},{"$f":"SUM($BH81:BO81)","v":55838.48599999999},{"$f":"SUM($BH81:BP81)","v":56913.48599999999},{"$f":"SUM($BH81:BQ81)","v":57988.48599999999},{"$f":"SUM($BH81:BR81)","v":106301.97199999998},{"$f":"SUM($BH81:BS81)","v":107376.97199999998},{"$f":"SUM($BH81:BT81)","v":108451.97199999998},{"$f":"SUM($BH81:BU81)","v":109526.97199999998},{"$f":"SUM($BH81:BV81)","v":110601.97199999998},{"$f":"SUM($BH81:BW81)","v":111676.97199999998},{"$f":"SUM($BH81:BX81)","v":112751.97199999998},{"$f":"SUM($BH81:BY81)","v":113826.97199999998},{"$f":"SUM($BH81:BZ81)","v":114901.97199999998},{"$f":"SUM($BH81:CA81)","v":115976.97199999998}]
[{"$f":"PQS!A82","v":"SDD"},{"$f":"PQS!B82","v":"E003/077"},{"$f":"PQS!E82","v":"TCW 15 SDD*"},{"$f":"PQS!F82","v":"B Medical"},{"$f":"PQS!D82","v":"B Medical TCW 15 SDD*"},{"$f":"VLOOKUP(E82,PQS!$D$5:$K$107,COLUMN(PQS!$I$3)-COLUMN(PQS!$D$3)+1,FALSE)","v":16},{"$f":"VLOOKUP(E82,PQS!$D$5:$K$107,COLUMN(PQS!$J$3)-COLUMN(PQS!$D$3)+1,FALSE)","v":2.4},{"$f":"VLOOKUP(E82,PQS!$D$5:$K$107,COLUMN(PQS!$G$3)-COLUMN(PQS!$D$3)+1,FALSE)","v":"Yes"},{"$f":"HLOOKUP(B82,INDIRECT(\"'\"&A82&\"'!$10:$15\"),ROW('Technology template'!$A$11)-ROW('Technology template'!$A$10)+1,FALSE)","v":10},{"$f":"HLOOKUP(B82,INDIRECT(\"'\"&A82&\"'!$10:$15\"),ROW('Technology template'!$A$12)-ROW('Technology template'!$A$10)+1,FALSE)","v":10},{"$f":"HLOOKUP(B82,INDIRECT(\"'\"&A82&\"'!$10:$15\"),ROW('Technology template'!$A$13)-ROW('Technology template'!$A$10)+1,FALSE)","v":0},{"$f":"VLOOKUP(B82,PQS!$B:$Q,MATCH(PQS!$Q$3,PQS!$B$3:$Q$3,0),FALSE)*(1+'Country Input'!$C$47)+HLOOKUP(B82,INDIRECT(\"'\"&A82&\"'!$10:$15\"),ROW('Technology template'!$A$14)-ROW('Technology template'!$A$10)+1,FALSE)*(1+'Country Input'!$C$47)","v":5116.6651000000002},{"$f":"HLOOKUP(B82,INDIRECT(\"'\"&A82&\"'!$10:$80\"),MATCH('Technology template'!$A$27,INDIRECT(\"'\"&A82&\"'!$A$10:$A$80\"),0),FALSE)+'Labor and Maintenance '!$E$18","v":1042},{"$f":"VLOOKUP(B82,PQS!B:T,MATCH(PQS!$T$3,PQS!$B$3:$T$3,0),FALSE)*(1+'Country Input'!$C$47)","v":633.44085600000005},6792.1059560000003,{"$f":"O82/I82","v":679.21059560000003},{"$f":"VLOOKUP(B82,PQS!$B:$AE,COLUMN(PQS!AD80)-1,FALSE)","v":0},{"$f":"IFERROR(1/HLOOKUP(B82,INDIRECT(\"'\"&A82&\"'!$10:$80\"),MATCH('Technology template'!$A$31,INDIRECT(\"'\"&A82&\"'!$A$10:$A$80\"),0),FALSE)*HLOOKUP(B82,INDIRECT(\"'\"&A82&\"'!$10:$80\"),MATCH('Technology template'!$A$41,INDIRECT(\"'\"&A82&\"'!$A10:$A$80\"),0),FALSE),0)*TechnicianHourlyWage+IF(A82=\"Solar w Battery\",1/'Labor and Maintenance '!$E$53*'Labor and Maintenance '!$D$53,0)+IF(A82=\"LT passive\", 1/'Labor and Maintenance '!$E$81*'Labor and Maintenance '!$D$81,0)","v":24},{"$f":"IFERROR(1/HLOOKUP(B82,INDIRECT(\"'\"&A82&\"'!$10:$80\"),MATCH('Technology template'!$A$34,INDIRECT(\"'\"&A82&\"'!$A$10:$A$80\"),0),FALSE)*(HLOOKUP(B82,INDIRECT(\"'\"&A82&\"'!$10:$80\"),MATCH('Technology template'!$A$44,INDIRECT(\"'\"&A82&\"'!$A10:$A$80\"),0),FALSE)*TechnicianHourlyWage+RemoteTravelCostPerDay),0)+IFERROR(1/HLOOKUP(B82,INDIRECT(\"'\"&A82&\"'!$10:$80\"),MATCH('Technology template'!$A$35,INDIRECT(\"'\"&A82&\"'!$A$10:$A$80\"),0),FALSE)*(HLOOKUP(B82,INDIRECT(\"'\"&A82&\"'!$10:$80\"),MATCH('Technology template'!$A$45,INDIRECT(\"'\"&A82&\"'!$A10:$A$80\"),0),FALSE)*TechnicianHourlyWage+RemoteTravelCostPerDay),0)+IFERROR(1/HLOOKUP(B82,INDIRECT(\"'\"&A82&\"'!$10:$80\"),MATCH('Technology template'!$A$37,INDIRECT(\"'\"&A82&\"'!$A$10:$A$80\"),0),FALSE)*(HLOOKUP(B82,INDIRECT(\"'\"&A82&\"'!$10:$80\"),MATCH('Technology template'!$A$46,INDIRECT(\"'\"&A82&\"'!$A10:$A$80\"),0),FALSE)*TechnicianHourlyWage+'Labor and Maintenance '!$B$8),0)","v":83.5},{"$f":"SUM(Q82:S82)*I82","v":1075},{"$f":"SUM(Q82:S82)","v":107.5},{"$f":"P82+U82","v":786.71059560000003},null,{"$f":"E82","v":"B Medical TCW 15 SDD*"},{"$f":"IF(F82=0,O82/G82,O82/F82)","v":424.50662225000002},{"$f":"IF(F82=0,T82/G82,T82/F82)","v":67.1875},{"$f":"Y82+Z82","v":491.69412225000002},null,{"$f":"E82","v":"B Medical TCW 15 SDD*"},{"$f":"IF(F82=0, P82/G82, P82/F82)","v":42.450662225000002},{"$f":"IF(F82=0, U82/G82, U82/F82)","v":6.71875},{"$f":"IF(F82=0, V82/G82, V82/F82)","v":49.169412225000002},null,{"$f":"E82","v":"B Medical TCW 15 SDD*"},{"$f":"ROUNDUP(LitersPerDelivery/F82,0)","v":8},{"$f":"AI82*O82","v":54336.847648000003},{"$f":"AI82*T82","v":8600},{"$f":"AJ82+AK82","v":62936.847648000003},null,{"$f":"E82","v":"B Medical TCW 15 SDD*"},{"$f":"ROUNDUP(LitersPerDelivery/F82,0)","v":8},{"$f":"AO82*AD82","v":339.60529780000002},{"$f":"AO82*AE82","v":53.75},{"$f":"+AP82+AQ82","v":393.35529780000002},null,{"$f":"E82","v":"B Medical TCW 15 SDD*"},{"$f":"IF(F82=0, 'Country Input'!$D$7, ROUNDUP(LitersPerFacility/F82,0)*'Country Input'!$D$7)","v":10},{"$f":"AU82*O82","v":67921.059560000009},{"$f":"AU82*(SUM(Q82:S82))","v":1075},{"$f":"AV82+AW82","v":68996.059560000009},null,{"$f":"E82","v":"B Medical TCW 15 SDD*"},{"$f":"ROUNDUP(LitersPerFacility/F82,0)*'Country Input'!$D$7*ROUNDUP('Total Solution Costs'!$B$2/Calculations!I82,0)","v":10},{"$f":"BA82*AD82","v":424.50662225000002},{"$f":"AW82/(F82*AU82)","v":6.71875},{"$f":"BB82+BC82","v":431.22537225000002},null,null,{"$f":"E82","v":"B Medical TCW 15 SDD*"},{"$f":"(($U82+($O82)*IF(MOD(BH$3,$I82)=1,1,0)+Parts!$E$91*IF($J82=0,0,IF(MOD(BH$3,$I82)=1,IF(PQS!$R82=\"NO\",1,0),IF(MOD(BH$3,Calculations!$J82)=1,1,0)))+Parts!$E$92*IF(Calculations!$K82=0,0,IF(MOD(BH$3,$I82)=1,0,IF(MOD(BH$3,Calculations!$K82)=1,1,0))))*$AU82)*(1+'Country Input'!$C$45)^(Calculations!BH$3-$BH$3)+TrainingCost","v":68996.059560000009},{"$f":"(($U82+($O82)*IF(MOD(BI$3,$I82)=1,1,0)+Parts!$E$91*IF($J82=0,0,IF(MOD(BI$3,$I82)=1,IF(PQS!$R82=\"NO\",1,0),IF(MOD(BI$3,Calculations!$J82)=1,1,0)))+Parts!$E$92*IF(Calculations!$K82=0,0,IF(MOD(BI$3,$I82)=1,0,IF(MOD(BI$3,Calculations!$K82)=1,1,0))))*$AU82)*(1+'Country Input'!$C$45)^(Calculations!BI$3-$BH$3)","v":1075},{"$f":"(($U82+($O82)*IF(MOD(BJ$3,$I82)=1,1,0)+Parts!$E$91*IF($J82=0,0,IF(MOD(BJ$3,$I82)=1,IF(PQS!$R82=\"NO\",1,0),IF(MOD(BJ$3,Calculations!$J82)=1,1,0)))+Parts!$E$92*IF(Calculations!$K82=0,0,IF(MOD(BJ$3,$I82)=1,0,IF(MOD(BJ$3,Calculations!$K82)=1,1,0))))*$AU82)*(1+'Country Input'!$C$45)^(Calculations!BJ$3-$BH$3)","v":1075},{"$f":"(($U82+($O82)*IF(MOD(BK$3,$I82)=1,1,0)+Parts!$E$91*IF($J82=0,0,IF(MOD(BK$3,$I82)=1,IF(PQS!$R82=\"NO\",1,0),IF(MOD(BK$3,Calculations!$J82)=1,1,0)))+Parts!$E$92*IF(Calculations!$K82=0,0,IF(MOD(BK$3,$I82)=1,0,IF(MOD(BK$3,Calculations!$K82)=1,1,0))))*$AU82)*(1+'Country Input'!$C$45)^(Calculations!BK$3-$BH$3)","v":1075},{"$f":"(($U82+($O82)*IF(MOD(BL$3,$I82)=1,1,0)+Parts!$E$91*IF($J82=0,0,IF(MOD(BL$3,$I82)=1,IF(PQS!$R82=\"NO\",1,0),IF(MOD(BL$3,Calculations!$J82)=1,1,0)))+Parts!$E$92*IF(Calculations!$K82=0,0,IF(MOD(BL$3,$I82)=1,0,IF(MOD(BL$3,Calculations!$K82)=1,1,0))))*$AU82)*(1+'Country Input'!$C$45)^(Calculations!BL$3-$BH$3)","v":1075},{"$f":"(($U82+($O82)*IF(MOD(BM$3,$I82)=1,1,0)+Parts!$E$91*IF($J82=0,0,IF(MOD(BM$3,$I82)=1,IF(PQS!$R82=\"NO\",1,0),IF(MOD(BM$3,Calculations!$J82)=1,1,0)))+Parts!$E$92*IF(Calculations!$K82=0,0,IF(MOD(BM$3,$I82)=1,0,IF(MOD(BM$3,Calculations!$K82)=1,1,0))))*$AU82)*(1+'Country Input'!$C$45)^(Calculations!BM$3-$BH$3)","v":1075},{"$f":"(($U82+($O82)*IF(MOD(BN$3,$I82)=1,1,0)+Parts!$E$91*IF($J82=0,0,IF(MOD(BN$3,$I82)=1,IF(PQS!$R82=\"NO\",1,0),IF(MOD(BN$3,Calculations!$J82)=1,1,0)))+Parts!$E$92*IF(Calculations!$K82=0,0,IF(MOD(BN$3,$I82)=1,0,IF(MOD(BN$3,Calculations!$K82)=1,1,0))))*$AU82)*(1+'Country Input'!$C$45)^(Calculations!BN$3-$BH$3)","v":1075},{"$f":"(($U82+($O82)*IF(MOD(BO$3,$I82)=1,1,0)+Parts!$E$91*IF($J82=0,0,IF(MOD(BO$3,$I82)=1,IF(PQS!$R82=\"NO\",1,0),IF(MOD(BO$3,Calculations!$J82)=1,1,0)))+Parts!$E$92*IF(Calculations!$K82=0,0,IF(MOD(BO$3,$I82)=1,0,IF(MOD(BO$3,Calculations!$K82)=1,1,0))))*$AU82)*(1+'Country Input'!$C$45)^(Calculations!BO$3-$BH$3)","v":1075},{"$f":"(($U82+($O82)*IF(MOD(BP$3,$I82)=1,1,0)+Parts!$E$91*IF($J82=0,0,IF(MOD(BP$3,$I82)=1,IF(PQS!$R82=\"NO\",1,0),IF(MOD(BP$3,Calculations!$J82)=1,1,0)))+Parts!$E$92*IF(Calculations!$K82=0,0,IF(MOD(BP$3,$I82)=1,0,IF(MOD(BP$3,Calculations!$K82)=1,1,0))))*$AU82)*(1+'Country Input'!$C$45)^(Calculations!BP$3-$BH$3)","v":1075},{"$f":"(($U82+($O82)*IF(MOD(BQ$3,$I82)=1,1,0)+Parts!$E$91*IF($J82=0,0,IF(MOD(BQ$3,$I82)=1,IF(PQS!$R82=\"NO\",1,0),IF(MOD(BQ$3,Calculations!$J82)=1,1,0)))+Parts!$E$92*IF(Calculations!$K82=0,0,IF(MOD(BQ$3,$I82)=1,0,IF(MOD(BQ$3,Calculations!$K82)=1,1,0))))*$AU82)*(1+'Country Input'!$C$45)^(Calculations!BQ$3-$BH$3)","v":1075},{"$f":"(($U82+($O82)*IF(MOD(BR$3,$I82)=1,1,0)+Parts!$E$91*IF($J82=0,0,IF(MOD(BR$3,$I82)=1,IF(PQS!$R82=\"NO\",1,0),IF(MOD(BR$3,Calculations!$J82)=1,1,0)))+Parts!$E$92*IF(Calculations!$K82=0,0,IF(MOD(BR$3,$I82)=1,0,IF(MOD(BR$3,Calculations!$K82)=1,1,0))))*$AU82)*(1+'Country Input'!$C$45)^(Calculations!BR$3-$BH$3)","v":68996.059560000009},{"$f":"(($U82+($O82)*IF(MOD(BS$3,$I82)=1,1,0)+Parts!$E$91*IF($J82=0,0,IF(MOD(BS$3,$I82)=1,IF(PQS!$R82=\"NO\",1,0),IF(MOD(BS$3,Calculations!$J82)=1,1,0)))+Parts!$E$92*IF(Calculations!$K82=0,0,IF(MOD(BS$3,$I82)=1,0,IF(MOD(BS$3,Calculations!$K82)=1,1,0))))*$AU82)*(1+'Country Input'!$C$45)^(Calculations!BS$3-$BH$3)","v":1075},{"$f":"(($U82+($O82)*IF(MOD(BT$3,$I82)=1,1,0)+Parts!$E$91*IF($J82=0,0,IF(MOD(BT$3,$I82)=1,IF(PQS!$R82=\"NO\",1,0),IF(MOD(BT$3,Calculations!$J82)=1,1,0)))+Parts!$E$92*IF(Calculations!$K82=0,0,IF(MOD(BT$3,$I82)=1,0,IF(MOD(BT$3,Calculations!$K82)=1,1,0))))*$AU82)*(1+'Country Input'!$C$45)^(Calculations!BT$3-$BH$3)","v":1075},{"$f":"(($U82+($O82)*IF(MOD(BU$3,$I82)=1,1,0)+Parts!$E$91*IF($J82=0,0,IF(MOD(BU$3,$I82)=1,IF(PQS!$R82=\"NO\",1,0),IF(MOD(BU$3,Calculations!$J82)=1,1,0)))+Parts!$E$92*IF(Calculations!$K82=0,0,IF(MOD(BU$3,$I82)=1,0,IF(MOD(BU$3,Calculations!$K82)=1,1,0))))*$AU82)*(1+'Country Input'!$C$45)^(Calculations!BU$3-$BH$3)","v":1075},{"$f":"(($U82+($O82)*IF(MOD(BV$3,$I82)=1,1,0)+Parts!$E$91*IF($J82=0,0,IF(MOD(BV$3,$I82)=1,IF(PQS!$R82=\"NO\",1,0),IF(MOD(BV$3,Calculations!$J82)=1,1,0)))+Parts!$E$92*IF(Calculations!$K82=0,0,IF(MOD(BV$3,$I82)=1,0,IF(MOD(BV$3,Calculations!$K82)=1,1,0))))*$AU82)*(1+'Country Input'!$C$45)^(Calculations!BV$3-$BH$3)","v":1075},{"$f":"(($U82+($O82)*IF(MOD(BW$3,$I82)=1,1,0)+Parts!$E$91*IF($J82=0,0,IF(MOD(BW$3,$I82)=1,IF(PQS!$R82=\"NO\",1,0),IF(MOD(BW$3,Calculations!$J82)=1,1,0)))+Parts!$E$92*IF(Calculations!$K82=0,0,IF(MOD(BW$3,$I82)=1,0,IF(MOD(BW$3,Calculations!$K82)=1,1,0))))*$AU82)*(1+'Country Input'!$C$45)^(Calculations!BW$3-$BH$3)","v":1075},{"$f":"(($U82+($O82)*IF(MOD(BX$3,$I82)=1,1,0)+Parts!$E$91*IF($J82=0,0,IF(MOD(BX$3,$I82)=1,IF(PQS!$R82=\"NO\",1,0),IF(MOD(BX$3,Calculations!$J82)=1,1,0)))+Parts!$E$92*IF(Calculations!$K82=0,0,IF(MOD(BX$3,$I82)=1,0,IF(MOD(BX$3,Calculations!$K82)=1,1,0))))*$AU82)*(1+'Country Input'!$C$45)^(Calculations!BX$3-$BH$3)","v":1075},{"$f":"(($U82+($O82)*IF(MOD(BY$3,$I82)=1,1,0)+Parts!$E$91*IF($J82=0,0,IF(MOD(BY$3,$I82)=1,IF(PQS!$R82=\"NO\",1,0),IF(MOD(BY$3,Calculations!$J82)=1,1,0)))+Parts!$E$92*IF(Calculations!$K82=0,0,IF(MOD(BY$3,$I82)=1,0,IF(MOD(BY$3,Calculations!$K82)=1,1,0))))*$AU82)*(1+'Country Input'!$C$45)^(Calculations!BY$3-$BH$3)","v":1075},{"$f":"(($U82+($O82)*IF(MOD(BZ$3,$I82)=1,1,0)+Parts!$E$91*IF($J82=0,0,IF(MOD(BZ$3,$I82)=1,IF(PQS!$R82=\"NO\",1,0),IF(MOD(BZ$3,Calculations!$J82)=1,1,0)))+Parts!$E$92*IF(Calculations!$K82=0,0,IF(MOD(BZ$3,$I82)=1,0,IF(MOD(BZ$3,Calculations!$K82)=1,1,0))))*$AU82)*(1+'Country Input'!$C$45)^(Calculations!BZ$3-$BH$3)","v":1075},{"$f":"(($U82+($O82)*IF(MOD(CA$3,$I82)=1,1,0)+Parts!$E$91*IF($J82=0,0,IF(MOD(CA$3,$I82)=1,IF(PQS!$R82=\"NO\",1,0),IF(MOD(CA$3,Calculations!$J82)=1,1,0)))+Parts!$E$92*IF(Calculations!$K82=0,0,IF(MOD(CA$3,$I82)=1,0,IF(MOD(CA$3,Calculations!$K82)=1,1,0))))*$AU82)*(1+'Country Input'!$C$45)^(Calculations!CA$3-$BH$3)","v":1075},null,{"$f":"E82","v":"B Medical TCW 15 SDD*"},{"$f":"BH82/((1+DiscountRate)^(COLUMN(CD82)-COLUMN($CD82)))","v":68996.059560000009},{"$f":"BI82/((1+DiscountRate)^(COLUMN(CE82)-COLUMN($CD82)))","v":1075},{"$f":"BJ82/((1+DiscountRate)^(COLUMN(CF82)-COLUMN($CD82)))","v":1075},{"$f":"BK82/((1+DiscountRate)^(COLUMN(CG82)-COLUMN($CD82)))","v":1075},{"$f":"BL82/((1+DiscountRate)^(COLUMN(CH82)-COLUMN($CD82)))","v":1075},{"$f":"BM82/((1+DiscountRate)^(COLUMN(CI82)-COLUMN($CD82)))","v":1075},{"$f":"BN82/((1+DiscountRate)^(COLUMN(CJ82)-COLUMN($CD82)))","v":1075},{"$f":"BO82/((1+DiscountRate)^(COLUMN(CK82)-COLUMN($CD82)))","v":1075},{"$f":"BP82/((1+DiscountRate)^(COLUMN(CL82)-COLUMN($CD82)))","v":1075},{"$f":"BQ82/((1+DiscountRate)^(COLUMN(CM82)-COLUMN($CD82)))","v":1075},{"$f":"BR82/((1+DiscountRate)^(COLUMN(CN82)-COLUMN($CD82)))","v":68996.059560000009},{"$f":"BS82/((1+DiscountRate)^(COLUMN(CO82)-COLUMN($CD82)))","v":1075},{"$f":"BT82/((1+DiscountRate)^(COLUMN(CP82)-COLUMN($CD82)))","v":1075},{"$f":"BU82/((1+DiscountRate)^(COLUMN(CQ82)-COLUMN($CD82)))","v":1075},{"$f":"BV82/((1+DiscountRate)^(COLUMN(CR82)-COLUMN($CD82)))","v":1075},{"$f":"BW82/((1+DiscountRate)^(COLUMN(CS82)-COLUMN($CD82)))","v":1075},{"$f":"BX82/((1+DiscountRate)^(COLUMN(CT82)-COLUMN($CD82)))","v":1075},{"$f":"BY82/((1+DiscountRate)^(COLUMN(CU82)-COLUMN($CD82)))","v":1075},{"$f":"BZ82/((1+DiscountRate)^(COLUMN(CV82)-COLUMN($CD82)))","v":1075},{"$f":"CA82/((1+DiscountRate)^(COLUMN(CW82)-COLUMN($CD82)))","v":1075},{"$f":"SUM(CD82:INDEX($CD82:$CW82,1,'Total Solution Costs'!$B$2))","v":78671.059560000009},null,{"$f":"CC82","v":"B Medical TCW 15 SDD*"},{"$f":"SUM($BH82:BH82)","v":68996.059560000009},{"$f":"SUM($BH82:BI82)","v":70071.059560000009},{"$f":"SUM($BH82:BJ82)","v":71146.059560000009},{"$f":"SUM($BH82:BK82)","v":72221.059560000009},{"$f":"SUM($BH82:BL82)","v":73296.059560000009},{"$f":"SUM($BH82:BM82)","v":74371.059560000009},{"$f":"SUM($BH82:BN82)","v":75446.059560000009},{"$f":"SUM($BH82:BO82)","v":76521.059560000009},{"$f":"SUM($BH82:BP82)","v":77596.059560000009},{"$f":"SUM($BH82:BQ82)","v":78671.059560000009},{"$f":"SUM($BH82:BR82)","v":147667.11912000002},{"$f":"SUM($BH82:BS82)","v":148742.11912000002},{"$f":"SUM($BH82:BT82)","v":149817.11912000002},{"$f":"SUM($BH82:BU82)","v":150892.11912000002},{"$f":"SUM($BH82:BV82)","v":151967.11912000002},{"$f":"SUM($BH82:BW82)","v":153042.11912000002},{"$f":"SUM($BH82:BX82)","v":154117.11912000002},{"$f":"SUM($BH82:BY82)","v":155192.11912000002},{"$f":"SUM($BH82:BZ82)","v":156267.11912000002},{"$f":"SUM($BH82:CA82)","v":157342.11912000002}]
[{"$f":"PQS!A83","v":"SDD"},{"$f":"PQS!B83","v":"E003/078"},{"$f":"PQS!E83","v":"VC 50 SDD*"},{"$f":"PQS!F83","v":"Dulas Solar"},{"$f":"PQS!D83","v":"Dulas Solar VC 50 SDD*"},{"$f":"VLOOKUP(E83,PQS!$D$5:$K$107,COLUMN(PQS!$I$3)-COLUMN(PQS!$D$3)+1,FALSE)","v":52.5},{"$f":"VLOOKUP(E83,PQS!$D$5:$K$107,COLUMN(PQS!$J$3)-COLUMN(PQS!$D$3)+1,FALSE)","v":0},{"$f":"VLOOKUP(E83,PQS!$D$5:$K$107,COLUMN(PQS!$G$3)-COLUMN(PQS!$D$3)+1,FALSE)","v":"Yes"},{"$f":"HLOOKUP(B83,INDIRECT(\"'\"&A83&\"'!$10:$15\"),ROW('Technology template'!$A$11)-ROW('Technology template'!$A$10)+1,FALSE)","v":10},{"$f":"HLOOKUP(B83,INDIRECT(\"'\"&A83&\"'!$10:$15\"),ROW('Technology template'!$A$12)-ROW('Technology template'!$A$10)+1,FALSE)","v":10},{"$f":"HLOOKUP(B83,INDIRECT(\"'\"&A83&\"'!$10:$15\"),ROW('Technology template'!$A$13)-ROW('Technology template'!$A$10)+1,FALSE)","v":0},{"$f":"VLOOKUP(B83,PQS!$B:$Q,MATCH(PQS!$Q$3,PQS!$B$3:$Q$3,0),FALSE)*(1+'Country Input'!$C$47)+HLOOKUP(B83,INDIRECT(\"'\"&A83&\"'!$10:$15\"),ROW('Technology template'!$A$14)-ROW('Technology template'!$A$10)+1,FALSE)*(1+'Country Input'!$C$47)","v":3335.7250000000004},{"$f":"HLOOKUP(B83,INDIRECT(\"'\"&A83&\"'!$10:$80\"),MATCH('Technology template'!$A$27,INDIRECT(\"'\"&A83&\"'!$A$10:$A$80\"),0),FALSE)+'Labor and Maintenance '!$E$18","v":1042},{"$f":"VLOOKUP(B83,PQS!B:T,MATCH(PQS!$T$3,PQS!$B$3:$T$3,0),FALSE)*(1+'Country Input'!$C$47)","v":774.24825500000009},5151.9732550000008,515.19732550000003,{"$f":"VLOOKUP(B83,PQS!$B:$AE,COLUMN(PQS!AD81)-1,FALSE)","v":0},{"$f":"IFERROR(1/HLOOKUP(B83,INDIRECT(\"'\"&A83&\"'!$10:$80\"),MATCH('Technology template'!$A$31,INDIRECT(\"'\"&A83&\"'!$A$10:$A$80\"),0),FALSE)*HLOOKUP(B83,INDIRECT(\"'\"&A83&\"'!$10:$80\"),MATCH('Technology template'!$A$41,INDIRECT(\"'\"&A83&\"'!$A10:$A$80\"),0),FALSE),0)*TechnicianHourlyWage+IF(A83=\"Solar w Battery\",1/'Labor and Maintenance '!$E$53*'Labor and Maintenance '!$D$53,0)+IF(A83=\"LT passive\", 1/'Labor and Maintenance '!$E$81*'Labor and Maintenance '!$D$81,0)","v":24},{"$f":"IFERROR(1/HLOOKUP(B83,INDIRECT(\"'\"&A83&\"'!$10:$80\"),MATCH('Technology template'!$A$34,INDIRECT(\"'\"&A83&\"'!$A$10:$A$80\"),0),FALSE)*(HLOOKUP(B83,INDIRECT(\"'\"&A83&\"'!$10:$80\"),MATCH('Technology template'!$A$44,INDIRECT(\"'\"&A83&\"'!$A10:$A$80\"),0),FALSE)*TechnicianHourlyWage+RemoteTravelCostPerDay),0)+IFERROR(1/HLOOKUP(B83,INDIRECT(\"'\"&A83&\"'!$10:$80\"),MATCH('Technology template'!$A$35,INDIRECT(\"'\"&A83&\"'!$A$10:$A$80\"),0),FALSE)*(HLOOKUP(B83,INDIRECT(\"'\"&A83&\"'!$10:$80\"),MATCH('Technology template'!$A$45,INDIRECT(\"'\"&A83&\"'!$A10:$A$80\"),0),FALSE)*TechnicianHourlyWage+RemoteTravelCostPerDay),0)+IFERROR(1/HLOOKUP(B83,INDIRECT(\"'\"&A83&\"'!$10:$80\"),MATCH('Technology template'!$A$37,INDIRECT(\"'\"&A83&\"'!$A$10:$A$80\"),0),FALSE)*(HLOOKUP(B83,INDIRECT(\"'\"&A83&\"'!$10:$80\"),MATCH('Technology template'!$A$46,INDIRECT(\"'\"&A83&\"'!$A10:$A$80\"),0),FALSE)*TechnicianHourlyWage+'Labor and Maintenance '!$B$8),0)","v":83.5},1075,107.5,622.69732550000003,null,"Dulas Solar VC 50 SDD*",98.132823904761921,20.476190476190474,118.6090143809524,null,"Dulas Solar VC 50 SDD*",9.813282390476191,2.0476190476190474,11.860901438095238,null,"Dulas Solar VC 50 SDD*",3,15455.919765000002,3225,18680.919765000002,null,"Dulas Solar VC 50 SDD*",3,29.439847171428575,6.1428571428571423,35.582704314285721,null,"Dulas Solar VC 50 SDD*",{"$f":"IF(F83=0, 'Country Input'!$D$7, ROUNDUP(LitersPerFacility/F83,0)*'Country Input'!$D$7)","v":10},51519.732550000008,1075,52594.732550000008,null,"Dulas Solar VC 50 SDD*",{"$f":"ROUNDUP(LitersPerFacility/F83,0)*'Country Input'!$D$7*ROUNDUP('Total Solution Costs'!$B$2/Calculations!I83,0)","v":10},98.132823904761906,2.0476190476190474,100.18044295238096,null,null,"Dulas Solar VC 50 SDD*",{"$f":"(($U83+($O83)*IF(MOD(BH$3,$I83)=1,1,0)+Parts!$E$91*IF($J83=0,0,IF(MOD(BH$3,$I83)=1,IF(PQS!$R83=\"NO\",1,0),IF(MOD(BH$3,Calculations!$J83)=1,1,0)))+Parts!$E$92*IF(Calculations!$K83=0,0,IF(MOD(BH$3,$I83)=1,0,IF(MOD(BH$3,Calculations!$K83)=1,1,0))))*$AU83)*(1+'Country Input'!$C$45)^(Calculations!BH$3-$BH$3)+TrainingCost","v":52594.732550000008},{"$f":"(($U83+($O83)*IF(MOD(BI$3,$I83)=1,1,0)+Parts!$E$91*IF($J83=0,0,IF(MOD(BI$3,$I83)=1,IF(PQS!$R83=\"NO\",1,0),IF(MOD(BI$3,Calculations!$J83)=1,1,0)))+Parts!$E$92*IF(Calculations!$K83=0,0,IF(MOD(BI$3,$I83)=1,0,IF(MOD(BI$3,Calculations!$K83)=1,1,0))))*$AU83)*(1+'Country Input'!$C$45)^(Calculations!BI$3-$BH$3)","v":1075},{"$f":"(($U83+($O83)*IF(MOD(BJ$3,$I83)=1,1,0)+Parts!$E$91*IF($J83=0,0,IF(MOD(BJ$3,$I83)=1,IF(PQS!$R83=\"NO\",1,0),IF(MOD(BJ$3,Calculations!$J83)=1,1,0)))+Parts!$E$92*IF(Calculations!$K83=0,0,IF(MOD(BJ$3,$I83)=1,0,IF(MOD(BJ$3,Calculations!$K83)=1,1,0))))*$AU83)*(1+'Country Input'!$C$45)^(Calculations!BJ$3-$BH$3)","v":1075},{"$f":"(($U83+($O83)*IF(MOD(BK$3,$I83)=1,1,0)+Parts!$E$91*IF($J83=0,0,IF(MOD(BK$3,$I83)=1,IF(PQS!$R83=\"NO\",1,0),IF(MOD(BK$3,Calculations!$J83)=1,1,0)))+Parts!$E$92*IF(Calculations!$K83=0,0,IF(MOD(BK$3,$I83)=1,0,IF(MOD(BK$3,Calculations!$K83)=1,1,0))))*$AU83)*(1+'Country Input'!$C$45)^(Calculations!BK$3-$BH$3)","v":1075},{"$f":"(($U83+($O83)*IF(MOD(BL$3,$I83)=1,1,0)+Parts!$E$91*IF($J83=0,0,IF(MOD(BL$3,$I83)=1,IF(PQS!$R83=\"NO\",1,0),IF(MOD(BL$3,Calculations!$J83)=1,1,0)))+Parts!$E$92*IF(Calculations!$K83=0,0,IF(MOD(BL$3,$I83)=1,0,IF(MOD(BL$3,Calculations!$K83)=1,1,0))))*$AU83)*(1+'Country Input'!$C$45)^(Calculations!BL$3-$BH$3)","v":1075},{"$f":"(($U83+($O83)*IF(MOD(BM$3,$I83)=1,1,0)+Parts!$E$91*IF($J83=0,0,IF(MOD(BM$3,$I83)=1,IF(PQS!$R83=\"NO\",1,0),IF(MOD(BM$3,Calculations!$J83)=1,1,0)))+Parts!$E$92*IF(Calculations!$K83=0,0,IF(MOD(BM$3,$I83)=1,0,IF(MOD(BM$3,Calculations!$K83)=1,1,0))))*$AU83)*(1+'Country Input'!$C$45)^(Calculations!BM$3-$BH$3)","v":1075},{"$f":"(($U83+($O83)*IF(MOD(BN$3,$I83)=1,1,0)+Parts!$E$91*IF($J83=0,0,IF(MOD(BN$3,$I83)=1,IF(PQS!$R83=\"NO\",1,0),IF(MOD(BN$3,Calculations!$J83)=1,1,0)))+Parts!$E$92*IF(Calculations!$K83=0,0,IF(MOD(BN$3,$I83)=1,0,IF(MOD(BN$3,Calculations!$K83)=1,1,0))))*$AU83)*(1+'Country Input'!$C$45)^(Calculations!BN$3-$BH$3)","v":1075},{"$f":"(($U83+($O83)*IF(MOD(BO$3,$I83)=1,1,0)+Parts!$E$91*IF($J83=0,0,IF(MOD(BO$3,$I83)=1,IF(PQS!$R83=\"NO\",1,0),IF(MOD(BO$3,Calculations!$J83)=1,1,0)))+Parts!$E$92*IF(Calculations!$K83=0,0,IF(MOD(BO$3,$I83)=1,0,IF(MOD(BO$3,Calculations!$K83)=1,1,0))))*$AU83)*(1+'Country Input'!$C$45)^(Calculations!BO$3-$BH$3)","v":1075},{"$f":"(($U83+($O83)*IF(MOD(BP$3,$I83)=1,1,0)+Parts!$E$91*IF($J83=0,0,IF(MOD(BP$3,$I83)=1,IF(PQS!$R83=\"NO\",1,0),IF(MOD(BP$3,Calculations!$J83)=1,1,0)))+Parts!$E$92*IF(Calculations!$K83=0,0,IF(MOD(BP$3,$I83)=1,0,IF(MOD(BP$3,Calculations!$K83)=1,1,0))))*$AU83)*(1+'Country Input'!$C$45)^(Calculations!BP$3-$BH$3)","v":1075},{"$f":"(($U83+($O83)*IF(MOD(BQ$3,$I83)=1,1,0)+Parts!$E$91*IF($J83=0,0,IF(MOD(BQ$3,$I83)=1,IF(PQS!$R83=\"NO\",1,0),IF(MOD(BQ$3,Calculations!$J83)=1,1,0)))+Parts!$E$92*IF(Calculations!$K83=0,0,IF(MOD(BQ$3,$I83)=1,0,IF(MOD(BQ$3,Calculations!$K83)=1,1,0))))*$AU83)*(1+'Country Input'!$C$45)^(Calculations!BQ$3-$BH$3)","v":1075},{"$f":"(($U83+($O83)*IF(MOD(BR$3,$I83)=1,1,0)+Parts!$E$91*IF($J83=0,0,IF(MOD(BR$3,$I83)=1,IF(PQS!$R83=\"NO\",1,0),IF(MOD(BR$3,Calculations!$J83)=1,1,0)))+Parts!$E$92*IF(Calculations!$K83=0,0,IF(MOD(BR$3,$I83)=1,0,IF(MOD(BR$3,Calculations!$K83)=1,1,0))))*$AU83)*(1+'Country Input'!$C$45)^(Calculations!BR$3-$BH$3)","v":52594.732550000008},{"$f":"(($U83+($O83)*IF(MOD(BS$3,$I83)=1,1,0)+Parts!$E$91*IF($J83=0,0,IF(MOD(BS$3,$I83)=1,IF(PQS!$R83=\"NO\",1,0),IF(MOD(BS$3,Calculations!$J83)=1,1,0)))+Parts!$E$92*IF(Calculations!$K83=0,0,IF(MOD(BS$3,$I83)=1,0,IF(MOD(BS$3,Calculations!$K83)=1,1,0))))*$AU83)*(1+'Country Input'!$C$45)^(Calculations!BS$3-$BH$3)","v":1075},{"$f":"(($U83+($O83)*IF(MOD(BT$3,$I83)=1,1,0)+Parts!$E$91*IF($J83=0,0,IF(MOD(BT$3,$I83)=1,IF(PQS!$R83=\"NO\",1,0),IF(MOD(BT$3,Calculations!$J83)=1,1,0)))+Parts!$E$92*IF(Calculations!$K83=0,0,IF(MOD(BT$3,$I83)=1,0,IF(MOD(BT$3,Calculations!$K83)=1,1,0))))*$AU83)*(1+'Country Input'!$C$45)^(Calculations!BT$3-$BH$3)","v":1075},{"$f":"(($U83+($O83)*IF(MOD(BU$3,$I83)=1,1,0)+Parts!$E$91*IF($J83=0,0,IF(MOD(BU$3,$I83)=1,IF(PQS!$R83=\"NO\",1,0),IF(MOD(BU$3,Calculations!$J83)=1,1,0)))+Parts!$E$92*IF(Calculations!$K83=0,0,IF(MOD(BU$3,$I83)=1,0,IF(MOD(BU$3,Calculations!$K83)=1,1,0))))*$AU83)*(1+'Country Input'!$C$45)^(Calculations!BU$3-$BH$3)","v":1075},{"$f":"(($U83+($O83)*IF(MOD(BV$3,$I83)=1,1,0)+Parts!$E$91*IF($J83=0,0,IF(MOD(BV$3,$I83)=1,IF(PQS!$R83=\"NO\",1,0),IF(MOD(BV$3,Calculations!$J83)=1,1,0)))+Parts!$E$92*IF(Calculations!$K83=0,0,IF(MOD(BV$3,$I83)=1,0,IF(MOD(BV$3,Calculations!$K83)=1,1,0))))*$AU83)*(1+'Country Input'!$C$45)^(Calculations!BV$3-$BH$3)","v":1075},{"$f":"(($U83+($O83)*IF(MOD(BW$3,$I83)=1,1,0)+Parts!$E$91*IF($J83=0,0,IF(MOD(BW$3,$I83)=1,IF(PQS!$R83=\"NO\",1,0),IF(MOD(BW$3,Calculations!$J83)=1,1,0)))+Parts!$E$92*IF(Calculations!$K83=0,0,IF(MOD(BW$3,$I83)=1,0,IF(MOD(BW$3,Calculations!$K83)=1,1,0))))*$AU83)*(1+'Country Input'!$C$45)^(Calculations!BW$3-$BH$3)","v":1075},{"$f":"(($U83+($O83)*IF(MOD(BX$3,$I83)=1,1,0)+Parts!$E$91*IF($J83=0,0,IF(MOD(BX$3,$I83)=1,IF(PQS!$R83=\"NO\",1,0),IF(MOD(BX$3,Calculations!$J83)=1,1,0)))+Parts!$E$92*IF(Calculations!$K83=0,0,IF(MOD(BX$3,$I83)=1,0,IF(MOD(BX$3,Calculations!$K83)=1,1,0))))*$AU83)*(1+'Country Input'!$C$45)^(Calculations!BX$3-$BH$3)","v":1075},{"$f":"(($U83+($O83)*IF(MOD(BY$3,$I83)=1,1,0)+Parts!$E$91*IF($J83=0,0,IF(MOD(BY$3,$I83)=1,IF(PQS!$R83=\"NO\",1,0),IF(MOD(BY$3,Calculations!$J83)=1,1,0)))+Parts!$E$92*IF(Calculations!$K83=0,0,IF(MOD(BY$3,$I83)=1,0,IF(MOD(BY$3,Calculations!$K83)=1,1,0))))*$AU83)*(1+'Country Input'!$C$45)^(Calculations!BY$3-$BH$3)","v":1075},{"$f":"(($U83+($O83)*IF(MOD(BZ$3,$I83)=1,1,0)+Parts!$E$91*IF($J83=0,0,IF(MOD(BZ$3,$I83)=1,IF(PQS!$R83=\"NO\",1,0),IF(MOD(BZ$3,Calculations!$J83)=1,1,0)))+Parts!$E$92*IF(Calculations!$K83=0,0,IF(MOD(BZ$3,$I83)=1,0,IF(MOD(BZ$3,Calculations!$K83)=1,1,0))))*$AU83)*(1+'Country Input'!$C$45)^(Calculations!BZ$3-$BH$3)","v":1075},{"$f":"(($U83+($O83)*IF(MOD(CA$3,$I83)=1,1,0)+Parts!$E$91*IF($J83=0,0,IF(MOD(CA$3,$I83)=1,IF(PQS!$R83=\"NO\",1,0),IF(MOD(CA$3,Calculations!$J83)=1,1,0)))+Parts!$E$92*IF(Calculations!$K83=0,0,IF(MOD(CA$3,$I83)=1,0,IF(MOD(CA$3,Calculations!$K83)=1,1,0))))*$AU83)*(1+'Country Input'!$C$45)^(Calculations!CA$3-$BH$3)","v":1075},null,"Dulas Solar VC 50 SDD*",52594.732550000008,1075,1075,1075,1075,1075,1075,1075,1075,1075,52594.732550000008,1075,1075,1075,1075,1075,1075,1075,1075,1075,{"$f":"SUM(CD83:INDEX($CD83:$CW83,1,'Total Solution Costs'!$B$2))","v":62269.732550000008},null,"Dulas Solar VC 50 SDD*",{"$f":"SUM($BH83:BH83)","v":52594.732550000008},{"$f":"SUM($BH83:BI83)","v":53669.732550000008},{"$f":"SUM($BH83:BJ83)","v":54744.732550000008},{"$f":"SUM($BH83:BK83)","v":55819.732550000008},{"$f":"SUM($BH83:BL83)","v":56894.732550000008},{"$f":"SUM($BH83:BM83)","v":57969.732550000008},{"$f":"SUM($BH83:BN83)","v":59044.732550000008},{"$f":"SUM($BH83:BO83)","v":60119.732550000008},{"$f":"SUM($BH83:BP83)","v":61194.732550000008},{"$f":"SUM($BH83:BQ83)","v":62269.732550000008},{"$f":"SUM($BH83:BR83)","v":114864.46510000002},{"$f":"SUM($BH83:BS83)","v":115939.46510000002},{"$f":"SUM($BH83:BT83)","v":117014.46510000002},{"$f":"SUM($BH83:BU83)","v":118089.46510000002},{"$f":"SUM($BH83:BV83)","v":119164.46510000002},{"$f":"SUM($BH83:BW83)","v":120239.46510000002},{"$f":"SUM($BH83:BX83)","v":121314.46510000002},{"$f":"SUM($BH83:BY83)","v":122389.46510000002},{"$f":"SUM($BH83:BZ83)","v":123464.46510000002},{"$f":"SUM($BH83:CA83)","v":124539.46510000002}]
[{"$f":"PQS!A84","v":"SDD"},{"$f":"PQS!B84","v":"E003/084"},{"$f":"PQS!E84","v":"VC 60 SDD*"},{"$f":"PQS!F84","v":"Dulas Solar"},{"$f":"PQS!D84","v":"Dulas Solar VC 60 SDD*"},{"$f":"VLOOKUP(E84,PQS!$D$5:$K$107,COLUMN(PQS!$I$3)-COLUMN(PQS!$D$3)+1,FALSE)","v":57},{"$f":"VLOOKUP(E84,PQS!$D$5:$K$107,COLUMN(PQS!$J$3)-COLUMN(PQS!$D$3)+1,FALSE)","v":24},{"$f":"VLOOKUP(E84,PQS!$D$5:$K$107,COLUMN(PQS!$G$3)-COLUMN(PQS!$D$3)+1,FALSE)","v":"Yes"},{"$f":"HLOOKUP(B84,INDIRECT(\"'\"&A84&\"'!$10:$15\"),ROW('Technology template'!$A$11)-ROW('Technology template'!$A$10)+1,FALSE)","v":10},{"$f":"HLOOKUP(B84,INDIRECT(\"'\"&A84&\"'!$10:$15\"),ROW('Technology template'!$A$12)-ROW('Technology template'!$A$10)+1,FALSE)","v":10},{"$f":"HLOOKUP(B84,INDIRECT(\"'\"&A84&\"'!$10:$15\"),ROW('Technology template'!$A$13)-ROW('Technology template'!$A$10)+1,FALSE)","v":0},{"$f":"VLOOKUP(B84,PQS!$B:$Q,MATCH(PQS!$Q$3,PQS!$B$3:$Q$3,0),FALSE)*(1+'Country Input'!$C$47)+HLOOKUP(B84,INDIRECT(\"'\"&A84&\"'!$10:$15\"),ROW('Technology template'!$A$14)-ROW('Technology template'!$A$10)+1,FALSE)*(1+'Country Input'!$C$47)","v":5668.3249999999998},{"$f":"HLOOKUP(B84,INDIRECT(\"'\"&A84&\"'!$10:$80\"),MATCH('Technology template'!$A$27,INDIRECT(\"'\"&A84&\"'!$A$10:$A$80\"),0),FALSE)+'Labor and Maintenance '!$E$18","v":1042},{"$f":"VLOOKUP(B84,PQS!B:T,MATCH(PQS!$T$3,PQS!$B$3:$T$3,0),FALSE)*(1+'Country Input'!$C$47)","v":717.90430200000026},7428.2293019999997,{"$f":"O84/I84","v":742.82293019999997},{"$f":"VLOOKUP(B84,PQS!$B:$AE,COLUMN(PQS!AD82)-1,FALSE)","v":0},{"$f":"IFERROR(1/HLOOKUP(B84,INDIRECT(\"'\"&A84&\"'!$10:$80\"),MATCH('Technology template'!$A$31,INDIRECT(\"'\"&A84&\"'!$A$10:$A$80\"),0),FALSE)*HLOOKUP(B84,INDIRECT(\"'\"&A84&\"'!$10:$80\"),MATCH('Technology template'!$A$41,INDIRECT(\"'\"&A84&\"'!$A10:$A$80\"),0),FALSE),0)*TechnicianHourlyWage+IF(A84=\"Solar w Battery\",1/'Labor and Maintenance '!$E$53*'Labor and Maintenance '!$D$53,0)+IF(A84=\"LT passive\", 1/'Labor and Maintenance '!$E$81*'Labor and Maintenance '!$D$81,0)","v":24},{"$f":"IFERROR(1/HLOOKUP(B84,INDIRECT(\"'\"&A84&\"'!$10:$80\"),MATCH('Technology template'!$A$34,INDIRECT(\"'\"&A84&\"'!$A$10:$A$80\"),0),FALSE)*(HLOOKUP(B84,INDIRECT(\"'\"&A84&\"'!$10:$80\"),MATCH('Technology template'!$A$44,INDIRECT(\"'\"&A84&\"'!$A10:$A$80\"),0),FALSE)*TechnicianHourlyWage+RemoteTravelCostPerDay),0)+IFERROR(1/HLOOKUP(B84,INDIRECT(\"'\"&A84&\"'!$10:$80\"),MATCH('Technology template'!$A$35,INDIRECT(\"'\"&A84&\"'!$A$10:$A$80\"),0),FALSE)*(HLOOKUP(B84,INDIRECT(\"'\"&A84&\"'!$10:$80\"),MATCH('Technology template'!$A$45,INDIRECT(\"'\"&A84&\"'!$A10:$A$80\"),0),FALSE)*TechnicianHourlyWage+RemoteTravelCostPerDay),0)+IFERROR(1/HLOOKUP(B84,INDIRECT(\"'\"&A84&\"'!$10:$80\"),MATCH('Technology template'!$A$37,INDIRECT(\"'\"&A84&\"'!$A$10:$A$80\"),0),FALSE)*(HLOOKUP(B84,INDIRECT(\"'\"&A84&\"'!$10:$80\"),MATCH('Technology template'!$A$46,INDIRECT(\"'\"&A84&\"'!$A10:$A$80\"),0),FALSE)*TechnicianHourlyWage+'Labor and Maintenance '!$B$8),0)","v":83.5},{"$f":"SUM(Q84:S84)*I84","v":1075},{"$f":"SUM(Q84:S84)","v":107.5},{"$f":"P84+U84","v":850.32293019999997},null,{"$f":"E84","v":"Dulas Solar VC 60 SDD*"},{"$f":"IF(F84=0,O84/G84,O84/F84)","v":130.31981231578948},{"$f":"IF(F84=0,T84/G84,T84/F84)","v":18.859649122807017},{"$f":"Y84+Z84","v":149.17946143859649},null,{"$f":"E84","v":"Dulas Solar VC 60 SDD*"},{"$f":"IF(F84=0, P84/G84, P84/F84)","v":13.031981231578946},{"$f":"IF(F84=0, U84/G84, U84/F84)","v":1.8859649122807018},{"$f":"IF(F84=0, V84/G84, V84/F84)","v":14.917946143859648},null,{"$f":"E84","v":"Dulas Solar VC 60 SDD*"},{"$f":"ROUNDUP(LitersPerDelivery/F84,0)","v":3},{"$f":"AI84*O84","v":22284.687905999999},{"$f":"AI84*T84","v":3225},{"$f":"AJ84+AK84","v":25509.687905999999},null,{"$f":"E84","v":"Dulas Solar VC 60 SDD*"},{"$f":"ROUNDUP(LitersPerDelivery/F84,0)","v":3},{"$f":"AO84*AD84","v":39.095943694736839},{"$f":"AO84*AE84","v":5.6578947368421053},{"$f":"+AP84+AQ84","v":44.753838431578941},null,{"$f":"E84","v":"Dulas Solar VC 60 SDD*"},{"$f":"IF(F84=0, 'Country Input'!$D$7, ROUNDUP(LitersPerFacility/F84,0)*'Country Input'!$D$7)","v":10},{"$f":"AU84*O84","v":74282.293019999997},{"$f":"AU84*(SUM(Q84:S84))","v":1075},{"$f":"AV84+AW84","v":75357.293019999997},null,{"$f":"E84","v":"Dulas Solar VC 60 SDD*"},{"$f":"ROUNDUP(LitersPerFacility/F84,0)*'Country Input'!$D$7*ROUNDUP('Total Solution Costs'!$B$2/Calculations!I84,0)","v":10},{"$f":"BA84*AD84","v":130.31981231578948},{"$f":"AW84/(F84*AU84)","v":1.8859649122807018},{"$f":"BB84+BC84","v":132.20577722807019},null,null,{"$f":"E84","v":"Dulas Solar VC 60 SDD*"},{"$f":"(($U84+($O84)*IF(MOD(BH$3,$I84)=1,1,0)+Parts!$E$91*IF($J84=0,0,IF(MOD(BH$3,$I84)=1,IF(PQS!$R84=\"NO\",1,0),IF(MOD(BH$3,Calculations!$J84)=1,1,0)))+Parts!$E$92*IF(Calculations!$K84=0,0,IF(MOD(BH$3,$I84)=1,0,IF(MOD(BH$3,Calculations!$K84)=1,1,0))))*$AU84)*(1+'Country Input'!$C$45)^(Calculations!BH$3-$BH$3)+TrainingCost","v":75357.293019999997},{"$f":"(($U84+($O84)*IF(MOD(BI$3,$I84)=1,1,0)+Parts!$E$91*IF($J84=0,0,IF(MOD(BI$3,$I84)=1,IF(PQS!$R84=\"NO\",1,0),IF(MOD(BI$3,Calculations!$J84)=1,1,0)))+Parts!$E$92*IF(Calculations!$K84=0,0,IF(MOD(BI$3,$I84)=1,0,IF(MOD(BI$3,Calculations!$K84)=1,1,0))))*$AU84)*(1+'Country Input'!$C$45)^(Calculations!BI$3-$BH$3)","v":1075},{"$f":"(($U84+($O84)*IF(MOD(BJ$3,$I84)=1,1,0)+Parts!$E$91*IF($J84=0,0,IF(MOD(BJ$3,$I84)=1,IF(PQS!$R84=\"NO\",1,0),IF(MOD(BJ$3,Calculations!$J84)=1,1,0)))+Parts!$E$92*IF(Calculations!$K84=0,0,IF(MOD(BJ$3,$I84)=1,0,IF(MOD(BJ$3,Calculations!$K84)=1,1,0))))*$AU84)*(1+'Country Input'!$C$45)^(Calculations!BJ$3-$BH$3)","v":1075},{"$f":"(($U84+($O84)*IF(MOD(BK$3,$I84)=1,1,0)+Parts!$E$91*IF($J84=0,0,IF(MOD(BK$3,$I84)=1,IF(PQS!$R84=\"NO\",1,0),IF(MOD(BK$3,Calculations!$J84)=1,1,0)))+Parts!$E$92*IF(Calculations!$K84=0,0,IF(MOD(BK$3,$I84)=1,0,IF(MOD(BK$3,Calculations!$K84)=1,1,0))))*$AU84)*(1+'Country Input'!$C$45)^(Calculations!BK$3-$BH$3)","v":1075},{"$f":"(($U84+($O84)*IF(MOD(BL$3,$I84)=1,1,0)+Parts!$E$91*IF($J84=0,0,IF(MOD(BL$3,$I84)=1,IF(PQS!$R84=\"NO\",1,0),IF(MOD(BL$3,Calculations!$J84)=1,1,0)))+Parts!$E$92*IF(Calculations!$K84=0,0,IF(MOD(BL$3,$I84)=1,0,IF(MOD(BL$3,Calculations!$K84)=1,1,0))))*$AU84)*(1+'Country Input'!$C$45)^(Calculations!BL$3-$BH$3)","v":1075},{"$f":"(($U84+($O84)*IF(MOD(BM$3,$I84)=1,1,0)+Parts!$E$91*IF($J84=0,0,IF(MOD(BM$3,$I84)=1,IF(PQS!$R84=\"NO\",1,0),IF(MOD(BM$3,Calculations!$J84)=1,1,0)))+Parts!$E$92*IF(Calculations!$K84=0,0,IF(MOD(BM$3,$I84)=1,0,IF(MOD(BM$3,Calculations!$K84)=1,1,0))))*$AU84)*(1+'Country Input'!$C$45)^(Calculations!BM$3-$BH$3)","v":1075},{"$f":"(($U84+($O84)*IF(MOD(BN$3,$I84)=1,1,0)+Parts!$E$91*IF($J84=0,0,IF(MOD(BN$3,$I84)=1,IF(PQS!$R84=\"NO\",1,0),IF(MOD(BN$3,Calculations!$J84)=1,1,0)))+Parts!$E$92*IF(Calculations!$K84=0,0,IF(MOD(BN$3,$I84)=1,0,IF(MOD(BN$3,Calculations!$K84)=1,1,0))))*$AU84)*(1+'Country Input'!$C$45)^(Calculations!BN$3-$BH$3)","v":1075},{"$f":"(($U84+($O84)*IF(MOD(BO$3,$I84)=1,1,0)+Parts!$E$91*IF($J84=0,0,IF(MOD(BO$3,$I84)=1,IF(PQS!$R84=\"NO\",1,0),IF(MOD(BO$3,Calculations!$J84)=1,1,0)))+Parts!$E$92*IF(Calculations!$K84=0,0,IF(MOD(BO$3,$I84)=1,0,IF(MOD(BO$3,Calculations!$K84)=1,1,0))))*$AU84)*(1+'Country Input'!$C$45)^(Calculations!BO$3-$BH$3)","v":1075},{"$f":"(($U84+($O84)*IF(MOD(BP$3,$I84)=1,1,0)+Parts!$E$91*IF($J84=0,0,IF(MOD(BP$3,$I84)=1,IF(PQS!$R84=\"NO\",1,0),IF(MOD(BP$3,Calculations!$J84)=1,1,0)))+Parts!$E$92*IF(Calculations!$K84=0,0,IF(MOD(BP$3,$I84)=1,0,IF(MOD(BP$3,Calculations!$K84)=1,1,0))))*$AU84)*(1+'Country Input'!$C$45)^(Calculations!BP$3-$BH$3)","v":1075},{"$f":"(($U84+($O84)*IF(MOD(BQ$3,$I84)=1,1,0)+Parts!$E$91*IF($J84=0,0,IF(MOD(BQ$3,$I84)=1,IF(PQS!$R84=\"NO\",1,0),IF(MOD(BQ$3,Calculations!$J84)=1,1,0)))+Parts!$E$92*IF(Calculations!$K84=0,0,IF(MOD(BQ$3,$I84)=1,0,IF(MOD(BQ$3,Calculations!$K84)=1,1,0))))*$AU84)*(1+'Country Input'!$C$45)^(Calculations!BQ$3-$BH$3)","v":1075},{"$f":"(($U84+($O84)*IF(MOD(BR$3,$I84)=1,1,0)+Parts!$E$91*IF($J84=0,0,IF(MOD(BR$3,$I84)=1,IF(PQS!$R84=\"NO\",1,0),IF(MOD(BR$3,Calculations!$J84)=1,1,0)))+Parts!$E$92*IF(Calculations!$K84=0,0,IF(MOD(BR$3,$I84)=1,0,IF(MOD(BR$3,Calculations!$K84)=1,1,0))))*$AU84)*(1+'Country Input'!$C$45)^(Calculations!BR$3-$BH$3)","v":75357.293019999997},{"$f":"(($U84+($O84)*IF(MOD(BS$3,$I84)=1,1,0)+Parts!$E$91*IF($J84=0,0,IF(MOD(BS$3,$I84)=1,IF(PQS!$R84=\"NO\",1,0),IF(MOD(BS$3,Calculations!$J84)=1,1,0)))+Parts!$E$92*IF(Calculations!$K84=0,0,IF(MOD(BS$3,$I84)=1,0,IF(MOD(BS$3,Calculations!$K84)=1,1,0))))*$AU84)*(1+'Country Input'!$C$45)^(Calculations!BS$3-$BH$3)","v":1075},{"$f":"(($U84+($O84)*IF(MOD(BT$3,$I84)=1,1,0)+Parts!$E$91*IF($J84=0,0,IF(MOD(BT$3,$I84)=1,IF(PQS!$R84=\"NO\",1,0),IF(MOD(BT$3,Calculations!$J84)=1,1,0)))+Parts!$E$92*IF(Calculations!$K84=0,0,IF(MOD(BT$3,$I84)=1,0,IF(MOD(BT$3,Calculations!$K84)=1,1,0))))*$AU84)*(1+'Country Input'!$C$45)^(Calculations!BT$3-$BH$3)","v":1075},{"$f":"(($U84+($O84)*IF(MOD(BU$3,$I84)=1,1,0)+Parts!$E$91*IF($J84=0,0,IF(MOD(BU$3,$I84)=1,IF(PQS!$R84=\"NO\",1,0),IF(MOD(BU$3,Calculations!$J84)=1,1,0)))+Parts!$E$92*IF(Calculations!$K84=0,0,IF(MOD(BU$3,$I84)=1,0,IF(MOD(BU$3,Calculations!$K84)=1,1,0))))*$AU84)*(1+'Country Input'!$C$45)^(Calculations!BU$3-$BH$3)","v":1075},{"$f":"(($U84+($O84)*IF(MOD(BV$3,$I84)=1,1,0)+Parts!$E$91*IF($J84=0,0,IF(MOD(BV$3,$I84)=1,IF(PQS!$R84=\"NO\",1,0),IF(MOD(BV$3,Calculations!$J84)=1,1,0)))+Parts!$E$92*IF(Calculations!$K84=0,0,IF(MOD(BV$3,$I84)=1,0,IF(MOD(BV$3,Calculations!$K84)=1,1,0))))*$AU84)*(1+'Country Input'!$C$45)^(Calculations!BV$3-$BH$3)","v":1075},{"$f":"(($U84+($O84)*IF(MOD(BW$3,$I84)=1,1,0)+Parts!$E$91*IF($J84=0,0,IF(MOD(BW$3,$I84)=1,IF(PQS!$R84=\"NO\",1,0),IF(MOD(BW$3,Calculations!$J84)=1,1,0)))+Parts!$E$92*IF(Calculations!$K84=0,0,IF(MOD(BW$3,$I84)=1,0,IF(MOD(BW$3,Calculations!$K84)=1,1,0))))*$AU84)*(1+'Country Input'!$C$45)^(Calculations!BW$3-$BH$3)","v":1075},{"$f":"(($U84+($O84)*IF(MOD(BX$3,$I84)=1,1,0)+Parts!$E$91*IF($J84=0,0,IF(MOD(BX$3,$I84)=1,IF(PQS!$R84=\"NO\",1,0),IF(MOD(BX$3,Calculations!$J84)=1,1,0)))+Parts!$E$92*IF(Calculations!$K84=0,0,IF(MOD(BX$3,$I84)=1,0,IF(MOD(BX$3,Calculations!$K84)=1,1,0))))*$AU84)*(1+'Country Input'!$C$45)^(Calculations!BX$3-$BH$3)","v":1075},{"$f":"(($U84+($O84)*IF(MOD(BY$3,$I84)=1,1,0)+Parts!$E$91*IF($J84=0,0,IF(MOD(BY$3,$I84)=1,IF(PQS!$R84=\"NO\",1,0),IF(MOD(BY$3,Calculations!$J84)=1,1,0)))+Parts!$E$92*IF(Calculations!$K84=0,0,IF(MOD(BY$3,$I84)=1,0,IF(MOD(BY$3,Calculations!$K84)=1,1,0))))*$AU84)*(1+'Country Input'!$C$45)^(Calculations!BY$3-$BH$3)","v":1075},{"$f":"(($U84+($O84)*IF(MOD(BZ$3,$I84)=1,1,0)+Parts!$E$91*IF($J84=0,0,IF(MOD(BZ$3,$I84)=1,IF(PQS!$R84=\"NO\",1,0),IF(MOD(BZ$3,Calculations!$J84)=1,1,0)))+Parts!$E$92*IF(Calculations!$K84=0,0,IF(MOD(BZ$3,$I84)=1,0,IF(MOD(BZ$3,Calculations!$K84)=1,1,0))))*$AU84)*(1+'Country Input'!$C$45)^(Calculations!BZ$3-$BH$3)","v":1075},{"$f":"(($U84+($O84)*IF(MOD(CA$3,$I84)=1,1,0)+Parts!$E$91*IF($J84=0,0,IF(MOD(CA$3,$I84)=1,IF(PQS!$R84=\"NO\",1,0),IF(MOD(CA$3,Calculations!$J84)=1,1,0)))+Parts!$E$92*IF(Calculations!$K84=0,0,IF(MOD(CA$3,$I84)=1,0,IF(MOD(CA$3,Calculations!$K84)=1,1,0))))*$AU84)*(1+'Country Input'!$C$45)^(Calculations!CA$3-$BH$3)","v":1075},null,{"$f":"E84","v":"Dulas Solar VC 60 SDD*"},{"$f":"BH84/((1+DiscountRate)^(COLUMN(CD84)-COLUMN($CD84)))","v":75357.293019999997},{"$f":"BI84/((1+DiscountRate)^(COLUMN(CE84)-COLUMN($CD84)))","v":1075},{"$f":"BJ84/((1+DiscountRate)^(COLUMN(CF84)-COLUMN($CD84)))","v":1075},{"$f":"BK84/((1+DiscountRate)^(COLUMN(CG84)-COLUMN($CD84)))","v":1075},{"$f":"BL84/((1+DiscountRate)^(COLUMN(CH84)-COLUMN($CD84)))","v":1075},{"$f":"BM84/((1+DiscountRate)^(COLUMN(CI84)-COLUMN($CD84)))","v":1075},{"$f":"BN84/((1+DiscountRate)^(COLUMN(CJ84)-COLUMN($CD84)))","v":1075},{"$f":"BO84/((1+DiscountRate)^(COLUMN(CK84)-COLUMN($CD84)))","v":1075},{"$f":"BP84/((1+DiscountRate)^(COLUMN(CL84)-COLUMN($CD84)))","v":1075},{"$f":"BQ84/((1+DiscountRate)^(COLUMN(CM84)-COLUMN($CD84)))","v":1075},{"$f":"BR84/((1+DiscountRate)^(COLUMN(CN84)-COLUMN($CD84)))","v":75357.293019999997},{"$f":"BS84/((1+DiscountRate)^(COLUMN(CO84)-COLUMN($CD84)))","v":1075},{"$f":"BT84/((1+DiscountRate)^(COLUMN(CP84)-COLUMN($CD84)))","v":1075},{"$f":"BU84/((1+DiscountRate)^(COLUMN(CQ84)-COLUMN($CD84)))","v":1075},{"$f":"BV84/((1+DiscountRate)^(COLUMN(CR84)-COLUMN($CD84)))","v":1075},{"$f":"BW84/((1+DiscountRate)^(COLUMN(CS84)-COLUMN($CD84)))","v":1075},{"$f":"BX84/((1+DiscountRate)^(COLUMN(CT84)-COLUMN($CD84)))","v":1075},{"$f":"BY84/((1+DiscountRate)^(COLUMN(CU84)-COLUMN($CD84)))","v":1075},{"$f":"BZ84/((1+DiscountRate)^(COLUMN(CV84)-COLUMN($CD84)))","v":1075},{"$f":"CA84/((1+DiscountRate)^(COLUMN(CW84)-COLUMN($CD84)))","v":1075},{"$f":"SUM(CD84:INDEX($CD84:$CW84,1,'Total Solution Costs'!$B$2))","v":85032.293019999997},null,{"$f":"CC84","v":"Dulas Solar VC 60 SDD*"},{"$f":"SUM($BH84:BH84)","v":75357.293019999997},{"$f":"SUM($BH84:BI84)","v":76432.293019999997},{"$f":"SUM($BH84:BJ84)","v":77507.293019999997},{"$f":"SUM($BH84:BK84)","v":78582.293019999997},{"$f":"SUM($BH84:BL84)","v":79657.293019999997},{"$f":"SUM($BH84:BM84)","v":80732.293019999997},{"$f":"SUM($BH84:BN84)","v":81807.293019999997},{"$f":"SUM($BH84:BO84)","v":82882.293019999997},{"$f":"SUM($BH84:BP84)","v":83957.293019999997},{"$f":"SUM($BH84:BQ84)","v":85032.293019999997},{"$f":"SUM($BH84:BR84)","v":160389.58603999999},{"$f":"SUM($BH84:BS84)","v":161464.58603999999},{"$f":"SUM($BH84:BT84)","v":162539.58603999999},{"$f":"SUM($BH84:BU84)","v":163614.58603999999},{"$f":"SUM($BH84:BV84)","v":164689.58603999999},{"$f":"SUM($BH84:BW84)","v":165764.58603999999},{"$f":"SUM($BH84:BX84)","v":166839.58603999999},{"$f":"SUM($BH84:BY84)","v":167914.58603999999},{"$f":"SUM($BH84:BZ84)","v":168989.58603999999},{"$f":"SUM($BH84:CA84)","v":170064.58603999999}]
[{"$f":"PQS!A85","v":"Solar w battery"},{"$f":"PQS!B85","v":"E003/001"},{"$f":"PQS!E85","v":"TCW 2000 DC"},{"$f":"PQS!F85","v":"B Medical"},{"$f":"PQS!D85","v":"B Medical TCW 2000 DC"},{"$f":"VLOOKUP(E85,PQS!$D$5:$K$107,COLUMN(PQS!$I$3)-COLUMN(PQS!$D$3)+1,FALSE)","v":76},{"$f":"VLOOKUP(E85,PQS!$D$5:$K$107,COLUMN(PQS!$J$3)-COLUMN(PQS!$D$3)+1,FALSE)","v":42},{"$f":"VLOOKUP(E85,PQS!$D$5:$K$107,COLUMN(PQS!$G$3)-COLUMN(PQS!$D$3)+1,FALSE)","v":"No"},{"$f":"HLOOKUP(B85,INDIRECT(\"'\"&A85&\"'!$10:$15\"),ROW('Technology template'!$A$11)-ROW('Technology template'!$A$10)+1,FALSE)","v":10},{"$f":"HLOOKUP(B85,INDIRECT(\"'\"&A85&\"'!$10:$15\"),ROW('Technology template'!$A$12)-ROW('Technology template'!$A$10)+1,FALSE)","v":10},{"$f":"HLOOKUP(B85,INDIRECT(\"'\"&A85&\"'!$10:$15\"),ROW('Technology template'!$A$13)-ROW('Technology template'!$A$10)+1,FALSE)","v":3},{"$f":"VLOOKUP(B85,PQS!$B:$Q,MATCH(PQS!$Q$3,PQS!$B$3:$Q$3,0),FALSE)*(1+'Country Input'!$C$47)+HLOOKUP(B85,INDIRECT(\"'\"&A85&\"'!$10:$15\"),ROW('Technology template'!$A$14)-ROW('Technology template'!$A$10)+1,FALSE)*(1+'Country Input'!$C$47)","v":3384.7310000000002},{"$f":"HLOOKUP(B85,INDIRECT(\"'\"&A85&\"'!$10:$80\"),MATCH('Technology template'!$A$27,INDIRECT(\"'\"&A85&\"'!$A$10:$A$80\"),0),FALSE)+'Labor and Maintenance '!$E$19","v":1042},{"$f":"VLOOKUP(B85,PQS!B:T,MATCH(PQS!$T$3,PQS!$B$3:$T$3,0),FALSE)*(1+'Country Input'!$C$47)","v":502.29042100000004},4929.0214209999995,492.90214209999993,{"$f":"VLOOKUP(B85,PQS!$B:$AE,COLUMN(PQS!AD74)-1,FALSE)","v":0},{"$f":"IFERROR(1/HLOOKUP(B85,INDIRECT(\"'\"&A85&\"'!$10:$80\"),MATCH('Technology template'!$A$31,INDIRECT(\"'\"&A85&\"'!$A$10:$A$80\"),0),FALSE)*HLOOKUP(B85,INDIRECT(\"'\"&A85&\"'!$10:$80\"),MATCH('Technology template'!$A$41,INDIRECT(\"'\"&A85&\"'!$A10:$A$80\"),0),FALSE),0)*TechnicianHourlyWage+IF(A85=\"Solar w Battery\",1/'Labor and Maintenance '!$E$53*'Labor and Maintenance '!$D$53,0)+IF(A85=\"LT passive\", 1/'Labor and Maintenance '!$E$81*'Labor and Maintenance '!$D$81,0)","v":23.155466666666666},{"$f":"IFERROR(1/HLOOKUP(B85,INDIRECT(\"'\"&A85&\"'!$10:$80\"),MATCH('Technology template'!$A$34,INDIRECT(\"'\"&A85&\"'!$A$10:$A$80\"),0),FALSE)*(HLOOKUP(B85,INDIRECT(\"'\"&A85&\"'!$10:$80\"),MATCH('Technology template'!$A$44,INDIRECT(\"'\"&A85&\"'!$A10:$A$80\"),0),FALSE)*TechnicianHourlyWage+RemoteTravelCostPerDay),0)+IFERROR(1/HLOOKUP(B85,INDIRECT(\"'\"&A85&\"'!$10:$80\"),MATCH('Technology template'!$A$35,INDIRECT(\"'\"&A85&\"'!$A$10:$A$80\"),0),FALSE)*(HLOOKUP(B85,INDIRECT(\"'\"&A85&\"'!$10:$80\"),MATCH('Technology template'!$A$45,INDIRECT(\"'\"&A85&\"'!$A10:$A$80\"),0),FALSE)*TechnicianHourlyWage+RemoteTravelCostPerDay),0)+IFERROR(1/HLOOKUP(B85,INDIRECT(\"'\"&A85&\"'!$10:$80\"),MATCH('Technology template'!$A$37,INDIRECT(\"'\"&A85&\"'!$A$10:$A$80\"),0),FALSE)*(HLOOKUP(B85,INDIRECT(\"'\"&A85&\"'!$10:$80\"),MATCH('Technology template'!$A$46,INDIRECT(\"'\"&A85&\"'!$A10:$A$80\"),0),FALSE)*TechnicianHourlyWage+'Labor and Maintenance '!$B$8),0)","v":158},1811.5546666666664,{"$f":"SUM(Q85:S85)","v":181.15546666666665},674.05760876666659,null,"B Medical TCW 2000 DC",64.855545013157894,23.836245614035086,88.691790627192972,null,"B Medical TCW 2000 DC",6.4855545013157885,2.3836245614035088,8.8691790627192972,null,"B Medical TCW 2000 DC",2,9858.0428419999989,3623.1093333333329,13481.152175333333,null,"B Medical TCW 2000 DC",2,12.971109002631577,4.7672491228070175,17.738358125438594,null,"B Medical TCW 2000 DC",{"$f":"IF(F85=0, 'Country Input'!$D$7, ROUNDUP(LitersPerFacility/F85,0)*'Country Input'!$D$7)","v":10},49290.214209999991,1811.5546666666664,51101.768876666654,null,"B Medical TCW 2000 DC",{"$f":"ROUNDUP(LitersPerFacility/F85,0)*'Country Input'!$D$7*ROUNDUP('Total Solution Costs'!$B$2/Calculations!I85,0)","v":10},64.855545013157879,2.3836245614035083,67.239169574561387,null,null,"B Medical TCW 2000 DC",{"$f":"(($U85+($O85)*IF(MOD(BH$3,$I85)=1,1,0)+Parts!$E$91*IF($J85=0,0,IF(MOD(BH$3,$I85)=1,IF(PQS!$R85=\"NO\",1,0),IF(MOD(BH$3,Calculations!$J85)=1,1,0)))+Parts!$E$92*IF(Calculations!$K85=0,0,IF(MOD(BH$3,$I85)=1,0,IF(MOD(BH$3,Calculations!$K85)=1,1,0))))*$AU85)*(1+'Country Input'!$C$45)^(Calculations!BH$3-$BH$3)+TrainingCost","v":66101.768876666669},{"$f":"(($U85+($O85)*IF(MOD(BI$3,$I85)=1,1,0)+Parts!$E$91*IF($J85=0,0,IF(MOD(BI$3,$I85)=1,IF(PQS!$R85=\"NO\",1,0),IF(MOD(BI$3,Calculations!$J85)=1,1,0)))+Parts!$E$92*IF(Calculations!$K85=0,0,IF(MOD(BI$3,$I85)=1,0,IF(MOD(BI$3,Calculations!$K85)=1,1,0))))*$AU85)*(1+'Country Input'!$C$45)^(Calculations!BI$3-$BH$3)","v":1811.5546666666664},{"$f":"(($U85+($O85)*IF(MOD(BJ$3,$I85)=1,1,0)+Parts!$E$91*IF($J85=0,0,IF(MOD(BJ$3,$I85)=1,IF(PQS!$R85=\"NO\",1,0),IF(MOD(BJ$3,Calculations!$J85)=1,1,0)))+Parts!$E$92*IF(Calculations!$K85=0,0,IF(MOD(BJ$3,$I85)=1,0,IF(MOD(BJ$3,Calculations!$K85)=1,1,0))))*$AU85)*(1+'Country Input'!$C$45)^(Calculations!BJ$3-$BH$3)","v":1811.5546666666664},{"$f":"(($U85+($O85)*IF(MOD(BK$3,$I85)=1,1,0)+Parts!$E$91*IF($J85=0,0,IF(MOD(BK$3,$I85)=1,IF(PQS!$R85=\"NO\",1,0),IF(MOD(BK$3,Calculations!$J85)=1,1,0)))+Parts!$E$92*IF(Calculations!$K85=0,0,IF(MOD(BK$3,$I85)=1,0,IF(MOD(BK$3,Calculations!$K85)=1,1,0))))*$AU85)*(1+'Country Input'!$C$45)^(Calculations!BK$3-$BH$3)","v":4494.8546666666662},{"$f":"(($U85+($O85)*IF(MOD(BL$3,$I85)=1,1,0)+Parts!$E$91*IF($J85=0,0,IF(MOD(BL$3,$I85)=1,IF(PQS!$R85=\"NO\",1,0),IF(MOD(BL$3,Calculations!$J85)=1,1,0)))+Parts!$E$92*IF(Calculations!$K85=0,0,IF(MOD(BL$3,$I85)=1,0,IF(MOD(BL$3,Calculations!$K85)=1,1,0))))*$AU85)*(1+'Country Input'!$C$45)^(Calculations!BL$3-$BH$3)","v":1811.5546666666664},{"$f":"(($U85+($O85)*IF(MOD(BM$3,$I85)=1,1,0)+Parts!$E$91*IF($J85=0,0,IF(MOD(BM$3,$I85)=1,IF(PQS!$R85=\"NO\",1,0),IF(MOD(BM$3,Calculations!$J85)=1,1,0)))+Parts!$E$92*IF(Calculations!$K85=0,0,IF(MOD(BM$3,$I85)=1,0,IF(MOD(BM$3,Calculations!$K85)=1,1,0))))*$AU85)*(1+'Country Input'!$C$45)^(Calculations!BM$3-$BH$3)","v":1811.5546666666664},{"$f":"(($U85+($O85)*IF(MOD(BN$3,$I85)=1,1,0)+Parts!$E$91*IF($J85=0,0,IF(MOD(BN$3,$I85)=1,IF(PQS!$R85=\"NO\",1,0),IF(MOD(BN$3,Calculations!$J85)=1,1,0)))+Parts!$E$92*IF(Calculations!$K85=0,0,IF(MOD(BN$3,$I85)=1,0,IF(MOD(BN$3,Calculations!$K85)=1,1,0))))*$AU85)*(1+'Country Input'!$C$45)^(Calculations!BN$3-$BH$3)","v":4494.8546666666662},{"$f":"(($U85+($O85)*IF(MOD(BO$3,$I85)=1,1,0)+Parts!$E$91*IF($J85=0,0,IF(MOD(BO$3,$I85)=1,IF(PQS!$R85=\"NO\",1,0),IF(MOD(BO$3,Calculations!$J85)=1,1,0)))+Parts!$E$92*IF(Calculations!$K85=0,0,IF(MOD(BO$3,$I85)=1,0,IF(MOD(BO$3,Calculations!$K85)=1,1,0))))*$AU85)*(1+'Country Input'!$C$45)^(Calculations!BO$3-$BH$3)","v":1811.5546666666664},{"$f":"(($U85+($O85)*IF(MOD(BP$3,$I85)=1,1,0)+Parts!$E$91*IF($J85=0,0,IF(MOD(BP$3,$I85)=1,IF(PQS!$R85=\"NO\",1,0),IF(MOD(BP$3,Calculations!$J85)=1,1,0)))+Parts!$E$92*IF(Calculations!$K85=0,0,IF(MOD(BP$3,$I85)=1,0,IF(MOD(BP$3,Calculations!$K85)=1,1,0))))*$AU85)*(1+'Country Input'!$C$45)^(Calculations!BP$3-$BH$3)","v":1811.5546666666664},{"$f":"(($U85+($O85)*IF(MOD(BQ$3,$I85)=1,1,0)+Parts!$E$91*IF($J85=0,0,IF(MOD(BQ$3,$I85)=1,IF(PQS!$R85=\"NO\",1,0),IF(MOD(BQ$3,Calculations!$J85)=1,1,0)))+Parts!$E$92*IF(Calculations!$K85=0,0,IF(MOD(BQ$3,$I85)=1,0,IF(MOD(BQ$3,Calculations!$K85)=1,1,0))))*$AU85)*(1+'Country Input'!$C$45)^(Calculations!BQ$3-$BH$3)","v":4494.8546666666662},{"$f":"(($U85+($O85)*IF(MOD(BR$3,$I85)=1,1,0)+Parts!$E$91*IF($J85=0,0,IF(MOD(BR$3,$I85)=1,IF(PQS!$R85=\"NO\",1,0),IF(MOD(BR$3,Calculations!$J85)=1,1,0)))+Parts!$E$92*IF(Calculations!$K85=0,0,IF(MOD(BR$3,$I85)=1,0,IF(MOD(BR$3,Calculations!$K85)=1,1,0))))*$AU85)*(1+'Country Input'!$C$45)^(Calculations!BR$3-$BH$3)","v":66101.768876666669},{"$f":"(($U85+($O85)*IF(MOD(BS$3,$I85)=1,1,0)+Parts!$E$91*IF($J85=0,0,IF(MOD(BS$3,$I85)=1,IF(PQS!$R85=\"NO\",1,0),IF(MOD(BS$3,Calculations!$J85)=1,1,0)))+Parts!$E$92*IF(Calculations!$K85=0,0,IF(MOD(BS$3,$I85)=1,0,IF(MOD(BS$3,Calculations!$K85)=1,1,0))))*$AU85)*(1+'Country Input'!$C$45)^(Calculations!BS$3-$BH$3)","v":1811.5546666666664},{"$f":"(($U85+($O85)*IF(MOD(BT$3,$I85)=1,1,0)+Parts!$E$91*IF($J85=0,0,IF(MOD(BT$3,$I85)=1,IF(PQS!$R85=\"NO\",1,0),IF(MOD(BT$3,Calculations!$J85)=1,1,0)))+Parts!$E$92*IF(Calculations!$K85=0,0,IF(MOD(BT$3,$I85)=1,0,IF(MOD(BT$3,Calculations!$K85)=1,1,0))))*$AU85)*(1+'Country Input'!$C$45)^(Calculations!BT$3-$BH$3)","v":4494.8546666666662},{"$f":"(($U85+($O85)*IF(MOD(BU$3,$I85)=1,1,0)+Parts!$E$91*IF($J85=0,0,IF(MOD(BU$3,$I85)=1,IF(PQS!$R85=\"NO\",1,0),IF(MOD(BU$3,Calculations!$J85)=1,1,0)))+Parts!$E$92*IF(Calculations!$K85=0,0,IF(MOD(BU$3,$I85)=1,0,IF(MOD(BU$3,Calculations!$K85)=1,1,0))))*$AU85)*(1+'Country Input'!$C$45)^(Calculations!BU$3-$BH$3)","v":1811.5546666666664},{"$f":"(($U85+($O85)*IF(MOD(BV$3,$I85)=1,1,0)+Parts!$E$91*IF($J85=0,0,IF(MOD(BV$3,$I85)=1,IF(PQS!$R85=\"NO\",1,0),IF(MOD(BV$3,Calculations!$J85)=1,1,0)))+Parts!$E$92*IF(Calculations!$K85=0,0,IF(MOD(BV$3,$I85)=1,0,IF(MOD(BV$3,Calculations!$K85)=1,1,0))))*$AU85)*(1+'Country Input'!$C$45)^(Calculations!BV$3-$BH$3)","v":1811.5546666666664},{"$f":"(($U85+($O85)*IF(MOD(BW$3,$I85)=1,1,0)+Parts!$E$91*IF($J85=0,0,IF(MOD(BW$3,$I85)=1,IF(PQS!$R85=\"NO\",1,0),IF(MOD(BW$3,Calculations!$J85)=1,1,0)))+Parts!$E$92*IF(Calculations!$K85=0,0,IF(MOD(BW$3,$I85)=1,0,IF(MOD(BW$3,Calculations!$K85)=1,1,0))))*$AU85)*(1+'Country Input'!$C$45)^(Calculations!BW$3-$BH$3)","v":4494.8546666666662},{"$f":"(($U85+($O85)*IF(MOD(BX$3,$I85)=1,1,0)+Parts!$E$91*IF($J85=0,0,IF(MOD(BX$3,$I85)=1,IF(PQS!$R85=\"NO\",1,0),IF(MOD(BX$3,Calculations!$J85)=1,1,0)))+Parts!$E$92*IF(Calculations!$K85=0,0,IF(MOD(BX$3,$I85)=1,0,IF(MOD(BX$3,Calculations!$K85)=1,1,0))))*$AU85)*(1+'Country Input'!$C$45)^(Calculations!BX$3-$BH$3)","v":1811.5546666666664},{"$f":"(($U85+($O85)*IF(MOD(BY$3,$I85)=1,1,0)+Parts!$E$91*IF($J85=0,0,IF(MOD(BY$3,$I85)=1,IF(PQS!$R85=\"NO\",1,0),IF(MOD(BY$3,Calculations!$J85)=1,1,0)))+Parts!$E$92*IF(Calculations!$K85=0,0,IF(MOD(BY$3,$I85)=1,0,IF(MOD(BY$3,Calculations!$K85)=1,1,0))))*$AU85)*(1+'Country Input'!$C$45)^(Calculations!BY$3-$BH$3)","v":1811.5546666666664},{"$f":"(($U85+($O85)*IF(MOD(BZ$3,$I85)=1,1,0)+Parts!$E$91*IF($J85=0,0,IF(MOD(BZ$3,$I85)=1,IF(PQS!$R85=\"NO\",1,0),IF(MOD(BZ$3,Calculations!$J85)=1,1,0)))+Parts!$E$92*IF(Calculations!$K85=0,0,IF(MOD(BZ$3,$I85)=1,0,IF(MOD(BZ$3,Calculations!$K85)=1,1,0))))*$AU85)*(1+'Country Input'!$C$45)^(Calculations!BZ$3-$BH$3)","v":4494.8546666666662},{"$f":"(($U85+($O85)*IF(MOD(CA$3,$I85)=1,1,0)+Parts!$E$91*IF($J85=0,0,IF(MOD(CA$3,$I85)=1,IF(PQS!$R85=\"NO\",1,0),IF(MOD(CA$3,Calculations!$J85)=1,1,0)))+Parts!$E$92*IF(Calculations!$K85=0,0,IF(MOD(CA$3,$I85)=1,0,IF(MOD(CA$3,Calculations!$K85)=1,1,0))))*$AU85)*(1+'Country Input'!$C$45)^(Calculations!CA$3-$BH$3)","v":1811.5546666666664},null,"B Medical TCW 2000 DC",{"$f":"BH85/((1+DiscountRate)^(COLUMN(CD85)-COLUMN($CD85)))","v":66101.768876666669},1811.5546666666664,1811.5546666666664,4494.8546666666662,1811.5546666666664,1811.5546666666664,4494.8546666666662,1811.5546666666664,1811.5546666666664,4494.8546666666662,{"$f":"BR85/((1+DiscountRate)^(COLUMN(CN85)-COLUMN($CD85)))","v":66101.768876666669},1811.5546666666664,4494.8546666666662,1811.5546666666664,1811.5546666666664,4494.8546666666662,1811.5546666666664,1811.5546666666664,4494.8546666666662,1811.5546666666664,{"$f":"SUM(CD85:INDEX($CD85:$CW85,1,'Total Solution Costs'!$B$2))","v":90455.660876666647},null,"B Medical TCW 2000 DC",{"$f":"SUM($BH85:BH85)","v":66101.768876666669},{"$f":"SUM($BH85:BI85)","v":67913.323543333332},{"$f":"SUM($BH85:BJ85)","v":69724.878209999995},{"$f":"SUM($BH85:BK85)","v":74219.732876666661},{"$f":"SUM($BH85:BL85)","v":76031.287543333325},{"$f":"SUM($BH85:BM85)","v":77842.842209999988},{"$f":"SUM($BH85:BN85)","v":82337.696876666654},{"$f":"SUM($BH85:BO85)","v":84149.251543333317},{"$f":"SUM($BH85:BP85)","v":85960.806209999981},{"$f":"SUM($BH85:BQ85)","v":90455.660876666647},{"$f":"SUM($BH85:BR85)","v":156557.42975333333},{"$f":"SUM($BH85:BS85)","v":158368.98441999999},{"$f":"SUM($BH85:BT85)","v":162863.83908666665},{"$f":"SUM($BH85:BU85)","v":164675.39375333331},{"$f":"SUM($BH85:BV85)","v":166486.94841999997},{"$f":"SUM($BH85:BW85)","v":170981.80308666662},{"$f":"SUM($BH85:BX85)","v":172793.35775333329},{"$f":"SUM($BH85:BY85)","v":174604.91241999995},{"$f":"SUM($BH85:BZ85)","v":179099.7670866666},{"$f":"SUM($BH85:CA85)","v":180911.32175333326}]
[{"$f":"PQS!A86","v":"Solar w battery"},{"$f":"PQS!B86","v":"E003/008"},{"$f":"PQS!E86","v":"TCW 3000 DC"},{"$f":"PQS!F86","v":"B Medical"},{"$f":"PQS!D86","v":"B Medical TCW 3000 DC"},{"$f":"VLOOKUP(E86,PQS!$D$5:$K$107,COLUMN(PQS!$I$3)-COLUMN(PQS!$D$3)+1,FALSE)","v":109.5},{"$f":"VLOOKUP(E86,PQS!$D$5:$K$107,COLUMN(PQS!$J$3)-COLUMN(PQS!$D$3)+1,FALSE)","v":204},{"$f":"VLOOKUP(E86,PQS!$D$5:$K$107,COLUMN(PQS!$G$3)-COLUMN(PQS!$D$3)+1,FALSE)","v":"No"},{"$f":"HLOOKUP(B86,INDIRECT(\"'\"&A86&\"'!$10:$15\"),ROW('Technology template'!$A$11)-ROW('Technology template'!$A$10)+1,FALSE)","v":10},{"$f":"HLOOKUP(B86,INDIRECT(\"'\"&A86&\"'!$10:$15\"),ROW('Technology template'!$A$12)-ROW('Technology template'!$A$10)+1,FALSE)","v":10},{"$f":"HLOOKUP(B86,INDIRECT(\"'\"&A86&\"'!$10:$15\"),ROW('Technology template'!$A$13)-ROW('Technology template'!$A$10)+1,FALSE)","v":3},{"$f":"VLOOKUP(B86,PQS!$B:$Q,MATCH(PQS!$Q$3,PQS!$B$3:$Q$3,0),FALSE)*(1+'Country Input'!$C$47)+HLOOKUP(B86,INDIRECT(\"'\"&A86&\"'!$10:$15\"),ROW('Technology template'!$A$14)-ROW('Technology template'!$A$10)+1,FALSE)*(1+'Country Input'!$C$47)","v":3325.2497000000003},{"$f":"HLOOKUP(B86,INDIRECT(\"'\"&A86&\"'!$10:$80\"),MATCH('Technology template'!$A$27,INDIRECT(\"'\"&A86&\"'!$A$10:$A$80\"),0),FALSE)+'Labor and Maintenance '!$E$19","v":1042},{"$f":"VLOOKUP(B86,PQS!B:T,MATCH(PQS!$T$3,PQS!$B$3:$T$3,0),FALSE)*(1+'Country Input'!$C$47)","v":701.83268800000008},5069.0823880000007,506.90823880000005,{"$f":"VLOOKUP(B86,PQS!$B:$AE,COLUMN(PQS!AD75)-1,FALSE)","v":0},{"$f":"IFERROR(1/HLOOKUP(B86,INDIRECT(\"'\"&A86&\"'!$10:$80\"),MATCH('Technology template'!$A$31,INDIRECT(\"'\"&A86&\"'!$A$10:$A$80\"),0),FALSE)*HLOOKUP(B86,INDIRECT(\"'\"&A86&\"'!$10:$80\"),MATCH('Technology template'!$A$41,INDIRECT(\"'\"&A86&\"'!$A10:$A$80\"),0),FALSE),0)*TechnicianHourlyWage+IF(A86=\"Solar w Battery\",1/'Labor and Maintenance '!$E$53*'Labor and Maintenance '!$D$53,0)+IF(A86=\"LT passive\", 1/'Labor and Maintenance '!$E$81*'Labor and Maintenance '!$D$81,0)","v":23.155466666666666},{"$f":"IFERROR(1/HLOOKUP(B86,INDIRECT(\"'\"&A86&\"'!$10:$80\"),MATCH('Technology template'!$A$34,INDIRECT(\"'\"&A86&\"'!$A$10:$A$80\"),0),FALSE)*(HLOOKUP(B86,INDIRECT(\"'\"&A86&\"'!$10:$80\"),MATCH('Technology template'!$A$44,INDIRECT(\"'\"&A86&\"'!$A10:$A$80\"),0),FALSE)*TechnicianHourlyWage+RemoteTravelCostPerDay),0)+IFERROR(1/HLOOKUP(B86,INDIRECT(\"'\"&A86&\"'!$10:$80\"),MATCH('Technology template'!$A$35,INDIRECT(\"'\"&A86&\"'!$A$10:$A$80\"),0),FALSE)*(HLOOKUP(B86,INDIRECT(\"'\"&A86&\"'!$10:$80\"),MATCH('Technology template'!$A$45,INDIRECT(\"'\"&A86&\"'!$A10:$A$80\"),0),FALSE)*TechnicianHourlyWage+RemoteTravelCostPerDay),0)+IFERROR(1/HLOOKUP(B86,INDIRECT(\"'\"&A86&\"'!$10:$80\"),MATCH('Technology template'!$A$37,INDIRECT(\"'\"&A86&\"'!$A$10:$A$80\"),0),FALSE)*(HLOOKUP(B86,INDIRECT(\"'\"&A86&\"'!$10:$80\"),MATCH('Technology template'!$A$46,INDIRECT(\"'\"&A86&\"'!$A10:$A$80\"),0),FALSE)*TechnicianHourlyWage+'Labor and Maintenance '!$B$8),0)","v":158},1811.5546666666664,181.15546666666665,688.06370546666676,null,"B Medical TCW 3000 DC",46.292989844748867,16.543878234398779,62.836868079147649,null,"B Medical TCW 3000 DC",4.629298984474886,1.6543878234398781,6.2836868079147647,null,"B Medical TCW 3000 DC",2,10138.164776000001,3623.1093333333329,13761.274109333335,null,"B Medical TCW 3000 DC",2,9.2585979689497719,3.3087756468797562,12.567373615829528,null,"B Medical TCW 3000 DC",{"$f":"IF(F86=0, 'Country Input'!$D$7, ROUNDUP(LitersPerFacility/F86,0)*'Country Input'!$D$7)","v":10},50690.823880000011,1811.5546666666664,52502.378546666674,null,"B Medical TCW 3000 DC",{"$f":"ROUNDUP(LitersPerFacility/F86,0)*'Country Input'!$D$7*ROUNDUP('Total Solution Costs'!$B$2/Calculations!I86,0)","v":10},46.29298984474886,1.6543878234398781,47.947377668188736,null,null,"B Medical TCW 3000 DC",{"$f":"(($U86+($O86)*IF(MOD(BH$3,$I86)=1,1,0)+Parts!$E$91*IF($J86=0,0,IF(MOD(BH$3,$I86)=1,IF(PQS!$R86=\"NO\",1,0),IF(MOD(BH$3,Calculations!$J86)=1,1,0)))+Parts!$E$92*IF(Calculations!$K86=0,0,IF(MOD(BH$3,$I86)=1,0,IF(MOD(BH$3,Calculations!$K86)=1,1,0))))*$AU86)*(1+'Country Input'!$C$45)^(Calculations!BH$3-$BH$3)+TrainingCost","v":67502.378546666674},{"$f":"(($U86+($O86)*IF(MOD(BI$3,$I86)=1,1,0)+Parts!$E$91*IF($J86=0,0,IF(MOD(BI$3,$I86)=1,IF(PQS!$R86=\"NO\",1,0),IF(MOD(BI$3,Calculations!$J86)=1,1,0)))+Parts!$E$92*IF(Calculations!$K86=0,0,IF(MOD(BI$3,$I86)=1,0,IF(MOD(BI$3,Calculations!$K86)=1,1,0))))*$AU86)*(1+'Country Input'!$C$45)^(Calculations!BI$3-$BH$3)","v":1811.5546666666664},{"$f":"(($U86+($O86)*IF(MOD(BJ$3,$I86)=1,1,0)+Parts!$E$91*IF($J86=0,0,IF(MOD(BJ$3,$I86)=1,IF(PQS!$R86=\"NO\",1,0),IF(MOD(BJ$3,Calculations!$J86)=1,1,0)))+Parts!$E$92*IF(Calculations!$K86=0,0,IF(MOD(BJ$3,$I86)=1,0,IF(MOD(BJ$3,Calculations!$K86)=1,1,0))))*$AU86)*(1+'Country Input'!$C$45)^(Calculations!BJ$3-$BH$3)","v":1811.5546666666664},{"$f":"(($U86+($O86)*IF(MOD(BK$3,$I86)=1,1,0)+Parts!$E$91*IF($J86=0,0,IF(MOD(BK$3,$I86)=1,IF(PQS!$R86=\"NO\",1,0),IF(MOD(BK$3,Calculations!$J86)=1,1,0)))+Parts!$E$92*IF(Calculations!$K86=0,0,IF(MOD(BK$3,$I86)=1,0,IF(MOD(BK$3,Calculations!$K86)=1,1,0))))*$AU86)*(1+'Country Input'!$C$45)^(Calculations!BK$3-$BH$3)","v":4494.8546666666662},{"$f":"(($U86+($O86)*IF(MOD(BL$3,$I86)=1,1,0)+Parts!$E$91*IF($J86=0,0,IF(MOD(BL$3,$I86)=1,IF(PQS!$R86=\"NO\",1,0),IF(MOD(BL$3,Calculations!$J86)=1,1,0)))+Parts!$E$92*IF(Calculations!$K86=0,0,IF(MOD(BL$3,$I86)=1,0,IF(MOD(BL$3,Calculations!$K86)=1,1,0))))*$AU86)*(1+'Country Input'!$C$45)^(Calculations!BL$3-$BH$3)","v":1811.5546666666664},{"$f":"(($U86+($O86)*IF(MOD(BM$3,$I86)=1,1,0)+Parts!$E$91*IF($J86=0,0,IF(MOD(BM$3,$I86)=1,IF(PQS!$R86=\"NO\",1,0),IF(MOD(BM$3,Calculations!$J86)=1,1,0)))+Parts!$E$92*IF(Calculations!$K86=0,0,IF(MOD(BM$3,$I86)=1,0,IF(MOD(BM$3,Calculations!$K86)=1,1,0))))*$AU86)*(1+'Country Input'!$C$45)^(Calculations!BM$3-$BH$3)","v":1811.5546666666664},{"$f":"(($U86+($O86)*IF(MOD(BN$3,$I86)=1,1,0)+Parts!$E$91*IF($J86=0,0,IF(MOD(BN$3,$I86)=1,IF(PQS!$R86=\"NO\",1,0),IF(MOD(BN$3,Calculations!$J86)=1,1,0)))+Parts!$E$92*IF(Calculations!$K86=0,0,IF(MOD(BN$3,$I86)=1,0,IF(MOD(BN$3,Calculations!$K86)=1,1,0))))*$AU86)*(1+'Country Input'!$C$45)^(Calculations!BN$3-$BH$3)","v":4494.8546666666662},{"$f":"(($U86+($O86)*IF(MOD(BO$3,$I86)=1,1,0)+Parts!$E$91*IF($J86=0,0,IF(MOD(BO$3,$I86)=1,IF(PQS!$R86=\"NO\",1,0),IF(MOD(BO$3,Calculations!$J86)=1,1,0)))+Parts!$E$92*IF(Calculations!$K86=0,0,IF(MOD(BO$3,$I86)=1,0,IF(MOD(BO$3,Calculations!$K86)=1,1,0))))*$AU86)*(1+'Country Input'!$C$45)^(Calculations!BO$3-$BH$3)","v":1811.5546666666664},{"$f":"(($U86+($O86)*IF(MOD(BP$3,$I86)=1,1,0)+Parts!$E$91*IF($J86=0,0,IF(MOD(BP$3,$I86)=1,IF(PQS!$R86=\"NO\",1,0),IF(MOD(BP$3,Calculations!$J86)=1,1,0)))+Parts!$E$92*IF(Calculations!$K86=0,0,IF(MOD(BP$3,$I86)=1,0,IF(MOD(BP$3,Calculations!$K86)=1,1,0))))*$AU86)*(1+'Country Input'!$C$45)^(Calculations!BP$3-$BH$3)","v":1811.5546666666664},{"$f":"(($U86+($O86)*IF(MOD(BQ$3,$I86)=1,1,0)+Parts!$E$91*IF($J86=0,0,IF(MOD(BQ$3,$I86)=1,IF(PQS!$R86=\"NO\",1,0),IF(MOD(BQ$3,Calculations!$J86)=1,1,0)))+Parts!$E$92*IF(Calculations!$K86=0,0,IF(MOD(BQ$3,$I86)=1,0,IF(MOD(BQ$3,Calculations!$K86)=1,1,0))))*$AU86)*(1+'Country Input'!$C$45)^(Calculations!BQ$3-$BH$3)","v":4494.8546666666662},{"$f":"(($U86+($O86)*IF(MOD(BR$3,$I86)=1,1,0)+Parts!$E$91*IF($J86=0,0,IF(MOD(BR$3,$I86)=1,IF(PQS!$R86=\"NO\",1,0),IF(MOD(BR$3,Calculations!$J86)=1,1,0)))+Parts!$E$92*IF(Calculations!$K86=0,0,IF(MOD(BR$3,$I86)=1,0,IF(MOD(BR$3,Calculations!$K86)=1,1,0))))*$AU86)*(1+'Country Input'!$C$45)^(Calculations!BR$3-$BH$3)","v":67502.378546666674},{"$f":"(($U86+($O86)*IF(MOD(BS$3,$I86)=1,1,0)+Parts!$E$91*IF($J86=0,0,IF(MOD(BS$3,$I86)=1,IF(PQS!$R86=\"NO\",1,0),IF(MOD(BS$3,Calculations!$J86)=1,1,0)))+Parts!$E$92*IF(Calculations!$K86=0,0,IF(MOD(BS$3,$I86)=1,0,IF(MOD(BS$3,Calculations!$K86)=1,1,0))))*$AU86)*(1+'Country Input'!$C$45)^(Calculations!BS$3-$BH$3)","v":1811.5546666666664},{"$f":"(($U86+($O86)*IF(MOD(BT$3,$I86)=1,1,0)+Parts!$E$91*IF($J86=0,0,IF(MOD(BT$3,$I86)=1,IF(PQS!$R86=\"NO\",1,0),IF(MOD(BT$3,Calculations!$J86)=1,1,0)))+Parts!$E$92*IF(Calculations!$K86=0,0,IF(MOD(BT$3,$I86)=1,0,IF(MOD(BT$3,Calculations!$K86)=1,1,0))))*$AU86)*(1+'Country Input'!$C$45)^(Calculations!BT$3-$BH$3)","v":4494.8546666666662},{"$f":"(($U86+($O86)*IF(MOD(BU$3,$I86)=1,1,0)+Parts!$E$91*IF($J86=0,0,IF(MOD(BU$3,$I86)=1,IF(PQS!$R86=\"NO\",1,0),IF(MOD(BU$3,Calculations!$J86)=1,1,0)))+Parts!$E$92*IF(Calculations!$K86=0,0,IF(MOD(BU$3,$I86)=1,0,IF(MOD(BU$3,Calculations!$K86)=1,1,0))))*$AU86)*(1+'Country Input'!$C$45)^(Calculations!BU$3-$BH$3)","v":1811.5546666666664},{"$f":"(($U86+($O86)*IF(MOD(BV$3,$I86)=1,1,0)+Parts!$E$91*IF($J86=0,0,IF(MOD(BV$3,$I86)=1,IF(PQS!$R86=\"NO\",1,0),IF(MOD(BV$3,Calculations!$J86)=1,1,0)))+Parts!$E$92*IF(Calculations!$K86=0,0,IF(MOD(BV$3,$I86)=1,0,IF(MOD(BV$3,Calculations!$K86)=1,1,0))))*$AU86)*(1+'Country Input'!$C$45)^(Calculations!BV$3-$BH$3)","v":1811.5546666666664},{"$f":"(($U86+($O86)*IF(MOD(BW$3,$I86)=1,1,0)+Parts!$E$91*IF($J86=0,0,IF(MOD(BW$3,$I86)=1,IF(PQS!$R86=\"NO\",1,0),IF(MOD(BW$3,Calculations!$J86)=1,1,0)))+Parts!$E$92*IF(Calculations!$K86=0,0,IF(MOD(BW$3,$I86)=1,0,IF(MOD(BW$3,Calculations!$K86)=1,1,0))))*$AU86)*(1+'Country Input'!$C$45)^(Calculations!BW$3-$BH$3)","v":4494.8546666666662},{"$f":"(($U86+($O86)*IF(MOD(BX$3,$I86)=1,1,0)+Parts!$E$91*IF($J86=0,0,IF(MOD(BX$3,$I86)=1,IF(PQS!$R86=\"NO\",1,0),IF(MOD(BX$3,Calculations!$J86)=1,1,0)))+Parts!$E$92*IF(Calculations!$K86=0,0,IF(MOD(BX$3,$I86)=1,0,IF(MOD(BX$3,Calculations!$K86)=1,1,0))))*$AU86)*(1+'Country Input'!$C$45)^(Calculations!BX$3-$BH$3)","v":1811.5546666666664},{"$f":"(($U86+($O86)*IF(MOD(BY$3,$I86)=1,1,0)+Parts!$E$91*IF($J86=0,0,IF(MOD(BY$3,$I86)=1,IF(PQS!$R86=\"NO\",1,0),IF(MOD(BY$3,Calculations!$J86)=1,1,0)))+Parts!$E$92*IF(Calculations!$K86=0,0,IF(MOD(BY$3,$I86)=1,0,IF(MOD(BY$3,Calculations!$K86)=1,1,0))))*$AU86)*(1+'Country Input'!$C$45)^(Calculations!BY$3-$BH$3)","v":1811.5546666666664},{"$f":"(($U86+($O86)*IF(MOD(BZ$3,$I86)=1,1,0)+Parts!$E$91*IF($J86=0,0,IF(MOD(BZ$3,$I86)=1,IF(PQS!$R86=\"NO\",1,0),IF(MOD(BZ$3,Calculations!$J86)=1,1,0)))+Parts!$E$92*IF(Calculations!$K86=0,0,IF(MOD(BZ$3,$I86)=1,0,IF(MOD(BZ$3,Calculations!$K86)=1,1,0))))*$AU86)*(1+'Country Input'!$C$45)^(Calculations!BZ$3-$BH$3)","v":4494.8546666666662},{"$f":"(($U86+($O86)*IF(MOD(CA$3,$I86)=1,1,0)+Parts!$E$91*IF($J86=0,0,IF(MOD(CA$3,$I86)=1,IF(PQS!$R86=\"NO\",1,0),IF(MOD(CA$3,Calculations!$J86)=1,1,0)))+Parts!$E$92*IF(Calculations!$K86=0,0,IF(MOD(CA$3,$I86)=1,0,IF(MOD(CA$3,Calculations!$K86)=1,1,0))))*$AU86)*(1+'Country Input'!$C$45)^(Calculations!CA$3-$BH$3)","v":1811.5546666666664},null,"B Medical TCW 3000 DC",67502.378546666674,1811.5546666666664,1811.5546666666664,4494.8546666666662,1811.5546666666664,1811.5546666666664,4494.8546666666662,1811.5546666666664,1811.5546666666664,4494.8546666666662,67502.378546666674,1811.5546666666664,4494.8546666666662,1811.5546666666664,1811.5546666666664,4494.8546666666662,1811.5546666666664,1811.5546666666664,4494.8546666666662,1811.5546666666664,{"$f":"SUM(CD86:INDEX($CD86:$CW86,1,'Total Solution Costs'!$B$2))","v":91856.270546666652},null,"B Medical TCW 3000 DC",{"$f":"SUM($BH86:BH86)","v":67502.378546666674},{"$f":"SUM($BH86:BI86)","v":69313.933213333337},{"$f":"SUM($BH86:BJ86)","v":71125.487880000001},{"$f":"SUM($BH86:BK86)","v":75620.342546666667},{"$f":"SUM($BH86:BL86)","v":77431.89721333333},{"$f":"SUM($BH86:BM86)","v":79243.451879999993},{"$f":"SUM($BH86:BN86)","v":83738.306546666659},{"$f":"SUM($BH86:BO86)","v":85549.861213333323},{"$f":"SUM($BH86:BP86)","v":87361.415879999986},{"$f":"SUM($BH86:BQ86)","v":91856.270546666652},{"$f":"SUM($BH86:BR86)","v":159358.64909333334},{"$f":"SUM($BH86:BS86)","v":161170.20376},{"$f":"SUM($BH86:BT86)","v":165665.05842666666},{"$f":"SUM($BH86:BU86)","v":167476.61309333332},{"$f":"SUM($BH86:BV86)","v":169288.16775999998},{"$f":"SUM($BH86:BW86)","v":173783.02242666663},{"$f":"SUM($BH86:BX86)","v":175594.5770933333},{"$f":"SUM($BH86:BY86)","v":177406.13175999996},{"$f":"SUM($BH86:BZ86)","v":181900.98642666661},{"$f":"SUM($BH86:CA86)","v":183712.54109333328}]
[{"$f":"PQS!A87","v":"Solar w battery"},{"$f":"PQS!B87","v":"E003/026"},{"$f":"PQS!E87","v":"VC 65-2"},{"$f":"PQS!F87","v":"Dulas Solar"},{"$f":"PQS!D87","v":"Dulas Solar VC 65-2"},{"$f":"VLOOKUP(E87,PQS!$D$5:$K$107,COLUMN(PQS!$I$3)-COLUMN(PQS!$D$3)+1,FALSE)","v":37.5},{"$f":"VLOOKUP(E87,PQS!$D$5:$K$107,COLUMN(PQS!$J$3)-COLUMN(PQS!$D$3)+1,FALSE)","v":24.3},{"$f":"VLOOKUP(E87,PQS!$D$5:$K$107,COLUMN(PQS!$G$3)-COLUMN(PQS!$D$3)+1,FALSE)","v":"No"},{"$f":"HLOOKUP(B87,INDIRECT(\"'\"&A87&\"'!$10:$15\"),ROW('Technology template'!$A$11)-ROW('Technology template'!$A$10)+1,FALSE)","v":10},{"$f":"HLOOKUP(B87,INDIRECT(\"'\"&A87&\"'!$10:$15\"),ROW('Technology template'!$A$12)-ROW('Technology template'!$A$10)+1,FALSE)","v":10},{"$f":"HLOOKUP(B87,INDIRECT(\"'\"&A87&\"'!$10:$15\"),ROW('Technology template'!$A$13)-ROW('Technology template'!$A$10)+1,FALSE)","v":3},{"$f":"VLOOKUP(B87,PQS!$B:$Q,MATCH(PQS!$Q$3,PQS!$B$3:$Q$3,0),FALSE)*(1+'Country Input'!$C$47)+HLOOKUP(B87,INDIRECT(\"'\"&A87&\"'!$10:$15\"),ROW('Technology template'!$A$14)-ROW('Technology template'!$A$10)+1,FALSE)*(1+'Country Input'!$C$47)","v":3973.7125000000005},{"$f":"HLOOKUP(B87,INDIRECT(\"'\"&A87&\"'!$10:$80\"),MATCH('Technology template'!$A$27,INDIRECT(\"'\"&A87&\"'!$A$10:$A$80\"),0),FALSE)+'Labor and Maintenance '!$E$19","v":1042},{"$f":"VLOOKUP(B87,PQS!B:T,MATCH(PQS!$T$3,PQS!$B$3:$T$3,0),FALSE)*(1+'Country Input'!$C$47)","v":314.90100000000001},5330.6135000000004,533.06135000000006,{"$f":"VLOOKUP(B87,PQS!$B:$AE,COLUMN(PQS!AD85)-1,FALSE)","v":0},{"$f":"IFERROR(1/HLOOKUP(B87,INDIRECT(\"'\"&A87&\"'!$10:$80\"),MATCH('Technology template'!$A$31,INDIRECT(\"'\"&A87&\"'!$A$10:$A$80\"),0),FALSE)*HLOOKUP(B87,INDIRECT(\"'\"&A87&\"'!$10:$80\"),MATCH('Technology template'!$A$41,INDIRECT(\"'\"&A87&\"'!$A10:$A$80\"),0),FALSE),0)*TechnicianHourlyWage+IF(A87=\"Solar w Battery\",1/'Labor and Maintenance '!$E$53*'Labor and Maintenance '!$D$53,0)+IF(A87=\"LT passive\", 1/'Labor and Maintenance '!$E$81*'Labor and Maintenance '!$D$81,0)","v":23.155466666666666},{"$f":"IFERROR(1/HLOOKUP(B87,INDIRECT(\"'\"&A87&\"'!$10:$80\"),MATCH('Technology template'!$A$34,INDIRECT(\"'\"&A87&\"'!$A$10:$A$80\"),0),FALSE)*(HLOOKUP(B87,INDIRECT(\"'\"&A87&\"'!$10:$80\"),MATCH('Technology template'!$A$44,INDIRECT(\"'\"&A87&\"'!$A10:$A$80\"),0),FALSE)*TechnicianHourlyWage+RemoteTravelCostPerDay),0)+IFERROR(1/HLOOKUP(B87,INDIRECT(\"'\"&A87&\"'!$10:$80\"),MATCH('Technology template'!$A$35,INDIRECT(\"'\"&A87&\"'!$A$10:$A$80\"),0),FALSE)*(HLOOKUP(B87,INDIRECT(\"'\"&A87&\"'!$10:$80\"),MATCH('Technology template'!$A$45,INDIRECT(\"'\"&A87&\"'!$A10:$A$80\"),0),FALSE)*TechnicianHourlyWage+RemoteTravelCostPerDay),0)+IFERROR(1/HLOOKUP(B87,INDIRECT(\"'\"&A87&\"'!$10:$80\"),MATCH('Technology template'!$A$37,INDIRECT(\"'\"&A87&\"'!$A$10:$A$80\"),0),FALSE)*(HLOOKUP(B87,INDIRECT(\"'\"&A87&\"'!$10:$80\"),MATCH('Technology template'!$A$46,INDIRECT(\"'\"&A87&\"'!$A10:$A$80\"),0),FALSE)*TechnicianHourlyWage+'Labor and Maintenance '!$B$8),0)","v":158},1811.5546666666664,181.15546666666665,714.21681666666677,null,"Dulas Solar VC 65-2",142.14969333333335,48.308124444444438,190.45781777777779,null,"Dulas Solar VC 65-2",14.214969333333334,4.8308124444444438,19.04578177777778,null,"Dulas Solar VC 65-2",4,21322.454000000002,7246.2186666666657,28568.672666666665,null,"Dulas Solar VC 65-2",4,56.859877333333337,19.323249777777775,76.183127111111105,null,"Dulas Solar VC 65-2",{"$f":"IF(F87=0, 'Country Input'!$D$7, ROUNDUP(LitersPerFacility/F87,0)*'Country Input'!$D$7)","v":10},53306.135000000002,1811.5546666666664,55117.689666666665,null,"Dulas Solar VC 65-2",{"$f":"ROUNDUP(LitersPerFacility/F87,0)*'Country Input'!$D$7*ROUNDUP('Total Solution Costs'!$B$2/Calculations!I87,0)","v":10},142.14969333333335,4.8308124444444438,146.98050577777778,null,null,"Dulas Solar VC 65-2",{"$f":"(($U87+($O87)*IF(MOD(BH$3,$I87)=1,1,0)+Parts!$E$91*IF($J87=0,0,IF(MOD(BH$3,$I87)=1,IF(PQS!$R87=\"NO\",1,0),IF(MOD(BH$3,Calculations!$J87)=1,1,0)))+Parts!$E$92*IF(Calculations!$K87=0,0,IF(MOD(BH$3,$I87)=1,0,IF(MOD(BH$3,Calculations!$K87)=1,1,0))))*$AU87)*(1+'Country Input'!$C$45)^(Calculations!BH$3-$BH$3)+TrainingCost","v":55117.689666666673},{"$f":"(($U87+($O87)*IF(MOD(BI$3,$I87)=1,1,0)+Parts!$E$91*IF($J87=0,0,IF(MOD(BI$3,$I87)=1,IF(PQS!$R87=\"NO\",1,0),IF(MOD(BI$3,Calculations!$J87)=1,1,0)))+Parts!$E$92*IF(Calculations!$K87=0,0,IF(MOD(BI$3,$I87)=1,0,IF(MOD(BI$3,Calculations!$K87)=1,1,0))))*$AU87)*(1+'Country Input'!$C$45)^(Calculations!BI$3-$BH$3)","v":1811.5546666666664},{"$f":"(($U87+($O87)*IF(MOD(BJ$3,$I87)=1,1,0)+Parts!$E$91*IF($J87=0,0,IF(MOD(BJ$3,$I87)=1,IF(PQS!$R87=\"NO\",1,0),IF(MOD(BJ$3,Calculations!$J87)=1,1,0)))+Parts!$E$92*IF(Calculations!$K87=0,0,IF(MOD(BJ$3,$I87)=1,0,IF(MOD(BJ$3,Calculations!$K87)=1,1,0))))*$AU87)*(1+'Country Input'!$C$45)^(Calculations!BJ$3-$BH$3)","v":1811.5546666666664},{"$f":"(($U87+($O87)*IF(MOD(BK$3,$I87)=1,1,0)+Parts!$E$91*IF($J87=0,0,IF(MOD(BK$3,$I87)=1,IF(PQS!$R87=\"NO\",1,0),IF(MOD(BK$3,Calculations!$J87)=1,1,0)))+Parts!$E$92*IF(Calculations!$K87=0,0,IF(MOD(BK$3,$I87)=1,0,IF(MOD(BK$3,Calculations!$K87)=1,1,0))))*$AU87)*(1+'Country Input'!$C$45)^(Calculations!BK$3-$BH$3)","v":4494.8546666666662},{"$f":"(($U87+($O87)*IF(MOD(BL$3,$I87)=1,1,0)+Parts!$E$91*IF($J87=0,0,IF(MOD(BL$3,$I87)=1,IF(PQS!$R87=\"NO\",1,0),IF(MOD(BL$3,Calculations!$J87)=1,1,0)))+Parts!$E$92*IF(Calculations!$K87=0,0,IF(MOD(BL$3,$I87)=1,0,IF(MOD(BL$3,Calculations!$K87)=1,1,0))))*$AU87)*(1+'Country Input'!$C$45)^(Calculations!BL$3-$BH$3)","v":1811.5546666666664},{"$f":"(($U87+($O87)*IF(MOD(BM$3,$I87)=1,1,0)+Parts!$E$91*IF($J87=0,0,IF(MOD(BM$3,$I87)=1,IF(PQS!$R87=\"NO\",1,0),IF(MOD(BM$3,Calculations!$J87)=1,1,0)))+Parts!$E$92*IF(Calculations!$K87=0,0,IF(MOD(BM$3,$I87)=1,0,IF(MOD(BM$3,Calculations!$K87)=1,1,0))))*$AU87)*(1+'Country Input'!$C$45)^(Calculations!BM$3-$BH$3)","v":1811.5546666666664},{"$f":"(($U87+($O87)*IF(MOD(BN$3,$I87)=1,1,0)+Parts!$E$91*IF($J87=0,0,IF(MOD(BN$3,$I87)=1,IF(PQS!$R87=\"NO\",1,0),IF(MOD(BN$3,Calculations!$J87)=1,1,0)))+Parts!$E$92*IF(Calculations!$K87=0,0,IF(MOD(BN$3,$I87)=1,0,IF(MOD(BN$3,Calculations!$K87)=1,1,0))))*$AU87)*(1+'Country Input'!$C$45)^(Calculations!BN$3-$BH$3)","v":4494.8546666666662},{"$f":"(($U87+($O87)*IF(MOD(BO$3,$I87)=1,1,0)+Parts!$E$91*IF($J87=0,0,IF(MOD(BO$3,$I87)=1,IF(PQS!$R87=\"NO\",1,0),IF(MOD(BO$3,Calculations!$J87)=1,1,0)))+Parts!$E$92*IF(Calculations!$K87=0,0,IF(MOD(BO$3,$I87)=1,0,IF(MOD(BO$3,Calculations!$K87)=1,1,0))))*$AU87)*(1+'Country Input'!$C$45)^(Calculations!BO$3-$BH$3)","v":1811.5546666666664},{"$f":"(($U87+($O87)*IF(MOD(BP$3,$I87)=1,1,0)+Parts!$E$91*IF($J87=0,0,IF(MOD(BP$3,$I87)=1,IF(PQS!$R87=\"NO\",1,0),IF(MOD(BP$3,Calculations!$J87)=1,1,0)))+Parts!$E$92*IF(Calculations!$K87=0,0,IF(MOD(BP$3,$I87)=1,0,IF(MOD(BP$3,Calculations!$K87)=1,1,0))))*$AU87)*(1+'Country Input'!$C$45)^(Calculations!BP$3-$BH$3)","v":1811.5546666666664},{"$f":"(($U87+($O87)*IF(MOD(BQ$3,$I87)=1,1,0)+Parts!$E$91*IF($J87=0,0,IF(MOD(BQ$3,$I87)=1,IF(PQS!$R87=\"NO\",1,0),IF(MOD(BQ$3,Calculations!$J87)=1,1,0)))+Parts!$E$92*IF(Calculations!$K87=0,0,IF(MOD(BQ$3,$I87)=1,0,IF(MOD(BQ$3,Calculations!$K87)=1,1,0))))*$AU87)*(1+'Country Input'!$C$45)^(Calculations!BQ$3-$BH$3)","v":4494.8546666666662},{"$f":"(($U87+($O87)*IF(MOD(BR$3,$I87)=1,1,0)+Parts!$E$91*IF($J87=0,0,IF(MOD(BR$3,$I87)=1,IF(PQS!$R87=\"NO\",1,0),IF(MOD(BR$3,Calculations!$J87)=1,1,0)))+Parts!$E$92*IF(Calculations!$K87=0,0,IF(MOD(BR$3,$I87)=1,0,IF(MOD(BR$3,Calculations!$K87)=1,1,0))))*$AU87)*(1+'Country Input'!$C$45)^(Calculations!BR$3-$BH$3)","v":55117.689666666673},{"$f":"(($U87+($O87)*IF(MOD(BS$3,$I87)=1,1,0)+Parts!$E$91*IF($J87=0,0,IF(MOD(BS$3,$I87)=1,IF(PQS!$R87=\"NO\",1,0),IF(MOD(BS$3,Calculations!$J87)=1,1,0)))+Parts!$E$92*IF(Calculations!$K87=0,0,IF(MOD(BS$3,$I87)=1,0,IF(MOD(BS$3,Calculations!$K87)=1,1,0))))*$AU87)*(1+'Country Input'!$C$45)^(Calculations!BS$3-$BH$3)","v":1811.5546666666664},{"$f":"(($U87+($O87)*IF(MOD(BT$3,$I87)=1,1,0)+Parts!$E$91*IF($J87=0,0,IF(MOD(BT$3,$I87)=1,IF(PQS!$R87=\"NO\",1,0),IF(MOD(BT$3,Calculations!$J87)=1,1,0)))+Parts!$E$92*IF(Calculations!$K87=0,0,IF(MOD(BT$3,$I87)=1,0,IF(MOD(BT$3,Calculations!$K87)=1,1,0))))*$AU87)*(1+'Country Input'!$C$45)^(Calculations!BT$3-$BH$3)","v":4494.8546666666662},{"$f":"(($U87+($O87)*IF(MOD(BU$3,$I87)=1,1,0)+Parts!$E$91*IF($J87=0,0,IF(MOD(BU$3,$I87)=1,IF(PQS!$R87=\"NO\",1,0),IF(MOD(BU$3,Calculations!$J87)=1,1,0)))+Parts!$E$92*IF(Calculations!$K87=0,0,IF(MOD(BU$3,$I87)=1,0,IF(MOD(BU$3,Calculations!$K87)=1,1,0))))*$AU87)*(1+'Country Input'!$C$45)^(Calculations!BU$3-$BH$3)","v":1811.5546666666664},{"$f":"(($U87+($O87)*IF(MOD(BV$3,$I87)=1,1,0)+Parts!$E$91*IF($J87=0,0,IF(MOD(BV$3,$I87)=1,IF(PQS!$R87=\"NO\",1,0),IF(MOD(BV$3,Calculations!$J87)=1,1,0)))+Parts!$E$92*IF(Calculations!$K87=0,0,IF(MOD(BV$3,$I87)=1,0,IF(MOD(BV$3,Calculations!$K87)=1,1,0))))*$AU87)*(1+'Country Input'!$C$45)^(Calculations!BV$3-$BH$3)","v":1811.5546666666664},{"$f":"(($U87+($O87)*IF(MOD(BW$3,$I87)=1,1,0)+Parts!$E$91*IF($J87=0,0,IF(MOD(BW$3,$I87)=1,IF(PQS!$R87=\"NO\",1,0),IF(MOD(BW$3,Calculations!$J87)=1,1,0)))+Parts!$E$92*IF(Calculations!$K87=0,0,IF(MOD(BW$3,$I87)=1,0,IF(MOD(BW$3,Calculations!$K87)=1,1,0))))*$AU87)*(1+'Country Input'!$C$45)^(Calculations!BW$3-$BH$3)","v":4494.8546666666662},{"$f":"(($U87+($O87)*IF(MOD(BX$3,$I87)=1,1,0)+Parts!$E$91*IF($J87=0,0,IF(MOD(BX$3,$I87)=1,IF(PQS!$R87=\"NO\",1,0),IF(MOD(BX$3,Calculations!$J87)=1,1,0)))+Parts!$E$92*IF(Calculations!$K87=0,0,IF(MOD(BX$3,$I87)=1,0,IF(MOD(BX$3,Calculations!$K87)=1,1,0))))*$AU87)*(1+'Country Input'!$C$45)^(Calculations!BX$3-$BH$3)","v":1811.5546666666664},{"$f":"(($U87+($O87)*IF(MOD(BY$3,$I87)=1,1,0)+Parts!$E$91*IF($J87=0,0,IF(MOD(BY$3,$I87)=1,IF(PQS!$R87=\"NO\",1,0),IF(MOD(BY$3,Calculations!$J87)=1,1,0)))+Parts!$E$92*IF(Calculations!$K87=0,0,IF(MOD(BY$3,$I87)=1,0,IF(MOD(BY$3,Calculations!$K87)=1,1,0))))*$AU87)*(1+'Country Input'!$C$45)^(Calculations!BY$3-$BH$3)","v":1811.5546666666664},{"$f":"(($U87+($O87)*IF(MOD(BZ$3,$I87)=1,1,0)+Parts!$E$91*IF($J87=0,0,IF(MOD(BZ$3,$I87)=1,IF(PQS!$R87=\"NO\",1,0),IF(MOD(BZ$3,Calculations!$J87)=1,1,0)))+Parts!$E$92*IF(Calculations!$K87=0,0,IF(MOD(BZ$3,$I87)=1,0,IF(MOD(BZ$3,Calculations!$K87)=1,1,0))))*$AU87)*(1+'Country Input'!$C$45)^(Calculations!BZ$3-$BH$3)","v":4494.8546666666662},{"$f":"(($U87+($O87)*IF(MOD(CA$3,$I87)=1,1,0)+Parts!$E$91*IF($J87=0,0,IF(MOD(CA$3,$I87)=1,IF(PQS!$R87=\"NO\",1,0),IF(MOD(CA$3,Calculations!$J87)=1,1,0)))+Parts!$E$92*IF(Calculations!$K87=0,0,IF(MOD(CA$3,$I87)=1,0,IF(MOD(CA$3,Calculations!$K87)=1,1,0))))*$AU87)*(1+'Country Input'!$C$45)^(Calculations!CA$3-$BH$3)","v":1811.5546666666664},null,"Dulas Solar VC 65-2",55117.689666666673,1811.5546666666664,1811.5546666666664,4494.8546666666662,1811.5546666666664,1811.5546666666664,4494.8546666666662,1811.5546666666664,1811.5546666666664,4494.8546666666662,55117.689666666673,1811.5546666666664,4494.8546666666662,1811.5546666666664,1811.5546666666664,4494.8546666666662,1811.5546666666664,1811.5546666666664,4494.8546666666662,1811.5546666666664,{"$f":"SUM(CD87:INDEX($CD87:$CW87,1,'Total Solution Costs'!$B$2))","v":79471.581666666651},null,"Dulas Solar VC 65-2",{"$f":"SUM($BH87:BH87)","v":55117.689666666673},{"$f":"SUM($BH87:BI87)","v":56929.244333333336},{"$f":"SUM($BH87:BJ87)","v":58740.798999999999},{"$f":"SUM($BH87:BK87)","v":63235.653666666665},{"$f":"SUM($BH87:BL87)","v":65047.208333333328},{"$f":"SUM($BH87:BM87)","v":66858.762999999992},{"$f":"SUM($BH87:BN87)","v":71353.617666666658},{"$f":"SUM($BH87:BO87)","v":73165.172333333321},{"$f":"SUM($BH87:BP87)","v":74976.726999999984},{"$f":"SUM($BH87:BQ87)","v":79471.581666666651},{"$f":"SUM($BH87:BR87)","v":134589.27133333334},{"$f":"SUM($BH87:BS87)","v":136400.826},{"$f":"SUM($BH87:BT87)","v":140895.68066666665},{"$f":"SUM($BH87:BU87)","v":142707.23533333332},{"$f":"SUM($BH87:BV87)","v":144518.78999999998},{"$f":"SUM($BH87:BW87)","v":149013.64466666663},{"$f":"SUM($BH87:BX87)","v":150825.19933333329},{"$f":"SUM($BH87:BY87)","v":152636.75399999996},{"$f":"SUM($BH87:BZ87)","v":157131.60866666661},{"$f":"SUM($BH87:CA87)","v":158943.16333333327}]
[{"$f":"PQS!A88","v":"Solar w battery"},{"$f":"PQS!B88","v":"E003/027"},{"$f":"PQS!E88","v":"VC 150-2"},{"$f":"PQS!F88","v":"Dulas Solar"},{"$f":"PQS!D88","v":"Dulas Solar VC 150-2"},{"$f":"VLOOKUP(E88,PQS!$D$5:$K$107,COLUMN(PQS!$I$3)-COLUMN(PQS!$D$3)+1,FALSE)","v":86},{"$f":"VLOOKUP(E88,PQS!$D$5:$K$107,COLUMN(PQS!$J$3)-COLUMN(PQS!$D$3)+1,FALSE)","v":33.1},{"$f":"VLOOKUP(E88,PQS!$D$5:$K$107,COLUMN(PQS!$G$3)-COLUMN(PQS!$D$3)+1,FALSE)","v":"No"},{"$f":"HLOOKUP(B88,INDIRECT(\"'\"&A88&\"'!$10:$15\"),ROW('Technology template'!$A$11)-ROW('Technology template'!$A$10)+1,FALSE)","v":10},{"$f":"HLOOKUP(B88,INDIRECT(\"'\"&A88&\"'!$10:$15\"),ROW('Technology template'!$A$12)-ROW('Technology template'!$A$10)+1,FALSE)","v":10},{"$f":"HLOOKUP(B88,INDIRECT(\"'\"&A88&\"'!$10:$15\"),ROW('Technology template'!$A$13)-ROW('Technology template'!$A$10)+1,FALSE)","v":3},{"$f":"VLOOKUP(B88,PQS!$B:$Q,MATCH(PQS!$Q$3,PQS!$B$3:$Q$3,0),FALSE)*(1+'Country Input'!$C$47)+HLOOKUP(B88,INDIRECT(\"'\"&A88&\"'!$10:$15\"),ROW('Technology template'!$A$14)-ROW('Technology template'!$A$10)+1,FALSE)*(1+'Country Input'!$C$47)","v":5140.0124999999998},{"$f":"HLOOKUP(B88,INDIRECT(\"'\"&A88&\"'!$10:$80\"),MATCH('Technology template'!$A$27,INDIRECT(\"'\"&A88&\"'!$A$10:$A$80\"),0),FALSE)+'Labor and Maintenance '!$E$19","v":1042},{"$f":"VLOOKUP(B88,PQS!B:T,MATCH(PQS!$T$3,PQS!$B$3:$T$3,0),FALSE)*(1+'Country Input'!$C$47)","v":314.90100000000001},6496.9134999999997,649.69134999999994,{"$f":"VLOOKUP(B88,PQS!$B:$AE,COLUMN(PQS!AD86)-1,FALSE)","v":0},{"$f":"IFERROR(1/HLOOKUP(B88,INDIRECT(\"'\"&A88&\"'!$10:$80\"),MATCH('Technology template'!$A$31,INDIRECT(\"'\"&A88&\"'!$A$10:$A$80\"),0),FALSE)*HLOOKUP(B88,INDIRECT(\"'\"&A88&\"'!$10:$80\"),MATCH('Technology template'!$A$41,INDIRECT(\"'\"&A88&\"'!$A10:$A$80\"),0),FALSE),0)*TechnicianHourlyWage+IF(A88=\"Solar w Battery\",1/'Labor and Maintenance '!$E$53*'Labor and Maintenance '!$D$53,0)+IF(A88=\"LT passive\", 1/'Labor and Maintenance '!$E$81*'Labor and Maintenance '!$D$81,0)","v":23.155466666666666},{"$f":"IFERROR(1/HLOOKUP(B88,INDIRECT(\"'\"&A88&\"'!$10:$80\"),MATCH('Technology template'!$A$34,INDIRECT(\"'\"&A88&\"'!$A$10:$A$80\"),0),FALSE)*(HLOOKUP(B88,INDIRECT(\"'\"&A88&\"'!$10:$80\"),MATCH('Technology template'!$A$44,INDIRECT(\"'\"&A88&\"'!$A10:$A$80\"),0),FALSE)*TechnicianHourlyWage+RemoteTravelCostPerDay),0)+IFERROR(1/HLOOKUP(B88,INDIRECT(\"'\"&A88&\"'!$10:$80\"),MATCH('Technology template'!$A$35,INDIRECT(\"'\"&A88&\"'!$A$10:$A$80\"),0),FALSE)*(HLOOKUP(B88,INDIRECT(\"'\"&A88&\"'!$10:$80\"),MATCH('Technology template'!$A$45,INDIRECT(\"'\"&A88&\"'!$A10:$A$80\"),0),FALSE)*TechnicianHourlyWage+RemoteTravelCostPerDay),0)+IFERROR(1/HLOOKUP(B88,INDIRECT(\"'\"&A88&\"'!$10:$80\"),MATCH('Technology template'!$A$37,INDIRECT(\"'\"&A88&\"'!$A$10:$A$80\"),0),FALSE)*(HLOOKUP(B88,INDIRECT(\"'\"&A88&\"'!$10:$80\"),MATCH('Technology template'!$A$46,INDIRECT(\"'\"&A88&\"'!$A10:$A$80\"),0),FALSE)*TechnicianHourlyWage+'Labor and Maintenance '!$B$8),0)","v":158},1811.5546666666664,181.15546666666665,830.84681666666665,null,"Dulas Solar VC 150-2",75.545505813953483,21.064589147286821,96.610094961240307,null,"Dulas Solar VC 150-2",7.5545505813953477,2.1064589147286821,9.6610094961240307,null,"Dulas Solar VC 150-2",2,12993.826999999999,3623.1093333333329,16616.936333333331,null,"Dulas Solar VC 150-2",2,15.109101162790695,4.2129178294573641,19.322018992248061,null,"Dulas Solar VC 150-2",{"$f":"IF(F88=0, 'Country Input'!$D$7, ROUNDUP(LitersPerFacility/F88,0)*'Country Input'!$D$7)","v":10},64969.134999999995,1811.5546666666664,66780.689666666658,null,"Dulas Solar VC 150-2",{"$f":"ROUNDUP(LitersPerFacility/F88,0)*'Country Input'!$D$7*ROUNDUP('Total Solution Costs'!$B$2/Calculations!I88,0)","v":10},75.545505813953483,2.1064589147286821,77.651964728682159,null,null,"Dulas Solar VC 150-2",{"$f":"(($U88+($O88)*IF(MOD(BH$3,$I88)=1,1,0)+Parts!$E$91*IF($J88=0,0,IF(MOD(BH$3,$I88)=1,IF(PQS!$R88=\"NO\",1,0),IF(MOD(BH$3,Calculations!$J88)=1,1,0)))+Parts!$E$92*IF(Calculations!$K88=0,0,IF(MOD(BH$3,$I88)=1,0,IF(MOD(BH$3,Calculations!$K88)=1,1,0))))*$AU88)*(1+'Country Input'!$C$45)^(Calculations!BH$3-$BH$3)+TrainingCost","v":81780.689666666673},{"$f":"(($U88+($O88)*IF(MOD(BI$3,$I88)=1,1,0)+Parts!$E$91*IF($J88=0,0,IF(MOD(BI$3,$I88)=1,IF(PQS!$R88=\"NO\",1,0),IF(MOD(BI$3,Calculations!$J88)=1,1,0)))+Parts!$E$92*IF(Calculations!$K88=0,0,IF(MOD(BI$3,$I88)=1,0,IF(MOD(BI$3,Calculations!$K88)=1,1,0))))*$AU88)*(1+'Country Input'!$C$45)^(Calculations!BI$3-$BH$3)","v":1811.5546666666664},{"$f":"(($U88+($O88)*IF(MOD(BJ$3,$I88)=1,1,0)+Parts!$E$91*IF($J88=0,0,IF(MOD(BJ$3,$I88)=1,IF(PQS!$R88=\"NO\",1,0),IF(MOD(BJ$3,Calculations!$J88)=1,1,0)))+Parts!$E$92*IF(Calculations!$K88=0,0,IF(MOD(BJ$3,$I88)=1,0,IF(MOD(BJ$3,Calculations!$K88)=1,1,0))))*$AU88)*(1+'Country Input'!$C$45)^(Calculations!BJ$3-$BH$3)","v":1811.5546666666664},{"$f":"(($U88+($O88)*IF(MOD(BK$3,$I88)=1,1,0)+Parts!$E$91*IF($J88=0,0,IF(MOD(BK$3,$I88)=1,IF(PQS!$R88=\"NO\",1,0),IF(MOD(BK$3,Calculations!$J88)=1,1,0)))+Parts!$E$92*IF(Calculations!$K88=0,0,IF(MOD(BK$3,$I88)=1,0,IF(MOD(BK$3,Calculations!$K88)=1,1,0))))*$AU88)*(1+'Country Input'!$C$45)^(Calculations!BK$3-$BH$3)","v":4494.8546666666662},{"$f":"(($U88+($O88)*IF(MOD(BL$3,$I88)=1,1,0)+Parts!$E$91*IF($J88=0,0,IF(MOD(BL$3,$I88)=1,IF(PQS!$R88=\"NO\",1,0),IF(MOD(BL$3,Calculations!$J88)=1,1,0)))+Parts!$E$92*IF(Calculations!$K88=0,0,IF(MOD(BL$3,$I88)=1,0,IF(MOD(BL$3,Calculations!$K88)=1,1,0))))*$AU88)*(1+'Country Input'!$C$45)^(Calculations!BL$3-$BH$3)","v":1811.5546666666664},{"$f":"(($U88+($O88)*IF(MOD(BM$3,$I88)=1,1,0)+Parts!$E$91*IF($J88=0,0,IF(MOD(BM$3,$I88)=1,IF(PQS!$R88=\"NO\",1,0),IF(MOD(BM$3,Calculations!$J88)=1,1,0)))+Parts!$E$92*IF(Calculations!$K88=0,0,IF(MOD(BM$3,$I88)=1,0,IF(MOD(BM$3,Calculations!$K88)=1,1,0))))*$AU88)*(1+'Country Input'!$C$45)^(Calculations!BM$3-$BH$3)","v":1811.5546666666664},{"$f":"(($U88+($O88)*IF(MOD(BN$3,$I88)=1,1,0)+Parts!$E$91*IF($J88=0,0,IF(MOD(BN$3,$I88)=1,IF(PQS!$R88=\"NO\",1,0),IF(MOD(BN$3,Calculations!$J88)=1,1,0)))+Parts!$E$92*IF(Calculations!$K88=0,0,IF(MOD(BN$3,$I88)=1,0,IF(MOD(BN$3,Calculations!$K88)=1,1,0))))*$AU88)*(1+'Country Input'!$C$45)^(Calculations!BN$3-$BH$3)","v":4494.8546666666662},{"$f":"(($U88+($O88)*IF(MOD(BO$3,$I88)=1,1,0)+Parts!$E$91*IF($J88=0,0,IF(MOD(BO$3,$I88)=1,IF(PQS!$R88=\"NO\",1,0),IF(MOD(BO$3,Calculations!$J88)=1,1,0)))+Parts!$E$92*IF(Calculations!$K88=0,0,IF(MOD(BO$3,$I88)=1,0,IF(MOD(BO$3,Calculations!$K88)=1,1,0))))*$AU88)*(1+'Country Input'!$C$45)^(Calculations!BO$3-$BH$3)","v":1811.5546666666664},{"$f":"(($U88+($O88)*IF(MOD(BP$3,$I88)=1,1,0)+Parts!$E$91*IF($J88=0,0,IF(MOD(BP$3,$I88)=1,IF(PQS!$R88=\"NO\",1,0),IF(MOD(BP$3,Calculations!$J88)=1,1,0)))+Parts!$E$92*IF(Calculations!$K88=0,0,IF(MOD(BP$3,$I88)=1,0,IF(MOD(BP$3,Calculations!$K88)=1,1,0))))*$AU88)*(1+'Country Input'!$C$45)^(Calculations!BP$3-$BH$3)","v":1811.5546666666664},{"$f":"(($U88+($O88)*IF(MOD(BQ$3,$I88)=1,1,0)+Parts!$E$91*IF($J88=0,0,IF(MOD(BQ$3,$I88)=1,IF(PQS!$R88=\"NO\",1,0),IF(MOD(BQ$3,Calculations!$J88)=1,1,0)))+Parts!$E$92*IF(Calculations!$K88=0,0,IF(MOD(BQ$3,$I88)=1,0,IF(MOD(BQ$3,Calculations!$K88)=1,1,0))))*$AU88)*(1+'Country Input'!$C$45)^(Calculations!BQ$3-$BH$3)","v":4494.8546666666662},{"$f":"(($U88+($O88)*IF(MOD(BR$3,$I88)=1,1,0)+Parts!$E$91*IF($J88=0,0,IF(MOD(BR$3,$I88)=1,IF(PQS!$R88=\"NO\",1,0),IF(MOD(BR$3,Calculations!$J88)=1,1,0)))+Parts!$E$92*IF(Calculations!$K88=0,0,IF(MOD(BR$3,$I88)=1,0,IF(MOD(BR$3,Calculations!$K88)=1,1,0))))*$AU88)*(1+'Country Input'!$C$45)^(Calculations!BR$3-$BH$3)","v":81780.689666666673},{"$f":"(($U88+($O88)*IF(MOD(BS$3,$I88)=1,1,0)+Parts!$E$91*IF($J88=0,0,IF(MOD(BS$3,$I88)=1,IF(PQS!$R88=\"NO\",1,0),IF(MOD(BS$3,Calculations!$J88)=1,1,0)))+Parts!$E$92*IF(Calculations!$K88=0,0,IF(MOD(BS$3,$I88)=1,0,IF(MOD(BS$3,Calculations!$K88)=1,1,0))))*$AU88)*(1+'Country Input'!$C$45)^(Calculations!BS$3-$BH$3)","v":1811.5546666666664},{"$f":"(($U88+($O88)*IF(MOD(BT$3,$I88)=1,1,0)+Parts!$E$91*IF($J88=0,0,IF(MOD(BT$3,$I88)=1,IF(PQS!$R88=\"NO\",1,0),IF(MOD(BT$3,Calculations!$J88)=1,1,0)))+Parts!$E$92*IF(Calculations!$K88=0,0,IF(MOD(BT$3,$I88)=1,0,IF(MOD(BT$3,Calculations!$K88)=1,1,0))))*$AU88)*(1+'Country Input'!$C$45)^(Calculations!BT$3-$BH$3)","v":4494.8546666666662},{"$f":"(($U88+($O88)*IF(MOD(BU$3,$I88)=1,1,0)+Parts!$E$91*IF($J88=0,0,IF(MOD(BU$3,$I88)=1,IF(PQS!$R88=\"NO\",1,0),IF(MOD(BU$3,Calculations!$J88)=1,1,0)))+Parts!$E$92*IF(Calculations!$K88=0,0,IF(MOD(BU$3,$I88)=1,0,IF(MOD(BU$3,Calculations!$K88)=1,1,0))))*$AU88)*(1+'Country Input'!$C$45)^(Calculations!BU$3-$BH$3)","v":1811.5546666666664},{"$f":"(($U88+($O88)*IF(MOD(BV$3,$I88)=1,1,0)+Parts!$E$91*IF($J88=0,0,IF(MOD(BV$3,$I88)=1,IF(PQS!$R88=\"NO\",1,0),IF(MOD(BV$3,Calculations!$J88)=1,1,0)))+Parts!$E$92*IF(Calculations!$K88=0,0,IF(MOD(BV$3,$I88)=1,0,IF(MOD(BV$3,Calculations!$K88)=1,1,0))))*$AU88)*(1+'Country Input'!$C$45)^(Calculations!BV$3-$BH$3)","v":1811.5546666666664},{"$f":"(($U88+($O88)*IF(MOD(BW$3,$I88)=1,1,0)+Parts!$E$91*IF($J88=0,0,IF(MOD(BW$3,$I88)=1,IF(PQS!$R88=\"NO\",1,0),IF(MOD(BW$3,Calculations!$J88)=1,1,0)))+Parts!$E$92*IF(Calculations!$K88=0,0,IF(MOD(BW$3,$I88)=1,0,IF(MOD(BW$3,Calculations!$K88)=1,1,0))))*$AU88)*(1+'Country Input'!$C$45)^(Calculations!BW$3-$BH$3)","v":4494.8546666666662},{"$f":"(($U88+($O88)*IF(MOD(BX$3,$I88)=1,1,0)+Parts!$E$91*IF($J88=0,0,IF(MOD(BX$3,$I88)=1,IF(PQS!$R88=\"NO\",1,0),IF(MOD(BX$3,Calculations!$J88)=1,1,0)))+Parts!$E$92*IF(Calculations!$K88=0,0,IF(MOD(BX$3,$I88)=1,0,IF(MOD(BX$3,Calculations!$K88)=1,1,0))))*$AU88)*(1+'Country Input'!$C$45)^(Calculations!BX$3-$BH$3)","v":1811.5546666666664},{"$f":"(($U88+($O88)*IF(MOD(BY$3,$I88)=1,1,0)+Parts!$E$91*IF($J88=0,0,IF(MOD(BY$3,$I88)=1,IF(PQS!$R88=\"NO\",1,0),IF(MOD(BY$3,Calculations!$J88)=1,1,0)))+Parts!$E$92*IF(Calculations!$K88=0,0,IF(MOD(BY$3,$I88)=1,0,IF(MOD(BY$3,Calculations!$K88)=1,1,0))))*$AU88)*(1+'Country Input'!$C$45)^(Calculations!BY$3-$BH$3)","v":1811.5546666666664},{"$f":"(($U88+($O88)*IF(MOD(BZ$3,$I88)=1,1,0)+Parts!$E$91*IF($J88=0,0,IF(MOD(BZ$3,$I88)=1,IF(PQS!$R88=\"NO\",1,0),IF(MOD(BZ$3,Calculations!$J88)=1,1,0)))+Parts!$E$92*IF(Calculations!$K88=0,0,IF(MOD(BZ$3,$I88)=1,0,IF(MOD(BZ$3,Calculations!$K88)=1,1,0))))*$AU88)*(1+'Country Input'!$C$45)^(Calculations!BZ$3-$BH$3)","v":4494.8546666666662},{"$f":"(($U88+($O88)*IF(MOD(CA$3,$I88)=1,1,0)+Parts!$E$91*IF($J88=0,0,IF(MOD(CA$3,$I88)=1,IF(PQS!$R88=\"NO\",1,0),IF(MOD(CA$3,Calculations!$J88)=1,1,0)))+Parts!$E$92*IF(Calculations!$K88=0,0,IF(MOD(CA$3,$I88)=1,0,IF(MOD(CA$3,Calculations!$K88)=1,1,0))))*$AU88)*(1+'Country Input'!$C$45)^(Calculations!CA$3-$BH$3)","v":1811.5546666666664},null,"Dulas Solar VC 150-2",81780.689666666673,1811.5546666666664,1811.5546666666664,4494.8546666666662,1811.5546666666664,1811.5546666666664,4494.8546666666662,1811.5546666666664,1811.5546666666664,4494.8546666666662,81780.689666666673,1811.5546666666664,4494.8546666666662,1811.5546666666664,1811.5546666666664,4494.8546666666662,1811.5546666666664,1811.5546666666664,4494.8546666666662,1811.5546666666664,{"$f":"SUM(CD88:INDEX($CD88:$CW88,1,'Total Solution Costs'!$B$2))","v":106134.58166666665},null,"Dulas Solar VC 150-2",{"$f":"SUM($BH88:BH88)","v":81780.689666666673},{"$f":"SUM($BH88:BI88)","v":83592.244333333336},{"$f":"SUM($BH88:BJ88)","v":85403.798999999999},{"$f":"SUM($BH88:BK88)","v":89898.653666666665},{"$f":"SUM($BH88:BL88)","v":91710.208333333328},{"$f":"SUM($BH88:BM88)","v":93521.762999999992},{"$f":"SUM($BH88:BN88)","v":98016.617666666658},{"$f":"SUM($BH88:BO88)","v":99828.172333333321},{"$f":"SUM($BH88:BP88)","v":101639.72699999998},{"$f":"SUM($BH88:BQ88)","v":106134.58166666665},{"$f":"SUM($BH88:BR88)","v":187915.27133333334},{"$f":"SUM($BH88:BS88)","v":189726.826},{"$f":"SUM($BH88:BT88)","v":194221.68066666665},{"$f":"SUM($BH88:BU88)","v":196033.23533333332},{"$f":"SUM($BH88:BV88)","v":197844.78999999998},{"$f":"SUM($BH88:BW88)","v":202339.64466666663},{"$f":"SUM($BH88:BX88)","v":204151.19933333329},{"$f":"SUM($BH88:BY88)","v":205962.75399999996},{"$f":"SUM($BH88:BZ88)","v":210457.60866666661},{"$f":"SUM($BH88:CA88)","v":212269.16333333327}]
[{"$f":"PQS!A89","v":"Solar w battery"},{"$f":"PQS!B89","v":"E003/028"},{"$f":"PQS!E89","v":"VC 200-1"},{"$f":"PQS!F89","v":"Dulas Solar"},{"$f":"PQS!D89","v":"Dulas Solar VC 200-1"},{"$f":"VLOOKUP(E89,PQS!$D$5:$K$107,COLUMN(PQS!$I$3)-COLUMN(PQS!$D$3)+1,FALSE)","v":126.5},{"$f":"VLOOKUP(E89,PQS!$D$5:$K$107,COLUMN(PQS!$J$3)-COLUMN(PQS!$D$3)+1,FALSE)","v":0},{"$f":"VLOOKUP(E89,PQS!$D$5:$K$107,COLUMN(PQS!$G$3)-COLUMN(PQS!$D$3)+1,FALSE)","v":"No"},{"$f":"HLOOKUP(B89,INDIRECT(\"'\"&A89&\"'!$10:$15\"),ROW('Technology template'!$A$11)-ROW('Technology template'!$A$10)+1,FALSE)","v":10},{"$f":"HLOOKUP(B89,INDIRECT(\"'\"&A89&\"'!$10:$15\"),ROW('Technology template'!$A$12)-ROW('Technology template'!$A$10)+1,FALSE)","v":10},{"$f":"HLOOKUP(B89,INDIRECT(\"'\"&A89&\"'!$10:$15\"),ROW('Technology template'!$A$13)-ROW('Technology template'!$A$10)+1,FALSE)","v":3},{"$f":"VLOOKUP(B89,PQS!$B:$Q,MATCH(PQS!$Q$3,PQS!$B$3:$Q$3,0),FALSE)*(1+'Country Input'!$C$47)+HLOOKUP(B89,INDIRECT(\"'\"&A89&\"'!$10:$15\"),ROW('Technology template'!$A$14)-ROW('Technology template'!$A$10)+1,FALSE)*(1+'Country Input'!$C$47)","v":3711.2950000000005},{"$f":"HLOOKUP(B89,INDIRECT(\"'\"&A89&\"'!$10:$80\"),MATCH('Technology template'!$A$27,INDIRECT(\"'\"&A89&\"'!$A$10:$A$80\"),0),FALSE)+'Labor and Maintenance '!$E$19","v":1042},{"$f":"VLOOKUP(B89,PQS!B:T,MATCH(PQS!$T$3,PQS!$B$3:$T$3,0),FALSE)*(1+'Country Input'!$C$47)","v":314.90100000000001},5068.1959999999999,506.81959999999998,{"$f":"VLOOKUP(B89,PQS!$B:$AE,COLUMN(PQS!AD87)-1,FALSE)","v":0},{"$f":"IFERROR(1/HLOOKUP(B89,INDIRECT(\"'\"&A89&\"'!$10:$80\"),MATCH('Technology template'!$A$31,INDIRECT(\"'\"&A89&\"'!$A$10:$A$80\"),0),FALSE)*HLOOKUP(B89,INDIRECT(\"'\"&A89&\"'!$10:$80\"),MATCH('Technology template'!$A$41,INDIRECT(\"'\"&A89&\"'!$A10:$A$80\"),0),FALSE),0)*TechnicianHourlyWage+IF(A89=\"Solar w Battery\",1/'Labor and Maintenance '!$E$53*'Labor and Maintenance '!$D$53,0)+IF(A89=\"LT passive\", 1/'Labor and Maintenance '!$E$81*'Labor and Maintenance '!$D$81,0)","v":23.155466666666666},{"$f":"IFERROR(1/HLOOKUP(B89,INDIRECT(\"'\"&A89&\"'!$10:$80\"),MATCH('Technology template'!$A$34,INDIRECT(\"'\"&A89&\"'!$A$10:$A$80\"),0),FALSE)*(HLOOKUP(B89,INDIRECT(\"'\"&A89&\"'!$10:$80\"),MATCH('Technology template'!$A$44,INDIRECT(\"'\"&A89&\"'!$A10:$A$80\"),0),FALSE)*TechnicianHourlyWage+RemoteTravelCostPerDay),0)+IFERROR(1/HLOOKUP(B89,INDIRECT(\"'\"&A89&\"'!$10:$80\"),MATCH('Technology template'!$A$35,INDIRECT(\"'\"&A89&\"'!$A$10:$A$80\"),0),FALSE)*(HLOOKUP(B89,INDIRECT(\"'\"&A89&\"'!$10:$80\"),MATCH('Technology template'!$A$45,INDIRECT(\"'\"&A89&\"'!$A10:$A$80\"),0),FALSE)*TechnicianHourlyWage+RemoteTravelCostPerDay),0)+IFERROR(1/HLOOKUP(B89,INDIRECT(\"'\"&A89&\"'!$10:$80\"),MATCH('Technology template'!$A$37,INDIRECT(\"'\"&A89&\"'!$A$10:$A$80\"),0),FALSE)*(HLOOKUP(B89,INDIRECT(\"'\"&A89&\"'!$10:$80\"),MATCH('Technology template'!$A$46,INDIRECT(\"'\"&A89&\"'!$A10:$A$80\"),0),FALSE)*TechnicianHourlyWage+'Labor and Maintenance '!$B$8),0)","v":158},1811.5546666666664,181.15546666666665,687.97506666666663,null,"Dulas Solar VC 200-1",40.064790513833991,14.32059025032938,54.385380764163372,null,"Dulas Solar VC 200-1",4.0064790513833994,1.4320590250329379,5.4385380764163367,null,"Dulas Solar VC 200-1",1,5068.1959999999999,1811.5546666666664,6879.7506666666668,null,"Dulas Solar VC 200-1",1,4.0064790513833994,1.4320590250329379,5.4385380764163376,null,"Dulas Solar VC 200-1",{"$f":"IF(F89=0, 'Country Input'!$D$7, ROUNDUP(LitersPerFacility/F89,0)*'Country Input'!$D$7)","v":10},50681.96,1811.5546666666664,52493.514666666662,null,"Dulas Solar VC 200-1",{"$f":"ROUNDUP(LitersPerFacility/F89,0)*'Country Input'!$D$7*ROUNDUP('Total Solution Costs'!$B$2/Calculations!I89,0)","v":10},40.064790513833998,1.4320590250329379,41.496849538866933,null,null,"Dulas Solar VC 200-1",{"$f":"(($U89+($O89)*IF(MOD(BH$3,$I89)=1,1,0)+Parts!$E$91*IF($J89=0,0,IF(MOD(BH$3,$I89)=1,IF(PQS!$R89=\"NO\",1,0),IF(MOD(BH$3,Calculations!$J89)=1,1,0)))+Parts!$E$92*IF(Calculations!$K89=0,0,IF(MOD(BH$3,$I89)=1,0,IF(MOD(BH$3,Calculations!$K89)=1,1,0))))*$AU89)*(1+'Country Input'!$C$45)^(Calculations!BH$3-$BH$3)+TrainingCost","v":67493.51466666667},{"$f":"(($U89+($O89)*IF(MOD(BI$3,$I89)=1,1,0)+Parts!$E$91*IF($J89=0,0,IF(MOD(BI$3,$I89)=1,IF(PQS!$R89=\"NO\",1,0),IF(MOD(BI$3,Calculations!$J89)=1,1,0)))+Parts!$E$92*IF(Calculations!$K89=0,0,IF(MOD(BI$3,$I89)=1,0,IF(MOD(BI$3,Calculations!$K89)=1,1,0))))*$AU89)*(1+'Country Input'!$C$45)^(Calculations!BI$3-$BH$3)","v":1811.5546666666664},{"$f":"(($U89+($O89)*IF(MOD(BJ$3,$I89)=1,1,0)+Parts!$E$91*IF($J89=0,0,IF(MOD(BJ$3,$I89)=1,IF(PQS!$R89=\"NO\",1,0),IF(MOD(BJ$3,Calculations!$J89)=1,1,0)))+Parts!$E$92*IF(Calculations!$K89=0,0,IF(MOD(BJ$3,$I89)=1,0,IF(MOD(BJ$3,Calculations!$K89)=1,1,0))))*$AU89)*(1+'Country Input'!$C$45)^(Calculations!BJ$3-$BH$3)","v":1811.5546666666664},{"$f":"(($U89+($O89)*IF(MOD(BK$3,$I89)=1,1,0)+Parts!$E$91*IF($J89=0,0,IF(MOD(BK$3,$I89)=1,IF(PQS!$R89=\"NO\",1,0),IF(MOD(BK$3,Calculations!$J89)=1,1,0)))+Parts!$E$92*IF(Calculations!$K89=0,0,IF(MOD(BK$3,$I89)=1,0,IF(MOD(BK$3,Calculations!$K89)=1,1,0))))*$AU89)*(1+'Country Input'!$C$45)^(Calculations!BK$3-$BH$3)","v":4494.8546666666662},{"$f":"(($U89+($O89)*IF(MOD(BL$3,$I89)=1,1,0)+Parts!$E$91*IF($J89=0,0,IF(MOD(BL$3,$I89)=1,IF(PQS!$R89=\"NO\",1,0),IF(MOD(BL$3,Calculations!$J89)=1,1,0)))+Parts!$E$92*IF(Calculations!$K89=0,0,IF(MOD(BL$3,$I89)=1,0,IF(MOD(BL$3,Calculations!$K89)=1,1,0))))*$AU89)*(1+'Country Input'!$C$45)^(Calculations!BL$3-$BH$3)","v":1811.5546666666664},{"$f":"(($U89+($O89)*IF(MOD(BM$3,$I89)=1,1,0)+Parts!$E$91*IF($J89=0,0,IF(MOD(BM$3,$I89)=1,IF(PQS!$R89=\"NO\",1,0),IF(MOD(BM$3,Calculations!$J89)=1,1,0)))+Parts!$E$92*IF(Calculations!$K89=0,0,IF(MOD(BM$3,$I89)=1,0,IF(MOD(BM$3,Calculations!$K89)=1,1,0))))*$AU89)*(1+'Country Input'!$C$45)^(Calculations!BM$3-$BH$3)","v":1811.5546666666664},{"$f":"(($U89+($O89)*IF(MOD(BN$3,$I89)=1,1,0)+Parts!$E$91*IF($J89=0,0,IF(MOD(BN$3,$I89)=1,IF(PQS!$R89=\"NO\",1,0),IF(MOD(BN$3,Calculations!$J89)=1,1,0)))+Parts!$E$92*IF(Calculations!$K89=0,0,IF(MOD(BN$3,$I89)=1,0,IF(MOD(BN$3,Calculations!$K89)=1,1,0))))*$AU89)*(1+'Country Input'!$C$45)^(Calculations!BN$3-$BH$3)","v":4494.8546666666662},{"$f":"(($U89+($O89)*IF(MOD(BO$3,$I89)=1,1,0)+Parts!$E$91*IF($J89=0,0,IF(MOD(BO$3,$I89)=1,IF(PQS!$R89=\"NO\",1,0),IF(MOD(BO$3,Calculations!$J89)=1,1,0)))+Parts!$E$92*IF(Calculations!$K89=0,0,IF(MOD(BO$3,$I89)=1,0,IF(MOD(BO$3,Calculations!$K89)=1,1,0))))*$AU89)*(1+'Country Input'!$C$45)^(Calculations!BO$3-$BH$3)","v":1811.5546666666664},{"$f":"(($U89+($O89)*IF(MOD(BP$3,$I89)=1,1,0)+Parts!$E$91*IF($J89=0,0,IF(MOD(BP$3,$I89)=1,IF(PQS!$R89=\"NO\",1,0),IF(MOD(BP$3,Calculations!$J89)=1,1,0)))+Parts!$E$92*IF(Calculations!$K89=0,0,IF(MOD(BP$3,$I89)=1,0,IF(MOD(BP$3,Calculations!$K89)=1,1,0))))*$AU89)*(1+'Country Input'!$C$45)^(Calculations!BP$3-$BH$3)","v":1811.5546666666664},{"$f":"(($U89+($O89)*IF(MOD(BQ$3,$I89)=1,1,0)+Parts!$E$91*IF($J89=0,0,IF(MOD(BQ$3,$I89)=1,IF(PQS!$R89=\"NO\",1,0),IF(MOD(BQ$3,Calculations!$J89)=1,1,0)))+Parts!$E$92*IF(Calculations!$K89=0,0,IF(MOD(BQ$3,$I89)=1,0,IF(MOD(BQ$3,Calculations!$K89)=1,1,0))))*$AU89)*(1+'Country Input'!$C$45)^(Calculations!BQ$3-$BH$3)","v":4494.8546666666662},{"$f":"(($U89+($O89)*IF(MOD(BR$3,$I89)=1,1,0)+Parts!$E$91*IF($J89=0,0,IF(MOD(BR$3,$I89)=1,IF(PQS!$R89=\"NO\",1,0),IF(MOD(BR$3,Calculations!$J89)=1,1,0)))+Parts!$E$92*IF(Calculations!$K89=0,0,IF(MOD(BR$3,$I89)=1,0,IF(MOD(BR$3,Calculations!$K89)=1,1,0))))*$AU89)*(1+'Country Input'!$C$45)^(Calculations!BR$3-$BH$3)","v":67493.51466666667},{"$f":"(($U89+($O89)*IF(MOD(BS$3,$I89)=1,1,0)+Parts!$E$91*IF($J89=0,0,IF(MOD(BS$3,$I89)=1,IF(PQS!$R89=\"NO\",1,0),IF(MOD(BS$3,Calculations!$J89)=1,1,0)))+Parts!$E$92*IF(Calculations!$K89=0,0,IF(MOD(BS$3,$I89)=1,0,IF(MOD(BS$3,Calculations!$K89)=1,1,0))))*$AU89)*(1+'Country Input'!$C$45)^(Calculations!BS$3-$BH$3)","v":1811.5546666666664},{"$f":"(($U89+($O89)*IF(MOD(BT$3,$I89)=1,1,0)+Parts!$E$91*IF($J89=0,0,IF(MOD(BT$3,$I89)=1,IF(PQS!$R89=\"NO\",1,0),IF(MOD(BT$3,Calculations!$J89)=1,1,0)))+Parts!$E$92*IF(Calculations!$K89=0,0,IF(MOD(BT$3,$I89)=1,0,IF(MOD(BT$3,Calculations!$K89)=1,1,0))))*$AU89)*(1+'Country Input'!$C$45)^(Calculations!BT$3-$BH$3)","v":4494.8546666666662},{"$f":"(($U89+($O89)*IF(MOD(BU$3,$I89)=1,1,0)+Parts!$E$91*IF($J89=0,0,IF(MOD(BU$3,$I89)=1,IF(PQS!$R89=\"NO\",1,0),IF(MOD(BU$3,Calculations!$J89)=1,1,0)))+Parts!$E$92*IF(Calculations!$K89=0,0,IF(MOD(BU$3,$I89)=1,0,IF(MOD(BU$3,Calculations!$K89)=1,1,0))))*$AU89)*(1+'Country Input'!$C$45)^(Calculations!BU$3-$BH$3)","v":1811.5546666666664},{"$f":"(($U89+($O89)*IF(MOD(BV$3,$I89)=1,1,0)+Parts!$E$91*IF($J89=0,0,IF(MOD(BV$3,$I89)=1,IF(PQS!$R89=\"NO\",1,0),IF(MOD(BV$3,Calculations!$J89)=1,1,0)))+Parts!$E$92*IF(Calculations!$K89=0,0,IF(MOD(BV$3,$I89)=1,0,IF(MOD(BV$3,Calculations!$K89)=1,1,0))))*$AU89)*(1+'Country Input'!$C$45)^(Calculations!BV$3-$BH$3)","v":1811.5546666666664},{"$f":"(($U89+($O89)*IF(MOD(BW$3,$I89)=1,1,0)+Parts!$E$91*IF($J89=0,0,IF(MOD(BW$3,$I89)=1,IF(PQS!$R89=\"NO\",1,0),IF(MOD(BW$3,Calculations!$J89)=1,1,0)))+Parts!$E$92*IF(Calculations!$K89=0,0,IF(MOD(BW$3,$I89)=1,0,IF(MOD(BW$3,Calculations!$K89)=1,1,0))))*$AU89)*(1+'Country Input'!$C$45)^(Calculations!BW$3-$BH$3)","v":4494.8546666666662},{"$f":"(($U89+($O89)*IF(MOD(BX$3,$I89)=1,1,0)+Parts!$E$91*IF($J89=0,0,IF(MOD(BX$3,$I89)=1,IF(PQS!$R89=\"NO\",1,0),IF(MOD(BX$3,Calculations!$J89)=1,1,0)))+Parts!$E$92*IF(Calculations!$K89=0,0,IF(MOD(BX$3,$I89)=1,0,IF(MOD(BX$3,Calculations!$K89)=1,1,0))))*$AU89)*(1+'Country Input'!$C$45)^(Calculations!BX$3-$BH$3)","v":1811.5546666666664},{"$f":"(($U89+($O89)*IF(MOD(BY$3,$I89)=1,1,0)+Parts!$E$91*IF($J89=0,0,IF(MOD(BY$3,$I89)=1,IF(PQS!$R89=\"NO\",1,0),IF(MOD(BY$3,Calculations!$J89)=1,1,0)))+Parts!$E$92*IF(Calculations!$K89=0,0,IF(MOD(BY$3,$I89)=1,0,IF(MOD(BY$3,Calculations!$K89)=1,1,0))))*$AU89)*(1+'Country Input'!$C$45)^(Calculations!BY$3-$BH$3)","v":1811.5546666666664},{"$f":"(($U89+($O89)*IF(MOD(BZ$3,$I89)=1,1,0)+Parts!$E$91*IF($J89=0,0,IF(MOD(BZ$3,$I89)=1,IF(PQS!$R89=\"NO\",1,0),IF(MOD(BZ$3,Calculations!$J89)=1,1,0)))+Parts!$E$92*IF(Calculations!$K89=0,0,IF(MOD(BZ$3,$I89)=1,0,IF(MOD(BZ$3,Calculations!$K89)=1,1,0))))*$AU89)*(1+'Country Input'!$C$45)^(Calculations!BZ$3-$BH$3)","v":4494.8546666666662},{"$f":"(($U89+($O89)*IF(MOD(CA$3,$I89)=1,1,0)+Parts!$E$91*IF($J89=0,0,IF(MOD(CA$3,$I89)=1,IF(PQS!$R89=\"NO\",1,0),IF(MOD(CA$3,Calculations!$J89)=1,1,0)))+Parts!$E$92*IF(Calculations!$K89=0,0,IF(MOD(CA$3,$I89)=1,0,IF(MOD(CA$3,Calculations!$K89)=1,1,0))))*$AU89)*(1+'Country Input'!$C$45)^(Calculations!CA$3-$BH$3)","v":1811.5546666666664},null,"Dulas Solar VC 200-1",67493.51466666667,1811.5546666666664,1811.5546666666664,4494.8546666666662,1811.5546666666664,1811.5546666666664,4494.8546666666662,1811.5546666666664,1811.5546666666664,4494.8546666666662,67493.51466666667,1811.5546666666664,4494.8546666666662,1811.5546666666664,1811.5546666666664,4494.8546666666662,1811.5546666666664,1811.5546666666664,4494.8546666666662,1811.5546666666664,{"$f":"SUM(CD89:INDEX($CD89:$CW89,1,'Total Solution Costs'!$B$2))","v":91847.406666666648},null,"Dulas Solar VC 200-1",{"$f":"SUM($BH89:BH89)","v":67493.51466666667},{"$f":"SUM($BH89:BI89)","v":69305.069333333333},{"$f":"SUM($BH89:BJ89)","v":71116.623999999996},{"$f":"SUM($BH89:BK89)","v":75611.478666666662},{"$f":"SUM($BH89:BL89)","v":77423.033333333326},{"$f":"SUM($BH89:BM89)","v":79234.587999999989},{"$f":"SUM($BH89:BN89)","v":83729.442666666655},{"$f":"SUM($BH89:BO89)","v":85540.997333333318},{"$f":"SUM($BH89:BP89)","v":87352.551999999981},{"$f":"SUM($BH89:BQ89)","v":91847.406666666648},{"$f":"SUM($BH89:BR89)","v":159340.9213333333},{"$f":"SUM($BH89:BS89)","v":161152.47599999997},{"$f":"SUM($BH89:BT89)","v":165647.33066666662},{"$f":"SUM($BH89:BU89)","v":167458.88533333328},{"$f":"SUM($BH89:BV89)","v":169270.43999999994},{"$f":"SUM($BH89:BW89)","v":173765.2946666666},{"$f":"SUM($BH89:BX89)","v":175576.84933333326},{"$f":"SUM($BH89:BY89)","v":177388.40399999992},{"$f":"SUM($BH89:BZ89)","v":181883.25866666657},{"$f":"SUM($BH89:CA89)","v":183694.81333333324}]
[{"$f":"PQS!A90","v":"WICR FR"},{"$f":"PQS!B90","v":"E001/WICR10-Zhendre"},{"$f":"PQS!E90","v":"WICR10"},{"$f":"PQS!F90","v":"Zhendre"},{"$f":"PQS!D90","v":"Zhendre WICR10"},{"$f":"VLOOKUP(E90,PQS!$D$5:$K$107,COLUMN(PQS!$I$3)-COLUMN(PQS!$D$3)+1,FALSE)","v":3030.3030303030305},{"$f":"VLOOKUP(E90,PQS!$D$5:$K$107,COLUMN(PQS!$J$3)-COLUMN(PQS!$D$3)+1,FALSE)","v":0},{"$f":"VLOOKUP(E90,PQS!$D$5:$K$107,COLUMN(PQS!$G$3)-COLUMN(PQS!$D$3)+1,FALSE)","v":"No"},{"$f":"HLOOKUP(B90,INDIRECT(\"'\"&A90&\"'!$10:$15\"),ROW('Technology template'!$A$11)-ROW('Technology template'!$A$10)+1,FALSE)","v":15},{"$f":"HLOOKUP(B90,INDIRECT(\"'\"&A90&\"'!$10:$15\"),ROW('Technology template'!$A$12)-ROW('Technology template'!$A$10)+1,FALSE)","v":0},{"$f":"HLOOKUP(B90,INDIRECT(\"'\"&A90&\"'!$10:$15\"),ROW('Technology template'!$A$13)-ROW('Technology template'!$A$10)+1,FALSE)","v":0},{"$f":"VLOOKUP(B90,PQS!$B:$Q,MATCH(PQS!$Q$3,PQS!$B$3:$Q$3,0),FALSE)*(1+'Country Input'!$C$47)+HLOOKUP(B90,INDIRECT(\"'\"&A90&\"'!$10:$15\"),ROW('Technology template'!$A$14)-ROW('Technology template'!$A$10)+1,FALSE)*(1+'Country Input'!$C$47)","v":21025.5},{"$f":"HLOOKUP(B90,INDIRECT(\"'\"&A90&\"'!$10:$80\"),MATCH('Technology template'!$A$27,INDIRECT(\"'\"&A90&\"'!$A$10:$A$80\"),0),FALSE)+'Labor and Maintenance '!$E$17","v":1728},{"$f":"VLOOKUP(B90,PQS!B:T,MATCH(PQS!$T$3,PQS!$B$3:$T$3,0),FALSE)*(1+'Country Input'!$C$47)","v":0},22753.5,1516.9,{"$f":"VLOOKUP(B90,PQS!$B:$AE,COLUMN(PQS!AD88)-1,FALSE)","v":1168},{"$f":"IFERROR(1/HLOOKUP(B90,INDIRECT(\"'\"&A90&\"'!$10:$80\"),MATCH('Technology template'!$A$31,INDIRECT(\"'\"&A90&\"'!$A$10:$A$80\"),0),FALSE)*HLOOKUP(B90,INDIRECT(\"'\"&A90&\"'!$10:$80\"),MATCH('Technology template'!$A$41,INDIRECT(\"'\"&A90&\"'!$A10:$A$80\"),0),FALSE),0)*TechnicianHourlyWage+IF(A90=\"Solar w Battery\",1/'Labor and Maintenance '!$E$53*'Labor and Maintenance '!$D$53,0)+IF(A90=\"LT passive\", 1/'Labor and Maintenance '!$E$81*'Labor and Maintenance '!$D$81,0)","v":32},{"$f":"IFERROR(1/HLOOKUP(B90,INDIRECT(\"'\"&A90&\"'!$10:$80\"),MATCH('Technology template'!$A$34,INDIRECT(\"'\"&A90&\"'!$A$10:$A$80\"),0),FALSE)*(HLOOKUP(B90,INDIRECT(\"'\"&A90&\"'!$10:$80\"),MATCH('Technology template'!$A$44,INDIRECT(\"'\"&A90&\"'!$A10:$A$80\"),0),FALSE)*TechnicianHourlyWage+RemoteTravelCostPerDay),0)+IFERROR(1/HLOOKUP(B90,INDIRECT(\"'\"&A90&\"'!$10:$80\"),MATCH('Technology template'!$A$35,INDIRECT(\"'\"&A90&\"'!$A$10:$A$80\"),0),FALSE)*(HLOOKUP(B90,INDIRECT(\"'\"&A90&\"'!$10:$80\"),MATCH('Technology template'!$A$45,INDIRECT(\"'\"&A90&\"'!$A10:$A$80\"),0),FALSE)*TechnicianHourlyWage+RemoteTravelCostPerDay),0)+IFERROR(1/HLOOKUP(B90,INDIRECT(\"'\"&A90&\"'!$10:$80\"),MATCH('Technology template'!$A$37,INDIRECT(\"'\"&A90&\"'!$A$10:$A$80\"),0),FALSE)*(HLOOKUP(B90,INDIRECT(\"'\"&A90&\"'!$10:$80\"),MATCH('Technology template'!$A$46,INDIRECT(\"'\"&A90&\"'!$A10:$A$80\"),0),FALSE)*TechnicianHourlyWage+'Labor and Maintenance '!$B$8),0)","v":24},18360,1224,2740.9,null,"Zhendre WICR10",7.5086549999999992,6.0587999999999997,13.567454999999999,null,"Zhendre WICR10",0.50057700000000005,0.40392,0.904497,null,"Zhendre WICR10",1,22753.5,18360,41113.5,null,"Zhendre WICR10",1,0.50057700000000005,0.40392,0.90449700000000011,null,"Zhendre WICR10",{"$f":"IF(F90=0, 'Country Input'!$D$7, ROUNDUP(LitersPerFacility/F90,0)*'Country Input'!$D$7)","v":10},227535,12240,239775,null,"Zhendre WICR10",{"$f":"ROUNDUP(LitersPerFacility/F90,0)*'Country Input'!$D$7*ROUNDUP('Total Solution Costs'!$B$2/Calculations!I90,0)","v":10},5.0057700000000001,0.40392,5.4096900000000003,null,null,"Zhendre WICR10",{"$f":"(($U90+($O90)*IF(MOD(BH$3,$I90)=1,1,0)+Parts!$E$91*IF($J90=0,0,IF(MOD(BH$3,$I90)=1,IF(PQS!$R90=\"NO\",1,0),IF(MOD(BH$3,Calculations!$J90)=1,1,0)))+Parts!$E$92*IF(Calculations!$K90=0,0,IF(MOD(BH$3,$I90)=1,0,IF(MOD(BH$3,Calculations!$K90)=1,1,0))))*$AU90)*(1+'Country Input'!$C$45)^(Calculations!BH$3-$BH$3)+TrainingCost","v":239775},{"$f":"(($U90+($O90)*IF(MOD(BI$3,$I90)=1,1,0)+Parts!$E$91*IF($J90=0,0,IF(MOD(BI$3,$I90)=1,IF(PQS!$R90=\"NO\",1,0),IF(MOD(BI$3,Calculations!$J90)=1,1,0)))+Parts!$E$92*IF(Calculations!$K90=0,0,IF(MOD(BI$3,$I90)=1,0,IF(MOD(BI$3,Calculations!$K90)=1,1,0))))*$AU90)*(1+'Country Input'!$C$45)^(Calculations!BI$3-$BH$3)","v":12240},{"$f":"(($U90+($O90)*IF(MOD(BJ$3,$I90)=1,1,0)+Parts!$E$91*IF($J90=0,0,IF(MOD(BJ$3,$I90)=1,IF(PQS!$R90=\"NO\",1,0),IF(MOD(BJ$3,Calculations!$J90)=1,1,0)))+Parts!$E$92*IF(Calculations!$K90=0,0,IF(MOD(BJ$3,$I90)=1,0,IF(MOD(BJ$3,Calculations!$K90)=1,1,0))))*$AU90)*(1+'Country Input'!$C$45)^(Calculations!BJ$3-$BH$3)","v":12240},{"$f":"(($U90+($O90)*IF(MOD(BK$3,$I90)=1,1,0)+Parts!$E$91*IF($J90=0,0,IF(MOD(BK$3,$I90)=1,IF(PQS!$R90=\"NO\",1,0),IF(MOD(BK$3,Calculations!$J90)=1,1,0)))+Parts!$E$92*IF(Calculations!$K90=0,0,IF(MOD(BK$3,$I90)=1,0,IF(MOD(BK$3,Calculations!$K90)=1,1,0))))*$AU90)*(1+'Country Input'!$C$45)^(Calculations!BK$3-$BH$3)","v":12240},{"$f":"(($U90+($O90)*IF(MOD(BL$3,$I90)=1,1,0)+Parts!$E$91*IF($J90=0,0,IF(MOD(BL$3,$I90)=1,IF(PQS!$R90=\"NO\",1,0),IF(MOD(BL$3,Calculations!$J90)=1,1,0)))+Parts!$E$92*IF(Calculations!$K90=0,0,IF(MOD(BL$3,$I90)=1,0,IF(MOD(BL$3,Calculations!$K90)=1,1,0))))*$AU90)*(1+'Country Input'!$C$45)^(Calculations!BL$3-$BH$3)","v":12240},{"$f":"(($U90+($O90)*IF(MOD(BM$3,$I90)=1,1,0)+Parts!$E$91*IF($J90=0,0,IF(MOD(BM$3,$I90)=1,IF(PQS!$R90=\"NO\",1,0),IF(MOD(BM$3,Calculations!$J90)=1,1,0)))+Parts!$E$92*IF(Calculations!$K90=0,0,IF(MOD(BM$3,$I90)=1,0,IF(MOD(BM$3,Calculations!$K90)=1,1,0))))*$AU90)*(1+'Country Input'!$C$45)^(Calculations!BM$3-$BH$3)","v":12240},{"$f":"(($U90+($O90)*IF(MOD(BN$3,$I90)=1,1,0)+Parts!$E$91*IF($J90=0,0,IF(MOD(BN$3,$I90)=1,IF(PQS!$R90=\"NO\",1,0),IF(MOD(BN$3,Calculations!$J90)=1,1,0)))+Parts!$E$92*IF(Calculations!$K90=0,0,IF(MOD(BN$3,$I90)=1,0,IF(MOD(BN$3,Calculations!$K90)=1,1,0))))*$AU90)*(1+'Country Input'!$C$45)^(Calculations!BN$3-$BH$3)","v":12240},{"$f":"(($U90+($O90)*IF(MOD(BO$3,$I90)=1,1,0)+Parts!$E$91*IF($J90=0,0,IF(MOD(BO$3,$I90)=1,IF(PQS!$R90=\"NO\",1,0),IF(MOD(BO$3,Calculations!$J90)=1,1,0)))+Parts!$E$92*IF(Calculations!$K90=0,0,IF(MOD(BO$3,$I90)=1,0,IF(MOD(BO$3,Calculations!$K90)=1,1,0))))*$AU90)*(1+'Country Input'!$C$45)^(Calculations!BO$3-$BH$3)","v":12240},{"$f":"(($U90+($O90)*IF(MOD(BP$3,$I90)=1,1,0)+Parts!$E$91*IF($J90=0,0,IF(MOD(BP$3,$I90)=1,IF(PQS!$R90=\"NO\",1,0),IF(MOD(BP$3,Calculations!$J90)=1,1,0)))+Parts!$E$92*IF(Calculations!$K90=0,0,IF(MOD(BP$3,$I90)=1,0,IF(MOD(BP$3,Calculations!$K90)=1,1,0))))*$AU90)*(1+'Country Input'!$C$45)^(Calculations!BP$3-$BH$3)","v":12240},{"$f":"(($U90+($O90)*IF(MOD(BQ$3,$I90)=1,1,0)+Parts!$E$91*IF($J90=0,0,IF(MOD(BQ$3,$I90)=1,IF(PQS!$R90=\"NO\",1,0),IF(MOD(BQ$3,Calculations!$J90)=1,1,0)))+Parts!$E$92*IF(Calculations!$K90=0,0,IF(MOD(BQ$3,$I90)=1,0,IF(MOD(BQ$3,Calculations!$K90)=1,1,0))))*$AU90)*(1+'Country Input'!$C$45)^(Calculations!BQ$3-$BH$3)","v":12240},{"$f":"(($U90+($O90)*IF(MOD(BR$3,$I90)=1,1,0)+Parts!$E$91*IF($J90=0,0,IF(MOD(BR$3,$I90)=1,IF(PQS!$R90=\"NO\",1,0),IF(MOD(BR$3,Calculations!$J90)=1,1,0)))+Parts!$E$92*IF(Calculations!$K90=0,0,IF(MOD(BR$3,$I90)=1,0,IF(MOD(BR$3,Calculations!$K90)=1,1,0))))*$AU90)*(1+'Country Input'!$C$45)^(Calculations!BR$3-$BH$3)","v":12240},{"$f":"(($U90+($O90)*IF(MOD(BS$3,$I90)=1,1,0)+Parts!$E$91*IF($J90=0,0,IF(MOD(BS$3,$I90)=1,IF(PQS!$R90=\"NO\",1,0),IF(MOD(BS$3,Calculations!$J90)=1,1,0)))+Parts!$E$92*IF(Calculations!$K90=0,0,IF(MOD(BS$3,$I90)=1,0,IF(MOD(BS$3,Calculations!$K90)=1,1,0))))*$AU90)*(1+'Country Input'!$C$45)^(Calculations!BS$3-$BH$3)","v":12240},{"$f":"(($U90+($O90)*IF(MOD(BT$3,$I90)=1,1,0)+Parts!$E$91*IF($J90=0,0,IF(MOD(BT$3,$I90)=1,IF(PQS!$R90=\"NO\",1,0),IF(MOD(BT$3,Calculations!$J90)=1,1,0)))+Parts!$E$92*IF(Calculations!$K90=0,0,IF(MOD(BT$3,$I90)=1,0,IF(MOD(BT$3,Calculations!$K90)=1,1,0))))*$AU90)*(1+'Country Input'!$C$45)^(Calculations!BT$3-$BH$3)","v":12240},{"$f":"(($U90+($O90)*IF(MOD(BU$3,$I90)=1,1,0)+Parts!$E$91*IF($J90=0,0,IF(MOD(BU$3,$I90)=1,IF(PQS!$R90=\"NO\",1,0),IF(MOD(BU$3,Calculations!$J90)=1,1,0)))+Parts!$E$92*IF(Calculations!$K90=0,0,IF(MOD(BU$3,$I90)=1,0,IF(MOD(BU$3,Calculations!$K90)=1,1,0))))*$AU90)*(1+'Country Input'!$C$45)^(Calculations!BU$3-$BH$3)","v":12240},{"$f":"(($U90+($O90)*IF(MOD(BV$3,$I90)=1,1,0)+Parts!$E$91*IF($J90=0,0,IF(MOD(BV$3,$I90)=1,IF(PQS!$R90=\"NO\",1,0),IF(MOD(BV$3,Calculations!$J90)=1,1,0)))+Parts!$E$92*IF(Calculations!$K90=0,0,IF(MOD(BV$3,$I90)=1,0,IF(MOD(BV$3,Calculations!$K90)=1,1,0))))*$AU90)*(1+'Country Input'!$C$45)^(Calculations!BV$3-$BH$3)","v":12240},{"$f":"(($U90+($O90)*IF(MOD(BW$3,$I90)=1,1,0)+Parts!$E$91*IF($J90=0,0,IF(MOD(BW$3,$I90)=1,IF(PQS!$R90=\"NO\",1,0),IF(MOD(BW$3,Calculations!$J90)=1,1,0)))+Parts!$E$92*IF(Calculations!$K90=0,0,IF(MOD(BW$3,$I90)=1,0,IF(MOD(BW$3,Calculations!$K90)=1,1,0))))*$AU90)*(1+'Country Input'!$C$45)^(Calculations!BW$3-$BH$3)","v":239775},{"$f":"(($U90+($O90)*IF(MOD(BX$3,$I90)=1,1,0)+Parts!$E$91*IF($J90=0,0,IF(MOD(BX$3,$I90)=1,IF(PQS!$R90=\"NO\",1,0),IF(MOD(BX$3,Calculations!$J90)=1,1,0)))+Parts!$E$92*IF(Calculations!$K90=0,0,IF(MOD(BX$3,$I90)=1,0,IF(MOD(BX$3,Calculations!$K90)=1,1,0))))*$AU90)*(1+'Country Input'!$C$45)^(Calculations!BX$3-$BH$3)","v":12240},{"$f":"(($U90+($O90)*IF(MOD(BY$3,$I90)=1,1,0)+Parts!$E$91*IF($J90=0,0,IF(MOD(BY$3,$I90)=1,IF(PQS!$R90=\"NO\",1,0),IF(MOD(BY$3,Calculations!$J90)=1,1,0)))+Parts!$E$92*IF(Calculations!$K90=0,0,IF(MOD(BY$3,$I90)=1,0,IF(MOD(BY$3,Calculations!$K90)=1,1,0))))*$AU90)*(1+'Country Input'!$C$45)^(Calculations!BY$3-$BH$3)","v":12240},{"$f":"(($U90+($O90)*IF(MOD(BZ$3,$I90)=1,1,0)+Parts!$E$91*IF($J90=0,0,IF(MOD(BZ$3,$I90)=1,IF(PQS!$R90=\"NO\",1,0),IF(MOD(BZ$3,Calculations!$J90)=1,1,0)))+Parts!$E$92*IF(Calculations!$K90=0,0,IF(MOD(BZ$3,$I90)=1,0,IF(MOD(BZ$3,Calculations!$K90)=1,1,0))))*$AU90)*(1+'Country Input'!$C$45)^(Calculations!BZ$3-$BH$3)","v":12240},{"$f":"(($U90+($O90)*IF(MOD(CA$3,$I90)=1,1,0)+Parts!$E$91*IF($J90=0,0,IF(MOD(CA$3,$I90)=1,IF(PQS!$R90=\"NO\",1,0),IF(MOD(CA$3,Calculations!$J90)=1,1,0)))+Parts!$E$92*IF(Calculations!$K90=0,0,IF(MOD(CA$3,$I90)=1,0,IF(MOD(CA$3,Calculations!$K90)=1,1,0))))*$AU90)*(1+'Country Input'!$C$45)^(Calculations!CA$3-$BH$3)","v":12240},null,"Zhendre WICR10",239775,12240,12240,12240,12240,12240,12240,12240,12240,12240,12240,12240,12240,12240,12240,239775,12240,12240,12240,12240,{"$f":"SUM(CD90:INDEX($CD90:$CW90,1,'Total Solution Costs'!$B$2))","v":349935},null,"Zhendre WICR10",{"$f":"SUM($BH90:BH90)","v":239775},{"$f":"SUM($BH90:BI90)","v":252015},{"$f":"SUM($BH90:BJ90)","v":264255},{"$f":"SUM($BH90:BK90)","v":276495},{"$f":"SUM($BH90:BL90)","v":288735},{"$f":"SUM($BH90:BM90)","v":300975},{"$f":"SUM($BH90:BN90)","v":313215},{"$f":"SUM($BH90:BO90)","v":325455},{"$f":"SUM($BH90:BP90)","v":337695},{"$f":"SUM($BH90:BQ90)","v":349935},{"$f":"SUM($BH90:BR90)","v":362175},{"$f":"SUM($BH90:BS90)","v":374415},{"$f":"SUM($BH90:BT90)","v":386655},{"$f":"SUM($BH90:BU90)","v":398895},{"$f":"SUM($BH90:BV90)","v":411135},{"$f":"SUM($BH90:BW90)","v":650910},{"$f":"SUM($BH90:BX90)","v":663150},{"$f":"SUM($BH90:BY90)","v":675390},{"$f":"SUM($BH90:BZ90)","v":687630},{"$f":"SUM($BH90:CA90)","v":699870}]
[{"$f":"PQS!A91","v":"WICR FR"},{"$f":"PQS!B91","v":"E001/WICR30-Zhendre"},{"$f":"PQS!E91","v":"WICR30"},{"$f":"PQS!F91","v":"Zhendre"},{"$f":"PQS!D91","v":"Zhendre WICR30"},{"$f":"VLOOKUP(E91,PQS!$D$5:$K$107,COLUMN(PQS!$I$3)-COLUMN(PQS!$D$3)+1,FALSE)","v":7692.3076923076924},{"$f":"VLOOKUP(E91,PQS!$D$5:$K$107,COLUMN(PQS!$J$3)-COLUMN(PQS!$D$3)+1,FALSE)","v":0},{"$f":"VLOOKUP(E91,PQS!$D$5:$K$107,COLUMN(PQS!$G$3)-COLUMN(PQS!$D$3)+1,FALSE)","v":"No"},{"$f":"HLOOKUP(B91,INDIRECT(\"'\"&A91&\"'!$10:$15\"),ROW('Technology template'!$A$11)-ROW('Technology template'!$A$10)+1,FALSE)","v":15},{"$f":"HLOOKUP(B91,INDIRECT(\"'\"&A91&\"'!$10:$15\"),ROW('Technology template'!$A$12)-ROW('Technology template'!$A$10)+1,FALSE)","v":0},{"$f":"HLOOKUP(B91,INDIRECT(\"'\"&A91&\"'!$10:$15\"),ROW('Technology template'!$A$13)-ROW('Technology template'!$A$10)+1,FALSE)","v":0},{"$f":"VLOOKUP(B91,PQS!$B:$Q,MATCH(PQS!$Q$3,PQS!$B$3:$Q$3,0),FALSE)*(1+'Country Input'!$C$47)+HLOOKUP(B91,INDIRECT(\"'\"&A91&\"'!$10:$15\"),ROW('Technology template'!$A$14)-ROW('Technology template'!$A$10)+1,FALSE)*(1+'Country Input'!$C$47)","v":27531.100000000002},{"$f":"HLOOKUP(B91,INDIRECT(\"'\"&A91&\"'!$10:$80\"),MATCH('Technology template'!$A$27,INDIRECT(\"'\"&A91&\"'!$A$10:$A$80\"),0),FALSE)+'Labor and Maintenance '!$E$17","v":1728},{"$f":"VLOOKUP(B91,PQS!B:T,MATCH(PQS!$T$3,PQS!$B$3:$T$3,0),FALSE)*(1+'Country Input'!$C$47)","v":0},29259.100000000002,1950.6066666666668,{"$f":"VLOOKUP(B91,PQS!$B:$AE,COLUMN(PQS!AD89)-1,FALSE)","v":2628},{"$f":"IFERROR(1/HLOOKUP(B91,INDIRECT(\"'\"&A91&\"'!$10:$80\"),MATCH('Technology template'!$A$31,INDIRECT(\"'\"&A91&\"'!$A$10:$A$80\"),0),FALSE)*HLOOKUP(B91,INDIRECT(\"'\"&A91&\"'!$10:$80\"),MATCH('Technology template'!$A$41,INDIRECT(\"'\"&A91&\"'!$A10:$A$80\"),0),FALSE),0)*TechnicianHourlyWage+IF(A91=\"Solar w Battery\",1/'Labor and Maintenance '!$E$53*'Labor and Maintenance '!$D$53,0)+IF(A91=\"LT passive\", 1/'Labor and Maintenance '!$E$81*'Labor and Maintenance '!$D$81,0)","v":32},{"$f":"IFERROR(1/HLOOKUP(B91,INDIRECT(\"'\"&A91&\"'!$10:$80\"),MATCH('Technology template'!$A$34,INDIRECT(\"'\"&A91&\"'!$A$10:$A$80\"),0),FALSE)*(HLOOKUP(B91,INDIRECT(\"'\"&A91&\"'!$10:$80\"),MATCH('Technology template'!$A$44,INDIRECT(\"'\"&A91&\"'!$A10:$A$80\"),0),FALSE)*TechnicianHourlyWage+RemoteTravelCostPerDay),0)+IFERROR(1/HLOOKUP(B91,INDIRECT(\"'\"&A91&\"'!$10:$80\"),MATCH('Technology template'!$A$35,INDIRECT(\"'\"&A91&\"'!$A$10:$A$80\"),0),FALSE)*(HLOOKUP(B91,INDIRECT(\"'\"&A91&\"'!$10:$80\"),MATCH('Technology template'!$A$45,INDIRECT(\"'\"&A91&\"'!$A10:$A$80\"),0),FALSE)*TechnicianHourlyWage+RemoteTravelCostPerDay),0)+IFERROR(1/HLOOKUP(B91,INDIRECT(\"'\"&A91&\"'!$10:$80\"),MATCH('Technology template'!$A$37,INDIRECT(\"'\"&A91&\"'!$A$10:$A$80\"),0),FALSE)*(HLOOKUP(B91,INDIRECT(\"'\"&A91&\"'!$10:$80\"),MATCH('Technology template'!$A$46,INDIRECT(\"'\"&A91&\"'!$A10:$A$80\"),0),FALSE)*TechnicianHourlyWage+'Labor and Maintenance '!$B$8),0)","v":24},40260,2684,4634.6066666666666,null,"Zhendre WICR30",3.8036830000000004,5.2337999999999996,9.0374829999999999,null,"Zhendre WICR30",0.25357886666666668,0.34892000000000001,0.60249886666666663,null,"Zhendre WICR30",1,29259.100000000002,40260,69519.100000000006,null,"Zhendre WICR30",1,0.25357886666666668,0.34892000000000001,0.60249886666666663,null,"Zhendre WICR30",{"$f":"IF(F91=0, 'Country Input'!$D$7, ROUNDUP(LitersPerFacility/F91,0)*'Country Input'!$D$7)","v":10},292591,26840,319431,null,"Zhendre WICR30",{"$f":"ROUNDUP(LitersPerFacility/F91,0)*'Country Input'!$D$7*ROUNDUP('Total Solution Costs'!$B$2/Calculations!I91,0)","v":10},2.5357886666666669,0.34892000000000001,{"$f":"BB91+BC91","v":2.884708666666667},null,null,"Zhendre WICR30",{"$f":"(($U91+($O91)*IF(MOD(BH$3,$I91)=1,1,0)+Parts!$E$91*IF($J91=0,0,IF(MOD(BH$3,$I91)=1,IF(PQS!$R91=\"NO\",1,0),IF(MOD(BH$3,Calculations!$J91)=1,1,0)))+Parts!$E$92*IF(Calculations!$K91=0,0,IF(MOD(BH$3,$I91)=1,0,IF(MOD(BH$3,Calculations!$K91)=1,1,0))))*$AU91)*(1+'Country Input'!$C$45)^(Calculations!BH$3-$BH$3)+TrainingCost","v":319431},{"$f":"(($U91+($O91)*IF(MOD(BI$3,$I91)=1,1,0)+Parts!$E$91*IF($J91=0,0,IF(MOD(BI$3,$I91)=1,IF(PQS!$R91=\"NO\",1,0),IF(MOD(BI$3,Calculations!$J91)=1,1,0)))+Parts!$E$92*IF(Calculations!$K91=0,0,IF(MOD(BI$3,$I91)=1,0,IF(MOD(BI$3,Calculations!$K91)=1,1,0))))*$AU91)*(1+'Country Input'!$C$45)^(Calculations!BI$3-$BH$3)","v":26840},{"$f":"(($U91+($O91)*IF(MOD(BJ$3,$I91)=1,1,0)+Parts!$E$91*IF($J91=0,0,IF(MOD(BJ$3,$I91)=1,IF(PQS!$R91=\"NO\",1,0),IF(MOD(BJ$3,Calculations!$J91)=1,1,0)))+Parts!$E$92*IF(Calculations!$K91=0,0,IF(MOD(BJ$3,$I91)=1,0,IF(MOD(BJ$3,Calculations!$K91)=1,1,0))))*$AU91)*(1+'Country Input'!$C$45)^(Calculations!BJ$3-$BH$3)","v":26840},{"$f":"(($U91+($O91)*IF(MOD(BK$3,$I91)=1,1,0)+Parts!$E$91*IF($J91=0,0,IF(MOD(BK$3,$I91)=1,IF(PQS!$R91=\"NO\",1,0),IF(MOD(BK$3,Calculations!$J91)=1,1,0)))+Parts!$E$92*IF(Calculations!$K91=0,0,IF(MOD(BK$3,$I91)=1,0,IF(MOD(BK$3,Calculations!$K91)=1,1,0))))*$AU91)*(1+'Country Input'!$C$45)^(Calculations!BK$3-$BH$3)","v":26840},{"$f":"(($U91+($O91)*IF(MOD(BL$3,$I91)=1,1,0)+Parts!$E$91*IF($J91=0,0,IF(MOD(BL$3,$I91)=1,IF(PQS!$R91=\"NO\",1,0),IF(MOD(BL$3,Calculations!$J91)=1,1,0)))+Parts!$E$92*IF(Calculations!$K91=0,0,IF(MOD(BL$3,$I91)=1,0,IF(MOD(BL$3,Calculations!$K91)=1,1,0))))*$AU91)*(1+'Country Input'!$C$45)^(Calculations!BL$3-$BH$3)","v":26840},{"$f":"(($U91+($O91)*IF(MOD(BM$3,$I91)=1,1,0)+Parts!$E$91*IF($J91=0,0,IF(MOD(BM$3,$I91)=1,IF(PQS!$R91=\"NO\",1,0),IF(MOD(BM$3,Calculations!$J91)=1,1,0)))+Parts!$E$92*IF(Calculations!$K91=0,0,IF(MOD(BM$3,$I91)=1,0,IF(MOD(BM$3,Calculations!$K91)=1,1,0))))*$AU91)*(1+'Country Input'!$C$45)^(Calculations!BM$3-$BH$3)","v":26840},{"$f":"(($U91+($O91)*IF(MOD(BN$3,$I91)=1,1,0)+Parts!$E$91*IF($J91=0,0,IF(MOD(BN$3,$I91)=1,IF(PQS!$R91=\"NO\",1,0),IF(MOD(BN$3,Calculations!$J91)=1,1,0)))+Parts!$E$92*IF(Calculations!$K91=0,0,IF(MOD(BN$3,$I91)=1,0,IF(MOD(BN$3,Calculations!$K91)=1,1,0))))*$AU91)*(1+'Country Input'!$C$45)^(Calculations!BN$3-$BH$3)","v":26840},{"$f":"(($U91+($O91)*IF(MOD(BO$3,$I91)=1,1,0)+Parts!$E$91*IF($J91=0,0,IF(MOD(BO$3,$I91)=1,IF(PQS!$R91=\"NO\",1,0),IF(MOD(BO$3,Calculations!$J91)=1,1,0)))+Parts!$E$92*IF(Calculations!$K91=0,0,IF(MOD(BO$3,$I91)=1,0,IF(MOD(BO$3,Calculations!$K91)=1,1,0))))*$AU91)*(1+'Country Input'!$C$45)^(Calculations!BO$3-$BH$3)","v":26840},{"$f":"(($U91+($O91)*IF(MOD(BP$3,$I91)=1,1,0)+Parts!$E$91*IF($J91=0,0,IF(MOD(BP$3,$I91)=1,IF(PQS!$R91=\"NO\",1,0),IF(MOD(BP$3,Calculations!$J91)=1,1,0)))+Parts!$E$92*IF(Calculations!$K91=0,0,IF(MOD(BP$3,$I91)=1,0,IF(MOD(BP$3,Calculations!$K91)=1,1,0))))*$AU91)*(1+'Country Input'!$C$45)^(Calculations!BP$3-$BH$3)","v":26840},{"$f":"(($U91+($O91)*IF(MOD(BQ$3,$I91)=1,1,0)+Parts!$E$91*IF($J91=0,0,IF(MOD(BQ$3,$I91)=1,IF(PQS!$R91=\"NO\",1,0),IF(MOD(BQ$3,Calculations!$J91)=1,1,0)))+Parts!$E$92*IF(Calculations!$K91=0,0,IF(MOD(BQ$3,$I91)=1,0,IF(MOD(BQ$3,Calculations!$K91)=1,1,0))))*$AU91)*(1+'Country Input'!$C$45)^(Calculations!BQ$3-$BH$3)","v":26840},{"$f":"(($U91+($O91)*IF(MOD(BR$3,$I91)=1,1,0)+Parts!$E$91*IF($J91=0,0,IF(MOD(BR$3,$I91)=1,IF(PQS!$R91=\"NO\",1,0),IF(MOD(BR$3,Calculations!$J91)=1,1,0)))+Parts!$E$92*IF(Calculations!$K91=0,0,IF(MOD(BR$3,$I91)=1,0,IF(MOD(BR$3,Calculations!$K91)=1,1,0))))*$AU91)*(1+'Country Input'!$C$45)^(Calculations!BR$3-$BH$3)","v":26840},{"$f":"(($U91+($O91)*IF(MOD(BS$3,$I91)=1,1,0)+Parts!$E$91*IF($J91=0,0,IF(MOD(BS$3,$I91)=1,IF(PQS!$R91=\"NO\",1,0),IF(MOD(BS$3,Calculations!$J91)=1,1,0)))+Parts!$E$92*IF(Calculations!$K91=0,0,IF(MOD(BS$3,$I91)=1,0,IF(MOD(BS$3,Calculations!$K91)=1,1,0))))*$AU91)*(1+'Country Input'!$C$45)^(Calculations!BS$3-$BH$3)","v":26840},{"$f":"(($U91+($O91)*IF(MOD(BT$3,$I91)=1,1,0)+Parts!$E$91*IF($J91=0,0,IF(MOD(BT$3,$I91)=1,IF(PQS!$R91=\"NO\",1,0),IF(MOD(BT$3,Calculations!$J91)=1,1,0)))+Parts!$E$92*IF(Calculations!$K91=0,0,IF(MOD(BT$3,$I91)=1,0,IF(MOD(BT$3,Calculations!$K91)=1,1,0))))*$AU91)*(1+'Country Input'!$C$45)^(Calculations!BT$3-$BH$3)","v":26840},{"$f":"(($U91+($O91)*IF(MOD(BU$3,$I91)=1,1,0)+Parts!$E$91*IF($J91=0,0,IF(MOD(BU$3,$I91)=1,IF(PQS!$R91=\"NO\",1,0),IF(MOD(BU$3,Calculations!$J91)=1,1,0)))+Parts!$E$92*IF(Calculations!$K91=0,0,IF(MOD(BU$3,$I91)=1,0,IF(MOD(BU$3,Calculations!$K91)=1,1,0))))*$AU91)*(1+'Country Input'!$C$45)^(Calculations!BU$3-$BH$3)","v":26840},{"$f":"(($U91+($O91)*IF(MOD(BV$3,$I91)=1,1,0)+Parts!$E$91*IF($J91=0,0,IF(MOD(BV$3,$I91)=1,IF(PQS!$R91=\"NO\",1,0),IF(MOD(BV$3,Calculations!$J91)=1,1,0)))+Parts!$E$92*IF(Calculations!$K91=0,0,IF(MOD(BV$3,$I91)=1,0,IF(MOD(BV$3,Calculations!$K91)=1,1,0))))*$AU91)*(1+'Country Input'!$C$45)^(Calculations!BV$3-$BH$3)","v":26840},{"$f":"(($U91+($O91)*IF(MOD(BW$3,$I91)=1,1,0)+Parts!$E$91*IF($J91=0,0,IF(MOD(BW$3,$I91)=1,IF(PQS!$R91=\"NO\",1,0),IF(MOD(BW$3,Calculations!$J91)=1,1,0)))+Parts!$E$92*IF(Calculations!$K91=0,0,IF(MOD(BW$3,$I91)=1,0,IF(MOD(BW$3,Calculations!$K91)=1,1,0))))*$AU91)*(1+'Country Input'!$C$45)^(Calculations!BW$3-$BH$3)","v":319431},{"$f":"(($U91+($O91)*IF(MOD(BX$3,$I91)=1,1,0)+Parts!$E$91*IF($J91=0,0,IF(MOD(BX$3,$I91)=1,IF(PQS!$R91=\"NO\",1,0),IF(MOD(BX$3,Calculations!$J91)=1,1,0)))+Parts!$E$92*IF(Calculations!$K91=0,0,IF(MOD(BX$3,$I91)=1,0,IF(MOD(BX$3,Calculations!$K91)=1,1,0))))*$AU91)*(1+'Country Input'!$C$45)^(Calculations!BX$3-$BH$3)","v":26840},{"$f":"(($U91+($O91)*IF(MOD(BY$3,$I91)=1,1,0)+Parts!$E$91*IF($J91=0,0,IF(MOD(BY$3,$I91)=1,IF(PQS!$R91=\"NO\",1,0),IF(MOD(BY$3,Calculations!$J91)=1,1,0)))+Parts!$E$92*IF(Calculations!$K91=0,0,IF(MOD(BY$3,$I91)=1,0,IF(MOD(BY$3,Calculations!$K91)=1,1,0))))*$AU91)*(1+'Country Input'!$C$45)^(Calculations!BY$3-$BH$3)","v":26840},{"$f":"(($U91+($O91)*IF(MOD(BZ$3,$I91)=1,1,0)+Parts!$E$91*IF($J91=0,0,IF(MOD(BZ$3,$I91)=1,IF(PQS!$R91=\"NO\",1,0),IF(MOD(BZ$3,Calculations!$J91)=1,1,0)))+Parts!$E$92*IF(Calculations!$K91=0,0,IF(MOD(BZ$3,$I91)=1,0,IF(MOD(BZ$3,Calculations!$K91)=1,1,0))))*$AU91)*(1+'Country Input'!$C$45)^(Calculations!BZ$3-$BH$3)","v":26840},{"$f":"(($U91+($O91)*IF(MOD(CA$3,$I91)=1,1,0)+Parts!$E$91*IF($J91=0,0,IF(MOD(CA$3,$I91)=1,IF(PQS!$R91=\"NO\",1,0),IF(MOD(CA$3,Calculations!$J91)=1,1,0)))+Parts!$E$92*IF(Calculations!$K91=0,0,IF(MOD(CA$3,$I91)=1,0,IF(MOD(CA$3,Calculations!$K91)=1,1,0))))*$AU91)*(1+'Country Input'!$C$45)^(Calculations!CA$3-$BH$3)","v":26840},null,"Zhendre WICR30",{"$f":"BH91/((1+DiscountRate)^(COLUMN(CD91)-COLUMN($CD91)))","v":319431},{"$f":"BI91/((1+DiscountRate)^(COLUMN(CE91)-COLUMN($CD91)))","v":26840},{"$f":"BJ91/((1+DiscountRate)^(COLUMN(CF91)-COLUMN($CD91)))","v":26840},{"$f":"BK91/((1+DiscountRate)^(COLUMN(CG91)-COLUMN($CD91)))","v":26840},{"$f":"BL91/((1+DiscountRate)^(COLUMN(CH91)-COLUMN($CD91)))","v":26840},{"$f":"BM91/((1+DiscountRate)^(COLUMN(CI91)-COLUMN($CD91)))","v":26840},{"$f":"BN91/((1+DiscountRate)^(COLUMN(CJ91)-COLUMN($CD91)))","v":26840},{"$f":"BO91/((1+DiscountRate)^(COLUMN(CK91)-COLUMN($CD91)))","v":26840},{"$f":"BP91/((1+DiscountRate)^(COLUMN(CL91)-COLUMN($CD91)))","v":26840},{"$f":"BQ91/((1+DiscountRate)^(COLUMN(CM91)-COLUMN($CD91)))","v":26840},{"$f":"BR91/((1+DiscountRate)^(COLUMN(CN91)-COLUMN($CD91)))","v":26840},{"$f":"BS91/((1+DiscountRate)^(COLUMN(CO91)-COLUMN($CD91)))","v":26840},{"$f":"BT91/((1+DiscountRate)^(COLUMN(CP91)-COLUMN($CD91)))","v":26840},{"$f":"BU91/((1+DiscountRate)^(COLUMN(CQ91)-COLUMN($CD91)))","v":26840},{"$f":"BV91/((1+DiscountRate)^(COLUMN(CR91)-COLUMN($CD91)))","v":26840},{"$f":"BW91/((1+DiscountRate)^(COLUMN(CS91)-COLUMN($CD91)))","v":319431},{"$f":"BX91/((1+DiscountRate)^(COLUMN(CT91)-COLUMN($CD91)))","v":26840},{"$f":"BY91/((1+DiscountRate)^(COLUMN(CU91)-COLUMN($CD91)))","v":26840},{"$f":"BZ91/((1+DiscountRate)^(COLUMN(CV91)-COLUMN($CD91)))","v":26840},{"$f":"CA91/((1+DiscountRate)^(COLUMN(CW91)-COLUMN($CD91)))","v":26840},{"$f":"SUM(CD91:INDEX($CD91:$CW91,1,'Total Solution Costs'!$B$2))","v":560991},null,{"$f":"CC91","v":"Zhendre WICR30"},{"$f":"SUM($BH91:BH91)","v":319431},{"$f":"SUM($BH91:BI91)","v":346271},{"$f":"SUM($BH91:BJ91)","v":373111},{"$f":"SUM($BH91:BK91)","v":399951},{"$f":"SUM($BH91:BL91)","v":426791},{"$f":"SUM($BH91:BM91)","v":453631},{"$f":"SUM($BH91:BN91)","v":480471},{"$f":"SUM($BH91:BO91)","v":507311},{"$f":"SUM($BH91:BP91)","v":534151},{"$f":"SUM($BH91:BQ91)","v":560991},{"$f":"SUM($BH91:BR91)","v":587831},{"$f":"SUM($BH91:BS91)","v":614671},{"$f":"SUM($BH91:BT91)","v":641511},{"$f":"SUM($BH91:BU91)","v":668351},{"$f":"SUM($BH91:BV91)","v":695191},{"$f":"SUM($BH91:BW91)","v":1014622},{"$f":"SUM($BH91:BX91)","v":1041462},{"$f":"SUM($BH91:BY91)","v":1068302},{"$f":"SUM($BH91:BZ91)","v":1095142},{"$f":"SUM($BH91:CA91)","v":1121982}]
[{"$f":"PQS!A92","v":"WICR FR"},{"$f":"PQS!B92","v":"E001/WICR40-Zhendre"},{"$f":"PQS!E92","v":"WICR40"},{"$f":"PQS!F92","v":"Zhendre"},{"$f":"PQS!D92","v":"Zhendre WICR40"},{"$f":"VLOOKUP(E92,PQS!$D$5:$K$107,COLUMN(PQS!$I$3)-COLUMN(PQS!$D$3)+1,FALSE)","v":9523.8095238095229},{"$f":"VLOOKUP(E92,PQS!$D$5:$K$107,COLUMN(PQS!$J$3)-COLUMN(PQS!$D$3)+1,FALSE)","v":0},{"$f":"VLOOKUP(E92,PQS!$D$5:$K$107,COLUMN(PQS!$G$3)-COLUMN(PQS!$D$3)+1,FALSE)","v":"No"},{"$f":"HLOOKUP(B92,INDIRECT(\"'\"&A92&\"'!$10:$15\"),ROW('Technology template'!$A$11)-ROW('Technology template'!$A$10)+1,FALSE)","v":15},{"$f":"HLOOKUP(B92,INDIRECT(\"'\"&A92&\"'!$10:$15\"),ROW('Technology template'!$A$12)-ROW('Technology template'!$A$10)+1,FALSE)","v":0},{"$f":"HLOOKUP(B92,INDIRECT(\"'\"&A92&\"'!$10:$15\"),ROW('Technology template'!$A$13)-ROW('Technology template'!$A$10)+1,FALSE)","v":0},{"$f":"VLOOKUP(B92,PQS!$B:$Q,MATCH(PQS!$Q$3,PQS!$B$3:$Q$3,0),FALSE)*(1+'Country Input'!$C$47)+HLOOKUP(B92,INDIRECT(\"'\"&A92&\"'!$10:$15\"),ROW('Technology template'!$A$14)-ROW('Technology template'!$A$10)+1,FALSE)*(1+'Country Input'!$C$47)","v":23026.400000000001},{"$f":"HLOOKUP(B92,INDIRECT(\"'\"&A92&\"'!$10:$80\"),MATCH('Technology template'!$A$27,INDIRECT(\"'\"&A92&\"'!$A$10:$A$80\"),0),FALSE)+'Labor and Maintenance '!$E$17","v":1728},{"$f":"VLOOKUP(B92,PQS!B:T,MATCH(PQS!$T$3,PQS!$B$3:$T$3,0),FALSE)*(1+'Country Input'!$C$47)","v":0},24754.400000000001,1650.2933333333335,{"$f":"VLOOKUP(B92,PQS!$B:$AE,COLUMN(PQS!AD90)-1,FALSE)","v":2628},{"$f":"IFERROR(1/HLOOKUP(B92,INDIRECT(\"'\"&A92&\"'!$10:$80\"),MATCH('Technology template'!$A$31,INDIRECT(\"'\"&A92&\"'!$A$10:$A$80\"),0),FALSE)*HLOOKUP(B92,INDIRECT(\"'\"&A92&\"'!$10:$80\"),MATCH('Technology template'!$A$41,INDIRECT(\"'\"&A92&\"'!$A10:$A$80\"),0),FALSE),0)*TechnicianHourlyWage+IF(A92=\"Solar w Battery\",1/'Labor and Maintenance '!$E$53*'Labor and Maintenance '!$D$53,0)+IF(A92=\"LT passive\", 1/'Labor and Maintenance '!$E$81*'Labor and Maintenance '!$D$81,0)","v":32},{"$f":"IFERROR(1/HLOOKUP(B92,INDIRECT(\"'\"&A92&\"'!$10:$80\"),MATCH('Technology template'!$A$34,INDIRECT(\"'\"&A92&\"'!$A$10:$A$80\"),0),FALSE)*(HLOOKUP(B92,INDIRECT(\"'\"&A92&\"'!$10:$80\"),MATCH('Technology template'!$A$44,INDIRECT(\"'\"&A92&\"'!$A10:$A$80\"),0),FALSE)*TechnicianHourlyWage+RemoteTravelCostPerDay),0)+IFERROR(1/HLOOKUP(B92,INDIRECT(\"'\"&A92&\"'!$10:$80\"),MATCH('Technology template'!$A$35,INDIRECT(\"'\"&A92&\"'!$A$10:$A$80\"),0),FALSE)*(HLOOKUP(B92,INDIRECT(\"'\"&A92&\"'!$10:$80\"),MATCH('Technology template'!$A$45,INDIRECT(\"'\"&A92&\"'!$A10:$A$80\"),0),FALSE)*TechnicianHourlyWage+RemoteTravelCostPerDay),0)+IFERROR(1/HLOOKUP(B92,INDIRECT(\"'\"&A92&\"'!$10:$80\"),MATCH('Technology template'!$A$37,INDIRECT(\"'\"&A92&\"'!$A$10:$A$80\"),0),FALSE)*(HLOOKUP(B92,INDIRECT(\"'\"&A92&\"'!$10:$80\"),MATCH('Technology template'!$A$46,INDIRECT(\"'\"&A92&\"'!$A10:$A$80\"),0),FALSE)*TechnicianHourlyWage+'Labor and Maintenance '!$B$8),0)","v":24},40260,2684,4334.2933333333331,null,"Zhendre WICR40",2.5992120000000005,4.2273000000000005,6.826512000000001,null,"Zhendre WICR40",0.17328080000000004,0.28182000000000001,0.45510080000000003,null,"Zhendre WICR40",1,24754.400000000001,40260,65014.400000000001,null,"Zhendre WICR40",1,0.17328080000000004,0.28182000000000001,0.45510080000000008,null,"Zhendre WICR40",{"$f":"IF(F92=0, 'Country Input'!$D$7, ROUNDUP(LitersPerFacility/F92,0)*'Country Input'!$D$7)","v":10},247544,26840,274384,null,"Zhendre WICR40",{"$f":"ROUNDUP(LitersPerFacility/F92,0)*'Country Input'!$D$7*ROUNDUP('Total Solution Costs'!$B$2/Calculations!I92,0)","v":10},1.7328080000000003,0.28182000000000001,2.0146280000000005,null,null,"Zhendre WICR40",{"$f":"(($U92+($O92)*IF(MOD(BH$3,$I92)=1,1,0)+Parts!$E$91*IF($J92=0,0,IF(MOD(BH$3,$I92)=1,IF(PQS!$R92=\"NO\",1,0),IF(MOD(BH$3,Calculations!$J92)=1,1,0)))+Parts!$E$92*IF(Calculations!$K92=0,0,IF(MOD(BH$3,$I92)=1,0,IF(MOD(BH$3,Calculations!$K92)=1,1,0))))*$AU92)*(1+'Country Input'!$C$45)^(Calculations!BH$3-$BH$3)+TrainingCost","v":274384},{"$f":"(($U92+($O92)*IF(MOD(BI$3,$I92)=1,1,0)+Parts!$E$91*IF($J92=0,0,IF(MOD(BI$3,$I92)=1,IF(PQS!$R92=\"NO\",1,0),IF(MOD(BI$3,Calculations!$J92)=1,1,0)))+Parts!$E$92*IF(Calculations!$K92=0,0,IF(MOD(BI$3,$I92)=1,0,IF(MOD(BI$3,Calculations!$K92)=1,1,0))))*$AU92)*(1+'Country Input'!$C$45)^(Calculations!BI$3-$BH$3)","v":26840},{"$f":"(($U92+($O92)*IF(MOD(BJ$3,$I92)=1,1,0)+Parts!$E$91*IF($J92=0,0,IF(MOD(BJ$3,$I92)=1,IF(PQS!$R92=\"NO\",1,0),IF(MOD(BJ$3,Calculations!$J92)=1,1,0)))+Parts!$E$92*IF(Calculations!$K92=0,0,IF(MOD(BJ$3,$I92)=1,0,IF(MOD(BJ$3,Calculations!$K92)=1,1,0))))*$AU92)*(1+'Country Input'!$C$45)^(Calculations!BJ$3-$BH$3)","v":26840},{"$f":"(($U92+($O92)*IF(MOD(BK$3,$I92)=1,1,0)+Parts!$E$91*IF($J92=0,0,IF(MOD(BK$3,$I92)=1,IF(PQS!$R92=\"NO\",1,0),IF(MOD(BK$3,Calculations!$J92)=1,1,0)))+Parts!$E$92*IF(Calculations!$K92=0,0,IF(MOD(BK$3,$I92)=1,0,IF(MOD(BK$3,Calculations!$K92)=1,1,0))))*$AU92)*(1+'Country Input'!$C$45)^(Calculations!BK$3-$BH$3)","v":26840},{"$f":"(($U92+($O92)*IF(MOD(BL$3,$I92)=1,1,0)+Parts!$E$91*IF($J92=0,0,IF(MOD(BL$3,$I92)=1,IF(PQS!$R92=\"NO\",1,0),IF(MOD(BL$3,Calculations!$J92)=1,1,0)))+Parts!$E$92*IF(Calculations!$K92=0,0,IF(MOD(BL$3,$I92)=1,0,IF(MOD(BL$3,Calculations!$K92)=1,1,0))))*$AU92)*(1+'Country Input'!$C$45)^(Calculations!BL$3-$BH$3)","v":26840},{"$f":"(($U92+($O92)*IF(MOD(BM$3,$I92)=1,1,0)+Parts!$E$91*IF($J92=0,0,IF(MOD(BM$3,$I92)=1,IF(PQS!$R92=\"NO\",1,0),IF(MOD(BM$3,Calculations!$J92)=1,1,0)))+Parts!$E$92*IF(Calculations!$K92=0,0,IF(MOD(BM$3,$I92)=1,0,IF(MOD(BM$3,Calculations!$K92)=1,1,0))))*$AU92)*(1+'Country Input'!$C$45)^(Calculations!BM$3-$BH$3)","v":26840},{"$f":"(($U92+($O92)*IF(MOD(BN$3,$I92)=1,1,0)+Parts!$E$91*IF($J92=0,0,IF(MOD(BN$3,$I92)=1,IF(PQS!$R92=\"NO\",1,0),IF(MOD(BN$3,Calculations!$J92)=1,1,0)))+Parts!$E$92*IF(Calculations!$K92=0,0,IF(MOD(BN$3,$I92)=1,0,IF(MOD(BN$3,Calculations!$K92)=1,1,0))))*$AU92)*(1+'Country Input'!$C$45)^(Calculations!BN$3-$BH$3)","v":26840},{"$f":"(($U92+($O92)*IF(MOD(BO$3,$I92)=1,1,0)+Parts!$E$91*IF($J92=0,0,IF(MOD(BO$3,$I92)=1,IF(PQS!$R92=\"NO\",1,0),IF(MOD(BO$3,Calculations!$J92)=1,1,0)))+Parts!$E$92*IF(Calculations!$K92=0,0,IF(MOD(BO$3,$I92)=1,0,IF(MOD(BO$3,Calculations!$K92)=1,1,0))))*$AU92)*(1+'Country Input'!$C$45)^(Calculations!BO$3-$BH$3)","v":26840},{"$f":"(($U92+($O92)*IF(MOD(BP$3,$I92)=1,1,0)+Parts!$E$91*IF($J92=0,0,IF(MOD(BP$3,$I92)=1,IF(PQS!$R92=\"NO\",1,0),IF(MOD(BP$3,Calculations!$J92)=1,1,0)))+Parts!$E$92*IF(Calculations!$K92=0,0,IF(MOD(BP$3,$I92)=1,0,IF(MOD(BP$3,Calculations!$K92)=1,1,0))))*$AU92)*(1+'Country Input'!$C$45)^(Calculations!BP$3-$BH$3)","v":26840},{"$f":"(($U92+($O92)*IF(MOD(BQ$3,$I92)=1,1,0)+Parts!$E$91*IF($J92=0,0,IF(MOD(BQ$3,$I92)=1,IF(PQS!$R92=\"NO\",1,0),IF(MOD(BQ$3,Calculations!$J92)=1,1,0)))+Parts!$E$92*IF(Calculations!$K92=0,0,IF(MOD(BQ$3,$I92)=1,0,IF(MOD(BQ$3,Calculations!$K92)=1,1,0))))*$AU92)*(1+'Country Input'!$C$45)^(Calculations!BQ$3-$BH$3)","v":26840},{"$f":"(($U92+($O92)*IF(MOD(BR$3,$I92)=1,1,0)+Parts!$E$91*IF($J92=0,0,IF(MOD(BR$3,$I92)=1,IF(PQS!$R92=\"NO\",1,0),IF(MOD(BR$3,Calculations!$J92)=1,1,0)))+Parts!$E$92*IF(Calculations!$K92=0,0,IF(MOD(BR$3,$I92)=1,0,IF(MOD(BR$3,Calculations!$K92)=1,1,0))))*$AU92)*(1+'Country Input'!$C$45)^(Calculations!BR$3-$BH$3)","v":26840},{"$f":"(($U92+($O92)*IF(MOD(BS$3,$I92)=1,1,0)+Parts!$E$91*IF($J92=0,0,IF(MOD(BS$3,$I92)=1,IF(PQS!$R92=\"NO\",1,0),IF(MOD(BS$3,Calculations!$J92)=1,1,0)))+Parts!$E$92*IF(Calculations!$K92=0,0,IF(MOD(BS$3,$I92)=1,0,IF(MOD(BS$3,Calculations!$K92)=1,1,0))))*$AU92)*(1+'Country Input'!$C$45)^(Calculations!BS$3-$BH$3)","v":26840},{"$f":"(($U92+($O92)*IF(MOD(BT$3,$I92)=1,1,0)+Parts!$E$91*IF($J92=0,0,IF(MOD(BT$3,$I92)=1,IF(PQS!$R92=\"NO\",1,0),IF(MOD(BT$3,Calculations!$J92)=1,1,0)))+Parts!$E$92*IF(Calculations!$K92=0,0,IF(MOD(BT$3,$I92)=1,0,IF(MOD(BT$3,Calculations!$K92)=1,1,0))))*$AU92)*(1+'Country Input'!$C$45)^(Calculations!BT$3-$BH$3)","v":26840},{"$f":"(($U92+($O92)*IF(MOD(BU$3,$I92)=1,1,0)+Parts!$E$91*IF($J92=0,0,IF(MOD(BU$3,$I92)=1,IF(PQS!$R92=\"NO\",1,0),IF(MOD(BU$3,Calculations!$J92)=1,1,0)))+Parts!$E$92*IF(Calculations!$K92=0,0,IF(MOD(BU$3,$I92)=1,0,IF(MOD(BU$3,Calculations!$K92)=1,1,0))))*$AU92)*(1+'Country Input'!$C$45)^(Calculations!BU$3-$BH$3)","v":26840},{"$f":"(($U92+($O92)*IF(MOD(BV$3,$I92)=1,1,0)+Parts!$E$91*IF($J92=0,0,IF(MOD(BV$3,$I92)=1,IF(PQS!$R92=\"NO\",1,0),IF(MOD(BV$3,Calculations!$J92)=1,1,0)))+Parts!$E$92*IF(Calculations!$K92=0,0,IF(MOD(BV$3,$I92)=1,0,IF(MOD(BV$3,Calculations!$K92)=1,1,0))))*$AU92)*(1+'Country Input'!$C$45)^(Calculations!BV$3-$BH$3)","v":26840},{"$f":"(($U92+($O92)*IF(MOD(BW$3,$I92)=1,1,0)+Parts!$E$91*IF($J92=0,0,IF(MOD(BW$3,$I92)=1,IF(PQS!$R92=\"NO\",1,0),IF(MOD(BW$3,Calculations!$J92)=1,1,0)))+Parts!$E$92*IF(Calculations!$K92=0,0,IF(MOD(BW$3,$I92)=1,0,IF(MOD(BW$3,Calculations!$K92)=1,1,0))))*$AU92)*(1+'Country Input'!$C$45)^(Calculations!BW$3-$BH$3)","v":274384},{"$f":"(($U92+($O92)*IF(MOD(BX$3,$I92)=1,1,0)+Parts!$E$91*IF($J92=0,0,IF(MOD(BX$3,$I92)=1,IF(PQS!$R92=\"NO\",1,0),IF(MOD(BX$3,Calculations!$J92)=1,1,0)))+Parts!$E$92*IF(Calculations!$K92=0,0,IF(MOD(BX$3,$I92)=1,0,IF(MOD(BX$3,Calculations!$K92)=1,1,0))))*$AU92)*(1+'Country Input'!$C$45)^(Calculations!BX$3-$BH$3)","v":26840},{"$f":"(($U92+($O92)*IF(MOD(BY$3,$I92)=1,1,0)+Parts!$E$91*IF($J92=0,0,IF(MOD(BY$3,$I92)=1,IF(PQS!$R92=\"NO\",1,0),IF(MOD(BY$3,Calculations!$J92)=1,1,0)))+Parts!$E$92*IF(Calculations!$K92=0,0,IF(MOD(BY$3,$I92)=1,0,IF(MOD(BY$3,Calculations!$K92)=1,1,0))))*$AU92)*(1+'Country Input'!$C$45)^(Calculations!BY$3-$BH$3)","v":26840},{"$f":"(($U92+($O92)*IF(MOD(BZ$3,$I92)=1,1,0)+Parts!$E$91*IF($J92=0,0,IF(MOD(BZ$3,$I92)=1,IF(PQS!$R92=\"NO\",1,0),IF(MOD(BZ$3,Calculations!$J92)=1,1,0)))+Parts!$E$92*IF(Calculations!$K92=0,0,IF(MOD(BZ$3,$I92)=1,0,IF(MOD(BZ$3,Calculations!$K92)=1,1,0))))*$AU92)*(1+'Country Input'!$C$45)^(Calculations!BZ$3-$BH$3)","v":26840},{"$f":"(($U92+($O92)*IF(MOD(CA$3,$I92)=1,1,0)+Parts!$E$91*IF($J92=0,0,IF(MOD(CA$3,$I92)=1,IF(PQS!$R92=\"NO\",1,0),IF(MOD(CA$3,Calculations!$J92)=1,1,0)))+Parts!$E$92*IF(Calculations!$K92=0,0,IF(MOD(CA$3,$I92)=1,0,IF(MOD(CA$3,Calculations!$K92)=1,1,0))))*$AU92)*(1+'Country Input'!$C$45)^(Calculations!CA$3-$BH$3)","v":26840},null,"Zhendre WICR40",274384,26840,26840,26840,26840,26840,26840,26840,26840,26840,26840,26840,26840,26840,26840,274384,26840,26840,26840,26840,{"$f":"SUM(CD92:INDEX($CD92:$CW92,1,'Total Solution Costs'!$B$2))","v":515944},null,"Zhendre WICR40",{"$f":"SUM($BH92:BH92)","v":274384},{"$f":"SUM($BH92:BI92)","v":301224},{"$f":"SUM($BH92:BJ92)","v":328064},{"$f":"SUM($BH92:BK92)","v":354904},{"$f":"SUM($BH92:BL92)","v":381744},{"$f":"SUM($BH92:BM92)","v":408584},{"$f":"SUM($BH92:BN92)","v":435424},{"$f":"SUM($BH92:BO92)","v":462264},{"$f":"SUM($BH92:BP92)","v":489104},{"$f":"SUM($BH92:BQ92)","v":515944},{"$f":"SUM($BH92:BR92)","v":542784},{"$f":"SUM($BH92:BS92)","v":569624},{"$f":"SUM($BH92:BT92)","v":596464},{"$f":"SUM($BH92:BU92)","v":623304},{"$f":"SUM($BH92:BV92)","v":650144},{"$f":"SUM($BH92:BW92)","v":924528},{"$f":"SUM($BH92:BX92)","v":951368},{"$f":"SUM($BH92:BY92)","v":978208},{"$f":"SUM($BH92:BZ92)","v":1005048},{"$f":"SUM($BH92:CA92)","v":1031888}]
[{"$f":"PQS!A93","v":"WICR FR"},{"$f":"PQS!B93","v":"E001/WICR10-Huurre"},{"$f":"PQS!E93","v":"WICR10"},{"$f":"PQS!F93","v":"Huurre"},{"$f":"PQS!D93","v":"Huurre WICR10"},{"$f":"VLOOKUP(E93,PQS!$D$5:$K$107,COLUMN(PQS!$I$3)-COLUMN(PQS!$D$3)+1,FALSE)","v":3030.3030303030305},{"$f":"VLOOKUP(E93,PQS!$D$5:$K$107,COLUMN(PQS!$J$3)-COLUMN(PQS!$D$3)+1,FALSE)","v":0},{"$f":"VLOOKUP(E93,PQS!$D$5:$K$107,COLUMN(PQS!$G$3)-COLUMN(PQS!$D$3)+1,FALSE)","v":"No"},{"$f":"HLOOKUP(B93,INDIRECT(\"'\"&A93&\"'!$10:$15\"),ROW('Technology template'!$A$11)-ROW('Technology template'!$A$10)+1,FALSE)","v":15},{"$f":"HLOOKUP(B93,INDIRECT(\"'\"&A93&\"'!$10:$15\"),ROW('Technology template'!$A$12)-ROW('Technology template'!$A$10)+1,FALSE)","v":0},{"$f":"HLOOKUP(B93,INDIRECT(\"'\"&A93&\"'!$10:$15\"),ROW('Technology template'!$A$13)-ROW('Technology template'!$A$10)+1,FALSE)","v":0},{"$f":"VLOOKUP(B93,PQS!$B:$Q,MATCH(PQS!$Q$3,PQS!$B$3:$Q$3,0),FALSE)*(1+'Country Input'!$C$47)+HLOOKUP(B93,INDIRECT(\"'\"&A93&\"'!$10:$15\"),ROW('Technology template'!$A$14)-ROW('Technology template'!$A$10)+1,FALSE)*(1+'Country Input'!$C$47)","v":21025.5},{"$f":"HLOOKUP(B93,INDIRECT(\"'\"&A93&\"'!$10:$80\"),MATCH('Technology template'!$A$27,INDIRECT(\"'\"&A93&\"'!$A$10:$A$80\"),0),FALSE)+'Labor and Maintenance '!$E$17","v":1728},{"$f":"VLOOKUP(B93,PQS!B:T,MATCH(PQS!$T$3,PQS!$B$3:$T$3,0),FALSE)*(1+'Country Input'!$C$47)","v":0},22753.5,{"$f":"O93/I93","v":1516.9},{"$f":"VLOOKUP(B93,PQS!$B:$AE,COLUMN(PQS!AD91)-1,FALSE)","v":1168},{"$f":"IFERROR(1/HLOOKUP(B93,INDIRECT(\"'\"&A93&\"'!$10:$80\"),MATCH('Technology template'!$A$31,INDIRECT(\"'\"&A93&\"'!$A$10:$A$80\"),0),FALSE)*HLOOKUP(B93,INDIRECT(\"'\"&A93&\"'!$10:$80\"),MATCH('Technology template'!$A$41,INDIRECT(\"'\"&A93&\"'!$A10:$A$80\"),0),FALSE),0)*TechnicianHourlyWage+IF(A93=\"Solar w Battery\",1/'Labor and Maintenance '!$E$53*'Labor and Maintenance '!$D$53,0)+IF(A93=\"LT passive\", 1/'Labor and Maintenance '!$E$81*'Labor and Maintenance '!$D$81,0)","v":32},{"$f":"IFERROR(1/HLOOKUP(B93,INDIRECT(\"'\"&A93&\"'!$10:$80\"),MATCH('Technology template'!$A$34,INDIRECT(\"'\"&A93&\"'!$A$10:$A$80\"),0),FALSE)*(HLOOKUP(B93,INDIRECT(\"'\"&A93&\"'!$10:$80\"),MATCH('Technology template'!$A$44,INDIRECT(\"'\"&A93&\"'!$A10:$A$80\"),0),FALSE)*TechnicianHourlyWage+RemoteTravelCostPerDay),0)+IFERROR(1/HLOOKUP(B93,INDIRECT(\"'\"&A93&\"'!$10:$80\"),MATCH('Technology template'!$A$35,INDIRECT(\"'\"&A93&\"'!$A$10:$A$80\"),0),FALSE)*(HLOOKUP(B93,INDIRECT(\"'\"&A93&\"'!$10:$80\"),MATCH('Technology template'!$A$45,INDIRECT(\"'\"&A93&\"'!$A10:$A$80\"),0),FALSE)*TechnicianHourlyWage+RemoteTravelCostPerDay),0)+IFERROR(1/HLOOKUP(B93,INDIRECT(\"'\"&A93&\"'!$10:$80\"),MATCH('Technology template'!$A$37,INDIRECT(\"'\"&A93&\"'!$A$10:$A$80\"),0),FALSE)*(HLOOKUP(B93,INDIRECT(\"'\"&A93&\"'!$10:$80\"),MATCH('Technology template'!$A$46,INDIRECT(\"'\"&A93&\"'!$A10:$A$80\"),0),FALSE)*TechnicianHourlyWage+'Labor and Maintenance '!$B$8),0)","v":24},{"$f":"SUM(Q93:S93)*I93","v":18360},{"$f":"SUM(Q93:S93)","v":1224},{"$f":"P93+U93","v":2740.9},null,"Huurre WICR10",7.5086549999999992,6.0587999999999997,{"$f":"Y93+Z93","v":13.567454999999999},null,"Huurre WICR10",0.50057700000000005,0.40392,0.904497,null,"Huurre WICR10",1,22753.5,18360,{"$f":"AJ93+AK93","v":41113.5},null,"Huurre WICR10",1,0.50057700000000005,0.40392,{"$f":"+AP93+AQ93","v":0.90449700000000011},null,"Huurre WICR10",{"$f":"IF(F93=0, 'Country Input'!$D$7, ROUNDUP(LitersPerFacility/F93,0)*'Country Input'!$D$7)","v":10},227535,12240,{"$f":"AV93+AW93","v":239775},null,"Huurre WICR10",{"$f":"ROUNDUP(LitersPerFacility/F93,0)*'Country Input'!$D$7*ROUNDUP('Total Solution Costs'!$B$2/Calculations!I93,0)","v":10},5.0057700000000001,0.40392,5.4096900000000003,null,null,"Huurre WICR10",{"$f":"(($U93+($O93)*IF(MOD(BH$3,$I93)=1,1,0)+Parts!$E$91*IF($J93=0,0,IF(MOD(BH$3,$I93)=1,IF(PQS!$R93=\"NO\",1,0),IF(MOD(BH$3,Calculations!$J93)=1,1,0)))+Parts!$E$92*IF(Calculations!$K93=0,0,IF(MOD(BH$3,$I93)=1,0,IF(MOD(BH$3,Calculations!$K93)=1,1,0))))*$AU93)*(1+'Country Input'!$C$45)^(Calculations!BH$3-$BH$3)+TrainingCost","v":239775},{"$f":"(($U93+($O93)*IF(MOD(BI$3,$I93)=1,1,0)+Parts!$E$91*IF($J93=0,0,IF(MOD(BI$3,$I93)=1,IF(PQS!$R93=\"NO\",1,0),IF(MOD(BI$3,Calculations!$J93)=1,1,0)))+Parts!$E$92*IF(Calculations!$K93=0,0,IF(MOD(BI$3,$I93)=1,0,IF(MOD(BI$3,Calculations!$K93)=1,1,0))))*$AU93)*(1+'Country Input'!$C$45)^(Calculations!BI$3-$BH$3)","v":12240},{"$f":"(($U93+($O93)*IF(MOD(BJ$3,$I93)=1,1,0)+Parts!$E$91*IF($J93=0,0,IF(MOD(BJ$3,$I93)=1,IF(PQS!$R93=\"NO\",1,0),IF(MOD(BJ$3,Calculations!$J93)=1,1,0)))+Parts!$E$92*IF(Calculations!$K93=0,0,IF(MOD(BJ$3,$I93)=1,0,IF(MOD(BJ$3,Calculations!$K93)=1,1,0))))*$AU93)*(1+'Country Input'!$C$45)^(Calculations!BJ$3-$BH$3)","v":12240},{"$f":"(($U93+($O93)*IF(MOD(BK$3,$I93)=1,1,0)+Parts!$E$91*IF($J93=0,0,IF(MOD(BK$3,$I93)=1,IF(PQS!$R93=\"NO\",1,0),IF(MOD(BK$3,Calculations!$J93)=1,1,0)))+Parts!$E$92*IF(Calculations!$K93=0,0,IF(MOD(BK$3,$I93)=1,0,IF(MOD(BK$3,Calculations!$K93)=1,1,0))))*$AU93)*(1+'Country Input'!$C$45)^(Calculations!BK$3-$BH$3)","v":12240},{"$f":"(($U93+($O93)*IF(MOD(BL$3,$I93)=1,1,0)+Parts!$E$91*IF($J93=0,0,IF(MOD(BL$3,$I93)=1,IF(PQS!$R93=\"NO\",1,0),IF(MOD(BL$3,Calculations!$J93)=1,1,0)))+Parts!$E$92*IF(Calculations!$K93=0,0,IF(MOD(BL$3,$I93)=1,0,IF(MOD(BL$3,Calculations!$K93)=1,1,0))))*$AU93)*(1+'Country Input'!$C$45)^(Calculations!BL$3-$BH$3)","v":12240},{"$f":"(($U93+($O93)*IF(MOD(BM$3,$I93)=1,1,0)+Parts!$E$91*IF($J93=0,0,IF(MOD(BM$3,$I93)=1,IF(PQS!$R93=\"NO\",1,0),IF(MOD(BM$3,Calculations!$J93)=1,1,0)))+Parts!$E$92*IF(Calculations!$K93=0,0,IF(MOD(BM$3,$I93)=1,0,IF(MOD(BM$3,Calculations!$K93)=1,1,0))))*$AU93)*(1+'Country Input'!$C$45)^(Calculations!BM$3-$BH$3)","v":12240},{"$f":"(($U93+($O93)*IF(MOD(BN$3,$I93)=1,1,0)+Parts!$E$91*IF($J93=0,0,IF(MOD(BN$3,$I93)=1,IF(PQS!$R93=\"NO\",1,0),IF(MOD(BN$3,Calculations!$J93)=1,1,0)))+Parts!$E$92*IF(Calculations!$K93=0,0,IF(MOD(BN$3,$I93)=1,0,IF(MOD(BN$3,Calculations!$K93)=1,1,0))))*$AU93)*(1+'Country Input'!$C$45)^(Calculations!BN$3-$BH$3)","v":12240},{"$f":"(($U93+($O93)*IF(MOD(BO$3,$I93)=1,1,0)+Parts!$E$91*IF($J93=0,0,IF(MOD(BO$3,$I93)=1,IF(PQS!$R93=\"NO\",1,0),IF(MOD(BO$3,Calculations!$J93)=1,1,0)))+Parts!$E$92*IF(Calculations!$K93=0,0,IF(MOD(BO$3,$I93)=1,0,IF(MOD(BO$3,Calculations!$K93)=1,1,0))))*$AU93)*(1+'Country Input'!$C$45)^(Calculations!BO$3-$BH$3)","v":12240},{"$f":"(($U93+($O93)*IF(MOD(BP$3,$I93)=1,1,0)+Parts!$E$91*IF($J93=0,0,IF(MOD(BP$3,$I93)=1,IF(PQS!$R93=\"NO\",1,0),IF(MOD(BP$3,Calculations!$J93)=1,1,0)))+Parts!$E$92*IF(Calculations!$K93=0,0,IF(MOD(BP$3,$I93)=1,0,IF(MOD(BP$3,Calculations!$K93)=1,1,0))))*$AU93)*(1+'Country Input'!$C$45)^(Calculations!BP$3-$BH$3)","v":12240},{"$f":"(($U93+($O93)*IF(MOD(BQ$3,$I93)=1,1,0)+Parts!$E$91*IF($J93=0,0,IF(MOD(BQ$3,$I93)=1,IF(PQS!$R93=\"NO\",1,0),IF(MOD(BQ$3,Calculations!$J93)=1,1,0)))+Parts!$E$92*IF(Calculations!$K93=0,0,IF(MOD(BQ$3,$I93)=1,0,IF(MOD(BQ$3,Calculations!$K93)=1,1,0))))*$AU93)*(1+'Country Input'!$C$45)^(Calculations!BQ$3-$BH$3)","v":12240},{"$f":"(($U93+($O93)*IF(MOD(BR$3,$I93)=1,1,0)+Parts!$E$91*IF($J93=0,0,IF(MOD(BR$3,$I93)=1,IF(PQS!$R93=\"NO\",1,0),IF(MOD(BR$3,Calculations!$J93)=1,1,0)))+Parts!$E$92*IF(Calculations!$K93=0,0,IF(MOD(BR$3,$I93)=1,0,IF(MOD(BR$3,Calculations!$K93)=1,1,0))))*$AU93)*(1+'Country Input'!$C$45)^(Calculations!BR$3-$BH$3)","v":12240},{"$f":"(($U93+($O93)*IF(MOD(BS$3,$I93)=1,1,0)+Parts!$E$91*IF($J93=0,0,IF(MOD(BS$3,$I93)=1,IF(PQS!$R93=\"NO\",1,0),IF(MOD(BS$3,Calculations!$J93)=1,1,0)))+Parts!$E$92*IF(Calculations!$K93=0,0,IF(MOD(BS$3,$I93)=1,0,IF(MOD(BS$3,Calculations!$K93)=1,1,0))))*$AU93)*(1+'Country Input'!$C$45)^(Calculations!BS$3-$BH$3)","v":12240},{"$f":"(($U93+($O93)*IF(MOD(BT$3,$I93)=1,1,0)+Parts!$E$91*IF($J93=0,0,IF(MOD(BT$3,$I93)=1,IF(PQS!$R93=\"NO\",1,0),IF(MOD(BT$3,Calculations!$J93)=1,1,0)))+Parts!$E$92*IF(Calculations!$K93=0,0,IF(MOD(BT$3,$I93)=1,0,IF(MOD(BT$3,Calculations!$K93)=1,1,0))))*$AU93)*(1+'Country Input'!$C$45)^(Calculations!BT$3-$BH$3)","v":12240},{"$f":"(($U93+($O93)*IF(MOD(BU$3,$I93)=1,1,0)+Parts!$E$91*IF($J93=0,0,IF(MOD(BU$3,$I93)=1,IF(PQS!$R93=\"NO\",1,0),IF(MOD(BU$3,Calculations!$J93)=1,1,0)))+Parts!$E$92*IF(Calculations!$K93=0,0,IF(MOD(BU$3,$I93)=1,0,IF(MOD(BU$3,Calculations!$K93)=1,1,0))))*$AU93)*(1+'Country Input'!$C$45)^(Calculations!BU$3-$BH$3)","v":12240},{"$f":"(($U93+($O93)*IF(MOD(BV$3,$I93)=1,1,0)+Parts!$E$91*IF($J93=0,0,IF(MOD(BV$3,$I93)=1,IF(PQS!$R93=\"NO\",1,0),IF(MOD(BV$3,Calculations!$J93)=1,1,0)))+Parts!$E$92*IF(Calculations!$K93=0,0,IF(MOD(BV$3,$I93)=1,0,IF(MOD(BV$3,Calculations!$K93)=1,1,0))))*$AU93)*(1+'Country Input'!$C$45)^(Calculations!BV$3-$BH$3)","v":12240},{"$f":"(($U93+($O93)*IF(MOD(BW$3,$I93)=1,1,0)+Parts!$E$91*IF($J93=0,0,IF(MOD(BW$3,$I93)=1,IF(PQS!$R93=\"NO\",1,0),IF(MOD(BW$3,Calculations!$J93)=1,1,0)))+Parts!$E$92*IF(Calculations!$K93=0,0,IF(MOD(BW$3,$I93)=1,0,IF(MOD(BW$3,Calculations!$K93)=1,1,0))))*$AU93)*(1+'Country Input'!$C$45)^(Calculations!BW$3-$BH$3)","v":239775},{"$f":"(($U93+($O93)*IF(MOD(BX$3,$I93)=1,1,0)+Parts!$E$91*IF($J93=0,0,IF(MOD(BX$3,$I93)=1,IF(PQS!$R93=\"NO\",1,0),IF(MOD(BX$3,Calculations!$J93)=1,1,0)))+Parts!$E$92*IF(Calculations!$K93=0,0,IF(MOD(BX$3,$I93)=1,0,IF(MOD(BX$3,Calculations!$K93)=1,1,0))))*$AU93)*(1+'Country Input'!$C$45)^(Calculations!BX$3-$BH$3)","v":12240},{"$f":"(($U93+($O93)*IF(MOD(BY$3,$I93)=1,1,0)+Parts!$E$91*IF($J93=0,0,IF(MOD(BY$3,$I93)=1,IF(PQS!$R93=\"NO\",1,0),IF(MOD(BY$3,Calculations!$J93)=1,1,0)))+Parts!$E$92*IF(Calculations!$K93=0,0,IF(MOD(BY$3,$I93)=1,0,IF(MOD(BY$3,Calculations!$K93)=1,1,0))))*$AU93)*(1+'Country Input'!$C$45)^(Calculations!BY$3-$BH$3)","v":12240},{"$f":"(($U93+($O93)*IF(MOD(BZ$3,$I93)=1,1,0)+Parts!$E$91*IF($J93=0,0,IF(MOD(BZ$3,$I93)=1,IF(PQS!$R93=\"NO\",1,0),IF(MOD(BZ$3,Calculations!$J93)=1,1,0)))+Parts!$E$92*IF(Calculations!$K93=0,0,IF(MOD(BZ$3,$I93)=1,0,IF(MOD(BZ$3,Calculations!$K93)=1,1,0))))*$AU93)*(1+'Country Input'!$C$45)^(Calculations!BZ$3-$BH$3)","v":12240},{"$f":"(($U93+($O93)*IF(MOD(CA$3,$I93)=1,1,0)+Parts!$E$91*IF($J93=0,0,IF(MOD(CA$3,$I93)=1,IF(PQS!$R93=\"NO\",1,0),IF(MOD(CA$3,Calculations!$J93)=1,1,0)))+Parts!$E$92*IF(Calculations!$K93=0,0,IF(MOD(CA$3,$I93)=1,0,IF(MOD(CA$3,Calculations!$K93)=1,1,0))))*$AU93)*(1+'Country Input'!$C$45)^(Calculations!CA$3-$BH$3)","v":12240},null,"Huurre WICR10",239775,12240,12240,12240,12240,12240,12240,12240,12240,12240,12240,12240,12240,12240,12240,239775,12240,12240,12240,12240,{"$f":"SUM(CD93:INDEX($CD93:$CW93,1,'Total Solution Costs'!$B$2))","v":349935},null,"Huurre WICR10",{"$f":"SUM($BH93:BH93)","v":239775},{"$f":"SUM($BH93:BI93)","v":252015},{"$f":"SUM($BH93:BJ93)","v":264255},{"$f":"SUM($BH93:BK93)","v":276495},{"$f":"SUM($BH93:BL93)","v":288735},{"$f":"SUM($BH93:BM93)","v":300975},{"$f":"SUM($BH93:BN93)","v":313215},{"$f":"SUM($BH93:BO93)","v":325455},{"$f":"SUM($BH93:BP93)","v":337695},{"$f":"SUM($BH93:BQ93)","v":349935},{"$f":"SUM($BH93:BR93)","v":362175},{"$f":"SUM($BH93:BS93)","v":374415},{"$f":"SUM($BH93:BT93)","v":386655},{"$f":"SUM($BH93:BU93)","v":398895},{"$f":"SUM($BH93:BV93)","v":411135},{"$f":"SUM($BH93:BW93)","v":650910},{"$f":"SUM($BH93:BX93)","v":663150},{"$f":"SUM($BH93:BY93)","v":675390},{"$f":"SUM($BH93:BZ93)","v":687630},{"$f":"SUM($BH93:CA93)","v":699870}]
[{"$f":"PQS!A94","v":"WICR FR"},{"$f":"PQS!B94","v":"E001/WICR30-Huurre"},{"$f":"PQS!E94","v":"WICR30"},{"$f":"PQS!F94","v":"Huurre"},{"$f":"PQS!D94","v":"Huurre WICR30"},{"$f":"VLOOKUP(E94,PQS!$D$5:$K$107,COLUMN(PQS!$I$3)-COLUMN(PQS!$D$3)+1,FALSE)","v":7692.3076923076924},{"$f":"VLOOKUP(E94,PQS!$D$5:$K$107,COLUMN(PQS!$J$3)-COLUMN(PQS!$D$3)+1,FALSE)","v":0},{"$f":"VLOOKUP(E94,PQS!$D$5:$K$107,COLUMN(PQS!$G$3)-COLUMN(PQS!$D$3)+1,FALSE)","v":"No"},{"$f":"HLOOKUP(B94,INDIRECT(\"'\"&A94&\"'!$10:$15\"),ROW('Technology template'!$A$11)-ROW('Technology template'!$A$10)+1,FALSE)","v":15},{"$f":"HLOOKUP(B94,INDIRECT(\"'\"&A94&\"'!$10:$15\"),ROW('Technology template'!$A$12)-ROW('Technology template'!$A$10)+1,FALSE)","v":0},{"$f":"HLOOKUP(B94,INDIRECT(\"'\"&A94&\"'!$10:$15\"),ROW('Technology template'!$A$13)-ROW('Technology template'!$A$10)+1,FALSE)","v":0},{"$f":"VLOOKUP(B94,PQS!$B:$Q,MATCH(PQS!$Q$3,PQS!$B$3:$Q$3,0),FALSE)*(1+'Country Input'!$C$47)+HLOOKUP(B94,INDIRECT(\"'\"&A94&\"'!$10:$15\"),ROW('Technology template'!$A$14)-ROW('Technology template'!$A$10)+1,FALSE)*(1+'Country Input'!$C$47)","v":27531.100000000002},{"$f":"HLOOKUP(B94,INDIRECT(\"'\"&A94&\"'!$10:$80\"),MATCH('Technology template'!$A$27,INDIRECT(\"'\"&A94&\"'!$A$10:$A$80\"),0),FALSE)+'Labor and Maintenance '!$E$17","v":1728},{"$f":"VLOOKUP(B94,PQS!B:T,MATCH(PQS!$T$3,PQS!$B$3:$T$3,0),FALSE)*(1+'Country Input'!$C$47)","v":0},29259.100000000002,1950.6066666666668,{"$f":"VLOOKUP(B94,PQS!$B:$AE,COLUMN(PQS!AD92)-1,FALSE)","v":2044.0000000000002},{"$f":"IFERROR(1/HLOOKUP(B94,INDIRECT(\"'\"&A94&\"'!$10:$80\"),MATCH('Technology template'!$A$31,INDIRECT(\"'\"&A94&\"'!$A$10:$A$80\"),0),FALSE)*HLOOKUP(B94,INDIRECT(\"'\"&A94&\"'!$10:$80\"),MATCH('Technology template'!$A$41,INDIRECT(\"'\"&A94&\"'!$A10:$A$80\"),0),FALSE),0)*TechnicianHourlyWage+IF(A94=\"Solar w Battery\",1/'Labor and Maintenance '!$E$53*'Labor and Maintenance '!$D$53,0)+IF(A94=\"LT passive\", 1/'Labor and Maintenance '!$E$81*'Labor and Maintenance '!$D$81,0)","v":32},{"$f":"IFERROR(1/HLOOKUP(B94,INDIRECT(\"'\"&A94&\"'!$10:$80\"),MATCH('Technology template'!$A$34,INDIRECT(\"'\"&A94&\"'!$A$10:$A$80\"),0),FALSE)*(HLOOKUP(B94,INDIRECT(\"'\"&A94&\"'!$10:$80\"),MATCH('Technology template'!$A$44,INDIRECT(\"'\"&A94&\"'!$A10:$A$80\"),0),FALSE)*TechnicianHourlyWage+RemoteTravelCostPerDay),0)+IFERROR(1/HLOOKUP(B94,INDIRECT(\"'\"&A94&\"'!$10:$80\"),MATCH('Technology template'!$A$35,INDIRECT(\"'\"&A94&\"'!$A$10:$A$80\"),0),FALSE)*(HLOOKUP(B94,INDIRECT(\"'\"&A94&\"'!$10:$80\"),MATCH('Technology template'!$A$45,INDIRECT(\"'\"&A94&\"'!$A10:$A$80\"),0),FALSE)*TechnicianHourlyWage+RemoteTravelCostPerDay),0)+IFERROR(1/HLOOKUP(B94,INDIRECT(\"'\"&A94&\"'!$10:$80\"),MATCH('Technology template'!$A$37,INDIRECT(\"'\"&A94&\"'!$A$10:$A$80\"),0),FALSE)*(HLOOKUP(B94,INDIRECT(\"'\"&A94&\"'!$10:$80\"),MATCH('Technology template'!$A$46,INDIRECT(\"'\"&A94&\"'!$A10:$A$80\"),0),FALSE)*TechnicianHourlyWage+'Labor and Maintenance '!$B$8),0)","v":24},31500,2100,4050.6066666666666,null,"Huurre WICR30",3.8036830000000004,4.0949999999999998,7.8986830000000001,null,"Huurre WICR30",0.25357886666666668,0.27300000000000002,0.52657886666666665,null,"Huurre WICR30",1,29259.100000000002,31500,60759.100000000006,null,"Huurre WICR30",1,0.25357886666666668,0.27300000000000002,0.52657886666666665,null,"Huurre WICR30",{"$f":"IF(F94=0, 'Country Input'!$D$7, ROUNDUP(LitersPerFacility/F94,0)*'Country Input'!$D$7)","v":10},292591,21000,313591,null,"Huurre WICR30",{"$f":"ROUNDUP(LitersPerFacility/F94,0)*'Country Input'!$D$7*ROUNDUP('Total Solution Costs'!$B$2/Calculations!I94,0)","v":10},2.5357886666666669,0.27300000000000002,2.808788666666667,null,null,"Huurre WICR30",{"$f":"(($U94+($O94)*IF(MOD(BH$3,$I94)=1,1,0)+Parts!$E$91*IF($J94=0,0,IF(MOD(BH$3,$I94)=1,IF(PQS!$R94=\"NO\",1,0),IF(MOD(BH$3,Calculations!$J94)=1,1,0)))+Parts!$E$92*IF(Calculations!$K94=0,0,IF(MOD(BH$3,$I94)=1,0,IF(MOD(BH$3,Calculations!$K94)=1,1,0))))*$AU94)*(1+'Country Input'!$C$45)^(Calculations!BH$3-$BH$3)+TrainingCost","v":313591},{"$f":"(($U94+($O94)*IF(MOD(BI$3,$I94)=1,1,0)+Parts!$E$91*IF($J94=0,0,IF(MOD(BI$3,$I94)=1,IF(PQS!$R94=\"NO\",1,0),IF(MOD(BI$3,Calculations!$J94)=1,1,0)))+Parts!$E$92*IF(Calculations!$K94=0,0,IF(MOD(BI$3,$I94)=1,0,IF(MOD(BI$3,Calculations!$K94)=1,1,0))))*$AU94)*(1+'Country Input'!$C$45)^(Calculations!BI$3-$BH$3)","v":21000},{"$f":"(($U94+($O94)*IF(MOD(BJ$3,$I94)=1,1,0)+Parts!$E$91*IF($J94=0,0,IF(MOD(BJ$3,$I94)=1,IF(PQS!$R94=\"NO\",1,0),IF(MOD(BJ$3,Calculations!$J94)=1,1,0)))+Parts!$E$92*IF(Calculations!$K94=0,0,IF(MOD(BJ$3,$I94)=1,0,IF(MOD(BJ$3,Calculations!$K94)=1,1,0))))*$AU94)*(1+'Country Input'!$C$45)^(Calculations!BJ$3-$BH$3)","v":21000},{"$f":"(($U94+($O94)*IF(MOD(BK$3,$I94)=1,1,0)+Parts!$E$91*IF($J94=0,0,IF(MOD(BK$3,$I94)=1,IF(PQS!$R94=\"NO\",1,0),IF(MOD(BK$3,Calculations!$J94)=1,1,0)))+Parts!$E$92*IF(Calculations!$K94=0,0,IF(MOD(BK$3,$I94)=1,0,IF(MOD(BK$3,Calculations!$K94)=1,1,0))))*$AU94)*(1+'Country Input'!$C$45)^(Calculations!BK$3-$BH$3)","v":21000},{"$f":"(($U94+($O94)*IF(MOD(BL$3,$I94)=1,1,0)+Parts!$E$91*IF($J94=0,0,IF(MOD(BL$3,$I94)=1,IF(PQS!$R94=\"NO\",1,0),IF(MOD(BL$3,Calculations!$J94)=1,1,0)))+Parts!$E$92*IF(Calculations!$K94=0,0,IF(MOD(BL$3,$I94)=1,0,IF(MOD(BL$3,Calculations!$K94)=1,1,0))))*$AU94)*(1+'Country Input'!$C$45)^(Calculations!BL$3-$BH$3)","v":21000},{"$f":"(($U94+($O94)*IF(MOD(BM$3,$I94)=1,1,0)+Parts!$E$91*IF($J94=0,0,IF(MOD(BM$3,$I94)=1,IF(PQS!$R94=\"NO\",1,0),IF(MOD(BM$3,Calculations!$J94)=1,1,0)))+Parts!$E$92*IF(Calculations!$K94=0,0,IF(MOD(BM$3,$I94)=1,0,IF(MOD(BM$3,Calculations!$K94)=1,1,0))))*$AU94)*(1+'Country Input'!$C$45)^(Calculations!BM$3-$BH$3)","v":21000},{"$f":"(($U94+($O94)*IF(MOD(BN$3,$I94)=1,1,0)+Parts!$E$91*IF($J94=0,0,IF(MOD(BN$3,$I94)=1,IF(PQS!$R94=\"NO\",1,0),IF(MOD(BN$3,Calculations!$J94)=1,1,0)))+Parts!$E$92*IF(Calculations!$K94=0,0,IF(MOD(BN$3,$I94)=1,0,IF(MOD(BN$3,Calculations!$K94)=1,1,0))))*$AU94)*(1+'Country Input'!$C$45)^(Calculations!BN$3-$BH$3)","v":21000},{"$f":"(($U94+($O94)*IF(MOD(BO$3,$I94)=1,1,0)+Parts!$E$91*IF($J94=0,0,IF(MOD(BO$3,$I94)=1,IF(PQS!$R94=\"NO\",1,0),IF(MOD(BO$3,Calculations!$J94)=1,1,0)))+Parts!$E$92*IF(Calculations!$K94=0,0,IF(MOD(BO$3,$I94)=1,0,IF(MOD(BO$3,Calculations!$K94)=1,1,0))))*$AU94)*(1+'Country Input'!$C$45)^(Calculations!BO$3-$BH$3)","v":21000},{"$f":"(($U94+($O94)*IF(MOD(BP$3,$I94)=1,1,0)+Parts!$E$91*IF($J94=0,0,IF(MOD(BP$3,$I94)=1,IF(PQS!$R94=\"NO\",1,0),IF(MOD(BP$3,Calculations!$J94)=1,1,0)))+Parts!$E$92*IF(Calculations!$K94=0,0,IF(MOD(BP$3,$I94)=1,0,IF(MOD(BP$3,Calculations!$K94)=1,1,0))))*$AU94)*(1+'Country Input'!$C$45)^(Calculations!BP$3-$BH$3)","v":21000},{"$f":"(($U94+($O94)*IF(MOD(BQ$3,$I94)=1,1,0)+Parts!$E$91*IF($J94=0,0,IF(MOD(BQ$3,$I94)=1,IF(PQS!$R94=\"NO\",1,0),IF(MOD(BQ$3,Calculations!$J94)=1,1,0)))+Parts!$E$92*IF(Calculations!$K94=0,0,IF(MOD(BQ$3,$I94)=1,0,IF(MOD(BQ$3,Calculations!$K94)=1,1,0))))*$AU94)*(1+'Country Input'!$C$45)^(Calculations!BQ$3-$BH$3)","v":21000},{"$f":"(($U94+($O94)*IF(MOD(BR$3,$I94)=1,1,0)+Parts!$E$91*IF($J94=0,0,IF(MOD(BR$3,$I94)=1,IF(PQS!$R94=\"NO\",1,0),IF(MOD(BR$3,Calculations!$J94)=1,1,0)))+Parts!$E$92*IF(Calculations!$K94=0,0,IF(MOD(BR$3,$I94)=1,0,IF(MOD(BR$3,Calculations!$K94)=1,1,0))))*$AU94)*(1+'Country Input'!$C$45)^(Calculations!BR$3-$BH$3)","v":21000},{"$f":"(($U94+($O94)*IF(MOD(BS$3,$I94)=1,1,0)+Parts!$E$91*IF($J94=0,0,IF(MOD(BS$3,$I94)=1,IF(PQS!$R94=\"NO\",1,0),IF(MOD(BS$3,Calculations!$J94)=1,1,0)))+Parts!$E$92*IF(Calculations!$K94=0,0,IF(MOD(BS$3,$I94)=1,0,IF(MOD(BS$3,Calculations!$K94)=1,1,0))))*$AU94)*(1+'Country Input'!$C$45)^(Calculations!BS$3-$BH$3)","v":21000},{"$f":"(($U94+($O94)*IF(MOD(BT$3,$I94)=1,1,0)+Parts!$E$91*IF($J94=0,0,IF(MOD(BT$3,$I94)=1,IF(PQS!$R94=\"NO\",1,0),IF(MOD(BT$3,Calculations!$J94)=1,1,0)))+Parts!$E$92*IF(Calculations!$K94=0,0,IF(MOD(BT$3,$I94)=1,0,IF(MOD(BT$3,Calculations!$K94)=1,1,0))))*$AU94)*(1+'Country Input'!$C$45)^(Calculations!BT$3-$BH$3)","v":21000},{"$f":"(($U94+($O94)*IF(MOD(BU$3,$I94)=1,1,0)+Parts!$E$91*IF($J94=0,0,IF(MOD(BU$3,$I94)=1,IF(PQS!$R94=\"NO\",1,0),IF(MOD(BU$3,Calculations!$J94)=1,1,0)))+Parts!$E$92*IF(Calculations!$K94=0,0,IF(MOD(BU$3,$I94)=1,0,IF(MOD(BU$3,Calculations!$K94)=1,1,0))))*$AU94)*(1+'Country Input'!$C$45)^(Calculations!BU$3-$BH$3)","v":21000},{"$f":"(($U94+($O94)*IF(MOD(BV$3,$I94)=1,1,0)+Parts!$E$91*IF($J94=0,0,IF(MOD(BV$3,$I94)=1,IF(PQS!$R94=\"NO\",1,0),IF(MOD(BV$3,Calculations!$J94)=1,1,0)))+Parts!$E$92*IF(Calculations!$K94=0,0,IF(MOD(BV$3,$I94)=1,0,IF(MOD(BV$3,Calculations!$K94)=1,1,0))))*$AU94)*(1+'Country Input'!$C$45)^(Calculations!BV$3-$BH$3)","v":21000},{"$f":"(($U94+($O94)*IF(MOD(BW$3,$I94)=1,1,0)+Parts!$E$91*IF($J94=0,0,IF(MOD(BW$3,$I94)=1,IF(PQS!$R94=\"NO\",1,0),IF(MOD(BW$3,Calculations!$J94)=1,1,0)))+Parts!$E$92*IF(Calculations!$K94=0,0,IF(MOD(BW$3,$I94)=1,0,IF(MOD(BW$3,Calculations!$K94)=1,1,0))))*$AU94)*(1+'Country Input'!$C$45)^(Calculations!BW$3-$BH$3)","v":313591},{"$f":"(($U94+($O94)*IF(MOD(BX$3,$I94)=1,1,0)+Parts!$E$91*IF($J94=0,0,IF(MOD(BX$3,$I94)=1,IF(PQS!$R94=\"NO\",1,0),IF(MOD(BX$3,Calculations!$J94)=1,1,0)))+Parts!$E$92*IF(Calculations!$K94=0,0,IF(MOD(BX$3,$I94)=1,0,IF(MOD(BX$3,Calculations!$K94)=1,1,0))))*$AU94)*(1+'Country Input'!$C$45)^(Calculations!BX$3-$BH$3)","v":21000},{"$f":"(($U94+($O94)*IF(MOD(BY$3,$I94)=1,1,0)+Parts!$E$91*IF($J94=0,0,IF(MOD(BY$3,$I94)=1,IF(PQS!$R94=\"NO\",1,0),IF(MOD(BY$3,Calculations!$J94)=1,1,0)))+Parts!$E$92*IF(Calculations!$K94=0,0,IF(MOD(BY$3,$I94)=1,0,IF(MOD(BY$3,Calculations!$K94)=1,1,0))))*$AU94)*(1+'Country Input'!$C$45)^(Calculations!BY$3-$BH$3)","v":21000},{"$f":"(($U94+($O94)*IF(MOD(BZ$3,$I94)=1,1,0)+Parts!$E$91*IF($J94=0,0,IF(MOD(BZ$3,$I94)=1,IF(PQS!$R94=\"NO\",1,0),IF(MOD(BZ$3,Calculations!$J94)=1,1,0)))+Parts!$E$92*IF(Calculations!$K94=0,0,IF(MOD(BZ$3,$I94)=1,0,IF(MOD(BZ$3,Calculations!$K94)=1,1,0))))*$AU94)*(1+'Country Input'!$C$45)^(Calculations!BZ$3-$BH$3)","v":21000},{"$f":"(($U94+($O94)*IF(MOD(CA$3,$I94)=1,1,0)+Parts!$E$91*IF($J94=0,0,IF(MOD(CA$3,$I94)=1,IF(PQS!$R94=\"NO\",1,0),IF(MOD(CA$3,Calculations!$J94)=1,1,0)))+Parts!$E$92*IF(Calculations!$K94=0,0,IF(MOD(CA$3,$I94)=1,0,IF(MOD(CA$3,Calculations!$K94)=1,1,0))))*$AU94)*(1+'Country Input'!$C$45)^(Calculations!CA$3-$BH$3)","v":21000},null,"Huurre WICR30",313591,21000,21000,21000,21000,21000,21000,21000,21000,21000,21000,21000,21000,21000,21000,313591,21000,21000,21000,21000,{"$f":"SUM(CD94:INDEX($CD94:$CW94,1,'Total Solution Costs'!$B$2))","v":502591},null,"Huurre WICR30",{"$f":"SUM($BH94:BH94)","v":313591},{"$f":"SUM($BH94:BI94)","v":334591},{"$f":"SUM($BH94:BJ94)","v":355591},{"$f":"SUM($BH94:BK94)","v":376591},{"$f":"SUM($BH94:BL94)","v":397591},{"$f":"SUM($BH94:BM94)","v":418591},{"$f":"SUM($BH94:BN94)","v":439591},{"$f":"SUM($BH94:BO94)","v":460591},{"$f":"SUM($BH94:BP94)","v":481591},{"$f":"SUM($BH94:BQ94)","v":502591},{"$f":"SUM($BH94:BR94)","v":523591},{"$f":"SUM($BH94:BS94)","v":544591},{"$f":"SUM($BH94:BT94)","v":565591},{"$f":"SUM($BH94:BU94)","v":586591},{"$f":"SUM($BH94:BV94)","v":607591},{"$f":"SUM($BH94:BW94)","v":921182},{"$f":"SUM($BH94:BX94)","v":942182},{"$f":"SUM($BH94:BY94)","v":963182},{"$f":"SUM($BH94:BZ94)","v":984182},{"$f":"SUM($BH94:CA94)","v":1005182}]
[{"$f":"PQS!A95","v":"WICR FR"},{"$f":"PQS!B95","v":"E001/WICR40-Huurre"},{"$f":"PQS!E95","v":"WICR40"},{"$f":"PQS!F95","v":"Huurre"},{"$f":"PQS!D95","v":"Huurre WICR40"},{"$f":"VLOOKUP(E95,PQS!$D$5:$K$107,COLUMN(PQS!$I$3)-COLUMN(PQS!$D$3)+1,FALSE)","v":9523.8095238095229},{"$f":"VLOOKUP(E95,PQS!$D$5:$K$107,COLUMN(PQS!$J$3)-COLUMN(PQS!$D$3)+1,FALSE)","v":0},{"$f":"VLOOKUP(E95,PQS!$D$5:$K$107,COLUMN(PQS!$G$3)-COLUMN(PQS!$D$3)+1,FALSE)","v":"No"},{"$f":"HLOOKUP(B95,INDIRECT(\"'\"&A95&\"'!$10:$15\"),ROW('Technology template'!$A$11)-ROW('Technology template'!$A$10)+1,FALSE)","v":15},{"$f":"HLOOKUP(B95,INDIRECT(\"'\"&A95&\"'!$10:$15\"),ROW('Technology template'!$A$12)-ROW('Technology template'!$A$10)+1,FALSE)","v":0},{"$f":"HLOOKUP(B95,INDIRECT(\"'\"&A95&\"'!$10:$15\"),ROW('Technology template'!$A$13)-ROW('Technology template'!$A$10)+1,FALSE)","v":0},{"$f":"VLOOKUP(B95,PQS!$B:$Q,MATCH(PQS!$Q$3,PQS!$B$3:$Q$3,0),FALSE)*(1+'Country Input'!$C$47)+HLOOKUP(B95,INDIRECT(\"'\"&A95&\"'!$10:$15\"),ROW('Technology template'!$A$14)-ROW('Technology template'!$A$10)+1,FALSE)*(1+'Country Input'!$C$47)","v":23026.400000000001},{"$f":"HLOOKUP(B95,INDIRECT(\"'\"&A95&\"'!$10:$80\"),MATCH('Technology template'!$A$27,INDIRECT(\"'\"&A95&\"'!$A$10:$A$80\"),0),FALSE)+'Labor and Maintenance '!$E$17","v":1728},{"$f":"VLOOKUP(B95,PQS!B:T,MATCH(PQS!$T$3,PQS!$B$3:$T$3,0),FALSE)*(1+'Country Input'!$C$47)","v":0},24754.400000000001,1650.2933333333335,{"$f":"VLOOKUP(B95,PQS!$B:$AE,COLUMN(PQS!AD93)-1,FALSE)","v":2628},{"$f":"IFERROR(1/HLOOKUP(B95,INDIRECT(\"'\"&A95&\"'!$10:$80\"),MATCH('Technology template'!$A$31,INDIRECT(\"'\"&A95&\"'!$A$10:$A$80\"),0),FALSE)*HLOOKUP(B95,INDIRECT(\"'\"&A95&\"'!$10:$80\"),MATCH('Technology template'!$A$41,INDIRECT(\"'\"&A95&\"'!$A10:$A$80\"),0),FALSE),0)*TechnicianHourlyWage+IF(A95=\"Solar w Battery\",1/'Labor and Maintenance '!$E$53*'Labor and Maintenance '!$D$53,0)+IF(A95=\"LT passive\", 1/'Labor and Maintenance '!$E$81*'Labor and Maintenance '!$D$81,0)","v":32},{"$f":"IFERROR(1/HLOOKUP(B95,INDIRECT(\"'\"&A95&\"'!$10:$80\"),MATCH('Technology template'!$A$34,INDIRECT(\"'\"&A95&\"'!$A$10:$A$80\"),0),FALSE)*(HLOOKUP(B95,INDIRECT(\"'\"&A95&\"'!$10:$80\"),MATCH('Technology template'!$A$44,INDIRECT(\"'\"&A95&\"'!$A10:$A$80\"),0),FALSE)*TechnicianHourlyWage+RemoteTravelCostPerDay),0)+IFERROR(1/HLOOKUP(B95,INDIRECT(\"'\"&A95&\"'!$10:$80\"),MATCH('Technology template'!$A$35,INDIRECT(\"'\"&A95&\"'!$A$10:$A$80\"),0),FALSE)*(HLOOKUP(B95,INDIRECT(\"'\"&A95&\"'!$10:$80\"),MATCH('Technology template'!$A$45,INDIRECT(\"'\"&A95&\"'!$A10:$A$80\"),0),FALSE)*TechnicianHourlyWage+RemoteTravelCostPerDay),0)+IFERROR(1/HLOOKUP(B95,INDIRECT(\"'\"&A95&\"'!$10:$80\"),MATCH('Technology template'!$A$37,INDIRECT(\"'\"&A95&\"'!$A$10:$A$80\"),0),FALSE)*(HLOOKUP(B95,INDIRECT(\"'\"&A95&\"'!$10:$80\"),MATCH('Technology template'!$A$46,INDIRECT(\"'\"&A95&\"'!$A10:$A$80\"),0),FALSE)*TechnicianHourlyWage+'Labor and Maintenance '!$B$8),0)","v":24},40260,2684,4334.2933333333331,null,"Huurre WICR40",2.5992120000000005,4.2273000000000005,6.826512000000001,null,"Huurre WICR40",0.17328080000000004,0.28182000000000001,0.45510080000000003,null,"Huurre WICR40",1,24754.400000000001,40260,65014.400000000001,null,"Huurre WICR40",1,0.17328080000000004,0.28182000000000001,0.45510080000000008,null,"Huurre WICR40",{"$f":"IF(F95=0, 'Country Input'!$D$7, ROUNDUP(LitersPerFacility/F95,0)*'Country Input'!$D$7)","v":10},247544,26840,274384,null,"Huurre WICR40",{"$f":"ROUNDUP(LitersPerFacility/F95,0)*'Country Input'!$D$7*ROUNDUP('Total Solution Costs'!$B$2/Calculations!I95,0)","v":10},1.7328080000000003,0.28182000000000001,2.0146280000000005,null,null,"Huurre WICR40",{"$f":"(($U95+($O95)*IF(MOD(BH$3,$I95)=1,1,0)+Parts!$E$91*IF($J95=0,0,IF(MOD(BH$3,$I95)=1,IF(PQS!$R95=\"NO\",1,0),IF(MOD(BH$3,Calculations!$J95)=1,1,0)))+Parts!$E$92*IF(Calculations!$K95=0,0,IF(MOD(BH$3,$I95)=1,0,IF(MOD(BH$3,Calculations!$K95)=1,1,0))))*$AU95)*(1+'Country Input'!$C$45)^(Calculations!BH$3-$BH$3)+TrainingCost","v":274384},{"$f":"(($U95+($O95)*IF(MOD(BI$3,$I95)=1,1,0)+Parts!$E$91*IF($J95=0,0,IF(MOD(BI$3,$I95)=1,IF(PQS!$R95=\"NO\",1,0),IF(MOD(BI$3,Calculations!$J95)=1,1,0)))+Parts!$E$92*IF(Calculations!$K95=0,0,IF(MOD(BI$3,$I95)=1,0,IF(MOD(BI$3,Calculations!$K95)=1,1,0))))*$AU95)*(1+'Country Input'!$C$45)^(Calculations!BI$3-$BH$3)","v":26840},{"$f":"(($U95+($O95)*IF(MOD(BJ$3,$I95)=1,1,0)+Parts!$E$91*IF($J95=0,0,IF(MOD(BJ$3,$I95)=1,IF(PQS!$R95=\"NO\",1,0),IF(MOD(BJ$3,Calculations!$J95)=1,1,0)))+Parts!$E$92*IF(Calculations!$K95=0,0,IF(MOD(BJ$3,$I95)=1,0,IF(MOD(BJ$3,Calculations!$K95)=1,1,0))))*$AU95)*(1+'Country Input'!$C$45)^(Calculations!BJ$3-$BH$3)","v":26840},{"$f":"(($U95+($O95)*IF(MOD(BK$3,$I95)=1,1,0)+Parts!$E$91*IF($J95=0,0,IF(MOD(BK$3,$I95)=1,IF(PQS!$R95=\"NO\",1,0),IF(MOD(BK$3,Calculations!$J95)=1,1,0)))+Parts!$E$92*IF(Calculations!$K95=0,0,IF(MOD(BK$3,$I95)=1,0,IF(MOD(BK$3,Calculations!$K95)=1,1,0))))*$AU95)*(1+'Country Input'!$C$45)^(Calculations!BK$3-$BH$3)","v":26840},{"$f":"(($U95+($O95)*IF(MOD(BL$3,$I95)=1,1,0)+Parts!$E$91*IF($J95=0,0,IF(MOD(BL$3,$I95)=1,IF(PQS!$R95=\"NO\",1,0),IF(MOD(BL$3,Calculations!$J95)=1,1,0)))+Parts!$E$92*IF(Calculations!$K95=0,0,IF(MOD(BL$3,$I95)=1,0,IF(MOD(BL$3,Calculations!$K95)=1,1,0))))*$AU95)*(1+'Country Input'!$C$45)^(Calculations!BL$3-$BH$3)","v":26840},{"$f":"(($U95+($O95)*IF(MOD(BM$3,$I95)=1,1,0)+Parts!$E$91*IF($J95=0,0,IF(MOD(BM$3,$I95)=1,IF(PQS!$R95=\"NO\",1,0),IF(MOD(BM$3,Calculations!$J95)=1,1,0)))+Parts!$E$92*IF(Calculations!$K95=0,0,IF(MOD(BM$3,$I95)=1,0,IF(MOD(BM$3,Calculations!$K95)=1,1,0))))*$AU95)*(1+'Country Input'!$C$45)^(Calculations!BM$3-$BH$3)","v":26840},{"$f":"(($U95+($O95)*IF(MOD(BN$3,$I95)=1,1,0)+Parts!$E$91*IF($J95=0,0,IF(MOD(BN$3,$I95)=1,IF(PQS!$R95=\"NO\",1,0),IF(MOD(BN$3,Calculations!$J95)=1,1,0)))+Parts!$E$92*IF(Calculations!$K95=0,0,IF(MOD(BN$3,$I95)=1,0,IF(MOD(BN$3,Calculations!$K95)=1,1,0))))*$AU95)*(1+'Country Input'!$C$45)^(Calculations!BN$3-$BH$3)","v":26840},{"$f":"(($U95+($O95)*IF(MOD(BO$3,$I95)=1,1,0)+Parts!$E$91*IF($J95=0,0,IF(MOD(BO$3,$I95)=1,IF(PQS!$R95=\"NO\",1,0),IF(MOD(BO$3,Calculations!$J95)=1,1,0)))+Parts!$E$92*IF(Calculations!$K95=0,0,IF(MOD(BO$3,$I95)=1,0,IF(MOD(BO$3,Calculations!$K95)=1,1,0))))*$AU95)*(1+'Country Input'!$C$45)^(Calculations!BO$3-$BH$3)","v":26840},{"$f":"(($U95+($O95)*IF(MOD(BP$3,$I95)=1,1,0)+Parts!$E$91*IF($J95=0,0,IF(MOD(BP$3,$I95)=1,IF(PQS!$R95=\"NO\",1,0),IF(MOD(BP$3,Calculations!$J95)=1,1,0)))+Parts!$E$92*IF(Calculations!$K95=0,0,IF(MOD(BP$3,$I95)=1,0,IF(MOD(BP$3,Calculations!$K95)=1,1,0))))*$AU95)*(1+'Country Input'!$C$45)^(Calculations!BP$3-$BH$3)","v":26840},{"$f":"(($U95+($O95)*IF(MOD(BQ$3,$I95)=1,1,0)+Parts!$E$91*IF($J95=0,0,IF(MOD(BQ$3,$I95)=1,IF(PQS!$R95=\"NO\",1,0),IF(MOD(BQ$3,Calculations!$J95)=1,1,0)))+Parts!$E$92*IF(Calculations!$K95=0,0,IF(MOD(BQ$3,$I95)=1,0,IF(MOD(BQ$3,Calculations!$K95)=1,1,0))))*$AU95)*(1+'Country Input'!$C$45)^(Calculations!BQ$3-$BH$3)","v":26840},{"$f":"(($U95+($O95)*IF(MOD(BR$3,$I95)=1,1,0)+Parts!$E$91*IF($J95=0,0,IF(MOD(BR$3,$I95)=1,IF(PQS!$R95=\"NO\",1,0),IF(MOD(BR$3,Calculations!$J95)=1,1,0)))+Parts!$E$92*IF(Calculations!$K95=0,0,IF(MOD(BR$3,$I95)=1,0,IF(MOD(BR$3,Calculations!$K95)=1,1,0))))*$AU95)*(1+'Country Input'!$C$45)^(Calculations!BR$3-$BH$3)","v":26840},{"$f":"(($U95+($O95)*IF(MOD(BS$3,$I95)=1,1,0)+Parts!$E$91*IF($J95=0,0,IF(MOD(BS$3,$I95)=1,IF(PQS!$R95=\"NO\",1,0),IF(MOD(BS$3,Calculations!$J95)=1,1,0)))+Parts!$E$92*IF(Calculations!$K95=0,0,IF(MOD(BS$3,$I95)=1,0,IF(MOD(BS$3,Calculations!$K95)=1,1,0))))*$AU95)*(1+'Country Input'!$C$45)^(Calculations!BS$3-$BH$3)","v":26840},{"$f":"(($U95+($O95)*IF(MOD(BT$3,$I95)=1,1,0)+Parts!$E$91*IF($J95=0,0,IF(MOD(BT$3,$I95)=1,IF(PQS!$R95=\"NO\",1,0),IF(MOD(BT$3,Calculations!$J95)=1,1,0)))+Parts!$E$92*IF(Calculations!$K95=0,0,IF(MOD(BT$3,$I95)=1,0,IF(MOD(BT$3,Calculations!$K95)=1,1,0))))*$AU95)*(1+'Country Input'!$C$45)^(Calculations!BT$3-$BH$3)","v":26840},{"$f":"(($U95+($O95)*IF(MOD(BU$3,$I95)=1,1,0)+Parts!$E$91*IF($J95=0,0,IF(MOD(BU$3,$I95)=1,IF(PQS!$R95=\"NO\",1,0),IF(MOD(BU$3,Calculations!$J95)=1,1,0)))+Parts!$E$92*IF(Calculations!$K95=0,0,IF(MOD(BU$3,$I95)=1,0,IF(MOD(BU$3,Calculations!$K95)=1,1,0))))*$AU95)*(1+'Country Input'!$C$45)^(Calculations!BU$3-$BH$3)","v":26840},{"$f":"(($U95+($O95)*IF(MOD(BV$3,$I95)=1,1,0)+Parts!$E$91*IF($J95=0,0,IF(MOD(BV$3,$I95)=1,IF(PQS!$R95=\"NO\",1,0),IF(MOD(BV$3,Calculations!$J95)=1,1,0)))+Parts!$E$92*IF(Calculations!$K95=0,0,IF(MOD(BV$3,$I95)=1,0,IF(MOD(BV$3,Calculations!$K95)=1,1,0))))*$AU95)*(1+'Country Input'!$C$45)^(Calculations!BV$3-$BH$3)","v":26840},{"$f":"(($U95+($O95)*IF(MOD(BW$3,$I95)=1,1,0)+Parts!$E$91*IF($J95=0,0,IF(MOD(BW$3,$I95)=1,IF(PQS!$R95=\"NO\",1,0),IF(MOD(BW$3,Calculations!$J95)=1,1,0)))+Parts!$E$92*IF(Calculations!$K95=0,0,IF(MOD(BW$3,$I95)=1,0,IF(MOD(BW$3,Calculations!$K95)=1,1,0))))*$AU95)*(1+'Country Input'!$C$45)^(Calculations!BW$3-$BH$3)","v":274384},{"$f":"(($U95+($O95)*IF(MOD(BX$3,$I95)=1,1,0)+Parts!$E$91*IF($J95=0,0,IF(MOD(BX$3,$I95)=1,IF(PQS!$R95=\"NO\",1,0),IF(MOD(BX$3,Calculations!$J95)=1,1,0)))+Parts!$E$92*IF(Calculations!$K95=0,0,IF(MOD(BX$3,$I95)=1,0,IF(MOD(BX$3,Calculations!$K95)=1,1,0))))*$AU95)*(1+'Country Input'!$C$45)^(Calculations!BX$3-$BH$3)","v":26840},{"$f":"(($U95+($O95)*IF(MOD(BY$3,$I95)=1,1,0)+Parts!$E$91*IF($J95=0,0,IF(MOD(BY$3,$I95)=1,IF(PQS!$R95=\"NO\",1,0),IF(MOD(BY$3,Calculations!$J95)=1,1,0)))+Parts!$E$92*IF(Calculations!$K95=0,0,IF(MOD(BY$3,$I95)=1,0,IF(MOD(BY$3,Calculations!$K95)=1,1,0))))*$AU95)*(1+'Country Input'!$C$45)^(Calculations!BY$3-$BH$3)","v":26840},{"$f":"(($U95+($O95)*IF(MOD(BZ$3,$I95)=1,1,0)+Parts!$E$91*IF($J95=0,0,IF(MOD(BZ$3,$I95)=1,IF(PQS!$R95=\"NO\",1,0),IF(MOD(BZ$3,Calculations!$J95)=1,1,0)))+Parts!$E$92*IF(Calculations!$K95=0,0,IF(MOD(BZ$3,$I95)=1,0,IF(MOD(BZ$3,Calculations!$K95)=1,1,0))))*$AU95)*(1+'Country Input'!$C$45)^(Calculations!BZ$3-$BH$3)","v":26840},{"$f":"(($U95+($O95)*IF(MOD(CA$3,$I95)=1,1,0)+Parts!$E$91*IF($J95=0,0,IF(MOD(CA$3,$I95)=1,IF(PQS!$R95=\"NO\",1,0),IF(MOD(CA$3,Calculations!$J95)=1,1,0)))+Parts!$E$92*IF(Calculations!$K95=0,0,IF(MOD(CA$3,$I95)=1,0,IF(MOD(CA$3,Calculations!$K95)=1,1,0))))*$AU95)*(1+'Country Input'!$C$45)^(Calculations!CA$3-$BH$3)","v":26840},null,"Huurre WICR40",274384,26840,26840,26840,26840,26840,26840,26840,26840,26840,26840,26840,26840,26840,26840,274384,26840,26840,26840,26840,{"$f":"SUM(CD95:INDEX($CD95:$CW95,1,'Total Solution Costs'!$B$2))","v":515944},null,"Huurre WICR40",{"$f":"SUM($BH95:BH95)","v":274384},{"$f":"SUM($BH95:BI95)","v":301224},{"$f":"SUM($BH95:BJ95)","v":328064},{"$f":"SUM($BH95:BK95)","v":354904},{"$f":"SUM($BH95:BL95)","v":381744},{"$f":"SUM($BH95:BM95)","v":408584},{"$f":"SUM($BH95:BN95)","v":435424},{"$f":"SUM($BH95:BO95)","v":462264},{"$f":"SUM($BH95:BP95)","v":489104},{"$f":"SUM($BH95:BQ95)","v":515944},{"$f":"SUM($BH95:BR95)","v":542784},{"$f":"SUM($BH95:BS95)","v":569624},{"$f":"SUM($BH95:BT95)","v":596464},{"$f":"SUM($BH95:BU95)","v":623304},{"$f":"SUM($BH95:BV95)","v":650144},{"$f":"SUM($BH95:BW95)","v":924528},{"$f":"SUM($BH95:BX95)","v":951368},{"$f":"SUM($BH95:BY95)","v":978208},{"$f":"SUM($BH95:BZ95)","v":1005048},{"$f":"SUM($BH95:CA95)","v":1031888}]
[{"$f":"PQS!A96","v":"WICR FR"},{"$f":"PQS!B96","v":"E001/WICR10-Haier"},{"$f":"PQS!E96","v":"WICR10"},{"$f":"PQS!F96","v":"Haier"},{"$f":"PQS!D96","v":"Haier WICR10"},{"$f":"VLOOKUP(E96,PQS!$D$5:$K$107,COLUMN(PQS!$I$3)-COLUMN(PQS!$D$3)+1,FALSE)","v":3030.3030303030305},{"$f":"VLOOKUP(E96,PQS!$D$5:$K$107,COLUMN(PQS!$J$3)-COLUMN(PQS!$D$3)+1,FALSE)","v":0},{"$f":"VLOOKUP(E96,PQS!$D$5:$K$107,COLUMN(PQS!$G$3)-COLUMN(PQS!$D$3)+1,FALSE)","v":"No"},{"$f":"HLOOKUP(B96,INDIRECT(\"'\"&A96&\"'!$10:$15\"),ROW('Technology template'!$A$11)-ROW('Technology template'!$A$10)+1,FALSE)","v":15},{"$f":"HLOOKUP(B96,INDIRECT(\"'\"&A96&\"'!$10:$15\"),ROW('Technology template'!$A$12)-ROW('Technology template'!$A$10)+1,FALSE)","v":0},{"$f":"HLOOKUP(B96,INDIRECT(\"'\"&A96&\"'!$10:$15\"),ROW('Technology template'!$A$13)-ROW('Technology template'!$A$10)+1,FALSE)","v":0},{"$f":"VLOOKUP(B96,PQS!$B:$Q,MATCH(PQS!$Q$3,PQS!$B$3:$Q$3,0),FALSE)*(1+'Country Input'!$C$47)+HLOOKUP(B96,INDIRECT(\"'\"&A96&\"'!$10:$15\"),ROW('Technology template'!$A$14)-ROW('Technology template'!$A$10)+1,FALSE)*(1+'Country Input'!$C$47)","v":21025.5},{"$f":"HLOOKUP(B96,INDIRECT(\"'\"&A96&\"'!$10:$80\"),MATCH('Technology template'!$A$27,INDIRECT(\"'\"&A96&\"'!$A$10:$A$80\"),0),FALSE)+'Labor and Maintenance '!$E$17","v":1728},{"$f":"VLOOKUP(B96,PQS!B:T,MATCH(PQS!$T$3,PQS!$B$3:$T$3,0),FALSE)*(1+'Country Input'!$C$47)","v":0},22753.5,1516.9,{"$f":"VLOOKUP(B96,PQS!$B:$AE,COLUMN(PQS!AD94)-1,FALSE)","v":469.39},{"$f":"IFERROR(1/HLOOKUP(B96,INDIRECT(\"'\"&A96&\"'!$10:$80\"),MATCH('Technology template'!$A$31,INDIRECT(\"'\"&A96&\"'!$A$10:$A$80\"),0),FALSE)*HLOOKUP(B96,INDIRECT(\"'\"&A96&\"'!$10:$80\"),MATCH('Technology template'!$A$41,INDIRECT(\"'\"&A96&\"'!$A10:$A$80\"),0),FALSE),0)*TechnicianHourlyWage+IF(A96=\"Solar w Battery\",1/'Labor and Maintenance '!$E$53*'Labor and Maintenance '!$D$53,0)+IF(A96=\"LT passive\", 1/'Labor and Maintenance '!$E$81*'Labor and Maintenance '!$D$81,0)","v":32},{"$f":"IFERROR(1/HLOOKUP(B96,INDIRECT(\"'\"&A96&\"'!$10:$80\"),MATCH('Technology template'!$A$34,INDIRECT(\"'\"&A96&\"'!$A$10:$A$80\"),0),FALSE)*(HLOOKUP(B96,INDIRECT(\"'\"&A96&\"'!$10:$80\"),MATCH('Technology template'!$A$44,INDIRECT(\"'\"&A96&\"'!$A10:$A$80\"),0),FALSE)*TechnicianHourlyWage+RemoteTravelCostPerDay),0)+IFERROR(1/HLOOKUP(B96,INDIRECT(\"'\"&A96&\"'!$10:$80\"),MATCH('Technology template'!$A$35,INDIRECT(\"'\"&A96&\"'!$A$10:$A$80\"),0),FALSE)*(HLOOKUP(B96,INDIRECT(\"'\"&A96&\"'!$10:$80\"),MATCH('Technology template'!$A$45,INDIRECT(\"'\"&A96&\"'!$A10:$A$80\"),0),FALSE)*TechnicianHourlyWage+RemoteTravelCostPerDay),0)+IFERROR(1/HLOOKUP(B96,INDIRECT(\"'\"&A96&\"'!$10:$80\"),MATCH('Technology template'!$A$37,INDIRECT(\"'\"&A96&\"'!$A$10:$A$80\"),0),FALSE)*(HLOOKUP(B96,INDIRECT(\"'\"&A96&\"'!$10:$80\"),MATCH('Technology template'!$A$46,INDIRECT(\"'\"&A96&\"'!$A10:$A$80\"),0),FALSE)*TechnicianHourlyWage+'Labor and Maintenance '!$B$8),0)","v":24},7880.8499999999995,525.39,2042.29,null,"Haier WICR10",7.5086549999999992,2.6006804999999997,10.109335499999998,null,"Haier WICR10",0.50057700000000005,0.1733787,0.67395569999999994,null,"Haier WICR10",1,22753.5,7880.8499999999995,30634.35,null,"Haier WICR10",1,0.50057700000000005,0.1733787,0.67395570000000005,null,"Haier WICR10",{"$f":"IF(F96=0, 'Country Input'!$D$7, ROUNDUP(LitersPerFacility/F96,0)*'Country Input'!$D$7)","v":10},227535,5253.9,232788.9,null,"Haier WICR10",{"$f":"ROUNDUP(LitersPerFacility/F96,0)*'Country Input'!$D$7*ROUNDUP('Total Solution Costs'!$B$2/Calculations!I96,0)","v":10},5.0057700000000001,0.1733787,5.1791486999999998,null,null,"Haier WICR10",{"$f":"(($U96+($O96)*IF(MOD(BH$3,$I96)=1,1,0)+Parts!$E$91*IF($J96=0,0,IF(MOD(BH$3,$I96)=1,IF(PQS!$R96=\"NO\",1,0),IF(MOD(BH$3,Calculations!$J96)=1,1,0)))+Parts!$E$92*IF(Calculations!$K96=0,0,IF(MOD(BH$3,$I96)=1,0,IF(MOD(BH$3,Calculations!$K96)=1,1,0))))*$AU96)*(1+'Country Input'!$C$45)^(Calculations!BH$3-$BH$3)+TrainingCost","v":232788.9},{"$f":"(($U96+($O96)*IF(MOD(BI$3,$I96)=1,1,0)+Parts!$E$91*IF($J96=0,0,IF(MOD(BI$3,$I96)=1,IF(PQS!$R96=\"NO\",1,0),IF(MOD(BI$3,Calculations!$J96)=1,1,0)))+Parts!$E$92*IF(Calculations!$K96=0,0,IF(MOD(BI$3,$I96)=1,0,IF(MOD(BI$3,Calculations!$K96)=1,1,0))))*$AU96)*(1+'Country Input'!$C$45)^(Calculations!BI$3-$BH$3)","v":5253.9},{"$f":"(($U96+($O96)*IF(MOD(BJ$3,$I96)=1,1,0)+Parts!$E$91*IF($J96=0,0,IF(MOD(BJ$3,$I96)=1,IF(PQS!$R96=\"NO\",1,0),IF(MOD(BJ$3,Calculations!$J96)=1,1,0)))+Parts!$E$92*IF(Calculations!$K96=0,0,IF(MOD(BJ$3,$I96)=1,0,IF(MOD(BJ$3,Calculations!$K96)=1,1,0))))*$AU96)*(1+'Country Input'!$C$45)^(Calculations!BJ$3-$BH$3)","v":5253.9},{"$f":"(($U96+($O96)*IF(MOD(BK$3,$I96)=1,1,0)+Parts!$E$91*IF($J96=0,0,IF(MOD(BK$3,$I96)=1,IF(PQS!$R96=\"NO\",1,0),IF(MOD(BK$3,Calculations!$J96)=1,1,0)))+Parts!$E$92*IF(Calculations!$K96=0,0,IF(MOD(BK$3,$I96)=1,0,IF(MOD(BK$3,Calculations!$K96)=1,1,0))))*$AU96)*(1+'Country Input'!$C$45)^(Calculations!BK$3-$BH$3)","v":5253.9},{"$f":"(($U96+($O96)*IF(MOD(BL$3,$I96)=1,1,0)+Parts!$E$91*IF($J96=0,0,IF(MOD(BL$3,$I96)=1,IF(PQS!$R96=\"NO\",1,0),IF(MOD(BL$3,Calculations!$J96)=1,1,0)))+Parts!$E$92*IF(Calculations!$K96=0,0,IF(MOD(BL$3,$I96)=1,0,IF(MOD(BL$3,Calculations!$K96)=1,1,0))))*$AU96)*(1+'Country Input'!$C$45)^(Calculations!BL$3-$BH$3)","v":5253.9},{"$f":"(($U96+($O96)*IF(MOD(BM$3,$I96)=1,1,0)+Parts!$E$91*IF($J96=0,0,IF(MOD(BM$3,$I96)=1,IF(PQS!$R96=\"NO\",1,0),IF(MOD(BM$3,Calculations!$J96)=1,1,0)))+Parts!$E$92*IF(Calculations!$K96=0,0,IF(MOD(BM$3,$I96)=1,0,IF(MOD(BM$3,Calculations!$K96)=1,1,0))))*$AU96)*(1+'Country Input'!$C$45)^(Calculations!BM$3-$BH$3)","v":5253.9},{"$f":"(($U96+($O96)*IF(MOD(BN$3,$I96)=1,1,0)+Parts!$E$91*IF($J96=0,0,IF(MOD(BN$3,$I96)=1,IF(PQS!$R96=\"NO\",1,0),IF(MOD(BN$3,Calculations!$J96)=1,1,0)))+Parts!$E$92*IF(Calculations!$K96=0,0,IF(MOD(BN$3,$I96)=1,0,IF(MOD(BN$3,Calculations!$K96)=1,1,0))))*$AU96)*(1+'Country Input'!$C$45)^(Calculations!BN$3-$BH$3)","v":5253.9},{"$f":"(($U96+($O96)*IF(MOD(BO$3,$I96)=1,1,0)+Parts!$E$91*IF($J96=0,0,IF(MOD(BO$3,$I96)=1,IF(PQS!$R96=\"NO\",1,0),IF(MOD(BO$3,Calculations!$J96)=1,1,0)))+Parts!$E$92*IF(Calculations!$K96=0,0,IF(MOD(BO$3,$I96)=1,0,IF(MOD(BO$3,Calculations!$K96)=1,1,0))))*$AU96)*(1+'Country Input'!$C$45)^(Calculations!BO$3-$BH$3)","v":5253.9},{"$f":"(($U96+($O96)*IF(MOD(BP$3,$I96)=1,1,0)+Parts!$E$91*IF($J96=0,0,IF(MOD(BP$3,$I96)=1,IF(PQS!$R96=\"NO\",1,0),IF(MOD(BP$3,Calculations!$J96)=1,1,0)))+Parts!$E$92*IF(Calculations!$K96=0,0,IF(MOD(BP$3,$I96)=1,0,IF(MOD(BP$3,Calculations!$K96)=1,1,0))))*$AU96)*(1+'Country Input'!$C$45)^(Calculations!BP$3-$BH$3)","v":5253.9},{"$f":"(($U96+($O96)*IF(MOD(BQ$3,$I96)=1,1,0)+Parts!$E$91*IF($J96=0,0,IF(MOD(BQ$3,$I96)=1,IF(PQS!$R96=\"NO\",1,0),IF(MOD(BQ$3,Calculations!$J96)=1,1,0)))+Parts!$E$92*IF(Calculations!$K96=0,0,IF(MOD(BQ$3,$I96)=1,0,IF(MOD(BQ$3,Calculations!$K96)=1,1,0))))*$AU96)*(1+'Country Input'!$C$45)^(Calculations!BQ$3-$BH$3)","v":5253.9},{"$f":"(($U96+($O96)*IF(MOD(BR$3,$I96)=1,1,0)+Parts!$E$91*IF($J96=0,0,IF(MOD(BR$3,$I96)=1,IF(PQS!$R96=\"NO\",1,0),IF(MOD(BR$3,Calculations!$J96)=1,1,0)))+Parts!$E$92*IF(Calculations!$K96=0,0,IF(MOD(BR$3,$I96)=1,0,IF(MOD(BR$3,Calculations!$K96)=1,1,0))))*$AU96)*(1+'Country Input'!$C$45)^(Calculations!BR$3-$BH$3)","v":5253.9},{"$f":"(($U96+($O96)*IF(MOD(BS$3,$I96)=1,1,0)+Parts!$E$91*IF($J96=0,0,IF(MOD(BS$3,$I96)=1,IF(PQS!$R96=\"NO\",1,0),IF(MOD(BS$3,Calculations!$J96)=1,1,0)))+Parts!$E$92*IF(Calculations!$K96=0,0,IF(MOD(BS$3,$I96)=1,0,IF(MOD(BS$3,Calculations!$K96)=1,1,0))))*$AU96)*(1+'Country Input'!$C$45)^(Calculations!BS$3-$BH$3)","v":5253.9},{"$f":"(($U96+($O96)*IF(MOD(BT$3,$I96)=1,1,0)+Parts!$E$91*IF($J96=0,0,IF(MOD(BT$3,$I96)=1,IF(PQS!$R96=\"NO\",1,0),IF(MOD(BT$3,Calculations!$J96)=1,1,0)))+Parts!$E$92*IF(Calculations!$K96=0,0,IF(MOD(BT$3,$I96)=1,0,IF(MOD(BT$3,Calculations!$K96)=1,1,0))))*$AU96)*(1+'Country Input'!$C$45)^(Calculations!BT$3-$BH$3)","v":5253.9},{"$f":"(($U96+($O96)*IF(MOD(BU$3,$I96)=1,1,0)+Parts!$E$91*IF($J96=0,0,IF(MOD(BU$3,$I96)=1,IF(PQS!$R96=\"NO\",1,0),IF(MOD(BU$3,Calculations!$J96)=1,1,0)))+Parts!$E$92*IF(Calculations!$K96=0,0,IF(MOD(BU$3,$I96)=1,0,IF(MOD(BU$3,Calculations!$K96)=1,1,0))))*$AU96)*(1+'Country Input'!$C$45)^(Calculations!BU$3-$BH$3)","v":5253.9},{"$f":"(($U96+($O96)*IF(MOD(BV$3,$I96)=1,1,0)+Parts!$E$91*IF($J96=0,0,IF(MOD(BV$3,$I96)=1,IF(PQS!$R96=\"NO\",1,0),IF(MOD(BV$3,Calculations!$J96)=1,1,0)))+Parts!$E$92*IF(Calculations!$K96=0,0,IF(MOD(BV$3,$I96)=1,0,IF(MOD(BV$3,Calculations!$K96)=1,1,0))))*$AU96)*(1+'Country Input'!$C$45)^(Calculations!BV$3-$BH$3)","v":5253.9},{"$f":"(($U96+($O96)*IF(MOD(BW$3,$I96)=1,1,0)+Parts!$E$91*IF($J96=0,0,IF(MOD(BW$3,$I96)=1,IF(PQS!$R96=\"NO\",1,0),IF(MOD(BW$3,Calculations!$J96)=1,1,0)))+Parts!$E$92*IF(Calculations!$K96=0,0,IF(MOD(BW$3,$I96)=1,0,IF(MOD(BW$3,Calculations!$K96)=1,1,0))))*$AU96)*(1+'Country Input'!$C$45)^(Calculations!BW$3-$BH$3)","v":232788.9},{"$f":"(($U96+($O96)*IF(MOD(BX$3,$I96)=1,1,0)+Parts!$E$91*IF($J96=0,0,IF(MOD(BX$3,$I96)=1,IF(PQS!$R96=\"NO\",1,0),IF(MOD(BX$3,Calculations!$J96)=1,1,0)))+Parts!$E$92*IF(Calculations!$K96=0,0,IF(MOD(BX$3,$I96)=1,0,IF(MOD(BX$3,Calculations!$K96)=1,1,0))))*$AU96)*(1+'Country Input'!$C$45)^(Calculations!BX$3-$BH$3)","v":5253.9},{"$f":"(($U96+($O96)*IF(MOD(BY$3,$I96)=1,1,0)+Parts!$E$91*IF($J96=0,0,IF(MOD(BY$3,$I96)=1,IF(PQS!$R96=\"NO\",1,0),IF(MOD(BY$3,Calculations!$J96)=1,1,0)))+Parts!$E$92*IF(Calculations!$K96=0,0,IF(MOD(BY$3,$I96)=1,0,IF(MOD(BY$3,Calculations!$K96)=1,1,0))))*$AU96)*(1+'Country Input'!$C$45)^(Calculations!BY$3-$BH$3)","v":5253.9},{"$f":"(($U96+($O96)*IF(MOD(BZ$3,$I96)=1,1,0)+Parts!$E$91*IF($J96=0,0,IF(MOD(BZ$3,$I96)=1,IF(PQS!$R96=\"NO\",1,0),IF(MOD(BZ$3,Calculations!$J96)=1,1,0)))+Parts!$E$92*IF(Calculations!$K96=0,0,IF(MOD(BZ$3,$I96)=1,0,IF(MOD(BZ$3,Calculations!$K96)=1,1,0))))*$AU96)*(1+'Country Input'!$C$45)^(Calculations!BZ$3-$BH$3)","v":5253.9},{"$f":"(($U96+($O96)*IF(MOD(CA$3,$I96)=1,1,0)+Parts!$E$91*IF($J96=0,0,IF(MOD(CA$3,$I96)=1,IF(PQS!$R96=\"NO\",1,0),IF(MOD(CA$3,Calculations!$J96)=1,1,0)))+Parts!$E$92*IF(Calculations!$K96=0,0,IF(MOD(CA$3,$I96)=1,0,IF(MOD(CA$3,Calculations!$K96)=1,1,0))))*$AU96)*(1+'Country Input'!$C$45)^(Calculations!CA$3-$BH$3)","v":5253.9},null,"Haier WICR10",232788.9,5253.9,5253.9,5253.9,5253.9,5253.9,5253.9,5253.9,5253.9,5253.9,5253.9,5253.9,5253.9,5253.9,5253.9,232788.9,5253.9,5253.9,5253.9,5253.9,{"$f":"SUM(CD96:INDEX($CD96:$CW96,1,'Total Solution Costs'!$B$2))","v":280074.00000000006},null,"Haier WICR10",{"$f":"SUM($BH96:BH96)","v":232788.9},{"$f":"SUM($BH96:BI96)","v":238042.8},{"$f":"SUM($BH96:BJ96)","v":243296.69999999998},{"$f":"SUM($BH96:BK96)","v":248550.59999999998},{"$f":"SUM($BH96:BL96)","v":253804.49999999997},{"$f":"SUM($BH96:BM96)","v":259058.39999999997},{"$f":"SUM($BH96:BN96)","v":264312.3},{"$f":"SUM($BH96:BO96)","v":269566.2},{"$f":"SUM($BH96:BP96)","v":274820.10000000003},{"$f":"SUM($BH96:BQ96)","v":280074.00000000006},{"$f":"SUM($BH96:BR96)","v":285327.90000000008},{"$f":"SUM($BH96:BS96)","v":290581.8000000001},{"$f":"SUM($BH96:BT96)","v":295835.70000000013},{"$f":"SUM($BH96:BU96)","v":301089.60000000015},{"$f":"SUM($BH96:BV96)","v":306343.50000000017},{"$f":"SUM($BH96:BW96)","v":539132.40000000014},{"$f":"SUM($BH96:BX96)","v":544386.30000000016},{"$f":"SUM($BH96:BY96)","v":549640.20000000019},{"$f":"SUM($BH96:BZ96)","v":554894.10000000021},{"$f":"SUM($BH96:CA96)","v":560148.00000000023}]
[{"$f":"PQS!A97","v":"WICR FR"},{"$f":"PQS!B97","v":"E001/WICR30-Haier"},{"$f":"PQS!E97","v":"WICR30"},{"$f":"PQS!F97","v":"Haier"},{"$f":"PQS!D97","v":"Haier WICR30"},{"$f":"VLOOKUP(E97,PQS!$D$5:$K$107,COLUMN(PQS!$I$3)-COLUMN(PQS!$D$3)+1,FALSE)","v":7692.3076923076924},{"$f":"VLOOKUP(E97,PQS!$D$5:$K$107,COLUMN(PQS!$J$3)-COLUMN(PQS!$D$3)+1,FALSE)","v":0},{"$f":"VLOOKUP(E97,PQS!$D$5:$K$107,COLUMN(PQS!$G$3)-COLUMN(PQS!$D$3)+1,FALSE)","v":"No"},{"$f":"HLOOKUP(B97,INDIRECT(\"'\"&A97&\"'!$10:$15\"),ROW('Technology template'!$A$11)-ROW('Technology template'!$A$10)+1,FALSE)","v":15},{"$f":"HLOOKUP(B97,INDIRECT(\"'\"&A97&\"'!$10:$15\"),ROW('Technology template'!$A$12)-ROW('Technology template'!$A$10)+1,FALSE)","v":0},{"$f":"HLOOKUP(B97,INDIRECT(\"'\"&A97&\"'!$10:$15\"),ROW('Technology template'!$A$13)-ROW('Technology template'!$A$10)+1,FALSE)","v":0},{"$f":"VLOOKUP(B97,PQS!$B:$Q,MATCH(PQS!$Q$3,PQS!$B$3:$Q$3,0),FALSE)*(1+'Country Input'!$C$47)+HLOOKUP(B97,INDIRECT(\"'\"&A97&\"'!$10:$15\"),ROW('Technology template'!$A$14)-ROW('Technology template'!$A$10)+1,FALSE)*(1+'Country Input'!$C$47)","v":27531.100000000002},{"$f":"HLOOKUP(B97,INDIRECT(\"'\"&A97&\"'!$10:$80\"),MATCH('Technology template'!$A$27,INDIRECT(\"'\"&A97&\"'!$A$10:$A$80\"),0),FALSE)+'Labor and Maintenance '!$E$17","v":1728},{"$f":"VLOOKUP(B97,PQS!B:T,MATCH(PQS!$T$3,PQS!$B$3:$T$3,0),FALSE)*(1+'Country Input'!$C$47)","v":0},29259.100000000002,1950.6066666666668,{"$f":"VLOOKUP(B97,PQS!$B:$AE,COLUMN(PQS!AD95)-1,FALSE)","v":788.40000000000009},{"$f":"IFERROR(1/HLOOKUP(B97,INDIRECT(\"'\"&A97&\"'!$10:$80\"),MATCH('Technology template'!$A$31,INDIRECT(\"'\"&A97&\"'!$A$10:$A$80\"),0),FALSE)*HLOOKUP(B97,INDIRECT(\"'\"&A97&\"'!$10:$80\"),MATCH('Technology template'!$A$41,INDIRECT(\"'\"&A97&\"'!$A10:$A$80\"),0),FALSE),0)*TechnicianHourlyWage+IF(A97=\"Solar w Battery\",1/'Labor and Maintenance '!$E$53*'Labor and Maintenance '!$D$53,0)+IF(A97=\"LT passive\", 1/'Labor and Maintenance '!$E$81*'Labor and Maintenance '!$D$81,0)","v":32},{"$f":"IFERROR(1/HLOOKUP(B97,INDIRECT(\"'\"&A97&\"'!$10:$80\"),MATCH('Technology template'!$A$34,INDIRECT(\"'\"&A97&\"'!$A$10:$A$80\"),0),FALSE)*(HLOOKUP(B97,INDIRECT(\"'\"&A97&\"'!$10:$80\"),MATCH('Technology template'!$A$44,INDIRECT(\"'\"&A97&\"'!$A10:$A$80\"),0),FALSE)*TechnicianHourlyWage+RemoteTravelCostPerDay),0)+IFERROR(1/HLOOKUP(B97,INDIRECT(\"'\"&A97&\"'!$10:$80\"),MATCH('Technology template'!$A$35,INDIRECT(\"'\"&A97&\"'!$A$10:$A$80\"),0),FALSE)*(HLOOKUP(B97,INDIRECT(\"'\"&A97&\"'!$10:$80\"),MATCH('Technology template'!$A$45,INDIRECT(\"'\"&A97&\"'!$A10:$A$80\"),0),FALSE)*TechnicianHourlyWage+RemoteTravelCostPerDay),0)+IFERROR(1/HLOOKUP(B97,INDIRECT(\"'\"&A97&\"'!$10:$80\"),MATCH('Technology template'!$A$37,INDIRECT(\"'\"&A97&\"'!$A$10:$A$80\"),0),FALSE)*(HLOOKUP(B97,INDIRECT(\"'\"&A97&\"'!$10:$80\"),MATCH('Technology template'!$A$46,INDIRECT(\"'\"&A97&\"'!$A10:$A$80\"),0),FALSE)*TechnicianHourlyWage+'Labor and Maintenance '!$B$8),0)","v":24},12666.000000000002,844.40000000000009,2795.0066666666671,null,"Haier WICR30",3.8036830000000004,1.6465800000000002,5.4502630000000005,null,"Haier WICR30",0.25357886666666668,0.10977200000000001,0.36335086666666672,null,"Haier WICR30",1,29259.100000000002,12666.000000000002,41925.100000000006,null,"Haier WICR30",1,0.25357886666666668,0.10977200000000001,0.36335086666666672,null,"Haier WICR30",{"$f":"IF(F97=0, 'Country Input'!$D$7, ROUNDUP(LitersPerFacility/F97,0)*'Country Input'!$D$7)","v":10},292591,8444,301035,null,"Haier WICR30",{"$f":"ROUNDUP(LitersPerFacility/F97,0)*'Country Input'!$D$7*ROUNDUP('Total Solution Costs'!$B$2/Calculations!I97,0)","v":10},2.5357886666666669,0.10977200000000001,2.6455606666666669,null,null,"Haier WICR30",{"$f":"(($U97+($O97)*IF(MOD(BH$3,$I97)=1,1,0)+Parts!$E$91*IF($J97=0,0,IF(MOD(BH$3,$I97)=1,IF(PQS!$R97=\"NO\",1,0),IF(MOD(BH$3,Calculations!$J97)=1,1,0)))+Parts!$E$92*IF(Calculations!$K97=0,0,IF(MOD(BH$3,$I97)=1,0,IF(MOD(BH$3,Calculations!$K97)=1,1,0))))*$AU97)*(1+'Country Input'!$C$45)^(Calculations!BH$3-$BH$3)+TrainingCost","v":301035.00000000006},{"$f":"(($U97+($O97)*IF(MOD(BI$3,$I97)=1,1,0)+Parts!$E$91*IF($J97=0,0,IF(MOD(BI$3,$I97)=1,IF(PQS!$R97=\"NO\",1,0),IF(MOD(BI$3,Calculations!$J97)=1,1,0)))+Parts!$E$92*IF(Calculations!$K97=0,0,IF(MOD(BI$3,$I97)=1,0,IF(MOD(BI$3,Calculations!$K97)=1,1,0))))*$AU97)*(1+'Country Input'!$C$45)^(Calculations!BI$3-$BH$3)","v":8444},{"$f":"(($U97+($O97)*IF(MOD(BJ$3,$I97)=1,1,0)+Parts!$E$91*IF($J97=0,0,IF(MOD(BJ$3,$I97)=1,IF(PQS!$R97=\"NO\",1,0),IF(MOD(BJ$3,Calculations!$J97)=1,1,0)))+Parts!$E$92*IF(Calculations!$K97=0,0,IF(MOD(BJ$3,$I97)=1,0,IF(MOD(BJ$3,Calculations!$K97)=1,1,0))))*$AU97)*(1+'Country Input'!$C$45)^(Calculations!BJ$3-$BH$3)","v":8444},{"$f":"(($U97+($O97)*IF(MOD(BK$3,$I97)=1,1,0)+Parts!$E$91*IF($J97=0,0,IF(MOD(BK$3,$I97)=1,IF(PQS!$R97=\"NO\",1,0),IF(MOD(BK$3,Calculations!$J97)=1,1,0)))+Parts!$E$92*IF(Calculations!$K97=0,0,IF(MOD(BK$3,$I97)=1,0,IF(MOD(BK$3,Calculations!$K97)=1,1,0))))*$AU97)*(1+'Country Input'!$C$45)^(Calculations!BK$3-$BH$3)","v":8444},{"$f":"(($U97+($O97)*IF(MOD(BL$3,$I97)=1,1,0)+Parts!$E$91*IF($J97=0,0,IF(MOD(BL$3,$I97)=1,IF(PQS!$R97=\"NO\",1,0),IF(MOD(BL$3,Calculations!$J97)=1,1,0)))+Parts!$E$92*IF(Calculations!$K97=0,0,IF(MOD(BL$3,$I97)=1,0,IF(MOD(BL$3,Calculations!$K97)=1,1,0))))*$AU97)*(1+'Country Input'!$C$45)^(Calculations!BL$3-$BH$3)","v":8444},{"$f":"(($U97+($O97)*IF(MOD(BM$3,$I97)=1,1,0)+Parts!$E$91*IF($J97=0,0,IF(MOD(BM$3,$I97)=1,IF(PQS!$R97=\"NO\",1,0),IF(MOD(BM$3,Calculations!$J97)=1,1,0)))+Parts!$E$92*IF(Calculations!$K97=0,0,IF(MOD(BM$3,$I97)=1,0,IF(MOD(BM$3,Calculations!$K97)=1,1,0))))*$AU97)*(1+'Country Input'!$C$45)^(Calculations!BM$3-$BH$3)","v":8444},{"$f":"(($U97+($O97)*IF(MOD(BN$3,$I97)=1,1,0)+Parts!$E$91*IF($J97=0,0,IF(MOD(BN$3,$I97)=1,IF(PQS!$R97=\"NO\",1,0),IF(MOD(BN$3,Calculations!$J97)=1,1,0)))+Parts!$E$92*IF(Calculations!$K97=0,0,IF(MOD(BN$3,$I97)=1,0,IF(MOD(BN$3,Calculations!$K97)=1,1,0))))*$AU97)*(1+'Country Input'!$C$45)^(Calculations!BN$3-$BH$3)","v":8444},{"$f":"(($U97+($O97)*IF(MOD(BO$3,$I97)=1,1,0)+Parts!$E$91*IF($J97=0,0,IF(MOD(BO$3,$I97)=1,IF(PQS!$R97=\"NO\",1,0),IF(MOD(BO$3,Calculations!$J97)=1,1,0)))+Parts!$E$92*IF(Calculations!$K97=0,0,IF(MOD(BO$3,$I97)=1,0,IF(MOD(BO$3,Calculations!$K97)=1,1,0))))*$AU97)*(1+'Country Input'!$C$45)^(Calculations!BO$3-$BH$3)","v":8444},{"$f":"(($U97+($O97)*IF(MOD(BP$3,$I97)=1,1,0)+Parts!$E$91*IF($J97=0,0,IF(MOD(BP$3,$I97)=1,IF(PQS!$R97=\"NO\",1,0),IF(MOD(BP$3,Calculations!$J97)=1,1,0)))+Parts!$E$92*IF(Calculations!$K97=0,0,IF(MOD(BP$3,$I97)=1,0,IF(MOD(BP$3,Calculations!$K97)=1,1,0))))*$AU97)*(1+'Country Input'!$C$45)^(Calculations!BP$3-$BH$3)","v":8444},{"$f":"(($U97+($O97)*IF(MOD(BQ$3,$I97)=1,1,0)+Parts!$E$91*IF($J97=0,0,IF(MOD(BQ$3,$I97)=1,IF(PQS!$R97=\"NO\",1,0),IF(MOD(BQ$3,Calculations!$J97)=1,1,0)))+Parts!$E$92*IF(Calculations!$K97=0,0,IF(MOD(BQ$3,$I97)=1,0,IF(MOD(BQ$3,Calculations!$K97)=1,1,0))))*$AU97)*(1+'Country Input'!$C$45)^(Calculations!BQ$3-$BH$3)","v":8444},{"$f":"(($U97+($O97)*IF(MOD(BR$3,$I97)=1,1,0)+Parts!$E$91*IF($J97=0,0,IF(MOD(BR$3,$I97)=1,IF(PQS!$R97=\"NO\",1,0),IF(MOD(BR$3,Calculations!$J97)=1,1,0)))+Parts!$E$92*IF(Calculations!$K97=0,0,IF(MOD(BR$3,$I97)=1,0,IF(MOD(BR$3,Calculations!$K97)=1,1,0))))*$AU97)*(1+'Country Input'!$C$45)^(Calculations!BR$3-$BH$3)","v":8444},{"$f":"(($U97+($O97)*IF(MOD(BS$3,$I97)=1,1,0)+Parts!$E$91*IF($J97=0,0,IF(MOD(BS$3,$I97)=1,IF(PQS!$R97=\"NO\",1,0),IF(MOD(BS$3,Calculations!$J97)=1,1,0)))+Parts!$E$92*IF(Calculations!$K97=0,0,IF(MOD(BS$3,$I97)=1,0,IF(MOD(BS$3,Calculations!$K97)=1,1,0))))*$AU97)*(1+'Country Input'!$C$45)^(Calculations!BS$3-$BH$3)","v":8444},{"$f":"(($U97+($O97)*IF(MOD(BT$3,$I97)=1,1,0)+Parts!$E$91*IF($J97=0,0,IF(MOD(BT$3,$I97)=1,IF(PQS!$R97=\"NO\",1,0),IF(MOD(BT$3,Calculations!$J97)=1,1,0)))+Parts!$E$92*IF(Calculations!$K97=0,0,IF(MOD(BT$3,$I97)=1,0,IF(MOD(BT$3,Calculations!$K97)=1,1,0))))*$AU97)*(1+'Country Input'!$C$45)^(Calculations!BT$3-$BH$3)","v":8444},{"$f":"(($U97+($O97)*IF(MOD(BU$3,$I97)=1,1,0)+Parts!$E$91*IF($J97=0,0,IF(MOD(BU$3,$I97)=1,IF(PQS!$R97=\"NO\",1,0),IF(MOD(BU$3,Calculations!$J97)=1,1,0)))+Parts!$E$92*IF(Calculations!$K97=0,0,IF(MOD(BU$3,$I97)=1,0,IF(MOD(BU$3,Calculations!$K97)=1,1,0))))*$AU97)*(1+'Country Input'!$C$45)^(Calculations!BU$3-$BH$3)","v":8444},{"$f":"(($U97+($O97)*IF(MOD(BV$3,$I97)=1,1,0)+Parts!$E$91*IF($J97=0,0,IF(MOD(BV$3,$I97)=1,IF(PQS!$R97=\"NO\",1,0),IF(MOD(BV$3,Calculations!$J97)=1,1,0)))+Parts!$E$92*IF(Calculations!$K97=0,0,IF(MOD(BV$3,$I97)=1,0,IF(MOD(BV$3,Calculations!$K97)=1,1,0))))*$AU97)*(1+'Country Input'!$C$45)^(Calculations!BV$3-$BH$3)","v":8444},{"$f":"(($U97+($O97)*IF(MOD(BW$3,$I97)=1,1,0)+Parts!$E$91*IF($J97=0,0,IF(MOD(BW$3,$I97)=1,IF(PQS!$R97=\"NO\",1,0),IF(MOD(BW$3,Calculations!$J97)=1,1,0)))+Parts!$E$92*IF(Calculations!$K97=0,0,IF(MOD(BW$3,$I97)=1,0,IF(MOD(BW$3,Calculations!$K97)=1,1,0))))*$AU97)*(1+'Country Input'!$C$45)^(Calculations!BW$3-$BH$3)","v":301035.00000000006},{"$f":"(($U97+($O97)*IF(MOD(BX$3,$I97)=1,1,0)+Parts!$E$91*IF($J97=0,0,IF(MOD(BX$3,$I97)=1,IF(PQS!$R97=\"NO\",1,0),IF(MOD(BX$3,Calculations!$J97)=1,1,0)))+Parts!$E$92*IF(Calculations!$K97=0,0,IF(MOD(BX$3,$I97)=1,0,IF(MOD(BX$3,Calculations!$K97)=1,1,0))))*$AU97)*(1+'Country Input'!$C$45)^(Calculations!BX$3-$BH$3)","v":8444},{"$f":"(($U97+($O97)*IF(MOD(BY$3,$I97)=1,1,0)+Parts!$E$91*IF($J97=0,0,IF(MOD(BY$3,$I97)=1,IF(PQS!$R97=\"NO\",1,0),IF(MOD(BY$3,Calculations!$J97)=1,1,0)))+Parts!$E$92*IF(Calculations!$K97=0,0,IF(MOD(BY$3,$I97)=1,0,IF(MOD(BY$3,Calculations!$K97)=1,1,0))))*$AU97)*(1+'Country Input'!$C$45)^(Calculations!BY$3-$BH$3)","v":8444},{"$f":"(($U97+($O97)*IF(MOD(BZ$3,$I97)=1,1,0)+Parts!$E$91*IF($J97=0,0,IF(MOD(BZ$3,$I97)=1,IF(PQS!$R97=\"NO\",1,0),IF(MOD(BZ$3,Calculations!$J97)=1,1,0)))+Parts!$E$92*IF(Calculations!$K97=0,0,IF(MOD(BZ$3,$I97)=1,0,IF(MOD(BZ$3,Calculations!$K97)=1,1,0))))*$AU97)*(1+'Country Input'!$C$45)^(Calculations!BZ$3-$BH$3)","v":8444},{"$f":"(($U97+($O97)*IF(MOD(CA$3,$I97)=1,1,0)+Parts!$E$91*IF($J97=0,0,IF(MOD(CA$3,$I97)=1,IF(PQS!$R97=\"NO\",1,0),IF(MOD(CA$3,Calculations!$J97)=1,1,0)))+Parts!$E$92*IF(Calculations!$K97=0,0,IF(MOD(CA$3,$I97)=1,0,IF(MOD(CA$3,Calculations!$K97)=1,1,0))))*$AU97)*(1+'Country Input'!$C$45)^(Calculations!CA$3-$BH$3)","v":8444},null,"Haier WICR30",301035.00000000006,8444,8444,8444,8444,8444,8444,8444,8444,8444,8444,8444,8444,8444,8444,301035.00000000006,8444,8444,8444,8444,{"$f":"SUM(CD97:INDEX($CD97:$CW97,1,'Total Solution Costs'!$B$2))","v":377031.00000000006},null,"Haier WICR30",{"$f":"SUM($BH97:BH97)","v":301035.00000000006},{"$f":"SUM($BH97:BI97)","v":309479.00000000006},{"$f":"SUM($BH97:BJ97)","v":317923.00000000006},{"$f":"SUM($BH97:BK97)","v":326367.00000000006},{"$f":"SUM($BH97:BL97)","v":334811.00000000006},{"$f":"SUM($BH97:BM97)","v":343255.00000000006},{"$f":"SUM($BH97:BN97)","v":351699.00000000006},{"$f":"SUM($BH97:BO97)","v":360143.00000000006},{"$f":"SUM($BH97:BP97)","v":368587.00000000006},{"$f":"SUM($BH97:BQ97)","v":377031.00000000006},{"$f":"SUM($BH97:BR97)","v":385475.00000000006},{"$f":"SUM($BH97:BS97)","v":393919.00000000006},{"$f":"SUM($BH97:BT97)","v":402363.00000000006},{"$f":"SUM($BH97:BU97)","v":410807.00000000006},{"$f":"SUM($BH97:BV97)","v":419251.00000000006},{"$f":"SUM($BH97:BW97)","v":720286.00000000012},{"$f":"SUM($BH97:BX97)","v":728730.00000000012},{"$f":"SUM($BH97:BY97)","v":737174.00000000012},{"$f":"SUM($BH97:BZ97)","v":745618.00000000012},{"$f":"SUM($BH97:CA97)","v":754062.00000000012}]
[{"$f":"PQS!A98","v":"WICR FR"},{"$f":"PQS!B98","v":"E001/WICR40-Haier"},{"$f":"PQS!E98","v":"WICR40"},{"$f":"PQS!F98","v":"Haier"},{"$f":"PQS!D98","v":"Haier WICR40"},{"$f":"VLOOKUP(E98,PQS!$D$5:$K$107,COLUMN(PQS!$I$3)-COLUMN(PQS!$D$3)+1,FALSE)","v":9523.8095238095229},{"$f":"VLOOKUP(E98,PQS!$D$5:$K$107,COLUMN(PQS!$J$3)-COLUMN(PQS!$D$3)+1,FALSE)","v":0},{"$f":"VLOOKUP(E98,PQS!$D$5:$K$107,COLUMN(PQS!$G$3)-COLUMN(PQS!$D$3)+1,FALSE)","v":"No"},{"$f":"HLOOKUP(B98,INDIRECT(\"'\"&A98&\"'!$10:$15\"),ROW('Technology template'!$A$11)-ROW('Technology template'!$A$10)+1,FALSE)","v":15},{"$f":"HLOOKUP(B98,INDIRECT(\"'\"&A98&\"'!$10:$15\"),ROW('Technology template'!$A$12)-ROW('Technology template'!$A$10)+1,FALSE)","v":0},{"$f":"HLOOKUP(B98,INDIRECT(\"'\"&A98&\"'!$10:$15\"),ROW('Technology template'!$A$13)-ROW('Technology template'!$A$10)+1,FALSE)","v":0},{"$f":"VLOOKUP(B98,PQS!$B:$Q,MATCH(PQS!$Q$3,PQS!$B$3:$Q$3,0),FALSE)*(1+'Country Input'!$C$47)+HLOOKUP(B98,INDIRECT(\"'\"&A98&\"'!$10:$15\"),ROW('Technology template'!$A$14)-ROW('Technology template'!$A$10)+1,FALSE)*(1+'Country Input'!$C$47)","v":23026.400000000001},{"$f":"HLOOKUP(B98,INDIRECT(\"'\"&A98&\"'!$10:$80\"),MATCH('Technology template'!$A$27,INDIRECT(\"'\"&A98&\"'!$A$10:$A$80\"),0),FALSE)+'Labor and Maintenance '!$E$17","v":1728},{"$f":"VLOOKUP(B98,PQS!B:T,MATCH(PQS!$T$3,PQS!$B$3:$T$3,0),FALSE)*(1+'Country Input'!$C$47)","v":0},24754.400000000001,1650.2933333333335,{"$f":"VLOOKUP(B98,PQS!$B:$AE,COLUMN(PQS!AD96)-1,FALSE)","v":1182.6000000000001},{"$f":"IFERROR(1/HLOOKUP(B98,INDIRECT(\"'\"&A98&\"'!$10:$80\"),MATCH('Technology template'!$A$31,INDIRECT(\"'\"&A98&\"'!$A$10:$A$80\"),0),FALSE)*HLOOKUP(B98,INDIRECT(\"'\"&A98&\"'!$10:$80\"),MATCH('Technology template'!$A$41,INDIRECT(\"'\"&A98&\"'!$A10:$A$80\"),0),FALSE),0)*TechnicianHourlyWage+IF(A98=\"Solar w Battery\",1/'Labor and Maintenance '!$E$53*'Labor and Maintenance '!$D$53,0)+IF(A98=\"LT passive\", 1/'Labor and Maintenance '!$E$81*'Labor and Maintenance '!$D$81,0)","v":32},{"$f":"IFERROR(1/HLOOKUP(B98,INDIRECT(\"'\"&A98&\"'!$10:$80\"),MATCH('Technology template'!$A$34,INDIRECT(\"'\"&A98&\"'!$A$10:$A$80\"),0),FALSE)*(HLOOKUP(B98,INDIRECT(\"'\"&A98&\"'!$10:$80\"),MATCH('Technology template'!$A$44,INDIRECT(\"'\"&A98&\"'!$A10:$A$80\"),0),FALSE)*TechnicianHourlyWage+RemoteTravelCostPerDay),0)+IFERROR(1/HLOOKUP(B98,INDIRECT(\"'\"&A98&\"'!$10:$80\"),MATCH('Technology template'!$A$35,INDIRECT(\"'\"&A98&\"'!$A$10:$A$80\"),0),FALSE)*(HLOOKUP(B98,INDIRECT(\"'\"&A98&\"'!$10:$80\"),MATCH('Technology template'!$A$45,INDIRECT(\"'\"&A98&\"'!$A10:$A$80\"),0),FALSE)*TechnicianHourlyWage+RemoteTravelCostPerDay),0)+IFERROR(1/HLOOKUP(B98,INDIRECT(\"'\"&A98&\"'!$10:$80\"),MATCH('Technology template'!$A$37,INDIRECT(\"'\"&A98&\"'!$A$10:$A$80\"),0),FALSE)*(HLOOKUP(B98,INDIRECT(\"'\"&A98&\"'!$10:$80\"),MATCH('Technology template'!$A$46,INDIRECT(\"'\"&A98&\"'!$A10:$A$80\"),0),FALSE)*TechnicianHourlyWage+'Labor and Maintenance '!$B$8),0)","v":24},18579.000000000004,1238.6000000000001,2888.8933333333334,null,{"$f":"E98","v":"Haier WICR40"},2.5992120000000005,1.9507950000000005,4.5500070000000008,null,"Haier WICR40",0.17328080000000004,0.13005300000000003,0.30333380000000004,null,"Haier WICR40",1,24754.400000000001,18579.000000000004,43333.400000000009,null,"Haier WICR40",1,0.17328080000000004,0.13005300000000003,0.3033338000000001,null,"Haier WICR40",{"$f":"IF(F98=0, 'Country Input'!$D$7, ROUNDUP(LitersPerFacility/F98,0)*'Country Input'!$D$7)","v":10},247544,12386.000000000002,259930,null,"Haier WICR40",{"$f":"ROUNDUP(LitersPerFacility/F98,0)*'Country Input'!$D$7*ROUNDUP('Total Solution Costs'!$B$2/Calculations!I98,0)","v":10},1.7328080000000003,0.13005300000000003,{"$f":"BB98+BC98","v":1.8628610000000003},null,null,"Haier WICR40",{"$f":"(($U98+($O98)*IF(MOD(BH$3,$I98)=1,1,0)+Parts!$E$91*IF($J98=0,0,IF(MOD(BH$3,$I98)=1,IF(PQS!$R98=\"NO\",1,0),IF(MOD(BH$3,Calculations!$J98)=1,1,0)))+Parts!$E$92*IF(Calculations!$K98=0,0,IF(MOD(BH$3,$I98)=1,0,IF(MOD(BH$3,Calculations!$K98)=1,1,0))))*$AU98)*(1+'Country Input'!$C$45)^(Calculations!BH$3-$BH$3)+TrainingCost","v":259930},{"$f":"(($U98+($O98)*IF(MOD(BI$3,$I98)=1,1,0)+Parts!$E$91*IF($J98=0,0,IF(MOD(BI$3,$I98)=1,IF(PQS!$R98=\"NO\",1,0),IF(MOD(BI$3,Calculations!$J98)=1,1,0)))+Parts!$E$92*IF(Calculations!$K98=0,0,IF(MOD(BI$3,$I98)=1,0,IF(MOD(BI$3,Calculations!$K98)=1,1,0))))*$AU98)*(1+'Country Input'!$C$45)^(Calculations!BI$3-$BH$3)","v":12386.000000000002},{"$f":"(($U98+($O98)*IF(MOD(BJ$3,$I98)=1,1,0)+Parts!$E$91*IF($J98=0,0,IF(MOD(BJ$3,$I98)=1,IF(PQS!$R98=\"NO\",1,0),IF(MOD(BJ$3,Calculations!$J98)=1,1,0)))+Parts!$E$92*IF(Calculations!$K98=0,0,IF(MOD(BJ$3,$I98)=1,0,IF(MOD(BJ$3,Calculations!$K98)=1,1,0))))*$AU98)*(1+'Country Input'!$C$45)^(Calculations!BJ$3-$BH$3)","v":12386.000000000002},{"$f":"(($U98+($O98)*IF(MOD(BK$3,$I98)=1,1,0)+Parts!$E$91*IF($J98=0,0,IF(MOD(BK$3,$I98)=1,IF(PQS!$R98=\"NO\",1,0),IF(MOD(BK$3,Calculations!$J98)=1,1,0)))+Parts!$E$92*IF(Calculations!$K98=0,0,IF(MOD(BK$3,$I98)=1,0,IF(MOD(BK$3,Calculations!$K98)=1,1,0))))*$AU98)*(1+'Country Input'!$C$45)^(Calculations!BK$3-$BH$3)","v":12386.000000000002},{"$f":"(($U98+($O98)*IF(MOD(BL$3,$I98)=1,1,0)+Parts!$E$91*IF($J98=0,0,IF(MOD(BL$3,$I98)=1,IF(PQS!$R98=\"NO\",1,0),IF(MOD(BL$3,Calculations!$J98)=1,1,0)))+Parts!$E$92*IF(Calculations!$K98=0,0,IF(MOD(BL$3,$I98)=1,0,IF(MOD(BL$3,Calculations!$K98)=1,1,0))))*$AU98)*(1+'Country Input'!$C$45)^(Calculations!BL$3-$BH$3)","v":12386.000000000002},{"$f":"(($U98+($O98)*IF(MOD(BM$3,$I98)=1,1,0)+Parts!$E$91*IF($J98=0,0,IF(MOD(BM$3,$I98)=1,IF(PQS!$R98=\"NO\",1,0),IF(MOD(BM$3,Calculations!$J98)=1,1,0)))+Parts!$E$92*IF(Calculations!$K98=0,0,IF(MOD(BM$3,$I98)=1,0,IF(MOD(BM$3,Calculations!$K98)=1,1,0))))*$AU98)*(1+'Country Input'!$C$45)^(Calculations!BM$3-$BH$3)","v":12386.000000000002},{"$f":"(($U98+($O98)*IF(MOD(BN$3,$I98)=1,1,0)+Parts!$E$91*IF($J98=0,0,IF(MOD(BN$3,$I98)=1,IF(PQS!$R98=\"NO\",1,0),IF(MOD(BN$3,Calculations!$J98)=1,1,0)))+Parts!$E$92*IF(Calculations!$K98=0,0,IF(MOD(BN$3,$I98)=1,0,IF(MOD(BN$3,Calculations!$K98)=1,1,0))))*$AU98)*(1+'Country Input'!$C$45)^(Calculations!BN$3-$BH$3)","v":12386.000000000002},{"$f":"(($U98+($O98)*IF(MOD(BO$3,$I98)=1,1,0)+Parts!$E$91*IF($J98=0,0,IF(MOD(BO$3,$I98)=1,IF(PQS!$R98=\"NO\",1,0),IF(MOD(BO$3,Calculations!$J98)=1,1,0)))+Parts!$E$92*IF(Calculations!$K98=0,0,IF(MOD(BO$3,$I98)=1,0,IF(MOD(BO$3,Calculations!$K98)=1,1,0))))*$AU98)*(1+'Country Input'!$C$45)^(Calculations!BO$3-$BH$3)","v":12386.000000000002},{"$f":"(($U98+($O98)*IF(MOD(BP$3,$I98)=1,1,0)+Parts!$E$91*IF($J98=0,0,IF(MOD(BP$3,$I98)=1,IF(PQS!$R98=\"NO\",1,0),IF(MOD(BP$3,Calculations!$J98)=1,1,0)))+Parts!$E$92*IF(Calculations!$K98=0,0,IF(MOD(BP$3,$I98)=1,0,IF(MOD(BP$3,Calculations!$K98)=1,1,0))))*$AU98)*(1+'Country Input'!$C$45)^(Calculations!BP$3-$BH$3)","v":12386.000000000002},{"$f":"(($U98+($O98)*IF(MOD(BQ$3,$I98)=1,1,0)+Parts!$E$91*IF($J98=0,0,IF(MOD(BQ$3,$I98)=1,IF(PQS!$R98=\"NO\",1,0),IF(MOD(BQ$3,Calculations!$J98)=1,1,0)))+Parts!$E$92*IF(Calculations!$K98=0,0,IF(MOD(BQ$3,$I98)=1,0,IF(MOD(BQ$3,Calculations!$K98)=1,1,0))))*$AU98)*(1+'Country Input'!$C$45)^(Calculations!BQ$3-$BH$3)","v":12386.000000000002},{"$f":"(($U98+($O98)*IF(MOD(BR$3,$I98)=1,1,0)+Parts!$E$91*IF($J98=0,0,IF(MOD(BR$3,$I98)=1,IF(PQS!$R98=\"NO\",1,0),IF(MOD(BR$3,Calculations!$J98)=1,1,0)))+Parts!$E$92*IF(Calculations!$K98=0,0,IF(MOD(BR$3,$I98)=1,0,IF(MOD(BR$3,Calculations!$K98)=1,1,0))))*$AU98)*(1+'Country Input'!$C$45)^(Calculations!BR$3-$BH$3)","v":12386.000000000002},{"$f":"(($U98+($O98)*IF(MOD(BS$3,$I98)=1,1,0)+Parts!$E$91*IF($J98=0,0,IF(MOD(BS$3,$I98)=1,IF(PQS!$R98=\"NO\",1,0),IF(MOD(BS$3,Calculations!$J98)=1,1,0)))+Parts!$E$92*IF(Calculations!$K98=0,0,IF(MOD(BS$3,$I98)=1,0,IF(MOD(BS$3,Calculations!$K98)=1,1,0))))*$AU98)*(1+'Country Input'!$C$45)^(Calculations!BS$3-$BH$3)","v":12386.000000000002},{"$f":"(($U98+($O98)*IF(MOD(BT$3,$I98)=1,1,0)+Parts!$E$91*IF($J98=0,0,IF(MOD(BT$3,$I98)=1,IF(PQS!$R98=\"NO\",1,0),IF(MOD(BT$3,Calculations!$J98)=1,1,0)))+Parts!$E$92*IF(Calculations!$K98=0,0,IF(MOD(BT$3,$I98)=1,0,IF(MOD(BT$3,Calculations!$K98)=1,1,0))))*$AU98)*(1+'Country Input'!$C$45)^(Calculations!BT$3-$BH$3)","v":12386.000000000002},{"$f":"(($U98+($O98)*IF(MOD(BU$3,$I98)=1,1,0)+Parts!$E$91*IF($J98=0,0,IF(MOD(BU$3,$I98)=1,IF(PQS!$R98=\"NO\",1,0),IF(MOD(BU$3,Calculations!$J98)=1,1,0)))+Parts!$E$92*IF(Calculations!$K98=0,0,IF(MOD(BU$3,$I98)=1,0,IF(MOD(BU$3,Calculations!$K98)=1,1,0))))*$AU98)*(1+'Country Input'!$C$45)^(Calculations!BU$3-$BH$3)","v":12386.000000000002},{"$f":"(($U98+($O98)*IF(MOD(BV$3,$I98)=1,1,0)+Parts!$E$91*IF($J98=0,0,IF(MOD(BV$3,$I98)=1,IF(PQS!$R98=\"NO\",1,0),IF(MOD(BV$3,Calculations!$J98)=1,1,0)))+Parts!$E$92*IF(Calculations!$K98=0,0,IF(MOD(BV$3,$I98)=1,0,IF(MOD(BV$3,Calculations!$K98)=1,1,0))))*$AU98)*(1+'Country Input'!$C$45)^(Calculations!BV$3-$BH$3)","v":12386.000000000002},{"$f":"(($U98+($O98)*IF(MOD(BW$3,$I98)=1,1,0)+Parts!$E$91*IF($J98=0,0,IF(MOD(BW$3,$I98)=1,IF(PQS!$R98=\"NO\",1,0),IF(MOD(BW$3,Calculations!$J98)=1,1,0)))+Parts!$E$92*IF(Calculations!$K98=0,0,IF(MOD(BW$3,$I98)=1,0,IF(MOD(BW$3,Calculations!$K98)=1,1,0))))*$AU98)*(1+'Country Input'!$C$45)^(Calculations!BW$3-$BH$3)","v":259930},{"$f":"(($U98+($O98)*IF(MOD(BX$3,$I98)=1,1,0)+Parts!$E$91*IF($J98=0,0,IF(MOD(BX$3,$I98)=1,IF(PQS!$R98=\"NO\",1,0),IF(MOD(BX$3,Calculations!$J98)=1,1,0)))+Parts!$E$92*IF(Calculations!$K98=0,0,IF(MOD(BX$3,$I98)=1,0,IF(MOD(BX$3,Calculations!$K98)=1,1,0))))*$AU98)*(1+'Country Input'!$C$45)^(Calculations!BX$3-$BH$3)","v":12386.000000000002},{"$f":"(($U98+($O98)*IF(MOD(BY$3,$I98)=1,1,0)+Parts!$E$91*IF($J98=0,0,IF(MOD(BY$3,$I98)=1,IF(PQS!$R98=\"NO\",1,0),IF(MOD(BY$3,Calculations!$J98)=1,1,0)))+Parts!$E$92*IF(Calculations!$K98=0,0,IF(MOD(BY$3,$I98)=1,0,IF(MOD(BY$3,Calculations!$K98)=1,1,0))))*$AU98)*(1+'Country Input'!$C$45)^(Calculations!BY$3-$BH$3)","v":12386.000000000002},{"$f":"(($U98+($O98)*IF(MOD(BZ$3,$I98)=1,1,0)+Parts!$E$91*IF($J98=0,0,IF(MOD(BZ$3,$I98)=1,IF(PQS!$R98=\"NO\",1,0),IF(MOD(BZ$3,Calculations!$J98)=1,1,0)))+Parts!$E$92*IF(Calculations!$K98=0,0,IF(MOD(BZ$3,$I98)=1,0,IF(MOD(BZ$3,Calculations!$K98)=1,1,0))))*$AU98)*(1+'Country Input'!$C$45)^(Calculations!BZ$3-$BH$3)","v":12386.000000000002},{"$f":"(($U98+($O98)*IF(MOD(CA$3,$I98)=1,1,0)+Parts!$E$91*IF($J98=0,0,IF(MOD(CA$3,$I98)=1,IF(PQS!$R98=\"NO\",1,0),IF(MOD(CA$3,Calculations!$J98)=1,1,0)))+Parts!$E$92*IF(Calculations!$K98=0,0,IF(MOD(CA$3,$I98)=1,0,IF(MOD(CA$3,Calculations!$K98)=1,1,0))))*$AU98)*(1+'Country Input'!$C$45)^(Calculations!CA$3-$BH$3)","v":12386.000000000002},null,"Haier WICR40",{"$f":"BH98/((1+DiscountRate)^(COLUMN(CD98)-COLUMN($CD98)))","v":259930},{"$f":"BI98/((1+DiscountRate)^(COLUMN(CE98)-COLUMN($CD98)))","v":12386.000000000002},{"$f":"BJ98/((1+DiscountRate)^(COLUMN(CF98)-COLUMN($CD98)))","v":12386.000000000002},{"$f":"BK98/((1+DiscountRate)^(COLUMN(CG98)-COLUMN($CD98)))","v":12386.000000000002},{"$f":"BL98/((1+DiscountRate)^(COLUMN(CH98)-COLUMN($CD98)))","v":12386.000000000002},{"$f":"BM98/((1+DiscountRate)^(COLUMN(CI98)-COLUMN($CD98)))","v":12386.000000000002},{"$f":"BN98/((1+DiscountRate)^(COLUMN(CJ98)-COLUMN($CD98)))","v":12386.000000000002},{"$f":"BO98/((1+DiscountRate)^(COLUMN(CK98)-COLUMN($CD98)))","v":12386.000000000002},{"$f":"BP98/((1+DiscountRate)^(COLUMN(CL98)-COLUMN($CD98)))","v":12386.000000000002},{"$f":"BQ98/((1+DiscountRate)^(COLUMN(CM98)-COLUMN($CD98)))","v":12386.000000000002},{"$f":"BR98/((1+DiscountRate)^(COLUMN(CN98)-COLUMN($CD98)))","v":12386.000000000002},{"$f":"BS98/((1+DiscountRate)^(COLUMN(CO98)-COLUMN($CD98)))","v":12386.000000000002},{"$f":"BT98/((1+DiscountRate)^(COLUMN(CP98)-COLUMN($CD98)))","v":12386.000000000002},{"$f":"BU98/((1+DiscountRate)^(COLUMN(CQ98)-COLUMN($CD98)))","v":12386.000000000002},{"$f":"BV98/((1+DiscountRate)^(COLUMN(CR98)-COLUMN($CD98)))","v":12386.000000000002},{"$f":"BW98/((1+DiscountRate)^(COLUMN(CS98)-COLUMN($CD98)))","v":259930},{"$f":"BX98/((1+DiscountRate)^(COLUMN(CT98)-COLUMN($CD98)))","v":12386.000000000002},{"$f":"BY98/((1+DiscountRate)^(COLUMN(CU98)-COLUMN($CD98)))","v":12386.000000000002},{"$f":"BZ98/((1+DiscountRate)^(COLUMN(CV98)-COLUMN($CD98)))","v":12386.000000000002},{"$f":"CA98/((1+DiscountRate)^(COLUMN(CW98)-COLUMN($CD98)))","v":12386.000000000002},{"$f":"SUM(CD98:INDEX($CD98:$CW98,1,'Total Solution Costs'!$B$2))","v":371404},null,"Haier WICR40",{"$f":"SUM($BH98:BH98)","v":259930},{"$f":"SUM($BH98:BI98)","v":272316},{"$f":"SUM($BH98:BJ98)","v":284702},{"$f":"SUM($BH98:BK98)","v":297088},{"$f":"SUM($BH98:BL98)","v":309474},{"$f":"SUM($BH98:BM98)","v":321860},{"$f":"SUM($BH98:BN98)","v":334246},{"$f":"SUM($BH98:BO98)","v":346632},{"$f":"SUM($BH98:BP98)","v":359018},{"$f":"SUM($BH98:BQ98)","v":371404},{"$f":"SUM($BH98:BR98)","v":383790},{"$f":"SUM($BH98:BS98)","v":396176},{"$f":"SUM($BH98:BT98)","v":408562},{"$f":"SUM($BH98:BU98)","v":420948},{"$f":"SUM($BH98:BV98)","v":433334},{"$f":"SUM($BH98:BW98)","v":693264},{"$f":"SUM($BH98:BX98)","v":705650},{"$f":"SUM($BH98:BY98)","v":718036},{"$f":"SUM($BH98:BZ98)","v":730422},{"$f":"SUM($BH98:CA98)","v":742808}]
[{"$f":"PQS!A99","v":"WICR FR"},{"$f":"PQS!B99","v":"E001/WIFR20-Zhendre"},{"$f":"PQS!E99","v":"WIFR20"},{"$f":"PQS!F99","v":"Zhendre"},{"$f":"PQS!D99","v":"Zhendre WIFR20"},{"$f":"VLOOKUP(E99,PQS!$D$5:$K$107,COLUMN(PQS!$I$3)-COLUMN(PQS!$D$3)+1,FALSE)","v":5555.5555555555557},{"$f":"VLOOKUP(E99,PQS!$D$5:$K$107,COLUMN(PQS!$J$3)-COLUMN(PQS!$D$3)+1,FALSE)","v":20000},{"$f":"VLOOKUP(E99,PQS!$D$5:$K$107,COLUMN(PQS!$G$3)-COLUMN(PQS!$D$3)+1,FALSE)","v":"No"},{"$f":"HLOOKUP(B99,INDIRECT(\"'\"&A99&\"'!$10:$15\"),ROW('Technology template'!$A$11)-ROW('Technology template'!$A$10)+1,FALSE)","v":15},{"$f":"HLOOKUP(B99,INDIRECT(\"'\"&A99&\"'!$10:$15\"),ROW('Technology template'!$A$12)-ROW('Technology template'!$A$10)+1,FALSE)","v":0},{"$f":"HLOOKUP(B99,INDIRECT(\"'\"&A99&\"'!$10:$15\"),ROW('Technology template'!$A$13)-ROW('Technology template'!$A$10)+1,FALSE)","v":0},{"$f":"VLOOKUP(B99,PQS!$B:$Q,MATCH(PQS!$Q$3,PQS!$B$3:$Q$3,0),FALSE)*(1+'Country Input'!$C$47)+HLOOKUP(B99,INDIRECT(\"'\"&A99&\"'!$10:$15\"),ROW('Technology template'!$A$14)-ROW('Technology template'!$A$10)+1,FALSE)*(1+'Country Input'!$C$47)","v":20885.330000000002},{"$f":"HLOOKUP(B99,INDIRECT(\"'\"&A99&\"'!$10:$80\"),MATCH('Technology template'!$A$27,INDIRECT(\"'\"&A99&\"'!$A$10:$A$80\"),0),FALSE)+'Labor and Maintenance '!$E$17","v":1728},{"$f":"VLOOKUP(B99,PQS!B:T,MATCH(PQS!$T$3,PQS!$B$3:$T$3,0),FALSE)*(1+'Country Input'!$C$47)","v":0},22613.33,{"$f":"O99/I99","v":1507.5553333333335},{"$f":"VLOOKUP(B99,PQS!$B:$AE,COLUMN(PQS!AD97)-1,FALSE)","v":4015},{"$f":"IFERROR(1/HLOOKUP(B99,INDIRECT(\"'\"&A99&\"'!$10:$80\"),MATCH('Technology template'!$A$31,INDIRECT(\"'\"&A99&\"'!$A$10:$A$80\"),0),FALSE)*HLOOKUP(B99,INDIRECT(\"'\"&A99&\"'!$10:$80\"),MATCH('Technology template'!$A$41,INDIRECT(\"'\"&A99&\"'!$A10:$A$80\"),0),FALSE),0)*TechnicianHourlyWage+IF(A99=\"Solar w Battery\",1/'Labor and Maintenance '!$E$53*'Labor and Maintenance '!$D$53,0)+IF(A99=\"LT passive\", 1/'Labor and Maintenance '!$E$81*'Labor and Maintenance '!$D$81,0)","v":32},{"$f":"IFERROR(1/HLOOKUP(B99,INDIRECT(\"'\"&A99&\"'!$10:$80\"),MATCH('Technology template'!$A$34,INDIRECT(\"'\"&A99&\"'!$A$10:$A$80\"),0),FALSE)*(HLOOKUP(B99,INDIRECT(\"'\"&A99&\"'!$10:$80\"),MATCH('Technology template'!$A$44,INDIRECT(\"'\"&A99&\"'!$A10:$A$80\"),0),FALSE)*TechnicianHourlyWage+RemoteTravelCostPerDay),0)+IFERROR(1/HLOOKUP(B99,INDIRECT(\"'\"&A99&\"'!$10:$80\"),MATCH('Technology template'!$A$35,INDIRECT(\"'\"&A99&\"'!$A$10:$A$80\"),0),FALSE)*(HLOOKUP(B99,INDIRECT(\"'\"&A99&\"'!$10:$80\"),MATCH('Technology template'!$A$45,INDIRECT(\"'\"&A99&\"'!$A10:$A$80\"),0),FALSE)*TechnicianHourlyWage+RemoteTravelCostPerDay),0)+IFERROR(1/HLOOKUP(B99,INDIRECT(\"'\"&A99&\"'!$10:$80\"),MATCH('Technology template'!$A$37,INDIRECT(\"'\"&A99&\"'!$A$10:$A$80\"),0),FALSE)*(HLOOKUP(B99,INDIRECT(\"'\"&A99&\"'!$10:$80\"),MATCH('Technology template'!$A$46,INDIRECT(\"'\"&A99&\"'!$A10:$A$80\"),0),FALSE)*TechnicianHourlyWage+'Labor and Maintenance '!$B$8),0)","v":24},{"$f":"SUM(Q99:S99)*I99","v":61065},{"$f":"SUM(Q99:S99)","v":4071},{"$f":"P99+U99","v":5578.5553333333337},null,"Zhendre WIFR20",4.0703994000000003,10.9917,15.062099400000001,null,"Zhendre WIFR20",0.27135996000000001,0.73277999999999999,1.0041399600000001,null,"Zhendre WIFR20",1,22613.33,61065,83678.33,null,"Zhendre WIFR20",1,0.27135996000000001,0.73277999999999999,1.0041399600000001,null,"Zhendre WIFR20",{"$f":"IF(F99=0, 'Country Input'!$D$7, ROUNDUP(LitersPerFacility/F99,0)*'Country Input'!$D$7)","v":10},226133.30000000002,40710,266843.30000000005,null,"Zhendre WIFR20",{"$f":"ROUNDUP(LitersPerFacility/F99,0)*'Country Input'!$D$7*ROUNDUP('Total Solution Costs'!$B$2/Calculations!I99,0)","v":10},2.7135996000000002,0.73277999999999999,3.4463796000000002,null,null,"Zhendre WIFR20",{"$f":"(($U99+($O99)*IF(MOD(BH$3,$I99)=1,1,0)+Parts!$E$91*IF($J99=0,0,IF(MOD(BH$3,$I99)=1,IF(PQS!$R99=\"NO\",1,0),IF(MOD(BH$3,Calculations!$J99)=1,1,0)))+Parts!$E$92*IF(Calculations!$K99=0,0,IF(MOD(BH$3,$I99)=1,0,IF(MOD(BH$3,Calculations!$K99)=1,1,0))))*$AU99)*(1+'Country Input'!$C$45)^(Calculations!BH$3-$BH$3)+TrainingCost","v":266843.30000000005},{"$f":"(($U99+($O99)*IF(MOD(BI$3,$I99)=1,1,0)+Parts!$E$91*IF($J99=0,0,IF(MOD(BI$3,$I99)=1,IF(PQS!$R99=\"NO\",1,0),IF(MOD(BI$3,Calculations!$J99)=1,1,0)))+Parts!$E$92*IF(Calculations!$K99=0,0,IF(MOD(BI$3,$I99)=1,0,IF(MOD(BI$3,Calculations!$K99)=1,1,0))))*$AU99)*(1+'Country Input'!$C$45)^(Calculations!BI$3-$BH$3)","v":40710},{"$f":"(($U99+($O99)*IF(MOD(BJ$3,$I99)=1,1,0)+Parts!$E$91*IF($J99=0,0,IF(MOD(BJ$3,$I99)=1,IF(PQS!$R99=\"NO\",1,0),IF(MOD(BJ$3,Calculations!$J99)=1,1,0)))+Parts!$E$92*IF(Calculations!$K99=0,0,IF(MOD(BJ$3,$I99)=1,0,IF(MOD(BJ$3,Calculations!$K99)=1,1,0))))*$AU99)*(1+'Country Input'!$C$45)^(Calculations!BJ$3-$BH$3)","v":40710},{"$f":"(($U99+($O99)*IF(MOD(BK$3,$I99)=1,1,0)+Parts!$E$91*IF($J99=0,0,IF(MOD(BK$3,$I99)=1,IF(PQS!$R99=\"NO\",1,0),IF(MOD(BK$3,Calculations!$J99)=1,1,0)))+Parts!$E$92*IF(Calculations!$K99=0,0,IF(MOD(BK$3,$I99)=1,0,IF(MOD(BK$3,Calculations!$K99)=1,1,0))))*$AU99)*(1+'Country Input'!$C$45)^(Calculations!BK$3-$BH$3)","v":40710},{"$f":"(($U99+($O99)*IF(MOD(BL$3,$I99)=1,1,0)+Parts!$E$91*IF($J99=0,0,IF(MOD(BL$3,$I99)=1,IF(PQS!$R99=\"NO\",1,0),IF(MOD(BL$3,Calculations!$J99)=1,1,0)))+Parts!$E$92*IF(Calculations!$K99=0,0,IF(MOD(BL$3,$I99)=1,0,IF(MOD(BL$3,Calculations!$K99)=1,1,0))))*$AU99)*(1+'Country Input'!$C$45)^(Calculations!BL$3-$BH$3)","v":40710},{"$f":"(($U99+($O99)*IF(MOD(BM$3,$I99)=1,1,0)+Parts!$E$91*IF($J99=0,0,IF(MOD(BM$3,$I99)=1,IF(PQS!$R99=\"NO\",1,0),IF(MOD(BM$3,Calculations!$J99)=1,1,0)))+Parts!$E$92*IF(Calculations!$K99=0,0,IF(MOD(BM$3,$I99)=1,0,IF(MOD(BM$3,Calculations!$K99)=1,1,0))))*$AU99)*(1+'Country Input'!$C$45)^(Calculations!BM$3-$BH$3)","v":40710},{"$f":"(($U99+($O99)*IF(MOD(BN$3,$I99)=1,1,0)+Parts!$E$91*IF($J99=0,0,IF(MOD(BN$3,$I99)=1,IF(PQS!$R99=\"NO\",1,0),IF(MOD(BN$3,Calculations!$J99)=1,1,0)))+Parts!$E$92*IF(Calculations!$K99=0,0,IF(MOD(BN$3,$I99)=1,0,IF(MOD(BN$3,Calculations!$K99)=1,1,0))))*$AU99)*(1+'Country Input'!$C$45)^(Calculations!BN$3-$BH$3)","v":40710},{"$f":"(($U99+($O99)*IF(MOD(BO$3,$I99)=1,1,0)+Parts!$E$91*IF($J99=0,0,IF(MOD(BO$3,$I99)=1,IF(PQS!$R99=\"NO\",1,0),IF(MOD(BO$3,Calculations!$J99)=1,1,0)))+Parts!$E$92*IF(Calculations!$K99=0,0,IF(MOD(BO$3,$I99)=1,0,IF(MOD(BO$3,Calculations!$K99)=1,1,0))))*$AU99)*(1+'Country Input'!$C$45)^(Calculations!BO$3-$BH$3)","v":40710},{"$f":"(($U99+($O99)*IF(MOD(BP$3,$I99)=1,1,0)+Parts!$E$91*IF($J99=0,0,IF(MOD(BP$3,$I99)=1,IF(PQS!$R99=\"NO\",1,0),IF(MOD(BP$3,Calculations!$J99)=1,1,0)))+Parts!$E$92*IF(Calculations!$K99=0,0,IF(MOD(BP$3,$I99)=1,0,IF(MOD(BP$3,Calculations!$K99)=1,1,0))))*$AU99)*(1+'Country Input'!$C$45)^(Calculations!BP$3-$BH$3)","v":40710},{"$f":"(($U99+($O99)*IF(MOD(BQ$3,$I99)=1,1,0)+Parts!$E$91*IF($J99=0,0,IF(MOD(BQ$3,$I99)=1,IF(PQS!$R99=\"NO\",1,0),IF(MOD(BQ$3,Calculations!$J99)=1,1,0)))+Parts!$E$92*IF(Calculations!$K99=0,0,IF(MOD(BQ$3,$I99)=1,0,IF(MOD(BQ$3,Calculations!$K99)=1,1,0))))*$AU99)*(1+'Country Input'!$C$45)^(Calculations!BQ$3-$BH$3)","v":40710},{"$f":"(($U99+($O99)*IF(MOD(BR$3,$I99)=1,1,0)+Parts!$E$91*IF($J99=0,0,IF(MOD(BR$3,$I99)=1,IF(PQS!$R99=\"NO\",1,0),IF(MOD(BR$3,Calculations!$J99)=1,1,0)))+Parts!$E$92*IF(Calculations!$K99=0,0,IF(MOD(BR$3,$I99)=1,0,IF(MOD(BR$3,Calculations!$K99)=1,1,0))))*$AU99)*(1+'Country Input'!$C$45)^(Calculations!BR$3-$BH$3)","v":40710},{"$f":"(($U99+($O99)*IF(MOD(BS$3,$I99)=1,1,0)+Parts!$E$91*IF($J99=0,0,IF(MOD(BS$3,$I99)=1,IF(PQS!$R99=\"NO\",1,0),IF(MOD(BS$3,Calculations!$J99)=1,1,0)))+Parts!$E$92*IF(Calculations!$K99=0,0,IF(MOD(BS$3,$I99)=1,0,IF(MOD(BS$3,Calculations!$K99)=1,1,0))))*$AU99)*(1+'Country Input'!$C$45)^(Calculations!BS$3-$BH$3)","v":40710},{"$f":"(($U99+($O99)*IF(MOD(BT$3,$I99)=1,1,0)+Parts!$E$91*IF($J99=0,0,IF(MOD(BT$3,$I99)=1,IF(PQS!$R99=\"NO\",1,0),IF(MOD(BT$3,Calculations!$J99)=1,1,0)))+Parts!$E$92*IF(Calculations!$K99=0,0,IF(MOD(BT$3,$I99)=1,0,IF(MOD(BT$3,Calculations!$K99)=1,1,0))))*$AU99)*(1+'Country Input'!$C$45)^(Calculations!BT$3-$BH$3)","v":40710},{"$f":"(($U99+($O99)*IF(MOD(BU$3,$I99)=1,1,0)+Parts!$E$91*IF($J99=0,0,IF(MOD(BU$3,$I99)=1,IF(PQS!$R99=\"NO\",1,0),IF(MOD(BU$3,Calculations!$J99)=1,1,0)))+Parts!$E$92*IF(Calculations!$K99=0,0,IF(MOD(BU$3,$I99)=1,0,IF(MOD(BU$3,Calculations!$K99)=1,1,0))))*$AU99)*(1+'Country Input'!$C$45)^(Calculations!BU$3-$BH$3)","v":40710},{"$f":"(($U99+($O99)*IF(MOD(BV$3,$I99)=1,1,0)+Parts!$E$91*IF($J99=0,0,IF(MOD(BV$3,$I99)=1,IF(PQS!$R99=\"NO\",1,0),IF(MOD(BV$3,Calculations!$J99)=1,1,0)))+Parts!$E$92*IF(Calculations!$K99=0,0,IF(MOD(BV$3,$I99)=1,0,IF(MOD(BV$3,Calculations!$K99)=1,1,0))))*$AU99)*(1+'Country Input'!$C$45)^(Calculations!BV$3-$BH$3)","v":40710},{"$f":"(($U99+($O99)*IF(MOD(BW$3,$I99)=1,1,0)+Parts!$E$91*IF($J99=0,0,IF(MOD(BW$3,$I99)=1,IF(PQS!$R99=\"NO\",1,0),IF(MOD(BW$3,Calculations!$J99)=1,1,0)))+Parts!$E$92*IF(Calculations!$K99=0,0,IF(MOD(BW$3,$I99)=1,0,IF(MOD(BW$3,Calculations!$K99)=1,1,0))))*$AU99)*(1+'Country Input'!$C$45)^(Calculations!BW$3-$BH$3)","v":266843.30000000005},{"$f":"(($U99+($O99)*IF(MOD(BX$3,$I99)=1,1,0)+Parts!$E$91*IF($J99=0,0,IF(MOD(BX$3,$I99)=1,IF(PQS!$R99=\"NO\",1,0),IF(MOD(BX$3,Calculations!$J99)=1,1,0)))+Parts!$E$92*IF(Calculations!$K99=0,0,IF(MOD(BX$3,$I99)=1,0,IF(MOD(BX$3,Calculations!$K99)=1,1,0))))*$AU99)*(1+'Country Input'!$C$45)^(Calculations!BX$3-$BH$3)","v":40710},{"$f":"(($U99+($O99)*IF(MOD(BY$3,$I99)=1,1,0)+Parts!$E$91*IF($J99=0,0,IF(MOD(BY$3,$I99)=1,IF(PQS!$R99=\"NO\",1,0),IF(MOD(BY$3,Calculations!$J99)=1,1,0)))+Parts!$E$92*IF(Calculations!$K99=0,0,IF(MOD(BY$3,$I99)=1,0,IF(MOD(BY$3,Calculations!$K99)=1,1,0))))*$AU99)*(1+'Country Input'!$C$45)^(Calculations!BY$3-$BH$3)","v":40710},{"$f":"(($U99+($O99)*IF(MOD(BZ$3,$I99)=1,1,0)+Parts!$E$91*IF($J99=0,0,IF(MOD(BZ$3,$I99)=1,IF(PQS!$R99=\"NO\",1,0),IF(MOD(BZ$3,Calculations!$J99)=1,1,0)))+Parts!$E$92*IF(Calculations!$K99=0,0,IF(MOD(BZ$3,$I99)=1,0,IF(MOD(BZ$3,Calculations!$K99)=1,1,0))))*$AU99)*(1+'Country Input'!$C$45)^(Calculations!BZ$3-$BH$3)","v":40710},{"$f":"(($U99+($O99)*IF(MOD(CA$3,$I99)=1,1,0)+Parts!$E$91*IF($J99=0,0,IF(MOD(CA$3,$I99)=1,IF(PQS!$R99=\"NO\",1,0),IF(MOD(CA$3,Calculations!$J99)=1,1,0)))+Parts!$E$92*IF(Calculations!$K99=0,0,IF(MOD(CA$3,$I99)=1,0,IF(MOD(CA$3,Calculations!$K99)=1,1,0))))*$AU99)*(1+'Country Input'!$C$45)^(Calculations!CA$3-$BH$3)","v":40710},null,"Zhendre WIFR20",266843.30000000005,40710,40710,40710,40710,40710,40710,40710,40710,40710,40710,40710,40710,40710,40710,266843.30000000005,40710,40710,40710,40710,{"$f":"SUM(CD99:INDEX($CD99:$CW99,1,'Total Solution Costs'!$B$2))","v":633233.30000000005},null,"Zhendre WIFR20",{"$f":"SUM($BH99:BH99)","v":266843.30000000005},{"$f":"SUM($BH99:BI99)","v":307553.30000000005},{"$f":"SUM($BH99:BJ99)","v":348263.30000000005},{"$f":"SUM($BH99:BK99)","v":388973.30000000005},{"$f":"SUM($BH99:BL99)","v":429683.30000000005},{"$f":"SUM($BH99:BM99)","v":470393.30000000005},{"$f":"SUM($BH99:BN99)","v":511103.30000000005},{"$f":"SUM($BH99:BO99)","v":551813.30000000005},{"$f":"SUM($BH99:BP99)","v":592523.30000000005},{"$f":"SUM($BH99:BQ99)","v":633233.30000000005},{"$f":"SUM($BH99:BR99)","v":673943.3},{"$f":"SUM($BH99:BS99)","v":714653.3},{"$f":"SUM($BH99:BT99)","v":755363.3},{"$f":"SUM($BH99:BU99)","v":796073.3},{"$f":"SUM($BH99:BV99)","v":836783.3},{"$f":"SUM($BH99:BW99)","v":1103626.6000000001},{"$f":"SUM($BH99:BX99)","v":1144336.6000000001},{"$f":"SUM($BH99:BY99)","v":1185046.6000000001},{"$f":"SUM($BH99:BZ99)","v":1225756.6000000001},{"$f":"SUM($BH99:CA99)","v":1266466.6000000001}]
[{"$f":"PQS!A100","v":"WICR FR"},{"$f":"PQS!B100","v":"E001/WIFR20-Huurre"},{"$f":"PQS!E100","v":"WIFR20"},{"$f":"PQS!F100","v":"Huurre"},{"$f":"PQS!D100","v":"Huurre WIFR20"},{"$f":"VLOOKUP(E100,PQS!$D$5:$K$107,COLUMN(PQS!$I$3)-COLUMN(PQS!$D$3)+1,FALSE)","v":5555.5555555555557},{"$f":"VLOOKUP(E100,PQS!$D$5:$K$107,COLUMN(PQS!$J$3)-COLUMN(PQS!$D$3)+1,FALSE)","v":20000},{"$f":"VLOOKUP(E100,PQS!$D$5:$K$107,COLUMN(PQS!$G$3)-COLUMN(PQS!$D$3)+1,FALSE)","v":"No"},{"$f":"HLOOKUP(B100,INDIRECT(\"'\"&A100&\"'!$10:$15\"),ROW('Technology template'!$A$11)-ROW('Technology template'!$A$10)+1,FALSE)","v":15},{"$f":"HLOOKUP(B100,INDIRECT(\"'\"&A100&\"'!$10:$15\"),ROW('Technology template'!$A$12)-ROW('Technology template'!$A$10)+1,FALSE)","v":0},{"$f":"HLOOKUP(B100,INDIRECT(\"'\"&A100&\"'!$10:$15\"),ROW('Technology template'!$A$13)-ROW('Technology template'!$A$10)+1,FALSE)","v":0},{"$f":"VLOOKUP(B100,PQS!$B:$Q,MATCH(PQS!$Q$3,PQS!$B$3:$Q$3,0),FALSE)*(1+'Country Input'!$C$47)+HLOOKUP(B100,INDIRECT(\"'\"&A100&\"'!$10:$15\"),ROW('Technology template'!$A$14)-ROW('Technology template'!$A$10)+1,FALSE)*(1+'Country Input'!$C$47)","v":20885.330000000002},{"$f":"HLOOKUP(B100,INDIRECT(\"'\"&A100&\"'!$10:$80\"),MATCH('Technology template'!$A$27,INDIRECT(\"'\"&A100&\"'!$A$10:$A$80\"),0),FALSE)+'Labor and Maintenance '!$E$17","v":1728},{"$f":"VLOOKUP(B100,PQS!B:T,MATCH(PQS!$T$3,PQS!$B$3:$T$3,0),FALSE)*(1+'Country Input'!$C$47)","v":0},22613.33,1507.5553333333335,{"$f":"VLOOKUP(B100,PQS!$B:$AE,COLUMN(PQS!AD98)-1,FALSE)","v":4015},{"$f":"IFERROR(1/HLOOKUP(B100,INDIRECT(\"'\"&A100&\"'!$10:$80\"),MATCH('Technology template'!$A$31,INDIRECT(\"'\"&A100&\"'!$A$10:$A$80\"),0),FALSE)*HLOOKUP(B100,INDIRECT(\"'\"&A100&\"'!$10:$80\"),MATCH('Technology template'!$A$41,INDIRECT(\"'\"&A100&\"'!$A10:$A$80\"),0),FALSE),0)*TechnicianHourlyWage+IF(A100=\"Solar w Battery\",1/'Labor and Maintenance '!$E$53*'Labor and Maintenance '!$D$53,0)+IF(A100=\"LT passive\", 1/'Labor and Maintenance '!$E$81*'Labor and Maintenance '!$D$81,0)","v":32},{"$f":"IFERROR(1/HLOOKUP(B100,INDIRECT(\"'\"&A100&\"'!$10:$80\"),MATCH('Technology template'!$A$34,INDIRECT(\"'\"&A100&\"'!$A$10:$A$80\"),0),FALSE)*(HLOOKUP(B100,INDIRECT(\"'\"&A100&\"'!$10:$80\"),MATCH('Technology template'!$A$44,INDIRECT(\"'\"&A100&\"'!$A10:$A$80\"),0),FALSE)*TechnicianHourlyWage+RemoteTravelCostPerDay),0)+IFERROR(1/HLOOKUP(B100,INDIRECT(\"'\"&A100&\"'!$10:$80\"),MATCH('Technology template'!$A$35,INDIRECT(\"'\"&A100&\"'!$A$10:$A$80\"),0),FALSE)*(HLOOKUP(B100,INDIRECT(\"'\"&A100&\"'!$10:$80\"),MATCH('Technology template'!$A$45,INDIRECT(\"'\"&A100&\"'!$A10:$A$80\"),0),FALSE)*TechnicianHourlyWage+RemoteTravelCostPerDay),0)+IFERROR(1/HLOOKUP(B100,INDIRECT(\"'\"&A100&\"'!$10:$80\"),MATCH('Technology template'!$A$37,INDIRECT(\"'\"&A100&\"'!$A$10:$A$80\"),0),FALSE)*(HLOOKUP(B100,INDIRECT(\"'\"&A100&\"'!$10:$80\"),MATCH('Technology template'!$A$46,INDIRECT(\"'\"&A100&\"'!$A10:$A$80\"),0),FALSE)*TechnicianHourlyWage+'Labor and Maintenance '!$B$8),0)","v":24},61065,4071,5578.5553333333337,null,"Huurre WIFR20",4.0703994000000003,10.9917,15.062099400000001,null,"Huurre WIFR20",0.27135996000000001,0.73277999999999999,1.0041399600000001,null,"Huurre WIFR20",1,22613.33,61065,83678.33,null,"Huurre WIFR20",1,0.27135996000000001,0.73277999999999999,1.0041399600000001,null,"Huurre WIFR20",{"$f":"IF(F100=0, 'Country Input'!$D$7, ROUNDUP(LitersPerFacility/F100,0)*'Country Input'!$D$7)","v":10},226133.30000000002,40710,266843.30000000005,null,"Huurre WIFR20",{"$f":"ROUNDUP(LitersPerFacility/F100,0)*'Country Input'!$D$7*ROUNDUP('Total Solution Costs'!$B$2/Calculations!I100,0)","v":10},2.7135996000000002,0.73277999999999999,3.4463796000000002,null,null,"Huurre WIFR20",{"$f":"(($U100+($O100)*IF(MOD(BH$3,$I100)=1,1,0)+Parts!$E$91*IF($J100=0,0,IF(MOD(BH$3,$I100)=1,IF(PQS!$R100=\"NO\",1,0),IF(MOD(BH$3,Calculations!$J100)=1,1,0)))+Parts!$E$92*IF(Calculations!$K100=0,0,IF(MOD(BH$3,$I100)=1,0,IF(MOD(BH$3,Calculations!$K100)=1,1,0))))*$AU100)*(1+'Country Input'!$C$45)^(Calculations!BH$3-$BH$3)+TrainingCost","v":266843.30000000005},{"$f":"(($U100+($O100)*IF(MOD(BI$3,$I100)=1,1,0)+Parts!$E$91*IF($J100=0,0,IF(MOD(BI$3,$I100)=1,IF(PQS!$R100=\"NO\",1,0),IF(MOD(BI$3,Calculations!$J100)=1,1,0)))+Parts!$E$92*IF(Calculations!$K100=0,0,IF(MOD(BI$3,$I100)=1,0,IF(MOD(BI$3,Calculations!$K100)=1,1,0))))*$AU100)*(1+'Country Input'!$C$45)^(Calculations!BI$3-$BH$3)","v":40710},{"$f":"(($U100+($O100)*IF(MOD(BJ$3,$I100)=1,1,0)+Parts!$E$91*IF($J100=0,0,IF(MOD(BJ$3,$I100)=1,IF(PQS!$R100=\"NO\",1,0),IF(MOD(BJ$3,Calculations!$J100)=1,1,0)))+Parts!$E$92*IF(Calculations!$K100=0,0,IF(MOD(BJ$3,$I100)=1,0,IF(MOD(BJ$3,Calculations!$K100)=1,1,0))))*$AU100)*(1+'Country Input'!$C$45)^(Calculations!BJ$3-$BH$3)","v":40710},{"$f":"(($U100+($O100)*IF(MOD(BK$3,$I100)=1,1,0)+Parts!$E$91*IF($J100=0,0,IF(MOD(BK$3,$I100)=1,IF(PQS!$R100=\"NO\",1,0),IF(MOD(BK$3,Calculations!$J100)=1,1,0)))+Parts!$E$92*IF(Calculations!$K100=0,0,IF(MOD(BK$3,$I100)=1,0,IF(MOD(BK$3,Calculations!$K100)=1,1,0))))*$AU100)*(1+'Country Input'!$C$45)^(Calculations!BK$3-$BH$3)","v":40710},{"$f":"(($U100+($O100)*IF(MOD(BL$3,$I100)=1,1,0)+Parts!$E$91*IF($J100=0,0,IF(MOD(BL$3,$I100)=1,IF(PQS!$R100=\"NO\",1,0),IF(MOD(BL$3,Calculations!$J100)=1,1,0)))+Parts!$E$92*IF(Calculations!$K100=0,0,IF(MOD(BL$3,$I100)=1,0,IF(MOD(BL$3,Calculations!$K100)=1,1,0))))*$AU100)*(1+'Country Input'!$C$45)^(Calculations!BL$3-$BH$3)","v":40710},{"$f":"(($U100+($O100)*IF(MOD(BM$3,$I100)=1,1,0)+Parts!$E$91*IF($J100=0,0,IF(MOD(BM$3,$I100)=1,IF(PQS!$R100=\"NO\",1,0),IF(MOD(BM$3,Calculations!$J100)=1,1,0)))+Parts!$E$92*IF(Calculations!$K100=0,0,IF(MOD(BM$3,$I100)=1,0,IF(MOD(BM$3,Calculations!$K100)=1,1,0))))*$AU100)*(1+'Country Input'!$C$45)^(Calculations!BM$3-$BH$3)","v":40710},{"$f":"(($U100+($O100)*IF(MOD(BN$3,$I100)=1,1,0)+Parts!$E$91*IF($J100=0,0,IF(MOD(BN$3,$I100)=1,IF(PQS!$R100=\"NO\",1,0),IF(MOD(BN$3,Calculations!$J100)=1,1,0)))+Parts!$E$92*IF(Calculations!$K100=0,0,IF(MOD(BN$3,$I100)=1,0,IF(MOD(BN$3,Calculations!$K100)=1,1,0))))*$AU100)*(1+'Country Input'!$C$45)^(Calculations!BN$3-$BH$3)","v":40710},{"$f":"(($U100+($O100)*IF(MOD(BO$3,$I100)=1,1,0)+Parts!$E$91*IF($J100=0,0,IF(MOD(BO$3,$I100)=1,IF(PQS!$R100=\"NO\",1,0),IF(MOD(BO$3,Calculations!$J100)=1,1,0)))+Parts!$E$92*IF(Calculations!$K100=0,0,IF(MOD(BO$3,$I100)=1,0,IF(MOD(BO$3,Calculations!$K100)=1,1,0))))*$AU100)*(1+'Country Input'!$C$45)^(Calculations!BO$3-$BH$3)","v":40710},{"$f":"(($U100+($O100)*IF(MOD(BP$3,$I100)=1,1,0)+Parts!$E$91*IF($J100=0,0,IF(MOD(BP$3,$I100)=1,IF(PQS!$R100=\"NO\",1,0),IF(MOD(BP$3,Calculations!$J100)=1,1,0)))+Parts!$E$92*IF(Calculations!$K100=0,0,IF(MOD(BP$3,$I100)=1,0,IF(MOD(BP$3,Calculations!$K100)=1,1,0))))*$AU100)*(1+'Country Input'!$C$45)^(Calculations!BP$3-$BH$3)","v":40710},{"$f":"(($U100+($O100)*IF(MOD(BQ$3,$I100)=1,1,0)+Parts!$E$91*IF($J100=0,0,IF(MOD(BQ$3,$I100)=1,IF(PQS!$R100=\"NO\",1,0),IF(MOD(BQ$3,Calculations!$J100)=1,1,0)))+Parts!$E$92*IF(Calculations!$K100=0,0,IF(MOD(BQ$3,$I100)=1,0,IF(MOD(BQ$3,Calculations!$K100)=1,1,0))))*$AU100)*(1+'Country Input'!$C$45)^(Calculations!BQ$3-$BH$3)","v":40710},{"$f":"(($U100+($O100)*IF(MOD(BR$3,$I100)=1,1,0)+Parts!$E$91*IF($J100=0,0,IF(MOD(BR$3,$I100)=1,IF(PQS!$R100=\"NO\",1,0),IF(MOD(BR$3,Calculations!$J100)=1,1,0)))+Parts!$E$92*IF(Calculations!$K100=0,0,IF(MOD(BR$3,$I100)=1,0,IF(MOD(BR$3,Calculations!$K100)=1,1,0))))*$AU100)*(1+'Country Input'!$C$45)^(Calculations!BR$3-$BH$3)","v":40710},{"$f":"(($U100+($O100)*IF(MOD(BS$3,$I100)=1,1,0)+Parts!$E$91*IF($J100=0,0,IF(MOD(BS$3,$I100)=1,IF(PQS!$R100=\"NO\",1,0),IF(MOD(BS$3,Calculations!$J100)=1,1,0)))+Parts!$E$92*IF(Calculations!$K100=0,0,IF(MOD(BS$3,$I100)=1,0,IF(MOD(BS$3,Calculations!$K100)=1,1,0))))*$AU100)*(1+'Country Input'!$C$45)^(Calculations!BS$3-$BH$3)","v":40710},{"$f":"(($U100+($O100)*IF(MOD(BT$3,$I100)=1,1,0)+Parts!$E$91*IF($J100=0,0,IF(MOD(BT$3,$I100)=1,IF(PQS!$R100=\"NO\",1,0),IF(MOD(BT$3,Calculations!$J100)=1,1,0)))+Parts!$E$92*IF(Calculations!$K100=0,0,IF(MOD(BT$3,$I100)=1,0,IF(MOD(BT$3,Calculations!$K100)=1,1,0))))*$AU100)*(1+'Country Input'!$C$45)^(Calculations!BT$3-$BH$3)","v":40710},{"$f":"(($U100+($O100)*IF(MOD(BU$3,$I100)=1,1,0)+Parts!$E$91*IF($J100=0,0,IF(MOD(BU$3,$I100)=1,IF(PQS!$R100=\"NO\",1,0),IF(MOD(BU$3,Calculations!$J100)=1,1,0)))+Parts!$E$92*IF(Calculations!$K100=0,0,IF(MOD(BU$3,$I100)=1,0,IF(MOD(BU$3,Calculations!$K100)=1,1,0))))*$AU100)*(1+'Country Input'!$C$45)^(Calculations!BU$3-$BH$3)","v":40710},{"$f":"(($U100+($O100)*IF(MOD(BV$3,$I100)=1,1,0)+Parts!$E$91*IF($J100=0,0,IF(MOD(BV$3,$I100)=1,IF(PQS!$R100=\"NO\",1,0),IF(MOD(BV$3,Calculations!$J100)=1,1,0)))+Parts!$E$92*IF(Calculations!$K100=0,0,IF(MOD(BV$3,$I100)=1,0,IF(MOD(BV$3,Calculations!$K100)=1,1,0))))*$AU100)*(1+'Country Input'!$C$45)^(Calculations!BV$3-$BH$3)","v":40710},{"$f":"(($U100+($O100)*IF(MOD(BW$3,$I100)=1,1,0)+Parts!$E$91*IF($J100=0,0,IF(MOD(BW$3,$I100)=1,IF(PQS!$R100=\"NO\",1,0),IF(MOD(BW$3,Calculations!$J100)=1,1,0)))+Parts!$E$92*IF(Calculations!$K100=0,0,IF(MOD(BW$3,$I100)=1,0,IF(MOD(BW$3,Calculations!$K100)=1,1,0))))*$AU100)*(1+'Country Input'!$C$45)^(Calculations!BW$3-$BH$3)","v":266843.30000000005},{"$f":"(($U100+($O100)*IF(MOD(BX$3,$I100)=1,1,0)+Parts!$E$91*IF($J100=0,0,IF(MOD(BX$3,$I100)=1,IF(PQS!$R100=\"NO\",1,0),IF(MOD(BX$3,Calculations!$J100)=1,1,0)))+Parts!$E$92*IF(Calculations!$K100=0,0,IF(MOD(BX$3,$I100)=1,0,IF(MOD(BX$3,Calculations!$K100)=1,1,0))))*$AU100)*(1+'Country Input'!$C$45)^(Calculations!BX$3-$BH$3)","v":40710},{"$f":"(($U100+($O100)*IF(MOD(BY$3,$I100)=1,1,0)+Parts!$E$91*IF($J100=0,0,IF(MOD(BY$3,$I100)=1,IF(PQS!$R100=\"NO\",1,0),IF(MOD(BY$3,Calculations!$J100)=1,1,0)))+Parts!$E$92*IF(Calculations!$K100=0,0,IF(MOD(BY$3,$I100)=1,0,IF(MOD(BY$3,Calculations!$K100)=1,1,0))))*$AU100)*(1+'Country Input'!$C$45)^(Calculations!BY$3-$BH$3)","v":40710},{"$f":"(($U100+($O100)*IF(MOD(BZ$3,$I100)=1,1,0)+Parts!$E$91*IF($J100=0,0,IF(MOD(BZ$3,$I100)=1,IF(PQS!$R100=\"NO\",1,0),IF(MOD(BZ$3,Calculations!$J100)=1,1,0)))+Parts!$E$92*IF(Calculations!$K100=0,0,IF(MOD(BZ$3,$I100)=1,0,IF(MOD(BZ$3,Calculations!$K100)=1,1,0))))*$AU100)*(1+'Country Input'!$C$45)^(Calculations!BZ$3-$BH$3)","v":40710},{"$f":"(($U100+($O100)*IF(MOD(CA$3,$I100)=1,1,0)+Parts!$E$91*IF($J100=0,0,IF(MOD(CA$3,$I100)=1,IF(PQS!$R100=\"NO\",1,0),IF(MOD(CA$3,Calculations!$J100)=1,1,0)))+Parts!$E$92*IF(Calculations!$K100=0,0,IF(MOD(CA$3,$I100)=1,0,IF(MOD(CA$3,Calculations!$K100)=1,1,0))))*$AU100)*(1+'Country Input'!$C$45)^(Calculations!CA$3-$BH$3)","v":40710},null,"Huurre WIFR20",266843.30000000005,40710,40710,40710,40710,40710,40710,40710,40710,40710,40710,40710,40710,40710,40710,266843.30000000005,40710,40710,40710,40710,{"$f":"SUM(CD100:INDEX($CD100:$CW100,1,'Total Solution Costs'!$B$2))","v":633233.30000000005},null,"Huurre WIFR20",{"$f":"SUM($BH100:BH100)","v":266843.30000000005},{"$f":"SUM($BH100:BI100)","v":307553.30000000005},{"$f":"SUM($BH100:BJ100)","v":348263.30000000005},{"$f":"SUM($BH100:BK100)","v":388973.30000000005},{"$f":"SUM($BH100:BL100)","v":429683.30000000005},{"$f":"SUM($BH100:BM100)","v":470393.30000000005},{"$f":"SUM($BH100:BN100)","v":511103.30000000005},{"$f":"SUM($BH100:BO100)","v":551813.30000000005},{"$f":"SUM($BH100:BP100)","v":592523.30000000005},{"$f":"SUM($BH100:BQ100)","v":633233.30000000005},{"$f":"SUM($BH100:BR100)","v":673943.3},{"$f":"SUM($BH100:BS100)","v":714653.3},{"$f":"SUM($BH100:BT100)","v":755363.3},{"$f":"SUM($BH100:BU100)","v":796073.3},{"$f":"SUM($BH100:BV100)","v":836783.3},{"$f":"SUM($BH100:BW100)","v":1103626.6000000001},{"$f":"SUM($BH100:BX100)","v":1144336.6000000001},{"$f":"SUM($BH100:BY100)","v":1185046.6000000001},{"$f":"SUM($BH100:BZ100)","v":1225756.6000000001},{"$f":"SUM($BH100:CA100)","v":1266466.6000000001}]
[{"$f":"PQS!A101","v":"WICR FR"},{"$f":"PQS!B101","v":"E001/WIFR20-Haier"},{"$f":"PQS!E101","v":"WIFR20"},{"$f":"PQS!F101","v":"Haier"},{"$f":"PQS!D101","v":"Haier WIFR20"},{"$f":"VLOOKUP(E101,PQS!$D$5:$K$107,COLUMN(PQS!$I$3)-COLUMN(PQS!$D$3)+1,FALSE)","v":5555.5555555555557},{"$f":"VLOOKUP(E101,PQS!$D$5:$K$107,COLUMN(PQS!$J$3)-COLUMN(PQS!$D$3)+1,FALSE)","v":20000},{"$f":"VLOOKUP(E101,PQS!$D$5:$K$107,COLUMN(PQS!$G$3)-COLUMN(PQS!$D$3)+1,FALSE)","v":"No"},{"$f":"HLOOKUP(B101,INDIRECT(\"'\"&A101&\"'!$10:$15\"),ROW('Technology template'!$A$11)-ROW('Technology template'!$A$10)+1,FALSE)","v":15},{"$f":"HLOOKUP(B101,INDIRECT(\"'\"&A101&\"'!$10:$15\"),ROW('Technology template'!$A$12)-ROW('Technology template'!$A$10)+1,FALSE)","v":0},{"$f":"HLOOKUP(B101,INDIRECT(\"'\"&A101&\"'!$10:$15\"),ROW('Technology template'!$A$13)-ROW('Technology template'!$A$10)+1,FALSE)","v":0},{"$f":"VLOOKUP(B101,PQS!$B:$Q,MATCH(PQS!$Q$3,PQS!$B$3:$Q$3,0),FALSE)*(1+'Country Input'!$C$47)+HLOOKUP(B101,INDIRECT(\"'\"&A101&\"'!$10:$15\"),ROW('Technology template'!$A$14)-ROW('Technology template'!$A$10)+1,FALSE)*(1+'Country Input'!$C$47)","v":20885.330000000002},{"$f":"HLOOKUP(B101,INDIRECT(\"'\"&A101&\"'!$10:$80\"),MATCH('Technology template'!$A$27,INDIRECT(\"'\"&A101&\"'!$A$10:$A$80\"),0),FALSE)+'Labor and Maintenance '!$E$17","v":1728},{"$f":"VLOOKUP(B101,PQS!B:T,MATCH(PQS!$T$3,PQS!$B$3:$T$3,0),FALSE)*(1+'Country Input'!$C$47)","v":0},22613.33,1507.5553333333335,{"$f":"VLOOKUP(B101,PQS!$B:$AE,COLUMN(PQS!AD99)-1,FALSE)","v":946.08000000000015},{"$f":"IFERROR(1/HLOOKUP(B101,INDIRECT(\"'\"&A101&\"'!$10:$80\"),MATCH('Technology template'!$A$31,INDIRECT(\"'\"&A101&\"'!$A$10:$A$80\"),0),FALSE)*HLOOKUP(B101,INDIRECT(\"'\"&A101&\"'!$10:$80\"),MATCH('Technology template'!$A$41,INDIRECT(\"'\"&A101&\"'!$A10:$A$80\"),0),FALSE),0)*TechnicianHourlyWage+IF(A101=\"Solar w Battery\",1/'Labor and Maintenance '!$E$53*'Labor and Maintenance '!$D$53,0)+IF(A101=\"LT passive\", 1/'Labor and Maintenance '!$E$81*'Labor and Maintenance '!$D$81,0)","v":32},{"$f":"IFERROR(1/HLOOKUP(B101,INDIRECT(\"'\"&A101&\"'!$10:$80\"),MATCH('Technology template'!$A$34,INDIRECT(\"'\"&A101&\"'!$A$10:$A$80\"),0),FALSE)*(HLOOKUP(B101,INDIRECT(\"'\"&A101&\"'!$10:$80\"),MATCH('Technology template'!$A$44,INDIRECT(\"'\"&A101&\"'!$A10:$A$80\"),0),FALSE)*TechnicianHourlyWage+RemoteTravelCostPerDay),0)+IFERROR(1/HLOOKUP(B101,INDIRECT(\"'\"&A101&\"'!$10:$80\"),MATCH('Technology template'!$A$35,INDIRECT(\"'\"&A101&\"'!$A$10:$A$80\"),0),FALSE)*(HLOOKUP(B101,INDIRECT(\"'\"&A101&\"'!$10:$80\"),MATCH('Technology template'!$A$45,INDIRECT(\"'\"&A101&\"'!$A10:$A$80\"),0),FALSE)*TechnicianHourlyWage+RemoteTravelCostPerDay),0)+IFERROR(1/HLOOKUP(B101,INDIRECT(\"'\"&A101&\"'!$10:$80\"),MATCH('Technology template'!$A$37,INDIRECT(\"'\"&A101&\"'!$A$10:$A$80\"),0),FALSE)*(HLOOKUP(B101,INDIRECT(\"'\"&A101&\"'!$10:$80\"),MATCH('Technology template'!$A$46,INDIRECT(\"'\"&A101&\"'!$A10:$A$80\"),0),FALSE)*TechnicianHourlyWage+'Labor and Maintenance '!$B$8),0)","v":24},15031.200000000003,1002.0800000000002,2509.6353333333336,null,"Haier WIFR20",4.0703994000000003,2.7056160000000005,6.7760154000000004,null,"Haier WIFR20",0.27135996000000001,0.18037440000000002,0.45173436000000006,null,"Haier WIFR20",1,22613.33,15031.200000000003,37644.530000000006,null,"Haier WIFR20",1,0.27135996000000001,0.18037440000000002,0.45173436,null,"Haier WIFR20",{"$f":"IF(F101=0, 'Country Input'!$D$7, ROUNDUP(LitersPerFacility/F101,0)*'Country Input'!$D$7)","v":10},226133.30000000002,10020.800000000001,236154.1,null,"Haier WIFR20",{"$f":"ROUNDUP(LitersPerFacility/F101,0)*'Country Input'!$D$7*ROUNDUP('Total Solution Costs'!$B$2/Calculations!I101,0)","v":10},2.7135996000000002,0.18037440000000002,2.893974,null,null,"Haier WIFR20",{"$f":"(($U101+($O101)*IF(MOD(BH$3,$I101)=1,1,0)+Parts!$E$91*IF($J101=0,0,IF(MOD(BH$3,$I101)=1,IF(PQS!$R101=\"NO\",1,0),IF(MOD(BH$3,Calculations!$J101)=1,1,0)))+Parts!$E$92*IF(Calculations!$K101=0,0,IF(MOD(BH$3,$I101)=1,0,IF(MOD(BH$3,Calculations!$K101)=1,1,0))))*$AU101)*(1+'Country Input'!$C$45)^(Calculations!BH$3-$BH$3)+TrainingCost","v":236154.10000000003},{"$f":"(($U101+($O101)*IF(MOD(BI$3,$I101)=1,1,0)+Parts!$E$91*IF($J101=0,0,IF(MOD(BI$3,$I101)=1,IF(PQS!$R101=\"NO\",1,0),IF(MOD(BI$3,Calculations!$J101)=1,1,0)))+Parts!$E$92*IF(Calculations!$K101=0,0,IF(MOD(BI$3,$I101)=1,0,IF(MOD(BI$3,Calculations!$K101)=1,1,0))))*$AU101)*(1+'Country Input'!$C$45)^(Calculations!BI$3-$BH$3)","v":10020.800000000001},{"$f":"(($U101+($O101)*IF(MOD(BJ$3,$I101)=1,1,0)+Parts!$E$91*IF($J101=0,0,IF(MOD(BJ$3,$I101)=1,IF(PQS!$R101=\"NO\",1,0),IF(MOD(BJ$3,Calculations!$J101)=1,1,0)))+Parts!$E$92*IF(Calculations!$K101=0,0,IF(MOD(BJ$3,$I101)=1,0,IF(MOD(BJ$3,Calculations!$K101)=1,1,0))))*$AU101)*(1+'Country Input'!$C$45)^(Calculations!BJ$3-$BH$3)","v":10020.800000000001},{"$f":"(($U101+($O101)*IF(MOD(BK$3,$I101)=1,1,0)+Parts!$E$91*IF($J101=0,0,IF(MOD(BK$3,$I101)=1,IF(PQS!$R101=\"NO\",1,0),IF(MOD(BK$3,Calculations!$J101)=1,1,0)))+Parts!$E$92*IF(Calculations!$K101=0,0,IF(MOD(BK$3,$I101)=1,0,IF(MOD(BK$3,Calculations!$K101)=1,1,0))))*$AU101)*(1+'Country Input'!$C$45)^(Calculations!BK$3-$BH$3)","v":10020.800000000001},{"$f":"(($U101+($O101)*IF(MOD(BL$3,$I101)=1,1,0)+Parts!$E$91*IF($J101=0,0,IF(MOD(BL$3,$I101)=1,IF(PQS!$R101=\"NO\",1,0),IF(MOD(BL$3,Calculations!$J101)=1,1,0)))+Parts!$E$92*IF(Calculations!$K101=0,0,IF(MOD(BL$3,$I101)=1,0,IF(MOD(BL$3,Calculations!$K101)=1,1,0))))*$AU101)*(1+'Country Input'!$C$45)^(Calculations!BL$3-$BH$3)","v":10020.800000000001},{"$f":"(($U101+($O101)*IF(MOD(BM$3,$I101)=1,1,0)+Parts!$E$91*IF($J101=0,0,IF(MOD(BM$3,$I101)=1,IF(PQS!$R101=\"NO\",1,0),IF(MOD(BM$3,Calculations!$J101)=1,1,0)))+Parts!$E$92*IF(Calculations!$K101=0,0,IF(MOD(BM$3,$I101)=1,0,IF(MOD(BM$3,Calculations!$K101)=1,1,0))))*$AU101)*(1+'Country Input'!$C$45)^(Calculations!BM$3-$BH$3)","v":10020.800000000001},{"$f":"(($U101+($O101)*IF(MOD(BN$3,$I101)=1,1,0)+Parts!$E$91*IF($J101=0,0,IF(MOD(BN$3,$I101)=1,IF(PQS!$R101=\"NO\",1,0),IF(MOD(BN$3,Calculations!$J101)=1,1,0)))+Parts!$E$92*IF(Calculations!$K101=0,0,IF(MOD(BN$3,$I101)=1,0,IF(MOD(BN$3,Calculations!$K101)=1,1,0))))*$AU101)*(1+'Country Input'!$C$45)^(Calculations!BN$3-$BH$3)","v":10020.800000000001},{"$f":"(($U101+($O101)*IF(MOD(BO$3,$I101)=1,1,0)+Parts!$E$91*IF($J101=0,0,IF(MOD(BO$3,$I101)=1,IF(PQS!$R101=\"NO\",1,0),IF(MOD(BO$3,Calculations!$J101)=1,1,0)))+Parts!$E$92*IF(Calculations!$K101=0,0,IF(MOD(BO$3,$I101)=1,0,IF(MOD(BO$3,Calculations!$K101)=1,1,0))))*$AU101)*(1+'Country Input'!$C$45)^(Calculations!BO$3-$BH$3)","v":10020.800000000001},{"$f":"(($U101+($O101)*IF(MOD(BP$3,$I101)=1,1,0)+Parts!$E$91*IF($J101=0,0,IF(MOD(BP$3,$I101)=1,IF(PQS!$R101=\"NO\",1,0),IF(MOD(BP$3,Calculations!$J101)=1,1,0)))+Parts!$E$92*IF(Calculations!$K101=0,0,IF(MOD(BP$3,$I101)=1,0,IF(MOD(BP$3,Calculations!$K101)=1,1,0))))*$AU101)*(1+'Country Input'!$C$45)^(Calculations!BP$3-$BH$3)","v":10020.800000000001},{"$f":"(($U101+($O101)*IF(MOD(BQ$3,$I101)=1,1,0)+Parts!$E$91*IF($J101=0,0,IF(MOD(BQ$3,$I101)=1,IF(PQS!$R101=\"NO\",1,0),IF(MOD(BQ$3,Calculations!$J101)=1,1,0)))+Parts!$E$92*IF(Calculations!$K101=0,0,IF(MOD(BQ$3,$I101)=1,0,IF(MOD(BQ$3,Calculations!$K101)=1,1,0))))*$AU101)*(1+'Country Input'!$C$45)^(Calculations!BQ$3-$BH$3)","v":10020.800000000001},{"$f":"(($U101+($O101)*IF(MOD(BR$3,$I101)=1,1,0)+Parts!$E$91*IF($J101=0,0,IF(MOD(BR$3,$I101)=1,IF(PQS!$R101=\"NO\",1,0),IF(MOD(BR$3,Calculations!$J101)=1,1,0)))+Parts!$E$92*IF(Calculations!$K101=0,0,IF(MOD(BR$3,$I101)=1,0,IF(MOD(BR$3,Calculations!$K101)=1,1,0))))*$AU101)*(1+'Country Input'!$C$45)^(Calculations!BR$3-$BH$3)","v":10020.800000000001},{"$f":"(($U101+($O101)*IF(MOD(BS$3,$I101)=1,1,0)+Parts!$E$91*IF($J101=0,0,IF(MOD(BS$3,$I101)=1,IF(PQS!$R101=\"NO\",1,0),IF(MOD(BS$3,Calculations!$J101)=1,1,0)))+Parts!$E$92*IF(Calculations!$K101=0,0,IF(MOD(BS$3,$I101)=1,0,IF(MOD(BS$3,Calculations!$K101)=1,1,0))))*$AU101)*(1+'Country Input'!$C$45)^(Calculations!BS$3-$BH$3)","v":10020.800000000001},{"$f":"(($U101+($O101)*IF(MOD(BT$3,$I101)=1,1,0)+Parts!$E$91*IF($J101=0,0,IF(MOD(BT$3,$I101)=1,IF(PQS!$R101=\"NO\",1,0),IF(MOD(BT$3,Calculations!$J101)=1,1,0)))+Parts!$E$92*IF(Calculations!$K101=0,0,IF(MOD(BT$3,$I101)=1,0,IF(MOD(BT$3,Calculations!$K101)=1,1,0))))*$AU101)*(1+'Country Input'!$C$45)^(Calculations!BT$3-$BH$3)","v":10020.800000000001},{"$f":"(($U101+($O101)*IF(MOD(BU$3,$I101)=1,1,0)+Parts!$E$91*IF($J101=0,0,IF(MOD(BU$3,$I101)=1,IF(PQS!$R101=\"NO\",1,0),IF(MOD(BU$3,Calculations!$J101)=1,1,0)))+Parts!$E$92*IF(Calculations!$K101=0,0,IF(MOD(BU$3,$I101)=1,0,IF(MOD(BU$3,Calculations!$K101)=1,1,0))))*$AU101)*(1+'Country Input'!$C$45)^(Calculations!BU$3-$BH$3)","v":10020.800000000001},{"$f":"(($U101+($O101)*IF(MOD(BV$3,$I101)=1,1,0)+Parts!$E$91*IF($J101=0,0,IF(MOD(BV$3,$I101)=1,IF(PQS!$R101=\"NO\",1,0),IF(MOD(BV$3,Calculations!$J101)=1,1,0)))+Parts!$E$92*IF(Calculations!$K101=0,0,IF(MOD(BV$3,$I101)=1,0,IF(MOD(BV$3,Calculations!$K101)=1,1,0))))*$AU101)*(1+'Country Input'!$C$45)^(Calculations!BV$3-$BH$3)","v":10020.800000000001},{"$f":"(($U101+($O101)*IF(MOD(BW$3,$I101)=1,1,0)+Parts!$E$91*IF($J101=0,0,IF(MOD(BW$3,$I101)=1,IF(PQS!$R101=\"NO\",1,0),IF(MOD(BW$3,Calculations!$J101)=1,1,0)))+Parts!$E$92*IF(Calculations!$K101=0,0,IF(MOD(BW$3,$I101)=1,0,IF(MOD(BW$3,Calculations!$K101)=1,1,0))))*$AU101)*(1+'Country Input'!$C$45)^(Calculations!BW$3-$BH$3)","v":236154.10000000003},{"$f":"(($U101+($O101)*IF(MOD(BX$3,$I101)=1,1,0)+Parts!$E$91*IF($J101=0,0,IF(MOD(BX$3,$I101)=1,IF(PQS!$R101=\"NO\",1,0),IF(MOD(BX$3,Calculations!$J101)=1,1,0)))+Parts!$E$92*IF(Calculations!$K101=0,0,IF(MOD(BX$3,$I101)=1,0,IF(MOD(BX$3,Calculations!$K101)=1,1,0))))*$AU101)*(1+'Country Input'!$C$45)^(Calculations!BX$3-$BH$3)","v":10020.800000000001},{"$f":"(($U101+($O101)*IF(MOD(BY$3,$I101)=1,1,0)+Parts!$E$91*IF($J101=0,0,IF(MOD(BY$3,$I101)=1,IF(PQS!$R101=\"NO\",1,0),IF(MOD(BY$3,Calculations!$J101)=1,1,0)))+Parts!$E$92*IF(Calculations!$K101=0,0,IF(MOD(BY$3,$I101)=1,0,IF(MOD(BY$3,Calculations!$K101)=1,1,0))))*$AU101)*(1+'Country Input'!$C$45)^(Calculations!BY$3-$BH$3)","v":10020.800000000001},{"$f":"(($U101+($O101)*IF(MOD(BZ$3,$I101)=1,1,0)+Parts!$E$91*IF($J101=0,0,IF(MOD(BZ$3,$I101)=1,IF(PQS!$R101=\"NO\",1,0),IF(MOD(BZ$3,Calculations!$J101)=1,1,0)))+Parts!$E$92*IF(Calculations!$K101=0,0,IF(MOD(BZ$3,$I101)=1,0,IF(MOD(BZ$3,Calculations!$K101)=1,1,0))))*$AU101)*(1+'Country Input'!$C$45)^(Calculations!BZ$3-$BH$3)","v":10020.800000000001},{"$f":"(($U101+($O101)*IF(MOD(CA$3,$I101)=1,1,0)+Parts!$E$91*IF($J101=0,0,IF(MOD(CA$3,$I101)=1,IF(PQS!$R101=\"NO\",1,0),IF(MOD(CA$3,Calculations!$J101)=1,1,0)))+Parts!$E$92*IF(Calculations!$K101=0,0,IF(MOD(CA$3,$I101)=1,0,IF(MOD(CA$3,Calculations!$K101)=1,1,0))))*$AU101)*(1+'Country Input'!$C$45)^(Calculations!CA$3-$BH$3)","v":10020.800000000001},null,"Haier WIFR20",236154.10000000003,10020.800000000001,10020.800000000001,10020.800000000001,10020.800000000001,10020.800000000001,10020.800000000001,10020.800000000001,10020.800000000001,10020.800000000001,10020.800000000001,10020.800000000001,10020.800000000001,10020.800000000001,10020.800000000001,236154.10000000003,10020.800000000001,10020.800000000001,10020.800000000001,10020.800000000001,{"$f":"SUM(CD101:INDEX($CD101:$CW101,1,'Total Solution Costs'!$B$2))","v":326341.29999999993},null,"Haier WIFR20",{"$f":"SUM($BH101:BH101)","v":236154.10000000003},{"$f":"SUM($BH101:BI101)","v":246174.90000000002},{"$f":"SUM($BH101:BJ101)","v":256195.7},{"$f":"SUM($BH101:BK101)","v":266216.5},{"$f":"SUM($BH101:BL101)","v":276237.3},{"$f":"SUM($BH101:BM101)","v":286258.09999999998},{"$f":"SUM($BH101:BN101)","v":296278.89999999997},{"$f":"SUM($BH101:BO101)","v":306299.69999999995},{"$f":"SUM($BH101:BP101)","v":316320.49999999994},{"$f":"SUM($BH101:BQ101)","v":326341.29999999993},{"$f":"SUM($BH101:BR101)","v":336362.09999999992},{"$f":"SUM($BH101:BS101)","v":346382.89999999991},{"$f":"SUM($BH101:BT101)","v":356403.6999999999},{"$f":"SUM($BH101:BU101)","v":366424.49999999988},{"$f":"SUM($BH101:BV101)","v":376445.29999999987},{"$f":"SUM($BH101:BW101)","v":612599.39999999991},{"$f":"SUM($BH101:BX101)","v":622620.19999999995},{"$f":"SUM($BH101:BY101)","v":632641},{"$f":"SUM($BH101:BZ101)","v":642661.80000000005},{"$f":"SUM($BH101:CA101)","v":652682.60000000009}]
[{"$f":"PQS!A102","v":"WICR FR"},{"$f":"PQS!B102","v":"E001/CRFR40-Zhendre"},{"$f":"PQS!E102","v":"CRFR40"},{"$f":"PQS!F102","v":"Zhendre"},{"$f":"PQS!D102","v":"Zhendre CRFR40"},{"$f":"VLOOKUP(E102,PQS!$D$5:$K$107,COLUMN(PQS!$I$3)-COLUMN(PQS!$D$3)+1,FALSE)","v":6666.666666666667},{"$f":"VLOOKUP(E102,PQS!$D$5:$K$107,COLUMN(PQS!$J$3)-COLUMN(PQS!$D$3)+1,FALSE)","v":15000},{"$f":"VLOOKUP(E102,PQS!$D$5:$K$107,COLUMN(PQS!$G$3)-COLUMN(PQS!$D$3)+1,FALSE)","v":"No"},{"$f":"HLOOKUP(B102,INDIRECT(\"'\"&A102&\"'!$10:$15\"),ROW('Technology template'!$A$11)-ROW('Technology template'!$A$10)+1,FALSE)","v":15},{"$f":"HLOOKUP(B102,INDIRECT(\"'\"&A102&\"'!$10:$15\"),ROW('Technology template'!$A$12)-ROW('Technology template'!$A$10)+1,FALSE)","v":0},{"$f":"HLOOKUP(B102,INDIRECT(\"'\"&A102&\"'!$10:$15\"),ROW('Technology template'!$A$13)-ROW('Technology template'!$A$10)+1,FALSE)","v":0},{"$f":"VLOOKUP(B102,PQS!$B:$Q,MATCH(PQS!$Q$3,PQS!$B$3:$Q$3,0),FALSE)*(1+'Country Input'!$C$47)+HLOOKUP(B102,INDIRECT(\"'\"&A102&\"'!$10:$15\"),ROW('Technology template'!$A$14)-ROW('Technology template'!$A$10)+1,FALSE)*(1+'Country Input'!$C$47)","v":47615},{"$f":"HLOOKUP(B102,INDIRECT(\"'\"&A102&\"'!$10:$80\"),MATCH('Technology template'!$A$27,INDIRECT(\"'\"&A102&\"'!$A$10:$A$80\"),0),FALSE)+'Labor and Maintenance '!$E$17","v":1728},{"$f":"VLOOKUP(B102,PQS!B:T,MATCH(PQS!$T$3,PQS!$B$3:$T$3,0),FALSE)*(1+'Country Input'!$C$47)","v":0},49343,3289.5333333333333,{"$f":"VLOOKUP(B102,PQS!$B:$AE,COLUMN(PQS!AD100)-1,FALSE)","v":5329.0000000000009},{"$f":"IFERROR(1/HLOOKUP(B102,INDIRECT(\"'\"&A102&\"'!$10:$80\"),MATCH('Technology template'!$A$31,INDIRECT(\"'\"&A102&\"'!$A$10:$A$80\"),0),FALSE)*HLOOKUP(B102,INDIRECT(\"'\"&A102&\"'!$10:$80\"),MATCH('Technology template'!$A$41,INDIRECT(\"'\"&A102&\"'!$A10:$A$80\"),0),FALSE),0)*TechnicianHourlyWage+IF(A102=\"Solar w Battery\",1/'Labor and Maintenance '!$E$53*'Labor and Maintenance '!$D$53,0)+IF(A102=\"LT passive\", 1/'Labor and Maintenance '!$E$81*'Labor and Maintenance '!$D$81,0)","v":32},{"$f":"IFERROR(1/HLOOKUP(B102,INDIRECT(\"'\"&A102&\"'!$10:$80\"),MATCH('Technology template'!$A$34,INDIRECT(\"'\"&A102&\"'!$A$10:$A$80\"),0),FALSE)*(HLOOKUP(B102,INDIRECT(\"'\"&A102&\"'!$10:$80\"),MATCH('Technology template'!$A$44,INDIRECT(\"'\"&A102&\"'!$A10:$A$80\"),0),FALSE)*TechnicianHourlyWage+RemoteTravelCostPerDay),0)+IFERROR(1/HLOOKUP(B102,INDIRECT(\"'\"&A102&\"'!$10:$80\"),MATCH('Technology template'!$A$35,INDIRECT(\"'\"&A102&\"'!$A$10:$A$80\"),0),FALSE)*(HLOOKUP(B102,INDIRECT(\"'\"&A102&\"'!$10:$80\"),MATCH('Technology template'!$A$45,INDIRECT(\"'\"&A102&\"'!$A10:$A$80\"),0),FALSE)*TechnicianHourlyWage+RemoteTravelCostPerDay),0)+IFERROR(1/HLOOKUP(B102,INDIRECT(\"'\"&A102&\"'!$10:$80\"),MATCH('Technology template'!$A$37,INDIRECT(\"'\"&A102&\"'!$A$10:$A$80\"),0),FALSE)*(HLOOKUP(B102,INDIRECT(\"'\"&A102&\"'!$10:$80\"),MATCH('Technology template'!$A$46,INDIRECT(\"'\"&A102&\"'!$A10:$A$80\"),0),FALSE)*TechnicianHourlyWage+'Labor and Maintenance '!$B$8),0)","v":24},80775.000000000015,5385.0000000000009,8674.5333333333347,null,"Zhendre CRFR40",7.4014499999999996,12.116250000000001,19.517700000000001,null,"Zhendre CRFR40",0.49342999999999998,0.80775000000000008,1.3011800000000002,null,"Zhendre CRFR40",1,49343,80775.000000000015,130118.00000000001,null,"Zhendre CRFR40",1,0.49342999999999998,0.80775000000000008,1.30118,null,"Zhendre CRFR40",{"$f":"IF(F102=0, 'Country Input'!$D$7, ROUNDUP(LitersPerFacility/F102,0)*'Country Input'!$D$7)","v":10},493430,53850.000000000007,547280,null,"Zhendre CRFR40",{"$f":"ROUNDUP(LitersPerFacility/F102,0)*'Country Input'!$D$7*ROUNDUP('Total Solution Costs'!$B$2/Calculations!I102,0)","v":10},4.9342999999999995,0.80775000000000008,5.7420499999999999,null,null,"Zhendre CRFR40",{"$f":"(($U102+($O102)*IF(MOD(BH$3,$I102)=1,1,0)+Parts!$E$91*IF($J102=0,0,IF(MOD(BH$3,$I102)=1,IF(PQS!$R102=\"NO\",1,0),IF(MOD(BH$3,Calculations!$J102)=1,1,0)))+Parts!$E$92*IF(Calculations!$K102=0,0,IF(MOD(BH$3,$I102)=1,0,IF(MOD(BH$3,Calculations!$K102)=1,1,0))))*$AU102)*(1+'Country Input'!$C$45)^(Calculations!BH$3-$BH$3)+TrainingCost","v":547280},{"$f":"(($U102+($O102)*IF(MOD(BI$3,$I102)=1,1,0)+Parts!$E$91*IF($J102=0,0,IF(MOD(BI$3,$I102)=1,IF(PQS!$R102=\"NO\",1,0),IF(MOD(BI$3,Calculations!$J102)=1,1,0)))+Parts!$E$92*IF(Calculations!$K102=0,0,IF(MOD(BI$3,$I102)=1,0,IF(MOD(BI$3,Calculations!$K102)=1,1,0))))*$AU102)*(1+'Country Input'!$C$45)^(Calculations!BI$3-$BH$3)","v":53850.000000000007},{"$f":"(($U102+($O102)*IF(MOD(BJ$3,$I102)=1,1,0)+Parts!$E$91*IF($J102=0,0,IF(MOD(BJ$3,$I102)=1,IF(PQS!$R102=\"NO\",1,0),IF(MOD(BJ$3,Calculations!$J102)=1,1,0)))+Parts!$E$92*IF(Calculations!$K102=0,0,IF(MOD(BJ$3,$I102)=1,0,IF(MOD(BJ$3,Calculations!$K102)=1,1,0))))*$AU102)*(1+'Country Input'!$C$45)^(Calculations!BJ$3-$BH$3)","v":53850.000000000007},{"$f":"(($U102+($O102)*IF(MOD(BK$3,$I102)=1,1,0)+Parts!$E$91*IF($J102=0,0,IF(MOD(BK$3,$I102)=1,IF(PQS!$R102=\"NO\",1,0),IF(MOD(BK$3,Calculations!$J102)=1,1,0)))+Parts!$E$92*IF(Calculations!$K102=0,0,IF(MOD(BK$3,$I102)=1,0,IF(MOD(BK$3,Calculations!$K102)=1,1,0))))*$AU102)*(1+'Country Input'!$C$45)^(Calculations!BK$3-$BH$3)","v":53850.000000000007},{"$f":"(($U102+($O102)*IF(MOD(BL$3,$I102)=1,1,0)+Parts!$E$91*IF($J102=0,0,IF(MOD(BL$3,$I102)=1,IF(PQS!$R102=\"NO\",1,0),IF(MOD(BL$3,Calculations!$J102)=1,1,0)))+Parts!$E$92*IF(Calculations!$K102=0,0,IF(MOD(BL$3,$I102)=1,0,IF(MOD(BL$3,Calculations!$K102)=1,1,0))))*$AU102)*(1+'Country Input'!$C$45)^(Calculations!BL$3-$BH$3)","v":53850.000000000007},{"$f":"(($U102+($O102)*IF(MOD(BM$3,$I102)=1,1,0)+Parts!$E$91*IF($J102=0,0,IF(MOD(BM$3,$I102)=1,IF(PQS!$R102=\"NO\",1,0),IF(MOD(BM$3,Calculations!$J102)=1,1,0)))+Parts!$E$92*IF(Calculations!$K102=0,0,IF(MOD(BM$3,$I102)=1,0,IF(MOD(BM$3,Calculations!$K102)=1,1,0))))*$AU102)*(1+'Country Input'!$C$45)^(Calculations!BM$3-$BH$3)","v":53850.000000000007},{"$f":"(($U102+($O102)*IF(MOD(BN$3,$I102)=1,1,0)+Parts!$E$91*IF($J102=0,0,IF(MOD(BN$3,$I102)=1,IF(PQS!$R102=\"NO\",1,0),IF(MOD(BN$3,Calculations!$J102)=1,1,0)))+Parts!$E$92*IF(Calculations!$K102=0,0,IF(MOD(BN$3,$I102)=1,0,IF(MOD(BN$3,Calculations!$K102)=1,1,0))))*$AU102)*(1+'Country Input'!$C$45)^(Calculations!BN$3-$BH$3)","v":53850.000000000007},{"$f":"(($U102+($O102)*IF(MOD(BO$3,$I102)=1,1,0)+Parts!$E$91*IF($J102=0,0,IF(MOD(BO$3,$I102)=1,IF(PQS!$R102=\"NO\",1,0),IF(MOD(BO$3,Calculations!$J102)=1,1,0)))+Parts!$E$92*IF(Calculations!$K102=0,0,IF(MOD(BO$3,$I102)=1,0,IF(MOD(BO$3,Calculations!$K102)=1,1,0))))*$AU102)*(1+'Country Input'!$C$45)^(Calculations!BO$3-$BH$3)","v":53850.000000000007},{"$f":"(($U102+($O102)*IF(MOD(BP$3,$I102)=1,1,0)+Parts!$E$91*IF($J102=0,0,IF(MOD(BP$3,$I102)=1,IF(PQS!$R102=\"NO\",1,0),IF(MOD(BP$3,Calculations!$J102)=1,1,0)))+Parts!$E$92*IF(Calculations!$K102=0,0,IF(MOD(BP$3,$I102)=1,0,IF(MOD(BP$3,Calculations!$K102)=1,1,0))))*$AU102)*(1+'Country Input'!$C$45)^(Calculations!BP$3-$BH$3)","v":53850.000000000007},{"$f":"(($U102+($O102)*IF(MOD(BQ$3,$I102)=1,1,0)+Parts!$E$91*IF($J102=0,0,IF(MOD(BQ$3,$I102)=1,IF(PQS!$R102=\"NO\",1,0),IF(MOD(BQ$3,Calculations!$J102)=1,1,0)))+Parts!$E$92*IF(Calculations!$K102=0,0,IF(MOD(BQ$3,$I102)=1,0,IF(MOD(BQ$3,Calculations!$K102)=1,1,0))))*$AU102)*(1+'Country Input'!$C$45)^(Calculations!BQ$3-$BH$3)","v":53850.000000000007},{"$f":"(($U102+($O102)*IF(MOD(BR$3,$I102)=1,1,0)+Parts!$E$91*IF($J102=0,0,IF(MOD(BR$3,$I102)=1,IF(PQS!$R102=\"NO\",1,0),IF(MOD(BR$3,Calculations!$J102)=1,1,0)))+Parts!$E$92*IF(Calculations!$K102=0,0,IF(MOD(BR$3,$I102)=1,0,IF(MOD(BR$3,Calculations!$K102)=1,1,0))))*$AU102)*(1+'Country Input'!$C$45)^(Calculations!BR$3-$BH$3)","v":53850.000000000007},{"$f":"(($U102+($O102)*IF(MOD(BS$3,$I102)=1,1,0)+Parts!$E$91*IF($J102=0,0,IF(MOD(BS$3,$I102)=1,IF(PQS!$R102=\"NO\",1,0),IF(MOD(BS$3,Calculations!$J102)=1,1,0)))+Parts!$E$92*IF(Calculations!$K102=0,0,IF(MOD(BS$3,$I102)=1,0,IF(MOD(BS$3,Calculations!$K102)=1,1,0))))*$AU102)*(1+'Country Input'!$C$45)^(Calculations!BS$3-$BH$3)","v":53850.000000000007},{"$f":"(($U102+($O102)*IF(MOD(BT$3,$I102)=1,1,0)+Parts!$E$91*IF($J102=0,0,IF(MOD(BT$3,$I102)=1,IF(PQS!$R102=\"NO\",1,0),IF(MOD(BT$3,Calculations!$J102)=1,1,0)))+Parts!$E$92*IF(Calculations!$K102=0,0,IF(MOD(BT$3,$I102)=1,0,IF(MOD(BT$3,Calculations!$K102)=1,1,0))))*$AU102)*(1+'Country Input'!$C$45)^(Calculations!BT$3-$BH$3)","v":53850.000000000007},{"$f":"(($U102+($O102)*IF(MOD(BU$3,$I102)=1,1,0)+Parts!$E$91*IF($J102=0,0,IF(MOD(BU$3,$I102)=1,IF(PQS!$R102=\"NO\",1,0),IF(MOD(BU$3,Calculations!$J102)=1,1,0)))+Parts!$E$92*IF(Calculations!$K102=0,0,IF(MOD(BU$3,$I102)=1,0,IF(MOD(BU$3,Calculations!$K102)=1,1,0))))*$AU102)*(1+'Country Input'!$C$45)^(Calculations!BU$3-$BH$3)","v":53850.000000000007},{"$f":"(($U102+($O102)*IF(MOD(BV$3,$I102)=1,1,0)+Parts!$E$91*IF($J102=0,0,IF(MOD(BV$3,$I102)=1,IF(PQS!$R102=\"NO\",1,0),IF(MOD(BV$3,Calculations!$J102)=1,1,0)))+Parts!$E$92*IF(Calculations!$K102=0,0,IF(MOD(BV$3,$I102)=1,0,IF(MOD(BV$3,Calculations!$K102)=1,1,0))))*$AU102)*(1+'Country Input'!$C$45)^(Calculations!BV$3-$BH$3)","v":53850.000000000007},{"$f":"(($U102+($O102)*IF(MOD(BW$3,$I102)=1,1,0)+Parts!$E$91*IF($J102=0,0,IF(MOD(BW$3,$I102)=1,IF(PQS!$R102=\"NO\",1,0),IF(MOD(BW$3,Calculations!$J102)=1,1,0)))+Parts!$E$92*IF(Calculations!$K102=0,0,IF(MOD(BW$3,$I102)=1,0,IF(MOD(BW$3,Calculations!$K102)=1,1,0))))*$AU102)*(1+'Country Input'!$C$45)^(Calculations!BW$3-$BH$3)","v":547280},{"$f":"(($U102+($O102)*IF(MOD(BX$3,$I102)=1,1,0)+Parts!$E$91*IF($J102=0,0,IF(MOD(BX$3,$I102)=1,IF(PQS!$R102=\"NO\",1,0),IF(MOD(BX$3,Calculations!$J102)=1,1,0)))+Parts!$E$92*IF(Calculations!$K102=0,0,IF(MOD(BX$3,$I102)=1,0,IF(MOD(BX$3,Calculations!$K102)=1,1,0))))*$AU102)*(1+'Country Input'!$C$45)^(Calculations!BX$3-$BH$3)","v":53850.000000000007},{"$f":"(($U102+($O102)*IF(MOD(BY$3,$I102)=1,1,0)+Parts!$E$91*IF($J102=0,0,IF(MOD(BY$3,$I102)=1,IF(PQS!$R102=\"NO\",1,0),IF(MOD(BY$3,Calculations!$J102)=1,1,0)))+Parts!$E$92*IF(Calculations!$K102=0,0,IF(MOD(BY$3,$I102)=1,0,IF(MOD(BY$3,Calculations!$K102)=1,1,0))))*$AU102)*(1+'Country Input'!$C$45)^(Calculations!BY$3-$BH$3)","v":53850.000000000007},{"$f":"(($U102+($O102)*IF(MOD(BZ$3,$I102)=1,1,0)+Parts!$E$91*IF($J102=0,0,IF(MOD(BZ$3,$I102)=1,IF(PQS!$R102=\"NO\",1,0),IF(MOD(BZ$3,Calculations!$J102)=1,1,0)))+Parts!$E$92*IF(Calculations!$K102=0,0,IF(MOD(BZ$3,$I102)=1,0,IF(MOD(BZ$3,Calculations!$K102)=1,1,0))))*$AU102)*(1+'Country Input'!$C$45)^(Calculations!BZ$3-$BH$3)","v":53850.000000000007},{"$f":"(($U102+($O102)*IF(MOD(CA$3,$I102)=1,1,0)+Parts!$E$91*IF($J102=0,0,IF(MOD(CA$3,$I102)=1,IF(PQS!$R102=\"NO\",1,0),IF(MOD(CA$3,Calculations!$J102)=1,1,0)))+Parts!$E$92*IF(Calculations!$K102=0,0,IF(MOD(CA$3,$I102)=1,0,IF(MOD(CA$3,Calculations!$K102)=1,1,0))))*$AU102)*(1+'Country Input'!$C$45)^(Calculations!CA$3-$BH$3)","v":53850.000000000007},null,"Zhendre CRFR40",547280,53850.000000000007,53850.000000000007,53850.000000000007,53850.000000000007,53850.000000000007,53850.000000000007,53850.000000000007,53850.000000000007,53850.000000000007,53850.000000000007,53850.000000000007,53850.000000000007,53850.000000000007,53850.000000000007,547280,53850.000000000007,53850.000000000007,53850.000000000007,53850.000000000007,{"$f":"SUM(CD102:INDEX($CD102:$CW102,1,'Total Solution Costs'!$B$2))","v":1031930},null,"Zhendre CRFR40",{"$f":"SUM($BH102:BH102)","v":547280},{"$f":"SUM($BH102:BI102)","v":601130},{"$f":"SUM($BH102:BJ102)","v":654980},{"$f":"SUM($BH102:BK102)","v":708830},{"$f":"SUM($BH102:BL102)","v":762680},{"$f":"SUM($BH102:BM102)","v":816530},{"$f":"SUM($BH102:BN102)","v":870380},{"$f":"SUM($BH102:BO102)","v":924230},{"$f":"SUM($BH102:BP102)","v":978080},{"$f":"SUM($BH102:BQ102)","v":1031930},{"$f":"SUM($BH102:BR102)","v":1085780},{"$f":"SUM($BH102:BS102)","v":1139630},{"$f":"SUM($BH102:BT102)","v":1193480},{"$f":"SUM($BH102:BU102)","v":1247330},{"$f":"SUM($BH102:BV102)","v":1301180},{"$f":"SUM($BH102:BW102)","v":1848460},{"$f":"SUM($BH102:BX102)","v":1902310},{"$f":"SUM($BH102:BY102)","v":1956160},{"$f":"SUM($BH102:BZ102)","v":2010010},{"$f":"SUM($BH102:CA102)","v":2063860}]
[{"$f":"PQS!A103","v":"WICR FR"},{"$f":"PQS!B103","v":"E001/CRFR40-Huurre"},{"$f":"PQS!E103","v":"CRFR40"},{"$f":"PQS!F103","v":"Huurre"},{"$f":"PQS!D103","v":"Huurre CRFR40"},{"$f":"VLOOKUP(E103,PQS!$D$5:$K$107,COLUMN(PQS!$I$3)-COLUMN(PQS!$D$3)+1,FALSE)","v":6666.666666666667},{"$f":"VLOOKUP(E103,PQS!$D$5:$K$107,COLUMN(PQS!$J$3)-COLUMN(PQS!$D$3)+1,FALSE)","v":15000},{"$f":"VLOOKUP(E103,PQS!$D$5:$K$107,COLUMN(PQS!$G$3)-COLUMN(PQS!$D$3)+1,FALSE)","v":"No"},{"$f":"HLOOKUP(B103,INDIRECT(\"'\"&A103&\"'!$10:$15\"),ROW('Technology template'!$A$11)-ROW('Technology template'!$A$10)+1,FALSE)","v":15},{"$f":"HLOOKUP(B103,INDIRECT(\"'\"&A103&\"'!$10:$15\"),ROW('Technology template'!$A$12)-ROW('Technology template'!$A$10)+1,FALSE)","v":0},{"$f":"HLOOKUP(B103,INDIRECT(\"'\"&A103&\"'!$10:$15\"),ROW('Technology template'!$A$13)-ROW('Technology template'!$A$10)+1,FALSE)","v":0},{"$f":"VLOOKUP(B103,PQS!$B:$Q,MATCH(PQS!$Q$3,PQS!$B$3:$Q$3,0),FALSE)*(1+'Country Input'!$C$47)+HLOOKUP(B103,INDIRECT(\"'\"&A103&\"'!$10:$15\"),ROW('Technology template'!$A$14)-ROW('Technology template'!$A$10)+1,FALSE)*(1+'Country Input'!$C$47)","v":47615},{"$f":"HLOOKUP(B103,INDIRECT(\"'\"&A103&\"'!$10:$80\"),MATCH('Technology template'!$A$27,INDIRECT(\"'\"&A103&\"'!$A$10:$A$80\"),0),FALSE)+'Labor and Maintenance '!$E$17","v":1728},{"$f":"VLOOKUP(B103,PQS!B:T,MATCH(PQS!$T$3,PQS!$B$3:$T$3,0),FALSE)*(1+'Country Input'!$C$47)","v":0},49343,3289.5333333333333,{"$f":"VLOOKUP(B103,PQS!$B:$AE,COLUMN(PQS!AD101)-1,FALSE)","v":4891},{"$f":"IFERROR(1/HLOOKUP(B103,INDIRECT(\"'\"&A103&\"'!$10:$80\"),MATCH('Technology template'!$A$31,INDIRECT(\"'\"&A103&\"'!$A$10:$A$80\"),0),FALSE)*HLOOKUP(B103,INDIRECT(\"'\"&A103&\"'!$10:$80\"),MATCH('Technology template'!$A$41,INDIRECT(\"'\"&A103&\"'!$A10:$A$80\"),0),FALSE),0)*TechnicianHourlyWage+IF(A103=\"Solar w Battery\",1/'Labor and Maintenance '!$E$53*'Labor and Maintenance '!$D$53,0)+IF(A103=\"LT passive\", 1/'Labor and Maintenance '!$E$81*'Labor and Maintenance '!$D$81,0)","v":32},{"$f":"IFERROR(1/HLOOKUP(B103,INDIRECT(\"'\"&A103&\"'!$10:$80\"),MATCH('Technology template'!$A$34,INDIRECT(\"'\"&A103&\"'!$A$10:$A$80\"),0),FALSE)*(HLOOKUP(B103,INDIRECT(\"'\"&A103&\"'!$10:$80\"),MATCH('Technology template'!$A$44,INDIRECT(\"'\"&A103&\"'!$A10:$A$80\"),0),FALSE)*TechnicianHourlyWage+RemoteTravelCostPerDay),0)+IFERROR(1/HLOOKUP(B103,INDIRECT(\"'\"&A103&\"'!$10:$80\"),MATCH('Technology template'!$A$35,INDIRECT(\"'\"&A103&\"'!$A$10:$A$80\"),0),FALSE)*(HLOOKUP(B103,INDIRECT(\"'\"&A103&\"'!$10:$80\"),MATCH('Technology template'!$A$45,INDIRECT(\"'\"&A103&\"'!$A10:$A$80\"),0),FALSE)*TechnicianHourlyWage+RemoteTravelCostPerDay),0)+IFERROR(1/HLOOKUP(B103,INDIRECT(\"'\"&A103&\"'!$10:$80\"),MATCH('Technology template'!$A$37,INDIRECT(\"'\"&A103&\"'!$A$10:$A$80\"),0),FALSE)*(HLOOKUP(B103,INDIRECT(\"'\"&A103&\"'!$10:$80\"),MATCH('Technology template'!$A$46,INDIRECT(\"'\"&A103&\"'!$A10:$A$80\"),0),FALSE)*TechnicianHourlyWage+'Labor and Maintenance '!$B$8),0)","v":24},74205,4947,8236.5333333333328,null,"Huurre CRFR40",7.4014499999999996,11.130749999999999,18.5322,null,"Huurre CRFR40",0.49342999999999998,0.74204999999999999,1.2354799999999999,null,"Huurre CRFR40",1,49343,74205,123548,null,"Huurre CRFR40",1,0.49342999999999998,0.74204999999999999,1.2354799999999999,null,"Huurre CRFR40",{"$f":"IF(F103=0, 'Country Input'!$D$7, ROUNDUP(LitersPerFacility/F103,0)*'Country Input'!$D$7)","v":10},493430,49470,542900,null,"Huurre CRFR40",{"$f":"ROUNDUP(LitersPerFacility/F103,0)*'Country Input'!$D$7*ROUNDUP('Total Solution Costs'!$B$2/Calculations!I103,0)","v":10},4.9342999999999995,0.74204999999999999,5.6763499999999993,null,null,"Huurre CRFR40",{"$f":"(($U103+($O103)*IF(MOD(BH$3,$I103)=1,1,0)+Parts!$E$91*IF($J103=0,0,IF(MOD(BH$3,$I103)=1,IF(PQS!$R103=\"NO\",1,0),IF(MOD(BH$3,Calculations!$J103)=1,1,0)))+Parts!$E$92*IF(Calculations!$K103=0,0,IF(MOD(BH$3,$I103)=1,0,IF(MOD(BH$3,Calculations!$K103)=1,1,0))))*$AU103)*(1+'Country Input'!$C$45)^(Calculations!BH$3-$BH$3)+TrainingCost","v":542900},{"$f":"(($U103+($O103)*IF(MOD(BI$3,$I103)=1,1,0)+Parts!$E$91*IF($J103=0,0,IF(MOD(BI$3,$I103)=1,IF(PQS!$R103=\"NO\",1,0),IF(MOD(BI$3,Calculations!$J103)=1,1,0)))+Parts!$E$92*IF(Calculations!$K103=0,0,IF(MOD(BI$3,$I103)=1,0,IF(MOD(BI$3,Calculations!$K103)=1,1,0))))*$AU103)*(1+'Country Input'!$C$45)^(Calculations!BI$3-$BH$3)","v":49470},{"$f":"(($U103+($O103)*IF(MOD(BJ$3,$I103)=1,1,0)+Parts!$E$91*IF($J103=0,0,IF(MOD(BJ$3,$I103)=1,IF(PQS!$R103=\"NO\",1,0),IF(MOD(BJ$3,Calculations!$J103)=1,1,0)))+Parts!$E$92*IF(Calculations!$K103=0,0,IF(MOD(BJ$3,$I103)=1,0,IF(MOD(BJ$3,Calculations!$K103)=1,1,0))))*$AU103)*(1+'Country Input'!$C$45)^(Calculations!BJ$3-$BH$3)","v":49470},{"$f":"(($U103+($O103)*IF(MOD(BK$3,$I103)=1,1,0)+Parts!$E$91*IF($J103=0,0,IF(MOD(BK$3,$I103)=1,IF(PQS!$R103=\"NO\",1,0),IF(MOD(BK$3,Calculations!$J103)=1,1,0)))+Parts!$E$92*IF(Calculations!$K103=0,0,IF(MOD(BK$3,$I103)=1,0,IF(MOD(BK$3,Calculations!$K103)=1,1,0))))*$AU103)*(1+'Country Input'!$C$45)^(Calculations!BK$3-$BH$3)","v":49470},{"$f":"(($U103+($O103)*IF(MOD(BL$3,$I103)=1,1,0)+Parts!$E$91*IF($J103=0,0,IF(MOD(BL$3,$I103)=1,IF(PQS!$R103=\"NO\",1,0),IF(MOD(BL$3,Calculations!$J103)=1,1,0)))+Parts!$E$92*IF(Calculations!$K103=0,0,IF(MOD(BL$3,$I103)=1,0,IF(MOD(BL$3,Calculations!$K103)=1,1,0))))*$AU103)*(1+'Country Input'!$C$45)^(Calculations!BL$3-$BH$3)","v":49470},{"$f":"(($U103+($O103)*IF(MOD(BM$3,$I103)=1,1,0)+Parts!$E$91*IF($J103=0,0,IF(MOD(BM$3,$I103)=1,IF(PQS!$R103=\"NO\",1,0),IF(MOD(BM$3,Calculations!$J103)=1,1,0)))+Parts!$E$92*IF(Calculations!$K103=0,0,IF(MOD(BM$3,$I103)=1,0,IF(MOD(BM$3,Calculations!$K103)=1,1,0))))*$AU103)*(1+'Country Input'!$C$45)^(Calculations!BM$3-$BH$3)","v":49470},{"$f":"(($U103+($O103)*IF(MOD(BN$3,$I103)=1,1,0)+Parts!$E$91*IF($J103=0,0,IF(MOD(BN$3,$I103)=1,IF(PQS!$R103=\"NO\",1,0),IF(MOD(BN$3,Calculations!$J103)=1,1,0)))+Parts!$E$92*IF(Calculations!$K103=0,0,IF(MOD(BN$3,$I103)=1,0,IF(MOD(BN$3,Calculations!$K103)=1,1,0))))*$AU103)*(1+'Country Input'!$C$45)^(Calculations!BN$3-$BH$3)","v":49470},{"$f":"(($U103+($O103)*IF(MOD(BO$3,$I103)=1,1,0)+Parts!$E$91*IF($J103=0,0,IF(MOD(BO$3,$I103)=1,IF(PQS!$R103=\"NO\",1,0),IF(MOD(BO$3,Calculations!$J103)=1,1,0)))+Parts!$E$92*IF(Calculations!$K103=0,0,IF(MOD(BO$3,$I103)=1,0,IF(MOD(BO$3,Calculations!$K103)=1,1,0))))*$AU103)*(1+'Country Input'!$C$45)^(Calculations!BO$3-$BH$3)","v":49470},{"$f":"(($U103+($O103)*IF(MOD(BP$3,$I103)=1,1,0)+Parts!$E$91*IF($J103=0,0,IF(MOD(BP$3,$I103)=1,IF(PQS!$R103=\"NO\",1,0),IF(MOD(BP$3,Calculations!$J103)=1,1,0)))+Parts!$E$92*IF(Calculations!$K103=0,0,IF(MOD(BP$3,$I103)=1,0,IF(MOD(BP$3,Calculations!$K103)=1,1,0))))*$AU103)*(1+'Country Input'!$C$45)^(Calculations!BP$3-$BH$3)","v":49470},{"$f":"(($U103+($O103)*IF(MOD(BQ$3,$I103)=1,1,0)+Parts!$E$91*IF($J103=0,0,IF(MOD(BQ$3,$I103)=1,IF(PQS!$R103=\"NO\",1,0),IF(MOD(BQ$3,Calculations!$J103)=1,1,0)))+Parts!$E$92*IF(Calculations!$K103=0,0,IF(MOD(BQ$3,$I103)=1,0,IF(MOD(BQ$3,Calculations!$K103)=1,1,0))))*$AU103)*(1+'Country Input'!$C$45)^(Calculations!BQ$3-$BH$3)","v":49470},{"$f":"(($U103+($O103)*IF(MOD(BR$3,$I103)=1,1,0)+Parts!$E$91*IF($J103=0,0,IF(MOD(BR$3,$I103)=1,IF(PQS!$R103=\"NO\",1,0),IF(MOD(BR$3,Calculations!$J103)=1,1,0)))+Parts!$E$92*IF(Calculations!$K103=0,0,IF(MOD(BR$3,$I103)=1,0,IF(MOD(BR$3,Calculations!$K103)=1,1,0))))*$AU103)*(1+'Country Input'!$C$45)^(Calculations!BR$3-$BH$3)","v":49470},{"$f":"(($U103+($O103)*IF(MOD(BS$3,$I103)=1,1,0)+Parts!$E$91*IF($J103=0,0,IF(MOD(BS$3,$I103)=1,IF(PQS!$R103=\"NO\",1,0),IF(MOD(BS$3,Calculations!$J103)=1,1,0)))+Parts!$E$92*IF(Calculations!$K103=0,0,IF(MOD(BS$3,$I103)=1,0,IF(MOD(BS$3,Calculations!$K103)=1,1,0))))*$AU103)*(1+'Country Input'!$C$45)^(Calculations!BS$3-$BH$3)","v":49470},{"$f":"(($U103+($O103)*IF(MOD(BT$3,$I103)=1,1,0)+Parts!$E$91*IF($J103=0,0,IF(MOD(BT$3,$I103)=1,IF(PQS!$R103=\"NO\",1,0),IF(MOD(BT$3,Calculations!$J103)=1,1,0)))+Parts!$E$92*IF(Calculations!$K103=0,0,IF(MOD(BT$3,$I103)=1,0,IF(MOD(BT$3,Calculations!$K103)=1,1,0))))*$AU103)*(1+'Country Input'!$C$45)^(Calculations!BT$3-$BH$3)","v":49470},{"$f":"(($U103+($O103)*IF(MOD(BU$3,$I103)=1,1,0)+Parts!$E$91*IF($J103=0,0,IF(MOD(BU$3,$I103)=1,IF(PQS!$R103=\"NO\",1,0),IF(MOD(BU$3,Calculations!$J103)=1,1,0)))+Parts!$E$92*IF(Calculations!$K103=0,0,IF(MOD(BU$3,$I103)=1,0,IF(MOD(BU$3,Calculations!$K103)=1,1,0))))*$AU103)*(1+'Country Input'!$C$45)^(Calculations!BU$3-$BH$3)","v":49470},{"$f":"(($U103+($O103)*IF(MOD(BV$3,$I103)=1,1,0)+Parts!$E$91*IF($J103=0,0,IF(MOD(BV$3,$I103)=1,IF(PQS!$R103=\"NO\",1,0),IF(MOD(BV$3,Calculations!$J103)=1,1,0)))+Parts!$E$92*IF(Calculations!$K103=0,0,IF(MOD(BV$3,$I103)=1,0,IF(MOD(BV$3,Calculations!$K103)=1,1,0))))*$AU103)*(1+'Country Input'!$C$45)^(Calculations!BV$3-$BH$3)","v":49470},{"$f":"(($U103+($O103)*IF(MOD(BW$3,$I103)=1,1,0)+Parts!$E$91*IF($J103=0,0,IF(MOD(BW$3,$I103)=1,IF(PQS!$R103=\"NO\",1,0),IF(MOD(BW$3,Calculations!$J103)=1,1,0)))+Parts!$E$92*IF(Calculations!$K103=0,0,IF(MOD(BW$3,$I103)=1,0,IF(MOD(BW$3,Calculations!$K103)=1,1,0))))*$AU103)*(1+'Country Input'!$C$45)^(Calculations!BW$3-$BH$3)","v":542900},{"$f":"(($U103+($O103)*IF(MOD(BX$3,$I103)=1,1,0)+Parts!$E$91*IF($J103=0,0,IF(MOD(BX$3,$I103)=1,IF(PQS!$R103=\"NO\",1,0),IF(MOD(BX$3,Calculations!$J103)=1,1,0)))+Parts!$E$92*IF(Calculations!$K103=0,0,IF(MOD(BX$3,$I103)=1,0,IF(MOD(BX$3,Calculations!$K103)=1,1,0))))*$AU103)*(1+'Country Input'!$C$45)^(Calculations!BX$3-$BH$3)","v":49470},{"$f":"(($U103+($O103)*IF(MOD(BY$3,$I103)=1,1,0)+Parts!$E$91*IF($J103=0,0,IF(MOD(BY$3,$I103)=1,IF(PQS!$R103=\"NO\",1,0),IF(MOD(BY$3,Calculations!$J103)=1,1,0)))+Parts!$E$92*IF(Calculations!$K103=0,0,IF(MOD(BY$3,$I103)=1,0,IF(MOD(BY$3,Calculations!$K103)=1,1,0))))*$AU103)*(1+'Country Input'!$C$45)^(Calculations!BY$3-$BH$3)","v":49470},{"$f":"(($U103+($O103)*IF(MOD(BZ$3,$I103)=1,1,0)+Parts!$E$91*IF($J103=0,0,IF(MOD(BZ$3,$I103)=1,IF(PQS!$R103=\"NO\",1,0),IF(MOD(BZ$3,Calculations!$J103)=1,1,0)))+Parts!$E$92*IF(Calculations!$K103=0,0,IF(MOD(BZ$3,$I103)=1,0,IF(MOD(BZ$3,Calculations!$K103)=1,1,0))))*$AU103)*(1+'Country Input'!$C$45)^(Calculations!BZ$3-$BH$3)","v":49470},{"$f":"(($U103+($O103)*IF(MOD(CA$3,$I103)=1,1,0)+Parts!$E$91*IF($J103=0,0,IF(MOD(CA$3,$I103)=1,IF(PQS!$R103=\"NO\",1,0),IF(MOD(CA$3,Calculations!$J103)=1,1,0)))+Parts!$E$92*IF(Calculations!$K103=0,0,IF(MOD(CA$3,$I103)=1,0,IF(MOD(CA$3,Calculations!$K103)=1,1,0))))*$AU103)*(1+'Country Input'!$C$45)^(Calculations!CA$3-$BH$3)","v":49470},null,"Huurre CRFR40",542900,49470,49470,49470,49470,49470,49470,49470,49470,49470,49470,49470,49470,49470,49470,542900,49470,49470,49470,49470,{"$f":"SUM(CD103:INDEX($CD103:$CW103,1,'Total Solution Costs'!$B$2))","v":988130},null,"Huurre CRFR40",{"$f":"SUM($BH103:BH103)","v":542900},{"$f":"SUM($BH103:BI103)","v":592370},{"$f":"SUM($BH103:BJ103)","v":641840},{"$f":"SUM($BH103:BK103)","v":691310},{"$f":"SUM($BH103:BL103)","v":740780},{"$f":"SUM($BH103:BM103)","v":790250},{"$f":"SUM($BH103:BN103)","v":839720},{"$f":"SUM($BH103:BO103)","v":889190},{"$f":"SUM($BH103:BP103)","v":938660},{"$f":"SUM($BH103:BQ103)","v":988130},{"$f":"SUM($BH103:BR103)","v":1037600},{"$f":"SUM($BH103:BS103)","v":1087070},{"$f":"SUM($BH103:BT103)","v":1136540},{"$f":"SUM($BH103:BU103)","v":1186010},{"$f":"SUM($BH103:BV103)","v":1235480},{"$f":"SUM($BH103:BW103)","v":1778380},{"$f":"SUM($BH103:BX103)","v":1827850},{"$f":"SUM($BH103:BY103)","v":1877320},{"$f":"SUM($BH103:BZ103)","v":1926790},{"$f":"SUM($BH103:CA103)","v":1976260}]
[{"$f":"PQS!A104","v":"WICR FR"},{"$f":"PQS!B104","v":"E001/CRFR40-Haier"},{"$f":"PQS!E104","v":"CRFR40"},{"$f":"PQS!F104","v":"Haier"},{"$f":"PQS!D104","v":"Haier CRFR40"},{"$f":"VLOOKUP(E104,PQS!$D$5:$K$107,COLUMN(PQS!$I$3)-COLUMN(PQS!$D$3)+1,FALSE)","v":6666.666666666667},{"$f":"VLOOKUP(E104,PQS!$D$5:$K$107,COLUMN(PQS!$J$3)-COLUMN(PQS!$D$3)+1,FALSE)","v":15000},{"$f":"VLOOKUP(E104,PQS!$D$5:$K$107,COLUMN(PQS!$G$3)-COLUMN(PQS!$D$3)+1,FALSE)","v":"No"},{"$f":"HLOOKUP(B104,INDIRECT(\"'\"&A104&\"'!$10:$15\"),ROW('Technology template'!$A$11)-ROW('Technology template'!$A$10)+1,FALSE)","v":15},{"$f":"HLOOKUP(B104,INDIRECT(\"'\"&A104&\"'!$10:$15\"),ROW('Technology template'!$A$12)-ROW('Technology template'!$A$10)+1,FALSE)","v":0},{"$f":"HLOOKUP(B104,INDIRECT(\"'\"&A104&\"'!$10:$15\"),ROW('Technology template'!$A$13)-ROW('Technology template'!$A$10)+1,FALSE)","v":0},{"$f":"VLOOKUP(B104,PQS!$B:$Q,MATCH(PQS!$Q$3,PQS!$B$3:$Q$3,0),FALSE)*(1+'Country Input'!$C$47)+HLOOKUP(B104,INDIRECT(\"'\"&A104&\"'!$10:$15\"),ROW('Technology template'!$A$14)-ROW('Technology template'!$A$10)+1,FALSE)*(1+'Country Input'!$C$47)","v":47615},{"$f":"HLOOKUP(B104,INDIRECT(\"'\"&A104&\"'!$10:$80\"),MATCH('Technology template'!$A$27,INDIRECT(\"'\"&A104&\"'!$A$10:$A$80\"),0),FALSE)+'Labor and Maintenance '!$E$17","v":1728},{"$f":"VLOOKUP(B104,PQS!B:T,MATCH(PQS!$T$3,PQS!$B$3:$T$3,0),FALSE)*(1+'Country Input'!$C$47)","v":0},49343,3289.5333333333333,{"$f":"VLOOKUP(B104,PQS!$B:$AE,COLUMN(PQS!AD102)-1,FALSE)","v":1734.4800000000002},{"$f":"IFERROR(1/HLOOKUP(B104,INDIRECT(\"'\"&A104&\"'!$10:$80\"),MATCH('Technology template'!$A$31,INDIRECT(\"'\"&A104&\"'!$A$10:$A$80\"),0),FALSE)*HLOOKUP(B104,INDIRECT(\"'\"&A104&\"'!$10:$80\"),MATCH('Technology template'!$A$41,INDIRECT(\"'\"&A104&\"'!$A10:$A$80\"),0),FALSE),0)*TechnicianHourlyWage+IF(A104=\"Solar w Battery\",1/'Labor and Maintenance '!$E$53*'Labor and Maintenance '!$D$53,0)+IF(A104=\"LT passive\", 1/'Labor and Maintenance '!$E$81*'Labor and Maintenance '!$D$81,0)","v":32},{"$f":"IFERROR(1/HLOOKUP(B104,INDIRECT(\"'\"&A104&\"'!$10:$80\"),MATCH('Technology template'!$A$34,INDIRECT(\"'\"&A104&\"'!$A$10:$A$80\"),0),FALSE)*(HLOOKUP(B104,INDIRECT(\"'\"&A104&\"'!$10:$80\"),MATCH('Technology template'!$A$44,INDIRECT(\"'\"&A104&\"'!$A10:$A$80\"),0),FALSE)*TechnicianHourlyWage+RemoteTravelCostPerDay),0)+IFERROR(1/HLOOKUP(B104,INDIRECT(\"'\"&A104&\"'!$10:$80\"),MATCH('Technology template'!$A$35,INDIRECT(\"'\"&A104&\"'!$A$10:$A$80\"),0),FALSE)*(HLOOKUP(B104,INDIRECT(\"'\"&A104&\"'!$10:$80\"),MATCH('Technology template'!$A$45,INDIRECT(\"'\"&A104&\"'!$A10:$A$80\"),0),FALSE)*TechnicianHourlyWage+RemoteTravelCostPerDay),0)+IFERROR(1/HLOOKUP(B104,INDIRECT(\"'\"&A104&\"'!$10:$80\"),MATCH('Technology template'!$A$37,INDIRECT(\"'\"&A104&\"'!$A$10:$A$80\"),0),FALSE)*(HLOOKUP(B104,INDIRECT(\"'\"&A104&\"'!$10:$80\"),MATCH('Technology template'!$A$46,INDIRECT(\"'\"&A104&\"'!$A10:$A$80\"),0),FALSE)*TechnicianHourlyWage+'Labor and Maintenance '!$B$8),0)","v":24},26857.200000000004,1790.4800000000002,5080.0133333333333,null,"Haier CRFR40",7.4014499999999996,4.0285800000000007,11.43003,null,"Haier CRFR40",0.49342999999999998,0.26857200000000003,0.76200199999999996,null,"Haier CRFR40",1,49343,26857.200000000004,76200.200000000012,null,"Haier CRFR40",1,0.49342999999999998,0.26857200000000003,0.76200200000000007,null,"Haier CRFR40",{"$f":"IF(F104=0, 'Country Input'!$D$7, ROUNDUP(LitersPerFacility/F104,0)*'Country Input'!$D$7)","v":10},493430,17904.800000000003,511334.8,null,"Haier CRFR40",{"$f":"ROUNDUP(LitersPerFacility/F104,0)*'Country Input'!$D$7*ROUNDUP('Total Solution Costs'!$B$2/Calculations!I104,0)","v":10},4.9342999999999995,0.26857200000000003,5.2028719999999993,null,null,"Haier CRFR40",{"$f":"(($U104+($O104)*IF(MOD(BH$3,$I104)=1,1,0)+Parts!$E$91*IF($J104=0,0,IF(MOD(BH$3,$I104)=1,IF(PQS!$R104=\"NO\",1,0),IF(MOD(BH$3,Calculations!$J104)=1,1,0)))+Parts!$E$92*IF(Calculations!$K104=0,0,IF(MOD(BH$3,$I104)=1,0,IF(MOD(BH$3,Calculations!$K104)=1,1,0))))*$AU104)*(1+'Country Input'!$C$45)^(Calculations!BH$3-$BH$3)+TrainingCost","v":511334.80000000005},{"$f":"(($U104+($O104)*IF(MOD(BI$3,$I104)=1,1,0)+Parts!$E$91*IF($J104=0,0,IF(MOD(BI$3,$I104)=1,IF(PQS!$R104=\"NO\",1,0),IF(MOD(BI$3,Calculations!$J104)=1,1,0)))+Parts!$E$92*IF(Calculations!$K104=0,0,IF(MOD(BI$3,$I104)=1,0,IF(MOD(BI$3,Calculations!$K104)=1,1,0))))*$AU104)*(1+'Country Input'!$C$45)^(Calculations!BI$3-$BH$3)","v":17904.800000000003},{"$f":"(($U104+($O104)*IF(MOD(BJ$3,$I104)=1,1,0)+Parts!$E$91*IF($J104=0,0,IF(MOD(BJ$3,$I104)=1,IF(PQS!$R104=\"NO\",1,0),IF(MOD(BJ$3,Calculations!$J104)=1,1,0)))+Parts!$E$92*IF(Calculations!$K104=0,0,IF(MOD(BJ$3,$I104)=1,0,IF(MOD(BJ$3,Calculations!$K104)=1,1,0))))*$AU104)*(1+'Country Input'!$C$45)^(Calculations!BJ$3-$BH$3)","v":17904.800000000003},{"$f":"(($U104+($O104)*IF(MOD(BK$3,$I104)=1,1,0)+Parts!$E$91*IF($J104=0,0,IF(MOD(BK$3,$I104)=1,IF(PQS!$R104=\"NO\",1,0),IF(MOD(BK$3,Calculations!$J104)=1,1,0)))+Parts!$E$92*IF(Calculations!$K104=0,0,IF(MOD(BK$3,$I104)=1,0,IF(MOD(BK$3,Calculations!$K104)=1,1,0))))*$AU104)*(1+'Country Input'!$C$45)^(Calculations!BK$3-$BH$3)","v":17904.800000000003},{"$f":"(($U104+($O104)*IF(MOD(BL$3,$I104)=1,1,0)+Parts!$E$91*IF($J104=0,0,IF(MOD(BL$3,$I104)=1,IF(PQS!$R104=\"NO\",1,0),IF(MOD(BL$3,Calculations!$J104)=1,1,0)))+Parts!$E$92*IF(Calculations!$K104=0,0,IF(MOD(BL$3,$I104)=1,0,IF(MOD(BL$3,Calculations!$K104)=1,1,0))))*$AU104)*(1+'Country Input'!$C$45)^(Calculations!BL$3-$BH$3)","v":17904.800000000003},{"$f":"(($U104+($O104)*IF(MOD(BM$3,$I104)=1,1,0)+Parts!$E$91*IF($J104=0,0,IF(MOD(BM$3,$I104)=1,IF(PQS!$R104=\"NO\",1,0),IF(MOD(BM$3,Calculations!$J104)=1,1,0)))+Parts!$E$92*IF(Calculations!$K104=0,0,IF(MOD(BM$3,$I104)=1,0,IF(MOD(BM$3,Calculations!$K104)=1,1,0))))*$AU104)*(1+'Country Input'!$C$45)^(Calculations!BM$3-$BH$3)","v":17904.800000000003},{"$f":"(($U104+($O104)*IF(MOD(BN$3,$I104)=1,1,0)+Parts!$E$91*IF($J104=0,0,IF(MOD(BN$3,$I104)=1,IF(PQS!$R104=\"NO\",1,0),IF(MOD(BN$3,Calculations!$J104)=1,1,0)))+Parts!$E$92*IF(Calculations!$K104=0,0,IF(MOD(BN$3,$I104)=1,0,IF(MOD(BN$3,Calculations!$K104)=1,1,0))))*$AU104)*(1+'Country Input'!$C$45)^(Calculations!BN$3-$BH$3)","v":17904.800000000003},{"$f":"(($U104+($O104)*IF(MOD(BO$3,$I104)=1,1,0)+Parts!$E$91*IF($J104=0,0,IF(MOD(BO$3,$I104)=1,IF(PQS!$R104=\"NO\",1,0),IF(MOD(BO$3,Calculations!$J104)=1,1,0)))+Parts!$E$92*IF(Calculations!$K104=0,0,IF(MOD(BO$3,$I104)=1,0,IF(MOD(BO$3,Calculations!$K104)=1,1,0))))*$AU104)*(1+'Country Input'!$C$45)^(Calculations!BO$3-$BH$3)","v":17904.800000000003},{"$f":"(($U104+($O104)*IF(MOD(BP$3,$I104)=1,1,0)+Parts!$E$91*IF($J104=0,0,IF(MOD(BP$3,$I104)=1,IF(PQS!$R104=\"NO\",1,0),IF(MOD(BP$3,Calculations!$J104)=1,1,0)))+Parts!$E$92*IF(Calculations!$K104=0,0,IF(MOD(BP$3,$I104)=1,0,IF(MOD(BP$3,Calculations!$K104)=1,1,0))))*$AU104)*(1+'Country Input'!$C$45)^(Calculations!BP$3-$BH$3)","v":17904.800000000003},{"$f":"(($U104+($O104)*IF(MOD(BQ$3,$I104)=1,1,0)+Parts!$E$91*IF($J104=0,0,IF(MOD(BQ$3,$I104)=1,IF(PQS!$R104=\"NO\",1,0),IF(MOD(BQ$3,Calculations!$J104)=1,1,0)))+Parts!$E$92*IF(Calculations!$K104=0,0,IF(MOD(BQ$3,$I104)=1,0,IF(MOD(BQ$3,Calculations!$K104)=1,1,0))))*$AU104)*(1+'Country Input'!$C$45)^(Calculations!BQ$3-$BH$3)","v":17904.800000000003},{"$f":"(($U104+($O104)*IF(MOD(BR$3,$I104)=1,1,0)+Parts!$E$91*IF($J104=0,0,IF(MOD(BR$3,$I104)=1,IF(PQS!$R104=\"NO\",1,0),IF(MOD(BR$3,Calculations!$J104)=1,1,0)))+Parts!$E$92*IF(Calculations!$K104=0,0,IF(MOD(BR$3,$I104)=1,0,IF(MOD(BR$3,Calculations!$K104)=1,1,0))))*$AU104)*(1+'Country Input'!$C$45)^(Calculations!BR$3-$BH$3)","v":17904.800000000003},{"$f":"(($U104+($O104)*IF(MOD(BS$3,$I104)=1,1,0)+Parts!$E$91*IF($J104=0,0,IF(MOD(BS$3,$I104)=1,IF(PQS!$R104=\"NO\",1,0),IF(MOD(BS$3,Calculations!$J104)=1,1,0)))+Parts!$E$92*IF(Calculations!$K104=0,0,IF(MOD(BS$3,$I104)=1,0,IF(MOD(BS$3,Calculations!$K104)=1,1,0))))*$AU104)*(1+'Country Input'!$C$45)^(Calculations!BS$3-$BH$3)","v":17904.800000000003},{"$f":"(($U104+($O104)*IF(MOD(BT$3,$I104)=1,1,0)+Parts!$E$91*IF($J104=0,0,IF(MOD(BT$3,$I104)=1,IF(PQS!$R104=\"NO\",1,0),IF(MOD(BT$3,Calculations!$J104)=1,1,0)))+Parts!$E$92*IF(Calculations!$K104=0,0,IF(MOD(BT$3,$I104)=1,0,IF(MOD(BT$3,Calculations!$K104)=1,1,0))))*$AU104)*(1+'Country Input'!$C$45)^(Calculations!BT$3-$BH$3)","v":17904.800000000003},{"$f":"(($U104+($O104)*IF(MOD(BU$3,$I104)=1,1,0)+Parts!$E$91*IF($J104=0,0,IF(MOD(BU$3,$I104)=1,IF(PQS!$R104=\"NO\",1,0),IF(MOD(BU$3,Calculations!$J104)=1,1,0)))+Parts!$E$92*IF(Calculations!$K104=0,0,IF(MOD(BU$3,$I104)=1,0,IF(MOD(BU$3,Calculations!$K104)=1,1,0))))*$AU104)*(1+'Country Input'!$C$45)^(Calculations!BU$3-$BH$3)","v":17904.800000000003},{"$f":"(($U104+($O104)*IF(MOD(BV$3,$I104)=1,1,0)+Parts!$E$91*IF($J104=0,0,IF(MOD(BV$3,$I104)=1,IF(PQS!$R104=\"NO\",1,0),IF(MOD(BV$3,Calculations!$J104)=1,1,0)))+Parts!$E$92*IF(Calculations!$K104=0,0,IF(MOD(BV$3,$I104)=1,0,IF(MOD(BV$3,Calculations!$K104)=1,1,0))))*$AU104)*(1+'Country Input'!$C$45)^(Calculations!BV$3-$BH$3)","v":17904.800000000003},{"$f":"(($U104+($O104)*IF(MOD(BW$3,$I104)=1,1,0)+Parts!$E$91*IF($J104=0,0,IF(MOD(BW$3,$I104)=1,IF(PQS!$R104=\"NO\",1,0),IF(MOD(BW$3,Calculations!$J104)=1,1,0)))+Parts!$E$92*IF(Calculations!$K104=0,0,IF(MOD(BW$3,$I104)=1,0,IF(MOD(BW$3,Calculations!$K104)=1,1,0))))*$AU104)*(1+'Country Input'!$C$45)^(Calculations!BW$3-$BH$3)","v":511334.80000000005},{"$f":"(($U104+($O104)*IF(MOD(BX$3,$I104)=1,1,0)+Parts!$E$91*IF($J104=0,0,IF(MOD(BX$3,$I104)=1,IF(PQS!$R104=\"NO\",1,0),IF(MOD(BX$3,Calculations!$J104)=1,1,0)))+Parts!$E$92*IF(Calculations!$K104=0,0,IF(MOD(BX$3,$I104)=1,0,IF(MOD(BX$3,Calculations!$K104)=1,1,0))))*$AU104)*(1+'Country Input'!$C$45)^(Calculations!BX$3-$BH$3)","v":17904.800000000003},{"$f":"(($U104+($O104)*IF(MOD(BY$3,$I104)=1,1,0)+Parts!$E$91*IF($J104=0,0,IF(MOD(BY$3,$I104)=1,IF(PQS!$R104=\"NO\",1,0),IF(MOD(BY$3,Calculations!$J104)=1,1,0)))+Parts!$E$92*IF(Calculations!$K104=0,0,IF(MOD(BY$3,$I104)=1,0,IF(MOD(BY$3,Calculations!$K104)=1,1,0))))*$AU104)*(1+'Country Input'!$C$45)^(Calculations!BY$3-$BH$3)","v":17904.800000000003},{"$f":"(($U104+($O104)*IF(MOD(BZ$3,$I104)=1,1,0)+Parts!$E$91*IF($J104=0,0,IF(MOD(BZ$3,$I104)=1,IF(PQS!$R104=\"NO\",1,0),IF(MOD(BZ$3,Calculations!$J104)=1,1,0)))+Parts!$E$92*IF(Calculations!$K104=0,0,IF(MOD(BZ$3,$I104)=1,0,IF(MOD(BZ$3,Calculations!$K104)=1,1,0))))*$AU104)*(1+'Country Input'!$C$45)^(Calculations!BZ$3-$BH$3)","v":17904.800000000003},{"$f":"(($U104+($O104)*IF(MOD(CA$3,$I104)=1,1,0)+Parts!$E$91*IF($J104=0,0,IF(MOD(CA$3,$I104)=1,IF(PQS!$R104=\"NO\",1,0),IF(MOD(CA$3,Calculations!$J104)=1,1,0)))+Parts!$E$92*IF(Calculations!$K104=0,0,IF(MOD(CA$3,$I104)=1,0,IF(MOD(CA$3,Calculations!$K104)=1,1,0))))*$AU104)*(1+'Country Input'!$C$45)^(Calculations!CA$3-$BH$3)","v":17904.800000000003},null,"Haier CRFR40",511334.80000000005,17904.800000000003,17904.800000000003,17904.800000000003,17904.800000000003,17904.800000000003,17904.800000000003,17904.800000000003,17904.800000000003,17904.800000000003,17904.800000000003,17904.800000000003,17904.800000000003,17904.800000000003,17904.800000000003,511334.80000000005,17904.800000000003,17904.800000000003,17904.800000000003,17904.800000000003,{"$f":"SUM(CD104:INDEX($CD104:$CW104,1,'Total Solution Costs'!$B$2))","v":672478.00000000047},null,"Haier CRFR40",{"$f":"SUM($BH104:BH104)","v":511334.80000000005},{"$f":"SUM($BH104:BI104)","v":529239.60000000009},{"$f":"SUM($BH104:BJ104)","v":547144.40000000014},{"$f":"SUM($BH104:BK104)","v":565049.20000000019},{"$f":"SUM($BH104:BL104)","v":582954.00000000023},{"$f":"SUM($BH104:BM104)","v":600858.80000000028},{"$f":"SUM($BH104:BN104)","v":618763.60000000033},{"$f":"SUM($BH104:BO104)","v":636668.40000000037},{"$f":"SUM($BH104:BP104)","v":654573.20000000042},{"$f":"SUM($BH104:BQ104)","v":672478.00000000047},{"$f":"SUM($BH104:BR104)","v":690382.80000000051},{"$f":"SUM($BH104:BS104)","v":708287.60000000056},{"$f":"SUM($BH104:BT104)","v":726192.40000000061},{"$f":"SUM($BH104:BU104)","v":744097.20000000065},{"$f":"SUM($BH104:BV104)","v":762002.0000000007},{"$f":"SUM($BH104:BW104)","v":1273336.8000000007},{"$f":"SUM($BH104:BX104)","v":1291241.6000000008},{"$f":"SUM($BH104:BY104)","v":1309146.4000000008},{"$f":"SUM($BH104:BZ104)","v":1327051.2000000009},{"$f":"SUM($BH104:CA104)","v":1344956.0000000009}]
[{"$f":"PQS!A105","v":"LT passive"},{"$f":"PQS!B105","v":"E004/041"},{"$f":"PQS!E105","v":"ARKTEK-YBC-5*"},{"$f":"PQS!F105","v":"Aucma"},{"$f":"PQS!D105","v":"Aucma ARKTEK-YBC-5*"},{"$f":"VLOOKUP(E105,PQS!$D$5:$K$107,COLUMN(PQS!$I$3)-COLUMN(PQS!$D$3)+1,FALSE)","v":5.4},{"$f":"VLOOKUP(E105,PQS!$D$5:$K$107,COLUMN(PQS!$J$3)-COLUMN(PQS!$D$3)+1,FALSE)","v":0},{"$f":"VLOOKUP(E105,PQS!$D$5:$K$107,COLUMN(PQS!$G$3)-COLUMN(PQS!$D$3)+1,FALSE)","v":"Yes"},{"$f":"HLOOKUP(B105,INDIRECT(\"'\"&A105&\"'!$10:$15\"),ROW('Technology template'!$A$11)-ROW('Technology template'!$A$10)+1,FALSE)","v":8},{"$f":"HLOOKUP(B105,INDIRECT(\"'\"&A105&\"'!$10:$15\"),ROW('Technology template'!$A$12)-ROW('Technology template'!$A$10)+1,FALSE)","v":0},{"$f":"HLOOKUP(B105,INDIRECT(\"'\"&A105&\"'!$10:$15\"),ROW('Technology template'!$A$13)-ROW('Technology template'!$A$10)+1,FALSE)","v":0},{"$f":"VLOOKUP(B105,PQS!$B:$Q,MATCH(PQS!$Q$3,PQS!$B$3:$Q$3,0),FALSE)*(1+'Country Input'!$C$47)+HLOOKUP(B105,INDIRECT(\"'\"&A105&\"'!$10:$15\"),ROW('Technology template'!$A$14)-ROW('Technology template'!$A$10)+1,FALSE)*(1+'Country Input'!$C$47)","v":2667.51},{"$f":"HLOOKUP(B105,INDIRECT(\"'\"&A105&\"'!$10:$80\"),MATCH('Technology template'!$A$27,INDIRECT(\"'\"&A105&\"'!$A$10:$A$80\"),0),FALSE)+'Labor and Maintenance '!$E$24","v":316},{"$f":"VLOOKUP(B105,PQS!B:T,MATCH(PQS!$T$3,PQS!$B$3:$T$3,0),FALSE)*(1+'Country Input'!$C$47)","v":0},2983.51,372.93875000000003,{"$f":"VLOOKUP(B105,PQS!$B:$AE,COLUMN(PQS!AD103)-1,FALSE)","v":0},{"$f":"IFERROR(1/HLOOKUP(B105,INDIRECT(\"'\"&A105&\"'!$10:$80\"),MATCH('Technology template'!$A$31,INDIRECT(\"'\"&A105&\"'!$A$10:$A$80\"),0),FALSE)*HLOOKUP(B105,INDIRECT(\"'\"&A105&\"'!$10:$80\"),MATCH('Technology template'!$A$41,INDIRECT(\"'\"&A105&\"'!$A10:$A$80\"),0),FALSE),0)*TechnicianHourlyWage+IF(A105=\"Solar w Battery\",1/'Labor and Maintenance '!$E$53*'Labor and Maintenance '!$D$53,0)+IF(A105=\"LT passive\", 1/'Labor and Maintenance '!$E$81*'Labor and Maintenance '!$D$81,0)","v":24},{"$f":"IFERROR(1/HLOOKUP(B105,INDIRECT(\"'\"&A105&\"'!$10:$80\"),MATCH('Technology template'!$A$34,INDIRECT(\"'\"&A105&\"'!$A$10:$A$80\"),0),FALSE)*(HLOOKUP(B105,INDIRECT(\"'\"&A105&\"'!$10:$80\"),MATCH('Technology template'!$A$44,INDIRECT(\"'\"&A105&\"'!$A10:$A$80\"),0),FALSE)*TechnicianHourlyWage+RemoteTravelCostPerDay),0)+IFERROR(1/HLOOKUP(B105,INDIRECT(\"'\"&A105&\"'!$10:$80\"),MATCH('Technology template'!$A$35,INDIRECT(\"'\"&A105&\"'!$A$10:$A$80\"),0),FALSE)*(HLOOKUP(B105,INDIRECT(\"'\"&A105&\"'!$10:$80\"),MATCH('Technology template'!$A$45,INDIRECT(\"'\"&A105&\"'!$A10:$A$80\"),0),FALSE)*TechnicianHourlyWage+RemoteTravelCostPerDay),0)+IFERROR(1/HLOOKUP(B105,INDIRECT(\"'\"&A105&\"'!$10:$80\"),MATCH('Technology template'!$A$37,INDIRECT(\"'\"&A105&\"'!$A$10:$A$80\"),0),FALSE)*(HLOOKUP(B105,INDIRECT(\"'\"&A105&\"'!$10:$80\"),MATCH('Technology template'!$A$46,INDIRECT(\"'\"&A105&\"'!$A10:$A$80\"),0),FALSE)*TechnicianHourlyWage+'Labor and Maintenance '!$B$8),0)","v":42},528,66,438.93875000000003,null,"Aucma ARKTEK-YBC-5*",552.50185185185182,97.777777777777771,650.27962962962965,null,"Aucma ARKTEK-YBC-5*",69.062731481481478,12.222222222222221,81.284953703703707,null,"Aucma ARKTEK-YBC-5*",24,71604.240000000005,12672,84276.24,null,"Aucma ARKTEK-YBC-5*",24,1657.5055555555555,293.33333333333331,1950.8388888888887,null,"Aucma ARKTEK-YBC-5*",{"$f":"IF(F105=0, 'Country Input'!$D$7, ROUNDUP(LitersPerFacility/F105,0)*'Country Input'!$D$7)","v":30},89505.3,1980,91485.3,null,"Aucma ARKTEK-YBC-5*",{"$f":"ROUNDUP(LitersPerFacility/F105,0)*'Country Input'!$D$7*ROUNDUP('Total Solution Costs'!$B$2/Calculations!I105,0)","v":60},4143.7638888888887,12.222222222222221,4155.9861111111113,null,null,"Aucma ARKTEK-YBC-5*",{"$f":"(($U105+($O105)*IF(MOD(BH$3,$I105)=1,1,0)+Parts!$E$91*IF($J105=0,0,IF(MOD(BH$3,$I105)=1,IF(PQS!$R105=\"NO\",1,0),IF(MOD(BH$3,Calculations!$J105)=1,1,0)))+Parts!$E$92*IF(Calculations!$K105=0,0,IF(MOD(BH$3,$I105)=1,0,IF(MOD(BH$3,Calculations!$K105)=1,1,0))))*$AU105)*(1+'Country Input'!$C$45)^(Calculations!BH$3-$BH$3)+TrainingCost","v":91485.3},{"$f":"(($U105+($O105)*IF(MOD(BI$3,$I105)=1,1,0)+Parts!$E$91*IF($J105=0,0,IF(MOD(BI$3,$I105)=1,IF(PQS!$R105=\"NO\",1,0),IF(MOD(BI$3,Calculations!$J105)=1,1,0)))+Parts!$E$92*IF(Calculations!$K105=0,0,IF(MOD(BI$3,$I105)=1,0,IF(MOD(BI$3,Calculations!$K105)=1,1,0))))*$AU105)*(1+'Country Input'!$C$45)^(Calculations!BI$3-$BH$3)","v":1980},{"$f":"(($U105+($O105)*IF(MOD(BJ$3,$I105)=1,1,0)+Parts!$E$91*IF($J105=0,0,IF(MOD(BJ$3,$I105)=1,IF(PQS!$R105=\"NO\",1,0),IF(MOD(BJ$3,Calculations!$J105)=1,1,0)))+Parts!$E$92*IF(Calculations!$K105=0,0,IF(MOD(BJ$3,$I105)=1,0,IF(MOD(BJ$3,Calculations!$K105)=1,1,0))))*$AU105)*(1+'Country Input'!$C$45)^(Calculations!BJ$3-$BH$3)","v":1980},{"$f":"(($U105+($O105)*IF(MOD(BK$3,$I105)=1,1,0)+Parts!$E$91*IF($J105=0,0,IF(MOD(BK$3,$I105)=1,IF(PQS!$R105=\"NO\",1,0),IF(MOD(BK$3,Calculations!$J105)=1,1,0)))+Parts!$E$92*IF(Calculations!$K105=0,0,IF(MOD(BK$3,$I105)=1,0,IF(MOD(BK$3,Calculations!$K105)=1,1,0))))*$AU105)*(1+'Country Input'!$C$45)^(Calculations!BK$3-$BH$3)","v":1980},{"$f":"(($U105+($O105)*IF(MOD(BL$3,$I105)=1,1,0)+Parts!$E$91*IF($J105=0,0,IF(MOD(BL$3,$I105)=1,IF(PQS!$R105=\"NO\",1,0),IF(MOD(BL$3,Calculations!$J105)=1,1,0)))+Parts!$E$92*IF(Calculations!$K105=0,0,IF(MOD(BL$3,$I105)=1,0,IF(MOD(BL$3,Calculations!$K105)=1,1,0))))*$AU105)*(1+'Country Input'!$C$45)^(Calculations!BL$3-$BH$3)","v":1980},{"$f":"(($U105+($O105)*IF(MOD(BM$3,$I105)=1,1,0)+Parts!$E$91*IF($J105=0,0,IF(MOD(BM$3,$I105)=1,IF(PQS!$R105=\"NO\",1,0),IF(MOD(BM$3,Calculations!$J105)=1,1,0)))+Parts!$E$92*IF(Calculations!$K105=0,0,IF(MOD(BM$3,$I105)=1,0,IF(MOD(BM$3,Calculations!$K105)=1,1,0))))*$AU105)*(1+'Country Input'!$C$45)^(Calculations!BM$3-$BH$3)","v":1980},{"$f":"(($U105+($O105)*IF(MOD(BN$3,$I105)=1,1,0)+Parts!$E$91*IF($J105=0,0,IF(MOD(BN$3,$I105)=1,IF(PQS!$R105=\"NO\",1,0),IF(MOD(BN$3,Calculations!$J105)=1,1,0)))+Parts!$E$92*IF(Calculations!$K105=0,0,IF(MOD(BN$3,$I105)=1,0,IF(MOD(BN$3,Calculations!$K105)=1,1,0))))*$AU105)*(1+'Country Input'!$C$45)^(Calculations!BN$3-$BH$3)","v":1980},{"$f":"(($U105+($O105)*IF(MOD(BO$3,$I105)=1,1,0)+Parts!$E$91*IF($J105=0,0,IF(MOD(BO$3,$I105)=1,IF(PQS!$R105=\"NO\",1,0),IF(MOD(BO$3,Calculations!$J105)=1,1,0)))+Parts!$E$92*IF(Calculations!$K105=0,0,IF(MOD(BO$3,$I105)=1,0,IF(MOD(BO$3,Calculations!$K105)=1,1,0))))*$AU105)*(1+'Country Input'!$C$45)^(Calculations!BO$3-$BH$3)","v":1980},{"$f":"(($U105+($O105)*IF(MOD(BP$3,$I105)=1,1,0)+Parts!$E$91*IF($J105=0,0,IF(MOD(BP$3,$I105)=1,IF(PQS!$R105=\"NO\",1,0),IF(MOD(BP$3,Calculations!$J105)=1,1,0)))+Parts!$E$92*IF(Calculations!$K105=0,0,IF(MOD(BP$3,$I105)=1,0,IF(MOD(BP$3,Calculations!$K105)=1,1,0))))*$AU105)*(1+'Country Input'!$C$45)^(Calculations!BP$3-$BH$3)","v":91485.3},{"$f":"(($U105+($O105)*IF(MOD(BQ$3,$I105)=1,1,0)+Parts!$E$91*IF($J105=0,0,IF(MOD(BQ$3,$I105)=1,IF(PQS!$R105=\"NO\",1,0),IF(MOD(BQ$3,Calculations!$J105)=1,1,0)))+Parts!$E$92*IF(Calculations!$K105=0,0,IF(MOD(BQ$3,$I105)=1,0,IF(MOD(BQ$3,Calculations!$K105)=1,1,0))))*$AU105)*(1+'Country Input'!$C$45)^(Calculations!BQ$3-$BH$3)","v":1980},{"$f":"(($U105+($O105)*IF(MOD(BR$3,$I105)=1,1,0)+Parts!$E$91*IF($J105=0,0,IF(MOD(BR$3,$I105)=1,IF(PQS!$R105=\"NO\",1,0),IF(MOD(BR$3,Calculations!$J105)=1,1,0)))+Parts!$E$92*IF(Calculations!$K105=0,0,IF(MOD(BR$3,$I105)=1,0,IF(MOD(BR$3,Calculations!$K105)=1,1,0))))*$AU105)*(1+'Country Input'!$C$45)^(Calculations!BR$3-$BH$3)","v":1980},{"$f":"(($U105+($O105)*IF(MOD(BS$3,$I105)=1,1,0)+Parts!$E$91*IF($J105=0,0,IF(MOD(BS$3,$I105)=1,IF(PQS!$R105=\"NO\",1,0),IF(MOD(BS$3,Calculations!$J105)=1,1,0)))+Parts!$E$92*IF(Calculations!$K105=0,0,IF(MOD(BS$3,$I105)=1,0,IF(MOD(BS$3,Calculations!$K105)=1,1,0))))*$AU105)*(1+'Country Input'!$C$45)^(Calculations!BS$3-$BH$3)","v":1980},{"$f":"(($U105+($O105)*IF(MOD(BT$3,$I105)=1,1,0)+Parts!$E$91*IF($J105=0,0,IF(MOD(BT$3,$I105)=1,IF(PQS!$R105=\"NO\",1,0),IF(MOD(BT$3,Calculations!$J105)=1,1,0)))+Parts!$E$92*IF(Calculations!$K105=0,0,IF(MOD(BT$3,$I105)=1,0,IF(MOD(BT$3,Calculations!$K105)=1,1,0))))*$AU105)*(1+'Country Input'!$C$45)^(Calculations!BT$3-$BH$3)","v":1980},{"$f":"(($U105+($O105)*IF(MOD(BU$3,$I105)=1,1,0)+Parts!$E$91*IF($J105=0,0,IF(MOD(BU$3,$I105)=1,IF(PQS!$R105=\"NO\",1,0),IF(MOD(BU$3,Calculations!$J105)=1,1,0)))+Parts!$E$92*IF(Calculations!$K105=0,0,IF(MOD(BU$3,$I105)=1,0,IF(MOD(BU$3,Calculations!$K105)=1,1,0))))*$AU105)*(1+'Country Input'!$C$45)^(Calculations!BU$3-$BH$3)","v":1980},{"$f":"(($U105+($O105)*IF(MOD(BV$3,$I105)=1,1,0)+Parts!$E$91*IF($J105=0,0,IF(MOD(BV$3,$I105)=1,IF(PQS!$R105=\"NO\",1,0),IF(MOD(BV$3,Calculations!$J105)=1,1,0)))+Parts!$E$92*IF(Calculations!$K105=0,0,IF(MOD(BV$3,$I105)=1,0,IF(MOD(BV$3,Calculations!$K105)=1,1,0))))*$AU105)*(1+'Country Input'!$C$45)^(Calculations!BV$3-$BH$3)","v":1980},{"$f":"(($U105+($O105)*IF(MOD(BW$3,$I105)=1,1,0)+Parts!$E$91*IF($J105=0,0,IF(MOD(BW$3,$I105)=1,IF(PQS!$R105=\"NO\",1,0),IF(MOD(BW$3,Calculations!$J105)=1,1,0)))+Parts!$E$92*IF(Calculations!$K105=0,0,IF(MOD(BW$3,$I105)=1,0,IF(MOD(BW$3,Calculations!$K105)=1,1,0))))*$AU105)*(1+'Country Input'!$C$45)^(Calculations!BW$3-$BH$3)","v":1980},{"$f":"(($U105+($O105)*IF(MOD(BX$3,$I105)=1,1,0)+Parts!$E$91*IF($J105=0,0,IF(MOD(BX$3,$I105)=1,IF(PQS!$R105=\"NO\",1,0),IF(MOD(BX$3,Calculations!$J105)=1,1,0)))+Parts!$E$92*IF(Calculations!$K105=0,0,IF(MOD(BX$3,$I105)=1,0,IF(MOD(BX$3,Calculations!$K105)=1,1,0))))*$AU105)*(1+'Country Input'!$C$45)^(Calculations!BX$3-$BH$3)","v":91485.3},{"$f":"(($U105+($O105)*IF(MOD(BY$3,$I105)=1,1,0)+Parts!$E$91*IF($J105=0,0,IF(MOD(BY$3,$I105)=1,IF(PQS!$R105=\"NO\",1,0),IF(MOD(BY$3,Calculations!$J105)=1,1,0)))+Parts!$E$92*IF(Calculations!$K105=0,0,IF(MOD(BY$3,$I105)=1,0,IF(MOD(BY$3,Calculations!$K105)=1,1,0))))*$AU105)*(1+'Country Input'!$C$45)^(Calculations!BY$3-$BH$3)","v":1980},{"$f":"(($U105+($O105)*IF(MOD(BZ$3,$I105)=1,1,0)+Parts!$E$91*IF($J105=0,0,IF(MOD(BZ$3,$I105)=1,IF(PQS!$R105=\"NO\",1,0),IF(MOD(BZ$3,Calculations!$J105)=1,1,0)))+Parts!$E$92*IF(Calculations!$K105=0,0,IF(MOD(BZ$3,$I105)=1,0,IF(MOD(BZ$3,Calculations!$K105)=1,1,0))))*$AU105)*(1+'Country Input'!$C$45)^(Calculations!BZ$3-$BH$3)","v":1980},{"$f":"(($U105+($O105)*IF(MOD(CA$3,$I105)=1,1,0)+Parts!$E$91*IF($J105=0,0,IF(MOD(CA$3,$I105)=1,IF(PQS!$R105=\"NO\",1,0),IF(MOD(CA$3,Calculations!$J105)=1,1,0)))+Parts!$E$92*IF(Calculations!$K105=0,0,IF(MOD(CA$3,$I105)=1,0,IF(MOD(CA$3,Calculations!$K105)=1,1,0))))*$AU105)*(1+'Country Input'!$C$45)^(Calculations!CA$3-$BH$3)","v":1980},null,"Aucma ARKTEK-YBC-5*",91485.3,1980,1980,1980,1980,1980,1980,1980,91485.3,1980,1980,1980,1980,1980,1980,1980,91485.3,1980,1980,1980,{"$f":"SUM(CD105:INDEX($CD105:$CW105,1,'Total Solution Costs'!$B$2))","v":198810.6},null,"Aucma ARKTEK-YBC-5*",{"$f":"SUM($BH105:BH105)","v":91485.3},{"$f":"SUM($BH105:BI105)","v":93465.3},{"$f":"SUM($BH105:BJ105)","v":95445.3},{"$f":"SUM($BH105:BK105)","v":97425.3},{"$f":"SUM($BH105:BL105)","v":99405.3},{"$f":"SUM($BH105:BM105)","v":101385.3},{"$f":"SUM($BH105:BN105)","v":103365.3},{"$f":"SUM($BH105:BO105)","v":105345.3},{"$f":"SUM($BH105:BP105)","v":196830.6},{"$f":"SUM($BH105:BQ105)","v":198810.6},{"$f":"SUM($BH105:BR105)","v":200790.6},{"$f":"SUM($BH105:BS105)","v":202770.6},{"$f":"SUM($BH105:BT105)","v":204750.6},{"$f":"SUM($BH105:BU105)","v":206730.6},{"$f":"SUM($BH105:BV105)","v":208710.6},{"$f":"SUM($BH105:BW105)","v":210690.6},{"$f":"SUM($BH105:BX105)","v":302175.90000000002},{"$f":"SUM($BH105:BY105)","v":304155.90000000002},{"$f":"SUM($BH105:BZ105)","v":306135.90000000002},{"$f":"SUM($BH105:CA105)","v":308115.90000000002}]
[{"$f":"PQS!A106","v":"LT passive"},{"$f":"PQS!B106","v":"acuma"},{"$f":"PQS!E106","v":"tbd"},{"$f":"PQS!F106","v":"Aucma"},{"$f":"PQS!D106","v":"Aucma tbd"},{"$f":"VLOOKUP(E106,PQS!$D$5:$K$107,COLUMN(PQS!$I$3)-COLUMN(PQS!$D$3)+1,FALSE)","v":10},{"$f":"VLOOKUP(E106,PQS!$D$5:$K$107,COLUMN(PQS!$J$3)-COLUMN(PQS!$D$3)+1,FALSE)","v":0},{"$f":"VLOOKUP(E106,PQS!$D$5:$K$107,COLUMN(PQS!$G$3)-COLUMN(PQS!$D$3)+1,FALSE)","v":"No"},{"$f":"HLOOKUP(B106,INDIRECT(\"'\"&A106&\"'!$10:$15\"),ROW('Technology template'!$A$11)-ROW('Technology template'!$A$10)+1,FALSE)","v":8},{"$f":"HLOOKUP(B106,INDIRECT(\"'\"&A106&\"'!$10:$15\"),ROW('Technology template'!$A$12)-ROW('Technology template'!$A$10)+1,FALSE)","v":0},{"$f":"HLOOKUP(B106,INDIRECT(\"'\"&A106&\"'!$10:$15\"),ROW('Technology template'!$A$13)-ROW('Technology template'!$A$10)+1,FALSE)","v":0},{"$f":"VLOOKUP(B106,PQS!$B:$Q,MATCH(PQS!$Q$3,PQS!$B$3:$Q$3,0),FALSE)*(1+'Country Input'!$C$47)+HLOOKUP(B106,INDIRECT(\"'\"&A106&\"'!$10:$15\"),ROW('Technology template'!$A$14)-ROW('Technology template'!$A$10)+1,FALSE)*(1+'Country Input'!$C$47)","v":107},{"$f":"HLOOKUP(B106,INDIRECT(\"'\"&A106&\"'!$10:$80\"),MATCH('Technology template'!$A$27,INDIRECT(\"'\"&A106&\"'!$A$10:$A$80\"),0),FALSE)+'Labor and Maintenance '!$E$24","v":316},{"$f":"VLOOKUP(B106,PQS!B:T,MATCH(PQS!$T$3,PQS!$B$3:$T$3,0),FALSE)*(1+'Country Input'!$C$47)","v":0},423,52.875,{"$f":"VLOOKUP(B106,PQS!$B:$AE,COLUMN(PQS!AD104)-1,FALSE)","v":0},{"$f":"IFERROR(1/HLOOKUP(B106,INDIRECT(\"'\"&A106&\"'!$10:$80\"),MATCH('Technology template'!$A$31,INDIRECT(\"'\"&A106&\"'!$A$10:$A$80\"),0),FALSE)*HLOOKUP(B106,INDIRECT(\"'\"&A106&\"'!$10:$80\"),MATCH('Technology template'!$A$41,INDIRECT(\"'\"&A106&\"'!$A10:$A$80\"),0),FALSE),0)*TechnicianHourlyWage+IF(A106=\"Solar w Battery\",1/'Labor and Maintenance '!$E$53*'Labor and Maintenance '!$D$53,0)+IF(A106=\"LT passive\", 1/'Labor and Maintenance '!$E$81*'Labor and Maintenance '!$D$81,0)","v":24},{"$f":"IFERROR(1/HLOOKUP(B106,INDIRECT(\"'\"&A106&\"'!$10:$80\"),MATCH('Technology template'!$A$34,INDIRECT(\"'\"&A106&\"'!$A$10:$A$80\"),0),FALSE)*(HLOOKUP(B106,INDIRECT(\"'\"&A106&\"'!$10:$80\"),MATCH('Technology template'!$A$44,INDIRECT(\"'\"&A106&\"'!$A10:$A$80\"),0),FALSE)*TechnicianHourlyWage+RemoteTravelCostPerDay),0)+IFERROR(1/HLOOKUP(B106,INDIRECT(\"'\"&A106&\"'!$10:$80\"),MATCH('Technology template'!$A$35,INDIRECT(\"'\"&A106&\"'!$A$10:$A$80\"),0),FALSE)*(HLOOKUP(B106,INDIRECT(\"'\"&A106&\"'!$10:$80\"),MATCH('Technology template'!$A$45,INDIRECT(\"'\"&A106&\"'!$A10:$A$80\"),0),FALSE)*TechnicianHourlyWage+RemoteTravelCostPerDay),0)+IFERROR(1/HLOOKUP(B106,INDIRECT(\"'\"&A106&\"'!$10:$80\"),MATCH('Technology template'!$A$37,INDIRECT(\"'\"&A106&\"'!$A$10:$A$80\"),0),FALSE)*(HLOOKUP(B106,INDIRECT(\"'\"&A106&\"'!$10:$80\"),MATCH('Technology template'!$A$46,INDIRECT(\"'\"&A106&\"'!$A10:$A$80\"),0),FALSE)*TechnicianHourlyWage+'Labor and Maintenance '!$B$8),0)","v":42},528,66,118.875,null,"Aucma tbd",42.3,52.8,95.1,null,"Aucma tbd",5.2874999999999996,6.6,11.887499999999999,null,"Aucma tbd",13,5499,6864,12363,null,"Aucma tbd",13,68.737499999999997,85.8,154.53749999999999,null,"Aucma tbd",{"$f":"IF(F106=0, 'Country Input'!$D$7, ROUNDUP(LitersPerFacility/F106,0)*'Country Input'!$D$7)","v":20},8460,1320,9780,null,"Aucma tbd",{"$f":"ROUNDUP(LitersPerFacility/F106,0)*'Country Input'!$D$7*ROUNDUP('Total Solution Costs'!$B$2/Calculations!I106,0)","v":40},211.5,6.6,218.1,null,null,"Aucma tbd",{"$f":"(($U106+($O106)*IF(MOD(BH$3,$I106)=1,1,0)+Parts!$E$91*IF($J106=0,0,IF(MOD(BH$3,$I106)=1,IF(PQS!$R106=\"NO\",1,0),IF(MOD(BH$3,Calculations!$J106)=1,1,0)))+Parts!$E$92*IF(Calculations!$K106=0,0,IF(MOD(BH$3,$I106)=1,0,IF(MOD(BH$3,Calculations!$K106)=1,1,0))))*$AU106)*(1+'Country Input'!$C$45)^(Calculations!BH$3-$BH$3)+TrainingCost","v":9780},{"$f":"(($U106+($O106)*IF(MOD(BI$3,$I106)=1,1,0)+Parts!$E$91*IF($J106=0,0,IF(MOD(BI$3,$I106)=1,IF(PQS!$R106=\"NO\",1,0),IF(MOD(BI$3,Calculations!$J106)=1,1,0)))+Parts!$E$92*IF(Calculations!$K106=0,0,IF(MOD(BI$3,$I106)=1,0,IF(MOD(BI$3,Calculations!$K106)=1,1,0))))*$AU106)*(1+'Country Input'!$C$45)^(Calculations!BI$3-$BH$3)","v":1320},{"$f":"(($U106+($O106)*IF(MOD(BJ$3,$I106)=1,1,0)+Parts!$E$91*IF($J106=0,0,IF(MOD(BJ$3,$I106)=1,IF(PQS!$R106=\"NO\",1,0),IF(MOD(BJ$3,Calculations!$J106)=1,1,0)))+Parts!$E$92*IF(Calculations!$K106=0,0,IF(MOD(BJ$3,$I106)=1,0,IF(MOD(BJ$3,Calculations!$K106)=1,1,0))))*$AU106)*(1+'Country Input'!$C$45)^(Calculations!BJ$3-$BH$3)","v":1320},{"$f":"(($U106+($O106)*IF(MOD(BK$3,$I106)=1,1,0)+Parts!$E$91*IF($J106=0,0,IF(MOD(BK$3,$I106)=1,IF(PQS!$R106=\"NO\",1,0),IF(MOD(BK$3,Calculations!$J106)=1,1,0)))+Parts!$E$92*IF(Calculations!$K106=0,0,IF(MOD(BK$3,$I106)=1,0,IF(MOD(BK$3,Calculations!$K106)=1,1,0))))*$AU106)*(1+'Country Input'!$C$45)^(Calculations!BK$3-$BH$3)","v":1320},{"$f":"(($U106+($O106)*IF(MOD(BL$3,$I106)=1,1,0)+Parts!$E$91*IF($J106=0,0,IF(MOD(BL$3,$I106)=1,IF(PQS!$R106=\"NO\",1,0),IF(MOD(BL$3,Calculations!$J106)=1,1,0)))+Parts!$E$92*IF(Calculations!$K106=0,0,IF(MOD(BL$3,$I106)=1,0,IF(MOD(BL$3,Calculations!$K106)=1,1,0))))*$AU106)*(1+'Country Input'!$C$45)^(Calculations!BL$3-$BH$3)","v":1320},{"$f":"(($U106+($O106)*IF(MOD(BM$3,$I106)=1,1,0)+Parts!$E$91*IF($J106=0,0,IF(MOD(BM$3,$I106)=1,IF(PQS!$R106=\"NO\",1,0),IF(MOD(BM$3,Calculations!$J106)=1,1,0)))+Parts!$E$92*IF(Calculations!$K106=0,0,IF(MOD(BM$3,$I106)=1,0,IF(MOD(BM$3,Calculations!$K106)=1,1,0))))*$AU106)*(1+'Country Input'!$C$45)^(Calculations!BM$3-$BH$3)","v":1320},{"$f":"(($U106+($O106)*IF(MOD(BN$3,$I106)=1,1,0)+Parts!$E$91*IF($J106=0,0,IF(MOD(BN$3,$I106)=1,IF(PQS!$R106=\"NO\",1,0),IF(MOD(BN$3,Calculations!$J106)=1,1,0)))+Parts!$E$92*IF(Calculations!$K106=0,0,IF(MOD(BN$3,$I106)=1,0,IF(MOD(BN$3,Calculations!$K106)=1,1,0))))*$AU106)*(1+'Country Input'!$C$45)^(Calculations!BN$3-$BH$3)","v":1320},{"$f":"(($U106+($O106)*IF(MOD(BO$3,$I106)=1,1,0)+Parts!$E$91*IF($J106=0,0,IF(MOD(BO$3,$I106)=1,IF(PQS!$R106=\"NO\",1,0),IF(MOD(BO$3,Calculations!$J106)=1,1,0)))+Parts!$E$92*IF(Calculations!$K106=0,0,IF(MOD(BO$3,$I106)=1,0,IF(MOD(BO$3,Calculations!$K106)=1,1,0))))*$AU106)*(1+'Country Input'!$C$45)^(Calculations!BO$3-$BH$3)","v":1320},{"$f":"(($U106+($O106)*IF(MOD(BP$3,$I106)=1,1,0)+Parts!$E$91*IF($J106=0,0,IF(MOD(BP$3,$I106)=1,IF(PQS!$R106=\"NO\",1,0),IF(MOD(BP$3,Calculations!$J106)=1,1,0)))+Parts!$E$92*IF(Calculations!$K106=0,0,IF(MOD(BP$3,$I106)=1,0,IF(MOD(BP$3,Calculations!$K106)=1,1,0))))*$AU106)*(1+'Country Input'!$C$45)^(Calculations!BP$3-$BH$3)","v":9780},{"$f":"(($U106+($O106)*IF(MOD(BQ$3,$I106)=1,1,0)+Parts!$E$91*IF($J106=0,0,IF(MOD(BQ$3,$I106)=1,IF(PQS!$R106=\"NO\",1,0),IF(MOD(BQ$3,Calculations!$J106)=1,1,0)))+Parts!$E$92*IF(Calculations!$K106=0,0,IF(MOD(BQ$3,$I106)=1,0,IF(MOD(BQ$3,Calculations!$K106)=1,1,0))))*$AU106)*(1+'Country Input'!$C$45)^(Calculations!BQ$3-$BH$3)","v":1320},{"$f":"(($U106+($O106)*IF(MOD(BR$3,$I106)=1,1,0)+Parts!$E$91*IF($J106=0,0,IF(MOD(BR$3,$I106)=1,IF(PQS!$R106=\"NO\",1,0),IF(MOD(BR$3,Calculations!$J106)=1,1,0)))+Parts!$E$92*IF(Calculations!$K106=0,0,IF(MOD(BR$3,$I106)=1,0,IF(MOD(BR$3,Calculations!$K106)=1,1,0))))*$AU106)*(1+'Country Input'!$C$45)^(Calculations!BR$3-$BH$3)","v":1320},{"$f":"(($U106+($O106)*IF(MOD(BS$3,$I106)=1,1,0)+Parts!$E$91*IF($J106=0,0,IF(MOD(BS$3,$I106)=1,IF(PQS!$R106=\"NO\",1,0),IF(MOD(BS$3,Calculations!$J106)=1,1,0)))+Parts!$E$92*IF(Calculations!$K106=0,0,IF(MOD(BS$3,$I106)=1,0,IF(MOD(BS$3,Calculations!$K106)=1,1,0))))*$AU106)*(1+'Country Input'!$C$45)^(Calculations!BS$3-$BH$3)","v":1320},{"$f":"(($U106+($O106)*IF(MOD(BT$3,$I106)=1,1,0)+Parts!$E$91*IF($J106=0,0,IF(MOD(BT$3,$I106)=1,IF(PQS!$R106=\"NO\",1,0),IF(MOD(BT$3,Calculations!$J106)=1,1,0)))+Parts!$E$92*IF(Calculations!$K106=0,0,IF(MOD(BT$3,$I106)=1,0,IF(MOD(BT$3,Calculations!$K106)=1,1,0))))*$AU106)*(1+'Country Input'!$C$45)^(Calculations!BT$3-$BH$3)","v":1320},{"$f":"(($U106+($O106)*IF(MOD(BU$3,$I106)=1,1,0)+Parts!$E$91*IF($J106=0,0,IF(MOD(BU$3,$I106)=1,IF(PQS!$R106=\"NO\",1,0),IF(MOD(BU$3,Calculations!$J106)=1,1,0)))+Parts!$E$92*IF(Calculations!$K106=0,0,IF(MOD(BU$3,$I106)=1,0,IF(MOD(BU$3,Calculations!$K106)=1,1,0))))*$AU106)*(1+'Country Input'!$C$45)^(Calculations!BU$3-$BH$3)","v":1320},{"$f":"(($U106+($O106)*IF(MOD(BV$3,$I106)=1,1,0)+Parts!$E$91*IF($J106=0,0,IF(MOD(BV$3,$I106)=1,IF(PQS!$R106=\"NO\",1,0),IF(MOD(BV$3,Calculations!$J106)=1,1,0)))+Parts!$E$92*IF(Calculations!$K106=0,0,IF(MOD(BV$3,$I106)=1,0,IF(MOD(BV$3,Calculations!$K106)=1,1,0))))*$AU106)*(1+'Country Input'!$C$45)^(Calculations!BV$3-$BH$3)","v":1320},{"$f":"(($U106+($O106)*IF(MOD(BW$3,$I106)=1,1,0)+Parts!$E$91*IF($J106=0,0,IF(MOD(BW$3,$I106)=1,IF(PQS!$R106=\"NO\",1,0),IF(MOD(BW$3,Calculations!$J106)=1,1,0)))+Parts!$E$92*IF(Calculations!$K106=0,0,IF(MOD(BW$3,$I106)=1,0,IF(MOD(BW$3,Calculations!$K106)=1,1,0))))*$AU106)*(1+'Country Input'!$C$45)^(Calculations!BW$3-$BH$3)","v":1320},{"$f":"(($U106+($O106)*IF(MOD(BX$3,$I106)=1,1,0)+Parts!$E$91*IF($J106=0,0,IF(MOD(BX$3,$I106)=1,IF(PQS!$R106=\"NO\",1,0),IF(MOD(BX$3,Calculations!$J106)=1,1,0)))+Parts!$E$92*IF(Calculations!$K106=0,0,IF(MOD(BX$3,$I106)=1,0,IF(MOD(BX$3,Calculations!$K106)=1,1,0))))*$AU106)*(1+'Country Input'!$C$45)^(Calculations!BX$3-$BH$3)","v":9780},{"$f":"(($U106+($O106)*IF(MOD(BY$3,$I106)=1,1,0)+Parts!$E$91*IF($J106=0,0,IF(MOD(BY$3,$I106)=1,IF(PQS!$R106=\"NO\",1,0),IF(MOD(BY$3,Calculations!$J106)=1,1,0)))+Parts!$E$92*IF(Calculations!$K106=0,0,IF(MOD(BY$3,$I106)=1,0,IF(MOD(BY$3,Calculations!$K106)=1,1,0))))*$AU106)*(1+'Country Input'!$C$45)^(Calculations!BY$3-$BH$3)","v":1320},{"$f":"(($U106+($O106)*IF(MOD(BZ$3,$I106)=1,1,0)+Parts!$E$91*IF($J106=0,0,IF(MOD(BZ$3,$I106)=1,IF(PQS!$R106=\"NO\",1,0),IF(MOD(BZ$3,Calculations!$J106)=1,1,0)))+Parts!$E$92*IF(Calculations!$K106=0,0,IF(MOD(BZ$3,$I106)=1,0,IF(MOD(BZ$3,Calculations!$K106)=1,1,0))))*$AU106)*(1+'Country Input'!$C$45)^(Calculations!BZ$3-$BH$3)","v":1320},{"$f":"(($U106+($O106)*IF(MOD(CA$3,$I106)=1,1,0)+Parts!$E$91*IF($J106=0,0,IF(MOD(CA$3,$I106)=1,IF(PQS!$R106=\"NO\",1,0),IF(MOD(CA$3,Calculations!$J106)=1,1,0)))+Parts!$E$92*IF(Calculations!$K106=0,0,IF(MOD(CA$3,$I106)=1,0,IF(MOD(CA$3,Calculations!$K106)=1,1,0))))*$AU106)*(1+'Country Input'!$C$45)^(Calculations!CA$3-$BH$3)","v":1320},null,"Aucma tbd",9780,1320,1320,1320,1320,1320,1320,1320,9780,1320,1320,1320,1320,1320,1320,1320,9780,1320,1320,1320,{"$f":"SUM(CD106:INDEX($CD106:$CW106,1,'Total Solution Costs'!$B$2))","v":30120},null,"Aucma tbd",{"$f":"SUM($BH106:BH106)","v":9780},{"$f":"SUM($BH106:BI106)","v":11100},{"$f":"SUM($BH106:BJ106)","v":12420},{"$f":"SUM($BH106:BK106)","v":13740},{"$f":"SUM($BH106:BL106)","v":15060},{"$f":"SUM($BH106:BM106)","v":16380},{"$f":"SUM($BH106:BN106)","v":17700},{"$f":"SUM($BH106:BO106)","v":19020},{"$f":"SUM($BH106:BP106)","v":28800},{"$f":"SUM($BH106:BQ106)","v":30120},{"$f":"SUM($BH106:BR106)","v":31440},{"$f":"SUM($BH106:BS106)","v":32760},{"$f":"SUM($BH106:BT106)","v":34080},{"$f":"SUM($BH106:BU106)","v":35400},{"$f":"SUM($BH106:BV106)","v":36720},{"$f":"SUM($BH106:BW106)","v":38040},{"$f":"SUM($BH106:BX106)","v":47820},{"$f":"SUM($BH106:BY106)","v":49140},{"$f":"SUM($BH106:BZ106)","v":50460},{"$f":"SUM($BH106:CA106)","v":51780}]
[{"$f":"PQS!A107","v":"LT passive"},{"$f":"PQS!B107","v":"surechill"},{"$f":"PQS!E107","v":"tbd"},{"$f":"PQS!F107","v":"SureChill"},{"$f":"PQS!D107","v":"SureChill tbd"},{"$f":"VLOOKUP(E107,PQS!$D$5:$K$107,COLUMN(PQS!$I$3)-COLUMN(PQS!$D$3)+1,FALSE)","v":8},{"$f":"VLOOKUP(E107,PQS!$D$5:$K$107,COLUMN(PQS!$J$3)-COLUMN(PQS!$D$3)+1,FALSE)","v":0},{"$f":"VLOOKUP(E107,PQS!$D$5:$K$107,COLUMN(PQS!$G$3)-COLUMN(PQS!$D$3)+1,FALSE)","v":"No"},{"$f":"HLOOKUP(B107,INDIRECT(\"'\"&A107&\"'!$10:$15\"),ROW('Technology template'!$A$11)-ROW('Technology template'!$A$10)+1,FALSE)","v":8},{"$f":"HLOOKUP(B107,INDIRECT(\"'\"&A107&\"'!$10:$15\"),ROW('Technology template'!$A$12)-ROW('Technology template'!$A$10)+1,FALSE)","v":0},{"$f":"HLOOKUP(B107,INDIRECT(\"'\"&A107&\"'!$10:$15\"),ROW('Technology template'!$A$13)-ROW('Technology template'!$A$10)+1,FALSE)","v":0},{"$f":"VLOOKUP(B107,PQS!$B:$Q,MATCH(PQS!$Q$3,PQS!$B$3:$Q$3,0),FALSE)*(1+'Country Input'!$C$47)+HLOOKUP(B107,INDIRECT(\"'\"&A107&\"'!$10:$15\"),ROW('Technology template'!$A$14)-ROW('Technology template'!$A$10)+1,FALSE)*(1+'Country Input'!$C$47)","v":107},{"$f":"HLOOKUP(B107,INDIRECT(\"'\"&A107&\"'!$10:$80\"),MATCH('Technology template'!$A$27,INDIRECT(\"'\"&A107&\"'!$A$10:$A$80\"),0),FALSE)+'Labor and Maintenance '!$E$24","v":316},{"$f":"VLOOKUP(B107,PQS!B:T,MATCH(PQS!$T$3,PQS!$B$3:$T$3,0),FALSE)*(1+'Country Input'!$C$47)","v":0},423,52.875,{"$f":"VLOOKUP(B107,PQS!$B:$AE,COLUMN(PQS!AD105)-1,FALSE)","v":0},{"$f":"IFERROR(1/HLOOKUP(B107,INDIRECT(\"'\"&A107&\"'!$10:$80\"),MATCH('Technology template'!$A$31,INDIRECT(\"'\"&A107&\"'!$A$10:$A$80\"),0),FALSE)*HLOOKUP(B107,INDIRECT(\"'\"&A107&\"'!$10:$80\"),MATCH('Technology template'!$A$41,INDIRECT(\"'\"&A107&\"'!$A10:$A$80\"),0),FALSE),0)*TechnicianHourlyWage+IF(A107=\"Solar w Battery\",1/'Labor and Maintenance '!$E$53*'Labor and Maintenance '!$D$53,0)+IF(A107=\"LT passive\", 1/'Labor and Maintenance '!$E$81*'Labor and Maintenance '!$D$81,0)","v":24},{"$f":"IFERROR(1/HLOOKUP(B107,INDIRECT(\"'\"&A107&\"'!$10:$80\"),MATCH('Technology template'!$A$34,INDIRECT(\"'\"&A107&\"'!$A$10:$A$80\"),0),FALSE)*(HLOOKUP(B107,INDIRECT(\"'\"&A107&\"'!$10:$80\"),MATCH('Technology template'!$A$44,INDIRECT(\"'\"&A107&\"'!$A10:$A$80\"),0),FALSE)*TechnicianHourlyWage+RemoteTravelCostPerDay),0)+IFERROR(1/HLOOKUP(B107,INDIRECT(\"'\"&A107&\"'!$10:$80\"),MATCH('Technology template'!$A$35,INDIRECT(\"'\"&A107&\"'!$A$10:$A$80\"),0),FALSE)*(HLOOKUP(B107,INDIRECT(\"'\"&A107&\"'!$10:$80\"),MATCH('Technology template'!$A$45,INDIRECT(\"'\"&A107&\"'!$A10:$A$80\"),0),FALSE)*TechnicianHourlyWage+RemoteTravelCostPerDay),0)+IFERROR(1/HLOOKUP(B107,INDIRECT(\"'\"&A107&\"'!$10:$80\"),MATCH('Technology template'!$A$37,INDIRECT(\"'\"&A107&\"'!$A$10:$A$80\"),0),FALSE)*(HLOOKUP(B107,INDIRECT(\"'\"&A107&\"'!$10:$80\"),MATCH('Technology template'!$A$46,INDIRECT(\"'\"&A107&\"'!$A10:$A$80\"),0),FALSE)*TechnicianHourlyWage+'Labor and Maintenance '!$B$8),0)","v":42},528,66,118.875,null,"SureChill tbd",52.875,66,118.875,null,"SureChill tbd",6.609375,8.25,14.859375,null,"SureChill tbd",16,6768,8448,15216,null,"SureChill tbd",16,105.75,132,237.75,null,"SureChill tbd",{"$f":"IF(F107=0, 'Country Input'!$D$7, ROUNDUP(LitersPerFacility/F107,0)*'Country Input'!$D$7)","v":20},8460,1320,9780,null,"SureChill tbd",{"$f":"ROUNDUP(LitersPerFacility/F107,0)*'Country Input'!$D$7*ROUNDUP('Total Solution Costs'!$B$2/Calculations!I107,0)","v":40},264.375,8.25,272.625,null,null,"SureChill tbd",{"$f":"(($U107+($O107)*IF(MOD(BH$3,$I107)=1,1,0)+Parts!$E$91*IF($J107=0,0,IF(MOD(BH$3,$I107)=1,IF(PQS!$R107=\"NO\",1,0),IF(MOD(BH$3,Calculations!$J107)=1,1,0)))+Parts!$E$92*IF(Calculations!$K107=0,0,IF(MOD(BH$3,$I107)=1,0,IF(MOD(BH$3,Calculations!$K107)=1,1,0))))*$AU107)*(1+'Country Input'!$C$45)^(Calculations!BH$3-$BH$3)+TrainingCost","v":9780},{"$f":"(($U107+($O107)*IF(MOD(BI$3,$I107)=1,1,0)+Parts!$E$91*IF($J107=0,0,IF(MOD(BI$3,$I107)=1,IF(PQS!$R107=\"NO\",1,0),IF(MOD(BI$3,Calculations!$J107)=1,1,0)))+Parts!$E$92*IF(Calculations!$K107=0,0,IF(MOD(BI$3,$I107)=1,0,IF(MOD(BI$3,Calculations!$K107)=1,1,0))))*$AU107)*(1+'Country Input'!$C$45)^(Calculations!BI$3-$BH$3)","v":1320},{"$f":"(($U107+($O107)*IF(MOD(BJ$3,$I107)=1,1,0)+Parts!$E$91*IF($J107=0,0,IF(MOD(BJ$3,$I107)=1,IF(PQS!$R107=\"NO\",1,0),IF(MOD(BJ$3,Calculations!$J107)=1,1,0)))+Parts!$E$92*IF(Calculations!$K107=0,0,IF(MOD(BJ$3,$I107)=1,0,IF(MOD(BJ$3,Calculations!$K107)=1,1,0))))*$AU107)*(1+'Country Input'!$C$45)^(Calculations!BJ$3-$BH$3)","v":1320},{"$f":"(($U107+($O107)*IF(MOD(BK$3,$I107)=1,1,0)+Parts!$E$91*IF($J107=0,0,IF(MOD(BK$3,$I107)=1,IF(PQS!$R107=\"NO\",1,0),IF(MOD(BK$3,Calculations!$J107)=1,1,0)))+Parts!$E$92*IF(Calculations!$K107=0,0,IF(MOD(BK$3,$I107)=1,0,IF(MOD(BK$3,Calculations!$K107)=1,1,0))))*$AU107)*(1+'Country Input'!$C$45)^(Calculations!BK$3-$BH$3)","v":1320},{"$f":"(($U107+($O107)*IF(MOD(BL$3,$I107)=1,1,0)+Parts!$E$91*IF($J107=0,0,IF(MOD(BL$3,$I107)=1,IF(PQS!$R107=\"NO\",1,0),IF(MOD(BL$3,Calculations!$J107)=1,1,0)))+Parts!$E$92*IF(Calculations!$K107=0,0,IF(MOD(BL$3,$I107)=1,0,IF(MOD(BL$3,Calculations!$K107)=1,1,0))))*$AU107)*(1+'Country Input'!$C$45)^(Calculations!BL$3-$BH$3)","v":1320},{"$f":"(($U107+($O107)*IF(MOD(BM$3,$I107)=1,1,0)+Parts!$E$91*IF($J107=0,0,IF(MOD(BM$3,$I107)=1,IF(PQS!$R107=\"NO\",1,0),IF(MOD(BM$3,Calculations!$J107)=1,1,0)))+Parts!$E$92*IF(Calculations!$K107=0,0,IF(MOD(BM$3,$I107)=1,0,IF(MOD(BM$3,Calculations!$K107)=1,1,0))))*$AU107)*(1+'Country Input'!$C$45)^(Calculations!BM$3-$BH$3)","v":1320},{"$f":"(($U107+($O107)*IF(MOD(BN$3,$I107)=1,1,0)+Parts!$E$91*IF($J107=0,0,IF(MOD(BN$3,$I107)=1,IF(PQS!$R107=\"NO\",1,0),IF(MOD(BN$3,Calculations!$J107)=1,1,0)))+Parts!$E$92*IF(Calculations!$K107=0,0,IF(MOD(BN$3,$I107)=1,0,IF(MOD(BN$3,Calculations!$K107)=1,1,0))))*$AU107)*(1+'Country Input'!$C$45)^(Calculations!BN$3-$BH$3)","v":1320},{"$f":"(($U107+($O107)*IF(MOD(BO$3,$I107)=1,1,0)+Parts!$E$91*IF($J107=0,0,IF(MOD(BO$3,$I107)=1,IF(PQS!$R107=\"NO\",1,0),IF(MOD(BO$3,Calculations!$J107)=1,1,0)))+Parts!$E$92*IF(Calculations!$K107=0,0,IF(MOD(BO$3,$I107)=1,0,IF(MOD(BO$3,Calculations!$K107)=1,1,0))))*$AU107)*(1+'Country Input'!$C$45)^(Calculations!BO$3-$BH$3)","v":1320},{"$f":"(($U107+($O107)*IF(MOD(BP$3,$I107)=1,1,0)+Parts!$E$91*IF($J107=0,0,IF(MOD(BP$3,$I107)=1,IF(PQS!$R107=\"NO\",1,0),IF(MOD(BP$3,Calculations!$J107)=1,1,0)))+Parts!$E$92*IF(Calculations!$K107=0,0,IF(MOD(BP$3,$I107)=1,0,IF(MOD(BP$3,Calculations!$K107)=1,1,0))))*$AU107)*(1+'Country Input'!$C$45)^(Calculations!BP$3-$BH$3)","v":9780},{"$f":"(($U107+($O107)*IF(MOD(BQ$3,$I107)=1,1,0)+Parts!$E$91*IF($J107=0,0,IF(MOD(BQ$3,$I107)=1,IF(PQS!$R107=\"NO\",1,0),IF(MOD(BQ$3,Calculations!$J107)=1,1,0)))+Parts!$E$92*IF(Calculations!$K107=0,0,IF(MOD(BQ$3,$I107)=1,0,IF(MOD(BQ$3,Calculations!$K107)=1,1,0))))*$AU107)*(1+'Country Input'!$C$45)^(Calculations!BQ$3-$BH$3)","v":1320},{"$f":"(($U107+($O107)*IF(MOD(BR$3,$I107)=1,1,0)+Parts!$E$91*IF($J107=0,0,IF(MOD(BR$3,$I107)=1,IF(PQS!$R107=\"NO\",1,0),IF(MOD(BR$3,Calculations!$J107)=1,1,0)))+Parts!$E$92*IF(Calculations!$K107=0,0,IF(MOD(BR$3,$I107)=1,0,IF(MOD(BR$3,Calculations!$K107)=1,1,0))))*$AU107)*(1+'Country Input'!$C$45)^(Calculations!BR$3-$BH$3)","v":1320},{"$f":"(($U107+($O107)*IF(MOD(BS$3,$I107)=1,1,0)+Parts!$E$91*IF($J107=0,0,IF(MOD(BS$3,$I107)=1,IF(PQS!$R107=\"NO\",1,0),IF(MOD(BS$3,Calculations!$J107)=1,1,0)))+Parts!$E$92*IF(Calculations!$K107=0,0,IF(MOD(BS$3,$I107)=1,0,IF(MOD(BS$3,Calculations!$K107)=1,1,0))))*$AU107)*(1+'Country Input'!$C$45)^(Calculations!BS$3-$BH$3)","v":1320},{"$f":"(($U107+($O107)*IF(MOD(BT$3,$I107)=1,1,0)+Parts!$E$91*IF($J107=0,0,IF(MOD(BT$3,$I107)=1,IF(PQS!$R107=\"NO\",1,0),IF(MOD(BT$3,Calculations!$J107)=1,1,0)))+Parts!$E$92*IF(Calculations!$K107=0,0,IF(MOD(BT$3,$I107)=1,0,IF(MOD(BT$3,Calculations!$K107)=1,1,0))))*$AU107)*(1+'Country Input'!$C$45)^(Calculations!BT$3-$BH$3)","v":1320},{"$f":"(($U107+($O107)*IF(MOD(BU$3,$I107)=1,1,0)+Parts!$E$91*IF($J107=0,0,IF(MOD(BU$3,$I107)=1,IF(PQS!$R107=\"NO\",1,0),IF(MOD(BU$3,Calculations!$J107)=1,1,0)))+Parts!$E$92*IF(Calculations!$K107=0,0,IF(MOD(BU$3,$I107)=1,0,IF(MOD(BU$3,Calculations!$K107)=1,1,0))))*$AU107)*(1+'Country Input'!$C$45)^(Calculations!BU$3-$BH$3)","v":1320},{"$f":"(($U107+($O107)*IF(MOD(BV$3,$I107)=1,1,0)+Parts!$E$91*IF($J107=0,0,IF(MOD(BV$3,$I107)=1,IF(PQS!$R107=\"NO\",1,0),IF(MOD(BV$3,Calculations!$J107)=1,1,0)))+Parts!$E$92*IF(Calculations!$K107=0,0,IF(MOD(BV$3,$I107)=1,0,IF(MOD(BV$3,Calculations!$K107)=1,1,0))))*$AU107)*(1+'Country Input'!$C$45)^(Calculations!BV$3-$BH$3)","v":1320},{"$f":"(($U107+($O107)*IF(MOD(BW$3,$I107)=1,1,0)+Parts!$E$91*IF($J107=0,0,IF(MOD(BW$3,$I107)=1,IF(PQS!$R107=\"NO\",1,0),IF(MOD(BW$3,Calculations!$J107)=1,1,0)))+Parts!$E$92*IF(Calculations!$K107=0,0,IF(MOD(BW$3,$I107)=1,0,IF(MOD(BW$3,Calculations!$K107)=1,1,0))))*$AU107)*(1+'Country Input'!$C$45)^(Calculations!BW$3-$BH$3)","v":1320},{"$f":"(($U107+($O107)*IF(MOD(BX$3,$I107)=1,1,0)+Parts!$E$91*IF($J107=0,0,IF(MOD(BX$3,$I107)=1,IF(PQS!$R107=\"NO\",1,0),IF(MOD(BX$3,Calculations!$J107)=1,1,0)))+Parts!$E$92*IF(Calculations!$K107=0,0,IF(MOD(BX$3,$I107)=1,0,IF(MOD(BX$3,Calculations!$K107)=1,1,0))))*$AU107)*(1+'Country Input'!$C$45)^(Calculations!BX$3-$BH$3)","v":9780},{"$f":"(($U107+($O107)*IF(MOD(BY$3,$I107)=1,1,0)+Parts!$E$91*IF($J107=0,0,IF(MOD(BY$3,$I107)=1,IF(PQS!$R107=\"NO\",1,0),IF(MOD(BY$3,Calculations!$J107)=1,1,0)))+Parts!$E$92*IF(Calculations!$K107=0,0,IF(MOD(BY$3,$I107)=1,0,IF(MOD(BY$3,Calculations!$K107)=1,1,0))))*$AU107)*(1+'Country Input'!$C$45)^(Calculations!BY$3-$BH$3)","v":1320},{"$f":"(($U107+($O107)*IF(MOD(BZ$3,$I107)=1,1,0)+Parts!$E$91*IF($J107=0,0,IF(MOD(BZ$3,$I107)=1,IF(PQS!$R107=\"NO\",1,0),IF(MOD(BZ$3,Calculations!$J107)=1,1,0)))+Parts!$E$92*IF(Calculations!$K107=0,0,IF(MOD(BZ$3,$I107)=1,0,IF(MOD(BZ$3,Calculations!$K107)=1,1,0))))*$AU107)*(1+'Country Input'!$C$45)^(Calculations!BZ$3-$BH$3)","v":1320},{"$f":"(($U107+($O107)*IF(MOD(CA$3,$I107)=1,1,0)+Parts!$E$91*IF($J107=0,0,IF(MOD(CA$3,$I107)=1,IF(PQS!$R107=\"NO\",1,0),IF(MOD(CA$3,Calculations!$J107)=1,1,0)))+Parts!$E$92*IF(Calculations!$K107=0,0,IF(MOD(CA$3,$I107)=1,0,IF(MOD(CA$3,Calculations!$K107)=1,1,0))))*$AU107)*(1+'Country Input'!$C$45)^(Calculations!CA$3-$BH$3)","v":1320},null,"SureChill tbd",9780,1320,1320,1320,1320,1320,1320,1320,9780,1320,1320,1320,1320,1320,1320,1320,9780,1320,1320,1320,{"$f":"SUM(CD107:INDEX($CD107:$CW107,1,'Total Solution Costs'!$B$2))","v":30120},null,"SureChill tbd",{"$f":"SUM($BH107:BH107)","v":9780},{"$f":"SUM($BH107:BI107)","v":11100},{"$f":"SUM($BH107:BJ107)","v":12420},{"$f":"SUM($BH107:BK107)","v":13740},{"$f":"SUM($BH107:BL107)","v":15060},{"$f":"SUM($BH107:BM107)","v":16380},{"$f":"SUM($BH107:BN107)","v":17700},{"$f":"SUM($BH107:BO107)","v":19020},{"$f":"SUM($BH107:BP107)","v":28800},{"$f":"SUM($BH107:BQ107)","v":30120},{"$f":"SUM($BH107:BR107)","v":31440},{"$f":"SUM($BH107:BS107)","v":32760},{"$f":"SUM($BH107:BT107)","v":34080},{"$f":"SUM($BH107:BU107)","v":35400},{"$f":"SUM($BH107:BV107)","v":36720},{"$f":"SUM($BH107:BW107)","v":38040},{"$f":"SUM($BH107:BX107)","v":47820},{"$f":"SUM($BH107:BY107)","v":49140},{"$f":"SUM($BH107:BZ107)","v":50460},{"$f":"SUM($BH107:CA107)","v":51780}]
[]
[null,null,null,"*Price does not include solar panel; pre-2013 prices are inflation-adjusted to reflect 2013 price estimate"]
[null,null,null,"1Including freight charges and solar panel and components, if applicable"]
[null,null,null,"2Includes only incremental costs resulting from the need for additional staff/time to maintain refrigerator, no equipment travel costs"]
[null,null,null,"***Power consumption stable running is 3.46; intermittent power is 1.04"]

{"sheet":"Comparison data","index":31,"n_rows":107,"n_cols":20,"rows_kept":107,"cut":false,"hidden":true,"merged":[]}
["Model comparison tool"]
[]
["Summary data",null,null,null,null,null,null,null,null,null,null,null,null,"opex over useful life breakdown",null,null,null,"cost per liter"]
["Technology","Model","Storage volume","Capacity segmentation","CCEOP","Useful life","Capex","Opex over useful life","Total","Freezer capacity","Unit cost ","Spare parts","Installation labor","Energy costs","Parts (included in capex)","Maintenance & repairs","Capex per liter","Opex over useful life per liter","Total cost per liter","Annual opex/liter"]
[{"$f":"Calculations!A5","v":"Gas"},{"$f":"Calculations!E5","v":"B Medical RCW 50 EG"},{"$f":"IF(Calculations!F5=0, Calculations!G5, Calculations!F5)","v":24},{"$f":"LOOKUP(C5,List!$E$3:$E$13,List!$F$3:$F$13)","v":" 1-29"},{"$f":"Calculations!H5","v":"No"},{"$f":"Calculations!I5","v":10},{"$f":"Calculations!O5+Parts!$E$91*IF(Calculations!$J5<>0,IF(PQS!$R5=\"NO\",ROUNDUP(F5/Calculations!$J5,0),IF(PQS!$R5=\"YES\",ROUNDUP(F5/Calculations!$J5,0)-1,0)),0)+Parts!$E$92*IF(Calculations!$K5<>0,ROUNDUP(F5/Calculations!$K5,0)-1,0)","v":2678.4449},{"$f":"Calculations!T5","v":4186.93},{"$f":"G5+H5","v":6865.3749000000007},{"$f":"IF(VLOOKUP(B5,PQS!D:J,COLUMN(PQS!$J$3)-COLUMN(PQS!$D$3)+1,FALSE)=0,\"No\",\"Yes\")","v":"No"},{"$f":"Calculations!L5","v":2171.6826999999998},{"$f":"Calculations!N5","v":65.762200000000007},{"$f":"Calculations!M5","v":441},{"$f":"Calculations!Q5*Calculations!I5","v":3606.9300000000003},{"$f":"Calculations!N5","v":65.762200000000007},{"$f":"Calculations!R5*Calculations!I5+Calculations!S5*Calculations!I5","v":580},{"$f":"G5/C5","v":111.60187083333334},{"$f":"H5/C5","v":174.45541666666668},{"$f":"I5/C5","v":286.05728750000003},{"$f":"Calculations!U5/C5","v":17.445541666666667}]
[{"$f":"Calculations!A6","v":"Gas"},{"$f":"Calculations!E6","v":"Sibir V 170 GE"},{"$f":"IF(Calculations!F6=0, Calculations!G6, Calculations!F6)","v":55},{"$f":"LOOKUP(C6,List!$E$3:$E$13,List!$F$3:$F$13)","v":" 30-59"},{"$f":"Calculations!H6","v":"No"},{"$f":"Calculations!I6","v":10},{"$f":"Calculations!O6+Parts!$E$91*IF(Calculations!$J6<>0,IF(PQS!$R6=\"NO\",ROUNDUP(F6/Calculations!$J6,0),IF(PQS!$R6=\"YES\",ROUNDUP(F6/Calculations!$J6,0)-1,0)),0)+Parts!$E$92*IF(Calculations!$K6<>0,ROUNDUP(F6/Calculations!$K6,0)-1,0)","v":2297.9956999999999},{"$f":"Calculations!T6","v":5923.6},{"$f":"G6+H6","v":8221.5956999999999},{"$f":"IF(VLOOKUP(B6,PQS!D:J,COLUMN(PQS!$J$3)-COLUMN(PQS!$D$3)+1,FALSE)=0,\"No\",\"Yes\")","v":"No"},{"$f":"Calculations!L6","v":1735.2297000000001},{"$f":"Calculations!N6","v":121.76600000000001},{"$f":"Calculations!M6","v":441},{"$f":"Calculations!Q6*Calculations!I6","v":5343.6},{"$f":"Calculations!N6","v":121.76600000000001},{"$f":"Calculations!R6*Calculations!I6+Calculations!S6*Calculations!I6","v":580},{"$f":"G6/C6","v":41.781739999999999},{"$f":"H6/C6","v":107.70181818181818},{"$f":"I6/C6","v":149.48355818181818},{"$f":"Calculations!U6/C6","v":10.770181818181818}]
[{"$f":"Calculations!A7","v":"Gas"},{"$f":"Calculations!E7","v":"Sibir V 110 GE "},{"$f":"IF(Calculations!F7=0, Calculations!G7, Calculations!F7)","v":17},{"$f":"LOOKUP(C7,List!$E$3:$E$13,List!$F$3:$F$13)","v":" 1-29"},{"$f":"Calculations!H7","v":"No"},{"$f":"Calculations!I7","v":10},{"$f":"Calculations!O7+Parts!$E$91*IF(Calculations!$J7<>0,IF(PQS!$R7=\"NO\",ROUNDUP(F7/Calculations!$J7,0),IF(PQS!$R7=\"YES\",ROUNDUP(F7/Calculations!$J7,0)-1,0)),0)+Parts!$E$92*IF(Calculations!$K7<>0,ROUNDUP(F7/Calculations!$K7,0)-1,0)","v":2127.4377000000004},{"$f":"Calculations!T7","v":3919.75},6047.1877000000004,{"$f":"IF(VLOOKUP(B7,PQS!D:J,COLUMN(PQS!$J$3)-COLUMN(PQS!$D$3)+1,FALSE)=0,\"No\",\"Yes\")","v":"No"},{"$f":"Calculations!L7","v":1563.7301000000002},{"$f":"Calculations!N7","v":122.70760000000001},{"$f":"Calculations!M7","v":441},{"$f":"Calculations!Q7*Calculations!I7","v":3339.75},{"$f":"Calculations!N7","v":122.70760000000001},{"$f":"Calculations!R7*Calculations!I7+Calculations!S7*Calculations!I7","v":580},125.14339411764708,230.5735294117647,355.71692352941182,{"$f":"Calculations!U7/C7","v":23.057352941176472}]
[{"$f":"Calculations!A8","v":"Freezer"},{"$f":"Calculations!E8","v":"Haier HBD 116*"},{"$f":"IF(Calculations!F8=0, Calculations!G8, Calculations!F8)","v":121},{"$f":"LOOKUP(C8,List!$E$3:$E$13,List!$F$3:$F$13)","v":"120 +"},{"$f":"Calculations!H8","v":"Yes"},{"$f":"Calculations!I8","v":10},{"$f":"Calculations!O8+Parts!$E$91*IF(Calculations!$J8<>0,IF(PQS!$R8=\"NO\",ROUNDUP(F8/Calculations!$J8,0),IF(PQS!$R8=\"YES\",ROUNDUP(F8/Calculations!$J8,0)-1,0)),0)+Parts!$E$92*IF(Calculations!$K8<>0,ROUNDUP(F8/Calculations!$K8,0)-1,0)","v":1405.8432666666668},{"$f":"Calculations!T8","v":1464.0666666666666},2869.9099333333334,{"$f":"IF(VLOOKUP(B8,PQS!D:J,COLUMN(PQS!$J$3)-COLUMN(PQS!$D$3)+1,FALSE)=0,\"No\",\"Yes\")","v":"Yes"},{"$f":"Calculations!L8","v":561.36480000000006},{"$f":"Calculations!N8","v":128.47846666666669},{"$f":"Calculations!M8","v":716},{"$f":"Calculations!Q8*Calculations!I8","v":277.40000000000003},{"$f":"Calculations!N8","v":128.47846666666669},{"$f":"Calculations!R8*Calculations!I8+Calculations!S8*Calculations!I8","v":1186.6666666666665},11.618539393939395,12.099724517906335,23.718263911845732,{"$f":"Calculations!U8/C8","v":1.2099724517906336}]
[{"$f":"Calculations!A9","v":"Freezer"},{"$f":"Calculations!E9","v":"Haier HBD 286*"},{"$f":"IF(Calculations!F9=0, Calculations!G9, Calculations!F9)","v":298},{"$f":"LOOKUP(C9,List!$E$3:$E$13,List!$F$3:$F$13)","v":"120 +"},{"$f":"Calculations!H9","v":"Yes"},{"$f":"Calculations!I9","v":10},{"$f":"Calculations!O9+Parts!$E$91*IF(Calculations!$J9<>0,IF(PQS!$R9=\"NO\",ROUNDUP(F9/Calculations!$J9,0),IF(PQS!$R9=\"YES\",ROUNDUP(F9/Calculations!$J9,0)-1,0)),0)+Parts!$E$92*IF(Calculations!$K9<>0,ROUNDUP(F9/Calculations!$K9,0)-1,0)","v":1508.0924666666667},{"$f":"Calculations!T9","v":4369.4666666666672},5877.5591333333341,{"$f":"IF(VLOOKUP(B9,PQS!D:J,COLUMN(PQS!$J$3)-COLUMN(PQS!$D$3)+1,FALSE)=0,\"No\",\"Yes\")","v":"Yes"},{"$f":"Calculations!L9","v":652.70000000000005},{"$f":"Calculations!N9","v":139.39246666666668},{"$f":"Calculations!M9","v":716},{"$f":"Calculations!Q9*Calculations!I9","v":3182.8},{"$f":"Calculations!N9","v":139.39246666666668},{"$f":"Calculations!R9*Calculations!I9+Calculations!S9*Calculations!I9","v":1186.6666666666665},5.0607129753914988,14.662639821029085,19.723352796420585,{"$f":"Calculations!U9/C9","v":1.4662639821029084}]
[{"$f":"Calculations!A10","v":"Freezer"},{"$f":"Calculations!E10","v":"Vestfrost MF 314*"},{"$f":"IF(Calculations!F10=0, Calculations!G10, Calculations!F10)","v":281},{"$f":"LOOKUP(C10,List!$E$3:$E$13,List!$F$3:$F$13)","v":"120 +"},{"$f":"Calculations!H10","v":"Yes"},{"$f":"Calculations!I10","v":10},{"$f":"Calculations!O10+Parts!$E$91*IF(Calculations!$J10<>0,IF(PQS!$R10=\"NO\",ROUNDUP(F10/Calculations!$J10,0),IF(PQS!$R10=\"YES\",ROUNDUP(F10/Calculations!$J10,0)-1,0)),0)+Parts!$E$92*IF(Calculations!$K10<>0,ROUNDUP(F10/Calculations!$K10,0)-1,0)","v":1651.580608},{"$f":"Calculations!T10","v":4274.5666666666675},5926.1472746666677,{"$f":"IF(VLOOKUP(B10,PQS!D:J,COLUMN(PQS!$J$3)-COLUMN(PQS!$D$3)+1,FALSE)=0,\"No\",\"Yes\")","v":"Yes"},{"$f":"Calculations!L10","v":656.64830000000006},{"$f":"Calculations!N10","v":278.93230799999998},{"$f":"Calculations!M10","v":716},{"$f":"Calculations!Q10*Calculations!I10","v":3087.9},{"$f":"Calculations!N10","v":278.93230799999998},{"$f":"Calculations!R10*Calculations!I10+Calculations!S10*Calculations!I10","v":1186.6666666666665},5.8775110604982208,15.211981020166077,21.089492080664296,{"$f":"Calculations!U10/C10","v":1.5211981020166074}]
[{"$f":"Calculations!A11","v":"Freezer"},{"$f":"Calculations!E11","v":"Vestfrost MF 114*"},{"$f":"IF(Calculations!F11=0, Calculations!G11, Calculations!F11)","v":105},{"$f":"LOOKUP(C11,List!$E$3:$E$13,List!$F$3:$F$13)","v":" 90-120"},{"$f":"Calculations!H11","v":"Yes"},{"$f":"Calculations!I11","v":10},{"$f":"Calculations!O11+Parts!$E$91*IF(Calculations!$J11<>0,IF(PQS!$R11=\"NO\",ROUNDUP(F11/Calculations!$J11,0),IF(PQS!$R11=\"YES\",ROUNDUP(F11/Calculations!$J11,0)-1,0)),0)+Parts!$E$92*IF(Calculations!$K11<>0,ROUNDUP(F11/Calculations!$K11,0)-1,0)","v":1500.518008},{"$f":"Calculations!T11","v":2821.8666666666668},4322.3846746666668,{"$f":"IF(VLOOKUP(B11,PQS!D:J,COLUMN(PQS!$J$3)-COLUMN(PQS!$D$3)+1,FALSE)=0,\"No\",\"Yes\")","v":"Yes"},{"$f":"Calculations!L11","v":505.58570000000003},{"$f":"Calculations!N11","v":278.93230799999998},{"$f":"Calculations!M11","v":716},{"$f":"Calculations!Q11*Calculations!I11","v":1635.2},{"$f":"Calculations!N11","v":278.93230799999998},{"$f":"Calculations!R11*Calculations!I11+Calculations!S11*Calculations!I11","v":1186.6666666666665},14.290647695238095,26.874920634920635,41.165568330158735,{"$f":"Calculations!U11/C11","v":2.6874920634920634}]
[{"$f":"Calculations!A12","v":"Freezer"},{"$f":"Calculations!E12","v":"Vestfrost MF 214*"},{"$f":"IF(Calculations!F12=0, Calculations!G12, Calculations!F12)","v":171},{"$f":"LOOKUP(C12,List!$E$3:$E$13,List!$F$3:$F$13)","v":"120 +"},{"$f":"Calculations!H12","v":"Yes"},{"$f":"Calculations!I12","v":10},{"$f":"Calculations!O12+Parts!$E$91*IF(Calculations!$J12<>0,IF(PQS!$R12=\"NO\",ROUNDUP(F12/Calculations!$J12,0),IF(PQS!$R12=\"YES\",ROUNDUP(F12/Calculations!$J12,0)-1,0)),0)+Parts!$E$92*IF(Calculations!$K12<>0,ROUNDUP(F12/Calculations!$K12,0)-1,0)","v":1568.6546449999998},{"$f":"Calculations!T12","v":3376.666666666667},4945.3213116666666,{"$f":"IF(VLOOKUP(B12,PQS!D:J,COLUMN(PQS!$J$3)-COLUMN(PQS!$D$3)+1,FALSE)=0,\"No\",\"Yes\")","v":"Yes"},{"$f":"Calculations!L12","v":573.73400000000004},{"$f":"Calculations!N12","v":278.92064499999998},{"$f":"Calculations!M12","v":716},{"$f":"Calculations!Q12*Calculations!I12","v":2190.0000000000005},{"$f":"Calculations!N12","v":278.92064499999998},{"$f":"Calculations!R12*Calculations!I12+Calculations!S12*Calculations!I12","v":1186.6666666666665},9.1734189766081862,19.746588693957118,28.920007670565301,{"$f":"Calculations!U12/C12","v":1.9746588693957117}]
[{"$f":"Calculations!A13","v":"Freezer"},{"$f":"Calculations!E13","v":"B Medical TFW 800*"},{"$f":"IF(Calculations!F13=0, Calculations!G13, Calculations!F13)","v":290},{"$f":"LOOKUP(C13,List!$E$3:$E$13,List!$F$3:$F$13)","v":"120 +"},{"$f":"Calculations!H13","v":"Yes"},{"$f":"Calculations!I13","v":10},{"$f":"Calculations!O13+Parts!$E$91*IF(Calculations!$J13<>0,IF(PQS!$R13=\"NO\",ROUNDUP(F13/Calculations!$J13,0),IF(PQS!$R13=\"YES\",ROUNDUP(F13/Calculations!$J13,0)-1,0)),0)+Parts!$E$92*IF(Calculations!$K13<>0,ROUNDUP(F13/Calculations!$K13,0)-1,0)","v":4541.625035},{"$f":"Calculations!T13","v":3632.166666666667},8173.791701666667,{"$f":"IF(VLOOKUP(B13,PQS!D:J,COLUMN(PQS!$J$3)-COLUMN(PQS!$D$3)+1,FALSE)=0,\"No\",\"Yes\")","v":"Yes"},{"$f":"Calculations!L13","v":3406.3985000000002},{"$f":"Calculations!N13","v":419.22653500000001},{"$f":"Calculations!M13","v":716},{"$f":"Calculations!Q13*Calculations!I13","v":2445.5},{"$f":"Calculations!N13","v":419.22653500000001},{"$f":"Calculations!R13*Calculations!I13+Calculations!S13*Calculations!I13","v":1186.6666666666665},15.66077598275862,12.524712643678162,28.185488626436783,{"$f":"Calculations!U13/C13","v":1.2524712643678162}]
[{"$f":"Calculations!A14","v":"Freezer"},{"$f":"Calculations!E14","v":"Aucma DW-25W147*"},{"$f":"IF(Calculations!F14=0, Calculations!G14, Calculations!F14)","v":96},{"$f":"LOOKUP(C14,List!$E$3:$E$13,List!$F$3:$F$13)","v":" 90-120"},{"$f":"Calculations!H14","v":"Yes"},{"$f":"Calculations!I14","v":10},{"$f":"Calculations!O14+Parts!$E$91*IF(Calculations!$J14<>0,IF(PQS!$R14=\"NO\",ROUNDUP(F14/Calculations!$J14,0),IF(PQS!$R14=\"YES\",ROUNDUP(F14/Calculations!$J14,0)-1,0)),0)+Parts!$E$92*IF(Calculations!$K14<>0,ROUNDUP(F14/Calculations!$K14,0)-1,0)","v":1485.2872},{"$f":"Calculations!T14","v":3602.9666666666662},{"$f":"G14+H14","v":5088.253866666666},{"$f":"IF(VLOOKUP(B14,PQS!D:J,COLUMN(PQS!$J$3)-COLUMN(PQS!$D$3)+1,FALSE)=0,\"No\",\"Yes\")","v":"Yes"},{"$f":"Calculations!L14","v":535},{"$f":"Calculations!N14","v":234.28720000000004},{"$f":"Calculations!M14","v":716},{"$f":"Calculations!Q14*Calculations!I14","v":2416.3000000000002},{"$f":"Calculations!N14","v":234.28720000000004},{"$f":"Calculations!R14*Calculations!I14+Calculations!S14*Calculations!I14","v":1186.6666666666665},{"$f":"G14/C14","v":15.471741666666667},{"$f":"H14/C14","v":37.530902777777776},{"$f":"I14/C14","v":53.002644444444435},{"$f":"Calculations!U14/C14","v":3.7530902777777775}]
[{"$f":"Calculations!A15","v":"Freezer"},{"$f":"Calculations!E15","v":"Aucma DW-25W300*"},{"$f":"IF(Calculations!F15=0, Calculations!G15, Calculations!F15)","v":240},{"$f":"LOOKUP(C15,List!$E$3:$E$13,List!$F$3:$F$13)","v":"120 +"},{"$f":"Calculations!H15","v":"Yes"},{"$f":"Calculations!I15","v":10},{"$f":"Calculations!O15+Parts!$E$91*IF(Calculations!$J15<>0,IF(PQS!$R15=\"NO\",ROUNDUP(F15/Calculations!$J15,0),IF(PQS!$R15=\"YES\",ROUNDUP(F15/Calculations!$J15,0)-1,0)),0)+Parts!$E$92*IF(Calculations!$K15<>0,ROUNDUP(F15/Calculations!$K15,0)-1,0)","v":1761.7645000000002},{"$f":"Calculations!T15","v":3646.7666666666664},{"$f":"G15+H15","v":5408.5311666666666},{"$f":"IF(VLOOKUP(B15,PQS!D:J,COLUMN(PQS!$J$3)-COLUMN(PQS!$D$3)+1,FALSE)=0,\"No\",\"Yes\")","v":"Yes"},{"$f":"Calculations!L15","v":631.30000000000007},{"$f":"Calculations!N15","v":414.46449999999999},{"$f":"Calculations!M15","v":716},{"$f":"Calculations!Q15*Calculations!I15","v":2460.1000000000004},{"$f":"Calculations!N15","v":414.46449999999999},{"$f":"Calculations!R15*Calculations!I15+Calculations!S15*Calculations!I15","v":1186.6666666666665},{"$f":"G15/C15","v":7.340685416666668},{"$f":"H15/C15","v":15.194861111111111},{"$f":"I15/C15","v":22.535546527777779},{"$f":"Calculations!U15/C15","v":1.5194861111111109}]
[{"$f":"Calculations!A16","v":"Freezer"},{"$f":"Calculations!E16","v":"B Medical TFW 3000 AC*"},{"$f":"IF(Calculations!F16=0, Calculations!G16, Calculations!F16)","v":204},{"$f":"LOOKUP(C16,List!$E$3:$E$13,List!$F$3:$F$13)","v":"120 +"},{"$f":"Calculations!H16","v":"Yes"},{"$f":"Calculations!I16","v":10},{"$f":"Calculations!O16+Parts!$E$91*IF(Calculations!$J16<>0,IF(PQS!$R16=\"NO\",ROUNDUP(F16/Calculations!$J16,0),IF(PQS!$R16=\"YES\",ROUNDUP(F16/Calculations!$J16,0)-1,0)),0)+Parts!$E$92*IF(Calculations!$K16<>0,ROUNDUP(F16/Calculations!$K16,0)-1,0)","v":4733.9286450000009},{"$f":"Calculations!T16","v":2756.166666666667},{"$f":"G16+H16","v":7490.0953116666678},{"$f":"IF(VLOOKUP(B16,PQS!D:J,COLUMN(PQS!$J$3)-COLUMN(PQS!$D$3)+1,FALSE)=0,\"No\",\"Yes\")","v":"Yes"},{"$f":"Calculations!L16","v":3306.3107000000005},{"$f":"Calculations!N16","v":711.6179450000003},{"$f":"Calculations!M16","v":716},{"$f":"Calculations!Q16*Calculations!I16","v":1569.5},{"$f":"Calculations!N16","v":711.6179450000003},{"$f":"Calculations!R16*Calculations!I16+Calculations!S16*Calculations!I16","v":1186.6666666666665},{"$f":"G16/C16","v":23.205532573529418},{"$f":"H16/C16","v":13.510620915032682},{"$f":"I16/C16","v":36.716153488562099},{"$f":"Calculations!U16/C16","v":1.3510620915032681}]
[{"$f":"Calculations!A17","v":"Freezer"},{"$f":"Calculations!E17","v":"B Medical TFW 40 SDD*"},{"$f":"IF(Calculations!F17=0, Calculations!G17, Calculations!F17)","v":64},{"$f":"LOOKUP(C17,List!$E$3:$E$13,List!$F$3:$F$13)","v":" 60-89"},{"$f":"Calculations!H17","v":"Yes"},{"$f":"Calculations!I17","v":10},{"$f":"Calculations!O17+Parts!$E$91*IF(Calculations!$J17<>0,IF(PQS!$R17=\"NO\",ROUNDUP(F17/Calculations!$J17,0),IF(PQS!$R17=\"YES\",ROUNDUP(F17/Calculations!$J17,0)-1,0)),0)+Parts!$E$92*IF(Calculations!$K17<>0,ROUNDUP(F17/Calculations!$K17,0)-1,0)","v":7094.3449000000001},{"$f":"Calculations!T17","v":1186.6666666666665},8281.0115666666661,{"$f":"IF(VLOOKUP(B17,PQS!D:J,COLUMN(PQS!$J$3)-COLUMN(PQS!$D$3)+1,FALSE)=0,\"No\",\"Yes\")","v":"Yes"},{"$f":"Calculations!L17","v":5638.9107000000004},{"$f":"Calculations!N17","v":739.43420000000003},{"$f":"Calculations!M17","v":716},{"$f":"Calculations!Q17*Calculations!I17","v":0},{"$f":"Calculations!N17","v":739.43420000000003},{"$f":"Calculations!R17*Calculations!I17+Calculations!S17*Calculations!I17","v":1186.6666666666665},110.8491390625,18.541666666666664,129.39080572916666,{"$f":"Calculations!U17/C17","v":1.8541666666666665}]
[{"$f":"Calculations!A18","v":"ILR"},{"$f":"Calculations!E18","v":"Haier HBC-70"},{"$f":"IF(Calculations!F18=0, Calculations!G18, Calculations!F18)","v":45},{"$f":"LOOKUP(C18,List!$E$3:$E$13,List!$F$3:$F$13)","v":" 30-59"},{"$f":"Calculations!H18","v":"No"},{"$f":"Calculations!I18","v":10},{"$f":"Calculations!O18+Parts!$E$91*IF(Calculations!$J18<>0,IF(PQS!$R18=\"NO\",ROUNDUP(F18/Calculations!$J18,0),IF(PQS!$R18=\"YES\",ROUNDUP(F18/Calculations!$J18,0)-1,0)),0)+Parts!$E$92*IF(Calculations!$K18<>0,ROUNDUP(F18/Calculations!$K18,0)-1,0)","v":1549.5619666666669},{"$f":"Calculations!T18","v":1653.8666666666666},3203.4286333333334,{"$f":"IF(VLOOKUP(B18,PQS!D:J,COLUMN(PQS!$J$3)-COLUMN(PQS!$D$3)+1,FALSE)=0,\"No\",\"Yes\")","v":"No"},{"$f":"Calculations!L18","v":604.55000000000007},{"$f":"Calculations!N18","v":197.01196666666667},{"$f":"Calculations!M18","v":748},{"$f":"Calculations!Q18*Calculations!I18","v":467.2},{"$f":"Calculations!N18","v":197.01196666666667},{"$f":"Calculations!R18*Calculations!I18+Calculations!S18*Calculations!I18","v":1186.6666666666665},34.434710370370375,36.752592592592592,71.18730296296296,{"$f":"Calculations!U18/C18","v":3.675259259259259}]
[{"$f":"Calculations!A19","v":"ILR"},{"$f":"Calculations!E19","v":"Haier HBC-200"},{"$f":"IF(Calculations!F19=0, Calculations!G19, Calculations!F19)","v":90},{"$f":"LOOKUP(C19,List!$E$3:$E$13,List!$F$3:$F$13)","v":" 90-120"},{"$f":"Calculations!H19","v":"No"},{"$f":"Calculations!I19","v":10},{"$f":"Calculations!O19+Parts!$E$91*IF(Calculations!$J19<>0,IF(PQS!$R19=\"NO\",ROUNDUP(F19/Calculations!$J19,0),IF(PQS!$R19=\"YES\",ROUNDUP(F19/Calculations!$J19,0)-1,0)),0)+Parts!$E$92*IF(Calculations!$K19<>0,ROUNDUP(F19/Calculations!$K19,0)-1,0)","v":1698.2919666666667},{"$f":"Calculations!T19","v":2164.8666666666668},3863.1586333333335,{"$f":"IF(VLOOKUP(B19,PQS!D:J,COLUMN(PQS!$J$3)-COLUMN(PQS!$D$3)+1,FALSE)=0,\"No\",\"Yes\")","v":"No"},{"$f":"Calculations!L19","v":749},{"$f":"Calculations!N19","v":201.29196666666672},{"$f":"Calculations!M19","v":748},{"$f":"Calculations!Q19*Calculations!I19","v":978.2},{"$f":"Calculations!N19","v":201.29196666666672},{"$f":"Calculations!R19*Calculations!I19+Calculations!S19*Calculations!I19","v":1186.6666666666665},18.869910740740742,24.054074074074077,42.923984814814816,{"$f":"Calculations!U19/C19","v":2.4054074074074077}]
[{"$f":"Calculations!A20","v":"ILR"},{"$f":"Calculations!E20","v":"Vestfrost MK 304"},{"$f":"IF(Calculations!F20=0, Calculations!G20, Calculations!F20)","v":105},{"$f":"LOOKUP(C20,List!$E$3:$E$13,List!$F$3:$F$13)","v":" 90-120"},{"$f":"Calculations!H20","v":"No"},{"$f":"Calculations!I20","v":10},{"$f":"Calculations!O20+Parts!$E$91*IF(Calculations!$J20<>0,IF(PQS!$R20=\"NO\",ROUNDUP(F20/Calculations!$J20,0),IF(PQS!$R20=\"YES\",ROUNDUP(F20/Calculations!$J20,0)-1,0)),0)+Parts!$E$92*IF(Calculations!$K20<>0,ROUNDUP(F20/Calculations!$K20,0)-1,0)","v":2120.0468760000003},{"$f":"Calculations!T20","v":3522.6666666666665},5642.7135426666664,{"$f":"IF(VLOOKUP(B20,PQS!D:J,COLUMN(PQS!$J$3)-COLUMN(PQS!$D$3)+1,FALSE)=0,\"No\",\"Yes\")","v":"No"},{"$f":"Calculations!L20","v":923.58119999999997},{"$f":"Calculations!N20","v":448.46567600000003},{"$f":"Calculations!M20","v":748},{"$f":"Calculations!Q20*Calculations!I20","v":2336.0000000000005},{"$f":"Calculations!N20","v":448.46567600000003},{"$f":"Calculations!R20*Calculations!I20+Calculations!S20*Calculations!I20","v":1186.6666666666665},20.190922628571432,33.549206349206351,53.740128977777772,{"$f":"Calculations!U20/C20","v":3.3549206349206346}]
[{"$f":"Calculations!A21","v":"ILR"},{"$f":"Calculations!E21","v":"Vestfrost MKF 074"},{"$f":"IF(Calculations!F21=0, Calculations!G21, Calculations!F21)","v":16},{"$f":"LOOKUP(C21,List!$E$3:$E$13,List!$F$3:$F$13)","v":" 1-29"},{"$f":"Calculations!H21","v":"No"},{"$f":"Calculations!I21","v":10},{"$f":"Calculations!O21+Parts!$E$91*IF(Calculations!$J21<>0,IF(PQS!$R21=\"NO\",ROUNDUP(F21/Calculations!$J21,0),IF(PQS!$R21=\"YES\",ROUNDUP(F21/Calculations!$J21,0)-1,0)),0)+Parts!$E$92*IF(Calculations!$K21<>0,ROUNDUP(F21/Calculations!$K21,0)-1,0)","v":1899.9185580000001},{"$f":"Calculations!T21","v":3712.4666666666667},5612.3852246666665,{"$f":"IF(VLOOKUP(B21,PQS!D:J,COLUMN(PQS!$J$3)-COLUMN(PQS!$D$3)+1,FALSE)=0,\"No\",\"Yes\")","v":"Yes"},{"$f":"Calculations!L21","v":896.89540000000011},{"$f":"Calculations!N21","v":255.02315800000002},{"$f":"Calculations!M21","v":748},{"$f":"Calculations!Q21*Calculations!I21","v":2525.8000000000002},{"$f":"Calculations!N21","v":255.02315800000002},{"$f":"Calculations!R21*Calculations!I21+Calculations!S21*Calculations!I21","v":1186.6666666666665},118.744909875,232.02916666666667,350.77407654166666,{"$f":"Calculations!U21/C21","v":23.202916666666667}]
[{"$f":"Calculations!A22","v":"ILR"},{"$f":"Calculations!E22","v":"Vestfrost MK 204"},{"$f":"IF(Calculations!F22=0, Calculations!G22, Calculations!F22)","v":75},{"$f":"LOOKUP(C22,List!$E$3:$E$13,List!$F$3:$F$13)","v":" 60-89"},{"$f":"Calculations!H22","v":"No"},{"$f":"Calculations!I22","v":10},{"$f":"Calculations!O22+Parts!$E$91*IF(Calculations!$J22<>0,IF(PQS!$R22=\"NO\",ROUNDUP(F22/Calculations!$J22,0),IF(PQS!$R22=\"YES\",ROUNDUP(F22/Calculations!$J22,0)-1,0)),0)+Parts!$E$92*IF(Calculations!$K22<>0,ROUNDUP(F22/Calculations!$K22,0)-1,0)","v":1844.4571410000003},{"$f":"Calculations!T22","v":2566.3666666666668},4410.8238076666676,{"$f":"IF(VLOOKUP(B22,PQS!D:J,COLUMN(PQS!$J$3)-COLUMN(PQS!$D$3)+1,FALSE)=0,\"No\",\"Yes\")","v":"No"},{"$f":"Calculations!L22","v":786.13970000000006},{"$f":"Calculations!N22","v":310.31744100000003},{"$f":"Calculations!M22","v":748},{"$f":"Calculations!Q22*Calculations!I22","v":1379.7},{"$f":"Calculations!N22","v":310.31744100000003},{"$f":"Calculations!R22*Calculations!I22+Calculations!S22*Calculations!I22","v":1186.6666666666665},24.592761880000005,34.218222222222224,58.810984102222235,{"$f":"Calculations!U22/C22","v":3.4218222222222221}]
[{"$f":"Calculations!A23","v":"ILR"},{"$f":"Calculations!E23","v":"Vestfrost MK 404"},{"$f":"IF(Calculations!F23=0, Calculations!G23, Calculations!F23)","v":135},{"$f":"LOOKUP(C23,List!$E$3:$E$13,List!$F$3:$F$13)","v":"120 +"},{"$f":"Calculations!H23","v":"No"},{"$f":"Calculations!I23","v":10},{"$f":"Calculations!O23+Parts!$E$91*IF(Calculations!$J23<>0,IF(PQS!$R23=\"NO\",ROUNDUP(F23/Calculations!$J23,0),IF(PQS!$R23=\"YES\",ROUNDUP(F23/Calculations!$J23,0)-1,0)),0)+Parts!$E$92*IF(Calculations!$K23<>0,ROUNDUP(F23/Calculations!$K23,0)-1,0)","v":2234.0957149999999},{"$f":"Calculations!T23","v":3435.0666666666666},5669.162381666667,{"$f":"IF(VLOOKUP(B23,PQS!D:J,COLUMN(PQS!$J$3)-COLUMN(PQS!$D$3)+1,FALSE)=0,\"No\",\"Yes\")","v":"No"},{"$f":"Calculations!L23","v":1118.6529},{"$f":"Calculations!N23","v":367.44281500000005},{"$f":"Calculations!M23","v":748},{"$f":"Calculations!Q23*Calculations!I23","v":2248.4000000000005},{"$f":"Calculations!N23","v":367.44281500000005},{"$f":"Calculations!R23*Calculations!I23+Calculations!S23*Calculations!I23","v":1186.6666666666665},16.548857148148148,25.444938271604936,41.993795419753091,{"$f":"Calculations!U23/C23","v":2.544493827160494}]
[{"$f":"Calculations!A24","v":"ILR"},{"$f":"Calculations!E24","v":"B Medical TCW 2000 AC*"},{"$f":"IF(Calculations!F24=0, Calculations!G24, Calculations!F24)","v":60},{"$f":"LOOKUP(C24,List!$E$3:$E$13,List!$F$3:$F$13)","v":" 60-89"},{"$f":"Calculations!H24","v":"Yes"},{"$f":"Calculations!I24","v":10},{"$f":"Calculations!O24+Parts!$E$91*IF(Calculations!$J24<>0,IF(PQS!$R24=\"NO\",ROUNDUP(F24/Calculations!$J24,0),IF(PQS!$R24=\"YES\",ROUNDUP(F24/Calculations!$J24,0)-1,0)),0)+Parts!$E$92*IF(Calculations!$K24<>0,ROUNDUP(F24/Calculations!$K24,0)-1,0)","v":3875.7332640000004},{"$f":"Calculations!T24","v":2551.7666666666669},6427.4999306666668,{"$f":"IF(VLOOKUP(B24,PQS!D:J,COLUMN(PQS!$J$3)-COLUMN(PQS!$D$3)+1,FALSE)=0,\"No\",\"Yes\")","v":"Yes"},{"$f":"Calculations!L24","v":2466.1146000000003},{"$f":"Calculations!N24","v":661.61866399999997},{"$f":"Calculations!M24","v":748},{"$f":"Calculations!Q24*Calculations!I24","v":1365.1000000000001},{"$f":"Calculations!N24","v":661.61866399999997},{"$f":"Calculations!R24*Calculations!I24+Calculations!S24*Calculations!I24","v":1186.6666666666665},64.595554400000012,42.529444444444451,107.12499884444445,{"$f":"Calculations!U24/C24","v":4.2529444444444442}]
[{"$f":"Calculations!A25","v":"ILR"},{"$f":"Calculations!E25","v":"B Medical TCW 3000 AC"},{"$f":"IF(Calculations!F25=0, Calculations!G25, Calculations!F25)","v":150},{"$f":"LOOKUP(C25,List!$E$3:$E$13,List!$F$3:$F$13)","v":"120 +"},{"$f":"Calculations!H25","v":"No"},{"$f":"Calculations!I25","v":10},{"$f":"Calculations!O25+Parts!$E$91*IF(Calculations!$J25<>0,IF(PQS!$R25=\"NO\",ROUNDUP(F25/Calculations!$J25,0),IF(PQS!$R25=\"YES\",ROUNDUP(F25/Calculations!$J25,0)-1,0)),0)+Parts!$E$92*IF(Calculations!$K25<>0,ROUNDUP(F25/Calculations!$K25,0)-1,0)","v":3654.5238180000001},{"$f":"Calculations!T25","v":2186.7666666666669},5841.290484666667,{"$f":"IF(VLOOKUP(B25,PQS!D:J,COLUMN(PQS!$J$3)-COLUMN(PQS!$D$3)+1,FALSE)=0,\"No\",\"Yes\")","v":"Yes"},{"$f":"Calculations!L25","v":2433.1693},{"$f":"Calculations!N25","v":473.3545180000001},{"$f":"Calculations!M25","v":748},{"$f":"Calculations!Q25*Calculations!I25","v":1000.1},{"$f":"Calculations!N25","v":473.3545180000001},{"$f":"Calculations!R25*Calculations!I25+Calculations!S25*Calculations!I25","v":1186.6666666666665},24.36349212,14.578444444444445,38.941936564444447,{"$f":"Calculations!U25/C25","v":1.4578444444444445}]
[{"$f":"Calculations!A26","v":"ILR"},{"$f":"Calculations!E26","v":"Vestfrost VLS 400"},{"$f":"IF(Calculations!F26=0, Calculations!G26, Calculations!F26)","v":216},{"$f":"LOOKUP(C26,List!$E$3:$E$13,List!$F$3:$F$13)","v":"120 +"},{"$f":"Calculations!H26","v":"No"},{"$f":"Calculations!I26","v":10},{"$f":"Calculations!O26+Parts!$E$91*IF(Calculations!$J26<>0,IF(PQS!$R26=\"NO\",ROUNDUP(F26/Calculations!$J26,0),IF(PQS!$R26=\"YES\",ROUNDUP(F26/Calculations!$J26,0)-1,0)),0)+Parts!$E$92*IF(Calculations!$K26<>0,ROUNDUP(F26/Calculations!$K26,0)-1,0)","v":2003.534897},{"$f":"Calculations!T26","v":1785.2666666666664},3788.8015636666664,{"$f":"IF(VLOOKUP(B26,PQS!D:J,COLUMN(PQS!$J$3)-COLUMN(PQS!$D$3)+1,FALSE)=0,\"No\",\"Yes\")","v":"No"},{"$f":"Calculations!L26","v":948.57640000000004},{"$f":"Calculations!N26","v":306.95849700000008},{"$f":"Calculations!M26","v":748},{"$f":"Calculations!Q26*Calculations!I26","v":598.6},{"$f":"Calculations!N26","v":306.95849700000008},{"$f":"Calculations!R26*Calculations!I26+Calculations!S26*Calculations!I26","v":1186.6666666666665},9.2756245231481476,8.2651234567901231,17.540747979938271,{"$f":"Calculations!U26/C26","v":0.82651234567901222}]
[{"$f":"Calculations!A27","v":"ILR"},{"$f":"Calculations!E27","v":"Vestfrost MK 144"},{"$f":"IF(Calculations!F27=0, Calculations!G27, Calculations!F27)","v":48},{"$f":"LOOKUP(C27,List!$E$3:$E$13,List!$F$3:$F$13)","v":" 30-59"},{"$f":"Calculations!H27","v":"No"},{"$f":"Calculations!I27","v":10},{"$f":"Calculations!O27+Parts!$E$91*IF(Calculations!$J27<>0,IF(PQS!$R27=\"NO\",ROUNDUP(F27/Calculations!$J27,0),IF(PQS!$R27=\"YES\",ROUNDUP(F27/Calculations!$J27,0)-1,0)),0)+Parts!$E$92*IF(Calculations!$K27<>0,ROUNDUP(F27/Calculations!$K27,0)-1,0)","v":1737.5408150000001},{"$f":"Calculations!T27","v":2865.6666666666661},4603.2074816666664,{"$f":"IF(VLOOKUP(B27,PQS!D:J,COLUMN(PQS!$J$3)-COLUMN(PQS!$D$3)+1,FALSE)=0,\"No\",\"Yes\")","v":"No"},{"$f":"Calculations!L27","v":683.91189999999995},{"$f":"Calculations!N27","v":305.62891499999995},{"$f":"Calculations!M27","v":748},{"$f":"Calculations!Q27*Calculations!I27","v":1678.9999999999998},{"$f":"Calculations!N27","v":305.62891499999995},{"$f":"Calculations!R27*Calculations!I27+Calculations!S27*Calculations!I27","v":1186.6666666666665},36.19876697916667,59.701388888888879,95.900155868055549,{"$f":"Calculations!U27/C27","v":5.9701388888888873}]
[{"$f":"Calculations!A28","v":"ILR"},{"$f":"Calculations!E28","v":"Vestfrost VLS 200"},{"$f":"IF(Calculations!F28=0, Calculations!G28, Calculations!F28)","v":100},{"$f":"LOOKUP(C28,List!$E$3:$E$13,List!$F$3:$F$13)","v":" 90-120"},{"$f":"Calculations!H28","v":"No"},{"$f":"Calculations!I28","v":10},{"$f":"Calculations!O28+Parts!$E$91*IF(Calculations!$J28<>0,IF(PQS!$R28=\"NO\",ROUNDUP(F28/Calculations!$J28,0),IF(PQS!$R28=\"YES\",ROUNDUP(F28/Calculations!$J28,0)-1,0)),0)+Parts!$E$92*IF(Calculations!$K28<>0,ROUNDUP(F28/Calculations!$K28,0)-1,0)","v":1740.422325},{"$f":"Calculations!T28","v":1704.9666666666667},3445.3889916666667,{"$f":"IF(VLOOKUP(B28,PQS!D:J,COLUMN(PQS!$J$3)-COLUMN(PQS!$D$3)+1,FALSE)=0,\"No\",\"Yes\")","v":"Yes"},{"$f":"Calculations!L28","v":694.14110000000005},{"$f":"Calculations!N28","v":298.28122500000006},{"$f":"Calculations!M28","v":748},{"$f":"Calculations!Q28*Calculations!I28","v":518.29999999999995},{"$f":"Calculations!N28","v":298.28122500000006},{"$f":"Calculations!R28*Calculations!I28+Calculations!S28*Calculations!I28","v":1186.6666666666665},17.404223250000001,17.049666666666667,34.453889916666668,{"$f":"Calculations!U28/C28","v":1.7049666666666667}]
[{"$f":"Calculations!A29","v":"ILR"},{"$f":"Calculations!E29","v":"Vestfrost VLS 300"},{"$f":"IF(Calculations!F29=0, Calculations!G29, Calculations!F29)","v":148},{"$f":"LOOKUP(C29,List!$E$3:$E$13,List!$F$3:$F$13)","v":"120 +"},{"$f":"Calculations!H29","v":"No"},{"$f":"Calculations!I29","v":10},{"$f":"Calculations!O29+Parts!$E$91*IF(Calculations!$J29<>0,IF(PQS!$R29=\"NO\",ROUNDUP(F29/Calculations!$J29,0),IF(PQS!$R29=\"YES\",ROUNDUP(F29/Calculations!$J29,0)-1,0)),0)+Parts!$E$92*IF(Calculations!$K29<>0,ROUNDUP(F29/Calculations!$K29,0)-1,0)","v":1822.024163},{"$f":"Calculations!T29","v":1668.4666666666667},3490.4908296666667,{"$f":"IF(VLOOKUP(B29,PQS!D:J,COLUMN(PQS!$J$3)-COLUMN(PQS!$D$3)+1,FALSE)=0,\"No\",\"Yes\")","v":"No"},{"$f":"Calculations!L29","v":867.57740000000013},{"$f":"Calculations!N29","v":206.446763},{"$f":"Calculations!M29","v":748},{"$f":"Calculations!Q29*Calculations!I29","v":481.8},{"$f":"Calculations!N29","v":206.446763},{"$f":"Calculations!R29*Calculations!I29+Calculations!S29*Calculations!I29","v":1186.6666666666665},12.310974074324324,11.273423423423424,23.584397497747748,{"$f":"Calculations!U29/C29","v":1.1273423423423423}]
[{"$f":"Calculations!A30","v":"ILR"},{"$f":"Calculations!E30","v":"Vestfrost VLS 350"},{"$f":"IF(Calculations!F30=0, Calculations!G30, Calculations!F30)","v":196},{"$f":"LOOKUP(C30,List!$E$3:$E$13,List!$F$3:$F$13)","v":"120 +"},{"$f":"Calculations!H30","v":"No"},{"$f":"Calculations!I30","v":10},{"$f":"Calculations!O30+Parts!$E$91*IF(Calculations!$J30<>0,IF(PQS!$R30=\"NO\",ROUNDUP(F30/Calculations!$J30,0),IF(PQS!$R30=\"YES\",ROUNDUP(F30/Calculations!$J30,0)-1,0)),0)+Parts!$E$92*IF(Calculations!$K30<>0,ROUNDUP(F30/Calculations!$K30,0)-1,0)","v":1925.1573969999999},{"$f":"Calculations!T30","v":1631.9666666666667},3557.1240636666666,{"$f":"IF(VLOOKUP(B30,PQS!D:J,COLUMN(PQS!$J$3)-COLUMN(PQS!$D$3)+1,FALSE)=0,\"No\",\"Yes\")","v":"No"},{"$f":"Calculations!L30","v":870.19889999999998},{"$f":"Calculations!N30","v":306.95849700000008},{"$f":"Calculations!M30","v":748},{"$f":"Calculations!Q30*Calculations!I30","v":445.3},{"$f":"Calculations!N30","v":306.95849700000008},{"$f":"Calculations!R30*Calculations!I30+Calculations!S30*Calculations!I30","v":1186.6666666666665},9.8222316173469384,8.3263605442176871,18.148592161564626,{"$f":"Calculations!U30/C30","v":0.83263605442176869}]
[{"$f":"Calculations!A31","v":"ILR"},{"$f":"Calculations!E31","v":"Haier HBC-110"},{"$f":"IF(Calculations!F31=0, Calculations!G31, Calculations!F31)","v":52.5},{"$f":"LOOKUP(C31,List!$E$3:$E$13,List!$F$3:$F$13)","v":" 30-59"},{"$f":"Calculations!H31","v":"No"},{"$f":"Calculations!I31","v":10},{"$f":"Calculations!O31+Parts!$E$91*IF(Calculations!$J31<>0,IF(PQS!$R31=\"NO\",ROUNDUP(F31/Calculations!$J31,0),IF(PQS!$R31=\"YES\",ROUNDUP(F31/Calculations!$J31,0)-1,0)),0)+Parts!$E$92*IF(Calculations!$K31<>0,ROUNDUP(F31/Calculations!$K31,0)-1,0)","v":1599.3169666666668},{"$f":"Calculations!T31","v":2062.6666666666665},3661.9836333333333,{"$f":"IF(VLOOKUP(B31,PQS!D:J,COLUMN(PQS!$J$3)-COLUMN(PQS!$D$3)+1,FALSE)=0,\"No\",\"Yes\")","v":"No"},{"$f":"Calculations!L31","v":642},{"$f":"Calculations!N31","v":209.31696666666667},{"$f":"Calculations!M31","v":748},{"$f":"Calculations!Q31*Calculations!I31","v":876},{"$f":"Calculations!N31","v":209.31696666666667},{"$f":"Calculations!R31*Calculations!I31+Calculations!S31*Calculations!I31","v":1186.6666666666665},30.463180317460321,39.288888888888884,69.752069206349205,{"$f":"Calculations!U31/C31","v":3.9288888888888884}]
[{"$f":"Calculations!A32","v":"ILR"},{"$f":"Calculations!E32","v":"Zero ZLF 100 AC*"},{"$f":"IF(Calculations!F32=0, Calculations!G32, Calculations!F32)","v":99},{"$f":"LOOKUP(C32,List!$E$3:$E$13,List!$F$3:$F$13)","v":" 90-120"},{"$f":"Calculations!H32","v":"Yes"},{"$f":"Calculations!I32","v":10},{"$f":"Calculations!O32+Parts!$E$91*IF(Calculations!$J32<>0,IF(PQS!$R32=\"NO\",ROUNDUP(F32/Calculations!$J32,0),IF(PQS!$R32=\"YES\",ROUNDUP(F32/Calculations!$J32,0)-1,0)),0)+Parts!$E$92*IF(Calculations!$K32<>0,ROUNDUP(F32/Calculations!$K32,0)-1,0)","v":3472.2200000000003},{"$f":"Calculations!T32","v":2617.4666666666667},6089.6866666666665,{"$f":"IF(VLOOKUP(B32,PQS!D:J,COLUMN(PQS!$J$3)-COLUMN(PQS!$D$3)+1,FALSE)=0,\"No\",\"Yes\")","v":"No"},{"$f":"Calculations!L32","v":2209.5500000000002},{"$f":"Calculations!N32","v":514.67000000000007},{"$f":"Calculations!M32","v":748},{"$f":"Calculations!Q32*Calculations!I32","v":1430.8000000000002},{"$f":"Calculations!N32","v":514.67000000000007},{"$f":"Calculations!R32*Calculations!I32+Calculations!S32*Calculations!I32","v":1186.6666666666665},35.072929292929295,26.439057239057238,61.51198653198653,{"$f":"Calculations!U32/C32","v":2.643905723905724}]
[{"$f":"Calculations!A33","v":"ILR"},{"$f":"Calculations!E33","v":"Haier HBC-340"},{"$f":"IF(Calculations!F33=0, Calculations!G33, Calculations!F33)","v":211},{"$f":"LOOKUP(C33,List!$E$3:$E$13,List!$F$3:$F$13)","v":"120 +"},{"$f":"Calculations!H33","v":"No"},{"$f":"Calculations!I33","v":10},{"$f":"Calculations!O33+Parts!$E$91*IF(Calculations!$J33<>0,IF(PQS!$R33=\"NO\",ROUNDUP(F33/Calculations!$J33,0),IF(PQS!$R33=\"YES\",ROUNDUP(F33/Calculations!$J33,0)-1,0)),0)+Parts!$E$92*IF(Calculations!$K33<>0,ROUNDUP(F33/Calculations!$K33,0)-1,0)","v":2053.2287999999999},{"$f":"Calculations!T33","v":2690.4666666666667},4743.6954666666661,{"$f":"IF(VLOOKUP(B33,PQS!D:J,COLUMN(PQS!$J$3)-COLUMN(PQS!$D$3)+1,FALSE)=0,\"No\",\"Yes\")","v":"No"},{"$f":"Calculations!L33","v":1016.5},{"$f":"Calculations!N33","v":288.72880000000004},{"$f":"Calculations!M33","v":748},{"$f":"Calculations!Q33*Calculations!I33","v":1503.8000000000002},{"$f":"Calculations!N33","v":288.72880000000004},{"$f":"Calculations!R33*Calculations!I33+Calculations!S33*Calculations!I33","v":1186.6666666666665},9.730942180094786,12.751026856240127,22.48196903633491,{"$f":"Calculations!U33/C33","v":1.2751026856240126}]
[{"$f":"Calculations!A34","v":"ILR"},{"$f":"Calculations!E34","v":"Zero ZLF 150 AC*"},{"$f":"IF(Calculations!F34=0, Calculations!G34, Calculations!F34)","v":128},{"$f":"LOOKUP(C34,List!$E$3:$E$13,List!$F$3:$F$13)","v":"120 +"},{"$f":"Calculations!H34","v":"Yes"},{"$f":"Calculations!I34","v":10},{"$f":"Calculations!O34+Parts!$E$91*IF(Calculations!$J34<>0,IF(PQS!$R34=\"NO\",ROUNDUP(F34/Calculations!$J34,0),IF(PQS!$R34=\"YES\",ROUNDUP(F34/Calculations!$J34,0)-1,0)),0)+Parts!$E$92*IF(Calculations!$K34<>0,ROUNDUP(F34/Calculations!$K34,0)-1,0)","v":3915.2000000000003},{"$f":"Calculations!T34","v":2632.0666666666671},6547.2666666666673,{"$f":"IF(VLOOKUP(B34,PQS!D:J,COLUMN(PQS!$J$3)-COLUMN(PQS!$D$3)+1,FALSE)=0,\"No\",\"Yes\")","v":"No"},{"$f":"Calculations!L34","v":2652.53},{"$f":"Calculations!N34","v":514.67000000000007},{"$f":"Calculations!M34","v":748},{"$f":"Calculations!Q34*Calculations!I34","v":1445.4},{"$f":"Calculations!N34","v":514.67000000000007},{"$f":"Calculations!R34*Calculations!I34+Calculations!S34*Calculations!I34","v":1186.6666666666665},30.587500000000002,20.563020833333336,51.150520833333339,{"$f":"Calculations!U34/C34","v":2.0563020833333336}]
[{"$f":"Calculations!A35","v":"ILR"},{"$f":"Calculations!E35","v":"Godrej & Boyce  GVR 50 AC*"},{"$f":"IF(Calculations!F35=0, Calculations!G35, Calculations!F35)","v":46.8},{"$f":"LOOKUP(C35,List!$E$3:$E$13,List!$F$3:$F$13)","v":" 30-59"},{"$f":"Calculations!H35","v":"Yes"},{"$f":"Calculations!I35","v":10},{"$f":"Calculations!O35+Parts!$E$91*IF(Calculations!$J35<>0,IF(PQS!$R35=\"NO\",ROUNDUP(F35/Calculations!$J35,0),IF(PQS!$R35=\"YES\",ROUNDUP(F35/Calculations!$J35,0)-1,0)),0)+Parts!$E$92*IF(Calculations!$K35<>0,ROUNDUP(F35/Calculations!$K35,0)-1,0)","v":2573.42},{"$f":"Calculations!T35","v":1595.4666666666665},4168.8866666666663,{"$f":"IF(VLOOKUP(B35,PQS!D:J,COLUMN(PQS!$J$3)-COLUMN(PQS!$D$3)+1,FALSE)=0,\"No\",\"Yes\")","v":"No"},{"$f":"Calculations!L35","v":1658.5},{"$f":"Calculations!N35","v":166.92000000000002},{"$f":"Calculations!M35","v":748},{"$f":"Calculations!Q35*Calculations!I35","v":408.8},{"$f":"Calculations!N35","v":166.92000000000002},{"$f":"Calculations!R35*Calculations!I35+Calculations!S35*Calculations!I35","v":1186.6666666666665},54.98760683760684,34.091168091168086,89.078774928774934,{"$f":"Calculations!U35/C35","v":3.4091168091168091}]
[{"$f":"Calculations!A36","v":"ILR"},{"$f":"Calculations!E36","v":"Godrej & Boyce  GVR 100 AC*"},{"$f":"IF(Calculations!F36=0, Calculations!G36, Calculations!F36)","v":99},{"$f":"LOOKUP(C36,List!$E$3:$E$13,List!$F$3:$F$13)","v":" 90-120"},{"$f":"Calculations!H36","v":"Yes"},{"$f":"Calculations!I36","v":10},{"$f":"Calculations!O36+Parts!$E$91*IF(Calculations!$J36<>0,IF(PQS!$R36=\"NO\",ROUNDUP(F36/Calculations!$J36,0),IF(PQS!$R36=\"YES\",ROUNDUP(F36/Calculations!$J36,0)-1,0)),0)+Parts!$E$92*IF(Calculations!$K36<>0,ROUNDUP(F36/Calculations!$K36,0)-1,0)","v":3429.42},{"$f":"Calculations!T36","v":1734.1666666666665},5163.5866666666661,{"$f":"IF(VLOOKUP(B36,PQS!D:J,COLUMN(PQS!$J$3)-COLUMN(PQS!$D$3)+1,FALSE)=0,\"No\",\"Yes\")","v":"No"},{"$f":"Calculations!L36","v":2514.5},{"$f":"Calculations!N36","v":166.92000000000002},{"$f":"Calculations!M36","v":748},{"$f":"Calculations!Q36*Calculations!I36","v":547.50000000000011},{"$f":"Calculations!N36","v":166.92000000000002},{"$f":"Calculations!R36*Calculations!I36+Calculations!S36*Calculations!I36","v":1186.6666666666665},34.640606060606061,17.516835016835014,52.157441077441071,{"$f":"Calculations!U36/C36","v":1.7516835016835015}]
[{"$f":"Calculations!A37","v":"ILR"},{"$f":"Calculations!E37","v":"Zero ZLF 30 AC*"},{"$f":"IF(Calculations!F37=0, Calculations!G37, Calculations!F37)","v":27},{"$f":"LOOKUP(C37,List!$E$3:$E$13,List!$F$3:$F$13)","v":" 1-29"},{"$f":"Calculations!H37","v":"Yes"},{"$f":"Calculations!I37","v":10},{"$f":"Calculations!O37+Parts!$E$91*IF(Calculations!$J37<>0,IF(PQS!$R37=\"NO\",ROUNDUP(F37/Calculations!$J37,0),IF(PQS!$R37=\"YES\",ROUNDUP(F37/Calculations!$J37,0)-1,0)),0)+Parts!$E$92*IF(Calculations!$K37<>0,ROUNDUP(F37/Calculations!$K37,0)-1,0)","v":2591.61},{"$f":"Calculations!T37","v":2414.5266666666666},{"$f":"G37+H37","v":5006.1366666666672},{"$f":"IF(VLOOKUP(B37,PQS!D:J,COLUMN(PQS!$J$3)-COLUMN(PQS!$D$3)+1,FALSE)=0,\"No\",\"Yes\")","v":"No"},{"$f":"Calculations!L37","v":1328.94},{"$f":"Calculations!N37","v":514.67000000000007},{"$f":"Calculations!M37","v":748},{"$f":"Calculations!Q37*Calculations!I37","v":1227.8600000000001},{"$f":"Calculations!N37","v":514.67000000000007},{"$f":"Calculations!R37*Calculations!I37+Calculations!S37*Calculations!I37","v":1186.6666666666665},{"$f":"G37/C37","v":95.985555555555564},{"$f":"H37/C37","v":89.426913580246918},{"$f":"I37/C37","v":185.4124691358025},{"$f":"Calculations!U37/C37","v":8.9426913580246907}]
[{"$f":"Calculations!A38","v":"ILR"},{"$f":"Calculations!E38","v":"Vestfrost VLS 200A*"},{"$f":"IF(Calculations!F38=0, Calculations!G38, Calculations!F38)","v":60},{"$f":"LOOKUP(C38,List!$E$3:$E$13,List!$F$3:$F$13)","v":" 60-89"},{"$f":"Calculations!H38","v":"Yes"},{"$f":"Calculations!I38","v":10},{"$f":"Calculations!O38+Parts!$E$91*IF(Calculations!$J38<>0,IF(PQS!$R38=\"NO\",ROUNDUP(F38/Calculations!$J38,0),IF(PQS!$R38=\"YES\",ROUNDUP(F38/Calculations!$J38,0)-1,0)),0)+Parts!$E$92*IF(Calculations!$K38<>0,ROUNDUP(F38/Calculations!$K38,0)-1,0)","v":1874.0994579999999},{"$f":"Calculations!T38","v":1602.7666666666664},{"$f":"G38+H38","v":3476.8661246666661},{"$f":"IF(VLOOKUP(B38,PQS!D:J,COLUMN(PQS!$J$3)-COLUMN(PQS!$D$3)+1,FALSE)=0,\"No\",\"Yes\")","v":"No"},{"$f":"Calculations!L38","v":833.75470000000007},{"$f":"Calculations!N38","v":292.34475800000001},{"$f":"Calculations!M38","v":748},{"$f":"Calculations!Q38*Calculations!I38","v":416.1},{"$f":"Calculations!N38","v":292.34475800000001},{"$f":"Calculations!R38*Calculations!I38+Calculations!S38*Calculations!I38","v":1186.6666666666665},{"$f":"G38/C38","v":31.234990966666665},{"$f":"H38/C38","v":26.712777777777774},{"$f":"I38/C38","v":57.947768744444438},{"$f":"Calculations!U38/C38","v":2.6712777777777772}]
[{"$f":"Calculations!A39","v":"ILR"},{"$f":"Calculations!E39","v":"Vestfrost VLS 300A*"},{"$f":"IF(Calculations!F39=0, Calculations!G39, Calculations!F39)","v":98},{"$f":"LOOKUP(C39,List!$E$3:$E$13,List!$F$3:$F$13)","v":" 90-120"},{"$f":"Calculations!H39","v":"Yes"},{"$f":"Calculations!I39","v":10},{"$f":"Calculations!O39+Parts!$E$91*IF(Calculations!$J39<>0,IF(PQS!$R39=\"NO\",ROUNDUP(F39/Calculations!$J39,0),IF(PQS!$R39=\"YES\",ROUNDUP(F39/Calculations!$J39,0)-1,0)),0)+Parts!$E$92*IF(Calculations!$K39<>0,ROUNDUP(F39/Calculations!$K39,0)-1,0)","v":2064.6612150000001},{"$f":"Calculations!T39","v":1690.3666666666666},3755.0278816666669,{"$f":"IF(VLOOKUP(B39,PQS!D:J,COLUMN(PQS!$J$3)-COLUMN(PQS!$D$3)+1,FALSE)=0,\"No\",\"Yes\")","v":"No"},{"$f":"Calculations!L39","v":1012.1986000000001},{"$f":"Calculations!N39","v":304.46261499999997},{"$f":"Calculations!M39","v":748},{"$f":"Calculations!Q39*Calculations!I39","v":503.7},{"$f":"Calculations!N39","v":304.46261499999997},{"$f":"Calculations!R39*Calculations!I39+Calculations!S39*Calculations!I39","v":1186.6666666666665},21.067971581632655,17.24863945578231,38.316611037414965,{"$f":"Calculations!U39/C39","v":1.7248639455782313}]
[{"$f":"Calculations!A40","v":"ILR"},{"$f":"Calculations!E40","v":"Vestfrost VLS 350A*"},{"$f":"IF(Calculations!F40=0, Calculations!G40, Calculations!F40)","v":127},{"$f":"LOOKUP(C40,List!$E$3:$E$13,List!$F$3:$F$13)","v":"120 +"},{"$f":"Calculations!H40","v":"Yes"},{"$f":"Calculations!I40","v":10},{"$f":"Calculations!O40+Parts!$E$91*IF(Calculations!$J40<>0,IF(PQS!$R40=\"NO\",ROUNDUP(F40/Calculations!$J40,0),IF(PQS!$R40=\"YES\",ROUNDUP(F40/Calculations!$J40,0)-1,0)),0)+Parts!$E$92*IF(Calculations!$K40<>0,ROUNDUP(F40/Calculations!$K40,0)-1,0)","v":2188.3589930000003},{"$f":"Calculations!T40","v":1639.2666666666664},3827.6256596666667,{"$f":"IF(VLOOKUP(B40,PQS!D:J,COLUMN(PQS!$J$3)-COLUMN(PQS!$D$3)+1,FALSE)=0,\"No\",\"Yes\")","v":"No"},{"$f":"Calculations!L40","v":1131.1612000000002},{"$f":"Calculations!N40","v":309.19779299999999},{"$f":"Calculations!M40","v":748},{"$f":"Calculations!Q40*Calculations!I40","v":452.59999999999997},{"$f":"Calculations!N40","v":309.19779299999999},{"$f":"Calculations!R40*Calculations!I40+Calculations!S40*Calculations!I40","v":1186.6666666666665},17.231173173228349,12.907611548556428,30.138784721784777,{"$f":"Calculations!U40/C40","v":1.2907611548556428}]
[{"$f":"Calculations!A41","v":"ILR"},{"$f":"Calculations!E41","v":"Vestfrost VLS 400A*"},{"$f":"IF(Calculations!F41=0, Calculations!G41, Calculations!F41)","v":145},{"$f":"LOOKUP(C41,List!$E$3:$E$13,List!$F$3:$F$13)","v":"120 +"},{"$f":"Calculations!H41","v":"Yes"},{"$f":"Calculations!I41","v":10},{"$f":"Calculations!O41+Parts!$E$91*IF(Calculations!$J41<>0,IF(PQS!$R41=\"NO\",ROUNDUP(F41/Calculations!$J41,0),IF(PQS!$R41=\"YES\",ROUNDUP(F41/Calculations!$J41,0)-1,0)),0)+Parts!$E$92*IF(Calculations!$K41<>0,ROUNDUP(F41/Calculations!$K41,0)-1,0)","v":2280.1351400000003},{"$f":"Calculations!T41","v":1675.7666666666664},3955.9018066666667,{"$f":"IF(VLOOKUP(B41,PQS!D:J,COLUMN(PQS!$J$3)-COLUMN(PQS!$D$3)+1,FALSE)=0,\"No\",\"Yes\")","v":"No"},{"$f":"Calculations!L41","v":1225.6315000000002},{"$f":"Calculations!N41","v":306.50364000000002},{"$f":"Calculations!M41","v":748},{"$f":"Calculations!Q41*Calculations!I41","v":489.1},{"$f":"Calculations!N41","v":306.50364000000002},{"$f":"Calculations!R41*Calculations!I41+Calculations!S41*Calculations!I41","v":1186.6666666666665},15.725069931034485,11.557011494252873,27.282081425287355,{"$f":"Calculations!U41/C41","v":1.1557011494252873}]
[{"$f":"Calculations!A42","v":"ILR"},{"$f":"Calculations!E42","v":"B Medical TCW 4000 AC*"},{"$f":"IF(Calculations!F42=0, Calculations!G42, Calculations!F42)","v":240},{"$f":"LOOKUP(C42,List!$E$3:$E$13,List!$F$3:$F$13)","v":"120 +"},{"$f":"Calculations!H42","v":"Yes"},{"$f":"Calculations!I42","v":10},{"$f":"Calculations!O42+Parts!$E$91*IF(Calculations!$J42<>0,IF(PQS!$R42=\"NO\",ROUNDUP(F42/Calculations!$J42,0),IF(PQS!$R42=\"YES\",ROUNDUP(F42/Calculations!$J42,0)-1,0)),0)+Parts!$E$92*IF(Calculations!$K42<>0,ROUNDUP(F42/Calculations!$K42,0)-1,0)","v":5252.2990710000013},{"$f":"Calculations!T42","v":1807.1666666666667},7059.4657376666682,{"$f":"IF(VLOOKUP(B42,PQS!D:J,COLUMN(PQS!$J$3)-COLUMN(PQS!$D$3)+1,FALSE)=0,\"No\",\"Yes\")","v":"No"},{"$f":"Calculations!L42","v":3910.4541000000004},{"$f":"Calculations!N42","v":593.8449710000001},{"$f":"Calculations!M42","v":748},{"$f":"Calculations!Q42*Calculations!I42","v":620.5},{"$f":"Calculations!N42","v":593.8449710000001},{"$f":"Calculations!R42*Calculations!I42+Calculations!S42*Calculations!I42","v":1186.6666666666665},21.884579462500007,7.5298611111111118,29.414440573611117,{"$f":"Calculations!U42/C42","v":0.75298611111111113}]
[{"$f":"Calculations!A43","v":"ILR"},{"$f":"Calculations!E43","v":"Vestfrost VLS 064 RF"},{"$f":"IF(Calculations!F43=0, Calculations!G43, Calculations!F43)","v":52.5},{"$f":"LOOKUP(C43,List!$E$3:$E$13,List!$F$3:$F$13)","v":" 30-59"},{"$f":"Calculations!H43","v":"No"},{"$f":"Calculations!I43","v":10},{"$f":"Calculations!O43+Parts!$E$91*IF(Calculations!$J43<>0,IF(PQS!$R43=\"NO\",ROUNDUP(F43/Calculations!$J43,0),IF(PQS!$R43=\"YES\",ROUNDUP(F43/Calculations!$J43,0)-1,0)),0)+Parts!$E$92*IF(Calculations!$K43<>0,ROUNDUP(F43/Calculations!$K43,0)-1,0)","v":2102.1227710000003},{"$f":"Calculations!T43","v":2281.6666666666665},{"$f":"G43+H43","v":4383.7894376666663},{"$f":"IF(VLOOKUP(B43,PQS!D:J,COLUMN(PQS!$J$3)-COLUMN(PQS!$D$3)+1,FALSE)=0,\"No\",\"Yes\")","v":"Yes"},{"$f":"Calculations!L43","v":1166.1502000000003},{"$f":"Calculations!N43","v":187.97257100000004},{"$f":"Calculations!M43","v":748},{"$f":"Calculations!Q43*Calculations!I43","v":1095.0000000000002},{"$f":"Calculations!N43","v":187.97257100000004},{"$f":"Calculations!R43*Calculations!I43+Calculations!S43*Calculations!I43","v":1186.6666666666665},{"$f":"G43/C43","v":40.040433733333337},{"$f":"H43/C43","v":43.460317460317455},{"$f":"I43/C43","v":83.500751193650785},{"$f":"Calculations!U43/C43","v":4.3460317460317457}]
[{"$f":"Calculations!A44","v":"ILR"},{"$f":"Calculations!E44","v":"Dulas Solar VC 225 ILR*"},{"$f":"IF(Calculations!F44=0, Calculations!G44, Calculations!F44)","v":203.2},{"$f":"LOOKUP(C44,List!$E$3:$E$13,List!$F$3:$F$13)","v":"120 +"},{"$f":"Calculations!H44","v":"Yes"},{"$f":"Calculations!I44","v":10},{"$f":"Calculations!O44+Parts!$E$91*IF(Calculations!$J44<>0,IF(PQS!$R44=\"NO\",ROUNDUP(F44/Calculations!$J44,0),IF(PQS!$R44=\"YES\",ROUNDUP(F44/Calculations!$J44,0)-1,0)),0)+Parts!$E$92*IF(Calculations!$K44<>0,ROUNDUP(F44/Calculations!$K44,0)-1,0)","v":4170.93},{"$f":"Calculations!T44","v":1772.8566666666666},5943.7866666666669,{"$f":"IF(VLOOKUP(B44,PQS!D:J,COLUMN(PQS!$J$3)-COLUMN(PQS!$D$3)+1,FALSE)=0,\"No\",\"Yes\")","v":"No"},{"$f":"Calculations!L44","v":2835.5},{"$f":"Calculations!N44","v":587.43000000000006},{"$f":"Calculations!M44","v":748},{"$f":"Calculations!Q44*Calculations!I44","v":586.19000000000005},{"$f":"Calculations!N44","v":587.43000000000006},{"$f":"Calculations!R44*Calculations!I44+Calculations!S44*Calculations!I44","v":1186.6666666666665},20.526230314960632,8.7246883202099745,29.250918635170606,{"$f":"Calculations!U44/C44","v":0.87246883202099734}]
[{"$f":"Calculations!A45","v":"ILR"},{"$f":"Calculations!E45","v":"Aucma CFD-50"},{"$f":"IF(Calculations!F45=0, Calculations!G45, Calculations!F45)","v":50},{"$f":"LOOKUP(C45,List!$E$3:$E$13,List!$F$3:$F$13)","v":" 30-59"},{"$f":"Calculations!H45","v":"No"},{"$f":"Calculations!I45","v":10},{"$f":"Calculations!O45+Parts!$E$91*IF(Calculations!$J45<>0,IF(PQS!$R45=\"NO\",ROUNDUP(F45/Calculations!$J45,0),IF(PQS!$R45=\"YES\",ROUNDUP(F45/Calculations!$J45,0)-1,0)),0)+Parts!$E$92*IF(Calculations!$K45<>0,ROUNDUP(F45/Calculations!$K45,0)-1,0)","v":3547.6549999999997},{"$f":"Calculations!T45","v":1741.4666666666667},{"$f":"G45+H45","v":5289.121666666666},{"$f":"IF(VLOOKUP(B45,PQS!D:J,COLUMN(PQS!$J$3)-COLUMN(PQS!$D$3)+1,FALSE)=0,\"No\",\"Yes\")","v":"No"},{"$f":"Calculations!L45","v":1551.5},{"$f":"Calculations!N45","v":1248.155},{"$f":"Calculations!M45","v":748},{"$f":"Calculations!Q45*Calculations!I45","v":554.80000000000007},{"$f":"Calculations!N45","v":1248.155},{"$f":"Calculations!R45*Calculations!I45+Calculations!S45*Calculations!I45","v":1186.6666666666665},{"$f":"G45/C45","v":70.953099999999992},{"$f":"H45/C45","v":34.829333333333331},{"$f":"I45/C45","v":105.78243333333332},{"$f":"Calculations!U45/C45","v":3.4829333333333334}]
[{"$f":"Calculations!A46","v":"ILR"},{"$f":"Calculations!E46","v":"Godrej & Boyce  GVR 51 LITE AC*"},{"$f":"IF(Calculations!F46=0, Calculations!G46, Calculations!F46)","v":51},{"$f":"LOOKUP(C46,List!$E$3:$E$13,List!$F$3:$F$13)","v":" 30-59"},{"$f":"Calculations!H46","v":"Yes"},{"$f":"Calculations!I46","v":10},{"$f":"Calculations!O46+Parts!$E$91*IF(Calculations!$J46<>0,IF(PQS!$R46=\"NO\",ROUNDUP(F46/Calculations!$J46,0),IF(PQS!$R46=\"YES\",ROUNDUP(F46/Calculations!$J46,0)-1,0)),0)+Parts!$E$92*IF(Calculations!$K46<>0,ROUNDUP(F46/Calculations!$K46,0)-1,0)","v":2948.99},{"$f":"Calculations!T46","v":2675.8666666666668},5624.8566666666666,{"$f":"IF(VLOOKUP(B46,PQS!D:J,COLUMN(PQS!$J$3)-COLUMN(PQS!$D$3)+1,FALSE)=0,\"No\",\"Yes\")","v":"No"},{"$f":"Calculations!L46","v":1979.5},{"$f":"Calculations!N46","v":221.49},{"$f":"Calculations!M46","v":748},{"$f":"Calculations!Q46*Calculations!I46","v":1489.2000000000003},{"$f":"Calculations!N46","v":221.49},{"$f":"Calculations!R46*Calculations!I46+Calculations!S46*Calculations!I46","v":1186.6666666666665},57.823333333333331,52.467973856209156,110.29130718954248,{"$f":"Calculations!U46/C46","v":5.2467973856209156}]
[{"$f":"Calculations!A47","v":"ILR"},{"$f":"Calculations!E47","v":"Godrej & Boyce  GVR 75 Lite*"},{"$f":"IF(Calculations!F47=0, Calculations!G47, Calculations!F47)","v":72.5},{"$f":"LOOKUP(C47,List!$E$3:$E$13,List!$F$3:$F$13)","v":" 60-89"},{"$f":"Calculations!H47","v":"Yes"},{"$f":"Calculations!I47","v":10},{"$f":"Calculations!O47+Parts!$E$91*IF(Calculations!$J47<>0,IF(PQS!$R47=\"NO\",ROUNDUP(F47/Calculations!$J47,0),IF(PQS!$R47=\"YES\",ROUNDUP(F47/Calculations!$J47,0)-1,0)),0)+Parts!$E$92*IF(Calculations!$K47<>0,ROUNDUP(F47/Calculations!$K47,0)-1,0)","v":2063.0299999999997},{"$f":"Calculations!T47","v":2259.7666666666664},4322.7966666666662,{"$f":"IF(VLOOKUP(B47,PQS!D:J,COLUMN(PQS!$J$3)-COLUMN(PQS!$D$3)+1,FALSE)=0,\"No\",\"Yes\")","v":"No"},{"$f":"Calculations!L47","v":1093.54},{"$f":"Calculations!N47","v":221.49},{"$f":"Calculations!M47","v":748},{"$f":"Calculations!Q47*Calculations!I47","v":1073.0999999999999},{"$f":"Calculations!N47","v":221.49},{"$f":"Calculations!R47*Calculations!I47+Calculations!S47*Calculations!I47","v":1186.6666666666665},28.455586206896548,31.169195402298847,59.624781609195395,{"$f":"Calculations!U47/C47","v":3.116919540229885}]
[{"$f":"Calculations!A48","v":"ILR"},{"$f":"Calculations!E48","v":"Godrej & Boyce  GVR 99 Lite*"},{"$f":"IF(Calculations!F48=0, Calculations!G48, Calculations!F48)","v":98.5},{"$f":"LOOKUP(C48,List!$E$3:$E$13,List!$F$3:$F$13)","v":" 90-120"},{"$f":"Calculations!H48","v":"Yes"},{"$f":"Calculations!I48","v":10},{"$f":"Calculations!O48+Parts!$E$91*IF(Calculations!$J48<>0,IF(PQS!$R48=\"NO\",ROUNDUP(F48/Calculations!$J48,0),IF(PQS!$R48=\"YES\",ROUNDUP(F48/Calculations!$J48,0)-1,0)),0)+Parts!$E$92*IF(Calculations!$K48<>0,ROUNDUP(F48/Calculations!$K48,0)-1,0)","v":2146.4899999999998},{"$f":"Calculations!T48","v":2084.5666666666666},4231.0566666666664,{"$f":"IF(VLOOKUP(B48,PQS!D:J,COLUMN(PQS!$J$3)-COLUMN(PQS!$D$3)+1,FALSE)=0,\"No\",\"Yes\")","v":"No"},{"$f":"Calculations!L48","v":1177},{"$f":"Calculations!N48","v":221.49},{"$f":"Calculations!M48","v":748},{"$f":"Calculations!Q48*Calculations!I48","v":897.89999999999986},{"$f":"Calculations!N48","v":221.49},{"$f":"Calculations!R48*Calculations!I48+Calculations!S48*Calculations!I48","v":1186.6666666666665},21.79177664974619,21.163113367174279,42.954890016920473,{"$f":"Calculations!U48/C48","v":2.1163113367174278}]
[{"$f":"Calculations!A49","v":"ILR"},{"$f":"Calculations!E49","v":"Godrej & Boyce  GVR 225 AC*"},{"$f":"IF(Calculations!F49=0, Calculations!G49, Calculations!F49)","v":225},{"$f":"LOOKUP(C49,List!$E$3:$E$13,List!$F$3:$F$13)","v":"120 +"},{"$f":"Calculations!H49","v":"Yes"},{"$f":"Calculations!I49","v":10},{"$f":"Calculations!O49+Parts!$E$91*IF(Calculations!$J49<>0,IF(PQS!$R49=\"NO\",ROUNDUP(F49/Calculations!$J49,0),IF(PQS!$R49=\"YES\",ROUNDUP(F49/Calculations!$J49,0)-1,0)),0)+Parts!$E$92*IF(Calculations!$K49<>0,ROUNDUP(F49/Calculations!$K49,0)-1,0)","v":2894.42},{"$f":"Calculations!T49","v":2675.8666666666668},5570.2866666666669,{"$f":"IF(VLOOKUP(B49,PQS!D:J,COLUMN(PQS!$J$3)-COLUMN(PQS!$D$3)+1,FALSE)=0,\"No\",\"Yes\")","v":"No"},{"$f":"Calculations!L49","v":1979.5},{"$f":"Calculations!N49","v":166.92000000000002},{"$f":"Calculations!M49","v":748},{"$f":"Calculations!Q49*Calculations!I49","v":1489.2000000000003},{"$f":"Calculations!N49","v":166.92000000000002},{"$f":"Calculations!R49*Calculations!I49+Calculations!S49*Calculations!I49","v":1186.6666666666665},12.864088888888888,11.892740740740742,24.756829629629632,{"$f":"Calculations!U49/C49","v":1.1892740740740742}]
[{"$f":"Calculations!A50","v":"Kerosene"},{"$f":"Calculations!E50","v":"Sibir V 170 KE "},{"$f":"IF(Calculations!F50=0, Calculations!G50, Calculations!F50)","v":55},{"$f":"LOOKUP(C50,List!$E$3:$E$13,List!$F$3:$F$13)","v":" 30-59"},{"$f":"Calculations!H50","v":"No"},{"$f":"Calculations!I50","v":10},{"$f":"Calculations!O50+Parts!$E$91*IF(Calculations!$J50<>0,IF(PQS!$R50=\"NO\",ROUNDUP(F50/Calculations!$J50,0),IF(PQS!$R50=\"YES\",ROUNDUP(F50/Calculations!$J50,0)-1,0)),0)+Parts!$E$92*IF(Calculations!$K50<>0,ROUNDUP(F50/Calculations!$K50,0)-1,0)","v":1378.848473},{"$f":"Calculations!T50","v":6904.7000000000007},8283.5484730000007,{"$f":"IF(VLOOKUP(B50,PQS!D:J,COLUMN(PQS!$J$3)-COLUMN(PQS!$D$3)+1,FALSE)=0,\"No\",\"Yes\")","v":"No"},{"$f":"Calculations!L50","v":743.41460000000006},{"$f":"Calculations!N50","v":194.43387300000003},{"$f":"Calculations!M50","v":441},{"$f":"Calculations!Q50*Calculations!I50","v":5978.7},{"$f":"Calculations!N50","v":194.43387300000003},{"$f":"Calculations!R50*Calculations!I50+Calculations!S50*Calculations!I50","v":926},25.069972236363636,125.54,150.60997223636366,{"$f":"Calculations!U50/C50","v":12.554}]
[{"$f":"Calculations!A51","v":"Kerosene"},{"$f":"Calculations!E51","v":"Sibir V 110 KE "},{"$f":"IF(Calculations!F51=0, Calculations!G51, Calculations!F51)","v":17},{"$f":"LOOKUP(C51,List!$E$3:$E$13,List!$F$3:$F$13)","v":" 1-29"},{"$f":"Calculations!H51","v":"No"},{"$f":"Calculations!I51","v":10},{"$f":"Calculations!O51+Parts!$E$91*IF(Calculations!$J51<>0,IF(PQS!$R51=\"NO\",ROUNDUP(F51/Calculations!$J51,0),IF(PQS!$R51=\"YES\",ROUNDUP(F51/Calculations!$J51,0)-1,0)),0)+Parts!$E$92*IF(Calculations!$K51<>0,ROUNDUP(F51/Calculations!$K51,0)-1,0)","v":2462.7652675000004},{"$f":"Calculations!T51","v":3061.25},5524.0152675000008,{"$f":"IF(VLOOKUP(B51,PQS!D:J,COLUMN(PQS!$J$3)-COLUMN(PQS!$D$3)+1,FALSE)=0,\"No\",\"Yes\")","v":"No"},{"$f":"Calculations!L51","v":1943.9439},{"$f":"Calculations!N51","v":77.821367500000008},{"$f":"Calculations!M51","v":441},{"$f":"Calculations!Q51*Calculations!I51","v":2135.25},{"$f":"Calculations!N51","v":77.821367500000008},{"$f":"Calculations!R51*Calculations!I51+Calculations!S51*Calculations!I51","v":926},144.86854514705885,180.0735294117647,324.94207455882361,{"$f":"Calculations!U51/C51","v":18.007352941176471}]
[{"$f":"Calculations!A52","v":"Kerosene"},{"$f":"Calculations!E52","v":"B Medical RCW 50 EK"},{"$f":"IF(Calculations!F52=0, Calculations!G52, Calculations!F52)","v":24},{"$f":"LOOKUP(C52,List!$E$3:$E$13,List!$F$3:$F$13)","v":" 1-29"},{"$f":"Calculations!H52","v":"No"},{"$f":"Calculations!I52","v":10},{"$f":"Calculations!O52+Parts!$E$91*IF(Calculations!$J52<>0,IF(PQS!$R52=\"NO\",ROUNDUP(F52/Calculations!$J52,0),IF(PQS!$R52=\"YES\",ROUNDUP(F52/Calculations!$J52,0)-1,0)),0)+Parts!$E$92*IF(Calculations!$K52<>0,ROUNDUP(F52/Calculations!$K52,0)-1,0)","v":3842.9358510000002},{"$f":"Calculations!T52","v":4342.3999999999996},8185.3358509999998,{"$f":"IF(VLOOKUP(B52,PQS!D:J,COLUMN(PQS!$J$3)-COLUMN(PQS!$D$3)+1,FALSE)=0,\"No\",\"Yes\")","v":"No"},{"$f":"Calculations!L52","v":3242.4210000000003},{"$f":"Calculations!N52","v":159.51485100000002},{"$f":"Calculations!M52","v":441},{"$f":"Calculations!Q52*Calculations!I52","v":3416.3999999999996},{"$f":"Calculations!N52","v":159.51485100000002},{"$f":"Calculations!R52*Calculations!I52+Calculations!S52*Calculations!I52","v":926},160.122327125,180.93333333333331,341.05566045833331,{"$f":"Calculations!U52/C52","v":18.093333333333334}]
[{"$f":"Calculations!A53","v":"SDD"},{"$f":"Calculations!E53","v":"Vestfrost MKS 044"},{"$f":"IF(Calculations!F53=0, Calculations!G53, Calculations!F53)","v":19.5},{"$f":"LOOKUP(C53,List!$E$3:$E$13,List!$F$3:$F$13)","v":" 1-29"},{"$f":"Calculations!H53","v":"No"},{"$f":"Calculations!I53","v":10},{"$f":"Calculations!O53+Parts!$E$91*IF(Calculations!$J53<>0,IF(PQS!$R53=\"NO\",ROUNDUP(F53/Calculations!$J53,0),IF(PQS!$R53=\"YES\",ROUNDUP(F53/Calculations!$J53,0)-1,0)),0)+Parts!$E$92*IF(Calculations!$K53<>0,ROUNDUP(F53/Calculations!$K53,0)-1,0)","v":4162.6349910000008},{"$f":"Calculations!T53","v":1075},5237.6349910000008,{"$f":"IF(VLOOKUP(B53,PQS!D:J,COLUMN(PQS!$J$3)-COLUMN(PQS!$D$3)+1,FALSE)=0,\"No\",\"Yes\")","v":"No"},{"$f":"Calculations!L53","v":2610.2971000000002},{"$f":"Calculations!N53","v":510.33789100000024},{"$f":"Calculations!M53","v":1042},{"$f":"Calculations!Q53*Calculations!I53","v":0},{"$f":"Calculations!N53","v":510.33789100000024},{"$f":"Calculations!R53*Calculations!I53+Calculations!S53*Calculations!I53","v":1075},213.46846107692312,55.128205128205131,268.59666620512826,{"$f":"Calculations!U53/C53","v":5.5128205128205128}]
[{"$f":"Calculations!A54","v":"SDD"},{"$f":"Calculations!E54","v":"Haier HTC-60"},{"$f":"IF(Calculations!F54=0, Calculations!G54, Calculations!F54)","v":21},{"$f":"LOOKUP(C54,List!$E$3:$E$13,List!$F$3:$F$13)","v":" 1-29"},{"$f":"Calculations!H54","v":"No"},{"$f":"Calculations!I54","v":10},{"$f":"Calculations!O54+Parts!$E$91*IF(Calculations!$J54<>0,IF(PQS!$R54=\"NO\",ROUNDUP(F54/Calculations!$J54,0),IF(PQS!$R54=\"YES\",ROUNDUP(F54/Calculations!$J54,0)-1,0)),0)+Parts!$E$92*IF(Calculations!$K54<>0,ROUNDUP(F54/Calculations!$K54,0)-1,0)","v":4112.2044999999998},{"$f":"Calculations!T54","v":1075},5187.2044999999998,{"$f":"IF(VLOOKUP(B54,PQS!D:J,COLUMN(PQS!$J$3)-COLUMN(PQS!$D$3)+1,FALSE)=0,\"No\",\"Yes\")","v":"No"},{"$f":"Calculations!L54","v":2803.4},{"$f":"Calculations!N54","v":266.80450000000002},{"$f":"Calculations!M54","v":1042},{"$f":"Calculations!Q54*Calculations!I54","v":0},{"$f":"Calculations!N54","v":266.80450000000002},{"$f":"Calculations!R54*Calculations!I54+Calculations!S54*Calculations!I54","v":1075},195.8192619047619,51.19047619047619,247.00973809523808,{"$f":"Calculations!U54/C54","v":5.1190476190476186}]
[{"$f":"Calculations!A55","v":"SDD"},{"$f":"Calculations!E55","v":"SunDanzer BFRV 55*"},{"$f":"IF(Calculations!F55=0, Calculations!G55, Calculations!F55)","v":54.5},{"$f":"LOOKUP(C55,List!$E$3:$E$13,List!$F$3:$F$13)","v":" 30-59"},{"$f":"Calculations!H55","v":"Yes"},{"$f":"Calculations!I55","v":10},{"$f":"Calculations!O55+Parts!$E$91*IF(Calculations!$J55<>0,IF(PQS!$R55=\"NO\",ROUNDUP(F55/Calculations!$J55,0),IF(PQS!$R55=\"YES\",ROUNDUP(F55/Calculations!$J55,0)-1,0)),0)+Parts!$E$92*IF(Calculations!$K55<>0,ROUNDUP(F55/Calculations!$K55,0)-1,0)","v":4877.9500000000007},{"$f":"Calculations!T55","v":1075},5952.9500000000007,{"$f":"IF(VLOOKUP(B55,PQS!D:J,COLUMN(PQS!$J$3)-COLUMN(PQS!$D$3)+1,FALSE)=0,\"No\",\"Yes\")","v":"No"},{"$f":"Calculations!L55","v":3375.8500000000004},{"$f":"Calculations!N55","v":460.1},{"$f":"Calculations!M55","v":1042},{"$f":"Calculations!Q55*Calculations!I55","v":0},{"$f":"Calculations!N55","v":460.1},{"$f":"Calculations!R55*Calculations!I55+Calculations!S55*Calculations!I55","v":1075},89.50366972477066,19.724770642201836,109.22844036697249,{"$f":"Calculations!U55/C55","v":1.9724770642201834}]
[{"$f":"Calculations!A56","v":"SDD"},{"$f":"Calculations!E56","v":"B Medical TCW 3000 SDD"},{"$f":"IF(Calculations!F56=0, Calculations!G56, Calculations!F56)","v":156},{"$f":"LOOKUP(C56,List!$E$3:$E$13,List!$F$3:$F$13)","v":"120 +"},{"$f":"Calculations!H56","v":"No"},{"$f":"Calculations!I56","v":10},{"$f":"Calculations!O56+Parts!$E$91*IF(Calculations!$J56<>0,IF(PQS!$R56=\"NO\",ROUNDUP(F56/Calculations!$J56,0),IF(PQS!$R56=\"YES\",ROUNDUP(F56/Calculations!$J56,0)-1,0)),0)+Parts!$E$92*IF(Calculations!$K56<>0,ROUNDUP(F56/Calculations!$K56,0)-1,0)","v":8764.6805949999998},{"$f":"Calculations!T56","v":1075},9839.6805949999998,{"$f":"IF(VLOOKUP(B56,PQS!D:J,COLUMN(PQS!$J$3)-COLUMN(PQS!$D$3)+1,FALSE)=0,\"No\",\"Yes\")","v":"No"},{"$f":"Calculations!L56","v":6975.4904999999999},{"$f":"Calculations!N56","v":747.19009500000016},{"$f":"Calculations!M56","v":1042},{"$f":"Calculations!Q56*Calculations!I56","v":0},{"$f":"Calculations!N56","v":747.19009500000016},{"$f":"Calculations!R56*Calculations!I56+Calculations!S56*Calculations!I56","v":1075},56.183849967948717,6.8910256410256414,63.074875608974359,{"$f":"Calculations!U56/C56","v":0.6891025641025641}]
[{"$f":"Calculations!A57","v":"SDD"},{"$f":"Calculations!E57","v":"B Medical TCW 2000 SDD"},{"$f":"IF(Calculations!F57=0, Calculations!G57, Calculations!F57)","v":99},{"$f":"LOOKUP(C57,List!$E$3:$E$13,List!$F$3:$F$13)","v":" 90-120"},{"$f":"Calculations!H57","v":"No"},{"$f":"Calculations!I57","v":10},{"$f":"Calculations!O57+Parts!$E$91*IF(Calculations!$J57<>0,IF(PQS!$R57=\"NO\",ROUNDUP(F57/Calculations!$J57,0),IF(PQS!$R57=\"YES\",ROUNDUP(F57/Calculations!$J57,0)-1,0)),0)+Parts!$E$92*IF(Calculations!$K57<>0,ROUNDUP(F57/Calculations!$K57,0)-1,0)","v":11831.77728},{"$f":"Calculations!T57","v":1075},12906.77728,{"$f":"IF(VLOOKUP(B57,PQS!D:J,COLUMN(PQS!$J$3)-COLUMN(PQS!$D$3)+1,FALSE)=0,\"No\",\"Yes\")","v":"Yes"},{"$f":"Calculations!L57","v":10032.148800000001},{"$f":"Calculations!N57","v":757.6284800000002},{"$f":"Calculations!M57","v":1042},{"$f":"Calculations!Q57*Calculations!I57","v":0},{"$f":"Calculations!N57","v":757.6284800000002},{"$f":"Calculations!R57*Calculations!I57+Calculations!S57*Calculations!I57","v":1075},119.51290181818182,10.858585858585858,130.37148767676769,{"$f":"Calculations!U57/C57","v":1.0858585858585859}]
[{"$f":"Calculations!A58","v":"SDD"},{"$f":"Calculations!E58","v":"Zero ZLF 100 DC*"},{"$f":"IF(Calculations!F58=0, Calculations!G58, Calculations!F58)","v":99},{"$f":"LOOKUP(C58,List!$E$3:$E$13,List!$F$3:$F$13)","v":" 90-120"},{"$f":"Calculations!H58","v":"Yes"},{"$f":"Calculations!I58","v":10},{"$f":"Calculations!O58+Parts!$E$91*IF(Calculations!$J58<>0,IF(PQS!$R58=\"NO\",ROUNDUP(F58/Calculations!$J58,0),IF(PQS!$R58=\"YES\",ROUNDUP(F58/Calculations!$J58,0)-1,0)),0)+Parts!$E$92*IF(Calculations!$K58<>0,ROUNDUP(F58/Calculations!$K58,0)-1,0)","v":7363.5599999999995},{"$f":"Calculations!T58","v":1075},8438.56,{"$f":"IF(VLOOKUP(B58,PQS!D:J,COLUMN(PQS!$J$3)-COLUMN(PQS!$D$3)+1,FALSE)=0,\"No\",\"Yes\")","v":"No"},{"$f":"Calculations!L58","v":5608.94},{"$f":"Calculations!N58","v":712.62},{"$f":"Calculations!M58","v":1042},{"$f":"Calculations!Q58*Calculations!I58","v":0},{"$f":"Calculations!N58","v":712.62},{"$f":"Calculations!R58*Calculations!I58+Calculations!S58*Calculations!I58","v":1075},74.379393939393935,10.858585858585858,85.23797979797979,{"$f":"Calculations!U58/C58","v":1.0858585858585859}]
[{"$f":"Calculations!A59","v":"SDD"},{"$f":"Calculations!E59","v":"SunDanzer BFRV 15 SDD*"},{"$f":"IF(Calculations!F59=0, Calculations!G59, Calculations!F59)","v":15},{"$f":"LOOKUP(C59,List!$E$3:$E$13,List!$F$3:$F$13)","v":" 1-29"},{"$f":"Calculations!H59","v":"Yes"},{"$f":"Calculations!I59","v":10},{"$f":"Calculations!O59+Parts!$E$91*IF(Calculations!$J59<>0,IF(PQS!$R59=\"NO\",ROUNDUP(F59/Calculations!$J59,0),IF(PQS!$R59=\"YES\",ROUNDUP(F59/Calculations!$J59,0)-1,0)),0)+Parts!$E$92*IF(Calculations!$K59<>0,ROUNDUP(F59/Calculations!$K59,0)-1,0)","v":4134.3},{"$f":"Calculations!T59","v":1075},5209.3,{"$f":"IF(VLOOKUP(B59,PQS!D:J,COLUMN(PQS!$J$3)-COLUMN(PQS!$D$3)+1,FALSE)=0,\"No\",\"Yes\")","v":"No"},{"$f":"Calculations!L59","v":2739.2000000000003},{"$f":"Calculations!N59","v":353.1},{"$f":"Calculations!M59","v":1042},{"$f":"Calculations!Q59*Calculations!I59","v":0},{"$f":"Calculations!N59","v":353.1},{"$f":"Calculations!R59*Calculations!I59+Calculations!S59*Calculations!I59","v":1075},275.62,71.666666666666671,347.28666666666669,{"$f":"Calculations!U59/C59","v":7.166666666666667}]
[{"$f":"Calculations!A60","v":"SDD"},{"$f":"Calculations!E60","v":"Dulas Solar VC 200 SDD*"},{"$f":"IF(Calculations!F60=0, Calculations!G60, Calculations!F60)","v":132},{"$f":"LOOKUP(C60,List!$E$3:$E$13,List!$F$3:$F$13)","v":"120 +"},{"$f":"Calculations!H60","v":"Yes"},{"$f":"Calculations!I60","v":10},{"$f":"Calculations!O60+Parts!$E$91*IF(Calculations!$J60<>0,IF(PQS!$R60=\"NO\",ROUNDUP(F60/Calculations!$J60,0),IF(PQS!$R60=\"YES\",ROUNDUP(F60/Calculations!$J60,0)-1,0)),0)+Parts!$E$92*IF(Calculations!$K60<>0,ROUNDUP(F60/Calculations!$K60,0)-1,0)","v":6496.2822000000006},{"$f":"Calculations!T60","v":1075},7571.2822000000006,{"$f":"IF(VLOOKUP(B60,PQS!D:J,COLUMN(PQS!$J$3)-COLUMN(PQS!$D$3)+1,FALSE)=0,\"No\",\"Yes\")","v":"No"},{"$f":"Calculations!L60","v":5057.3122000000003},{"$f":"Calculations!N60","v":396.97},{"$f":"Calculations!M60","v":1042},{"$f":"Calculations!Q60*Calculations!I60","v":0},{"$f":"Calculations!N60","v":396.97},{"$f":"Calculations!R60*Calculations!I60+Calculations!S60*Calculations!I60","v":1075},49.214259090909096,8.1439393939393945,57.358198484848486,{"$f":"Calculations!U60/C60","v":0.81439393939393945}]
[{"$f":"Calculations!A61","v":"SDD"},{"$f":"Calculations!E61","v":"Vestfrost VLS 054 SDD*"},{"$f":"IF(Calculations!F61=0, Calculations!G61, Calculations!F61)","v":55.5},{"$f":"LOOKUP(C61,List!$E$3:$E$13,List!$F$3:$F$13)","v":" 30-59"},{"$f":"Calculations!H61","v":"Yes"},{"$f":"Calculations!I61","v":10},{"$f":"Calculations!O61+Parts!$E$91*IF(Calculations!$J61<>0,IF(PQS!$R61=\"NO\",ROUNDUP(F61/Calculations!$J61,0),IF(PQS!$R61=\"YES\",ROUNDUP(F61/Calculations!$J61,0)-1,0)),0)+Parts!$E$92*IF(Calculations!$K61<>0,ROUNDUP(F61/Calculations!$K61,0)-1,0)","v":4869.184988},{"$f":"Calculations!T61","v":1075},5944.184988,{"$f":"IF(VLOOKUP(B61,PQS!D:J,COLUMN(PQS!$J$3)-COLUMN(PQS!$D$3)+1,FALSE)=0,\"No\",\"Yes\")","v":"No"},{"$f":"Calculations!L61","v":3280.4702000000002},{"$f":"Calculations!N61","v":546.71478800000011},{"$f":"Calculations!M61","v":1042},{"$f":"Calculations!Q61*Calculations!I61","v":0},{"$f":"Calculations!N61","v":546.71478800000011},{"$f":"Calculations!R61*Calculations!I61+Calculations!S61*Calculations!I61","v":1075},87.733062846846849,19.36936936936937,107.10243221621622,{"$f":"Calculations!U61/C61","v":1.9369369369369369}]
[{"$f":"Calculations!A62","v":"SDD"},{"$f":"Calculations!E62","v":"B Medical TCW 40 SDD*"},{"$f":"IF(Calculations!F62=0, Calculations!G62, Calculations!F62)","v":36},{"$f":"LOOKUP(C62,List!$E$3:$E$13,List!$F$3:$F$13)","v":" 30-59"},{"$f":"Calculations!H62","v":"Yes"},{"$f":"Calculations!I62","v":10},{"$f":"Calculations!O62+Parts!$E$91*IF(Calculations!$J62<>0,IF(PQS!$R62=\"NO\",ROUNDUP(F62/Calculations!$J62,0),IF(PQS!$R62=\"YES\",ROUNDUP(F62/Calculations!$J62,0)-1,0)),0)+Parts!$E$92*IF(Calculations!$K62<>0,ROUNDUP(F62/Calculations!$K62,0)-1,0)","v":8362.1590070000002},{"$f":"Calculations!T62","v":1075},9437.1590070000002,{"$f":"IF(VLOOKUP(B62,PQS!D:J,COLUMN(PQS!$J$3)-COLUMN(PQS!$D$3)+1,FALSE)=0,\"No\",\"Yes\")","v":"Yes"},{"$f":"Calculations!L62","v":6468.8882999999996},{"$f":"Calculations!N62","v":851.27070700000036},{"$f":"Calculations!M62","v":1042},{"$f":"Calculations!Q62*Calculations!I62","v":0},{"$f":"Calculations!N62","v":851.27070700000036},{"$f":"Calculations!R62*Calculations!I62+Calculations!S62*Calculations!I62","v":1075},232.28219463888888,29.861111111111111,262.14330575000002,{"$f":"Calculations!U62/C62","v":2.9861111111111112}]
[{"$f":"Calculations!A63","v":"SDD"},{"$f":"Calculations!E63","v":"B Medical TCW 2043 SDD*"},{"$f":"IF(Calculations!F63=0, Calculations!G63, Calculations!F63)","v":70},{"$f":"LOOKUP(C63,List!$E$3:$E$13,List!$F$3:$F$13)","v":" 60-89"},{"$f":"Calculations!H63","v":"Yes"},{"$f":"Calculations!I63","v":10},{"$f":"Calculations!O63+Parts!$E$91*IF(Calculations!$J63<>0,IF(PQS!$R63=\"NO\",ROUNDUP(F63/Calculations!$J63,0),IF(PQS!$R63=\"YES\",ROUNDUP(F63/Calculations!$J63,0)-1,0)),0)+Parts!$E$92*IF(Calculations!$K63<>0,ROUNDUP(F63/Calculations!$K63,0)-1,0)","v":11616.354072999999},{"$f":"Calculations!T63","v":1075},12691.354072999999,{"$f":"IF(VLOOKUP(B63,PQS!D:J,COLUMN(PQS!$J$3)-COLUMN(PQS!$D$3)+1,FALSE)=0,\"No\",\"Yes\")","v":"Yes"},{"$f":"Calculations!L63","v":9936.7261999999992},{"$f":"Calculations!N63","v":637.62787300000014},{"$f":"Calculations!M63","v":1042},{"$f":"Calculations!Q63*Calculations!I63","v":0},{"$f":"Calculations!N63","v":637.62787300000014},{"$f":"Calculations!R63*Calculations!I63+Calculations!S63*Calculations!I63","v":1075},165.94791532857141,15.357142857142858,181.30505818571427,{"$f":"Calculations!U63/C63","v":1.5357142857142858}]
[{"$f":"Calculations!A64","v":"SDD"},{"$f":"Calculations!E64","v":"B Medical TCW 3043 SDD*"},{"$f":"IF(Calculations!F64=0, Calculations!G64, Calculations!F64)","v":89},{"$f":"LOOKUP(C64,List!$E$3:$E$13,List!$F$3:$F$13)","v":" 60-89"},{"$f":"Calculations!H64","v":"Yes"},{"$f":"Calculations!I64","v":10},{"$f":"Calculations!O64+Parts!$E$91*IF(Calculations!$J64<>0,IF(PQS!$R64=\"NO\",ROUNDUP(F64/Calculations!$J64,0),IF(PQS!$R64=\"YES\",ROUNDUP(F64/Calculations!$J64,0)-1,0)),0)+Parts!$E$92*IF(Calculations!$K64<>0,ROUNDUP(F64/Calculations!$K64,0)-1,0)","v":9125.9945570000018},{"$f":"Calculations!T64","v":1075},10200.994557000002,{"$f":"IF(VLOOKUP(B64,PQS!D:J,COLUMN(PQS!$J$3)-COLUMN(PQS!$D$3)+1,FALSE)=0,\"No\",\"Yes\")","v":"No"},{"$f":"Calculations!L64","v":7365.0989000000009},{"$f":"Calculations!N64","v":718.89565700000026},{"$f":"Calculations!M64","v":1042},{"$f":"Calculations!Q64*Calculations!I64","v":0},{"$f":"Calculations!N64","v":718.89565700000026},{"$f":"Calculations!R64*Calculations!I64+Calculations!S64*Calculations!I64","v":1075},102.53926468539328,12.078651685393259,114.61791637078653,{"$f":"Calculations!U64/C64","v":1.2078651685393258}]
[{"$f":"Calculations!A65","v":"SDD"},{"$f":"Calculations!E65","v":"Dulas Solar VC 150 SDD*"},{"$f":"IF(Calculations!F65=0, Calculations!G65, Calculations!F65)","v":102},{"$f":"LOOKUP(C65,List!$E$3:$E$13,List!$F$3:$F$13)","v":" 90-120"},{"$f":"Calculations!H65","v":"Yes"},{"$f":"Calculations!I65","v":10},{"$f":"Calculations!O65+Parts!$E$91*IF(Calculations!$J65<>0,IF(PQS!$R65=\"NO\",ROUNDUP(F65/Calculations!$J65,0),IF(PQS!$R65=\"YES\",ROUNDUP(F65/Calculations!$J65,0)-1,0)),0)+Parts!$E$92*IF(Calculations!$K65<>0,ROUNDUP(F65/Calculations!$K65,0)-1,0)","v":8965.4677000000011},{"$f":"Calculations!T65","v":1075},{"$f":"G65+H65","v":10040.467700000001},{"$f":"IF(VLOOKUP(B65,PQS!D:J,COLUMN(PQS!$J$3)-COLUMN(PQS!$D$3)+1,FALSE)=0,\"No\",\"Yes\")","v":"Yes"},{"$f":"Calculations!L65","v":7462.7792000000009},{"$f":"Calculations!N65","v":460.68850000000003},{"$f":"Calculations!M65","v":1042},{"$f":"Calculations!Q65*Calculations!I65","v":0},{"$f":"Calculations!N65","v":460.68850000000003},{"$f":"Calculations!R65*Calculations!I65+Calculations!S65*Calculations!I65","v":1075},{"$f":"G65/C65","v":87.896742156862757},{"$f":"H65/C65","v":10.53921568627451},{"$f":"I65/C65","v":98.43595784313726},{"$f":"Calculations!U65/C65","v":1.053921568627451}]
[{"$f":"Calculations!A66","v":"SDD"},{"$f":"Calculations!E66","v":"Godrej & Boyce  GVR 50DC SDD*"},{"$f":"IF(Calculations!F66=0, Calculations!G66, Calculations!F66)","v":46.5},{"$f":"LOOKUP(C66,List!$E$3:$E$13,List!$F$3:$F$13)","v":" 30-59"},{"$f":"Calculations!H66","v":"Yes"},{"$f":"Calculations!I66","v":10},{"$f":"Calculations!O66+Parts!$E$91*IF(Calculations!$J66<>0,IF(PQS!$R66=\"NO\",ROUNDUP(F66/Calculations!$J66,0),IF(PQS!$R66=\"YES\",ROUNDUP(F66/Calculations!$J66,0)-1,0)),0)+Parts!$E$92*IF(Calculations!$K66<>0,ROUNDUP(F66/Calculations!$K66,0)-1,0)","v":5218.21},{"$f":"Calculations!T66","v":1075},{"$f":"G66+H66","v":6293.21},{"$f":"IF(VLOOKUP(B66,PQS!D:J,COLUMN(PQS!$J$3)-COLUMN(PQS!$D$3)+1,FALSE)=0,\"No\",\"Yes\")","v":"No"},{"$f":"Calculations!L66","v":3761.05},{"$f":"Calculations!N66","v":415.16},{"$f":"Calculations!M66","v":1042},{"$f":"Calculations!Q66*Calculations!I66","v":0},{"$f":"Calculations!N66","v":415.16},{"$f":"Calculations!R66*Calculations!I66+Calculations!S66*Calculations!I66","v":1075},{"$f":"G66/C66","v":112.21956989247312},{"$f":"H66/C66","v":23.118279569892472},{"$f":"I66/C66","v":135.3378494623656},{"$f":"Calculations!U66/C66","v":2.3118279569892475}]
[{"$f":"Calculations!A67","v":"SDD"},{"$f":"Calculations!E67","v":"Godrej & Boyce  GVR 100DC (SureChill)*"},{"$f":"IF(Calculations!F67=0, Calculations!G67, Calculations!F67)","v":99},{"$f":"LOOKUP(C67,List!$E$3:$E$13,List!$F$3:$F$13)","v":" 90-120"},{"$f":"Calculations!H67","v":"Yes"},{"$f":"Calculations!I67","v":10},{"$f":"Calculations!O67+Parts!$E$91*IF(Calculations!$J67<>0,IF(PQS!$R67=\"NO\",ROUNDUP(F67/Calculations!$J67,0),IF(PQS!$R67=\"YES\",ROUNDUP(F67/Calculations!$J67,0)-1,0)),0)+Parts!$E$92*IF(Calculations!$K67<>0,ROUNDUP(F67/Calculations!$K67,0)-1,0)","v":6614.0249999999996},{"$f":"Calculations!T67","v":1075},{"$f":"G67+H67","v":7689.0249999999996},{"$f":"IF(VLOOKUP(B67,PQS!D:J,COLUMN(PQS!$J$3)-COLUMN(PQS!$D$3)+1,FALSE)=0,\"No\",\"Yes\")","v":"No"},{"$f":"Calculations!L67","v":5156.8649999999998},{"$f":"Calculations!N67","v":415.16},{"$f":"Calculations!M67","v":1042},{"$f":"Calculations!Q67*Calculations!I67","v":0},{"$f":"Calculations!N67","v":415.16},{"$f":"Calculations!R67*Calculations!I67+Calculations!S67*Calculations!I67","v":1075},{"$f":"G67/C67","v":66.808333333333323},{"$f":"H67/C67","v":10.858585858585858},{"$f":"I67/C67","v":77.666919191919192},{"$f":"Calculations!U67/C67","v":1.0858585858585859}]
[{"$f":"Calculations!A68","v":"SDD"},{"$f":"Calculations!E68","v":"Zero ZLF 150DC*"},{"$f":"IF(Calculations!F68=0, Calculations!G68, Calculations!F68)","v":128},{"$f":"LOOKUP(C68,List!$E$3:$E$13,List!$F$3:$F$13)","v":"120 +"},{"$f":"Calculations!H68","v":"Yes"},{"$f":"Calculations!I68","v":10},{"$f":"Calculations!O68+Parts!$E$91*IF(Calculations!$J68<>0,IF(PQS!$R68=\"NO\",ROUNDUP(F68/Calculations!$J68,0),IF(PQS!$R68=\"YES\",ROUNDUP(F68/Calculations!$J68,0)-1,0)),0)+Parts!$E$92*IF(Calculations!$K68<>0,ROUNDUP(F68/Calculations!$K68,0)-1,0)","v":7832.22},{"$f":"Calculations!T68","v":1075},{"$f":"G68+H68","v":8907.2200000000012},{"$f":"IF(VLOOKUP(B68,PQS!D:J,COLUMN(PQS!$J$3)-COLUMN(PQS!$D$3)+1,FALSE)=0,\"No\",\"Yes\")","v":"No"},{"$f":"Calculations!L68","v":6031.59},{"$f":"Calculations!N68","v":758.63},{"$f":"Calculations!M68","v":1042},{"$f":"Calculations!Q68*Calculations!I68","v":0},{"$f":"Calculations!N68","v":758.63},{"$f":"Calculations!R68*Calculations!I68+Calculations!S68*Calculations!I68","v":1075},{"$f":"G68/C68","v":61.189218750000002},{"$f":"H68/C68","v":8.3984375},{"$f":"I68/C68","v":69.587656250000009},{"$f":"Calculations!U68/C68","v":0.83984375}]
[{"$f":"Calculations!A69","v":"SDD"},{"$f":"Calculations!E69","v":"Vestfrost VLS 094 SDD*"},{"$f":"IF(Calculations!F69=0, Calculations!G69, Calculations!F69)","v":92},{"$f":"LOOKUP(C69,List!$E$3:$E$13,List!$F$3:$F$13)","v":" 90-120"},{"$f":"Calculations!H69","v":"Yes"},{"$f":"Calculations!I69","v":10},{"$f":"Calculations!O69+Parts!$E$91*IF(Calculations!$J69<>0,IF(PQS!$R69=\"NO\",ROUNDUP(F69/Calculations!$J69,0),IF(PQS!$R69=\"YES\",ROUNDUP(F69/Calculations!$J69,0)-1,0)),0)+Parts!$E$92*IF(Calculations!$K69<>0,ROUNDUP(F69/Calculations!$K69,0)-1,0)","v":5245.6387010000008},{"$f":"Calculations!T69","v":1075},{"$f":"G69+H69","v":6320.6387010000008},{"$f":"IF(VLOOKUP(B69,PQS!D:J,COLUMN(PQS!$J$3)-COLUMN(PQS!$D$3)+1,FALSE)=0,\"No\",\"Yes\")","v":"No"},{"$f":"Calculations!L69","v":3660.9942999999998},{"$f":"Calculations!N69","v":542.64440100000013},{"$f":"Calculations!M69","v":1042},{"$f":"Calculations!Q69*Calculations!I69","v":0},{"$f":"Calculations!N69","v":542.64440100000013},{"$f":"Calculations!R69*Calculations!I69+Calculations!S69*Calculations!I69","v":1075},{"$f":"G69/C69","v":57.01781196739131},{"$f":"H69/C69","v":11.684782608695652},{"$f":"I69/C69","v":68.702594576086966},{"$f":"Calculations!U69/C69","v":1.1684782608695652}]
[{"$f":"Calculations!A70","v":"SDD"},{"$f":"Calculations!E70","v":"Vestfrost VLS 154 SDD*"},{"$f":"IF(Calculations!F70=0, Calculations!G70, Calculations!F70)","v":170},{"$f":"LOOKUP(C70,List!$E$3:$E$13,List!$F$3:$F$13)","v":"120 +"},{"$f":"Calculations!H70","v":"Yes"},{"$f":"Calculations!I70","v":10},{"$f":"Calculations!O70+Parts!$E$91*IF(Calculations!$J70<>0,IF(PQS!$R70=\"NO\",ROUNDUP(F70/Calculations!$J70,0),IF(PQS!$R70=\"YES\",ROUNDUP(F70/Calculations!$J70,0)-1,0)),0)+Parts!$E$92*IF(Calculations!$K70<>0,ROUNDUP(F70/Calculations!$K70,0)-1,0)","v":7577.9538229999998},{"$f":"Calculations!T70","v":1075},{"$f":"G70+H70","v":8652.9538229999998},{"$f":"IF(VLOOKUP(B70,PQS!D:J,COLUMN(PQS!$J$3)-COLUMN(PQS!$D$3)+1,FALSE)=0,\"No\",\"Yes\")","v":"No"},{"$f":"Calculations!L70","v":4501.5434999999998},{"$f":"Calculations!N70","v":534.41032300000018},{"$f":"Calculations!M70","v":1042},{"$f":"Calculations!Q70*Calculations!I70","v":0},{"$f":"Calculations!N70","v":534.41032300000018},{"$f":"Calculations!R70*Calculations!I70+Calculations!S70*Calculations!I70","v":1075},{"$f":"G70/C70","v":44.576198958823525},{"$f":"H70/C70","v":6.3235294117647056},{"$f":"I70/C70","v":50.899728370588235},{"$f":"Calculations!U70/C70","v":0.63235294117647056}]
[{"$f":"Calculations!A71","v":"SDD"},{"$f":"Calculations!E71","v":"Zero ZLF 30DC SDD*"},{"$f":"IF(Calculations!F71=0, Calculations!G71, Calculations!F71)","v":27},{"$f":"LOOKUP(C71,List!$E$3:$E$13,List!$F$3:$F$13)","v":" 1-29"},{"$f":"Calculations!H71","v":"Yes"},{"$f":"Calculations!I71","v":10},{"$f":"Calculations!O71+Parts!$E$91*IF(Calculations!$J71<>0,IF(PQS!$R71=\"NO\",ROUNDUP(F71/Calculations!$J71,0),IF(PQS!$R71=\"YES\",ROUNDUP(F71/Calculations!$J71,0)-1,0)),0)+Parts!$E$92*IF(Calculations!$K71<>0,ROUNDUP(F71/Calculations!$K71,0)-1,0)","v":5085.53},{"$f":"Calculations!T71","v":1075},6160.53,{"$f":"IF(VLOOKUP(B71,PQS!D:J,COLUMN(PQS!$J$3)-COLUMN(PQS!$D$3)+1,FALSE)=0,\"No\",\"Yes\")","v":"No"},{"$f":"Calculations!L71","v":3284.9},{"$f":"Calculations!N71","v":758.63},{"$f":"Calculations!M71","v":1042},{"$f":"Calculations!Q71*Calculations!I71","v":0},{"$f":"Calculations!N71","v":758.63},{"$f":"Calculations!R71*Calculations!I71+Calculations!S71*Calculations!I71","v":1075},188.35296296296295,39.814814814814817,228.16777777777776,{"$f":"Calculations!U71/C71","v":3.9814814814814814}]
[{"$f":"Calculations!A72","v":"SDD"},{"$f":"Calculations!E72","v":"Haier HTC-60H"},{"$f":"IF(Calculations!F72=0, Calculations!G72, Calculations!F72)","v":21},{"$f":"LOOKUP(C72,List!$E$3:$E$13,List!$F$3:$F$13)","v":" 1-29"},{"$f":"Calculations!H72","v":"No"},{"$f":"Calculations!I72","v":10},{"$f":"Calculations!O72+Parts!$E$91*IF(Calculations!$J72<>0,IF(PQS!$R72=\"NO\",ROUNDUP(F72/Calculations!$J72,0),IF(PQS!$R72=\"YES\",ROUNDUP(F72/Calculations!$J72,0)-1,0)),0)+Parts!$E$92*IF(Calculations!$K72<>0,ROUNDUP(F72/Calculations!$K72,0)-1,0)","v":4293.8690999999999},{"$f":"Calculations!T72","v":1075},5368.8690999999999,{"$f":"IF(VLOOKUP(B72,PQS!D:J,COLUMN(PQS!$J$3)-COLUMN(PQS!$D$3)+1,FALSE)=0,\"No\",\"Yes\")","v":"No"},{"$f":"Calculations!L72","v":2910.4},{"$f":"Calculations!N72","v":341.46910000000003},{"$f":"Calculations!M72","v":1042},{"$f":"Calculations!Q72*Calculations!I72","v":0},{"$f":"Calculations!N72","v":341.46910000000003},{"$f":"Calculations!R72*Calculations!I72+Calculations!S72*Calculations!I72","v":1075},204.46995714285714,51.19047619047619,255.66043333333332,{"$f":"Calculations!U72/C72","v":5.1190476190476186}]
[{"$f":"Calculations!A73","v":"SDD"},{"$f":"Calculations!E73","v":"Haier HTCD-160*"},{"$f":"IF(Calculations!F73=0, Calculations!G73, Calculations!F73)","v":100},{"$f":"LOOKUP(C73,List!$E$3:$E$13,List!$F$3:$F$13)","v":" 90-120"},{"$f":"Calculations!H73","v":"Yes"},{"$f":"Calculations!I73","v":10},{"$f":"Calculations!O73+Parts!$E$91*IF(Calculations!$J73<>0,IF(PQS!$R73=\"NO\",ROUNDUP(F73/Calculations!$J73,0),IF(PQS!$R73=\"YES\",ROUNDUP(F73/Calculations!$J73,0)-1,0)),0)+Parts!$E$92*IF(Calculations!$K73<>0,ROUNDUP(F73/Calculations!$K73,0)-1,0)","v":8257.4807999999994},{"$f":"Calculations!T73","v":1075},9332.4807999999994,{"$f":"IF(VLOOKUP(B73,PQS!D:J,COLUMN(PQS!$J$3)-COLUMN(PQS!$D$3)+1,FALSE)=0,\"No\",\"Yes\")","v":"Yes"},{"$f":"Calculations!L73","v":6869.4},{"$f":"Calculations!N73","v":346.08080000000001},{"$f":"Calculations!M73","v":1042},{"$f":"Calculations!Q73*Calculations!I73","v":0},{"$f":"Calculations!N73","v":346.08080000000001},{"$f":"Calculations!R73*Calculations!I73+Calculations!S73*Calculations!I73","v":1075},82.57480799999999,10.75,93.32480799999999,{"$f":"Calculations!U73/C73","v":1.075}]
[{"$f":"Calculations!A74","v":"SDD"},{"$f":"Calculations!E74","v":"Dulas Solar VC 110 SDD*"},{"$f":"IF(Calculations!F74=0, Calculations!G74, Calculations!F74)","v":110},{"$f":"LOOKUP(C74,List!$E$3:$E$13,List!$F$3:$F$13)","v":" 90-120"},{"$f":"Calculations!H74","v":"Yes"},{"$f":"Calculations!I74","v":10},{"$f":"Calculations!O74+Parts!$E$91*IF(Calculations!$J74<>0,IF(PQS!$R74=\"NO\",ROUNDUP(F74/Calculations!$J74,0),IF(PQS!$R74=\"YES\",ROUNDUP(F74/Calculations!$J74,0)-1,0)),0)+Parts!$E$92*IF(Calculations!$K74<>0,ROUNDUP(F74/Calculations!$K74,0)-1,0)","v":7980.4354999999996},{"$f":"Calculations!T74","v":1075},9055.4354999999996,{"$f":"IF(VLOOKUP(B74,PQS!D:J,COLUMN(PQS!$J$3)-COLUMN(PQS!$D$3)+1,FALSE)=0,\"No\",\"Yes\")","v":"No"},{"$f":"Calculations!L74","v":5005.7381999999998},{"$f":"Calculations!N74","v":432.6973000000001},{"$f":"Calculations!M74","v":1042},{"$f":"Calculations!Q74*Calculations!I74","v":0},{"$f":"Calculations!N74","v":432.6973000000001},{"$f":"Calculations!R74*Calculations!I74+Calculations!S74*Calculations!I74","v":1075},72.549413636363639,9.7727272727272734,82.322140909090905,{"$f":"Calculations!U74/C74","v":0.97727272727272729}]
[{"$f":"Calculations!A75","v":"SDD"},{"$f":"Calculations!E75","v":"Dulas Solar VC 88 SDD*"},{"$f":"IF(Calculations!F75=0, Calculations!G75, Calculations!F75)","v":88},{"$f":"LOOKUP(C75,List!$E$3:$E$13,List!$F$3:$F$13)","v":" 60-89"},{"$f":"Calculations!H75","v":"Yes"},{"$f":"Calculations!I75","v":10},{"$f":"Calculations!O75+Parts!$E$91*IF(Calculations!$J75<>0,IF(PQS!$R75=\"NO\",ROUNDUP(F75/Calculations!$J75,0),IF(PQS!$R75=\"YES\",ROUNDUP(F75/Calculations!$J75,0)-1,0)),0)+Parts!$E$92*IF(Calculations!$K75<>0,ROUNDUP(F75/Calculations!$K75,0)-1,0)","v":6450.7537000000002},{"$f":"Calculations!T75","v":1075},7525.7537000000002,{"$f":"IF(VLOOKUP(B75,PQS!D:J,COLUMN(PQS!$J$3)-COLUMN(PQS!$D$3)+1,FALSE)=0,\"No\",\"Yes\")","v":"No"},{"$f":"Calculations!L75","v":4976.0564000000004},{"$f":"Calculations!N75","v":432.6973000000001},{"$f":"Calculations!M75","v":1042},{"$f":"Calculations!Q75*Calculations!I75","v":0},{"$f":"Calculations!N75","v":432.6973000000001},{"$f":"Calculations!R75*Calculations!I75+Calculations!S75*Calculations!I75","v":1075},73.304019318181815,12.215909090909092,85.519928409090909,{"$f":"Calculations!U75/C75","v":1.2215909090909092}]
[{"$f":"Calculations!A76","v":"SDD"},{"$f":"Calculations!E76","v":"B Medical TCW 15R SDD*"},{"$f":"IF(Calculations!F76=0, Calculations!G76, Calculations!F76)","v":16},{"$f":"LOOKUP(C76,List!$E$3:$E$13,List!$F$3:$F$13)","v":" 1-29"},{"$f":"Calculations!H76","v":"Yes"},{"$f":"Calculations!I76","v":10},{"$f":"Calculations!O76+Parts!$E$91*IF(Calculations!$J76<>0,IF(PQS!$R76=\"NO\",ROUNDUP(F76/Calculations!$J76,0),IF(PQS!$R76=\"YES\",ROUNDUP(F76/Calculations!$J76,0)-1,0)),0)+Parts!$E$92*IF(Calculations!$K76<>0,ROUNDUP(F76/Calculations!$K76,0)-1,0)","v":6871.4376819999998},{"$f":"Calculations!T76","v":1075},{"$f":"G76+H76","v":7946.4376819999998},{"$f":"IF(VLOOKUP(B76,PQS!D:J,COLUMN(PQS!$J$3)-COLUMN(PQS!$D$3)+1,FALSE)=0,\"No\",\"Yes\")","v":"No"},{"$f":"Calculations!L76","v":5078.1772000000001},{"$f":"Calculations!N76","v":751.26048200000014},{"$f":"Calculations!M76","v":1042},{"$f":"Calculations!Q76*Calculations!I76","v":0},{"$f":"Calculations!N76","v":751.26048200000014},{"$f":"Calculations!R76*Calculations!I76+Calculations!S76*Calculations!I76","v":1075},{"$f":"G76/C76","v":429.46485512499999},{"$f":"H76/C76","v":67.1875},{"$f":"I76/C76","v":496.65235512499999},{"$f":"Calculations!U76/C76","v":6.71875}]
[{"$f":"Calculations!A77","v":"SDD"},{"$f":"Calculations!E77","v":"B Medical TCW 40R SDD*"},{"$f":"IF(Calculations!F77=0, Calculations!G77, Calculations!F77)","v":36},{"$f":"LOOKUP(C77,List!$E$3:$E$13,List!$F$3:$F$13)","v":" 30-59"},{"$f":"Calculations!H77","v":"Yes"},{"$f":"Calculations!I77","v":10},{"$f":"Calculations!O77+Parts!$E$91*IF(Calculations!$J77<>0,IF(PQS!$R77=\"NO\",ROUNDUP(F77/Calculations!$J77,0),IF(PQS!$R77=\"YES\",ROUNDUP(F77/Calculations!$J77,0)-1,0)),0)+Parts!$E$92*IF(Calculations!$K77<>0,ROUNDUP(F77/Calculations!$K77,0)-1,0)","v":9139.7261440000002},{"$f":"Calculations!T77","v":1075},10214.726144,{"$f":"IF(VLOOKUP(B77,PQS!D:J,COLUMN(PQS!$J$3)-COLUMN(PQS!$D$3)+1,FALSE)=0,\"No\",\"Yes\")","v":"No"},{"$f":"Calculations!L77","v":5773.2920000000004},{"$f":"Calculations!N77","v":824.43414400000006},{"$f":"Calculations!M77","v":1042},{"$f":"Calculations!Q77*Calculations!I77","v":0},{"$f":"Calculations!N77","v":824.43414400000006},{"$f":"Calculations!R77*Calculations!I77+Calculations!S77*Calculations!I77","v":1075},253.88128177777779,29.861111111111111,283.7423928888889,{"$f":"Calculations!U77/C77","v":2.9861111111111112}]
[{"$f":"Calculations!A78","v":"SDD"},{"$f":"Calculations!E78","v":"Vestfrost VLS 024 SDD*"},{"$f":"IF(Calculations!F78=0, Calculations!G78, Calculations!F78)","v":25.5},{"$f":"LOOKUP(C78,List!$E$3:$E$13,List!$F$3:$F$13)","v":" 1-29"},{"$f":"Calculations!H78","v":"Yes"},{"$f":"Calculations!I78","v":10},{"$f":"Calculations!O78+Parts!$E$91*IF(Calculations!$J78<>0,IF(PQS!$R78=\"NO\",ROUNDUP(F78/Calculations!$J78,0),IF(PQS!$R78=\"YES\",ROUNDUP(F78/Calculations!$J78,0)-1,0)),0)+Parts!$E$92*IF(Calculations!$K78<>0,ROUNDUP(F78/Calculations!$K78,0)-1,0)","v":4732.0002880000002},{"$f":"Calculations!T78","v":1075},5807.0002880000002,{"$f":"IF(VLOOKUP(B78,PQS!D:J,COLUMN(PQS!$J$3)-COLUMN(PQS!$D$3)+1,FALSE)=0,\"No\",\"Yes\")","v":"No"},{"$f":"Calculations!L78","v":3143.2855000000004},{"$f":"Calculations!N78","v":546.71478800000011},{"$f":"Calculations!M78","v":1042},{"$f":"Calculations!Q78*Calculations!I78","v":0},{"$f":"Calculations!N78","v":546.71478800000011},{"$f":"Calculations!R78*Calculations!I78+Calculations!S78*Calculations!I78","v":1075},185.56863874509804,42.156862745098039,227.72550149019608,{"$f":"Calculations!U78/C78","v":4.215686274509804}]
[{"$f":"Calculations!A79","v":"SDD"},{"$f":"Calculations!E79","v":"Haier HTCD 90 SDD*"},{"$f":"IF(Calculations!F79=0, Calculations!G79, Calculations!F79)","v":37.5},{"$f":"LOOKUP(C79,List!$E$3:$E$13,List!$F$3:$F$13)","v":" 30-59"},{"$f":"Calculations!H79","v":"Yes"},{"$f":"Calculations!I79","v":10},{"$f":"Calculations!O79+Parts!$E$91*IF(Calculations!$J79<>0,IF(PQS!$R79=\"NO\",ROUNDUP(F79/Calculations!$J79,0),IF(PQS!$R79=\"YES\",ROUNDUP(F79/Calculations!$J79,0)-1,0)),0)+Parts!$E$92*IF(Calculations!$K79<>0,ROUNDUP(F79/Calculations!$K79,0)-1,0)","v":7828.8485999999994},{"$f":"Calculations!T79","v":1075},8903.8485999999994,{"$f":"IF(VLOOKUP(B79,PQS!D:J,COLUMN(PQS!$J$3)-COLUMN(PQS!$D$3)+1,FALSE)=0,\"No\",\"Yes\")","v":"Yes"},{"$f":"Calculations!L79","v":4943.3999999999996},{"$f":"Calculations!N79","v":343.44860000000006},{"$f":"Calculations!M79","v":1042},{"$f":"Calculations!Q79*Calculations!I79","v":0},{"$f":"Calculations!N79","v":343.44860000000006},{"$f":"Calculations!R79*Calculations!I79+Calculations!S79*Calculations!I79","v":1075},208.76929599999997,28.666666666666668,237.43596266666665,{"$f":"Calculations!U79/C79","v":2.8666666666666667}]
[{"$f":"Calculations!A80","v":"SDD"},{"$f":"Calculations!E80","v":"Haier HTC 40 SDD*"},{"$f":"IF(Calculations!F80=0, Calculations!G80, Calculations!F80)","v":22.5},{"$f":"LOOKUP(C80,List!$E$3:$E$13,List!$F$3:$F$13)","v":" 1-29"},{"$f":"Calculations!H80","v":"Yes"},{"$f":"Calculations!I80","v":10},{"$f":"Calculations!O80+Parts!$E$91*IF(Calculations!$J80<>0,IF(PQS!$R80=\"NO\",ROUNDUP(F80/Calculations!$J80,0),IF(PQS!$R80=\"YES\",ROUNDUP(F80/Calculations!$J80,0)-1,0)),0)+Parts!$E$92*IF(Calculations!$K80<>0,ROUNDUP(F80/Calculations!$K80,0)-1,0)","v":4402.8486000000003},{"$f":"Calculations!T80","v":1075},5477.8486000000003,{"$f":"IF(VLOOKUP(B80,PQS!D:J,COLUMN(PQS!$J$3)-COLUMN(PQS!$D$3)+1,FALSE)=0,\"No\",\"Yes\")","v":"No"},{"$f":"Calculations!L80","v":3017.4},{"$f":"Calculations!N80","v":343.44860000000006},{"$f":"Calculations!M80","v":1042},{"$f":"Calculations!Q80*Calculations!I80","v":0},{"$f":"Calculations!N80","v":343.44860000000006},{"$f":"Calculations!R80*Calculations!I80+Calculations!S80*Calculations!I80","v":1075},195.68216000000001,47.777777777777779,243.45993777777778,{"$f":"Calculations!U80/C80","v":4.7777777777777777}]
[{"$f":"Calculations!A81","v":"SDD"},{"$f":"Calculations!E81","v":"Haier HTC 110 SDD*"},{"$f":"IF(Calculations!F81=0, Calculations!G81, Calculations!F81)","v":59},{"$f":"LOOKUP(C81,List!$E$3:$E$13,List!$F$3:$F$13)","v":" 30-59"},{"$f":"Calculations!H81","v":"Yes"},{"$f":"Calculations!I81","v":10},{"$f":"Calculations!O81+Parts!$E$91*IF(Calculations!$J81<>0,IF(PQS!$R81=\"NO\",ROUNDUP(F81/Calculations!$J81,0),IF(PQS!$R81=\"YES\",ROUNDUP(F81/Calculations!$J81,0)-1,0)),0)+Parts!$E$92*IF(Calculations!$K81<>0,ROUNDUP(F81/Calculations!$K81,0)-1,0)","v":4723.8485999999994},{"$f":"Calculations!T81","v":1075},5798.8485999999994,{"$f":"IF(VLOOKUP(B81,PQS!D:J,COLUMN(PQS!$J$3)-COLUMN(PQS!$D$3)+1,FALSE)=0,\"No\",\"Yes\")","v":"No"},{"$f":"Calculations!L81","v":3338.4},{"$f":"Calculations!N81","v":343.44860000000006},{"$f":"Calculations!M81","v":1042},{"$f":"Calculations!Q81*Calculations!I81","v":0},{"$f":"Calculations!N81","v":343.44860000000006},{"$f":"Calculations!R81*Calculations!I81+Calculations!S81*Calculations!I81","v":1075},80.065230508474571,18.220338983050848,98.285569491525408,{"$f":"Calculations!U81/C81","v":1.8220338983050848}]
[{"$f":"Calculations!A82","v":"SDD"},{"$f":"Calculations!E82","v":"B Medical TCW 15 SDD*"},{"$f":"IF(Calculations!F82=0, Calculations!G82, Calculations!F82)","v":16},{"$f":"LOOKUP(C82,List!$E$3:$E$13,List!$F$3:$F$13)","v":" 1-29"},{"$f":"Calculations!H82","v":"Yes"},{"$f":"Calculations!I82","v":10},{"$f":"Calculations!O82+Parts!$E$91*IF(Calculations!$J82<>0,IF(PQS!$R82=\"NO\",ROUNDUP(F82/Calculations!$J82,0),IF(PQS!$R82=\"YES\",ROUNDUP(F82/Calculations!$J82,0)-1,0)),0)+Parts!$E$92*IF(Calculations!$K82<>0,ROUNDUP(F82/Calculations!$K82,0)-1,0)","v":6792.1059560000003},{"$f":"Calculations!T82","v":1075},{"$f":"G82+H82","v":7867.1059560000003},{"$f":"IF(VLOOKUP(B82,PQS!D:J,COLUMN(PQS!$J$3)-COLUMN(PQS!$D$3)+1,FALSE)=0,\"No\",\"Yes\")","v":"Yes"},{"$f":"Calculations!L82","v":5116.6651000000002},{"$f":"Calculations!N82","v":633.44085600000005},{"$f":"Calculations!M82","v":1042},{"$f":"Calculations!Q82*Calculations!I82","v":0},{"$f":"Calculations!N82","v":633.44085600000005},{"$f":"Calculations!R82*Calculations!I82+Calculations!S82*Calculations!I82","v":1075},{"$f":"G82/C82","v":424.50662225000002},{"$f":"H82/C82","v":67.1875},{"$f":"I82/C82","v":491.69412225000002},{"$f":"Calculations!U82/C82","v":6.71875}]
[{"$f":"Calculations!A83","v":"SDD"},{"$f":"Calculations!E83","v":"Dulas Solar VC 50 SDD*"},{"$f":"IF(Calculations!F83=0, Calculations!G83, Calculations!F83)","v":52.5},{"$f":"LOOKUP(C83,List!$E$3:$E$13,List!$F$3:$F$13)","v":" 30-59"},{"$f":"Calculations!H83","v":"Yes"},{"$f":"Calculations!I83","v":10},{"$f":"Calculations!O83+Parts!$E$91*IF(Calculations!$J83<>0,IF(PQS!$R83=\"NO\",ROUNDUP(F83/Calculations!$J83,0),IF(PQS!$R83=\"YES\",ROUNDUP(F83/Calculations!$J83,0)-1,0)),0)+Parts!$E$92*IF(Calculations!$K83<>0,ROUNDUP(F83/Calculations!$K83,0)-1,0)","v":5151.9732550000008},{"$f":"Calculations!T83","v":1075},6226.9732550000008,{"$f":"IF(VLOOKUP(B83,PQS!D:J,COLUMN(PQS!$J$3)-COLUMN(PQS!$D$3)+1,FALSE)=0,\"No\",\"Yes\")","v":"No"},{"$f":"Calculations!L83","v":3335.7250000000004},{"$f":"Calculations!N83","v":774.24825500000009},{"$f":"Calculations!M83","v":1042},{"$f":"Calculations!Q83*Calculations!I83","v":0},{"$f":"Calculations!N83","v":774.24825500000009},{"$f":"Calculations!R83*Calculations!I83+Calculations!S83*Calculations!I83","v":1075},98.132823904761921,20.476190476190474,118.6090143809524,{"$f":"Calculations!U83/C83","v":2.0476190476190474}]
[{"$f":"Calculations!A84","v":"SDD"},{"$f":"Calculations!E84","v":"Dulas Solar VC 60 SDD*"},{"$f":"IF(Calculations!F84=0, Calculations!G84, Calculations!F84)","v":57},{"$f":"LOOKUP(C84,List!$E$3:$E$13,List!$F$3:$F$13)","v":" 30-59"},{"$f":"Calculations!H84","v":"Yes"},{"$f":"Calculations!I84","v":10},{"$f":"Calculations!O84+Parts!$E$91*IF(Calculations!$J84<>0,IF(PQS!$R84=\"NO\",ROUNDUP(F84/Calculations!$J84,0),IF(PQS!$R84=\"YES\",ROUNDUP(F84/Calculations!$J84,0)-1,0)),0)+Parts!$E$92*IF(Calculations!$K84<>0,ROUNDUP(F84/Calculations!$K84,0)-1,0)","v":7428.2293019999997},{"$f":"Calculations!T84","v":1075},{"$f":"G84+H84","v":8503.2293019999997},{"$f":"IF(VLOOKUP(B84,PQS!D:J,COLUMN(PQS!$J$3)-COLUMN(PQS!$D$3)+1,FALSE)=0,\"No\",\"Yes\")","v":"Yes"},{"$f":"Calculations!L84","v":5668.3249999999998},{"$f":"Calculations!N84","v":717.90430200000026},{"$f":"Calculations!M84","v":1042},{"$f":"Calculations!Q84*Calculations!I84","v":0},{"$f":"Calculations!N84","v":717.90430200000026},{"$f":"Calculations!R84*Calculations!I84+Calculations!S84*Calculations!I84","v":1075},{"$f":"G84/C84","v":130.31981231578948},{"$f":"H84/C84","v":18.859649122807017},{"$f":"I84/C84","v":149.17946143859649},{"$f":"Calculations!U84/C84","v":1.8859649122807018}]
[{"$f":"Calculations!A85","v":"Solar w battery"},{"$f":"Calculations!E85","v":"B Medical TCW 2000 DC"},{"$f":"IF(Calculations!F85=0, Calculations!G85, Calculations!F85)","v":76},{"$f":"LOOKUP(C85,List!$E$3:$E$13,List!$F$3:$F$13)","v":" 60-89"},{"$f":"Calculations!H85","v":"No"},{"$f":"Calculations!I85","v":10},{"$f":"Calculations!O85+Parts!$E$91*IF(Calculations!$J85<>0,IF(PQS!$R85=\"NO\",ROUNDUP(F85/Calculations!$J85,0),IF(PQS!$R85=\"YES\",ROUNDUP(F85/Calculations!$J85,0)-1,0)),0)+Parts!$E$92*IF(Calculations!$K85<>0,ROUNDUP(F85/Calculations!$K85,0)-1,0)","v":7234.0114209999992},{"$f":"Calculations!T85","v":1811.5546666666664},9045.5660876666661,{"$f":"IF(VLOOKUP(B85,PQS!D:J,COLUMN(PQS!$J$3)-COLUMN(PQS!$D$3)+1,FALSE)=0,\"No\",\"Yes\")","v":"Yes"},{"$f":"Calculations!L85","v":3384.7310000000002},{"$f":"Calculations!N85","v":502.29042100000004},{"$f":"Calculations!M85","v":1042},{"$f":"Calculations!Q85*Calculations!I85","v":0},{"$f":"Calculations!N85","v":502.29042100000004},{"$f":"Calculations!R85*Calculations!I85+Calculations!S85*Calculations!I85","v":1811.5546666666667},95.184360802631574,23.836245614035086,119.02060641666667,{"$f":"Calculations!U85/C85","v":2.3836245614035088}]
[{"$f":"Calculations!A86","v":"Solar w battery"},{"$f":"Calculations!E86","v":"B Medical TCW 3000 DC"},{"$f":"IF(Calculations!F86=0, Calculations!G86, Calculations!F86)","v":109.5},{"$f":"LOOKUP(C86,List!$E$3:$E$13,List!$F$3:$F$13)","v":" 90-120"},{"$f":"Calculations!H86","v":"No"},{"$f":"Calculations!I86","v":10},{"$f":"Calculations!O86+Parts!$E$91*IF(Calculations!$J86<>0,IF(PQS!$R86=\"NO\",ROUNDUP(F86/Calculations!$J86,0),IF(PQS!$R86=\"YES\",ROUNDUP(F86/Calculations!$J86,0)-1,0)),0)+Parts!$E$92*IF(Calculations!$K86<>0,ROUNDUP(F86/Calculations!$K86,0)-1,0)","v":7374.0723880000005},{"$f":"Calculations!T86","v":1811.5546666666664},{"$f":"G86+H86","v":9185.6270546666674},{"$f":"IF(VLOOKUP(B86,PQS!D:J,COLUMN(PQS!$J$3)-COLUMN(PQS!$D$3)+1,FALSE)=0,\"No\",\"Yes\")","v":"Yes"},{"$f":"Calculations!L86","v":3325.2497000000003},{"$f":"Calculations!N86","v":701.83268800000008},{"$f":"Calculations!M86","v":1042},{"$f":"Calculations!Q86*Calculations!I86","v":0},{"$f":"Calculations!N86","v":701.83268800000008},{"$f":"Calculations!R86*Calculations!I86+Calculations!S86*Calculations!I86","v":1811.5546666666667},67.343126831050228,16.543878234398779,83.887005065449017,{"$f":"Calculations!U86/C86","v":1.6543878234398781}]
[{"$f":"Calculations!A87","v":"Solar w battery"},{"$f":"Calculations!E87","v":"Dulas Solar VC 65-2"},{"$f":"IF(Calculations!F87=0, Calculations!G87, Calculations!F87)","v":37.5},{"$f":"LOOKUP(C87,List!$E$3:$E$13,List!$F$3:$F$13)","v":" 30-59"},{"$f":"Calculations!H87","v":"No"},{"$f":"Calculations!I87","v":10},{"$f":"Calculations!O87+Parts!$E$91*IF(Calculations!$J87<>0,IF(PQS!$R87=\"NO\",ROUNDUP(F87/Calculations!$J87,0),IF(PQS!$R87=\"YES\",ROUNDUP(F87/Calculations!$J87,0)-1,0)),0)+Parts!$E$92*IF(Calculations!$K87<>0,ROUNDUP(F87/Calculations!$K87,0)-1,0)","v":6135.6035000000002},{"$f":"Calculations!T87","v":1811.5546666666664},7947.1581666666661,{"$f":"IF(VLOOKUP(B87,PQS!D:J,COLUMN(PQS!$J$3)-COLUMN(PQS!$D$3)+1,FALSE)=0,\"No\",\"Yes\")","v":"Yes"},{"$f":"Calculations!L87","v":3973.7125000000005},{"$f":"Calculations!N87","v":314.90100000000001},{"$f":"Calculations!M87","v":1042},{"$f":"Calculations!Q87*Calculations!I87","v":0},{"$f":"Calculations!N87","v":314.90100000000001},{"$f":"Calculations!R87*Calculations!I87+Calculations!S87*Calculations!I87","v":1811.5546666666667},163.61609333333334,48.308124444444438,211.92421777777776,{"$f":"Calculations!U87/C87","v":4.8308124444444438}]
[{"$f":"Calculations!A88","v":"Solar w battery"},{"$f":"Calculations!E88","v":"Dulas Solar VC 150-2"},{"$f":"IF(Calculations!F88=0, Calculations!G88, Calculations!F88)","v":86},{"$f":"LOOKUP(C88,List!$E$3:$E$13,List!$F$3:$F$13)","v":" 60-89"},{"$f":"Calculations!H88","v":"No"},{"$f":"Calculations!I88","v":10},{"$f":"Calculations!O88+Parts!$E$91*IF(Calculations!$J88<>0,IF(PQS!$R88=\"NO\",ROUNDUP(F88/Calculations!$J88,0),IF(PQS!$R88=\"YES\",ROUNDUP(F88/Calculations!$J88,0)-1,0)),0)+Parts!$E$92*IF(Calculations!$K88<>0,ROUNDUP(F88/Calculations!$K88,0)-1,0)","v":8801.9035000000003},{"$f":"Calculations!T88","v":1811.5546666666664},10613.458166666667,{"$f":"IF(VLOOKUP(B88,PQS!D:J,COLUMN(PQS!$J$3)-COLUMN(PQS!$D$3)+1,FALSE)=0,\"No\",\"Yes\")","v":"Yes"},{"$f":"Calculations!L88","v":5140.0124999999998},{"$f":"Calculations!N88","v":314.90100000000001},{"$f":"Calculations!M88","v":1042},{"$f":"Calculations!Q88*Calculations!I88","v":0},{"$f":"Calculations!N88","v":314.90100000000001},{"$f":"Calculations!R88*Calculations!I88+Calculations!S88*Calculations!I88","v":1811.5546666666667},102.34771511627908,21.064589147286821,123.4123042635659,{"$f":"Calculations!U88/C88","v":2.1064589147286821}]
[{"$f":"Calculations!A89","v":"Solar w battery"},{"$f":"Calculations!E89","v":"Dulas Solar VC 200-1"},{"$f":"IF(Calculations!F89=0, Calculations!G89, Calculations!F89)","v":126.5},{"$f":"LOOKUP(C89,List!$E$3:$E$13,List!$F$3:$F$13)","v":"120 +"},{"$f":"Calculations!H89","v":"No"},{"$f":"Calculations!I89","v":10},{"$f":"Calculations!O89+Parts!$E$91*IF(Calculations!$J89<>0,IF(PQS!$R89=\"NO\",ROUNDUP(F89/Calculations!$J89,0),IF(PQS!$R89=\"YES\",ROUNDUP(F89/Calculations!$J89,0)-1,0)),0)+Parts!$E$92*IF(Calculations!$K89<>0,ROUNDUP(F89/Calculations!$K89,0)-1,0)","v":7373.1859999999997},{"$f":"Calculations!T89","v":1811.5546666666664},9184.7406666666666,{"$f":"IF(VLOOKUP(B89,PQS!D:J,COLUMN(PQS!$J$3)-COLUMN(PQS!$D$3)+1,FALSE)=0,\"No\",\"Yes\")","v":"No"},{"$f":"Calculations!L89","v":3711.2950000000005},{"$f":"Calculations!N89","v":314.90100000000001},{"$f":"Calculations!M89","v":1042},{"$f":"Calculations!Q89*Calculations!I89","v":0},{"$f":"Calculations!N89","v":314.90100000000001},{"$f":"Calculations!R89*Calculations!I89+Calculations!S89*Calculations!I89","v":1811.5546666666667},58.286055335968378,14.32059025032938,72.606645586297759,{"$f":"Calculations!U89/C89","v":1.4320590250329379}]
[{"$f":"Calculations!A90","v":"WICR FR"},{"$f":"Calculations!E90","v":"Zhendre WICR10"},{"$f":"IF(Calculations!F90=0, Calculations!G90, Calculations!F90)","v":3030.3030303030305},{"$f":"LOOKUP(C90,List!$E$3:$E$13,List!$F$3:$F$13)","v":"WICR 10m3"},{"$f":"Calculations!H90","v":"No"},{"$f":"Calculations!I90","v":15},{"$f":"Calculations!O90+Parts!$E$91*IF(Calculations!$J90<>0,IF(PQS!$R90=\"NO\",ROUNDUP(F90/Calculations!$J90,0),IF(PQS!$R90=\"YES\",ROUNDUP(F90/Calculations!$J90,0)-1,0)),0)+Parts!$E$92*IF(Calculations!$K90<>0,ROUNDUP(F90/Calculations!$K90,0)-1,0)","v":22753.5},{"$f":"Calculations!T90","v":18360},41113.5,{"$f":"IF(VLOOKUP(B90,PQS!D:J,COLUMN(PQS!$J$3)-COLUMN(PQS!$D$3)+1,FALSE)=0,\"No\",\"Yes\")","v":"No"},{"$f":"Calculations!L90","v":21025.5},{"$f":"Calculations!N90","v":0},{"$f":"Calculations!M90","v":1728},{"$f":"Calculations!Q90*Calculations!I90","v":17520},{"$f":"Calculations!N90","v":0},{"$f":"Calculations!R90*Calculations!I90+Calculations!S90*Calculations!I90","v":840},7.5086549999999992,6.0587999999999997,13.567454999999999,{"$f":"Calculations!U90/C90","v":0.40392}]
[{"$f":"Calculations!A91","v":"WICR FR"},{"$f":"Calculations!E91","v":"Zhendre WICR30"},{"$f":"IF(Calculations!F91=0, Calculations!G91, Calculations!F91)","v":7692.3076923076924},{"$f":"LOOKUP(C91,List!$E$3:$E$13,List!$F$3:$F$13)","v":"WICR 30m3"},{"$f":"Calculations!H91","v":"No"},{"$f":"Calculations!I91","v":15},{"$f":"Calculations!O91+Parts!$E$91*IF(Calculations!$J91<>0,IF(PQS!$R91=\"NO\",ROUNDUP(F91/Calculations!$J91,0),IF(PQS!$R91=\"YES\",ROUNDUP(F91/Calculations!$J91,0)-1,0)),0)+Parts!$E$92*IF(Calculations!$K91<>0,ROUNDUP(F91/Calculations!$K91,0)-1,0)","v":29259.100000000002},{"$f":"Calculations!T91","v":40260},69519.100000000006,{"$f":"IF(VLOOKUP(B91,PQS!D:J,COLUMN(PQS!$J$3)-COLUMN(PQS!$D$3)+1,FALSE)=0,\"No\",\"Yes\")","v":"No"},{"$f":"Calculations!L91","v":27531.100000000002},{"$f":"Calculations!N91","v":0},{"$f":"Calculations!M91","v":1728},{"$f":"Calculations!Q91*Calculations!I91","v":39420},{"$f":"Calculations!N91","v":0},{"$f":"Calculations!R91*Calculations!I91+Calculations!S91*Calculations!I91","v":840},3.8036830000000004,5.2337999999999996,9.0374829999999999,{"$f":"Calculations!U91/C91","v":0.34892000000000001}]
[{"$f":"Calculations!A92","v":"WICR FR"},{"$f":"Calculations!E92","v":"Zhendre WICR40"},{"$f":"IF(Calculations!F92=0, Calculations!G92, Calculations!F92)","v":9523.8095238095229},{"$f":"LOOKUP(C92,List!$E$3:$E$13,List!$F$3:$F$13)","v":"WICR 40m3"},{"$f":"Calculations!H92","v":"No"},{"$f":"Calculations!I92","v":15},{"$f":"Calculations!O92+Parts!$E$91*IF(Calculations!$J92<>0,IF(PQS!$R92=\"NO\",ROUNDUP(F92/Calculations!$J92,0),IF(PQS!$R92=\"YES\",ROUNDUP(F92/Calculations!$J92,0)-1,0)),0)+Parts!$E$92*IF(Calculations!$K92<>0,ROUNDUP(F92/Calculations!$K92,0)-1,0)","v":24754.400000000001},{"$f":"Calculations!T92","v":40260},65014.400000000001,{"$f":"IF(VLOOKUP(B92,PQS!D:J,COLUMN(PQS!$J$3)-COLUMN(PQS!$D$3)+1,FALSE)=0,\"No\",\"Yes\")","v":"No"},{"$f":"Calculations!L92","v":23026.400000000001},{"$f":"Calculations!N92","v":0},{"$f":"Calculations!M92","v":1728},{"$f":"Calculations!Q92*Calculations!I92","v":39420},{"$f":"Calculations!N92","v":0},{"$f":"Calculations!R92*Calculations!I92+Calculations!S92*Calculations!I92","v":840},2.5992120000000005,4.2273000000000005,6.826512000000001,{"$f":"Calculations!U92/C92","v":0.28182000000000001}]
[{"$f":"Calculations!A93","v":"WICR FR"},{"$f":"Calculations!E93","v":"Huurre WICR10"},{"$f":"IF(Calculations!F93=0, Calculations!G93, Calculations!F93)","v":3030.3030303030305},{"$f":"LOOKUP(C93,List!$E$3:$E$13,List!$F$3:$F$13)","v":"WICR 10m3"},{"$f":"Calculations!H93","v":"No"},{"$f":"Calculations!I93","v":15},{"$f":"Calculations!O93+Parts!$E$91*IF(Calculations!$J93<>0,IF(PQS!$R93=\"NO\",ROUNDUP(F93/Calculations!$J93,0),IF(PQS!$R93=\"YES\",ROUNDUP(F93/Calculations!$J93,0)-1,0)),0)+Parts!$E$92*IF(Calculations!$K93<>0,ROUNDUP(F93/Calculations!$K93,0)-1,0)","v":22753.5},{"$f":"Calculations!T93","v":18360},{"$f":"G93+H93","v":41113.5},{"$f":"IF(VLOOKUP(B93,PQS!D:J,COLUMN(PQS!$J$3)-COLUMN(PQS!$D$3)+1,FALSE)=0,\"No\",\"Yes\")","v":"No"},{"$f":"Calculations!L93","v":21025.5},{"$f":"Calculations!N93","v":0},{"$f":"Calculations!M93","v":1728},{"$f":"Calculations!Q93*Calculations!I93","v":17520},{"$f":"Calculations!N93","v":0},{"$f":"Calculations!R93*Calculations!I93+Calculations!S93*Calculations!I93","v":840},{"$f":"G93/C93","v":7.5086549999999992},{"$f":"H93/C93","v":6.0587999999999997},{"$f":"I93/C93","v":13.567454999999999},{"$f":"Calculations!U93/C93","v":0.40392}]
[{"$f":"Calculations!A94","v":"WICR FR"},{"$f":"Calculations!E94","v":"Huurre WICR30"},{"$f":"IF(Calculations!F94=0, Calculations!G94, Calculations!F94)","v":7692.3076923076924},{"$f":"LOOKUP(C94,List!$E$3:$E$13,List!$F$3:$F$13)","v":"WICR 30m3"},{"$f":"Calculations!H94","v":"No"},{"$f":"Calculations!I94","v":15},{"$f":"Calculations!O94+Parts!$E$91*IF(Calculations!$J94<>0,IF(PQS!$R94=\"NO\",ROUNDUP(F94/Calculations!$J94,0),IF(PQS!$R94=\"YES\",ROUNDUP(F94/Calculations!$J94,0)-1,0)),0)+Parts!$E$92*IF(Calculations!$K94<>0,ROUNDUP(F94/Calculations!$K94,0)-1,0)","v":29259.100000000002},{"$f":"Calculations!T94","v":31500},60759.100000000006,{"$f":"IF(VLOOKUP(B94,PQS!D:J,COLUMN(PQS!$J$3)-COLUMN(PQS!$D$3)+1,FALSE)=0,\"No\",\"Yes\")","v":"No"},{"$f":"Calculations!L94","v":27531.100000000002},{"$f":"Calculations!N94","v":0},{"$f":"Calculations!M94","v":1728},{"$f":"Calculations!Q94*Calculations!I94","v":30660.000000000004},{"$f":"Calculations!N94","v":0},{"$f":"Calculations!R94*Calculations!I94+Calculations!S94*Calculations!I94","v":840},3.8036830000000004,4.0949999999999998,7.898683000000001,{"$f":"Calculations!U94/C94","v":0.27300000000000002}]
[{"$f":"Calculations!A95","v":"WICR FR"},{"$f":"Calculations!E95","v":"Huurre WICR40"},{"$f":"IF(Calculations!F95=0, Calculations!G95, Calculations!F95)","v":9523.8095238095229},{"$f":"LOOKUP(C95,List!$E$3:$E$13,List!$F$3:$F$13)","v":"WICR 40m3"},{"$f":"Calculations!H95","v":"No"},{"$f":"Calculations!I95","v":15},{"$f":"Calculations!O95+Parts!$E$91*IF(Calculations!$J95<>0,IF(PQS!$R95=\"NO\",ROUNDUP(F95/Calculations!$J95,0),IF(PQS!$R95=\"YES\",ROUNDUP(F95/Calculations!$J95,0)-1,0)),0)+Parts!$E$92*IF(Calculations!$K95<>0,ROUNDUP(F95/Calculations!$K95,0)-1,0)","v":24754.400000000001},{"$f":"Calculations!T95","v":40260},65014.400000000001,{"$f":"IF(VLOOKUP(B95,PQS!D:J,COLUMN(PQS!$J$3)-COLUMN(PQS!$D$3)+1,FALSE)=0,\"No\",\"Yes\")","v":"No"},{"$f":"Calculations!L95","v":23026.400000000001},{"$f":"Calculations!N95","v":0},{"$f":"Calculations!M95","v":1728},{"$f":"Calculations!Q95*Calculations!I95","v":39420},{"$f":"Calculations!N95","v":0},{"$f":"Calculations!R95*Calculations!I95+Calculations!S95*Calculations!I95","v":840},2.5992120000000005,4.2273000000000005,6.826512000000001,{"$f":"Calculations!U95/C95","v":0.28182000000000001}]
[{"$f":"Calculations!A96","v":"WICR FR"},{"$f":"Calculations!E96","v":"Haier WICR10"},{"$f":"IF(Calculations!F96=0, Calculations!G96, Calculations!F96)","v":3030.3030303030305},{"$f":"LOOKUP(C96,List!$E$3:$E$13,List!$F$3:$F$13)","v":"WICR 10m3"},{"$f":"Calculations!H96","v":"No"},{"$f":"Calculations!I96","v":15},{"$f":"Calculations!O96+Parts!$E$91*IF(Calculations!$J96<>0,IF(PQS!$R96=\"NO\",ROUNDUP(F96/Calculations!$J96,0),IF(PQS!$R96=\"YES\",ROUNDUP(F96/Calculations!$J96,0)-1,0)),0)+Parts!$E$92*IF(Calculations!$K96<>0,ROUNDUP(F96/Calculations!$K96,0)-1,0)","v":22753.5},{"$f":"Calculations!T96","v":7880.8499999999995},30634.35,{"$f":"IF(VLOOKUP(B96,PQS!D:J,COLUMN(PQS!$J$3)-COLUMN(PQS!$D$3)+1,FALSE)=0,\"No\",\"Yes\")","v":"No"},{"$f":"Calculations!L96","v":21025.5},{"$f":"Calculations!N96","v":0},{"$f":"Calculations!M96","v":1728},{"$f":"Calculations!Q96*Calculations!I96","v":7040.8499999999995},{"$f":"Calculations!N96","v":0},{"$f":"Calculations!R96*Calculations!I96+Calculations!S96*Calculations!I96","v":840},7.5086549999999992,2.6006804999999997,10.109335499999998,{"$f":"Calculations!U96/C96","v":0.1733787}]
[{"$f":"Calculations!A97","v":"WICR FR"},{"$f":"Calculations!E97","v":"Haier WICR30"},{"$f":"IF(Calculations!F97=0, Calculations!G97, Calculations!F97)","v":7692.3076923076924},{"$f":"LOOKUP(C97,List!$E$3:$E$13,List!$F$3:$F$13)","v":"WICR 30m3"},{"$f":"Calculations!H97","v":"No"},{"$f":"Calculations!I97","v":15},{"$f":"Calculations!O97+Parts!$E$91*IF(Calculations!$J97<>0,IF(PQS!$R97=\"NO\",ROUNDUP(F97/Calculations!$J97,0),IF(PQS!$R97=\"YES\",ROUNDUP(F97/Calculations!$J97,0)-1,0)),0)+Parts!$E$92*IF(Calculations!$K97<>0,ROUNDUP(F97/Calculations!$K97,0)-1,0)","v":29259.100000000002},{"$f":"Calculations!T97","v":12666.000000000002},41925.100000000006,{"$f":"IF(VLOOKUP(B97,PQS!D:J,COLUMN(PQS!$J$3)-COLUMN(PQS!$D$3)+1,FALSE)=0,\"No\",\"Yes\")","v":"No"},{"$f":"Calculations!L97","v":27531.100000000002},{"$f":"Calculations!N97","v":0},{"$f":"Calculations!M97","v":1728},{"$f":"Calculations!Q97*Calculations!I97","v":11826.000000000002},{"$f":"Calculations!N97","v":0},{"$f":"Calculations!R97*Calculations!I97+Calculations!S97*Calculations!I97","v":840},3.8036830000000004,1.6465800000000002,5.4502630000000005,{"$f":"Calculations!U97/C97","v":0.10977200000000001}]
[{"$f":"Calculations!A98","v":"WICR FR"},{"$f":"Calculations!E98","v":"Haier WICR40"},{"$f":"IF(Calculations!F98=0, Calculations!G98, Calculations!F98)","v":9523.8095238095229},{"$f":"LOOKUP(C98,List!$E$3:$E$13,List!$F$3:$F$13)","v":"WICR 40m3"},{"$f":"Calculations!H98","v":"No"},{"$f":"Calculations!I98","v":15},{"$f":"Calculations!O98+Parts!$E$91*IF(Calculations!$J98<>0,IF(PQS!$R98=\"NO\",ROUNDUP(F98/Calculations!$J98,0),IF(PQS!$R98=\"YES\",ROUNDUP(F98/Calculations!$J98,0)-1,0)),0)+Parts!$E$92*IF(Calculations!$K98<>0,ROUNDUP(F98/Calculations!$K98,0)-1,0)","v":24754.400000000001},{"$f":"Calculations!T98","v":18579.000000000004},43333.400000000009,{"$f":"IF(VLOOKUP(B98,PQS!D:J,COLUMN(PQS!$J$3)-COLUMN(PQS!$D$3)+1,FALSE)=0,\"No\",\"Yes\")","v":"No"},{"$f":"Calculations!L98","v":23026.400000000001},{"$f":"Calculations!N98","v":0},{"$f":"Calculations!M98","v":1728},{"$f":"Calculations!Q98*Calculations!I98","v":17739.000000000004},{"$f":"Calculations!N98","v":0},{"$f":"Calculations!R98*Calculations!I98+Calculations!S98*Calculations!I98","v":840},2.5992120000000005,1.9507950000000005,4.5500070000000017,{"$f":"Calculations!U98/C98","v":0.13005300000000003}]
[{"$f":"Calculations!A99","v":"WICR FR"},{"$f":"Calculations!E99","v":"Zhendre WIFR20"},{"$f":"IF(Calculations!F99=0, Calculations!G99, Calculations!F99)","v":5555.5555555555557},{"$f":"LOOKUP(C99,List!$E$3:$E$13,List!$F$3:$F$13)","v":"WIFR"},{"$f":"Calculations!H99","v":"No"},{"$f":"Calculations!I99","v":15},{"$f":"Calculations!O99+Parts!$E$91*IF(Calculations!$J99<>0,IF(PQS!$R99=\"NO\",ROUNDUP(F99/Calculations!$J99,0),IF(PQS!$R99=\"YES\",ROUNDUP(F99/Calculations!$J99,0)-1,0)),0)+Parts!$E$92*IF(Calculations!$K99<>0,ROUNDUP(F99/Calculations!$K99,0)-1,0)","v":22613.33},{"$f":"Calculations!T99","v":61065},{"$f":"G99+H99","v":83678.33},{"$f":"IF(VLOOKUP(B99,PQS!D:J,COLUMN(PQS!$J$3)-COLUMN(PQS!$D$3)+1,FALSE)=0,\"No\",\"Yes\")","v":"Yes"},{"$f":"Calculations!L99","v":20885.330000000002},{"$f":"Calculations!N99","v":0},{"$f":"Calculations!M99","v":1728},{"$f":"Calculations!Q99*Calculations!I99","v":60225},{"$f":"Calculations!N99","v":0},{"$f":"Calculations!R99*Calculations!I99+Calculations!S99*Calculations!I99","v":840},{"$f":"G99/C99","v":4.0703994000000003},{"$f":"H99/C99","v":10.9917},{"$f":"I99/C99","v":15.062099399999999},{"$f":"Calculations!U99/C99","v":0.73277999999999999}]
[{"$f":"Calculations!A100","v":"WICR FR"},{"$f":"Calculations!E100","v":"Huurre WIFR20"},{"$f":"IF(Calculations!F100=0, Calculations!G100, Calculations!F100)","v":5555.5555555555557},{"$f":"LOOKUP(C100,List!$E$3:$E$13,List!$F$3:$F$13)","v":"WIFR"},{"$f":"Calculations!H100","v":"No"},{"$f":"Calculations!I100","v":15},{"$f":"Calculations!O100+Parts!$E$91*IF(Calculations!$J100<>0,IF(PQS!$R100=\"NO\",ROUNDUP(F100/Calculations!$J100,0),IF(PQS!$R100=\"YES\",ROUNDUP(F100/Calculations!$J100,0)-1,0)),0)+Parts!$E$92*IF(Calculations!$K100<>0,ROUNDUP(F100/Calculations!$K100,0)-1,0)","v":22613.33},{"$f":"Calculations!T100","v":61065},83678.33,{"$f":"IF(VLOOKUP(B100,PQS!D:J,COLUMN(PQS!$J$3)-COLUMN(PQS!$D$3)+1,FALSE)=0,\"No\",\"Yes\")","v":"Yes"},{"$f":"Calculations!L100","v":20885.330000000002},{"$f":"Calculations!N100","v":0},{"$f":"Calculations!M100","v":1728},{"$f":"Calculations!Q100*Calculations!I100","v":60225},{"$f":"Calculations!N100","v":0},{"$f":"Calculations!R100*Calculations!I100+Calculations!S100*Calculations!I100","v":840},4.0703994000000003,10.9917,15.062099399999999,{"$f":"Calculations!U100/C100","v":0.73277999999999999}]
[{"$f":"Calculations!A101","v":"WICR FR"},{"$f":"Calculations!E101","v":"Haier WIFR20"},{"$f":"IF(Calculations!F101=0, Calculations!G101, Calculations!F101)","v":5555.5555555555557},{"$f":"LOOKUP(C101,List!$E$3:$E$13,List!$F$3:$F$13)","v":"WIFR"},{"$f":"Calculations!H101","v":"No"},{"$f":"Calculations!I101","v":15},{"$f":"Calculations!O101+Parts!$E$91*IF(Calculations!$J101<>0,IF(PQS!$R101=\"NO\",ROUNDUP(F101/Calculations!$J101,0),IF(PQS!$R101=\"YES\",ROUNDUP(F101/Calculations!$J101,0)-1,0)),0)+Parts!$E$92*IF(Calculations!$K101<>0,ROUNDUP(F101/Calculations!$K101,0)-1,0)","v":22613.33},{"$f":"Calculations!T101","v":15031.200000000003},37644.530000000006,{"$f":"IF(VLOOKUP(B101,PQS!D:J,COLUMN(PQS!$J$3)-COLUMN(PQS!$D$3)+1,FALSE)=0,\"No\",\"Yes\")","v":"Yes"},{"$f":"Calculations!L101","v":20885.330000000002},{"$f":"Calculations!N101","v":0},{"$f":"Calculations!M101","v":1728},{"$f":"Calculations!Q101*Calculations!I101","v":14191.200000000003},{"$f":"Calculations!N101","v":0},{"$f":"Calculations!R101*Calculations!I101+Calculations!S101*Calculations!I101","v":840},4.0703994000000003,2.7056160000000005,6.7760154000000012,{"$f":"Calculations!U101/C101","v":0.18037440000000002}]
[{"$f":"Calculations!A102","v":"WICR FR"},{"$f":"Calculations!E102","v":"Zhendre CRFR40"},{"$f":"IF(Calculations!F102=0, Calculations!G102, Calculations!F102)","v":6666.666666666667},{"$f":"LOOKUP(C102,List!$E$3:$E$13,List!$F$3:$F$13)","v":"WICR FR"},{"$f":"Calculations!H102","v":"No"},{"$f":"Calculations!I102","v":15},{"$f":"Calculations!O102+Parts!$E$91*IF(Calculations!$J102<>0,IF(PQS!$R102=\"NO\",ROUNDUP(F102/Calculations!$J102,0),IF(PQS!$R102=\"YES\",ROUNDUP(F102/Calculations!$J102,0)-1,0)),0)+Parts!$E$92*IF(Calculations!$K102<>0,ROUNDUP(F102/Calculations!$K102,0)-1,0)","v":49343},{"$f":"Calculations!T102","v":80775.000000000015},130118.00000000001,{"$f":"IF(VLOOKUP(B102,PQS!D:J,COLUMN(PQS!$J$3)-COLUMN(PQS!$D$3)+1,FALSE)=0,\"No\",\"Yes\")","v":"Yes"},{"$f":"Calculations!L102","v":47615},{"$f":"Calculations!N102","v":0},{"$f":"Calculations!M102","v":1728},{"$f":"Calculations!Q102*Calculations!I102","v":79935.000000000015},{"$f":"Calculations!N102","v":0},{"$f":"Calculations!R102*Calculations!I102+Calculations!S102*Calculations!I102","v":840},7.4014499999999996,12.116250000000001,19.517700000000001,{"$f":"Calculations!U102/C102","v":0.80775000000000008}]
[{"$f":"Calculations!A103","v":"WICR FR"},{"$f":"Calculations!E103","v":"Huurre CRFR40"},{"$f":"IF(Calculations!F103=0, Calculations!G103, Calculations!F103)","v":6666.666666666667},{"$f":"LOOKUP(C103,List!$E$3:$E$13,List!$F$3:$F$13)","v":"WICR FR"},{"$f":"Calculations!H103","v":"No"},{"$f":"Calculations!I103","v":15},{"$f":"Calculations!O103+Parts!$E$91*IF(Calculations!$J103<>0,IF(PQS!$R103=\"NO\",ROUNDUP(F103/Calculations!$J103,0),IF(PQS!$R103=\"YES\",ROUNDUP(F103/Calculations!$J103,0)-1,0)),0)+Parts!$E$92*IF(Calculations!$K103<>0,ROUNDUP(F103/Calculations!$K103,0)-1,0)","v":49343},{"$f":"Calculations!T103","v":74205},123548,{"$f":"IF(VLOOKUP(B103,PQS!D:J,COLUMN(PQS!$J$3)-COLUMN(PQS!$D$3)+1,FALSE)=0,\"No\",\"Yes\")","v":"Yes"},{"$f":"Calculations!L103","v":47615},{"$f":"Calculations!N103","v":0},{"$f":"Calculations!M103","v":1728},{"$f":"Calculations!Q103*Calculations!I103","v":73365},{"$f":"Calculations!N103","v":0},{"$f":"Calculations!R103*Calculations!I103+Calculations!S103*Calculations!I103","v":840},7.4014499999999996,11.130749999999999,18.5322,{"$f":"Calculations!U103/C103","v":0.74204999999999999}]
[{"$f":"Calculations!A104","v":"WICR FR"},{"$f":"Calculations!E104","v":"Haier CRFR40"},{"$f":"IF(Calculations!F104=0, Calculations!G104, Calculations!F104)","v":6666.666666666667},{"$f":"LOOKUP(C104,List!$E$3:$E$13,List!$F$3:$F$13)","v":"WICR FR"},{"$f":"Calculations!H104","v":"No"},{"$f":"Calculations!I104","v":15},{"$f":"Calculations!O104+Parts!$E$91*IF(Calculations!$J104<>0,IF(PQS!$R104=\"NO\",ROUNDUP(F104/Calculations!$J104,0),IF(PQS!$R104=\"YES\",ROUNDUP(F104/Calculations!$J104,0)-1,0)),0)+Parts!$E$92*IF(Calculations!$K104<>0,ROUNDUP(F104/Calculations!$K104,0)-1,0)","v":49343},{"$f":"Calculations!T104","v":26857.200000000004},76200.200000000012,{"$f":"IF(VLOOKUP(B104,PQS!D:J,COLUMN(PQS!$J$3)-COLUMN(PQS!$D$3)+1,FALSE)=0,\"No\",\"Yes\")","v":"Yes"},{"$f":"Calculations!L104","v":47615},{"$f":"Calculations!N104","v":0},{"$f":"Calculations!M104","v":1728},{"$f":"Calculations!Q104*Calculations!I104","v":26017.200000000004},{"$f":"Calculations!N104","v":0},{"$f":"Calculations!R104*Calculations!I104+Calculations!S104*Calculations!I104","v":840},7.4014499999999996,4.0285800000000007,11.43003,{"$f":"Calculations!U104/C104","v":0.26857200000000003}]
[{"$f":"Calculations!A105","v":"LT passive"},{"$f":"Calculations!E105","v":"Aucma ARKTEK-YBC-5*"},{"$f":"IF(Calculations!F105=0, Calculations!G105, Calculations!F105)","v":5.4},{"$f":"LOOKUP(C105,List!$E$3:$E$13,List!$F$3:$F$13)","v":" 1-29"},{"$f":"Calculations!H105","v":"Yes"},{"$f":"Calculations!I105","v":8},{"$f":"Calculations!O105+Parts!$E$91*IF(Calculations!$J105<>0,IF(PQS!$R105=\"NO\",ROUNDUP(F105/Calculations!$J105,0),IF(PQS!$R105=\"YES\",ROUNDUP(F105/Calculations!$J105,0)-1,0)),0)+Parts!$E$92*IF(Calculations!$K105<>0,ROUNDUP(F105/Calculations!$K105,0)-1,0)","v":2983.51},{"$f":"Calculations!T105","v":528},{"$f":"G105+H105","v":3511.51},{"$f":"IF(VLOOKUP(B105,PQS!D:J,COLUMN(PQS!$J$3)-COLUMN(PQS!$D$3)+1,FALSE)=0,\"No\",\"Yes\")","v":"No"},{"$f":"Calculations!L105","v":2667.51},{"$f":"Calculations!N105","v":0},{"$f":"Calculations!M105","v":316},{"$f":"Calculations!Q105*Calculations!I105","v":0},{"$f":"Calculations!N105","v":0},{"$f":"Calculations!R105*Calculations!I105+Calculations!S105*Calculations!I105","v":528},552.50185185185182,97.777777777777771,650.27962962962965,{"$f":"Calculations!U105/C105","v":12.222222222222221}]
[{"$f":"Calculations!A106","v":"LT passive"},{"$f":"Calculations!E106","v":"Aucma tbd"},{"$f":"IF(Calculations!F106=0, Calculations!G106, Calculations!F106)","v":10},{"$f":"LOOKUP(C106,List!$E$3:$E$13,List!$F$3:$F$13)","v":" 1-29"},{"$f":"Calculations!H106","v":"No"},{"$f":"Calculations!I106","v":8},{"$f":"Calculations!O106+Parts!$E$91*IF(Calculations!$J106<>0,IF(PQS!$R106=\"NO\",ROUNDUP(F106/Calculations!$J106,0),IF(PQS!$R106=\"YES\",ROUNDUP(F106/Calculations!$J106,0)-1,0)),0)+Parts!$E$92*IF(Calculations!$K106<>0,ROUNDUP(F106/Calculations!$K106,0)-1,0)","v":423},{"$f":"Calculations!T106","v":528},{"$f":"G106+H106","v":951},{"$f":"IF(VLOOKUP(B106,PQS!D:J,COLUMN(PQS!$J$3)-COLUMN(PQS!$D$3)+1,FALSE)=0,\"No\",\"Yes\")","v":"No"},{"$f":"Calculations!L106","v":107},{"$f":"Calculations!N106","v":0},{"$f":"Calculations!M106","v":316},{"$f":"Calculations!Q106*Calculations!I106","v":0},{"$f":"Calculations!N106","v":0},{"$f":"Calculations!R106*Calculations!I106+Calculations!S106*Calculations!I106","v":528},42.3,52.8,95.1,{"$f":"Calculations!U106/C106","v":6.6}]
[{"$f":"Calculations!A107","v":"LT passive"},{"$f":"Calculations!E107","v":"SureChill tbd"},{"$f":"IF(Calculations!F107=0, Calculations!G107, Calculations!F107)","v":8},{"$f":"LOOKUP(C107,List!$E$3:$E$13,List!$F$3:$F$13)","v":" 1-29"},{"$f":"Calculations!H107","v":"No"},{"$f":"Calculations!I107","v":8},{"$f":"Calculations!O107+Parts!$E$91*IF(Calculations!$J107<>0,IF(PQS!$R107=\"NO\",ROUNDUP(F107/Calculations!$J107,0),IF(PQS!$R107=\"YES\",ROUNDUP(F107/Calculations!$J107,0)-1,0)),0)+Parts!$E$92*IF(Calculations!$K107<>0,ROUNDUP(F107/Calculations!$K107,0)-1,0)","v":423},{"$f":"Calculations!T107","v":528},{"$f":"G107+H107","v":951},{"$f":"IF(VLOOKUP(B107,PQS!D:J,COLUMN(PQS!$J$3)-COLUMN(PQS!$D$3)+1,FALSE)=0,\"No\",\"Yes\")","v":"No"},{"$f":"Calculations!L107","v":107},{"$f":"Calculations!N107","v":0},{"$f":"Calculations!M107","v":316},{"$f":"Calculations!Q107*Calculations!I107","v":0},{"$f":"Calculations!N107","v":0},{"$f":"Calculations!R107*Calculations!I107+Calculations!S107*Calculations!I107","v":528},52.875,66,118.875,{"$f":"Calculations!U107/C107","v":8.25}]

{"sheet":"Cash Flow data","index":32,"n_rows":210,"n_cols":30,"rows_kept":210,"cut":false,"hidden":true,"merged":[]}
["Cash Flow data"]
[]
[]
["Technology","Model","Storage volume","Freezer capacity","Capacity segmentation","Units required","CCEOP","Useful life","Is it cumulative?","Net Present Value (Driven by years of planning)","Year 1","Year 2","Year 3","Year 4","Year 5","Year 6","Year 7","Year 8","Year 9","Year 10","Year 11","Year 12","Year 13","Year 14","Year 15","Year 16","Year 17","Year 18","Year 19","Year 20"]
[{"$f":"Calculations!A5","v":"Gas"},{"$f":"Calculations!E5","v":"B Medical RCW 50 EG"},{"$f":"IF(Calculations!F5=0, Calculations!G5, Calculations!F5)","v":24},{"$f":"IF(Calculations!G5=0,\"No\",\"Yes\")","v":"No"},{"$f":"LOOKUP(C5,List!$E$3:$E$12,List!$F$3:$F$12)","v":" 1-29"},{"$f":"Calculations!AU5*ROUNDUP('Total Solution Costs'!$B$2/'Cash Flow data'!H5,0)","v":10},{"$f":"Calculations!H5","v":"No"},{"$f":"Calculations!I5","v":10},"NO",{"$f":"Calculations!CX5","v":68653.749000000011},{"$f":"Calculations!BH5","v":30971.379000000001},{"$f":"Calculations!BI5","v":4186.93},{"$f":"Calculations!BJ5","v":4186.93},{"$f":"Calculations!BK5","v":4186.93},{"$f":"Calculations!BL5","v":4186.93},{"$f":"Calculations!BM5","v":4186.93},{"$f":"Calculations!BN5","v":4186.93},{"$f":"Calculations!BO5","v":4186.93},{"$f":"Calculations!BP5","v":4186.93},{"$f":"Calculations!BQ5","v":4186.93},{"$f":"Calculations!BR5","v":30971.379000000001},{"$f":"Calculations!BS5","v":4186.93},{"$f":"Calculations!BT5","v":4186.93},{"$f":"Calculations!BU5","v":4186.93},{"$f":"Calculations!BV5","v":4186.93},{"$f":"Calculations!BW5","v":4186.93},{"$f":"Calculations!BX5","v":4186.93},{"$f":"Calculations!BY5","v":4186.93},{"$f":"Calculations!BZ5","v":4186.93},{"$f":"Calculations!CA5","v":4186.93}]
[{"$f":"Calculations!A6","v":"Gas"},{"$f":"Calculations!E6","v":"Sibir V 170 GE"},{"$f":"Calculations!F6","v":55},{"$f":"IF(Calculations!G6=0,\"No\",\"Yes\")","v":"No"},{"$f":"LOOKUP(C6,List!$E$3:$E$12,List!$F$3:$F$12)","v":" 30-59"},{"$f":"Calculations!AU6*ROUNDUP('Total Solution Costs'!$B$2/'Cash Flow data'!H6,0)","v":10},{"$f":"Calculations!H6","v":"No"},{"$f":"Calculations!I6","v":10},"NO",{"$f":"Calculations!CX6","v":82215.957000000009},{"$f":"Calculations!BH6","v":28903.557000000001},{"$f":"Calculations!BI6","v":5923.6},{"$f":"Calculations!BJ6","v":5923.6},{"$f":"Calculations!BK6","v":5923.6},{"$f":"Calculations!BL6","v":5923.6},{"$f":"Calculations!BM6","v":5923.6},{"$f":"Calculations!BN6","v":5923.6},{"$f":"Calculations!BO6","v":5923.6},{"$f":"Calculations!BP6","v":5923.6},{"$f":"Calculations!BQ6","v":5923.6},{"$f":"Calculations!BR6","v":28903.557000000001},{"$f":"Calculations!BS6","v":5923.6},{"$f":"Calculations!BT6","v":5923.6},{"$f":"Calculations!BU6","v":5923.6},{"$f":"Calculations!BV6","v":5923.6},{"$f":"Calculations!BW6","v":5923.6},{"$f":"Calculations!BX6","v":5923.6},{"$f":"Calculations!BY6","v":5923.6},{"$f":"Calculations!BZ6","v":5923.6},{"$f":"Calculations!CA6","v":5923.6}]
[{"$f":"Calculations!A7","v":"Gas"},{"$f":"Calculations!E7","v":"Sibir V 110 GE "},{"$f":"Calculations!F7","v":17},{"$f":"IF(Calculations!G7=0,\"No\",\"Yes\")","v":"No"},{"$f":"LOOKUP(C7,List!$E$3:$E$12,List!$F$3:$F$12)","v":" 1-29"},{"$f":"Calculations!AU7*ROUNDUP('Total Solution Costs'!$B$2/'Cash Flow data'!H7,0)","v":10},{"$f":"Calculations!H7","v":"No"},{"$f":"Calculations!I7","v":10},"NO",{"$f":"Calculations!CX7","v":60471.877000000008},{"$f":"Calculations!BH7","v":25194.127000000004},{"$f":"Calculations!BI7","v":3919.75},{"$f":"Calculations!BJ7","v":3919.75},{"$f":"Calculations!BK7","v":3919.75},{"$f":"Calculations!BL7","v":3919.75},{"$f":"Calculations!BM7","v":3919.75},{"$f":"Calculations!BN7","v":3919.75},{"$f":"Calculations!BO7","v":3919.75},{"$f":"Calculations!BP7","v":3919.75},{"$f":"Calculations!BQ7","v":3919.75},{"$f":"Calculations!BR7","v":25194.127000000004},{"$f":"Calculations!BS7","v":3919.75},{"$f":"Calculations!BT7","v":3919.75},{"$f":"Calculations!BU7","v":3919.75},{"$f":"Calculations!BV7","v":3919.75},{"$f":"Calculations!BW7","v":3919.75},{"$f":"Calculations!BX7","v":3919.75},{"$f":"Calculations!BY7","v":3919.75},{"$f":"Calculations!BZ7","v":3919.75},{"$f":"Calculations!CA7","v":3919.75}]
[{"$f":"Calculations!A8","v":"Freezer"},{"$f":"Calculations!E8","v":"Haier HBD 116*"},{"$f":"Calculations!F8","v":0},{"$f":"IF(Calculations!G8=0,\"No\",\"Yes\")","v":"Yes"},{"$f":"LOOKUP(C8,List!$E$3:$E$12,List!$F$3:$F$12)","v":" 1-29"},{"$f":"Calculations!AU8*ROUNDUP('Total Solution Costs'!$B$2/'Cash Flow data'!H8,0)","v":10},{"$f":"Calculations!H8","v":"Yes"},{"$f":"Calculations!I8","v":10},"NO",{"$f":"Calculations!CX8","v":28699.099333333328},{"$f":"Calculations!BH8","v":15522.499333333335},{"$f":"Calculations!BI8","v":1464.0666666666666},{"$f":"Calculations!BJ8","v":1464.0666666666666},{"$f":"Calculations!BK8","v":1464.0666666666666},{"$f":"Calculations!BL8","v":1464.0666666666666},{"$f":"Calculations!BM8","v":1464.0666666666666},{"$f":"Calculations!BN8","v":1464.0666666666666},{"$f":"Calculations!BO8","v":1464.0666666666666},{"$f":"Calculations!BP8","v":1464.0666666666666},{"$f":"Calculations!BQ8","v":1464.0666666666666},{"$f":"Calculations!BR8","v":15522.499333333335},{"$f":"Calculations!BS8","v":1464.0666666666666},{"$f":"Calculations!BT8","v":1464.0666666666666},{"$f":"Calculations!BU8","v":1464.0666666666666},{"$f":"Calculations!BV8","v":1464.0666666666666},{"$f":"Calculations!BW8","v":1464.0666666666666},{"$f":"Calculations!BX8","v":1464.0666666666666},{"$f":"Calculations!BY8","v":1464.0666666666666},{"$f":"Calculations!BZ8","v":1464.0666666666666},{"$f":"Calculations!CA8","v":1464.0666666666666}]
[{"$f":"Calculations!A9","v":"Freezer"},{"$f":"Calculations!E9","v":"Haier HBD 286*"},{"$f":"Calculations!F9","v":0},{"$f":"IF(Calculations!G9=0,\"No\",\"Yes\")","v":"Yes"},{"$f":"LOOKUP(C9,List!$E$3:$E$12,List!$F$3:$F$12)","v":" 1-29"},{"$f":"Calculations!AU9*ROUNDUP('Total Solution Costs'!$B$2/'Cash Flow data'!H9,0)","v":10},{"$f":"Calculations!H9","v":"Yes"},{"$f":"Calculations!I9","v":10},"NO",{"$f":"Calculations!CX9","v":58775.591333333337},{"$f":"Calculations!BH9","v":19450.391333333333},{"$f":"Calculations!BI9","v":4369.4666666666672},{"$f":"Calculations!BJ9","v":4369.4666666666672},{"$f":"Calculations!BK9","v":4369.4666666666672},{"$f":"Calculations!BL9","v":4369.4666666666672},{"$f":"Calculations!BM9","v":4369.4666666666672},{"$f":"Calculations!BN9","v":4369.4666666666672},{"$f":"Calculations!BO9","v":4369.4666666666672},{"$f":"Calculations!BP9","v":4369.4666666666672},{"$f":"Calculations!BQ9","v":4369.4666666666672},{"$f":"Calculations!BR9","v":19450.391333333333},{"$f":"Calculations!BS9","v":4369.4666666666672},{"$f":"Calculations!BT9","v":4369.4666666666672},{"$f":"Calculations!BU9","v":4369.4666666666672},{"$f":"Calculations!BV9","v":4369.4666666666672},{"$f":"Calculations!BW9","v":4369.4666666666672},{"$f":"Calculations!BX9","v":4369.4666666666672},{"$f":"Calculations!BY9","v":4369.4666666666672},{"$f":"Calculations!BZ9","v":4369.4666666666672},{"$f":"Calculations!CA9","v":4369.4666666666672}]
[{"$f":"Calculations!A10","v":"Freezer"},{"$f":"Calculations!E10","v":"Vestfrost MF 314*"},{"$f":"Calculations!F10","v":0},{"$f":"IF(Calculations!G10=0,\"No\",\"Yes\")","v":"Yes"},{"$f":"LOOKUP(C10,List!$E$3:$E$12,List!$F$3:$F$12)","v":" 1-29"},{"$f":"Calculations!AU10*ROUNDUP('Total Solution Costs'!$B$2/'Cash Flow data'!H10,0)","v":10},{"$f":"Calculations!H10","v":"Yes"},{"$f":"Calculations!I10","v":10},"NO",{"$f":"Calculations!CX10","v":59261.472746666659},{"$f":"Calculations!BH10","v":20790.372746666668},{"$f":"Calculations!BI10","v":4274.5666666666675},{"$f":"Calculations!BJ10","v":4274.5666666666675},{"$f":"Calculations!BK10","v":4274.5666666666675},{"$f":"Calculations!BL10","v":4274.5666666666675},{"$f":"Calculations!BM10","v":4274.5666666666675},{"$f":"Calculations!BN10","v":4274.5666666666675},{"$f":"Calculations!BO10","v":4274.5666666666675},{"$f":"Calculations!BP10","v":4274.5666666666675},{"$f":"Calculations!BQ10","v":4274.5666666666675},{"$f":"Calculations!BR10","v":20790.372746666668},{"$f":"Calculations!BS10","v":4274.5666666666675},{"$f":"Calculations!BT10","v":4274.5666666666675},{"$f":"Calculations!BU10","v":4274.5666666666675},{"$f":"Calculations!BV10","v":4274.5666666666675},{"$f":"Calculations!BW10","v":4274.5666666666675},{"$f":"Calculations!BX10","v":4274.5666666666675},{"$f":"Calculations!BY10","v":4274.5666666666675},{"$f":"Calculations!BZ10","v":4274.5666666666675},{"$f":"Calculations!CA10","v":4274.5666666666675}]
[{"$f":"Calculations!A11","v":"Freezer"},{"$f":"Calculations!E11","v":"Vestfrost MF 114*"},{"$f":"Calculations!F11","v":0},{"$f":"IF(Calculations!G11=0,\"No\",\"Yes\")","v":"Yes"},{"$f":"LOOKUP(C11,List!$E$3:$E$12,List!$F$3:$F$12)","v":" 1-29"},{"$f":"Calculations!AU11*ROUNDUP('Total Solution Costs'!$B$2/'Cash Flow data'!H11,0)","v":10},{"$f":"Calculations!H11","v":"Yes"},{"$f":"Calculations!I11","v":10},"NO",{"$f":"Calculations!CX11","v":43223.846746666684},{"$f":"Calculations!BH11","v":17827.046746666667},{"$f":"Calculations!BI11","v":2821.8666666666668},{"$f":"Calculations!BJ11","v":2821.8666666666668},{"$f":"Calculations!BK11","v":2821.8666666666668},{"$f":"Calculations!BL11","v":2821.8666666666668},{"$f":"Calculations!BM11","v":2821.8666666666668},{"$f":"Calculations!BN11","v":2821.8666666666668},{"$f":"Calculations!BO11","v":2821.8666666666668},{"$f":"Calculations!BP11","v":2821.8666666666668},{"$f":"Calculations!BQ11","v":2821.8666666666668},{"$f":"Calculations!BR11","v":17827.046746666667},{"$f":"Calculations!BS11","v":2821.8666666666668},{"$f":"Calculations!BT11","v":2821.8666666666668},{"$f":"Calculations!BU11","v":2821.8666666666668},{"$f":"Calculations!BV11","v":2821.8666666666668},{"$f":"Calculations!BW11","v":2821.8666666666668},{"$f":"Calculations!BX11","v":2821.8666666666668},{"$f":"Calculations!BY11","v":2821.8666666666668},{"$f":"Calculations!BZ11","v":2821.8666666666668},{"$f":"Calculations!CA11","v":2821.8666666666668}]
[{"$f":"Calculations!A12","v":"Freezer"},{"$f":"Calculations!E12","v":"Vestfrost MF 214*"},{"$f":"Calculations!F12","v":0},{"$f":"IF(Calculations!G12=0,\"No\",\"Yes\")","v":"Yes"},{"$f":"LOOKUP(C12,List!$E$3:$E$12,List!$F$3:$F$12)","v":" 1-29"},{"$f":"Calculations!AU12*ROUNDUP('Total Solution Costs'!$B$2/'Cash Flow data'!H12,0)","v":10},{"$f":"Calculations!H12","v":"Yes"},{"$f":"Calculations!I12","v":10},"NO",{"$f":"Calculations!CX12","v":49453.213116666659},{"$f":"Calculations!BH12","v":19063.213116666666},{"$f":"Calculations!BI12","v":3376.666666666667},{"$f":"Calculations!BJ12","v":3376.666666666667},{"$f":"Calculations!BK12","v":3376.666666666667},{"$f":"Calculations!BL12","v":3376.666666666667},{"$f":"Calculations!BM12","v":3376.666666666667},{"$f":"Calculations!BN12","v":3376.666666666667},{"$f":"Calculations!BO12","v":3376.666666666667},{"$f":"Calculations!BP12","v":3376.666666666667},{"$f":"Calculations!BQ12","v":3376.666666666667},{"$f":"Calculations!BR12","v":19063.213116666666},{"$f":"Calculations!BS12","v":3376.666666666667},{"$f":"Calculations!BT12","v":3376.666666666667},{"$f":"Calculations!BU12","v":3376.666666666667},{"$f":"Calculations!BV12","v":3376.666666666667},{"$f":"Calculations!BW12","v":3376.666666666667},{"$f":"Calculations!BX12","v":3376.666666666667},{"$f":"Calculations!BY12","v":3376.666666666667},{"$f":"Calculations!BZ12","v":3376.666666666667},{"$f":"Calculations!CA12","v":3376.666666666667}]
[{"$f":"Calculations!A13","v":"Freezer"},{"$f":"Calculations!E13","v":"B Medical TFW 800*"},{"$f":"Calculations!F13","v":0},{"$f":"IF(Calculations!G13=0,\"No\",\"Yes\")","v":"Yes"},{"$f":"LOOKUP(C13,List!$E$3:$E$12,List!$F$3:$F$12)","v":" 1-29"},{"$f":"Calculations!AU13*ROUNDUP('Total Solution Costs'!$B$2/'Cash Flow data'!H13,0)","v":10},{"$f":"Calculations!H13","v":"Yes"},{"$f":"Calculations!I13","v":10},"NO",{"$f":"Calculations!CX13","v":81737.917016666674},{"$f":"Calculations!BH13","v":49048.417016666659},{"$f":"Calculations!BI13","v":3632.166666666667},{"$f":"Calculations!BJ13","v":3632.166666666667},{"$f":"Calculations!BK13","v":3632.166666666667},{"$f":"Calculations!BL13","v":3632.166666666667},{"$f":"Calculations!BM13","v":3632.166666666667},{"$f":"Calculations!BN13","v":3632.166666666667},{"$f":"Calculations!BO13","v":3632.166666666667},{"$f":"Calculations!BP13","v":3632.166666666667},{"$f":"Calculations!BQ13","v":3632.166666666667},{"$f":"Calculations!BR13","v":49048.417016666659},{"$f":"Calculations!BS13","v":3632.166666666667},{"$f":"Calculations!BT13","v":3632.166666666667},{"$f":"Calculations!BU13","v":3632.166666666667},{"$f":"Calculations!BV13","v":3632.166666666667},{"$f":"Calculations!BW13","v":3632.166666666667},{"$f":"Calculations!BX13","v":3632.166666666667},{"$f":"Calculations!BY13","v":3632.166666666667},{"$f":"Calculations!BZ13","v":3632.166666666667},{"$f":"Calculations!CA13","v":3632.166666666667}]
[{"$f":"Calculations!A14","v":"Freezer"},{"$f":"Calculations!E14","v":"Aucma DW-25W147*"},{"$f":"Calculations!F14","v":0},{"$f":"IF(Calculations!G14=0,\"No\",\"Yes\")","v":"Yes"},{"$f":"LOOKUP(C14,List!$E$3:$E$12,List!$F$3:$F$12)","v":" 1-29"},{"$f":"Calculations!AU14*ROUNDUP('Total Solution Costs'!$B$2/'Cash Flow data'!H14,0)","v":10},{"$f":"Calculations!H14","v":"Yes"},{"$f":"Calculations!I14","v":10},"NO",{"$f":"Calculations!CX14","v":50882.538666666667},{"$f":"Calculations!BH14","v":18455.838666666667},{"$f":"Calculations!BI14","v":3602.9666666666662},{"$f":"Calculations!BJ14","v":3602.9666666666662},{"$f":"Calculations!BK14","v":3602.9666666666662},{"$f":"Calculations!BL14","v":3602.9666666666662},{"$f":"Calculations!BM14","v":3602.9666666666662},{"$f":"Calculations!BN14","v":3602.9666666666662},{"$f":"Calculations!BO14","v":3602.9666666666662},{"$f":"Calculations!BP14","v":3602.9666666666662},{"$f":"Calculations!BQ14","v":3602.9666666666662},{"$f":"Calculations!BR14","v":18455.838666666667},{"$f":"Calculations!BS14","v":3602.9666666666662},{"$f":"Calculations!BT14","v":3602.9666666666662},{"$f":"Calculations!BU14","v":3602.9666666666662},{"$f":"Calculations!BV14","v":3602.9666666666662},{"$f":"Calculations!BW14","v":3602.9666666666662},{"$f":"Calculations!BX14","v":3602.9666666666662},{"$f":"Calculations!BY14","v":3602.9666666666662},{"$f":"Calculations!BZ14","v":3602.9666666666662},{"$f":"Calculations!CA14","v":3602.9666666666662}]
[{"$f":"Calculations!A15","v":"Freezer"},{"$f":"Calculations!E15","v":"Aucma DW-25W300*"},{"$f":"Calculations!F15","v":0},{"$f":"IF(Calculations!G15=0,\"No\",\"Yes\")","v":"Yes"},{"$f":"LOOKUP(C15,List!$E$3:$E$12,List!$F$3:$F$12)","v":" 1-29"},{"$f":"Calculations!AU15*ROUNDUP('Total Solution Costs'!$B$2/'Cash Flow data'!H15,0)","v":10},{"$f":"Calculations!H15","v":"Yes"},{"$f":"Calculations!I15","v":10},"NO",{"$f":"Calculations!CX15","v":54085.311666666646},{"$f":"Calculations!BH15","v":21264.41166666667},{"$f":"Calculations!BI15","v":3646.7666666666664},{"$f":"Calculations!BJ15","v":3646.7666666666664},{"$f":"Calculations!BK15","v":3646.7666666666664},{"$f":"Calculations!BL15","v":3646.7666666666664},{"$f":"Calculations!BM15","v":3646.7666666666664},{"$f":"Calculations!BN15","v":3646.7666666666664},{"$f":"Calculations!BO15","v":3646.7666666666664},{"$f":"Calculations!BP15","v":3646.7666666666664},{"$f":"Calculations!BQ15","v":3646.7666666666664},{"$f":"Calculations!BR15","v":21264.41166666667},{"$f":"Calculations!BS15","v":3646.7666666666664},{"$f":"Calculations!BT15","v":3646.7666666666664},{"$f":"Calculations!BU15","v":3646.7666666666664},{"$f":"Calculations!BV15","v":3646.7666666666664},{"$f":"Calculations!BW15","v":3646.7666666666664},{"$f":"Calculations!BX15","v":3646.7666666666664},{"$f":"Calculations!BY15","v":3646.7666666666664},{"$f":"Calculations!BZ15","v":3646.7666666666664},{"$f":"Calculations!CA15","v":3646.7666666666664}]
[{"$f":"Calculations!A16","v":"Freezer"},{"$f":"Calculations!E16","v":"B Medical TFW 3000 AC*"},{"$f":"Calculations!F16","v":0},{"$f":"IF(Calculations!G16=0,\"No\",\"Yes\")","v":"Yes"},{"$f":"LOOKUP(C16,List!$E$3:$E$12,List!$F$3:$F$12)","v":" 1-29"},{"$f":"Calculations!AU16*ROUNDUP('Total Solution Costs'!$B$2/'Cash Flow data'!H16,0)","v":10},{"$f":"Calculations!H16","v":"Yes"},{"$f":"Calculations!I16","v":10},"NO",{"$f":"Calculations!CX16","v":74900.953116666686},{"$f":"Calculations!BH16","v":50095.453116666678},{"$f":"Calculations!BI16","v":2756.166666666667},{"$f":"Calculations!BJ16","v":2756.166666666667},{"$f":"Calculations!BK16","v":2756.166666666667},{"$f":"Calculations!BL16","v":2756.166666666667},{"$f":"Calculations!BM16","v":2756.166666666667},{"$f":"Calculations!BN16","v":2756.166666666667},{"$f":"Calculations!BO16","v":2756.166666666667},{"$f":"Calculations!BP16","v":2756.166666666667},{"$f":"Calculations!BQ16","v":2756.166666666667},{"$f":"Calculations!BR16","v":50095.453116666678},{"$f":"Calculations!BS16","v":2756.166666666667},{"$f":"Calculations!BT16","v":2756.166666666667},{"$f":"Calculations!BU16","v":2756.166666666667},{"$f":"Calculations!BV16","v":2756.166666666667},{"$f":"Calculations!BW16","v":2756.166666666667},{"$f":"Calculations!BX16","v":2756.166666666667},{"$f":"Calculations!BY16","v":2756.166666666667},{"$f":"Calculations!BZ16","v":2756.166666666667},{"$f":"Calculations!CA16","v":2756.166666666667}]
[{"$f":"Calculations!A17","v":"Freezer"},{"$f":"Calculations!E17","v":"B Medical TFW 40 SDD*"},{"$f":"Calculations!F17","v":0},{"$f":"IF(Calculations!G17=0,\"No\",\"Yes\")","v":"Yes"},{"$f":"LOOKUP(C17,List!$E$3:$E$12,List!$F$3:$F$12)","v":" 1-29"},{"$f":"Calculations!AU17*ROUNDUP('Total Solution Costs'!$B$2/'Cash Flow data'!H17,0)","v":10},{"$f":"Calculations!H17","v":"Yes"},{"$f":"Calculations!I17","v":10},"NO",{"$f":"Calculations!CX17","v":82810.115666666708},{"$f":"Calculations!BH17","v":72130.115666666665},{"$f":"Calculations!BI17","v":1186.6666666666665},{"$f":"Calculations!BJ17","v":1186.6666666666665},{"$f":"Calculations!BK17","v":1186.6666666666665},{"$f":"Calculations!BL17","v":1186.6666666666665},{"$f":"Calculations!BM17","v":1186.6666666666665},{"$f":"Calculations!BN17","v":1186.6666666666665},{"$f":"Calculations!BO17","v":1186.6666666666665},{"$f":"Calculations!BP17","v":1186.6666666666665},{"$f":"Calculations!BQ17","v":1186.6666666666665},{"$f":"Calculations!BR17","v":72130.115666666665},{"$f":"Calculations!BS17","v":1186.6666666666665},{"$f":"Calculations!BT17","v":1186.6666666666665},{"$f":"Calculations!BU17","v":1186.6666666666665},{"$f":"Calculations!BV17","v":1186.6666666666665},{"$f":"Calculations!BW17","v":1186.6666666666665},{"$f":"Calculations!BX17","v":1186.6666666666665},{"$f":"Calculations!BY17","v":1186.6666666666665},{"$f":"Calculations!BZ17","v":1186.6666666666665},{"$f":"Calculations!CA17","v":1186.6666666666665}]
[{"$f":"Calculations!A18","v":"ILR"},{"$f":"Calculations!E18","v":"Haier HBC-70"},{"$f":"Calculations!F18","v":45},{"$f":"IF(Calculations!G18=0,\"No\",\"Yes\")","v":"No"},{"$f":"LOOKUP(C18,List!$E$3:$E$12,List!$F$3:$F$12)","v":" 30-59"},{"$f":"Calculations!AU18*ROUNDUP('Total Solution Costs'!$B$2/'Cash Flow data'!H18,0)","v":10},{"$f":"Calculations!H18","v":"No"},{"$f":"Calculations!I18","v":10},"NO",{"$f":"Calculations!CX18","v":32034.286333333319},{"$f":"Calculations!BH18","v":17149.486333333334},{"$f":"Calculations!BI18","v":1653.8666666666666},{"$f":"Calculations!BJ18","v":1653.8666666666666},{"$f":"Calculations!BK18","v":1653.8666666666666},{"$f":"Calculations!BL18","v":1653.8666666666666},{"$f":"Calculations!BM18","v":1653.8666666666666},{"$f":"Calculations!BN18","v":1653.8666666666666},{"$f":"Calculations!BO18","v":1653.8666666666666},{"$f":"Calculations!BP18","v":1653.8666666666666},{"$f":"Calculations!BQ18","v":1653.8666666666666},{"$f":"Calculations!BR18","v":17149.486333333334},{"$f":"Calculations!BS18","v":1653.8666666666666},{"$f":"Calculations!BT18","v":1653.8666666666666},{"$f":"Calculations!BU18","v":1653.8666666666666},{"$f":"Calculations!BV18","v":1653.8666666666666},{"$f":"Calculations!BW18","v":1653.8666666666666},{"$f":"Calculations!BX18","v":1653.8666666666666},{"$f":"Calculations!BY18","v":1653.8666666666666},{"$f":"Calculations!BZ18","v":1653.8666666666666},{"$f":"Calculations!CA18","v":1653.8666666666666}]
[{"$f":"Calculations!A19","v":"ILR"},{"$f":"Calculations!E19","v":"Haier HBC-200"},{"$f":"Calculations!F19","v":90},{"$f":"IF(Calculations!G19=0,\"No\",\"Yes\")","v":"No"},{"$f":"LOOKUP(C19,List!$E$3:$E$12,List!$F$3:$F$12)","v":" 90-120"},{"$f":"Calculations!AU19*ROUNDUP('Total Solution Costs'!$B$2/'Cash Flow data'!H19,0)","v":10},{"$f":"Calculations!H19","v":"No"},{"$f":"Calculations!I19","v":10},"NO",{"$f":"Calculations!CX19","v":38631.586333333347},{"$f":"Calculations!BH19","v":19147.786333333333},{"$f":"Calculations!BI19","v":2164.8666666666668},{"$f":"Calculations!BJ19","v":2164.8666666666668},{"$f":"Calculations!BK19","v":2164.8666666666668},{"$f":"Calculations!BL19","v":2164.8666666666668},{"$f":"Calculations!BM19","v":2164.8666666666668},{"$f":"Calculations!BN19","v":2164.8666666666668},{"$f":"Calculations!BO19","v":2164.8666666666668},{"$f":"Calculations!BP19","v":2164.8666666666668},{"$f":"Calculations!BQ19","v":2164.8666666666668},{"$f":"Calculations!BR19","v":19147.786333333333},{"$f":"Calculations!BS19","v":2164.8666666666668},{"$f":"Calculations!BT19","v":2164.8666666666668},{"$f":"Calculations!BU19","v":2164.8666666666668},{"$f":"Calculations!BV19","v":2164.8666666666668},{"$f":"Calculations!BW19","v":2164.8666666666668},{"$f":"Calculations!BX19","v":2164.8666666666668},{"$f":"Calculations!BY19","v":2164.8666666666668},{"$f":"Calculations!BZ19","v":2164.8666666666668},{"$f":"Calculations!CA19","v":2164.8666666666668}]
[{"$f":"Calculations!A20","v":"ILR"},{"$f":"Calculations!E20","v":"Vestfrost MK 304"},{"$f":"Calculations!F20","v":105},{"$f":"IF(Calculations!G20=0,\"No\",\"Yes\")","v":"No"},{"$f":"LOOKUP(C20,List!$E$3:$E$12,List!$F$3:$F$12)","v":" 90-120"},{"$f":"Calculations!AU20*ROUNDUP('Total Solution Costs'!$B$2/'Cash Flow data'!H20,0)","v":10},{"$f":"Calculations!H20","v":"No"},{"$f":"Calculations!I20","v":10},"NO",{"$f":"Calculations!CX20","v":56427.135426666653},{"$f":"Calculations!BH20","v":24723.135426666668},{"$f":"Calculations!BI20","v":3522.6666666666665},{"$f":"Calculations!BJ20","v":3522.6666666666665},{"$f":"Calculations!BK20","v":3522.6666666666665},{"$f":"Calculations!BL20","v":3522.6666666666665},{"$f":"Calculations!BM20","v":3522.6666666666665},{"$f":"Calculations!BN20","v":3522.6666666666665},{"$f":"Calculations!BO20","v":3522.6666666666665},{"$f":"Calculations!BP20","v":3522.6666666666665},{"$f":"Calculations!BQ20","v":3522.6666666666665},{"$f":"Calculations!BR20","v":24723.135426666668},{"$f":"Calculations!BS20","v":3522.6666666666665},{"$f":"Calculations!BT20","v":3522.6666666666665},{"$f":"Calculations!BU20","v":3522.6666666666665},{"$f":"Calculations!BV20","v":3522.6666666666665},{"$f":"Calculations!BW20","v":3522.6666666666665},{"$f":"Calculations!BX20","v":3522.6666666666665},{"$f":"Calculations!BY20","v":3522.6666666666665},{"$f":"Calculations!BZ20","v":3522.6666666666665},{"$f":"Calculations!CA20","v":3522.6666666666665}]
[{"$f":"Calculations!A21","v":"ILR"},{"$f":"Calculations!E21","v":"Vestfrost MKF 074"},{"$f":"Calculations!F21","v":16},{"$f":"IF(Calculations!G21=0,\"No\",\"Yes\")","v":"Yes"},{"$f":"LOOKUP(C21,List!$E$3:$E$12,List!$F$3:$F$12)","v":" 1-29"},{"$f":"Calculations!AU21*ROUNDUP('Total Solution Costs'!$B$2/'Cash Flow data'!H21,0)","v":10},{"$f":"Calculations!H21","v":"No"},{"$f":"Calculations!I21","v":10},"NO",{"$f":"Calculations!CX21","v":56123.852246666669},{"$f":"Calculations!BH21","v":22711.652246666668},{"$f":"Calculations!BI21","v":3712.4666666666667},{"$f":"Calculations!BJ21","v":3712.4666666666667},{"$f":"Calculations!BK21","v":3712.4666666666667},{"$f":"Calculations!BL21","v":3712.4666666666667},{"$f":"Calculations!BM21","v":3712.4666666666667},{"$f":"Calculations!BN21","v":3712.4666666666667},{"$f":"Calculations!BO21","v":3712.4666666666667},{"$f":"Calculations!BP21","v":3712.4666666666667},{"$f":"Calculations!BQ21","v":3712.4666666666667},{"$f":"Calculations!BR21","v":22711.652246666668},{"$f":"Calculations!BS21","v":3712.4666666666667},{"$f":"Calculations!BT21","v":3712.4666666666667},{"$f":"Calculations!BU21","v":3712.4666666666667},{"$f":"Calculations!BV21","v":3712.4666666666667},{"$f":"Calculations!BW21","v":3712.4666666666667},{"$f":"Calculations!BX21","v":3712.4666666666667},{"$f":"Calculations!BY21","v":3712.4666666666667},{"$f":"Calculations!BZ21","v":3712.4666666666667},{"$f":"Calculations!CA21","v":3712.4666666666667}]
[{"$f":"Calculations!A22","v":"ILR"},{"$f":"Calculations!E22","v":"Vestfrost MK 204"},{"$f":"Calculations!F22","v":75},{"$f":"IF(Calculations!G22=0,\"No\",\"Yes\")","v":"No"},{"$f":"LOOKUP(C22,List!$E$3:$E$12,List!$F$3:$F$12)","v":" 60-89"},{"$f":"Calculations!AU22*ROUNDUP('Total Solution Costs'!$B$2/'Cash Flow data'!H22,0)","v":10},{"$f":"Calculations!H22","v":"No"},{"$f":"Calculations!I22","v":10},"NO",{"$f":"Calculations!CX22","v":44108.23807666669},{"$f":"Calculations!BH22","v":21010.938076666673},{"$f":"Calculations!BI22","v":2566.3666666666668},{"$f":"Calculations!BJ22","v":2566.3666666666668},{"$f":"Calculations!BK22","v":2566.3666666666668},{"$f":"Calculations!BL22","v":2566.3666666666668},{"$f":"Calculations!BM22","v":2566.3666666666668},{"$f":"Calculations!BN22","v":2566.3666666666668},{"$f":"Calculations!BO22","v":2566.3666666666668},{"$f":"Calculations!BP22","v":2566.3666666666668},{"$f":"Calculations!BQ22","v":2566.3666666666668},{"$f":"Calculations!BR22","v":21010.938076666673},{"$f":"Calculations!BS22","v":2566.3666666666668},{"$f":"Calculations!BT22","v":2566.3666666666668},{"$f":"Calculations!BU22","v":2566.3666666666668},{"$f":"Calculations!BV22","v":2566.3666666666668},{"$f":"Calculations!BW22","v":2566.3666666666668},{"$f":"Calculations!BX22","v":2566.3666666666668},{"$f":"Calculations!BY22","v":2566.3666666666668},{"$f":"Calculations!BZ22","v":2566.3666666666668},{"$f":"Calculations!CA22","v":2566.3666666666668}]
[{"$f":"Calculations!A23","v":"ILR"},{"$f":"Calculations!E23","v":"Vestfrost MK 404"},{"$f":"Calculations!F23","v":135},{"$f":"IF(Calculations!G23=0,\"No\",\"Yes\")","v":"No"},{"$f":"LOOKUP(C23,List!$E$3:$E$12,List!$F$3:$F$12)","v":"120 +"},{"$f":"Calculations!AU23*ROUNDUP('Total Solution Costs'!$B$2/'Cash Flow data'!H23,0)","v":10},{"$f":"Calculations!H23","v":"No"},{"$f":"Calculations!I23","v":10},"NO",{"$f":"Calculations!CX23","v":56691.623816666659},{"$f":"Calculations!BH23","v":25776.023816666668},{"$f":"Calculations!BI23","v":3435.0666666666666},{"$f":"Calculations!BJ23","v":3435.0666666666666},{"$f":"Calculations!BK23","v":3435.0666666666666},{"$f":"Calculations!BL23","v":3435.0666666666666},{"$f":"Calculations!BM23","v":3435.0666666666666},{"$f":"Calculations!BN23","v":3435.0666666666666},{"$f":"Calculations!BO23","v":3435.0666666666666},{"$f":"Calculations!BP23","v":3435.0666666666666},{"$f":"Calculations!BQ23","v":3435.0666666666666},{"$f":"Calculations!BR23","v":25776.023816666668},{"$f":"Calculations!BS23","v":3435.0666666666666},{"$f":"Calculations!BT23","v":3435.0666666666666},{"$f":"Calculations!BU23","v":3435.0666666666666},{"$f":"Calculations!BV23","v":3435.0666666666666},{"$f":"Calculations!BW23","v":3435.0666666666666},{"$f":"Calculations!BX23","v":3435.0666666666666},{"$f":"Calculations!BY23","v":3435.0666666666666},{"$f":"Calculations!BZ23","v":3435.0666666666666},{"$f":"Calculations!CA23","v":3435.0666666666666}]
[{"$f":"Calculations!A24","v":"ILR"},{"$f":"Calculations!E24","v":"B Medical TCW 2000 AC*"},{"$f":"Calculations!F24","v":60},{"$f":"IF(Calculations!G24=0,\"No\",\"Yes\")","v":"Yes"},{"$f":"LOOKUP(C24,List!$E$3:$E$12,List!$F$3:$F$12)","v":" 60-89"},{"$f":"Calculations!AU24*ROUNDUP('Total Solution Costs'!$B$2/'Cash Flow data'!H24,0)","v":10},{"$f":"Calculations!H24","v":"Yes"},{"$f":"Calculations!I24","v":10},"NO",{"$f":"Calculations!CX24","v":64274.999306666701},{"$f":"Calculations!BH24","v":41309.099306666671},{"$f":"Calculations!BI24","v":2551.7666666666669},{"$f":"Calculations!BJ24","v":2551.7666666666669},{"$f":"Calculations!BK24","v":2551.7666666666669},{"$f":"Calculations!BL24","v":2551.7666666666669},{"$f":"Calculations!BM24","v":2551.7666666666669},{"$f":"Calculations!BN24","v":2551.7666666666669},{"$f":"Calculations!BO24","v":2551.7666666666669},{"$f":"Calculations!BP24","v":2551.7666666666669},{"$f":"Calculations!BQ24","v":2551.7666666666669},{"$f":"Calculations!BR24","v":41309.099306666671},{"$f":"Calculations!BS24","v":2551.7666666666669},{"$f":"Calculations!BT24","v":2551.7666666666669},{"$f":"Calculations!BU24","v":2551.7666666666669},{"$f":"Calculations!BV24","v":2551.7666666666669},{"$f":"Calculations!BW24","v":2551.7666666666669},{"$f":"Calculations!BX24","v":2551.7666666666669},{"$f":"Calculations!BY24","v":2551.7666666666669},{"$f":"Calculations!BZ24","v":2551.7666666666669},{"$f":"Calculations!CA24","v":2551.7666666666669}]
[{"$f":"Calculations!A25","v":"ILR"},{"$f":"Calculations!E25","v":"B Medical TCW 3000 AC"},{"$f":"Calculations!F25","v":150},{"$f":"IF(Calculations!G25=0,\"No\",\"Yes\")","v":"Yes"},{"$f":"LOOKUP(C25,List!$E$3:$E$12,List!$F$3:$F$12)","v":"120 +"},{"$f":"Calculations!AU25*ROUNDUP('Total Solution Costs'!$B$2/'Cash Flow data'!H25,0)","v":10},{"$f":"Calculations!H25","v":"No"},{"$f":"Calculations!I25","v":10},"NO",{"$f":"Calculations!CX25","v":58412.904846666701},{"$f":"Calculations!BH25","v":38732.00484666667},{"$f":"Calculations!BI25","v":2186.7666666666669},{"$f":"Calculations!BJ25","v":2186.7666666666669},{"$f":"Calculations!BK25","v":2186.7666666666669},{"$f":"Calculations!BL25","v":2186.7666666666669},{"$f":"Calculations!BM25","v":2186.7666666666669},{"$f":"Calculations!BN25","v":2186.7666666666669},{"$f":"Calculations!BO25","v":2186.7666666666669},{"$f":"Calculations!BP25","v":2186.7666666666669},{"$f":"Calculations!BQ25","v":2186.7666666666669},{"$f":"Calculations!BR25","v":38732.00484666667},{"$f":"Calculations!BS25","v":2186.7666666666669},{"$f":"Calculations!BT25","v":2186.7666666666669},{"$f":"Calculations!BU25","v":2186.7666666666669},{"$f":"Calculations!BV25","v":2186.7666666666669},{"$f":"Calculations!BW25","v":2186.7666666666669},{"$f":"Calculations!BX25","v":2186.7666666666669},{"$f":"Calculations!BY25","v":2186.7666666666669},{"$f":"Calculations!BZ25","v":2186.7666666666669},{"$f":"Calculations!CA25","v":2186.7666666666669}]
[{"$f":"Calculations!A26","v":"ILR"},{"$f":"Calculations!E26","v":"Vestfrost VLS 400"},{"$f":"Calculations!F26","v":216},{"$f":"IF(Calculations!G26=0,\"No\",\"Yes\")","v":"No"},{"$f":"LOOKUP(C26,List!$E$3:$E$12,List!$F$3:$F$12)","v":"120 +"},{"$f":"Calculations!AU26*ROUNDUP('Total Solution Costs'!$B$2/'Cash Flow data'!H26,0)","v":10},{"$f":"Calculations!H26","v":"No"},{"$f":"Calculations!I26","v":10},"NO",{"$f":"Calculations!CX26","v":37888.015636666663},{"$f":"Calculations!BH26","v":21820.615636666666},{"$f":"Calculations!BI26","v":1785.2666666666664},{"$f":"Calculations!BJ26","v":1785.2666666666664},{"$f":"Calculations!BK26","v":1785.2666666666664},{"$f":"Calculations!BL26","v":1785.2666666666664},{"$f":"Calculations!BM26","v":1785.2666666666664},{"$f":"Calculations!BN26","v":1785.2666666666664},{"$f":"Calculations!BO26","v":1785.2666666666664},{"$f":"Calculations!BP26","v":1785.2666666666664},{"$f":"Calculations!BQ26","v":1785.2666666666664},{"$f":"Calculations!BR26","v":21820.615636666666},{"$f":"Calculations!BS26","v":1785.2666666666664},{"$f":"Calculations!BT26","v":1785.2666666666664},{"$f":"Calculations!BU26","v":1785.2666666666664},{"$f":"Calculations!BV26","v":1785.2666666666664},{"$f":"Calculations!BW26","v":1785.2666666666664},{"$f":"Calculations!BX26","v":1785.2666666666664},{"$f":"Calculations!BY26","v":1785.2666666666664},{"$f":"Calculations!BZ26","v":1785.2666666666664},{"$f":"Calculations!CA26","v":1785.2666666666664}]
[{"$f":"Calculations!A27","v":"ILR"},{"$f":"Calculations!E27","v":"Vestfrost MK 144"},{"$f":"Calculations!F27","v":48},{"$f":"IF(Calculations!G27=0,\"No\",\"Yes\")","v":"No"},{"$f":"LOOKUP(C27,List!$E$3:$E$12,List!$F$3:$F$12)","v":" 30-59"},{"$f":"Calculations!AU27*ROUNDUP('Total Solution Costs'!$B$2/'Cash Flow data'!H27,0)","v":10},{"$f":"Calculations!H27","v":"No"},{"$f":"Calculations!I27","v":10},"NO",{"$f":"Calculations!CX27","v":46032.074816666645},{"$f":"Calculations!BH27","v":20241.074816666667},{"$f":"Calculations!BI27","v":2865.6666666666661},{"$f":"Calculations!BJ27","v":2865.6666666666661},{"$f":"Calculations!BK27","v":2865.6666666666661},{"$f":"Calculations!BL27","v":2865.6666666666661},{"$f":"Calculations!BM27","v":2865.6666666666661},{"$f":"Calculations!BN27","v":2865.6666666666661},{"$f":"Calculations!BO27","v":2865.6666666666661},{"$f":"Calculations!BP27","v":2865.6666666666661},{"$f":"Calculations!BQ27","v":2865.6666666666661},{"$f":"Calculations!BR27","v":20241.074816666667},{"$f":"Calculations!BS27","v":2865.6666666666661},{"$f":"Calculations!BT27","v":2865.6666666666661},{"$f":"Calculations!BU27","v":2865.6666666666661},{"$f":"Calculations!BV27","v":2865.6666666666661},{"$f":"Calculations!BW27","v":2865.6666666666661},{"$f":"Calculations!BX27","v":2865.6666666666661},{"$f":"Calculations!BY27","v":2865.6666666666661},{"$f":"Calculations!BZ27","v":2865.6666666666661},{"$f":"Calculations!CA27","v":2865.6666666666661}]
[{"$f":"Calculations!A28","v":"ILR"},{"$f":"Calculations!E28","v":"Vestfrost VLS 200"},{"$f":"Calculations!F28","v":100},{"$f":"IF(Calculations!G28=0,\"No\",\"Yes\")","v":"Yes"},{"$f":"LOOKUP(C28,List!$E$3:$E$12,List!$F$3:$F$12)","v":" 90-120"},{"$f":"Calculations!AU28*ROUNDUP('Total Solution Costs'!$B$2/'Cash Flow data'!H28,0)","v":10},{"$f":"Calculations!H28","v":"No"},{"$f":"Calculations!I28","v":10},"NO",{"$f":"Calculations!CX28","v":34453.889916666667},{"$f":"Calculations!BH28","v":19109.189916666666},{"$f":"Calculations!BI28","v":1704.9666666666667},{"$f":"Calculations!BJ28","v":1704.9666666666667},{"$f":"Calculations!BK28","v":1704.9666666666667},{"$f":"Calculations!BL28","v":1704.9666666666667},{"$f":"Calculations!BM28","v":1704.9666666666667},{"$f":"Calculations!BN28","v":1704.9666666666667},{"$f":"Calculations!BO28","v":1704.9666666666667},{"$f":"Calculations!BP28","v":1704.9666666666667},{"$f":"Calculations!BQ28","v":1704.9666666666667},{"$f":"Calculations!BR28","v":19109.189916666666},{"$f":"Calculations!BS28","v":1704.9666666666667},{"$f":"Calculations!BT28","v":1704.9666666666667},{"$f":"Calculations!BU28","v":1704.9666666666667},{"$f":"Calculations!BV28","v":1704.9666666666667},{"$f":"Calculations!BW28","v":1704.9666666666667},{"$f":"Calculations!BX28","v":1704.9666666666667},{"$f":"Calculations!BY28","v":1704.9666666666667},{"$f":"Calculations!BZ28","v":1704.9666666666667},{"$f":"Calculations!CA28","v":1704.9666666666667}]
[{"$f":"Calculations!A29","v":"ILR"},{"$f":"Calculations!E29","v":"Vestfrost VLS 300"},{"$f":"Calculations!F29","v":148},{"$f":"IF(Calculations!G29=0,\"No\",\"Yes\")","v":"No"},{"$f":"LOOKUP(C29,List!$E$3:$E$12,List!$F$3:$F$12)","v":"120 +"},{"$f":"Calculations!AU29*ROUNDUP('Total Solution Costs'!$B$2/'Cash Flow data'!H29,0)","v":10},{"$f":"Calculations!H29","v":"No"},{"$f":"Calculations!I29","v":10},"NO",{"$f":"Calculations!CX29","v":34904.908296666668},{"$f":"Calculations!BH29","v":19888.708296666668},{"$f":"Calculations!BI29","v":1668.4666666666667},{"$f":"Calculations!BJ29","v":1668.4666666666667},{"$f":"Calculations!BK29","v":1668.4666666666667},{"$f":"Calculations!BL29","v":1668.4666666666667},{"$f":"Calculations!BM29","v":1668.4666666666667},{"$f":"Calculations!BN29","v":1668.4666666666667},{"$f":"Calculations!BO29","v":1668.4666666666667},{"$f":"Calculations!BP29","v":1668.4666666666667},{"$f":"Calculations!BQ29","v":1668.4666666666667},{"$f":"Calculations!BR29","v":19888.708296666668},{"$f":"Calculations!BS29","v":1668.4666666666667},{"$f":"Calculations!BT29","v":1668.4666666666667},{"$f":"Calculations!BU29","v":1668.4666666666667},{"$f":"Calculations!BV29","v":1668.4666666666667},{"$f":"Calculations!BW29","v":1668.4666666666667},{"$f":"Calculations!BX29","v":1668.4666666666667},{"$f":"Calculations!BY29","v":1668.4666666666667},{"$f":"Calculations!BZ29","v":1668.4666666666667},{"$f":"Calculations!CA29","v":1668.4666666666667}]
[{"$f":"Calculations!A30","v":"ILR"},{"$f":"Calculations!E30","v":"Vestfrost VLS 350"},{"$f":"Calculations!F30","v":196},{"$f":"IF(Calculations!G30=0,\"No\",\"Yes\")","v":"No"},{"$f":"LOOKUP(C30,List!$E$3:$E$12,List!$F$3:$F$12)","v":"120 +"},{"$f":"Calculations!AU30*ROUNDUP('Total Solution Costs'!$B$2/'Cash Flow data'!H30,0)","v":10},{"$f":"Calculations!H30","v":"No"},{"$f":"Calculations!I30","v":10},"NO",{"$f":"Calculations!CX30","v":35571.240636666669},{"$f":"Calculations!BH30","v":20883.540636666665},{"$f":"Calculations!BI30","v":1631.9666666666667},{"$f":"Calculations!BJ30","v":1631.9666666666667},{"$f":"Calculations!BK30","v":1631.9666666666667},{"$f":"Calculations!BL30","v":1631.9666666666667},{"$f":"Calculations!BM30","v":1631.9666666666667},{"$f":"Calculations!BN30","v":1631.9666666666667},{"$f":"Calculations!BO30","v":1631.9666666666667},{"$f":"Calculations!BP30","v":1631.9666666666667},{"$f":"Calculations!BQ30","v":1631.9666666666667},{"$f":"Calculations!BR30","v":20883.540636666665},{"$f":"Calculations!BS30","v":1631.9666666666667},{"$f":"Calculations!BT30","v":1631.9666666666667},{"$f":"Calculations!BU30","v":1631.9666666666667},{"$f":"Calculations!BV30","v":1631.9666666666667},{"$f":"Calculations!BW30","v":1631.9666666666667},{"$f":"Calculations!BX30","v":1631.9666666666667},{"$f":"Calculations!BY30","v":1631.9666666666667},{"$f":"Calculations!BZ30","v":1631.9666666666667},{"$f":"Calculations!CA30","v":1631.9666666666667}]
[{"$f":"Calculations!A31","v":"ILR"},{"$f":"Calculations!E31","v":"Haier HBC-110"},{"$f":"Calculations!F31","v":52.5},{"$f":"IF(Calculations!G31=0,\"No\",\"Yes\")","v":"No"},{"$f":"LOOKUP(C31,List!$E$3:$E$12,List!$F$3:$F$12)","v":" 30-59"},{"$f":"Calculations!AU31*ROUNDUP('Total Solution Costs'!$B$2/'Cash Flow data'!H31,0)","v":10},{"$f":"Calculations!H31","v":"No"},{"$f":"Calculations!I31","v":10},"NO",{"$f":"Calculations!CX31","v":36619.83633333334},{"$f":"Calculations!BH31","v":18055.836333333333},{"$f":"Calculations!BI31","v":2062.6666666666665},{"$f":"Calculations!BJ31","v":2062.6666666666665},{"$f":"Calculations!BK31","v":2062.6666666666665},{"$f":"Calculations!BL31","v":2062.6666666666665},{"$f":"Calculations!BM31","v":2062.6666666666665},{"$f":"Calculations!BN31","v":2062.6666666666665},{"$f":"Calculations!BO31","v":2062.6666666666665},{"$f":"Calculations!BP31","v":2062.6666666666665},{"$f":"Calculations!BQ31","v":2062.6666666666665},{"$f":"Calculations!BR31","v":18055.836333333333},{"$f":"Calculations!BS31","v":2062.6666666666665},{"$f":"Calculations!BT31","v":2062.6666666666665},{"$f":"Calculations!BU31","v":2062.6666666666665},{"$f":"Calculations!BV31","v":2062.6666666666665},{"$f":"Calculations!BW31","v":2062.6666666666665},{"$f":"Calculations!BX31","v":2062.6666666666665},{"$f":"Calculations!BY31","v":2062.6666666666665},{"$f":"Calculations!BZ31","v":2062.6666666666665},{"$f":"Calculations!CA31","v":2062.6666666666665}]
[{"$f":"Calculations!A32","v":"ILR"},{"$f":"Calculations!E32","v":"Zero ZLF 100 AC*"},{"$f":"Calculations!F32","v":99},{"$f":"IF(Calculations!G32=0,\"No\",\"Yes\")","v":"No"},{"$f":"LOOKUP(C32,List!$E$3:$E$12,List!$F$3:$F$12)","v":" 90-120"},{"$f":"Calculations!AU32*ROUNDUP('Total Solution Costs'!$B$2/'Cash Flow data'!H32,0)","v":10},{"$f":"Calculations!H32","v":"Yes"},{"$f":"Calculations!I32","v":10},"NO",{"$f":"Calculations!CX32","v":60896.866666666676},{"$f":"Calculations!BH32","v":37339.666666666672},{"$f":"Calculations!BI32","v":2617.4666666666667},{"$f":"Calculations!BJ32","v":2617.4666666666667},{"$f":"Calculations!BK32","v":2617.4666666666667},{"$f":"Calculations!BL32","v":2617.4666666666667},{"$f":"Calculations!BM32","v":2617.4666666666667},{"$f":"Calculations!BN32","v":2617.4666666666667},{"$f":"Calculations!BO32","v":2617.4666666666667},{"$f":"Calculations!BP32","v":2617.4666666666667},{"$f":"Calculations!BQ32","v":2617.4666666666667},{"$f":"Calculations!BR32","v":37339.666666666672},{"$f":"Calculations!BS32","v":2617.4666666666667},{"$f":"Calculations!BT32","v":2617.4666666666667},{"$f":"Calculations!BU32","v":2617.4666666666667},{"$f":"Calculations!BV32","v":2617.4666666666667},{"$f":"Calculations!BW32","v":2617.4666666666667},{"$f":"Calculations!BX32","v":2617.4666666666667},{"$f":"Calculations!BY32","v":2617.4666666666667},{"$f":"Calculations!BZ32","v":2617.4666666666667},{"$f":"Calculations!CA32","v":2617.4666666666667}]
[{"$f":"Calculations!A33","v":"ILR"},{"$f":"Calculations!E33","v":"Haier HBC-340"},{"$f":"Calculations!F33","v":211},{"$f":"IF(Calculations!G33=0,\"No\",\"Yes\")","v":"No"},{"$f":"LOOKUP(C33,List!$E$3:$E$12,List!$F$3:$F$12)","v":"120 +"},{"$f":"Calculations!AU33*ROUNDUP('Total Solution Costs'!$B$2/'Cash Flow data'!H33,0)","v":10},{"$f":"Calculations!H33","v":"No"},{"$f":"Calculations!I33","v":10},"NO",{"$f":"Calculations!CX33","v":47436.954666666665},{"$f":"Calculations!BH33","v":23222.754666666664},{"$f":"Calculations!BI33","v":2690.4666666666667},{"$f":"Calculations!BJ33","v":2690.4666666666667},{"$f":"Calculations!BK33","v":2690.4666666666667},{"$f":"Calculations!BL33","v":2690.4666666666667},{"$f":"Calculations!BM33","v":2690.4666666666667},{"$f":"Calculations!BN33","v":2690.4666666666667},{"$f":"Calculations!BO33","v":2690.4666666666667},{"$f":"Calculations!BP33","v":2690.4666666666667},{"$f":"Calculations!BQ33","v":2690.4666666666667},{"$f":"Calculations!BR33","v":23222.754666666664},{"$f":"Calculations!BS33","v":2690.4666666666667},{"$f":"Calculations!BT33","v":2690.4666666666667},{"$f":"Calculations!BU33","v":2690.4666666666667},{"$f":"Calculations!BV33","v":2690.4666666666667},{"$f":"Calculations!BW33","v":2690.4666666666667},{"$f":"Calculations!BX33","v":2690.4666666666667},{"$f":"Calculations!BY33","v":2690.4666666666667},{"$f":"Calculations!BZ33","v":2690.4666666666667},{"$f":"Calculations!CA33","v":2690.4666666666667}]
[{"$f":"Calculations!A34","v":"ILR"},{"$f":"Calculations!E34","v":"Zero ZLF 150 AC*"},{"$f":"Calculations!F34","v":128},{"$f":"IF(Calculations!G34=0,\"No\",\"Yes\")","v":"No"},{"$f":"LOOKUP(C34,List!$E$3:$E$12,List!$F$3:$F$12)","v":"120 +"},{"$f":"Calculations!AU34*ROUNDUP('Total Solution Costs'!$B$2/'Cash Flow data'!H34,0)","v":10},{"$f":"Calculations!H34","v":"Yes"},{"$f":"Calculations!I34","v":10},"NO",{"$f":"Calculations!CX34","v":65472.666666666657},{"$f":"Calculations!BH34","v":41784.066666666666},{"$f":"Calculations!BI34","v":2632.0666666666671},{"$f":"Calculations!BJ34","v":2632.0666666666671},{"$f":"Calculations!BK34","v":2632.0666666666671},{"$f":"Calculations!BL34","v":2632.0666666666671},{"$f":"Calculations!BM34","v":2632.0666666666671},{"$f":"Calculations!BN34","v":2632.0666666666671},{"$f":"Calculations!BO34","v":2632.0666666666671},{"$f":"Calculations!BP34","v":2632.0666666666671},{"$f":"Calculations!BQ34","v":2632.0666666666671},{"$f":"Calculations!BR34","v":41784.066666666666},{"$f":"Calculations!BS34","v":2632.0666666666671},{"$f":"Calculations!BT34","v":2632.0666666666671},{"$f":"Calculations!BU34","v":2632.0666666666671},{"$f":"Calculations!BV34","v":2632.0666666666671},{"$f":"Calculations!BW34","v":2632.0666666666671},{"$f":"Calculations!BX34","v":2632.0666666666671},{"$f":"Calculations!BY34","v":2632.0666666666671},{"$f":"Calculations!BZ34","v":2632.0666666666671},{"$f":"Calculations!CA34","v":2632.0666666666671}]
[{"$f":"Calculations!A35","v":"ILR"},{"$f":"Calculations!E35","v":"Godrej & Boyce  GVR 50 AC*"},{"$f":"Calculations!F35","v":46.8},{"$f":"IF(Calculations!G35=0,\"No\",\"Yes\")","v":"No"},{"$f":"LOOKUP(C35,List!$E$3:$E$12,List!$F$3:$F$12)","v":" 30-59"},{"$f":"Calculations!AU35*ROUNDUP('Total Solution Costs'!$B$2/'Cash Flow data'!H35,0)","v":10},{"$f":"Calculations!H35","v":"Yes"},{"$f":"Calculations!I35","v":10},"NO",{"$f":"Calculations!CX35","v":41688.866666666669},{"$f":"Calculations!BH35","v":27329.666666666668},{"$f":"Calculations!BI35","v":1595.4666666666665},{"$f":"Calculations!BJ35","v":1595.4666666666665},{"$f":"Calculations!BK35","v":1595.4666666666665},{"$f":"Calculations!BL35","v":1595.4666666666665},{"$f":"Calculations!BM35","v":1595.4666666666665},{"$f":"Calculations!BN35","v":1595.4666666666665},{"$f":"Calculations!BO35","v":1595.4666666666665},{"$f":"Calculations!BP35","v":1595.4666666666665},{"$f":"Calculations!BQ35","v":1595.4666666666665},{"$f":"Calculations!BR35","v":27329.666666666668},{"$f":"Calculations!BS35","v":1595.4666666666665},{"$f":"Calculations!BT35","v":1595.4666666666665},{"$f":"Calculations!BU35","v":1595.4666666666665},{"$f":"Calculations!BV35","v":1595.4666666666665},{"$f":"Calculations!BW35","v":1595.4666666666665},{"$f":"Calculations!BX35","v":1595.4666666666665},{"$f":"Calculations!BY35","v":1595.4666666666665},{"$f":"Calculations!BZ35","v":1595.4666666666665},{"$f":"Calculations!CA35","v":1595.4666666666665}]
[{"$f":"Calculations!A36","v":"ILR"},{"$f":"Calculations!E36","v":"Godrej & Boyce  GVR 100 AC*"},{"$f":"Calculations!F36","v":99},{"$f":"IF(Calculations!G36=0,\"No\",\"Yes\")","v":"No"},{"$f":"LOOKUP(C36,List!$E$3:$E$12,List!$F$3:$F$12)","v":" 90-120"},{"$f":"Calculations!AU36*ROUNDUP('Total Solution Costs'!$B$2/'Cash Flow data'!H36,0)","v":10},{"$f":"Calculations!H36","v":"Yes"},{"$f":"Calculations!I36","v":10},"NO",{"$f":"Calculations!CX36","v":51635.866666666647},{"$f":"Calculations!BH36","v":36028.366666666669},{"$f":"Calculations!BI36","v":1734.1666666666665},{"$f":"Calculations!BJ36","v":1734.1666666666665},{"$f":"Calculations!BK36","v":1734.1666666666665},{"$f":"Calculations!BL36","v":1734.1666666666665},{"$f":"Calculations!BM36","v":1734.1666666666665},{"$f":"Calculations!BN36","v":1734.1666666666665},{"$f":"Calculations!BO36","v":1734.1666666666665},{"$f":"Calculations!BP36","v":1734.1666666666665},{"$f":"Calculations!BQ36","v":1734.1666666666665},{"$f":"Calculations!BR36","v":36028.366666666669},{"$f":"Calculations!BS36","v":1734.1666666666665},{"$f":"Calculations!BT36","v":1734.1666666666665},{"$f":"Calculations!BU36","v":1734.1666666666665},{"$f":"Calculations!BV36","v":1734.1666666666665},{"$f":"Calculations!BW36","v":1734.1666666666665},{"$f":"Calculations!BX36","v":1734.1666666666665},{"$f":"Calculations!BY36","v":1734.1666666666665},{"$f":"Calculations!BZ36","v":1734.1666666666665},{"$f":"Calculations!CA36","v":1734.1666666666665}]
[{"$f":"Calculations!A37","v":"ILR"},{"$f":"Calculations!E37","v":"Zero ZLF 30 AC*"},{"$f":"Calculations!F37","v":27},{"$f":"IF(Calculations!G37=0,\"No\",\"Yes\")","v":"No"},{"$f":"LOOKUP(C37,List!$E$3:$E$12,List!$F$3:$F$12)","v":" 1-29"},{"$f":"Calculations!AU37*ROUNDUP('Total Solution Costs'!$B$2/'Cash Flow data'!H37,0)","v":10},{"$f":"Calculations!H37","v":"Yes"},{"$f":"Calculations!I37","v":10},"NO",{"$f":"Calculations!CX37","v":50061.366666666654},{"$f":"Calculations!BH37","v":28330.626666666667},{"$f":"Calculations!BI37","v":2414.5266666666666},{"$f":"Calculations!BJ37","v":2414.5266666666666},{"$f":"Calculations!BK37","v":2414.5266666666666},{"$f":"Calculations!BL37","v":2414.5266666666666},{"$f":"Calculations!BM37","v":2414.5266666666666},{"$f":"Calculations!BN37","v":2414.5266666666666},{"$f":"Calculations!BO37","v":2414.5266666666666},{"$f":"Calculations!BP37","v":2414.5266666666666},{"$f":"Calculations!BQ37","v":2414.5266666666666},{"$f":"Calculations!BR37","v":28330.626666666667},{"$f":"Calculations!BS37","v":2414.5266666666666},{"$f":"Calculations!BT37","v":2414.5266666666666},{"$f":"Calculations!BU37","v":2414.5266666666666},{"$f":"Calculations!BV37","v":2414.5266666666666},{"$f":"Calculations!BW37","v":2414.5266666666666},{"$f":"Calculations!BX37","v":2414.5266666666666},{"$f":"Calculations!BY37","v":2414.5266666666666},{"$f":"Calculations!BZ37","v":2414.5266666666666},{"$f":"Calculations!CA37","v":2414.5266666666666}]
[{"$f":"Calculations!A38","v":"ILR"},{"$f":"Calculations!E38","v":"Vestfrost VLS 200A*"},{"$f":"Calculations!F38","v":60},{"$f":"IF(Calculations!G38=0,\"No\",\"Yes\")","v":"No"},{"$f":"LOOKUP(C38,List!$E$3:$E$12,List!$F$3:$F$12)","v":" 60-89"},{"$f":"Calculations!AU38*ROUNDUP('Total Solution Costs'!$B$2/'Cash Flow data'!H38,0)","v":10},{"$f":"Calculations!H38","v":"Yes"},{"$f":"Calculations!I38","v":10},"NO",{"$f":"Calculations!CX38","v":34768.661246666656},{"$f":"Calculations!BH38","v":20343.761246666665},{"$f":"Calculations!BI38","v":1602.7666666666664},{"$f":"Calculations!BJ38","v":1602.7666666666664},{"$f":"Calculations!BK38","v":1602.7666666666664},{"$f":"Calculations!BL38","v":1602.7666666666664},{"$f":"Calculations!BM38","v":1602.7666666666664},{"$f":"Calculations!BN38","v":1602.7666666666664},{"$f":"Calculations!BO38","v":1602.7666666666664},{"$f":"Calculations!BP38","v":1602.7666666666664},{"$f":"Calculations!BQ38","v":1602.7666666666664},{"$f":"Calculations!BR38","v":20343.761246666665},{"$f":"Calculations!BS38","v":1602.7666666666664},{"$f":"Calculations!BT38","v":1602.7666666666664},{"$f":"Calculations!BU38","v":1602.7666666666664},{"$f":"Calculations!BV38","v":1602.7666666666664},{"$f":"Calculations!BW38","v":1602.7666666666664},{"$f":"Calculations!BX38","v":1602.7666666666664},{"$f":"Calculations!BY38","v":1602.7666666666664},{"$f":"Calculations!BZ38","v":1602.7666666666664},{"$f":"Calculations!CA38","v":1602.7666666666664}]
[{"$f":"Calculations!A39","v":"ILR"},{"$f":"Calculations!E39","v":"Vestfrost VLS 300A*"},{"$f":"Calculations!F39","v":98},{"$f":"IF(Calculations!G39=0,\"No\",\"Yes\")","v":"No"},{"$f":"LOOKUP(C39,List!$E$3:$E$12,List!$F$3:$F$12)","v":" 90-120"},{"$f":"Calculations!AU39*ROUNDUP('Total Solution Costs'!$B$2/'Cash Flow data'!H39,0)","v":10},{"$f":"Calculations!H39","v":"Yes"},{"$f":"Calculations!I39","v":10},"NO",{"$f":"Calculations!CX39","v":37550.278816666665},{"$f":"Calculations!BH39","v":22336.978816666669},{"$f":"Calculations!BI39","v":1690.3666666666666},{"$f":"Calculations!BJ39","v":1690.3666666666666},{"$f":"Calculations!BK39","v":1690.3666666666666},{"$f":"Calculations!BL39","v":1690.3666666666666},{"$f":"Calculations!BM39","v":1690.3666666666666},{"$f":"Calculations!BN39","v":1690.3666666666666},{"$f":"Calculations!BO39","v":1690.3666666666666},{"$f":"Calculations!BP39","v":1690.3666666666666},{"$f":"Calculations!BQ39","v":1690.3666666666666},{"$f":"Calculations!BR39","v":22336.978816666669},{"$f":"Calculations!BS39","v":1690.3666666666666},{"$f":"Calculations!BT39","v":1690.3666666666666},{"$f":"Calculations!BU39","v":1690.3666666666666},{"$f":"Calculations!BV39","v":1690.3666666666666},{"$f":"Calculations!BW39","v":1690.3666666666666},{"$f":"Calculations!BX39","v":1690.3666666666666},{"$f":"Calculations!BY39","v":1690.3666666666666},{"$f":"Calculations!BZ39","v":1690.3666666666666},{"$f":"Calculations!CA39","v":1690.3666666666666}]
[{"$f":"Calculations!A40","v":"ILR"},{"$f":"Calculations!E40","v":"Vestfrost VLS 350A*"},{"$f":"Calculations!F40","v":127},{"$f":"IF(Calculations!G40=0,\"No\",\"Yes\")","v":"No"},{"$f":"LOOKUP(C40,List!$E$3:$E$12,List!$F$3:$F$12)","v":"120 +"},{"$f":"Calculations!AU40*ROUNDUP('Total Solution Costs'!$B$2/'Cash Flow data'!H40,0)","v":10},{"$f":"Calculations!H40","v":"Yes"},{"$f":"Calculations!I40","v":10},"NO",{"$f":"Calculations!CX40","v":38276.256596666659},{"$f":"Calculations!BH40","v":23522.856596666672},{"$f":"Calculations!BI40","v":1639.2666666666664},{"$f":"Calculations!BJ40","v":1639.2666666666664},{"$f":"Calculations!BK40","v":1639.2666666666664},{"$f":"Calculations!BL40","v":1639.2666666666664},{"$f":"Calculations!BM40","v":1639.2666666666664},{"$f":"Calculations!BN40","v":1639.2666666666664},{"$f":"Calculations!BO40","v":1639.2666666666664},{"$f":"Calculations!BP40","v":1639.2666666666664},{"$f":"Calculations!BQ40","v":1639.2666666666664},{"$f":"Calculations!BR40","v":23522.856596666672},{"$f":"Calculations!BS40","v":1639.2666666666664},{"$f":"Calculations!BT40","v":1639.2666666666664},{"$f":"Calculations!BU40","v":1639.2666666666664},{"$f":"Calculations!BV40","v":1639.2666666666664},{"$f":"Calculations!BW40","v":1639.2666666666664},{"$f":"Calculations!BX40","v":1639.2666666666664},{"$f":"Calculations!BY40","v":1639.2666666666664},{"$f":"Calculations!BZ40","v":1639.2666666666664},{"$f":"Calculations!CA40","v":1639.2666666666664}]
[{"$f":"Calculations!A41","v":"ILR"},{"$f":"Calculations!E41","v":"Vestfrost VLS 400A*"},{"$f":"Calculations!F41","v":145},{"$f":"IF(Calculations!G41=0,\"No\",\"Yes\")","v":"No"},{"$f":"LOOKUP(C41,List!$E$3:$E$12,List!$F$3:$F$12)","v":"120 +"},{"$f":"Calculations!AU41*ROUNDUP('Total Solution Costs'!$B$2/'Cash Flow data'!H41,0)","v":10},{"$f":"Calculations!H41","v":"Yes"},{"$f":"Calculations!I41","v":10},"NO",{"$f":"Calculations!CX41","v":39559.018066666657},{"$f":"Calculations!BH41","v":24477.11806666667},{"$f":"Calculations!BI41","v":1675.7666666666664},{"$f":"Calculations!BJ41","v":1675.7666666666664},{"$f":"Calculations!BK41","v":1675.7666666666664},{"$f":"Calculations!BL41","v":1675.7666666666664},{"$f":"Calculations!BM41","v":1675.7666666666664},{"$f":"Calculations!BN41","v":1675.7666666666664},{"$f":"Calculations!BO41","v":1675.7666666666664},{"$f":"Calculations!BP41","v":1675.7666666666664},{"$f":"Calculations!BQ41","v":1675.7666666666664},{"$f":"Calculations!BR41","v":24477.11806666667},{"$f":"Calculations!BS41","v":1675.7666666666664},{"$f":"Calculations!BT41","v":1675.7666666666664},{"$f":"Calculations!BU41","v":1675.7666666666664},{"$f":"Calculations!BV41","v":1675.7666666666664},{"$f":"Calculations!BW41","v":1675.7666666666664},{"$f":"Calculations!BX41","v":1675.7666666666664},{"$f":"Calculations!BY41","v":1675.7666666666664},{"$f":"Calculations!BZ41","v":1675.7666666666664},{"$f":"Calculations!CA41","v":1675.7666666666664}]
[{"$f":"Calculations!A42","v":"ILR"},{"$f":"Calculations!E42","v":"B Medical TCW 4000 AC*"},{"$f":"Calculations!F42","v":240},{"$f":"IF(Calculations!G42=0,\"No\",\"Yes\")","v":"No"},{"$f":"LOOKUP(C42,List!$E$3:$E$12,List!$F$3:$F$12)","v":"120 +"},{"$f":"Calculations!AU42*ROUNDUP('Total Solution Costs'!$B$2/'Cash Flow data'!H42,0)","v":10},{"$f":"Calculations!H42","v":"Yes"},{"$f":"Calculations!I42","v":10},"NO",{"$f":"Calculations!CX42","v":70594.65737666667},{"$f":"Calculations!BH42","v":54330.157376666677},{"$f":"Calculations!BI42","v":1807.1666666666667},{"$f":"Calculations!BJ42","v":1807.1666666666667},{"$f":"Calculations!BK42","v":1807.1666666666667},{"$f":"Calculations!BL42","v":1807.1666666666667},{"$f":"Calculations!BM42","v":1807.1666666666667},{"$f":"Calculations!BN42","v":1807.1666666666667},{"$f":"Calculations!BO42","v":1807.1666666666667},{"$f":"Calculations!BP42","v":1807.1666666666667},{"$f":"Calculations!BQ42","v":1807.1666666666667},{"$f":"Calculations!BR42","v":54330.157376666677},{"$f":"Calculations!BS42","v":1807.1666666666667},{"$f":"Calculations!BT42","v":1807.1666666666667},{"$f":"Calculations!BU42","v":1807.1666666666667},{"$f":"Calculations!BV42","v":1807.1666666666667},{"$f":"Calculations!BW42","v":1807.1666666666667},{"$f":"Calculations!BX42","v":1807.1666666666667},{"$f":"Calculations!BY42","v":1807.1666666666667},{"$f":"Calculations!BZ42","v":1807.1666666666667},{"$f":"Calculations!CA42","v":1807.1666666666667}]
[{"$f":"Calculations!A43","v":"ILR"},{"$f":"Calculations!E43","v":"Vestfrost VLS 064 RF"},{"$f":"Calculations!F43","v":52.5},{"$f":"IF(Calculations!G43=0,\"No\",\"Yes\")","v":"Yes"},{"$f":"LOOKUP(C43,List!$E$3:$E$12,List!$F$3:$F$12)","v":" 30-59"},{"$f":"Calculations!AU43*ROUNDUP('Total Solution Costs'!$B$2/'Cash Flow data'!H43,0)","v":10},{"$f":"Calculations!H43","v":"No"},{"$f":"Calculations!I43","v":10},"NO",{"$f":"Calculations!CX43","v":43837.894376666663},{"$f":"Calculations!BH43","v":23302.894376666667},{"$f":"Calculations!BI43","v":2281.6666666666665},{"$f":"Calculations!BJ43","v":2281.6666666666665},{"$f":"Calculations!BK43","v":2281.6666666666665},{"$f":"Calculations!BL43","v":2281.6666666666665},{"$f":"Calculations!BM43","v":2281.6666666666665},{"$f":"Calculations!BN43","v":2281.6666666666665},{"$f":"Calculations!BO43","v":2281.6666666666665},{"$f":"Calculations!BP43","v":2281.6666666666665},{"$f":"Calculations!BQ43","v":2281.6666666666665},{"$f":"Calculations!BR43","v":23302.894376666667},{"$f":"Calculations!BS43","v":2281.6666666666665},{"$f":"Calculations!BT43","v":2281.6666666666665},{"$f":"Calculations!BU43","v":2281.6666666666665},{"$f":"Calculations!BV43","v":2281.6666666666665},{"$f":"Calculations!BW43","v":2281.6666666666665},{"$f":"Calculations!BX43","v":2281.6666666666665},{"$f":"Calculations!BY43","v":2281.6666666666665},{"$f":"Calculations!BZ43","v":2281.6666666666665},{"$f":"Calculations!CA43","v":2281.6666666666665}]
[{"$f":"Calculations!A44","v":"ILR"},{"$f":"Calculations!E44","v":"Dulas Solar VC 225 ILR*"},{"$f":"Calculations!F44","v":203.2},{"$f":"IF(Calculations!G44=0,\"No\",\"Yes\")","v":"No"},{"$f":"LOOKUP(C44,List!$E$3:$E$12,List!$F$3:$F$12)","v":"120 +"},{"$f":"Calculations!AU44*ROUNDUP('Total Solution Costs'!$B$2/'Cash Flow data'!H44,0)","v":10},{"$f":"Calculations!H44","v":"Yes"},{"$f":"Calculations!I44","v":10},"NO",{"$f":"Calculations!CX44","v":59437.866666666669},{"$f":"Calculations!BH44","v":43482.156666666669},{"$f":"Calculations!BI44","v":1772.8566666666666},{"$f":"Calculations!BJ44","v":1772.8566666666666},{"$f":"Calculations!BK44","v":1772.8566666666666},{"$f":"Calculations!BL44","v":1772.8566666666666},{"$f":"Calculations!BM44","v":1772.8566666666666},{"$f":"Calculations!BN44","v":1772.8566666666666},{"$f":"Calculations!BO44","v":1772.8566666666666},{"$f":"Calculations!BP44","v":1772.8566666666666},{"$f":"Calculations!BQ44","v":1772.8566666666666},{"$f":"Calculations!BR44","v":43482.156666666669},{"$f":"Calculations!BS44","v":1772.8566666666666},{"$f":"Calculations!BT44","v":1772.8566666666666},{"$f":"Calculations!BU44","v":1772.8566666666666},{"$f":"Calculations!BV44","v":1772.8566666666666},{"$f":"Calculations!BW44","v":1772.8566666666666},{"$f":"Calculations!BX44","v":1772.8566666666666},{"$f":"Calculations!BY44","v":1772.8566666666666},{"$f":"Calculations!BZ44","v":1772.8566666666666},{"$f":"Calculations!CA44","v":1772.8566666666666}]
[{"$f":"Calculations!A45","v":"ILR"},{"$f":"Calculations!E45","v":"Aucma CFD-50"},{"$f":"Calculations!F45","v":50},{"$f":"IF(Calculations!G45=0,\"No\",\"Yes\")","v":"No"},{"$f":"LOOKUP(C45,List!$E$3:$E$12,List!$F$3:$F$12)","v":" 30-59"},{"$f":"Calculations!AU45*ROUNDUP('Total Solution Costs'!$B$2/'Cash Flow data'!H45,0)","v":10},{"$f":"Calculations!H45","v":"No"},{"$f":"Calculations!I45","v":10},"NO",{"$f":"Calculations!CX45","v":52891.216666666667},{"$f":"Calculations!BH45","v":37218.016666666663},{"$f":"Calculations!BI45","v":1741.4666666666667},{"$f":"Calculations!BJ45","v":1741.4666666666667},{"$f":"Calculations!BK45","v":1741.4666666666667},{"$f":"Calculations!BL45","v":1741.4666666666667},{"$f":"Calculations!BM45","v":1741.4666666666667},{"$f":"Calculations!BN45","v":1741.4666666666667},{"$f":"Calculations!BO45","v":1741.4666666666667},{"$f":"Calculations!BP45","v":1741.4666666666667},{"$f":"Calculations!BQ45","v":1741.4666666666667},{"$f":"Calculations!BR45","v":37218.016666666663},{"$f":"Calculations!BS45","v":1741.4666666666667},{"$f":"Calculations!BT45","v":1741.4666666666667},{"$f":"Calculations!BU45","v":1741.4666666666667},{"$f":"Calculations!BV45","v":1741.4666666666667},{"$f":"Calculations!BW45","v":1741.4666666666667},{"$f":"Calculations!BX45","v":1741.4666666666667},{"$f":"Calculations!BY45","v":1741.4666666666667},{"$f":"Calculations!BZ45","v":1741.4666666666667},{"$f":"Calculations!CA45","v":1741.4666666666667}]
[{"$f":"Calculations!A46","v":"ILR"},{"$f":"Calculations!E46","v":"Godrej & Boyce  GVR 51 LITE AC*"},{"$f":"Calculations!F46","v":51},{"$f":"IF(Calculations!G46=0,\"No\",\"Yes\")","v":"No"},{"$f":"LOOKUP(C46,List!$E$3:$E$12,List!$F$3:$F$12)","v":" 30-59"},{"$f":"Calculations!AU46*ROUNDUP('Total Solution Costs'!$B$2/'Cash Flow data'!H46,0)","v":10},{"$f":"Calculations!H46","v":"Yes"},{"$f":"Calculations!I46","v":10},"NO",{"$f":"Calculations!CX46","v":56248.56666666668},{"$f":"Calculations!BH46","v":32165.766666666663},{"$f":"Calculations!BI46","v":2675.8666666666668},{"$f":"Calculations!BJ46","v":2675.8666666666668},{"$f":"Calculations!BK46","v":2675.8666666666668},{"$f":"Calculations!BL46","v":2675.8666666666668},{"$f":"Calculations!BM46","v":2675.8666666666668},{"$f":"Calculations!BN46","v":2675.8666666666668},{"$f":"Calculations!BO46","v":2675.8666666666668},{"$f":"Calculations!BP46","v":2675.8666666666668},{"$f":"Calculations!BQ46","v":2675.8666666666668},{"$f":"Calculations!BR46","v":32165.766666666663},{"$f":"Calculations!BS46","v":2675.8666666666668},{"$f":"Calculations!BT46","v":2675.8666666666668},{"$f":"Calculations!BU46","v":2675.8666666666668},{"$f":"Calculations!BV46","v":2675.8666666666668},{"$f":"Calculations!BW46","v":2675.8666666666668},{"$f":"Calculations!BX46","v":2675.8666666666668},{"$f":"Calculations!BY46","v":2675.8666666666668},{"$f":"Calculations!BZ46","v":2675.8666666666668},{"$f":"Calculations!CA46","v":2675.8666666666668}]
[{"$f":"Calculations!A47","v":"ILR"},{"$f":"Calculations!E47","v":"Godrej & Boyce  GVR 75 Lite*"},{"$f":"Calculations!F47","v":72.5},{"$f":"IF(Calculations!G47=0,\"No\",\"Yes\")","v":"No"},{"$f":"LOOKUP(C47,List!$E$3:$E$12,List!$F$3:$F$12)","v":" 60-89"},{"$f":"Calculations!AU47*ROUNDUP('Total Solution Costs'!$B$2/'Cash Flow data'!H47,0)","v":10},{"$f":"Calculations!H47","v":"Yes"},{"$f":"Calculations!I47","v":10},"NO",{"$f":"Calculations!CX47","v":43227.966666666645},{"$f":"Calculations!BH47","v":22890.066666666662},{"$f":"Calculations!BI47","v":2259.7666666666664},{"$f":"Calculations!BJ47","v":2259.7666666666664},{"$f":"Calculations!BK47","v":2259.7666666666664},{"$f":"Calculations!BL47","v":2259.7666666666664},{"$f":"Calculations!BM47","v":2259.7666666666664},{"$f":"Calculations!BN47","v":2259.7666666666664},{"$f":"Calculations!BO47","v":2259.7666666666664},{"$f":"Calculations!BP47","v":2259.7666666666664},{"$f":"Calculations!BQ47","v":2259.7666666666664},{"$f":"Calculations!BR47","v":22890.066666666662},{"$f":"Calculations!BS47","v":2259.7666666666664},{"$f":"Calculations!BT47","v":2259.7666666666664},{"$f":"Calculations!BU47","v":2259.7666666666664},{"$f":"Calculations!BV47","v":2259.7666666666664},{"$f":"Calculations!BW47","v":2259.7666666666664},{"$f":"Calculations!BX47","v":2259.7666666666664},{"$f":"Calculations!BY47","v":2259.7666666666664},{"$f":"Calculations!BZ47","v":2259.7666666666664},{"$f":"Calculations!CA47","v":2259.7666666666664}]
[{"$f":"Calculations!A48","v":"ILR"},{"$f":"Calculations!E48","v":"Godrej & Boyce  GVR 99 Lite*"},{"$f":"Calculations!F48","v":98.5},{"$f":"IF(Calculations!G48=0,\"No\",\"Yes\")","v":"No"},{"$f":"LOOKUP(C48,List!$E$3:$E$12,List!$F$3:$F$12)","v":" 90-120"},{"$f":"Calculations!AU48*ROUNDUP('Total Solution Costs'!$B$2/'Cash Flow data'!H48,0)","v":10},{"$f":"Calculations!H48","v":"Yes"},{"$f":"Calculations!I48","v":10},"NO",{"$f":"Calculations!CX48","v":42310.566666666658},{"$f":"Calculations!BH48","v":23549.466666666664},{"$f":"Calculations!BI48","v":2084.5666666666666},{"$f":"Calculations!BJ48","v":2084.5666666666666},{"$f":"Calculations!BK48","v":2084.5666666666666},{"$f":"Calculations!BL48","v":2084.5666666666666},{"$f":"Calculations!BM48","v":2084.5666666666666},{"$f":"Calculations!BN48","v":2084.5666666666666},{"$f":"Calculations!BO48","v":2084.5666666666666},{"$f":"Calculations!BP48","v":2084.5666666666666},{"$f":"Calculations!BQ48","v":2084.5666666666666},{"$f":"Calculations!BR48","v":23549.466666666664},{"$f":"Calculations!BS48","v":2084.5666666666666},{"$f":"Calculations!BT48","v":2084.5666666666666},{"$f":"Calculations!BU48","v":2084.5666666666666},{"$f":"Calculations!BV48","v":2084.5666666666666},{"$f":"Calculations!BW48","v":2084.5666666666666},{"$f":"Calculations!BX48","v":2084.5666666666666},{"$f":"Calculations!BY48","v":2084.5666666666666},{"$f":"Calculations!BZ48","v":2084.5666666666666},{"$f":"Calculations!CA48","v":2084.5666666666666}]
[{"$f":"Calculations!A49","v":"ILR"},{"$f":"Calculations!E49","v":"Godrej & Boyce  GVR 225 AC*"},{"$f":"Calculations!F49","v":225},{"$f":"IF(Calculations!G49=0,\"No\",\"Yes\")","v":"No"},{"$f":"LOOKUP(C49,List!$E$3:$E$12,List!$F$3:$F$12)","v":"120 +"},{"$f":"Calculations!AU49*ROUNDUP('Total Solution Costs'!$B$2/'Cash Flow data'!H49,0)","v":10},{"$f":"Calculations!H49","v":"Yes"},{"$f":"Calculations!I49","v":10},"NO",{"$f":"Calculations!CX49","v":55702.866666666683},{"$f":"Calculations!BH49","v":31620.066666666666},{"$f":"Calculations!BI49","v":2675.8666666666668},{"$f":"Calculations!BJ49","v":2675.8666666666668},{"$f":"Calculations!BK49","v":2675.8666666666668},{"$f":"Calculations!BL49","v":2675.8666666666668},{"$f":"Calculations!BM49","v":2675.8666666666668},{"$f":"Calculations!BN49","v":2675.8666666666668},{"$f":"Calculations!BO49","v":2675.8666666666668},{"$f":"Calculations!BP49","v":2675.8666666666668},{"$f":"Calculations!BQ49","v":2675.8666666666668},{"$f":"Calculations!BR49","v":31620.066666666666},{"$f":"Calculations!BS49","v":2675.8666666666668},{"$f":"Calculations!BT49","v":2675.8666666666668},{"$f":"Calculations!BU49","v":2675.8666666666668},{"$f":"Calculations!BV49","v":2675.8666666666668},{"$f":"Calculations!BW49","v":2675.8666666666668},{"$f":"Calculations!BX49","v":2675.8666666666668},{"$f":"Calculations!BY49","v":2675.8666666666668},{"$f":"Calculations!BZ49","v":2675.8666666666668},{"$f":"Calculations!CA49","v":2675.8666666666668}]
[{"$f":"Calculations!A50","v":"Kerosene"},{"$f":"Calculations!E50","v":"Sibir V 170 KE "},{"$f":"Calculations!F50","v":55},{"$f":"IF(Calculations!G50=0,\"No\",\"Yes\")","v":"No"},{"$f":"LOOKUP(C50,List!$E$3:$E$12,List!$F$3:$F$12)","v":" 30-59"},{"$f":"Calculations!AU50*ROUNDUP('Total Solution Costs'!$B$2/'Cash Flow data'!H50,0)","v":10},{"$f":"Calculations!H50","v":"No"},{"$f":"Calculations!I50","v":10},"NO",{"$f":"Calculations!CX50","v":82835.484729999982},{"$f":"Calculations!BH50","v":20693.184730000001},{"$f":"Calculations!BI50","v":6904.7000000000007},{"$f":"Calculations!BJ50","v":6904.7000000000007},{"$f":"Calculations!BK50","v":6904.7000000000007},{"$f":"Calculations!BL50","v":6904.7000000000007},{"$f":"Calculations!BM50","v":6904.7000000000007},{"$f":"Calculations!BN50","v":6904.7000000000007},{"$f":"Calculations!BO50","v":6904.7000000000007},{"$f":"Calculations!BP50","v":6904.7000000000007},{"$f":"Calculations!BQ50","v":6904.7000000000007},{"$f":"Calculations!BR50","v":20693.184730000001},{"$f":"Calculations!BS50","v":6904.7000000000007},{"$f":"Calculations!BT50","v":6904.7000000000007},{"$f":"Calculations!BU50","v":6904.7000000000007},{"$f":"Calculations!BV50","v":6904.7000000000007},{"$f":"Calculations!BW50","v":6904.7000000000007},{"$f":"Calculations!BX50","v":6904.7000000000007},{"$f":"Calculations!BY50","v":6904.7000000000007},{"$f":"Calculations!BZ50","v":6904.7000000000007},{"$f":"Calculations!CA50","v":6904.7000000000007}]
[{"$f":"Calculations!A51","v":"Kerosene"},{"$f":"Calculations!E51","v":"Sibir V 110 KE "},{"$f":"Calculations!F51","v":17},{"$f":"IF(Calculations!G51=0,\"No\",\"Yes\")","v":"No"},{"$f":"LOOKUP(C51,List!$E$3:$E$12,List!$F$3:$F$12)","v":" 1-29"},{"$f":"Calculations!AU51*ROUNDUP('Total Solution Costs'!$B$2/'Cash Flow data'!H51,0)","v":10},{"$f":"Calculations!H51","v":"No"},{"$f":"Calculations!I51","v":10},"NO",{"$f":"Calculations!CX51","v":55240.152675000005},{"$f":"Calculations!BH51","v":27688.902675000005},{"$f":"Calculations!BI51","v":3061.25},{"$f":"Calculations!BJ51","v":3061.25},{"$f":"Calculations!BK51","v":3061.25},{"$f":"Calculations!BL51","v":3061.25},{"$f":"Calculations!BM51","v":3061.25},{"$f":"Calculations!BN51","v":3061.25},{"$f":"Calculations!BO51","v":3061.25},{"$f":"Calculations!BP51","v":3061.25},{"$f":"Calculations!BQ51","v":3061.25},{"$f":"Calculations!BR51","v":27688.902675000005},{"$f":"Calculations!BS51","v":3061.25},{"$f":"Calculations!BT51","v":3061.25},{"$f":"Calculations!BU51","v":3061.25},{"$f":"Calculations!BV51","v":3061.25},{"$f":"Calculations!BW51","v":3061.25},{"$f":"Calculations!BX51","v":3061.25},{"$f":"Calculations!BY51","v":3061.25},{"$f":"Calculations!BZ51","v":3061.25},{"$f":"Calculations!CA51","v":3061.25}]
[{"$f":"Calculations!A52","v":"Kerosene"},{"$f":"Calculations!E52","v":"B Medical RCW 50 EK"},{"$f":"Calculations!F52","v":24},{"$f":"IF(Calculations!G52=0,\"No\",\"Yes\")","v":"No"},{"$f":"LOOKUP(C52,List!$E$3:$E$12,List!$F$3:$F$12)","v":" 1-29"},{"$f":"Calculations!AU52*ROUNDUP('Total Solution Costs'!$B$2/'Cash Flow data'!H52,0)","v":10},{"$f":"Calculations!H52","v":"No"},{"$f":"Calculations!I52","v":10},"NO",{"$f":"Calculations!CX52","v":81853.358509999991},{"$f":"Calculations!BH52","v":42771.75851},{"$f":"Calculations!BI52","v":4342.3999999999996},{"$f":"Calculations!BJ52","v":4342.3999999999996},{"$f":"Calculations!BK52","v":4342.3999999999996},{"$f":"Calculations!BL52","v":4342.3999999999996},{"$f":"Calculations!BM52","v":4342.3999999999996},{"$f":"Calculations!BN52","v":4342.3999999999996},{"$f":"Calculations!BO52","v":4342.3999999999996},{"$f":"Calculations!BP52","v":4342.3999999999996},{"$f":"Calculations!BQ52","v":4342.3999999999996},{"$f":"Calculations!BR52","v":42771.75851},{"$f":"Calculations!BS52","v":4342.3999999999996},{"$f":"Calculations!BT52","v":4342.3999999999996},{"$f":"Calculations!BU52","v":4342.3999999999996},{"$f":"Calculations!BV52","v":4342.3999999999996},{"$f":"Calculations!BW52","v":4342.3999999999996},{"$f":"Calculations!BX52","v":4342.3999999999996},{"$f":"Calculations!BY52","v":4342.3999999999996},{"$f":"Calculations!BZ52","v":4342.3999999999996},{"$f":"Calculations!CA52","v":4342.3999999999996}]
[{"$f":"Calculations!A53","v":"SDD"},{"$f":"Calculations!E53","v":"Vestfrost MKS 044"},{"$f":"Calculations!F53","v":19.5},{"$f":"IF(Calculations!G53=0,\"No\",\"Yes\")","v":"No"},{"$f":"LOOKUP(C53,List!$E$3:$E$12,List!$F$3:$F$12)","v":" 1-29"},{"$f":"Calculations!AU53*ROUNDUP('Total Solution Costs'!$B$2/'Cash Flow data'!H53,0)","v":10},{"$f":"Calculations!H53","v":"No"},{"$f":"Calculations!I53","v":10},"NO",{"$f":"Calculations!CX53","v":52376.349910000004},{"$f":"Calculations!BH53","v":42701.349910000004},{"$f":"Calculations!BI53","v":1075},{"$f":"Calculations!BJ53","v":1075},{"$f":"Calculations!BK53","v":1075},{"$f":"Calculations!BL53","v":1075},{"$f":"Calculations!BM53","v":1075},{"$f":"Calculations!BN53","v":1075},{"$f":"Calculations!BO53","v":1075},{"$f":"Calculations!BP53","v":1075},{"$f":"Calculations!BQ53","v":1075},{"$f":"Calculations!BR53","v":42701.349910000004},{"$f":"Calculations!BS53","v":1075},{"$f":"Calculations!BT53","v":1075},{"$f":"Calculations!BU53","v":1075},{"$f":"Calculations!BV53","v":1075},{"$f":"Calculations!BW53","v":1075},{"$f":"Calculations!BX53","v":1075},{"$f":"Calculations!BY53","v":1075},{"$f":"Calculations!BZ53","v":1075},{"$f":"Calculations!CA53","v":1075}]
[{"$f":"Calculations!A54","v":"SDD"},{"$f":"Calculations!E54","v":"Haier HTC-60"},{"$f":"Calculations!F54","v":21},{"$f":"IF(Calculations!G54=0,\"No\",\"Yes\")","v":"No"},{"$f":"LOOKUP(C54,List!$E$3:$E$12,List!$F$3:$F$12)","v":" 1-29"},{"$f":"Calculations!AU54*ROUNDUP('Total Solution Costs'!$B$2/'Cash Flow data'!H54,0)","v":10},{"$f":"Calculations!H54","v":"No"},{"$f":"Calculations!I54","v":10},"NO",{"$f":"Calculations!CX54","v":51872.044999999998},{"$f":"Calculations!BH54","v":42197.044999999998},{"$f":"Calculations!BI54","v":1075},{"$f":"Calculations!BJ54","v":1075},{"$f":"Calculations!BK54","v":1075},{"$f":"Calculations!BL54","v":1075},{"$f":"Calculations!BM54","v":1075},{"$f":"Calculations!BN54","v":1075},{"$f":"Calculations!BO54","v":1075},{"$f":"Calculations!BP54","v":1075},{"$f":"Calculations!BQ54","v":1075},{"$f":"Calculations!BR54","v":42197.044999999998},{"$f":"Calculations!BS54","v":1075},{"$f":"Calculations!BT54","v":1075},{"$f":"Calculations!BU54","v":1075},{"$f":"Calculations!BV54","v":1075},{"$f":"Calculations!BW54","v":1075},{"$f":"Calculations!BX54","v":1075},{"$f":"Calculations!BY54","v":1075},{"$f":"Calculations!BZ54","v":1075},{"$f":"Calculations!CA54","v":1075}]
[{"$f":"Calculations!A55","v":"SDD"},{"$f":"Calculations!E55","v":"SunDanzer BFRV 55*"},{"$f":"Calculations!F55","v":54.5},{"$f":"IF(Calculations!G55=0,\"No\",\"Yes\")","v":"No"},{"$f":"LOOKUP(C55,List!$E$3:$E$12,List!$F$3:$F$12)","v":" 30-59"},{"$f":"Calculations!AU55*ROUNDUP('Total Solution Costs'!$B$2/'Cash Flow data'!H55,0)","v":10},{"$f":"Calculations!H55","v":"Yes"},{"$f":"Calculations!I55","v":10},"NO",{"$f":"Calculations!CX55","v":59529.500000000007},{"$f":"Calculations!BH55","v":49854.500000000007},{"$f":"Calculations!BI55","v":1075},{"$f":"Calculations!BJ55","v":1075},{"$f":"Calculations!BK55","v":1075},{"$f":"Calculations!BL55","v":1075},{"$f":"Calculations!BM55","v":1075},{"$f":"Calculations!BN55","v":1075},{"$f":"Calculations!BO55","v":1075},{"$f":"Calculations!BP55","v":1075},{"$f":"Calculations!BQ55","v":1075},{"$f":"Calculations!BR55","v":49854.500000000007},{"$f":"Calculations!BS55","v":1075},{"$f":"Calculations!BT55","v":1075},{"$f":"Calculations!BU55","v":1075},{"$f":"Calculations!BV55","v":1075},{"$f":"Calculations!BW55","v":1075},{"$f":"Calculations!BX55","v":1075},{"$f":"Calculations!BY55","v":1075},{"$f":"Calculations!BZ55","v":1075},{"$f":"Calculations!CA55","v":1075}]
[{"$f":"Calculations!A56","v":"SDD"},{"$f":"Calculations!E56","v":"B Medical TCW 3000 SDD"},{"$f":"Calculations!F56","v":156},{"$f":"IF(Calculations!G56=0,\"No\",\"Yes\")","v":"No"},{"$f":"LOOKUP(C56,List!$E$3:$E$12,List!$F$3:$F$12)","v":"120 +"},{"$f":"Calculations!AU56*ROUNDUP('Total Solution Costs'!$B$2/'Cash Flow data'!H56,0)","v":10},{"$f":"Calculations!H56","v":"No"},{"$f":"Calculations!I56","v":10},"NO",{"$f":"Calculations!CX56","v":98396.805949999994},{"$f":"Calculations!BH56","v":88721.805949999994},{"$f":"Calculations!BI56","v":1075},{"$f":"Calculations!BJ56","v":1075},{"$f":"Calculations!BK56","v":1075},{"$f":"Calculations!BL56","v":1075},{"$f":"Calculations!BM56","v":1075},{"$f":"Calculations!BN56","v":1075},{"$f":"Calculations!BO56","v":1075},{"$f":"Calculations!BP56","v":1075},{"$f":"Calculations!BQ56","v":1075},{"$f":"Calculations!BR56","v":88721.805949999994},{"$f":"Calculations!BS56","v":1075},{"$f":"Calculations!BT56","v":1075},{"$f":"Calculations!BU56","v":1075},{"$f":"Calculations!BV56","v":1075},{"$f":"Calculations!BW56","v":1075},{"$f":"Calculations!BX56","v":1075},{"$f":"Calculations!BY56","v":1075},{"$f":"Calculations!BZ56","v":1075},{"$f":"Calculations!CA56","v":1075}]
[{"$f":"Calculations!A57","v":"SDD"},{"$f":"Calculations!E57","v":"B Medical TCW 2000 SDD"},{"$f":"Calculations!F57","v":99},{"$f":"IF(Calculations!G57=0,\"No\",\"Yes\")","v":"Yes"},{"$f":"LOOKUP(C57,List!$E$3:$E$12,List!$F$3:$F$12)","v":" 90-120"},{"$f":"Calculations!AU57*ROUNDUP('Total Solution Costs'!$B$2/'Cash Flow data'!H57,0)","v":10},{"$f":"Calculations!H57","v":"No"},{"$f":"Calculations!I57","v":10},"NO",{"$f":"Calculations!CX57","v":129067.77280000001},{"$f":"Calculations!BH57","v":119392.77280000001},{"$f":"Calculations!BI57","v":1075},{"$f":"Calculations!BJ57","v":1075},{"$f":"Calculations!BK57","v":1075},{"$f":"Calculations!BL57","v":1075},{"$f":"Calculations!BM57","v":1075},{"$f":"Calculations!BN57","v":1075},{"$f":"Calculations!BO57","v":1075},{"$f":"Calculations!BP57","v":1075},{"$f":"Calculations!BQ57","v":1075},{"$f":"Calculations!BR57","v":119392.77280000001},{"$f":"Calculations!BS57","v":1075},{"$f":"Calculations!BT57","v":1075},{"$f":"Calculations!BU57","v":1075},{"$f":"Calculations!BV57","v":1075},{"$f":"Calculations!BW57","v":1075},{"$f":"Calculations!BX57","v":1075},{"$f":"Calculations!BY57","v":1075},{"$f":"Calculations!BZ57","v":1075},{"$f":"Calculations!CA57","v":1075}]
[{"$f":"Calculations!A58","v":"SDD"},{"$f":"Calculations!E58","v":"Zero ZLF 100 DC*"},{"$f":"Calculations!F58","v":99},{"$f":"IF(Calculations!G58=0,\"No\",\"Yes\")","v":"No"},{"$f":"LOOKUP(C58,List!$E$3:$E$12,List!$F$3:$F$12)","v":" 90-120"},{"$f":"Calculations!AU58*ROUNDUP('Total Solution Costs'!$B$2/'Cash Flow data'!H58,0)","v":10},{"$f":"Calculations!H58","v":"Yes"},{"$f":"Calculations!I58","v":10},"NO",{"$f":"Calculations!CX58","v":84385.599999999991},{"$f":"Calculations!BH58","v":74710.599999999991},{"$f":"Calculations!BI58","v":1075},{"$f":"Calculations!BJ58","v":1075},{"$f":"Calculations!BK58","v":1075},{"$f":"Calculations!BL58","v":1075},{"$f":"Calculations!BM58","v":1075},{"$f":"Calculations!BN58","v":1075},{"$f":"Calculations!BO58","v":1075},{"$f":"Calculations!BP58","v":1075},{"$f":"Calculations!BQ58","v":1075},{"$f":"Calculations!BR58","v":74710.599999999991},{"$f":"Calculations!BS58","v":1075},{"$f":"Calculations!BT58","v":1075},{"$f":"Calculations!BU58","v":1075},{"$f":"Calculations!BV58","v":1075},{"$f":"Calculations!BW58","v":1075},{"$f":"Calculations!BX58","v":1075},{"$f":"Calculations!BY58","v":1075},{"$f":"Calculations!BZ58","v":1075},{"$f":"Calculations!CA58","v":1075}]
[{"$f":"Calculations!A59","v":"SDD"},{"$f":"Calculations!E59","v":"SunDanzer BFRV 15 SDD*"},{"$f":"Calculations!F59","v":15},{"$f":"IF(Calculations!G59=0,\"No\",\"Yes\")","v":"No"},{"$f":"LOOKUP(C59,List!$E$3:$E$12,List!$F$3:$F$12)","v":" 1-29"},{"$f":"Calculations!AU59*ROUNDUP('Total Solution Costs'!$B$2/'Cash Flow data'!H59,0)","v":10},{"$f":"Calculations!H59","v":"Yes"},{"$f":"Calculations!I59","v":10},"NO",{"$f":"Calculations!CX59","v":52093},{"$f":"Calculations!BH59","v":42418},{"$f":"Calculations!BI59","v":1075},{"$f":"Calculations!BJ59","v":1075},{"$f":"Calculations!BK59","v":1075},{"$f":"Calculations!BL59","v":1075},{"$f":"Calculations!BM59","v":1075},{"$f":"Calculations!BN59","v":1075},{"$f":"Calculations!BO59","v":1075},{"$f":"Calculations!BP59","v":1075},{"$f":"Calculations!BQ59","v":1075},{"$f":"Calculations!BR59","v":42418},{"$f":"Calculations!BS59","v":1075},{"$f":"Calculations!BT59","v":1075},{"$f":"Calculations!BU59","v":1075},{"$f":"Calculations!BV59","v":1075},{"$f":"Calculations!BW59","v":1075},{"$f":"Calculations!BX59","v":1075},{"$f":"Calculations!BY59","v":1075},{"$f":"Calculations!BZ59","v":1075},{"$f":"Calculations!CA59","v":1075}]
[{"$f":"Calculations!A60","v":"SDD"},{"$f":"Calculations!E60","v":"Dulas Solar VC 200 SDD*"},{"$f":"Calculations!F60","v":132},{"$f":"IF(Calculations!G60=0,\"No\",\"Yes\")","v":"No"},{"$f":"LOOKUP(C60,List!$E$3:$E$12,List!$F$3:$F$12)","v":"120 +"},{"$f":"Calculations!AU60*ROUNDUP('Total Solution Costs'!$B$2/'Cash Flow data'!H60,0)","v":10},{"$f":"Calculations!H60","v":"Yes"},{"$f":"Calculations!I60","v":10},"NO",{"$f":"Calculations!CX60","v":75712.822},{"$f":"Calculations!BH60","v":66037.822},{"$f":"Calculations!BI60","v":1075},{"$f":"Calculations!BJ60","v":1075},{"$f":"Calculations!BK60","v":1075},{"$f":"Calculations!BL60","v":1075},{"$f":"Calculations!BM60","v":1075},{"$f":"Calculations!BN60","v":1075},{"$f":"Calculations!BO60","v":1075},{"$f":"Calculations!BP60","v":1075},{"$f":"Calculations!BQ60","v":1075},{"$f":"Calculations!BR60","v":66037.822},{"$f":"Calculations!BS60","v":1075},{"$f":"Calculations!BT60","v":1075},{"$f":"Calculations!BU60","v":1075},{"$f":"Calculations!BV60","v":1075},{"$f":"Calculations!BW60","v":1075},{"$f":"Calculations!BX60","v":1075},{"$f":"Calculations!BY60","v":1075},{"$f":"Calculations!BZ60","v":1075},{"$f":"Calculations!CA60","v":1075}]
[{"$f":"Calculations!A61","v":"SDD"},{"$f":"Calculations!E61","v":"Vestfrost VLS 054 SDD*"},{"$f":"Calculations!F61","v":55.5},{"$f":"IF(Calculations!G61=0,\"No\",\"Yes\")","v":"No"},{"$f":"LOOKUP(C61,List!$E$3:$E$12,List!$F$3:$F$12)","v":" 30-59"},{"$f":"Calculations!AU61*ROUNDUP('Total Solution Costs'!$B$2/'Cash Flow data'!H61,0)","v":10},{"$f":"Calculations!H61","v":"Yes"},{"$f":"Calculations!I61","v":10},"NO",{"$f":"Calculations!CX61","v":59441.849880000002},{"$f":"Calculations!BH61","v":49766.849880000002},{"$f":"Calculations!BI61","v":1075},{"$f":"Calculations!BJ61","v":1075},{"$f":"Calculations!BK61","v":1075},{"$f":"Calculations!BL61","v":1075},{"$f":"Calculations!BM61","v":1075},{"$f":"Calculations!BN61","v":1075},{"$f":"Calculations!BO61","v":1075},{"$f":"Calculations!BP61","v":1075},{"$f":"Calculations!BQ61","v":1075},{"$f":"Calculations!BR61","v":49766.849880000002},{"$f":"Calculations!BS61","v":1075},{"$f":"Calculations!BT61","v":1075},{"$f":"Calculations!BU61","v":1075},{"$f":"Calculations!BV61","v":1075},{"$f":"Calculations!BW61","v":1075},{"$f":"Calculations!BX61","v":1075},{"$f":"Calculations!BY61","v":1075},{"$f":"Calculations!BZ61","v":1075},{"$f":"Calculations!CA61","v":1075}]
[{"$f":"Calculations!A62","v":"SDD"},{"$f":"Calculations!E62","v":"B Medical TCW 40 SDD*"},{"$f":"Calculations!F62","v":36},{"$f":"IF(Calculations!G62=0,\"No\",\"Yes\")","v":"Yes"},{"$f":"LOOKUP(C62,List!$E$3:$E$12,List!$F$3:$F$12)","v":" 30-59"},{"$f":"Calculations!AU62*ROUNDUP('Total Solution Costs'!$B$2/'Cash Flow data'!H62,0)","v":10},{"$f":"Calculations!H62","v":"Yes"},{"$f":"Calculations!I62","v":10},"NO",{"$f":"Calculations!CX62","v":94371.590070000006},{"$f":"Calculations!BH62","v":84696.590070000006},{"$f":"Calculations!BI62","v":1075},{"$f":"Calculations!BJ62","v":1075},{"$f":"Calculations!BK62","v":1075},{"$f":"Calculations!BL62","v":1075},{"$f":"Calculations!BM62","v":1075},{"$f":"Calculations!BN62","v":1075},{"$f":"Calculations!BO62","v":1075},{"$f":"Calculations!BP62","v":1075},{"$f":"Calculations!BQ62","v":1075},{"$f":"Calculations!BR62","v":84696.590070000006},{"$f":"Calculations!BS62","v":1075},{"$f":"Calculations!BT62","v":1075},{"$f":"Calculations!BU62","v":1075},{"$f":"Calculations!BV62","v":1075},{"$f":"Calculations!BW62","v":1075},{"$f":"Calculations!BX62","v":1075},{"$f":"Calculations!BY62","v":1075},{"$f":"Calculations!BZ62","v":1075},{"$f":"Calculations!CA62","v":1075}]
[{"$f":"Calculations!A63","v":"SDD"},{"$f":"Calculations!E63","v":"B Medical TCW 2043 SDD*"},{"$f":"Calculations!F63","v":70},{"$f":"IF(Calculations!G63=0,\"No\",\"Yes\")","v":"Yes"},{"$f":"LOOKUP(C63,List!$E$3:$E$12,List!$F$3:$F$12)","v":" 60-89"},{"$f":"Calculations!AU63*ROUNDUP('Total Solution Costs'!$B$2/'Cash Flow data'!H63,0)","v":10},{"$f":"Calculations!H63","v":"Yes"},{"$f":"Calculations!I63","v":10},"NO",{"$f":"Calculations!CX63","v":126913.54072999998},{"$f":"Calculations!BH63","v":117238.54072999998},{"$f":"Calculations!BI63","v":1075},{"$f":"Calculations!BJ63","v":1075},{"$f":"Calculations!BK63","v":1075},{"$f":"Calculations!BL63","v":1075},{"$f":"Calculations!BM63","v":1075},{"$f":"Calculations!BN63","v":1075},{"$f":"Calculations!BO63","v":1075},{"$f":"Calculations!BP63","v":1075},{"$f":"Calculations!BQ63","v":1075},{"$f":"Calculations!BR63","v":117238.54072999998},{"$f":"Calculations!BS63","v":1075},{"$f":"Calculations!BT63","v":1075},{"$f":"Calculations!BU63","v":1075},{"$f":"Calculations!BV63","v":1075},{"$f":"Calculations!BW63","v":1075},{"$f":"Calculations!BX63","v":1075},{"$f":"Calculations!BY63","v":1075},{"$f":"Calculations!BZ63","v":1075},{"$f":"Calculations!CA63","v":1075}]
[{"$f":"Calculations!A64","v":"SDD"},{"$f":"Calculations!E64","v":"B Medical TCW 3043 SDD*"},{"$f":"Calculations!F64","v":89},{"$f":"IF(Calculations!G64=0,\"No\",\"Yes\")","v":"No"},{"$f":"LOOKUP(C64,List!$E$3:$E$12,List!$F$3:$F$12)","v":" 60-89"},{"$f":"Calculations!AU64*ROUNDUP('Total Solution Costs'!$B$2/'Cash Flow data'!H64,0)","v":10},{"$f":"Calculations!H64","v":"Yes"},{"$f":"Calculations!I64","v":10},"NO",{"$f":"Calculations!CX64","v":102009.94557000001},{"$f":"Calculations!BH64","v":92334.945570000011},{"$f":"Calculations!BI64","v":1075},{"$f":"Calculations!BJ64","v":1075},{"$f":"Calculations!BK64","v":1075},{"$f":"Calculations!BL64","v":1075},{"$f":"Calculations!BM64","v":1075},{"$f":"Calculations!BN64","v":1075},{"$f":"Calculations!BO64","v":1075},{"$f":"Calculations!BP64","v":1075},{"$f":"Calculations!BQ64","v":1075},{"$f":"Calculations!BR64","v":92334.945570000011},{"$f":"Calculations!BS64","v":1075},{"$f":"Calculations!BT64","v":1075},{"$f":"Calculations!BU64","v":1075},{"$f":"Calculations!BV64","v":1075},{"$f":"Calculations!BW64","v":1075},{"$f":"Calculations!BX64","v":1075},{"$f":"Calculations!BY64","v":1075},{"$f":"Calculations!BZ64","v":1075},{"$f":"Calculations!CA64","v":1075}]
[{"$f":"Calculations!A65","v":"SDD"},{"$f":"Calculations!E65","v":"Dulas Solar VC 150 SDD*"},{"$f":"Calculations!F65","v":102},{"$f":"IF(Calculations!G65=0,\"No\",\"Yes\")","v":"Yes"},{"$f":"LOOKUP(C65,List!$E$3:$E$12,List!$F$3:$F$12)","v":" 90-120"},{"$f":"Calculations!AU65*ROUNDUP('Total Solution Costs'!$B$2/'Cash Flow data'!H65,0)","v":10},{"$f":"Calculations!H65","v":"Yes"},{"$f":"Calculations!I65","v":10},"NO",{"$f":"Calculations!CX65","v":100404.67700000001},{"$f":"Calculations!BH65","v":90729.677000000011},{"$f":"Calculations!BI65","v":1075},{"$f":"Calculations!BJ65","v":1075},{"$f":"Calculations!BK65","v":1075},{"$f":"Calculations!BL65","v":1075},{"$f":"Calculations!BM65","v":1075},{"$f":"Calculations!BN65","v":1075},{"$f":"Calculations!BO65","v":1075},{"$f":"Calculations!BP65","v":1075},{"$f":"Calculations!BQ65","v":1075},{"$f":"Calculations!BR65","v":90729.677000000011},{"$f":"Calculations!BS65","v":1075},{"$f":"Calculations!BT65","v":1075},{"$f":"Calculations!BU65","v":1075},{"$f":"Calculations!BV65","v":1075},{"$f":"Calculations!BW65","v":1075},{"$f":"Calculations!BX65","v":1075},{"$f":"Calculations!BY65","v":1075},{"$f":"Calculations!BZ65","v":1075},{"$f":"Calculations!CA65","v":1075}]
[{"$f":"Calculations!A66","v":"SDD"},{"$f":"Calculations!E66","v":"Godrej & Boyce  GVR 50DC SDD*"},{"$f":"Calculations!F66","v":46.5},{"$f":"IF(Calculations!G66=0,\"No\",\"Yes\")","v":"No"},{"$f":"LOOKUP(C66,List!$E$3:$E$12,List!$F$3:$F$12)","v":" 30-59"},{"$f":"Calculations!AU66*ROUNDUP('Total Solution Costs'!$B$2/'Cash Flow data'!H66,0)","v":10},{"$f":"Calculations!H66","v":"Yes"},{"$f":"Calculations!I66","v":10},"NO",{"$f":"Calculations!CX66","v":62932.1},{"$f":"Calculations!BH66","v":53257.1},{"$f":"Calculations!BI66","v":1075},{"$f":"Calculations!BJ66","v":1075},{"$f":"Calculations!BK66","v":1075},{"$f":"Calculations!BL66","v":1075},{"$f":"Calculations!BM66","v":1075},{"$f":"Calculations!BN66","v":1075},{"$f":"Calculations!BO66","v":1075},{"$f":"Calculations!BP66","v":1075},{"$f":"Calculations!BQ66","v":1075},{"$f":"Calculations!BR66","v":53257.1},{"$f":"Calculations!BS66","v":1075},{"$f":"Calculations!BT66","v":1075},{"$f":"Calculations!BU66","v":1075},{"$f":"Calculations!BV66","v":1075},{"$f":"Calculations!BW66","v":1075},{"$f":"Calculations!BX66","v":1075},{"$f":"Calculations!BY66","v":1075},{"$f":"Calculations!BZ66","v":1075},{"$f":"Calculations!CA66","v":1075}]
[{"$f":"Calculations!A67","v":"SDD"},{"$f":"Calculations!E67","v":"Godrej & Boyce  GVR 100DC (SureChill)*"},{"$f":"Calculations!F67","v":99},{"$f":"IF(Calculations!G67=0,\"No\",\"Yes\")","v":"No"},{"$f":"LOOKUP(C67,List!$E$3:$E$12,List!$F$3:$F$12)","v":" 90-120"},{"$f":"Calculations!AU67*ROUNDUP('Total Solution Costs'!$B$2/'Cash Flow data'!H67,0)","v":10},{"$f":"Calculations!H67","v":"Yes"},{"$f":"Calculations!I67","v":10},"NO",{"$f":"Calculations!CX67","v":76890.25},{"$f":"Calculations!BH67","v":67215.25},{"$f":"Calculations!BI67","v":1075},{"$f":"Calculations!BJ67","v":1075},{"$f":"Calculations!BK67","v":1075},{"$f":"Calculations!BL67","v":1075},{"$f":"Calculations!BM67","v":1075},{"$f":"Calculations!BN67","v":1075},{"$f":"Calculations!BO67","v":1075},{"$f":"Calculations!BP67","v":1075},{"$f":"Calculations!BQ67","v":1075},{"$f":"Calculations!BR67","v":67215.25},{"$f":"Calculations!BS67","v":1075},{"$f":"Calculations!BT67","v":1075},{"$f":"Calculations!BU67","v":1075},{"$f":"Calculations!BV67","v":1075},{"$f":"Calculations!BW67","v":1075},{"$f":"Calculations!BX67","v":1075},{"$f":"Calculations!BY67","v":1075},{"$f":"Calculations!BZ67","v":1075},{"$f":"Calculations!CA67","v":1075}]
[{"$f":"Calculations!A68","v":"SDD"},{"$f":"Calculations!E68","v":"Zero ZLF 150DC*"},{"$f":"Calculations!F68","v":128},{"$f":"IF(Calculations!G68=0,\"No\",\"Yes\")","v":"No"},{"$f":"LOOKUP(C68,List!$E$3:$E$12,List!$F$3:$F$12)","v":"120 +"},{"$f":"Calculations!AU68*ROUNDUP('Total Solution Costs'!$B$2/'Cash Flow data'!H68,0)","v":10},{"$f":"Calculations!H68","v":"Yes"},{"$f":"Calculations!I68","v":10},"NO",{"$f":"Calculations!CX68","v":89072.2},{"$f":"Calculations!BH68","v":79397.2},{"$f":"Calculations!BI68","v":1075},{"$f":"Calculations!BJ68","v":1075},{"$f":"Calculations!BK68","v":1075},{"$f":"Calculations!BL68","v":1075},{"$f":"Calculations!BM68","v":1075},{"$f":"Calculations!BN68","v":1075},{"$f":"Calculations!BO68","v":1075},{"$f":"Calculations!BP68","v":1075},{"$f":"Calculations!BQ68","v":1075},{"$f":"Calculations!BR68","v":79397.2},{"$f":"Calculations!BS68","v":1075},{"$f":"Calculations!BT68","v":1075},{"$f":"Calculations!BU68","v":1075},{"$f":"Calculations!BV68","v":1075},{"$f":"Calculations!BW68","v":1075},{"$f":"Calculations!BX68","v":1075},{"$f":"Calculations!BY68","v":1075},{"$f":"Calculations!BZ68","v":1075},{"$f":"Calculations!CA68","v":1075}]
[{"$f":"Calculations!A69","v":"SDD"},{"$f":"Calculations!E69","v":"Vestfrost VLS 094 SDD*"},{"$f":"Calculations!F69","v":92},{"$f":"IF(Calculations!G69=0,\"No\",\"Yes\")","v":"No"},{"$f":"LOOKUP(C69,List!$E$3:$E$12,List!$F$3:$F$12)","v":" 90-120"},{"$f":"Calculations!AU69*ROUNDUP('Total Solution Costs'!$B$2/'Cash Flow data'!H69,0)","v":10},{"$f":"Calculations!H69","v":"Yes"},{"$f":"Calculations!I69","v":10},"NO",{"$f":"Calculations!CX69","v":63206.387010000006},{"$f":"Calculations!BH69","v":53531.387010000006},{"$f":"Calculations!BI69","v":1075},{"$f":"Calculations!BJ69","v":1075},{"$f":"Calculations!BK69","v":1075},{"$f":"Calculations!BL69","v":1075},{"$f":"Calculations!BM69","v":1075},{"$f":"Calculations!BN69","v":1075},{"$f":"Calculations!BO69","v":1075},{"$f":"Calculations!BP69","v":1075},{"$f":"Calculations!BQ69","v":1075},{"$f":"Calculations!BR69","v":53531.387010000006},{"$f":"Calculations!BS69","v":1075},{"$f":"Calculations!BT69","v":1075},{"$f":"Calculations!BU69","v":1075},{"$f":"Calculations!BV69","v":1075},{"$f":"Calculations!BW69","v":1075},{"$f":"Calculations!BX69","v":1075},{"$f":"Calculations!BY69","v":1075},{"$f":"Calculations!BZ69","v":1075},{"$f":"Calculations!CA69","v":1075}]
[{"$f":"Calculations!A70","v":"SDD"},{"$f":"Calculations!E70","v":"Vestfrost VLS 154 SDD*"},{"$f":"Calculations!F70","v":170},{"$f":"IF(Calculations!G70=0,\"No\",\"Yes\")","v":"No"},{"$f":"LOOKUP(C70,List!$E$3:$E$12,List!$F$3:$F$12)","v":"120 +"},{"$f":"Calculations!AU70*ROUNDUP('Total Solution Costs'!$B$2/'Cash Flow data'!H70,0)","v":10},{"$f":"Calculations!H70","v":"Yes"},{"$f":"Calculations!I70","v":10},"NO",{"$f":"Calculations!CX70","v":86529.538230000006},{"$f":"Calculations!BH70","v":76854.538230000006},{"$f":"Calculations!BI70","v":1075},{"$f":"Calculations!BJ70","v":1075},{"$f":"Calculations!BK70","v":1075},{"$f":"Calculations!BL70","v":1075},{"$f":"Calculations!BM70","v":1075},{"$f":"Calculations!BN70","v":1075},{"$f":"Calculations!BO70","v":1075},{"$f":"Calculations!BP70","v":1075},{"$f":"Calculations!BQ70","v":1075},{"$f":"Calculations!BR70","v":76854.538230000006},{"$f":"Calculations!BS70","v":1075},{"$f":"Calculations!BT70","v":1075},{"$f":"Calculations!BU70","v":1075},{"$f":"Calculations!BV70","v":1075},{"$f":"Calculations!BW70","v":1075},{"$f":"Calculations!BX70","v":1075},{"$f":"Calculations!BY70","v":1075},{"$f":"Calculations!BZ70","v":1075},{"$f":"Calculations!CA70","v":1075}]
[{"$f":"Calculations!A71","v":"SDD"},{"$f":"Calculations!E71","v":"Zero ZLF 30DC SDD*"},{"$f":"Calculations!F71","v":27},{"$f":"IF(Calculations!G71=0,\"No\",\"Yes\")","v":"No"},{"$f":"LOOKUP(C71,List!$E$3:$E$12,List!$F$3:$F$12)","v":" 1-29"},{"$f":"Calculations!AU71*ROUNDUP('Total Solution Costs'!$B$2/'Cash Flow data'!H71,0)","v":10},{"$f":"Calculations!H71","v":"Yes"},{"$f":"Calculations!I71","v":10},"NO",{"$f":"Calculations!CX71","v":61605.299999999996},{"$f":"Calculations!BH71","v":51930.299999999996},{"$f":"Calculations!BI71","v":1075},{"$f":"Calculations!BJ71","v":1075},{"$f":"Calculations!BK71","v":1075},{"$f":"Calculations!BL71","v":1075},{"$f":"Calculations!BM71","v":1075},{"$f":"Calculations!BN71","v":1075},{"$f":"Calculations!BO71","v":1075},{"$f":"Calculations!BP71","v":1075},{"$f":"Calculations!BQ71","v":1075},{"$f":"Calculations!BR71","v":51930.299999999996},{"$f":"Calculations!BS71","v":1075},{"$f":"Calculations!BT71","v":1075},{"$f":"Calculations!BU71","v":1075},{"$f":"Calculations!BV71","v":1075},{"$f":"Calculations!BW71","v":1075},{"$f":"Calculations!BX71","v":1075},{"$f":"Calculations!BY71","v":1075},{"$f":"Calculations!BZ71","v":1075},{"$f":"Calculations!CA71","v":1075}]
[{"$f":"Calculations!A72","v":"SDD"},{"$f":"Calculations!E72","v":"Haier HTC-60H"},{"$f":"Calculations!F72","v":21},{"$f":"IF(Calculations!G72=0,\"No\",\"Yes\")","v":"No"},{"$f":"LOOKUP(C72,List!$E$3:$E$12,List!$F$3:$F$12)","v":" 1-29"},{"$f":"Calculations!AU72*ROUNDUP('Total Solution Costs'!$B$2/'Cash Flow data'!H72,0)","v":10},{"$f":"Calculations!H72","v":"No"},{"$f":"Calculations!I72","v":10},"NO",{"$f":"Calculations!CX72","v":53688.690999999999},{"$f":"Calculations!BH72","v":44013.690999999999},{"$f":"Calculations!BI72","v":1075},{"$f":"Calculations!BJ72","v":1075},{"$f":"Calculations!BK72","v":1075},{"$f":"Calculations!BL72","v":1075},{"$f":"Calculations!BM72","v":1075},{"$f":"Calculations!BN72","v":1075},{"$f":"Calculations!BO72","v":1075},{"$f":"Calculations!BP72","v":1075},{"$f":"Calculations!BQ72","v":1075},{"$f":"Calculations!BR72","v":44013.690999999999},{"$f":"Calculations!BS72","v":1075},{"$f":"Calculations!BT72","v":1075},{"$f":"Calculations!BU72","v":1075},{"$f":"Calculations!BV72","v":1075},{"$f":"Calculations!BW72","v":1075},{"$f":"Calculations!BX72","v":1075},{"$f":"Calculations!BY72","v":1075},{"$f":"Calculations!BZ72","v":1075},{"$f":"Calculations!CA72","v":1075}]
[{"$f":"Calculations!A73","v":"SDD"},{"$f":"Calculations!E73","v":"Haier HTCD-160*"},{"$f":"Calculations!F73","v":100},{"$f":"IF(Calculations!G73=0,\"No\",\"Yes\")","v":"Yes"},{"$f":"LOOKUP(C73,List!$E$3:$E$12,List!$F$3:$F$12)","v":" 90-120"},{"$f":"Calculations!AU73*ROUNDUP('Total Solution Costs'!$B$2/'Cash Flow data'!H73,0)","v":10},{"$f":"Calculations!H73","v":"Yes"},{"$f":"Calculations!I73","v":10},"NO",{"$f":"Calculations!CX73","v":93324.80799999999},{"$f":"Calculations!BH73","v":83649.80799999999},{"$f":"Calculations!BI73","v":1075},{"$f":"Calculations!BJ73","v":1075},{"$f":"Calculations!BK73","v":1075},{"$f":"Calculations!BL73","v":1075},{"$f":"Calculations!BM73","v":1075},{"$f":"Calculations!BN73","v":1075},{"$f":"Calculations!BO73","v":1075},{"$f":"Calculations!BP73","v":1075},{"$f":"Calculations!BQ73","v":1075},{"$f":"Calculations!BR73","v":83649.80799999999},{"$f":"Calculations!BS73","v":1075},{"$f":"Calculations!BT73","v":1075},{"$f":"Calculations!BU73","v":1075},{"$f":"Calculations!BV73","v":1075},{"$f":"Calculations!BW73","v":1075},{"$f":"Calculations!BX73","v":1075},{"$f":"Calculations!BY73","v":1075},{"$f":"Calculations!BZ73","v":1075},{"$f":"Calculations!CA73","v":1075}]
[{"$f":"Calculations!A74","v":"SDD"},{"$f":"Calculations!E74","v":"Dulas Solar VC 110 SDD*"},{"$f":"Calculations!F74","v":110},{"$f":"IF(Calculations!G74=0,\"No\",\"Yes\")","v":"No"},{"$f":"LOOKUP(C74,List!$E$3:$E$12,List!$F$3:$F$12)","v":" 90-120"},{"$f":"Calculations!AU74*ROUNDUP('Total Solution Costs'!$B$2/'Cash Flow data'!H74,0)","v":10},{"$f":"Calculations!H74","v":"Yes"},{"$f":"Calculations!I74","v":10},"NO",{"$f":"Calculations!CX74","v":90554.354999999996},{"$f":"Calculations!BH74","v":80879.354999999996},{"$f":"Calculations!BI74","v":1075},{"$f":"Calculations!BJ74","v":1075},{"$f":"Calculations!BK74","v":1075},{"$f":"Calculations!BL74","v":1075},{"$f":"Calculations!BM74","v":1075},{"$f":"Calculations!BN74","v":1075},{"$f":"Calculations!BO74","v":1075},{"$f":"Calculations!BP74","v":1075},{"$f":"Calculations!BQ74","v":1075},{"$f":"Calculations!BR74","v":80879.354999999996},{"$f":"Calculations!BS74","v":1075},{"$f":"Calculations!BT74","v":1075},{"$f":"Calculations!BU74","v":1075},{"$f":"Calculations!BV74","v":1075},{"$f":"Calculations!BW74","v":1075},{"$f":"Calculations!BX74","v":1075},{"$f":"Calculations!BY74","v":1075},{"$f":"Calculations!BZ74","v":1075},{"$f":"Calculations!CA74","v":1075}]
[{"$f":"Calculations!A75","v":"SDD"},{"$f":"Calculations!E75","v":"Dulas Solar VC 88 SDD*"},{"$f":"Calculations!F75","v":88},{"$f":"IF(Calculations!G75=0,\"No\",\"Yes\")","v":"No"},{"$f":"LOOKUP(C75,List!$E$3:$E$12,List!$F$3:$F$12)","v":" 60-89"},{"$f":"Calculations!AU75*ROUNDUP('Total Solution Costs'!$B$2/'Cash Flow data'!H75,0)","v":10},{"$f":"Calculations!H75","v":"Yes"},{"$f":"Calculations!I75","v":10},"NO",{"$f":"Calculations!CX75","v":75257.536999999997},{"$f":"Calculations!BH75","v":65582.536999999997},{"$f":"Calculations!BI75","v":1075},{"$f":"Calculations!BJ75","v":1075},{"$f":"Calculations!BK75","v":1075},{"$f":"Calculations!BL75","v":1075},{"$f":"Calculations!BM75","v":1075},{"$f":"Calculations!BN75","v":1075},{"$f":"Calculations!BO75","v":1075},{"$f":"Calculations!BP75","v":1075},{"$f":"Calculations!BQ75","v":1075},{"$f":"Calculations!BR75","v":65582.536999999997},{"$f":"Calculations!BS75","v":1075},{"$f":"Calculations!BT75","v":1075},{"$f":"Calculations!BU75","v":1075},{"$f":"Calculations!BV75","v":1075},{"$f":"Calculations!BW75","v":1075},{"$f":"Calculations!BX75","v":1075},{"$f":"Calculations!BY75","v":1075},{"$f":"Calculations!BZ75","v":1075},{"$f":"Calculations!CA75","v":1075}]
[{"$f":"Calculations!A76","v":"SDD"},{"$f":"Calculations!E76","v":"B Medical TCW 15R SDD*"},{"$f":"Calculations!F76","v":16},{"$f":"IF(Calculations!G76=0,\"No\",\"Yes\")","v":"No"},{"$f":"LOOKUP(C76,List!$E$3:$E$12,List!$F$3:$F$12)","v":" 1-29"},{"$f":"Calculations!AU76*ROUNDUP('Total Solution Costs'!$B$2/'Cash Flow data'!H76,0)","v":10},{"$f":"Calculations!H76","v":"Yes"},{"$f":"Calculations!I76","v":10},"NO",{"$f":"Calculations!CX76","v":79464.376820000005},{"$f":"Calculations!BH76","v":69789.376820000005},{"$f":"Calculations!BI76","v":1075},{"$f":"Calculations!BJ76","v":1075},{"$f":"Calculations!BK76","v":1075},{"$f":"Calculations!BL76","v":1075},{"$f":"Calculations!BM76","v":1075},{"$f":"Calculations!BN76","v":1075},{"$f":"Calculations!BO76","v":1075},{"$f":"Calculations!BP76","v":1075},{"$f":"Calculations!BQ76","v":1075},{"$f":"Calculations!BR76","v":69789.376820000005},{"$f":"Calculations!BS76","v":1075},{"$f":"Calculations!BT76","v":1075},{"$f":"Calculations!BU76","v":1075},{"$f":"Calculations!BV76","v":1075},{"$f":"Calculations!BW76","v":1075},{"$f":"Calculations!BX76","v":1075},{"$f":"Calculations!BY76","v":1075},{"$f":"Calculations!BZ76","v":1075},{"$f":"Calculations!CA76","v":1075}]
[{"$f":"Calculations!A77","v":"SDD"},{"$f":"Calculations!E77","v":"B Medical TCW 40R SDD*"},{"$f":"Calculations!F77","v":36},{"$f":"IF(Calculations!G77=0,\"No\",\"Yes\")","v":"No"},{"$f":"LOOKUP(C77,List!$E$3:$E$12,List!$F$3:$F$12)","v":" 30-59"},{"$f":"Calculations!AU77*ROUNDUP('Total Solution Costs'!$B$2/'Cash Flow data'!H77,0)","v":10},{"$f":"Calculations!H77","v":"Yes"},{"$f":"Calculations!I77","v":10},"NO",{"$f":"Calculations!CX77","v":102147.26144},{"$f":"Calculations!BH77","v":92472.261440000002},{"$f":"Calculations!BI77","v":1075},{"$f":"Calculations!BJ77","v":1075},{"$f":"Calculations!BK77","v":1075},{"$f":"Calculations!BL77","v":1075},{"$f":"Calculations!BM77","v":1075},{"$f":"Calculations!BN77","v":1075},{"$f":"Calculations!BO77","v":1075},{"$f":"Calculations!BP77","v":1075},{"$f":"Calculations!BQ77","v":1075},{"$f":"Calculations!BR77","v":92472.261440000002},{"$f":"Calculations!BS77","v":1075},{"$f":"Calculations!BT77","v":1075},{"$f":"Calculations!BU77","v":1075},{"$f":"Calculations!BV77","v":1075},{"$f":"Calculations!BW77","v":1075},{"$f":"Calculations!BX77","v":1075},{"$f":"Calculations!BY77","v":1075},{"$f":"Calculations!BZ77","v":1075},{"$f":"Calculations!CA77","v":1075}]
[{"$f":"Calculations!A78","v":"SDD"},{"$f":"Calculations!E78","v":"Vestfrost VLS 024 SDD*"},{"$f":"Calculations!F78","v":25.5},{"$f":"IF(Calculations!G78=0,\"No\",\"Yes\")","v":"No"},{"$f":"LOOKUP(C78,List!$E$3:$E$12,List!$F$3:$F$12)","v":" 1-29"},{"$f":"Calculations!AU78*ROUNDUP('Total Solution Costs'!$B$2/'Cash Flow data'!H78,0)","v":10},{"$f":"Calculations!H78","v":"Yes"},{"$f":"Calculations!I78","v":10},"NO",{"$f":"Calculations!CX78","v":58070.00288},{"$f":"Calculations!BH78","v":48395.00288},{"$f":"Calculations!BI78","v":1075},{"$f":"Calculations!BJ78","v":1075},{"$f":"Calculations!BK78","v":1075},{"$f":"Calculations!BL78","v":1075},{"$f":"Calculations!BM78","v":1075},{"$f":"Calculations!BN78","v":1075},{"$f":"Calculations!BO78","v":1075},{"$f":"Calculations!BP78","v":1075},{"$f":"Calculations!BQ78","v":1075},{"$f":"Calculations!BR78","v":48395.00288},{"$f":"Calculations!BS78","v":1075},{"$f":"Calculations!BT78","v":1075},{"$f":"Calculations!BU78","v":1075},{"$f":"Calculations!BV78","v":1075},{"$f":"Calculations!BW78","v":1075},{"$f":"Calculations!BX78","v":1075},{"$f":"Calculations!BY78","v":1075},{"$f":"Calculations!BZ78","v":1075},{"$f":"Calculations!CA78","v":1075}]
[{"$f":"Calculations!A79","v":"SDD"},{"$f":"Calculations!E79","v":"Haier HTCD 90 SDD*"},{"$f":"Calculations!F79","v":37.5},{"$f":"IF(Calculations!G79=0,\"No\",\"Yes\")","v":"Yes"},{"$f":"LOOKUP(C79,List!$E$3:$E$12,List!$F$3:$F$12)","v":" 30-59"},{"$f":"Calculations!AU79*ROUNDUP('Total Solution Costs'!$B$2/'Cash Flow data'!H79,0)","v":10},{"$f":"Calculations!H79","v":"Yes"},{"$f":"Calculations!I79","v":10},"NO",{"$f":"Calculations!CX79","v":89038.48599999999},{"$f":"Calculations!BH79","v":79363.48599999999},{"$f":"Calculations!BI79","v":1075},{"$f":"Calculations!BJ79","v":1075},{"$f":"Calculations!BK79","v":1075},{"$f":"Calculations!BL79","v":1075},{"$f":"Calculations!BM79","v":1075},{"$f":"Calculations!BN79","v":1075},{"$f":"Calculations!BO79","v":1075},{"$f":"Calculations!BP79","v":1075},{"$f":"Calculations!BQ79","v":1075},{"$f":"Calculations!BR79","v":79363.48599999999},{"$f":"Calculations!BS79","v":1075},{"$f":"Calculations!BT79","v":1075},{"$f":"Calculations!BU79","v":1075},{"$f":"Calculations!BV79","v":1075},{"$f":"Calculations!BW79","v":1075},{"$f":"Calculations!BX79","v":1075},{"$f":"Calculations!BY79","v":1075},{"$f":"Calculations!BZ79","v":1075},{"$f":"Calculations!CA79","v":1075}]
[{"$f":"Calculations!A80","v":"SDD"},{"$f":"Calculations!E80","v":"Haier HTC 40 SDD*"},{"$f":"Calculations!F80","v":22.5},{"$f":"IF(Calculations!G80=0,\"No\",\"Yes\")","v":"No"},{"$f":"LOOKUP(C80,List!$E$3:$E$12,List!$F$3:$F$12)","v":" 1-29"},{"$f":"Calculations!AU80*ROUNDUP('Total Solution Costs'!$B$2/'Cash Flow data'!H80,0)","v":10},{"$f":"Calculations!H80","v":"Yes"},{"$f":"Calculations!I80","v":10},"NO",{"$f":"Calculations!CX80","v":54778.486000000004},{"$f":"Calculations!BH80","v":45103.486000000004},{"$f":"Calculations!BI80","v":1075},{"$f":"Calculations!BJ80","v":1075},{"$f":"Calculations!BK80","v":1075},{"$f":"Calculations!BL80","v":1075},{"$f":"Calculations!BM80","v":1075},{"$f":"Calculations!BN80","v":1075},{"$f":"Calculations!BO80","v":1075},{"$f":"Calculations!BP80","v":1075},{"$f":"Calculations!BQ80","v":1075},{"$f":"Calculations!BR80","v":45103.486000000004},{"$f":"Calculations!BS80","v":1075},{"$f":"Calculations!BT80","v":1075},{"$f":"Calculations!BU80","v":1075},{"$f":"Calculations!BV80","v":1075},{"$f":"Calculations!BW80","v":1075},{"$f":"Calculations!BX80","v":1075},{"$f":"Calculations!BY80","v":1075},{"$f":"Calculations!BZ80","v":1075},{"$f":"Calculations!CA80","v":1075}]
[{"$f":"Calculations!A81","v":"SDD"},{"$f":"Calculations!E81","v":"Haier HTC 110 SDD*"},{"$f":"Calculations!F81","v":59},{"$f":"IF(Calculations!G81=0,\"No\",\"Yes\")","v":"No"},{"$f":"LOOKUP(C81,List!$E$3:$E$12,List!$F$3:$F$12)","v":" 30-59"},{"$f":"Calculations!AU81*ROUNDUP('Total Solution Costs'!$B$2/'Cash Flow data'!H81,0)","v":10},{"$f":"Calculations!H81","v":"Yes"},{"$f":"Calculations!I81","v":10},"NO",{"$f":"Calculations!CX81","v":57988.48599999999},{"$f":"Calculations!BH81","v":48313.48599999999},{"$f":"Calculations!BI81","v":1075},{"$f":"Calculations!BJ81","v":1075},{"$f":"Calculations!BK81","v":1075},{"$f":"Calculations!BL81","v":1075},{"$f":"Calculations!BM81","v":1075},{"$f":"Calculations!BN81","v":1075},{"$f":"Calculations!BO81","v":1075},{"$f":"Calculations!BP81","v":1075},{"$f":"Calculations!BQ81","v":1075},{"$f":"Calculations!BR81","v":48313.48599999999},{"$f":"Calculations!BS81","v":1075},{"$f":"Calculations!BT81","v":1075},{"$f":"Calculations!BU81","v":1075},{"$f":"Calculations!BV81","v":1075},{"$f":"Calculations!BW81","v":1075},{"$f":"Calculations!BX81","v":1075},{"$f":"Calculations!BY81","v":1075},{"$f":"Calculations!BZ81","v":1075},{"$f":"Calculations!CA81","v":1075}]
[{"$f":"Calculations!A82","v":"SDD"},{"$f":"Calculations!E82","v":"B Medical TCW 15 SDD*"},{"$f":"Calculations!F82","v":16},{"$f":"IF(Calculations!G82=0,\"No\",\"Yes\")","v":"Yes"},{"$f":"LOOKUP(C82,List!$E$3:$E$12,List!$F$3:$F$12)","v":" 1-29"},{"$f":"Calculations!AU82*ROUNDUP('Total Solution Costs'!$B$2/'Cash Flow data'!H82,0)","v":10},{"$f":"Calculations!H82","v":"Yes"},{"$f":"Calculations!I82","v":10},"NO",{"$f":"Calculations!CX82","v":78671.059560000009},{"$f":"Calculations!BH82","v":68996.059560000009},{"$f":"Calculations!BI82","v":1075},{"$f":"Calculations!BJ82","v":1075},{"$f":"Calculations!BK82","v":1075},{"$f":"Calculations!BL82","v":1075},{"$f":"Calculations!BM82","v":1075},{"$f":"Calculations!BN82","v":1075},{"$f":"Calculations!BO82","v":1075},{"$f":"Calculations!BP82","v":1075},{"$f":"Calculations!BQ82","v":1075},{"$f":"Calculations!BR82","v":68996.059560000009},{"$f":"Calculations!BS82","v":1075},{"$f":"Calculations!BT82","v":1075},{"$f":"Calculations!BU82","v":1075},{"$f":"Calculations!BV82","v":1075},{"$f":"Calculations!BW82","v":1075},{"$f":"Calculations!BX82","v":1075},{"$f":"Calculations!BY82","v":1075},{"$f":"Calculations!BZ82","v":1075},{"$f":"Calculations!CA82","v":1075}]
[{"$f":"Calculations!A83","v":"SDD"},{"$f":"Calculations!E83","v":"Dulas Solar VC 50 SDD*"},{"$f":"Calculations!F83","v":52.5},{"$f":"IF(Calculations!G83=0,\"No\",\"Yes\")","v":"No"},{"$f":"LOOKUP(C83,List!$E$3:$E$12,List!$F$3:$F$12)","v":" 30-59"},{"$f":"Calculations!AU83*ROUNDUP('Total Solution Costs'!$B$2/'Cash Flow data'!H83,0)","v":10},{"$f":"Calculations!H83","v":"Yes"},{"$f":"Calculations!I83","v":10},"NO",{"$f":"Calculations!CX83","v":62269.732550000008},{"$f":"Calculations!BH83","v":52594.732550000008},{"$f":"Calculations!BI83","v":1075},{"$f":"Calculations!BJ83","v":1075},{"$f":"Calculations!BK83","v":1075},{"$f":"Calculations!BL83","v":1075},{"$f":"Calculations!BM83","v":1075},{"$f":"Calculations!BN83","v":1075},{"$f":"Calculations!BO83","v":1075},{"$f":"Calculations!BP83","v":1075},{"$f":"Calculations!BQ83","v":1075},{"$f":"Calculations!BR83","v":52594.732550000008},{"$f":"Calculations!BS83","v":1075},{"$f":"Calculations!BT83","v":1075},{"$f":"Calculations!BU83","v":1075},{"$f":"Calculations!BV83","v":1075},{"$f":"Calculations!BW83","v":1075},{"$f":"Calculations!BX83","v":1075},{"$f":"Calculations!BY83","v":1075},{"$f":"Calculations!BZ83","v":1075},{"$f":"Calculations!CA83","v":1075}]
[{"$f":"Calculations!A84","v":"SDD"},{"$f":"Calculations!E84","v":"Dulas Solar VC 60 SDD*"},{"$f":"Calculations!F84","v":57},{"$f":"IF(Calculations!G84=0,\"No\",\"Yes\")","v":"Yes"},{"$f":"LOOKUP(C84,List!$E$3:$E$12,List!$F$3:$F$12)","v":" 30-59"},{"$f":"Calculations!AU84*ROUNDUP('Total Solution Costs'!$B$2/'Cash Flow data'!H84,0)","v":10},{"$f":"Calculations!H84","v":"Yes"},{"$f":"Calculations!I84","v":10},"NO",{"$f":"Calculations!CX84","v":85032.293019999997},{"$f":"Calculations!BH84","v":75357.293019999997},{"$f":"Calculations!BI84","v":1075},{"$f":"Calculations!BJ84","v":1075},{"$f":"Calculations!BK84","v":1075},{"$f":"Calculations!BL84","v":1075},{"$f":"Calculations!BM84","v":1075},{"$f":"Calculations!BN84","v":1075},{"$f":"Calculations!BO84","v":1075},{"$f":"Calculations!BP84","v":1075},{"$f":"Calculations!BQ84","v":1075},{"$f":"Calculations!BR84","v":75357.293019999997},{"$f":"Calculations!BS84","v":1075},{"$f":"Calculations!BT84","v":1075},{"$f":"Calculations!BU84","v":1075},{"$f":"Calculations!BV84","v":1075},{"$f":"Calculations!BW84","v":1075},{"$f":"Calculations!BX84","v":1075},{"$f":"Calculations!BY84","v":1075},{"$f":"Calculations!BZ84","v":1075},{"$f":"Calculations!CA84","v":1075}]
[{"$f":"Calculations!A85","v":"Solar w battery"},{"$f":"Calculations!E85","v":"B Medical TCW 2000 DC"},{"$f":"Calculations!F85","v":76},{"$f":"IF(Calculations!G85=0,\"No\",\"Yes\")","v":"Yes"},{"$f":"LOOKUP(C85,List!$E$3:$E$12,List!$F$3:$F$12)","v":" 60-89"},{"$f":"Calculations!AU85*ROUNDUP('Total Solution Costs'!$B$2/'Cash Flow data'!H85,0)","v":10},{"$f":"Calculations!H85","v":"No"},{"$f":"Calculations!I85","v":10},"NO",{"$f":"Calculations!CX85","v":90455.660876666647},{"$f":"Calculations!BH85","v":66101.768876666669},{"$f":"Calculations!BI85","v":1811.5546666666664},{"$f":"Calculations!BJ85","v":1811.5546666666664},{"$f":"Calculations!BK85","v":4494.8546666666662},{"$f":"Calculations!BL85","v":1811.5546666666664},{"$f":"Calculations!BM85","v":1811.5546666666664},{"$f":"Calculations!BN85","v":4494.8546666666662},{"$f":"Calculations!BO85","v":1811.5546666666664},{"$f":"Calculations!BP85","v":1811.5546666666664},{"$f":"Calculations!BQ85","v":4494.8546666666662},{"$f":"Calculations!BR85","v":66101.768876666669},{"$f":"Calculations!BS85","v":1811.5546666666664},{"$f":"Calculations!BT85","v":4494.8546666666662},{"$f":"Calculations!BU85","v":1811.5546666666664},{"$f":"Calculations!BV85","v":1811.5546666666664},{"$f":"Calculations!BW85","v":4494.8546666666662},{"$f":"Calculations!BX85","v":1811.5546666666664},{"$f":"Calculations!BY85","v":1811.5546666666664},{"$f":"Calculations!BZ85","v":4494.8546666666662},{"$f":"Calculations!CA85","v":1811.5546666666664}]
[{"$f":"Calculations!A86","v":"Solar w battery"},{"$f":"Calculations!E86","v":"B Medical TCW 3000 DC"},{"$f":"Calculations!F86","v":109.5},{"$f":"IF(Calculations!G86=0,\"No\",\"Yes\")","v":"Yes"},{"$f":"LOOKUP(C86,List!$E$3:$E$12,List!$F$3:$F$12)","v":" 90-120"},{"$f":"Calculations!AU86*ROUNDUP('Total Solution Costs'!$B$2/'Cash Flow data'!H86,0)","v":10},{"$f":"Calculations!H86","v":"No"},{"$f":"Calculations!I86","v":10},"NO",{"$f":"Calculations!CX86","v":91856.270546666652},{"$f":"Calculations!BH86","v":67502.378546666674},{"$f":"Calculations!BI86","v":1811.5546666666664},{"$f":"Calculations!BJ86","v":1811.5546666666664},{"$f":"Calculations!BK86","v":4494.8546666666662},{"$f":"Calculations!BL86","v":1811.5546666666664},{"$f":"Calculations!BM86","v":1811.5546666666664},{"$f":"Calculations!BN86","v":4494.8546666666662},{"$f":"Calculations!BO86","v":1811.5546666666664},{"$f":"Calculations!BP86","v":1811.5546666666664},{"$f":"Calculations!BQ86","v":4494.8546666666662},{"$f":"Calculations!BR86","v":67502.378546666674},{"$f":"Calculations!BS86","v":1811.5546666666664},{"$f":"Calculations!BT86","v":4494.8546666666662},{"$f":"Calculations!BU86","v":1811.5546666666664},{"$f":"Calculations!BV86","v":1811.5546666666664},{"$f":"Calculations!BW86","v":4494.8546666666662},{"$f":"Calculations!BX86","v":1811.5546666666664},{"$f":"Calculations!BY86","v":1811.5546666666664},{"$f":"Calculations!BZ86","v":4494.8546666666662},{"$f":"Calculations!CA86","v":1811.5546666666664}]
[{"$f":"Calculations!A87","v":"Solar w battery"},{"$f":"Calculations!E87","v":"Dulas Solar VC 65-2"},{"$f":"Calculations!F87","v":37.5},{"$f":"IF(Calculations!G87=0,\"No\",\"Yes\")","v":"Yes"},{"$f":"LOOKUP(C87,List!$E$3:$E$12,List!$F$3:$F$12)","v":" 30-59"},{"$f":"Calculations!AU87*ROUNDUP('Total Solution Costs'!$B$2/'Cash Flow data'!H87,0)","v":10},{"$f":"Calculations!H87","v":"No"},{"$f":"Calculations!I87","v":10},"NO",{"$f":"Calculations!CX87","v":79471.581666666651},{"$f":"Calculations!BH87","v":55117.689666666673},{"$f":"Calculations!BI87","v":1811.5546666666664},{"$f":"Calculations!BJ87","v":1811.5546666666664},{"$f":"Calculations!BK87","v":4494.8546666666662},{"$f":"Calculations!BL87","v":1811.5546666666664},{"$f":"Calculations!BM87","v":1811.5546666666664},{"$f":"Calculations!BN87","v":4494.8546666666662},{"$f":"Calculations!BO87","v":1811.5546666666664},{"$f":"Calculations!BP87","v":1811.5546666666664},{"$f":"Calculations!BQ87","v":4494.8546666666662},{"$f":"Calculations!BR87","v":55117.689666666673},{"$f":"Calculations!BS87","v":1811.5546666666664},{"$f":"Calculations!BT87","v":4494.8546666666662},{"$f":"Calculations!BU87","v":1811.5546666666664},{"$f":"Calculations!BV87","v":1811.5546666666664},{"$f":"Calculations!BW87","v":4494.8546666666662},{"$f":"Calculations!BX87","v":1811.5546666666664},{"$f":"Calculations!BY87","v":1811.5546666666664},{"$f":"Calculations!BZ87","v":4494.8546666666662},{"$f":"Calculations!CA87","v":1811.5546666666664}]
[{"$f":"Calculations!A88","v":"Solar w battery"},{"$f":"Calculations!E88","v":"Dulas Solar VC 150-2"},{"$f":"Calculations!F88","v":86},{"$f":"IF(Calculations!G88=0,\"No\",\"Yes\")","v":"Yes"},{"$f":"LOOKUP(C88,List!$E$3:$E$12,List!$F$3:$F$12)","v":" 60-89"},{"$f":"Calculations!AU88*ROUNDUP('Total Solution Costs'!$B$2/'Cash Flow data'!H88,0)","v":10},{"$f":"Calculations!H88","v":"No"},{"$f":"Calculations!I88","v":10},"NO",{"$f":"Calculations!CX88","v":106134.58166666665},{"$f":"Calculations!BH88","v":81780.689666666673},{"$f":"Calculations!BI88","v":1811.5546666666664},{"$f":"Calculations!BJ88","v":1811.5546666666664},{"$f":"Calculations!BK88","v":4494.8546666666662},{"$f":"Calculations!BL88","v":1811.5546666666664},{"$f":"Calculations!BM88","v":1811.5546666666664},{"$f":"Calculations!BN88","v":4494.8546666666662},{"$f":"Calculations!BO88","v":1811.5546666666664},{"$f":"Calculations!BP88","v":1811.5546666666664},{"$f":"Calculations!BQ88","v":4494.8546666666662},{"$f":"Calculations!BR88","v":81780.689666666673},{"$f":"Calculations!BS88","v":1811.5546666666664},{"$f":"Calculations!BT88","v":4494.8546666666662},{"$f":"Calculations!BU88","v":1811.5546666666664},{"$f":"Calculations!BV88","v":1811.5546666666664},{"$f":"Calculations!BW88","v":4494.8546666666662},{"$f":"Calculations!BX88","v":1811.5546666666664},{"$f":"Calculations!BY88","v":1811.5546666666664},{"$f":"Calculations!BZ88","v":4494.8546666666662},{"$f":"Calculations!CA88","v":1811.5546666666664}]
[{"$f":"Calculations!A89","v":"Solar w battery"},{"$f":"Calculations!E89","v":"Dulas Solar VC 200-1"},{"$f":"Calculations!F89","v":126.5},{"$f":"IF(Calculations!G89=0,\"No\",\"Yes\")","v":"No"},{"$f":"LOOKUP(C89,List!$E$3:$E$12,List!$F$3:$F$12)","v":"120 +"},{"$f":"Calculations!AU89*ROUNDUP('Total Solution Costs'!$B$2/'Cash Flow data'!H89,0)","v":10},{"$f":"Calculations!H89","v":"No"},{"$f":"Calculations!I89","v":10},"NO",{"$f":"Calculations!CX89","v":91847.406666666648},{"$f":"Calculations!BH89","v":67493.51466666667},{"$f":"Calculations!BI89","v":1811.5546666666664},{"$f":"Calculations!BJ89","v":1811.5546666666664},{"$f":"Calculations!BK89","v":4494.8546666666662},{"$f":"Calculations!BL89","v":1811.5546666666664},{"$f":"Calculations!BM89","v":1811.5546666666664},{"$f":"Calculations!BN89","v":4494.8546666666662},{"$f":"Calculations!BO89","v":1811.5546666666664},{"$f":"Calculations!BP89","v":1811.5546666666664},{"$f":"Calculations!BQ89","v":4494.8546666666662},{"$f":"Calculations!BR89","v":67493.51466666667},{"$f":"Calculations!BS89","v":1811.5546666666664},{"$f":"Calculations!BT89","v":4494.8546666666662},{"$f":"Calculations!BU89","v":1811.5546666666664},{"$f":"Calculations!BV89","v":1811.5546666666664},{"$f":"Calculations!BW89","v":4494.8546666666662},{"$f":"Calculations!BX89","v":1811.5546666666664},{"$f":"Calculations!BY89","v":1811.5546666666664},{"$f":"Calculations!BZ89","v":4494.8546666666662},{"$f":"Calculations!CA89","v":1811.5546666666664}]
[{"$f":"Calculations!A90","v":"WICR FR"},{"$f":"Calculations!E90","v":"Zhendre WICR10"},{"$f":"Calculations!F90","v":3030.3030303030305},{"$f":"IF(Calculations!G90=0,\"No\",\"Yes\")","v":"No"},{"$f":"LOOKUP(C90,List!$E$3:$E$12,List!$F$3:$F$12)","v":"WICR 10m3"},{"$f":"Calculations!AU90*ROUNDUP('Total Solution Costs'!$B$2/'Cash Flow data'!H90,0)","v":10},{"$f":"Calculations!H90","v":"No"},{"$f":"Calculations!I90","v":15},"NO",{"$f":"Calculations!CX90","v":349935},{"$f":"Calculations!BH90","v":239775},{"$f":"Calculations!BI90","v":12240},{"$f":"Calculations!BJ90","v":12240},{"$f":"Calculations!BK90","v":12240},{"$f":"Calculations!BL90","v":12240},{"$f":"Calculations!BM90","v":12240},{"$f":"Calculations!BN90","v":12240},{"$f":"Calculations!BO90","v":12240},{"$f":"Calculations!BP90","v":12240},{"$f":"Calculations!BQ90","v":12240},{"$f":"Calculations!BR90","v":12240},{"$f":"Calculations!BS90","v":12240},{"$f":"Calculations!BT90","v":12240},{"$f":"Calculations!BU90","v":12240},{"$f":"Calculations!BV90","v":12240},{"$f":"Calculations!BW90","v":239775},{"$f":"Calculations!BX90","v":12240},{"$f":"Calculations!BY90","v":12240},{"$f":"Calculations!BZ90","v":12240},{"$f":"Calculations!CA90","v":12240}]
[{"$f":"Calculations!A91","v":"WICR FR"},{"$f":"Calculations!E91","v":"Zhendre WICR30"},{"$f":"Calculations!F91","v":7692.3076923076924},{"$f":"IF(Calculations!G91=0,\"No\",\"Yes\")","v":"No"},{"$f":"LOOKUP(C91,List!$E$3:$E$12,List!$F$3:$F$12)","v":"WICR 30m3"},{"$f":"Calculations!AU91*ROUNDUP('Total Solution Costs'!$B$2/'Cash Flow data'!H91,0)","v":10},{"$f":"Calculations!H91","v":"No"},{"$f":"Calculations!I91","v":15},"NO",{"$f":"Calculations!CX91","v":560991},{"$f":"Calculations!BH91","v":319431},{"$f":"Calculations!BI91","v":26840},{"$f":"Calculations!BJ91","v":26840},{"$f":"Calculations!BK91","v":26840},{"$f":"Calculations!BL91","v":26840},{"$f":"Calculations!BM91","v":26840},{"$f":"Calculations!BN91","v":26840},{"$f":"Calculations!BO91","v":26840},{"$f":"Calculations!BP91","v":26840},{"$f":"Calculations!BQ91","v":26840},{"$f":"Calculations!BR91","v":26840},{"$f":"Calculations!BS91","v":26840},{"$f":"Calculations!BT91","v":26840},{"$f":"Calculations!BU91","v":26840},{"$f":"Calculations!BV91","v":26840},{"$f":"Calculations!BW91","v":319431},{"$f":"Calculations!BX91","v":26840},{"$f":"Calculations!BY91","v":26840},{"$f":"Calculations!BZ91","v":26840},{"$f":"Calculations!CA91","v":26840}]
[{"$f":"Calculations!A92","v":"WICR FR"},{"$f":"Calculations!E92","v":"Zhendre WICR40"},{"$f":"Calculations!F92","v":9523.8095238095229},{"$f":"IF(Calculations!G92=0,\"No\",\"Yes\")","v":"No"},{"$f":"LOOKUP(C92,List!$E$3:$E$12,List!$F$3:$F$12)","v":"WICR 40m3"},{"$f":"Calculations!AU92*ROUNDUP('Total Solution Costs'!$B$2/'Cash Flow data'!H92,0)","v":10},{"$f":"Calculations!H92","v":"No"},{"$f":"Calculations!I92","v":15},"NO",{"$f":"Calculations!CX92","v":515944},{"$f":"Calculations!BH92","v":274384},{"$f":"Calculations!BI92","v":26840},{"$f":"Calculations!BJ92","v":26840},{"$f":"Calculations!BK92","v":26840},{"$f":"Calculations!BL92","v":26840},{"$f":"Calculations!BM92","v":26840},{"$f":"Calculations!BN92","v":26840},{"$f":"Calculations!BO92","v":26840},{"$f":"Calculations!BP92","v":26840},{"$f":"Calculations!BQ92","v":26840},{"$f":"Calculations!BR92","v":26840},{"$f":"Calculations!BS92","v":26840},{"$f":"Calculations!BT92","v":26840},{"$f":"Calculations!BU92","v":26840},{"$f":"Calculations!BV92","v":26840},{"$f":"Calculations!BW92","v":274384},{"$f":"Calculations!BX92","v":26840},{"$f":"Calculations!BY92","v":26840},{"$f":"Calculations!BZ92","v":26840},{"$f":"Calculations!CA92","v":26840}]
[{"$f":"Calculations!A93","v":"WICR FR"},{"$f":"Calculations!E93","v":"Huurre WICR10"},{"$f":"Calculations!F93","v":3030.3030303030305},{"$f":"IF(Calculations!G93=0,\"No\",\"Yes\")","v":"No"},{"$f":"LOOKUP(C93,List!$E$3:$E$12,List!$F$3:$F$12)","v":"WICR 10m3"},{"$f":"Calculations!AU93*ROUNDUP('Total Solution Costs'!$B$2/'Cash Flow data'!H93,0)","v":10},{"$f":"Calculations!H93","v":"No"},{"$f":"Calculations!I93","v":15},"NO",{"$f":"Calculations!CX93","v":349935},{"$f":"Calculations!BH93","v":239775},{"$f":"Calculations!BI93","v":12240},{"$f":"Calculations!BJ93","v":12240},{"$f":"Calculations!BK93","v":12240},{"$f":"Calculations!BL93","v":12240},{"$f":"Calculations!BM93","v":12240},{"$f":"Calculations!BN93","v":12240},{"$f":"Calculations!BO93","v":12240},{"$f":"Calculations!BP93","v":12240},{"$f":"Calculations!BQ93","v":12240},{"$f":"Calculations!BR93","v":12240},{"$f":"Calculations!BS93","v":12240},{"$f":"Calculations!BT93","v":12240},{"$f":"Calculations!BU93","v":12240},{"$f":"Calculations!BV93","v":12240},{"$f":"Calculations!BW93","v":239775},{"$f":"Calculations!BX93","v":12240},{"$f":"Calculations!BY93","v":12240},{"$f":"Calculations!BZ93","v":12240},{"$f":"Calculations!CA93","v":12240}]
[{"$f":"Calculations!A94","v":"WICR FR"},{"$f":"Calculations!E94","v":"Huurre WICR30"},{"$f":"Calculations!F94","v":7692.3076923076924},{"$f":"IF(Calculations!G94=0,\"No\",\"Yes\")","v":"No"},{"$f":"LOOKUP(C94,List!$E$3:$E$12,List!$F$3:$F$12)","v":"WICR 30m3"},{"$f":"Calculations!AU94*ROUNDUP('Total Solution Costs'!$B$2/'Cash Flow data'!H94,0)","v":10},{"$f":"Calculations!H94","v":"No"},{"$f":"Calculations!I94","v":15},"NO",{"$f":"Calculations!CX94","v":502591},{"$f":"Calculations!BH94","v":313591},{"$f":"Calculations!BI94","v":21000},{"$f":"Calculations!BJ94","v":21000},{"$f":"Calculations!BK94","v":21000},{"$f":"Calculations!BL94","v":21000},{"$f":"Calculations!BM94","v":21000},{"$f":"Calculations!BN94","v":21000},{"$f":"Calculations!BO94","v":21000},{"$f":"Calculations!BP94","v":21000},{"$f":"Calculations!BQ94","v":21000},{"$f":"Calculations!BR94","v":21000},{"$f":"Calculations!BS94","v":21000},{"$f":"Calculations!BT94","v":21000},{"$f":"Calculations!BU94","v":21000},{"$f":"Calculations!BV94","v":21000},{"$f":"Calculations!BW94","v":313591},{"$f":"Calculations!BX94","v":21000},{"$f":"Calculations!BY94","v":21000},{"$f":"Calculations!BZ94","v":21000},{"$f":"Calculations!CA94","v":21000}]
[{"$f":"Calculations!A95","v":"WICR FR"},{"$f":"Calculations!E95","v":"Huurre WICR40"},{"$f":"Calculations!F95","v":9523.8095238095229},{"$f":"IF(Calculations!G95=0,\"No\",\"Yes\")","v":"No"},{"$f":"LOOKUP(C95,List!$E$3:$E$12,List!$F$3:$F$12)","v":"WICR 40m3"},{"$f":"Calculations!AU95*ROUNDUP('Total Solution Costs'!$B$2/'Cash Flow data'!H95,0)","v":10},{"$f":"Calculations!H95","v":"No"},{"$f":"Calculations!I95","v":15},"NO",{"$f":"Calculations!CX95","v":515944},{"$f":"Calculations!BH95","v":274384},{"$f":"Calculations!BI95","v":26840},{"$f":"Calculations!BJ95","v":26840},{"$f":"Calculations!BK95","v":26840},{"$f":"Calculations!BL95","v":26840},{"$f":"Calculations!BM95","v":26840},{"$f":"Calculations!BN95","v":26840},{"$f":"Calculations!BO95","v":26840},{"$f":"Calculations!BP95","v":26840},{"$f":"Calculations!BQ95","v":26840},{"$f":"Calculations!BR95","v":26840},{"$f":"Calculations!BS95","v":26840},{"$f":"Calculations!BT95","v":26840},{"$f":"Calculations!BU95","v":26840},{"$f":"Calculations!BV95","v":26840},{"$f":"Calculations!BW95","v":274384},{"$f":"Calculations!BX95","v":26840},{"$f":"Calculations!BY95","v":26840},{"$f":"Calculations!BZ95","v":26840},{"$f":"Calculations!CA95","v":26840}]
[{"$f":"Calculations!A96","v":"WICR FR"},{"$f":"Calculations!E96","v":"Haier WICR10"},{"$f":"Calculations!F96","v":3030.3030303030305},{"$f":"IF(Calculations!G96=0,\"No\",\"Yes\")","v":"No"},{"$f":"LOOKUP(C96,List!$E$3:$E$12,List!$F$3:$F$12)","v":"WICR 10m3"},{"$f":"Calculations!AU96*ROUNDUP('Total Solution Costs'!$B$2/'Cash Flow data'!H96,0)","v":10},{"$f":"Calculations!H96","v":"No"},{"$f":"Calculations!I96","v":15},"NO",{"$f":"Calculations!CX96","v":280074.00000000006},{"$f":"Calculations!BH96","v":232788.9},{"$f":"Calculations!BI96","v":5253.9},{"$f":"Calculations!BJ96","v":5253.9},{"$f":"Calculations!BK96","v":5253.9},{"$f":"Calculations!BL96","v":5253.9},{"$f":"Calculations!BM96","v":5253.9},{"$f":"Calculations!BN96","v":5253.9},{"$f":"Calculations!BO96","v":5253.9},{"$f":"Calculations!BP96","v":5253.9},{"$f":"Calculations!BQ96","v":5253.9},{"$f":"Calculations!BR96","v":5253.9},{"$f":"Calculations!BS96","v":5253.9},{"$f":"Calculations!BT96","v":5253.9},{"$f":"Calculations!BU96","v":5253.9},{"$f":"Calculations!BV96","v":5253.9},{"$f":"Calculations!BW96","v":232788.9},{"$f":"Calculations!BX96","v":5253.9},{"$f":"Calculations!BY96","v":5253.9},{"$f":"Calculations!BZ96","v":5253.9},{"$f":"Calculations!CA96","v":5253.9}]
[{"$f":"Calculations!A97","v":"WICR FR"},{"$f":"Calculations!E97","v":"Haier WICR30"},{"$f":"Calculations!F97","v":7692.3076923076924},{"$f":"IF(Calculations!G97=0,\"No\",\"Yes\")","v":"No"},{"$f":"LOOKUP(C97,List!$E$3:$E$12,List!$F$3:$F$12)","v":"WICR 30m3"},{"$f":"Calculations!AU97*ROUNDUP('Total Solution Costs'!$B$2/'Cash Flow data'!H97,0)","v":10},{"$f":"Calculations!H97","v":"No"},{"$f":"Calculations!I97","v":15},"NO",{"$f":"Calculations!CX97","v":377031.00000000006},{"$f":"Calculations!BH97","v":301035.00000000006},{"$f":"Calculations!BI97","v":8444},{"$f":"Calculations!BJ97","v":8444},{"$f":"Calculations!BK97","v":8444},{"$f":"Calculations!BL97","v":8444},{"$f":"Calculations!BM97","v":8444},{"$f":"Calculations!BN97","v":8444},{"$f":"Calculations!BO97","v":8444},{"$f":"Calculations!BP97","v":8444},{"$f":"Calculations!BQ97","v":8444},{"$f":"Calculations!BR97","v":8444},{"$f":"Calculations!BS97","v":8444},{"$f":"Calculations!BT97","v":8444},{"$f":"Calculations!BU97","v":8444},{"$f":"Calculations!BV97","v":8444},{"$f":"Calculations!BW97","v":301035.00000000006},{"$f":"Calculations!BX97","v":8444},{"$f":"Calculations!BY97","v":8444},{"$f":"Calculations!BZ97","v":8444},{"$f":"Calculations!CA97","v":8444}]
[{"$f":"Calculations!A98","v":"WICR FR"},{"$f":"Calculations!E98","v":"Haier WICR40"},{"$f":"Calculations!F98","v":9523.8095238095229},{"$f":"IF(Calculations!G98=0,\"No\",\"Yes\")","v":"No"},{"$f":"LOOKUP(C98,List!$E$3:$E$12,List!$F$3:$F$12)","v":"WICR 40m3"},{"$f":"Calculations!AU98*ROUNDUP('Total Solution Costs'!$B$2/'Cash Flow data'!H98,0)","v":10},{"$f":"Calculations!H98","v":"No"},{"$f":"Calculations!I98","v":15},"NO",{"$f":"Calculations!CX98","v":371404},{"$f":"Calculations!BH98","v":259930},{"$f":"Calculations!BI98","v":12386.000000000002},{"$f":"Calculations!BJ98","v":12386.000000000002},{"$f":"Calculations!BK98","v":12386.000000000002},{"$f":"Calculations!BL98","v":12386.000000000002},{"$f":"Calculations!BM98","v":12386.000000000002},{"$f":"Calculations!BN98","v":12386.000000000002},{"$f":"Calculations!BO98","v":12386.000000000002},{"$f":"Calculations!BP98","v":12386.000000000002},{"$f":"Calculations!BQ98","v":12386.000000000002},{"$f":"Calculations!BR98","v":12386.000000000002},{"$f":"Calculations!BS98","v":12386.000000000002},{"$f":"Calculations!BT98","v":12386.000000000002},{"$f":"Calculations!BU98","v":12386.000000000002},{"$f":"Calculations!BV98","v":12386.000000000002},{"$f":"Calculations!BW98","v":259930},{"$f":"Calculations!BX98","v":12386.000000000002},{"$f":"Calculations!BY98","v":12386.000000000002},{"$f":"Calculations!BZ98","v":12386.000000000002},{"$f":"Calculations!CA98","v":12386.000000000002}]
[{"$f":"Calculations!A99","v":"WICR FR"},{"$f":"Calculations!E99","v":"Zhendre WIFR20"},{"$f":"Calculations!F99","v":5555.5555555555557},{"$f":"IF(Calculations!G99=0,\"No\",\"Yes\")","v":"Yes"},{"$f":"LOOKUP(C99,List!$E$3:$E$12,List!$F$3:$F$12)","v":"WIFR"},{"$f":"Calculations!AU99*ROUNDUP('Total Solution Costs'!$B$2/'Cash Flow data'!H99,0)","v":10},{"$f":"Calculations!H99","v":"No"},{"$f":"Calculations!I99","v":15},"NO",{"$f":"Calculations!CX99","v":633233.30000000005},{"$f":"Calculations!BH99","v":266843.30000000005},{"$f":"Calculations!BI99","v":40710},{"$f":"Calculations!BJ99","v":40710},{"$f":"Calculations!BK99","v":40710},{"$f":"Calculations!BL99","v":40710},{"$f":"Calculations!BM99","v":40710},{"$f":"Calculations!BN99","v":40710},{"$f":"Calculations!BO99","v":40710},{"$f":"Calculations!BP99","v":40710},{"$f":"Calculations!BQ99","v":40710},{"$f":"Calculations!BR99","v":40710},{"$f":"Calculations!BS99","v":40710},{"$f":"Calculations!BT99","v":40710},{"$f":"Calculations!BU99","v":40710},{"$f":"Calculations!BV99","v":40710},{"$f":"Calculations!BW99","v":266843.30000000005},{"$f":"Calculations!BX99","v":40710},{"$f":"Calculations!BY99","v":40710},{"$f":"Calculations!BZ99","v":40710},{"$f":"Calculations!CA99","v":40710}]
[{"$f":"Calculations!A100","v":"WICR FR"},{"$f":"Calculations!E100","v":"Huurre WIFR20"},{"$f":"Calculations!F100","v":5555.5555555555557},{"$f":"IF(Calculations!G100=0,\"No\",\"Yes\")","v":"Yes"},{"$f":"LOOKUP(C100,List!$E$3:$E$12,List!$F$3:$F$12)","v":"WIFR"},{"$f":"Calculations!AU100*ROUNDUP('Total Solution Costs'!$B$2/'Cash Flow data'!H100,0)","v":10},{"$f":"Calculations!H100","v":"No"},{"$f":"Calculations!I100","v":15},"NO",{"$f":"Calculations!CX100","v":633233.30000000005},{"$f":"Calculations!BH100","v":266843.30000000005},{"$f":"Calculations!BI100","v":40710},{"$f":"Calculations!BJ100","v":40710},{"$f":"Calculations!BK100","v":40710},{"$f":"Calculations!BL100","v":40710},{"$f":"Calculations!BM100","v":40710},{"$f":"Calculations!BN100","v":40710},{"$f":"Calculations!BO100","v":40710},{"$f":"Calculations!BP100","v":40710},{"$f":"Calculations!BQ100","v":40710},{"$f":"Calculations!BR100","v":40710},{"$f":"Calculations!BS100","v":40710},{"$f":"Calculations!BT100","v":40710},{"$f":"Calculations!BU100","v":40710},{"$f":"Calculations!BV100","v":40710},{"$f":"Calculations!BW100","v":266843.30000000005},{"$f":"Calculations!BX100","v":40710},{"$f":"Calculations!BY100","v":40710},{"$f":"Calculations!BZ100","v":40710},{"$f":"Calculations!CA100","v":40710}]
[{"$f":"Calculations!A101","v":"WICR FR"},{"$f":"Calculations!E101","v":"Haier WIFR20"},{"$f":"Calculations!F101","v":5555.5555555555557},{"$f":"IF(Calculations!G101=0,\"No\",\"Yes\")","v":"Yes"},{"$f":"LOOKUP(C101,List!$E$3:$E$12,List!$F$3:$F$12)","v":"WIFR"},{"$f":"Calculations!AU101*ROUNDUP('Total Solution Costs'!$B$2/'Cash Flow data'!H101,0)","v":10},{"$f":"Calculations!H101","v":"No"},{"$f":"Calculations!I101","v":15},"NO",{"$f":"Calculations!CX101","v":326341.29999999993},{"$f":"Calculations!BH101","v":236154.10000000003},{"$f":"Calculations!BI101","v":10020.800000000001},{"$f":"Calculations!BJ101","v":10020.800000000001},{"$f":"Calculations!BK101","v":10020.800000000001},{"$f":"Calculations!BL101","v":10020.800000000001},{"$f":"Calculations!BM101","v":10020.800000000001},{"$f":"Calculations!BN101","v":10020.800000000001},{"$f":"Calculations!BO101","v":10020.800000000001},{"$f":"Calculations!BP101","v":10020.800000000001},{"$f":"Calculations!BQ101","v":10020.800000000001},{"$f":"Calculations!BR101","v":10020.800000000001},{"$f":"Calculations!BS101","v":10020.800000000001},{"$f":"Calculations!BT101","v":10020.800000000001},{"$f":"Calculations!BU101","v":10020.800000000001},{"$f":"Calculations!BV101","v":10020.800000000001},{"$f":"Calculations!BW101","v":236154.10000000003},{"$f":"Calculations!BX101","v":10020.800000000001},{"$f":"Calculations!BY101","v":10020.800000000001},{"$f":"Calculations!BZ101","v":10020.800000000001},{"$f":"Calculations!CA101","v":10020.800000000001}]
[{"$f":"Calculations!A102","v":"WICR FR"},{"$f":"Calculations!E102","v":"Zhendre CRFR40"},{"$f":"Calculations!F102","v":6666.666666666667},{"$f":"IF(Calculations!G102=0,\"No\",\"Yes\")","v":"Yes"},{"$f":"LOOKUP(C102,List!$E$3:$E$12,List!$F$3:$F$12)","v":"WICR FR"},{"$f":"Calculations!AU102*ROUNDUP('Total Solution Costs'!$B$2/'Cash Flow data'!H102,0)","v":10},{"$f":"Calculations!H102","v":"No"},{"$f":"Calculations!I102","v":15},"NO",{"$f":"Calculations!CX102","v":1031930},{"$f":"Calculations!BH102","v":547280},{"$f":"Calculations!BI102","v":53850.000000000007},{"$f":"Calculations!BJ102","v":53850.000000000007},{"$f":"Calculations!BK102","v":53850.000000000007},{"$f":"Calculations!BL102","v":53850.000000000007},{"$f":"Calculations!BM102","v":53850.000000000007},{"$f":"Calculations!BN102","v":53850.000000000007},{"$f":"Calculations!BO102","v":53850.000000000007},{"$f":"Calculations!BP102","v":53850.000000000007},{"$f":"Calculations!BQ102","v":53850.000000000007},{"$f":"Calculations!BR102","v":53850.000000000007},{"$f":"Calculations!BS102","v":53850.000000000007},{"$f":"Calculations!BT102","v":53850.000000000007},{"$f":"Calculations!BU102","v":53850.000000000007},{"$f":"Calculations!BV102","v":53850.000000000007},{"$f":"Calculations!BW102","v":547280},{"$f":"Calculations!BX102","v":53850.000000000007},{"$f":"Calculations!BY102","v":53850.000000000007},{"$f":"Calculations!BZ102","v":53850.000000000007},{"$f":"Calculations!CA102","v":53850.000000000007}]
[{"$f":"Calculations!A103","v":"WICR FR"},{"$f":"Calculations!E103","v":"Huurre CRFR40"},{"$f":"Calculations!F103","v":6666.666666666667},{"$f":"IF(Calculations!G103=0,\"No\",\"Yes\")","v":"Yes"},{"$f":"LOOKUP(C103,List!$E$3:$E$12,List!$F$3:$F$12)","v":"WICR FR"},{"$f":"Calculations!AU103*ROUNDUP('Total Solution Costs'!$B$2/'Cash Flow data'!H103,0)","v":10},{"$f":"Calculations!H103","v":"No"},{"$f":"Calculations!I103","v":15},"NO",{"$f":"Calculations!CX103","v":988130},{"$f":"Calculations!BH103","v":542900},{"$f":"Calculations!BI103","v":49470},{"$f":"Calculations!BJ103","v":49470},{"$f":"Calculations!BK103","v":49470},{"$f":"Calculations!BL103","v":49470},{"$f":"Calculations!BM103","v":49470},{"$f":"Calculations!BN103","v":49470},{"$f":"Calculations!BO103","v":49470},{"$f":"Calculations!BP103","v":49470},{"$f":"Calculations!BQ103","v":49470},{"$f":"Calculations!BR103","v":49470},{"$f":"Calculations!BS103","v":49470},{"$f":"Calculations!BT103","v":49470},{"$f":"Calculations!BU103","v":49470},{"$f":"Calculations!BV103","v":49470},{"$f":"Calculations!BW103","v":542900},{"$f":"Calculations!BX103","v":49470},{"$f":"Calculations!BY103","v":49470},{"$f":"Calculations!BZ103","v":49470},{"$f":"Calculations!CA103","v":49470}]
[{"$f":"Calculations!A104","v":"WICR FR"},{"$f":"Calculations!E104","v":"Haier CRFR40"},{"$f":"Calculations!F104","v":6666.666666666667},{"$f":"IF(Calculations!G104=0,\"No\",\"Yes\")","v":"Yes"},{"$f":"LOOKUP(C104,List!$E$3:$E$12,List!$F$3:$F$12)","v":"WICR FR"},{"$f":"Calculations!AU104*ROUNDUP('Total Solution Costs'!$B$2/'Cash Flow data'!H104,0)","v":10},{"$f":"Calculations!H104","v":"No"},{"$f":"Calculations!I104","v":15},"NO",{"$f":"Calculations!CX104","v":672478.00000000047},{"$f":"Calculations!BH104","v":511334.80000000005},{"$f":"Calculations!BI104","v":17904.800000000003},{"$f":"Calculations!BJ104","v":17904.800000000003},{"$f":"Calculations!BK104","v":17904.800000000003},{"$f":"Calculations!BL104","v":17904.800000000003},{"$f":"Calculations!BM104","v":17904.800000000003},{"$f":"Calculations!BN104","v":17904.800000000003},{"$f":"Calculations!BO104","v":17904.800000000003},{"$f":"Calculations!BP104","v":17904.800000000003},{"$f":"Calculations!BQ104","v":17904.800000000003},{"$f":"Calculations!BR104","v":17904.800000000003},{"$f":"Calculations!BS104","v":17904.800000000003},{"$f":"Calculations!BT104","v":17904.800000000003},{"$f":"Calculations!BU104","v":17904.800000000003},{"$f":"Calculations!BV104","v":17904.800000000003},{"$f":"Calculations!BW104","v":511334.80000000005},{"$f":"Calculations!BX104","v":17904.800000000003},{"$f":"Calculations!BY104","v":17904.800000000003},{"$f":"Calculations!BZ104","v":17904.800000000003},{"$f":"Calculations!CA104","v":17904.800000000003}]
[{"$f":"Calculations!A105","v":"LT passive"},{"$f":"Calculations!E105","v":"Aucma ARKTEK-YBC-5*"},{"$f":"Calculations!F105","v":5.4},{"$f":"IF(Calculations!G105=0,\"No\",\"Yes\")","v":"No"},{"$f":"LOOKUP(C105,List!$E$3:$E$12,List!$F$3:$F$12)","v":" 1-29"},{"$f":"Calculations!AU105*ROUNDUP('Total Solution Costs'!$B$2/'Cash Flow data'!H105,0)","v":60},{"$f":"Calculations!H105","v":"Yes"},{"$f":"Calculations!I105","v":8},"NO",{"$f":"Calculations!CX105","v":198810.6},{"$f":"Calculations!BH105","v":91485.3},{"$f":"Calculations!BI105","v":1980},{"$f":"Calculations!BJ105","v":1980},{"$f":"Calculations!BK105","v":1980},{"$f":"Calculations!BL105","v":1980},{"$f":"Calculations!BM105","v":1980},{"$f":"Calculations!BN105","v":1980},{"$f":"Calculations!BO105","v":1980},{"$f":"Calculations!BP105","v":91485.3},{"$f":"Calculations!BQ105","v":1980},{"$f":"Calculations!BR105","v":1980},{"$f":"Calculations!BS105","v":1980},{"$f":"Calculations!BT105","v":1980},{"$f":"Calculations!BU105","v":1980},{"$f":"Calculations!BV105","v":1980},{"$f":"Calculations!BW105","v":1980},{"$f":"Calculations!BX105","v":91485.3},{"$f":"Calculations!BY105","v":1980},{"$f":"Calculations!BZ105","v":1980},{"$f":"Calculations!CA105","v":1980}]
[{"$f":"Calculations!A106","v":"LT passive"},{"$f":"Calculations!E106","v":"Aucma tbd"},{"$f":"Calculations!F106","v":10},{"$f":"IF(Calculations!G106=0,\"No\",\"Yes\")","v":"No"},{"$f":"LOOKUP(C106,List!$E$3:$E$12,List!$F$3:$F$12)","v":" 1-29"},{"$f":"Calculations!AU106*ROUNDUP('Total Solution Costs'!$B$2/'Cash Flow data'!H106,0)","v":40},{"$f":"Calculations!H106","v":"No"},{"$f":"Calculations!I106","v":8},"NO",{"$f":"Calculations!CX106","v":30120},{"$f":"Calculations!BH106","v":9780},{"$f":"Calculations!BI106","v":1320},{"$f":"Calculations!BJ106","v":1320},{"$f":"Calculations!BK106","v":1320},{"$f":"Calculations!BL106","v":1320},{"$f":"Calculations!BM106","v":1320},{"$f":"Calculations!BN106","v":1320},{"$f":"Calculations!BO106","v":1320},{"$f":"Calculations!BP106","v":9780},{"$f":"Calculations!BQ106","v":1320},{"$f":"Calculations!BR106","v":1320},{"$f":"Calculations!BS106","v":1320},{"$f":"Calculations!BT106","v":1320},{"$f":"Calculations!BU106","v":1320},{"$f":"Calculations!BV106","v":1320},{"$f":"Calculations!BW106","v":1320},{"$f":"Calculations!BX106","v":9780},{"$f":"Calculations!BY106","v":1320},{"$f":"Calculations!BZ106","v":1320},{"$f":"Calculations!CA106","v":1320}]
[{"$f":"Calculations!A107","v":"LT passive"},{"$f":"Calculations!E107","v":"SureChill tbd"},{"$f":"Calculations!F107","v":8},{"$f":"IF(Calculations!G107=0,\"No\",\"Yes\")","v":"No"},{"$f":"LOOKUP(C107,List!$E$3:$E$12,List!$F$3:$F$12)","v":" 1-29"},{"$f":"Calculations!AU107*ROUNDUP('Total Solution Costs'!$B$2/'Cash Flow data'!H107,0)","v":40},{"$f":"Calculations!H107","v":"No"},{"$f":"Calculations!I107","v":8},"NO",{"$f":"Calculations!CX107","v":30120},{"$f":"Calculations!BH107","v":9780},{"$f":"Calculations!BI107","v":1320},{"$f":"Calculations!BJ107","v":1320},{"$f":"Calculations!BK107","v":1320},{"$f":"Calculations!BL107","v":1320},{"$f":"Calculations!BM107","v":1320},{"$f":"Calculations!BN107","v":1320},{"$f":"Calculations!BO107","v":1320},{"$f":"Calculations!BP107","v":9780},{"$f":"Calculations!BQ107","v":1320},{"$f":"Calculations!BR107","v":1320},{"$f":"Calculations!BS107","v":1320},{"$f":"Calculations!BT107","v":1320},{"$f":"Calculations!BU107","v":1320},{"$f":"Calculations!BV107","v":1320},{"$f":"Calculations!BW107","v":1320},{"$f":"Calculations!BX107","v":9780},{"$f":"Calculations!BY107","v":1320},{"$f":"Calculations!BZ107","v":1320},{"$f":"Calculations!CA107","v":1320}]
[{"$f":"Calculations!A5","v":"Gas"},{"$f":"Calculations!E5","v":"B Medical RCW 50 EG"},{"$f":"IF(Calculations!F5=0, Calculations!G5, Calculations!F5)","v":24},{"$f":"IF(Calculations!G5=0,\"No\",\"Yes\")","v":"No"},{"$f":"LOOKUP(C108,List!$E$3:$E$12,List!$F$3:$F$12)","v":" 1-29"},{"$f":"Calculations!AU5*ROUNDUP('Total Solution Costs'!$B$2/'Cash Flow data'!H5,0)","v":10},{"$f":"Calculations!H5","v":"No"},{"$f":"Calculations!I5","v":10},"YES",null,{"$f":"Calculations!DA5","v":30971.379000000001},{"$f":"Calculations!DB5","v":35158.309000000001},{"$f":"Calculations!DC5","v":39345.239000000001},{"$f":"Calculations!DD5","v":43532.169000000002},{"$f":"Calculations!DE5","v":47719.099000000002},{"$f":"Calculations!DF5","v":51906.029000000002},{"$f":"Calculations!DG5","v":56092.959000000003},{"$f":"Calculations!DH5","v":60279.889000000003},{"$f":"Calculations!DI5","v":64466.819000000003},{"$f":"Calculations!DJ5","v":68653.749000000011},{"$f":"Calculations!DK5","v":99625.128000000012},{"$f":"Calculations!DL5","v":103812.05800000002},{"$f":"Calculations!DM5","v":107998.98800000001},{"$f":"Calculations!DN5","v":112185.91800000001},{"$f":"Calculations!DO5","v":116372.848},{"$f":"Calculations!DP5","v":120559.77799999999},{"$f":"Calculations!DQ5","v":124746.70799999998},{"$f":"Calculations!DR5","v":128933.63799999998},{"$f":"Calculations!DS5","v":133120.56799999997},{"$f":"Calculations!DT5","v":137307.49799999996}]
[{"$f":"Calculations!A6","v":"Gas"},{"$f":"Calculations!E6","v":"Sibir V 170 GE"},{"$f":"Calculations!F6","v":55},{"$f":"IF(Calculations!G6=0,\"No\",\"Yes\")","v":"No"},{"$f":"LOOKUP(C109,List!$E$3:$E$12,List!$F$3:$F$12)","v":" 30-59"},{"$f":"Calculations!AU6*ROUNDUP('Total Solution Costs'!$B$2/'Cash Flow data'!H6,0)","v":10},{"$f":"Calculations!H6","v":"No"},{"$f":"Calculations!I6","v":10},"YES",null,{"$f":"Calculations!DA6","v":28903.557000000001},{"$f":"Calculations!DB6","v":34827.156999999999},{"$f":"Calculations!DC6","v":40750.756999999998},{"$f":"Calculations!DD6","v":46674.356999999996},{"$f":"Calculations!DE6","v":52597.956999999995},{"$f":"Calculations!DF6","v":58521.556999999993},{"$f":"Calculations!DG6","v":64445.156999999992},{"$f":"Calculations!DH6","v":70368.756999999998},{"$f":"Calculations!DI6","v":76292.357000000004},{"$f":"Calculations!DJ6","v":82215.957000000009},{"$f":"Calculations!DK6","v":111119.51400000001},{"$f":"Calculations!DL6","v":117043.11400000002},{"$f":"Calculations!DM6","v":122966.71400000002},{"$f":"Calculations!DN6","v":128890.31400000003},{"$f":"Calculations!DO6","v":134813.91400000002},{"$f":"Calculations!DP6","v":140737.51400000002},{"$f":"Calculations!DQ6","v":146661.11400000003},{"$f":"Calculations!DR6","v":152584.71400000004},{"$f":"Calculations!DS6","v":158508.31400000004},{"$f":"Calculations!DT6","v":164431.91400000005}]
[{"$f":"Calculations!A7","v":"Gas"},{"$f":"Calculations!E7","v":"Sibir V 110 GE "},{"$f":"Calculations!F7","v":17},{"$f":"IF(Calculations!G7=0,\"No\",\"Yes\")","v":"No"},{"$f":"LOOKUP(C110,List!$E$3:$E$12,List!$F$3:$F$12)","v":" 1-29"},{"$f":"Calculations!AU7*ROUNDUP('Total Solution Costs'!$B$2/'Cash Flow data'!H7,0)","v":10},{"$f":"Calculations!H7","v":"No"},{"$f":"Calculations!I7","v":10},"YES",null,{"$f":"Calculations!DA7","v":25194.127000000004},{"$f":"Calculations!DB7","v":29113.877000000004},{"$f":"Calculations!DC7","v":33033.627000000008},{"$f":"Calculations!DD7","v":36953.377000000008},{"$f":"Calculations!DE7","v":40873.127000000008},{"$f":"Calculations!DF7","v":44792.877000000008},{"$f":"Calculations!DG7","v":48712.627000000008},{"$f":"Calculations!DH7","v":52632.377000000008},{"$f":"Calculations!DI7","v":56552.127000000008},{"$f":"Calculations!DJ7","v":60471.877000000008},{"$f":"Calculations!DK7","v":85666.004000000015},{"$f":"Calculations!DL7","v":89585.754000000015},{"$f":"Calculations!DM7","v":93505.504000000015},{"$f":"Calculations!DN7","v":97425.254000000015},{"$f":"Calculations!DO7","v":101345.00400000002},{"$f":"Calculations!DP7","v":105264.75400000002},{"$f":"Calculations!DQ7","v":109184.50400000002},{"$f":"Calculations!DR7","v":113104.25400000002},{"$f":"Calculations!DS7","v":117024.00400000002},{"$f":"Calculations!DT7","v":120943.75400000002}]
[{"$f":"Calculations!A8","v":"Freezer"},{"$f":"Calculations!E8","v":"Haier HBD 116*"},{"$f":"Calculations!F8","v":0},{"$f":"IF(Calculations!G8=0,\"No\",\"Yes\")","v":"Yes"},{"$f":"LOOKUP(C111,List!$E$3:$E$12,List!$F$3:$F$12)","v":" 1-29"},{"$f":"Calculations!AU8*ROUNDUP('Total Solution Costs'!$B$2/'Cash Flow data'!H8,0)","v":10},{"$f":"Calculations!H8","v":"Yes"},{"$f":"Calculations!I8","v":10},"YES",null,{"$f":"Calculations!DA8","v":15522.499333333335},{"$f":"Calculations!DB8","v":16986.566000000003},{"$f":"Calculations!DC8","v":18450.632666666668},{"$f":"Calculations!DD8","v":19914.699333333334},{"$f":"Calculations!DE8","v":21378.766},{"$f":"Calculations!DF8","v":22842.832666666665},{"$f":"Calculations!DG8","v":24306.899333333331},{"$f":"Calculations!DH8","v":25770.965999999997},{"$f":"Calculations!DI8","v":27235.032666666662},{"$f":"Calculations!DJ8","v":28699.099333333328},{"$f":"Calculations!DK8","v":44221.598666666665},{"$f":"Calculations!DL8","v":45685.665333333331},{"$f":"Calculations!DM8","v":47149.731999999996},{"$f":"Calculations!DN8","v":48613.798666666662},{"$f":"Calculations!DO8","v":50077.865333333328},{"$f":"Calculations!DP8","v":51541.931999999993},{"$f":"Calculations!DQ8","v":53005.998666666659},{"$f":"Calculations!DR8","v":54470.065333333325},{"$f":"Calculations!DS8","v":55934.131999999991},{"$f":"Calculations!DT8","v":57398.198666666656}]
[{"$f":"Calculations!A9","v":"Freezer"},{"$f":"Calculations!E9","v":"Haier HBD 286*"},{"$f":"Calculations!F9","v":0},{"$f":"IF(Calculations!G9=0,\"No\",\"Yes\")","v":"Yes"},{"$f":"LOOKUP(C112,List!$E$3:$E$12,List!$F$3:$F$12)","v":" 1-29"},{"$f":"Calculations!AU9*ROUNDUP('Total Solution Costs'!$B$2/'Cash Flow data'!H9,0)","v":10},{"$f":"Calculations!H9","v":"Yes"},{"$f":"Calculations!I9","v":10},"YES",null,{"$f":"Calculations!DA9","v":19450.391333333333},{"$f":"Calculations!DB9","v":23819.858},{"$f":"Calculations!DC9","v":28189.324666666667},{"$f":"Calculations!DD9","v":32558.791333333334},{"$f":"Calculations!DE9","v":36928.258000000002},{"$f":"Calculations!DF9","v":41297.724666666669},{"$f":"Calculations!DG9","v":45667.191333333336},{"$f":"Calculations!DH9","v":50036.658000000003},{"$f":"Calculations!DI9","v":54406.12466666667},{"$f":"Calculations!DJ9","v":58775.591333333337},{"$f":"Calculations!DK9","v":78225.982666666678},{"$f":"Calculations!DL9","v":82595.449333333352},{"$f":"Calculations!DM9","v":86964.916000000027},{"$f":"Calculations!DN9","v":91334.382666666701},{"$f":"Calculations!DO9","v":95703.849333333375},{"$f":"Calculations!DP9","v":100073.31600000005},{"$f":"Calculations!DQ9","v":104442.78266666672},{"$f":"Calculations!DR9","v":108812.2493333334},{"$f":"Calculations!DS9","v":113181.71600000007},{"$f":"Calculations!DT9","v":117551.18266666675}]
[{"$f":"Calculations!A10","v":"Freezer"},{"$f":"Calculations!E10","v":"Vestfrost MF 314*"},{"$f":"Calculations!F10","v":0},{"$f":"IF(Calculations!G10=0,\"No\",\"Yes\")","v":"Yes"},{"$f":"LOOKUP(C113,List!$E$3:$E$12,List!$F$3:$F$12)","v":" 1-29"},{"$f":"Calculations!AU10*ROUNDUP('Total Solution Costs'!$B$2/'Cash Flow data'!H10,0)","v":10},{"$f":"Calculations!H10","v":"Yes"},{"$f":"Calculations!I10","v":10},"YES",null,{"$f":"Calculations!DA10","v":20790.372746666668},{"$f":"Calculations!DB10","v":25064.939413333334},{"$f":"Calculations!DC10","v":29339.506079999999},{"$f":"Calculations!DD10","v":33614.072746666665},{"$f":"Calculations!DE10","v":37888.639413333331},{"$f":"Calculations!DF10","v":42163.206079999996},{"$f":"Calculations!DG10","v":46437.772746666662},{"$f":"Calculations!DH10","v":50712.339413333328},{"$f":"Calculations!DI10","v":54986.906079999993},{"$f":"Calculations!DJ10","v":59261.472746666659},{"$f":"Calculations!DK10","v":80051.845493333327},{"$f":"Calculations!DL10","v":84326.412159999993},{"$f":"Calculations!DM10","v":88600.978826666658},{"$f":"Calculations!DN10","v":92875.545493333324},{"$f":"Calculations!DO10","v":97150.11215999999},{"$f":"Calculations!DP10","v":101424.67882666666},{"$f":"Calculations!DQ10","v":105699.24549333332},{"$f":"Calculations!DR10","v":109973.81215999999},{"$f":"Calculations!DS10","v":114248.37882666665},{"$f":"Calculations!DT10","v":118522.94549333332}]
[{"$f":"Calculations!A11","v":"Freezer"},{"$f":"Calculations!E11","v":"Vestfrost MF 114*"},{"$f":"Calculations!F11","v":0},{"$f":"IF(Calculations!G11=0,\"No\",\"Yes\")","v":"Yes"},{"$f":"LOOKUP(C114,List!$E$3:$E$12,List!$F$3:$F$12)","v":" 1-29"},{"$f":"Calculations!AU11*ROUNDUP('Total Solution Costs'!$B$2/'Cash Flow data'!H11,0)","v":10},{"$f":"Calculations!H11","v":"Yes"},{"$f":"Calculations!I11","v":10},"YES",null,{"$f":"Calculations!DA11","v":17827.046746666667},{"$f":"Calculations!DB11","v":20648.913413333335},{"$f":"Calculations!DC11","v":23470.780080000004},{"$f":"Calculations!DD11","v":26292.646746666673},{"$f":"Calculations!DE11","v":29114.513413333341},{"$f":"Calculations!DF11","v":31936.38008000001},{"$f":"Calculations!DG11","v":34758.246746666679},{"$f":"Calculations!DH11","v":37580.113413333347},{"$f":"Calculations!DI11","v":40401.980080000016},{"$f":"Calculations!DJ11","v":43223.846746666684},{"$f":"Calculations!DK11","v":61050.893493333351},{"$f":"Calculations!DL11","v":63872.76016000002},{"$f":"Calculations!DM11","v":66694.626826666688},{"$f":"Calculations!DN11","v":69516.493493333357},{"$f":"Calculations!DO11","v":72338.360160000026},{"$f":"Calculations!DP11","v":75160.226826666694},{"$f":"Calculations!DQ11","v":77982.093493333363},{"$f":"Calculations!DR11","v":80803.960160000031},{"$f":"Calculations!DS11","v":83625.8268266667},{"$f":"Calculations!DT11","v":86447.693493333369}]
[{"$f":"Calculations!A12","v":"Freezer"},{"$f":"Calculations!E12","v":"Vestfrost MF 214*"},{"$f":"Calculations!F12","v":0},{"$f":"IF(Calculations!G12=0,\"No\",\"Yes\")","v":"Yes"},{"$f":"LOOKUP(C115,List!$E$3:$E$12,List!$F$3:$F$12)","v":" 1-29"},{"$f":"Calculations!AU12*ROUNDUP('Total Solution Costs'!$B$2/'Cash Flow data'!H12,0)","v":10},{"$f":"Calculations!H12","v":"Yes"},{"$f":"Calculations!I12","v":10},"YES",null,{"$f":"Calculations!DA12","v":19063.213116666666},{"$f":"Calculations!DB12","v":22439.879783333334},{"$f":"Calculations!DC12","v":25816.546450000002},{"$f":"Calculations!DD12","v":29193.21311666667},{"$f":"Calculations!DE12","v":32569.879783333337},{"$f":"Calculations!DF12","v":35946.546450000002},{"$f":"Calculations!DG12","v":39323.213116666666},{"$f":"Calculations!DH12","v":42699.87978333333},{"$f":"Calculations!DI12","v":46076.546449999994},{"$f":"Calculations!DJ12","v":49453.213116666659},{"$f":"Calculations!DK12","v":68516.426233333332},{"$f":"Calculations!DL12","v":71893.092900000003},{"$f":"Calculations!DM12","v":75269.759566666675},{"$f":"Calculations!DN12","v":78646.426233333346},{"$f":"Calculations!DO12","v":82023.092900000018},{"$f":"Calculations!DP12","v":85399.759566666689},{"$f":"Calculations!DQ12","v":88776.426233333361},{"$f":"Calculations!DR12","v":92153.092900000032},{"$f":"Calculations!DS12","v":95529.759566666704},{"$f":"Calculations!DT12","v":98906.426233333375}]
[{"$f":"Calculations!A13","v":"Freezer"},{"$f":"Calculations!E13","v":"B Medical TFW 800*"},{"$f":"Calculations!F13","v":0},{"$f":"IF(Calculations!G13=0,\"No\",\"Yes\")","v":"Yes"},{"$f":"LOOKUP(C116,List!$E$3:$E$12,List!$F$3:$F$12)","v":" 1-29"},{"$f":"Calculations!AU13*ROUNDUP('Total Solution Costs'!$B$2/'Cash Flow data'!H13,0)","v":10},{"$f":"Calculations!H13","v":"Yes"},{"$f":"Calculations!I13","v":10},"YES",null,{"$f":"Calculations!DA13","v":49048.417016666659},{"$f":"Calculations!DB13","v":52680.583683333323},{"$f":"Calculations!DC13","v":56312.750349999988},{"$f":"Calculations!DD13","v":59944.917016666652},{"$f":"Calculations!DE13","v":63577.083683333316},{"$f":"Calculations!DF13","v":67209.250349999988},{"$f":"Calculations!DG13","v":70841.417016666659},{"$f":"Calculations!DH13","v":74473.583683333331},{"$f":"Calculations!DI13","v":78105.750350000002},{"$f":"Calculations!DJ13","v":81737.917016666674},{"$f":"Calculations!DK13","v":130786.33403333333},{"$f":"Calculations!DL13","v":134418.5007},{"$f":"Calculations!DM13","v":138050.66736666666},{"$f":"Calculations!DN13","v":141682.83403333332},{"$f":"Calculations!DO13","v":145315.00069999998},{"$f":"Calculations!DP13","v":148947.16736666663},{"$f":"Calculations!DQ13","v":152579.33403333329},{"$f":"Calculations!DR13","v":156211.50069999995},{"$f":"Calculations!DS13","v":159843.6673666666},{"$f":"Calculations!DT13","v":163475.83403333326}]
[{"$f":"Calculations!A14","v":"Freezer"},{"$f":"Calculations!E14","v":"Aucma DW-25W147*"},{"$f":"Calculations!F14","v":0},{"$f":"IF(Calculations!G14=0,\"No\",\"Yes\")","v":"Yes"},{"$f":"LOOKUP(C117,List!$E$3:$E$12,List!$F$3:$F$12)","v":" 1-29"},{"$f":"Calculations!AU14*ROUNDUP('Total Solution Costs'!$B$2/'Cash Flow data'!H14,0)","v":10},{"$f":"Calculations!H14","v":"Yes"},{"$f":"Calculations!I14","v":10},"YES",null,{"$f":"Calculations!DA14","v":18455.838666666667},{"$f":"Calculations!DB14","v":22058.805333333334},{"$f":"Calculations!DC14","v":25661.772000000001},{"$f":"Calculations!DD14","v":29264.738666666668},{"$f":"Calculations!DE14","v":32867.705333333332},{"$f":"Calculations!DF14","v":36470.671999999999},{"$f":"Calculations!DG14","v":40073.638666666666},{"$f":"Calculations!DH14","v":43676.605333333333},{"$f":"Calculations!DI14","v":47279.572},{"$f":"Calculations!DJ14","v":50882.538666666667},{"$f":"Calculations!DK14","v":69338.377333333337},{"$f":"Calculations!DL14","v":72941.343999999997},{"$f":"Calculations!DM14","v":76544.310666666657},{"$f":"Calculations!DN14","v":80147.277333333317},{"$f":"Calculations!DO14","v":83750.243999999977},{"$f":"Calculations!DP14","v":87353.210666666637},{"$f":"Calculations!DQ14","v":90956.177333333297},{"$f":"Calculations!DR14","v":94559.143999999957},{"$f":"Calculations!DS14","v":98162.110666666616},{"$f":"Calculations!DT14","v":101765.07733333328}]
[{"$f":"Calculations!A15","v":"Freezer"},{"$f":"Calculations!E15","v":"Aucma DW-25W300*"},{"$f":"Calculations!F15","v":0},{"$f":"IF(Calculations!G15=0,\"No\",\"Yes\")","v":"Yes"},{"$f":"LOOKUP(C118,List!$E$3:$E$12,List!$F$3:$F$12)","v":" 1-29"},{"$f":"Calculations!AU15*ROUNDUP('Total Solution Costs'!$B$2/'Cash Flow data'!H15,0)","v":10},{"$f":"Calculations!H15","v":"Yes"},{"$f":"Calculations!I15","v":10},"YES",null,{"$f":"Calculations!DA15","v":21264.41166666667},{"$f":"Calculations!DB15","v":24911.178333333337},{"$f":"Calculations!DC15","v":28557.945000000003},{"$f":"Calculations!DD15","v":32204.71166666667},{"$f":"Calculations!DE15","v":35851.478333333333},{"$f":"Calculations!DF15","v":39498.244999999995},{"$f":"Calculations!DG15","v":43145.011666666658},{"$f":"Calculations!DH15","v":46791.778333333321},{"$f":"Calculations!DI15","v":50438.544999999984},{"$f":"Calculations!DJ15","v":54085.311666666646},{"$f":"Calculations!DK15","v":75349.723333333313},{"$f":"Calculations!DL15","v":78996.489999999976},{"$f":"Calculations!DM15","v":82643.256666666639},{"$f":"Calculations!DN15","v":86290.023333333302},{"$f":"Calculations!DO15","v":89936.789999999964},{"$f":"Calculations!DP15","v":93583.556666666627},{"$f":"Calculations!DQ15","v":97230.32333333329},{"$f":"Calculations!DR15","v":100877.08999999995},{"$f":"Calculations!DS15","v":104523.85666666662},{"$f":"Calculations!DT15","v":108170.62333333328}]
[{"$f":"Calculations!A16","v":"Freezer"},{"$f":"Calculations!E16","v":"B Medical TFW 3000 AC*"},{"$f":"Calculations!F16","v":0},{"$f":"IF(Calculations!G16=0,\"No\",\"Yes\")","v":"Yes"},{"$f":"LOOKUP(C119,List!$E$3:$E$12,List!$F$3:$F$12)","v":" 1-29"},{"$f":"Calculations!AU16*ROUNDUP('Total Solution Costs'!$B$2/'Cash Flow data'!H16,0)","v":10},{"$f":"Calculations!H16","v":"Yes"},{"$f":"Calculations!I16","v":10},"YES",null,{"$f":"Calculations!DA16","v":50095.453116666678},{"$f":"Calculations!DB16","v":52851.619783333343},{"$f":"Calculations!DC16","v":55607.786450000007},{"$f":"Calculations!DD16","v":58363.953116666671},{"$f":"Calculations!DE16","v":61120.119783333335},{"$f":"Calculations!DF16","v":63876.28645},{"$f":"Calculations!DG16","v":66632.453116666671},{"$f":"Calculations!DH16","v":69388.619783333343},{"$f":"Calculations!DI16","v":72144.786450000014},{"$f":"Calculations!DJ16","v":74900.953116666686},{"$f":"Calculations!DK16","v":124996.40623333337},{"$f":"Calculations!DL16","v":127752.57290000004},{"$f":"Calculations!DM16","v":130508.73956666671},{"$f":"Calculations!DN16","v":133264.90623333337},{"$f":"Calculations!DO16","v":136021.07290000003},{"$f":"Calculations!DP16","v":138777.23956666669},{"$f":"Calculations!DQ16","v":141533.40623333334},{"$f":"Calculations!DR16","v":144289.5729},{"$f":"Calculations!DS16","v":147045.73956666666},{"$f":"Calculations!DT16","v":149801.90623333331}]
[{"$f":"Calculations!A17","v":"Freezer"},{"$f":"Calculations!E17","v":"B Medical TFW 40 SDD*"},{"$f":"Calculations!F17","v":0},{"$f":"IF(Calculations!G17=0,\"No\",\"Yes\")","v":"Yes"},{"$f":"LOOKUP(C120,List!$E$3:$E$12,List!$F$3:$F$12)","v":" 1-29"},{"$f":"Calculations!AU17*ROUNDUP('Total Solution Costs'!$B$2/'Cash Flow data'!H17,0)","v":10},{"$f":"Calculations!H17","v":"Yes"},{"$f":"Calculations!I17","v":10},"YES",null,{"$f":"Calculations!DA17","v":72130.115666666665},{"$f":"Calculations!DB17","v":73316.782333333336},{"$f":"Calculations!DC17","v":74503.449000000008},{"$f":"Calculations!DD17","v":75690.115666666679},{"$f":"Calculations!DE17","v":76876.782333333351},{"$f":"Calculations!DF17","v":78063.449000000022},{"$f":"Calculations!DG17","v":79250.115666666694},{"$f":"Calculations!DH17","v":80436.782333333365},{"$f":"Calculations!DI17","v":81623.449000000037},{"$f":"Calculations!DJ17","v":82810.115666666708},{"$f":"Calculations!DK17","v":154940.23133333336},{"$f":"Calculations!DL17","v":156126.89800000002},{"$f":"Calculations!DM17","v":157313.56466666667},{"$f":"Calculations!DN17","v":158500.23133333333},{"$f":"Calculations!DO17","v":159686.89799999999},{"$f":"Calculations!DP17","v":160873.56466666664},{"$f":"Calculations!DQ17","v":162060.2313333333},{"$f":"Calculations!DR17","v":163246.89799999996},{"$f":"Calculations!DS17","v":164433.56466666661},{"$f":"Calculations!DT17","v":165620.23133333327}]
[{"$f":"Calculations!A18","v":"ILR"},{"$f":"Calculations!E18","v":"Haier HBC-70"},{"$f":"Calculations!F18","v":45},{"$f":"IF(Calculations!G18=0,\"No\",\"Yes\")","v":"No"},{"$f":"LOOKUP(C121,List!$E$3:$E$12,List!$F$3:$F$12)","v":" 30-59"},{"$f":"Calculations!AU18*ROUNDUP('Total Solution Costs'!$B$2/'Cash Flow data'!H18,0)","v":10},{"$f":"Calculations!H18","v":"No"},{"$f":"Calculations!I18","v":10},"YES",null,{"$f":"Calculations!DA18","v":17149.486333333334},{"$f":"Calculations!DB18","v":18803.352999999999},{"$f":"Calculations!DC18","v":20457.219666666664},{"$f":"Calculations!DD18","v":22111.086333333329},{"$f":"Calculations!DE18","v":23764.952999999994},{"$f":"Calculations!DF18","v":25418.819666666659},{"$f":"Calculations!DG18","v":27072.686333333324},{"$f":"Calculations!DH18","v":28726.552999999989},{"$f":"Calculations!DI18","v":30380.419666666654},{"$f":"Calculations!DJ18","v":32034.286333333319},{"$f":"Calculations!DK18","v":49183.772666666657},{"$f":"Calculations!DL18","v":50837.639333333325},{"$f":"Calculations!DM18","v":52491.505999999994},{"$f":"Calculations!DN18","v":54145.372666666663},{"$f":"Calculations!DO18","v":55799.239333333331},{"$f":"Calculations!DP18","v":57453.106},{"$f":"Calculations!DQ18","v":59106.972666666668},{"$f":"Calculations!DR18","v":60760.839333333337},{"$f":"Calculations!DS18","v":62414.706000000006},{"$f":"Calculations!DT18","v":64068.572666666674}]
[{"$f":"Calculations!A19","v":"ILR"},{"$f":"Calculations!E19","v":"Haier HBC-200"},{"$f":"Calculations!F19","v":90},{"$f":"IF(Calculations!G19=0,\"No\",\"Yes\")","v":"No"},{"$f":"LOOKUP(C122,List!$E$3:$E$12,List!$F$3:$F$12)","v":" 90-120"},{"$f":"Calculations!AU19*ROUNDUP('Total Solution Costs'!$B$2/'Cash Flow data'!H19,0)","v":10},{"$f":"Calculations!H19","v":"No"},{"$f":"Calculations!I19","v":10},"YES",null,{"$f":"Calculations!DA19","v":19147.786333333333},{"$f":"Calculations!DB19","v":21312.652999999998},{"$f":"Calculations!DC19","v":23477.519666666667},{"$f":"Calculations!DD19","v":25642.386333333336},{"$f":"Calculations!DE19","v":27807.253000000004},{"$f":"Calculations!DF19","v":29972.119666666673},{"$f":"Calculations!DG19","v":32136.986333333341},{"$f":"Calculations!DH19","v":34301.85300000001},{"$f":"Calculations!DI19","v":36466.719666666679},{"$f":"Calculations!DJ19","v":38631.586333333347},{"$f":"Calculations!DK19","v":57779.372666666677},{"$f":"Calculations!DL19","v":59944.239333333346},{"$f":"Calculations!DM19","v":62109.106000000014},{"$f":"Calculations!DN19","v":64273.972666666683},{"$f":"Calculations!DO19","v":66438.839333333352},{"$f":"Calculations!DP19","v":68603.70600000002},{"$f":"Calculations!DQ19","v":70768.572666666689},{"$f":"Calculations!DR19","v":72933.439333333357},{"$f":"Calculations!DS19","v":75098.306000000026},{"$f":"Calculations!DT19","v":77263.172666666695}]
[{"$f":"Calculations!A20","v":"ILR"},{"$f":"Calculations!E20","v":"Vestfrost MK 304"},{"$f":"Calculations!F20","v":105},{"$f":"IF(Calculations!G20=0,\"No\",\"Yes\")","v":"No"},{"$f":"LOOKUP(C123,List!$E$3:$E$12,List!$F$3:$F$12)","v":" 90-120"},{"$f":"Calculations!AU20*ROUNDUP('Total Solution Costs'!$B$2/'Cash Flow data'!H20,0)","v":10},{"$f":"Calculations!H20","v":"No"},{"$f":"Calculations!I20","v":10},"YES",null,{"$f":"Calculations!DA20","v":24723.135426666668},{"$f":"Calculations!DB20","v":28245.802093333336},{"$f":"Calculations!DC20","v":31768.468760000003},{"$f":"Calculations!DD20","v":35291.135426666668},{"$f":"Calculations!DE20","v":38813.802093333332},{"$f":"Calculations!DF20","v":42336.468759999996},{"$f":"Calculations!DG20","v":45859.13542666666},{"$f":"Calculations!DH20","v":49381.802093333325},{"$f":"Calculations!DI20","v":52904.468759999989},{"$f":"Calculations!DJ20","v":56427.135426666653},{"$f":"Calculations!DK20","v":81150.270853333321},{"$f":"Calculations!DL20","v":84672.937519999992},{"$f":"Calculations!DM20","v":88195.604186666664},{"$f":"Calculations!DN20","v":91718.270853333335},{"$f":"Calculations!DO20","v":95240.937520000007},{"$f":"Calculations!DP20","v":98763.604186666678},{"$f":"Calculations!DQ20","v":102286.27085333335},{"$f":"Calculations!DR20","v":105808.93752000002},{"$f":"Calculations!DS20","v":109331.60418666669},{"$f":"Calculations!DT20","v":112854.27085333336}]
[{"$f":"Calculations!A21","v":"ILR"},{"$f":"Calculations!E21","v":"Vestfrost MKF 074"},{"$f":"Calculations!F21","v":16},{"$f":"IF(Calculations!G21=0,\"No\",\"Yes\")","v":"Yes"},{"$f":"LOOKUP(C124,List!$E$3:$E$12,List!$F$3:$F$12)","v":" 1-29"},{"$f":"Calculations!AU21*ROUNDUP('Total Solution Costs'!$B$2/'Cash Flow data'!H21,0)","v":10},{"$f":"Calculations!H21","v":"No"},{"$f":"Calculations!I21","v":10},"YES",null,{"$f":"Calculations!DA21","v":22711.652246666668},{"$f":"Calculations!DB21","v":26424.118913333336},{"$f":"Calculations!DC21","v":30136.585580000003},{"$f":"Calculations!DD21","v":33849.052246666666},{"$f":"Calculations!DE21","v":37561.518913333333},{"$f":"Calculations!DF21","v":41273.98558},{"$f":"Calculations!DG21","v":44986.452246666668},{"$f":"Calculations!DH21","v":48698.918913333335},{"$f":"Calculations!DI21","v":52411.385580000002},{"$f":"Calculations!DJ21","v":56123.852246666669},{"$f":"Calculations!DK21","v":78835.504493333341},{"$f":"Calculations!DL21","v":82547.971160000001},{"$f":"Calculations!DM21","v":86260.437826666661},{"$f":"Calculations!DN21","v":89972.904493333321},{"$f":"Calculations!DO21","v":93685.371159999981},{"$f":"Calculations!DP21","v":97397.83782666664},{"$f":"Calculations!DQ21","v":101110.3044933333},{"$f":"Calculations!DR21","v":104822.77115999996},{"$f":"Calculations!DS21","v":108535.23782666662},{"$f":"Calculations!DT21","v":112247.70449333328}]
[{"$f":"Calculations!A22","v":"ILR"},{"$f":"Calculations!E22","v":"Vestfrost MK 204"},{"$f":"Calculations!F22","v":75},{"$f":"IF(Calculations!G22=0,\"No\",\"Yes\")","v":"No"},{"$f":"LOOKUP(C125,List!$E$3:$E$12,List!$F$3:$F$12)","v":" 60-89"},{"$f":"Calculations!AU22*ROUNDUP('Total Solution Costs'!$B$2/'Cash Flow data'!H22,0)","v":10},{"$f":"Calculations!H22","v":"No"},{"$f":"Calculations!I22","v":10},"YES",null,{"$f":"Calculations!DA22","v":21010.938076666673},{"$f":"Calculations!DB22","v":23577.304743333341},{"$f":"Calculations!DC22","v":26143.67141000001},{"$f":"Calculations!DD22","v":28710.038076666679},{"$f":"Calculations!DE22","v":31276.404743333347},{"$f":"Calculations!DF22","v":33842.771410000016},{"$f":"Calculations!DG22","v":36409.138076666684},{"$f":"Calculations!DH22","v":38975.504743333353},{"$f":"Calculations!DI22","v":41541.871410000022},{"$f":"Calculations!DJ22","v":44108.23807666669},{"$f":"Calculations!DK22","v":65119.176153333363},{"$f":"Calculations!DL22","v":67685.542820000031},{"$f":"Calculations!DM22","v":70251.9094866667},{"$f":"Calculations!DN22","v":72818.276153333369},{"$f":"Calculations!DO22","v":75384.642820000037},{"$f":"Calculations!DP22","v":77951.009486666706},{"$f":"Calculations!DQ22","v":80517.376153333375},{"$f":"Calculations!DR22","v":83083.742820000043},{"$f":"Calculations!DS22","v":85650.109486666712},{"$f":"Calculations!DT22","v":88216.47615333338}]
[{"$f":"Calculations!A23","v":"ILR"},{"$f":"Calculations!E23","v":"Vestfrost MK 404"},{"$f":"Calculations!F23","v":135},{"$f":"IF(Calculations!G23=0,\"No\",\"Yes\")","v":"No"},{"$f":"LOOKUP(C126,List!$E$3:$E$12,List!$F$3:$F$12)","v":"120 +"},{"$f":"Calculations!AU23*ROUNDUP('Total Solution Costs'!$B$2/'Cash Flow data'!H23,0)","v":10},{"$f":"Calculations!H23","v":"No"},{"$f":"Calculations!I23","v":10},"YES",null,{"$f":"Calculations!DA23","v":25776.023816666668},{"$f":"Calculations!DB23","v":29211.090483333333},{"$f":"Calculations!DC23","v":32646.157149999999},{"$f":"Calculations!DD23","v":36081.223816666665},{"$f":"Calculations!DE23","v":39516.29048333333},{"$f":"Calculations!DF23","v":42951.357149999996},{"$f":"Calculations!DG23","v":46386.423816666662},{"$f":"Calculations!DH23","v":49821.490483333328},{"$f":"Calculations!DI23","v":53256.557149999993},{"$f":"Calculations!DJ23","v":56691.623816666659},{"$f":"Calculations!DK23","v":82467.647633333327},{"$f":"Calculations!DL23","v":85902.714299999992},{"$f":"Calculations!DM23","v":89337.780966666658},{"$f":"Calculations!DN23","v":92772.847633333324},{"$f":"Calculations!DO23","v":96207.914299999989},{"$f":"Calculations!DP23","v":99642.980966666655},{"$f":"Calculations!DQ23","v":103078.04763333332},{"$f":"Calculations!DR23","v":106513.11429999999},{"$f":"Calculations!DS23","v":109948.18096666665},{"$f":"Calculations!DT23","v":113383.24763333332}]
[{"$f":"Calculations!A24","v":"ILR"},{"$f":"Calculations!E24","v":"B Medical TCW 2000 AC*"},{"$f":"Calculations!F24","v":60},{"$f":"IF(Calculations!G24=0,\"No\",\"Yes\")","v":"Yes"},{"$f":"LOOKUP(C127,List!$E$3:$E$12,List!$F$3:$F$12)","v":" 60-89"},{"$f":"Calculations!AU24*ROUNDUP('Total Solution Costs'!$B$2/'Cash Flow data'!H24,0)","v":10},{"$f":"Calculations!H24","v":"Yes"},{"$f":"Calculations!I24","v":10},"YES",null,{"$f":"Calculations!DA24","v":41309.099306666671},{"$f":"Calculations!DB24","v":43860.865973333341},{"$f":"Calculations!DC24","v":46412.632640000011},{"$f":"Calculations!DD24","v":48964.399306666681},{"$f":"Calculations!DE24","v":51516.165973333351},{"$f":"Calculations!DF24","v":54067.932640000021},{"$f":"Calculations!DG24","v":56619.699306666691},{"$f":"Calculations!DH24","v":59171.465973333361},{"$f":"Calculations!DI24","v":61723.232640000031},{"$f":"Calculations!DJ24","v":64274.999306666701},{"$f":"Calculations!DK24","v":105584.09861333336},{"$f":"Calculations!DL24","v":108135.86528000003},{"$f":"Calculations!DM24","v":110687.63194666669},{"$f":"Calculations!DN24","v":113239.39861333335},{"$f":"Calculations!DO24","v":115791.16528000002},{"$f":"Calculations!DP24","v":118342.93194666668},{"$f":"Calculations!DQ24","v":120894.69861333334},{"$f":"Calculations!DR24","v":123446.46528},{"$f":"Calculations!DS24","v":125998.23194666667},{"$f":"Calculations!DT24","v":128549.99861333333}]
[{"$f":"Calculations!A25","v":"ILR"},{"$f":"Calculations!E25","v":"B Medical TCW 3000 AC"},{"$f":"Calculations!F25","v":150},{"$f":"IF(Calculations!G25=0,\"No\",\"Yes\")","v":"Yes"},{"$f":"LOOKUP(C128,List!$E$3:$E$12,List!$F$3:$F$12)","v":"120 +"},{"$f":"Calculations!AU25*ROUNDUP('Total Solution Costs'!$B$2/'Cash Flow data'!H25,0)","v":10},{"$f":"Calculations!H25","v":"No"},{"$f":"Calculations!I25","v":10},"YES",null,{"$f":"Calculations!DA25","v":38732.00484666667},{"$f":"Calculations!DB25","v":40918.77151333334},{"$f":"Calculations!DC25","v":43105.53818000001},{"$f":"Calculations!DD25","v":45292.304846666681},{"$f":"Calculations!DE25","v":47479.071513333351},{"$f":"Calculations!DF25","v":49665.838180000021},{"$f":"Calculations!DG25","v":51852.604846666691},{"$f":"Calculations!DH25","v":54039.371513333361},{"$f":"Calculations!DI25","v":56226.138180000031},{"$f":"Calculations!DJ25","v":58412.904846666701},{"$f":"Calculations!DK25","v":97144.909693333379},{"$f":"Calculations!DL25","v":99331.676360000041},{"$f":"Calculations!DM25","v":101518.4430266667},{"$f":"Calculations!DN25","v":103705.20969333337},{"$f":"Calculations!DO25","v":105891.97636000003},{"$f":"Calculations!DP25","v":108078.74302666669},{"$f":"Calculations!DQ25","v":110265.50969333336},{"$f":"Calculations!DR25","v":112452.27636000002},{"$f":"Calculations!DS25","v":114639.04302666668},{"$f":"Calculations!DT25","v":116825.80969333334}]
[{"$f":"Calculations!A26","v":"ILR"},{"$f":"Calculations!E26","v":"Vestfrost VLS 400"},{"$f":"Calculations!F26","v":216},{"$f":"IF(Calculations!G26=0,\"No\",\"Yes\")","v":"No"},{"$f":"LOOKUP(C129,List!$E$3:$E$12,List!$F$3:$F$12)","v":"120 +"},{"$f":"Calculations!AU26*ROUNDUP('Total Solution Costs'!$B$2/'Cash Flow data'!H26,0)","v":10},{"$f":"Calculations!H26","v":"No"},{"$f":"Calculations!I26","v":10},"YES",null,{"$f":"Calculations!DA26","v":21820.615636666666},{"$f":"Calculations!DB26","v":23605.882303333332},{"$f":"Calculations!DC26","v":25391.148969999998},{"$f":"Calculations!DD26","v":27176.415636666665},{"$f":"Calculations!DE26","v":28961.682303333331},{"$f":"Calculations!DF26","v":30746.948969999998},{"$f":"Calculations!DG26","v":32532.215636666664},{"$f":"Calculations!DH26","v":34317.48230333333},{"$f":"Calculations!DI26","v":36102.748970000001},{"$f":"Calculations!DJ26","v":37888.015636666663},{"$f":"Calculations!DK26","v":59708.631273333333},{"$f":"Calculations!DL26","v":61493.897939999995},{"$f":"Calculations!DM26","v":63279.164606666658},{"$f":"Calculations!DN26","v":65064.431273333321},{"$f":"Calculations!DO26","v":66849.697939999984},{"$f":"Calculations!DP26","v":68634.964606666646},{"$f":"Calculations!DQ26","v":70420.231273333309},{"$f":"Calculations!DR26","v":72205.497939999972},{"$f":"Calculations!DS26","v":73990.764606666635},{"$f":"Calculations!DT26","v":75776.031273333298}]
[{"$f":"Calculations!A27","v":"ILR"},{"$f":"Calculations!E27","v":"Vestfrost MK 144"},{"$f":"Calculations!F27","v":48},{"$f":"IF(Calculations!G27=0,\"No\",\"Yes\")","v":"No"},{"$f":"LOOKUP(C130,List!$E$3:$E$12,List!$F$3:$F$12)","v":" 30-59"},{"$f":"Calculations!AU27*ROUNDUP('Total Solution Costs'!$B$2/'Cash Flow data'!H27,0)","v":10},{"$f":"Calculations!H27","v":"No"},{"$f":"Calculations!I27","v":10},"YES",null,{"$f":"Calculations!DA27","v":20241.074816666667},{"$f":"Calculations!DB27","v":23106.741483333331},{"$f":"Calculations!DC27","v":25972.408149999996},{"$f":"Calculations!DD27","v":28838.07481666666},{"$f":"Calculations!DE27","v":31703.741483333324},{"$f":"Calculations!DF27","v":34569.408149999988},{"$f":"Calculations!DG27","v":37435.074816666653},{"$f":"Calculations!DH27","v":40300.741483333317},{"$f":"Calculations!DI27","v":43166.408149999981},{"$f":"Calculations!DJ27","v":46032.074816666645},{"$f":"Calculations!DK27","v":66273.14963333332},{"$f":"Calculations!DL27","v":69138.816299999991},{"$f":"Calculations!DM27","v":72004.482966666663},{"$f":"Calculations!DN27","v":74870.149633333334},{"$f":"Calculations!DO27","v":77735.816300000006},{"$f":"Calculations!DP27","v":80601.482966666677},{"$f":"Calculations!DQ27","v":83467.149633333349},{"$f":"Calculations!DR27","v":86332.81630000002},{"$f":"Calculations!DS27","v":89198.482966666692},{"$f":"Calculations!DT27","v":92064.149633333363}]
[{"$f":"Calculations!A28","v":"ILR"},{"$f":"Calculations!E28","v":"Vestfrost VLS 200"},{"$f":"Calculations!F28","v":100},{"$f":"IF(Calculations!G28=0,\"No\",\"Yes\")","v":"Yes"},{"$f":"LOOKUP(C131,List!$E$3:$E$12,List!$F$3:$F$12)","v":" 90-120"},{"$f":"Calculations!AU28*ROUNDUP('Total Solution Costs'!$B$2/'Cash Flow data'!H28,0)","v":10},{"$f":"Calculations!H28","v":"No"},{"$f":"Calculations!I28","v":10},"YES",null,{"$f":"Calculations!DA28","v":19109.189916666666},{"$f":"Calculations!DB28","v":20814.156583333333},{"$f":"Calculations!DC28","v":22519.123250000001},{"$f":"Calculations!DD28","v":24224.089916666668},{"$f":"Calculations!DE28","v":25929.056583333335},{"$f":"Calculations!DF28","v":27634.023250000002},{"$f":"Calculations!DG28","v":29338.989916666669},{"$f":"Calculations!DH28","v":31043.956583333336},{"$f":"Calculations!DI28","v":32748.923250000003},{"$f":"Calculations!DJ28","v":34453.889916666667},{"$f":"Calculations!DK28","v":53563.079833333337},{"$f":"Calculations!DL28","v":55268.046500000004},{"$f":"Calculations!DM28","v":56973.013166666671},{"$f":"Calculations!DN28","v":58677.979833333338},{"$f":"Calculations!DO28","v":60382.946500000005},{"$f":"Calculations!DP28","v":62087.913166666673},{"$f":"Calculations!DQ28","v":63792.87983333334},{"$f":"Calculations!DR28","v":65497.846500000007},{"$f":"Calculations!DS28","v":67202.813166666674},{"$f":"Calculations!DT28","v":68907.779833333334}]
[{"$f":"Calculations!A29","v":"ILR"},{"$f":"Calculations!E29","v":"Vestfrost VLS 300"},{"$f":"Calculations!F29","v":148},{"$f":"IF(Calculations!G29=0,\"No\",\"Yes\")","v":"No"},{"$f":"LOOKUP(C132,List!$E$3:$E$12,List!$F$3:$F$12)","v":"120 +"},{"$f":"Calculations!AU29*ROUNDUP('Total Solution Costs'!$B$2/'Cash Flow data'!H29,0)","v":10},{"$f":"Calculations!H29","v":"No"},{"$f":"Calculations!I29","v":10},"YES",null,{"$f":"Calculations!DA29","v":19888.708296666668},{"$f":"Calculations!DB29","v":21557.174963333335},{"$f":"Calculations!DC29","v":23225.641630000002},{"$f":"Calculations!DD29","v":24894.108296666669},{"$f":"Calculations!DE29","v":26562.574963333336},{"$f":"Calculations!DF29","v":28231.041630000003},{"$f":"Calculations!DG29","v":29899.508296666671},{"$f":"Calculations!DH29","v":31567.974963333338},{"$f":"Calculations!DI29","v":33236.441630000001},{"$f":"Calculations!DJ29","v":34904.908296666668},{"$f":"Calculations!DK29","v":54793.61659333334},{"$f":"Calculations!DL29","v":56462.083260000007},{"$f":"Calculations!DM29","v":58130.549926666674},{"$f":"Calculations!DN29","v":59799.016593333341},{"$f":"Calculations!DO29","v":61467.483260000008},{"$f":"Calculations!DP29","v":63135.949926666675},{"$f":"Calculations!DQ29","v":64804.416593333342},{"$f":"Calculations!DR29","v":66472.883260000002},{"$f":"Calculations!DS29","v":68141.349926666662},{"$f":"Calculations!DT29","v":69809.816593333322}]
[{"$f":"Calculations!A30","v":"ILR"},{"$f":"Calculations!E30","v":"Vestfrost VLS 350"},{"$f":"Calculations!F30","v":196},{"$f":"IF(Calculations!G30=0,\"No\",\"Yes\")","v":"No"},{"$f":"LOOKUP(C133,List!$E$3:$E$12,List!$F$3:$F$12)","v":"120 +"},{"$f":"Calculations!AU30*ROUNDUP('Total Solution Costs'!$B$2/'Cash Flow data'!H30,0)","v":10},{"$f":"Calculations!H30","v":"No"},{"$f":"Calculations!I30","v":10},"YES",null,{"$f":"Calculations!DA30","v":20883.540636666665},{"$f":"Calculations!DB30","v":22515.507303333332},{"$f":"Calculations!DC30","v":24147.473969999999},{"$f":"Calculations!DD30","v":25779.440636666666},{"$f":"Calculations!DE30","v":27411.407303333333},{"$f":"Calculations!DF30","v":29043.373970000001},{"$f":"Calculations!DG30","v":30675.340636666668},{"$f":"Calculations!DH30","v":32307.307303333335},{"$f":"Calculations!DI30","v":33939.273970000002},{"$f":"Calculations!DJ30","v":35571.240636666669},{"$f":"Calculations!DK30","v":56454.781273333334},{"$f":"Calculations!DL30","v":58086.747940000001},{"$f":"Calculations!DM30","v":59718.714606666668},{"$f":"Calculations!DN30","v":61350.681273333335},{"$f":"Calculations!DO30","v":62982.647940000003},{"$f":"Calculations!DP30","v":64614.61460666667},{"$f":"Calculations!DQ30","v":66246.58127333333},{"$f":"Calculations!DR30","v":67878.547939999989},{"$f":"Calculations!DS30","v":69510.514606666649},{"$f":"Calculations!DT30","v":71142.481273333309}]
[{"$f":"Calculations!A31","v":"ILR"},{"$f":"Calculations!E31","v":"Haier HBC-110"},{"$f":"Calculations!F31","v":52.5},{"$f":"IF(Calculations!G31=0,\"No\",\"Yes\")","v":"No"},{"$f":"LOOKUP(C134,List!$E$3:$E$12,List!$F$3:$F$12)","v":" 30-59"},{"$f":"Calculations!AU31*ROUNDUP('Total Solution Costs'!$B$2/'Cash Flow data'!H31,0)","v":10},{"$f":"Calculations!H31","v":"No"},{"$f":"Calculations!I31","v":10},"YES",null,{"$f":"Calculations!DA31","v":18055.836333333333},{"$f":"Calculations!DB31","v":20118.503000000001},{"$f":"Calculations!DC31","v":22181.169666666668},{"$f":"Calculations!DD31","v":24243.836333333336},{"$f":"Calculations!DE31","v":26306.503000000004},{"$f":"Calculations!DF31","v":28369.169666666672},{"$f":"Calculations!DG31","v":30431.83633333334},{"$f":"Calculations!DH31","v":32494.503000000008},{"$f":"Calculations!DI31","v":34557.169666666676},{"$f":"Calculations!DJ31","v":36619.83633333334},{"$f":"Calculations!DK31","v":54675.672666666673},{"$f":"Calculations!DL31","v":56738.339333333337},{"$f":"Calculations!DM31","v":58801.006000000001},{"$f":"Calculations!DN31","v":60863.672666666665},{"$f":"Calculations!DO31","v":62926.33933333333},{"$f":"Calculations!DP31","v":64989.005999999994},{"$f":"Calculations!DQ31","v":67051.672666666665},{"$f":"Calculations!DR31","v":69114.339333333337},{"$f":"Calculations!DS31","v":71177.006000000008},{"$f":"Calculations!DT31","v":73239.67266666668}]
[{"$f":"Calculations!A32","v":"ILR"},{"$f":"Calculations!E32","v":"Zero ZLF 100 AC*"},{"$f":"Calculations!F32","v":99},{"$f":"IF(Calculations!G32=0,\"No\",\"Yes\")","v":"No"},{"$f":"LOOKUP(C135,List!$E$3:$E$12,List!$F$3:$F$12)","v":" 90-120"},{"$f":"Calculations!AU32*ROUNDUP('Total Solution Costs'!$B$2/'Cash Flow data'!H32,0)","v":10},{"$f":"Calculations!H32","v":"Yes"},{"$f":"Calculations!I32","v":10},"YES",null,{"$f":"Calculations!DA32","v":37339.666666666672},{"$f":"Calculations!DB32","v":39957.133333333339},{"$f":"Calculations!DC32","v":42574.600000000006},{"$f":"Calculations!DD32","v":45192.066666666673},{"$f":"Calculations!DE32","v":47809.53333333334},{"$f":"Calculations!DF32","v":50427.000000000007},{"$f":"Calculations!DG32","v":53044.466666666674},{"$f":"Calculations!DH32","v":55661.933333333342},{"$f":"Calculations!DI32","v":58279.400000000009},{"$f":"Calculations!DJ32","v":60896.866666666676},{"$f":"Calculations!DK32","v":98236.533333333355},{"$f":"Calculations!DL32","v":100854.00000000001},{"$f":"Calculations!DM32","v":103471.46666666667},{"$f":"Calculations!DN32","v":106088.93333333333},{"$f":"Calculations!DO32","v":108706.4},{"$f":"Calculations!DP32","v":111323.86666666665},{"$f":"Calculations!DQ32","v":113941.33333333331},{"$f":"Calculations!DR32","v":116558.79999999997},{"$f":"Calculations!DS32","v":119176.26666666663},{"$f":"Calculations!DT32","v":121793.73333333329}]
[{"$f":"Calculations!A33","v":"ILR"},{"$f":"Calculations!E33","v":"Haier HBC-340"},{"$f":"Calculations!F33","v":211},{"$f":"IF(Calculations!G33=0,\"No\",\"Yes\")","v":"No"},{"$f":"LOOKUP(C136,List!$E$3:$E$12,List!$F$3:$F$12)","v":"120 +"},{"$f":"Calculations!AU33*ROUNDUP('Total Solution Costs'!$B$2/'Cash Flow data'!H33,0)","v":10},{"$f":"Calculations!H33","v":"No"},{"$f":"Calculations!I33","v":10},"YES",null,{"$f":"Calculations!DA33","v":23222.754666666664},{"$f":"Calculations!DB33","v":25913.221333333331},{"$f":"Calculations!DC33","v":28603.687999999998},{"$f":"Calculations!DD33","v":31294.154666666665},{"$f":"Calculations!DE33","v":33984.621333333329},{"$f":"Calculations!DF33","v":36675.087999999996},{"$f":"Calculations!DG33","v":39365.554666666663},{"$f":"Calculations!DH33","v":42056.02133333333},{"$f":"Calculations!DI33","v":44746.487999999998},{"$f":"Calculations!DJ33","v":47436.954666666665},{"$f":"Calculations!DK33","v":70659.709333333332},{"$f":"Calculations!DL33","v":73350.175999999992},{"$f":"Calculations!DM33","v":76040.642666666652},{"$f":"Calculations!DN33","v":78731.109333333312},{"$f":"Calculations!DO33","v":81421.575999999972},{"$f":"Calculations!DP33","v":84112.042666666632},{"$f":"Calculations!DQ33","v":86802.509333333292},{"$f":"Calculations!DR33","v":89492.975999999951},{"$f":"Calculations!DS33","v":92183.442666666611},{"$f":"Calculations!DT33","v":94873.909333333271}]
[{"$f":"Calculations!A34","v":"ILR"},{"$f":"Calculations!E34","v":"Zero ZLF 150 AC*"},{"$f":"Calculations!F34","v":128},{"$f":"IF(Calculations!G34=0,\"No\",\"Yes\")","v":"No"},{"$f":"LOOKUP(C137,List!$E$3:$E$12,List!$F$3:$F$12)","v":"120 +"},{"$f":"Calculations!AU34*ROUNDUP('Total Solution Costs'!$B$2/'Cash Flow data'!H34,0)","v":10},{"$f":"Calculations!H34","v":"Yes"},{"$f":"Calculations!I34","v":10},"YES",null,{"$f":"Calculations!DA34","v":41784.066666666666},{"$f":"Calculations!DB34","v":44416.133333333331},{"$f":"Calculations!DC34","v":47048.2},{"$f":"Calculations!DD34","v":49680.266666666663},{"$f":"Calculations!DE34","v":52312.333333333328},{"$f":"Calculations!DF34","v":54944.399999999994},{"$f":"Calculations!DG34","v":57576.46666666666},{"$f":"Calculations!DH34","v":60208.533333333326},{"$f":"Calculations!DI34","v":62840.599999999991},{"$f":"Calculations!DJ34","v":65472.666666666657},{"$f":"Calculations!DK34","v":107256.73333333332},{"$f":"Calculations!DL34","v":109888.79999999999},{"$f":"Calculations!DM34","v":112520.86666666665},{"$f":"Calculations!DN34","v":115152.93333333332},{"$f":"Calculations!DO34","v":117784.99999999999},{"$f":"Calculations!DP34","v":120417.06666666665},{"$f":"Calculations!DQ34","v":123049.13333333332},{"$f":"Calculations!DR34","v":125681.19999999998},{"$f":"Calculations!DS34","v":128313.26666666665},{"$f":"Calculations!DT34","v":130945.33333333331}]
[{"$f":"Calculations!A35","v":"ILR"},{"$f":"Calculations!E35","v":"Godrej & Boyce  GVR 50 AC*"},{"$f":"Calculations!F35","v":46.8},{"$f":"IF(Calculations!G35=0,\"No\",\"Yes\")","v":"No"},{"$f":"LOOKUP(C138,List!$E$3:$E$12,List!$F$3:$F$12)","v":" 30-59"},{"$f":"Calculations!AU35*ROUNDUP('Total Solution Costs'!$B$2/'Cash Flow data'!H35,0)","v":10},{"$f":"Calculations!H35","v":"Yes"},{"$f":"Calculations!I35","v":10},"YES",null,{"$f":"Calculations!DA35","v":27329.666666666668},{"$f":"Calculations!DB35","v":28925.133333333335},{"$f":"Calculations!DC35","v":30520.600000000002},{"$f":"Calculations!DD35","v":32116.066666666669},{"$f":"Calculations!DE35","v":33711.533333333333},{"$f":"Calculations!DF35","v":35307},{"$f":"Calculations!DG35","v":36902.466666666667},{"$f":"Calculations!DH35","v":38497.933333333334},{"$f":"Calculations!DI35","v":40093.4},{"$f":"Calculations!DJ35","v":41688.866666666669},{"$f":"Calculations!DK35","v":69018.53333333334},{"$f":"Calculations!DL35","v":70614},{"$f":"Calculations!DM35","v":72209.46666666666},{"$f":"Calculations!DN35","v":73804.93333333332},{"$f":"Calculations!DO35","v":75400.39999999998},{"$f":"Calculations!DP35","v":76995.86666666664},{"$f":"Calculations!DQ35","v":78591.333333333299},{"$f":"Calculations!DR35","v":80186.799999999959},{"$f":"Calculations!DS35","v":81782.266666666619},{"$f":"Calculations!DT35","v":83377.733333333279}]
[{"$f":"Calculations!A36","v":"ILR"},{"$f":"Calculations!E36","v":"Godrej & Boyce  GVR 100 AC*"},{"$f":"Calculations!F36","v":99},{"$f":"IF(Calculations!G36=0,\"No\",\"Yes\")","v":"No"},{"$f":"LOOKUP(C139,List!$E$3:$E$12,List!$F$3:$F$12)","v":" 90-120"},{"$f":"Calculations!AU36*ROUNDUP('Total Solution Costs'!$B$2/'Cash Flow data'!H36,0)","v":10},{"$f":"Calculations!H36","v":"Yes"},{"$f":"Calculations!I36","v":10},"YES",null,{"$f":"Calculations!DA36","v":36028.366666666669},{"$f":"Calculations!DB36","v":37762.533333333333},{"$f":"Calculations!DC36","v":39496.699999999997},{"$f":"Calculations!DD36","v":41230.866666666661},{"$f":"Calculations!DE36","v":42965.033333333326},{"$f":"Calculations!DF36","v":44699.19999999999},{"$f":"Calculations!DG36","v":46433.366666666654},{"$f":"Calculations!DH36","v":48167.533333333318},{"$f":"Calculations!DI36","v":49901.699999999983},{"$f":"Calculations!DJ36","v":51635.866666666647},{"$f":"Calculations!DK36","v":87664.233333333308},{"$f":"Calculations!DL36","v":89398.39999999998},{"$f":"Calculations!DM36","v":91132.566666666651},{"$f":"Calculations!DN36","v":92866.733333333323},{"$f":"Calculations!DO36","v":94600.9},{"$f":"Calculations!DP36","v":96335.066666666666},{"$f":"Calculations!DQ36","v":98069.233333333337},{"$f":"Calculations!DR36","v":99803.400000000009},{"$f":"Calculations!DS36","v":101537.56666666668},{"$f":"Calculations!DT36","v":103271.73333333335}]
[{"$f":"Calculations!A37","v":"ILR"},{"$f":"Calculations!E37","v":"Zero ZLF 30 AC*"},{"$f":"Calculations!F37","v":27},{"$f":"IF(Calculations!G37=0,\"No\",\"Yes\")","v":"No"},{"$f":"LOOKUP(C140,List!$E$3:$E$12,List!$F$3:$F$12)","v":" 1-29"},{"$f":"Calculations!AU37*ROUNDUP('Total Solution Costs'!$B$2/'Cash Flow data'!H37,0)","v":10},{"$f":"Calculations!H37","v":"Yes"},{"$f":"Calculations!I37","v":10},"YES",null,{"$f":"Calculations!DA37","v":28330.626666666667},{"$f":"Calculations!DB37","v":30745.153333333335},{"$f":"Calculations!DC37","v":33159.68},{"$f":"Calculations!DD37","v":35574.206666666665},{"$f":"Calculations!DE37","v":37988.73333333333},{"$f":"Calculations!DF37","v":40403.259999999995},{"$f":"Calculations!DG37","v":42817.78666666666},{"$f":"Calculations!DH37","v":45232.313333333324},{"$f":"Calculations!DI37","v":47646.839999999989},{"$f":"Calculations!DJ37","v":50061.366666666654},{"$f":"Calculations!DK37","v":78391.993333333317},{"$f":"Calculations!DL37","v":80806.51999999999},{"$f":"Calculations!DM37","v":83221.046666666662},{"$f":"Calculations!DN37","v":85635.573333333334},{"$f":"Calculations!DO37","v":88050.1},{"$f":"Calculations!DP37","v":90464.626666666678},{"$f":"Calculations!DQ37","v":92879.15333333335},{"$f":"Calculations!DR37","v":95293.680000000022},{"$f":"Calculations!DS37","v":97708.206666666694},{"$f":"Calculations!DT37","v":100122.73333333337}]
[{"$f":"Calculations!A38","v":"ILR"},{"$f":"Calculations!E38","v":"Vestfrost VLS 200A*"},{"$f":"Calculations!F38","v":60},{"$f":"IF(Calculations!G38=0,\"No\",\"Yes\")","v":"No"},{"$f":"LOOKUP(C141,List!$E$3:$E$12,List!$F$3:$F$12)","v":" 60-89"},{"$f":"Calculations!AU38*ROUNDUP('Total Solution Costs'!$B$2/'Cash Flow data'!H38,0)","v":10},{"$f":"Calculations!H38","v":"Yes"},{"$f":"Calculations!I38","v":10},"YES",null,{"$f":"Calculations!DA38","v":20343.761246666665},{"$f":"Calculations!DB38","v":21946.527913333332},{"$f":"Calculations!DC38","v":23549.294579999998},{"$f":"Calculations!DD38","v":25152.061246666664},{"$f":"Calculations!DE38","v":26754.827913333331},{"$f":"Calculations!DF38","v":28357.594579999997},{"$f":"Calculations!DG38","v":29960.361246666664},{"$f":"Calculations!DH38","v":31563.12791333333},{"$f":"Calculations!DI38","v":33165.894579999993},{"$f":"Calculations!DJ38","v":34768.661246666656},{"$f":"Calculations!DK38","v":55112.422493333317},{"$f":"Calculations!DL38","v":56715.18915999998},{"$f":"Calculations!DM38","v":58317.955826666643},{"$f":"Calculations!DN38","v":59920.722493333305},{"$f":"Calculations!DO38","v":61523.489159999968},{"$f":"Calculations!DP38","v":63126.255826666631},{"$f":"Calculations!DQ38","v":64729.022493333294},{"$f":"Calculations!DR38","v":66331.789159999957},{"$f":"Calculations!DS38","v":67934.555826666619},{"$f":"Calculations!DT38","v":69537.322493333282}]
[{"$f":"Calculations!A39","v":"ILR"},{"$f":"Calculations!E39","v":"Vestfrost VLS 300A*"},{"$f":"Calculations!F39","v":98},{"$f":"IF(Calculations!G39=0,\"No\",\"Yes\")","v":"No"},{"$f":"LOOKUP(C142,List!$E$3:$E$12,List!$F$3:$F$12)","v":" 90-120"},{"$f":"Calculations!AU39*ROUNDUP('Total Solution Costs'!$B$2/'Cash Flow data'!H39,0)","v":10},{"$f":"Calculations!H39","v":"Yes"},{"$f":"Calculations!I39","v":10},"YES",null,{"$f":"Calculations!DA39","v":22336.978816666669},{"$f":"Calculations!DB39","v":24027.345483333334},{"$f":"Calculations!DC39","v":25717.712149999999},{"$f":"Calculations!DD39","v":27408.078816666664},{"$f":"Calculations!DE39","v":29098.445483333329},{"$f":"Calculations!DF39","v":30788.812149999994},{"$f":"Calculations!DG39","v":32479.178816666659},{"$f":"Calculations!DH39","v":34169.545483333328},{"$f":"Calculations!DI39","v":35859.912149999996},{"$f":"Calculations!DJ39","v":37550.278816666665},{"$f":"Calculations!DK39","v":59887.257633333335},{"$f":"Calculations!DL39","v":61577.624300000003},{"$f":"Calculations!DM39","v":63267.990966666672},{"$f":"Calculations!DN39","v":64958.35763333334},{"$f":"Calculations!DO39","v":66648.724300000002},{"$f":"Calculations!DP39","v":68339.09096666667},{"$f":"Calculations!DQ39","v":70029.457633333339},{"$f":"Calculations!DR39","v":71719.824300000007},{"$f":"Calculations!DS39","v":73410.190966666676},{"$f":"Calculations!DT39","v":75100.557633333345}]
[{"$f":"Calculations!A40","v":"ILR"},{"$f":"Calculations!E40","v":"Vestfrost VLS 350A*"},{"$f":"Calculations!F40","v":127},{"$f":"IF(Calculations!G40=0,\"No\",\"Yes\")","v":"No"},{"$f":"LOOKUP(C143,List!$E$3:$E$12,List!$F$3:$F$12)","v":"120 +"},{"$f":"Calculations!AU40*ROUNDUP('Total Solution Costs'!$B$2/'Cash Flow data'!H40,0)","v":10},{"$f":"Calculations!H40","v":"Yes"},{"$f":"Calculations!I40","v":10},"YES",null,{"$f":"Calculations!DA40","v":23522.856596666672},{"$f":"Calculations!DB40","v":25162.123263333338},{"$f":"Calculations!DC40","v":26801.389930000005},{"$f":"Calculations!DD40","v":28440.656596666671},{"$f":"Calculations!DE40","v":30079.923263333338},{"$f":"Calculations!DF40","v":31719.189930000004},{"$f":"Calculations!DG40","v":33358.456596666671},{"$f":"Calculations!DH40","v":34997.723263333333},{"$f":"Calculations!DI40","v":36636.989929999996},{"$f":"Calculations!DJ40","v":38276.256596666659},{"$f":"Calculations!DK40","v":61799.113193333331},{"$f":"Calculations!DL40","v":63438.379860000001},{"$f":"Calculations!DM40","v":65077.646526666664},{"$f":"Calculations!DN40","v":66716.913193333326},{"$f":"Calculations!DO40","v":68356.179859999989},{"$f":"Calculations!DP40","v":69995.446526666652},{"$f":"Calculations!DQ40","v":71634.713193333315},{"$f":"Calculations!DR40","v":73273.979859999978},{"$f":"Calculations!DS40","v":74913.24652666664},{"$f":"Calculations!DT40","v":76552.513193333303}]
[{"$f":"Calculations!A41","v":"ILR"},{"$f":"Calculations!E41","v":"Vestfrost VLS 400A*"},{"$f":"Calculations!F41","v":145},{"$f":"IF(Calculations!G41=0,\"No\",\"Yes\")","v":"No"},{"$f":"LOOKUP(C144,List!$E$3:$E$12,List!$F$3:$F$12)","v":"120 +"},{"$f":"Calculations!AU41*ROUNDUP('Total Solution Costs'!$B$2/'Cash Flow data'!H41,0)","v":10},{"$f":"Calculations!H41","v":"Yes"},{"$f":"Calculations!I41","v":10},"YES",null,{"$f":"Calculations!DA41","v":24477.11806666667},{"$f":"Calculations!DB41","v":26152.884733333336},{"$f":"Calculations!DC41","v":27828.651400000002},{"$f":"Calculations!DD41","v":29504.418066666669},{"$f":"Calculations!DE41","v":31180.184733333335},{"$f":"Calculations!DF41","v":32855.951400000005},{"$f":"Calculations!DG41","v":34531.718066666668},{"$f":"Calculations!DH41","v":36207.484733333331},{"$f":"Calculations!DI41","v":37883.251399999994},{"$f":"Calculations!DJ41","v":39559.018066666657},{"$f":"Calculations!DK41","v":64036.136133333326},{"$f":"Calculations!DL41","v":65711.902799999996},{"$f":"Calculations!DM41","v":67387.669466666659},{"$f":"Calculations!DN41","v":69063.436133333322},{"$f":"Calculations!DO41","v":70739.202799999985},{"$f":"Calculations!DP41","v":72414.969466666647},{"$f":"Calculations!DQ41","v":74090.73613333331},{"$f":"Calculations!DR41","v":75766.502799999973},{"$f":"Calculations!DS41","v":77442.269466666636},{"$f":"Calculations!DT41","v":79118.036133333298}]
[{"$f":"Calculations!A42","v":"ILR"},{"$f":"Calculations!E42","v":"B Medical TCW 4000 AC*"},{"$f":"Calculations!F42","v":240},{"$f":"IF(Calculations!G42=0,\"No\",\"Yes\")","v":"No"},{"$f":"LOOKUP(C145,List!$E$3:$E$12,List!$F$3:$F$12)","v":"120 +"},{"$f":"Calculations!AU42*ROUNDUP('Total Solution Costs'!$B$2/'Cash Flow data'!H42,0)","v":10},{"$f":"Calculations!H42","v":"Yes"},{"$f":"Calculations!I42","v":10},"YES",null,{"$f":"Calculations!DA42","v":54330.157376666677},{"$f":"Calculations!DB42","v":56137.324043333341},{"$f":"Calculations!DC42","v":57944.490710000005},{"$f":"Calculations!DD42","v":59751.65737666667},{"$f":"Calculations!DE42","v":61558.824043333334},{"$f":"Calculations!DF42","v":63365.990709999998},{"$f":"Calculations!DG42","v":65173.157376666662},{"$f":"Calculations!DH42","v":66980.324043333327},{"$f":"Calculations!DI42","v":68787.490709999998},{"$f":"Calculations!DJ42","v":70594.65737666667},{"$f":"Calculations!DK42","v":124924.81475333334},{"$f":"Calculations!DL42","v":126731.98142000001},{"$f":"Calculations!DM42","v":128539.14808666668},{"$f":"Calculations!DN42","v":130346.31475333335},{"$f":"Calculations!DO42","v":132153.48142000003},{"$f":"Calculations!DP42","v":133960.64808666668},{"$f":"Calculations!DQ42","v":135767.81475333334},{"$f":"Calculations!DR42","v":137574.98142},{"$f":"Calculations!DS42","v":139382.14808666665},{"$f":"Calculations!DT42","v":141189.31475333331}]
[{"$f":"Calculations!A43","v":"ILR"},{"$f":"Calculations!E43","v":"Vestfrost VLS 064 RF"},{"$f":"Calculations!F43","v":52.5},{"$f":"IF(Calculations!G43=0,\"No\",\"Yes\")","v":"Yes"},{"$f":"LOOKUP(C146,List!$E$3:$E$12,List!$F$3:$F$12)","v":" 30-59"},{"$f":"Calculations!AU43*ROUNDUP('Total Solution Costs'!$B$2/'Cash Flow data'!H43,0)","v":10},{"$f":"Calculations!H43","v":"No"},{"$f":"Calculations!I43","v":10},"YES",null,{"$f":"Calculations!DA43","v":23302.894376666667},{"$f":"Calculations!DB43","v":25584.561043333335},{"$f":"Calculations!DC43","v":27866.227710000003},{"$f":"Calculations!DD43","v":30147.894376666671},{"$f":"Calculations!DE43","v":32429.561043333339},{"$f":"Calculations!DF43","v":34711.227710000006},{"$f":"Calculations!DG43","v":36992.894376666671},{"$f":"Calculations!DH43","v":39274.561043333335},{"$f":"Calculations!DI43","v":41556.227709999999},{"$f":"Calculations!DJ43","v":43837.894376666663},{"$f":"Calculations!DK43","v":67140.788753333327},{"$f":"Calculations!DL43","v":69422.455419999998},{"$f":"Calculations!DM43","v":71704.12208666667},{"$f":"Calculations!DN43","v":73985.788753333341},{"$f":"Calculations!DO43","v":76267.455420000013},{"$f":"Calculations!DP43","v":78549.122086666684},{"$f":"Calculations!DQ43","v":80830.788753333356},{"$f":"Calculations!DR43","v":83112.455420000028},{"$f":"Calculations!DS43","v":85394.122086666699},{"$f":"Calculations!DT43","v":87675.788753333371}]
[{"$f":"Calculations!A44","v":"ILR"},{"$f":"Calculations!E44","v":"Dulas Solar VC 225 ILR*"},{"$f":"Calculations!F44","v":203.2},{"$f":"IF(Calculations!G44=0,\"No\",\"Yes\")","v":"No"},{"$f":"LOOKUP(C147,List!$E$3:$E$12,List!$F$3:$F$12)","v":"120 +"},{"$f":"Calculations!AU44*ROUNDUP('Total Solution Costs'!$B$2/'Cash Flow data'!H44,0)","v":10},{"$f":"Calculations!H44","v":"Yes"},{"$f":"Calculations!I44","v":10},"YES",null,{"$f":"Calculations!DA44","v":43482.156666666669},{"$f":"Calculations!DB44","v":45255.013333333336},{"$f":"Calculations!DC44","v":47027.87},{"$f":"Calculations!DD44","v":48800.726666666669},{"$f":"Calculations!DE44","v":50573.583333333336},{"$f":"Calculations!DF44","v":52346.44},{"$f":"Calculations!DG44","v":54119.296666666669},{"$f":"Calculations!DH44","v":55892.153333333335},{"$f":"Calculations!DI44","v":57665.01},{"$f":"Calculations!DJ44","v":59437.866666666669},{"$f":"Calculations!DK44","v":102920.02333333335},{"$f":"Calculations!DL44","v":104692.88},{"$f":"Calculations!DM44","v":106465.73666666666},{"$f":"Calculations!DN44","v":108238.59333333332},{"$f":"Calculations!DO44","v":110011.44999999998},{"$f":"Calculations!DP44","v":111784.30666666664},{"$f":"Calculations!DQ44","v":113557.1633333333},{"$f":"Calculations!DR44","v":115330.01999999996},{"$f":"Calculations!DS44","v":117102.87666666662},{"$f":"Calculations!DT44","v":118875.73333333328}]
[{"$f":"Calculations!A45","v":"ILR"},{"$f":"Calculations!E45","v":"Aucma CFD-50"},{"$f":"Calculations!F45","v":50},{"$f":"IF(Calculations!G45=0,\"No\",\"Yes\")","v":"No"},{"$f":"LOOKUP(C148,List!$E$3:$E$12,List!$F$3:$F$12)","v":" 30-59"},{"$f":"Calculations!AU45*ROUNDUP('Total Solution Costs'!$B$2/'Cash Flow data'!H45,0)","v":10},{"$f":"Calculations!H45","v":"No"},{"$f":"Calculations!I45","v":10},"YES",null,{"$f":"Calculations!DA45","v":37218.016666666663},{"$f":"Calculations!DB45","v":38959.48333333333},{"$f":"Calculations!DC45","v":40700.949999999997},{"$f":"Calculations!DD45","v":42442.416666666664},{"$f":"Calculations!DE45","v":44183.883333333331},{"$f":"Calculations!DF45","v":45925.35},{"$f":"Calculations!DG45","v":47666.816666666666},{"$f":"Calculations!DH45","v":49408.283333333333},{"$f":"Calculations!DI45","v":51149.75},{"$f":"Calculations!DJ45","v":52891.216666666667},{"$f":"Calculations!DK45","v":90109.233333333337},{"$f":"Calculations!DL45","v":91850.7},{"$f":"Calculations!DM45","v":93592.166666666657},{"$f":"Calculations!DN45","v":95333.633333333317},{"$f":"Calculations!DO45","v":97075.099999999977},{"$f":"Calculations!DP45","v":98816.566666666637},{"$f":"Calculations!DQ45","v":100558.0333333333},{"$f":"Calculations!DR45","v":102299.49999999996},{"$f":"Calculations!DS45","v":104040.96666666662},{"$f":"Calculations!DT45","v":105782.43333333328}]
[{"$f":"Calculations!A46","v":"ILR"},{"$f":"Calculations!E46","v":"Godrej & Boyce  GVR 51 LITE AC*"},{"$f":"Calculations!F46","v":51},{"$f":"IF(Calculations!G46=0,\"No\",\"Yes\")","v":"No"},{"$f":"LOOKUP(C149,List!$E$3:$E$12,List!$F$3:$F$12)","v":" 30-59"},{"$f":"Calculations!AU46*ROUNDUP('Total Solution Costs'!$B$2/'Cash Flow data'!H46,0)","v":10},{"$f":"Calculations!H46","v":"Yes"},{"$f":"Calculations!I46","v":10},"YES",null,{"$f":"Calculations!DA46","v":32165.766666666663},{"$f":"Calculations!DB46","v":34841.633333333331},{"$f":"Calculations!DC46","v":37517.5},{"$f":"Calculations!DD46","v":40193.366666666669},{"$f":"Calculations!DE46","v":42869.233333333337},{"$f":"Calculations!DF46","v":45545.100000000006},{"$f":"Calculations!DG46","v":48220.966666666674},{"$f":"Calculations!DH46","v":50896.833333333343},{"$f":"Calculations!DI46","v":53572.700000000012},{"$f":"Calculations!DJ46","v":56248.56666666668},{"$f":"Calculations!DK46","v":88414.333333333343},{"$f":"Calculations!DL46","v":91090.200000000012},{"$f":"Calculations!DM46","v":93766.06666666668},{"$f":"Calculations!DN46","v":96441.933333333349},{"$f":"Calculations!DO46","v":99117.800000000017},{"$f":"Calculations!DP46","v":101793.66666666669},{"$f":"Calculations!DQ46","v":104469.53333333335},{"$f":"Calculations!DR46","v":107145.40000000002},{"$f":"Calculations!DS46","v":109821.26666666669},{"$f":"Calculations!DT46","v":112497.13333333336}]
[{"$f":"Calculations!A47","v":"ILR"},{"$f":"Calculations!E47","v":"Godrej & Boyce  GVR 75 Lite*"},{"$f":"Calculations!F47","v":72.5},{"$f":"IF(Calculations!G47=0,\"No\",\"Yes\")","v":"No"},{"$f":"LOOKUP(C150,List!$E$3:$E$12,List!$F$3:$F$12)","v":" 60-89"},{"$f":"Calculations!AU47*ROUNDUP('Total Solution Costs'!$B$2/'Cash Flow data'!H47,0)","v":10},{"$f":"Calculations!H47","v":"Yes"},{"$f":"Calculations!I47","v":10},"YES",null,{"$f":"Calculations!DA47","v":22890.066666666662},{"$f":"Calculations!DB47","v":25149.833333333328},{"$f":"Calculations!DC47","v":27409.599999999995},{"$f":"Calculations!DD47","v":29669.366666666661},{"$f":"Calculations!DE47","v":31929.133333333328},{"$f":"Calculations!DF47","v":34188.899999999994},{"$f":"Calculations!DG47","v":36448.666666666657},{"$f":"Calculations!DH47","v":38708.43333333332},{"$f":"Calculations!DI47","v":40968.199999999983},{"$f":"Calculations!DJ47","v":43227.966666666645},{"$f":"Calculations!DK47","v":66118.033333333311},{"$f":"Calculations!DL47","v":68377.799999999974},{"$f":"Calculations!DM47","v":70637.566666666637},{"$f":"Calculations!DN47","v":72897.333333333299},{"$f":"Calculations!DO47","v":75157.099999999962},{"$f":"Calculations!DP47","v":77416.866666666625},{"$f":"Calculations!DQ47","v":79676.633333333288},{"$f":"Calculations!DR47","v":81936.399999999951},{"$f":"Calculations!DS47","v":84196.166666666613},{"$f":"Calculations!DT47","v":86455.933333333276}]
[{"$f":"Calculations!A48","v":"ILR"},{"$f":"Calculations!E48","v":"Godrej & Boyce  GVR 99 Lite*"},{"$f":"Calculations!F48","v":98.5},{"$f":"IF(Calculations!G48=0,\"No\",\"Yes\")","v":"No"},{"$f":"LOOKUP(C151,List!$E$3:$E$12,List!$F$3:$F$12)","v":" 90-120"},{"$f":"Calculations!AU48*ROUNDUP('Total Solution Costs'!$B$2/'Cash Flow data'!H48,0)","v":10},{"$f":"Calculations!H48","v":"Yes"},{"$f":"Calculations!I48","v":10},"YES",null,{"$f":"Calculations!DA48","v":23549.466666666664},{"$f":"Calculations!DB48","v":25634.033333333329},{"$f":"Calculations!DC48","v":27718.599999999995},{"$f":"Calculations!DD48","v":29803.166666666661},{"$f":"Calculations!DE48","v":31887.733333333326},{"$f":"Calculations!DF48","v":33972.299999999996},{"$f":"Calculations!DG48","v":36056.866666666661},{"$f":"Calculations!DH48","v":38141.433333333327},{"$f":"Calculations!DI48","v":40225.999999999993},{"$f":"Calculations!DJ48","v":42310.566666666658},{"$f":"Calculations!DK48","v":65860.033333333326},{"$f":"Calculations!DL48","v":67944.599999999991},{"$f":"Calculations!DM48","v":70029.166666666657},{"$f":"Calculations!DN48","v":72113.733333333323},{"$f":"Calculations!DO48","v":74198.299999999988},{"$f":"Calculations!DP48","v":76282.866666666654},{"$f":"Calculations!DQ48","v":78367.43333333332},{"$f":"Calculations!DR48","v":80451.999999999985},{"$f":"Calculations!DS48","v":82536.566666666651},{"$f":"Calculations!DT48","v":84621.133333333317}]
[{"$f":"Calculations!A49","v":"ILR"},{"$f":"Calculations!E49","v":"Godrej & Boyce  GVR 225 AC*"},{"$f":"Calculations!F49","v":225},{"$f":"IF(Calculations!G49=0,\"No\",\"Yes\")","v":"No"},{"$f":"LOOKUP(C152,List!$E$3:$E$12,List!$F$3:$F$12)","v":"120 +"},{"$f":"Calculations!AU49*ROUNDUP('Total Solution Costs'!$B$2/'Cash Flow data'!H49,0)","v":10},{"$f":"Calculations!H49","v":"Yes"},{"$f":"Calculations!I49","v":10},"YES",null,{"$f":"Calculations!DA49","v":31620.066666666666},{"$f":"Calculations!DB49","v":34295.933333333334},{"$f":"Calculations!DC49","v":36971.800000000003},{"$f":"Calculations!DD49","v":39647.666666666672},{"$f":"Calculations!DE49","v":42323.53333333334},{"$f":"Calculations!DF49","v":44999.400000000009},{"$f":"Calculations!DG49","v":47675.266666666677},{"$f":"Calculations!DH49","v":50351.133333333346},{"$f":"Calculations!DI49","v":53027.000000000015},{"$f":"Calculations!DJ49","v":55702.866666666683},{"$f":"Calculations!DK49","v":87322.933333333349},{"$f":"Calculations!DL49","v":89998.800000000017},{"$f":"Calculations!DM49","v":92674.666666666686},{"$f":"Calculations!DN49","v":95350.533333333355},{"$f":"Calculations!DO49","v":98026.400000000023},{"$f":"Calculations!DP49","v":100702.26666666669},{"$f":"Calculations!DQ49","v":103378.13333333336},{"$f":"Calculations!DR49","v":106054.00000000003},{"$f":"Calculations!DS49","v":108729.8666666667},{"$f":"Calculations!DT49","v":111405.73333333337}]
[{"$f":"Calculations!A50","v":"Kerosene"},{"$f":"Calculations!E50","v":"Sibir V 170 KE "},{"$f":"Calculations!F50","v":55},{"$f":"IF(Calculations!G50=0,\"No\",\"Yes\")","v":"No"},{"$f":"LOOKUP(C153,List!$E$3:$E$12,List!$F$3:$F$12)","v":" 30-59"},{"$f":"Calculations!AU50*ROUNDUP('Total Solution Costs'!$B$2/'Cash Flow data'!H50,0)","v":10},{"$f":"Calculations!H50","v":"No"},{"$f":"Calculations!I50","v":10},"YES",null,{"$f":"Calculations!DA50","v":20693.184730000001},{"$f":"Calculations!DB50","v":27597.884730000002},{"$f":"Calculations!DC50","v":34502.584730000002},{"$f":"Calculations!DD50","v":41407.284729999999},{"$f":"Calculations!DE50","v":48311.984729999996},{"$f":"Calculations!DF50","v":55216.684729999994},{"$f":"Calculations!DG50","v":62121.384729999991},{"$f":"Calculations!DH50","v":69026.084729999988},{"$f":"Calculations!DI50","v":75930.784729999985},{"$f":"Calculations!DJ50","v":82835.484729999982},{"$f":"Calculations!DK50","v":103528.66945999998},{"$f":"Calculations!DL50","v":110433.36945999997},{"$f":"Calculations!DM50","v":117338.06945999997},{"$f":"Calculations!DN50","v":124242.76945999997},{"$f":"Calculations!DO50","v":131147.46945999996},{"$f":"Calculations!DP50","v":138052.16945999998},{"$f":"Calculations!DQ50","v":144956.86945999999},{"$f":"Calculations!DR50","v":151861.56946},{"$f":"Calculations!DS50","v":158766.26946000001},{"$f":"Calculations!DT50","v":165670.96946000002}]
[{"$f":"Calculations!A51","v":"Kerosene"},{"$f":"Calculations!E51","v":"Sibir V 110 KE "},{"$f":"Calculations!F51","v":17},{"$f":"IF(Calculations!G51=0,\"No\",\"Yes\")","v":"No"},{"$f":"LOOKUP(C154,List!$E$3:$E$12,List!$F$3:$F$12)","v":" 1-29"},{"$f":"Calculations!AU51*ROUNDUP('Total Solution Costs'!$B$2/'Cash Flow data'!H51,0)","v":10},{"$f":"Calculations!H51","v":"No"},{"$f":"Calculations!I51","v":10},"YES",null,{"$f":"Calculations!DA51","v":27688.902675000005},{"$f":"Calculations!DB51","v":30750.152675000005},{"$f":"Calculations!DC51","v":33811.402675000005},{"$f":"Calculations!DD51","v":36872.652675000005},{"$f":"Calculations!DE51","v":39933.902675000005},{"$f":"Calculations!DF51","v":42995.152675000005},{"$f":"Calculations!DG51","v":46056.402675000005},{"$f":"Calculations!DH51","v":49117.652675000005},{"$f":"Calculations!DI51","v":52178.902675000005},{"$f":"Calculations!DJ51","v":55240.152675000005},{"$f":"Calculations!DK51","v":82929.05535000001},{"$f":"Calculations!DL51","v":85990.30535000001},{"$f":"Calculations!DM51","v":89051.55535000001},{"$f":"Calculations!DN51","v":92112.80535000001},{"$f":"Calculations!DO51","v":95174.05535000001},{"$f":"Calculations!DP51","v":98235.30535000001},{"$f":"Calculations!DQ51","v":101296.55535000001},{"$f":"Calculations!DR51","v":104357.80535000001},{"$f":"Calculations!DS51","v":107419.05535000001},{"$f":"Calculations!DT51","v":110480.30535000001}]
[{"$f":"Calculations!A52","v":"Kerosene"},{"$f":"Calculations!E52","v":"B Medical RCW 50 EK"},{"$f":"Calculations!F52","v":24},{"$f":"IF(Calculations!G52=0,\"No\",\"Yes\")","v":"No"},{"$f":"LOOKUP(C155,List!$E$3:$E$12,List!$F$3:$F$12)","v":" 1-29"},{"$f":"Calculations!AU52*ROUNDUP('Total Solution Costs'!$B$2/'Cash Flow data'!H52,0)","v":10},{"$f":"Calculations!H52","v":"No"},{"$f":"Calculations!I52","v":10},"YES",null,{"$f":"Calculations!DA52","v":42771.75851},{"$f":"Calculations!DB52","v":47114.158510000001},{"$f":"Calculations!DC52","v":51456.558510000003},{"$f":"Calculations!DD52","v":55798.958510000004},{"$f":"Calculations!DE52","v":60141.358510000005},{"$f":"Calculations!DF52","v":64483.758510000007},{"$f":"Calculations!DG52","v":68826.158510000008},{"$f":"Calculations!DH52","v":73168.558510000003},{"$f":"Calculations!DI52","v":77510.958509999997},{"$f":"Calculations!DJ52","v":81853.358509999991},{"$f":"Calculations!DK52","v":124625.11701999999},{"$f":"Calculations!DL52","v":128967.51701999998},{"$f":"Calculations!DM52","v":133309.91701999999},{"$f":"Calculations!DN52","v":137652.31701999999},{"$f":"Calculations!DO52","v":141994.71701999998},{"$f":"Calculations!DP52","v":146337.11701999998},{"$f":"Calculations!DQ52","v":150679.51701999997},{"$f":"Calculations!DR52","v":155021.91701999996},{"$f":"Calculations!DS52","v":159364.31701999996},{"$f":"Calculations!DT52","v":163706.71701999995}]
[{"$f":"Calculations!A53","v":"SDD"},{"$f":"Calculations!E53","v":"Vestfrost MKS 044"},{"$f":"Calculations!F53","v":19.5},{"$f":"IF(Calculations!G53=0,\"No\",\"Yes\")","v":"No"},{"$f":"LOOKUP(C156,List!$E$3:$E$12,List!$F$3:$F$12)","v":" 1-29"},{"$f":"Calculations!AU53*ROUNDUP('Total Solution Costs'!$B$2/'Cash Flow data'!H53,0)","v":10},{"$f":"Calculations!H53","v":"No"},{"$f":"Calculations!I53","v":10},"YES",null,{"$f":"Calculations!DA53","v":42701.349910000004},{"$f":"Calculations!DB53","v":43776.349910000004},{"$f":"Calculations!DC53","v":44851.349910000004},{"$f":"Calculations!DD53","v":45926.349910000004},{"$f":"Calculations!DE53","v":47001.349910000004},{"$f":"Calculations!DF53","v":48076.349910000004},{"$f":"Calculations!DG53","v":49151.349910000004},{"$f":"Calculations!DH53","v":50226.349910000004},{"$f":"Calculations!DI53","v":51301.349910000004},{"$f":"Calculations!DJ53","v":52376.349910000004},{"$f":"Calculations!DK53","v":95077.699820000009},{"$f":"Calculations!DL53","v":96152.699820000009},{"$f":"Calculations!DM53","v":97227.699820000009},{"$f":"Calculations!DN53","v":98302.699820000009},{"$f":"Calculations!DO53","v":99377.699820000009},{"$f":"Calculations!DP53","v":100452.69982000001},{"$f":"Calculations!DQ53","v":101527.69982000001},{"$f":"Calculations!DR53","v":102602.69982000001},{"$f":"Calculations!DS53","v":103677.69982000001},{"$f":"Calculations!DT53","v":104752.69982000001}]
[{"$f":"Calculations!A54","v":"SDD"},{"$f":"Calculations!E54","v":"Haier HTC-60"},{"$f":"Calculations!F54","v":21},{"$f":"IF(Calculations!G54=0,\"No\",\"Yes\")","v":"No"},{"$f":"LOOKUP(C157,List!$E$3:$E$12,List!$F$3:$F$12)","v":" 1-29"},{"$f":"Calculations!AU54*ROUNDUP('Total Solution Costs'!$B$2/'Cash Flow data'!H54,0)","v":10},{"$f":"Calculations!H54","v":"No"},{"$f":"Calculations!I54","v":10},"YES",null,{"$f":"Calculations!DA54","v":42197.044999999998},{"$f":"Calculations!DB54","v":43272.044999999998},{"$f":"Calculations!DC54","v":44347.044999999998},{"$f":"Calculations!DD54","v":45422.044999999998},{"$f":"Calculations!DE54","v":46497.044999999998},{"$f":"Calculations!DF54","v":47572.044999999998},{"$f":"Calculations!DG54","v":48647.044999999998},{"$f":"Calculations!DH54","v":49722.044999999998},{"$f":"Calculations!DI54","v":50797.044999999998},{"$f":"Calculations!DJ54","v":51872.044999999998},{"$f":"Calculations!DK54","v":94069.09},{"$f":"Calculations!DL54","v":95144.09},{"$f":"Calculations!DM54","v":96219.09},{"$f":"Calculations!DN54","v":97294.09},{"$f":"Calculations!DO54","v":98369.09},{"$f":"Calculations!DP54","v":99444.09},{"$f":"Calculations!DQ54","v":100519.09},{"$f":"Calculations!DR54","v":101594.09},{"$f":"Calculations!DS54","v":102669.09},{"$f":"Calculations!DT54","v":103744.09}]
[{"$f":"Calculations!A55","v":"SDD"},{"$f":"Calculations!E55","v":"SunDanzer BFRV 55*"},{"$f":"Calculations!F55","v":54.5},{"$f":"IF(Calculations!G55=0,\"No\",\"Yes\")","v":"No"},{"$f":"LOOKUP(C158,List!$E$3:$E$12,List!$F$3:$F$12)","v":" 30-59"},{"$f":"Calculations!AU55*ROUNDUP('Total Solution Costs'!$B$2/'Cash Flow data'!H55,0)","v":10},{"$f":"Calculations!H55","v":"Yes"},{"$f":"Calculations!I55","v":10},"YES",null,{"$f":"Calculations!DA55","v":49854.500000000007},{"$f":"Calculations!DB55","v":50929.500000000007},{"$f":"Calculations!DC55","v":52004.500000000007},{"$f":"Calculations!DD55","v":53079.500000000007},{"$f":"Calculations!DE55","v":54154.500000000007},{"$f":"Calculations!DF55","v":55229.500000000007},{"$f":"Calculations!DG55","v":56304.500000000007},{"$f":"Calculations!DH55","v":57379.500000000007},{"$f":"Calculations!DI55","v":58454.500000000007},{"$f":"Calculations!DJ55","v":59529.500000000007},{"$f":"Calculations!DK55","v":109384.00000000001},{"$f":"Calculations!DL55","v":110459.00000000001},{"$f":"Calculations!DM55","v":111534.00000000001},{"$f":"Calculations!DN55","v":112609.00000000001},{"$f":"Calculations!DO55","v":113684.00000000001},{"$f":"Calculations!DP55","v":114759.00000000001},{"$f":"Calculations!DQ55","v":115834.00000000001},{"$f":"Calculations!DR55","v":116909.00000000001},{"$f":"Calculations!DS55","v":117984.00000000001},{"$f":"Calculations!DT55","v":119059.00000000001}]
[{"$f":"Calculations!A56","v":"SDD"},{"$f":"Calculations!E56","v":"B Medical TCW 3000 SDD"},{"$f":"Calculations!F56","v":156},{"$f":"IF(Calculations!G56=0,\"No\",\"Yes\")","v":"No"},{"$f":"LOOKUP(C159,List!$E$3:$E$12,List!$F$3:$F$12)","v":"120 +"},{"$f":"Calculations!AU56*ROUNDUP('Total Solution Costs'!$B$2/'Cash Flow data'!H56,0)","v":10},{"$f":"Calculations!H56","v":"No"},{"$f":"Calculations!I56","v":10},"YES",null,{"$f":"Calculations!DA56","v":88721.805949999994},{"$f":"Calculations!DB56","v":89796.805949999994},{"$f":"Calculations!DC56","v":90871.805949999994},{"$f":"Calculations!DD56","v":91946.805949999994},{"$f":"Calculations!DE56","v":93021.805949999994},{"$f":"Calculations!DF56","v":94096.805949999994},{"$f":"Calculations!DG56","v":95171.805949999994},{"$f":"Calculations!DH56","v":96246.805949999994},{"$f":"Calculations!DI56","v":97321.805949999994},{"$f":"Calculations!DJ56","v":98396.805949999994},{"$f":"Calculations!DK56","v":187118.61189999999},{"$f":"Calculations!DL56","v":188193.61189999999},{"$f":"Calculations!DM56","v":189268.61189999999},{"$f":"Calculations!DN56","v":190343.61189999999},{"$f":"Calculations!DO56","v":191418.61189999999},{"$f":"Calculations!DP56","v":192493.61189999999},{"$f":"Calculations!DQ56","v":193568.61189999999},{"$f":"Calculations!DR56","v":194643.61189999999},{"$f":"Calculations!DS56","v":195718.61189999999},{"$f":"Calculations!DT56","v":196793.61189999999}]
[{"$f":"Calculations!A57","v":"SDD"},{"$f":"Calculations!E57","v":"B Medical TCW 2000 SDD"},{"$f":"Calculations!F57","v":99},{"$f":"IF(Calculations!G57=0,\"No\",\"Yes\")","v":"Yes"},{"$f":"LOOKUP(C160,List!$E$3:$E$12,List!$F$3:$F$12)","v":" 90-120"},{"$f":"Calculations!AU57*ROUNDUP('Total Solution Costs'!$B$2/'Cash Flow data'!H57,0)","v":10},{"$f":"Calculations!H57","v":"No"},{"$f":"Calculations!I57","v":10},"YES",null,{"$f":"Calculations!DA57","v":119392.77280000001},{"$f":"Calculations!DB57","v":120467.77280000001},{"$f":"Calculations!DC57","v":121542.77280000001},{"$f":"Calculations!DD57","v":122617.77280000001},{"$f":"Calculations!DE57","v":123692.77280000001},{"$f":"Calculations!DF57","v":124767.77280000001},{"$f":"Calculations!DG57","v":125842.77280000001},{"$f":"Calculations!DH57","v":126917.77280000001},{"$f":"Calculations!DI57","v":127992.77280000001},{"$f":"Calculations!DJ57","v":129067.77280000001},{"$f":"Calculations!DK57","v":248460.54560000001},{"$f":"Calculations!DL57","v":249535.54560000001},{"$f":"Calculations!DM57","v":250610.54560000001},{"$f":"Calculations!DN57","v":251685.54560000001},{"$f":"Calculations!DO57","v":252760.54560000001},{"$f":"Calculations!DP57","v":253835.54560000001},{"$f":"Calculations!DQ57","v":254910.54560000001},{"$f":"Calculations!DR57","v":255985.54560000001},{"$f":"Calculations!DS57","v":257060.54560000001},{"$f":"Calculations!DT57","v":258135.54560000001}]
[{"$f":"Calculations!A58","v":"SDD"},{"$f":"Calculations!E58","v":"Zero ZLF 100 DC*"},{"$f":"Calculations!F58","v":99},{"$f":"IF(Calculations!G58=0,\"No\",\"Yes\")","v":"No"},{"$f":"LOOKUP(C161,List!$E$3:$E$12,List!$F$3:$F$12)","v":" 90-120"},{"$f":"Calculations!AU58*ROUNDUP('Total Solution Costs'!$B$2/'Cash Flow data'!H58,0)","v":10},{"$f":"Calculations!H58","v":"Yes"},{"$f":"Calculations!I58","v":10},"YES",null,{"$f":"Calculations!DA58","v":74710.599999999991},{"$f":"Calculations!DB58","v":75785.599999999991},{"$f":"Calculations!DC58","v":76860.599999999991},{"$f":"Calculations!DD58","v":77935.599999999991},{"$f":"Calculations!DE58","v":79010.599999999991},{"$f":"Calculations!DF58","v":80085.599999999991},{"$f":"Calculations!DG58","v":81160.599999999991},{"$f":"Calculations!DH58","v":82235.599999999991},{"$f":"Calculations!DI58","v":83310.599999999991},{"$f":"Calculations!DJ58","v":84385.599999999991},{"$f":"Calculations!DK58","v":159096.19999999998},{"$f":"Calculations!DL58","v":160171.19999999998},{"$f":"Calculations!DM58","v":161246.19999999998},{"$f":"Calculations!DN58","v":162321.19999999998},{"$f":"Calculations!DO58","v":163396.19999999998},{"$f":"Calculations!DP58","v":164471.19999999998},{"$f":"Calculations!DQ58","v":165546.19999999998},{"$f":"Calculations!DR58","v":166621.19999999998},{"$f":"Calculations!DS58","v":167696.19999999998},{"$f":"Calculations!DT58","v":168771.19999999998}]
[{"$f":"Calculations!A59","v":"SDD"},{"$f":"Calculations!E59","v":"SunDanzer BFRV 15 SDD*"},{"$f":"Calculations!F59","v":15},{"$f":"IF(Calculations!G59=0,\"No\",\"Yes\")","v":"No"},{"$f":"LOOKUP(C162,List!$E$3:$E$12,List!$F$3:$F$12)","v":" 1-29"},{"$f":"Calculations!AU59*ROUNDUP('Total Solution Costs'!$B$2/'Cash Flow data'!H59,0)","v":10},{"$f":"Calculations!H59","v":"Yes"},{"$f":"Calculations!I59","v":10},"YES",null,{"$f":"Calculations!DA59","v":42418},{"$f":"Calculations!DB59","v":43493},{"$f":"Calculations!DC59","v":44568},{"$f":"Calculations!DD59","v":45643},{"$f":"Calculations!DE59","v":46718},{"$f":"Calculations!DF59","v":47793},{"$f":"Calculations!DG59","v":48868},{"$f":"Calculations!DH59","v":49943},{"$f":"Calculations!DI59","v":51018},{"$f":"Calculations!DJ59","v":52093},{"$f":"Calculations!DK59","v":94511},{"$f":"Calculations!DL59","v":95586},{"$f":"Calculations!DM59","v":96661},{"$f":"Calculations!DN59","v":97736},{"$f":"Calculations!DO59","v":98811},{"$f":"Calculations!DP59","v":99886},{"$f":"Calculations!DQ59","v":100961},{"$f":"Calculations!DR59","v":102036},{"$f":"Calculations!DS59","v":103111},{"$f":"Calculations!DT59","v":104186}]
[{"$f":"Calculations!A60","v":"SDD"},{"$f":"Calculations!E60","v":"Dulas Solar VC 200 SDD*"},{"$f":"Calculations!F60","v":132},{"$f":"IF(Calculations!G60=0,\"No\",\"Yes\")","v":"No"},{"$f":"LOOKUP(C163,List!$E$3:$E$12,List!$F$3:$F$12)","v":"120 +"},{"$f":"Calculations!AU60*ROUNDUP('Total Solution Costs'!$B$2/'Cash Flow data'!H60,0)","v":10},{"$f":"Calculations!H60","v":"Yes"},{"$f":"Calculations!I60","v":10},"YES",null,{"$f":"Calculations!DA60","v":66037.822},{"$f":"Calculations!DB60","v":67112.822},{"$f":"Calculations!DC60","v":68187.822},{"$f":"Calculations!DD60","v":69262.822},{"$f":"Calculations!DE60","v":70337.822},{"$f":"Calculations!DF60","v":71412.822},{"$f":"Calculations!DG60","v":72487.822},{"$f":"Calculations!DH60","v":73562.822},{"$f":"Calculations!DI60","v":74637.822},{"$f":"Calculations!DJ60","v":75712.822},{"$f":"Calculations!DK60","v":141750.644},{"$f":"Calculations!DL60","v":142825.644},{"$f":"Calculations!DM60","v":143900.644},{"$f":"Calculations!DN60","v":144975.644},{"$f":"Calculations!DO60","v":146050.644},{"$f":"Calculations!DP60","v":147125.644},{"$f":"Calculations!DQ60","v":148200.644},{"$f":"Calculations!DR60","v":149275.644},{"$f":"Calculations!DS60","v":150350.644},{"$f":"Calculations!DT60","v":151425.644}]
[{"$f":"Calculations!A61","v":"SDD"},{"$f":"Calculations!E61","v":"Vestfrost VLS 054 SDD*"},{"$f":"Calculations!F61","v":55.5},{"$f":"IF(Calculations!G61=0,\"No\",\"Yes\")","v":"No"},{"$f":"LOOKUP(C164,List!$E$3:$E$12,List!$F$3:$F$12)","v":" 30-59"},{"$f":"Calculations!AU61*ROUNDUP('Total Solution Costs'!$B$2/'Cash Flow data'!H61,0)","v":10},{"$f":"Calculations!H61","v":"Yes"},{"$f":"Calculations!I61","v":10},"YES",null,{"$f":"Calculations!DA61","v":49766.849880000002},{"$f":"Calculations!DB61","v":50841.849880000002},{"$f":"Calculations!DC61","v":51916.849880000002},{"$f":"Calculations!DD61","v":52991.849880000002},{"$f":"Calculations!DE61","v":54066.849880000002},{"$f":"Calculations!DF61","v":55141.849880000002},{"$f":"Calculations!DG61","v":56216.849880000002},{"$f":"Calculations!DH61","v":57291.849880000002},{"$f":"Calculations!DI61","v":58366.849880000002},{"$f":"Calculations!DJ61","v":59441.849880000002},{"$f":"Calculations!DK61","v":109208.69976},{"$f":"Calculations!DL61","v":110283.69976},{"$f":"Calculations!DM61","v":111358.69976},{"$f":"Calculations!DN61","v":112433.69976},{"$f":"Calculations!DO61","v":113508.69976},{"$f":"Calculations!DP61","v":114583.69976},{"$f":"Calculations!DQ61","v":115658.69976},{"$f":"Calculations!DR61","v":116733.69976},{"$f":"Calculations!DS61","v":117808.69976},{"$f":"Calculations!DT61","v":118883.69976}]
[{"$f":"Calculations!A62","v":"SDD"},{"$f":"Calculations!E62","v":"B Medical TCW 40 SDD*"},{"$f":"Calculations!F62","v":36},{"$f":"IF(Calculations!G62=0,\"No\",\"Yes\")","v":"Yes"},{"$f":"LOOKUP(C165,List!$E$3:$E$12,List!$F$3:$F$12)","v":" 30-59"},{"$f":"Calculations!AU62*ROUNDUP('Total Solution Costs'!$B$2/'Cash Flow data'!H62,0)","v":10},{"$f":"Calculations!H62","v":"Yes"},{"$f":"Calculations!I62","v":10},"YES",null,{"$f":"Calculations!DA62","v":84696.590070000006},{"$f":"Calculations!DB62","v":85771.590070000006},{"$f":"Calculations!DC62","v":86846.590070000006},{"$f":"Calculations!DD62","v":87921.590070000006},{"$f":"Calculations!DE62","v":88996.590070000006},{"$f":"Calculations!DF62","v":90071.590070000006},{"$f":"Calculations!DG62","v":91146.590070000006},{"$f":"Calculations!DH62","v":92221.590070000006},{"$f":"Calculations!DI62","v":93296.590070000006},{"$f":"Calculations!DJ62","v":94371.590070000006},{"$f":"Calculations!DK62","v":179068.18014000001},{"$f":"Calculations!DL62","v":180143.18014000001},{"$f":"Calculations!DM62","v":181218.18014000001},{"$f":"Calculations!DN62","v":182293.18014000001},{"$f":"Calculations!DO62","v":183368.18014000001},{"$f":"Calculations!DP62","v":184443.18014000001},{"$f":"Calculations!DQ62","v":185518.18014000001},{"$f":"Calculations!DR62","v":186593.18014000001},{"$f":"Calculations!DS62","v":187668.18014000001},{"$f":"Calculations!DT62","v":188743.18014000001}]
[{"$f":"Calculations!A63","v":"SDD"},{"$f":"Calculations!E63","v":"B Medical TCW 2043 SDD*"},{"$f":"Calculations!F63","v":70},{"$f":"IF(Calculations!G63=0,\"No\",\"Yes\")","v":"Yes"},{"$f":"LOOKUP(C166,List!$E$3:$E$12,List!$F$3:$F$12)","v":" 60-89"},{"$f":"Calculations!AU63*ROUNDUP('Total Solution Costs'!$B$2/'Cash Flow data'!H63,0)","v":10},{"$f":"Calculations!H63","v":"Yes"},{"$f":"Calculations!I63","v":10},"YES",null,{"$f":"Calculations!DA63","v":117238.54072999998},{"$f":"Calculations!DB63","v":118313.54072999998},{"$f":"Calculations!DC63","v":119388.54072999998},{"$f":"Calculations!DD63","v":120463.54072999998},{"$f":"Calculations!DE63","v":121538.54072999998},{"$f":"Calculations!DF63","v":122613.54072999998},{"$f":"Calculations!DG63","v":123688.54072999998},{"$f":"Calculations!DH63","v":124763.54072999998},{"$f":"Calculations!DI63","v":125838.54072999998},{"$f":"Calculations!DJ63","v":126913.54072999998},{"$f":"Calculations!DK63","v":244152.08145999996},{"$f":"Calculations!DL63","v":245227.08145999996},{"$f":"Calculations!DM63","v":246302.08145999996},{"$f":"Calculations!DN63","v":247377.08145999996},{"$f":"Calculations!DO63","v":248452.08145999996},{"$f":"Calculations!DP63","v":249527.08145999996},{"$f":"Calculations!DQ63","v":250602.08145999996},{"$f":"Calculations!DR63","v":251677.08145999996},{"$f":"Calculations!DS63","v":252752.08145999996},{"$f":"Calculations!DT63","v":253827.08145999996}]
[{"$f":"Calculations!A64","v":"SDD"},{"$f":"Calculations!E64","v":"B Medical TCW 3043 SDD*"},{"$f":"Calculations!F64","v":89},{"$f":"IF(Calculations!G64=0,\"No\",\"Yes\")","v":"No"},{"$f":"LOOKUP(C167,List!$E$3:$E$12,List!$F$3:$F$12)","v":" 60-89"},{"$f":"Calculations!AU64*ROUNDUP('Total Solution Costs'!$B$2/'Cash Flow data'!H64,0)","v":10},{"$f":"Calculations!H64","v":"Yes"},{"$f":"Calculations!I64","v":10},"YES",null,{"$f":"Calculations!DA64","v":92334.945570000011},{"$f":"Calculations!DB64","v":93409.945570000011},{"$f":"Calculations!DC64","v":94484.945570000011},{"$f":"Calculations!DD64","v":95559.945570000011},{"$f":"Calculations!DE64","v":96634.945570000011},{"$f":"Calculations!DF64","v":97709.945570000011},{"$f":"Calculations!DG64","v":98784.945570000011},{"$f":"Calculations!DH64","v":99859.945570000011},{"$f":"Calculations!DI64","v":100934.94557000001},{"$f":"Calculations!DJ64","v":102009.94557000001},{"$f":"Calculations!DK64","v":194344.89114000002},{"$f":"Calculations!DL64","v":195419.89114000002},{"$f":"Calculations!DM64","v":196494.89114000002},{"$f":"Calculations!DN64","v":197569.89114000002},{"$f":"Calculations!DO64","v":198644.89114000002},{"$f":"Calculations!DP64","v":199719.89114000002},{"$f":"Calculations!DQ64","v":200794.89114000002},{"$f":"Calculations!DR64","v":201869.89114000002},{"$f":"Calculations!DS64","v":202944.89114000002},{"$f":"Calculations!DT64","v":204019.89114000002}]
[{"$f":"Calculations!A65","v":"SDD"},{"$f":"Calculations!E65","v":"Dulas Solar VC 150 SDD*"},{"$f":"Calculations!F65","v":102},{"$f":"IF(Calculations!G65=0,\"No\",\"Yes\")","v":"Yes"},{"$f":"LOOKUP(C168,List!$E$3:$E$12,List!$F$3:$F$12)","v":" 90-120"},{"$f":"Calculations!AU65*ROUNDUP('Total Solution Costs'!$B$2/'Cash Flow data'!H65,0)","v":10},{"$f":"Calculations!H65","v":"Yes"},{"$f":"Calculations!I65","v":10},"YES",null,{"$f":"Calculations!DA65","v":90729.677000000011},{"$f":"Calculations!DB65","v":91804.677000000011},{"$f":"Calculations!DC65","v":92879.677000000011},{"$f":"Calculations!DD65","v":93954.677000000011},{"$f":"Calculations!DE65","v":95029.677000000011},{"$f":"Calculations!DF65","v":96104.677000000011},{"$f":"Calculations!DG65","v":97179.677000000011},{"$f":"Calculations!DH65","v":98254.677000000011},{"$f":"Calculations!DI65","v":99329.677000000011},{"$f":"Calculations!DJ65","v":100404.67700000001},{"$f":"Calculations!DK65","v":191134.35400000002},{"$f":"Calculations!DL65","v":192209.35400000002},{"$f":"Calculations!DM65","v":193284.35400000002},{"$f":"Calculations!DN65","v":194359.35400000002},{"$f":"Calculations!DO65","v":195434.35400000002},{"$f":"Calculations!DP65","v":196509.35400000002},{"$f":"Calculations!DQ65","v":197584.35400000002},{"$f":"Calculations!DR65","v":198659.35400000002},{"$f":"Calculations!DS65","v":199734.35400000002},{"$f":"Calculations!DT65","v":200809.35400000002}]
[{"$f":"Calculations!A66","v":"SDD"},{"$f":"Calculations!E66","v":"Godrej & Boyce  GVR 50DC SDD*"},{"$f":"Calculations!F66","v":46.5},{"$f":"IF(Calculations!G66=0,\"No\",\"Yes\")","v":"No"},{"$f":"LOOKUP(C169,List!$E$3:$E$12,List!$F$3:$F$12)","v":" 30-59"},{"$f":"Calculations!AU66*ROUNDUP('Total Solution Costs'!$B$2/'Cash Flow data'!H66,0)","v":10},{"$f":"Calculations!H66","v":"Yes"},{"$f":"Calculations!I66","v":10},"YES",null,{"$f":"Calculations!DA66","v":53257.1},{"$f":"Calculations!DB66","v":54332.1},{"$f":"Calculations!DC66","v":55407.1},{"$f":"Calculations!DD66","v":56482.1},{"$f":"Calculations!DE66","v":57557.1},{"$f":"Calculations!DF66","v":58632.1},{"$f":"Calculations!DG66","v":59707.1},{"$f":"Calculations!DH66","v":60782.1},{"$f":"Calculations!DI66","v":61857.1},{"$f":"Calculations!DJ66","v":62932.1},{"$f":"Calculations!DK66","v":116189.2},{"$f":"Calculations!DL66","v":117264.2},{"$f":"Calculations!DM66","v":118339.2},{"$f":"Calculations!DN66","v":119414.2},{"$f":"Calculations!DO66","v":120489.2},{"$f":"Calculations!DP66","v":121564.2},{"$f":"Calculations!DQ66","v":122639.2},{"$f":"Calculations!DR66","v":123714.2},{"$f":"Calculations!DS66","v":124789.2},{"$f":"Calculations!DT66","v":125864.2}]
[{"$f":"Calculations!A67","v":"SDD"},{"$f":"Calculations!E67","v":"Godrej & Boyce  GVR 100DC (SureChill)*"},{"$f":"Calculations!F67","v":99},{"$f":"IF(Calculations!G67=0,\"No\",\"Yes\")","v":"No"},{"$f":"LOOKUP(C170,List!$E$3:$E$12,List!$F$3:$F$12)","v":" 90-120"},{"$f":"Calculations!AU67*ROUNDUP('Total Solution Costs'!$B$2/'Cash Flow data'!H67,0)","v":10},{"$f":"Calculations!H67","v":"Yes"},{"$f":"Calculations!I67","v":10},"YES",null,{"$f":"Calculations!DA67","v":67215.25},{"$f":"Calculations!DB67","v":68290.25},{"$f":"Calculations!DC67","v":69365.25},{"$f":"Calculations!DD67","v":70440.25},{"$f":"Calculations!DE67","v":71515.25},{"$f":"Calculations!DF67","v":72590.25},{"$f":"Calculations!DG67","v":73665.25},{"$f":"Calculations!DH67","v":74740.25},{"$f":"Calculations!DI67","v":75815.25},{"$f":"Calculations!DJ67","v":76890.25},{"$f":"Calculations!DK67","v":144105.5},{"$f":"Calculations!DL67","v":145180.5},{"$f":"Calculations!DM67","v":146255.5},{"$f":"Calculations!DN67","v":147330.5},{"$f":"Calculations!DO67","v":148405.5},{"$f":"Calculations!DP67","v":149480.5},{"$f":"Calculations!DQ67","v":150555.5},{"$f":"Calculations!DR67","v":151630.5},{"$f":"Calculations!DS67","v":152705.5},{"$f":"Calculations!DT67","v":153780.5}]
[{"$f":"Calculations!A68","v":"SDD"},{"$f":"Calculations!E68","v":"Zero ZLF 150DC*"},{"$f":"Calculations!F68","v":128},{"$f":"IF(Calculations!G68=0,\"No\",\"Yes\")","v":"No"},{"$f":"LOOKUP(C171,List!$E$3:$E$12,List!$F$3:$F$12)","v":"120 +"},{"$f":"Calculations!AU68*ROUNDUP('Total Solution Costs'!$B$2/'Cash Flow data'!H68,0)","v":10},{"$f":"Calculations!H68","v":"Yes"},{"$f":"Calculations!I68","v":10},"YES",null,{"$f":"Calculations!DA68","v":79397.2},{"$f":"Calculations!DB68","v":80472.2},{"$f":"Calculations!DC68","v":81547.199999999997},{"$f":"Calculations!DD68","v":82622.2},{"$f":"Calculations!DE68","v":83697.2},{"$f":"Calculations!DF68","v":84772.2},{"$f":"Calculations!DG68","v":85847.2},{"$f":"Calculations!DH68","v":86922.2},{"$f":"Calculations!DI68","v":87997.2},{"$f":"Calculations!DJ68","v":89072.2},{"$f":"Calculations!DK68","v":168469.4},{"$f":"Calculations!DL68","v":169544.4},{"$f":"Calculations!DM68","v":170619.4},{"$f":"Calculations!DN68","v":171694.4},{"$f":"Calculations!DO68","v":172769.4},{"$f":"Calculations!DP68","v":173844.4},{"$f":"Calculations!DQ68","v":174919.4},{"$f":"Calculations!DR68","v":175994.4},{"$f":"Calculations!DS68","v":177069.4},{"$f":"Calculations!DT68","v":178144.4}]
[{"$f":"Calculations!A69","v":"SDD"},{"$f":"Calculations!E69","v":"Vestfrost VLS 094 SDD*"},{"$f":"Calculations!F69","v":92},{"$f":"IF(Calculations!G69=0,\"No\",\"Yes\")","v":"No"},{"$f":"LOOKUP(C172,List!$E$3:$E$12,List!$F$3:$F$12)","v":" 90-120"},{"$f":"Calculations!AU69*ROUNDUP('Total Solution Costs'!$B$2/'Cash Flow data'!H69,0)","v":10},{"$f":"Calculations!H69","v":"Yes"},{"$f":"Calculations!I69","v":10},"YES",null,{"$f":"Calculations!DA69","v":53531.387010000006},{"$f":"Calculations!DB69","v":54606.387010000006},{"$f":"Calculations!DC69","v":55681.387010000006},{"$f":"Calculations!DD69","v":56756.387010000006},{"$f":"Calculations!DE69","v":57831.387010000006},{"$f":"Calculations!DF69","v":58906.387010000006},{"$f":"Calculations!DG69","v":59981.387010000006},{"$f":"Calculations!DH69","v":61056.387010000006},{"$f":"Calculations!DI69","v":62131.387010000006},{"$f":"Calculations!DJ69","v":63206.387010000006},{"$f":"Calculations!DK69","v":116737.77402000001},{"$f":"Calculations!DL69","v":117812.77402000001},{"$f":"Calculations!DM69","v":118887.77402000001},{"$f":"Calculations!DN69","v":119962.77402000001},{"$f":"Calculations!DO69","v":121037.77402000001},{"$f":"Calculations!DP69","v":122112.77402000001},{"$f":"Calculations!DQ69","v":123187.77402000001},{"$f":"Calculations!DR69","v":124262.77402000001},{"$f":"Calculations!DS69","v":125337.77402000001},{"$f":"Calculations!DT69","v":126412.77402000001}]
[{"$f":"Calculations!A70","v":"SDD"},{"$f":"Calculations!E70","v":"Vestfrost VLS 154 SDD*"},{"$f":"Calculations!F70","v":170},{"$f":"IF(Calculations!G70=0,\"No\",\"Yes\")","v":"No"},{"$f":"LOOKUP(C173,List!$E$3:$E$12,List!$F$3:$F$12)","v":"120 +"},{"$f":"Calculations!AU70*ROUNDUP('Total Solution Costs'!$B$2/'Cash Flow data'!H70,0)","v":10},{"$f":"Calculations!H70","v":"Yes"},{"$f":"Calculations!I70","v":10},"YES",null,{"$f":"Calculations!DA70","v":76854.538230000006},{"$f":"Calculations!DB70","v":77929.538230000006},{"$f":"Calculations!DC70","v":79004.538230000006},{"$f":"Calculations!DD70","v":80079.538230000006},{"$f":"Calculations!DE70","v":81154.538230000006},{"$f":"Calculations!DF70","v":82229.538230000006},{"$f":"Calculations!DG70","v":83304.538230000006},{"$f":"Calculations!DH70","v":84379.538230000006},{"$f":"Calculations!DI70","v":85454.538230000006},{"$f":"Calculations!DJ70","v":86529.538230000006},{"$f":"Calculations!DK70","v":163384.07646000001},{"$f":"Calculations!DL70","v":164459.07646000001},{"$f":"Calculations!DM70","v":165534.07646000001},{"$f":"Calculations!DN70","v":166609.07646000001},{"$f":"Calculations!DO70","v":167684.07646000001},{"$f":"Calculations!DP70","v":168759.07646000001},{"$f":"Calculations!DQ70","v":169834.07646000001},{"$f":"Calculations!DR70","v":170909.07646000001},{"$f":"Calculations!DS70","v":171984.07646000001},{"$f":"Calculations!DT70","v":173059.07646000001}]
[{"$f":"Calculations!A71","v":"SDD"},{"$f":"Calculations!E71","v":"Zero ZLF 30DC SDD*"},{"$f":"Calculations!F71","v":27},{"$f":"IF(Calculations!G71=0,\"No\",\"Yes\")","v":"No"},{"$f":"LOOKUP(C174,List!$E$3:$E$12,List!$F$3:$F$12)","v":" 1-29"},{"$f":"Calculations!AU71*ROUNDUP('Total Solution Costs'!$B$2/'Cash Flow data'!H71,0)","v":10},{"$f":"Calculations!H71","v":"Yes"},{"$f":"Calculations!I71","v":10},"YES",null,{"$f":"Calculations!DA71","v":51930.299999999996},{"$f":"Calculations!DB71","v":53005.299999999996},{"$f":"Calculations!DC71","v":54080.299999999996},{"$f":"Calculations!DD71","v":55155.299999999996},{"$f":"Calculations!DE71","v":56230.299999999996},{"$f":"Calculations!DF71","v":57305.299999999996},{"$f":"Calculations!DG71","v":58380.299999999996},{"$f":"Calculations!DH71","v":59455.299999999996},{"$f":"Calculations!DI71","v":60530.299999999996},{"$f":"Calculations!DJ71","v":61605.299999999996},{"$f":"Calculations!DK71","v":113535.59999999999},{"$f":"Calculations!DL71","v":114610.59999999999},{"$f":"Calculations!DM71","v":115685.59999999999},{"$f":"Calculations!DN71","v":116760.59999999999},{"$f":"Calculations!DO71","v":117835.59999999999},{"$f":"Calculations!DP71","v":118910.59999999999},{"$f":"Calculations!DQ71","v":119985.59999999999},{"$f":"Calculations!DR71","v":121060.59999999999},{"$f":"Calculations!DS71","v":122135.59999999999},{"$f":"Calculations!DT71","v":123210.59999999999}]
[{"$f":"Calculations!A72","v":"SDD"},{"$f":"Calculations!E72","v":"Haier HTC-60H"},{"$f":"Calculations!F72","v":21},{"$f":"IF(Calculations!G72=0,\"No\",\"Yes\")","v":"No"},{"$f":"LOOKUP(C175,List!$E$3:$E$12,List!$F$3:$F$12)","v":" 1-29"},{"$f":"Calculations!AU72*ROUNDUP('Total Solution Costs'!$B$2/'Cash Flow data'!H72,0)","v":10},{"$f":"Calculations!H72","v":"No"},{"$f":"Calculations!I72","v":10},"YES",null,{"$f":"Calculations!DA72","v":44013.690999999999},{"$f":"Calculations!DB72","v":45088.690999999999},{"$f":"Calculations!DC72","v":46163.690999999999},{"$f":"Calculations!DD72","v":47238.690999999999},{"$f":"Calculations!DE72","v":48313.690999999999},{"$f":"Calculations!DF72","v":49388.690999999999},{"$f":"Calculations!DG72","v":50463.690999999999},{"$f":"Calculations!DH72","v":51538.690999999999},{"$f":"Calculations!DI72","v":52613.690999999999},{"$f":"Calculations!DJ72","v":53688.690999999999},{"$f":"Calculations!DK72","v":97702.381999999998},{"$f":"Calculations!DL72","v":98777.381999999998},{"$f":"Calculations!DM72","v":99852.381999999998},{"$f":"Calculations!DN72","v":100927.382},{"$f":"Calculations!DO72","v":102002.382},{"$f":"Calculations!DP72","v":103077.382},{"$f":"Calculations!DQ72","v":104152.382},{"$f":"Calculations!DR72","v":105227.382},{"$f":"Calculations!DS72","v":106302.382},{"$f":"Calculations!DT72","v":107377.382}]
[{"$f":"Calculations!A73","v":"SDD"},{"$f":"Calculations!E73","v":"Haier HTCD-160*"},{"$f":"Calculations!F73","v":100},{"$f":"IF(Calculations!G73=0,\"No\",\"Yes\")","v":"Yes"},{"$f":"LOOKUP(C176,List!$E$3:$E$12,List!$F$3:$F$12)","v":" 90-120"},{"$f":"Calculations!AU73*ROUNDUP('Total Solution Costs'!$B$2/'Cash Flow data'!H73,0)","v":10},{"$f":"Calculations!H73","v":"Yes"},{"$f":"Calculations!I73","v":10},"YES",null,{"$f":"Calculations!DA73","v":83649.80799999999},{"$f":"Calculations!DB73","v":84724.80799999999},{"$f":"Calculations!DC73","v":85799.80799999999},{"$f":"Calculations!DD73","v":86874.80799999999},{"$f":"Calculations!DE73","v":87949.80799999999},{"$f":"Calculations!DF73","v":89024.80799999999},{"$f":"Calculations!DG73","v":90099.80799999999},{"$f":"Calculations!DH73","v":91174.80799999999},{"$f":"Calculations!DI73","v":92249.80799999999},{"$f":"Calculations!DJ73","v":93324.80799999999},{"$f":"Calculations!DK73","v":176974.61599999998},{"$f":"Calculations!DL73","v":178049.61599999998},{"$f":"Calculations!DM73","v":179124.61599999998},{"$f":"Calculations!DN73","v":180199.61599999998},{"$f":"Calculations!DO73","v":181274.61599999998},{"$f":"Calculations!DP73","v":182349.61599999998},{"$f":"Calculations!DQ73","v":183424.61599999998},{"$f":"Calculations!DR73","v":184499.61599999998},{"$f":"Calculations!DS73","v":185574.61599999998},{"$f":"Calculations!DT73","v":186649.61599999998}]
[{"$f":"Calculations!A74","v":"SDD"},{"$f":"Calculations!E74","v":"Dulas Solar VC 110 SDD*"},{"$f":"Calculations!F74","v":110},{"$f":"IF(Calculations!G74=0,\"No\",\"Yes\")","v":"No"},{"$f":"LOOKUP(C177,List!$E$3:$E$12,List!$F$3:$F$12)","v":" 90-120"},{"$f":"Calculations!AU74*ROUNDUP('Total Solution Costs'!$B$2/'Cash Flow data'!H74,0)","v":10},{"$f":"Calculations!H74","v":"Yes"},{"$f":"Calculations!I74","v":10},"YES",null,{"$f":"Calculations!DA74","v":80879.354999999996},{"$f":"Calculations!DB74","v":81954.354999999996},{"$f":"Calculations!DC74","v":83029.354999999996},{"$f":"Calculations!DD74","v":84104.354999999996},{"$f":"Calculations!DE74","v":85179.354999999996},{"$f":"Calculations!DF74","v":86254.354999999996},{"$f":"Calculations!DG74","v":87329.354999999996},{"$f":"Calculations!DH74","v":88404.354999999996},{"$f":"Calculations!DI74","v":89479.354999999996},{"$f":"Calculations!DJ74","v":90554.354999999996},{"$f":"Calculations!DK74","v":171433.71},{"$f":"Calculations!DL74","v":172508.71},{"$f":"Calculations!DM74","v":173583.71},{"$f":"Calculations!DN74","v":174658.71},{"$f":"Calculations!DO74","v":175733.71},{"$f":"Calculations!DP74","v":176808.71},{"$f":"Calculations!DQ74","v":177883.71},{"$f":"Calculations!DR74","v":178958.71},{"$f":"Calculations!DS74","v":180033.71},{"$f":"Calculations!DT74","v":181108.71}]
[{"$f":"Calculations!A75","v":"SDD"},{"$f":"Calculations!E75","v":"Dulas Solar VC 88 SDD*"},{"$f":"Calculations!F75","v":88},{"$f":"IF(Calculations!G75=0,\"No\",\"Yes\")","v":"No"},{"$f":"LOOKUP(C178,List!$E$3:$E$12,List!$F$3:$F$12)","v":" 60-89"},{"$f":"Calculations!AU75*ROUNDUP('Total Solution Costs'!$B$2/'Cash Flow data'!H75,0)","v":10},{"$f":"Calculations!H75","v":"Yes"},{"$f":"Calculations!I75","v":10},"YES",null,{"$f":"Calculations!DA75","v":65582.536999999997},{"$f":"Calculations!DB75","v":66657.536999999997},{"$f":"Calculations!DC75","v":67732.536999999997},{"$f":"Calculations!DD75","v":68807.536999999997},{"$f":"Calculations!DE75","v":69882.536999999997},{"$f":"Calculations!DF75","v":70957.536999999997},{"$f":"Calculations!DG75","v":72032.536999999997},{"$f":"Calculations!DH75","v":73107.536999999997},{"$f":"Calculations!DI75","v":74182.536999999997},{"$f":"Calculations!DJ75","v":75257.536999999997},{"$f":"Calculations!DK75","v":140840.07399999999},{"$f":"Calculations!DL75","v":141915.07399999999},{"$f":"Calculations!DM75","v":142990.07399999999},{"$f":"Calculations!DN75","v":144065.07399999999},{"$f":"Calculations!DO75","v":145140.07399999999},{"$f":"Calculations!DP75","v":146215.07399999999},{"$f":"Calculations!DQ75","v":147290.07399999999},{"$f":"Calculations!DR75","v":148365.07399999999},{"$f":"Calculations!DS75","v":149440.07399999999},{"$f":"Calculations!DT75","v":150515.07399999999}]
[{"$f":"Calculations!A76","v":"SDD"},{"$f":"Calculations!E76","v":"B Medical TCW 15R SDD*"},{"$f":"Calculations!F76","v":16},{"$f":"IF(Calculations!G76=0,\"No\",\"Yes\")","v":"No"},{"$f":"LOOKUP(C179,List!$E$3:$E$12,List!$F$3:$F$12)","v":" 1-29"},{"$f":"Calculations!AU76*ROUNDUP('Total Solution Costs'!$B$2/'Cash Flow data'!H76,0)","v":10},{"$f":"Calculations!H76","v":"Yes"},{"$f":"Calculations!I76","v":10},"YES",null,{"$f":"Calculations!DA76","v":69789.376820000005},{"$f":"Calculations!DB76","v":70864.376820000005},{"$f":"Calculations!DC76","v":71939.376820000005},{"$f":"Calculations!DD76","v":73014.376820000005},{"$f":"Calculations!DE76","v":74089.376820000005},{"$f":"Calculations!DF76","v":75164.376820000005},{"$f":"Calculations!DG76","v":76239.376820000005},{"$f":"Calculations!DH76","v":77314.376820000005},{"$f":"Calculations!DI76","v":78389.376820000005},{"$f":"Calculations!DJ76","v":79464.376820000005},{"$f":"Calculations!DK76","v":149253.75364000001},{"$f":"Calculations!DL76","v":150328.75364000001},{"$f":"Calculations!DM76","v":151403.75364000001},{"$f":"Calculations!DN76","v":152478.75364000001},{"$f":"Calculations!DO76","v":153553.75364000001},{"$f":"Calculations!DP76","v":154628.75364000001},{"$f":"Calculations!DQ76","v":155703.75364000001},{"$f":"Calculations!DR76","v":156778.75364000001},{"$f":"Calculations!DS76","v":157853.75364000001},{"$f":"Calculations!DT76","v":158928.75364000001}]
[{"$f":"Calculations!A77","v":"SDD"},{"$f":"Calculations!E77","v":"B Medical TCW 40R SDD*"},{"$f":"Calculations!F77","v":36},{"$f":"IF(Calculations!G77=0,\"No\",\"Yes\")","v":"No"},{"$f":"LOOKUP(C180,List!$E$3:$E$12,List!$F$3:$F$12)","v":" 30-59"},{"$f":"Calculations!AU77*ROUNDUP('Total Solution Costs'!$B$2/'Cash Flow data'!H77,0)","v":10},{"$f":"Calculations!H77","v":"Yes"},{"$f":"Calculations!I77","v":10},"YES",null,{"$f":"Calculations!DA77","v":92472.261440000002},{"$f":"Calculations!DB77","v":93547.261440000002},{"$f":"Calculations!DC77","v":94622.261440000002},{"$f":"Calculations!DD77","v":95697.261440000002},{"$f":"Calculations!DE77","v":96772.261440000002},{"$f":"Calculations!DF77","v":97847.261440000002},{"$f":"Calculations!DG77","v":98922.261440000002},{"$f":"Calculations!DH77","v":99997.261440000002},{"$f":"Calculations!DI77","v":101072.26144},{"$f":"Calculations!DJ77","v":102147.26144},{"$f":"Calculations!DK77","v":194619.52288},{"$f":"Calculations!DL77","v":195694.52288},{"$f":"Calculations!DM77","v":196769.52288},{"$f":"Calculations!DN77","v":197844.52288},{"$f":"Calculations!DO77","v":198919.52288},{"$f":"Calculations!DP77","v":199994.52288},{"$f":"Calculations!DQ77","v":201069.52288},{"$f":"Calculations!DR77","v":202144.52288},{"$f":"Calculations!DS77","v":203219.52288},{"$f":"Calculations!DT77","v":204294.52288}]
[{"$f":"Calculations!A78","v":"SDD"},{"$f":"Calculations!E78","v":"Vestfrost VLS 024 SDD*"},{"$f":"Calculations!F78","v":25.5},{"$f":"IF(Calculations!G78=0,\"No\",\"Yes\")","v":"No"},{"$f":"LOOKUP(C181,List!$E$3:$E$12,List!$F$3:$F$12)","v":" 1-29"},{"$f":"Calculations!AU78*ROUNDUP('Total Solution Costs'!$B$2/'Cash Flow data'!H78,0)","v":10},{"$f":"Calculations!H78","v":"Yes"},{"$f":"Calculations!I78","v":10},"YES",null,{"$f":"Calculations!DA78","v":48395.00288},{"$f":"Calculations!DB78","v":49470.00288},{"$f":"Calculations!DC78","v":50545.00288},{"$f":"Calculations!DD78","v":51620.00288},{"$f":"Calculations!DE78","v":52695.00288},{"$f":"Calculations!DF78","v":53770.00288},{"$f":"Calculations!DG78","v":54845.00288},{"$f":"Calculations!DH78","v":55920.00288},{"$f":"Calculations!DI78","v":56995.00288},{"$f":"Calculations!DJ78","v":58070.00288},{"$f":"Calculations!DK78","v":106465.00576},{"$f":"Calculations!DL78","v":107540.00576},{"$f":"Calculations!DM78","v":108615.00576},{"$f":"Calculations!DN78","v":109690.00576},{"$f":"Calculations!DO78","v":110765.00576},{"$f":"Calculations!DP78","v":111840.00576},{"$f":"Calculations!DQ78","v":112915.00576},{"$f":"Calculations!DR78","v":113990.00576},{"$f":"Calculations!DS78","v":115065.00576},{"$f":"Calculations!DT78","v":116140.00576}]
[{"$f":"Calculations!A79","v":"SDD"},{"$f":"Calculations!E79","v":"Haier HTCD 90 SDD*"},{"$f":"Calculations!F79","v":37.5},{"$f":"IF(Calculations!G79=0,\"No\",\"Yes\")","v":"Yes"},{"$f":"LOOKUP(C182,List!$E$3:$E$12,List!$F$3:$F$12)","v":" 30-59"},{"$f":"Calculations!AU79*ROUNDUP('Total Solution Costs'!$B$2/'Cash Flow data'!H79,0)","v":10},{"$f":"Calculations!H79","v":"Yes"},{"$f":"Calculations!I79","v":10},"YES",null,{"$f":"Calculations!DA79","v":79363.48599999999},{"$f":"Calculations!DB79","v":80438.48599999999},{"$f":"Calculations!DC79","v":81513.48599999999},{"$f":"Calculations!DD79","v":82588.48599999999},{"$f":"Calculations!DE79","v":83663.48599999999},{"$f":"Calculations!DF79","v":84738.48599999999},{"$f":"Calculations!DG79","v":85813.48599999999},{"$f":"Calculations!DH79","v":86888.48599999999},{"$f":"Calculations!DI79","v":87963.48599999999},{"$f":"Calculations!DJ79","v":89038.48599999999},{"$f":"Calculations!DK79","v":168401.97199999998},{"$f":"Calculations!DL79","v":169476.97199999998},{"$f":"Calculations!DM79","v":170551.97199999998},{"$f":"Calculations!DN79","v":171626.97199999998},{"$f":"Calculations!DO79","v":172701.97199999998},{"$f":"Calculations!DP79","v":173776.97199999998},{"$f":"Calculations!DQ79","v":174851.97199999998},{"$f":"Calculations!DR79","v":175926.97199999998},{"$f":"Calculations!DS79","v":177001.97199999998},{"$f":"Calculations!DT79","v":178076.97199999998}]
[{"$f":"Calculations!A80","v":"SDD"},{"$f":"Calculations!E80","v":"Haier HTC 40 SDD*"},{"$f":"Calculations!F80","v":22.5},{"$f":"IF(Calculations!G80=0,\"No\",\"Yes\")","v":"No"},{"$f":"LOOKUP(C183,List!$E$3:$E$12,List!$F$3:$F$12)","v":" 1-29"},{"$f":"Calculations!AU80*ROUNDUP('Total Solution Costs'!$B$2/'Cash Flow data'!H80,0)","v":10},{"$f":"Calculations!H80","v":"Yes"},{"$f":"Calculations!I80","v":10},"YES",null,{"$f":"Calculations!DA80","v":45103.486000000004},{"$f":"Calculations!DB80","v":46178.486000000004},{"$f":"Calculations!DC80","v":47253.486000000004},{"$f":"Calculations!DD80","v":48328.486000000004},{"$f":"Calculations!DE80","v":49403.486000000004},{"$f":"Calculations!DF80","v":50478.486000000004},{"$f":"Calculations!DG80","v":51553.486000000004},{"$f":"Calculations!DH80","v":52628.486000000004},{"$f":"Calculations!DI80","v":53703.486000000004},{"$f":"Calculations!DJ80","v":54778.486000000004},{"$f":"Calculations!DK80","v":99881.972000000009},{"$f":"Calculations!DL80","v":100956.97200000001},{"$f":"Calculations!DM80","v":102031.97200000001},{"$f":"Calculations!DN80","v":103106.97200000001},{"$f":"Calculations!DO80","v":104181.97200000001},{"$f":"Calculations!DP80","v":105256.97200000001},{"$f":"Calculations!DQ80","v":106331.97200000001},{"$f":"Calculations!DR80","v":107406.97200000001},{"$f":"Calculations!DS80","v":108481.97200000001},{"$f":"Calculations!DT80","v":109556.97200000001}]
[{"$f":"Calculations!A81","v":"SDD"},{"$f":"Calculations!E81","v":"Haier HTC 110 SDD*"},{"$f":"Calculations!F81","v":59},{"$f":"IF(Calculations!G81=0,\"No\",\"Yes\")","v":"No"},{"$f":"LOOKUP(C184,List!$E$3:$E$12,List!$F$3:$F$12)","v":" 30-59"},{"$f":"Calculations!AU81*ROUNDUP('Total Solution Costs'!$B$2/'Cash Flow data'!H81,0)","v":10},{"$f":"Calculations!H81","v":"Yes"},{"$f":"Calculations!I81","v":10},"YES",null,{"$f":"Calculations!DA81","v":48313.48599999999},{"$f":"Calculations!DB81","v":49388.48599999999},{"$f":"Calculations!DC81","v":50463.48599999999},{"$f":"Calculations!DD81","v":51538.48599999999},{"$f":"Calculations!DE81","v":52613.48599999999},{"$f":"Calculations!DF81","v":53688.48599999999},{"$f":"Calculations!DG81","v":54763.48599999999},{"$f":"Calculations!DH81","v":55838.48599999999},{"$f":"Calculations!DI81","v":56913.48599999999},{"$f":"Calculations!DJ81","v":57988.48599999999},{"$f":"Calculations!DK81","v":106301.97199999998},{"$f":"Calculations!DL81","v":107376.97199999998},{"$f":"Calculations!DM81","v":108451.97199999998},{"$f":"Calculations!DN81","v":109526.97199999998},{"$f":"Calculations!DO81","v":110601.97199999998},{"$f":"Calculations!DP81","v":111676.97199999998},{"$f":"Calculations!DQ81","v":112751.97199999998},{"$f":"Calculations!DR81","v":113826.97199999998},{"$f":"Calculations!DS81","v":114901.97199999998},{"$f":"Calculations!DT81","v":115976.97199999998}]
[{"$f":"Calculations!A82","v":"SDD"},{"$f":"Calculations!E82","v":"B Medical TCW 15 SDD*"},{"$f":"Calculations!F82","v":16},{"$f":"IF(Calculations!G82=0,\"No\",\"Yes\")","v":"Yes"},{"$f":"LOOKUP(C185,List!$E$3:$E$12,List!$F$3:$F$12)","v":" 1-29"},{"$f":"Calculations!AU82*ROUNDUP('Total Solution Costs'!$B$2/'Cash Flow data'!H82,0)","v":10},{"$f":"Calculations!H82","v":"Yes"},{"$f":"Calculations!I82","v":10},"YES",null,{"$f":"Calculations!DA82","v":68996.059560000009},{"$f":"Calculations!DB82","v":70071.059560000009},{"$f":"Calculations!DC82","v":71146.059560000009},{"$f":"Calculations!DD82","v":72221.059560000009},{"$f":"Calculations!DE82","v":73296.059560000009},{"$f":"Calculations!DF82","v":74371.059560000009},{"$f":"Calculations!DG82","v":75446.059560000009},{"$f":"Calculations!DH82","v":76521.059560000009},{"$f":"Calculations!DI82","v":77596.059560000009},{"$f":"Calculations!DJ82","v":78671.059560000009},{"$f":"Calculations!DK82","v":147667.11912000002},{"$f":"Calculations!DL82","v":148742.11912000002},{"$f":"Calculations!DM82","v":149817.11912000002},{"$f":"Calculations!DN82","v":150892.11912000002},{"$f":"Calculations!DO82","v":151967.11912000002},{"$f":"Calculations!DP82","v":153042.11912000002},{"$f":"Calculations!DQ82","v":154117.11912000002},{"$f":"Calculations!DR82","v":155192.11912000002},{"$f":"Calculations!DS82","v":156267.11912000002},{"$f":"Calculations!DT82","v":157342.11912000002}]
[{"$f":"Calculations!A83","v":"SDD"},{"$f":"Calculations!E83","v":"Dulas Solar VC 50 SDD*"},{"$f":"Calculations!F83","v":52.5},{"$f":"IF(Calculations!G83=0,\"No\",\"Yes\")","v":"No"},{"$f":"LOOKUP(C186,List!$E$3:$E$12,List!$F$3:$F$12)","v":" 30-59"},{"$f":"Calculations!AU83*ROUNDUP('Total Solution Costs'!$B$2/'Cash Flow data'!H83,0)","v":10},{"$f":"Calculations!H83","v":"Yes"},{"$f":"Calculations!I83","v":10},"YES",null,{"$f":"Calculations!DA83","v":52594.732550000008},{"$f":"Calculations!DB83","v":53669.732550000008},{"$f":"Calculations!DC83","v":54744.732550000008},{"$f":"Calculations!DD83","v":55819.732550000008},{"$f":"Calculations!DE83","v":56894.732550000008},{"$f":"Calculations!DF83","v":57969.732550000008},{"$f":"Calculations!DG83","v":59044.732550000008},{"$f":"Calculations!DH83","v":60119.732550000008},{"$f":"Calculations!DI83","v":61194.732550000008},{"$f":"Calculations!DJ83","v":62269.732550000008},{"$f":"Calculations!DK83","v":114864.46510000002},{"$f":"Calculations!DL83","v":115939.46510000002},{"$f":"Calculations!DM83","v":117014.46510000002},{"$f":"Calculations!DN83","v":118089.46510000002},{"$f":"Calculations!DO83","v":119164.46510000002},{"$f":"Calculations!DP83","v":120239.46510000002},{"$f":"Calculations!DQ83","v":121314.46510000002},{"$f":"Calculations!DR83","v":122389.46510000002},{"$f":"Calculations!DS83","v":123464.46510000002},{"$f":"Calculations!DT83","v":124539.46510000002}]
[{"$f":"Calculations!A84","v":"SDD"},{"$f":"Calculations!E84","v":"Dulas Solar VC 60 SDD*"},{"$f":"Calculations!F84","v":57},{"$f":"IF(Calculations!G84=0,\"No\",\"Yes\")","v":"Yes"},{"$f":"LOOKUP(C187,List!$E$3:$E$12,List!$F$3:$F$12)","v":" 30-59"},{"$f":"Calculations!AU84*ROUNDUP('Total Solution Costs'!$B$2/'Cash Flow data'!H84,0)","v":10},{"$f":"Calculations!H84","v":"Yes"},{"$f":"Calculations!I84","v":10},"YES",null,{"$f":"Calculations!DA84","v":75357.293019999997},{"$f":"Calculations!DB84","v":76432.293019999997},{"$f":"Calculations!DC84","v":77507.293019999997},{"$f":"Calculations!DD84","v":78582.293019999997},{"$f":"Calculations!DE84","v":79657.293019999997},{"$f":"Calculations!DF84","v":80732.293019999997},{"$f":"Calculations!DG84","v":81807.293019999997},{"$f":"Calculations!DH84","v":82882.293019999997},{"$f":"Calculations!DI84","v":83957.293019999997},{"$f":"Calculations!DJ84","v":85032.293019999997},{"$f":"Calculations!DK84","v":160389.58603999999},{"$f":"Calculations!DL84","v":161464.58603999999},{"$f":"Calculations!DM84","v":162539.58603999999},{"$f":"Calculations!DN84","v":163614.58603999999},{"$f":"Calculations!DO84","v":164689.58603999999},{"$f":"Calculations!DP84","v":165764.58603999999},{"$f":"Calculations!DQ84","v":166839.58603999999},{"$f":"Calculations!DR84","v":167914.58603999999},{"$f":"Calculations!DS84","v":168989.58603999999},{"$f":"Calculations!DT84","v":170064.58603999999}]
[{"$f":"Calculations!A85","v":"Solar w battery"},{"$f":"Calculations!E85","v":"B Medical TCW 2000 DC"},{"$f":"Calculations!F85","v":76},{"$f":"IF(Calculations!G85=0,\"No\",\"Yes\")","v":"Yes"},{"$f":"LOOKUP(C188,List!$E$3:$E$12,List!$F$3:$F$12)","v":" 60-89"},{"$f":"Calculations!AU85*ROUNDUP('Total Solution Costs'!$B$2/'Cash Flow data'!H85,0)","v":10},{"$f":"Calculations!H85","v":"No"},{"$f":"Calculations!I85","v":10},"YES",null,{"$f":"Calculations!DA85","v":66101.768876666669},{"$f":"Calculations!DB85","v":67913.323543333332},{"$f":"Calculations!DC85","v":69724.878209999995},{"$f":"Calculations!DD85","v":74219.732876666661},{"$f":"Calculations!DE85","v":76031.287543333325},{"$f":"Calculations!DF85","v":77842.842209999988},{"$f":"Calculations!DG85","v":82337.696876666654},{"$f":"Calculations!DH85","v":84149.251543333317},{"$f":"Calculations!DI85","v":85960.806209999981},{"$f":"Calculations!DJ85","v":90455.660876666647},{"$f":"Calculations!DK85","v":156557.42975333333},{"$f":"Calculations!DL85","v":158368.98441999999},{"$f":"Calculations!DM85","v":162863.83908666665},{"$f":"Calculations!DN85","v":164675.39375333331},{"$f":"Calculations!DO85","v":166486.94841999997},{"$f":"Calculations!DP85","v":170981.80308666662},{"$f":"Calculations!DQ85","v":172793.35775333329},{"$f":"Calculations!DR85","v":174604.91241999995},{"$f":"Calculations!DS85","v":179099.7670866666},{"$f":"Calculations!DT85","v":180911.32175333326}]
[{"$f":"Calculations!A86","v":"Solar w battery"},{"$f":"Calculations!E86","v":"B Medical TCW 3000 DC"},{"$f":"Calculations!F86","v":109.5},{"$f":"IF(Calculations!G86=0,\"No\",\"Yes\")","v":"Yes"},{"$f":"LOOKUP(C189,List!$E$3:$E$12,List!$F$3:$F$12)","v":" 90-120"},{"$f":"Calculations!AU86*ROUNDUP('Total Solution Costs'!$B$2/'Cash Flow data'!H86,0)","v":10},{"$f":"Calculations!H86","v":"No"},{"$f":"Calculations!I86","v":10},"YES",null,{"$f":"Calculations!DA86","v":67502.378546666674},{"$f":"Calculations!DB86","v":69313.933213333337},{"$f":"Calculations!DC86","v":71125.487880000001},{"$f":"Calculations!DD86","v":75620.342546666667},{"$f":"Calculations!DE86","v":77431.89721333333},{"$f":"Calculations!DF86","v":79243.451879999993},{"$f":"Calculations!DG86","v":83738.306546666659},{"$f":"Calculations!DH86","v":85549.861213333323},{"$f":"Calculations!DI86","v":87361.415879999986},{"$f":"Calculations!DJ86","v":91856.270546666652},{"$f":"Calculations!DK86","v":159358.64909333334},{"$f":"Calculations!DL86","v":161170.20376},{"$f":"Calculations!DM86","v":165665.05842666666},{"$f":"Calculations!DN86","v":167476.61309333332},{"$f":"Calculations!DO86","v":169288.16775999998},{"$f":"Calculations!DP86","v":173783.02242666663},{"$f":"Calculations!DQ86","v":175594.5770933333},{"$f":"Calculations!DR86","v":177406.13175999996},{"$f":"Calculations!DS86","v":181900.98642666661},{"$f":"Calculations!DT86","v":183712.54109333328}]
[{"$f":"Calculations!A87","v":"Solar w battery"},{"$f":"Calculations!E87","v":"Dulas Solar VC 65-2"},{"$f":"Calculations!F87","v":37.5},{"$f":"IF(Calculations!G87=0,\"No\",\"Yes\")","v":"Yes"},{"$f":"LOOKUP(C190,List!$E$3:$E$12,List!$F$3:$F$12)","v":" 30-59"},{"$f":"Calculations!AU87*ROUNDUP('Total Solution Costs'!$B$2/'Cash Flow data'!H87,0)","v":10},{"$f":"Calculations!H87","v":"No"},{"$f":"Calculations!I87","v":10},"YES",null,{"$f":"Calculations!DA87","v":55117.689666666673},{"$f":"Calculations!DB87","v":56929.244333333336},{"$f":"Calculations!DC87","v":58740.798999999999},{"$f":"Calculations!DD87","v":63235.653666666665},{"$f":"Calculations!DE87","v":65047.208333333328},{"$f":"Calculations!DF87","v":66858.762999999992},{"$f":"Calculations!DG87","v":71353.617666666658},{"$f":"Calculations!DH87","v":73165.172333333321},{"$f":"Calculations!DI87","v":74976.726999999984},{"$f":"Calculations!DJ87","v":79471.581666666651},{"$f":"Calculations!DK87","v":134589.27133333334},{"$f":"Calculations!DL87","v":136400.826},{"$f":"Calculations!DM87","v":140895.68066666665},{"$f":"Calculations!DN87","v":142707.23533333332},{"$f":"Calculations!DO87","v":144518.78999999998},{"$f":"Calculations!DP87","v":149013.64466666663},{"$f":"Calculations!DQ87","v":150825.19933333329},{"$f":"Calculations!DR87","v":152636.75399999996},{"$f":"Calculations!DS87","v":157131.60866666661},{"$f":"Calculations!DT87","v":158943.16333333327}]
[{"$f":"Calculations!A88","v":"Solar w battery"},{"$f":"Calculations!E88","v":"Dulas Solar VC 150-2"},{"$f":"Calculations!F88","v":86},{"$f":"IF(Calculations!G88=0,\"No\",\"Yes\")","v":"Yes"},{"$f":"LOOKUP(C191,List!$E$3:$E$12,List!$F$3:$F$12)","v":" 60-89"},{"$f":"Calculations!AU88*ROUNDUP('Total Solution Costs'!$B$2/'Cash Flow data'!H88,0)","v":10},{"$f":"Calculations!H88","v":"No"},{"$f":"Calculations!I88","v":10},"YES",null,{"$f":"Calculations!DA88","v":81780.689666666673},{"$f":"Calculations!DB88","v":83592.244333333336},{"$f":"Calculations!DC88","v":85403.798999999999},{"$f":"Calculations!DD88","v":89898.653666666665},{"$f":"Calculations!DE88","v":91710.208333333328},{"$f":"Calculations!DF88","v":93521.762999999992},{"$f":"Calculations!DG88","v":98016.617666666658},{"$f":"Calculations!DH88","v":99828.172333333321},{"$f":"Calculations!DI88","v":101639.72699999998},{"$f":"Calculations!DJ88","v":106134.58166666665},{"$f":"Calculations!DK88","v":187915.27133333334},{"$f":"Calculations!DL88","v":189726.826},{"$f":"Calculations!DM88","v":194221.68066666665},{"$f":"Calculations!DN88","v":196033.23533333332},{"$f":"Calculations!DO88","v":197844.78999999998},{"$f":"Calculations!DP88","v":202339.64466666663},{"$f":"Calculations!DQ88","v":204151.19933333329},{"$f":"Calculations!DR88","v":205962.75399999996},{"$f":"Calculations!DS88","v":210457.60866666661},{"$f":"Calculations!DT88","v":212269.16333333327}]
[{"$f":"Calculations!A89","v":"Solar w battery"},{"$f":"Calculations!E89","v":"Dulas Solar VC 200-1"},{"$f":"Calculations!F89","v":126.5},{"$f":"IF(Calculations!G89=0,\"No\",\"Yes\")","v":"No"},{"$f":"LOOKUP(C192,List!$E$3:$E$12,List!$F$3:$F$12)","v":"120 +"},{"$f":"Calculations!AU89*ROUNDUP('Total Solution Costs'!$B$2/'Cash Flow data'!H89,0)","v":10},{"$f":"Calculations!H89","v":"No"},{"$f":"Calculations!I89","v":10},"YES",null,{"$f":"Calculations!DA89","v":67493.51466666667},{"$f":"Calculations!DB89","v":69305.069333333333},{"$f":"Calculations!DC89","v":71116.623999999996},{"$f":"Calculations!DD89","v":75611.478666666662},{"$f":"Calculations!DE89","v":77423.033333333326},{"$f":"Calculations!DF89","v":79234.587999999989},{"$f":"Calculations!DG89","v":83729.442666666655},{"$f":"Calculations!DH89","v":85540.997333333318},{"$f":"Calculations!DI89","v":87352.551999999981},{"$f":"Calculations!DJ89","v":91847.406666666648},{"$f":"Calculations!DK89","v":159340.9213333333},{"$f":"Calculations!DL89","v":161152.47599999997},{"$f":"Calculations!DM89","v":165647.33066666662},{"$f":"Calculations!DN89","v":167458.88533333328},{"$f":"Calculations!DO89","v":169270.43999999994},{"$f":"Calculations!DP89","v":173765.2946666666},{"$f":"Calculations!DQ89","v":175576.84933333326},{"$f":"Calculations!DR89","v":177388.40399999992},{"$f":"Calculations!DS89","v":181883.25866666657},{"$f":"Calculations!DT89","v":183694.81333333324}]
[{"$f":"Calculations!A90","v":"WICR FR"},{"$f":"Calculations!E90","v":"Zhendre WICR10"},{"$f":"Calculations!F90","v":3030.3030303030305},{"$f":"IF(Calculations!G90=0,\"No\",\"Yes\")","v":"No"},{"$f":"LOOKUP(C193,List!$E$3:$E$12,List!$F$3:$F$12)","v":"WICR 10m3"},{"$f":"Calculations!AU90*ROUNDUP('Total Solution Costs'!$B$2/'Cash Flow data'!H90,0)","v":10},{"$f":"Calculations!H90","v":"No"},{"$f":"Calculations!I90","v":15},"YES",null,{"$f":"Calculations!DA90","v":239775},{"$f":"Calculations!DB90","v":252015},{"$f":"Calculations!DC90","v":264255},{"$f":"Calculations!DD90","v":276495},{"$f":"Calculations!DE90","v":288735},{"$f":"Calculations!DF90","v":300975},{"$f":"Calculations!DG90","v":313215},{"$f":"Calculations!DH90","v":325455},{"$f":"Calculations!DI90","v":337695},{"$f":"Calculations!DJ90","v":349935},{"$f":"Calculations!DK90","v":362175},{"$f":"Calculations!DL90","v":374415},{"$f":"Calculations!DM90","v":386655},{"$f":"Calculations!DN90","v":398895},{"$f":"Calculations!DO90","v":411135},{"$f":"Calculations!DP90","v":650910},{"$f":"Calculations!DQ90","v":663150},{"$f":"Calculations!DR90","v":675390},{"$f":"Calculations!DS90","v":687630},{"$f":"Calculations!DT90","v":699870}]
[{"$f":"Calculations!A91","v":"WICR FR"},{"$f":"Calculations!E91","v":"Zhendre WICR30"},{"$f":"Calculations!F91","v":7692.3076923076924},{"$f":"IF(Calculations!G91=0,\"No\",\"Yes\")","v":"No"},{"$f":"LOOKUP(C194,List!$E$3:$E$12,List!$F$3:$F$12)","v":"WICR 30m3"},{"$f":"Calculations!AU91*ROUNDUP('Total Solution Costs'!$B$2/'Cash Flow data'!H91,0)","v":10},{"$f":"Calculations!H91","v":"No"},{"$f":"Calculations!I91","v":15},"YES",null,{"$f":"Calculations!DA91","v":319431},{"$f":"Calculations!DB91","v":346271},{"$f":"Calculations!DC91","v":373111},{"$f":"Calculations!DD91","v":399951},{"$f":"Calculations!DE91","v":426791},{"$f":"Calculations!DF91","v":453631},{"$f":"Calculations!DG91","v":480471},{"$f":"Calculations!DH91","v":507311},{"$f":"Calculations!DI91","v":534151},{"$f":"Calculations!DJ91","v":560991},{"$f":"Calculations!DK91","v":587831},{"$f":"Calculations!DL91","v":614671},{"$f":"Calculations!DM91","v":641511},{"$f":"Calculations!DN91","v":668351},{"$f":"Calculations!DO91","v":695191},{"$f":"Calculations!DP91","v":1014622},{"$f":"Calculations!DQ91","v":1041462},{"$f":"Calculations!DR91","v":1068302},{"$f":"Calculations!DS91","v":1095142},{"$f":"Calculations!DT91","v":1121982}]
[{"$f":"Calculations!A92","v":"WICR FR"},{"$f":"Calculations!E92","v":"Zhendre WICR40"},{"$f":"Calculations!F92","v":9523.8095238095229},{"$f":"IF(Calculations!G92=0,\"No\",\"Yes\")","v":"No"},{"$f":"LOOKUP(C195,List!$E$3:$E$12,List!$F$3:$F$12)","v":"WICR 40m3"},{"$f":"Calculations!AU92*ROUNDUP('Total Solution Costs'!$B$2/'Cash Flow data'!H92,0)","v":10},{"$f":"Calculations!H92","v":"No"},{"$f":"Calculations!I92","v":15},"YES",null,{"$f":"Calculations!DA92","v":274384},{"$f":"Calculations!DB92","v":301224},{"$f":"Calculations!DC92","v":328064},{"$f":"Calculations!DD92","v":354904},{"$f":"Calculations!DE92","v":381744},{"$f":"Calculations!DF92","v":408584},{"$f":"Calculations!DG92","v":435424},{"$f":"Calculations!DH92","v":462264},{"$f":"Calculations!DI92","v":489104},{"$f":"Calculations!DJ92","v":515944},{"$f":"Calculations!DK92","v":542784},{"$f":"Calculations!DL92","v":569624},{"$f":"Calculations!DM92","v":596464},{"$f":"Calculations!DN92","v":623304},{"$f":"Calculations!DO92","v":650144},{"$f":"Calculations!DP92","v":924528},{"$f":"Calculations!DQ92","v":951368},{"$f":"Calculations!DR92","v":978208},{"$f":"Calculations!DS92","v":1005048},{"$f":"Calculations!DT92","v":1031888}]
[{"$f":"Calculations!A93","v":"WICR FR"},{"$f":"Calculations!E93","v":"Huurre WICR10"},{"$f":"Calculations!F93","v":3030.3030303030305},{"$f":"IF(Calculations!G93=0,\"No\",\"Yes\")","v":"No"},{"$f":"LOOKUP(C196,List!$E$3:$E$12,List!$F$3:$F$12)","v":"WICR 10m3"},{"$f":"Calculations!AU93*ROUNDUP('Total Solution Costs'!$B$2/'Cash Flow data'!H93,0)","v":10},{"$f":"Calculations!H93","v":"No"},{"$f":"Calculations!I93","v":15},"YES",null,{"$f":"Calculations!DA93","v":239775},{"$f":"Calculations!DB93","v":252015},{"$f":"Calculations!DC93","v":264255},{"$f":"Calculations!DD93","v":276495},{"$f":"Calculations!DE93","v":288735},{"$f":"Calculations!DF93","v":300975},{"$f":"Calculations!DG93","v":313215},{"$f":"Calculations!DH93","v":325455},{"$f":"Calculations!DI93","v":337695},{"$f":"Calculations!DJ93","v":349935},{"$f":"Calculations!DK93","v":362175},{"$f":"Calculations!DL93","v":374415},{"$f":"Calculations!DM93","v":386655},{"$f":"Calculations!DN93","v":398895},{"$f":"Calculations!DO93","v":411135},{"$f":"Calculations!DP93","v":650910},{"$f":"Calculations!DQ93","v":663150},{"$f":"Calculations!DR93","v":675390},{"$f":"Calculations!DS93","v":687630},{"$f":"Calculations!DT93","v":699870}]
[{"$f":"Calculations!A94","v":"WICR FR"},{"$f":"Calculations!E94","v":"Huurre WICR30"},{"$f":"Calculations!F94","v":7692.3076923076924},{"$f":"IF(Calculations!G94=0,\"No\",\"Yes\")","v":"No"},{"$f":"LOOKUP(C197,List!$E$3:$E$12,List!$F$3:$F$12)","v":"WICR 30m3"},{"$f":"Calculations!AU94*ROUNDUP('Total Solution Costs'!$B$2/'Cash Flow data'!H94,0)","v":10},{"$f":"Calculations!H94","v":"No"},{"$f":"Calculations!I94","v":15},"YES",null,{"$f":"Calculations!DA94","v":313591},{"$f":"Calculations!DB94","v":334591},{"$f":"Calculations!DC94","v":355591},{"$f":"Calculations!DD94","v":376591},{"$f":"Calculations!DE94","v":397591},{"$f":"Calculations!DF94","v":418591},{"$f":"Calculations!DG94","v":439591},{"$f":"Calculations!DH94","v":460591},{"$f":"Calculations!DI94","v":481591},{"$f":"Calculations!DJ94","v":502591},{"$f":"Calculations!DK94","v":523591},{"$f":"Calculations!DL94","v":544591},{"$f":"Calculations!DM94","v":565591},{"$f":"Calculations!DN94","v":586591},{"$f":"Calculations!DO94","v":607591},{"$f":"Calculations!DP94","v":921182},{"$f":"Calculations!DQ94","v":942182},{"$f":"Calculations!DR94","v":963182},{"$f":"Calculations!DS94","v":984182},{"$f":"Calculations!DT94","v":1005182}]
[{"$f":"Calculations!A95","v":"WICR FR"},{"$f":"Calculations!E95","v":"Huurre WICR40"},{"$f":"Calculations!F95","v":9523.8095238095229},{"$f":"IF(Calculations!G95=0,\"No\",\"Yes\")","v":"No"},{"$f":"LOOKUP(C198,List!$E$3:$E$12,List!$F$3:$F$12)","v":"WICR 40m3"},{"$f":"Calculations!AU95*ROUNDUP('Total Solution Costs'!$B$2/'Cash Flow data'!H95,0)","v":10},{"$f":"Calculations!H95","v":"No"},{"$f":"Calculations!I95","v":15},"YES",null,{"$f":"Calculations!DA95","v":274384},{"$f":"Calculations!DB95","v":301224},{"$f":"Calculations!DC95","v":328064},{"$f":"Calculations!DD95","v":354904},{"$f":"Calculations!DE95","v":381744},{"$f":"Calculations!DF95","v":408584},{"$f":"Calculations!DG95","v":435424},{"$f":"Calculations!DH95","v":462264},{"$f":"Calculations!DI95","v":489104},{"$f":"Calculations!DJ95","v":515944},{"$f":"Calculations!DK95","v":542784},{"$f":"Calculations!DL95","v":569624},{"$f":"Calculations!DM95","v":596464},{"$f":"Calculations!DN95","v":623304},{"$f":"Calculations!DO95","v":650144},{"$f":"Calculations!DP95","v":924528},{"$f":"Calculations!DQ95","v":951368},{"$f":"Calculations!DR95","v":978208},{"$f":"Calculations!DS95","v":1005048},{"$f":"Calculations!DT95","v":1031888}]
[{"$f":"Calculations!A96","v":"WICR FR"},{"$f":"Calculations!E96","v":"Haier WICR10"},{"$f":"Calculations!F96","v":3030.3030303030305},{"$f":"IF(Calculations!G96=0,\"No\",\"Yes\")","v":"No"},{"$f":"LOOKUP(C199,List!$E$3:$E$12,List!$F$3:$F$12)","v":"WICR 10m3"},{"$f":"Calculations!AU96*ROUNDUP('Total Solution Costs'!$B$2/'Cash Flow data'!H96,0)","v":10},{"$f":"Calculations!H96","v":"No"},{"$f":"Calculations!I96","v":15},"YES",null,{"$f":"Calculations!DA96","v":232788.9},{"$f":"Calculations!DB96","v":238042.8},{"$f":"Calculations!DC96","v":243296.69999999998},{"$f":"Calculations!DD96","v":248550.59999999998},{"$f":"Calculations!DE96","v":253804.49999999997},{"$f":"Calculations!DF96","v":259058.39999999997},{"$f":"Calculations!DG96","v":264312.3},{"$f":"Calculations!DH96","v":269566.2},{"$f":"Calculations!DI96","v":274820.10000000003},{"$f":"Calculations!DJ96","v":280074.00000000006},{"$f":"Calculations!DK96","v":285327.90000000008},{"$f":"Calculations!DL96","v":290581.8000000001},{"$f":"Calculations!DM96","v":295835.70000000013},{"$f":"Calculations!DN96","v":301089.60000000015},{"$f":"Calculations!DO96","v":306343.50000000017},{"$f":"Calculations!DP96","v":539132.40000000014},{"$f":"Calculations!DQ96","v":544386.30000000016},{"$f":"Calculations!DR96","v":549640.20000000019},{"$f":"Calculations!DS96","v":554894.10000000021},{"$f":"Calculations!DT96","v":560148.00000000023}]
[{"$f":"Calculations!A97","v":"WICR FR"},{"$f":"Calculations!E97","v":"Haier WICR30"},{"$f":"Calculations!F97","v":7692.3076923076924},{"$f":"IF(Calculations!G97=0,\"No\",\"Yes\")","v":"No"},{"$f":"LOOKUP(C200,List!$E$3:$E$12,List!$F$3:$F$12)","v":"WICR 30m3"},{"$f":"Calculations!AU97*ROUNDUP('Total Solution Costs'!$B$2/'Cash Flow data'!H97,0)","v":10},{"$f":"Calculations!H97","v":"No"},{"$f":"Calculations!I97","v":15},"YES",null,{"$f":"Calculations!DA97","v":301035.00000000006},{"$f":"Calculations!DB97","v":309479.00000000006},{"$f":"Calculations!DC97","v":317923.00000000006},{"$f":"Calculations!DD97","v":326367.00000000006},{"$f":"Calculations!DE97","v":334811.00000000006},{"$f":"Calculations!DF97","v":343255.00000000006},{"$f":"Calculations!DG97","v":351699.00000000006},{"$f":"Calculations!DH97","v":360143.00000000006},{"$f":"Calculations!DI97","v":368587.00000000006},{"$f":"Calculations!DJ97","v":377031.00000000006},{"$f":"Calculations!DK97","v":385475.00000000006},{"$f":"Calculations!DL97","v":393919.00000000006},{"$f":"Calculations!DM97","v":402363.00000000006},{"$f":"Calculations!DN97","v":410807.00000000006},{"$f":"Calculations!DO97","v":419251.00000000006},{"$f":"Calculations!DP97","v":720286.00000000012},{"$f":"Calculations!DQ97","v":728730.00000000012},{"$f":"Calculations!DR97","v":737174.00000000012},{"$f":"Calculations!DS97","v":745618.00000000012},{"$f":"Calculations!DT97","v":754062.00000000012}]
[{"$f":"Calculations!A98","v":"WICR FR"},{"$f":"Calculations!E98","v":"Haier WICR40"},{"$f":"Calculations!F98","v":9523.8095238095229},{"$f":"IF(Calculations!G98=0,\"No\",\"Yes\")","v":"No"},{"$f":"LOOKUP(C201,List!$E$3:$E$12,List!$F$3:$F$12)","v":"WICR 40m3"},{"$f":"Calculations!AU98*ROUNDUP('Total Solution Costs'!$B$2/'Cash Flow data'!H98,0)","v":10},{"$f":"Calculations!H98","v":"No"},{"$f":"Calculations!I98","v":15},"YES",null,{"$f":"Calculations!DA98","v":259930},{"$f":"Calculations!DB98","v":272316},{"$f":"Calculations!DC98","v":284702},{"$f":"Calculations!DD98","v":297088},{"$f":"Calculations!DE98","v":309474},{"$f":"Calculations!DF98","v":321860},{"$f":"Calculations!DG98","v":334246},{"$f":"Calculations!DH98","v":346632},{"$f":"Calculations!DI98","v":359018},{"$f":"Calculations!DJ98","v":371404},{"$f":"Calculations!DK98","v":383790},{"$f":"Calculations!DL98","v":396176},{"$f":"Calculations!DM98","v":408562},{"$f":"Calculations!DN98","v":420948},{"$f":"Calculations!DO98","v":433334},{"$f":"Calculations!DP98","v":693264},{"$f":"Calculations!DQ98","v":705650},{"$f":"Calculations!DR98","v":718036},{"$f":"Calculations!DS98","v":730422},{"$f":"Calculations!DT98","v":742808}]
[{"$f":"Calculations!A99","v":"WICR FR"},{"$f":"Calculations!E99","v":"Zhendre WIFR20"},{"$f":"Calculations!F99","v":5555.5555555555557},{"$f":"IF(Calculations!G99=0,\"No\",\"Yes\")","v":"Yes"},{"$f":"LOOKUP(C202,List!$E$3:$E$12,List!$F$3:$F$12)","v":"WIFR"},{"$f":"Calculations!AU99*ROUNDUP('Total Solution Costs'!$B$2/'Cash Flow data'!H99,0)","v":10},{"$f":"Calculations!H99","v":"No"},{"$f":"Calculations!I99","v":15},"YES",null,{"$f":"Calculations!DA99","v":266843.30000000005},{"$f":"Calculations!DB99","v":307553.30000000005},{"$f":"Calculations!DC99","v":348263.30000000005},{"$f":"Calculations!DD99","v":388973.30000000005},{"$f":"Calculations!DE99","v":429683.30000000005},{"$f":"Calculations!DF99","v":470393.30000000005},{"$f":"Calculations!DG99","v":511103.30000000005},{"$f":"Calculations!DH99","v":551813.30000000005},{"$f":"Calculations!DI99","v":592523.30000000005},{"$f":"Calculations!DJ99","v":633233.30000000005},{"$f":"Calculations!DK99","v":673943.3},{"$f":"Calculations!DL99","v":714653.3},{"$f":"Calculations!DM99","v":755363.3},{"$f":"Calculations!DN99","v":796073.3},{"$f":"Calculations!DO99","v":836783.3},{"$f":"Calculations!DP99","v":1103626.6000000001},{"$f":"Calculations!DQ99","v":1144336.6000000001},{"$f":"Calculations!DR99","v":1185046.6000000001},{"$f":"Calculations!DS99","v":1225756.6000000001},{"$f":"Calculations!DT99","v":1266466.6000000001}]
[{"$f":"Calculations!A100","v":"WICR FR"},{"$f":"Calculations!E100","v":"Huurre WIFR20"},{"$f":"Calculations!F100","v":5555.5555555555557},{"$f":"IF(Calculations!G100=0,\"No\",\"Yes\")","v":"Yes"},{"$f":"LOOKUP(C203,List!$E$3:$E$12,List!$F$3:$F$12)","v":"WIFR"},{"$f":"Calculations!AU100*ROUNDUP('Total Solution Costs'!$B$2/'Cash Flow data'!H100,0)","v":10},{"$f":"Calculations!H100","v":"No"},{"$f":"Calculations!I100","v":15},"YES",null,{"$f":"Calculations!DA100","v":266843.30000000005},{"$f":"Calculations!DB100","v":307553.30000000005},{"$f":"Calculations!DC100","v":348263.30000000005},{"$f":"Calculations!DD100","v":388973.30000000005},{"$f":"Calculations!DE100","v":429683.30000000005},{"$f":"Calculations!DF100","v":470393.30000000005},{"$f":"Calculations!DG100","v":511103.30000000005},{"$f":"Calculations!DH100","v":551813.30000000005},{"$f":"Calculations!DI100","v":592523.30000000005},{"$f":"Calculations!DJ100","v":633233.30000000005},{"$f":"Calculations!DK100","v":673943.3},{"$f":"Calculations!DL100","v":714653.3},{"$f":"Calculations!DM100","v":755363.3},{"$f":"Calculations!DN100","v":796073.3},{"$f":"Calculations!DO100","v":836783.3},{"$f":"Calculations!DP100","v":1103626.6000000001},{"$f":"Calculations!DQ100","v":1144336.6000000001},{"$f":"Calculations!DR100","v":1185046.6000000001},{"$f":"Calculations!DS100","v":1225756.6000000001},{"$f":"Calculations!DT100","v":1266466.6000000001}]
[{"$f":"Calculations!A101","v":"WICR FR"},{"$f":"Calculations!E101","v":"Haier WIFR20"},{"$f":"Calculations!F101","v":5555.5555555555557},{"$f":"IF(Calculations!G101=0,\"No\",\"Yes\")","v":"Yes"},{"$f":"LOOKUP(C204,List!$E$3:$E$12,List!$F$3:$F$12)","v":"WIFR"},{"$f":"Calculations!AU101*ROUNDUP('Total Solution Costs'!$B$2/'Cash Flow data'!H101,0)","v":10},{"$f":"Calculations!H101","v":"No"},{"$f":"Calculations!I101","v":15},"YES",null,{"$f":"Calculations!DA101","v":236154.10000000003},{"$f":"Calculations!DB101","v":246174.90000000002},{"$f":"Calculations!DC101","v":256195.7},{"$f":"Calculations!DD101","v":266216.5},{"$f":"Calculations!DE101","v":276237.3},{"$f":"Calculations!DF101","v":286258.09999999998},{"$f":"Calculations!DG101","v":296278.89999999997},{"$f":"Calculations!DH101","v":306299.69999999995},{"$f":"Calculations!DI101","v":316320.49999999994},{"$f":"Calculations!DJ101","v":326341.29999999993},{"$f":"Calculations!DK101","v":336362.09999999992},{"$f":"Calculations!DL101","v":346382.89999999991},{"$f":"Calculations!DM101","v":356403.6999999999},{"$f":"Calculations!DN101","v":366424.49999999988},{"$f":"Calculations!DO101","v":376445.29999999987},{"$f":"Calculations!DP101","v":612599.39999999991},{"$f":"Calculations!DQ101","v":622620.19999999995},{"$f":"Calculations!DR101","v":632641},{"$f":"Calculations!DS101","v":642661.80000000005},{"$f":"Calculations!DT101","v":652682.60000000009}]
[{"$f":"Calculations!A102","v":"WICR FR"},{"$f":"Calculations!E102","v":"Zhendre CRFR40"},{"$f":"Calculations!F102","v":6666.666666666667},{"$f":"IF(Calculations!G102=0,\"No\",\"Yes\")","v":"Yes"},{"$f":"LOOKUP(C205,List!$E$3:$E$12,List!$F$3:$F$12)","v":"WICR FR"},{"$f":"Calculations!AU102*ROUNDUP('Total Solution Costs'!$B$2/'Cash Flow data'!H102,0)","v":10},{"$f":"Calculations!H102","v":"No"},{"$f":"Calculations!I102","v":15},"YES",null,{"$f":"Calculations!DA102","v":547280},{"$f":"Calculations!DB102","v":601130},{"$f":"Calculations!DC102","v":654980},{"$f":"Calculations!DD102","v":708830},{"$f":"Calculations!DE102","v":762680},{"$f":"Calculations!DF102","v":816530},{"$f":"Calculations!DG102","v":870380},{"$f":"Calculations!DH102","v":924230},{"$f":"Calculations!DI102","v":978080},{"$f":"Calculations!DJ102","v":1031930},{"$f":"Calculations!DK102","v":1085780},{"$f":"Calculations!DL102","v":1139630},{"$f":"Calculations!DM102","v":1193480},{"$f":"Calculations!DN102","v":1247330},{"$f":"Calculations!DO102","v":1301180},{"$f":"Calculations!DP102","v":1848460},{"$f":"Calculations!DQ102","v":1902310},{"$f":"Calculations!DR102","v":1956160},{"$f":"Calculations!DS102","v":2010010},{"$f":"Calculations!DT102","v":2063860}]
[{"$f":"Calculations!A103","v":"WICR FR"},{"$f":"Calculations!E103","v":"Huurre CRFR40"},{"$f":"Calculations!F103","v":6666.666666666667},{"$f":"IF(Calculations!G103=0,\"No\",\"Yes\")","v":"Yes"},{"$f":"LOOKUP(C206,List!$E$3:$E$12,List!$F$3:$F$12)","v":"WICR FR"},{"$f":"Calculations!AU103*ROUNDUP('Total Solution Costs'!$B$2/'Cash Flow data'!H103,0)","v":10},{"$f":"Calculations!H103","v":"No"},{"$f":"Calculations!I103","v":15},"YES",null,{"$f":"Calculations!DA103","v":542900},{"$f":"Calculations!DB103","v":592370},{"$f":"Calculations!DC103","v":641840},{"$f":"Calculations!DD103","v":691310},{"$f":"Calculations!DE103","v":740780},{"$f":"Calculations!DF103","v":790250},{"$f":"Calculations!DG103","v":839720},{"$f":"Calculations!DH103","v":889190},{"$f":"Calculations!DI103","v":938660},{"$f":"Calculations!DJ103","v":988130},{"$f":"Calculations!DK103","v":1037600},{"$f":"Calculations!DL103","v":1087070},{"$f":"Calculations!DM103","v":1136540},{"$f":"Calculations!DN103","v":1186010},{"$f":"Calculations!DO103","v":1235480},{"$f":"Calculations!DP103","v":1778380},{"$f":"Calculations!DQ103","v":1827850},{"$f":"Calculations!DR103","v":1877320},{"$f":"Calculations!DS103","v":1926790},{"$f":"Calculations!DT103","v":1976260}]
[{"$f":"Calculations!A104","v":"WICR FR"},{"$f":"Calculations!E104","v":"Haier CRFR40"},{"$f":"Calculations!F104","v":6666.666666666667},{"$f":"IF(Calculations!G104=0,\"No\",\"Yes\")","v":"Yes"},{"$f":"LOOKUP(C207,List!$E$3:$E$12,List!$F$3:$F$12)","v":"WICR FR"},{"$f":"Calculations!AU104*ROUNDUP('Total Solution Costs'!$B$2/'Cash Flow data'!H104,0)","v":10},{"$f":"Calculations!H104","v":"No"},{"$f":"Calculations!I104","v":15},"YES",null,{"$f":"Calculations!DA104","v":511334.80000000005},{"$f":"Calculations!DB104","v":529239.60000000009},{"$f":"Calculations!DC104","v":547144.40000000014},{"$f":"Calculations!DD104","v":565049.20000000019},{"$f":"Calculations!DE104","v":582954.00000000023},{"$f":"Calculations!DF104","v":600858.80000000028},{"$f":"Calculations!DG104","v":618763.60000000033},{"$f":"Calculations!DH104","v":636668.40000000037},{"$f":"Calculations!DI104","v":654573.20000000042},{"$f":"Calculations!DJ104","v":672478.00000000047},{"$f":"Calculations!DK104","v":690382.80000000051},{"$f":"Calculations!DL104","v":708287.60000000056},{"$f":"Calculations!DM104","v":726192.40000000061},{"$f":"Calculations!DN104","v":744097.20000000065},{"$f":"Calculations!DO104","v":762002.0000000007},{"$f":"Calculations!DP104","v":1273336.8000000007},{"$f":"Calculations!DQ104","v":1291241.6000000008},{"$f":"Calculations!DR104","v":1309146.4000000008},{"$f":"Calculations!DS104","v":1327051.2000000009},{"$f":"Calculations!DT104","v":1344956.0000000009}]
[{"$f":"Calculations!A105","v":"LT passive"},{"$f":"Calculations!E105","v":"Aucma ARKTEK-YBC-5*"},{"$f":"Calculations!F105","v":5.4},{"$f":"IF(Calculations!G105=0,\"No\",\"Yes\")","v":"No"},{"$f":"LOOKUP(C208,List!$E$3:$E$12,List!$F$3:$F$12)","v":" 1-29"},{"$f":"Calculations!AU105*ROUNDUP('Total Solution Costs'!$B$2/'Cash Flow data'!H105,0)","v":60},{"$f":"Calculations!H105","v":"Yes"},{"$f":"Calculations!I105","v":8},"YES",null,{"$f":"Calculations!DA105","v":91485.3},{"$f":"Calculations!DB105","v":93465.3},{"$f":"Calculations!DC105","v":95445.3},{"$f":"Calculations!DD105","v":97425.3},{"$f":"Calculations!DE105","v":99405.3},{"$f":"Calculations!DF105","v":101385.3},{"$f":"Calculations!DG105","v":103365.3},{"$f":"Calculations!DH105","v":105345.3},{"$f":"Calculations!DI105","v":196830.6},{"$f":"Calculations!DJ105","v":198810.6},{"$f":"Calculations!DK105","v":200790.6},{"$f":"Calculations!DL105","v":202770.6},{"$f":"Calculations!DM105","v":204750.6},{"$f":"Calculations!DN105","v":206730.6},{"$f":"Calculations!DO105","v":208710.6},{"$f":"Calculations!DP105","v":210690.6},{"$f":"Calculations!DQ105","v":302175.90000000002},{"$f":"Calculations!DR105","v":304155.90000000002},{"$f":"Calculations!DS105","v":306135.90000000002},{"$f":"Calculations!DT105","v":308115.90000000002}]
[{"$f":"Calculations!A106","v":"LT passive"},{"$f":"Calculations!E106","v":"Aucma tbd"},{"$f":"Calculations!F106","v":10},{"$f":"IF(Calculations!G106=0,\"No\",\"Yes\")","v":"No"},{"$f":"LOOKUP(C209,List!$E$3:$E$12,List!$F$3:$F$12)","v":" 1-29"},{"$f":"Calculations!AU106*ROUNDUP('Total Solution Costs'!$B$2/'Cash Flow data'!H106,0)","v":40},{"$f":"Calculations!H106","v":"No"},{"$f":"Calculations!I106","v":8},"YES",null,{"$f":"Calculations!DA106","v":9780},{"$f":"Calculations!DB106","v":11100},{"$f":"Calculations!DC106","v":12420},{"$f":"Calculations!DD106","v":13740},{"$f":"Calculations!DE106","v":15060},{"$f":"Calculations!DF106","v":16380},{"$f":"Calculations!DG106","v":17700},{"$f":"Calculations!DH106","v":19020},{"$f":"Calculations!DI106","v":28800},{"$f":"Calculations!DJ106","v":30120},{"$f":"Calculations!DK106","v":31440},{"$f":"Calculations!DL106","v":32760},{"$f":"Calculations!DM106","v":34080},{"$f":"Calculations!DN106","v":35400},{"$f":"Calculations!DO106","v":36720},{"$f":"Calculations!DP106","v":38040},{"$f":"Calculations!DQ106","v":47820},{"$f":"Calculations!DR106","v":49140},{"$f":"Calculations!DS106","v":50460},{"$f":"Calculations!DT106","v":51780}]
[{"$f":"Calculations!A107","v":"LT passive"},{"$f":"Calculations!E107","v":"SureChill tbd"},{"$f":"Calculations!F107","v":8},{"$f":"IF(Calculations!G107=0,\"No\",\"Yes\")","v":"No"},{"$f":"LOOKUP(C210,List!$E$3:$E$12,List!$F$3:$F$12)","v":" 1-29"},{"$f":"Calculations!AU107*ROUNDUP('Total Solution Costs'!$B$2/'Cash Flow data'!H107,0)","v":40},{"$f":"Calculations!H107","v":"No"},{"$f":"Calculations!I107","v":8},"YES",null,{"$f":"Calculations!DA107","v":9780},{"$f":"Calculations!DB107","v":11100},{"$f":"Calculations!DC107","v":12420},{"$f":"Calculations!DD107","v":13740},{"$f":"Calculations!DE107","v":15060},{"$f":"Calculations!DF107","v":16380},{"$f":"Calculations!DG107","v":17700},{"$f":"Calculations!DH107","v":19020},{"$f":"Calculations!DI107","v":28800},{"$f":"Calculations!DJ107","v":30120},{"$f":"Calculations!DK107","v":31440},{"$f":"Calculations!DL107","v":32760},{"$f":"Calculations!DM107","v":34080},{"$f":"Calculations!DN107","v":35400},{"$f":"Calculations!DO107","v":36720},{"$f":"Calculations!DP107","v":38040},{"$f":"Calculations!DQ107","v":47820},{"$f":"Calculations!DR107","v":49140},{"$f":"Calculations!DS107","v":50460},{"$f":"Calculations!DT107","v":51780}]

{"sheet":"Notes","index":33,"n_rows":64,"n_cols":4,"rows_kept":64,"cut":false,"hidden":true,"merged":[]}
["Notes"]
["2015-02-25",null,"restructured model and templates for evaluation"]
[null,null,"need to reestablish formulas"]
[null,null,"define annualization factor or NPV for equipment and parts"]
[null,null,"validate hourly assumptions for labor and tech"]
[null,null,"develop assumptions for LT Passive and ice delivery"]
[]
[]
["April",null,"Pivot tables as primary presentation of data and findings"]
[null,null,"slicers added and macros to update data"]
[]
[]
[]
[]
[]
["May",null,"added solar panel cash flows into \"Calculation\" tab and \"Cash flows comparison\" (the cost is driven by the input of 'Small','Med' and 'Large' solar panel at Country Input tab) --> different SDD models can have different useful life of solar panel"]
[null,null,"added solar battery cash flows into \"Calculation\" tab and \"Cash flows comparison\" (the battery price is from UNICEF 0006902 Battery,gel-cell,12V/115Ah Indicative Price:  268.33 US)\n"]
[null,null,"the price of them are at the last rows at \"Parts\" tab"]
[null,null,"Cash flows plot may look different after changing the useful life of solar panel and solar battery expected useful life at tab \"SDD\" and \"Solar w battery\""]
[null,null,"When a new model is purchased at that year, solar panel and solar battery cost won't be counted at the same year because the costs are included in the model price"]
[null,null,"Problem: When purchase a new model, the country may get a new solar system or solar batter. The useful life of panel and battery have to be reset. Haven't got an idea to solve this."]
[]
[null,null,"Diluent volume is included in calcualtions for volume needs.  Marginal difference for typical vaccine schedules?  Can apply without diluent for only vaccines in cold chain instead."]
[]
[null,null,"cleaned up tabs"]
[null,null,"deleted inflation rate"]
[null,null,"questions around assumptions and sources for installation and freight costs, need to clarify"]
[]
[null,null,"built out roi concept, need validation and review"]
[null,null,null,"Need better costing and impact data to really have value for this tab, keep as placeholder for now."]
[]
["June",null,"Divide the assumption \"Average travel cost for equipment & technician\" into \"Average travel cost for technician\" and \"Average equiment transport cost\""]
[null,null,"Segment major repairs into Minor Repairs and Major Repairs"]
[null,null,null,"Onsite repairs (travel cost of technician)"]
[null,null,null,"Major repairs: repairs in a workshop by technician (equipment transport cost)"]
[null,null,"Make all of the calculations consistent (the Excel function won't be different by model)"]
[]
["July"]
[null,null,"Change the tab 'WICR' to 'WICR FR'"]
[null,null,"Add different manufacturers and models for WICR/FR"]
[null,null,"Update energy consumption for CR/FR (Source: UNICEF SUPPLY DIVISION QUICK REFERENCE REPOSITORY)"]
[null,null,"Add 6 new models (latest PQS Catalogue 3 July 2015)"]
[null,null,"Modify the formulas in 'Parts' tab"]
["August"]
[null,null,"Add new parts for SDD - Surge protector"]
[null,null,"Add lookup for specs in summary report"]
[null,null,"2 new columns in PQS - Platform approved & Freeze prevention but no data yet"]
[null,null,"adding product specs to summary report data for simple comparison"]
[null,null,"Updated instructions and section headders with details for use"]
[null,null,"Add gross freezer capacity to PQS tab.  No guidance for net factorings"]
[]
[null,null,"ADD url's for equipment PQS pages for lookup as well"]
[]
[null,null,"added back inflation and discount rate - adjusted calculations accordingly"]
[]
["2017/01",null,"Add freezer capacity slicer"]
[null,null,"Add new models - SDD and ILR"]
[null,null,"Update parts prices and detail"]
[]
["2017/04",null,"Add new eqiupment VC60SDD"]
[null,null,"Fix major repair cost missing for ILR, freezer and SDD"]
[null,null,"* mark for every CCEOP equipment"]
[null,null,"CCEOP row in every technology tab"]
[null,null,"CCEOP slicer in every comparison tab"]